{"text_format":"1","workbook":"xlsx","n_sheets":37,"sheets":["Release-TODO","language","Home","Parameters","Licences","Clubs","Nationalities","Ranking","RankingTeams","CheckIn","Teams","Doubles","Lists","FISTFFormulas","CompetitionFormulas","PlanningModel","ExportScorerTableModel","ExportPlanningModel","Ind Groups","Dble Groups","Team Groups","Ind FDL","Team FDL","Dble FDL","Ind by Sel. Match","Team by Sel. Match","Dble by Sel. Match","DrawModel","ExportResultsModel","Planning","Refereeing","Timeline","Stats","Venue","Scoresheet_Models","Podium","Team"],"not_rendered":{"charts":0,"images":31,"macros":1,"external_links":0,"defined_names":1647,"comments":0,"pivot_tables":0},"unopened":[],"bounds":{"document_bytes":16777216,"sheet_cells":100000,"rows_first":2000,"rows_last":500,"rows_between":2000,"halvings":0,"cell_chars":16384,"cell_head_chars":4096},"cells_cut":0,"cells_raw":0,"read":"whole","date_system":"1900"}

{"sheet":"Release-TODO","index":0,"n_rows":78,"n_cols":3,"rows_kept":78,"cut":false,"hidden":true,"merged":[[67,1,68,1]]}
[]
[null,"Release History"]
[null,"14.3.1","Ajout de boutons \"Hide Column\" sur interface Web."]
[null,"14.3","Compatibility with FISTF-Event-Report-Template-2023-V5,0.xlsx"]
[null,"14.2","Compatibility with FISTF-Event-Report-Template-2023-V4.7.xlsx\nCompatibility with new official FISTF Formula in competition HB V3 for 11 & 12 groups"]
[null,"14.1","Proposed formula (at the bottom of Checkin List) to display ranking of players within teams."]
[null,14,"Addition of 6 new Event categories (mainly to manage World Cup)\nAddition of 2nd lot for Draw\n5 new columns on the right of planning to show which kind of conflicts for referees\nAddition of the Score column in the Planning on GMFT Competition Website\nDifferent bug corrections detected during WC2024."]
[null,"13.5","Compatibility with the change of Ladies in Women"]
[null,"13.4","Compatibility with FISTF-Event-Report-Template-2023-V4.6.xlsx"]
[null,"13.3","Bug correction : bug in web export for events with match for 3rd place"]
[null,"13.2","Compatibility of GMFT with new FISTF Event Results file - FISTF-Event-Report-Template-2023-V4.0.1"]
[null,"13.1","Compatibility of GMFT with new Tournament Organisation Handbook Version 2.1 - 2023-08-26"]
[null,13,"Compatibility of GMFT with new FISTF Event Results file - FISTF-Event-Report-Template-2023-V2.5"]
[null,"12.2","Bug correction : Details in Teams group of 5 ranking"]
[null,"12.1","Minor corrections for Teams Checkin help form & Parameters sheet"]
[null,"12.0","Compatibility of GMFT with new FISTF Event Results file - FISTF-Event-Report-Template-2023-V2.3"]
[null,"11.0","New group formula for order of matches and equity for \"home\" games (see 2023 Organisers Handbook version)\nNew GMFT logo - Many thanks to Skander Farza ! "]
[null,"10.2.2","Bug correction : Export/Import Scorer Table"]
[null,"10.2.1","Performance enhancement : memory freeing with set XXX = Nothing"]
[null,"10.2","Dashboard display Event and no more Category of Event"]
[null,"10.1","Add of fill in help form for teams regictration cheet."]
[null,10,"Compatibility with new Database & WR FISTF file published each month - This file is produce with the FISTF_Database&WR-Synthesis.xlsm program."]
[null,"9.4.2","Correction of a minor display bug in \"Ranking Teams\" sheet in cells D2 & D3 "]
[null,"9.4.1","Correction of a bug in Management of new FISTF Categories U20 & U16"]
[null,"9.4","Add column \"Licence\" into the \"Clubs\" sheet\nManagement of new FISTF Categories U20 & U16"]
[null,"9.3","Translation to Spanish and Catalan thanks to Ferran Borbones from Barcelona Futbol Table club."]
[null,9.1999999999999993,"New feature : \n   - In addition to printing, results may be published as PDF files => add of a button \"Save Results as PDF\" in Ribbon's group \"Printing / Publishing\" in the context of the \"Home\" worksheet\nInterface update : \n   - upgrade to be compliant with the new FISTF Database format (change of the column name from \"NAME\" to \"Family Name\")\n   - GMFT Websites templates : \n      - change of folder tree => this way only one http server for all websites templates\n      - Creation of a GMFT website to point to all Website templates\n   - Change of the local http server : now GMFT use Miniweb (http://miniweb.sourceforge.net/) to validate websites before their publication on target server. No more need to kill process to spot htpp server; only close Dos window."]
[null,"9.1","Bug Correction :\n   - Clear filter on refereeeing sheet before Validate Checkin\n   - \"Exlude number of already refereed matches\" now taken into account within the \"Use only these disqualiified players\" tab"]
[null,"9.0","Add of Registrations Export => possibility to include Registrations Tables in different themes into Organizer web site"]
[null,"8.0","Use of ribbon in place of buttons in each sheets.\n=> Old Excel .xls format no more supported => Excel 2007 or more is now necessary"]
[null,"7.0","Automatic Draws\nDisplay of Release History"]
[null,"6.3.3","Podium sheet to help organizer to present trophies\nMinor bugs corrections"]
[null,"6.3.2","Increase from 9 to 18, the max number of events per file, but still 9 categories => capability to manage tournaments B for each category"]
[null,"6.3.1","New models for Scoresheets\nBetter management of Venue"]
[null,"6.3","Better management of Lock/Unlock Icons\nVenue sheet : bug fix on (group of) tables Naming & unnaming, and optimisation of style copy management of cells "]
[null,"6.2","New version of FISTF Database compatibility"]
[null,6.1,"Correction of WebExport in case of a mix of ind. & Teams"]
[null,"6.0","Add of the Dashboard & Timer capability. Called from Planning sheet.\nPlanning sheet : Suppress of \"Save All\" & \"Clean #Ref\" functions"]
[null,"5.3","Add of the team ranking management with sort of teams by rank on web"]
[null,"5.2","Bug correction following French Cup 2017 : \n   - List of Doubles in the \"Dble Group\" model sheet"]
[null,"5.1","Bug correction following Champions League 2017 : \n   - Stats for individual matches of team event\n   - Bad initialisation value in export scoresheet  popup\nVenue : Add of Undefine buttons\n"]
[null,"5.0","Official version with Web support\nItalian translation thanks to Francesco Lo Presti"]
[null,"4.8.2","Corrections from WC2017 (change of formula for playoff for 60 players => FISTF formula is false)\nCheckin : Extent to the 9 categories for ranking (columns AD to AF)\nLicences : Change of validation of values for categories : restrict to FISTF categories of age\nWeb generation : multilingual"]
[null,"4.8.1","Venue upgrade"]
[null,"4.8","Web Site results generation"]
[null,"4.7.3","Checkin Player Form : Help for Player name searching"]
[null,"4.7.2","Excel2013 compatibility"]
[null,"4.7.1","Import Players & Clubs from \"Database WR FISTF.xlsm\" file : small adaptation to new file version"]
[null,"4.7","Individual Groups : New formula for Group of 5 with two-legged\nTimeline : Add of table name for each match "]
[null,"4.6.a","Minor bug correction for checkin sheet"]
[null,"4.6","Player's Timeline\n   - With the planning, the Timeline sheet display for each player his timeline of playing and refereeing"]
[null,"4.5.1","Bug correction for FormatConditions on Planning. => compatibility pb with Office2007."]
[null,"4.5","Feedback from2015 WC. Some minor bugs I forgot !"]
[null,"4.4","Venue\n   - Now the Venue sheet show for each Session the tables occupation by displaying players, referees or stage for each table."]
[null,"4.3","Performances\n   - some format simplifications for performance optimization (sensible on event generation)\nRefereeing\n   - Full referee management for teams (random assignment, same exclusion criteria as for individuals, number of matches refereed)\nScoresheets\n   - Team scorsheet improvement with player list of each team "]
[null,"4.2","GMFT Logo is born !\n   - the new GMFT logo replace the \"?\" icon\nAutomatic Assignment of Referees :\n   - Improved exclusion criteria : may be used to exclude some players from refereeing, based on player's category (FISTF & played event) and Nb of matches already refereed \n   - New choice criteria : Losing players of previous round\nFree composition of Event :\n   - Add the possibility to have a Play-Off for the Third Place\nBug Correction :\n   - Conditional Formats on planning and Results sheets\n   - Error during planning export when draw sheets are hidden\nExport Planning & Results :\n   - Now the planning & results are left open after the export\nHome :\n   - Possibility to hide or show all Draw sheets"]
[null,"4.1","Bug Correction :\n   - Ranking not copied in the Draw sheets (for categories after Open & Veteran)\n   - Ranking points not filled in the results sheets"]
[null,"4.0","Automatic Assignment of Referees :\n   - Available Referees may be randomly affected to the matches selected or of the whole session\n   - Icons are shown if necessary for each referee to warn if conflicts of club/nationality/group are to be solved\nReferees Switch :\n   - User can select 2 referees to exchange their match\n   - A control of conflicts is processed on these 2 new assignments\nNew functions for planning organization :\n   - Possibility to move selected matches to previous or next Session\n   - Possibility to move selected matches to a defined session"]
[null,"3.0","Performance enhancement : Lot of complex formula replaced by programmatic updates\n   - Sheets concerned : Checkin, Refereeing, Stats \n   - These sheets may be refreshed by hand with a clic on the new Icon on top.\nDraw system now included from the original Idea used on Madrid's WC in 2013\n   - a new Icon on each Event sheet, proposes to generate the draw system for that Event.\nParameter sheet : update of official FISTF criteria in group position computing\nIn a group stage, group positions should be determined as follows:\nIndividuals :\n  1. Number of points won.\n  2. Result(s) of the direct match(es) between the players that have the same points.\n  3. Goal difference in the match(es) between the players that have the same points.\n  4. Most goals scored in the match(es) between the players that have the same points.\n  5. Total goal difference.\n  6. Most goals scored.\n  7. Shoot-out\nTeams :\n  1. Number of points won.\n  2. Result(s) of the direct match(es) between the teams that have the same points.\n  3. Individual wins difference in the match(es) between the teams that have the same points.\n  4. Most individual wins achieved in the match(es) between the teams that have the same points.\n  5. Total individual wins difference.\n  6. Most individual wins achieved.\n  7. Goal difference in the match(es) between the teams that have the same points.\n  8. Most goals scored in the match(es) between the teams that have the same points.\n  9. Total goal difference.\n  10. Most goals scored.\n  11. Shoot-out\n\nSmall enhancements :\n   - Planning : stage cells get color of the corresponding category (defined in Parameter sheet)\n   - Export Planning : more fields exported and possibility to have formula based on exported values "]
[null,"2.23","Bug correction :\n  Export Results : Bug if no events created before => msg to prevent\n  Export Results : Tournament Title of the model sheet were not updated\n  Team referees : Increase to up to 17 sessions to manage referees\n  ScoreSheets : For teams & Dbles, if players were fulfilled in GMFT, then print players and referees names\n  Group Players : Possibility to choose \"[---WithDraw---]\""]
[null,"2.22","Bug correction :\n   Error in the build of FISTF formulas with more than 4 players per group. "]
[null,"2.21","New :\n   Take into account of new FISTF official formula for competitions with up to 128 players and the choice of group of 3 to 10. "]
[null,"2.20","New :\n   Change of the score display in team group ranking (from column BC): now the syntax is \"M(G)\" where M is individual games won and G is Goals\nBug :\n   Team groups : Correction of a bad calculation of Particular Differentials in case of equality of mathes and goals.\n   Team matches in Planning : Bad list of Substitute (S1, S2, S3, S4)\n   Planning : Correction to control of same group for referee, only on stages of groups"]
[null,"2.19","New :\n   Add of Champion ship groups up to 20 players"]
[null,"2.18.d","Bug correction : \n   Export Results - algorithme correction in case of categorized export (only some groups are exported)\n   Filter on name doesn't applies to referee"]
[null,"2.18.c","Bug correction : Highlighting player names when the same player/team name appears in more than 1 place in groups\nNew : Scoresheets : Added Session Number and Half Time Score (for Individuals only)"]
[null,"2.18.b","FISTF Licence file has changed => update of formulas in GMFT !"]
[null,"2.18.a","Parameter sheet : update of official FISTF criteria in group position computing\nIn a group stage, group positions should be determined as follows:\n1. Number of points won\n2. Results(s) of the direct match(es)\n3. Total goal difference\n4. Most goals scored\n5. Shoot-out\n"]
[null,null,"Bug Correction : mod_Import_FISTF_WR\nSub CopyCategory => add \".Select\" to have only one sheet selected before copying FISTF WR Data"]
[null,"2.18","Final version"]
[]
[null,"TO DO"]
[null,null,"Correct bug : No Web Export when 2 team events have the same Category"]
[null,null,"Externalize model to make file lighter"]
[]
[]
[null,"Nice to have"]
[null,null,"\"Export Results\" format on Web => all on the same page"]

{"sheet":"language","index":1,"n_rows":858,"n_cols":12,"rows_kept":858,"cut":false,"hidden":true,"merged":[]}
[null,{"$f":"COUNTA(D2:L2)","v":5},"BE CRREFULL : Each term corresponds to an Excel name in the Column B\nThus manipulate this sheet with caution !","DON'T SORT DATA !\nNO INSERT, NOR DELETE !\nJUST MODIFICATIONS OF TRANSLATIONS OR COMPLETION OF ??"]
[null,"Terms","Description","FR","EN","IT","SP","CAT"]
[null,{"$f":"HLOOKUP(Language,D$2:L$1113,ROW()-1,FALSE)","v":"Time"},{"$f":"NAMEOF(B3)","v":"N_Heure"},"Heure","Time","Tempo","Tiempo","Temps"]
[null,"Table","N_Table","Table","Table","Tavolo","Mesa","Taula"]
[null,"Tables","N_Tables","Tables","Tables","Tavoli","Mesas","Taules"]
[null,"Referee","N_Arbitre","Arbitre","Referee","Arbitro","Arbitro","Àrbitre"]
[null,"Goals","N_Buts","Buts","Goals","Goals","Goles","Gols"]
[null,"SD","N_MS","MS","SD","SD","SD","SD"]
[null,"Pen.","N_Diff","Diff","Pen.","Pen.","Pen.","Pen."]
[null,"Stage","N_Catégorie","Stade de l'épreuve","Stage","Stage","Sesión","Sessió"]
[null,"Team name","N_Nom_équipe","Nom équipe","Team name","Nome Squadra","Nombre Equipo","Nom de l'equip"]
[null,"Double name","N_Nom_double","Nom double","Double name","Cognome","Apellido","Cognom"]
[null,"Team members","N_Membres","Membres","Team members","Giocatori della Squadra","Miembros Equipo","Membres de l'equip"]
[null,"Table N°","N_N__de_table","N° de table","Table N°","Tavolo N°","Mesa Nº","Taula núm."]
[null,"Draw","N_Tirage","Tirage","Draw","Sorteggio","Sorteo","Sorteig"]
[null,"Players","N_Joueurs","Joueurs","Players","Giocatori","Jugadores","Jugadors"]
[null,"Rk","N_Cla.","Cla.","Rk","Rk","Rk","Rk"]
[null,"Pts","N_Pts","Pts","Pts","Punti","Pts","Pts","Points"]
[null,"Pld","N_J","J","Pld","PG","J","J","Matches played"]
[null,"W","N_G","G","W","V","V","V","Victories"]
[null,"D","N_N","N","D","P","E","E","Draw"]
[null,"L","N_P","P","L","S","P","P","Loses"]
[null,"F","N_BP","BP","F","Goal Fatti","GF","GF","goals for"]
[null,"A","N_BC","BC","A","Goal Subiti ","GC","GC","Goals Against"]
[null,"SO","N_Diff.","Diff.","SO","Diff.","Diff.","Diff.","Goals Difference"]
[null,"Matches","N_Matches","Matches","Matches","Matches","Partidos","Partits"]
[null,"Teams","N_Equipes","Equipes","Teams","Squadre","Equipos","Equips"]
[null,"PldE","N_RJ","RJ","PldE","IG","PJ","PJ","Team encounter played"]
[null,"WE","N_RG","RG","WE","IV","PG","PG","Team encounter won"]
[null,"DE","N_RN","RN","DE","IP","Pen.","PE","Team encounter draw"]
[null,"LE","N_RP","RP","LE","Incontro Perso","PP","PP","Team encounter loses"]
[null,"ED","N_Diff_R","Diff R","ED","Diff. Sq","Diff. Eq","Diff. Eq","Diff. Team encounter Won-Loses"]
[null,"WM","N_MP","MP","WM","VS","IV","IG","Individual Matches Won"]
[null,"LM","N_MC","MC","LM","PS","IP","IE","Individual Matches Loses"]
[null,"MD","N_Diff_M","Diff M","MD","Diff. M","Diff. M","Diff. M","Diff. Individual Matches"]
[null,"GD","N_Diff_B","Diff B","GD","Diff. G","Diff. G","Diff. G","Diff. Goals"]
[null,"Scores","N_Scores","Scores","Scores","Scores","Resultados","Resultats"]
[null,"Total goals","N_Total_buts","Total des buts","Total goals","Goal totali","Total Goles","Total Gols"]
[null,"Shoot Out","N_Différentiel","Différentiel","Shoot Out","Eliminato","Eliminado","Eliminat"]
[null,"WINNER","N_VAINQUEUR","VAINQUEUR","WINNER","Vincitore","Vencedor","Guanyador"]
[null,"Qualified","N_Qualifiés","Qualifiés","Qualified","Qualificato","Clasificado","Clasificat"]
[null,"Disqualified",{"$f":"NAMEOF(B42)","v":"N_Disqualified"},"Disqualifiés","Disqualified","Squalificato","Eliminado","Eliminat"]
[null,"Finalist",{"$f":"NAMEOF(B43)","v":"N_Finalist"},"Finaliste","Finalist","Finalista","Finalista","Finalista"]
[null,"Third",{"$f":"NAMEOF(B44)","v":"N_ThirdWinner"},"Troisième","Third","Terzo","Tercero","Tercer"]
[null,"Fourth",{"$f":"NAMEOF(B45)","v":"N_ThirdLoser"},"Quatrième","Fourth","Quarto","Cuarto","Cuart"]
[null,"Group","N_Poule","Poule","Group","Girone","Grupo","Grup"]
[null,"2nd of Group","N__2èmes_de_Poule","2èmes de Poule","2nd of Group","secondo del girone","2º de Grupo","2º de Grup"]
[null,"2nd Ranking","N_Class._2èmes_de_Poule","Class. 2èmes de Poule","2nd Ranking","secondo del ranking","2º de Ranking","2º de Ranking"]
[null,"3rd of Group","N__3èmes_de_Poule","3èmes de Poule","3rd of Group","terzo del girone","3º de Grupo","3º de Grup"]
[null,"3rd Ranking","N_Class._3èmes_de_Poule","Class. 3èmes de Poule","3rd Ranking","terzo del ranking","3º de Ranking","3º de Ranking"]
[null,"FINAL","N_FINALE","FINALE","FINAL","Finale","Final","Final"]
[null,"PLAY-OFF for 3rd PLACE","N_THIRD","PETITE FINALE","PLAY-OFF for 3rd PLACE","Finale 3-4 Posto","3 y 4 Puesto","3 y 4 lloc"]
[null,"SEMI FINAL","N_DEMI_FINALE","1/2 FINALES","SEMI FINAL","Semifinale","Semifinal","Semifinal"]
[null,"LAST 8","N_QUART_DE_FINALE","1/4 DE FINALE","LAST 8","Ottavi","Cuartos","Quarts"]
[null,"LAST 16","N__1_8_DE_FINALE","1/8 DE FINALE","LAST 16","Sedicesimi","Octavos","Vuitens"]
[null,"LAST 32","N__1_16_DE_FINALE","1/16 DE FINALE","LAST 32","Trentaduesimi","Dieciseisavos","Setzens"]
[null,"LAST 64","N__1_32_DE_FINALE","1/32 DE FINALE","LAST 64","Sessantaquattresimi","Treintaidosavos","Ultims 64"]
[null,"LAST 128","N__1_64_DE_FINALE","1/64 DE FINALE","LAST 128","last 128","Ultimos 128","Ultims 128"]
[null,"LAST 256","N__1_128_DE_FINALE","1/128 DE FINALE","LAST 256","last 256","Ultimos 256","Ultims 256"]
[null,"Groups","N_Groups","Poules","Groups","Girone","Grupos","Grups"]
[null,"1st round","N_1st_Round","1er tour","1st round","primo turno","1ª Ronda","1ª Ronda"]
[null,"PLAY-OFF","N_BARRAGES","BARRAGES","PLAY-OFF","Barrages","Barrages","Barrages"]
[null,"Part-Diff","N_Diff_Part","Diff-Part","Part-Diff","Differenze particolari","Dif. Particular","Dif. Particular"]
[null,"3rd place FINAL","N_Petite_FINALE","Petite FINALE","3rd place FINAL","terzo posto","3er Puesto","3er Lloc"]
[null,"Diff","N_res_Diff","Diff ","Diff","diff","Dif.","Dif."]
[null," sd","N_res_MS"," ms"," sd","sd","sd","sd"]
[null,{"$f":"HLOOKUP(Language,D$2:L$1113,ROW()-1,FALSE)","v":"Event"},"N_Epreuve","Epreuve","Event","evento","Evento","Evento"]
[null,"Stage","N_Stade_Epreuve","Stade","Stage","stage","Sesión","Sesió"]
[null,"Match Type","N_Type_Match","Type de match","Match Type","Fase di gioco","Fase de Juego","Fase de Joc"]
[null,"FAMILY NAME / Given name",{"$f":"NAMEOF(B70)","v":"N_Name_1stname"},"NOM / Prénom","FAMILY NAME / Given name","Nome","Nombre","Nom"]
[null,"Licence N°","N_Licence","N° Licence","Licence N°","N° FISTF","Nº Licencia","Nº llicència"]
[null,"Club","N_Club","Club","Club","Club","Club","Club"]
[null,"Category","N_Category","Catégorie","Category","Categoria","Categoria","Categoria"]
[null,"Referee","DON'T CHANGE THIS TERM !\nTerm must be the same for all languages","Referee","Referee","Referee","Referee","Referee","Referee","Referee","Referee","Referee"]
[null,"Open","DON'T CHANGE THIS TERM !\nTerm must be the same for all languages","Open","Open","Open","Open","Open","Open","Open","Open","Open"]
[null,"Veterans","DON'T CHANGE THIS TERM !\nTerm must be the same for all languages","Veterans","Veterans","Veterans","Veterans","Veterans","Veterans","Veterans","Veterans","Veterans"]
[null,"U40","DON'T CHANGE THIS TERM !\nTerm must be the same for all languages","U40","U40","U40","U40","U40","U40","U40","U40","U40"]
[null,{"$f":"HLOOKUP(Language,D$2:L$1113,ROW()-1,FALSE)","v":"U20"},"DON'T CHANGE THIS TERM !\nTerm must be the same for all languages","U20","U20","U20","U20","U20","U20","U20","U20","U20"]
[null,"U19","DON'T CHANGE THIS TERM !\nTerm must be the same for all languages","U19","U19","U19","U19","U19","U19","U19","U19","U19"]
[null,{"$f":"HLOOKUP(Language,D$2:L$1113,ROW()-1,FALSE)","v":"U16"},"DON'T CHANGE THIS TERM !\nTerm must be the same for all languages","U16","U16","U16","U16","U16","U16","U16","U16","U16"]
[null,"U15","DON'T CHANGE THIS TERM !\nTerm must be the same for all languages","U15","U15","U15","U15","U15","U15","U15","U15","U15"]
[null,"U12","DON'T CHANGE THIS TERM !\nTerm must be the same for all languages","U12","U12","U12","U12","U12","U12","U12","U12","U12"]
[null,"Team","DON'T CHANGE THIS TERM !\nTerm must be the same for all languages","Team","Team","Team","Team","Team","Team","Team","Team","Team"]
[null,"Double","DON'T CHANGE THIS TERM !\nTerm must be the same for all languages","Double","Double","Double","Double","Double","Double","Double","Double","Double"]
[null,"Women","DON'T CHANGE THIS TERM !\nTerm must be the same for all languages","Women","Women","Women","Women","Women","Women","Women","Women","Women"]
[null,"Signature",{"$f":"NAMEOF(B86)","v":"N_Visa"},"Signature","Signature","Signature","Firma","Signatura"]
[null,"Event participation","N_Event_participation","Participation aux épreuves","Event participation","Nome Evento","Nombre Evento","Nom Esdeveniment"]
[null,"Name","N_Name","Nom","Name","Nome","Nombre","Nom"]
[null,{"$f":"HLOOKUP(Language,D$2:L$1113,ROW()-1,FALSE)","v":"Family Name"},{"$f":"NAMEOF(B89)","v":"N_Family_Name"},"Nom","Family Name","Nome","Nombre","Nom"]
[null,"Given Name","N_1st_Name","Prénom","Given Name","Cognome","Apellido","Cognom"]
[null,"Nationality","N_Nationality","Nationalité","Nationality","Nazionalità","Nacionalidad","Nacionalitat"]
[null,"Club name","N_Club_Name","Nom du Club","Club name","Nome Club","Nombre Club","Nom Club"]
[null,"Abbreviation","N_Abbreviation","Abbréviation","Abbreviation","Abbreviazione","Abreviación","Abreviació"]
[null,"Insert cells upper","N_Insert_Upper","Insérer les cellules au dessus","Insert cells upper","inserire le celle superiori","Insertar celdas en la parte superior","Inserir cel·les a la part superior"]
[null,"Licenced Players list","N_Player_list","Liste des joueurs licenciés","Licenced Players list","Lista giocatori regolarmente iscritti","Lista Jugadores con Licencia","Llista Jugadors amb Llicència"]
[null,"Club list","N_Club_list","Liste des clubs","Club list","Lista Club","Lista Club","Llista Club"]
[null,"Insert a line : Copy one team line and press \"Right Click > Insert Copied Cells\" on an existing team line","N_Insert_team_line","Pour ajouter une nouvelle ligne : Copier une ligne d'équipe puis faire \"Clic droit > Insérer les cellules copiées\" sur une ligne d'équipe existante","Insert a line : Copy one team line and press \"Right Click > Insert Copied Cells\" on an existing team line","Inserisci una riga: copia una riga a squadra e premi \"Fare clic destro> Inserisci celle copiate\" su una linea di squadra esistente","Insertar una línea: Copie una línea de equipo y presione \"Clic derecho> Insertar celdas copiadas\" en una línea de equipo existente.","Inserir una línia: Copieu una línia d'equip i premeu  \"Clic dret> Insereix cel·les copiades \" en una línia d'equip existent."]
[null,"Nb of team members","N_Nb_Team_Members","Nb équipiers","Nb of team members","Numero dei giocatori della squadra","Nº Jugadores Equipo","Nº Jugadors Equip"]
[null,"Max nb of team members","N_nb_max_members","Nb max équipiers","Max nb of team members","Massimo numero dei giocatori della squadra","Max. Numero jugadores de Equipo","Max. Nombre jugadors d'Equip"]
[null,"Player 1","N_Player1","Joueur N° 1","Player 1","Giocatore 1","Jugador 1","Jugador 1"]
[null,"Player 2","N_Player2","Joueur N° 2","Player 2","Giocatore 2","Jugador 2","Jugador 2"]
[null,"Team 1","N_Team1","Equipe N° 1","Team 1","Squadra 1","Equipo 1","Equip 1"]
[null,"Team 2","N_Team2","Equipe N° 2","Team 2","Squadra 2","Equipo 2","Equip 2"]
[null,"Winner","N_Winner","Vainqueur","Winner","Vincitore","Vencedor","Guanyador"]
[null,"Pre-qualified","N_Pre_Qualified","Qualifiés d'office","Pre-qualified","Qualificato","Clasificado","Clasificat"]
[null,"Team encounter with full draw of lots","N_Team_FDL","Par équipe en tirage au sort intégral","Team encounter with full draw of lots","Incontri a squadra con tiri piazzati","Por Equipo con sorteo completo","Per Equip amb sorteig complet"]
[null,"Individual with full draw of lots","N_Individual_FDL","Individuel en tirage au sort intégral","Individual with full draw of lots","incontri individuali con tiri piazzati","Individual con sorteo completo","individual amb sorteig complet"]
[null,"Double with full draw of lots","N_Double_FDL","Double en tirage au sort intégral","Double with full draw of lots","incontri doppi con tiri piazzati","Dobles con sorteo completo","Dobles amb sorteig complet"]
[null,"Group of 3","N_Group_3","Group of 3","Group of 3","Girone da 3","Grupo de 3","Grup de 3"]
[null,"Group of 4","N_Group_4","Poule de 4","Group of 4","Girone da 4","Grupo de 4","Grup de 4"]
[null,"Group of 5","N_Group_5","Poule de 5","Group of 5","Girone da 5","Grupo de 5","Grup de 5"]
[null,"Group of 6","N_Group_6","Poule de 6","Group of 6","Girone da 6","Grupo de 6","Grup de 6"]
[null,"Group of 7","N_Group_7","Poule de 7","Group of 7","Girone da 7","Grupo de 7","Grup de 7"]
[null,"Group of 8","N_Group_8","Poule de 8","Group of 8","Girone da 8","Grupo de 8","Grup de 8"]
[null,"Group of 9","N_Group_9","Poule de 9","Group of 9","Girone da 9","Grupo de 9","Grup de 9"]
[null,"Group of 10","N_Group_10","Poule de 10","Group of 10","Girone da 10","Grupo de 10","Grup de 10"]
[null,"Group of 11","N_Group_11","Poule de 11","Group of 11","Girone da 11","Grupo de 11","Grup de 11"]
[null,"Group of 12","N_Group_12","Poule de 12","Group of 12","Girone da 12","Grupo de 12","Grup de 12"]
[null,"Group of 13",{"$f":"NAMEOF(B119)","v":"N_Group_13"},"Poule de 13","Group of 13","Girone da 13","Grupo de 13","Grup de 13"]
[null,"Group of 14","N_Group_14","Poule de 14","Group of 14","Girone da 14","Grupo de 14","Grup de 14"]
[null,"Group of 15","N_Group_15","Poule de 15","Group of 15","Girone da 15","Grupo de 15","Grup de 15"]
[null,"Group of 16","N_Group_16","Poule de 16","Group of 16","Girone da 16","Grupo de 16","Grup de 16"]
[null,"Group of 17","N_Group_17","Poule de 17","Group of 17","Girone da 17","Grupo de 17","Grup de 17"]
[null,"Group of 18","N_Group_18","Poule de 18","Group of 18","Girone da 18","Grupo de 18","Grup de 18"]
[null,"Group of 19","N_Group_19","Poule de 19","Group of 19","Girone da 19","Grupo de 19","Grup de 19"]
[null,"Group of 20","N_Group_20","Poule de 20","Group of 20","Girone da 20","Grupo de 20","Grup de 20"]
[null,"Group of 3 with first/second leg","N_Group_3_2Leg","Poule de 3 en A/R","Group of 3 with first/second leg","Girone di 3 andata e ritorno","Grupo de 3 ida y vuelta","Grup de 3 anada i tornada"]
[null,"Group of 4 with first/second leg","N_Group_4_2leg","Poule de 4 en A/R","Group of 4 with first/second leg","Girone di 4 andata e ritorno","Grupo de 4 ida y vuelta","Grup de 4 anada i tornada"]
[null,"Group of 5 with first/second leg","N_Group_5_2leg","Poule de 5 en A/R","Group of 5 with first/second leg","Girone di 5 andata e ritorno","Grupo de 5 ida y vuelta","Grup de 5 anada i tornada"]
[null,"Group of 6 with self refereeing","N_Group_6_Self_Refereeing","Poule de 6 en auto-arbitrage","Group of 6 with self refereeing","Girone da 6 con auto arbitraggio ","Grupo de 6 con Auto-arbitraje","Grup de 6 amb Auto-arbitratge"]
[null,"Message for error in score of selection match","N_ERROR_Sel_Match","Message pour une erreur de marque dans un match éliminatoire","Message for error in score of selection match","Messaggio di errore nello score del match selezionato","Mensaje de error en la puntuación del partido seleccionado","Missatge d'error en la puntuació de el partit seleccionat"]
[null,"Message for equality in group","N_Equality_Group","Message d'égalité dans une poule","Message for equality in group","Messaggio per pari nel girone","Mensaje por la igualdad en el grupo","Missatge per la igualtat en el grup"]
[null,"Delay between 2 matches in group","N_Delay_Group","Délai entre 2 matches de poule","Delay between 2 matches in group","Ritardo tra 2 partite nel girone","Retraso entre 2 partidos en grupo","Retard entre 2 partits en grup"]
[null,{"$f":"HLOOKUP(Language,D$2:L$1113,ROW()-1,FALSE)","v":"Delay between 2 selection matches"},"N_Delay_Sel_Match","Délai entre 2 matches éliminatoires","Delay between 2 selection matches","Ritardo tra due matches selezionati","Retraso entre 2 partidos seleccionados","Retard entre 2 partits seleccionats"]
[null,"Order","N_Order","Ordre","Order","Ordine","Orden","Ordre"]
[null,"Criteria","N_Criteria","Critère","Criteria","Criteri","Criterio","Criteri"]
[null,"Criteria before particular difference","N_Criteria_before_diff","Critères avant la différence particulière","Criteria before particular difference","Criteri prima di differenze particolari","Criterios antes de la diferencia particular","Criteris abans de la diferència particular"]
[null,"Particular difference in case of equality on previous criteria","N_particular_diff","Différentiel particulier en cas d'égalité sur critères précédents","Particular difference in case of equality on previous criteria","Particolari differenze nel caso di parità nei criteri previsti","Diferencia particular en caso de igualdad sobre criterios anteriores","Diferència particular en cas d'igualtat sobre criteris anteriors"]
[null,"Criteria after particular difference","N_Criteria_after_diff","Critères après égalité sur différence particulière","Criteria after particular difference","Criteri dopo differenze particolari","Criterios después de una diferencia particular","Criteris després d'una diferència particular"]
[null,"Calculation of Individual ranking","N_calculation_ind_rank","Calcul Classement individuel","Calculation of Individual ranking","Calcolo del ranking individuale","Calculo del ranking individual","Càlcul de el rànquing individual"]
[null,"Calculation of Team ranking","N_Calculation_team_rank","Calcul Classement équipe","Calculation of Team ranking","Calcolo del Ranking a squadre","Calculo del ranking de Equipo","Càlcul de el rànquing d'Equip"]
[null,"Points","N_Points","Points","Points","Punti","Puntos","Punts"]
[null,"Goal Difference","N_Goal_Diff","Différentiel de buts","Goal Difference","Differenza Gol","Diferencia de Goles","Diferencia de Gols"]
[null,"Won Matches","N_Won_Matches","Matches gagnés","Won Matches","Incontri Vinti","Partidos ganados","Partits Guanyats"]
[null,"Best Attack","N_Best_Attack","Meilleure attaque","Best Attack","Miglior Attacco","Mejor ataque","Millor Atac"]
[null,"Match result between ex-aequo","N_Particular_Difference","Résultat match entre ex-aequo","Match result between ex-aequo","Risultato incontro tra due a pari punti","Resultado del partido en empate a puntos","Resultat de el partit en empat a punts"]
[null,"Goal difference between ex-aequo","N_Particular_Goals","Différence de buts entre ex-aequo","Goal difference between ex-aequo","Differenza goal tra due pari punti","Diferencia de Goles en empate a puntos","Diferència de Gols en empat a punts"]
[null,"Best attack between ex-aequo","N_Particular_Attack","Meilleure attaque entre ex-aequo","Best attack between ex-aequo","Miglior attacco tra due pari punti","Mejor Ataque en empate a puntos","Millor Atac en empat a punts"]
[null,"Individual wins difference between ex-aequo","N_Particular_Win_Diff","Différence de matches individuels entre ex-aequo","Individual wins difference between ex-aequo","Differenza vittorie tra due pari punti","Diferencia victorias individuales en empate a puntos","Diferència victòries individuals en empat a punts"]
[null,"Most individual wins between ex-aequo","N_Particular_More_Wins","Plus de victoires individuells entre ex-aequo","Most individual wins between ex-aequo","Miglior vittorie tra due pari punti","Mas victorias individuales en empate a puntos","Mes victòries individuals en empat a punts"]
[null,"Encounter Difference",{"$f":"NAMEOF(B151)","v":"N_Encounter_Diff"},"Différentiel de rencontres","Encounter Difference","Differenza Incontro","Diferencia de partido","Diferència de partit"]
[null,"Individual wins difference","N_Match_Diff","Différentiel de matches individuels","Individual wins difference","Differenza Vittorie","Diferencia individual victorias","Diferència individual victòries"]
[null,"Most individual match wins","N_Most_Ind_Match_Wins","Plus de victoires individuelles","Most individual match wins","Più match vinti","Mas victorias individuales","Mes victòries individuals"]
[null,"Win","N_Win","Victoire","Win","Vinte","Victoria","Victòria"]
[null,"Draw","N_Draw","Nul","Draw","Pareggi","Empate","Empat"]
[null,"Language","N_Language","Langue","Language","Lingua","Lenguaje","Llenguatge"]
[null,"END OF PLANNING","N_End_Planning","FIN DU PLANNING","END OF PLANNING","FINE DEI TURNI","FIN DE PLANIFICACION","FI DE PLANIFICACIÓ"]
[null,"Insert lines above this area","N_Insert_above","Insérez des lignes au dessus de cette zone","Insert lines above this area","Inserisci riga in questa area","Insertar líneas sobre esta área","Inserir línies sobre aquesta àrea"]
[null,"Sheet for team scoreboard printing.\nPaste on left the LINES of the planning up to 20.\nThe line Numer 6 must be the first line \nThe line number 126 must be empty\nNo empty line between 2 match lines","N_printing_sheet","Feuille pour imprimer les feuilles de match en par équipe.\nColler à gauche les LIGNES du planning dans la limite de 20.\nLa ligne 6 doit être la première ligne \nLa ligne 126 doit être vide\nPas de ligne blanche entre les matches d'équipes","Sheet for team scoreboard printing.\nPaste on left the LINES of the planning up to 20.\nThe line Numer 6 must be the first line \nThe line number 126 must be empty\nNo empty line between 2 match lines","Foglio per la stampa del tabellone per team.\nIncolla a sinistra le righe dei turni fino a 20.\nLa riga numero 6 deve essere la prima linea\nIl numero di riga 126 deve essere vuoto\nNessuna linea vuota tra due righe di partita","Hoja para impresión del marcador del equipo.\nPega a la izquierda las LÍNEAS de la planificación hasta 20.\nLa línea Numérico 6 debe ser la primera línea\nLa línea número 126 debe estar vacía\nSin línea vacía entre 2 líneas de coincidencia","Full per a Impressió de el marcador de l  'equip.\nEnganxa a l'esquerra les LÍNIES de la planificació fins a 20.\nLa línia Numèric 6 ha de ser la primera línia\nLa línia número 126 ha d'estar buida\nSense línia buida entre 2 línies de coincidència"]
[null,"Event's Category","N_Event_Category","Catégorie de l'épreuve","Event's Category","Categoria dell'evento","Categoria del Evento","Categoria de l'Esdeveniment"]
[null,"Group","N_Group","Poule","Group","Girone","Grupo","Grup"]
[null,"Definition of a new event for individuals","N_NewEventForm_Title","Définition d'une nouvelle épreuve individuelle","Definition of a new event for individuals","Definizione di un nuovo evento invidivuale","Definición de un nuevo evento para particulares","Definició d'un nou esdeveniment per a particulars"]
[null,"Definition of a new event for teams","N_NewEventFormForTeams_Title","Définition d'une nouvelle épreuve par équipe","Definition of a new event for teams","Definizione di un nuovo evento a squadre","Definición de un nuevo evento para equipos","Definició d'un nou esdeveniment per equips"]
[null,"Definition of a new event for doubles","N_NewEventFormForDoubles_Title","Définition d'une nouvelle épreuve en double","Definition of a new event for doubles","Definizione di un nuovo evento per doppia","Definición de un nuevo evento para dobles","Definició d'un nou esdeveniment per dobles"]
[null,"Definition of a new event for individuals based on competition formulas","N_NewOfficialEventForm_Title","Définition d'une nouvelle épreuve individuelle basée sur les formules de compétition","Definition of a new event for individuals based on competition formulas","Definizione di un nuovo evento individuale basato sulle formule della competizione","Definición de un nuevo evento para individuales basado en fórmulas de competición","Definició d'un nou esdeveniment per individuals basat en fórmules de competició"]
[null,"Definition of a new event for teams based on competition formulas","N_NewOfficialEventFormForTeams_Title","Définition d'une nouvelle épreuve par équipe basée sur les formules de compétition","Definition of a new event for teams based on competition formulas","Definizione di un nuovo evento a squadre basato sulle formule della competizione","Definición de un nuevo evento para equipos basado en fórmulas de competición","Definició d'un nou esdeveniment per equips basat en fórmules de competició"]
[null,"Definition of a new event for doubles based on competition formulas","N_NewOfficialEventFormForDoubles_Title","Définition d'une nouvelle épreuve en double basée sur les formules de compétition","Definition of a new event for doubles based on competition formulas","Definizione di un nuovo evento per doppio basato sulle formule della competizione","Definición de un nuevo evento para dobles basado en fórmulas de competición","Definició d'un nou esdeveniment per dobles basat en fórmules de competició"]
[null,"Definition of a new event for individuals based on competition formulas (officials or not)","N_NewEventWithFormulasForm_Title","Définition d'une nouvelle épreuve individuelle basée sur les formules de compétition officielles ou non","Definition of a new event for individuals based on competition formulas (officials or not)","Definizione di un nuovo evento individuale basato sulle formule della competizione (ufficiali o no)","Definición de un nuevo evento para individuales basado en fórmulas de competición (oficiales o no)","Definició d'un nou esdeveniment per individuals basat en fórmules de competició (oficials o no)"]
[null,"Definition of a new event for teams based on competition formulas (officials or not)","N_NewEventWithFormulasFormForTeams_Title","Définition d'une nouvelle épreuve par équipe basée sur les formules de compétition officielles ou non","Definition of a new event for teams based on competition formulas (officials or not)","Definizione di un nuovo evento a squadre basato sulle formule della competizione (ufficiali o no)","Definición de un nuevo evento para equipos basado en fórmulas de competición (oficiales o no)","Definició d'un nou esdeveniment per equips basat en fórmules de competició (oficials o no)"]
[null,"Definition of a new event for doubles based on competition formulas (officials or not)","N_NewEventWithFormulasFormForDoubles_Title","Définition d'une nouvelle épreuve en double basée sur les formules de compétition officielles ou non","Definition of a new event for doubles based on competition formulas (officials or not)","Definizione di un nuovo evento per doppio basato sulle formule della competizione (ufficiali o no)","Definición de un nuevo evento para dobles basado en fórmulas de competición (oficiales o no)","Definició d'un nou esdeveniment per dobles basat en fórmules de competició (oficials o no)"]
[null,"Event Name","N_NewEventForm_EventName","Nom de l'épreuve","Event Name","Nome dell'evento","Nombre del Evento","Nom Esdeveniment"]
[null,"Category","N_NewEventForm_Category","Catégorie","Category","Categoria","Categoria","Categoria"]
[null,"Groups of 3","N_NewEventForm_GroupOf_3","Poules de 3","Groups of 3","Gruppi di 3","Grupos de 3","Grups de 3"]
[null,"Groups of 4","N_NewEventForm_GroupOf_4","Poules de 4","Groups of 4","Gruppi di 4","Grupos de 4","Grups de 4"]
[null,"Groups of 5",{"$f":"NAMEOF(B175)","v":"N_NewEventForm_GroupOf_5"},"Poules de 5","Groups of 5","Gruppi di 5","Grupos de 5","Grups de 5"]
[null,"Groups of 6","N_NewEventForm_GroupOf_6","Poules de 6","Groups of 6","Gruppi di 6","Grupos de 6","Grups de 6"]
[null,"Groups of 7","N_NewEventForm_GroupOf_7","Poules de 7","Groups of 7","Gruppi di 7","Grupos de 7","Grups de 7"]
[null,"Groups of 8","N_NewEventForm_GroupOf_8","Poules de 8","Groups of 8","Gruppi di 8","Grupos de 8","Grups de 8"]
[null,"Groups of 9","N_NewEventForm_GroupOf_9","Poules de 9","Groups of 9","Gruppi di 9","Grupos de 9","Grups de 9"]
[null,"Groups of 10","N_NewEventForm_GroupOf_10","Poules de 10","Groups of 10","Gruppi di 10","Grupos de 10","Grups de 10"]
[null,"Groups of 11","N_NewEventForm_GroupOf_11","Poules de 11","Groups of 11","Gruppi di 11","Grupos de 11","Grups de 11"]
[null,"Groups of 12","N_NewEventForm_GroupOf_12","Poules de 12","Groups of 12","Gruppi di 12","Grupos de 12","Grups de 12"]
[null,"Groups of 13","N_NewEventForm_GroupOf_13","Poules de 13","Groups of 13","Gruppi di 13","Grupos de 13","Grups de 13"]
[null,"Groups of 14","N_NewEventForm_GroupOf_14","Poules de 14","Groups of 14","Gruppi di 14","Grupos de 14","Grups de 14"]
[null,"Groups of 15","N_NewEventForm_GroupOf_15","Poules de 15","Groups of 15","Gruppi di 15","Grupos de 15","Grups de 15"]
[null,"Groups of 16","N_NewEventForm_GroupOf_16","Poules de 16","Groups of 16","Gruppi di 16","Grupos de 16","Grups de 16"]
[null,"Groups of 17","N_NewEventForm_GroupOf_17","Poules de 17","Groups of 17","Gruppi di 17","Grupos de 17","Grups de 17"]
[null,"Groups of 18","N_NewEventForm_GroupOf_18","Poules de 18","Groups of 18","Gruppi di 18","Grupos de 18","Grups de 18"]
[null,"Groups of 19","N_NewEventForm_GroupOf_19","Poules de 19","Groups of 19","Gruppi di 19","Grupos de 19","Grups de 19"]
[null,"Groups of 20","N_NewEventForm_GroupOf_20","Poules de 20","Groups of 20","Gruppi di 20","Grupos de 20","Grups de 20"]
[null,"with first/second leg","N_NewEventForm_GroupOf_X_FS","en matches Aller / Retour","with first/second leg","con andata e ritorno","con ida y vuelta","amb anada i tornada"]
[null,"Group Phase","N_NewEventForm_GroupPhase","Phase de Poules","Group Phase","Girone","Fase de Grupos","Fase de Grups"]
[null,"Play Off Phase","N_NewEventForm_PlayOffPhase","Phase de Barrages","Play Off Phase","Eliminazione diretta","Eliminacion Directa","Eliminació Directa"]
[null,"Final Phase","N_NewEventForm_FinalPhase","Phase Finale","Final Phase","Fase Finale","Fase Final","Fase Final"]
[null,"Number of Matches","N_NewEventForm_NbMatchPlayOff","Nombre de Matches","Number of Matches","Numero di incontri","Numero de Partidos","Nombre de Partits"]
[null,"Number of pre-qualified players","N_NewEventForm_NbPreQualified","Nombre de qualifiés d'office","Number of pre-qualified players","Numero di giocatori pre qualificati","Numero de jugadores pre-clasificados","Nombre de jugadors pre-classificats"]
[null,"Full drawing of lots","N_NewEventForm_FullDraw","Tirage au sort intégral","Full drawing of lots","Tiri piazzati","Sorteo Completo","Sorteig complet"]
[null,{"$f":"HLOOKUP(Language,D$2:L$1113,ROW()-1,FALSE)","v":"Last 128"},"N_NewEventForm_Elim_64","64ème de Finale","Last 128","last 128","Ultimos 128","Ultims 128"]
[null,"Last 64","N_NewEventForm_Elim_32","32ème de Finale","Last 64","Sessantaquattresimi","Treintaidosavos","Trenta-dosens"]
[null,"Last 32","N_NewEventForm_Elim_16","16ème de Finale","Last 32","Trentaduesimi","Dieciseisavos","Setzens"]
[null,"Last 16","N_NewEventForm_Elim_8","8ème de Finale","Last 16","Sedicesimi","Octavos","Vuitens"]
[null,"Last 8","N_NewEventForm_Elim_Quart","Quart de Finale","Last 8","ottavi","Cuartos","Quarts"]
[null,"Semi Final","N_NewEventForm_Elim_Semi","Demi Finale","Semi Final","Semifinale","Semifinal","Semifinal"]
[null,"Final","N_NewEventForm_Elim_Final","Finale","Final","finale","Final","Final"]
[null,"3rd Place","N_NewEventForm_Elim_Third","Petite Finale","3rd Place","Finale 3-4 Posto","3 y 4 Puesto","3 y 4 Lloc"]
[null,"Validate","N_NewEventForm_Validate","Valider","Validate","valido","Validar","Validar"]
[null,"The Event Name is already in use by an other sheet.","N_NewEventForm_SheetExists","Le nom de l'épreuve est déjà utilisé pour une feuille de ce classeur.","The Event Name is already in use by an other sheet.","Il Nome dell'evento è già in uso in un'altra pagina","El nombre del evento ya está siendo utilizado por otra hoja.","El nom de l'esdeveniment ja està sent utilitzat per un altre full."]
[null,"The value is not numeric.","N_NonNumeric","La valeur saisie n'est pas numérique.","The value is not numeric.","Il valore non è numerico","el valor no es númerico","el valor no és numèric"]
[null,"Exit","N_NewEventForm_Exit","Sortir","Exit","Uscita","Salir","Sortir"]
[null,"New Event Form for individuals","N_NewEventForm_Caption","Formulaire de saisie pour une nouvelle épreuve individuelle","New Event Form for individuals","Modulo per nuovo evento individuale","Formulario para nuevo evento individual","Formulari per a nou esdeveniment individual"]
[null,"New Event Form for teams","N_NewEventFormForTeams_Caption","Formulaire de saisie pour une nouvelle épreuve par équipe","New Event Form for teams","modulo per nuovo evento a squadre","Formulario para nuevo evento equipos","Formulari per a nou esdeveniment per equips"]
[null,"New Event Form for doubles","N_NewEventFormForDoubles_Caption","Formulaire de saisie pour une nouvelle épreuve en double","New Event Form for doubles","modulo per nuovo evento doppio","Formulario para nuevo evento dobles","Formulari per a nou esdeveniment dobles"]
[null,"New Event Form for individuals with competition formulas","N_NewOfficialEventForm_Caption","Formulaire de saisie pour une nouvelle épreuve individuelle selon formule","New Event Form for individuals with competition formulas","Modulo per nuovo evento individuale con formula","Formulario para nuevo evento individual con formulas","Formulari per a nou esdeveniment individual amb formules"]
[null,"New Event Form for teams with competition formulas","N_NewOfficialEventFormForTeams_Caption","Formulaire de saisie pour une nouvelle épreuve par équipe selon formule","New Event Form for teams with competition formulas","Modulo per nuovo evento a squadre con formula","Formulario para nuevo evento equipos con formulas","Formulari per a nou esdeveniment per equips amb formules"]
[null,"New Event Form for doubles with competition formulas",{"$f":"NAMEOF(B215)","v":"N_NewOfficialEventFormForDoubles_Caption"},"Formulaire de saisie pour une nouvelle épreuve en double selon formule","New Event Form for doubles with competition formulas","Modulo per nuovo evento doppia con formula","Formulario para nuevo evento dobles con formulas","Formulari per a nou esdeveniment dobles amb formules"]
[null,"New Event Form for individuals with competition formulas (official or not)","N_NewEventWithFormulasForm_Caption","Formulaire de saisie pour une nouvelle épreuve individuelle selon formule officielles ou non","New Event Form for individuals with competition formulas (official or not)","Modulo per nuovo evento individuale con formula (ufficiale o no)","Formulario para nuevo evento individual con formulas (oficial o no)","Formulari per a nou esdeveniment individual amb formules (oficial o no)"]
[null,"New Event Form for teams with competition formulas (official or not)","N_NewEventWithFormulasFormForTeams_Caption","Formulaire de saisie pour une nouvelle épreuve par équipe selon formule officielles ou non","New Event Form for teams with competition formulas (official or not)","Modulo per nuovo evento a squadre con formula (ufficiale o no)","Formulario para nuevo evento equipos con formulas (oficial o no)","Formulari per a nou esdeveniment per equips amb formules (oficial o no)"]
[null,"New Event Form for doubles with competition formulas (official or not)","N_NewEventWithFormulasFormForDoubles_Caption","Formulaire de saisie pour une nouvelle épreuve en double selon formules officielles ou non","New Event Form for doubles with competition formulas (official or not)","Modulo per nuovo evento doppia con formula (ufficiale o no)","Formulario para nuevo evento dobles con formulas (oficial o no)","Formulari per a nou esdeveniment dobles amb formules (oficial o no)"]
[null,"Number of players involved","N_NewOfficialEventForm_NbPlayersInvolved","Nombre de joueurs engagés","Number of players involved","Numero di giocatori presenti","Nº de jugadores inscritos","Nº de jugadors inscrits"]
[null,"Groups of …","N_NewOfficialEventForm_GroupsOf","Poules de …","Groups of …","Gironi di","Grupos de …","Grups de …"]
[null,"3 Players","N_NewOfficialEventForm_GroupSizeOf3","3 Joueurs","3 Players","3 Giocatori","3 Jugadores","3 Jugadors"]
[null,"4 Players","N_NewOfficialEventForm_GroupSizeOf4","4 Joueurs","4 Players","4 Giocatori","4 Jugadores","4 Jugadors"]
[null,"5 Players","N_NewOfficialEventForm_GroupSizeOf5","5 Joueurs","5 Players","5 Giocatori","5 Jugadores","5 Jugadors"]
[null,"6 Players","N_NewOfficialEventForm_GroupSizeOf6","6 Joueurs","6 Players","6 Giocatori","6 Jugadores","6 Jugadors"]
[null,"7 Players","N_NewOfficialEventForm_GroupSizeOf7","7 Joueurs","7 Players","7 Giocatori","7 Jugadores","7 Jugadors"]
[null,"8 Players","N_NewOfficialEventForm_GroupSizeOf8","8 Joueurs","8 Players","8 Giocatori","8 Jugadores","8 Jugadors"]
[null,"9 Players","N_NewOfficialEventForm_GroupSizeOf9","9 Joueurs","9 Players","9 Giocatori","9 Jugadores","9 Jugadors"]
[null,"10 Players","N_NewOfficialEventForm_GroupSizeOf10","10 Joueurs","10 Players","10 Giocatori","10 Jugadores","10 Jugadors"]
[null,"Hide","N_NewEventForm_Hide","Masquer","Hide","nascondi","Ocultar","Amaga"]
[null,"Session Nbr ","N_Rib_GmftSession_Number","Session N° ","Session Nbr ","Sessione numero","Sesión Nº","Sessiò Nº"]
[null,"Duration","N_Duration","Durée","Duration","Durata","Duración","Duraciò"]
[null,"Rd","N_Round","Tr","Rd","Turno","Ronda","Ronda"]
[null,"A sheet of Match Forms already exists. This action will delete this sheet and recreate it. Do you want to continue ?","N_MatchFormsSheetExists","Une feuille de feuilles de match existe déjà. Cette opération va supprimer cette feuille et le recréer. Voulez-vous continuer ?","A sheet of Match Forms already exists. This action will delete this sheet and recreate it. Do you want to continue ?","La pagina del match già esiste. Questa azione cancellerà la pagina e la crea nuovamente. Vuoi continuare?","Ya existe una hoja de formularios de coincidencia. Esta acción eliminará esta hoja y la volverá a crear. Quieres continuar ?","Ja hi ha un document de formularis de coincidència. Aquesta acció eliminarà aquest full i la tornarà a crear. Vols continuar?"]
[null,"End-of-day","N_EndEvent","Fin de journée","End-of-day","Fine della giornata","Fin de la Jornada","Fi de la Jornada"]
[null,"Nothing selected !","N_NothingSelected","Vous n'avez rien sélectionné !","Nothing selected !","Niente selezionato","Nada seleccionado !","Res seleccionat!"]
[null,"Your selection doesn't correspond exclusively to match lines !","N_NotOnlyMatchSelected","Votre sélection ne correspond pas uniquement à des lignes de match ! ","Your selection doesn't correspond exclusively to match lines !","La tua selezione non corrisponde esclusivamente alle righe dei match","¡Su selección no corresponde exclusivamente a líneas coincidentes!","¡La seva selecció no correspon exclusivament a línies coincidents!"]
[null,"Selection must have only one continuous area and be entirely within a session !","N_ContinuousSelectionInSession","La sélection ne doit être constituée que d'une seul zone continue et entièrement incluse dans une session !","Selection must have only one continuous area and be entirely within a session !","La sezione deve avere solo un'area continua e deve essere dentro una sessione","¡La selección debe tener solo un área continua y estar completamente dentro de una sesión!","La selecció ha de tenir només una àrea contínua i estar completament dins d'una sessió!"]
[null,"PLesae, fill the target session number","N_GetSessionNumber","Saisir le numéro de session de destination","PLesae, fill the target session number","Per favore, compilare il numero della sessione","Por favor, ingrese el número de sesión ","Si us plau, introduïu el número de sessió "]
[null,"Incorrect Session number ! The session number must be between 1 and ","N_BadSessionNo","Numéro de session incorrect ! la valeur saisie doit être comprise entre 1 et ","Incorrect Session number ! The session number must be between 1 and ","Numero della sessione errato! Il numero di sessione deve essere tra 1 e","¡Número de sesión incorrecto! El número de sesión debe estar entre 1 y","Nombre de sessió incorrecte! El nombre de sessió ha d'estar entre 1 i"]
[null,"Your selection is at the top of planning and can't be moved up !","N_UpNotPossible","Votre sélection est en début de planning et ne peut être encore remontée !","Your selection is at the top of planning and can't be moved up !","La tua selezione è all'inizio dei turni e non può essere spostata.","¡Su selección está en la parte superior de la planificación y no se puede mover hacia arriba!","La seva selecció està a la part superior de la planificació i no es pot moure cap amunt!"]
[null,"Selection is within the session 1 and, of course, can't be moved in a previous session ! First, create a news session before the session 1.","N_SessionUpNotPossible","La sélection est en session 1 et ne peut donc être déplacée dans une session précédente ! Au préalable, créer une session avant la session 1.","Selection is within the session 1 and, of course, can't be moved in a previous session ! First, create a news session before the session 1.","La selezione è nella sezione 1 e, ovviamente, non può essere spostata in una sessione precedente. Prima, crea una nuova sessione prima della sessione 1","La selección está dentro de la sesión 1 y, por supuesto, ¡no se puede mover en una sesión anterior! Primero, cree una nueva sesión antes de la 1 sesión.","La selecció està dins de la sessió 1 i, per descomptat, no es pot moure en una sessió anterior! Primer, creeu una nova sessió abans de la 1 sessió."]
[null,"Your selection is in the last session of planning and can't be moved down ! You have the possibility to create a new session.","N_DownNotPossible","Votre sélection est dans la dernière session de planning et ne peut être encore descendue ! Vous pouvez éventuellement créer une nouvelle session.","Your selection is in the last session of planning and can't be moved down ! You have the possibility to create a new session.","La tua selezione è nell'ultima sessione dei turni e non può essere posticipata. Tu puoi creare una nuova sessione.","¡Su selección está en la última sesión de planificación y no se puede mover hacia abajo! Tiene la posibilidad de crear una nueva sesión","La seva selecció està en l'última sessió de planificació i no es pot moure cap avall! Té la possibilitat de crear una nova sessió"]
[null,"System Error : a \"Type of Match\" hidden cell contains an unknown type of match code. Contact support. Try to delete/recreate the concerned matches. ","N_BadMatchTypeIndicator","Erreur système : une cellule cachée \"Type de Match\" contient un code de type de match inconnu. Contacter le support. Essayer de supprimer et recréer manuellement les matches concernés dans le planning.","System Error : a \"Type of Match\" hidden cell contains an unknown type of match code. Contact support. Try to delete/recreate the concerned matches. ","Errore di Sistema: una cella nascosta \"Tipo di Match\" contiene un tipo sconosciuto di codice. Contatta l'assistenza. Prova a cancellare o ricreare i matches corrispondenti.","Error del sistema: una celda oculta de \"Tipo de coincidencia\" contiene un tipo desconocido de código de coincidencia. Contacte con soporte. Intente eliminar / recrear las coincidencias en cuestión.","Error de sistema: una cel·la oculta de \"Tipus de coincidència\" conté un tipus desconegut de codi de coincidència. Contacti amb suport. Proveu eliminar / recrear les coincidències en qüestió."]
[null,"System Error : a team or double match doesn't contain all individual matches. Some lines should have been deleted accidentaly. Contact support. Try to delete/recreate the concerned matches.  ","N_NotEnoughMatchesInATeamMatch","Erreur système : un match d'équipe ou de double ne comporte pas tous les matches individuels. Des lignes ont peut être été supprimées par erreur. Contacter le support. Essayer de supprimer et recréer manuellement les matches concernés dans le planning. ","System Error : a team or double match doesn't contain all individual matches. Some lines should have been deleted accidentaly. Contact support. Try to delete/recreate the concerned matches.  ","Errore di sistema: una squadra o una doppia partita non contiene tutte le partite individuali. Alcune righe potrebbero essere state eliminate in modo casuale. Contatta il supporto. Provare a eliminare / ricreare i matches corrispondenti","Error del sistema: un equipo o un partido doble no contiene todos los partidos individuales. Algunas líneas deberían haberse eliminado accidentalmente. Contacte con soporte. Intente eliminar / recrear las coincidencias en cuestión.","Error de sistema: un equip o un partit doble no conté tots els partits individuals. Algunes línies haurien d'haver-eliminat accidentalment. Contacti amb suport. Proveu eliminar / recrear les coincidències en qüestió."]
[null,"Complete the database of players and clubs","N_FillIn_Players_And_Clubs","Renseigner la base de données des joueurs et clubs","Complete the database of players and clubs","Completa il database dei giocatori e dei club.","Completa la base de datos de jugadores y clubes.","Completa la base de dades de jugadors i clubs."]
[null,"Check in registrations and participations to different events","N_Checkin","Enregistrer les inscriptions et participations aux différentes épreuves","Check in registrations and participations to different events","Controllare la registrazione e la partecipazione dei giocatori.","Consulta inscripciones y participaciones a diferentes eventos.","Consulta inscripcions i participacions a diferents esdeveniments."]
[null,"Define sport parameters of the day of competition","N_Parameter","Définir les paramètres sportifs de la compétition","Define sport parameters of the day of competition","Definisci i parametri della competizione","Definir parámetros deportivos del día de competición","Definir paràmetres esportius del dia de competició"]
[null,"If necessary, define teams of the event","N_DefineTeams","Si besoin définir les équipes de la compétition","If necessary, define teams of the event","Se necessario, definisci squadre dell'evento","Si es necesario, defina equipos del evento.","Si cal, definiu equips de l'esdeveniment."]
[null,"If necessary, define doubles of the event","N_DefineDoubles","Si besoin définir les doubles de la compétition","If necessary, define doubles of the event","Se necessario, definisci doppie partite per l'evento","Si es necesario, defina los dobles del evento.","Si cal, defineixi els dobles de l'esdeveniment."]
[null,"Check lists of players, teams and referees","N_Lists","Vérifier les listes de joueurs, d'équipes et d'arbitres","Check lists of players, teams and referees","Controlla lista di giocatori, squadre ed arbitri","Consultar listas de jugadores, equipos y árbitros","Consultar llistes de jugadors, equips i àrbitres"]
[null,"Create one or more events","N_NewEvent","Créer une ou plusieurs épreuves ","Create one or more events","Crea uno o più eventi","Crear uno o mas eventos","Crear un o més esdeveniments"]
[null,"Actions","N_Action","Actions","Actions","Actions","Acciones","Accions"]
[null,"Worksheet","N_Worksheet","Feuille de calcul","Worksheet","foglio di lavoro","Hoja de trabajo","Full de Treball"]
[null,"Show it","N_ShowIt","Y accéder","Show it","mostra","Mostrar","Mostra"]
[null,"Hide it","N_HideIt","La masquer","Hide it","nascondi","Ocultar","Amagar"]
[null,"Individuals","N_Individuals","Individuels","Individuals","individuali","Individuales","Individuals"]
[null,"Teams","N_Teams","Par équipe","Teams","squadre","Equipos","Equips"]
[null,"Doubles","N_Doubles","En double","Doubles","Doppie","Dobles","Dobles"]
[null,"Complete Event sheets by fill in player positions in groups (or in the first of final phases if no group phase). In case of directed matches with group phase, type in also formulas for the matches of first final phase based on previous rounds. \nIn case of full draw of lots, you must fill in players of each match in the event sheet and not in the planning. ","N_FillinFormula","Finaliser la saisie dans les feuilles d'épreuve en renseignant la position des joueurs dans les poules (ou la première des phases finales s'il n'y a pas de poules). En cas de matches dirigés avec une phase de poules, renseigner également les formules pour les matches de la première des phases finales en fonction des tours précédents. Dans le cas de tirages au sort intégral,la saisie des joueurs de chaque rencontre se fait dans les feuilles d'épreuve mais pas dans le planning. ","Complete Event sheets by fill in player positions in groups (or in the first of final phases if no group phase). In case of directed matches with group phase, type in also formulas for the matches of first final phase based on previous rounds. \nIn case of full draw of lots, you must fill in players of each match in the event sheet and not in the planning. ","Completa pagine dell'evento compilando la posizione nei gruppi dei giocatori (o nella prima fase ad eliminazione se non ci sono gironi). In caso di partite dirette con gironi, digitare tipo di formula per i matches della prima fase eliminatoria basondosi sui turni precedenti. In caso di tiri piazzati, tu devi selezione i giocatori di ogni match nella pagina eventi e non nei turni. ","Complete las hojas de eventos completando las posiciones de los jugadores en grupos (o en la primera de las fases finales si no hay fase de grupos). En caso de partidos dirigidos con fase de grupos, introduzca también fórmulas para los partidos de la primera fase final basadas en rondas anteriores.\nEn caso de sorteo completo, debe completar los jugadores de cada partido en la hoja del evento y no en la planificación.","Completeu les fulles d'esdeveniments completant les posicions dels jugadors en grups (o en la primera de les fases finals si no hi ha fase de grups). En cas de partits dirigits amb fase de grups, introdueixi també fórmules per als partits de la primera fase final basades en rondes anteriors.\nEn cas de sorteig complet, ha de completar els jugadors de cada partit en el full de l'esdeveniment i no en la planificació."]
[null,"Adapt the planning by moving matches between the differents sessions. During the event, referees, tables and scores are filled in EXCLUSIVELY in the planning sheet. \nIn case of team or double matches, players are also filled in the \"planning\" sheet.","N_Planning","Aménager le planning en déplaçant les matches sur les différentes session de la journée. Durant la compétition, les arbitres, les tables et les scores sont saisis UNIQUEMENT dans le planning.\nDans le cas des matches d'équipe (ou doubles), les joueurs sont renseignés également dans la feuille \"planning\".","Adapt the planning by moving matches between the differents sessions. During the event, referees, tables and scores are filled in EXCLUSIVELY in the planning sheet. \nIn case of team or double matches, players are also filled in the \"planning\" sheet.","Adatta i turni muovendo le partite tra le differenti sessioni. Durante l'evento, gli arbitri, i tavoli ed i risultati vanno compilati SOLO nella pagina dei turni. In caso di partita a squadra o doppia, i giocatori vanno anche compilati nella pagina dei turni.","Adapte la planificación moviendo partidos entre las diferentes sesiones. Durante el evento, los árbitros, tablas y puntajes se completan EXCLUSIVAMENTE en la hoja de planificación.\nEn caso de partidos por equipos o dobles, los jugadores también se rellenan en la hoja de \"planificación\".","Adapti la planificació movent partits entre les diferents sessions. Durant l'esdeveniment, els àrbitres, taules i puntuacions es completen EXCLUSIVAMENT al full de planificació.\nEn cas de partits per equips o dobles, els jugadors també s'omplen en el full de \"planificació\"."]
[null,"GMFT - Table Football Match Management","N_GMFT","GMFT - Gestion des Matches de Football de Table","GMFT - Table Football Match Management","GMFT - Table Football Match Management","GMFT - Gestión de Partidos de Futbol Mesa","GMFT - Gestió de Partits de Futbol Taula"]
[null,{"$f":"HLOOKUP(Language,D$2:L$1113,ROW()-1,FALSE)","v":"Version"},"N_GMFT_Version","Version","Version","Versione","Versión","Versiò"]
[null,"Licenced players database","N_LicencesSheetTitle","Base de données des joueurs licenciés","Licenced players database","Licenza Giocatore Database","Base de datos de jugadores con licencia","Base de dades de jugadors amb llicènci"]
[null,"Club database","N_ClubsSheetTitle","Base de données des clubs","Club database","Database Club","Base de datos de Clubs","Base de dades de Clubs"]
[null,"Player Check in","N_PlayerCheckin","Inscription des joueurs","Player Check in","Check in Giocatore","Inscripción de Jugadores","Inscripció de Jugadors"]
[null,"Team Check in","N_TeamCheckin","Enregistrement des équipes","Team Check in","Check in Squadra","Inscripción de Equipos","Inscripció d'Equips"]
[null,"Double Check in","N_DoubleCheckin","Enregistrement des doubles","Double Check in","Check in Doppia","Inscripción de Dobles","Inscripciò de Dobles"]
[null,"PlayerLists after Check in","N_ListsSheet","Listes des joueurs après l'enregistrement","PlayerLists after Check in","Lista dei giocatori dopo Check in","Lista de Jugadores despues de la inscripción","Llista de Jugadors després de la inscripci"]
[null,"ATTENTION, don't make updates in this sheet ! Also, avoid format handling.","N_ListsMessage","ATTENTION de ne pas faire de modifications dans cette feuille ! Eviter également les actions de formatage.","ATTENTION, don't make updates in this sheet ! Also, avoid format handling.","Attenzione, non fare modifiche in questa pagina! ","ATENCIÓN, ¡no realice actualizaciones en esta hoja! Además, evite la manipulación de formatos.","ATENCIÓ, ¡no fer l'actualització en aquest full! A més, eviti la manipulació de formats."]
[null,"The list has only 2 members. Delete is not allowed.","N_Only2Members","La liste ne comporte que 2 membres. La suppression n'est pas autorisée.","The list has only 2 members. Delete is not allowed.","La lista ha solo 2 membri. Non si può cancellare.","La lista tiene solo 2 miembros. No se permite eliminar.","La llista té sols 2 membres. No es permet eliminar."]
[null,"The current selection is on more than one row. The delete function is made for only one row.","N_MultiRowSelection","La sélection courante comporte plusieurs lignes. Or la fonction de suppression n'autorise la sélection que d'une seule ligne.","The current selection is on more than one row. The delete function is made for only one row.","La selezione è più di una riga. La funzione cancella è utilizzabile solo per una riga.","La selección actual está en más de una fila. La función de eliminación está hecha para una sola fila.","La selecció actual està en més d'una fila. La funció d'eliminació està feta per a una sola fila."]
[null,"Selection is not a row available for delete.","N_SelectionOutside","La sélection ne concerne pas une ligne susceptible d'être supprimée.","Selection is not a row available for delete.","La selezione non è un rigo cancellabile.","La selección no es una fila disponible para eliminar.","La selecció no és una fila disponible per eliminar."]
[null,"Number of rows to add up to one","N_NbRowtoAdd","Nombre de lignes à insérer au delà de une","Number of rows to add up to one","Numero di righi da aggiungere è oltre uno.","Número de filas para admitir es superior a uno","Nombre de files per admetre és superior a un"]
[null,"FISTF nationality codes","N_NationalityCodes","Codes de nationalité FISTF","FISTF nationality codes","codice FISTF nazionale.","FISTF Codigos Naciones","FISTF Codis Nacions"]
[null,"Use nationality instead of club for trigram in player's name (useful for World Cup). Ex. John Beem (ANG)","N_Trigram","Utiliser la nationalité à la place du club pour le trigramme dans le nom du joueur (cas de la Coupe du Monde). Ex. Marcel DUPONT (FRA)","Use nationality instead of club for trigram in player's name (useful for World Cup). Ex. John Beem (ANG)","Utilizza la nazionalità invece del club per il nome del giocatore. Ex. John Beem (ANG)","Use la nacionalidad en lugar del club para el trigrama en el nombre del jugador (útil para la Copa del Mundo). Ex. John Beem (ANG)","Utilitza la nacionalitat en lloc de el club per el trigrama en el nom de l'jugador (útil per a la Copa de l'Món). Ex. John BEEM (ANG)"]
[null,"Sort by \"FAMILYNAME Givenname\"","N_SortByNameFirstname","Trier par \"NOM Prénom\"","Sort by \"FAMILYNAME Givenname\"","ordina per nome","Ordenar por \"APELLIDO Nombre\"","Ordenar per \"COGNOM Nom\""]
[null,"Validate registered","N_Rib_GmftMAJListes","Valider les inscrits","Validate registered","valida registrazione","Validar registros","validar registres"]
[null,"The maximum number of players is 128",{"$f":"NAMEOF(B278)","v":"N_NbPlayerMax128"},"Le nombre maximum de participants est de 128.","The maximum number of players is 128","Il numero massimo di giocatori è 128","El número maximo de jugadores es 128","El nombre màxim de jugadors és 128"]
[null,"The maximum number of players is 128 when event is based on groups of 3","N_NbPlayerMax64","Le nombre maximum de participants est de 64 pour une compétition par poules de 4.","The maximum number of players is 128 when event is based on groups of 3","Il numero massimo di giocatori è 128 quando l'evento è basato su gruppi di 3.","El número máximo de jugadores es 128 cuando el evento se basa en grupos de 3","El nombre màxim de jugadors és 128 quan l'esdeveniment es basa en grups de 3"]
[null,"The minimum number of players is 3 when event is based on groups of 3","N_NbPlayerMin3","Le nombre minimum de participants est de 3 pour une compétition par poules de 3.","The minimum number of players is 3 when event is based on groups of 3","Il numero minimo di giocatori è 3 quando l'evento è su gruppi di 3","El número minimo de jugadores es 3 cuando el evento se basa en grupos de 3","El nombre minim de jugadors és 3 quan l'esdeveniment es basa en grups de 3"]
[null,"The minimum number of players is 4 when event is based on groups of 4","N_NbPlayerMin4","Le nombre minimum de participants est de 4 pour une compétition par poules de 4.","The minimum number of players is 4 when event is based on groups of 4","Il numero minimo di giocatori è 4 quando l'evento è su gruppi di 4","El número minimo de jugadores es 6 cuando el evento se basa en grupos de 4","El nombre minim de jugadors és 4 quan l'esdeveniment es basa en grups de 4"]
[null,"The minimum number of players is 5 when event is based on groups of 5","N_NbPlayerMin5","Le nombre minimum de participants est de 5 pour une compétition par poules de 5.","The minimum number of players is 5 when event is based on groups of 5","Il numero minimo di giocatori è 5 quando l'evento è su gruppi di 5","El número minimo de jugadores es 6 cuando el evento se basa en grupos de 5","El nombre minim de jugadors és 5 quan l'esdeveniment es basa en grups de 5"]
[null,"The minimum number of players is 6 when event is based on groups of 6","N_NbPlayerMin6","Le nombre minimum de participants est de 6 pour une compétition par poules de 6.","The minimum number of players is 6 when event is based on groups of 6","Il numero minimo di giocatori è 6 quando l'evento è su gruppi di 6","El número minimo de jugadores es 6 cuando el evento se basa en grupos de 6","El nombre minim de jugadors és 6 quan l'esdeveniment es basa en grups de 6"]
[null,"The minimum number of players is 7 when event is based on groups of 7","N_NbPlayerMin7","Le nombre minimum de participants est de 7 pour une compétition par poules de .","The minimum number of players is 7 when event is based on groups of 7","Il numero minimo di giocatori è 7 quando l'evento è su gruppi di 7","El número minimo de jugadores es 7 cuando el evento se basa en grupos de 7","El nombre minim de jugadors és 7 quan l'esdeveniment es basa en grups de 7"]
[null,"The minimum number of players is 8 when event is based on groups of 8","N_NbPlayerMin8","Le nombre minimum de participants est de 8 pour une compétition par poules de 8.","The minimum number of players is 8 when event is based on groups of 8","Il numero minimo di giocatori è 8 quando l'evento è su gruppi di 8","El número minimo de jugadores es 8 cuando el evento se basa en grupos de 8","El nombre minim de jugadors és 8 quan l'esdeveniment es basa en grups de 8"]
[null,"The minimum number of players is 9 when event is based on groups of 9","N_NbPlayerMin9","Le nombre minimum de participants est de 9 pour une compétition par poules de 9.","The minimum number of players is 9 when event is based on groups of 9","Il numero minimo di giocatori è 9 quando l'evento è su gruppi di 9","El número minimo de jugadores es 9 cuando el evento se basa en grupos de 9","El nombre minim de jugadors és 9 quan l'esdeveniment es basa en grups de 9"]
[null,"The minimum number of players is 10 when event is based on groups of 10","N_NbPlayerMin10","Le nombre minimum de participants est de 10 pour une compétition par poules de 10.","The minimum number of players is 10 when event is based on groups of 10","Il numero minimo di giocatori è 10 quando l'evento è su gruppi di 10","El número minimo de jugadores es 10 cuando el evento se basa en grupos de 10","El nombre minim de jugadors és 10 quan l'esdeveniment es basa en grups de 10"]
[null,"FISTF competition formulas","N_FISTFCompetitionFormula","Formules de compétition FISTF","FISTF competition formulas","Formula competizione FISTF","Formulas de Competición FISTF","Formules de Competició FISTF"]
[null,"Organisation of matches with mainly groups of 3","N_MatchOrganisationFor3","Organisation des matches avec priorité aux poules de 3","Organisation of matches with mainly groups of 3","Organizza partite con principalmente gruppi di 3","Organización de partidos con grupos de 3","Organització de partits amb grups de 3"]
[null,"Organisation of matches with mainly groups of 4","N_MatchOrganisationFor4","Organisation des matches avec priorité aux poules de 4","Organisation of matches with mainly groups of 4","Organizza partite con principalmente gruppi di 4","Organización de partidos con grupos de 4","Organització de partits amb grups de 4"]
[null,"Organisation of matches with mainly groups of 5","N_MatchOrganisationFor5","Organisation des matches avec priorité aux poules de 5","Organisation of matches with mainly groups of 5","Organizza partite con principalmente gruppi di 5","Organización de partidos con grupos de 5","Organització de partits amb grups de 5"]
[null,"Organisation of matches with mainly groups of 6","N_MatchOrganisationFor6","Organisation des matches avec priorité aux poules de 6","Organisation of matches with mainly groups of 6","Organizza partite con principalmente gruppi di 6","Organización de partidos con grupos de 6","Organització de partits amb grups de 6"]
[null,"Organisation of matches with mainly groups of 7","N_MatchOrganisationFor7","Organisation des matches avec priorité aux poules de 7","Organisation of matches with mainly groups of 7","Organizza partite con principalmente gruppi di 7","Organización de partidos con grupos de 7","Organització de partits amb grups de 7"]
[null,"Organisation of matches with mainly groups of 8","N_MatchOrganisationFor8","Organisation des matches avec priorité aux poules de 8","Organisation of matches with mainly groups of 8","Organizza partite con principalmente gruppi di 8","Organización de partidos con grupos de 8","Organització de partits amb grups de 8"]
[null,"Organisation of matches with mainly groups of 9","N_MatchOrganisationFor9","Organisation des matches avec priorité aux poules de 9","Organisation of matches with mainly groups of 9","Organizza partite con principalmente gruppi di 9","Organización de partidos con grupos de 9","Organització de partits amb grups de 9"]
[null,"Organisation of matches with mainly groups of 10","N_MatchOrganisationFor10","Organisation des matches avec priorité aux poules de 10","Organisation of matches with mainly groups of 10","Organizza partite con principalmente gruppi di 10","Organización de partidos con grupos de 10","Organització de partits amb grups de 10"]
[null,"Match formulas","N_MatchFormula","Formules des matches","Match formulas","Formula della partita","Formulas de partidos","Formules de partits"]
[null,"Qualified Players","N_QualifiedPlayers","Nb Joueurs pré-qualifiés","Qualified Players","Giocatori Qualificati","Jugadores Clasificados","Jugadors Classificats"]
[null,"Play Off Matches","N_PlayOffMatches","Matches de barrages","Play Off Matches","Barrages","Barrages","Barrages"]
[null,"Nb Play Off Matches","N_NbPlayOffMatches","Nb Matches de barrages","Nb Play Off Matches","Nb Barrages","Nº Barrages","Nº Barrages"]
[null,"Nb Last Players","N_NbLastPlayers","Nb Joueurs phase finale","Nb Last Players","Nb Ultimi giocatori","Nº Ultimos Jugadores","Nº Ultims Jugadors"]
[null,"Nb Players","N_NbPlayers","Nb Joueurs","Nb Players","Nb Giocatori","Nº Jugadores","Nº Jugadors"]
[null,"Nb Groups of …","N_NbGroupsOf","Nb Poules de …","Nb Groups of …","Nb Gruppi di …","Nº Grupos de …","Nº Grups de …"]
[null,"Total Nb Groups","N_TotalNbGroups","Nb Total de Poules","Total Nb Groups","Totali Nb Gruppi","Total Nº Grupos","Total Nº Grups"]
[null,"Last xx Matches","N_LastMatches","Matches 1ère phase finale","Last xx Matches","Fase Finale","Fase Final","Fase Final"]
[null,"Serie","N_Serie","Série","Serie","Completo","Serie","Serie"]
[null,"System Error : Match formula not found. Contact support","N_MatchForumlaNotFound","Erreur système : la formule de match n'a pas été trouvée. Contacter le support","System Error : Match formula not found. Contact support","Errore di Sistema: Formula della partita non trovata. Contatta il supporto.","Error del sistema: no se encontró la fórmula de coincidencia. Contacte con Soporte","Error de sistema: no es va trobar la fórmula de coincidència. Contacti amb Suport"]
[null,"You can't delete the last 2 sessions. ","N_CantDeleteFirstSession","Vous ne pouvez pas supprimer l'avant dernière session","You can't delete the last 2 sessions. ","Non puoi cancellare le ultime due sessioni.","No puede eliminar las últimas 2 sesiones.","No pot eliminar les últimes 2 sessions."]
[null,"Event name is mandatory, please fill it.","N_EventNameEmpty","Le nom de l'épreuve est obligatoire. Merci de le renseigner.","Event name is mandatory, please fill it.","Il nome dell'evento è obbligatorio, per favore inseriscilo.","El nombre del evento es obligatorio, por favor complételo.","El nom de l'esdeveniment és obligatori, si us plau complete'l."]
[null,"Based on guidelines for FISTF tournaments ","N_NewEventFISTF","Sur la base des formules de compétition FISTF","Based on guidelines for FISTF tournaments ","Basato sulle guideline per FISTF ttornei.","Basado en las pautas para los torneos FISTF","Basat en les pautes per als tornejos FISTF"]
[null,"Composing freely your tournament formula  ","N_NewEventPersonnalized","En construisant vous-même votre formule de compétition","Composing freely your tournament formula  ","Composizione libera della formula del torneo.","Compon libremente tu fórmula de torneo","Redacteu lliurement la teva fórmula de torneig"]
[null,"Unofficial competition formulas","N_CompetitionFormula","Formules de compétition non officielles","Unofficial competition formulas","Non formula ufficiale di competizione","Fórmulas de competición no oficiales","Fórmules de competició no oficials"]
[null,"Choosing within official or not formulas, but with a larger scope","N_NewEventWithFormulas","En choisissant parmi des formules officielles ou non mais avec un choix plus important ","Choosing within official or not formulas, but with a larger scope","Scegli tra formula ufficiale o non ufficiale, ma con un grande margine","Elija entre fórmula oficial o no oficial, pero con un gran margen","Escollir entre fórmula oficial o no oficial, però amb un gran marge"]
[null,"The maximum number of different formulas for a given number of players is exceeded. Modify then\"CompetitionFormulas\" Sheet.","N_ToMuchFormulas","Le nombre maximum de formules différentes pour un nombre de joueurs donné est dépassé. Modifier la feuille \"CompetitionFormulas\".","The maximum number of different formulas for a given number of players is exceeded. Modify then\"CompetitionFormulas\" Sheet.","Il numero massimo di formule diverse per un determinato numero di giocatori è stato superato. Modificare quindi il foglio di \"CompetitionFormulas\".","Se a superado el número máximo de fórmulas diferentes para un número determinado de jugadores. Modifique luego la hoja \"CompetitionFormulas\".","Es a superat el nombre màxim de fórmules diferents per a un nombre determinat de jugadors. Modifiqui després el full \"CompetitionFormulas\"."]
[null,"Max Nb Goals","N_MaxGoals","Nb Buts Max","Max Nb Goals","Massimo Nb Goals","Maximo Nº Goles","Maxim Nº Gols"]
[null,"Loser","N_Loser","Perdant","Loser","Perdente","Perdedor","Perdedor"]
[null,"Max Score","N_MaxScore","Score Max","Max Score","Punteggio massimo","Max. Puntuacion","Max. Puntuaciò"]
[null,"Applicable","N_Applicable","Applicable","Applicable","Applicabile","Aplicable","Aplicable"]
[null,"Rk","N_Rank","Clas.","Rk","Rk","Rk","Rk"]
[null,"Rk Pt.","N_RankPoints","Pt. Clas.","Rk Pt.","Rk Pt.","Rk Pt.","Rk Pt."]
[null,"Teams Ranking","N_RankingTeamSheetTitle","Classement des équipes","Teams Ranking","Ranking Squadre","Ranking Equipos","Ranking Equips"]
[null,"Players Ranking","N_RankingSheetTitle","Classement des joueurs","Players Ranking","Ranking Giocatori","Ranking Jugadores","Ranking Jugadors"]
[null,"Ranked Teams list","N_RankedTeams_list","Liste des équipes classées","Ranked Teams list","Lista dei squadre qualificati","Lista de equipos clasificados","Llista d'equips classificats"]
[null,"Ranked players list","N_RankedPlayers_list","Liste des joueurs classés","Ranked players list","Lista dei giocatori qualificati","Lista de jugadores clasificados","Llista de jugadors classificats"]
[null,"Criteria on players ranking","N_Criteria_on_WR","Critère sur le classement des joueurs","Criteria on players ranking","Criterio del ranking giocatori","Criterio del ranking de jugadores","Criteri de el rànquing de jugadors"]
[null,{"$f":"HLOOKUP(Language,D$2:L$1113,ROW()-1,FALSE)","v":"Number of points in ranking"},"N_NbPointsInRanking","Nombre de points au classement","Number of points in ranking","Numero di punti nel ranking","Numero de puntos del ranking","Nombre de punts de el rànquing"]
[null,"Update if necessary the ranking (in case of the ranking is used in ranking criterias for groups or in case of using Draw function)","N_Ranking","Mettre à jour si besoin le classement Mondial (dans le cas où ce classement est utilisé dans les critères de classement de poules ou pour l'utilisation de la fonctionnalité de tirage au sort)","Update if necessary the ranking (in case of the ranking is used in ranking criterias for groups or in case of using Draw function)","Aggiornare se necessario la classifica (in caso di classifica viene utilizzata nei criteri di classificazione per gruppi o in caso di utilizzo della funzione Draw)","Actualizar si es necesario la clasificación (en caso de que la clasificación se use en los criterios de clasificación para grupos o en el caso de usar la función Sorteo)","Actualitzar si cal la classificació (en cas que la classificació es faci servir en els criteris de classificació per grups o en el cas d'usar la funció Sorteig)"]
[null,"The selected file seams not to be a FISTF world ranking file. If it's really a FISTF WR file, it's possible that the file format has changed; in this case it's necessary to upgrade the import function of the GMFT and thus contact the GMFT support.","N_NotAFistfWRFile","Le fichier sélectionné n'est semble-t-il pas un fichier de classement FISTF. Si ce n'est pas le cas, il se peut que le format du fichier ait changé et qu'il faille modifier la fonction d'import; contacter dans ce cas le support GMFT.","The selected file seams not to be a FISTF world ranking file. If it's really a FISTF WR file, it's possible that the file format has changed; in this case it's necessary to upgrade the import function of the GMFT and thus contact the GMFT support.","Il file selezionato non corrisponde al file FISTF world ranking. Se è il FISTF WR file è possibile che il formato del file sia cambiato; in questo caso è necessario aggiornare con la funzione importo di GMFT e contatta il GMFT supporto.","El archivo seleccionado parece no ser un archivo de clasificación mundial FISTF. Si realmente es un archivo FISTF WR, es posible que el formato del archivo haya cambiado; en este caso es necesario actualizar la función de importación de GMFT y así contactar con el soporte de GMFT.","L'arxiu seleccionat sembla no ser un arxiu de classificació mundial FISTF. Si realment és un arxiu FISTF WR, és possible que el format de l'arxiu hagi canviat; en aquest cas cal actualitzar la funció d'importació de GMFT i així contactar amb el suport de GMFT."]
[null,"The selected file seams not to be a GMFT Scorer Table file. If it's really a GMFT Scorer Table file, it's possible that the file format has changed despite the protections prohibiting other modifications than the registration of scores.","N_NotAScorerTableFile","Le fichier sélectionné n'est semble-t-il pas un fichier de Table de Marque GMFT. Si ce n'est pas le cas, il se peut que le format du fichier ait changé malgré les protections initiales interdisant tout autre modification que la saisie des scores.","The selected file seams not to be a GMFT Scorer Table file. If it's really a GMFT Scorer Table file, it's possible that the file format has changed despite the protections prohibiting other modifications than the registration of scores.","Il file selezionato non corrisponde a un file GMFT Score. Se è un file GMFT Score, è possibile che il formato del file sia cambiato nonostante le protezioni proibiscono altre modificazioni dopo la registrazioni dei punteggi.","El archivo seleccionado parece no ser un archivo de tabla de puntuación GMFT. Si se trata de un archivo de tabla de puntuación GMFT, es posible que el formato del archivo haya cambiado a pesar de que las protecciones prohíben otras modificaciones además del registro de puntuaciones.","L'arxiu seleccionat sembla no ser un arxiu de taula de puntuació GMFT. Si es tracta d'un arxiu de taula de puntuació GMFT, és possible que el format de l'arxiu hagi canviat tot i que les proteccions prohibeixen altres modificacions més del registre de puntuacions."]
[null,"Total number of ranked players","N_TotalNbRankedPlayers","Nombre total de joueurs classés","Total number of ranked players","Numero Totale di giocatori","Número total de jugadores clasificados","Nombre total de jugadors classificats"]
[null,"Total number of ranking lines","N_TotalNbRankingLines","Nombre total de lignes de classement","Total number of ranking lines","Numero totale di righe ranking.","Número total de líneas de clasificación","Nombre total de línies de classificació"]
[null,"Import the FISTF ranking file","N_Import_FISTF_File","Importer le fichier de classement FISTF","Import the FISTF ranking file","Importa FISTF ranking file","Importar el archivo de clasificación FISTF","Importa el fitxer de classificació FISTF"]
[null,"Use the FISTF World Ranking (Ranking sheet) as the licenced players database (used in the Checkin sheet as players list).","N_RankingAsLicenceList","Utiliser le Classement Mondial des joueurs (feuille Ranking) comme base de données des licenciés (utilisée dans la feuille Checkin comme liste des joueurs).","Use the FISTF World Ranking (Ranking sheet) as the licenced players database (used in the Checkin sheet as players list).","Usa il FISTF WR come lista dei giocatori (usa la pagina checkin come lista giocatori). ","Utilice la clasificación mundial de FISTF (hoja de clasificación) como base de datos de jugadores con licencia (utilizada en la hoja de registro como lista de jugadores).","Utilitzeu la classificació mundial de FISTF (full de classificació) com a base de dades de jugadors amb llicència (utilitzada en el full de registre com a llista de jugadors)."]
[null,"Date of Birth if no lic. N°","N_DateOfBirth","Date Naiss. si non licencié","Date of Birth if no lic. N°","Data di Nascita non autorizzata","Fecha de nacimiento si no hay Nº Licencia","Data de naixement si no hi ha Núm Llicència"]
[null,"Your selection must have only one line !","N_OnlyOneLineSelection","Vous sélection ne doit porter que sur une seule ligne !","Your selection must have only one line !","La tua selezione deve avere solo una riga!","¡Su selección debe tener solo una línea!","La seva selecció ha de tenir només una línia!"]
[null,"Your selection is not on a session row (the first session can't be used) ",{"$f":"NAMEOF(B336)","v":"N_NotSessionRow"},"Vous n'êtes pas positionné sur une ligne de session (la première session ne peut être utilisée).","Your selection is not on a session row (the first session can't be used) ","La tua selezione non è un rigo di sessione (la prima sessione non può essere usata).","Su selección no está en una fila de sesión (la primera sesión no se puede usar)","La seva selecció no està en una fila de sessió (la primera sessió no es pot fer servir)"]
[null,"Insert before / Delete selected session","N_Add_Delete_Session","Insérer avant / Supprimer session sélectionnée","Insert before / Delete selected session","Inserisci prima/cancella sessione selezionata","Insertar antes / Eliminar sesión seleccionada","Inserir abans / Eliminar sessió seleccionada"]
[null,"Add / Delete last session","N_Add_Delete_Last_Session","Insérer / Supprimer dernière session","Add / Delete last session","Aggiungi / Cancella ultima sessione","Agregar / Eliminar última sesión","Afegir / Eliminar última sessió"]
[null,"Move or delete selected matches","N_Move_Delete_Matches","Déplacer ou supprimer les matches sélectionnés","Move or delete selected matches","Muovi o cancella partite selezionate","Mover o eliminar partidos seleccionados","Moure o eliminar partits seleccionats"]
[null,"Move selected matches : Before/After session","N_Move_Matches_To_Session","Déplacer les matches sélectionnés : Avant/Après session","Move selected matches : Before/After session","Muovi partite selezionate: Prima/Dopo sessione","Mover partidos seleccionados: Antes / Después de la sesión","Moure partits seleccionats: Abans / Després de la sessió"]
[null,"Copy scores and unvalidate","N_Copy_Unvalidate","Copier les scores et dévalider","Copy scores and unvalidate","Copia risultati e non valida","Copiar puntuaciones e invalidar","Copiar puntuacions i invalidar"]
[null,"Copy scores and validate","N_Copy_Validate","Copier les scores et valider","Copy scores and validate","Copia risultati e valida","Copiar puntajes y validar","Copiar puntuacions i validar"]
[null,"Delete deprecated matches (#REF!)","N_Delete_Bad_Ref","Supprimer matches obsolètes (#REF!)","Delete deprecated matches (#REF!)","Cancella partite obsolate","Eliminar partidos obsoletas (#REF!)","Eliminar partits obsoletes (#REF!)"]
[null,"Lock worksheets to avoid manipulation errors","N_LockSheets","Verrouiller les feuilles pour éviter les erreurs de manipulation","Lock worksheets to avoid manipulation errors","Blocca foglio per evitare errori di manipolazione","Bloquear hojas de trabajo para evitar errores de manipulación","Bloquejar fulls de treball per evitar errors de manipulació"]
[null,"Substitute","N_Substitute","Remplaçant","Substitute","Sostituto","Sustituto","Sustitut"]
[null,"Substitute codes for team matches","N_Substitute_Codes","Codes de match pour les remplaçants","Substitute codes for team matches","Codice sostituto per partite a squadre","Códigos sustitutos para partidos por equipos","Codis substituts per a partits per equips"]
[null,"Nb refereed matches","N_Nb_Refereeing","Nb Matches arbitrés","Nb refereed matches","Nb arbitri partite","Nº partidos arbitrados","Nº partits arbitrats"]
[null,"Session of the last refereeing","N_LastHourRefereeing","Session de dernier arbitrage","Session of the last refereeing","Sessione dell'ultimo arbitraggio","Sesión del último arbitraje","Sessió de l'últim arbitratge"]
[null,"This list make you the possibility to adapt the \"list of values\" available in the referee fields of the planning sheet for an easier use.","N_RefereeListReason","Cette liste vous permet d'adapter la \"liste de valeurs\" disponible dans les champs \"Abitre\" de la feuille Planning afin qu'elle soit plus facile à utiliser.","This list make you the possibility to adapt the \"list of values\" available in the referee fields of the planning sheet for an easier use.","Questa lista ti consente di adattare l\"elenco dei valori\" disponibili nei campi dell'arbitro del foglio dei turni per un utilizzo più semplice.","Esta lista le brinda la posibilidad de adaptar la \"lista de valores\" disponible en los campos de árbitros de la hoja de planificación para un uso más fácil.","Aquesta llista li brinda la possibilitat d'adaptar la \"llista de valors\" disponible en els camps d'àrbitres del full de planificació per a un ús més fàcil."]
[null,"Use filters below to sort referee list (filtering has no effect)","N_RefereeList","Utiliser les filtres ci-dessous pour trier la liste des arbitres (le filtrage n'a pas d'effet)","Use filters below to sort referee list (filtering has no effect)","Usa filtri di sotto per creare lista arbitri (i filtri non hanno effetti)","Use los filtros a continuación para ordenar la lista de árbitros (el filtrado no tiene ningún efecto)","Utilitza els filtres a continuació per ordenar la llista d'àrbitres (el filtrat no té cap efecte)"]
[null,"You can erase lines or add some characteristics within criterias Nb 1 to 4","N_RefereeListAdapt","Vous pouvez effacer des lignes ou ajouter des caractéristiques dans les critères supplémentaires (1 à 4).","You can erase lines or add some characteristics within criterias Nb 1 to 4","Puoi cancellare o aggiungere qualche caratteristiche dal criterio nb1 a 4","Puede borrar líneas o agregar algunas características dentro de los criterios Nº 1 a 4","Pot esborrar línies o afegir algunes característiques dins dels criteris Nº 1 a 4"]
[null,"When you validate chekin in the \"checkin\" sheet, this list is completly erased and restored and your personnal criterias are all suppressed","N_RefereeListValidate","Lorsque vous validez les inscriptions dans la feuille \"Checkin\" cette liste est complètement réinitialisée et vos saisies complémentaires dans les critères supplémentaires sont effacés.","When you validate chekin in the \"checkin\" sheet, this list is completly erased and restored and your personnal criterias are all suppressed","Quando convalidi la lista partecipanti dalla pagina \"checkin\", questa lista è completamente cancellata e ricreata e i tuoi criteri sono tutti soppressi","Cuando valida el registro en la hoja de \"registro\", esta lista se borra y restaura por completo y sus criterios personales se eliminan","Quan valida el registre en el full de \"registre\", aquesta llista s'esborra i restaura completament i els seus criteris personals s'eliminen"]
[null,"Referee List for usage in the planning","N_RefereeSheetTitle","Liste des arbitres pour utilisation dans le planning","Referee List for usage in the planning","Lista arbitri da usare nei turni","Lista de árbitros para su uso en la planificación","Llista d'àrbitres per al seu ús en la planificació"]
[null,"Your criteria","N_YourCriteria","Votre critère","Your criteria","Tuoi criteri","Tu Criterio","El teu Criteri"]
[null,"Adapt the planning then fillin scores directly in the planning ","N_AdaptPlanning","Adapter le planning puis saisir les résultats directement dans le planning","Adapt the planning then fillin scores directly in the planning ","Adatta i tuoi turni e compila i punteggi direttamente nei turni","Adapte la planificación y luego complete las puntuaciones directamente en la planificación","Adapti la planificació i després completi les puntuacions directament en la planificació"]
[null,"Fillin players after draw","N_FillinPlayers","Renseigner les joueurs après le tirage au sort","Fillin players after draw","Riempi giocatori dopo il sorteggio","Rellenar jugadores después del sorteo","Omplir jugadors després de l'sorteig"]
[null,"Adapt the referee list to your needs","N_ManageRefereeList","Adapter la liste des arbitres à vos besoins","Adapt the referee list to your needs","Adatta la lista arbitraggio per le tue necessità","Adapte la lista de árbitros a sus necesidades","Adapti la llista d'àrbitres a les seves necessitats"]
[null,"Show or hide Draw sheets","N_DrawManage","Voir ou masquer les feuilles de tirage au sort","Show or hide Draw sheets","Mostra o nascondi pagina disegno","Mostrar u ocultar hojas de sorteo","Mostrar o amagar fulles de sorteig"]
[null,"Display or print player's own planning","N_ManageTimeline","Afficher ou imprimer le planning de chaque joueur","Display or print player's own planning","Mostra o stampa i tuoi turni dei giocatori","Mostrar o imprimir la planificación de los jugadores","Mostra o imprimir la planificació dels jugadors \n"]
[null,"Represents the room plan with pitch's names","N_ManageVenue","Représente le plan de la salle avec le nom des tables","Represents the room plan with pitch's names","Rappresenta il piano della stanza con i nomi delle tavoli","Representa el plano de la sala con los nombres de las mesas","Representa el pla de la sala amb els noms de les taules \n"]
[null,"Consult players' statistics","N_ManageStats","Consulter les statistiques des joueurs","Consult players' statistics","Consulta le statische dei giocatori","Consultar las estadísticas de los jugadores","Consultar les estadístiques dels jugadors \n"]
[null,"Show podium for trophy presentation","N_ManagePodium","Afficher les podium pour la remise des trophées","Show podium for trophy presentation","Mostra il podio per la presentazione del trofeo","Mostrar podio para la presentación de trofeos","Mostra podi per a la presentació de trofeus"]
[null,"Export Data to the GMFT Web Site","N_ExportDataToWebSite","Exporter les données vers le Site Web GMFT","Export Data to the GMFT Web Site","Esporta dati per GMFT Web Site","Exportar datos al sitio web de GMFT","Exportar dades a la pàgina web de GMFT"]
[null,"Dispatch results after the tournament","N_Dispatch_Results","Diffuser les résultats après la compétition","Dispatch results after the tournament","Invia i risultati dopo il torneo","Envío de resultados después del torneo","Enviament de resultats després de l'torneig \n"]
[null,"By printing results","N_Printing","En imprimant les résultats","By printing results","Stampa i risultati","Imprimiendo resultados","imprimint resultats \n"]
[null,"By generating FISTF officials result forms","N_Exporting","En générant les formulaires de résultats officiels de la FISTF","By generating FISTF officials result forms","Generati da formule ufficiali FISTF","Generando formularios de resultados oficiales FISTF","Generant formularis de resultats oficials FISTF \n"]
[null,"GMFT Welcome","N_AboutForm_Caption","Accueil GMFT","GMFT Welcome","Benvenuto in GMFT","GMFT Bienvenidos","GMFT Benvinguts"]
[null,"This tools aims to help the management of matches of a tournament. The objective is to make organizers the possibility to concentrate their efforts on the competition itself having a tool in charge of planning (hours, tables, referees) and automatic and real time computation of ranking, successive rounds, and sometimes referees for auto-refereeeing events.\nWithout User Guide for the moment, you are encouraged to contact the author (gmftinfo@gmail.com) to help you operating the tool for your tournament.\n\nHope you'll enjoy this tool !","N_AboutForm_DescriptionLabel","Cet outil a pour but d'aider à la gestion des matches lors des compétitions. L'objectif visé est de permettre aux organisateurs de se concentrer sur la compétition en se reposant sur un outil qui permet de planifier les épreuves (horaires, tables, arbitres) et de calculer automatiquement en temps réel les classements, les tours successifs, parfois même les arbitres pour les épreuves en auto-arbitrage.\nEn l'absence de Manuel Uitilisateur pour l'instant, nous vous conseillons vivement de contacter son auteur (gmftinfo@gmail.com) pour vous aider à mettre en oeuvre l'outil pour votre compétition.\n\nEn espérant que cet outil vous sera utile !","This tools aims to help the management of matches of a tournament. The objective is to make organizers the possibility to concentrate their efforts on the competition itself having a tool in charge of planning (hours, tables, referees) and automatic and real time computation of ranking, successive rounds, and sometimes referees for auto-refereeeing events.\nWithout User Guide for the moment, you are encouraged to contact the author (gmftinfo@gmail.com) to help you operating the tool for your tournament.\n\nHope you'll enjoy this tool !","Questi strumenti mirano a contribuire alla gestione delle partite di un torneo. L'obiettivo è quello di rendere gli organizzatori la possibilità di concentrare i loro sforzi sulla concorrenza stessa con un attrezzo responsabile della pianificazione (orari, tabelle, arbitri) e calcolo automatico e in tempo reale della graduatoria, dei successivi round e talvolta gli arbitri per gli eventi autofereanti. Senza la Guida dell'utente per il momento, ti invitiamo a contattare l'autore (gmftinfo@gmail.com) per aiutarti a utilizzare lo strumento per il tuo torneo. Spero che ti piaccia!","Esta herramienta tiene como objetivo ayudar a la gestión de partidos de un torneo. El objetivo es que los organizadores tengan la posibilidad de concentrar sus esfuerzos en la propia competición contando con una herramienta encargada de la planificación (horas, tablas, árbitros) y cómputo automático y en tiempo real de rankings, rondas sucesivas, y en ocasiones árbitros para eventos de auto-arbitraje. .\nSin la Guía del usuario por el momento, le recomendamos que se ponga en contacto con el autor (gmftinfo@gmail.com) para que le ayude a utilizar la herramienta para su torneo.\n¡Espero que disfrutes de esta herramienta!","Aquesta eina té com a objectiu ajudar a la gestió de partits d'un torneig. L'objectiu és que els organitzadors tinguin la possibilitat de concentrar els seus esforços en la mateixa competició comptant amb una eina encarregada de la planificació (hores, taules, àrbitres) i còmput automàtic i en temps real de rànquings, rondes successives, i en ocasions àrbitres per esdeveniments d'auto-arbitratge. .\nSense la Guia de l'usuari de moment, us recomanem que us poseu en contacte amb l'autor (gmftinfo@gmail.com) perquè l'ajudi a utilitzar l'eina per a la seva torneig.\nEspero que gaudeixis d'aquesta eina!"]
[null,"This software is provided AS IS and free of charge.\nThis software is not warranty.\nThe author, Roger Trouillard, is not responsible of any damage due to the use of this software.","N_AboutForm_NoWarrantyLabel","Cet outil logiciel vous est mis à disposition gratieusement par Roger Trouillard.\nLe bon fonctionnement de ce logiciel n'est pas garanti. De même, l'auteur ne saurait être responsable des anomalies ou dégradations qui résulteraient de l'utilisation de ce logiciel.","This software is provided AS IS and free of charge.\nThis software is not warranty.\nThe author, Roger Trouillard, is not responsible of any damage due to the use of this software.","Questo software è fornito così come è ed è gratuito. Il software non è garantito. L'autore, Roger Trouillard, non è responsabile di qualsiasi danno durante l'uso di questo software.","Este software se proporciona TAL CUAL y es gratuito.\nEste software no es garantía.\nEl autor, Roger Trouillard, no es responsable de ningún daño debido al uso de este software.","Aquest software es proporciona TAL QUAL i és gratuït.\nAquest software no és garantia.\nL'autor, Roger Trouillard, no és responsable de cap dany a causa de l'ús d'aquest software"]
[null,"The football passion at fingertips !","N_AboutForm_SloganLabel","La passion du football au bout des doigts !","The football passion at fingertips !","La passione del calcio da tavolo","la pasión del Futbol Mesa !","La Passió del Futbol Taula !"]
[null,"Version","N_AboutForm_VersionLabel","Version","Version","Versione","Versión","Versiò"]
[null,"Welcome in GMFT\nthe tool to manage\nTable Football Tournaments","N_AboutForm_WelcomeLabel","Bienvenue dans GMFT\nl'outil de Gestion des Matches de \nFootball de Table","Welcome in GMFT\nthe tool to manage\nTable Football Tournaments","Benvenuto in GMFT lo strumento per gestire i Tornei di Calcio da Tavolo","Bienvenidos a GMFT\nla herramienta para gestionar\nTorneos de Fútbol Mesa","Benvinguts a GMFT\nl'eina per gestionar\nTornejos de Futbol Taula"]
[null,"Event title","N_Layout","Titre de la compétition","Event title","Titolo della competizione","Título del Evento","Títol de l'Esdeveniment \n"]
[null,"Visualizing and shifting page breaks before printing","N_PageBreak","Visualiser et décaler les sauts de pages avant d'imprimer ","Visualizing and shifting page breaks before printing","Visualizza e sposta le interruzioni di pagina prima di stampare.","Visualización y cambio de saltos de página antes de imprimir","Visualització i canvi de salts de pàgina abans d'imprimir"]
[null,"Start printing","N_StartPrint","Lancer l'impression","Start printing","Inizia Stampa","Empiece a imprimir","Comenceu a imprimir \n"]
[null,"Normal View","N_NormalView","Vue normale","Normal View","Visione Normale","Vista Normal","Vista Normal"]
[null,"Event date","N_EventDate","Date de la compétition","Event date","Data del Torneo","Fecha del Evento","Data de l'Esdeveniment \n"]
[null,"Hide display of player formulas without score","N_HidePlayerFormulas","Masquer l'affichage des formules des joueurs en l'absence de scores","Hide display of player formulas without score","Nascondi la vista della formula dei giocatori senza punteggio","Ocultar la visualización de fórmulas de jugador sin puntuación","Amaga la visualització de fórmules de jugador sense puntuació \n"]
[null,"Planning Export","N_ExportPlanning","Exporter le planning","Planning Export","Esporta Turni","Exportar Planificación","Exportar Planificació \n"]
[null,"Groups Export","N_ExportGroups","Exporter les groupes","Groups Export","Esporta Gironi","Exportar Grupos","Exportar Grups"]
[null,"Stats Export","N_ExportStats","Exporter les statistiques","Stats Export","Esporta Statistiche","Exportar Estadisticas","Exportar Estadisticas"]
[null,"Results Export","N_ExportResults","Exporter les résultats","Results Export","Esporta Risultati","Exportar Resultados","Exportar Resultats"]
[null,"Detailed matches Export","N_ExportMatches","Exporter le détail des matches","Detailed matches Export","Esporta dettagli delle partite","Exportar Detalles Partidos","Exportar Detalls Partis"]
[null,"Scoresheets generation","N_ExportScoresheets","Générer feuilles de match","Scoresheets generation","Genera punteggi","Generar hojas de puntuación","Generar fulls de puntuació \n"]
[null,"First planning session to export","N_FirstSessionToExport","Première session de planning à exporter","First planning session to export","Esporta la prima sessione dei turni","Primera sesión de planificación para exportar","Primera sessió de planificació per exportar \n"]
[null,"Starting session","N_StartSession","Session de départ","Starting session","Inizia sessione","Inicio de Sesión","Inici de Sessió \n"]
[null,"Number of planning sessio to export","N_NbOfSessionToExport","Nombre de sessions de planning à exporter","Number of planning sessio to export","Esporta numero di sessione dei turni","Exportar el número de turnos de la sesión","Exporta el nombre de torns de la sessió \n"]
[null,"Number of sessions","N_NbOfSession","Nombre de sessions","Number of sessions","numero di sessione","Número de Sesiones","Número de Sesions"]
[null,"Web Site export parameters","N_WebSiteExportForm_Caption","Paramètres d'export sur le Site Web ","Web Site export parameters","Parametri di esportazione Web Site","Parámetros de exportación del sitio web","Paràmetres d'exportació de la pàgina web \n"]
[null,{"$f":"HLOOKUP(Language,D$2:L$1113,ROW()-1,FALSE)","v":"Registration export parameters"},{"$f":"NAMEOF(B390)","v":"N_RegistrationExportForm_Caption"},"Paramètres d'export des Inscriptions ","Registration export parameters","Parametri di esportazione della registrazione","Parámetros de exportación de registro","Paràmetres d'exportació de registre \n"]
[null,{"$f":"HLOOKUP(Language,D$2:L$1113,ROW()-1,FALSE)","v":"Parameters for Web Site export"},"N_WebSiteExportForm_Title","Paramètres pour l'export sur le Site Web","Parameters for Web Site export","Esporta parametri per web site","Exporta parametros al sitio web","Exporta paràmetres a la pàgina web \n"]
[null,{"$f":"HLOOKUP(Language,D$2:L$1113,ROW()-1,FALSE)","v":"Parameters for Registrations export"},{"$f":"NAMEOF(B392)","v":"N_RegistrationExportForm_Title"},"Paramètres pour l'export des inscriptions","Parameters for Registrations export","Esporta parametri della registrazione","Parámetros para la exportación de registros","Paràmetres per a l'exportació de registres \n"]
[null,"Planning export parameters","N_ExportForm_Planning_Caption","Paramètres d'export du planning","Planning export parameters","esporta parametri per i turni","Parametros de exportacion del Planning","Paràmetres d'exportacion de l'Planning \n"]
[null,"Parameters for planning export","N_ExportForm_Planning_Title","Paramètres pour l'export du planning","Parameters for planning export","Parametri di esportazione dei turni","Parametros para exportar el planning","Paràmetres per exportar el planning \n"]
[null,"Results export parameters","N_ExportForm_Result_Caption","Paramètres d'export des résultats","Results export parameters","Esporta parametri risultati","Parámetros de exportación de resultados","Paràmetres d'exportació de resultats \n"]
[null,"Parameters for results export","N_ExportForm_Result_Title","Paramètres pour l'export des résultats","Parameters for results export","Parametri per esportare risultati","Parámetros para la exportación de resultados","Paràmetres per a l'exportació de resultats \n"]
[null,"Scorer Table export parameters","N_ExportForm_ScorerTable_Caption","Paramètres d'export de la Table de Marque","Scorer Table export parameters","Parametri di esportazione dei punteggi","Parámetros de exportación de los resultados","Paràmetres d'exportació dels resultats \n"]
[null,"Parameters for Scorer Table export","N_ExportForm_ScorerTable_Title","Paramètres pour l'export de la Table de Marque","Parameters for Scorer Table export","Esporta parametri per punteggi","Parámetros para la exportación de resultados","Paràmetres per a l'exportació de resultats \n"]
[null,"Scoresheets export parameters","N_ExportForm_Scores_Caption","Paramètres d'export des feuilles de match","Scoresheets export parameters","Esporta parametri per fogli di punteggio","Parámetros de exportación de hojas de puntuación","Paràmetres d'exportació de fulls de puntuació \n"]
[null,"Parameters for scoresheets export","N_ExportForm_Scores_Title","Paramètres pour l'export des feuilles de match","Parameters for scoresheets export","Parametri per esportare fogli di punteggio","Parámetros para la exportación de hojas de puntuación","Paràmetres per a l'exportació de fulls de puntuació \n"]
[null,"Individual checkin Form","N_CheckinForm_Caption","Formulaire d'inscription individuel","Individual checkin Form","Modulo di check-in individuale","Formulario de registro individual","Formulari de registre individual \n"]
[null,"Checkin Form",{"$f":"NAMEOF(B402)","v":"N_CheckinForm_Title"},"Formulaire d'inscription","Checkin Form","Modulo Check-in","Formulario de Inscripción","Formulari d'Inscripció \n"]
[null,{"$f":"HLOOKUP(Language,D$2:L$1113,ROW()-1,FALSE)","v":"Team Number within club"},{"$f":"NAMEOF(B403)","v":"N_TeamNumber"},"N° Equipe du club","Team Number within club","N° Squadra del club","N° Equipo del club","N° Equip dins del club"]
[null,"Referees choice parameters","N_RefereesCategory_Caption","Paramètres de choix des arbitres","Referees choice parameters","Parametri di scelta per gli arbitri","Parámetros de elección de árbitros","Paràmetres d'elecció d'àrbitres \n"]
[null,"Select referees","N_RefereesCategory_Title","Sélection des arbitres","Select referees","Seleziona arbitri","Seleccionar árbitros","seleccionar àrbitres \n"]
[null,"Start session number","N_ExportForm_StartSession","Numéro de session de départ","Start session number","Inizia il numero di sessione","Número Inicio de Sesión","Nombre Inici de Sessió \n"]
[null,"GMFT Web Site directory path","N_WebSiteExportForm_WebSiteRootPath","Chemin du répertoire du Site Web GMFT","GMFT Web Site directory path","Percorso della directory di GMFT Web Site","Ruta del directorio del sitio web de GMFT","Ruta directori de la pàgina web de GMFT"]
[null,{"$f":"HLOOKUP(Language,D$2:L$1113,ROW()-1,FALSE)","v":"Registrations Site directory path"},{"$f":"NAMEOF(B408)","v":"N_RegistrationExportForm_WebSiteRootPath"},"Chemin du répertoire du Site des Inscriptions","Registrations Site directory path","Percorso della directory di Registrazione Site","Ruta del directorio del sitio de registros","Ruta directori de el lloc de registres \n"]
[null,"Number of sessions to export","N_ExportForm_NumberOfSessions","Nombre de sessions à exporter","Number of sessions to export","Numero di sessioni da esportare","Número de sesiones para exportar","Nombre de sessions per exportar \n"]
[null,"Export individual matches for team results","N_ExportForm_ExportIndMatches","Exporter les matches individuels en par équipe","Export individual matches for team results","Esporta partite individuali per risultati a squadre","Exportar partidos individuales para los resultados del equipo","Exportar partits individuals per als resultats de l'equip \n"]
[null,"Filters","N_FilterFrame","Filtres","Filters","Filtri","Filtros","Filtres"]
[null,"Stage Pattern","N_ExportForm_StagePattern","Motif pour le stade de l'épreuve","Stage Pattern","Modello di fase","Modelo de Evento","Model d'Esdeveniment \n"]
[null,"Table Pattern","N_ExportForm_TablePattern","Motif pour les tables","Table Pattern","Modello dei tavoli","Modelo de Mesas","Model de Taules \n"]
[null,"Player or Team Pattern","N_ExportForm_PlayerOrTeamPattern","Motif pour les joueurs ou équipes","Player or Team Pattern","Modello dei giocatori o delle squadre","Modelo de Jugador o Equipo","Model de jugador o Equip \n"]
[null,"Patterns to find into cell values.\nFor players and teams, the filter applies on player 1, player2 and Referee.\nCase unsensitive.","N_ExportForm_CommentPatterns","Motif à trouver dans les valeurs de cellule.\nPour les joueurs et équipes, la recherche porte sur Joueur 1, Joueur 2 et Arbitre.\nRecherche non sensible à la casse.","Patterns to find into cell values.\nFor players and teams, the filter applies on player 1, player2 and Referee.\nCase unsensitive.","Modelli da trovare nei valori delle celle. Per i giocatori e le squadre, il filtro si applica al giocatore 1, al giocatore2 e all'arbitro. Caso non influente","Patrones para encontrar en valores de celda.\nPara jugadores y equipos, el filtro se aplicó al jugador 1, jugador2 y árbitro.\nNo distingue entre mayúsculas y minúsculas.","Patrons per trobar en valors de cel·la.\nPer jugadors i equips, el filtre es va aplicar a el jugador 1, Jugador2 i àrbitre.\nNo distingeix entre majúscules i minúscules."]
[null,"Invalid session number","N_InvalidSessionNumber","Numéro de session invalide","Invalid session number","Numero di sessioni non valide","Número de sesión invalido","Nombre de sessió invàlid \n"]
[null,"Default value for Start Session","N_DefaultStartSessionNmber","Valeur par défaut de la session de départ","Default value for Start Session","Valore predefinito per l'inizio di sessione","Valor predeterminado para iniciar sesión","Valor per defecte per iniciar sessió \n"]
[null,"Default value of the number of sessions","N_DefaultNumberOfSessions","Valeur par défaut du nombre de sessions","Default value of the number of sessions","Valore predefinito dei numeri di sessione","Valor predeterminado del número de sesiones","Valor Per defecte de l'nombre de sessions \n"]
[null,"Default value of the export indicator of individuals matches for team results","N_DefaultExportIndMAtches","Valeur par défaut de l'indicateur d'export des matches individuels pour les résultats par équipe","Default value of the export indicator of individuals matches for team results","Valore predefinito dell'indicatore di esportazione dei singoli giocatori per i risultati della squadra","Valor predeterminado del indicador de exportación de resultados individuales para los resultados del equipo","Valor Per defecte de l'indicador d'exportació de resultats individuals per als resultats de l'equip \n"]
[null,"Scoresheet","N_ScoreSheet","Feuille de Match","Scoresheet","Pagina punti","Hoja de puntuaciones","Full de puntuacions"]
[null,"Substitute","N_Substitue","Remplaçant","Substitute","sostituto","Sustituto","Sustitut"]
[null,"No event created previously to print !","N_NoEventToPrint","Créer au préalable une compétition avant de lancer l'impression !","No event created previously to print !","Nessuno evento creato prima della stampa","¡Ningún evento creado previamente para imprimir!","Cap esdeveniment creat prèviament per imprimir! \n"]
[null,"Function not yet available.","N_ToBeDone","Fonctionnalité non encore disponible.","Function not yet available.","Funziona non ancora a disposizione","Función aún no disponible.","Funció encara no disponible. \n"]
[null,"The Excel calculation mode has been set to \"Manual\" for performance purposes.\nBefore leaving GMFT, you can click on the \"Manual Calculation\" button  in the ribbon to reset calculation mode to \"Automatic\".","N_CalculationMode","Le mode de calcul Excel a été positionné en mode \"Manuel\" pour de meilleures performances.\nAvant de quitter GMFT, vous pouvez cliquer sur le bouton \"Calcul Manuel\" dans le ruban,  pour basculer en automatique.","The Excel calculation mode has been set to \"Manual\" for performance purposes.\nBefore leaving GMFT, you can click on the \"Manual Calculation\" button  in the ribbon to reset calculation mode to \"Automatic\".","La modalità di calcolo Excel è stata impostata su \"Manuale\" a fini di prestazioni.\nPrima di lasciare GMFT, è possibile fare clic sul pulsante \"Calcolo manuale\" nella barra multifunzione per ripristinare la modalità di calcolo su \"Automatico\".","El modo de cálculo de Excel se ha establecido en \"Manual\" para fines de rendimiento.\nAntes de salir de GMFT, puede hacer clic en el botón \"Cálculo manual\" en la cinta para restablecer el modo de cálculo a \"Automático\".","La manera de càlcul d'Excel s'ha establert en \"Manual\" per a fins de rendiment.\nAbans de sortir de GMFT, pot fer clic al botó \"Càlcul manual\" a la cinta per restablir la manera de càlcul a \"Automàtic\""]
[null,"Calculation Mode","N_SetCalculationMode_Label","Mode de Calcul","Calculation Mode","Modalità di Calcolo","Modalidad de Cálculo","Modalitat de Càlcul \n"]
[null,"Delete this sheet","N_DeleteSheet","Supprmier cette feuille","Delete this sheet","Cancella questa pagina","Cancelar esta pagina","Cancel-la aquesta pàgina"]
[null,"The selected file seams not to be a FISTF licenced clubs file. If it's really a FISTF licence list file, it's possible that the file format has changed; in this cas it's necessary to upgrade the import function of the GMFT and thus contact the GMFT support.","N_NotAFistfLicencesFile","Le fichier sélectionné n'est semble-t-il pas un fichier FISTF de liste de licences. Si ce n'est pas le cas, il se peut que le format du fichier ait changé et qu'il faille modifier la fonction d'import; contacter dans ce cas le support GMFT.","The selected file seams not to be a FISTF licenced clubs file. If it's really a FISTF licence list file, it's possible that the file format has changed; in this cas it's necessary to upgrade the import function of the GMFT and thus contact the GMFT support.","Il file selezionato non è un file di licenza FISTF. Se è un file di licenza FISTF, è possibile che il formato di file sia cambiato; in questo caso è necessario aggiornare la funzione di importazione del GMFT e quindi contattare il supporto GMFT.","El archivo seleccionado parece no ser un archivo de clubes con licencia FISTF. Si es realmente un archivo de lista de licencias FISTF, es posible que el formato del archivo haya cambiado; en este caso es necesario actualizar la función de importación del GMFT y así contactar con el soporte de GMFT.","L'arxiu seleccionat sembla no ser un arxiu de clubs amb llicència FISTF. Si és realment un arxiu de llista de llicències FISTF, és possible que el format de l'arxiu hagi canviat; en aquest cas cal actualitzar la funció d'importació de l'GMFT i així contactar amb el suport de GMFT. \n"]
[null,"The number of lines of the Club List is less than the number of clubs within the FISTF list. Please increase the number of lines of the GMFT Club list to : ","N_NotEnoughClubListLines","Le nombre de lignes de la liste des clubs n'est pas suffisant pour importer la liste des clubs FISTF. Augmenter le nombre de lignes de la liste jusqu'à : ","The number of lines of the Club List is less than the number of clubs within the FISTF list. Please increase the number of lines of the GMFT Club list to : ","Il numero di righe dell'Elenco Club è inferiore al numero di club nell'elenco FISTF. Aumenta il numero di righe dell'elenco GMFT Club a:","El número de líneas de la Lista de clubes es menor que el número de clubes dentro de la lista FISTF. Aumente el número de líneas de la lista de GMFT Club a:","El nombre de línies de la Llista de clubs és menor que el nombre de clubs dins de la llista FISTF. Augmenti el nombre de línies de la llista de GMFT Club a: \n"]
[null,"The number of lines of the Player List is less than the number of players within the FISTF list. Please increase the number of lines of the GMFT Club list to : ","N_NotEnoughPlayerListLines","Le nombre de lignes de la liste des joueurs n'est pas suffisant pour importer la liste des joueurs FISTF. Augmenter le nombre de lignes de la liste jusqu'à : ","The number of lines of the Player List is less than the number of players within the FISTF list. Please increase the number of lines of the GMFT Club list to : ","Il numero di righe dell'Elenco dei Giocatori è inferiore al numero di club nell'elenco FISTF. Aumenta il numero di righe dell'elenco GMFT Club a:","El número de líneas de la lista de jugadores es menor que el número de jugadores dentro de la lista FISTF. Aumente el número de líneas de la lista de GMFT Club a:","El nombre de línies de la llista de jugadors és menor que el nombre de jugadors dins de la llista FISTF. Augmenti el nombre de línies de la llista de GMFT Club a: \n"]
[null,"Total number of clubs","N_TotalNbClubs","Nombre total de clubs","Total number of clubs","Totale numero di club","Número total de clubes","Nombre total de clubs \n"]
[null,"Total number of lines in the club list","N_TotalNbClubsLines","Nombre total de lignes de la liste","Total number of lines in the club list","Totale numero di righe nella lista club","Número total de líneas en la lista del club","Nombre total de línies en la llista de club \n"]
[null,"Total number of players","N_TotalNbPlayers","Nombre total de joueurs classés","Total number of players","Totale numero dei giocatori","Número total de jugadores","Nombre total de jugadors"]
[null,"Total number of lines in the player list","N_TotalNbPlayersLines","Nombre total de lignes de la liste","Total number of lines in the player list","Totale numero di righe nella lista giocatori","Número total de líneas en la lista de jugadores","Nombre total de línies en la llista de jugadors \n"]
[null,"Import the FISTF Clubs file","N_Import_FISTF_Clubs","Importer le fichier des clubs FISTF","Import the FISTF Clubs file","Importa file FISTF Clubs","Importar el archivo FISTF Clubs","Importa el fitxer FISTF Clubs \n"]
[null,"Import the FISTF players file","N_Import_FISTF_Players","Importer le fichier des joueurs FISTF","Import the FISTF players file","Importa file giocatori FISTF","Importar el archivo de jugadores FISTF","Importa el fitxer de jugadors FISTF \n"]
[null,"Select the FISTF event scoresheet file template ","N_GetFISTFScoreSheetTemplateFile","Sélectionner le fichier modèle FISTF de synthèse des scores de la compétition.","Select the FISTF event scoresheet file template ","Seleziona gli eventi scoresheet FISTF dai file modello","Seleccione la plantilla de archivo de hoja de puntuación del evento FISTF","Seleccioneu la plantilla d'arxiu de full de puntuació de l'esdeveniment FISTF \n"]
[null,"Select the FISTF's World Ranking file ","N_GetFISTFWorldRankingFile","Sélectionner le fichier  FISTF de classement mondial des joueurs.","Select the FISTF's World Ranking file ","Seleziona il file del ranking FISTF","Seleccione el archivo de clasificación mundial del FISTF","Seleccioneu el fitxer de classificació mundial de l'FISTF \n"]
[null,"Select the FISTF's licences file ","N_GetFISTFClubsFile","Sélectionner le fichier  FISTF d'identification des licenciés.","Select the FISTF's licences file ","Selezione il file delle licenze FISTF","Seleccione el archivo de licencia de FISTF","Seleccioneu el fitxer de llicència d'FISTF"]
[null,"Select the file name of the FISTF's Scoresheet of the event. ","N_GetScoreSheetFileName","Sélectionner le nom de fichier pour la synthèse officielle FISTF des résultats de la compétition.","Select the file name of the FISTF's Scoresheet of the event. ","Seleziona i nomi dei file dei Scoresheet della FISTF dell'evento","Seleccione el nombre de archivo de la hoja de puntuación del evento del FISTF.","Seleccioneu el nom del fitxer del full de puntuació de l'esdeveniment de l'FISTF."]
[null,"Select the Scorer Table file ","N_GetScorerTableFile","Sélectionner le fichier Table de Marque.","Select the Scorer Table file ","Selezione file dei risultati","Seleccione el archivo de la tabla de puntuación","Seleccioneu el fitxer de la taula de puntuació \n"]
[null,"The selected file seams not to be a FISTF Scoresheet template file. If it's really a FISTF Scoresheet file, it's possible that the file format has changed; in this case it's necessary to upgrade the export function of the GMFT and thus contact the GMFT support.","N_NotAFistfSSFile","Le fichier sélectioné semble ne pas être un fichier officiel FISTF de consignation des résultats de compétition. Si ce n'est pas le cas, il se peut que le format du fichier ait changé et qu'il faille modifier la fonction d'export; contacter dans ce cas le support GMFT.","The selected file seams not to be a FISTF Scoresheet template file. If it's really a FISTF Scoresheet file, it's possible that the file format has changed; in this case it's necessary to upgrade the export function of the GMFT and thus contact the GMFT support.","I file selezionati non costituiscono un file di modello FISTF. Se è in realtà un file di scorrimento FISTF, è possibile che il formato di file sia cambiato; in questo caso è necessario aggiornare la funzione di esportazione del GMFT e quindi contattare il supporto GMFT.","El archivo seleccionado parece no ser un archivo de plantilla de hoja de puntuación FISTF. Si es realmente un archivo de hoja de puntuación FISTF, es posible que el formato del archivo haya cambiado; en este caso es necesario actualizar la función de exportación del GMFT y así contactar con el soporte de GMFT.","L'arxiu seleccionat sembla no ser un arxiu de plantilla de full de puntuació FISTF. Si és realment un arxiu de full de puntuació FISTF, és possible que el format de l'arxiu hagi canviat; en aquest cas cal actualitzar la funció d'exportació de l'GMFT i així contactar amb el suport de GMFT. \n"]
[null,"Don't show this confirmation next time","N_ChkBoxConfirmGlobalSave_Label","Ne pas afficher cette demande de confirmation la prochaine fois","Don't show this confirmation next time","Non mostrare questa conferma la prossima volta","No mostrar esta confirmación la próxima vez","No mostrar aquesta confirmació la propera vegada \n"]
[null,"This action will save all open Excel files without confirmation. Do you want to continue ?","N_MsgConfirmGlobalSave_Label","Cette action va sauvegarder tous les fichiers Excel ouverts sans demande de confirmation. Voulez-vous continuer ?","This action will save all open Excel files without confirmation. Do you want to continue ?","Questa azione salverà tutti i file excel aperti senza conferma. Vuoi continuare?","Esta acción guardará todos los archivos de Excel abiertos sin confirmación. Quieres continuar ?","Aquesta acció guardarà tots els arxius d'Excel oberts sense confirmació. Vols continuar? \n"]
[null,"Error in the ChekReferee subroutine call;the target is not a Referee cell of the Planning sheet.","N_ErrorCheckRefereeTarget","Erreur dans l'appel à la routine CheckReferee : La cible n'est pas une cellule \"Referee\" de la feuille \"Planning\"","Error in the ChekReferee subroutine call;the target is not a Referee cell of the Planning sheet.","Errore nella chiamata di sottoprogramma Check Referee; la selezione non è una cella arbitro del foglio di pianificazione.","Error en la llamada de subrutina de ChekReferee; el objetivo no es una celda de Árbitro de la hoja de Planificación.","Error en la crida de subrutina de ChekReferee; l'objectiu no és una cel·la de Àrbitre del full de Planificació. \n"]
[null,"This referee is a player of this group","N_RefereeWithinGroup","Cet arbitre joue dans la même poule","This referee is a player of this group","Questo arbitro è un giocatore dello stesso girone","Este árbitro es jugador de este grupo.","Aquest àrbitre és jugador d'aquest grup. \n"]
[null,"This referee takes part as player in this stage","N_RefereeWithinStage","Cet arbitre dispute également cette phase","This referee takes part as player in this stage","Questo arbrito prende parte come giocatore in questo stage","Este árbitro participa como jugador en esta fase.","Aquest àrbitre participa com a jugador en aquesta fase. \n"]
[null,"This referee is a member of the same club as the player 1","N_RefereeSameClubAsPlayer1","Cet arbitre fait partie du même club que le joueur 1","This referee is a member of the same club as the player 1","Questo arbitro è un membro dello stesso club del giocatore 1","Este árbitro es miembro del mismo club que el jugador 1","Aquest àrbitre és membre de el mateix club que el jugador 1 \n"]
[null,"This referee is a member of the same club as the player 2","N_RefereeSameClubAsPlayer2","Cet arbitre fait partie du même club que le joueur 2","This referee is a member of the same club as the player 2","Questo arbitro è un membro dello stesso club del giocatore 2","Este árbitro es miembro del mismo club que el jugador 2","Aquest àrbitre és membre de el mateix club que el jugador 2 \n"]
[null,"This referee has the same nationality as the player 1","N_RefereeSameNationalityAsPlayer1","Cet arbitre a la même nationalité que le joueur 1","This referee has the same nationality as the player 1","Questo arbitro ha la stessa nazionalità dell'arbitro 1","Este árbitro tiene la misma nacionalidad que el jugador 1","Aquest àrbitre té la mateixa nacionalitat que el jugador 1 \n"]
[null,"This referee has the same nationality as the player 2","N_RefereeSameNationalityAsPlayer2","Cet arbitre a la même nationalité que le joueur 2","This referee has the same nationality as the player 2","Questo arbitro ha la stessa nazionalità dell'arbitro 2","Este árbitro tiene la misma nacionalidad que el jugador 2","Aquest àrbitre té la mateixa nacionalitat que el jugador 2 \n"]
[null,"Referee choice report :","N_RefereeChecking","Rapport de choix d'arbitre :","Referee choice report :","Rapporto dell'arbitro","Informe de elección de árbitro:","Informe d'elecció d'àrbitre: \n"]
[null,"Activation of controls during referee choices in the planning","N_CheckingReferees","Activation des contrôles sur les choix des arbitres dans le planning","Activation of controls during referee choices in the planning","Attivazione dei controlli durante la scelta dell'arbitro nel planning","Activación de controles durante las elecciones de los árbitros en la planificación.","Activació d' controls durant les eleccions dels àrbitres en la planificació."]
[null,"Referee in the same Group as one of players","N_CheckReferee_SameGroup","Arbitre dans la même Poule qu'un des joueurs","Referee in the same Group as one of players","Arbitro nello stesso girone di uno dei giocatori","Árbitro en el mismo grupo que uno de los jugadores.","Àrbitre en el mateix grup que un dels jugadors. \n"]
[null,"Referee in the same Club as one of players","N_CheckReferee_SameClub","Arbitre du même Club qu'un des joueurs","Referee in the same Club as one of players","Arbitro dello stesso club di uno dei giocatori","Árbitro en el mismo Club que uno de los jugadores.","Àrbitre al mateix Club que un dels jugadors. \n"]
[null,"Referee with the same Nationality as one of players","N_CheckReferee_SameNat","Arbitre de même Nationalité qu'un des joueurs","Referee with the same Nationality as one of players","arbitro con la stessa nazionalità di uno dei giocatori","Árbitro con la misma nacionalidad que uno de los jugadores.","Àrbitre amb la mateixa nacionalitat que un dels jugadors. \n"]
[null,"Referee in the same Club as one of players of the group","N_CheckReferee_Club_InGroup","Arbitre du même Club qu'un des joueurs de la poule","Referee in the same Club as one of players of the group","arbitro dello stesso club di uno dei giocatori del girone","Árbitro en el mismo Club que uno de los jugadores del grupo.","Àrbitre al mateix Club que un dels jugadors de el grup."]
[null,"Referee with the same Nationality as one of players of the group","N_CheckReferee_Nat_InGroup","Arbitre de même Nationalité qu'un des joueurs de la poule","Referee with the same Nationality as one of players of the group","arbitro della stessa nazionalità di uno dei giocatori del girone","Árbitro con la misma nacionalidad que uno de los jugadores del grupo.","Àrbitre amb la mateixa nacionalitat que un dels jugadors de el grup. \n"]
[null,{"$f":"HLOOKUP(Language,D$2:L$1113,ROW()-1,FALSE)","v":"This referee is a member of the same club as one of players of the group"},"N_RefereeSameClubAsOneInGroup","Cet arbitre fait partie du même club qu'un des joueurs de la poule","This referee is a member of the same club as one of players of the group","questo arbitro è dello stesso club di uno dei giocatori del girone","Este árbitro es miembro del mismo club que uno de los jugadores del grupo.","Aquest àrbitre és membre de el mateix club que un dels jugadors de el grup. \n"]
[null,"Referee with the same Nationality as one of players of the group","N_RefereeSameNationalityAsOneInGroup","Cet arbitre a la même nationalité qu'un des joueurs de la poule","Referee with the same Nationality as one of players of the group","arbitro della stessa nazionalità di uno dei giocatori del girone","Árbitro con la misma nacionalidad que uno de los jugadores del grupo.","Àrbitre amb la mateixa nacionalitat que un dels jugadors de el grup. \n"]
[null,"Save all open Excel files","N_SaveFiles","Sauvegarder tous les fichiers Excel ouverts","Save all open Excel files","Salva tutti i file Excel aperti","Guarde todos los archivos de Excel abiertos","Deseu tots els arxius d'Excel oberts \n"]
[null,"At least one cell in one of the columns Players, Given name or Family name has a #N/A value.\rFor each player fill at least a known club (\"---\" if the player has no club). ","N_UnknownPlayer",{"$f":"\"Au moins une cellule dans une des colonnes \" & N_Joueurs & \", Given name ou Family name a une valeur #N/A.\" & CHAR(13) & \"Pour chaque joueur renseigner au mininum un club reconnu (\"\"---\"\" si le joueur n'appartient pas à un club). \"","v":"Au moins une cellule dans une des colonnes Players, Given name ou Family name a une valeur #N/A.\rPour chaque joueur renseigner au mininum un club reconnu (\"---\" si le joueur n'appartient pas à un club). "},{"$f":"\"At least one cell in one of the columns \" & N_Joueurs & \", Given name or Family name has a #N/A value.\" & CHAR(13) & \"For each player fill at least a known club (\"\"---\"\" if the player has no club). \"","v":"At least one cell in one of the columns Players, Given name or Family name has a #N/A value.\rFor each player fill at least a known club (\"---\" if the player has no club). "},"Almeno una cella in uno dei giocatori di colonne, nome o nome ha a #N/a valore. Per ogni giocatore compilare almeno un club noto (\"----\" se il giocatore non ha un club).","Al menos una celda en una de las columnas, el nombre o el nombre de los jugadores tiene un valor # N / a. Para cada jugador, complete al menos un club conocido (\"----\" si el jugador no tiene un club). ","A l'almenys una cel·la en una de les columnes, el nom o el nom dels jugadors té un valor # N / a. Per a cada jugador, completi a el menys un club conegut (\"----\" si el jugador no té un club). \n"]
[null,"Start session number","N_NewEventForm_SessionNumber","N° de session de départ","Start session number","Inizio sessione numero","Inicio número de sesión","Inici número de sessió \n"]
[null,"Break 1","N_Break1","Pause 1","Break 1","Pausa 1","Pausa 1","Pausa 1"]
[null,"Break 2","N_Break2","Pause 2","Break 2","Pausa 2","Pausa 2","Pausa 2"]
[null,"Break 3","N_Break3","Pause 3","Break 3","Pausa 3","Pausa 3","Pausa 3"]
[null,"Break 4","N_Break4","Pause 4","Break 4","Pausa 4","Pausa 4","Pausa 4"]
[null,"Room Plan",{"$f":"NAMEOF(B467)","v":"N_VenueTitle"},"Plan de Salle","Room Plan","Piano Camera","Plano de la Sala","Pla de la Sala \n"]
[null,"Export / Import Sorer Table","N_ExportScorerTable","Exporter / Importer Table de Marque","Export / Import Sorer Table","Esporta / importa tabella dei punti","Exportar / Importar tabla puntos","Exporta / Importa taula punts \n"]
[null,"Scorer Table","N_ScorerTable","Table de Marque","Scorer Table","Tabella dei punti","Tabla de puntuación","Taula de puntuació"]
[null,"The total number of matches proceed is about : ","N_NbMatchProceed","Le nombre de matches traités est de : ","The total number of matches proceed is about : ","Il numero totale di partite prodotte è:","El número total de partidos que proceden es:","El número total de partits que procedeixen és:"]
[null,"The total number of results imported is about : ","N_NbMatchImported","Le nombre total de résultats importés est de : ","The total number of results imported is about : ","Il numero totale di risultati importati è:","El número total de resultados importados es:","El número total de resultats importats és: \n"]
[null,"Sort Team Members","N_Rib_GmftSortPlayersInTeams","Trier les joueurs des équipes","Sort Team Members","Ordina i membri del team","Ordenar miembros del equipo","Ordenar membres de l'equip \n"]
[null,"Results and Ranking","N_Results_Export","Résultats et Classements","Results and Ranking","Risultati ed Ranking","Resultados y ranking","Resultats y ranking"]
[null,"The choosen file name corresponds to an openned file. Please close the target file and retry. ","N_ClosePreviousVersionOfFISTFExportFirst","Le nom de fichier choisi correspond à un fichier actuellement ouvert. Fermer le fichier ciblé et recommencer l'opération.","The choosen file name corresponds to an openned file. Please close the target file and retry. ","Il nome del file scelto corrisponde ad un file aperto. Per favore chiudi il file e riprova.","El nombre de archivo elegido corresponde a un archivo abierto. Cierre el archivo de destino y vuelva a intentarlo.","El nom de fitxer escollit correspon a un arxiu obert. Tanqueu el fitxer de destinació i torni a intentar-ho. \n"]
[null,"Printing of venue ?","N_PrintVenue","Impression du plan de la salle ?","Printing of venue ?","Stampa la sede?","¿Impresión de la sala?","¿Impressió de la sala? \n"]
[null,"Printing of statistics ?","N_PrintStats","Impression des statistiques ?","Printing of statistics ?","Stampa le statistiche?","¿Impresión de las estadisticas?","¿Impressió de les estadístiques? \n"]
[null,"Total Goals","N_Nb_Goals","Total Buts","Total Goals","Totale Goal","Total Goles","Total Gols"]
[null,"Total Wins","N_Wins","Total Victoires","Total Wins","Totale Vittorie","Total Victorias","Total Victorias"]
[null,"Total Loses","N_Loses","Total Défaites","Total Loses","Totale Sconfitte","Total Perdidos","Total Perduts"]
[null,"Total Draws","N_Draws","Total Nuls","Total Draws","Totale Pareggi","Total Empates","Total Empats"]
[null,"Average Goals","N_Average_Goals","Moyenne\nButs","Average Goals","Goal Fatti","Goles Favor","Gols Favor"]
[null,"Goals conceded","N_GoalsConceded","Buts contre","Goals conceded","Goal Subiti ","Goles Contra","Gols Contra"]
[null,"Played matches","N_Nb_Matches","Matches joués","Played matches","Partite giocate","Partidos Jugados","Partits Jugats"]
[null,"Player's timeline","N_PlayerTimeline","Feuille de route des joueurs","Player's timeline","Timeline del giocatore","Cronología del jugador","Cronologia de l'jugador \n"]
[null,"Referee","N_Refer","Arbitre","Referee","Arbitro","Arbitro","Arbitre"]
[null,"Play","N_Play","Joue","Play","Giocatore","Jugar","Jugar"]
[null,"Player's statistics","N_PlayerStatistics","Statistiques des joueurs","Player's statistics","Statistiche del giocatore","Estadisticas del jugador","Estadístiques de el jugador \n"]
[null,"This worksheet presents the timeline of each participant whether player or referee.","N_TimelineDescription","Cette feuille présente le planning de chaque participant qu'il soit joueur ou arbitre.","This worksheet presents the timeline of each participant whether player or referee.","Questo foglio di lavoro presenta la timeline di ogni partecipante sia giocatore che arbitro.","Esta hoja de trabajo presenta la línea de tiempo de cada participante, ya sea jugador o árbitro.","Aquest full de treball presenta la línia de temps de cada participant, ja sigui jugador o àrbitre. \n"]
[null,"This worksheet presents statistics on players throughout the competition.\nIt establishes, in particular, the ranking of the greatest number of goals scored in an event.","N_PlayerStatisticsDescription","Cette feuille présente les statistiques des joueurs sur l'ensemble de la compétition. \nElle permet d'établir, notamment, le classement du plus grand nombre de buts marqués sur une épreuve.","This worksheet presents statistics on players throughout the competition.\nIt establishes, in particular, the ranking of the greatest number of goals scored in an event.","Questo foglio di lavoro presenta statistiche sui giocatori in tutta la gara. Esso stabilisce in particolare la classifica del maggior numero di gol segnati in un evento.","Esta hoja de trabajo presenta estadísticas sobre los jugadores a lo largo de la competición.\nEstablece, en particular, el ranking del mayor número de goles marcados en un evento.","Aquest full de treball presenta estadístiques sobre els jugadors al llarg de la competició.\nEstableix, en particular, el rànquing de l'major nombre de gols marcats en un esdeveniment."]
[null,"Let empty for all","N_Let_Empty_for_all","Laisser vide pour toutes les épreuves","Let empty for all","Lasciare vuoto per tutti","Dejar vacío para todos","Deixar buit per a tots \n"]
[null,"List of different events of the competition (names and colors). Let it empty for default value.","N_Events","Liste des différentes épreuves de la compétition (noms et couleurs). Laisser vide pour la valeur par défaut. ","List of different events of the competition (names and colors). Let it empty for default value.","Lista di differenti eventi della competizione (nomi e colori). Lasciate vuoto per valore standard","Lista de diferentes eventos de la competencia (nombres y colores). Déjelo vacío por el valor predeterminado.","Llista de diferents esdeveniments de la competència (noms i colors). Deixi-ho buit pel valor predeterminat. \n"]
[null,"Event Type","N_Event_Type","Type de l'épreuve","Event Type","Tipo di evento","Tipo de Evento","Tipus d'Esdeveniment \n"]
[null,"Half Time Score","N_HalfTimeScore","Score à la mi-temps","Half Time Score","Risultato primo tempo","Resultado primer tiempo","Resultat primer temps \n"]
[null,"Action canceled. You must create an event before.","N_CreateEventBefore","Opération annulée. Vous devez créer une compétition avant.","Action canceled. You must create an event before.","Azione cancellata. Devi creare un evento prima.","Acción cancelada. Debes crear un evento antes.","Acció cancel·lada. Has d' crear un esdeveniment abans."]
[null,"[---Withdraw---]","N_Withdraw","[---Forfait---]","[---Withdraw---]","Forfait","[---Retirar---]","[---Retirar---]"]
[null,"To be Drawn","N_ToBeDrawn","Non encore défini","To be Drawn","Non ancora definito","Aún no definido","Encara no definit \n"]
[null,"Draw","N_Drawing","Tirage","Draw","Sorteggio","Sorteo","Sorteig"]
[null,"Participants Ranking","N_ParticipantsRanking","Participants Classement","Participants Ranking","Ranking Partecipanti","Ranking Participantes","Rànquing Participants \n"]
[null,"Participants Alphabetical","N_ParticipantsAlphabeticals","Participants Alphabétique","Participants Alphabetical","Partecipanti in ordine alfabetico","Participantes en orden alfabetico","Participants en ordre alfabètic \n"]
[null,"Format for cells containing formulas and that can be modified by user","N_ConditionalFormatLabel","Format des cellules avec formule modifiables par l'utilisateur","Format for cells containing formulas and that can be modified by user","Formato per le celle contiene formule e può essere modificato dall'utente","Formato para celdas que contienen fórmulas y que el usuario puede modificar","Format per cel·les que contenen fórmules i que l'usuari pot modificar \n"]
[null,"Validation is not possible until Draws are still to be done.","N_ToBeDrawnLeft","Validation impossible car il reste des tirages au sort à effectuer.","Validation is not possible until Draws are still to be done.","Non è possibile validare finchè draw devono ancora essere fatti","La validación no es posible hasta que aún no se hayan realizado los sorteos.","La validació no és possible fins que encara no s'hagin realitzat els sortejos. \n"]
[null,"Your are being deleting the worksheet ! Please confirm your action.","N_ConfirmDeleteSheet","Vous êtes sur le point de supprimer la feuille de calcul ! Merci de bien vouloir confirmer.","Your are being deleting the worksheet ! Please confirm your action.","Stai iniziando la cancellazione del progetto. Per favore conferma la tua azione.","¡Está borrando la hoja de trabajo! Confirma tu acción.","Està esborrant el full de treball! Confirma la teva acció. \n"]
[null,"Delete confirmation","N_ConfirmDeletion","Confirmation de suppression","Delete confirmation","Conferma cancellazione","Confirmar Eliminación","Confirma Eliminació \n"]
[null,"In group stage for teams, in case of equality on won matches, the team with the most withdraws loses the match.","N_NoDrawWithWithdraw","Dans les phases de poules par équipe, en cas d'égalité en matches gagnés, l'équipe ayant le plus de joueurs forfaits perd le match.","In group stage for teams, in case of equality on won matches, the team with the most withdraws loses the match.","In fase di gruppo per le squadre, in caso di parità in corrispondenza delle partite vinte, la squadra con i più withdraws perde la partita.","En la fase de grupos de equipos, en caso de empate en partidos ganados, el equipo con más retiradas pierde el partido.","En la fase de grups d'equips, en cas d'empat en partits guanyats, l'equip amb més retirades perd el partit. \n"]
[null,"Label for a withdraw player. Suggestion : keep the formula to take advantage of multi-languages.","N_ModifyingWithDrawLabel","Label pour signifier un joueur forfait. Conseil : laisser la formule pour profiter du multilinguisme.","Label for a withdraw player. Suggestion : keep the formula to take advantage of multi-languages.","Etichetta per un giocatore withdraw. Suggerimento: mantenere la formula per sfruttare i multi-lingue.","Etiqueta para un jugador retirado. Sugerencia: mantenga la fórmula para aprovechar los múltiples idiomas.","Etiqueta per a un jugador retirat. Consell: mantingui la fórmula per aprofitar els múltiples idiomes. \n"]
[null,"Row","N_Row","Série","Row","Rigo","Fila","Fila"]
[null,"PLANNING","N_PlanningTitle","PLANNING","PLANNING","PLANNING","PLANNING","PLANNING"]
[null,"You must select one and only one player in the \"Participants Ranking\" list.","N_DrawPlayerSelection",{"$f":"\"Vous devez sélectionner un et un seul joueur dans la liste \"\"\" & N_ParticipantsRanking & \"\"\".\"","v":"Vous devez sélectionner un et un seul joueur dans la liste \"Participants Ranking\"."},{"$f":"\"You must select one and only one player in the \"\"\" & N_ParticipantsRanking & \"\"\" list.\"","v":"You must select one and only one player in the \"Participants Ranking\" list."},"Devi selezionare solamente un giocatore nella lista \"Ranking Partecipanti\"","\"Debes seleccionar uno y solo un jugador en la lista\" \"\" & N_Ranking Participantes & \"\" \".\"","\"Has de seleccionar un i només un jugador a la llista\" \"\" & N_Ranking Participants & \"\" \".\" \n"]
[null,"Assign Referees","N_AssignReferees","Assigner Arbitres","Assign Referees","Assegna arbitri","Asignar Arbitro","Assignar Àrbitre \n"]
[null,"Selected rows are outside planning area","N_SelectionOutsidePlanning","Les lignes sélectionnées sont en dehors de la zone du planning. ","Selected rows are outside planning area","Selezione le righe che sono fuori dall'area planning","Las filas seleccionadas están fuera del área de planificación","Les files seleccionades estan fora de l'àrea de planificació \n\n"]
[null,"Selection must be on only one session.","N_SelectionOnOneSession","La sélection ne peut porter que sur des lignes d'une même session.","Selection must be on only one session.","La selezione deve essere solo di una sessione","La selección debe realizarse en una sola sesión.","La selecció s'ha de fer en una sola sessió. \n"]
[null,"Do you confirm referee assigment for the whole session ","N_ConfirmOneSession","Confirmez-vous la désignation des arbitres pour l'ensemble de la session ","Do you confirm referee assigment for the whole session ","Confermi assegnazione arbitro per tutta la sessione?","¿Confirma la asignación de árbitros para toda la sesión?","¿Confirma l'assignació d'àrbitres per a tota la sessió? \n"]
[null,"Do you confirm referee assigment for selected rows ?","N_ConfirmRefereeSelection","Confirmez-vous la désignation des arbitres pour les lignes sélectionnées ?","Do you confirm referee assigment for selected rows ?","Confermi assegnazione arbitro per la riga selezionata?","¿Confirma la asignación de árbitros para las filas seleccionadas?","¿Confirma l'assignació d'àrbitres per a les files seleccionades? \n"]
[null,"Excluded referees categories","N_DefaultRefereesCategories","Catégories d'arbitres exclues","Excluded referees categories","Escludi arbitri delle categorie:","Categorías de árbitros excluidos","Categories d'àrbitres exclosos \n"]
[null,"Do you want to process the matches of the WHOLE planning instead of the actual selected session : ","N_ConfirmFullPlanning","Voulez-vous traiter les matches de TOUT le planning plutôt que les matches de la session actuellement sélectionnée : ","Do you want to process the matches of the WHOLE planning instead of the actual selected session : ","Vuoi elaborare le partite di tutta la pianificazione, invece della sessione attuale selezionato:","¿Desea procesar las coincidencias de TODA la planificación en lugar de la sesión seleccionada real?","Voleu processar les coincidències de TOTA la planificació en lloc de la sessió seleccionada real? \n"]
[null,"Switch Referees","N_SwitchReferees","Intervertir Arbitres","Switch Referees","scambia arbitri","Invertir Arbitros","invertir àrbitres \n"]
[null,"Bad selection; this option needs a selection of only 2 cells of referees to be exchanged.","N_BadSwitchRefereesSelection","Mauvaise sélection; Cette opération nécessite de sélectionner uniquement 2 cellules d'arbitres à interchanger.","Bad selection; this option needs a selection of only 2 cells of referees to be exchanged.","Cattiva selezione; questa opzione necessità una selezione di due celle di arbitri da cambiare","Mala selección; esta opción necesita una selección de solo 2 celdas de árbitros para intercambiar.","Mala selecció; aquesta opció necessita una selecció de només 2 cel·les d'àrbitres per intercanviar. \n"]
[null,"Selected cells are wholly or partly outside the planning area.","N_BadSwitchRefereesPlanning","Les cellules sélectionnées sont en tout ou partie en dehors de la zone du planning.","Selected cells are wholly or partly outside the planning area.","Le celle selezionate sono interamente o parzialmente fuori dall'area di pianificazione.","Las celdas seleccionadas están total o parcialmente fuera del área de planificación.","Les cel·les seleccionades estan totalment o parcialment fora de l'àrea de planificació. \n"]
[null,"Selected cells can't be on session.","N_BadSwitchRefereesSession","Les cellules sélectionnées ne peuvent être sur des sessions.","Selected cells can't be on session.","Seleziona le celle che non possono essere nella sessione","Las celdas seleccionadas no pueden estar en sesión.","Les cel·les seleccionades no poden estar en sessió. \n"]
[null,"Switch is possible only for two referees on the same session.","N_BadSwitchRefereesHour","L'échange ne peut se faire que sur 2 arbitres d'une même session.","Switch is possible only for two referees on the same session.","Lo scambio è possibile solo per due arbitri della stessa sessione","El cambio solo es posible para dos árbitros en la misma sesión.","El canvi només és possible per dos àrbitres en la mateixa sessió. \n"]
[null,"Number of matches already refereed more or equal to","N_NbMaxRefereing","Nombre de matches déjà arbitrés supérieur ou égal à","Number of matches already refereed more or equal to","Numeri di matches già arbitrati sono più o uguale a","Número de partidos ya arbitrados mayor o igual a","Número de partits ja arbitrats major o igual a"]
[null,{"$f":"HLOOKUP(Language,D$2:L$1113,ROW()-1,FALSE)","v":"List of FISTF players categories"},"N_FISTF_Categories","Liste des catégories FISTF des joueurs","List of FISTF players categories","Lista delle categorie dei giocatori FISTF","Lista de categorías de jugadores de FISTF","Llista de categories de jugadors de FISTF"]
[null,"FISTF Categories","N_FISTF_Category_List","Catégories FISTF","FISTF Categories","categorie FISTF","Categorias FISTF","Categories FISTF"]
[null,"Event Categories","N_Event_Category_List","Catégories de la compétition","Event Categories","Categorie dell'evento","Categoria del Evento","Categoria de l'Esdeveniment \n"]
[null,"Exclude these categories","N_ExcludeCategories","Exclure ces catégories","Exclude these categories","Escludi queste categorie","Excluir estas categorías","Excloure aquestes categories \n"]
[null,"Use only these disqualified players","N_UseDisqualified","Utiliser uniquement ces joueurs disqualifiés","Use only these disqualified players","Usa solo questi giocatori eliminati","Usa solo estos jugadores descalificados","Utilitza només aquests jugadors desqualificats \n"]
[null,"Exclude players who had already refereed a number of mathes","N_AlreadyRefereed","Exclude les joueurs ayant déjà arbitrer un nnombre de matches","Exclude players who had already refereed a number of mathes","escludi giocatori che hanno già arbitrato un numero di partite","Excluir a los jugadores que ya habían arbitrado varios partidos.","Excloure els jugadors que ja havien arbitrat diversos partits. \n"]
[null,"Use also excluding categories criteria",{"$f":"NAMEOF(B528)","v":"N_UseCategories"},"Utiliser aussi les critères d'exclusion par catégorie","Use also excluding categories criteria","usa ancora escludi criteri categorie","Utilice también criterios de exclusión de categorías","Utilitzeu també criteris d'exclusió de categories \n"]
[null,"Disqualified from …","N_DisqualifiedFrom","Eliminés en …","Disqualified from …","Eliminato da ….","Descalificado de …","Desqualificat de ... \n"]
[null,"Event Played","N_EventPlayed","Compétition jouée","Event Played","Evento giocato","Evento Jugado","esdeveniment Jugat \n"]
[null,"Exlude number of already refereed matches","N_AlreadyRefereed_Title","Exclure un nombre de matches déjà arbitrés","Exlude number of already refereed matches","Escludi numeri di arbitri delle partite","Excluir el número de partidos ya arbitrados","Excloure el nombre de partits ja arbitrats \n"]
[null,"No disqualified player for the moment with selected criteria.","N_NoDisqualifiedForTheMoment","Aucun joueur disqualifié pour le moment selon les critères choisis","No disqualified player for the moment with selected criteria.","Nessun giocatore squalificato per il momento con criteri selezionati.","Ningún jugador descalificado por el momento con criterios seleccionados.","Ningún jugador descalificado por el momento con criterios seleccionados."]
[null,"Number of Teams","N_NbTeams","Nombre d'équipes","Number of Teams","Numero di squadre","Número de Equipos","Número d'Equips"]
[null,"… for individuals","N_RefForIndiv","… pour les individuels","… for individuals","… per individuali","… para individuales","... per individuals"]
[null,"… for teams","N_RefForTeams","… pour le par équipe","… for teams","… per squadre","… para Equipos","… per Equips"]
[null,"No individual or team match => no automatic assigning","N_NoIndivAndTeamMatch","Auncu match individuel ou par équipe => pas d'assignation automatique","No individual or team match => no automatic assigning","Nessun match individuale o di gruppo => nessun assegnazione automatica","Sin partido individual o por equipos => sin asignación automática","Sense partit individual o per equips => sense assignació automàtica \n"]
[null,"You must select either \"… for individuals\" or \"… for teams\"","N_YouMustSelectIndivOrTeam","Vous devez sélectionner soit \" … pour les individuels\", soit \"… pour le par équipe\"","You must select either \"… for individuals\" or \"… for teams\"","È necessario selezionare mai \"... per gli individui\" o mai \"... per squadre\"","Debes seleccionar \"... para individuales\" o \"... para equipos\"","Has de seleccionar \"... per individuals\" o \"... per equips\" \n"]
[null,"Selected Referees are not of the same typpe (individual or team)","N_NotSameTypeOfReferees","Les arbitres sélectionnés pour l'inversion ne sont pas du même type (individuel ou équipe)","Selected Referees are not of the same typpe (individual or team)","Seleziona arbitri che non sono dello stesso tipo (individual o squadre)","Los árbitros seleccionados no son del mismo tipo (individual o en equipo)","Els àrbitres seleccionats no són de la mateixa mena (individual o en equip) \n"]
[null,"List of registered players of each team","N_TeamsRegisteredPlayers","Liste des joueurs inscrits dans chaque équipe","List of registered players of each team","Lista di giocatori registrati per ogni partita","Lista de jugadores registrados de cada equipo","Llista de jugadors registrats de cada equip \n"]
[null,"Use codes S1 to S4 depending of match number concerned by substitution","N_SubstituteCodeRule","Utiliser les codes S1 à S4 en fonction du N° de match concerné par le remplacement","Use codes S1 to S4 depending of match number concerned by substitution","Utilizzare i codici da S1 a S4 a seconda del numero corrispondente per la sostituzione","Utilice los códigos S1 a S4 según el número de coincidencia afectado por la sustitución","Utilitzeu els codis S1 a S4 segons el nombre de coincidència afectat per la substitució \n"]
[null,"Fill with an \"X\"","N_FillWithX","Remplir avec un \"X\"","Fill with an \"X\"","Riempi con una \"X\"","Rellenar con una \"X\"","Omplir amb una \"X\" \n"]
[null,"Show","N_Rib_TableDisplayDropDown","Afficher","Show","Mostra","Mostrar","Mostra"]
[null,"Nothing","N_Nothing","Vide","Nothing","Niente","Nada","Res"]
[null,"Players","N_Players","Joueurs","Players","Giocatori","Jugadores","Jugadors"]
[null,"Referees","N_Referees","Arbitres","Referees","Arbitri","Arbitros","Arbitres"]
[null,"Stages","N_Stages","Tours","Stages","Stages","Rondas","Rondas"]
[null,{"$f":"HLOOKUP(Language,D$2:L$1113,ROW()-1,FALSE)","v":"Club Name"},{"$f":"NAMEOF(B547)","v":"N_ClubName"},"Nom du club","Club Name","Nome del Club","Nombre del Club","Nom del Club"]
[null,"Player Name","N_PlayerName","Nom du joueur","Player Name","Nome del Giocatore","Nombre del Jugador","Nom del Jugador"]
[null,"Delete first row","N_DeleteCheckin","Supprimer la 1ère ligne ","Delete first row","Cancella primo rigo","Eliminar la primera fila","Eliminar la primera fila"]
[null,"Validate and copy at the end of the list","N_CheckinForm_Validate","Valider et copier en fin de liste","Validate and copy at the end of the list","Valida e copia alla fine della lista","Validar y copiar al final de la lista","Validar i copiar a la fi de la llista \n"]
[null,{"$f":"HLOOKUP(Language,D$2:L$1113,ROW()-1,FALSE)","v":"Fill in help"},{"$f":"NAMEOF(B551)","v":"N_Rib_GmftTeamsForm"},"Aide à la saisie","Fill in help","Riempi con aiuto","Completa la ayuda","Completa l'ajuda"]
[null,"Fill in help",{"$f":"NAMEOF(B552)","v":"N_Rib_GmftCheckinForm"},"Aide à la saisie","Fill in help","Riempi con aiuto","Completa la ayuda","Completa l'ajuda"]
[null,"Competitors","N_WebSiteExport_ExportCompetitors","Compétiteurs","Competitors","Giocatori","Jugadores","Jugadors"]
[null,{"$f":"HLOOKUP(Language,D$2:L$1113,ROW()-1,FALSE)","v":"Registrations"},{"$f":"NAMEOF(B554)","v":"N_RegistrationExport_ExportCompetitors"},"Inscriptions","Registrations","Registrazione","Registros","Registres"]
[null,"Planning","N_WebSiteExport_ExportPlanning","Planning","Planning","Planning","Planning","Planning"]
[null,"Groups","N_WebSiteExport_ExportGroups","Groupes","Groups","Gironi","Grupos","Grups"]
[null,"Stats","N_WebSiteExport_ExportStats","Statistiques","Stats","Statistiche","Estadisticas","Estadistiques"]
[null,"Results","N_WebSiteExport_ExportResults","Résultats","Results","Risultati","Resultados","Resultats"]
[null,"Matches","N_WebSiteExport_ExportMatches","Matches","Matches","Partite","Partidos","Partits"]
[null,"Last checked boxes for competitors export to GMFT Web Site","N_DefaultCompetitorsExportToWebSite","Dernières cases cochées pour l'export des compétiteurs sur le Site Web GMFT","Last checked boxes for competitors export to GMFT Web Site","Le ultime caselle di controllo per i concorrenti esportano sul sito Web GMFT","Últimas casillas marcadas para que los competidores exporten al sitio web de GMFT","Últimes caselles marcades perquè els competidors exportin a la pàgina web de GMFT \n"]
[null,"Export to GMFT web site following event types","N_ExportTypeOfEventToWebSite","Export vers le site web GMFT des types de compétition suivants","Export to GMFT web site following event types","Esporta al sito GMFT seguenti tipi di eventi","Exportar al sitio web de GMFT los siguientes tipos de eventos","Exporta a el lloc web de GMFT els següents tipus d'esdeveniments \n"]
[null,"Name","N_Web_PlayerName","Nom","Name","Nome","Nombre","Nom"]
[null,"Ranking","N_Web_Ranking","Classement","Ranking","Ranking","Ranking","Ranking"]
[null,"Nation","N_Web_Nation","Nation","Nation","Nazione","Pais","Pais"]
[null,"Club","N_Web_Club","Club","Club","Club","Club","Club"]
[null,"Rk.","N_Web_Rk","Cl.","Rk.","Rk.","Rk.","Rk."]
[null,"Stage","N_Web_Stage","Phase","Stage","Turno","Fase","Fase"]
[null,{"$f":"HLOOKUP(Language,D$2:L$1114,ROW()-1,FALSE)","v":"Match No"},"N_Web_MatchNo","Num. Match","Match No","Num. Match","Nº Partido","Nº Partit"]
[null,"Generate the GMFTData.html file","N_GenerateConfigurationFile","Générer le fichier GMFTData.html","Generate the GMFTData.html file","Genera il file GMFTData.html","Genere el archivo GMFTData.html","Generi el fitxer GMFTData.html \n"]
[null,"Export Decoration To WebSite parameters","N_ExportDecorationToWebSite","Paramètres d'export de la décoration sur le site web","Export Decoration To WebSite parameters","Esporta decorazione/ per il Sito Web","Exportar decoración a parámetros de sitio web","Exportar decoració a paràmetres de lloc web \n"]
[null,"Navigation bar title","N_WebNavBarTitleLabel","Titre dans la barre de navigation","Navigation bar title","Titolo barra di navigazione","Título de la barra de navegación","Títol de la barra de navegació \n"]
[null,"Event title","N_WebEventTitleLabel","Titre de la compétition","Event title","Nome dell'evento","Nombre del Evento","Nom Esdeveniment \n"]
[null,"Event Description","N_WebEventDescriptionLabel","Description de la compétition","Event Description","Descrizione dell'evento","Descripción del Evento","Descripció de l'esdeveniment\n"]
[null,"Competition data => Data directory","N_WebSiteExport_ExportCompetitonData","Données de la compétition => répertoire Data","Competition data => Data directory","Dati della competizione => Cartella data","Datos de la competición => Directorio de datos","Dades de la competició => Directori de dades"]
[null,"Web decoration => Custom/GMFTData.html file","N_WebSiteExport_ExportWebDecoration","Décoration Web => Custom/GMFTData.html","Web decoration => Custom/GMFTData.html file","Decorazione Web => Custom/GMFTData.html file","Decoración web => Archivo personalizado / GMFTData.html","Decoració web => Arxiu personalitzat / GMFTData.html"]
[null,"You may also change the icon and background images. To do this got to the \"Custom\" directory under the root directory you specified above and replace files \"logo.png\" & \"event-background.jpg\" but keeping these names !","N_WebChangingImages","Vous pouvez également changer l'icône et l'image de fond. Pour ce faire, allez dans le répertoire \"Custom\" dans le répertoire que vous avez précisé ci-dessus. Vous pouvez alors remplacer les images \"logo.png\" et \"event-background.jpg\" mais en gardant les mêmes noms !","You may also change the icon and background images. To do this got to the \"Custom\" directory under the root directory you specified above and replace files \"logo.png\" & \"event-background.jpg\" but keeping these names !","Puoi anche cambiare le icone e le immagini di sfondo. Vai nella cartella \"Custom\" all'interno della cartella principale e sostituisci i file \"logo.png\" e \"event-background.jpg\" ma non cambiare i nomi!","También puede cambiar el icono y las imágenes de fondo. Para hacer esto, vaya al directorio \"Personalizado\" debajo del directorio raíz que especificó anteriormente y reemplace los archivos \"logo.png\" y \"event-background.jpg\", ¡pero manteniendo estos nombres!","També pot canviar la icona i les imatges de fons. Per fer això, aneu a directori \"Personalitzat\" sota el directori arrel que va especificar anteriorment i reemplaci els arxius \"logo.png\" i \"event-background.jpg\", però mantenint aquests noms!"]
[null,"Dashboard template path","N_DashboardTemplatePath","Chemin d'accès du template Tableau de Bord ","Dashboard template path","percorso template dashboard","Ruta de la plantilla Dashboard","Ruta de la plantilla Dashboard"]
[null,"Update & Show Dashboard","N_ShowDashboard_Title","Mettre à jour & afficher le tableau de bord","Update & Show Dashboard","Aggiorna e mostra la Dashboard","Actualizar y mostrar Dashboard","Actualitzar i mostrar Dashboard"]
[null,"Session Title","N_SessionTitle","Titre de la session","Session Title","Titolo della sessione","Titulo de la Sesión","Títol de la Sessió"]
[null,"Session Title : If empty the text will be : ","N_SessionTitle_Label","Titre de la session : si vide le texte sera :","Session Title : If empty the text will be : ","Titolo della sessione: se vuoto il testo sarà:","Título de la sesión: si está vacío, el texto será:","Títol de la sessió: si està buit, el text serà:"]
[null,"Dashboard template path","N_PathToTemplateTitle_Label","Chemin du modèle de fichier Dashboard","Dashboard template path","Percorso modello dashboard","Ruta de la plantilla Dashboard","Ruta de la plantilla Dashboard"]
[null,"Dashboard & Timer","N_OpenDashboard","Tableau de Bord & Timer","Dashboard & Timer","Cruscotto & Timer","Tablero y temporizador","Tauler i temporitzador"]
[null,"Selected Dashboard file is not GMFT compatible","N_BadDashBoardFile","Le fichier Dashboard sélectionné n'est pas un fichier Dashboard compatible GMFT","Selected Dashboard file is not GMFT compatible","Il file Dashboard selezionato non è compatibile con GMFT","El archivo del tablero seleccionado no es compatible con GMFT","L'arxiu de l'tauler seleccionat no és compatible amb GMFT"]
[null,"Path (empty = same directory)","N_PathToTemplatePath_Label","Chemin (vide = même répertoire)","Path (empty = same directory)","Percorso (vuoto = stessa directory)","Ruta (vacío = mismo directorio)","Ruta (buit = mateix directori)"]
[null,"File Name (relative to the path)","N_PathToTemplateFileName_Label","Nom du fichier (relatif au chemin)","File Name (relative to the path)","Nome file (relativo al percorso)","Nombre de archivo (relativo a la ruta)","Nom d'arxiu (relatiu a la ruta)"]
[null,{"$f":"HLOOKUP(Language,D$2:L$1114,ROW()-1,FALSE)","v":"Directory Name (relative to the path)"},{"$f":"NAMEOF(B586)","v":"N_PathToTemplateDirName_Label"},"Nom du répertoire (relatif au chemin)","Directory Name (relative to the path)","Nome della directory (relativo al percorso)","Nombre del directorio (relativo a la ruta)","Nom de directori (relatiu a la ruta)"]
[null,"The maximum number of events is reached.","N_MaxNumberOfEvents","Le nombre maximum de compétitions est attenit.","The maximum number of events is reached.","Il numero massimo di competizioni è raggiunto.","Se alcanza el número máximo de eventos.","S'arriba al nombre màxim d'esdeveniments."]
[null,{"$f":"HLOOKUP(Language,D$2:L$1113,ROW()-1,FALSE)","v":"Shoot-out"},"N_Shout_Out","Tirs au but","Shoot-out","Calci di rigore","Tiros","Tirs"]
[null,{"$f":"HLOOKUP(Language,D$2:L$1114,ROW()-1,FALSE)","v":"General functions"},"N_Rib_GmftGroupHome","Fonctions générales","General functions","Funzioni generali","Funciones generales","Funcions generals"]
[null,"Home","N_Rib_GmftHome","Accueil","Home","Home","Inicio","Inici"]
[null,"Language","N_Rib_LanguageDropDown","Language","Language","Lingua","Lenguaje","Llenguatge"]
[null,"Automatic Calculation","N_CalculationAuto","Calcul Automatique","Automatic Calculation","Calcolo Automatico","Calculo Automatico","Calcul Automatic"]
[null,"Manual Calculation",{"$f":"NAMEOF(B593)","v":"N_CalculationManual"},"Calcul Manuel","Manual Calculation","Calcolo Manuale","Calculo Manual","Calcul Manual"]
[null,"Calculate Now","N_Rib_GmftCalculateNow","Calculer Maintenant","Calculate Now","Calcola Ora","Calcular Ahora","Calcular Ara"]
[null,"Calculation","N_Rib_GmftGroupCalculation","Calcul","Calculation","Calcolo","Cálculo","Cálcul"]
[null,"Sheet Unlocked","N_Rib_GmftUnlockSheet","Feuille Non protégée","Sheet Unlocked","Foglio Sbloccare","Hoja desbloqueada","Full desbloquejada"]
[null,"Sheet Locked","N_Rib_GmftLockSheet","Feuille protégée","Sheet Locked","Foglio Bloccare","Hoja bloqueada","Full bloquejada"]
[null,"Players","N_Rib_GmftLicences","Joueurs","Players","Giocatori","Jugadores","Jugadors"]
[null,"Teams","N_Rib_GmftClubs","Equipes","Teams","Squadre","Equipos","Equips"]
[null,"Players ranking","N_Rib_GmftRankingPlayers","Classement Joueurs","Players ranking","Classifica giocatori","Clasificación jugadores","Clasificació jugadors"]
[null,"Teams ranking","N_Rib_GmftRankingTeams","Classement équipes","Teams ranking","Classifica squadre","Clasificación Equipos","Clasificació Equips"]
[null,"Checkin","N_Rib_GmftCheckin","Enregistrements","Checkin","Registrare","Registro","Registre"]
[null,"Lists","N_Rib_GmftLists","Listes","Lists","Liste","Lista","Llista"]
[null,"Teams","N_Rib_GmftTeams","Equipes","Teams","Squadre","Equipos","Equips"]
[null,"Doubles","N_Rib_GmftDoubles","Doubles","Doubles","Doppio","Dobles","Dobles"]
[null,"Display","N_Rib_GmftDatabaseSheets","Afficher","Display","Display","Mostrar","Mostra"]
[null,"Registration sheets","N_Rib_GmftHideRegistrations","feuilles Inscriptions","Registration sheets","fogli di Iscrizioni","Hojas de Inscripción","Fulles d'Inscripció"]
[null,"Database sheets","N_Rib_GmftHideDatabase","feuilles Database","Database sheets","fogli di Database","Hojas de la base de datos","Fulles de la base de dades"]
[null,"Planning","N_Rib_GmftHidePlanning","Planning","Planning","Planning","Planning","Planning"]
[null,"Event sheets","N_Rib_GmftHideEvents","feuilles Compétition","Event sheets","fogli di Competizione","Hojas de Competición","Fulles de Competició"]
[null,"Draw sheets","N_Rib_GmftHideDraws","feuilles Tirage au Sort","Draw sheets","fogli di Sorteggio","Hojas de sorteo","Fulles de sorteig"]
[null,"Competition Data sheets","N_Rib_GmftHideCompetitionData","feuilles de Données de Compétition","Competition Data sheets","fogli di Dati della Competizione","Hoja datos de la competición","Full dades de la competició"]
[null,"Hide Venue","N_Rib_GmftHideVenue","Venue","Hide Venue","Venue","Ocultar Sala","Amaga Sala"]
[null,"Display","N_Rib_GmftRegistrationSheets","Afficher","Display","Display","Mostrar","Mostra"]
[null,"Complete registrations","N_Rib_GmftCalculateCheckin","Compléter inscriptions","Complete registrations","Completa registrazione","Completar Inscripciones","Completar Inscripcions"]
[null,"Checkin","N_Rib_GmftGroupCheckIn","Checkin","Checkin","Checkin","Cheking","Cheking"]
[null,"Nb rows","N_Rib_GmftNumberOfRowsToAdd","Nb articles","Nb rows","Quantità di registrazione","Nº Filas","Nº Files"]
[null,"Add","N_Rib_GmftListsAddRows","Ajouter","Add","Inserisci","Agregar","Afegir"]
[null,"Remove 1 row","N_Rib_GmftListsRemoveRows","Supprimer 1 article","Remove 1 row","Rimuovere una riga","Remover 1 Fila","Remoure 1 Fila"]
[null,"List Management","N_Rib_GmftGroupListMgt","Gestion de liste","List Management","Gestione delle liste","Gestión de la Lista","Gestió de la Llista"]
[null,{"$f":"HLOOKUP(Language,D$2:L$1114,ROW()-1,FALSE)","v":"Navigation"},"N_Rib_GmftGroupNavigation","Navigation","Navigation","Navigazione","Navegación","Navegaciò"]
[null,"Display sheets",{"$f":"NAMEOF(B622)","v":"N_Rib_GmftMenuNav"},"Afficher les feuilles","Display sheets","Display i fogi","Mostrar Hojas","Mostra Fulls"]
[null,"Hide sheets",{"$f":"NAMEOF(B623)","v":"N_Rib_GmftMenuNavHide"},"Masquer les feuilles","Hide sheets","Nascondi i fogli","Ocultar Hojas","Amaga Fulls"]
[null,"Licences","N_Rib_GmftGroupLicences","Licences","Licences","Licenze","Licencias","Llicencias"]
[null,"Clubs",{"$f":"NAMEOF(B625)","v":"N_Rib_GmftGroupClubs"},"Clubs","Clubs","Club","Clubs","Clubs"]
[null,"Ranking","N_Rib_GmftGroupRanking","Classement","Ranking","Classifica","Clasificación","Clasificaciò"]
[null,"Teams Ranking",{"$f":"NAMEOF(B627)","v":"N_Rib_GmftGroupRankingTeams"},"Classement Equipes","Teams Ranking","Classifica Squadre","Clasificación Equipos","Clasificaciò Equips"]
[null,"Teams","N_Rib_GmftGroupTeams","Equipes","Teams","Squadre","Equipos","Equips"]
[null,"Refereeing",{"$f":"NAMEOF(B629)","v":"N_Rib_GmftGroupRefereeing"},"Arbitrages","Refereeing","Arbitraggio","Arbitrajes","Arbitratges"]
[null,"Timeline","N_Rib_GmftGroupTimeline","Agenda","Timeline","Sequenza temporale","Cronologia","Cronologia"]
[null,"Statistics",{"$f":"NAMEOF(B631)","v":"N_Rib_GmftGroupStats"},"Statistiques","Statistics","Statistica","Estadisticas","Estadístiques"]
[null,"Refresh",{"$f":"NAMEOF(B632)","v":"N_Rib_GmftUpdatePlayerTimelineFromTimeline"},"Rafraîchir","Refresh","Rinfrescare","Refrescar","Refrescar"]
[null,"Define Table",{"$f":"NAMEOF(B633)","v":"N_Rib_GmftCreateTableName"},"Définir Table","Define Table","Definire Tabella","Definir Mesa","Definir Taula"]
[null,"Define Group of Tables",{"$f":"NAMEOF(B634)","v":"N_Rib_GmftCreateGroupOfTablesName"},"Définir Groupe de Tables","Define Group of Tables","Definire Gruppo di Tabelle","Definir grupo de mesas","Definir grup de Taules"]
[null,"Define Model",{"$f":"NAMEOF(B635)","v":"N_Rib_GmftCreateModel"},"Définir Modèle","Define Model","Definire Modello","Definir Modelo","Definir Model"]
[null,"Undefining All Tables","N_Rib_GmftUndefineTableNames","Indéfinir Toutes les Tables","Undefining All Tables","Indefinendo Tutte le Tabelle","Indefinir todas las tablas","Indefinir totes les taules"]
[null,"Undefining All Groups",{"$f":"NAMEOF(B637)","v":"N_Rib_GmftUndefineGroupOfTableNames"},"Indéfinir Tous les Groupes","Undefining All Groups","Indefinendo Tutti i Gruppi","Indefinir todos los grupos","Indefinir tots els grups"]
[null,"Undefining All Models",{"$f":"NAMEOF(B638)","v":"N_Rib_GmftUndefineModels"},"Indéfinir Tous les Modèles","Undefining All Models","Indefinendo Tutti i Modelli","Indefinir todos los modelos","Indefinir tots els models"]
[null,"Venue Designing",{"$f":"NAMEOF(B639)","v":"N_Rib_GmftGroupVenueDefinition"},"Design de la Salle","Venue Designing","Progettazione di Locali","designar la Sala","Designar la Sala"]
[null,"Showing Venue Occupation",{"$f":"NAMEOF(B640)","v":"N_Rib_GmftGroupVenueShow"},"Affichage Occupation Salle","Showing Venue Occupation","Mostra Occupazione Sede","Mostrar Ocupación de la Sala","Mostra Ocupació de la Sala"]
[null,"Go Home","N_Rib_ScrTip_GmftHome","Accueil","Go Home","Home","Inicio","Inici"]
[null,"Showing Venue Occupation","N_Rib_SupTip_GmftHome","Retour à la feuille d'accueil","Showing Venue Occupation","Torna alla pagina iniziale","Volver a la pagina inicial","Tornar a la pàgina inicial"]
[null,"Version","N_Rib_ScrTip_GmftVersion","Version","Version","Versione","Versión","Versió"]
[null,"GMFT's Release notes","N_Rib_SupTip_GmftVersion","Evolutions du logiciel GMFT","GMFT's Release notes","Evoluzione del software GMFT","Notas de la versión de GMFT","Notes de la versió de GMFT"]
[null,"Settings","N_Rib_ScrTip_GmftParameters","Paramètres","Settings","Configurazione","Configuración","Configuració"]
[null,"Access to the GMFT configuration sheet to modify parameters value and export templates","N_Rib_SupTip_GmftParameters","Accéder à la configuration de GMFT pour modifier les valeurs des paramètres ainsi que l'adaptation des modèles pour les exports.","Access to the GMFT configuration sheet to modify parameters value and export templates","Accesso al foglio di configurazione GMFT per modificare il valore dei parametri ed esportare i modelli","Acceso a la hoja de configuración de GMFT para modificar el valor de los parámetros y exportar plantillas","Accés al full de configuració de GMFT per modificar el valor dels paràmetres i exportar plantilles"]
[null,"Event creation | Individuals | Teams | Doubles","N_Rib_GmftGroupHomeCreateEvents","Création Compétition | Individuels | Equipes | Doubles","Event creation | Individuals | Teams | Doubles","Creazione di eventi | Individui | squadre | doppi","Creación de eventos | Individuales | Equipos | Dobles ","Creació d'esdeveniments | individuals | equips | dobles "]
[null,"Official FISTF","N_Rib_GmftNewEvent_FISTF","FISTF Officiel","Official FISTF","Ufficiale FISTF","FISTF Oficial","FISTF Oficial"]
[null,"Predefined formula","N_Rib_GmftNewEvent_Predefined","Formules prédéfinies","Predefined formula","Formule predefinite","Formulas Predefinidas","Formules Predefinides"]
[null,"Compose formula","N_Rib_GmftNewEvent_Custom","Composer les formules","Compose formula","Comporre le formule","Componer Formulas","Compondre Formules"]
[null,"Exports","N_Rib_GmftGroupHomeExport","Exports","Exports","Esportazione","Exportar","Exportar"]
[null,"Web site","N_Rib_GmftWebSiteExport","Site Web","Web site","Sito Web","Sitio Web","Lloc Web"]
[null,{"$f":"HLOOKUP(Language,D$2:L$1114,ROW()-1,FALSE)","v":"Registrations"},{"$f":"NAMEOF(B653)","v":"N_Rib_GmftRegistrationsExport"},"Inscriptions","Registrations","Registrazione","Inscripciones","Inscripcions"]
[null,{"$f":"HLOOKUP(Language,D$2:L$1114,ROW()-1,FALSE)","v":"FISTF Export"},"N_Rib_GmftFISTFExport","Export FISTF","FISTF Export","Esportazione FISTF","Exportar FISTF","Exportar FISTF"]
[null,"Printing / Publishing","N_Rib_GmftGroupHomePrinting","Impressions / Publications","Printing / Publishing","Stampa / Pubblicazione","Imprimir / Publicar","Imprimir / Publicar"]
[null,"Initialize layout","N_Rib_GmftInitLayout","Initialiser Mise en Page","Initialize layout","Inizializza il layout","Inicializar diseño ","inicialitzar disseny "]
[null,"View Page Breaks","N_Rib_GmftViewPageBreaks","Voir Sauts de Page","View Page Breaks","Vedere interruzioni di pagina","Ver saltos de página","Veure salts de pàgina"]
[null,"Normal view","N_Rib_GmftViewNormal","Vue normale","Normal view","Vista normale","Vista Normal","Vista Normal"]
[null,{"$f":"HLOOKUP(Language,D$2:L$1114,ROW()-1,FALSE)","v":"Save results as PDF"},{"$f":"NAMEOF(B659)","v":"N_Rib_GmftSaveResultsAsPDF"},"Sauver les résultats en PDF","Save results as PDF","Salva i risultati come PDF","Salvar resultados como PDF","Salvar resultats com PDF"]
[null,"Print results","N_Rib_GmftPrintResults","Imprimer les résultats","Print results","Stampare risultati","Imprimir Resultados","Imprimir Resultats"]
[null,"Databases","N_Rib_GmftMenuSepDatabase","Bases de données","Databases","Banche dati","Base de Datos","Base de Dades"]
[null,"Registrations","N_Rib_GmftMenuSepRegistrations","Inscriptions","Registrations","Registrazione","Inscripciones","Inscripcions"]
[null,"Planning and Events","N_Rib_GmftMenuSepPlanningEvent","Planning et Epreuves","Planning and Events","Pianificazione ed Eventi","Planning y Eventos","Planning i Esdeveniments"]
[null,"Competitions data","N_Rib_GmftMenuSepCompData","Données des compétitions","Competitions data","Dati sulle competizioni","datos de las competición","dades de les competició"]
[null,"Venue","N_Rib_GmftMenuSepVenue","Salle","Venue","Palazetto","Sala","Sala"]
[null,"Number of rows",{"$f":"NAMEOF(B666)","v":"N_Rib_SupTip_GmftNumberOfRowsToAdd"},"Nombre d'articles","Number of rows","umero di righe","Número de filas ","Nombre de files"]
[null,"Number of rows to add to the list",{"$f":"NAMEOF(B667)","v":"N_Rib_ScrTip_GmftNumberOfRowsToAdd"},"Nombre d'articles à ajouter à la liste","Number of rows to add to the list","Numero di righe da aggiungere all'elenco","Número de filas para agregar a la lista","Número de files per afegir a la llista"]
[null,"Add rows","N_Rib_ScrTip_GmftListsAddRows","Ajouter les articles","Add rows","Aggiungi righe","Agregar Filas","afegir Files"]
[null,"Addthe specified number of rows","N_Rib_SupTip_GmftListsAddRows","Ajouter le nombre d'articles spécifié","Addthe specified number of rows","Aggiungi il numero specificato di righe","Agrega el número especificado de filas ","Afegeix el nombre especificat de files"]
[null,"Delete 1 row","N_Rib_ScrTip_GmftListsRemoveRows","Supprimer 1 article","Delete 1 row","Elimina 1 riga"," Eliminar 1 Fila","Eliminar 1 Fila"]
[null,"Delete the row after selection of cells of the row to delete","N_Rib_SupTip_GmftListsRemoveRows","Supprimer l'article après avoir sélectionné des cellules de l'article à supprimer","Delete the row after selection of cells of the row to delete","Elimina la riga dopo aver selezionato le celle della riga da eliminare","Eliminar la fila después de la selección de celdas de la fila para eliminar ","Eliminar la fila després de la selecció de cel·les de la fila per eliminar"]
[null,"Complete the registration grid","N_Rib_ScrTip_GmftCalculateCheckin","Compléter la grille des inscriptions","Complete the registration grid","Completa la griglia di registrazione","Complete la cuadrícula de registro ","Completeu la quadrícula de registre "]
[null,"Update the complete listing table","N_Rib_SupTip_GmftCalculateCheckin","Mettre à jour le tableau complet des inscriptions","Update the complete listing table","Aggiorna la tabella di quotazione completa","Actualizar la tabla de listado completa ","Actualitzar la taula de llistat completa "]
[null,"Save the registrations","N_Rib_ScrTip_GmftMAJListes","Enregistrer les inscriptions","Save the registrations","Salva le registrazioni","Salvar Inscripciones","Salvar Inscripcions"]
[null,"Register checkins and participations in different events","N_Rib_SupTip_GmftMAJListes","Enregistrer les inscriptions et participations aux différentes épreuves","Register checkins and participations in different events","Registrare i check-in e le partecipazioni in diversi eventi","Registra checkins y participaciones en diferentes eventos ","Registra checkins i participacions en diferents esdeveniments"]
[null,{"$f":"HLOOKUP(Language,D$2:L$1114,ROW()-1,FALSE)","v":"Help for data entry"},"N_Rib_ScrTip_GmftTeamsForm","Aide à la saisie","Help for data entry","Aiuto per l'inserimento dei dati","Ayuda para la entrada de datos ","Ajuda per a l'entrada de dades "]
[null,"Help for data entry",{"$f":"NAMEOF(B677)","v":"N_Rib_ScrTip_GmftCheckinForm"},"Aide à la saisie","Help for data entry","Aiuto per l'inserimento dei dati","Ayuda para la entrada de datos ","Ajuda per a l'entrada de dades "]
[null,{"$f":"HLOOKUP(Language,D$2:L$1114,ROW()-1,FALSE)","v":"Bulk entry form with help on finding the names of the clubs."},{"$f":"NAMEOF(B678)","v":"N_Rib_SupTip_GmftTeamsForm"},"Formulaire de saisie en masse avec aide sur reherche des noms des clubs.","Bulk entry form with help on finding the names of the clubs.","Modulo di iscrizione in blocco con aiuto nella ricerca dei nomi dei club.","Formulario de inscripción masiva con ayuda para buscar nombres de clubes.","Formulari d'inscripció massiva amb ajuda per cercar noms de clubs."]
[null,"Bulk entry form with help on finding the names of the players.","N_Rib_SupTip_GmftCheckinForm","Formulaire de saisie en masse avec aide sur reherche des noms des joueurs.","Bulk entry form with help on finding the names of the players.","Modulo di iscrizione in blocco con aiuto nella ricerca dei nomi dei giocatori.","Formulario de inscripción masiva con ayuda para encontrar los nombres de los jugadores. ","Formulari d'inscripció massiva amb ajuda per trobar els noms dels jugadors."]
[null,"Import FISTF licences","N_Rib_ScrTip_GmftImportLicenses","Import des licences FISTF","Import FISTF licences","Importa licenze FISTF","Importar licencias FISTF","Importa llicències FISTF"]
[null,"mport the FISTF Database.xlsm file and get the players licenses","N_Rib_SupTip_GmftImportLicenses","Importer le fichier Database.xlsm de la FISTF et y récupérer les licences des joueurs","mport the FISTF Database.xlsm file and get the players licenses","mport il file Fistf Database.xlsm e ottieni le licenze per i giocatori","importar el archivo FISTF Database.xlsm y obtener las licencias de los jugadores ","importar el fitxer FISTF Database.xlsm i obtenir les llicències dels jugadors "]
[null,"Import of clubs","N_Rib_ScrTip_GmftImportClubs","Import des clubs","Import of clubs","Importazione di club","Importación de Clubs","Importació de Clubs"]
[null,"Import the FISTF Database.xlsm file and get the club references","N_Rib_SupTip_GmftImportClubs","Importer le fichier Database.xlsm de la FISTF et y récupérer les références des clubs","Import the FISTF Database.xlsm file and get the club references","Importa il file Database.xlsm di FISTF e ottieni i riferimenti del club","Importe el archivo FISTF Database.xlsm y obtenga las referencias del club","Importa l'arxiu FISTF Database.xlsm i obtingui les referències de el club"]
[null,"Rankings import","N_Rib_ScrTip_GmftImportRanking","Import des classements","Rankings import","Importazione delle classifiche","Importación de clasificaciones ","Importació de clasificacions "]
[null,"Import the Web-YYYYMM.xlsx file to get the world ranking of players",{"$f":"NAMEOF(B685)","v":"N_Rib_SupTip_GmftImportRanking"},"Import du fichier Web-YYYYMM.xlsx pour récupérer le classement mondial des joueurs","Import the Web-YYYYMM.xlsx file to get the world ranking of players","Importa il file Web-YYYYMM.xlsx per ottenere il ranking mondiale dei giocatori","Importe el archivo Web-YYYYMM.xlsx para obtener el ranking mundial de jugadores ","Importa l'arxiu web-YYYYMM.xlsx per obtenir el rànquing mundial de jugadors "]
[null,"Import team rankings","N_Rib_ScrTip_GmftImportRankingTeams","Import des classements équipes","Import team rankings","Importa le classifiche delle squadre","Importar Ranking Equipos","Importar Ranking Equips"]
[null,"Import the Web-YYYYMM.xlsx file to retrieve the world ranking of teams","N_Rib_SupTip_GmftImportRankingTeams","Import du fichier Web-YYYYMM.xlsx pour récupérer le classement mondial des équipes","Import the Web-YYYYMM.xlsx file to retrieve the world ranking of teams","Importa il file Web-YYYYMM.xlsx per recuperare la classifica mondiale dei team","Importe el archivo Web-YYYYMM.xlsx para recuperar la clasificación mundial de equipos","Importa l'arxiu web-YYYYMM.xlsx per recuperar la classificació mundial d'equips"]
[null,"Sort the players","N_Rib_ScrTip_GmftSortPlayersInTeams","Trier les joueurs","Sort the players","Ordina i giocatori","Clasifica a los jugadores ","Classifica als jugadors "]
[null,{"$f":"HLOOKUP(Language,D$2:L$1114,ROW()-1,FALSE)","v":"Sort players from each team alphabetically"},"N_Rib_SupTip_GmftSortPlayersInTeams","Trier les joueurs de chaque équipe par ordre alphabétique ","Sort players from each team alphabetically","Ordina i giocatori di ogni squadra in ordine alfabetico","Ordenar los jugadores de cada equipo alfabéticamente ","Ordenar els jugadors de cada equip alfabèticament"]
[null,"Update of Table","N_Rib_ScrTip_GmftUpdateRefereeing","Mise à jour du tableau","Update of Table","Aggiornamento della tabella","Actualización de la tabla ","Actualització de la taula"]
[null,"Update of the refereeing table","N_Rib_SupTip_GmftUpdateRefereeing","Mise à jour du tableau des arbitrages","Update of the refereeing table","Aggiornamento del tavolo arbitrale","Actualización de la mesa de arbitraje ","Actualització de la taula d'arbitratge"]
[null,"Update of Table","N_Rib_ScrTip_GmftUpdatePlayerTimelineFromTimeline","Mise à jour du tableau","Update of Table","Aggiornamento della tabella","Actualización de la tabla ","Actualització de la taula"]
[null,"Update of the table of the individual schedules of the players","N_Rib_SupTip_GmftUpdatePlayerTimelineFromTimeline","Mise à jour du tableau des planning individuels des joueurs","Update of the table of the individual schedules of the players","Aggiornamento della tabella dei singoli programmi dei giocatori","Actualización de la tabla de los horarios individuales de los jugadores ","Actualització de la taula dels horaris individuals dels jugadors"]
[null,"Update of Table","N_Rib_ScrTip_GmftUpdateStatistics","Mise à jour du tableau","Update of Table","Aggiornamento della tabella","Actualización de la Tabla","Actualització de la Taula"]
[null,"Update player statistics table","N_Rib_SupTip_GmftUpdateStatistics","Mise à jour du tableau des statistiques des joueurs","Update player statistics table","Aggiorna la tabella delle statistiche del giocatore","Actualizar tabla de estadísticas de jugadores ","Actualitzar taula d'estadístiques de jugadors"]
[null,"Create a table","N_Rib_ScrTip_GmftCreateTableName","Créer une table","Create a table","Crea un tavolo","Crear una Tabla ","Crear una Taula"]
[null,"Declare a new table after selecting the grouped cells representing the table and containing the table name","N_Rib_SupTip_GmftCreateTableName","Déclarer une nouvelle table après avoir sélectionner les cellules groupées représentant la table et contenant le nom de la table ","Declare a new table after selecting the grouped cells representing the table and containing the table name","Dichiarare una nuova tabella dopo aver selezionato le celle raggruppate che rappresentano la tabella e contenente il nome della tabella","Declare una nueva tabla después de seleccionar las celdas agrupadas que representan la tabla y que contienen el nombre de la tabla ","Declari una nova taula després de seleccionar les cel·les agrupades que representen la taula i que contenen el nom de la taula"]
[null,"Create a table group","N_Rib_ScrTip_GmftCreateGroupOfTablesName","Créer un groupe de tables","Create a table group","Crea un gruppo di tabelle","Crea un grupo de mesas ","Crea un grup de taules"]
[null,"Declare a new table group after selecting all cells of the area containing the group name in the top-left cell","N_Rib_SupTip_GmftCreateGroupOfTablesName","Déclarer un nouveau groupe de tables après avoir sélectionné l'ensemble des cellules de la zone contenant dans la cellule haut-gauche le nom du groupe ","Declare a new table group after selecting all cells of the area containing the group name in the top-left cell","Dichiarare un nuovo gruppo di tabelle dopo aver selezionato tutte le celle dell'area contenente il nome del gruppo nella cella in alto a sinistra","Declare un nuevo grupo de mesas después de seleccionar todas las celdas del área que contiene el nombre del grupo en la celda superior izquierda ","Declari un nou grup de taules després de seleccionar totes les cel·les de l'àrea que conté el nom de el grup a la cel·la superior esquerra"]
[null,"Create a table / group template","N_Rib_ScrTip_GmftCreateModel","Créer un modèle de table/groupe","Create a table / group template","Crea un modello di tabella / gruppo","Crear una plantilla de tabla / grupo ","Crear una plantilla de taula / grup "]
[null,"Create a template with the name of the event or one of the terms \"Free\" or \"FreeGroup\". Any event in the planning must have a dedicated model. Similarly, the \"Free\" and \"FreeGroup\" models must be defined.",{"$f":"NAMEOF(B701)","v":"N_Rib_SupTip_GmftCreateModel"},"Créer un modèle portant le nom de l'épreuve ou un des termes \"Free\" ou \"FreeGroup\". Toute épreuve du planning doit avoir un modèle dédié. De même, les modèles \"Free\" et \"FreeGroup\" doivent être obligatoirement définis.","Create a template with the name of the event or one of the terms \"Free\" or \"FreeGroup\". Any event in the planning must have a dedicated model. Similarly, the \"Free\" and \"FreeGroup\" models must be defined.","Crea un modello con il nome dell'evento o uno dei termini \"Libero\" o \"Gruppo libero\". Qualsiasi evento nella pianificazione deve avere un modello dedicato. Allo stesso modo, i modelli \"Free\" e \"FreeGroup\" devono essere definiti."," Crea una plantilla con el nombre del evento o uno de los términos \"Libre\" o \"GrupoLibre\". Cualquier evento en la planificación debe tener un modelo dedicado. Asimismo, se deben definir los modelos \"Free\" y \"FreeGroup\"."," Crea una plantilla amb el nom de l'esdeveniment o un dels termes \"Lliure\" o \"GrupoLibre\". Qualsevol esdeveniment en la planificació ha de tenir un model dedicat. Així mateix, s'han de definir els models \"Free\" i \"FreeGroup\"."]
[null,"Delete tables","N_Rib_ScrTip_GmftUndefineTableNames","Supprimer les tables","Delete tables","Elimina tabelle","Eliminar Tablas","Eliminar Taules"]
[null,"Delete definitions from all tables","N_Rib_SupTip_GmftUndefineTableNames","Supprimer les définitions de toutes les tables","Delete definitions from all tables","Elimina le definizioni da tutte le tabelle","Eliminar definiciones de todas las tablas ","Eliminar definicions de totes les taules"]
[null,"Delete table groups","N_Rib_ScrTip_GmftUndefineGroupOfTableNames","Supprimer les groupes de tables","Delete table groups","Elimina gruppi di tabelle","Eliminar grupos de tablas ","Eliminar grups de taules "]
[null,"Delete definitions from all tables","N_Rib_SupTip_GmftUndefineGroupOfTableNames","Supprimer les définitions de toutes les tables","Delete definitions from all tables","Elimina le definizioni da tutte le tabelle","Eliminar definiciones de todas las tablas ","Eliminar definicions de totes les taules"]
[null,"Delete table / group templates","N_Rib_ScrTip_GmftUndefineModels","Supprimer les modèles de table/groupe","Delete table / group templates","Elimina modelli tabella / gruppo","Eliminar plantillas de tabla / grupo","Eliminar plantilles de taula / grup"]
[null,"Delete definitions from all table / group templates","N_Rib_SupTip_GmftUndefineModels","Supprimer les définitions de tous les modèles de table/groupe","Delete definitions from all table / group templates","Elimina le definizioni da tutti i modelli di tabelle / gruppi","Eliminar definiciones de todas las plantillas de tabla / grupo ","Eliminar definicions de totes les plantilles de taula / grup"]
[null,"Information displayed","N_Rib_ScrTip_TableDisplayDropDown","Information affichée","Information displayed","Informazioni visualizzate","Información mostrada ","Informació mostrada "]
[null,"Type of information to display on tables","N_Rib_SupTip_TableDisplayDropDown","Type d'information à afficher sur les tables","Type of information to display on tables","Tipo di informazioni da visualizzare sulle tabelle","Tipo de información para mostrar en tablas ","Tipus d'informació per mostrar en taules "]
[null,"Session number","N_Rib_ScrTip_GmftSession_Number","Numéro Session","Session number","Numero di sessione","Número de Sesión","Número de Sessió"]
[null,"Planning series number to display","N_Rib_SupTip_GmftSession_Number","Numéro de la série du planning à afficher","Planning series number to display","Pianificare il numero di serie da visualizzare","Número de serie de planificación para mostrar ","Número de sèrie de planificació per mostrar"]
[null,"FISTF official event","N_Rib_ScrTip_GmftNewEvent_FISTF","Epreuve Officielle FISTF","FISTF official event","Evento ufficiale FISTF","Evento Oficial FISTF","Esdeveniment Oficial FISTF"]
[null,"Creation of an event based on the official formulas of the FISTF","N_Rib_SupTip_GmftNewEvent_FISTF","Création d'une épreuve basée sur les formules officielles de la FISTF","Creation of an event based on the official formulas of the FISTF","Creazione di un evento basato sulle formule ufficiali della FISTF","Creación de un evento basado en las fórmulas oficiales del FISTF ","Creació d'un esdeveniment basat en les fórmules oficials del FISTF"]
[null,"Event based on predefined formulas","N_Rib_ScrTip_GmftNewEvent_Predefined","Epreuve sur formules prédéfinies","Event based on predefined formulas","Evento basato su formule predefinite","Evento basado en fórmulas predefinidas ","Esdeveniment basat en fórmules predefinides"]
[null,"Creation of an event based on predefined formulas of 3 to 128 players","N_Rib_SupTip_GmftNewEvent_Predefined","Création d'une épreuve basée sur des formules prédéfinies de 3 à 128 joueurs","Creation of an event based on predefined formulas of 3 to 128 players","Creazione di un evento basato su formule predefinite da 3 a 128 giocatori","Creación de un evento basado en fórmulas predefinidas de 3 a 128 jugadores ","Creació d'un esdeveniment basat en fórmules predefinides de 3 a 128 jugadors"]
[null,"Custom event","N_Rib_ScrTip_GmftNewEvent_Custom","Epreuve personnalisée","Custom event","Evento personalizzato","Evento Personalizado ","Esdeveniment Personalitzat"]
[null,"Creation of a completely personalized event. ATTENTION: the qualification links between the group stages and the final stages must be entered in the event tab.","N_Rib_SupTip_GmftNewEvent_Custom","Création d'une épreuve entièrement personnalisée. ATTENTION: les liens de qualification entre les phases de poule et les phases finales sont à renseigner dans l'onglet de l'épreuve.","Creation of a completely personalized event. ATTENTION: the qualification links between the group stages and the final stages must be entered in the event tab.","Creazione di un evento personalizzato personalizzato. ATTENZIONE: i link di qualificazione tra i gruppi e i corsi finali devono essere inseriti nella scheda dell'evento.","Creación de un evento completamente personalizado. ATENCIÓN: los enlaces de clasificación entre las sesiones de grupos y las sesiones finales deben ingresarse en la pestaña del evento. ","Creació d'un esdeveniment completament personalitzat. ATENCIÓ: els enllaços de classificació entre les etapes de grups i les etapes finals s'han d'ingressar en la pestanya de l'esdeveniment."]
[null,"Web export",{"$f":"NAMEOF(B718)","v":"N_Rib_ScrTip_GmftWebSiteExport"},"Export Web","Web export","Esportazione Web","Exportación Web","Exportació Web"]
[null,"Export Data to the GMFT Web Site","N_Rib_SupTip_GmftWebSiteExport","Exporter les données vers le Site Web GMFT","Export Data to the GMFT Web Site","Esporta dati per GMFT Web Site","Exportar datos al sitio web de GMFT ","Exportar dades a la pàgina web de GMFT "]
[null,{"$f":"HLOOKUP(Language,D$2:L$1114,ROW()-1,FALSE)","v":"Registrations export"},{"$f":"NAMEOF(B720)","v":"N_Rib_ScrTip_GmftRegistrationsExport"},"Export Inscriptions","Registrations export","Esportazione registrazioni","Exportar Registros","Exportar Registres"]
[null,"Export Data to the Registrations Web Site","N_Rib_SupTip_GmftRegistrationsExport","Exporter les Inscriptions vers le Site Web Inscriptions","Export Data to the Registrations Web Site","Esporta i dati sul sito Web delle registrazioni","Exportar datos al sitio web de registros ","Exportar dades a la pàgina web de registres "]
[null,"FISTF export","N_Rib_ScrTip_GmftFISTFExport","Export FISTF","FISTF export","Esportazione FISTF","Exportar FISTF","Exportar FISTF"]
[null,{"$f":"HLOOKUP(Language,D$2:L$1114,ROW()-1,FALSE)","v":"Export to official FISTF results file"},"N_Rib_SupTip_GmftFISTFExport","Exporter dans le fichier résultats officiel FISTF","Export to official FISTF results file","Esportare nel file di risultati FISTF ufficiale","Exportar a archivo de resultados oficial FISTF ","Exporta a fitxer de resultats oficial FISTF "]
[null,"Initialize layout","N_Rib_ScrTip_GmftInitLayout","Initialiser mise en page","Initialize layout","Inizializza il layout","Inicializar diseño ","Inicialitzar disseny "]
[null,"Initialize headers and footers of different sheets for printing","N_Rib_SupTip_GmftInitLayout","Initialiser les entêtes et pieds de page des différentes feuilles en vue de leur impression","Initialize headers and footers of different sheets for printing","Inizializza intestazioni e piè di pagina di fogli diversi per la stampa","Inicializar encabezados y pies de página de diferentes hojas para imprimir ","Inicialitzar capçaleres i peus de pàgina de diferents fulles per imprimir"]
[null,"Show page breaks","N_Rib_ScrTip_GmftViewPageBreaks","Afficher les sauts de page","Show page breaks","Mostra interruzioni di pagina","Mostrar saltos de página ","Mostra salts de pàgina "]
[null,"Display the sheets to print in layout mode to set the page breaks before printing","N_Rib_SupTip_GmftViewPageBreaks","Afficher les feuilles à imprimer en mode mise en page pour régler les sauts de page avant impression","Display the sheets to print in layout mode to set the page breaks before printing","Visualizza i fogli per stampare in modalità layout per impostare le interruzioni di pagina prima della stampa","Muestre las hojas para imprimir en el modo de diseño para establecer los saltos de página antes de imprimir ","Mostri les fulles per imprimir en la manera de disseny per establir els salts de pàgina abans d'imprimir"]
[null,"Return to normal view","N_Rib_ScrTip_GmftViewNormal","Revenir à la vue normale","Return to normal view","Ritorna alla visualizzazione normale","Volver a la vista normal ","Tornar a la vista normal "]
[null,"Return the sheets to print in the standard view mode","N_Rib_SupTip_GmftViewNormal","Remettre les feuilles à imprimer dans le mode de visualisation standard","Return the sheets to print in the standard view mode","Restituire i fogli per stampare nella modalità di visualizzazione standard","Devuelva las hojas para imprimir en el modo de vista estándar ","Torni les fulles per imprimir en la manera de vista estàndard "]
[null,{"$f":"HLOOKUP(Language,D$2:L$1114,ROW()-1,FALSE)","v":"Save results as PDF"},{"$f":"NAMEOF(B730)","v":"N_Rib_ScrTip_GmftSaveResultsAsPDF"},"Exporter les résultats en PDF","Save results as PDF","Salva i risultati come PDF","Salvar resultados en PDF","Salvar resultats en PDF"]
[null,"Print the results","N_Rib_ScrTip_GmftPrintResults","Imprimer les résultats","Print the results","Stampa i risultati","Imprimir los resultados","Imprimir els resultats"]
[null,{"$f":"HLOOKUP(Language,D$2:L$1114,ROW()-1,FALSE)","v":"Make visible only the worksheets useful for the results and save the workbook as a PDF file"},{"$f":"NAMEOF(B732)","v":"N_Rib_SupTip_GmftSaveResultsAsPDF"},"Ne rendre visibles que les onglets utiles pour les résultats et enregistrer le classeur en fichier PDF","Make visible only the worksheets useful for the results and save the workbook as a PDF file","Rendi visibili solo le schede utili per i risultati e salva la cartella di lavoro come file PDF","Haga visibles solo las hojas de trabajo útiles para los resultados y guarde el libro de trabajo como un archivo PDF ","Feu visibles només els fulls de treball útils per als resultats i guardi el llibre de treball com un arxiu PDF"]
[null,"Prepare printing and switch to \"Print Preview\" mode to print","N_Rib_SupTip_GmftPrintResults","Préparer l'impression et passer en mode \"Aperçu avant impression\" pour imprimer","Prepare printing and switch to \"Print Preview\" mode to print","Preparare la stampa e passare alla modalità \"Anteprima di stampa\" per stampare","Prepare la impresión y cambie al modo \"Vista previa de impresión\" para imprimir ","Prepareu la impressió i canviï a la manera \"Vista prèvia d'impressió\" per imprimir"]
[null,"Moving Matches",{"$f":"NAMEOF(B734)","v":"N_Rib_GmftGroupPlanningMoveMatches"},"Déplacement Matches","Moving Matches","Partite in movimento","Partidos en Movimiento ","Partits en Moviment "]
[null,"Sessions management",{"$f":"NAMEOF(B735)","v":"N_Rib_GmftGroupPlanningSessionMgt"},"Gestion des sessions","Sessions management","Gestione delle sessioni","Gestión de las sesiones","Gestió de les sessions"]
[null,"Scores recordings","N_Rib_GmftGroupPlanningRecord","Enregistrer scores","Scores recordings","Scores registrazioni","Registrar Resultados","Registrar Resultats"]
[null,"Refereeing Management","N_Rib_GmftGroupPlanningReferees","Gestion arbitrage","Refereeing Management","Gestione dell'arbitraggio","Gestión de arbitraje ","Gestió de arbitratje "]
[null,"Exports","N_Rib_GmftGroupPlanningExports","Exports","Exports","Esportazioni","Exportaciones ","Exportacions "]
[null,"Dashboard","N_Rib_GmftGroupPlanningDashboard","Dashboard","Dashboard","Dashboard","Dashboard","Dashboard"]
[null,"Display models",{"$f":"NAMEOF(B740)","v":"N_Rib_GmftGroupParameters"},"Afficher les modèles","Display models","Dashboard","Mostrar modelos ","Mostra models "]
[null,"Move up 1 line",{"$f":"NAMEOF(B741)","v":"N_Rib_GmftMoveMatchesUp"},"Monter d'1 ligne","Move up 1 line","Visualizza i modelli","Subir 1 línea ","Pujar 1 línea "]
[null,{"$f":"N_Rib_GmftMoveMatchesUp","v":"Move up 1 line"},"N_Rib_ScrTip_GmftMoveMatchesUp","N / A","N / A","N / A"," N / A"," N / A"]
[null,{"$f":"HLOOKUP(Language,D$2:L$1114,ROW()-1,FALSE)","v":"Move up selected matches by 1 line"},"N_Rib_SupTip_GmftMoveMatchesUp","Monter d'1 ligne les matches sélectionnés","Move up selected matches by 1 line","Sposta le partite selezionate di 1 linea","Subir los partidos seleccionados en 1 línea ","Pujar els partits seleccionats en 1 línia "]
[null,{"$f":"HLOOKUP(Language,D$2:L$1114,ROW()-1,FALSE)","v":"Move down 1 line"},"N_Rib_GmftMoveMatchesDown","Desc. d'1 ligne","Move down 1 line","Abbassati di 1 riga","Bajar 1 línea ","Baixar 1 línea "]
[null,{"$f":"N_Rib_GmftMoveMatchesDown","v":"Move down 1 line"},"N_Rib_ScrTip_GmftMoveMatchesDown","N / A","N / A","N / A"," N / A"," N / A"]
[null,{"$f":"HLOOKUP(Language,D$2:L$1114,ROW()-1,FALSE)","v":"Move down selected matches by 1 line"},"N_Rib_SupTip_GmftMoveMatchesDown","Descendre d'1 ligne les matches sélectionnés","Move down selected matches by 1 line","Sposta le partite selezionate di 1 linea","Bajar los partidos seleccionados en 1 línea ","Baixar els partits seleccionats en 1 línia "]
[null,{"$f":"HLOOKUP(Language,D$2:L$1114,ROW()-1,FALSE)","v":"Delete Matches"},{"$f":"NAMEOF(B747)","v":"N_Rib_GmftDeleteMatches"},"Suppr. Matches","Delete Matches","Elimina partite","Eliminar Partidos","Eliminar Partits"]
[null,{"$f":"N_Rib_GmftDeleteMatches","v":"Delete Matches"},"N_Rib_ScrTip_GmftDeleteMatches","N / A","N / A","N / A","N / A","N / A"]
[null,{"$f":"HLOOKUP(Language,D$2:L$1114,ROW()-1,FALSE)","v":"Delete selected matches"},"N_Rib_SupTip_GmftDeleteMatches","Supprimer les matches sélectionnés","Delete selected matches","Elimina le partite selezionate","Eliminar partidos seleccionados","Eliminar partits seleccionats"]
[null,{"$f":"HLOOKUP(Language,D$2:L$1114,ROW()-1,FALSE)","v":"Prev. session"},"N_Rib_GmftMoveMatchesSessionUp","Session préc.","Prev. session","Sessione prec.","Prev. Sesión","Prev. Sessió"]
[null,{"$f":"N_Rib_GmftMoveMatchesSessionUp","v":"Prev. session"},"N_Rib_ScrTip_GmftMoveMatchesSessionUp","n / a","N / A","N / A","N / A","N / A"]
[null,{"$f":"HLOOKUP(Language,D$2:L$1114,ROW()-1,FALSE)","v":"Move selected matches to the beginning of previous session"},{"$f":"NAMEOF(B752)","v":"N_Rib_SupTip_GmftMoveMatchesSessionUp"},"Déplacer les matchs sélectionnés au début de la session précédente","Move selected matches to the beginning of previous session","Sposta le partite selezionate all'inizio della sessione precedente","Mover los partidos seleccionados al comienzo de la sesión anterior ","Moure els partits seleccionats a l'inici de la sessió anterior"]
[null,{"$f":"HLOOKUP(Language,D$2:L$1114,ROW()-1,FALSE)","v":"Next session"},"N_Rib_GmftMoveMatchesSessionDown","Session suiv.","Next session","Pross. sessione","Próxima sesión ","Próxima sessió"]
[null,{"$f":"N_Rib_GmftMoveMatchesSessionDown","v":"Next session"},"N_Rib_ScrTip_GmftMoveMatchesSessionDown","n / a","N / A","N / A","N / A","N / A"]
[null,{"$f":"HLOOKUP(Language,D$2:L$1114,ROW()-1,FALSE)","v":"Move selected matches to the beginning of next session"},"N_Rib_SupTip_GmftMoveMatchesSessionDown","Déplacer les matchs sélectionnés au début de la session suivante","Move selected matches to the beginning of next session","Sposta le partite selezionate all'inizio della prossima sessione","Mover las coincidencias seleccionadas al comienzo de la siguiente sesión ","Moure les coincidències seleccionades a el començament de la següent sessió "]
[null,{"$f":"HLOOKUP(Language,D$2:L$1114,ROW()-1,FALSE)","v":"Session Nbr "},"N_Rib_GmftMoveMatchesToParticularSession","Session N° ","Session Nbr ","Sessione N°","Sesión Nº","Sessió Nº"]
[null,{"$f":"N_Rib_GmftMoveMatchesToParticularSession","v":"Session Nbr "},"N_Rib_ScrTip_GmftMoveMatchesToParticularSession","n / a","N / A","N / A","N / A","N / A"]
[null,{"$f":"HLOOKUP(Language,D$2:L$1114,ROW()-1,FALSE)","v":"Move selected matches to the beginning of a dedicated session"},"N_Rib_SupTip_GmftMoveMatchesToParticularSession","Déplacer les matchs sélectionnés au début d'une session spécifiée","Move selected matches to the beginning of a dedicated session","Sposta le partite selezionate all'inizio di una sessione dedicata","Mover los partidos seleccionados al comienzo de una sesión dedicada ","Moure els partits seleccionats a el començament d'una sessió dedicada"]
[null,{"$f":"HLOOKUP(Language,D$2:L$1114,ROW()-1,FALSE)","v":"Insert before"},"N_Rib_GmftPlanning_InsertSession","Insérer avant","Insert before","Inserisci prima","Insertar antes ","Incrusta abans "]
[null,{"$f":"N_Rib_GmftPlanning_InsertSession","v":"Insert before"},"N_Rib_ScrTip_GmftPlanning_InsertSession","N / A","N / A","N / A","N / A","N / A"]
[null,{"$f":"HLOOKUP(Language,D$2:L$1114,ROW()-1,FALSE)","v":"Insert a new session before selected one"},"N_Rib_SupTip_GmftPlanning_InsertSession","Insérer une nouvelle session avant celle sélectionnée","Insert a new session before selected one","Inserisci una nuova sessione prima di quella selezionata","Insertar una nueva sesión antes de la seleccionada ","Inserir una nova sessió abans de la seleccionada "]
[null,{"$f":"HLOOKUP(Language,D$2:L$1114,ROW()-1,FALSE)","v":"Delete this one"},"N_Rib_GmftPlanning_DeleteThisSession","Suppr. celle-ci","Delete this one","Elimina questo","Eliminar este ","Eliminar aquest "]
[null,{"$f":"N_Rib_GmftPlanning_DeleteThisSession","v":"Delete this one"},"N_Rib_ScrTip_GmftPlanning_DeleteThisSession","N / A","N / A","N / A","N / A ","N / A "]
[null,{"$f":"HLOOKUP(Language,D$2:L$1114,ROW()-1,FALSE)","v":"Delete selected session"},"N_Rib_SupTip_GmftPlanning_DeleteThisSession","Supprimer la session sélectionnée","Delete selected session","Elimina la sessione selezionata","Eliminar sesión seleccionada ","Eliminar sessió seleccionada "]
[null,{"$f":"HLOOKUP(Language,D$2:L$1114,ROW()-1,FALSE)","v":"Add at the end"},"N_Rib_GmftPlanning_AddSession","Ajouter à la fin","Add at the end","Aggiungi alla fine","Agregar al final ","Afegir al final "]
[null,{"$f":"N_Rib_GmftPlanning_AddSession","v":"Add at the end"},"N_Rib_ScrTip_GmftPlanning_AddSession","N / A","N / A","N / A","N / A","N / A"]
[null,{"$f":"HLOOKUP(Language,D$2:L$1114,ROW()-1,FALSE)","v":"Add a new session at the end of Planning"},"N_Rib_SupTip_GmftPlanning_AddSession","Ajouter une nouvelle session à la fin du planning","Add a new session at the end of Planning","Aggiungi una nuova sessione al termine della pianificazione","Agregue una nueva sesión al final de Planning ","Afegiu una nova sessió a la fi de Planning "]
[null,{"$f":"HLOOKUP(Language,D$2:L$1114,ROW()-1,FALSE)","v":"Delete last"},"N_Rib_GmftPlanning_DeleteSession","Suppr. dernière","Delete last","Elimina l'ultimo","Eliminar último","Eliminar últim"]
[null,{"$f":"N_Rib_GmftPlanning_DeleteSession","v":"Delete last"},"N_Rib_ScrTip_GmftPlanning_DeleteSession","N / A","N / A","N / A","N / A ","N / A "]
[null,{"$f":"HLOOKUP(Language,D$2:L$1114,ROW()-1,FALSE)","v":"Delete the last session of the Planning"},"N_Rib_SupTip_GmftPlanning_DeleteSession","Supprimer la dernière session du planning","Delete the last session of the Planning","Elimina l'ultima sessione della pianificazione","Eliminar la última sesión de la Planificación ","Eliminar l'última sessió de la Planificació "]
[null,{"$f":"HLOOKUP(Language,D$2:L$1114,ROW()-1,FALSE)","v":"Copy scores"},{"$f":"NAMEOF(B771)","v":"N_Rib_GmftRecopier_matches"},"Recopier scores","Copy scores","Copia i punteggi","Copiar puntuaciones ","Còpia puntuacions "]
[null,{"$f":"N_Rib_GmftRecopier_matches","v":"Copy scores"},"N_Rib_ScrTip_GmftRecopier_matches","N / A","N / A","N / A","N / A ","N / A "]
[null,{"$f":"HLOOKUP(Language,D$2:L$1114,ROW()-1,FALSE)","v":"Copy scores in event sheets and invalidate"},"N_Rib_SupTip_GmftRecopier_matches","Recopier les score dans les feuilles d'épreuve et dévalider","Copy scores in event sheets and invalidate","Copia i punteggi nei fogli degli eventi e invalida","Copiar puntuaciones en hojas de eventos e invalidar ","Copia puntuacions en fulls d'esdeveniments i invalidar "]
[null,{"$f":"HLOOKUP(Language,D$2:L$1114,ROW()-1,FALSE)","v":"Validate scores"},"N_Rib_GmftValider_matches","Valider scores","Validate scores","Convalida i punteggi","Validar Resultados ","Validar Resultats "]
[null,{"$f":"N_Rib_GmftValider_matches","v":"Validate scores"},"N_Rib_ScrTip_GmftValider_matches","N / A","N / A","N / A","N / A ","N / A "]
[null,{"$f":"HLOOKUP(Language,D$2:L$1114,ROW()-1,FALSE)","v":"Copy scores in event sheets and validate"},"N_Rib_SupTip_GmftValider_matches","Recopier les score dans les feuilles d'épreuve et valider","Copy scores in event sheets and validate","Copia i punteggi nei fogli degli eventi e convalida","Copiar puntuaciones en hojas de eventos y validar ","Copia puntuacions en fulls d'esdeveniments i validar "]
[null,{"$f":"HLOOKUP(Language,D$2:L$1114,ROW()-1,FALSE)","v":"Assign Referees"},"N_Rib_GmftAssignReferees","Assigner Arbitres","Assign Referees","Assegna Arbitri","Asignar Arbitros","Assignar àrbitres"]
[null,{"$f":"N_Rib_GmftAssignReferees","v":"Assign Referees"},"N_Rib_ScrTip_GmftAssignReferees","N / A","N / A","N / A","N / A ","N / A "]
[null,{"$f":"HLOOKUP(Language,D$2:L$1114,ROW()-1,FALSE)","v":"Randomly assign referees to the current session or to the contiguous selection of matches "},"N_Rib_SupTip_GmftAssignReferees","Assigner aléatoirement les arbitres à la session en cours ou à la sélection CONTIGÜE de matches dans la session","Randomly assign referees to the current session or to the contiguous selection of matches ","Assegna in modo casuale gli arbitri alla sessione corrente o alla selezione contigua delle partite","Asignar árbitros aleatoriamente a la sesión actual o a la selección contigua de partidos ","Assignar àrbitres aleatòriament a la sessió actual oa la selecció contigua de partits "]
[null,{"$f":"HLOOKUP(Language,D$2:L$1114,ROW()-1,FALSE)","v":"Switch Referees"},"N_Rib_GmftSwitchReferees","Permuter Arbitres","Switch Referees","Switch Arbitri","Cambiar Arbitros","Canviar àrbitres"]
[null,{"$f":"N_Rib_GmftSwitchReferees","v":"Switch Referees"},"N_Rib_ScrTip_GmftSwitchReferees","N / A","N / A","N / A","N / A ","N / A "]
[null,{"$f":"HLOOKUP(Language,D$2:L$1114,ROW()-1,FALSE)","v":"Switche referees of the 2 selected matches"},"N_Rib_SupTip_GmftSwitchReferees","Permuter les arbitres des 2 matches sélectionnés","Switche referees of the 2 selected matches","Arbitri Switche delle 2 partite selezionate","Cambiar árbitros de los 2 partidos seleccionados ","Canviar àrbitres dels 2 partits seleccionats "]
[null,{"$f":"HLOOKUP(Language,D$2:L$1114,ROW()-1,FALSE)","v":"Scoresheets"},"N_Rib_GmftScoresheetsExport","Feuilles de match","Scoresheets","Punteggi","Hojas de puntuación","Fulles de puntuació"]
[null,{"$f":"N_Rib_GmftScoresheetsExport","v":"Scoresheets"},"N_Rib_ScrTip_GmftScoresheetsExport","N / A","N / A","N / A","N / A ","N / A "]
[null,{"$f":"HLOOKUP(Language,D$2:L$1114,ROW()-1,FALSE)","v":"Scoresheet generation for specified session(s)"},"N_Rib_SupTip_GmftScoresheetsExport","Génération des feuilles de match pour la ou les sessions désignées","Scoresheet generation for specified session(s)","Generazione del foglio di calcolo per le sessioni specificate","Generación de hojas de puntuación para sesiones específicas ","Generació de fulls de puntuació per a sessions específiques "]
[null,{"$f":"HLOOKUP(Language,D$2:L$1114,ROW()-1,FALSE)","v":"Planning"},"N_Rib_GmftPlanningExport","Planning","Planning","Planning","Planning","Planning"]
[null,{"$f":"N_Rib_GmftPlanningExport","v":"Planning"},"N_Rib_ScrTip_GmftPlanningExport","N / A","N / A","N / A","N / A ","N / A "]
[null,{"$f":"HLOOKUP(Language,D$2:L$1114,ROW()-1,FALSE)","v":"Export a Planning for specified session(s)"},"N_Rib_SupTip_GmftPlanningExport","Exporter un planning pour la ou les sessions désignées","Export a Planning for specified session(s)","Esportare una pianificazione per le sessioni specificate","Exportar una planificación para sesiones específicas ","Exportar una planificació per a sessions específiques"]
[null,{"$f":"N_ScorerTable","v":"Scorer Table"},{"$f":"NAMEOF(B789)","v":"N_Rib_GmftScorerTableLabel"},"N / A","N / A","N / A","N / A ","N / A "]
[null,{"$f":"HLOOKUP(Language,D$2:L$1114,ROW()-1,FALSE)","v":"Export"},"N_Rib_ScrTip_GmftScorerTableExport","Exporter","Export","Esportare","Exportar","Exportar"]
[null,{"$f":"HLOOKUP(Language,D$2:L$1114,ROW()-1,FALSE)","v":"Export table of matches"},"N_Rib_SupTip_GmftScorerTableExport","Expoorter le tableau des matches","Export table of matches","Esporta la tabella delle partite","Exportar tabla de partidos ","Exportar taula de partits "]
[null,{"$f":"HLOOKUP(Language,D$2:L$1114,ROW()-1,FALSE)","v":"Import"},"N_Rib_ScrTip_GmftImportScorerTable","Import","Import","Importare","Importar","Importar"]
[null,{"$f":"HLOOKUP(Language,D$2:L$1114,ROW()-1,FALSE)","v":"Import scores via filled table of matches"},{"$f":"NAMEOF(B793)","v":"N_Rib_SupTip_GmftImportScorerTable"},"Importer les scores via le tableau des matches renseigné","Import scores via filled table of matches","Importa i punteggi tramite una tabella di partite piena","Importar puntuaciones a través de una tabla completa de partidos ","Importa puntuacions a través d'una taula completa de partits "]
[null,{"$f":"N_Results_Export","v":"Results and Ranking"},"N_Rib_GmftResultExport","N / A","N / A","N / A","N / A ","N / A "]
[null,{"$f":"N_Rib_GmftResultExport","v":"Results and Ranking"},"N_Rib_ScrTip_GmftResultExport","N / A","N / A","N / A","N / A ","N / A "]
[null,{"$f":"HLOOKUP(Language,D$2:L$1114,ROW()-1,FALSE)","v":"Export the intermediate or final matches results together with group rankings, selecting the relevant sessions"},"N_Rib_SupTip_GmftResultExport","Exporter les résultats intermédiaires ou finaux des matches avec les classements des groupes, en sélectionnant les sessions concernées","Export the intermediate or final matches results together with group rankings, selecting the relevant sessions","Esportare i risultati delle partite intermedie o finali insieme alle classifiche dei gruppi, selezionando le sessioni pertinenti","Exportar los resultados de los partidos intermedios o finales junto con las clasificaciones de grupos, seleccionando las sesiones relevantes ","Exporta els resultats dels partits intermedis o finals juntament amb les classificacions de grups, seleccionant les sessions rellevants "]
[null,{"$f":"N_OpenDashboard","v":"Dashboard & Timer"},"N_Rib_GmftOpenDashboard","N / A","N / A","N / A","N / A ","N / A "]
[null,{"$f":"N_Rib_GmftPlanning_DeleteSession","v":"Delete last"},"N_Rib_ScrTip_GmftOpenDashboard","N / A","N / A","N / A","N / A ","N / A "]
[null,{"$f":"HLOOKUP(Language,D$2:L$1114,ROW()-1,FALSE)","v":"Open dashboard on a separate window to display the next matches and, possibly, the Timer"},"N_Rib_SupTip_GmftOpenDashboard","Ouvrir tableau de bord sur une fenêtre Windows séparée pour affichage des prochains matches et, éventuellement, du Timer","Open dashboard on a separate window to display the next matches and, possibly, the Timer","Apri dashboard in una finestra separata per visualizzare le corrispondenze successive e, possibilmente, il Timer","Abra el tablero en una ventana separada para mostrar los próximos partidos y, posiblemente, el temporizador","Obriu el tauler en una finestra separada per mostrar els pròxims partits i, possiblement, el temporitzador"]
[null,{"$f":"HLOOKUP(Language,D$2:L$1114,ROW()-1,FALSE)","v":"Nationalities"},"N_Rib_GmftShowNationalities","Nationalités","Nationalities","Nazionalità","Nacionalidades ","Nacionalitats "]
[null,{"$f":"N_Rib_GmftShowNationalities","v":"Nationalities"},{"$f":"NAMEOF(B801)","v":"N_Rib_ScrTip_GmftShowNationalities"},"N/A","N / A","N / A","N / A ","N / A "]
[null,{"$f":"HLOOKUP(Language,D$2:L$1114,ROW()-1,FALSE)","v":"Manage national acronyms"},"N_Rib_SupTip_GmftShowNationalities","Gérer les acronymes des nationalités","Manage national acronyms","Gestisci acronimi nazionali","Gestionar acrónimos nacionales ","Gestionar acrònims nacionals "]
[null,{"$f":"HLOOKUP(Language,D$2:L$1114,ROW()-1,FALSE)","v":"Results"},"N_Rib_GmftShowREsultModel","Résultats","Results","risultati","Resultados ","Resultats "]
[null,{"$f":"N_Rib_GmftShowREsultModel","v":"Results"},"N_Rib_ScrTip_GmftShowREsultModel","N/A","N / A","N / A","N / A ","N / A "]
[null,{"$f":"HLOOKUP(Language,D$2:L$1114,ROW()-1,FALSE)","v":"Export the results of matches and group rankings"},"N_Rib_SupTip_GmftShowREsultModel","Export des résultats des matches avec classement des poules","Export the results of matches and group rankings","Esporta i risultati delle partite classificate","Exportar los resultados de partidos y clasificaciones de grupos ","Exporta els resultats de partits i classificacions de grups "]
[null,{"$f":"HLOOKUP(Language,D$2:L$1114,ROW()-1,FALSE)","v":"Match scoresheets"},"N_Rib_GmftShowScoresheetModel","Feuilles de match","Match scoresheets","Abbina i fogli di calcolo","Hojas de puntuación de partidos ","Fulles de puntuació de partits "]
[null,{"$f":"N_Rib_GmftShowScoresheetModel","v":"Match scoresheets"},"N_Rib_ScrTip_GmftShowScoresheetModel","N/A","N / A","N / A","N / A ","N / A "]
[null,{"$f":"HLOOKUP(Language,D$2:L$1114,ROW()-1,FALSE)","v":"Individual, team and doubles match sheets"},"N_Rib_SupTip_GmftShowScoresheetModel","Feuilles de match individuels, par équipes et en doubles","Individual, team and doubles match sheets","Fogli di partite individuali, di squadra e doppi","Hojas de partidos individuales, por equipos y dobles ","Fulles de partits individuals, per equips i dobles "]
[null,{"$f":"HLOOKUP(Language,D$2:L$1114,ROW()-1,FALSE)","v":"Planning"},"N_Rib_GmftShowPlanningModel","Planning","Planning","Planning","Planning","Planning"]
[null,{"$f":"N_Rib_GmftShowPlanningModel","v":"Planning"},"N_Rib_ScrTip_GmftShowPlanningModel","N/A","N / A","N / A","N / A ","N / A "]
[null,{"$f":"HLOOKUP(Language,D$2:L$1114,ROW()-1,FALSE)","v":"Planning export"},{"$f":"NAMEOF(B811)","v":"N_Rib_SupTip_GmftShowPlanningModel"},"Export du planning","Planning export","Pianifica esportazione","Exportar Planning","Exportar Planning"]
[null,{"$f":"HLOOKUP(Language,D$2:L$1114,ROW()-1,FALSE)","v":"Draw sheet"},"N_Rib_GmftShowDrawModel","Feuille de tirage au sort","Draw sheet","Disegna foglio","Hoja de sorteo","Full de sorteig"]
[null,{"$f":"N_Rib_GmftShowDrawModel","v":"Draw sheet"},"N_Rib_ScrTip_GmftShowDrawModel","N/A","N / A","N / A","N / A ","N / A "]
[null,{"$f":"HLOOKUP(Language,D$2:L$1114,ROW()-1,FALSE)","v":"Template to generate the draw sheets for each event"},"N_Rib_SupTip_GmftShowDrawModel","Modèle pour générer les feuilles de tirage au sort pour chaque épreuve","Template to generate the draw sheets for each event","Modello per generare i fogli di disegno per ciascun evento","Plantilla para generar las hojas de sorteo de cada evento ","Plantilla per generar els fulls de sorteig de cada esdeveniment "]
[null,"Ribbon's MSO tabs Visible ",{"$f":"NAMEOF(B815)","v":"N_Rib_GmftTabsVisible"},"OngletsMSO Ruban Visibles","Ribbon's MSO tabs Visible ","Schede MSO del nastro Visibile","Pestañas visibles de cinta MSO ","Pestanyes visibles de cinta MSO "]
[null,"Ribbon's MSO tabs Hidden ","N_Rib_GmftTabsHidden","Onglets MSO Ruban Cachés","Ribbon's MSO tabs Hidden ","Schede MSO del nastro Nacosta","Pestañas ocultas de cinta MSO ","Pestanyes ocultes de cinta MSO"]
[null,"Lock / unlock the Workbook",{"$f":"NAMEOF(B817)","v":"N_Rib_ScrTip_GmftLockUnlockWB"},"Verrouiller / déverrouiller le Classeur","Lock / unlock the Workbook","Blocca / sblocca la cartella di lavoro","Bloquear / desbloquear el libro de trabajo ","Bloquejar / desbloquejar el llibre de treball "]
[null,"Lock or unlock the full workbook in order, for example, to display hidden sheets.","N_Rib_SupTip_GmftLockUnlockWB","Déverrouille ou verrouille les classeur entier de sorte à pouvoir afficher des feuilles cachées par exemple.","Lock or unlock the full workbook in order, for example, to display hidden sheets.","Bloccare o sbloccare la cartella di lavoro completa in ordine, ad esempio, per visualizzare i fogli nascosti.","Bloquee o desbloquee el libro de trabajo completo para, por ejemplo, mostrar hojas ocultas. ","Bloquegeu o desbloquegi el llibre de treball complet per a, per exemple, mostrar fulles ocultes."]
[null,"Show / Hide Microsoft Ribbon Tabs","N_Rib_ScrTip_GmftViewHideRibbonTabs","Afficher/Masquer les onglets Microsoft du Ruban","Show / Hide Microsoft Ribbon Tabs","Mostra / nascondi le schede della barra multifunzione di Microsoft","Mostrar / Ocultar pestañas de cinta de Microsoft ","Mostra / Amaga pestanyes de cinta de Microsoft "]
[null,"Show or hide standard Microsoft tabs on the Office Ribbon.","N_Rib_SupTip_GmftViewHideRibbonTabs","Afficher ou Masquer les onglets standard de Microsoft du Ruban Office.","Show or hide standard Microsoft tabs on the Office Ribbon.","Mostra o nascondi le schede Microsoft standard sulla barra multifunzione di Office.","Muestra u oculta las pestañas estándar de Microsoft en la cinta de Office. ","Mostra o amaga les pestanyes estàndard de Microsoft a la cinta d'Office."]
[null,"Event Management",{"$f":"NAMEOF(B821)","v":"N_Rib_GmftGroupEvent"},"Gestion Epreuve","Event Management","Gestione di eventi","Gestión de eventos ","Gestió d'esdeveniments "]
[null,"Create Draw Sheet","N_Rib_GmftCreateDrawSheet","Créer fiche tirage au sort","Create Draw Sheet","Crea foglio di disegno","Crear hoja de sorteo ","Crear full de sorteig "]
[null,"Create Draw","N_Rib_ScrTip_GmftCreateDrawSheet","Tirage au Sort","Create Draw","Crea Draw","Crear Sorteo ","Crear Sorteig"]
[null,"Create the Draw sheet for this event","N_Rib_SupTip_GmftCreateDrawSheet","Création de la feuille de tirage au sort","Create the Draw sheet for this event","Crea il foglio di disegno per questo evento","Crea la hoja de sorteo para este evento ","Crea el full de sorteig per a aquest esdeveniment "]
[null,"Delete Event","N_Rib_GmftDelete_This_sheet","Supprimer Epreuve","Delete Event","Elimina evento","Eliminar Evento","Eliminar Esdeveniment"]
[null,"Delete this Event","N_Rib_ScrTip_GmftDelete_This_sheet","Supprimer cette épreuve","Delete this Event","Elimina questo evento","Eliminar este evento ","Eliminar aquest esdeveniment "]
[null,"Delete this event and update the planning","N_Rib_SupTip_GmftDelete_This_sheet","Supprime la feuille d'épreuve et met à jour la feuille planning","Delete this event and update the planning","Elimina questo evento e aggiorna la pianificazione","Eliminar este evento y actualizar la planificación ","Eliminar aquest esdeveniment i actualitzar la planificació "]
[null,"Draw Management",{"$f":"NAMEOF(B828)","v":"N_Rib_GmftGroupDraw"},"Gestion Tirage au Sort","Draw Management","Gestione dei fogli","Gestionar Sorteo","Gestionar Sorteig"]
[null,"First seeds",{"$f":"NAMEOF(B829)","v":"N_Rib_GmftDefineFirstSeeds"},"Têtes de série","First seeds","Primi semi","Cabezas de serie ","Caps de sèrie "]
[null,"Define the seeded","N_Rib_ScrTip_GmftDefineFirstSeeds","Définir les têtes de série","Define the seeded","Definisci il seme","Definir cabezas de serie","Definir caps de sèrie"]
[null,"Assign the 1st of each group with the 1st of the list of participants sorted by rank","N_Rib_SupTip_GmftDefineFirstSeeds","Attribuer les 1ers de chaque groupe avec les 1ers de la liste des participants triés par classement","Assign the 1st of each group with the 1st of the list of participants sorted by rank","Assegna il 1 ° di ogni gruppo al 1 ° della lista dei partecipanti ordinati per rank","Asigne al 1 de cada grupo el 1 de la lista de participantes ordenados por rango ","Assigneu a l'1 de cada grup l'1 de la llista de participants ordenats per rang"]
[null,"Draw next position","N_Rib_GmftMakeNextDraw","Tirage position suivante","Draw next position","Disegna la prossima posizione","Sorteo posición siguiente","Sorteig posició següent"]
[null,{"$f":"HLOOKUP(Language,D$2:L$1114,ROW()-1,FALSE)","v":"Draw next position  2nd Pot"},{"$f":"NAMEOF(B833)","v":"N_Rib_GmftMakeNextDrawInSecondPot"},"Tirage position suivante 2ème Pot","Draw next position  2nd Pot","Disegna la prossima posizione 2° vaso","Sorteo posición siguiente 2do Bombo","Sorteig posició següent 2n Pot"]
[null,"Draw of the next position","N_Rib_ScrTip_GmftMakeNextDraw","Tirage au sort de la position suivante","Draw of the next position","Disegno della prossima posizione","Sorteo de la siguiente posición ","Sorteig de la següent posició "]
[null,{"$f":"HLOOKUP(Language,D$2:L$1114,ROW()-1,FALSE)","v":"Draw of the next position in the second Pot"},{"$f":"NAMEOF(B835)","v":"N_Rib_ScrTip_GmftMakeNextDrawInSecondPot"},"Tirage au sort de la position suivante dans le 2ème Pot","Draw of the next position in the second Pot","Estrazione della posizione successiva nel secondo piatto","Sorteo de la siguiente posición en el segundo bote","Sorteig de la següent posició del segon Pot"]
[null,"Draw numbers for the next position until it finds a number not yet used","N_Rib_SupTip_GmftMakeNextDraw","Tire au sort des numéros pour la position suivante jusqu'à trouver un numéro non encore utilisé","Draw numbers for the next position until it finds a number not yet used","Disegna i numeri per la prossima posizione finché non trova un numero non ancora utilizzato","Sorteo números para la siguiente posición hasta que encuentre un número que aún no se haya usado ","Sorteig números per a la següent posició fins que trobi un nombre que encara no s'hagi fet servir "]
[null,{"$f":"HLOOKUP(Language,D$2:L$1114,ROW()-1,FALSE)","v":"Draw numbers for the next position until you find a number not yet used in the second pot"},{"$f":"NAMEOF(B837)","v":"N_Rib_SupTip_GmftMakeNextDrawInSecondPot"},"Tire au sort des numéros pour la position suivante jusqu'à trouver un numéro non encore utilisé dans le second pot","Draw numbers for the next position until you find a number not yet used in the second pot","Estrai i numeri per la posizione successiva finché non trovi un numero inutilizzato nel secondo piatto","Dibuja números para la siguiente posición hasta que encuentres un número no utilizado en el segundo bote.","Dibuixa números per a la següent posició fins que trobis un nombre no utilitzat al segon pot"]
[null,"Overall draw","N_Rib_GmftMakeAllDraw","Tirage global","Overall draw","Sorteggio generale","Sorteo general ","Sorteig general"]
[null,"Draw all positions","N_Rib_ScrTip_GmftMakeAllDraw","Tirage de toutes les positions","Draw all positions","Disegna tutte le posizioni","Sorteo todas las posiciones","Sorteig totes les posicions"]
[null,"Draw lots of all positions, taking care not to duplicate numbers drawn","N_Rib_SupTip_GmftMakeAllDraw","Tire au sort les numéros de toutes les positions en veillant à ne pas dupliquer les numéros tirés","Draw lots of all positions, taking care not to duplicate numbers drawn","Disegna molte posizioni, facendo attenzione a non duplicare i numeri estratti","Sorteo muchas posiciones, teniendo cuidado de no duplicar los números extraídos. ","Sorteig moltes posicions, tenint cura de no duplicar els números extrets."]
[null,"Make Withdraw","N_Rib_GmftMakeWithDraw","Déclarer Forfait","Make Withdraw","Fai Ritirare","Hacer Retirar ","Fer Retirar "]
[null,"Declare the player withdraw","N_Rib_ScrTip_GmftMakeWithDraw","Déclarer le joueur forfait","Declare the player withdraw","Dichiarare che il giocatore si ritira","Declarar que el jugador se retira ","Declarar que el jugador es retira "]
[null,"Replaces the name of the selected player in the list of \"Participants Ranking\" with the mention \"Withdraw\"","N_Rib_SupTip_GmftMakeWithDraw","Remplace le nom du joueur sélectionné dans la liste des \"Participants Classement\" par la mention \"Forfait\"","Replaces the name of the selected player in the list of \"Participants Ranking\" with the mention \"Withdraw\"","Sostituisce il nome del giocatore selezionato nella lista di \"Classifica dei partecipanti\" con la menzione \"Prelevare\"","Reemplaza el nombre del jugador seleccionado en la lista de \"Ranking de Participantes\" con la mención \"Retirar\". ","Reemplaça el nom de l'jugador seleccionat a la llista de \"Rànquing de Participants\" amb la menció \"Retirar\"."]
[null,"Validate Draw","N_Rib_GmftValidateDraw","Valider Tirage","Validate Draw","Convalida il disegno","Validar Sorteo","Validar Sorteig"]
[null,"Validate the draw","N_Rib_ScrTip_GmftValidateDraw","Valider le tirage au sort","Validate the draw","Convalida il sorteggio","Validar el sorteo","Validar el Sorteig"]
[null,"Validate the draw by copying the names of the players in the groups of the corresponding event sheet","N_Rib_SupTip_GmftValidateDraw","Valide le tirage au sort en recopiant les noms des joueurs dans les groupes de la feuille de l'épreuve corespondante","Validate the draw by copying the names of the players in the groups of the corresponding event sheet","Convalidare l'estrazione copiando i nomi dei giocatori nei gruppi della scheda evento corrispondente","Validar el sorteo copiando los nombres de los jugadores en los grupos de la hoja de evento correspondiente ","Validar el sorteig copiant els noms dels jugadors en els grups del full d'esdeveniment corresponent "]
[null,"Remove Draw sheet","N_Rib_GmftDeleteDraw","Supprimer Feuille Tirage","Remove Draw sheet","Rimuovi il foglio di disegno","Remover la hoja de Sorteo","Remoure el full de Sorteig"]
[null,"Delete the draw sheet","N_Rib_ScrTip_GmftDeleteDraw","Supprimer la feuille tirage au sort","Delete the draw sheet","Elimina il foglio di disegno","Borrar la hoja de sorteo","Esborrar el full de sorteig"]
[null,"Delete the draw sheet","N_Rib_SupTip_GmftDeleteDraw","Supprime la feuille de tirage au sort","Delete the draw sheet","Elimina il foglio di disegno","Borrar la hoja de sorteo","Esborrar el full de sorteig"]
[null,"Max Score activated",{"$f":"NAMEOF(B850)","v":"N_Rib_GmftMaxScore"},"Score Maximum activé","Max Score activated","Elimina il foglio di disegno","Puntaje máximo activado ","Puntuació màxim activat "]
[null,"Max Score deactivated",{"$f":"NAMEOF(B851)","v":"N_Rib_GmftMaxScoreDeactivated"},"Score Maximum désactivé","Max Score deactivated","Elimina il foglio di disegno","Puntaje máximo desactivado ","Puntuació màxim desactivat "]
[null,"Max Score application","N_Rib_ScrTip_GmftMaxScore","Application Score Maximum","Max Score application","Elimina il foglio di disegno","Aplicación Maxima Puntuación ","Aplicació Maxima Puntuació "]
[null,"Activate/deactivate the rule for maximum scores","N_Rib_SupTip_GmftMaxScore","Activation/Désactivation de la règle du score maximum","Activate/deactivate the rule for maximum scores","Elimina il foglio di disegno","Activar / desactivar la regla para puntajes máximos ","Activar / desactivar la regla per puntuacions màxims "]
[null,"Event of checkin",{"$f":"NAMEOF(B854)","v":"N_Rib_ScrTip_CategoryDropDown"},"Epreuve d'inscription","Event of checkin","Elimina il foglio di disegno","Evento de Inscripción ","Esdeveniment d'Inscripció "]
[null,"Event in which players are registered. For example, for an Open B event, we select \"Open\". By default, the selected value is the one of the event itself.","N_Rib_SupTip_CategoryDropDown","Epreuve dans laquelle sont inscrits les joueurs de cette épreuve. Par exemple, pour un tournoi B Open, on sélectionne \"Open\". Par défaut, la valeur sélectionnée est celle de l'épreuve elle-même.","Event in which players are registered. For example, for an Open B event, we select \"Open\". By default, the selected value is the one of the event itself.","Elimina il foglio di disegno","Evento en el que se registran jugadores. Por ejemplo, para un evento Open B, seleccionamos \"Open\". Por defecto, el valor seleccionado es el del propio evento.  ","Esdeveniment en què es registren jugadors. Per exemple, per a un esdeveniment Open B, vam seleccionar \"Open\". Per defecte, el valor seleccionat és el de l'propi esdeveniment. "]
[null,{"$f":"HLOOKUP(Language,D$2:L$1114,ROW()-1,FALSE)","v":"Bad folder path"},{"$f":"NAMEOF(B856)","v":"N_BadDirectoryPath"},"Mauvais chemin de répertoire","Bad folder path","Percorso della cartella errato","Ruta de carpeta incorrecta ","Ruta de carpeta incorrecta "]
[null,{"$f":"HLOOKUP(Language,D$2:L$1114,ROW()-1,FALSE)","v":"Some events are not defined as table models"},{"$f":"NAMEOF(B857)","v":"N_EventModelsNotDefined"},"Certaines épreuves ne sont pas définies en tant que modèles de table","Some events are not defined as table models","Alcune dimostrazioni non sono definite come modelli di tabella","Algunos eventos no están definidos como modelos de tabla. ","Alguns esdeveniments no estan definits com a models de taula. "]
[null,{"$f":"HLOOKUP(Language,D$2:L$1114,ROW()-1,FALSE)","v":"Warning: some of your events will not be taken into account for export; only the following events will be processed: Open, Veterans, Women, U20, U16, U12, Teams, Consolation"},{"$f":"NAMEOF(B858)","v":"N_OnlyParticularEventNames"},"Avertissement :  certains de vos événements ne seront pas pris en compte pour l'export; seuls les événements suivants seront traités : Open, Veterans, Women, U20, U16, U12, Teams, Consolation","Warning: some of your events will not be taken into account for export; only the following events will be processed: Open, Veterans, Women, U20, U16, U12, Teams, Consolation","Attenzione: alcuni dei tuoi eventi non verranno presi in considerazione per l'esportazione; verranno elaborati solo i seguenti eventi: Open, Veterans, Women, U20, U16, U12, Squadre, Consolazione","Advertencia: algunos de sus eventos no se tendrán en cuenta para la exportación; solo se procesarán los siguientes eventos: Abierto, Veteranos, Damas, Sub 20, Sub 16, Sub 12, Equipos, Consolación","Avís: alguns dels vostres esdeveniments no es tindran en compte per a l'exportació; només es processaran els esdeveniments següents: Open, Veterans, Dones, U20, U16, U12, Equips, Consolació"]

{"sheet":"Home","index":2,"n_rows":33,"n_cols":3,"rows_kept":33,"cut":false,"hidden":false,"merged":[[0,1,0,2],[3,1,3,2],[6,1,6,2],[4,1,4,2],[7,1,7,2]]}
[null,{"$f":"N_GMFT","v":"GMFT - Table Football Match Management"}]
[null,{"$f":"N_GMFT_Version & \" \" & Version_Outil","v":"Version 14.3.1"}]
[]
[null,{"$f":"N_Layout","v":"Event title"}]
[null,"<FEDERATION> <Event Name><YYYY> - <Location> - <Individuals/Teams> Competition"]
[]
[null,{"$f":"N_EventDate","v":"Event date"}]
[null,"<Event Date(s)>"]
[]
[null,{"$f":"N_Action","v":"Actions"},{"$f":"N_Worksheet","v":"Worksheet"}]
[1,{"$f":"N_FillIn_Players_And_Clubs","v":"Complete the database of players and clubs"},"Licences\nClubs"]
[2,{"$f":"N_Ranking","v":"Update if necessary the ranking (in case of the ranking is used in ranking criterias for groups or in case of using Draw function)"},"Ranking Ind.\nRanking Teams"]
[3,{"$f":"N_Checkin","v":"Check in registrations and participations to different events"},"Checkin"]
[4,{"$f":"N_DefineTeams","v":"If necessary, define teams of the event"},"Teams"]
[5,{"$f":"N_DefineDoubles","v":"If necessary, define doubles of the event"},"Doubles"]
[6,{"$f":"N_Lists","v":"Check lists of players, teams and referees"},"Lists"]
[7,{"$f":"N_Parameter","v":"Define sport parameters of the day of competition"},"Parameters"]
[8,{"$f":"N_NewEvent","v":"Create one or more events"}]
[9,{"$f":"N_FillinPlayers","v":"Fillin players after draw"},"Open"]
[10,{"$f":"N_DrawManage","v":"Show or hide Draw sheets"},"Draw …"]
[11,{"$f":"N_AdaptPlanning","v":"Adapt the planning then fillin scores directly in the planning "},"Planning"]
[12,{"$f":"N_ManageRefereeList","v":"Adapt the referee list to your needs"},"Refereeing"]
[13,{"$f":"N_ManageTimeline","v":"Display or print player's own planning"},"Timeline"]
[14,{"$f":"N_ManageVenue","v":"Represents the room plan with pitch's names"},"Venue"]
[15,{"$f":"N_ManageStats","v":"Consult players' statistics"},"Stats"]
[16,{"$f":"N_ManagePodium","v":"Show podium for trophy presentation"},"Podium"]
[17,{"$f":"N_ExportDataToWebSite","v":"Export Data to the GMFT Web Site"}]
[18,{"$f":"N_Dispatch_Results","v":"Dispatch results after the tournament"}]
[null,{"$f":"N_Exporting","v":"By generating FISTF officials result forms"}]
[null,{"$f":"N_Printing","v":"By printing results"}]
[]
[null,{"$f":"N_FillinFormula","v":"Complete Event sheets by fill in player positions in groups (or in the first of final phases if no group phase). In case of directed matches with group phase, type in also formulas for the matches of first final phase based on previous rounds. \nIn case of full draw of lots, you must fill in players of each match in the event sheet and not in the planning. "}]
[null,{"$f":"N_Planning","v":"Adapt the planning by moving matches between the differents sessions. During the event, referees, tables and scores are filled in EXCLUSIVELY in the planning sheet. \nIn case of team or double matches, players are also filled in the \"planning\" sheet."}]

{"sheet":"Parameters","index":3,"n_rows":133,"n_cols":11,"rows_kept":133,"cut":false,"hidden":true,"merged":[[57,1,57,2],[26,1,26,3],[10,1,10,3],[11,1,11,3],[21,1,21,3],[30,1,30,3],[29,1,29,3],[38,1,38,3],[44,1,44,3],[17,1,17,3]]}
[]
[null,{"$f":"N_Parameter","v":"Define sport parameters of the day of competition"},null,null,null,null,null,null,"GMFT - Version","14.3.1"]
[null,"POINTS",null,null,null,null,null,null,{"$f":"N_Language","v":"Language"},"EN"]
[]
[null,null,{"$f":"N_Points","v":"Points"},null,null,null,null,null,"PLANNING - EVENT CREATION - REFEREE SELECTION - LABELS"]
[null,{"$f":"N_Win","v":"Win"},3]
[null,{"$f":"N_Draw","v":"Draw"},1,null,null,null,null,null,{"$f":"N_Delay_Group","v":"Delay between 2 matches in group"},"00:50:00"]
[null,null,null,null,null,null,null,null,{"$f":"N_Delay_Sel_Match","v":"Delay between 2 selection matches"},"01:05:00"]
[null,{"$f":"N_MaxGoals","v":"Max Nb Goals"},100,null,null,null,null,null,{"$f":"N_Break1","v":"Break 1"},"00:15:00"]
[null,null,null,null,null,null,null,null,{"$f":"N_Break2","v":"Break 2"},"00:30:00"]
[null,{"$f":"N_calculation_ind_rank","v":"Calculation of Individual ranking"},null,null,null,null,null,null,{"$f":"N_Break3","v":"Break 3"},"00:45:00"]
[null,{"$f":"N_Criteria_before_diff","v":"Criteria before particular difference"},null,null,null,null,null,null,{"$f":"N_Break4","v":"Break 4"},"01:00:00"]
[null,{"$f":"N_Criteria","v":"Criteria"},"FISTF Order",{"$f":"N_Order","v":"Order"},"Factor"]
[null,{"$f":"N_Points","v":"Points"},1,1,{"$f":"IF(D14=\"\",0,POWER(100,RANK(D14,D$14:D$28)-1))","v":10000000000},null,null,null,{"$f":"N_FISTF_Categories","v":"List of FISTF players categories"},{"$f":"N_DefaultRefereesCategories","v":"Excluded referees categories"}]
[null,{"$f":"N_Goal_Diff","v":"Goal Difference"},null,null,{"$f":"IF(D15=\"\",0,POWER(100,RANK(D15,D$14:D$28)-1))","v":0},null,null,null,"OPEN",false]
[null,{"$f":"N_Won_Matches","v":"Won Matches"},null,null,{"$f":"IF(D16=\"\",0,POWER(100,RANK(D16,D$14:D$28)-1))","v":0},null,null,null,"VET",false]
[null,{"$f":"N_Best_Attack","v":"Best Attack"},null,null,{"$f":"IF(D17=\"\",0,POWER(100,RANK(D17,D$14:D$28)-1))","v":0},null,null,null,"U20",false]
[null,{"$f":"N_particular_diff","v":"Particular difference in case of equality on previous criteria"},null,null,null,null,null,null,"U16",true]
[null,{"$f":"N_Particular_Difference","v":"Match result between ex-aequo"},2,2,{"$f":"IF(D19=\"\",0,POWER(100,RANK(D19,D$14:D$28)-1))","v":100000000},null,null,null,{"$f":"N_U12","v":"U12"},true]
[null,{"$f":"N_Particular_Goals","v":"Goal difference between ex-aequo"},3,3,{"$f":"IF(D20=\"\",0,POWER(100,RANK(D20,D$14:D$28)-1))","v":1000000},null,null,null,{"$f":"N_Events","v":"List of different events of the competition (names and colors). Let it empty for default value."},{"$f":"N_DefaultRefereesCategories","v":"Excluded referees categories"},false]
[null,{"$f":"N_Particular_Attack","v":"Best attack between ex-aequo"},4,4,{"$f":"IF(D21=\"\",0,POWER(100,RANK(D21,D$14:D$28)-1))","v":10000},null,null,null,{"$f":"N_Open","v":"Open"},true]
[null,{"$f":"N_Criteria_after_diff","v":"Criteria after particular difference"},null,null,null,null,null,null,{"$f":"N_Veterans","v":"Veterans"},true]
[null,{"$f":"N_Points","v":"Points"},null,null,{"$f":"IF(D23=\"\",0,POWER(100,RANK(D23,D$14:D$28)-1))","v":0},null,null,null,{"$f":"N_Ladies","v":"Women"},true]
[null,{"$f":"N_Goal_Diff","v":"Goal Difference"},5,5,{"$f":"IF(D24=\"\",0,POWER(100,RANK(D24,D$14:D$28)-1))","v":100},null,null,null,{"$f":"N_U20","v":"U20"},true]
[null,{"$f":"N_Won_Matches","v":"Won Matches"},null,null,{"$f":"IF(D25=\"\",0,POWER(100,RANK(D25,D$14:D$28)-1))","v":0},null,null,null,{"$f":"N_U16","v":"U16"},true]
[null,{"$f":"N_Best_Attack","v":"Best Attack"},6,6,{"$f":"IF(D26=\"\",0,POWER(100,RANK(D26,D$14:D$28)-1))","v":1},null,null,null,{"$f":"N_U12","v":"U12"},true]
[null,{"$f":"N_Criteria_on_WR","v":"Criteria on players ranking"},null,null,null,null,null,null,"Teams",false]
[null,{"$f":"N_NbPointsInRanking","v":"Number of points in ranking"},null,null,{"$f":"IF(D28=\"\",0,POWER(100,RANK(D28,D$14:D$28)-1))","v":0},null,null,null,"Consolation",true]
[null,null,null,null,null,null,null,null,{"$f":"N_Team&\"_\"&I21","v":"Team_Open"},true]
[null,{"$f":"N_Calculation_team_rank","v":"Calculation of Team ranking"},null,null,null,null,null,null,"Team_Veterans",true]
[null,{"$f":"N_Criteria_before_diff","v":"Criteria before particular difference"},null,null,null,null,null,null,"Team_Women",true]
[null,{"$f":"N_Criteria","v":"Criteria"},"FISTF Order",{"$f":"N_Order","v":"Order"},"Factor",null,null,null,"Team_U20",true]
[null,{"$f":"N_Points","v":"Points"},1,1,{"$f":"IF(D33=\"\",0,POWER(30,RANK(D33,C$33:C$51)-1))","v":19683000000000},null,null,null,"Team_U16",true]
[null,{"$f":"N_Encounter_Diff","v":"Encounter Difference"},null,null,0,null,null,null,"Team_U12",true]
[null,{"$f":"N_Match_Diff","v":"Individual wins difference"},null,null,0,null,null,null,null,1]
[null,{"$f":"N_Goal_Diff","v":"Goal Difference"},null,null,0,null,null,null,{"$f":"N_Equality_Group","v":"Message for equality in group"}]
[null,{"$f":"N_Won_Matches","v":"Won Matches"},null,null,0,null,null,null,"!!! EQUALITY !!!"]
[null,{"$f":"N_Best_Attack","v":"Best Attack"},null,null,0,null,null,null,{"$f":"N_ERROR_Sel_Match","v":"Message for error in score of selection match"}]
[null,{"$f":"N_particular_diff","v":"Particular difference in case of equality on previous criteria"},null,null,null,null,null,null,"ERROR IN SCORE"]
[null,{"$f":"N_Particular_Difference","v":"Match result between ex-aequo"},2,2,{"$f":"IF(D40=\"\",0,POWER(30,RANK(D40,C$33:C$51)-1))","v":656100000000}]
[null,{"$f":"N_Particular_Win_Diff","v":"Individual wins difference between ex-aequo"},3,3,{"$f":"IF(D41=\"\",0,POWER(30,RANK(D41,C$33:C$51)-1))","v":21870000000},null,null,null,{"$f":"N_Substitute_Codes","v":"Substitute codes for team matches"}]
[null,{"$f":"N_Particular_More_Wins","v":"Most individual wins between ex-aequo"},4,4,{"$f":"IF(D42=\"\",0,POWER(30,RANK(D42,C$33:C$51)-1))","v":729000000},null,null,null,"S1"]
[null,{"$f":"N_Particular_Goals","v":"Goal difference between ex-aequo"},7,7,{"$f":"IF(D43=\"\",0,POWER(30,RANK(D43,C$33:C$51)-1))","v":27000},null,null,null,"S2"]
[null,{"$f":"N_Particular_Attack","v":"Best attack between ex-aequo"},8,8,{"$f":"IF(D44=\"\",0,POWER(30,RANK(D44,C$33:C$51)-1))","v":900},null,null,null,"S3"]
[null,{"$f":"N_Criteria_after_diff","v":"Criteria after particular difference"},null,null,null,null,null,null,"S4"]
[null,{"$f":"N_Points","v":"Points"},null,null,{"$f":"IF(D46=\"\",0,POWER(30,RANK(D46,C$33:C$51)-1))","v":0}]
[null,{"$f":"N_Encounter_Diff","v":"Encounter Difference"},null,null,0]
[null,{"$f":"N_Match_Diff","v":"Individual wins difference"},5,5,24300000]
[null,{"$f":"N_Goal_Diff","v":"Goal Difference"},9,9,30,null,null,null,"DASHBOARD"]
[null,{"$f":"N_Most_Ind_Match_Wins","v":"Most individual match wins"},6,6,810000]
[null,{"$f":"N_Best_Attack","v":"Best Attack"},10,10,1,null,null,null,{"$f":"N_DashboardTemplatePath","v":"Dashboard template path"}]
[null,null,null,null,null,null,null,null,"","Directory"]
[null,{"$f":"N_NoDrawWithWithdraw","v":"In group stage for teams, in case of equality on won matches, the team with the most withdraws loses the match."},false,null,null,null,null,null,"\\GMFT-Dashboard-Templates\\GMFT_Dashboard_V6.0-Portrait.xls","Relative path"]
[]
[null,null,null,null,null,null,null,null,{"$f":"N_SessionTitle","v":"Session Title"}]
[null,"REFEREEING CONTROLS & SELECTION CRITERIA",null,null,null,null,null,null,"Session Nbr 13"]
[]
[null,{"$f":"N_CheckingReferees","v":"Activation of controls during referee choices in the planning"},null,"Categ"]
[null,{"$f":"N_CheckReferee_SameGroup","v":"Referee in the same Group as one of players"},true,null,null,null,null,null,"WEB EXPORT"]
[null,{"$f":"N_CheckReferee_SameClub","v":"Referee in the same Club as one of players"},true,null,"Last4"]
[null,{"$f":"N_CheckReferee_SameNat","v":"Referee with the same Nationality as one of players"},true,null,"Last4",null,null,null,{"$f":"N_ExportTypeOfEventToWebSite","v":"Export to GMFT web site following event types"}]
[null,{"$f":"N_CheckReferee_Club_InGroup","v":"Referee in the same Club as one of players of the group"},true,null,null,null,null,null,{"$f":"N_Individuals","v":"Individuals"},true]
[null,{"$f":"N_CheckReferee_Nat_InGroup","v":"Referee with the same Nationality as one of players of the group"},true,null,null,null,null,null,{"$f":"N_Teams","v":"Teams"},false]
[null,null,null,null,null,null,null,null,{"$f":"N_DefaultCompetitorsExportToWebSite","v":"Last checked boxes for competitors export to GMFT Web Site"}]
[null,{"$f":"N_NbMaxRefereing","v":"Number of matches already refereed more or equal to"},3,null,null,null,null,null,null,true]
[null,null,null,null,null,null,null,null,null,true]
[null,null,null,null,null,null,null,null,null,true]
[null,null,null,null,null,null,null,null,null,true]
[null,"PRINTING",null,null,null,null,null,null,null,true]
[null,null,null,null,null,null,null,null,null,true]
[null,{"$f":"N_PrintVenue","v":"Printing of venue ?"},false,null,null,null,null,null,null,false]
[null,{"$f":"N_PrintStats","v":"Printing of statistics ?"},false,null,null,null,null,null,null,false]
[null,null,null,null,null,null,null,null,null,false]
[null,null,null,null,null,null,null,null,null,false]
[null,"VARIOUS PARAMETERS",null,null,null,null,null,null,null,false]
[null,null,null,null,null,null,null,null,null,false]
[null,{"$f":"N_LockSheets","v":"Lock worksheets to avoid manipulation errors"},false,null,null,null,null,null,null,true]
[null,null,null,null,null,null,null,null,null,true]
[null,{"$f":"N_HidePlayerFormulas","v":"Hide display of player formulas without score"},true,null,null,null,null,null,{"$f":"N_ExportPlanning","v":"Planning Export"},true]
[null,null,null,null,null,null,null,null,{"$f":"N_ExportGroups","v":"Groups Export"},true]
[null,{"$f":"N_ConditionalFormatLabel","v":"Format for cells containing formulas and that can be modified by user"},null,null,null,null,null,null,"Stats Export",true]
[null,null,null,null,null,null,null,null,"Results Export",true]
[null,{"$f":"N_ModifyingWithDrawLabel","v":"Label for a withdraw player. Suggestion : keep the formula to take advantage of multi-languages."},{"$f":"N_Withdraw","v":"[---Withdraw---]"},null,null,null,null,null,{"$f":"N_ExportMatches","v":"Detailed matches Export"},true]
[]
[null,{"$f":"N_RankingAsLicenceList","v":"Use the FISTF World Ranking (Ranking sheet) as the licenced players database (used in the Checkin sheet as players list)."},false,null,null,null,null,null,{"$f":"N_WebSiteExportForm_WebSiteRootPath","v":"GMFT Web Site directory path"}]
[null,{"$f":"N_Trigram","v":"Use nationality instead of club for trigram in player's name (useful for World Cup). Ex. John Beem (ANG)"},false,null,null,null,null,null,null,"Directory"]
[null,null,null,null,null,null,null,null,"\\GMFT-LocalWebServer\\GMFT-TournamentWebSite-Template\\GMFT-RegistrationsWebPage-Template","Relative path"]
[null,null,null,null,null,null,null,null,"Export Decoration To WebSite parameters"]
[null,"HIDDEN LISTS - DO NOT MODIFY !",null,null,null,null,null,null,{"$f":"N_GenerateConfigurationFile","v":"Generate the GMFTData.html file"},true]
[null,null,null,null,null,null,null,null,"Navigation bar title"]
[null,{"$f":"COUNTA(EventSheetTable)-COUNTBLANK(EventSheetTable)","v":1},null,null,null,null,null,null,"Event - Individuals / Teams"]
[null,{"$f":"EVTSHEETLIST()","v":"Team"},null,{"$f":"IF(TRANSPOSE(LanguageList)=0,\"\",TRANSPOSE(LanguageList))","v":"FR"},null,null,null,null,{"$f":"N_WebEventTitleLabel","v":"Event title"}]
[null,"",null,"EN",null,null,null,null,"Competition Title<br>Individuals/Teams<br>20XX Month, DD<br>Location"]
[null,"",null,"IT",null,null,null,null,{"$f":"N_WebEventDescriptionLabel","v":"Event Description"}]
[null,"",null,"SP",null,null,null,null,"<span style=\"font-size: 1.5rem; line-height: 1.5;\">Welcome on the Web site of the tournament.</span><br>\r\n<span style=\"font-size: 1.5rem; line-height: 1.5;\">\r\n    For this tournament, HEAD REFEREES are:\r\n    <ul>\r\n        <strong>\r\n        <li>...</li>\r\n        <li>...</li>\r\n        <li>...</li>\r\n        </strong>\r\n    Thanks to them !\r\n    </ul>\r\nIMPORTANT NOTE TO ALL PLAYERS<br>\r\nThe guide to the conduct of player refereeing is based primarily on the fairness in the number of matches refereed by each player.<br>As a result, in the event of a barrage, the players eliminated at the end of the group stage who do not referee in the play-offs, must wait to know if they will referee the next phase before they can leave the competition.\r\n</span>"," "]
[null,"",null,"CAT"]
[null,"",null,""]
[null,"",null,""]
[null,"",null,"",null,null,null,null,"COMMON PARAMETERS"]
[null,"",null,""]
[null,"",null,{"$error":"#N/A"},null,null,null,null,{"$f":"N_DefaultStartSessionNmber","v":"Default value for Start Session"},"1"]
[null,"",null,{"$error":"#N/A"},null,null,null,null,{"$f":"N_DefaultNumberOfSessions","v":"Default value of the number of sessions"},"13"]
[null,"",null,{"$error":"#N/A"}]
[null,"",null,{"$error":"#N/A"},null,null,null,null,{"$f":"N_DefaultExportIndMAtches","v":"Default value of the export indicator of individuals matches for team results"},false]
[null,"",null,{"$error":"#N/A"}]
[null,"",null,{"$error":"#N/A"}]
[null,"",null,{"$error":"#N/A"}]
[null,"",null,null,null,null,null,null,"REGISTRATION EXPORT"]
[null,"",null,2326576067856]
[null,"",null,false,null,null,null,null,{"$f":"N_ExportTypeOfEventToWebSite","v":"Export to GMFT web site following event types"}]
[null,"",null,null,null,null,null,null,{"$f":"N_Individuals","v":"Individuals"},true]
[null,null,null,null,null,null,null,null,{"$f":"N_Teams","v":"Teams"},true]
[null,null,null,null,null,null,null,null,{"$f":"N_DefaultCompetitorsExportToWebSite","v":"Last checked boxes for competitors export to GMFT Web Site"}]
[null,null,null,null,null,null,null,null,null,true]
[null,null,null,null,null,null,null,null,null,true]
[null,null,null,null,null,null,null,null,null,true]
[null,null,null,null,null,null,null,null,null,true]
[null,null,null,null,null,null,null,null,null,true]
[null,null,null,null,null,null,null,null,null,true]
[null,null,null,null,null,null,null,null,null,true]
[null,null,null,null,null,null,null,null,null,true]
[null,null,null,null,null,null,null,null,null,true]
[null,null,null,null,null,null,null,null,null,true]
[null,null,null,null,null,null,null,null,null,true]
[null,null,null,null,null,null,null,null,null,true]
[null,null,null,null,null,null,null,null,null,true]
[null,null,null,null,null,null,null,null,null,true]
[null,null,null,null,null,null,null,null,null,false]
[null,null,null,null,null,null,null,null,{"$f":"N_WebSiteExportForm_WebSiteRootPath","v":"GMFT Web Site directory path"}]
[null,null,null,null,null,null,null,null,null,"Directory"]
[null,null,null,null,null,null,null,null,"\\GMFT-LocalWebServer\\GMFT-TournamentWebSite-Template\\GMFT-RegistrationsWebPage-Template","Relative path"]
[null,null,null,null,null,null,null,null,"Theme Choice"]
[null,null,null,null,null,null,null,null,"Transparent-Cyborg"]

{"sheet":"Licences","index":4,"n_rows":4347,"n_cols":8,"rows_kept":4347,"cut":false,"hidden":true,"merged":[[4,1,4,7],[0,1,0,7]]}
[200,{"$f":"N_LicencesSheetTitle","v":"Licenced players database"}]
[null,null,{"$f":"N_TotalNbPlayers","v":"Total number of players"},{"$f":"COUNTA(OFFSET(FullLicencedPlayerList,0,1,,1))","v":4335}]
[null,null,{"$f":"N_TotalNbPlayersLines","v":"Total number of lines in the player list"},{"$f":"ROWS(FullLicencedPlayerList)","v":4341}]
[null,{"$f":"COUNTA(OFFSET(Liste_licenciés_noms_prénoms,0,1))","v":4335}]
[null,{"$f":"N_Player_list","v":"Licenced Players list"}]
[null,{"$f":"N_Name_1stname","v":"FAMILY NAME / Given name"},{"$f":"N_Family_Name","v":"Family Name"},{"$f":"N_1st_Name","v":"Given Name"},{"$f":"N_Licence","v":"Licence N°"},{"$f":"N_Category","v":"Category"},{"$f":"N_Club","v":"Club"},{"$f":"N_Nationality","v":"Nationality"}]
[null,"---"]
[null,{"$f":"TRIM(CONCATENATE(D8,\" \",C8))","v":"Fabrizio Bertolini"},"Bertolini","Fabrizio","ARG0002","VET","AS Rosario 2008","ARG"]
[null,"Gioacchino Di Giannantonio","Di Giannantonio","Gioacchino","ARG0009","VET","AS Rosario 2008","ARG"]
[null,"Gustavo Di Giannantonio","Di Giannantonio","Gustavo","ARG0010","OPEN","AS Rosario 2008","ARG"]
[null,"Nino Di Giannantonio","Di Giannantonio","Nino","ARG0011","OPEN","AS Rosario 2008","ARG"]
[null,"Bruno Di Paolo Sr.","Di Paolo Sr.","Bruno","ARG0012","VET","AS Rosario 2008","ARG"]
[null,"Paolo Ferrara","Ferrara","Paolo","ARG0013","OPEN","AS Rosario 2008","ARG"]
[null,"Gonzalo Gómez","Gómez","Gonzalo","ARG0014","OPEN","AS Rosario 2008","ARG"]
[null,"Leonardo Mario Juanto","Juanto","Leonardo Mario","ARG0017","OPEN","AS Rosario 2008","ARG"]
[null,"Toribio Lambertucci","Lambertucci","Toribio","ARG0018","VET","AS Rosario 2008","ARG"]
[null,"Matías Lioy","Lioy","Matías","ARG0019","OPEN","AS Rosario 2008","ARG"]
[null,"Nicolás Lioy","Lioy","Nicolás","ARG0020","OPEN","AS Rosario 2008","ARG"]
[null,"Claudio Murcilli","Murcilli","Claudio","ARG0026","VET","AS Rosario 2008","ARG"]
[null,"Renato Murcilli","Murcilli","Renato","ARG0027","OPEN","AS Rosario 2008","ARG"]
[null,"Ricardo Roberti","Roberti","Ricardo","ARG0030","OPEN","AS Rosario 2008","ARG"]
[null,"Edgar Shoenfeld","Shoenfeld","Edgar","ARG0032","VET","AS Rosario 2008","ARG"]
[null,"Fernando Tortelli","Tortelli","Fernando","ARG0035","OPEN","AS Rosario 2008","ARG"]
[null,"Leonardo Vera","Vera","Leonardo","ARG0037","OPEN","AS Rosario 2008","ARG"]
[null,"Gregorio Caro Solis","Caro Solis","Gregorio","ARG0042","VET","Buenos Aires TS","ARG"]
[null,"Flavio Bellingeri","Bellingeri","Flavio","ARG0043","VET","Buenos Aires TS","ARG"]
[null,"Christopher Wander","Wander","Christopher","ARG0044","VET","Buenos Aires TS","ARG"]
[null,"Germán Pacello","Pacello","Germán","ARG0045","OPEN","Buenos Aires TS","ARG"]
[null,"Patricio Echevarrieta","Echevarrieta","Patricio","ARG0046","OPEN","Buenos Aires TS","ARG"]
[null,"Fernando Soneira","Soneira","Fernando","ARG0049","OPEN","Buenos Aires TS","ARG"]
[null,"Claudia Cuello","Cuello","Claudia","ARG0051","OPEN","Buenos Aires TS","ARG"]
[null,"Sergio Gustavo Pelle","Pelle","Sergio Gustavo","ARG0054","VET","Marplatense AFM","ARG"]
[null,"Juan Carlos Galassi","Galassi","Juan Carlos","ARG0055","VET","Marplatense AFM","ARG"]
[null,"Leonardo Galassi","Galassi","Leonardo","ARG0056","VET","Marplatense AFM","ARG"]
[null,"Juan Manuel Sordo","Sordo","Juan Manuel","ARG0058","OPEN","Marplatense AFM","ARG"]
[null,"Mauro Bertolini","Bertolini","Mauro","ARG0059","OPEN","AS Rosario 2008","ARG"]
[null,"Sebastián Pesci","Pesci","Sebastián","ARG0060","OPEN","AS Rosario 2008","ARG"]
[null,"Agustin Ortega","Ortega","Agustin","ARG0061","OPEN","AS Rosario 2008","ARG"]
[null,"Agustin Bruno","Bruno","Agustin","ARG0062","OPEN","AS Rosario 2008","ARG"]
[null,"Tomas Testoni","Testoni","Tomas","ARG0063","OPEN","AS Rosario 2008","ARG"]
[null,"Alvaro Paciaroni","Paciaroni","Alvaro","ARG0064","OPEN","AS Rosario 2008","ARG"]
[null,"Ricardo Buldorini","Buldorini","Ricardo","ARG0065","OPEN","AS Rosario 2008","ARG"]
[null,"Martín Zega","Zega","Martín","ARG0066","OPEN","AS Rosario 2008","ARG"]
[null,"Santiago Shoenfeld","Shoenfeld","Santiago","ARG0067","OPEN","AS Rosario 2008","ARG"]
[null,"Tomás Shoenfeld","Shoenfeld","Tomás","ARG0068","OPEN","AS Rosario 2008","ARG"]
[null,"Davide Bozzano","Bozzano","Davide","ARG0069","VET","AS Rosario 2008","ARG"]
[null,"Norberto Martínez","Martínez","Norberto","ARG0070","VET","AFM San Justo","ARG"]
[null,"Norberto Oscar Martínez","Martínez","Norberto Oscar","ARG0071","VET","AFM San Justo","ARG"]
[null,"Carlos Alberto Martínez","Martínez","Carlos Alberto","ARG0072","OPEN","AFM San Justo","ARG"]
[null,"Guillermo Joel Gramajo","Gramajo","Guillermo Joel","ARG0073","OPEN","AFM San Justo","ARG"]
[null,"Maximiliano Gabriel Vergara","Vergara","Maximiliano Gabriel","ARG0074","OPEN","AFM San Justo","ARG"]
[null,"Mariano Di Luozzo","Di Luozzo","Mariano","ARG0075","OPEN","CFM Hudson","ARG"]
[null,"Mauro Fantino","Fantino","Mauro","ARG0076","VET","AS Rosario 2008","ARG"]
[null,"Joaquín Martínez","Martínez","Joaquín","ARG0077","U20","AFM San Justo","ARG"]
[null,"Martín Gallimò","Gallimò","Martín","ARG0078","OPEN","AS Rosario 2008","ARG"]
[null,"Marcelo Rossi","Rossi","Marcelo","ARG0079","VET","CFM Hudson","ARG"]
[null,"Juan Sebastián Garcia Ciraudo","Garcia Ciraudo","Juan Sebastián","ARG0080","OPEN","CFM Hudson","ARG"]
[null,"Augusto Rossi","Rossi","Augusto","ARG0081","U16","CFM Hudson","ARG"]
[null,"Valeria Forlani","Forlani","Valeria","ARG0082","OPEN","CFM Hudson","ARG"]
[null,"Valentino García Ciraudo","García Ciraudo","Valentino","ARG0083","OPEN","CFM Hudson","ARG"]
[null,"Frida Rossi","Rossi","Frida","ARG0084","U20","CFM Hudson","ARG"]
[null,"Brian González","González","Brian","ARG0085","U20","CFM Hudson","ARG"]
[null,"Gabriel Fantino","Fantino","Gabriel","ARG0086","OPEN","AS Rosario 2008","ARG"]
[null,"Facundo Rossi","Rossi","Facundo","ARG0087","OPEN","CFM Hudson","ARG"]
[null,"Juan Ramòn González","González","Juan Ramòn","ARG0088","VET","CFM Hudson","ARG"]
[null,"Hugo Senone","Senone","Hugo","ARG0089","VET","CFM Hudson","ARG"]
[null,"Santiago Torres","Torres","Santiago","ARG0090","OPEN","Buenos Aires TS","ARG"]
[null,"Robert Green","Green","Robert","AUS0002","VET","Northern Falcons TFC","AUS"]
[null,"Peter Thomas","Thomas","Peter","AUS0003","OPEN","Melbourne TFC","AUS"]
[null,"Benji Batten","Batten","Benji","AUS0004","OPEN","Melbourne TFC","AUS"]
[null,{"$f":"TRIM(CONCATENATE(D71,\" \",C71))","v":"Steve Dettre"},"Dettre","Steve","AUS0005","VET","Northern Falcons TFC","AUS"]
[null,"Adrian Elmer","Elmer","Adrian","AUS0006","VET","The Tumbleweeds","AUS"]
[null,"Eliot Kennedy","Kennedy","Eliot","AUS0007","VET","Northern Falcons TFC","AUS"]
[null,"Luke Radziminski","Radziminski","Luke","AUS0011","OPEN","Melbourne TFC","AUS"]
[null,"Giuseppe Tardiota","Tardiota","Giuseppe","AUS0016","VET","Brisbane Subbuteo Club","AUS"]
[null,"Daniel Lombard","Lombard","Daniel","AUS0018","OPEN","Sydney TFC","AUS"]
[null,"Louie Dettre","Dettre","Louie","AUS0019","OPEN","Northern Falcons TFC","AUS"]
[null,"James Dettre","Dettre","James","AUS0020","OPEN","Northern Falcons TFC","AUS"]
[null,"Imojjen Elmer","Elmer","Imojjen","AUS0023","OPEN","The Tumbleweeds","AUS"]
[null,"Jonny Ball","Ball","Jonny","AUS0028","VET","Northern Falcons TFC","AUS"]
[null,"Paul Mercer","Mercer","Paul","AUS0030","VET","Northern Phoenix TFC","AUS"]
[null,"Harry Wightman","Wightman","Harry","AUS0032","OPEN","Melbourne TFC","AUS"]
[null,"Paul Magee","Magee","Paul","AUS0039","VET","The Tumbleweeds","AUS"]
[null,"Christos Garagounis","Garagounis","Christos","AUS0044","VET","Northern Phoenix TFC","AUS"]
[null,"Adam Deverell","Deverell","Adam","AUS0047","VET","Northern Falcons TFC","AUS"]
[null,"Neil Brener","Brener","Neil","AUS0053","VET","Northern Falcons TFC","AUS"]
[null,"Geoff Sirmai","Sirmai","Geoff","AUS0057","VET","Hipfingerz Subbuteo Club","AUS"]
[null,"Gareth Whalley","Whalley","Gareth","AUS0067","OPEN","Brisbane Subbuteo Club","AUS"]
[null,"Beth Eveleigh","Eveleigh","Beth","AUS0074","VET","Northern Phoenix TFC","AUS"]
[null,"Chris Thorn","Thorn","Chris","AUS0078","VET","Subbuteo Perth","AUS"]
[null,"Matt Metter","Metter","Matt","AUS0098","OPEN","Melbourne TFC","AUS"]
[null,"Yago Dzelalija","Dzelalija","Yago","AUS0110","VET","Western Flickers TFC","AUS"]
[null,"Hugh Best","Best","Hugh","AUS0122","VET","The Sports Table Football Club of Western Australia","AUS"]
[null,"Adrian Connolly","Connolly","Adrian","AUS0123","OPEN","Melbourne TFC","AUS"]
[null,"Kevin Grant","Grant","Kevin","AUS0124","VET","Central Victoria TFC","AUS"]
[null,"Billy Koutzas","Koutzas","Billy","AUS0138","OPEN","Sydney TFC","AUS"]
[null,"Nick Brill","Brill","Nick","AUS0139","OPEN","The Tumbleweeds","AUS"]
[null,"Adrian Grunbach","Grunbach","Adrian","AUS0156","OPEN","Northern Falcons TFC","AUS"]
[null,"Nathan Urbaniak","Urbaniak","Nathan","AUS0170","OPEN","Melbourne TFC","AUS"]
[null,"Francis Cozzarin","Cozzarin","Francis","AUS0194","OPEN","The Tumbleweeds","AUS"]
[null,"Gordon Orr","Orr","Gordon","AUS0203","VET","Brisbane Subbuteo Club","AUS"]
[null,"Nathan Heard","Heard","Nathan","AUS0208","VET","Northern Phoenix TFC","AUS"]
[null,"Timothy Phokos","Phokos","Timothy","AUS0209","U20","The Tumbleweeds","AUS"]
[null,"Gabriel Phokos","Phokos","Gabriel","AUS0210","U16","The Tumbleweeds","AUS"]
[null,"Mick Phillips","Phillips","Mick","AUS0211","VET","Subbuteo Adelaide TFC","AUS"]
[null,"Marc Davey","Davey","Marc","AUS0212","OPEN","Subbuteo Adelaide TFC","AUS"]
[null,"Justin Bullock","Bullock","Justin","AUS0213","OPEN","Free Agent","AUS"]
[null,"Riley Connolly","Connolly","Riley","AUS0214","U12","Free Agent","AUS"]
[null,"Steve Solomonidis","Solomonidis","Steve","AUS0215","OPEN","Melbourne TFC","AUS"]
[null,"Tom Shalev","Shalev","Tom","AUS0216","OPEN","Melbourne TFC","AUS"]
[null,"John Phokos","Phokos","John","AUS0217","VET","The Tumbleweeds","AUS"]
[null,"Alexander Best","Best","Alexander","AUS0218","OPEN","The Sports Table Football Club of Western Australia","AUS"]
[null,"George Theocaris","Theocaris","George","AUS0219","VET","Northern Phoenix TFC","AUS"]
[null,"Günter Exler","Exler","Günter","AUT0002","VET","TFC Mattersburg","AUT"]
[null,"Thomas Exler","Exler","Thomas","AUT0003","OPEN","TFC Mattersburg","AUT"]
[null,"Wolfgang Leitner","Leitner","Wolfgang","AUT0010","OPEN","TSC Royal 78 Kaisermühlen","AUT"]
[null,"Robert Lenz","Lenz","Robert","AUT0012","VET","TSC Royal 78 Kaisermühlen","AUT"]
[null,"Gerhard Mandl","Mandl","Gerhard","AUT0013","VET","TFC Mattersburg","AUT"]
[null,"Markus Matzinger","Matzinger","Markus","AUT0015","OPEN","TFC Mattersburg","AUT"]
[null,"Gerhard Ecker","Ecker","Gerhard","AUT0020","VET","TSC Royal 78 Kaisermühlen","AUT"]
[null,"Heinz Eder","Eder","Heinz","AUT0021","OPEN","TSC Royal 78 Kaisermühlen","AUT"]
[null,"Christoph Gerbasits","Gerbasits","Christoph","AUT0022","OPEN","TSC Royal 78 Kaisermühlen","AUT"]
[null,"Herbert Gütl","Gütl","Herbert","AUT0023","OPEN","TSC Royal 78 Kaisermühlen","AUT"]
[null,"Alexander Haas","Haas","Alexander","AUT0024","OPEN","TSC Royal 78 Kaisermühlen","AUT"]
[null,"Christian Haas","Haas","Christian","AUT0025","OPEN","Bormla SC","AUT"]
[null,"Michael Hasieber","Hasieber","Michael","AUT0026","VET","TSC Royal 78 Kaisermühlen","AUT"]
[null,"Stefan Sandner","Sandner","Stefan","AUT0033","VET","TSC Royal 78 Kaisermühlen","AUT"]
[null,"Reinhard Schöberl","Schöberl","Reinhard","AUT0035","OPEN","TSC Royal 78 Kaisermühlen","AUT"]
[null,"Manfred Schuhmann","Schuhmann","Manfred","AUT0036","VET","TSC Royal 78 Kaisermühlen","AUT"]
[null,"Murat Tünger","Tünger","Murat","AUT0040","OPEN","TSC Royal 78 Kaisermühlen","AUT"]
[null,"Thomas Wittmann","Wittmann","Thomas","AUT0041","OPEN","TSC Royal 78 Kaisermühlen","AUT"]
[null,"Peter Zeilinger","Zeilinger","Peter","AUT0043","OPEN","TSC Royal 78 Kaisermühlen","AUT"]
[null,"Wolfgang Haas","Haas","Wolfgang","AUT0044","OPEN","Bormla SC","AUT"]
[null,"Günther Bamberzky","Bamberzky","Günther","AUT0045","VET","Crimson Horses","AUT"]
[null,{"$f":"TRIM(CONCATENATE(D135,\" \",C135))","v":"Christian Blümel"},"Blümel","Christian","AUT0047","OPEN","TSC Phoenix","AUT"]
[null,"Erich Hinkelmann","Hinkelmann","Erich","AUT0051","VET","TSC Phoenix","AUT"]
[null,"Thomas Karnthaler","Karnthaler","Thomas","AUT0054","OPEN","TSC Phoenix","AUT"]
[null,"Jürgen Lizar","Lizar","Jürgen","AUT0056","OPEN","TSC Phoenix","AUT"]
[null,"Manfred Pawlica","Pawlica","Manfred","AUT0057","VET","TSC Phoenix","AUT"]
[null,"Alfred Strommer","Strommer","Alfred","AUT0059","VET","TSC Phoenix","AUT"]
[null,"David Vranovitz","Vranovitz","David","AUT0061","OPEN",null,"AUT"]
[null,"Marios Strommer","Strommer","Marios","AUT0066","OPEN","TSC Phoenix","AUT"]
[null,"David Busch","Busch","David","AUT0069","VET","Bormla SC","AUT"]
[null,"Thomas Busch","Busch","Thomas","AUT0070","VET","TSC Phoenix","AUT"]
[null,"Thorsten Korzil","Korzil","Thorsten","AUT0072","OPEN","TFC Mattersburg","AUT"]
[null,"Daniel Vranovitz","Vranovitz","Daniel","AUT0073","OPEN","TSC Royal 78 Kaisermühlen","AUT"]
[null,"Bettina Lenz","Lenz","Bettina","AUT0074","OPEN","TFC Mattersburg","AUT"]
[null,"Karl Vranovitz","Vranovitz","Karl","AUT0084","VET","TSC Royal 78 Kaisermühlen","AUT"]
[null,"Elias Walzer","Walzer","Elias","AUT0094","U20","TFC Mattersburg","AUT"]
[null,"David Scherbantin","Scherbantin","David","AUT0107","OPEN","TSC Royal 78 Kaisermühlen","AUT"]
[null,"Katharina Ocenasek","Ocenasek","Katharina","AUT0115","OPEN","TSC Royal 78 Kaisermühlen","AUT"]
[null,"Christian Hausmann","Hausmann","Christian","AUT0117","OPEN","TSC Royal 78 Kaisermühlen","AUT"]
[null,"Fabian Pinter","Pinter","Fabian","AUT0120","U20","TFC Mattersburg","AUT"]
[null,"Katharina Waldorf-Busch","Waldorf-Busch","Katharina","AUT0121","VET","Bormla SC","AUT"]
[null,"Louis Haas","Haas","Louis","AUT0122","U12","TSC Royal 78 Kaisermühlen","AUT"]
[null,"Johannes Haas","Haas","Johannes","AUT0123","U12","Free Agent","AUT"]
[null,"Igor Ljubisavljevic","Ljubisavljevic","Igor","AUT0124","OPEN","TSC Phoenix","AUT"]
[null,"Florian Daxböck","Daxböck","Florian","AUT0125","VET","TSC Phoenix","AUT"]
[null,"Jordan Bonte","Bonte","Jordan","BEL0272","OPEN","ALC Wattrelos - Subbuteo Lille Metropole","BEL"]
[null,"Sébastien Scheen","Scheen","Sébastien","BEL0152","OPEN","ASD SC Salernitana","BEL"]
[null,"Joffray Laurent","Laurent","Joffray","BEL0033","OPEN","Atlas FTC","BEL"]
[null,"Matthias Averlant","Averlant","Matthias","BEL0242","OPEN","Avenir Subbuteo Hennuyer","BEL"]
[null,"Elodie Bertholet","Bertholet","Elodie","BEL0168","OPEN","Avenir Subbuteo Hennuyer","BEL"]
[null,"Corentin Boltz","Boltz","Corentin","BEL0217","OPEN","Avenir Subbuteo Hennuyer","BEL"]
[null,"Jérôme Cyganek","Cyganek","Jérôme","BEL0300","U20","Avenir Subbuteo Hennuyer","BEL"]
[null,"Emeric Delcroix","Delcroix","Emeric","BEL0030","OPEN","Avenir Subbuteo Hennuyer","BEL"]
[null,"Louka Demeuldre","Demeuldre","Louka","BEL0495","U16","Avenir Subbuteo Hennuyer","BEL"]
[null,"Emilie Despretz","Despretz","Emilie","BEL0061","OPEN","Avenir Subbuteo Hennuyer","BEL"]
[null,"Steffen Despretz","Despretz","Steffen","BEL0063","OPEN","Avenir Subbuteo Hennuyer","BEL"]
[null,"Léa Despretz","Despretz","Léa","BEL0236","U20","Avenir Subbuteo Hennuyer","BEL"]
[null,"Chloé Despretz","Despretz","Chloé","BEL0324","U16","Avenir Subbuteo Hennuyer","BEL"]
[null,"Delphine Dieudonne","Dieudonne","Delphine","BEL0064","OPEN","Avenir Subbuteo Hennuyer","BEL"]
[null,"Nathan Dupont","Dupont","Nathan","BEL0065","OPEN","Avenir Subbuteo Hennuyer","BEL"]
[null,"Chantal Gallez","Gallez","Chantal","BEL0066","VET","Avenir Subbuteo Hennuyer","BEL"]
[null,"Laurent Goor","Goor","Laurent","BEL0067","OPEN","Avenir Subbuteo Hennuyer","BEL"]
[null,"Benoit Lagneau","Lagneau","Benoit","BEL0262","OPEN","Avenir Subbuteo Hennuyer","BEL"]
[null,"Geoffrey Marain","Marain","Geoffrey","BEL0171","OPEN","Avenir Subbuteo Hennuyer","BEL"]
[null,"Benjamin Marain","Marain","Benjamin","BEL0298","U20","Avenir Subbuteo Hennuyer","BEL"]
[null,"Patrick Peltier","Peltier","Patrick","BEL0069","VET","Avenir Subbuteo Hennuyer","BEL"]
[null,"Olivier Pere","Pere","Olivier","BEL0070","VET","Avenir Subbuteo Hennuyer","BEL"]
[null,"Lucas Pere","Pere","Lucas","BEL0197","OPEN","Avenir Subbuteo Hennuyer","BEL"]
[null,"Jann Segers","Segers","Jann","BEL0247","U20","Avenir Subbuteo Hennuyer","BEL"]
[null,"David Vantassel","Vantassel","David","BEL0073","OPEN","Avenir Subbuteo Hennuyer","BEL"]
[null,"Bessim Golger","Golger","Bessim","BEL0018","OPEN","Bormla SC","BEL"]
[null,"William Van Den Houte","Van Den Houte","William","BEL0122","OPEN","Bormla SC","BEL"]
[null,"Christophe Dheur","Dheur","Christophe","BEL0132","OPEN","CCT Eagles Napoli","BEL"]
[null,"Vincent Dirick","Dirick","Vincent","BEL0484","VET","ELM'Aye SC","BEL"]
[null,"Olivia Huet","Huet","Olivia","BEL0467","U16","ELM'Aye SC","BEL"]
[null,"Mathis Joachim","Joachim","Mathis","BEL0464","U16","ELM'Aye SC","BEL"]
[null,"Romain Joris","Joris","Romain","BEL0465","U16","ELM'Aye SC","BEL"]
[null,"Martin Joris","Joris","Martin","BEL0475","U12","ELM'Aye SC","BEL"]
[null,"Martin Lebutte","Lebutte","Martin","BEL0476","U12","ELM'Aye SC","BEL"]
[null,"Robin Verplaetse","Verplaetse","Robin","BEL0466","U16","ELM'Aye SC","BEL"]
[null,"Rémy Huynh","Huynh","Rémy","BEL0108","OPEN","F.Lli Bari Reggio Emilia","BEL"]
[null,"Xavier Herman","Herman","Xavier","BEL0140","OPEN","free agent","BEL"]
[null,"Florian Giaux","Giaux","Florian","BEL0104","OPEN","FTC Caen","BEL"]
[null,"Louison Giaux","Giaux","Louison","BEL0106","OPEN","FTC Caen","BEL"]
[null,"Justin Leroy","Leroy","Justin","BEL0114","OPEN","FTC Caen","BEL"]
[null,{"$f":"TRIM(CONCATENATE(D199,\" \",C199))","v":"Pierre De Leeuw"},"De Leeuw","Pierre","BEL0015","OPEN","H'Attard SC","BEL"]
[null,"Bruno Timpano","Timpano","Bruno","BEL0316","OPEN","H'Attard SC","BEL"]
[null,"Jérémy Ancion","Ancion","Jérémy","BEL0075","OPEN","JSC Rochefort","BEL"]
[null,"Kévin Beckers","Beckers","Kévin","BEL0123","OPEN","JSC Rochefort","BEL"]
[null,"Valéry Dejardin","Dejardin","Valéry","BEL0079","OPEN","JSC Rochefort","BEL"]
[null,"Gil Delogne","Delogne","Gil","BEL0002","VET","JSC Rochefort","BEL"]
[null,"Michaël Denooz","Denooz","Michaël","BEL0130","OPEN","JSC Rochefort","BEL"]
[null,"Nathan Dizier","Dizier","Nathan","BEL0082","OPEN","JSC Rochefort","BEL"]
[null,"Rémy Honet","Honet","Rémy","BEL0084","OPEN","JSC Rochefort","BEL"]
[null,"Mathieu Marlair","Marlair","Mathieu","BEL0440","OPEN","JSC Rochefort","BEL"]
[null,"Maxime Muraille","Muraille","Maxime","BEL0088","OPEN","JSC Rochefort","BEL"]
[null,"Arnaud Robillard","Robillard","Arnaud","BEL0090","OPEN","JSC Rochefort","BEL"]
[null,"Olivier Saffer","Saffer","Olivier","BEL0091","OPEN","JSC Rochefort","BEL"]
[null,"Didier Stevenot","Stevenot","Didier","BEL0092","VET","JSC Rochefort","BEL"]
[null,"Michaël Dupret","Dupret","Michaël","BEL0347","OPEN","Magic Team Tournai","BEL"]
[null,"Mathieu Crasset","Crasset","Mathieu","BEL0452","OPEN","Master Sanremo","BEL"]
[null,"Jérôme Heyvaert","Heyvaert","Jérôme","BEL0021","OPEN","Master Sanremo","BEL"]
[null,"Gaston Cheronnet","Cheronnet","Gaston","BEL0491","U12","Racing White Woluwé Subbuteo","BEL"]
[null,"Bryan De Schuyteneer","De Schuyteneer","Bryan","BEL0007","OPEN","Racing White Woluwé Subbuteo","BEL"]
[null,"Michel De Schuyteneer","De Schuyteneer","Michel","BEL0009","VET","Racing White Woluwé Subbuteo","BEL"]
[null,"Véronique Dery","Dery","Véronique","BEL0486","OPEN","Racing White Woluwé Subbuteo","BEL"]
[null,"André Flémal","Flémal","André","BEL0485","VET","Racing White Woluwé Subbuteo","BEL"]
[null,"Pascal Flémal","Flémal","Pascal","BEL0487","VET","Racing White Woluwé Subbuteo","BEL"]
[null,"Marc Hambrouck","Hambrouck","Marc","BEL0223","VET","Racing White Woluwé Subbuteo","BEL"]
[null,"Quentin Hambrouck","Hambrouck","Quentin","BEL0227","OPEN","Racing White Woluwé Subbuteo","BEL"]
[null,"Philippe Hipfinger","Hipfinger","Philippe","BEL0192","VET","Racing White Woluwé Subbuteo","BEL"]
[null,"Fabian Limpens","Limpens","Fabian","BEL0023","VET","Racing White Woluwé Subbuteo","BEL"]
[null,"Didier Van Renterghem","Van Renterghem","Didier","BEL0193","VET","Racing White Woluwé Subbuteo","BEL"]
[null,"Alexis Van Renterghem","Van Renterghem","Alexis","BEL0488","U16","Racing White Woluwé Subbuteo","BEL"]
[null,"Eric Kirschvink","Kirschvink","Eric","BEL0490","VET","RC Lorraine Subbuteo Club","BEL"]
[null,"Christophe Brach","Brach","Christophe","BEL0127","OPEN","SC Charleroi","BEL"]
[null,"Michaël Casciano","Casciano","Michaël","BEL0014","OPEN","SC Charleroi","BEL"]
[null,"Fabio Casciano","Casciano","Fabio","BEL0451","U16","SC Charleroi","BEL"]
[null,"Vito Di Ruggiero","Di Ruggiero","Vito","BEL0017","VET","SC Charleroi","BEL"]
[null,"David Fraikin","Fraikin","David","BEL0134","OPEN","SC Charleroi","BEL"]
[null,"Alain Hanotiaux","Hanotiaux","Alain","BEL0019","VET","SC Charleroi","BEL"]
[null,"Sami Targui","Targui","Sami","BEL0026","OPEN","SC Charleroi","BEL"]
[null,"Maxime Van Impe","Van Impe","Maxime","BEL0353","VET","SC Charleroi","BEL"]
[null,"Jos Ceulemans","Ceulemans","Jos","BEL0045","VET","SC Flanders","BEL"]
[null,"Geert Leys","Leys","Geert","BEL0052","VET","SC Flanders","BEL"]
[null,"Yves Peremans","Peremans","Yves","BEL0311","VET","SC Flanders","BEL"]
[null,"Robin Somers","Somers","Robin","BEL0054","OPEN","SC Flanders","BEL"]
[null,"David Wouters","Wouters","David","BEL0345","VET","SC Flanders","BEL"]
[null,"Corentin Bouchez","Bouchez","Corentin","BEL0027","OPEN","SC Lion's Eugies","BEL"]
[null,"Denis Bouchez","Bouchez","Denis","BEL0028","VET","SC Lion's Eugies","BEL"]
[null,"Charlotte Bouchez","Bouchez","Charlotte","BEL0266","U20","SC Lion's Eugies","BEL"]
[null,"Kenny De Schuyteneer","De Schuyteneer","Kenny","BEL0008","OPEN","SC Lion's Eugies","BEL"]
[null,"Noah Denne","Denne","Noah","BEL0328","U20","SC Lion's Eugies","BEL"]
[null,"Mael Denne","Denne","Mael","BEL0448","U12","SC Lion's Eugies","BEL"]
[null,"Damien Denooz","Denooz","Damien","BEL0020","OPEN","SC Lion's Eugies","BEL"]
[null,"Giulian Frébutte","Frébutte","Giulian","BEL0492","U12","SC LIon's Eugies","BEL"]
[null,"Alex Genart","Genart","Alex","BEL0240","OPEN","SC Lion's Eugies","BEL"]
[null,"Mathis Goffin","Goffin","Mathis","BEL0460","U12","SC Lion's Eugies","BEL"]
[null,"Jody Henrioul","Henrioul","Jody","BEL0032","OPEN","SC Lion's Eugies","BEL"]
[null,"Kevin Lelubre","Lelubre","Kevin","BEL0034","OPEN","SC Lion's Eugies","BEL"]
[null,"Xavier Outters","Outters","Xavier","BEL0455","OPEN","SC Lion's Eugies","BEL"]
[null,"Christophe Rairoux","Rairoux","Christophe","BEL0038","OPEN","SC Lion's Eugies","BEL"]
[null,"Maxime Rairoux","Rairoux","Maxime","BEL0039","OPEN","SC Lion's Eugies","BEL"]
[null,"Lucas Raison","Raison","Lucas","BEL0335","U20","SC Lion's Eugies","BEL"]
[null,"Marius Ruelle","Ruelle","Marius","BEL0474","U12","SC Lion's Eugies","BEL"]
[null,"Marc Sceraert","Sceraert","Marc","BEL0480","VET","SC Lion's Eugies","BEL"]
[null,"Frédéric Thiel","Thiel","Frédéric","BEL0337","OPEN","SC Lion's Eugies","BEL"]
[null,"Konstandinos Tsangouris","Tsangouris","Konstandinos","BEL0454","U16","SC Lion's Eugies","BEL"]
[null,"Olivier Van Glabeke","Van Glabeke","Olivier","BEL0194","VET","SC Lion's Eugies","BEL"]
[null,{"$f":"TRIM(CONCATENATE(D263,\" \",C263))","v":"Jean-Christophe Daelman"},"Daelman","Jean-Christophe","BEL0256","OPEN","SC Temploux","BEL"]
[null,"Rudi De Smet","De Smet","Rudi","BEL0047","VET","SC Temploux","BEL"]
[null,"Nathanaël Dhyne","Dhyne","Nathanaël","BEL0478","U16","SC Temploux","BEL"]
[null,"Olivier Dubois","Dubois","Olivier","BEL0162","VET","SC Temploux","BEL"]
[null,"Jean-Pierre Genart","Genart","Jean-Pierre","BEL0399","VET","SC Temploux","BEL"]
[null,"Michaël Hallin","Hallin","Michaël","BEL0270","VET","SC Temploux","BEL"]
[null,"Jules Hanosset","Hanosset","Jules","BEL0450","U16","SC Temploux","BEL"]
[null,"Frank Lannoy","Lannoy","Frank","BEL0051","VET","SC Temploux","BEL"]
[null,"Thierry Magermans","Magermans","Thierry","BEL0265","VET","SC Temploux","BEL"]
[null,"Benoît Massart","Massart","Benoît","BEL0164","VET","SC Temploux","BEL"]
[null,"Bruno Mottet","Mottet","Bruno","BEL0354","OPEN","SC Temploux","BEL"]
[null,"Arnaud Nullens","Nullens","Arnaud","BEL0174","OPEN","SC Temploux","BEL"]
[null,"Philippe Roufosse","Roufosse","Philippe","BEL0176","VET","SC Temploux","BEL"]
[null,"David Van Den Houte","Van Den Houte","David","BEL0120","VET","SC Temploux","BEL"]
[null,"Benoît Vanwissen","Vanwissen","Benoît","BEL0178","VET","SC Temploux","BEL"]
[null,"Pol Verhaeghe","Verhaeghe","Pol","BEL0167","VET","SC Temploux","BEL"]
[null,"Xavier Verstrepen","Verstrepen","Xavier","BEL0244","OPEN","SG '94 Hannover","BEL"]
[null,"Aurélien Feye","Feye","Aurélien","BEL0306","U20","ST Stembert","BEL"]
[null,"Bruno Goset","Goset","Bruno","BEL0137","VET","ST Stembert","BEL"]
[null,"Charles Goset","Goset","Charles","BEL0260","VET","ST Stembert","BEL"]
[null,"Noah Janssens","Janssens","Noah","BEL0445","U20","ST Stembert","BEL"]
[null,"Ludovic Ponthieux","Ponthieux","Ludovic","BEL0147","OPEN","ST Stembert","BEL"]
[null,"Sébastien Rochez","Rochez","Sébastien","BEL0481","VET","ST Stembert","BEL"]
[null,"Christopher Sabetta","Sabetta","Christopher","BEL0318","OPEN","ST Stembert","BEL"]
[null,"Pascal Scheen","Scheen","Pascal","BEL0151","VET","ST Stembert","BEL"]
[null,"Mélina Scheen","Scheen","Mélina","BEL0366","OPEN","ST Stembert","BEL"]
[null,"Eric Threis","Threis","Eric","BEL0157","VET","ST Stembert","BEL"]
[null,"Quentin Van Glabeke","Van Glabeke","Quentin","BEL0195","OPEN","ST Stembert","BEL"]
[null,"Valéry Willot","Willot","Valéry","BEL0447","OPEN","ST Stembert","BEL"]
[null,"Vincent Coppenolle","Coppenolle","Vincent","BEL0169","OPEN","Templeuve United TSC","BEL"]
[null,"Raphaël Dhondt","Dhondt","Raphaël","BEL0493","OPEN","Templeuve United TSC","BEL"]
[null,"Ursule Dhondt","Dhondt","Ursule","BEL0494","U12","Templeuve United TSC","BEL"]
[null,"Daniel Scheen","Scheen","Daniel","BEL0148","VET","Tiburones FM","BEL"]
[null,"Salvatore Visconti","Visconti","Salvatore","BEL0179","OPEN","Tiburones FM","BEL"]
[null,"Sébastien Darmont","Darmont","Sébastien","BEL0264","OPEN","US Huy","BEL"]
[null,"Ralf Gregoire","Gregoire","Ralf","BEL0163","OPEN","US Huy","BEL"]
[null,"Steve Gregoire","Gregoire","Steve","BEL0190","VET","US Huy","BEL"]
[null,"Fabrice Guyaux","Guyaux","Fabrice","BEL0259","VET","US Huy","BEL"]
[null,"Adam Guyaux","Guyaux","Adam","BEL0473","U16","US Huy","BEL"]
[null,"Pol Serwy","Serwy","Pol","BEL0166","VET","US Huy","BEL"]
[null,"Giulio Bonfanti","Bonfanti","Giulio","BEL0358","VET","Wamme SC","BEL"]
[null,"Richard Boulanger","Boulanger","Richard","BEL0044","VET","Wamme SC","BEL"]
[null,"David Boulanger","Boulanger","David","BEL0446","OPEN","Wamme SC","BEL"]
[null,"Noah Dirick","Dirick","Noah","BEL0444","U20","Wamme SC","BEL"]
[null,"Jean Grosdent","Grosdent","Jean","BEL0332","OPEN","Wamme SC","BEL"]
[null,"Luc Grosdent","Grosdent","Luc","BEL0344","OPEN","Wamme SC","BEL"]
[null,"Maxim Grosdent","Grosdent","Maxim","BEL0355","U16","Wamme SC","BEL"]
[null,"Sophia Grosdent","Grosdent","Sophia","BEL0449","U16","Wamme SC","BEL"]
[null,"Thomas Janssens","Janssens","Thomas","BEL0472","OPEN","Wamme SC","BEL"]
[null,"Gabriel Janssens","Janssens","Gabriel","BEL0489","U12","Wamme SC","BEL"]
[null,"Philippe Thys","Thys","Philippe","BEL0356","VET","Wamme SC","BEL"]
[null,"Antonio Timpano","Timpano","Antonio","BEL0319","OPEN","Wamme SC","BEL"]
[null,"Lulani Verhoeven","Verhoeven","Lulani","BEL0435","U20","Wamme SC","BEL"]
[null,"Stéphane Lambert","Lambert","Stéphane","BEL0050","VET","Yokohama OSC","BEL"]
[null,"Regis Abboud","Abboud","Regis","BRA0051","VET","Cisplatina FC","BRA"]
[null,"Paulo Agra","Agra","Paulo","BRA0041","VET","Free Agent","BRA"]
[null,"Felipe Andreassi","Andreassi","Felipe","BRA0055","OPEN","Free Agent","BRA"]
[null,"Diego Antonio de Lima","Antonio de Lima","Diego","BRA0179","OPEN","Free Agent","BRA"]
[null,"Danilo Aparecido Mendonça Pereira","Aparecido Mendonça Pereira","Danilo","BRA0169","OPEN","Free Agent","BRA"]
[null,"Leonardo Armani","Armani","Leonardo","BRA0060","OPEN","Free Agent","BRA"]
[null,"José Humberto Arruda","Arruda","José Humberto","BRA0157","VET","Free Agent","BRA"]
[null,"Ricardo Asso","Asso","Ricardo","BRA0022","VET","Free Agent","BRA"]
[null,"Alex Bahr","Bahr","Alex","BRA0103","VET","São Paulo FC","BRA"]
[null,"João Tassio Barbosa de Farias","Barbosa de Farias","João Tassio","BRA0177","U20","Free Agent","BRA"]
[null,{"$f":"TRIM(CONCATENATE(D327,\" \",C327))","v":"Luciano Barcelos"},"Barcelos","Luciano","BRA0099","OPEN","Free Agent","BRA"]
[null,"Tacito Belfort de Moura","Belfort de Moura","Tacito","BRA0156","OPEN","SC do Recife","BRA"]
[null,"Vlademir Betaressi","Betaressi","Vlademir","BRA0058","OPEN","Free Agent","BRA"]
[null,"Éder Sergio Bezerra de Souza","Bezerra de Souza","Éder Sergio","BRA0174","VET","Free Agent","BRA"]
[null,"Fabio Borges","Borges","Fabio","BRA0008","OPEN","Free Agent","BRA"]
[null,"Eduardo Canocchiari","Canocchiari","Eduardo","BRA0044","OPEN","Free Agent","BRA"]
[null,"Halisson Carneiro da Siva","Carneiro da Siva","Halisson","BRA0163","VET","Botafogo FR","BRA"]
[null,"Renato César Carneiro dos Santos","Carneiro dos Santos","Renato César","BRA0180","VET","Free Agent","BRA"]
[null,"Luiz Carvalho","Carvalho","Luiz","BRA0118","OPEN","SC Corinthians Paulista","BRA"]
[null,"Thiago Dias Cassis","Cassis","Thiago Dias","BRA0136","OPEN","Free Agent","BRA"]
[null,"Flavio Celandroni","Celandroni","Flavio","BRA0049","VET","Cisplatina FC","BRA"]
[null,"Abel Cepa","Cepa","Abel","BRA0107","OPEN","CR Vasco da Gama","BRA"]
[null,"Jeferson Cincotto","Cincotto","Jeferson","BRA0052","VET","Cisplatina FC","BRA"]
[null,"Marcus Constantino","Constantino","Marcus","BRA0101","OPEN","CR Vasco da Gama","BRA"]
[null,"Silvio Alexandre Corujeira","Corujeira","Silvio Alexandre","BRA0160","VET","SC Corinthians Paulista","BRA"]
[null,"Eduardo Costa","Costa","Eduardo","BRA0104","OPEN","CR Vasco da Gama","BRA"]
[null,"Paolo Costa","Costa","Paolo","BRA0089","OPEN","SE Palmeiras","BRA"]
[null,"Paulo Costa Filho","Costa Filho","Paulo","BRA0111","OPEN","CR Vasco da Gama","BRA"]
[null,"Emanoel José Costa Júnior","Costa Júnior","Emanoel José","BRA0134","OPEN","Free Agent","BRA"]
[null,"Bruno Coutinho","Coutinho","Bruno","BRA0109","OPEN","Bangu AC","BRA"]
[null,"Daniel Coutinho","Coutinho","Daniel","BRA0110","OPEN","Bangu AC","BRA"]
[null,"Marcelo Coutinho","Coutinho","Marcelo","BRA0001","VET","Bangu AC","BRA"]
[null,"Breno Couto","Couto","Breno","BRA0128","U20","CR Vasco da Gama","BRA"]
[null,"Lauro Couto","Couto","Lauro","BRA0113","OPEN","CR Vasco da Gama","BRA"]
[null,"Artur Crepaldi","Crepaldi","Artur","BRA0082","OPEN","São Paulo FC","BRA"]
[null,"Marcos Moysés da Cunha","da Cunha","Marcos Moysés","BRA0164","VET","Botafogo FR","BRA"]
[null,"Alex da Silva","da Silva","Alex","BRA0040","VET","Cisplatina FC","BRA"]
[null,"Wellington da Silva","da Silva","Wellington","BRA0075","OPEN","Free Agent","BRA"]
[null,"João Paulo da Silva Barbosa","da Silva Barbosa","João Paulo","BRA0151","OPEN","Colombo SC","BRA"]
[null,"Roberto Dalcin","Dalcin","Roberto","BRA0023","OPEN","Free Agent","BRA"]
[null,"Gilson de Carvalho","de Carvalho","Gilson","BRA0069","VET","Free Agent","BRA"]
[null,"Daniel de Matos","de Matos","Daniel","BRA0094","OPEN","CR Vasco da Gama","BRA"]
[null,"Sidney de Souza","de Souza","Sidney","BRA0083","OPEN","SE Palmeiras","BRA"]
[null,"Marcos Dominos","Dominos","Marcos","BRA0070","VET","Free Agent","BRA"]
[null,"Norberto Donizeti Bergamini","Donizeti Bergamini","Norberto","BRA0162","VET","Free Agent","BRA"]
[null,"Antonio Carlos dos Santos","dos Santos","Antonio Carlos","BRA0137","VET","SC Corinthians Paulista","BRA"]
[null,"Maurício dos Santos Matos","dos Santos Matos","Maurício","BRA0171","VET","Free Agent","BRA"]
[null,"Antonio Carlos Efangelo Júnior","Efangelo Júnior","Antonio Carlos","BRA0173","OPEN","São Paulo Futebol Clube","BRA"]
[null,"Marcio Eglit","Eglit","Marcio","BRA0072","VET","Free Agent","BRA"]
[null,"Fred Elesbao","Elesbao","Fred","BRA0181","OPEN","SG '94 Hannover","BRA"]
[null,"José Farah","Farah","José","BRA0032","VET","Cisplatina FC","BRA"]
[null,"Ernandes Felicio","Felicio","Ernandes","BRA0085","OPEN","SE Palmeiras","BRA"]
[null,"Macio Fernando Pacheco","Fernando Pacheco","Macio","BRA0154","VET","Santa Cruz FC","BRA"]
[null,"Roger Ferracin de Oliveira","Ferracin de Oliveira","Roger","BRA0168","OPEN","Londrina EC","BRA"]
[null,"Ailton Ferreira","Ferreira","Ailton","BRA0018","VET","Londrina EC","BRA"]
[null,"Fernando Ferreira","Ferreira","Fernando","BRA0114","OPEN","CR Vasco da Gama","BRA"]
[null,"Frederico Fleury","Fleury","Frederico","BRA0059","OPEN","Free Agent","BRA"]
[null,"Sérgio Franco","Franco","Sérgio","BRA0053","OPEN","Free Agent","BRA"]
[null,"Fabio Freitas","Freitas","Fabio","BRA0081","OPEN","SE Palmeiras","BRA"]
[null,"Bruno Fujisão","Fujisão","Bruno","BRA0092","OPEN","Free Agent","BRA"]
[null,"Rafael Gaba","Gaba","Rafael","BRA0172","OPEN","São Paulo Futebol Clube","BRA"]
[null,"Ednilson Gaffo","Gaffo","Ednilson","BRA0021","OPEN","São Paulo FC","BRA"]
[null,"Marco Antonio Galindo Perez","Galindo Perez","Marco Antonio","BRA0126","VET","Free Agent","BRA"]
[null,"João Garcia","Garcia","João","BRA0067","OPEN","Free Agent","BRA"]
[null,"Jefferson Genta","Genta","Jefferson","BRA0077","VET","SE Palmeiras","BRA"]
[null,"Pedro Canali Genta","Genta","Pedro Canali","BRA0141","U16","SE Palmeiras","BRA"]
[null,"Felipe Gomes","Gomes","Felipe","BRA0106","OPEN","CR Vasco da Gama","BRA"]
[null,"Guilherme Gomes","Gomes","Guilherme","BRA0029","OPEN","SAV Maria Zélia","BRA"]
[null,"Weber José Gomes","Gomes","Weber José","BRA0145","VET","Bangu AC","BRA"]
[null,"Weber José Gomes Júnior","Gomes Júnior","Weber José","BRA0148","U20","Bangu AC","BRA"]
[null,"Maicon Gouvêa","Gouvêa","Maicon","BRA0012","VET","Londrina EC","BRA"]
[null,"Alexandre Guerra","Guerra","Alexandre","BRA0034","VET","SAV Maria Zélia","BRA"]
[null,"João Lucas Heraclio Gomes Barbosa","Heraclio Gomes Barbosa","João Lucas","BRA0178","U12","Free Agent","BRA"]
[null,"Victor Heremann","Heremann","Victor","BRA0010","OPEN","São Paulo FC","BRA"]
[null,{"$f":"TRIM(CONCATENATE(D391,\" \",C391))","v":"Flavio Hermenegildo"},"Hermenegildo","Flavio","BRA0068","VET","Free Agent","BRA"]
[null,"Rhaniery Jardim","Jardim","Rhaniery","BRA0105","OPEN","CR Vasco da Gama","BRA"]
[null,"Carlos Junior","Junior","Carlos","BRA0020","VET","Free Agent","BRA"]
[null,"Vandir Junior","Junior","Vandir","BRA0064","VET","Free Agent","BRA"]
[null,"Luís Coelho Júnior","Júnior","Luís Coelho","BRA0146","OPEN","Bangu AC","BRA"]
[null,"Ricardo Leandro","Leandro","Ricardo","BRA0153","VET","Íbis SC","BRA"]
[null,"Matheus Lima","Lima","Matheus","BRA0025","OPEN","Free Agent","BRA"]
[null,"Vinícius Lima Rolim","Lima Rolim","Vinícius","BRA0165","OPEN","SC Corinthians Paulista","BRA"]
[null,"Gilmar Maghenzani","Maghenzani","Gilmar","BRA0045","VET","Cisplatina FC","BRA"]
[null,"Hylson Mamoni","Mamoni","Hylson","BRA0084","OPEN","SE Palmeiras","BRA"]
[null,"Luiz Manceira","Manceira","Luiz","BRA0066","OPEN","Free Agent","BRA"]
[null,"Róbson Fabricio Marfa","Marfa","Róbson Fabricio","BRA0132","VET","Botafogo FR","BRA"]
[null,"Ronaldo Marques","Marques","Ronaldo","BRA0028","VET","SAV Maria Zélia","BRA"]
[null,"Vitor Martins","Martins","Vitor","BRA0091","OPEN","Londrina EC","BRA"]
[null,"Allan Matos","Matos","Allan","BRA0108","OPEN","Free Agent","BRA"]
[null,"Marcelo Matos","Matos","Marcelo","BRA0056","VET","Free Agent","BRA"]
[null,"Emerson Melli","Melli","Emerson","BRA0087","OPEN","SE Palmeiras","BRA"]
[null,"Ricardo Meni","Meni","Ricardo","BRA0076","VET","Free Agent","BRA"]
[null,"Mauro Michilin","Michilin","Mauro","BRA0078","OPEN","SE Palmeiras","BRA"]
[null,"Paulo Michilin","Michilin","Paulo","BRA0079","VET","SE Palmeiras","BRA"]
[null,"João Molina","Molina","João","BRA0061","OPEN","Free Agent","BRA"]
[null,"Dilton Monteiro","Monteiro","Dilton","BRA0155","OPEN","Santa Cruz FC","BRA"]
[null,"Sergio Monteleone","Monteleone","Sergio","BRA0004","VET","CR Vasco da Gama","BRA"]
[null,"André Luiz Moraes","Moraes","André Luiz","BRA0149","OPEN","CR Vasco da Gama","BRA"]
[null,"Danilo Moricz","Moricz","Danilo","BRA0117","VET","São Paulo FC","BRA"]
[null,"Rodrigo Moro","Moro","Rodrigo","BRA0161","OPEN","SC Corinthians Paulista","BRA"]
[null,"Luiz Nannini","Nannini","Luiz","BRA0043","VET","Free Agent","BRA"]
[null,"Rodrigo Narduche","Narduche","Rodrigo","BRA0086","OPEN","SE Palmeiras","BRA"]
[null,"Luis Carlos Nascimento","Nascimento","Luis Carlos","BRA0116","VET","SC Corinthians Paulista","BRA"]
[null,"Demetrio Neto","Neto","Demetrio","BRA0080","OPEN","São Paulo FC","BRA"]
[null,"José Netto","Netto","José","BRA0039","OPEN","Free Agent","BRA"]
[null,"Leonardo Oliveira","Oliveira","Leonardo","BRA0093","OPEN","Londrina EC","BRA"]
[null,"Cristiano Paffrath Bertolino","Paffrath Bertolino","Cristiano","BRA0176","VET","Free Agent","BRA"]
[null,"Zenon Palitot Filho","Palitot Filho","Zenon","BRA0112","VET","Bangu AC","BRA"]
[null,"Agnaldo Panzarini","Panzarini","Agnaldo","BRA0073","OPEN","Free Agent","BRA"]
[null,"Guilherme Panzarini","Panzarini","Guilherme","BRA0074","OPEN","Free Agent","BRA"]
[null,"Júlio Paroski","Paroski","Júlio","BRA0013","OPEN","Free Agent","BRA"]
[null,"João Gilberto Parras Benitez","Parras Benitez","João Gilberto","BRA0159","VET","SC Corinthians Paulista","BRA"]
[null,"Christofer Pereira","Pereira","Christofer","BRA0102","OPEN","Friburguense - AFFM","BRA"]
[null,"Paulo Cesar Pereira","Pereira","Paulo Cesar","BRA0127","OPEN","Free Agent","BRA"]
[null,"Ricardo Pereira da Silva","Pereira da Silva","Ricardo","BRA0129","OPEN","Bangu AC","BRA"]
[null,"Paulo Perrotti","Perrotti","Paulo","BRA0009","OPEN","SE Palmeiras","BRA"]
[null,"Felipe Maciel Pinheiro","Pinheiro","Felipe Maciel","BRA0147","OPEN","Bangu AC","BRA"]
[null,"Renato Pinheiro Barthez","Pinheiro Barthez","Renato","BRA0026","OPEN","CR Vasco da Gama","BRA"]
[null,"Fabio Porto","Porto","Fabio","BRA0065","OPEN","Free Agent","BRA"]
[null,"Lucas Prando Ferreira","Prando Ferreira","Lucas","BRA0170","OPEN","Free Agent","BRA"]
[null,"Pedro Prando Ferreira","Prando Ferreira","Pedro","BRA0144","OPEN","Londrina EC","BRA"]
[null,"Igor Quintaes","Quintaes","Igor","BRA0005","OPEN","CR Vasco da Gama","BRA"]
[null,"José Antônio Ramalhete","Ramalhete","José Antônio","BRA0006","VET","CR Vasco da Gama","BRA"]
[null,"Marcelo Lages Ramalhete","Ramalhete","Marcelo Lages","BRA0007","VET","CR Vasco da Gama","BRA"]
[null,"Wesley William Ramos Barreto","Ramos Barreto","Wesley William","BRA0175","VET","Free Agent","BRA"]
[null,"Marcio Rangel","Rangel","Marcio","BRA0063","VET","Free Agent","BRA"]
[null,"Leandro Robles","Robles","Leandro","BRA0054","OPEN","Free Agent","BRA"]
[null,"Francisco Rojo","Rojo","Francisco","BRA0050","OPEN","Free Agent","BRA"]
[null,"Antonio Carlos Sammartino","Sammartino","Antonio Carlos","BRA0158","VET","SE Palmeiras","BRA"]
[null,"Fernando Santini Vedovati","Santini Vedovati","Fernando","BRA0166","OPEN","Londrina EC","BRA"]
[null,"Ruy Saviani","Saviani","Ruy","BRA0017","VET","Free Agent","BRA"]
[null,"Humberto Scavinsky de Alencar","Scavinsky de Alencar","Humberto","BRA0115","VET","SC Corinthians Paulista","BRA"]
[null,"Julio Simi","Simi","Julio","BRA0046","VET","Cisplatina FC","BRA"]
[null,"Lucas Sotana Pereira","Sotana Pereira","Lucas","BRA0167","OPEN","Free Agent","BRA"]
[null,"Giuseppe Spasiano","Spasiano","Giuseppe","BRA0123","VET","CR Vasco da Gama","BRA"]
[null,"Rony Suzuki","Suzuki","Rony","BRA0014","VET","Londrina EC","BRA"]
[null,"Fellipe Tereska","Tereska","Fellipe","BRA0090","OPEN","Londrina EC","BRA"]
[null,"Sergio Travassos Correia","Travassos Correia","Sergio","BRA0152","VET","Free Agent","BRA"]
[null,{"$f":"TRIM(CONCATENATE(D455,\" \",C455))","v":"Luis Venazzi"},"Venazzi","Luis","BRA0062","VET","Free Agent","BRA"]
[null,"Eliahou Vidal","Vidal","Eliahou","BRA0033","VET","Cisplatina FC","BRA"]
[null,"Vinicius Vieira","Vieira","Vinicius","BRA0071","OPEN","Free Agent","BRA"]
[null,"Nelson Zanella","Zanella","Nelson","BRA0047","VET","Cisplatina FC","BRA"]
[null,"Rogério Zanella","Zanella","Rogério","BRA0048","OPEN","Cisplatina FC","BRA"]
[null,"Marcus Zucatto","Zucatto","Marcus","BRA0088","OPEN","Free Agent","BRA"]
[null,"Dave Baxter","Baxter","Dave","CAN0000","VET","Hot Club d'Ecosse","CAN"]
[null,"Shane Hoopfer","Hoopfer","Shane","CAN0002","OPEN","Calgary SC","CAN"]
[null,"Josh Braun","Braun","Josh","CAN0005","OPEN","Calgary SC","CAN"]
[null,"Travis Hoopfer","Hoopfer","Travis","CAN0006","OPEN","Calgary SC","CAN"]
[null,"Nathan Haylett","Haylett","Nathan","CAN0008","OPEN","Calgary SC","CAN"]
[null,"Ben Herrel","Herrel","Ben","CAN0009","OPEN","Calgary SC","CAN"]
[null,"Gurmeet Khaira","Khaira","Gurmeet","CAN0010","VET","West Coast TSC","CAN"]
[null,"Parjesh Randhawa","Randhawa","Parjesh","CAN0011","OPEN","West Coast TSC","CAN"]
[null,"Shaan Bal","Bal","Shaan","CAN0012","OPEN","West Coast TSC","CAN"]
[null,"Richard Ho","Ho","Richard","CAN0013","OPEN","West Coast TSC","CAN"]
[null,"Allan Thornton","Thornton","Allan","CAN0014","VET","Toronto SL","CAN"]
[null,"Jeff Watts","Watts","Jeff","CAN0015","VET","Toronto SL","CAN"]
[null,"Peter Sexton","Sexton","Peter","CAN0016","VET","Hamilton SC","CAN"]
[null,"Stephan McNab","McNab","Stephan","CAN0017","VET","Hamilton SC","CAN"]
[null,"Brodyn Sexton","Sexton","Brodyn","CAN0018","OPEN","Hamilton SC","CAN"]
[null,"Liam Sexton","Sexton","Liam","CAN0019","OPEN","Hamilton SC","CAN"]
[null,"Shaun Burt","Burt","Shaun","CAN0020","VET","Hamilton SC","CAN"]
[null,"Iain Clarkson","Clarkson","Iain","CAN0021","OPEN","Hamilton SC","CAN"]
[null,"Kyle Rokoski","Rokoski","Kyle","CAN0022","OPEN","Hamilton SC","CAN"]
[null,"Andrew Lemak","Lemak","Andrew","CAN0023","OPEN","Hamilton SC","CAN"]
[null,"Chris Moore","Moore","Chris","CAN0024","OPEN","Hamilton SC","CAN"]
[null,"Gerald Moore","Moore","Gerald","CAN0025","VET","Hamilton SC","CAN"]
[null,"John Sexton","Sexton","John","CAN0026","VET","Hamilton SC","CAN"]
[null,"Behn Wurthman","Wurthman","Behn","CAN0027","VET","Hamilton SC","CAN"]
[null,"John Mckay","Mckay","John","CAN0028","VET","Hamilton SC","CAN"]
[null,"Paul Burt","Burt","Paul","CAN0029","VET","Hamilton SC","CAN"]
[null,"Shawn Lovegrove","Lovegrove","Shawn","CAN0030","VET","Hamilton SC","CAN"]
[null,"Chris Fallie","Fallie","Chris","CAN0031","OPEN","Hamilton SC","CAN"]
[null,"Sarjit Khaira","Khaira","Sarjit","CAN0042","VET","West Coast TSC","CAN"]
[null,"Gavin Khaira","Khaira","Gavin","CAN0043","OPEN","West Coast TSC","CAN"]
[null,"Mike Sgro","Sgro","Mike","CAN0044","OPEN","Toronto SC","CAN"]
[null,"Mike Chieffallo","Chieffallo","Mike","CAN0045","OPEN","Toronto SC","CAN"]
[null,"Mike Devey","Devey","Mike","CAN0046","OPEN","Toronto SC","CAN"]
[null,"Richard Ruffolo","Ruffolo","Richard","CAN0047","OPEN","Toronto SC","CAN"]
[null,"Chris Moreira","Moreira","Chris","CAN0048","OPEN","Toronto SC","CAN"]
[null,"Frédéric Perdaens","Perdaens","Frédéric","CAN0052","VET","SC Temploux","CAN"]
[null,"Gary Caven","Caven","Gary","CAN0056",null,"Free Agent","CAN"]
[null,"Warren Creighton","Creighton","Warren","CAN0057",null,"Free Agent","CAN"]
[null,"Ian Parkes","Parkes","Ian","CAN0058","VET","Free Agent","CAN"]
[null,"Domenic Ientile","Ientile","Domenic","CAN0059","VET","Subbuteo Club of York Region","CAN"]
[null,"Pat Cubellis","Cubellis","Pat","CAN0060","VET",null,"CAN"]
[null,"Hugh MacSween","MacSween","Hugh","CAN0061","VET","Sparta Spryfield TFC","CAN"]
[null,"Lachlan MacSween","MacSween","Lachlan","CAN0062","U12","Sparta Spryfield TFC","CAN"]
[null,"Paul Andreas","Andreas","Paul","CYP0001","VET","Langton Green Subbuteo Club","CYP"]
[null,"Andy Andronikou","Andronikou","Andy","CYP0002","OPEN","Nicosia Strikers","CYP"]
[null,"Andreas Constantinou","Constantinou","Andreas","CYP0003","OPEN","Famagusta TFC","CYP"]
[null,"Theodosis Hadjitheklis","Hadjitheklis","Theodosis","CYP0004","OPEN","Famagusta TFC","CYP"]
[null,"Neophytos Ioannides","Ioannides","Neophytos","CYP0005","OPEN","Famagusta TFC","CYP"]
[null,"Kostas Kalopsidiotis","Kalopsidiotis","Kostas","CYP0006","OPEN","Famagusta TFC","CYP"]
[null,"Marcos Kalopsidiotis","Kalopsidiotis","Marcos","CYP0007","OPEN","Famagusta TFC","CYP"]
[null,"Stefanos Kouratzis","Kouratzis","Stefanos","CYP0008","OPEN","Nicosia Strikers","CYP"]
[null,"Kyriacos Ktenas","Ktenas","Kyriacos","CYP0009","OPEN","Bruxelles Capitale TFC","CYP"]
[null,"Marios Kyriacou","Kyriacou","Marios","CYP0010","VET","Nicosia Strikers","CYP"]
[null,"Christos Nicolau","Nicolau","Christos","CYP0011","OPEN","Famagusta TFC","CYP"]
[null,"Rob O'Hare","O'Hare","Rob","CYP0012","VET","Yorkshire Phoenix","CYP"]
[null,"Dimitris Parperis","Parperis","Dimitris","CYP0013","OPEN","Nicosia TFC","CYP"]
[null,"Alexandros Sarris","Sarris","Alexandros","CYP0014","OPEN","Famagusta TFC","CYP"]
[null,"Daniel Sarris","Sarris","Daniel","CYP0015","OPEN","Famagusta TFC","CYP"]
[null,{"$f":"TRIM(CONCATENATE(D519,\" \",C519))","v":"Mikel Sarris"},"Sarris","Mikel","CYP0016","OPEN","Famagusta TFC","CYP"]
[null,"Nikolas Sarris","Sarris","Nikolas","CYP0017","OPEN","Famagusta TFC","CYP"]
[null,"Christos Socratous","Socratous","Christos","CYP0018","OPEN","Famagusta TFC","CYP"]
[null,"George Vassiliades","Vassiliades","George","CYP0019","VET","Nicosia Strikers","CYP"]
[null,"Giorgos Zangylos","Zangylos","Giorgos","CYP0020","VET","Famagusta TFC","CYP"]
[null,"Giannis Zinonos","Zinonos","Giannis","CYP0021","OPEN","Famagusta TFC","CYP"]
[null,"Pambos Zorbis","Zorbis","Pambos","CYP0022","OPEN","Famagusta TFC","CYP"]
[null,"Vangelis Zorbis","Zorbis","Vangelis","CYP0023","OPEN","Famagusta TFC","CYP"]
[null,"Christoforou Kleanthis","Kleanthis","Christoforou","CYP0025",null,"Famagusta TFC","CYP"]
[null,"Christakis Ioannou","Ioannou","Christakis","CYP0026","VET","Nicosia Strikers","CYP"]
[null,"Achilles Karayiannis","Karayiannis","Achilles","CYP0027",null,"Nicosia Strikers","CYP"]
[null,"Nick Gregoriou","Gregoriou","Nick","CYP0028",null,"Famagusta TFC","CYP"]
[null,"Antonis Bargilly","Bargilly","Antonis","CYP0029",null,"Nicosia Strikers","CYP"]
[null,"Yiannos Karayiannis","Karayiannis","Yiannos","CYP0030","VET","Nicosia Strikers","CYP"]
[null,"Christos Savva","Savva","Christos","CYP0031",null,"Famagusta TFC","CYP"]
[null,"Kleanthos Christoforou","Christoforou","Kleanthos","CYP0032",null,"Famagusta TFC","CYP"]
[null,"Charis Kaptsas","Kaptsas","Charis","CYP0033",null,"Famagusta TFC","CYP"]
[null,"Nicolas Shiamishis","Shiamishis","Nicolas","CYP0034","OPEN","Famagusta TFC","CYP"]
[null,"Giorgos Ty","Ty","Giorgos","CYP0035","OPEN","Famagusta TFC","CYP"]
[null,"Christofis Hadjikypris","Hadjikypris","Christofis","CYP0036","OPEN","Famagusta TFC","CYP"]
[null,"Vasileios Vavourakis","Vavourakis","Vasileios","CYP0037","OPEN","Dundee United TFC","CYP"]
[null,"Melios Hadjikypris","Hadjikypris","Melios","CYP0038","OPEN","Famagusta TFC","CYP"]
[null,"Nikolas Ioannou","Ioannou","Nikolas","CYP0039","VET","Famagusta TFC","CYP"]
[null,"Loukas Antoniou","Antoniou","Loukas","CYP0040","VET","Famagusta TFC","CYP"]
[null,"Giannis Koureas","Koureas","Giannis","CYP0041","OPEN","Famagusta TFC","CYP"]
[null,"Nikitas Georgiou","Georgiou","Nikitas","CYP0042","OPEN","Famagusta TFC","CYP"]
[null,"Andonis Lysandrou","Lysandrou","Andonis","CYP0043","VET","Famagusta TFC","CYP"]
[null,"Alkiviades Tsokatksides","Tsokatksides","Alkiviades","CYP0044","OPEN","Famagusta TFC","CYP"]
[null,"Marios Nikolau","Nikolau","Marios","CYP0045","OPEN","Famagusta TFC","CYP"]
[null,"Angelos Pappas","Pappas","Angelos","CYP0046","OPEN","Famagusta TFC","CYP"]
[null,"Andrew Michel","Michel","Andrew","CYP0047","VET","Spartans Larnaca TFC","CYP"]
[null,"Konstandinos Paraskevas","Paraskevas","Konstandinos","CYP0048","OPEN","Famagusta TFC","CYP"]
[null,"Marinos Mitellas","Mitellas","Marinos","CYP0049","OPEN","Famagusta TFC","CYP"]
[null,"Sophoklis Mougis","Mougis","Sophoklis","CYP0050","OPEN","Famagusta TFC","CYP"]
[null,"Maximos Sydiropoulos","Sydiropoulos","Maximos","CYP0051","OPEN","Famagusta TFC","CYP"]
[null,"Marios Themistokleous","Themistokleous","Marios","CYP0052","OPEN","Famagusta TFC","CYP"]
[null,"Kyriacos Stylianou","Stylianou","Kyriacos","CYP0053","OPEN","Famagusta TFC","CYP"]
[null,"Harris Katsaras","Katsaras","Harris","CYP0054","VET","Nicosia Strikers","CYP"]
[null,"Demetris Eleftheriou","Eleftheriou","Demetris","CYP0055","VET","Famagusta TFC","CYP"]
[null,"Stefanos Eleftheriou","Eleftheriou","Stefanos","CYP0056","OPEN","Famagusta TFC","CYP"]
[null,"Andreas Marneros","Marneros","Andreas","CYP0057","VET","Spartans Larnaca TFC","CYP"]
[null,"Panayiotis Panaretos","Panaretos","Panayiotis","CYP0058","OPEN","Famagusta TFC","CYP"]
[null,"Maximos Koumas","Koumas","Maximos","CYP0059","U20","Famagusta TFC","CYP"]
[null,"Rafael Eleftheriou","Eleftheriou","Rafael","CYP0060",null,"Famagusta TFC","CYP"]
[null,"David Lazzari","Lazzari","David","CZE0001","VET","Bulldogs Vicenza","CZE"]
[null,"Jakub Tichon","Tichon","Jakub","CZE0002","OPEN","Czech Subbuteo Team 2014","CZE"]
[null,"David Vacke","Vacke","David","CZE0003","OPEN","Czech Subbuteo Team 2014","CZE"]
[null,"Dominik Vanek","Vanek","Dominik","CZE0004","OPEN","Czech Subbuteo Team 2014","CZE"]
[null,"Marco Zucchi","Zucchi","Marco","CZE0005","VET","PINCO DEVILS TABLE SOCCER","CZE"]
[null,"Daniele Gamba","Gamba","Daniele","CZE0006","VET","Czech Subbuteo Team 2014","CZE"]
[null,"David Young","Young","David","CZE0007","VET","Czech Subbuteo Team 2014","CZE"]
[null,"Ondrej Vacke","Vacke","Ondrej","CZE0008","OPEN","Czech Subbuteo Team 2014","CZE"]
[null,"Jiri Uchytil","Uchytil","Jiri","CZE0009","OPEN","Czech Subbuteo Team 2014","CZE"]
[null,"Stanislav Opl","Opl","Stanislav","CZE0010","VET","Czech Subbuteo Team 2014","CZE"]
[null,"Paolo Di Stefano","Di Stefano","Paolo","CZE0011","OPEN","Czech Subbuteo Team 2014","CZE"]
[null,"Martin Novotny","Novotny","Martin","CZE0012","VET","Czech Subbuteo Team 2014","CZE"]
[null,"Tomas Zima","Zima","Tomas","CZE0013","U12","Czech Subbuteo Team 2014","CZE"]
[null,"Lukas Zima","Zima","Lukas","CZE0014","OPEN","Czech Subbuteo Team 2014","CZE"]
[null,"Vito Di Stefano","Di Stefano","Vito","CZE0015","U16","Czech Subbuteo Team 2014","CZE"]
[null,"David Vacke","Vacke","David","CZE0016","OPEN","Czech Subbuteo Team 2014","CZE"]
[null,"Thomas Petersen","Petersen","Thomas","DEN0001","OPEN","Lega Subbuteo Liga Odense","DEN"]
[null,"Rasmus Lund","Lund","Rasmus","DEN0002","OPEN","Rochefort TS","DEN"]
[null,"Christian Emil Christiansen","Emil Christiansen","Christian","DEN0003","OPEN","TSC Royal 78 Kaisermühlen","DEN"]
[null,"Peter Fursund","Fursund","Peter","DEN0004","OPEN","Lega Subbuteo Liga Odense","DEN"]
[null,{"$f":"TRIM(CONCATENATE(D583,\" \",C583))","v":"Jesper Staal Nielsen"},"Staal Nielsen","Jesper","DEN0005","OPEN","Lega Subbuteo Liga Odense","DEN"]
[null,"Kristian Staal Nielsen","Staal Nielsen","Kristian","DEN0006","OPEN","Lega Subbuteo Liga Odense","DEN"]
[null,"Anders Staal Nielsen","Staal Nielsen","Anders","DEN0007","OPEN","Lega Subbuteo Liga Odense","DEN"]
[null,"Rasmus Staal Nielsen","Staal Nielsen","Rasmus","DEN0008","OPEN","Lega Subbuteo Liga Odense","DEN"]
[null,"Jonas Bentzen","Bentzen","Jonas","DEN0009","OPEN","Lega Subbuteo Liga Odense","DEN"]
[null,"Anders Buhl Hansen","Buhl Hansen","Anders","DEN0010","OPEN","Lega Subbuteo Liga Odense","DEN"]
[null,"Tommy Gold Christiansen","Gold Christiansen","Tommy","DEN0011","OPEN","Lega Subbuteo Liga Odense","DEN"]
[null,"Tommas Lange Klausen","Lange Klausen","Tommas","DEN0012","VET","Lega Subbuteo Liga Odense","DEN"]
[null,"Kamilla Kristensen","Kristensen","Kamilla","DEN0013","OPEN","Lega Subbuteo Liga Odense","DEN"]
[null,"Lukas Enevoldsen","Enevoldsen","Lukas","DEN0014","OPEN","Lega Subbuteo Liga Odense","DEN"]
[null,"Nico Wilse","Wilse","Nico","DEN0015","OPEN","Lega Subbuteo Liga Odense","DEN"]
[null,"Lasse Honore","Honore","Lasse","DEN0016","OPEN","Lega Subbuteo Liga Odense","DEN"]
[null,"David Frederiksen","Frederiksen","David","DEN0017","OPEN","Lega Subbuteo Liga Odense","DEN"]
[null,"Frank Staal Nielsen","Staal Nielsen","Frank","DEN0018","VET","Lega Subbuteo Liga Odense","DEN"]
[null,"Christian Gørtz","Gørtz","Christian","DEN0019","OPEN","Lega Subbuteo Liga Odense","DEN"]
[null,"Michael Hedegård","Hedegård","Michael","DEN0035","VET","Lega Subbuteo Liga Odense","DEN"]
[null,"Katrine Jørgensen","Jørgensen","Katrine","DEN0036","OPEN","Lega Subbuteo Liga Odense","DEN"]
[null,"Thyge Enevoldsen","Enevoldsen","Thyge","DEN0037","VET","Lega Subbuteo Liga Odense","DEN"]
[null,"Jens Enevoldsen","Enevoldsen","Jens","DEN0038","OPEN","Lega Subbuteo Liga Odense","DEN"]
[null,"Simon Enevoldsen","Enevoldsen","Simon","DEN0039","OPEN","Lega Subbuteo Liga Odense","DEN"]
[null,"Andreas Petersen","Petersen","Andreas","DEN0040","OPEN","Lega Subbuteo Liga Odense","DEN"]
[null,"Frits Vendebæk","Vendebæk","Frits","DEN0041","VET","Lega Subbuteo Liga Odense","DEN"]
[null,"Magnus Emil Madsen","Madsen","Magnus Emil","DEN0042","OPEN","Lega Subbuteo Liga Odense","DEN"]
[null,"Magnus Honore","Honore","Magnus","DEN0043","OPEN","Lega Subbuteo Liga Odense","DEN"]
[null,"Victor Petersen","Petersen","Victor","DEN0044","OPEN","Lega Subbuteo Liga Odense","DEN"]
[null,"Alexander Petersen","Petersen","Alexander","DEN0045","OPEN","Lega Subbuteo Liga Odense","DEN"]
[null,"William Achton Boel","Achton Boel","William","DEN0046","OPEN","Lega Subbuteo Liga Odense","DEN"]
[null,"Miki Pedersen","Pedersen","Miki","DEN0047","OPEN","Lega Subbuteo Liga Odense","DEN"]
[null,"Oliver Clemmensen","Clemmensen","Oliver","DEN0048","OPEN","Lega Subbuteo Liga Odense","DEN"]
[null,"Sebastian Lind","Lind","Sebastian","DEN0049","OPEN","Lega Subbuteo Liga Odense","DEN"]
[null,"Patrick Lund","Lund","Patrick","DEN0050","OPEN","Lega Subbuteo Liga Odense","DEN"]
[null,"Stephan Nørregaard","Nørregaard","Stephan","DEN0051","OPEN","Lega Subbuteo Liga Odense","DEN"]
[null,"Jonas Franck","Franck","Jonas","DEN0052","OPEN","Lega Subbuteo Liga Odense","DEN"]
[null,"Thomas Hjorth Kristensen","Kristensen","Thomas Hjorth","DEN0053","OPEN","Lega Subbuteo Liga Odense","DEN"]
[null,"Nick Ranklit","Ranklit","Nick","DEN0054","OPEN","Lega Subbuteo Liga Odense","DEN"]
[null,"Patrick From","From","Patrick","DEN0055","OPEN","Lega Subbuteo Liga Odense","DEN"]
[null,"Rasmus Stagsted","Stagsted","Rasmus","DEN0056","OPEN","Lega Subbuteo Liga Odense","DEN"]
[null,"Brian Illum Hansen","Hansen","Brian Illum","DEN0058","OPEN","Lega Subbuteo Liga Odense","DEN"]
[null,"Maja Johansen","Johansen","Maja","DEN0059","OPEN","Lega Subbuteo Liga Odense","DEN"]
[null,"Kim Kristensen","Kristensen","Kim","DEN0060","OPEN","Lega Subbuteo Liga Odense","DEN"]
[null,"Rune Thorsen","Thorsen","Rune","DEN0061","OPEN","Lega Subbuteo Liga Odense","DEN"]
[null,"Frank Andreasen","Andreasen","Frank","DEN0062","OPEN","Lega Subbuteo Liga Odense","DEN"]
[null,"Daniel Kristensen","Kristensen","Daniel","DEN0063","OPEN","Lega Subbuteo Liga Odense","DEN"]
[null,"Ulrik Andersen","Andersen","Ulrik","DEN0064","OPEN","Lega Subbuteo Liga Odense","DEN"]
[null,"Dorthe Bremholm Sørensen","Sørensen","Dorthe Bremholm","DEN0065","OPEN","Lega Subbuteo Liga Odense","DEN"]
[null,"Anders Peter Spanggaard","Spanggaard","Anders Peter","DEN0066","OPEN","Lega Subbuteo Liga Odense","DEN"]
[null,"Egon Lund Mikkelsen","Mikkelsen","Egon Lund","DEN0067","VET","Lega Subbuteo Liga Odense","DEN"]
[null,"Louise Have Post","Post","Louise Have","DEN0068","OPEN","Lega Subbuteo Liga Odense","DEN"]
[null,"Ole Esmark","Esmark","Ole","DEN0069","OPEN","Lega Subbuteo Liga Odense","DEN"]
[null,"Camilla Bech Kaysen","Bech Kaysen","Camilla","DEN0070","OPEN","Lega Subbuteo Liga Odense","DEN"]
[null,"André Eeg Jensen","Eeg Jensen","André","DEN0071","OPEN","Lega Subbuteo Liga Odense","DEN"]
[null,"Jonathan Harregaard","Harregaard","Jonathan","DEN0072","OPEN","Lega Subbuteo Liga Odense","DEN"]
[null,"Hans Martens","Martens","Hans","DEN0073","OPEN","Lega Subbuteo Liga Odense","DEN"]
[null,"Jacob Thorbech","Thorbech","Jacob","DEN0074","OPEN","Lega Subbuteo Liga Odense","DEN"]
[null,"Kristoffer Falk-Hansen","Falk-Hansen","Kristoffer","DEN0081","U16","Lega Subbuteo Liga Odense","DEN"]
[null,"Kasper Lønfeldt","Lønfeldt","Kasper","DEN0085","U20","Lega Subbuteo Liga Odense","DEN"]
[null,"Martin Ravnborg","Ravnborg","Martin","DEN0089","OPEN","Lega Subbuteo Liga Odense","DEN"]
[null,"Minna Dabbas","Dabbas","Minna","DEN0090","U20","Lega Subbuteo Liga Odense","DEN"]
[null,"Ahmad Dabbas","Dabbas","Ahmad","DEN0091","OPEN","Lega Subbuteo Liga Odense","DEN"]
[null,"Mohammad Dabbas","Dabbas","Mohammad","DEN0092","U20","Lega Subbuteo Liga Odense","DEN"]
[null,"Benjamin Frederiksen","Frederiksen","Benjamin","DEN0093","U20","Lega Subbuteo Liga Odense","DEN"]
[null,"Daniel Raarup","Raarup","Daniel","DEN0094","U20","Lega Subbuteo Liga Odense","DEN"]
[null,"Tobias Høj Martens","Martens","Tobias Høj","DEN0095","U16","Lega Subbuteo Liga Odense","DEN"]
[null,"Laura Høj Martens","Martens","Laura Høj","DEN0096","U20","Lega Subbuteo Liga Odense","DEN"]
[null,{"$f":"TRIM(CONCATENATE(D647,\" \",C647))","v":"Rasmus Høj Martens"},"Martens","Rasmus Høj","DEN0097","U12","Lega Subbuteo Liga Odense","DEN"]
[null,"Mads Bryder","Bryder","Mads","DEN0098","VET","Lega Subbuteo Liga Odense","DEN"]
[null,"Uffe Peitersen","Peitersen","Uffe","DEN0099","OPEN","Lega Subbuteo Liga Odense","DEN"]
[null,"Julius Kluge","Kluge","Julius","DEN0100","U20","Lega Subbuteo Liga Odense","DEN"]
[null,"Nadja Milbo Hansen","Milbo Hansen","Nadja","DEN0101","U20","Lega Subbuteo Liga Odense","DEN"]
[null,"Mohammad Faour","Faour","Mohammad","DEN0102","U20","Lega Subbuteo Liga Odense","DEN"]
[null,"Batool Dabbas","Dabbas","Batool","DEN0103","OPEN","Lega Subbuteo Liga Odense","DEN"]
[null,"Bertram Møller","Møller","Bertram","DEN0104","U16","Lega Subbuteo Liga Odense","DEN"]
[null,"Jonas Bøge","Bøge","Jonas","DEN0105","OPEN","Lega Subbuteo Liga Odense","DEN"]
[null,"Mohammad Idriss","Idriss","Mohammad","DEN0106","U20","Lega Subbuteo Liga Odense","DEN"]
[null,"Khalil Faour","Faour","Khalil","DEN0107","U20","Lega Subbuteo Liga Odense","DEN"]
[null,"Mihai Valentin","Valentin","Mihai","DEN0108","U20","Lega Subbuteo Liga Odense","DEN"]
[null,"Tobias Knudsen","Knudsen","Tobias","DEN0109","OPEN","Lega Subbuteo Liga Odense","DEN"]
[null,"Safa Dabbas","Dabbas","Safa","DEN0110","OPEN","Lega Subbuteo Liga Odense","DEN"]
[null,"Magnus Mørch","Mørch","Magnus","DEN0111","U20","Lega Subbuteo Liga Odense","DEN"]
[null,"Mike Parnaby","Parnaby","Mike","ENG0001","VET","Yorkshire Phoenix and Dewsbury Moor TFC","ENG"]
[null,"Kevin Adderley","Adderley","Kevin","ENG0003","OPEN","Yorkshire Phoenix and Dewsbury Moor TFC","ENG"]
[null,"Andrew Boyer","Boyer","Andrew","ENG0006","VET","Yorkshire Phoenix and Dewsbury Moor TFC","ENG"]
[null,"Martin Hodds","Hodds","Martin","ENG0009","VET","Yorkshire Phoenix and Dewsbury Moor TFC","ENG"]
[null,"Ben Staples","Staples","Ben","ENG0014","OPEN","Yorkshire Phoenix and Dewsbury Moor TFC","ENG"]
[null,"Mark Green","Green","Mark","ENG0018","VET","Milton Keynes","ENG"]
[null,"Matt Lampitt","Lampitt","Matt","ENG0022","OPEN","Elstow Lions TFC","ENG"]
[null,"Jeremy Bradley","Bradley","Jeremy","ENG0025","VET","TSPA White Star","ENG"]
[null,"Kevin Dyson","Dyson","Kevin","ENG0033","VET","TSPA White Star","ENG"]
[null,"Christian Short","Short","Christian","ENG0034","OPEN","FTC Issy-les-Moulineaux","ENG"]
[null,"Adam Douglas","Douglas","Adam","ENG0040","OPEN","Langton Green Subbuteo Club","ENG"]
[null,"Paul Lawrenson","Lawrenson","Paul","ENG0041","OPEN","Yorkshire Phoenix and Dewsbury Moor TFC","ENG"]
[null,"Elliott Bellefontaine","Bellefontaine","Elliott","ENG0049","OPEN","Messina Table Soccer","ENG"]
[null,"Kaspar Bennett","Bennett","Kaspar","ENG0051","OPEN","Atlas FTC","ENG"]
[null,"Chris Thomas","Thomas","Chris","ENG0054","OPEN","Elstow Lions TFC","ENG"]
[null,"Paul Sutton","Sutton","Paul","ENG0056","OPEN","Langton Green Subbuteo Club","ENG"]
[null,"Justin Finch","Finch","Justin","ENG0057","VET","SC Flanders","ENG"]
[null,"Steve George","George","Steve","ENG0061","VET","Langton Green Subbuteo Club","ENG"]
[null,"Paul Caulfield","Caulfield","Paul","ENG0067","VET","Yorkshire Phoenix and Dewsbury Moor TFC","ENG"]
[null,"David Russell","Russell","David","ENG0073","OPEN","Yorkshire Phoenix and Dewsbury Moor TFC","ENG"]
[null,"Craig Heward","Heward","Craig","ENG0074","VET","Yorkshire Phoenix and Dewsbury Moor TFC","ENG"]
[null,"Tony McCann","McCann","Tony","ENG0078","VET","Yorkshire Phoenix and Dewsbury Moor TFC","ENG"]
[null,"Terry Arnold","Arnold","Terry","ENG0082","VET","Langton Green Subbuteo Club","ENG"]
[null,"Kye Arnold","Arnold","Kye","ENG0083","OPEN","Langton Green Subbuteo Club","ENG"]
[null,"Brian Kinrade","Kinrade","Brian","ENG0086","VET","Moralzarzal Subbuteo CAD","ENG"]
[null,"Brian Daley","Daley","Brian","ENG0089","VET","Yorkshire Phoenix and Dewsbury Moor TFC","ENG"]
[null,"Colin Fletcher","Fletcher","Colin","ENG0091","VET","TSPA White Star","ENG"]
[null,"Darren Clark","Clark","Darren","ENG0092","VET","CAP Ciudad de Murcia FM","ENG"]
[null,"Samuel Curtis","Curtis","Samuel","ENG0094","OPEN","Yorkshire Phoenix and Dewsbury Moor TFC","ENG"]
[null,"Simon Bryan","Bryan","Simon","ENG0096","VET","Yorkshire Phoenix and Dewsbury Moor TFC","ENG"]
[null,"Jeremy Boothman","Boothman","Jeremy","ENG0097","VET","TSPA White Star","ENG"]
[null,"Rob Paterson","Paterson","Rob","ENG0098","VET","TSPA White Star","ENG"]
[null,"Matthew Thomas","Thomas","Matthew","ENG0099","OPEN","Elstow Lions TFC","ENG"]
[null,"Colin Tarry","Tarry","Colin","ENG0100","VET","Yorkshire Phoenix and Dewsbury Moor TFC","ENG"]
[null,"Brett Price","Price","Brett","ENG0101","VET","Langton Green Subbuteo Club","ENG"]
[null,"John Turpin","Turpin","John","ENG0114","VET","TSPA White Star","ENG"]
[null,"Victor Jones","Jones","Victor","ENG0115","OPEN","Langton Green Subbuteo Club","ENG"]
[null,"Phil Holmes","Holmes","Phil","ENG0123","VET","TSPA White Star","ENG"]
[null,"Dimitris Stemitsiotis","Stemitsiotis","Dimitris","ENG0128","OPEN","Harrow Hawks TSC","ENG"]
[null,"Bob Varney","Varney","Bob","ENG0131","VET","CAP Ciudad de Murcia FM","ENG"]
[null,"Francesca Bellefontaine","Bellefontaine","Francesca","ENG0134","U20","Elstow Lions TFC","ENG"]
[null,"Jonathan Lopez-Real","Lopez-Real","Jonathan","ENG0138","VET","Free Agent","ENG"]
[null,"Tony Pickance","Pickance","Tony","ENG0154","VET","South Staff","ENG"]
[null,"Panos Stemitsiotis","Stemitsiotis","Panos","ENG0155","VET","Langton Green Subbuteo Club","ENG"]
[null,"Stuart Walsh","Walsh","Stuart","ENG0165","OPEN","Yorkshire Phoenix and Dewsbury Moor TFC","ENG"]
[null,"Brandon Lavender","Lavender","Brandon","ENG0171","OPEN","GCT DLF Gorizia","ENG"]
[null,"Rudi Peterschinigg","Peterschinigg","Rudi","ENG0176","VET","Langton Green Subbuteo Club","ENG"]
[null,"Russ Harker","Harker","Russ","ENG0188","OPEN","Yorkshire Phoenix and Dewsbury Moor TFC","ENG"]
[null,"Lee Fenton","Fenton","Lee","ENG0202","VET","Langton Green Subbuteo Club","ENG"]
[null,{"$f":"TRIM(CONCATENATE(D711,\" \",C711))","v":"Christopher Bowen"},"Bowen","Christopher","ENG0213","OPEN","Kent Invicta TFC","ENG"]
[null,"Kevin Cordell","Cordell","Kevin","ENG0231","OPEN","Langton Green Subbuteo Club","ENG"]
[null,"Simon McMurray","McMurray","Simon","ENG0232","OPEN","Wolverhampton Table Football Club","ENG"]
[null,"Aaron Skinner","Skinner","Aaron","ENG0260","VET","Langton Green Subbuteo Club","ENG"]
[null,"Jeff Parsons","Parsons","Jeff","ENG0264","VET","Free Agent","ENG"]
[null,"Martin Blanchard","Blanchard","Martin","ENG0283","VET","Free Agent","ENG"]
[null,"Brian Butterworth","Butterworth","Brian","ENG0287","OPEN","SC Flanders","ENG"]
[null,"Dave Collier","Collier","Dave","ENG0304","VET","Langton Green Subbuteo Club","ENG"]
[null,"Louis Singh","Singh","Louis","ENG0312","OPEN","Kent Invicta TFC","ENG"]
[null,"Malcolm Jamieson","Jamieson","Malcolm","ENG0323","VET","Langton Green Subbuteo Club","ENG"]
[null,"Jason Christopher","Christopher","Jason","ENG0333","VET","Wolverhampton Table Football Club","ENG"]
[null,"Robert Ramsay","Ramsay","Robert","ENG0335","OPEN","Wolverhampton Table Football Club","ENG"]
[null,"Marco Ghigliotti","Ghigliotti","Marco","ENG0339","VET","Langton Green Subbuteo Club","ENG"]
[null,"Neil Doherty","Doherty","Neil","ENG0342","VET","Langton Green Subbuteo Club","ENG"]
[null,"Mick Hammonds","Hammonds","Mick","ENG0346","VET","Wolverhampton Table Football Club","ENG"]
[null,"Nick Pearson","Pearson","Nick","ENG0347","VET","Langton Green Subbuteo Club","ENG"]
[null,"Robert Fairbrother","Fairbrother","Robert","ENG0351","VET","Bristol SC","ENG"]
[null,"Justin Scott","Scott","Justin","ENG0356","VET","Wolverhampton Table Football Club","ENG"]
[null,"Richard Badger","Badger","Richard","ENG0357","VET","Wolverhampton Table Football Club","ENG"]
[null,"Graham Harwood","Harwood","Graham","ENG0371","VET","Wolverhampton Table Football Club","ENG"]
[null,"Alan Lee","Lee","Alan","ENG0373","VET","Langton Green Subbuteo Club","ENG"]
[null,"David Hunter","Hunter","David","ENG0397","OPEN","Wolverhampton Table Football Club","ENG"]
[null,"Richard Roper","Roper","Richard","ENG0406","VET","Wolverhampton Table Football Club","ENG"]
[null,"Josef Harrington","Harrington","Josef","ENG0407","OPEN","Langton Green Subbuteo Club","ENG"]
[null,"Peter Holmes","Holmes","Peter","ENG0416","VET","Langton Green Subbuteo Club","ENG"]
[null,"Stewart Grant","Grant","Stewart","ENG0420","OPEN","RAS (Rochford & Southend) Casual Subbuteo Club","ENG"]
[null,"Andrew Forster-Fake","Forster-Fake","Andrew","ENG0428","VET","Chesterfield TFC","ENG"]
[null,"Gianluca Zucchelli","Zucchelli","Gianluca","ENG0431","VET","London Subbuteo Club","ENG"]
[null,"Geoffrey Brown","Brown","Geoffrey","ENG0436","VET","Free Agent","ENG"]
[null,"Mike Williams","Williams","Mike","ENG0444","OPEN","Langton Green Subbuteo Club","ENG"]
[null,"Finley Skinner","Skinner","Finley","ENG0453","U20","Langton Green Subbuteo Club","ENG"]
[null,"Stephen Wonnacott","Wonnacott","Stephen","ENG0456","VET","Langton Green Subbuteo Club","ENG"]
[null,"Paul Matthews","Matthews","Paul","ENG0461","OPEN","Haverhill Rovers TFC","ENG"]
[null,"Gary Gladwell","Gladwell","Gary","ENG0462","VET","CHASERS (Chadwell Heath & South Essex, Romford Subbuteo) Club","ENG"]
[null,"Malcolm Rodenby","Rodenby","Malcolm","ENG0464","VET","Free Agent","ENG"]
[null,"Simon Goodman","Goodman","Simon","ENG0465","VET","Langton Green Subbuteo Club","ENG"]
[null,"Chris Burford","Burford","Chris","ENG0466","VET","Langton Green Subbuteo Club","ENG"]
[null,"Nigel Morgan","Morgan","Nigel","ENG0470","VET","Wolverhampton Table Football Club","ENG"]
[null,"Gareth Slinger","Slinger","Gareth","ENG0472","OPEN","RAS (Rochford & Southend) Casual Subbuteo Club","ENG"]
[null,"Mark Francis","Francis","Mark","ENG0473","VET","CHASERS (Chadwell Heath & South Essex, Romford Subbuteo) Club","ENG"]
[null,"Stuart Briffett","Briffett","Stuart","ENG0474","VET","Langton Green Subbuteo Club","ENG"]
[null,"Paris Ioannou","Ioannou","Paris","ENG0475","OPEN","Free Agent","ENG"]
[null,"Gary Mather","Mather","Gary","ENG0476","VET","Kirkstall Crusaders Subbuteo Club","ENG"]
[null,"Keith Carman","Carman","Keith","ENG0479","VET","The Morecambe Bay Subbuteo Club","ENG"]
[null,"Mark Alexander","Alexander","Mark","ENG0480","VET","Free Agent","ENG"]
[null,"Scott Hunt","Hunt","Scott","ENG0481","VET","Leicester Foxes Subbuteo Club","ENG"]
[null,"Stephen Moreton","Moreton","Stephen","ENG0484","VET","CHASERS (Chadwell Heath & South Essex, Romford Subbuteo) Club","ENG"]
[null,"Ian Welby","Welby","Ian","ENG0485","VET","Stanway Rovers Flickers","ENG"]
[null,"Gage Badger","Badger","Gage","ENG0486","U20","Wolverhampton Table Football Club","ENG"]
[null,"Thomas Heslop","Heslop","Thomas","ENG0487","VET","North Shields STF","ENG"]
[null,"Alexander Scott","Scott","Alexander","ENG0488","U20","Wolverhampton Table Football Club","ENG"]
[null,"Sean Ellis","Ellis","Sean","ENG0489","VET","Free Agent","ENG"]
[null,"Roger Duckworth","Duckworth","Roger","ENG0490","VET","Solent Table Soccer & Subbuteo Club","ENG"]
[null,"Alan Crampton","Crampton","Alan","ENG0491","VET","Free Agent","ENG"]
[null,"Andrew Mannix","Mannix","Andrew","ENG0492","VET","Free Agent","ENG"]
[null,"Rick Danes","Danes","Rick","ENG0493","VET","Free Agent","ENG"]
[null,"Robert Jones","Jones","Robert","ENG0495","OPEN","Free Agent","ENG"]
[null,"Connor Gregory","Gregory","Connor","ENG0496","U16","Langton Green Subbuteo Club","ENG"]
[null,"Simon Bodily","Bodily","Simon","ENG0498","OPEN","Wolverhampton Table Football Club","ENG"]
[null,"Mark Hammersley","Hammersley","Mark","ENG0499","VET","Surrey Saracens Subbuteo","ENG"]
[null,"Brian Hall","Hall","Brian","ENG0500","VET","London Road Subbuteo TSC","ENG"]
[null,"Mark Weaver","Weaver","Mark","ENG0501","VET","Yorkshire Phoenix and Dewsbury Moor TFC","ENG"]
[null,"Marco Barqueiro","Barqueiro","Marco","ENG0502","OPEN","Langton Green Subbuteo Club","ENG"]
[null,"Dave Simmill","Simmill","Dave","ENG0504","VET","Free Agent","ENG"]
[null,{"$f":"TRIM(CONCATENATE(D775,\" \",C775))","v":"Samantha Levy"},"Levy","Samantha","ENG0505","OPEN","CHASERS (Chadwell Heath & South Essex, Romford Subbuteo) Club","ENG"]
[null,"Jamie Warren","Warren","Jamie","ENG0507","U16","Langton Green Subbuteo Club","ENG"]
[null,"Ian Sharp","Sharp","Ian","ENG0508","VET","Yorkshire Phoenix and Dewsbury Moor TFC","ENG"]
[null,"David McCartney","McCartney","David","ENG0509","OPEN","CHASERS (Chadwell Heath & South Essex, Romford Subbuteo) Club","ENG"]
[null,"Adam Clark","Clark","Adam","ENG0510","OPEN","Free Agent","ENG"]
[null,"Nick Owen","Owen","Nick","ENG0511","VET","Free Agent","ENG"]
[null,"Colin Mitchell","Mitchell","Colin","ENG0512","VET","Free Agent","ENG"]
[null,"Mark West","West","Mark","ENG0514","VET","CHASERS (Chadwell Heath & South Essex, Romford Subbuteo) Club","ENG"]
[null,"Alex Fenton","Fenton","Alex","ENG0515","U20","Langton Green Subbuteo Club","ENG"]
[null,"Steve Kreeger","Kreeger","Steve","ENG0516","OPEN","Free Agent","ENG"]
[null,"Benjamin Palmer","Palmer","Benjamin","ENG0517","U12","Free Agent","ENG"]
[null,"Daz Clarke","Clarke","Daz","ENG0518","VET","The Wessex Subbuteo Club","ENG"]
[null,"Dan Nicholls","Nicholls","Dan","ENG0521","OPEN","Langton Green Subbuteo Club","ENG"]
[null,"Thomas Lacey","Lacey","Thomas","ENG0522","OPEN","Langton Green Subbuteo Club","ENG"]
[null,"Hadley Chapman","Chapman","Hadley","ENG0524","U12","Langton Green Subbuteo Club","ENG"]
[null,"Jacob Hodds","Hodds","Jacob","ENG0525","U12","Yorkshire Phoenix and Dewsbury Moor TFC","ENG"]
[null,"Martin Holmes","Holmes","Martin","ENG0526","VET","Kettering Flicking Marvellous","ENG"]
[null,"David Everitt","Everitt","David","ENG0527","VET","Kettering Flicking Marvellous","ENG"]
[null,"Craig Purnell","Purnell","Craig","ENG0528","OPEN","Free Agent","ENG"]
[null,"David McCallum","McCallum","David","ENG0529","VET","Kettering Flicking Marvellous","ENG"]
[null,"Martin Colwell","Colwell","Martin","ENG0530","VET","Langton Green Subbuteo Club","ENG"]
[null,"James McCormick","McCormick","James","ENG0532","OPEN","Kent Invicta TFC","ENG"]
[null,"Daniel McCormick","McCormick","Daniel","ENG0533","OPEN","Kent Invicta TFC","ENG"]
[null,"Martin Hill","Hill","Martin","ENG0534","VET","Kettering Flicking Marvellous","ENG"]
[null,"Paul Izard","Izard","Paul","ENG0535","VET","Langton Green Subbuteo Club","ENG"]
[null,"Harry Parsons","Parsons","Harry","ENG0536","U16","Kent Invicta TFC","ENG"]
[null,"Ollie Parsons","Parsons","Ollie","ENG0537","U16","Kent Invicta TFC","ENG"]
[null,"Alexander Ashcroft","Ashcroft","Alexander","ENG0538","OPEN","Leicester Foxes Subbuteo Club","ENG"]
[null,"Ian Aggett","Aggett","Ian","ENG0539","VET","Yorkshire Phoenix and Dewsbury Moor TFC","ENG"]
[null,"David Parsons","Parsons","David","ENG0540","VET","Woburn Casuals","ENG"]
[null,"John Cooper","Cooper","John","ENG0541","VET","TSPA White Star","ENG"]
[null,"Vicky Lewis","Lewis","Vicky","ENG0542","VET","Langton Green Subbuteo Club","ENG"]
[null,"Nigel Pestelle","Pestelle","Nigel","ENG0543","VET","Worthing Fivestar","ENG"]
[null,"Nigel Edwards","Edwards","Nigel","ENG0544","VET","Leicester Foxes Subbuteo Club","ENG"]
[null,"Trevor Allen","Allen","Trevor","ENG0545","VET","Chesterfield TFC","ENG"]
[null,"Andrew Jon Heath","Heath","Andrew Jon","ENG0546","OPEN","Doncaster Subbuteo Club","ENG"]
[null,"Yazid Bin Mohamoad","Bin Mohamoad","Yazid","ENG0547","VET","Free Agent","ENG"]
[null,"Dennis Perry","Perry","Dennis","ENG0548","OPEN","Bristol SC","ENG"]
[null,"Riley Duckworth","Duckworth","Riley","ENG0549","U20","Free Agent","ENG"]
[null,"Jason Kettley","Kettley","Jason","ENG0550","OPEN","CHASERS (Chadwell Heath & South Essex, Romford Subbuteo) Club","ENG"]
[null,"Jerry Whelband","Whelband","Jerry","ENG0552","VET","CHASERS (Chadwell Heath & South Essex, Romford Subbuteo) Club","ENG"]
[null,"Gary Wiley","Wiley","Gary","ENG0553","VET","Free Agent","ENG"]
[null,"Bailey Challinor","Challinor","Bailey","ENG0554","OPEN","Solent Table Soccer & Subbuteo Club","ENG"]
[null,"Billy Attwood","Attwood","Billy","ENG0555","OPEN","CHASERS (Chadwell Heath & South Essex, Romford Subbuteo) Club","ENG"]
[null,"Taylor Randles","Randles","Taylor","ENG0556","OPEN","Bristol SC","ENG"]
[null,"Valter Baroncini","Baroncini","Valter","ENG0557","VET","London Subbuteo Club","ENG"]
[null,"Martin Ellaway","Ellaway","Martin","ENG0558","OPEN","Free Agent","ENG"]
[null,"Liam Smith","Smith","Liam","ENG0559","OPEN","Free Agent","ENG"]
[null,"Andrew Gregory","Gregory","Andrew","ENG0560","VET","Free Agent","ENG"]
[null,"John Ellis","Ellis","John","ENG0561","VET","London Subbuteo Club","ENG"]
[null,"Drew Kiely","Kiely","Drew","ENG0562","VET","London Subbuteo Club","ENG"]
[null,"Steve Race","Race","Steve","ENG0563","VET","Free Agent","ENG"]
[null,"James Taylor-Nye","Taylor-Nye","James","ENG0564","VET","Free Agent","ENG"]
[null,"Ian Smalley","Smalley","Ian","ENG0565","VET","Yorkshire Phoenix and Dewsbury Moor TFC","ENG"]
[null,"Owen Boon","Boon","Owen","ENG0566","U16","Free Agent","ENG"]
[null,"Zachary Ramsay","Ramsay","Zachary","ENG0567","U12","Wolverhampton Table Football Club","ENG"]
[null,"Sean Wenlock","Wenlock","Sean","ENG0568","VET","Leicester Foxes Subbuteo Club","ENG"]
[null,"Tony Kiely","Kiely","Tony","ENG0569","VET","London Subbuteo Club","ENG"]
[null,"Darren Howat","Howat","Darren","ENG0570","VET","Free Agent","ENG"]
[null,"David Cope","Cope","David","ENG0571","VET","Worthing Fivestar","ENG"]
[null,"Paolo Matteo Agostinelli","Agostinelli","Paolo Matteo","ENG0572","VET","London Subbuteo Club","ENG"]
[null,"Simon Francis","Francis","Simon","ENG0573","OPEN","Free Agent","ENG"]
[null,"Robin Martin","Martin","Robin","ENG0574","VET","Free Agent","ENG"]
[null,"Tim James","James","Tim","ENG0575","VET","Free Agent","ENG"]
[null,{"$f":"TRIM(CONCATENATE(D839,\" \",C839))","v":"Amy Horncastle"},"Horncastle","Amy","ENG0576","U16","RAS (Rochford & Southend) Casual Subbuteo Club","ENG"]
[null,"Robert Piggott","Piggott","Robert","ENG0577","VET","Free Agent","ENG"]
[null,"Stu Chamberlain","Chamberlain","Stu","ENG0578","VET","Free Agent","ENG"]
[null,"Robert Fitch","Fitch","Robert","ENG0579","VET","Langton Green Subbuteo Club","ENG"]
[null,"Max Rahman","Rahman","Max","ENG0580","U12","Langton Green Subbuteo Club","ENG"]
[null,"Richard Myers","Myers","Richard","ENG0581","VET","That Retro Place Subbuteo Club","ENG"]
[null,"Troy Cowdrey","Cowdrey","Troy","ENG0582","VET","London Subbuteo Club","ENG"]
[null,"Shane Young","Young","Shane","ENG0583","OPEN","Free Agent","ENG"]
[null,"William Lacey","Lacey","William","ENG0584","VET","Free Agent","ENG"]
[null,"Robert Johnson","Johnson","Robert","ENG0585","VET","Free Agent","ENG"]
[null,"Paul Strongitharm","Strongitharm","Paul","ENG0586","VET","Free Agent","ENG"]
[null,"John Hardy Kom","Kom","John Hardy","ENG0587","VET","Free Agent","ENG"]
[null,"William Mahoney","Mahoney","William","ENG0588","VET","Free Agent","ENG"]
[null,"Andrew Pountney","Pountney","Andrew","ENG0589","VET","Wolverhampton Table Football Club","ENG"]
[null,"Anthony Henderson","Henderson","Anthony","ENG0590","OPEN","Free Agent","ENG"]
[null,"Reggie Cramer","Cramer","Reggie","ENG0591","U12","Free Agent","ENG"]
[null,"Michele Claydon","Claydon","Michele","ENG0592","VET","CHASERS (Chadwell Heath & South Essex, Romford Subbuteo) Club","ENG"]
[null,"Martin Weston","Weston","Martin","ENG0593","VET","Free Agent","ENG"]
[null,"Fraser Chapman","Chapman","Fraser","ENG0594","U16","Langton Green Subbuteo Club","ENG"]
[null,"Adrian Hawcroft","Hawcroft","Adrian","ENG0595","VET","Yorkshire Phoenix and Dewsbury Moor TFC","ENG"]
[null,"Grahame Farmer","Farmer","Grahame","ENG0596","OPEN","Free Agent","ENG"]
[null,"Al Gilmour","Gilmour","Al","ENG0597","VET","Free Agent","ENG"]
[null,"Tom Claxton","Claxton","Tom","ENG0598","VET","That Retro Place Subbuteo Club","ENG"]
[null,"Simon Hawley","Hawley","Simon","ENG0599","VET","Free Agent","ENG"]
[null,"Daniel Vensyk","Vensyk","Daniel","ENG0600","U20","Free Agent","ENG"]
[null,"Paul Drake","Drake","Paul","ENG0601","VET","Free Agent","ENG"]
[null,"Matthew Blackwell","Blackwell","Matthew","ENG0602","OPEN","Free Agent","ENG"]
[null,"Patrick Meredith","Meredith","Patrick","ENG0604","VET","Free Agent","ENG"]
[null,"Joe Nixon","Nixon","Joe","ENG0605","OPEN","Yorkshire Phoenix and Dewsbury Moor TFC","ENG"]
[null,"Wyn Edwards","Edwards","Wyn","ENG0606","VET","Free Agent","ENG"]
[null,"Michael Mayes","Mayes","Michael","ENG0607","OPEN","Langton Green Subbuteo Club","ENG"]
[null,"Lyndon Davies","Davies","Lyndon","ENG0608","VET","Langton Green Subbuteo Club","ENG"]
[null,"Jan Blazak","Blazak","Jan","ENG0609","VET","Pedmore S&TFC","ENG"]
[null,"Damian Mayes","Mayes","Damian","ENG0610","OPEN","Langton Green Subbuteo Club","ENG"]
[null,"Calum Potter","Potter","Calum","ENG0611","OPEN","Free Agent","ENG"]
[null,"Adam Wells","Wells","Adam","ENG0612","VET","Free Agent","ENG"]
[null,"Alan Twiddy","Twiddy","Alan","ENG0613","VET","Bristol SC","ENG"]
[null,"Dave Fletcher","Fletcher","Dave","ENG0614","VET","Bristol SC","ENG"]
[null,"Tom Fitzpatrick","Fitzpatrick","Tom","ENG0615","VET","Free Agent","ENG"]
[null,"Dave Everett","Everett","Dave","ENG0616","VET","Free Agent","ENG"]
[null,"Ben Harrison","Harrison","Ben","ENG0617","U12","Free Agent","ENG"]
[null,"Les Emery","Emery","Les","ENG0618","VET","Free Agent","ENG"]
[null,"Joe Parody","Parody","Joe","ENG0620","VET","Langton Green Subbuteo Club","ENG"]
[null,"Ben Reid","Reid","Ben","ENG0621","OPEN","Free Agent","ENG"]
[null,"Alex Salter","Salter","Alex","ENG0622","OPEN","Langton Green Subbuteo Club","ENG"]
[null,"Adam Jackson","Jackson","Adam","ENG1005","OPEN","CHASERS (Chadwell Heath & South Essex, Romford Subbuteo) Club","ENG"]
[null,"Cayne Matthews","Matthews","Cayne","ENG1009","VET","Yorkshire Phoenix and Dewsbury Moor TFC","ENG"]
[null,"Ruby Matthews","Matthews","Ruby","ENG1010","U16","Avenir Subbuteo Hennuyer","ENG"]
[null,"Luca Lanzani","Lanzani","Luca","ENG1011","VET","The Morecambe Bay Subbuteo Club","ENG"]
[null,"Tim Hill","Hill","Tim","ENG1013","VET","Solent Table Soccer & Subbuteo Club","ENG"]
[null,"Paul Taylor","Taylor","Paul","ENG1014","VET","Free Agent","ENG"]
[null,"Tony Banks","Banks","Tony","ENG1027","VET","London Subbuteo Club","ENG"]
[null,"Andrew Meggitt","Meggitt","Andrew","ENG1029","VET","Free Agent","ENG"]
[null,"Chris Moore","Moore","Chris","ENG0623","VET","Free Agent","ENG"]
[null,"Arturo Martínez","Martínez","Arturo","ESP0001","VET","ACS Perugia","ESP"]
[null,"José Luis Márquez","Márquez","José Luis","ESP0002","VET","Barcelona FT","ESP"]
[null,"Alfred Laporta","Laporta","Alfred","ESP0004","VET","Free Agent","ESP"]
[null,"Vicenç Prats","Prats","Vicenç","ESP0006","VET","Tiburones FM","ESP"]
[null,"Raúl Benita","Benita","Raúl","ESP0011","VET","AFT Turia 1981","ESP"]
[null,"David Gallart","Gallart","David","ESP0013","VET","Subbuteo Dragons Azuqueca","ESP"]
[null,"Fernando Gómez","Gómez","Fernando","ESP0014","VET","AFT Turia 1981","ESP"]
[null,"Juan Carlos Granados","Granados","Juan Carlos","ESP0015","VET","CAP Ciudad de Murcia FM","ESP"]
[null,"Miguel Ángel Heredia","Heredia","Miguel Ángel","ESP0016","VET","CAP Ciudad de Murcia FM","ESP"]
[null,"José León Moreno","León Moreno","José","ESP0017","VET","AFT Turia 1981","ESP"]
[null,{"$f":"TRIM(CONCATENATE(D903,\" \",C903))","v":"Francisco Cayuela"},"Cayuela","Francisco","ESP0018","OPEN","CAP Ciudad de Murcia FM","ESP"]
[null,"Alberto Mateos","Mateos","Alberto","ESP0019","OPEN","SC Fiamme Azzurre","ESP"]
[null,"Luis Mateos","Mateos","Luis","ESP0022","OPEN","Mallorca Águilas FM","ESP"]
[null,"Álex Araujo","Araujo","Álex","ESP0023","OPEN","AS Iluro FT","ESP"]
[null,"Carlos Flores","Flores","Carlos","ESP0024","OPEN","F.Lli Bari Reggio Emilia","ESP"]
[null,"José Casas","Casas","José","ESP0025","VET","AFT Turia 1981","ESP"]
[null,"Javier París","París","Javier","ESP0029","VET","AFT Turia 1981","ESP"]
[null,"Ángel Valverde","Valverde","Ángel","ESP0033","OPEN","CAP Ciudad de Murcia FM","ESP"]
[null,"Miguel Ángel López","López","Miguel Ángel","ESP0036","OPEN","Mallorca Águilas FM","ESP"]
[null,"Manuel Clemares","Clemares","Manuel","ESP0039","VET","AFT Turia 1981","ESP"]
[null,"Juan Noguera","Noguera","Juan","ESP0040","OPEN","SC Fiamme Azzurre","ESP"]
[null,"José Ros","Ros","José","ESP0042","OPEN","CAP Ciudad de Murcia FM","ESP"]
[null,"Jorge Juan López Soligó","López Soligó","Jorge Juan","ESP0051","VET","Free Agent","ESP"]
[null,"Santiago Escudero","Escudero","Santiago","ESP0052","OPEN","AFT Turia 1981","ESP"]
[null,"Ferran Coll","Coll","Ferran","ESP0059","VET","Tiburones FM","ESP"]
[null,"Isaac García","García","Isaac","ESP0061","VET","CAP Ciudad de Murcia FM","ESP"]
[null,"Piero Capponi","Capponi","Piero","ESP0062","VET","CAP Ciudad de Murcia FM","ESP"]
[null,"José María Feyjoo","Feyjoo","José María","ESP0063","VET","Moralzarzal SCAD","ESP"]
[null,"Julio Candelas","Candelas","Julio","ESP0064","VET","Moralzarzal SCAD","ESP"]
[null,"Guillem Balaguer","Balaguer","Guillem","ESP0065","OPEN","CAP Ciudad de Murcia FM","ESP"]
[null,"Marc Ligos","Ligos","Marc","ESP0067","OPEN","AS Iluro FT","ESP"]
[null,"Luis Felipe Méndez","Méndez","Luis Felipe","ESP0068","VET","Tiburones FM","ESP"]
[null,"Antonio Montaño","Montaño","Antonio","ESP0069","VET","Tiburones FM","ESP"]
[null,"Alfonso Montaño","Montaño","Alfonso","ESP0070","OPEN","Tiburones FM","ESP"]
[null,"José M. Castellano","Castellano","José M.","ESP0076","VET","Mallorca Águilas FM","ESP"]
[null,"Luis López","López","Luis","ESP0080","VET","Tiburones FM","ESP"]
[null,"David González","González","David","ESP0121","OPEN","Bologna Tigers Subbuteo","ESP"]
[null,"Antonio Jesús Casín","Casín","Antonio Jesús","ESP0131","OPEN","F.Lli Bari Reggio Emilia","ESP"]
[null,"José David Somoza","Somoza","José David","ESP0187","VET","CAP Ciudad de Murcia FM","ESP"]
[null,"José Manuel Sánchez","Sánchez","José Manuel","ESP0188","VET","Mallorca Águilas FM","ESP"]
[null,"Toni Vidal","Vidal","Toni","ESP0195","VET","Mallorca Águilas FM","ESP"]
[null,"Bruno Gerosa Cisneros","Gerosa Cisneros","Bruno","ESP0205","OPEN","Mallorca Águilas FM","ESP"]
[null,"Bonifacio Ruíz","Ruíz","Bonifacio","ESP0217","OPEN","Mallorca Águilas FM","ESP"]
[null,"Francisco Soler","Soler","Francisco","ESP0234","VET","-","ESP"]
[null,"Antonio Fernández","Fernández","Antonio","ESP0242","OPEN","Tiburones FM","ESP"]
[null,"Juan Antonio García","García","Juan Antonio","ESP0352","OPEN","Subbuteo Dragons Azuqueca","ESP"]
[null,"Luis Cano","Cano","Luis","ESP0354","OPEN","Subbuteo Club Almería","ESP"]
[null,"Manuel Romero","Romero","Manuel","ESP0372","OPEN","CAP Ciudad de Murcia FM","ESP"]
[null,"José Pedro González","González","José Pedro","ESP0378","OPEN","FM La Plazoleta","ESP"]
[null,"Javier Junquera Miñambres","Junquera Miñambres","Javier","ESP0381","U20","CFM Manolo Preciado","ESP"]
[null,"Javier Junquera Quintana","Junquera Quintana","Javier","ESP0382","VET","CFM Manolo Preciado","ESP"]
[null,"Alberto Gómez","Gómez","Alberto","ESP0404","VET","Subbuteo Dragons Azuqueca","ESP"]
[null,"Txema de Miguel","de Miguel","Txema","ESP0412","VET","SC Barakaldo","ESP"]
[null,"Carlos Pinto Gurdiel","Pinto Gurdiel","Carlos","ESP0416","U20","Tiburones FM","ESP"]
[null,"Juan Carlos Pinto","Pinto","Juan Carlos","ESP0417","VET","Moralzarzal SCAD","ESP"]
[null,"Emilio Tomás Torrico","Torrico","Emilio Tomás","ESP0426","OPEN","SC Móstoles","ESP"]
[null,"Paula Maireles","Maireles","Paula","ESP0430","OPEN","AC Los Remedios FM","ESP"]
[null,"Miguel Ángel Matabuena","Matabuena","Miguel Ángel","ESP0433","VET","FM La Plazoleta","ESP"]
[null,"Juan Manuel Haro","Haro","Juan Manuel","ESP0436","VET","FM La Plazoleta","ESP"]
[null,"Álex Iliev","Iliev","Álex","ESP0437","U20","AFT Turia 1981","ESP"]
[null,"Cristian Antúnez","Antúnez","Cristian","ESP0439","U20","Tiburones FM","ESP"]
[null,"Jesús Maireles Alfaro","Maireles Alfaro","Jesús","ESP0441","U20","AC Los Remedios FM","ESP"]
[null,"Guillem Alsina","Alsina","Guillem","ESP0448","VET","Barcelona FT","ESP"]
[null,"Jesús Maireles Reyes","Maireles Reyes","Jesús","ESP0449","OPEN","AC Los Remedios FM","ESP"]
[null,"Paolo Clerici","Clerici","Paolo","ESP0452","VET","SC Barakaldo","ESP"]
[null,"Hugo de Miguel","de Miguel","Hugo","ESP0453","U16","SC Madrid","ESP"]
[null,"Álvaro Pérez","Pérez","Álvaro","ESP0456","U20","Tiburones FM","ESP"]
[null,"Daniel Parrilla","Parrilla","Daniel","ESP0457","OPEN","Subbuteo Dragons Azuqueca","ESP"]
[null,"Pedro Benavent","Benavent","Pedro","ESP0458","VET","Subbuteo Club Almería","ESP"]
[null,"José García Ferri","García Ferri","José","ESP0459","OPEN","Subbuteo Club Almería","ESP"]
[null,"Stefka Pirova","Pirova","Stefka","ESP0461","VET","AFT Turia 1981","ESP"]
[null,"César Fuertes","Fuertes","César","ESP0464","OPEN","AFT Turia 1981","ESP"]
[null,"Rubén Benita","Benita","Rubén","ESP0466","U20","AFT Turia 1981","ESP"]
[null,"Isaac Alfaro","Alfaro","Isaac","ESP0477","U20","Tiburones FM","ESP"]
[null,{"$f":"TRIM(CONCATENATE(D967,\" \",C967))","v":"Ferran Borbones"},"Borbones","Ferran","ESP0478","VET","Barcelona FT","ESP"]
[null,"Héctor Pérez","Pérez","Héctor","ESP0480","VET","Subbuteo Dragons Azuqueca","ESP"]
[null,"Ernesto Ruiz","Ruiz","Ernesto","ESP0488","VET","FM La Plazoleta","ESP"]
[null,"Antonio Manuel Hernández","Hernández","Antonio Manuel","ESP0490","VET","Barcelona FT","ESP"]
[null,"Jordi Geronès","Geronès","Jordi","ESP0494","OPEN","Barcelona FT","ESP"]
[null,"Iván Acuña","Acuña","Iván","ESP0495","OPEN","Barcelona FT","ESP"]
[null,"Manuel Muñoz","Muñoz","Manuel","ESP0496","OPEN","Subbuteo Dragons Azuqueca","ESP"]
[null,"Moisés Ramos","Ramos","Moisés","ESP0506","OPEN","SC Barakaldo","ESP"]
[null,"Manuel Redondo","Redondo","Manuel","ESP0508","OPEN","FM La Plazoleta","ESP"]
[null,"José Antonio Salazar","Salazar","José Antonio","ESP0510","OPEN","SC Barakaldo","ESP"]
[null,"Álvaro Benita","Benita","Álvaro","ESP0511","U16","AFT Turia 1981","ESP"]
[null,"Jean Michel Cuenca","Cuenca","Jean Michel","ESP0513","VET","Tiburones FM","ESP"]
[null,"Fabio Mastroianni","Mastroianni","Fabio","ESP0520","OPEN","Free Agent","ESP"]
[null,"Eduardo Martín","Martín","Eduardo","ESP0523","VET","SC Barakaldo","ESP"]
[null,"Manuel Reguera Delgado","Reguera Delgado","Manuel","ESP0526","OPEN","FM La Plazoleta","ESP"]
[null,"Rafael Gómez","Gómez","Rafael","ESP0538","VET","AFT Turia 1981","ESP"]
[null,"Enrique Villao","Villao","Enrique","ESP0542","U16","Moralzarzal SCAD","ESP"]
[null,"Ricard Carles Prat","Carles Prat","Ricard","ESP0545","OPEN","Barcelona FT","ESP"]
[null,"Albert Carles Prat","Carles Prat","Albert","ESP0546","VET","Barcelona FT","ESP"]
[null,"Manuel Reguera Muñoz","Reguera Muñoz","Manuel","ESP0547","U16","FM La Plazoleta","ESP"]
[null,"Francisco Ucha","Ucha","Francisco","ESP0548","OPEN","AS Iluro FT","ESP"]
[null,"Toni Rosa","Rosa","Toni","ESP0551","OPEN","AS Iluro FT","ESP"]
[null,"Martí Rosa","Rosa","Martí","ESP0552","U16","AS Iluro FT","ESP"]
[null,"Erick Moreira","Moreira","Erick","ESP0553","U16","Moralzarzal SCAD","ESP"]
[null,"Manuel Baena","Baena","Manuel","ESP0554","U16","AC Los Remedios FM","ESP"]
[null,"Xavi Maso","Maso","Xavi","ESP0557","OPEN","AS Iluro FT","ESP"]
[null,"Carles Puertas","Puertas","Carles","ESP0558","VET","AS Iluro FT","ESP"]
[null,"Julià Rosa","Rosa","Julià","ESP0559","U12","AS Iluro FT","ESP"]
[null,"Arç Barnola","Barnola","Arç","ESP0560","U12","AS Iluro FT","ESP"]
[null,"Oriol Quer","Quer","Oriol","ESP0563","OPEN","AS Iluro FT","ESP"]
[null,"Owen Márquez Galisteo","Márquez Galisteo","Owen","ESP0564","U12","AS Iluro FT","ESP"]
[null,"Xian Rodríguez Viñas","Rodríguez Viñas","Xian","ESP0566","U16","AFT Turia 1981","ESP"]
[null,"Massimo Barone","Barone","Massimo","ESP0567","OPEN","Subbuteo Dragons Azuqueca","ESP"]
[null,"Teresa Martínez","Martínez","Teresa","ESP0568","U20","AC Los Remedios FM","ESP"]
[null,"Antonio Moreno Vico","Moreno Vico","Antonio","ESP0571","VET","Subbuteo Club Almería","ESP"]
[null,"Carlos Espada","Espada","Carlos","ESP0573","VET","AFT Turia 1981","ESP"]
[null,"Jesús García López","García López","Jesús","ESP0575","OPEN","Subbuteo Dragons Azuqueca","ESP"]
[null,"José Pérez Montero","Pérez Montero","José","ESP0581","OPEN","Subbuteo Club Almería","ESP"]
[null,"Antonio Antúnez","Antúnez","Antonio","ESP0583","U12","AC Los Remedios FM","ESP"]
[null,"Jesús Blanco","Blanco","Jesús","ESP0584","U16","AC Los Remedios FM","ESP"]
[null,"Alberto Marchán","Marchán","Alberto","ESP0585","U12","AC Los Remedios FM","ESP"]
[null,"Alejandro García","García","Alejandro","ESP0588","U16","AC Los Remedios FM","ESP"]
[null,"Joan Acuña Padilla","Acuña Padilla","Joan","ESP0589","U16","Barcelona FT","ESP"]
[null,"José Mª Diéguez","Diéguez","José Mª","ESP0590","OPEN","Barcelona FT","ESP"]
[null,"Cesc Vidal Torner","Vidal Torner","Cesc","ESP0591","U16","AS Iluro FT","ESP"]
[null,"Diego Barone Sánchez","Barone Sánchez","Diego","ESP0592","U12","Subbuteo Dragons Azuqueca","ESP"]
[null,"Juan Antonio Montaño","Montaño","Juan Antonio","ESP0593","U12","AC Los Remedios FM","ESP"]
[null,"Raúl Romera","Romera","Raúl","ESP0594","OPEN","Subbuteo Club Almería","ESP"]
[null,"Gonzalo Reguera Muñoz","Reguera Muñoz","Gonzalo","ESP0595","U12","FM La Plazoleta","ESP"]
[null,"Andrés Puerto","Puerto","Andrés","ESP0596","U16","AC Los Remedios FM","ESP"]
[null,"Joaquín Harillo","Harillo","Joaquín","ESP0597","U16","AC Los Remedios FM","ESP"]
[null,"Curro Martín","Martín","Curro","ESP0599","U16","AC Los Remedios FM","ESP"]
[null,"Rafael García Corredera","García Corredera","Rafael","ESP0603","U12","AC Los Remedios FM","ESP"]
[null,"David Mercado","Mercado","David","ESP0605","VET","Moralzarzal Subbuteo CAD","ESP"]
[null,"Rafael Blasco","Blasco","Rafael","ESP0606","VET","Free Agent","ESP"]
[null,"Alfredo Soria García","Soria García","Alfredo","ESP0607","U12","AC Los Remedios FM","ESP"]
[null,"Adrià Acuña Padilla","Acuña Padilla","Adrià","ESP0608","U12","Barcelona FT","ESP"]
[null,"Martí Acuña Padilla","Acuña Padilla","Martí","ESP0609","U12","Barcelona FT","ESP"]
[null,"Fernando Iñigo Villacorta","Iñigo Villacorta","Fernando","ESP0610","OPEN","Moralzarzal Subbuteo CAD","ESP"]
[null,"Pablo Iñigo Acosta","Iñigo Acosta","Pablo","ESP0611","U12","Moralzarzal Subbuteo CAD","ESP"]
[null,"Rafael García Luque","García Luque","Rafael","ESP0612","VET","AC Los Remedios FM","ESP"]
[null,"Juan Carlos Alcolea Martínez","Alcolea Martínez","Juan Carlos","ESP0613","OPEN","CAP Ciudad de Murcia FM","ESP"]
[null,"Alejandro Alcolea Martínez","Alcolea Martínez","Alejandro","ESP0614","U12","CAP Ciudad de Murcia FM","ESP"]
[null,"Miguel Vera Palacios","Vera Palacios","Miguel","ESP0615","U12","AC Los Remedios FM","ESP"]
[null,{"$f":"TRIM(CONCATENATE(D1031,\" \",C1031))","v":"Luis Cruz Gallardo"},"Cruz Gallardo","Luis","ESP0616","U12","AC Los Remedios FM","ESP"]
[null,"José Ayala Ramírez","Ayala Ramírez","José","ESP0617","U12","AC Los Remedios FM","ESP"]
[null,"Mario Moral Blanco","Moral Blanco","Mario","ESP0618","U16","AC Los Remedios FM","ESP"]
[null,"Andrés Garrido Robles","Garrido Robles","Andrés","ESP0619","U12","AC Los Remedios FM","ESP"]
[null,"Alvaro Palacios Palacios","Palacios Palacios","Alvaro","ESP0620","U12","AC Los Remedios FM","ESP"]
[null,"Javier Alvarez Torres","Alvarez Torres","Javier","ESP0621","U12","AC Los Remedios FM","ESP"]
[null,"Juanchi Martín Díaz","Martín Díaz","Juanchi","ESP0622","U12","AC Los Remedios FM","ESP"]
[null,"Alvaro Castellano Rodríguez","Castellano Rodríguez","Alvaro","ESP0623","U12","AC Los Remedios FM","ESP"]
[null,"Gerardo Borrego González","Borrego González","Gerardo","ESP0624","U12","AC Los Remedios FM","ESP"]
[null,"Luis Reina Osuna","Reina Osuna","Luis","ESP0625","U12","AC Los Remedios FM","ESP"]
[null,"Joan Fontcuberta Famadas Joan","Fontcuberta Famadas Joan","Joan","ESP0626","OPEN","Free Agent","ESP"]
[null,"Alvaro Chacón Jiménez","Chacón Jiménez","Alvaro","ESP0627","U12","AC Los Remedios FM","ESP"]
[null,"Jordi Herraiz Delgado","Herraiz Delgado","Jordi","ESP0628","VET","AS Iluro FT","ESP"]
[null,"Roberto Rodríguez Segura","Rodríguez Segura","Roberto","ESP0629","U12","AC Los Remedios FM","ESP"]
[null,"Pedro Rodríguez Reyes","Rodríguez Reyes","Pedro","ESP0630","U12","AC Los Remedios FM","ESP"]
[null,"Lionel Abecassis","Abecassis","Lionel","FRA0325","VET","Free Agent","FRA"]
[null,"Jean-Marie Amberny","Amberny","Jean-Marie","FRA0018","VET","FTC Issy-les-Moulineaux","FRA"]
[null,"Mael Archerray","Archerray","Mael","FRA0351","U12","FTC Caen","FRA"]
[null,"Laurent Arduise","Arduise","Laurent","FRA0238","VET","Free Agent","FRA"]
[null,"Thierry Arnaudin","Arnaudin","Thierry","FRA0220","VET","Football de Table Aquitaine","FRA"]
[null,"Laurent Ausset","Ausset","Laurent","FRA0119","VET","Elan Subbutéo Club de Champs-sur-Marne","FRA"]
[null,"Quentin Ausset","Ausset","Quentin","FRA0120","U20","Elan Subbutéo Club de Champs-sur-Marne","FRA"]
[null,"Vincent Auzilleau","Auzilleau","Vincent","FRA0330","VET","Football de Table Aquitaine","FRA"]
[null,"Alban Badignon","Badignon","Alban","FRA0312","U16","Celtic Combourg CFT","FRA"]
[null,"Jean-François Balard","Balard","Jean-François","FRA0010","VET","CFT Puylaurens","FRA"]
[null,"Manuel Baldassare","Baldassare","Manuel","FRA0348","OPEN","Poitou Football de Table Club","FRA"]
[null,"Jerome Barlet","Barlet","Jerome","FRA0341","VET","Club Stéphanois Subbuteo - ALC","FRA"]
[null,"Michel Barrot","Barrot","Michel","FRA0193","VET","Free Agent","FRA"]
[null,"Olivier Bastin","Bastin","Olivier","FRA0069","OPEN","CFT Puylaurens","FRA"]
[null,"Ludovic Beauvais","Beauvais","Ludovic","FRA0134","VET","Subbuteo Le Cannet Côte d'Azur","FRA"]
[null,"Rodolphe Becka","Becka","Rodolphe","FRA0317","VET","RC Lorraine Subbuteo Club","FRA"]
[null,"Eric Benand","Benand","Eric","FRA0167","VET","FTC Issy-les-Moulineaux","FRA"]
[null,"Lena Bernard","Bernard","Lena","FRA0290","U16","FTC Saint-Symphorien-sur-Coise","FRA"]
[null,"Paul Bernard","Bernard","Paul","FRA0291","U12","FTC Saint-Symphorien-sur-Coise","FRA"]
[null,"Thierry Biliotti","Biliotti","Thierry","FRA0285","VET","Football de table de Pegomas","FRA"]
[null,"Mickaël Blanc","Blanc","Mickaël","FRA0179","OPEN","FTC Saint-Symphorien-sur-Coise","FRA"]
[null,"Julien Blanchon","Blanchon","Julien","FRA0180","OPEN","FTC Saint-Symphorien-sur-Coise","FRA"]
[null,"Olivier Bodelle","Bodelle","Olivier","FRA0308","VET","ALC Wattrelos - Subbuteo Lille Metropole","FRA"]
[null,"Alban Boigeol","Boigeol","Alban","FRA0268","VET","Football de Table Aquitaine","FRA"]
[null,"Noé Bolusset","Bolusset","Noé","FRA0181","U20","FTC Saint-Symphorien-sur-Coise","FRA"]
[null,"Cyril Bolusset","Bolusset","Cyril","FRA0194","OPEN","FTC Saint-Symphorien-sur-Coise","FRA"]
[null,"Frédéric Bondi","Bondi","Frédéric","FRA0234","OPEN","Subbuteo Le Cannet Côte d'Azur","FRA"]
[null,"Clément Bondi","Bondi","Clément","FRA0235","U12","Subbuteo Le Cannet Côte d'Azur","FRA"]
[null,"Jules Bonnefemme","Bonnefemme","Jules","FRA0350","U12","FTC Caen","FRA"]
[null,"Cyprien Bonnet","Bonnet","Cyprien","FRA0189","OPEN","FTC Saint-Symphorien-sur-Coise","FRA"]
[null,"Guglielmo Boroli","Boroli","Guglielmo","FRA0260","U12","Paris Université Club","FRA"]
[null,"Lucas Bouree","Bouree","Lucas","FRA0311","U16","Celtic Combourg CFT","FRA"]
[null,"Samuel Brignon Kiegl","Brignon Kiegl","Samuel","FRA0337","U12","Paris Université Club","FRA"]
[null,"Isaac Brignon-Kiegl","Brignon-Kiegl","Isaac","FRA0266","U12","Paris Université Club","FRA"]
[null,"Francis Callot","Callot","Francis","FRA0287","VET","Guebwiller Alsace Subbuteo Club","FRA"]
[null,"Michel Capra","Capra","Michel","FRA0242","VET","Mulhouse Subbuteo by ASPTT","FRA"]
[null,"Simon Carmona","Carmona","Simon","FRA0270","U16","FTC Saint-Symphorien-sur-Coise","FRA"]
[null,"Eric Cazala","Cazala","Eric","FRA0231","VET","FTC Issy-les-Moulineaux","FRA"]
[null,"Hugo Chennevrière","Chennevrière","Hugo","FRA0236","VET","Free Agent","FRA"]
[null,"Giovanni Chiappetta","Chiappetta","Giovanni","FRA0256","OPEN","Paris Université Club","FRA"]
[null,"Gabriel Chiappetta","Chiappetta","Gabriel","FRA0257","U12","Paris Université Club","FRA"]
[null,"Fanch Coquillon","Coquillon","Fanch","FRA0178","U20","Celtic Combourg CFT","FRA"]
[null,"Cyrille Coutenceau","Coutenceau","Cyrille","FRA0328","VET","Les Ducs Chalon-sur-Saône FTSC","FRA"]
[null,"Fabrice Dallara","Dallara","Fabrice","FRA0264","OPEN","Subbutéo Team Gard","FRA"]
[null,"Manoa Dautel","Dautel","Manoa","FRA0310","U16","Celtic Combourg CFT","FRA"]
[null,"Didier De Sousa","De Sousa","Didier","FRA0286","OPEN","Boucle de la Seine Subbutéo","FRA"]
[null,"Jerome Deffolin","Deffolin","Jerome","FRA0158","OPEN","Guebwiller Alsace Subbuteo Club","FRA"]
[null,"Fabrice Delagarde","Delagarde","Fabrice","FRA0283","VET","Football de table de Pegomas","FRA"]
[null,"Isabelle Disser","Disser","Isabelle","FRA0322","OPEN","Guebwiller Alsace Subbuteo Club","FRA"]
[null,{"$f":"TRIM(CONCATENATE(D1095,\" \",C1095))","v":"David Dolui"},"Dolui","David","FRA0338","OPEN","Mulhouse Subbuteo by ASPTT","FRA"]
[null,"Axel Donval","Donval","Axel","FRA0019","OPEN","FTC Issy-les-Moulineaux","FRA"]
[null,"Cedric Dreyer","Dreyer","Cedric","FRA0323","OPEN","Guebwiller Alsace Subbuteo Club","FRA"]
[null,"Xavier Dubois","Dubois","Xavier","FRA0122","VET","FTC Caen","FRA"]
[null,"Franck Dubreuil","Dubreuil","Franck","FRA0170","OPEN","Elan Subbutéo Club de Champs-sur-Marne","FRA"]
[null,"Eric Dujardin","Dujardin","Eric","FRA0278","VET","Les Ducs Chalon-sur-Saône FTSC","FRA"]
[null,"Stéphane Dumazi","Dumazi","Stéphane","FRA0196","VET","Free Agent","FRA"]
[null,"Alexandre Durand","Durand","Alexandre","FRA0009","OPEN","CFT Puylaurens","FRA"]
[null,"David Durand","Durand","David","FRA0186","VET","Free Agent","FRA"]
[null,"Sébastien Durandeau","Durandeau","Sébastien","FRA0284","VET","Football de table de Pegomas","FRA"]
[null,"Loic Eigenmann","Eigenmann","Loic","FRA0324","OPEN","Guebwiller Alsace Subbuteo Club","FRA"]
[null,"Guillaume Faucher","Faucher","Guillaume","FRA0274","OPEN","Free Agent","FRA"]
[null,"Hugo Faucher","Faucher","Hugo","FRA0275","U16","Free Agent","FRA"]
[null,"Clement Faucher","Faucher","Clement","FRA0276","U16","Free Agent","FRA"]
[null,"Pierre Favier","Favier","Pierre","FRA0217","VET","Free Agent","FRA"]
[null,"Herve Fino","Fino","Herve","FRA0157","VET","Guebwiller Alsace Subbuteo Club","FRA"]
[null,"Axel Fino","Fino","Axel","FRA0288","U16","Guebwiller Alsace Subbuteo Club","FRA"]
[null,"Martial Foechterle","Foechterle","Martial","FRA0267","OPEN","Guebwiller Alsace Subbuteo Club","FRA"]
[null,"Gregory Fornells","Fornells","Gregory","FRA0327","OPEN","Football de Table Aquitaine","FRA"]
[null,"Jean-Marie Fouetillou","Fouetillou","Jean-Marie","FRA0059","VET","FTC Caen","FRA"]
[null,"Christophe France","France","Christophe","FRA0191","VET","FTC Saint-Symphorien-sur-Coise","FRA"]
[null,"Théo Fromweiler","Fromweiler","Théo","FRA0228","U16","FTC Saint-Symphorien-sur-Coise","FRA"]
[null,"Christophe Fuseau","Fuseau","Christophe","FRA0106","VET","Celtic Combourg CFT","FRA"]
[null,"Romain Gadais","Gadais","Romain","FRA0214","OPEN","Free Agent","FRA"]
[null,"Stephane Galichet","Galichet","Stephane","FRA0329","OPEN","Free Agent","FRA"]
[null,"Domitille Garnier","Garnier","Domitille","FRA0233","U16","Free Agent","FRA"]
[null,"Stéphanie Garnier","Garnier","Stéphanie","FRA0171","OPEN","Tiburones FM","FRA"]
[null,"Thibaud Gauthier","Gauthier","Thibaud","FRA0227","U20","Free Agent","FRA"]
[null,"Victor Gauvin","Gauvin","Victor","FRA0293","U12","Paris Université Club","FRA"]
[null,"Stéphane Genvo","Genvo","Stéphane","FRA0252","OPEN","RC Lorraine Subbuteo Club","FRA"]
[null,"Florian Genvo","Genvo","Florian","FRA0253","OPEN","RC Lorraine Subbuteo Club","FRA"]
[null,"Stéphane Geretto","Geretto","Stéphane","FRA0116","VET","Subbuteo Le Cannet Côte d'Azur","FRA"]
[null,"Ludovic Geretto","Geretto","Ludovic","FRA0147","VET","Subbuteo Le Cannet Côte d'Azur","FRA"]
[null,"Philippe Gillet","Gillet","Philippe","FRA0326","VET","Football de table de Pegomas","FRA"]
[null,"Benjamin Girault","Girault","Benjamin","FRA0346","OPEN","Poitou Football de Table Club","FRA"]
[null,"Emmanuel Gorgette","Gorgette","Emmanuel","FRA0017","OPEN","FTC Issy-les-Moulineaux","FRA"]
[null,"Patrice Grangier","Grangier","Patrice","FRA0182","VET","FTC Saint-Symphorien-sur-Coise","FRA"]
[null,"Gilles Grangier","Grangier","Gilles","FRA0198","VET","FTC Saint-Symphorien-sur-Coise","FRA"]
[null,"Françoise Guyot","Guyot","Françoise","FRA0039","VET","Elan Subbutéo Club de Champs-sur-Marne","FRA"]
[null,"Daniel Guyot","Guyot","Daniel","FRA0183","VET","FTC Saint-Symphorien-sur-Coise","FRA"]
[null,"Jade Guyot","Guyot","Jade","FRA0225","U16","FTC Saint-Symphorien-sur-Coise","FRA"]
[null,"Charlotte Guyot","Guyot","Charlotte","FRA0289","U12","FTC Saint-Symphorien-sur-Coise","FRA"]
[null,"Hisham Haja Maideen","Haja Maideen","Hisham","FRA0335","U12","Paris Université Club","FRA"]
[null,"Hanif Haja Maideen","Haja Maideen","Hanif","FRA0336","U12","Paris Université Club","FRA"]
[null,"Antoine Herbaut","Herbaut","Antoine","FRA0034","OPEN","Elan Subbutéo Club de Champs-sur-Marne","FRA"]
[null,"Audrey Herbaut","Herbaut","Audrey","FRA0035","OPEN","Elan Subbutéo Club de Champs-sur-Marne","FRA"]
[null,"Gilles Herbaut","Herbaut","Gilles","FRA0175","VET","Elan Subbutéo Club de Champs-sur-Marne","FRA"]
[null,"Jean-Michel Hlupic","Hlupic","Jean-Michel","FRA0321","VET","RC Lorraine Subbuteo Club","FRA"]
[null,"Michel Hortegat","Hortegat","Michel","FRA0303","VET","RC Lorraine Subbuteo Club","FRA"]
[null,"Jérémy Idoux","Idoux","Jérémy","FRA0244","OPEN","RC Lorraine Subbuteo Club","FRA"]
[null,"Michel Idoux","Idoux","Michel","FRA0251","VET","RC Lorraine Subbuteo Club","FRA"]
[null,"Richard Ippoliti","Ippoliti","Richard","FRA0320","OPEN","RC Lorraine Subbuteo Club","FRA"]
[null,"Laurent Jaillet","Jaillet","Laurent","FRA0210","VET","Elan Subbutéo Club de Champs-sur-Marne","FRA"]
[null,"Thierry Jalbert","Jalbert","Thierry","FRA0040","VET","Elan Subbutéo Club de Champs-sur-Marne","FRA"]
[null,"Franck Jan","Jan","Franck","FRA0261","VET","Free Agent","FRA"]
[null,"Mathias Koch","Koch","Mathias","FRA0292","U16","Guebwiller Alsace Subbuteo Club","FRA"]
[null,"Emmanuel Lafontaine","Lafontaine","Emmanuel","FRA0096","OPEN","FTC Caen","FRA"]
[null,"Romain Lafontaine","Lafontaine","Romain","FRA0216","OPEN","FTC Caen","FRA"]
[null,"Ninon Lafontaine","Lafontaine","Ninon","FRA0349","U12","FTC Caen","FRA"]
[null,"Romain Laloy","Laloy","Romain","FRA0319","OPEN","ALC Wattrelos - Subbuteo Lille Metropole","FRA"]
[null,"Pierre Larroumes","Larroumes","Pierre","FRA0262","VET","FTC Saint-Symphorien-sur-Coise","FRA"]
[null,"Romain Larrouy","Larrouy","Romain","FRA0306","OPEN","Subbutéo Club Marseille","FRA"]
[null,"Francis Laurent","Laurent","Francis","FRA0243","VET","RC Lorraine Subbuteo Club","FRA"]
[null,"Didier Le De","Le De","Didier","FRA0219","VET","Football de Table Aquitaine","FRA"]
[null,{"$f":"TRIM(CONCATENATE(D1159,\" \",C1159))","v":"Lucie Le Teno"},"Le Teno","Lucie","FRA0028","OPEN","Free Agent","FRA"]
[null,"Arnaud Le Teno","Le Teno","Arnaud","FRA0029","OPEN","Free Agent","FRA"]
[null,"Sébastien Lecerf","Lecerf","Sébastien","FRA0297","OPEN","CFT Montivilliers","FRA"]
[null,"Emeline Lecerf","Lecerf","Emeline","FRA0298","U12","CFT Montivilliers","FRA"]
[null,"Johnny Ledieu","Ledieu","Johnny","FRA0038","OPEN","Elan Subbutéo Club de Champs-sur-Marne","FRA"]
[null,"Bastien Ledieu","Ledieu","Bastien","FRA0332","U16","Elan Subbutéo Club de Champs-sur-Marne","FRA"]
[null,"Augustin Ledoit","Ledoit","Augustin","FRA0258","U12","Paris Université Club","FRA"]
[null,"Cyril Ledoit","Ledoit","Cyril","FRA0259","VET","Paris Université Club","FRA"]
[null,"Adrien Lefebvre","Lefebvre","Adrien","FRA0345","U12","FTC Caen","FRA"]
[null,"Nicolas Lefèbvre","Lefèbvre","Nicolas","FRA0094","OPEN","FTC Caen","FRA"]
[null,"Eliott Legall","Legall","Eliott","FRA0152","OPEN","Celtic Combourg CFT","FRA"]
[null,"Serge Leroy","Leroy","Serge","FRA0012","VET","CFT Puylaurens","FRA"]
[null,"David Leroy","Leroy","David","FRA0254","OPEN","CFT Puylaurens","FRA"]
[null,"Martine Leroy","Leroy","Martine","FRA0315","VET","CFT Puylaurens","FRA"]
[null,"Thibault Lesne","Lesne","Thibault","FRA0232","VET","Football de Table Aquitaine","FRA"]
[null,"Eric Lienhardt","Lienhardt","Eric","FRA0023","VET","Guebwiller Alsace Subbuteo Club","FRA"]
[null,"Irène Linquercq-Rivière","Linquercq-Rivière","Irène","FRA0174","OPEN","FTC Issy-les-Moulineaux","FRA"]
[null,"Lorenzo Lo Preti","Lo Preti","Lorenzo","FRA0176","OPEN","Guebwiller Alsace Subbuteo Club","FRA"]
[null,"Yann Loarec","Loarec","Yann","FRA0054","VET","Celtic Combourg CFT","FRA"]
[null,"François Long Andreani","Long Andreani","François","FRA0301","VET","Section Subbutéo Squadra Omessinca","FRA"]
[null,"Rémy Lours","Lours","Rémy","FRA0109","OPEN","FTC Caen","FRA"]
[null,"Thierry Lunard","Lunard","Thierry","FRA0300","VET","Les Ducs Chalon-sur-Saône FTSC","FRA"]
[null,"Liam Lupo","Lupo","Liam","FRA0237","U16","Football de table de Pegomas","FRA"]
[null,"Enrico Lupo","Lupo","Enrico","FRA0148","VET","Subbuteo Le Cannet Côte d'Azur","FRA"]
[null,"Rayan Makhlouf","Makhlouf","Rayan","FRA0282","OPEN","Club Stéphanois Subbuteo - ALC","FRA"]
[null,"Nicolas Malfait","Malfait","Nicolas","FRA0339","OPEN","ALC Wattrelos - Subbuteo Lille Metropole","FRA"]
[null,"Orlan Martin","Martin","Orlan","FRA0226","U16","FTC Saint-Symphorien-sur-Coise","FRA"]
[null,"Thibaut Marville","Marville","Thibaut","FRA0309","OPEN","ALC Wattrelos - Subbuteo Lille Metropole","FRA"]
[null,"David Mathieu","Mathieu","David","FRA0150","VET","Subbuteo Le Cannet Côte d'Azur","FRA"]
[null,"Franck Mayoungou","Mayoungou","Franck","FRA0347","OPEN","Poitou Football de Table Club","FRA"]
[null,"Laurent Meygret","Meygret","Laurent","FRA0190","OPEN","FTC Saint-Symphorien-sur-Coise","FRA"]
[null,"Ludovic Midoux","Midoux","Ludovic","FRA0092","OPEN","Avenir Subbuteo Hennuyer","FRA"]
[null,"Rafaël Midoux","Midoux","Rafaël","FRA0168","U20","Avenir Subbuteo Hennuyer","FRA"]
[null,"Bertrand Mienville","Mienville","Bertrand","FRA0247","VET","Spartak des dames","FRA"]
[null,"Axel Modeste","Modeste","Axel","FRA0020","VET","FTC Issy-les-Moulineaux","FRA"]
[null,"Théo Modeste","Modeste","Théo","FRA0025","OPEN","FTC Issy-les-Moulineaux","FRA"]
[null,"Jérôme Monchalin","Monchalin","Jérôme","FRA0224","OPEN","FTC Saint-Symphorien-sur-Coise","FRA"]
[null,"Tristan Monchalin","Monchalin","Tristan","FRA0230","U12","FTC Saint-Symphorien-sur-Coise","FRA"]
[null,"Christophe Monteiro","Monteiro","Christophe","FRA0164","VET","FTC Issy-les-Moulineaux","FRA"]
[null,"Joris Morel","Morel","Joris","FRA0340","OPEN","Subbuteo Le Cannet Côte d'Azur","FRA"]
[null,"Nicolas Morier","Morier","Nicolas","FRA0221","VET","Football de Table Aquitaine","FRA"]
[null,"Augustin Moulin","Moulin","Augustin","FRA0331","U12","FTC Saint-Symphorien-sur-Coise","FRA"]
[null,"Eric Naszalyi","Naszalyi","Eric","FRA0014","VET","FTC Issy-les-Moulineaux","FRA"]
[null,"Paul Naszalyi","Naszalyi","Paul","FRA0026","OPEN","FTC Issy-les-Moulineaux","FRA"]
[null,"Julien Nicolas","Nicolas","Julien","FRA0318","OPEN","Poitou Football de Table Club","FRA"]
[null,"Mathieu Nicolas","Nicolas","Mathieu","FRA0344","OPEN","Poitou Football de Table Club","FRA"]
[null,"Jean-Maurice Noël","Noël","Jean-Maurice","FRA0280","VET","Club Stéphanois Subbuteo - ALC","FRA"]
[null,"Paul Offmann","Offmann","Paul","FRA0135","OPEN","Langton Green Subbuteo Club","FRA"]
[null,"Telio Pandolfi","Pandolfi","Telio","FRA0188","U20","Free Agent","FRA"]
[null,"Cédric Pandolfi","Pandolfi","Cédric","FRA0187","OPEN","FTC Saint-Symphorien-sur-Coise","FRA"]
[null,"Fabrice Parmentier","Parmentier","Fabrice","FRA0305","VET","Guebwiller Alsace Subbuteo Club","FRA"]
[null,"Laurent Pasquier","Pasquier","Laurent","FRA0239","OPEN","Free Agent","FRA"]
[null,"Aldo Pedetti","Pedetti","Aldo","FRA0294","VET","Guebwiller Alsace Subbuteo Club","FRA"]
[null,"Denis Polsinelli","Polsinelli","Denis","FRA0185","VET","FTC Saint-Symphorien-sur-Coise","FRA"]
[null,"Stéphane Pommier","Pommier","Stéphane","FRA0056","VET","FTC Caen","FRA"]
[null,"Raphaël Pommier","Pommier","Raphaël","FRA0062","OPEN","FTC Caen","FRA"]
[null,"Kévin Pouffet","Pouffet","Kévin","FRA0218","OPEN","CFT Puylaurens","FRA"]
[null,"Aymeric Pouffet","Pouffet","Aymeric","FRA0222","OPEN","Football de Table Aquitaine","FRA"]
[null,"Lea Poupart","Poupart","Lea","FRA0246","U20","Celtic Combourg CFT","FRA"]
[null,"Hervé Rakowski","Rakowski","Hervé","FRA0095","VET","Guebwiller Alsace Subbuteo Club","FRA"]
[null,"Marc Regnier","Regnier","Marc","FRA0271","VET","CFT Puylaurens","FRA"]
[null,"Christian Reinbold","Reinbold","Christian","FRA0334","VET","Mulhouse Subbuteo by ASPTT","FRA"]
[null,"Jean Marc Rethore","Rethore","Jean Marc","FRA0313","VET","Celtic Combourg CFT","FRA"]
[null,"Fayçal Rouis","Rouis","Fayçal","FRA0022","OPEN","FTC Caen","FRA"]
[null,{"$f":"TRIM(CONCATENATE(D1223,\" \",C1223))","v":"Abdelmaneum Rouis"},"Rouis","Abdelmaneum","FRA0296","OPEN","FTC Caen","FRA"]
[null,"Valentino Rubbi","Rubbi","Valentino","FRA0265","U12","Paris Université Club","FRA"]
[null,"Jean-François Rubi","Rubi","Jean-François","FRA0036","VET","Elan Subbutéo Club de Champs-sur-Marne","FRA"]
[null,"Isaiah Rugard Angot","Rugard Angot","Isaiah","FRA0299","U12","Paris Université Club","FRA"]
[null,"Diego Russolillo","Russolillo","Diego","FRA0248","U12","Paris Université Club","FRA"]
[null,"Giorgio Russolillo","Russolillo","Giorgio","FRA0255","VET","Paris Université Club","FRA"]
[null,"Olivier Sagit","Sagit","Olivier","FRA0060","OPEN","FTC Caen","FRA"]
[null,"Laurent Salle","Salle","Laurent","FRA0079","VET","Celtic Combourg CFT","FRA"]
[null,"David Sardi de Letto","Sardi de Letto","David","FRA0277","VET","ALC WATTRELOS - SUBBUTEO LILLE METROPOLE","FRA"]
[null,"Damien Savel","Savel","Damien","FRA0281","VET","Club Stéphanois Subbuteo - ALC","FRA"]
[null,"Eric Siwczak","Siwczak","Eric","FRA0223","VET","Subbuteo Le Cannet Côte d'Azur","FRA"]
[null,"Rémi Soret","Soret","Rémi","FRA0093","OPEN","Avenir Subbuteo Hennuyer","FRA"]
[null,"Louis Soret","Soret","Louis","FRA0169","U16","Avenir Subbuteo Hennuyer","FRA"]
[null,"Sébastien Sorge","Sorge","Sébastien","FRA0197","VET","ALC Wattrelos - Subbuteo Lille Metropole","FRA"]
[null,"Lucas Sourdot","Sourdot","Lucas","FRA0304","U16","Section Subbutéo Squadra Omessinca","FRA"]
[null,"Frédéric Staine","Staine","Frédéric","FRA0240","VET","Mulhouse Subbuteo by ASPTT","FRA"]
[null,"Manon Steiner","Steiner","Manon","FRA0250","OPEN","RC Lorraine Subbuteo Club","FRA"]
[null,"Maël Teixido-Regnier","Teixido-Regnier","Maël","FRA0272","U16","CFT Puylaurens","FRA"]
[null,"Dorian Testud","Testud","Dorian","FRA0269","U16","Free Agent","FRA"]
[null,"Léandre Thibaudeau","Thibaudeau","Léandre","FRA0302","U16","Section Subbutéo Squadra Omessinca","FRA"]
[null,"Jean-Jacques Trichot","Trichot","Jean-Jacques","FRA0229","VET","Club Stéphanois Subbuteo - ALC","FRA"]
[null,"Pierre Troestler","Troestler","Pierre","FRA0241","VET","Mulhouse Subbuteo by ASPTT","FRA"]
[null,"Charlotte Troestler","Troestler","Charlotte","FRA0273","U16","Mulhouse Subbuteo by ASPTT","FRA"]
[null,"Roger Trouillard","Trouillard","Roger","FRA0011","VET","CFT Puylaurens","FRA"]
[null,"Vincent Vandamme","Vandamme","Vincent","FRA0333","VET","Elan Subbutéo Club de Champs-sur-Marne","FRA"]
[null,"Eric Villard","Villard","Eric","FRA0279","OPEN","Club Stéphanois Subbuteo - ALC","FRA"]
[null,"Stéphanie Vinh","Vinh","Stéphanie","FRA0316","OPEN","Mulhouse Subbuteo by ASPTT","FRA"]
[null,"Thierry Vivron","Vivron","Thierry","FRA0016","VET","FTC Issy-les-Moulineaux","FRA"]
[null,"Nicolas Voet","Voet","Nicolas","FRA0307","OPEN","ALC Wattrelos - Subbuteo Lille Metropole","FRA"]
[null,"Gilles Weinstich","Weinstich","Gilles","FRA0295","OPEN","Mulhouse Subbuteo by ASPTT","FRA"]
[null,"David Zaki","Zaki","David","FRA0021","OPEN","FTC Issy-les-Moulineaux","FRA"]
[null,"Loic Zulsdorff","Zulsdorff","Loic","FRA0342","OPEN","RC Lorraine Subbuteo Club","FRA"]
[null,"Estebane Zulsdorff","Zulsdorff","Estebane","FRA0343","U12","RC Lorraine Subbuteo Club","FRA"]
[null,"Pascal Abel","Abel","Pascal","GER0017","OPEN","Sparta Spreeathen 74/82","GER"]
[null,"Kevin Abeln","Abeln","Kevin","GER0098","OPEN","SUB Kaiserau","GER"]
[null,"Daniel Badziung","Badziung","Daniel","GER0089","OPEN","Borussia Bergkamen","GER"]
[null,"Leif Bancherus","Bancherus","Leif","GER0002","OPEN","TV Germania Kaiserau","GER"]
[null,"Dirk Bärwald","Bärwald","Dirk","GER0032","VET","TSL Dortmund 61","GER"]
[null,"Volker Bärwald","Bärwald","Volker","GER0033","VET","TSL Dortmund 61","GER"]
[null,"Bernd Bauer","Bauer","Bernd","GER0059","VET","TSG Rain 1970","GER"]
[null,"Volker Becker","Becker","Volker","GER0053","VET","Irreal Nieder-Mörlen","GER"]
[null,"Michael Beifuß","Beifuß","Michael","GER0077","OPEN","BSC Schwalbach","GER"]
[null,"Fabio Bianco","Bianco","Fabio","GER0018","OPEN","Sparta Spreeathen 74/82","GER"]
[null,"Carsten Bock","Bock","Carsten","GER0149","OPEN","SC Berlin","GER"]
[null,"Stephan Boddenberg","Boddenberg","Stephan","GER0034","OPEN","TSL Dortmund 61","GER"]
[null,"Henrik Boer","Boer","Henrik","GER0095","OPEN","Sparta Spreeathen 74/82","GER"]
[null,"Kim Bradke","Bradke","Kim","GER0136","OPEN","TV Germania Kaiserau","GER"]
[null,"Steven Breselg","Breselg","Steven","GER0035","OPEN","Borussia Bergkamen","GER"]
[null,"Thossa Büsing","Büsing","Thossa","GER0004","VET","TV Germania Kaiserau","GER"]
[null,"Alexander Büsing","Büsing","Alexander","GER0003","OPEN","Sparta Spreeathen 74/82","GER"]
[null,"Victoria Büsing","Büsing","Victoria","GER0005","OPEN","TV Germania Kaiserau","GER"]
[null,"Joachim Busmann","Busmann","Joachim","GER0150","VET","Sparta Spreeathen 74/82","GER"]
[null,"Charis Chatziplaton","Chatziplaton","Charis","GER0147","OPEN","SG '94 Hannover","GER"]
[null,"Nicola Dähne","Dähne","Nicola","GER0106","OPEN","Sparta Spreeathen 74/82","GER"]
[null,"Felix Eger","Eger","Felix","GER0019","OPEN","Sparta Spreeathen 74/82","GER"]
[null,"Wilfried Eiring","Eiring","Wilfried","GER0103","VET","TSL Dortmund 61","GER"]
[null,"Dennis Eisemann","Eisemann","Dennis","GER0016","OPEN","Borussia Bergkamen","GER"]
[null,"Sara Eisen","Eisen","Sara","GER0140","OPEN","TSG Rain 1970","GER"]
[null,"Uli Euler","Euler","Uli","GER0090","OPEN","BSC Schwalbach","GER"]
[null,"Steven Evans","Evans","Steven","GER0100","OPEN","SUB Kaiserau","GER"]
[null,"Marian Flemer","Flemer","Marian","GER0138","OPEN","Sparta Spreeathen 74/82","GER"]
[null,"Pia Flemer","Flemer","Pia","GER0143","U20","Sparta Spreeathen 74/82","GER"]
[null,"Rene Frey","Frey","Rene","GER0114","OPEN","Borussia Bergkamen","GER"]
[null,"Jürgen Fricke","Fricke","Jürgen","GER0006","VET","Borussia Bergkamen","GER"]
[null,{"$f":"TRIM(CONCATENATE(D1287,\" \",C1287))","v":"Klaus Fritz"},"Fritz","Klaus","GER0117","VET","Sparta Spreeathen 74/82","GER"]
[null,"Christoph Georgi","Georgi","Christoph","GER0020","OPEN","Sparta Spreeathen 74/82","GER"]
[null,"Janus Gersie","Gersie","Janus","GER0078","VET","BSC Schwalbach","GER"]
[null,"Nora Gersie","Gersie","Nora","GER0075","OPEN","TFC Rhein-Hessen Wiesbaden","GER"]
[null,"Hagen Gersie","Gersie","Hagen","GER0074","OPEN","TFC Rhein-Hessen Wiesbaden","GER"]
[null,"Wolfgang Göbel","Göbel","Wolfgang","GER0055","VET","SC Kickers 69 Offenbach","GER"]
[null,"Jürgen Göhring","Göhring","Jürgen","GER0060","VET","TSG Rain 1970","GER"]
[null,"Christian Göhring","Göhring","Christian","GER0061","OPEN","TSG Rain 1970","GER"]
[null,"Jennifer Golze","Golze","Jennifer","GER0146","OPEN","TFC Mattersburg","GER"]
[null,"Klaus Gottke","Gottke","Klaus","GER0041","VET","SF SW gemaba Hitdorf","GER"]
[null,"Olaf Gottke","Gottke","Olaf","GER0040","VET","SF SW gemaba Hitdorf","GER"]
[null,"Frank Greier","Greier","Frank","GER0051","VET","STV 97 Hohenlohe","GER"]
[null,"Gerhard Grünberg","Grünberg","Gerhard","GER0091","VET","Subbuteo Club Höpfigheim","GER"]
[null,"Daniela Grünberg","Grünberg","Daniela","GER0133","OPEN","BSC Schwalbach","GER"]
[null,"Patrick Grunwald","Grunwald","Patrick","GER0062","OPEN","TSG Rain 1970","GER"]
[null,"Andreas Guhr","Guhr","Andreas","GER0141","VET","Sparta Spreeathen 74/82","GER"]
[null,"Thomas Guhr","Guhr","Thomas","GER0142","U20","Sparta Spreeathen 74/82","GER"]
[null,"Manfred Guth","Guth","Manfred","GER0124","VET","SC München 2014","GER"]
[null,"Gerd Häcker","Häcker","Gerd","GER0113","VET","SC München 2014","GER"]
[null,"Oskar Häcker","Häcker","Oskar","GER0120","OPEN","SC München 2014","GER"]
[null,"Frank Hagenkötter","Hagenkötter","Frank","GER0036","VET","SC Catania 1987","GER"]
[null,"Kai Hagenkötter","Hagenkötter","Kai","GER0037","OPEN","SC Catania 1987","GER"]
[null,"Michael Hain","Hain","Michael","GER0086","VET","Essener SC","GER"]
[null,"Annika Hentrich","Hentrich","Annika","GER0121","OPEN","Sparta Spreeathen 74/82","GER"]
[null,"Felix Herrmannsdörfer","Herrmannsdörfer","Felix","GER0007","OPEN","TV Germania Kaiserau","GER"]
[null,"Jörg Hirzmann","Hirzmann","Jörg","GER0054","VET","Irreal Nieder-Mörlen","GER"]
[null,"Tom Horn","Horn","Tom","GER0085","VET","Sparta Spreeathen 74/82","GER"]
[null,"Holger Husarek","Husarek","Holger","GER0008","VET","Eurofighter Bochum","GER"]
[null,"Bernhard Ihle","Ihle","Bernhard","GER0084","VET","SB Komet Frankfurt","GER"]
[null,"Andreas Jung","Jung","Andreas","GER0063","VET","TSG Rain 1970","GER"]
[null,"Andreas Jung","Jung","Andreas","GER0064","OPEN","TSG Rain 1970","GER"]
[null,"Moritz Jung","Jung","Moritz","GER0094","OPEN","TSG Rain 1970","GER"]
[null,"Frank Kalyta","Kalyta","Frank","GER0108","OPEN","Minimannia Aachen","GER"]
[null,"Luc Kaouane","Kaouane","Luc","GER0148","OPEN","SG '94 Hannover","GER"]
[null,"Michael Kappl","Kappl","Michael","GER0079","VET","BSC Schwalbach","GER"]
[null,"Björn Kegenbein","Kegenbein","Björn","GER0021","OPEN","TFC Mattersburg","GER"]
[null,"Katrin Knezevic-Schlosser","Knezevic-Schlosser","Katrin","GER0132","OPEN","TFC Rhein-Hessen Wiesbaden","GER"]
[null,"Rudi Knuf","Knuf","Rudi","GER0042","OPEN","Atlas FTC","GER"]
[null,"Michael König-Danielson","König-Danielson","Michael","GER0159","OPEN","SC Berlin","GER"]
[null,"Maike Krause","Krause","Maike","GER0009","OPEN","Sparta Spreeathen 74/82","GER"]
[null,"Svenja Krause","Krause","Svenja","GER0123","OPEN","Sparta Spreeathen 74/82","GER"]
[null,"Alwin Krause","Krause","Alwin","GER0092","OPEN","Sparta Spreeathen 74/82","GER"]
[null,"Achim Krichel","Krichel","Achim","GER0001","VET","Gliding Stars Aachen","GER"]
[null,"Panagiotis Krommydas","Krommydas","Panagiotis","GER0131","VET","Subbuteo Club Höpfigheim","GER"]
[null,"Melanie Kronmüller","Kronmüller","Melanie","GER0135","OPEN","Subbuteo Club Höpfigheim","GER"]
[null,"Manuela Kwiatkowski","Kwiatkowski","Manuela","GER0093","VET","Sparta Spreeathen 74/82","GER"]
[null,"Marcel Kwiatkowski","Kwiatkowski","Marcel","GER0022","OPEN","Sparta Spreeathen 74/82","GER"]
[null,"Finn Laurentius","Laurentius","Finn","GER0139","OPEN","Sparta Spreeathen 74/82","GER"]
[null,"Markus Lindner","Lindner","Markus","GER0045","VET","SF SW gemaba Hitdorf","GER"]
[null,"Niklas-Joel Lorenz","Lorenz","Niklas-Joel","GER0130","OPEN","SUB Kaiserau","GER"]
[null,"Jens Maaß","Maaß","Jens","GER0122","VET","SC München 2014","GER"]
[null,"Maiko Maaz","Maaz","Maiko","GER0039","OPEN","TSL Dortmund 61","GER"]
[null,"Wolfgang Mair","Mair","Wolfgang","GER0066","VET","TSG Rain 1970","GER"]
[null,"Arnold Mair","Mair","Arnold","GER0065","VET","TSG Rain 1970","GER"]
[null,"Marc Manger","Manger","Marc","GER0050","VET","STV 97 Hohenlohe","GER"]
[null,"Yannik Matusch","Matusch","Yannik","GER0128","OPEN","TV Germania Kaiserau","GER"]
[null,"Anna-Lisa Mensel","Mensel","Anna-Lisa","GER0023","OPEN","Sparta Spreeathen 74/82","GER"]
[null,"Fabian Mertins","Mertins","Fabian","GER0099","OPEN","SUB Kaiserau","GER"]
[null,"Friedel Molinaro","Molinaro","Friedel","GER0043","VET","SF SW gemaba Hitdorf","GER"]
[null,"Mario Molinaro","Molinaro","Mario","GER0044","OPEN","SF SW gemaba Hitdorf","GER"]
[null,"Edin Mulasmajic","Mulasmajic","Edin","GER0107","VET","SG '94 Hannover","GER"]
[null,"Ekrem Mulasmajic","Mulasmajic","Ekrem","GER0116","U20","SG '94 Hannover","GER"]
[null,"Nico Müller","Müller","Nico","GER0127","VET","SC Berlin","GER"]
[null,"André Müller","Müller","André","GER0118","OPEN","Sparta Spreeathen 74/82","GER"]
[null,{"$f":"TRIM(CONCATENATE(D1351,\" \",C1351))","v":"Michael Nixdorf"},"Nixdorf","Michael","GER0156","VET","SG '94 Hannover","GER"]
[null,"Matthias Odelga","Odelga","Matthias","GER0024","OPEN","Sparta Spreeathen 74/82","GER"]
[null,"Manuel Politz","Politz","Manuel","GER0129","OPEN","TV Germania Kaiserau","GER"]
[null,"Harald Popp","Popp","Harald","GER0076","VET","1.SFC Selb","GER"]
[null,"Roland Popp","Popp","Roland","GER0067","VET","BSC Schwalbach","GER"]
[null,"Benedikt Popp","Popp","Benedikt","GER0068","OPEN","TSG Rain 1970","GER"]
[null,"Tobias Popp","Popp","Tobias","GER0088","OPEN","TSG Rain 1970","GER"]
[null,"Joshua Poreski","Poreski","Joshua","GER0111","U20","SUB Kaiserau","GER"]
[null,"Florian Powels","Powels","Florian","GER0025","OPEN","Sparta Spreeathen 74/82","GER"]
[null,"Wilfried Pretzel","Pretzel","Wilfried","GER0125","VET","Sparta Spreeathen 74/82","GER"]
[null,"Nico Pretzel","Pretzel","Nico","GER0126","OPEN","Sparta Spreeathen 74/82","GER"]
[null,"Achim Preu","Preu","Achim","GER0056","VET","SC Kickers 69 Offenbach","GER"]
[null,"Thomas Pröhle","Pröhle","Thomas","GER0026","VET","Sparta Spreeathen 74/82","GER"]
[null,"Peng Qiao","Qiao","Peng","GER0157","OPEN","SG '94 Hannover","GER"]
[null,"Bodo Reckzeh","Reckzeh","Bodo","GER0137","VET","Sparta Spreeathen 74/82","GER"]
[null,"Marc Reitz","Reitz","Marc","GER0096","OPEN","BSC Schwalbach","GER"]
[null,"Florian Riehl","Riehl","Florian","GER0069","OPEN","TSG Rain 1970","GER"]
[null,"Frank Rosenkranz","Rosenkranz","Frank","GER0160","VET","Subbuteo Club Höpfigheim","GER"]
[null,"Jens Röttjer","Röttjer","Jens","GER0027","VET","Sparta Spreeathen 74/82","GER"]
[null,"Hans Ruf","Ruf","Hans","GER0071","VET","TSG Rain 1970","GER"]
[null,"Alexander Ruf","Ruf","Alexander","GER0070","OPEN","TSG Rain 1970","GER"]
[null,"Werner Rust","Rust","Werner","GER0134","VET","1.TFC Aktivist Bergen 74","GER"]
[null,"Wolfgang Sartor","Sartor","Wolfgang","GER0052","VET","SCN Idstein","GER"]
[null,"Dieter Sauerwein","Sauerwein","Dieter","GER0014","VET","TV Germania Kaiserau","GER"]
[null,"Pascal Schäfer","Schäfer","Pascal","GER0087","OPEN","SUB Kaiserau","GER"]
[null,"Michael Schaup","Schaup","Michael","GER0057","VET","SC Kickers 69 Offenbach","GER"]
[null,"Frank Scherer","Scherer","Frank","GER0080","VET","BSC Schwalbach","GER"]
[null,"Rainer Scheurer","Scheurer","Rainer","GER0083","VET","BSC Schwalbach","GER"]
[null,"Axel Schneider","Schneider","Axel","GER0047","VET","SF SW gemaba Hitdorf","GER"]
[null,"Wolfgang Schneider","Schneider","Wolfgang","GER0049","VET","SF SW gemaba Hitdorf","GER"]
[null,"Daniel Schneider","Schneider","Daniel","GER0048","OPEN","SF SW gemaba Hitdorf","GER"]
[null,"Patrick Schneider","Schneider","Patrick","GER0101","OPEN","SF SW gemaba Hitdorf","GER"]
[null,"Leon Schneider","Schneider","Leon","GER0151","U20","SC Berlin","GER"]
[null,"Patrick Schnieder","Schnieder","Patrick","GER0115","OPEN","Borussia Bergkamen","GER"]
[null,"Manuel Schreckenbach","Schreckenbach","Manuel","GER0028","OPEN","Sparta Spreeathen 74/82","GER"]
[null,"Martin Schrott","Schrott","Martin","GER0012","VET","Borussia Bergkamen","GER"]
[null,"Rene Schulz","Schulz","Rene","GER0010","OPEN","Sparta Spreeathen 74/82","GER"]
[null,"Marcel Schulz","Schulz","Marcel","GER0011","OPEN","BSC Schwalbach","GER"]
[null,"Dominik Schulz","Schulz","Dominik","GER0038","OPEN","TV Germania Kaiserau","GER"]
[null,"Olaf Seidel","Seidel","Olaf","GER0046","VET","SF SW gemaba Hitdorf","GER"]
[null,"Uli Selsen","Selsen","Uli","GER0013","VET","SC Germania Schwerte 76","GER"]
[null,"Sascha Skroblin","Skroblin","Sascha","GER0097","OPEN","TSL Dortmund 61","GER"]
[null,"Fisnik Sopa","Sopa","Fisnik","GER0154","OPEN","SG '94 Hannover","GER"]
[null,"Mattia Spataro","Spataro","Mattia","GER0158","OPEN","Subbuteo Club Höpfigheim","GER"]
[null,"Matthias Stechern","Stechern","Matthias","GER0144","VET","Pinco Devils TS","GER"]
[null,"Frank Stiller","Stiller","Frank","GER0105","VET","Master Sanremo","GER"]
[null,"Uwe Stiller","Stiller","Uwe","GER0112","VET","Master Sanremo","GER"]
[null,"Michael Stolzenberg","Stolzenberg","Michael","GER0029","OPEN","DLF Gorizia","GER"]
[null,"Stephan Thiele","Thiele","Stephan","GER0081","VET","BSC Schwalbach","GER"]
[null,"Bernd Tholen","Tholen","Bernd","GER0102","VET","Essener SC","GER"]
[null,"Marcus Tilgner","Tilgner","Marcus","GER0030","VET","Sparta Spreeathen 74/82","GER"]
[null,"Daria Tilgner","Tilgner","Daria","GER0119","OPEN","Sparta Spreeathen 74/82","GER"]
[null,"Dimitrios Tolias","Tolias","Dimitrios","GER0152","OPEN","SG '94 Hannover","GER"]
[null,"Rainer Vogt","Vogt","Rainer","GER0031","VET","Sparta Spreeathen 74/82","GER"]
[null,"Linus von Schultzendorff","von Schultzendorff","Linus","GER0153","OPEN","SG '94 Hannover","GER"]
[null,"Fred Vulpes","Vulpes","Fred","GER0015","VET","TFC Rhein-Hessen Wiesbaden","GER"]
[null,"Thomas Vulpes","Vulpes","Thomas","GER0072","VET","TSG Rain 1970","GER"]
[null,"Cornelia Vulpes","Vulpes","Cornelia","GER0073","OPEN","TSG Rain 1970","GER"]
[null,"Robert Wagner","Wagner","Robert","GER0104","VET","Minimannia Aachen","GER"]
[null,"Gerhard Walper","Walper","Gerhard","GER0058","VET","SC Kickers 69 Offenbach","GER"]
[null,"Cathrin Weihermann","Weihermann","Cathrin","GER0110","OPEN","TSG Rain 1970","GER"]
[null,"Thomas Winkler","Winkler","Thomas","GER0082","VET","BSC Schwalbach","GER"]
[null,"Noah Wulff","Wulff","Noah","GER0155","U16","SG '94 Hannover","GER"]
[null,"Yeliskan Yilmaz","Yilmaz","Yeliskan","GER0109","OPEN","Minimannia Aachen","GER"]
[null,{"$f":"TRIM(CONCATENATE(D1415,\" \",C1415))","v":"Manuel Martinez"},"Martinez","Manuel","GIB0001","VET","Europa FC TSC","GIB"]
[null,"John Field","Field","John","GIB0002","VET","Tiburones FM","GIB"]
[null,"Lawrence Alvarez","Alvarez","Lawrence","GIB0003","VET","Europa FC TSC","GIB"]
[null,"Guy Palmer","Palmer","Guy","GIB0004","VET","Turia","GIB"]
[null,"Eddie Tellez","Tellez","Eddie","GIB0005","VET","Europa FC TSC","GIB"]
[null,"Tom Santos","Santos","Tom","GIB0007","VET","Free Agent","GIB"]
[null,"Richard Osborne","Osborne","Richard","GIB0008",null,"Gibraltar TSA","GIB"]
[null,"Jose Luis Bonavia","Bonavia","Jose Luis","GIB0009","VET","Tiburones FM","GIB"]
[null,"Kyle Tellez","Tellez","Kyle","GIB0015","OPEN","Europa FC TSC","GIB"]
[null,"Patrick Dean","Dean","Patrick","GIB0049","VET","Europa FC TSC","GIB"]
[null,"Francis Avellano","Avellano","Francis","GIB0051","OPEN","Europa FC TSC","GIB"]
[null,"Niall Dean","Dean","Niall","GIB0052","OPEN","Europa FC TSC","GIB"]
[null,"Leon Avellano","Avellano","Leon","GIB0053","OPEN","Europa FC TSC","GIB"]
[null,"Jonathan Dotto","Dotto","Jonathan","GIB0056","OPEN","Europa FC TSC","GIB"]
[null,"Richard Berliaque","Berliaque","Richard","GIB0057","VET","Europa FC TSC","GIB"]
[null,"Jose Luis Sanchez","Sanchez","Jose Luis","GIB0058","VET","Europa FC TSC","GIB"]
[null,"Jason Canilla","Canilla","Jason","GIB0059","VET","Europa FC TSC","GIB"]
[null,"Gerald Laguea","Laguea","Gerald","GIB0065","VET","Europa FC TSC","GIB"]
[null,"Lazaros Papakonstantinou","Papakonstantinou","Lazaros","GRE0001","VET","Atlas FTC","GRE"]
[null,"Leonidas Koutroumanos","Koutroumanos","Leonidas","GRE0002","VET","Piraeus Lions TSC","GRE"]
[null,"Marcos Kapsabelis","Kapsabelis","Marcos","GRE0003","VET","Foggia CT","GRE"]
[null,"Efthymios Koutroumanos","Koutroumanos","Efthymios","GRE0004","VET","Free Agent","GRE"]
[null,"Periklis Dimopoulos","Dimopoulos","Periklis","GRE0005","VET","ACS Perugia 1973","GRE"]
[null,"Adrianos Dervis","Dervis","Adrianos","GRE0006","VET","Proteas Athens SC","GRE"]
[null,"Miltiadis Gkiochalas","Gkiochalas","Miltiadis","GRE0007","OPEN","Palermo Subbuteo","GRE"]
[null,"Konstantinos Triantafillou","Triantafillou","Konstantinos","GRE0008","VET","TSC Falcons Athens","GRE"]
[null,"Georgios Koutis","Koutis","Georgios","GRE0009","OPEN","TSC Falcons Athens","GRE"]
[null,"Evripidis Prantsoudis","Prantsoudis","Evripidis","GRE0010","OPEN","Proteas Athens SC","GRE"]
[null,"Evgenios Plytas","Plytas","Evgenios","GRE0011","VET","SPQR MMIX Roma","GRE"]
[null,"Ioannis Ntakas","Ntakas","Ioannis","GRE0012","OPEN","Free Agent","GRE"]
[null,"Dimitrios Stamatopoulos","Stamatopoulos","Dimitrios","GRE0013","VET","Piraeus Lions TSC","GRE"]
[null,"Nikolaos Beis","Beis","Nikolaos","GRE0014","OPEN","Olympia CS","GRE"]
[null,"Christos Pitsaris","Pitsaris","Christos","GRE0015","OPEN","Crimson Horses","GRE"]
[null,"Anargyros Poulidis","Poulidis","Anargyros","GRE0016","VET","Free Agent","GRE"]
[null,"Georgios Petronikolos","Petronikolos","Georgios","GRE0017","VET","Free Agent","GRE"]
[null,"Nektarios Psihas","Psihas","Nektarios","GRE0018","OPEN","Free Agent","GRE"]
[null,"Michalis Vernados","Vernados","Michalis","GRE0019","VET","Free Agent","GRE"]
[null,"Alexis Vasiliou","Vasiliou","Alexis","GRE0020","OPEN","Free Agent","GRE"]
[null,"Achilleas Bogdanidis","Bogdanidis","Achilleas","GRE0021","OPEN","Polis Athlitikos Syllogos Daskaliou Kerateas","GRE"]
[null,"Christos Kidis","Kidis","Christos","GRE0023","OPEN","Free Agent","GRE"]
[null,"Nikolaos Sklavounos","Sklavounos","Nikolaos","GRE0024","VET","Free Agent","GRE"]
[null,"Serafim Kazantzoglou","Kazantzoglou","Serafim","GRE0025","VET","Free Agent","GRE"]
[null,"Nikolaos Skenteris","Skenteris","Nikolaos","GRE0026","VET","Free Agent","GRE"]
[null,"Michalis Karatarakis","Karatarakis","Michalis","GRE0027","VET","Free Agent","GRE"]
[null,"Panagiotis Valantasis","Valantasis","Panagiotis","GRE0028","VET","Free Agent","GRE"]
[null,"Stavros Hotzakis","Hotzakis","Stavros","GRE0029","VET","Free Agent","GRE"]
[null,"Georgios Georgopoulos","Georgopoulos","Georgios","GRE0030","VET","Free Agent","GRE"]
[null,"Nikolaos Krevvatas","Krevvatas","Nikolaos","GRE0031","VET","Free Agent","GRE"]
[null,"Nikolaos Sklavounakos","Sklavounakos","Nikolaos","GRE0032","VET","Free Agent","GRE"]
[null,"Vasileios Papathanasiou","Papathanasiou","Vasileios","GRE0033","OPEN","Free Agent","GRE"]
[null,"Nikolaos Kolidakis","Kolidakis","Nikolaos","GRE0034","VET","Free Agent","GRE"]
[null,"Georgios Kolidakis","Kolidakis","Georgios","GRE0035","OPEN","Free Agent","GRE"]
[null,"Panagiotis Michalatos","Michalatos","Panagiotis","GRE0036","VET","Free Agent","GRE"]
[null,"Panagiotis Argirakoulis","Argirakoulis","Panagiotis","GRE0037","VET","Free Agent","GRE"]
[null,"Manos Vernadakis","Vernadakis","Manos","GRE0038","OPEN","Free Agent","GRE"]
[null,"Spiros Pensas","Pensas","Spiros","GRE0039","VET","Free Agent","GRE"]
[null,"Dimitrios Vrettakos","Vrettakos","Dimitrios","GRE0040","VET","Free Agent","GRE"]
[null,"Nikolaos Tsoukanaras","Tsoukanaras","Nikolaos","GRE0041","OPEN","Free Agent","GRE"]
[null,"Kostas Fitos","Fitos","Kostas","GRE0042","OPEN","Evia CAN","GRE"]
[null,"Charalambos Charalampidis","Charalampidis","Charalambos","GRE0043","OPEN","Free Agent","GRE"]
[null,"Christos Pouris","Pouris","Christos","GRE0044","VET","Free Agent","GRE"]
[null,"Gerasimos Ioannou","Ioannou","Gerasimos","GRE0045","OPEN","Free Agent","GRE"]
[null,"Pavlos Caseley","Caseley","Pavlos","GRE0046","VET","Free Agent","GRE"]
[null,"Nasos Drossopoulos","Drossopoulos","Nasos","GRE0047","VET","Free Agent","GRE"]
[null,{"$f":"TRIM(CONCATENATE(D1479,\" \",C1479))","v":"Nikolaos Arvanitis"},"Arvanitis","Nikolaos","GRE0048","OPEN","Free Agent","GRE"]
[null,"Serafeim Koulosousas","Koulosousas","Serafeim","GRE0049","VET","Proteas Athens SC","GRE"]
[null,"Georgios Sklavounos","Sklavounos","Georgios","GRE0050","VET","Evia CAN","GRE"]
[null,"Athanasios Giaglis","Giaglis","Athanasios","GRE0051","OPEN","Free Agent","GRE"]
[null,"Damianos Polichronidis Polichroniadis","Polichronidis Polichroniadis","Damianos","GRE0052","OPEN","Free Agent","GRE"]
[null,"Pavlos Tsimpoukas","Tsimpoukas","Pavlos","GRE0053","OPEN","Free Agent","GRE"]
[null,"Stavros Argyropoulos","Argyropoulos","Stavros","GRE0054","VET","Free Agent","GRE"]
[null,"Vasileios Manoloulis","Manoloulis","Vasileios","GRE0055","VET","Glyfada United TSC","GRE"]
[null,"Apostolis Metzidakis","Metzidakis","Apostolis","GRE0056","OPEN","Free Agent","GRE"]
[null,"Athanasios Bartzis","Bartzis","Athanasios","GRE0057","OPEN","Noctuas Athens TSC","GRE"]
[null,"Georgios Bizas","Bizas","Georgios","GRE0058","OPEN","Proteas Athens SC","GRE"]
[null,"Charalampos Chaitas","Chaitas","Charalampos","GRE0059","VET","Free Agent","GRE"]
[null,"Michail Filippousis","Filippousis","Michail","GRE0060","OPEN","Free Agent","GRE"]
[null,"Emanouil Fousteris","Fousteris","Emanouil","GRE0061","VET","Free Agent","GRE"]
[null,"Giannis Gouvelis","Gouvelis","Giannis","GRE0062","OPEN","Free Agent","GRE"]
[null,"Ioannis D. Mavroeidakos","Mavroeidakos","Ioannis D.","GRE0063","OPEN","Free Agent","GRE"]
[null,"Apostolos Kokkalis","Kokkalis","Apostolos","GRE0064","VET","Free Agent","GRE"]
[null,"Serafeim Kontos","Kontos","Serafeim","GRE0065","VET","FTC Caen","GRE"]
[null,"Konstantinos Kouvelas","Kouvelas","Konstantinos","GRE0066","OPEN","Free Agent","GRE"]
[null,"Manousos Makrydakis","Makrydakis","Manousos","GRE0067","OPEN","Free Agent","GRE"]
[null,"Ioannis H. Mavroeidakos","Mavroeidakos","Ioannis H.","GRE0068","OPEN","Free Agent","GRE"]
[null,"Panagiotis Ioakimidis","Ioakimidis","Panagiotis","GRE0069","OPEN","Free Agent","GRE"]
[null,"Spyridon Mavroeidakos","Mavroeidakos","Spyridon","GRE0070","OPEN","Free Agent","GRE"]
[null,"Ioannis Metaxas","Metaxas","Ioannis","GRE0071","VET","Free Agent","GRE"]
[null,"Konstantinos Moros","Moros","Konstantinos","GRE0072","OPEN","Free Agent","GRE"]
[null,"Dimitris Garefalakis","Garefalakis","Dimitris","GRE0073","VET","Free Agent","GRE"]
[null,"Giannis Nikolopoulos","Nikolopoulos","Giannis","GRE0074","OPEN","Free Agent","GRE"]
[null,"Andreas Nteros","Nteros","Andreas","GRE0075","OPEN","Glyfada United TSC","GRE"]
[null,"Konstantinos Papadakis","Papadakis","Konstantinos","GRE0076","OPEN","Noctuas Athens TSC","GRE"]
[null,"Dimitris Papadoukakis","Papadoukakis","Dimitris","GRE0077","VET","Free Agent","GRE"]
[null,"Nikolaos Pappas","Pappas","Nikolaos","GRE0078","VET","Olympia CS","GRE"]
[null,"Georgios Dimakeas","Dimakeas","Georgios","GRE0079","VET","Roligans Ilioupolis TSC","GRE"]
[null,"Georgios Tsompanidis","Tsompanidis","Georgios","GRE0080","OPEN","Free Agent","GRE"]
[null,"Dimos Tsompanidis","Tsompanidis","Dimos","GRE0081","OPEN","Free Agent","GRE"]
[null,"Christos Rikos","Rikos","Christos","GRE0082","OPEN","Free Agent","GRE"]
[null,"Christos Archimandritis","Archimandritis","Christos","GRE0083","VET","Free Agent","GRE"]
[null,"Georgios Angelinas","Angelinas","Georgios","GRE0084","VET","Piraeus Lions TSC","GRE"]
[null,"Periklis Biskinis","Biskinis","Periklis","GRE0085","OPEN","Free Agent","GRE"]
[null,"Georgios Symeon","Symeon","Georgios","GRE0086","OPEN","Free Agent","GRE"]
[null,"Alexandros Tzelatis","Tzelatis","Alexandros","GRE0087","OPEN","Free Agent","GRE"]
[null,"Evangelos Pritsis","Pritsis","Evangelos","GRE0088","OPEN","Free Agent","GRE"]
[null,"Ioannis Kordantonopoulos","Kordantonopoulos","Ioannis","GRE0089","OPEN","Noctuas Athens TSC","GRE"]
[null,"Athanasios Kordantonopoulos","Kordantonopoulos","Athanasios","GRE0090","OPEN","Roligans Ilioupolis TSC","GRE"]
[null,"Anastasios Priftis","Priftis","Anastasios","GRE0091","VET","Roligans Ilioupolis TSC","GRE"]
[null,"Christos Asimakopoulos","Asimakopoulos","Christos","GRE0092","VET","Free Agent","GRE"]
[null,"Christos Petropoulos","Petropoulos","Christos","GRE0093","OPEN","Free Agent","GRE"]
[null,"Georgios Papanikolaou","Papanikolaou","Georgios","GRE0094","VET","Free Agent","GRE"]
[null,"Nikoletta Arvanitaki","Arvanitaki","Nikoletta","GRE0095","OPEN","Roligans Ilioupolis TSC","GRE"]
[null,"Anastasia Stamatopoulou","Stamatopoulou","Anastasia","GRE0096","OPEN","Free Agent","GRE"]
[null,"Penny Liaromati","Liaromati","Penny","GRE0097","OPEN","Free Agent","GRE"]
[null,"Violetta Xyki","Xyki","Violetta","GRE0098","OPEN","Free Agent","GRE"]
[null,"Antonios Theologos","Theologos","Antonios","GRE0099","VET","Free Agent","GRE"]
[null,"Vasileios Kadinopoulos","Kadinopoulos","Vasileios","GRE0100","VET","Noctuas Athens TSC","GRE"]
[null,"Eleftheria Papanikolaou","Papanikolaou","Eleftheria","GRE0101","VET","Glyfada United TSC","GRE"]
[null,"Nada Plesa","Plesa","Nada","GRE0102","OPEN","Free Agent","GRE"]
[null,"Nikolaos Papoulias","Papoulias","Nikolaos","GRE0103","VET","Scarlet Battalion SC","GRE"]
[null,"Angelos Kourouklis","Kourouklis","Angelos","GRE0104","VET","Free Agent","GRE"]
[null,"Apostolos Christodoulou","Christodoulou","Apostolos","GRE0105","VET","Free Agent","GRE"]
[null,"Velissarios Fragkakis","Fragkakis","Velissarios","GRE0106","OPEN","TSC Falcons Athens","GRE"]
[null,"Spyridon Chantzaras","Chantzaras","Spyridon","GRE0107","OPEN","TSC Falcons Athens","GRE"]
[null,"Dionysios Koutis","Koutis","Dionysios","GRE0108","OPEN","TSC Falcons Athens","GRE"]
[null,"Nikolaos Naskos","Naskos","Nikolaos","GRE0109","VET","Athinaikos CS","GRE"]
[null,"Panagiotis Aliadis","Aliadis","Panagiotis","GRE0110","OPEN","Athinaikos CS","GRE"]
[null,"Lampros Drossopoulos","Drossopoulos","Lampros","GRE0111","VET","Athinaikos CS","GRE"]
[null,{"$f":"TRIM(CONCATENATE(D1543,\" \",C1543))","v":"Vasileios Koutsompinas"},"Koutsompinas","Vasileios","GRE0112","OPEN","Noctuas Athens TSC","GRE"]
[null,"Ioannis Voulgaris","Voulgaris","Ioannis","GRE0113","VET","Atlas FTC","GRE"]
[null,"Evaggelos Liolios","Liolios","Evaggelos","GRE0114","VET","Thessaloniki SC TSC","GRE"]
[null,"Christos Karadedos","Karadedos","Christos","GRE0115","VET","Free Agent","GRE"]
[null,"Alexandros Prinias","Prinias","Alexandros","GRE0116","VET","Free Agent","GRE"]
[null,"Vasilis Vavourakis","Vavourakis","Vasilis","GRE0117","OPEN","Free Agent","GRE"]
[null,"Michalis Papadakis","Papadakis","Michalis","GRE0118","OPEN","Free Agent","GRE"]
[null,"Athanasios Vlassopoulos","Vlassopoulos","Athanasios","GRE0119","OPEN","Proteas Athens SC","GRE"]
[null,"Ioannis Sioutis","Sioutis","Ioannis","GRE0120","OPEN","TSC Falcons Athens","GRE"]
[null,"Athanasios Karamanis","Karamanis","Athanasios","GRE0121","VET","Roligans Ilioupolis TSC","GRE"]
[null,"Paris Papadopoulos","Papadopoulos","Paris","GRE0122","VET","Free Agent","GRE"]
[null,"Dimitrios Papadopoulos","Papadopoulos","Dimitrios","GRE0123","VET","Free Agent","GRE"]
[null,"Stratos Routsis","Routsis","Stratos","GRE0124","VET","Free Agent","GRE"]
[null,"Aggelos Tsakiris","Tsakiris","Aggelos","GRE0125","VET","Free Agent","GRE"]
[null,"Andreas Eleftheriou","Eleftheriou","Andreas","GRE0126","VET","Piraeus Lions TSC","GRE"]
[null,"Dimitrios Tziortziotis","Tziortziotis","Dimitrios","GRE0127","OPEN","Free Agent","GRE"]
[null,"Kostas Arabatzis","Arabatzis","Kostas","GRE0128","VET","Free Agent","GRE"]
[null,"Thomas Arvanitakis","Arvanitakis","Thomas","GRE0129","OPEN","Crimson Horses","GRE"]
[null,"Theodoros Tsagiannis","Tsagiannis","Theodoros","GRE0130","VET","Free Agent","GRE"]
[null,"Konstantinos Kechris","Kechris","Konstantinos","GRE0131","VET","SPQR MMIX Roma","GRE"]
[null,"Georgios Papadopoulos","Papadopoulos","Georgios","GRE0132","VET","Atlas FTC","GRE"]
[null,"Antonios Kastellanos","Kastellanos","Antonios","GRE0133","VET","Olympia CS","GRE"]
[null,"Konstantinos Stamokostas","Stamokostas","Konstantinos","GRE0134","OPEN","Atlas FTC","GRE"]
[null,"Spyridon Patrinos","Patrinos","Spyridon","GRE0135","OPEN","Olympia CS","GRE"]
[null,"Dimitrios Kosmopoulos","Kosmopoulos","Dimitrios","GRE0136","OPEN","Proteas Athens SC","GRE"]
[null,"Gerasimos Apergis","Apergis","Gerasimos","GRE0137","VET","Free Agent","GRE"]
[null,"Kyriakos Tzitziris","Tzitziris","Kyriakos","GRE0138","OPEN","Free Agent","GRE"]
[null,"Dimitrios Patrinos","Patrinos","Dimitrios","GRE0139","OPEN","Olympia CS","GRE"]
[null,"Athanasios Fotopoulos","Fotopoulos","Athanasios","GRE0140","VET","Free Agent","GRE"]
[null,"Panagiotis Vasilopoulos","Vasilopoulos","Panagiotis","GRE0141","VET","Athinaikos CS","GRE"]
[null,"Christos Angelinas","Angelinas","Christos","GRE0142","VET","Avenir Subbuteo Hennuyer","GRE"]
[null,"Athina Baira","Baira","Athina","GRE0143","VET","Free Agent","GRE"]
[null,"Alexandros Christou","Christou","Alexandros","GRE0144","VET","Free Agent","GRE"]
[null,"Alex Gouloulis","Gouloulis","Alex","GRE0145","OPEN","Larissa TFC","GRE"]
[null,"Panagiotis Kyriakoulakos","Kyriakoulakos","Panagiotis","GRE0146","OPEN","Free Agent","GRE"]
[null,"Argyris Zavrakas","Zavrakas","Argyris","GRE0147","OPEN","Free Agent","GRE"]
[null,"Vasilis Nousios","Nousios","Vasilis","GRE0148","OPEN","Crimson Horses","GRE"]
[null,"Tasos Bairas","Bairas","Tasos","GRE0149","VET","Free Agent","GRE"]
[null,"Giorgos Niavis","Niavis","Giorgos","GRE0150","OPEN","Crimson Horses","GRE"]
[null,"Dimitris Georgakis","Georgakis","Dimitris","GRE0151","OPEN","Free Agent","GRE"]
[null,"Stilianos Kyriakoulakos","Kyriakoulakos","Stilianos","GRE0152","VET","Free Agent","GRE"]
[null,"Theodoros Tsoutsas","Tsoutsas","Theodoros","GRE0154","OPEN","Crimson Horses","GRE"]
[null,"John Meros","Meros","John","GRE0155","OPEN","Free Agent","GRE"]
[null,"Ioannis Kakavas","Kakavas","Ioannis","GRE0156","VET","Athinaikos CS","GRE"]
[null,"Kostas Mitrakopoulos","Mitrakopoulos","Kostas","GRE0157","OPEN","Free Agent","GRE"]
[null,"Menelaos Karavasilis","Karavasilis","Menelaos","GRE0158","OPEN","Larissa TFC","GRE"]
[null,"Nikolaos Karavasilis","Karavasilis","Nikolaos","GRE0159","OPEN","Crimson Horses","GRE"]
[null,"Nikolaos Georgiopoulos","Georgiopoulos","Nikolaos","GRE0160","VET","Free Agent","GRE"]
[null,"Stefanos Krikelis","Krikelis","Stefanos","GRE0161","VET","Charilaos Trikoupis","GRE"]
[null,"Dimitrios Kourtis","Kourtis","Dimitrios","GRE0162","OPEN","Free Agent","GRE"]
[null,"Konstantinos Kaperonis","Kaperonis","Konstantinos","GRE0163","VET","Proteas Athens SC","GRE"]
[null,"Vasileios Zimeras","Zimeras","Vasileios","GRE0164","VET","Proteas Athens SC","GRE"]
[null,"Konstantinos Mavraganis","Mavraganis","Konstantinos","GRE0165","VET","Free Agent","GRE"]
[null,"Lambros Sioulas","Sioulas","Lambros","GRE0166","OPEN","Charilaos Trikoupis","GRE"]
[null,"Georgios Tzimas","Tzimas","Georgios","GRE0167","OPEN","Free Agent","GRE"]
[null,"Dimitris Gortzas","Gortzas","Dimitris","GRE0168","OPEN","Free Agent","GRE"]
[null,"Konstantinos Kordatos","Kordatos","Konstantinos","GRE0169","OPEN","Olympia CS","GRE"]
[null,"Konstantinos Seses","Seses","Konstantinos","GRE0170","OPEN","Olympia CS","GRE"]
[null,"Stavros Sioulas","Sioulas","Stavros","GRE0171","VET","Charilaos Trikoupis","GRE"]
[null,"Dimitris Kourabas","Kourabas","Dimitris","GRE0172","VET","Subbuteurs Athens TSC","GRE"]
[null,"Dimitrios Mavromitros","Mavromitros","Dimitrios","GRE0173","VET","Free Agent","GRE"]
[null,"Alexandros Theodosopoulos","Theodosopoulos","Alexandros","GRE0174","VET","Free Agent","GRE"]
[null,"Ioannis Mallias","Mallias","Ioannis","GRE0175","OPEN","Free Agent","GRE"]
[null,"Ioannis Kosmopoulos","Kosmopoulos","Ioannis","GRE0176","OPEN","Free Agent","GRE"]
[null,{"$f":"TRIM(CONCATENATE(D1607,\" \",C1607))","v":"Dimitrios Mallias"},"Mallias","Dimitrios","GRE0177","VET","Piraeus Lions TSC","GRE"]
[null,"Dimosthenis Cheiras","Cheiras","Dimosthenis","GRE0178","VET","Free Agent","GRE"]
[null,"Theodoros Papavasiliou","Papavasiliou","Theodoros","GRE0179","VET","Free Agent","GRE"]
[null,"Eleftherios Voutsinas","Voutsinas","Eleftherios","GRE0180","VET","Free Agent","GRE"]
[null,"Nikolaos Palaiologos","Palaiologos","Nikolaos","GRE0181","VET","Free Agent","GRE"]
[null,"Panagiotis Axiomakaros","Axiomakaros","Panagiotis","GRE0182","VET","Free Agent","GRE"]
[null,"Ioannis Kalavros","Kalavros","Ioannis","GRE0183","VET","Free Agent","GRE"]
[null,"Konstantinos Alexiou","Alexiou","Konstantinos","GRE0184","OPEN","Athinaikos CS","GRE"]
[null,"Christos Fanaras","Fanaras","Christos","GRE0185","OPEN","Free Agent","GRE"]
[null,"Athanasios Zavrakas","Zavrakas","Athanasios","GRE0186","OPEN","Crimson Horses","GRE"]
[null,"Thrasyvoulos Gagas","Gagas","Thrasyvoulos","GRE0187","OPEN","Crimson Horses","GRE"]
[null,"Georgios Seferos","Seferos","Georgios","GRE0188","VET","Free Agent","GRE"]
[null,"Giannis Psarras","Psarras","Giannis","GRE0189","VET","Free Agent","GRE"]
[null,"Evangelos Kotrotsos","Kotrotsos","Evangelos","GRE0190","U20","Roligans Ilioupolis TSC","GRE"]
[null,"Antonios Vlastos","Vlastos","Antonios","GRE0191","VET","Free Agent","GRE"]
[null,"Kostantinos Dalietos","Dalietos","Kostantinos","GRE0192","OPEN","Free Agent","GRE"]
[null,"Georgios Androutsopoulos","Androutsopoulos","Georgios","GRE0193","OPEN","Free Agent","GRE"]
[null,"Antonis Vikatos","Vikatos","Antonis","GRE0194","VET","Free Agent","GRE"]
[null,"Alekos Morias","Morias","Alekos","GRE0195","OPEN","Free Agent","GRE"]
[null,"Antonis Vlachopoulos","Vlachopoulos","Antonis","GRE0196","OPEN","Athinaikos CS","GRE"]
[null,"Vasilis Rahmanis","Rahmanis","Vasilis","GRE0197","VET","Free Agent","GRE"]
[null,"Efthimios Tosioudis","Tosioudis","Efthimios","GRE0198","OPEN","Free Agent","GRE"]
[null,"Thanos Kaffes","Kaffes","Thanos","GRE0199","OPEN","Free Agent","GRE"]
[null,"Giannis Kailoglou","Kailoglou","Giannis","GRE0200","OPEN","Free Agent","GRE"]
[null,"Nikolaos Tosioudis","Tosioudis","Nikolaos","GRE0201","OPEN","Larissa TFC","GRE"]
[null,"Nikolaos Moshidis","Moshidis","Nikolaos","GRE0202","OPEN","Free Agent","GRE"]
[null,"Dimitrios Kontogiannis","Kontogiannis","Dimitrios","GRE0203","VET","Free Agent","GRE"]
[null,"Nikolaos Giannopoulos","Giannopoulos","Nikolaos","GRE0204","VET","Free Agent","GRE"]
[null,"Marios Cheiras","Cheiras","Marios","GRE0205","VET","Free Agent","GRE"]
[null,"Nikolaos Zafirakis","Zafirakis","Nikolaos","GRE0206","OPEN","Free Agent","GRE"]
[null,"Michalis Zioulis","Zioulis","Michalis","GRE0207","OPEN","Free Agent","GRE"]
[null,"Kostas Ftakas","Ftakas","Kostas","GRE0208","OPEN","Free Agent","GRE"]
[null,"Aggelos Papaioannoy","Papaioannoy","Aggelos","GRE0209","OPEN","Free Agent","GRE"]
[null,"Evaggelos Stergioulas","Stergioulas","Evaggelos","GRE0210","OPEN","Free Agent","GRE"]
[null,"Spyros Polizos","Polizos","Spyros","GRE0211","OPEN","TSC Falcons Athens","GRE"]
[null,"Stilianos Matsopoulos","Matsopoulos","Stilianos","GRE0212","OPEN","Charilaos Trikoupis","GRE"]
[null,"Leandros Sourlas","Sourlas","Leandros","GRE0213","OPEN","Scarlet Battalion SC","GRE"]
[null,"Haralampos Hatziliadis","Hatziliadis","Haralampos","GRE0214","OPEN","Free Agent","GRE"]
[null,"Ioannis Hatziliadis","Hatziliadis","Ioannis","GRE0215","U20","Free Agent","GRE"]
[null,"Theodoros Mitropoulos","Mitropoulos","Theodoros","GRE0216","OPEN","Free Agent","GRE"]
[null,"Georgios Kollias","Kollias","Georgios","GRE0217","OPEN","Noctuas Athens TSC","GRE"]
[null,"Nikolaos Tselepidis","Tselepidis","Nikolaos","GRE0218","VET","Scarlet Battalion SC","GRE"]
[null,"Giorgos Zavos","Zavos","Giorgos","GRE0219","VET","Scarlet Battalion SC","GRE"]
[null,"Giorgos Kartalis","Kartalis","Giorgos","GRE0220","VET","Free Agent","GRE"]
[null,"Panagiotis Charatsis","Charatsis","Panagiotis","GRE0221","VET","Scarlet Battalion SC","GRE"]
[null,"Konstantinos Voikos","Voikos","Konstantinos","GRE0222","OPEN","Free Agent","GRE"]
[null,"Paraskevas Aggelakos","Aggelakos","Paraskevas","GRE0223","VET","Free Agent","GRE"]
[null,"Nikolaos Papadogonas","Papadogonas","Nikolaos","GRE0224","OPEN","Free Agent","GRE"]
[null,"Makis Tsitouras","Tsitouras","Makis","GRE0225","OPEN","Free Agent","GRE"]
[null,"Theofilos Karagianniotis","Karagianniotis","Theofilos","GRE0226","OPEN","Roligans Ilioupolis TSC","GRE"]
[null,"Giorgos Drazinakis","Drazinakis","Giorgos","GRE0227","VET","Scarlet Battalion SC","GRE"]
[null,"Dimitrios Dimopoulos","Dimopoulos","Dimitrios","GRE0228","OPEN","SC Fiamme Azzurre","GRE"]
[null,"Rafail Dimopoulos","Dimopoulos","Rafail","GRE0229","OPEN","Free Agent","GRE"]
[null,"Georgios Kolidakis Jr","Kolidakis Jr","Georgios","GRE0230","OPEN","Free Agent","GRE"]
[null,"Aggelos Kolidakis","Kolidakis","Aggelos","GRE0231","OPEN","Free Agent","GRE"]
[null,"Georgios Karatarakis","Karatarakis","Georgios","GRE0232","OPEN","Proteas Athens SC","GRE"]
[null,"Nikiforos Karatarakis","Karatarakis","Nikiforos","GRE0233","OPEN","Free Agent","GRE"]
[null,"Giorgos Tsagiannis","Tsagiannis","Giorgos","GRE0234","OPEN","Free Agent","GRE"]
[null,"Konstantinos Valantasis","Valantasis","Konstantinos","GRE0235","OPEN","Free Agent","GRE"]
[null,"Nikolaos Valantasis","Valantasis","Nikolaos","GRE0236","OPEN","Free Agent","GRE"]
[null,"Alexandros Argyrakoulis","Argyrakoulis","Alexandros","GRE0237","OPEN","Free Agent","GRE"]
[null,"Pavlos Vrettakos","Vrettakos","Pavlos","GRE0238","OPEN","Free Agent","GRE"]
[null,"Panagiotis Vrettakos","Vrettakos","Panagiotis","GRE0239","OPEN","Free Agent","GRE"]
[null,"Odysseas Papadopoulos","Papadopoulos","Odysseas","GRE0240","OPEN","Free Agent","GRE"]
[null,{"$f":"TRIM(CONCATENATE(D1671,\" \",C1671))","v":"Dimitrios Koulosousas"},"Koulosousas","Dimitrios","GRE0241","OPEN","Proteas Athens SC","GRE"]
[null,"Eleni Koulosousa","Koulosousa","Eleni","GRE0242","OPEN","Free Agent","GRE"]
[null,"Eirini Patrikiou","Patrikiou","Eirini","GRE0243","OPEN","Proteas Athens SC","GRE"]
[null,"Ioannis Vlassopoulos","Vlassopoulos","Ioannis","GRE0244","OPEN","Proteas Athens SC","GRE"]
[null,"Artemis Kechris","Kechris","Artemis","GRE0245","OPEN","Free Agent","GRE"]
[null,"Dimitrios-Marios Papakonstantinou","Papakonstantinou","Dimitrios-Marios","GRE0246","U20","Free Agent","GRE"]
[null,"Efstratios Moros","Moros","Efstratios","GRE0247","OPEN","Free Agent","GRE"]
[null,"Nikolaos Papanikolaou","Papanikolaou","Nikolaos","GRE0248","OPEN","Free Agent","GRE"]
[null,"Robert Ohrstrom","Ohrstrom","Robert","GRE0249","OPEN","Free Agent","GRE"]
[null,"Thodoris Xiarhogiannopoulos","Xiarhogiannopoulos","Thodoris","GRE0250","OPEN","Free Agent","GRE"]
[null,"Ilias Koukoutsas","Koukoutsas","Ilias","GRE0251","OPEN","Free Agent","GRE"]
[null,"Marios Bourtzonis","Bourtzonis","Marios","GRE0252","OPEN","Free Agent","GRE"]
[null,"Petros Theologos","Theologos","Petros","GRE0253","OPEN","Free Agent","GRE"]
[null,"Christos Kourouklis","Kourouklis","Christos","GRE0254","OPEN","Free Agent","GRE"]
[null,"Stefanos Smyrneos","Smyrneos","Stefanos","GRE0255","OPEN","Free Agent","GRE"]
[null,"Sofia Prifti","Prifti","Sofia","GRE0256","OPEN","Free Agent","GRE"]
[null,"Aris Nomikos","Nomikos","Aris","GRE0257","OPEN","Free Agent","GRE"]
[null,"Evangelos Tsakopoulos","Tsakopoulos","Evangelos","GRE0258","OPEN","Free Agent","GRE"]
[null,"Nikolaos Arabatzis","Arabatzis","Nikolaos","GRE0259","OPEN","Free Agent","GRE"]
[null,"Manos Kapsabelis","Kapsabelis","Manos","GRE0260","OPEN","Free Agent","GRE"]
[null,"Anastasios Maroulas","Maroulas","Anastasios","GRE0261","OPEN","Free Agent","GRE"]
[null,"Manos Lysikatos","Lysikatos","Manos","GRE0262","OPEN","Free Agent","GRE"]
[null,"Tzanis Monemvasitis","Monemvasitis","Tzanis","GRE0263","OPEN","Free Agent","GRE"]
[null,"Dimitrios Ioannis Monemvasitis","Monemvasitis","Dimitrios Ioannis","GRE0264","OPEN","Free Agent","GRE"]
[null,"Dimitrios Sarantos Monemvasitis","Monemvasitis","Dimitrios Sarantos","GRE0265","U16","Free Agent","GRE"]
[null,"Giorgos Kilias","Kilias","Giorgos","GRE0266","OPEN","Free Agent","GRE"]
[null,"Dimitrios Liolios","Liolios","Dimitrios","GRE0267","OPEN","Free Agent","GRE"]
[null,"Dimitris Karatosidis","Karatosidis","Dimitris","GRE0268","OPEN","Free Agent","GRE"]
[null,"Kyriakos Arzoumanidis","Arzoumanidis","Kyriakos","GRE0269","OPEN","Free Agent","GRE"]
[null,"Kostas Kilias","Kilias","Kostas","GRE0270","OPEN","Free Agent","GRE"]
[null,"Giorgos Spinos","Spinos","Giorgos","GRE0271","U16","Free Agent","GRE"]
[null,"Orestis Christopoulos","Christopoulos","Orestis","GRE0272","OPEN","Athinaikos CS","GRE"]
[null,"Spyros Makkos","Makkos","Spyros","GRE0273","OPEN","Free Agent","GRE"]
[null,"Stelios Bairasm Jr","Bairasm Jr","Stelios","GRE0274","OPEN","Free Agent","GRE"]
[null,"Filippos Kakavas","Kakavas","Filippos","GRE0275","OPEN","Free Agent","GRE"]
[null,"Alexandros Zervas","Zervas","Alexandros","GRE0276","OPEN","Free Agent","GRE"]
[null,"Antonis Kiritsis","Kiritsis","Antonis","GRE0277","OPEN","Free Agent","GRE"]
[null,"Antonis Mpitras","Mpitras","Antonis","GRE0278","OPEN","Free Agent","GRE"]
[null,"Vaggelis Makkas","Makkas","Vaggelis","GRE0279","OPEN","Free Agent","GRE"]
[null,"Vasileios Mavromitros","Mavromitros","Vasileios","GRE0280","OPEN","Free Agent","GRE"]
[null,"Dionysia Koulosousa","Koulosousa","Dionysia","GRE0281","OPEN","Proteas Athens SC","GRE"]
[null,"Eftichios Delligianakis","Delligianakis","Eftichios","GRE0282","OPEN","Free Agent","GRE"]
[null,"Konstantinos Kordatos Jr","Kordatos Jr","Konstantinos","GRE0283","OPEN","Free Agent","GRE"]
[null,"Kostas Christodoulou","Christodoulou","Kostas","GRE0284","OPEN","Free Agent","GRE"]
[null,"Kostas Skafidas","Skafidas","Kostas","GRE0285","OPEN","Free Agent","GRE"]
[null,"Leonidas Tountas","Tountas","Leonidas","GRE0286","OPEN","Free Agent","GRE"]
[null,"Panagiotis Tsiamos","Tsiamos","Panagiotis","GRE0287","OPEN","Free Agent","GRE"]
[null,"Pantelis Dolmes","Dolmes","Pantelis","GRE0288","OPEN","Free Agent","GRE"]
[null,"Rafail Panagoulas","Panagoulas","Rafail","GRE0289","OPEN","Free Agent","GRE"]
[null,"Vaggelis Bairas","Bairas","Vaggelis","GRE0290","OPEN","Free Agent","GRE"]
[null,"Eirini Stamatiadou","Stamatiadou","Eirini","GRE0291","OPEN","Free Agent","GRE"]
[null,"Thanasis Tsiamos","Tsiamos","Thanasis","GRE0292","OPEN","Free Agent","GRE"]
[null,"Nikolaos Kiritsis","Kiritsis","Nikolaos","GRE0293","OPEN","Free Agent","GRE"]
[null,"Periklis Kontaxakis","Kontaxakis","Periklis","GRE0294","OPEN","Free Agent","GRE"]
[null,"Porfyrios Gialitsis","Gialitsis","Porfyrios","GRE0295","OPEN","Free Agent","GRE"]
[null,"Nikolaos Charatsis","Charatsis","Nikolaos","GRE0296","OPEN","Scarlet Battalion SC","GRE"]
[null,"Kostas Drazinakis","Drazinakis","Kostas","GRE0297","OPEN","Free Agent","GRE"]
[null,"Christos Chytas","Chytas","Christos","GRE0298","OPEN","TSC Falcons Athens","GRE"]
[null,"Athanasios Gkogkos","Gkogkos","Athanasios","GRE0299","VET","Olympia CS","GRE"]
[null,"Panagiotis Papahronopoulos","Papahronopoulos","Panagiotis","GRE0300","VET","Free Agent","GRE"]
[null,"Spyridon Maniatis","Maniatis","Spyridon","GRE0301","VET","Olympia CS","GRE"]
[null,"Vasileios Angelopoulos","Angelopoulos","Vasileios","GRE0302","VET","Olympia CS","GRE"]
[null,"Fotis Chondroudakis","Chondroudakis","Fotis","GRE0303","OPEN","Athinaikos CS","GRE"]
[null,"Konstantinos Zarogiannis","Zarogiannis","Konstantinos","GRE0304","OPEN","Olympia CS","GRE"]
[null,{"$f":"TRIM(CONCATENATE(D1735,\" \",C1735))","v":"Christos Psaradelis"},"Psaradelis","Christos","GRE0305","OPEN","BSC Schwalbach","GRE"]
[null,"Nikolaos Georgiou","Georgiou","Nikolaos","GRE0306","OPEN","Free Agent","GRE"]
[null,"Dimitris Xifaras","Xifaras","Dimitris","GRE0307","OPEN","Free Agent","GRE"]
[null,"Anargyros Tsitouras","Tsitouras","Anargyros","GRE0308","VET","Free Agent","GRE"]
[null,"Christos Kotrotsos","Kotrotsos","Christos","GRE0309","VET","Roligans Ilioupolis TSC","GRE"]
[null,"Dimitris Kontogiannis","Kontogiannis","Dimitris","GRE0310","OPEN","Free Agent","GRE"]
[null,"Nicos Agelakis","Agelakis","Nicos","GRE0311","OPEN","Larissa TFC","GRE"]
[null,"Haris Smyliotopoulos","Smyliotopoulos","Haris","GRE0312","VET","Free Agent","GRE"]
[null,"Konstantinos Apostolidis","Apostolidis","Konstantinos","GRE0313","VET","Free Agent","GRE"]
[null,"Georgios Athanasopoulos","Athanasopoulos","Georgios","GRE0314","OPEN","Free Agent","GRE"]
[null,"Georgios Golemis","Golemis","Georgios","GRE0315","OPEN","Glyfada United TSC","GRE"]
[null,"Giorgos Mamalakis","Mamalakis","Giorgos","GRE0316","VET","Free Agent","GRE"]
[null,"Stamatis Perdicaris","Perdicaris","Stamatis","GRE0317","VET","Free Agent","GRE"]
[null,"Iordanis Demirtzoglou","Demirtzoglou","Iordanis","GRE0319","OPEN","Free Agent","GRE"]
[null,"Filippos Panagopoulos","Panagopoulos","Filippos","GRE0320","OPEN","Free Agent","GRE"]
[null,"Ioannis Dragomanidis","Dragomanidis","Ioannis","GRE0321","VET","Free Agent","GRE"]
[null,"Manolis Markoudakis","Markoudakis","Manolis","GRE0322","OPEN","Free Agent","GRE"]
[null,"Harris Tsekouras","Tsekouras","Harris","GRE0323","OPEN","Free Agent","GRE"]
[null,"Andreas Mavrogiannis","Mavrogiannis","Andreas","GRE0324","OPEN","Thessaloniki SC TSC","GRE"]
[null,"Aggelos-Chrisostomos Kadinopoulos","Kadinopoulos","Aggelos-Chrisostomos","GRE0325","U20","Noctuas Athens TSC","GRE"]
[null,"Grigorios Kadinopoulos","Kadinopoulos","Grigorios","GRE0326","OPEN","Noctuas Athens TSC","GRE"]
[null,"Vasileios Apostolidis","Apostolidis","Vasileios","GRE0327","U20","Free Agent","GRE"]
[null,"Michail Apostolidis","Apostolidis","Michail","GRE0328","U20","Free Agent","GRE"]
[null,"Ioannis Salamouris","Salamouris","Ioannis","GRE0329","VET","TSC Falcons Athens","GRE"]
[null,"Sotiris Korologos","Korologos","Sotiris","GRE0330","VET","Noctuas Athens TSC","GRE"]
[null,"Nikolaos Georginis","Georginis","Nikolaos","GRE0331","OPEN","Free Agent","GRE"]
[null,"Paris Oiconomidis","Oiconomidis","Paris","GRE0332","VET","Free Agent","GRE"]
[null,"Georgios Genitsaropoulos","Genitsaropoulos","Georgios","GRE0333","OPEN","ASD SC Salernitana","GRE"]
[null,"Christoforos Alatsakis","Alatsakis","Christoforos","GRE0334","OPEN","Free Agent","GRE"]
[null,"Evaggelia Mpelanti","Mpelanti","Evaggelia","GRE0335","VET","Free Agent","GRE"]
[null,"Nasos Kalogiros","Kalogiros","Nasos","GRE0336","VET","Free Agent","GRE"]
[null,"Athanasios Kalogiros","Kalogiros","Athanasios","GRE0337","OPEN","Free Agent","GRE"]
[null,"Ioannis Androutsopoulos","Androutsopoulos","Ioannis","GRE0338","VET","Free Agent","GRE"]
[null,"Nikolaos Antonaropoulos","Antonaropoulos","Nikolaos","GRE0339","VET","Free Agent","GRE"]
[null,"Georgios Arvanitis","Arvanitis","Georgios","GRE0340","OPEN","Free Agent","GRE"]
[null,"Eleftherios Iliadis","Iliadis","Eleftherios","GRE0341","OPEN","Free Agent","GRE"]
[null,"Miltiadis Kounenos","Kounenos","Miltiadis","GRE0342","VET","Free Agent","GRE"]
[null,"Georgios Kounenos","Kounenos","Georgios","GRE0343","OPEN","Free Agent","GRE"]
[null,"Charalampos Polychronakis","Polychronakis","Charalampos","GRE0344","OPEN","Free Agent","GRE"]
[null,"Konstantinos Polykratis","Polykratis","Konstantinos","GRE0345","VET","Free Agent","GRE"]
[null,"Vardis Samaritakis","Samaritakis","Vardis","GRE0346","OPEN","Free Agent","GRE"]
[null,"Dimitrios Zymvragoudakis","Zymvragoudakis","Dimitrios","GRE0347","VET","Free Agent","GRE"]
[null,"George Pol Papadakis","Papadakis","George Pol","GRE0348","VET","Free Agent","GRE"]
[null,"Michail Marakis","Marakis","Michail","GRE0349","OPEN","Free Agent","GRE"]
[null,"Georgios Kalogiros","Kalogiros","Georgios","GRE0350","U20","Free Agent","GRE"]
[null,"Antonis Apostolou","Apostolou","Antonis","GRE0351","VET","Free Agent","GRE"]
[null,"Dimitris Papageorgiou","Papageorgiou","Dimitris","GRE0352","OPEN","Free Agent","GRE"]
[null,"Alexandros Niavis","Niavis","Alexandros","GRE0353","OPEN","Free Agent","GRE"]
[null,"Konstantinos Sourlas","Sourlas","Konstantinos","GRE0354","OPEN","Larissa TFC","GRE"]
[null,"Konstantinos Vlachopoulos","Vlachopoulos","Konstantinos","GRE0355","OPEN","Free Agent","GRE"]
[null,"Maria Papadea","Papadea","Maria","GRE0356","OPEN","Free Agent","GRE"]
[null,"Apostolis Triantafillou","Triantafillou","Apostolis","GRE0357","OPEN","Free Agent","GRE"]
[null,"Giorgos Apostolou","Apostolou","Giorgos","GRE0358","OPEN","Free Agent","GRE"]
[null,"Dimitra Koutsiana","Koutsiana","Dimitra","GRE0359","OPEN","Free Agent","GRE"]
[null,"Vasiliki Ioakim","Ioakim","Vasiliki","GRE0360","OPEN","Free Agent","GRE"]
[null,"Marion Tsiamalou","Tsiamalou","Marion","GRE0361","OPEN","Free Agent","GRE"]
[null,"Athanasios Nikou","Nikou","Athanasios","GRE0362","OPEN","Free Agent","GRE"]
[null,"Marianna Niavi","Niavi","Marianna","GRE0363","OPEN","Free Agent","GRE"]
[null,"Panagiotis (67) Vasilopoulos","Vasilopoulos","Panagiotis (67)","GRE0364","VET","Free Agent","GRE"]
[null,"Vasileios Vasilopoulos","Vasilopoulos","Vasileios","GRE0365","OPEN","Free Agent","GRE"]
[null,"Nikolaos Vasilopoulos","Vasilopoulos","Nikolaos","GRE0366","OPEN","Achaioi TSC","GRE"]
[null,"Konstantinos Stollas","Stollas","Konstantinos","GRE0367","U20","Free Agent","GRE"]
[null,"Emmanouil Sotiropoulos","Sotiropoulos","Emmanouil","GRE0368","OPEN","Achaioi TSC","GRE"]
[null,"Dimitrios Sotiropoulos","Sotiropoulos","Dimitrios","GRE0369","OPEN","Achaioi TSC","GRE"]
[null,{"$f":"TRIM(CONCATENATE(D1799,\" \",C1799))","v":"Georgios Papavasileiou"},"Papavasileiou","Georgios","GRE0370","OPEN","Free Agent","GRE"]
[null,"Stavros Panagiotakopoulos","Panagiotakopoulos","Stavros","GRE0371","OPEN","Free Agent","GRE"]
[null,"Giannis Mpratis","Mpratis","Giannis","GRE0372","OPEN","Free Agent","GRE"]
[null,"Giannis Stollas","Stollas","Giannis","GRE0373","OPEN","Free Agent","GRE"]
[null,"Panagiotis Kavgas","Kavgas","Panagiotis","GRE0374","OPEN","Free Agent","GRE"]
[null,"Nikolaos Paolino","Paolino","Nikolaos","GRE0375","OPEN","Free Agent","GRE"]
[null,"Pavlos Stollas","Stollas","Pavlos","GRE0376","VET","Free Agent","GRE"]
[null,"Andreas Papavasileiou","Papavasileiou","Andreas","GRE0377","OPEN","Free Agent","GRE"]
[null,"Panagiotis Sotiropoulos","Sotiropoulos","Panagiotis","GRE0378","VET","Free Agent","GRE"]
[null,"Alexandros Nanis","Nanis","Alexandros","GRE0379","OPEN","Free Agent","GRE"]
[null,"Alexandros Siotos","Siotos","Alexandros","GRE0380","OPEN","Free Agent","GRE"]
[null,"Lakis Hatzikonstantinou","Hatzikonstantinou","Lakis","GRE0381","OPEN","Free Agent","GRE"]
[null,"Panagiotis Konstantakos","Konstantakos","Panagiotis","GRE0382","VET","Noctuas Athens TSC","GRE"]
[null,"Pothiti Alatsaki","Alatsaki","Pothiti","GRE0383","OPEN","Free Agent","GRE"]
[null,"Evaggelos Falelakis","Falelakis","Evaggelos","GRE0384","VET","Free Agent","GRE"]
[null,"Markos Falelakis","Falelakis","Markos","GRE0385","OPEN","Free Agent","GRE"]
[null,"Pavlos Nezis","Nezis","Pavlos","GRE0386","OPEN","Free Agent","GRE"]
[null,"Nikolaos Argyros","Argyros","Nikolaos","GRE0387","OPEN","Roligans Ilioupolis TSC","GRE"]
[null,"Emmanouil Pantazopoulos","Pantazopoulos","Emmanouil","GRE0388","OPEN","Free Agent","GRE"]
[null,"Georgios Pantazopoulos","Pantazopoulos","Georgios","GRE0389","OPEN","Free Agent","GRE"]
[null,"Dimitrios Kolovos","Kolovos","Dimitrios","GRE0390","OPEN","Glyfada United TSC","GRE"]
[null,"John Karvounis","Karvounis","John","GRE0391","VET","Scarlet Battalion SC","GRE"]
[null,"Konstantinos Ifantis","Ifantis","Konstantinos","GRE0392","VET","Free Agent","GRE"]
[null,"Nikolaos Zacharopoulos","Zacharopoulos","Nikolaos","GRE0393","VET","Free Agent","GRE"]
[null,"Antonis Krysilas","Krysilas","Antonis","GRE0394","VET","Flaming Flickers SC","GRE"]
[null,"Orestis Kappatos","Kappatos","Orestis","GRE0395","VET","Free Agent","GRE"]
[null,"Panagiotis Kappatos","Kappatos","Panagiotis","GRE0396","U20","Free Agent","GRE"]
[null,"Georgios Vlassopoulos","Vlassopoulos","Georgios","GRE0397","U20","Proteas Athens SC","GRE"]
[null,"Timotheos Vaggelatos","Vaggelatos","Timotheos","GRE0398","OPEN","Free Agent","GRE"]
[null,"Nikolaos Lountzis","Lountzis","Nikolaos","GRE0399","OPEN","Free Agent","GRE"]
[null,"Eleftherios Chatzakis","Chatzakis","Eleftherios","GRE0400","VET","Atlas FTC","GRE"]
[null,"Panagiota Kouraba","Kouraba","Panagiota","GRE0401","OPEN","Free Agent","GRE"]
[null,"Nikolas Kourabas","Kourabas","Nikolas","GRE0402","OPEN","Free Agent","GRE"]
[null,"Ektoras Bartzis","Bartzis","Ektoras","GRE0403","U20","Noctuas Athens TSC","GRE"]
[null,"Christos Kouridakis","Kouridakis","Christos","GRE0404","VET","Glyfada United TSC","GRE"]
[null,"Spyridon Katsoulas","Katsoulas","Spyridon","GRE0405","VET","Piraeus Lions TSC","GRE"]
[null,"Evaggelos Theofanopoulos","Theofanopoulos","Evaggelos","GRE0406","OPEN","Free Agent","GRE"]
[null,"Christos Karouzos","Karouzos","Christos","GRE0407","OPEN","Athinaikos CS","GRE"]
[null,"Dimosthenis Kalatzis","Kalatzis","Dimosthenis","GRE0408","OPEN","Free Agent","GRE"]
[null,"Stelios Nitis","Nitis","Stelios","GRE0409","VET","Free Agent","GRE"]
[null,"Vasilios Nitis","Nitis","Vasilios","GRE0410","OPEN","Free Agent","GRE"]
[null,"Nicos Kouimanis","Kouimanis","Nicos","GRE0411","OPEN","Free Agent","GRE"]
[null,"Dimitrios Zarogiannis","Zarogiannis","Dimitrios","GRE0412","VET","Olympia CS","GRE"]
[null,"Nikolaos Kolydas","Kolydas","Nikolaos","GRE0413","VET","Free Agent","GRE"]
[null,"Vaggelis Tsaras","Tsaras","Vaggelis","GRE0414","OPEN","Free Agent","GRE"]
[null,"Panagiotis Panagiotidis","Panagiotidis","Panagiotis","GRE0415","VET","Flaming Flickers SC","GRE"]
[null,"Apostolos Vazoukis","Vazoukis","Apostolos","GRE0416","VET","Free Agent","GRE"]
[null,"Evaggelos Miliarakis","Miliarakis","Evaggelos","GRE0417","VET","Free Agent","GRE"]
[null,"Charalambos Polychroniadis","Polychroniadis","Charalambos","GRE0418","OPEN","Free Agent","GRE"]
[null,"Giannis Paschalides","Paschalides","Giannis","GRE0419","VET","Free Agent","GRE"]
[null,"Christos Panagiotidis","Panagiotidis","Christos","GRE0420","VET","Flaming Flickers SC","GRE"]
[null,"Efstathios Robotis","Robotis","Efstathios","GRE0421","VET","Free Agent","GRE"]
[null,"Dimitrios Georgoulis","Georgoulis","Dimitrios","GRE0422","VET","Free Agent","GRE"]
[null,"Andreas Papakyriakou","Papakyriakou","Andreas","GRE0423","OPEN","Free Agent","GRE"]
[null,"Spyridon Stratoudakis","Stratoudakis","Spyridon","GRE0424","OPEN","Piraeus Lions TSC","GRE"]
[null,"Panagiotis Lamprakis","Lamprakis","Panagiotis","GRE0425","OPEN","Free Agent","GRE"]
[null,"Philippos Vavoulakis","Vavoulakis","Philippos","GRE0426","OPEN","Free Agent","GRE"]
[null,"Natasha Kayia","Kayia","Natasha","GRE0427","OPEN","Free Agent","GRE"]
[null,"Michail Tastsoglou","Tastsoglou","Michail","GRE0428","OPEN","Subbuteurs Athens TSC","GRE"]
[null,"Nikolaos Manos","Manos","Nikolaos","GRE0429","OPEN","Free Agent","GRE"]
[null,"Daniil Papazoglou","Papazoglou","Daniil","GRE0430","OPEN","Free Agent","GRE"]
[null,"Vasileios Avgeas","Avgeas","Vasileios","GRE0431","OPEN","Free Agent","GRE"]
[null,"Vasileios Panagiotides","Panagiotides","Vasileios","GRE0432","OPEN","Free Agent","GRE"]
[null,"Nikolaos Georgoulis","Georgoulis","Nikolaos","GRE0433","U20","Free Agent","GRE"]
[null,{"$f":"TRIM(CONCATENATE(D1863,\" \",C1863))","v":"Nikolaos Paraskevas"},"Paraskevas","Nikolaos","GRE0434","VET","Free Agent","GRE"]
[null,"Sotirios Chalkias","Chalkias","Sotirios","GRE0435","VET","Glyfada United TSC","GRE"]
[null,"Dimitrios Begnis","Begnis","Dimitrios","GRE0436","VET","Free Agent","GRE"]
[null,"Ioannis Begnis","Begnis","Ioannis","GRE0437","OPEN","Free Agent","GRE"]
[null,"Aggelos Kalvakis","Kalvakis","Aggelos","GRE0438","OPEN","Free Agent","GRE"]
[null,"Nikolaos Tsaggaris","Tsaggaris","Nikolaos","GRE0439","OPEN","Free Agent","GRE"]
[null,"Panagiotis Galanakis","Galanakis","Panagiotis","GRE0440","OPEN","Free Agent","GRE"]
[null,"Antonios Stratoudakis","Stratoudakis","Antonios","GRE0441","OPEN","Piraeus Lions TSC","GRE"]
[null,"Nasos Sigalas","Sigalas","Nasos","GRE0442","VET","Free Agent","GRE"]
[null,"Georgios Matsakas","Matsakas","Georgios","GRE0443","OPEN","Free Agent","GRE"]
[null,"Anastasios Stamoulis","Stamoulis","Anastasios","GRE0444","OPEN","Free Agent","GRE"]
[null,"Platonas Apostolopoulos","Apostolopoulos","Platonas","GRE0445","VET","Free Agent","GRE"]
[null,"Grigoris Milidonis","Milidonis","Grigoris","GRE0446","VET","Free Agent","GRE"]
[null,"Michail Marinis","Marinis","Michail","GRE0447","OPEN","Free Agent","GRE"]
[null,"Panagiotis Vogiatzis","Vogiatzis","Panagiotis","GRE0448","VET","Free Agent","GRE"]
[null,"Konstantinos Vogiatzis","Vogiatzis","Konstantinos","GRE0449","OPEN","Free Agent","GRE"]
[null,"Dimitris Vogiatzis","Vogiatzis","Dimitris","GRE0450","OPEN","Free Agent","GRE"]
[null,"Michail Christidis","Christidis","Michail","GRE0451","VET","Free Agent","GRE"]
[null,"Georgios Detorakis","Detorakis","Georgios","GRE0452","OPEN","Free Agent","GRE"]
[null,"Evaggelos Vavoulakis","Vavoulakis","Evaggelos","GRE0453","OPEN","Free Agent","GRE"]
[null,"Georgios Goutzioulis","Goutzioulis","Georgios","GRE0454","OPEN","Athinaikos CS","GRE"]
[null,"Alberto Di Maggio","Di Maggio","Alberto","GRE0455","OPEN","Bologna Tigers Subbuteo","GRE"]
[null,"Anastasios Oikonomou","Oikonomou","Anastasios","GRE0456","OPEN","Free Agent","GRE"]
[null,"Sarantis Papidakis","Papidakis","Sarantis","GRE0457","VET","Scarlet Battalion SC","GRE"]
[null,"Elias Papaioannou","Papaioannou","Elias","GRE0458","OPEN","Free Agent","GRE"]
[null,"Maria Stratoudaki","Stratoudaki","Maria","GRE0459","U20","Free Agent","GRE"]
[null,"Fotios Voukouris","Voukouris","Fotios","GRE0460","OPEN","Free Agent","GRE"]
[null,"Georgios Pitihoutis","Pitihoutis","Georgios","GRE0461","VET","Subbuteurs Athens TSC","GRE"]
[null,"Spyridon Arvanitis","Arvanitis","Spyridon","GRE0462","VET","Free Agent","GRE"]
[null,"Franco Alfonso","Alfonso","Franco","GRE0463","VET","Free Agent","GRE"]
[null,"Marios Schoinas","Schoinas","Marios","GRE0464","OPEN","Free Agent","GRE"]
[null,"Vaggelis Giantais","Giantais","Vaggelis","GRE0465","OPEN","Olympia CS","GRE"]
[null,"Dimitrios Diamantopoulos","Diamantopoulos","Dimitrios","GRE0466","VET","Free Agent","GRE"]
[null,"Dimitrios Navridis","Navridis","Dimitrios","GRE0467","OPEN","Free Agent","GRE"]
[null,"Mike Jenner","Jenner","Mike","GRE0468","OPEN","Free Agent","GRE"]
[null,"Aggelos Foutrakis","Foutrakis","Aggelos","GRE0469","OPEN","Thessaloniki SC TSC","GRE"]
[null,"Ioannis Krokos","Krokos","Ioannis","GRE0470","OPEN","Free Agent","GRE"]
[null,"Georgios Verganelakis","Verganelakis","Georgios","GRE0471","OPEN","Achaioi TSC","GRE"]
[null,"Athanasios Koulakis","Koulakis","Athanasios","GRE0472","VET","Free Agent","GRE"]
[null,"Antonios Patedakis","Patedakis","Antonios","GRE0473","OPEN","Free Agent","GRE"]
[null,"Vasileios Dragosis","Dragosis","Vasileios","GRE0474","VET","Free Agent","GRE"]
[null,"Michail Dragosis","Dragosis","Michail","GRE0475","OPEN","Free Agent","GRE"]
[null,"Dimitrios Dragosis","Dragosis","Dimitrios","GRE0476","OPEN","Free Agent","GRE"]
[null,"Manolis Papadakis","Papadakis","Manolis","GRE0477","VET","Atlas FTC","GRE"]
[null,"Filippos Kantarakis","Kantarakis","Filippos","GRE0478","VET","Free Agent","GRE"]
[null,"Nasos Kalvakis","Kalvakis","Nasos","GRE0479","VET","Free Agent","GRE"]
[null,"Michail Lazaridis","Lazaridis","Michail","GRE0480","VET","Free Agent","GRE"]
[null,"Iasonas Dimopoulos","Dimopoulos","Iasonas","GRE0481","OPEN","Free Agent","GRE"]
[null,"Dimitrios Karaminas","Karaminas","Dimitrios","GRE0482","U16","Free Agent","GRE"]
[null,"Spyridon Pagkratis","Pagkratis","Spyridon","GRE0483","U20","Free Agent","GRE"]
[null,"Georgios Pontikopoulos","Pontikopoulos","Georgios","GRE0484","VET","TSC Falcons Athens","GRE"]
[null,"Giorgos Filippou","Filippou","Giorgos","GRE0485","OPEN","Crimson Horses","GRE"]
[null,"Christos Antonopoulos","Antonopoulos","Christos","GRE0486","OPEN","Free Agent","GRE"]
[null,"Thodoris Antonopoulos","Antonopoulos","Thodoris","GRE0487","OPEN","Free Agent","GRE"]
[null,"Dimitris Chronopoulos","Chronopoulos","Dimitris","GRE0488","OPEN","Free Agent","GRE"]
[null,"Michail Kalogerakos","Kalogerakos","Michail","GRE0489","VET","Glyfada United TSC","GRE"]
[null,"Efthimios Koutsogiannis","Koutsogiannis","Efthimios","GRE0490","OPEN","Crimson Horses","GRE"]
[null,"Dimitris Gioutsas","Gioutsas","Dimitris","GRE0491","OPEN","Free Agent","GRE"]
[null,"Eleftherios Chalkidis","Chalkidis","Eleftherios","GRE0492","OPEN","Free Agent","GRE"]
[null,"Theocharis Chalkidis","Chalkidis","Theocharis","GRE0493","U20","Free Agent","GRE"]
[null,"Dionisis Anagnostopoulos","Anagnostopoulos","Dionisis","GRE0494","OPEN","Free Agent","GRE"]
[null,"Vasilis Kitsios","Kitsios","Vasilis","GRE0495","OPEN","Free Agent","GRE"]
[null,"Georgios Zimeras","Zimeras","Georgios","GRE0496","OPEN","Free Agent","GRE"]
[null,"Nikolaos Liakopoulos","Liakopoulos","Nikolaos","GRE0497","OPEN","Olympia CS","GRE"]
[null,{"$f":"TRIM(CONCATENATE(D1927,\" \",C1927))","v":"Anastasios Lampropoulos"},"Lampropoulos","Anastasios","GRE0498","OPEN","Free Agent","GRE"]
[null,"Antonios Kosmadakis","Kosmadakis","Antonios","GRE0499","OPEN","Free Agent","GRE"]
[null,"Ioannis Tountas","Tountas","Ioannis","GRE0500","VET","Free Agent","GRE"]
[null,"Vassiliki Tsioumanis","Tsioumanis","Vassiliki","GRE0501","U20","Free Agent","GRE"]
[null,"Myrsini Tsioumanis","Tsioumanis","Myrsini","GRE0502","U20","Free Agent","GRE"]
[null,"Nikolaos Kostantakopoulos","Kostantakopoulos","Nikolaos","GRE0503","VET","Free Agent","GRE"]
[null,"Michail Papatzimas","Papatzimas","Michail","GRE0504","OPEN","Free Agent","GRE"]
[null,"Evangelos Michopoulos","Michopoulos","Evangelos","GRE0505","OPEN","Free Agent","GRE"]
[null,"Ioannis Mpougiouris","Mpougiouris","Ioannis","GRE0506","VET","Subbuteurs Athens TSC","GRE"]
[null,"Georgios Rogas","Rogas","Georgios","GRE0507","OPEN","Free Agent","GRE"]
[null,"Dimitrios Maragopoulos","Maragopoulos","Dimitrios","GRE0508","OPEN","Free Agent","GRE"]
[null,"Alexandros Petropoulos","Petropoulos","Alexandros","GRE0509","OPEN","Free Agent","GRE"]
[null,"Pavlos Malindretos","Malindretos","Pavlos","GRE0510","OPEN","Roligans Ilioupolis TSC","GRE"]
[null,"Nikolaos Misiros","Misiros","Nikolaos","GRE0511","OPEN","Free Agent","GRE"]
[null,"Rafail Kalogerakos","Kalogerakos","Rafail","GRE0512","U20","Roligans Ilioupolis TSC","GRE"]
[null,"Georgios Koffas","Koffas","Georgios","GRE0513","U20","Free Agent","GRE"]
[null,"Emmanouil Skourtsos","Skourtsos","Emmanouil","GRE0514","VET","Glyfada United TSC","GRE"]
[null,"Nikolaos Skordas","Skordas","Nikolaos","GRE0515","OPEN","Crimson Horses","GRE"]
[null,"Georgios Palaitsakis","Palaitsakis","Georgios","GRE0516","OPEN","Free Agent","GRE"]
[null,"Dimitra Fotiadou","Fotiadou","Dimitra","GRE0517","OPEN","Free Agent","GRE"]
[null,"Anastasia Kantarakis","Kantarakis","Anastasia","GRE0518","OPEN","Free Agent","GRE"]
[null,"Stamatios Kantarakis","Kantarakis","Stamatios","GRE0519","U20","Free Agent","GRE"]
[null,"Sotirios Koutoulas","Koutoulas","Sotirios","GRE0520","U20","Free Agent","GRE"]
[null,"Panagiotis Lavrakis","Lavrakis","Panagiotis","GRE0521","VET","Noctuas Athens TSC","GRE"]
[null,"Nikolaos Klironomos","Klironomos","Nikolaos","GRE0522","OPEN","Free Agent","GRE"]
[null,"Nikos Psomiadis","Psomiadis","Nikos","GRE0523","VET","Subbuteurs Athens TSC","GRE"]
[null,"Nikolas (07) Psomiadis","Psomiadis","Nikolas (07)","GRE0524","U20","Subbuteurs Athens TSC","GRE"]
[null,"Konstantinos Meleas","Meleas","Konstantinos","GRE0525","VET","Subbuteurs Athens TSC","GRE"]
[null,"Nikolaos Gkiotlis","Gkiotlis","Nikolaos","GRE0526","VET","Thessaloniki SC TSC","GRE"]
[null,"Dimitrios Karpouzos","Karpouzos","Dimitrios","GRE0527","VET","Free Agent","GRE"]
[null,"Victoras Eskitzioglou","Eskitzioglou","Victoras","GRE0528","U20","Free Agent","GRE"]
[null,"Erinarhos Eskitzioglou","Eskitzioglou","Erinarhos","GRE0529","U20","Free Agent","GRE"]
[null,"Ioannis Terzidis","Terzidis","Ioannis","GRE0530","VET","Panorama 1978 SC","GRE"]
[null,"Panagiotis Manopoulos","Manopoulos","Panagiotis","GRE0531","VET","Free Agent","GRE"]
[null,"Constantios Giapoutzis","Giapoutzis","Constantios","GRE0532","VET","Panorama 1978 SC","GRE"]
[null,"Pantazis Georgiou","Georgiou","Pantazis","GRE0533","VET","Free Agent","GRE"]
[null,"Dimitrios Andreadis","Andreadis","Dimitrios","GRE0534","VET","Free Agent","GRE"]
[null,"Ioannis Chatzitheodorou","Chatzitheodorou","Ioannis","GRE0535","OPEN","Free Agent","GRE"]
[null,"Ilias Mesaikos","Mesaikos","Ilias","GRE0536","OPEN","Free Agent","GRE"]
[null,"Iordanis Kanakis","Kanakis","Iordanis","GRE0537","OPEN","Free Agent","GRE"]
[null,"Stavros Giapoutzis","Giapoutzis","Stavros","GRE0538","OPEN","Panorama 1978 SC","GRE"]
[null,"Dimitrios Pothitos","Pothitos","Dimitrios","GRE0539","VET","Crimson Horses","GRE"]
[null,"Nikolaos Promponas","Promponas","Nikolaos","GRE0540","VET","Noctuas Athens TSC","GRE"]
[null,"Georgia Stamatiou","Stamatiou","Georgia","GRE0541","OPEN","Free Agent","GRE"]
[null,"Michail Papaioannou","Papaioannou","Michail","GRE0542","OPEN","Free Agent","GRE"]
[null,"Philippos Papidakis","Papidakis","Philippos","GRE0543","U20","Scarlet Battalion SC","GRE"]
[null,"Charilaos Chasoulidis","Chasoulidis","Charilaos","GRE0544","VET","Free Agent","GRE"]
[null,"Vaggelis Plianthidis","Plianthidis","Vaggelis","GRE0545","OPEN","Free Agent","GRE"]
[null,"Kyriakos Plianthidis","Plianthidis","Kyriakos","GRE0546","OPEN","Free Agent","GRE"]
[null,"Georgios Nidriotis","Nidriotis","Georgios","GRE0547","OPEN","Free Agent","GRE"]
[null,"Dimitrios Nidriotis","Nidriotis","Dimitrios","GRE0548","OPEN","Free Agent","GRE"]
[null,"Aristidis Hliaoutakis","Hliaoutakis","Aristidis","GRE0549","OPEN","Free Agent","GRE"]
[null,"Panagiotis Pashos","Pashos","Panagiotis","GRE0550","OPEN","Free Agent","GRE"]
[null,"Kyriaki Malousidou","Malousidou","Kyriaki","GRE0551","OPEN","Free Agent","GRE"]
[null,"Apostolis Markantonis","Markantonis","Apostolis","GRE0552","OPEN","Free Agent","GRE"]
[null,"Nikolaos Mantzouranis","Mantzouranis","Nikolaos","GRE0553","OPEN","Free Agent","GRE"]
[null,"Evangelos Papadopoulos","Papadopoulos","Evangelos","GRE0554","OPEN","Free Agent","GRE"]
[null,"Nikitas Apatzis","Apatzis","Nikitas","GRE0555","U20","Subbuteurs Athens TSC","GRE"]
[null,"Alexandros Apatzis","Apatzis","Alexandros","GRE0556","VET","Subbuteurs Athens TSC","GRE"]
[null,"Stylianos Stratakis","Stratakis","Stylianos","GRE0557","OPEN","Free Agent","GRE"]
[null,"Dimitrios Kolydakis","Kolydakis","Dimitrios","GRE0558","OPEN","Free Agent","GRE"]
[null,"Ioannis Patedakis","Patedakis","Ioannis","GRE0559","OPEN","Free Agent","GRE"]
[null,"Michail Mavrikidis","Mavrikidis","Michail","GRE0560","OPEN","Free Agent","GRE"]
[null,"Ioannis Chasoulidis","Chasoulidis","Ioannis","GRE0561","OPEN","Free Agent","GRE"]
[null,{"$f":"TRIM(CONCATENATE(D1991,\" \",C1991))","v":"Dionysios Roumantzas"},"Roumantzas","Dionysios","GRE0562","OPEN","Free Agent","GRE"]
[null,"Panagiotis Patistas","Patistas","Panagiotis","GRE0563","VET","Subbuteurs Athens TSC","GRE"]
[null,"Achilleas Patistas","Patistas","Achilleas","GRE0564","U20","Subbuteurs Athens TSC","GRE"]
[null,"Athanasios Kalakos","Kalakos","Athanasios","GRE0565","VET","Free Agent","GRE"]
[null,"Ioannis Psychopoulos","Psychopoulos","Ioannis","GRE0566","VET","Thessaloniki SC TSC","GRE"]
[null,"Theodoros Agrios","Agrios","Theodoros","GRE0567","VET","Free Agent","GRE"]
[null,"Christos Agrios","Agrios","Christos","GRE0568","OPEN","Panorama 1978 SC","GRE"]
[null,"Ilias Kosovas","Kosovas","Ilias","GRE0569","OPEN","Free Agent","GRE"]
[null,"Petros Kleonakos","Kleonakos","Petros","GRE0570","OPEN","Free Agent","GRE"]
[null,"Konstantinos Machairidis","Machairidis","Konstantinos","GRE0571","OPEN","Free Agent","GRE"]
[null,"Nikolaos Lazaridis","Lazaridis","Nikolaos","GRE0572","OPEN","Free Agent","GRE"]
[null,"Panagiotis (05) Krommydas","Krommydas","Panagiotis (05)","GRE0573","U20","Free Agent","GRE"]
[null,"Dimitrios Tzanakis","Tzanakis","Dimitrios","GRE0574","U16","Free Agent","GRE"]
[null,"Apostolos Kolettis","Kolettis","Apostolos","GRE0575","U16","Free Agent","GRE"]
[null,"Nikolaos Kaperonis","Kaperonis","Nikolaos","GRE0576","U16","Free Agent","GRE"]
[null,"Dimitrios Kaperonis","Kaperonis","Dimitrios","GRE0577","U20","Free Agent","GRE"]
[null,"Aggeliki Koletti","Koletti","Aggeliki","GRE0578","U20","Free Agent","GRE"]
[null,"Theodora Kaloudaki","Kaloudaki","Theodora","GRE0579","VET","Free Agent","GRE"]
[null,"Giota Frantzeskou","Frantzeskou","Giota","GRE0580","VET","Free Agent","GRE"]
[null,"Maximos Di Maggio","Di Maggio","Maximos","GRE0581","U16","Noctuas Athens TSC","GRE"]
[null,"Theodos Kolokotronis","Kolokotronis","Theodos","GRE0582","OPEN","Free Agent","GRE"]
[null,"Panagiotis Tsiakalos","Tsiakalos","Panagiotis","GRE0583","OPEN","Glyfada United TSC","GRE"]
[null,"Alkaios Chazarakis","Chazarakis","Alkaios","GRE0584","VET","Free Agent","GRE"]
[null,"Panagiotis Syrmos","Syrmos","Panagiotis","GRE0585","OPEN","Free Agent","GRE"]
[null,"Stamatios Syrmos","Syrmos","Stamatios","GRE0586","VET","Crimson Horses","GRE"]
[null,"George Fanariotis","Fanariotis","George","GRE0587","VET","Free Agent","GRE"]
[null,"Dimitris Lagios","Lagios","Dimitris","GRE0588","VET","Free Agent","GRE"]
[null,"Dionysis Lagios","Lagios","Dionysis","GRE0589","U16","Free Agent","GRE"]
[null,"Giorgos Karavas","Karavas","Giorgos","GRE0590","OPEN","Scarlet Battalion SC","GRE"]
[null,"Ioannis Pothitos","Pothitos","Ioannis","GRE0591","OPEN","Crimson Horses","GRE"]
[null,"Theodoros Ousaklidis","Ousaklidis","Theodoros","GRE0592","OPEN","Free Agent","GRE"]
[null,"Alexandros Balakakis","Balakakis","Alexandros","GRE0593","VET","Free Agent","GRE"]
[null,"Panagiotis Skouros","Skouros","Panagiotis","GRE0594","U16","Roligans Ilioupolis TSC","GRE"]
[null,"Vasilios Argyropoulos","Argyropoulos","Vasilios","GRE0595","VET","Glyfada United TSC","GRE"]
[null,"Charalambos Eleftheriou","Eleftheriou","Charalambos","GRE0596","U20","Free Agent","GRE"]
[null,"Vasilis Tsitsarolis","Tsitsarolis","Vasilis","GRE0597","U20","Free Agent","GRE"]
[null,"Kostas Pantelaras","Pantelaras","Kostas","GRE0598","U20","PIraeus Lions TSC","GRE"]
[null,"Spiros Antonopoulos","Antonopoulos","Spiros","GRE0599","U20","Free Agent","GRE"]
[null,"Ioannis Kondylis","Kondylis","Ioannis","GRE0600","OPEN","PIraeus Lions TSC","GRE"]
[null,"Apollon Papathanasiou","Papathanasiou","Apollon","GRE0601","U20","Free Agent","GRE"]
[null,"Vasileios Vasilos","Vasilos","Vasileios","GRE0602","VET","Panorama 1978 SC","GRE"]
[null,"Thrasyvoulos Pachatouridis","Pachatouridis","Thrasyvoulos","GRE0603","VET","Free Agent","GRE"]
[null,"Christos Terzidis","Terzidis","Christos","GRE0604","VET","Free Agent","GRE"]
[null,"Nikiforos Giapoutzis","Giapoutzis","Nikiforos","GRE0605","OPEN","Panorama 1978 SC","GRE"]
[null,"Agapi Di Maggio","Di Maggio","Agapi","GRE0606","U16","Noctuas Athens TSC","GRE"]
[null,"Christina Kordantonopoulos","Kordantonopoulos","Christina","GRE0607","U12","Free Agent","GRE"]
[null,"Maria Christina Kadinopoulos","Kadinopoulos","Maria Christina","GRE0608","U16","Noctuas Athens TSC","GRE"]
[null,"Stefanos Kadinopoulos","Kadinopoulos","Stefanos","GRE0609","U16","Noctuas Athens TSC","GRE"]
[null,"Nikolaos Papadakis","Papadakis","Nikolaos","GRE0610","U20","Free Agent","GRE"]
[null,"Vasilios Tsakalakis","Tsakalakis","Vasilios","GRE0611","VET","Free Agent","GRE"]
[null,"Christian Tsakalakis","Tsakalakis","Christian","GRE0612","OPEN","Free Agent","GRE"]
[null,"Valantis Argyropoulos","Argyropoulos","Valantis","GRE0613","OPEN","Thessaloniki SC TSC","GRE"]
[null,"Giorgos Gkiotlis","Gkiotlis","Giorgos","GRE0614","OPEN","Thessaloniki SC TSC","GRE"]
[null,"Leonidas Papamichail","Papamichail","Leonidas","GRE0615","VET","Noctuas Athens TSC","GRE"]
[null,"Georgios Dionisopoulos","Dionisopoulos","Georgios","GRE0616","U20","Polis Athlitikos Syllogos Daskaliou Kerateas","GRE"]
[null,"Dimitris Bogdanidis","Bogdanidis","Dimitris","GRE0617","U12","Polis Athlitikos Syllogos Daskaliou Kerateas","GRE"]
[null,"Sotiris Petrakis","Petrakis","Sotiris","GRE0618","OPEN","Free Agent","GRE"]
[null,"Michail Angelos Merkouris","Merkouris","Michail Angelos","GRE0619","U20","Free Agent","GRE"]
[null,"Alexandros Kontorouchas","Kontorouchas","Alexandros","GRE0620","OPEN","Free Agent","GRE"]
[null,"Ioannis Paliouras","Paliouras","Ioannis","GRE0621","OPEN","Crimson Horses","GRE"]
[null,"Dimosthenis Kourou","Kourou","Dimosthenis","GRE0623","VET","Free Agent","GRE"]
[null,"Marios Fotinopoulos","Fotinopoulos","Marios","GRE0624","OPEN","Free Agent","GRE"]
[null,"Petros Kalamaris","Kalamaris","Petros","GRE0625","OPEN","Free Agent","GRE"]
[null,"Giorgos Sfakianakis","Sfakianakis","Giorgos","GRE0626","VET","Free Agent","GRE"]
[null,{"$f":"TRIM(CONCATENATE(D2055,\" \",C2055))","v":"Marianna Malindretou"},"Malindretou","Marianna","GRE0627","U20","Roligans Ilioupolis TSC","GRE"]
[null,"Giorgos Karahalios","Karahalios","Giorgos","GRE0628","VET","Roligans Ilioupolis TSC","GRE"]
[null,"Stavros Vagios","Vagios","Stavros","GRE0629","VET","Free Agent","GRE"]
[null,"Ioannis Sermpos","Sermpos","Ioannis","GRE0630","OPEN","Free Agent","GRE"]
[null,"Lambros Tekos","Tekos","Lambros","GRE0631","VET","Crimson Horses","GRE"]
[null,"Danai Konstantakou","Konstantakou","Danai","GRE0632","OPEN","Noctuas Athens TSC","GRE"]
[null,"Aggelos Vlachoulis","Vlachoulis","Aggelos","GRE0633","VET","Free Agent","GRE"]
[null,"Lambros Kotsinis","Kotsinis","Lambros","GRE0634","OPEN","Free Agent","GRE"]
[null,"Emilios Zaharitsas","Zaharitsas","Emilios","GRE0635","OPEN","Free Agent","GRE"]
[null,"Kostas Kounadis","Kounadis","Kostas","GRE0636","VET","Free Agent","GRE"]
[null,"Georgios Karouzos","Karouzos","Georgios","GRE0637","OPEN","Athinaikos CS","GRE"]
[null,"Dimitrios Rebis","Rebis","Dimitrios","GRE0638","VET","Free Agent","GRE"]
[null,"Adrianna Papadaki","Papadaki","Adrianna","GRE0639","U16","Noctuas Athens TSC","GRE"]
[null,"Angelos Sioutis","Sioutis","Angelos","GRE0640","U16","Free Agent","GRE"]
[null,"Georgios Briskolas","Briskolas","Georgios","GRE0641","OPEN","Olympia CS","GRE"]
[null,"Dimitris Aggelou","Aggelou","Dimitris","GRE0642","OPEN","Glyfada United TSC","GRE"]
[null,"Ilias Galanopoulos","Galanopoulos","Ilias","GRE0643","OPEN","Crimson Horses","GRE"]
[null,"Dimitris Stamos","Stamos","Dimitris","GRE0644","OPEN","Free Agent","GRE"]
[null,"Christos Vogiatzis","Vogiatzis","Christos","GRE0645","OPEN","Free Agent","GRE"]
[null,"Sofoklis Vezirtzoglou","Vezirtzoglou","Sofoklis","GRE0646","VET","Evia CAN","GRE"]
[null,"Christos Dimos","Dimos","Christos","GRE0647","VET","Free Agent","GRE"]
[null,"Pantelis Trapezountios","Trapezountios","Pantelis","GRE0648","OPEN","Evia CAN","GRE"]
[null,"Alexios Farmakis","Farmakis","Alexios","GRE0649","OPEN","Evia CAN","GRE"]
[null,"Ioannis Chanos","Chanos","Ioannis","GRE0650","U20","Free Agent","GRE"]
[null,"Konstantinos Chanos","Chanos","Konstantinos","GRE0651","OPEN","Evia CAN","GRE"]
[null,"Michail I Chanos","Chanos","Michail I","GRE0652","VET","Evia CAN","GRE"]
[null,"Michail K Chanos","Chanos","Michail K","GRE0653","U16","Evia CAN","GRE"]
[null,"Klearchos Sarikakis","Sarikakis","Klearchos","GRE0654","OPEN","Subbuteurs Athens TSC","GRE"]
[null,"Giorgos Panagiotopoulos","Panagiotopoulos","Giorgos","GRE0655","U16","Free Agent","GRE"]
[null,"Ioanna Virginia Panagiotopoulou","Panagiotopoulou","Ioanna Virginia","GRE0656","U16","Free Agent","GRE"]
[null,"Giorgos Kolovos","Kolovos","Giorgos","GRE0657","U16","Free Agent","GRE"]
[null,"Diamantis Lampis","Lampis","Diamantis","GRE0658","OPEN","Free Agent","GRE"]
[null,"Fotis Lampis","Lampis","Fotis","GRE0659","OPEN","Free Agent","GRE"]
[null,"Stavros Messonisanakis","Messonisanakis","Stavros","GRE0660","OPEN","Roligans Ilioupolis TSC","GRE"]
[null,"Fotios Rovalis","Rovalis","Fotios","GRE0661","VET","Free Agent","GRE"]
[null,"dimitrios Floros","Floros","dimitrios","GRE0662","OPEN","Free Agent","GRE"]
[null,"Konstantinos Stefanis","Stefanis","Konstantinos","GRE0663","OPEN","Roligans Ilioupolis TSC","GRE"]
[null,"Efthimios Kollias","Kollias","Efthimios","GRE0664","OPEN","PIraeus Lions TSC","GRE"]
[null,"Panagiotis Tsagkaridis","Tsagkaridis","Panagiotis","GRE0665","VET","Thessaloniki SC TSC","GRE"]
[null,"Iosif Orfanoudakis","Orfanoudakis","Iosif","GRE0666","VET","Free Agent","GRE"]
[null,"Anderas Kampas","Kampas","Anderas","GRE0667","OPEN","Free Agent","GRE"]
[null,"Giorgos Psychopoulos","Psychopoulos","Giorgos","GRE0668","U16","Free Agent","GRE"]
[null,"Leonidas Orfanoudakis","Orfanoudakis","Leonidas","GRE0669","U16","Free Agent","GRE"]
[null,"Panagiotis Rouvalis","Rouvalis","Panagiotis","GRE0670","U16","Free Agent","GRE"]
[null,"Athanasios Kotrotsos","Kotrotsos","Athanasios","GRE0671","U16","Roligans Ilioupolis TSC","GRE"]
[null,"Athanasios Papazoglou","Papazoglou","Athanasios","GRE0672","VET","Free Agent","GRE"]
[null,"Giannis Vardakis","Vardakis","Giannis","GRE0673","VET","Free Agent","GRE"]
[null,"Dimitrios Tsakoniatis","Tsakoniatis","Dimitrios","GRE0674","VET","Free Agent","GRE"]
[null,"Konstantinos Theodosiou","Theodosiou","Konstantinos","GRE0675","U16","Free Agent","GRE"]
[null,"Michalis Tsiakalos","Tsiakalos","Michalis","GRE0676","U20","Free Agent","GRE"]
[null,"Konstantinos Charalambou","Charalambou","Konstantinos","GRE0677","U20","Free Agent","GRE"]
[null,"Nikolaos Patrinos","Patrinos","Nikolaos","GRE0678","U16","Free Agent","GRE"]
[null,"Panagiotis Charamis","Charamis","Panagiotis","GRE0679","OPEN","Free Agent","GRE"]
[null,"Stavros Mellios","Mellios","Stavros","GRE0680","U16","Crimson Horses","GRE"]
[null,"Symeon Galanopoulos","Galanopoulos","Symeon","GRE0681","U12","Crimson Horses","GRE"]
[null,"Kostantinos Galanopoulos","Galanopoulos","Kostantinos","GRE0682","U12","Crimson Horses","GRE"]
[null,"Christos Filippou","Filippou","Christos","GRE0683","U16","Crimson Horses","GRE"]
[null,"Giorgos Matos","Matos","Giorgos","GRE0684","OPEN","Free Agent","GRE"]
[null,"Asterios Tsimoudis","Tsimoudis","Asterios","GRE0685","OPEN","Free Agent","GRE"]
[null,"Michalis Chiotis","Chiotis","Michalis","GRE0686","U16","Roligans Ilioupolis TSC","GRE"]
[null,"Emmanouil Chiotis","Chiotis","Emmanouil","GRE0687","VET","Free Agent","GRE"]
[null,"Spyros Spyropoulos","Spyropoulos","Spyros","GRE0688","VET","Free Agent","GRE"]
[null,"Giorgos Aggelos Spyropoulos","Spyropoulos","Giorgos Aggelos","GRE0689","U12","Flaming Flickers SC","GRE"]
[null,"Giannis Afratis","Afratis","Giannis","GRE0690","VET","Free Agent","GRE"]
[null,{"$f":"TRIM(CONCATENATE(D2119,\" \",C2119))","v":"Georgios Valsamakis"},"Valsamakis","Georgios","GRE0691","VET","Free Agent","GRE"]
[null,"Aristogiton Valsamakis","Valsamakis","Aristogiton","GRE0692","U16","Free Agent","GRE"]
[null,"Haralambos Valsamakis","Valsamakis","Haralambos","GRE0693","U16","Free Agent","GRE"]
[null,"Petros Tezapsidis","Tezapsidis","Petros","GRE0694","VET","Panorama 1978 SC","GRE"]
[null,"Aggelos-Konstantinos Kolokotronis","Kolokotronis","Aggelos-Konstantinos","GRE0695","U16","Free Agent","GRE"]
[null,"Thanos Theodosiou","Theodosiou","Thanos","GRE0696","OPEN","Free Agent","GRE"]
[null,"Georgios Papazoglou","Papazoglou","Georgios","GRE0697","VET","Free Agent","GRE"]
[null,"Miltiadis Avgitidis","Avgitidis","Miltiadis","GRE0698","OPEN","Free Agent","GRE"]
[null,"Georgios M Avgitidis","Avgitidis","Georgios M","GRE0699","U20","Free Agent","GRE"]
[null,"Nikolaos Avgitidis","Avgitidis","Nikolaos","GRE0700","OPEN","Free Agent","GRE"]
[null,"Georgios N Avgitidis","Avgitidis","Georgios N","GRE0701","U16","Free Agent","GRE"]
[null,"Eleftherios Kanetis","Kanetis","Eleftherios","GRE0702","OPEN","Noctuas Athens TSC","GRE"]
[null,"Giorgos Spanos","Spanos","Giorgos","GRE0703","OPEN","Charilaos Trikoupis","GRE"]
[null,"Giannis Nikolaidis","Nikolaidis","Giannis","GRE0704","VET","Atlas FTC","GRE"]
[null,"Fratzeskos Roussis","Roussis","Fratzeskos","GRE0705","OPEN","Free Agent","GRE"]
[null,"Dimosthenis Moschopoulos","Moschopoulos","Dimosthenis","GRE0706","OPEN","Free Agent","GRE"]
[null,"Vasilis Stergiou","Stergiou","Vasilis","GRE0707","U16","Free Agent","GRE"]
[null,"Dimitris Stergiou","Stergiou","Dimitris","GRE0708","U16","Free Agent","GRE"]
[null,"Giorgos Iordanidis","Iordanidis","Giorgos","GRE0709","VET","Thessaloniki SC TSC","GRE"]
[null,"Theodoros Chatzidialechtos","Chatzidialechtos","Theodoros","GRE0710","OPEN","Thessaloniki SC TSC","GRE"]
[null,"Konstantinos Sochoritis","Sochoritis","Konstantinos","GRE0711","VET","Atlas FTC","GRE"]
[null,"Eleftherios Meros","Meros","Eleftherios","GRE0712","VET","Glyfada United TSC","GRE"]
[null,"Petros Kosmas","Kosmas","Petros","GRE0713","OPEN","Free Agent","GRE"]
[null,"Emmanouil Paraschis","Paraschis","Emmanouil","GRE0714","OPEN","Free Agent","GRE"]
[null,"Spyridon Paraschis","Paraschis","Spyridon","GRE0715","OPEN","Free Agent","GRE"]
[null,"Georgios Stamatakis","Stamatakis","Georgios","GRE0716","OPEN","Free Agent","GRE"]
[null,"Eleftherios Iordanidis","Iordanidis","Eleftherios","GRE0717","OPEN","Free Agent","GRE"]
[null,"Ioulianos Prombonas","Prombonas","Ioulianos","GRE0718","VET","Free Agent","GRE"]
[null,"Evangelia Vasileiadou","Vasileiadou","Evangelia","GRE0719","OPEN","Free Agent","GRE"]
[null,"Theodore Kouniadis","Kouniadis","Theodore","GRE0720","OPEN","Free Agent","GRE"]
[null,"Alex Bogdanidis","Bogdanidis","Alex","GRE0721","U12","Polis Athlitikos Syllogos Daskaliou Kerateas","GRE"]
[null,"Konstantinos Hatzopoulos","Hatzopoulos","Konstantinos","GRE0722","VET","Free Agent","GRE"]
[null,"Ioannis Galanis","Galanis","Ioannis","GRE0723","VET","Free Agent","GRE"]
[null,"Georgios Lamprakis","Lamprakis","Georgios","GRE0724","OPEN","Free Agent","GRE"]
[null,"Georgios Derekis","Derekis","Georgios","GRE0725","VET","Free Agent","GRE"]
[null,"Dimitris Arnis Alexandrou","Alexandrou","Dimitris Arnis","GRE0726","OPEN","Free Agent","GRE"]
[null,"Minas Kakiltakis","Kakiltakis","Minas","GRE0727","VET","Subbuteurs Athens TSC","GRE"]
[null,"Georgios Evangelou","Evangelou","Georgios","GRE0728","OPEN","Subbuteurs Athens TSC","GRE"]
[null,"Nikos Vasiladiotis","Vasiladiotis","Nikos","GRE0729","U16","Free Agent","GRE"]
[null,"Marios Visvikis","Visvikis","Marios","GRE0730","OPEN","Free Agent","GRE"]
[null,"Vaios Kolofotias","Kolofotias","Vaios","GRE0731","VET","Free Agent","GRE"]
[null,"Apollon Dimakeas","Dimakeas","Apollon","GRE0732","U12","Roligans Ilioupolis TSC","GRE"]
[null,"Iason Prionidis","Prionidis","Iason","GRE0733","OPEN","Free Agent","GRE"]
[null,"Stylianos Kotakos","Kotakos","Stylianos","GRE0734","U16","Scarlet Battalion SC","GRE"]
[null,"Andreas Vourakis","Vourakis","Andreas","GRE0735","VET","Athinaikos CS","GRE"]
[null,"Ioannis Korakas","Korakas","Ioannis","GRE0736","VET","Free Agent","GRE"]
[null,"Emmanouil Chatzistavrakis","Chatzistavrakis","Emmanouil","GRE0737","U12","Roligans Ilioupolis TSC","GRE"]
[null,"Konstantinos Argiris","Argiris","Konstantinos","GRE0738","OPEN","Thessaloniki SC TSC","GRE"]
[null,"Chrysoula Pappa","Pappa","Chrysoula","GRE0739","OPEN","Atlas FTC","GRE"]
[null,"Iraklis Psychogyios","Psychogyios","Iraklis","GRE0740","OPEN","Free Agent","GRE"]
[null,"Vasilis Triantafyllou","Triantafyllou","Vasilis","GRE0741","OPEN","Thessaloniki SC TSC","GRE"]
[null,"George Charizopoulos","Charizopoulos","George","GRE0742","U12","Free Agent","GRE"]
[null,"Argiris Michail","Michail","Argiris","GRE0743","VET","Free Agent","GRE"]
[null,"Avraam Adavalis","Adavalis","Avraam","GRE0744","OPEN","Free Agent","GRE"]
[null,"Dimitrios Pylarinos","Pylarinos","Dimitrios","GRE0745","OPEN","Thessaloniki SC TSC","GRE"]
[null,"Constantios Goulopoulos","Goulopoulos","Constantios","GRE0746","OPEN","Free Agent","GRE"]
[null,"Agis Filippos Karavas","Karavas","Agis Filippos","GRE0747","U12","Free Agent","GRE"]
[null,"Nikos Vasilopoulos","Vasilopoulos","Nikos","GRE0748","OPEN","Free Agent","GRE"]
[null,"Theodoros Pilatos","Pilatos","Theodoros","GRE0749","OPEN","Crimson Horses","GRE"]
[null,"Valsamas Elekidis","Elekidis","Valsamas","GRE0750","OPEN","Free Agent","GRE"]
[null,"Vasilis Aivasliotis","Aivasliotis","Vasilis","GRE0751","OPEN","Free Agent","GRE"]
[null,"Georgios Giannoulis","Giannoulis","Georgios","GRE0752","OPEN","Evia CAN","GRE"]
[null,"Synodis Geerontitis","Geerontitis","Synodis","GRE0753","OPEN","Evia CAN","GRE"]
[null,"Ioannis Lytras","Lytras","Ioannis","GRE0754","OPEN","Crimson Horses","GRE"]
[null,{"$f":"TRIM(CONCATENATE(D2183,\" \",C2183))","v":"Menelaos Exarchou"},"Exarchou","Menelaos","GRE0755","U16","Crimson Horses","GRE"]
[null,"Vasilios Stamoulis","Stamoulis","Vasilios","GRE0756","VET","Roligans Ilioupolis TSC","GRE"]
[null,"Giorgos Kakopoulos","Kakopoulos","Giorgos","GRE0757","OPEN","Free Agent","GRE"]
[null,"Zacharias Antonakis","Antonakis","Zacharias","GRE0758","OPEN","Free Agent","GRE"]
[null,"Christos Dragoumis","Dragoumis","Christos","GRE0759","U12","Panorama 1978 SC","GRE"]
[null,"Michail Dragoumis","Dragoumis","Michail","GRE0760","VET","Panorama 1978 SC","GRE"]
[null,"Markos Seferlis","Seferlis","Markos","GRE0761","VET","Free Agent","GRE"]
[null,"Kosmas Ximitidis","Ximitidis","Kosmas","GRE0762","VET","Free Agent","GRE"]
[null,"Eleftherios Ximitidis","Ximitidis","Eleftherios","GRE0763","U12","Free Agent","GRE"]
[null,"Marianna Bouzid","Bouzid","Marianna","GRE0764","OPEN","Scarlet Battalion SC","GRE"]
[null,"Nikolaos Georganoudis","Georganoudis","Nikolaos","GRE0765","U16","Scarlet Battalion SC","GRE"]
[null,"Konstantinos Zerdilas","Zerdilas","Konstantinos","GRE0766","OPEN","Free Agent","GRE"]
[null,"Charalambos Zerdilas","Zerdilas","Charalambos","GRE0767","U12","Roligans Ilioupolis TSC","GRE"]
[null,"Panagiotis Konidaris","Konidaris","Panagiotis","GRE0768","VET","Roligans Ilioupolis TSC","GRE"]
[null,"Konstantinos Konidaris","Konidaris","Konstantinos","GRE0769","U12","Roligans Ilioupolis TSC","GRE"]
[null,"Konstantinos Filipoppoulos","Filipoppoulos","Konstantinos","GRE0770","OPEN","Free Agent","GRE"]
[null,"Charalampos Kazantzoglou","Kazantzoglou","Charalampos","GRE0771","VET","Subbuteurs Athens TSC","GRE"]
[null,"Nikolaos Ntais","Ntais","Nikolaos","GRE0772","U12","Free Agent","GRE"]
[null,"Ilias Ntais","Ntais","Ilias","GRE0773","U16","Free Agent","GRE"]
[null,"Valantis Dimitriadis","Dimitriadis","Valantis","GRE0774","U12","Free Agent","GRE"]
[null,"Athanasios Chaliotis","Chaliotis","Athanasios","GRE0775","VET","Atlas FTC","GRE"]
[null,"Konstantinos Chaliotis","Chaliotis","Konstantinos","GRE0776","U16","Free Agent","GRE"]
[null,"Petros Papathomas","Papathomas","Petros","GRE0777","OPEN","Free Agent","GRE"]
[null,"Ioannis Dementis","Dementis","Ioannis","GRE0778","OPEN","Olympia CS","GRE"]
[null,"Konstantinos Karasavvas","Karasavvas","Konstantinos","GRE0779","OPEN","Athinaikos CS","GRE"]
[null,"Ioannis Stergiopoulos","Stergiopoulos","Ioannis","GRE0780","OPEN","Subbuteurs Athens TSC","GRE"]
[null,"Sotirios Papadimas","Papadimas","Sotirios","GRE0781","OPEN","Free Agent","GRE"]
[null,"Vasilios Paliouras","Paliouras","Vasilios","GRE0783","U16","Free Agent","GRE"]
[null,"Dimitris Giannoulas","Giannoulas","Dimitris","GRE0784","OPEN","Free Agent","GRE"]
[null,"Fanis Ellinas","Ellinas","Fanis","GRE0785","VET","Free Agent","GRE"]
[null,"Efthimis Ellinas","Ellinas","Efthimis","GRE0786","U12","Free Agent","GRE"]
[null,"Maria Ellina","Ellina","Maria","GRE0787","U12","Free Agent","GRE"]
[null,"Athanasios Exarchou","Exarchou","Athanasios","GRE0788","U12","Crimson Horses","GRE"]
[null,"Athanasios Delizisis","Delizisis","Athanasios","GRE0789","OPEN","Free Agent","GRE"]
[null,"Ioannis Karnezis","Karnezis","Ioannis","GRE0790","OPEN","Roligans Ilioupolis TSC","GRE"]
[null,"Anastasios Menegakos","Menegakos","Anastasios","GRE0791","OPEN","Free Agent","GRE"]
[null,"Georgios Batalis","Batalis","Georgios","GRE0792","OPEN","Free Agent","GRE"]
[null,"Emmanouil Bimplis","Bimplis","Emmanouil","GRE0793","OPEN","Free Agent","GRE"]
[null,"Vasileios Nomikos","Nomikos","Vasileios","GRE0794","OPEN","Free Agent","GRE"]
[null,"Marios-Georgios Papageorgiou","Papageorgiou","Marios-Georgios","GRE0795","OPEN","Free Agent","GRE"]
[null,"Ioannis Tselepidis","Tselepidis","Ioannis","GRE0796","OPEN","Free Agent","GRE"]
[null,"Nikolaos Haroulis","Haroulis","Nikolaos","GRE0797","OPEN","Free Agent","GRE"]
[null,"Raul Ramirez-Pena","Ramirez-Pena","Raul","GRE0798","VET","Free Agent","GRE"]
[null,"Evangelos Vlastarakos","Vlastarakos","Evangelos","GRE0799","U16","Roligans Ilioupolis TSC","GRE"]
[null,"Αlexandros- Efthymios Papaioannou-Boznas","Papaioannou-Boznas","Αlexandros- Efthymios","GRE0800","OPEN","Free Agent","GRE"]
[null,"Ourania Skourou","Skourou","Ourania","GRE0801","U16","Roligans Ilioupolis TSC","GRE"]
[null,"Phillipos Kordantonopoulos","Kordantonopoulos","Phillipos","GRE0802","U12","Roligans Ilioupolis TSC","GRE"]
[null,"Grigorios Georganoudis","Georganoudis","Grigorios","GRE0803","OPEN","Roligans Ilioupolis TSC","GRE"]
[null,"Ioannis- Georgios Iliadakis","Iliadakis","Ioannis- Georgios","GRE0804","U16","Roligans Ilioupolis TSC","GRE"]
[null,"Christos Kakantousis","Kakantousis","Christos","GRE0805","VET","Thessaloniki SC TSC","GRE"]
[null,"Christos Kapelis","Kapelis","Christos","GRE0806","OPEN","Thessaloniki SC TSC","GRE"]
[null,"Eleftherios Kapelis","Kapelis","Eleftherios","GRE0807","OPEN","Thessaloniki SC TSC","GRE"]
[null,"Emilios Giantais","Giantais","Emilios","GRE0808","U12","Flaming Flickers SC","GRE"]
[null,"Nikos Mandarakas","Mandarakas","Nikos","GRE0809","VET","PIraeus Lions TSC","GRE"]
[null,"Michail Malindretos","Malindretos","Michail","GRE0810","VET","Roligans Ilioupolis TSC","GRE"]
[null,"Tomaso Casagrande","Casagrande","Tomaso","GRE0811","VET","Free Agent","GRE"]
[null,"Marios Lavrakis","Lavrakis","Marios","GRE0812","U12","Noctuas Athens TSC","GRE"]
[null,"Manousos Chatzistavrakis","Chatzistavrakis","Manousos","GRE0813","VET","Roligans Ilioupolis TSC","GRE"]
[null,"Konstantinos Pefanis","Pefanis","Konstantinos","GRE0814","VET","Charilaos Trikoupis","GRE"]
[null,"Anastasios Eskitzis","Eskitzis","Anastasios","GRE0815","OPEN","Thessaloniki SC TSC","GRE"]
[null,"Gerasimos Asimakopoulos","Asimakopoulos","Gerasimos","GRE0816","OPEN","Thessaloniki SC TSC","GRE"]
[null,"Athanasios Eskitzis","Eskitzis","Athanasios","GRE0817","U12","Thessaloniki SC TSC","GRE"]
[null,"Dimitrios Stravolaimos","Stravolaimos","Dimitrios","GRE0818","OPEN","Roligans Ilioupolis TSC","GRE"]
[null,"Nikolaos Skourtsos","Skourtsos","Nikolaos","GRE0819","U16","Glyfada United TSC","GRE"]
[null,{"$f":"TRIM(CONCATENATE(D2247,\" \",C2247))","v":"Stylianos Tsangouris"},"Tsangouris","Stylianos","GRE0820","OPEN","Atlas FTC","GRE"]
[null,"Konstantinos Morfiadis","Morfiadis","Konstantinos","GRE0821","VET","Thessaloniki SC TSC","GRE"]
[null,"Georgios Elmensaoui","Elmensaoui","Georgios","GRE0822","OPEN","Thessaloniki SC TSC","GRE"]
[null,"Alexandra Pitsari","Pitsari","Alexandra","GRE0823","U12","Crimson Horses","GRE"]
[null,"Georgios Pitsaris","Pitsaris","Georgios","GRE0824","U12","Crimson Horses","GRE"]
[null,"Dimitrios Gkogkos","Gkogkos","Dimitrios","GRE0825","U16","Olympia CS","GRE"]
[null,"Maria Konstantopoulou","Konstantopoulou","Maria","GRE0826","OPEN","Thessaloniki SC TSC","GRE"]
[null,"Dionysis Pefanis","Pefanis","Dionysis","GRE0827","U16","Charilaos Trikoupis","GRE"]
[null,"Evangelos Skotiniotis","Skotiniotis","Evangelos","GRE0828","VET","Flaming Flickers SC","GRE"]
[null,"Grigorios Eleftherakis","Eleftherakis","Grigorios","GRE0829","OPEN","Olympia CS","GRE"]
[null,"Apostolos Niavis","Niavis","Apostolos","GRE0830","U12","Crimson Horses","GRE"]
[null,"Ektoras Pitenis","Pitenis","Ektoras","GRE0831","U12","Crimson Horses","GRE"]
[null,"Panagiotis Katsikaris","Katsikaris","Panagiotis","GRE0832","U12","Polis Athlitikos Syllogos Daskaliou Kerateas","GRE"]
[null,"Dimitris Karavasilis","Karavasilis","Dimitris","GRE0833","U12","crimson horses","GRE"]
[null,"Georgios Lampropoulos","Lampropoulos","Georgios","GRE0834","U12","Free Agent","GRE"]
[null,"Panagiotis Mastrothymnios","Mastrothymnios","Panagiotis","GRE0835","OPEN","Panorama 1978 SC","GRE"]
[null,"Antonio Carabillo","Carabillo","Antonio","HKG0001","VET","SC Dragons Hong Kong","HKG"]
[null,"Nicholas Carabillo","Carabillo","Nicholas","HKG0003","OPEN","SC Dragons Hong Kong","HKG"]
[null,"Andras Hicz","Hicz","Andras","HUN0002","OPEN","Budapest Subbuteo","HUN"]
[null,"László Csibor","Csibor","László","HUN0006","OPEN","Budapest Subbuteo","HUN"]
[null,"Gábor Baross","Baross","Gábor","HUN0025","OPEN","TSC Phoenix","HUN"]
[null,"Zoltán Baross","Baross","Zoltán","HUN0026","OPEN","Budapest Subbuteo","HUN"]
[null,"Károly Szathmáry","Szathmáry","Károly","HUN0049","OPEN","Dunakanyar Forte ALC","HUN"]
[null,"Mark Farrell","Farrell","Mark","IRL0001","OPEN","Yorkshire Phoenix","IRL"]
[null,"Gary Moore","Moore","Gary","IRL0002","OPEN","Irish Premier League","IRL"]
[null,"John Moore","Moore","John","IRL0003","VET","Irish Premier League","IRL"]
[null,"Nicky Moore","Moore","Nicky","IRL0004","VET","Irish Premier League","IRL"]
[null,"Ken McKenzie","McKenzie","Ken","IRL0005","OPEN","Irish Premier League","IRL"]
[null,"Mick O’Brien","O’Brien","Mick","IRL0006","OPEN","Irish Premier League","IRL"]
[null,"Brendan Rodgers","Rodgers","Brendan","IRL0007","VET","Derry City","IRL"]
[null,"Oisín Mac Eó","Mac Eó","Oisín","IRL0010","OPEN","Derry City","IRL"]
[null,"Andy Fitzpatrick","Fitzpatrick","Andy","IRL0011","OPEN","Irish Premier League","IRL"]
[null,"Gerry Harrington","Harrington","Gerry","IRL0012","VET","Langton Green Subbuteo Club","IRL"]
[null,"Daniel Kaliszewski","Kaliszewski","Daniel","IRL0013","U16","Irish Premier League","IRL"]
[null,"Fiona Moore","Moore","Fiona","IRL0014","U16","Irish Premier League","IRL"]
[null,"Cian Moore","Moore","Cian","IRL0015","U16","Flanders SC","IRL"]
[null,"Frankie Connolly","Connolly","Frankie","IRL0016","OPEN","Derry City","IRL"]
[null,"Colm Gallagher","Gallagher","Colm","IRL0017","OPEN","Free Agent","IRL"]
[null,"David Elton","Elton","David","IRL0018","VET","Irish Premier League","IRL"]
[null,"Sean Connolly","Connolly","Sean","IRL0019","OPEN","Derry City","IRL"]
[null,"Adrian Pigott","Pigott","Adrian","IRL0020","VET","Irish Premier League","IRL"]
[null,"William Magnier","Magnier","William","IRL0021","VET","Free Agent","IRL"]
[null,"John Kinsella","Kinsella","John","IRL0022","VET","Irish Premier League","IRL"]
[null,"Jeff Murphy","Murphy","Jeff","IRL0023","VET","Free Agent","IRL"]
[null,"Elliot Fitzpatrick","Fitzpatrick","Elliot","IRL0024","U12","Irish Premier League","IRL"]
[null,"Shaun Dunne","Dunne","Shaun","IRL0025","OPEN","Wolverhampton TFC","IRL"]
[null,"Ofir Zarduk","Zarduk","Ofir","ISR0014","OPEN","Free Agent","ISR"]
[null,"Simone Funaro","Funaro","Simone","ISR0033","OPEN","SC Sombrero","ISR"]
[null,"Ascer Funaro","Funaro","Ascer","ISR0034","OPEN","SC Sombrero","ISR"]
[null,"Davide Funaro","Funaro","Davide","ISR0035","OPEN","SC Sombrero","ISR"]
[null,"Menashe Harman","Harman","Menashe","ISR0036","VET",null,"ISR"]
[null,"Stuart Kingston","Kingston","Stuart","ISR0039","VET",null,"ISR"]
[null,"Carlo Alessi","Alessi","Carlo","ITA0009","VET","Master Sanremo","ITA"]
[null,"Aaron Allison","Allison","Aaron","ITA0011","OPEN","Pinco Devils Table Soccer","ITA"]
[null,"Genny Ancarola","Ancarola","Genny","ITA0020","VET","SC Ligures","ITA"]
[null,"Andrea Anderlini","Anderlini","Andrea","ITA0021","VET","Subbuteisti Modena 1982","ITA"]
[null,"Alessandro Arca","Arca","Alessandro","ITA0030","VET","Master Sanremo","ITA"]
[null,"Stefano Bacchin","Bacchin","Stefano","ITA0045","VET","Master Sanremo","ITA"]
[null,"Marco Bacci","Bacci","Marco","ITA0046","VET","CT Versilia 2002","ITA"]
[null,"Matteo Balboni","Balboni","Matteo","ITA0052","OPEN","Subbito Gol Ferrara","ITA"]
[null,"Armando Balestrieri","Balestrieri","Armando","ITA0054","OPEN","Stabiae","ITA"]
[null,"Flavio Balice","Balice","Flavio","ITA3458","OPEN","SC Fonte Nuova","ITA"]
[null,"Romualdo Balzano","Balzano","Romualdo","ITA0055","OPEN","SC Catania 1987","ITA"]
[null,"Mario Banditelli","Banditelli","Mario","ITA0056","VET","Stabiae","ITA"]
[null,{"$f":"TRIM(CONCATENATE(D2311,\" \",C2311))","v":"Luca Baraldi"},"Baraldi","Luca","ITA0057","VET","Subbuteisti Modena 1982","ITA"]
[null,"Gregorio Barbieri","Barbieri","Gregorio","ITA3479","U12","Subbuteisti Modena 1982","ITA"]
[null,"Massimiliano Barbieri","Barbieri","Massimiliano","ITA0063","VET","SC Stradivari Cremona","ITA"]
[null,"Federico Bardari","Bardari","Federico","ITA0065","U20","Subbuteo Vomero","ITA"]
[null,"Saverio Bari","Bari","Saverio","ITA0066","VET","F.Lli Bari Reggio Emilia","ITA"]
[null,"Luigi Barone","Barone","Luigi","ITA0070","VET","SPQR MMIX Roma","ITA"]
[null,"Paolo Bartolomeo","Bartolomeo","Paolo","ITA0074","OPEN","Bologna Tigers Subbuteo","ITA"]
[null,"Giuseppe Battaglia","Battaglia","Giuseppe","ITA0076","VET","Foggia CT","ITA"]
[null,"Luca Battista","Battista","Luca","ITA0077","OPEN","TS Napoli Fighters","ITA"]
[null,"Umberto Battista","Battista","Umberto","ITA0078","VET","TS Napoli Fighters","ITA"]
[null,"Tiberio Becucci","Becucci","Tiberio","ITA0079","VET","CS Firenze","ITA"]
[null,"Fabio Belloni","Belloni","Fabio","ITA0083","VET","ACS Perugia 1973","ITA"]
[null,"Edoardo Bellotto","Bellotto","Edoardo","ITA0086","VET","CS SC Serenissima Mestre","ITA"]
[null,"Francesco Benedetti","Benedetti","Francesco","ITA3484","VET","Viterbese Subbuteo","ITA"]
[null,"Michele Benedetto","Benedetto","Michele","ITA3469","OPEN","Subbuteo Club Basilicata","ITA"]
[null,"Francesco Bernardini","Bernardini","Francesco","ITA3459","VET","SC Fonte Nuova","ITA"]
[null,"Daniele Bertelli","Bertelli","Daniele","ITA0100","OPEN","CS Virtus Rieti","ITA"]
[null,"Simone Bertelli","Bertelli","Simone","ITA0101","OPEN","SC Fiamme Azzurre","ITA"]
[null,"Pierluigi Bianco","Bianco","Pierluigi","ITA0105","VET","SC Fiamme Azzurre","ITA"]
[null,"Alessandro Billi","Billi","Alessandro","ITA0107","VET","Subbito Gol Ferrara","ITA"]
[null,"Luca Bisio","Bisio","Luca","ITA0108","VET","TSC Stella Artois Milano","ITA"]
[null,"Marcello Bodin De Chatelard","Bodin De Chatelard","Marcello","ITA0110","OPEN","Subbuteo Casale","ITA"]
[null,"Massimo Bolognino","Bolognino","Massimo","ITA0111","VET","CCT Eagles Napoli","ITA"]
[null,"Marco Bonciani","Bonciani","Marco","ITA0121","OPEN","CS Firenze","ITA"]
[null,"Pietro Bonfante","Bonfante","Pietro","ITA0122","VET","Master Sanremo","ITA"]
[null,"Marco Borriello","Borriello","Marco","ITA0126","VET","SPQR MMIX Roma","ITA"]
[null,"Francesco Bressi","Bressi","Francesco","ITA0134","VET","AS Cosenza","ITA"]
[null,"Maurizio Brillantino","Brillantino","Maurizio","ITA0136","VET","SC Stradivari Cremona","ITA"]
[null,"Marco Brunelli","Brunelli","Marco","ITA0137","OPEN","CS Virtus Rieti","ITA"]
[null,"Antonio Buonansegna","Buonansegna","Antonio","ITA3471","OPEN","Subbuteo Club Basilicata","ITA"]
[null,"Stefano Buono","Buono","Stefano","ITA0139","OPEN","SC Bagheria","ITA"]
[null,"Eleonora Buttitta","Buttitta","Eleonora","ITA0142","OPEN","SC Bagheria","ITA"]
[null,"Stefano Buzzi","Buzzi","Stefano","ITA0143","VET","TSC Stella Artois Milano","ITA"]
[null,"Francesco Cacciapuoti","Cacciapuoti","Francesco","ITA0144","OPEN","CCT Eagles Napoli","ITA"]
[null,"Joseph Calò","Calò","Joseph","ITA0149","OPEN","SC Stradivari Cremona","ITA"]
[null,"Gianfranco Calonico","Calonico","Gianfranco","ITA0150","VET","Master Sanremo","ITA"]
[null,"Lucio Canicchio","Canicchio","Lucio","ITA0154","VET","ASD SC Salernitana","ITA"]
[null,"Luca Capellacci","Capellacci","Luca","ITA0158","OPEN","Bologna Tigers Subbuteo","ITA"]
[null,"Andrea Capelli","Capelli","Andrea","ITA0159","VET","AS Cosenza","ITA"]
[null,"Stefano Capossela","Capossela","Stefano","ITA0161","VET","CS Virtus Rieti","ITA"]
[null,"Paolo Carravetta","Carravetta","Paolo","ITA0174","VET","CT Paola","ITA"]
[null,"Alessandro Casanova","Casanova","Alessandro","ITA0178","VET","SC Sombrero","ITA"]
[null,"Giuseppe Cascioli","Cascioli","Giuseppe","ITA0179","VET","SS Lazio TFC Roma","ITA"]
[null,"Pietro Casini","Casini","Pietro","ITA3481","U12","Subbuteisti Modena 1982","ITA"]
[null,"Andrea Casentini","Casentini","Andrea","ITA0181","VET","ASD SC Salernitana","ITA"]
[null,"Mauro Castiglioni","Castiglioni","Mauro","ITA0186","VET","Bulldogs Vicenza","ITA"]
[null,"Ezio Catalucci","Catalucci","Ezio","ITA3476","OPEN","Viterbese Subbuteo","ITA"]
[null,"Emanuele Cattani","Cattani","Emanuele","ITA0192","VET","CS Firenze","ITA"]
[null,"Giuseppe Causarano","Causarano","Giuseppe","ITA3473","VET","SC Bari","ITA"]
[null,"Micael Caviglia","Caviglia","Micael","ITA0195","OPEN","SS Lazio TFC Roma","ITA"]
[null,"Marino Caviglia","Caviglia","Marino","ITA0196","VET","US Valponte 1986","ITA"]
[null,"Francesco Celotto","Celotto","Francesco","ITA0199","VET","Stabiae","ITA"]
[null,"Livio Cerullo","Cerullo","Livio","ITA0201","VET","SC Sombrero","ITA"]
[null,"Sergio Chiti","Chiti","Sergio","ITA3488","VET","Maremma Subbuteo","ITA"]
[null,"Luca Ciabattoni","Ciabattoni","Luca","ITA0204","OPEN","SC Ascoli","ITA"]
[null,"Massimo Ciano","Ciano","Massimo","ITA0206","VET","ASCT Sessana 1982","ITA"]
[null,"Andrea Ciccarelli","Ciccarelli","Andrea","ITA0207","OPEN","TS Napoli Fighters","ITA"]
[null,"Matteo Ciccarelli","Ciccarelli","Matteo","ITA0209","OPEN","TS Napoli Fighters","ITA"]
[null,"Daniele Cicognani","Cicognani","Daniele","ITA0210","VET","Papata Group Ponticino","ITA"]
[null,"Gaetano Ciraolo","Ciraolo","Gaetano","ITA0216","VET","Subbuteisti Modena 1982","ITA"]
[null,"Stefano Cirillo","Cirillo","Stefano","ITA0217","OPEN","Subbuteisti Modena 1982","ITA"]
[null,"Diego Cogo","Cogo","Diego","ITA0222","OPEN","Bulldogs Vicenza","ITA"]
[null,"Luca Colangelo","Colangelo","Luca","ITA0225","OPEN","SC Fiamme Azzurre","ITA"]
[null,"Claudio Colpani","Colpani","Claudio","ITA0232","VET","ACS Perugia 1973","ITA"]
[null,{"$f":"TRIM(CONCATENATE(D2375,\" \",C2375))","v":"Mario Corradi"},"Corradi","Mario","ITA0239","VET","TSC Stella Artois Milano","ITA"]
[null,"Massimiliano Croatti","Croatti","Massimiliano","ITA0252","VET","Master Sanremo","ITA"]
[null,"Morgan Croce","Croce","Morgan","ITA0254","VET","CCT Roma","ITA"]
[null,"Filippo Cubeta","Cubeta","Filippo","ITA0255","OPEN","Barcellona Calcio Tavolo","ITA"]
[null,"Andrea Cucit","Cucit","Andrea","ITA0257","OPEN","GCT DLF Gorizia","ITA"]
[null,"Ettore Cuomo","Cuomo","Ettore","ITA0259","VET","Subbuteo Vomero","ITA"]
[null,"Giulio Curato","Curato","Giulio","ITA0261","VET","Foggia CT","ITA"]
[null,"Leandro Cuzzocrea","Cuzzocrea","Leandro","ITA0262","OPEN","CT Paola","ITA"]
[null,"Maurizio Cuzzocrea","Cuzzocrea","Maurizio","ITA0263","VET","CT Paola","ITA"]
[null,"Giuseppe De Angelis","De Angelis","Giuseppe","ITA3475","OPEN","Viterbese Subbuteo","ITA"]
[null,"Marco De Berardinis","De Berardinis","Marco","ITA0275","VET","ASD SC Salernitana","ITA"]
[null,"Antonio De Francesco","De Francesco","Antonio","ITA0277","OPEN","ACS Perugia 1973","ITA"]
[null,"Stefano De Francesco","De Francesco","Stefano","ITA0278","VET","ACS Perugia 1973","ITA"]
[null,"Nunzia De Rogati","De Rogati","Nunzia","ITA0284","OPEN","CCT Eagles Napoli","ITA"]
[null,"Gianmarco Del Brocco","Del Brocco","Gianmarco","ITA0288","OPEN","SS Lazio TFC Roma","ITA"]
[null,"Claudio Del Cambio","Del Cambio","Claudio","ITA3468","VET","Subbuteo Club Basilicata","ITA"]
[null,"Roberto Del Cambio","Del Cambio","Roberto","ITA3467","VET","Subbuteo Club Basilicata","ITA"]
[null,"Daniele Della Monaca","Della Monaca","Daniele","ITA0294","OPEN","Pinco Devils Table Soccer","ITA"]
[null,"Paolo Dellacha'","Dellacha'","Paolo","ITA0295","OPEN","SC Biella 91","ITA"]
[null,"Angelo Di Gennaro","Di Gennaro","Angelo","ITA0302","VET","Subbito Gol Ferrara","ITA"]
[null,"Nicola Di Lernia","Di Lernia","Nicola","ITA0304","VET","Subbuteo Club Mestre","ITA"]
[null,"Andrea Di Pierro","Di Pierro","Andrea","ITA0305","VET","Subbuteo Club Pescara","ITA"]
[null,"Davide Di Pierro","Di Pierro","Davide","ITA0306","U20","Subbuteo Club Pescara","ITA"]
[null,"Andrea Di Vincenzo","Di Vincenzo","Andrea","ITA0308","VET","Bologna Tigers Subbuteo","ITA"]
[null,"Claudio Dogali","Dogali","Claudio","ITA0311","VET","Master Sanremo","ITA"]
[null,"Vanessa Dolce","Dolce","Vanessa","ITA3454","OPEN","F.Lli Bari Reggio Emilia","ITA"]
[null,"Pierpaolo Dore","Dore","Pierpaolo","ITA0313","VET","SC Sombrero","ITA"]
[null,"Ilario Dragonetti","Dragonetti","Ilario","ITA0315","OPEN","SC Bagheria","ITA"]
[null,"Giosuè Esposito","Esposito","Giosuè","ITA0319","OPEN","SC Fiamme Azzurre","ITA"]
[null,"Massimo Esposito","Esposito","Massimo","ITA0320","OPEN","Azzurra 99 Napoli","ITA"]
[null,"Stefano Evangelisti","Evangelisti","Stefano","ITA0322","VET","Bologna Tigers Subbuteo","ITA"]
[null,"Michele Farace","Farace","Michele","ITA0330","VET","ACT Anacapri","ITA"]
[null,"Oreste Spagnuolo","Spagnuolo","Oreste","ITA03367","OPEN","SC Stradivari Cremona","ITA"]
[null,"Massimiliano Farnesi","Farnesi","Massimiliano","ITA0338","VET","Atletico Pisa","ITA"]
[null,"Fabrizio Fedele","Fedele","Fabrizio","ITA0342","OPEN","Bologna Tigers Subbuteo","ITA"]
[null,"Luciano Feo","Feo","Luciano","ITA0345","VET","TS Napoli Fighters","ITA"]
[null,"Mattia Ferrante","Ferrante","Mattia","ITA0348","U20","Sc Fiamme Azzurre","ITA"]
[null,"Marco Ferrucci","Ferrucci","Marco","ITA0351","U16","TS Napoli Fighters","ITA"]
[null,"Flavio Fida","Fida","Flavio","ITA3482","OPEN","Subbuteo Grosseto 2018","ITA"]
[null,"Gianluca Figus","Figus","Gianluca","ITA0352","VET","SC Cagliari","ITA"]
[null,"Paolo Finardi","Finardi","Paolo","ITA0355","VET","SC Ascoli","ITA"]
[null,"Stefano Flamini","Flamini","Stefano","ITA0359","VET","SC Ascoli","ITA"]
[null,"Paola Forlani","Forlani","Paola","ITA0365","OPEN","TSC Stella Artois Milano","ITA"]
[null,"Giuseppe Frasca","Frasca","Giuseppe","ITA0371","OPEN","Messina Table Soccer","ITA"]
[null,"Alessandro Fratini","Fratini","Alessandro","ITA3457","VET","SC Fonte Nuova","ITA"]
[null,"Davide Furini","Furini","Davide","ITA0375","OPEN","Subbito Gol Ferrara","ITA"]
[null,"Lorenzo Gaia","Gaia","Lorenzo","ITA0380","OPEN","CS SC Serenissima Mestre","ITA"]
[null,"Gianluca Galeazzi","Galeazzi","Gianluca","ITA0382","VET","TSC Stella Artois Milano","ITA"]
[null,"Mario Gallo","Gallo","Mario","ITA0384","VET","ASCT Sessana 1982","ITA"]
[null,"Severino Gara","Gara","Severino","ITA0386","VET","SC Sombrero","ITA"]
[null,"Stefania Garagnani","Garagnani","Stefania","ITA3486","VET","F.Lli Bari Reggio Emilia","ITA"]
[null,"Alfonso Gargiulo","Gargiulo","Alfonso","ITA0388","VET","Subbito Gol Ferrara","ITA"]
[null,"Catello Gargiulo","Gargiulo","Catello","ITA0389","OPEN","Stabiae","ITA"]
[null,"Giuliano Gazzoldi","Gazzoldi","Giuliano","ITA0393","OPEN","Subbito Gol Ferrara","ITA"]
[null,"Giovanni Genna","Genna","Giovanni","ITA3462","VET","SC Fonte Nuova","ITA"]
[null,"Antonio Gentile","Gentile","Antonio","ITA0396","VET","AS Cosenza","ITA"]
[null,"Ernesto Gentile","Gentile","Ernesto","ITA0397","OPEN","AS Cosenza","ITA"]
[null,"Luca Gentile","Gentile","Luca","ITA0398","OPEN","TS Napoli Fighters","ITA"]
[null,"Francesco Ghirelli","Ghirelli","Francesco","ITA0399","VET","Subbito Gol Ferrara","ITA"]
[null,"Enrico Giannarelli","Giannarelli","Enrico","ITA0402","VET","SC Sombrero","ITA"]
[null,"Gianluca Giliberto","Giliberto","Gianluca","ITA0403","OPEN","Messina Table Soccer","ITA"]
[null,"Fabio Gissara","Gissara","Fabio","ITA0407","OPEN","ASD Siracusa Calcio Tavolo","ITA"]
[null,"Carlo Gissara","Gissara","Carlo","ITA0408","OPEN","ASD Siracusa Calcio Tavolo","ITA"]
[null,"Alessandro Greggi","Greggi","Alessandro","ITA3490","VET","SC Fonte Nuova","ITA"]
[null,{"$f":"TRIM(CONCATENATE(D2439,\" \",C2439))","v":"Alberto Grumberger"},"Grumberger","Alberto","ITA0422","VET","ST Sassari","ITA"]
[null,"Pasquale Guerra","Guerra","Pasquale","ITA0426","VET","Subbuteisti Modena 1982","ITA"]
[null,"Alessandro Guidi","Guidi","Alessandro","ITA0428","VET","CCT Roma","ITA"]
[null,"Giuseppe Guzzetta","Guzzetta","Giuseppe","ITA0431","VET","SC Catania 1987","ITA"]
[null,"Pietro Ielapi","Ielapi","Pietro","ITA0436","VET","Subbuteo Club Reggio Calabria","ITA"]
[null,"Gaetano Ielapi","Ielapi","Gaetano","ITA0437","VET","Messina Table Soccer","ITA"]
[null,"Bernardo Impallomeni","Impallomeni","Bernardo","ITA0439","VET","Subbuteo Vomero","ITA"]
[null,"Alex Incorvaia","Incorvaia","Alex","ITA0440","OPEN","Subbuteo Casale","ITA"]
[null,"Efrem Intra","Intra","Efrem","ITA0443","OPEN","TSC Stella Artois Milano","ITA"]
[null,"Alessandro Ioan","Ioan","Alessandro","ITA0446","VET","GCT DLF Gorizia","ITA"]
[null,"Alex Iorio","Iorio","Alex","ITA0447","OPEN","CS Virtus Rieti","ITA"]
[null,"Giovanni La Forgia","La Forgia","Giovanni","ITA3472","VET","SC Bari","ITA"]
[null,"Riccardo La Rosa","La Rosa","Riccardo","ITA0455","OPEN","SC Palermo 2016","ITA"]
[null,"Alberto La Rosa","La Rosa","Alberto","ITA0456","VET","Bulldogs Vicenza","ITA"]
[null,"Concetto La Torre","La Torre","Concetto","ITA0457","VET","Barcellona Calcio Tavolo","ITA"]
[null,"Francesco La Torre","La Torre","Francesco","ITA0458","OPEN","Barcellona Calcio Tavolo","ITA"]
[null,"Claudio La Torre","La Torre","Claudio","ITA0459","OPEN","Barcellona Calcio Tavolo","ITA"]
[null,"Marco Lamberti","Lamberti","Marco","ITA0461","VET","F.Lli Bari Reggio Emilia","ITA"]
[null,"Andrea Lampugnani","Lampugnani","Andrea","ITA0463","VET","SC Ligures","ITA"]
[null,"Marco Lauretti","Lauretti","Marco","ITA0466","VET","Bologna Tigers Subbuteo","ITA"]
[null,"Gianmaria Lena","Lena","Gianmaria","ITA0473","OPEN","Subbuteo Club Reggio Calabria","ITA"]
[null,"Massimiliano Lepore","Lepore","Massimiliano","ITA0475","VET","Bologna Tigers Subbuteo","ITA"]
[null,"Maurizio Lepri","Lepri","Maurizio","ITA0476","OPEN","ASD SC Salernitana","ITA"]
[null,"Pierluigi Licenziato","Licenziato","Pierluigi","ITA3477","VET","ASD Alba Subbuteo Roma","ITA"]
[null,"Emanuele Licheri","Licheri","Emanuele","ITA0481","VET","F.Lli Bari Reggio Emilia","ITA"]
[null,"Vittorio Giuseppe Li Puma","Li Puma","Vittorio Giuseppe","ITA3491","OPEN","GCT DLF Gorizia","ITA"]
[null,"Ciro Liucci","Liucci","Ciro","ITA0482","VET","ACT Anacapri","ITA"]
[null,"Giuditta Lo Cascio","Lo Cascio","Giuditta","ITA0484","OPEN","SC Bagheria","ITA"]
[null,"Giuseppe Lo Cascio","Lo Cascio","Giuseppe","ITA0485","VET","SC Bagheria","ITA"]
[null,"Simone Lo Iacono","Lo Iacono","Simone","ITA0486","OPEN","SS Lazio TFC Roma","ITA"]
[null,"Francesco Lo Presti","Lo Presti","Francesco","ITA0487","OPEN","SC Bagheria","ITA"]
[null,"Angelo Lo Presti","Lo Presti","Angelo","ITA0488","OPEN","ASD Siracusa Calcio Tavolo","ITA"]
[null,"Francesco Lojacono","Lojacono","Francesco","ITA0489","OPEN","CT Paola","ITA"]
[null,"Fabrizio Maiandi","Maiandi","Fabrizio","ITA0499","VET","ASD CT Aosta Warriors","ITA"]
[null,"Fabio Malvaso","Malvaso","Fabio","ITA0503","VET","CS Virtus Rieti","ITA"]
[null,"Ezio Mancaruso","Mancaruso","Ezio","ITA0505","VET","Subbuteo Vomero","ITA"]
[null,"Andrea Manganello","Manganello","Andrea","ITA0510","OPEN","ACS Perugia 1973","ITA"]
[null,"Mauro Manganello","Manganello","Mauro","ITA0511","VET","ACS Perugia 1973","ITA"]
[null,"Eugenio Mantile","Mantile","Eugenio","ITA0515","VET","TS Napoli Fighters","ITA"]
[null,"Graziano Maresca","Maresca","Graziano","ITA0521","VET","ACT Anacapri","ITA"]
[null,"Damiano Marini","Marini","Damiano","ITA0525","VET","GCT DLF Gorizia","ITA"]
[null,"Davide Marini","Marini","Davide","ITA0526","OPEN","GCT DLF Gorizia","ITA"]
[null,"Riccardo Marinucci","Marinucci","Riccardo","ITA0530","VET","Bologna Tigers Subbuteo","ITA"]
[null,"Paolo Martiner Testa","Martiner Testa","Paolo","ITA0538","OPEN","SC Biella 91","ITA"]
[null,"Vincenzo Martorano","Martorano","Vincenzo","ITA3470","OPEN","Subbuteo Club Basilicata","ITA"]
[null,"Mirco Marzocchi","Marzocchi","Mirco","ITA0541","VET","Subbito Gol Ferrara","ITA"]
[null,"Mirko Masini","Masini","Mirko","ITA0545","OPEN","CS Firenze","ITA"]
[null,"Gianfranco Mastrantuono","Mastrantuono","Gianfranco","ITA0547","VET","Master Sanremo","ITA"]
[null,"Manuel Mastrantuono","Mastrantuono","Manuel","ITA0548","OPEN","Master Sanremo","ITA"]
[null,"Alessandro Mastropasqua","Mastropasqua","Alessandro","ITA0549","VET","CS SC Serenissima Mestre","ITA"]
[null,"Federico Mattiangeli","Mattiangeli","Federico","ITA0551","VET","CS Virtus Rieti","ITA"]
[null,"Francesco Mattiangeli","Mattiangeli","Francesco","ITA0552","VET","Bologna Tigers Subbuteo","ITA"]
[null,"Bruno Mazzeo","Mazzeo","Bruno","ITA0553","OPEN","TSC Stella Artois Milano","ITA"]
[null,"Edoardo Mazzilli","Mazzilli","Edoardo","ITA3480","U12","Subbuteisti Modena 1982","ITA"]
[null,"Michelangelo Mazzilli","Mazzilli","Michelangelo","ITA0555","VET","SC Ascoli","ITA"]
[null,"Arnaldo Mazzoni","Mazzoni","Arnaldo","ITA3465","OPEN","Subbuteo Club Basilicata","ITA"]
[null,"Gerardo Mazzoni","Mazzoni","Gerardo","ITA3466","VET","Subbuteo Club Basilicata","ITA"]
[null,"Tommaso Mazzoni","Mazzoni","Tommaso","ITA3464","VET","Subbuteo Club Basilicata","ITA"]
[null,"Carlo Melia","Melia","Carlo","ITA0560","VET","Master Sanremo","ITA"]
[null,"Antonio Mettivieri","Mettivieri","Antonio","ITA0568","OPEN","CCT Eagles Napoli","ITA"]
[null,"Stefano Montefiori","Montefiori","Stefano","ITA0580","VET","Papata Group Ponticino","ITA"]
[null,"Leonardo Moretti","Moretti","Leonardo","ITA0587","VET","Subbuteo Grosseto 2018","ITA"]
[null,"Carmine Napolitano","Napolitano","Carmine","ITA0595","OPEN","SC Fiamme Azzurre","ITA"]
[null,"Vincenzo Nappa","Nappa","Vincenzo","ITA0600","VET","ASD SC Salernitana","ITA"]
[null,{"$f":"TRIM(CONCATENATE(D2503,\" \",C2503))","v":"Simone Nappini"},"Nappini","Simone","ITA0601","OPEN","CS Virtus Rieti","ITA"]
[null,"Massimiliano Nastasi","Nastasi","Massimiliano","ITA0603","VET","SC Fiamme Azzurre","ITA"]
[null,"Alessandro Natoli","Natoli","Alessandro","ITA0604","OPEN","Messina Table Soccer","ITA"]
[null,"Cesare Natoli","Natoli","Cesare","ITA0605","VET","Messina Table Soccer","ITA"]
[null,"Alessandro Neri","Neri","Alessandro","ITA0607","OPEN","CS Firenze","ITA"]
[null,"Fabrizio Neri","Neri","Fabrizio","ITA0609","VET","CS Virtus Rieti","ITA"]
[null,"Vittorio Nicchi","Nicchi","Vittorio","ITA0614","VET","Papata Group Ponticino","ITA"]
[null,"Alessandro Ottone","Ottone","Alessandro","ITA0633","VET","Subbuteo Club Reggio Calabria","ITA"]
[null,"Lionello Palmieri","Palmieri","Lionello","ITA0636","VET","Subbuteo Club Pescara","ITA"]
[null,"Claudio Panebianco","Panebianco","Claudio","ITA0641","OPEN","SC Catania 1987","ITA"]
[null,"Laura Panza - Intra","Panza - Intra","Laura","ITA0644","OPEN","TSC Stella Artois Milano","ITA"]
[null,"Massimiliano Patrono","Patrono","Massimiliano","ITA3489","U20","Subbuteo Taranto","ITA"]
[null,"Gerardo Patruno","Patruno","Gerardo","ITA0648","VET","Bologna Tigers Subbuteo","ITA"]
[null,"Alessandro Pecchioli","Pecchioli","Alessandro","ITA0651","VET","Granducato Subbuteo","ITA"]
[null,"Ciro Alessio Pecoraro","Pecoraro","Ciro Alessio","ITA3456","OPEN","F.Lli Bari Reggio Emilia","ITA"]
[null,"Andrea Pellegrino","Pellegrino","Andrea","ITA0653","OPEN","AS Cosenza","ITA"]
[null,"Antonio Peluso","Peluso","Antonio","ITA0655","OPEN","TS Napoli Fighters","ITA"]
[null,"Marco Perazzo","Perazzo","Marco","ITA0657","VET","SC Ascoli","ITA"]
[null,"Luca Pessini","Pessini","Luca","ITA0664","VET","TSC Stella Artois Milano","ITA"]
[null,"Mauro Petrini","Petrini","Mauro","ITA0666","VET","Subbuteo Club Labronico","ITA"]
[null,"Marco Pinausi","Pinausi","Marco","ITA0675","VET","GCT DLF Gorizia","ITA"]
[null,"Luca Pini","Pini","Luca","ITA0676","VET","CS Firenze","ITA"]
[null,"Fabrizio Pintore","Pintore","Fabrizio","ITA0678","VET","ST Sassari","ITA"]
[null,"Daniele Pochesci","Pochesci","Daniele","ITA0687","OPEN","CS Virtus Rieti","ITA"]
[null,"Giuseppe Porcelli","Porcelli","Giuseppe","ITA0691","VET","Subbuteo Vomero","ITA"]
[null,"Riccardo Porro","Porro","Riccardo","ITA0692","VET","Subbuteisti Modena 1982","ITA"]
[null,"Michelangelo Porro","Porro","Michelangelo","ITA0693","OPEN","Subbuteisti Modena 1982","ITA"]
[null,"Salvatore Praino","Praino","Salvatore","ITA0694","VET","GCT DLF Gorizia","ITA"]
[null,"Gennaro Preziuso","Preziuso","Gennaro","ITA0701","OPEN","Subbuteisti Modena 1982","ITA"]
[null,"Manfredo Preziuso","Preziuso","Manfredo","ITA0702","VET","Azzurra 99 Napoli","ITA"]
[null,"Marco Preziuso","Preziuso","Marco","ITA0703","OPEN","TS Napoli Fighters","ITA"]
[null,"Francesco Quattrini","Quattrini","Francesco","ITA0708","VET","Bologna Tigers Subbuteo","ITA"]
[null,"Salvatore Randielli","Randielli","Salvatore","ITA0713","VET","ASD Siracusa Calcio Tavolo","ITA"]
[null,"Alberto Recano","Recano","Alberto","ITA0717","OPEN","TS Napoli Fighters","ITA"]
[null,"Matteo Resca","Resca","Matteo","ITA0720","VET","SC Samb","ITA"]
[null,"Giovanni Maria Riccardi","Riccardi","Giovanni Maria","ITA0721","VET","ASD Alba Subbuteo Roma","ITA"]
[null,"Luca Riccio","Riccio","Luca","ITA0726","OPEN","ASCT Sessana 1982","ITA"]
[null,"Alessandro Riccò","Riccò","Alessandro","ITA0727","OPEN","F.Lli Bari Reggio Emilia","ITA"]
[null,"Alberto Riccò","Riccò","Alberto","ITA0728","VET","F.Lli Bari Reggio Emilia","ITA"]
[null,"Flavio Rivabella","Rivabella","Flavio","ITA3483","VET","ASD Alba Subbuteo Roma","ITA"]
[null,"Carolina Rodi","Rodi","Carolina","ITA3455","OPEN","F.Lli Bari Reggio Emilia","ITA"]
[null,"Antonello Rodriquez","Rodriquez","Antonello","ITA0738","VET","CCT Roma","ITA"]
[null,"Filippo Rossi","Rossi","Filippo","ITA0743","OPEN","Subbito Gol Ferrara","ITA"]
[null,"Ivano Russo","Russo","Ivano","ITA0748","OPEN","ASD Siracusa Calcio Tavolo","ITA"]
[null,"Giacomo Saguatti","Saguatti","Giacomo","ITA3478","U12","Subbuteisti Modena 1982","ITA"]
[null,"Luca Salvadori","Salvadori","Luca","ITA0755","VET","SC Pantere Lucca","ITA"]
[null,"Mauro Salvati","Salvati","Mauro","ITA0756","OPEN","CS Virtus Rieti","ITA"]
[null,"Cesare Santanicchia","Santanicchia","Cesare","ITA0758","VET","SC Sombrero","ITA"]
[null,"Gaetano Sasso","Sasso","Gaetano","ITA0762","VET","ASCT Sessana 1982","ITA"]
[null,"Marcello Scarduelli","Scarduelli","Marcello","ITA0773","VET","Subbuteo Club Pescara","ITA"]
[null,"Amerigo Scatamacchia","Scatamacchia","Amerigo","ITA0776","VET","AS Cosenza","ITA"]
[null,"Massimiliano Schiavone","Schiavone","Massimiliano","ITA0779","VET","Foggia CT","ITA"]
[null,"Riccardo Schito","Schito","Riccardo","ITA0780","VET","CS Virtus Rieti","ITA"]
[null,"Carmelo Sciacca","Sciacca","Carmelo","ITA0781","OPEN","Barcellona Calcio Tavolo","ITA"]
[null,"Filippo Sella","Sella","Filippo","ITA0788","VET","Subbuteisti Modena 1982","ITA"]
[null,"Pasquale Sepe","Sepe","Pasquale","ITA0790","OPEN","Subbuteo Vomero","ITA"]
[null,"Massimo Sergio","Sergio","Massimo","ITA0793","VET","CT Torino 2009","ITA"]
[null,"Gianluca Serpico","Serpico","Gianluca","ITA0794","VET","Subbuteo Vomero","ITA"]
[null,"Giuseppe Setale","Setale","Giuseppe","ITA0797","VET","ACT Anacapri","ITA"]
[null,"Gabriele Silveri","Silveri","Gabriele","ITA0806","OPEN","SC Ascoli","ITA"]
[null,"Giancarlo Silvestri","Silvestri","Giancarlo","ITA0807","VET","SC Ascoli","ITA"]
[null,"Roberto Sirica","Sirica","Roberto","ITA0811","OPEN","TS Napoli Fighters","ITA"]
[null,"Mauro Sollazzo","Sollazzo","Mauro","ITA0815","VET","Foggia CT","ITA"]
[null,"Pietro Sommella","Sommella","Pietro","ITA0816","VET","CT Paola","ITA"]
[null,{"$f":"TRIM(CONCATENATE(D2567,\" \",C2567))","v":"Alfredo Soria"},"Soria","Alfredo","ITA0821","VET","CT Paola","ITA"]
[null,"Alessandro Spoto","Spoto","Alessandro","ITA0826","VET","SS Lazio TFC Roma","ITA"]
[null,"Mattia Stoto","Stoto","Mattia","ITA0833","VET","Foggia CT","ITA"]
[null,"Andrea Strazza","Strazza","Andrea","ITA0834","VET","TSC Black Rose 98 Roma","ITA"]
[null,"Alessandro Subazzoli","Subazzoli","Alessandro","ITA0837","OPEN","F.Lli Bari Reggio Emilia","ITA"]
[null,"Matteo Suffritti","Suffritti","Matteo","ITA0838","OPEN","TSC Stella Artois Milano","ITA"]
[null,"Stefano Tagliaferri","Tagliaferri","Stefano","ITA0839","VET","SS Lazio TFC Roma","ITA"]
[null,"Diego Tagliaferri","Tagliaferri","Diego","ITA0841","OPEN","SS Lazio TFC Roma","ITA"]
[null,"Giuseppe Tassone","Tassone","Giuseppe","ITA3463","VET","SC Fonte Nuova","ITA"]
[null,"Enrico Testa","Testa","Enrico","ITA0850","OPEN","SC Catania 1987","ITA"]
[null,"Salvatore Tinebra","Tinebra","Salvatore","ITA0855","VET","CT Torino 2009","ITA"]
[null,"Alessandro Toni","Toni","Alessandro","ITA0858","VET","Atletico Pisa","ITA"]
[null,"Francesco Torano","Torano","Francesco","ITA0860","VET","Master Sanremo","ITA"]
[null,"Pasquale Torano","Torano","Pasquale","ITA0861","VET","Subbito Gol Ferrara","ITA"]
[null,"Ruggero Torboli","Torboli","Ruggero","ITA0862","VET","SC Sombrero","ITA"]
[null,"Corrado Trenta","Trenta","Corrado","ITA0868","VET","CS Virtus Rieti","ITA"]
[null,"Tommaso Tricoli","Tricoli","Tommaso","ITA0869","VET","AS Cosenza","ITA"]
[null,"Roberto Utzeri","Utzeri","Roberto","ITA0875","VET","TSC Black Rose 98 Roma","ITA"]
[null,"Augusto Vagnoni","Vagnoni","Augusto","ITA0876","VET","SC Ascoli","ITA"]
[null,"Vincenzo Varriale","Varriale","Vincenzo","ITA0884","VET","ASCT Sessana 1982","ITA"]
[null,"Roberto Vergoni","Vergoni","Roberto","ITA0888","OPEN","Papata Group Ponticino","ITA"]
[null,"Maurizio Vezzo","Vezzo","Maurizio","ITA0889","OPEN","CCT Eagles Napoli","ITA"]
[null,"Davide Visentin","Visentin","Davide","ITA0897","VET","Subbito Gol Ferrara","ITA"]
[null,"Raimondo Vito","Vito","Raimondo","ITA3474","VET","SC Bari","ITA"]
[null,"Giovanni Volpi","Volpi","Giovanni","ITA0902","VET","Subbito Gol Ferrara","ITA"]
[null,"Luca Zambello","Zambello","Luca","ITA0908","OPEN","F.Lli Bari Reggio Emilia","ITA"]
[null,"Paolo Zambello","Zambello","Paolo","ITA0909","OPEN","Subbuteo Casale","ITA"]
[null,"Pier Celeste Zambello","Zambello","Pier Celeste","ITA0910","VET","TSC Stella Artois Milano","ITA"]
[null,"Marco Midoro","Midoro","Marco","ITA0921","VET","SC Ligures","ITA"]
[null,"Roberto Maina","Maina","Roberto","ITA0928","VET","CT Torino 2009","ITA"]
[null,"Giuseppe Torre","Torre","Giuseppe","ITA0932","OPEN","Barcellona Calcio Tavolo","ITA"]
[null,"Domenico Vinaccia","Vinaccia","Domenico","ITA0944","VET","AS Cosenza","ITA"]
[null,"Luigi Baroni","Baroni","Luigi","ITA0949","VET","Subbuteo Club Reggio Calabria","ITA"]
[null,"Vincenzo Prestia","Prestia","Vincenzo","ITA0950","OPEN","Subbuteo Club Reggio Calabria","ITA"]
[null,"Luca Santonetti","Santonetti","Luca","ITA0958","OPEN","Ves Gentes","ITA"]
[null,"Giuseppe Ogno","Ogno","Giuseppe","ITA0978","VET","Bologna Tigers Subbuteo","ITA"]
[null,"Paolo Natale","Natale","Paolo","ITA1003","VET","CS SC Serenissima Mestre","ITA"]
[null,"Andrea Dorato","Dorato","Andrea","ITA1006","OPEN","Subbuteo Casale","ITA"]
[null,"Mauro Cionfi","Cionfi","Mauro","ITA1015","VET","Asd CT Aosta Warriors","ITA"]
[null,"Simone Righetto","Righetto","Simone","ITA1024","OPEN","CS SC Serenissima Mestre","ITA"]
[null,"Andrea Scola","Scola","Andrea","ITA1025","VET","Pinco Devils Table Soccer","ITA"]
[null,"Mauro D'arco","D'arco","Mauro","ITA1029","OPEN","Stabiae","ITA"]
[null,"Pasquale Citrigno","Citrigno","Pasquale","ITA1053","VET","Subbuteo Club Reggio Calabria","ITA"]
[null,"Geremia Trinchese","Trinchese","Geremia","ITA1054","OPEN","Bologna Tigers Subbuteo","ITA"]
[null,"Raffaele Di Vito","Di Vito","Raffaele","ITA1059","VET","CCT Eagles Napoli","ITA"]
[null,"Luigi Di Vito","Di Vito","Luigi","ITA1060","OPEN","CCT Eagles Napoli","ITA"]
[null,"Marco Di Vito","Di Vito","Marco","ITA1061","OPEN","CCT Eagles Napoli","ITA"]
[null,"Antonio Fucci","Fucci","Antonio","ITA1062","OPEN","CCT Eagles Napoli","ITA"]
[null,"Alessandro Migliori","Migliori","Alessandro","ITA1070","OPEN","SC Ascoli","ITA"]
[null,"Luca Schiavi","Schiavi","Luca","ITA1092","OPEN","Pinco Devils Table Soccer","ITA"]
[null,"Paolo Smaldone","Smaldone","Paolo","ITA1093","VET","ASD SC Salernitana","ITA"]
[null,"Giovanni Frascarelli","Frascarelli","Giovanni","ITA1106","VET","ASD SC Salernitana","ITA"]
[null,"Eduardo Erminione","Erminione","Eduardo","ITA1125","OPEN","AS Cosenza","ITA"]
[null,"Michele Giudice","Giudice","Michele","ITA1126","VET","Subbuteo Club Labronico","ITA"]
[null,"Alan Bianchi","Bianchi","Alan","ITA1130","OPEN","SC Ascoli","ITA"]
[null,"Alessandro Montanari","Montanari","Alessandro","ITA1136","OPEN","F.lli Bari Reggio Emilia","ITA"]
[null,"Pierpaolo Murabito","Murabito","Pierpaolo","ITA1137","OPEN","ASD Siracusa Calcio Tavolo","ITA"]
[null,"Leonardo Giudice","Giudice","Leonardo","ITA1138","OPEN","Subbuteo Club Labronico","ITA"]
[null,"Bernardo Ricco","Ricco","Bernardo","ITA1145","VET","ASD CT Aosta Warriors","ITA"]
[null,"Santo Longo","Longo","Santo","ITA1148","VET","SC Catania 1987","ITA"]
[null,"Maurizio Seppia","Seppia","Maurizio","ITA1150","OPEN","CT Versilia 2002","ITA"]
[null,"Carlo Ciraolo","Ciraolo","Carlo","ITA1151","VET","SC Stradivari Cremona","ITA"]
[null,"Giovanni Tonietti","Tonietti","Giovanni","ITA1156","VET","Subbuteo Club Reggio Calabria","ITA"]
[null,"Rosario Ifrigerio","Ifrigerio","Rosario","ITA1163","VET","Messina Table Soccer","ITA"]
[null,{"$f":"TRIM(CONCATENATE(D2631,\" \",C2631))","v":"Antonio Panizzari"},"Panizzari","Antonio","ITA1166","VET","CT Torino 2009","ITA"]
[null,"Antonio Mastrangelo","Mastrangelo","Antonio","ITA1168","VET","Bulldogs Vicenza","ITA"]
[null,"Paolo Mariotto","Mariotto","Paolo","ITA1174","VET","Subbuteo Club Mestre","ITA"]
[null,"Antonio Crovetti","Crovetti","Antonio","ITA1181","VET","TSC Stella Artois Milano","ITA"]
[null,"Pietro Troiani","Troiani","Pietro","ITA1183","OPEN","SC Ascoli","ITA"]
[null,"Alessandro Amatelli","Amatelli","Alessandro","ITA1190","OPEN","Subbuteo Casale","ITA"]
[null,"Alessandro Meneghetti (62)","Meneghetti (62)","Alessandro","ITA1200","VET","Bulldogs Vicenza","ITA"]
[null,"Matteo Cherici","Cherici","Matteo","ITA1211","VET","CS Firenze","ITA"]
[null,"Michele Cortese","Cortese","Michele","ITA1216","VET","Barcellona Calcio Tavolo","ITA"]
[null,"Armando Giuffrè","Giuffrè","Armando","ITA1217","OPEN","Messina Table Soccer","ITA"]
[null,"Riccardo Natoli","Natoli","Riccardo","ITA1218","OPEN","Messina Table Soccer","ITA"]
[null,"Salvatore Ghiselli","Ghiselli","Salvatore","ITA1247","VET","CT Versilia 2002","ITA"]
[null,"Cesare Friggeri","Friggeri","Cesare","ITA1251","VET","Bologna Tigers Subbuteo","ITA"]
[null,"Vincenzo Riccio","Riccio","Vincenzo","ITA1257","VET","ASCT Sessana 1982","ITA"]
[null,"Stephano De Paoli","De Paoli","Stephano","ITA1260","VET","Trento Subbuteo","ITA"]
[null,"Luca Pezzuolo","Pezzuolo","Luca","ITA1261","VET","Pinco Devils Table Soccer","ITA"]
[null,"Vittorio De Pascale","De Pascale","Vittorio","ITA1264","VET","SC Ligures","ITA"]
[null,"Davide Visani","Visani","Davide","ITA1273","OPEN","CS Firenze","ITA"]
[null,"William Dotto","Dotto","William","ITA1275","VET","F.Lli Bari Reggio Emilia","ITA"]
[null,"Roberto Renaldini","Renaldini","Roberto","ITA1285","VET","CS SC Serenissima Mestre","ITA"]
[null,"Massimo Cotugno","Cotugno","Massimo","ITA1293","VET","Azzurra 99 napoli","ITA"]
[null,"Francesco Vezzuto","Vezzuto","Francesco","ITA1300","OPEN","CCT Eagles Napoli","ITA"]
[null,"Pasquale Vezzuto","Vezzuto","Pasquale","ITA1306","VET","CCT Eagles Napoli","ITA"]
[null,"Marco Macino","Macino","Marco","ITA1307","OPEN","GCT DLF Gorizia","ITA"]
[null,"Gianluca Buono","Buono","Gianluca","ITA1309","OPEN","SC Bagheria","ITA"]
[null,"Nicola Poggiali","Poggiali","Nicola","ITA1313","VET","Granducato Subbuteo","ITA"]
[null,"Letizia Santoni","Santoni","Letizia","ITA1314","VET","CS Firenze","ITA"]
[null,"Massimo Novi","Novi","Massimo","ITA1316","VET","CCT Eagles Napoli","ITA"]
[null,"Pietro Previti","Previti","Pietro","ITA1341","VET","Azzurra 99 napoli","ITA"]
[null,"Alfredo Lubrano","Lubrano","Alfredo","ITA1385","VET","CS Solvay Vada","ITA"]
[null,"Alessandro Vegni","Vegni","Alessandro","ITA1386","VET","SC Sombrero","ITA"]
[null,"Francesco Caruso","Caruso","Francesco","ITA1387","OPEN","Azzurra 99 napoli","ITA"]
[null,"Massimo Mura","Mura","Massimo","ITA1408","VET","Trento Subbuteo","ITA"]
[null,"Andrea Zanetti","Zanetti","Andrea","ITA1419","OPEN","F.Lli Bari Reggio Emilia","ITA"]
[null,"Sebastian Di Gennaro","Di Gennaro","Sebastian","ITA1432","OPEN","Subbito Gol Ferrara","ITA"]
[null,"Salvatore Currò","Currò","Salvatore","ITA1438","VET","Messina Table Soccer","ITA"]
[null,"Biagio Amata","Amata","Biagio","ITA1439","VET","Messina Table Soccer","ITA"]
[null,"Giovanni Maria Moro","Moro","Giovanni Maria","ITA1440","VET","ST Sassari","ITA"]
[null,"Rocco Morganelli","Morganelli","Rocco","ITA1443","OPEN","SC Stradivari Cremona","ITA"]
[null,"Gianluigi Camerlingo","Camerlingo","Gianluigi","ITA1459","OPEN","TS Napoli Fighters","ITA"]
[null,"Antonio Corso","Corso","Antonio","ITA1464","VET","SC Bagheria","ITA"]
[null,"Giuseppe Ferro","Ferro","Giuseppe","ITA1465","OPEN","SPQR MMIX Roma","ITA"]
[null,"Antonio Chieppa","Chieppa","Antonio","ITA1472","VET","SC Samb","ITA"]
[null,"Adriano Iobbi","Iobbi","Adriano","ITA1473","VET","SC Samb","ITA"]
[null,"Roberto Manzella","Manzella","Roberto","ITA1476","OPEN","Subbuteo Club Reggio Calabria","ITA"]
[null,"Riccardo Chieppa","Chieppa","Riccardo","ITA1483","OPEN","SC Samb","ITA"]
[null,"Simone Di Pierro","Di Pierro","Simone","ITA1485","VET","Subbuteo Club Pescara","ITA"]
[null,"Saverio Ferrante","Ferrante","Saverio","ITA1486","VET","ASCT Sessana 1982","ITA"]
[null,"Patrizio Lazzaretti","Lazzaretti","Patrizio","ITA1487","VET","SS Lazio TFC Roma","ITA"]
[null,"Dino Gasparetto","Gasparetto","Dino","ITA1492","OPEN","Subbito Gol Ferrara","ITA"]
[null,"Nico Landi","Landi","Nico","ITA1493","VET","Subbito Gol Ferrara","ITA"]
[null,"Daniele Lopresto","Lopresto","Daniele","ITA1496","VET","CS Virtus Rieti","ITA"]
[null,"Franco Grimaldi","Grimaldi","Franco","ITA1507","OPEN","CT Torino 2009","ITA"]
[null,"Gianfranco Iazzetta","Iazzetta","Gianfranco","ITA1510","VET","CCT Eagles Napoli","ITA"]
[null,"Arturo Azzaro","Azzaro","Arturo","ITA1511","VET","CT Torino 2009","ITA"]
[null,"Ermanno Marchetti","Marchetti","Ermanno","ITA1518","VET","CCT Roma","ITA"]
[null,"Antonio La Torre","La Torre","Antonio","ITA1524","OPEN","Barcellona Calcio Tavolo","ITA"]
[null,"Mirco Marinari","Marinari","Mirco","ITA1545","OPEN","Atletico Pisa","ITA"]
[null,"Stefano Corazza","Corazza","Stefano","ITA1550","OPEN","Pinco Devils Table Soccer","ITA"]
[null,"Massimo Balestrieri","Balestrieri","Massimo","ITA1551","VET","CTS Versilia Football Planet","ITA"]
[null,"Andrea Bolognino","Bolognino","Andrea","ITA1553","OPEN","CCT Eagles Napoli","ITA"]
[null,"Alfredo Palmieri","Palmieri","Alfredo","ITA1558","VET","CCT Eagles Napoli","ITA"]
[null,"Davide Disma","Disma","Davide","ITA1563","OPEN","ASD Siracusa Calcio Tavolo","ITA"]
[null,"Fabrizio Guastella","Guastella","Fabrizio","ITA1564","OPEN","ASD Siracusa Calcio Tavolo","ITA"]
[null,{"$f":"TRIM(CONCATENATE(D2695,\" \",C2695))","v":"Andrea Palazzolo"},"Palazzolo","Andrea","ITA1566","OPEN","Trento Subbuteo","ITA"]
[null,"Luigi Romano","Romano","Luigi","ITA1567","OPEN","Trento Subbuteo","ITA"]
[null,"Ismaele Caurla","Caurla","Ismaele","ITA1569","OPEN","Trento Subbuteo","ITA"]
[null,"Fabrizio Lay","Lay","Fabrizio","ITA1574","VET","ST Sassari","ITA"]
[null,"Corrado Farina","Farina","Corrado","ITA1575","VET","SC Cagliari","ITA"]
[null,"Andrea Anselmi","Anselmi","Andrea","ITA1577","VET","SC Ascoli","ITA"]
[null,"Daniele Corti","Corti","Daniele","ITA1582","VET","Granducato Subbuteo","ITA"]
[null,"Enrico Tosi","Tosi","Enrico","ITA1583","VET","CS Solvay Vada","ITA"]
[null,"Giorgio Giudice","Giudice","Giorgio","ITA1587","U20","Subbuteo Club Labronico","ITA"]
[null,"Marco Trevisan","Trevisan","Marco","ITA1589","VET","CS Firenze","ITA"]
[null,"Gianpaolo Vitulano","Vitulano","Gianpaolo","ITA1590","OPEN","Stabiae","ITA"]
[null,"Luca Signorelli","Signorelli","Luca","ITA1607","VET","Subbuteo Taranto","ITA"]
[null,"Francesco Paolini","Paolini","Francesco","ITA1610","VET","SC Samb","ITA"]
[null,"Aldo Gentileschi","Gentileschi","Aldo","ITA1614","VET","Papata Group Ponticino","ITA"]
[null,"Raffaele Converti","Converti","Raffaele","ITA1623","VET","ST Sassari","ITA"]
[null,"Giampaolo Milei","Milei","Giampaolo","ITA1635","OPEN","SC Sombrero","ITA"]
[null,"Pierluigi Signoretti","Signoretti","Pierluigi","ITA1636","OPEN","SC Sombrero","ITA"]
[null,"Luca Varricchio","Varricchio","Luca","ITA1641","VET","ACT Anacapri","ITA"]
[null,"Filippo Filippella","Filippella","Filippo","ITA1646","VET","ASD CT Aosta Warriors","ITA"]
[null,"Gaetano Giudice","Giudice","Gaetano","ITA1649","VET","Subbuteo Club Labronico","ITA"]
[null,"Francesco Tozzi","Tozzi","Francesco","ITA1651","U20","Subbuteo Club Labronico","ITA"]
[null,"Alessio Colasanti","Colasanti","Alessio","ITA1656","OPEN","CS Virtus Rieti","ITA"]
[null,"Luigi Grillo","Grillo","Luigi","ITA1662","VET","AS Cosenza","ITA"]
[null,"Vittorio Cribari","Cribari","Vittorio","ITA1663","OPEN","AS Cosenza","ITA"]
[null,"Vincenzo Manica","Manica","Vincenzo","ITA1665","VET","US Catanzaro Subbuteo","ITA"]
[null,"Antonino Fontana","Fontana","Antonino","ITA1670","OPEN","SC Bagheria","ITA"]
[null,"Guido Cerullo","Cerullo","Guido","ITA1680","OPEN","GCT DLF Gorizia","ITA"]
[null,"Pierluigi Bevilacqua","Bevilacqua","Pierluigi","ITA1700","VET","Trento Subbuteo","ITA"]
[null,"Stefano Barducci","Barducci","Stefano","ITA1702","OPEN","CS Firenze","ITA"]
[null,"Salvatore Riggio","Riggio","Salvatore","ITA1705","OPEN","Messina Table Soccer","ITA"]
[null,"Enrico Mondo","Mondo","Enrico","ITA1707","OPEN","Foggia CT","ITA"]
[null,"Andrea De Giosa","De Giosa","Andrea","ITA1721","OPEN","SC Bari","ITA"]
[null,"Giuseppe Triggiani","Triggiani","Giuseppe","ITA1723","VET","CS Virtus Rieti","ITA"]
[null,"Luigi Quaranta","Quaranta","Luigi","ITA1724","VET","SC Bari","ITA"]
[null,"Vittorio Giummo","Giummo","Vittorio","ITA1730","VET","US Catanzaro Subbuteo","ITA"]
[null,"Sandro Vasapollo","Vasapollo","Sandro","ITA1734","VET","US Catanzaro Subbuteo","ITA"]
[null,"Paolo Talarico","Talarico","Paolo","ITA1736","VET","US Catanzaro Subbuteo","ITA"]
[null,"Alfredo Priamo","Priamo","Alfredo","ITA1737","VET","US Catanzaro Subbuteo","ITA"]
[null,"Francesco Borgo","Borgo","Francesco","ITA1748","U20","Subbuteo Casale","ITA"]
[null,"Christian Fricano","Fricano","Christian","ITA1749","U20","Subbuteo Casale","ITA"]
[null,"Ermanno Junior Fioretti","Fioretti","Ermanno Junior","ITA1752","OPEN","Bologna Tigers Subbuteo","ITA"]
[null,"Roberto Carbonaro","Carbonaro","Roberto","ITA1753","VET","Team Campania","ITA"]
[null,"Dario Di Muri","Di Muri","Dario","ITA1757","VET","CT Torino 2009","ITA"]
[null,"Giorgio Manfioletti","Manfioletti","Giorgio","ITA1758","VET","Trento Subbuteo","ITA"]
[null,"Giorgio Mentasti","Mentasti","Giorgio","ITA1759","VET","Trento Subbuteo","ITA"]
[null,"Valeriano Cianchella","Cianchella","Valeriano","ITA1777","VET","Atletico Pisa","ITA"]
[null,"Orlando Navarra","Navarra","Orlando","ITA1783","VET","ASD CT Aosta Warriors","ITA"]
[null,"Giovanni Navarra","Navarra","Giovanni","ITA1784","VET","ASD CT Aosta Warriors","ITA"]
[null,"Hélène Boniface","Boniface","Hélène","ITA1785","VET","ASD CT Aosta Warriors","ITA"]
[null,"Stefano Luciani","Luciani","Stefano","ITA1792","OPEN","free agent","ITA"]
[null,"Natan Caurla","Caurla","Natan","ITA1811","U16","trento Subbuteo","ITA"]
[null,"Roberto Saitta","Saitta","Roberto","ITA1821","OPEN","SC Bagheria","ITA"]
[null,"Stefano Pacitti","Pacitti","Stefano","ITA1828","VET","Atletico Pisa","ITA"]
[null,"Vincenzo Calabrese","Calabrese","Vincenzo","ITA1831","VET","Subbuteo Taranto","ITA"]
[null,"Riccardo Ferri","Ferri","Riccardo","ITA1833","VET","CS Firenze","ITA"]
[null,"Salvatore Dore","Dore","Salvatore","ITA1835","VET","ST Sassari","ITA"]
[null,"Stefano Barontini","Barontini","Stefano","ITA1837","VET","Atletico Pisa","ITA"]
[null,"Emanuele Lo Cascio","Lo Cascio","Emanuele","ITA1839","VET","SPQR MMIX Roma","ITA"]
[null,"Giovanni Micati","Micati","Giovanni","ITA1842","OPEN","Subbuteo Club Pescara","ITA"]
[null,"Stefano Zappacosta","Zappacosta","Stefano","ITA1843","VET","Subbuteo Club Pescara","ITA"]
[null,"Massimiliano Iervese","Iervese","Massimiliano","ITA1846","OPEN","Ves Gentes","ITA"]
[null,"Matteo Esposito","Esposito","Matteo","ITA1849","U20","TS Napoli Fighters","ITA"]
[null,"Massimo De Paolis","De Paolis","Massimo","ITA1863","VET","SPQR MMIX Roma","ITA"]
[null,"Greta Cevolani","Cevolani","Greta","ITA1879","VET","Bologna Tigers Subbuteo","ITA"]
[null,{"$f":"TRIM(CONCATENATE(D2759,\" \",C2759))","v":"Alessandro Finelli"},"Finelli","Alessandro","ITA1880","VET","Bologna Tigers Subbuteo","ITA"]
[null,"Marco Pistoni","Pistoni","Marco","ITA1899","VET","Bulldogs Vicenza","ITA"]
[null,"Mario Lo Iacono","Lo Iacono","Mario","ITA1909","VET","SS Lazio TFC Roma","ITA"]
[null,"Fabio Di Pietrantonio","Di Pietrantonio","Fabio","ITA1914","OPEN","SC Fiamme Azzurre","ITA"]
[null,"Ettore Cencini","Cencini","Ettore","ITA1916","OPEN","Papata Group Ponticino","ITA"]
[null,"Alessandro Cafiero","Cafiero","Alessandro","ITA1917","OPEN","GCT DLF Gorizia","ITA"]
[null,"Simone Trivelli","Trivelli","Simone","ITA1921","VET","SS Lazio TFC Roma","ITA"]
[null,"Luca Converti","Converti","Luca","ITA1930","VET","CT Torino 2009","ITA"]
[null,"Erica Guagliardi","Guagliardi","Erica","ITA1939","OPEN","SC Catania 1987","ITA"]
[null,"Daniele Di Cè","Di Cè","Daniele","ITA1947","VET","Subbuteisti Modena 1982","ITA"]
[null,"Alessandro Gabbani","Gabbani","Alessandro","ITA1951","VET","Atletico Pisa","ITA"]
[null,"Andrea Giorgianni","Giorgianni","Andrea","ITA1965","OPEN","Messina Table Soccer","ITA"]
[null,"Salvatore Mandanici","Mandanici","Salvatore","ITA1966","OPEN","Barcellona Calcio Tavolo","ITA"]
[null,"Antonio Berardi","Berardi","Antonio","ITA1970","VET","AS Cosenza","ITA"]
[null,"Antonino Campagna","Campagna","Antonino","ITA1980","VET","Messina Table Soccer","ITA"]
[null,"Alessandro Cova","Cova","Alessandro","ITA1982","VET","Bologna Tigers Subbuteo","ITA"]
[null,"Giuseppe Ragusa","Ragusa","Giuseppe","ITA1990","OPEN","trento Subbuteo","ITA"]
[null,"Stefano Cafaggi","Cafaggi","Stefano","ITA1995","VET","Subbuteo Club Labronico","ITA"]
[null,"Francesco Ottone","Ottone","Francesco","ITA1996","VET","ASD CT Aosta Warriors","ITA"]
[null,"Maria Grazia Ottone","Ottone","Maria Grazia","ITA1997","U16","ASD CT Aosta Warriors","ITA"]
[null,"Gianfranco Gallelli","Gallelli","Gianfranco","ITA2001","VET","US Catanzaro Subbuteo","ITA"]
[null,"Domenico Tassone","Tassone","Domenico","ITA2007","VET","US Catanzaro Subbuteo","ITA"]
[null,"Daniele Perrino","Perrino","Daniele","ITA2014","U16","TSC Black Rose 98 Roma","ITA"]
[null,"Julia Filippella Nasti","Filippella Nasti","Julia","ITA2018","U20","ASD CT Aosta Warriors","ITA"]
[null,"Sean Filippella Nasti","Filippella Nasti","Sean","ITA2019","U20","ASD CT Aosta Warriors","ITA"]
[null,"Luca Cataldo","Cataldo","Luca","ITA2022","OPEN","Azzurra 99 napoli","ITA"]
[null,"Antonio Ianniello","Ianniello","Antonio","ITA2031","VET","ASM Nola 74","ITA"]
[null,"Vincenzo Iovino","Iovino","Vincenzo","ITA2033","OPEN","ASM Nola 74","ITA"]
[null,"Felice Meo","Meo","Felice","ITA2034","VET","ASM Nola 74","ITA"]
[null,"Pietro Di Pietrantonio","Di Pietrantonio","Pietro","ITA3291","OPEN","CCT Eagles Napoli","ITA"]
[null,"Giovanni Meo ('04)","Meo ('04)","Giovanni","ITA2035","OPEN","ASM Nola 74","ITA"]
[null,"Tommaso Piatti","Piatti","Tommaso","ITA2036","OPEN","ASM Nola 74","ITA"]
[null,"Giuseppe Pizzella","Pizzella","Giuseppe","ITA2037","OPEN","ASM Nola 74","ITA"]
[null,"Felice Simonetti","Simonetti","Felice","ITA2040","OPEN","ASM Nola 74","ITA"]
[null,"Riccardo Galieti","Galieti","Riccardo","ITA2046","VET","SS Lazio TFC Roma","ITA"]
[null,"Ernesto Poncetta","Poncetta","Ernesto","ITA2048","VET","SS Lazio TFC Roma","ITA"]
[null,"Tiziano Ficola","Ficola","Tiziano","ITA2052","VET","SC Sombrero","ITA"]
[null,"Carmine De Luca","De Luca","Carmine","ITA2056","OPEN","Team Campania","ITA"]
[null,"Angelo Coppolino","Coppolino","Angelo","ITA2059","VET","Barcellona Calcio Tavolo","ITA"]
[null,"Maurizio Pugi","Pugi","Maurizio","ITA2066","VET","Subbuteo Club La Signoria","ITA"]
[null,"Massimo Lombardi","Lombardi","Massimo","ITA2078","VET","Subbuteo Club La Signoria","ITA"]
[null,"Matteo Tarabella","Tarabella","Matteo","ITA2080","OPEN","CT Versilia 2002","ITA"]
[null,"Alberto Vatteroni","Vatteroni","Alberto","ITA2081","VET","Papata Group Ponticino","ITA"]
[null,"Federico Milan","Milan","Federico","ITA2094","VET","Subbuteo Verona 2016","ITA"]
[null,"Riccardo Falorni","Falorni","Riccardo","ITA2098","VET","SC Sombrero","ITA"]
[null,"Sandro Sani","Sani","Sandro","ITA2102","VET","SC Sombrero","ITA"]
[null,"Ivan Quattrocchi","Quattrocchi","Ivan","ITA2113","OPEN","Subbuteo Taranto","ITA"]
[null,"Angelo Solito","Solito","Angelo","ITA2115","VET","Subbuteo Taranto","ITA"]
[null,"Gianluca Sostegno","Sostegno","Gianluca","ITA2116","VET","Subbuteo Taranto","ITA"]
[null,"Cristian Cecconi","Cecconi","Cristian","ITA2125","OPEN","Granducato Subbuteo","ITA"]
[null,"Gabriele Casati","Casati","Gabriele","ITA2129","VET","CS Firenze","ITA"]
[null,"Giovanni Meo (98)","Meo (98)","Giovanni","ITA2137","OPEN","ASM Nola 74","ITA"]
[null,"Lorenzo Fricano","Fricano","Lorenzo","ITA2140","U16","Subbuteo Casale","ITA"]
[null,"Alessandro Rolle","Rolle","Alessandro","ITA2156","VET","CT Torino 2009","ITA"]
[null,"Alessio Nardi","Nardi","Alessio","ITA2158","OPEN","Subbuteo Club Labronico","ITA"]
[null,"Alessio Tacchia","Tacchia","Alessio","ITA2159","OPEN","CS SC Serenissima Mestre","ITA"]
[null,"Ferdinando Gasparini","Gasparini","Ferdinando","ITA2163","OPEN","ASD SC Salernitana","ITA"]
[null,"Andrea Stanislai","Stanislai","Andrea","ITA2165","VET","Subbuteo Club Labronico","ITA"]
[null,"Giovanni Meo (04)","Meo (04)","Giovanni","ITA2035","OPEN","ASM Nola 74","ITA"]
[null,"Antonella Furnari","Furnari","Antonella","ITA2168","OPEN","Barcellona Calcio Tavolo","ITA"]
[null,"Antonio Palumbo","Palumbo","Antonio","ITA2170","VET","Atletico Pisa","ITA"]
[null,"Barbara Coriani","Coriani","Barbara","ITA2171","VET","F.Lli Bari Reggio Emilia","ITA"]
[null,"Carmelo Natale","Natale","Carmelo","ITA2173","OPEN","Barcellona Calcio Tavolo","ITA"]
[null,"Costantino Cavone","Cavone","Costantino","ITA2179","VET","Bologna Tigers Subbuteo","ITA"]
[null,{"$f":"TRIM(CONCATENATE(D2823,\" \",C2823))","v":"Cristian Giovangiacomo"},"Giovangiacomo","Cristian","ITA2180","VET","Subbuteo Club Labronico","ITA"]
[null,"Nico Lucchesi","Lucchesi","Nico","ITA2181","VET","SC Sombrero","ITA"]
[null,"Daniele Emiliano Bernardi","Bernardi","Daniele Emiliano","ITA2183","VET","CS SC Serenissima Mestre","ITA"]
[null,"Daniele Venturini","Venturini","Daniele","ITA2186","OPEN","Subbuteo Club Labronico","ITA"]
[null,"Stefano Bardari","Bardari","Stefano","ITA2197","OPEN","Subbuteo Vomero","ITA"]
[null,"Flavio Lombardi","Lombardi","Flavio","ITA2198","VET","Subbuteo Club Labronico","ITA"]
[null,"Ugo Custo","Custo","Ugo","ITA2199","VET","US Catanzaro Subbuteo","ITA"]
[null,"Francesco Bombacigno","Bombacigno","Francesco","ITA2200","OPEN","TSC Black Rose 98 Roma","ITA"]
[null,"Gionata Benedetti","Benedetti","Gionata","ITA2213","VET","Subbuteo Club Labronico","ITA"]
[null,"Giorgio Amabile","Amabile","Giorgio","ITA2214","VET","CS Solvay Vada","ITA"]
[null,"Giovanna Lo Cascio","Lo Cascio","Giovanna","ITA2217","OPEN","Barcellona Calcio Tavolo","ITA"]
[null,"Giovanni Crisconio","Crisconio","Giovanni","ITA2218","VET","ASD Siracusa Calcio Tavolo","ITA"]
[null,"Guido Capobianco","Capobianco","Guido","ITA2219","OPEN","SC Palermo 2016","ITA"]
[null,"Giuseppe Filardo","Filardo","Giuseppe","ITA2224","OPEN","Subbuteo Club Reggio Calabria","ITA"]
[null,"Lorenzo Crisconio","Crisconio","Lorenzo","ITA2231","U20","ASD Siracusa Calcio Tavolo","ITA"]
[null,"Luca Ariano","Ariano","Luca","ITA2232","OPEN","Foggia CT","ITA"]
[null,"Luca Locci","Locci","Luca","ITA2233","OPEN","Atletico Pisa","ITA"]
[null,"Marcel Musso","Musso","Marcel","ITA2240","U16","Asd Ct Aosta Warriors","ITA"]
[null,"Michele Ferrucci","Ferrucci","Michele","ITA2243","OPEN","TS Napoli Fighters","ITA"]
[null,"Massimo Matteucci","Matteucci","Massimo","ITA2246","VET","Subbuteo Club Labronico","ITA"]
[null,"Massimo Ubbiali","Ubbiali","Massimo","ITA2248","OPEN","CT Paola","ITA"]
[null,"Mauro Cremona","Cremona","Mauro","ITA2254","VET","Subbuteo Club Labronico","ITA"]
[null,"Michele Marziani","Marziani","Michele","ITA2255","VET","Maremma Subbuteo","ITA"]
[null,"Pietro Ugolini","Ugolini","Pietro","ITA2266","VET","CS Solvay Vada","ITA"]
[null,"Raffaele Fiorillo","Fiorillo","Raffaele","ITA2267","VET","Atletico Pisa","ITA"]
[null,"Riccardo Rabacchin","Rabacchin","Riccardo","ITA2269","VET","Subbuteo Club Labronico","ITA"]
[null,"Valerio Lombardo","Lombardo","Valerio","ITA2279","VET","SS Lazio TFC Roma","ITA"]
[null,"Paolo Baglioni","Baglioni","Paolo","ITA2290","VET","Subbuteo L'aquila Club","ITA"]
[null,"Andrea De Santis","De Santis","Andrea","ITA2291","OPEN","Subbuteo L'aquila Club","ITA"]
[null,"Lorenzo Aiani","Aiani","Lorenzo","ITA2298","VET","Atletico Pisa","ITA"]
[null,"Andrea Vincentini","Vincentini","Andrea","ITA2299","VET","Atletico Pisa","ITA"]
[null,"Giampiero Pinto","Pinto","Giampiero","ITA2301","VET","SC Bari","ITA"]
[null,"Enrico Vito Perrino","Perrino","Enrico Vito","ITA2312","VET","Bologna Tigers Subbuteo","ITA"]
[null,"Michelangelo Montecalvo","Montecalvo","Michelangelo","ITA2314","OPEN","Bologna Tigers Subbuteo","ITA"]
[null,"Alberto Gagliardi","Gagliardi","Alberto","ITA2317","VET","US Catanzaro Subbuteo","ITA"]
[null,"Leonardo D'amico","D'amico","Leonardo","ITA2318","VET","Old Lions Macerata","ITA"]
[null,"Jury Di Tullio","Di Tullio","Jury","ITA2319","VET","Old Lions Macerata","ITA"]
[null,"Stefano Gambella","Gambella","Stefano","ITA2320","VET","Old Lions Macerata","ITA"]
[null,"Paolo Guidara","Guidara","Paolo","ITA2323","VET","Old Lions Macerata","ITA"]
[null,"Rocco Antonio Iarlori","Iarlori","Rocco Antonio","ITA2324","OPEN","Old Lions Macerata","ITA"]
[null,"Mario Marcolini","Marcolini","Mario","ITA2325","VET","Old Lions Macerata","ITA"]
[null,"Andrea Senesi","Senesi","Andrea","ITA2326","OPEN","Old Lions Macerata","ITA"]
[null,"Fabio Pasquini","Pasquini","Fabio","ITA2329","VET","SC Castelfiorentino","ITA"]
[null,"Vincenzo Santaniello","Santaniello","Vincenzo","ITA2330","OPEN","SC Castelfiorentino","ITA"]
[null,"Giuseppe Zaccardo","Zaccardo","Giuseppe","ITA2332","VET","SC Castelfiorentino","ITA"]
[null,"Nicola Dragoni","Dragoni","Nicola","ITA2333","VET","SC Castelfiorentino","ITA"]
[null,"Paolo Bastianoni","Bastianoni","Paolo","ITA2334","VET","SC Castelfiorentino","ITA"]
[null,"Ali Nasri","Nasri","Ali","ITA2337","VET","SC Castelfiorentino","ITA"]
[null,"Enea Nasri","Nasri","Enea","ITA2339","U20","SC Castelfiorentino","ITA"]
[null,"Luigi Santise","Santise","Luigi","ITA2342","VET","CT Torino 2009","ITA"]
[null,"Alessandro Dazzi","Dazzi","Alessandro","ITA2344","VET","Subbuteo Club Labronico","ITA"]
[null,"Giovanni Marconcini","Marconcini","Giovanni","ITA2345","VET","Subbuteo Club Labronico","ITA"]
[null,"Sebastiano Pireddu","Pireddu","Sebastiano","ITA2347","OPEN","Subbuteo Club Labronico","ITA"]
[null,"Ilario Spagnoli","Spagnoli","Ilario","ITA2348","VET","Subbuteo Club Labronico","ITA"]
[null,"Roberto Mazzucchi","Mazzucchi","Roberto","ITA2352","VET","CCT Roma","ITA"]
[null,"Marco Nicastro","Nicastro","Marco","ITA2353","VET","CCT Roma","ITA"]
[null,"Maurizio Presutti","Presutti","Maurizio","ITA2354","VET","Viterbese Subbuteo","ITA"]
[null,"Enrico Ronchetti","Ronchetti","Enrico","ITA2355","VET","Viterbese Subbuteo","ITA"]
[null,"Massimiliano Painelli","Painelli","Massimiliano","ITA2356","VET","CCT Roma","ITA"]
[null,"Michele Fenucci","Fenucci","Michele","ITA2357","VET","CCT Roma","ITA"]
[null,"Vito Antonino Famà","Famà","Vito Antonino","ITA2358","OPEN","Barcellona Calcio Tavolo","ITA"]
[null,"Monica Perdichizzi","Perdichizzi","Monica","ITA2360","OPEN","Barcellona Calcio Tavolo","ITA"]
[null,"Paolo Ciboldi","Ciboldi","Paolo","ITA2364","VET","ASD CT Aosta Warriors","ITA"]
[null,"Andrea Barabino","Barabino","Andrea","ITA2365","OPEN","US Valponte 1986","ITA"]
[null,{"$f":"TRIM(CONCATENATE(D2887,\" \",C2887))","v":"Andrea Di Terlizzi"},"Di Terlizzi","Andrea","ITA2366","VET","US Valponte 1986","ITA"]
[null,"Fabio Nardulli","Nardulli","Fabio","ITA2367","OPEN","US Valponte 1986","ITA"]
[null,"Paolo Tolve","Tolve","Paolo","ITA2368","OPEN","SC Ligures","ITA"]
[null,"Lorenzo Lazzaretti","Lazzaretti","Lorenzo","ITA2376","OPEN","SS Lazio TFC Roma","ITA"]
[null,"Giulio Sergi","Sergi","Giulio","ITA2382","VET","Subbuteo Club Reggio Calabria","ITA"]
[null,"Christian Canessa","Canessa","Christian","ITA2383","VET","SC Ligures","ITA"]
[null,"Enrico Frisone","Frisone","Enrico","ITA2384","VET","SC Ligures","ITA"]
[null,"Massimo Nativo","Nativo","Massimo","ITA2385","OPEN","SC Ligures","ITA"]
[null,"Eric Fasce Canessa","Canessa","Eric Fasce","ITA2387","OPEN","SC Ligures","ITA"]
[null,"Giorgio Frisone","Frisone","Giorgio","ITA2388","OPEN","SC Ligures","ITA"]
[null,"Luca Parodi","Parodi","Luca","ITA2389","VET","SC Ligures","ITA"]
[null,"John Vecchiarelli","Vecchiarelli","John","ITA2391","VET","Maremma Subbuteo","ITA"]
[null,"Marco Grassini","Grassini","Marco","ITA2393","VET","Maremma Subbuteo","ITA"]
[null,"Marcello Gualerci","Gualerci","Marcello","ITA2394","VET","Maremma Subbuteo","ITA"]
[null,"Giacomo Pozzi","Pozzi","Giacomo","ITA2395","VET","Maremma Subbuteo","ITA"]
[null,"Cristiano Craviotto","Craviotto","Cristiano","ITA2401","VET","SC Ligures","ITA"]
[null,"Ettore Molino","Molino","Ettore","ITA2402","VET","Rebels Genova","ITA"]
[null,"Marco Caviglia","Caviglia","Marco","ITA2403","VET","SS Lazio TFC Roma","ITA"]
[null,"Costantino Bevilacqua","Bevilacqua","Costantino","ITA2404","VET","SC Ligures","ITA"]
[null,"Michele Sirica","Sirica","Michele","ITA2407","OPEN","Azzurra 99 napoli","ITA"]
[null,"Franco Forino","Forino","Franco","ITA2409","VET","ASM Nola 74","ITA"]
[null,"Leonardo Lista","Lista","Leonardo","ITA2413","VET","Subbuteo Club La Signoria","ITA"]
[null,"Alessandro Zampieri","Zampieri","Alessandro","ITA2415","VET","CS Firenze","ITA"]
[null,"Massimo Fornaciai","Fornaciai","Massimo","ITA2416","VET","Subbuteo Club La Signoria","ITA"]
[null,"Gerardo Morandi","Morandi","Gerardo","ITA2417","VET","Granducato Subbuteo","ITA"]
[null,"Gianfranco Attanasio","Attanasio","Gianfranco","ITA2418","VET","Team Campania","ITA"]
[null,"Ciro Battipaglia","Battipaglia","Ciro","ITA2419","VET","Team Campania","ITA"]
[null,"Massimo D'auria","D'auria","Massimo","ITA2420","OPEN","Team Campania","ITA"]
[null,"Claudio Santoriello","Santoriello","Claudio","ITA2422","VET","Team Campania","ITA"]
[null,"Enrico Guidi","Guidi","Enrico","ITA2425","VET","SC Sombrero","ITA"]
[null,"Alessandro Lupi","Lupi","Alessandro","ITA2427","OPEN","SC Fonte Nuova","ITA"]
[null,"Maria Felice Merkouris","Merkouris","Maria Felice","ITA2429","OPEN","SC Palermo 2016","ITA"]
[null,"Giulio Nucci","Nucci","Giulio","ITA2441","OPEN","CS Virtus Rieti","ITA"]
[null,"Gianriccardo Colucci","Colucci","Gianriccardo","ITA2450","VET","SC Palermo 2016","ITA"]
[null,"Alessandro Foti","Foti","Alessandro","ITA2453","OPEN","Subbuteo Casale","ITA"]
[null,"Francesco Giambelluca","Giambelluca","Francesco","ITA2457","VET","ASD SC Salernitana","ITA"]
[null,"Riccardo Nicoletti","Nicoletti","Riccardo","ITA2468","VET","ASD CT Aosta Warriors","ITA"]
[null,"Alessandro Nefi","Nefi","Alessandro","ITA2469","VET","US Catanzaro Subbuteo","ITA"]
[null,"Cristiano Cordone","Cordone","Cristiano","ITA2471","OPEN","US Catanzaro Subbuteo","ITA"]
[null,"Mirko Cappelli","Cappelli","Mirko","ITA2476","OPEN","Subbuteo Club Labronico","ITA"]
[null,"Alessio Guardini","Guardini","Alessio","ITA2477","VET","SC Sombrero","ITA"]
[null,"Stefano Scarselli","Scarselli","Stefano","ITA2479","VET","SC Castelfiorentino","ITA"]
[null,"David Falaschi","Falaschi","David","ITA2480","OPEN","SC Sombrero","ITA"]
[null,"Raffaele Di Nola","Di Nola","Raffaele","ITA2482","VET","Team Campania","ITA"]
[null,"Luca Puzella","Puzella","Luca","ITA2483","OPEN","Team Campania","ITA"]
[null,"Vincenzo Miccolupi","Miccolupi","Vincenzo","ITA2488","OPEN","Team Campania","ITA"]
[null,"Fabrizio Schiatti","Schiatti","Fabrizio","ITA2489","VET","Subbuteisti Modena 1982","ITA"]
[null,"Filippo Mussino","Mussino","Filippo","ITA2492","OPEN","CT Torino 2009","ITA"]
[null,"Christian Mascitti","Mascitti","Christian","ITA2494","OPEN","ASD CT Aosta Warriors","ITA"]
[null,"Maurizio Silvestri","Silvestri","Maurizio","ITA2512","VET","CS Solvay Vada","ITA"]
[null,"Silvio Nocchi","Nocchi","Silvio","ITA2514","VET","CS Solvay Vada","ITA"]
[null,"Andrea Oncini","Oncini","Andrea","ITA2515","VET","CS Solvay Vada","ITA"]
[null,"Michele Mori","Mori","Michele","ITA2517","VET","CS Solvay Vada","ITA"]
[null,"David Cambi","Cambi","David","ITA2520","VET","CS Solvay Vada","ITA"]
[null,"Filippo Becattini","Becattini","Filippo","ITA2523","OPEN","AACS Valdarno","ITA"]
[null,"Roberto Grigiotti","Grigiotti","Roberto","ITA2525","VET","AACS Valdarno","ITA"]
[null,"Filippo Nompari","Nompari","Filippo","ITA2526","OPEN","AACS Valdarno","ITA"]
[null,"Roberto Piccoli","Piccoli","Roberto","ITA2530","VET","Subbuteo Verona 2016","ITA"]
[null,"Massimo Franchi","Franchi","Massimo","ITA2531","VET","Subbuteo Verona 2016","ITA"]
[null,"Alessandro Marani","Marani","Alessandro","ITA2532","VET","Subbuteo Club Labronico","ITA"]
[null,"Alberto Azzali","Azzali","Alberto","ITA2533","VET","Subbuteo Verona 2016","ITA"]
[null,"Luca Gorna","Gorna","Luca","ITA2534","VET","Subbuteo Verona 2016","ITA"]
[null,"Lorenzo Rocca","Rocca","Lorenzo","ITA2535","VET","Subbuteo Verona 2016","ITA"]
[null,"Alessandro Girelli","Girelli","Alessandro","ITA2536","VET","Subbuteo Verona 2016","ITA"]
[null,{"$f":"TRIM(CONCATENATE(D2951,\" \",C2951))","v":"Alessandro Marino"},"Marino","Alessandro","ITA2541","VET","CS Virtus Rieti","ITA"]
[null,"Roberto Pieroni","Pieroni","Roberto","ITA2542","VET","SC Sombrero","ITA"]
[null,"Michele Bussotti","Bussotti","Michele","ITA2550","VET","CS Virtus Rieti","ITA"]
[null,"Michele Cerullo","Cerullo","Michele","ITA2551","OPEN","GCT DLF Gorizia","ITA"]
[null,"Massimiliano Goldoni","Goldoni","Massimiliano","ITA2552","VET","CT Versilia 2002","ITA"]
[null,"Renato Parussini","Parussini","Renato","ITA2553","VET","Pinco Devils Table Soccer","ITA"]
[null,"Gabriele Liguori","Liguori","Gabriele","ITA2554","VET","Azzurra 99 Napoli","ITA"]
[null,"Vito Donzelli","Donzelli","Vito","ITA2556","VET","Palermo Subbuteo","ITA"]
[null,"Paolo De Miranda","De Miranda","Paolo","ITA2559","VET","SC Ravenna","ITA"]
[null,"Adelchi De Miranda","De Miranda","Adelchi","ITA2560","U20","SC Ravenna","ITA"]
[null,"Christian Roncagliolo","Roncagliolo","Christian","ITA2563","OPEN","Rebels Genova","ITA"]
[null,"Stefano Pianigiani","Pianigiani","Stefano","ITA2571","VET","TSC Black Rose 98 Roma","ITA"]
[null,"Matteo Stanislai","Stanislai","Matteo","ITA2572","OPEN","Subbuteo Club Labronico","ITA"]
[null,"Marco Perotti","Perotti","Marco","ITA2576","OPEN","SS Lazio TFC Roma","ITA"]
[null,"Antonio De Masellis","De Masellis","Antonio","ITA2578","VET","Team Campania","ITA"]
[null,"Cristoforo Cristiano Catalanotto","Catalanotto","Cristoforo Cristiano","ITA2581","VET","Granducato Subbuteo","ITA"]
[null,"Domenico Tacchia","Tacchia","Domenico","ITA2584","VET","CS SC Serenissima Mestre","ITA"]
[null,"Gaetano Di Feo","Di Feo","Gaetano","ITA2585","VET","Team Campania","ITA"]
[null,"Roberto Torini","Torini","Roberto","ITA2590","VET","SC Sombrero","ITA"]
[null,"Pietro Curci","Curci","Pietro","ITA2593","VET","Subbuteo Club La Signoria","ITA"]
[null,"Gian Marco Taverna","Taverna","Gian Marco","ITA2594","OPEN","ASD VT CTS Fidenza","ITA"]
[null,"Abramo Bartolini","Bartolini","Abramo","ITA2596","VET","F.lli Bari Reggio Emilia","ITA"]
[null,"Francesco Molinari","Molinari","Francesco","ITA2599","VET","F.lli Bari Reggio Emilia","ITA"]
[null,"Alessandro Bracali","Bracali","Alessandro","ITA2607","VET","SC Ligures","ITA"]
[null,"Francesco Zolfanelli","Zolfanelli","Francesco","ITA2610","VET","TSC Black Rose 98 Roma","ITA"]
[null,"Emanuele Radicchi","Radicchi","Emanuele","ITA2616","VET","ACS Perugia 1973","ITA"]
[null,"Francesco Manfredelli","Manfredelli","Francesco","ITA2617","U20","CCT Eagles Napoli","ITA"]
[null,"Mattia Trevisani","Trevisani","Mattia","ITA2622","U16","Subbito Gol Ferrara","ITA"]
[null,"Francesco Romanazzi","Romanazzi","Francesco","ITA2626","OPEN","ACS Perugia 1973","ITA"]
[null,"Michele Guarino","Guarino","Michele","ITA2642","OPEN","SC Palermo 2016","ITA"]
[null,"Valentino Lombardo","Lombardo","Valentino","ITA2646","OPEN","SC Palermo 2016","ITA"]
[null,"Samuele Bonciani","Bonciani","Samuele","ITA2649","U16","CS Firenze","ITA"]
[null,"Lanfranco Corsi","Corsi","Lanfranco","ITA2651","VET","Subbuteo Club La Signoria","ITA"]
[null,"Luca Cirri","Cirri","Luca","ITA2653","VET","Subbuteo Club La Signoria","ITA"]
[null,"Marco Tedeschi","Tedeschi","Marco","ITA2655","VET","Granducato Subbuteo","ITA"]
[null,"Fabrizio Gammarota","Gammarota","Fabrizio","ITA2658","VET","Atletico Pisa","ITA"]
[null,"Massimo Barisone","Barisone","Massimo","ITA2660","OPEN","Subbuteo Club Silvio Piola","ITA"]
[null,"Gianluca Venturini","Venturini","Gianluca","ITA2663","VET","ASD Triestina Subbuteo","ITA"]
[null,"Cristiano Sassetti","Sassetti","Cristiano","ITA2674","VET","SC Sombrero","ITA"]
[null,"Alberto Borsani","Borsani","Alberto","ITA2676","OPEN","CT Paola","ITA"]
[null,"Manlio Mochi","Mochi","Manlio","ITA2677","VET","SS Lazio TFC Roma","ITA"]
[null,"Marco Palamà","Palamà","Marco","ITA2680","OPEN","Subbuteo Club Silvio Piola","ITA"]
[null,"Piercarlo Cattellani","Cattellani","Piercarlo","ITA2685","OPEN","Subbuteisti Modena 1982","ITA"]
[null,"Maurizio Colella","Colella","Maurizio","ITA2690","VET","Subbuteo Club Labronico","ITA"]
[null,"Carlo Alfredo Beretta","Beretta","Carlo Alfredo","ITA2691","VET","US Valponte 1986","ITA"]
[null,"Bruno Esposito","Esposito","Bruno","ITA2693","OPEN","SC Castelfiorentino","ITA"]
[null,"Davide Massone","Massone","Davide","ITA2694","VET","Messina Table Soccer","ITA"]
[null,"Alessandro Dellepiane","Dellepiane","Alessandro","ITA2699","VET","Rebels Genova","ITA"]
[null,"Matteo Fumai","Fumai","Matteo","ITA2701","OPEN","GCT DLF Gorizia","ITA"]
[null,"Gennaro Mancini","Mancini","Gennaro","ITA2702","VET","GCT DLF Gorizia","ITA"]
[null,"François Villette","Villette","François","ITA2703","OPEN","Azzurra 99 Napoli","ITA"]
[null,"Diego Lazzaroni","Lazzaroni","Diego","ITA2709","VET","Leonessa 2004 Brescia","ITA"]
[null,"Roberto Cipro","Cipro","Roberto","ITA2712","VET","Leonessa 2004 Brescia","ITA"]
[null,"Adriano Coticelli","Coticelli","Adriano","ITA2719","OPEN","Stabiae","ITA"]
[null,"Stefano Marazzotta","Marazzotta","Stefano","ITA2733","VET","CT Torino 2009","ITA"]
[null,"Edoardo Landi","Landi","Edoardo","ITA2734","U16","Subbito Gol Ferrara","ITA"]
[null,"Francesco D'amico","D'amico","Francesco","ITA2735","VET","TSC Black Rose 98 Roma","ITA"]
[null,"Laura Tava","Tava","Laura","ITA2736","VET","TSC Black Rose 98 Roma","ITA"]
[null,"Massimo Tortello","Tortello","Massimo","ITA2741","VET","SC Ligures","ITA"]
[null,"Giancarlo Scano","Scano","Giancarlo","ITA2749","VET","SC Cagliari","ITA"]
[null,"Efisio Garau","Garau","Efisio","ITA2751","VET","SC Cagliari","ITA"]
[null,"Pietro Limbardi","Limbardi","Pietro","ITA2752","VET","SC Cagliari","ITA"]
[null,"Igor Portoghese","Portoghese","Igor","ITA2753","OPEN","SC Cagliari","ITA"]
[null,"Ignazio Portoghese","Portoghese","Ignazio","ITA2754","OPEN","SC Cagliari","ITA"]
[null,{"$f":"TRIM(CONCATENATE(D3015,\" \",C3015))","v":"Fabrizio Scano"},"Scano","Fabrizio","ITA2755","OPEN","SC Cagliari","ITA"]
[null,"Riccardo Damasco","Damasco","Riccardo","ITA2758","OPEN","SC Cagliari","ITA"]
[null,"Emilio Richichi","Richichi","Emilio","ITA2767","VET","SC Palermo 2016","ITA"]
[null,"Gianni Belli","Belli","Gianni","ITA2768","VET","Subbuteo Grosseto 2018","ITA"]
[null,"Gianpaolo De Santis","De Santis","Gianpaolo","ITA2771","VET","Subbuteo Grosseto 2018","ITA"]
[null,"Pietro Magro","Magro","Pietro","ITA2773","VET","Subbuteo Grosseto 2018","ITA"]
[null,"Luca Palazzoli","Palazzoli","Luca","ITA2774","VET","Subbuteo Grosseto 2018","ITA"]
[null,"Riccardo Zecchini","Zecchini","Riccardo","ITA2777","VET","Subbuteo Grosseto 2018","ITA"]
[null,"Sergio Mazzau","Mazzau","Sergio","ITA2778","VET","Maremma Subbuteo","ITA"]
[null,"Nicola Montefusco","Montefusco","Nicola","ITA2781","VET","SC Sombrero","ITA"]
[null,"Leonardo Carlucci","Carlucci","Leonardo","ITA2783","OPEN","Maremma Subbuteo","ITA"]
[null,"Domenico Cucinella","Cucinella","Domenico","ITA2789","VET","SC Bari","ITA"]
[null,"Gioacchino Camerini","Camerini","Gioacchino","ITA2791","VET","Maremma Subbuteo","ITA"]
[null,"Valerio Bilucaglia","Bilucaglia","Valerio","ITA2796","U16","ASD Triestina Subbuteo","ITA"]
[null,"Dario Bilucaglia","Bilucaglia","Dario","ITA2797","VET","ASD Triestina Subbuteo","ITA"]
[null,"Cosimo Orlando","Orlando","Cosimo","ITA2804","VET","Subbuteo Taranto","ITA"]
[null,"Fabio Rampi","Rampi","Fabio","ITA2810","VET","Subbuteo Club La Signoria","ITA"]
[null,"Roberto Lavoratti","Lavoratti","Roberto","ITA2812","VET","Rebels Genova","ITA"]
[null,"Giuseppe Basile","Basile","Giuseppe","ITA2814","VET","Messina Table Soccer","ITA"]
[null,"Carlo Gazzarri","Gazzarri","Carlo","ITA2816","VET","ASD Volterrana 2016","ITA"]
[null,"Antonio Maielli","Maielli","Antonio","ITA2817","VET","ASD Volterrana 2016","ITA"]
[null,"Duccio Passeroni","Passeroni","Duccio","ITA2818","OPEN","Papata Group Ponticino","ITA"]
[null,"Roberto Cecchi","Cecchi","Roberto","ITA2819","VET","ASD Volterrana 2016","ITA"]
[null,"Massimiliano Guidi","Guidi","Massimiliano","ITA2820","OPEN","ASD Volterrana 2016","ITA"]
[null,"Andrea Tonet","Tonet","Andrea","ITA2823","VET","US Valponte 1986","ITA"]
[null,"Roberto Rocchi","Rocchi","Roberto","ITA2824","VET","TSC Stella Artois Milano","ITA"]
[null,"Angelo Bisio","Bisio","Angelo","ITA2825","U16","TSC Stella Artois Milano","ITA"]
[null,"Marco Rossitto","Rossitto","Marco","ITA2826","OPEN","SC Bari","ITA"]
[null,"Davide Rigon","Rigon","Davide","ITA2831","OPEN","Subbito Gol Ferrara","ITA"]
[null,"Alberto Spiller","Spiller","Alberto","ITA2842","U20","ASD Triestina Subbuteo","ITA"]
[null,"Luca Periccioli","Periccioli","Luca","ITA2843","U20","TSC Black Rose 98 Roma","ITA"]
[null,"Giovanni Fina","Fina","Giovanni","ITA2851","U20","SC Bari","ITA"]
[null,"Francesco Perri","Perri","Francesco","ITA2856","VET","AS Cosenza","ITA"]
[null,"Alessandro Spiller","Spiller","Alessandro","ITA2860","VET","ASD Triestina Subbuteo","ITA"]
[null,"Davide Angelo Marletta","Marletta","Davide Angelo","ITA2865","VET","SC Catania 1987","ITA"]
[null,"Raffaele Basile","Basile","Raffaele","ITA2867","VET","SC Bari","ITA"]
[null,"Giuliano Fina","Fina","Giuliano","ITA2868","VET","SC Bari","ITA"]
[null,"Massimo Manfredelli","Manfredelli","Massimo","ITA2870","VET","CCT Eagles Napoli","ITA"]
[null,"Emanuele Arrighetti","Arrighetti","Emanuele","ITA2871","OPEN","SC Sombrero","ITA"]
[null,"Simone Buzzo","Buzzo","Simone","ITA2873","OPEN","SC Ligures","ITA"]
[null,"Aldo Chianucci","Chianucci","Aldo","ITA2880","VET","AACS Valdarno","ITA"]
[null,"Marco Bonelli","Bonelli","Marco","ITA2881","OPEN","AACS Valdarno","ITA"]
[null,"Leandro Guidi","Guidi","Leandro","ITA2883","VET","Atletico Pisa","ITA"]
[null,"Sacha Cacioppo","Cacioppo","Sacha","ITA2884","OPEN","Atletico Pisa","ITA"]
[null,"Davide Lussu","Lussu","Davide","ITA2888","VET","SC Cagliari","ITA"]
[null,"Giancarlo Riva","Riva","Giancarlo","ITA2890","VET","CT Torino 2009","ITA"]
[null,"Giancarlo Russo","Russo","Giancarlo","ITA2891","VET","CT Torino 2009","ITA"]
[null,"Marco Del Genovese","Del Genovese","Marco","ITA2892","OPEN","Atletico Pisa","ITA"]
[null,"Dario Sforzini","Sforzini","Dario","ITA2897","VET","Team Campania","ITA"]
[null,"Orlando De Luca","De Luca","Orlando","ITA2899","OPEN","Granducato Subbuteo","ITA"]
[null,"Lorenzo Mentasti","Mentasti","Lorenzo","ITA2900","VET","Trento Subbuteo","ITA"]
[null,"Riccardo Ciboldi","Ciboldi","Riccardo","ITA2906","OPEN","ASD CT Aosta Warriors","ITA"]
[null,"Gabriele Esposito","Esposito","Gabriele","ITA2907","U20","SC Castelfiorentino","ITA"]
[null,"Davide Lupo","Lupo","Davide","ITA2913","VET","CT Paola","ITA"]
[null,"Carmelo Calvo","Calvo","Carmelo","ITA2916","OPEN","Barcellona Calcio Tavolo","ITA"]
[null,"Luca Di Lullo","Di Lullo","Luca","ITA2925","VET","ASD Alba Subbuteo Roma","ITA"]
[null,"Fabrizio Giubbilini","Giubbilini","Fabrizio","ITA2926","VET","CS Solvay Vada","ITA"]
[null,"Nicola Razzi","Razzi","Nicola","ITA2929","VET","ASD Volterrana 2016","ITA"]
[null,"Corrado Toffoletti","Toffoletti","Corrado","ITA2936","VET","ASD Triestina Subbuteo","ITA"]
[null,"Letterio Di Stefano","Di Stefano","Letterio","ITA2939","VET","Subbuteo Club Silvio Piola","ITA"]
[null,"Alberto Marazzato","Marazzato","Alberto","ITA2940","OPEN","Subbuteo Club Silvio Piola","ITA"]
[null,"Gian Luca Mussato","Mussato","Gian Luca","ITA2941","OPEN","Subbuteo Club Silvio Piola","ITA"]
[null,"Tullio Villa","Villa","Tullio","ITA2942","VET","Subbuteo Club Silvio Piola","ITA"]
[null,"Leonardo Marazzato","Marazzato","Leonardo","ITA2943","U16","Subbuteo Club Silvio Piola","ITA"]
[null,{"$f":"TRIM(CONCATENATE(D3079,\" \",C3079))","v":"André Giovenali"},"Giovenali","André","ITA2945","VET","CS Virtus Rieti","ITA"]
[null,"Rossano Di Vita","Di Vita","Rossano","ITA2948","VET","Rebels Genova","ITA"]
[null,"Giovanna Ottone","Ottone","Giovanna","ITA2949","U16","ASD CT Aosta Warriors","ITA"]
[null,"Carlo Piscopo","Piscopo","Carlo","ITA2959","VET","SC Sombrero","ITA"]
[null,"Ilario Care","Care","Ilario","ITA2960","VET","Bologna Tigers Subbuteo","ITA"]
[null,"Nunzio Ieppariello","Ieppariello","Nunzio","ITA2961","VET","Team Campania","ITA"]
[null,"Andrea Periccioli","Periccioli","Andrea","ITA2964","VET","TSC Black Rose 98 Roma","ITA"]
[null,"Giuseppe Leotta","Leotta","Giuseppe","ITA2965","OPEN","TSC Black Rose 98 Roma","ITA"]
[null,"Roberto Carrara","Carrara","Roberto","ITA2966","VET","TSC Black Rose 98 Roma","ITA"]
[null,"Mauro Simonazzi","Simonazzi","Mauro","ITA2967","VET","ASD Alba Subbuteo Roma","ITA"]
[null,"Massimo Garatti","Garatti","Massimo","ITA2968","VET","US Valponte 1986","ITA"]
[null,"Pietro Aiani","Aiani","Pietro","ITA2970","U16","Atletico Pisa","ITA"]
[null,"Ferdinando Frega","Frega","Ferdinando","ITA2971","VET","AS Cosenza","ITA"]
[null,"Donato Erbì","Erbì","Donato","ITA2972","VET","ASD CT Aosta Warriors","ITA"]
[null,"Marco De Santis","De Santis","Marco","ITA2973","VET","Subbuteo Grosseto 2018","ITA"]
[null,"Francesco Giraudo","Giraudo","Francesco","ITA2974","OPEN","Subbuteo Grosseto 2018","ITA"]
[null,"Giulio Giannelli","Giannelli","Giulio","ITA2978","OPEN","Subbuteo Grosseto 2018","ITA"]
[null,"Flavio Tudini","Tudini","Flavio","ITA2979","VET","Subbuteo Grosseto 2018","ITA"]
[null,"Simone Esposito","Esposito","Simone","ITA2980","OPEN","ACT Anacapri","ITA"]
[null,"Claudio Valisnieri","Valisnieri","Claudio","ITA2984","OPEN","SC Ligures","ITA"]
[null,"Luigi Pisu","Pisu","Luigi","ITA2985","OPEN","SC Ligures","ITA"]
[null,"Cristian Melis","Melis","Cristian","ITA2987","OPEN","ST Sassari","ITA"]
[null,"Domenico Matalone","Matalone","Domenico","ITA2992","VET","Messina Table Soccer","ITA"]
[null,"Danilo Bonanni","Bonanni","Danilo","ITA2999","OPEN","CS Virtus Rieti","ITA"]
[null,"Dario Marabello","Marabello","Dario","ITA3003","VET","Messina Table Soccer","ITA"]
[null,"Enrico Cassani","Cassani","Enrico","ITA3005","VET","Trento Subbuteo","ITA"]
[null,"Pasquale Pio Ianniello","Ianniello","Pasquale Pio","ITA3007","OPEN","ASM Nola 74","ITA"]
[null,"Marco Maglio","Maglio","Marco","ITA3010","OPEN","Atletico Pisa","ITA"]
[null,"Stefano Feri","Feri","Stefano","ITA3013","VET","Subbuteo Club Labronico","ITA"]
[null,"Andrea Balestrucci","Balestrucci","Andrea","ITA3016","VET","Viterbese Subbuteo","ITA"]
[null,"Andrea Bevilacqua","Bevilacqua","Andrea","ITA3017","OPEN","Viterbese Subbuteo","ITA"]
[null,"Aldo Vico","Vico","Aldo","ITA3018","VET","Viterbese Subbuteo","ITA"]
[null,"David De Maggi","De Maggi","David","ITA3019","VET","TSC Black Rose 98 Roma","ITA"]
[null,"Pio Giorgio Di Leo","Di Leo","Pio Giorgio","ITA3020","VET","Foggia CT","ITA"]
[null,"Emiddio Figliolino","Figliolino","Emiddio","ITA3021","OPEN","CS Solvay Vada","ITA"]
[null,"Marco Fommei","Fommei","Marco","ITA3022","VET","Subbuteo Grosseto 2018","ITA"]
[null,"Francesco Di Lullo","Di Lullo","Francesco","ITA3024","U16","ASD Alba Subbuteo Roma","ITA"]
[null,"Fabio Pimpinella","Pimpinella","Fabio","ITA3026","VET","TSC Black Rose 98 Roma","ITA"]
[null,"Marco Bocci","Bocci","Marco","ITA3027","VET","AS Cosenza","ITA"]
[null,"Fabio Rosselli","Rosselli","Fabio","ITA3028","OPEN","AS Cosenza","ITA"]
[null,"Carlo Siciliano","Siciliano","Carlo","ITA3029","VET","AS Cosenza","ITA"]
[null,"Giuseppe Guido","Guido","Giuseppe","ITA3030","VET","AS Cosenza","ITA"]
[null,"Vincenzo Maria Genovese","Genovese","Vincenzo Maria","ITA3032","VET","Team Campania","ITA"]
[null,"Enrico Bergamasco","Bergamasco","Enrico","ITA3036","OPEN","CS SC Serenissima Mestre","ITA"]
[null,"Francesco Menditto","Menditto","Francesco","ITA3037","OPEN","Master Sanremo","ITA"]
[null,"Claudio Rossi","Rossi","Claudio","ITA3364","VET","Granducato Subbuteo","ITA"]
[null,"Francesco Pon","Pon","Francesco","ITA3040","VET","Bologna Tigers Subbuteo","ITA"]
[null,"Stefano Barbani","Barbani","Stefano","ITA3041","VET","Bologna Tigers Subbuteo","ITA"]
[null,"Gian Paolo Ghersi","Ghersi","Gian Paolo","ITA3043","VET","US Valponte 1986","ITA"]
[null,"Francesco D'ercole Cappelli","D'ercole Cappelli","Francesco","ITA3044","VET","US Valponte 1986","ITA"]
[null,"Guido Gambara","Gambara","Guido","ITA3045","VET","TSC Black Rose 98 Roma","ITA"]
[null,"Lorenzo Malevolti","Malevolti","Lorenzo","ITA3046","OPEN","CS Solvay Vada","ITA"]
[null,"Paolo Di Michelangelo","Di Michelangelo","Paolo","ITA3048","VET","Ves Gentes","ITA"]
[null,"Andrea Cardia","Cardia","Andrea","ITA3049","OPEN","SC Cagliari","ITA"]
[null,"Riccardo Arrighi","Arrighi","Riccardo","ITA3051","OPEN","Subbuteo Grosseto 2018","ITA"]
[null,"Raffaello Milani","Milani","Raffaello","ITA3052","VET","Subbuteo Grosseto 2018","ITA"]
[null,"Alessandro Ragazzini Fuligni","Ragazzini Fuligni","Alessandro","ITA3053","VET","Subbuteo Grosseto 2018","ITA"]
[null,"Maria Bari","Bari","Maria","ITA3055","VET","Subbuteoland","ITA"]
[null,"Rossella Bari","Bari","Rossella","ITA3056","VET","Subbuteoland","ITA"]
[null,"Maurizio Borgna","Borgna","Maurizio","ITA3057","OPEN","CT Torino 2009","ITA"]
[null,"Lorenzo Randelli","Randelli","Lorenzo","ITA3059","VET","Subbuteo Club La Signoria","ITA"]
[null,"Tiziano Lastrucci","Lastrucci","Tiziano","ITA3060","VET","Subbuteo Club La Signoria","ITA"]
[null,"Mattia Nanni","Nanni","Mattia","ITA3062","OPEN","Subbuteo L'aquila Club","ITA"]
[null,"Alessandro Armelleschi","Armelleschi","Alessandro","ITA3064","VET","Subbuteo Club Labronico","ITA"]
[null,{"$f":"TRIM(CONCATENATE(D3143,\" \",C3143))","v":"Giulio Centonze"},"Centonze","Giulio","ITA3065","VET","Subbuteo Club Labronico","ITA"]
[null,"Stefano Munafo'","Munafo'","Stefano","ITA3066","VET","Subbuteo Club Labronico","ITA"]
[null,"Pierluigi Bianchi","Bianchi","Pierluigi","ITA3067","VET","Pinco Devils Table Soccer","ITA"]
[null,"Federico Del Ben","Del Ben","Federico","ITA3068","OPEN","Pinco Devils Table Soccer","ITA"]
[null,"Emanuele Cipulat","Cipulat","Emanuele","ITA3069","VET","Pinco Devils Table Soccer","ITA"]
[null,"Davide Peghin","Peghin","Davide","ITA3070","OPEN","Pinco Devils Table Soccer","ITA"]
[null,"Franco Bochicchio","Bochicchio","Franco","ITA3072","VET","Subbuteo Club Savona","ITA"]
[null,"Carlo Gambaruto","Gambaruto","Carlo","ITA3074","VET","Subbuteo Club Savona","ITA"]
[null,"Marco Farneti","Farneti","Marco","ITA3076","OPEN","SC Ravenna","ITA"]
[null,"Andrea Farneti","Farneti","Andrea","ITA3077","U16","SC Ravenna","ITA"]
[null,"Massimo Morigi","Morigi","Massimo","ITA3078","OPEN","SC Ravenna","ITA"]
[null,"Alessandro Fiumi","Fiumi","Alessandro","ITA3080","VET","Subbuteisti Modena 1982","ITA"]
[null,"Davide Biasci","Biasci","Davide","ITA3083","OPEN","CS Solvay Vada","ITA"]
[null,"Claudio Bicchi","Bicchi","Claudio","ITA3084","OPEN","SC Castelfiorentino","ITA"]
[null,"Tommaso Sani","Sani","Tommaso","ITA3089","U16","Rebels Genova","ITA"]
[null,"Lorenzo Fazio","Fazio","Lorenzo","ITA3090","U16","Rebels Genova","ITA"]
[null,"Filippo Cecchini","Cecchini","Filippo","ITA3093","U12","Rebels Genova","ITA"]
[null,"Andrea Ferretti","Ferretti","Andrea","ITA3094","U16","Rebels Genova","ITA"]
[null,"Alberto Capoferri","Capoferri","Alberto","ITA3096","U16","Rebels Genova","ITA"]
[null,"Samuele Bignardi","Bignardi","Samuele","ITA3097","U16","Rebels Genova","ITA"]
[null,"Alessandro Gandin","Gandin","Alessandro","ITA3098","U16","Rebels Genova","ITA"]
[null,"Mirco Ricci","Ricci","Mirco","ITA3100","VET","Rebels Genova","ITA"]
[null,"Daniele Modugno","Modugno","Daniele","ITA3102","VET","Rebels Genova","ITA"]
[null,"Luca Bignardi","Bignardi","Luca","ITA3104","OPEN","Rebels Genova","ITA"]
[null,"Filippo Scorcucchi","Scorcucchi","Filippo","ITA3109","VET","Subbuteo Club Savona","ITA"]
[null,"Davide Balito","Balito","Davide","ITA3112","U12","Rebels Genova","ITA"]
[null,"Marco Scialanga","Scialanga","Marco","ITA3115","VET","ASD Alba Subbuteo Roma","ITA"]
[null,"Gianmarco Bacigalupo","Bacigalupo","Gianmarco","ITA3117","VET","ASD Alba Subbuteo Roma","ITA"]
[null,"Edoardo Scialanga","Scialanga","Edoardo","ITA3118","OPEN","ASD Alba Subbuteo Roma","ITA"]
[null,"Fabio Belisario","Belisario","Fabio","ITA3119","VET","CCT Roma","ITA"]
[null,"Alfredo Biscardi","Biscardi","Alfredo","ITA3120","VET","TSC Black Rose 98 Roma","ITA"]
[null,"Riccardo Berioli","Berioli","Riccardo","ITA3128","U20","US Valponte 1986","ITA"]
[null,"Andrea Gandin","Gandin","Andrea","ITA3129","OPEN","Rebels Genova","ITA"]
[null,"Federico Da Re","Da Re","Federico","ITA3131","U20","Pinco Devils Table Soccer","ITA"]
[null,"David Del Ben","Del Ben","David","ITA3132","U16","Pinco Devils Table Soccer","ITA"]
[null,"Alessio Corti","Corti","Alessio","ITA3133","U20","Subbuteo Club Labronico","ITA"]
[null,"Matteo Corti","Corti","Matteo","ITA3134","OPEN","Subbuteo Club Labronico","ITA"]
[null,"Luigi Berlinghieri","Berlinghieri","Luigi","ITA3136","VET","SC Ligures","ITA"]
[null,"Francesco Sallese","Sallese","Francesco","ITA3137","VET","Ves Gentes","ITA"]
[null,"Giorgio Sallese","Sallese","Giorgio","ITA3138","U16","Ves Gentes","ITA"]
[null,"Francesco Mattia Miccoli","Miccoli","Francesco Mattia","ITA3139","OPEN","Ves Gentes","ITA"]
[null,"Tobia Vallebona","Vallebona","Tobia","ITA3166","U20","Rebels Genova","ITA"]
[null,"Filippo Careddu","Careddu","Filippo","ITA3169","U16","Rebels Genova","ITA"]
[null,"Andrea Alfonsi","Alfonsi","Andrea","ITA3172","VET","ASD Alba Subbuteo Roma","ITA"]
[null,"Fabrizio Cavazza","Cavazza","Fabrizio","ITA3173","VET","GCT DLF Gorizia","ITA"]
[null,"Ennio Bacich","Bacich","Ennio","ITA3174","VET","ASD Triestina Subbuteo","ITA"]
[null,"Davide Bacchini","Bacchini","Davide","ITA3176","OPEN","F.lli Bari Reggio Emilia","ITA"]
[null,"Pietro Torri","Torri","Pietro","ITA3177","VET","F.lli Bari Reggio Emilia","ITA"]
[null,"Fabio De Pascalis","De Pascalis","Fabio","ITA3178","OPEN","Subbuteo Taranto","ITA"]
[null,"Martin Maioli","Maioli","Martin","ITA3179","U16","Subbito Gol Ferrara","ITA"]
[null,"Andrea Maioli","Maioli","Andrea","ITA3180","VET","Subbito Gol Ferrara","ITA"]
[null,"Enrico Corso","Corso","Enrico","ITA3182","VET","Palermo Subbuteo","ITA"]
[null,"Fabio Mangione","Mangione","Fabio","ITA3183","VET","Palermo Subbuteo","ITA"]
[null,"Jacopo Giampaola","Giampaola","Jacopo","ITA3185","VET","Ves Gentes","ITA"]
[null,"Damiano Giampaola","Giampaola","Damiano","ITA3186","U16","Ves Gentes","ITA"]
[null,"Marco Giampaola","Giampaola","Marco","ITA3187","VET","Ves Gentes","ITA"]
[null,"Pasquale Nunzet","Nunzet","Pasquale","ITA3188","VET","AS Cosenza","ITA"]
[null,"Davide Pulito","Pulito","Davide","ITA3191","VET","Atletico Pisa","ITA"]
[null,"Giacomo Luchetti","Luchetti","Giacomo","ITA3194","VET","Old Lions Macerata","ITA"]
[null,"Daniele Mancinelli","Mancinelli","Daniele","ITA3195","OPEN","Viterbese Subbuteo","ITA"]
[null,"Silvano Corleto","Corleto","Silvano","ITA3196","OPEN","ASD VT CTS Fidenza","ITA"]
[null,"Alfredo Di Buono","Di Buono","Alfredo","ITA3197","OPEN","AS Cosenza","ITA"]
[null,"Enrico Ghigliotti","Ghigliotti","Enrico","ITA3198","U20","Rebels Genova","ITA"]
[null,"Davide Ghigliotti","Ghigliotti","Davide","ITA3199","U20","Rebels Genova","ITA"]
[null,{"$f":"TRIM(CONCATENATE(D3207,\" \",C3207))","v":"Goffredo Campagna"},"Campagna","Goffredo","ITA3202","VET","Messina Table Soccer","ITA"]
[null,"Mario Zuccarini","Zuccarini","Mario","ITA3203","OPEN","Viterbese Subbuteo","ITA"]
[null,"Alessandro Erbì","Erbì","Alessandro","ITA3205","U16","Subbuteo Club Silvio Piola","ITA"]
[null,"Mauro Vianello","Vianello","Mauro","ITA3209","VET","Pinco Devils Table Soccer","ITA"]
[null,"Edoardo Matalone","Matalone","Edoardo","ITA3211","U12","Messina Table Soccer","ITA"]
[null,"Michele Torri","Torri","Michele","ITA3213","VET","F.lli Bari Reggio Emilia","ITA"]
[null,"Stefano Corleto","Corleto","Stefano","ITA3215","OPEN","ASD VT CTS Fidenza","ITA"]
[null,"Roberto Ficini","Ficini","Roberto","ITA3216","VET","Atletico Pisa","ITA"]
[null,"Marco Molinaro","Molinaro","Marco","ITA3217","OPEN","Granducato Subbuteo","ITA"]
[null,"Massimo Talozzi","Talozzi","Massimo","ITA3218","VET","Granducato Subbuteo","ITA"]
[null,"Christian Milessa","Milessa","Christian","ITA3222","VET","ASD Triestina Subbuteo","ITA"]
[null,"Pietro Zorzi","Zorzi","Pietro","ITA3223","U16","ASD Triestina Subbuteo","ITA"]
[null,"Gianni Ciaramella","Ciaramella","Gianni","ITA3224","U16","Subbuteo Club Silvio Piola","ITA"]
[null,"Cristiano Gallo","Gallo","Cristiano","ITA3225","VET","Subbuteo Club Silvio Piola","ITA"]
[null,"Claudio Besate","Besate","Claudio","ITA3226","OPEN","Subbuteo Club Silvio Piola","ITA"]
[null,"Andrea Ciaramella","Ciaramella","Andrea","ITA3227","U16","Subbuteo Club Silvio Piola","ITA"]
[null,"Enrico Malossi","Malossi","Enrico","ITA3228","OPEN","Subbito Gol Ferrara","ITA"]
[null,"Gian Marco Baratella","Baratella","Gian Marco","ITA3229","VET","Bologna Tigers Subbuteo","ITA"]
[null,"Francesco Colossi","Colossi","Francesco","ITA3230","OPEN","SC Bari","ITA"]
[null,"Nicolò Colossi","Colossi","Nicolò","ITA3231","U16","SC Bari","ITA"]
[null,"Gianluca Indino","Indino","Gianluca","ITA3232","VET","TSC Black Rose 98 Roma","ITA"]
[null,"Alessandro Laurenzi","Laurenzi","Alessandro","ITA3233","VET","TSC Black Rose 98 Roma","ITA"]
[null,"Mario Michele Romanazzi","Romanazzi","Mario Michele","ITA3234","VET","TSC Black Rose 98 Roma","ITA"]
[null,"Stefano Flaccomio","Flaccomio","Stefano","ITA3235","VET","TSC Black Rose 98 Roma","ITA"]
[null,"Marco Coletta","Coletta","Marco","ITA3236","VET","TSC Black Rose 98 Roma","ITA"]
[null,"Giampaolo Beani","Beani","Giampaolo","ITA3237","OPEN","TSC Black Rose 98 Roma","ITA"]
[null,"Dario Ciampoli","Ciampoli","Dario","ITA3238","VET","TSC Black Rose 98 Roma","ITA"]
[null,"Roberto Chicco","Chicco","Roberto","ITA3239","VET","TSC Black Rose 98 Roma","ITA"]
[null,"Tommaso Bazzoli","Bazzoli","Tommaso","ITA3240","OPEN","TSC Black Rose 98 Roma","ITA"]
[null,"Vincenzo Santarcangelo","Santarcangelo","Vincenzo","ITA3241","VET","TSC Black Rose 98 Roma","ITA"]
[null,"Gianni Terenzi","Terenzi","Gianni","ITA3243","VET","TSC Black Rose 98 Roma","ITA"]
[null,"Giuseppe Andricciola","Andricciola","Giuseppe","ITA3246","OPEN","US Catanzaro Subbuteo","ITA"]
[null,"Francesco Benussi","Benussi","Francesco","ITA3247","VET","SC Sombrero","ITA"]
[null,"Francesco Vegni","Vegni","Francesco","ITA3248","OPEN","SC Sombrero","ITA"]
[null,"Roberto Giunti","Giunti","Roberto","ITA3249","VET","Atletico Pisa","ITA"]
[null,"Gianluca Vetere","Vetere","Gianluca","ITA3251","VET","AS Cosenza","ITA"]
[null,"Giuseppe Costantino","Costantino","Giuseppe","ITA3252","VET","SC Palermo 2016","ITA"]
[null,"Massimiliano Di Lorenzo","Di Lorenzo","Massimiliano","ITA3253","VET","SC Palermo 2016","ITA"]
[null,"Emanuele Incardona","Incardona","Emanuele","ITA3254","VET","Palermo Subbuteo","ITA"]
[null,"Diego Pellicoro","Pellicoro","Diego","ITA3257","OPEN","Subbuteo Taranto","ITA"]
[null,"Giacomo Alessi","Alessi","Giacomo","ITA3261","U16","Rebels Genova","ITA"]
[null,"Davide Chiapolino","Chiapolino","Davide","ITA3262","OPEN","Pinco Devils Table Soccer","ITA"]
[null,"Nicolò Cerullo","Cerullo","Nicolò","ITA3263","U12","GCT DLF Gorizia","ITA"]
[null,"Antonio Masile","Masile","Antonio","ITA3270","VET","Subbuteisti Modena 1982","ITA"]
[null,"Giorgio De Lorenzi","De Lorenzi","Giorgio","ITA3271","OPEN","Subbuteo Club Silvio Piola","ITA"]
[null,"Samuele Coppolino","Coppolino","Samuele","ITA3275","U12","Barcellona Calcio Tavolo","ITA"]
[null,"Alberto Barattucci","Barattucci","Alberto","ITA3278","U12","Ves Gentes","ITA"]
[null,"Samuele Murabito","Murabito","Samuele","ITA3279","U12","ASD Siracusa Calcio Tavolo","ITA"]
[null,"Jonathan Bambagioni","Bambagioni","Jonathan","ITA3283","VET","Subbuteo Club La Signoria","ITA"]
[null,"Lorenzo Sani","Sani","Lorenzo","ITA3284","U16","SC Sombrero","ITA"]
[null,"Davide De Giosa","De Giosa","Davide","ITA3286","U20","SC Bari","ITA"]
[null,"Francesco Pochetti","Pochetti","Francesco","ITA3288","VET","TSC Black Rose 98 Roma","ITA"]
[null,"Simone Soldera","Soldera","Simone","ITA3298","OPEN","Pinco Devils Table Soccer","ITA"]
[null,"Fabio Abate","Abate","Fabio","ITA3295","OPEN","AS Cosenza","ITA"]
[null,"Antonio Longobardi","Longobardi","Antonio","ITA3296","VET","CTS Versilia Football Planet","ITA"]
[null,"Andrea Testa","Testa","Andrea","ITA0851","OPEN","Subbuteo Vomero","ITA"]
[null,"Simone Casale","Casale","Simone","ITA3302","OPEN","TSC Stella Artois Milano","ITA"]
[null,"Paolo Galli","Galli","Paolo","ITA3303","VET","Subbuteo Club Pavia","ITA"]
[null,"Marco Pistorino","Pistorino","Marco","ITA3304","OPEN","Subbuteo Club Pavia","ITA"]
[null,"Andrea Tavani","Tavani","Andrea","ITA3305","VET","Subbuteo Club Pavia","ITA"]
[null,"Giuseppe Lorusso","Lorusso","Giuseppe","ITA3306","VET","Subbuteo Club Pavia","ITA"]
[null,"Mauro Villa","Villa","Mauro","ITA3307","VET","Subbuteo Club Pavia","ITA"]
[null,"Edoardo Lanci","Lanci","Edoardo","ITA3309","U16","Subbuteisti Modena 1982","ITA"]
[null,"Alessandro Valluzzi","Valluzzi","Alessandro","ITA3310","OPEN","Trento Subbuteo","ITA"]
[null,{"$f":"TRIM(CONCATENATE(D3271,\" \",C3271))","v":"GianMaria Montaguti"},"Montaguti","GianMaria","ITA3311","OPEN","Subbito Gol Ferrara","ITA"]
[null,"Roberto Pacileo","Pacileo","Roberto","ITA3312","OPEN","CTS Versilia Football Planet","ITA"]
[null,"Ilaria Fedele","Fedele","Ilaria","ITA3313","U12","Ves Gentes","ITA"]
[null,"Massimiliano Barattucci","Barattucci","Massimiliano","ITA3314","OPEN","Ves Gentes","ITA"]
[null,"Lisa De Leonardis","De Leonardis","Lisa","ITA3315","OPEN","Ves Gentes","ITA"]
[null,"Simone Pieraccioni","Pieraccioni","Simone","ITA3316","VET","Granducato Subbuteo","ITA"]
[null,"Massimiliano Capaccioli","Capaccioli","Massimiliano","ITA3317","VET","Granducato Subbuteo","ITA"]
[null,"Marco Bronzetti","Bronzetti","Marco","ITA3318","VET","Granducato Subbuteo","ITA"]
[null,"Giulia Pibiri","Pibiri","Giulia","ITA3321","OPEN","SC Catania 1987","ITA"]
[null,"Stefano Stagno","Stagno","Stefano","ITA3322","OPEN","Messina Table Soccer","ITA"]
[null,"Diego Fabbri","Fabbri","Diego","ITA3324","VET","Subbuteo Club Pavia","ITA"]
[null,"Roberto Milanesi","Milanesi","Roberto","ITA3326","OPEN","Subbuteo Club Pavia","ITA"]
[null,"Massimo Francesco Mastrobuono","Mastrobuono","Massimo Francesco","ITA3328","VET","Subbuteo Club Pavia","ITA"]
[null,"Simone Di Tullio","Di Tullio","Simone","ITA3333","OPEN","TSC Black Rose 98 Roma","ITA"]
[null,"Dario Flammini","Flammini","Dario","ITA3334","VET","TSC Black Rose 98 Roma","ITA"]
[null,"Daniele Marchi","Marchi","Daniele","ITA3335","VET","TSC Black Rose 98 Roma","ITA"]
[null,"Angelo Prettico","Prettico","Angelo","ITA3336","OPEN","TSC Black Rose 98 Roma","ITA"]
[null,"Marco Scannavini","Scannavini","Marco","ITA3337","VET","TSC Black Rose 98 Roma","ITA"]
[null,"Gabriele Pellicoro","Pellicoro","Gabriele","ITA3338","OPEN","Subbuteo Taranto","ITA"]
[null,"Luigi Brandi","Brandi","Luigi","ITA3340","OPEN","TS Napoli Fighters","ITA"]
[null,"Vincenzo Brandi","Brandi","Vincenzo","ITA3341","U16","TS Napoli Fighters","ITA"]
[null,"Alessandro Giordano Caldarola","Caldarola","Alessandro Giordano","ITA3342","OPEN","CT Torino 2009","ITA"]
[null,"Stefano Ferri","Ferri","Stefano","ITA3344","OPEN","SC Bari","ITA"]
[null,"Aleksandar Rossitto","Rossitto","Aleksandar","ITA3345","U12","SC Bari","ITA"]
[null,"Emanuele Funaro","Funaro","Emanuele","ITA3346","VET","SC Ligures","ITA"]
[null,"Federico Iervese","Iervese","Federico","ITA3347","U16","Ves Gentes","ITA"]
[null,"Davide Giuseppe Sangiorgio","Sangiorgio","Davide Giuseppe","ITA3348","VET","Subbuteo Grosseto 2018","ITA"]
[null,"Alessandro Siciliano","Siciliano","Alessandro","ITA3349","U16","AS Cosenza","ITA"]
[null,"Nicola D'Alessandro","D'Alessandro","Nicola","ITA3351","VET","SC Bari","ITA"]
[null,"Vincenzo Annese","Annese","Vincenzo","ITA3352","VET","SC Bari","ITA"]
[null,"Lorenzo Buono","Buono","Lorenzo","ITA3354","U12","SC Bagheria","ITA"]
[null,"Gaetano Buono","Buono","Gaetano","ITA3355","U12","SC Bagheria","ITA"]
[null,"Fabrizio Carnino","Carnino","Fabrizio","ITA3356","VET","Bulldogs Vicenza","ITA"]
[null,"Nicola Carnino","Carnino","Nicola","ITA3357","U12","Bulldogs Vicenza","ITA"]
[null,"Stefano Raponi","Raponi","Stefano","ITA3358","U16","Ves Gentes","ITA"]
[null,"Pierluigi Panella","Panella","Pierluigi","ITA3359","VET","Ves Gentes","ITA"]
[null,"Nicola Mariconda","Mariconda","Nicola","ITA3360","OPEN","Pinco Devils Table Soccer","ITA"]
[null,"Massimo Inverardi","Inverardi","Massimo","ITA3361","VET","SC Stradivari Cremona","ITA"]
[null,"Giuseppe Gazzaniga","Gazzaniga","Giuseppe","ITA3362","VET","SC Stradivari Cremona","ITA"]
[null,"Daniele Gazzaniga","Gazzaniga","Daniele","ITA3363","VET","SC Stradivari Cremona","ITA"]
[null,"Andrea Testa","Testa","Andrea","ITA3011","VET","Atletico Pisa","ITA"]
[null,"Andrea Siculella","Siculella","Andrea","ITA3365","OPEN","ASD Alba Subbuteo Roma","ITA"]
[null,"Maurizio Di Lorenzo","Di Lorenzo","Maurizio","ITA3366","OPEN","Granducato Subbuteo","ITA"]
[null,"Francesco Palamara","Palamara","Francesco","ITA3378","VET","Subbuteo Club Reggio Calabria","ITA"]
[null,"Teo Peretti","Peretti","Teo","ITA3368","U12","Rebels Genova","ITA"]
[null,"Pasquale Naso","Naso","Pasquale","ITA3369","OPEN","Subbuteo Club Reggio Calabria","ITA"]
[null,"Orazio Santoro","Santoro","Orazio","ITA3370","OPEN","Subbuteo Club Reggio Calabria","ITA"]
[null,"Antonino Criserà","Criserà","Antonino","ITA3371","VET","Subbuteo Club Reggio Calabria","ITA"]
[null,"Massimo Averna","Averna","Massimo","ITA3372","VET","Subbuteo Club Reggio Calabria","ITA"]
[null,"Marco Averna","Averna","Marco","ITA3373","U12","Subbuteo Club Reggio Calabria","ITA"]
[null,"Dafne Averna","Averna","Dafne","ITA3374","U12","Subbuteo Club Reggio Calabria","ITA"]
[null,"Giuseppe Crupi","Crupi","Giuseppe","ITA3375","OPEN","Subbuteo Club Reggio Calabria","ITA"]
[null,"Gianluca Crupi","Crupi","Gianluca","ITA3376","OPEN","Subbuteo Club Reggio Calabria","ITA"]
[null,"Giuseppina Grillo","Grillo","Giuseppina","ITA3377","VET","Subbuteo Club Reggio Calabria","ITA"]
[null,"Massimiliano Ontani","Ontani","Massimiliano","ITA3379","VET","Maremma Subbuteo","ITA"]
[null,"Nicola Annese","Annese","Nicola","ITA3380","U20","SC Bari","ITA"]
[null,"Antonio Martinelli","Martinelli","Antonio","ITA3381","U12","SC Bari","ITA"]
[null,"Daniele Salatino","Salatino","Daniele","ITA3382","U12","SC Bari","ITA"]
[null,"Paolo Panella","Panella","Paolo","ITA3383","VET","Ves Gentes","ITA"]
[null,"Marco Mastrobuono","Mastrobuono","Marco","ITA3384","U16","TSC Stella Artois Milano","ITA"]
[null,"Elio Salvadori","Salvadori","Elio","ITA3385","VET","Trento Subbuteo","ITA"]
[null,"Marcello D'adamo","D'adamo","Marcello","ITA3386","VET","Trento Subbuteo","ITA"]
[null,"Pierluigi Pugliano","Pugliano","Pierluigi","ITA3387","VET","Trento Subbuteo","ITA"]
[null,"Stefano Crocetti","Crocetti","Stefano","ITA3388","VET","Trento Subbuteo","ITA"]
[null,{"$f":"TRIM(CONCATENATE(D3335,\" \",C3335))","v":"Luciano Bonardi"},"Bonardi","Luciano","ITA3389","VET","Subbuteo Club Silvio Piola","ITA"]
[null,"Giulio Ladetto Sassetti","Sassetti","Giulio Ladetto","ITA3391","U12","SC Sombrero","ITA"]
[null,"Davide Lari","Lari","Davide","ITA3392","U16","SC Sombrero","ITA"]
[null,"Fabio Venanzi","Venanzi","Fabio","ITA3393","OPEN","Subbuteo L'aquila Club","ITA"]
[null,"Pietro Ludovici","Ludovici","Pietro","ITA3394","U16","Subbuteo L'aquila Club","ITA"]
[null,"Matteo Ludovici","Ludovici","Matteo","ITA3395","U16","Subbuteo L'aquila Club","ITA"]
[null,"Carlo Cantalini","Cantalini","Carlo","ITA3396","U12","Subbuteo L'aquila Club","ITA"]
[null,"Nicolò Valentini","Valentini","Nicolò","ITA3397","U16","Subbuteo L'aquila Club","ITA"]
[null,"Alfredo Caprioli","Caprioli","Alfredo","ITA3398","VET","Team Campania","ITA"]
[null,"Stefano Toschi","Toschi","Stefano","ITA3399","VET","Subbuteo Club Mestre","ITA"]
[null,"Massimo Paoletti","Paoletti","Massimo","ITA3401","VET","SC Ascoli","ITA"]
[null,"Roberto Buscicchio","Buscicchio","Roberto","ITA3402","VET","SC Bari","ITA"]
[null,"Luigi Spezzacatene","Spezzacatene","Luigi","ITA3403","VET","SC Bari","ITA"]
[null,"Riccardo Pietrafusa","Pietrafusa","Riccardo","ITA3404","VET","SC Bari","ITA"]
[null,"Mauro Frascaroli","Frascaroli","Mauro","ITA3405","VET","Subbuteo Club Pavia","ITA"]
[null,"Marco Podini","Podini","Marco","ITA3406","VET","Subbuteo Club Pavia","ITA"]
[null,"Gian Giuseppe Vigo","Vigo","Gian Giuseppe","ITA3407","VET","Subbuteo Club Pavia","ITA"]
[null,"Sergio Riscardi","Riscardi","Sergio","ITA3408","VET","Subbuteo Club Pavia","ITA"]
[null,"Ferdinando Nicosia","Nicosia","Ferdinando","ITA3409","OPEN","Subbuteo Club Pavia","ITA"]
[null,"Gianni Pagani","Pagani","Gianni","ITA3411","VET","SC Stradivari Cremona","ITA"]
[null,"Pietro Megna","Megna","Pietro","ITA3412","VET","SC Stradivari Cremona","ITA"]
[null,"Salvatore Tarantino","Tarantino","Salvatore","ITA3413","VET","SC Palermo 2016","ITA"]
[null,"Fabrizio Guarino","Guarino","Fabrizio","ITA3414","VET","SC Palermo 2016","ITA"]
[null,"Luciano Lupo","Lupo","Luciano","ITA3415","VET","CT Paola","ITA"]
[null,"Cristian Del Genovese","Del Genovese","Cristian","ITA3416","U12","SC Sombrero","ITA"]
[null,"Edoardo Parrino","Parrino","Edoardo","ITA3417","U16","SC Sombrero","ITA"]
[null,"Davide Uva","Uva","Davide","ITA3418","U12","Rebels Genova","ITA"]
[null,"Simone Pennati","Pennati","Simone","ITA3419","U12","Rebels Genova","ITA"]
[null,"Guglielmo Masserini","Masserini","Guglielmo","ITA3420","VET","Ves Gentes","ITA"]
[null,"Martin Aliou Marlia","Marlia","Martin Aliou","ITA3421","U12","SC Sombrero","ITA"]
[null,"Giuseppe Mallardi","Mallardi","Giuseppe","ITA3422","VET","Azzurra 99 Napoli","ITA"]
[null,"Massimo Veronelli","Veronelli","Massimo","ITA3423","VET","Subbuteo Club Pavia","ITA"]
[null,"Pietro De Gennaro","De Gennaro","Pietro","ITA3424","OPEN","CS Virtus Rieti","ITA"]
[null,"Andrea Florita","Florita","Andrea","ITA3425","VET","TSC Black Rose 98 Roma","ITA"]
[null,"Alessio Sanfilippo","Sanfilippo","Alessio","ITA3427","U12","ASD Siracusa Calcio Tavolo","ITA"]
[null,"Filippo Sottili","Sottili","Filippo","ITA3428","U16","Rebels Genova","ITA"]
[null,"Fulvio Miotti","Miotti","Fulvio","ITA3429","VET","Atletico Pisa","ITA"]
[null,"Aldo Francesco Petea","Petea","Aldo Francesco","ITA3430","U12","TSC Stella Artois Milano","ITA"]
[null,"Francesco Rossi","Rossi","Francesco","ITA3431","U12","TSC Stella Artois Milano","ITA"]
[null,"Alessio Bottino","Bottino","Alessio","ITA3432","U12","TSC Stella Artois Milano","ITA"]
[null,"Luigi Abbenante","Abbenante","Luigi","ITA3434","VET","Team Campania","ITA"]
[null,"Simone Pasquali","Pasquali","Simone","ITA3435","VET","Subbuteo Verona 2016","ITA"]
[null,"Massimiliano Franciolini","Franciolini","Massimiliano","ITA3436","VET","Granducato Subbuteo","ITA"]
[null,"Roberto Rizzo","Rizzo","Roberto","ITA2436","VET","SC Pantere Lucca","ITA"]
[null,"Vito Sante Martinelli","Martinelli","Vito Sante","ITA3437","OPEN","SC Bari","ITA"]
[null,"Cosimo Salatino","Salatino","Cosimo","ITA3438","OPEN","SC Bari","ITA"]
[null,"Tommaso Cuzzocrea","Cuzzocrea","Tommaso","ITA3439","U12","CT Paola","ITA"]
[null,"Elio Degaetano","Degaetano","Elio","ITA3440","U12","CT Paola","ITA"]
[null,"Eugenio Gerardo Petrungaro","Petrungaro","Eugenio Gerardo","ITA3441","U12","CT Paola","ITA"]
[null,"Costantino Francesco Cassano","Cassano","Costantino Francesco","ITA3442","U12","CT Paola","ITA"]
[null,"Davide Ramazzotto","Ramazzotto","Davide","ITA3443","U12","Rebels Genova","ITA"]
[null,"Antonia De Bellis","De Bellis","Antonia","ITA3444","OPEN","GCT DLF Gorizia","ITA"]
[null,"Amilcare D'Andria","D'Andria","Amilcare","ITA3445","VET","SC Bari","ITA"]
[null,"Dominic Santana Tovar","Santana Tovar","Dominic","ITA3446","U16","SC Sombrero","ITA"]
[null,"Juan Josè Santana Vargas","Santana Vargas","Juan Josè","ITA3447","U16","SC Sombrero","ITA"]
[null,"Riccardo Generali","Generali","Riccardo","ITA3448","OPEN","SC Stradivari Cremona","ITA"]
[null,"Alberto Sitia","Sitia","Alberto","ITA3449","VET","Subbuteo Club Pavia","ITA"]
[null,"Francesco Chianale","Chianale","Francesco","ITA3450","VET","Subbuteo Club Silvio Piola","ITA"]
[null,"Mattia Ferranti","Ferranti","Mattia","ITA3451","U12","Subbito Gol Ferrara","ITA"]
[null,"Francesco Ferranti","Ferranti","Francesco","ITA3452","U12","Subbito Gol Ferrara","ITA"]
[null,"Alessandro Indelli","Indelli","Alessandro","ITA3453","VET","Subbuteo Club Höpfigheim","ITA"]
[null,"Fabio Alberi","Alberi","Fabio","ITA0008","VET","Subbuteo Club Silvio Piola","ITA"]
[null,"Marco Bernardis","Bernardis","Marco","ITA0095","VET","GCT DLF Gorizia","ITA"]
[null,"Massimiliano Berselli","Berselli","Massimiliano","ITA0099","VET","Subbuteo Club Höpfigheim","ITA"]
[null,{"$f":"TRIM(CONCATENATE(D3399,\" \",C3399))","v":"Stefano Braschi"},"Braschi","Stefano","ITA0132","VET","Granducato Subbuteo","ITA"]
[null,"Guido Brescia","Brescia","Guido","ITA0133","VET","CS SC Serenissima Mestre","ITA"]
[null,"Leonardo Colella","Colella","Leonardo","ITA0228","VET","AS Cosenza","ITA"]
[null,"Silvestro Di Pietrantonio","Di Pietrantonio","Silvestro","ITA0307","OPEN","CCT Roma","ITA"]
[null,"Francesco Discepoli","Discepoli","Francesco","ITA0309","VET","SC Sombrero","ITA"]
[null,"Emanuele Dore","Dore","Emanuele","ITA0314","OPEN","ST Sassari","ITA"]
[null,"Alfredo Granato","Granato","Alfredo","ITA0415","VET","Granducato Subbuteo","ITA"]
[null,"Lorenzo Guio","Guio","Lorenzo","ITA0430","VET","Subbuteisti Modena 1982","ITA"]
[null,"Valerio Iannazzo","Iannazzo","Valerio","ITA2351","OPEN","Subbuteo Club Labronico","ITA"]
[null,"Maurizio Jon Scotta","Jon Scotta","Maurizio","ITA0450","OPEN","SC Biella 91","ITA"]
[null,"Simongiorgio La Pietra","La Pietra","Simongiorgio","ITA0454","OPEN","Palermo Subbuteo","ITA"]
[null,"Fabio Peluso","Peluso","Fabio","ITA0654","OPEN","Granducato Subbuteo","ITA"]
[null,"Ferdinando Preziuso","Preziuso","Ferdinando","ITA3461","VET","Azzurra 99 Napoli","ITA"]
[null,"Martina Preziuso","Preziuso","Martina","ITA0704","OPEN","Azzurra 99 Napoli","ITA"]
[null,"Federico Ronzani","Ronzani","Federico","ITA0742","OPEN","SC Biella 91","ITA"]
[null,"Michele Silei","Silei","Michele","ITA0804","OPEN","Granducato Subbuteo","ITA"]
[null,"Fabrizio Sonnino","Sonnino","Fabrizio","ITA0817","VET","Ves Gentes","ITA"]
[null,"Fabio Stellato","Stellato","Fabio","ITA0831","VET","Cs Firenze","ITA"]
[null,"Giorgio Velli","Velli","Giorgio","ITA0885","VET","Subbuteo Club Mestre","ITA"]
[null,"Francesco Venturello","Venturello","Francesco","ITA0886","VET","SC Ascoli","ITA"]
[null,"Roberto Agirmo","Agirmo","Roberto","ITA0918","VET","CS SC Serenissima Mestre","ITA"]
[null,"Claudio Chiara","Chiara","Claudio","ITA0954","OPEN","ASD Siracusa Calcio Tavolo","ITA"]
[null,"Francesco Vienna","Vienna","Francesco","ITA1026","VET","CS SC Serenissima Mestre","ITA"]
[null,"Pasquale Lecce","Lecce","Pasquale","ITA1080","OPEN","GCT DLF Gorizia","ITA"]
[null,"Camillo Di Francesco","Di Francesco","Camillo","ITA1169","VET","Ves Gentes","ITA"]
[null,"Giancarlo Cavanna Cavanna","Cavanna Cavanna","Giancarlo","ITA1213","VET","SC Biella 91","ITA"]
[null,"Pierfrancesco Perri","Perri","Pierfrancesco","ITA1243","OPEN","CT Paola","ITA"]
[null,"Emanuele Di Francesco","Di Francesco","Emanuele","ITA1245","OPEN","Ves Gentes","ITA"]
[null,"Lorenzo Cavanna Cavanna","Cavanna Cavanna","Lorenzo","ITA1263","OPEN","SC Biella 91","ITA"]
[null,"Domenico De Cosmo","De Cosmo","Domenico","ITA1286","VET","SC Mestre","ITA"]
[null,"Paolo Bernardini","Bernardini","Paolo","ITA1424","VET","SC Biella 91","ITA"]
[null,"Riccardo Panella","Panella","Riccardo","ITA1480","OPEN","Trento Subbuteo","ITA"]
[null,"Paolo Belli","Belli","Paolo","ITA1504","VET","SC Castelfiorentino","ITA"]
[null,"Roberto Ferro","Ferro","Roberto","ITA1517","VET","Subbuteo Club Mestre","ITA"]
[null,"Gianmarco Pedicini","Pedicini","Gianmarco","ITA1593","OPEN","CT Torino 2009","ITA"]
[null,"Alessandro Zanoni","Zanoni","Alessandro","ITA1605","OPEN","SC Stradivari Cremona","ITA"]
[null,"Giovanni Cinque","Cinque","Giovanni","ITA1669","VET","Subbuteo L'aquila Club","ITA"]
[null,"Francesco Veneri","Veneri","Francesco","ITA1699","VET","Trento Subbuteo","ITA"]
[null,"Francesco Gori","Gori","Francesco","ITA1701","OPEN","CS Firenze","ITA"]
[null,"Salvatore Buccheri","Buccheri","Salvatore","ITA1710","OPEN","ASD Siracusa Calcio Tavolo","ITA"]
[null,"Stefano Calzeroni","Calzeroni","Stefano","ITA1778","VET","Papata Group Ponticino","ITA"]
[null,"Stefano Cruciani","Cruciani","Stefano","ITA1781","VET","SC Sombrero","ITA"]
[null,"Alessio Talarico","Talarico","Alessio","ITA1820","OPEN","US Catanzaro Subbuteo","ITA"]
[null,"Giorgio Schilirò","Schilirò","Giorgio","ITA1830","OPEN","SC Bagheria","ITA"]
[null,"Duccio Mulinacci","Mulinacci","Duccio","ITA2101","VET","SC Castelfiorentino","ITA"]
[null,"Cataldo De Filippis","De Filippis","Cataldo","ITA2109","OPEN","Subbuteo Taranto","ITA"]
[null,"Francesco Riccobene","Riccobene","Francesco","ITA2123","VET","AS Cosenza","ITA"]
[null,"Emanuele Marando","Marando","Emanuele","ITA2300","OPEN","AS Cosenza","ITA"]
[null,"Carlo Morini","Morini","Carlo","ITA2335","VET","SC Castelfiorentino","ITA"]
[null,"Filippo Chiovari","Chiovari","Filippo","ITA2433","OPEN","SC Palermo 2016","ITA"]
[null,"Pierluigi D'Amico","D'Amico","Pierluigi","ITA2465","VET","Granducato Subbuteo","ITA"]
[null,"Bruno Bagnato","Bagnato","Bruno","ITA2475","VET","Subbuteo Taranto","ITA"]
[null,"Massimo Santini","Santini","Massimo","ITA2481","VET","ASD Ct Aosta Warriors","ITA"]
[null,"Massimo Lapucci","Lapucci","Massimo","ITA2570","VET","Granducato Subbuteo","ITA"]
[null,"Danilo Presti","Presti","Danilo","ITA2577","VET","Foggia CT","ITA"]
[null,"Stefano Pistolesi","Pistolesi","Stefano","ITA2586","OPEN","Maremma Subbuteo","ITA"]
[null,"Massimiliano Canale","Canale","Massimiliano","ITA2627","VET","Subbuteo Club Pescara","ITA"]
[null,"Mattia Benecchi","Benecchi","Mattia","ITA2714","OPEN","F.lli Bari Reggio Emilia","ITA"]
[null,"Gabriele Allegria","Allegria","Gabriele","ITA2720","VET","Cs Firenze","ITA"]
[null,"Andrea Carlo Arrighini","Arrighini","Andrea Carlo","ITA2721","VET","CT Versilia 2002","ITA"]
[null,"Daniele Piacentini","Piacentini","Daniele","ITA2798","VET","SC Stradivari Cremona","ITA"]
[null,"Gianfranco Scaramuzzi","Scaramuzzi","Gianfranco","ITA2845","VET","SC Bari","ITA"]
[null,"Patrizio Balice","Balice","Patrizio","ITA2898","OPEN","SC Fonte Nuova","ITA"]
[null,"Ferdinando Marino","Marino","Ferdinando","ITA2902","VET","Subbuteo Club Silvio Piola","ITA"]
[null,{"$f":"TRIM(CONCATENATE(D3463,\" \",C3463))","v":"Gianluca Baldanzi"},"Baldanzi","Gianluca","ITA2983","VET","Maremma Subbuteo","ITA"]
[null,"Massimiliano Boschi","Boschi","Massimiliano","ITA3063","OPEN","SC Sombrero","ITA"]
[null,"Fabrizio Ravazzani","Ravazzani","Fabrizio","ITA2565","VET","Rebels Genova","ITA"]
[null,"Maurizio Rubino","Rubino","Maurizio","ITA3287","VET","Bologna Tigers Subbuteo","ITA"]
[null,"Daniele Vittorio Calcagno","Calcagno","Daniele Vittorio","ITA0147","OPEN","AS Cosenza","ITA"]
[null,"Pasquale Virtu'","Virtu'","Pasquale","ITA3297","VET","Subbuteo Taranto","ITA"]
[null,"Pierpaolo Bucci","Bucci","Pierpaolo","ITA2827","OPEN","Subbuteo Club Pescara","ITA"]
[null,"Marco Imperato","Imperato","Marco","ITA3285","OPEN","SC Bari","ITA"]
[null,"Marco Baj","Baj","Marco","ITA1445","VET","CT Torino 2009","ITA"]
[null,"Alessio Felici","Felici","Alessio","ITA3492","U16","Atletico Pisa","ITA"]
[null,"Riccardo Danovaro","Danovaro","Riccardo","ITA3493","U12","Rebels Genova","ITA"]
[null,"Giuseppe Parisi","Parisi","Giuseppe","ITA1149","OPEN","SC Catania 1987","ITA"]
[null,"Riccardo Donzellini","Donzellini","Riccardo","ITA2411","OPEN","Subbuteo Club La Signoria","ITA"]
[null,"Corrado Nicholas Moscato","Moscato","Corrado Nicholas","ITA3494","U12","Subbuteo Club Reggio Calabria","ITA"]
[null,"Ugo Sabadini","Sabadini","Ugo","ITA3495","VET","Subbuteo Club Silvio Piola","ITA"]
[null,"Roberto Beducci","Beducci","Roberto","ITA2410","VET","ASD Volterrana 2016","ITA"]
[null,"Yevanhelina Viazovska","Viazovska","Yevanhelina","ITA3496","U12","Asd Ct Aosta Warriors","ITA"]
[null,"Ignazio Monte","Monte","Ignazio","ITA0579","VET","Subbuteo Dragons Azuqueca","ITA"]
[null,"Luca Martinelli","Martinelli","Luca","ITA3499","OPEN","Langton Green Subbuteo Club","ITA"]
[null,"Michael De Alessandris","De Alessandris","Michael","ITA3504","OPEN","Viterbese Subbuteo","ITA"]
[null,"Claudio Frola","Frola","Claudio","ITA3507","OPEN","CT Torino 2009","ITA"]
[null,"Giuseppe Gatti","Gatti","Giuseppe","ITA3410","VET","SC Sombrero","ITA"]
[null,"Dario Giotti","Giotti","Dario","ITA3514","OPEN","Subbuteo Club Höpfigheim","ITA"]
[null,"Dario Lazzarini","Lazzarini","Dario","ITA3433","OPEN","CTS Versilia Football Planet","ITA"]
[null,"Marco Calamari","Calamari","Marco","ITA3513","VET","CTS Versilia Football Planet","ITA"]
[null,"Simone Preziuso","Preziuso","Simone","ITA3550","U12","Subbuteisti Modena 1982","ITA"]
[null,"Andrea Furlani","Furlani","Andrea","ITA3497","VET","Pinco Devils Table Soccer","ITA"]
[null,"Oscar Caselli","Caselli","Oscar","ITA3500","OPEN","ASD Triestina Subbuteo","ITA"]
[null,"Gabriele Preziuso","Preziuso","Gabriele","ITA3549","U12","Subbuteisti Modena 1982","ITA"]
[null,"Manuel Passini","Passini","Manuel","ITA3556","U16","F.lli Bari Reggio Emilia","ITA"]
[null,"Alessio Leandro","Leandro","Alessio","ITA3512","VET","Subbuteo Club Silvio Piola","ITA"]
[null,"Ronny Rosario Aquino","Aquino","Ronny Rosario","ITA3536","OPEN","Bulldogs Vicenza","ITA"]
[null,"Cristian Argentino","Argentino","Cristian","ITA3559","U12","TSC Stella Artois Milano","ITA"]
[null,"Rayan Baccali","Baccali","Rayan","ITA3557","U16","Subbuteisti Modena 1982","ITA"]
[null,"Mariella Banditelli","Banditelli","Mariella","ITA3523","VET","Stabiae","ITA"]
[null,"Eloisa Bernava","Bernava","Eloisa","ITA3508","VET","Messina Table Soccer","ITA"]
[null,"Marco Bertolotti","Bertolotti","Marco","ITA3534","VET","US Catanzaro Subbuteo","ITA"]
[null,"Fabrizio Boffa","Boffa","Fabrizio","ITA3547","VET","Subbuteo Club Silvio Piola","ITA"]
[null,"Valeriano Brozzoli","Brozzoli","Valeriano","ITA3554","VET","Viterbese Subbuteo","ITA"]
[null,"Vincenzo Buonansegna","Buonansegna","Vincenzo","ITA3565","U12","Subbuteo Club Basilicata","ITA"]
[null,"Francesco Cappuccio","Cappuccio","Francesco","ITA3521","VET","US Valponte 1986","ITA"]
[null,"Edoardo Carlesso","Carlesso","Edoardo","ITA3535","U16","Bulldogs Vicenza","ITA"]
[null,"Davide Caroppo","Caroppo","Davide","ITA3541","OPEN","Subbuteo Taranto","ITA"]
[null,"Giovanni Celli","Celli","Giovanni","ITA3524","VET","Subbito Gol Ferrara","ITA"]
[null,"Martino Chianale","Chianale","Martino","ITA3511","U16","Subbuteo Club Silvio Piola","ITA"]
[null,"Maurizio Cussotto","Cussotto","Maurizio","ITA3551","VET","SC Ligures","ITA"]
[null,"Michele D'Apollo","D'Apollo","Michele","ITA3552","OPEN","Foggia CT","ITA"]
[null,"Paolo Dalia","Dalia","Paolo","ITA3510","VET","Subbuteo Club Silvio Piola","ITA"]
[null,"Roberta De Rosa","De Rosa","Roberta","ITA3525","OPEN","Stabiae","ITA"]
[null,"Riccardo Ferrucci","Ferrucci","Riccardo","ITA3540","VET","F.lli Bari Reggio Emilia","ITA"]
[null,"Antonio Giacummo","Giacummo","Antonio","ITA3548","OPEN","Subbuteo Club Basilicata","ITA"]
[null,"Carlo Grandinetti","Grandinetti","Carlo","ITA3562","VET","CT Paola","ITA"]
[null,"Luca Iaria","Iaria","Luca","ITA3506","VET","Subbuteo Club Reggio Calabria","ITA"]
[null,"Matteo La Marca","La Marca","Matteo","ITA3533","U12","SC Palermo 2016","ITA"]
[null,"Claudio Lallai","Lallai","Claudio","ITA3538","OPEN","SC Cagliari","ITA"]
[null,"Riccardo Lazzi","Lazzi","Riccardo","ITA3564","OPEN","ASD Volterrana 2016","ITA"]
[null,"Fabio Loseto","Loseto","Fabio","ITA3517","OPEN","SC Bari","ITA"]
[null,"Marco Loseto","Loseto","Marco","ITA3518","U16","SC Bari","ITA"]
[null,"Daniele Maffei","Maffei","Daniele","ITA3519","U12","SC Bari","ITA"]
[null,"Marco Manente","Manente","Marco","ITA3501","OPEN","CS SC Serenissima Mestre","ITA"]
[null,"Antonio Marino","Marino","Antonio","ITA3505","U16","Subbuteo Club Reggio Calabria","ITA"]
[null,"Giampaolo Mungo","Mungo","Giampaolo","ITA3539","VET","US Catanzaro Subbuteo","ITA"]
[null,"Raffaele Olita","Olita","Raffaele","ITA3545","VET","CTS Versilia Football Planet","ITA"]
[null,"Marco Pacella","Pacella","Marco","ITA3546","OPEN","Subbuteo Club Basilicata","ITA"]
[null,{"$f":"TRIM(CONCATENATE(D3527,\" \",C3527))","v":"Giorgio Passardi"},"Passardi","Giorgio","ITA3553","VET","SC Sombrero","ITA"]
[null,"Davide Presti","Presti","Davide","ITA3529","U16","Foggia CT","ITA"]
[null,"Luca Perri","Perri","Luca","ITA3567","U12","CT Paola","ITA"]
[null,"Gianmario Pesare","Pesare","Gianmario","ITA3509","OPEN","Subbuteo Club Silvio Piola","ITA"]
[null,"Federico Pessina","Pessina","Federico","ITA3558","U16","TSC Stella Artois Milano","ITA"]
[null,"Pierpaolo Raponi","Raponi","Pierpaolo","ITA3498","VET","Ves Gentes","ITA"]
[null,"Simone Miguel Ricco","Ricco","Simone Miguel","ITA3563","U12","CT Paola","ITA"]
[null,"Ettore Riili","Riili","Ettore","ITA3560","U16","TSC Stella Artois Milano","ITA"]
[null,"Massimo Risso","Risso","Massimo","ITA3532","VET","ASD CT Aosta Warriors","ITA"]
[null,"Alfredo Rivela","Rivela","Alfredo","ITA3543","VET","Subbuteo Club Basilicata","ITA"]
[null,"Simone Roberto","Roberto","Simone","ITA3520","U12","SC Bari","ITA"]
[null,"Alessio Rossin","Rossin","Alessio","ITA3527","VET","SC Ligures","ITA"]
[null,"Maria Teresa Ruscitto","Ruscitto","Maria Teresa","ITA3522","OPEN","Stabiae","ITA"]
[null,"Stefano Sangiorgio","Sangiorgio","Stefano","ITA3502","OPEN","CS SC Serenissima Mestre","ITA"]
[null,"Matteo Sangiorgio","Sangiorgio","Matteo","ITA3503","U12","CS SC Serenissima Mestre","ITA"]
[null,"Francesco Sani","Sani","Francesco","ITA3531","OPEN","SC Sombrero","ITA"]
[null,"Lorenzo Scoponi","Scoponi","Lorenzo","ITA3528","VET","Old Lions Macerata","ITA"]
[null,"Pierfrancesco Sole","Sole","Pierfrancesco","ITA3542","U12","CT Paola","ITA"]
[null,"Gianluca Sorrentino","Sorrentino","Gianluca","ITA3516","VET","SC Castelfiorentino","ITA"]
[null,"Thomas Sponticcia","Sponticcia","Thomas","ITA3537","OPEN","SC Cagliari","ITA"]
[null,"Alessandro Terracciano","Terracciano","Alessandro","ITA3561","VET","SC Fonte Nuova","ITA"]
[null,"Walter Trivigno","Trivigno","Walter","ITA3544","VET","CTS Versilia Football Planet","ITA"]
[null,"Edoardo Vassallo","Vassallo","Edoardo","ITA3555","VET","US Valponte 1986","ITA"]
[null,"Kenzo Koi","Koi","Kenzo","JPN001","VET","Yokohama OSC","JPN"]
[null,"Hideaki Wada","Wada","Hideaki","JPN003","VET","OSC Yamato Wild Blue TFC","JPN"]
[null,"Tomoyoshi Ikeya","Ikeya","Tomoyoshi","JPN014","OPEN","OSC Yamato Wild Blue TFC","JPN"]
[null,"Yuko Nakahara","Nakahara","Yuko","JPN022","VET","Yokohama OSC","JPN"]
[null,"Naruhisa Horino","Horino","Naruhisa","JPN031","VET","Osaka TFC","JPN"]
[null,"Taichi Kato","Kato","Taichi","JPN033","OPEN","Yokohama OSC","JPN"]
[null,"Makoto Miyake","Miyake","Makoto","JPN034","OPEN","Yokohama OSC","JPN"]
[null,"Takafumi Tokita","Tokita","Takafumi","JPN044","OPEN","SC Reeds","JPN"]
[null,"Nanami Horino","Horino","Nanami","JPN057","OPEN","Osaka TFC","JPN"]
[null,"Takafumi Kido","Kido","Takafumi","JPN071","OPEN","Yokohama OSC","JPN"]
[null,"Katsuhiko Fukuoka","Fukuoka","Katsuhiko","JPN072","OPEN","OSC Yamato Wild Blue TFC","JPN"]
[null,"Yoshiyuki Okano","Okano","Yoshiyuki","JPN076","VET","Yokohama OSC","JPN"]
[null,"Kazuki Okano","Okano","Kazuki","JPN077","OPEN","Yokohama OSC","JPN"]
[null,"Suguru Fujino","Fujino","Suguru","JPN078","OPEN","Tokyo Sunzeol TFC","JPN"]
[null,"Yuka Kato","Kato","Yuka","JPN092","OPEN","OSC Yamato Wild Blue TFC","JPN"]
[null,"Masahiko Takayama","Takayama","Masahiko","JPN096","VET","OSC Yamato Wild Blue TFC","JPN"]
[null,"Tomoyuki Yoshimura","Yoshimura","Tomoyuki","JPN097","VET","Adachi TFC","JPN"]
[null,"Kimi Wada","Wada","Kimi","JPN098","VET","OSC Yamato Wild Blue TFC","JPN"]
[null,"Cédric Garnier","Garnier","Cédric","JPN104","OPEN","Tokyo Sunzeol TFC","JPN"]
[null,"Keiichi Konno","Konno","Keiichi","JPN106","OPEN","Tokyo Sunzeol TFC","JPN"]
[null,"Naoto Tanaka","Tanaka","Naoto","JPN112","OPEN","Tokyo Sunzeol TFC","JPN"]
[null,"Noriyuki Suzuki","Suzuki","Noriyuki","JPN115","OPEN","Abelia TFC","JPN"]
[null,"Kosuke Mukai","Mukai","Kosuke","JPN117","OPEN","Tokyo Sunzeol TFC","JPN"]
[null,"Bill Wright","Wright","Bill","JPN122","VET","Subbuteo Club Nara","JPN"]
[null,"Shigemi Tanaka","Tanaka","Shigemi","JPN132","VET","Subbuteo Club Nara","JPN"]
[null,"Daigo Mori","Mori","Daigo","JPN140","U16","SC Reeds","JPN"]
[null,"Isshin Mori","Mori","Isshin","JPN141","U16","SC Reeds","JPN"]
[null,"Andrew Martini","Martini","Andrew","JPN153","VET","Tokyo Sunzeol TFC","JPN"]
[null,"Tatsuki Mori","Mori","Tatsuki","JPN154","U12","SC Reeds","JPN"]
[null,"Caline Garnier","Garnier","Caline","JPN161","U12","Tokyo Sunzeol TFC","JPN"]
[null,"Manabu Nishi","Nishi","Manabu","JPN162","VET","SC Reeds","JPN"]
[null,"Miaki Nishi","Nishi","Miaki","JPN163","VET","SC Reeds","JPN"]
[null,"Yohei Gomi","Gomi","Yohei","JPN164","VET","Yokohama OSC","JPN"]
[null,"Hiroyuki Okada","Okada","Hiroyuki","JPN168","OPEN","Yokohama OSC","JPN"]
[null,"Hidenori Nakai","Nakai","Hidenori","JPN169","OPEN","Yokohama OSC","JPN"]
[null,"Ryota Amano","Amano","Ryota","JPN171","OPEN","Yokohama OSC","JPN"]
[null,"Mitsuki Mishima","Mishima","Mitsuki","JPN172","OPEN","Yokohama OSC","JPN"]
[null,"Hina Akimoto","Akimoto","Hina","JPN174","OPEN","Yokohama OSC","JPN"]
[null,"Sato Yoshifumi","Yoshifumi","Sato","JPN175","VET","Azure Tokyo","JPN"]
[null,"Kazue Osa","Osa","Kazue","JPN176","VET","OS Academy 1947","JPN"]
[null,"Masato Tanaka","Tanaka","Masato","JPN177","VET","Tokyo Sparkling Shooters","JPN"]
[null,{"$f":"TRIM(CONCATENATE(D3591,\" \",C3591))","v":"Mitsuaki Tachikawa"},"Tachikawa","Mitsuaki","JPN178","OPEN","OS Academy 1947","JPN"]
[null,"Aki Kanda","Kanda","Aki","JPN179","OPEN","Table Football Club Kashiwa Sunrise","JPN"]
[null,"Kotetsu Kanda","Kanda","Kotetsu","JPN180","U12","Table Football Club Kashiwa Sunrise","JPN"]
[null,"Junya Kanda","Kanda","Junya","JPN181","VET","Table Football Club Kashiwa Sunrise","JPN"]
[null,"Shoi Sasaki","Sasaki","Shoi","JPN182","OPEN","Tokyo Sparkling Shooters","JPN"]
[null,"Nozomu Morioka","Morioka","Nozomu","JPN183","VET","Yokohama OSC","JPN"]
[null,"Masumi Ichiba","Ichiba","Masumi","JPN184","VET","Yokohama OSC","JPN"]
[null,"Kaoru Shibata","Shibata","Kaoru","JPN185","VET","OS Academy 1947","JPN"]
[null,"Miyuki Ito","Ito","Miyuki","JPN186","VET","Tokyo Sparkling Shooters","JPN"]
[null,"Hideki Yoshida","Yoshida","Hideki","JPN187","VET","Yokohama OSC","JPN"]
[null,"Shusuke Takahashi","Takahashi","Shusuke","JPN188","U16","Table Football Club Kashiwa Sunrise","JPN"]
[null,"Masao Onitsuka","Onitsuka","Masao","JPN189","VET","Yokohama OSC","JPN"]
[null,"Tomoki Ono","Ono","Tomoki","JPN190","OPEN","SAITAMA MARINES","JPN"]
[null,"Tomoca TK","TK","Tomoca","JPN191","OPEN","TKy'sBeHEAVENESE TFC","JPN"]
[null,"Yutaka Kitamura","Kitamura","Yutaka","JPN192","VET","TKy'sBeHEAVENESE TFC","JPN"]
[null,"Hidekazu Tanaka","Tanaka","Hidekazu","JPN193","VET","OS Academy 1947","JPN"]
[null,"Yoshiharu Moritake","Moritake","Yoshiharu","JPN194","VET","OS Academy 1947","JPN"]
[null,"Kazuaki Ishida","Ishida","Kazuaki","JPN195","OPEN","SAITAMA MARINES","JPN"]
[null,"Miwako Okamoto","Okamoto","Miwako","JPN196","OPEN","Tokyo Sparkling Shooters","JPN"]
[null,"Kazutoyo Kataoka","Kataoka","Kazutoyo","JPN197","OPEN","SAITAMA MARINES","JPN"]
[null,"Yukina Yahagi","Yahagi","Yukina","JPN198","OPEN","OS Academy 1947","JPN"]
[null,"Norio Yamazoe","Yamazoe","Norio","JPN199","OPEN","Fukushima Table Football Club","JPN"]
[null,"Jiro Yasuda","Yasuda","Jiro","JPN200","VET","Tokyo Crossover Flickers","JPN"]
[null,"Yuri Yokoyama","Yokoyama","Yuri","JPN201","OPEN","Yokohama OSC","JPN"]
[null,"Ryoga Mitsuogi","Mitsuogi","Ryoga","JPN202","VET","ASAKUSA ZOO TFC","JPN"]
[null,"Haruka Goto","Goto","Haruka","JPN203","OPEN","SAITAMA MARINES","JPN"]
[null,"Kameo Tanaka","Tanaka","Kameo","JPN204","VET","Tokyo Sparkling Shooters","JPN"]
[null,"Mitoshi Tanaka","Tanaka","Mitoshi","JPN205","VET","Tokyo Sparkling Shooters","JPN"]
[null,"Tsuyoshi Nitta","Nitta","Tsuyoshi","JPN206","VET","Tokyo Sparkling Shooters","JPN"]
[null,"Hiroyuki Nakamura","Nakamura","Hiroyuki","JPN207","VET","Tokyo Sparkling Shooters","JPN"]
[null,"Masahiko Naganuma","Naganuma","Masahiko","JPN208","VET","Tokyo Sparkling Shooters","JPN"]
[null,"Ranajit Chatterje","Chatterje","Ranajit","JPN209","VET","Tokyo Sparkling Shooters","JPN"]
[null,"Daiki Sato","Sato","Daiki","JPN210","OPEN","Tokyo Sparkling Shooters","JPN"]
[null,"Yusuke Natsume","Natsume","Yusuke","JPN211","OPEN","Tokyo Sparkling Shooters","JPN"]
[null,"Tomokazu Kimura","Kimura","Tomokazu","JPN212","VET","TKy'sBeHEAVENESE TFC","JPN"]
[null,"Uryu Uchii","Uchii","Uryu","JPN213","OPEN","TKy'sBeHEAVENESE TFC","JPN"]
[null,"Keigo Matsuoka","Matsuoka","Keigo","JPN214","OPEN","TKy'sBeHEAVENESE TFC","JPN"]
[null,"Kenji Suzuki","Suzuki","Kenji","JPN215","OPEN","Tokyo Crossover Flickers","JPN"]
[null,"Yuta Fujiwara","Fujiwara","Yuta","JPN216","OPEN","Tokyo Crossover Flickers","JPN"]
[null,"Kota Yasuda","Yasuda","Kota","JPN217","OPEN","Tokyo Crossover Flickers","JPN"]
[null,"Shoma Yasuda","Yasuda","Shoma","JPN218","OPEN","Tokyo Crossover Flickers","JPN"]
[null,"Ryo Yoshida","Yoshida","Ryo","JPN219","OPEN","Tokyo Crossover Flickers","JPN"]
[null,"Yuka Kosaka","Kosaka","Yuka","JPN220","OPEN","GRAVURE TOKYO","JPN"]
[null,"Manabu Akiyama","Akiyama","Manabu","JPN221","OPEN","GRAVURE TOKYO","JPN"]
[null,"Rui Akiyama","Akiyama","Rui","JPN222","U12","GRAVURE TOKYO","JPN"]
[null,"Yayoi Tachikawa","Tachikawa","Yayoi","JPN223","VET","GRAVURE TOKYO","JPN"]
[null,"Junki Endo","Endo","Junki","JPN224","U20","GRAVURE TOKYO","JPN"]
[null,"Carlos Yamamoto","Yamamoto","Carlos","JPN225","OPEN","MARADONA TOKYO","JPN"]
[null,"Taku Mima","Mima","Taku","JPN226","OPEN","MARADONA TOKYO","JPN"]
[null,"Takumi Homma","Homma","Takumi","JPN227","OPEN","MARADONA TOKYO","JPN"]
[null,"Haru Yoshioka","Yoshioka","Haru","JPN228","OPEN","MARADONA TOKYO","JPN"]
[null,"Takahiro Maruyama","Maruyama","Takahiro","JPN229","OPEN","MARADONA TOKYO","JPN"]
[null,"Shinji Yamazaki","Yamazaki","Shinji","JPN230","VET","ASAKUSA ZOO TFC","JPN"]
[null,"Shingo Maeda","Maeda","Shingo","JPN231","VET","ASAKUSA ZOO TFC","JPN"]
[null,"Toshiya Kusano","Kusano","Toshiya","JPN232","VET","ASAKUSA ZOO TFC","JPN"]
[null,"Shinobu Kawasaki","Kawasaki","Shinobu","JPN233","OPEN","ASAKUSA ZOO TFC","JPN"]
[null,"Saemi Suzuki","Suzuki","Saemi","JPN234","OPEN","SAITAMA MARINES","JPN"]
[null,"Mitsuhide Iwaki","Iwaki","Mitsuhide","JPN235","VET","Fukushima Table Football Club","JPN"]
[null,"Katsuhiko Ogane","Ogane","Katsuhiko","JPN236","VET","Fukushima Table Football Club","JPN"]
[null,"Haruka Abe","Abe","Haruka","JPN237","OPEN","Fukushima Table Football Club","JPN"]
[null,"Masaaki Furutate","Furutate","Masaaki","JPN238","OPEN","Fukushima Table Football Club","JPN"]
[null,"Toshiki Sato","Sato","Toshiki","JPN239","OPEN","Fukushima Table Football Club","JPN"]
[null,"Kazunari Sakai","Sakai","Kazunari","JPN240","OPEN","Fukushima Table Football Club","JPN"]
[null,"Kie Suzuki","Suzuki","Kie","JPN241","OPEN","Fukushima Table Football Club","JPN"]
[null,{"$f":"TRIM(CONCATENATE(D3655,\" \",C3655))","v":"Takashi Yoshida"},"Yoshida","Takashi","JPN242","VET","Fukushima Table Football Club","JPN"]
[null,"Mai Oota","Oota","Mai","JPN243","OPEN","Fukushima Table Football Club","JPN"]
[null,"Sho Sugawara","Sugawara","Sho","JPN244","OPEN","Fukushima Table Football Club","JPN"]
[null,"Kazuharu Takahashi","Takahashi","Kazuharu","JPN245","VET","Table Football Club Kashiwa Sunrise","JPN"]
[null,"Kazuko Takahashi","Takahashi","Kazuko","JPN246","VET","Table Football Club Kashiwa Sunrise","JPN"]
[null,"Kei Kawamura","Kawamura","Kei","JPN247","VET","Azure Tokyo","JPN"]
[null,"Yoshimasa Tamura","Tamura","Yoshimasa","JPN248","OPEN","Azure Tokyo","JPN"]
[null,"Naoto Yasuda","Yasuda","Naoto","JPN249","OPEN","MARADONA TOKYO","JPN"]
[null,"Atsushi Toda","Toda","Atsushi","JPN250","OPEN","MARADONA TOKYO","JPN"]
[null,"Keita Jige","Jige","Keita","JPN251","OPEN","MARADONA TOKYO","JPN"]
[null,"Kyohei Ishikawa","Ishikawa","Kyohei","JPN252","OPEN","Tokyo Sparkling Shooters","JPN"]
[null,"Masaharu Miyairi","Miyairi","Masaharu","JPN253","VET","Tokyo Sparkling Shooters","JPN"]
[null,"Kentaro Tsuboi","Tsuboi","Kentaro","JPN254","OPEN","Tokyo Sparkling Shooters","JPN"]
[null,"Natsumi Sato","Sato","Natsumi","JPN255","OPEN","Tokyo Sparkling Shooters","JPN"]
[null,"Kazuhito Yoshihiro","Yoshihiro","Kazuhito","JPN256","OPEN","Tokyo Sparkling Shooters","JPN"]
[null,"Raksmey That","That","Raksmey","JPN257","OPEN","Fukushima Table Football Club","JPN"]
[null,"Michael M Dent","Dent","Michael M","MAS0001","VET","Hartamas Tigers","MAS"]
[null,"Vishnu Varthana Sundram","Sundram","Vishnu Varthana","MAS0002","OPEN","Hartamas Tigers","MAS"]
[null,"Sharvind Vyas Veera","Vyas Veera","Sharvind","MAS0003","OPEN","Hartamas Tigers","MAS"]
[null,"Muhammad Firman","Firman","Muhammad","MAS0004","OPEN","Hartamas Tigers","MAS"]
[null,"Jamie Kong","Kong","Jamie","MAS0005","VET","Hartamas Tigers","MAS"]
[null,"Muhammad Fiesal","Fiesal","Muhammad","MAS0006","VET","Hartamas Tigers","MAS"]
[null,"Rajakumaran Mohnish","Mohnish","Rajakumaran","MAS0007","OPEN","Hartamas Tigers","MAS"]
[null,"Gill Thesan Nikhil","Nikhil","Gill Thesan","MAS0008","OPEN","Hartamas Tigers","MAS"]
[null,"Muhammad Jibril","Jibril","Muhammad","MAS0009","OPEN","Hartamas Tigers","MAS"]
[null,"Hisham Azman","Azman","Hisham","MAS0010","VET","Hartamas Tigers","MAS"]
[null,"Muhammad Yazre","Yazre","Muhammad","MAS0011","OPEN","Hartamas Tigers","MAS"]
[null,"Sathia Sundram","Sundram","Sathia","MAS0012","OPEN","Hartamas Tigers","MAS"]
[null,"Edwin Wong","Wong","Edwin","MAS0013","VET","Hartamas Tigers","MAS"]
[null,"Charles Aquilina","Aquilina","Charles","MLT0002","VET","Bormla SC","MLT"]
[null,"Samuel Bartolo","Bartolo","Samuel","MLT0004","OPEN","Valletta SC","MLT"]
[null,"Melvin Barun","Barun","Melvin","MLT0005","OPEN","A.S.D. Siracusa calcio tavolo","MLT"]
[null,"Adrian Bonnici","Bonnici","Adrian","MLT0008","VET","Valletta Lions TFC","MLT"]
[null,"Angelo Borg","Borg","Angelo","MLT0009","OPEN","Valletta SC","MLT"]
[null,"Joseph Borg Bonaci","Borg Bonaci","Joseph","MLT0010","OPEN","Valletta SC","MLT"]
[null,"Josef Camilleri","Camilleri","Josef","MLT0013","OPEN","Bormla SC","MLT"]
[null,"Mario Camilleri","Camilleri","Mario","MLT0014","VET","TS Messina","MLT"]
[null,"Mauro Camilleri","Camilleri","Mauro","MLT0015","OPEN","Bormla SC","MLT"]
[null,"Derek Conti","Conti","Derek","MLT0017","OPEN","Valletta SC","MLT"]
[null,"Massimo Cremona","Cremona","Massimo","MLT0018","VET","H'Attard SC","MLT"]
[null,"George Ebejer","Ebejer","George","MLT0019","OPEN","Bormla SC","MLT"]
[null,"Tristan Fenech","Fenech","Tristan","MLT0020","OPEN","H`Attard SC","MLT"]
[null,"Ismaël Fenech","Fenech","Ismaël","MLT0041","OPEN","Bormla SC","MLT"]
[null,"Mark Gauci","Gauci","Mark","MLT0022","OPEN","Valletta SC","MLT"]
[null,"Hansel Mallia","Mallia","Hansel","MLT0025","OPEN","SC Fiamme Azzurre","MLT"]
[null,"Joseph Mifsud","Mifsud","Joseph","MLT0033","VET","SC Fiamme Azzurre","MLT"]
[null,"Vincent Mifsud","Mifsud","Vincent","MLT0036","VET","H'Attard SC","MLT"]
[null,"Patrick Pace","Pace","Patrick","MLT0026","VET","SS Lazio TFC","MLT"]
[null,"Jason Pisani","Pisani","Jason","MLT0028","VET","Bormla SC","MLT"]
[null,"Jean Carl Tabone","Tabone","Jean Carl","MLT0031","OPEN","Bormla SC","MLT"]
[null,"Joseph Zammit Pavia","Zammit Pavia","Joseph","MLT0034","VET","Valletta Lions TFC","MLT"]
[null,"John Zammit","Zammit","John","MLT0058","VET","ST Stembert","MLT"]
[null,"Thomas Ebejer","Ebejer","Thomas","MLT0060","U20","Bormla SC","MLT"]
[null,"Jurgen Balzan","Balzan","Jurgen","MLT0064","OPEN","Valletta SC","MLT"]
[null,"Jamie Bonnici","Bonnici","Jamie","MLT0071","OPEN","SS Lazio TFC","MLT"]
[null,"Jeshua Bonnici","Bonnici","Jeshua","MLT0073","U20","Valletta Lions TFC","MLT"]
[null,"Alfred Bonnici","Bonnici","Alfred","MLT0100","OPEN","Valletta Lions TFC","MLT"]
[null,"Stanley Farrugia Randon","Farrugia Randon","Stanley","MLT0101","VET","H'Attard SC","MLT"]
[null,"Frank Chetcuti Dimech","Chetcuti Dimech","Frank","MLT0105","VET","Valletta Lions TFC","MLT"]
[null,"Emanuel Camilleri","Camilleri","Emanuel","MLT0108","VET","Langton Green Subbuteo Club","MLT"]
[null,"Isaac Sam Camilleri","Camilleri","Isaac Sam","MLT0110","OPEN","Langton Green Subbuteo Club","MLT"]
[null,"Jayden Bonnici","Bonnici","Jayden","MLT0113","U16","Palermo","MLT"]
[null,"Walter Joseph Attard","Attard","Walter Joseph","MLT0118","VET","H'Attard SC","MLT"]
[null,"Robert Farrugia Randon","Farrugia Randon","Robert","MLT0122","U16","H'Attard SC","MLT"]
[null,{"$f":"TRIM(CONCATENATE(D3719,\" \",C3719))","v":"Mario Fleri Soler"},"Fleri Soler","Mario","MLT0125","OPEN","H'Attard SC","MLT"]
[null,"Spencer Conti","Conti","Spencer","MLT0126","OPEN","Subbuteo Club Reggio Calabria","MLT"]
[null,"Valentino Zamara","Zamara","Valentino","MLT0130","VET","H'Attard SC","MLT"]
[null,"Larson Ebejer","Ebejer","Larson","MLT0139","OPEN","Bormla SC","MLT"]
[null,"Gabriel Ebejer","Ebejer","Gabriel","MLT0140","U16","Bormla SC","MLT"]
[null,"Steve Austin","Austin","Steve","MLT0003","VET","Valletta Lions TFC","MLT"]
[null,"Luke Joseph Xerri","Xerri","Luke Joseph","MLT142","U16","H'Attard SC","MLT"]
[null,"Sherona Manicoro","Manicoro","Sherona","MLT143","OPEN","Bormla SC","MLT"]
[null,"Clarence Psaila","Psaila","Clarence","MLT144","OPEN","H`Attard SC","MLT"]
[null,"Mark Baldacchino","Baldacchino","Mark","MLT145","OPEN","H`Attard SC","MLT"]
[null,"Pulis Sandrino","Sandrino","Pulis","MLT146","OPEN","H`Attard SC","MLT"]
[null,"Natalino Tanti","Tanti","Natalino","MLT0119","VET","Valletta Lions TFC","MLT"]
[null,"Maikel De Haas","De Haas","Maikel","NED0001","OPEN","Dutch Legends","NED"]
[null,"Dennis Landzaat","Landzaat","Dennis","NED0004","OPEN","Dutch Legends","NED"]
[null,"Marco De Bruin","De Bruin","Marco","NED0007","VET","Dutch Legends","NED"]
[null,"Nico Marks","Marks","Nico","NED0012","VET","Dutch Legends","NED"]
[null,"Jerrel Van Keimpema","Van Keimpema","Jerrel","NED0014","OPEN","MVV Rijnmond","NED"]
[null,"Casey Van Os","Van Os","Casey","NED0015","OPEN","MVV Rijnmond","NED"]
[null,"Kenney Gerrets","Gerrets","Kenney","NED0016","OPEN","MVV Rijnmond","NED"]
[null,"René Bolte","Bolte","René","NED0017","VET","Dutch Legends","NED"]
[null,"Patrick De Jong","De Jong","Patrick","NED0018","VET","Dutch Legends","NED"]
[null,"Peter Van Kooten","Van Kooten","Peter","NED0019","VET","Dutch Legends","NED"]
[null,"Jovi Willeijns","Willeijns","Jovi","NED0021","OPEN","MVV Rijnmond","NED"]
[null,"Quincy Gerrets","Gerrets","Quincy","NED0023","OPEN","MVV Rijnmond","NED"]
[null,"Chantal De Jong","De Jong","Chantal","NED0024","OPEN","Dutch Legends","NED"]
[null,"Mirjam De Jong","De Jong","Mirjam","NED0025","OPEN","Dutch Legends","NED"]
[null,"Rinaldo Van Dijk","Van Dijk","Rinaldo","NED0026","OPEN","MVV Rijnmond","NED"]
[null,"Mikey Gerrets","Gerrets","Mikey","NED0027","OPEN","MVV Rijnmond","NED"]
[null,"Henk Landzaat","Landzaat","Henk","NED0029","VET","Dutch Legends","NED"]
[null,"Ard Lukassen","Lukassen","Ard","NED0035","VET","GSC De Hyacinth","NED"]
[null,"Jacob Bijlstra","Bijlstra","Jacob","NED0039","VET","GSC De Hyacinth","NED"]
[null,"Erwin Smit","Smit","Erwin","NED0041","VET","Dutch Legends","NED"]
[null,"Cailim Marks","Marks","Cailim","NED0044","OPEN","Dutch Legends","NED"]
[null,"Liesbeth de Jong - Huijers","de Jong - Huijers","Liesbeth","NED0045","VET","Dutch Legends","NED"]
[null,"Jarno Marks","Marks","Jarno","NED0046","OPEN","Dutch Legends","NED"]
[null,"Richard Oranje","Oranje","Richard","NED0047","VET","Dutch Legends","NED"]
[null,"Martijn de Jong","de Jong","Martijn","NED0050","OPEN","Dutch Legends","NED"]
[null,"Xavier Aret","Aret","Xavier","NED0051","VET","Dutch Legends","NED"]
[null,"Fedde Aret","Aret","Fedde","NED0052","U16","Dutch Legends","NED"]
[null,"Peter Van Den Houten","Van Den Houten","Peter","NED0054","VET","free agent","NED"]
[null,"Ronald Scheffer","Scheffer","Ronald","NED0082","OPEN","US Huy","NED"]
[null,"Martin Scheffer","Scheffer","Martin","NED0083","VET","Dutch Legends","NED"]
[null,"Kenneth Beggs","Beggs","Kenneth","NIR0001","VET","Irish Premier League","NIR"]
[null,"Barry Spence","Spence","Barry","NIR0002","OPEN","Irish Premier League","NIR"]
[null,"Alistair Morrison","Morrison","Alistair","NIR0003","VET","Belfast Barbarians","NIR"]
[null,"Andrew Morrison","Morrison","Andrew","NIR0004","OPEN","Belfast Barbarians","NIR"]
[null,"Peter Morrison","Morrison","Peter","NIR0005","OPEN","Belfast Barbarians","NIR"]
[null,"Eoin Adams","Adams","Eoin","NIR0006","VET","Yorkshire Phoenix","NIR"]
[null,"Stephen Rodgers","Rodgers","Stephen","NIR0007","VET","Belfast Barbarians","NIR"]
[null,"John Hughes","Hughes","John","NIR0009","OPEN","Belfast Barbarians","NIR"]
[null,"David Clegg","Clegg","David","NIR0010","VET","North Down","NIR"]
[null,"Adam Scullion","Scullion","Adam","NIR0011","OPEN","Belfast Barbarians","NIR"]
[null,"Mark McKane","McKane","Mark","NIR0012","OPEN","Belfast Barbarians","NIR"]
[null,"Stuart McIlroy","McIlroy","Stuart","NIR0013","VET","Yorkshire Phoenix","NIR"]
[null,"Matthew Armstrong","Armstrong","Matthew","NIR0015","OPEN","Belfast Barbarians","NIR"]
[null,"Ernest Bickerstaff","Bickerstaff","Ernest","NIR0016","VET","Irish Premier League","NIR"]
[null,"Peter Darling","Darling","Peter","NIR0018","OPEN","Belfast Barbarians","NIR"]
[null,"Trevor Cummings","Cummings","Trevor","NIR0019","OPEN","Yorkshire Phoenix","NIR"]
[null,"Lawrence Watson","Watson","Lawrence","NIR0020","OPEN","Derry City","NIR"]
[null,"Patrick McKeever","McKeever","Patrick","NIR0021","VET","Derry City","NIR"]
[null,"Mark McCrossan","McCrossan","Mark","NIR0022","OPEN","Derry City","NIR"]
[null,"Paul Boyle","Boyle","Paul","NIR0023","VET","Derry City","NIR"]
[null,"Rory Morrison","Morrison","Rory","NIR0024","VET","Derry City","NIR"]
[null,"Martinog Bradley","Bradley","Martinog","NIR0025","OPEN","Derry City","NIR"]
[null,{"$f":"TRIM(CONCATENATE(D3783,\" \",C3783))","v":"Simon Stewart"},"Stewart","Simon","NIR0026","OPEN","SG '94 Hannover","NIR"]
[null,"Craig Stewart","Stewart","Craig","NIR0027","OPEN","Derry City","NIR"]
[null,"Lochlin Bradley","Bradley","Lochlin","NIR0030",null,"Sporting Club 18","NIR"]
[null,"Jude Morrow","Morrow","Jude","NIR0031",null,"Derry City","NIR"]
[null,"Dee Jenkins","Jenkins","Dee","NIR0032","VET","Derry City","NIR"]
[null,"Donal Convery","Convery","Donal","NIR0033","VET","Belfast Barbarians","NIR"]
[null,"Colin Perry","Perry","Colin","NIR0034",null,"Belfast Barbarians","NIR"]
[null,"Ian Greer","Greer","Ian","NIR0035","VET","Derry City","NIR"]
[null,"Anders Bergane","Bergane","Anders","NOR0001","OPEN","Skien Wildcats","NOR"]
[null,"Anders Grorud","Grorud","Anders","NOR0002","VET","TSPA White Star","NOR"]
[null,"Jon Henning Bergane","Bergane","Jon Henning","NOR0003","VET","Yorkshire Phoenix","NOR"]
[null,"Lars Tore Myge","Myge","Lars Tore","NOR0004","VET","Sparta Spreeathen 74/82","NOR"]
[null,"Trond Pedersen","Pedersen","Trond","NOR0005","VET","Skien Wildcats","NOR"]
[null,"Svein Arne Brekke","Brekke","Svein Arne","NOR0006","OPEN","Subbuteo Oslo","NOR"]
[null,"Sondre Nordjore","Nordjore","Sondre","NOR0007","OPEN","Skien Wildcats","NOR"]
[null,"Fredrik Rawicki","Rawicki","Fredrik","NOR0008","OPEN","Skien Wildcats","NOR"]
[null,"Christian Schulze","Schulze","Christian","NOR0009","OPEN","Kragerø BFK","NOR"]
[null,"Martin Eikeland","Eikeland","Martin","NOR0010","VET","Kragerø BFK","NOR"]
[null,"Håkon Lunde","Lunde","Håkon","NOR0011","OPEN","Porsgrunn Flickers","NOR"]
[null,"Mathias Kastet","Kastet","Mathias","NOR0012","OPEN","Porsgrunn Flickers","NOR"]
[null,"Kjetil Fosse","Fosse","Kjetil","NOR0013","OPEN","Skien Wildcats","NOR"]
[null,"Thomas Flaaten Fredriksen","Fredriksen","Thomas Flaaten","NOR0014","OPEN","Porsgrunn Flickers","NOR"]
[null,"Terje Ellefsen","Ellefsen","Terje","NOR0015","OPEN","Langton Green Subbuteo Club","NOR"]
[null,"Robert Ludvigsen","Ludvigsen","Robert","NOR0016","OPEN","Porsgrunn Flickers","NOR"]
[null,"Frode Sveinungsen","Sveinungsen","Frode","NOR0017","OPEN","Porsgrunn Flickers","NOR"]
[null,"Jan-Thomas Moen","Moen","Jan-Thomas","NOR0018","OPEN","Porsgrunn Flickers","NOR"]
[null,"Riccardo Destefanis","Destefanis","Riccardo","NOR0019","VET","Subbuteo Oslo","NOR"]
[null,"Ian Alexander Stuart","Stuart","Ian Alexander","NOR0020","VET","Subbuteo Oslo","NOR"]
[null,"Alfredo Gianoglio","Gianoglio","Alfredo","NOR0021","OPEN","Subbuteo Oslo","NOR"]
[null,"Audun Flaaten","Flaaten","Audun","NOR0022","VET","Porsgrunn Flickers","NOR"]
[null,"Jostein Håland","Håland","Jostein","NOR0023","VET","Sula","NOR"]
[null,"Richard Edeson","Edeson","Richard","NZL0001","VET","Northern Line Flickers TFC","NZL"]
[null,"Conrad Mudge","Mudge","Conrad","NZL0002","VET","Northern Line Flickers TFC","NZL"]
[null,"Andy Shearer","Shearer","Andy","NZL0003","VET","Northern Line Flickers TFC","NZL"]
[null,"Mark Rossi","Rossi","Mark","NZL0004","VET","Northern Line Flickers TFC","NZL"]
[null,"Craig Wright","Wright","Craig","NZL0005","VET","Northern Line Flickers TFC","NZL"]
[null,"Andrew Miller","Miller","Andrew","NZL0006","VET","Northern Line Flickers TFC","NZL"]
[null,"George Miller","Miller","George","NZL0007","OPEN","Northern Line Flickers TFC","NZL"]
[null,"Andy Smith","Smith","Andy","NZL0008","OPEN","Northern Line Flickers TFC","NZL"]
[null,"Nick McNeil","McNeil","Nick","NZL0009","OPEN","Northern Line Flickers TFC","NZL"]
[null,"Matty Schofield","Schofield","Matty","NZL0010","OPEN","Northern Line Flickers TFC","NZL"]
[null,"Shane Hamerton","Hamerton","Shane","NZL0011","VET","Dragonrose Subbuteo Club","NZL"]
[null,"Chris Noonan","Noonan","Chris","NZL0012","VET","free agent","NZL"]
[null,"Jim O'Donnell","O'Donnell","Jim","NZL0013","OPEN","Mavericks Manawatu Subbuteo Club","NZL"]
[null,"Terence Smith","Smith","Terence","NZL0015","OPEN","free agent","NZL"]
[null,"Steven Cascalheira","Cascalheira","Steven","NZL0016","OPEN","free agent","NZL"]
[null,"John Belt","Belt","John","NZL0017","VET","free agent","NZL"]
[null,"Kevin Hare","Hare","Kevin","NZL0018","VET","Wellington Dolphins Subbuteo Club","NZL"]
[null,"Ian Sansom","Sansom","Ian","NZL0019","VET","free agent","NZL"]
[null,"Graeme Fletcher","Fletcher","Graeme","NZL0020","OPEN","Free agent","NZL"]
[null,"Rob Cooke","Cooke","Rob","NZL0014","VET","Northern Line Flickers TFC","NZL"]
[null,"Afonso Pereira","Pereira","Afonso","POR0001","OPEN","Atletico Pisa","POR"]
[null,"Carolina Villarigues","Villarigues","Carolina","POR0005","OPEN","Crimson Horses","POR"]
[null,"José Santos","Santos","José","POR0011","VET","CF os Belenenses","POR"]
[null,"Miguel Castro","Castro","Miguel","POR0012","VET","GRD 1º Maio Tires","POR"]
[null,"Miguel Faria","Faria","Miguel","POR0013","VET","Sporting Clube De Portugal","POR"]
[null,"Norberto Miguel","Miguel","Norberto","POR0014","VET","Subbuteo Club Labronico","POR"]
[null,"Nuno Noronha","Noronha","Nuno","POR0015","VET","GRD 1º Maio Tires","POR"]
[null,"Paulo Laranjeira","Laranjeira","Paulo","POR0016","VET","Sporting Clube De Portugal","POR"]
[null,"Paulo Português","Português","Paulo","POR0017","VET","Free Agent","POR"]
[null,"Paulo Sena","Sena","Paulo","POR0018","VET","CF os Belenenses","POR"]
[null,"Ricardo Pavão","Pavão","Ricardo","POR0020","OPEN","GRD 1º Maio Tires","POR"]
[null,"Ruben Português","Português","Ruben","POR0021","OPEN","GRD 1º Maio Tires","POR"]
[null,"Sérgio Ramos","Ramos","Sérgio","POR0022","OPEN","Bologna Tigers Subbuteo","POR"]
[null,{"$f":"TRIM(CONCATENATE(D3847,\" \",C3847))","v":"Ricardo José"},"José","Ricardo","POR0024","OPEN","FTC Issy-les-Moulineaux","POR"]
[null,"Luís Filipe Horta","Horta","Luís Filipe","POR0027","VET","Free Agent","POR"]
[null,"José Freitas","Freitas","José","POR0030","VET","Free Agent","POR"]
[null,"José Carlos Marques","Marques","José Carlos","POR0045","OPEN","Free Agent","POR"]
[null,"Gil Afonso","Afonso","Gil","POR0046","OPEN","GRD 1º Maio Tires","POR"]
[null,"Nelson Afonso","Afonso","Nelson","POR0047","VET","Free Agent","POR"]
[null,"Ruben Monteiro","Monteiro","Ruben","POR0048","OPEN","GRD 1º Maio Tires","POR"]
[null,"Manuel Santos","Santos","Manuel","POR0051","VET","Subbuteo Club Labronico","POR"]
[null,"Hugo Carvalho","Carvalho","Hugo","POR0052","OPEN","Sporting Clube De Portugal","POR"]
[null,"Miguel Amaro","Amaro","Miguel","POR0053","VET","GRD 1º Maio Tires","POR"]
[null,"Vasco Guimaraes","Guimaraes","Vasco","POR0055","OPEN","Valletta Lions TFC","POR"]
[null,"Sérgio Loureiro","Loureiro","Sérgio","POR0056","OPEN","TS Napoli Fighters","POR"]
[null,"Filipe Maia","Maia","Filipe","POR0077","VET","Sporting Clube De Portugal","POR"]
[null,"João Matos Dias","Dias","João Matos","POR0087","VET","Free Agent","POR"]
[null,"Paulo Gouveia","Gouveia","Paulo","POR0117","OPEN","Free Agent","POR"]
[null,"Ricardo Campos","Campos","Ricardo","POR0119","OPEN","CD Olivais Moscavide","POR"]
[null,"Jorge Silva","Silva","Jorge","POR0123","VET","CF os Belenenses","POR"]
[null,"Abel Rosa","Rosa","Abel","POR0124","VET","Free Agent","POR"]
[null,"Nuno Reis","Reis","Nuno","POR0125","VET","Free Agent","POR"]
[null,"Diogo Pereira","Pereira","Diogo","POR0131","OPEN","CD Olivais Moscavide","POR"]
[null,"André Fernandes","Fernandes","André","POR0135","OPEN","CF os Belenenses","POR"]
[null,"Nélson Leitão","Leitão","Nélson","POR0137","VET","Free Agent","POR"]
[null,"Rúben Paleta","Paleta","Rúben","POR0138","U20","Free Agent","POR"]
[null,"Luís Miguel Silva","Silva","Luís Miguel","POR0139","OPEN","Free Agent","POR"]
[null,"Daniel Dias","Dias","Daniel","POR0140","U12","CS Zarco","POR"]
[null,"Luís Abreu","Abreu","Luís","POR0143","VET","CF os Belenenses","POR"]
[null,"Nuno Henriques","Henriques","Nuno","POR0144","OPEN","CF os Belenenses","POR"]
[null,"Vasco Henriques","Henriques","Vasco","POR0145","OPEN","CF os Belenenses","POR"]
[null,"António Tavares","Tavares","António","POR0147","OPEN","Free Agent","POR"]
[null,"Tiago Sousa","Sousa","Tiago","POR0148","OPEN","Sporting Clube De Portugal","POR"]
[null,"Luís Filipe Silva","Silva","Luís Filipe","POR0149","VET","CF os Belenenses","POR"]
[null,"João Feiteira","Feiteira","João","POR0150","VET","Free Agent","POR"]
[null,"João Matias","Matias","João","POR0151","OPEN","CD Olivais Moscavide","POR"]
[null,"Francisco Mendes","Mendes","Francisco","POR0152","OPEN","Free Agent","POR"]
[null,"Rui Mendes","Mendes","Rui","POR0153","VET","Free Agent","POR"]
[null,"Rodrigo Eira","Eira","Rodrigo","POR0155","OPEN","Free Agent","POR"]
[null,"Gonçalo Vieira","Vieira","Gonçalo","POR0156","OPEN","Free Agent","POR"]
[null,"Matilde Henriques","Henriques","Matilde","POR0157","U20","Free Agent","POR"]
[null,"Guilherme Mendonça","Mendonça","Guilherme","POR0158","OPEN","Free Agent","POR"]
[null,"Rui Fonseca","Fonseca","Rui","POR0159","OPEN","Free Agent","POR"]
[null,"Bernardo Cardoso","Cardoso","Bernardo","POR0160","OPEN","CS Zarco","POR"]
[null,"Bruno Abreu","Abreu","Bruno","POR0161","OPEN","CD Olivais Moscavide","POR"]
[null,"Gil Amaro","Amaro","Gil","POR0162","U20","Free Agent","POR"]
[null,"Pedro Amaro","Amaro","Pedro","POR0163","U20","CF OS Belenenses","POR"]
[null,"António Pires","Pires","António","POR0164","VET","Orfeão Foz do Douro","POR"]
[null,"Placido Carbonaro","Carbonaro","Placido","POR0165","OPEN","Free Agent","POR"]
[null,"Nuno Alves","Alves","Nuno","POR0166","OPEN","CD Olivais Moscavide","POR"]
[null,"Pedro Sampaio","Sampaio","Pedro","POR0167","VET","Free Agent","POR"]
[null,"Carlos Oleastro","Oleastro","Carlos","POR0168","VET","CD Olivais Moscavide","POR"]
[null,"Nuno Silva","Silva","Nuno","POR0169","VET","Sporting Clube De Portugal","POR"]
[null,"Luís Neves","Neves","Luís","POR0170","VET","CD Olivais Moscavide","POR"]
[null,"João Pascoal","Pascoal","João","POR0171","VET","CF Sassoeiros","POR"]
[null,"André Almeida","Almeida","André","POR0172","OPEN","Free Agent","POR"]
[null,"José Trindade","Trindade","José","POR0173","OPEN","CD Olivais Moscavide","POR"]
[null,"Rui Varela","Varela","Rui","POR0178","VET","GRD 1º Maio Tires","POR"]
[null,"Pedro Araújo","Araújo","Pedro","POR0179","VET","CF os Belenenses","POR"]
[null,"Mateus Santos","Santos","Mateus","POR0180","U12","CS Zarco","POR"]
[null,"Nuno Afonso","Afonso","Nuno","POR0181","VET","Sporting Clube De Portugal","POR"]
[null,{"$f":"TRIM(CONCATENATE(D3905,\" \",C3905))","v":"Maria Joao Silva"},"Silva","Maria Joao","POR0182","U20","Sporting Clube De Portugal","POR"]
[null,"André Correia","Correia","André","POR0183","U20","Free Agent","POR"]
[null,"Santiago Pereira","Pereira","Santiago","POR0184","U20","CS Zarco","POR"]
[null,"Tomás Albuquerque","Albuquerque","Tomás","POR0185","U20","CS Zarco","POR"]
[null,"Tomás Santos","Santos","Tomás","POR0186","U20","CS Zarco","POR"]
[null,"Francisco Martins","Martins","Francisco","POR0187","U20","CS Zarco","POR"]
[null,"Júlia Mendes","Mendes","Júlia","POR0188","U20","CS Zarco","POR"]
[null,"Lucas Almeida","Almeida","Lucas","POR0189","U20","CS Zarco","POR"]
[null,"Duarte Valério","Valério","Duarte","POR0190","U20","CS Zarco","POR"]
[null,"Guilherme Dias","Dias","Guilherme","POR0193","U20","CS Zarco","POR"]
[null,"Pedro Trindade","Trindade","Pedro","POR0196","OPEN","CD Olivais Moscavide","POR"]
[null,"Tomàs Trindade","Trindade","Tomàs","POR0197","U20","CD Olivais Moscavide","POR"]
[null,"Cláudio Madeira","Madeira","Cláudio","POR0199","OPEN","GRD 1º Maio Tires","POR"]
[null,"Francisco Bento","Bento","Francisco","POR0201","U12","CF os Belenenses","POR"]
[null,"Paulo Sobral","Sobral","Paulo","POR0203","VET","Sporting Clube De Portugal","POR"]
[null,{"$f":"TRIM(CONCATENATE(D3920,\" \",C3920))","v":"Salvador Gonçalves"},"Gonçalves","Salvador","POR0204","OPEN","CF os Belenenses","POR"]
[null,"André Jorge","Jorge","André","POR0205","U20","CS Zarco","POR"]
[null,{"$f":"TRIM(CONCATENATE(D3922,\" \",C3922))","v":"André Schubiditze"},"Schubiditze","André","POR0206","U20","CS Zarco","POR"]
[null,"Cláudio Miguel Garcia","Garcia","Cláudio Miguel","POR0207","OPEN","Sporting Clube De Portugal","POR"]
[null,"Carmo Costa","Costa","Carmo","POR0208","U20","CS Zarco","POR"]
[null,"Afonso Gouveia","Gouveia","Afonso","POR0210","U20","CS Zarco","POR"]
[null,"Tiago Figueiredo","Figueiredo","Tiago","POR0211","U20","CS Zarco","POR"]
[null,"Ricardo Botas","Botas","Ricardo","POR0212","OPEN","GRD 1º Maio Tires","POR"]
[null,"Pedro M Pinto","Pinto","Pedro M","POR0214","VET","CD Olivais Moscavide","POR"]
[null,"Tiago Magno","Magno","Tiago","POR0215","U20","CS Zarco","POR"]
[null,"Beatriz Oliveira","Oliveira","Beatriz","POR0216","U20","CS Zarco","POR"]
[null,"António Sampaio","Sampaio","António","POR0218","U20","CS Zarco","POR"]
[null,"Luis Garcia","Garcia","Luis","POR0220","U16","CS Zarco","POR"]
[null,"Bruno Lima","Lima","Bruno","POR0221","U20","CS Zarco","POR"]
[null,"Guilherme Santos","Santos","Guilherme","POR0224","U16","CF os Belenenses","POR"]
[null,"Luis Lobo","Lobo","Luis","POR0225","VET","CD Olivais Moscavide","POR"]
[null,"José Martin","Martin","José","POR0226","VET","CD Olivais Moscavide","POR"]
[null,"Pedro Henrique","Henrique","Pedro","POR0227","VET","CD Olivais Moscavide","POR"]
[null,"João Raimundo","Raimundo","João","POR0228","VET","CD Olivais Moscavide","POR"]
[null,"Salvador Moura","Moura","Salvador","POR0230","U16","CS Zarco","POR"]
[null,"Inês Pinho","Pinho","Inês","POR0231","U16","CS Zarco","POR"]
[null,"Francisca Cruz","Cruz","Francisca","POR0232","U16","CS Zarco","POR"]
[null,"João Alves","Alves","João","POR0233","U16","CS Zarco","POR"]
[null,"Martim Ribeiro","Ribeiro","Martim","POR0234","U16","CS Zarco","POR"]
[null,"Gabriel Bento","Bento","Gabriel","POR0235","U16","CS Zarco","POR"]
[null,"Henrique Ãcuna","Ãcuna","Henrique","POR0236","U16","CS Zarco","POR"]
[null,"Miguel Leitão","Leitão","Miguel","POR0237","U16","CS Zarco","POR"]
[null,"Duarte Marques","Marques","Duarte","POR0238","U16","CS Zarco","POR"]
[null,"Alexandre Kushmyruk","Kushmyruk","Alexandre","POR0239","U16","CS Zarco","POR"]
[null,"Tomás Ribeiro","Ribeiro","Tomás","POR0240","U16","CS Zarco","POR"]
[null,"Gabriel Alves","Alves","Gabriel","POR0244","U16","CS Zarco","POR"]
[null,"Herculano Diogenes","Diogenes","Herculano","POR0245","OPEN","Subbuteo Clube de Benfica","POR"]
[null,"Tomás Amaro","Amaro","Tomás","POR0246","U16","CS Zarco","POR"]
[null,"Martim Sena","Sena","Martim","POR0247","U12","CF os Belenenses","POR"]
[null,"Carlos Ricardo","Ricardo","Carlos","POR0248","VET","Subbuteo Clube de Benfica","POR"]
[null,"Alexandre Fontes","Fontes","Alexandre","POR0249","VET","Subbuteo Clube de Benfica","POR"]
[null,"Maria Joao Carmo","Carmo","Maria Joao","POR0250","VET","CF os Belenenses","POR"]
[null,"Max Pereira","Pereira","Max","POR0251","U16","Valletta Lions TFC","POR"]
[null,"Miguel Pereira","Pereira","Miguel","POR0252","VET","Valletta Lions TFC","POR"]
[null,"Kevin Ferreira","Ferreira","Kevin","POR0253","U20","Free Agent","POR"]
[null,"",null,null,"POR0254",null,null,"POR"]
[null,"João P Casaca","Casaca","João P","POR0064","VET","Sporting America TSC","POR"]
[null,"João B Casaca","Casaca","João B","POR0065","OPEN","Sporting America TSC","POR"]
[null,"Afonso Monge","Monge","Afonso","POR0126","U12","CS Zarco","POR"]
[null,"Maksim Petrovich Gulyev","Gulyev","Maksim Petrovich","RUS0001","OPEN","Lakhta Subbuteo TFC","RUS"]
[null,"Andrey Nicolaevich Kudryashov","Kudryashov","Andrey Nicolaevich","RUS0002","VET","Lakhta Subbuteo TFC","RUS"]
[null,"Dmitry Valeryavich Lavrentcov","Lavrentcov","Dmitry Valeryavich","RUS0003","OPEN","Lakhta Subbuteo TFC","RUS"]
[null,"Aton Aleksandrovich Volkov","Volkov","Aton Aleksandrovich","RUS0004","OPEN","Lakhta Subbuteo TFC","RUS"]
[null,"Andrey Vlasov","Vlasov","Andrey","RUS0005","VET","Lakhta Subbuteo TFC","RUS"]
[null,"Evgenii Vlasov","Vlasov","Evgenii","RUS0006","OPEN","Lakhta Subbuteo TFC","RUS"]
[null,"Andrea Andreoni","Andreoni","Andrea","SCO0081","VET","Glasgow TSA","SCO"]
[null,"Baver Bari","Bari","Baver","SCO0036","VET","Glasgow TSA","SCO"]
[null,"David Baxter","Baxter","David","SCO0038","VET","Dundee Utd TFC","SCO"]
[null,"Steve Bennett","Bennett","Steve","SCO0019","VET","Dundee Utd TFC","SCO"]
[null,"Colin Berry","Berry","Colin","SCO0018","VET","Glasgow TSA","SCO"]
[null,"Andy Beskaby","Beskaby","Andy","SCO0049","VET","Dundee Utd TFC","SCO"]
[null,"Marco Bevilacqua","Bevilacqua","Marco","SCO0062","OPEN","Derry City TFC","SCO"]
[null,"Tom Burns","Burns","Tom","SCO0016","VET","Glasgow TSA","SCO"]
[null,{"$f":"TRIM(CONCATENATE(D3978,\" \",C3978))","v":"Dave Butler"},"Butler","Dave","SCO0017","VET","Glasgow TSA","SCO"]
[null,"Martin Campbell","Campbell","Martin","SCO0040","OPEN","Golazzo SC","SCO"]
[null,"Gareth Christie","Christie","Gareth","SCO0025","OPEN","Derry City TFC","SCO"]
[null,"Barry Corr","Corr","Barry","SCO0014","VET","Glasgow TSA","SCO"]
[null,"Scott Dalgleish","Dalgleish","Scott","SCO0077","OPEN","Golazzo SC","SCO"]
[null,"Colin Day","Day","Colin","SCO0015","VET","Glasgow TSA","SCO"]
[null,"Stephen Donnelly","Donnelly","Stephen","SCO0083","VET","Free Agent","SCO"]
[null,"William Fleming","Fleming","William","SCO0013","VET","Glasgow TSA","SCO"]
[null,"Scott Fleming","Fleming","Scott","SCO0021","VET","Dundee United TFC","SCO"]
[null,"Dave Gladman","Gladman","Dave","SCO0012","VET","Glasgow TSA","SCO"]
[null,"Danny Gregory","Gregory","Danny","SCO0075","OPEN","Glasgow TSA","SCO"]
[null,"John Halpin","Halpin","John","SCO0046","VET","Glasgow TSA","SCO"]
[null,"David Houston","Houston","David","SCO0041","VET","Glasgow TSA","SCO"]
[null,"David Jack","Jack","David","SCO0076","VET","Glasgow TSA","SCO"]
[null,"Andrew Kent","Kent","Andrew","SCO0082","OPEN","Golazzo SC","SCO"]
[null,"Malcolm Lees","Lees","Malcolm","SCO0005","VET","Glasgow TSA","SCO"]
[null,"Douglas Lynch","Lynch","Douglas","SCO0078","OPEN","Golazzo SC","SCO"]
[null,"John Marshall","Marshall","John","SCO0070","VET","Golazzo SC","SCO"]
[null,"John Mathieson","Mathieson","John","SCO0059","OPEN","Glasgow TSA","SCO"]
[null,"Paul McFadyen","McFadyen","Paul","SCO0071","VET","Golazzo SC","SCO"]
[null,"Ronnie McKenzie","McKenzie","Ronnie","SCO0010","VET","Glasgow TSA","SCO"]
[null,"Fraser McKenzie","McKenzie","Fraser","SCO0051","OPEN","Glasgow TSA","SCO"]
[null,"Gary McKenzie","McKenzie","Gary","SCO0079","OPEN","Glasgow TSA","SCO"]
[null,"Scott McKenzie","McKenzie","Scott","SCO0080","U20","GlasgowTSA","SCO"]
[null,"Ryan McPhail","McPhail","Ryan","SCO0063","OPEN","Glasgow TSA","SCO"]
[null,"Oriano Micheletti","Micheletti","Oriano","SCO0064","VET","SC Labronico","SCO"]
[null,"Dave Minty","Minty","Dave","SCO0060","VET","Dundee Utd TFC","SCO"]
[null,"Colin Nicol","Nicol","Colin","SCO0066","VET","Dundee Utd TFC","SCO"]
[null,"Kevin Smith","Smith","Kevin","SCO0074","OPEN","Glasgow TSA","SCO"]
[null,"Brian Spoors","Spoors","Brian","SCO0061","VET","Glasgow TSA","SCO"]
[null,"Gary Stewart","Stewart","Gary","SCO0065",null,"Dundee Utd TFC","SCO"]
[null,"Craig Thom","Thom","Craig","SCO0055","OPEN","Dundee Utd TFC","SCO"]
[null,"Chad Wright","Wright","Chad","SCO0073","VET","Glasgow TSA","SCO"]
[null,"Bruce Henderson","Henderson","Bruce","SCO0084","VET","Golazzo SC","SCO"]
[null,"Derek Air","Air","Derek","SCO0085","VET","Free Agent","SCO"]
[null,"Ric Rivas","Rivas","Ric","SGP_P01","VET","SG Lions TFC","SGP"]
[null,"Rudy Hesty Roslan","Roslan","Rudy Hesty","SGP0001","OPEN","Jurong Central SC","SGP"]
[null,"Amin Mohd Anis","Mohd Anis","Amin","SGP0002","OPEN","Jurong Central SC","SGP"]
[null,"Muhd Irshadullah Mohd Yusoff","Mohd Yusoff","Muhd Irshadullah","SGP0003","OPEN","Jurong Central SC","SGP"]
[null,"Noor Haikal Mohd Sabah","Mohd Sabah","Noor Haikal","SGP0004","OPEN","Jurong Central SC","SGP"]
[null,"Muhd Farhan Othman","Othman","Muhd Farhan","SGP0005","OPEN","Jurong Central SC","SGP"]
[null,"Mohd Rizal Taib","Taib","Mohd Rizal","SGP0006","VET","Jurong Central SC","SGP"]
[null,"Wee Lik Soh","Soh","Wee Lik","SGP0007","VET","Jurong Central SC","SGP"]
[null,"Mohd Farhan Jaafar","Jaafar","Mohd Farhan","SGP0008","OPEN","Jurong Central SC","SGP"]
[null,"Muhd Fadhly Fahmi","Fahmi","Muhd Fadhly","SGP0009","OPEN","Jurong Central SC","SGP"]
[null,"Jonathan Cheong","Cheong","Jonathan","SGP0010","OPEN","Jurong Central SC","SGP"]
[null,"Muhammad Azhar Yusri","Yusri","Muhammad Azhar","SGP0011","OPEN","Jurong Central SC","SGP"]
[null,"Susiayanto Sunaryo","Sunaryo","Susiayanto","SGP0012","OPEN","Jurong Central SC","SGP"]
[null,"Suhermanto Sunaryo","Sunaryo","Suhermanto","SGP0013","OPEN","Jurong Central SC","SGP"]
[null,"Siang Ping, Jeslin Tan","Tan","Siang Ping, Jeslin","SGP0014","OPEN","Jurong Central SC","SGP"]
[null,"Muhd Azim Haikal Azhar","Azhar","Muhd Azim Haikal","SGP0015","OPEN","Jurong Central SC","SGP"]
[null,"Nur Hazely Azman","Azman","Nur Hazely","SGP0016","OPEN","Jurong Central SC","SGP"]
[null,"Chong Leng, Eddie Yap","Yap","Chong Leng, Eddie","SGP0017","OPEN","Jurong Central SC","SGP"]
[null,"Fatin Fazura","Fazura","Fatin","SGP0018","OPEN","Jurong Central SC","SGP"]
[null,"Muhd Adam Ihsan Boon","Boon","Muhd Adam Ihsan","SGP0019","OPEN","Jurong Central SC","SGP"]
[null,"Muhd Farhan Daud","Daud","Muhd Farhan","SGP0020","OPEN","Jurong Central SC","SGP"]
[null,"Hui Lan, Cindy Yap","Yap","Hui Lan, Cindy","SGP0021","OPEN","Jurong Central SC","SGP"]
[null,"Muhd Ashraf Daud","Daud","Muhd Ashraf","SGP0022","OPEN","Jurong Central SC","SGP"]
[null,"Azan Asbi","Asbi","Azan","SGP0023","OPEN","Jurong Central SC","SGP"]
[null,"Hasyafiq Razali","Razali","Hasyafiq","SGP0024","OPEN","Jurong Central SC","SGP"]
[null,"Sulaiman Marican Osman","Osman","Sulaiman Marican","SGP0025","OPEN","Jurong Central SC","SGP"]
[null,"Tiong Hian Ng","Ng","Tiong Hian","SGP0026","OPEN","Jurong Central SC","SGP"]
[null,"Xin Yu Chang","Chang","Xin Yu","SGP0027","OPEN","Jurong Central SC","SGP"]
[null,"Celine Koh","Koh","Celine","SGP0028","OPEN","Jurong Central SC","SGP"]
[null,{"$f":"TRIM(CONCATENATE(D4042,\" \",C4042))","v":"Peter Ooi"},"Ooi","Peter","SGP0029","VET","Jurong Central SC","SGP"]
[null,"Den Mulia Yusni","Yusni","Den Mulia","SGP0030","VET","SG Lions TFC","SGP"]
[null,"Ji Quan, Joel Long","Long","Ji Quan, Joel","SGP0031","OPEN","Eastern Elias SC","SGP"]
[null,"Mursyid Mazlan","Mazlan","Mursyid","SGP0032","OPEN","Eastern Elias SC","SGP"]
[null,"Oliver Ong","Ong","Oliver","SGP0033","VET","Eastern Elias SC","SGP"]
[null,"Muhd Faruk Firdaus","Firdaus","Muhd Faruk","SGP0034","OPEN","Eastern Elias SC","SGP"]
[null,"Abdul Haris","Haris","Abdul","SGP0035","OPEN","Eastern Elias SC","SGP"]
[null,"Muhd Farhan Fahmi","Fahmi","Muhd Farhan","SGP0036","OPEN","Eastern Elias SC","SGP"]
[null,"Norizal Mohd Noor","Mohd Noor","Norizal","SGP0037","OPEN","Eastern Elias SC","SGP"]
[null,"Mohd Asyraaf Husain","Husain","Mohd Asyraaf","SGP0038","OPEN","Eastern Elias SC","SGP"]
[null,"Muhd Firdaus Sukaimi","Sukaimi","Muhd Firdaus","SGP0039","OPEN","Eastern Elias SC","SGP"]
[null,"Mohd Faruq Mohd Noor","Mohd Noor","Mohd Faruq","SGP0040","OPEN","Eastern Elias SC","SGP"]
[null,"Erza Aripin","Aripin","Erza","SGP0041","OPEN","Templeuve United TSC","SGP"]
[null,"Erfandy Kusnadi","Kusnadi","Erfandy","SGP0042","OPEN","Woodlands SC","SGP"]
[null,"Mohd Ezan Ahmad","Ahmad","Mohd Ezan","SGP0043","OPEN","Jurong Central SC","SGP"]
[null,"Yu Xiang, Henry Peh","Peh","Yu Xiang, Henry","SGP0044","OPEN","Jurong Central SC","SGP"]
[null,"Yu Zhu, Apple Oh","Oh","Yu Zhu, Apple","SGP0045","OPEN","Jurong Central SC","SGP"]
[null,"Shiong Bock, John Ho","Ho","Shiong Bock, John","SGP0046","VET","SG Lions TFC","SGP"]
[null,"Yu Wei, Aldrich Lim","Lim","Yu Wei, Aldrich","SGP0047","OPEN","Woodlands SC","SGP"]
[null,"Kok Wee Tan","Tan","Kok Wee","SGP0048","VET","SG Lions TFC","SGP"]
[null,"Mohd Faizal Abdul Rahman","Abdul Rahman","Mohd Faizal","SGP0049","OPEN","SG Lions TFC","SGP"]
[null,"Christopher Soh","Soh","Christopher","SGP0050","VET","SG Lions TFC","SGP"]
[null,"Christophe Soh","Soh","Christophe","SGP0051","OPEN","SG Lions TFC","SGP"]
[null,"Ahmad Zulfadhlee Razali","Razali","Ahmad Zulfadhlee","SGP0052","OPEN","Eastern Elias SC","SGP"]
[null,"Muhd Raihan Razaki","Razaki","Muhd Raihan","SGP0053","OPEN","Eastern Elias SC","SGP"]
[null,"Rusydi Muhd Abdullah","Muhd Abdullah","Rusydi","SGP0054","OPEN","Eastern Elias SC","SGP"]
[null,"Anas Rahamat","Rahamat","Anas","SGP0055","OPEN","Jurong Central SC","SGP"]
[null,"Mohd Faizul Jaafar","Jaafar","Mohd Faizul","SGP0056","OPEN","Jurong Central SC","SGP"]
[null,"Zi Rong, Galvin Ho","Ho","Zi Rong, Galvin","SGP0057","OPEN","Jurong Central SC","SGP"]
[null,"Mohd Haikel Norazam","Norazam","Mohd Haikel","SGP0058","OPEN","Eastern Elias SC","SGP"]
[null,"Mohd Khairul Nizad Zainal","Zainal","Mohd Khairul Nizad","SGP0059","OPEN","Eastern Elias SC","SGP"]
[null,"Chandru G Chugani","Chugani","Chandru G","SGP0060","VET","SG Lions TFC","SGP"]
[null,"Vishal G Chugani","Chugani","Vishal G","SGP0061","OPEN","SG Lions TFC","SGP"]
[null,"Raju Naraindas","Naraindas","Raju","SGP0062","VET","SG Lions TFC","SGP"]
[null,"Michael Choong","Choong","Michael","SGP0063","VET","SC Dragons Hong Kong","SGP"]
[null,"Giovanni Choong","Choong","Giovanni","SGP0064","OPEN","SC Dragons Hong Kong","SGP"]
[null,"Mohd Rizal Ahmad","Ahmad","Mohd Rizal","SGP0065","VET","Kebun Bahru TFC","SGP"]
[null,"Mohd Rizal Mohd Asyraf","Mohd Asyraf","Mohd Rizal","SGP0066","OPEN","Kebun Bahru TFC","SGP"]
[null,"Paulus Tan","Tan","Paulus","SGP0067","VET","SG Lions TFC","SGP"]
[null,"Nur Hashim","Hashim","Nur","SGP0068","OPEN","SG Lions TFC","SGP"]
[null,"Azlan Bin Sidek","Bin Sidek","Azlan","SGP0069","VET","SG Lions TFC","SGP"]
[null,"Izham Bin Sidek","Bin Sidek","Izham","SGP0070","VET","SG Lions TFC","SGP"]
[null,"Fathul Rahman Bin Kamsani","Bin Kamsani","Fathul Rahman","SGP0071","VET","SG Lions TFC","SGP"]
[null,"Mohd Fauzi, Abdul Ghani","Ghani","Mohd Fauzi, Abdul","SGP0072","OPEN","Jurong Central SC","SGP"]
[null,"John Edwards William","William","John Edwards","SGP0073","VET","SG Lions TFC","SGP"]
[null,"Bernard Lim","Lim","Bernard","SGP0074","VET","Jurong Central SC","SGP"]
[null,"Arthur Yeo","Yeo","Arthur","SGP0075","VET","Jurong Central SC","SGP"]
[null,"Nic Tan","Tan","Nic","SGP0076","OPEN","SC Dragons Hong Kong","SGP"]
[null,"Sammy Phua","Phua","Sammy","SGP0077","OPEN","Jurong Central SC","SGP"]
[null,"Gary Ong","Ong","Gary","SGP0078","VET","SG Lions TFC","SGP"]
[null,"Syabil Marzuq Bin Sulaiman","Bin Sulaiman","Syabil Marzuq","SGP0079","OPEN","Jurong Central SC","SGP"]
[null,"Vikas K Chandiramani","Chandiramani","Vikas K","SGP0080","VET","Jurong Central SC","SGP"]
[null,"Ahmad Zahri","Zahri","Ahmad","SGP0082","VET","SG Lions TFC","SGP"]
[null,"Christopher George","George","Christopher","SGP0083","U20","SG Lions TFC","SGP"]
[null,"Luke Lim","Lim","Luke","SGP0084","OPEN","SG Lions TFC","SGP"]
[null,"Isaac Lim","Lim","Isaac","SGP0085","U20","SG Lions TFC","SGP"]
[null,"Jocelyn Goh","Goh","Jocelyn","SGP0086","OPEN","SG Lions TFC","SGP"]
[null,"Dickson Goh","Goh","Dickson","SGP0087","OPEN","SG Lions TFC","SGP"]
[null,"Darren Goh","Goh","Darren","SGP0088","U20","SG Lions TFC","SGP"]
[null,"Doulatram Sham","Sham","Doulatram","SGP0089","VET","SG Lions TFC","SGP"]
[null,"Bhavin Sham","Sham","Bhavin","SGP0090","OPEN","SG Lions TFC","SGP"]
[null,"Ruhan Sham","Sham","Ruhan","SGP0091","U20","SG Lions TFC","SGP"]
[null,"Arthur Lim","Lim","Arthur","SGP0092","VET","SG Lions TFC","SGP"]
[null,"Wai Mun Lek","Lek","Wai Mun","SGP0093","VET","SG Lions TFC","SGP"]
[null,{"$f":"TRIM(CONCATENATE(D4106,\" \",C4106))","v":"Eugene Lek"},"Lek","Eugene","SGP0094","OPEN","SG Lions TFC","SGP"]
[null,"Mohamad Zaffinoor, Kassim Bin Mohd","Bin Mohd","Mohamad Zaffinoor, Kassim","SGP0095","OPEN","Jurong Central SC","SGP"]
[null,"Irwan Iskandar","Iskandar","Irwan","SGP0096","OPEN","Jurong Central SC","SGP"]
[null,"Benny Ng","Ng","Benny","SGP0097","VET","Northern Falcons TFC","SGP"]
[null,"Kassim Irwanshah","Irwanshah","Kassim","SGP0098","OPEN","Jurong Central SC","SGP"]
[null,"Quan Feng Lim","Lim","Quan Feng","SGP0099","OPEN","Jurong Central SC","SGP"]
[null,"Mohd Bolkiah Musa","Musa","Mohd Bolkiah","SGP0100","OPEN","Jurong Central SC","SGP"]
[null,"Ismail Shafiq","Shafiq","Ismail","SGP0101","OPEN","Jurong Central SC","SGP"]
[null,"Ding Heng Lim","Lim","Ding Heng","SGP0102","U20","Jurong Central SC","SGP"]
[null,"Yew Seng Lim","Lim","Yew Seng","SGP0103","VET","Jurong Central SC","SGP"]
[null,"Sunil Nanwani","Nanwani","Sunil","SGP0104","VET","SG Lions TFC","SGP"]
[null,"Wei Xuan Lim","Lim","Wei Xuan","SGP0105","OPEN","Jurong Central SC","SGP"]
[null,"Ilhan Daanish","Daanish","Ilhan","SGP0106","OPEN","Jurong Central SC","SGP"]
[null,"Derek Brierley","Brierley","Derek","SGP0107","VET","SG Lions TFC","SGP"]
[null,"Ming Liang Li","Li","Ming Liang","SGP0108","U20","Jurong Central SC","SGP"]
[null,"Khairil Zam Bin Kamaruzaman","Bin Kamaruzaman","Khairil Zam","SGP0109","OPEN","Jurong Central SC","SGP"]
[null,"Simon E Seck Peng","Peng","Simon E Seck","SGP0110","OPEN","Jurong Central SC","SGP"]
[null,"Fazlur Rahman Bun Kamsani","Bun Kamsani","Fazlur Rahman","SGP0111","OPEN","SG Lions TFC","SGP"]
[null,"Kah Jun, Dylan Lim","Lim","Kah Jun, Dylan","SGP0112","OPEN","Jurong Central SC","SGP"]
[null,"Yi De Tan","Tan","Yi De","SGP0113","U20","SG Lions TFC","SGP"]
[null,"Tanishq Vikas Chandiramani","Chandiramani","Tanishq Vikas","SGP0114","U20","SG Lions TFC","SGP"]
[null,"Muhammad Salihin Bin Rosli","Bin Rosli","Muhammad Salihin","SGP0115","OPEN","Jurong Central SC","SGP"]
[null,"Muhd Firdaus Bahrin","Bahrin","Muhd Firdaus","SGP0116","OPEN","Jurong Central SC","SGP"]
[null,"Ashley Tan","Tan","Ashley","SGP0117","VET","SG Lions TFC","SGP"]
[null,"Yew Loy Tan","Tan","Yew Loy","SGP0118","VET","SG Lions TFC","SGP"]
[null,"Nigel Foo","Foo","Nigel","SGP0119","VET","Kebun Bahru TFC","SGP"]
[null,"Fanddy Bin Halil","Bin Halil","Fanddy","SGP0120","OPEN","Kebun Bahru TFC","SGP"]
[null,"Ismail Alfian","Alfian","Ismail","SGP0121","OPEN","Kebun Bahru TFC","SGP"]
[null,"Rizal Mohd Amirul","Mohd Amirul","Rizal","SGP0122","U20","Kebun Bahru TFC","SGP"]
[null,"Aiman Arjuna","Arjuna","Aiman","SGP0124","U20","Western Flickers TFC","SGP"]
[null,"Talib K Dohadwala","Dohadwala","Talib K","SGP0125","VET","SG Lions TFC","SGP"]
[null,"Nor Aniq Bin Norizal","Bin Norizal","Nor Aniq","SGP0126","U20","Jurong Central SC","SGP"]
[null,"Nor Afiq Bin Norizal","Bin Norizal","Nor Afiq","SGP0127","U16","Jurong Central SC","SGP"]
[null,"Kheng Kwang Ong","Ong","Kheng Kwang","SGP0128","OPEN","Kebun Bahru TFC","SGP"]
[null,"Lewis, Cheng Yi Ong","Ong","Lewis, Cheng Yi","SGP0129","U20","Kebun Bahru TFC","SGP"]
[null,"Aqhari, Bin Muhd Azhar Muhd Farish","Muhd Farish","Aqhari, Bin Muhd Azhar","SGP0130","U20","Kebun Bahru TFC","SGP"]
[null,"Enzo Fornaro","Fornaro","Enzo","SGP0131","OPEN","SG Lions TFC","SGP"]
[null,"Tong Leng Tan","Tan","Tong Leng","SGP0132","OPEN","Kebun Bahru TFC","SGP"]
[null,"Cheow Hwa Cheow Hwa","Cheow Hwa","Cheow Hwa","SGP0133","OPEN","Kebun Bahru TFC","SGP"]
[null,"Adam Cheong","Cheong","Adam","SGP0134","VET","Kebun Bahru TFC","SGP"]
[null,"Vikkram S Kumar","Kumar","Vikkram S","SGP0135","U20","Kebun Bahru TFC","SGP"]
[null,"Joshua Lew","Lew","Joshua","SGP0136","U16","SG Lions TFC","SGP"]
[null,"Mohammed Irwan Bin Sahir","Bin Sahir","Mohammed Irwan","SGP0137","OPEN","SG Lions TFC","SGP"]
[null,"Lucas Seow","Seow","Lucas","SGP0138","U20","SG Lions TFC","SGP"]
[null,"Claris Lim","Lim","Claris","SGP0139","OPEN","SC Dragons Hong Kong","SGP"]
[null,"K. S. Bavasuryan","Bavasuryan","K. S.","SGP0140","U20","Kebun Bahru TFC","SGP"]
[null,"Ying En, Vivian Lam","Lam","Ying En, Vivian","SGP0141","U20","Kebun Bahru TFC","SGP"]
[null,"Azhari Bin Isnin","Bin Isnin","Azhari","SGP0142","OPEN","Kebun Bahru TFC","SGP"]
[null,"Aidil Bin Idris","Bin Idris","Aidil","SGP0143","VET","Kebun Bahru TFC","SGP"]
[null,"Haziq Idraki Bin Aidil","Bin Aidil","Haziq Idraki","SGP0144","OPEN","Kebun Bahru TFC","SGP"]
[null,"Yong An, Gary Ng","Ng","Yong An, Gary","SGP0145","OPEN","Kebun Bahru TFC","SGP"]
[null,"Luca Maida","Maida","Luca","SGP0146","VET","Jurong Central SC","SGP"]
[null,"Melvindepal Singh","Singh","Melvindepal","SGP0147","VET","SG Lions TFC","SGP"]
[null,"Rei Singh","Singh","Rei","SGP0148","U20","SG LIons TFC","SGP"]
[null,"Sumit Babel","Babel","Sumit","SGP0149","OPEN","SG Lions TFC","SGP"]
[null,"Viaan Babel","Babel","Viaan","SGP0150","U12","SG Lions TFC","SGP"]
[null,"Edin Reyza Rudy Hesty","Rudy Hesty","Edin Reyza","SGP0151","U12","Jurong Central SC","SGP"]
[null,"Nagulan Arivazhagan","Arivazhagan","Nagulan","SGP0152","U12","SG Lions TFC","SGP"]
[null,"Aaryan Irfan Bin Jasmil","Bin Jasmil","Aaryan Irfan","SGP0153","U12","Jurong Central SC","SGP"]
[null,"Naomi Bilqis Binte Norizal","Binte Norizal","Naomi Bilqis","SGP0154","U16","Jurong Central SC","SGP"]
[null,"Nor Ariq Bin Norizal","Bin Norizal","Nor Ariq","SGP0155","U12","Jurong Central SC","SGP"]
[null,"Nikola Ljubisavljevic","Ljubisavljevic","Nikola","SER0002","VET",null,"SRB"]
[null,"Ivana Gütl","Gütl","Ivana","SER0003","OPEN",null,"SRB"]
[null,"Milan Knezevic","Knezevic","Milan","SER0004","OPEN","GCT DLF Gorizia","SRB"]
[null,{"$f":"TRIM(CONCATENATE(D4170,\" \",C4170))","v":"Peter Erb"},"Erb","Peter","SUI007","VET","subbuteo.ch","SUI"]
[null,"Maxwell S Gautschi","Gautschi","Maxwell S","SUI008","VET","subbuteo.ch","SUI"]
[null,"Mario Marchisio","Marchisio","Mario","SUI011","OPEN","SP Aargau-Süd","SUI"]
[null,"Paul Remund","Remund","Paul","SUI012","VET","subbuteo.ch","SUI"]
[null,"Martin Wiesmann","Wiesmann","Martin","SUI014","VET","subbuteo.ch","SUI"]
[null,"John Imbrogiano","Imbrogiano","John","SUI019","VET","Pinco Devils Table Soccer","SUI"]
[null,"Roman Bernhardsgrütter","Bernhardsgrütter","Roman","SUI023","VET","Linth Sliders SC","SUI"]
[null,"Armando Mustacato","Mustacato","Armando","SUI027","VET","Subbuteo Basel Utd","SUI"]
[null,"Gianluca Macri","Macri","Gianluca","SUI029","OPEN","SP Aargau-Süd","SUI"]
[null,"Stefano Cardinale","Cardinale","Stefano","SUI031","VET","Subbuteo.ch","SUI"]
[null,"Fabio Domenico","Domenico","Fabio","SUI051","VET","Free Agent","SUI"]
[null,"Robert Szendröi","Szendröi","Robert","SUI052","VET","Subbuteo.ch","SUI"]
[null,"Clinton Gähwiler","Gähwiler","Clinton","SUI053","VET","Cape Town City Subbuteo Club","SUI"]
[null,"Daniele Giulianelli","Giulianelli","Daniele","SUI54","OPEN","Subbuteo.ch","SUI"]
[null,"Skander Farza","Farza","Skander","TUN0001","VET","Celtic Combourg CFT","TUN"]
[null,"Mongi Rouis","Rouis","Mongi","TUN0002","VET","SC Lion's Eugies","TUN"]
[null,"Yasser Rouis","Rouis","Yasser","TUN0015","U20","FTC CAEN","TUN"]
[null,"Yanis Farza","Farza","Yanis","TUN0016","OPEN","Celtic Combourg CFT","TUN"]
[null,"Thomas PONTÉ","PONTÉ","Thomas","UKR0001","OPEN","Celtic Combourg CFT","UKR"]
[null,"Nicolas BÉTHENCOURT","BÉTHENCOURT","Nicolas","UKR0002","OPEN","Alliance française d'Odessa","UKR"]
[null,"Ivan POPOV","POPOV","Ivan","UKR0003","U20","Alliance française d'Odessa","UKR"]
[null,"Miroslava TSYBENKO","TSYBENKO","Miroslava","UKR0004","OPEN","Alliance française d'Odessa","UKR"]
[null,"Denys KOZAK","KOZAK","Denys","UKR0005","OPEN","Alliance française d'Odessa","UKR"]
[null,"Iryna PROKHORENKO","PROKHORENKO","Iryna","UKR0006","OPEN","Alliance française d'Odessa","UKR"]
[null,"Peter Alegi","Alegi","Peter","USA0370","VET","TSC Black Rose 98 Roma","USA"]
[null,"Max Ambrosio","Ambrosio","Max","USA0388","VET","Kansas City SC","USA"]
[null,"Kevin Antoszewski","Antoszewski","Kevin","USA0027","OPEN","Maryland SC","USA"]
[null,"Bryan Arnold","Arnold","Bryan","USA0347","VET","Northern Phoenix Table Football\r\n\r\nClub","USA"]
[null,"Kevin Bao","Bao","Kevin","USA0222","OPEN","Seattle SC","USA"]
[null,"Chris Barron","Barron","Chris","USA0107","VET","Lone Star SL","USA"]
[null,"Alex Batacchi","Batacchi","Alex","USA0024","VET","Tampa Bay TSC","USA"]
[null,"Isabel Batacchi","Batacchi","Isabel","USA0030","VET","Tampa Bay TSC","USA"]
[null,"Mike Byrd","Byrd","Mike","USA0261","VET","Washington Tuesday SL","USA"]
[null,"João Paulo Casaca","Casaca","João Paulo","USA0386","VET","Sporting America TSC","USA"]
[null,"Alexander Charles","Charles","Alexander","USA0410","OPEN","CC Condors TSC","USA"]
[null,"Sam Cohen","Cohen","Sam","USA0406","OPEN","Maryland SC","USA"]
[null,"Adolfo Colindres","Colindres","Adolfo","USA0009","OPEN","Maryland SC","USA"]
[null,"Massimo Conturso","Conturso","Massimo","USA0003","VET","SC Connecticut","USA"]
[null,"Daniel Cranston","Cranston","Daniel","USA0001","OPEN","Sporting America TSC","USA"]
[null,"Eddie Davidson","Davidson","Eddie","USA0128","VET","SC Connecticut","USA"]
[null,"Jeff Davidson","Davidson","Jeff","USA0180","OPEN","SC Connecticut","USA"]
[null,"Armando De Leon","De Leon","Armando","USA0078","OPEN","Boise USL 95","USA"]
[null,"Gregg Deinhart","Deinhart","Gregg","USA0014","VET","Washington Tuesday SL","USA"]
[null,"Collin Dohner","Dohner","Collin","USA0115","OPEN","Sporting America TSC","USA"]
[null,"Jeff Drake","Drake","Jeff","USA0181","VET","St Louis SL","USA"]
[null,"Tony Esteban","Esteban","Tony","USA0407","OPEN","Maryland SC","USA"]
[null,"Paul Eyes","Eyes","Paul","USA0002","VET","Sporting America TSC","USA"]
[null,"Christian Filippella","Filippella","Christian","USA0392","OPEN","TS Napoli Fighters","USA"]
[null,"Lenny Foster","Foster","Lenny","USA0230","OPEN","Sporting America TSC","USA"]
[null,"Alex Galarza","Galarza","Alex","USA0385","OPEN","Grand Rapids TSC","USA"]
[null,"Eric Garza","Garza","Eric","USA0136","OPEN","Boise USL 95","USA"]
[null,"Andrew Giffen","Giffen","Andrew","USA0026","VET","Washington Tuesday SL","USA"]
[null,"Ilias Gikas","Gikas","Ilias","USA0164","VET","DuPage County Table Soccer Club","USA"]
[null,"Erik Haefke","Haefke","Erik","USA0139","VET","DuPage County Table Soccer Club","USA"]
[null,"Chad Allen Idema","Idema","Chad Allen","USA0361","OPEN","Grand Rapids TSC","USA"]
[null,"Schoonmaker Jake","Jake","Schoonmaker","USA0409","OPEN","Sporting America TSC","USA"]
[null,"Wyss James","James","Wyss","USA0408","VET","Free Agent","USA"]
[null,"Jeremy Goninan","Goninan","Jeremy","USA0414","OPEN","Sporting America TSC","USA"]
[null,"Tony Kees","Kees","Tony","USA0394","VET","Free Agent","USA"]
[null,"Shaun Kidsley","Kidsley","Shaun","USA0405","OPEN","Yorkshire Phoenix","USA"]
[null,"Byung Kim","Kim","Byung","USA0006","OPEN","Maryland SC","USA"]
[null,"Brian King","King","Brian","USA0362","VET","North Alabama SA","USA"]
[null,"Javier King","King","Javier","USA0363","OPEN","North Alabama SA","USA"]
[null,"Todd Kleppin","Kleppin","Todd","USA0329","VET","Seattle SC","USA"]
[null,{"$f":"TRIM(CONCATENATE(D4234,\" \",C4234))","v":"Varant Kurkeyerian"},"Kurkeyerian","Varant","USA0349","VET","Sporting America TSC","USA"]
[null,"Brian Lambert","Lambert","Brian","USA0375","VET","Grand Rapids TSC","USA"]
[null,"Dewey Larochelle","Larochelle","Dewey","USA0022","VET","Washington Tuesday SL","USA"]
[null,"Joe Legatz","Legatz","Joe","USA0404","VET","Grand Rapids TSC","USA"]
[null,"Grant Lilly","Lilly","Grant","USA0040","OPEN","Maryland SC","USA"]
[null,"Daniel Louis","Louis","Daniel","USA0365","OPEN","Sporting America TSC","USA"]
[null,"Miko Mann","Mann","Miko","USA0258","OPEN","Augusta SC","USA"]
[null,"Sean Mann","Mann","Sean","USA0371","VET","Augusta SC","USA"]
[null,"Tom Martz","Martz","Tom","USA0399","OPEN","Maryland SC","USA"]
[null,"Brandon Mata","Mata","Brandon","USA0356","OPEN","Oklahoma Utd TSC","USA"]
[null,"Eddy Mclane","Mclane","Eddy","USA0129","OPEN","Boise USL 95","USA"]
[null,"Richard Mellott","Mellott","Richard","USA0293","VET","South Carolina SC","USA"]
[null,"Brian Mengele","Mengele","Brian","USA0099","OPEN","Maryland SC","USA"]
[null,"Jercich Mike","Mike","Jercich","USA0412","OPEN","CC Condors TSC","USA"]
[null,"Brandon Minton","Minton","Brandon","USA0397","OPEN","California TSC","USA"]
[null,"Frank Montabon","Montabon","Frank","USA0145","VET","Iowa SC","USA"]
[null,"Conan Mullen","Mullen","Conan","USA0351","VET","California TSC","USA"]
[null,"Benny Nuger","Nuger","Benny","USA0088","OPEN","Sporting America TSC","USA"]
[null,"Paul Pate","Pate","Paul","USA0376","VET","Grand Rapids TSC","USA"]
[null,"Nathan Pate","Pate","Nathan","USA0377","OPEN","Grand Rapids TSC","USA"]
[null,"Forest Pavel","Pavel","Forest","USA0360","OPEN","Augusta SC","USA"]
[null,"Joey Peters","Peters","Joey","USA0396","OPEN","Maryland SC","USA"]
[null,"Sam Rice","Rice","Sam","USA0382","OPEN","Maryland SC","USA"]
[null,"Zachria Rodgers","Rodgers","Zachria","USA0402","OPEN","FTC Issy-les-Moulineaux","USA"]
[null,"Isaac Rodgers","Rodgers","Isaac","USA0403","U20","FTC Issy-les-Moulineaux","USA"]
[null,"Stuart Russell","Russell","Stuart","USA0008","OPEN","Maryland SC","USA"]
[null,"Matt Sanders","Sanders","Matt","USA0346","OPEN","Chattanooga SL","USA"]
[null,"Claudio Santos","Santos","Claudio","USA0401","OPEN","Sporting America TSC","USA"]
[null,"Joe Schmidt","Schmidt","Joe","USA0192","OPEN","Northern California SC","USA"]
[null,"Nick Schmidt","Schmidt","Nick","USA0367",null,"Northern California SC","USA"]
[null,"Scott McCaulley","McCaulley","Scott","USA0413","VET","Sporting America TSC","USA"]
[null,"Patrick Sheridan","Sheridan","Patrick","USA0005","OPEN","Sporting America TSC","USA"]
[null,"Tom Shirley","Shirley","Tom","USA0331","VET","Chattanooga SL","USA"]
[null,"Jonathan Smith","Smith","Jonathan","USA0393","VET","Boise USL 95","USA"]
[null,"Kaegan Stottlemyer","Stottlemyer","Kaegan","USA0400","OPEN","Maryland SC","USA"]
[null,"Jeremy Stroop","Stroop","Jeremy","USA0187","VET","Lone Star SL","USA"]
[null,"Therron Thomas","Thomas","Therron","USA0325","VET","Indiana TSC","USA"]
[null,"CJ Thompson","Thompson","CJ","USA0112","OPEN","Maryland SC","USA"]
[null,"Michael Tillman","Tillman","Michael","USA0004","OPEN","Black Rose Roma","USA"]
[null,"Reed Tory","Tory","Reed","USA0411","VET","Colorado SC","USA"]
[null,"Nick Trainer","Trainer","Nick","USA0280","OPEN","Boise USL 95","USA"]
[null,"Cameron Tucker","Tucker","Cameron","USA0104","OPEN","CC Condors TSC","USA"]
[null,"Rob Tucker","Tucker","Rob","USA0298","VET","California TSC","USA"]
[null,"Tim Tumminaro","Tumminaro","Tim","USA0359","VET","DuPage County Table Soccer Club","USA"]
[null,"Peter Vahle","Vahle","Peter","USA0352","VET","Northern California SC","USA"]
[null,"Vincent Vidal","Vidal","Vincent","USA0353","OPEN","Northern California SC","USA"]
[null,"Zach Walker","Walker","Zach","USA0013","OPEN","Sporting America TSC","USA"]
[null,"Eric Walton","Walton","Eric","USA0138","OPEN","Grand Rapids TSC","USA"]
[null,"Corey Wiggs","Wiggs","Corey","USA0395","OPEN","Maryland SC","USA"]
[null,"Rick Wilcox","Wilcox","Rick","USA0012","VET","Washington Tuesday SL","USA"]
[null,"Roderick Ysaguirre","Ysaguirre","Roderick","USA0389","OPEN","Free Agent","USA"]
[null,"Andrew Zunino","Zunino","Andrew","USA0015","VET","Sporting America TSC","USA"]
[null,"Mason Lilly","Lilly","Mason","USA0415","U20","Maryland SC","USA"]
[null,"Shiv Patel","Patel","Shiv","USA0416","U20","Mt. Hebron TSC","USA"]
[null,"Tyler Lui","Lui","Tyler","USA0417","U16","Mt. Hebron TSC","USA"]
[null,"Roman Wasyluszco","Wasyluszco","Roman","USA0418","U20","Mt. Hebron TSC","USA"]
[null,"Jadin Botticelli","Botticelli","Jadin","USA0419","U20","Mt. Hebron TSC","USA"]
[null,"Jeremy Roberts-Kleban","Roberts-Kleban","Jeremy","USA0420","OPEN","Mt. Hebron TSC","USA"]
[null,"Chris Belcher","Belcher","Chris","USA0421","U20","Mt. Hebron TSC","USA"]
[null,"Michael Buccheri","Buccheri","Michael","USA0422","VET","Maryland SC","USA"]
[null,"Alec Paul","Paul","Alec","USA0423","OPEN","Maryland SC","USA"]
[null,"Eric Foster","Foster","Eric","USA0424","U16","Sporting America TSC","USA"]
[null,"Ryan Belcher","Belcher","Ryan","USA0425","U16","Maryland SC","USA"]
[null,"Joey Scott","Scott","Joey","USA0426","OPEN","Sporting America TSC","USA"]
[null,{"$f":"TRIM(CONCATENATE(D4298,\" \",C4298))","v":"Jonathan Goninan"},"Goninan","Jonathan","USA0427","OPEN","Outer Banks SC","USA"]
[null,"Kurtis Heithoff","Heithoff","Kurtis","USA0428","OPEN","Sporting America TSC","USA"]
[null,"Zachary Swope","Swope","Zachary","USA0429","OPEN","Maryland SC","USA"]
[null,"Jared Bond","Bond","Jared","USA0430","OPEN","Kansas City SC","USA"]
[null,"Michael Jakubowski","Jakubowski","Michael","USA0431","OPEN","Sporting America TSC","USA"]
[null,"Michael Kimack","Kimack","Michael","USA0432","OPEN","Sporting America TSC","USA"]
[null,"Joshua Goninan","Goninan","Joshua","USA0433","OPEN","Sporting America TSC","USA"]
[null,"Christian Benedi","Benedi","Christian","USA0434","OPEN","Sporting America TSC","USA"]
[null,"Jake Scarbath","Scarbath","Jake","USA0435","OPEN","Maryland SC","USA"]
[null,"David Leonard","Leonard","David","USA0436","OPEN","Free Agent","USA"]
[null,"Austin Harris","Harris","Austin","USA0437","OPEN","Sporting America TSC","USA"]
[null,"Justin O'Malley","O'Malley","Justin","USA0438","OPEN","Sporting America TSC","USA"]
[null,"José Jr Lopez","Lopez","José Jr","USA0439","OPEN","Sporting America TSC","USA"]
[null,"Luca Ricci","Ricci","Luca","USA0440","OPEN","Sporting America TSC","USA"]
[null,"Joao Bruno Casaca","Casaca","Joao Bruno","USA0441","OPEN","Sporting America TSC","USA"]
[null,"Matteo Saradini","Saradini","Matteo","USA0442","OPEN","Sporting America TSC","USA"]
[null,"Ethan Kimack","Kimack","Ethan","USA0443","U20","Maryland SC","USA"]
[null,"Brendan Ashley","Ashley","Brendan","WAL0052","OPEN","Yorkshire Phoenix","WAL"]
[null,"Darren Barnes","Barnes","Darren","WAL0028","VET","Cardiff Bluebirds TFC","WAL"]
[null,"Flyn Barnes","Barnes","Flyn","WAL0029","OPEN","Cardiff Bluebirds TFC","WAL"]
[null,"Chris Bedford","Bedford","Chris","WAL0048","OPEN","Yorkshire Phoenix","WAL"]
[null,"Martin Bellefontaine","Bellefontaine","Martin","WAL0038","VET","Elstow Lions TFC","WAL"]
[null,"Danny Bird","Bird","Danny","WAL0043","OPEN","London Road SC","WAL"]
[null,"Tim Bowen","Bowen","Tim","WAL0031","VET","Kent Invicta TFC","WAL"]
[null,"Nicolas Chappell","Chappell","Nicolas","WAL0042","VET","Cardiff Bluebirds TFC","WAL"]
[null,"Phil Dacey","Dacey","Phil","WAL0016","OPEN","Cardiff Bluebirds TFC","WAL"]
[null,"Kenny Evans","Evans","Kenny","WAL0051","OPEN","Cardiff Bluebirds TFC","WAL"]
[null,"William Holliday","Holliday","William","WAL0015","OPEN","Cardiff Bluebirds TFC","WAL"]
[null,"Mark Hopwood","Hopwood","Mark","WAL0040","VET","London Road SC","WAL"]
[null,"Kyle Jamieson","Jamieson","Kyle","WAL0054","OPEN","Langton Green","WAL"]
[null,"David Lauder","Lauder","David","WAL0001","OPEN","Cardiff Bluebirds TFC","WAL"]
[null,"John Lauder","Lauder","John","WAL0009","VET","SC Samb","WAL"]
[null,"Colin Lewis","Lewis","Colin","WAL0002","OPEN","Cardiff Bluebirds TFC","WAL"]
[null,"Melissa Lineton","Lineton","Melissa","WAL0050","OPEN","London Road SC","WAL"]
[null,"Adam Lundy","Lundy","Adam","WAL0032","OPEN","Pedmore TFC","WAL"]
[null,"Yanik Merrilees-Kelly","Merrilees-Kelly","Yanik","WAL0035","OPEN","London Road SC","WAL"]
[null,"David Merrilees-Kelly","Merrilees-Kelly","David","WAL0039","VET","London Road SC","WAL"]
[null,"Raoul Newton","Newton","Raoul","WAL0049","VET","London Road SC","WAL"]
[null,"Matt Parsons","Parsons","Matt","WAL0021","OPEN","Cardiff Bluebirds TFC","WAL"]
[null,"Matthew Rowley","Rowley","Matthew","WAL0005","VET","Cardiff Bluebirds TFC","WAL"]
[null,"David Samuel","Samuel","David","WAL0006","VET","SC Samb","WAL"]
[null,"Eryl Samuel","Samuel","Eryl","WAL0053","VET","Cardiff Bluebirds TFC","WAL"]
[null,"Richard stock","stock","Richard","WAL0014","VET","Free Agent","WAL"]
[null,"Tom Taylor","Taylor","Tom","WAL0003","VET","Cardiff Bluebirds TFC","WAL"]
[null,"Algy Taylor","Taylor","Algy","WAL0030","OPEN","Hot Club d'Ecosse","WAL"]
[null,"Clive Medcalf","Medcalf","Clive","WAL0035","VET","Free agent","WAL"]
[null,""]
[null,""]
[null,""]
[null,""]

{"sheet":"Clubs","index":5,"n_rows":375,"n_cols":5,"rows_kept":375,"cut":false,"hidden":true,"merged":[[0,1,0,3],[4,1,4,4]]}
[50,{"$f":"N_ClubsSheetTitle","v":"Club database"}]
[null,{"$f":"N_TotalNbClubs","v":"Total number of clubs"},{"$f":"COUNTA(OFFSET(FullClubList,0,0,,1))","v":369}]
[null,{"$f":"N_TotalNbClubsLines","v":"Total number of lines in the club list"},{"$f":"ROWS(FullClubList)","v":424}]
[]
[null,{"$f":"N_Club_list","v":"Club list"}]
[null,{"$f":"N_Club_Name","v":"Club name"},{"$f":"N_Abbreviation","v":"Abbreviation"},{"$f":"N_Nationality","v":"Nationality"},"Licence"]
[null,"---"]
[null,"Melbourne TFC","mel","AUS","AUSC001"]
[null,"Western Sydney Subbuteo","par","AUS","AUSC002"]
[null,"Northern Falcons TFC","nfc","AUS","AUSC003"]
[null,"Brisbane Subbuteo Club","bri","AUS","AUSC004"]
[null,"Subbuteo Adelaide TFC","ade","AUS","AUSC006"]
[null,"Subbuteo Perth","per","AUS","AUSC007"]
[null,"Hipfingerz Subbuteo Club","hip","AUS","AUSC008"]
[null,"Canberra & South Coast TFC","cab","AUS","AUSC009"]
[null,"Western Flickers TFC","wtf","AUS","AUSC013"]
[null,"Sydney TFC","syd","AUS","AUSC014"]
[null,"Northern Phoenix TFC","phn","AUS","AUSC016"]
[null,"Hobart Table Football Club","hob","AUS","AUSC017"]
[null,"Central Victoria TFC","cvi","AUS","AUSC018"]
[null,"The Sports Table Football Club of Western Australia","twa","AUS","AUSC019"]
[null,"The Tumbleweeds","tum","AUS","AUSC020"]
[null,"TFC Mattersburg","mat","AUT","AUTC001"]
[null,"TSC Royal 78 Kaisermühlen","roy","AUT","AUTC002"]
[null,"TSC Phoenix","wie","AUT","AUTC003"]
[null,"SC Charleroi","cha","BEL","BELC003"]
[null,"SC Lion's Eugies","eug","BEL","BELC004"]
[null,"SC Flanders","fla","BEL","BELC005"]
[null,"Avenir Subbuteo Hennuyer","hen","BEL","BELC006"]
[null,"JSC Rochefort","roc","BEL","BELC007"]
[null,"ST Stembert","ste","BEL","BELC009"]
[null,"SC Temploux","tem","BEL","BELC010"]
[null,"Templeuve United TSC","tpv","BEL","BELC011"]
[null,"Magic Team Tournai","tou","BEL","BELC020"]
[null,"Wamme SC","wam","BEL","BELC023"]
[null,"US Huy","hut","BEL","BELC025"]
[null,"ELM'Aye SC","aye","BEL","BELC026"]
[null,"Racing White Woluwé Subbuteo","rww","BEL","BELC027"]
[null,"Bangu Atlético Clube","bgu","BRA","BRAC001"]
[null,"Club de Regatas Vasco da Gama","vas","BRA","BRAC002"]
[null,"Cisplatina Futebol Clube","cfc","BRA","BRAC008"]
[null,"Sociedade Esportiva Palmeiras","sep","BRA","BRAC011"]
[null,"Torigno Nostro Club","tnc","BRA","BRAC014"]
[null,"Sport Club Corinthians Paulista","cor","BRA","BRAC015"]
[null,"Botafogo de Futebol e Regatas","bot","BRA","BRAC017"]
[null,"São Paulo Futebol Clube","spf","BRA","BRAC018"]
[null,"Colombo Sport Club","scf","BRA","BRAC021"]
[null,"Sport Club do Recife","rcf","BRA","BRAC024"]
[null,"Associação Atlética Banco do Brasil - Caruaru","aab","BRA","BRAC025"]
[null,"Calgary SC","clg","CAN","CANC001"]
[null,"West Coast TSC","wct","CAN","CANC002"]
[null,"Toronto SL","tor","CAN","CANC003"]
[null,"Hamilton SC","hsc","CAN","CANC004"]
[null,"CS Montréal","mtr","CAN","CANC005"]
[null,"Toronto SC","tsc","CAN","CANC006"]
[null,"Famagusta TFC","fam","CYP","CYPC001"]
[null,"Nicosia TFC","nic","CYP","CYPC002"]
[null,"Larnaca TFC","lac","CYP","CYPC003"]
[null,"Czech Subbuteo Team 2014","cst","CZE","CZEC001"]
[null,"Lega Subbuteo Liga Odense","ode","DEN","DENC001"]
[null,"Yorkshire Phoenix and Dewsbury Moor TFC","yor","ENG","ENGC002"]
[null,"Kent Invicta TFC","kiv","ENG","ENGC003"]
[null,"TSPA White Star","tsp","ENG","ENGC004"]
[null,"Worthing Fivestar","wor","ENG","ENGC007"]
[null,"London TFC","lon","ENG","ENGC009"]
[null,"Lincoln Flickers SC","lin","ENG","ENGC018"]
[null,"Walsall TFC","wll","ENG","ENGC022"]
[null,"Birmingham & District Table Soccer League","bir","ENG","ENGC031"]
[null,"Bristol SC","brs","ENG","ENGC037"]
[null,"London & Essex United","leu","ENG","ENGC039"]
[null,"Harrow Hawks TSC","haw","ENG","ENGC041"]
[null,"West Midlands SC","wmd","ENG","ENGC042"]
[null,"North Shields STF","nss","ENG","ENGC043"]
[null,"Merseyside SC","mey","ENG","ENGC044"]
[null,"South Staff","mmm","ENG","ENGC045"]
[null,"Liverpool TSC","lts","ENG","ENGC046"]
[null,"Wolverhampton Table Football Club","wsf","ENG","ENGC047"]
[null,"Surrey Saracens Subbuteo","sss","ENG","ENGC048"]
[null,"Stanway Rovers Flickers","srs","ENG","ENGC049"]
[null,"Haverhill Rovers tfc","hrt","ENG","ENGC050"]
[null,"The Magnet Broadstairs","mag","ENG","ENGC054"]
[null,"Milton Keynes","mke","ENG","ENGC057"]
[null,"RAS (Rochford & Southend) Casual Subbuteo Club","ras","ENG","ENGC065"]
[null,"Solent Table Soccer & Subbuteo club","sts","ENG","ENGC066"]
[null,"Langton Green Subbuteo Club","lgt","ENG","ENGC067"]
[null,"Old Sods Old Subbuteo Club","oss","ENG","ENGC068"]
[null,"Sport Vale United","svu","ENG","ENGC070"]
[null,"The Morecambe Bay Subbuteo Club","mbs","ENG","ENGC072"]
[null,"The Andover Subbuteo Club","and","ENG","ENGC073"]
[null,"Cov and Warks Subbuteo","caw","ENG","ENGC074"]
[null,"Leicester Foxes Subbuteo Club","lei","ENG","ENGC075"]
[null,"Kirkstall Crusaders Subbuteo Club","kir","ENG","ENGC076"]
[null,"London Subbuteo Club","ldn","ENG","ENGC078"]
[null,"CHASERS (Chadwell Heath & South Essex, Romford Subbuteo) Club","chs","ENG","ENGC080"]
[null,"Chesterfield TFC","che","ENG","ENGC081"]
[null,"Pedmore S&TFC","ped","ENG","ENGC082"]
[null,"The Wessex Subbuteo Club","wsx","ENG","ENGC083"]
[null,"Elstow Lions TFC","els","ENG","ENGC084"]
[null,"Kettering Flicking Marvellous","kfm","ENG","ENGC085"]
[null,"Woburn Casuals","wob","ENG","ENGC086"]
[null,"Doncaster Subbuteo Club","don","ENG","ENGC087"]
[null,"That Retro Place Subbuteo Club","ret","ENG","ENGC088"]
[null,"Barcelona FT","bac","ESP","ESPC003"]
[null,"Mallorca Águilas FM","mao","ESP","ESPC006"]
[null,"Moralzarzal Subbuteo CAD","mor","ESP","ESPC007"]
[null,"CAP Ciudad de Murcia FM","mur","ESP","ESPC009"]
[null,"Tiburones FM","tib","ESP","ESPC011"]
[null,"SC UD Santa María FM","sma","ESP","ESPC013"]
[null,"AC Los Remedios FM","rem","ESP","ESPC014"]
[null,"CFM Manolo Preciado","mpr","ESP","ESPC016"]
[null,"FM La Plazoleta","plz","ESP","ESPC017"]
[null,"AFT Turia 1981","tur","ESP","ESPC019"]
[null,"SC Barakaldo","brk","ESP","ESPC021"]
[null,"AS Iluro Futbol Taula","ilu","ESP","ESPC022"]
[null,"Subbuteo Dragons Azuqueca","dra","ESP","ESPC024"]
[null,"Subbuteo Club Almería","alm","ESP","ESPC025"]
[null,"CFT Montivilliers","mon","FRA","FRAC001"]
[null,"CFT Puylaurens","puy","FRA","FRAC002"]
[null,"Elan Subbutéo Club de Champs-sur-Marne","chp","FRA","FRAC003"]
[null,"Celtic Combourg CFT","com","FRA","FRAC008"]
[null,"FTC Issy-les-Moulineaux","iss","FRA","FRAC009"]
[null,"FTC Caen","cae","FRA","FRAC012"]
[null,"FTC Saint-Symphorien-sur-Coise","sym","FRA","FRAC018"]
[null,"Football de Table Aquitaine","aqu","FRA","FRAC019"]
[null,"ALC Wattrelos - Subbuteo Lille Metropole","lil","FRA","FRAC020"]
[null,"Section Subbutéo Squadra omessinca","sso","FRA","FRAC021"]
[null,"Subbuteo Le Cannet Côte d'Azur","cca","FRA","FRAC022"]
[null,"Guebwiller Alsace Subbuteo Club","als","FRA","FRAC023"]
[null,"RC Lorraine Subbuteo Club","lor","FRA","FRAC024"]
[null,"Paris Université Club","puc","FRA","FRAC025"]
[null,"Club Stéphanois Subbuteo - ALC","css","FRA","FRAC026"]
[null,"Boucle de la Seine Subbutéo","bos","FRA","FRAC027"]
[null,"Subbutéo Team Gard","gar","FRA","FRAC028"]
[null,"Spartak des dames","dam","FRA","FRAC029"]
[null,"Mulhouse Subbuteo by ASPTT","mul","FRA","FRAC030"]
[null,"Subbutéo Club Marseille","mrl","FRA","FRAC031"]
[null,"Poitou Football de Table Club","poi","FRA","FRAC032"]
[null,"Les Ducs Chalon-sur-Saône FTSC","duc","FRA","FRAC033"]
[null,"Football de table de Pegomas","pgm","FRA","FRAC034"]
[null,"Sparta Spreeathen 74/82","ssp","GER","GERC001"]
[null,"Gliding Stars Aachen","gli","GER","GERC002"]
[null,"Borussia Bergkamen","bvb","GER","GERC003"]
[null,"TSL Dortmund 61","dor","GER","GERC004"]
[null,"SF SW gemaba Hitdorf","hit","GER","GERC005"]
[null,"STV 97 Hohenlohe","hol","GER","GERC006"]
[null,"SCN Idstein","tau","GER","GERC007"]
[null,"Irreal Nieder-Mörlen","irr","GER","GERC008"]
[null,"TFC Rhein-Hessen Wiesbaden","rhe","GER","GERC009"]
[null,"BSC Schwalbach","sch","GER","GERC010"]
[null,"SC Bad Sobernheim","bad","GER","GERC011"]
[null,"TSG Rain 1970","rai","GER","GERC012"]
[null,"1.SFC Selb","sel","GER","GERC013"]
[null,"SC Kickers 69 Offenbach","off","GER","GERC014"]
[null,"SB Komet Frankfurt","kom","GER","GERC015"]
[null,"SC Weimar Wanderers","wei","GER","GERC016"]
[null,"Eurofighter Bochum","boc","GER","GERC017"]
[null,"SC Germania Schwerte 76","swt","GER","GERC018"]
[null,"Essener SC","ess","GER","GERC019"]
[null,"SUB Kaiserau","kai","GER","GERC020"]
[null,"Minimannia Aachen","aac","GER","GERC021"]
[null,"SC München 2014","mun","GER","GERC022"]
[null,"Subbuteo Club Höpfigheim","hop","GER","GERC023"]
[null,"1.TFC Aktivist Bergen 74","akt","GER","GERC024"]
[null,"TV Germania Kaiserau","tvg","GER","GERC025"]
[null,"SG '94 Hannover","han","GER","GERC026"]
[null,"SC Berlin","ber","GER","GERC027"]
[null,"USC Wuppertal","wup","GER","GERC028"]
[null,"Europa FC TSC","eur","GIB","GIBC001"]
[null,"Atlas FTC","atl","GRE","GREC001"]
[null,"TSC Falcons Athens","fal","GRE","GREC002"]
[null,"Piraeus Lions TSC","pil","GRE","GREC003"]
[null,"Roligans Ilioupolis TSC","rol","GRE","GREC004"]
[null,"Glyfada United TSC","gly","GRE","GREC005"]
[null,"Myrmidones TSC","myr","GRE","GREC006"]
[null,"Blade TSC","bld","GRE","GREC007"]
[null,"Achaioi TSC","ach","GRE","GREC008"]
[null,"Olympia CS","ocs","GRE","GREC009"]
[null,"Larissa TFC","ael","GRE","GREC011"]
[null,"Piraeus Tigers TSC","ptg","GRE","GREC012"]
[null,"Proteas Athens SC","pro","GRE","GREC013"]
[null,"Argonautes Volou TSC","arv","GRE","GREC016"]
[null,"Scarlet Battalion SC","sbs","GRE","GREC017"]
[null,"Athinaikos CS","ati","GRE","GREC018"]
[null,"Flaming Flickers SC","ffl","GRE","GREC019"]
[null,"Highlanders TSC","hig","GRE","GREC020"]
[null,"Thessaloniki SC TSC","the","GRE","GREC021"]
[null,"Adrastians","adr","GRE","GREC023"]
[null,"Panorama 1978 SC","paa","GRE","GREC024"]
[null,"Noctuas Athens TSC","noa","GRE","GREC025"]
[null,"Evia CAN","ipp","GRE","GREC026"]
[null,"Thessaloniki United TSC","thu","GRE","GREC027"]
[null,"Crimson Horses","crh","GRE","GREC028"]
[null,"Polis Athlitikos Syllogos Daskaliou Kerateas","pol","GRE","GREC029"]
[null,"Subbuteurs Athens TSC","sat","GRE","GREC030"]
[null,"Underdogs Cholargos TSC","und","GRE","GREC031"]
[null,"Charilaos Trikoupis TS","cht","GRE","GREC032"]
[null,"Irish Premier League","ipl","IRL","IRLC001"]
[null,"Tralee and Munster Subbuteo Club","tms","IRL","IRLC002"]
[null,"Bologna Tigers Subbuteo","bol","ITA","ITAC003"]
[null,"Subbito Gol Ferrara","fer","ITA","ITAC005"]
[null,"Foggia CT","fgg","ITA","ITAC006"]
[null,"CCT Eagles Napoli","nap","ITA","ITAC010"]
[null,"Subbuteo Casale","pie","ITA","ITAC012"]
[null,"ST Sassari","sas","ITA","ITAC015"]
[null,"Bulldogs Vicenza","vic","ITA","ITAC017"]
[null,"CS Virtus Rieti","vir","ITA","ITAC018"]
[null,"CS Firenze","fir","ITA","ITAC020"]
[null,"ASCT Sessana 1982","ses","ITA","ITAC023"]
[null,"SC Bagheria","bag","ITA","ITAC025"]
[null,"CCT Roma","rom","ITA","ITAC026"]
[null,"SC Fiamme Azzurre","fia","ITA","ITAC027"]
[null,"Papata Group Ponticino","pon","ITA","ITAC028"]
[null,"GCT DLF Gorizia","gor","ITA","ITAC029"]
[null,"SS Lazio TFC Roma","laz","ITA","ITAC030"]
[null,"TSC Stella Artois Milano","mil","ITA","ITAC033"]
[null,"TS Napoli Fighters","naf","ITA","ITAC034"]
[null,"CT Torino 2009","trn","ITA","ITAC037"]
[null,"F.lli Bari Reggio Emilia","reg","ITA","ITAC040"]
[null,"Master Sanremo","msa","ITA","ITAC041"]
[null,"SC Catania 1987","caa","ITA","ITAC042"]
[null,"Stabiae","sta","ITA","ITAC043"]
[null,"ASD Siracusa Calcio Tavolo","sir","ITA","ITAC045"]
[null,"Subbuteisti Modena 1982","moe","ITA","ITAC046"]
[null,"CT Versilia 2002","ves","ITA","ITAC050"]
[null,"ASD SC Salernitana","sal","ITA","ITAC051"]
[null,"SC Ascoli","asc","ITA","ITAC052"]
[null,"CS SC Serenissima Mestre","csm","ITA","ITAC053"]
[null,"SC Stradivari Cremona","str","ITA","ITAC054"]
[null,"SC Biella 91","bie","ITA","ITAC058"]
[null,"Messina Table Soccer","mei","ITA","ITAC060"]
[null,"AS Cosenza","brz","ITA","ITAC066"]
[null,"TSC Black Rose 98 Roma","bla","ITA","ITAC068"]
[null,"Tigers Lab","tig","ITA","ITAC073 sat"]
[null,"Trento Subbuteo","tre","ITA","ITAC074"]
[null,"Il Picchio Ascoli","pic","ITA","ITAC075 sat"]
[null,"Subbuteo Club Labronico","liv","ITA","ITAC077"]
[null,"US Catanzaro Subbuteo","caz","ITA","ITAC078"]
[null,"SC Bari","bar","ITA","ITAC080"]
[null,"SC Samb","sam","ITA","ITAC081"]
[null,"Asd Ct Aosta Warriors","aos","ITA","ITAC082"]
[null,"Subbuteo Vomero","vom","ITA","ITAC083"]
[null,"SC Sombrero","som","ITA","ITAC087"]
[null,"TFC Fiorenza","fio","ITA","ITAC093 sat"]
[null,"Subbuteo Taranto","sbt","ITA","ITAC094"]
[null,"ASM Nola 74","nol","ITA","ITAC095"]
[null,"Eagles Supporters Subbuteo","sup","ITA","ITAC098 sat"]
[null,"Fides Livorno","fid","ITA","ITAC100 sat"]
[null,"Spes Livorno","sps","ITA","ITAC102 sat"]
[null,"SC Palermo 2016","plo","ITA","ITAC106"]
[null,"SPQR MMIX Roma","fiu","ITA","ITAC108"]
[null,"Atletico Pisa","atp","ITA","ITAC110"]
[null,"SC Castelfiorentino","cfi","ITA","ITAC111"]
[null,"CT Paola","pao","ITA","ITAC112"]
[null,"Barcellona Calcio Tavolo","bmo","ITA","ITAC113"]
[null,"Subbuteo Verona 2016","veo","ITA","ITAC114"]
[null,"CS Solvay Vada","vad","ITA","ITAC115"]
[null,"US Valponte 1986","for","ITA","ITAC125"]
[null,"Maremma Subbuteo","mam","ITA","ITAC127"]
[null,"SC Pantere Lucca","plu","ITA","ITAC128"]
[null,"SC Ligures","mge","ITA","ITAC129"]
[null,"Team Campania","bnv","ITA","ITAC130"]
[null,"ASD Triestina Subbuteo","tst","ITA","ITAC133"]
[null,"Ves Gentes","veg","ITA","ITAC134"]
[null,"ASD VT CTS Fidenza","vtf","ITA","ITAC136"]
[null,"Virtus Vipers","vvp","ITA","ITAC140 sat"]
[null,"Rebels Genova","reb","ITA","ITAC145"]
[null,"ACS Perugia 1973","acp","ITA","ITAC146"]
[null,"Old Lions Macerata","mac","ITA","ITAC147"]
[null,"Subbuteo Grosseto 2018","gro","ITA","ITAC148"]
[null,"SC Cagliari","cag","ITA","ITAC149"]
[null,"Pisani all'Uscio","pau","ITA","ITAC151 sat"]
[null,"Eagles II","ena","ITA","ITAC153 sat"]
[null,"Grifo Sombrero","gfs","ITA","ITAC156 sat"]
[null,"Azzurra 99 Napoli","azn","ITA","ITAC158"]
[null,"ASD Volterrana 2016","vol","ITA","ITAC159"]
[null,"Bruzia D086","bru","ITA","ITAC166 sat"]
[null,"Subbuteo L'aquila Club","aql","ITA","ITAC168"]
[null,"Pinco Devils Table Soccer","pin","ITA","ITAC170"]
[null,"Viterbese Subbuteo","vit","ITA","ITAC171"]
[null,"Subbuteoland","stl","ITA","ITAC172"]
[null,"Subbuteo Club La Signoria","scs","ITA","ITAC173"]
[null,"Asd Alba Subbuteo Roma","alb","ITA","ITAC175"]
[null,"Palermo Subbuteo","pas","ITA","ITAC177"]
[null,"Subbuteo Club Silvio Piola","spo","ITA","ITAC178"]
[null,"BCLF CRUC Cosenza","cru","ITA","ITAC180 sat"]
[null,"Subbuteo Club Pavia","pav","ITA","ITAC181"]
[null,"Subbuteo Club Pescara","pes","ITA","ITAC182"]
[null,"Subbuteo Club Mestre","msc","ITA","ITAC185"]
[null,"Subbuteo Club Reggio Calabria","rec","ITA","ITAC186"]
[null,"Granducato Subbuteo","grs","ITA","ITAC187"]
[null,"Rhegion Calabria","rhg","ITA","ITAC188 sat"]
[null,"CCM Livorno","ccm","ITA","ITAC189 sat"]
[null,"SC Fonte Nuova","ftn","ITA","ITAC190"]
[null,"Subbuteo Club Basilicata","bsc","ITA","ITAC192"]
[null,"CTS Versilia Football Planet","vfp","ITA","ITAC195"]
[null,"ASD Union Kroton 1988","ukr","ITA","ITAC199"]
[null,"Yokohama OSC","yok","JPN","JPNC001"]
[null,"Osaka TFC","osa","JPN","JPNC003"]
[null,"OSC Yamato Wild Blue TFC","yam","JPN","JPNC005"]
[null,"Adachi TFC","ada","JPN","JPNC010"]
[null,"OS Academy 1947","aca","JPN","JPNC011"]
[null,"SC Reeds","ree","JPN","JPNC012"]
[null,"Tokyo Sunzeol TFC","tos","JPN","JPNC013"]
[null,"Subbuteo Club Nara","nar","JPN","JPNC014"]
[null,"TKy'sBeHEAVENESE TFC","tky","JPN","JPNC016"]
[null,"Tokyo Sparkling Shooters","tks","JPN","JPNC017"]
[null,"ASAKUSA ZOO TFC","ask","JPN","JPNC018"]
[null,"Tokyo Crossover Flickers","tkc","JPN","JPNC019"]
[null,"Table Football Club Kashiwa Sunrise","kas","JPN","JPNC020"]
[null,"MARADONA TOKYO","mtk","JPN","JPNC021"]
[null,"GRAVURE TOKYO","gtk","JPN","JPNC022"]
[null,"SAITAMA MARINES","sai","JPN","JPNC023"]
[null,"Fukushima Table Football Club","fuk","JPN","JPNC024"]
[null,"Azure Tokyo","azu","JPN","JPNC025"]
[null,"Valletta SC","vll","MLT","MLTC001"]
[null,"H'Attard SC","att","MLT","MLTC002"]
[null,"Bormla SC","bor","MLT","MLTC003"]
[null,"Valletta Lions TFC","val","MLT","MLTC004"]
[null,"MVV Rijnmond","rij","NED","NEDC003"]
[null,"GSC De Hyacinth","hya","NED","NEDC004"]
[null,"Dutch Legends","dlg","NED","NEDC005"]
[null,"Belfast Barbarians","bel","NIR","NIRC001"]
[null,"Derry City","der","NIR","NIRC003"]
[null,"Skien Wildcats","ski","NOR","NORC001"]
[null,"Kragerø BFK","kra","NOR","NORC002"]
[null,"Subbuteo Oslo","osl","NOR","NORC003"]
[null,"CF Sassoeiros","sao","FIS","PORC001"]
[null,"GRD 1º Maio Tires","tir","FIS","PORC008"]
[null,"CF os Belenenses","cfb","FIS","PORC012"]
[null,"GD Bairro Novo","dbn","FIS","PORC014"]
[null,"CS Zarco","zar","FIS","PORC015"]
[null,"Sporting Clube De Portugal","sac","FIS","PORC016"]
[null,"CD Olivais Moscavide","oli","FIS","PORC017"]
[null,"Subbuteo Clube de Benfica","scb","FIS","PORC018"]
[null,"Easterns Table Football Club","est","RSA","RSA001"]
[null,"Cape Town City Subbuteo Club","cap","RSA","RSA002"]
[null,"ETS Subbuteo Club","ets","RSA","RSA003"]
[null,"Lakhta Subbuteo TFC","lak","RUS","RUSC001"]
[null,"Hot Club d'Ecosse","hot","SCO","SCOC001"]
[null,"Glasgow TSA","gla","SCO","SCOC002"]
[null,"Dundee United TFC","dun","SCO","SCOC003"]
[null,"Golazzo SC","glz","SCO","SCOC005"]
[null,"Jurong Central SC","jur","SGP","SGPC001"]
[null,"Eastern Elias SC","eas","SGP","SGPC002"]
[null,"SG Lions TFC","sin","SGP","SGPC003"]
[null,"Woodlands SC","wsc","SGP","SGPC004"]
[null,"Kebun Bahru TFC","keb","SGP","SGPC005"]
[null,"SC Wallisellen","wal","SUI","SUIC003"]
[null,"Linth Sliders SC","lis","SUI","SUIC006"]
[null,"Subbuteo.ch","sub","SUI","SUIC007"]
[null,"Alliance française d'Odessa","afo","UKR","UKTC001"]
[null,"SC Connecticut","con","USA","USAC003"]
[null,"Tampa Bay TSC","tam","USA","USAC005"]
[null,"Boise USL 95","bus","USA","USAC006"]
[null,"Maryland SC","mar","USA","USAC007"]
[null,"Chattanooga SL","ctn","USA","USAC011"]
[null,"Lone Star SL","los","USA","USAC012"]
[null,"Washington Tuesday SL","was","USA","USAC013"]
[null,"DuPage County Table Soccer Club","dup","USA","USAC019"]
[null,"Grand Rapids TSC","mic","USA","USAC028"]
[null,"Colorado SC","cdo","USA","USAC048"]
[null,"Carolina TSC","cao","USA","USAC049"]
[null,"Northern California SC","noc","USA","USAC050"]
[null,"Florida Sharks TSC","flo","USA","USAC051"]
[null,"Kansas City SC","kan","USA","USAC054"]
[null,"Seattle SC","sea","USA","USAC058"]
[null,"California TSC","cal","USA","USAC060"]
[null,"CC Condors TSC","tcs","USA","USAC061"]
[null,"Mt. Hebron TSC","heb","USA","USAC062"]
[null,"Outer Banks SC","obx","USA","USAC063"]
[null,"Sporting America TSC","spa","USA","USAC066"]
[null,"Cardiff Bluebirds TFC","car","WAL","WALC001"]
[null,"Swansea","swa","WAL","WALC002"]
[null,"London Road Subbuteo TSC","lrs","WAL","WALC003"]
[null,"Knighton","kni","WAL","WALC004"]

{"sheet":"Nationalities","index":6,"n_rows":58,"n_cols":12,"rows_kept":58,"cut":false,"hidden":true,"merged":[[2,3,2,11],[0,1,0,11]]}
[null,{"$f":"N_NationalityCodes","v":"FISTF nationality codes"}]
[]
[null,null,null,{"$f":"N_Language","v":"Language"}]
[null,null,null,{"$f":"language!D2","v":"FR"},{"$f":"language!E2","v":"EN"},{"$f":"language!F2","v":"IT"},{"$f":"language!G2","v":"SP"},{"$f":"language!H2","v":"CAT"},{"$f":"language!I2","v":0},{"$f":"language!J2","v":0},{"$f":"language!K2","v":0},{"$f":"language!L2","v":0}]
[null,{"$f":"HLOOKUP(Language,D$4:L$59,ROW()-3,FALSE)","v":"Albania"},"ALB","Albanie","Albania","Afganistán","Afganistan","??","??","??","??","??"]
[null,"Argentina","ARG","Argentine","Argentina","Argentina","Argentina","??","??","??","??","??"]
[null,"Australia","AUS","Australie","Australia","Australia","Australia","??","??","??","??","??"]
[null,"Austria","AUT","Autriche","Austria","Austria","Austria","??","??","??","??","??"]
[null,"Belgium","BEL","Belgique","Belgium","Bélgica","Belgio","??","??","??","??","??"]
[null,"Bosnia","BOS","Bosnie","Bosnia","Bosnia","Bosnia","??","??","??","??","??"]
[null,"Brazil","BRA","Brésil","Brazil","Brasil","Brasile","??","??","??","??","??"]
[null,"Canada","CAN","Canada","Canada","Canadá","Canada","??","??","??","??","??"]
[null,"Chile","CHL","Chili","Chile","Chile","Cile","??","??","??","??","??"]
[null,"China","CHN","Chine","China","China","Cina","??","??","??","??","??"]
[null,"Colombia","COL","Colombie","Colombia","Colombia","Colombia","??","??","??","??","??"]
[null,"Croatia","CRO","Croatie","Croatia","Croacia","Croazia","??","??","??","??","??"]
[null,"Cyprus","CYP","Chypre","Cyprus","Chipre","Cipro","??","??","??","??","??"]
[null,"Czech Republic","CZE","République Tchèque","Czech Republic","República Checa","Repubblica ceca","??","??","??","??","??"]
[null,"Denmark","DEN","Danemark","Denmark","Dinamarca","Danimarca","??","??","??","??","??"]
[null,"Ecuador","ECU","Equateur","Ecuador","Ecuador","Ecuador","??","??","??","??","??"]
[null,"England","ENG","Angleterre","England","Inglaterra","Inghilterra","??","??","??","??","??"]
[null,"Finland","FIN","Finlande","Finland","Finlandia","Finlandia","??","??","??","??","??"]
[null,"France","FRA","France","France","Francia","Francia","??","??","??","??","??"]
[null,"Germany","GER","Allemagne","Germany","Alemania","Germania","??","??","??","??","??"]
[null,"Gibraltar","GIB","Gibraltar","Gibraltar","Gibraltar","Gibilterra","??","??","??","??","??"]
[null,"Greece","GRE","Grèce","Greece","Grecia","Grecia","??","??","??","??","??"]
[null,"Hong Kong","HKG","Hong Kong","Hong Kong","Hong Kong","Hong Kong","??","??","??","??","??"]
[null,"Hungary","HUN","Hongrie","Hungary","Hungría","Ungheria","??","??","??","??","??"]
[null,"India","IND","Inde","India","India (la)","India","??","??","??","??","??"]
[null,"Ireland","IRL","Irlande","Ireland","Irlanda","Irlanda","??","??","??","??","??"]
[null,"Israel","ISR","Israël","Israel","Israel","Israele","??","??","??","??","??"]
[null,"Italy","ITA","Italie","Italy","Italia","Italia","??","??","??","??","??"]
[null,"Jamaica","JAM","Jamaïque","Jamaica","Jamaica","Giamaica","??","??","??","??","??"]
[null,"Japan","JPN","Japon","Japan","Japón","Giappone","??","??","??","??","??"]
[null,"Malta","MLT","Malte","Malta","Malta","Malta","??","??","??","??","??"]
[null,"Mexico","MEX","Mexique","Mexico","México","Messico","??","??","??","??","??"]
[null,{"$f":"HLOOKUP(Language,D$4:L$59,ROW()-3,FALSE)","v":"Malaysia"},"MAS","Malaysie","Malaysia","Malasia","Malesia","??","??","??","??","??"]
[null,"Monaco","MON","Monaco","Monaco","Mónaco","Monaco","??","??","??","??","??"]
[null,"Netherlands","NED","Pays-Bas","Netherlands","Países Bajos","Paesi Bassi","??","??","??","??","??"]
[null,"Nigeria","NGA","Nigéria","Nigeria","Nigeria","Nigeria","??","??","??","??","??"]
[null,"Northern Ireland","NIR","Irlande du Nord","Northern Ireland","Irlanda del Norte","Irlanda del Nord","??","??","??","??","??"]
[null,"Norway","NOR","Norvège","Norway","Noruega","Norvegia","??","??","??","??","??"]
[null,"Poland","POL","Pologne","Poland","Polonia","Polonia","??","??","??","??","??"]
[null,"Portugal","POR","Portugal","Portugal","Portugal","Portogallo","??","??","??","??","??"]
[null,"Romania","ROM","Roumanie","Romania","Rumania","Romania","??","??","??","??","??"]
[null,"Russia","RUS","Russie","Russia","Rusia","Russia","??","??","??","??","??"]
[null,"Scotland","SCO","Ecosse","Scotland","Escocia","Scozia","??","??","??","??","??"]
[null,"Singapore","SIN","Singapour","Singapore","Singapur","Singapore","??","??","??","??","??"]
[null,"Switzerland","SUI","Suisse","Switzerland","Suiza","Svizzera","??","??","??","??","??"]
[null,"South Africa","SAF","Afrique du Sud","South Africa","Sudáfrica","Sudafrica","??","??","??","??","??"]
[null,"Spain","ESP","Espagne","Spain","España","Spagna","??","??","??","??","??"]
[null,"Slovakia","SUI","Slovaquie","Slovakia","Eslovaquia","Slovacchia","??","??","??","??","??"]
[null,"Tunisia","TUN","Tunisie","Tunisia","Túnez","Tunisia","??","??","??","??","??"]
[null,"Turkey","TUR","Turquie","Turkey","Turquía","Turchia","??","??","??","??","??"]
[null,"USA","USA","Etats-Unis","USA","Estados Unidos","Stati Uniti","??","??","??","??","??"]
[null,"Vietnam","VIE","Vietnam","Vietnam","Vietnam","Vietnam","??","??","??","??","??"]
[null,"Wales","WAL","Pays de Galles","Wales","Gales","Galles","??","??","??","??","??"]
[null,"Zimbabwe","ZIM","Zimbabwé","Zimbabwe","Zimbabue","Zimbabwe","??","??","??","??","??"]

{"sheet":"Ranking","index":7,"n_rows":2255,"n_cols":10,"rows_kept":2255,"cut":false,"hidden":true,"merged":[[4,2,4,9],[0,2,0,9]]}
[100,null,{"$f":"N_RankingSheetTitle","v":"Players Ranking"}]
[null,null,null,null,null,{"$f":"N_TotalNbRankedPlayers","v":"Total number of ranked players"},{"$f":"COUNTA(OFFSET(FullPlayersRankingList,0,2,,1))","v":1944}]
[null,null,null,null,null,{"$f":"N_TotalNbRankingLines","v":"Total number of ranking lines"},{"$f":"COUNTA(OFFSET(FullPlayersRankingList,0,0,,1))","v":2249}]
[]
[null,null,{"$f":"N_RankedPlayers_list","v":"Ranked players list"}]
[null,null,null,{"$f":"N_Category","v":"Category"},{"$f":"N_Rank","v":"Rk"},{"$f":"N_Family_Name","v":"Family Name"},{"$f":"N_1st_Name","v":"Given Name"},{"$f":"N_Club","v":"Club"},{"$f":"N_Nationality","v":"Nationality"},{"$f":"N_Points","v":"Points"}]
[null,{"$f":"CONCATENATE(D7,\" - \",C7)","v":"Open - FLORES Carlos"},{"$f":"CONCATENATE(UPPER(F7),\" \",G7)","v":"FLORES Carlos"},"Open",1,"FLORES","Carlos","F.Lli Bari Reggio Emilia","ESP",4087.5]
[null,"Open - GOLGER Bessim",{"$f":"CONCATENATE(UPPER(F8),\" \",G8)","v":"GOLGER Bessim"},"Open",2,"GOLGER","Bessim","Bormla SC","BEL",3007.5]
[null,"Open - DHEUR Christophe","DHEUR Christophe","Open",3,"DHEUR","Christophe","CCT Eagles Napoli","BEL",2716]
[null,"Open - HAAS Wolfgang","HAAS Wolfgang","Open",4,"HAAS","Wolfgang","Bormla SC","AUT",2605]
[null,"Open - DIMOPOULOS Dimitrios","DIMOPOULOS Dimitrios","Open",5,"DIMOPOULOS","Dimitrios","SC Fiamme Azzurre","GRE",2598.5]
[null,"Open - BARTOLO Samuel","BARTOLO Samuel","Open",6,"BARTOLO","Samuel","Valletta SC","MLT",2467.5]
[null,"Open - BARI Saverio","BARI Saverio","Open",7,"BARI","Saverio","F.Lli Bari Reggio Emilia","ITA",2065]
[null,"Open - DI MAGGIO Alberto","DI MAGGIO Alberto","Open",8,"DI MAGGIO","Alberto","Bologna Tigers Subbuteo","GRE",1506.5]
[null,"Open - GAUCI Mark","GAUCI Mark","Open",9,"GAUCI","Mark","Valletta SC","MLT",1421.5]
[null,"Open - CHARATSIS Nikolaos","CHARATSIS Nikolaos","Open",10,"CHARATSIS","Nikolaos","Scarlet Battalion SC","GRE",1383]
[null,"Open - CICCARELLI Matteo","CICCARELLI Matteo","Open",11,"CICCARELLI","Matteo","TS Napoli Fighters","ITA",1314]
[null,"Open - BALZAN Jurgen","BALZAN Jurgen","Open",12,"BALZAN","Jurgen","Valletta SC","MLT",1204.5]
[null,"Open - SCHEEN Sébastien","SCHEEN Sébastien","Open",13,"SCHEEN","Sébastien","ASD SC Salernitana","BEL",1168.5]
[null,"Open - NASTASI Massimiliano","NASTASI Massimiliano","Open",14,"NASTASI","Massimiliano","SC Fiamme Azzurre","ITA",1083]
[null,"Open - GONZÁLEZ David","GONZÁLEZ David","Open",15,"GONZÁLEZ","David","Bologna Tigers Subbuteo","ESP",1035.5]
[null,"Open - COLANGELO Luca","COLANGELO Luca","Open",16,"COLANGELO","Luca","SC Fiamme Azzurre","ITA",1026]
[null,"Open - SCHEEN Pascal","SCHEEN Pascal","Open",17,"SCHEEN","Pascal","ST Stembert","BEL",1015.5]
[null,"Open - EBEJER George","EBEJER George","Open",18,"EBEJER","George","Bormla SC","MLT",991]
[null,"Open - HAAS Christian","HAAS Christian","Open",19,"HAAS","Christian","Bormla SC","AUT",899]
[null,"Open - BATTISTA Luca","BATTISTA Luca","Open",20,"BATTISTA","Luca","TS Napoli Fighters","ITA",896]
[null,"Open - LOUREIRO Sérgio","LOUREIRO Sérgio","Open",21,"LOUREIRO","Sérgio","TS Napoli Fighters","POR",892]
[null,"Open - RAMOS Sérgio","RAMOS Sérgio","Open",22,"RAMOS","Sérgio","Bologna Tigers Subbuteo","POR",879.5]
[null,"Open - BELLEFONTAINE Elliott","BELLEFONTAINE Elliott","Open",23,"BELLEFONTAINE","Elliott","Messina Table Soccer","ENG",875]
[null,"Open - LEROY Justin","LEROY Justin","Open",24,"LEROY","Justin","FTC Caen","BEL",829]
[null,"Open - ROSLAN Rudy Hesty","ROSLAN Rudy Hesty","Open",25,"ROSLAN","Rudy Hesty","Jurong Central SC","SGP",821.5]
[null,"Open - DOTTO William","DOTTO William","Open",26,"DOTTO","William","F.Lli Bari Reggio Emilia","ITA",820.5]
[null,"Open - SORET Rémi","SORET Rémi","Open",27,"SORET","Rémi","Avenir Subbuteo Hennuyer","FRA",815.5]
[null,"Open - JOSÉ Ricardo","JOSÉ Ricardo","Open",28,"JOSÉ","Ricardo","FTC Issy-les-Moulineaux","POR",775.5]
[null,"Open - MODESTE Théo","MODESTE Théo","Open",29,"MODESTE","Théo","FTC Issy-les-Moulineaux","FRA",758.5]
[null,"Open - LEITNER Wolfgang","LEITNER Wolfgang","Open",30,"LEITNER","Wolfgang","TSC Royal 78 Kaisermühlen","AUT",739]
[null,"Open - AMATELLI Alessandro","AMATELLI Alessandro","Open",31,"AMATELLI","Alessandro","Subbuteo Casale","ITA",728]
[null,"Open - SESES Konstantinos","SESES Konstantinos","Open",32,"SESES","Konstantinos","Olympia CS","GRE",695]
[null,"Open - HAAS Alexander","HAAS Alexander","Open",33,"HAAS","Alexander","TSC Royal 78 Kaisermühlen","AUT",681]
[null,"Open - DESPRETZ Steffen","DESPRETZ Steffen","Open",34,"DESPRETZ","Steffen","Avenir Subbuteo Hennuyer","BEL",666]
[null,"Open - GIAUX Florian","GIAUX Florian","Open",35,"GIAUX","Florian","FTC Caen","BEL",657]
[null,"Open - VALVERDE Ángel","VALVERDE Ángel","Open",36,"VALVERDE","Ángel","CAP Ciudad de Murcia FM","ESP",654]
[null,"Open - CAMILLERI Josef","CAMILLERI Josef","Open",37,"CAMILLERI","Josef","Bormla SC","MLT",645]
[null,"Open - POMMIER Raphaël","POMMIER Raphaël","Open",38,"POMMIER","Raphaël","FTC Caen","FRA",607.5]
[null,"Open - THOMAS Peter","THOMAS Peter","Open",39,"THOMAS","Peter","Melbourne TFC","AUS",598.5]
[null,"Open - RAIROUX Maxime","RAIROUX Maxime","Open",40,"RAIROUX","Maxime","SC Lion's Eugies","BEL",579]
[null,"Open - LIM Bernard","LIM Bernard","Open",41,"LIM","Bernard","Jurong Central SC","SGP",569.5]
[null,"Open - LA TORRE Claudio","LA TORRE Claudio","Open",42,"LA TORRE","Claudio","Barcellona Calcio Tavolo","ITA",524]
[null,"Open - VAN DEN HOUTE William","VAN DEN HOUTE William","Open",43,"VAN DEN HOUTE","William","Bormla SC","BEL",523]
[null,"Open - MARAIN Geoffrey","MARAIN Geoffrey","Open",44,"MARAIN","Geoffrey","Avenir Subbuteo Hennuyer","BEL",512.5]
[null,"Open - NIKOLAIDIS Giannis","NIKOLAIDIS Giannis","Open",45,"NIKOLAIDIS","Giannis","Atlas FTC","GRE",508]
[null,"Open - ZAMBELLO Luca","ZAMBELLO Luca","Open",46,"ZAMBELLO","Luca","F.Lli Bari Reggio Emilia","ITA",504]
[null,"Open - PAPIDAKIS Sarantis","PAPIDAKIS Sarantis","Open",47,"PAPIDAKIS","Sarantis","Scarlet Battalion SC","GRE",498.5]
[null,"Open - DONVAL Axel","DONVAL Axel","Open",48,"DONVAL","Axel","FTC Issy-les-Moulineaux","FRA",487.5]
[null,"Open - VLASSOPOULOS Ioannis","VLASSOPOULOS Ioannis","Open",49,"VLASSOPOULOS","Ioannis","Proteas Athens SC","GRE",480.5]
[null,"Open - THOMAS Chris","THOMAS Chris","Open",50,"THOMAS","Chris","Elstow Lions TFC","ENG",478.5]
[null,"Open - TABONE Jean Carl","TABONE Jean Carl","Open",51,"TABONE","Jean Carl","Bormla SC","MLT",476]
[null,"Open - SILVERI Gabriele","SILVERI Gabriele","Open",52,"SILVERI","Gabriele","SC Ascoli","ITA",453.5]
[null,"Open - BOLOGNINO Massimo","BOLOGNINO Massimo","Open",53,"BOLOGNINO","Massimo","CCT Eagles Napoli","ITA",452.5]
[null,"Open - GASPARINI Ferdinando","GASPARINI Ferdinando","Open",54,"GASPARINI","Ferdinando","ASD SC Salernitana","ITA",444.5]
[null,"Open - KIDO Takafumi","KIDO Takafumi","Open",55,"KIDO","Takafumi","Yokohama OSC","JPN",432]
[null,"Open - CASÍN Antonio Jesús","CASÍN Antonio Jesús","Open",56,"CASÍN","Antonio Jesús","F.Lli Bari Reggio Emilia","ESP",428.5]
[null,"Open - SHORT Christian","SHORT Christian","Open",57,"SHORT","Christian","FTC Issy-les-Moulineaux","ENG",427]
[null,"Open - DI VINCENZO Andrea","DI VINCENZO Andrea","Open",58,"DI VINCENZO","Andrea","Bologna Tigers Subbuteo","ITA",425]
[null,"Open - PAPIDAKIS Philippos","PAPIDAKIS Philippos","Open",59,"PAPIDAKIS","Philippos","Scarlet Battalion SC","GRE",416.5]
[null,"Open - SCIACCA Carmelo","SCIACCA Carmelo","Open",60,"SCIACCA","Carmelo","Barcellona Calcio Tavolo","ITA",405]
[null,"Open - CUBETA Filippo","CUBETA Filippo","Open",61,"CUBETA","Filippo","Barcellona Calcio Tavolo","ITA",397]
[null,"Open - SANTOS Manuel","SANTOS Manuel","Open",62,"SANTOS","Manuel","Subbuteo Club Labronico","POR",389]
[null,"Open - ROUIS Mongi","ROUIS Mongi","Open",63,"ROUIS","Mongi","SC Lion's Eugies","TUN",385]
[null,"Open - PAVÃO Ricardo","PAVÃO Ricardo","Open",64,"PAVÃO","Ricardo","GRD 1º Maio Tires","POR",384]
[null,{"$f":"CONCATENATE(D71,\" - \",C71)","v":"Open - CHANTZARAS Spyridon"},{"$f":"CONCATENATE(UPPER(F71),\" \",G71)","v":"CHANTZARAS Spyridon"},"Open",65,"CHANTZARAS","Spyridon","TSC Falcons Athens","GRE",382.5]
[null,"Open - METTIVIERI Antonio","METTIVIERI Antonio","Open",65,"METTIVIERI","Antonio","CCT Eagles Napoli","ITA",382.5]
[null,"Open - PATRINOS Spyridon","PATRINOS Spyridon","Open",67,"PATRINOS","Spyridon","Olympia CS","GRE",377.5]
[null,"Open - SKINNER Aaron","SKINNER Aaron","Open",68,"SKINNER","Aaron","Langton Green Subbuteo Club","ENG",372.5]
[null,"Open - AVERLANT Matthias","AVERLANT Matthias","Open",69,"AVERLANT","Matthias","Avenir Subbuteo Hennuyer","BEL",371.5]
[null,"Open - DE LEEUW Pierre","DE LEEUW Pierre","Open",70,"DE LEEUW","Pierre","H'Attard SC","BEL",354.5]
[null,"Open - HUYNH Rémy","HUYNH Rémy","Open",71,"HUYNH","Rémy","F.Lli Bari Reggio Emilia","BEL",351]
[null,"Open - CAMILLERI Mauro","CAMILLERI Mauro","Open",72,"CAMILLERI","Mauro","Bormla SC","MLT",349]
[null,"Open - LÓPEZ Miguel Ángel","LÓPEZ Miguel Ángel","Open",73,"LÓPEZ","Miguel Ángel","Mallorca Águilas FM","ESP",343.5]
[null,"Open - LEPRI Maurizio","LEPRI Maurizio","Open",74,"LEPRI","Maurizio","ASD SC Salernitana","ITA",336.5]
[null,"Open - GIUDICE Leonardo","GIUDICE Leonardo","Open",75,"GIUDICE","Leonardo","Subbuteo Club Labronico","ITA",333]
[null,"Open - CORDELL Kevin","CORDELL Kevin","Open",76,"CORDELL","Kevin","Langton Green Subbuteo Club","ENG",309.5]
[null,"Open - TSANGOURIS Stylianos","TSANGOURIS Stylianos","Open",77,"TSANGOURIS","Stylianos","Atlas FTC","GRE",305.5]
[null,"Open - SABETTA Christopher","SABETTA Christopher","Open",77,"SABETTA","Christopher","ST Stembert","BEL",305.5]
[null,"Open - LEROY David","LEROY David","Open",79,"LEROY","David","CFT Puylaurens","FRA",303]
[null,"Open - VILLARIGUES Carolina","VILLARIGUES Carolina","Open",80,"VILLARIGUES","Carolina","Crimson Horses","POR",298.5]
[null,"Open - KOI Kenzo","KOI Kenzo","Open",80,"KOI","Kenzo","Yokohama OSC","JPN",298.5]
[null,"Open - LEE Alan","LEE Alan","Open",82,"LEE","Alan","Langton Green Subbuteo Club","ENG",297]
[null,"Open - CRANSTON Daniel","CRANSTON Daniel","Open",82,"CRANSTON","Daniel","Sporting America TSC","USA",297]
[null,"Open - BONNICI Jamie","BONNICI Jamie","Open",84,"BONNICI","Jamie","SS Lazio TFC","MLT",292]
[null,"Open - JANSSENS Noah","JANSSENS Noah","Open",85,"JANSSENS","Noah","ST Stembert","BEL",287]
[null,"Open - BEDFORD Chris","BEDFORD Chris","Open",86,"BEDFORD","Chris","Yorkshire Phoenix","WAL",285.5]
[null,"Open - RADZIMINSKI Luke","RADZIMINSKI Luke","Open",87,"RADZIMINSKI","Luke","Melbourne TFC","AUS",285]
[null,"Open - HEYVAERT Jérôme","HEYVAERT Jérôme","Open",88,"HEYVAERT","Jérôme","Master Sanremo","BEL",280]
[null,"Open - YUSNI Den Mulia","YUSNI Den Mulia","Open",89,"YUSNI","Den Mulia","SG Lions TFC","SGP",279.5]
[null,"Open - HAMMONDS Mick","HAMMONDS Mick","Open",90,"HAMMONDS","Mick","Wolverhampton Table Football Club","ENG",278.5]
[null,"Open - TAN Ashley","TAN Ashley","Open",91,"TAN","Ashley","SG Lions TFC","SGP",273]
[null,"Open - DI VITO Marco","DI VITO Marco","Open",92,"DI VITO","Marco","CCT Eagles Napoli","ITA",271]
[null,"Open - LOURS Rémy","LOURS Rémy","Open",93,"LOURS","Rémy","FTC Caen","FRA",268]
[null,"Open - BATTEN Benji","BATTEN Benji","Open",94,"BATTEN","Benji","Melbourne TFC","AUS",267]
[null,"Open - VARNEY Bob","VARNEY Bob","Open",95,"VARNEY","Bob","CAP Ciudad de Murcia FM","ENG",261.5]
[null,"Open - BOUCHEZ Corentin","BOUCHEZ Corentin","Open",96,"BOUCHEZ","Corentin","SC Lion's Eugies","BEL",260]
[null,"Open - MANFREDELLI Francesco","MANFREDELLI Francesco","Open",96,"MANFREDELLI","Francesco","CCT Eagles Napoli","ITA",260]
[null,"Open - CONTI Spencer","CONTI Spencer","Open",98,"CONTI","Spencer","Subbuteo Club Reggio Calabria","MLT",259.5]
[null,"Open - KENNEDY Eliot","KENNEDY Eliot","Open",99,"KENNEDY","Eliot","Northern Falcons TFC","AUS",255]
[null,"Open - FUJINO Suguru","FUJINO Suguru","Open",100,"FUJINO","Suguru","Tokyo Sunzeol TFC","JPN",250]
[null,"Open - MPOUGIOURIS Ioannis","MPOUGIOURIS Ioannis","Open",101,"MPOUGIOURIS","Ioannis","Subbuteurs Athens TSC","GRE",244.5]
[null,"Open - LAURENT Joffray","LAURENT Joffray","Open",102,"LAURENT","Joffray","Atlas FTC","BEL",242]
[null,"Open - CAVIGLIA Micael","CAVIGLIA Micael","Open",103,"CAVIGLIA","Micael","SS Lazio TFC Roma","ITA",235]
[null,"Open - BRUNELLI Marco","BRUNELLI Marco","Open",104,"BRUNELLI","Marco","CS Virtus Rieti","ITA",234]
[null,"Open - PREZIUSO Marco","PREZIUSO Marco","Open",104,"PREZIUSO","Marco","TS Napoli Fighters","ITA",234]
[null,"Open - ABREU Luís","ABREU Luís","Open",106,"ABREU","Luís","CF os Belenenses","POR",233.5]
[null,"Open - PAPPAS Nikolaos","PAPPAS Nikolaos","Open",107,"PAPPAS","Nikolaos","Olympia CS","GRE",231.5]
[null,"Open - CHANDIRAMANI Vikas K","CHANDIRAMANI Vikas K","Open",108,"CHANDIRAMANI","Vikas K","Jurong Central SC","SGP",230]
[null,"Open - KATO Taichi","KATO Taichi","Open",109,"KATO","Taichi","Yokohama OSC","JPN",228.5]
[null,"Open - PERE Lucas","PERE Lucas","Open",110,"PERE","Lucas","Avenir Subbuteo Hennuyer","BEL",226]
[null,"Open - TIMPANO Bruno","TIMPANO Bruno","Open",111,"TIMPANO","Bruno","H'Attard SC","BEL",225.5]
[null,"Open - CICCARELLI Andrea","CICCARELLI Andrea","Open",112,"CICCARELLI","Andrea","TS Napoli Fighters","ITA",224]
[null,"Open - KNUF Rudi","KNUF Rudi","Open",113,"KNUF","Rudi","Atlas FTC","GER",223.5]
[null,"Open - FIELD John","FIELD John","Open",114,"FIELD","John","Tiburones FM","GIB",219]
[null,"Open - LAMBERT Stéphane","LAMBERT Stéphane","Open",115,"LAMBERT","Stéphane","Yokohama OSC","BEL",214.5]
[null,"Open - ZAMMIT John","ZAMMIT John","Open",116,"ZAMMIT","John","ST Stembert","MLT",213.5]
[null,"Open - STAMOKOSTAS Konstantinos","STAMOKOSTAS Konstantinos","Open",117,"STAMOKOSTAS","Konstantinos","Atlas FTC","GRE",212]
[null,"Open - CHOONG Michael","CHOONG Michael","Open",118,"CHOONG","Michael","SC Dragons Hong Kong","SGP",211.5]
[null,"Open - RAHAMAT Anas","RAHAMAT Anas","Open",119,"RAHAMAT","Anas","Jurong Central SC","SGP",208.5]
[null,"Open - PATRUNO Gerardo","PATRUNO Gerardo","Open",120,"PATRUNO","Gerardo","Bologna Tigers Subbuteo","ITA",204]
[null,"Open - PELUSO Antonio","PELUSO Antonio","Open",121,"PELUSO","Antonio","TS Napoli Fighters","ITA",203.5]
[null,"Open - GREEN Robert","GREEN Robert","Open",122,"GREEN","Robert","Northern Falcons TFC","AUS",202.5]
[null,"Open - PLYTAS Evgenios","PLYTAS Evgenios","Open",122,"PLYTAS","Evgenios","SPQR MMIX Roma","GRE",202.5]
[null,"Open - MATEOS Luis","MATEOS Luis","Open",124,"MATEOS","Luis","Mallorca Águilas FM","ESP",199]
[null,"Open - PONTHIEUX Ludovic","PONTHIEUX Ludovic","Open",125,"PONTHIEUX","Ludovic","ST Stembert","BEL",197]
[null,"Open - SEGERS Jann","SEGERS Jann","Open",126,"SEGERS","Jann","Avenir Subbuteo Hennuyer","BEL",195]
[null,"Open - GREGOIRE Ralf","GREGOIRE Ralf","Open",127,"GREGOIRE","Ralf","US Huy","BEL",193.5]
[null,"Open - PETERSCHINIGG Rudi","PETERSCHINIGG Rudi","Open",128,"PETERSCHINIGG","Rudi","Langton Green Subbuteo Club","ENG",192]
[null,{"$f":"CONCATENATE(D135,\" - \",C135)","v":"Open - NOGUERA Juan"},{"$f":"CONCATENATE(UPPER(F135),\" \",G135)","v":"NOGUERA Juan"},"Open",128,"NOGUERA","Juan","SC Fiamme Azzurre","ESP",192]
[null,"Open - DI VITO Luigi","DI VITO Luigi","Open",130,"DI VITO","Luigi","CCT Eagles Napoli","ITA",190]
[null,"Open - NUGER Benny","NUGER Benny","Open",131,"NUGER","Benny","Sporting America TSC","USA",189]
[null,"Open - MONTEIRO Christophe","MONTEIRO Christophe","Open",132,"MONTEIRO","Christophe","FTC Issy-les-Moulineaux","FRA",188.5]
[null,"Open - SHAM Doulatram","SHAM Doulatram","Open",133,"SHAM","Doulatram","SG Lions TFC","SGP",184]
[null,"Open - DI PIETRANTONIO Pietro","DI PIETRANTONIO Pietro","Open",134,"DI PIETRANTONIO","Pietro","CCT Eagles Napoli","ITA",183.5]
[null,"Open - ROUIS Fayçal","ROUIS Fayçal","Open",135,"ROUIS","Fayçal","FTC Caen","FRA",182.5]
[null,"Open - QUATTRINI Francesco","QUATTRINI Francesco","Open",135,"QUATTRINI","Francesco","Bologna Tigers Subbuteo","ITA",182.5]
[null,"Open - MODESTE Axel","MODESTE Axel","Open",137,"MODESTE","Axel","FTC Issy-les-Moulineaux","FRA",181]
[null,"Open - ROS José","ROS José","Open",138,"ROS","José","CAP Ciudad de Murcia FM","ESP",180.5]
[null,"Open - WITTMANN Thomas","WITTMANN Thomas","Open",139,"WITTMANN","Thomas","TSC Royal 78 Kaisermühlen","AUT",173.5]
[null,"Open - CERULLO Guido","CERULLO Guido","Open",140,"CERULLO","Guido","GCT DLF Gorizia","ITA",172]
[null,"Open - PISANI Jason","PISANI Jason","Open",141,"PISANI","Jason","Bormla SC","MLT",171]
[null,"Open - PEREIRA Miguel","PEREIRA Miguel","Open",142,"PEREIRA","Miguel","Valletta Lions TFC","POR",170]
[null,"Open - AMBERNY Jean-Marie","AMBERNY Jean-Marie","Open",142,"AMBERNY","Jean-Marie","FTC Issy-les-Moulineaux","FRA",170]
[null,"Open - CONTI Derek","CONTI Derek","Open",144,"CONTI","Derek","Valletta SC","MLT",165]
[null,"Open - FERNÁNDEZ Antonio","FERNÁNDEZ Antonio","Open",144,"FERNÁNDEZ","Antonio","Tiburones FM","ESP",165]
[null,"Open - SOURLAS Leandros","SOURLAS Leandros","Open",144,"SOURLAS","Leandros","Scarlet Battalion SC","GRE",165]
[null,"Open - MARTINI Andrew","MARTINI Andrew","Open",147,"MARTINI","Andrew","Tokyo Sunzeol TFC","JPN",162.5]
[null,"Open - FERNANDES André","FERNANDES André","Open",148,"FERNANDES","André","CF os Belenenses","POR",160.5]
[null,"Open - BARTZIS Ektoras","BARTZIS Ektoras","Open",149,"BARTZIS","Ektoras","Noctuas Athens TSC","GRE",158.5]
[null,"Open - KARAVAS Giorgos","KARAVAS Giorgos","Open",150,"KARAVAS","Giorgos","Scarlet Battalion SC","GRE",158]
[null,"Open - DE SCHUYTENEER Kenny","DE SCHUYTENEER Kenny","Open",150,"DE SCHUYTENEER","Kenny","SC Lion's Eugies","BEL",158]
[null,"Open - MIFSUD Joseph","MIFSUD Joseph","Open",152,"MIFSUD","Joseph","SC Fiamme Azzurre","MLT",157]
[null,"Open - DIEUDONNE Delphine","DIEUDONNE Delphine","Open",152,"DIEUDONNE","Delphine","Avenir Subbuteo Hennuyer","BEL",157]
[null,"Open - FARRELL Mark","FARRELL Mark","Open",154,"FARRELL","Mark","Yorkshire Phoenix","IRL",155.5]
[null,"Open - BRILL Nick","BRILL Nick","Open",155,"BRILL","Nick","The Tumbleweeds","AUS",153.5]
[null,"Open - HERBAUT Audrey","HERBAUT Audrey","Open",156,"HERBAUT","Audrey","Elan Subbutéo Club de Champs-sur-Marne","FRA",152]
[null,"Open - MUSSINO Filippo","MUSSINO Filippo","Open",157,"MUSSINO","Filippo","CT Torino 2009","ITA",149.5]
[null,"Open - ARNOLD Kye","ARNOLD Kye","Open",158,"ARNOLD","Kye","Langton Green Subbuteo Club","ENG",149]
[null,"Open - GENITSAROPOULOS Georgios","GENITSAROPOULOS Georgios","Open",159,"GENITSAROPOULOS","Georgios","ASD SC Salernitana","GRE",148]
[null,"Open - ELESBAO Fred","ELESBAO Fred","Open",160,"ELESBAO","Fred","SG '94 Hannover","BRA",147.5]
[null,"Open - PSOMIADIS Nikolas (07)","PSOMIADIS Nikolas (07)","Open",161,"PSOMIADIS","Nikolas (07)","Subbuteurs Athens TSC","GRE",142]
[null,"Open - GÓMEZ Fernando","GÓMEZ Fernando","Open",161,"GÓMEZ","Fernando","AFT Turia 1981","ESP",142]
[null,"Open - FEDELE Fabrizio","FEDELE Fabrizio","Open",163,"FEDELE","Fabrizio","Bologna Tigers Subbuteo","ITA",141]
[null,"Open - WOUTERS David","WOUTERS David","Open",163,"WOUTERS","David","SC Flanders","BEL",141]
[null,"Open - AUSSET Quentin","AUSSET Quentin","Open",165,"AUSSET","Quentin","Elan Subbutéo Club de Champs-sur-Marne","FRA",140.5]
[null,"Open - DUPRET Michaël","DUPRET Michaël","Open",166,"DUPRET","Michaël","Magic Team Tournai","BEL",140]
[null,"Open - CURTIS Samuel","CURTIS Samuel","Open",167,"CURTIS","Samuel","Yorkshire Phoenix and Dewsbury Moor TFC","ENG",139.5]
[null,"Open - STROMMER Marios","STROMMER Marios","Open",167,"STROMMER","Marios","TSC Phoenix","AUT",139.5]
[null,"Open - KARATARAKIS Georgios","KARATARAKIS Georgios","Open",169,"KARATARAKIS","Georgios","Proteas Athens SC","GRE",136.5]
[null,"Open - VLASSOPOULOS Georgios","VLASSOPOULOS Georgios","Open",169,"VLASSOPOULOS","Georgios","Proteas Athens SC","GRE",136.5]
[null,"Open - MANDANICI Salvatore","MANDANICI Salvatore","Open",171,"MANDANICI","Salvatore","Barcellona Calcio Tavolo","ITA",135]
[null,"Open - NORONHA Nuno","NORONHA Nuno","Open",171,"NORONHA","Nuno","GRD 1º Maio Tires","POR",135]
[null,"Open - NATOLI Riccardo","NATOLI Riccardo","Open",173,"NATOLI","Riccardo","Messina Table Soccer","ITA",134.5]
[null,"Open - VLACHOPOULOS Antonis","VLACHOPOULOS Antonis","Open",174,"VLACHOPOULOS","Antonis","Athinaikos CS","GRE",132.5]
[null,"Open - ELLEFSEN Terje","ELLEFSEN Terje","Open",175,"ELLEFSEN","Terje","Langton Green Subbuteo Club","NOR",132]
[null,"Open - SCHEEN Daniel","SCHEEN Daniel","Open",175,"SCHEEN","Daniel","Tiburones FM","BEL",132]
[null,"Open - BERTELLI Daniele","BERTELLI Daniele","Open",175,"BERTELLI","Daniele","CS Virtus Rieti","ITA",132]
[null,"Open - BUONO Stefano","BUONO Stefano","Open",178,"BUONO","Stefano","SC Bagheria","ITA",129]
[null,"Open - MIDOUX Ludovic","MIDOUX Ludovic","Open",178,"MIDOUX","Ludovic","Avenir Subbuteo Hennuyer","FRA",129]
[null,"Open - GÓMEZ Alberto","GÓMEZ Alberto","Open",180,"GÓMEZ","Alberto","Subbuteo Dragons Azuqueca","ESP",128]
[null,"Open - TIMPANO Antonio","TIMPANO Antonio","Open",181,"TIMPANO","Antonio","Wamme SC","BEL",127.5]
[null,"Open - KARNTHALER Thomas","KARNTHALER Thomas","Open",182,"KARNTHALER","Thomas","TSC Phoenix","AUT",126]
[null,"Open - LENZ Robert","LENZ Robert","Open",183,"LENZ","Robert","TSC Royal 78 Kaisermühlen","AUT",125]
[null,"Open - NASZALYI Eric","NASZALYI Eric","Open",183,"NASZALYI","Eric","FTC Issy-les-Moulineaux","FRA",125]
[null,"Open - GIUFFRÈ Armando","GIUFFRÈ Armando","Open",185,"GIUFFRÈ","Armando","Messina Table Soccer","ITA",122]
[null,"Open - VISCONTI Salvatore","VISCONTI Salvatore","Open",186,"VISCONTI","Salvatore","Tiburones FM","BEL",121]
[null,"Open - BARUN Melvin","BARUN Melvin","Open",187,"BARUN","Melvin","A.S.D. Siracusa calcio tavolo","MLT",120.5]
[null,"Open - ARVANITAKIS Thomas","ARVANITAKIS Thomas","Open",188,"ARVANITAKIS","Thomas","Crimson Horses","GRE",118.5]
[null,"Open - FINCH Justin","FINCH Justin","Open",189,"FINCH","Justin","SC Flanders","ENG",117.5]
[null,"Open - TÜNGER Murat","TÜNGER Murat","Open",190,"TÜNGER","Murat","TSC Royal 78 Kaisermühlen","AUT",117]
[null,"Open - CAVAZZA Fabrizio","CAVAZZA Fabrizio","Open",190,"CAVAZZA","Fabrizio","GCT DLF Gorizia","ITA",117]
[null,"Open - TAN Nic","TAN Nic","Open",192,"TAN","Nic","SC Dragons Hong Kong","SGP",116.5]
[null,{"$f":"CONCATENATE(D199,\" - \",C199)","v":"Open - LAMPITT Matt"},{"$f":"CONCATENATE(UPPER(F199),\" \",G199)","v":"LAMPITT Matt"},"Open",193,"LAMPITT","Matt","Elstow Lions TFC","ENG",116]
[null,"Open - APATZIS Alexandros","APATZIS Alexandros","Open",194,"APATZIS","Alexandros","Subbuteurs Athens TSC","GRE",115]
[null,"Open - VIVRON Thierry","VIVRON Thierry","Open",195,"VIVRON","Thierry","FTC Issy-les-Moulineaux","FRA",114]
[null,"Open - CONNOLLY Adrian","CONNOLLY Adrian","Open",196,"CONNOLLY","Adrian","Melbourne TFC","AUS",113.5]
[null,"Open - POLIZOS Spyros","POLIZOS Spyros","Open",197,"POLIZOS","Spyros","TSC Falcons Athens","GRE",113]
[null,"Open - MATTHEWS Ruby","MATTHEWS Ruby","Open",198,"MATTHEWS","Ruby","Avenir Subbuteo Hennuyer","ENG",112.5]
[null,"Open - CHANOS Konstantinos","CHANOS Konstantinos","Open",199,"CHANOS","Konstantinos","Evia CAN","GRE",110]
[null,"Open - MATABUENA Miguel Ángel","MATABUENA Miguel Ángel","Open",200,"MATABUENA","Miguel Ángel","FM La Plazoleta","ESP",109.5]
[null,"Open - CAYUELA Francisco","CAYUELA Francisco","Open",200,"CAYUELA","Francisco","CAP Ciudad de Murcia FM","ESP",109.5]
[null,"Open - WADA Hideaki","WADA Hideaki","Open",202,"WADA","Hideaki","OSC Yamato Wild Blue TFC","JPN",109]
[null,"Open - CAMILLERI Mario","CAMILLERI Mario","Open",202,"CAMILLERI","Mario","TS Messina","MLT",109]
[null,"Open - BISIO Angelo","BISIO Angelo","Open",204,"BISIO","Angelo","TSC Stella Artois Milano","ITA",108]
[null,"Open - GRANADOS Juan Carlos","GRANADOS Juan Carlos","Open",204,"GRANADOS","Juan Carlos","CAP Ciudad de Murcia FM","ESP",108]
[null,"Open - HODDS Martin","HODDS Martin","Open",206,"HODDS","Martin","Yorkshire Phoenix and Dewsbury Moor TFC","ENG",106.5]
[null,"Open - ESPOSITO Matteo","ESPOSITO Matteo","Open",207,"ESPOSITO","Matteo","TS Napoli Fighters","ITA",106]
[null,"Open - MIGUEL Norberto","MIGUEL Norberto","Open",208,"MIGUEL","Norberto","Subbuteo Club Labronico","POR",105.5]
[null,"Open - VAN GLABEKE Quentin","VAN GLABEKE Quentin","Open",209,"VAN GLABEKE","Quentin","ST Stembert","BEL",104.5]
[null,"Open - BILLI Alessandro","BILLI Alessandro","Open",209,"BILLI","Alessandro","Subbito Gol Ferrara","ITA",104.5]
[null,"Open - GIANNARELLI Enrico","GIANNARELLI Enrico","Open",209,"GIANNARELLI","Enrico","SC Sombrero","ITA",104.5]
[null,"Open - FILIPPOU Giorgos","FILIPPOU Giorgos","Open",212,"FILIPPOU","Giorgos","Crimson Horses","GRE",104]
[null,"Open - CHRISTIE Gareth","CHRISTIE Gareth","Open",213,"CHRISTIE","Gareth","Derry City TFC","SCO",103.5]
[null,"Open - STOLZENBERG Michael","STOLZENBERG Michael","Open",214,"STOLZENBERG","Michael","DLF Gorizia","GER",102.5]
[null,"Open - PORTUGUÊS Ruben","PORTUGUÊS Ruben","Open",215,"PORTUGUÊS","Ruben","GRD 1º Maio Tires","POR",102]
[null,"Open - FILIPPELLA Christian","FILIPPELLA Christian","Open",215,"FILIPPELLA","Christian","TS Napoli Fighters","USA",102]
[null,"Open - DETTRE Steve","DETTRE Steve","Open",217,"DETTRE","Steve","Northern Falcons TFC","AUS",101.5]
[null,"Open - MATEOS Alberto","MATEOS Alberto","Open",217,"MATEOS","Alberto","SC Fiamme Azzurre","ESP",101.5]
[null,"Open - RAKOWSKI Hervé","RAKOWSKI Hervé","Open",219,"RAKOWSKI","Hervé","Guebwiller Alsace Subbuteo Club","FRA",101]
[null,"Open - NATOLI Alessandro","NATOLI Alessandro","Open",220,"NATOLI","Alessandro","Messina Table Soccer","ITA",99.5]
[null,"Open - GKIOCHALAS Miltiadis","GKIOCHALAS Miltiadis","Open",221,"GKIOCHALAS","Miltiadis","Palermo Subbuteo","GRE",99]
[null,"Open - KOLLIAS Georgios","KOLLIAS Georgios","Open",221,"KOLLIAS","Georgios","Noctuas Athens TSC","GRE",99]
[null,"Open - ANTÚNEZ Cristian","ANTÚNEZ Cristian","Open",221,"ANTÚNEZ","Cristian","Tiburones FM","ESP",99]
[null,"Open - ANGELOPOULOS Vasileios","ANGELOPOULOS Vasileios","Open",224,"ANGELOPOULOS","Vasileios","Olympia CS","GRE",98.5]
[null,"Open - ABECASSIS Lionel","ABECASSIS Lionel","Open",225,"ABECASSIS","Lionel","Free Agent","FRA",98]
[null,"Open - POTHITOS Dimitrios","POTHITOS Dimitrios","Open",226,"POTHITOS","Dimitrios","Crimson Horses","GRE",97.5]
[null,"Open - MORI Daigo","MORI Daigo","Open",227,"MORI","Daigo","SC Reeds","JPN",97]
[null,"Open - POCHESCI Daniele","POCHESCI Daniele","Open",228,"POCHESCI","Daniele","CS Virtus Rieti","ITA",96.5]
[null,"Open - CAPOSSELA Stefano","CAPOSSELA Stefano","Open",229,"CAPOSSELA","Stefano","CS Virtus Rieti","ITA",95.5]
[null,"Open - DUBREUIL Franck","DUBREUIL Franck","Open",230,"DUBREUIL","Franck","Elan Subbutéo Club de Champs-sur-Marne","FRA",95]
[null,"Open - BALZANO Romualdo","BALZANO Romualdo","Open",231,"BALZANO","Romualdo","SC Catania 1987","ITA",93]
[null,"Open - MOHD SABAH Noor Haikal","MOHD SABAH Noor Haikal","Open",232,"MOHD SABAH","Noor Haikal","Jurong Central SC","SGP",92.5]
[null,"Open - BENNETT Kaspar","BENNETT Kaspar","Open",232,"BENNETT","Kaspar","Atlas FTC","ENG",92.5]
[null,"Open - LICHERI Emanuele","LICHERI Emanuele","Open",234,"LICHERI","Emanuele","F.Lli Bari Reggio Emilia","ITA",91.5]
[null,"Open - COZZARIN Francis","COZZARIN Francis","Open",235,"COZZARIN","Francis","The Tumbleweeds","AUS",91]
[null,"Open - BEGGS Kenneth","BEGGS Kenneth","Open",236,"BEGGS","Kenneth","Irish Premier League","NIR",90.5]
[null,"Open - BADGER Richard","BADGER Richard","Open",237,"BADGER","Richard","Wolverhampton Table Football Club","ENG",90]
[null,"Open - CAMILLERI Isaac Sam","CAMILLERI Isaac Sam","Open",238,"CAMILLERI","Isaac Sam","Langton Green Subbuteo Club","MLT",88.5]
[null,"Open - BOLTZ Corentin","BOLTZ Corentin","Open",239,"BOLTZ","Corentin","Avenir Subbuteo Hennuyer","BEL",87.5]
[null,"Open - AFONSO Gil","AFONSO Gil","Open",240,"AFONSO","Gil","GRD 1º Maio Tires","POR",87]
[null,"Open - PACE Patrick","PACE Patrick","Open",240,"PACE","Patrick","SS Lazio TFC","MLT",87]
[null,"Open - PRATS Vicenç","PRATS Vicenç","Open",242,"PRATS","Vicenç","Tiburones FM","ESP",84]
[null,"Open - KWIATKOWSKI Marcel","KWIATKOWSKI Marcel","Open",243,"KWIATKOWSKI","Marcel","Sparta Spreeathen 74/82","GER",83]
[null,"Open - GOOR Laurent","GOOR Laurent","Open",244,"GOOR","Laurent","Avenir Subbuteo Hennuyer","BEL",82]
[null,"Open - SANTOS José","SANTOS José","Open",245,"SANTOS","José","CF os Belenenses","POR",81.5]
[null,"Open - COQUILLON Fanch","COQUILLON Fanch","Open",246,"COQUILLON","Fanch","Celtic Combourg CFT","FRA",79.5]
[null,"Open - SCOTT Justin","SCOTT Justin","Open",247,"SCOTT","Justin","Wolverhampton Table Football Club","ENG",79]
[null,"Open - BIZAS Georgios","BIZAS Georgios","Open",247,"BIZAS","Georgios","Proteas Athens SC","GRE",79]
[null,"Open - MASO Xavi","MASO Xavi","Open",249,"MASO","Xavi","AS Iluro FT","ESP",78]
[null,"Open - DARMONT Sébastien","DARMONT Sébastien","Open",249,"DARMONT","Sébastien","US Huy","BEL",78]
[null,"Open - MONDO Enrico","MONDO Enrico","Open",249,"MONDO","Enrico","Foggia CT","ITA",78]
[null,"Open - SANCHEZ Jose Luis","SANCHEZ Jose Luis","Open",252,"SANCHEZ","Jose Luis","Europa FC TSC","GIB",76.5]
[null,"Open - MURABITO Pierpaolo","MURABITO Pierpaolo","Open",253,"MURABITO","Pierpaolo","ASD Siracusa Calcio Tavolo","ITA",75.5]
[null,"Open - HO Shiong Bock, John","HO Shiong Bock, John","Open",253,"HO","Shiong Bock, John","SG Lions TFC","SGP",75.5]
[null,"Open - MONTAÑO Antonio","MONTAÑO Antonio","Open",253,"MONTAÑO","Antonio","Tiburones FM","ESP",75.5]
[null,"Open - LA TORRE Antonio","LA TORRE Antonio","Open",256,"LA TORRE","Antonio","Barcellona Calcio Tavolo","ITA",75]
[null,{"$f":"CONCATENATE(D263,\" - \",C263)","v":"Open - BELLOTTO Edoardo"},{"$f":"CONCATENATE(UPPER(F263),\" \",G263)","v":"BELLOTTO Edoardo"},"Open",257,"BELLOTTO","Edoardo","CS SC Serenissima Mestre","ITA",74]
[null,"Open - GHIGLIOTTI Marco","GHIGLIOTTI Marco","Open",258,"GHIGLIOTTI","Marco","Langton Green Subbuteo Club","ENG",73]
[null,"Open - OKANO Kazuki","OKANO Kazuki","Open",259,"OKANO","Kazuki","Yokohama OSC","JPN",72.5]
[null,"Open - IFRIGERIO Rosario","IFRIGERIO Rosario","Open",260,"IFRIGERIO","Rosario","Messina Table Soccer","ITA",72]
[null,"Open - TANAKA Masato","TANAKA Masato","Open",260,"TANAKA","Masato","Tokyo Sparkling Shooters","JPN",72]
[null,"Open - VAN OS Casey","VAN OS Casey","Open",260,"VAN OS","Casey","MVV Rijnmond","NED",72]
[null,"Open - DOGALI Claudio","DOGALI Claudio","Open",260,"DOGALI","Claudio","Master Sanremo","ITA",72]
[null,"Open - NISHI Manabu","NISHI Manabu","Open",264,"NISHI","Manabu","SC Reeds","JPN",71.5]
[null,"Open - NASZALYI Paul","NASZALYI Paul","Open",265,"NASZALYI","Paul","FTC Issy-les-Moulineaux","FRA",71]
[null,"Open - ELMER Adrian","ELMER Adrian","Open",265,"ELMER","Adrian","The Tumbleweeds","AUS",71]
[null,"Open - LAGNEAU Benoit","LAGNEAU Benoit","Open",267,"LAGNEAU","Benoit","Avenir Subbuteo Hennuyer","BEL",70.5]
[null,"Open - TILGNER Marcus","TILGNER Marcus","Open",268,"TILGNER","Marcus","Sparta Spreeathen 74/82","GER",69.5]
[null,"Open - CREMONA Massimo","CREMONA Massimo","Open",268,"CREMONA","Massimo","H'Attard SC","MLT",69.5]
[null,"Open - ANDREAS Paul","ANDREAS Paul","Open",270,"ANDREAS","Paul","Langton Green Subbuteo Club","CYP",69]
[null,"Open - FITZPATRICK Andy","FITZPATRICK Andy","Open",270,"FITZPATRICK","Andy","Irish Premier League","IRL",69]
[null,"Open - OUTTERS Xavier","OUTTERS Xavier","Open",272,"OUTTERS","Xavier","SC Lion's Eugies","BEL",68.5]
[null,"Open - KORDATOS Konstantinos","KORDATOS Konstantinos","Open",272,"KORDATOS","Konstantinos","Olympia CS","GRE",68.5]
[null,"Open - BENITA Rubén","BENITA Rubén","Open",274,"BENITA","Rubén","AFT Turia 1981","ESP",68]
[null,"Open - YOSHIDA Hideki","YOSHIDA Hideki","Open",274,"YOSHIDA","Hideki","Yokohama OSC","JPN",68]
[null,"Open - HINKELMANN Erich","HINKELMANN Erich","Open",274,"HINKELMANN","Erich","TSC Phoenix","AUT",68]
[null,"Open - LÓPEZ Luis","LÓPEZ Luis","Open",274,"LÓPEZ","Luis","Tiburones FM","ESP",68]
[null,"Open - LAFONTAINE Romain","LAFONTAINE Romain","Open",278,"LAFONTAINE","Romain","FTC Caen","FRA",67.5]
[null,"Open - DEAN Patrick","DEAN Patrick","Open",278,"DEAN","Patrick","Europa FC TSC","GIB",67.5]
[null,"Open - VANTASSEL David","VANTASSEL David","Open",278,"VANTASSEL","David","Avenir Subbuteo Hennuyer","BEL",67.5]
[null,"Open - NASKOS Nikolaos","NASKOS Nikolaos","Open",281,"NASKOS","Nikolaos","Athinaikos CS","GRE",67]
[null,"Open - LAVRAKIS Panagiotis","LAVRAKIS Panagiotis","Open",281,"LAVRAKIS","Panagiotis","Noctuas Athens TSC","GRE",67]
[null,"Open - MATTHEWS Cayne","MATTHEWS Cayne","Open",281,"MATTHEWS","Cayne","Yorkshire Phoenix and Dewsbury Moor TFC","ENG",67]
[null,"Open - FERRANTE Mattia","FERRANTE Mattia","Open",281,"FERRANTE","Mattia","Sc Fiamme Azzurre","ITA",67]
[null,"Open - EDESON Richard","EDESON Richard","Open",285,"EDESON","Richard","Northern Line Flickers TFC","NZL",66.5]
[null,"Open - EDER Heinz","EDER Heinz","Open",285,"EDER","Heinz","TSC Royal 78 Kaisermühlen","AUT",66.5]
[null,"Open - BORG BONACI Joseph","BORG BONACI Joseph","Open",287,"BORG BONACI","Joseph","Valletta SC","MLT",66]
[null,"Open - BALESTRIERI Massimo","BALESTRIERI Massimo","Open",288,"BALESTRIERI","Massimo","CTS Versilia Football Planet","ITA",65]
[null,"Open - DENNE Noah","DENNE Noah","Open",289,"DENNE","Noah","SC Lion's Eugies","BEL",64.5]
[null,"Open - CHRISTOPHER Jason","CHRISTOPHER Jason","Open",289,"CHRISTOPHER","Jason","Wolverhampton Table Football Club","ENG",64.5]
[null,"Open - LARANJEIRA Paulo","LARANJEIRA Paulo","Open",291,"LARANJEIRA","Paulo","Sporting Clube De Portugal","POR",64]
[null,"Open - CRASSET Mathieu","CRASSET Mathieu","Open",291,"CRASSET","Mathieu","Master Sanremo","BEL",64]
[null,"Open - BONNICI Alfred","BONNICI Alfred","Open",291,"BONNICI","Alfred","Valletta Lions TFC","MLT",64]
[null,"Open - URBANIAK Nathan","URBANIAK Nathan","Open",294,"URBANIAK","Nathan","Melbourne TFC","AUS",63.5]
[null,"Open - KOUTIS Georgios","KOUTIS Georgios","Open",295,"KOUTIS","Georgios","TSC Falcons Athens","GRE",63]
[null,"Open - GIAUX Louison","GIAUX Louison","Open",295,"GIAUX","Louison","FTC Caen","BEL",63]
[null,"Open - PONTÉ Thomas","PONTÉ Thomas","Open",297,"PONTÉ","Thomas","Celtic Combourg CFT","UKR",62.5]
[null,"Open - SALAMOURIS Ioannis","SALAMOURIS Ioannis","Open",298,"SALAMOURIS","Ioannis","TSC Falcons Athens","GRE",62]
[null,"Open - PITSARIS Christos","PITSARIS Christos","Open",298,"PITSARIS","Christos","Crimson Horses","GRE",62]
[null,"Open - GASPARETTO Dino","GASPARETTO Dino","Open",300,"GASPARETTO","Dino","Subbito Gol Ferrara","ITA",61.5]
[null,"Open - BEVILACQUA Marco","BEVILACQUA Marco","Open",300,"BEVILACQUA","Marco","Derry City TFC","SCO",61.5]
[null,"Open - KADINOPOULOS Grigorios","KADINOPOULOS Grigorios","Open",300,"KADINOPOULOS","Grigorios","Noctuas Athens TSC","GRE",61.5]
[null,"Open - CUENCA Jean Michel","CUENCA Jean Michel","Open",303,"CUENCA","Jean Michel","Tiburones FM","ESP",61]
[null,"Open - TOKITA Takafumi","TOKITA Takafumi","Open",303,"TOKITA","Takafumi","SC Reeds","JPN",61]
[null,"Open - BEST Hugh","BEST Hugh","Open",303,"BEST","Hugh","The Sports Table Football Club of Western Australia","AUS",61]
[null,"Open - ZAMBELLO Paolo","ZAMBELLO Paolo","Open",306,"ZAMBELLO","Paolo","Subbuteo Casale","ITA",60]
[null,"Open - COLPANI Claudio","COLPANI Claudio","Open",306,"COLPANI","Claudio","ACS Perugia 1973","ITA",60]
[null,"Open - ASHLEY Brendan","ASHLEY Brendan","Open",308,"ASHLEY","Brendan","Yorkshire Phoenix","WAL",59.5]
[null,"Open - KOROLOGOS Sotiris","KOROLOGOS Sotiris","Open",309,"KOROLOGOS","Sotiris","Noctuas Athens TSC","GRE",59]
[null,"Open - SOMOZA José David","SOMOZA José David","Open",309,"SOMOZA","José David","CAP Ciudad de Murcia FM","ESP",59]
[null,"Open - FRICANO Christian","FRICANO Christian","Open",309,"FRICANO","Christian","Subbuteo Casale","ITA",59]
[null,"Open - GROSDENT Jean","GROSDENT Jean","Open",312,"GROSDENT","Jean","Wamme SC","BEL",58.5]
[null,"Open - GORGETTE Emmanuel","GORGETTE Emmanuel","Open",312,"GORGETTE","Emmanuel","FTC Issy-les-Moulineaux","FRA",58.5]
[null,"Open - CHANOS Michail I","CHANOS Michail I","Open",312,"CHANOS","Michail I","Evia CAN","GRE",58.5]
[null,"Open - ILIEV Álex","ILIEV Álex","Open",315,"ILIEV","Álex","AFT Turia 1981","ESP",58]
[null,"Open - DUNNE Shaun","DUNNE Shaun","Open",315,"DUNNE","Shaun","Wolverhampton TFC","IRL",58]
[null,"Open - VAN DIJK Rinaldo","VAN DIJK Rinaldo","Open",315,"VAN DIJK","Rinaldo","MVV Rijnmond","NED",58]
[null,"Open - LINQUERCQ-RIVIÈRE Irène","LINQUERCQ-RIVIÈRE Irène","Open",318,"LINQUERCQ-RIVIÈRE","Irène","FTC Issy-les-Moulineaux","FRA",57.5]
[null,"Open - BOGDANIDIS Achilleas","BOGDANIDIS Achilleas","Open",318,"BOGDANIDIS","Achilleas","Polis Athlitikos Syllogos Daskaliou Kerateas","GRE",57.5]
[null,"Open - HARO Juan Manuel","HARO Juan Manuel","Open",318,"HARO","Juan Manuel","FM La Plazoleta","ESP",57.5]
[null,{"$f":"CONCATENATE(D327,\" - \",C327)","v":"Open - EYES Paul"},{"$f":"CONCATENATE(UPPER(F327),\" \",G327)","v":"EYES Paul"},"Open",321,"EYES","Paul","Sporting America TSC","USA",57]
[null,"Open - PEREMANS Yves","PEREMANS Yves","Open",321,"PEREMANS","Yves","SC Flanders","BEL",57]
[null,"Open - AQUILINA Charles","AQUILINA Charles","Open",321,"AQUILINA","Charles","Bormla SC","MLT",57]
[null,"Open - CERULLO Michele","CERULLO Michele","Open",321,"CERULLO","Michele","GCT DLF Gorizia","ITA",57]
[null,"Open - ROUIS Abdelmaneum","ROUIS Abdelmaneum","Open",325,"ROUIS","Abdelmaneum","FTC Caen","FRA",56]
[null,"Open - KAOUANE Luc","KAOUANE Luc","Open",325,"KAOUANE","Luc","SG '94 Hannover","GER",56]
[null,"Open - COLL Ferran","COLL Ferran","Open",325,"COLL","Ferran","Tiburones FM","ESP",56]
[null,"Open - BONAVIA Jose Luis","BONAVIA Jose Luis","Open",325,"BONAVIA","Jose Luis","Tiburones FM","GIB",56]
[null,"Open - OFFMANN Paul","OFFMANN Paul","Open",329,"OFFMANN","Paul","Langton Green Subbuteo Club","FRA",55.5]
[null,"Open - SIGNORETTI Pierluigi","SIGNORETTI Pierluigi","Open",329,"SIGNORETTI","Pierluigi","SC Sombrero","ITA",55.5]
[null,"Open - DELCROIX Emeric","DELCROIX Emeric","Open",331,"DELCROIX","Emeric","Avenir Subbuteo Hennuyer","BEL",55]
[null,"Open - LOMBARD Daniel","LOMBARD Daniel","Open",332,"LOMBARD","Daniel","Sydney TFC","AUS",54.5]
[null,"Open - LAZZARETTI Patrizio","LAZZARETTI Patrizio","Open",333,"LAZZARETTI","Patrizio","SS Lazio TFC Roma","ITA",54]
[null,"Open - SCHULZ Marcel","SCHULZ Marcel","Open",333,"SCHULZ","Marcel","BSC Schwalbach","GER",54]
[null,"Open - BRACH Christophe","BRACH Christophe","Open",333,"BRACH","Christophe","SC Charleroi","BEL",54]
[null,"Open - NAPOLITANO Carmine","NAPOLITANO Carmine","Open",333,"NAPOLITANO","Carmine","SC Fiamme Azzurre","ITA",54]
[null,"Open - MATSOPOULOS Stilianos","MATSOPOULOS Stilianos","Open",337,"MATSOPOULOS","Stilianos","Charilaos Trikoupis","GRE",53]
[null,"Open - PERE Olivier","PERE Olivier","Open",337,"PERE","Olivier","Avenir Subbuteo Hennuyer","BEL",53]
[null,"Open - SKORDAS Nikolaos","SKORDAS Nikolaos","Open",339,"SKORDAS","Nikolaos","Crimson Horses","GRE",52.5]
[null,"Open - SALVATI Mauro","SALVATI Mauro","Open",339,"SALVATI","Mauro","CS Virtus Rieti","ITA",52.5]
[null,"Open - KONSTANTAKOS Panagiotis","KONSTANTAKOS Panagiotis","Open",341,"KONSTANTAKOS","Panagiotis","Noctuas Athens TSC","GRE",52]
[null,"Open - LESNE Thibault","LESNE Thibault","Open",341,"LESNE","Thibault","Football de Table Aquitaine","FRA",52]
[null,"Open - KIMACK Michael","KIMACK Michael","Open",341,"KIMACK","Michael","Sporting America TSC","USA",52]
[null,"Open - SCHEFFER Ronald","SCHEFFER Ronald","Open",341,"SCHEFFER","Ronald","US Huy","NED",52]
[null,"Open - CHIAPOLINO Davide","CHIAPOLINO Davide","Open",341,"CHIAPOLINO","Davide","Pinco Devils Table Soccer","ITA",52]
[null,"Open - LA ROSA Riccardo","LA ROSA Riccardo","Open",346,"LA ROSA","Riccardo","SC Palermo 2016","ITA",51.5]
[null,"Open - FARRUGIA RANDON Robert","FARRUGIA RANDON Robert","Open",347,"FARRUGIA RANDON","Robert","H'Attard SC","MLT",51]
[null,"Open - BLANC Mickaël","BLANC Mickaël","Open",348,"BLANC","Mickaël","FTC Saint-Symphorien-sur-Coise","FRA",50.5]
[null,"Open - DEL BROCCO Gianmarco","DEL BROCCO Gianmarco","Open",349,"DEL BROCCO","Gianmarco","SS Lazio TFC Roma","ITA",50]
[null,"Open - KARVOUNIS John","KARVOUNIS John","Open",349,"KARVOUNIS","John","Scarlet Battalion SC","GRE",50]
[null,"Open - MURAILLE Maxime","MURAILLE Maxime","Open",351,"MURAILLE","Maxime","JSC Rochefort","BEL",49.5]
[null,"Open - GARCÍA Isaac","GARCÍA Isaac","Open",352,"GARCÍA","Isaac","CAP Ciudad de Murcia FM","ESP",49]
[null,"Open - GARGIULO Alfonso","GARGIULO Alfonso","Open",353,"GARGIULO","Alfonso","Subbito Gol Ferrara","ITA",48.5]
[null,"Open - ALIADIS Panagiotis","ALIADIS Panagiotis","Open",354,"ALIADIS","Panagiotis","Athinaikos CS","GRE",48]
[null,"Open - DA RE Federico","DA RE Federico","Open",354,"DA RE","Federico","Pinco Devils Table Soccer","ITA",48]
[null,"Open - TILLMAN Michael","TILLMAN Michael","Open",356,"TILLMAN","Michael","Black Rose Roma","USA",47.5]
[null,"Open - AGGETT Ian","AGGETT Ian","Open",357,"AGGETT","Ian","Yorkshire Phoenix and Dewsbury Moor TFC","ENG",47]
[null,"Open - VARELA Rui","VARELA Rui","Open",357,"VARELA","Rui","GRD 1º Maio Tires","POR",47]
[null,"Open - GIANTAIS Vaggelis","GIANTAIS Vaggelis","Open",357,"GIANTAIS","Vaggelis","Olympia CS","GRE",47]
[null,"Open - BARTZIS Athanasios","BARTZIS Athanasios","Open",357,"BARTZIS","Athanasios","Noctuas Athens TSC","GRE",47]
[null,"Open - HENRIQUES Nuno","HENRIQUES Nuno","Open",361,"HENRIQUES","Nuno","CF os Belenenses","POR",46.5]
[null,"Open - BARONE Massimo","BARONE Massimo","Open",362,"BARONE","Massimo","Subbuteo Dragons Azuqueca","ESP",46]
[null,"Open - POUFFET Kévin","POUFFET Kévin","Open",362,"POUFFET","Kévin","CFT Puylaurens","FRA",46]
[null,"Open - KORDANTONOPOULOS Athanasios","KORDANTONOPOULOS Athanasios","Open",364,"KORDANTONOPOULOS","Athanasios","Roligans Ilioupolis TSC","GRE",45.5]
[null,"Open - SANDNER Stefan","SANDNER Stefan","Open",365,"SANDNER","Stefan","TSC Royal 78 Kaisermühlen","AUT",45]
[null,"Open - GÓMEZ Rafael","GÓMEZ Rafael","Open",365,"GÓMEZ","Rafael","AFT Turia 1981","ESP",45]
[null,"Open - DUBOIS Xavier","DUBOIS Xavier","Open",365,"DUBOIS","Xavier","FTC Caen","FRA",45]
[null,"Open - RUSSELL Stuart","RUSSELL Stuart","Open",365,"RUSSELL","Stuart","Maryland SC","USA",45]
[null,"Open - PÉREZ Álvaro","PÉREZ Álvaro","Open",365,"PÉREZ","Álvaro","Tiburones FM","ESP",45]
[null,"Open - PALMER Guy","PALMER Guy","Open",365,"PALMER","Guy","Turia","GIB",45]
[null,"Open - CARVALHO Hugo","CARVALHO Hugo","Open",365,"CARVALHO","Hugo","Sporting Clube De Portugal","POR",45]
[null,"Open - BALAGUER Guillem","BALAGUER Guillem","Open",372,"BALAGUER","Guillem","CAP Ciudad de Murcia FM","ESP",44.5]
[null,"Open - ZAKI David","ZAKI David","Open",372,"ZAKI","David","FTC Issy-les-Moulineaux","FRA",44.5]
[null,"Open - TARDIOTA Giuseppe","TARDIOTA Giuseppe","Open",374,"TARDIOTA","Giuseppe","Brisbane Subbuteo Club","AUS",44]
[null,"Open - GARCÍA Juan Antonio","GARCÍA Juan Antonio","Open",374,"GARCÍA","Juan Antonio","Subbuteo Dragons Azuqueca","ESP",44]
[null,"Open - ONO Tomoki","ONO Tomoki","Open",376,"ONO","Tomoki","SAITAMA MARINES","JPN",43.5]
[null,"Open - LACEY Thomas","LACEY Thomas","Open",376,"LACEY","Thomas","Langton Green Subbuteo Club","ENG",43.5]
[null,"Open - TACCHIA Alessio","TACCHIA Alessio","Open",376,"TACCHIA","Alessio","CS SC Serenissima Mestre","ITA",43.5]
[null,"Open - LEROY Serge","LEROY Serge","Open",379,"LEROY","Serge","CFT Puylaurens","FRA",43]
[null,"Open - ALVAREZ Lawrence","ALVAREZ Lawrence","Open",379,"ALVAREZ","Lawrence","Europa FC TSC","GIB",43]
[null,"Open - FARRUGIA RANDON Stanley","FARRUGIA RANDON Stanley","Open",381,"FARRUGIA RANDON","Stanley","H'Attard SC","MLT",42.5]
[null,"Open - EVANGELOU Georgios","EVANGELOU Georgios","Open",381,"EVANGELOU","Georgios","Subbuteurs Athens TSC","GRE",42.5]
[null,"Open - LIGOS Marc","LIGOS Marc","Open",383,"LIGOS","Marc","AS Iluro FT","ESP",42]
[null,"Open - APATZIS Nikitas","APATZIS Nikitas","Open",383,"APATZIS","Nikitas","Subbuteurs Athens TSC","GRE",42]
[null,{"$f":"CONCATENATE(D391,\" - \",C391)","v":"Open - ICHIBA Masumi"},{"$f":"CONCATENATE(UPPER(F391),\" \",G391)","v":"ICHIBA Masumi"},"Open",383,"ICHIBA","Masumi","Yokohama OSC","JPN",42]
[null,"Open - MORIER Nicolas","MORIER Nicolas","Open",383,"MORIER","Nicolas","Football de Table Aquitaine","FRA",42]
[null,"Open - STRATOUDAKIS Spyridon","STRATOUDAKIS Spyridon","Open",383,"STRATOUDAKIS","Spyridon","Piraeus Lions TSC","GRE",42]
[null,"Open - PANDOLFI Cédric","PANDOLFI Cédric","Open",383,"PANDOLFI","Cédric","FTC Saint-Symphorien-sur-Coise","FRA",42]
[null,"Open - WATSON Lawrence","WATSON Lawrence","Open",389,"WATSON","Lawrence","Derry City","NIR",41.5]
[null,"Open - TARGUI Sami","TARGUI Sami","Open",390,"TARGUI","Sami","SC Charleroi","BEL",41]
[null,"Open - MUÑOZ Manuel","MUÑOZ Manuel","Open",390,"MUÑOZ","Manuel","Subbuteo Dragons Azuqueca","ESP",41]
[null,"Open - CASTRO Miguel","CASTRO Miguel","Open",392,"CASTRO","Miguel","GRD 1º Maio Tires","POR",40.5]
[null,"Open - ALFARO Isaac","ALFARO Isaac","Open",392,"ALFARO","Isaac","Tiburones FM","ESP",40.5]
[null,"Open - SKOUROS Panagiotis","SKOUROS Panagiotis","Open",394,"SKOUROS","Panagiotis","Roligans Ilioupolis TSC","GRE",39.5]
[null,"Open - MÉNDEZ Luis Felipe","MÉNDEZ Luis Felipe","Open",394,"MÉNDEZ","Luis Felipe","Tiburones FM","ESP",39.5]
[null,"Open - VOLPI Giovanni","VOLPI Giovanni","Open",394,"VOLPI","Giovanni","Subbito Gol Ferrara","ITA",39.5]
[null,"Open - EBEJER Thomas","EBEJER Thomas","Open",397,"EBEJER","Thomas","Bormla SC","MLT",39]
[null,"Open - BADGER Gage","BADGER Gage","Open",397,"BADGER","Gage","Wolverhampton Table Football Club","ENG",39]
[null,"Open - IORIO Alex","IORIO Alex","Open",397,"IORIO","Alex","CS Virtus Rieti","ITA",39]
[null,"Open - DELLA MONACA Daniele","DELLA MONACA Daniele","Open",397,"DELLA MONACA","Daniele","Pinco Devils Table Soccer","ITA",39]
[null,"Open - FENECH Tristan","FENECH Tristan","Open",401,"FENECH","Tristan","H`Attard SC","MLT",38.5]
[null,"Open - CHARATSIS Panagiotis","CHARATSIS Panagiotis","Open",401,"CHARATSIS","Panagiotis","Scarlet Battalion SC","GRE",38.5]
[null,"Open - LELUBRE Kevin","LELUBRE Kevin","Open",401,"LELUBRE","Kevin","SC Lion's Eugies","BEL",38.5]
[null,"Open - THIEL Frédéric","THIEL Frédéric","Open",401,"THIEL","Frédéric","SC Lion's Eugies","BEL",38.5]
[null,"Open - RIGGIO Salvatore","RIGGIO Salvatore","Open",405,"RIGGIO","Salvatore","Messina Table Soccer","ITA",38]
[null,"Open - WEAVER Mark","WEAVER Mark","Open",405,"WEAVER","Mark","Yorkshire Phoenix and Dewsbury Moor TFC","ENG",38]
[null,"Open - PEGHIN Davide","PEGHIN Davide","Open",405,"PEGHIN","Davide","Pinco Devils Table Soccer","ITA",38]
[null,"Open - KADINOPOULOS Vasileios","KADINOPOULOS Vasileios","Open",405,"KADINOPOULOS","Vasileios","Noctuas Athens TSC","GRE",38]
[null,"Open - TARRY Colin","TARRY Colin","Open",405,"TARRY","Colin","Yorkshire Phoenix and Dewsbury Moor TFC","ENG",38]
[null,"Open - ZUCCHI Marco","ZUCCHI Marco","Open",405,"ZUCCHI","Marco","PINCO DEVILS TABLE SOCCER","CZE",38]
[null,"Open - BONNICI Jayden","BONNICI Jayden","Open",405,"BONNICI","Jayden","Palermo","MLT",38]
[null,"Open - DOUGLAS Adam","DOUGLAS Adam","Open",412,"DOUGLAS","Adam","Langton Green Subbuteo Club","ENG",37.5]
[null,"Open - BENNETT Steve","BENNETT Steve","Open",413,"BENNETT","Steve","Dundee Utd TFC","SCO",37]
[null,"Open - MIDOUX Rafaël","MIDOUX Rafaël","Open",413,"MIDOUX","Rafaël","Avenir Subbuteo Hennuyer","FRA",37]
[null,"Open - JONES Victor","JONES Victor","Open",413,"JONES","Victor","Langton Green Subbuteo Club","ENG",37]
[null,"Open - CASANOVA Alessandro","CASANOVA Alessandro","Open",413,"CASANOVA","Alessandro","SC Sombrero","ITA",37]
[null,"Open - MALINDRETOS Pavlos","MALINDRETOS Pavlos","Open",417,"MALINDRETOS","Pavlos","Roligans Ilioupolis TSC","GRE",36.5]
[null,"Open - CARLES PRAT Ricard","CARLES PRAT Ricard","Open",417,"CARLES PRAT","Ricard","Barcelona FT","ESP",36.5]
[null,"Open - MOTTET Bruno","MOTTET Bruno","Open",417,"MOTTET","Bruno","SC Temploux","BEL",36.5]
[null,"Open - TELLEZ Kyle","TELLEZ Kyle","Open",420,"TELLEZ","Kyle","Europa FC TSC","GIB",36]
[null,"Open - TORANO Pasquale","TORANO Pasquale","Open",420,"TORANO","Pasquale","Subbito Gol Ferrara","ITA",36]
[null,"Open - CANDELAS Julio","CANDELAS Julio","Open",420,"CANDELAS","Julio","Moralzarzal SCAD","ESP",36]
[null,"Open - BAROSS Gábor","BAROSS Gábor","Open",420,"BAROSS","Gábor","TSC Phoenix","HUN",36]
[null,"Open - ESPOSITO Giosuè","ESPOSITO Giosuè","Open",420,"ESPOSITO","Giosuè","SC Fiamme Azzurre","ITA",36]
[null,"Open - BODIN DE CHATELARD Marcello","BODIN DE CHATELARD Marcello","Open",420,"BODIN DE CHATELARD","Marcello","Subbuteo Casale","ITA",36]
[null,"Open - MERCER Paul","MERCER Paul","Open",426,"MERCER","Paul","Northern Phoenix TFC","AUS",35.5]
[null,"Open - MARTINEZ Manuel","MARTINEZ Manuel","Open",426,"MARTINEZ","Manuel","Europa FC TSC","GIB",35.5]
[null,"Open - DIRICK Noah","DIRICK Noah","Open",428,"DIRICK","Noah","Wamme SC","BEL",35]
[null,"Open - SHEARER Andy","SHEARER Andy","Open",428,"SHEARER","Andy","Northern Line Flickers TFC","NZL",35]
[null,"Open - DRAZINAKIS Giorgos","DRAZINAKIS Giorgos","Open",428,"DRAZINAKIS","Giorgos","Scarlet Battalion SC","GRE",35]
[null,"Open - MAC EÓ Oisín","MAC EÓ Oisín","Open",431,"MAC EÓ","Oisín","Derry City","IRL",34.5]
[null,"Open - KATSOULAS Spyridon","KATSOULAS Spyridon","Open",431,"KATSOULAS","Spyridon","Piraeus Lions TSC","GRE",34.5]
[null,"Open - MARTÍNEZ Arturo","MARTÍNEZ Arturo","Open",431,"MARTÍNEZ","Arturo","ACS Perugia","ESP",34.5]
[null,"Open - SHARP Ian","SHARP Ian","Open",434,"SHARP","Ian","Yorkshire Phoenix and Dewsbury Moor TFC","ENG",34]
[null,"Open - KOTROTSOS Christos","KOTROTSOS Christos","Open",434,"KOTROTSOS","Christos","Roligans Ilioupolis TSC","GRE",34]
[null,"Open - TAIB Mohd Rizal","TAIB Mohd Rizal","Open",436,"TAIB","Mohd Rizal","Jurong Central SC","SGP",33.5]
[null,"Open - LO PRESTI Angelo","LO PRESTI Angelo","Open",436,"LO PRESTI","Angelo","ASD Siracusa Calcio Tavolo","ITA",33.5]
[null,"Open - FENECH Ismaël","FENECH Ismaël","Open",438,"FENECH","Ismaël","Bormla SC","MLT",33]
[null,"Open - JAMIESON Kyle","JAMIESON Kyle","Open",438,"JAMIESON","Kyle","Langton Green","WAL",33]
[null,"Open - FUKUOKA Katsuhiko","FUKUOKA Katsuhiko","Open",438,"FUKUOKA","Katsuhiko","OSC Yamato Wild Blue TFC","JPN",33]
[null,"Open - LEYS Geert","LEYS Geert","Open",441,"LEYS","Geert","SC Flanders","BEL",32.5]
[null,"Open - GALLART David","GALLART David","Open",441,"GALLART","David","Subbuteo Dragons Azuqueca","ESP",32.5]
[null,"Open - JAMIESON Malcolm","JAMIESON Malcolm","Open",441,"JAMIESON","Malcolm","Langton Green Subbuteo Club","ENG",32.5]
[null,"Open - HERMAN Xavier","HERMAN Xavier","Open",444,"HERMAN","Xavier","free agent","BEL",32]
[null,"Open - PEREIRA Afonso","PEREIRA Afonso","Open",444,"PEREIRA","Afonso","Atletico Pisa","POR",32]
[null,"Open - NATALE Paolo","NATALE Paolo","Open",444,"NATALE","Paolo","CS SC Serenissima Mestre","ITA",32]
[null,"Open - MALLIA Hansel","MALLIA Hansel","Open",444,"MALLIA","Hansel","SC Fiamme Azzurre","MLT",32]
[null,"Open - TORRE Giuseppe","TORRE Giuseppe","Open",444,"TORRE","Giuseppe","Barcellona Calcio Tavolo","ITA",32]
[null,{"$f":"CONCATENATE(D455,\" - \",C455)","v":"Open - FUCCI Antonio"},{"$f":"CONCATENATE(UPPER(F455),\" \",G455)","v":"FUCCI Antonio"},"Open",444,"FUCCI","Antonio","CCT Eagles Napoli","ITA",32]
[null,"Open - LAVENDER Brandon","LAVENDER Brandon","Open",450,"LAVENDER","Brandon","GCT DLF Gorizia","ENG",31.5]
[null,"Open - PEARSON Nick","PEARSON Nick","Open",451,"PEARSON","Nick","Langton Green Subbuteo Club","ENG",31]
[null,"Open - TAKAHASHI Shusuke","TAKAHASHI Shusuke","Open",451,"TAKAHASHI","Shusuke","Table Football Club Kashiwa Sunrise","JPN",31]
[null,"Open - ADAMS Eoin","ADAMS Eoin","Open",451,"ADAMS","Eoin","Yorkshire Phoenix","NIR",31]
[null,"Open - NISHI Miaki","NISHI Miaki","Open",451,"NISHI","Miaki","SC Reeds","JPN",31]
[null,"Open - RICCIO Luca","RICCIO Luca","Open",451,"RICCIO","Luca","ASCT Sessana 1982","ITA",31]
[null,"Open - DALEY Brian","DALEY Brian","Open",451,"DALEY","Brian","Yorkshire Phoenix and Dewsbury Moor TFC","ENG",31]
[null,"Open - SORET Louis","SORET Louis","Open",451,"SORET","Louis","Avenir Subbuteo Hennuyer","FRA",31]
[null,"Open - SERWY Pol","SERWY Pol","Open",458,"SERWY","Pol","US Huy","BEL",30.5]
[null,"Open - MASILE Antonio","MASILE Antonio","Open",459,"MASILE","Antonio","Subbuteisti Modena 1982","ITA",30]
[null,"Open - DE SCHUYTENEER Bryan","DE SCHUYTENEER Bryan","Open",459,"DE SCHUYTENEER","Bryan","Racing White Woluwé Subbuteo","BEL",30]
[null,"Open - FARIA Miguel","FARIA Miguel","Open",459,"FARIA","Miguel","Sporting Clube De Portugal","POR",30]
[null,"Open - VOGIATZIS Panagiotis","VOGIATZIS Panagiotis","Open",459,"VOGIATZIS","Panagiotis","Free Agent","GRE",30]
[null,"Open - DACEY Phil","DACEY Phil","Open",459,"DACEY","Phil","Cardiff Bluebirds TFC","WAL",30]
[null,"Open - MONTANARI Alessandro","MONTANARI Alessandro","Open",459,"MONTANARI","Alessandro","F.lli Bari Reggio Emilia","ITA",30]
[null,"Open - LIAKOPOULOS Nikolaos","LIAKOPOULOS Nikolaos","Open",459,"LIAKOPOULOS","Nikolaos","Olympia CS","GRE",30]
[null,"Open - GONINAN Joshua","GONINAN Joshua","Open",459,"GONINAN","Joshua","Sporting America TSC","USA",30]
[null,"Open - BORGO Francesco","BORGO Francesco","Open",459,"BORGO","Francesco","Subbuteo Casale","ITA",30]
[null,"Open - FRAIKIN David","FRAIKIN David","Open",459,"FRAIKIN","David","SC Charleroi","BEL",30]
[null,"Open - CLARK Darren","CLARK Darren","Open",459,"CLARK","Darren","CAP Ciudad de Murcia FM","ENG",30]
[null,"Open - MULASMAJIC Edin","MULASMAJIC Edin","Open",459,"MULASMAJIC","Edin","SG '94 Hannover","GER",30]
[null,"Open - BOUCHEZ Denis","BOUCHEZ Denis","Open",459,"BOUCHEZ","Denis","SC Lion's Eugies","BEL",30]
[null,"Open - COHEN Sam","COHEN Sam","Open",472,"COHEN","Sam","Maryland SC","USA",29.5]
[null,"Open - VRANOVITZ Daniel","VRANOVITZ Daniel","Open",472,"VRANOVITZ","Daniel","TSC Royal 78 Kaisermühlen","AUT",29.5]
[null,"Open - ARNOLD Bryan","ARNOLD Bryan","Open",472,"ARNOLD","Bryan","Northern Phoenix Table Football\r\n\r\nClub","USA",29.5]
[null,"Open - COLINDRES Adolfo","COLINDRES Adolfo","Open",472,"COLINDRES","Adolfo","Maryland SC","USA",29.5]
[null,"Open - BERLIAQUE Richard","BERLIAQUE Richard","Open",476,"BERLIAQUE","Richard","Europa FC TSC","GIB",28.5]
[null,"Open - KOTROTSOS Evangelos","KOTROTSOS Evangelos","Open",476,"KOTROTSOS","Evangelos","Roligans Ilioupolis TSC","GRE",28.5]
[null,"Open - ALLISON Aaron","ALLISON Aaron","Open",476,"ALLISON","Aaron","Pinco Devils Table Soccer","ITA",28.5]
[null,"Open - ARAUJO Álex","ARAUJO Álex","Open",476,"ARAUJO","Álex","AS Iluro FT","ESP",28.5]
[null,"Open - FIORETTI Ermanno Junior","FIORETTI Ermanno Junior","Open",480,"FIORETTI","Ermanno Junior","Bologna Tigers Subbuteo","ITA",28]
[null,"Open - RUSSO Giancarlo","RUSSO Giancarlo","Open",480,"RUSSO","Giancarlo","CT Torino 2009","ITA",28]
[null,"Open - MARAIN Benjamin","MARAIN Benjamin","Open",480,"MARAIN","Benjamin","Avenir Subbuteo Hennuyer","BEL",28]
[null,"Open - PELLEGRINO Andrea","PELLEGRINO Andrea","Open",480,"PELLEGRINO","Andrea","AS Cosenza","ITA",28]
[null,"Open - SOURLAS Konstantinos","SOURLAS Konstantinos","Open",480,"SOURLAS","Konstantinos","Larissa TFC","GRE",28]
[null,"Open - LUCCHESI Nico","LUCCHESI Nico","Open",485,"LUCCHESI","Nico","SC Sombrero","ITA",27.5]
[null,"Open - REITZ Marc","REITZ Marc","Open",485,"REITZ","Marc","BSC Schwalbach","GER",27.5]
[null,"Open - BRADLEY Martinog","BRADLEY Martinog","Open",485,"BRADLEY","Martinog","Derry City","NIR",27.5]
[null,"Open - AFONSO Nuno","AFONSO Nuno","Open",488,"AFONSO","Nuno","Sporting Clube De Portugal","POR",27]
[null,"Open - HARWOOD Graham","HARWOOD Graham","Open",488,"HARWOOD","Graham","Wolverhampton Table Football Club","ENG",27]
[null,"Open - BENAVENT Pedro","BENAVENT Pedro","Open",488,"BENAVENT","Pedro","Subbuteo Club Almería","ESP",27]
[null,"Open - MARKS Cailim","MARKS Cailim","Open",488,"MARKS","Cailim","Dutch Legends","NED",27]
[null,"Open - BERNARDI Daniele Emiliano","BERNARDI Daniele Emiliano","Open",488,"BERNARDI","Daniele Emiliano","CS SC Serenissima Mestre","ITA",27]
[null,"Open - TORRICO Emilio Tomás","TORRICO Emilio Tomás","Open",488,"TORRICO","Emilio Tomás","SC Móstoles","ESP",27]
[null,"Open - FEYE Aurélien","FEYE Aurélien","Open",488,"FEYE","Aurélien","ST Stembert","BEL",27]
[null,"Open - LAUDER David","LAUDER David","Open",488,"LAUDER","David","Cardiff Bluebirds TFC","WAL",27]
[null,"Open - BUTTITTA Eleonora","BUTTITTA Eleonora","Open",488,"BUTTITTA","Eleonora","SC Bagheria","ITA",27]
[null,"Open - MARKS Jarno","MARKS Jarno","Open",488,"MARKS","Jarno","Dutch Legends","NED",27]
[null,"Open - CARMO Maria Joao","CARMO Maria Joao","Open",498,"CARMO","Maria Joao","CF os Belenenses","POR",26.5]
[null,"Open - ROSA Toni","ROSA Toni","Open",498,"ROSA","Toni","AS Iluro FT","ESP",26.5]
[null,"Open - FLERI SOLER Mario","FLERI SOLER Mario","Open",498,"FLERI SOLER","Mario","H'Attard SC","MLT",26.5]
[null,"Open - GONINAN Jeremy","GONINAN Jeremy","Open",498,"GONINAN","Jeremy","Sporting America TSC","USA",26.5]
[null,"Open - CACIOPPO Sacha","CACIOPPO Sacha","Open",502,"CACIOPPO","Sacha","Atletico Pisa","ITA",26]
[null,"Open - KONTOS Serafeim","KONTOS Serafeim","Open",502,"KONTOS","Serafeim","FTC Caen","GRE",26]
[null,"Open - BOSCHI Massimiliano","BOSCHI Massimiliano","Open",502,"BOSCHI","Massimiliano","SC Sombrero","ITA",26]
[null,"Open - BRIFFETT Stuart","BRIFFETT Stuart","Open",502,"BRIFFETT","Stuart","Langton Green Subbuteo Club","ENG",26]
[null,"Open - STEMITSIOTIS Panos","STEMITSIOTIS Panos","Open",502,"STEMITSIOTIS","Panos","Langton Green Subbuteo Club","ENG",26]
[null,"Open - RIGON Davide","RIGON Davide","Open",502,"RIGON","Davide","Subbito Gol Ferrara","ITA",26]
[null,"Open - DESPRETZ Léa","DESPRETZ Léa","Open",502,"DESPRETZ","Léa","Avenir Subbuteo Hennuyer","BEL",26]
[null,"Open - ROSA Martí","ROSA Martí","Open",502,"ROSA","Martí","AS Iluro FT","ESP",26]
[null,"Open - BURNS Tom","BURNS Tom","Open",510,"BURNS","Tom","Glasgow TSA","SCO",25.5]
[null,"Open - NICHOLLS Dan","NICHOLLS Dan","Open",510,"NICHOLLS","Dan","Langton Green Subbuteo Club","ENG",25.5]
[null,"Open - BUTTERWORTH Brian","BUTTERWORTH Brian","Open",510,"BUTTERWORTH","Brian","SC Flanders","ENG",25.5]
[null,{"$f":"CONCATENATE(D519,\" - \",C519)","v":"Open - MCMURRAY Simon"},{"$f":"CONCATENATE(UPPER(F519),\" \",G519)","v":"MCMURRAY Simon"},"Open",513,"MCMURRAY","Simon","Wolverhampton Table Football Club","ENG",25]
[null,"Open - MUDGE Conrad","MUDGE Conrad","Open",513,"MUDGE","Conrad","Northern Line Flickers TFC","NZL",25]
[null,"Open - BALARD Jean-François","BALARD Jean-François","Open",513,"BALARD","Jean-François","CFT Puylaurens","FRA",25]
[null,"Open - MANOLOULIS Vasileios","MANOLOULIS Vasileios","Open",513,"MANOLOULIS","Vasileios","Glyfada United TSC","GRE",25]
[null,"Open - KANETIS Eleftherios","KANETIS Eleftherios","Open",513,"KANETIS","Eleftherios","Noctuas Athens TSC","GRE",25]
[null,"Open - FOSTER Lenny","FOSTER Lenny","Open",513,"FOSTER","Lenny","Sporting America TSC","USA",25]
[null,"Open - MIDORO Marco","MIDORO Marco","Open",513,"MIDORO","Marco","SC Ligures","ITA",25]
[null,"Open - ROMERO Manuel","ROMERO Manuel","Open",513,"ROMERO","Manuel","CAP Ciudad de Murcia FM","ESP",25]
[null,"Open - BATACCHI Alex","BATACCHI Alex","Open",521,"BATACCHI","Alex","Tampa Bay TSC","USA",24.5]
[null,"Open - KRIKELIS Stefanos","KRIKELIS Stefanos","Open",521,"KRIKELIS","Stefanos","Charilaos Trikoupis","GRE",24.5]
[null,"Open - LEES Malcolm","LEES Malcolm","Open",521,"LEES","Malcolm","Glasgow TSA","SCO",24.5]
[null,"Open - HARRINGTON Josef","HARRINGTON Josef","Open",521,"HARRINGTON","Josef","Langton Green Subbuteo Club","ENG",24.5]
[null,"Open - PRESTI Danilo","PRESTI Danilo","Open",525,"PRESTI","Danilo","Foggia CT","ITA",24]
[null,"Open - ARNOLD Terry","ARNOLD Terry","Open",525,"ARNOLD","Terry","Langton Green Subbuteo Club","ENG",24]
[null,"Open - MILLER Andrew","MILLER Andrew","Open",525,"MILLER","Andrew","Northern Line Flickers TFC","NZL",24]
[null,"Open - BIGNARDI Luca","BIGNARDI Luca","Open",525,"BIGNARDI","Luca","Rebels Genova","ITA",24]
[null,"Open - BONNET Cyprien","BONNET Cyprien","Open",525,"BONNET","Cyprien","FTC Saint-Symphorien-sur-Coise","FRA",24]
[null,"Open - HAGENKÖTTER Kai","HAGENKÖTTER Kai","Open",525,"HAGENKÖTTER","Kai","SC Catania 1987","GER",24]
[null,"Open - PERAZZO Marco","PERAZZO Marco","Open",525,"PERAZZO","Marco","SC Ascoli","ITA",24]
[null,"Open - MANGANELLO Andrea","MANGANELLO Andrea","Open",525,"MANGANELLO","Andrea","ACS Perugia 1973","ITA",24]
[null,"Open - BORG Angelo","BORG Angelo","Open",525,"BORG","Angelo","Valletta SC","MLT",24]
[null,"Open - IKEYA Tomoyoshi","IKEYA Tomoyoshi","Open",534,"IKEYA","Tomoyoshi","OSC Yamato Wild Blue TFC","JPN",23.5]
[null,"Open - VLASSOPOULOS Athanasios","VLASSOPOULOS Athanasios","Open",534,"VLASSOPOULOS","Athanasios","Proteas Athens SC","GRE",23.5]
[null,"Open - BELCHER Chris","BELCHER Chris","Open",534,"BELCHER","Chris","Mt. Hebron TSC","USA",23.5]
[null,"Open - BONTE Jordan","BONTE Jordan","Open",534,"BONTE","Jordan","ALC Wattrelos - Subbuteo Lille Metropole","BEL",23.5]
[null,"Open - DZELALIJA Yago","DZELALIJA Yago","Open",538,"DZELALIJA","Yago","Western Flickers TFC","AUS",23]
[null,"Open - TORBOLI Ruggero","TORBOLI Ruggero","Open",538,"TORBOLI","Ruggero","SC Sombrero","ITA",23]
[null,"Open - KIMACK Ethan","KIMACK Ethan","Open",538,"KIMACK","Ethan","Maryland SC","USA",23]
[null,"Open - MAIRELES Paula","MAIRELES Paula","Open",538,"MAIRELES","Paula","AC Los Remedios FM","ESP",23]
[null,"Open - CHRISTOPOULOS Orestis","CHRISTOPOULOS Orestis","Open",538,"CHRISTOPOULOS","Orestis","Athinaikos CS","GRE",23]
[null,"Open - PAWLICA Manfred","PAWLICA Manfred","Open",538,"PAWLICA","Manfred","TSC Phoenix","AUT",23]
[null,"Open - WILLIAM John Edwards","WILLIAM John Edwards","Open",538,"WILLIAM","John Edwards","SG Lions TFC","SGP",23]
[null,"Open - HAUSMANN Christian","HAUSMANN Christian","Open",538,"HAUSMANN","Christian","TSC Royal 78 Kaisermühlen","AUT",23]
[null,"Open - CHIAPPETTA Giovanni","CHIAPPETTA Giovanni","Open",546,"CHIAPPETTA","Giovanni","Paris Université Club","FRA",22.5]
[null,"Open - OTTONE Alessandro","OTTONE Alessandro","Open",546,"OTTONE","Alessandro","Subbuteo Club Reggio Calabria","ITA",22.5]
[null,"Open - CANO Luis","CANO Luis","Open",546,"CANO","Luis","Subbuteo Club Almería","ESP",22.5]
[null,"Open - SMITH Kevin","SMITH Kevin","Open",549,"SMITH","Kevin","Glasgow TSA","SCO",22]
[null,"Open - STERGIOPOULOS Ioannis","STERGIOPOULOS Ioannis","Open",549,"STERGIOPOULOS","Ioannis","Subbuteurs Athens TSC","GRE",22]
[null,"Open - LAWRENSON Paul","LAWRENSON Paul","Open",549,"LAWRENSON","Paul","Yorkshire Phoenix and Dewsbury Moor TFC","ENG",22]
[null,"Open - LEÓN MORENO José","LEÓN MORENO José","Open",549,"LEÓN MORENO","José","AFT Turia 1981","ESP",22]
[null,"Open - SCARAMUZZI Gianfranco","SCARAMUZZI Gianfranco","Open",549,"SCARAMUZZI","Gianfranco","SC Bari","ITA",22]
[null,"Open - GREGORY Connor","GREGORY Connor","Open",549,"GREGORY","Connor","Langton Green Subbuteo Club","ENG",22]
[null,"Open - BERTHOLET Elodie","BERTHOLET Elodie","Open",549,"BERTHOLET","Elodie","Avenir Subbuteo Hennuyer","BEL",22]
[null,"Open - VILLETTE François","VILLETTE François","Open",549,"VILLETTE","François","Azzurra 99 Napoli","ITA",22]
[null,"Open - RAISON Lucas","RAISON Lucas","Open",549,"RAISON","Lucas","SC Lion's Eugies","BEL",22]
[null,"Open - NUCCI Giulio","NUCCI Giulio","Open",549,"NUCCI","Giulio","CS Virtus Rieti","ITA",22]
[null,"Open - MADEIRA Cláudio","MADEIRA Cláudio","Open",559,"MADEIRA","Cláudio","GRD 1º Maio Tires","POR",21.5]
[null,"Open - HERNÁNDEZ Antonio Manuel","HERNÁNDEZ Antonio Manuel","Open",559,"HERNÁNDEZ","Antonio Manuel","Barcelona FT","ESP",21.5]
[null,"Open - BRADLEY Jeremy","BRADLEY Jeremy","Open",559,"BRADLEY","Jeremy","TSPA White Star","ENG",21.5]
[null,"Open - ABATE Fabio","ABATE Fabio","Open",562,"ABATE","Fabio","AS Cosenza","ITA",21]
[null,"Open - RAIROUX Christophe","RAIROUX Christophe","Open",562,"RAIROUX","Christophe","SC Lion's Eugies","BEL",21]
[null,"Open - CALCAGNO Daniele Vittorio","CALCAGNO Daniele Vittorio","Open",562,"CALCAGNO","Daniele Vittorio","AS Cosenza","ITA",21]
[null,"Open - PIROVA Stefka","PIROVA Stefka","Open",562,"PIROVA","Stefka","AFT Turia 1981","ESP",21]
[null,"Open - BIANCHI Pierluigi","BIANCHI Pierluigi","Open",562,"BIANCHI","Pierluigi","Pinco Devils Table Soccer","ITA",21]
[null,"Open - NOËL Jean-Maurice","NOËL Jean-Maurice","Open",562,"NOËL","Jean-Maurice","Club Stéphanois Subbuteo - ALC","FRA",21]
[null,"Open - HENRIOUL Jody","HENRIOUL Jody","Open",562,"HENRIOUL","Jody","SC Lion's Eugies","BEL",21]
[null,"Open - PRANTSOUDIS Evripidis","PRANTSOUDIS Evripidis","Open",562,"PRANTSOUDIS","Evripidis","Proteas Athens SC","GRE",21]
[null,"Open - KNEZEVIC Milan","KNEZEVIC Milan","Open",570,"KNEZEVIC","Milan","GCT DLF Gorizia","SRB",20.5]
[null,"Open - LEFÈBVRE Nicolas","LEFÈBVRE Nicolas","Open",570,"LEFÈBVRE","Nicolas","FTC Caen","FRA",20.5]
[null,"Open - DOHERTY Neil","DOHERTY Neil","Open",570,"DOHERTY","Neil","Langton Green Subbuteo Club","ENG",20.5]
[null,"Open - BOOTHMAN Jeremy","BOOTHMAN Jeremy","Open",570,"BOOTHMAN","Jeremy","TSPA White Star","ENG",20.5]
[null,"Open - JANSSENS Thomas","JANSSENS Thomas","Open",574,"JANSSENS","Thomas","Wamme SC","BEL",20]
[null,"Open - STRATOUDAKIS Antonios","STRATOUDAKIS Antonios","Open",574,"STRATOUDAKIS","Antonios","Piraeus Lions TSC","GRE",20]
[null,"Open - FARZA Yanis","FARZA Yanis","Open",574,"FARZA","Yanis","Celtic Combourg CFT","TUN",20]
[null,{"$f":"CONCATENATE(D583,\" - \",C583)","v":"Open - DOMENICO Fabio"},{"$f":"CONCATENATE(UPPER(F583),\" \",G583)","v":"DOMENICO Fabio"},"Open",574,"DOMENICO","Fabio","Free Agent","SUI",20]
[null,"Open - BODILY Simon","BODILY Simon","Open",574,"BODILY","Simon","Wolverhampton Table Football Club","ENG",20]
[null,"Open - KARAGIANNIOTIS Theofilos","KARAGIANNIOTIS Theofilos","Open",574,"KARAGIANNIOTIS","Theofilos","Roligans Ilioupolis TSC","GRE",20]
[null,"Open - TSOUTSAS Theodoros","TSOUTSAS Theodoros","Open",574,"TSOUTSAS","Theodoros","Crimson Horses","GRE",20]
[null,"Open - FRASCA Giuseppe","FRASCA Giuseppe","Open",574,"FRASCA","Giuseppe","Messina Table Soccer","ITA",20]
[null,"Open - WIESMANN Martin","WIESMANN Martin","Open",574,"WIESMANN","Martin","subbuteo.ch","SUI",20]
[null,"Open - BRISKOLAS Georgios","BRISKOLAS Georgios","Open",574,"BRISKOLAS","Georgios","Olympia CS","GRE",20]
[null,"Open - SCHEEN Mélina","SCHEEN Mélina","Open",574,"SCHEEN","Mélina","ST Stembert","BEL",20]
[null,"Open - PEZZUOLO Luca","PEZZUOLO Luca","Open",574,"PEZZUOLO","Luca","Pinco Devils Table Soccer","ITA",20]
[null,"Open - POUFFET Aymeric","POUFFET Aymeric","Open",574,"POUFFET","Aymeric","Football de Table Aquitaine","FRA",20]
[null,"Open - TAN Kok Wee","TAN Kok Wee","Open",587,"TAN","Kok Wee","SG Lions TFC","SGP",19.5]
[null,"Open - SAITTA Roberto","SAITTA Roberto","Open",588,"SAITTA","Roberto","SC Bagheria","ITA",19]
[null,"Open - SEPE Pasquale","SEPE Pasquale","Open",588,"SEPE","Pasquale","Subbuteo Vomero","ITA",19]
[null,"Open - TRICHOT Jean-Jacques","TRICHOT Jean-Jacques","Open",588,"TRICHOT","Jean-Jacques","Club Stéphanois Subbuteo - ALC","FRA",19]
[null,"Open - LJUBISAVLJEVIC Igor","LJUBISAVLJEVIC Igor","Open",588,"LJUBISAVLJEVIC","Igor","TSC Phoenix","AUT",19]
[null,"Open - KOUTSOGIANNIS Efthimios","KOUTSOGIANNIS Efthimios","Open",588,"KOUTSOGIANNIS","Efthimios","Crimson Horses","GRE",19]
[null,"Open - BONNICI Jeshua","BONNICI Jeshua","Open",588,"BONNICI","Jeshua","Valletta Lions TFC","MLT",19]
[null,"Open - MONTAÑO Alfonso","MONTAÑO Alfonso","Open",594,"MONTAÑO","Alfonso","Tiburones FM","ESP",18.5]
[null,"Open - GKOGKOS Athanasios","GKOGKOS Athanasios","Open",594,"GKOGKOS","Athanasios","Olympia CS","GRE",18.5]
[null,"Open - MASTROIANNI Fabio","MASTROIANNI Fabio","Open",594,"MASTROIANNI","Fabio","Free Agent","ESP",18.5]
[null,"Open - BAENA Manuel","BAENA Manuel","Open",594,"BAENA","Manuel","AC Los Remedios FM","ESP",18.5]
[null,"Open - SPENCE Barry","SPENCE Barry","Open",598,"SPENCE","Barry","Irish Premier League","NIR",18]
[null,"Open - TANAKA Naoto","TANAKA Naoto","Open",598,"TANAKA","Naoto","Tokyo Sunzeol TFC","JPN",18]
[null,"Open - GAGAS Thrasyvoulos","GAGAS Thrasyvoulos","Open",598,"GAGAS","Thrasyvoulos","Crimson Horses","GRE",18]
[null,"Open - DEAN Niall","DEAN Niall","Open",598,"DEAN","Niall","Europa FC TSC","GIB",18]
[null,"Open - FINO Herve","FINO Herve","Open",598,"FINO","Herve","Guebwiller Alsace Subbuteo Club","FRA",18]
[null,"Open - GENTILE Ernesto","GENTILE Ernesto","Open",598,"GENTILE","Ernesto","AS Cosenza","ITA",18]
[null,"Open - GALICHET Stephane","GALICHET Stephane","Open",598,"GALICHET","Stephane","Free Agent","FRA",18]
[null,"Open - DESPRETZ Emilie","DESPRETZ Emilie","Open",598,"DESPRETZ","Emilie","Avenir Subbuteo Hennuyer","BEL",18]
[null,"Open - GROSDENT Maxim","GROSDENT Maxim","Open",598,"GROSDENT","Maxim","Wamme SC","BEL",18]
[null,"Open - MAZZILLI Michelangelo","MAZZILLI Michelangelo","Open",598,"MAZZILLI","Michelangelo","SC Ascoli","ITA",18]
[null,"Open - MCCANN Tony","MCCANN Tony","Open",608,"MCCANN","Tony","Yorkshire Phoenix and Dewsbury Moor TFC","ENG",17.5]
[null,"Open - RECANO Alberto","RECANO Alberto","Open",608,"RECANO","Alberto","TS Napoli Fighters","ITA",17.5]
[null,"Open - GUASTELLA Fabrizio","GUASTELLA Fabrizio","Open",608,"GUASTELLA","Fabrizio","ASD Siracusa Calcio Tavolo","ITA",17.5]
[null,"Open - HARRINGTON Gerry","HARRINGTON Gerry","Open",608,"HARRINGTON","Gerry","Langton Green Subbuteo Club","IRL",17.5]
[null,"Open - KORDANTONOPOULOS Ioannis","KORDANTONOPOULOS Ioannis","Open",608,"KORDANTONOPOULOS","Ioannis","Noctuas Athens TSC","GRE",17.5]
[null,"Open - LYTRAS Ioannis","LYTRAS Ioannis","Open",608,"LYTRAS","Ioannis","Crimson Horses","GRE",17.5]
[null,"Open - RICARDO Carlos","RICARDO Carlos","Open",614,"RICARDO","Carlos","Subbuteo Clube de Benfica","POR",17]
[null,"Open - KAZANTZOGLOU Charalampos","KAZANTZOGLOU Charalampos","Open",614,"KAZANTZOGLOU","Charalampos","Subbuteurs Athens TSC","GRE",17]
[null,"Open - KROMMYDAS Panagiotis","KROMMYDAS Panagiotis","Open",614,"KROMMYDAS","Panagiotis","Subbuteo Club Höpfigheim","GER",17]
[null,"Open - VEZZUTO Francesco","VEZZUTO Francesco","Open",614,"VEZZUTO","Francesco","CCT Eagles Napoli","ITA",17]
[null,"Open - BOLUSSET Cyril","BOLUSSET Cyril","Open",614,"BOLUSSET","Cyril","FTC Saint-Symphorien-sur-Coise","FRA",17]
[null,"Open - HENRIQUES Vasco","HENRIQUES Vasco","Open",619,"HENRIQUES","Vasco","CF os Belenenses","POR",16.5]
[null,"Open - KANDA Kotetsu","KANDA Kotetsu","Open",619,"KANDA","Kotetsu","Table Football Club Kashiwa Sunrise","JPN",16.5]
[null,"Open - FRAGKAKIS Velissarios","FRAGKAKIS Velissarios","Open",619,"FRAGKAKIS","Velissarios","TSC Falcons Athens","GRE",16.5]
[null,"Open - GERRETS Kenney","GERRETS Kenney","Open",619,"GERRETS","Kenney","MVV Rijnmond","NED",16.5]
[null,"Open - EVELEIGH Beth","EVELEIGH Beth","Open",619,"EVELEIGH","Beth","Northern Phoenix TFC","AUS",16.5]
[null,"Open - GILIBERTO Gianluca","GILIBERTO Gianluca","Open",624,"GILIBERTO","Gianluca","Messina Table Soccer","ITA",16]
[null,"Open - RANDIELLI Salvatore","RANDIELLI Salvatore","Open",624,"RANDIELLI","Salvatore","ASD Siracusa Calcio Tavolo","ITA",16]
[null,"Open - BOLTE René","BOLTE René","Open",624,"BOLTE","René","Dutch Legends","NED",16]
[null,"Open - JACKSON Adam","JACKSON Adam","Open",624,"JACKSON","Adam","CHASERS (Chadwell Heath & South Essex, Romford Subbuteo) Club","ENG",16]
[null,"Open - CONNOLLY Frankie","CONNOLLY Frankie","Open",624,"CONNOLLY","Frankie","Derry City","IRL",16]
[null,"Open - SKOURTSOS Emmanouil","SKOURTSOS Emmanouil","Open",624,"SKOURTSOS","Emmanouil","Glyfada United TSC","GRE",16]
[null,"Open - OKAMOTO Miwako","OKAMOTO Miwako","Open",624,"OKAMOTO","Miwako","Tokyo Sparkling Shooters","JPN",16]
[null,"Open - LOMBARDO Valentino","LOMBARDO Valentino","Open",624,"LOMBARDO","Valentino","SC Palermo 2016","ITA",16]
[null,"Open - CYGANEK Jérôme","CYGANEK Jérôme","Open",624,"CYGANEK","Jérôme","Avenir Subbuteo Hennuyer","BEL",16]
[null,"Open - STROMMER Alfred","STROMMER Alfred","Open",624,"STROMMER","Alfred","TSC Phoenix","AUT",16]
[null,"Open - GALANOPOULOS Ilias","GALANOPOULOS Ilias","Open",624,"GALANOPOULOS","Ilias","Crimson Horses","GRE",16]
[null,"Open - ANDERLINI Andrea","ANDERLINI Andrea","Open",624,"ANDERLINI","Andrea","Subbuteisti Modena 1982","ITA",16]
[null,"Open - WILLIAMS Mike","WILLIAMS Mike","Open",636,"WILLIAMS","Mike","Langton Green Subbuteo Club","ENG",15.5]
[null,"Open - AMARO Pedro","AMARO Pedro","Open",636,"AMARO","Pedro","CF OS Belenenses","POR",15.5]
[null,"Open - MAIRELES ALFARO Jesús","MAIRELES ALFARO Jesús","Open",636,"MAIRELES ALFARO","Jesús","AC Los Remedios FM","ESP",15.5]
[null,"Open - SIRMAI Geoff","SIRMAI Geoff","Open",636,"SIRMAI","Geoff","Hipfingerz Subbuteo Club","AUS",15.5]
[null,"Open - YOSHIMURA Tomoyuki","YOSHIMURA Tomoyuki","Open",640,"YOSHIMURA","Tomoyuki","Adachi TFC","JPN",15]
[null,{"$f":"CONCATENATE(D647,\" - \",C647)","v":"Open - WILLOT Valéry"},{"$f":"CONCATENATE(UPPER(F647),\" \",G647)","v":"WILLOT Valéry"},"Open",640,"WILLOT","Valéry","ST Stembert","BEL",15]
[null,"Open - VARRIALE Vincenzo","VARRIALE Vincenzo","Open",640,"VARRIALE","Vincenzo","ASCT Sessana 1982","ITA",15]
[null,"Open - DI GENNARO Sebastian","DI GENNARO Sebastian","Open",640,"DI GENNARO","Sebastian","Subbito Gol Ferrara","ITA",15]
[null,"Open - PINHEIRO BARTHEZ Renato","PINHEIRO BARTHEZ Renato","Open",640,"PINHEIRO BARTHEZ","Renato","CR Vasco da Gama","BRA",15]
[null,"Open - BASTIN Olivier","BASTIN Olivier","Open",640,"BASTIN","Olivier","CFT Puylaurens","FRA",15]
[null,"Open - DE MATOS Daniel","DE MATOS Daniel","Open",640,"DE MATOS","Daniel","CR Vasco da Gama","BRA",15]
[null,"Open - DEL BEN David","DEL BEN David","Open",640,"DEL BEN","David","Pinco Devils Table Soccer","ITA",15]
[null,"Open - O’BRIEN Mick","O’BRIEN Mick","Open",640,"O’BRIEN","Mick","Irish Premier League","IRL",15]
[null,"Open - SPOORS Brian","SPOORS Brian","Open",640,"SPOORS","Brian","Glasgow TSA","SCO",15]
[null,"Open - SAGIT Olivier","SAGIT Olivier","Open",650,"SAGIT","Olivier","FTC Caen","FRA",14.5]
[null,"Open - SCHÖBERL Reinhard","SCHÖBERL Reinhard","Open",650,"SCHÖBERL","Reinhard","TSC Royal 78 Kaisermühlen","AUT",14.5]
[null,"Open - CARLES PRAT Albert","CARLES PRAT Albert","Open",650,"CARLES PRAT","Albert","Barcelona FT","ESP",14.5]
[null,"Open - TORINI Roberto","TORINI Roberto","Open",653,"TORINI","Roberto","SC Sombrero","ITA",14]
[null,"Open - STEWART Simon","STEWART Simon","Open",653,"STEWART","Simon","SG '94 Hannover","NIR",14]
[null,"Open - GOODMAN Simon","GOODMAN Simon","Open",653,"GOODMAN","Simon","Langton Green Subbuteo Club","ENG",14]
[null,"Open - ROUIS Yasser","ROUIS Yasser","Open",653,"ROUIS","Yasser","FTC CAEN","TUN",14]
[null,"Open - PRESTIA Vincenzo","PRESTIA Vincenzo","Open",653,"PRESTIA","Vincenzo","Subbuteo Club Reggio Calabria","ITA",14]
[null,"Open - GIAMBELLUCA Francesco","GIAMBELLUCA Francesco","Open",653,"GIAMBELLUCA","Francesco","ASD SC Salernitana","ITA",14]
[null,"Open - REGUERA DELGADO Manuel","REGUERA DELGADO Manuel","Open",653,"REGUERA DELGADO","Manuel","FM La Plazoleta","ESP",14]
[null,"Open - KANDA Junya","KANDA Junya","Open",653,"KANDA","Junya","Table Football Club Kashiwa Sunrise","JPN",14]
[null,"Open - PEREIRA Max","PEREIRA Max","Open",653,"PEREIRA","Max","Valletta Lions TFC","POR",14]
[null,"Open - CORAZZA Stefano","CORAZZA Stefano","Open",653,"CORAZZA","Stefano","Pinco Devils Table Soccer","ITA",14]
[null,"Open - MONTEFIORI Stefano","MONTEFIORI Stefano","Open",653,"MONTEFIORI","Stefano","Papata Group Ponticino","ITA",14]
[null,"Open - SILVA Jorge","SILVA Jorge","Open",653,"SILVA","Jorge","CF os Belenenses","POR",14]
[null,"Open - ROSSITTO Marco","ROSSITTO Marco","Open",653,"ROSSITTO","Marco","SC Bari","ITA",14]
[null,"Open - DI GENNARO Angelo","DI GENNARO Angelo","Open",653,"DI GENNARO","Angelo","Subbito Gol Ferrara","ITA",14]
[null,"Open - TESTA Enrico","TESTA Enrico","Open",653,"TESTA","Enrico","SC Catania 1987","ITA",14]
[null,"Open - GAIA Lorenzo","GAIA Lorenzo","Open",653,"GAIA","Lorenzo","CS SC Serenissima Mestre","ITA",14]
[null,"Open - SCHIAVI Luca","SCHIAVI Luca","Open",653,"SCHIAVI","Luca","Pinco Devils Table Soccer","ITA",14]
[null,"Open - AGGELOU Dimitris","AGGELOU Dimitris","Open",653,"AGGELOU","Dimitris","Glyfada United TSC","GRE",14]
[null,"Open - SHERIDAN Patrick","SHERIDAN Patrick","Open",671,"SHERIDAN","Patrick","Sporting America TSC","USA",13.5]
[null,"Open - DISMA Davide","DISMA Davide","Open",671,"DISMA","Davide","ASD Siracusa Calcio Tavolo","ITA",13.5]
[null,"Open - FERRUCCI Michele","FERRUCCI Michele","Open",671,"FERRUCCI","Michele","TS Napoli Fighters","ITA",13.5]
[null,"Open - DEINHART Gregg","DEINHART Gregg","Open",671,"DEINHART","Gregg","Washington Tuesday SL","USA",13.5]
[null,"Open - HALPIN John","HALPIN John","Open",671,"HALPIN","John","Glasgow TSA","SCO",13.5]
[null,"Open - FUNARO Emanuele","FUNARO Emanuele","Open",671,"FUNARO","Emanuele","SC Ligures","ITA",13.5]
[null,"Open - DOTTO Jonathan","DOTTO Jonathan","Open",671,"DOTTO","Jonathan","Europa FC TSC","GIB",13.5]
[null,"Open - GKIOTLIS Nikolaos","GKIOTLIS Nikolaos","Open",678,"GKIOTLIS","Nikolaos","Thessaloniki SC TSC","GRE",13]
[null,"Open - VERSTREPEN Xavier","VERSTREPEN Xavier","Open",678,"VERSTREPEN","Xavier","SG '94 Hannover","BEL",13]
[null,"Open - FONTES Alexandre","FONTES Alexandre","Open",678,"FONTES","Alexandre","Subbuteo Clube de Benfica","POR",13]
[null,"Open - LILLY Mason","LILLY Mason","Open",678,"LILLY","Mason","Maryland SC","USA",13]
[null,"Open - BELLEFONTAINE Martin","BELLEFONTAINE Martin","Open",678,"BELLEFONTAINE","Martin","Elstow Lions TFC","WAL",13]
[null,"Open - SILVA Luís Filipe","SILVA Luís Filipe","Open",678,"SILVA","Luís Filipe","CF os Belenenses","POR",13]
[null,"Open - CONVERTI Luca","CONVERTI Luca","Open",678,"CONVERTI","Luca","CT Torino 2009","ITA",13]
[null,"Open - LEDIEU Johnny","LEDIEU Johnny","Open",678,"LEDIEU","Johnny","Elan Subbutéo Club de Champs-sur-Marne","FRA",13]
[null,"Open - MERKOURIS Maria Felice","MERKOURIS Maria Felice","Open",678,"MERKOURIS","Maria Felice","SC Palermo 2016","ITA",13]
[null,"Open - CEULEMANS Jos","CEULEMANS Jos","Open",678,"CEULEMANS","Jos","SC Flanders","BEL",13]
[null,"Open - CAPELLACCI Luca","CAPELLACCI Luca","Open",678,"CAPELLACCI","Luca","Bologna Tigers Subbuteo","ITA",13]
[null,"Open - SCOTT Alexander","SCOTT Alexander","Open",678,"SCOTT","Alexander","Wolverhampton Table Football Club","ENG",13]
[null,"Open - GERONÈS Jordi","GERONÈS Jordi","Open",678,"GERONÈS","Jordi","Barcelona FT","ESP",13]
[null,"Open - TRAINER Nick","TRAINER Nick","Open",691,"TRAINER","Nick","Boise USL 95","USA",12.5]
[null,"Open - FORNARO Enzo","FORNARO Enzo","Open",691,"FORNARO","Enzo","SG Lions TFC","SGP",12.5]
[null,"Open - DEL GENOVESE Marco","DEL GENOVESE Marco","Open",693,"DEL GENOVESE","Marco","Atletico Pisa","ITA",12]
[null,"Open - ZANGYLOS Giorgos","ZANGYLOS Giorgos","Open",693,"ZANGYLOS","Giorgos","Famagusta TFC","CYP",12]
[null,"Open - LENA Gianmaria","LENA Gianmaria","Open",693,"LENA","Gianmaria","Subbuteo Club Reggio Calabria","ITA",12]
[null,"Open - MAIRELES REYES Jesús","MAIRELES REYES Jesús","Open",693,"MAIRELES REYES","Jesús","AC Los Remedios FM","ESP",12]
[null,"Open - FARZA Skander","FARZA Skander","Open",693,"FARZA","Skander","Celtic Combourg CFT","TUN",12]
[null,"Open - VOURAKIS Andreas","VOURAKIS Andreas","Open",693,"VOURAKIS","Andreas","Athinaikos CS","GRE",12]
[null,"Open - DI PIETRANTONIO Silvestro","DI PIETRANTONIO Silvestro","Open",693,"DI PIETRANTONIO","Silvestro","CCT Roma","ITA",12]
[null,"Open - WONNACOTT Stephen","WONNACOTT Stephen","Open",693,"WONNACOTT","Stephen","Langton Green Subbuteo Club","ENG",12]
[null,"Open - MIOTTI Fulvio","MIOTTI Fulvio","Open",693,"MIOTTI","Fulvio","Atletico Pisa","ITA",12]
[null,"Open - COLOSSI Francesco","COLOSSI Francesco","Open",693,"COLOSSI","Francesco","SC Bari","ITA",12]
[null,"Open - KOSMAS Petros","KOSMAS Petros","Open",693,"KOSMAS","Petros","Free Agent","GRE",12]
[null,"Open - CUCIT Andrea","CUCIT Andrea","Open",693,"CUCIT","Andrea","GCT DLF Gorizia","ITA",12]
[null,{"$f":"CONCATENATE(D711,\" - \",C711)","v":"Open - ARNAUDIN Thierry"},{"$f":"CONCATENATE(UPPER(F711),\" \",G711)","v":"ARNAUDIN Thierry"},"Open",693,"ARNAUDIN","Thierry","Football de Table Aquitaine","FRA",12]
[null,"Open - LECERF Sébastien","LECERF Sébastien","Open",693,"LECERF","Sébastien","CFT Montivilliers","FRA",12]
[null,"Open - DE GENNARO Pietro","DE GENNARO Pietro","Open",693,"DE GENNARO","Pietro","CS Virtus Rieti","ITA",12]
[null,"Open - CASCIANO Michaël","CASCIANO Michaël","Open",693,"CASCIANO","Michaël","SC Charleroi","BEL",12]
[null,"Open - GUARINO Michele","GUARINO Michele","Open",693,"GUARINO","Michele","SC Palermo 2016","ITA",12]
[null,"Open - LAUDER John","LAUDER John","Open",693,"LAUDER","John","SC Samb","WAL",12]
[null,"Open - GABBANI Alessandro","GABBANI Alessandro","Open",693,"GABBANI","Alessandro","Atletico Pisa","ITA",12]
[null,"Open - GAZZOLDI Giuliano","GAZZOLDI Giuliano","Open",693,"GAZZOLDI","Giuliano","Subbito Gol Ferrara","ITA",12]
[null,"Open - GEROSA CISNEROS Bruno","GEROSA CISNEROS Bruno","Open",693,"GEROSA CISNEROS","Bruno","Mallorca Águilas FM","ESP",12]
[null,"Open - HEWARD Craig","HEWARD Craig","Open",693,"HEWARD","Craig","Yorkshire Phoenix and Dewsbury Moor TFC","ENG",12]
[null,"Open - EXARCHOU Menelaos","EXARCHOU Menelaos","Open",715,"EXARCHOU","Menelaos","Crimson Horses","GRE",11.5]
[null,"Open - LIZAR Jürgen","LIZAR Jürgen","Open",715,"LIZAR","Jürgen","TSC Phoenix","AUT",11.5]
[null,"Open - BLÜMEL Christian","BLÜMEL Christian","Open",715,"BLÜMEL","Christian","TSC Phoenix","AUT",11.5]
[null,"Open - BOULANGER David","BOULANGER David","Open",715,"BOULANGER","David","Wamme SC","BEL",11.5]
[null,"Open - POTHITOS Ioannis","POTHITOS Ioannis","Open",715,"POTHITOS","Ioannis","Crimson Horses","GRE",11.5]
[null,"Open - BURFORD Chris","BURFORD Chris","Open",715,"BURFORD","Chris","Langton Green Subbuteo Club","ENG",11.5]
[null,"Open - AVELLANO Francis","AVELLANO Francis","Open",715,"AVELLANO","Francis","Europa FC TSC","GIB",11.5]
[null,"Open - UCHA Francisco","UCHA Francisco","Open",715,"UCHA","Francisco","AS Iluro FT","ESP",11.5]
[null,"Open - SANTOS Claudio","SANTOS Claudio","Open",715,"SANTOS","Claudio","Sporting America TSC","USA",11.5]
[null,"Open - SILVA Nuno","SILVA Nuno","Open",724,"SILVA","Nuno","Sporting Clube De Portugal","POR",11]
[null,"Open - BREKKE Svein Arne","BREKKE Svein Arne","Open",724,"BREKKE","Svein Arne","Subbuteo Oslo","NOR",11]
[null,"Open - YASUDA Jiro","YASUDA Jiro","Open",724,"YASUDA","Jiro","Tokyo Crossover Flickers","JPN",11]
[null,"Open - LEVY Samantha","LEVY Samantha","Open",724,"LEVY","Samantha","CHASERS (Chadwell Heath & South Essex, Romford Subbuteo) Club","ENG",11]
[null,"Open - ACUÑA Iván","ACUÑA Iván","Open",724,"ACUÑA","Iván","Barcelona FT","ESP",11]
[null,"Open - RUDY HESTY Edin Reyza","RUDY HESTY Edin Reyza","Open",724,"RUDY HESTY","Edin Reyza","Jurong Central SC","SGP",11]
[null,"Open - LA TORRE Francesco","LA TORRE Francesco","Open",724,"LA TORRE","Francesco","Barcellona Calcio Tavolo","ITA",11]
[null,"Open - GIUDICE Michele","GIUDICE Michele","Open",724,"GIUDICE","Michele","Subbuteo Club Labronico","ITA",11]
[null,"Open - NIAVIS Giorgos","NIAVIS Giorgos","Open",724,"NIAVIS","Giorgos","Crimson Horses","GRE",11]
[null,"Open - DE PAOLIS Massimo","DE PAOLIS Massimo","Open",724,"DE PAOLIS","Massimo","SPQR MMIX Roma","ITA",11]
[null,"Open - ROMANO Luigi","ROMANO Luigi","Open",724,"ROMANO","Luigi","Trento Subbuteo","ITA",11]
[null,"Open - PANEBIANCO Claudio","PANEBIANCO Claudio","Open",724,"PANEBIANCO","Claudio","SC Catania 1987","ITA",11]
[null,"Open - TAYLOR Paul","TAYLOR Paul","Open",736,"TAYLOR","Paul","Free Agent","ENG",10.5]
[null,"Open - BELCHER Ryan","BELCHER Ryan","Open",736,"BELCHER","Ryan","Maryland SC","USA",10.5]
[null,"Open - VASILOPOULOS Panagiotis","VASILOPOULOS Panagiotis","Open",736,"VASILOPOULOS","Panagiotis","Athinaikos CS","GRE",10.5]
[null,"Open - GARAGOUNIS Christos","GARAGOUNIS Christos","Open",736,"GARAGOUNIS","Christos","Northern Phoenix TFC","AUS",10.5]
[null,"Open - FENTON Lee","FENTON Lee","Open",736,"FENTON","Lee","Langton Green Subbuteo Club","ENG",10.5]
[null,"Open - SCOTT Joey","SCOTT Joey","Open",736,"SCOTT","Joey","Sporting America TSC","USA",10.5]
[null,"Open - ESPADA Carlos","ESPADA Carlos","Open",742,"ESPADA","Carlos","AFT Turia 1981","ESP",10]
[null,"Open - ATTARD Walter Joseph","ATTARD Walter Joseph","Open",742,"ATTARD","Walter Joseph","H'Attard SC","MLT",10]
[null,"Open - GREGORY Danny","GREGORY Danny","Open",742,"GREGORY","Danny","Glasgow TSA","SCO",10]
[null,"Open - EBEJER Gabriel","EBEJER Gabriel","Open",742,"EBEJER","Gabriel","Bormla SC","MLT",10]
[null,"Open - DROSSOPOULOS Lampros","DROSSOPOULOS Lampros","Open",742,"DROSSOPOULOS","Lampros","Athinaikos CS","GRE",10]
[null,"Open - STAGNO Stefano","STAGNO Stefano","Open",742,"STAGNO","Stefano","Messina Table Soccer","ITA",10]
[null,"Open - LOUIS Daniel","LOUIS Daniel","Open",742,"LOUIS","Daniel","Sporting America TSC","USA",10]
[null,"Open - NOUSIOS Vasilis","NOUSIOS Vasilis","Open",742,"NOUSIOS","Vasilis","Crimson Horses","GRE",10]
[null,"Open - MESSONISANAKIS Stavros","MESSONISANAKIS Stavros","Open",742,"MESSONISANAKIS","Stavros","Roligans Ilioupolis TSC","GRE",10]
[null,"Open - KATAOKA Kazutoyo","KATAOKA Kazutoyo","Open",742,"KATAOKA","Kazutoyo","SAITAMA MARINES","JPN",10]
[null,"Open - MORIOKA Nozomu","MORIOKA Nozomu","Open",742,"MORIOKA","Nozomu","Yokohama OSC","JPN",10]
[null,"Open - PHOKOS Timothy","PHOKOS Timothy","Open",742,"PHOKOS","Timothy","The Tumbleweeds","AUS",10]
[null,"Open - CHYTAS Christos","CHYTAS Christos","Open",742,"CHYTAS","Christos","TSC Falcons Athens","GRE",10]
[null,"Open - MALINDRETOS Michail","MALINDRETOS Michail","Open",742,"MALINDRETOS","Michail","Roligans Ilioupolis TSC","GRE",10]
[null,"Open - VATTERONI Alberto","VATTERONI Alberto","Open",742,"VATTERONI","Alberto","Papata Group Ponticino","ITA",10]
[null,"Open - SCHERBANTIN David","SCHERBANTIN David","Open",742,"SCHERBANTIN","David","TSC Royal 78 Kaisermühlen","AUT",10]
[null,"Open - LANZANI Luca","LANZANI Luca","Open",742,"LANZANI","Luca","The Morecambe Bay Subbuteo Club","ENG",10]
[null,"Open - TESTA Andrea","TESTA Andrea","Open",742,"TESTA","Andrea","Subbuteo Vomero","ITA",10]
[null,"Open - MELEAS Konstantinos","MELEAS Konstantinos","Open",742,"MELEAS","Konstantinos","Subbuteurs Athens TSC","GRE",10]
[null,"Open - GENTILE Luca","GENTILE Luca","Open",742,"GENTILE","Luca","TS Napoli Fighters","ITA",10]
[null,"Open - LIM Ding Heng","LIM Ding Heng","Open",762,"LIM","Ding Heng","Jurong Central SC","SGP",9.5]
[null,"Open - MÁRQUEZ José Luis","MÁRQUEZ José Luis","Open",762,"MÁRQUEZ","José Luis","Barcelona FT","ESP",9.5]
[null,"Open - KOURIDAKIS Christos","KOURIDAKIS Christos","Open",762,"KOURIDAKIS","Christos","Glyfada United TSC","GRE",9.5]
[null,"Open - BOIGEOL Alban","BOIGEOL Alban","Open",765,"BOIGEOL","Alban","Football de Table Aquitaine","FRA",9]
[null,"Open - VERGONI Roberto","VERGONI Roberto","Open",765,"VERGONI","Roberto","Papata Group Ponticino","ITA",9]
[null,"Open - TEIXIDO-REGNIER Maël","TEIXIDO-REGNIER Maël","Open",765,"TEIXIDO-REGNIER","Maël","CFT Puylaurens","FRA",9]
[null,"Open - SICILIANO Alessandro","SICILIANO Alessandro","Open",765,"SICILIANO","Alessandro","AS Cosenza","ITA",9]
[null,{"$f":"CONCATENATE(D775,\" - \",C775)","v":"Open - BENEDETTO Michele"},{"$f":"CONCATENATE(UPPER(F775),\" \",G775)","v":"BENEDETTO Michele"},"Open",765,"BENEDETTO","Michele","Subbuteo Club Basilicata","ITA",9]
[null,"Open - ROCHEZ Sébastien","ROCHEZ Sébastien","Open",765,"ROCHEZ","Sébastien","ST Stembert","BEL",9]
[null,"Open - DE LORENZI Giorgio","DE LORENZI Giorgio","Open",765,"DE LORENZI","Giorgio","Subbuteo Club Silvio Piola","ITA",9]
[null,"Open - LO PRETI Lorenzo","LO PRETI Lorenzo","Open",765,"LO PRETI","Lorenzo","Guebwiller Alsace Subbuteo Club","FRA",9]
[null,"Open - IMBROGIANO John","IMBROGIANO John","Open",765,"IMBROGIANO","John","Pinco Devils Table Soccer","SUI",9]
[null,"Open - LIENHARDT Eric","LIENHARDT Eric","Open",765,"LIENHARDT","Eric","Guebwiller Alsace Subbuteo Club","FRA",9]
[null,"Open - SOCHORITIS Konstantinos","SOCHORITIS Konstantinos","Open",775,"SOCHORITIS","Konstantinos","Atlas FTC","GRE",8.5]
[null,"Open - INCORVAIA Alex","INCORVAIA Alex","Open",775,"INCORVAIA","Alex","Subbuteo Casale","ITA",8.5]
[null,"Open - GONZÁLEZ José Pedro","GONZÁLEZ José Pedro","Open",775,"GONZÁLEZ","José Pedro","FM La Plazoleta","ESP",8.5]
[null,"Open - SKLAVOUNOS Georgios","SKLAVOUNOS Georgios","Open",775,"SKLAVOUNOS","Georgios","Evia CAN","GRE",8.5]
[null,"Open - MARTINELLI Vito Sante","MARTINELLI Vito Sante","Open",779,"MARTINELLI","Vito Sante","SC Bari","ITA",8]
[null,"Open - SUTTON Paul","SUTTON Paul","Open",779,"SUTTON","Paul","Langton Green Subbuteo Club","ENG",8]
[null,"Open - SAKAI Kazunari","SAKAI Kazunari","Open",779,"SAKAI","Kazunari","Fukushima Table Football Club","JPN",8]
[null,"Open - JENKINS Dee","JENKINS Dee","Open",779,"JENKINS","Dee","Derry City","NIR",8]
[null,"Open - VEZZO Maurizio","VEZZO Maurizio","Open",779,"VEZZO","Maurizio","CCT Eagles Napoli","ITA",8]
[null,"Open - KARNEZIS Ioannis","KARNEZIS Ioannis","Open",779,"KARNEZIS","Ioannis","Roligans Ilioupolis TSC","GRE",8]
[null,"Open - DEL BEN Federico","DEL BEN Federico","Open",779,"DEL BEN","Federico","Pinco Devils Table Soccer","ITA",8]
[null,"Open - ANDREONI Andrea","ANDREONI Andrea","Open",779,"ANDREONI","Andrea","Glasgow TSA","SCO",8]
[null,"Open - SATO Toshiki","SATO Toshiki","Open",779,"SATO","Toshiki","Fukushima Table Football Club","JPN",8]
[null,"Open - VACKE David","VACKE David","Open",779,"VACKE","David","Czech Subbuteo Team 2014","CZE",8]
[null,"Open - PARSONS Jeff","PARSONS Jeff","Open",779,"PARSONS","Jeff","Free Agent","ENG",8]
[null,"Open - CHALIOTIS Athanasios","CHALIOTIS Athanasios","Open",779,"CHALIOTIS","Athanasios","Atlas FTC","GRE",8]
[null,"Open - MAZZONI Tommaso","MAZZONI Tommaso","Open",779,"MAZZONI","Tommaso","Subbuteo Club Basilicata","ITA",8]
[null,"Open - ARIVAZHAGAN Nagulan","ARIVAZHAGAN Nagulan","Open",779,"ARIVAZHAGAN","Nagulan","SG Lions TFC","SGP",8]
[null,"Open - THAT Raksmey","THAT Raksmey","Open",779,"THAT","Raksmey","Fukushima Table Football Club","JPN",8]
[null,"Open - KARAVASILIS Nikolaos","KARAVASILIS Nikolaos","Open",779,"KARAVASILIS","Nikolaos","Crimson Horses","GRE",8]
[null,"Open - BESKABY Andy","BESKABY Andy","Open",779,"BESKABY","Andy","Dundee Utd TFC","SCO",8]
[null,"Open - CAMERLINGO Gianluigi","CAMERLINGO Gianluigi","Open",779,"CAMERLINGO","Gianluigi","TS Napoli Fighters","ITA",8]
[null,"Open - JALBERT Thierry","JALBERT Thierry","Open",797,"JALBERT","Thierry","Elan Subbutéo Club de Champs-sur-Marne","FRA",7.5]
[null,"Open - MANZELLA Roberto","MANZELLA Roberto","Open",797,"MANZELLA","Roberto","Subbuteo Club Reggio Calabria","ITA",7.5]
[null,"Open - MORGAN Nigel","MORGAN Nigel","Open",797,"MORGAN","Nigel","Wolverhampton Table Football Club","ENG",7.5]
[null,"Open - GLADMAN Dave","GLADMAN Dave","Open",797,"GLADMAN","Dave","Glasgow TSA","SCO",7.5]
[null,"Open - BAXTER David","BAXTER David","Open",797,"BAXTER","David","Dundee Utd TFC","SCO",7.5]
[null,"Open - CAFIERO Alessandro","CAFIERO Alessandro","Open",797,"CAFIERO","Alessandro","GCT DLF Gorizia","ITA",7.5]
[null,"Open - BOCK Carsten","BOCK Carsten","Open",797,"BOCK","Carsten","SC Berlin","GER",7.5]
[null,"Open - GERSIE Janus","GERSIE Janus","Open",797,"GERSIE","Janus","BSC Schwalbach","GER",7.5]
[null,"Open - STEWART Craig","STEWART Craig","Open",797,"STEWART","Craig","Derry City","NIR",7.5]
[null,"Open - FEYJOO José María","FEYJOO José María","Open",797,"FEYJOO","José María","Moralzarzal SCAD","ESP",7.5]
[null,"Open - JONES Robert","JONES Robert","Open",807,"JONES","Robert","Free Agent","ENG",7]
[null,"Open - PACITTI Stefano","PACITTI Stefano","Open",807,"PACITTI","Stefano","Atletico Pisa","ITA",7]
[null,"Open - RUÍZ Bonifacio","RUÍZ Bonifacio","Open",807,"RUÍZ","Bonifacio","Mallorca Águilas FM","ESP",7]
[null,"Open - FUERTES César","FUERTES César","Open",807,"FUERTES","César","AFT Turia 1981","ESP",7]
[null,"Open - DERY Véronique","DERY Véronique","Open",807,"DERY","Véronique","Racing White Woluwé Subbuteo","BEL",7]
[null,"Open - PIBIRI Giulia","PIBIRI Giulia","Open",807,"PIBIRI","Giulia","SC Catania 1987","ITA",7]
[null,"Open - DIOGENES Herculano","DIOGENES Herculano","Open",807,"DIOGENES","Herculano","Subbuteo Clube de Benfica","POR",7]
[null,"Open - GERRETS Quincy","GERRETS Quincy","Open",807,"GERRETS","Quincy","MVV Rijnmond","NED",7]
[null,"Open - PARÍS Javier","PARÍS Javier","Open",807,"PARÍS","Javier","AFT Turia 1981","ESP",7]
[null,"Open - BOND Jared","BOND Jared","Open",807,"BOND","Jared","Kansas City SC","USA",7]
[null,"Open - SPILLER Alberto","SPILLER Alberto","Open",807,"SPILLER","Alberto","ASD Triestina Subbuteo","ITA",7]
[null,"Open - PARISI Giuseppe","PARISI Giuseppe","Open",807,"PARISI","Giuseppe","SC Catania 1987","ITA",7]
[null,"Open - CHONDROUDAKIS Fotis","CHONDROUDAKIS Fotis","Open",807,"CHONDROUDAKIS","Fotis","Athinaikos CS","GRE",7]
[null,"Open - RUIZ Ernesto","RUIZ Ernesto","Open",807,"RUIZ","Ernesto","FM La Plazoleta","ESP",7]
[null,"Open - RAGUSA Giuseppe","RAGUSA Giuseppe","Open",807,"RAGUSA","Giuseppe","trento Subbuteo","ITA",7]
[null,"Open - BUTLER Dave","BUTLER Dave","Open",807,"BUTLER","Dave","Glasgow TSA","SCO",7]
[null,"Open - FARMAKIS Alexios","FARMAKIS Alexios","Open",807,"FARMAKIS","Alexios","Evia CAN","GRE",7]
[null,"Open - AUSSET Laurent","AUSSET Laurent","Open",807,"AUSSET","Laurent","Elan Subbutéo Club de Champs-sur-Marne","FRA",7]
[null,"Open - VAGNONI Augusto","VAGNONI Augusto","Open",807,"VAGNONI","Augusto","SC Ascoli","ITA",7]
[null,"Open - LAZZARETTI Lorenzo","LAZZARETTI Lorenzo","Open",807,"LAZZARETTI","Lorenzo","SS Lazio TFC Roma","ITA",7]
[null,"Open - PRETZEL Nico","PRETZEL Nico","Open",827,"PRETZEL","Nico","Sparta Spreeathen 74/82","GER",6.5]
[null,"Open - SANTOS Tom","SANTOS Tom","Open",827,"SANTOS","Tom","Free Agent","GIB",6.5]
[null,"Open - MCCAULLEY Scott","MCCAULLEY Scott","Open",827,"MCCAULLEY","Scott","Sporting America TSC","USA",6.5]
[null,"Open - GARCÍA FERRI José","GARCÍA FERRI José","Open",827,"GARCÍA FERRI","José","Subbuteo Club Almería","ESP",6.5]
[null,"Open - MINTY Dave","MINTY Dave","Open",827,"MINTY","Dave","Dundee Utd TFC","SCO",6.5]
[null,"Open - BUCCHERI Michael","BUCCHERI Michael","Open",827,"BUCCHERI","Michael","Maryland SC","USA",6.5]
[null,{"$f":"CONCATENATE(D839,\" - \",C839)","v":"Open - SARDI DE LETTO David"},{"$f":"CONCATENATE(UPPER(F839),\" \",G839)","v":"SARDI DE LETTO David"},"Open",833,"SARDI DE LETTO","David","ALC WATTRELOS - SUBBUTEO LILLE METROPOLE","FRA",6]
[null,"Open - TSELEPIDIS Nikolaos","TSELEPIDIS Nikolaos","Open",833,"TSELEPIDIS","Nikolaos","Scarlet Battalion SC","GRE",6]
[null,"Open - IERVESE Massimiliano","IERVESE Massimiliano","Open",833,"IERVESE","Massimiliano","Ves Gentes","ITA",6]
[null,"Open - CHIAPPETTA Gabriel","CHIAPPETTA Gabriel","Open",833,"CHIAPPETTA","Gabriel","Paris Université Club","FRA",6]
[null,"Open - POMMIER Stéphane","POMMIER Stéphane","Open",833,"POMMIER","Stéphane","FTC Caen","FRA",6]
[null,"Open - MAZZEO Bruno","MAZZEO Bruno","Open",833,"MAZZEO","Bruno","TSC Stella Artois Milano","ITA",6]
[null,"Open - WRIGHT Chad","WRIGHT Chad","Open",833,"WRIGHT","Chad","Glasgow TSA","SCO",6]
[null,"Open - HUNTER David","HUNTER David","Open",833,"HUNTER","David","Wolverhampton Table Football Club","ENG",6]
[null,"Open - COLOSSI Nicolò","COLOSSI Nicolò","Open",833,"COLOSSI","Nicolò","SC Bari","ITA",6]
[null,"Open - BONDI Frédéric","BONDI Frédéric","Open",833,"BONDI","Frédéric","Subbuteo Le Cannet Côte d'Azur","FRA",6]
[null,"Open - PANARETOS Panayiotis","PANARETOS Panayiotis","Open",833,"PANARETOS","Panayiotis","Famagusta TFC","CYP",6]
[null,"Open - BRESCIA Guido","BRESCIA Guido","Open",833,"BRESCIA","Guido","CS SC Serenissima Mestre","ITA",6]
[null,"Open - LOAREC Yann","LOAREC Yann","Open",833,"LOAREC","Yann","Celtic Combourg CFT","FRA",6]
[null,"Open - BEAUVAIS Ludovic","BEAUVAIS Ludovic","Open",833,"BEAUVAIS","Ludovic","Subbuteo Le Cannet Côte d'Azur","FRA",6]
[null,"Open - MICATI Giovanni","MICATI Giovanni","Open",833,"MICATI","Giovanni","Subbuteo Club Pescara","ITA",6]
[null,"Open - COLASANTI Alessio","COLASANTI Alessio","Open",833,"COLASANTI","Alessio","CS Virtus Rieti","ITA",6]
[null,"Open - PETRINI Mauro","PETRINI Mauro","Open",833,"PETRINI","Mauro","Subbuteo Club Labronico","ITA",6]
[null,"Open - AUZILLEAU Vincent","AUZILLEAU Vincent","Open",833,"AUZILLEAU","Vincent","Football de Table Aquitaine","FRA",6]
[null,"Open - MARVILLE Thibaut","MARVILLE Thibaut","Open",833,"MARVILLE","Thibaut","ALC Wattrelos - Subbuteo Lille Metropole","FRA",6]
[null,"Open - DHONDT Raphaël","DHONDT Raphaël","Open",833,"DHONDT","Raphaël","Templeuve United TSC","BEL",6]
[null,"Open - ROPER Richard","ROPER Richard","Open",833,"ROPER","Richard","Wolverhampton Table Football Club","ENG",6]
[null,"Open - GERRETS Mikey","GERRETS Mikey","Open",833,"GERRETS","Mikey","MVV Rijnmond","NED",6]
[null,"Open - STYLIANOU Kyriacos","STYLIANOU Kyriacos","Open",833,"STYLIANOU","Kyriacos","Famagusta TFC","CYP",6]
[null,"Open - MONCHALIN Tristan","MONCHALIN Tristan","Open",833,"MONCHALIN","Tristan","FTC Saint-Symphorien-sur-Coise","FRA",6]
[null,"Open - PARPERIS Dimitris","PARPERIS Dimitris","Open",833,"PARPERIS","Dimitris","Nicosia TFC","CYP",6]
[null,"Open - YAMAZOE Norio","YAMAZOE Norio","Open",833,"YAMAZOE","Norio","Fukushima Table Football Club","JPN",6]
[null,"Open - CASALE Simone","CASALE Simone","Open",833,"CASALE","Simone","TSC Stella Artois Milano","ITA",6]
[null,"Open - ISHIDA Kazuaki","ISHIDA Kazuaki","Open",833,"ISHIDA","Kazuaki","SAITAMA MARINES","JPN",6]
[null,"Open - LAFONTAINE Emmanuel","LAFONTAINE Emmanuel","Open",833,"LAFONTAINE","Emmanuel","FTC Caen","FRA",6]
[null,"Open - MARICONDA Nicola","MARICONDA Nicola","Open",833,"MARICONDA","Nicola","Pinco Devils Table Soccer","ITA",6]
[null,"Open - MONCHALIN Jérôme","MONCHALIN Jérôme","Open",833,"MONCHALIN","Jérôme","FTC Saint-Symphorien-sur-Coise","FRA",6]
[null,"Open - BARROT Michel","BARROT Michel","Open",833,"BARROT","Michel","Free Agent","FRA",6]
[null,"Open - ROCCHI Roberto","ROCCHI Roberto","Open",833,"ROCCHI","Roberto","TSC Stella Artois Milano","ITA",6]
[null,"Open - KALOPSIDIOTIS Marcos","KALOPSIDIOTIS Marcos","Open",833,"KALOPSIDIOTIS","Marcos","Famagusta TFC","CYP",6]
[null,"Open - KARASAVVAS Konstantinos","KARASAVVAS Konstantinos","Open",833,"KARASAVVAS","Konstantinos","Athinaikos CS","GRE",6]
[null,"Open - BORBONES Ferran","BORBONES Ferran","Open",833,"BORBONES","Ferran","Barcelona FT","ESP",6]
[null,"Open - MURA Massimo","MURA Massimo","Open",833,"MURA","Massimo","Trento Subbuteo","ITA",6]
[null,"Open - FLEMER Marian","FLEMER Marian","Open",833,"FLEMER","Marian","Sparta Spreeathen 74/82","GER",6]
[null,"Open - ZAVOS Giorgos","ZAVOS Giorgos","Open",833,"ZAVOS","Giorgos","Scarlet Battalion SC","GRE",6]
[null,"Open - POLSINELLI Denis","POLSINELLI Denis","Open",833,"POLSINELLI","Denis","FTC Saint-Symphorien-sur-Coise","FRA",6]
[null,"Open - MENDITTO Francesco","MENDITTO Francesco","Open",833,"MENDITTO","Francesco","Master Sanremo","ITA",6]
[null,"Open - FERRUCCI Marco","FERRUCCI Marco","Open",833,"FERRUCCI","Marco","TS Napoli Fighters","ITA",6]
[null,"Open - KASTELLANOS Antonios","KASTELLANOS Antonios","Open",833,"KASTELLANOS","Antonios","Olympia CS","GRE",6]
[null,"Open - CAURLA Ismaele","CAURLA Ismaele","Open",833,"CAURLA","Ismaele","Trento Subbuteo","ITA",6]
[null,"Open - AZZARO Arturo","AZZARO Arturo","Open",833,"AZZARO","Arturo","CT Torino 2009","ITA",6]
[null,"Open - THOM Craig","THOM Craig","Open",833,"THOM","Craig","Dundee Utd TFC","SCO",6]
[null,"Open - BALL Jonny","BALL Jonny","Open",833,"BALL","Jonny","Northern Falcons TFC","AUS",6]
[null,"Open - PATRINOS Dimitrios","PATRINOS Dimitrios","Open",833,"PATRINOS","Dimitrios","Olympia CS","GRE",6]
[null,"Open - JAILLET Laurent","JAILLET Laurent","Open",833,"JAILLET","Laurent","Elan Subbutéo Club de Champs-sur-Marne","FRA",6]
[null,"Open - KALISZEWSKI Daniel","KALISZEWSKI Daniel","Open",833,"KALISZEWSKI","Daniel","Irish Premier League","IRL",6]
[null,"Open - FITOS Kostas","FITOS Kostas","Open",833,"FITOS","Kostas","Evia CAN","GRE",6]
[null,"Open - WELBY Ian","WELBY Ian","Open",884,"WELBY","Ian","Stanway Rovers Flickers","ENG",5.5]
[null,"Open - RODGERS Brendan","RODGERS Brendan","Open",884,"RODGERS","Brendan","Derry City","IRL",5.5]
[null,"Open - HEREDIA Miguel Ángel","HEREDIA Miguel Ángel","Open",884,"HEREDIA","Miguel Ángel","CAP Ciudad de Murcia FM","ESP",5.5]
[null,"Open - ARAÚJO Pedro","ARAÚJO Pedro","Open",887,"ARAÚJO","Pedro","CF os Belenenses","POR",5]
[null,"Open - BOWEN Christopher","BOWEN Christopher","Open",887,"BOWEN","Christopher","Kent Invicta TFC","ENG",5]
[null,"Open - FENTON Alex","FENTON Alex","Open",887,"FENTON","Alex","Langton Green Subbuteo Club","ENG",5]
[null,"Open - ALCOLEA MARTÍNEZ Juan Carlos","ALCOLEA MARTÍNEZ Juan Carlos","Open",887,"ALCOLEA MARTÍNEZ","Juan Carlos","CAP Ciudad de Murcia FM","ESP",5]
[null,"Open - HEARD Nathan","HEARD Nathan","Open",887,"HEARD","Nathan","Northern Phoenix TFC","AUS",5]
[null,"Open - SORIA GARCÍA Alfredo","SORIA GARCÍA Alfredo","Open",887,"SORIA GARCÍA","Alfredo","AC Los Remedios FM","ESP",5]
[null,"Open - MENGELE Brian","MENGELE Brian","Open",887,"MENGELE","Brian","Maryland SC","USA",5]
[null,"Open - GARCÍA LUQUE Rafael","GARCÍA LUQUE Rafael","Open",887,"GARCÍA LUQUE","Rafael","AC Los Remedios FM","ESP",5]
[null,"Open - GÄHWILER Clinton","GÄHWILER Clinton","Open",887,"GÄHWILER","Clinton","Cape Town City Subbuteo Club","SUI",5]
[null,"Open - YOSHIOKA Haru","YOSHIOKA Haru","Open",887,"YOSHIOKA","Haru","MARADONA TOKYO","JPN",5]
[null,{"$f":"CONCATENATE(D903,\" - \",C903)","v":"Open - METTER Matt"},{"$f":"CONCATENATE(UPPER(F903),\" \",G903)","v":"METTER Matt"},"Open",887,"METTER","Matt","Melbourne TFC","AUS",5]
[null,"Open - YASUDA Naoto","YASUDA Naoto","Open",887,"YASUDA","Naoto","MARADONA TOKYO","JPN",5]
[null,"Open - POUPART Lea","POUPART Lea","Open",887,"POUPART","Lea","Celtic Combourg CFT","FRA",5]
[null,"Open - MIMA Taku","MIMA Taku","Open",887,"MIMA","Taku","MARADONA TOKYO","JPN",5]
[null,"Open - ROMERA Raúl","ROMERA Raúl","Open",887,"ROMERA","Raúl","Subbuteo Club Almería","ESP",5]
[null,"Open - DREYER Cedric","DREYER Cedric","Open",887,"DREYER","Cedric","Guebwiller Alsace Subbuteo Club","FRA",5]
[null,"Open - EBEJER Larson","EBEJER Larson","Open",887,"EBEJER","Larson","Bormla SC","MLT",5]
[null,"Open - TROESTLER Pierre","TROESTLER Pierre","Open",887,"TROESTLER","Pierre","Mulhouse Subbuteo by ASPTT","FRA",5]
[null,"Open - DAVID WRIGHT No Licence","DAVID WRIGHT No Licence","Open",887,"David Wright","No Licence","No Club",null,5]
[null,"Open - MAGEE Paul","MAGEE Paul","Open",887,"MAGEE","Paul","The Tumbleweeds","AUS",5]
[null,"Open - FITCH Robert","FITCH Robert","Open",887,"FITCH","Robert","Langton Green Subbuteo Club","ENG",5]
[null,"Open - MIGUEL ANGEL GAYA No Licence","MIGUEL ANGEL GAYA No Licence","Open",887,"Miguel Angel Gaya","No Licence","No Club",null,5]
[null,"Open - PHOKOS John","PHOKOS John","Open",887,"PHOKOS","John","The Tumbleweeds","AUS",5]
[null,"Open - GEORGANOUDIS Nikolaos","GEORGANOUDIS Nikolaos","Open",887,"GEORGANOUDIS","Nikolaos","Scarlet Battalion SC","GRE",5]
[null,"Open - PHILLIPS Mick","PHILLIPS Mick","Open",887,"PHILLIPS","Mick","Subbuteo Adelaide TFC","AUS",5]
[null,"Open - SWOPE Zachary","SWOPE Zachary","Open",887,"SWOPE","Zachary","Maryland SC","USA",5]
[null,"Open - SHALEV Tom","SHALEV Tom","Open",887,"SHALEV","Tom","Melbourne TFC","AUS",5]
[null,"Open - MARTINELLI Luca","MARTINELLI Luca","Open",887,"MARTINELLI","Luca","Langton Green Subbuteo Club","ITA",5]
[null,"Open - GROSDENT Luc","GROSDENT Luc","Open",887,"GROSDENT","Luc","Wamme SC","BEL",5]
[null,"Open - LONGO Santo","LONGO Santo","Open",887,"LONGO","Santo","SC Catania 1987","ITA",5]
[null,"Open - BENEDI Christian","BENEDI Christian","Open",887,"BENEDI","Christian","Sporting America TSC","USA",5]
[null,"Open - MITSUOGI Ryoga","MITSUOGI Ryoga","Open",887,"MITSUOGI","Ryoga","ASAKUSA ZOO TFC","JPN",5]
[null,"Open - ANTÚNEZ Antonio","ANTÚNEZ Antonio","Open",887,"ANTÚNEZ","Antonio","AC Los Remedios FM","ESP",5]
[null,"Open - SANTORO Orazio","SANTORO Orazio","Open",887,"SANTORO","Orazio","Subbuteo Club Reggio Calabria","ITA",5]
[null,"Open - CHUGANI Chandru G","CHUGANI Chandru G","Open",887,"CHUGANI","Chandru G","SG Lions TFC","SGP",5]
[null,"Open - VLASOV Evgenii","VLASOV Evgenii","Open",887,"VLASOV","Evgenii","Lakhta Subbuteo TFC","RUS",5]
[null,"Open - GÜTL Herbert","GÜTL Herbert","Open",887,"GÜTL","Herbert","TSC Royal 78 Kaisermühlen","AUT",5]
[null,"Open - AVELLANO Leon","AVELLANO Leon","Open",887,"AVELLANO","Leon","Europa FC TSC","GIB",5]
[null,"Open - ELMER Imojjen","ELMER Imojjen","Open",887,"ELMER","Imojjen","The Tumbleweeds","AUS",5]
[null,"Open - GRUNBACH Adrian","GRUNBACH Adrian","Open",887,"GRUNBACH","Adrian","Northern Falcons TFC","AUS",5]
[null,"Open - KOUTZAS Billy","KOUTZAS Billy","Open",887,"KOUTZAS","Billy","Sydney TFC","AUS",5]
[null,"Open - NATALE Carmelo","NATALE Carmelo","Open",887,"NATALE","Carmelo","Barcellona Calcio Tavolo","ITA",5]
[null,"Open - FLETCHER Colin","FLETCHER Colin","Open",887,"FLETCHER","Colin","TSPA White Star","ENG",5]
[null,"Open - LEGALL Eliott","LEGALL Eliott","Open",887,"LEGALL","Eliott","Celtic Combourg CFT","FRA",5]
[null,"Open - DI MAGGIO Maximos","DI MAGGIO Maximos","Open",887,"DI MAGGIO","Maximos","Noctuas Athens TSC","GRE",5]
[null,"Open - GOUTZIOULIS Georgios","GOUTZIOULIS Georgios","Open",887,"GOUTZIOULIS","Georgios","Athinaikos CS","GRE",5]
[null,"Open - PINTO Juan Carlos","PINTO Juan Carlos","Open",887,"PINTO","Juan Carlos","Moralzarzal SCAD","ESP",5]
[null,"Open - NATOLI Cesare","NATOLI Cesare","Open",887,"NATOLI","Cesare","Messina Table Soccer","ITA",5]
[null,"Open - BOULANGER Richard","BOULANGER Richard","Open",935,"BOULANGER","Richard","Wamme SC","BEL",4.5]
[null,"Open - TSIAKALOS Panagiotis","TSIAKALOS Panagiotis","Open",935,"TSIAKALOS","Panagiotis","Glyfada United TSC","GRE",4.5]
[null,"Open - AHMAD Mohd Ezan","AHMAD Mohd Ezan","Open",935,"AHMAD","Mohd Ezan","Jurong Central SC","SGP",4.5]
[null,"Open - SINGH Melvindepal","SINGH Melvindepal","Open",935,"SINGH","Melvindepal","SG Lions TFC","SGP",4.5]
[null,"Open - MARLAIR Mathieu","MARLAIR Mathieu","Open",935,"MARLAIR","Mathieu","JSC Rochefort","BEL",4.5]
[null,"Open - GRANT Kevin","GRANT Kevin","Open",935,"GRANT","Kevin","Central Victoria TFC","AUS",4.5]
[null,"Open - ZUNINO Andrew","ZUNINO Andrew","Open",935,"ZUNINO","Andrew","Sporting America TSC","USA",4.5]
[null,"Open - GONINAN Jonathan","GONINAN Jonathan","Open",935,"GONINAN","Jonathan","Outer Banks SC","USA",4.5]
[null,"Open - GREER Ian","GREER Ian","Open",943,"GREER","Ian","Derry City","NIR",4]
[null,"Open - BARQUEIRO Marco","BARQUEIRO Marco","Open",943,"BARQUEIRO","Marco","Langton Green Subbuteo Club","ENG",4]
[null,"Open - CASAS José","CASAS José","Open",943,"CASAS","José","AFT Turia 1981","ESP",4]
[null,"Open - GARNIER Stéphanie","GARNIER Stéphanie","Open",943,"GARNIER","Stéphanie","Tiburones FM","FRA",4]
[null,"Open - YOSHIDA Takashi","YOSHIDA Takashi","Open",943,"YOSHIDA","Takashi","Fukushima Table Football Club","JPN",4]
[null,"Open - BIGNARDI Samuele","BIGNARDI Samuele","Open",943,"BIGNARDI","Samuele","Rebels Genova","ITA",4]
[null,"Open - CASCALHEIRA Steven","CASCALHEIRA Steven","Open",943,"CASCALHEIRA","Steven","free agent","NZL",4]
[null,"Open - GRANT Stewart","GRANT Stewart","Open",943,"GRANT","Stewart","RAS (Rochford & Southend) Casual Subbuteo Club","ENG",4]
[null,"Open - TOSIOUDIS Nikolaos","TOSIOUDIS Nikolaos","Open",943,"TOSIOUDIS","Nikolaos","Larissa TFC","GRE",4]
[null,"Open - SMALLEY Ian","SMALLEY Ian","Open",943,"SMALLEY","Ian","Yorkshire Phoenix and Dewsbury Moor TFC","ENG",4]
[null,"Open - PACELLA Marco","PACELLA Marco","Open",943,"PACELLA","Marco","Subbuteo Club Basilicata","ITA",4]
[null,"Open - HARKER Russ","HARKER Russ","Open",943,"HARKER","Russ","Yorkshire Phoenix and Dewsbury Moor TFC","ENG",4]
[null,"Open - GUIO Lorenzo","GUIO Lorenzo","Open",943,"GUIO","Lorenzo","Subbuteisti Modena 1982","ITA",4]
[null,"Open - COOPER John","COOPER John","Open",943,"COOPER","John","TSPA White Star","ENG",4]
[null,"Open - COLWELL Martin","COLWELL Martin","Open",943,"COLWELL","Martin","Langton Green Subbuteo Club","ENG",4]
[null,"Open - ERMINIONE Eduardo","ERMINIONE Eduardo","Open",943,"ERMINIONE","Eduardo","AS Cosenza","ITA",4]
[null,"Open - MCNEIL Nick","MCNEIL Nick","Open",943,"MCNEIL","Nick","Northern Line Flickers TFC","NZL",4]
[null,"Open - MARTINELLI Antonio","MARTINELLI Antonio","Open",943,"MARTINELLI","Antonio","SC Bari","ITA",4]
[null,{"$f":"CONCATENATE(D967,\" - \",C967)","v":"Open - WALSH Stuart"},{"$f":"CONCATENATE(UPPER(F967),\" \",G967)","v":"WALSH Stuart"},"Open",943,"WALSH","Stuart","Yorkshire Phoenix and Dewsbury Moor TFC","ENG",4]
[null,"Open - FUMAI Matteo","FUMAI Matteo","Open",943,"FUMAI","Matteo","GCT DLF Gorizia","ITA",4]
[null,"Open - MCCARTNEY David","MCCARTNEY David","Open",943,"MCCARTNEY","David","CHASERS (Chadwell Heath & South Essex, Romford Subbuteo) Club","ENG",4]
[null,"Open - JIGE Keita","JIGE Keita","Open",943,"JIGE","Keita","MARADONA TOKYO","JPN",4]
[null,"Open - BARATTUCCI Alberto","BARATTUCCI Alberto","Open",943,"BARATTUCCI","Alberto","Ves Gentes","ITA",4]
[null,"Open - LAPORTA Alfred","LAPORTA Alfred","Open",943,"LAPORTA","Alfred","Free Agent","ESP",4]
[null,"Open - TOLIAS Dimitrios","TOLIAS Dimitrios","Open",943,"TOLIAS","Dimitrios","SG '94 Hannover","GER",4]
[null,"Open - SALATINO Daniele","SALATINO Daniele","Open",943,"SALATINO","Daniele","SC Bari","ITA",4]
[null,"Open - MELLIOS Stavros","MELLIOS Stavros","Open",943,"MELLIOS","Stavros","Crimson Horses","GRE",4]
[null,"Open - ISHIKAWA Kyohei","ISHIKAWA Kyohei","Open",943,"ISHIKAWA","Kyohei","Tokyo Sparkling Shooters","JPN",4]
[null,"Open - SANI Lorenzo","SANI Lorenzo","Open",943,"SANI","Lorenzo","SC Sombrero","ITA",4]
[null,"Open - WULFF Noah","WULFF Noah","Open",943,"WULFF","Noah","SG '94 Hannover","GER",4]
[null,"Open - LECCE Pasquale","LECCE Pasquale","Open",943,"LECCE","Pasquale","GCT DLF Gorizia","ITA",4]
[null,"Open - IZARD Paul","IZARD Paul","Open",943,"IZARD","Paul","Langton Green Subbuteo Club","ENG",4]
[null,"Open - MARUYAMA Takahiro","MARUYAMA Takahiro","Open",943,"MARUYAMA","Takahiro","MARADONA TOKYO","JPN",4]
[null,"Open - RAMOS Moisés","RAMOS Moisés","Open",943,"RAMOS","Moisés","SC Barakaldo","ESP",4]
[null,"Open - MIYAIRI Masaharu","MIYAIRI Masaharu","Open",943,"MIYAIRI","Masaharu","Tokyo Sparkling Shooters","JPN",4]
[null,"Open - ELTON David","ELTON David","Open",943,"ELTON","David","Irish Premier League","IRL",4]
[null,"Open - MCKENZIE Ronnie","MCKENZIE Ronnie","Open",943,"MCKENZIE","Ronnie","Glasgow TSA","SCO",4]
[null,"Open - COOKE Rob","COOKE Rob","Open",943,"COOKE","Rob","Northern Line Flickers TFC","NZL",4]
[null,"Open - CAULFIELD Paul","CAULFIELD Paul","Open",943,"CAULFIELD","Paul","Yorkshire Phoenix and Dewsbury Moor TFC","ENG",4]
[null,"Open - WRIGHT Craig","WRIGHT Craig","Open",943,"WRIGHT","Craig","Northern Line Flickers TFC","NZL",4]
[null,"Open - HAWCROFT Adrian","HAWCROFT Adrian","Open",943,"HAWCROFT","Adrian","Yorkshire Phoenix and Dewsbury Moor TFC","ENG",4]
[null,"Open - GARCÍA CORREDERA Rafael","GARCÍA CORREDERA Rafael","Open",943,"GARCÍA CORREDERA","Rafael","AC Los Remedios FM","ESP",4]
[null,"Open - BORGNA Maurizio","BORGNA Maurizio","Open",943,"BORGNA","Maurizio","CT Torino 2009","ITA",4]
[null,"Open - DE JONG Martijn","DE JONG Martijn","Open",943,"DE JONG","Martijn","Dutch Legends","NED",4]
[null,"Open - LANNOY Frank","LANNOY Frank","Open",943,"LANNOY","Frank","SC Temploux","BEL",4]
[null,"Open - SPILLER Alessandro","SPILLER Alessandro","Open",943,"SPILLER","Alessandro","ASD Triestina Subbuteo","ITA",4]
[null,"Open - CAPOFERRI Alberto","CAPOFERRI Alberto","Open",943,"CAPOFERRI","Alberto","Rebels Genova","ITA",4]
[null,"Open - FOUTRAKIS Aggelos","FOUTRAKIS Aggelos","Open",943,"FOUTRAKIS","Aggelos","Thessaloniki SC TSC","GRE",4]
[null,"Open - KECHRIS Konstantinos","KECHRIS Konstantinos","Open",943,"KECHRIS","Konstantinos","SPQR MMIX Roma","GRE",4]
[null,"Open - MARSHALL John","MARSHALL John","Open",943,"MARSHALL","John","Golazzo SC","SCO",4]
[null,"Open - PÉREZ Héctor","PÉREZ Héctor","Open",943,"PÉREZ","Héctor","Subbuteo Dragons Azuqueca","ESP",4]
[null,"Open - MIYAKE Makoto","MIYAKE Makoto","Open",943,"MIYAKE","Makoto","Yokohama OSC","JPN",4]
[null,"Open - MOORE Gary","MOORE Gary","Open",943,"MOORE","Gary","Irish Premier League","IRL",4]
[null,"Open - PAPADAKIS Manolis","PAPADAKIS Manolis","Open",943,"PAPADAKIS","Manolis","Atlas FTC","GRE",4]
[null,"Open - SALAZAR José Antonio","SALAZAR José Antonio","Open",943,"SALAZAR","José Antonio","SC Barakaldo","ESP",4]
[null,"Open - PAPANIKOLAOU Eleftheria","PAPANIKOLAOU Eleftheria","Open",943,"PAPANIKOLAOU","Eleftheria","Glyfada United TSC","GRE",4]
[null,"Open - PAPPA Chrysoula","PAPPA Chrysoula","Open",943,"PAPPA","Chrysoula","Atlas FTC","GRE",4]
[null,"Open - BOLOGNINO Andrea","BOLOGNINO Andrea","Open",943,"BOLOGNINO","Andrea","CCT Eagles Napoli","ITA",4]
[null,"Open - MARTÍN Eduardo","MARTÍN Eduardo","Open",943,"MARTÍN","Eduardo","SC Barakaldo","ESP",4]
[null,"Open - PINAUSI Marco","PINAUSI Marco","Open",943,"PINAUSI","Marco","GCT DLF Gorizia","ITA",4]
[null,"Open - NG Benny","NG Benny","Open",943,"NG","Benny","Northern Falcons TFC","SGP",4]
[null,"Open - MUKAI Kosuke","MUKAI Kosuke","Open",943,"MUKAI","Kosuke","Tokyo Sunzeol TFC","JPN",4]
[null,"Open - ZAMARA Valentino","ZAMARA Valentino","Open",1005,"ZAMARA","Valentino","H'Attard SC","MLT",3.5]
[null,"Open - MIFSUD Vincent","MIFSUD Vincent","Open",1005,"MIFSUD","Vincent","H'Attard SC","MLT",3.5]
[null,"Open - ESTEBAN Tony","ESTEBAN Tony","Open",1005,"ESTEBAN","Tony","Maryland SC","USA",3.5]
[null,"Open - CORR Barry","CORR Barry","Open",1005,"CORR","Barry","Glasgow TSA","SCO",3.5]
[null,"Open - STEFANIS Konstantinos","STEFANIS Konstantinos","Open",1005,"STEFANIS","Konstantinos","Roligans Ilioupolis TSC","GRE",3.5]
[null,"Open - SKINNER Finley","SKINNER Finley","Open",1005,"SKINNER","Finley","Langton Green Subbuteo Club","ENG",3.5]
[null,"Open - FOSTER Eric","FOSTER Eric","Open",1005,"FOSTER","Eric","Sporting America TSC","USA",3.5]
[null,"Open - GOMI Yohei","GOMI Yohei","Open",1012,"GOMI","Yohei","Yokohama OSC","JPN",3]
[null,"Open - HOLMES Phil","HOLMES Phil","Open",1012,"HOLMES","Phil","TSPA White Star","ENG",3]
[null,"Open - BIN SIDEK Izham","BIN SIDEK Izham","Open",1012,"BIN SIDEK","Izham","SG Lions TFC","SGP",3]
[null,"Open - EVANGELISTI Stefano","EVANGELISTI Stefano","Open",1012,"EVANGELISTI","Stefano","Bologna Tigers Subbuteo","ITA",3]
[null,"Open - LO IACONO Simone","LO IACONO Simone","Open",1012,"LO IACONO","Simone","SS Lazio TFC Roma","ITA",3]
[null,"Open - QUER Oriol","QUER Oriol","Open",1012,"QUER","Oriol","AS Iluro FT","ESP",3]
[null,"Open - BIN NORIZAL Nor Afiq","BIN NORIZAL Nor Afiq","Open",1012,"BIN NORIZAL","Nor Afiq","Jurong Central SC","SGP",3]
[null,"Open - BAVASURYAN K. S.","BAVASURYAN K. S.","Open",1012,"BAVASURYAN","K. S.","Kebun Bahru TFC","SGP",3]
[null,"Open - DOHNER Collin","DOHNER Collin","Open",1012,"DOHNER","Collin","Sporting America TSC","USA",3]
[null,"Open - BELT John","BELT John","Open",1012,"BELT","John","free agent","NZL",3]
[null,"Open - ARGYROPOULOS Vasilios","ARGYROPOULOS Vasilios","Open",1012,"ARGYROPOULOS","Vasilios","Glyfada United TSC","GRE",3]
[null,"Open - BARDUCCI Stefano","BARDUCCI Stefano","Open",1012,"BARDUCCI","Stefano","CS Firenze","ITA",3]
[null,"Open - LUNDY Adam","LUNDY Adam","Open",1012,"LUNDY","Adam","Pedmore TFC","WAL",3]
[null,{"$f":"CONCATENATE(D1031,\" - \",C1031)","v":"Open - SCHITO Riccardo"},{"$f":"CONCATENATE(UPPER(F1031),\" \",G1031)","v":"SCHITO Riccardo"},"Open",1012,"SCHITO","Riccardo","CS Virtus Rieti","ITA",3]
[null,"Open - ROSSI Mark","ROSSI Mark","Open",1012,"ROSSI","Mark","Northern Line Flickers TFC","NZL",3]
[null,"Open - KUMAR Vikkram S","KUMAR Vikkram S","Open",1012,"KUMAR","Vikkram S","Kebun Bahru TFC","SGP",3]
[null,"Open - DIZIER Nathan","DIZIER Nathan","Open",1012,"DIZIER","Nathan","JSC Rochefort","BEL",3]
[null,"Open - LE DE Didier","LE DE Didier","Open",1012,"LE DE","Didier","Football de Table Aquitaine","FRA",3]
[null,"Open - BINTE NORIZAL Naomi Bilqis","BINTE NORIZAL Naomi Bilqis","Open",1012,"BINTE NORIZAL","Naomi Bilqis","Jurong Central SC","SGP",3]
[null,"Open - BIN NORIZAL Nor Aniq","BIN NORIZAL Nor Aniq","Open",1012,"BIN NORIZAL","Nor Aniq","Jurong Central SC","SGP",3]
[null,"Open - PSYCHOPOULOS Ioannis","PSYCHOPOULOS Ioannis","Open",1012,"PSYCHOPOULOS","Ioannis","Thessaloniki SC TSC","GRE",3]
[null,"Open - GENART Alex","GENART Alex","Open",1012,"GENART","Alex","SC Lion's Eugies","BEL",3]
[null,"Open - MAIANDI Fabrizio","MAIANDI Fabrizio","Open",1012,"MAIANDI","Fabrizio","ASD CT Aosta Warriors","ITA",3]
[null,"Open - BERGAMASCO Enrico","BERGAMASCO Enrico","Open",1012,"BERGAMASCO","Enrico","CS SC Serenissima Mestre","ITA",3]
[null,"Open - SUFFRITTI Matteo","SUFFRITTI Matteo","Open",1012,"SUFFRITTI","Matteo","TSC Stella Artois Milano","ITA",3]
[null,"Open - VISANI Davide","VISANI Davide","Open",1012,"VISANI","Davide","CS Firenze","ITA",3]
[null,"Open - ERBÌ Donato","ERBÌ Donato","Open",1012,"ERBÌ","Donato","ASD CT Aosta Warriors","ITA",3]
[null,"Open - LO CASCIO Emanuele","LO CASCIO Emanuele","Open",1012,"LO CASCIO","Emanuele","SPQR MMIX Roma","ITA",3]
[null,"Open - FURINI Davide","FURINI Davide","Open",1012,"FURINI","Davide","Subbito Gol Ferrara","ITA",3]
[null,"Open - FONTANA Antonino","FONTANA Antonino","Open",1012,"FONTANA","Antonino","SC Bagheria","ITA",3]
[null,"Open - BIN ISNIN Azhari","BIN ISNIN Azhari","Open",1012,"BIN ISNIN","Azhari","Kebun Bahru TFC","SGP",3]
[null,"Open - VISENTIN Davide","VISENTIN Davide","Open",1012,"VISENTIN","Davide","Subbito Gol Ferrara","ITA",3]
[null,"Open - BUSSOTTI Michele","BUSSOTTI Michele","Open",1012,"BUSSOTTI","Michele","CS Virtus Rieti","ITA",3]
[null,"Open - GRÜNBERG Daniela","GRÜNBERG Daniela","Open",1012,"GRÜNBERG","Daniela","BSC Schwalbach","GER",3]
[null,"Open - LEPORE Massimiliano","LEPORE Massimiliano","Open",1012,"LEPORE","Massimiliano","Bologna Tigers Subbuteo","ITA",3]
[null,"Open - ALSINA Guillem","ALSINA Guillem","Open",1047,"ALSINA","Guillem","Barcelona FT","ESP",2.5]
[null,"Open - CAMPOS Ricardo","CAMPOS Ricardo","Open",1047,"CAMPOS","Ricardo","CD Olivais Moscavide","POR",2.5]
[null,"Open - MARTÍNEZ Teresa","MARTÍNEZ Teresa","Open",1047,"MARTÍNEZ","Teresa","AC Los Remedios FM","ESP",2.5]
[null,"Open - LAMPIS Fotis","LAMPIS Fotis","Open",1047,"LAMPIS","Fotis","Free Agent","GRE",2.5]
[null,"Open - TEKOS Lambros","TEKOS Lambros","Open",1047,"TEKOS","Lambros","Crimson Horses","GRE",2.5]
[null,"Open - LAMPIS Diamantis","LAMPIS Diamantis","Open",1047,"LAMPIS","Diamantis","Free Agent","GRE",2.5]
[null,"Open - KAROUZOS Christos","KAROUZOS Christos","Open",1047,"KAROUZOS","Christos","Athinaikos CS","GRE",2.5]
[null,"Open - TASTSOGLOU Michail","TASTSOGLOU Michail","Open",1047,"TASTSOGLOU","Michail","Subbuteurs Athens TSC","GRE",2.5]
[null,"Open - PEREIRA Diogo","PEREIRA Diogo","Open",1047,"PEREIRA","Diogo","CD Olivais Moscavide","POR",2.5]
[null,"Open - OCENASEK Katharina","OCENASEK Katharina","Open",1047,"OCENASEK","Katharina","TSC Royal 78 Kaisermühlen","AUT",2.5]
[null,"Open - CIPULAT Emanuele","CIPULAT Emanuele","Open",1057,"CIPULAT","Emanuele","Pinco Devils Table Soccer","ITA",2]
[null,"Open - PORCELLI Giuseppe","PORCELLI Giuseppe","Open",1057,"PORCELLI","Giuseppe","Subbuteo Vomero","ITA",2]
[null,"Open - WIGHTMAN Harry","WIGHTMAN Harry","Open",1057,"WIGHTMAN","Harry","Melbourne TFC","AUS",2]
[null,"Open - ELEFTHERIOU Andreas","ELEFTHERIOU Andreas","Open",1057,"ELEFTHERIOU","Andreas","Piraeus Lions TSC","GRE",2]
[null,"Open - MCKENZIE Fraser","MCKENZIE Fraser","Open",1057,"MCKENZIE","Fraser","Glasgow TSA","SCO",2]
[null,"Open - OSBORNE Richard","OSBORNE Richard","Open",1057,"OSBORNE","Richard","Gibraltar TSA","GIB",2]
[null,"Open - MICHELETTI Oriano","MICHELETTI Oriano","Open",1057,"MICHELETTI","Oriano","SC Labronico","SCO",2]
[null,"Open - VILLARD Eric","VILLARD Eric","Open",1057,"VILLARD","Eric","Club Stéphanois Subbuteo - ALC","FRA",2]
[null,"Open - BRANDI Luigi","BRANDI Luigi","Open",1057,"BRANDI","Luigi","TS Napoli Fighters","ITA",2]
[null,"Open - AMANO Ryota","AMANO Ryota","Open",1057,"AMANO","Ryota","Yokohama OSC","JPN",2]
[null,"Open - SCHILIRÒ Giorgio","SCHILIRÒ Giorgio","Open",1057,"SCHILIRÒ","Giorgio","SC Bagheria","ITA",2]
[null,"Open - BLASCO Rafael","BLASCO Rafael","Open",1057,"BLASCO","Rafael","Free Agent","ESP",2]
[null,"Open - HESLOP Thomas","HESLOP Thomas","Open",1057,"HESLOP","Thomas","North Shields STF","ENG",2]
[null,"Open - GAMMAROTA Fabrizio","GAMMAROTA Fabrizio","Open",1057,"GAMMAROTA","Fabrizio","Atletico Pisa","ITA",2]
[null,"Open - JAKUBOWSKI Michael","JAKUBOWSKI Michael","Open",1057,"JAKUBOWSKI","Michael","Sporting America TSC","USA",2]
[null,"Open - MISHIMA Mitsuki","MISHIMA Mitsuki","Open",1057,"MISHIMA","Mitsuki","Yokohama OSC","JPN",2]
[null,"Open - PEFANIS Konstantinos","PEFANIS Konstantinos","Open",1057,"PEFANIS","Konstantinos","Charilaos Trikoupis","GRE",2]
[null,"Open - COPE David","COPE David","Open",1057,"COPE","David","Worthing Fivestar","ENG",2]
[null,"Open - DE GIOSA Davide","DE GIOSA Davide","Open",1057,"DE GIOSA","Davide","SC Bari","ITA",2]
[null,"Open - SCARBATH Jake","SCARBATH Jake","Open",1057,"SCARBATH","Jake","Maryland SC","USA",2]
[null,"Open - VITULANO Gianpaolo","VITULANO Gianpaolo","Open",1057,"VITULANO","Gianpaolo","Stabiae","ITA",2]
[null,"Open - SMITH Jonathan","SMITH Jonathan","Open",1057,"SMITH","Jonathan","Boise USL 95","USA",2]
[null,"Open - PEROTTI Marco","PEROTTI Marco","Open",1057,"PEROTTI","Marco","SS Lazio TFC Roma","ITA",2]
[null,"Open - CANICCHIO Lucio","CANICCHIO Lucio","Open",1057,"CANICCHIO","Lucio","ASD SC Salernitana","ITA",2]
[null,"Open - PERICCIOLI Luca","PERICCIOLI Luca","Open",1057,"PERICCIOLI","Luca","TSC Black Rose 98 Roma","ITA",2]
[null,"Open - ARGIRIS Konstantinos","ARGIRIS Konstantinos","Open",1057,"ARGIRIS","Konstantinos","Thessaloniki SC TSC","GRE",2]
[null,"Open - KOUTROUMANOS Leonidas","KOUTROUMANOS Leonidas","Open",1057,"KOUTROUMANOS","Leonidas","Piraeus Lions TSC","GRE",2]
[null,"Open - GIORGIANNI Andrea","GIORGIANNI Andrea","Open",1057,"GIORGIANNI","Andrea","Messina Table Soccer","ITA",2]
[null,"Open - LEONARD David","LEONARD David","Open",1057,"LEONARD","David","Free Agent","USA",2]
[null,"Open - BARI Baver","BARI Baver","Open",1057,"BARI","Baver","Glasgow TSA","SCO",2]
[null,"Open - NANNI Mattia","NANNI Mattia","Open",1057,"NANNI","Mattia","Subbuteo L'aquila Club","ITA",2]
[null,"Open - FRICANO Lorenzo","FRICANO Lorenzo","Open",1057,"FRICANO","Lorenzo","Subbuteo Casale","ITA",2]
[null,{"$f":"CONCATENATE(D1095,\" - \",C1095)","v":"Open - CIABATTONI Luca"},{"$f":"CONCATENATE(UPPER(F1095),\" \",G1095)","v":"CIABATTONI Luca"},"Open",1057,"CIABATTONI","Luca","SC Ascoli","ITA",2]
[null,"Open - TRENTA Corrado","TRENTA Corrado","Open",1057,"TRENTA","Corrado","CS Virtus Rieti","ITA",2]
[null,"Open - GUAGLIARDI Erica","GUAGLIARDI Erica","Open",1057,"GUAGLIARDI","Erica","SC Catania 1987","ITA",2]
[null,"Open - LO PRESTI Francesco","LO PRESTI Francesco","Open",1057,"LO PRESTI","Francesco","SC Bagheria","ITA",2]
[null,"Open - ARIANO Luca","ARIANO Luca","Open",1057,"ARIANO","Luca","Foggia CT","ITA",2]
[null,"Open - PÉREZ MONTERO José","PÉREZ MONTERO José","Open",1094,"PÉREZ MONTERO","José","Subbuteo Club Almería","ESP",1.5]
[null,"Open - SINGH Rei","SINGH Rei","Open",1094,"SINGH","Rei","SG LIons TFC","SGP",1.5]
[null,"Open - KALOGERAKOS Rafail","KALOGERAKOS Rafail","Open",1094,"KALOGERAKOS","Rafail","Roligans Ilioupolis TSC","GRE",1.5]
[null,"Open - CHIARA Claudio","CHIARA Claudio","Open",1094,"CHIARA","Claudio","ASD Siracusa Calcio Tavolo","ITA",1.5]
[null,"Open - LUI Tyler","LUI Tyler","Open",1094,"LUI","Tyler","Mt. Hebron TSC","USA",1.5]
[null,"Open - HOLMES Peter","HOLMES Peter","Open",1094,"HOLMES","Peter","Langton Green Subbuteo Club","ENG",1.5]
[null,"Open - PATEL Shiv","PATEL Shiv","Open",1094,"PATEL","Shiv","Mt. Hebron TSC","USA",1.5]
[null,"Open - RICE Sam","RICE Sam","Open",1094,"RICE","Sam","Maryland SC","USA",1.5]
[null,"Open - ONITSUKA Masao","ONITSUKA Masao","Open",1094,"ONITSUKA","Masao","Yokohama OSC","JPN",1.5]
[null,"Open - BAROSS Zoltán","BAROSS Zoltán","Open",1094,"BAROSS","Zoltán","Budapest Subbuteo","HUN",1.5]
[null,"Open - LEDOIT Cyril","LEDOIT Cyril","Open",1094,"LEDOIT","Cyril","Paris Université Club","FRA",1.5]
[null,"Open - KAKAVAS Ioannis","KAKAVAS Ioannis","Open",1094,"KAKAVAS","Ioannis","Athinaikos CS","GRE",1.5]
[null,"Open - KALOGERAKOS Michail","KALOGERAKOS Michail","Open",1094,"KALOGERAKOS","Michail","Glyfada United TSC","GRE",1.5]
[null,"Open - CHANOS Michail K","CHANOS Michail K","Open",1094,"CHANOS","Michail K","Evia CAN","GRE",1.5]
[null,"Open - GRÜNBERG Gerhard","GRÜNBERG Gerhard","Open",1094,"GRÜNBERG","Gerhard","Subbuteo Club Höpfigheim","GER",1.5]
[null,"Open - MENEGHETTI (62) Alessandro","MENEGHETTI (62) Alessandro","Open",1109,"MENEGHETTI (62)","Alessandro","Bulldogs Vicenza","ITA",1]
[null,"Open - FURLANI Andrea","FURLANI Andrea","Open",1109,"FURLANI","Andrea","Pinco Devils Table Soccer","ITA",1]
[null,"Open - OGANE Katsuhiko","OGANE Katsuhiko","Open",1109,"OGANE","Katsuhiko","Fukushima Table Football Club","JPN",1]
[null,"Open - YOUNG David","YOUNG David","Open",1109,"YOUNG","David","Czech Subbuteo Team 2014","CZE",1]
[null,"Open - ROSSI Filippo","ROSSI Filippo","Open",1109,"ROSSI","Filippo","Subbito Gol Ferrara","ITA",1]
[null,"Open - SMITH Andy","SMITH Andy","Open",1109,"SMITH","Andy","Northern Line Flickers TFC","NZL",1]
[null,"Open - SATO Daiki","SATO Daiki","Open",1109,"SATO","Daiki","Tokyo Sparkling Shooters","JPN",1]
[null,"Open - HLUPIC Jean-Michel","HLUPIC Jean-Michel","Open",1109,"HLUPIC","Jean-Michel","RC Lorraine Subbuteo Club","FRA",1]
[null,"Open - LIMPENS Fabian","LIMPENS Fabian","Open",1109,"LIMPENS","Fabian","Racing White Woluwé Subbuteo","BEL",1]
[null,"Open - DUJARDIN Eric","DUJARDIN Eric","Open",1109,"DUJARDIN","Eric","Les Ducs Chalon-sur-Saône FTSC","FRA",1]
[null,"Open - ELEFTHERIOU Stefanos","ELEFTHERIOU Stefanos","Open",1109,"ELEFTHERIOU","Stefanos","Famagusta TFC","CYP",1]
[null,"Open - PEDETTI Aldo","PEDETTI Aldo","Open",1109,"PEDETTI","Aldo","Guebwiller Alsace Subbuteo Club","FRA",1]
[null,"Open - REGNIER Marc","REGNIER Marc","Open",1109,"REGNIER","Marc","CFT Puylaurens","FRA",1]
[null,"Open - PARMENTIER Fabrice","PARMENTIER Fabrice","Open",1109,"PARMENTIER","Fabrice","Guebwiller Alsace Subbuteo Club","FRA",1]
[null,"Open - TODA Atsushi","TODA Atsushi","Open",1109,"TODA","Atsushi","MARADONA TOKYO","JPN",1]
[null,"Open - MOORE Nicky","MOORE Nicky","Open",1109,"MOORE","Nicky","Irish Premier League","IRL",1]
[null,"Open - YOSHIHIRO Kazuhito","YOSHIHIRO Kazuhito","Open",1109,"YOSHIHIRO","Kazuhito","Tokyo Sparkling Shooters","JPN",1]
[null,"Open - LIM Arthur","LIM Arthur","Open",1109,"LIM","Arthur","SG Lions TFC","SGP",1]
[null,"Open - SUGAWARA Sho","SUGAWARA Sho","Open",1109,"SUGAWARA","Sho","Fukushima Table Football Club","JPN",1]
[null,"Open - CHAPMAN Hadley","CHAPMAN Hadley","Open",1109,"CHAPMAN","Hadley","Langton Green Subbuteo Club","ENG",1]
[null,"Open - UCHYTIL Jiri","UCHYTIL Jiri","Open",1109,"UCHYTIL","Jiri","Czech Subbuteo Team 2014","CZE",1]
[null,"Open - WENLOCK Sean","WENLOCK Sean","Open",1109,"WENLOCK","Sean","Leicester Foxes Subbuteo Club","ENG",1]
[null,"Open - ELEFTHERIOU Demetris","ELEFTHERIOU Demetris","Open",1109,"ELEFTHERIOU","Demetris","Famagusta TFC","CYP",1]
[null,"Open - GENVO Florian","GENVO Florian","Open",1109,"GENVO","Florian","RC Lorraine Subbuteo Club","FRA",1]
[null,"Open - LI PUMA Vittorio Giuseppe","LI PUMA Vittorio Giuseppe","Open",1109,"LI PUMA","Vittorio Giuseppe","GCT DLF Gorizia","ITA",1]
[null,"Open - GIULIANELLI Daniele","GIULIANELLI Daniele","Open",1109,"GIULIANELLI","Daniele","Subbuteo.ch","SUI",1]
[null,"Open - MILLER George","MILLER George","Open",1109,"MILLER","George","Northern Line Flickers TFC","NZL",1]
[null,"Open - GLADWELL Gary","GLADWELL Gary","Open",1109,"GLADWELL","Gary","CHASERS (Chadwell Heath & South Essex, Romford Subbuteo) Club","ENG",1]
[null,"Open - DIRICK Vincent","DIRICK Vincent","Open",1109,"DIRICK","Vincent","ELM'Aye SC","BEL",1]
[null,"Open - DE PAOLI Stephano","DE PAOLI Stephano","Open",1109,"DE PAOLI","Stephano","Trento Subbuteo","ITA",1]
[null,"Open - HOMMA Takumi","HOMMA Takumi","Open",1109,"HOMMA","Takumi","MARADONA TOKYO","JPN",1]
[null,"Open - CASELLI Oscar","CASELLI Oscar","Open",1109,"CASELLI","Oscar","ASD Triestina Subbuteo","ITA",1]
[null,"Open - DI STEFANO Vito","DI STEFANO Vito","Open",1109,"DI STEFANO","Vito","Czech Subbuteo Team 2014","CZE",1]
[null,"Open - CLAYDON Michele","CLAYDON Michele","Open",1109,"CLAYDON","Michele","CHASERS (Chadwell Heath & South Essex, Romford Subbuteo) Club","ENG",1]
[null,"Open - TSUBOI Kentaro","TSUBOI Kentaro","Open",1109,"TSUBOI","Kentaro","Tokyo Sparkling Shooters","JPN",1]
[null,"Open - WEST Mark","WEST Mark","Open",1109,"WEST","Mark","CHASERS (Chadwell Heath & South Essex, Romford Subbuteo) Club","ENG",1]
[null,"Open - SATO Natsumi","SATO Natsumi","Open",1109,"SATO","Natsumi","Tokyo Sparkling Shooters","JPN",1]
[null,"Open - BANKS Tony","BANKS Tony","Open",1109,"BANKS","Tony","London Subbuteo Club","ENG",1]
[null,"Open - ERB Peter","ERB Peter","Open",1109,"ERB","Peter","subbuteo.ch","SUI",1]
[null,"Open - WHALLEY Gareth","WHALLEY Gareth","Open",1109,"WHALLEY","Gareth","Brisbane Subbuteo Club","AUS",1]
[null,"Open - HUET Olivia","HUET Olivia","Open",1109,"HUET","Olivia","ELM'Aye SC","BEL",1]
[null,"Open - RAHMAN Max","RAHMAN Max","Open",1109,"RAHMAN","Max","Langton Green Subbuteo Club","ENG",1]
[null,"Open - ALLEN Trevor","ALLEN Trevor","Open",1109,"ALLEN","Trevor","Chesterfield TFC","ENG",1]
[null,"Open - LEDOIT Augustin","LEDOIT Augustin","Open",1109,"LEDOIT","Augustin","Paris Université Club","FRA",1]
[null,{"$f":"CONCATENATE(D1159,\" - \",C1159)","v":"Open - MCCORMICK James"},{"$f":"CONCATENATE(UPPER(F1159),\" \",G1159)","v":"MCCORMICK James"},"Open",1109,"MCCORMICK","James","Kent Invicta TFC","ENG",1]
[null,"Open - NIKOLAU Marios","NIKOLAU Marios","Open",1109,"NIKOLAU","Marios","Famagusta TFC","CYP",1]
[null,"Open - ORR Gordon","ORR Gordon","Open",1109,"ORR","Gordon","Brisbane Subbuteo Club","AUS",1]
[null,"Open - MYERS Richard","MYERS Richard","Open",1109,"MYERS","Richard","That Retro Place Subbuteo Club","ENG",1]
[null,"Open - DUCKWORTH Riley","DUCKWORTH Riley","Open",1109,"DUCKWORTH","Riley","Free Agent","ENG",1]
[null,"Open - IDOUX Jérémy","IDOUX Jérémy","Open",1109,"IDOUX","Jérémy","RC Lorraine Subbuteo Club","FRA",1]
[null,"Open - TROESTLER Charlotte","TROESTLER Charlotte","Open",1109,"TROESTLER","Charlotte","Mulhouse Subbuteo by ASPTT","FRA",1]
[null,"Open - LAURENT Francis","LAURENT Francis","Open",1109,"LAURENT","Francis","RC Lorraine Subbuteo Club","FRA",1]
[null,"Open - FORSTER-FAKE Andrew","FORSTER-FAKE Andrew","Open",1109,"FORSTER-FAKE","Andrew","Chesterfield TFC","ENG",1]
[null,"Open - LUNARD Thierry","LUNARD Thierry","Open",1109,"LUNARD","Thierry","Les Ducs Chalon-sur-Saône FTSC","FRA",1]
[null,"Open - KOUMAS Maximos","KOUMAS Maximos","Open",1109,"KOUMAS","Maximos","Famagusta TFC","CYP",1]
[null,"Open - DI STEFANO Paolo","DI STEFANO Paolo","Open",1109,"DI STEFANO","Paolo","Czech Subbuteo Team 2014","CZE",1]
[null,"Open - ZIMA Tomas","ZIMA Tomas","Open",1109,"ZIMA","Tomas","Czech Subbuteo Team 2014","CZE",1]
[null,"Open - ROUFOSSE Philippe","ROUFOSSE Philippe","Open",1109,"ROUFOSSE","Philippe","SC Temploux","BEL",1]
[null,"Open - FOECHTERLE Martial","FOECHTERLE Martial","Open",1109,"FOECHTERLE","Martial","Guebwiller Alsace Subbuteo Club","FRA",1]
[null,"Open - ZIMA Lukas","ZIMA Lukas","Open",1109,"ZIMA","Lukas","Czech Subbuteo Team 2014","CZE",1]
[null,"Open - GENVO Stéphane","GENVO Stéphane","Open",1109,"GENVO","Stéphane","RC Lorraine Subbuteo Club","FRA",1]
[null,"Open - CALLOT Francis","CALLOT Francis","Open",1109,"CALLOT","Francis","Guebwiller Alsace Subbuteo Club","FRA",1]
[null,"Open - EDWARDS Nigel","EDWARDS Nigel","Open",1109,"EDWARDS","Nigel","Leicester Foxes Subbuteo Club","ENG",1]
[null,"Open - TURPIN John","TURPIN John","Open",1109,"TURPIN","John","TSPA White Star","ENG",1]
[null,"Open - DENNE Mael","DENNE Mael","Open",1109,"DENNE","Mael","SC Lion's Eugies","BEL",1]
[null,"Open - MATIAS João","MATIAS João","Open",1109,"MATIAS","João","CD Olivais Moscavide","POR",1]
[null,"Open - REGUERA MUÑOZ Manuel","REGUERA MUÑOZ Manuel","Open",1109,"REGUERA MUÑOZ","Manuel","FM La Plazoleta","ESP",1]
[null,"Open - MOORE John","MOORE John","Open",1109,"MOORE","John","Irish Premier League","IRL",1]
[null,"Open - IOAN Alessandro","IOAN Alessandro","Open",1109,"IOAN","Alessandro","GCT DLF Gorizia","ITA",1]
[null,"Open - MOREIRA Erick","MOREIRA Erick","Open",1109,"MOREIRA","Erick","Moralzarzal SCAD","ESP",1]
[null,"Open - GARCIA Cláudio Miguel","GARCIA Cláudio Miguel","Open",1109,"GARCIA","Cláudio Miguel","Sporting Clube De Portugal","POR",1]
[null,"Open - CAMILLERI Emanuel","CAMILLERI Emanuel","Open",1109,"CAMILLERI","Emanuel","Langton Green Subbuteo Club","MLT",1]
[null,"Open - PARRILLA Daniel","PARRILLA Daniel","Open",1109,"PARRILLA","Daniel","Subbuteo Dragons Azuqueca","ESP",1]
[null,"Open - KINRADE Brian","KINRADE Brian","Open",1109,"KINRADE","Brian","Moralzarzal Subbuteo CAD","ENG",1]
[null,"Open - DESPRETZ Chloé","DESPRETZ Chloé","Open",1109,"DESPRETZ","Chloé","Avenir Subbuteo Hennuyer","BEL",1]
[null,"Open - OLEASTRO Carlos","OLEASTRO Carlos","Open",1109,"OLEASTRO","Carlos","CD Olivais Moscavide","POR",1]
[null,"Open - DETTRE Louie","DETTRE Louie","Open",1185,"DETTRE","Louie","Northern Falcons TFC","AUS",0.5]
[null,"Open - PSAILA Clarence","PSAILA Clarence","Open",1185,"PSAILA","Clarence","H`Attard SC","MLT",0.5]
[null,"Open - DIÉGUEZ José Mª","DIÉGUEZ José Mª","Open",1185,"DIÉGUEZ","José Mª","Barcelona FT","ESP",0.5]
[null,"Open - XERRI Luke Joseph","XERRI Luke Joseph","Open",1185,"XERRI","Luke Joseph","H'Attard SC","MLT",0.5]
[null,"Open - AKIMOTO Hina","AKIMOTO Hina","Open",1185,"AKIMOTO","Hina","Yokohama OSC","JPN",0.5]
[null,"Open - NAKAI Hidenori","NAKAI Hidenori","Open",1185,"NAKAI","Hidenori","Yokohama OSC","JPN",0.5]
[null,"Open - OKADA Hiroyuki","OKADA Hiroyuki","Open",1185,"OKADA","Hiroyuki","Yokohama OSC","JPN",0.5]
[null,"Open - PUERTAS Carles","PUERTAS Carles","Open",1185,"PUERTAS","Carles","AS Iluro FT","ESP",0.5]
[null,"Veterans - CALONICO Gianfranco","CALONICO Gianfranco","Veterans",1,"CALONICO","Gianfranco","Master Sanremo","ITA",4117.5]
[null,"Veterans - PISANI Jason","PISANI Jason","Veterans",2,"PISANI","Jason","Bormla SC","MLT",2887]
[null,"Veterans - SCHEEN Daniel","SCHEEN Daniel","Veterans",3,"SCHEEN","Daniel","Tiburones FM","BEL",2803]
[null,"Veterans - AQUILINA Charles","AQUILINA Charles","Veterans",4,"AQUILINA","Charles","Bormla SC","MLT",2407.5]
[null,"Veterans - TORANO Pasquale","TORANO Pasquale","Veterans",5,"TORANO","Pasquale","Subbito Gol Ferrara","ITA",2354]
[null,"Veterans - FIELD John","FIELD John","Veterans",6,"FIELD","John","Tiburones FM","GIB",2021]
[null,"Veterans - MONTAÑO Antonio","MONTAÑO Antonio","Veterans",7,"MONTAÑO","Antonio","Tiburones FM","ESP",1657]
[null,"Veterans - PAPAKONSTANTINOU Lazaros","PAPAKONSTANTINOU Lazaros","Veterans",8,"PAPAKONSTANTINOU","Lazaros","Atlas FTC","GRE",1525]
[null,"Veterans - SCHEEN Pascal","SCHEEN Pascal","Veterans",9,"SCHEEN","Pascal","ST Stembert","BEL",1434]
[null,"Veterans - MATTIANGELI Francesco","MATTIANGELI Francesco","Veterans",10,"MATTIANGELI","Francesco","Bologna Tigers Subbuteo","ITA",1382.5]
[null,"Veterans - PATRUNO Gerardo","PATRUNO Gerardo","Veterans",11,"PATRUNO","Gerardo","Bologna Tigers Subbuteo","ITA",1340]
[null,"Veterans - DIMOPOULOS Periklis","DIMOPOULOS Periklis","Veterans",12,"DIMOPOULOS","Periklis","ACS Perugia 1973","GRE",1301]
[null,"Veterans - PRATS Vicenç","PRATS Vicenç","Veterans",13,"PRATS","Vicenç","Tiburones FM","ESP",1293.5]
[null,"Veterans - BUSCH David","BUSCH David","Veterans",14,"BUSCH","David","Bormla SC","AUT",1145]
[null,"Veterans - KASTELLANOS Antonios","KASTELLANOS Antonios","Veterans",15,"KASTELLANOS","Antonios","Olympia CS","GRE",1114.5]
[null,"Veterans - LAZZARETTI Patrizio","LAZZARETTI Patrizio","Veterans",16,"LAZZARETTI","Patrizio","SS Lazio TFC Roma","ITA",1085]
[null,"Veterans - DOGALI Claudio","DOGALI Claudio","Veterans",17,"DOGALI","Claudio","Master Sanremo","ITA",1037]
[null,"Veterans - CREMONA Massimo","CREMONA Massimo","Veterans",18,"CREMONA","Massimo","H'Attard SC","MLT",1036]
[null,"Veterans - ZAMMIT John","ZAMMIT John","Veterans",19,"ZAMMIT","John","ST Stembert","MLT",965]
[null,"Veterans - CAMILLERI Mario","CAMILLERI Mario","Veterans",20,"CAMILLERI","Mario","TS Messina","MLT",952.5]
[null,"Veterans - PERE Olivier","PERE Olivier","Veterans",21,"PERE","Olivier","Avenir Subbuteo Hennuyer","BEL",948.5]
[null,"Veterans - ALESSI Carlo","ALESSI Carlo","Veterans",22,"ALESSI","Carlo","Master Sanremo","ITA",833.5]
[null,"Veterans - CROATTI Massimiliano","CROATTI Massimiliano","Veterans",23,"CROATTI","Massimiliano","Master Sanremo","ITA",826]
[null,"Veterans - CLARK Darren","CLARK Darren","Veterans",24,"CLARK","Darren","CAP Ciudad de Murcia FM","ENG",781.5]
[null,{"$f":"CONCATENATE(D1223,\" - \",C1223)","v":"Veterans - VARNEY Bob"},{"$f":"CONCATENATE(UPPER(F1223),\" \",G1223)","v":"VARNEY Bob"},"Veterans",25,"VARNEY","Bob","CAP Ciudad de Murcia FM","ENG",780]
[null,"Veterans - ANGELINAS Christos","ANGELINAS Christos","Veterans",26,"ANGELINAS","Christos","Avenir Subbuteo Hennuyer","GRE",746.5]
[null,"Veterans - TORANO Francesco","TORANO Francesco","Veterans",27,"TORANO","Francesco","Master Sanremo","ITA",729.5]
[null,"Veterans - SALAMOURIS Ioannis","SALAMOURIS Ioannis","Veterans",28,"SALAMOURIS","Ioannis","TSC Falcons Athens","GRE",714.5]
[null,"Veterans - MASSART Benoît","MASSART Benoît","Veterans",29,"MASSART","Benoît","SC Temploux","BEL",694.5]
[null,"Veterans - BENITA Raúl","BENITA Raúl","Veterans",30,"BENITA","Raúl","AFT Turia 1981","ESP",624]
[null,"Veterans - STILLER Frank","STILLER Frank","Veterans",31,"STILLER","Frank","Master Sanremo","GER",603.5]
[null,"Veterans - CANICCHIO Lucio","CANICCHIO Lucio","Veterans",32,"CANICCHIO","Lucio","ASD SC Salernitana","ITA",572]
[null,"Veterans - CORRADI Mario","CORRADI Mario","Veterans",33,"CORRADI","Mario","TSC Stella Artois Milano","ITA",536.5]
[null,"Veterans - SANTANICCHIA Cesare","SANTANICCHIA Cesare","Veterans",34,"SANTANICCHIA","Cesare","SC Sombrero","ITA",508]
[null,"Veterans - COLL Ferran","COLL Ferran","Veterans",35,"COLL","Ferran","Tiburones FM","ESP",479.5]
[null,"Veterans - CHARATSIS Panagiotis","CHARATSIS Panagiotis","Veterans",36,"CHARATSIS","Panagiotis","Scarlet Battalion SC","GRE",474.5]
[null,"Veterans - QUATTRINI Francesco","QUATTRINI Francesco","Veterans",37,"QUATTRINI","Francesco","Bologna Tigers Subbuteo","ITA",470]
[null,"Veterans - SANDNER Stefan","SANDNER Stefan","Veterans",38,"SANDNER","Stefan","TSC Royal 78 Kaisermühlen","AUT",469]
[null,"Veterans - DERVIS Adrianos","DERVIS Adrianos","Veterans",39,"DERVIS","Adrianos","Proteas Athens SC","GRE",449.5]
[null,"Veterans - SANTOS Manuel","SANTOS Manuel","Veterans",40,"SANTOS","Manuel","Subbuteo Club Labronico","POR",449]
[null,"Veterans - HINKELMANN Erich","HINKELMANN Erich","Veterans",41,"HINKELMANN","Erich","TSC Phoenix","AUT",416.5]
[null,"Veterans - SANTOS José","SANTOS José","Veterans",42,"SANTOS","José","CF os Belenenses","POR",409]
[null,"Veterans - BELLONI Fabio","BELLONI Fabio","Veterans",43,"BELLONI","Fabio","ACS Perugia 1973","ITA",400]
[null,"Veterans - GRANADOS Juan Carlos","GRANADOS Juan Carlos","Veterans",44,"GRANADOS","Juan Carlos","CAP Ciudad de Murcia FM","ESP",358]
[null,"Veterans - CUENCA Jean Michel","CUENCA Jean Michel","Veterans",45,"CUENCA","Jean Michel","Tiburones FM","ESP",354.5]
[null,"Veterans - KOURABAS Dimitris","KOURABAS Dimitris","Veterans",46,"KOURABAS","Dimitris","Subbuteurs Athens TSC","GRE",353]
[null,"Veterans - LÓPEZ Luis","LÓPEZ Luis","Veterans",47,"LÓPEZ","Luis","Tiburones FM","ESP",338]
[null,"Veterans - NORONHA Nuno","NORONHA Nuno","Veterans",48,"NORONHA","Nuno","GRD 1º Maio Tires","POR",324]
[null,"Veterans - BAMBERZKY Günther","BAMBERZKY Günther","Veterans",49,"BAMBERZKY","Günther","Crimson Horses","AUT",307.5]
[null,"Veterans - THREIS Eric","THREIS Eric","Veterans",50,"THREIS","Eric","ST Stembert","BEL",290.5]
[null,"Veterans - KROMMYDAS Panagiotis","KROMMYDAS Panagiotis","Veterans",51,"KROMMYDAS","Panagiotis","Subbuteo Club Höpfigheim","GER",289]
[null,"Veterans - GÓMEZ Alberto","GÓMEZ Alberto","Veterans",52,"GÓMEZ","Alberto","Subbuteo Dragons Azuqueca","ESP",283]
[null,"Veterans - APATZIS Alexandros","APATZIS Alexandros","Veterans",53,"APATZIS","Alexandros","Subbuteurs Athens TSC","GRE",268]
[null,"Veterans - ROCHEZ Sébastien","ROCHEZ Sébastien","Veterans",54,"ROCHEZ","Sébastien","ST Stembert","BEL",257]
[null,"Veterans - MULASMAJIC Edin","MULASMAJIC Edin","Veterans",55,"MULASMAJIC","Edin","SG '94 Hannover","GER",255.5]
[null,"Veterans - LIM Bernard","LIM Bernard","Veterans",56,"LIM","Bernard","Jurong Central SC","SGP",252]
[null,"Veterans - ZAVOS Giorgos","ZAVOS Giorgos","Veterans",57,"ZAVOS","Giorgos","Scarlet Battalion SC","GRE",251]
[null,"Veterans - DUBOIS Xavier","DUBOIS Xavier","Veterans",58,"DUBOIS","Xavier","FTC Caen","FRA",247]
[null,"Veterans - VIVRON Thierry","VIVRON Thierry","Veterans",59,"VIVRON","Thierry","FTC Issy-les-Moulineaux","FRA",243.5]
[null,"Veterans - BELLOTTO Edoardo","BELLOTTO Edoardo","Veterans",60,"BELLOTTO","Edoardo","CS SC Serenissima Mestre","ITA",226]
[null,"Veterans - BACCHIN Stefano","BACCHIN Stefano","Veterans",61,"BACCHIN","Stefano","Master Sanremo","ITA",223.5]
[null,"Veterans - PEREMANS Yves","PEREMANS Yves","Veterans",62,"PEREMANS","Yves","SC Flanders","BEL",223]
[null,"Veterans - ABREU Luís","ABREU Luís","Veterans",63,"ABREU","Luís","CF os Belenenses","POR",221.5]
[null,"Veterans - BONNICI Adrian","BONNICI Adrian","Veterans",64,"BONNICI","Adrian","Valletta Lions TFC","MLT",210]
[null,"Veterans - DI CÈ Daniele","DI CÈ Daniele","Veterans",65,"DI CÈ","Daniele","Subbuteisti Modena 1982","ITA",208.5]
[null,"Veterans - NASZALYI Eric","NASZALYI Eric","Veterans",66,"NASZALYI","Eric","FTC Issy-les-Moulineaux","FRA",208]
[null,"Veterans - LEE Alan","LEE Alan","Veterans",67,"LEE","Alan","Langton Green Subbuteo Club","ENG",204.5]
[null,"Veterans - ROUFOSSE Philippe","ROUFOSSE Philippe","Veterans",68,"ROUFOSSE","Philippe","SC Temploux","BEL",200.5]
[null,"Veterans - PAPADOPOULOS Georgios","PAPADOPOULOS Georgios","Veterans",69,"PAPADOPOULOS","Georgios","Atlas FTC","GRE",200]
[null,"Veterans - FINCH Justin","FINCH Justin","Veterans",70,"FINCH","Justin","SC Flanders","ENG",187.5]
[null,"Veterans - MARINUCCI Riccardo","MARINUCCI Riccardo","Veterans",71,"MARINUCCI","Riccardo","Bologna Tigers Subbuteo","ITA",187]
[null,"Veterans - SCATAMACCHIA Amerigo","SCATAMACCHIA Amerigo","Veterans",72,"SCATAMACCHIA","Amerigo","AS Cosenza","ITA",184.5]
[null,"Veterans - TRIANTAFILLOU Konstantinos","TRIANTAFILLOU Konstantinos","Veterans",73,"TRIANTAFILLOU","Konstantinos","TSC Falcons Athens","GRE",184]
[null,"Veterans - SANCHEZ Jose Luis","SANCHEZ Jose Luis","Veterans",74,"SANCHEZ","Jose Luis","Europa FC TSC","GIB",182.5]
[null,"Veterans - PSOMIADIS Nikos","PSOMIADIS Nikos","Veterans",75,"PSOMIADIS","Nikos","Subbuteurs Athens TSC","GRE",180.5]
[null,"Veterans - KAPSABELIS Marcos","KAPSABELIS Marcos","Veterans",76,"KAPSABELIS","Marcos","Foggia CT","GRE",180]
[null,"Veterans - DUBOIS Olivier","DUBOIS Olivier","Veterans",77,"DUBOIS","Olivier","SC Temploux","BEL",177.5]
[null,"Veterans - WOUTERS David","WOUTERS David","Veterans",78,"WOUTERS","David","SC Flanders","BEL",174.5]
[null,"Veterans - AMBERNY Jean-Marie","AMBERNY Jean-Marie","Veterans",79,"AMBERNY","Jean-Marie","FTC Issy-les-Moulineaux","FRA",170.5]
[null,"Veterans - BONAVIA Jose Luis","BONAVIA Jose Luis","Veterans",80,"BONAVIA","Jose Luis","Tiburones FM","GIB",167]
[null,"Veterans - CASTELLANO José M.","CASTELLANO José M.","Veterans",81,"CASTELLANO","José M.","Mallorca Águilas FM","ESP",164.5]
[null,"Veterans - MIFSUD Joseph","MIFSUD Joseph","Veterans",82,"MIFSUD","Joseph","SC Fiamme Azzurre","MLT",164]
[null,"Veterans - PAWLICA Manfred","PAWLICA Manfred","Veterans",83,"PAWLICA","Manfred","TSC Phoenix","AUT",162]
[null,"Veterans - LANDZAAT Henk","LANDZAAT Henk","Veterans",84,"LANDZAAT","Henk","Dutch Legends","NED",148]
[null,"Veterans - DEAN Patrick","DEAN Patrick","Veterans",85,"DEAN","Patrick","Europa FC TSC","GIB",147.5]
[null,"Veterans - DROSSOPOULOS Lampros","DROSSOPOULOS Lampros","Veterans",86,"DROSSOPOULOS","Lampros","Athinaikos CS","GRE",147]
[null,"Veterans - MASTRANTUONO Gianfranco","MASTRANTUONO Gianfranco","Veterans",87,"MASTRANTUONO","Gianfranco","Master Sanremo","ITA",145]
[null,"Veterans - PETERSCHINIGG Rudi","PETERSCHINIGG Rudi","Veterans",88,"PETERSCHINIGG","Rudi","Langton Green Subbuteo Club","ENG",144.5]
[null,{"$f":"CONCATENATE(D1287,\" - \",C1287)","v":"Veterans - KECHRIS Konstantinos"},{"$f":"CONCATENATE(UPPER(F1287),\" \",G1287)","v":"KECHRIS Konstantinos"},"Veterans",89,"KECHRIS","Konstantinos","SPQR MMIX Roma","GRE",144]
[null,"Veterans - KONSTANTAKOS Panagiotis","KONSTANTAKOS Panagiotis","Veterans",90,"KONSTANTAKOS","Panagiotis","Noctuas Athens TSC","GRE",137.5]
[null,"Veterans - ANGELINAS Georgios","ANGELINAS Georgios","Veterans",91,"ANGELINAS","Georgios","Piraeus Lions TSC","GRE",133.5]
[null,"Veterans - LO CASCIO Emanuele","LO CASCIO Emanuele","Veterans",91,"LO CASCIO","Emanuele","SPQR MMIX Roma","ITA",133.5]
[null,"Veterans - LAMBERTI Marco","LAMBERTI Marco","Veterans",91,"LAMBERTI","Marco","F.Lli Bari Reggio Emilia","ITA",133.5]
[null,"Veterans - DE PAOLIS Massimo","DE PAOLIS Massimo","Veterans",94,"DE PAOLIS","Massimo","SPQR MMIX Roma","ITA",130.5]
[null,"Veterans - CHETCUTI DIMECH Frank","CHETCUTI DIMECH Frank","Veterans",95,"CHETCUTI DIMECH","Frank","Valletta Lions TFC","MLT",128.5]
[null,"Veterans - BRADLEY Jeremy","BRADLEY Jeremy","Veterans",96,"BRADLEY","Jeremy","TSPA White Star","ENG",126.5]
[null,"Veterans - DIMAKEAS Georgios","DIMAKEAS Georgios","Veterans",97,"DIMAKEAS","Georgios","Roligans Ilioupolis TSC","GRE",125]
[null,"Veterans - VASILOPOULOS Panagiotis","VASILOPOULOS Panagiotis","Veterans",98,"VASILOPOULOS","Panagiotis","Athinaikos CS","GRE",124]
[null,"Veterans - VARELA Rui","VARELA Rui","Veterans",99,"VARELA","Rui","GRD 1º Maio Tires","POR",123]
[null,"Veterans - MODESTE Axel","MODESTE Axel","Veterans",100,"MODESTE","Axel","FTC Issy-les-Moulineaux","FRA",122.5]
[null,"Veterans - LEYS Geert","LEYS Geert","Veterans",101,"LEYS","Geert","SC Flanders","BEL",121.5]
[null,"Veterans - TRENTA Corrado","TRENTA Corrado","Veterans",102,"TRENTA","Corrado","CS Virtus Rieti","ITA",120.5]
[null,"Veterans - TAN Ashley","TAN Ashley","Veterans",103,"TAN","Ashley","SG Lions TFC","SGP",120]
[null,"Veterans - ARCA Alessandro","ARCA Alessandro","Veterans",104,"ARCA","Alessandro","Master Sanremo","ITA",118.5]
[null,"Veterans - BOLOGNINO Massimo","BOLOGNINO Massimo","Veterans",105,"BOLOGNINO","Massimo","CCT Eagles Napoli","ITA",118]
[null,"Veterans - DE JONG Patrick","DE JONG Patrick","Veterans",106,"DE JONG","Patrick","Dutch Legends","NED",114]
[null,"Veterans - CANDELAS Julio","CANDELAS Julio","Veterans",107,"CANDELAS","Julio","Moralzarzal SCAD","ESP",113.5]
[null,"Veterans - SKINNER Aaron","SKINNER Aaron","Veterans",108,"SKINNER","Aaron","Langton Green Subbuteo Club","ENG",113]
[null,"Veterans - LIENHARDT Eric","LIENHARDT Eric","Veterans",109,"LIENHARDT","Eric","Guebwiller Alsace Subbuteo Club","FRA",112]
[null,"Veterans - BOUCHEZ Denis","BOUCHEZ Denis","Veterans",109,"BOUCHEZ","Denis","SC Lion's Eugies","BEL",112]
[null,"Veterans - BAGNATO Bruno","BAGNATO Bruno","Veterans",111,"BAGNATO","Bruno","Subbuteo Taranto","ITA",108]
[null,"Veterans - FINARDI Paolo","FINARDI Paolo","Veterans",112,"FINARDI","Paolo","SC Ascoli","ITA",106]
[null,"Veterans - GUIDI Enrico","GUIDI Enrico","Veterans",113,"GUIDI","Enrico","SC Sombrero","ITA",105]
[null,"Veterans - ANGELOPOULOS Vasileios","ANGELOPOULOS Vasileios","Veterans",114,"ANGELOPOULOS","Vasileios","Olympia CS","GRE",101]
[null,"Veterans - ALVAREZ Lawrence","ALVAREZ Lawrence","Veterans",115,"ALVAREZ","Lawrence","Europa FC TSC","GIB",100.5]
[null,"Veterans - LIMPENS Fabian","LIMPENS Fabian","Veterans",116,"LIMPENS","Fabian","Racing White Woluwé Subbuteo","BEL",99]
[null,"Veterans - SILVA Jorge","SILVA Jorge","Veterans",117,"SILVA","Jorge","CF os Belenenses","POR",96.5]
[null,"Veterans - FRASCARELLI Giovanni","FRASCARELLI Giovanni","Veterans",117,"FRASCARELLI","Giovanni","ASD SC Salernitana","ITA",96.5]
[null,"Veterans - GREEN Robert","GREEN Robert","Veterans",119,"GREEN","Robert","Northern Falcons TFC","AUS",95]
[null,"Veterans - CITRIGNO Pasquale","CITRIGNO Pasquale","Veterans",120,"CITRIGNO","Pasquale","Subbuteo Club Reggio Calabria","ITA",94]
[null,"Veterans - PROMPONAS Nikolaos","PROMPONAS Nikolaos","Veterans",121,"PROMPONAS","Nikolaos","Noctuas Athens TSC","GRE",91.5]
[null,"Veterans - IMPALLOMENI Bernardo","IMPALLOMENI Bernardo","Veterans",122,"IMPALLOMENI","Bernardo","Subbuteo Vomero","ITA",90]
[null,"Veterans - KOI Kenzo","KOI Kenzo","Veterans",122,"KOI","Kenzo","Yokohama OSC","JPN",90]
[null,"Veterans - YUSNI Den Mulia","YUSNI Den Mulia","Veterans",122,"YUSNI","Den Mulia","SG Lions TFC","SGP",90]
[null,"Veterans - AUSTIN Steve","AUSTIN Steve","Veterans",125,"AUSTIN","Steve","Valletta Lions TFC","MLT",86]
[null,"Veterans - CAMILLERI Emanuel","CAMILLERI Emanuel","Veterans",126,"CAMILLERI","Emanuel","Langton Green Subbuteo Club","MLT",84]
[null,"Veterans - PACE Patrick","PACE Patrick","Veterans",127,"PACE","Patrick","SS Lazio TFC","MLT",83.5]
[null,"Veterans - MÉNDEZ Luis Felipe","MÉNDEZ Luis Felipe","Veterans",128,"MÉNDEZ","Luis Felipe","Tiburones FM","ESP",82.5]
[null,"Veterans - MELEAS Konstantinos","MELEAS Konstantinos","Veterans",129,"MELEAS","Konstantinos","Subbuteurs Athens TSC","GRE",82]
[null,"Veterans - CEULEMANS Jos","CEULEMANS Jos","Veterans",130,"CEULEMANS","Jos","SC Flanders","BEL",81.5]
[null,"Veterans - CHOONG Michael","CHOONG Michael","Veterans",131,"CHOONG","Michael","SC Dragons Hong Kong","SGP",81]
[null,"Veterans - MATTHEWS Cayne","MATTHEWS Cayne","Veterans",131,"MATTHEWS","Cayne","Yorkshire Phoenix and Dewsbury Moor TFC","ENG",81]
[null,"Veterans - FARZA Skander","FARZA Skander","Veterans",133,"FARZA","Skander","Celtic Combourg CFT","TUN",80.5]
[null,"Veterans - PAPADAKIS Manolis","PAPADAKIS Manolis","Veterans",133,"PAPADAKIS","Manolis","Atlas FTC","GRE",80.5]
[null,"Veterans - GIUDICE Michele","GIUDICE Michele","Veterans",135,"GIUDICE","Michele","Subbuteo Club Labronico","ITA",80]
[null,"Veterans - POMMIER Stéphane","POMMIER Stéphane","Veterans",136,"POMMIER","Stéphane","FTC Caen","FRA",79]
[null,"Veterans - DI VITO Raffaele","DI VITO Raffaele","Veterans",137,"DI VITO","Raffaele","CCT Eagles Napoli","ITA",77]
[null,"Veterans - STROMMER Alfred","STROMMER Alfred","Veterans",138,"STROMMER","Alfred","TSC Phoenix","AUT",76.5]
[null,"Veterans - MARTÍNEZ Arturo","MARTÍNEZ Arturo","Veterans",139,"MARTÍNEZ","Arturo","ACS Perugia","ESP",75.5]
[null,"Veterans - SILVA Nuno","SILVA Nuno","Veterans",140,"SILVA","Nuno","Sporting Clube De Portugal","POR",74.5]
[null,"Veterans - IELAPI Pietro","IELAPI Pietro","Veterans",140,"IELAPI","Pietro","Subbuteo Club Reggio Calabria","ITA",74.5]
[null,"Veterans - MARTINI Andrew","MARTINI Andrew","Veterans",142,"MARTINI","Andrew","Tokyo Sunzeol TFC","JPN",72]
[null,"Veterans - GIAMBELLUCA Francesco","GIAMBELLUCA Francesco","Veterans",143,"GIAMBELLUCA","Francesco","ASD SC Salernitana","ITA",71]
[null,"Veterans - BARONI Luigi","BARONI Luigi","Veterans",144,"BARONI","Luigi","Subbuteo Club Reggio Calabria","ITA",68.5]
[null,"Veterans - KOROLOGOS Sotiris","KOROLOGOS Sotiris","Veterans",145,"KOROLOGOS","Sotiris","Noctuas Athens TSC","GRE",68]
[null,"Veterans - FERRANTE Saverio","FERRANTE Saverio","Veterans",146,"FERRANTE","Saverio","ASCT Sessana 1982","ITA",67]
[null,"Veterans - FOUETILLOU Jean-Marie","FOUETILLOU Jean-Marie","Veterans",146,"FOUETILLOU","Jean-Marie","FTC Caen","FRA",67]
[null,"Veterans - DRAZINAKIS Giorgos","DRAZINAKIS Giorgos","Veterans",148,"DRAZINAKIS","Giorgos","Scarlet Battalion SC","GRE",66]
[null,"Veterans - FARIA Miguel","FARIA Miguel","Veterans",149,"FARIA","Miguel","Sporting Clube De Portugal","POR",62.5]
[null,"Veterans - COLELLA Maurizio","COLELLA Maurizio","Veterans",150,"COLELLA","Maurizio","Subbuteo Club Labronico","ITA",62]
[null,"Veterans - LANNOY Frank","LANNOY Frank","Veterans",151,"LANNOY","Frank","SC Temploux","BEL",61.5]
[null,"Veterans - MANFREDELLI Massimo","MANFREDELLI Massimo","Veterans",152,"MANFREDELLI","Massimo","CCT Eagles Napoli","ITA",60]
[null,{"$f":"CONCATENATE(D1351,\" - \",C1351)","v":"Veterans - IFRIGERIO Rosario"},{"$f":"CONCATENATE(UPPER(F1351),\" \",G1351)","v":"IFRIGERIO Rosario"},"Veterans",153,"IFRIGERIO","Rosario","Messina Table Soccer","ITA",59]
[null,"Veterans - SMALDONE Paolo","SMALDONE Paolo","Veterans",154,"SMALDONE","Paolo","ASD SC Salernitana","ITA",57.5]
[null,"Veterans - DOTTO William","DOTTO William","Veterans",155,"DOTTO","William","F.Lli Bari Reggio Emilia","ITA",56.5]
[null,"Veterans - LARANJEIRA Paulo","LARANJEIRA Paulo","Veterans",155,"LARANJEIRA","Paulo","Sporting Clube De Portugal","POR",56.5]
[null,"Veterans - BISIO Luca","BISIO Luca","Veterans",157,"BISIO","Luca","TSC Stella Artois Milano","ITA",55.5]
[null,"Veterans - AFONSO Nuno","AFONSO Nuno","Veterans",158,"AFONSO","Nuno","Sporting Clube De Portugal","POR",55]
[null,"Veterans - MARKS Nico","MARKS Nico","Veterans",159,"MARKS","Nico","Dutch Legends","NED",54]
[null,"Veterans - SÁNCHEZ José Manuel","SÁNCHEZ José Manuel","Veterans",160,"SÁNCHEZ","José Manuel","Mallorca Águilas FM","ESP",52]
[null,"Veterans - MATTIANGELI Federico","MATTIANGELI Federico","Veterans",161,"MATTIANGELI","Federico","CS Virtus Rieti","ITA",51]
[null,"Veterans - DE BRUIN Marco","DE BRUIN Marco","Veterans",162,"DE BRUIN","Marco","Dutch Legends","NED",50]
[null,"Veterans - ANDREAS Paul","ANDREAS Paul","Veterans",163,"ANDREAS","Paul","Langton Green Subbuteo Club","CYP",49.5]
[null,"Veterans - TRIVELLI Simone","TRIVELLI Simone","Veterans",163,"TRIVELLI","Simone","SS Lazio TFC Roma","ITA",49.5]
[null,"Veterans - LONGO Santo","LONGO Santo","Veterans",165,"LONGO","Santo","SC Catania 1987","ITA",49]
[null,"Veterans - PARUSSINI Renato","PARUSSINI Renato","Veterans",166,"PARUSSINI","Renato","Pinco Devils Table Soccer","ITA",48.5]
[null,"Veterans - ARNOLD Terry","ARNOLD Terry","Veterans",166,"ARNOLD","Terry","Langton Green Subbuteo Club","ENG",48.5]
[null,"Veterans - CHANOS Michail I","CHANOS Michail I","Veterans",168,"CHANOS","Michail I","Evia CAN","GRE",48]
[null,"Veterans - RUSSO Giancarlo","RUSSO Giancarlo","Veterans",168,"RUSSO","Giancarlo","CT Torino 2009","ITA",48]
[null,"Veterans - ALEGI Peter","ALEGI Peter","Veterans",170,"ALEGI","Peter","TSC Black Rose 98 Roma","USA",46]
[null,"Veterans - HOLMES Phil","HOLMES Phil","Veterans",171,"HOLMES","Phil","TSPA White Star","ENG",45]
[null,"Veterans - SERWY Pol","SERWY Pol","Veterans",171,"SERWY","Pol","US Huy","BEL",45]
[null,"Veterans - KAKILTAKIS Minas","KAKILTAKIS Minas","Veterans",173,"KAKILTAKIS","Minas","Subbuteurs Athens TSC","GRE",44.5]
[null,"Veterans - TRICHOT Jean-Jacques","TRICHOT Jean-Jacques","Veterans",174,"TRICHOT","Jean-Jacques","Club Stéphanois Subbuteo - ALC","FRA",44]
[null,"Veterans - GUYOT Daniel","GUYOT Daniel","Veterans",174,"GUYOT","Daniel","FTC Saint-Symphorien-sur-Coise","FRA",44]
[null,"Veterans - GOSET Bruno","GOSET Bruno","Veterans",174,"GOSET","Bruno","ST Stembert","BEL",44]
[null,"Veterans - CHALIOTIS Athanasios","CHALIOTIS Athanasios","Veterans",177,"CHALIOTIS","Athanasios","Atlas FTC","GRE",43.5]
[null,"Veterans - BENNETT Steve","BENNETT Steve","Veterans",178,"BENNETT","Steve","Dundee Utd TFC","SCO",42.5]
[null,"Veterans - SICILIANO Carlo","SICILIANO Carlo","Veterans",179,"SICILIANO","Carlo","AS Cosenza","ITA",42]
[null,"Veterans - GENART Jean-Pierre","GENART Jean-Pierre","Veterans",179,"GENART","Jean-Pierre","SC Temploux","BEL",42]
[null,"Veterans - DI MURI Dario","DI MURI Dario","Veterans",179,"DI MURI","Dario","CT Torino 2009","ITA",42]
[null,"Veterans - KATSOULAS Spyridon","KATSOULAS Spyridon","Veterans",182,"KATSOULAS","Spyridon","Piraeus Lions TSC","GRE",41]
[null,"Veterans - VAN GLABEKE Olivier","VAN GLABEKE Olivier","Veterans",183,"VAN GLABEKE","Olivier","SC Lion's Eugies","BEL",40.5]
[null,"Veterans - DI RUGGIERO Vito","DI RUGGIERO Vito","Veterans",184,"DI RUGGIERO","Vito","SC Charleroi","BEL",40]
[null,"Veterans - ORANJE Richard","ORANJE Richard","Veterans",184,"ORANJE","Richard","Dutch Legends","NED",40]
[null,"Veterans - CIRAOLO Gaetano","CIRAOLO Gaetano","Veterans",184,"CIRAOLO","Gaetano","Subbuteisti Modena 1982","ITA",40]
[null,"Veterans - RENALDINI Roberto","RENALDINI Roberto","Veterans",187,"RENALDINI","Roberto","CS SC Serenissima Mestre","ITA",39]
[null,"Veterans - LAMBERT Stéphane","LAMBERT Stéphane","Veterans",187,"LAMBERT","Stéphane","Yokohama OSC","BEL",39]
[null,"Veterans - KOUTROUMANOS Leonidas","KOUTROUMANOS Leonidas","Veterans",187,"KOUTROUMANOS","Leonidas","Piraeus Lions TSC","GRE",39]
[null,"Veterans - BARNES Darren","BARNES Darren","Veterans",187,"BARNES","Darren","Cardiff Bluebirds TFC","WAL",39]
[null,"Veterans - BERLIAQUE Richard","BERLIAQUE Richard","Veterans",191,"BERLIAQUE","Richard","Europa FC TSC","GIB",37.5]
[null,"Veterans - AVERNA Massimo","AVERNA Massimo","Veterans",192,"AVERNA","Massimo","Subbuteo Club Reggio Calabria","ITA",37]
[null,"Veterans - SPOTO Alessandro","SPOTO Alessandro","Veterans",192,"SPOTO","Alessandro","SS Lazio TFC Roma","ITA",37]
[null,"Veterans - CHANDIRAMANI Vikas K","CHANDIRAMANI Vikas K","Veterans",194,"CHANDIRAMANI","Vikas K","Jurong Central SC","SGP",36]
[null,"Veterans - STAMATOPOULOS Dimitrios","STAMATOPOULOS Dimitrios","Veterans",194,"STAMATOPOULOS","Dimitrios","Piraeus Lions TSC","GRE",36]
[null,"Veterans - MANGANELLO Mauro","MANGANELLO Mauro","Veterans",194,"MANGANELLO","Mauro","ACS Perugia 1973","ITA",36]
[null,"Veterans - ROUIS Mongi","ROUIS Mongi","Veterans",194,"ROUIS","Mongi","SC Lion's Eugies","TUN",36]
[null,"Veterans - KAKAVAS Ioannis","KAKAVAS Ioannis","Veterans",194,"KAKAVAS","Ioannis","Athinaikos CS","GRE",36]
[null,"Veterans - GKOGKOS Athanasios","GKOGKOS Athanasios","Veterans",194,"GKOGKOS","Athanasios","Olympia CS","GRE",36]
[null,"Veterans - MOORE John","MOORE John","Veterans",194,"MOORE","John","Irish Premier League","IRL",36]
[null,"Veterans - SCHIATTI Fabrizio","SCHIATTI Fabrizio","Veterans",201,"SCHIATTI","Fabrizio","Subbuteisti Modena 1982","ITA",34]
[null,"Veterans - BOLTE René","BOLTE René","Veterans",202,"BOLTE","René","Dutch Legends","NED",33]
[null,"Veterans - GHIGLIOTTI Marco","GHIGLIOTTI Marco","Veterans",202,"GHIGLIOTTI","Marco","Langton Green Subbuteo Club","ENG",33]
[null,"Veterans - ZOLFANELLI Francesco","ZOLFANELLI Francesco","Veterans",202,"ZOLFANELLI","Francesco","TSC Black Rose 98 Roma","ITA",33]
[null,"Veterans - CURATO Giulio","CURATO Giulio","Veterans",205,"CURATO","Giulio","Foggia CT","ITA",32.5]
[null,"Veterans - SOMOZA José David","SOMOZA José David","Veterans",205,"SOMOZA","José David","CAP Ciudad de Murcia FM","ESP",32.5]
[null,"Veterans - KURKEYERIAN Varant","KURKEYERIAN Varant","Veterans",207,"KURKEYERIAN","Varant","Sporting America TSC","USA",32]
[null,"Veterans - CAZALA Eric","CAZALA Eric","Veterans",207,"CAZALA","Eric","FTC Issy-les-Moulineaux","FRA",32]
[null,"Veterans - MONTEIRO Christophe","MONTEIRO Christophe","Veterans",207,"MONTEIRO","Christophe","FTC Issy-les-Moulineaux","FRA",32]
[null,"Veterans - ERB Peter","ERB Peter","Veterans",210,"ERB","Peter","subbuteo.ch","SUI",30.5]
[null,"Veterans - RICCIO Vincenzo","RICCIO Vincenzo","Veterans",211,"RICCIO","Vincenzo","ASCT Sessana 1982","ITA",30]
[null,"Veterans - PIGOTT Adrian","PIGOTT Adrian","Veterans",211,"PIGOTT","Adrian","Irish Premier League","IRL",30]
[null,"Veterans - PINAUSI Marco","PINAUSI Marco","Veterans",213,"PINAUSI","Marco","GCT DLF Gorizia","ITA",29.5]
[null,"Veterans - LOAREC Yann","LOAREC Yann","Veterans",214,"LOAREC","Yann","Celtic Combourg CFT","FRA",29]
[null,"Veterans - NATOLI Cesare","NATOLI Cesare","Veterans",214,"NATOLI","Cesare","Messina Table Soccer","ITA",29]
[null,"Veterans - MIGUEL Norberto","MIGUEL Norberto","Veterans",216,"MIGUEL","Norberto","Subbuteo Club Labronico","POR",27]
[null,{"$f":"CONCATENATE(D1415,\" - \",C1415)","v":"Veterans - ADAMS Eoin"},{"$f":"CONCATENATE(UPPER(F1415),\" \",G1415)","v":"ADAMS Eoin"},"Veterans",216,"ADAMS","Eoin","Yorkshire Phoenix","NIR",27]
[null,"Veterans - ZUCCHI Marco","ZUCCHI Marco","Veterans",216,"ZUCCHI","Marco","PINCO DEVILS TABLE SOCCER","CZE",27]
[null,"Veterans - KENNEDY Eliot","KENNEDY Eliot","Veterans",216,"KENNEDY","Eliot","Northern Falcons TFC","AUS",27]
[null,"Veterans - TSELEPIDIS Nikolaos","TSELEPIDIS Nikolaos","Veterans",220,"TSELEPIDIS","Nikolaos","Scarlet Battalion SC","GRE",26.5]
[null,"Veterans - PITIHOUTIS Georgios","PITIHOUTIS Georgios","Veterans",221,"PITIHOUTIS","Georgios","Subbuteurs Athens TSC","GRE",26]
[null,"Veterans - ZAMMIT PAVIA Joseph","ZAMMIT PAVIA Joseph","Veterans",222,"ZAMMIT PAVIA","Joseph","Valletta Lions TFC","MLT",25]
[null,"Veterans - PELTIER Patrick","PELTIER Patrick","Veterans",223,"PELTIER","Patrick","Avenir Subbuteo Hennuyer","BEL",24.5]
[null,"Veterans - VEZZUTO Pasquale","VEZZUTO Pasquale","Veterans",223,"VEZZUTO","Pasquale","CCT Eagles Napoli","ITA",24.5]
[null,"Veterans - ROWLEY Matthew","ROWLEY Matthew","Veterans",223,"ROWLEY","Matthew","Cardiff Bluebirds TFC","WAL",24.5]
[null,"Veterans - MASTROBUONO Massimo Francesco","MASTROBUONO Massimo Francesco","Veterans",226,"MASTROBUONO","Massimo Francesco","Subbuteo Club Pavia","ITA",24]
[null,"Veterans - DAXBÖCK Florian","DAXBÖCK Florian","Veterans",226,"DAXBÖCK","Florian","TSC Phoenix","AUT",24]
[null,"Veterans - CASTRO Miguel","CASTRO Miguel","Veterans",226,"CASTRO","Miguel","GRD 1º Maio Tires","POR",24]
[null,"Veterans - GKIOTLIS Nikolaos","GKIOTLIS Nikolaos","Veterans",229,"GKIOTLIS","Nikolaos","Thessaloniki SC TSC","GRE",23.5]
[null,"Veterans - JAMIESON Malcolm","JAMIESON Malcolm","Veterans",229,"JAMIESON","Malcolm","Langton Green Subbuteo Club","ENG",23.5]
[null,"Veterans - PEREIRA Miguel","PEREIRA Miguel","Veterans",231,"PEREIRA","Miguel","Valletta Lions TFC","POR",23]
[null,"Veterans - ZAMARA Valentino","ZAMARA Valentino","Veterans",231,"ZAMARA","Valentino","H'Attard SC","MLT",23]
[null,"Veterans - AUSSET Laurent","AUSSET Laurent","Veterans",231,"AUSSET","Laurent","Elan Subbutéo Club de Champs-sur-Marne","FRA",23]
[null,"Veterans - MPOUGIOURIS Ioannis","MPOUGIOURIS Ioannis","Veterans",231,"MPOUGIOURIS","Ioannis","Subbuteurs Athens TSC","GRE",23]
[null,"Veterans - POPP Roland","POPP Roland","Veterans",235,"POPP","Roland","BSC Schwalbach","GER",22.5]
[null,"Veterans - PAPIDAKIS Sarantis","PAPIDAKIS Sarantis","Veterans",235,"PAPIDAKIS","Sarantis","Scarlet Battalion SC","GRE",22.5]
[null,"Veterans - FARRUGIA RANDON Stanley","FARRUGIA RANDON Stanley","Veterans",237,"FARRUGIA RANDON","Stanley","H'Attard SC","MLT",22]
[null,"Veterans - PAPAMICHAIL Leonidas","PAPAMICHAIL Leonidas","Veterans",237,"PAPAMICHAIL","Leonidas","Noctuas Athens TSC","GRE",22]
[null,"Veterans - NISHI Manabu","NISHI Manabu","Veterans",237,"NISHI","Manabu","SC Reeds","JPN",22]
[null,"Veterans - RICCOBENE Francesco","RICCOBENE Francesco","Veterans",237,"RICCOBENE","Francesco","AS Cosenza","ITA",22]
[null,"Veterans - BEGGS Kenneth","BEGGS Kenneth","Veterans",237,"BEGGS","Kenneth","Irish Premier League","NIR",22]
[null,"Veterans - POLSINELLI Denis","POLSINELLI Denis","Veterans",242,"POLSINELLI","Denis","FTC Saint-Symphorien-sur-Coise","FRA",21]
[null,"Veterans - HARRINGTON Gerry","HARRINGTON Gerry","Veterans",243,"HARRINGTON","Gerry","Langton Green Subbuteo Club","IRL",20.5]
[null,"Veterans - JALBERT Thierry","JALBERT Thierry","Veterans",244,"JALBERT","Thierry","Elan Subbutéo Club de Champs-sur-Marne","FRA",20]
[null,"Veterans - DESTEFANIS Riccardo","DESTEFANIS Riccardo","Veterans",244,"DESTEFANIS","Riccardo","Subbuteo Oslo","NOR",20]
[null,"Veterans - ANCAROLA Genny","ANCAROLA Genny","Veterans",244,"ANCAROLA","Genny","SC Ligures","ITA",20]
[null,"Veterans - COLWELL Martin","COLWELL Martin","Veterans",247,"COLWELL","Martin","Langton Green Subbuteo Club","ENG",19.5]
[null,"Veterans - TRIGGIANI Giuseppe","TRIGGIANI Giuseppe","Veterans",248,"TRIGGIANI","Giuseppe","CS Virtus Rieti","ITA",19]
[null,"Veterans - GÄHWILER Clinton","GÄHWILER Clinton","Veterans",249,"GÄHWILER","Clinton","Cape Town City Subbuteo Club","SUI",18]
[null,"Veterans - GREER Ian","GREER Ian","Veterans",249,"GREER","Ian","Derry City","NIR",18]
[null,"Veterans - BURNS Tom","BURNS Tom","Veterans",249,"BURNS","Tom","Glasgow TSA","SCO",18]
[null,"Veterans - CAPOSSELA Stefano","CAPOSSELA Stefano","Veterans",249,"CAPOSSELA","Stefano","CS Virtus Rieti","ITA",18]
[null,"Veterans - REMUND Paul","REMUND Paul","Veterans",249,"REMUND","Paul","subbuteo.ch","SUI",18]
[null,"Veterans - RAMALHETE Marcelo Lages","RAMALHETE Marcelo Lages","Veterans",249,"RAMALHETE","Marcelo Lages","CR Vasco da Gama","BRA",18]
[null,"Veterans - PESSINI Luca","PESSINI Luca","Veterans",249,"PESSINI","Luca","TSC Stella Artois Milano","ITA",18]
[null,"Veterans - STEVENOT Didier","STEVENOT Didier","Veterans",249,"STEVENOT","Didier","JSC Rochefort","BEL",18]
[null,"Veterans - LEES Malcolm","LEES Malcolm","Veterans",249,"LEES","Malcolm","Glasgow TSA","SCO",18]
[null,"Veterans - SHAM Doulatram","SHAM Doulatram","Veterans",249,"SHAM","Doulatram","SG Lions TFC","SGP",18]
[null,"Veterans - BENAVENT Pedro","BENAVENT Pedro","Veterans",259,"BENAVENT","Pedro","Subbuteo Club Almería","ESP",17.5]
[null,"Veterans - SCERAERT Marc","SCERAERT Marc","Veterans",260,"SCERAERT","Marc","SC Lion's Eugies","BEL",17]
[null,"Veterans - PEARSON Nick","PEARSON Nick","Veterans",261,"PEARSON","Nick","Langton Green Subbuteo Club","ENG",16.5]
[null,"Veterans - TEKOS Lambros","TEKOS Lambros","Veterans",261,"TEKOS","Lambros","Crimson Horses","GRE",16.5]
[null,"Veterans - FLÉMAL André","FLÉMAL André","Veterans",263,"FLÉMAL","André","Racing White Woluwé Subbuteo","BEL",16]
[null,"Veterans - AZZARO Arturo","AZZARO Arturo","Veterans",263,"AZZARO","Arturo","CT Torino 2009","ITA",16]
[null,"Veterans - MARABELLO Dario","MARABELLO Dario","Veterans",263,"MARABELLO","Dario","Messina Table Soccer","ITA",16]
[null,"Veterans - MARTINEZ Manuel","MARTINEZ Manuel","Veterans",266,"MARTINEZ","Manuel","Europa FC TSC","GIB",15.5]
[null,"Veterans - SAUERWEIN Dieter","SAUERWEIN Dieter","Veterans",266,"SAUERWEIN","Dieter","TV Germania Kaiserau","GER",15.5]
[null,"Veterans - BRESCIA Guido","BRESCIA Guido","Veterans",268,"BRESCIA","Guido","CS SC Serenissima Mestre","ITA",15]
[null,"Veterans - STAMOULIS Vasilios","STAMOULIS Vasilios","Veterans",268,"STAMOULIS","Vasilios","Roligans Ilioupolis TSC","GRE",15]
[null,"Veterans - BOULANGER Richard","BOULANGER Richard","Veterans",268,"BOULANGER","Richard","Wamme SC","BEL",15]
[null,"Veterans - STOTO Mattia","STOTO Mattia","Veterans",268,"STOTO","Mattia","Foggia CT","ITA",15]
[null,"Veterans - PACITTI Stefano","PACITTI Stefano","Veterans",268,"PACITTI","Stefano","Atletico Pisa","ITA",15]
[null,"Veterans - GOSET Charles","GOSET Charles","Veterans",268,"GOSET","Charles","ST Stembert","BEL",15]
[null,"Veterans - IANNIELLO Antonio","IANNIELLO Antonio","Veterans",268,"IANNIELLO","Antonio","ASM Nola 74","ITA",15]
[null,"Veterans - MEO Felice","MEO Felice","Veterans",268,"MEO","Felice","ASM Nola 74","ITA",15]
[null,"Veterans - KAZANTZOGLOU Charalampos","KAZANTZOGLOU Charalampos","Veterans",268,"KAZANTZOGLOU","Charalampos","Subbuteurs Athens TSC","GRE",15]
[null,"Veterans - VRANOVITZ Karl","VRANOVITZ Karl","Veterans",268,"VRANOVITZ","Karl","TSC Royal 78 Kaisermühlen","AUT",15]
[null,"Veterans - BIANCHI Pierluigi","BIANCHI Pierluigi","Veterans",278,"BIANCHI","Pierluigi","Pinco Devils Table Soccer","ITA",14.5]
[null,"Veterans - CHRISTOPHER Jason","CHRISTOPHER Jason","Veterans",278,"CHRISTOPHER","Jason","Wolverhampton Table Football Club","ENG",14.5]
[null,"Veterans - MASILE Antonio","MASILE Antonio","Veterans",280,"MASILE","Antonio","Subbuteisti Modena 1982","ITA",14]
[null,{"$f":"CONCATENATE(D1479,\" - \",C1479)","v":"Veterans - VLASOV Andrey"},{"$f":"CONCATENATE(UPPER(F1479),\" \",G1479)","v":"VLASOV Andrey"},"Veterans",280,"VLASOV","Andrey","Lakhta Subbuteo TFC","RUS",14]
[null,"Veterans - SILVA Luís Filipe","SILVA Luís Filipe","Veterans",280,"SILVA","Luís Filipe","CF os Belenenses","POR",14]
[null,"Veterans - PERAZZO Marco","PERAZZO Marco","Veterans",280,"PERAZZO","Marco","SC Ascoli","ITA",14]
[null,"Veterans - GEORGE Steve","GEORGE Steve","Veterans",284,"GEORGE","Steve","Langton Green Subbuteo Club","ENG",13.5]
[null,"Veterans - HODDS Martin","HODDS Martin","Veterans",284,"HODDS","Martin","Yorkshire Phoenix and Dewsbury Moor TFC","ENG",13.5]
[null,"Veterans - JAILLET Laurent","JAILLET Laurent","Veterans",284,"JAILLET","Laurent","Elan Subbutéo Club de Champs-sur-Marne","FRA",13.5]
[null,"Veterans - VOLPI Giovanni","VOLPI Giovanni","Veterans",284,"VOLPI","Giovanni","Subbito Gol Ferrara","ITA",13.5]
[null,"Veterans - CURRÒ Salvatore","CURRÒ Salvatore","Veterans",288,"CURRÒ","Salvatore","Messina Table Soccer","ITA",12]
[null,"Veterans - MONTEFIORI Stefano","MONTEFIORI Stefano","Veterans",288,"MONTEFIORI","Stefano","Papata Group Ponticino","ITA",12]
[null,"Veterans - ATTARD Walter Joseph","ATTARD Walter Joseph","Veterans",288,"ATTARD","Walter Joseph","H'Attard SC","MLT",12]
[null,"Veterans - ARET Xavier","ARET Xavier","Veterans",288,"ARET","Xavier","Dutch Legends","NED",12]
[null,"Veterans - DE PASCALE Vittorio","DE PASCALE Vittorio","Veterans",288,"DE PASCALE","Vittorio","SC Ligures","ITA",12]
[null,"Veterans - BOIGEOL Alban","BOIGEOL Alban","Veterans",288,"BOIGEOL","Alban","Football de Table Aquitaine","FRA",12]
[null,"Veterans - EVANGELISTI Stefano","EVANGELISTI Stefano","Veterans",288,"EVANGELISTI","Stefano","Bologna Tigers Subbuteo","ITA",12]
[null,"Veterans - GALEAZZI Gianluca","GALEAZZI Gianluca","Veterans",288,"GALEAZZI","Gianluca","TSC Stella Artois Milano","ITA",12]
[null,"Veterans - RISCARDI Sergio","RISCARDI Sergio","Veterans",288,"RISCARDI","Sergio","Subbuteo Club Pavia","ITA",12]
[null,"Veterans - GENTILE Antonio","GENTILE Antonio","Veterans",288,"GENTILE","Antonio","AS Cosenza","ITA",12]
[null,"Veterans - BONFANTE Pietro","BONFANTE Pietro","Veterans",288,"BONFANTE","Pietro","Master Sanremo","ITA",12]
[null,"Veterans - MANDARAKAS Nikos","MANDARAKAS Nikos","Veterans",288,"MANDARAKAS","Nikos","PIraeus Lions TSC","GRE",12]
[null,"Veterans - CIPULAT Emanuele","CIPULAT Emanuele","Veterans",288,"CIPULAT","Emanuele","Pinco Devils Table Soccer","ITA",12]
[null,"Veterans - VAN IMPE Maxime","VAN IMPE Maxime","Veterans",288,"VAN IMPE","Maxime","SC Charleroi","BEL",12]
[null,"Veterans - HAMBROUCK Marc","HAMBROUCK Marc","Veterans",288,"HAMBROUCK","Marc","Racing White Woluwé Subbuteo","BEL",12]
[null,"Veterans - WONNACOTT Stephen","WONNACOTT Stephen","Veterans",288,"WONNACOTT","Stephen","Langton Green Subbuteo Club","ENG",12]
[null,"Veterans - HANOTIAUX Alain","HANOTIAUX Alain","Veterans",288,"HANOTIAUX","Alain","SC Charleroi","BEL",12]
[null,"Veterans - GUZZETTA Giuseppe","GUZZETTA Giuseppe","Veterans",288,"GUZZETTA","Giuseppe","SC Catania 1987","ITA",12]
[null,"Veterans - BASILE Giuseppe","BASILE Giuseppe","Veterans",288,"BASILE","Giuseppe","Messina Table Soccer","ITA",12]
[null,"Veterans - FUSEAU Christophe","FUSEAU Christophe","Veterans",288,"FUSEAU","Christophe","Celtic Combourg CFT","FRA",12]
[null,"Veterans - SERGI Giulio","SERGI Giulio","Veterans",288,"SERGI","Giulio","Subbuteo Club Reggio Calabria","ITA",12]
[null,"Veterans - DALEY Brian","DALEY Brian","Veterans",288,"DALEY","Brian","Yorkshire Phoenix and Dewsbury Moor TFC","ENG",12]
[null,"Veterans - SORGE Sébastien","SORGE Sébastien","Veterans",310,"SORGE","Sébastien","ALC Wattrelos - Subbuteo Lille Metropole","FRA",11]
[null,"Veterans - LUPO Davide","LUPO Davide","Veterans",310,"LUPO","Davide","CT Paola","ITA",11]
[null,"Veterans - MALINDRETOS Michail","MALINDRETOS Michail","Veterans",312,"MALINDRETOS","Michail","Roligans Ilioupolis TSC","GRE",10]
[null,"Veterans - MENEGHETTI (62) Alessandro","MENEGHETTI (62) Alessandro","Veterans",312,"MENEGHETTI (62)","Alessandro","Bulldogs Vicenza","ITA",10]
[null,"Veterans - CHATZISTAVRAKIS Manousos","CHATZISTAVRAKIS Manousos","Veterans",312,"CHATZISTAVRAKIS","Manousos","Roligans Ilioupolis TSC","GRE",10]
[null,"Veterans - DI MICHELANGELO Paolo","DI MICHELANGELO Paolo","Veterans",312,"DI MICHELANGELO","Paolo","Ves Gentes","ITA",10]
[null,"Veterans - KONIDARIS Panagiotis","KONIDARIS Panagiotis","Veterans",312,"KONIDARIS","Panagiotis","Roligans Ilioupolis TSC","GRE",10]
[null,"Veterans - WIESMANN Martin","WIESMANN Martin","Veterans",312,"WIESMANN","Martin","subbuteo.ch","SUI",10]
[null,"Veterans - STECHERN Matthias","STECHERN Matthias","Veterans",318,"STECHERN","Matthias","Pinco Devils TS","GER",9.5]
[null,"Veterans - PALMER Guy","PALMER Guy","Veterans",318,"PALMER","Guy","Turia","GIB",9.5]
[null,"Veterans - CRISERÀ Antonino","CRISERÀ Antonino","Veterans",320,"CRISERÀ","Antonino","Subbuteo Club Reggio Calabria","ITA",9]
[null,"Veterans - MICHELETTI Oriano","MICHELETTI Oriano","Veterans",320,"MICHELETTI","Oriano","SC Labronico","SCO",9]
[null,"Veterans - DE SCHUYTENEER Michel","DE SCHUYTENEER Michel","Veterans",320,"DE SCHUYTENEER","Michel","Racing White Woluwé Subbuteo","BEL",9]
[null,"Veterans - MURA Massimo","MURA Massimo","Veterans",320,"MURA","Massimo","Trento Subbuteo","ITA",9]
[null,"Veterans - MARSHALL John","MARSHALL John","Veterans",320,"MARSHALL","John","Golazzo SC","SCO",9]
[null,"Veterans - ARNOLD Bryan","ARNOLD Bryan","Veterans",320,"ARNOLD","Bryan","Northern Phoenix Table Football\r\n\r\nClub","USA",9]
[null,"Veterans - RODGERS Brendan","RODGERS Brendan","Veterans",320,"RODGERS","Brendan","Derry City","IRL",9]
[null,"Veterans - MÁRQUEZ José Luis","MÁRQUEZ José Luis","Veterans",320,"MÁRQUEZ","José Luis","Barcelona FT","ESP",9]
[null,"Veterans - TELLEZ Eddie","TELLEZ Eddie","Veterans",328,"TELLEZ","Eddie","Europa FC TSC","GIB",8.5]
[null,"Veterans - SASSO Gaetano","SASSO Gaetano","Veterans",329,"SASSO","Gaetano","ASCT Sessana 1982","ITA",8]
[null,"Veterans - BENAND Eric","BENAND Eric","Veterans",329,"BENAND","Eric","FTC Issy-les-Moulineaux","FRA",8]
[null,"Veterans - MATABUENA Miguel Ángel","MATABUENA Miguel Ángel","Veterans",329,"MATABUENA","Miguel Ángel","FM La Plazoleta","ESP",8]
[null,"Veterans - GARA Severino","GARA Severino","Veterans",329,"GARA","Severino","SC Sombrero","ITA",8]
[null,"Veterans - ARAÚJO Pedro","ARAÚJO Pedro","Veterans",329,"ARAÚJO","Pedro","CF os Belenenses","POR",8]
[null,"Veterans - RICARDO Carlos","RICARDO Carlos","Veterans",329,"RICARDO","Carlos","Subbuteo Clube de Benfica","POR",8]
[null,"Veterans - MENTASTI Giorgio","MENTASTI Giorgio","Veterans",329,"MENTASTI","Giorgio","Trento Subbuteo","ITA",8]
[null,"Veterans - GARCÍA Isaac","GARCÍA Isaac","Veterans",336,"GARCÍA","Isaac","CAP Ciudad de Murcia FM","ESP",7.5]
[null,"Veterans - FLAMINI Stefano","FLAMINI Stefano","Veterans",337,"FLAMINI","Stefano","SC Ascoli","ITA",7]
[null,"Veterans - AMATA Biagio","AMATA Biagio","Veterans",337,"AMATA","Biagio","Messina Table Soccer","ITA",7]
[null,"Veterans - BADGER Richard","BADGER Richard","Veterans",339,"BADGER","Richard","Wolverhampton Table Football Club","ENG",6.5]
[null,"Veterans - SYRMOS Stamatios","SYRMOS Stamatios","Veterans",339,"SYRMOS","Stamatios","Crimson Horses","GRE",6.5]
[null,"Veterans - HAMMONDS Mick","HAMMONDS Mick","Veterans",339,"HAMMONDS","Mick","Wolverhampton Table Football Club","ENG",6.5]
[null,"Veterans - MORENO VICO Antonio","MORENO VICO Antonio","Veterans",339,"MORENO VICO","Antonio","Subbuteo Club Almería","ESP",6.5]
[null,"Veterans - SPILLER Alessandro","SPILLER Alessandro","Veterans",339,"SPILLER","Alessandro","ASD Triestina Subbuteo","ITA",6.5]
[null,"Veterans - BAXTER David","BAXTER David","Veterans",339,"BAXTER","David","Dundee Utd TFC","SCO",6.5]
[null,{"$f":"CONCATENATE(D1543,\" - \",C1543)","v":"Veterans - MANCARUSO Ezio"},{"$f":"CONCATENATE(UPPER(F1543),\" \",G1543)","v":"MANCARUSO Ezio"},"Veterans",345,"MANCARUSO","Ezio","Subbuteo Vomero","ITA",6]
[null,"Veterans - LANDI Nico","LANDI Nico","Veterans",345,"LANDI","Nico","Subbito Gol Ferrara","ITA",6]
[null,"Veterans - SCHEFFER Martin","SCHEFFER Martin","Veterans",345,"SCHEFFER","Martin","Dutch Legends","NED",6]
[null,"Veterans - MAGERMANS Thierry","MAGERMANS Thierry","Veterans",345,"MAGERMANS","Thierry","SC Temploux","BEL",6]
[null,"Veterans - NUNZET Pasquale","NUNZET Pasquale","Veterans",345,"NUNZET","Pasquale","AS Cosenza","ITA",6]
[null,"Veterans - NOVI Massimo","NOVI Massimo","Veterans",345,"NOVI","Massimo","CCT Eagles Napoli","ITA",6]
[null,"Veterans - MANFIOLETTI Giorgio","MANFIOLETTI Giorgio","Veterans",345,"MANFIOLETTI","Giorgio","Trento Subbuteo","ITA",6]
[null,"Veterans - CASANOVA Alessandro","CASANOVA Alessandro","Veterans",345,"CASANOVA","Alessandro","SC Sombrero","ITA",6]
[null,"Veterans - CASATI Gabriele","CASATI Gabriele","Veterans",345,"CASATI","Gabriele","CS Firenze","ITA",6]
[null,"Veterans - KOULOSOUSAS Serafeim","KOULOSOUSAS Serafeim","Veterans",354,"KOULOSOUSAS","Serafeim","Proteas Athens SC","GRE",5.5]
[null,"Veterans - SALLE Laurent","SALLE Laurent","Veterans",355,"SALLE","Laurent","Celtic Combourg CFT","FRA",5]
[null,"Veterans - KADINOPOULOS Vasileios","KADINOPOULOS Vasileios","Veterans",355,"KADINOPOULOS","Vasileios","Noctuas Athens TSC","GRE",5]
[null,"Veterans - VAN RENTERGHEM Didier","VAN RENTERGHEM Didier","Veterans",355,"VAN RENTERGHEM","Didier","Racing White Woluwé Subbuteo","BEL",5]
[null,"Veterans - VIDAL Toni","VIDAL Toni","Veterans",355,"VIDAL","Toni","Mallorca Águilas FM","ESP",5]
[null,"Veterans - COPPOLINO Angelo","COPPOLINO Angelo","Veterans",355,"COPPOLINO","Angelo","Barcellona Calcio Tavolo","ITA",5]
[null,"Veterans - SARDI DE LETTO David","SARDI DE LETTO David","Veterans",355,"SARDI DE LETTO","David","ALC WATTRELOS - SUBBUTEO LILLE METROPOLE","FRA",5]
[null,"Veterans - VANDAMME Vincent","VANDAMME Vincent","Veterans",355,"VANDAMME","Vincent","Elan Subbutéo Club de Champs-sur-Marne","FRA",5]
[null,"Veterans - CAMPAGNA Goffredo","CAMPAGNA Goffredo","Veterans",355,"CAMPAGNA","Goffredo","Messina Table Soccer","ITA",5]
[null,"Veterans - INDELLI Alessandro","INDELLI Alessandro","Veterans",355,"INDELLI","Alessandro","Subbuteo Club Höpfigheim","ITA",5]
[null,"Veterans - SORIA Alfredo","SORIA Alfredo","Veterans",355,"SORIA","Alfredo","CT Paola","ITA",5]
[null,"Veterans - EYES Paul","EYES Paul","Veterans",355,"EYES","Paul","Sporting America TSC","USA",5]
[null,"Veterans - ELTON David","ELTON David","Veterans",355,"ELTON","David","Irish Premier League","IRL",5]
[null,"Veterans - PORRO Riccardo","PORRO Riccardo","Veterans",355,"PORRO","Riccardo","Subbuteisti Modena 1982","ITA",5]
[null,"Veterans - RETHORE Jean Marc","RETHORE Jean Marc","Veterans",355,"RETHORE","Jean Marc","Celtic Combourg CFT","FRA",5]
[null,"Veterans - DE PAOLI Stephano","DE PAOLI Stephano","Veterans",355,"DE PAOLI","Stephano","Trento Subbuteo","ITA",5]
[null,"Veterans - GERSIE Janus","GERSIE Janus","Veterans",355,"GERSIE","Janus","BSC Schwalbach","GER",5]
[null,"Veterans - TONIETTI Giovanni","TONIETTI Giovanni","Veterans",355,"TONIETTI","Giovanni","Subbuteo Club Reggio Calabria","ITA",5]
[null,"Veterans - GARAU Efisio","GARAU Efisio","Veterans",355,"GARAU","Efisio","SC Cagliari","ITA",5]
[null,"Veterans - CAMPAGNA Antonino","CAMPAGNA Antonino","Veterans",355,"CAMPAGNA","Antonino","Messina Table Soccer","ITA",5]
[null,"Veterans - MANCINI Gennaro","MANCINI Gennaro","Veterans",355,"MANCINI","Gennaro","GCT DLF Gorizia","ITA",5]
[null,"Veterans - BALESTRIERI Massimo","BALESTRIERI Massimo","Veterans",375,"BALESTRIERI","Massimo","CTS Versilia Football Planet","ITA",4.5]
[null,"Veterans - FLÉMAL Pascal","FLÉMAL Pascal","Veterans",376,"FLÉMAL","Pascal","Racing White Woluwé Subbuteo","BEL",4]
[null,"Veterans - PISCOPO Carlo","PISCOPO Carlo","Veterans",376,"PISCOPO","Carlo","SC Sombrero","ITA",4]
[null,"Veterans - GRANDINETTI Carlo","GRANDINETTI Carlo","Veterans",376,"GRANDINETTI","Carlo","CT Paola","ITA",4]
[null,"Veterans - VINACCIA Domenico","VINACCIA Domenico","Veterans",376,"VINACCIA","Domenico","AS Cosenza","ITA",4]
[null,"Veterans - GUYAUX Fabrice","GUYAUX Fabrice","Veterans",376,"GUYAUX","Fabrice","US Huy","BEL",4]
[null,"Veterans - BIGNARDI Luca","BIGNARDI Luca","Veterans",376,"BIGNARDI","Luca","Rebels Genova","ITA",4]
[null,"Veterans - CERULLO Livio","CERULLO Livio","Veterans",376,"CERULLO","Livio","SC Sombrero","ITA",4]
[null,"Veterans - NOËL Jean-Maurice","NOËL Jean-Maurice","Veterans",376,"NOËL","Jean-Maurice","Club Stéphanois Subbuteo - ALC","FRA",4]
[null,"Veterans - LUPO Luciano","LUPO Luciano","Veterans",376,"LUPO","Luciano","CT Paola","ITA",4]
[null,"Veterans - PREVITI Pietro","PREVITI Pietro","Veterans",376,"PREVITI","Pietro","Azzurra 99 napoli","ITA",4]
[null,"Veterans - YOSHIDA Hideki","YOSHIDA Hideki","Veterans",376,"YOSHIDA","Hideki","Yokohama OSC","JPN",4]
[null,"Veterans - GRILLO Luigi","GRILLO Luigi","Veterans",376,"GRILLO","Luigi","AS Cosenza","ITA",4]
[null,"Veterans - PALMIERI Lionello","PALMIERI Lionello","Veterans",376,"PALMIERI","Lionello","Subbuteo Club Pescara","ITA",4]
[null,"Veterans - TILGNER Marcus","TILGNER Marcus","Veterans",376,"TILGNER","Marcus","Sparta Spreeathen 74/82","GER",4]
[null,"Veterans - GOODMAN Simon","GOODMAN Simon","Veterans",390,"GOODMAN","Simon","Langton Green Subbuteo Club","ENG",3.5]
[null,"Veterans - PRIFTIS Anastasios","PRIFTIS Anastasios","Veterans",390,"PRIFTIS","Anastasios","Roligans Ilioupolis TSC","GRE",3.5]
[null,"Veterans - COOPER John","COOPER John","Veterans",392,"COOPER","John","TSPA White Star","ENG",3]
[null,"Veterans - HEREDIA Miguel Ángel","HEREDIA Miguel Ángel","Veterans",392,"HEREDIA","Miguel Ángel","CAP Ciudad de Murcia FM","ESP",3]
[null,"Veterans - OSBORNE Richard","OSBORNE Richard","Veterans",392,"OSBORNE","Richard","Gibraltar TSA","GIB",3]
[null,"Veterans - SPOORS Brian","SPOORS Brian","Veterans",392,"SPOORS","Brian","Glasgow TSA","SCO",3]
[null,"Veterans - CLEMARES Manuel","CLEMARES Manuel","Veterans",392,"CLEMARES","Manuel","AFT Turia 1981","ESP",3]
[null,"Veterans - GARGIULO Alfonso","GARGIULO Alfonso","Veterans",392,"GARGIULO","Alfonso","Subbito Gol Ferrara","ITA",3]
[null,"Veterans - BORBONES Ferran","BORBONES Ferran","Veterans",392,"BORBONES","Ferran","Barcelona FT","ESP",3]
[null,"Veterans - EVERITT David","EVERITT David","Veterans",399,"EVERITT","David","Kettering Flicking Marvellous","ENG",2.5]
[null,"Veterans - MIFSUD Vincent","MIFSUD Vincent","Veterans",399,"MIFSUD","Vincent","H'Attard SC","MLT",2.5]
[null,"Veterans - ROPER Richard","ROPER Richard","Veterans",399,"ROPER","Richard","Wolverhampton Table Football Club","ENG",2.5]
[null,"Veterans - LEWIS Vicky","LEWIS Vicky","Veterans",399,"LEWIS","Vicky","Langton Green Subbuteo Club","ENG",2.5]
[null,"Veterans - HILL Martin","HILL Martin","Veterans",399,"HILL","Martin","Kettering Flicking Marvellous","ENG",2.5]
[null,"Veterans - DOHERTY Neil","DOHERTY Neil","Veterans",399,"DOHERTY","Neil","Langton Green Subbuteo Club","ENG",2.5]
[null,"Veterans - MCCANN Tony","MCCANN Tony","Veterans",399,"MCCANN","Tony","Yorkshire Phoenix and Dewsbury Moor TFC","ENG",2.5]
[null,"Veterans - HOLMES Martin","HOLMES Martin","Veterans",399,"HOLMES","Martin","Kettering Flicking Marvellous","ENG",2.5]
[null,"Veterans - IOAN Alessandro","IOAN Alessandro","Veterans",399,"IOAN","Alessandro","GCT DLF Gorizia","ITA",2.5]
[null,"Veterans - TURPIN John","TURPIN John","Veterans",399,"TURPIN","John","TSPA White Star","ENG",2.5]
[null,{"$f":"CONCATENATE(D1607,\" - \",C1607)","v":"Veterans - BOOTHMAN Jeremy"},{"$f":"CONCATENATE(UPPER(F1607),\" \",G1607)","v":"BOOTHMAN Jeremy"},"Veterans",399,"BOOTHMAN","Jeremy","TSPA White Star","ENG",2.5]
[null,"Veterans - FREITAS José","FREITAS José","Veterans",399,"FREITAS","José","Free Agent","POR",2.5]
[null,"Veterans - GUYOT Françoise","GUYOT Françoise","Veterans",399,"GUYOT","Françoise","Elan Subbutéo Club de Champs-sur-Marne","FRA",2.5]
[null,"Veterans - KARAMANIS Athanasios","KARAMANIS Athanasios","Veterans",399,"KARAMANIS","Athanasios","Roligans Ilioupolis TSC","GRE",2.5]
[null,"Veterans - PONTIKOPOULOS Georgios","PONTIKOPOULOS Georgios","Veterans",399,"PONTIKOPOULOS","Georgios","TSC Falcons Athens","GRE",2.5]
[null,"Veterans - SINGH Melvindepal","SINGH Melvindepal","Veterans",414,"SINGH","Melvindepal","SG Lions TFC","SGP",2]
[null,"Veterans - BATTIPAGLIA Ciro","BATTIPAGLIA Ciro","Veterans",414,"BATTIPAGLIA","Ciro","Team Campania","ITA",2]
[null,"Veterans - TAIB Mohd Rizal","TAIB Mohd Rizal","Veterans",414,"TAIB","Mohd Rizal","Jurong Central SC","SGP",2]
[null,"Veterans - COTUGNO Massimo","COTUGNO Massimo","Veterans",414,"COTUGNO","Massimo","Azzurra 99 napoli","ITA",2]
[null,"Veterans - CUOMO Ettore","CUOMO Ettore","Veterans",414,"CUOMO","Ettore","Subbuteo Vomero","ITA",2]
[null,"Veterans - TANTI Natalino","TANTI Natalino","Veterans",414,"TANTI","Natalino","Valletta Lions TFC","MLT",2]
[null,"Veterans - PERICCIOLI Andrea","PERICCIOLI Andrea","Veterans",414,"PERICCIOLI","Andrea","TSC Black Rose 98 Roma","ITA",2]
[null,"Veterans - TACCHIA Domenico","TACCHIA Domenico","Veterans",414,"TACCHIA","Domenico","CS SC Serenissima Mestre","ITA",2]
[null,"Veterans - COSTANTINO Giuseppe","COSTANTINO Giuseppe","Veterans",414,"COSTANTINO","Giuseppe","SC Palermo 2016","ITA",2]
[null,"Veterans - PIERONI Roberto","PIERONI Roberto","Veterans",423,"PIERONI","Roberto","SC Sombrero","ITA",1.5]
[null,"Veterans - KOTROTSOS Christos","KOTROTSOS Christos","Veterans",423,"KOTROTSOS","Christos","Roligans Ilioupolis TSC","GRE",1.5]
[null,"Veterans - SKLAVOUNOS Georgios","SKLAVOUNOS Georgios","Veterans",423,"SKLAVOUNOS","Georgios","Evia CAN","GRE",1.5]
[null,"Veterans - CEVOLANI Greta","CEVOLANI Greta","Veterans",423,"CEVOLANI","Greta","Bologna Tigers Subbuteo","ITA",1.5]
[null,"Veterans - HARO Juan Manuel","HARO Juan Manuel","Veterans",423,"HARO","Juan Manuel","FM La Plazoleta","ESP",1.5]
[null,"Veterans - RUIZ Ernesto","RUIZ Ernesto","Veterans",423,"RUIZ","Ernesto","FM La Plazoleta","ESP",1.5]
[null,"Veterans - CAVAZZA Fabrizio","CAVAZZA Fabrizio","Veterans",429,"CAVAZZA","Fabrizio","GCT DLF Gorizia","ITA",1]
[null,"Women - DESPRETZ Léa","DESPRETZ Léa","Women",1,"DESPRETZ","Léa","Avenir Subbuteo Hennuyer","BEL",2676]
[null,"Women - HERBAUT Audrey","HERBAUT Audrey","Women",2,"HERBAUT","Audrey","Elan Subbutéo Club de Champs-sur-Marne","FRA",2658]
[null,"Women - VILLARIGUES Carolina","VILLARIGUES Carolina","Women",3,"VILLARIGUES","Carolina","Crimson Horses","POR",2544.5]
[null,"Women - SCHEEN Mélina","SCHEEN Mélina","Women",4,"SCHEEN","Mélina","ST Stembert","BEL",2404]
[null,"Women - BUTTITTA Eleonora","BUTTITTA Eleonora","Women",5,"BUTTITTA","Eleonora","SC Bagheria","ITA",1582.5]
[null,"Women - PAPANIKOLAOU Eleftheria","PAPANIKOLAOU Eleftheria","Women",6,"PAPANIKOLAOU","Eleftheria","Glyfada United TSC","GRE",1516.5]
[null,"Women - WALDORF-BUSCH Katharina","WALDORF-BUSCH Katharina","Women",7,"WALDORF-BUSCH","Katharina","Bormla SC","AUT",1245]
[null,"Women - BERTHOLET Elodie","BERTHOLET Elodie","Women",8,"BERTHOLET","Elodie","Avenir Subbuteo Hennuyer","BEL",1134.5]
[null,"Women - PAPPA Chrysoula","PAPPA Chrysoula","Women",9,"PAPPA","Chrysoula","Atlas FTC","GRE",1064.5]
[null,"Women - GUYOT Françoise","GUYOT Françoise","Women",10,"GUYOT","Françoise","Elan Subbutéo Club de Champs-sur-Marne","FRA",1008]
[null,"Women - GARNIER Stéphanie","GARNIER Stéphanie","Women",11,"GARNIER","Stéphanie","Tiburones FM","FRA",823]
[null,"Women - DESPRETZ Emilie","DESPRETZ Emilie","Women",12,"DESPRETZ","Emilie","Avenir Subbuteo Hennuyer","BEL",682]
[null,"Women - DIEUDONNE Delphine","DIEUDONNE Delphine","Women",13,"DIEUDONNE","Delphine","Avenir Subbuteo Hennuyer","BEL",655]
[null,"Women - MALINDRETOU Marianna","MALINDRETOU Marianna","Women",14,"MALINDRETOU","Marianna","Roligans Ilioupolis TSC","GRE",538.5]
[null,"Women - KATO Yuka","KATO Yuka","Women",15,"KATO","Yuka","OSC Yamato Wild Blue TFC","JPN",513]
[null,"Women - NISHI Miaki","NISHI Miaki","Women",16,"NISHI","Miaki","SC Reeds","JPN",475]
[null,"Women - BOUZID Marianna","BOUZID Marianna","Women",17,"BOUZID","Marianna","Scarlet Battalion SC","GRE",458.5]
[null,"Women - MATTHEWS Ruby","MATTHEWS Ruby","Women",18,"MATTHEWS","Ruby","Avenir Subbuteo Hennuyer","ENG",450.5]
[null,"Women - LINQUERCQ-RIVIÈRE Irène","LINQUERCQ-RIVIÈRE Irène","Women",19,"LINQUERCQ-RIVIÈRE","Irène","FTC Issy-les-Moulineaux","FRA",444]
[null,"Women - ICHIBA Masumi","ICHIBA Masumi","Women",20,"ICHIBA","Masumi","Yokohama OSC","JPN",425.5]
[null,"Women - BÜSING Victoria","BÜSING Victoria","Women",21,"BÜSING","Victoria","TV Germania Kaiserau","GER",422]
[null,"Women - MAIRELES Paula","MAIRELES Paula","Women",22,"MAIRELES","Paula","AC Los Remedios FM","ESP",374.5]
[null,"Women - PATRIKIOU Eirini","PATRIKIOU Eirini","Women",23,"PATRIKIOU","Eirini","Proteas Athens SC","GRE",369.5]
[null,"Women - POUPART Lea","POUPART Lea","Women",24,"POUPART","Lea","Celtic Combourg CFT","FRA",336]
[null,"Women - WADA Kimi","WADA Kimi","Women",25,"WADA","Kimi","OSC Yamato Wild Blue TFC","JPN",319]
[null,"Women - EVELEIGH Beth","EVELEIGH Beth","Women",26,"EVELEIGH","Beth","Northern Phoenix TFC","AUS",297]
[null,"Women - OKAMOTO Miwako","OKAMOTO Miwako","Women",27,"OKAMOTO","Miwako","Tokyo Sparkling Shooters","JPN",284]
[null,"Women - MERKOURIS Maria Felice","MERKOURIS Maria Felice","Women",28,"MERKOURIS","Maria Felice","SC Palermo 2016","ITA",265.5]
[null,"Women - VERHOEVEN Lulani","VERHOEVEN Lulani","Women",29,"VERHOEVEN","Lulani","Wamme SC","BEL",261.5]
[null,"Women - SKOUROU Ourania","SKOUROU Ourania","Women",30,"SKOUROU","Ourania","Roligans Ilioupolis TSC","GRE",259]
[null,"Women - DESPRETZ Chloé","DESPRETZ Chloé","Women",31,"DESPRETZ","Chloé","Avenir Subbuteo Hennuyer","BEL",211]
[null,"Women - DI MAGGIO Agapi","DI MAGGIO Agapi","Women",32,"DI MAGGIO","Agapi","Noctuas Athens TSC","GRE",192.5]
[null,"Women - ELMER Imojjen","ELMER Imojjen","Women",33,"ELMER","Imojjen","The Tumbleweeds","AUS",150]
[null,"Women - TILGNER Daria","TILGNER Daria","Women",34,"TILGNER","Daria","Sparta Spreeathen 74/82","GER",144.5]
[null,"Women - GUAGLIARDI Erica","GUAGLIARDI Erica","Women",35,"GUAGLIARDI","Erica","SC Catania 1987","ITA",142.5]
[null,"Women - GRÜNBERG Daniela","GRÜNBERG Daniela","Women",36,"GRÜNBERG","Daniela","BSC Schwalbach","GER",129]
[null,"Women - PIBIRI Giulia","PIBIRI Giulia","Women",37,"PIBIRI","Giulia","SC Catania 1987","ITA",112]
[null,"Women - LO CASCIO Giuditta","LO CASCIO Giuditta","Women",38,"LO CASCIO","Giuditta","SC Bagheria","ITA",81]
[null,"Women - FILIPPELLA NASTI Julia","FILIPPELLA NASTI Julia","Women",39,"FILIPPELLA NASTI","Julia","ASD CT Aosta Warriors","ITA",78.5]
[null,"Women - CEVOLANI Greta","CEVOLANI Greta","Women",40,"CEVOLANI","Greta","Bologna Tigers Subbuteo","ITA",66]
[null,"Women - LEVY Samantha","LEVY Samantha","Women",41,"LEVY","Samantha","CHASERS (Chadwell Heath & South Essex, Romford Subbuteo) Club","ENG",63]
[null,"Women - DERY Véronique","DERY Véronique","Women",42,"DERY","Véronique","Racing White Woluwé Subbuteo","BEL",62]
[null,"Women - KONSTANTAKOU Danai","KONSTANTAKOU Danai","Women",43,"KONSTANTAKOU","Danai","Noctuas Athens TSC","GRE",58.5]
[null,{"$f":"CONCATENATE(D1671,\" - \",C1671)","v":"Women - KRONMÜLLER Melanie"},{"$f":"CONCATENATE(UPPER(F1671),\" \",G1671)","v":"KRONMÜLLER Melanie"},"Women",44,"KRONMÜLLER","Melanie","Subbuteo Club Höpfigheim","GER",54]
[null,"Women - DE JONG - HUIJERS Liesbeth","DE JONG - HUIJERS Liesbeth","Women",45,"DE JONG - HUIJERS","Liesbeth","Dutch Legends","NED",45]
[null,"Women - LEWIS Vicky","LEWIS Vicky","Women",45,"LEWIS","Vicky","Langton Green Subbuteo Club","ENG",45]
[null,"Women - GALLEZ Chantal","GALLEZ Chantal","Women",47,"GALLEZ","Chantal","Avenir Subbuteo Hennuyer","BEL",34]
[null,"Women - HUET Olivia","HUET Olivia","Women",48,"HUET","Olivia","ELM'Aye SC","BEL",24.5]
[null,"Women - PIROVA Stefka","PIROVA Stefka","Women",49,"PIROVA","Stefka","AFT Turia 1981","ESP",20]
[null,"Women - HORNCASTLE Amy","HORNCASTLE Amy","Women",50,"HORNCASTLE","Amy","RAS (Rochford & Southend) Casual Subbuteo Club","ENG",18]
[null,"Women - BELLEFONTAINE Francesca","BELLEFONTAINE Francesca","Women",50,"BELLEFONTAINE","Francesca","Elstow Lions TFC","ENG",18]
[null,"Women - KADINOPOULOS Maria Christina","KADINOPOULOS Maria Christina","Women",50,"KADINOPOULOS","Maria Christina","Noctuas Athens TSC","GRE",18]
[null,"Women - CLAYDON Michele","CLAYDON Michele","Women",50,"CLAYDON","Michele","CHASERS (Chadwell Heath & South Essex, Romford Subbuteo) Club","ENG",18]
[null,"Women - GROSDENT Sophia","GROSDENT Sophia","Women",54,"GROSDENT","Sophia","Wamme SC","BEL",16]
[null,"Women - MARTÍNEZ Teresa","MARTÍNEZ Teresa","Women",55,"MARTÍNEZ","Teresa","AC Los Remedios FM","ESP",15]
[null,"Women - AKIMOTO Hina","AKIMOTO Hina","Women",56,"AKIMOTO","Hina","Yokohama OSC","JPN",11]
[null,"Women - OCENASEK Katharina","OCENASEK Katharina","Women",57,"OCENASEK","Katharina","TSC Royal 78 Kaisermühlen","AUT",10]
[null,"Women - ITO Miyuki","ITO Miyuki","Women",57,"ITO","Miyuki","Tokyo Sparkling Shooters","JPN",10]
[null,"Women - SHIBATA Kaoru","SHIBATA Kaoru","Women",57,"SHIBATA","Kaoru","OS Academy 1947","JPN",10]
[null,"Women - PAPADAKI Adrianna","PAPADAKI Adrianna","Women",60,"PAPADAKI","Adrianna","Noctuas Athens TSC","GRE",6]
[null,"Women - GOTO Haruka","GOTO Haruka","Women",61,"GOTO","Haruka","SAITAMA MARINES","JPN",5]
[null,"Women - YOKOYAMA Yuri","YOKOYAMA Yuri","Women",61,"YOKOYAMA","Yuri","Yokohama OSC","JPN",5]
[null,"Women - DE JONG Chantal","DE JONG Chantal","Women",61,"DE JONG","Chantal","Dutch Legends","NED",5]
[null,"Women - YAHAGI Yukina","YAHAGI Yukina","Women",64,"YAHAGI","Yukina","OS Academy 1947","JPN",3]
[null,"Women - ELLINA Maria","ELLINA Maria","Women",64,"ELLINA","Maria","Free Agent","GRE",3]
[null,"Women - BOUCHEZ Charlotte","BOUCHEZ Charlotte","Women",66,"BOUCHEZ","Charlotte","SC Lion's Eugies","BEL",2.5]
[null,"U20 - JANSSENS Noah","JANSSENS Noah","U20",1,"JANSSENS","Noah","ST Stembert","BEL",1822.5]
[null,"U20 - FERRANTE Mattia","FERRANTE Mattia","U20",2,"FERRANTE","Mattia","Sc Fiamme Azzurre","ITA",1764.5]
[null,"U20 - SEGERS Jann","SEGERS Jann","U20",3,"SEGERS","Jann","Avenir Subbuteo Hennuyer","BEL",1698.5]
[null,"U20 - DENNE Noah","DENNE Noah","U20",4,"DENNE","Noah","SC Lion's Eugies","BEL",1641]
[null,"U20 - MANFREDELLI Francesco","MANFREDELLI Francesco","U20",5,"MANFREDELLI","Francesco","CCT Eagles Napoli","ITA",1303.5]
[null,"U20 - AUSSET Quentin","AUSSET Quentin","U20",6,"AUSSET","Quentin","Elan Subbutéo Club de Champs-sur-Marne","FRA",1133]
[null,"U20 - ESPOSITO Matteo","ESPOSITO Matteo","U20",7,"ESPOSITO","Matteo","TS Napoli Fighters","ITA",1010.5]
[null,"U20 - DESPRETZ Léa","DESPRETZ Léa","U20",8,"DESPRETZ","Léa","Avenir Subbuteo Hennuyer","BEL",756.5]
[null,"U20 - ANTÚNEZ Cristian","ANTÚNEZ Cristian","U20",9,"ANTÚNEZ","Cristian","Tiburones FM","ESP",746]
[null,"U20 - COQUILLON Fanch","COQUILLON Fanch","U20",10,"COQUILLON","Fanch","Celtic Combourg CFT","FRA",616.5]
[null,"U20 - FRICANO Christian","FRICANO Christian","U20",11,"FRICANO","Christian","Subbuteo Casale","ITA",521.5]
[null,"U20 - ALFARO Isaac","ALFARO Isaac","U20",12,"ALFARO","Isaac","Tiburones FM","ESP",511]
[null,"U20 - EBEJER Thomas","EBEJER Thomas","U20",13,"EBEJER","Thomas","Bormla SC","MLT",481]
[null,"U20 - MATTHEWS Ruby","MATTHEWS Ruby","U20",14,"MATTHEWS","Ruby","Avenir Subbuteo Hennuyer","ENG",455]
[null,"U20 - MIDOUX Rafaël","MIDOUX Rafaël","U20",15,"MIDOUX","Rafaël","Avenir Subbuteo Hennuyer","FRA",370]
[null,"U20 - FEYE Aurélien","FEYE Aurélien","U20",16,"FEYE","Aurélien","ST Stembert","BEL",348]
[null,"U20 - PÉREZ Álvaro","PÉREZ Álvaro","U20",17,"PÉREZ","Álvaro","Tiburones FM","ESP",282.5]
[null,"U20 - CYGANEK Jérôme","CYGANEK Jérôme","U20",18,"CYGANEK","Jérôme","Avenir Subbuteo Hennuyer","BEL",272]
[null,"U20 - MAIRELES ALFARO Jesús","MAIRELES ALFARO Jesús","U20",19,"MAIRELES ALFARO","Jesús","AC Los Remedios FM","ESP",239]
[null,"U20 - BENITA Rubén","BENITA Rubén","U20",20,"BENITA","Rubén","AFT Turia 1981","ESP",232.5]
[null,"U20 - DA RE Federico","DA RE Federico","U20",21,"DA RE","Federico","Pinco Devils Table Soccer","ITA",228]
[null,"U20 - BONNICI Jayden","BONNICI Jayden","U20",22,"BONNICI","Jayden","Palermo","MLT",227.5]
[null,"U20 - MARAIN Benjamin","MARAIN Benjamin","U20",23,"MARAIN","Benjamin","Avenir Subbuteo Hennuyer","BEL",222.5]
[null,"U20 - SORET Louis","SORET Louis","U20",24,"SORET","Louis","Avenir Subbuteo Hennuyer","FRA",220]
[null,"U20 - PAPIDAKIS Philippos","PAPIDAKIS Philippos","U20",25,"PAPIDAKIS","Philippos","Scarlet Battalion SC","GRE",150]
[null,"U20 - BORGO Francesco","BORGO Francesco","U20",26,"BORGO","Francesco","Subbuteo Casale","ITA",120]
[null,"U20 - PEREIRA Max","PEREIRA Max","U20",27,"PEREIRA","Max","Valletta Lions TFC","POR",111]
[null,"U20 - BISIO Angelo","BISIO Angelo","U20",28,"BISIO","Angelo","TSC Stella Artois Milano","ITA",99.5]
[null,"U20 - FARRUGIA RANDON Robert","FARRUGIA RANDON Robert","U20",29,"FARRUGIA RANDON","Robert","H'Attard SC","MLT",96.5]
[null,"U20 - BONNICI Jeshua","BONNICI Jeshua","U20",30,"BONNICI","Jeshua","Valletta Lions TFC","MLT",94]
[null,"U20 - MELLIOS Stavros","MELLIOS Stavros","U20",31,"MELLIOS","Stavros","Crimson Horses","GRE",90]
[null,"U20 - REGUERA MUÑOZ Manuel","REGUERA MUÑOZ Manuel","U20",32,"REGUERA MUÑOZ","Manuel","FM La Plazoleta","ESP",80]
[null,"U20 - BOUCHEZ Charlotte","BOUCHEZ Charlotte","U20",33,"BOUCHEZ","Charlotte","SC Lion's Eugies","BEL",78.5]
[null,"U20 - DIRICK Noah","DIRICK Noah","U20",34,"DIRICK","Noah","Wamme SC","BEL",78]
[null,"U20 - ROUIS Yasser","ROUIS Yasser","U20",35,"ROUIS","Yasser","FTC CAEN","TUN",72]
[null,"U20 - DIONISOPOULOS Georgios","DIONISOPOULOS Georgios","U20",36,"DIONISOPOULOS","Georgios","Polis Athlitikos Syllogos Daskaliou Kerateas","GRE",63]
[null,"U20 - SCOTT Alexander","SCOTT Alexander","U20",37,"SCOTT","Alexander","Wolverhampton Table Football Club","ENG",60.5]
[null,"U20 - GREGORY Connor","GREGORY Connor","U20",38,"GREGORY","Connor","Langton Green Subbuteo Club","ENG",60]
[null,"U20 - RAISON Lucas","RAISON Lucas","U20",39,"RAISON","Lucas","SC Lion's Eugies","BEL",58]
[null,"U20 - KOTROTSOS Evangelos","KOTROTSOS Evangelos","U20",40,"KOTROTSOS","Evangelos","Roligans Ilioupolis TSC","GRE",57.5]
[null,"U20 - BELCHER Chris","BELCHER Chris","U20",41,"BELCHER","Chris","Mt. Hebron TSC","USA",56.5]
[null,{"$f":"CONCATENATE(D1735,\" - \",C1735)","v":"U20 - ROSA Julià"},{"$f":"CONCATENATE(UPPER(F1735),\" \",G1735)","v":"ROSA Julià"},"U20",42,"ROSA","Julià","AS Iluro FT","ESP",54]
[null,"U20 - BAENA Manuel","BAENA Manuel","U20",43,"BAENA","Manuel","AC Los Remedios FM","ESP",53]
[null,"U20 - GIUDICE Giorgio","GIUDICE Giorgio","U20",44,"GIUDICE","Giorgio","Subbuteo Club Labronico","ITA",50]
[null,"U20 - BENITA Álvaro","BENITA Álvaro","U20",45,"BENITA","Álvaro","AFT Turia 1981","ESP",48]
[null,"U20 - BADGER Gage","BADGER Gage","U20",46,"BADGER","Gage","Wolverhampton Table Football Club","ENG",41]
[null,"U20 - BELCHER Ryan","BELCHER Ryan","U20",47,"BELCHER","Ryan","Maryland SC","USA",39.5]
[null,"U20 - VERHOEVEN Lulani","VERHOEVEN Lulani","U20",48,"VERHOEVEN","Lulani","Wamme SC","BEL",38]
[null,"U20 - LIM Ding Heng","LIM Ding Heng","U20",49,"LIM","Ding Heng","Jurong Central SC","SGP",30]
[null,"U20 - KALISZEWSKI Daniel","KALISZEWSKI Daniel","U20",49,"KALISZEWSKI","Daniel","Irish Premier League","IRL",30]
[null,"U20 - EBEJER Gabriel","EBEJER Gabriel","U20",51,"EBEJER","Gabriel","Bormla SC","MLT",27]
[null,"U20 - MAIOLI Martin","MAIOLI Martin","U20",52,"MAIOLI","Martin","Subbito Gol Ferrara","ITA",26.5]
[null,"U20 - SPILLER Alberto","SPILLER Alberto","U20",52,"SPILLER","Alberto","ASD Triestina Subbuteo","ITA",26.5]
[null,"U20 - JUNQUERA MIÑAMBRES Javier","JUNQUERA MIÑAMBRES Javier","U20",54,"JUNQUERA MIÑAMBRES","Javier","CFM Manolo Preciado","ESP",21.5]
[null,"U20 - CHAPMAN Hadley","CHAPMAN Hadley","U20",55,"CHAPMAN","Hadley","Langton Green Subbuteo Club","ENG",21]
[null,"U20 - ARIVAZHAGAN Nagulan","ARIVAZHAGAN Nagulan","U20",56,"ARIVAZHAGAN","Nagulan","SG Lions TFC","SGP",20]
[null,"U20 - DUCKWORTH Riley","DUCKWORTH Riley","U20",57,"DUCKWORTH","Riley","Free Agent","ENG",16]
[null,"U20 - FENTON Alex","FENTON Alex","U20",58,"FENTON","Alex","Langton Green Subbuteo Club","ENG",15]
[null,"U20 - VENSYK Daniel","VENSYK Daniel","U20",58,"VENSYK","Daniel","Free Agent","ENG",15]
[null,"U20 - ILIEV Álex","ILIEV Álex","U20",60,"ILIEV","Álex","AFT Turia 1981","ESP",14]
[null,"U20 - POUPART Lea","POUPART Lea","U20",61,"POUPART","Lea","Celtic Combourg CFT","FRA",10]
[null,"U20 - BOLUSSET Noé",{"$f":"CONCATENATE(UPPER(F1755),\" \",G1755)","v":"BOLUSSET Noé"},"U20",62,"BOLUSSET","Noé","FTC Saint-Symphorien-sur-Coise","FRA",7.5]
[null,"U20 - MARTÍNEZ Teresa","MARTÍNEZ Teresa","U20",63,"MARTÍNEZ","Teresa","AC Los Remedios FM","ESP",6.5]
[null,"U20 - GROSDENT Maxim","GROSDENT Maxim","U20",64,"GROSDENT","Maxim","Wamme SC","BEL",5]
[null,"U20 - REGUERA MUÑOZ Gonzalo","REGUERA MUÑOZ Gonzalo","U20",64,"REGUERA MUÑOZ","Gonzalo","FM La Plazoleta","ESP",5]
[null,"U20 - COLOSSI Nicolò","COLOSSI Nicolò","U20",66,"COLOSSI","Nicolò","SC Bari","ITA",4]
[null,"U20 - BERIOLI Riccardo","BERIOLI Riccardo","U20",66,"BERIOLI","Riccardo","US Valponte 1986","ITA",4]
[null,"U20 - SKINNER Finley","SKINNER Finley","U20",68,"SKINNER","Finley","Langton Green Subbuteo Club","ENG",3]
[null,"U20 - SCHNEIDER Leon","SCHNEIDER Leon","U20",69,"SCHNEIDER","Leon","SC Berlin","GER",2.5]
[null,"U20 - PERICCIOLI Luca","PERICCIOLI Luca","U20",70,"PERICCIOLI","Luca","TSC Black Rose 98 Roma","ITA",2]
[null,"U20 - FILIPPOU Christos","FILIPPOU Christos","U20",70,"FILIPPOU","Christos","Crimson Horses","GRE",2]
[null,"U20 - PITENIS Ektoras","PITENIS Ektoras","U20",70,"PITENIS","Ektoras","Crimson Horses","GRE",2]
[null,"U20 - LUI Tyler","LUI Tyler","U20",73,"LUI","Tyler","Mt. Hebron TSC","USA",1.5]
[null,"U20 - DE GIOSA Davide","DE GIOSA Davide","U20",73,"DE GIOSA","Davide","SC Bari","ITA",1.5]
[null,"U20 - FOSTER Eric","FOSTER Eric","U20",73,"FOSTER","Eric","Sporting America TSC","USA",1.5]
[null,"U20 - PATEL Shiv","PATEL Shiv","U20",73,"PATEL","Shiv","Mt. Hebron TSC","USA",1.5]
[null,"U20 - VALLEBONA Tobia","VALLEBONA Tobia","U20",73,"VALLEBONA","Tobia","Rebels Genova","ITA",1.5]
[null,"U20 - BOTTICELLI Jadin","BOTTICELLI Jadin","U20",73,"BOTTICELLI","Jadin","Mt. Hebron TSC","USA",1.5]
[null,"U20 - RUDY HESTY Edin Reyza","RUDY HESTY Edin Reyza","U20",79,"RUDY HESTY","Edin Reyza","Jurong Central SC","SGP",1]
[null,"U20 - RAHMAN Max","RAHMAN Max","U20",79,"RAHMAN","Max","Langton Green Subbuteo Club","ENG",1]
[null,"U16 - SORET Louis","SORET Louis","U16",1,"SORET","Louis","Avenir Subbuteo Hennuyer","FRA",2797.5]
[null,"U16 - MATTHEWS Ruby","MATTHEWS Ruby","U16",2,"MATTHEWS","Ruby","Avenir Subbuteo Hennuyer","ENG",1688]
[null,"U16 - BISIO Angelo","BISIO Angelo","U16",3,"BISIO","Angelo","TSC Stella Artois Milano","ITA",1158]
[null,"U16 - SKOUROS Panagiotis","SKOUROS Panagiotis","U16",4,"SKOUROS","Panagiotis","Roligans Ilioupolis TSC","GRE",1126]
[null,"U16 - FRICANO Lorenzo","FRICANO Lorenzo","U16",5,"FRICANO","Lorenzo","Subbuteo Casale","ITA",1068]
[null,"U16 - COLOSSI Nicolò","COLOSSI Nicolò","U16",6,"COLOSSI","Nicolò","SC Bari","ITA",1035.5]
[null,"U16 - FARRUGIA RANDON Robert","FARRUGIA RANDON Robert","U16",7,"FARRUGIA RANDON","Robert","H'Attard SC","MLT",905.5]
[null,"U16 - TSANGOURIS Konstandinos","TSANGOURIS Konstandinos","U16",8,"TSANGOURIS","Konstandinos","SC Lion's Eugies","BEL",584.5]
[null,"U16 - GROSDENT Maxim","GROSDENT Maxim","U16",9,"GROSDENT","Maxim","Wamme SC","BEL",581.5]
[null,"U16 - BAENA Manuel","BAENA Manuel","U16",10,"BAENA","Manuel","AC Los Remedios FM","ESP",377]
[null,"U16 - PEREIRA Max","PEREIRA Max","U16",11,"PEREIRA","Max","Valletta Lions TFC","POR",359.5]
[null,"U16 - BIGNARDI Samuele","BIGNARDI Samuele","U16",12,"BIGNARDI","Samuele","Rebels Genova","ITA",326]
[null,"U16 - SANI Lorenzo","SANI Lorenzo","U16",13,"SANI","Lorenzo","SC Sombrero","ITA",289]
[null,"U16 - MASTROBUONO Marco","MASTROBUONO Marco","U16",14,"MASTROBUONO","Marco","TSC Stella Artois Milano","ITA",288]
[null,"U16 - GKOGKOS Dimitrios","GKOGKOS Dimitrios","U16",15,"GKOGKOS","Dimitrios","Olympia CS","GRE",270]
[null,"U16 - DI MAGGIO Maximos","DI MAGGIO Maximos","U16",16,"DI MAGGIO","Maximos","Noctuas Athens TSC","GRE",246.5]
[null,"U16 - REGUERA MUÑOZ Manuel","REGUERA MUÑOZ Manuel","U16",17,"REGUERA MUÑOZ","Manuel","FM La Plazoleta","ESP",211.5]
[null,"U16 - ROSA Martí","ROSA Martí","U16",18,"ROSA","Martí","AS Iluro FT","ESP",202]
[null,"U16 - JORIS Romain","JORIS Romain","U16",19,"JORIS","Romain","ELM'Aye SC","BEL",144]
[null,"U16 - WULFF Noah","WULFF Noah","U16",20,"WULFF","Noah","SG '94 Hannover","GER",143.5]
[null,"U16 - GREGORY Connor","GREGORY Connor","U16",21,"GREGORY","Connor","Langton Green Subbuteo Club","ENG",142]
[null,"U16 - FERRUCCI Marco","FERRUCCI Marco","U16",22,"FERRUCCI","Marco","TS Napoli Fighters","ITA",141.5]
[null,"U16 - BONNICI Jayden","BONNICI Jayden","U16",23,"BONNICI","Jayden","Palermo","MLT",136]
[null,"U16 - SICILIANO Alessandro","SICILIANO Alessandro","U16",24,"SICILIANO","Alessandro","AS Cosenza","ITA",126]
[null,"U16 - RUDY HESTY Edin Reyza","RUDY HESTY Edin Reyza","U16",25,"RUDY HESTY","Edin Reyza","Jurong Central SC","SGP",113]
[null,{"$f":"CONCATENATE(D1799,\" - \",C1799)","v":"U16 - HARILLO Joaquín"},"HARILLO Joaquín","U16",26,"HARILLO","Joaquín","AC Los Remedios FM","ESP",90]
[null,"U16 - PUERTO Andrés","PUERTO Andrés","U16",26,"PUERTO","Andrés","AC Los Remedios FM","ESP",90]
[null,"U16 - ARIVAZHAGAN Nagulan","ARIVAZHAGAN Nagulan","U16",28,"ARIVAZHAGAN","Nagulan","SG Lions TFC","SGP",79]
[null,"U16 - KALISZEWSKI Daniel","KALISZEWSKI Daniel","U16",29,"KALISZEWSKI","Daniel","Irish Premier League","IRL",69.5]
[null,"U16 - MOREIRA Erick","MOREIRA Erick","U16",30,"MOREIRA","Erick","Moralzarzal SCAD","ESP",64]
[null,"U16 - ROSA Julià","ROSA Julià","U16",31,"ROSA","Julià","AS Iluro FT","ESP",57]
[null,"U16 - MARTINELLI Antonio","MARTINELLI Antonio","U16",32,"MARTINELLI","Antonio","SC Bari","ITA",54]
[null,"U16 - VILLAO Enrique","VILLAO Enrique","U16",33,"VILLAO","Enrique","Moralzarzal SCAD","ESP",46.5]
[null,"U16 - MORI Daigo","MORI Daigo","U16",34,"MORI","Daigo","SC Reeds","JPN",45]
[null,"U16 - BIN NORIZAL Nor Afiq","BIN NORIZAL Nor Afiq","U16",34,"BIN NORIZAL","Nor Afiq","Jurong Central SC","SGP",45]
[null,"U16 - BIN NORIZAL Nor Ariq","BIN NORIZAL Nor Ariq","U16",34,"BIN NORIZAL","Nor Ariq","Jurong Central SC","SGP",45]
[null,"U16 - MAIOLI Martin","MAIOLI Martin","U16",37,"MAIOLI","Martin","Subbito Gol Ferrara","ITA",39.5]
[null,"U16 - TAKAHASHI Shusuke","TAKAHASHI Shusuke","U16",38,"TAKAHASHI","Shusuke","Table Football Club Kashiwa Sunrise","JPN",35]
[null,"U16 - BARNOLA Arç","BARNOLA Arç","U16",39,"BARNOLA","Arç","AS Iluro FT","ESP",32.5]
[null,"U16 - CARMONA Simon","CARMONA Simon","U16",40,"CARMONA","Simon","FTC Saint-Symphorien-sur-Coise","FRA",32]
[null,"U16 - KUSHMYRUK Alexandre","KUSHMYRUK Alexandre","U16",41,"KUSHMYRUK","Alexandre","CS Zarco","POR",31.5]
[null,"U16 - LANCI Edoardo","LANCI Edoardo","U16",42,"LANCI","Edoardo","Subbuteisti Modena 1982","ITA",27]
[null,"U16 - TEIXIDO-REGNIER Maël","TEIXIDO-REGNIER Maël","U16",43,"TEIXIDO-REGNIER","Maël","CFT Puylaurens","FRA",26.5]
[null,"U16 - BENITA Álvaro","BENITA Álvaro","U16",44,"BENITA","Álvaro","AFT Turia 1981","ESP",25.5]
[null,"U16 - SANI Tommaso","SANI Tommaso","U16",45,"SANI","Tommaso","Rebels Genova","ITA",25]
[null,"U16 - DESPRETZ Chloé",{"$f":"CONCATENATE(UPPER(F1819),\" \",G1819)","v":"DESPRETZ Chloé"},"U16",46,"DESPRETZ","Chloé","Avenir Subbuteo Hennuyer","BEL",23]
[null,"U16 - AVERNA Marco","AVERNA Marco","U16",47,"AVERNA","Marco","Subbuteo Club Reggio Calabria","ITA",20]
[null,"U16 - ÃCUNA Henrique","ÃCUNA Henrique","U16",48,"ÃCUNA","Henrique","CS Zarco","POR",18.5]
[null,"U16 - MÁRQUEZ GALISTEO Owen","MÁRQUEZ GALISTEO Owen","U16",48,"MÁRQUEZ GALISTEO","Owen","AS Iluro FT","ESP",18.5]
[null,"U16 - GUYOT Jade","GUYOT Jade","U16",50,"GUYOT","Jade","FTC Saint-Symphorien-sur-Coise","FRA",17]
[null,"U16 - VIDAL TORNER Cesc","VIDAL TORNER Cesc","U16",51,"VIDAL TORNER","Cesc","AS Iluro FT","ESP",15.5]
[null,"U16 - WARREN Jamie","WARREN Jamie","U16",52,"WARREN","Jamie","Langton Green Subbuteo Club","ENG",15]
[null,"U16 - DHYNE Nathanaël","DHYNE Nathanaël","U16",53,"DHYNE","Nathanaël","SC Temploux","BEL",14]
[null,"U16 - LUPO Liam","LUPO Liam","U16",54,"LUPO","Liam","Football de table de Pegomas","FRA",12]
[null,"U16 - DIMAKEAS Apollon","DIMAKEAS Apollon","U16",55,"DIMAKEAS","Apollon","Roligans Ilioupolis TSC","GRE",11.5]
[null,"U16 - FAZIO Lorenzo","FAZIO Lorenzo","U16",56,"FAZIO","Lorenzo","Rebels Genova","ITA",11]
[null,"U16 - FERRETTI Andrea","FERRETTI Andrea","U16",56,"FERRETTI","Andrea","Rebels Genova","ITA",11]
[null,"U16 - GROSDENT Sophia","GROSDENT Sophia","U16",58,"GROSDENT","Sophia","Wamme SC","BEL",10]
[null,"U16 - CAPOFERRI Alberto","CAPOFERRI Alberto","U16",59,"CAPOFERRI","Alberto","Rebels Genova","ITA",9]
[null,"U16 - BERNARD Lena","BERNARD Lena","U16",59,"BERNARD","Lena","FTC Saint-Symphorien-sur-Coise","FRA",9]
[null,"U16 - DENNE Mael","DENNE Mael","U16",59,"DENNE","Mael","SC Lion's Eugies","BEL",9]
[null,"U16 - RAPONI Stefano","RAPONI Stefano","U16",59,"RAPONI","Stefano","Ves Gentes","ITA",9]
[null,"U16 - DEL BEN David","DEL BEN David","U16",59,"DEL BEN","David","Pinco Devils Table Soccer","ITA",9]
[null,"U16 - VERPLAETSE Robin","VERPLAETSE Robin","U16",59,"VERPLAETSE","Robin","ELM'Aye SC","BEL",9]
[null,"U16 - BONCIANI Samuele","BONCIANI Samuele","U16",65,"BONCIANI","Samuele","CS Firenze","ITA",8]
[null,"U16 - FROMWEILER Théo","FROMWEILER Théo","U16",65,"FROMWEILER","Théo","FTC Saint-Symphorien-sur-Coise","FRA",8]
[null,"U16 - GARCÍA Alejandro","GARCÍA Alejandro","U16",67,"GARCÍA","Alejandro","AC Los Remedios FM","ESP",6.5]
[null,"U16 - VLASTARAKOS Evangelos","VLASTARAKOS Evangelos","U16",68,"VLASTARAKOS","Evangelos","Roligans Ilioupolis TSC","GRE",6]
[null,"U16 - BARONE SÁNCHEZ Diego","BARONE SÁNCHEZ Diego","U16",69,"BARONE SÁNCHEZ","Diego","Subbuteo Dragons Azuqueca","ESP",5]
[null,"U16 - GANDIN Alessandro","GANDIN Alessandro","U16",69,"GANDIN","Alessandro","Rebels Genova","ITA",5]
[null,"U16 - MARTÍN Curro","MARTÍN Curro","U16",69,"MARTÍN","Curro","AC Los Remedios FM","ESP",5]
[null,"U16 - GEORGANOUDIS Nikolaos","GEORGANOUDIS Nikolaos","U16",69,"GEORGANOUDIS","Nikolaos","Scarlet Battalion SC","GRE",5]
[null,"U16 - BLANCO Jesús","BLANCO Jesús","U16",69,"BLANCO","Jesús","AC Los Remedios FM","ESP",5]
[null,"U16 - HAAS Louis","HAAS Louis","U16",69,"HAAS","Louis","TSC Royal 78 Kaisermühlen","AUT",5]
[null,"U16 - FITZPATRICK Elliot","FITZPATRICK Elliot","U16",69,"FITZPATRICK","Elliot","Irish Premier League","IRL",5]
[null,"U16 - PASSINI Manuel","PASSINI Manuel","U16",69,"PASSINI","Manuel","F.lli Bari Reggio Emilia","ITA",5]
[null,"U16 - HAAS Johannes","HAAS Johannes","U16",69,"HAAS","Johannes","Free Agent","AUT",5]
[null,"U16 - SALATINO Daniele","SALATINO Daniele","U16",78,"SALATINO","Daniele","SC Bari","ITA",4]
[null,"U16 - GUYAUX Adam","GUYAUX Adam","U16",78,"GUYAUX","Adam","US Huy","BEL",4]
[null,"U16 - CHANOS Michail K","CHANOS Michail K","U16",78,"CHANOS","Michail K","Evia CAN","GRE",4]
[null,"U16 - BARATTUCCI Alberto","BARATTUCCI Alberto","U16",78,"BARATTUCCI","Alberto","Ves Gentes","ITA",4]
[null,"U16 - CHAPMAN Hadley","CHAPMAN Hadley","U16",82,"CHAPMAN","Hadley","Langton Green Subbuteo Club","ENG",3]
[null,"U16 - BIN JASMIL Aaryan Irfan","BIN JASMIL Aaryan Irfan","U16",82,"BIN JASMIL","Aaryan Irfan","Jurong Central SC","SGP",3]
[null,"U16 - BINTE NORIZAL Naomi Bilqis","BINTE NORIZAL Naomi Bilqis","U16",82,"BINTE NORIZAL","Naomi Bilqis","Jurong Central SC","SGP",3]
[null,"U16 - RAHMAN Max","RAHMAN Max","U16",82,"RAHMAN","Max","Langton Green Subbuteo Club","ENG",3]
[null,"U16 - EBEJER Gabriel","EBEJER Gabriel","U16",86,"EBEJER","Gabriel","Bormla SC","MLT",1]
[null,"U16 - PHOKOS Gabriel","PHOKOS Gabriel","U16",86,"PHOKOS","Gabriel","The Tumbleweeds","AUS",1]
[null,"U16 - KANDA Kotetsu","KANDA Kotetsu","U16",86,"KANDA","Kotetsu","Table Football Club Kashiwa Sunrise","JPN",1]
[null,"U16 - BOGDANIDIS Dimitris","BOGDANIDIS Dimitris","U16",86,"BOGDANIDIS","Dimitris","Polis Athlitikos Syllogos Daskaliou Kerateas","GRE",1]
[null,{"$f":"CONCATENATE(D1863,\" - \",C1863)","v":"U16 - SANTOS Guilherme"},"SANTOS Guilherme","U16",86,"SANTOS","Guilherme","CF os Belenenses","POR",1]
[null,"U16 - ACUÑA PADILLA Adrià","ACUÑA PADILLA Adrià","U16",86,"ACUÑA PADILLA","Adrià","Barcelona FT","ESP",1]
[null,"U16 - KOTROTSOS Athanasios","KOTROTSOS Athanasios","U16",86,"KOTROTSOS","Athanasios","Roligans Ilioupolis TSC","GRE",1]
[null,"U16 - ACUÑA PADILLA Martí","ACUÑA PADILLA Martí","U16",86,"ACUÑA PADILLA","Martí","Barcelona FT","ESP",1]
[null,"U12 - BOGDANIDIS Dimitris","BOGDANIDIS Dimitris","U12",1,"BOGDANIDIS","Dimitris","Polis Athlitikos Syllogos Daskaliou Kerateas","GRE",759]
[null,"U12 - DIMAKEAS Apollon","DIMAKEAS Apollon","U12",2,"DIMAKEAS","Apollon","Roligans Ilioupolis TSC","GRE",677.5]
[null,"U12 - BALITO Davide","BALITO Davide","U12",3,"BALITO","Davide","Rebels Genova","ITA",638.5]
[null,"U12 - LEDOIT Augustin","LEDOIT Augustin","U12",4,"LEDOIT","Augustin","Paris Université Club","FRA",592]
[null,"U12 - CHIAPPETTA Gabriel","CHIAPPETTA Gabriel","U12",5,"CHIAPPETTA","Gabriel","Paris Université Club","FRA",586.5]
[null,"U12 - JORIS Martin","JORIS Martin","U12",6,"JORIS","Martin","ELM'Aye SC","BEL",490]
[null,"U12 - ROSA Julià","ROSA Julià","U12",7,"ROSA","Julià","AS Iluro FT","ESP",462]
[null,"U12 - SALATINO Daniele","SALATINO Daniele","U12",8,"SALATINO","Daniele","SC Bari","ITA",415.5]
[null,"U12 - DENNE Mael","DENNE Mael","U12",9,"DENNE","Mael","SC Lion's Eugies","BEL",398.5]
[null,"U12 - HAAS Johannes","HAAS Johannes","U12",10,"HAAS","Johannes","Free Agent","AUT",380.5]
[null,"U12 - KONIDARIS Konstantinos","KONIDARIS Konstantinos","U12",11,"KONIDARIS","Konstantinos","Roligans Ilioupolis TSC","GRE",328.5]
[null,"U12 - KANDA Kotetsu","KANDA Kotetsu","U12",12,"KANDA","Kotetsu","Table Football Club Kashiwa Sunrise","JPN",318]
[null,"U12 - BONDI Clément","BONDI Clément","U12",13,"BONDI","Clément","Subbuteo Le Cannet Côte d'Azur","FRA",307]
[null,"U12 - LAVRAKIS Marios","LAVRAKIS Marios","U12",14,"LAVRAKIS","Marios","Noctuas Athens TSC","GRE",305.5]
[null,"U12 - REGUERA MUÑOZ Gonzalo","REGUERA MUÑOZ Gonzalo","U12",15,"REGUERA MUÑOZ","Gonzalo","FM La Plazoleta","ESP",276.5]
[null,"U12 - GOFFIN Mathis","GOFFIN Mathis","U12",16,"GOFFIN","Mathis","SC Lion's Eugies","BEL",273]
[null,"U12 - MURABITO Samuele",{"$f":"CONCATENATE(UPPER(F1883),\" \",G1883)","v":"MURABITO Samuele"},"U12",17,"MURABITO","Samuele","ASD Siracusa Calcio Tavolo","ITA",240]
[null,"U12 - SANFILIPPO Alessio","SANFILIPPO Alessio","U12",18,"SANFILIPPO","Alessio","ASD Siracusa Calcio Tavolo","ITA",225]
[null,"U12 - MAZZILLI Edoardo","MAZZILLI Edoardo","U12",18,"MAZZILLI","Edoardo","Subbuteisti Modena 1982","ITA",225]
[null,"U12 - COPPOLINO Samuele","COPPOLINO Samuele","U12",18,"COPPOLINO","Samuele","Barcellona Calcio Tavolo","ITA",225]
[null,"U12 - ANTÚNEZ Antonio","ANTÚNEZ Antonio","U12",21,"ANTÚNEZ","Antonio","AC Los Remedios FM","ESP",215]
[null,"U12 - MARTINELLI Antonio","MARTINELLI Antonio","U12",22,"MARTINELLI","Antonio","SC Bari","ITA",183.5]
[null,"U12 - MARCHÁN Alberto","MARCHÁN Alberto","U12",23,"MARCHÁN","Alberto","AC Los Remedios FM","ESP",175]
[null,"U12 - ZERDILAS Charalambos","ZERDILAS Charalambos","U12",24,"ZERDILAS","Charalambos","Roligans Ilioupolis TSC","GRE",162]
[null,"U12 - AVERNA Marco","AVERNA Marco","U12",25,"AVERNA","Marco","Subbuteo Club Reggio Calabria","ITA",150]
[null,"U12 - BRIGNON-KIEGL Isaac","BRIGNON-KIEGL Isaac","U12",26,"BRIGNON-KIEGL","Isaac","Paris Université Club","FRA",121.5]
[null,"U12 - KORDANTONOPOULOS Phillipos","KORDANTONOPOULOS Phillipos","U12",27,"KORDANTONOPOULOS","Phillipos","Roligans Ilioupolis TSC","GRE",114]
[null,"U12 - MÁRQUEZ GALISTEO Owen","MÁRQUEZ GALISTEO Owen","U12",28,"MÁRQUEZ GALISTEO","Owen","AS Iluro FT","ESP",108]
[null,"U12 - VERA PALACIOS Miguel","VERA PALACIOS Miguel","U12",28,"VERA PALACIOS","Miguel","AC Los Remedios FM","ESP",108]
[null,"U12 - ROSSITTO Aleksandar","ROSSITTO Aleksandar","U12",30,"ROSSITTO","Aleksandar","SC Bari","ITA",105.5]
[null,"U12 - CHAPMAN Hadley","CHAPMAN Hadley","U12",31,"CHAPMAN","Hadley","Langton Green Subbuteo Club","ENG",101]
[null,"U12 - PENNATI Simone","PENNATI Simone","U12",32,"PENNATI","Simone","Rebels Genova","ITA",100]
[null,"U12 - PREZIUSO Gabriele","PREZIUSO Gabriele","U12",33,"PREZIUSO","Gabriele","Subbuteisti Modena 1982","ITA",90]
[null,"U12 - BONNEFEMME Jules","BONNEFEMME Jules","U12",33,"BONNEFEMME","Jules","FTC Caen","FRA",90]
[null,"U12 - CHERONNET Gaston","CHERONNET Gaston","U12",33,"CHERONNET","Gaston","Racing White Woluwé Subbuteo","BEL",90]
[null,"U12 - LAFONTAINE Ninon","LAFONTAINE Ninon","U12",33,"LAFONTAINE","Ninon","FTC Caen","FRA",90]
[null,"U12 - MARLIA Martin Aliou","MARLIA Martin Aliou","U12",37,"MARLIA","Martin Aliou","SC Sombrero","ITA",80]
[null,"U12 - SPYROPOULOS Giorgos Aggelos","SPYROPOULOS Giorgos Aggelos","U12",38,"SPYROPOULOS","Giorgos Aggelos","Flaming Flickers SC","GRE",79]
[null,"U12 - BARNOLA Arç","BARNOLA Arç","U12",39,"BARNOLA","Arç","AS Iluro FT","ESP",60]
[null,"U12 - BOGDANIDIS Alex","BOGDANIDIS Alex","U12",40,"BOGDANIDIS","Alex","Polis Athlitikos Syllogos Daskaliou Kerateas","GRE",54]
[null,"U12 - PITSARI Alexandra","PITSARI Alexandra","U12",41,"PITSARI","Alexandra","Crimson Horses","GRE",45]
[null,"U12 - RUDY HESTY Edin Reyza","RUDY HESTY Edin Reyza","U12",42,"RUDY HESTY","Edin Reyza","Jurong Central SC","SGP",36]
[null,"U12 - HAAS Louis","HAAS Louis","U12",43,"HAAS","Louis","TSC Royal 78 Kaisermühlen","AUT",28.5]
[null,"U12 - GIANTAIS Emilios","GIANTAIS Emilios","U12",44,"GIANTAIS","Emilios","Flaming Flickers SC","GRE",27]
[null,"U12 - MONGE Afonso","MONGE Afonso","U12",45,"MONGE","Afonso","CS Zarco","POR",26]
[null,"U12 - BENTO Francisco","BENTO Francisco","U12",45,"BENTO","Francisco","CF os Belenenses","POR",26]
[null,"U12 - DIAS Daniel","DIAS Daniel","U12",45,"DIAS","Daniel","CS Zarco","POR",26]
[null,"U12 - ROSSI Francesco","ROSSI Francesco","U12",48,"ROSSI","Francesco","TSC Stella Artois Milano","ITA",19]
[null,"U12 - LEBUTTE Martin","LEBUTTE Martin","U12",49,"LEBUTTE","Martin","ELM'Aye SC","BEL",18]
[null,"U12 - CRAMER Reggie","CRAMER Reggie","U12",49,"CRAMER","Reggie","Free Agent","ENG",18]
[null,"U12 - RAHMAN Max","RAHMAN Max","U12",49,"RAHMAN","Max","Langton Green Subbuteo Club","ENG",18]
[null,"U12 - FITZPATRICK Elliot","FITZPATRICK Elliot","U12",49,"FITZPATRICK","Elliot","Irish Premier League","IRL",18]
[null,"U12 - CHATZISTAVRAKIS Emmanouil","CHATZISTAVRAKIS Emmanouil","U12",53,"CHATZISTAVRAKIS","Emmanouil","Roligans Ilioupolis TSC","GRE",14]
[null,"U12 - GARCÍA CORREDERA Rafael","GARCÍA CORREDERA Rafael","U12",54,"GARCÍA CORREDERA","Rafael","AC Los Remedios FM","ESP",10]
[null,"U12 - PERETTI Teo","PERETTI Teo","U12",54,"PERETTI","Teo","Rebels Genova","ITA",10]
[null,"U12 - DEL GENOVESE Cristian","DEL GENOVESE Cristian","U12",54,"DEL GENOVESE","Cristian","SC Sombrero","ITA",10]
[null,"U12 - PETEA Aldo Francesco","PETEA Aldo Francesco","U12",54,"PETEA","Aldo Francesco","TSC Stella Artois Milano","ITA",10]
[null,"U12 - BOTTINO Alessio","BOTTINO Alessio","U12",58,"BOTTINO","Alessio","TSC Stella Artois Milano","ITA",9]
[null,"U12 - HAJA MAIDEEN Hanif","HAJA MAIDEEN Hanif","U12",59,"HAJA MAIDEEN","Hanif","Paris Université Club","FRA",8]
[null,"U12 - HAJA MAIDEEN Hisham","HAJA MAIDEEN Hisham","U12",59,"HAJA MAIDEEN","Hisham","Paris Université Club","FRA",8]
[null,{"$f":"CONCATENATE(D1927,\" - \",C1927)","v":"U12 - MONTAÑO Juan Antonio"},"MONTAÑO Juan Antonio","U12",61,"MONTAÑO","Juan Antonio","AC Los Remedios FM","ESP",5]
[null,"U12 - SAGUATTI Giacomo","SAGUATTI Giacomo","U12",61,"SAGUATTI","Giacomo","Subbuteisti Modena 1982","ITA",5]
[null,"U12 - BARONE SÁNCHEZ Diego","BARONE SÁNCHEZ Diego","U12",61,"BARONE SÁNCHEZ","Diego","Subbuteo Dragons Azuqueca","ESP",5]
[null,"U12 - PREZIUSO Simone","PREZIUSO Simone","U12",61,"PREZIUSO","Simone","Subbuteisti Modena 1982","ITA",5]
[null,"U12 - FRÉBUTTE Giulian","FRÉBUTTE Giulian","U12",61,"FRÉBUTTE","Giulian","SC LIon's Eugies","BEL",5]
[null,"U12 - DHONDT Ursule","DHONDT Ursule","U12",61,"DHONDT","Ursule","Templeuve United TSC","BEL",5]
[null,"U12 - AYALA RAMÍREZ José","AYALA RAMÍREZ José","U12",61,"AYALA RAMÍREZ","José","AC Los Remedios FM","ESP",5]
[null,"U12 - ARCHERRAY Mael","ARCHERRAY Mael","U12",61,"ARCHERRAY","Mael","FTC Caen","FRA",5]
[null,"U12 - MOSCATO Corrado Nicholas","MOSCATO Corrado Nicholas","U12",61,"MOSCATO","Corrado Nicholas","Subbuteo Club Reggio Calabria","ITA",5]
[null,"U12 - RUELLE Marius","RUELLE Marius","U12",61,"RUELLE","Marius","SC Lion's Eugies","BEL",5]
[null,"U12 - LEFEBVRE Adrien","LEFEBVRE Adrien","U12",61,"LEFEBVRE","Adrien","FTC Caen","FRA",5]
[null,"U12 - CRUZ GALLARDO Luis","CRUZ GALLARDO Luis","U12",61,"CRUZ GALLARDO","Luis","AC Los Remedios FM","ESP",5]
[null,"U12 - ELLINAS Efthimis","ELLINAS Efthimis","U12",61,"ELLINAS","Efthimis","Free Agent","GRE",5]
[null,"U12 - KATSIKARIS Panagiotis","KATSIKARIS Panagiotis","U12",74,"KATSIKARIS","Panagiotis","Polis Athlitikos Syllogos Daskaliou Kerateas","GRE",4]
[null,"U12 - NIAVIS Apostolos","NIAVIS Apostolos","U12",74,"NIAVIS","Apostolos","Crimson Horses","GRE",4]
[null,"U12 - KARAVASILIS Dimitris","KARAVASILIS Dimitris","U12",74,"KARAVASILIS","Dimitris","crimson horses","GRE",4]
[null,"U12 - LAMPROPOULOS Georgios","LAMPROPOULOS Georgios","U12",74,"LAMPROPOULOS","Georgios","Free Agent","GRE",4]
[null,"U12 - BOROLI Guglielmo","BOROLI Guglielmo","U12",78,"BOROLI","Guglielmo","Paris Université Club","FRA",3.5]
[null,"U12 - SANTOS Mateus","SANTOS Mateus","U12",79,"SANTOS","Mateus","CS Zarco","POR",3]
[null,"U12 - JANSSENS Gabriel","JANSSENS Gabriel","U12",79,"JANSSENS","Gabriel","Wamme SC","BEL",3]
[null,"U12 - PITSARIS Georgios",{"$f":"CONCATENATE(UPPER(F1947),\" \",G1947)","v":"PITSARIS Georgios"},"U12",79,"PITSARIS","Georgios","Crimson Horses","GRE",3]
[null,"U12 - EXARCHOU Athanasios","EXARCHOU Athanasios","U12",82,"EXARCHOU","Athanasios","Crimson Horses","GRE",2]
[null,"U12 - ELLINA Maria","ELLINA Maria","U12",82,"ELLINA","Maria","Free Agent","GRE",2]
[null,"U12 - RUBBI Valentino","RUBBI Valentino","U12",84,"RUBBI","Valentino","Paris Université Club","FRA",1]
[null," -  "," "]
[null," -  "," "]
[null," -  "," "]
[null," -  "," "]
[null," -  "," "]
[null," -  "," "]
[null," -  "," "]
[null," -  "," "]
[null," -  "," "]
[null," -  "," "]
[null," -  "," "]
[null," -  "," "]
[null," -  "," "]
[null," -  "," "]
[null," -  "," "]
[null," -  "," "]
[null," -  "," "]
[null," -  "," "]
[null," -  "," "]
[null," -  "," "]
[null," -  "," "]
[null," -  "," "]
[null," -  "," "]
[null," -  "," "]
[null," -  "," "]
[null," -  "," "]
[null," -  "," "]
[null," -  "," "]
[null," -  "," "]
[null," -  "," "]
[null," -  "," "]
[null," -  "," "]
[null," -  "," "]
[null," -  "," "]
[null," -  "," "]
[null," -  "," "]
[null," -  "," "]
[null," -  "," "]
[null," -  "," "]
[null," -  "," "]
[null,{"$f":"CONCATENATE(D1991,\" - \",C1991)","v":" -  "}," "]
[null," -  "," "]
[null," -  "," "]
[null," -  "," "]
[null," -  "," "]
[null," -  "," "]
[null," -  "," "]
[null," -  "," "]
[null," -  "," "]
[null," -  "," "]
[null," -  "," "]
[null," -  "," "]
[null," -  "," "]
[null," -  "," "]
[null," -  "," "]
[null," -  "," "]
[null," -  "," "]
[null," -  "," "]
[null," -  "," "]
[null," -  "," "]
[null," -  ",{"$f":"CONCATENATE(UPPER(F2011),\" \",G2011)","v":" "}]
[null," -  "," "]
[null," -  "," "]
[null," -  "," "]
[null," -  "," "]
[null," -  "," "]
[null," -  "," "]
[null," -  "," "]
[null," -  "," "]
[null," -  "," "]
[null," -  "," "]
[null," -  "," "]
[null," -  "," "]
[null," -  "," "]
[null," -  "," "]
[null," -  "," "]
[null," -  "," "]
[null," -  "," "]
[null," -  "," "]
[null," -  "," "]
[null," -  "," "]
[null," -  "," "]
[null," -  "," "]
[null," -  "," "]
[null," -  "," "]
[null," -  "," "]
[null," -  "," "]
[null," -  "," "]
[null," -  "," "]
[null," -  "," "]
[null," -  "," "]
[null," -  "," "]
[null," -  "," "]
[null," -  "," "]
[null," -  "," "]
[null," -  "," "]
[null," -  "," "]
[null," -  "," "]
[null," -  "," "]
[null," -  "," "]
[null," -  "," "]
[null," -  "," "]
[null," -  "," "]
[null," -  "," "]
[null,{"$f":"CONCATENATE(D2055,\" - \",C2055)","v":" -  "}," "]
[null," -  "," "]
[null," -  "," "]
[null," -  "," "]
[null," -  "," "]
[null," -  "," "]
[null," -  "," "]
[null," -  "," "]
[null," -  "," "]
[null," -  "," "]
[null," -  "," "]
[null," -  "," "]
[null," -  "," "]
[null," -  "," "]
[null," -  "," "]
[null," -  "," "]
[null," -  "," "]
[null," -  "," "]
[null," -  "," "]
[null," -  "," "]
[null," -  ",{"$f":"CONCATENATE(UPPER(F2075),\" \",G2075)","v":" "}]
[null," -  "," "]
[null," -  "," "]
[null," -  "," "]
[null," -  "," "]
[null," -  "," "]
[null," -  "," "]
[null," -  "," "]
[null," -  "," "]
[null," -  "," "]
[null," -  "," "]
[null," -  "," "]
[null," -  "," "]
[null," -  "," "]
[null," -  "," "]
[null," -  "," "]
[null," -  "," "]
[null," -  "," "]
[null," -  "," "]
[null," -  "," "]
[null," -  "," "]
[null," -  "," "]
[null," -  "," "]
[null," -  "," "]
[null," -  "," "]
[null," -  "," "]
[null," -  "," "]
[null," -  "," "]
[null," -  "," "]
[null," -  "," "]
[null," -  "," "]
[null," -  "," "]
[null," -  "," "]
[null," -  "," "]
[null," -  "," "]
[null," -  "," "]
[null," -  "," "]
[null," -  "," "]
[null," -  "," "]
[null," -  "," "]
[null," -  "," "]
[null," -  "," "]
[null," -  "," "]
[null," -  "," "]
[null,{"$f":"CONCATENATE(D2119,\" - \",C2119)","v":" -  "}," "]
[null," -  "," "]
[null," -  "," "]
[null," -  "," "]
[null," -  "," "]
[null," -  "," "]
[null," -  "," "]
[null," -  "," "]
[null," -  "," "]
[null," -  "," "]
[null," -  "," "]
[null," -  "," "]
[null," -  "," "]
[null," -  "," "]
[null," -  "," "]
[null," -  "," "]
[null," -  "," "]
[null," -  "," "]
[null," -  "," "]
[null," -  "," "]
[null," -  ",{"$f":"CONCATENATE(UPPER(F2139),\" \",G2139)","v":" "}]
[null," -  "," "]
[null," -  "," "]
[null," -  "," "]
[null," -  "," "]
[null," -  "," "]
[null," -  "," "]
[null," -  "," "]
[null," -  "," "]
[null," -  "," "]
[null," -  "," "]
[null," -  "," "]
[null," -  "," "]
[null," -  "," "]
[null," -  "," "]
[null," -  "," "]
[null," -  "," "]
[null," -  "," "]
[null," -  "," "]
[null," -  "," "]
[null," -  "," "]
[null," -  "," "]
[null," -  "," "]
[null," -  "," "]
[null," -  "," "]
[null," -  "," "]
[null," -  "," "]
[null," -  "," "]
[null," -  "," "]
[null," -  "," "]
[null," -  "," "]
[null," -  "," "]
[null," -  "," "]
[null," -  "," "]
[null," -  "," "]
[null," -  "," "]
[null," -  "," "]
[null," -  "," "]
[null," -  "," "]
[null," -  "," "]
[null," -  "," "]
[null," -  "," "]
[null," -  "," "]
[null," -  "," "]
[null,{"$f":"CONCATENATE(D2183,\" - \",C2183)","v":" -  "}," "]
[null," -  "," "]
[null," -  "," "]
[null," -  "," "]
[null," -  "," "]
[null," -  "," "]
[null," -  "," "]
[null," -  "," "]
[null," -  "," "]
[null," -  "," "]
[null," -  "," "]
[null," -  "," "]
[null," -  "," "]
[null," -  "," "]
[null," -  "," "]
[null," -  "," "]
[null," -  "," "]
[null," -  "," "]
[null," -  "," "]
[null," -  "," "]
[null," -  ",{"$f":"CONCATENATE(UPPER(F2203),\" \",G2203)","v":" "}]
[null," -  "," "]
[null," -  "," "]
[null," -  "," "]
[null," -  "," "]
[null," -  "," "]
[null," -  "," "]
[null," -  "," "]
[null," -  "," "]
[null," -  "," "]
[null," -  "," "]
[null," -  "," "]
[null," -  "," "]
[null," -  "," "]
[null," -  "," "]
[null," -  "," "]
[null," -  "," "]
[null," -  "," "]
[null," -  "," "]
[null," -  "," "]
[null," -  "," "]
[null," -  "," "]
[null," -  "," "]
[null," -  "," "]
[null," -  "," "]
[null," -  "," "]
[null," -  "," "]
[null," -  "," "]
[null," -  "," "]
[null," -  "," "]
[null," -  "," "]
[null," -  "," "]
[null," -  "," "]
[null," -  "," "]
[null," -  "," "]
[null," -  "," "]
[null," -  "," "]
[null," -  "," "]
[null," -  "," "]
[null," -  "," "]
[null," -  "," "]
[null," -  "," "]
[null," -  "," "]
[null," -  "," "]
[null,{"$f":"CONCATENATE(D2247,\" - \",C2247)","v":" -  "}," "]
[null," -  "," "]
[null," -  "," "]
[null," -  "," "]
[null," -  "," "]
[null," -  "," "]
[null," -  "," "]
[null," -  "," "]
[null,{"$f":"CONCATENATE(D2255,\" - \",C2255)","v":" -  "}," "]

{"sheet":"RankingTeams","index":8,"n_rows":287,"n_cols":8,"rows_kept":287,"cut":false,"hidden":true,"merged":[[0,2,0,7],[4,2,4,7]]}
[40,null,{"$f":"N_RankingTeamSheetTitle","v":"Teams Ranking"}]
[null,null,{"$f":"N_TotalNbRankedPlayers","v":"Total number of ranked players"},{"$f":"COUNTA(OFFSET(FullTeamsRankingList,0,2,,1))","v":229}]
[null,null,{"$f":"N_TotalNbRankingLines","v":"Total number of ranking lines"},{"$f":"COUNTA(OFFSET(FullTeamsRankingList,0,0,,1))","v":281}]
[]
[null,null,{"$f":"N_RankedTeams_list","v":"Ranked Teams list"}]
[null,null,null,{"$f":"N_Rank","v":"Rk"},{"$f":"N_Name","v":"Name"},{"$f":"N_Team & \" #\"","v":"Team #"},{"$f":"N_Nationality","v":"Nationality"},{"$f":"N_Points","v":"Points"}]
[null,{"$f":"C7","v":"Bormla SC"},{"$f":"IF(E7=\"\",\"\",E7&IF(RIGHT(F7,1)=\"A\",\"\",\" \"&CODE(RIGHT(F7,1))-CODE(\"A\")+1))","v":"Bormla SC"},1,"Bormla SC","Team A","MLT",6234]
[null,{"$f":"C8","v":"F.lli Bari Reggio Emilia"},{"$f":"IF(E8=\"\",\"\",E8&IF(RIGHT(F8,1)=\"A\",\"\",\" \"&CODE(RIGHT(F8,1))-CODE(\"A\")+1))","v":"F.lli Bari Reggio Emilia"},2,"F.lli Bari Reggio Emilia","Team A","ITA",5180]
[null,"Valletta SC","Valletta SC",3,"Valletta SC","Team A","MLT",4562]
[null,"CCT Eagles Napoli","CCT Eagles Napoli",4,"CCT Eagles Napoli","Team A","ITA",3351.5]
[null,"TSC Falcons Athens","TSC Falcons Athens",5,"TSC Falcons Athens","Team A","GRE",3294]
[null,"ASD SC Salernitana","ASD SC Salernitana",6,"ASD SC Salernitana","Team A","ITA",3174]
[null,"ST Stembert","ST Stembert",7,"ST Stembert","Team A","BEL",2923]
[null,"SC Fiamme Azzurre","SC Fiamme Azzurre",8,"SC Fiamme Azzurre","Team A","ITA",2881]
[null,"Bologna Tigers Subbuteo","Bologna Tigers Subbuteo",9,"Bologna Tigers Subbuteo","Team A","ITA",2792]
[null,"FTC Caen","FTC Caen",10,"FTC Caen","Team A","FRA",2775]
[null,"Proteas Athens SC","Proteas Athens SC",11,"Proteas Athens SC","Team A","GRE",2673]
[null,"Avenir Subbuteo Hennuyer","Avenir Subbuteo Hennuyer",12,"Avenir Subbuteo Hennuyer","Team A","BEL",2260]
[null,"Tiburones FM","Tiburones FM",13,"Tiburones FM","Team A","ESP",2187.5]
[null,"Olympia CS","Olympia CS",14,"Olympia CS","Team A","GRE",1956]
[null,"FTC Issy-les-Moulineaux","FTC Issy-les-Moulineaux",15,"FTC Issy-les-Moulineaux","Team A","FRA",1917]
[null,"Barcellona Calcio Tavolo","Barcellona Calcio Tavolo",16,"Barcellona Calcio Tavolo","Team A","ITA",1868]
[null,"Scarlet Battalion SC","Scarlet Battalion SC",17,"Scarlet Battalion SC","Team A","GRE",1744.5]
[null,"TSC Royal 78 Kaisermühlen","TSC Royal 78 Kaisermühlen",18,"TSC Royal 78 Kaisermühlen","Team A","AUT",1624]
[null,"Langton Green Subbuteo Club","Langton Green Subbuteo Club",19,"Langton Green Subbuteo Club","Team A","ENG",1603.5]
[null,"TS Napoli Fighters","TS Napoli Fighters",20,"TS Napoli Fighters","Team A","ITA",1467]
[null,"Noctuas Athens TSC","Noctuas Athens TSC",21,"Noctuas Athens TSC","Team A","GRE",1296]
[null,"CS Virtus Rieti","CS Virtus Rieti",22,"CS Virtus Rieti","Team A","ITA",1226]
[null,"CAP Ciudad de Murcia FM","CAP Ciudad de Murcia FM",23,"CAP Ciudad de Murcia FM","Team A","ESP",1153]
[null,"Elstow Lions TFC","Elstow Lions TFC",24,"Elstow Lions TFC","Team A","ENG",1118]
[null,"Crimson Horses","Crimson Horses",25,"Crimson Horses","Team A","GRE",1067]
[null,"SC Lion's Eugies","SC Lion's Eugies",26,"SC Lion's Eugies","Team A","BEL",1047.5]
[null,"SC Charleroi","SC Charleroi",27,"SC Charleroi","Team A","BEL",970]
[null,"SS Lazio TFC Roma","SS Lazio TFC Roma",28,"SS Lazio TFC Roma","Team A","ITA",966]
[null,"Master Sanremo","Master Sanremo",29,"Master Sanremo","Team A","ITA",899]
[null,"Atlas FTC","Atlas FTC",30,"Atlas FTC","Team A","GRE",867]
[null,"SC Temploux","SC Temploux",31,"SC Temploux","Team A","BEL",791]
[null,"Valletta Lions TFC","Valletta Lions TFC",32,"Valletta Lions TFC","Team A","MLT",781]
[null,"TSC Phoenix","TSC Phoenix",33,"TSC Phoenix","Team A","AUT",780]
[null,"Mallorca Águilas FM","Mallorca Águilas FM",34,"Mallorca Águilas FM","Team A","ESP",670.5]
[null,"Melbourne TFC","Melbourne TFC",35,"Melbourne TFC","Team A","AUS",562.5]
[null,"AFT Turia 1981","AFT Turia 1981",36,"AFT Turia 1981","Team A","ESP",559]
[null,"Jurong Central SC","Jurong Central SC",37,"Jurong Central SC","Team A","SGP",555]
[null,"Wolverhampton Table Football Club","Wolverhampton Table Football Club",38,"Wolverhampton Table Football Club","Team A","ENG",554]
[null,"Avenir Subbuteo Hennuyer 2","Avenir Subbuteo Hennuyer 2",39,"Avenir Subbuteo Hennuyer","Team B","BEL",499.5]
[null,"Tiburones FM 2","Tiburones FM 2",40,"Tiburones FM","Team B","ESP",467]
[null,"GRD 1º Maio Tires","GRD 1º Maio Tires",41,"GRD 1º Maio Tires","Team A","FIS",448.5]
[null,"Subbuteo Casale","Subbuteo Casale",42,"Subbuteo Casale","Team A","ITA",435]
[null,"Yorkshire Phoenix and Dewsbury Moor TFC","Yorkshire Phoenix and Dewsbury Moor TFC",43,"Yorkshire Phoenix and Dewsbury Moor TFC","Team A","ENG",426]
[null,"OSC Yamato Wild Blue TFC","OSC Yamato Wild Blue TFC",44,"OSC Yamato Wild Blue TFC","Team A","JPN",409]
[null,"Subbuteo Dragons Azuqueca","Subbuteo Dragons Azuqueca",45,"Subbuteo Dragons Azuqueca","Team A","ESP",380]
[null,"Northern Falcons TFC","Northern Falcons TFC",46,"Northern Falcons TFC","Team A","AUS",375]
[null,"BSC Schwalbach","BSC Schwalbach",46,"BSC Schwalbach","Team A","GER",375]
[null,"SC Flanders","SC Flanders",48,"SC Flanders","Team A","BEL",374.5]
[null,"JSC Rochefort","JSC Rochefort",49,"JSC Rochefort","Team A","BEL",374]
[null,"Subbuteurs Athens TSC","Subbuteurs Athens TSC",50,"Subbuteurs Athens TSC","Team A","GRE",351]
[null,"Athinaikos CS","Athinaikos CS",51,"Athinaikos CS","Team A","GRE",327.5]
[null,"CFT Puylaurens","CFT Puylaurens",52,"CFT Puylaurens","Team A","FRA",285.5]
[null,"Larissa TFC","Larissa TFC",53,"Larissa TFC","Team A","GRE",285]
[null,"SG Lions TFC","SG Lions TFC",54,"SG Lions TFC","Team A","SGP",267]
[null,"Yokohama OSC","Yokohama OSC",55,"Yokohama OSC","Team A","JPN",263]
[null,"H'Attard SC","H'Attard SC",56,"H'Attard SC","Team A","MLT",260.5]
[null,"Elan Subbutéo Club de Champs-sur-Marne","Elan Subbutéo Club de Champs-sur-Marne",57,"Elan Subbutéo Club de Champs-sur-Marne","Team A","FRA",255]
[null,"Wamme SC","Wamme SC",58,"Wamme SC","Team A","BEL",238]
[null,"Europa FC TSC","Europa FC TSC",59,"Europa FC TSC","Team A","GIB",234.5]
[null,"Messina Table Soccer","Messina Table Soccer",60,"Messina Table Soccer","Team A","ITA",218]
[null,"CCT Eagles Napoli 2","CCT Eagles Napoli 2",61,"CCT Eagles Napoli","Team B","ITA",216]
[null,"SPQR MMIX Roma","SPQR MMIX Roma",62,"SPQR MMIX Roma","Team A","ITA",213]
[null,"CF os Belenenses","CF os Belenenses",63,"CF os Belenenses","Team A","FIS",210]
[null,"US Huy","US Huy",64,"US Huy","Team A","BEL",199]
[null,"AS Cosenza","AS Cosenza",65,"AS Cosenza","Team A","ITA",194]
[null,{"$f":"C72","v":"Kent Invicta TFC"},{"$f":"IF(E72=\"\",\"\",E72&IF(RIGHT(F72,1)=\"A\",\"\",\" \"&CODE(RIGHT(F72,1))-CODE(\"A\")+1))","v":"Kent Invicta TFC"},66,"Kent Invicta TFC","Team A","ENG",189]
[null,"CCT Roma","CCT Roma",67,"CCT Roma","Team A","ITA",183]
[null,"Avenir Subbuteo Hennuyer 3","Avenir Subbuteo Hennuyer 3",68,"Avenir Subbuteo Hennuyer","Team C","BEL",170]
[null,"MVV Rijnmond","MVV Rijnmond",68,"MVV Rijnmond","Team A","NED",170]
[null,"Olympia CS 2","Olympia CS 2",70,"Olympia CS","Team B","GRE",158]
[null,"Roligans Ilioupolis TSC","Roligans Ilioupolis TSC",71,"Roligans Ilioupolis TSC","Team A","GRE",153.5]
[null,"SC Sombrero","SC Sombrero",72,"SC Sombrero","Team A","ITA",144]
[null,"Pinco Devils Table Soccer","Pinco Devils Table Soccer",73,"Pinco Devils Table Soccer","Team A","ITA",137]
[null,"Subbuteo Club Reggio Calabria","Subbuteo Club Reggio Calabria",73,"Subbuteo Club Reggio Calabria","Team A","ITA",137]
[null,"SC Bagheria","SC Bagheria",75,"SC Bagheria","Team A","ITA",135]
[null,"SC Reeds","SC Reeds",76,"SC Reeds","Team A","JPN",133]
[null,"Sporting Clube De Portugal","Sporting Clube De Portugal",77,"Sporting Clube De Portugal","Team A","FIS",125]
[null,"SC Catania 1987","SC Catania 1987",78,"SC Catania 1987","Team A","ITA",122.5]
[null,"GCT DLF Gorizia","GCT DLF Gorizia",79,"GCT DLF Gorizia","Team A","ITA",120]
[null,"ST Stembert 2","ST Stembert 2",79,"ST Stembert","Team B","BEL",120]
[null,"Football de Table Aquitaine","Football de Table Aquitaine",79,"Football de Table Aquitaine","Team A","FRA",120]
[null,"Jurong Central SC 2","Jurong Central SC 2",79,"Jurong Central SC","Team B","SGP",120]
[null,"FTC Caen 2","FTC Caen 2",83,"FTC Caen","Team B","FRA",119]
[null,"SC Lion's Eugies 2","SC Lion's Eugies 2",84,"SC Lion's Eugies","Team B","BEL",116.5]
[null,"Piraeus Lions TSC","Piraeus Lions TSC",85,"Piraeus Lions TSC","Team A","GRE",114.5]
[null,"Irish Premier League","Irish Premier League",86,"Irish Premier League","Team A","IRL",112.5]
[null,"Noctuas Athens TSC 2","Noctuas Athens TSC 2",87,"Noctuas Athens TSC","Team B","GRE",112]
[null,"TSC Stella Artois Milano","TSC Stella Artois Milano",88,"TSC Stella Artois Milano","Team A","ITA",102]
[null,"AS Iluro Futbol Taula","AS Iluro Futbol Taula",89,"AS Iluro Futbol Taula","Team A","ESP",100]
[null,"Dundee United TFC","Dundee United TFC",90,"Dundee United TFC","Team A","SCO",98.5]
[null,"FTC Saint-Symphorien-sur-Coise","FTC Saint-Symphorien-sur-Coise",91,"FTC Saint-Symphorien-sur-Coise","Team A","FRA",96.5]
[null,"Glasgow TSA","Glasgow TSA",91,"Glasgow TSA","Team A","SCO",96.5]
[null,"FM La Plazoleta","FM La Plazoleta",93,"FM La Plazoleta","Team A","ESP",96]
[null,"TSPA White Star","TSPA White Star",94,"TSPA White Star","Team A","ENG",95.5]
[null,"Sydney TFC","Sydney TFC",95,"Sydney TFC","Team A","AUS",92.5]
[null,"Western Sydney Subbuteo","Western Sydney Subbuteo",96,"Western Sydney Subbuteo","Team A","AUS",90]
[null,"ASD Siracusa Calcio Tavolo","ASD Siracusa Calcio Tavolo",97,"ASD Siracusa Calcio Tavolo","Team A","ITA",83]
[null,"ACS Perugia 1973","ACS Perugia 1973",98,"ACS Perugia 1973","Team A","ITA",81]
[null,"Moralzarzal Subbuteo CAD","Moralzarzal Subbuteo CAD",99,"Moralzarzal Subbuteo CAD","Team A","ESP",77.5]
[null,"Subbuteurs Athens TSC 2","Subbuteurs Athens TSC 2",100,"Subbuteurs Athens TSC","Team B","GRE",76.5]
[null,"Langton Green Subbuteo Club 2","Langton Green Subbuteo Club 2",101,"Langton Green Subbuteo Club","Team B","ENG",74]
[null,"Evia CAN","Evia CAN",102,"Evia CAN","Team A","GRE",73]
[null,"Master Sanremo 2","Master Sanremo 2",103,"Master Sanremo","Team B","ITA",69]
[null,"TSC Royal 78 Kaisermühlen 2","TSC Royal 78 Kaisermühlen 2",104,"TSC Royal 78 Kaisermühlen","Team B","AUT",68.5]
[null,"Scarlet Battalion SC 2","Scarlet Battalion SC 2",105,"Scarlet Battalion SC","Team B","GRE",67.5]
[null,"Kent Invicta TFC 2","Kent Invicta TFC 2",106,"Kent Invicta TFC","Team B","ENG",66]
[null,"Dutch Legends","Dutch Legends",107,"Dutch Legends","Team A","NED",65]
[null,"Barcellona Calcio Tavolo 2","Barcellona Calcio Tavolo 2",108,"Barcellona Calcio Tavolo","Team B","ITA",63]
[null,"Roligans Ilioupolis TSC 2","Roligans Ilioupolis TSC 2",109,"Roligans Ilioupolis TSC","Team B","GRE",61.5]
[null,"SC Lion's Eugies 3","SC Lion's Eugies 3",110,"SC Lion's Eugies","Team C","BEL",61]
[null,"Glyfada United TSC","Glyfada United TSC",111,"Glyfada United TSC","Team A","GRE",60.5]
[null,"Subbuteo Club Labronico","Subbuteo Club Labronico",112,"Subbuteo Club Labronico","Team A","ITA",54]
[null,"Athinaikos CS 2","Athinaikos CS 2",113,"Athinaikos CS","Team B","GRE",53.5]
[null,"ASCT Sessana 1982","ASCT Sessana 1982",114,"ASCT Sessana 1982","Team A","ITA",48]
[null,"Bormla SC 2","Bormla SC 2",114,"Bormla SC","Team B","MLT",48]
[null,"Celtic Combourg CFT","Celtic Combourg CFT",116,"Celtic Combourg CFT","Team A","FRA",47.5]
[null,"FTC Issy-les-Moulineaux 2","FTC Issy-les-Moulineaux 2",117,"FTC Issy-les-Moulineaux","Team B","FRA",45.5]
[null,"Derry City","Derry City",118,"Derry City","Team A","NIR",42.5]
[null,"Atletico Pisa","Atletico Pisa",119,"Atletico Pisa","Team A","ITA",42]
[null,"Wolverhampton Table Football Club 2","Wolverhampton Table Football Club 2",119,"Wolverhampton Table Football Club","Team B","ENG",42]
[null,"Asd Ct Aosta Warriors","Asd Ct Aosta Warriors",121,"Asd Ct Aosta Warriors","Team A","ITA",37.5]
[null,"SC Ascoli","SC Ascoli",122,"SC Ascoli","Team A","ITA",36]
[null,"CS Virtus Rieti 2","CS Virtus Rieti 2",122,"CS Virtus Rieti","Team B","ITA",36]
[null,"Glasgow TSA 2","Glasgow TSA 2",124,"Glasgow TSA","Team B","SCO",35]
[null,"Avenir Subbuteo Hennuyer 4","Avenir Subbuteo Hennuyer 4",125,"Avenir Subbuteo Hennuyer","Team D","BEL",34]
[null,"CT Torino 2009","CT Torino 2009",126,"CT Torino 2009","Team A","ITA",33]
[null,"SG '94 Hannover","SG '94 Hannover",126,"SG '94 Hannover","Team A","GER",33]
[null,"Roligans Ilioupolis TSC 3","Roligans Ilioupolis TSC 3",128,"Roligans Ilioupolis TSC","Team C","GRE",32.5]
[null,"Crimson Horses 2","Crimson Horses 2",129,"Crimson Horses","Team B","GRE",32]
[null,{"$f":"C136","v":"Olympia CS 3"},{"$f":"IF(E136=\"\",\"\",E136&IF(RIGHT(F136,1)=\"A\",\"\",\" \"&CODE(RIGHT(F136,1))-CODE(\"A\")+1))","v":"Olympia CS 3"},130,"Olympia CS","Team C","GRE",31]
[null,"Racing White Woluwé Subbuteo","Racing White Woluwé Subbuteo",130,"Racing White Woluwé Subbuteo","Team A","BEL",31]
[null,"SC Stradivari Cremona","SC Stradivari Cremona",130,"SC Stradivari Cremona","Team A","ITA",31]
[null,"Bologna Tigers Subbuteo 2","Bologna Tigers Subbuteo 2",133,"Bologna Tigers Subbuteo","Team B","ITA",30]
[null,"Roligans Ilioupolis TSC 4","Roligans Ilioupolis TSC 4",133,"Roligans Ilioupolis TSC","Team D","GRE",30]
[null,"AFT Turia 1981 2","AFT Turia 1981 2",133,"AFT Turia 1981","Team B","ESP",30]
[null,"Barcelona FT 2","Barcelona FT 2",133,"Barcelona FT","Team B","ESP",30]
[null,"Tiburones FM 3","Tiburones FM 3",137,"Tiburones FM","Team C","ESP",29]
[null,"SC Lion's Eugies 4","SC Lion's Eugies 4",137,"SC Lion's Eugies","Team D","BEL",29]
[null,"Trento Subbuteo","Trento Subbuteo",139,"Trento Subbuteo","Team A","ITA",27]
[null,"Ves Gentes","Ves Gentes",139,"Ves Gentes","Team A","ITA",27]
[null,"Pinco Devils Table Soccer 2","Pinco Devils Table Soccer 2",141,"Pinco Devils Table Soccer","Team B","ITA",26]
[null,"Cardiff Bluebirds TFC","Cardiff Bluebirds TFC",142,"Cardiff Bluebirds TFC","Team A","WAL",24]
[null,"FTC Caen 3","FTC Caen 3",142,"FTC Caen","Team C","FRA",24]
[null,"Papata Group Ponticino","Papata Group Ponticino",142,"Papata Group Ponticino","Team A","ITA",24]
[null,"Wamme SC 2","Wamme SC 2",142,"Wamme SC","Team B","BEL",24]
[null,"AC Los Remedios FM","AC Los Remedios FM",146,"AC Los Remedios FM","Team A","ESP",23]
[null,"ASD SC Salernitana 2","ASD SC Salernitana 2",147,"ASD SC Salernitana","Team B","ITA",22]
[null,"AS Cosenza 2","AS Cosenza 2",147,"AS Cosenza","Team B","ITA",22]
[null,"Valletta Lions TFC 2","Valletta Lions TFC 2",149,"Valletta Lions TFC","Team B","MLT",21]
[null,"Messina Table Soccer 2","Messina Table Soccer 2",150,"Messina Table Soccer","Team B","ITA",20]
[null,"Paris Université Club","Paris Université Club",151,"Paris Université Club","Team A","FRA",18]
[null,"CS Firenze","CS Firenze",151,"CS Firenze","Team A","ITA",18]
[null,"AS Cosenza 3","AS Cosenza 3",153,"AS Cosenza","Team C","ITA",16]
[null,"TSC Phoenix 2","TSC Phoenix 2",154,"TSC Phoenix","Team B","AUT",15.5]
[null,"Bulldogs Vicenza","Bulldogs Vicenza",155,"Bulldogs Vicenza","Team A","ITA",15]
[null,"SC Palermo 2016","SC Palermo 2016",155,"SC Palermo 2016","Team A","ITA",15]
[null,"Mallorca Águilas FM 2","Mallorca Águilas FM 2",157,"Mallorca Águilas FM","Team B","ESP",13]
[null,"Thessaloniki SC TSC","Thessaloniki SC TSC",157,"Thessaloniki SC TSC","Team A","GRE",13]
[null,"TSC Royal 78 Kaisermühlen 3","TSC Royal 78 Kaisermühlen 3",157,"TSC Royal 78 Kaisermühlen","Team C","AUT",13]
[null,"Ves Gentes 2","Ves Gentes 2",160,"Ves Gentes","Team B","ITA",12]
[null,"Yorkshire Phoenix and Dewsbury Moor TFC 2","Yorkshire Phoenix and Dewsbury Moor TFC 2",160,"Yorkshire Phoenix and Dewsbury Moor TFC","Team B","ENG",12]
[null,"FTC Saint-Symphorien-sur-Coise 2","FTC Saint-Symphorien-sur-Coise 2",160,"FTC Saint-Symphorien-sur-Coise","Team B","FRA",12]
[null,"SC Temploux 2","SC Temploux 2",160,"SC Temploux","Team B","BEL",12]
[null,"Subbuteisti Modena 1982","Subbuteisti Modena 1982",160,"Subbuteisti Modena 1982","Team A","ITA",12]
[null,"Subbuteo Club Reggio Calabria 2","Subbuteo Club Reggio Calabria 2",165,"Subbuteo Club Reggio Calabria","Team B","ITA",11]
[null,"CS SC Serenissima Mestre","CS SC Serenissima Mestre",165,"CS SC Serenissima Mestre","Team A","ITA",11]
[null,"Azzurra 99 Napoli","Azzurra 99 Napoli",167,"Azzurra 99 Napoli","Team A","ITA",10]
[null,"Barcelona FT","Barcelona FT",167,"Barcelona FT","Team A","ESP",10]
[null,"Subbuteo Vomero","Subbuteo Vomero",167,"Subbuteo Vomero","Team A","ITA",10]
[null,"Subbuteo Club Almería","Subbuteo Club Almería",167,"Subbuteo Club Almería","Team A","ESP",10]
[null,"CHASERS (Chadwell Heath & South Essex, Romford Subbuteo) Club","CHASERS (Chadwell Heath & South Essex, Romford Subbuteo) Club",171,"CHASERS (Chadwell Heath & South Essex, Romford Subbuteo) Club","Team A","ENG",9]
[null,"SC Charleroi 2","SC Charleroi 2",171,"SC Charleroi","Team B","BEL",9]
[null,"ASD Siracusa Calcio Tavolo 2","ASD Siracusa Calcio Tavolo 2",171,"ASD Siracusa Calcio Tavolo","Team B","ITA",9]
[null,"Kettering Flicking Marvellous","Kettering Flicking Marvellous",174,"Kettering Flicking Marvellous","Team A","ENG",8]
[null,"Kent Invicta TFC 3","Kent Invicta TFC 3",174,"Kent Invicta TFC","Team C","ENG",8]
[null,"Northern Phoenix TFC","Northern Phoenix TFC",176,"Northern Phoenix TFC","Team A","AUS",7.5]
[null,"TSC Black Rose 98 Roma","TSC Black Rose 98 Roma",177,"TSC Black Rose 98 Roma","Team A","ITA",7]
[null,"ALC Wattrelos - Subbuteo Lille Metropole","ALC Wattrelos - Subbuteo Lille Metropole",177,"ALC Wattrelos - Subbuteo Lille Metropole","Team A","FRA",7]
[null,"Racing White Woluwé Subbuteo 2","Racing White Woluwé Subbuteo 2",177,"Racing White Woluwé Subbuteo","Team B","BEL",7]
[null,"Piraeus Lions TSC 2","Piraeus Lions TSC 2",177,"Piraeus Lions TSC","Team B","GRE",7]
[null,"Grifo Sombrero","Grifo Sombrero",177,"Grifo Sombrero","Team A","ITA",7]
[null,"ASM Nola 74","ASM Nola 74",177,"ASM Nola 74","Team A","ITA",7]
[null,"H'Attard SC 2","H'Attard SC 2",183,"H'Attard SC","Team B","MLT",6.5]
[null,"Noctuas Athens TSC 3","Noctuas Athens TSC 3",183,"Noctuas Athens TSC","Team C","GRE",6.5]
[null,"Flaming Flickers SC","Flaming Flickers SC",185,"Flaming Flickers SC","Team A","GRE",6]
[null,"Subbuteo Club Höpfigheim","Subbuteo Club Höpfigheim",185,"Subbuteo Club Höpfigheim","Team A","GER",6]
[null,"AC Los Remedios FM 2","AC Los Remedios FM 2",185,"AC Los Remedios FM","Team B","ESP",6]
[null,"AC Los Remedios FM 3","AC Los Remedios FM 3",185,"AC Los Remedios FM","Team C","ESP",6]
[null,"Subbuteo Taranto","Subbuteo Taranto",185,"Subbuteo Taranto","Team A","ITA",6]
[null,"Trento Subbuteo 2","Trento Subbuteo 2",185,"Trento Subbuteo","Team B","ITA",6]
[null,"SC Cagliari","SC Cagliari",185,"SC Cagliari","Team A","ITA",6]
[null,"CAP Ciudad de Murcia FM 2","CAP Ciudad de Murcia FM 2",185,"CAP Ciudad de Murcia FM","Team B","ESP",6]
[null,"Sparta Spreeathen 74/82","Sparta Spreeathen 74/82",185,"Sparta Spreeathen 74/82","Team A","GER",6]
[null,{"$f":"C200","v":"Dutch Legends 2"},{"$f":"IF(E200=\"\",\"\",E200&IF(RIGHT(F200,1)=\"A\",\"\",\" \"&CODE(RIGHT(F200,1))-CODE(\"A\")+1))","v":"Dutch Legends 2"},194,"Dutch Legends","Team B","NED",5]
[null,"TS Napoli Fighters 2","TS Napoli Fighters 2",194,"TS Napoli Fighters","Team B","ITA",5]
[null,"Subbuteo Club Basilicata","Subbuteo Club Basilicata",194,"Subbuteo Club Basilicata","Team A","ITA",5]
[null,"MVV Rijnmond 2","MVV Rijnmond 2",194,"MVV Rijnmond","Team B","NED",5]
[null,"SC Bari","SC Bari",194,"SC Bari","Team A","ITA",5]
[null,"Atletico Pisa 2","Atletico Pisa 2",194,"Atletico Pisa","Team B","ITA",5]
[null,"Club with No Licence : Northern Line Flickers TFC 5","Club with No Licence : Northern Line Flickers TFC 5",194,"Club with No Licence : Northern Line Flickers TFC","Team E","No Licence",5]
[null,"The Tumbleweeds","The Tumbleweeds",194,"The Tumbleweeds","Team A","AUS",5]
[null,"Larissa TFC 2","Larissa TFC 2",202,"Larissa TFC","Team B","GRE",4]
[null,"Crimson Horses 3","Crimson Horses 3",202,"Crimson Horses","Team C","GRE",4]
[null,"Polis Athlitikos Syllogos Daskaliou Kerateas","Polis Athlitikos Syllogos Daskaliou Kerateas",202,"Polis Athlitikos Syllogos Daskaliou Kerateas","Team A","GRE",4]
[null,"OS Academy 1947","OS Academy 1947",202,"OS Academy 1947","Team A","JPN",4]
[null,"Crimson Horses 4","Crimson Horses 4",202,"Crimson Horses","Team D","GRE",4]
[null,"AFT Turia 1981 3","AFT Turia 1981 3",202,"AFT Turia 1981","Team C","ESP",4]
[null,"Tiburones FM 4","Tiburones FM 4",202,"Tiburones FM","Team D","ESP",4]
[null,"FTC Caen 5","FTC Caen 5",209,"FTC Caen","Team E","FRA",3.5]
[null,"MARADONA TOKYO","MARADONA TOKYO",210,"MARADONA TOKYO","Team A","JPN",3]
[null,"Bologna Tigers Subbuteo 3","Bologna Tigers Subbuteo 3",210,"Bologna Tigers Subbuteo","Team C","ITA",3]
[null,"Avenir Subbuteo Hennuyer 5","Avenir Subbuteo Hennuyer 5",210,"Avenir Subbuteo Hennuyer","Team E","BEL",3]
[null,"Atlas FTC 2","Atlas FTC 2",213,"Atlas FTC","Team B","GRE",2.5]
[null,"Athinaikos CS 3","Athinaikos CS 3",213,"Athinaikos CS","Team C","GRE",2.5]
[null,"Glyfada United TSC 2","Glyfada United TSC 2",213,"Glyfada United TSC","Team B","GRE",2.5]
[null,"Europa FC TSC 2","Europa FC TSC 2",216,"Europa FC TSC","Team B","GIB",2]
[null,"Glasgow TSA 3","Glasgow TSA 3",216,"Glasgow TSA","Team C","SCO",2]
[null,"Subbuteo L'aquila Club","Subbuteo L'aquila Club",216,"Subbuteo L'aquila Club","Team A","ITA",2]
[null,"Haverhill Rovers tfc","Haverhill Rovers tfc",216,"Haverhill Rovers tfc","Team A","ENG",2]
[null,"Asd Alba Subbuteo Roma","Asd Alba Subbuteo Roma",216,"Asd Alba Subbuteo Roma","Team A","ITA",2]
[null,{"$f":"C227","v":"Golazzo SC"},"Golazzo SC",216,"Golazzo SC","Team A","SCO",2]
[null,"SS Lazio TFC Roma 2","SS Lazio TFC Roma 2",216,"SS Lazio TFC Roma","Team B","ITA",2]
[null,"Bormla SC 3","Bormla SC 3",216,"Bormla SC","Team C","MLT",2]
[null,"ASM Nola 74 2","ASM Nola 74 2",216,"ASM Nola 74","Team B","ITA",2]
[null,"Irish Premier League 2","Irish Premier League 2",225,"Irish Premier League","Team B","IRL",1.5]
[null,"SC Berlin","SC Berlin",225,"SC Berlin","Team A","GER",1.5]
[null,"Leicester Foxes Subbuteo Club","Leicester Foxes Subbuteo Club",227,"Leicester Foxes Subbuteo Club","Team A","ENG",1]
[null,"TSPA White Star 2","TSPA White Star 2",227,"TSPA White Star","Team B","ENG",1]
[null,"Czech Subbuteo Team 2014","Czech Subbuteo Team 2014",227,"Czech Subbuteo Team 2014","Team A","CZE",1]
[null,"",""]
[null,"",""]
[null,"",""]
[null,"",""]
[null,"",""]
[null,"",""]
[null,"",""]
[null,"",""]
[null,"",""]
[null,"",""]
[null,"",""]
[null,"",{"$f":"IF(E247=\"\",\"\",E247&IF(RIGHT(F247,1)=\"A\",\"\",\" \"&CODE(RIGHT(F247,1))-CODE(\"A\")+1))","v":""}]
[null,"",""]
[null,"",""]
[null,"",""]
[null,"",""]
[null,"",""]
[null,"",""]
[null,"",""]
[null,"",""]
[null,"",""]
[null,"",""]
[null,"",""]
[null,"",""]
[null,"",""]
[null,"",""]
[null,"",""]
[null,"",""]
[null,"",""]
[null,"",""]
[null,"",""]
[null,"",""]
[null,"",""]
[null,"",""]
[null,"",""]
[null,"",""]
[null,"",""]
[null,"",""]
[null,"",""]
[null,"",""]
[null,"",""]
[null,"",""]
[null,"",""]
[null,"",""]
[null,"",""]
[null,"",""]
[null,"",""]
[null,"",""]
[null,"",""]
[null,"",""]
[null,"",""]
[null,"",""]

{"sheet":"CheckIn","index":9,"n_rows":349,"n_cols":42,"rows_kept":349,"cut":false,"hidden":false,"merged":[[3,7,3,20],[3,1,3,6],[3,22,3,41]]}
[1,{"$f":"N_PlayerCheckin","v":"Player Check in"}]
[]
[null,{"$f":"IF(NationalityTrigram,7,2)","v":2},null,{"$f":"IF(RankingAsLicencesList,7,7)","v":7},{"$f":"IF(RankingAsLicencesList,6,6)","v":6},{"$f":"IF(RankingAsLicencesList,4,5)","v":5},null,null,null,null,null,null,null,null,null,null,null,null,null,null,null,null,{"$f":"IF(RankingAsLicencesList,5,3)","v":3},{"$f":"IF(RankingAsLicencesList,4,2)","v":2},null,{"$f":"IF(RankingAsLicencesList,7,7)","v":7},{"$f":"IF(NationalityTrigram,2,2)","v":2},{"$f":"IF(RankingAsLicencesList,4,4)","v":4}]
[null,{"$f":"N_PlayerCheckin","v":"Player Check in"},null,null,null,null,null,{"$f":"N_Event_participation","v":"Event participation"},null,null,null,null,null,null,null,null,null,null,null,null,null,null,"For FISTF Result Sheets"]
[null,{"$f":"N_Joueurs","v":"Players"},{"$f":"N_Name_1stname","v":"FAMILY NAME / Given name"},{"$f":"N_Nationality","v":"Nationality"},{"$f":"N_Club","v":"Club"},{"$f":"IF(RankingAsLicencesList,N_DateOfBirth,N_Category)","v":"Category"},{"$f":"N_Referee","v":"Referee"},{"$f":"Event1","v":"Open"},{"$f":"Event2","v":"Veterans"},{"$f":"Event3","v":"Women"},{"$f":"Event4","v":"U20"},{"$f":"Event5","v":"U16"},{"$f":"Event6","v":"U12"},{"$f":"Event7","v":"Teams"},{"$f":"Event8","v":"Consolation"},{"$f":"Event9","v":"Team_Open"},{"$f":"Event10","v":"Team_Veterans"},{"$f":"Event11","v":"Team_Women"},{"$f":"Event12","v":"Team_U20"},{"$f":"Event13","v":"Team_U16"},{"$f":"Event14","v":"Team_U12"},{"$f":"N_Visa","v":"Signature"},"Name","FAMILY NAME","Name & Family Name","Nation","Club","Lic. FISTF",{"$f":"H5","v":"Open"},"Veterans","Women","U20","U16","U12",{"$f":"N5","v":"Teams"},{"$f":"O5","v":"Consolation"},{"$f":"P5","v":"Team_Open"},{"$f":"Q5","v":"Team_Veterans"},{"$f":"R5","v":"Team_Women"},{"$f":"S5","v":"Team_U20"},{"$f":"T5","v":"Team_U16"},{"$f":"U5","v":"Team_U12"}]
[1,"Wolfgang Haas (bor)","Wolfgang Haas",{"$f":"\"AUT\"","v":"AUT"},{"$f":"\"Bormla SC\"","v":"Bormla SC"},{"$f":"\"OPEN\"","v":"OPEN"},"X","X",null,null,null,null,null,"X",null,null,null,null,null,null,null,null,{"$f":"\"Wolfgang\"","v":"Wolfgang"},{"$f":"\"Haas\"","v":"Haas"},"Wolfgang Haas","AUT","bor","AUT0044",4,null,null,null,null,null,null,null,4]
[2,"Saverio Bari (reg)","Saverio Bari",{"$f":"\"ITA\"","v":"ITA"},{"$f":"\"F.Lli Bari Reggio Emilia\"","v":"F.Lli Bari Reggio Emilia"},{"$f":"\"VET\"","v":"VET"},"X","X",null,null,null,null,null,null,null,null,null,null,null,null,null,null,{"$f":"\"Saverio\"","v":"Saverio"},{"$f":"\"Bari\"","v":"Bari"},"Saverio Bari","ITA","reg","ITA0066",7,null,null,null,null,null,null,null,7]
[3,"Mark Gauci (vll)","Mark Gauci",{"$f":"\"MLT\"","v":"MLT"},{"$f":"\"Valletta SC\"","v":"Valletta SC"},{"$f":"\"OPEN\"","v":"OPEN"},"X","X",null,null,null,null,null,null,null,null,null,null,null,null,null,null,{"$f":"\"Mark\"","v":"Mark"},{"$f":"\"Gauci\"","v":"Gauci"},"Mark Gauci","MLT","vll","MLT0022",9,null,null,null,null,null,null,null,9]
[4,"Pascal Scheen (ste)","Pascal Scheen",{"$f":"\"BEL\"","v":"BEL"},{"$f":"\"ST Stembert\"","v":"ST Stembert"},{"$f":"\"VET\"","v":"VET"},"X","X",null,null,null,null,null,"X",null,null,null,null,null,null,null,null,{"$f":"\"Pascal\"","v":"Pascal"},{"$f":"\"Scheen\"","v":"Scheen"},"Pascal Scheen","BEL","ste","BEL0151",17,9,null,null,null,null,null,null,17,9]
[5,"George Ebejer (bor)","George Ebejer",{"$f":"\"MLT\"","v":"MLT"},{"$f":"\"Bormla SC\"","v":"Bormla SC"},{"$f":"\"OPEN\"","v":"OPEN"},"X","X",null,null,null,null,null,"X",null,null,null,null,null,null,null,null,{"$f":"\"George\"","v":"George"},{"$f":"\"Ebejer\"","v":"Ebejer"},"George Ebejer","MLT","bor","MLT0019",18,null,null,null,null,null,null,null,18]
[6,"Sérgio Ramos (bol)","Sérgio Ramos",{"$f":"\"POR\"","v":"POR"},{"$f":"\"Bologna Tigers Subbuteo\"","v":"Bologna Tigers Subbuteo"},{"$f":"\"OPEN\"","v":"OPEN"},"X","X",null,null,null,null,null,null,null,null,null,null,null,null,null,null,{"$f":"\"Sérgio\"","v":"Sérgio"},{"$f":"\"Ramos\"","v":"Ramos"},"Sérgio Ramos","POR","bol","POR0022",22,null,null,null,null,null,null,null,22]
[7,"Wolfgang Leitner (roy)","Wolfgang Leitner",{"$f":"\"AUT\"","v":"AUT"},{"$f":"\"TSC Royal 78 Kaisermühlen\"","v":"TSC Royal 78 Kaisermühlen"},{"$f":"\"OPEN\"","v":"OPEN"},"X","X",null,null,null,null,null,"X",null,null,null,null,null,null,null,null,{"$f":"\"Wolfgang\"","v":"Wolfgang"},{"$f":"\"Leitner\"","v":"Leitner"},"Wolfgang Leitner","AUT","roy","AUT0010",30,null,null,null,null,null,null,null,30]
[8,"Alexander Haas (roy)","Alexander Haas",{"$f":"\"AUT\"","v":"AUT"},{"$f":"\"TSC Royal 78 Kaisermühlen\"","v":"TSC Royal 78 Kaisermühlen"},{"$f":"\"OPEN\"","v":"OPEN"},"X","X",null,null,null,null,null,"X",null,null,null,null,null,null,null,null,{"$f":"\"Alexander\"","v":"Alexander"},{"$f":"\"Haas\"","v":"Haas"},"Alexander Haas","AUT","roy","AUT0024",33,null,null,null,null,null,null,null,33]
[9,"Bernard Lim (jur)","Bernard Lim",{"$f":"\"SGP\"","v":"SGP"},{"$f":"\"Jurong Central SC\"","v":"Jurong Central SC"},{"$f":"\"VET\"","v":"VET"},"X","X",null,null,null,null,null,null,null,null,null,null,null,null,null,null,{"$f":"\"Bernard\"","v":"Bernard"},{"$f":"\"Lim\"","v":"Lim"},"Bernard Lim","SGP","jur","SGP0074",41,56,null,null,null,null,null,null,41,56]
[10,"Giannis Nikolaidis (atl)","Giannis Nikolaidis",{"$f":"\"GRE\"","v":"GRE"},{"$f":"\"Atlas FTC\"","v":"Atlas FTC"},{"$f":"\"VET\"","v":"VET"},"X","X",null,null,null,null,null,"X",null,null,null,null,null,null,null,null,{"$f":"\"Giannis\"","v":"Giannis"},{"$f":"\"Nikolaidis\"","v":"Nikolaidis"},"Giannis Nikolaidis","GRE","atl","GRE0704",45,null,null,null,null,null,null,null,45]
[11,"Jean Carl Tabone (bor)","Jean Carl Tabone",{"$f":"\"MLT\"","v":"MLT"},{"$f":"\"Bormla SC\"","v":"Bormla SC"},{"$f":"\"OPEN\"","v":"OPEN"},"X","X",null,null,null,null,null,"X",null,null,null,null,null,null,null,null,{"$f":"\"Jean Carl\"","v":"Jean Carl"},{"$f":"\"Tabone\"","v":"Tabone"},"Jean Carl Tabone","MLT","bor","MLT0031",51,null,null,null,null,null,null,null,51]
[12,"David Vacke (cst)","David Vacke",{"$f":"\"CZE\"","v":"CZE"},{"$f":"\"Czech Subbuteo Team 2014\"","v":"Czech Subbuteo Team 2014"},{"$f":"\"OPEN\"","v":"OPEN"},"X","X",null,null,null,null,null,null,null,null,null,null,null,null,null,null,{"$f":"\"David\"","v":"David"},{"$f":"\"Vacke\"","v":"Vacke"},"David Vacke","CZE","cst","CZE0003",779,null,null,null,null,null,null,null,779]
[13,"Stylianos Tsangouris (atl)","Stylianos Tsangouris",{"$f":"\"GRE\"","v":"GRE"},{"$f":"\"Atlas FTC\"","v":"Atlas FTC"},{"$f":"\"OPEN\"","v":"OPEN"},"X","X",null,null,null,null,null,"X",null,null,null,null,null,null,null,null,{"$f":"\"Stylianos\"","v":"Stylianos"},{"$f":"\"Tsangouris\"","v":"Tsangouris"},"Stylianos Tsangouris","GRE","atl","GRE0820",77,null,null,null,null,null,null,null,77]
[14,"Noah Janssens (ste)","Noah Janssens",{"$f":"\"BEL\"","v":"BEL"},{"$f":"\"ST Stembert\"","v":"ST Stembert"},{"$f":"\"U20\"","v":"U20"},"X","X",null,null,null,null,null,"X",null,null,null,null,null,null,null,null,{"$f":"\"Noah\"","v":"Noah"},{"$f":"\"Janssens\"","v":"Janssens"},"Noah Janssens","BEL","ste","BEL0445",85,null,null,1,null,null,null,null,85,null,null,1]
[15,"Joffray Laurent (atl)","Joffray Laurent",{"$f":"\"BEL\"","v":"BEL"},{"$f":"\"Atlas FTC\"","v":"Atlas FTC"},{"$f":"\"OPEN\"","v":"OPEN"},"X","X",null,null,null,null,null,"X",null,null,null,null,null,null,null,null,{"$f":"\"Joffray\"","v":"Joffray"},{"$f":"\"Laurent\"","v":"Laurent"},"Joffray Laurent","BEL","atl","BEL0033",102,null,null,null,null,null,null,null,102]
[16,"Erich Hinkelmann (wie)","Erich Hinkelmann",{"$f":"\"AUT\"","v":"AUT"},{"$f":"\"TSC Phoenix\"","v":"TSC Phoenix"},{"$f":"\"VET\"","v":"VET"},"X",null,"X",null,null,null,null,"X",null,null,null,null,null,null,null,null,{"$f":"\"Erich\"","v":"Erich"},{"$f":"\"Hinkelmann\"","v":"Hinkelmann"},"Erich Hinkelmann","AUT","wie","AUT0051",274,41,null,null,null,null,null,null,274,41]
[17,"Thomas Wittmann (roy)","Thomas Wittmann",{"$f":"\"AUT\"","v":"AUT"},{"$f":"\"TSC Royal 78 Kaisermühlen\"","v":"TSC Royal 78 Kaisermühlen"},{"$f":"\"OPEN\"","v":"OPEN"},"X","X",null,null,null,null,null,"X",null,null,null,null,null,null,null,null,{"$f":"\"Thomas\"","v":"Thomas"},{"$f":"\"Wittmann\"","v":"Wittmann"},"Thomas Wittmann","AUT","roy","AUT0041",139,null,null,null,null,null,null,null,139]
[18,"Murat Tünger (roy)","Murat Tünger",{"$f":"\"AUT\"","v":"AUT"},{"$f":"\"TSC Royal 78 Kaisermühlen\"","v":"TSC Royal 78 Kaisermühlen"},{"$f":"\"OPEN\"","v":"OPEN"},"X","X",null,null,null,null,null,"X",null,null,null,null,null,null,null,null,{"$f":"\"Murat\"","v":"Murat"},{"$f":"\"Tünger\"","v":"Tünger"},"Murat Tünger","AUT","roy","AUT0040",190,null,null,null,null,null,null,null,190]
[19,"Michael Stolzenberg ()","Michael Stolzenberg",{"$f":"\"GER\"","v":"GER"},{"$f":"\"DLF Gorizia\"","v":"DLF Gorizia"},{"$f":"\"OPEN\"","v":"OPEN"},"X","X",null,null,null,null,null,"X",null,null,null,null,null,null,null,null,{"$f":"\"Michael\"","v":"Michael"},{"$f":"\"Stolzenberg\"","v":"Stolzenberg"},"Michael Stolzenberg","GER",null,"GER0029",214,null,null,null,null,null,null,null,214]
[20,"Christian Haas (bor)","Christian Haas",{"$f":"\"AUT\"","v":"AUT"},{"$f":"\"Bormla SC\"","v":"Bormla SC"},{"$f":"\"OPEN\"","v":"OPEN"},"X",null,null,null,null,null,null,"X",null,null,null,null,null,null,null,null,{"$f":"\"Christian\"","v":"Christian"},{"$f":"\"Haas\"","v":"Haas"},"Christian Haas","AUT","bor","AUT0025",19,null,null,null,null,null,null,null,19]
[21,"Claudio Colpani (acp)","Claudio Colpani",{"$f":"\"ITA\"","v":"ITA"},{"$f":"\"ACS Perugia 1973\"","v":"ACS Perugia 1973"},{"$f":"\"VET\"","v":"VET"},"X","X",null,null,null,null,null,null,null,null,null,null,null,null,null,null,{"$f":"\"Claudio\"","v":"Claudio"},{"$f":"\"Colpani\"","v":"Colpani"},"Claudio Colpani","ITA","acp","ITA0232",306,null,null,null,null,null,null,null,306]
[22,"Michele Cerullo (gor)","Michele Cerullo",{"$f":"\"ITA\"","v":"ITA"},{"$f":"\"GCT DLF Gorizia\"","v":"GCT DLF Gorizia"},{"$f":"\"OPEN\"","v":"OPEN"},"X","X",null,null,null,null,null,"X",null,null,null,null,null,null,null,null,{"$f":"\"Michele\"","v":"Michele"},{"$f":"\"Cerullo\"","v":"Cerullo"},"Michele Cerullo","ITA","gor","ITA2551",321,null,null,null,null,null,null,null,321]
[23,"Marcel Schulz (sch)","Marcel Schulz",{"$f":"\"GER\"","v":"GER"},{"$f":"\"BSC Schwalbach\"","v":"BSC Schwalbach"},{"$f":"\"OPEN\"","v":"OPEN"},"X","X",null,null,null,null,null,"X",null,null,null,null,null,null,null,null,{"$f":"\"Marcel\"","v":"Marcel"},{"$f":"\"Schulz\"","v":"Schulz"},"Marcel Schulz","GER","sch","GER0011",333,null,null,null,null,null,null,null,333]
[24,"Athanasios Kordantonopoulos (rol)","Athanasios Kordantonopoulos",{"$f":"\"GRE\"","v":"GRE"},{"$f":"\"Roligans Ilioupolis TSC\"","v":"Roligans Ilioupolis TSC"},{"$f":"\"OPEN\"","v":"OPEN"},"X","X",null,null,null,null,null,"X",null,null,null,null,null,null,null,null,{"$f":"\"Athanasios\"","v":"Athanasios"},{"$f":"\"Kordantonopoulos\"","v":"Kordantonopoulos"},"Athanasios Kordantonopoulos","GRE","rol","GRE0090",364,null,null,null,null,null,null,null,364]
[25,"Daniel Vranovitz (roy)","Daniel Vranovitz",{"$f":"\"AUT\"","v":"AUT"},{"$f":"\"TSC Royal 78 Kaisermühlen\"","v":"TSC Royal 78 Kaisermühlen"},{"$f":"\"OPEN\"","v":"OPEN"},"X","X",null,null,null,null,null,"X",null,null,null,null,null,null,null,null,{"$f":"\"Daniel\"","v":"Daniel"},{"$f":"\"Vranovitz\"","v":"Vranovitz"},"Daniel Vranovitz","AUT","roy","AUT0073",472,null,null,null,null,null,null,null,472]
[26,"Christian Hausmann (roy)","Christian Hausmann",{"$f":"\"AUT\"","v":"AUT"},{"$f":"\"TSC Royal 78 Kaisermühlen\"","v":"TSC Royal 78 Kaisermühlen"},{"$f":"\"OPEN\"","v":"OPEN"},"X","X",null,null,null,null,null,"X",null,null,null,null,null,null,null,null,{"$f":"\"Christian\"","v":"Christian"},{"$f":"\"Hausmann\"","v":"Hausmann"},"Christian Hausmann","AUT","roy","AUT0117",538,null,null,null,null,null,null,null,538]
[27,"Reinhard Schöberl (roy)","Reinhard Schöberl",{"$f":"\"AUT\"","v":"AUT"},{"$f":"\"TSC Royal 78 Kaisermühlen\"","v":"TSC Royal 78 Kaisermühlen"},{"$f":"\"OPEN\"","v":"OPEN"},"X","X",null,null,null,null,null,"X",null,null,null,null,null,null,null,null,{"$f":"\"Reinhard\"","v":"Reinhard"},{"$f":"\"Schöberl\"","v":"Schöberl"},"Reinhard Schöberl","AUT","roy","AUT0035",650,null,null,null,null,null,null,null,650]
[28,"David Scherbantin (roy)","David Scherbantin",{"$f":"\"AUT\"","v":"AUT"},{"$f":"\"TSC Royal 78 Kaisermühlen\"","v":"TSC Royal 78 Kaisermühlen"},{"$f":"\"OPEN\"","v":"OPEN"},"X","X",null,null,null,null,null,"X",null,null,null,null,null,null,null,null,{"$f":"\"David\"","v":"David"},{"$f":"\"Scherbantin\"","v":"Scherbantin"},"David Scherbantin","AUT","roy","AUT0107",742,null,null,null,null,null,null,null,742]
[29,"Jason Pisani (bor)","Jason Pisani",{"$f":"\"MLT\"","v":"MLT"},{"$f":"\"Bormla SC\"","v":"Bormla SC"},{"$f":"\"VET\"","v":"VET"},"X",null,"X",null,null,null,null,"X",null,null,null,null,null,null,null,null,{"$f":"\"Jason\"","v":"Jason"},{"$f":"\"Pisani\"","v":"Pisani"},"Jason Pisani","MLT","bor","MLT0028",141,2,null,null,null,null,null,null,141,2]
[30,"Daniel Scheen (tib)","Daniel Scheen",{"$f":"\"BEL\"","v":"BEL"},{"$f":"\"Tiburones FM\"","v":"Tiburones FM"},{"$f":"\"VET\"","v":"VET"},"X",null,"X",null,null,null,null,null,null,null,null,null,null,null,null,null,{"$f":"\"Daniel\"","v":"Daniel"},{"$f":"\"Scheen\"","v":"Scheen"},"Daniel Scheen","BEL","tib","BEL0148",175,3,null,null,null,null,null,null,175,3]
[31,"Charles Aquilina (bor)","Charles Aquilina",{"$f":"\"MLT\"","v":"MLT"},{"$f":"\"Bormla SC\"","v":"Bormla SC"},{"$f":"\"VET\"","v":"VET"},"X",null,"X",null,null,null,null,"X",null,null,null,null,null,null,null,null,{"$f":"\"Charles\"","v":"Charles"},{"$f":"\"Aquilina\"","v":"Aquilina"},"Charles Aquilina","MLT","bor","MLT0002",321,4,null,null,null,null,null,null,321,4]
[32,"Pasquale Torano (fer)","Pasquale Torano",{"$f":"\"ITA\"","v":"ITA"},{"$f":"\"Subbito Gol Ferrara\"","v":"Subbito Gol Ferrara"},{"$f":"\"VET\"","v":"VET"},"X",null,"X",null,null,null,null,null,null,null,null,null,null,null,null,null,{"$f":"\"Pasquale\"","v":"Pasquale"},{"$f":"\"Torano\"","v":"Torano"},"Pasquale Torano","ITA","fer","ITA0861",420,5,null,null,null,null,null,null,420,5]
[33,"Lazaros Papakonstantinou (atl)","Lazaros Papakonstantinou",{"$f":"\"GRE\"","v":"GRE"},{"$f":"\"Atlas FTC\"","v":"Atlas FTC"},{"$f":"\"VET\"","v":"VET"},"X",null,"X",null,null,null,null,"X",null,null,null,null,null,null,null,null,{"$f":"\"Lazaros\"","v":"Lazaros"},{"$f":"\"Papakonstantinou\"","v":"Papakonstantinou"},"Lazaros Papakonstantinou","GRE","atl","GRE0001",null,8,null,null,null,null,null,null,null,8]
[34,"David Busch (bor)","David Busch",{"$f":"\"AUT\"","v":"AUT"},{"$f":"\"Bormla SC\"","v":"Bormla SC"},{"$f":"\"VET\"","v":"VET"},"X",null,"X",null,null,null,null,"X",null,null,null,null,null,null,null,null,{"$f":"\"David\"","v":"David"},{"$f":"\"Busch\"","v":"Busch"},"David Busch","AUT","bor","AUT0069",null,14,null,null,null,null,null,null,null,14]
[35,"John Zammit (ste)","John Zammit",{"$f":"\"MLT\"","v":"MLT"},{"$f":"\"ST Stembert\"","v":"ST Stembert"},{"$f":"\"VET\"","v":"VET"},"X",null,"X",null,null,null,null,"X",null,null,null,null,null,null,null,null,{"$f":"\"John\"","v":"John"},{"$f":"\"Zammit\"","v":"Zammit"},"John Zammit","MLT","ste","MLT0058",116,19,null,null,null,null,null,null,116,19]
[36,"Massimiliano Croatti (msa)","Massimiliano Croatti",{"$f":"\"ITA\"","v":"ITA"},{"$f":"\"Master Sanremo\"","v":"Master Sanremo"},{"$f":"\"VET\"","v":"VET"},"X",null,"X",null,null,null,null,null,null,null,null,null,null,null,null,null,{"$f":"\"Massimiliano\"","v":"Massimiliano"},{"$f":"\"Croatti\"","v":"Croatti"},"Massimiliano Croatti","ITA","msa","ITA0252",null,23,null,null,null,null,null,null,null,23]
[37,"Francesco Torano (msa)","Francesco Torano",{"$f":"\"ITA\"","v":"ITA"},{"$f":"\"Master Sanremo\"","v":"Master Sanremo"},{"$f":"\"VET\"","v":"VET"},"X",null,"X",null,null,null,null,null,null,null,null,null,null,null,null,null,{"$f":"\"Francesco\"","v":"Francesco"},{"$f":"\"Torano\"","v":"Torano"},"Francesco Torano","ITA","msa","ITA0860",null,27,null,null,null,null,null,null,null,27]
[38,"Christian Haas (bor)","Christian Haas",{"$f":"\"AUT\"","v":"AUT"},{"$f":"\"Bormla SC\"","v":"Bormla SC"},{"$f":"\"OPEN\"","v":"OPEN"},"X",null,null,null,null,null,null,"X",null,null,null,null,null,null,null,null,{"$f":"\"Christian\"","v":"Christian"},{"$f":"\"Haas\"","v":"Haas"},"Christian Haas","AUT","bor","AUT0025",19,null,null,null,null,null,null,null,19]
[39,"Günther Bamberzky (crh)","Günther Bamberzky",{"$f":"\"AUT\"","v":"AUT"},{"$f":"\"Crimson Horses\"","v":"Crimson Horses"},{"$f":"\"VET\"","v":"VET"},"X",null,"X",null,null,null,null,null,null,null,null,null,null,null,null,null,{"$f":"\"Günther\"","v":"Günther"},{"$f":"\"Bamberzky\"","v":"Bamberzky"},"Günther Bamberzky","AUT","crh","AUT0045",null,49,null,null,null,null,null,null,null,49]
[40,"Panagiotis Krommydas (hop)","Panagiotis Krommydas",{"$f":"\"GER\"","v":"GER"},{"$f":"\"Subbuteo Club Höpfigheim\"","v":"Subbuteo Club Höpfigheim"},{"$f":"\"VET\"","v":"VET"},"X",null,"X",null,null,null,null,null,null,null,null,null,null,null,null,null,{"$f":"\"Panagiotis\"","v":"Panagiotis"},{"$f":"\"Krommydas\"","v":"Krommydas"},"Panagiotis Krommydas","GER","hop","GER0131",614,51,null,null,null,null,null,null,614,51]
[41,"Sébastien Rochez (ste)","Sébastien Rochez",{"$f":"\"BEL\"","v":"BEL"},{"$f":"\"ST Stembert\"","v":"ST Stembert"},{"$f":"\"VET\"","v":"VET"},"X",null,"X",null,null,null,null,"X",null,null,null,null,null,null,null,null,{"$f":"\"Sébastien\"","v":"Sébastien"},{"$f":"\"Rochez\"","v":"Rochez"},"Sébastien Rochez","BEL","ste","BEL0481",765,54,null,null,null,null,null,null,765,54]
[42,"Joseph Mifsud (fia)","Joseph Mifsud",{"$f":"\"MLT\"","v":"MLT"},{"$f":"\"SC Fiamme Azzurre\"","v":"SC Fiamme Azzurre"},{"$f":"\"VET\"","v":"VET"},"X",null,"X",null,null,null,null,null,null,null,null,null,null,null,null,null,{"$f":"\"Joseph\"","v":"Joseph"},{"$f":"\"Mifsud\"","v":"Mifsud"},"Joseph Mifsud","MLT","fia","MLT0033",152,82,null,null,null,null,null,null,152,82]
[43,"Georgios Dimakeas (rol)","Georgios Dimakeas",{"$f":"\"GRE\"","v":"GRE"},{"$f":"\"Roligans Ilioupolis TSC\"","v":"Roligans Ilioupolis TSC"},{"$f":"\"VET\"","v":"VET"},"X",null,"X",null,null,null,null,"X",null,null,null,null,null,null,null,null,{"$f":"\"Georgios\"","v":"Georgios"},{"$f":"\"Dimakeas\"","v":"Dimakeas"},"Georgios Dimakeas","GRE","rol","GRE0079",null,97,null,null,null,null,null,null,null,97]
[44,"Robert Green (nfc)","Robert Green",{"$f":"\"AUS\"","v":"AUS"},{"$f":"\"Northern Falcons TFC\"","v":"Northern Falcons TFC"},{"$f":"\"VET\"","v":"VET"},"X",null,"X",null,null,null,null,"X",null,null,null,null,null,null,null,null,{"$f":"\"Robert\"","v":"Robert"},{"$f":"\"Green\"","v":"Green"},"Robert Green","AUS","nfc","AUS0002",122,119,null,null,null,null,null,null,122,119]
[45,"Athanasios Chaliotis (atl)","Athanasios Chaliotis",{"$f":"\"GRE\"","v":"GRE"},{"$f":"\"Atlas FTC\"","v":"Atlas FTC"},{"$f":"\"VET\"","v":"VET"},"X",null,"X",null,null,null,null,"X",null,null,null,null,null,null,null,null,{"$f":"\"Athanasios\"","v":"Athanasios"},{"$f":"\"Chaliotis\"","v":"Chaliotis"},"Athanasios Chaliotis","GRE","atl","GRE0775",779,177,null,null,null,null,null,null,779,177]
[46,"Peter Erb (sub)","Peter Erb",{"$f":"\"SUI\"","v":"SUI"},{"$f":"\"subbuteo.ch\"","v":"subbuteo.ch"},{"$f":"\"VET\"","v":"VET"},"X",null,"X",null,null,null,null,"X",null,null,null,null,null,null,null,null,{"$f":"\"Peter\"","v":"Peter"},{"$f":"\"Erb\"","v":"Erb"},"Peter Erb","SUI","sub","SUI007",1109,210,null,null,null,null,null,null,1109,210]
[47,"Marco Pinausi (gor)","Marco Pinausi",{"$f":"\"ITA\"","v":"ITA"},{"$f":"\"GCT DLF Gorizia\"","v":"GCT DLF Gorizia"},{"$f":"\"VET\"","v":"VET"},"X",null,"X",null,null,null,null,"X",null,null,null,null,null,null,null,null,{"$f":"\"Marco\"","v":"Marco"},{"$f":"\"Pinausi\"","v":"Pinausi"},"Marco Pinausi","ITA","gor","ITA0675",943,213,null,null,null,null,null,null,943,213]
[48,"Karl Vranovitz (roy)","Karl Vranovitz",{"$f":"\"AUT\"","v":"AUT"},{"$f":"\"TSC Royal 78 Kaisermühlen\"","v":"TSC Royal 78 Kaisermühlen"},{"$f":"\"VET\"","v":"VET"},"X",null,"X",null,null,null,null,"X",null,null,null,null,null,null,null,null,{"$f":"\"Karl\"","v":"Karl"},{"$f":"\"Vranovitz\"","v":"Vranovitz"},"Karl Vranovitz","AUT","roy","AUT0084",null,268,null,null,null,null,null,null,null,268]
[49,"Dominik Eder (roy)","Dominik Eder","AUT","TSC Royal 78 Kaisermühlen",{"$f":"\"U12\"","v":"U12"},null,null,null,null,null,null,"X",null,null,null,null,null,null,null,null,null,{"$f":"\"\"","v":""},{"$f":"\"\"","v":""},null,"AUT","roy"]
[50,"Fabio Domenico ()","Fabio Domenico",{"$f":"\"SUI\"","v":"SUI"},{"$f":"\"Free Agent\"","v":"Free Agent"},{"$f":"\"VET\"","v":"VET"},"X",null,"X",null,null,null,null,"X",null,null,null,null,null,null,null,null,{"$f":"\"Fabio\"","v":"Fabio"},{"$f":"\"Domenico\"","v":"Domenico"},"Fabio Domenico","SUI",null,"SUI051",574,null,null,null,null,null,null,null,574]
[51,"Roman Bernhardsgrütter (lis)","Roman Bernhardsgrütter",{"$f":"\"SUI\"","v":"SUI"},{"$f":"\"Linth Sliders SC\"","v":"Linth Sliders SC"},{"$f":"\"VET\"","v":"VET"},"X",null,"X",null,null,null,null,null,null,null,null,null,null,null,null,null,{"$f":"\"Roman\"","v":"Roman"},{"$f":"\"Bernhardsgrütter\"","v":"Bernhardsgrütter"},"Roman Bernhardsgrütter","SUI","lis","SUI023"]
[52,"Gábor Baross (wie)","Gábor Baross",{"$f":"\"HUN\"","v":"HUN"},{"$f":"\"TSC Phoenix\"","v":"TSC Phoenix"},{"$f":"\"OPEN\"","v":"OPEN"},"X",null,"X",null,null,null,null,"X",null,null,null,null,null,null,null,null,{"$f":"\"Gábor\"","v":"Gábor"},{"$f":"\"Baross\"","v":"Baross"},"Gábor Baross","HUN","wie","HUN0025",420,null,null,null,null,null,null,null,420]
[53,"Apollon Dimakeas (rol)","Apollon Dimakeas",{"$f":"\"GRE\"","v":"GRE"},{"$f":"\"Roligans Ilioupolis TSC\"","v":"Roligans Ilioupolis TSC"},{"$f":"\"U12\"","v":"U12"},null,null,null,null,null,null,"X","X",null,null,null,null,null,null,null,null,{"$f":"\"Apollon\"","v":"Apollon"},{"$f":"\"Dimakeas\"","v":"Dimakeas"},"Apollon Dimakeas","GRE","rol","GRE0732",null,null,null,null,55,2,null,null,null,null,null,null,55,2]
[54,"Phillipos Kordantonopoulos (rol)","Phillipos Kordantonopoulos",{"$f":"\"GRE\"","v":"GRE"},{"$f":"\"Roligans Ilioupolis TSC\"","v":"Roligans Ilioupolis TSC"},{"$f":"\"U12\"","v":"U12"},null,null,null,null,null,null,"X","X",null,null,null,null,null,null,null,null,{"$f":"\"Phillipos\"","v":"Phillipos"},{"$f":"\"Kordantonopoulos\"","v":"Kordantonopoulos"},"Phillipos Kordantonopoulos","GRE","rol","GRE0802",null,null,null,null,null,27,null,null,null,null,null,null,null,27]
[55,"Katharina Waldorf-Busch (bor)","Katharina Waldorf-Busch",{"$f":"\"AUT\"","v":"AUT"},{"$f":"\"Bormla SC\"","v":"Bormla SC"},{"$f":"\"VET\"","v":"VET"},null,null,"X","X",null,null,null,"X",null,null,null,null,null,null,null,null,{"$f":"\"Katharina\"","v":"Katharina"},{"$f":"\"Waldorf-Busch\"","v":"Waldorf-Busch"},"Katharina Waldorf-Busch","AUT","bor","AUT0121",null,null,7,null,null,null,null,null,null,null,7]
[56,"Daniela Grünberg (sch)","Daniela Grünberg",{"$f":"\"GER\"","v":"GER"},{"$f":"\"BSC Schwalbach\"","v":"BSC Schwalbach"},{"$f":"\"OPEN\"","v":"OPEN"},null,null,null,"X",null,null,null,"X",null,null,null,null,null,null,null,null,{"$f":"\"Daniela\"","v":"Daniela"},{"$f":"\"Grünberg\"","v":"Grünberg"},"Daniela Grünberg","GER","sch","GER0133",1012,null,36,null,null,null,null,null,1012,null,36]
[57,"Katharina Ocenasek (roy)","Katharina Ocenasek",{"$f":"\"AUT\"","v":"AUT"},{"$f":"\"TSC Royal 78 Kaisermühlen\"","v":"TSC Royal 78 Kaisermühlen"},{"$f":"\"OPEN\"","v":"OPEN"},null,null,null,"X",null,null,null,"X",null,null,null,null,null,null,null,null,{"$f":"\"Katharina\"","v":"Katharina"},{"$f":"\"Ocenasek\"","v":"Ocenasek"},"Katharina Ocenasek","AUT","roy","AUT0115",1047,null,57,null,null,null,null,null,1047,null,57]
[58,"Alfred Strommer (wie)","Alfred Strommer",{"$f":"\"AUT\"","v":"AUT"},{"$f":"\"TSC Phoenix\"","v":"TSC Phoenix"},{"$f":"\"VET\"","v":"VET"},"X",null,"X",null,null,null,null,"X",null,null,null,null,null,null,null,null,{"$f":"\"Alfred\"","v":"Alfred"},{"$f":"\"Strommer\"","v":"Strommer"},"Alfred Strommer","AUT","wie","AUT0059",624,138,null,null,null,null,null,null,624,138]
[59,"Marco Zucchi (pin)","Marco Zucchi",{"$f":"\"CZE\"","v":"CZE"},{"$f":"\"PINCO DEVILS TABLE SOCCER\"","v":"PINCO DEVILS TABLE SOCCER"},{"$f":"\"VET\"","v":"VET"},"X",null,"X",null,null,null,null,null,null,null,null,null,null,null,null,null,{"$f":"\"Marco\"","v":"Marco"},{"$f":"\"Zucchi\"","v":"Zucchi"},"Marco Zucchi","CZE","pin","CZE0005",405,216,null,null,null,null,null,null,405,216]
[60,"Florian Daxböck (wie)","Florian Daxböck",{"$f":"\"AUT\"","v":"AUT"},{"$f":"\"TSC Phoenix\"","v":"TSC Phoenix"},{"$f":"\"VET\"","v":"VET"},"X",null,"X",null,null,null,null,"X",null,null,null,null,null,null,null,null,{"$f":"\"Florian\"","v":"Florian"},{"$f":"\"Daxböck\"","v":"Daxböck"},"Florian Daxböck","AUT","wie","AUT0125",null,226,null,null,null,null,null,null,null,226]
[61,"Christian Haas (bor)","Christian Haas",{"$f":"\"AUT\"","v":"AUT"},{"$f":"\"Bormla SC\"","v":"Bormla SC"},{"$f":"\"OPEN\"","v":"OPEN"},"X",null,null,null,null,null,null,"X",null,null,null,null,null,null,null,null,{"$f":"\"Christian\"","v":"Christian"},{"$f":"\"Haas\"","v":"Haas"},"Christian Haas","AUT","bor","AUT0025",19,null,null,null,null,null,null,null,19]
[62,"Daniel Eder (roy)","Daniel Eder","AUT","TSC Royal 78 Kaisermühlen","U12",null,null,null,null,null,null,"X",null,null,null,null,null,null,null,null,null,{"$f":"\"\"","v":""},{"$f":"\"\"","v":""},null,"AUT","roy"]
[63,"Stefan Sandner (roy)","Stefan Sandner",{"$f":"\"AUT\"","v":"AUT"},{"$f":"\"TSC Royal 78 Kaisermühlen\"","v":"TSC Royal 78 Kaisermühlen"},{"$f":"\"VET\"","v":"VET"},"X",null,null,null,null,null,null,"X",null,null,null,null,null,null,null,null,{"$f":"\"Stefan\"","v":"Stefan"},{"$f":"\"Sandner\"","v":"Sandner"},"Stefan Sandner","AUT","roy","AUT0033",365,38,null,null,null,null,null,null,365,38]
[64,"Stefan Sandner (roy)","Stefan Sandner",{"$f":"\"AUT\"","v":"AUT"},{"$f":"\"TSC Royal 78 Kaisermühlen\"","v":"TSC Royal 78 Kaisermühlen"},{"$f":"\"VET\"","v":"VET"},"X",null,null,null,null,null,null,"X",null,null,null,null,null,null,null,null,{"$f":"\"Stefan\"","v":"Stefan"},{"$f":"\"Sandner\"","v":"Sandner"},"Stefan Sandner","AUT","roy","AUT0033",365,38,null,null,null,null,null,null,365,38]
[65,"Robert Lenz (roy)","Robert Lenz",{"$f":"\"AUT\"","v":"AUT"},{"$f":"\"TSC Royal 78 Kaisermühlen\"","v":"TSC Royal 78 Kaisermühlen"},{"$f":"\"VET\"","v":"VET"},"X",null,null,null,null,null,null,"X",null,null,null,null,null,null,null,null,{"$f":"\"Robert\"","v":"Robert"},{"$f":"\"Lenz\"","v":"Lenz"},"Robert Lenz","AUT","roy","AUT0012",183,null,null,null,null,null,null,null,183]
[66,"Robert Lenz (roy)","Robert Lenz",{"$f":"\"AUT\"","v":"AUT"},{"$f":"\"TSC Royal 78 Kaisermühlen\"","v":"TSC Royal 78 Kaisermühlen"},{"$f":"\"VET\"","v":"VET"},"X",null,null,null,null,null,null,"X",null,null,null,null,null,null,null,null,{"$f":"\"Robert\"","v":"Robert"},{"$f":"\"Lenz\"","v":"Lenz"},"Robert Lenz","AUT","roy","AUT0012",183,null,null,null,null,null,null,null,183]
[67,"Heinz Eder (roy)","Heinz Eder",{"$f":"\"AUT\"","v":"AUT"},{"$f":"\"TSC Royal 78 Kaisermühlen\"","v":"TSC Royal 78 Kaisermühlen"},{"$f":"\"OPEN\"","v":"OPEN"},"X",null,null,null,null,null,null,"X",null,null,null,null,null,null,null,null,{"$f":"\"Heinz\"","v":"Heinz"},{"$f":"\"Eder\"","v":"Eder"},"Heinz Eder","AUT","roy","AUT0021",285,null,null,null,null,null,null,null,285]
[68,"Christian Blümel (wie)","Christian Blümel",{"$f":"\"AUT\"","v":"AUT"},{"$f":"\"TSC Phoenix\"","v":"TSC Phoenix"},{"$f":"\"OPEN\"","v":"OPEN"},"X",null,null,null,null,null,null,"X",null,null,null,null,null,null,null,null,{"$f":"\"Christian\"","v":"Christian"},{"$f":"\"Blümel\"","v":"Blümel"},"Christian Blümel","AUT","wie","AUT0047",715,null,null,null,null,null,null,null,715]
[69,"Manfred Pawlica (wie)","Manfred Pawlica",{"$f":"\"AUT\"","v":"AUT"},{"$f":"\"TSC Phoenix\"","v":"TSC Phoenix"},{"$f":"\"VET\"","v":"VET"},"X",null,null,null,null,null,null,"X",null,null,null,null,null,null,null,null,{"$f":"\"Manfred\"","v":"Manfred"},{"$f":"\"Pawlica\"","v":"Pawlica"},"Manfred Pawlica","AUT","wie","AUT0057",538,83,null,null,null,null,null,null,538,83]
[70,"Marios Strommer (wie)","Marios Strommer",{"$f":"\"AUT\"","v":"AUT"},{"$f":"\"TSC Phoenix\"","v":"TSC Phoenix"},{"$f":"\"OPEN\"","v":"OPEN"},"X",null,null,null,null,null,null,"X",null,null,null,null,null,null,null,null,{"$f":"\"Marios\"","v":"Marios"},{"$f":"\"Strommer\"","v":"Strommer"},"Marios Strommer","AUT","wie","AUT0066",167,null,null,null,null,null,null,null,167]
[71,"Igor Ljubisavljevic (wie)","Igor Ljubisavljevic",{"$f":"\"AUT\"","v":"AUT"},{"$f":"\"TSC Phoenix\"","v":"TSC Phoenix"},{"$f":"\"OPEN\"","v":"OPEN"},"X",null,null,null,null,null,null,"X",null,null,null,null,null,null,null,null,{"$f":"\"Igor\"","v":"Igor"},{"$f":"\"Ljubisavljevic\"","v":"Ljubisavljevic"},"Igor Ljubisavljevic","AUT","wie","AUT0124",588,null,null,null,null,null,null,null,588]
[72,null,null,{"$f":"\"\"","v":""},{"$f":"\"\"","v":""},{"$f":"\"\"","v":""},null,null,null,null,null,null,null,null,null,null,null,null,null,null,null,null,{"$f":"\"\"","v":""},{"$f":"\"\"","v":""}]
[73,null,null,{"$f":"\"\"","v":""},{"$f":"\"\"","v":""},{"$f":"\"\"","v":""},null,null,null,null,null,null,null,null,null,null,null,null,null,null,null,null,{"$f":"\"\"","v":""},{"$f":"\"\"","v":""}]
[74,null,null,{"$f":"\"\"","v":""},{"$f":"\"\"","v":""},{"$f":"\"\"","v":""},null,null,null,null,null,null,null,null,null,null,null,null,null,null,null,null,{"$f":"\"\"","v":""},{"$f":"\"\"","v":""}]
[75,null,null,{"$f":"\"\"","v":""},{"$f":"\"\"","v":""},{"$f":"\"\"","v":""},null,null,null,null,null,null,null,null,null,null,null,null,null,null,null,null,{"$f":"\"\"","v":""},{"$f":"\"\"","v":""}]
[76,null,null,{"$f":"\"\"","v":""},{"$f":"\"\"","v":""},{"$f":"\"\"","v":""},null,null,null,null,null,null,null,null,null,null,null,null,null,null,null,null,{"$f":"\"\"","v":""},{"$f":"\"\"","v":""}]
[77,null,null,{"$f":"\"\"","v":""},{"$f":"\"\"","v":""},{"$f":"\"\"","v":""},null,null,null,null,null,null,null,null,null,null,null,null,null,null,null,null,{"$f":"\"\"","v":""},{"$f":"\"\"","v":""}]
[78,null,null,{"$f":"\"\"","v":""},{"$f":"\"\"","v":""},{"$f":"\"\"","v":""},null,null,null,null,null,null,null,null,null,null,null,null,null,null,null,null,{"$f":"\"\"","v":""},{"$f":"\"\"","v":""}]
[79,null,null,{"$f":"\"\"","v":""},{"$f":"\"\"","v":""},{"$f":"\"\"","v":""},null,null,null,null,null,null,null,null,null,null,null,null,null,null,null,null,{"$f":"\"\"","v":""},{"$f":"\"\"","v":""}]
[80,null,null,{"$f":"\"\"","v":""},{"$f":"\"\"","v":""},{"$f":"\"\"","v":""},null,null,null,null,null,null,null,null,null,null,null,null,null,null,null,null,{"$f":"\"\"","v":""},{"$f":"\"\"","v":""}]
[81,null,null,{"$f":"\"\"","v":""},{"$f":"\"\"","v":""},{"$f":"\"\"","v":""},null,null,null,null,null,null,null,null,null,null,null,null,null,null,null,null,{"$f":"\"\"","v":""},{"$f":"\"\"","v":""}]
[82,null,null,{"$f":"\"\"","v":""},{"$f":"\"\"","v":""},{"$f":"\"\"","v":""},null,null,null,null,null,null,null,null,null,null,null,null,null,null,null,null,{"$f":"\"\"","v":""},{"$f":"\"\"","v":""}]
[83,null,null,{"$f":"\"\"","v":""},{"$f":"\"\"","v":""},{"$f":"\"\"","v":""},null,null,null,null,null,null,null,null,null,null,null,null,null,null,null,null,{"$f":"\"\"","v":""},{"$f":"\"\"","v":""}]
[84,null,null,{"$f":"\"\"","v":""},{"$f":"\"\"","v":""},{"$f":"\"\"","v":""},null,null,null,null,null,null,null,null,null,null,null,null,null,null,null,null,{"$f":"\"\"","v":""},{"$f":"\"\"","v":""}]
[85,null,null,{"$f":"\"\"","v":""},{"$f":"\"\"","v":""},{"$f":"\"\"","v":""},null,null,null,null,null,null,null,null,null,null,null,null,null,null,null,null,{"$f":"\"\"","v":""},{"$f":"\"\"","v":""}]
[86,null,null,{"$f":"\"\"","v":""},{"$f":"\"\"","v":""},{"$f":"\"\"","v":""},null,null,null,null,null,null,null,null,null,null,null,null,null,null,null,null,{"$f":"\"\"","v":""},{"$f":"\"\"","v":""}]
[87,null,null,{"$f":"\"\"","v":""},{"$f":"\"\"","v":""},{"$f":"\"\"","v":""},null,null,null,null,null,null,null,null,null,null,null,null,null,null,null,null,{"$f":"\"\"","v":""},{"$f":"\"\"","v":""}]
[88,null,null,{"$f":"\"\"","v":""},{"$f":"\"\"","v":""},{"$f":"\"\"","v":""},null,null,null,null,null,null,null,null,null,null,null,null,null,null,null,null,{"$f":"\"\"","v":""},{"$f":"\"\"","v":""}]
[89,null,null,{"$f":"\"\"","v":""},{"$f":"\"\"","v":""},{"$f":"\"\"","v":""},null,null,null,null,null,null,null,null,null,null,null,null,null,null,null,null,{"$f":"\"\"","v":""},{"$f":"\"\"","v":""}]
[90,null,null,{"$f":"\"\"","v":""},{"$f":"\"\"","v":""},{"$f":"\"\"","v":""},null,null,null,null,null,null,null,null,null,null,null,null,null,null,null,null,{"$f":"\"\"","v":""},{"$f":"\"\"","v":""}]
[91,null,null,{"$f":"\"\"","v":""},{"$f":"\"\"","v":""},{"$f":"\"\"","v":""},null,null,null,null,null,null,null,null,null,null,null,null,null,null,null,null,{"$f":"\"\"","v":""},{"$f":"\"\"","v":""}]
[92,null,null,{"$f":"\"\"","v":""},{"$f":"\"\"","v":""},{"$f":"\"\"","v":""},null,null,null,null,null,null,null,null,null,null,null,null,null,null,null,null,{"$f":"\"\"","v":""},{"$f":"\"\"","v":""}]
[93,null,null,{"$f":"\"\"","v":""},{"$f":"\"\"","v":""},{"$f":"\"\"","v":""},null,null,null,null,null,null,null,null,null,null,null,null,null,null,null,null,{"$f":"\"\"","v":""},{"$f":"\"\"","v":""}]
[94,null,null,{"$f":"\"\"","v":""},{"$f":"\"\"","v":""},{"$f":"\"\"","v":""},null,null,null,null,null,null,null,null,null,null,null,null,null,null,null,null,{"$f":"\"\"","v":""},{"$f":"\"\"","v":""}]
[95,null,null,{"$f":"\"\"","v":""},{"$f":"\"\"","v":""},{"$f":"\"\"","v":""},null,null,null,null,null,null,null,null,null,null,null,null,null,null,null,null,{"$f":"\"\"","v":""},{"$f":"\"\"","v":""}]
[96,null,null,{"$f":"\"\"","v":""},{"$f":"\"\"","v":""},{"$f":"\"\"","v":""},null,null,null,null,null,null,null,null,null,null,null,null,null,null,null,null,{"$f":"\"\"","v":""},{"$f":"\"\"","v":""}]
[97,null,null,{"$f":"\"\"","v":""},{"$f":"\"\"","v":""},{"$f":"\"\"","v":""},null,null,null,null,null,null,null,null,null,null,null,null,null,null,null,null,{"$f":"\"\"","v":""},{"$f":"\"\"","v":""}]
[98,null,null,{"$f":"\"\"","v":""},{"$f":"\"\"","v":""},{"$f":"\"\"","v":""},null,null,null,null,null,null,null,null,null,null,null,null,null,null,null,null,{"$f":"\"\"","v":""},{"$f":"\"\"","v":""}]
[99,null,null,{"$f":"\"\"","v":""},{"$f":"\"\"","v":""},{"$f":"\"\"","v":""},null,null,null,null,null,null,null,null,null,null,null,null,null,null,null,null,{"$f":"\"\"","v":""},{"$f":"\"\"","v":""}]
[100,null,null,{"$f":"\"\"","v":""},{"$f":"\"\"","v":""},{"$f":"\"\"","v":""},null,null,null,null,null,null,null,null,null,null,null,null,null,null,null,null,{"$f":"\"\"","v":""},{"$f":"\"\"","v":""}]
[101,null,null,{"$f":"\"\"","v":""},{"$f":"\"\"","v":""},{"$f":"\"\"","v":""},null,null,null,null,null,null,null,null,null,null,null,null,null,null,null,null,{"$f":"\"\"","v":""},{"$f":"\"\"","v":""}]
[102,null,null,{"$f":"\"\"","v":""},{"$f":"\"\"","v":""},{"$f":"\"\"","v":""},null,null,null,null,null,null,null,null,null,null,null,null,null,null,null,null,{"$f":"\"\"","v":""},{"$f":"\"\"","v":""}]
[103,null,null,{"$f":"\"\"","v":""},{"$f":"\"\"","v":""},{"$f":"\"\"","v":""},null,null,null,null,null,null,null,null,null,null,null,null,null,null,null,null,{"$f":"\"\"","v":""},{"$f":"\"\"","v":""}]
[104,null,null,{"$f":"\"\"","v":""},{"$f":"\"\"","v":""},{"$f":"\"\"","v":""},null,null,null,null,null,null,null,null,null,null,null,null,null,null,null,null,{"$f":"\"\"","v":""},{"$f":"\"\"","v":""}]
[105,null,null,{"$f":"\"\"","v":""},{"$f":"\"\"","v":""},{"$f":"\"\"","v":""},null,null,null,null,null,null,null,null,null,null,null,null,null,null,null,null,{"$f":"\"\"","v":""},{"$f":"\"\"","v":""}]
[106,null,null,{"$f":"\"\"","v":""},{"$f":"\"\"","v":""},{"$f":"\"\"","v":""},null,null,null,null,null,null,null,null,null,null,null,null,null,null,null,null,{"$f":"\"\"","v":""},{"$f":"\"\"","v":""}]
[107,null,null,{"$f":"\"\"","v":""},{"$f":"\"\"","v":""},{"$f":"\"\"","v":""},null,null,null,null,null,null,null,null,null,null,null,null,null,null,null,null,{"$f":"\"\"","v":""},{"$f":"\"\"","v":""}]
[108,null,null,{"$f":"\"\"","v":""},{"$f":"\"\"","v":""},{"$f":"\"\"","v":""},null,null,null,null,null,null,null,null,null,null,null,null,null,null,null,null,{"$f":"\"\"","v":""},{"$f":"\"\"","v":""}]
[109,null,null,{"$f":"\"\"","v":""},{"$f":"\"\"","v":""},{"$f":"\"\"","v":""},null,null,null,null,null,null,null,null,null,null,null,null,null,null,null,null,{"$f":"\"\"","v":""},{"$f":"\"\"","v":""}]
[110,null,null,{"$f":"\"\"","v":""},{"$f":"\"\"","v":""},{"$f":"\"\"","v":""},null,null,null,null,null,null,null,null,null,null,null,null,null,null,null,null,{"$f":"\"\"","v":""},{"$f":"\"\"","v":""}]
[111,null,null,{"$f":"\"\"","v":""},{"$f":"\"\"","v":""},{"$f":"\"\"","v":""},null,null,null,null,null,null,null,null,null,null,null,null,null,null,null,null,{"$f":"\"\"","v":""},{"$f":"\"\"","v":""}]
[112,null,null,{"$f":"\"\"","v":""},{"$f":"\"\"","v":""},{"$f":"\"\"","v":""},null,null,null,null,null,null,null,null,null,null,null,null,null,null,null,null,{"$f":"\"\"","v":""},{"$f":"\"\"","v":""}]
[113,null,null,{"$f":"\"\"","v":""},{"$f":"\"\"","v":""},{"$f":"\"\"","v":""},null,null,null,null,null,null,null,null,null,null,null,null,null,null,null,null,{"$f":"\"\"","v":""},{"$f":"\"\"","v":""}]
[114,null,null,{"$f":"\"\"","v":""},{"$f":"\"\"","v":""},{"$f":"\"\"","v":""},null,null,null,null,null,null,null,null,null,null,null,null,null,null,null,null,{"$f":"\"\"","v":""},{"$f":"\"\"","v":""}]
[115,null,null,{"$f":"\"\"","v":""},{"$f":"\"\"","v":""},{"$f":"\"\"","v":""},null,null,null,null,null,null,null,null,null,null,null,null,null,null,null,null,{"$f":"\"\"","v":""},{"$f":"\"\"","v":""}]
[116,null,null,{"$f":"\"\"","v":""},{"$f":"\"\"","v":""},{"$f":"\"\"","v":""},null,null,null,null,null,null,null,null,null,null,null,null,null,null,null,null,{"$f":"\"\"","v":""},{"$f":"\"\"","v":""}]
[117,null,null,{"$f":"\"\"","v":""},{"$f":"\"\"","v":""},{"$f":"\"\"","v":""},null,null,null,null,null,null,null,null,null,null,null,null,null,null,null,null,{"$f":"\"\"","v":""},{"$f":"\"\"","v":""}]
[118,null,null,{"$f":"\"\"","v":""},{"$f":"\"\"","v":""},{"$f":"\"\"","v":""},null,null,null,null,null,null,null,null,null,null,null,null,null,null,null,null,{"$f":"\"\"","v":""},{"$f":"\"\"","v":""}]
[119,null,null,{"$f":"\"\"","v":""},{"$f":"\"\"","v":""},{"$f":"\"\"","v":""},null,null,null,null,null,null,null,null,null,null,null,null,null,null,null,null,{"$f":"\"\"","v":""},{"$f":"\"\"","v":""}]
[120,null,null,{"$f":"\"\"","v":""},{"$f":"\"\"","v":""},{"$f":"\"\"","v":""},null,null,null,null,null,null,null,null,null,null,null,null,null,null,null,null,{"$f":"\"\"","v":""},{"$f":"\"\"","v":""}]
[121,null,null,{"$f":"\"\"","v":""},{"$f":"\"\"","v":""},{"$f":"\"\"","v":""},null,null,null,null,null,null,null,null,null,null,null,null,null,null,null,null,{"$f":"\"\"","v":""},{"$f":"\"\"","v":""}]
[122,null,null,{"$f":"\"\"","v":""},{"$f":"\"\"","v":""},{"$f":"\"\"","v":""},null,null,null,null,null,null,null,null,null,null,null,null,null,null,null,null,{"$f":"\"\"","v":""},{"$f":"\"\"","v":""}]
[123,null,null,{"$f":"\"\"","v":""},{"$f":"\"\"","v":""},{"$f":"\"\"","v":""},null,null,null,null,null,null,null,null,null,null,null,null,null,null,null,null,{"$f":"\"\"","v":""},{"$f":"\"\"","v":""}]
[124,null,null,{"$f":"\"\"","v":""},{"$f":"\"\"","v":""},{"$f":"\"\"","v":""},null,null,null,null,null,null,null,null,null,null,null,null,null,null,null,null,{"$f":"\"\"","v":""},{"$f":"\"\"","v":""}]
[125,null,null,{"$f":"\"\"","v":""},{"$f":"\"\"","v":""},{"$f":"\"\"","v":""},null,null,null,null,null,null,null,null,null,null,null,null,null,null,null,null,{"$f":"\"\"","v":""},{"$f":"\"\"","v":""}]
[126,null,null,{"$f":"\"\"","v":""},{"$f":"\"\"","v":""},{"$f":"\"\"","v":""},null,null,null,null,null,null,null,null,null,null,null,null,null,null,null,null,{"$f":"\"\"","v":""},{"$f":"\"\"","v":""}]
[127,null,null,{"$f":"\"\"","v":""},{"$f":"\"\"","v":""},{"$f":"\"\"","v":""},null,null,null,null,null,null,null,null,null,null,null,null,null,null,null,null,{"$f":"\"\"","v":""},{"$f":"\"\"","v":""}]
[128,null,null,{"$f":"\"\"","v":""},{"$f":"\"\"","v":""},{"$f":"\"\"","v":""},null,null,null,null,null,null,null,null,null,null,null,null,null,null,null,null,{"$f":"\"\"","v":""},{"$f":"\"\"","v":""}]
[129,null,null,{"$f":"\"\"","v":""},{"$f":"\"\"","v":""},{"$f":"\"\"","v":""},null,null,null,null,null,null,null,null,null,null,null,null,null,null,null,null,{"$f":"\"\"","v":""},{"$f":"\"\"","v":""}]
[130,null,null,{"$f":"\"\"","v":""},{"$f":"\"\"","v":""},{"$f":"\"\"","v":""},null,null,null,null,null,null,null,null,null,null,null,null,null,null,null,null,{"$f":"\"\"","v":""},{"$f":"\"\"","v":""}]
[131,null,null,{"$f":"\"\"","v":""},{"$f":"\"\"","v":""},{"$f":"\"\"","v":""},null,null,null,null,null,null,null,null,null,null,null,null,null,null,null,null,{"$f":"\"\"","v":""},{"$f":"\"\"","v":""}]
[132,null,null,{"$f":"\"\"","v":""},{"$f":"\"\"","v":""},{"$f":"\"\"","v":""},null,null,null,null,null,null,null,null,null,null,null,null,null,null,null,null,{"$f":"\"\"","v":""},{"$f":"\"\"","v":""}]
[133,null,null,{"$f":"\"\"","v":""},{"$f":"\"\"","v":""},{"$f":"\"\"","v":""},null,null,null,null,null,null,null,null,null,null,null,null,null,null,null,null,{"$f":"\"\"","v":""},{"$f":"\"\"","v":""}]
[134,null,null,{"$f":"\"\"","v":""},{"$f":"\"\"","v":""},{"$f":"\"\"","v":""},null,null,null,null,null,null,null,null,null,null,null,null,null,null,null,null,{"$f":"\"\"","v":""},{"$f":"\"\"","v":""}]
[135,null,null,{"$f":"\"\"","v":""},{"$f":"\"\"","v":""},{"$f":"\"\"","v":""},null,null,null,null,null,null,null,null,null,null,null,null,null,null,null,null,{"$f":"\"\"","v":""},{"$f":"\"\"","v":""}]
[136,null,null,{"$f":"\"\"","v":""},{"$f":"\"\"","v":""},{"$f":"\"\"","v":""},null,null,null,null,null,null,null,null,null,null,null,null,null,null,null,null,{"$f":"\"\"","v":""},{"$f":"\"\"","v":""}]
[137,null,null,{"$f":"\"\"","v":""},{"$f":"\"\"","v":""},{"$f":"\"\"","v":""},null,null,null,null,null,null,null,null,null,null,null,null,null,null,null,null,{"$f":"\"\"","v":""},{"$f":"\"\"","v":""}]
[138,null,null,{"$f":"\"\"","v":""},{"$f":"\"\"","v":""},{"$f":"\"\"","v":""},null,null,null,null,null,null,null,null,null,null,null,null,null,null,null,null,{"$f":"\"\"","v":""},{"$f":"\"\"","v":""}]
[139,null,null,{"$f":"\"\"","v":""},{"$f":"\"\"","v":""},{"$f":"\"\"","v":""},null,null,null,null,null,null,null,null,null,null,null,null,null,null,null,null,{"$f":"\"\"","v":""},{"$f":"\"\"","v":""}]
[140,null,null,{"$f":"\"\"","v":""},{"$f":"\"\"","v":""},{"$f":"\"\"","v":""},null,null,null,null,null,null,null,null,null,null,null,null,null,null,null,null,{"$f":"\"\"","v":""},{"$f":"\"\"","v":""}]
[141,null,null,{"$f":"\"\"","v":""},{"$f":"\"\"","v":""},{"$f":"\"\"","v":""},null,null,null,null,null,null,null,null,null,null,null,null,null,null,null,null,{"$f":"\"\"","v":""},{"$f":"\"\"","v":""}]
[142,null,null,{"$f":"\"\"","v":""},{"$f":"\"\"","v":""},{"$f":"\"\"","v":""},null,null,null,null,null,null,null,null,null,null,null,null,null,null,null,null,{"$f":"\"\"","v":""},{"$f":"\"\"","v":""}]
[143,null,null,{"$f":"\"\"","v":""},{"$f":"\"\"","v":""},{"$f":"\"\"","v":""},null,null,null,null,null,null,null,null,null,null,null,null,null,null,null,null,{"$f":"\"\"","v":""},{"$f":"\"\"","v":""}]
[144,null,null,{"$f":"\"\"","v":""},{"$f":"\"\"","v":""},{"$f":"\"\"","v":""},null,null,null,null,null,null,null,null,null,null,null,null,null,null,null,null,{"$f":"\"\"","v":""},{"$f":"\"\"","v":""}]
[145,null,null,{"$f":"\"\"","v":""},{"$f":"\"\"","v":""},{"$f":"\"\"","v":""},null,null,null,null,null,null,null,null,null,null,null,null,null,null,null,null,{"$f":"\"\"","v":""},{"$f":"\"\"","v":""}]
[146,null,null,{"$f":"\"\"","v":""},{"$f":"\"\"","v":""},{"$f":"\"\"","v":""},null,null,null,null,null,null,null,null,null,null,null,null,null,null,null,null,{"$f":"\"\"","v":""},{"$f":"\"\"","v":""}]
[147,null,null,{"$f":"\"\"","v":""},{"$f":"\"\"","v":""},{"$f":"\"\"","v":""},null,null,null,null,null,null,null,null,null,null,null,null,null,null,null,null,{"$f":"\"\"","v":""},{"$f":"\"\"","v":""}]
[148,null,null,{"$f":"\"\"","v":""},{"$f":"\"\"","v":""},{"$f":"\"\"","v":""},null,null,null,null,null,null,null,null,null,null,null,null,null,null,null,null,{"$f":"\"\"","v":""},{"$f":"\"\"","v":""}]
[149,null,null,{"$f":"\"\"","v":""},{"$f":"\"\"","v":""},{"$f":"\"\"","v":""},null,null,null,null,null,null,null,null,null,null,null,null,null,null,null,null,{"$f":"\"\"","v":""},{"$f":"\"\"","v":""}]
[150,null,null,{"$f":"\"\"","v":""},{"$f":"\"\"","v":""},{"$f":"\"\"","v":""},null,null,null,null,null,null,null,null,null,null,null,null,null,null,null,null,{"$f":"\"\"","v":""},{"$f":"\"\"","v":""}]
[151,null,null,{"$f":"\"\"","v":""},{"$f":"\"\"","v":""},{"$f":"\"\"","v":""},null,null,null,null,null,null,null,null,null,null,null,null,null,null,null,null,{"$f":"\"\"","v":""},{"$f":"\"\"","v":""}]
[152,null,null,{"$f":"\"\"","v":""},{"$f":"\"\"","v":""},{"$f":"\"\"","v":""},null,null,null,null,null,null,null,null,null,null,null,null,null,null,null,null,{"$f":"\"\"","v":""},{"$f":"\"\"","v":""}]
[153,null,null,{"$f":"\"\"","v":""},{"$f":"\"\"","v":""},{"$f":"\"\"","v":""},null,null,null,null,null,null,null,null,null,null,null,null,null,null,null,null,{"$f":"\"\"","v":""},{"$f":"\"\"","v":""}]
[154,null,null,{"$f":"\"\"","v":""},{"$f":"\"\"","v":""},{"$f":"\"\"","v":""},null,null,null,null,null,null,null,null,null,null,null,null,null,null,null,null,{"$f":"\"\"","v":""},{"$f":"\"\"","v":""}]
[155,null,null,{"$f":"\"\"","v":""},{"$f":"\"\"","v":""},{"$f":"\"\"","v":""},null,null,null,null,null,null,null,null,null,null,null,null,null,null,null,null,{"$f":"\"\"","v":""},{"$f":"\"\"","v":""}]
[156,null,null,{"$f":"\"\"","v":""},{"$f":"\"\"","v":""},{"$f":"\"\"","v":""},null,null,null,null,null,null,null,null,null,null,null,null,null,null,null,null,{"$f":"\"\"","v":""},{"$f":"\"\"","v":""}]
[157,null,null,{"$f":"\"\"","v":""},{"$f":"\"\"","v":""},{"$f":"\"\"","v":""},null,null,null,null,null,null,null,null,null,null,null,null,null,null,null,null,{"$f":"\"\"","v":""},{"$f":"\"\"","v":""}]
[158,null,null,{"$f":"\"\"","v":""},{"$f":"\"\"","v":""},{"$f":"\"\"","v":""},null,null,null,null,null,null,null,null,null,null,null,null,null,null,null,null,{"$f":"\"\"","v":""},{"$f":"\"\"","v":""}]
[159,null,null,{"$f":"\"\"","v":""},{"$f":"\"\"","v":""},{"$f":"\"\"","v":""},null,null,null,null,null,null,null,null,null,null,null,null,null,null,null,null,{"$f":"\"\"","v":""},{"$f":"\"\"","v":""}]
[160,null,null,{"$f":"\"\"","v":""},{"$f":"\"\"","v":""},{"$f":"\"\"","v":""},null,null,null,null,null,null,null,null,null,null,null,null,null,null,null,null,{"$f":"\"\"","v":""},{"$f":"\"\"","v":""}]
[161,null,null,{"$f":"\"\"","v":""},{"$f":"\"\"","v":""},{"$f":"\"\"","v":""},null,null,null,null,null,null,null,null,null,null,null,null,null,null,null,null,{"$f":"\"\"","v":""},{"$f":"\"\"","v":""}]
[162,null,null,{"$f":"\"\"","v":""},{"$f":"\"\"","v":""},{"$f":"\"\"","v":""},null,null,null,null,null,null,null,null,null,null,null,null,null,null,null,null,{"$f":"\"\"","v":""},{"$f":"\"\"","v":""}]
[163,null,null,{"$f":"\"\"","v":""},{"$f":"\"\"","v":""},{"$f":"\"\"","v":""},null,null,null,null,null,null,null,null,null,null,null,null,null,null,null,null,{"$f":"\"\"","v":""},{"$f":"\"\"","v":""}]
[164,null,null,{"$f":"\"\"","v":""},{"$f":"\"\"","v":""},{"$f":"\"\"","v":""},null,null,null,null,null,null,null,null,null,null,null,null,null,null,null,null,{"$f":"\"\"","v":""},{"$f":"\"\"","v":""}]
[165,null,null,{"$f":"\"\"","v":""},{"$f":"\"\"","v":""},{"$f":"\"\"","v":""},null,null,null,null,null,null,null,null,null,null,null,null,null,null,null,null,{"$f":"\"\"","v":""},{"$f":"\"\"","v":""}]
[166,null,null,{"$f":"\"\"","v":""},{"$f":"\"\"","v":""},{"$f":"\"\"","v":""},null,null,null,null,null,null,null,null,null,null,null,null,null,null,null,null,{"$f":"\"\"","v":""},{"$f":"\"\"","v":""}]
[167,null,null,{"$f":"\"\"","v":""},{"$f":"\"\"","v":""},{"$f":"\"\"","v":""},null,null,null,null,null,null,null,null,null,null,null,null,null,null,null,null,{"$f":"\"\"","v":""},{"$f":"\"\"","v":""}]
[168,null,null,{"$f":"\"\"","v":""},{"$f":"\"\"","v":""},{"$f":"\"\"","v":""},null,null,null,null,null,null,null,null,null,null,null,null,null,null,null,null,{"$f":"\"\"","v":""},{"$f":"\"\"","v":""}]
[169,null,null,{"$f":"\"\"","v":""},{"$f":"\"\"","v":""},{"$f":"\"\"","v":""},null,null,null,null,null,null,null,null,null,null,null,null,null,null,null,null,{"$f":"\"\"","v":""},{"$f":"\"\"","v":""}]
[170,null,null,{"$f":"\"\"","v":""},{"$f":"\"\"","v":""},{"$f":"\"\"","v":""},null,null,null,null,null,null,null,null,null,null,null,null,null,null,null,null,{"$f":"\"\"","v":""},{"$f":"\"\"","v":""}]
[171,null,null,{"$f":"\"\"","v":""},{"$f":"\"\"","v":""},{"$f":"\"\"","v":""},null,null,null,null,null,null,null,null,null,null,null,null,null,null,null,null,{"$f":"\"\"","v":""},{"$f":"\"\"","v":""}]
[172,null,null,{"$f":"\"\"","v":""},{"$f":"\"\"","v":""},{"$f":"\"\"","v":""},null,null,null,null,null,null,null,null,null,null,null,null,null,null,null,null,{"$f":"\"\"","v":""},{"$f":"\"\"","v":""}]
[173,null,null,{"$f":"\"\"","v":""},{"$f":"\"\"","v":""},{"$f":"\"\"","v":""},null,null,null,null,null,null,null,null,null,null,null,null,null,null,null,null,{"$f":"\"\"","v":""},{"$f":"\"\"","v":""}]
[174,null,null,{"$f":"\"\"","v":""},{"$f":"\"\"","v":""},{"$f":"\"\"","v":""},null,null,null,null,null,null,null,null,null,null,null,null,null,null,null,null,{"$f":"\"\"","v":""},{"$f":"\"\"","v":""}]
[175,null,null,{"$f":"\"\"","v":""},{"$f":"\"\"","v":""},{"$f":"\"\"","v":""},null,null,null,null,null,null,null,null,null,null,null,null,null,null,null,null,{"$f":"\"\"","v":""},{"$f":"\"\"","v":""}]
[176,null,null,{"$f":"\"\"","v":""},{"$f":"\"\"","v":""},{"$f":"\"\"","v":""},null,null,null,null,null,null,null,null,null,null,null,null,null,null,null,null,{"$f":"\"\"","v":""},{"$f":"\"\"","v":""}]
[177,null,null,{"$f":"\"\"","v":""},{"$f":"\"\"","v":""},{"$f":"\"\"","v":""},null,null,null,null,null,null,null,null,null,null,null,null,null,null,null,null,{"$f":"\"\"","v":""},{"$f":"\"\"","v":""}]
[178,null,null,{"$f":"\"\"","v":""},{"$f":"\"\"","v":""},{"$f":"\"\"","v":""},null,null,null,null,null,null,null,null,null,null,null,null,null,null,null,null,{"$f":"\"\"","v":""},{"$f":"\"\"","v":""}]
[179,null,null,{"$f":"\"\"","v":""},{"$f":"\"\"","v":""},{"$f":"\"\"","v":""},null,null,null,null,null,null,null,null,null,null,null,null,null,null,null,null,{"$f":"\"\"","v":""},{"$f":"\"\"","v":""}]
[180,null,null,{"$f":"\"\"","v":""},{"$f":"\"\"","v":""},{"$f":"\"\"","v":""},null,null,null,null,null,null,null,null,null,null,null,null,null,null,null,null,{"$f":"\"\"","v":""},{"$f":"\"\"","v":""}]
[181,null,null,{"$f":"\"\"","v":""},{"$f":"\"\"","v":""},{"$f":"\"\"","v":""},null,null,null,null,null,null,null,null,null,null,null,null,null,null,null,null,{"$f":"\"\"","v":""},{"$f":"\"\"","v":""}]
[182,null,null,{"$f":"\"\"","v":""},{"$f":"\"\"","v":""},{"$f":"\"\"","v":""},null,null,null,null,null,null,null,null,null,null,null,null,null,null,null,null,{"$f":"\"\"","v":""},{"$f":"\"\"","v":""}]
[183,null,null,{"$f":"\"\"","v":""},{"$f":"\"\"","v":""},{"$f":"\"\"","v":""},null,null,null,null,null,null,null,null,null,null,null,null,null,null,null,null,{"$f":"\"\"","v":""},{"$f":"\"\"","v":""}]
[184,null,null,{"$f":"\"\"","v":""},{"$f":"\"\"","v":""},{"$f":"\"\"","v":""},null,null,null,null,null,null,null,null,null,null,null,null,null,null,null,null,{"$f":"\"\"","v":""},{"$f":"\"\"","v":""}]
[185,null,null,{"$f":"\"\"","v":""},{"$f":"\"\"","v":""},{"$f":"\"\"","v":""},null,null,null,null,null,null,null,null,null,null,null,null,null,null,null,null,{"$f":"\"\"","v":""},{"$f":"\"\"","v":""}]
[186,null,null,{"$f":"\"\"","v":""},{"$f":"\"\"","v":""},{"$f":"\"\"","v":""},null,null,null,null,null,null,null,null,null,null,null,null,null,null,null,null,{"$f":"\"\"","v":""},{"$f":"\"\"","v":""}]
[187,null,null,{"$f":"\"\"","v":""},{"$f":"\"\"","v":""},{"$f":"\"\"","v":""},null,null,null,null,null,null,null,null,null,null,null,null,null,null,null,null,{"$f":"\"\"","v":""},{"$f":"\"\"","v":""}]
[188,null,null,{"$f":"\"\"","v":""},{"$f":"\"\"","v":""},{"$f":"\"\"","v":""},null,null,null,null,null,null,null,null,null,null,null,null,null,null,null,null,{"$f":"\"\"","v":""},{"$f":"\"\"","v":""}]
[189,null,null,{"$f":"\"\"","v":""},{"$f":"\"\"","v":""},{"$f":"\"\"","v":""},null,null,null,null,null,null,null,null,null,null,null,null,null,null,null,null,{"$f":"\"\"","v":""},{"$f":"\"\"","v":""}]
[190,null,null,{"$f":"\"\"","v":""},{"$f":"\"\"","v":""},{"$f":"\"\"","v":""},null,null,null,null,null,null,null,null,null,null,null,null,null,null,null,null,{"$f":"\"\"","v":""},{"$f":"\"\"","v":""}]
[191,null,null,{"$f":"\"\"","v":""},{"$f":"\"\"","v":""},{"$f":"\"\"","v":""},null,null,null,null,null,null,null,null,null,null,null,null,null,null,null,null,{"$f":"\"\"","v":""},{"$f":"\"\"","v":""}]
[192,null,null,{"$f":"\"\"","v":""},{"$f":"\"\"","v":""},{"$f":"\"\"","v":""},null,null,null,null,null,null,null,null,null,null,null,null,null,null,null,null,{"$f":"\"\"","v":""},{"$f":"\"\"","v":""}]
[193,null,null,{"$f":"\"\"","v":""},{"$f":"\"\"","v":""},{"$f":"\"\"","v":""},null,null,null,null,null,null,null,null,null,null,null,null,null,null,null,null,{"$f":"\"\"","v":""},{"$f":"\"\"","v":""}]
[194,null,null,{"$f":"\"\"","v":""},{"$f":"\"\"","v":""},{"$f":"\"\"","v":""},null,null,null,null,null,null,null,null,null,null,null,null,null,null,null,null,{"$f":"\"\"","v":""},{"$f":"\"\"","v":""}]
[195,null,null,{"$f":"\"\"","v":""},{"$f":"\"\"","v":""},{"$f":"\"\"","v":""},null,null,null,null,null,null,null,null,null,null,null,null,null,null,null,null,{"$f":"\"\"","v":""},{"$f":"\"\"","v":""}]
[196,null,null,{"$f":"\"\"","v":""},{"$f":"\"\"","v":""},{"$f":"\"\"","v":""},null,null,null,null,null,null,null,null,null,null,null,null,null,null,null,null,{"$f":"\"\"","v":""},{"$f":"\"\"","v":""}]
[197,null,null,{"$f":"\"\"","v":""},{"$f":"\"\"","v":""},{"$f":"\"\"","v":""},null,null,null,null,null,null,null,null,null,null,null,null,null,null,null,null,{"$f":"\"\"","v":""},{"$f":"\"\"","v":""}]
[198,null,null,{"$f":"\"\"","v":""},{"$f":"\"\"","v":""},{"$f":"\"\"","v":""},null,null,null,null,null,null,null,null,null,null,null,null,null,null,null,null,{"$f":"\"\"","v":""},{"$f":"\"\"","v":""}]
[199,null,null,{"$f":"\"\"","v":""},{"$f":"\"\"","v":""},{"$f":"\"\"","v":""},null,null,null,null,null,null,null,null,null,null,null,null,null,null,null,null,{"$f":"\"\"","v":""},{"$f":"\"\"","v":""}]
[200,null,null,{"$f":"\"\"","v":""},{"$f":"\"\"","v":""},{"$f":"\"\"","v":""},null,null,null,null,null,null,null,null,null,null,null,null,null,null,null,null,{"$f":"\"\"","v":""},{"$f":"\"\"","v":""}]
[201,null,null,{"$f":"\"\"","v":""},{"$f":"\"\"","v":""},{"$f":"\"\"","v":""},null,null,null,null,null,null,null,null,null,null,null,null,null,null,null,null,{"$f":"\"\"","v":""},{"$f":"\"\"","v":""}]
[202,null,null,{"$f":"\"\"","v":""},{"$f":"\"\"","v":""},{"$f":"\"\"","v":""},null,null,null,null,null,null,null,null,null,null,null,null,null,null,null,null,{"$f":"\"\"","v":""},{"$f":"\"\"","v":""}]
[203,null,null,{"$f":"\"\"","v":""},{"$f":"\"\"","v":""},{"$f":"\"\"","v":""},null,null,null,null,null,null,null,null,null,null,null,null,null,null,null,null,{"$f":"\"\"","v":""},{"$f":"\"\"","v":""}]
[204,null,null,{"$f":"\"\"","v":""},{"$f":"\"\"","v":""},{"$f":"\"\"","v":""},null,null,null,null,null,null,null,null,null,null,null,null,null,null,null,null,{"$f":"\"\"","v":""},{"$f":"\"\"","v":""}]
[205,null,null,{"$f":"\"\"","v":""},{"$f":"\"\"","v":""},{"$f":"\"\"","v":""},null,null,null,null,null,null,null,null,null,null,null,null,null,null,null,null,{"$f":"\"\"","v":""},{"$f":"\"\"","v":""}]
[206,null,null,{"$f":"\"\"","v":""},{"$f":"\"\"","v":""},{"$f":"\"\"","v":""},null,null,null,null,null,null,null,null,null,null,null,null,null,null,null,null,{"$f":"\"\"","v":""},{"$f":"\"\"","v":""}]
[207,null,null,{"$f":"\"\"","v":""},{"$f":"\"\"","v":""},{"$f":"\"\"","v":""},null,null,null,null,null,null,null,null,null,null,null,null,null,null,null,null,{"$f":"\"\"","v":""},{"$f":"\"\"","v":""}]
[208,null,null,{"$f":"\"\"","v":""},{"$f":"\"\"","v":""},{"$f":"\"\"","v":""},null,null,null,null,null,null,null,null,null,null,null,null,null,null,null,null,{"$f":"\"\"","v":""},{"$f":"\"\"","v":""}]
[209,null,null,{"$f":"\"\"","v":""},{"$f":"\"\"","v":""},{"$f":"\"\"","v":""},null,null,null,null,null,null,null,null,null,null,null,null,null,null,null,null,{"$f":"\"\"","v":""},{"$f":"\"\"","v":""}]
[210,null,null,{"$f":"\"\"","v":""},{"$f":"\"\"","v":""},{"$f":"\"\"","v":""},null,null,null,null,null,null,null,null,null,null,null,null,null,null,null,null,{"$f":"\"\"","v":""},{"$f":"\"\"","v":""}]
[211,null,null,{"$f":"\"\"","v":""},{"$f":"\"\"","v":""},{"$f":"\"\"","v":""},null,null,null,null,null,null,null,null,null,null,null,null,null,null,null,null,{"$f":"\"\"","v":""},{"$f":"\"\"","v":""}]
[212,null,null,{"$f":"\"\"","v":""},{"$f":"\"\"","v":""},{"$f":"\"\"","v":""},null,null,null,null,null,null,null,null,null,null,null,null,null,null,null,null,{"$f":"\"\"","v":""},{"$f":"\"\"","v":""}]
[213,null,null,{"$f":"\"\"","v":""},{"$f":"\"\"","v":""},{"$f":"\"\"","v":""},null,null,null,null,null,null,null,null,null,null,null,null,null,null,null,null,{"$f":"\"\"","v":""},{"$f":"\"\"","v":""}]
[214,null,null,{"$f":"\"\"","v":""},{"$f":"\"\"","v":""},{"$f":"\"\"","v":""},null,null,null,null,null,null,null,null,null,null,null,null,null,null,null,null,{"$f":"\"\"","v":""},{"$f":"\"\"","v":""}]
[215,null,null,{"$f":"\"\"","v":""},{"$f":"\"\"","v":""},{"$f":"\"\"","v":""},null,null,null,null,null,null,null,null,null,null,null,null,null,null,null,null,{"$f":"\"\"","v":""},{"$f":"\"\"","v":""}]
[216,null,null,{"$f":"\"\"","v":""},{"$f":"\"\"","v":""},{"$f":"\"\"","v":""},null,null,null,null,null,null,null,null,null,null,null,null,null,null,null,null,{"$f":"\"\"","v":""},{"$f":"\"\"","v":""}]
[217,null,null,{"$f":"\"\"","v":""},{"$f":"\"\"","v":""},{"$f":"\"\"","v":""},null,null,null,null,null,null,null,null,null,null,null,null,null,null,null,null,{"$f":"\"\"","v":""},{"$f":"\"\"","v":""}]
[218,null,null,{"$f":"\"\"","v":""},{"$f":"\"\"","v":""},{"$f":"\"\"","v":""},null,null,null,null,null,null,null,null,null,null,null,null,null,null,null,null,{"$f":"\"\"","v":""},{"$f":"\"\"","v":""}]
[219,null,null,{"$f":"\"\"","v":""},{"$f":"\"\"","v":""},{"$f":"\"\"","v":""},null,null,null,null,null,null,null,null,null,null,null,null,null,null,null,null,{"$f":"\"\"","v":""},{"$f":"\"\"","v":""}]
[220,null,null,{"$f":"\"\"","v":""},{"$f":"\"\"","v":""},{"$f":"\"\"","v":""},null,null,null,null,null,null,null,null,null,null,null,null,null,null,null,null,{"$f":"\"\"","v":""},{"$f":"\"\"","v":""}]
[221,null,null,{"$f":"\"\"","v":""},{"$f":"\"\"","v":""},{"$f":"\"\"","v":""},null,null,null,null,null,null,null,null,null,null,null,null,null,null,null,null,{"$f":"\"\"","v":""},{"$f":"\"\"","v":""}]
[222,null,null,{"$f":"\"\"","v":""},{"$f":"\"\"","v":""},{"$f":"\"\"","v":""},null,null,null,null,null,null,null,null,null,null,null,null,null,null,null,null,{"$f":"\"\"","v":""},{"$f":"\"\"","v":""}]
[223,null,null,{"$f":"\"\"","v":""},{"$f":"\"\"","v":""},{"$f":"\"\"","v":""},null,null,null,null,null,null,null,null,null,null,null,null,null,null,null,null,{"$f":"\"\"","v":""},{"$f":"\"\"","v":""}]
[224,null,null,{"$f":"\"\"","v":""},{"$f":"\"\"","v":""},{"$f":"\"\"","v":""},null,null,null,null,null,null,null,null,null,null,null,null,null,null,null,null,{"$f":"\"\"","v":""},{"$f":"\"\"","v":""}]
[225,null,null,{"$f":"\"\"","v":""},{"$f":"\"\"","v":""},{"$f":"\"\"","v":""},null,null,null,null,null,null,null,null,null,null,null,null,null,null,null,null,{"$f":"\"\"","v":""},{"$f":"\"\"","v":""}]
[226,null,null,{"$f":"\"\"","v":""},{"$f":"\"\"","v":""},{"$f":"\"\"","v":""},null,null,null,null,null,null,null,null,null,null,null,null,null,null,null,null,{"$f":"\"\"","v":""},{"$f":"\"\"","v":""}]
[227,null,null,{"$f":"\"\"","v":""},{"$f":"\"\"","v":""},{"$f":"\"\"","v":""},null,null,null,null,null,null,null,null,null,null,null,null,null,null,null,null,{"$f":"\"\"","v":""},{"$f":"\"\"","v":""}]
[228,null,null,{"$f":"\"\"","v":""},{"$f":"\"\"","v":""},{"$f":"\"\"","v":""},null,null,null,null,null,null,null,null,null,null,null,null,null,null,null,null,{"$f":"\"\"","v":""},{"$f":"\"\"","v":""}]
[229,null,null,{"$f":"\"\"","v":""},{"$f":"\"\"","v":""},{"$f":"\"\"","v":""},null,null,null,null,null,null,null,null,null,null,null,null,null,null,null,null,{"$f":"\"\"","v":""},{"$f":"\"\"","v":""}]
[230,null,null,{"$f":"\"\"","v":""},{"$f":"\"\"","v":""},{"$f":"\"\"","v":""},null,null,null,null,null,null,null,null,null,null,null,null,null,null,null,null,{"$f":"\"\"","v":""},{"$f":"\"\"","v":""}]
[231,null,null,{"$f":"\"\"","v":""},{"$f":"\"\"","v":""},{"$f":"\"\"","v":""},null,null,null,null,null,null,null,null,null,null,null,null,null,null,null,null,{"$f":"\"\"","v":""},{"$f":"\"\"","v":""}]
[232,null,null,{"$f":"\"\"","v":""},{"$f":"\"\"","v":""},{"$f":"\"\"","v":""},null,null,null,null,null,null,null,null,null,null,null,null,null,null,null,null,{"$f":"\"\"","v":""},{"$f":"\"\"","v":""}]
[233,null,null,{"$f":"\"\"","v":""},{"$f":"\"\"","v":""},{"$f":"\"\"","v":""},null,null,null,null,null,null,null,null,null,null,null,null,null,null,null,null,{"$f":"\"\"","v":""},{"$f":"\"\"","v":""}]
[234,null,null,{"$f":"\"\"","v":""},{"$f":"\"\"","v":""},{"$f":"\"\"","v":""},null,null,null,null,null,null,null,null,null,null,null,null,null,null,null,null,{"$f":"\"\"","v":""},{"$f":"\"\"","v":""}]
[235,null,null,{"$f":"\"\"","v":""},{"$f":"\"\"","v":""},{"$f":"\"\"","v":""},null,null,null,null,null,null,null,null,null,null,null,null,null,null,null,null,{"$f":"\"\"","v":""},{"$f":"\"\"","v":""}]
[236,null,null,{"$f":"\"\"","v":""},{"$f":"\"\"","v":""},{"$f":"\"\"","v":""},null,null,null,null,null,null,null,null,null,null,null,null,null,null,null,null,{"$f":"\"\"","v":""},{"$f":"\"\"","v":""}]
[237,null,null,{"$f":"\"\"","v":""},{"$f":"\"\"","v":""},{"$f":"\"\"","v":""},null,null,null,null,null,null,null,null,null,null,null,null,null,null,null,null,{"$f":"\"\"","v":""},{"$f":"\"\"","v":""}]
[238,null,null,{"$f":"\"\"","v":""},{"$f":"\"\"","v":""},{"$f":"\"\"","v":""},null,null,null,null,null,null,null,null,null,null,null,null,null,null,null,null,{"$f":"\"\"","v":""},{"$f":"\"\"","v":""}]
[239,null,null,{"$f":"\"\"","v":""},{"$f":"\"\"","v":""},{"$f":"\"\"","v":""},null,null,null,null,null,null,null,null,null,null,null,null,null,null,null,null,{"$f":"\"\"","v":""},{"$f":"\"\"","v":""}]
[240,null,null,{"$f":"\"\"","v":""},{"$f":"\"\"","v":""},{"$f":"\"\"","v":""},null,null,null,null,null,null,null,null,null,null,null,null,null,null,null,null,{"$f":"\"\"","v":""},{"$f":"\"\"","v":""}]
[241,null,null,{"$f":"\"\"","v":""},{"$f":"\"\"","v":""},{"$f":"\"\"","v":""},null,null,null,null,null,null,null,null,null,null,null,null,null,null,null,null,{"$f":"\"\"","v":""},{"$f":"\"\"","v":""}]
[242,null,null,{"$f":"\"\"","v":""},{"$f":"\"\"","v":""},{"$f":"\"\"","v":""},null,null,null,null,null,null,null,null,null,null,null,null,null,null,null,null,{"$f":"\"\"","v":""},{"$f":"\"\"","v":""}]
[243,null,null,{"$f":"\"\"","v":""},{"$f":"\"\"","v":""},{"$f":"\"\"","v":""},null,null,null,null,null,null,null,null,null,null,null,null,null,null,null,null,{"$f":"\"\"","v":""},{"$f":"\"\"","v":""}]
[244,null,null,{"$f":"\"\"","v":""},{"$f":"\"\"","v":""},{"$f":"\"\"","v":""},null,null,null,null,null,null,null,null,null,null,null,null,null,null,null,null,{"$f":"\"\"","v":""},{"$f":"\"\"","v":""}]
[245,null,null,{"$f":"\"\"","v":""},{"$f":"\"\"","v":""},{"$f":"\"\"","v":""},null,null,null,null,null,null,null,null,null,null,null,null,null,null,null,null,{"$f":"\"\"","v":""},{"$f":"\"\"","v":""}]
[246,null,null,{"$f":"\"\"","v":""},{"$f":"\"\"","v":""},{"$f":"\"\"","v":""},null,null,null,null,null,null,null,null,null,null,null,null,null,null,null,null,{"$f":"\"\"","v":""},{"$f":"\"\"","v":""}]
[247,null,null,{"$f":"\"\"","v":""},{"$f":"\"\"","v":""},{"$f":"\"\"","v":""},null,null,null,null,null,null,null,null,null,null,null,null,null,null,null,null,{"$f":"\"\"","v":""},{"$f":"\"\"","v":""}]
[248,null,null,{"$f":"\"\"","v":""},{"$f":"\"\"","v":""},{"$f":"\"\"","v":""},null,null,null,null,null,null,null,null,null,null,null,null,null,null,null,null,{"$f":"\"\"","v":""},{"$f":"\"\"","v":""}]
[249,null,null,{"$f":"\"\"","v":""},{"$f":"\"\"","v":""},{"$f":"\"\"","v":""},null,null,null,null,null,null,null,null,null,null,null,null,null,null,null,null,{"$f":"\"\"","v":""},{"$f":"\"\"","v":""}]
[250,null,null,{"$f":"\"\"","v":""},{"$f":"\"\"","v":""},{"$f":"\"\"","v":""},null,null,null,null,null,null,null,null,null,null,null,null,null,null,null,null,{"$f":"\"\"","v":""},{"$f":"\"\"","v":""}]
[251,null,null,{"$f":"\"\"","v":""},{"$f":"\"\"","v":""},{"$f":"\"\"","v":""},null,null,null,null,null,null,null,null,null,null,null,null,null,null,null,null,{"$f":"\"\"","v":""},{"$f":"\"\"","v":""}]
[252,null,null,{"$f":"\"\"","v":""},{"$f":"\"\"","v":""},{"$f":"\"\"","v":""},null,null,null,null,null,null,null,null,null,null,null,null,null,null,null,null,{"$f":"\"\"","v":""},{"$f":"\"\"","v":""}]
[253,null,null,{"$f":"\"\"","v":""},{"$f":"\"\"","v":""},{"$f":"\"\"","v":""},null,null,null,null,null,null,null,null,null,null,null,null,null,null,null,null,{"$f":"\"\"","v":""},{"$f":"\"\"","v":""}]
[254,null,null,{"$f":"\"\"","v":""},{"$f":"\"\"","v":""},{"$f":"\"\"","v":""},null,null,null,null,null,null,null,null,null,null,null,null,null,null,null,null,{"$f":"\"\"","v":""},{"$f":"\"\"","v":""}]
[255,null,null,{"$f":"\"\"","v":""},{"$f":"\"\"","v":""},{"$f":"\"\"","v":""},null,null,null,null,null,null,null,null,null,null,null,null,null,null,null,null,{"$f":"\"\"","v":""},{"$f":"\"\"","v":""}]
[256,null,null,{"$f":"\"\"","v":""},{"$f":"\"\"","v":""},{"$f":"\"\"","v":""},null,null,null,null,null,null,null,null,null,null,null,null,null,null,null,null,{"$f":"\"\"","v":""},{"$f":"\"\"","v":""}]
[257,null,null,{"$f":"\"\"","v":""},{"$f":"\"\"","v":""},{"$f":"\"\"","v":""},null,null,null,null,null,null,null,null,null,null,null,null,null,null,null,null,{"$f":"\"\"","v":""},{"$f":"\"\"","v":""}]
[258,null,null,{"$f":"\"\"","v":""},{"$f":"\"\"","v":""},{"$f":"\"\"","v":""},null,null,null,null,null,null,null,null,null,null,null,null,null,null,null,null,{"$f":"\"\"","v":""},{"$f":"\"\"","v":""}]
[259,null,null,{"$f":"\"\"","v":""},{"$f":"\"\"","v":""},{"$f":"\"\"","v":""},null,null,null,null,null,null,null,null,null,null,null,null,null,null,null,null,{"$f":"\"\"","v":""},{"$f":"\"\"","v":""}]
[260,null,null,{"$f":"\"\"","v":""},{"$f":"\"\"","v":""},{"$f":"\"\"","v":""},null,null,null,null,null,null,null,null,null,null,null,null,null,null,null,null,{"$f":"\"\"","v":""},{"$f":"\"\"","v":""}]
[261,null,null,{"$f":"\"\"","v":""},{"$f":"\"\"","v":""},{"$f":"\"\"","v":""},null,null,null,null,null,null,null,null,null,null,null,null,null,null,null,null,{"$f":"\"\"","v":""},{"$f":"\"\"","v":""}]
[262,null,null,{"$f":"\"\"","v":""},{"$f":"\"\"","v":""},{"$f":"\"\"","v":""},null,null,null,null,null,null,null,null,null,null,null,null,null,null,null,null,{"$f":"\"\"","v":""},{"$f":"\"\"","v":""}]
[263,null,null,{"$f":"\"\"","v":""},{"$f":"\"\"","v":""},{"$f":"\"\"","v":""},null,null,null,null,null,null,null,null,null,null,null,null,null,null,null,null,{"$f":"\"\"","v":""},{"$f":"\"\"","v":""}]
[264,null,null,{"$f":"\"\"","v":""},{"$f":"\"\"","v":""},{"$f":"\"\"","v":""},null,null,null,null,null,null,null,null,null,null,null,null,null,null,null,null,{"$f":"\"\"","v":""},{"$f":"\"\"","v":""}]
[265,null,null,{"$f":"\"\"","v":""},{"$f":"\"\"","v":""},{"$f":"\"\"","v":""},null,null,null,null,null,null,null,null,null,null,null,null,null,null,null,null,{"$f":"\"\"","v":""},{"$f":"\"\"","v":""}]
[266,null,null,{"$f":"\"\"","v":""},{"$f":"\"\"","v":""},{"$f":"\"\"","v":""},null,null,null,null,null,null,null,null,null,null,null,null,null,null,null,null,{"$f":"\"\"","v":""},{"$f":"\"\"","v":""}]
[267,null,null,{"$f":"\"\"","v":""},{"$f":"\"\"","v":""},{"$f":"\"\"","v":""},null,null,null,null,null,null,null,null,null,null,null,null,null,null,null,null,{"$f":"\"\"","v":""},{"$f":"\"\"","v":""}]
[268,null,null,{"$f":"\"\"","v":""},{"$f":"\"\"","v":""},{"$f":"\"\"","v":""},null,null,null,null,null,null,null,null,null,null,null,null,null,null,null,null,{"$f":"\"\"","v":""},{"$f":"\"\"","v":""}]
[269,null,null,{"$f":"\"\"","v":""},{"$f":"\"\"","v":""},{"$f":"\"\"","v":""},null,null,null,null,null,null,null,null,null,null,null,null,null,null,null,null,{"$f":"\"\"","v":""},{"$f":"\"\"","v":""}]
[270,null,null,{"$f":"\"\"","v":""},{"$f":"\"\"","v":""},{"$f":"\"\"","v":""},null,null,null,null,null,null,null,null,null,null,null,null,null,null,null,null,{"$f":"\"\"","v":""},{"$f":"\"\"","v":""}]
[271,null,null,{"$f":"\"\"","v":""},{"$f":"\"\"","v":""},{"$f":"\"\"","v":""},null,null,null,null,null,null,null,null,null,null,null,null,null,null,null,null,{"$f":"\"\"","v":""},{"$f":"\"\"","v":""}]
[272,null,null,{"$f":"\"\"","v":""},{"$f":"\"\"","v":""},{"$f":"\"\"","v":""},null,null,null,null,null,null,null,null,null,null,null,null,null,null,null,null,{"$f":"\"\"","v":""},{"$f":"\"\"","v":""}]
[273,null,null,{"$f":"\"\"","v":""},{"$f":"\"\"","v":""},{"$f":"\"\"","v":""},null,null,null,null,null,null,null,null,null,null,null,null,null,null,null,null,{"$f":"\"\"","v":""},{"$f":"\"\"","v":""}]
[274,null,null,{"$f":"\"\"","v":""},{"$f":"\"\"","v":""},{"$f":"\"\"","v":""},null,null,null,null,null,null,null,null,null,null,null,null,null,null,null,null,{"$f":"\"\"","v":""},{"$f":"\"\"","v":""}]
[275,null,null,{"$f":"\"\"","v":""},{"$f":"\"\"","v":""},{"$f":"\"\"","v":""},null,null,null,null,null,null,null,null,null,null,null,null,null,null,null,null,{"$f":"\"\"","v":""},{"$f":"\"\"","v":""}]
[276,null,null,{"$f":"\"\"","v":""},{"$f":"\"\"","v":""},{"$f":"\"\"","v":""},null,null,null,null,null,null,null,null,null,null,null,null,null,null,null,null,{"$f":"\"\"","v":""},{"$f":"\"\"","v":""}]
[277,null,null,{"$f":"\"\"","v":""},{"$f":"\"\"","v":""},{"$f":"\"\"","v":""},null,null,null,null,null,null,null,null,null,null,null,null,null,null,null,null,{"$f":"\"\"","v":""},{"$f":"\"\"","v":""}]
[278,null,null,{"$f":"\"\"","v":""},{"$f":"\"\"","v":""},{"$f":"\"\"","v":""},null,null,null,null,null,null,null,null,null,null,null,null,null,null,null,null,{"$f":"\"\"","v":""},{"$f":"\"\"","v":""}]
[279,null,null,{"$f":"\"\"","v":""},{"$f":"\"\"","v":""},{"$f":"\"\"","v":""},null,null,null,null,null,null,null,null,null,null,null,null,null,null,null,null,{"$f":"\"\"","v":""},{"$f":"\"\"","v":""}]
[280,null,null,{"$f":"\"\"","v":""},{"$f":"\"\"","v":""},{"$f":"\"\"","v":""},null,null,null,null,null,null,null,null,null,null,null,null,null,null,null,null,{"$f":"\"\"","v":""},{"$f":"\"\"","v":""}]
[281,null,null,{"$f":"\"\"","v":""},{"$f":"\"\"","v":""},{"$f":"\"\"","v":""},null,null,null,null,null,null,null,null,null,null,null,null,null,null,null,null,{"$f":"\"\"","v":""},{"$f":"\"\"","v":""}]
[282,null,null,{"$f":"\"\"","v":""},{"$f":"\"\"","v":""},{"$f":"\"\"","v":""},null,null,null,null,null,null,null,null,null,null,null,null,null,null,null,null,{"$f":"\"\"","v":""},{"$f":"\"\"","v":""}]
[283,null,null,{"$f":"\"\"","v":""},{"$f":"\"\"","v":""},{"$f":"\"\"","v":""},null,null,null,null,null,null,null,null,null,null,null,null,null,null,null,null,{"$f":"\"\"","v":""},{"$f":"\"\"","v":""}]
[284,null,null,{"$f":"\"\"","v":""},{"$f":"\"\"","v":""},{"$f":"\"\"","v":""},null,null,null,null,null,null,null,null,null,null,null,null,null,null,null,null,{"$f":"\"\"","v":""},{"$f":"\"\"","v":""}]
[285,null,null,{"$f":"\"\"","v":""},{"$f":"\"\"","v":""},{"$f":"\"\"","v":""},null,null,null,null,null,null,null,null,null,null,null,null,null,null,null,null,{"$f":"\"\"","v":""},{"$f":"\"\"","v":""}]
[286,null,null,{"$f":"\"\"","v":""},{"$f":"\"\"","v":""},{"$f":"\"\"","v":""},null,null,null,null,null,null,null,null,null,null,null,null,null,null,null,null,{"$f":"\"\"","v":""},{"$f":"\"\"","v":""}]
[287,null,null,{"$f":"\"\"","v":""},{"$f":"\"\"","v":""},{"$f":"\"\"","v":""},null,null,null,null,null,null,null,null,null,null,null,null,null,null,null,null,{"$f":"\"\"","v":""},{"$f":"\"\"","v":""}]
[288,null,null,{"$f":"\"\"","v":""},{"$f":"\"\"","v":""},{"$f":"\"\"","v":""},null,null,null,null,null,null,null,null,null,null,null,null,null,null,null,null,{"$f":"\"\"","v":""},{"$f":"\"\"","v":""}]
[289,null,null,{"$f":"\"\"","v":""},{"$f":"\"\"","v":""},{"$f":"\"\"","v":""},null,null,null,null,null,null,null,null,null,null,null,null,null,null,null,null,{"$f":"\"\"","v":""},{"$f":"\"\"","v":""}]
[290,null,null,{"$f":"\"\"","v":""},{"$f":"\"\"","v":""},{"$f":"\"\"","v":""},null,null,null,null,null,null,null,null,null,null,null,null,null,null,null,null,{"$f":"\"\"","v":""},{"$f":"\"\"","v":""}]
[291,null,null,{"$f":"\"\"","v":""},{"$f":"\"\"","v":""},{"$f":"\"\"","v":""},null,null,null,null,null,null,null,null,null,null,null,null,null,null,null,null,{"$f":"\"\"","v":""},{"$f":"\"\"","v":""}]
[292,null,null,{"$f":"\"\"","v":""},{"$f":"\"\"","v":""},{"$f":"\"\"","v":""},null,null,null,null,null,null,null,null,null,null,null,null,null,null,null,null,{"$f":"\"\"","v":""},{"$f":"\"\"","v":""}]
[293,null,null,{"$f":"\"\"","v":""},{"$f":"\"\"","v":""},{"$f":"\"\"","v":""},null,null,null,null,null,null,null,null,null,null,null,null,null,null,null,null,{"$f":"\"\"","v":""},{"$f":"\"\"","v":""}]
[294,null,null,{"$f":"\"\"","v":""},{"$f":"\"\"","v":""},{"$f":"\"\"","v":""},null,null,null,null,null,null,null,null,null,null,null,null,null,null,null,null,{"$f":"\"\"","v":""},{"$f":"\"\"","v":""}]
[295,null,null,{"$f":"\"\"","v":""},{"$f":"\"\"","v":""},{"$f":"\"\"","v":""},null,null,null,null,null,null,null,null,null,null,null,null,null,null,null,null,{"$f":"\"\"","v":""},{"$f":"\"\"","v":""}]
[296,null,null,{"$f":"\"\"","v":""},{"$f":"\"\"","v":""},{"$f":"\"\"","v":""},null,null,null,null,null,null,null,null,null,null,null,null,null,null,null,null,{"$f":"\"\"","v":""},{"$f":"\"\"","v":""}]
[297,null,null,{"$f":"\"\"","v":""},{"$f":"\"\"","v":""},{"$f":"\"\"","v":""},null,null,null,null,null,null,null,null,null,null,null,null,null,null,null,null,{"$f":"\"\"","v":""},{"$f":"\"\"","v":""}]
[298,null,null,{"$f":"\"\"","v":""},{"$f":"\"\"","v":""},{"$f":"\"\"","v":""},null,null,null,null,null,null,null,null,null,null,null,null,null,null,null,null,{"$f":"\"\"","v":""},{"$f":"\"\"","v":""}]
[299,null,null,{"$f":"\"\"","v":""},{"$f":"\"\"","v":""},{"$f":"\"\"","v":""},null,null,null,null,null,null,null,null,null,null,null,null,null,null,null,null,{"$f":"\"\"","v":""},{"$f":"\"\"","v":""}]
[300,null,null,{"$f":"\"\"","v":""},{"$f":"\"\"","v":""},{"$f":"\"\"","v":""},null,null,null,null,null,null,null,null,null,null,null,null,null,null,null,null,{"$f":"\"\"","v":""},{"$f":"\"\"","v":""}]
[301,null,null,{"$f":"\"\"","v":""},{"$f":"\"\"","v":""},{"$f":"\"\"","v":""},null,null,null,null,null,null,null,null,null,null,null,null,null,null,null,null,{"$f":"\"\"","v":""},{"$f":"\"\"","v":""}]
[302,null,null,{"$f":"\"\"","v":""},{"$f":"\"\"","v":""},{"$f":"\"\"","v":""},null,null,null,null,null,null,null,null,null,null,null,null,null,null,null,null,{"$f":"\"\"","v":""},{"$f":"\"\"","v":""}]
[303,null,null,{"$f":"\"\"","v":""},{"$f":"\"\"","v":""},{"$f":"\"\"","v":""},null,null,null,null,null,null,null,null,null,null,null,null,null,null,null,null,{"$f":"\"\"","v":""},{"$f":"\"\"","v":""}]
[304,null,null,{"$f":"\"\"","v":""},{"$f":"\"\"","v":""},{"$f":"\"\"","v":""},null,null,null,null,null,null,null,null,null,null,null,null,null,null,null,null,{"$f":"\"\"","v":""},{"$f":"\"\"","v":""}]
[305,null,null,{"$f":"\"\"","v":""},{"$f":"\"\"","v":""},{"$f":"\"\"","v":""},null,null,null,null,null,null,null,null,null,null,null,null,null,null,null,null,{"$f":"\"\"","v":""},{"$f":"\"\"","v":""}]
[306,null,null,{"$f":"\"\"","v":""},{"$f":"\"\"","v":""},{"$f":"\"\"","v":""},null,null,null,null,null,null,null,null,null,null,null,null,null,null,null,null,{"$f":"\"\"","v":""},{"$f":"\"\"","v":""}]
[307,null,null,{"$f":"\"\"","v":""},{"$f":"\"\"","v":""},{"$f":"\"\"","v":""},null,null,null,null,null,null,null,null,null,null,null,null,null,null,null,null,{"$f":"\"\"","v":""},{"$f":"\"\"","v":""}]
[308,null,null,{"$f":"\"\"","v":""},{"$f":"\"\"","v":""},{"$f":"\"\"","v":""},null,null,null,null,null,null,null,null,null,null,null,null,null,null,null,null,{"$f":"\"\"","v":""},{"$f":"\"\"","v":""}]
[309,null,null,{"$f":"\"\"","v":""},{"$f":"\"\"","v":""},{"$f":"\"\"","v":""},null,null,null,null,null,null,null,null,null,null,null,null,null,null,null,null,{"$f":"\"\"","v":""},{"$f":"\"\"","v":""}]
[310,null,null,{"$f":"\"\"","v":""},{"$f":"\"\"","v":""},{"$f":"\"\"","v":""},null,null,null,null,null,null,null,null,null,null,null,null,null,null,null,null,{"$f":"\"\"","v":""},{"$f":"\"\"","v":""}]
[311,null,null,{"$f":"\"\"","v":""},{"$f":"\"\"","v":""},{"$f":"\"\"","v":""},null,null,null,null,null,null,null,null,null,null,null,null,null,null,null,null,{"$f":"\"\"","v":""},{"$f":"\"\"","v":""}]
[312,null,null,{"$f":"\"\"","v":""},{"$f":"\"\"","v":""},{"$f":"\"\"","v":""},null,null,null,null,null,null,null,null,null,null,null,null,null,null,null,null,{"$f":"\"\"","v":""},{"$f":"\"\"","v":""}]
[313,null,null,{"$f":"\"\"","v":""},{"$f":"\"\"","v":""},{"$f":"\"\"","v":""},null,null,null,null,null,null,null,null,null,null,null,null,null,null,null,null,{"$f":"\"\"","v":""},{"$f":"\"\"","v":""}]
[314,null,null,{"$f":"\"\"","v":""},{"$f":"\"\"","v":""},{"$f":"\"\"","v":""},null,null,null,null,null,null,null,null,null,null,null,null,null,null,null,null,{"$f":"\"\"","v":""},{"$f":"\"\"","v":""}]
[315,null,null,{"$f":"\"\"","v":""},{"$f":"\"\"","v":""},{"$f":"\"\"","v":""},null,null,null,null,null,null,null,null,null,null,null,null,null,null,null,null,{"$f":"\"\"","v":""},{"$f":"\"\"","v":""}]
[316,null,null,{"$f":"\"\"","v":""},{"$f":"\"\"","v":""},{"$f":"\"\"","v":""},null,null,null,null,null,null,null,null,null,null,null,null,null,null,null,null,{"$f":"\"\"","v":""},{"$f":"\"\"","v":""}]
[317,null,null,{"$f":"\"\"","v":""},{"$f":"\"\"","v":""},{"$f":"\"\"","v":""},null,null,null,null,null,null,null,null,null,null,null,null,null,null,null,null,{"$f":"\"\"","v":""},{"$f":"\"\"","v":""}]
[318,null,null,{"$f":"\"\"","v":""},{"$f":"\"\"","v":""},{"$f":"\"\"","v":""},null,null,null,null,null,null,null,null,null,null,null,null,null,null,null,null,{"$f":"\"\"","v":""},{"$f":"\"\"","v":""}]
[319,null,null,{"$f":"\"\"","v":""},{"$f":"\"\"","v":""},{"$f":"\"\"","v":""},null,null,null,null,null,null,null,null,null,null,null,null,null,null,null,null,{"$f":"\"\"","v":""},{"$f":"\"\"","v":""}]
[320,null,null,{"$f":"\"\"","v":""},{"$f":"\"\"","v":""},{"$f":"\"\"","v":""},null,null,null,null,null,null,null,null,null,null,null,null,null,null,null,null,{"$f":"\"\"","v":""},{"$f":"\"\"","v":""}]
[321,null,null,{"$f":"\"\"","v":""},{"$f":"\"\"","v":""},{"$f":"\"\"","v":""},null,null,null,null,null,null,null,null,null,null,null,null,null,null,null,null,{"$f":"\"\"","v":""},{"$f":"\"\"","v":""}]
[322,null,null,{"$f":"\"\"","v":""},{"$f":"\"\"","v":""},{"$f":"\"\"","v":""},null,null,null,null,null,null,null,null,null,null,null,null,null,null,null,null,{"$f":"\"\"","v":""},{"$f":"\"\"","v":""}]
[323,null,null,{"$f":"\"\"","v":""},{"$f":"\"\"","v":""},{"$f":"\"\"","v":""},null,null,null,null,null,null,null,null,null,null,null,null,null,null,null,null,{"$f":"\"\"","v":""},{"$f":"\"\"","v":""}]
[324,null,null,{"$f":"\"\"","v":""},{"$f":"\"\"","v":""},{"$f":"\"\"","v":""},null,null,null,null,null,null,null,null,null,null,null,null,null,null,null,null,{"$f":"\"\"","v":""},{"$f":"\"\"","v":""}]
[325,null,null,{"$f":"\"\"","v":""},{"$f":"\"\"","v":""},{"$f":"\"\"","v":""},null,null,null,null,null,null,null,null,null,null,null,null,null,null,null,null,{"$f":"\"\"","v":""},{"$f":"\"\"","v":""}]
[326,null,null,{"$f":"\"\"","v":""},{"$f":"\"\"","v":""},{"$f":"\"\"","v":""},null,null,null,null,null,null,null,null,null,null,null,null,null,null,null,null,{"$f":"\"\"","v":""},{"$f":"\"\"","v":""}]
[327,null,null,{"$f":"\"\"","v":""},{"$f":"\"\"","v":""},{"$f":"\"\"","v":""},null,null,null,null,null,null,null,null,null,null,null,null,null,null,null,null,{"$f":"\"\"","v":""},{"$f":"\"\"","v":""}]
[328,null,null,{"$f":"\"\"","v":""},{"$f":"\"\"","v":""},{"$f":"\"\"","v":""},null,null,null,null,null,null,null,null,null,null,null,null,null,null,null,null,{"$f":"\"\"","v":""},{"$f":"\"\"","v":""}]
[329,null,null,{"$f":"\"\"","v":""},{"$f":"\"\"","v":""},{"$f":"\"\"","v":""},null,null,null,null,null,null,null,null,null,null,null,null,null,null,null,null,{"$f":"\"\"","v":""},{"$f":"\"\"","v":""}]
[330,null,null,{"$f":"\"\"","v":""},{"$f":"\"\"","v":""},{"$f":"\"\"","v":""},null,null,null,null,null,null,null,null,null,null,null,null,null,null,null,null,{"$f":"\"\"","v":""},{"$f":"\"\"","v":""}]
[331,null,null,{"$f":"\"\"","v":""},{"$f":"\"\"","v":""},{"$f":"\"\"","v":""},null,null,null,null,null,null,null,null,null,null,null,null,null,null,null,null,{"$f":"\"\"","v":""},{"$f":"\"\"","v":""}]
[332,null,null,{"$f":"\"\"","v":""},{"$f":"\"\"","v":""},{"$f":"\"\"","v":""},null,null,null,null,null,null,null,null,null,null,null,null,null,null,null,null,{"$f":"\"\"","v":""},{"$f":"\"\"","v":""}]
[333,null,null,{"$f":"\"\"","v":""},{"$f":"\"\"","v":""},{"$f":"\"\"","v":""},null,null,null,null,null,null,null,null,null,null,null,null,null,null,null,null,{"$f":"\"\"","v":""},{"$f":"\"\"","v":""}]
[334,null,null,{"$f":"\"\"","v":""},{"$f":"\"\"","v":""},{"$f":"\"\"","v":""},null,null,null,null,null,null,null,null,null,null,null,null,null,null,null,null,{"$f":"\"\"","v":""},{"$f":"\"\"","v":""}]
[335,null,null,{"$f":"\"\"","v":""},{"$f":"\"\"","v":""},{"$f":"\"\"","v":""},null,null,null,null,null,null,null,null,null,null,null,null,null,null,null,null,{"$f":"\"\"","v":""},{"$f":"\"\"","v":""}]
[336,null,null,{"$f":"\"\"","v":""},{"$f":"\"\"","v":""},{"$f":"\"\"","v":""},null,null,null,null,null,null,null,null,null,null,null,null,null,null,null,null,{"$f":"\"\"","v":""},{"$f":"\"\"","v":""}]
[337,null,null,{"$f":"\"\"","v":""},{"$f":"\"\"","v":""},{"$f":"\"\"","v":""},null,null,null,null,null,null,null,null,null,null,null,null,null,null,null,null,{"$f":"\"\"","v":""},{"$f":"\"\"","v":""}]
[338,null,null,{"$f":"\"\"","v":""},{"$f":"\"\"","v":""},{"$f":"\"\"","v":""},null,null,null,null,null,null,null,null,null,null,null,null,null,null,null,null,{"$f":"\"\"","v":""},{"$f":"\"\"","v":""}]
[null,null,null,{"$f":"\"\"","v":""},{"$f":"\"\"","v":""},{"$f":"\"\"","v":""},null,null,null,null,null,null,null,null,null,null,null,null,null,null,null,null,{"$f":"\"\"","v":""},{"$f":"\"\"","v":""}]
[null,null,null,{"$f":"\"\"","v":""},{"$f":"\"\"","v":""},{"$f":"\"\"","v":""},null,null,null,null,null,null,null,null,null,null,null,null,null,null,null,null,{"$f":"\"\"","v":""},{"$f":"\"\"","v":""}]
[null,null,null,{"$f":"\"\"","v":""},{"$f":"\"\"","v":""},{"$f":"\"\"","v":""},null,null,null,null,null,null,null,null,null,null,null,null,null,null,null,null,{"$f":"\"\"","v":""},{"$f":"\"\"","v":""}]
[null,null,null,{"$f":"\"\"","v":""},{"$f":"\"\"","v":""},{"$f":"\"\"","v":""},null,null,null,null,null,null,null,null,null,null,null,null,null,null,null,null,{"$f":"\"\"","v":""},{"$f":"\"\"","v":""}]
[]
[null,null,null,null,null,null,null,null,null,null,null,null,null,null,null,null,null,null,null,null,null,null,null,null,null,null,null,null,null,null,null,null,"This formula could be copied to calculate the rankings according to the player category in a club team =>",null,{"$f":"IF($AB349=\"\",\"\",IF($AC349=\"\",\"\",TEXT($AC349,\"0000\")&\" (Open) \")&IF($AD349=\"\",\"\",TEXT($AD349,\"0000\")&\" (Vet) \")&IF($AE349=\"\",\"\",TEXT($AE349,\"0000\")&\" (Wom) \")&IF($AF349=\"\",\"\",TEXT($AF349,\"0000\")&\" (U20) \")&IF($AG349=\"\",\"\",TEXT($AG349,\"0000\")&\" (U16) \")&IF($AH349=\"\",\"\",TEXT($AH349,\"0000\")&\" (U12) \")&IF(AND($AC349=\"\",$AD349=\"\",$AE349=\"\",$AF349=\"\",$AG349=\"\",$AH349=\"\"),\"No Ranked\",\"\"))","v":""},{"$f":"IF($AB349=\"\",\"\",IF($AC349=\"\",\"\",TEXT($AC349,\"0000\")&\" (Open) \")&IF($AD349=\"\",\"\",TEXT($AD349,\"0000\")&\" (Vet) \")&IF($AE349=\"\",\"\",TEXT($AE349,\"0000\")&\" (Wom) \")&IF($AF349=\"\",\"\",TEXT($AF349,\"0000\")&\" (U20) \")&IF($AG349=\"\",\"\",TEXT($AG349,\"0000\")&\" (U16) \")&IF($AH349=\"\",\"\",TEXT($AH349,\"0000\")&\" (U12) \")&IF(AND($AC349=\"\",$AD349=\"\",$AE349=\"\",$AF349=\"\",$AG349=\"\",$AH349=\"\"),\"No Ranked\",\"\"))","v":""},"","","","","",""]

{"sheet":"Teams","index":10,"n_rows":67,"n_cols":42,"rows_kept":67,"cut":false,"hidden":false,"merged":[]}
[10,{"$f":"IF(RankingAsLicencesList,7,7)","v":7},{"$f":"N_TeamCheckin","v":"Team Check in"},null,null,null,null,null,null,null,null,null,null,null,null,null,null,null,null,{"$f":"N_NbTeams","v":"Number of Teams"},{"$f":"N_nb_max_members","v":"Max nb of team members"}]
[null,null,null,null,null,null,null,{"$f":"IF(NationalityTrigram,7,2)","v":2},null,null,null,null,null,null,null,null,null,null,null,{"$f":"COUNTA(Team_List)","v":63},{"$f":"MAX(Liste_Nb_Equipiers)","v":5},1,2,3,4,5,6,7,8,9,10,11,12,13,14,15,16,17,18,19,20,21]
[{"$f":"N_Event_Type","v":"Event Type"},{"$f":"N_Nationality","v":"Nationality"},{"$f":"N_Club","v":"Club"},{"$f":"N_Team & \" #\"","v":"Team #"},{"$f":"N_Nom_équipe","v":"Team name"},{"$f":"N_Rank","v":"Rk"},{"$f":"N_Nb_Refereeing","v":"Nb refereed matches"},{"$f":"N_Team","v":"Team"},{"$f":"N_Joueurs","v":"Players"},null,null,null,null,null,null,null,null,null,{"$f":"N_Nb_Team_Members","v":"Nb of team members"},{"$f":"N_Nb_Refereeing","v":"Nb refereed matches"},{"$f":"N_LastHourRefereeing","v":"Session of the last refereeing"},{"$f":"INDEX(Planning!$A:$A,MATCH(\"S\"&V2,Planning!$G:$G,0))","v":"08:30:00"},{"$f":"INDEX(Planning!$A:$A,MATCH(\"S\"&W2,Planning!$G:$G,0))","v":"09:20:00"},{"$f":"INDEX(Planning!$A:$A,MATCH(\"S\"&X2,Planning!$G:$G,0))","v":"10:10:00"},{"$f":"INDEX(Planning!$A:$A,MATCH(\"S\"&Y2,Planning!$G:$G,0))","v":"11:00:00"},{"$f":"INDEX(Planning!$A:$A,MATCH(\"S\"&Z2,Planning!$G:$G,0))","v":"11:40:00"},{"$f":"INDEX(Planning!$A:$A,MATCH(\"S\"&AA2,Planning!$G:$G,0))","v":"12:30:00"},{"$f":"INDEX(Planning!$A:$A,MATCH(\"S\"&AB2,Planning!$G:$G,0))","v":"13:20:00"},{"$f":"INDEX(Planning!$A:$A,MATCH(\"S\"&AC2,Planning!$G:$G,0))","v":"14:05:00"},{"$f":"INDEX(Planning!$A:$A,MATCH(\"S\"&AD2,Planning!$G:$G,0))","v":"17:05:00"},{"$f":"INDEX(Planning!$A:$A,MATCH(\"S\"&AE2,Planning!$G:$G,0))","v":"18:10:00"},{"$f":"INDEX(Planning!$A:$A,MATCH(\"S\"&AF2,Planning!$G:$G,0))","v":{"$error":"#N/A"}},{"$f":"INDEX(Planning!$A:$A,MATCH(\"S\"&AG2,Planning!$G:$G,0))","v":{"$error":"#N/A"}},{"$f":"INDEX(Planning!$A:$A,MATCH(\"S\"&AH2,Planning!$G:$G,0))","v":{"$error":"#N/A"}},{"$f":"INDEX(Planning!$A:$A,MATCH(\"S\"&AI2,Planning!$G:$G,0))","v":{"$error":"#N/A"}},{"$f":"INDEX(Planning!$A:$A,MATCH(\"S\"&AJ2,Planning!$G:$G,0))","v":{"$error":"#N/A"}},{"$f":"INDEX(Planning!$A:$A,MATCH(\"S\"&AK2,Planning!$G:$G,0))","v":{"$error":"#N/A"}},{"$f":"INDEX(Planning!$A:$A,MATCH(\"S\"&AL2,Planning!$G:$G,0))","v":{"$error":"#N/A"}},{"$f":"INDEX(Planning!$A:$A,MATCH(\"S\"&AM2,Planning!$G:$G,0))","v":{"$error":"#N/A"}},{"$f":"INDEX(Planning!$A:$A,MATCH(\"S\"&AN2,Planning!$G:$G,0))","v":{"$error":"#N/A"}},{"$f":"INDEX(Planning!$A:$A,MATCH(\"S\"&AO2,Planning!$G:$G,0))","v":{"$error":"#N/A"}},{"$f":"INDEX(Planning!$A:$A,MATCH(\"S\"&AP2,Planning!$G:$G,0))","v":{"$error":"#N/A"}}]
[{"$f":"Event7","v":"Teams"},"MLT","Bormla SC","A",{"$f":"IF(C4=\"\",\"\",C4&IF(D4=\"A\",\"\",\" \"&CODE(D4)-CODE(\"A\")+1))","v":"Bormla SC"},{"$f":"IF(ISNA(VLOOKUP(E4,FullTeamsRankingList,3,FALSE)),9999,VLOOKUP(E4,FullTeamsRankingList,3,FALSE))","v":1},{"$f":"IF(E4=\"\",\"\",IF(ISNA(H4),NA(),COUNTIF(Planning!AA:AA,H4)))","v":1},{"$f":"IF(E4=\"\",\"\",CONCATENATE(E4,IF(C4=\"---\",\"\",CONCATENATE(\" (\",IF(NationalityTrigram,B4,VLOOKUP(C4,Licenced_Clubs,H$2,FALSE)),\")\"))))","v":"Bormla SC (bor)"},"George Ebejer (bor)","Jean Carl Tabone (bor)","Jason Pisani (bor)","Charles Aquilina (bor)","Christian Haas (bor)","Wolfgang Haas (bor)",null,null,null,null,{"$f":"COUNTA(I4:L4)","v":4},1,"08:30:00","Bormla SC (bor)",null,"Bormla SC (bor)",null,null,null,"Bormla SC (bor)","Bormla SC (bor)","Bormla SC (bor)",null,null,"Bormla SC (bor)","Bormla SC (bor)","Bormla SC (bor)","Bormla SC (bor)","Bormla SC (bor)","Bormla SC (bor)","Bormla SC (bor)","Bormla SC (bor)","Bormla SC (bor)","Bormla SC (bor)"]
["Teams","BEL","ST Stembert","A","ST Stembert",7,{"$f":"IF(E5=\"\",\"\",IF(ISNA(H5),NA(),COUNTIF(Planning!AA:AA,H5)))","v":2},"ST Stembert (ste)","Noah Janssens (ste)","John Zammit (ste)","Sébastien Rochez (ste)","Pascal Scheen (ste)",null,null,null,null,null,null,4,2,"11:00:00","ST Stembert (ste)","ST Stembert (ste)",null,"ST Stembert (ste)",null,null,null,"ST Stembert (ste)","ST Stembert (ste)",null,null,"ST Stembert (ste)","ST Stembert (ste)","ST Stembert (ste)","ST Stembert (ste)","ST Stembert (ste)","ST Stembert (ste)","ST Stembert (ste)","ST Stembert (ste)","ST Stembert (ste)","ST Stembert (ste)"]
["Teams","AUT","TSC Royal 78 Kaisermühlen","A","TSC Royal 78 Kaisermühlen",18,{"$f":"IF(E6=\"\",\"\",IF(ISNA(H6),NA(),COUNTIF(Planning!AA:AA,H6)))","v":3},"TSC Royal 78 Kaisermühlen (roy)","Wolfgang Leitner (roy)","Alexander Haas (roy)","Murat Tünger (roy)","Daniel Vranovitz (roy)","Stefan Sandner (roy)",null,null,null,null,null,4,3,"17:05:00",null,"TSC Royal 78 Kaisermühlen (roy)",null,null,null,"TSC Royal 78 Kaisermühlen (roy)","TSC Royal 78 Kaisermühlen (roy)","TSC Royal 78 Kaisermühlen (roy)","TSC Royal 78 Kaisermühlen (roy)",null,"TSC Royal 78 Kaisermühlen (roy)","TSC Royal 78 Kaisermühlen (roy)","TSC Royal 78 Kaisermühlen (roy)","TSC Royal 78 Kaisermühlen (roy)","TSC Royal 78 Kaisermühlen (roy)","TSC Royal 78 Kaisermühlen (roy)","TSC Royal 78 Kaisermühlen (roy)","TSC Royal 78 Kaisermühlen (roy)","TSC Royal 78 Kaisermühlen (roy)","TSC Royal 78 Kaisermühlen (roy)","TSC Royal 78 Kaisermühlen (roy)"]
["Teams","AUT","TSC Royal 78 Kaisermühlen","B","TSC Royal 78 Kaisermühlen 2",104,{"$f":"IF(E7=\"\",\"\",IF(ISNA(H7),NA(),COUNTIF(Planning!AA:AA,H7)))","v":2},"TSC Royal 78 Kaisermühlen 2 (roy)","Katharina Ocenasek (roy)","Christian Hausmann (roy)","Karl Vranovitz (roy)","Robert Lenz (roy)","Heinz Eder (roy)","David Scherbantin (roy)",null,null,null,null,4,2,"12:30:00",null,null,null,"TSC Royal 78 Kaisermühlen 2 (roy)",null,"TSC Royal 78 Kaisermühlen 2 (roy)","TSC Royal 78 Kaisermühlen 2 (roy)","TSC Royal 78 Kaisermühlen 2 (roy)","TSC Royal 78 Kaisermühlen 2 (roy)",null,"TSC Royal 78 Kaisermühlen 2 (roy)","TSC Royal 78 Kaisermühlen 2 (roy)","TSC Royal 78 Kaisermühlen 2 (roy)","TSC Royal 78 Kaisermühlen 2 (roy)","TSC Royal 78 Kaisermühlen 2 (roy)","TSC Royal 78 Kaisermühlen 2 (roy)","TSC Royal 78 Kaisermühlen 2 (roy)","TSC Royal 78 Kaisermühlen 2 (roy)","TSC Royal 78 Kaisermühlen 2 (roy)","TSC Royal 78 Kaisermühlen 2 (roy)","TSC Royal 78 Kaisermühlen 2 (roy)"]
["Teams","GRE","Atlas FTC","A","Atlas FTC",30,{"$f":"IF(E8=\"\",\"\",IF(ISNA(H8),NA(),COUNTIF(Planning!AA:AA,H8)))","v":2},"Atlas FTC (atl)","Giannis Nikolaidis (atl)","Stylianos Tsangouris (atl)","Lazaros Papakonstantinou (atl)","Joffray Laurent (atl)","Athanasios Chaliotis (atl)",null,null,null,null,null,4,2,"12:30:00",null,null,"Atlas FTC (atl)",null,"Atlas FTC (atl)","Atlas FTC (atl)",null,"Atlas FTC (atl)","Atlas FTC (atl)","Atlas FTC (atl)","Atlas FTC (atl)","Atlas FTC (atl)","Atlas FTC (atl)","Atlas FTC (atl)","Atlas FTC (atl)","Atlas FTC (atl)","Atlas FTC (atl)","Atlas FTC (atl)","Atlas FTC (atl)","Atlas FTC (atl)","Atlas FTC (atl)"]
["Teams","GRE","Roligans Ilioupolis TSC","A","Roligans Ilioupolis TSC",71,{"$f":"IF(E9=\"\",\"\",IF(ISNA(H9),NA(),COUNTIF(Planning!AA:AA,H9)))","v":2},"Roligans Ilioupolis TSC (rol)","Phillipos Kordantonopoulos (rol)","Apollon Dimakeas (rol)","Athanasios Kordantonopoulos (rol)","Georgios Dimakeas (rol)",null,null,null,null,null,null,4,2,"11:40:00","Roligans Ilioupolis TSC (rol)","Roligans Ilioupolis TSC (rol)",null,null,"Roligans Ilioupolis TSC (rol)",null,null,"Roligans Ilioupolis TSC (rol)","Roligans Ilioupolis TSC (rol)","Roligans Ilioupolis TSC (rol)","Roligans Ilioupolis TSC (rol)","Roligans Ilioupolis TSC (rol)","Roligans Ilioupolis TSC (rol)","Roligans Ilioupolis TSC (rol)","Roligans Ilioupolis TSC (rol)","Roligans Ilioupolis TSC (rol)","Roligans Ilioupolis TSC (rol)","Roligans Ilioupolis TSC (rol)","Roligans Ilioupolis TSC (rol)","Roligans Ilioupolis TSC (rol)","Roligans Ilioupolis TSC (rol)"]
["Teams","ITA","GCT DLF Gorizia","A","GCT DLF Gorizia",79,{"$f":"IF(E10=\"\",\"\",IF(ISNA(H10),NA(),COUNTIF(Planning!AA:AA,H10)))","v":3},"GCT DLF Gorizia (gor)","Michael Stolzenberg ()","Michele Cerullo (gor)","Marco Pinausi (gor)","To be defined",null,null,null,null,null,null,4,3,"15:55:00",null,null,null,"GCT DLF Gorizia (gor)","GCT DLF Gorizia (gor)",null,"GCT DLF Gorizia (gor)","GCT DLF Gorizia (gor)","GCT DLF Gorizia (gor)","GCT DLF Gorizia (gor)","GCT DLF Gorizia (gor)","GCT DLF Gorizia (gor)","GCT DLF Gorizia (gor)","GCT DLF Gorizia (gor)","GCT DLF Gorizia (gor)","GCT DLF Gorizia (gor)","GCT DLF Gorizia (gor)","GCT DLF Gorizia (gor)","GCT DLF Gorizia (gor)","GCT DLF Gorizia (gor)","GCT DLF Gorizia (gor)"]
["Teams","INT","Barbarian Mixed Team","A","Barbarian Mixed Team",9999,{"$f":"IF(E11=\"\",\"\",IF(ISNA(H11),NA(),COUNTIF(Planning!AA:AA,H11)))","v":2},"Barbarian Mixed Team","Robert Green (nfc)","Peter Erb (sub)","Daniela Grünberg (sch)","Fabio Domenico ()","Marcel Schulz (sch)",null,null,null,null,null,{"$f":"COUNTA(I11:R11)","v":5},2,"10:10:00","Barbarian Mixed Team",null,"Barbarian Mixed Team",null,null,null,"Barbarian Mixed Team","Barbarian Mixed Team","Barbarian Mixed Team","Barbarian Mixed Team","Barbarian Mixed Team","Barbarian Mixed Team","Barbarian Mixed Team","Barbarian Mixed Team","Barbarian Mixed Team","Barbarian Mixed Team","Barbarian Mixed Team","Barbarian Mixed Team","Barbarian Mixed Team","Barbarian Mixed Team","Barbarian Mixed Team"]
[{"$f":"Event7","v":"Teams"},"AUT","TSC Phoenix","B","TSC Phoenix 2",154,{"$f":"IF(E12=\"\",\"\",IF(ISNA(H12),NA(),COUNTIF(Planning!AA:AA,H12)))","v":3},"TSC Phoenix 2 (wie)","Alfred Strommer (wie)","Igor Ljubisavljevic (wie)","Florian Daxböck (wie)","Gábor Baross (wie)",null,null,null,null,null,null,{"$f":"COUNTA(I12:L12)","v":4},3,"15:55:00",null,"TSC Phoenix 2 (wie)",null,"TSC Phoenix 2 (wie)",null,null,"TSC Phoenix 2 (wie)","TSC Phoenix 2 (wie)","TSC Phoenix 2 (wie)","TSC Phoenix 2 (wie)","TSC Phoenix 2 (wie)","TSC Phoenix 2 (wie)","TSC Phoenix 2 (wie)","TSC Phoenix 2 (wie)","TSC Phoenix 2 (wie)","TSC Phoenix 2 (wie)","TSC Phoenix 2 (wie)","TSC Phoenix 2 (wie)","TSC Phoenix 2 (wie)","TSC Phoenix 2 (wie)","TSC Phoenix 2 (wie)"]
[{"$f":"Event7","v":"Teams"},"AUT","TSC Phoenix","A","TSC Phoenix",33,{"$f":"IF(E13=\"\",\"\",IF(ISNA(H13),NA(),COUNTIF(Planning!AA:AA,H13)))","v":2},"TSC Phoenix (wie)","Manfred Pawlica (wie)","Marios Strommer (wie)","Christian Blümel (wie)","Erich Hinkelmann (wie)",null,null,null,null,null,null,{"$f":"COUNTA(I13:L13)","v":4},2,"11:40:00",null,null,"TSC Phoenix (wie)",null,"TSC Phoenix (wie)","TSC Phoenix (wie)",null,"TSC Phoenix (wie)","TSC Phoenix (wie)","TSC Phoenix (wie)","TSC Phoenix (wie)","TSC Phoenix (wie)","TSC Phoenix (wie)","TSC Phoenix (wie)","TSC Phoenix (wie)","TSC Phoenix (wie)","TSC Phoenix (wie)","TSC Phoenix (wie)","TSC Phoenix (wie)","TSC Phoenix (wie)","TSC Phoenix (wie)"]
[null,null,null,null,"",0,{"$f":"IF(E14=\"\",\"\",IF(ISNA(H14),NA(),COUNTIF(Planning!AA:AA,H14)))","v":""},"",null,null,null,null,null,null,null,null,null,null,0,153,"END OF PLANNING"]
[null,null,null,null,{"$f":"IF(C15=\"\",\"\",C15&IF(D15=\"A\",\"\",\" \"&CODE(D15)-CODE(\"A\")+1))","v":""},0,{"$f":"IF(E15=\"\",\"\",IF(ISNA(H15),NA(),COUNTIF(Planning!AA:AA,H15)))","v":""},{"$f":"IF(E15=\"\",\"\",CONCATENATE(E15,IF(C15=\"---\",\"\",CONCATENATE(\" (\",IF(NationalityTrigram,B15,VLOOKUP(C15,Licenced_Clubs,H$2,FALSE)),\")\"))))","v":""},null,null,null,null,null,null,null,null,null,null,0,153,"END OF PLANNING"]
[null,null,null,null,"",0,{"$f":"IF(E16=\"\",\"\",IF(ISNA(H16),NA(),COUNTIF(Planning!AA:AA,H16)))","v":""},"",null,null,null,null,null,null,null,null,null,null,0,153,"END OF PLANNING"]
[null,null,null,null,"",0,{"$f":"IF(E17=\"\",\"\",IF(ISNA(H17),NA(),COUNTIF(Planning!AA:AA,H17)))","v":""},"",null,null,null,null,null,null,null,null,null,null,0,153,"END OF PLANNING"]
[null,null,null,null,"",0,{"$f":"IF(E18=\"\",\"\",IF(ISNA(H18),NA(),COUNTIF(Planning!AA:AA,H18)))","v":""},"",null,null,null,null,null,null,null,null,null,null,0,153,"END OF PLANNING"]
[null,null,null,null,"",0,{"$f":"IF(E19=\"\",\"\",IF(ISNA(H19),NA(),COUNTIF(Planning!AA:AA,H19)))","v":""},"",null,null,null,null,null,null,null,null,null,null,0,153,"END OF PLANNING"]
[null,null,null,null,"",0,{"$f":"IF(E20=\"\",\"\",IF(ISNA(H20),NA(),COUNTIF(Planning!AA:AA,H20)))","v":""},"",null,null,null,null,null,null,null,null,null,null,0,153,"END OF PLANNING"]
[null,null,null,null,"",0,{"$f":"IF(E21=\"\",\"\",IF(ISNA(H21),NA(),COUNTIF(Planning!AA:AA,H21)))","v":""},"",null,null,null,null,null,null,null,null,null,null,0,153,"END OF PLANNING"]
[null,null,null,null,"",0,{"$f":"IF(E22=\"\",\"\",IF(ISNA(H22),NA(),COUNTIF(Planning!AA:AA,H22)))","v":""},"",null,null,null,null,null,null,null,null,null,null,0,153,"END OF PLANNING"]
[null,null,null,null,"",0,{"$f":"IF(E23=\"\",\"\",IF(ISNA(H23),NA(),COUNTIF(Planning!AA:AA,H23)))","v":""},"",null,null,null,null,null,null,null,null,null,null,0,153,"END OF PLANNING"]
[null,null,null,null,"",0,{"$f":"IF(E24=\"\",\"\",IF(ISNA(H24),NA(),COUNTIF(Planning!AA:AA,H24)))","v":""},"",null,null,null,null,null,null,null,null,null,null,0,153,"END OF PLANNING"]
[null,null,null,null,"",0,{"$f":"IF(E25=\"\",\"\",IF(ISNA(H25),NA(),COUNTIF(Planning!AA:AA,H25)))","v":""},"",null,null,null,null,null,null,null,null,null,null,0,153,"END OF PLANNING"]
[null,null,null,null,"",0,{"$f":"IF(E26=\"\",\"\",IF(ISNA(H26),NA(),COUNTIF(Planning!AA:AA,H26)))","v":""},"",null,null,null,null,null,null,null,null,null,null,0,153,"END OF PLANNING"]
[null,null,null,null,"",0,{"$f":"IF(E27=\"\",\"\",IF(ISNA(H27),NA(),COUNTIF(Planning!AA:AA,H27)))","v":""},"",null,null,null,null,null,null,null,null,null,null,0,153,"END OF PLANNING"]
[null,null,null,null,"",0,{"$f":"IF(E28=\"\",\"\",IF(ISNA(H28),NA(),COUNTIF(Planning!AA:AA,H28)))","v":""},"",null,null,null,null,null,null,null,null,null,null,0,153,"END OF PLANNING"]
[null,null,null,null,"",0,{"$f":"IF(E29=\"\",\"\",IF(ISNA(H29),NA(),COUNTIF(Planning!AA:AA,H29)))","v":""},"",null,null,null,null,null,null,null,null,null,null,0,153,"END OF PLANNING"]
[null,null,null,null,"",0,{"$f":"IF(E30=\"\",\"\",IF(ISNA(H30),NA(),COUNTIF(Planning!AA:AA,H30)))","v":""},"",null,null,null,null,null,null,null,null,null,null,0,153,"END OF PLANNING"]
[null,null,null,null,"",0,{"$f":"IF(E31=\"\",\"\",IF(ISNA(H31),NA(),COUNTIF(Planning!AA:AA,H31)))","v":""},"",null,null,null,null,null,null,null,null,null,null,0,153,"END OF PLANNING"]
[null,null,null,null,"",0,{"$f":"IF(E32=\"\",\"\",IF(ISNA(H32),NA(),COUNTIF(Planning!AA:AA,H32)))","v":""},"",null,null,null,null,null,null,null,null,null,null,0,153,"END OF PLANNING"]
[null,null,null,null,"",0,{"$f":"IF(E33=\"\",\"\",IF(ISNA(H33),NA(),COUNTIF(Planning!AA:AA,H33)))","v":""},"",null,null,null,null,null,null,null,null,null,null,0,153,"END OF PLANNING"]
[null,null,null,null,{"$f":"IF(C34=\"\",\"\",C34&IF(D34=\"A\",\"\",\" \"&CODE(D34)-CODE(\"A\")+1))","v":""},0,{"$f":"IF(E34=\"\",\"\",IF(ISNA(H34),NA(),COUNTIF(Planning!AA:AA,H34)))","v":""},"",null,null,null,null,null,null,null,null,null,null,0,153,"END OF PLANNING"]
[null,null,null,null,{"$f":"IF(C35=\"\",\"\",C35&IF(D35=\"A\",\"\",\" \"&CODE(D35)-CODE(\"A\")+1))","v":""},0,{"$f":"IF(E35=\"\",\"\",IF(ISNA(H35),NA(),COUNTIF(Planning!AA:AA,H35)))","v":""},"",null,null,null,null,null,null,null,null,null,null,0,153,"END OF PLANNING"]
[null,null,null,null,"",0,{"$f":"IF(E36=\"\",\"\",IF(ISNA(H36),NA(),COUNTIF(Planning!AA:AA,H36)))","v":""},"",null,null,null,null,null,null,null,null,null,null,0,153,"END OF PLANNING"]
[null,null,null,null,"",0,{"$f":"IF(E37=\"\",\"\",IF(ISNA(H37),NA(),COUNTIF(Planning!AA:AA,H37)))","v":""},"",null,null,null,null,null,null,null,null,null,null,0,153,"END OF PLANNING"]
[null,null,null,null,"",0,{"$f":"IF(E38=\"\",\"\",IF(ISNA(H38),NA(),COUNTIF(Planning!AA:AA,H38)))","v":""},"",null,null,null,null,null,null,null,null,null,null,0,153,"END OF PLANNING"]
[null,null,null,null,"",0,{"$f":"IF(E39=\"\",\"\",IF(ISNA(H39),NA(),COUNTIF(Planning!AA:AA,H39)))","v":""},"",null,null,null,null,null,null,null,null,null,null,0,153,"END OF PLANNING"]
[null,null,null,null,"",0,{"$f":"IF(E40=\"\",\"\",IF(ISNA(H40),NA(),COUNTIF(Planning!AA:AA,H40)))","v":""},"",null,null,null,null,null,null,null,null,null,null,0,153,"END OF PLANNING"]
[null,null,null,null,"",0,{"$f":"IF(E41=\"\",\"\",IF(ISNA(H41),NA(),COUNTIF(Planning!AA:AA,H41)))","v":""},"",null,null,null,null,null,null,null,null,null,null,0,153,"END OF PLANNING"]
[null,null,null,null,"",0,{"$f":"IF(E42=\"\",\"\",IF(ISNA(H42),NA(),COUNTIF(Planning!AA:AA,H42)))","v":""},"",null,null,null,null,null,null,null,null,null,null,0,153,"END OF PLANNING"]
[null,null,null,null,"",0,{"$f":"IF(E43=\"\",\"\",IF(ISNA(H43),NA(),COUNTIF(Planning!AA:AA,H43)))","v":""},"",null,null,null,null,null,null,null,null,null,null,0,153,"END OF PLANNING"]
[null,null,null,null,"",0,{"$f":"IF(E44=\"\",\"\",IF(ISNA(H44),NA(),COUNTIF(Planning!AA:AA,H44)))","v":""},"",null,null,null,null,null,null,null,null,null,null,0,153,"END OF PLANNING"]
[null,null,null,null,"",0,{"$f":"IF(E45=\"\",\"\",IF(ISNA(H45),NA(),COUNTIF(Planning!AA:AA,H45)))","v":""},"",null,null,null,null,null,null,null,null,null,null,0,153,"END OF PLANNING"]
[null,null,null,null,"",0,{"$f":"IF(E46=\"\",\"\",IF(ISNA(H46),NA(),COUNTIF(Planning!AA:AA,H46)))","v":""},"",null,null,null,null,null,null,null,null,null,null,0,153,"END OF PLANNING"]
[null,null,null,null,"",0,{"$f":"IF(E47=\"\",\"\",IF(ISNA(H47),NA(),COUNTIF(Planning!AA:AA,H47)))","v":""},"",null,null,null,null,null,null,null,null,null,null,{"$f":"COUNTA(I47:R47)","v":0},153,"END OF PLANNING"]
[null,null,null,null,"",0,{"$f":"IF(E48=\"\",\"\",IF(ISNA(H48),NA(),COUNTIF(Planning!AA:AA,H48)))","v":""},"",null,null,null,null,null,null,null,null,null,null,0,153,"END OF PLANNING"]
[null,null,null,null,"",0,{"$f":"IF(E49=\"\",\"\",IF(ISNA(H49),NA(),COUNTIF(Planning!AA:AA,H49)))","v":""},"",null,null,null,null,null,null,null,null,null,null,0,153,"END OF PLANNING"]
[null,null,null,null,"",0,{"$f":"IF(E50=\"\",\"\",IF(ISNA(H50),NA(),COUNTIF(Planning!AA:AA,H50)))","v":""},"",null,null,null,null,null,null,null,null,null,null,0,153,"END OF PLANNING"]
[null,null,null,null,"",0,{"$f":"IF(E51=\"\",\"\",IF(ISNA(H51),NA(),COUNTIF(Planning!AA:AA,H51)))","v":""},"",null,null,null,null,null,null,null,null,null,null,0,153,"END OF PLANNING"]
[null,null,null,null,"",0,{"$f":"IF(E52=\"\",\"\",IF(ISNA(H52),NA(),COUNTIF(Planning!AA:AA,H52)))","v":""},"",null,null,null,null,null,null,null,null,null,null,0,153,"END OF PLANNING"]
[null,null,null,null,"",0,{"$f":"IF(E53=\"\",\"\",IF(ISNA(H53),NA(),COUNTIF(Planning!AA:AA,H53)))","v":""},"",null,null,null,null,null,null,null,null,null,null,0,153,"END OF PLANNING"]
[null,null,null,null,"",0,{"$f":"IF(E54=\"\",\"\",IF(ISNA(H54),NA(),COUNTIF(Planning!AA:AA,H54)))","v":""},"",null,null,null,null,null,null,null,null,null,null,0,153,"END OF PLANNING"]
[null,null,null,null,"",0,{"$f":"IF(E55=\"\",\"\",IF(ISNA(H55),NA(),COUNTIF(Planning!AA:AA,H55)))","v":""},"",null,null,null,null,null,null,null,null,null,null,0,153,"END OF PLANNING"]
[null,null,null,null,"",0,{"$f":"IF(E56=\"\",\"\",IF(ISNA(H56),NA(),COUNTIF(Planning!AA:AA,H56)))","v":""},"",null,null,null,null,null,null,null,null,null,null,0,153,"END OF PLANNING"]
[null,null,null,null,"",0,{"$f":"IF(E57=\"\",\"\",IF(ISNA(H57),NA(),COUNTIF(Planning!AA:AA,H57)))","v":""},"",null,null,null,null,null,null,null,null,null,null,0,153,"END OF PLANNING"]
[null,null,null,null,"",0,{"$f":"IF(E58=\"\",\"\",IF(ISNA(H58),NA(),COUNTIF(Planning!AA:AA,H58)))","v":""},"",null,null,null,null,null,null,null,null,null,null,0,153,"END OF PLANNING"]
[null,null,null,null,"",0,{"$f":"IF(E59=\"\",\"\",IF(ISNA(H59),NA(),COUNTIF(Planning!AA:AA,H59)))","v":""},"",null,null,null,null,null,null,null,null,null,null,0,153,"END OF PLANNING"]
[null,null,null,null,"",0,{"$f":"IF(E60=\"\",\"\",IF(ISNA(H60),NA(),COUNTIF(Planning!AA:AA,H60)))","v":""},"",null,null,null,null,null,null,null,null,null,null,0,153,"END OF PLANNING"]
[null,null,null,null,"",0,{"$f":"IF(E61=\"\",\"\",IF(ISNA(H61),NA(),COUNTIF(Planning!AA:AA,H61)))","v":""},"",null,null,null,null,null,null,null,null,null,null,0,153,"END OF PLANNING"]
[null,{"$f":"IF(C62=\"\",\"\",VLOOKUP(C62,Licenced_Clubs,3,FALSE))","v":""},null,null,"",0,{"$f":"IF(E62=\"\",\"\",IF(ISNA(H62),NA(),COUNTIF(Planning!AA:AA,H62)))","v":""},"",null,null,null,null,null,null,null,null,null,null,0,153,"END OF PLANNING"]
[null,"",null,null,"",0,{"$f":"IF(E63=\"\",\"\",IF(ISNA(H63),NA(),COUNTIF(Planning!AA:AA,H63)))","v":""},"",null,null,null,null,null,null,null,null,null,null,0,153,"END OF PLANNING"]
[null,"",null,null,"",{"$f":"IF(ISNA(VLOOKUP(E64,FullTeamsRankingList,3,FALSE)),9999,VLOOKUP(E64,FullTeamsRankingList,3,FALSE))","v":0},{"$f":"IF(E64=\"\",\"\",IF(ISNA(H64),NA(),COUNTIF(Planning!AA:AA,H64)))","v":""},"",null,null,null,null,null,null,null,null,null,null,0,153,"END OF PLANNING"]
[null,"",null,null,"",0,{"$f":"IF(E65=\"\",\"\",IF(ISNA(H65),NA(),COUNTIF(Planning!AA:AA,H65)))","v":""},"",null,null,null,null,null,null,null,null,null,null,0,153,"END OF PLANNING"]
[null,{"$f":"IF(C66=\"\",\"\",VLOOKUP(C66,Licenced_Clubs,3,FALSE))","v":""},null,null,"",{"$f":"IF(ISNA(VLOOKUP(E66,FullTeamsRankingList,3,FALSE)),9999,VLOOKUP(E66,FullTeamsRankingList,3,FALSE))","v":0},{"$f":"IF(E66=\"\",\"\",IF(ISNA(H66),NA(),COUNTIF(Planning!AA:AA,H66)))","v":""},"",null,null,null,null,null,null,null,null,null,null,0,153,"END OF PLANNING"]
[null,null,null,null,null,null,null,null,null,null,null,null,null,null,null,null,null,null,null,0,0]

{"sheet":"Doubles","index":11,"n_rows":17,"n_cols":13,"rows_kept":17,"cut":false,"hidden":true,"merged":[[2,2,2,4],[1,2,1,4],[0,1,0,4]]}
[null,{"$f":"N_DoubleCheckin","v":"Double Check in"}]
[]
[{"$f":"N_Event_Type","v":"Event Type"},{"$f":"N_Nom_double","v":"Double name"},{"$f":"N_Joueurs","v":"Players"},null,null,null,null,null,null,null,null,null,{"$f":"N_Nb_Team_Members","v":"Nb of team members"}]
[{"$f":"Event7","v":"Teams"},null,null,null,null,null,null,null,null,null,null,null,{"$f":"COUNTA(C4:L4)","v":0}]
[{"$f":"Event7","v":"Teams"},null,null,null,null,null,null,null,null,null,null,null,0]
["Teams",null,null,null,null,null,null,null,null,null,null,null,0]
["Teams",null,null,null,null,null,null,null,null,null,null,null,0]
["Teams",null,null,null,null,null,null,null,null,null,null,null,0]
["Teams",null,null,null,null,null,null,null,null,null,null,null,0]
[null,null,null,null,null,null,null,null,null,null,null,null,{"$f":"COUNTA(C10:L10)","v":0}]
[null,null,null,null,null,null,null,null,null,null,null,null,0]
[null,null,null,null,null,null,null,null,null,null,null,null,0]
[null,null,null,null,null,null,null,null,null,null,null,null,0]
[null,null,null,null,null,null,null,null,null,null,null,null,0]
[null,null,null,null,null,null,null,null,null,null,null,null,0]
[null,null,null,null,null,null,null,null,null,null,null,null,0]
[null,null,null,null,null,null,null,null,null,null,null,null,{"$f":"COUNTA(C17:L17)","v":0}]

{"sheet":"Lists","index":12,"n_rows":76,"n_cols":17,"rows_kept":76,"cut":false,"hidden":true,"merged":[[1,1,1,16],[0,1,0,16],[2,1,2,16]]}
[null,{"$f":"N_ListsSheet","v":"PlayerLists after Check in"}]
[null,{"$f":"N_ListsMessage","v":"ATTENTION, don't make updates in this sheet ! Also, avoid format handling."}]
[]
[null,64,26,27,3,0,0,4,54,0,0,0,0,0,0,0,71]
[null,{"$f":"CheckIn!G5","v":"Referee"},{"$f":"CheckIn!H5","v":"Open"},{"$f":"CheckIn!I5","v":"Veterans"},{"$f":"CheckIn!J5","v":"Women"},{"$f":"CheckIn!K5","v":"U20"},{"$f":"CheckIn!L5","v":"U16"},{"$f":"CheckIn!M5","v":"U12"},{"$f":"CheckIn!N5","v":"Teams"},{"$f":"CheckIn!O5","v":"Consolation"},{"$f":"CheckIn!P5","v":"Team_Open"},{"$f":"CheckIn!Q5","v":"Team_Veterans"},{"$f":"CheckIn!R5","v":"Team_Women"},{"$f":"CheckIn!S5","v":"Team_U20"},{"$f":"CheckIn!T5","v":"Team_U16"},{"$f":"CheckIn!U5","v":"Team_U12"},{"$f":"N_Joueurs","v":"Players"}]
[null,"Wolfgang Haas (bor)","Wolfgang Haas (bor)","Erich Hinkelmann (wie)","Katharina Waldorf-Busch (bor)",{"$f":"WithdrawLabel","v":"[---Withdraw---]"},{"$f":"WithdrawLabel","v":"[---Withdraw---]"},"Dominik Eder (roy)","Wolfgang Haas (bor)",{"$f":"WithdrawLabel","v":"[---Withdraw---]"},{"$f":"WithdrawLabel","v":"[---Withdraw---]"},{"$f":"WithdrawLabel","v":"[---Withdraw---]"},{"$f":"WithdrawLabel","v":"[---Withdraw---]"},{"$f":"WithdrawLabel","v":"[---Withdraw---]"},{"$f":"WithdrawLabel","v":"[---Withdraw---]"},{"$f":"WithdrawLabel","v":"[---Withdraw---]"},"Wolfgang Haas (bor)"]
[null,"Saverio Bari (reg)","Saverio Bari (reg)","Jason Pisani (bor)","Daniela Grünberg (sch)",null,null,"Apollon Dimakeas (rol)","Pascal Scheen (ste)",null,null,null,null,null,null,null,"Saverio Bari (reg)"]
[null,"Mark Gauci (vll)","Mark Gauci (vll)","Daniel Scheen (tib)","Katharina Ocenasek (roy)",null,null,"Phillipos Kordantonopoulos (rol)","George Ebejer (bor)",null,null,null,null,null,null,null,"Mark Gauci (vll)"]
[null,"Pascal Scheen (ste)","Pascal Scheen (ste)","Charles Aquilina (bor)",{"$f":"WithdrawLabel","v":"[---Withdraw---]"},null,null,"Daniel Eder (roy)","Wolfgang Leitner (roy)",null,null,null,null,null,null,null,"Pascal Scheen (ste)"]
[null,"George Ebejer (bor)","George Ebejer (bor)","Pasquale Torano (fer)",null,null,null,{"$f":"WithdrawLabel","v":"[---Withdraw---]"},"Alexander Haas (roy)",null,null,null,null,null,null,null,"George Ebejer (bor)"]
[null,"Sérgio Ramos (bol)","Sérgio Ramos (bol)","Lazaros Papakonstantinou (atl)",null,null,null,null,"Giannis Nikolaidis (atl)",null,null,null,null,null,null,null,"Sérgio Ramos (bol)"]
[null,"Wolfgang Leitner (roy)","Wolfgang Leitner (roy)","David Busch (bor)",null,null,null,null,"Jean Carl Tabone (bor)",null,null,null,null,null,null,null,"Wolfgang Leitner (roy)"]
[null,"Alexander Haas (roy)","Alexander Haas (roy)","John Zammit (ste)",null,null,null,null,"Stylianos Tsangouris (atl)",null,null,null,null,null,null,null,"Alexander Haas (roy)"]
[null,"Bernard Lim (jur)","Bernard Lim (jur)","Massimiliano Croatti (msa)",null,null,null,null,"Noah Janssens (ste)",null,null,null,null,null,null,null,"Bernard Lim (jur)"]
[null,"Giannis Nikolaidis (atl)","Giannis Nikolaidis (atl)","Francesco Torano (msa)",null,null,null,null,"Joffray Laurent (atl)",null,null,null,null,null,null,null,"Giannis Nikolaidis (atl)"]
[null,"Jean Carl Tabone (bor)","Jean Carl Tabone (bor)","Günther Bamberzky (crh)",null,null,null,null,"Erich Hinkelmann (wie)",null,null,null,null,null,null,null,"Jean Carl Tabone (bor)"]
[null,"David Vacke (cst)","David Vacke (cst)","Panagiotis Krommydas (hop)",null,null,null,null,"Thomas Wittmann (roy)",null,null,null,null,null,null,null,"David Vacke (cst)"]
[null,"Stylianos Tsangouris (atl)","Stylianos Tsangouris (atl)","Sébastien Rochez (ste)",null,null,null,null,"Murat Tünger (roy)",null,null,null,null,null,null,null,"Stylianos Tsangouris (atl)"]
[null,"Noah Janssens (ste)","Noah Janssens (ste)","Joseph Mifsud (fia)",null,null,null,null,"Michael Stolzenberg ()",null,null,null,null,null,null,null,"Noah Janssens (ste)"]
[null,"Joffray Laurent (atl)","Joffray Laurent (atl)","Georgios Dimakeas (rol)",null,null,null,null,"Christian Haas (bor)",null,null,null,null,null,null,null,"Joffray Laurent (atl)"]
[null,"Erich Hinkelmann (wie)","Thomas Wittmann (roy)","Robert Green (nfc)",null,null,null,null,"Michele Cerullo (gor)",null,null,null,null,null,null,null,"Erich Hinkelmann (wie)"]
[null,"Thomas Wittmann (roy)","Murat Tünger (roy)","Athanasios Chaliotis (atl)",null,null,null,null,"Marcel Schulz (sch)",null,null,null,null,null,null,null,"Thomas Wittmann (roy)"]
[null,"Murat Tünger (roy)","Michael Stolzenberg ()","Peter Erb (sub)",null,null,null,null,"Athanasios Kordantonopoulos (rol)",null,null,null,null,null,null,null,"Murat Tünger (roy)"]
[null,"Michael Stolzenberg ()","Claudio Colpani (acp)","Marco Pinausi (gor)",null,null,null,null,"Daniel Vranovitz (roy)",null,null,null,null,null,null,null,"Michael Stolzenberg ()"]
[null,"Christian Haas (bor)","Michele Cerullo (gor)","Karl Vranovitz (roy)",null,null,null,null,"Christian Hausmann (roy)",null,null,null,null,null,null,null,"Christian Haas (bor)"]
[null,"Claudio Colpani (acp)","Marcel Schulz (sch)","Fabio Domenico ()",null,null,null,null,"Reinhard Schöberl (roy)",null,null,null,null,null,null,null,"Claudio Colpani (acp)"]
[null,"Michele Cerullo (gor)","Athanasios Kordantonopoulos (rol)","Roman Bernhardsgrütter (lis)",null,null,null,null,"David Scherbantin (roy)",null,null,null,null,null,null,null,"Michele Cerullo (gor)"]
[null,"Marcel Schulz (sch)","Daniel Vranovitz (roy)","Gábor Baross (wie)",null,null,null,null,"Jason Pisani (bor)",null,null,null,null,null,null,null,"Marcel Schulz (sch)"]
[null,"Athanasios Kordantonopoulos (rol)","Christian Hausmann (roy)","Katharina Waldorf-Busch (bor)",null,null,null,null,"Charles Aquilina (bor)",null,null,null,null,null,null,null,"Athanasios Kordantonopoulos (rol)"]
[null,"Daniel Vranovitz (roy)","Reinhard Schöberl (roy)","Alfred Strommer (wie)",null,null,null,null,"Lazaros Papakonstantinou (atl)",null,null,null,null,null,null,null,"Daniel Vranovitz (roy)"]
[null,"Christian Hausmann (roy)","David Scherbantin (roy)","Marco Zucchi (pin)",null,null,null,null,"David Busch (bor)",null,null,null,null,null,null,null,"Christian Hausmann (roy)"]
[null,"Reinhard Schöberl (roy)",{"$f":"WithdrawLabel","v":"[---Withdraw---]"},"Florian Daxböck (wie)",null,null,null,null,"John Zammit (ste)",null,null,null,null,null,null,null,"Reinhard Schöberl (roy)"]
[null,"David Scherbantin (roy)",null,{"$f":"WithdrawLabel","v":"[---Withdraw---]"},null,null,null,null,"Christian Haas (bor)",null,null,null,null,null,null,null,"David Scherbantin (roy)"]
[null,"Jason Pisani (bor)",null,null,null,null,null,null,"Sébastien Rochez (ste)",null,null,null,null,null,null,null,"Jason Pisani (bor)"]
[null,"Daniel Scheen (tib)",null,null,null,null,null,null,"Georgios Dimakeas (rol)",null,null,null,null,null,null,null,"Daniel Scheen (tib)"]
[null,"Charles Aquilina (bor)",null,null,null,null,null,null,"Robert Green (nfc)",null,null,null,null,null,null,null,"Charles Aquilina (bor)"]
[null,"Pasquale Torano (fer)",null,null,null,null,null,null,"Athanasios Chaliotis (atl)",null,null,null,null,null,null,null,"Pasquale Torano (fer)"]
[null,"Lazaros Papakonstantinou (atl)",null,null,null,null,null,null,"Peter Erb (sub)",null,null,null,null,null,null,null,"Lazaros Papakonstantinou (atl)"]
[null,"David Busch (bor)",null,null,null,null,null,null,"Marco Pinausi (gor)",null,null,null,null,null,null,null,"David Busch (bor)"]
[null,"John Zammit (ste)",null,null,null,null,null,null,"Karl Vranovitz (roy)",null,null,null,null,null,null,null,"John Zammit (ste)"]
[null,"Massimiliano Croatti (msa)",null,null,null,null,null,null,"Fabio Domenico ()",null,null,null,null,null,null,null,"Massimiliano Croatti (msa)"]
[null,"Francesco Torano (msa)",null,null,null,null,null,null,"Gábor Baross (wie)",null,null,null,null,null,null,null,"Francesco Torano (msa)"]
[null,"Christian Haas (bor)",null,null,null,null,null,null,"Apollon Dimakeas (rol)",null,null,null,null,null,null,null,"Christian Haas (bor)"]
[null,"Günther Bamberzky (crh)",null,null,null,null,null,null,"Phillipos Kordantonopoulos (rol)",null,null,null,null,null,null,null,"Günther Bamberzky (crh)"]
[null,"Panagiotis Krommydas (hop)",null,null,null,null,null,null,"Katharina Waldorf-Busch (bor)",null,null,null,null,null,null,null,"Panagiotis Krommydas (hop)"]
[null,"Sébastien Rochez (ste)",null,null,null,null,null,null,"Daniela Grünberg (sch)",null,null,null,null,null,null,null,"Sébastien Rochez (ste)"]
[null,"Joseph Mifsud (fia)",null,null,null,null,null,null,"Katharina Ocenasek (roy)",null,null,null,null,null,null,null,"Joseph Mifsud (fia)"]
[null,"Georgios Dimakeas (rol)",null,null,null,null,null,null,"Alfred Strommer (wie)",null,null,null,null,null,null,null,"Georgios Dimakeas (rol)"]
[null,"Robert Green (nfc)",null,null,null,null,null,null,"Florian Daxböck (wie)",null,null,null,null,null,null,null,"Robert Green (nfc)"]
[null,"Athanasios Chaliotis (atl)",null,null,null,null,null,null,"Christian Haas (bor)",null,null,null,null,null,null,null,"Athanasios Chaliotis (atl)"]
[null,"Peter Erb (sub)",null,null,null,null,null,null,"Stefan Sandner (roy)",null,null,null,null,null,null,null,"Peter Erb (sub)"]
[null,"Marco Pinausi (gor)",null,null,null,null,null,null,"Stefan Sandner (roy)",null,null,null,null,null,null,null,"Marco Pinausi (gor)"]
[null,"Karl Vranovitz (roy)",null,null,null,null,null,null,"Robert Lenz (roy)",null,null,null,null,null,null,null,"Karl Vranovitz (roy)"]
[null,"Fabio Domenico ()",null,null,null,null,null,null,"Robert Lenz (roy)",null,null,null,null,null,null,null,"Dominik Eder (roy)"]
[null,"Roman Bernhardsgrütter (lis)",null,null,null,null,null,null,"Heinz Eder (roy)",null,null,null,null,null,null,null,"Fabio Domenico ()"]
[null,"Gábor Baross (wie)",null,null,null,null,null,null,"Christian Blümel (wie)",null,null,null,null,null,null,null,"Roman Bernhardsgrütter (lis)"]
[null,"Alfred Strommer (wie)",null,null,null,null,null,null,"Manfred Pawlica (wie)",null,null,null,null,null,null,null,"Gábor Baross (wie)"]
[null,"Marco Zucchi (pin)",null,null,null,null,null,null,"Marios Strommer (wie)",null,null,null,null,null,null,null,"Apollon Dimakeas (rol)"]
[null,"Florian Daxböck (wie)",null,null,null,null,null,null,"Igor Ljubisavljevic (wie)",null,null,null,null,null,null,null,"Phillipos Kordantonopoulos (rol)"]
[null,"Christian Haas (bor)",null,null,null,null,null,null,{"$f":"WithdrawLabel","v":"[---Withdraw---]"},null,null,null,null,null,null,null,"Katharina Waldorf-Busch (bor)"]
[null,"Stefan Sandner (roy)",null,null,null,null,null,null,null,null,null,null,null,null,null,null,"Daniela Grünberg (sch)"]
[null,"Stefan Sandner (roy)",null,null,null,null,null,null,null,null,null,null,null,null,null,null,"Katharina Ocenasek (roy)"]
[null,"Robert Lenz (roy)",null,null,null,null,null,null,null,null,null,null,null,null,null,null,"Alfred Strommer (wie)"]
[null,"Robert Lenz (roy)",null,null,null,null,null,null,null,null,null,null,null,null,null,null,"Marco Zucchi (pin)"]
[null,"Heinz Eder (roy)",null,null,null,null,null,null,null,null,null,null,null,null,null,null,"Florian Daxböck (wie)"]
[null,"Christian Blümel (wie)",null,null,null,null,null,null,null,null,null,null,null,null,null,null,"Christian Haas (bor)"]
[null,"Manfred Pawlica (wie)",null,null,null,null,null,null,null,null,null,null,null,null,null,null,"Daniel Eder (roy)"]
[null,"Marios Strommer (wie)",null,null,null,null,null,null,null,null,null,null,null,null,null,null,"Stefan Sandner (roy)"]
[null,"Igor Ljubisavljevic (wie)",null,null,null,null,null,null,null,null,null,null,null,null,null,null,"Stefan Sandner (roy)"]
[null,null,null,null,null,null,null,null,null,null,null,null,null,null,null,null,"Robert Lenz (roy)"]
[null,null,null,null,null,null,null,null,null,null,null,null,null,null,null,null,"Robert Lenz (roy)"]
[null,null,null,null,null,null,null,null,null,null,null,null,null,null,null,null,"Heinz Eder (roy)"]
[null,null,null,null,null,null,null,null,null,null,null,null,null,null,null,null,"Christian Blümel (wie)"]
[null,null,null,null,null,null,null,null,null,null,null,null,null,null,null,null,"Manfred Pawlica (wie)"]
[null,null,null,null,null,null,null,null,null,null,null,null,null,null,null,null,"Marios Strommer (wie)"]
[null,null,null,null,null,null,null,null,null,null,null,null,null,null,null,null,"Igor Ljubisavljevic (wie)"]

{"sheet":"FISTFFormulas","index":13,"n_rows":1212,"n_cols":96,"rows_kept":1212,"cut":false,"hidden":true,"merged":[[2,82,2,95],[3,82,4,82],[3,83,3,90],[3,91,4,91],[3,93,4,93],[3,94,4,94],[3,95,4,95],[2,68,2,80],[3,68,4,68],[3,69,3,75],[3,76,4,76],[3,78,4,78],[3,79,4,79],[3,80,4,80],[2,55,2,66],[3,55,4,55],[3,56,3,61],[3,62,4,62],[3,64,4,64],[3,65,4,65],[3,66,4,66],[2,43,2,53],[3,43,4,43],[3,44,3,48],[3,49,4,49],[3,51,4,51],[3,52,4,52],[3,53,4,53],[2,32,2,41],[3,32,4,32],[3,33,3,36],[3,37,4,37],[3,39,4,39],[3,40,4,40],[3,41,4,41],[2,22,2,30],[3,22,4,22],[3,23,3,25],[3,26,4,26],[3,28,4,28],[3,29,4,29],[3,30,4,30],[135,7,135,8],[134,2,134,8],[135,2,136,2],[135,3,136,3],[135,4,136,4],[135,5,136,5],[3,13,3,15],[3,16,4,16],[3,18,4,18],[2,12,2,20],[3,12,4,12],[3,19,4,19],[3,20,4,20],[2,1,2,9],[3,1,4,1],[3,2,3,4],[3,7,4,7],[3,8,4,8],[3,9,4,9],[3,5,4,5]]}
[null,{"$f":"N_FISTFCompetitionFormula","v":"FISTF competition formulas"}]
[]
[null,{"$f":"N_MatchOrganisationFor3","v":"Organisation of matches with mainly groups of 3"},null,null,null,null,null,null,null,null,null,null,{"$f":"N_MatchOrganisationFor4","v":"Organisation of matches with mainly groups of 4"},null,null,null,null,null,null,null,null,null,{"$f":"N_MatchOrganisationFor5","v":"Organisation of matches with mainly groups of 5"},null,null,null,null,null,null,null,null,null,{"$f":"N_MatchOrganisationFor6","v":"Organisation of matches with mainly groups of 6"},null,null,null,null,null,null,null,null,null,null,{"$f":"N_MatchOrganisationFor7","v":"Organisation of matches with mainly groups of 7"},null,null,null,null,null,null,null,null,null,null,null,{"$f":"N_MatchOrganisationFor8","v":"Organisation of matches with mainly groups of 8"},null,null,null,null,null,null,null,null,null,null,null,null,{"$f":"N_MatchOrganisationFor9","v":"Organisation of matches with mainly groups of 9"},null,null,null,null,null,null,null,null,null,null,null,null,null,{"$f":"N_MatchOrganisationFor10","v":"Organisation of matches with mainly groups of 10"}]
[null,{"$f":"N_NbPlayers","v":"Nb Players"},{"$f":"N_NbGroupsOf","v":"Nb Groups of …"},null,null,{"$f":"N_TotalNbGroups","v":"Total Nb Groups"},null,{"$f":"N_QualifiedPlayers","v":"Qualified Players"},{"$f":"N_NbPlayOffMatches","v":"Nb Play Off Matches"},{"$f":"N_NbLastPlayers","v":"Nb Last Players"},null,null,{"$f":"N_NbPlayers","v":"Nb Players"},{"$f":"N_NbGroupsOf","v":"Nb Groups of …"},null,null,{"$f":"N_TotalNbGroups","v":"Total Nb Groups"},null,{"$f":"N_QualifiedPlayers","v":"Qualified Players"},{"$f":"N_NbPlayOffMatches","v":"Nb Play Off Matches"},{"$f":"N_NbLastPlayers","v":"Nb Last Players"},null,{"$f":"N_NbPlayers","v":"Nb Players"},{"$f":"N_NbGroupsOf","v":"Nb Groups of …"},null,null,{"$f":"N_TotalNbGroups","v":"Total Nb Groups"},null,{"$f":"N_QualifiedPlayers","v":"Qualified Players"},{"$f":"N_NbPlayOffMatches","v":"Nb Play Off Matches"},{"$f":"N_NbLastPlayers","v":"Nb Last Players"},null,{"$f":"N_NbPlayers","v":"Nb Players"},{"$f":"N_NbGroupsOf","v":"Nb Groups of …"},null,null,null,{"$f":"N_TotalNbGroups","v":"Total Nb Groups"},null,{"$f":"N_QualifiedPlayers","v":"Qualified Players"},{"$f":"N_NbPlayOffMatches","v":"Nb Play Off Matches"},{"$f":"N_NbLastPlayers","v":"Nb Last Players"},null,{"$f":"N_NbPlayers","v":"Nb Players"},{"$f":"N_NbGroupsOf","v":"Nb Groups of …"},null,null,null,null,{"$f":"N_TotalNbGroups","v":"Total Nb Groups"},null,{"$f":"N_QualifiedPlayers","v":"Qualified Players"},{"$f":"N_NbPlayOffMatches","v":"Nb Play Off Matches"},{"$f":"N_NbLastPlayers","v":"Nb Last Players"},null,{"$f":"N_NbPlayers","v":"Nb Players"},{"$f":"N_NbGroupsOf","v":"Nb Groups of …"},null,null,null,null,null,{"$f":"N_TotalNbGroups","v":"Total Nb Groups"},null,{"$f":"N_QualifiedPlayers","v":"Qualified Players"},{"$f":"N_NbPlayOffMatches","v":"Nb Play Off Matches"},{"$f":"N_NbLastPlayers","v":"Nb Last Players"},null,{"$f":"N_NbPlayers","v":"Nb Players"},{"$f":"N_NbGroupsOf","v":"Nb Groups of …"},null,null,null,null,null,null,{"$f":"N_TotalNbGroups","v":"Total Nb Groups"},null,{"$f":"N_QualifiedPlayers","v":"Qualified Players"},{"$f":"N_NbPlayOffMatches","v":"Nb Play Off Matches"},{"$f":"N_NbLastPlayers","v":"Nb Last Players"},null,{"$f":"N_NbPlayers","v":"Nb Players"},{"$f":"N_NbGroupsOf","v":"Nb Groups of …"},null,null,null,null,null,null,null,{"$f":"N_TotalNbGroups","v":"Total Nb Groups"},null,{"$f":"N_QualifiedPlayers","v":"Qualified Players"},{"$f":"N_NbPlayOffMatches","v":"Nb Play Off Matches"},{"$f":"N_NbLastPlayers","v":"Nb Last Players"}]
[null,null,3,4,5,null,null,null,null,null,null,null,null,3,4,5,null,null,null,null,null,null,null,3,4,5,null,null,null,null,null,null,null,3,4,5,6,null,null,null,null,null,null,null,3,4,5,6,7,null,null,null,null,null,null,null,3,4,5,6,7,8,null,null,null,null,null,null,null,3,4,5,6,7,8,9,null,null,null,null,null,null,null,3,4,5,6,7,8,9,10]
[null,3,1,null,null,{"$f":"SUM(C6:E6)","v":1},null,0,0,2,null,null,3,1,null,null,{"$f":"SUM(N6:P6)","v":1},null,0,0,2,null,3,1,null,null,{"$f":"SUM(X6:Z6)","v":1},null,0,0,2,null,3,1,null,null,null,{"$f":"SUM(AH6:AK6)","v":1},null,0,0,2,null,3,1,null,null,null,null,{"$f":"SUM(AS6:AW6)","v":1},null,0,0,2,null,3,1,null,null,null,null,null,{"$f":"SUM(BE6:BJ6)","v":1},null,0,0,2,null,3,1,null,null,null,null,null,null,{"$f":"SUM(BR6:BX6)","v":1},null,0,0,2,null,3,1,null,null,null,null,null,null,null,{"$f":"SUM(CF6:CM6)","v":1},null,0,0,2]
[null,4,null,1,null,1,null,0,0,2,null,null,4,null,1,null,1,null,0,0,2,null,4,null,1,null,1,null,0,0,2,null,4,null,1,null,null,1,null,0,0,2,null,4,null,1,null,null,null,1,null,0,0,2,null,4,null,1,null,null,null,null,1,null,0,0,2,null,4,null,1,null,null,null,null,null,1,null,0,0,2,null,4,null,1,null,null,null,null,null,null,1,null,0,0,2]
[null,5,null,null,1,1,null,0,0,2,null,null,5,null,null,1,1,null,0,0,2,null,5,null,null,1,1,null,0,0,2,null,5,null,null,1,null,1,null,0,0,2,null,5,null,null,1,null,null,1,null,0,0,2,null,5,null,null,1,null,null,null,1,null,0,0,2,null,5,null,null,1,null,null,null,null,1,null,0,0,2,null,5,null,null,1,null,null,null,null,null,1,null,0,0,2]
[null,6,2,0,null,2,null,0,0,4,null,null,6,2,0,null,2,null,0,0,4,null,6,2,null,null,2,null,0,0,4,null,6,null,null,null,1,1,null,0,0,2,null,6,null,null,null,1,null,1,null,0,0,2,null,6,null,null,null,1,null,null,1,null,0,0,2,null,6,null,null,null,1,null,null,null,1,null,0,0,2,null,6,null,null,null,1,null,null,null,null,1,null,0,0,2]
[null,7,1,1,null,2,null,0,0,4,null,null,7,1,1,null,2,null,0,0,4,null,7,1,1,null,2,null,0,0,4,null,7,1,1,null,null,2,null,0,0,4,null,7,null,null,null,null,1,1,null,0,0,2,null,7,null,null,null,null,1,null,1,null,0,0,2,null,7,null,null,null,null,1,null,null,1,null,0,0,2,null,7,null,null,null,null,1,null,null,null,1,null,0,0,2]
[null,8,0,2,null,2,null,0,0,4,null,null,8,0,2,null,2,null,0,0,4,null,8,null,2,null,2,null,0,0,4,null,8,null,2,null,null,2,null,0,0,4,null,8,null,2,null,null,null,2,null,0,0,4,null,8,null,null,null,null,null,1,1,null,0,0,2,null,8,null,null,null,null,null,1,null,1,null,0,0,2,null,8,null,null,null,null,null,1,null,null,1,null,0,0,2]
[null,9,3,0,null,3,null,0,2,4,null,null,9,3,0,null,3,null,0,2,4,null,9,null,1,1,2,null,0,0,4,null,9,null,1,1,null,2,null,0,0,4,null,9,null,1,1,null,null,2,null,0,0,4,null,9,null,1,1,null,null,null,2,null,0,0,4,null,9,null,null,null,null,null,null,1,1,null,0,0,2,null,9,null,null,null,null,null,null,1,null,1,null,0,0,2]
[null,10,2,1,null,3,null,0,2,4,null,null,10,2,1,null,3,null,0,2,4,null,10,null,null,2,2,null,0,0,4,null,10,null,null,2,null,2,null,0,0,4,null,10,null,null,2,null,null,2,null,0,0,4,null,10,null,null,2,null,null,null,2,null,0,0,4,null,10,null,null,2,null,null,null,null,2,null,0,0,4,null,10,null,null,null,null,null,null,null,1,1,null,0,0,2]
[null,11,1,2,null,3,null,0,2,4,null,null,11,1,2,null,3,null,0,2,4,null,11,1,2,null,{"$f":"SUM(X14:Z14)","v":3},null,0,2,4,null,11,null,null,1,1,2,null,0,0,4,null,11,null,null,1,1,null,2,null,0,0,4,null,11,null,null,1,1,null,null,2,null,0,0,4,null,11,null,null,1,1,null,null,null,2,null,0,0,4,null,11,null,null,1,1,null,null,null,null,2,null,0,0,4]
[null,12,4,0,null,4,null,0,0,8,null,null,12,0,3,null,3,null,0,2,4,null,12,null,3,null,{"$f":"SUM(X15:Z15)","v":3},null,0,2,4,null,12,null,null,null,2,2,null,0,0,4,null,12,null,null,null,2,null,2,null,0,0,4,null,12,null,null,null,2,null,null,2,null,0,0,4,null,12,null,null,null,2,null,null,null,2,null,0,0,4,null,12,null,null,null,2,null,null,null,null,2,null,0,0,4]
[null,13,3,1,null,4,null,0,0,8,null,null,13,3,1,null,4,null,0,0,8,null,13,null,2,1,3,null,0,2,4,null,13,null,2,1,null,3,null,0,2,4,null,13,null,null,null,1,1,2,null,0,0,4,null,13,null,null,null,1,1,null,2,null,0,0,4,null,13,null,null,null,1,1,null,null,2,null,0,0,4,null,13,null,null,null,1,1,null,null,null,2,null,0,0,4]
[null,14,2,2,null,4,null,0,0,8,null,null,14,2,2,null,4,null,0,0,8,null,14,null,1,2,3,null,0,2,4,null,14,null,1,2,null,3,null,0,2,4,null,14,null,null,null,null,2,2,null,0,0,4,null,14,null,null,null,null,2,null,2,null,0,0,4,null,14,null,null,null,null,2,null,null,2,null,0,0,4,null,14,null,null,null,null,2,null,null,null,2,null,0,0,4]
[null,15,5,0,null,5,null,0,2,8,null,null,15,1,3,null,4,null,0,0,8,null,15,null,null,3,3,null,0,2,4,null,15,null,null,3,null,3,null,0,2,4,null,15,null,null,3,null,null,3,null,0,2,4,null,15,null,null,null,null,1,1,2,null,0,0,4,null,15,null,null,null,null,1,1,null,2,null,0,0,4,null,15,null,null,null,null,1,1,null,null,2,null,0,0,4]
[null,16,4,1,null,5,null,0,2,8,null,null,16,0,4,null,4,null,0,0,8,null,16,null,4,null,4,null,0,0,8,null,16,null,null,2,1,3,null,0,2,4,null,16,null,null,2,1,null,3,null,0,2,4,null,16,null,null,null,null,null,2,2,null,0,0,4,null,16,null,null,null,null,null,2,null,2,null,0,0,4,null,16,null,null,null,null,null,2,null,null,2,null,0,0,4]
[null,17,3,2,null,5,null,0,2,8,null,null,17,3,2,null,5,null,0,2,8,null,17,null,3,1,4,null,0,0,8,null,17,null,null,1,2,3,null,0,2,4,null,17,null,null,1,2,null,3,null,0,2,4,null,17,null,null,1,2,null,null,3,null,0,2,4,null,17,null,null,null,null,null,1,1,2,null,0,0,4,null,17,null,null,null,null,null,1,1,null,2,null,0,0,4]
[null,18,6,0,null,6,null,0,4,8,null,null,18,2,3,null,5,null,0,2,8,null,18,null,2,2,4,null,0,0,8,null,18,null,null,null,3,3,null,0,2,4,null,18,null,null,null,3,null,3,null,0,2,4,null,18,null,null,null,3,null,null,3,null,0,2,4,null,18,null,null,null,null,null,null,2,2,null,0,0,4,null,18,null,null,null,null,null,null,2,null,2,null,0,0,4]
[null,19,5,1,null,6,null,0,4,8,null,null,19,1,4,null,5,null,0,2,8,null,19,null,1,3,4,null,0,0,8,null,19,null,1,3,null,4,null,0,0,8,null,19,null,null,null,2,1,3,null,0,2,4,null,19,null,null,null,2,1,null,3,null,0,2,4,null,19,null,null,null,2,1,null,null,3,null,0,2,4,null,19,null,null,null,null,null,null,1,1,2,null,0,0,4]
[null,20,4,2,null,6,null,0,4,8,null,null,20,0,5,null,5,null,0,2,8,null,20,null,null,4,4,null,0,0,8,null,20,null,null,4,null,4,null,0,0,8,null,20,null,null,null,1,2,3,null,0,2,4,null,20,null,null,null,1,2,null,3,null,0,2,4,null,20,null,null,null,1,2,null,null,3,null,0,2,4,null,20,null,null,null,null,null,null,null,2,2,null,0,0,4]
[null,21,7,0,null,7,null,0,6,8,null,null,21,3,3,null,6,null,0,4,8,null,21,null,4,1,5,null,0,2,8,null,21,null,null,3,1,4,null,0,0,8,null,21,null,null,null,null,3,3,null,0,2,4,null,21,null,null,null,null,3,null,3,null,0,2,4,null,21,null,null,null,null,3,null,null,3,null,0,2,4,null,21,null,null,null,null,3,null,null,null,3,null,0,{"$f":"CQ14+2","v":2},4]
[null,22,6,1,null,7,null,0,6,8,null,null,22,2,4,null,6,null,0,4,8,null,22,null,3,2,5,null,0,2,8,null,22,null,null,2,2,4,null,0,0,8,null,22,null,null,2,2,null,4,null,0,0,8,null,22,null,null,null,null,2,1,3,null,0,2,4,null,22,null,null,null,null,2,1,null,3,null,0,2,4,null,22,null,null,null,null,2,1,null,null,3,null,0,{"$f":"CQ15+2","v":2},4]
[null,23,5,2,null,7,null,0,6,8,null,null,23,1,5,null,6,null,0,4,8,null,23,null,2,3,5,null,0,2,8,null,23,null,null,1,3,4,null,0,0,8,null,23,null,null,1,3,null,4,null,0,0,8,null,23,null,null,null,null,1,2,3,null,0,2,4,null,23,null,null,null,null,1,2,null,3,null,0,2,4,null,23,null,null,null,null,1,2,null,null,3,null,0,2,4]
[null,24,8,0,null,8,null,0,0,16,null,null,24,0,6,null,6,null,0,4,8,null,24,null,1,4,5,null,0,2,8,null,24,null,null,null,4,4,null,0,0,8,null,24,null,null,null,4,null,4,null,0,0,8,null,24,null,null,null,null,null,3,3,null,0,2,4,null,24,null,null,null,null,null,3,null,3,null,0,2,4,null,24,null,null,null,null,null,3,null,null,3,null,0,2,4]
[null,25,7,1,null,8,null,0,0,16,null,null,25,3,4,null,7,null,0,6,8,null,25,null,null,5,5,null,0,2,8,null,25,null,null,5,null,5,null,0,2,8,null,25,null,null,null,3,1,4,null,0,0,8,null,25,null,null,null,3,1,null,4,null,0,0,8,null,25,null,null,null,null,null,2,1,3,null,0,2,4,null,25,null,null,null,null,null,2,1,null,3,null,0,2,4]
[null,26,6,2,null,8,null,0,0,16,null,null,26,2,5,null,7,null,0,6,8,null,26,null,4,{"$f":"Z24+1","v":2},6,null,0,4,8,null,26,null,null,4,1,5,null,0,2,8,null,26,null,null,null,2,2,4,null,0,0,8,null,26,null,null,null,2,2,null,4,null,0,0,8,null,26,null,null,null,null,null,1,2,3,null,0,2,4,null,26,null,null,null,null,null,1,2,null,3,null,0,2,4]
[null,27,9,0,null,9,null,0,2,16,null,null,27,1,6,null,7,null,0,6,8,null,27,null,3,3,6,null,0,4,8,null,27,null,null,3,2,5,null,0,2,8,null,27,null,null,null,1,3,4,null,0,0,8,null,27,null,null,null,1,3,null,4,null,0,0,8,null,27,null,null,null,null,null,null,3,3,null,0,2,4,null,27,null,null,null,null,null,null,3,null,3,null,0,2,4]
[null,28,8,1,null,9,null,0,2,16,null,null,28,0,7,null,7,null,0,6,8,null,28,null,2,4,6,null,0,4,8,null,28,null,null,2,3,5,null,0,2,8,null,28,null,null,null,null,4,4,null,0,0,8,null,28,null,null,null,null,4,null,4,null,0,0,8,null,28,null,null,null,null,4,null,null,4,null,0,0,8,null,28,null,null,null,null,null,null,2,1,3,null,0,2,4]
[null,29,7,2,null,9,null,0,2,16,null,null,29,3,5,null,8,null,0,0,16,null,29,null,1,5,6,null,0,4,8,null,29,null,null,1,4,5,null,0,2,8,null,29,null,null,1,4,null,5,null,0,{"$f":"BA25+2","v":2},8,null,29,null,null,null,null,3,1,4,null,0,0,8,null,29,null,null,null,null,3,1,null,4,null,0,0,8,null,29,null,null,null,null,null,null,1,2,3,null,0,2,4]
[null,30,10,0,null,10,null,0,4,16,null,null,30,2,6,null,8,null,0,0,16,null,30,null,null,6,6,null,0,4,8,null,30,null,null,null,5,5,null,0,2,8,null,30,null,null,null,5,null,5,null,0,{"$f":"BA26+2","v":2},8,null,30,null,null,null,null,2,2,4,null,0,0,8,null,30,null,null,null,null,2,2,null,4,null,0,0,8,null,30,null,null,null,null,null,null,null,3,3,null,0,2,4]
[null,31,9,1,null,10,null,0,4,16,null,null,31,1,7,null,8,null,0,0,16,null,31,null,4,3,7,null,0,6,8,null,31,null,null,5,1,6,null,0,4,8,null,31,null,null,null,4,1,5,null,0,2,8,null,31,null,null,null,null,1,3,4,null,0,0,8,null,31,null,null,null,null,1,3,null,4,null,0,0,8,null,31,null,null,null,null,1,3,null,null,4,null,0,0,8]
[null,32,8,2,null,10,null,0,4,16,null,null,32,0,8,null,8,null,0,0,16,null,32,null,3,4,7,null,0,6,8,null,32,null,null,4,2,6,null,0,4,8,null,32,null,null,null,3,2,5,null,0,2,8,null,32,null,null,null,null,null,4,4,null,0,0,8,null,32,null,null,null,null,null,4,null,4,null,0,0,8,null,32,null,null,null,null,null,4,null,null,4,null,0,0,8]
[null,33,11,0,null,11,null,0,6,16,null,null,33,3,6,null,9,null,0,2,16,null,33,null,2,5,7,null,0,6,8,null,33,null,null,3,3,6,null,0,4,8,null,33,null,null,null,2,3,5,null,0,2,8,null,33,null,null,null,2,3,null,5,null,0,{"$f":"BN28+2","v":2},8,null,33,null,null,null,null,null,3,1,4,null,0,0,8,null,33,null,null,null,null,null,3,1,null,4,null,0,0,8]
[null,34,10,1,null,11,null,0,6,16,null,null,34,2,7,null,9,null,0,2,16,null,34,null,1,6,7,null,0,6,8,null,34,null,null,2,4,6,null,0,4,8,null,34,null,null,null,1,4,5,null,0,2,8,null,34,null,null,null,1,4,null,5,null,0,{"$f":"BN29+2","v":2},8,null,34,null,null,null,null,null,2,2,4,null,0,0,8,null,34,null,null,null,null,null,2,2,null,4,null,0,0,8]
[null,35,9,2,null,11,null,0,6,16,null,null,35,1,8,null,9,null,0,2,16,null,35,null,null,7,7,null,0,6,8,null,35,null,null,1,5,{"$f":"SUM(AH38:AK38)","v":6},null,0,4,8,null,35,null,null,null,null,5,{"$f":"SUM(AS38:AW38)","v":5},null,0,2,8,null,35,null,null,null,null,5,null,{"$f":"SUM(BE38:BJ38)","v":5},null,0,2,8,null,35,null,null,null,null,null,1,3,{"$f":"SUM(BR38:BX38)","v":4},null,0,0,8,null,35,null,null,null,null,null,1,3,null,{"$f":"SUM(CF38:CM38)","v":4},null,0,0,8]
[null,36,12,0,null,12,null,0,8,16,null,null,36,0,9,null,9,null,0,2,16,null,36,null,4,{"$f":"Z34+1","v":4},8,null,0,0,16,null,36,null,null,null,6,6,null,0,4,8,null,36,null,null,null,6,null,6,null,0,4,8,null,36,null,null,null,null,4,1,5,null,0,2,8,null,36,null,null,null,null,null,null,4,4,null,0,0,8,null,36,null,null,null,null,null,null,4,null,4,null,0,0,8]
[null,37,11,1,null,12,null,0,8,16,null,null,37,3,7,null,10,null,0,4,16,null,37,null,3,{"$f":"Z35+1","v":5},8,null,0,0,16,null,37,null,null,5,{"$f":"AK34+1","v":2},7,null,0,6,8,null,37,null,null,null,5,1,6,null,0,4,8,null,37,null,null,null,null,3,2,5,null,0,2,8,null,37,null,null,null,null,3,2,null,5,null,0,{"$f":"CB31+2","v":2},8,null,37,null,null,null,null,null,null,3,1,4,null,0,0,8]
[null,38,10,2,null,12,null,0,8,16,null,null,38,2,8,null,10,null,0,4,16,null,38,null,2,6,8,null,0,0,16,null,38,null,null,4,{"$f":"AK35+1","v":3},7,null,0,6,8,null,38,null,null,null,4,2,6,null,0,4,8,null,38,null,null,null,null,2,3,5,null,0,2,8,null,38,null,null,null,null,2,3,null,5,null,0,{"$f":"CB32+2","v":2},8,null,38,null,null,null,null,null,null,2,2,4,null,0,0,8]
[null,39,13,0,null,13,null,0,10,16,null,null,39,1,9,null,10,null,0,4,16,null,39,null,1,7,8,null,0,0,16,null,39,null,null,3,4,7,null,0,6,8,null,39,null,null,null,3,3,6,null,0,4,8,null,39,null,null,null,null,1,4,5,null,0,2,8,null,39,null,null,null,null,1,4,null,5,null,0,2,8,null,39,null,null,null,null,null,null,1,3,4,null,0,0,8]
[null,40,12,1,null,13,null,0,10,16,null,null,40,0,10,null,10,null,0,4,16,null,40,null,null,8,8,null,0,0,16,null,40,null,null,2,5,7,null,0,6,8,null,40,null,null,null,2,4,6,null,0,4,8,null,40,null,null,null,null,null,5,5,null,0,2,8,null,40,null,null,null,null,null,5,null,5,null,0,2,8,null,40,null,null,null,null,null,null,null,4,4,null,0,0,8]
[null,41,11,2,null,13,null,0,10,16,null,null,41,3,8,null,11,null,0,6,16,null,41,null,4,5,9,null,0,2,16,null,41,null,null,1,6,7,null,0,6,8,null,41,null,null,null,1,5,6,null,0,4,8,null,41,null,null,null,1,5,null,6,null,0,4,8,null,41,null,null,null,null,null,4,1,5,null,0,2,8,null,41,null,null,null,null,null,4,1,null,5,null,0,2,8]
[null,42,14,0,null,14,null,0,12,16,null,null,42,2,9,null,11,null,0,6,16,null,42,null,3,6,9,null,0,2,16,null,42,null,null,null,7,7,null,0,6,8,null,42,null,null,null,null,6,6,null,0,4,8,null,42,null,null,null,null,6,null,6,null,0,4,8,null,42,null,null,null,null,null,3,2,5,null,0,2,8,null,42,null,null,null,null,null,3,2,null,5,null,0,2,8]
[null,43,13,1,null,14,null,0,12,16,null,null,43,1,10,null,11,null,0,6,16,null,43,null,2,7,9,null,0,2,16,null,43,null,null,5,3,8,null,0,0,16,null,43,null,null,null,6,1,7,null,0,6,8,null,43,null,null,null,null,5,1,6,null,0,4,8,null,43,null,null,null,null,null,2,3,5,null,0,2,8,null,43,null,null,null,null,null,2,3,null,5,null,0,2,8]
[null,44,12,2,null,14,null,0,12,16,null,null,44,0,11,null,11,null,0,6,16,null,44,null,1,8,9,null,0,2,16,null,44,null,null,4,4,8,null,0,0,16,null,44,null,null,null,5,2,7,null,0,6,8,null,44,null,null,null,null,4,2,6,null,0,4,8,null,44,null,null,null,null,null,1,4,5,null,0,2,8,null,44,null,null,null,null,null,1,4,null,5,null,0,2,8]
[null,45,15,0,null,15,null,0,14,16,null,null,45,3,9,null,12,null,0,8,16,null,45,null,null,9,9,null,0,2,16,null,45,null,null,3,5,8,null,0,0,16,null,45,null,null,null,4,3,7,null,0,6,8,null,45,null,null,null,null,3,3,6,null,0,4,8,null,45,null,null,null,null,null,null,5,5,null,0,2,8,null,45,null,null,null,null,null,null,5,null,5,null,0,2,8]
[null,46,14,1,null,15,null,0,14,16,null,null,46,2,10,null,12,null,0,8,16,null,46,null,4,6,10,null,0,4,16,null,46,null,null,2,6,8,null,0,0,16,null,46,null,null,null,3,4,7,null,0,6,8,null,46,null,null,null,null,2,4,6,null,0,4,8,null,46,null,null,null,null,2,4,null,6,null,0,4,8,null,46,null,null,null,null,null,null,4,1,5,null,0,2,8]
[null,47,13,2,null,15,null,0,14,16,null,null,47,1,11,null,12,null,0,8,16,null,47,null,3,7,10,null,0,4,16,null,47,null,null,1,7,8,null,0,0,16,null,47,null,null,null,2,5,7,null,0,6,8,null,47,null,null,null,null,1,5,6,null,0,4,8,null,47,null,null,null,null,1,5,null,6,null,0,4,8,null,47,null,null,null,null,null,null,3,2,5,null,0,2,8]
[null,48,16,0,null,16,null,0,0,32,null,null,48,0,12,null,12,null,0,8,16,null,48,null,2,8,10,null,0,4,16,null,48,null,null,null,8,8,null,0,0,16,null,48,null,null,null,1,6,7,null,0,6,8,null,48,null,null,null,null,null,6,6,null,0,4,8,null,48,null,null,null,null,null,6,null,6,null,0,4,8,null,48,null,null,null,null,null,null,2,3,5,null,0,2,8]
[null,49,15,1,null,16,null,0,0,32,null,null,49,3,10,null,13,null,0,10,16,null,49,null,1,9,10,null,0,4,16,null,49,null,null,5,4,9,null,0,{"$f":"AO46+2","v":2},16,null,49,null,null,null,null,7,7,null,0,6,8,null,49,null,null,null,null,7,null,7,null,0,6,8,null,49,null,null,null,null,null,5,1,6,null,0,4,8,null,49,null,null,null,null,null,null,1,4,5,null,0,2,8]
[null,50,14,2,null,16,null,0,0,32,null,null,50,2,11,null,13,null,0,10,16,null,50,null,null,10,10,null,0,4,16,null,50,null,null,4,5,9,null,0,{"$f":"AO52","v":2},16,null,50,null,null,null,6,{"$f":"AW46+1","v":2},8,null,0,0,16,null,50,null,null,null,null,6,1,7,null,0,6,8,null,50,null,null,null,null,null,4,2,6,null,0,4,8,null,50,null,null,null,null,null,null,null,5,5,null,0,2,8]
[null,51,17,0,null,17,null,0,2,32,null,null,51,1,12,null,13,null,0,10,16,null,51,null,4,7,11,null,0,6,16,null,51,null,null,3,6,9,null,0,{"$f":"AO53","v":2},16,null,51,null,null,null,5,{"$f":"AW47+1","v":3},8,null,0,0,16,null,51,null,null,null,null,5,2,7,null,0,6,8,null,51,null,null,null,null,null,3,3,6,null,0,4,8,null,51,null,null,null,null,null,3,3,null,6,null,0,4,8]
[null,52,16,1,null,17,null,0,2,32,null,null,52,0,13,null,13,null,0,10,16,null,52,null,3,8,11,null,0,6,16,null,52,null,null,2,7,9,null,0,{"$f":"AO54","v":2},16,null,52,null,null,null,4,4,8,null,0,0,16,null,52,null,null,null,null,4,3,7,null,0,6,8,null,52,null,null,null,null,null,2,4,6,null,0,4,8,null,52,null,null,null,null,null,2,4,null,6,null,0,4,8]
[null,53,15,2,null,17,null,0,2,32,null,null,53,3,11,null,14,null,0,12,16,null,53,null,2,9,11,null,0,6,16,null,53,null,null,1,8,9,null,0,{"$f":"AO55","v":2},16,null,53,null,null,null,3,5,8,null,0,0,16,null,53,null,null,null,null,3,4,7,null,0,6,8,null,53,null,null,null,null,null,1,5,6,null,0,4,8,null,53,null,null,null,null,null,1,5,null,6,null,0,4,8]
[null,54,18,0,null,18,null,0,4,32,null,null,54,2,12,null,14,null,0,12,16,null,54,null,1,10,11,null,0,6,16,null,54,null,null,null,9,9,null,0,{"$f":"AO56","v":2},16,null,54,null,null,null,2,6,8,null,0,0,16,null,54,null,null,null,null,2,5,7,null,0,6,8,null,54,null,null,null,null,null,null,6,6,null,0,4,8,null,54,null,null,null,null,null,null,6,null,6,null,0,4,8]
[null,55,17,1,null,18,null,0,4,32,null,null,55,1,13,null,14,null,0,12,16,null,55,null,null,11,11,null,0,6,16,null,55,null,null,5,5,10,null,0,{"$f":"AO52+2","v":4},16,null,55,null,null,null,1,7,8,null,0,0,16,null,55,null,null,null,null,1,6,7,null,0,6,8,null,55,null,null,null,null,1,6,null,7,null,0,6,8,null,55,null,null,null,null,null,null,5,1,6,null,0,4,8]
[null,56,16,2,null,18,null,0,4,32,null,null,56,0,14,null,14,null,0,12,16,null,56,null,4,8,12,null,0,8,16,null,56,null,null,4,6,10,null,0,{"$f":"AO58","v":4},16,null,56,null,null,null,null,8,8,null,0,0,16,null,56,null,null,null,null,null,7,7,null,0,6,8,null,56,null,null,null,null,null,7,null,7,null,0,6,8,null,56,null,null,null,null,null,null,4,2,6,null,0,4,8]
[null,57,19,0,null,19,null,0,6,32,null,null,57,3,12,null,15,null,0,14,16,null,57,null,3,9,12,null,0,8,16,null,57,null,null,3,7,10,null,0,{"$f":"AO59","v":4},16,null,57,null,null,null,6,3,9,null,0,2,16,null,57,null,null,null,null,7,1,8,null,0,0,16,null,57,null,null,null,null,null,6,1,7,null,0,6,8,null,57,null,null,null,null,null,null,3,3,6,null,0,4,8]
[null,58,18,1,null,19,null,0,6,32,null,null,58,2,13,null,15,null,0,14,16,null,58,null,2,10,12,null,0,8,16,null,58,null,null,2,8,10,null,0,{"$f":"AO60","v":4},16,null,58,null,null,null,5,4,9,null,0,2,16,null,58,null,null,null,null,6,2,8,null,0,0,16,null,58,null,null,null,null,null,5,2,7,null,0,6,8,null,58,null,null,null,null,null,null,2,4,6,null,0,4,8]
[null,59,17,2,null,19,null,0,6,32,null,null,59,1,14,null,15,null,0,14,16,null,59,null,1,11,12,null,0,8,16,null,59,null,null,1,9,10,null,0,{"$f":"AO61","v":4},16,null,59,null,null,null,4,5,9,null,0,2,16,null,59,null,null,null,null,5,3,8,null,0,0,16,null,59,null,null,null,null,null,4,3,7,null,0,6,8,null,59,null,null,null,null,null,null,1,5,6,null,0,4,8]
[null,60,20,0,null,20,null,0,8,32,null,null,60,0,15,null,15,null,0,14,16,null,60,null,null,12,12,null,0,8,16,null,60,null,null,null,10,10,null,0,{"$f":"AO62","v":4},16,null,60,null,null,null,3,6,9,null,0,2,16,null,60,null,null,null,null,4,4,8,null,0,0,16,null,60,null,null,null,null,null,3,4,7,null,0,6,8,null,60,null,null,null,null,null,null,null,6,6,null,0,4,8]
[null,61,19,1,null,20,null,0,8,32,null,null,61,3,13,null,16,null,0,0,32,null,61,null,4,9,13,null,0,10,16,null,61,null,null,5,6,11,null,0,{"$f":"AO58+2","v":6},16,null,61,null,null,null,2,7,9,null,0,2,16,null,61,null,null,null,null,3,5,8,null,0,0,16,null,61,null,null,null,null,null,2,5,7,null,0,6,8,null,61,null,null,null,null,null,2,5,null,7,null,0,{"$f":"CQ55+2","v":6},8]
[null,62,18,2,null,20,null,0,8,32,null,null,62,2,14,null,16,null,0,0,32,null,62,null,3,10,13,null,0,10,16,null,62,null,null,4,7,11,null,0,{"$f":"AO64","v":6},16,null,62,null,null,null,1,8,9,null,0,2,16,null,62,null,null,null,null,2,6,8,null,0,0,16,null,62,null,null,null,null,null,1,6,7,null,0,6,8,null,62,null,null,null,null,null,1,6,null,7,null,0,{"$f":"CQ56+2","v":6},8]
[null,63,21,0,null,21,null,0,10,32,null,null,63,1,15,null,16,null,0,0,32,null,63,null,2,11,13,null,0,10,16,null,63,null,null,3,8,11,null,0,{"$f":"AO65","v":6},16,null,63,null,null,null,null,9,9,null,0,2,16,null,63,null,null,null,null,1,7,8,null,0,0,16,null,63,null,null,null,null,null,null,7,7,null,0,6,8,null,63,null,null,null,null,null,null,7,null,7,null,0,{"$f":"CQ57+2","v":6},8]
[null,64,20,1,null,21,null,0,10,32,null,null,64,0,16,null,16,null,0,0,32,null,64,null,1,12,13,null,0,10,16,null,64,null,null,2,9,11,null,0,{"$f":"AO66","v":6},16,null,64,null,null,null,6,4,10,null,0,4,16,null,64,null,null,null,null,null,8,8,null,0,0,16,null,64,null,null,null,null,null,8,null,8,null,0,0,16,null,64,null,null,null,null,null,null,6,1,7,null,0,6,8]
[null,65,19,2,null,21,null,0,10,32,null,null,65,3,14,null,17,null,0,2,32,null,65,null,null,13,13,null,0,10,16,null,65,null,null,1,10,11,null,0,{"$f":"AO67","v":6},16,null,65,null,null,null,5,5,10,null,0,4,16,null,65,null,null,null,null,7,{"$f":"BJ60+1","v":2},9,null,0,{"$f":"BN60+2","v":2},16,null,65,null,null,null,null,null,7,1,8,null,0,0,16,null,65,null,null,null,null,null,null,5,2,7,null,0,6,8]
[null,66,22,0,null,22,null,0,12,32,null,null,66,2,15,null,17,null,0,2,32,null,66,null,4,10,14,null,0,12,16,null,66,null,null,null,11,11,null,0,{"$f":"AO68","v":6},16,null,66,null,null,null,4,6,10,null,0,4,16,null,66,null,null,null,null,6,{"$f":"BJ61+1","v":3},9,null,0,2,16,null,66,null,null,null,null,null,6,2,8,null,0,0,16,null,66,null,null,null,null,null,null,4,3,7,null,0,6,8]
[null,67,21,1,null,{"$f":"SUM(C70:E70)","v":22},null,0,12,32,null,null,67,1,16,null,{"$f":"SUM(N70:P70)","v":17},null,0,2,32,null,67,null,3,11,14,null,0,12,16,null,67,null,null,5,7,{"$f":"SUM(AH70:AK70)","v":12},null,0,{"$f":"AO64+2","v":8},16,null,67,null,null,null,3,7,{"$f":"SUM(AS70:AW70)","v":10},null,0,4,16,null,67,null,null,null,null,5,4,{"$f":"SUM(BE70:BJ70)","v":9},null,0,2,16,null,67,null,null,null,null,null,5,3,{"$f":"SUM(BR70:BX70)","v":8},null,0,0,16,null,67,null,null,null,null,null,null,3,4,{"$f":"SUM(CF70:CM70)","v":7},null,0,6,8]
[null,68,20,2,null,22,null,0,12,32,null,null,68,0,17,null,17,null,0,2,32,null,68,null,2,12,14,null,0,12,16,null,68,null,null,4,8,12,null,0,{"$f":"AO70","v":8},16,null,68,null,null,null,2,8,10,null,0,4,16,null,68,null,null,null,null,4,5,9,null,0,2,16,null,68,null,null,null,null,null,4,4,8,null,0,0,16,null,68,null,null,null,null,null,null,2,5,7,null,0,6,8]
[null,69,23,0,null,23,null,0,14,32,null,null,69,3,15,null,18,null,0,4,32,null,69,null,1,13,14,null,0,12,16,null,69,null,null,3,9,12,null,0,{"$f":"AO71","v":8},16,null,69,null,null,null,1,9,10,null,0,4,16,null,69,null,null,null,null,3,6,9,null,0,2,16,null,69,null,null,null,null,null,3,5,8,null,0,0,16,null,69,null,null,null,null,null,null,1,6,7,null,0,6,8]
[null,70,22,1,null,23,null,0,14,32,null,null,70,2,16,null,18,null,0,4,32,null,70,null,null,14,14,null,0,12,16,null,70,null,null,2,10,12,null,0,{"$f":"AO72","v":8},16,null,70,null,null,null,null,10,10,null,0,4,16,null,70,null,null,null,null,2,7,9,null,0,2,16,null,70,null,null,null,null,null,2,6,8,null,0,0,16,null,70,null,null,null,null,null,null,null,7,7,null,0,6,8]
[null,71,21,2,null,23,null,0,14,32,null,null,71,1,17,null,18,null,0,4,32,null,71,null,4,11,15,null,0,14,16,null,71,null,null,1,11,12,null,0,{"$f":"AO73","v":8},16,null,71,null,null,null,6,5,11,null,0,6,16,null,71,null,null,null,null,1,8,9,null,0,2,16,null,71,null,null,null,null,null,1,7,8,null,0,0,16,null,71,null,null,null,null,null,1,7,null,8,null,0,0,16]
[null,72,24,0,null,24,null,0,16,32,null,null,72,0,18,null,18,null,0,4,32,null,72,null,3,12,15,null,0,14,16,null,72,null,null,null,12,12,null,0,{"$f":"AO74","v":8},16,null,72,null,null,null,5,6,11,null,0,6,16,null,72,null,null,null,null,null,9,9,null,0,2,16,null,72,null,null,null,null,null,null,8,8,null,0,0,16,null,72,null,null,null,null,null,null,8,null,8,null,0,0,16]
[null,73,23,1,null,24,null,0,16,32,null,null,73,3,16,null,19,null,0,6,32,null,73,null,2,13,15,null,0,14,16,null,73,null,null,5,8,13,null,0,{"$f":"AO70+2","v":10},16,null,73,null,null,null,4,7,11,null,0,6,16,null,73,null,null,null,null,7,3,10,null,0,4,16,null,73,null,null,null,null,null,8,{"$f":"BX67+1","v":1},9,null,0,{"$f":"CB67+2","v":2},16,null,73,null,null,null,null,null,null,7,1,8,null,0,0,16]
[null,74,22,2,null,24,null,0,16,32,null,null,74,2,17,null,19,null,0,6,32,null,74,null,1,14,15,null,0,14,16,null,74,null,null,4,9,13,null,0,{"$f":"AO76","v":10},16,null,74,null,null,null,3,8,11,null,0,6,16,null,74,null,null,null,null,6,4,10,null,0,4,16,null,74,null,null,null,null,null,7,{"$f":"BX68+1","v":2},9,null,0,{"$f":"CB68+2","v":2},16,null,74,null,null,null,null,null,null,6,2,8,null,0,0,16]
[null,75,25,0,null,25,null,0,18,32,null,null,75,1,18,null,19,null,0,6,32,null,75,null,null,15,15,null,0,14,16,null,75,null,null,3,10,13,null,0,{"$f":"AO77","v":10},16,null,75,null,null,null,2,9,11,null,0,6,16,null,75,null,null,null,null,5,5,10,null,0,4,16,null,75,null,null,null,null,null,6,3,9,null,0,2,16,null,75,null,null,null,null,null,null,5,3,8,null,0,0,16]
[null,76,24,1,null,25,null,0,18,32,null,null,76,0,19,null,19,null,0,6,32,null,76,null,4,12,{"$f":"SUM(X79:Z79)","v":16},null,0,0,32,null,76,null,null,2,11,13,null,0,{"$f":"AO78","v":10},16,null,76,null,null,null,1,10,11,null,0,6,16,null,76,null,null,null,null,4,6,10,null,0,4,16,null,76,null,null,null,null,null,5,4,9,null,0,2,16,null,76,null,null,null,null,null,null,4,4,8,null,0,0,16]
[null,77,23,2,null,25,null,0,18,32,null,null,77,3,17,null,20,null,0,8,32,null,77,null,3,13,16,null,0,0,32,null,77,null,null,1,12,13,null,0,{"$f":"AO79","v":10},16,null,77,null,null,null,null,11,11,null,0,6,16,null,77,null,null,null,null,3,7,10,null,0,4,16,null,77,null,null,null,null,null,4,5,9,null,0,2,16,null,77,null,null,null,null,null,null,3,5,8,null,0,0,16]
[null,78,26,0,null,26,null,0,20,32,null,null,78,2,18,null,20,null,0,8,32,null,78,null,2,14,16,null,0,0,32,null,78,null,null,null,13,13,null,0,{"$f":"AO80","v":10},16,null,78,null,null,null,6,6,12,null,0,8,16,null,78,null,null,null,null,2,8,10,null,0,4,16,null,78,null,null,null,null,null,3,6,9,null,0,2,16,null,78,null,null,null,null,null,null,2,6,8,null,0,0,16]
[null,79,25,1,null,26,null,0,20,32,null,null,79,1,19,null,20,null,0,8,32,null,79,null,1,15,16,null,0,0,32,null,79,null,null,5,9,14,null,0,{"$f":"AO76+2","v":12},16,null,79,null,null,null,5,7,12,null,0,8,16,null,79,null,null,null,null,1,9,10,null,0,4,16,null,79,null,null,null,null,null,2,7,9,null,0,2,16,null,79,null,null,null,null,null,null,1,7,8,null,0,0,16]
[null,80,24,2,null,26,null,0,20,32,null,null,80,0,20,null,20,null,0,8,32,null,80,null,null,16,16,null,0,0,32,null,80,null,null,4,10,14,null,0,{"$f":"AO82","v":12},16,null,80,null,null,null,4,8,12,null,0,8,16,null,80,null,null,null,null,null,10,10,null,0,4,16,null,80,null,null,null,null,null,1,8,9,null,0,2,16,null,80,null,null,null,null,null,null,null,8,8,null,0,0,16]
[null,81,27,0,null,27,null,0,22,32,null,null,81,3,18,null,21,null,0,10,32,null,81,null,4,13,17,null,0,2,32,null,81,null,null,3,11,14,null,0,{"$f":"AO83","v":12},16,null,81,null,null,null,3,9,12,null,0,8,16,null,81,null,null,null,null,7,4,11,null,0,6,16,null,81,null,null,null,null,null,null,9,9,null,0,2,16,null,81,null,null,null,null,null,null,{"$f":"CL75+1","v":9},null,9,null,0,{"$f":"CQ74+2","v":2},16]
[null,82,26,1,null,27,null,0,22,32,null,null,82,2,19,null,21,null,0,10,32,null,82,null,3,14,17,null,0,2,32,null,82,null,null,2,12,14,null,0,{"$f":"AO84","v":12},16,null,82,null,null,null,2,10,12,null,0,8,16,null,82,null,null,null,null,6,5,11,null,0,6,16,null,82,null,null,null,null,null,8,2,10,null,0,4,16,null,82,null,null,null,null,null,null,8,1,9,null,0,{"$f":"CQ75+2","v":2},16]
[null,83,25,2,null,27,null,0,22,32,null,null,83,1,20,null,21,null,0,10,32,null,83,null,2,15,17,null,0,2,32,null,83,null,null,1,13,14,null,0,{"$f":"AO85","v":12},16,null,83,null,null,null,1,11,12,null,0,8,16,null,83,null,null,null,null,5,6,11,null,0,6,16,null,83,null,null,null,null,null,7,3,10,null,0,4,16,null,83,null,null,null,null,null,null,7,2,9,null,0,2,16]
[null,84,28,0,null,28,null,0,24,32,null,null,84,0,21,null,21,null,0,10,32,null,84,null,1,16,17,null,0,2,32,null,84,null,null,null,14,14,null,0,{"$f":"AO86","v":12},16,null,84,null,null,null,null,12,12,null,0,8,16,null,84,null,null,null,null,4,7,11,null,0,6,16,null,84,null,null,null,null,null,6,4,10,null,0,4,16,null,84,null,null,null,null,null,null,6,3,9,null,0,2,16]
[null,85,27,1,null,28,null,0,24,32,null,null,85,3,19,null,22,null,0,12,32,null,85,null,null,17,17,null,0,2,32,null,85,null,null,5,10,15,null,0,{"$f":"AO82+2","v":14},16,null,85,null,null,null,6,7,13,null,0,10,16,null,85,null,null,null,null,3,8,11,null,0,6,16,null,85,null,null,null,null,null,5,5,10,null,0,4,16,null,85,null,null,null,null,null,null,5,4,9,null,0,2,16]
[null,86,26,2,null,28,null,0,24,32,null,null,86,2,20,null,22,null,0,12,32,null,86,null,4,14,18,null,0,4,32,null,86,null,null,4,11,15,null,0,{"$f":"AO88","v":14},16,null,86,null,null,null,5,8,13,null,0,10,16,null,86,null,null,null,null,2,9,11,null,0,6,16,null,86,null,null,null,null,null,4,6,10,null,0,4,16,null,86,null,null,null,null,null,null,4,5,9,null,0,2,16]
[null,87,29,0,null,29,null,0,26,32,null,null,87,1,21,null,22,null,0,12,32,null,87,null,3,15,18,null,0,4,32,null,87,null,null,3,12,15,null,0,{"$f":"AO89","v":14},16,null,87,null,null,null,4,9,13,null,0,10,16,null,87,null,null,null,null,1,10,11,null,0,6,16,null,87,null,null,null,null,null,3,7,10,null,0,4,16,null,87,null,null,null,null,null,null,3,6,9,null,0,2,16]
[null,88,28,1,null,29,null,0,26,32,null,null,88,0,22,null,22,null,0,12,32,null,88,null,2,16,18,null,0,4,32,null,88,null,null,2,13,15,null,0,{"$f":"AO90","v":14},16,null,88,null,null,null,3,10,13,null,0,10,16,null,88,null,null,null,null,null,11,11,null,0,6,16,null,88,null,null,null,null,null,2,8,10,null,0,4,16,null,88,null,null,null,null,null,null,2,7,9,null,0,2,16]
[null,89,27,2,null,29,null,0,26,32,null,null,89,3,20,null,23,null,0,14,32,null,89,null,1,17,18,null,0,4,32,null,89,null,null,1,14,15,null,0,{"$f":"AO91","v":14},16,null,89,null,null,null,2,11,13,null,0,10,16,null,89,null,null,null,null,7,5,12,null,0,8,16,null,89,null,null,null,null,null,1,9,10,null,0,4,16,null,89,null,null,null,null,null,null,1,8,9,null,0,2,16]
[null,90,30,0,null,30,null,0,28,32,null,null,90,2,21,null,23,null,0,14,32,null,90,null,null,18,18,null,0,4,32,null,90,null,null,null,15,15,null,0,{"$f":"AO92","v":14},16,null,90,null,null,null,1,12,13,null,0,10,16,null,90,null,null,null,null,6,6,12,null,0,8,16,null,90,null,null,null,null,null,null,10,10,null,0,4,16,null,90,null,null,null,null,null,null,null,9,9,null,0,2,16]
[null,91,29,1,null,30,null,0,28,32,null,null,91,1,22,null,23,null,0,14,32,null,91,null,4,15,19,null,0,6,32,null,91,null,null,5,11,16,null,0,0,32,null,91,null,null,null,null,13,13,null,0,10,16,null,91,null,null,null,null,5,7,12,null,0,8,16,null,91,null,null,null,null,null,8,3,11,null,0,6,16,null,91,null,null,null,null,null,null,{"$f":"CL85+1","v":9},{"$f":"CM84+1","v":1},10,null,0,4,16]
[null,92,28,2,null,30,null,0,28,32,null,null,92,0,23,null,23,null,0,14,32,null,92,null,3,16,19,null,0,6,32,null,92,null,null,4,12,16,null,0,{"$f":"AO94","v":0},32,null,92,null,null,null,6,8,14,null,0,12,16,null,92,null,null,null,null,4,8,12,null,0,8,16,null,92,null,null,null,null,null,7,4,11,null,0,6,16,null,92,null,null,null,null,null,null,8,{"$f":"CM85+1","v":2},10,null,0,4,16]
[null,93,31,0,null,31,null,0,30,32,null,null,93,3,21,null,24,null,0,16,32,null,93,null,2,17,19,null,0,6,32,null,93,null,null,3,13,16,null,0,{"$f":"AO95","v":0},32,null,93,null,null,null,5,9,14,null,0,12,16,null,93,null,null,null,null,3,9,12,null,0,8,16,null,93,null,null,null,null,null,6,5,11,null,0,6,16,null,93,null,null,null,null,null,null,7,3,10,null,0,4,16]
[null,94,30,1,null,31,null,0,30,32,null,null,94,2,22,null,24,null,0,16,32,null,94,null,1,18,19,null,0,6,32,null,94,null,null,2,14,16,null,0,{"$f":"AO96","v":0},32,null,94,null,null,null,4,10,14,null,0,{"$f":"BA90+2","v":12},16,null,94,null,null,null,null,2,10,12,null,0,8,16,null,94,null,null,null,null,null,5,6,11,null,0,6,16,null,94,null,null,null,null,null,null,6,4,10,null,0,4,16]
[null,95,29,2,null,31,null,0,30,32,null,null,95,1,23,null,24,null,0,16,32,null,95,null,null,19,19,null,0,6,32,null,95,null,null,1,15,16,null,0,{"$f":"AO97","v":0},32,null,95,null,null,null,3,11,14,null,0,12,16,null,95,null,null,null,null,1,11,12,null,0,8,16,null,95,null,null,null,null,null,4,7,11,null,0,6,16,null,95,null,null,null,null,null,null,5,5,10,null,0,4,16]
[null,96,32,0,null,32,null,0,0,64,null,null,96,0,24,null,24,null,0,16,32,null,96,null,4,16,20,null,0,8,32,null,96,null,null,null,16,16,null,0,{"$f":"AO98","v":0},32,null,96,null,null,null,2,12,14,null,0,12,16,null,96,null,null,null,null,null,12,12,null,0,8,16,null,96,null,null,null,null,null,3,8,11,null,0,6,16,null,96,null,null,null,null,null,null,4,6,10,null,0,4,16]
[null,97,32,0,null,32,null,1,1,64,null,null,97,3,22,null,25,null,0,18,32,null,97,null,3,17,20,null,0,8,32,null,97,null,null,5,12,17,null,0,{"$f":"AO94+2","v":2},32,null,97,null,null,null,1,13,14,null,0,12,16,null,97,null,null,null,null,7,6,13,null,0,10,16,null,97,null,null,null,null,null,2,9,11,null,0,6,16,null,97,null,null,null,null,null,null,3,7,10,null,0,4,16]
[null,98,32,0,null,32,null,2,2,64,null,null,98,2,23,null,25,null,0,18,32,null,98,null,2,18,20,null,0,8,32,null,98,null,null,4,13,17,null,0,{"$f":"AO100","v":2},32,null,98,null,null,null,null,14,14,null,0,12,16,null,98,null,null,null,null,6,7,13,null,0,10,16,null,98,null,null,null,null,null,1,10,11,null,0,6,16,null,98,null,null,null,null,null,null,2,8,10,null,0,4,16]
[null,99,32,0,null,32,null,3,3,64,null,null,99,1,24,null,25,null,0,18,32,null,99,null,1,19,20,null,0,8,32,null,99,null,null,3,14,{"$f":"SUM(AH102:AK102)","v":17},null,0,{"$f":"AO101","v":2},32,null,99,null,null,null,6,9,{"$f":"SUM(AS102:AW102)","v":15},null,0,14,16,null,99,null,null,null,null,5,8,{"$f":"SUM(BE102:BJ102)","v":13},null,0,10,16,null,99,null,null,null,null,null,null,11,{"$f":"SUM(BR102:BX102)","v":11},null,0,6,16,null,99,null,null,null,null,null,null,1,9,{"$f":"SUM(CF102:CM102)","v":10},null,0,4,16]
[null,100,32,0,null,32,null,4,4,64,null,null,100,0,25,null,25,null,0,18,32,null,100,null,null,20,20,null,0,8,32,null,100,null,null,2,15,17,null,0,{"$f":"AO102","v":2},32,null,100,null,null,null,5,10,15,null,0,14,16,null,100,null,null,null,null,4,9,13,null,0,10,16,null,100,null,null,null,null,null,8,4,12,null,0,8,16,null,100,null,null,null,null,null,null,null,10,10,null,0,4,16]
[null,101,32,0,null,32,null,5,5,64,null,null,101,3,23,null,26,null,0,20,32,null,101,null,4,{"$f":"Z99+1","v":17},21,null,0,10,32,null,101,null,null,1,16,17,null,0,{"$f":"AO103","v":2},32,null,101,null,null,null,4,11,15,null,0,14,16,null,101,null,null,null,null,3,10,13,null,0,10,16,null,101,null,null,null,null,null,7,5,12,null,0,8,16,null,101,null,null,null,null,null,null,{"$f":"CL95+1","v":9},2,11,null,0,6,16]
[null,102,32,0,null,32,null,6,6,64,null,null,102,2,24,null,26,null,0,20,32,null,102,null,3,18,21,null,0,10,32,null,102,null,null,null,{"$f":"AK99+1","v":17},17,null,0,{"$f":"AO104","v":2},32,null,102,null,null,null,3,12,15,null,0,14,16,null,102,null,null,null,null,2,11,13,null,0,10,16,null,102,null,null,null,null,null,6,6,12,null,0,8,16,null,102,null,null,null,null,null,null,8,3,11,null,0,6,16]
[null,103,32,0,null,32,null,7,7,64,null,null,103,1,25,null,26,null,0,20,32,null,103,null,2,19,21,null,0,10,32,null,103,null,null,5,13,18,null,0,{"$f":"AO100+2","v":4},32,null,103,null,null,null,2,13,15,null,0,14,16,null,103,null,null,null,null,1,12,13,null,0,10,16,null,103,null,null,null,null,null,5,7,12,null,0,8,16,null,103,null,null,null,null,null,null,7,4,11,null,0,6,16]
[null,104,32,0,null,32,null,8,8,64,null,null,104,0,26,null,26,null,0,20,32,null,104,null,1,20,21,null,0,10,32,null,104,null,null,4,14,18,null,0,{"$f":"AO106","v":4},32,null,104,null,null,null,1,14,15,null,0,14,16,null,104,null,null,null,null,null,13,13,null,0,10,16,null,104,null,null,null,null,null,4,8,12,null,0,8,16,null,104,null,null,null,null,null,null,6,5,11,null,0,6,16]
[null,105,32,0,null,32,null,9,9,64,null,null,105,3,24,null,27,null,0,22,32,null,105,null,null,21,21,null,0,10,32,null,105,null,null,3,15,18,null,0,{"$f":"AO107","v":4},32,null,105,null,null,null,null,15,15,null,0,14,16,null,105,null,null,null,null,7,7,14,null,0,12,16,null,105,null,null,null,null,null,3,9,12,null,0,8,16,null,105,null,null,null,null,null,null,5,6,11,null,0,6,16]
[null,106,32,0,null,32,null,10,10,64,null,null,106,2,25,null,27,null,0,22,32,null,106,null,4,18,22,null,0,12,32,null,106,null,null,2,16,18,null,0,{"$f":"AO108","v":4},32,null,106,null,null,null,6,10,16,null,0,0,32,null,106,null,null,null,null,6,8,14,null,0,12,16,null,106,null,null,null,null,null,2,10,12,null,0,8,16,null,106,null,null,null,null,null,null,4,7,11,null,0,6,16]
[null,107,32,0,null,32,null,11,11,64,null,null,107,1,26,null,27,null,0,22,32,null,107,null,3,19,22,null,0,12,32,null,107,null,null,1,17,18,null,0,{"$f":"AO109","v":4},32,null,107,null,null,null,5,11,16,null,0,0,32,null,107,null,null,null,null,5,9,14,null,0,12,16,null,107,null,null,null,null,null,1,11,12,null,0,8,16,null,107,null,null,null,null,null,null,3,8,11,null,0,6,16]
[null,108,32,0,null,32,null,12,12,64,null,null,108,0,27,null,27,null,0,22,32,null,108,null,2,20,22,null,0,12,32,null,108,null,null,null,18,18,null,0,{"$f":"AO110","v":4},32,null,108,null,null,null,4,12,16,null,0,0,32,null,108,null,null,null,null,4,10,14,null,0,12,16,null,108,null,null,null,null,null,null,12,12,null,0,8,16,null,108,null,null,null,null,null,null,2,9,11,null,0,6,16]
[null,109,32,0,null,32,null,13,13,64,null,null,109,3,25,null,28,null,0,24,32,null,109,null,1,21,22,null,0,12,32,null,109,null,null,5,14,19,null,0,{"$f":"AO106+2","v":6},32,null,109,null,null,null,3,13,16,null,0,0,32,null,109,null,null,null,null,3,11,14,null,0,12,16,null,109,null,null,null,null,null,8,5,13,null,0,10,16,null,109,null,null,null,null,null,null,1,10,11,null,0,6,16]
[null,110,32,0,null,32,null,14,14,64,null,null,110,2,26,null,28,null,0,24,32,null,110,null,null,22,22,null,0,12,32,null,110,null,null,4,15,19,null,0,{"$f":"AO112","v":6},32,null,110,null,null,null,2,14,16,null,0,0,32,null,110,null,null,null,null,2,12,14,null,0,12,16,null,110,null,null,null,null,null,7,6,13,null,0,10,16,null,110,null,null,null,null,null,null,null,11,11,null,0,6,16]
[null,111,32,0,null,32,null,15,15,64,null,null,111,1,27,null,28,null,0,24,32,null,111,null,4,19,23,null,0,14,32,null,111,null,null,3,16,19,null,0,{"$f":"AO113","v":6},32,null,111,null,null,null,1,15,16,null,0,0,32,null,111,null,null,null,null,1,13,14,null,0,12,16,null,111,null,null,null,null,null,6,7,13,null,0,10,16,null,111,null,null,null,null,null,null,{"$f":"CL105+1","v":9},3,12,null,0,8,16]
[null,112,32,0,null,32,null,16,16,64,null,null,112,0,28,null,28,null,0,24,32,null,112,null,3,20,23,null,0,14,32,null,112,null,null,2,17,19,null,0,{"$f":"AO114","v":6},32,null,112,null,null,null,null,16,16,null,0,0,32,null,112,null,null,null,null,null,14,14,null,0,12,16,null,112,null,null,null,null,null,5,8,13,null,0,10,16,null,112,null,null,null,null,null,null,8,4,12,null,0,8,16]
[null,113,32,0,null,32,null,17,17,64,null,null,113,3,26,null,29,null,0,26,32,null,113,null,2,21,23,null,0,14,32,null,113,null,null,1,18,19,null,0,{"$f":"AO115","v":6},32,null,113,null,null,null,6,11,17,null,0,2,32,null,113,null,null,null,null,7,8,15,null,0,14,16,null,113,null,null,null,null,null,4,9,13,null,0,10,16,null,113,null,null,null,null,null,null,7,5,12,null,0,8,16]
[null,114,32,0,null,32,null,18,18,64,null,null,114,2,27,null,29,null,0,26,32,null,114,null,1,22,23,null,0,14,32,null,114,null,null,null,19,19,null,0,{"$f":"AO116","v":6},32,null,114,null,null,null,5,12,17,null,0,2,32,null,114,null,null,null,null,6,9,15,null,0,14,16,null,114,null,null,null,null,null,3,10,13,null,0,10,16,null,114,null,null,null,null,null,null,6,6,12,null,0,8,16]
[null,115,32,0,null,32,null,19,19,64,null,null,115,1,28,null,29,null,0,26,32,null,115,null,null,23,23,null,0,14,32,null,115,null,null,5,15,20,null,0,{"$f":"AO112+2","v":8},32,null,115,null,null,null,4,{"$f":"AW111+1","v":13},17,null,0,2,32,null,115,null,null,null,null,5,10,15,null,0,14,16,null,115,null,null,null,null,null,2,11,13,null,0,10,16,null,115,null,null,null,null,null,null,5,7,12,null,0,8,16]
[null,116,32,0,null,32,null,20,20,64,null,null,116,0,29,null,29,null,0,26,32,null,116,null,4,20,24,null,0,16,32,null,116,null,null,4,16,20,null,0,{"$f":"AO118","v":8},32,null,116,null,null,null,3,14,17,null,0,2,32,null,116,null,null,null,null,4,11,15,null,0,14,16,null,116,null,null,null,null,null,1,12,13,null,0,10,16,null,116,null,null,null,null,null,null,4,8,12,null,0,8,16]
[null,117,32,0,null,32,null,21,21,64,null,null,117,3,27,null,30,null,0,28,32,null,117,null,3,21,24,null,0,16,32,null,117,null,null,3,17,20,null,0,{"$f":"AO119","v":8},32,null,117,null,null,null,2,15,17,null,0,2,32,null,117,null,null,null,null,3,12,15,null,0,14,16,null,117,null,null,null,null,null,null,13,13,null,0,10,16,null,117,null,null,null,null,null,null,3,9,12,null,0,8,16]
[null,118,32,0,null,32,null,22,22,64,null,null,118,2,28,null,30,null,0,28,32,null,118,null,2,22,24,null,0,16,32,null,118,null,null,2,18,20,null,0,{"$f":"AO120","v":8},32,null,118,null,null,null,1,16,17,null,0,2,32,null,118,null,null,null,null,2,13,15,null,0,14,16,null,118,null,null,null,null,null,8,6,14,null,0,12,16,null,118,null,null,null,null,null,null,2,10,12,null,0,8,16]
[null,119,32,0,null,32,null,23,23,64,null,null,119,1,29,null,30,null,0,28,32,null,119,null,1,23,24,null,0,16,32,null,119,null,null,1,19,20,null,0,{"$f":"AO121","v":8},32,null,119,null,null,null,null,17,17,null,0,2,32,null,119,null,null,null,null,1,14,15,null,0,14,16,null,119,null,null,null,null,null,7,7,14,null,0,12,16,null,119,null,null,null,null,null,null,1,11,12,null,0,8,16]
[null,120,32,0,null,32,null,24,24,64,null,null,120,0,30,null,30,null,0,28,32,null,120,null,null,24,24,null,0,16,32,null,120,null,null,null,20,20,null,0,{"$f":"AO122","v":8},32,null,120,null,null,null,6,12,18,null,0,4,32,null,120,null,null,null,null,null,15,15,null,0,14,16,null,120,null,null,null,null,null,6,8,14,null,0,12,16,null,120,null,null,null,null,null,null,null,12,12,null,0,8,16]
[null,121,32,0,null,32,null,25,25,64,null,null,121,3,28,null,31,null,0,30,32,null,121,null,4,21,25,null,0,18,32,null,121,null,null,5,16,21,null,0,{"$f":"AO118+2","v":10},32,null,121,null,null,null,5,13,18,null,0,4,32,null,121,null,null,null,null,7,9,16,null,0,0,32,null,121,null,null,null,null,null,5,9,14,null,0,12,16,null,121,null,null,null,null,null,null,{"$f":"CL115+1","v":9},4,13,null,0,10,16]
[null,122,32,0,null,32,null,26,26,64,null,null,122,2,29,null,31,null,0,30,32,null,122,null,3,22,25,null,0,18,32,null,122,null,null,4,17,21,null,0,{"$f":"AO124","v":10},32,null,122,null,null,null,4,14,18,null,0,4,32,null,122,null,null,null,null,6,10,16,null,0,0,32,null,122,null,null,null,null,null,4,10,14,null,0,12,16,null,122,null,null,null,null,null,null,8,5,13,null,0,10,16]
[null,123,32,0,null,32,null,27,27,64,null,null,123,1,30,null,31,null,0,30,32,null,123,null,2,23,25,null,0,18,32,null,123,null,null,3,18,21,null,0,{"$f":"AO125","v":10},32,null,123,null,null,null,3,15,18,null,0,4,32,null,123,null,null,null,null,5,11,16,null,0,0,32,null,123,null,null,null,null,null,3,11,14,null,0,12,16,null,123,null,null,null,null,null,null,7,6,13,null,0,10,16]
[null,124,32,0,null,32,null,28,28,64,null,null,124,0,31,null,31,null,0,30,32,null,124,null,1,24,25,null,0,18,32,null,124,null,null,2,19,21,null,0,{"$f":"AO126","v":10},32,null,124,null,null,null,2,16,18,null,0,4,32,null,124,null,null,null,null,4,12,16,null,0,0,32,null,124,null,null,null,null,null,2,12,14,null,0,12,16,null,124,null,null,null,null,null,null,6,7,13,null,0,10,16]
[null,125,32,0,null,32,null,29,29,64,null,null,125,3,29,null,32,null,0,0,64,null,125,null,null,25,25,null,0,18,32,null,125,null,null,1,20,21,null,0,{"$f":"AO127","v":10},32,null,125,null,null,null,1,17,18,null,0,4,32,null,125,null,null,null,null,3,13,16,null,0,0,32,null,125,null,null,null,null,null,1,13,14,null,0,12,16,null,125,null,null,null,null,null,null,5,8,13,null,0,10,16]
[null,126,32,0,null,32,null,30,30,64,null,null,126,2,30,null,32,null,0,0,64,null,126,null,4,22,26,null,0,20,32,null,126,null,null,null,21,21,null,0,{"$f":"AO128","v":10},32,null,126,null,null,null,null,18,18,null,0,4,32,null,126,null,null,null,null,2,14,16,null,0,0,32,null,126,null,null,null,null,null,null,14,14,null,0,12,16,null,126,null,null,null,null,null,null,4,9,13,null,0,10,16]
[null,127,32,0,null,32,null,31,31,64,null,null,127,1,31,null,32,null,0,0,64,null,127,null,3,23,26,null,0,20,32,null,127,null,null,5,17,22,null,0,12,32,null,127,null,null,null,6,13,19,null,0,6,32,null,127,null,null,null,null,1,15,16,null,0,0,32,null,127,null,null,null,null,null,8,7,15,null,0,14,16,null,127,null,null,null,null,null,null,3,10,13,null,0,10,16]
[null,128,32,0,null,32,null,32,32,64,null,null,128,0,32,null,32,null,0,0,64,null,128,null,2,24,26,null,0,20,32,null,128,null,null,4,18,22,null,0,12,32,null,128,null,null,null,5,14,19,null,0,6,32,null,128,null,null,null,null,null,16,16,null,0,0,32,null,128,null,null,null,null,null,7,8,15,null,0,14,16,null,128,null,null,null,null,null,null,2,11,13,null,0,10,16]
[]
[]
[]
[null,null,{"$f":"N_MatchFormula","v":"Match formulas"}]
[null,null,{"$f":"N_QualifiedPlayers","v":"Qualified Players"},{"$f":"N_NbPlayOffMatches","v":"Nb Play Off Matches"},{"$f":"N_NbLastPlayers","v":"Nb Last Players"},{"$f":"N_PlayOffMatches","v":"Play Off Matches"},null,{"$f":"N_LastMatches","v":"Last xx Matches"}]
[null,null,null,null,null,null,null,{"$f":"N_Serie & \" 1\"","v":"Serie 1"},{"$f":"N_Serie & \" 2\"","v":"Serie 2"}]
[null,{"$f":"C138*1000000+D138*1000+E138","v":2},0,0,2,null,null,"1A - 1B"]
[null,{"$f":"C139*1000000+D139*1000+E139","v":4},0,0,4,null,null,"1A - 2B"]
[null,null,null,null,null,null,null,"1B - 2A"]
[null,{"$f":"C141*1000000+D141*1000+E141","v":2004},0,2,4,"M1 3A - 1B",null,"1A - M2"]
[null,null,null,null,null,"M2 2B - 3B",null,"M1 - 2A"]
[null,{"$f":"C143*1000000+D143*1000+E143","v":8},0,0,8,null,null,"1A - 3B"]
[null,null,null,null,null,null,null,"2B - 4A"]
[null,null,null,null,null,null,null,"3A - 1B"]
[null,null,null,null,null,null,null,"4B - 2A"]
[null,{"$f":"C147*1000000+D147*1000+E147","v":2008},0,2,8,"M1 2B - 3B",null,"1A - M1"]
[null,null,null,null,null,"M2 4B - 5B",null,"5A - 4A"]
[null,null,null,null,null,null,null,"3A - 1B"]
[null,null,null,null,null,null,null,"M2 - 2A"]
[null,{"$f":"C151*1000000+D151*1000+E151","v":4008},0,4,8,"M1 5A - 3B",null,"1A - M4"]
[null,null,null,null,null,"M2 6A - 4B",null,"M1 - 4A"]
[null,null,null,null,null,"M3 1B - 5B",null,"3A - M2"]
[null,null,null,null,null,"M4 2B - 6B",null,"M3 - 2A"]
[null,{"$f":"C155*1000000+D155*1000+E155","v":6008},0,6,8,"M1 3A - 5B",null,"1A - M6"]
[null,null,null,null,null,"M2 4A - 7B",null,"M3 - M2"]
[null,null,null,null,null,"M3 5A - 6B",null,"M1 - M4"]
[null,null,null,null,null,"M4 6A - 4B",null,"M5 - 2A"]
[null,null,null,null,null,"M5 7A - 1B"]
[null,null,null,null,null,"M6 2B - 3B"]
[null,{"$f":"C161*1000000+D161*1000+E161","v":16},0,0,16,null,null,"1A - 7B"]
[null,null,null,null,null,null,null,"2B - 8A"]
[null,null,null,null,null,null,null,"5A - 3B"]
[null,null,null,null,null,null,null,"6B - 4A"]
[null,null,null,null,null,null,null,"3A - 5B"]
[null,null,null,null,null,null,null,"4B - 6A"]
[null,null,null,null,null,null,null,"7A - 1B"]
[null,null,null,null,null,null,null,"8B - 2A"]
[null,{"$f":"C169*1000000+D169*1000+E169","v":2016},0,2,16,"M1 8B - 9B",null,"1A - M2"]
[null,null,null,null,null,"M2 6B - 7B",null,"9A - 8A"]
[null,null,null,null,null,null,null,"5A - 2B"]
[null,null,null,null,null,null,null,"3B - 4A"]
[null,null,null,null,null,null,null,"3A - 5B"]
[null,null,null,null,null,null,null,"4B - 6A"]
[null,null,null,null,null,null,null,"7A - 1B"]
[null,null,null,null,null,null,null,"M1 - 2A"]
[null,{"$f":"C177*1000000+D177*1000+E177","v":4016},0,4,16,"M1 3B - 7B",null,"1A - M4"]
[null,null,null,null,null,"M2 4B - 8B",null,"9A - 8A"]
[null,null,null,null,null,"M3 5B - 9B",null,"5A - 2B"]
[null,null,null,null,null,"M4 6B - 10B",null,"M1 - 4A"]
[null,null,null,null,null,null,null,"3A - M2"]
[null,null,null,null,null,null,null,"1B - 6A"]
[null,null,null,null,null,null,null,"7A - 10A"]
[null,null,null,null,null,null,null,"M3 - 2A"]
[null,{"$f":"C185*1000000+D185*1000+E185","v":6016},0,6,16,"M1 11A - 4B",null,"1A - M5"]
[null,null,null,null,null,"M2 2B - 6B",null,"9A - 8A"]
[null,null,null,null,null,"M3 1B - 8B",null,"5A - M2"]
[null,null,null,null,null,"M4 3B - 11B",null,"M4 - 4A"]
[null,null,null,null,null,"M5 7B - 10B",null,"3A - M3"]
[null,null,null,null,null,"M6 5B - 9B",null,"M1 - 6A"]
[null,null,null,null,null,null,null,"7A - 10A"]
[null,null,null,null,null,null,null,"M6 - 2A"]
[null,{"$f":"C193*1000000+D193*1000+E193","v":8016},0,8,16,"M1 7A - 2B",null,"1A - M7"]
[null,null,null,null,null,"M2 10A - 1B",null,"M1 - 8A"]
[null,null,null,null,null,"M3 11A - 4B",null,"5A - M4"]
[null,null,null,null,null,"M4 12A - 3B",null,"M6 - 4A"]
[null,null,null,null,null,"M5 12B - 9B",null,"3A - M5"]
[null,null,null,null,null,"M6 6B - 7B",null,"M3 - 6A"]
[null,null,null,null,null,"M7 10B - 11B",null,"7A - M2"]
[null,null,null,null,null,"M8 8B - 5B",null,"M8 - 2A"]
[null,{"$f":"C201*1000000+D201*1000+E201","v":10016},0,10,16,"M1 7A - 4B",null,"1A - M10"]
[null,null,null,null,null,"M2 8A - 6B",null,"M3 - M2"]
[null,null,null,null,null,"M3 9A - 7B",null,"5A - M6"]
[null,null,null,null,null,"M4 10A - 5B",null,"M7 - 4A"]
[null,null,null,null,null,"M5 11A - 8B",null,"3A - M8"]
[null,null,null,null,null,"M6 12A - 2B",null,"M5 - 6A"]
[null,null,null,null,null,"M7 13A - 10B",null,"M1 - M4"]
[null,null,null,null,null,"M8 1B - 13B",null,"M9 - 2A"]
[null,null,null,null,null,"M9 9B - 12B"]
[null,null,null,null,null,"M10 3B - 11B"]
[null,{"$f":"C211*1000000+D211*1000+E211","v":12016},0,12,16,"M1 5A - 3B",null,"1A - M12"]
[null,null,null,null,null,"M2 6A - 4B",null,"M5 - M4"]
[null,null,null,null,null,"M3 7A - 5B",null,"M1 - M8"]
[null,null,null,null,null,"M4 8A - 6B",null,"M9 - 4A"]
[null,null,null,null,null,"M5 9A - 7B",null,"3A - M10"]
[null,null,null,null,null,"M6 10A - 8B",null,"M7 - M2"]
[null,null,null,null,null,"M7 11A - 9B",null,"M3 - M6"]
[null,null,null,null,null,"M8 12A - 10B",null,"M11 - 2A"]
[null,null,null,null,null,"M9 13A - 11B"]
[null,null,null,null,null,"M10 14A - 12B"]
[null,null,null,null,null,"M11 1B - 13B"]
[null,null,null,null,null,"M12 2B - 14B"]
[null,{"$f":"C223*1000000+D223*1000+E223","v":14016},0,14,16,"M1 3A - 12B",null,"1A - M14"]
[null,null,null,null,null,"M2 4A - 14B",null,"M7 - M6"]
[null,null,null,null,null,"M3 5A - 11B",null,"M3 - M10"]
[null,null,null,null,null,"M4 6A - 13B",null,"M11 - M2"]
[null,null,null,null,null,"M5 7A - 9B",null,"M1 - M12"]
[null,null,null,null,null,"M6 8A - 10B",null,"M9 - M4"]
[null,null,null,null,null,"M7 9A - 7B",null,"M5 - M8"]
[null,null,null,null,null,"M8 10A - 8B",null,"M13 - 2A"]
[null,null,null,null,null,"M9 11A - 5B"]
[null,null,null,null,null,"M10 12A - 6B"]
[null,null,null,null,null,"M11 13A - 3B"]
[null,null,null,null,null,"M12 14A - 4B"]
[null,null,null,null,null,"M13 15A - 1B"]
[null,null,null,null,null,"M14 2B - 15B"]
[null,{"$f":"C237*1000000+D237*1000+E237","v":32},0,0,32,null,null,"1A - 15B"]
[null,null,null,null,null,null,null,"2B - 16A"]
[null,null,null,null,null,null,null,"9A - 7B"]
[null,null,null,null,null,null,null,"10B - 8A"]
[null,null,null,null,null,null,null,"5A - 11B"]
[null,null,null,null,null,null,null,"6B - 12A"]
[null,null,null,null,null,null,null,"13A - 3B"]
[null,null,null,null,null,null,null,"14B - 4A"]
[null,null,null,null,null,null,null,"3A - 13B"]
[null,null,null,null,null,null,null,"4B - 14A"]
[null,null,null,null,null,null,null,"11A - 5B"]
[null,null,null,null,null,null,null,"12B - 6A"]
[null,null,null,null,null,null,null,"7A - 9B"]
[null,null,null,null,null,null,null,"8B - 10A"]
[null,null,null,null,null,null,null,"15A - 1B"]
[null,null,null,null,null,null,null,"16B - 2A"]
[null,{"$f":"C253*1000000+D253*1000+E253","v":2032},0,2,32,"M1 14B - 16B",null,"1A - M2"]
[null,null,null,null,null,"M2 15B - 17B",null,"17A - 16A"]
[null,null,null,null,null,null,null,"9A - 6B"]
[null,null,null,null,null,null,null,"7B - 8A"]
[null,null,null,null,null,null,null,"5A - 10B"]
[null,null,null,null,null,null,null,"3B - 12A"]
[null,null,null,null,null,null,null,"13A - 2B"]
[null,null,null,null,null,null,null,"11B - 4A"]
[null,null,null,null,null,null,null,"3A - 13B"]
[null,null,null,null,null,null,null,"4B - 14A"]
[null,null,null,null,null,null,null,"11A - 5B"]
[null,null,null,null,null,null,null,"12B - 6A"]
[null,null,null,null,null,null,null,"7A - 9B"]
[null,null,null,null,null,null,null,"8B - 10A"]
[null,null,null,null,null,null,null,"15A - 1B"]
[null,null,null,null,null,null,null,"M1 - 2A"]
[null,{"$f":"C269*1000000+D269*1000+E269","v":4032},0,4,32,"M1 11B - 15B",null,"1A - M4"]
[null,null,null,null,null,"M2 12B - 16B",null,"17A - 16A"]
[null,null,null,null,null,"M3 13B - 17B",null,"9A - 6B"]
[null,null,null,null,null,"M4 14B - 18B",null,"7B - 8A"]
[null,null,null,null,null,null,null,"5A - 10B"]
[null,null,null,null,null,null,null,"3B - 12A"]
[null,null,null,null,null,null,null,"13A - 2B"]
[null,null,null,null,null,null,null,"M1 - 4A"]
[null,null,null,null,null,null,null,"3A - M2"]
[null,null,null,null,null,null,null,"1B - 14A"]
[null,null,null,null,null,null,null,"11A - 4B"]
[null,null,null,null,null,null,null,"9B - 6A"]
[null,null,null,null,null,null,null,"7A - 8B"]
[null,null,null,null,null,null,null,"5B - 10A"]
[null,null,null,null,null,null,null,"15A - 18A"]
[null,null,null,null,null,null,null,"M3 - 2A"]
[null,{"$f":"C285*1000000+D285*1000+E285","v":6032},0,6,32,"M1 8B - 14B",null,"1A - M5"]
[null,null,null,null,null,"M2 9B - 15B",null,"17A - 16A"]
[null,null,null,null,null,"M3 10B - 16B",null,"9A - 6B"]
[null,null,null,null,null,"M4 11B - 17B",null,"7B - 8A"]
[null,null,null,null,null,"M5 12B - 18B",null,"5A - M2"]
[null,null,null,null,null,"M6 13B - 19B",null,"3B - 12A"]
[null,null,null,null,null,null,null,"13A - 2B"]
[null,null,null,null,null,null,null,"M3 - 4A"]
[null,null,null,null,null,null,null,"3A - M4"]
[null,null,null,null,null,null,null,"19A - 14A"]
[null,null,null,null,null,null,null,"11A - 1B"]
[null,null,null,null,null,null,null,"5B - 6A"]
[null,null,null,null,null,null,null,"7A - 4B"]
[null,null,null,null,null,null,null,"M1 - 10A"]
[null,null,null,null,null,null,null,"15A - 18A"]
[null,null,null,null,null,null,null,"M6 - 2A"]
[null,{"$f":"C301*1000000+D301*1000+E301","v":8032},0,8,32,"M1 5B - 13B",null,"1A - M8"]
[null,null,null,null,null,"M2 6B - 14B",null,"17A - 16A"]
[null,null,null,null,null,"M3 7B - 15B",null,"9A - 3B"]
[null,null,null,null,null,"M4 8B - 16B",null,"M1 - 8A"]
[null,null,null,null,null,"M5 9B - 17B",null,"5A - M4"]
[null,null,null,null,null,"M6 10B - 18B",null,"2B - 12A"]
[null,null,null,null,null,"M7 11B - 19B",null,"13A - 20A"]
[null,null,null,null,null,"M8 12B - 20B",null,"M5 - 4A"]
[null,null,null,null,null,null,null,"3A - M6"]
[null,null,null,null,null,null,null,"19A - 14A"]
[null,null,null,null,null,null,null,"11A - 1B"]
[null,null,null,null,null,null,null,"M3 - 6A"]
[null,null,null,null,null,null,null,"7A - M2"]
[null,null,null,null,null,null,null,"4B - 10A"]
[null,null,null,null,null,null,null,"15A - 18A"]
[null,null,null,null,null,null,null,"M7 - 2A"]
[null,{"$f":"C317*1000000+D317*1000+E317","v":10032},0,10,32,"M1 4B - 12B",null,"1A - M10"]
[null,null,null,null,null,"M2 3B - 10B",null,"17A - 16A"]
[null,null,null,null,null,"M3 2B - 14B",null,"9A - M2"]
[null,null,null,null,null,"M4 5B - 17B",null,"M3 - 8A"]
[null,null,null,null,null,"M5 8B - 16B",null,"5A - M6"]
[null,null,null,null,null,"M6 7B - 15B",null,"21A - 12A"]
[null,null,null,null,null,"M7 6B - 18B",null,"13A - 20A"]
[null,null,null,null,null,"M8 9B - 20B",null,"M7 - 4A"]
[null,null,null,null,null,"M9 13B - 19B",null,"3A - M8"]
[null,null,null,null,null,"M10 11B - 21B",null,"19A - 14A"]
[null,null,null,null,null,null,null,"11A - 1B"]
[null,null,null,null,null,null,null,"M5 - 6A"]
[null,null,null,null,null,null,null,"7A - M4"]
[null,null,null,null,null,null,null,"M1 - 10A"]
[null,null,null,null,null,null,null,"15A - 18A"]
[null,null,null,null,null,null,null,"M9 - 2A"]
[null,{"$f":"C333*1000000+D333*1000+E333","v":12032},0,12,32,"M1 21A - 11B",null,"1A - M12"]
[null,null,null,null,null,"M2 22A - 12B",null,"17A - 16A"]
[null,null,null,null,null,"M3 1B - 13B",null,"9A - M4"]
[null,null,null,null,null,"M4 2B - 14B",null,"M5 - 8A"]
[null,null,null,null,null,"M5 3B - 15B",null,"5A - M8"]
[null,null,null,null,null,"M6 4B - 16B",null,"M1 - 12A"]
[null,null,null,null,null,"M7 5B - 17B",null,"13A - 20A"]
[null,null,null,null,null,"M8 6B - 18B",null,"M9 - 4A"]
[null,null,null,null,null,"M9 7B - 19B",null,"3A - M10"]
[null,null,null,null,null,"M10 8B - 20B",null,"19A - 14A"]
[null,null,null,null,null,"M11 9B - 21B",null,"11A - M2"]
[null,null,null,null,null,"M12 10B - 22B",null,"M7 - 6A"]
[null,null,null,null,null,null,null,"7A - M6"]
[null,null,null,null,null,null,null,"M3 - 10A"]
[null,null,null,null,null,null,null,"15A - 18A"]
[null,null,null,null,null,null,null,"M11 - 2A"]
[null,{"$f":"C349*1000000+D349*1000+E349","v":14032},0,14,32,"M1 19A - 1B",null,"1A - M14"]
[null,null,null,null,null,"M2 20A - 2B",null,"17A - 16A"]
[null,null,null,null,null,"M3 21A - 3B",null,"9A - M6"]
[null,null,null,null,null,"M4 22A - 4B",null,"M7 - 8A"]
[null,null,null,null,null,"M5 23A - 5B",null,"5A - M10"]
[null,null,null,null,null,"M6 23B - 6B",null,"M3 - 12A"]
[null,null,null,null,null,"M7 22B - 7B",null,"13A - M2"]
[null,null,null,null,null,"M8 21B - 8B",null,"M11 - 4A"]
[null,null,null,null,null,"M9 20B - 9B",null,"3A - M12"]
[null,null,null,null,null,"M10 19B - 10B",null,"M1 - 14A"]
[null,null,null,null,null,"M11 18B - 11B",null,"11A - M4"]
[null,null,null,null,null,"M12 17B - 12B",null,"M9 - 6A"]
[null,null,null,null,null,"M13 16B - 13B",null,"7A - M8"]
[null,null,null,null,null,"M14 15B - 14B",null,"M5 - 10A"]
[null,null,null,null,null,null,null,"15A - 18A"]
[null,null,null,null,null,null,null,"M13 - 2A"]
[null,{"$f":"C365*1000000+D365*1000+E365","v":16032},0,16,32,"M1 17A - 10B",null,"1A - M16"]
[null,null,null,null,null,"M2 18A - 9B",null,"M1 - 16A"]
[null,null,null,null,null,"M3 19A - 12B",null,"9A - M8"]
[null,null,null,null,null,"M4 20A - 11B",null,"M9 - 8A"]
[null,null,null,null,null,"M5 21A - 14B",null,"5A - M12"]
[null,null,null,null,null,"M6 22A - 13B",null,"M5 - 12A"]
[null,null,null,null,null,"M7 23A - 16B",null,"13A - M4"]
[null,null,null,null,null,"M8 24A - 15B",null,"M13 - 4A"]
[null,null,null,null,null,"M9 2B - 18B",null,"3A - M14"]
[null,null,null,null,null,"M10 1B - 17B",null,"M3 - 14A"]
[null,null,null,null,null,"M11 4B - 20B",null,"11A - M6"]
[null,null,null,null,null,"M12 3B - 19B",null,"M11 - 6A"]
[null,null,null,null,null,"M13 6B - 22B",null,"7A - M10"]
[null,null,null,null,null,"M14 5B - 21B",null,"M7 - 10A"]
[null,null,null,null,null,"M15 8B - 24B",null,"15A - M2"]
[null,null,null,null,null,"M16 7B - 23B",null,"M15 - 2A"]
[null,{"$f":"C381*1000000+D381*1000+E381","v":18032},0,18,32,"M1 16A - 23B",null,"1A - M9"]
[null,null,null,null,null,"M2 17A - 22B",null,"M1 - M2"]
[null,null,null,null,null,"M3 20A - 19B",null,"9A - M5"]
[null,null,null,null,null,"M4 21A - 18B",null,"8A - M6"]
[null,null,null,null,null,"M5 24A - 15B",null,"5A - M7"]
[null,null,null,null,null,"M6 25A - 14B",null,"12A - M4"]
[null,null,null,null,null,"M7 2B - 11B",null,"13A - M3"]
[null,null,null,null,null,"M8 3B - 10B",null,"4A - M8"]
[null,null,null,null,null,"M9 6B - 7B",null,"3A - M17"]
[null,null,null,null,null,"M10 15A - 25B",null,"14A - M12"]
[null,null,null,null,null,"M11 18A - 24B",null,"11A - M13"]
[null,null,null,null,null,"M12 19A - 21B",null,"6A - M16"]
[null,null,null,null,null,"M13 22A - 20B",null,"7A - M15"]
[null,null,null,null,null,"M14 23A - 17B",null,"10A - M14"]
[null,null,null,null,null,"M15 1B - 16B",null,"M10 - M11"]
[null,null,null,null,null,"M16 4B - 13B",null,"2A - M18"]
[null,null,null,null,null,"M17 5B - 12B"]
[null,null,null,null,null,"M18 8B - 9B"]
[null,{"$f":"C399*1000000+D399*1000+E399","v":20032},0,20,32,"M1 13A - 7B",null,"1A - M20"]
[null,null,null,null,null,"M2 14A - 8B",null,"M5 - M4"]
[null,null,null,null,null,"M3 15A - 9B",null,"9A - M12"]
[null,null,null,null,null,"M4 16A - 10B",null,"M13 - 8A"]
[null,null,null,null,null,"M5 17A - 11B",null,"5A - M16"]
[null,null,null,null,null,"M6 18A - 12B",null,"M9 - 12A"]
[null,null,null,null,null,"M7 19A - 13B",null,"M1 - M8"]
[null,null,null,null,null,"M8 20A - 14B",null,"M17 - 4A"]
[null,null,null,null,null,"M9 21A - 15B",null,"3A - M18"]
[null,null,null,null,null,"M10 22A - 16B",null,"M7 - M2"]
[null,null,null,null,null,"M11 23A - 17B",null,"11A - M10"]
[null,null,null,null,null,"M12 24A - 18B",null,"M15 - 6A"]
[null,null,null,null,null,"M13 25A - 19B",null,"7A - M14"]
[null,null,null,null,null,"M14 26A - 20B",null,"M11 - 10A"]
[null,null,null,null,null,"M15 1B - 21B",null,"M3 - M6"]
[null,null,null,null,null,"M16 2B - 22B",null,"M19 - 2A"]
[null,null,null,null,null,"M17 3B - 23B"]
[null,null,null,null,null,"M18 4B - 24B"]
[null,null,null,null,null,"M19 5B - 25B"]
[null,null,null,null,null,"M20 6B - 26B"]
[null,{"$f":"C419*1000000+D419*1000+E419","v":22032},0,22,32,"M1 12A - 27B",null,"1A - M11"]
[null,null,null,null,null,"M2 13A-26B",null,"M3 - M4"]
[null,null,null,null,null,"M3 16A-23B",null,"9A - M7"]
[null,null,null,null,null,"M4 17A-22B",null,"8A - M8"]
[null,null,null,null,null,"M5 20A-19B",null,"5A - M9"]
[null,null,null,null,null,"M6 21A-18B",null,"M1 - M6"]
[null,null,null,null,null,"M7 24A-15B",null,"M2 - M5"]
[null,null,null,null,null,"M8 25A-14B",null,"4A - M10"]
[null,null,null,null,null,"M9 2B-11B",null,"3A - M21"]
[null,null,null,null,null,"M10 3B-10B",null,"M13 - M16"]
[null,null,null,null,null,"M11 6B-7B",null,"M12 - M17"]
[null,null,null,null,null,"M12 11A-25B",null,"6A - M20"]
[null,null,null,null,null,"M13 14A-24B",null,"7A - M19"]
[null,null,null,null,null,"M14 15A-21B",null,"10A - M18"]
[null,null,null,null,null,"M15 18A-20B",null,"M14 - M15"]
[null,null,null,null,null,"M16 19A-17B",null,"2A - M22"]
[null,null,null,null,null,"M17 22A-16B"]
[null,null,null,null,null,"M18 23A-13B"]
[null,null,null,null,null,"M19 26A-12B"]
[null,null,null,null,null,"M20 27A-9B"]
[null,null,null,null,null,"M21 1B-8B"]
[null,null,null,null,null,"M22 4B-5B"]
[null,{"$f":"C441*1000000+D441*1000+E441","v":24032},0,24,32,"M1  9A - 27B",null,"1A - M12"]
[null,null,null,null,null,"M2  12A - 26B",null,"M4 - M5"]
[null,null,null,null,null,"M3  13A - 23B",null,"M1 - M8"]
[null,null,null,null,null,"M4  16A - 22B",null,"8A - M9"]
[null,null,null,null,null,"M5  17A - 19B",null,"5A - M10"]
[null,null,null,null,null,"M6  20A - 18B",null,"M2 - M7"]
[null,null,null,null,null,"M7  21A - 15B",null,"M3 - M6"]
[null,null,null,null,null,"M8  24A - 14B",null,"4A - M11"]
[null,null,null,null,null,"M9  25A - 11B",null,"3A - M23"]
[null,null,null,null,null,"M10  28A - 10B",null,"M15 - M18"]
[null,null,null,null,null,"M11  2B - 7B",null,"M14 - M19"]
[null,null,null,null,null,"M12  3B - 6B",null,"6A - M22"]
[null,null,null,null,null,"M13  10A - 28B",null,"7A - M21"]
[null,null,null,null,null,"M14  11A - 25B",null,"M13 - M20"]
[null,null,null,null,null,"M15  14A - 24B",null,"M16 - M17"]
[null,null,null,null,null,"M16  15A - 21B",null,"2A - M24"]
[null,null,null,null,null,"M17  18A - 20B"]
[null,null,null,null,null,"M18  19A - 17B"]
[null,null,null,null,null,"M19  22A - 16B"]
[null,null,null,null,null,"M20  23A - 13B"]
[null,null,null,null,null,"M21  26A - 12B"]
[null,null,null,null,null,"M22  27A - 9B"]
[null,null,null,null,null,"M23  1B - 8B"]
[null,null,null,null,null,"M24  4B - 5B"]
[null,{"$f":"C465*1000000+D465*1000+E465","v":26032},0,26,32,"M1 7A - 4B",null,"1A - M26"]
[null,null,null,null,null,"M2 8A - 5B",null,"M11 - M10"]
[null,null,null,null,null,"M3 9A - 6B",null,"M3 - M18"]
[null,null,null,null,null,"M4 10A - 8B",null,"M19 - M2"]
[null,null,null,null,null,"M5 11A - 7B",null,"5A - M22"]
[null,null,null,null,null,"M6 12A - 9B",null,"M15 - M6"]
[null,null,null,null,null,"M7 13A - 10B",null,"M7 - M14"]
[null,null,null,null,null,"M8 14A - 11B",null,"M23 - 4A"]
[null,null,null,null,null,"M9 15A - 12B",null,"3A - M24"]
[null,null,null,null,null,"M10 16A - 13B",null,"M13 - M8"]
[null,null,null,null,null,"M11 17A - 14B",null,"M5 - M16"]
[null,null,null,null,null,"M12 18A - 16B",null,"M21 - 6A"]
[null,null,null,null,null,"M13 19A - 15B",null,"M1 - M20"]
[null,null,null,null,null,"M14 20A - 17B",null,"M17 - M4"]
[null,null,null,null,null,"M15 21A - 18B",null,"M9 - M12"]
[null,null,null,null,null,"M16 22A - 19B",null,"M25 - 2A"]
[null,null,null,null,null,"M17 23A - 20B"]
[null,null,null,null,null,"M18 24A - 21B"]
[null,null,null,null,null,"M19 25A - 22B"]
[null,null,null,null,null,"M20 26A - 24B"]
[null,null,null,null,null,"M21 27A - 23B"]
[null,null,null,null,null,"M22 28A - 25B"]
[null,null,null,null,null,"M23 29A - 26B"]
[null,null,null,null,null,"M24 1B - 27B"]
[null,null,null,null,null,"M25 3B - 28B"]
[null,null,null,null,null,"M26 2B - 29B"]
[null,{"$f":"C491*1000000+D491*1000+E491","v":28032},0,28,32,"M1 5A - 3B",null,"1A - M28"]
[null,null,null,null,null,"M2 6A - 4B",null,"M13 - M12"]
[null,null,null,null,null,"M3 7A - 5B",null,"M5 - M20"]
[null,null,null,null,null,"M4 8A - 6B",null,"M21 - M4"]
[null,null,null,null,null,"M5 9A - 7B",null,"M1 - M24"]
[null,null,null,null,null,"M6 10A - 8B",null,"M17 - M8"]
[null,null,null,null,null,"M7 11A - 9B",null,"M9 - M16"]
[null,null,null,null,null,"M8 12A - 10B",null,"M25 - 4A"]
[null,null,null,null,null,"M9 13A - 11B",null,"3A - M26"]
[null,null,null,null,null,"M10 14A - 12B",null,"M15 - M10"]
[null,null,null,null,null,"M11 15A - 13B",null,"M7 - M18"]
[null,null,null,null,null,"M12 16A - 14B",null,"M23 - M2"]
[null,null,null,null,null,"M13 17A - 15B",null,"M3 - M22"]
[null,null,null,null,null,"M14 18A - 16B",null,"M19 - M6"]
[null,null,null,null,null,"M15 19A - 17B",null,"M11 - M14"]
[null,null,null,null,null,"M16 20A - 18B",null,"M27 - 2A"]
[null,null,null,null,null,"M17 21A - 19B"]
[null,null,null,null,null,"M18 22A - 20B"]
[null,null,null,null,null,"M19 23A - 21B"]
[null,null,null,null,null,"M20 24A - 22B"]
[null,null,null,null,null,"M21 25A - 23B"]
[null,null,null,null,null,"M22 26A - 24B"]
[null,null,null,null,null,"M23 27A - 25B"]
[null,null,null,null,null,"M24 28A - 26B"]
[null,null,null,null,null,"M25 29A - 27B"]
[null,null,null,null,null,"M26 30A - 28B"]
[null,null,null,null,null,"M27 1B - 29B"]
[null,null,null,null,null,"M28 2B - 30B"]
[null,{"$f":"C519*1000000+D519*1000+E519","v":30032},0,30,32,"M1 3A - 1B",null,"1A - M30"]
[null,null,null,null,null,"M2 4A - 3B",null,"M15 - M14"]
[null,null,null,null,null,"M3 5A - 4B",null,"M7 - M22"]
[null,null,null,null,null,"M4 6A - 5B",null,"M23 - M6"]
[null,null,null,null,null,"M5 7A - 6B",null,"M3 - M26"]
[null,null,null,null,null,"M6 8A - 7B",null,"M19 - M10"]
[null,null,null,null,null,"M7 9A - 10B",null,"M11 - M18"]
[null,null,null,null,null,"M8 10A - 9B",null,"M27 - M2"]
[null,null,null,null,null,"M9 11A - 8B",null,"M1 - M28"]
[null,null,null,null,null,"M10 12A - 11B",null,"M17 - M12"]
[null,null,null,null,null,"M11 13A - 12B",null,"M9 - M20"]
[null,null,null,null,null,"M12 14A - 13B",null,"M25 - M4"]
[null,null,null,null,null,"M13 15A - 14B",null,"M5 - M24"]
[null,null,null,null,null,"M14 16A - 15B",null,"M21 - M8"]
[null,null,null,null,null,"M15 17A - 18B",null,"M13 - M16"]
[null,null,null,null,null,"M16 18A - 17B",null,"M29 - 2A"]
[null,null,null,null,null,"M17 19A - 16B"]
[null,null,null,null,null,"M18 20A - 19B"]
[null,null,null,null,null,"M19 21A - 20B"]
[null,null,null,null,null,"M20 22A - 21B"]
[null,null,null,null,null,"M21 23A - 22B"]
[null,null,null,null,null,"M22 24A - 23B"]
[null,null,null,null,null,"M23 25A - 26B"]
[null,null,null,null,null,"M24 26A - 25B"]
[null,null,null,null,null,"M25 27A - 24B"]
[null,null,null,null,null,"M26 28A - 27B"]
[null,null,null,null,null,"M27 29A - 28B"]
[null,null,null,null,null,"M28 30A - 29B"]
[null,null,null,null,null,"M29 31A - 30B"]
[null,null,null,null,null,"M30 2B - 31B"]
[null,{"$f":"C549*1000000+D549*1000+E549","v":64},0,0,64,null,null,"1A - 31B","3A - 29B"]
[null,null,null,null,null,null,null,"2B - 32A","4B - 30A"]
[null,null,null,null,null,null,null,"17A - 15B","19A - 13B"]
[null,null,null,null,null,null,null,"18B - 16A","20B - 14A"]
[null,null,null,null,null,null,null,"9A - 23B","11A - 21B"]
[null,null,null,null,null,null,null,"10B - 24A","12B - 22A"]
[null,null,null,null,null,null,null,"25A - 7B","27A - 5B"]
[null,null,null,null,null,null,null,"26B - 8A","28B - 6A"]
[null,null,null,null,null,null,null,"5A - 27B","7A - 25B"]
[null,null,null,null,null,null,null,"6B - 28A","8B - 26A"]
[null,null,null,null,null,null,null,"21A - 11B","23A - 9B"]
[null,null,null,null,null,null,null,"22B - 12A","24B - 10A"]
[null,null,null,null,null,null,null,"13A - 19B","15A - 17B"]
[null,null,null,null,null,null,null,"14B - 20A","16B - 18A"]
[null,null,null,null,null,null,null,"29A - 3B","31A - 1B"]
[null,null,null,null,null,null,null,"30B - 4A","32B - 2A"]
[null,{"$f":"C565*1000000+D565*1000+E565","v":1001064},1,1,64,"M1 31B - 32B",null,"Q1 - 30B","2A - M1"]
[null,null,null,null,null,null,null,"32A - 31A","1B - 29A"]
[null,null,null,null,null,null,null,"16A - 17B","18A - 14B"]
[null,null,null,null,null,null,null,"18B - 15A","20B - 13A"]
[null,null,null,null,null,null,null,"8A - 24B","10A - 22B"]
[null,null,null,null,null,null,null,"7B - 23A","9B - 21A"]
[null,null,null,null,null,null,null,"24A - 8B","26A - 6B"]
[null,null,null,null,null,null,null,"23B - 7A","25B - 5A"]
[null,null,null,null,null,null,null,"4A - 28B","6A - 26B"]
[null,null,null,null,null,null,null,"3B - 27A","5B - 25A"]
[null,null,null,null,null,null,null,"20A - 12B","22A - 10B"]
[null,null,null,null,null,null,null,"19B - 11A","21B - 9A"]
[null,null,null,null,null,null,null,"12A - 15B","14A - 16B"]
[null,null,null,null,null,null,null,"11B - 19A","13B - 17A"]
[null,null,null,null,null,null,null,"28A - 4B","30A - 2B"]
[null,null,null,null,null,null,null,"27B - 3A","29B - 1A"]
[null,{"$f":"C581*1000000+D581*1000+E581","v":2002064},2,2,64,"M1 29B - 32B",null,"Q1 - M1","1A - 27B"]
[null,null,null,null,null,"M2 30B - 31B",null,"31A - 30A","2B - 28A"]
[null,null,null,null,null,null,null,"15A - 13B","17A - 11B"]
[null,null,null,null,null,null,null,"16B - 14A","18B - 12A"]
[null,null,null,null,null,null,null,"7A - 21B","9A - 19B"]
[null,null,null,null,null,null,null,"8B - 22A","10B - 20A"]
[null,null,null,null,null,null,null,"23A - 5B","25A - 3B"]
[null,null,null,null,null,null,null,"24B - 6A","26B - 4A"]
[null,null,null,null,null,null,null,"3A - 25B","5A - 23B"]
[null,null,null,null,null,null,null,"4B - 26A","6B - 24A"]
[null,null,null,null,null,null,null,"19A - 9B","21A - 7B"]
[null,null,null,null,null,null,null,"20B - 10A","22B - 8A"]
[null,null,null,null,null,null,null,"11A - 17B","13A - 15B"]
[null,null,null,null,null,null,null,"12B - 18A","14B - 16A"]
[null,null,null,null,null,null,null,"27A - 1B","29A - 32A"]
[null,null,null,null,null,null,null,"28B - 2A","M2 - Q2"]
[null,{"$f":"C597*1000000+D597*1000+E597","v":3003064},3,3,64,"M1 27B - 30B",null,"Q1 - M3","Q3 - M2"]
[null,null,null,null,null,"M2 28B - 31B",null,"30A - 29A","32A - 27A"]
[null,null,null,null,null,"M3 29B - 32B",null,"14A - 15B","16A - 12B"]
[null,null,null,null,null,null,null,"16B - 13A","13B - 11A"]
[null,null,null,null,null,null,null,"6A - 22B","8A - 20B"]
[null,null,null,null,null,null,null,"5B - 21A","7B - 19A"]
[null,null,null,null,null,null,null,"22A - 8B","24A - 4B"]
[null,null,null,null,null,null,null,"21B - 5A","23B - 3A"]
[null,null,null,null,null,null,null,"2A - 26B","4A - 24B"]
[null,null,null,null,null,null,null,"1B - 25A","3B - 23A"]
[null,null,null,null,null,null,null,"18A - 10B","20A - 6B"]
[null,null,null,null,null,null,null,"17B - 9A","19B - 7A"]
[null,null,null,null,null,null,null,"10A - 18B","12A - 14B"]
[null,null,null,null,null,null,null,"9B - 17A","11B - 15A"]
[null,null,null,null,null,null,null,"26A - 2B","28A - 31A"]
[null,null,null,null,null,null,null,"25B - 1A","M1 - Q2"]
[null,{"$f":"C613*1000000+D613*1000+E613","v":4004064},4,4,64,"M1 25B - 29B",null,"Q1 - M3","Q3 - M1"]
[null,null,null,null,null,"M2 26B - 30B",null,"29A - 28A","31A - 26A"]
[null,null,null,null,null,"M3 27B - 31B",null,"13A - 11B","15A - 9B"]
[null,null,null,null,null,"M4 28B - 32B",null,"14B - 12A","16B - 10A"]
[null,null,null,null,null,null,null,"5A - 19B","7A - 17B"]
[null,null,null,null,null,null,null,"6B - 20A","8B - 18A"]
[null,null,null,null,null,null,null,"21A - 3B","23A - 1B"]
[null,null,null,null,null,null,null,"22B - 4A","24B - 2A"]
[null,null,null,null,null,null,null,"1A - 23B","3A - 21B"]
[null,null,null,null,null,null,null,"2B - 24A","4B - 22A"]
[null,null,null,null,null,null,null,"17A - 7B","19A - 5B"]
[null,null,null,null,null,null,null,"18B - 8A","20B - 6A"]
[null,null,null,null,null,null,null,"9A - 15B","11A - 13B"]
[null,null,null,null,null,null,null,"10B - 16A","12B - 14A"]
[null,null,null,null,null,null,null,"25A - 32A","27A - 30A"]
[null,null,null,null,null,null,null,"M2 - Q4","M4 - Q2"]
[null,{"$f":"C629*1000000+D629*1000+E629","v":5005064},5,5,64,"M1 23B - 28B",null,"Q1 - M4","Q3 - M5"]
[null,null,null,null,null,"M2 24B - 29B",null,"28A - 27A","30A - 25A"]
[null,null,null,null,null,"M3 25B - 30B",null,"12A - 9B","14A - 11B"]
[null,null,null,null,null,"M4 26B - 31B",null,"10B - 11A","16B - 9A"]
[null,null,null,null,null,"M5 27B - 32B",null,"4A - 17B","6A - 19B"]
[null,null,null,null,null,null,null,"2B - 19A","8B - 17A"]
[null,null,null,null,null,null,null,"20A - 1B","22A - 3B"]
[null,null,null,null,null,null,null,"18B - 3A","M2 - 1A"]
[null,null,null,null,null,null,null,"Q5 - 21B","2A - M1"]
[null,null,null,null,null,null,null,"32A - 23A","4B - 21A"]
[null,null,null,null,null,null,null,"16A - 5B","18A - 7B"]
[null,null,null,null,null,null,null,"14B - 7A","20B - 5A"]
[null,null,null,null,null,null,null,"8A - 13B","10A - 15B"]
[null,null,null,null,null,null,null,"6B - 15A","12B - 13A"]
[null,null,null,null,null,null,null,"24A - 31A","26A - 29A"]
[null,null,null,null,null,null,null,"22B - Q4","M3 - Q2"]
[null,{"$f":"C645*1000000+D645*1000+E645","v":6006064},6,6,64,"M1 21B - 27B",null,"Q1 - M5","Q3 - M3"]
[null,null,null,null,null,"M2 22B - 28B",null,"27A - 26A","29A - 24A"]
[null,null,null,null,null,"M3 23B - 29B",null,"11A - 9B","13A - 7B"]
[null,null,null,null,null,"M4 24B - 30B",null,"12B - 10A","14B - 8A"]
[null,null,null,null,null,"M5 25B - 31B",null,"3A - 17B","5A - 15B"]
[null,null,null,null,null,"M6 26B - 32B",null,"4B - 18A","6B - 16A"]
[null,null,null,null,null,null,null,"19A - 1B","21A - 32A"]
[null,null,null,null,null,null,null,"20B - 2A","M2 - Q6"]
[null,null,null,null,null,null,null,"Q5 - M1","1A - 19B"]
[null,null,null,null,null,null,null,"31A - 22A","2B - 20A"]
[null,null,null,null,null,null,null,"15A - 5B","17A - 3B"]
[null,null,null,null,null,null,null,"16B - 6A","18B - 4A"]
[null,null,null,null,null,null,null,"7A - 13B","9A - 11B"]
[null,null,null,null,null,null,null,"8B - 14A","10B - 12A"]
[null,null,null,null,null,null,null,"23A - 30A","25A - 28A"]
[null,null,null,null,null,null,null,"M4 - Q4","M6 - Q2"]
[null,{"$f":"C661*1000000+D661*1000+E661","v":7007064},7,7,64,"M1 19B - 26B",null,"Q1 - M6","Q3 - M7"]
[null,null,null,null,null,"M2 20B - 27B",null,"26A - 25A","28A - 23A"]
[null,null,null,null,null,"M3 21B - 28B",null,"10A - 11B","12A - 5B"]
[null,null,null,null,null,"M4 22B - 29B",null,"12B - 9A","10B - 7A"]
[null,null,null,null,null,"M5 23B - 30B",null,"2A - M1","4A - 13B"]
[null,null,null,null,null,"M6 24B - 31B",null,"4B - 17A","2B - 15A"]
[null,null,null,null,null,"M7 25B - 32B",null,"18A - 3B","20A - 31A"]
[null,null,null,null,null,null,null,"M2 - 1A","18B - Q6"]
[null,null,null,null,null,null,null,"Q5 - M4","Q7 - 17B"]
[null,null,null,null,null,null,null,"30A - 21A","32A - 19A"]
[null,null,null,null,null,null,null,"14A - 7B","16A - 1B"]
[null,null,null,null,null,null,null,"16B - 5A","14B - 3A"]
[null,null,null,null,null,null,null,"6A - 15B","8A - 9B"]
[null,null,null,null,null,null,null,"8B - 13A","6B - 11A"]
[null,null,null,null,null,null,null,"22A - 29A","24A - 27A"]
[null,null,null,null,null,null,null,"M3 - Q4","M5 - Q2"]
[null,{"$f":"C677*1000000+D677*1000+E677","v":8008064},8,8,64,"M1 17B - 25B",null,"Q1 - M7","Q3 - M5"]
[null,null,null,null,null,"M2 18B - 26B",null,"25A - 24A","27A - 22A"]
[null,null,null,null,null,"M3 19B - 27B",null,"9A - 7B","11A - 5B"]
[null,null,null,null,null,"M4 20B - 28B",null,"10B - 8A","12B - 6A"]
[null,null,null,null,null,"M5 21B - 28B",null,"1A - 15B","3A - 13B"]
[null,null,null,null,null,"M6 22B - 29B",null,"2B - 16A","4B - 14A"]
[null,null,null,null,null,"M7 23B - 30B",null,"17A - 32A","19A - 30A"]
[null,null,null,null,null,"M8 24B - 31B",null,"M2 - Q8","M4 - Q6"]
[null,null,null,null,null,null,null,"Q5 - M3","Q7 - M1"]
[null,null,null,null,null,null,null,"29A - 20A","31A - 18A"]
[null,null,null,null,null,null,null,"13A - 3B","15A - 1B"]
[null,null,null,null,null,null,null,"14B - 4A","16B - 2A"]
[null,null,null,null,null,null,null,"5A - 11B","7A - 9B"]
[null,null,null,null,null,null,null,"6B - 12A","8B - 10A"]
[null,null,null,null,null,null,null,"21A - 28A","23A - 26A"]
[null,null,null,null,null,null,null,"M6 - Q4","M8 - Q2"]
[null,{"$f":"C693*1000000+D693*1000+E693","v":9009064},9,9,64,"M1 15B - 24B",null,"Q1 - M8","Q3 - M9"]
[null,null,null,null,null,"M2 16B - 25B",null,"24A - 23A","26A - 21A"]
[null,null,null,null,null,"M3 17B - 26B",null,"8A - 5B","10A - 7B"]
[null,null,null,null,null,"M4 18B - 27B",null,"6B - 7A","12B - 5A"]
[null,null,null,null,null,"M5 19B - 28B",null,"Q9 - M2","2A - 14B"]
[null,null,null,null,null,"M6 20B - 29B",null,"32A - 15A","4B - 13A"]
[null,null,null,null,null,"M7 21B - 30B",null,"16A - 31A","18A - 29A"]
[null,null,null,null,null,"M8 22B - 31B",null,"M1 - Q8","M3 - Q6"]
[null,null,null,null,null,"M9 23B - 32B",null,"Q5 - M5","Q7 - M4"]
[null,null,null,null,null,null,null,"28A - 19A","30A - 17A"]
[null,null,null,null,null,null,null,"12A - 1B","14A - 3B"]
[null,null,null,null,null,null,null,"10B - 3A","13B - 1A"]
[null,null,null,null,null,null,null,"4A - 9B","6A - 11B"]
[null,null,null,null,null,null,null,"2B - 11A","8B - 9A"]
[null,null,null,null,null,null,null,"20A - 27A","22A - 25A"]
[null,null,null,null,null,null,null,"M6 - Q4","M7 - Q2"]
[null,{"$f":"C709*1000000+D709*1000+E709","v":10010064},10,10,64,"M1 13B - 23B",null,"Q1 - M9","Q3 - M7"]
[null,null,null,null,null,"M2 14B - 24B",null,"23A - 22A","25A - 20A"]
[null,null,null,null,null,"M3 15B - 25B",null,"7A - 5B","9A - 3B"]
[null,null,null,null,null,"M4 16B - 26B",null,"8B - 6A","10B - 4A"]
[null,null,null,null,null,"M5 17B - 27B",null,"Q9 - M1","1A - 11B"]
[null,null,null,null,null,"M6 18B - 28B",null,"31A - 14A","2B - 12A"]
[null,null,null,null,null,"M7 19B - 29B",null,"15A - 30A","17A - 28A"]
[null,null,null,null,null,"M8 20B - 30B",null,"M4 - Q8","M6 - Q6"]
[null,null,null,null,null,"M9 21B - 31B",null,"Q5 - M5","Q7 - M3"]
[null,null,null,null,null,"M10 22B - 32B",null,"27A - 18A","29A - 16A"]
[null,null,null,null,null,null,null,"11A - 1B","13A - 32A"]
[null,null,null,null,null,null,null,"12B - 2A","M2 - Q10"]
[null,null,null,null,null,null,null,"3A - 9B","5A - 7B"]
[null,null,null,null,null,null,null,"4B - 10A","6B - 8A"]
[null,null,null,null,null,null,null,"19A - 26A","21A - 24A"]
[null,null,null,null,null,null,null,"M8 - Q4","M10 - Q2"]
[null,{"$f":"C725*1000000+D725*1000+E725","v":11011064},11,11,64,"M1 11B - 22B",null,"Q1 - M10","Q3 - M7"]
[null,null,null,null,null,"M2 12B - 23B",null,"22A - 21A","24A - 19A"]
[null,null,null,null,null,"M3 13B - 24B",null,"6A - 7B","8A - 1B"]
[null,null,null,null,null,"M4 14B - 25B",null,"8B - 5A","6B - 3A"]
[null,null,null,null,null,"M5 15B - 26B",null,"Q9 - M5","Q11 - 10B"]
[null,null,null,null,null,"M6 16B - 27B",null,"30A - 13A","32A - 11A"]
[null,null,null,null,null,"M7 17B - 28B",null,"14A - 29A","16A - 27A"]
[null,null,null,null,null,"M8 18B - 29B",null,"M6 - Q8","M4 - Q6"]
[null,null,null,null,null,"M9 19B - 30B",null,"Q5 - M9","Q7 - M3"]
[null,null,null,null,null,"M10 20B - 31B",null,"26A - 17A","28A - 15A"]
[null,null,null,null,null,"M11 21B - 32B",null,"10A - 3B","12A - 31A"]
[null,null,null,null,null,null,null,"M2 - 1A","9B - Q10"]
[null,null,null,null,null,null,null,"2A - M1","4A - 5B"]
[null,null,null,null,null,null,null,"4B - 9A","2B - 7A"]
[null,null,null,null,null,null,null,"18A - 25A","20A - 23A"]
[null,null,null,null,null,null,null,"M11 - Q4","M8 - Q2"]
[null,{"$f":"C741*1000000+D741*1000+E741","v":12012064},12,12,64,"M1 9B - 21B",null,"Q1 - M11","Q3 - M9"]
[null,null,null,null,null,"M2 10B - 22B",null,"21A - 20A","23A - 18A"]
[null,null,null,null,null,"M3 11B - 23B",null,"5A - 3B","7A - 1B"]
[null,null,null,null,null,"M4 12B - 24B",null,"6B - 4A","8B - 2A"]
[null,null,null,null,null,"M5 13B - 25B",null,"Q9 - M3","Q11 - M1"]
[null,null,null,null,null,"M6 14B - 26B",null,"29A - 12A","31A - 10A"]
[null,null,null,null,null,"M7 15B - 27B",null,"13A - 28A","15A - 26A"]
[null,null,null,null,null,"M8 16B - 28B",null,"M6 - Q8","M8 - Q6"]
[null,null,null,null,null,"M9 17B - 29B",null,"Q5 - M7","Q7 - M5"]
[null,null,null,null,null,"M10 18B - 30B",null,"25A - 16A","27A - 14A"]
[null,null,null,null,null,"M11 19B - 31B",null,"9A - 32A","11A - 30A"]
[null,null,null,null,null,"M12 20B - 32B",null,"M2 - Q12","M4 - Q10"]
[null,null,null,null,null,null,null,"1A - 7B","3A - 5B"]
[null,null,null,null,null,null,null,"2B - 8A","4B - 6A"]
[null,null,null,null,null,null,null,"17A - 24A","19A - 22A"]
[null,null,null,null,null,null,null,"M10 - Q4","M12 - Q2"]
[null,{"$f":"C757*1000000+D757*1000+E757","v":13013064},13,13,64,"M1 7B - 20B",null,"Q1 - M11","Q3 - M12"]
[null,null,null,null,null,"M2 8B - 21B",null,"20A - 19A","22A - 17A"]
[null,null,null,null,null,"M3 9B - 22B",null,"4A - 1B","6A - 3B"]
[null,null,null,null,null,"M4 10B - 23B",null,"2B - 3A","M2 - 1A"]
[null,null,null,null,null,"M5 11B - 24B",null,"Q9 - M3","Q11 - M5"]
[null,null,null,null,null,"M6 12B - 25B",null,"28A - 11A","30A - 9A"]
[null,null,null,null,null,"M7 13B - 26B",null,"12A - 27A","14A - 25A"]
[null,null,null,null,null,"M8 14B - 27B",null,"M4 - Q8","M10 - Q6"]
[null,null,null,null,null,"M9 15B - 28B",null,"Q5 - M7","Q7 - M9"]
[null,null,null,null,null,"M10 16B - 29B",null,"24A - 15A","26A - 13A"]
[null,null,null,null,null,"M11 17B - 30B",null,"8A - 31A","10A - 29A"]
[null,null,null,null,null,"M12 18B - 31B",null,"6B - Q12","M6 - Q10"]
[null,null,null,null,null,"M13 19B - 32B",null,"Q13 - 5B","2A - M1"]
[null,null,null,null,null,null,null,"32A - 7A","4B - 5A"]
[null,null,null,null,null,null,null,"16A - 23A","18A - 21A"]
[null,null,null,null,null,null,null,"M8 - Q4","M13 - Q4"]
[null,{"$f":"C773*1000000+D773*1000+E773","v":14014064},14,14,64,"M1 5B - 19B",null,"Q1 - M13","Q3 - M11"]
[null,null,null,null,null,"M2 6B - 20B",null,"19A - 18A","21A - 16A"]
[null,null,null,null,null,"M3 7B - 21B",null,"3A - 1B","5A - 32A"]
[null,null,null,null,null,"M4 8B - 22B",null,"4B - 2A","M2 - Q14"]
[null,null,null,null,null,"M5 9B - 23B",null,"Q9 - M8","Q11 - M3"]
[null,null,null,null,null,"M6 10B - 24B",null,"27A - 10A","29A - 8A"]
[null,null,null,null,null,"M7 11B - 25B",null,"11A - 26A","13A - 24A"]
[null,null,null,null,null,"M8 12B - 26B",null,"M5 - Q8","M10 - Q6"]
[null,null,null,null,null,"M9 13B - 27B",null,"Q5 - M9","Q7 - M6"]
[null,null,null,null,null,"M10 14B - 28B",null,"23A - 14A","25A - 12A"]
[null,null,null,null,null,"M11 15B - 29B",null,"7A - 30A","9A - 28A"]
[null,null,null,null,null,"M12 16B - 30B",null,"M4 - Q12","M7 - Q10"]
[null,null,null,null,null,"M13 17B - 31B",null,"Q13 - M1","1A - 3B"]
[null,null,null,null,null,"M14 18B - 32B",null,"31A - 6A","2B - 4A"]
[null,null,null,null,null,null,null,"15A - 22A","17A - 20A"]
[null,null,null,null,null,null,null,"M12 - Q4","M14 - Q2"]
[null,{"$f":"C789*1000000+D789*1000+E789","v":15015064},15,15,64,"M1 3B - 18B",null,"Q1 - M14","Q3 - M11"]
[null,null,null,null,null,"M2 4B - 19B",null,"18A - 17A","20A - 15A"]
[null,null,null,null,null,"M3 5B - 20B",null,"2A - M1","4A - 31A"]
[null,null,null,null,null,"M4 6B - 21B",null,"M2 - 1A","2B - Q14"]
[null,null,null,null,null,"M5 7B - 22B",null,"Q9 - M9","Q11 - M3"]
[null,null,null,null,null,"M6 8B - 23B",null,"26A - 9A","28A - 7A"]
[null,null,null,null,null,"M7 9B - 24B",null,"10A - 25A","12A - 23A"]
[null,null,null,null,null,"M8 10B - 25B",null,"M10 - Q8","M7 - Q6"]
[null,null,null,null,null,"M9 11B - 26B",null,"Q5 - M13","Q7 - M8"]
[null,null,null,null,null,"M10 12B - 27B",null,"22A - 13A","24A - 11A"]
[null,null,null,null,null,"M11 13B - 28B",null,"6A - 29A","8A - 27A"]
[null,null,null,null,null,"M12 14B - 29B",null,"M6 - Q12","M4 - Q10"]
[null,null,null,null,null,"M13 15B - 30B",null,"Q13 - M5","Q15 - 1B"]
[null,null,null,null,null,"M14 16B - 31B",null,"30A - 5A","32A - 3A"]
[null,null,null,null,null,"M15 17B - 32B",null,"14A - 21A","16A - 19A"]
[null,null,null,null,null,null,null,"M15 - Q4","M12 - Q2"]
[null,{"$f":"C805*1000000+D805*1000+E805","v":16016064},16,16,64,"M1 1B - 17B",null,"Q1 - M15","Q3 - M13"]
[null,null,null,null,null,"M2 2B - 18B",null,"17A - 16A","19A - 14A"]
[null,null,null,null,null,"M3 3B - 19B",null,"1A - 32A","3A - 30A"]
[null,null,null,null,null,"M4 4B - 20B",null,"M2 - Q16","M4 - Q14"]
[null,null,null,null,null,"M5 5B - 21B",null,"Q9 - M7","Q11 - M5"]
[null,null,null,null,null,"M6 6B - 22B",null,"25A - 8A","27A - 6A"]
[null,null,null,null,null,"M7 7B - 23B",null,"9A - 24A","11A - 22A"]
[null,null,null,null,null,"M8 8B - 24B",null,"M10 - Q8","M12 - Q6"]
[null,null,null,null,null,"M9 9B - 25B",null,"Q5 - M11","Q7 - M9"]
[null,null,null,null,null,"M10 10B - 26B",null,"21A - 12A","23A - 10A"]
[null,null,null,null,null,"M11 11B - 27B",null,"5A - 28A","7A - 26A"]
[null,null,null,null,null,"M12 12B - 28B",null,"M6 - Q12","M8 - Q10"]
[null,null,null,null,null,"M13 13B - 29B",null,"Q13 - M3","Q15 - M1"]
[null,null,null,null,null,"M14 14B - 30B",null,"29A - 4A","31A - 2A"]
[null,null,null,null,null,"M15 15B - 31B",null,"13A - 20A","15A - 18A"]
[null,null,null,null,null,"M16 16B - 32B",null,"M14 - Q4","M16 - Q2"]
[null,{"$f":"C821*1000000+D821*1000+E821","v":17017064},17,17,64,"M1 31A - 16B",null,"Q1 - M16","Q3 - M13"]
[null,null,null,null,null,"M2 32A - 17B",null,"16A - 15A","18A - 13A"]
[null,null,null,null,null,"M3 1B - 18B",null,"Q17 - M2","2A - 29A"]
[null,null,null,null,null,"M4 2B - 19B",null,"M3 - Q16","M5 - Q14"]
[null,null,null,null,null,"M5 3B - 20B",null,"Q9 - M11","Q11 - M8"]
[null,null,null,null,null,"M6 4B - 21B",null,"24A - 7A","26A - 5A"]
[null,null,null,null,null,"M7 5B - 22B",null,"8A - 23A","10A - 21A"]
[null,null,null,null,null,"M8 6B - 23B",null,"M12 - Q8","M9 - Q6"]
[null,null,null,null,null,"M9 7B - 24B",null,"Q5 - M14","Q7 - M10"]
[null,null,null,null,null,"M10 8B - 25B",null,"20A - 11A","22A - 9A"]
[null,null,null,null,null,"M11 9B - 26B",null,"4A - 27A","6A - 25A"]
[null,null,null,null,null,"M12 10B - 27B",null,"M7 - Q12","M6 - Q10"]
[null,null,null,null,null,"M13 11B - 28B",null,"Q13 - M1","Q15 - M4"]
[null,null,null,null,null,"M14 12B - 29B",null,"28A - 3A","30A - 1A"]
[null,null,null,null,null,"M15 13B - 30B",null,"12A - 19A","14A - 17A"]
[null,null,null,null,null,"M16 14B - 31B",null,"M15 - Q4","M17 - Q2"]
[null,null,null,null,null,"M17 15B - 32B"]
[null,{"$f":"C838*1000000+D838*1000+E838","v":18018064},18,18,64,"M1 29A - 15B",null,"Q1 - M17","Q3 - M15"]
[null,null,null,null,null,"M2 30A - 16B",null,"15A - 14A","17A - 12A"]
[null,null,null,null,null,"M3 31A - 17B",null,"Q17 - M2","1A - 28A"]
[null,null,null,null,null,"M4 32A - 18B",null,"M3 - Q16","M6 - Q14"]
[null,null,null,null,null,"M5 1B - 19B",null,"Q9 - M12","Q11 - M7"]
[null,null,null,null,null,"M6 2B - 20B",null,"23A - 6A","25A - 4A"]
[null,null,null,null,null,"M7 3B - 21B",null,"7A - 22A","9A - 20A"]
[null,null,null,null,null,"M8 4B - 22B",null,"M9 - Q8","M14 - Q6"]
[null,null,null,null,null,"M9 5B - 23B",null,"Q5 - M13","Q7 - M10"]
[null,null,null,null,null,"M10 6B - 24B",null,"19A - 10A","21A - 8A"]
[null,null,null,null,null,"M11 7B - 25B",null,"3A - 26A","5A - 24A"]
[null,null,null,null,null,"M12 8B - 26B",null,"M8 - Q12","M11 - Q10"]
[null,null,null,null,null,"M13 9B - 27B",null,"Q13 - M5","Q15 - M4"]
[null,null,null,null,null,"M14 10B - 28B",null,"27A - 2A","M1 - Q18"]
[null,null,null,null,null,"M15 11B - 29B",null,"11A - 18A","13A - 16A"]
[null,null,null,null,null,"M16 12B - 30B",null,"M16 - Q4","M18 - Q2"]
[null,null,null,null,null,"M17 13B - 31B"]
[null,null,null,null,null,"M18 14B - 32B"]
[null,{"$f":"C856*1000000+D856*1000+E856","v":19019064},19,19,64,"M1 27A - 14B",null,"Q1 - M18","Q3 - M15"]
[null,null,null,null,null,"M2 28A - 16B",null,"14A - 13A","16A - 11A"]
[null,null,null,null,null,"M3 29A - 15B",null,"Q17 - M3","Q19 - M1"]
[null,null,null,null,null,"M4 30A - 17B",null,"M4 - Q16","M6 - Q14"]
[null,null,null,null,null,"M5 31A - 18B",null,"Q9 - M13","Q11 - M7"]
[null,null,null,null,null,"M6 32A - 19B",null,"22A - 5A","24A - 3A"]
[null,null,null,null,null,"M7 1B - 20B",null,"6A - 21A","8A - 19A"]
[null,null,null,null,null,"M8 2B - 21B",null,"M14 - Q8","M12 - Q6"]
[null,null,null,null,null,"M9 3B - 22B",null,"Q5 - M17","Q7 - M11"]
[null,null,null,null,null,"M10 4B - 23B",null,"18A - 9A","20A - 7A"]
[null,null,null,null,null,"M11 5B - 24B",null,"2A - 25A","4A - 23A"]
[null,null,null,null,null,"M12 6B - 25B",null,"M10 - Q12","M8 - Q10"]
[null,null,null,null,null,"M13 7B - 26B",null,"Q13 - M9","Q15 - M5"]
[null,null,null,null,null,"M14 8B - 27B",null,"26A - 1A","M2 - Q18"]
[null,null,null,null,null,"M15 9B - 28B",null,"10A - 17A","12A - 15A"]
[null,null,null,null,null,"M16 10B - 29B",null,"M19 - Q4","M16 - Q2"]
[null,null,null,null,null,"M17 11B - 30B"]
[null,null,null,null,null,"M18 12B - 31B"]
[null,null,null,null,null,"M19 13B - 32B"]
[null,{"$f":"C875*1000000+D875*1000+E875","v":20020064},20,20,64,"M1 25A - 14B",null,"Q1 - M19","Q3 - M17"]
[null,null,null,null,null,"M2 26A - 13B",null,"13A - 12A","15A - 10A"]
[null,null,null,null,null,"M3 27A - 16B",null,"Q17 - M4","Q19 - M2"]
[null,null,null,null,null,"M4 28A - 15B",null,"M5 - Q16","M7 - Q14"]
[null,null,null,null,null,"M5 29A - 18B",null,"Q9 - M11","Q11 - M9"]
[null,null,null,null,null,"M6 30A - 17B",null,"21A - 4A","23A - 2A"]
[null,null,null,null,null,"M7 31A - 20B",null,"5A - 20A","7A - 18A"]
[null,null,null,null,null,"M8 32A - 19B",null,"M14 - Q8","M16 - Q6"]
[null,null,null,null,null,"M9 1B - 21B",null,"Q5 - M15","Q7 - M13"]
[null,null,null,null,null,"M10 2B - 22B",null,"17A - 8A","19A - 6A"]
[null,null,null,null,null,"M11 3B - 23B",null,"1A - 24A","3A - 22A"]
[null,null,null,null,null,"M12 4B - 24B",null,"M10 - Q12","M12 - Q10"]
[null,null,null,null,null,"M13 5B - 25B",null,"Q13 - M8","Q15 - M6"]
[null,null,null,null,null,"M14 6B - 26B",null,"M1 - Q20","M3 - Q18"]
[null,null,null,null,null,"M15 7B - 27B",null,"9A - 16A","11A - 14A"]
[null,null,null,null,null,"M16 8B - 28B",null,"M18 - Q4","M20 - Q2"]
[null,null,null,null,null,"M17 9B - 29B"]
[null,null,null,null,null,"M18 10B - 30B"]
[null,null,null,null,null,"M19 11B - 31B"]
[null,null,null,null,null,"M20 12B - 32B"]
[null,{"$f":"C895*1000000+D895*1000+E895","v":21021064},21,21,64,"M1 23A - 14B",null,"Q1 - M21","Q3 - M19"]
[null,null,null,null,null,"M2 24A - 13B",null,"12A - 11A","14A - 9A"]
[null,null,null,null,null,"M3 25A - 12B",null,"Q17 - M5","Q19 - M3"]
[null,null,null,null,null,"M4 26A - 15B",null,"M6 - Q16","M8 - 814"]
[null,null,null,null,null,"M5 27A - 16B",null,"Q9 - M13","Q11 - M11"]
[null,null,null,null,null,"M6 28A - 17B",null,"20A - 3A","22A - 1A"]
[null,null,null,null,null,"M7 29A - 18B",null,"4A - 19A","6A - 17A"]
[null,null,null,null,null,"M8 30A - 19B",null,"M14 - Q8","M16 - Q6"]
[null,null,null,null,null,"M9 31A - 20B",null,"Q5 - M17","Q7 - M15"]
[null,null,null,null,null,"M10 32A - 21B",null,"16A - 7A","18A - 5A"]
[null,null,null,null,null,"M11 1B - 23B",null,"Q21 - M1","2A - 21A"]
[null,null,null,null,null,"M12 3B - 22B",null,"M10 - Q12","M12 - Q10"]
[null,null,null,null,null,"M13 2B - 24B",null,"Q13 - M9","Q15 - M7"]
[null,null,null,null,null,"M14 5B - 25B",null,"M2 - Q20","M4 - Q18"]
[null,null,null,null,null,"M15 4B - 26B",null,"8A - 15A","10A - 13A"]
[null,null,null,null,null,"M16 7B - 27B",null,"M18 - Q4","M20 - Q2"]
[null,null,null,null,null,"M17 6B - 28B"]
[null,null,null,null,null,"M18 9B - 29B"]
[null,null,null,null,null,"M19 8B - 30B"]
[null,null,null,null,null,"M20 11B - 31B"]
[null,null,null,null,null,"M21 10B - 32B"]
[null,{"$f":"C916*1000000+D916*1000+E916","v":22022064},22,22,64,"M1 21A - 11B",null,"Q1 - M21","Q3 - M19"]
[null,null,null,null,null,"M2 22A - 12B",null,"11A - 10A","13A - 8A"]
[null,null,null,null,null,"M3 23A - 13B",null,"Q17 - M6","Q19 - M4"]
[null,null,null,null,null,"M4 24A - 14B",null,"M7 - Q16","M9 - Q14"]
[null,null,null,null,null,"M5 25A - 15B",null,"Q9 - M13","Q11 - M12"]
[null,null,null,null,null,"M6 26A - 16B",null,"19A - 2A","M1 - Q22"]
[null,null,null,null,null,"M7 27A - 17B",null,"3A - 18A","5A - 16A"]
[null,null,null,null,null,"M8 28A - 18B",null,"M16 - Q8","M18 - Q6"]
[null,null,null,null,null,"M9 29A - 19B",null,"Q5 - M17","Q7 - M15"]
[null,null,null,null,null,"M10 30A - 20B",null,"15A - 6A","17A - 4A"]
[null,null,null,null,null,"M11 31A - 21B",null,"Q21 - M2","1A - 20A"]
[null,null,null,null,null,"M12 32A - 22B",null,"M11 - Q12","M14 - Q10"]
[null,null,null,null,null,"M13 1B - 23B",null,"Q13 - M10","Q15 - M8"]
[null,null,null,null,null,"M14 2B - 24B",null,"M3 - Q20","M5 - Q18"]
[null,null,null,null,null,"M15 3B - 25B",null,"7A - 14A","9A - 12A"]
[null,null,null,null,null,"M16 4B - 26B",null,"M20 - Q4","M22 - Q2"]
[null,null,null,null,null,"M17 5B - 27B"]
[null,null,null,null,null,"M18 6B - 28B"]
[null,null,null,null,null,"M19 7B - 29B"]
[null,null,null,null,null,"M20 8B - 30B"]
[null,null,null,null,null,"M21 9B - 31B"]
[null,null,null,null,null,"M22 10B - 32B"]
[null,{"$f":"C938*1000000+D938*1000+E938","v":23023064},23,23,64,"M1 19A - 10B",null,"Q1 - M22","Q3 - M20"]
[null,null,null,null,null,"M2 20A - 11B",null,"10A - 9A","12A - 7A"]
[null,null,null,null,null,"M3 21A - 12B",null,"Q17 - M7","Q19 - M5"]
[null,null,null,null,null,"M4 22A - 13B",null,"M8 - Q16","M10 - Q14"]
[null,null,null,null,null,"M5 23A - 14B",null,"Q9 - M16","Q11 - M13"]
[null,null,null,null,null,"M6 24A - 15B",null,"18A - 1A","M2 - Q22"]
[null,null,null,null,null,"M7 25A - 16B",null,"2A - 17A","4A - 15A"]
[null,null,null,null,null,"M8 26A - 17B",null,"M17 - Q8","M18 - Q6"]
[null,null,null,null,null,"M9 27A - 18B",null,"Q5 - M19","Q7 - M15"]
[null,null,null,null,null,"M10 28A - 19B",null,"14A - 5A","16A - 3A"]
[null,null,null,null,null,"M11 29A - 20B",null,"Q21 - M3","Q23 - M1"]
[null,null,null,null,null,"M12 30A - 21B",null,"M12 - Q12","M14 - Q10"]
[null,null,null,null,null,"M13 31A - 22B",null,"Q13 - M11","Q15 - M9"]
[null,null,null,null,null,"M14 32A - 23B",null,"M4 - Q20","M6 - Q18"]
[null,null,null,null,null,"M15 1B - 24B",null,"6A - 13A","8A - 11A"]
[null,null,null,null,null,"M16 2B - 25B",null,"M21 - 84","M23 - Q2"]
[null,null,null,null,null,"M17 3B - 26B"]
[null,null,null,null,null,"M18 4B - 27B"]
[null,null,null,null,null,"M19 5B - 28B"]
[null,null,null,null,null,"M20 6B - 29B"]
[null,null,null,null,null,"M21 7B - 30B"]
[null,null,null,null,null,"M22 8B - 31B"]
[null,null,null,null,null,"M23 9B - 32B"]
[null,{"$f":"C961*1000000+D961*1000+E961","v":24024064},24,24,64,"M1 17A - 10B",null,"Q1 - M23","Q3 - M21"]
[null,null,null,null,null,"M2 18A - 9B",null,"9A - 8A","11A - 6A"]
[null,null,null,null,null,"M3 19A - 12B",null,"Q17 - M8","Q19 - M6"]
[null,null,null,null,null,"M4 20A - 11B",null,"M9 - Q16","M11 - Q14"]
[null,null,null,null,null,"M5 21A - 14B",null,"Q9 - M16","Q11 - M14"]
[null,null,null,null,null,"M6 22A - 13B",null,"M1 - Q24","M3 - Q22"]
[null,null,null,null,null,"M7 23A - 16B",null,"1A - 16A","3A - 14A"]
[null,null,null,null,null,"M8 24A - 15B",null,"M18 - Q8","M20 - Q6"]
[null,null,null,null,null,"M9 25A - 18B",null,"Q5 - M19","Q7 - M17"]
[null,null,null,null,null,"M10 26A - 17B",null,"13A - 4A","15A - 2A"]
[null,null,null,null,null,"M11 27A - 20B",null,"Q21 - M4","Q23 - M2"]
[null,null,null,null,null,"M12 28A - 19B",null,"M13 - Q12","M15 - Q10"]
[null,null,null,null,null,"M13 29A - 22B",null,"Q13 - M12","Q15 - M10"]
[null,null,null,null,null,"M14 30A - 21B",null,"M5 - Q20","M7 - Q18"]
[null,null,null,null,null,"M15 31A - 24B",null,"5A - 12A","7A - 10A"]
[null,null,null,null,null,"M16 32A - 23B",null,"M22 - Q4","M24 - Q2"]
[null,null,null,null,null,"M17 1B - 25B"]
[null,null,null,null,null,"M18 2B - 26B"]
[null,null,null,null,null,"M19 3B - 27B"]
[null,null,null,null,null,"M20 4B - 28B"]
[null,null,null,null,null,"M21 5B - 29B"]
[null,null,null,null,null,"M22 6B - 30B"]
[null,null,null,null,null,"M23 7B - 31B"]
[null,null,null,null,null,"M24 8B - 32B"]
[null,{"$f":"C985*1000000+D985*1000+E985","v":25025064},25,25,64,"M1 15A - 10B",null,"Q1 - M24","Q3 - M25"]
[null,null,null,null,null,"M2 16A - 9B",null,"8A - 7A","10A - 5A"]
[null,null,null,null,null,"M3 17A - 8B",null,"Q17 - M9","Q19 - M7"]
[null,null,null,null,null,"M4 18A - 11B",null,"M10 - Q16","M12 - Q14"]
[null,null,null,null,null,"M5 19A - 12B",null,"Q9 - M17","Q11 - M15"]
[null,null,null,null,null,"M6 20A - 13B",null,"M2 - Q24","M4 - Q22"]
[null,null,null,null,null,"M7 21A - 14B",null,"Q25 - M1","2A - 13A"]
[null,null,null,null,null,"M8 22A - 15B",null,"M18 - Q8","M19 - Q6"]
[null,null,null,null,null,"M9 23A - 16B",null,"Q5 - M22","Q7 - M20"]
[null,null,null,null,null,"M10 24A - 17B",null,"12A - 3A","14A - 1A"]
[null,null,null,null,null,"M11 25A - 18B",null,"Q21 - M5","Q23 - M3"]
[null,null,null,null,null,"M12 26A - 19B",null,"M14 - Q12","M16 - Q10"]
[null,null,null,null,null,"M13 27A - 20B",null,"Q13 - M13","Q15 - M11"]
[null,null,null,null,null,"M14 28A - 21B",null,"M6 - Q20","M8 - Q18"]
[null,null,null,null,null,"M15 29A - 22B",null,"4A - 11A","6A - 9A"]
[null,null,null,null,null,"M16 30A - 23B",null,"M21 - Q4","M23 - Q2"]
[null,null,null,null,null,"M17 31A - 24B"]
[null,null,null,null,null,"M18 32A - 25B"]
[null,null,null,null,null,"M19 1B - 26B"]
[null,null,null,null,null,"M20 2B - 27B"]
[null,null,null,null,null,"M21 3B - 28B"]
[null,null,null,null,null,"M22 4B - 29B"]
[null,null,null,null,null,"M23 5B - 30B"]
[null,null,null,null,null,"M24 6B - 31B"]
[null,null,null,null,null,"M25 7B - 32B"]
[null,{"$f":"C1010*1000000+D1010*1000+E1010","v":26026064},26,26,64,"M1 13A - 7B",null,"Q1 - M25","Q3 - M23"]
[null,null,null,null,null,"M2 14A - 8B",null,"7A - 6A","9A - 4A"]
[null,null,null,null,null,"M3 15A - 9B",null,"Q17 - M10","Q19 - M8"]
[null,null,null,null,null,"M4 16A - 10B",null,"M11 - Q16","M13 - Q14"]
[null,null,null,null,null,"M5 17A - 11B",null,"Q9 - M18","Q11 - M16"]
[null,null,null,null,null,"M6 18A - 12B",null,"M3 - Q24","M5 - Q22"]
[null,null,null,null,null,"M7 19A - 13B",null,"Q25 - M2","1A - 12A"]
[null,null,null,null,null,"M8 20A - 14B",null,"M19 - Q8","M22 - Q6"]
[null,null,null,null,null,"M9 21A - 15B",null,"Q5 - M21","Q7 - M20"]
[null,null,null,null,null,"M10 22A - 16B",null,"11A - 2A","M1 - Q26"]
[null,null,null,null,null,"M11 23A - 17B",null,"Q21 - M6","Q23 - M4"]
[null,null,null,null,null,"M12 24A - 18B",null,"M15 - 812","M17 - Q10"]
[null,null,null,null,null,"M13 25A - 19B",null,"Q13 - M14","Q15 - M12"]
[null,null,null,null,null,"M14 26A - 20B",null,"M7 - Q20","M9 - Q18"]
[null,null,null,null,null,"M15 27A - 21B",null,"3A - 10A","5A - 8A"]
[null,null,null,null,null,"M16 28A - 22B",null,"M24 - Q4","M26 - Q2"]
[null,null,null,null,null,"M17 29A - 23B"]
[null,null,null,null,null,"M18 30A - 24B"]
[null,null,null,null,null,"M19 31A - 25B"]
[null,null,null,null,null,"M20 32A - 26B"]
[null,null,null,null,null,"M21 1B - 28B"]
[null,null,null,null,null,"M22 2B - 27B"]
[null,null,null,null,null,"M23 3B - 29B"]
[null,null,null,null,null,"M24 4B - 30B"]
[null,null,null,null,null,"M25 5B - 31B"]
[null,null,null,null,null,"M26 6B - 32B"]
[null,{"$f":"C1036*1000000+D1036*1000+E1036","v":27027064},27,27,64,"M1 11A - 6B",null,"Q1 - M26","Q3 - M23"]
[null,null,null,null,null,"M2 12A - 7B",null,"6A - 5A","8A - 3A"]
[null,null,null,null,null,"M3 13A - 8B",null,"Q17 - M11","Q19 - M9"]
[null,null,null,null,null,"M4 14A - 9B",null,"M12 - Q16","M14 - Q14"]
[null,null,null,null,null,"M5 15A - 10B",null,"Q9 - M19","Q11 - M17"]
[null,null,null,null,null,"M6 16A - 12B",null,"M4 - Q24","M6 - Q22"]
[null,null,null,null,null,"M7 17A - 11B",null,"Q25 - M3","Q27 - M1"]
[null,null,null,null,null,"M8 18A - 13B",null,"M20 - Q8","M22 - Q6"]
[null,null,null,null,null,"M9 19A - 14B",null,"Q5 - M25","Q7 - M21"]
[null,null,null,null,null,"M10 20A - 15B",null,"10A - 1A","M2 - Q26"]
[null,null,null,null,null,"M11 21A - 16B",null,"Q21 - M7","Q23 - M5"]
[null,null,null,null,null,"M12 22A - 17B",null,"M16 - Q12","M18 - Q10"]
[null,null,null,null,null,"M13 23A - 19B",null,"Q13 - M15","Q15 - M13"]
[null,null,null,null,null,"M14 24A - 18B",null,"M8 - Q20","M10 - Q18"]
[null,null,null,null,null,"M15 25A - 20B",null,"2A - 9A","4A - 7A"]
[null,null,null,null,null,"M16 26A - 21B",null,"M27 - Q4","M24 - Q2"]
[null,null,null,null,null,"M17 27A - 22B"]
[null,null,null,null,null,"M18 28A - 23B"]
[null,null,null,null,null,"M19 29A - 24B"]
[null,null,null,null,null,"M20 30A - 25B"]
[null,null,null,null,null,"M21 31A - 27B"]
[null,null,null,null,null,"M22 32A - 26B"]
[null,null,null,null,null,"M23 1B - 28B"]
[null,null,null,null,null,"M24 2B - 29B"]
[null,null,null,null,null,"M25 3B - 30B"]
[null,null,null,null,null,"M26 4B - 31B"]
[null,null,null,null,null,"M27 5B - 32B"]
[null,{"$f":"C1063*1000000+D1063*1000+E1063","v":28028064},28,28,64,"M1 9A - 5B",null,"Q1 - M27","Q3 - M25"]
[null,null,null,null,null,"M2 10A - 6B",null,"5A - 4A","7A - 2A"]
[null,null,null,null,null,"M3 11A - 7B",null,"Q17 - M12","Q19 - M10"]
[null,null,null,null,null,"M4 12A - 8B",null,"M13 - Q16","M15 - Q14"]
[null,null,null,null,null,"M5 13A - 9B",null,"Q9 - M20","Q11 - M18"]
[null,null,null,null,null,"M6 14A - 10B",null,"M5 - Q24","M7 - Q22"]
[null,null,null,null,null,"M7 15A - 11B",null,"Q25 - M4","Q27 - M2"]
[null,null,null,null,null,"M8 16A - 12B",null,"M21 - Q8","M23 - Q6"]
[null,null,null,null,null,"M9 17A - 13B",null,"Q5 - M24","Q7 - M22"]
[null,null,null,null,null,"M10 18A - 14B",null,"M1 - Q28","M3 - Q26"]
[null,null,null,null,null,"M11 19A - 15B",null,"Q21 - M8","Q23 - M6"]
[null,null,null,null,null,"M12 20A - 16B",null,"M17 - Q12","M19 - Q10"]
[null,null,null,null,null,"M13 21A - 17B",null,"Q13 - M16","Q15 - M14"]
[null,null,null,null,null,"M14 22A - 18B",null,"M9 - Q20","M11 - Q18"]
[null,null,null,null,null,"M15 23A - 19B",null,"1A - 8A","3A - 6A"]
[null,null,null,null,null,"M16 24A - 20B",null,"M26 - Q4","M28 - Q2"]
[null,null,null,null,null,"M17 25A - 21B"]
[null,null,null,null,null,"M18 26A - 22B"]
[null,null,null,null,null,"M19 27A - 23B"]
[null,null,null,null,null,"M20 28A - 24B"]
[null,null,null,null,null,"M21 29A - 25B"]
[null,null,null,null,null,"M22 30A - 26B"]
[null,null,null,null,null,"M23 31A - 27B"]
[null,null,null,null,null,"M24 32A - 28B"]
[null,null,null,null,null,"M25 1B - 29B"]
[null,null,null,null,null,"M26 2B - 30B"]
[null,null,null,null,null,"M27 3B - 31B"]
[null,null,null,null,null,"M28 4B - 32B"]
[null,{"$f":"C1091*1000000+D1091*1000+E1091","v":29029064},29,29,64,"M1 7A - 4B",null,"Q1 - M28","Q3 - M29"]
[null,null,null,null,null,"M2 8A - 5B",null,"4A - 3A","6A - 1A"]
[null,null,null,null,null,"M3 9A - 6B",null,"Q17 - M13","Q19 - M11"]
[null,null,null,null,null,"M4 10A - 7B",null,"M14 - Q16","M16 - Q14"]
[null,null,null,null,null,"M5 11A - 8B",null,"Q9 - M21","Q11 - M19"]
[null,null,null,null,null,"M6 12A - 10B",null,"M6 - Q24","M8 - Q22"]
[null,null,null,null,null,"M7 13A - 9B",null,"Q25 - M5","Q27 - M3"]
[null,null,null,null,null,"M8 14A - 11B",null,"M22 - Q8","M24 - Q6"]
[null,null,null,null,null,"M9 15A - 12B",null,"Q5 - M25","Q7 - M23"]
[null,null,null,null,null,"M10 16A - 13B",null,"M2 - Q28","M4 - Q26"]
[null,null,null,null,null,"M11 17A - 14B",null,"Q21 - M9","Q23 - M7"]
[null,null,null,null,null,"M12 18A - 15B",null,"M18 - Q12","M20 - Q10"]
[null,null,null,null,null,"M13 19A - 16B",null,"Q13 - M17","Q15 - M15"]
[null,null,null,null,null,"M14 20A - 18B",null,"M10 - Q20","M12 - Q18"]
[null,null,null,null,null,"M15 21A - 17B",null,"Q29 - M1","2A - 5A"]
[null,null,null,null,null,"M16 22A - 19B",null,"M26 –Q4","M27 - Q2"]
[null,null,null,null,null,"M17 23A - 20B"]
[null,null,null,null,null,"M18 24A - 21B"]
[null,null,null,null,null,"M19 25A - 22B"]
[null,null,null,null,null,"M20 26A - 23B"]
[null,null,null,null,null,"M21 27A - 24B"]
[null,null,null,null,null,"M22 28A - 25B"]
[null,null,null,null,null,"M23 29A - 27B"]
[null,null,null,null,null,"M24 30A - 26A"]
[null,null,null,null,null,"M25 31A - 28B"]
[null,null,null,null,null,"M26 32A - 29B"]
[null,null,null,null,null,"M27 1B - 30B"]
[null,null,null,null,null,"M28 2B - 31B"]
[null,null,null,null,null,"M29 3B - 32B"]
[null,{"$f":"C1120*1000000+D1120*1000+E1120","v":30030064},30,30,64,"M1 5A - 3B",null,"Q1 - M29","Q3 - M28"]
[null,null,null,null,null,"M2 6A - 4B",null,"3A - 2A","M1 - Q30"]
[null,null,null,null,null,"M3 7A - 5B",null,"Q17 - M14","Q19 - M12"]
[null,null,null,null,null,"M4 8A - 6B",null,"M15 - Q16","M17 - Q14"]
[null,null,null,null,null,"M5 9A - 7B",null,"Q9 - M22","Q11 - M20"]
[null,null,null,null,null,"M6 10A - 8B",null,"M7 - Q24","M9 - 822"]
[null,null,null,null,null,"M7 11A - 9B",null,"Q25 - M6","Q27 - M4"]
[null,null,null,null,null,"M8 12A - 10B",null,"M23 - Q8","M25 - Q6"]
[null,null,null,null,null,"M9 13A - 11B",null,"Q5 - M26","Q7 - M24"]
[null,null,null,null,null,"M10 14A - 12B",null,"M3 - Q28","M5 - Q26"]
[null,null,null,null,null,"M11 15A - 13B",null,"Q21 - M10","Q23 - M8"]
[null,null,null,null,null,"M12 16A - 14B",null,"M19 - Q12","M21 - Q10"]
[null,null,null,null,null,"M13 17A - 15B",null,"Q13 - M18","Q15 - M16"]
[null,null,null,null,null,"M14 18A - 16B",null,"M11 - Q20","M13 - Q18"]
[null,null,null,null,null,"M15 19A - 17B",null,"Q29 - M2","1A - 4A"]
[null,null,null,null,null,"M16 20A - 18B",null,"M27 - Q4","M30 - Q2"]
[null,null,null,null,null,"M17 21A - 19B"]
[null,null,null,null,null,"M18 22A - 20B"]
[null,null,null,null,null,"M19 23A - 21B"]
[null,null,null,null,null,"M20 24A - 22B"]
[null,null,null,null,null,"M21 25A - 23B"]
[null,null,null,null,null,"M22 26A - 24B"]
[null,null,null,null,null,"M23 27A - 25B"]
[null,null,null,null,null,"M24 28A - 26B"]
[null,null,null,null,null,"M25 29A - 27B"]
[null,null,null,null,null,"M26 30A - 28B"]
[null,null,null,null,null,"M27 31A - 29B"]
[null,null,null,null,null,"M28 32A - 30B"]
[null,null,null,null,null,"M29 1B - 31B"]
[null,null,null,null,null,"M30 2B - 32B"]
[null,{"$f":"C1150*1000000+D1150*1000+E1150","v":31031064},31,31,64,"M1 3A - 2B",null,"Q1 - M30","Q3 - M29"]
[null,null,null,null,null,"M2 4A - 3B",null,"2A - 1A","M2 - Q30"]
[null,null,null,null,null,"M3 5A - 4B",null,"Q17 - M15","Q19 - M13"]
[null,null,null,null,null,"M4 6A - 5B",null,"M16 - Q16","M18 - Q14"]
[null,null,null,null,null,"M5 7A - 6B",null,"Q9 - M23","Q11 - M21"]
[null,null,null,null,null,"M6 8A - 7B",null,"M8 - Q24","M10 - Q22"]
[null,null,null,null,null,"M7 9A - 8B",null,"Q25 - M7","Q27 - M5"]
[null,null,null,null,null,"M8 10A - 11B",null,"M24 - Q8","M26 - Q6"]
[null,null,null,null,null,"M9 11A - 10B",null,"Q5 - M27","Q7 - M25"]
[null,null,null,null,null,"M10 12A - 9B",null,"M4 - Q28","M6 - Q26"]
[null,null,null,null,null,"M11 13A - 12B",null,"Q21 - M11","Q23 - M9"]
[null,null,null,null,null,"M12 14A - 13B",null,"M20 - Q12","M22 - Q10"]
[null,null,null,null,null,"M13 15A - 14B",null,"Q13 - M19","Q15 - M17"]
[null,null,null,null,null,"M14 16A - 15B",null,"M12 - Q20","M14 - Q18"]
[null,null,null,null,null,"M15 17A - 16B",null,"Q29 - M3","Q31 - M1"]
[null,null,null,null,null,"M16 18A - 19B",null,"M28 - Q4","M31 - Q2"]
[null,null,null,null,null,"M17 19A - 18B"]
[null,null,null,null,null,"M18 20A - 17B"]
[null,null,null,null,null,"M19 21A - 20B"]
[null,null,null,null,null,"M20 22A - 21B"]
[null,null,null,null,null,"M21 23A - 22B"]
[null,null,null,null,null,"M22 24A - 23B"]
[null,null,null,null,null,"M23 25A - 24B"]
[null,null,null,null,null,"M24 26A - 27B"]
[null,null,null,null,null,"M25 27A - 26B"]
[null,null,null,null,null,"M26 28A - 25B"]
[null,null,null,null,null,"M27 29A - 28B"]
[null,null,null,null,null,"M28 30A - 29B"]
[null,null,null,null,null,"M29 31A - 30B"]
[null,null,null,null,null,"M30 32A - 31B"]
[null,null,null,null,null,"M31 1B - 32B"]
[null,{"$f":"C1181*1000000+D1181*1000+E1181","v":32032064},32,32,64,"M1 1A - 2B",null,"Q1 - M32","Q3 - M30"]
[null,null,null,null,null,"M2 2A - 1B",null,"M1 - Q32","M3 - Q30"]
[null,null,null,null,null,"M3 3A - 4B",null,"Q17 - M16","Q19 - M14"]
[null,null,null,null,null,"M4 4A - 3B",null,"M17 - Q16","M19 - Q14"]
[null,null,null,null,null,"M5 5A - 6B",null,"Q9 - M24","Q11 - M22"]
[null,null,null,null,null,"M6 6A - 5B",null,"M9 - Q24","M11 - Q22"]
[null,null,null,null,null,"M7 7A - 8B",null,"Q25 - M8","Q27 - M6"]
[null,null,null,null,null,"M8 8A - 7B",null,"M25 - Q8","M27 - Q6"]
[null,null,null,null,null,"M9 9A - 10B",null,"Q5 - M28","Q7 - M26"]
[null,null,null,null,null,"M10 10A - 9B",null,"M5 - Q28","M7 - Q26"]
[null,null,null,null,null,"M11 11A - 12B",null,"Q21 - M12","Q23 - M10"]
[null,null,null,null,null,"M12 12A - 11B",null,"M21 - Q12","M23 - Q10"]
[null,null,null,null,null,"M13 13A - 14B",null,"Q13 - M20","Q15 - M18"]
[null,null,null,null,null,"M14 14A - 13B",null,"M13 - Q20","M15 - Q18"]
[null,null,null,null,null,"M15 15A - 16B",null,"Q29 - M4","Q31 - M2"]
[null,null,null,null,null,"M16 16A - 15B",null,"M29 - Q4","M31 - Q2"]
[null,null,null,null,null,"M17 17A - 18B"]
[null,null,null,null,null,"M18 18A - 17B"]
[null,null,null,null,null,"M19 19A - 20B"]
[null,null,null,null,null,"M20 20A - 19B"]
[null,null,null,null,null,"M21 21A - 22B"]
[null,null,null,null,null,"M22 22A - 21B"]
[null,null,null,null,null,"M23 23A - 24B"]
[null,null,null,null,null,"M24 24A - 23B"]
[null,null,null,null,null,"M25 25A - 26B"]
[null,null,null,null,null,"M26 26A - 25B"]
[null,null,null,null,null,"M27 27A - 28B"]
[null,null,null,null,null,"M28 28A - 27B"]
[null,null,null,null,null,"M29 29A - 30B"]
[null,null,null,null,null,"M30 30A - 29B"]
[null,null,null,null,null,"M31 31A - 32B"]
[null,null,null,null,null,"M32 32A - 31B"]

{"sheet":"CompetitionFormulas","index":14,"n_rows":1825,"n_cols":15,"rows_kept":1825,"cut":false,"hidden":true,"merged":[[0,1,0,14],[2,1,2,14],[3,1,4,1],[3,2,3,9],[3,12,4,12],[3,13,4,13],[3,14,4,14],[3,10,4,10]]}
[null,{"$f":"N_CompetitionFormula","v":"Unofficial competition formulas"}]
[]
[null,{"$f":"N_MatchOrganisationFor3","v":"Organisation of matches with mainly groups of 3"}]
[null,{"$f":"N_NbPlayers","v":"Nb Players"},{"$f":"N_NbGroupsOf","v":"Nb Groups of …"},null,null,null,null,null,null,null,{"$f":"N_TotalNbGroups","v":"Total Nb Groups"},null,{"$f":"N_QualifiedPlayers","v":"Qualified Players"},{"$f":"N_NbPlayOffMatches","v":"Nb Play Off Matches"},{"$f":"N_NbLastPlayers","v":"Nb Last Players"}]
[null,null,3,4,5,6,7,8,9,10]
[null,3,1,null,null,null,null,null,null,null,{"$f":"SUM(C6:J6)","v":1},null,null,null,2]
[null,4,null,1,null,null,null,null,null,null,1,null,null,null,2]
[null,5,null,null,1,null,null,null,null,null,1,null,null,null,2]
[null,6,2,null,null,null,null,null,null,null,2,null,null,null,4]
[null,6,null,null,null,1,null,null,null,null,1,null,null,null,2]
[null,7,1,1,null,null,null,null,null,null,2,null,null,null,4]
[null,7,null,null,null,null,1,null,null,null,1,null,null,null,2]
[null,8,null,2,null,null,null,null,null,null,2,null,null,null,4]
[null,8,null,null,null,null,null,1,null,null,1,null,null,null,2]
[null,9,3,null,null,null,null,null,null,null,3,null,null,2,4]
[null,9,null,1,1,null,null,null,null,null,2,null,null,null,4]
[null,9,null,null,null,null,null,null,1,null,1,null,null,null,2]
[null,10,2,1,null,null,null,null,null,null,3,null,null,2,4]
[null,10,null,null,2,null,null,null,null,null,2,null,null,null,4]
[null,10,null,null,null,null,null,null,null,1,1,null,null,null,2]
[null,11,1,2,null,null,null,null,null,null,3,null,null,2,4]
[null,11,null,null,1,1,null,null,null,null,2,null,null,null,4]
[null,12,4,null,null,null,null,null,null,null,4,null,null,null,8]
[null,12,null,3,null,null,null,null,null,null,3,null,null,2,4]
[null,12,null,null,null,2,null,null,null,null,2,null,null,null,4]
[null,13,3,1,null,null,null,null,null,null,4,null,null,null,8]
[null,13,null,2,1,null,null,null,null,null,3,null,null,2,4]
[null,13,null,null,null,1,1,null,null,null,2,null,null,null,4]
[null,14,2,2,null,null,null,null,null,null,4,null,null,null,8]
[null,14,null,1,2,null,null,null,null,null,3,null,null,2,4]
[null,14,null,null,null,null,2,null,null,null,2,null,null,null,4]
[null,15,5,null,null,null,null,null,null,null,5,null,null,2,8]
[null,15,1,3,null,null,null,null,null,null,4,null,null,null,8]
[null,15,null,null,3,null,null,null,null,null,3,null,null,2,4]
[null,15,null,null,null,null,1,1,null,null,2,null,null,null,4]
[null,16,4,1,null,null,null,null,null,null,5,null,null,2,8]
[null,16,null,4,null,null,null,null,null,null,4,null,null,null,8]
[null,16,null,null,2,1,null,null,null,null,3,null,null,2,4]
[null,16,null,null,null,null,null,2,null,null,2,null,null,null,4]
[null,17,3,2,null,null,null,null,null,null,5,null,null,2,8]
[null,17,null,3,1,null,null,null,null,null,4,null,null,null,8]
[null,17,null,null,1,2,null,null,null,null,3,null,null,2,4]
[null,17,null,null,null,null,null,1,1,null,2,null,null,null,4]
[null,18,6,null,null,null,null,null,null,null,6,null,null,4,8]
[null,18,2,3,null,null,null,null,null,null,5,null,null,2,8]
[null,18,null,2,2,null,null,null,null,null,4,null,null,null,8]
[null,18,null,null,null,3,null,null,null,null,3,null,null,2,4]
[null,18,null,null,null,null,null,null,2,null,2,null,null,null,4]
[null,19,5,1,null,null,null,null,null,null,6,null,null,4,8]
[null,19,1,4,null,null,null,null,null,null,5,null,null,2,8]
[null,19,null,1,3,null,null,null,null,null,4,null,null,null,8]
[null,19,null,null,null,2,1,null,null,null,3,null,null,2,4]
[null,19,null,null,null,null,null,null,1,1,2,null,null,null,4]
[null,20,4,2,null,null,null,null,null,null,6,null,null,4,8]
[null,20,null,5,null,null,null,null,null,null,5,null,null,2,8]
[null,20,null,null,4,null,null,null,null,null,4,null,null,null,8]
[null,20,null,null,null,1,2,null,null,null,3,null,null,2,4]
[null,20,null,null,null,null,null,null,null,2,2,null,null,null,4]
[null,21,7,null,null,null,null,null,null,null,7,null,null,6,8]
[null,21,3,3,null,null,null,null,null,null,6,null,null,4,8]
[null,21,null,4,1,null,null,null,null,null,5,null,null,2,8]
[null,21,null,null,3,1,null,null,null,null,4,null,null,null,8]
[null,21,null,null,null,null,3,null,null,null,3,null,null,2,4]
[null,22,6,1,null,null,null,null,null,null,7,null,null,6,8]
[null,22,2,4,null,null,null,null,null,null,6,null,null,4,8]
[null,22,null,3,2,null,null,null,null,null,5,null,null,2,8]
[null,22,null,null,2,2,null,null,null,null,4,null,null,null,8]
[null,22,null,null,null,null,2,1,null,null,3,null,null,2,4]
[null,23,5,2,null,null,null,null,null,null,7,null,null,6,8]
[null,23,1,5,null,null,null,null,null,null,{"$f":"SUM(C70:J70)","v":6},null,null,4,8]
[null,23,null,2,3,null,null,null,null,null,5,null,null,2,8]
[null,23,null,null,1,3,null,null,null,null,4,null,null,null,8]
[null,23,null,null,null,null,1,2,null,null,3,null,null,2,4]
[null,24,8,null,null,null,null,null,null,null,8,null,null,null,16]
[null,24,4,3,null,null,null,null,null,null,7,null,null,6,8]
[null,24,null,6,null,null,null,null,null,null,6,null,null,4,8]
[null,24,null,1,4,null,null,null,null,null,5,null,null,2,8]
[null,24,null,null,null,4,null,null,null,null,4,null,null,null,8]
[null,24,null,null,null,null,null,3,null,null,3,null,null,2,4]
[null,25,7,1,null,null,null,null,null,null,8,null,null,null,16]
[null,25,3,4,null,null,null,null,null,null,7,null,null,6,8]
[null,25,null,5,1,null,null,null,null,null,6,null,null,4,8]
[null,25,null,null,5,null,null,null,null,null,5,null,null,2,8]
[null,25,null,null,null,3,1,null,null,null,4,null,null,null,8]
[null,25,null,null,null,null,null,2,1,null,3,null,null,2,4]
[null,26,6,2,null,null,null,null,null,null,8,null,null,null,16]
[null,26,2,5,null,null,null,null,null,null,7,null,null,6,8]
[null,26,null,4,2,null,null,null,null,null,6,null,null,4,8]
[null,26,null,null,4,1,null,null,null,null,5,null,null,2,8]
[null,26,null,null,null,2,2,null,null,null,4,null,null,null,8]
[null,26,null,null,null,null,null,1,2,null,3,null,null,2,4]
[null,27,9,null,null,null,null,null,null,null,9,null,null,2,16]
[null,27,5,3,null,null,null,null,null,null,8,null,null,null,16]
[null,27,1,6,null,null,null,null,null,null,7,null,null,6,8]
[null,27,null,3,3,null,null,null,null,null,6,null,null,4,8]
[null,27,null,null,3,2,null,null,null,null,5,null,null,2,8]
[null,27,null,null,null,1,3,null,null,null,4,null,null,null,8]
[null,27,null,null,null,null,null,null,3,null,3,null,null,2,4]
[null,28,8,1,null,null,null,null,null,null,9,null,null,2,16]
[null,28,4,4,null,null,null,null,null,null,8,null,null,null,16]
[null,28,null,7,null,null,null,null,null,null,7,null,null,6,8]
[null,28,null,2,4,null,null,null,null,null,6,null,null,4,8]
[null,28,null,null,2,3,null,null,null,null,5,null,null,2,8]
[null,28,null,null,null,null,4,null,null,null,4,null,null,null,8]
[null,28,null,null,null,null,null,null,2,1,3,null,null,2,4]
[null,29,7,2,null,null,null,null,null,null,9,null,null,2,16]
[null,29,3,5,null,null,null,null,null,null,8,null,null,null,16]
[null,29,null,6,1,null,null,null,null,null,7,null,null,6,8]
[null,29,null,1,5,null,null,null,null,null,6,null,null,4,8]
[null,29,null,null,1,4,null,null,null,null,5,null,null,2,8]
[null,29,null,null,null,null,3,1,null,null,4,null,null,null,8]
[null,29,null,null,null,null,null,null,1,2,3,null,null,2,4]
[null,30,10,null,null,null,null,null,null,null,10,null,null,4,16]
[null,30,6,3,null,null,null,null,null,null,9,null,null,2,16]
[null,30,2,6,null,null,null,null,null,null,8,null,null,null,16]
[null,30,null,5,2,null,null,null,null,null,7,null,null,6,8]
[null,30,null,null,6,null,null,null,null,null,6,null,null,4,8]
[null,30,null,null,null,5,null,null,null,null,5,null,null,2,8]
[null,30,null,null,null,null,2,2,null,null,4,null,null,null,8]
[null,30,null,null,null,null,null,null,null,3,3,null,null,2,4]
[null,31,9,1,null,null,null,null,null,null,10,null,null,4,16]
[null,31,5,4,null,null,null,null,null,null,9,null,null,2,16]
[null,31,1,7,null,null,null,null,null,null,8,null,null,null,16]
[null,31,null,4,3,null,null,null,null,null,7,null,null,6,8]
[null,31,null,null,5,1,null,null,null,null,6,null,null,4,8]
[null,31,null,null,null,4,1,null,null,null,5,null,null,2,8]
[null,31,null,null,null,null,1,3,null,null,4,null,null,null,8]
[null,32,8,2,null,null,null,null,null,null,10,null,null,4,16]
[null,32,4,5,null,null,null,null,null,null,9,null,null,2,16]
[null,32,null,8,null,null,null,null,null,null,8,null,null,null,16]
[null,32,null,3,4,null,null,null,null,null,7,null,null,6,8]
[null,32,null,null,4,2,null,null,null,null,6,null,null,4,8]
[null,32,null,null,null,3,2,null,null,null,5,null,null,2,8]
[null,32,null,null,null,null,null,4,null,null,{"$f":"SUM(C134:J134)","v":4},null,null,null,8]
[null,33,11,null,null,null,null,null,null,null,11,null,null,6,16]
[null,33,7,3,null,null,null,null,null,null,10,null,null,4,16]
[null,33,3,6,null,null,null,null,null,null,9,null,null,2,16]
[null,33,null,7,1,null,null,null,null,null,8,null,null,null,16]
[null,33,null,2,5,null,null,null,null,null,7,null,null,6,8]
[null,33,null,null,3,3,null,null,null,null,6,null,null,4,8]
[null,33,null,null,null,2,3,null,null,null,5,null,null,2,8]
[null,33,null,null,null,null,null,3,1,null,4,null,null,null,8]
[null,34,10,1,null,null,null,null,null,null,11,null,null,6,16]
[null,34,6,4,null,null,null,null,null,null,10,null,null,4,16]
[null,34,2,7,null,null,null,null,null,null,9,null,null,2,16]
[null,34,null,6,2,null,null,null,null,null,8,null,null,null,16]
[null,34,null,1,6,null,null,null,null,null,7,null,null,6,8]
[null,34,null,null,2,4,null,null,null,null,6,null,null,4,8]
[null,34,null,null,null,1,4,null,null,null,5,null,null,2,8]
[null,34,null,null,null,null,null,2,2,null,4,null,null,null,8]
[null,35,9,2,null,null,null,null,null,null,11,null,null,6,16]
[null,35,5,5,null,null,null,null,null,null,10,null,null,4,16]
[null,35,1,8,null,null,null,null,null,null,9,null,null,2,16]
[null,35,null,5,3,null,null,null,null,null,8,null,null,null,16]
[null,35,null,null,7,null,null,null,null,null,7,null,null,6,8]
[null,35,null,null,1,5,null,null,null,null,6,null,null,4,8]
[null,35,null,null,null,null,5,null,null,null,5,null,null,2,8]
[null,35,null,null,null,null,null,1,3,null,4,null,null,null,8]
[null,36,12,null,null,null,null,null,null,null,12,null,null,8,16]
[null,36,8,3,null,null,null,null,null,null,11,null,null,6,16]
[null,36,4,6,null,null,null,null,null,null,10,null,null,4,16]
[null,36,null,9,null,null,null,null,null,null,9,null,null,2,16]
[null,36,null,4,4,null,null,null,null,null,8,null,null,null,16]
[null,36,null,null,6,1,null,null,null,null,7,null,null,6,8]
[null,36,null,null,null,6,null,null,null,null,6,null,null,4,8]
[null,36,null,null,null,null,4,1,null,null,5,null,null,2,8]
[null,36,null,null,null,null,null,null,4,null,4,null,null,null,8]
[null,37,11,1,null,null,null,null,null,null,12,null,null,8,16]
[null,37,7,4,null,null,null,null,null,null,11,null,null,6,16]
[null,37,3,7,null,null,null,null,null,null,10,null,null,4,16]
[null,37,null,8,1,null,null,null,null,null,9,null,null,2,16]
[null,37,null,3,5,null,null,null,null,null,8,null,null,null,16]
[null,37,null,null,5,2,null,null,null,null,7,null,null,6,8]
[null,37,null,null,null,5,1,null,null,null,6,null,null,4,8]
[null,37,null,null,null,null,3,2,null,null,5,null,null,2,8]
[null,37,null,null,null,null,null,null,3,1,4,null,null,null,8]
[null,38,10,2,null,null,null,null,null,null,12,null,null,8,16]
[null,38,6,5,null,null,null,null,null,null,11,null,null,6,16]
[null,38,2,8,null,null,null,null,null,null,10,null,null,4,16]
[null,38,null,7,2,null,null,null,null,null,9,null,null,2,16]
[null,38,null,2,6,null,null,null,null,null,8,null,null,null,16]
[null,38,null,null,4,3,null,null,null,null,7,null,null,6,8]
[null,38,null,null,null,4,2,null,null,null,6,null,null,4,8]
[null,38,null,null,null,null,2,3,null,null,5,null,null,2,8]
[null,38,null,null,null,null,null,null,2,2,4,null,null,null,8]
[null,39,13,0,null,null,null,null,null,null,13,null,null,10,16]
[null,39,9,3,null,null,null,null,null,null,12,null,null,8,16]
[null,39,5,6,null,null,null,null,null,null,11,null,null,6,16]
[null,39,1,9,null,null,null,null,null,null,10,null,null,4,16]
[null,39,null,6,3,null,null,null,null,null,9,null,null,2,16]
[null,39,null,1,7,null,null,null,null,null,8,null,null,null,16]
[null,39,null,null,3,4,null,null,null,null,7,null,null,6,8]
[null,39,null,null,null,3,3,null,null,null,6,null,null,4,8]
[null,39,null,null,null,null,1,4,null,null,5,null,null,2,8]
[null,39,null,null,null,null,null,null,1,3,4,null,null,null,8]
[null,40,12,1,null,null,null,null,null,null,13,null,null,10,16]
[null,40,8,4,null,null,null,null,null,null,12,null,null,8,16]
[null,40,4,7,null,null,null,null,null,null,{"$f":"SUM(C198:J198)","v":11},null,null,6,16]
[null,40,null,10,null,null,null,null,null,null,10,null,null,4,16]
[null,40,null,5,4,null,null,null,null,null,9,null,null,2,16]
[null,40,null,null,8,null,null,null,null,null,8,null,null,null,16]
[null,40,null,null,2,5,null,null,null,null,7,null,null,6,8]
[null,40,null,null,null,2,4,null,null,null,6,null,null,4,8]
[null,40,null,null,null,null,null,5,null,null,5,null,null,2,8]
[null,40,null,null,null,null,null,null,null,4,4,null,null,null,8]
[null,41,11,2,null,null,null,null,null,null,13,null,null,10,16]
[null,41,7,5,null,null,null,null,null,null,12,null,null,8,16]
[null,41,3,8,null,null,null,null,null,null,11,null,null,6,16]
[null,41,null,9,1,null,null,null,null,null,10,null,null,4,16]
[null,41,null,4,5,null,null,null,null,null,9,null,null,2,16]
[null,41,null,null,7,1,null,null,null,null,8,null,null,null,16]
[null,41,null,null,1,6,null,null,null,null,7,null,null,6,8]
[null,41,null,null,null,1,5,null,null,null,6,null,null,4,8]
[null,41,null,null,null,null,null,4,1,null,5,null,null,2,8]
[null,42,14,null,null,null,null,null,null,null,14,null,null,12,16]
[null,42,10,3,null,null,null,null,null,null,13,null,null,10,16]
[null,42,6,6,null,null,null,null,null,null,12,null,null,8,16]
[null,42,2,9,null,null,null,null,null,null,11,null,null,6,16]
[null,42,null,8,2,null,null,null,null,null,10,null,null,4,16]
[null,42,null,3,6,null,null,null,null,null,9,null,null,2,16]
[null,42,null,null,6,2,null,null,null,null,8,null,null,null,16]
[null,42,null,null,null,7,null,null,null,null,7,null,null,6,8]
[null,42,null,null,null,null,6,null,null,null,6,null,null,4,8]
[null,42,null,null,null,null,null,3,2,null,5,null,null,2,8]
[null,43,13,1,null,null,null,null,null,null,14,null,null,12,16]
[null,43,9,4,null,null,null,null,null,null,13,null,null,10,16]
[null,43,5,7,null,null,null,null,null,null,12,null,null,8,16]
[null,43,1,10,null,null,null,null,null,null,11,null,null,6,16]
[null,43,null,7,3,null,null,null,null,null,10,null,null,4,16]
[null,43,null,2,7,null,null,null,null,null,9,null,null,2,16]
[null,43,null,null,5,3,null,null,null,null,8,null,null,null,16]
[null,43,null,null,null,6,1,null,null,null,7,null,null,6,8]
[null,43,null,null,null,null,5,1,null,null,6,null,null,4,8]
[null,43,null,null,null,null,null,2,3,null,5,null,null,2,8]
[null,44,12,2,null,null,null,null,null,null,14,null,null,12,16]
[null,44,8,5,null,null,null,null,null,null,13,null,null,10,16]
[null,44,4,8,null,null,null,null,null,null,12,null,null,8,16]
[null,44,null,11,null,null,null,null,null,null,11,null,null,6,16]
[null,44,null,6,4,null,null,null,null,null,10,null,null,4,16]
[null,44,null,1,8,null,null,null,null,null,9,null,null,2,16]
[null,44,null,null,4,4,null,null,null,null,8,null,null,null,16]
[null,44,null,null,null,5,2,null,null,null,7,null,null,6,8]
[null,44,null,null,null,null,4,2,null,null,6,null,null,4,8]
[null,44,null,null,null,null,null,1,4,null,5,null,null,2,8]
[null,45,15,null,null,null,null,null,null,null,15,null,null,14,16]
[null,45,11,3,null,null,null,null,null,null,14,null,null,12,16]
[null,45,7,6,null,null,null,null,null,null,13,null,null,10,16]
[null,45,3,9,null,null,null,null,null,null,12,null,null,8,16]
[null,45,null,10,1,null,null,null,null,null,11,null,null,6,16]
[null,45,null,5,5,null,null,null,null,null,10,null,null,4,16]
[null,45,null,null,9,null,null,null,null,null,9,null,null,2,16]
[null,45,null,null,3,5,null,null,null,null,8,null,null,null,16]
[null,45,null,null,null,4,3,null,null,null,7,null,null,6,8]
[null,45,null,null,null,null,3,3,null,null,6,null,null,4,8]
[null,45,null,null,null,null,null,null,5,null,5,null,null,2,8]
[null,46,14,1,null,null,null,null,null,null,15,null,null,14,16]
[null,46,10,4,null,null,null,null,null,null,14,null,null,12,16]
[null,46,6,7,null,null,null,null,null,null,13,null,null,10,16]
[null,46,2,10,null,null,null,null,null,null,12,null,null,8,16]
[null,46,null,9,2,null,null,null,null,null,11,null,null,6,16]
[null,46,null,4,6,null,null,null,null,null,10,null,null,4,16]
[null,46,null,null,8,1,null,null,null,null,{"$f":"SUM(C262:J262)","v":9},null,null,2,16]
[null,46,null,null,2,6,null,null,null,null,8,null,null,null,16]
[null,46,null,null,null,3,4,null,null,null,7,null,null,6,8]
[null,46,null,null,null,null,2,4,null,null,6,null,null,4,8]
[null,46,null,null,null,null,null,null,4,1,5,null,null,2,8]
[null,47,13,2,null,null,null,null,null,null,15,null,null,14,16]
[null,47,9,5,null,null,null,null,null,null,14,null,null,12,16]
[null,47,5,8,null,null,null,null,null,null,13,null,null,10,16]
[null,47,1,11,null,null,null,null,null,null,12,null,null,8,16]
[null,47,null,8,3,null,null,null,null,null,11,null,null,6,16]
[null,47,null,3,7,null,null,null,null,null,10,null,null,4,16]
[null,47,null,null,7,2,null,null,null,null,9,null,null,2,16]
[null,47,null,null,1,7,null,null,null,null,8,null,null,null,16]
[null,47,null,null,null,2,5,null,null,null,7,null,null,6,8]
[null,47,null,null,null,null,1,5,null,null,6,null,null,4,8]
[null,47,null,null,null,null,null,null,3,2,5,null,null,2,8]
[null,48,16,null,null,null,null,null,null,null,16,null,null,null,32]
[null,48,12,3,null,null,null,null,null,null,15,null,null,14,16]
[null,48,8,6,null,null,null,null,null,null,14,null,null,12,16]
[null,48,4,9,null,null,null,null,null,null,13,null,null,10,16]
[null,48,null,12,null,null,null,null,null,null,12,null,null,8,16]
[null,48,null,7,4,null,null,null,null,null,11,null,null,6,16]
[null,48,null,2,8,null,null,null,null,null,10,null,null,4,16]
[null,48,null,null,6,3,null,null,null,null,9,null,null,2,16]
[null,48,null,null,null,8,null,null,null,null,8,null,null,null,16]
[null,48,null,null,null,1,6,null,null,null,7,null,null,6,8]
[null,48,null,null,null,null,null,6,null,null,6,null,null,4,8]
[null,48,null,null,null,null,null,null,2,3,5,null,null,2,8]
[null,49,15,1,null,null,null,null,null,null,16,null,null,null,32]
[null,49,11,4,null,null,null,null,null,null,15,null,null,14,16]
[null,49,7,7,null,null,null,null,null,null,14,null,null,12,16]
[null,49,3,10,null,null,null,null,null,null,13,null,null,10,16]
[null,49,null,11,1,null,null,null,null,null,12,null,null,8,16]
[null,49,null,6,5,null,null,null,null,null,11,null,null,6,16]
[null,49,null,1,9,null,null,null,null,null,10,null,null,4,16]
[null,49,null,null,5,4,null,null,null,null,9,null,null,2,16]
[null,49,null,null,null,7,1,null,null,null,8,null,null,null,16]
[null,49,null,null,null,null,7,null,null,null,7,null,null,6,8]
[null,49,null,null,null,null,null,5,1,null,6,null,null,4,8]
[null,49,null,null,null,null,null,null,1,4,5,null,null,2,8]
[null,50,14,2,null,null,null,null,null,null,16,null,null,null,32]
[null,50,10,5,null,null,null,null,null,null,15,null,null,14,16]
[null,50,6,8,null,null,null,null,null,null,14,null,null,12,16]
[null,50,2,11,null,null,null,null,null,null,13,null,null,10,16]
[null,50,null,10,2,null,null,null,null,null,12,null,null,8,16]
[null,50,null,5,6,null,null,null,null,null,11,null,null,6,16]
[null,50,null,null,10,null,null,null,null,null,10,null,null,4,16]
[null,50,null,null,4,5,null,null,null,null,9,null,null,2,16]
[null,50,null,null,null,6,2,null,null,null,8,null,null,null,16]
[null,50,null,null,null,null,6,1,null,null,7,null,null,6,8]
[null,50,null,null,null,null,null,4,2,null,6,null,null,4,8]
[null,50,null,null,null,null,null,null,null,5,5,null,null,2,8]
[null,51,17,null,null,null,null,null,null,null,17,null,null,2,32]
[null,51,13,3,null,null,null,null,null,null,16,null,null,null,32]
[null,51,9,6,null,null,null,null,null,null,15,null,null,14,16]
[null,51,5,9,null,null,null,null,null,null,14,null,null,12,16]
[null,51,1,12,null,null,null,null,null,null,13,null,null,10,16]
[null,51,null,9,3,null,null,null,null,null,12,null,null,8,16]
[null,51,null,4,7,null,null,null,null,null,11,null,null,6,16]
[null,51,null,null,9,1,null,null,null,null,10,null,null,4,16]
[null,51,null,null,3,6,null,null,null,null,9,null,null,2,16]
[null,51,null,null,null,5,3,null,null,null,8,null,null,null,16]
[null,51,null,null,null,null,5,2,null,null,7,null,null,6,8]
[null,51,null,null,null,null,null,3,3,null,6,null,null,4,8]
[null,52,16,1,null,null,null,null,null,null,{"$f":"SUM(C326:J326)","v":17},null,null,2,32]
[null,52,12,4,null,null,null,null,null,null,16,null,null,null,32]
[null,52,8,7,null,null,null,null,null,null,15,null,null,14,16]
[null,52,4,10,null,null,null,null,null,null,14,null,null,12,16]
[null,52,null,13,null,null,null,null,null,null,13,null,null,10,16]
[null,52,null,8,4,null,null,null,null,null,12,null,null,8,16]
[null,52,null,3,8,null,null,null,null,null,11,null,null,6,16]
[null,52,null,null,8,2,null,null,null,null,10,null,null,4,16]
[null,52,null,null,2,7,null,null,null,null,9,null,null,2,16]
[null,52,null,null,null,4,4,null,null,null,8,null,null,null,16]
[null,52,null,null,null,null,4,3,null,null,7,null,null,6,8]
[null,52,null,null,null,null,null,2,4,null,6,null,null,4,8]
[null,53,15,2,null,null,null,null,null,null,17,null,null,2,32]
[null,53,11,5,null,null,null,null,null,null,16,null,null,null,32]
[null,53,7,8,null,null,null,null,null,null,15,null,null,14,16]
[null,53,3,11,null,null,null,null,null,null,14,null,null,12,16]
[null,53,null,12,1,null,null,null,null,null,13,null,null,10,16]
[null,53,null,7,5,null,null,null,null,null,12,null,null,8,16]
[null,53,null,2,9,null,null,null,null,null,11,null,null,6,16]
[null,53,null,null,7,3,null,null,null,null,10,null,null,4,16]
[null,53,null,null,1,8,null,null,null,null,9,null,null,2,16]
[null,53,null,null,null,3,5,null,null,null,8,null,null,null,16]
[null,53,null,null,null,null,3,4,null,null,7,null,null,6,8]
[null,53,null,null,null,null,null,1,5,null,6,null,null,4,8]
[null,54,18,null,null,null,null,null,null,null,18,null,null,4,32]
[null,54,14,3,null,null,null,null,null,null,17,null,null,2,32]
[null,54,10,6,null,null,null,null,null,null,16,null,null,null,32]
[null,54,6,9,null,null,null,null,null,null,15,null,null,14,16]
[null,54,2,12,null,null,null,null,null,null,14,null,null,12,16]
[null,54,null,11,2,null,null,null,null,null,13,null,null,10,16]
[null,54,null,6,6,null,null,null,null,null,12,null,null,8,16]
[null,54,null,1,10,null,null,null,null,null,11,null,null,6,16]
[null,54,null,null,6,4,null,null,null,null,10,null,null,4,16]
[null,54,null,null,null,9,null,null,null,null,9,null,null,2,16]
[null,54,null,null,null,2,6,null,null,null,8,null,null,null,16]
[null,54,null,null,null,null,2,5,null,null,7,null,null,6,8]
[null,54,null,null,null,null,null,null,6,null,6,null,null,4,8]
[null,55,17,1,null,null,null,null,null,null,18,null,null,4,32]
[null,55,13,4,null,null,null,null,null,null,17,null,null,2,32]
[null,55,9,7,null,null,null,null,null,null,16,null,null,null,32]
[null,55,5,10,null,null,null,null,null,null,15,null,null,14,16]
[null,55,1,13,null,null,null,null,null,null,14,null,null,12,16]
[null,55,null,10,3,null,null,null,null,null,13,null,null,10,16]
[null,55,null,5,7,null,null,null,null,null,12,null,null,8,16]
[null,55,null,null,11,null,null,null,null,null,11,null,null,6,16]
[null,55,null,null,5,5,null,null,null,null,10,null,null,4,16]
[null,55,null,null,null,8,1,null,null,null,9,null,null,2,16]
[null,55,null,null,null,1,7,null,null,null,8,null,null,null,16]
[null,55,null,null,null,null,1,6,null,null,7,null,null,6,8]
[null,55,null,null,null,null,null,null,5,1,6,null,null,4,8]
[null,56,16,2,null,null,null,null,null,null,18,null,null,4,32]
[null,56,12,5,null,null,null,null,null,null,17,null,null,2,32]
[null,56,8,8,null,null,null,null,null,null,16,null,null,null,32]
[null,56,4,11,null,null,null,null,null,null,15,null,null,14,16]
[null,56,null,14,null,null,null,null,null,null,14,null,null,12,16]
[null,56,null,9,4,null,null,null,null,null,13,null,null,10,16]
[null,56,null,4,8,null,null,null,null,null,12,null,null,8,16]
[null,56,null,null,10,1,null,null,null,null,11,null,null,6,16]
[null,56,null,null,4,6,null,null,null,null,10,null,null,4,16]
[null,56,null,null,null,7,2,null,null,null,9,null,null,2,16]
[null,56,null,null,null,null,8,null,null,null,8,null,null,null,16]
[null,56,null,null,null,null,null,7,null,null,7,null,null,6,8]
[null,56,null,null,null,null,null,null,4,2,6,null,null,4,8]
[null,57,19,null,null,null,null,null,null,null,19,null,null,6,32]
[null,57,15,3,null,null,null,null,null,null,{"$f":"SUM(C390:J390)","v":18},null,null,4,32]
[null,57,11,6,null,null,null,null,null,null,17,null,null,2,32]
[null,57,7,9,null,null,null,null,null,null,16,null,null,null,32]
[null,57,3,12,null,null,null,null,null,null,15,null,null,14,16]
[null,57,null,13,1,null,null,null,null,null,14,null,null,12,16]
[null,57,null,8,5,null,null,null,null,null,13,null,null,10,16]
[null,57,null,3,9,null,null,null,null,null,12,null,null,8,16]
[null,57,null,null,9,2,null,null,null,null,11,null,null,6,16]
[null,57,null,null,3,7,null,null,null,null,10,null,null,4,16]
[null,57,null,null,null,6,3,null,null,null,9,null,null,2,16]
[null,57,null,null,null,null,7,1,null,null,8,null,null,null,16]
[null,57,null,null,null,null,null,6,1,null,7,null,null,6,8]
[null,57,null,null,null,null,null,null,3,3,6,null,null,4,8]
[null,58,18,1,null,null,null,null,null,null,19,null,null,6,32]
[null,58,14,4,null,null,null,null,null,null,18,null,null,4,32]
[null,58,10,7,null,null,null,null,null,null,17,null,null,2,32]
[null,58,6,10,null,null,null,null,null,null,16,null,null,null,32]
[null,58,2,13,null,null,null,null,null,null,15,null,null,14,16]
[null,58,null,12,2,null,null,null,null,null,14,null,null,12,16]
[null,58,null,7,6,null,null,null,null,null,13,null,null,10,16]
[null,58,null,2,10,null,null,null,null,null,12,null,null,8,16]
[null,58,null,null,8,3,null,null,null,null,11,null,null,6,16]
[null,58,null,null,2,8,null,null,null,null,10,null,null,4,16]
[null,58,null,null,null,5,4,null,null,null,9,null,null,2,16]
[null,58,null,null,null,null,6,2,null,null,8,null,null,null,16]
[null,58,null,null,null,null,null,5,2,null,7,null,null,6,8]
[null,58,null,null,null,null,null,null,2,4,6,null,null,4,8]
[null,59,17,2,null,null,null,null,null,null,19,null,null,6,32]
[null,59,13,5,null,null,null,null,null,null,18,null,null,4,32]
[null,59,9,8,null,null,null,null,null,null,17,null,null,2,32]
[null,59,5,11,null,null,null,null,null,null,16,null,null,null,32]
[null,59,1,14,null,null,null,null,null,null,15,null,null,14,16]
[null,59,null,11,3,null,null,null,null,null,14,null,null,12,16]
[null,59,null,6,7,null,null,null,null,null,13,null,null,10,16]
[null,59,null,1,11,null,null,null,null,null,12,null,null,8,16]
[null,59,null,null,7,4,null,null,null,null,11,null,null,6,16]
[null,59,null,null,1,9,null,null,null,null,10,null,null,4,16]
[null,59,null,null,null,4,5,null,null,null,9,null,null,2,16]
[null,59,null,null,null,null,5,3,null,null,8,null,null,null,16]
[null,59,null,null,null,null,null,4,3,null,7,null,null,6,8]
[null,59,null,null,null,null,null,null,1,5,6,null,null,4,8]
[null,60,20,null,null,null,null,null,null,null,20,null,null,8,32]
[null,60,16,3,null,null,null,null,null,null,19,null,null,6,32]
[null,60,12,6,null,null,null,null,null,null,18,null,null,4,32]
[null,60,8,9,null,null,null,null,null,null,17,null,null,2,32]
[null,60,4,12,null,null,null,null,null,null,16,null,null,null,32]
[null,60,null,15,null,null,null,null,null,null,15,null,null,14,16]
[null,60,null,10,4,null,null,null,null,null,14,null,null,12,16]
[null,60,null,5,8,null,null,null,null,null,13,null,null,10,16]
[null,60,null,null,12,null,null,null,null,null,12,null,null,8,16]
[null,60,null,null,6,5,null,null,null,null,11,null,null,6,16]
[null,60,null,null,null,10,null,null,null,null,10,null,null,4,16]
[null,60,null,null,null,3,6,null,null,null,9,null,null,2,16]
[null,60,null,null,null,null,4,4,null,null,8,null,null,null,16]
[null,60,null,null,null,null,null,3,4,null,7,null,null,6,8]
[null,60,null,null,null,null,null,null,null,6,6,null,null,4,8]
[null,61,19,1,null,null,null,null,null,null,20,null,null,8,32]
[null,61,15,4,null,null,null,null,null,null,19,null,null,6,32]
[null,61,11,7,null,null,null,null,null,null,18,null,null,4,32]
[null,61,7,10,null,null,null,null,null,null,17,null,null,2,32]
[null,61,3,13,null,null,null,null,null,null,16,null,null,null,32]
[null,61,null,14,1,null,null,null,null,null,15,null,null,14,16]
[null,61,null,9,5,null,null,null,null,null,14,null,null,12,16]
[null,61,null,4,9,null,null,null,null,null,13,null,null,10,16]
[null,61,null,null,11,1,null,null,null,null,{"$f":"SUM(C454:J454)","v":12},null,null,8,16]
[null,61,null,null,5,6,null,null,null,null,11,null,null,6,16]
[null,61,null,null,null,9,1,null,null,null,10,null,null,4,16]
[null,61,null,null,null,2,7,null,null,null,9,null,null,2,16]
[null,61,null,null,null,null,3,5,null,null,8,null,null,null,16]
[null,61,null,null,null,null,null,2,5,null,7,null,null,6,8]
[null,62,18,2,null,null,null,null,null,null,20,null,null,8,32]
[null,62,14,5,null,null,null,null,null,null,19,null,null,6,32]
[null,62,10,8,null,null,null,null,null,null,18,null,null,4,32]
[null,62,6,11,null,null,null,null,null,null,17,null,null,2,32]
[null,62,2,14,null,null,null,null,null,null,16,null,null,null,32]
[null,62,null,13,2,null,null,null,null,null,15,null,null,14,16]
[null,62,null,8,6,null,null,null,null,null,14,null,null,12,16]
[null,62,null,3,10,null,null,null,null,null,13,null,null,10,16]
[null,62,null,null,10,2,null,null,null,null,12,null,null,8,16]
[null,62,null,null,4,7,null,null,null,null,11,null,null,6,16]
[null,62,null,null,null,8,2,null,null,null,10,null,null,4,16]
[null,62,null,null,null,1,8,null,null,null,9,null,null,2,16]
[null,62,null,null,null,null,2,6,null,null,8,null,null,null,16]
[null,62,null,null,null,null,null,1,6,null,7,null,null,6,8]
[null,63,21,null,null,null,null,null,null,null,21,null,null,10,32]
[null,63,17,3,null,null,null,null,null,null,20,null,null,8,32]
[null,63,13,6,null,null,null,null,null,null,19,null,null,6,32]
[null,63,9,9,null,null,null,null,null,null,18,null,null,4,32]
[null,63,5,12,null,null,null,null,null,null,17,null,null,2,32]
[null,63,1,15,null,null,null,null,null,null,16,null,null,null,32]
[null,63,null,12,3,null,null,null,null,null,15,null,null,14,16]
[null,63,null,7,7,null,null,null,null,null,14,null,null,12,16]
[null,63,null,2,11,null,null,null,null,null,13,null,null,10,16]
[null,63,null,null,9,3,null,null,null,null,12,null,null,8,16]
[null,63,null,null,3,8,null,null,null,null,11,null,null,6,16]
[null,63,null,null,null,7,3,null,null,null,10,null,null,4,16]
[null,63,null,null,null,null,9,null,null,null,9,null,null,2,16]
[null,63,null,null,null,null,1,7,null,null,8,null,null,null,16]
[null,63,null,null,null,null,null,null,7,null,7,null,null,6,8]
[null,64,20,1,null,null,null,null,null,null,21,null,null,10,32]
[null,64,16,4,null,null,null,null,null,null,20,null,null,8,32]
[null,64,12,7,null,null,null,null,null,null,19,null,null,6,32]
[null,64,8,10,null,null,null,null,null,null,18,null,null,4,32]
[null,64,4,13,null,null,null,null,null,null,17,null,null,2,32]
[null,64,null,16,null,null,null,null,null,null,16,null,null,null,32]
[null,64,null,11,4,null,null,null,null,null,15,null,null,14,16]
[null,64,null,6,8,null,null,null,null,null,14,null,null,12,16]
[null,64,null,1,12,null,null,null,null,null,13,null,null,10,16]
[null,64,null,null,8,4,null,null,null,null,12,null,null,8,16]
[null,64,null,null,2,9,null,null,null,null,11,null,null,6,16]
[null,64,null,null,null,6,4,null,null,null,10,null,null,4,16]
[null,64,null,null,null,null,8,1,null,null,9,null,null,2,16]
[null,64,null,null,null,null,null,8,null,null,8,null,null,null,16]
[null,64,null,null,null,null,null,null,6,1,7,null,null,6,8]
[null,65,19,2,null,null,null,null,null,null,21,null,null,10,32]
[null,65,15,5,null,null,null,null,null,null,20,null,null,8,32]
[null,65,11,8,null,null,null,null,null,null,19,null,null,6,32]
[null,65,7,11,null,null,null,null,null,null,18,null,null,4,32]
[null,65,3,14,null,null,null,null,null,null,17,null,null,2,32]
[null,65,null,15,1,null,null,null,null,null,16,null,null,null,32]
[null,65,null,10,5,null,null,null,null,null,15,null,null,14,16]
[null,65,null,5,9,null,null,null,null,null,14,null,null,12,16]
[null,65,null,null,13,null,null,null,null,null,13,null,null,10,16]
[null,65,null,null,7,5,null,null,null,null,12,null,null,8,16]
[null,65,null,null,1,10,null,null,null,null,11,null,null,6,16]
[null,65,null,null,null,5,5,null,null,null,10,null,null,4,16]
[null,65,null,null,null,null,7,2,null,null,9,null,null,2,16]
[null,65,null,null,null,null,null,7,1,null,8,null,null,null,16]
[null,65,null,null,null,null,null,null,5,2,{"$f":"SUM(C518:J518)","v":7},null,null,6,8]
[null,66,22,null,null,null,null,null,null,null,22,null,null,12,32]
[null,66,18,3,null,null,null,null,null,null,21,null,null,10,32]
[null,66,14,6,null,null,null,null,null,null,20,null,null,8,32]
[null,66,10,9,null,null,null,null,null,null,19,null,null,6,32]
[null,66,6,12,null,null,null,null,null,null,18,null,null,4,32]
[null,66,2,15,null,null,null,null,null,null,17,null,null,2,32]
[null,66,null,14,2,null,null,null,null,null,16,null,null,null,32]
[null,66,null,9,6,null,null,null,null,null,15,null,null,14,16]
[null,66,null,4,10,null,null,null,null,null,14,null,null,12,16]
[null,66,null,null,12,1,null,null,null,null,13,null,null,10,16]
[null,66,null,null,6,6,null,null,null,null,12,null,null,8,16]
[null,66,null,null,null,11,null,null,null,null,11,null,null,6,16]
[null,66,null,null,null,4,6,null,null,null,10,null,null,4,16]
[null,66,null,null,null,null,6,3,null,null,9,null,null,2,16]
[null,66,null,null,null,null,null,6,2,null,8,null,null,null,16]
[null,66,null,null,null,null,null,null,4,3,7,null,null,6,8]
[null,67,21,1,null,null,null,null,null,null,22,null,null,12,32]
[null,67,17,4,null,null,null,null,null,null,21,null,null,10,32]
[null,67,13,7,null,null,null,null,null,null,20,null,null,8,32]
[null,67,9,10,null,null,null,null,null,null,19,null,null,6,32]
[null,67,5,13,null,null,null,null,null,null,18,null,null,4,32]
[null,67,1,16,null,null,null,null,null,null,17,null,null,2,32]
[null,67,null,13,3,null,null,null,null,null,16,null,null,null,32]
[null,67,null,8,7,null,null,null,null,null,15,null,null,14,16]
[null,67,null,3,11,null,null,null,null,null,14,null,null,12,16]
[null,67,null,null,11,2,null,null,null,null,13,null,null,10,16]
[null,67,null,null,5,7,null,null,null,null,12,null,null,8,16]
[null,67,null,null,null,10,1,null,null,null,11,null,null,6,16]
[null,67,null,null,null,3,7,null,null,null,10,null,null,4,16]
[null,67,null,null,null,null,5,4,null,null,9,null,null,2,16]
[null,67,null,null,null,null,null,5,3,null,8,null,null,null,16]
[null,67,null,null,null,null,null,null,3,4,7,null,null,6,8]
[null,68,20,2,null,null,null,null,null,null,22,null,null,12,32]
[null,68,16,5,null,null,null,null,null,null,21,null,null,10,32]
[null,68,12,8,null,null,null,null,null,null,20,null,null,8,32]
[null,68,8,11,null,null,null,null,null,null,19,null,null,6,32]
[null,68,4,14,null,null,null,null,null,null,18,null,null,4,32]
[null,68,null,17,null,null,null,null,null,null,17,null,null,2,32]
[null,68,null,12,4,null,null,null,null,null,16,null,null,null,32]
[null,68,null,8,7,null,null,null,null,null,15,null,null,14,16]
[null,68,null,2,12,null,null,null,null,null,14,null,null,12,16]
[null,68,null,null,10,3,null,null,null,null,13,null,null,10,16]
[null,68,null,null,4,8,null,null,null,null,12,null,null,8,16]
[null,68,null,null,null,9,2,null,null,null,11,null,null,6,16]
[null,68,null,null,null,2,8,null,null,null,10,null,null,4,16]
[null,68,null,null,null,null,4,5,null,null,9,null,null,2,16]
[null,68,null,null,null,null,null,4,4,null,8,null,null,null,16]
[null,68,null,null,null,null,null,null,2,5,7,null,null,6,8]
[null,69,23,null,null,null,null,null,null,null,23,null,null,14,32]
[null,69,19,3,null,null,null,null,null,null,22,null,null,12,32]
[null,69,15,6,null,null,null,null,null,null,21,null,null,10,32]
[null,69,11,9,null,null,null,null,null,null,20,null,null,8,32]
[null,69,7,12,null,null,null,null,null,null,19,null,null,6,32]
[null,69,3,15,null,null,null,null,null,null,18,null,null,4,32]
[null,69,null,16,1,null,null,null,null,null,17,null,null,2,32]
[null,69,null,11,5,null,null,null,null,null,16,null,null,null,32]
[null,69,null,7,8,null,null,null,null,null,15,null,null,14,16]
[null,69,null,1,13,null,null,null,null,null,14,null,null,12,16]
[null,69,null,null,9,4,null,null,null,null,13,null,null,10,16]
[null,69,null,null,3,9,null,null,null,null,12,null,null,8,16]
[null,69,null,null,null,8,3,null,null,null,11,null,null,6,16]
[null,69,null,null,null,1,9,null,null,null,10,null,null,4,16]
[null,69,null,null,null,null,3,6,null,null,9,null,null,2,16]
[null,69,null,null,null,null,null,3,5,null,{"$f":"SUM(C582:J582)","v":8},null,null,null,16]
[null,69,null,null,null,null,null,null,1,6,7,null,null,6,8]
[null,70,22,1,null,null,null,null,null,null,23,null,null,14,32]
[null,70,18,4,null,null,null,null,null,null,22,null,null,12,32]
[null,70,14,7,null,null,null,null,null,null,21,null,null,10,32]
[null,70,10,10,null,null,null,null,null,null,20,null,null,8,32]
[null,70,6,13,null,null,null,null,null,null,19,null,null,6,32]
[null,70,2,16,null,null,null,null,null,null,18,null,null,4,32]
[null,70,null,15,2,null,null,null,null,null,17,null,null,2,32]
[null,70,null,10,6,null,null,null,null,null,16,null,null,null,32]
[null,70,null,6,9,null,null,null,null,null,15,null,null,14,16]
[null,70,null,null,14,null,null,null,null,null,14,null,null,12,16]
[null,70,null,null,8,5,null,null,null,null,13,null,null,10,16]
[null,70,null,null,2,10,null,null,null,null,12,null,null,8,16]
[null,70,null,null,null,7,4,null,null,null,11,null,null,6,16]
[null,70,null,null,null,null,10,null,null,null,10,null,null,4,16]
[null,70,null,null,null,null,2,7,null,null,9,null,null,2,16]
[null,70,null,null,null,null,null,2,6,null,8,null,null,null,16]
[null,70,null,null,null,null,null,null,null,7,7,null,null,6,8]
[null,71,21,2,null,null,null,null,null,null,23,null,null,14,32]
[null,71,17,5,null,null,null,null,null,null,22,null,null,12,32]
[null,71,13,8,null,null,null,null,null,null,21,null,null,10,32]
[null,71,9,11,null,null,null,null,null,null,20,null,null,8,32]
[null,71,5,14,null,null,null,null,null,null,19,null,null,6,32]
[null,71,1,17,null,null,null,null,null,null,18,null,null,4,32]
[null,71,null,14,3,null,null,null,null,null,17,null,null,2,32]
[null,71,null,9,7,null,null,null,null,null,16,null,null,null,32]
[null,71,null,5,10,null,null,null,null,null,15,null,null,14,16]
[null,71,null,null,13,1,null,null,null,null,14,null,null,12,16]
[null,71,null,null,7,6,null,null,null,null,13,null,null,10,16]
[null,71,null,null,1,11,null,null,null,null,12,null,null,8,16]
[null,71,null,null,null,6,5,null,null,null,11,null,null,6,16]
[null,71,null,null,null,null,9,1,null,null,10,null,null,4,16]
[null,71,null,null,null,null,1,8,null,null,9,null,null,2,16]
[null,71,null,null,null,null,null,1,7,null,8,null,null,null,16]
[null,72,24,null,null,null,null,null,null,null,24,null,null,16,32]
[null,72,20,3,null,null,null,null,null,null,23,null,null,14,32]
[null,72,16,6,null,null,null,null,null,null,22,null,null,12,32]
[null,72,12,9,null,null,null,null,null,null,21,null,null,10,32]
[null,72,8,12,null,null,null,null,null,null,20,null,null,8,32]
[null,72,4,15,null,null,null,null,null,null,19,null,null,6,32]
[null,72,null,18,null,null,null,null,null,null,18,null,null,4,32]
[null,72,null,13,4,null,null,null,null,null,17,null,null,2,32]
[null,72,null,8,8,null,null,null,null,null,16,null,null,null,32]
[null,72,null,4,11,null,null,null,null,null,15,null,null,14,16]
[null,72,null,null,12,2,null,null,null,null,14,null,null,12,16]
[null,72,null,null,6,7,null,null,null,null,13,null,null,10,16]
[null,72,null,null,null,12,null,null,null,null,12,null,null,8,16]
[null,72,null,null,null,5,6,null,null,null,11,null,null,6,16]
[null,72,null,null,null,null,8,2,null,null,10,null,null,4,16]
[null,72,null,null,null,null,null,9,null,null,9,null,null,2,16]
[null,72,null,null,null,null,null,null,8,null,8,null,null,null,16]
[null,73,23,1,null,null,null,null,null,null,24,null,null,16,32]
[null,73,19,4,null,null,null,null,null,null,23,null,null,14,32]
[null,73,15,7,null,null,null,null,null,null,22,null,null,12,32]
[null,73,11,10,null,null,null,null,null,null,21,null,null,10,32]
[null,73,7,13,null,null,null,null,null,null,20,null,null,8,32]
[null,73,3,16,null,null,null,null,null,null,19,null,null,6,32]
[null,73,null,17,1,null,null,null,null,null,18,null,null,4,32]
[null,73,null,12,5,null,null,null,null,null,17,null,null,2,32]
[null,73,null,7,9,null,null,null,null,null,16,null,null,null,32]
[null,73,null,3,12,null,null,null,null,null,15,null,null,14,16]
[null,73,null,null,11,3,null,null,null,null,14,null,null,12,16]
[null,73,null,null,5,8,null,null,null,null,13,null,null,10,16]
[null,73,null,null,null,11,1,null,null,null,{"$f":"SUM(C646:J646)","v":12},null,null,8,16]
[null,73,null,null,null,4,7,null,null,null,11,null,null,6,16]
[null,73,null,null,null,null,7,3,null,null,10,null,null,4,16]
[null,73,null,null,null,null,null,8,1,null,9,null,null,2,16]
[null,73,null,null,null,null,null,null,7,1,8,null,null,null,16]
[null,74,22,2,null,null,null,null,null,null,24,null,null,16,32]
[null,74,18,5,null,null,null,null,null,null,23,null,null,14,32]
[null,74,14,8,null,null,null,null,null,null,22,null,null,12,32]
[null,74,10,11,null,null,null,null,null,null,21,null,null,10,32]
[null,74,6,14,null,null,null,null,null,null,20,null,null,8,32]
[null,74,2,17,null,null,null,null,null,null,19,null,null,6,32]
[null,74,null,16,2,null,null,null,null,null,18,null,null,4,32]
[null,74,null,11,6,null,null,null,null,null,17,null,null,2,32]
[null,74,null,6,10,null,null,null,null,null,16,null,null,null,32]
[null,74,null,2,13,null,null,null,null,null,15,null,null,14,16]
[null,74,null,null,10,4,null,null,null,null,14,null,null,12,16]
[null,74,null,null,4,9,null,null,null,null,13,null,null,10,16]
[null,74,null,null,null,10,2,null,null,null,12,null,null,8,16]
[null,74,null,null,null,3,8,null,null,null,11,null,null,6,16]
[null,74,null,null,null,null,6,4,null,null,10,null,null,4,16]
[null,74,null,null,null,null,null,7,2,null,9,null,null,2,16]
[null,74,null,null,null,null,null,null,6,2,8,null,null,null,16]
[null,75,25,null,null,null,null,null,null,null,25,null,null,18,32]
[null,75,21,3,null,null,null,null,null,null,24,null,null,16,32]
[null,75,17,6,null,null,null,null,null,null,23,null,null,14,32]
[null,75,13,9,null,null,null,null,null,null,22,null,null,12,32]
[null,75,9,12,null,null,null,null,null,null,21,null,null,10,32]
[null,75,5,15,null,null,null,null,null,null,20,null,null,8,32]
[null,75,1,18,null,null,null,null,null,null,19,null,null,6,32]
[null,75,null,15,3,null,null,null,null,null,18,null,null,4,32]
[null,75,null,10,7,null,null,null,null,null,17,null,null,2,32]
[null,75,null,5,11,null,null,null,null,null,16,null,null,null,32]
[null,75,null,1,14,null,null,null,null,null,15,null,null,14,16]
[null,75,null,null,9,5,null,null,null,null,14,null,null,12,16]
[null,75,null,null,3,10,null,null,null,null,13,null,null,10,16]
[null,75,null,null,null,9,3,null,null,null,12,null,null,8,16]
[null,75,null,null,null,2,9,null,null,null,11,null,null,6,16]
[null,75,null,null,null,null,5,5,null,null,10,null,null,4,16]
[null,75,null,null,null,null,null,6,3,null,9,null,null,2,16]
[null,75,null,null,null,null,null,null,5,3,8,null,null,null,16]
[null,76,24,1,null,null,null,null,null,null,25,null,null,18,32]
[null,76,20,4,null,null,null,null,null,null,24,null,null,16,32]
[null,76,16,7,null,null,null,null,null,null,23,null,null,14,32]
[null,76,12,10,null,null,null,null,null,null,22,null,null,12,32]
[null,76,8,13,null,null,null,null,null,null,21,null,null,10,32]
[null,76,4,16,null,null,null,null,null,null,20,null,null,8,32]
[null,76,null,19,null,null,null,null,null,null,19,null,null,6,32]
[null,76,null,14,4,null,null,null,null,null,18,null,null,4,32]
[null,76,null,9,8,null,null,null,null,null,17,null,null,2,32]
[null,76,null,4,12,null,null,null,null,null,16,null,null,null,32]
[null,76,null,null,15,null,null,null,null,null,15,null,null,14,16]
[null,76,null,null,8,6,null,null,null,null,14,null,null,12,16]
[null,76,null,null,2,11,null,null,null,null,13,null,null,10,16]
[null,76,null,null,null,8,4,null,null,null,12,null,null,8,16]
[null,76,null,null,null,1,10,null,null,null,11,null,null,6,16]
[null,76,null,null,null,null,4,6,null,null,10,null,null,4,16]
[null,76,null,null,null,null,null,5,4,null,9,null,null,2,16]
[null,76,null,null,null,null,null,null,4,4,8,null,null,null,16]
[null,77,23,2,null,null,null,null,null,null,25,null,null,18,32]
[null,77,19,5,null,null,null,null,null,null,24,null,null,16,32]
[null,77,15,8,null,null,null,null,null,null,23,null,null,14,32]
[null,77,11,11,null,null,null,null,null,null,22,null,null,12,32]
[null,77,7,14,null,null,null,null,null,null,21,null,null,10,32]
[null,77,3,17,null,null,null,null,null,null,20,null,null,8,32]
[null,77,null,18,1,null,null,null,null,null,{"$f":"SUM(C710:J710)","v":19},null,null,6,32]
[null,77,null,13,5,null,null,null,null,null,18,null,null,4,32]
[null,77,null,8,9,null,null,null,null,null,17,null,null,2,32]
[null,77,null,3,13,null,null,null,null,null,16,null,null,null,32]
[null,77,null,null,14,1,null,null,null,null,15,null,null,14,16]
[null,77,null,null,7,7,null,null,null,null,14,null,null,12,16]
[null,77,null,null,1,12,null,null,null,null,13,null,null,10,16]
[null,77,null,null,null,7,5,null,null,null,12,null,null,8,16]
[null,77,null,null,null,null,11,null,null,null,11,null,null,6,16]
[null,77,null,null,null,null,3,7,null,null,10,null,null,4,16]
[null,77,null,null,null,null,null,4,5,null,9,null,null,2,16]
[null,77,null,null,null,null,null,null,3,5,8,null,null,null,16]
[null,78,26,null,null,null,null,null,null,null,26,null,null,20,32]
[null,78,22,3,null,null,null,null,null,null,25,null,null,18,32]
[null,78,18,6,null,null,null,null,null,null,24,null,null,16,32]
[null,78,14,9,null,null,null,null,null,null,23,null,null,14,32]
[null,78,10,12,null,null,null,null,null,null,22,null,null,12,32]
[null,78,6,15,null,null,null,null,null,null,21,null,null,10,32]
[null,78,2,18,null,null,null,null,null,null,20,null,null,8,32]
[null,78,null,17,2,null,null,null,null,null,19,null,null,6,32]
[null,78,null,12,6,null,null,null,null,null,18,null,null,4,32]
[null,78,null,7,10,null,null,null,null,null,17,null,null,2,32]
[null,78,null,2,14,null,null,null,null,null,16,null,null,null,32]
[null,78,null,null,13,2,null,null,null,null,15,null,null,14,16]
[null,78,null,null,6,8,null,null,null,null,14,null,null,12,16]
[null,78,null,null,null,13,null,null,null,null,13,null,null,10,16]
[null,78,null,null,null,6,6,null,null,null,12,null,null,8,16]
[null,78,null,null,null,null,10,1,null,null,11,null,null,6,16]
[null,78,null,null,null,null,2,8,null,null,10,null,null,4,16]
[null,78,null,null,null,null,null,3,6,null,9,null,null,2,16]
[null,78,null,null,null,null,null,null,2,6,8,null,null,null,16]
[null,79,25,1,null,null,null,null,null,null,26,null,null,20,32]
[null,79,21,4,null,null,null,null,null,null,25,null,null,18,32]
[null,79,17,7,null,null,null,null,null,null,24,null,null,16,32]
[null,79,13,10,null,null,null,null,null,null,23,null,null,14,32]
[null,79,9,13,null,null,null,null,null,null,22,null,null,12,32]
[null,79,5,16,null,null,null,null,null,null,21,null,null,10,32]
[null,79,1,19,null,null,null,null,null,null,20,null,null,8,32]
[null,79,null,16,3,null,null,null,null,null,19,null,null,6,32]
[null,79,null,11,7,null,null,null,null,null,18,null,null,4,32]
[null,79,null,6,11,null,null,null,null,null,17,null,null,2,32]
[null,79,null,1,15,null,null,null,null,null,16,null,null,null,32]
[null,79,null,null,12,3,null,null,null,null,15,null,null,14,16]
[null,79,null,null,5,9,null,null,null,null,14,null,null,12,16]
[null,79,null,null,null,12,1,null,null,null,13,null,null,10,16]
[null,79,null,null,null,5,7,null,null,null,12,null,null,8,16]
[null,79,null,null,null,null,9,2,null,null,11,null,null,6,16]
[null,79,null,null,null,null,1,9,null,null,10,null,null,4,16]
[null,79,null,null,null,null,null,2,7,null,9,null,null,2,16]
[null,79,null,null,null,null,null,null,1,7,8,null,null,null,16]
[null,80,24,2,null,null,null,null,null,null,26,null,null,20,32]
[null,80,20,5,null,null,null,null,null,null,25,null,null,18,32]
[null,80,16,8,null,null,null,null,null,null,24,null,null,16,32]
[null,80,12,11,null,null,null,null,null,null,23,null,null,14,32]
[null,80,8,14,null,null,null,null,null,null,22,null,null,12,32]
[null,80,4,17,null,null,null,null,null,null,21,null,null,10,32]
[null,80,null,20,null,null,null,null,null,null,20,null,null,8,32]
[null,80,null,15,4,null,null,null,null,null,19,null,null,6,32]
[null,80,null,10,8,null,null,null,null,null,18,null,null,4,32]
[null,80,null,5,12,null,null,null,null,null,17,null,null,2,32]
[null,80,null,null,16,null,null,null,null,null,16,null,null,null,32]
[null,80,null,null,11,4,null,null,null,null,15,null,null,14,16]
[null,80,null,null,4,10,null,null,null,null,14,null,null,12,16]
[null,80,null,null,null,11,2,null,null,null,13,null,null,10,16]
[null,80,null,null,null,4,8,null,null,null,{"$f":"SUM(C774:J774)","v":12},null,null,8,16]
[null,80,null,null,null,null,8,3,null,null,11,null,null,6,16]
[null,80,null,null,null,null,null,10,null,null,10,null,null,4,16]
[null,80,null,null,null,null,null,1,8,null,9,null,null,2,16]
[null,80,null,null,null,null,null,null,null,8,8,null,null,null,16]
[null,81,27,null,null,null,null,null,null,null,27,null,null,22,32]
[null,81,23,3,null,null,null,null,null,null,26,null,null,20,32]
[null,81,19,6,null,null,null,null,null,null,25,null,null,18,32]
[null,81,15,9,null,null,null,null,null,null,24,null,null,16,32]
[null,81,11,12,null,null,null,null,null,null,23,null,null,14,32]
[null,81,7,15,null,null,null,null,null,null,22,null,null,12,32]
[null,81,3,18,null,null,null,null,null,null,21,null,null,10,32]
[null,81,null,19,1,null,null,null,null,null,20,null,null,8,32]
[null,81,null,14,5,null,null,null,null,null,19,null,null,6,32]
[null,81,null,9,9,null,null,null,null,null,18,null,null,4,32]
[null,81,null,4,13,null,null,null,null,null,17,null,null,2,32]
[null,81,null,null,15,1,null,null,null,null,16,null,null,null,32]
[null,81,null,null,10,5,null,null,null,null,15,null,null,14,16]
[null,81,null,null,3,11,null,null,null,null,14,null,null,12,16]
[null,81,null,null,null,10,3,null,null,null,13,null,null,10,16]
[null,81,null,null,null,3,9,null,null,null,12,null,null,8,16]
[null,81,null,null,null,null,7,4,null,null,11,null,null,6,16]
[null,81,null,null,null,null,null,9,1,null,10,null,null,4,16]
[null,81,null,null,null,null,null,null,9,null,9,null,null,2,16]
[null,82,26,1,null,null,null,null,null,null,27,null,null,22,32]
[null,82,22,4,null,null,null,null,null,null,26,null,null,20,32]
[null,82,18,7,null,null,null,null,null,null,25,null,null,18,32]
[null,82,14,10,null,null,null,null,null,null,24,null,null,16,32]
[null,82,10,13,null,null,null,null,null,null,23,null,null,14,32]
[null,82,6,16,null,null,null,null,null,null,22,null,null,12,32]
[null,82,2,19,null,null,null,null,null,null,21,null,null,10,32]
[null,82,null,18,2,null,null,null,null,null,20,null,null,8,32]
[null,82,null,13,6,null,null,null,null,null,19,null,null,6,32]
[null,82,null,8,10,null,null,null,null,null,18,null,null,4,32]
[null,82,null,3,14,null,null,null,null,null,17,null,null,2,32]
[null,82,null,null,14,2,null,null,null,null,16,null,null,null,32]
[null,82,null,null,9,6,null,null,null,null,15,null,null,14,16]
[null,82,null,null,2,12,null,null,null,null,14,null,null,12,16]
[null,82,null,null,null,9,4,null,null,null,13,null,null,10,16]
[null,82,null,null,null,2,10,null,null,null,12,null,null,8,16]
[null,82,null,null,null,null,6,5,null,null,11,null,null,6,16]
[null,82,null,null,null,null,null,8,2,null,10,null,null,4,16]
[null,82,null,null,null,null,null,null,8,1,9,null,null,2,16]
[null,83,25,2,null,null,null,null,null,null,27,null,null,22,32]
[null,83,21,5,null,null,null,null,null,null,26,null,null,20,32]
[null,83,17,8,null,null,null,null,null,null,25,null,null,18,32]
[null,83,13,11,null,null,null,null,null,null,24,null,null,16,32]
[null,83,9,14,null,null,null,null,null,null,23,null,null,14,32]
[null,83,5,17,null,null,null,null,null,null,22,null,null,12,32]
[null,83,1,20,null,null,null,null,null,null,21,null,null,10,32]
[null,83,null,17,3,null,null,null,null,null,20,null,null,8,32]
[null,83,null,12,7,null,null,null,null,null,19,null,null,6,32]
[null,83,null,7,11,null,null,null,null,null,18,null,null,4,32]
[null,83,null,2,15,null,null,null,null,null,17,null,null,2,32]
[null,83,null,null,13,3,null,null,null,null,16,null,null,null,32]
[null,83,null,null,8,7,null,null,null,null,15,null,null,14,16]
[null,83,null,null,1,13,null,null,null,null,14,null,null,12,16]
[null,83,null,null,null,8,5,null,null,null,13,null,null,10,16]
[null,83,null,null,null,1,11,null,null,null,12,null,null,8,16]
[null,83,null,null,null,null,5,6,null,null,11,null,null,6,16]
[null,83,null,null,null,null,null,7,3,null,10,null,null,4,16]
[null,83,null,null,null,null,null,null,7,2,9,null,null,2,16]
[null,84,28,null,null,null,null,null,null,null,28,null,null,24,32]
[null,84,24,3,null,null,null,null,null,null,27,null,null,22,32]
[null,84,20,6,null,null,null,null,null,null,{"$f":"SUM(C838:J838)","v":26},null,null,20,32]
[null,84,16,9,null,null,null,null,null,null,25,null,null,18,32]
[null,84,12,12,null,null,null,null,null,null,24,null,null,16,32]
[null,84,8,15,null,null,null,null,null,null,23,null,null,14,32]
[null,84,4,18,null,null,null,null,null,null,22,null,null,12,32]
[null,84,null,21,null,null,null,null,null,null,21,null,null,10,32]
[null,84,null,16,4,null,null,null,null,null,20,null,null,8,32]
[null,84,null,11,8,null,null,null,null,null,19,null,null,6,32]
[null,84,null,6,12,null,null,null,null,null,18,null,null,4,32]
[null,84,null,1,16,null,null,null,null,null,17,null,null,2,32]
[null,84,null,null,12,4,null,null,null,null,16,null,null,null,32]
[null,84,null,null,7,8,null,null,null,null,15,null,null,14,16]
[null,84,null,null,null,14,null,null,null,null,14,null,null,12,16]
[null,84,null,null,null,7,6,null,null,null,13,null,null,10,16]
[null,84,null,null,null,null,12,null,null,null,12,null,null,8,16]
[null,84,null,null,null,null,4,7,null,null,11,null,null,6,16]
[null,84,null,null,null,null,null,6,4,null,10,null,null,4,16]
[null,84,null,null,null,null,null,null,6,3,9,null,null,2,16]
[null,85,27,1,null,null,null,null,null,null,28,null,null,24,32]
[null,85,23,4,null,null,null,null,null,null,27,null,null,22,32]
[null,85,19,7,null,null,null,null,null,null,26,null,null,20,32]
[null,85,15,10,null,null,null,null,null,null,25,null,null,18,32]
[null,85,11,13,null,null,null,null,null,null,24,null,null,16,32]
[null,85,7,16,null,null,null,null,null,null,23,null,null,14,32]
[null,85,3,19,null,null,null,null,null,null,22,null,null,12,32]
[null,85,null,20,1,null,null,null,null,null,21,null,null,10,32]
[null,85,null,15,5,null,null,null,null,null,20,null,null,8,32]
[null,85,null,10,9,null,null,null,null,null,19,null,null,6,32]
[null,85,null,5,13,null,null,null,null,null,18,null,null,4,32]
[null,85,null,null,17,null,null,null,null,null,17,null,null,2,32]
[null,85,null,null,11,5,null,null,null,null,16,null,null,null,32]
[null,85,null,null,6,9,null,null,null,null,15,null,null,14,16]
[null,85,null,null,null,13,1,null,null,null,14,null,null,12,16]
[null,85,null,null,null,6,7,null,null,null,13,null,null,10,16]
[null,85,null,null,null,null,11,1,null,null,12,null,null,8,16]
[null,85,null,null,null,null,3,8,null,null,11,null,null,6,16]
[null,85,null,null,null,null,null,5,5,null,10,null,null,4,16]
[null,85,null,null,null,null,null,null,5,4,9,null,null,2,16]
[null,86,26,2,null,null,null,null,null,null,28,null,null,24,32]
[null,86,22,5,null,null,null,null,null,null,27,null,null,22,32]
[null,86,18,8,null,null,null,null,null,null,26,null,null,20,32]
[null,86,14,11,null,null,null,null,null,null,25,null,null,18,32]
[null,86,10,14,null,null,null,null,null,null,24,null,null,16,32]
[null,86,6,17,null,null,null,null,null,null,23,null,null,14,32]
[null,86,2,20,null,null,null,null,null,null,22,null,null,12,32]
[null,86,null,19,2,null,null,null,null,null,21,null,null,10,32]
[null,86,null,14,6,null,null,null,null,null,20,null,null,8,32]
[null,86,null,9,10,null,null,null,null,null,19,null,null,6,32]
[null,86,null,4,14,null,null,null,null,null,18,null,null,4,32]
[null,86,null,null,16,1,null,null,null,null,17,null,null,2,32]
[null,86,null,null,10,6,null,null,null,null,16,null,null,null,32]
[null,86,null,null,5,10,null,null,null,null,15,null,null,14,16]
[null,86,null,null,null,12,2,null,null,null,14,null,null,12,16]
[null,86,null,null,null,5,8,null,null,null,13,null,null,10,16]
[null,86,null,null,null,null,10,2,null,null,12,null,null,8,16]
[null,86,null,null,null,null,2,9,null,null,11,null,null,6,16]
[null,86,null,null,null,null,null,4,6,null,10,null,null,4,16]
[null,86,null,null,null,null,null,null,4,5,9,null,null,2,16]
[null,87,29,null,null,null,null,null,null,null,29,null,null,26,32]
[null,87,25,3,null,null,null,null,null,null,28,null,null,24,32]
[null,87,21,6,null,null,null,null,null,null,27,null,null,22,32]
[null,87,17,9,null,null,null,null,null,null,26,null,null,20,32]
[null,87,13,12,null,null,null,null,null,null,25,null,null,18,32]
[null,87,9,15,null,null,null,null,null,null,24,null,null,16,32]
[null,87,5,18,null,null,null,null,null,null,{"$f":"SUM(C902:J902)","v":23},null,null,14,32]
[null,87,1,21,null,null,null,null,null,null,22,null,null,12,32]
[null,87,null,18,3,null,null,null,null,null,21,null,null,10,32]
[null,87,null,13,7,null,null,null,null,null,20,null,null,8,32]
[null,87,null,8,11,null,null,null,null,null,19,null,null,6,32]
[null,87,null,3,15,null,null,null,null,null,18,null,null,4,32]
[null,87,null,null,15,2,null,null,null,null,17,null,null,2,32]
[null,87,null,null,9,7,null,null,null,null,16,null,null,null,32]
[null,87,null,null,4,11,null,null,null,null,15,null,null,14,16]
[null,87,null,null,null,11,3,null,null,null,14,null,null,12,16]
[null,87,null,null,null,4,9,null,null,null,13,null,null,10,16]
[null,87,null,null,null,null,9,3,null,null,12,null,null,8,16]
[null,87,null,null,null,null,1,10,null,null,11,null,null,6,16]
[null,87,null,null,null,null,null,3,7,null,10,null,null,4,16]
[null,87,null,null,null,null,null,null,3,6,9,null,null,2,16]
[null,88,28,1,null,null,null,null,null,null,29,null,null,26,32]
[null,88,24,4,null,null,null,null,null,null,28,null,null,24,32]
[null,88,20,7,null,null,null,null,null,null,27,null,null,22,32]
[null,88,16,10,null,null,null,null,null,null,26,null,null,20,32]
[null,88,12,13,null,null,null,null,null,null,25,null,null,18,32]
[null,88,8,16,null,null,null,null,null,null,24,null,null,16,32]
[null,88,4,19,null,null,null,null,null,null,23,null,null,14,32]
[null,88,null,22,null,null,null,null,null,null,22,null,null,12,32]
[null,88,null,17,4,null,null,null,null,null,21,null,null,10,32]
[null,88,null,12,8,null,null,null,null,null,20,null,null,8,32]
[null,88,null,7,12,null,null,null,null,null,19,null,null,6,32]
[null,88,null,2,16,null,null,null,null,null,18,null,null,4,32]
[null,88,null,null,14,3,null,null,null,null,17,null,null,2,32]
[null,88,null,null,8,8,null,null,null,null,16,null,null,null,32]
[null,88,null,null,3,12,null,null,null,null,15,null,null,14,16]
[null,88,null,null,null,10,4,null,null,null,14,null,null,12,16]
[null,88,null,null,null,3,10,null,null,null,13,null,null,10,16]
[null,88,null,null,null,null,8,4,null,null,12,null,null,8,16]
[null,88,null,null,null,null,null,11,null,null,11,null,null,6,16]
[null,88,null,null,null,null,null,2,8,null,10,null,null,4,16]
[null,88,null,null,null,null,null,null,2,7,9,null,null,2,16]
[null,89,27,2,null,null,null,null,null,null,29,null,null,26,32]
[null,89,23,5,null,null,null,null,null,null,28,null,null,24,32]
[null,89,19,8,null,null,null,null,null,null,27,null,null,22,32]
[null,89,15,11,null,null,null,null,null,null,26,null,null,20,32]
[null,89,11,14,null,null,null,null,null,null,25,null,null,18,32]
[null,89,7,17,null,null,null,null,null,null,24,null,null,16,32]
[null,89,3,20,null,null,null,null,null,null,23,null,null,14,32]
[null,89,null,21,1,null,null,null,null,null,22,null,null,12,32]
[null,89,null,16,5,null,null,null,null,null,21,null,null,10,32]
[null,89,null,11,9,null,null,null,null,null,20,null,null,8,32]
[null,89,null,6,13,null,null,null,null,null,19,null,null,6,32]
[null,89,null,1,17,null,null,null,null,null,18,null,null,4,32]
[null,89,null,null,13,4,null,null,null,null,17,null,null,2,32]
[null,89,null,null,7,9,null,null,null,null,16,null,null,null,32]
[null,89,null,null,2,13,null,null,null,null,15,null,null,14,16]
[null,89,null,null,null,9,5,null,null,null,14,null,null,12,16]
[null,89,null,null,null,2,11,null,null,null,13,null,null,10,16]
[null,89,null,null,null,null,7,5,null,null,12,null,null,8,16]
[null,89,null,null,null,null,null,10,1,null,11,null,null,6,16]
[null,89,null,null,null,null,null,1,9,null,10,null,null,4,16]
[null,89,null,null,null,null,null,null,1,8,9,null,null,2,16]
[null,90,30,null,null,null,null,null,null,null,30,null,null,28,32]
[null,90,26,3,null,null,null,null,null,null,29,null,null,26,32]
[null,90,22,6,null,null,null,null,null,null,28,null,null,24,32]
[null,90,18,9,null,null,null,null,null,null,27,null,null,22,32]
[null,90,14,12,null,null,null,null,null,null,26,null,null,20,32]
[null,90,10,15,null,null,null,null,null,null,25,null,null,18,32]
[null,90,6,18,null,null,null,null,null,null,24,null,null,16,32]
[null,90,2,21,null,null,null,null,null,null,{"$f":"SUM(C966:J966)","v":23},null,null,14,32]
[null,90,null,20,2,null,null,null,null,null,22,null,null,12,32]
[null,90,null,15,6,null,null,null,null,null,21,null,null,10,32]
[null,90,null,10,10,null,null,null,null,null,20,null,null,8,32]
[null,90,null,5,14,null,null,null,null,null,19,null,null,6,32]
[null,90,null,null,18,null,null,null,null,null,18,null,null,4,32]
[null,90,null,null,12,5,null,null,null,null,17,null,null,2,32]
[null,90,null,null,6,10,null,null,null,null,16,null,null,null,32]
[null,90,null,null,1,14,null,null,null,null,15,null,null,14,16]
[null,90,null,null,null,8,6,null,null,null,14,null,null,12,16]
[null,90,null,null,null,1,12,null,null,null,13,null,null,10,16]
[null,90,null,null,null,null,6,6,null,null,12,null,null,8,16]
[null,90,null,null,null,null,null,9,2,null,11,null,null,6,16]
[null,90,null,null,null,null,null,null,10,null,10,null,null,4,16]
[null,90,null,null,null,null,null,null,null,9,9,null,null,2,16]
[null,91,29,1,null,null,null,null,null,null,30,null,null,28,32]
[null,91,25,4,null,null,null,null,null,null,29,null,null,26,32]
[null,91,21,7,null,null,null,null,null,null,28,null,null,24,32]
[null,91,17,10,null,null,null,null,null,null,27,null,null,22,32]
[null,91,13,13,null,null,null,null,null,null,26,null,null,20,32]
[null,91,9,16,null,null,null,null,null,null,25,null,null,18,32]
[null,91,5,19,null,null,null,null,null,null,24,null,null,16,32]
[null,91,1,22,null,null,null,null,null,null,23,null,null,14,32]
[null,91,null,19,3,null,null,null,null,null,22,null,null,12,32]
[null,91,null,14,7,null,null,null,null,null,21,null,null,10,32]
[null,91,null,9,11,null,null,null,null,null,20,null,null,8,32]
[null,91,null,4,15,null,null,null,null,null,19,null,null,6,32]
[null,91,null,null,17,1,null,null,null,null,18,null,null,4,32]
[null,91,null,null,11,6,null,null,null,null,17,null,null,2,32]
[null,91,null,null,5,11,null,null,null,null,16,null,null,null,32]
[null,91,null,null,null,15,null,null,null,null,15,null,null,14,16]
[null,91,null,null,null,7,7,null,null,null,14,null,null,12,16]
[null,91,null,null,null,null,13,null,null,null,13,null,null,10,16]
[null,91,null,null,null,null,5,7,null,null,12,null,null,8,16]
[null,91,null,null,null,null,null,8,3,null,11,null,null,6,16]
[null,91,null,null,null,null,null,null,9,1,10,null,null,4,16]
[null,92,28,2,null,null,null,null,null,null,30,null,null,28,32]
[null,92,24,5,null,null,null,null,null,null,29,null,null,26,32]
[null,92,20,8,null,null,null,null,null,null,28,null,null,24,32]
[null,92,16,11,null,null,null,null,null,null,27,null,null,22,32]
[null,92,12,14,null,null,null,null,null,null,26,null,null,20,32]
[null,92,8,17,null,null,null,null,null,null,25,null,null,18,32]
[null,92,4,20,null,null,null,null,null,null,24,null,null,16,32]
[null,92,null,23,null,null,null,null,null,null,23,null,null,14,32]
[null,92,null,18,4,null,null,null,null,null,22,null,null,12,32]
[null,92,null,13,8,null,null,null,null,null,21,null,null,10,32]
[null,92,null,8,12,null,null,null,null,null,20,null,null,8,32]
[null,92,null,3,16,null,null,null,null,null,19,null,null,6,32]
[null,92,null,null,16,2,null,null,null,null,18,null,null,4,32]
[null,92,null,null,10,7,null,null,null,null,17,null,null,2,32]
[null,92,null,null,4,12,null,null,null,null,16,null,null,null,32]
[null,92,null,null,null,14,1,null,null,null,15,null,null,14,16]
[null,92,null,null,null,6,8,null,null,null,14,null,null,12,16]
[null,92,null,null,null,null,12,1,null,null,13,null,null,10,16]
[null,92,null,null,null,null,4,8,null,null,12,null,null,8,16]
[null,92,null,null,null,null,null,7,4,null,11,null,null,6,16]
[null,92,null,null,null,null,null,null,8,2,10,null,null,4,16]
[null,93,31,null,null,null,null,null,null,null,31,null,null,3,32]
[null,93,27,3,null,null,null,null,null,null,30,null,null,28,32]
[null,93,23,6,null,null,null,null,null,null,29,null,null,26,32]
[null,93,19,9,null,null,null,null,null,null,28,null,null,24,32]
[null,93,15,12,null,null,null,null,null,null,27,null,null,22,32]
[null,93,11,15,null,null,null,null,null,null,26,null,null,20,32]
[null,93,7,18,null,null,null,null,null,null,25,null,null,18,32]
[null,93,3,21,null,null,null,null,null,null,{"$f":"SUM(C1030:J1030)","v":24},null,null,16,32]
[null,93,null,22,1,null,null,null,null,null,23,null,null,14,32]
[null,93,null,17,5,null,null,null,null,null,22,null,null,12,32]
[null,93,null,12,9,null,null,null,null,null,21,null,null,10,32]
[null,93,null,7,13,null,null,null,null,null,20,null,null,8,32]
[null,93,null,2,17,null,null,null,null,null,19,null,null,6,32]
[null,93,null,null,15,3,null,null,null,null,18,null,null,4,32]
[null,93,null,null,9,8,null,null,null,null,17,null,null,2,32]
[null,93,null,null,3,13,null,null,null,null,16,null,null,null,32]
[null,93,null,null,null,13,2,null,null,null,15,null,null,14,16]
[null,93,null,null,null,5,9,null,null,null,14,null,null,12,16]
[null,93,null,null,null,null,11,2,null,null,13,null,null,10,16]
[null,93,null,null,null,null,3,9,null,null,12,null,null,8,16]
[null,93,null,null,null,null,null,6,5,null,11,null,null,6,16]
[null,93,null,null,null,null,null,null,7,3,10,null,null,4,16]
[null,94,30,1,null,null,null,null,null,null,31,null,null,3,32]
[null,94,26,4,null,null,null,null,null,null,30,null,null,28,32]
[null,94,22,7,null,null,null,null,null,null,29,null,null,26,32]
[null,94,18,10,null,null,null,null,null,null,28,null,null,24,32]
[null,94,14,13,null,null,null,null,null,null,27,null,null,22,32]
[null,94,10,16,null,null,null,null,null,null,26,null,null,20,32]
[null,94,6,19,null,null,null,null,null,null,25,null,null,18,32]
[null,94,2,22,null,null,null,null,null,null,24,null,null,16,32]
[null,94,null,21,2,null,null,null,null,null,23,null,null,14,32]
[null,94,null,16,6,null,null,null,null,null,22,null,null,12,32]
[null,94,null,11,10,null,null,null,null,null,21,null,null,10,32]
[null,94,null,6,14,null,null,null,null,null,20,null,null,8,32]
[null,94,null,1,18,null,null,null,null,null,19,null,null,6,32]
[null,94,null,null,14,4,null,null,null,null,18,null,null,4,32]
[null,94,null,null,8,9,null,null,null,null,17,null,null,2,32]
[null,94,null,null,2,14,null,null,null,null,16,null,null,null,32]
[null,94,null,null,null,12,3,null,null,null,15,null,null,14,16]
[null,94,null,null,null,4,10,null,null,null,14,null,null,12,16]
[null,94,null,null,null,null,10,3,null,null,13,null,null,10,16]
[null,94,null,null,null,null,2,10,null,null,12,null,null,8,16]
[null,94,null,null,null,null,null,5,6,null,11,null,null,6,16]
[null,94,null,null,null,null,null,null,6,4,10,null,null,4,16]
[null,95,29,2,null,null,null,null,null,null,31,null,null,3,32]
[null,95,25,5,null,null,null,null,null,null,30,null,null,28,32]
[null,95,21,8,null,null,null,null,null,null,29,null,null,26,32]
[null,95,17,11,null,null,null,null,null,null,28,null,null,24,32]
[null,95,13,14,null,null,null,null,null,null,27,null,null,22,32]
[null,95,9,17,null,null,null,null,null,null,26,null,null,20,32]
[null,95,5,20,null,null,null,null,null,null,25,null,null,18,32]
[null,95,1,23,null,null,null,null,null,null,24,null,null,16,32]
[null,95,null,20,3,null,null,null,null,null,23,null,null,14,32]
[null,95,null,15,7,null,null,null,null,null,22,null,null,12,32]
[null,95,null,10,11,null,null,null,null,null,21,null,null,10,32]
[null,95,null,5,15,null,null,null,null,null,20,null,null,8,32]
[null,95,null,null,19,null,null,null,null,null,19,null,null,6,32]
[null,95,null,null,13,5,null,null,null,null,18,null,null,4,32]
[null,95,null,null,7,10,null,null,null,null,17,null,null,2,32]
[null,95,null,null,1,15,null,null,null,null,16,null,null,null,32]
[null,95,null,null,null,11,4,null,null,null,15,null,null,14,16]
[null,95,null,null,null,3,11,null,null,null,14,null,null,12,16]
[null,95,null,null,null,null,9,4,null,null,13,null,null,10,16]
[null,95,null,null,null,null,1,11,null,null,12,null,null,8,16]
[null,95,null,null,null,null,null,4,7,null,11,null,null,6,16]
[null,95,null,null,null,null,null,null,5,5,10,null,null,4,16]
[null,96,32,null,null,null,null,null,null,null,32,null,null,null,64]
[null,96,28,3,null,null,null,null,null,null,31,null,null,30,32]
[null,96,24,6,null,null,null,null,null,null,30,null,null,28,32]
[null,96,20,9,null,null,null,null,null,null,29,null,null,26,32]
[null,96,16,12,null,null,null,null,null,null,28,null,null,24,32]
[null,96,12,15,null,null,null,null,null,null,{"$f":"SUM(C1094:J1094)","v":27},null,null,22,32]
[null,96,8,18,null,null,null,null,null,null,26,null,null,20,32]
[null,96,4,21,null,null,null,null,null,null,25,null,null,18,32]
[null,96,null,24,null,null,null,null,null,null,24,null,null,16,32]
[null,96,null,19,4,null,null,null,null,null,23,null,null,14,32]
[null,96,null,14,8,null,null,null,null,null,22,null,null,12,32]
[null,96,null,9,12,null,null,null,null,null,21,null,null,10,32]
[null,96,null,4,16,null,null,null,null,null,20,null,null,8,32]
[null,96,null,null,18,1,null,null,null,null,19,null,null,6,32]
[null,96,null,null,12,6,null,null,null,null,18,null,null,4,32]
[null,96,null,null,6,11,null,null,null,null,17,null,null,2,32]
[null,96,null,null,null,16,null,null,null,null,16,null,null,null,32]
[null,96,null,null,null,10,5,null,null,null,15,null,null,14,16]
[null,96,null,null,null,2,12,null,null,null,14,null,null,12,16]
[null,96,null,null,null,null,8,5,null,null,13,null,null,10,16]
[null,96,null,null,null,null,null,12,null,null,12,null,null,8,16]
[null,96,null,null,null,null,null,3,8,null,11,null,null,6,16]
[null,96,null,null,null,null,null,null,4,6,10,null,null,4,16]
[null,97,32,null,null,null,null,null,null,null,32,null,1,1,64]
[null,97,31,1,null,null,null,null,null,null,32,null,null,null,64]
[null,97,27,4,null,null,null,null,null,null,31,null,null,30,32]
[null,97,23,7,null,null,null,null,null,null,30,null,null,28,32]
[null,97,19,10,null,null,null,null,null,null,29,null,null,26,32]
[null,97,15,13,null,null,null,null,null,null,28,null,null,24,32]
[null,97,11,16,null,null,null,null,null,null,27,null,null,22,32]
[null,97,7,19,null,null,null,null,null,null,26,null,null,20,32]
[null,97,3,22,null,null,null,null,null,null,25,null,null,18,32]
[null,97,null,23,1,null,null,null,null,null,24,null,null,16,32]
[null,97,null,18,5,null,null,null,null,null,23,null,null,14,32]
[null,97,null,13,9,null,null,null,null,null,22,null,null,12,32]
[null,97,null,8,13,null,null,null,null,null,21,null,null,10,32]
[null,97,null,3,17,null,null,null,null,null,20,null,null,8,32]
[null,97,null,null,17,2,null,null,null,null,19,null,null,6,32]
[null,97,null,null,11,7,null,null,null,null,18,null,null,4,32]
[null,97,null,null,5,12,null,null,null,null,17,null,null,2,32]
[null,97,null,null,null,15,1,null,null,null,16,null,null,null,32]
[null,97,null,null,null,9,6,null,null,null,15,null,null,14,16]
[null,97,null,null,null,1,13,null,null,null,14,null,null,12,16]
[null,97,null,null,null,null,7,6,null,null,13,null,null,10,16]
[null,97,null,null,null,null,null,11,1,null,12,null,null,8,16]
[null,97,null,null,null,null,null,2,9,null,11,null,null,6,16]
[null,97,null,null,null,null,null,null,3,7,10,null,null,4,16]
[null,98,32,null,null,null,null,null,null,null,32,null,2,2,64]
[null,98,30,2,null,null,null,null,null,null,32,null,null,null,64]
[null,98,26,5,null,null,null,null,null,null,31,null,null,30,32]
[null,98,22,8,null,null,null,null,null,null,30,null,null,28,32]
[null,98,18,11,null,null,null,null,null,null,29,null,null,26,32]
[null,98,14,14,null,null,null,null,null,null,28,null,null,24,32]
[null,98,10,17,null,null,null,null,null,null,27,null,null,22,32]
[null,98,6,20,null,null,null,null,null,null,26,null,null,20,32]
[null,98,2,23,null,null,null,null,null,null,25,null,null,18,32]
[null,98,null,22,2,null,null,null,null,null,24,null,null,16,32]
[null,98,null,17,6,null,null,null,null,null,23,null,null,14,32]
[null,98,null,12,10,null,null,null,null,null,22,null,null,12,32]
[null,98,null,7,14,null,null,null,null,null,21,null,null,10,32]
[null,98,null,2,18,null,null,null,null,null,20,null,null,8,32]
[null,98,null,null,16,3,null,null,null,null,19,null,null,6,32]
[null,98,null,null,10,8,null,null,null,null,18,null,null,4,32]
[null,98,null,null,4,13,null,null,null,null,17,null,null,2,32]
[null,98,null,null,null,14,2,null,null,null,16,null,null,null,32]
[null,98,null,null,null,8,7,null,null,null,15,null,null,14,16]
[null,98,null,null,null,null,14,null,null,null,14,null,null,12,16]
[null,98,null,null,null,null,6,7,null,null,13,null,null,10,16]
[null,98,null,null,null,null,null,10,2,null,12,null,null,8,16]
[null,98,null,null,null,null,null,1,10,null,{"$f":"SUM(C1158:J1158)","v":11},null,null,6,16]
[null,98,null,null,null,null,null,null,2,8,10,null,null,4,16]
[null,99,33,null,null,null,null,null,null,null,33,null,3,3,64]
[null,99,29,3,null,null,null,null,null,null,32,null,null,null,64]
[null,99,25,6,null,null,null,null,null,null,31,null,null,30,32]
[null,99,21,9,null,null,null,null,null,null,30,null,null,28,32]
[null,99,17,12,null,null,null,null,null,null,29,null,null,26,32]
[null,99,13,15,null,null,null,null,null,null,28,null,null,24,32]
[null,99,9,18,null,null,null,null,null,null,27,null,null,22,32]
[null,99,5,21,null,null,null,null,null,null,26,null,null,20,32]
[null,99,1,24,null,null,null,null,null,null,25,null,null,18,32]
[null,99,null,21,3,null,null,null,null,null,24,null,null,16,32]
[null,99,null,16,7,null,null,null,null,null,23,null,null,14,32]
[null,99,null,11,11,null,null,null,null,null,22,null,null,12,32]
[null,99,null,6,15,null,null,null,null,null,21,null,null,10,32]
[null,99,null,1,19,null,null,null,null,null,20,null,null,8,32]
[null,99,null,null,15,4,null,null,null,null,19,null,null,6,32]
[null,99,null,null,9,9,null,null,null,null,18,null,null,4,32]
[null,99,null,null,3,14,null,null,null,null,17,null,null,2,32]
[null,99,null,null,null,13,3,null,null,null,16,null,null,null,32]
[null,99,null,null,null,7,8,null,null,null,15,null,null,14,16]
[null,99,null,null,null,null,13,1,null,null,14,null,null,12,16]
[null,99,null,null,null,null,5,8,null,null,13,null,null,10,16]
[null,99,null,null,null,null,null,9,3,null,12,null,null,8,16]
[null,99,null,null,null,null,null,null,11,null,11,null,null,6,16]
[null,99,null,null,null,null,null,null,1,9,10,null,null,4,16]
[null,100,32,null,null,null,null,null,null,null,32,null,4,4,64]
[null,100,28,4,null,null,null,null,null,null,32,null,null,null,64]
[null,100,24,7,null,null,null,null,null,null,31,null,null,30,32]
[null,100,20,10,null,null,null,null,null,null,30,null,null,28,32]
[null,100,16,13,null,null,null,null,null,null,29,null,null,26,32]
[null,100,12,16,null,null,null,null,null,null,28,null,null,24,32]
[null,100,8,19,null,null,null,null,null,null,27,null,null,22,32]
[null,100,4,22,null,null,null,null,null,null,26,null,null,20,32]
[null,100,null,25,null,null,null,null,null,null,25,null,null,18,32]
[null,100,null,20,4,null,null,null,null,null,24,null,null,16,32]
[null,100,null,15,8,null,null,null,null,null,23,null,null,14,32]
[null,100,null,10,12,null,null,null,null,null,22,null,null,12,32]
[null,100,null,5,16,null,null,null,null,null,21,null,null,10,32]
[null,100,null,null,20,null,null,null,null,null,20,null,null,8,32]
[null,100,null,null,14,5,null,null,null,null,19,null,null,6,32]
[null,100,null,null,8,10,null,null,null,null,18,null,null,4,32]
[null,100,null,null,2,15,null,null,null,null,17,null,null,2,32]
[null,100,null,null,null,12,4,null,null,null,16,null,null,null,32]
[null,100,null,null,null,6,9,null,null,null,15,null,null,14,16]
[null,100,null,null,null,null,12,2,null,null,14,null,null,12,16]
[null,100,null,null,null,null,4,9,null,null,13,null,null,10,16]
[null,100,null,null,null,null,null,8,4,null,12,null,null,8,16]
[null,100,null,null,null,null,null,null,10,1,11,null,null,6,16]
[null,100,null,null,null,null,null,null,null,10,10,null,null,4,16]
[null,101,32,null,null,null,null,null,null,null,32,null,5,5,64]
[null,101,27,5,null,null,null,null,null,null,32,null,null,null,64]
[null,101,23,8,null,null,null,null,null,null,31,null,null,30,32]
[null,101,19,11,null,null,null,null,null,null,30,null,null,28,32]
[null,101,15,14,null,null,null,null,null,null,29,null,null,26,32]
[null,101,11,17,null,null,null,null,null,null,28,null,null,24,32]
[null,101,7,20,null,null,null,null,null,null,27,null,null,22,32]
[null,101,3,23,null,null,null,null,null,null,26,null,null,20,32]
[null,101,null,24,1,null,null,null,null,null,25,null,null,18,32]
[null,101,null,19,5,null,null,null,null,null,24,null,null,16,32]
[null,101,null,14,9,null,null,null,null,null,23,null,null,14,32]
[null,101,null,9,13,null,null,null,null,null,22,null,null,12,32]
[null,101,null,4,17,null,null,null,null,null,21,null,null,10,32]
[null,101,null,null,19,1,null,null,null,null,20,null,null,8,32]
[null,101,null,null,13,6,null,null,null,null,{"$f":"SUM(C1222:J1222)","v":19},null,null,6,32]
[null,101,null,null,7,11,null,null,null,null,18,null,null,4,32]
[null,101,null,null,1,16,null,null,null,null,17,null,null,2,32]
[null,101,null,null,null,11,5,null,null,null,16,null,null,null,32]
[null,101,null,null,null,5,10,null,null,null,15,null,null,14,16]
[null,101,null,null,null,null,11,3,null,null,14,null,null,12,16]
[null,101,null,null,null,null,3,10,null,null,13,null,null,10,16]
[null,101,null,null,null,null,null,7,5,null,12,null,null,8,16]
[null,101,null,null,null,null,null,null,9,2,11,null,null,6,16]
[null,102,32,null,null,null,null,null,null,null,32,null,6,6,64]
[null,102,26,6,null,null,null,null,null,null,32,null,null,null,64]
[null,102,22,9,null,null,null,null,null,null,31,null,null,30,32]
[null,102,18,12,null,null,null,null,null,null,30,null,null,28,32]
[null,102,14,15,null,null,null,null,null,null,29,null,null,26,32]
[null,102,10,18,null,null,null,null,null,null,28,null,null,24,32]
[null,102,6,21,null,null,null,null,null,null,27,null,null,22,32]
[null,102,2,24,null,null,null,null,null,null,26,null,null,20,32]
[null,102,null,23,2,null,null,null,null,null,25,null,null,18,32]
[null,102,null,18,6,null,null,null,null,null,24,null,null,16,32]
[null,102,null,13,10,null,null,null,null,null,23,null,null,14,32]
[null,102,null,8,14,null,null,null,null,null,22,null,null,12,32]
[null,102,null,3,18,null,null,null,null,null,21,null,null,10,32]
[null,102,null,null,18,2,null,null,null,null,20,null,null,8,32]
[null,102,null,null,12,7,null,null,null,null,19,null,null,6,32]
[null,102,null,null,6,12,null,null,null,null,18,null,null,4,32]
[null,102,null,null,null,17,null,null,null,null,17,null,null,2,32]
[null,102,null,null,null,10,6,null,null,null,16,null,null,null,32]
[null,102,null,null,null,4,11,null,null,null,15,null,null,14,16]
[null,102,null,null,null,null,10,4,null,null,14,null,null,12,16]
[null,102,null,null,null,null,2,11,null,null,13,null,null,10,16]
[null,102,null,null,null,null,null,6,6,null,12,null,null,8,16]
[null,102,null,null,null,null,null,null,8,3,11,null,null,6,16]
[null,103,32,null,null,null,null,null,null,null,32,null,7,7,64]
[null,103,25,7,null,null,null,null,null,null,32,null,null,null,64]
[null,103,21,10,null,null,null,null,null,null,31,null,null,30,32]
[null,103,17,13,null,null,null,null,null,null,30,null,null,28,32]
[null,103,13,16,null,null,null,null,null,null,29,null,null,26,32]
[null,103,9,19,null,null,null,null,null,null,28,null,null,24,32]
[null,103,5,22,null,null,null,null,null,null,27,null,null,22,32]
[null,103,1,25,null,null,null,null,null,null,26,null,null,20,32]
[null,103,null,22,3,null,null,null,null,null,25,null,null,18,32]
[null,103,null,17,7,null,null,null,null,null,24,null,null,16,32]
[null,103,null,12,11,null,null,null,null,null,23,null,null,14,32]
[null,103,null,7,15,null,null,null,null,null,22,null,null,12,32]
[null,103,null,2,19,null,null,null,null,null,21,null,null,10,32]
[null,103,null,null,17,3,null,null,null,null,20,null,null,8,32]
[null,103,null,null,11,8,null,null,null,null,19,null,null,6,32]
[null,103,null,null,5,13,null,null,null,null,18,null,null,4,32]
[null,103,null,null,null,16,1,null,null,null,17,null,null,2,32]
[null,103,null,null,null,9,7,null,null,null,16,null,null,null,32]
[null,103,null,null,null,3,12,null,null,null,15,null,null,14,16]
[null,103,null,null,null,null,9,5,null,null,14,null,null,12,16]
[null,103,null,null,null,null,1,12,null,null,13,null,null,10,16]
[null,103,null,null,null,null,null,5,7,null,12,null,null,8,16]
[null,103,null,null,null,null,null,null,7,4,11,null,null,6,16]
[null,104,32,null,null,null,null,null,null,null,32,null,8,8,64]
[null,104,24,8,null,null,null,null,null,null,32,null,null,null,64]
[null,104,20,11,null,null,null,null,null,null,31,null,null,30,32]
[null,104,16,14,null,null,null,null,null,null,30,null,null,28,32]
[null,104,12,17,null,null,null,null,null,null,29,null,null,26,32]
[null,104,8,20,null,null,null,null,null,null,28,null,null,24,32]
[null,104,4,23,null,null,null,null,null,null,27,null,null,22,32]
[null,104,null,26,null,null,null,null,null,null,26,null,null,20,32]
[null,104,null,21,4,null,null,null,null,null,25,null,null,18,32]
[null,104,null,16,8,null,null,null,null,null,{"$f":"SUM(C1286:J1286)","v":24},null,null,16,32]
[null,104,null,11,12,null,null,null,null,null,23,null,null,14,32]
[null,104,null,6,16,null,null,null,null,null,22,null,null,12,32]
[null,104,null,1,20,null,null,null,null,null,21,null,null,10,32]
[null,104,null,null,16,4,null,null,null,null,20,null,null,8,32]
[null,104,null,null,10,9,null,null,null,null,19,null,null,6,32]
[null,104,null,null,4,14,null,null,null,null,18,null,null,4,32]
[null,104,null,null,null,15,2,null,null,null,17,null,null,2,32]
[null,104,null,null,null,8,8,null,null,null,16,null,null,null,32]
[null,104,null,null,null,2,13,null,null,null,15,null,null,14,16]
[null,104,null,null,null,null,8,6,null,null,14,null,null,12,16]
[null,104,null,null,null,null,null,13,null,null,13,null,null,10,16]
[null,104,null,null,null,null,null,4,8,null,12,null,null,8,16]
[null,104,null,null,null,null,null,null,6,5,11,null,null,6,16]
[null,105,32,null,null,null,null,null,null,null,32,null,9,9,64]
[null,105,23,9,null,null,null,null,null,null,32,null,null,null,64]
[null,105,19,12,null,null,null,null,null,null,31,null,null,30,32]
[null,105,15,15,null,null,null,null,null,null,30,null,null,28,32]
[null,105,11,18,null,null,null,null,null,null,29,null,null,26,32]
[null,105,7,21,null,null,null,null,null,null,28,null,null,24,32]
[null,105,3,24,null,null,null,null,null,null,27,null,null,22,32]
[null,105,null,25,1,null,null,null,null,null,26,null,null,20,32]
[null,105,null,20,5,null,null,null,null,null,25,null,null,18,32]
[null,105,null,15,9,null,null,null,null,null,24,null,null,16,32]
[null,105,null,10,13,null,null,null,null,null,23,null,null,14,32]
[null,105,null,5,17,null,null,null,null,null,22,null,null,12,32]
[null,105,null,null,21,null,null,null,null,null,21,null,null,10,32]
[null,105,null,null,15,5,null,null,null,null,20,null,null,8,32]
[null,105,null,null,9,10,null,null,null,null,19,null,null,6,32]
[null,105,null,null,3,15,null,null,null,null,18,null,null,4,32]
[null,105,null,null,null,14,3,null,null,null,17,null,null,2,32]
[null,105,null,null,null,7,9,null,null,null,16,null,null,null,32]
[null,105,null,null,null,1,14,null,null,null,15,null,null,14,16]
[null,105,null,null,null,null,7,7,null,null,14,null,null,12,16]
[null,105,null,null,null,null,null,12,1,null,13,null,null,10,16]
[null,105,null,null,null,null,null,3,9,null,12,null,null,8,16]
[null,105,null,null,null,null,null,null,5,6,11,null,null,6,16]
[null,106,32,null,null,null,null,null,null,null,32,null,1,1,64]
[null,106,22,10,null,null,null,null,null,null,32,null,null,null,64]
[null,106,18,13,null,null,null,null,null,null,31,null,null,30,32]
[null,106,14,16,null,null,null,null,null,null,30,null,null,28,32]
[null,106,10,19,null,null,null,null,null,null,29,null,null,26,32]
[null,106,6,22,null,null,null,null,null,null,28,null,null,24,32]
[null,106,2,25,null,null,null,null,null,null,27,null,null,22,32]
[null,106,null,24,2,null,null,null,null,null,26,null,null,20,32]
[null,106,null,19,6,null,null,null,null,null,25,null,null,18,32]
[null,106,null,14,10,null,null,null,null,null,24,null,null,16,32]
[null,106,null,9,14,null,null,null,null,null,23,null,null,14,32]
[null,106,null,4,18,null,null,null,null,null,22,null,null,12,32]
[null,106,null,null,20,1,null,null,null,null,21,null,null,10,32]
[null,106,null,null,14,6,null,null,null,null,20,null,null,8,32]
[null,106,null,null,8,11,null,null,null,null,19,null,null,6,32]
[null,106,null,null,2,16,null,null,null,null,18,null,null,4,32]
[null,106,null,null,null,13,4,null,null,null,17,null,null,2,32]
[null,106,null,null,null,6,10,null,null,null,16,null,null,null,32]
[null,106,null,null,null,null,15,null,null,null,15,null,null,14,16]
[null,106,null,null,null,null,6,8,null,null,14,null,null,12,16]
[null,106,null,null,null,null,null,11,2,null,13,null,null,10,16]
[null,106,null,null,null,null,null,2,10,null,12,null,null,8,16]
[null,106,null,null,null,null,null,null,4,7,11,null,null,6,16]
[null,107,32,null,null,null,null,null,null,null,32,null,11,11,64]
[null,107,21,11,null,null,null,null,null,null,32,null,null,null,64]
[null,107,17,14,null,null,null,null,null,null,31,null,null,30,32]
[null,107,13,17,null,null,null,null,null,null,30,null,null,28,32]
[null,107,9,20,null,null,null,null,null,null,{"$f":"SUM(C1350:J1350)","v":29},null,null,26,32]
[null,107,5,23,null,null,null,null,null,null,28,null,null,24,32]
[null,107,1,26,null,null,null,null,null,null,27,null,null,22,32]
[null,107,null,23,3,null,null,null,null,null,26,null,null,20,32]
[null,107,null,18,7,null,null,null,null,null,25,null,null,18,32]
[null,107,null,13,11,null,null,null,null,null,24,null,null,16,32]
[null,107,null,8,15,null,null,null,null,null,23,null,null,14,32]
[null,107,null,3,19,null,null,null,null,null,22,null,null,12,32]
[null,107,null,null,19,2,null,null,null,null,21,null,null,10,32]
[null,107,null,null,13,7,null,null,null,null,20,null,null,8,32]
[null,107,null,null,7,12,null,null,null,null,19,null,null,6,32]
[null,107,null,null,1,17,null,null,null,null,18,null,null,4,32]
[null,107,null,null,null,12,5,null,null,null,17,null,null,2,32]
[null,107,null,null,null,5,11,null,null,null,16,null,null,null,32]
[null,107,null,null,null,null,14,1,null,null,15,null,null,14,16]
[null,107,null,null,null,null,5,9,null,null,14,null,null,12,16]
[null,107,null,null,null,null,null,10,3,null,13,null,null,10,16]
[null,107,null,null,null,null,null,1,11,null,12,null,null,8,16]
[null,107,null,null,null,null,null,null,3,8,11,null,null,6,16]
[null,108,32,null,null,null,null,null,null,null,32,null,12,12,64]
[null,108,20,12,null,null,null,null,null,null,32,null,null,null,64]
[null,108,16,15,null,null,null,null,null,null,31,null,null,30,32]
[null,108,12,18,null,null,null,null,null,null,30,null,null,28,32]
[null,108,8,21,null,null,null,null,null,null,29,null,null,26,32]
[null,108,4,24,null,null,null,null,null,null,28,null,null,24,32]
[null,108,null,27,null,null,null,null,null,null,27,null,null,22,32]
[null,108,null,22,4,null,null,null,null,null,26,null,null,20,32]
[null,108,null,17,8,null,null,null,null,null,25,null,null,18,32]
[null,108,null,12,12,null,null,null,null,null,24,null,null,16,32]
[null,108,null,7,16,null,null,null,null,null,23,null,null,14,32]
[null,108,null,2,20,null,null,null,null,null,22,null,null,12,32]
[null,108,null,null,18,3,null,null,null,null,21,null,null,10,32]
[null,108,null,null,12,8,null,null,null,null,20,null,null,8,32]
[null,108,null,null,6,13,null,null,null,null,19,null,null,6,32]
[null,108,null,null,null,18,null,null,null,null,18,null,null,4,32]
[null,108,null,null,null,11,6,null,null,null,17,null,null,2,32]
[null,108,null,null,null,4,12,null,null,null,16,null,null,null,32]
[null,108,null,null,null,null,13,2,null,null,15,null,null,14,16]
[null,108,null,null,null,null,4,10,null,null,14,null,null,12,16]
[null,108,null,null,null,null,null,9,4,null,13,null,null,10,16]
[null,108,null,null,null,null,null,null,12,null,12,null,null,8,16]
[null,108,null,null,null,null,null,null,2,9,11,null,null,6,16]
[null,109,32,null,null,null,null,null,null,null,32,null,13,13,64]
[null,109,19,13,null,null,null,null,null,null,32,null,null,null,64]
[null,109,15,16,null,null,null,null,null,null,31,null,null,30,32]
[null,109,11,19,null,null,null,null,null,null,30,null,null,28,32]
[null,109,7,22,null,null,null,null,null,null,29,null,null,26,32]
[null,109,3,25,null,null,null,null,null,null,28,null,null,24,32]
[null,109,null,26,1,null,null,null,null,null,27,null,null,22,32]
[null,109,null,21,5,null,null,null,null,null,26,null,null,20,32]
[null,109,null,16,9,null,null,null,null,null,25,null,null,18,32]
[null,109,null,11,13,null,null,null,null,null,24,null,null,16,32]
[null,109,null,6,17,null,null,null,null,null,23,null,null,14,32]
[null,109,null,1,21,null,null,null,null,null,22,null,null,12,32]
[null,109,null,null,17,4,null,null,null,null,21,null,null,10,32]
[null,109,null,null,11,9,null,null,null,null,20,null,null,8,32]
[null,109,null,null,5,14,null,null,null,null,19,null,null,6,32]
[null,109,null,null,null,17,1,null,null,null,18,null,null,4,32]
[null,109,null,null,null,10,7,null,null,null,17,null,null,2,32]
[null,109,null,null,null,3,13,null,null,null,16,null,null,null,32]
[null,109,null,null,null,null,12,3,null,null,15,null,null,14,16]
[null,109,null,null,null,null,3,11,null,null,14,null,null,12,16]
[null,109,null,null,null,null,null,8,5,null,13,null,null,10,16]
[null,109,null,null,null,null,null,null,11,1,12,null,null,8,16]
[null,109,null,null,null,null,null,null,1,10,{"$f":"SUM(C1414:J1414)","v":11},null,null,6,16]
[null,110,32,null,null,null,null,null,null,null,32,null,14,14,64]
[null,110,18,14,null,null,null,null,null,null,32,null,null,null,64]
[null,110,14,17,null,null,null,null,null,null,31,null,null,30,32]
[null,110,10,20,null,null,null,null,null,null,30,null,null,28,32]
[null,110,6,23,null,null,null,null,null,null,29,null,null,26,32]
[null,110,2,26,null,null,null,null,null,null,28,null,null,24,32]
[null,110,null,25,2,null,null,null,null,null,27,null,null,22,32]
[null,110,null,20,6,null,null,null,null,null,26,null,null,20,32]
[null,110,null,15,10,null,null,null,null,null,25,null,null,18,32]
[null,110,null,10,14,null,null,null,null,null,24,null,null,16,32]
[null,110,null,5,18,null,null,null,null,null,23,null,null,14,32]
[null,110,null,null,22,null,null,null,null,null,22,null,null,12,32]
[null,110,null,null,16,5,null,null,null,null,21,null,null,10,32]
[null,110,null,null,10,10,null,null,null,null,20,null,null,8,32]
[null,110,null,null,4,15,null,null,null,null,19,null,null,6,32]
[null,110,null,null,null,16,2,null,null,null,18,null,null,4,32]
[null,110,null,null,null,9,8,null,null,null,17,null,null,2,32]
[null,110,null,null,null,2,14,null,null,null,16,null,null,null,32]
[null,110,null,null,null,null,11,4,null,null,15,null,null,14,16]
[null,110,null,null,null,null,2,12,null,null,14,null,null,12,16]
[null,110,null,null,null,null,null,7,6,null,13,null,null,10,16]
[null,110,null,null,null,null,null,null,10,2,12,null,null,8,16]
[null,110,null,null,null,null,null,null,null,11,11,null,null,6,16]
[null,111,32,null,null,null,null,null,null,null,32,null,15,15,64]
[null,111,17,15,null,null,null,null,null,null,32,null,null,null,64]
[null,111,13,18,null,null,null,null,null,null,31,null,null,30,32]
[null,111,9,21,null,null,null,null,null,null,30,null,null,28,32]
[null,111,5,24,null,null,null,null,null,null,29,null,null,26,32]
[null,111,1,27,null,null,null,null,null,null,28,null,null,24,32]
[null,111,null,24,3,null,null,null,null,null,27,null,null,22,32]
[null,111,null,19,7,null,null,null,null,null,26,null,null,20,32]
[null,111,null,14,11,null,null,null,null,null,25,null,null,18,32]
[null,111,null,9,15,null,null,null,null,null,24,null,null,16,32]
[null,111,null,4,19,null,null,null,null,null,23,null,null,14,32]
[null,111,null,null,21,1,null,null,null,null,22,null,null,12,32]
[null,111,null,null,15,6,null,null,null,null,21,null,null,10,32]
[null,111,null,null,9,11,null,null,null,null,20,null,null,8,32]
[null,111,null,null,3,16,null,null,null,null,19,null,null,6,32]
[null,111,null,null,null,15,3,null,null,null,18,null,null,4,32]
[null,111,null,null,null,8,9,null,null,null,17,null,null,2,32]
[null,111,null,null,null,1,15,null,null,null,16,null,null,null,32]
[null,111,null,null,null,null,10,5,null,null,15,null,null,14,16]
[null,111,null,null,null,null,1,13,null,null,14,null,null,12,16]
[null,111,null,null,null,null,null,6,7,null,13,null,null,10,16]
[null,111,null,null,null,null,null,null,9,3,12,null,null,8,16]
[null,112,32,null,null,null,null,null,null,null,32,null,16,16,64]
[null,112,16,16,null,null,null,null,null,null,32,null,null,null,64]
[null,112,12,19,null,null,null,null,null,null,31,null,null,30,32]
[null,112,8,22,null,null,null,null,null,null,30,null,null,28,32]
[null,112,4,25,null,null,null,null,null,null,29,null,null,26,32]
[null,112,null,28,null,null,null,null,null,null,28,null,null,24,32]
[null,112,null,23,4,null,null,null,null,null,27,null,null,22,32]
[null,112,null,18,8,null,null,null,null,null,26,null,null,20,32]
[null,112,null,13,12,null,null,null,null,null,25,null,null,18,32]
[null,112,null,8,16,null,null,null,null,null,24,null,null,16,32]
[null,112,null,3,20,null,null,null,null,null,23,null,null,14,32]
[null,112,null,null,20,2,null,null,null,null,22,null,null,12,32]
[null,112,null,null,14,7,null,null,null,null,21,null,null,10,32]
[null,112,null,null,8,12,null,null,null,null,20,null,null,8,32]
[null,112,null,null,2,17,null,null,null,null,19,null,null,6,32]
[null,112,null,null,null,14,4,null,null,null,18,null,null,4,32]
[null,112,null,null,null,7,10,null,null,null,17,null,null,2,32]
[null,112,null,null,null,null,16,null,null,null,16,null,null,null,32]
[null,112,null,null,null,null,9,6,null,null,{"$f":"SUM(C1478:J1478)","v":15},null,null,14,16]
[null,112,null,null,null,null,null,14,null,null,14,null,null,12,16]
[null,112,null,null,null,null,null,5,8,null,13,null,null,10,16]
[null,112,null,null,null,null,null,null,8,4,12,null,null,8,16]
[null,113,32,null,null,null,null,null,null,null,32,null,17,17,64]
[null,113,15,17,null,null,null,null,null,null,32,null,null,null,64]
[null,113,11,20,null,null,null,null,null,null,31,null,null,30,32]
[null,113,7,23,null,null,null,null,null,null,30,null,null,28,32]
[null,113,3,26,null,null,null,null,null,null,29,null,null,26,32]
[null,113,null,27,1,null,null,null,null,null,28,null,null,24,32]
[null,113,null,22,5,null,null,null,null,null,27,null,null,22,32]
[null,113,null,17,9,null,null,null,null,null,26,null,null,20,32]
[null,113,null,12,13,null,null,null,null,null,25,null,null,18,32]
[null,113,null,7,17,null,null,null,null,null,24,null,null,16,32]
[null,113,null,2,21,null,null,null,null,null,23,null,null,14,32]
[null,113,null,null,19,3,null,null,null,null,22,null,null,12,32]
[null,113,null,null,13,8,null,null,null,null,21,null,null,10,32]
[null,113,null,null,7,13,null,null,null,null,20,null,null,8,32]
[null,113,null,null,1,18,null,null,null,null,19,null,null,6,32]
[null,113,null,null,null,13,5,null,null,null,18,null,null,4,32]
[null,113,null,null,null,6,11,null,null,null,17,null,null,2,32]
[null,113,null,null,null,null,15,1,null,null,16,null,null,null,32]
[null,113,null,null,null,null,8,7,null,null,15,null,null,14,16]
[null,113,null,null,null,null,null,13,1,null,14,null,null,12,16]
[null,113,null,null,null,null,null,4,9,null,13,null,null,10,16]
[null,113,null,null,null,null,null,null,7,5,12,null,null,8,16]
[null,114,32,null,null,null,null,null,null,null,32,null,18,18,64]
[null,114,14,18,null,null,null,null,null,null,32,null,null,null,64]
[null,114,10,21,null,null,null,null,null,null,31,null,null,30,32]
[null,114,6,24,null,null,null,null,null,null,30,null,null,28,32]
[null,114,2,27,null,null,null,null,null,null,29,null,null,26,32]
[null,114,null,26,2,null,null,null,null,null,28,null,null,24,32]
[null,114,null,21,6,null,null,null,null,null,27,null,null,22,32]
[null,114,null,16,10,null,null,null,null,null,26,null,null,20,32]
[null,114,null,11,14,null,null,null,null,null,25,null,null,18,32]
[null,114,null,6,18,null,null,null,null,null,24,null,null,16,32]
[null,114,null,1,22,null,null,null,null,null,23,null,null,14,32]
[null,114,null,null,18,4,null,null,null,null,22,null,null,12,32]
[null,114,null,null,12,9,null,null,null,null,21,null,null,10,32]
[null,114,null,null,6,14,null,null,null,null,20,null,null,8,32]
[null,114,null,null,null,19,null,null,null,null,19,null,null,6,32]
[null,114,null,null,null,12,6,null,null,null,18,null,null,4,32]
[null,114,null,null,null,5,12,null,null,null,17,null,null,2,32]
[null,114,null,null,null,null,14,2,null,null,16,null,null,null,32]
[null,114,null,null,null,null,7,8,null,null,15,null,null,14,16]
[null,114,null,null,null,null,null,12,2,null,14,null,null,12,16]
[null,114,null,null,null,null,null,3,10,null,13,null,null,10,16]
[null,114,null,null,null,null,null,null,6,6,12,null,null,8,16]
[null,115,32,null,null,null,null,null,null,null,32,null,19,19,64]
[null,115,13,19,null,null,null,null,null,null,32,null,null,null,64]
[null,115,9,22,null,null,null,null,null,null,31,null,null,30,32]
[null,115,5,25,null,null,null,null,null,null,30,null,null,28,32]
[null,115,1,28,null,null,null,null,null,null,29,null,null,26,32]
[null,115,null,25,3,null,null,null,null,null,28,null,null,24,32]
[null,115,null,20,7,null,null,null,null,null,27,null,null,22,32]
[null,115,null,15,11,null,null,null,null,null,26,null,null,20,32]
[null,115,null,10,15,null,null,null,null,null,25,null,null,18,32]
[null,115,null,5,19,null,null,null,null,null,24,null,null,16,32]
[null,115,null,null,23,null,null,null,null,null,23,null,null,14,32]
[null,115,null,null,17,5,null,null,null,null,22,null,null,12,32]
[null,115,null,null,11,10,null,null,null,null,21,null,null,10,32]
[null,115,null,null,5,15,null,null,null,null,20,null,null,8,32]
[null,115,null,null,null,18,1,null,null,null,19,null,null,6,32]
[null,115,null,null,null,11,7,null,null,null,18,null,null,4,32]
[null,115,null,null,null,4,13,null,null,null,{"$f":"SUM(C1542:J1542)","v":17},null,null,2,32]
[null,115,null,null,null,null,13,3,null,null,16,null,null,null,32]
[null,115,null,null,null,null,6,9,null,null,15,null,null,14,16]
[null,115,null,null,null,null,null,11,3,null,14,null,null,12,16]
[null,115,null,null,null,null,null,2,11,null,13,null,null,10,16]
[null,115,null,null,null,null,null,null,5,7,12,null,null,8,16]
[null,116,32,null,null,null,null,null,null,null,32,null,2,2,64]
[null,116,12,20,null,null,null,null,null,null,32,null,null,null,64]
[null,116,8,23,null,null,null,null,null,null,31,null,null,30,32]
[null,116,4,26,null,null,null,null,null,null,30,null,null,28,32]
[null,116,null,29,null,null,null,null,null,null,29,null,null,26,32]
[null,116,null,24,4,null,null,null,null,null,28,null,null,24,32]
[null,116,null,19,8,null,null,null,null,null,27,null,null,22,32]
[null,116,null,14,12,null,null,null,null,null,26,null,null,20,32]
[null,116,null,9,16,null,null,null,null,null,25,null,null,18,32]
[null,116,null,4,20,null,null,null,null,null,24,null,null,16,32]
[null,116,null,null,22,1,null,null,null,null,23,null,null,14,32]
[null,116,null,null,16,6,null,null,null,null,22,null,null,12,32]
[null,116,null,null,10,11,null,null,null,null,21,null,null,10,32]
[null,116,null,null,4,16,null,null,null,null,20,null,null,8,32]
[null,116,null,null,null,17,2,null,null,null,19,null,null,6,32]
[null,116,null,null,null,10,8,null,null,null,18,null,null,4,32]
[null,116,null,null,null,3,14,null,null,null,17,null,null,2,32]
[null,116,null,null,null,null,12,4,null,null,16,null,null,null,32]
[null,116,null,null,null,null,5,10,null,null,15,null,null,14,16]
[null,116,null,null,null,null,null,10,4,null,14,null,null,12,16]
[null,116,null,null,null,null,null,1,12,null,13,null,null,10,16]
[null,116,null,null,null,null,null,null,4,8,12,null,null,8,16]
[null,117,32,null,null,null,null,null,null,null,32,null,21,21,64]
[null,117,11,21,null,null,null,null,null,null,32,null,null,null,64]
[null,117,7,24,null,null,null,null,null,null,31,null,null,30,32]
[null,117,3,27,null,null,null,null,null,null,30,null,null,28,32]
[null,117,null,28,1,null,null,null,null,null,29,null,null,26,32]
[null,117,null,23,5,null,null,null,null,null,28,null,null,24,32]
[null,117,null,18,9,null,null,null,null,null,27,null,null,22,32]
[null,117,null,13,13,null,null,null,null,null,26,null,null,20,32]
[null,117,null,8,17,null,null,null,null,null,25,null,null,18,32]
[null,117,null,3,21,null,null,null,null,null,24,null,null,16,32]
[null,117,null,null,21,2,null,null,null,null,23,null,null,14,32]
[null,117,null,null,15,7,null,null,null,null,22,null,null,12,32]
[null,117,null,null,9,12,null,null,null,null,21,null,null,10,32]
[null,117,null,null,3,17,null,null,null,null,20,null,null,8,32]
[null,117,null,null,null,16,3,null,null,null,19,null,null,6,32]
[null,117,null,null,null,9,9,null,null,null,18,null,null,4,32]
[null,117,null,null,null,2,15,null,null,null,17,null,null,2,32]
[null,117,null,null,null,null,11,5,null,null,16,null,null,null,32]
[null,117,null,null,null,null,4,11,null,null,15,null,null,14,16]
[null,117,null,null,null,null,null,9,5,null,14,null,null,12,16]
[null,117,null,null,null,null,null,null,13,null,13,null,null,10,16]
[null,117,null,null,null,null,null,null,3,9,12,null,null,8,16]
[null,118,32,null,null,null,null,null,null,null,32,null,22,22,64]
[null,118,10,22,null,null,null,null,null,null,32,null,null,null,64]
[null,118,6,25,null,null,null,null,null,null,31,null,null,30,32]
[null,118,2,28,null,null,null,null,null,null,30,null,null,28,32]
[null,118,null,27,2,null,null,null,null,null,29,null,null,26,32]
[null,118,null,22,6,null,null,null,null,null,28,null,null,24,32]
[null,118,null,17,10,null,null,null,null,null,27,null,null,22,32]
[null,118,null,12,14,null,null,null,null,null,26,null,null,20,32]
[null,118,null,7,18,null,null,null,null,null,25,null,null,18,32]
[null,118,null,2,22,null,null,null,null,null,24,null,null,16,32]
[null,118,null,null,20,3,null,null,null,null,23,null,null,14,32]
[null,118,null,null,14,8,null,null,null,null,22,null,null,12,32]
[null,118,null,null,8,13,null,null,null,null,21,null,null,10,32]
[null,118,null,null,2,18,null,null,null,null,20,null,null,8,32]
[null,118,null,null,null,15,4,null,null,null,{"$f":"SUM(C1606:J1606)","v":19},null,null,6,32]
[null,118,null,null,null,8,10,null,null,null,18,null,null,4,32]
[null,118,null,null,null,1,16,null,null,null,17,null,null,2,32]
[null,118,null,null,null,null,10,6,null,null,16,null,null,null,32]
[null,118,null,null,null,null,3,12,null,null,15,null,null,14,16]
[null,118,null,null,null,null,null,8,6,null,14,null,null,12,16]
[null,118,null,null,null,null,null,null,12,1,13,null,null,10,16]
[null,118,null,null,null,null,null,null,2,10,12,null,null,8,16]
[null,119,32,null,null,null,null,null,null,null,32,null,23,23,64]
[null,119,9,23,null,null,null,null,null,null,32,null,null,null,64]
[null,119,5,26,null,null,null,null,null,null,31,null,null,30,32]
[null,119,1,29,null,null,null,null,null,null,30,null,null,28,32]
[null,119,null,26,3,null,null,null,null,null,29,null,null,26,32]
[null,119,null,21,7,null,null,null,null,null,28,null,null,24,32]
[null,119,null,16,11,null,null,null,null,null,27,null,null,22,32]
[null,119,null,11,15,null,null,null,null,null,26,null,null,20,32]
[null,119,null,6,19,null,null,null,null,null,25,null,null,18,32]
[null,119,null,1,23,null,null,null,null,null,24,null,null,16,32]
[null,119,null,null,19,4,null,null,null,null,23,null,null,14,32]
[null,119,null,null,13,9,null,null,null,null,22,null,null,12,32]
[null,119,null,null,7,14,null,null,null,null,21,null,null,10,32]
[null,119,null,null,1,19,null,null,null,null,20,null,null,8,32]
[null,119,null,null,null,14,5,null,null,null,19,null,null,6,32]
[null,119,null,null,null,7,11,null,null,null,18,null,null,4,32]
[null,119,null,null,null,null,17,null,null,null,17,null,null,2,32]
[null,119,null,null,null,null,9,7,null,null,16,null,null,null,32]
[null,119,null,null,null,null,2,13,null,null,15,null,null,14,16]
[null,119,null,null,null,null,null,7,7,null,14,null,null,12,16]
[null,119,null,null,null,null,null,null,11,2,13,null,null,10,16]
[null,119,null,null,null,null,null,null,1,11,12,null,null,8,16]
[null,120,32,null,null,null,null,null,null,null,32,null,24,24,64]
[null,120,8,24,null,null,null,null,null,null,32,null,null,null,64]
[null,120,4,27,null,null,null,null,null,null,31,null,null,30,32]
[null,120,null,30,null,null,null,null,null,null,30,null,null,28,32]
[null,120,null,25,4,null,null,null,null,null,29,null,null,26,32]
[null,120,null,20,8,null,null,null,null,null,28,null,null,24,32]
[null,120,null,15,12,null,null,null,null,null,27,null,null,22,32]
[null,120,null,10,16,null,null,null,null,null,26,null,null,20,32]
[null,120,null,5,20,null,null,null,null,null,25,null,null,18,32]
[null,120,null,null,24,null,null,null,null,null,24,null,null,16,32]
[null,120,null,null,18,5,null,null,null,null,23,null,null,14,32]
[null,120,null,null,12,10,null,null,null,null,22,null,null,12,32]
[null,120,null,null,6,15,null,null,null,null,21,null,null,10,32]
[null,120,null,null,null,20,null,null,null,null,20,null,null,8,32]
[null,120,null,null,null,13,6,null,null,null,19,null,null,6,32]
[null,120,null,null,null,6,12,null,null,null,18,null,null,4,32]
[null,120,null,null,null,null,16,1,null,null,17,null,null,2,32]
[null,120,null,null,null,null,8,8,null,null,16,null,null,null,32]
[null,120,null,null,null,null,1,14,null,null,15,null,null,14,16]
[null,120,null,null,null,null,null,6,8,null,14,null,null,12,16]
[null,120,null,null,null,null,null,null,10,3,13,null,null,10,16]
[null,120,null,null,null,null,null,null,null,12,12,null,null,8,16]
[null,121,32,null,null,null,null,null,null,null,32,null,25,25,64]
[null,121,7,25,null,null,null,null,null,null,32,null,null,null,64]
[null,121,3,28,null,null,null,null,null,null,31,null,null,30,32]
[null,121,null,29,1,null,null,null,null,null,30,null,null,28,32]
[null,121,null,24,5,null,null,null,null,null,29,null,null,26,32]
[null,121,null,19,9,null,null,null,null,null,28,null,null,24,32]
[null,121,null,14,13,null,null,null,null,null,27,null,null,22,32]
[null,121,null,9,17,null,null,null,null,null,26,null,null,20,32]
[null,121,null,4,21,null,null,null,null,null,25,null,null,18,32]
[null,121,null,null,23,1,null,null,null,null,24,null,null,16,32]
[null,121,null,null,17,6,null,null,null,null,23,null,null,14,32]
[null,121,null,null,11,11,null,null,null,null,22,null,null,12,32]
[null,121,null,null,5,16,null,null,null,null,{"$f":"SUM(C1670:J1670)","v":21},null,null,10,32]
[null,121,null,null,null,19,1,null,null,null,20,null,null,8,32]
[null,121,null,null,null,12,7,null,null,null,19,null,null,6,32]
[null,121,null,null,null,5,13,null,null,null,18,null,null,4,32]
[null,121,null,null,null,null,15,2,null,null,17,null,null,2,32]
[null,121,null,null,null,null,7,9,null,null,16,null,null,null,32]
[null,121,null,null,null,null,null,15,null,null,15,null,null,14,16]
[null,121,null,null,null,null,null,5,9,null,14,null,null,12,16]
[null,121,null,null,null,null,null,null,9,4,13,null,null,10,16]
[null,122,32,null,null,null,null,null,null,null,32,null,26,26,64]
[null,122,6,26,null,null,null,null,null,null,32,null,null,null,64]
[null,122,2,29,null,null,null,null,null,null,31,null,null,30,32]
[null,122,null,28,2,null,null,null,null,null,30,null,null,28,32]
[null,122,null,23,6,null,null,null,null,null,29,null,null,26,32]
[null,122,null,18,10,null,null,null,null,null,28,null,null,24,32]
[null,122,null,13,14,null,null,null,null,null,27,null,null,22,32]
[null,122,null,8,18,null,null,null,null,null,26,null,null,20,32]
[null,122,null,3,22,null,null,null,null,null,25,null,null,18,32]
[null,122,null,null,22,2,null,null,null,null,24,null,null,16,32]
[null,122,null,null,16,7,null,null,null,null,23,null,null,14,32]
[null,122,null,null,10,12,null,null,null,null,22,null,null,12,32]
[null,122,null,null,4,17,null,null,null,null,21,null,null,10,32]
[null,122,null,null,null,18,2,null,null,null,20,null,null,8,32]
[null,122,null,null,null,11,8,null,null,null,19,null,null,6,32]
[null,122,null,null,null,4,14,null,null,null,18,null,null,4,32]
[null,122,null,null,null,null,14,3,null,null,17,null,null,2,32]
[null,122,null,null,null,null,6,10,null,null,16,null,null,null,32]
[null,122,null,null,null,null,null,14,1,null,15,null,null,14,16]
[null,122,null,null,null,null,null,4,10,null,14,null,null,12,16]
[null,122,null,null,null,null,null,null,8,5,13,null,null,10,16]
[null,123,32,null,null,null,null,null,null,null,32,null,27,27,64]
[null,123,5,27,null,null,null,null,null,null,32,null,null,null,64]
[null,123,1,30,null,null,null,null,null,null,31,null,null,30,32]
[null,123,null,27,3,null,null,null,null,null,30,null,null,28,32]
[null,123,null,22,7,null,null,null,null,null,29,null,null,26,32]
[null,123,null,17,11,null,null,null,null,null,28,null,null,24,32]
[null,123,null,12,15,null,null,null,null,null,27,null,null,22,32]
[null,123,null,7,19,null,null,null,null,null,26,null,null,20,32]
[null,123,null,2,23,null,null,null,null,null,25,null,null,18,32]
[null,123,null,null,21,3,null,null,null,null,24,null,null,16,32]
[null,123,null,null,15,8,null,null,null,null,23,null,null,14,32]
[null,123,null,null,9,13,null,null,null,null,22,null,null,12,32]
[null,123,null,null,3,18,null,null,null,null,21,null,null,10,32]
[null,123,null,null,null,17,3,null,null,null,20,null,null,8,32]
[null,123,null,null,null,10,9,null,null,null,19,null,null,6,32]
[null,123,null,null,null,3,15,null,null,null,18,null,null,4,32]
[null,123,null,null,null,null,13,4,null,null,17,null,null,2,32]
[null,123,null,null,null,null,5,11,null,null,16,null,null,null,32]
[null,123,null,null,null,null,null,13,2,null,15,null,null,14,16]
[null,123,null,null,null,null,null,3,11,null,14,null,null,12,16]
[null,123,null,null,null,null,null,null,7,6,13,null,null,10,16]
[null,124,32,null,null,null,null,null,null,null,32,null,28,28,64]
[null,124,4,28,null,null,null,null,null,null,32,null,null,null,64]
[null,124,null,31,null,null,null,null,null,null,31,null,null,30,32]
[null,124,null,26,4,null,null,null,null,null,30,null,null,28,32]
[null,124,null,21,8,null,null,null,null,null,29,null,null,26,32]
[null,124,null,16,12,null,null,null,null,null,28,null,null,24,32]
[null,124,null,11,16,null,null,null,null,null,27,null,null,22,32]
[null,124,null,6,20,null,null,null,null,null,26,null,null,20,32]
[null,124,null,1,24,null,null,null,null,null,25,null,null,18,32]
[null,124,null,null,20,4,null,null,null,null,24,null,null,16,32]
[null,124,null,null,14,9,null,null,null,null,23,null,null,14,32]
[null,124,null,null,8,14,null,null,null,null,22,null,null,12,32]
[null,124,null,null,2,19,null,null,null,null,21,null,null,10,32]
[null,124,null,null,null,16,4,null,null,null,{"$f":"SUM(C1734:J1734)","v":20},null,null,8,32]
[null,124,null,null,null,9,10,null,null,null,19,null,null,6,32]
[null,124,null,null,null,2,16,null,null,null,18,null,null,4,32]
[null,124,null,null,null,null,12,5,null,null,17,null,null,2,32]
[null,124,null,null,null,null,4,12,null,null,16,null,null,null,32]
[null,124,null,null,null,null,null,12,3,null,15,null,null,14,16]
[null,124,null,null,null,null,null,2,12,null,14,null,null,12,16]
[null,124,null,null,null,null,null,null,6,7,13,null,null,10,16]
[null,125,32,null,null,null,null,null,null,null,32,null,29,29,64]
[null,125,3,29,null,null,null,null,null,null,32,null,null,null,64]
[null,125,null,30,1,null,null,null,null,null,31,null,null,30,32]
[null,125,null,25,5,null,null,null,null,null,30,null,null,28,32]
[null,125,null,20,9,null,null,null,null,null,29,null,null,26,32]
[null,125,null,15,13,null,null,null,null,null,28,null,null,24,32]
[null,125,null,10,17,null,null,null,null,null,27,null,null,22,32]
[null,125,null,5,21,null,null,null,null,null,26,null,null,20,32]
[null,125,null,null,25,null,null,null,null,null,25,null,null,18,32]
[null,125,null,null,19,5,null,null,null,null,24,null,null,16,32]
[null,125,null,null,13,10,null,null,null,null,23,null,null,14,32]
[null,125,null,null,7,15,null,null,null,null,22,null,null,12,32]
[null,125,null,null,1,20,null,null,null,null,21,null,null,10,32]
[null,125,null,null,null,15,5,null,null,null,20,null,null,8,32]
[null,125,null,null,null,8,11,null,null,null,19,null,null,6,32]
[null,125,null,null,null,1,17,null,null,null,18,null,null,4,32]
[null,125,null,null,null,null,11,6,null,null,17,null,null,2,32]
[null,125,null,null,null,null,3,13,null,null,16,null,null,null,32]
[null,125,null,null,null,null,null,11,4,null,15,null,null,14,16]
[null,125,null,null,null,null,null,1,13,null,14,null,null,12,16]
[null,125,null,null,null,null,null,null,5,8,13,null,null,10,16]
[null,126,32,null,null,null,null,null,null,null,32,null,3,3,64]
[null,126,2,30,null,null,null,null,null,null,32,null,null,null,64]
[null,126,null,29,2,null,null,null,null,null,31,null,null,30,32]
[null,126,null,24,6,null,null,null,null,null,30,null,null,28,32]
[null,126,null,19,10,null,null,null,null,null,29,null,null,26,32]
[null,126,null,14,14,null,null,null,null,null,28,null,null,24,32]
[null,126,null,9,18,null,null,null,null,null,27,null,null,22,32]
[null,126,null,4,22,null,null,null,null,null,26,null,null,20,32]
[null,126,null,null,24,1,null,null,null,null,25,null,null,18,32]
[null,126,null,null,18,6,null,null,null,null,24,null,null,16,32]
[null,126,null,null,12,11,null,null,null,null,23,null,null,14,32]
[null,126,null,null,6,16,null,null,null,null,22,null,null,12,32]
[null,126,null,null,null,21,null,null,null,null,21,null,null,10,32]
[null,126,null,null,null,14,6,null,null,null,20,null,null,8,32]
[null,126,null,null,null,7,12,null,null,null,19,null,null,6,32]
[null,126,null,null,null,null,18,null,null,null,18,null,null,4,32]
[null,126,null,null,null,null,10,7,null,null,17,null,null,2,32]
[null,126,null,null,null,null,2,14,null,null,16,null,null,null,32]
[null,126,null,null,null,null,null,10,5,null,15,null,null,14,16]
[null,126,null,null,null,null,null,null,14,null,14,null,null,12,16]
[null,126,null,null,null,null,null,null,4,9,13,null,null,10,16]
[null,127,32,null,null,null,null,null,null,null,32,null,31,31,64]
[null,127,1,31,null,null,null,null,null,null,32,null,null,null,64]
[null,127,null,28,3,null,null,null,null,null,31,null,null,30,32]
[null,127,null,23,7,null,null,null,null,null,30,null,null,28,32]
[null,127,null,18,11,null,null,null,null,null,29,null,null,26,32]
[null,127,null,13,15,null,null,null,null,null,28,null,null,24,32]
[null,127,null,8,19,null,null,null,null,null,27,null,null,22,32]
[null,127,null,3,23,null,null,null,null,null,26,null,null,20,32]
[null,127,null,null,23,2,null,null,null,null,25,null,null,18,32]
[null,127,null,null,17,7,null,null,null,null,24,null,null,16,32]
[null,127,null,null,11,12,null,null,null,null,23,null,null,14,32]
[null,127,null,null,5,17,null,null,null,null,22,null,null,12,32]
[null,127,null,null,null,20,1,null,null,null,21,null,null,10,32]
[null,127,null,null,null,13,7,null,null,null,20,null,null,8,32]
[null,127,null,null,null,6,13,null,null,null,{"$f":"SUM(C1798:J1798)","v":19},null,null,6,32]
[null,127,null,null,null,null,17,1,null,null,18,null,null,4,32]
[null,127,null,null,null,null,9,8,null,null,17,null,null,2,32]
[null,127,null,null,null,null,1,15,null,null,16,null,null,null,32]
[null,127,null,null,null,null,null,9,6,null,15,null,null,14,16]
[null,127,null,null,null,null,null,null,13,1,14,null,null,12,16]
[null,127,null,null,null,null,null,null,3,10,13,null,null,10,16]
[null,128,32,null,null,null,null,null,null,null,32,null,32,32,64]
[null,128,null,32,null,null,null,null,null,null,32,null,null,null,64]
[null,128,null,27,4,null,null,null,null,null,31,null,null,30,32]
[null,128,null,22,8,null,null,null,null,null,30,null,null,28,32]
[null,128,null,17,12,null,null,null,null,null,29,null,null,26,32]
[null,128,null,12,16,null,null,null,null,null,28,null,null,24,32]
[null,128,null,7,20,null,null,null,null,null,27,null,null,22,32]
[null,128,null,2,24,null,null,null,null,null,26,null,null,20,32]
[null,128,null,null,22,3,null,null,null,null,25,null,null,18,32]
[null,128,null,null,16,8,null,null,null,null,24,null,null,16,32]
[null,128,null,null,10,13,null,null,null,null,23,null,null,14,32]
[null,128,null,null,4,18,null,null,null,null,22,null,null,12,32]
[null,128,null,null,null,19,2,null,null,null,21,null,null,10,32]
[null,128,null,null,null,12,8,null,null,null,20,null,null,8,32]
[null,128,null,null,null,5,14,null,null,null,19,null,null,6,32]
[null,128,null,null,null,null,16,2,null,null,18,null,null,4,32]
[null,128,null,null,null,null,8,9,null,null,17,null,null,2,32]
[null,128,null,null,null,null,null,16,null,null,16,null,null,null,32]
[null,128,null,null,null,null,null,8,7,null,15,null,null,14,16]
[null,128,null,null,null,null,null,null,12,2,14,null,null,12,16]
[null,128,null,null,null,null,null,null,2,11,13,null,null,10,16]

{"sheet":"PlanningModel","index":15,"n_rows":74,"n_cols":42,"rows_kept":74,"cut":false,"hidden":true,"merged":[[72,0,72,27],[73,0,73,27],[0,11,0,19],[1,11,1,15],[1,33,1,36],[1,30,1,32],[1,4,2,4],[2,17,2,19],[0,37,2,37],[0,38,2,38],[0,39,2,39],[0,40,2,40],[0,41,2,41]]}
[null,null,null,null,null,null,null,null,null,null,null,"PLANNING",null,null,null,null,null,null,null,null,null,null,null,null,null,null,null,null,null,null,null,null,null,null,null,null,null,{"$f":"N_CheckReferee_Club_InGroup","v":"Referee in the same Club as one of players of the group"},{"$f":"N_CheckReferee_Nat_InGroup","v":"Referee with the same Nationality as one of players of the group"},{"$f":"N_CheckReferee_SameClub","v":"Referee in the same Club as one of players"},{"$f":"N_CheckReferee_SameNat","v":"Referee with the same Nationality as one of players"},{"$f":"N_CheckReferee_SameGroup","v":"Referee in the same Group as one of players"}]
[null,null,null,null,{"$f":"N_N__de_table","v":"Table N°"},null,null,null,null,null,null,{"$f":"N_Matches","v":"Matches"},null,null,null,null,null,null,null,null,null,null,null,null,null,null,null,null,null,null,"FISTF export fields",null,null,"For Statistics"]
[{"$f":"N_Heure","v":"Time"},null,{"$f":"N_Catégorie","v":"Stage"},null,null,null,null,null,null,null,null,{"$f":"N_Player1","v":"Player 1"},null,"-",null,{"$f":"N_Player2","v":"Player 2"},{"$f":"N_MS","v":"SD"},{"$f":"N_Diff","v":"Pen."},null,null,null,null,null,null,null,null,{"$f":"N_Arbitre","v":"Referee"},null,null,"Referee with hour","Category","Stage","Group",{"$f":"N_Winner","v":"Winner"},{"$f":"N_Draw & \"1\"","v":"Draw1"},{"$f":"N_Draw & \"2\"","v":"Draw2"},{"$f":"N_Loser","v":"Loser"}]
["09:00:00",null,{"$f":"N_Session","v":"Session Nbr "},null,1,null,"S1",null,null,null,null,{"$f":"N_Duration","v":"Duration"},null,":",null,"00:40:00"]
[{"$f":"A4+P4","v":"09:40:00"},null,"Session Nbr ",null,{"$f":"E4+1","v":2},null,{"$f":"\"S\" & RIGHT(G4, LEN(G4)-1) + 1","v":"S2"},null,null,null,null,"Duration",null,":",null,"00:40:00"]
["10:20:00",null,"Session Nbr ",null,3,null,{"$f":"\"S\" & RIGHT(G5, LEN(G5)-1) + 1","v":"S3"},null,null,null,null,"Duration",null,":",null,"00:40:00"]
["11:00:00",null,"Session Nbr ",null,4,null,"S4",null,null,null,null,"Duration",null,":",null,"00:40:00"]
["11:40:00",null,"Session Nbr ",null,5,null,"S5",null,null,null,null,"Duration",null,":",null,"00:40:00"]
["12:20:00",null,"Session Nbr ",null,6,null,"S6",null,null,null,null,"Duration",null,":",null,"00:40:00"]
["13:00:00",null,"Session Nbr ",null,7,null,"S7",null,null,null,null,"Duration",null,":",null,"00:40:00"]
["13:40:00",null,"Session Nbr ",null,8,null,"S8",null,null,null,null,"Duration",null,":",null,"00:40:00"]
["14:20:00",null,"Session Nbr ",null,9,null,"S9",null,null,null,null,"Duration",null,":",null,"00:40:00"]
["15:00:00",null,"Session Nbr ",null,10,null,"S10",null,null,null,null,"Duration",null,":",null,"00:40:00"]
["15:40:00",null,"Session Nbr ",null,11,null,"S11",null,null,null,null,"Duration",null,":",null,"00:40:00"]
["16:20:00",null,"Session Nbr ",null,12,null,"S12",null,null,null,null,"Duration",null,":",null,"00:40:00"]
["17:00:00",null,"Session Nbr ",null,13,null,"S13",null,null,null,null,"Duration",null,":",null,"00:40:00"]
["17:40:00",null,"Session Nbr ",null,14,null,"S14",null,null,null,null,"Duration",null,":",null,"00:40:00"]
["18:20:00",null,"Session Nbr ",null,15,null,"S15",null,null,null,null,"Duration",null,":",null,"00:40:00"]
["19:00:00",null,"Session Nbr ",null,16,null,"S16",null,null,null,null,"Duration",null,":",null,"00:40:00"]
[{"$f":"A19+P19","v":"19:40:00"},null,"Session Nbr ",null,{"$f":"E19+1","v":17},null,"S17",null,null,null,null,"Duration",null,":",null,"00:40:00"]
[{"$f":"OFFSET(A21,-1,0)","v":"19:40:00"},null,null,null,null,null,"IG",{"$f":"IF(K21=\"\",\"\",SUBSTITUTE(MID(K21,1,SEARCH(\"!\",K21,1)-1),\"'\",\"\"))","v":""},{"$f":"IF(K21=\"\",\"\",CELL(\"row\",INDIRECT(K21)))","v":""},{"$f":"IF(K21=\"\",\"\",CELL(\"col\",INDIRECT(K21)))","v":""},{"$f":"MID(Lire_Formule(L21),2,10000)","v":""},null,null,"-",null,{"$f":"IF(K21=\"\",\"\",IF(G21=\"IT\",INDIRECT(ADDRESS(I21+2,J21,4,TRUE,H21)),INDIRECT(ADDRESS(I21,J21+4,4,TRUE,H21))))","v":""},null,null,null,null,null,{"$f":"L21&TEXT(A21,\"hh:mm\")","v":"19:40"},{"$f":"P21&TEXT(A21,\"hh:mm\")","v":"19:40"},{"$f":"IF(L21=\"\",0,COUNTIF(PlayersAndHoursCol1,L21&TEXT($A21,\"hh:mm\"))+COUNTIF(PlayersAndHoursCol2,L21&TEXT($A21,\"hh:mm\")))","v":0},{"$f":"IF(P21=\"\",0,COUNTIF(PlayersAndHoursCol1,P21&TEXT($A21,\"hh:mm\"))+COUNTIF(PlayersAndHoursCol2,P21&TEXT($A21,\"hh:mm\")))","v":0},{"$f":"IF(AA21=\"\",FALSE,NOT(AND(ISNA(MATCH(AA21&TEXT($A21,\"hh:mm\"),PlayersAndHoursCol1,0)),ISNA(MATCH(AA21&TEXT($A21,\"hh:mm\"),PlayersAndHoursCol2,0)),COUNTIF(AD:AD,AA21&$A21)<=1)))","v":false},null,null,null,{"$f":"AA21&A21","v":"0,819444444444445"},null,null,null,{"$f":"IF(OR(M21>O21,R21>T21),L21,IF(OR(M21<O21,R21<T21),P21,\"\"))","v":""},{"$f":"IF(AND(M21<>\"\",M21=O21,R21=T21),L21,\"\")","v":""},{"$f":"IF(AND(M21<>\"\",M21=O21,R21=T21),P21,\"\")","v":""},{"$f":"IF(OR(M21<O21,R21<T21),L21,IF(OR(M21>O21,R21>T21),P21,\"\"))","v":""},{"$f":"IF(OR($AB21=\"\",$AB21=\"V\"),\"\",IF(MOD($AB21,10)=1,\"XXX\",\"\"))","v":""},{"$f":"IF(OR($AB21=\"\",$AB21=\"V\"),\"\",IF(MOD($AB21,100)>=10,\"XXX\",\"\"))","v":""},{"$f":"IF(OR($AB21=\"\",$AB21=\"V\"),\"\",IF(MOD($AB21,1000)>=100,\"XXX\",\"\"))","v":""},{"$f":"IF(OR($AB21=\"\",$AB21=\"V\"),\"\",IF(MOD($AB21,10000)>=1000,\"XXX\",\"\"))","v":""},{"$f":"IF(OR($AB21=\"\",$AB21=\"V\"),\"\",IF(MOD($AB21,100000)>=10000,\"XXX\",\"\"))","v":""}]
[]
[{"$f":"OFFSET(A23,-1,0)","v":"00:00:00"},null,null,null,null,null,"IE",{"$f":"IF(K23=\"\",\"\",SUBSTITUTE(MID(K23,1,SEARCH(\"!\",K23,1)-1),\"'\",\"\"))","v":""},{"$f":"IF(K23=\"\",\"\",CELL(\"row\",INDIRECT(K23)))","v":""},{"$f":"IF(K23=\"\",\"\",CELL(\"col\",INDIRECT(K23)))","v":""},{"$f":"MID(Lire_Formule(L23),2,10000)","v":""},null,null,"-",null,{"$f":"IF(K23=\"\",\"\",IF(G23=\"IT\",INDIRECT(ADDRESS(I23+2,J23,4,TRUE,H23)),INDIRECT(ADDRESS(I23,J23+4,4,TRUE,H23))))","v":""},null,null,"-",null,null,{"$f":"L23&TEXT(A23,\"hh:mm\")","v":"00:00"},{"$f":"P23&TEXT(A23,\"hh:mm\")","v":"00:00"},{"$f":"IF(L23=\"\",0,COUNTIF(PlayersAndHoursCol1,L23&TEXT($A23,\"hh:mm\"))+COUNTIF(PlayersAndHoursCol2,L23&TEXT($A23,\"hh:mm\")))","v":0},{"$f":"IF(P23=\"\",0,COUNTIF(PlayersAndHoursCol1,P23&TEXT($A23,\"hh:mm\"))+COUNTIF(PlayersAndHoursCol2,P23&TEXT($A23,\"hh:mm\")))","v":0},{"$f":"IF(AA23=\"\",FALSE,NOT(AND(ISNA(MATCH(AA23&TEXT($A23,\"hh:mm\"),PlayersAndHoursCol1,0)),ISNA(MATCH(AA23&TEXT($A23,\"hh:mm\"),PlayersAndHoursCol2,0)),COUNTIF(AD:AD,AA23&$A23)<=1)))","v":false},null,null,null,{"$f":"AA23&A23","v":"0"},null,null,null,{"$f":"IF(OR(M23>O23,R23>T23),L23,IF(OR(M23<O23,R23<T23),P23,\"\"))","v":""},{"$f":"IF(AND(M23<>\"\",M23=O23,R23=T23),L23,\"\")","v":""},{"$f":"IF(AND(M23<>\"\",M23=O23,R23=T23),P23,\"\")","v":""},{"$f":"IF(OR(M23<O23,R23<T23),L23,IF(OR(M23>O23,R23>T23),P23,\"\"))","v":""},{"$f":"IF(OR($AB23=\"\",$AB23=\"V\"),\"\",IF(MOD($AB23,10)=1,\"XXX\",\"\"))","v":""},{"$f":"IF(OR($AB23=\"\",$AB23=\"V\"),\"\",IF(MOD($AB23,100)>=10,\"XXX\",\"\"))","v":""},{"$f":"IF(OR($AB23=\"\",$AB23=\"V\"),\"\",IF(MOD($AB23,1000)>=100,\"XXX\",\"\"))","v":""},{"$f":"IF(OR($AB23=\"\",$AB23=\"V\"),\"\",IF(MOD($AB23,10000)>=1000,\"XXX\",\"\"))","v":""},{"$f":"IF(OR($AB23=\"\",$AB23=\"V\"),\"\",IF(MOD($AB23,100000)>=10000,\"XXX\",\"\"))","v":""}]
[]
[{"$f":"OFFSET(A25,-1,0)","v":"00:00:00"},null,null,null,null,null,"IT",{"$f":"IF(K25=\"\",\"\",SUBSTITUTE(MID(K25,1,SEARCH(\"!\",K25,1)-1),\"'\",\"\"))","v":""},{"$f":"IF(K25=\"\",\"\",CELL(\"row\",INDIRECT(K25)))","v":""},{"$f":"IF(K25=\"\",\"\",CELL(\"col\",INDIRECT(K25)))","v":""},{"$f":"MID(Lire_Formule(L25),2,10000)","v":""},null,null,"-",null,{"$f":"IF(K25=\"\",\"\",IF(G25=\"IT\",INDIRECT(ADDRESS(I25+2,J25,4,TRUE,H25)),INDIRECT(ADDRESS(I25,J25+4,4,TRUE,H25))))","v":""},null,null,"-",null,null,{"$f":"L25&TEXT(A25,\"hh:mm\")","v":"00:00"},{"$f":"P25&TEXT(A25,\"hh:mm\")","v":"00:00"},{"$f":"IF(L25=\"\",0,COUNTIF(PlayersAndHoursCol1,L25&TEXT($A25,\"hh:mm\"))+COUNTIF(PlayersAndHoursCol2,L25&TEXT($A25,\"hh:mm\")))","v":0},{"$f":"IF(P25=\"\",0,COUNTIF(PlayersAndHoursCol1,P25&TEXT($A25,\"hh:mm\"))+COUNTIF(PlayersAndHoursCol2,P25&TEXT($A25,\"hh:mm\")))","v":0},{"$f":"IF(AA25=\"\",FALSE,NOT(AND(ISNA(MATCH(AA25&TEXT($A25,\"hh:mm\"),PlayersAndHoursCol1,0)),ISNA(MATCH(AA25&TEXT($A25,\"hh:mm\"),PlayersAndHoursCol2,0)),COUNTIF(AD:AD,AA25&$A25)<=1)))","v":false},null,null,null,{"$f":"AA25&A25","v":"0"},null,null,null,{"$f":"IF(OR(M25>O25,R25>T25),L25,IF(OR(M25<O25,R25<T25),P25,\"\"))","v":""},{"$f":"IF(AND(M25<>\"\",M25=O25,R25=T25),L25,\"\")","v":""},{"$f":"IF(AND(M25<>\"\",M25=O25,R25=T25),P25,\"\")","v":""},{"$f":"IF(OR(M25<O25,R25<T25),L25,IF(OR(M25>O25,R25>T25),P25,\"\"))","v":""},{"$f":"IF(OR($AB25=\"\",$AB25=\"V\"),\"\",IF(MOD($AB25,10)=1,\"XXX\",\"\"))","v":""},{"$f":"IF(OR($AB25=\"\",$AB25=\"V\"),\"\",IF(MOD($AB25,100)>=10,\"XXX\",\"\"))","v":""},{"$f":"IF(OR($AB25=\"\",$AB25=\"V\"),\"\",IF(MOD($AB25,1000)>=100,\"XXX\",\"\"))","v":""},{"$f":"IF(OR($AB25=\"\",$AB25=\"V\"),\"\",IF(MOD($AB25,10000)>=1000,\"XXX\",\"\"))","v":""},{"$f":"IF(OR($AB25=\"\",$AB25=\"V\"),\"\",IF(MOD($AB25,100000)>=10000,\"XXX\",\"\"))","v":""}]
[]
[{"$f":"OFFSET(A27,-1,0)","v":"00:00:00"},null,null,null,null,null,"IG_SR",{"$f":"IF(K27=\"\",\"\",SUBSTITUTE(MID(K27,1,SEARCH(\"!\",K27,1)-1),\"'\",\"\"))","v":""},{"$f":"IF(K27=\"\",\"\",CELL(\"row\",INDIRECT(K27)))","v":""},{"$f":"IF(K27=\"\",\"\",CELL(\"col\",INDIRECT(K27)))","v":""},{"$f":"MID(Lire_Formule(L27),2,10000)","v":""},null,null,"-",null,{"$f":"IF(K27=\"\",\"\",IF(G27=\"IT\",INDIRECT(ADDRESS(I27+2,J27,4,TRUE,H27)),INDIRECT(ADDRESS(I27,J27+4,4,TRUE,H27))))","v":""},null,null,null,null,null,{"$f":"L27&TEXT(A27,\"hh:mm\")","v":"00:00"},{"$f":"P27&TEXT(A27,\"hh:mm\")","v":"00:00"},{"$f":"IF(L27=\"\",0,COUNTIF(PlayersAndHoursCol1,L27&TEXT($A27,\"hh:mm\"))+COUNTIF(PlayersAndHoursCol2,L27&TEXT($A27,\"hh:mm\")))","v":0},{"$f":"IF(P27=\"\",0,COUNTIF(PlayersAndHoursCol1,P27&TEXT($A27,\"hh:mm\"))+COUNTIF(PlayersAndHoursCol2,P27&TEXT($A27,\"hh:mm\")))","v":0},{"$f":"IF(AA27=\"\",FALSE,NOT(AND(ISNA(MATCH(AA27&TEXT($A27,\"hh:mm\"),PlayersAndHoursCol1,0)),ISNA(MATCH(AA27&TEXT($A27,\"hh:mm\"),PlayersAndHoursCol2,0)),COUNTIF(AD:AD,AA27&$A27)<=1)))","v":true},{"$f":"IF(K27=\"\",\"Auto-Arbitrage\",IF(G27=\"Ind. Tableau\",INDIRECT(ADDRESS(I27,J27+3,4,TRUE,H27)),INDIRECT(ADDRESS(I27,J27-1,4,TRUE,H27))))","v":"Auto-Arbitrage"},null,null,{"$f":"AA27&A27","v":"Auto-Arbitrage0"},null,null,null,{"$f":"IF(OR(M27>O27,R27>T27),L27,IF(OR(M27<O27,R27<T27),P27,\"\"))","v":""},{"$f":"IF(AND(M27<>\"\",M27=O27,R27=T27),L27,\"\")","v":""},{"$f":"IF(AND(M27<>\"\",M27=O27,R27=T27),P27,\"\")","v":""},{"$f":"IF(OR(M27<O27,R27<T27),L27,IF(OR(M27>O27,R27>T27),P27,\"\"))","v":""},{"$f":"IF(OR($AB27=\"\",$AB27=\"V\"),\"\",IF(MOD($AB27,10)=1,\"XXX\",\"\"))","v":""},{"$f":"IF(OR($AB27=\"\",$AB27=\"V\"),\"\",IF(MOD($AB27,100)>=10,\"XXX\",\"\"))","v":""},{"$f":"IF(OR($AB27=\"\",$AB27=\"V\"),\"\",IF(MOD($AB27,1000)>=100,\"XXX\",\"\"))","v":""},{"$f":"IF(OR($AB27=\"\",$AB27=\"V\"),\"\",IF(MOD($AB27,10000)>=1000,\"XXX\",\"\"))","v":""},{"$f":"IF(OR($AB27=\"\",$AB27=\"V\"),\"\",IF(MOD($AB27,100000)>=10000,\"XXX\",\"\"))","v":""}]
[]
[{"$f":"OFFSET(A29,-1,0)","v":"00:00:00"},null,null,null,null,null,"IT_SR",{"$f":"IF(K29=\"\",\"\",SUBSTITUTE(MID(K29,1,SEARCH(\"!\",K29,1)-1),\"'\",\"\"))","v":""},{"$f":"IF(K29=\"\",\"\",CELL(\"row\",INDIRECT(K29)))","v":""},{"$f":"IF(K29=\"\",\"\",CELL(\"col\",INDIRECT(K29)))","v":""},{"$f":"MID(Lire_Formule(L29),2,10000)","v":""},null,null,"-",null,{"$f":"IF(K29=\"\",\"\",IF(G29=\"IT\",INDIRECT(ADDRESS(I29+2,J29,4,TRUE,H29)),INDIRECT(ADDRESS(I29,J29+4,4,TRUE,H29))))","v":""},null,null,"-",null,null,{"$f":"L29&TEXT(A29,\"hh:mm\")","v":"00:00"},{"$f":"P29&TEXT(A29,\"hh:mm\")","v":"00:00"},{"$f":"IF(L29=\"\",0,COUNTIF(PlayersAndHoursCol1,L29&TEXT($A29,\"hh:mm\"))+COUNTIF(PlayersAndHoursCol2,L29&TEXT($A29,\"hh:mm\")))","v":0},{"$f":"IF(P29=\"\",0,COUNTIF(PlayersAndHoursCol1,P29&TEXT($A29,\"hh:mm\"))+COUNTIF(PlayersAndHoursCol2,P29&TEXT($A29,\"hh:mm\")))","v":0},{"$f":"IF(AA29=\"\",FALSE,NOT(AND(ISNA(MATCH(AA29&TEXT($A29,\"hh:mm\"),PlayersAndHoursCol1,0)),ISNA(MATCH(AA29&TEXT($A29,\"hh:mm\"),PlayersAndHoursCol2,0)),COUNTIF(AD:AD,AA29&$A29)<=1)))","v":true},{"$f":"IF(K29=\"\",\"Auto-Arbitrage\",IF(G29=\"Ind. Tableau\",INDIRECT(ADDRESS(I29,J29+3,4,TRUE,H29)),INDIRECT(ADDRESS(I29,J29-1,4,TRUE,H29))))","v":"Auto-Arbitrage"},null,null,{"$f":"AA29&A29","v":"Auto-Arbitrage0"},null,null,null,{"$f":"IF(OR(M29>O29,R29>T29),L29,IF(OR(M29<O29,R29<T29),P29,\"\"))","v":""},{"$f":"IF(AND(M29<>\"\",M29=O29,R29=T29),L29,\"\")","v":""},{"$f":"IF(AND(M29<>\"\",M29=O29,R29=T29),P29,\"\")","v":""},{"$f":"IF(OR(M29<O29,R29<T29),L29,IF(OR(M29>O29,R29>T29),P29,\"\"))","v":""},{"$f":"IF(OR($AB29=\"\",$AB29=\"V\"),\"\",IF(MOD($AB29,10)=1,\"XXX\",\"\"))","v":""},{"$f":"IF(OR($AB29=\"\",$AB29=\"V\"),\"\",IF(MOD($AB29,100)>=10,\"XXX\",\"\"))","v":""},{"$f":"IF(OR($AB29=\"\",$AB29=\"V\"),\"\",IF(MOD($AB29,1000)>=100,\"XXX\",\"\"))","v":""},{"$f":"IF(OR($AB29=\"\",$AB29=\"V\"),\"\",IF(MOD($AB29,10000)>=1000,\"XXX\",\"\"))","v":""},{"$f":"IF(OR($AB29=\"\",$AB29=\"V\"),\"\",IF(MOD($AB29,100000)>=10000,\"XXX\",\"\"))","v":""}]
[]
[{"$f":"OFFSET(A31,-1,0)","v":"00:00:00"},null,null,null,null,null,"IE_SR",{"$f":"IF(K31=\"\",\"\",SUBSTITUTE(MID(K31,1,SEARCH(\"!\",K31,1)-1),\"'\",\"\"))","v":""},{"$f":"IF(K31=\"\",\"\",CELL(\"row\",INDIRECT(K31)))","v":""},{"$f":"IF(K31=\"\",\"\",CELL(\"col\",INDIRECT(K31)))","v":""},{"$f":"MID(Lire_Formule(L31),2,10000)","v":""},null,null,"-",null,{"$f":"IF(K31=\"\",\"\",IF(G31=\"IT\",INDIRECT(ADDRESS(I31+2,J31,4,TRUE,H31)),INDIRECT(ADDRESS(I31,J31+4,4,TRUE,H31))))","v":""},null,null,"-",null,null,{"$f":"L31&TEXT(A31,\"hh:mm\")","v":"00:00"},{"$f":"P31&TEXT(A31,\"hh:mm\")","v":"00:00"},{"$f":"IF(L31=\"\",0,COUNTIF(PlayersAndHoursCol1,L31&TEXT($A31,\"hh:mm\"))+COUNTIF(PlayersAndHoursCol2,L31&TEXT($A31,\"hh:mm\")))","v":0},{"$f":"IF(P31=\"\",0,COUNTIF(PlayersAndHoursCol1,P31&TEXT($A31,\"hh:mm\"))+COUNTIF(PlayersAndHoursCol2,P31&TEXT($A31,\"hh:mm\")))","v":0},{"$f":"IF(AA31=\"\",FALSE,NOT(AND(ISNA(MATCH(AA31&TEXT($A31,\"hh:mm\"),PlayersAndHoursCol1,0)),ISNA(MATCH(AA31&TEXT($A31,\"hh:mm\"),PlayersAndHoursCol2,0)),COUNTIF(AD:AD,AA31&$A31)<=1)))","v":true},{"$f":"IF(K31=\"\",\"Auto-Arbitrage\",IF(G31=\"Ind. Tableau\",INDIRECT(ADDRESS(I31,J31+3,4,TRUE,H31)),INDIRECT(ADDRESS(I31,J31-1,4,TRUE,H31))))","v":"Auto-Arbitrage"},null,null,{"$f":"AA31&A31","v":"Auto-Arbitrage0"},null,null,null,{"$f":"IF(OR(M31>O31,R31>T31),L31,IF(OR(M31<O31,R31<T31),P31,\"\"))","v":""},{"$f":"IF(AND(M31<>\"\",M31=O31,R31=T31),L31,\"\")","v":""},{"$f":"IF(AND(M31<>\"\",M31=O31,R31=T31),P31,\"\")","v":""},{"$f":"IF(OR(M31<O31,R31<T31),L31,IF(OR(M31>O31,R31>T31),P31,\"\"))","v":""},{"$f":"IF(OR($AB31=\"\",$AB31=\"V\"),\"\",IF(MOD($AB31,10)=1,\"XXX\",\"\"))","v":""},{"$f":"IF(OR($AB31=\"\",$AB31=\"V\"),\"\",IF(MOD($AB31,100)>=10,\"XXX\",\"\"))","v":""},{"$f":"IF(OR($AB31=\"\",$AB31=\"V\"),\"\",IF(MOD($AB31,1000)>=100,\"XXX\",\"\"))","v":""},{"$f":"IF(OR($AB31=\"\",$AB31=\"V\"),\"\",IF(MOD($AB31,10000)>=1000,\"XXX\",\"\"))","v":""},{"$f":"IF(OR($AB31=\"\",$AB31=\"V\"),\"\",IF(MOD($AB31,100000)>=10000,\"XXX\",\"\"))","v":""}]
[]
[{"$f":"OFFSET(A33,-1,0)","v":"00:00:00"},null,null,null,null,null,"TG",{"$f":"IF(K33=\"\",\"\",SUBSTITUTE(MID(K33,1,SEARCH(\"!\",K33,1)-1),\"'\",\"\"))","v":""},{"$f":"IF(K33=\"\",\"\",CELL(\"row\",INDIRECT(K33)))","v":""},{"$f":"IF(K33=\"\",\"\",CELL(\"col\",INDIRECT(K33)))","v":""},{"$f":"MID(Lire_Formule(L33),2,10000)","v":""},null,{"$f":"IF(K33=\"\",\"\",INDIRECT(ADDRESS(I33,J33+1,4,TRUE,H33)))","v":""},"-",{"$f":"IF(K33=\"\",\"\",INDIRECT(ADDRESS(I33,J33+3,4,TRUE,H33)))","v":""},{"$f":"IF(K33=\"\",\"\",IF(RIGHT(G33,1)=\"T\",INDIRECT(ADDRESS(I33+2,J33,4,TRUE,H33)),INDIRECT(ADDRESS(I33,J33+4,4,TRUE,H33))))","v":""},null,{"$f":"IF(M33=\"\",\"\",SUM(M34:M37))","v":""},null,{"$f":"IF(O33=\"\",\"\",SUM(O34:O37))","v":""},null,{"$f":"L33&TEXT(A33,\"hh:mm\")","v":"00:00"},{"$f":"P33&TEXT(A33,\"hh:mm\")","v":"00:00"},{"$f":"IF(L33=\"\",0,COUNTIF(PlayersAndHoursCol1,L33&TEXT($A33,\"hh:mm\"))+COUNTIF(PlayersAndHoursCol2,L33&TEXT($A33,\"hh:mm\")))","v":0},{"$f":"IF(P33=\"\",0,COUNTIF(PlayersAndHoursCol1,P33&TEXT($A33,\"hh:mm\"))+COUNTIF(PlayersAndHoursCol2,P33&TEXT($A33,\"hh:mm\")))","v":0},{"$f":"IF(AA33=\"\",FALSE,NOT(AND(ISNA(MATCH(AA33&TEXT($A33,\"hh:mm\"),PlayersAndHoursCol1,0)),ISNA(MATCH(AA33&TEXT($A33,\"hh:mm\"),PlayersAndHoursCol2,0)),COUNTIF(AD:AD,AA33&$A33)<=1)))","v":false},null,null,null,{"$f":"AA33&A33","v":"0"},null,null,null,{"$f":"IF(OR(M33>O33,R33>T33),L33,IF(OR(M33<O33,R33<T33),P33,\"\"))","v":""},{"$f":"IF(AND(M33<>\"\",M33=O33,R33=T33),L33,\"\")","v":""},{"$f":"IF(AND(M33<>\"\",M33=O33,R33=T33),P33,\"\")","v":""},{"$f":"IF(OR(M33<O33,R33<T33),L33,IF(OR(M33>O33,R33>T33),P33,\"\"))","v":""},{"$f":"IF(OR($AB33=\"\",$AB33=\"V\"),\"\",IF(MOD($AB33,10)=1,\"XXX\",\"\"))","v":""},{"$f":"IF(OR($AB33=\"\",$AB33=\"V\"),\"\",IF(MOD($AB33,100)>=10,\"XXX\",\"\"))","v":""},{"$f":"IF(OR($AB33=\"\",$AB33=\"V\"),\"\",IF(MOD($AB33,1000)>=100,\"XXX\",\"\"))","v":""},{"$f":"IF(OR($AB33=\"\",$AB33=\"V\"),\"\",IF(MOD($AB33,10000)>=1000,\"XXX\",\"\"))","v":""},{"$f":"IF(OR($AB33=\"\",$AB33=\"V\"),\"\",IF(MOD($AB33,100000)>=10000,\"XXX\",\"\"))","v":""}]
[{"$f":"A33","v":"00:00:00"},null,{"$f":"C33","v":0},null,null,null,{"$f":"G33&1","v":"TG1"},null,null,null,null,null,null,"-",null,null,null,null,null,null,null,"00:00","00:00",0,0,{"$f":"IF(AA34=\"\",FALSE,NOT(AND(ISNA(MATCH(AA34&TEXT($A34,\"hh:mm\"),PlayersAndHoursCol1,0)),ISNA(MATCH(AA34&TEXT($A34,\"hh:mm\"),PlayersAndHoursCol2,0)),COUNTIF(AD:AD,AA34&$A34)<=1)))","v":false},null,null,null,null,null,null,null,{"$f":"IF(OR(M34>O34,R34>T34),L34,IF(OR(M34<O34,R34<T34),P34,\"\"))","v":""},{"$f":"IF(AND(M34<>\"\",M34=O34,R34=T34),L34,\"\")","v":""},{"$f":"IF(AND(M34<>\"\",M34=O34,R34=T34),P34,\"\")","v":""},{"$f":"IF(OR(M34<O34,R34<T34),L34,IF(OR(M34>O34,R34>T34),P34,\"\"))","v":""},{"$f":"IF(OR($AB34=\"\",$AB34=\"V\"),\"\",IF(MOD($AB34,10)=1,\"XXX\",\"\"))","v":""},{"$f":"IF(OR($AB34=\"\",$AB34=\"V\"),\"\",IF(MOD($AB34,100)>=10,\"XXX\",\"\"))","v":""},{"$f":"IF(OR($AB34=\"\",$AB34=\"V\"),\"\",IF(MOD($AB34,1000)>=100,\"XXX\",\"\"))","v":""},{"$f":"IF(OR($AB34=\"\",$AB34=\"V\"),\"\",IF(MOD($AB34,10000)>=1000,\"XXX\",\"\"))","v":""},{"$f":"IF(OR($AB34=\"\",$AB34=\"V\"),\"\",IF(MOD($AB34,100000)>=10000,\"XXX\",\"\"))","v":""}]
[{"$f":"A34","v":"00:00:00"},null,{"$f":"C34","v":0},null,null,null,{"$f":"G33&2","v":"TG2"},null,null,null,null,null,null,"-",null,null,null,null,null,null,null,"00:00","00:00",0,0,{"$f":"IF(AA35=\"\",FALSE,NOT(AND(ISNA(MATCH(AA35&TEXT($A35,\"hh:mm\"),PlayersAndHoursCol1,0)),ISNA(MATCH(AA35&TEXT($A35,\"hh:mm\"),PlayersAndHoursCol2,0)),COUNTIF(AD:AD,AA35&$A35)<=1)))","v":false},null,null,null,null,null,null,null,{"$f":"IF(OR(M35>O35,R35>T35),L35,IF(OR(M35<O35,R35<T35),P35,\"\"))","v":""},{"$f":"IF(AND(M35<>\"\",M35=O35,R35=T35),L35,\"\")","v":""},{"$f":"IF(AND(M35<>\"\",M35=O35,R35=T35),P35,\"\")","v":""},{"$f":"IF(OR(M35<O35,R35<T35),L35,IF(OR(M35>O35,R35>T35),P35,\"\"))","v":""},{"$f":"IF(OR($AB35=\"\",$AB35=\"V\"),\"\",IF(MOD($AB35,10)=1,\"XXX\",\"\"))","v":""},{"$f":"IF(OR($AB35=\"\",$AB35=\"V\"),\"\",IF(MOD($AB35,100)>=10,\"XXX\",\"\"))","v":""},{"$f":"IF(OR($AB35=\"\",$AB35=\"V\"),\"\",IF(MOD($AB35,1000)>=100,\"XXX\",\"\"))","v":""},{"$f":"IF(OR($AB35=\"\",$AB35=\"V\"),\"\",IF(MOD($AB35,10000)>=1000,\"XXX\",\"\"))","v":""},{"$f":"IF(OR($AB35=\"\",$AB35=\"V\"),\"\",IF(MOD($AB35,100000)>=10000,\"XXX\",\"\"))","v":""}]
[{"$f":"A35","v":"00:00:00"},null,{"$f":"C35","v":0},null,null,null,{"$f":"G33&3","v":"TG3"},null,null,null,null,null,null,"-",null,null,null,null,null,null,null,"00:00","00:00",0,0,{"$f":"IF(AA36=\"\",FALSE,NOT(AND(ISNA(MATCH(AA36&TEXT($A36,\"hh:mm\"),PlayersAndHoursCol1,0)),ISNA(MATCH(AA36&TEXT($A36,\"hh:mm\"),PlayersAndHoursCol2,0)),COUNTIF(AD:AD,AA36&$A36)<=1)))","v":false},null,null,null,null,null,null,null,{"$f":"IF(OR(M36>O36,R36>T36),L36,IF(OR(M36<O36,R36<T36),P36,\"\"))","v":""},{"$f":"IF(AND(M36<>\"\",M36=O36,R36=T36),L36,\"\")","v":""},{"$f":"IF(AND(M36<>\"\",M36=O36,R36=T36),P36,\"\")","v":""},{"$f":"IF(OR(M36<O36,R36<T36),L36,IF(OR(M36>O36,R36>T36),P36,\"\"))","v":""},{"$f":"IF(OR($AB36=\"\",$AB36=\"V\"),\"\",IF(MOD($AB36,10)=1,\"XXX\",\"\"))","v":""},{"$f":"IF(OR($AB36=\"\",$AB36=\"V\"),\"\",IF(MOD($AB36,100)>=10,\"XXX\",\"\"))","v":""},{"$f":"IF(OR($AB36=\"\",$AB36=\"V\"),\"\",IF(MOD($AB36,1000)>=100,\"XXX\",\"\"))","v":""},{"$f":"IF(OR($AB36=\"\",$AB36=\"V\"),\"\",IF(MOD($AB36,10000)>=1000,\"XXX\",\"\"))","v":""},{"$f":"IF(OR($AB36=\"\",$AB36=\"V\"),\"\",IF(MOD($AB36,100000)>=10000,\"XXX\",\"\"))","v":""}]
[{"$f":"A36","v":"00:00:00"},null,{"$f":"C36","v":0},null,null,null,{"$f":"G33&4","v":"TG4"},null,null,null,null,null,null,"-",null,null,null,null,null,null,null,"00:00","00:00",0,0,{"$f":"IF(AA37=\"\",FALSE,NOT(AND(ISNA(MATCH(AA37&TEXT($A37,\"hh:mm\"),PlayersAndHoursCol1,0)),ISNA(MATCH(AA37&TEXT($A37,\"hh:mm\"),PlayersAndHoursCol2,0)),COUNTIF(AD:AD,AA37&$A37)<=1)))","v":false},null,null,null,null,null,null,null,{"$f":"IF(OR(M37>O37,R37>T37),L37,IF(OR(M37<O37,R37<T37),P37,\"\"))","v":""},{"$f":"IF(AND(M37<>\"\",M37=O37,R37=T37),L37,\"\")","v":""},{"$f":"IF(AND(M37<>\"\",M37=O37,R37=T37),P37,\"\")","v":""},{"$f":"IF(OR(M37<O37,R37<T37),L37,IF(OR(M37>O37,R37>T37),P37,\"\"))","v":""},{"$f":"IF(OR($AB37=\"\",$AB37=\"V\"),\"\",IF(MOD($AB37,10)=1,\"XXX\",\"\"))","v":""},{"$f":"IF(OR($AB37=\"\",$AB37=\"V\"),\"\",IF(MOD($AB37,100)>=10,\"XXX\",\"\"))","v":""},{"$f":"IF(OR($AB37=\"\",$AB37=\"V\"),\"\",IF(MOD($AB37,1000)>=100,\"XXX\",\"\"))","v":""},{"$f":"IF(OR($AB37=\"\",$AB37=\"V\"),\"\",IF(MOD($AB37,10000)>=1000,\"XXX\",\"\"))","v":""},{"$f":"IF(OR($AB37=\"\",$AB37=\"V\"),\"\",IF(MOD($AB37,100000)>=10000,\"XXX\",\"\"))","v":""}]
[{"$f":"A37","v":"00:00:00"},null,null,null,{"$f":"N_Substitute","v":"Substitute"},null,{"$f":"G33&\"SB1\"","v":"TGSB1"},null,null,null,null,null,null,null,null,null,null,null,null,null,null,"00:00","00:00",0,0]
[{"$f":"A33","v":"00:00:00"},null,null,null,{"$f":"N_Substitute","v":"Substitute"},null,{"$f":"G33&\"SB2\"","v":"TGSB2"},null,null,null,null,null,null,null,null,null,null,null,null,null,null,"00:00","00:00",0,0]
[]
[{"$f":"OFFSET(A41,-1,0)","v":"00:00:00"},null,null,null,null,null,"TE",{"$f":"IF(K41=\"\",\"\",SUBSTITUTE(MID(K41,1,SEARCH(\"!\",K41,1)-1),\"'\",\"\"))","v":""},{"$f":"IF(K41=\"\",\"\",CELL(\"row\",INDIRECT(K41)))","v":""},{"$f":"IF(K41=\"\",\"\",CELL(\"col\",INDIRECT(K41)))","v":""},{"$f":"MID(Lire_Formule(L41),2,10000)","v":""},null,{"$f":"IF(K41=\"\",\"\",IF(RIGHT(G41,1)=\"T\",INDIRECT(ADDRESS(I41,J41+1,4,TRUE,H41)),INDIRECT(ADDRESS(I41,J41+1,4,TRUE,H41))))","v":""},"-",{"$f":"IF(K41=\"\",\"\",IF(RIGHT(G41,1)=\"T\",INDIRECT(ADDRESS(I41+2,J41+1,4,TRUE,H41)),INDIRECT(ADDRESS(I41,J41+3,4,TRUE,H41))))","v":""},{"$f":"IF(K41=\"\",\"\",IF(RIGHT(G41,1)=\"T\",INDIRECT(ADDRESS(I41+2,J41,4,TRUE,H41)),INDIRECT(ADDRESS(I41,J41+4,4,TRUE,H41))))","v":""},{"$f":"IF(K41=\"\",\"\",IF(RIGHT(G41,1)=\"T\",INDIRECT(ADDRESS(I41+1,J41+3,4,TRUE,H41)),INDIRECT(ADDRESS(I41,J41+5,4,TRUE,H41))))","v":""},{"$f":"IF(K41=\"\",\"\",IF(RIGHT(G41,1)=\"T\",INDIRECT(ADDRESS(I41,J41+4,4,TRUE,H41)),INDIRECT(ADDRESS(I41+1,J41+1,4,TRUE,H41))))","v":""},"-",{"$f":"IF(K41=\"\",\"\",IF(RIGHT(G41,1)=\"T\",INDIRECT(ADDRESS(I41+2,J41+4,4,TRUE,H41)),INDIRECT(ADDRESS(I41+1,J41+3,4,TRUE,H41))))","v":""},null,{"$f":"L41&TEXT(A41,\"hh:mm\")","v":"00:00"},{"$f":"P41&TEXT(A41,\"hh:mm\")","v":"00:00"},{"$f":"IF(L41=\"\",0,COUNTIF(PlayersAndHoursCol1,L41&TEXT($A41,\"hh:mm\"))+COUNTIF(PlayersAndHoursCol2,L41&TEXT($A41,\"hh:mm\")))","v":0},{"$f":"IF(P41=\"\",0,COUNTIF(PlayersAndHoursCol1,P41&TEXT($A41,\"hh:mm\"))+COUNTIF(PlayersAndHoursCol2,P41&TEXT($A41,\"hh:mm\")))","v":0},{"$f":"IF(AA41=\"\",FALSE,NOT(AND(ISNA(MATCH(AA41&TEXT($A41,\"hh:mm\"),PlayersAndHoursCol1,0)),ISNA(MATCH(AA41&TEXT($A41,\"hh:mm\"),PlayersAndHoursCol2,0)),COUNTIF(AD:AD,AA41&$A41)<=1)))","v":false},null,null,null,{"$f":"AA41&A41","v":"0"},null,null,null,{"$f":"IF(OR(M41>O41,R41>T41),L41,IF(OR(M41<O41,R41<T41),P41,\"\"))","v":""},{"$f":"IF(AND(M41<>\"\",M41=O41,R41=T41),L41,\"\")","v":""},{"$f":"IF(AND(M41<>\"\",M41=O41,R41=T41),P41,\"\")","v":""},{"$f":"IF(OR(M41<O41,R41<T41),L41,IF(OR(M41>O41,R41>T41),P41,\"\"))","v":""},{"$f":"IF(OR($AB41=\"\",$AB41=\"V\"),\"\",IF(MOD($AB41,10)=1,\"XXX\",\"\"))","v":""},{"$f":"IF(OR($AB41=\"\",$AB41=\"V\"),\"\",IF(MOD($AB41,100)>=10,\"XXX\",\"\"))","v":""},{"$f":"IF(OR($AB41=\"\",$AB41=\"V\"),\"\",IF(MOD($AB41,1000)>=100,\"XXX\",\"\"))","v":""},{"$f":"IF(OR($AB41=\"\",$AB41=\"V\"),\"\",IF(MOD($AB41,10000)>=1000,\"XXX\",\"\"))","v":""},{"$f":"IF(OR($AB41=\"\",$AB41=\"V\"),\"\",IF(MOD($AB41,100000)>=10000,\"XXX\",\"\"))","v":""}]
[{"$f":"A41","v":"00:00:00"},null,{"$f":"C41","v":0},null,null,null,{"$f":"G41&1","v":"TE1"},null,null,null,null,null,null,"-",null,null,null,null,null,null,null,"00:00","00:00",0,0,false,null,null,null,null,null,null,null,{"$f":"IF(OR(M42>O42,R42>T42),L42,IF(OR(M42<O42,R42<T42),P42,\"\"))","v":""},{"$f":"IF(AND(M42<>\"\",M42=O42,R42=T42),L42,\"\")","v":""},{"$f":"IF(AND(M42<>\"\",M42=O42,R42=T42),P42,\"\")","v":""},{"$f":"IF(OR(M42<O42,R42<T42),L42,IF(OR(M42>O42,R42>T42),P42,\"\"))","v":""},"","","","",""]
[{"$f":"A42","v":"00:00:00"},null,{"$f":"C42","v":0},null,null,null,{"$f":"G41&2","v":"TE2"},null,null,null,null,null,null,"-",null,null,null,null,null,null,null,"00:00","00:00",0,0,false,null,null,null,null,null,null,null,{"$f":"IF(OR(M43>O43,R43>T43),L43,IF(OR(M43<O43,R43<T43),P43,\"\"))","v":""},{"$f":"IF(AND(M43<>\"\",M43=O43,R43=T43),L43,\"\")","v":""},{"$f":"IF(AND(M43<>\"\",M43=O43,R43=T43),P43,\"\")","v":""},{"$f":"IF(OR(M43<O43,R43<T43),L43,IF(OR(M43>O43,R43>T43),P43,\"\"))","v":""},"","","","",""]
[{"$f":"A43","v":"00:00:00"},null,{"$f":"C43","v":0},null,null,null,{"$f":"G41&3","v":"TE3"},null,null,null,null,null,null,"-",null,null,null,null,null,null,null,"00:00","00:00",0,0,false,null,null,null,null,null,null,null,{"$f":"IF(OR(M44>O44,R44>T44),L44,IF(OR(M44<O44,R44<T44),P44,\"\"))","v":""},{"$f":"IF(AND(M44<>\"\",M44=O44,R44=T44),L44,\"\")","v":""},{"$f":"IF(AND(M44<>\"\",M44=O44,R44=T44),P44,\"\")","v":""},{"$f":"IF(OR(M44<O44,R44<T44),L44,IF(OR(M44>O44,R44>T44),P44,\"\"))","v":""},"","","","",""]
[{"$f":"A44","v":"00:00:00"},null,{"$f":"C44","v":0},null,null,null,{"$f":"G41&4","v":"TE4"},null,null,null,null,null,null,"-",null,null,null,null,null,null,null,"00:00","00:00",0,0,false,null,null,null,null,null,null,null,{"$f":"IF(OR(M45>O45,R45>T45),L45,IF(OR(M45<O45,R45<T45),P45,\"\"))","v":""},{"$f":"IF(AND(M45<>\"\",M45=O45,R45=T45),L45,\"\")","v":""},{"$f":"IF(AND(M45<>\"\",M45=O45,R45=T45),P45,\"\")","v":""},{"$f":"IF(OR(M45<O45,R45<T45),L45,IF(OR(M45>O45,R45>T45),P45,\"\"))","v":""},"","","","",""]
[{"$f":"A45","v":"00:00:00"},null,null,null,{"$f":"N_Différentiel","v":"Shoot Out"},null,{"$f":"G41&5","v":"TE5"},null,null,null,null,null,null,"-",null,null,null,null,null,null,null,"00:00","00:00",0,0,false,null,null,null,null,null,null,null,null,null,null,null,"","","","",""]
[{"$f":"A41","v":"00:00:00"},null,null,null,{"$f":"N_Substitute","v":"Substitute"},null,{"$f":"G41&\"SB1\"","v":"TESB1"},null,null,null,null,null,null,null,null,null,null,null,null,null,null,"00:00","00:00",0,0]
[{"$f":"A41","v":"00:00:00"},null,null,null,{"$f":"N_Substitute","v":"Substitute"},null,{"$f":"G41&\"SB2\"","v":"TESB2"},null,null,null,null,null,null,null,null,null,null,null,null,null,null,"00:00","00:00",0,0]
[]
[{"$f":"OFFSET(A50,-1,0)","v":"00:00:00"},null,null,null,null,null,"TT",{"$f":"IF(K50=\"\",\"\",SUBSTITUTE(MID(K50,1,SEARCH(\"!\",K50,1)-1),\"'\",\"\"))","v":""},{"$f":"IF(K50=\"\",\"\",CELL(\"row\",INDIRECT(K50)))","v":""},{"$f":"IF(K50=\"\",\"\",CELL(\"col\",INDIRECT(K50)))","v":""},{"$f":"MID(Lire_Formule(L50),2,10000)","v":""},null,{"$f":"IF(K50=\"\",\"\",IF(RIGHT(G50,1)=\"T\",INDIRECT(ADDRESS(I50,J50+1,4,TRUE,H50)),INDIRECT(ADDRESS(I50,J50+4,4,TRUE,H50))))","v":""},"-",{"$f":"IF(K50=\"\",\"\",IF(RIGHT(G50,1)=\"T\",INDIRECT(ADDRESS(I50+2,J50+1,4,TRUE,H50)),INDIRECT(ADDRESS(I50,J50+4,4,TRUE,H50))))","v":""},{"$f":"IF(K50=\"\",\"\",IF(RIGHT(G50,1)=\"T\",INDIRECT(ADDRESS(I50+2,J50,4,TRUE,H50)),INDIRECT(ADDRESS(I50,J50+4,4,TRUE,H50))))","v":""},{"$f":"IF(K50=\"\",\"\",IF(RIGHT(G50,1)=\"T\",INDIRECT(ADDRESS(I50+1,J50+3,4,TRUE,H50)),INDIRECT(ADDRESS(I50,J50+5,4,TRUE,H50))))","v":""},{"$f":"IF(K50=\"\",\"\",IF(RIGHT(G50,1)=\"T\",INDIRECT(ADDRESS(I50,J50+4,4,TRUE,H50)),INDIRECT(ADDRESS(I50+1,J50+1,4,TRUE,H50))))","v":""},"-",{"$f":"IF(K50=\"\",\"\",IF(RIGHT(G50,1)=\"T\",INDIRECT(ADDRESS(I50+2,J50+4,4,TRUE,H50)),INDIRECT(ADDRESS(I50+1,J50+3,4,TRUE,H50))))","v":""},null,{"$f":"L50&TEXT(A50,\"hh:mm\")","v":"00:00"},{"$f":"P50&TEXT(A50,\"hh:mm\")","v":"00:00"},{"$f":"IF(L50=\"\",0,COUNTIF(PlayersAndHoursCol1,L50&TEXT($A50,\"hh:mm\"))+COUNTIF(PlayersAndHoursCol2,L50&TEXT($A50,\"hh:mm\")))","v":0},{"$f":"IF(P50=\"\",0,COUNTIF(PlayersAndHoursCol1,P50&TEXT($A50,\"hh:mm\"))+COUNTIF(PlayersAndHoursCol2,P50&TEXT($A50,\"hh:mm\")))","v":0},{"$f":"IF(AA50=\"\",FALSE,NOT(AND(ISNA(MATCH(AA50&TEXT($A50,\"hh:mm\"),PlayersAndHoursCol1,0)),ISNA(MATCH(AA50&TEXT($A50,\"hh:mm\"),PlayersAndHoursCol2,0)),COUNTIF(AD:AD,AA50&$A50)<=1)))","v":false},null,null,null,{"$f":"AA50&A50","v":"0"},null,null,null,{"$f":"IF(OR(M50>O50,R50>T50),L50,IF(OR(M50<O50,R50<T50),P50,\"\"))","v":""},{"$f":"IF(AND(M50<>\"\",M50=O50,R50=T50),L50,\"\")","v":""},{"$f":"IF(AND(M50<>\"\",M50=O50,R50=T50),P50,\"\")","v":""},{"$f":"IF(OR(M50<O50,R50<T50),L50,IF(OR(M50>O50,R50>T50),P50,\"\"))","v":""},{"$f":"IF(OR($AB50=\"\",$AB50=\"V\"),\"\",IF(MOD($AB50,10)=1,\"XXX\",\"\"))","v":""},{"$f":"IF(OR($AB50=\"\",$AB50=\"V\"),\"\",IF(MOD($AB50,100)>=10,\"XXX\",\"\"))","v":""},{"$f":"IF(OR($AB50=\"\",$AB50=\"V\"),\"\",IF(MOD($AB50,1000)>=100,\"XXX\",\"\"))","v":""},{"$f":"IF(OR($AB50=\"\",$AB50=\"V\"),\"\",IF(MOD($AB50,10000)>=1000,\"XXX\",\"\"))","v":""},{"$f":"IF(OR($AB50=\"\",$AB50=\"V\"),\"\",IF(MOD($AB50,100000)>=10000,\"XXX\",\"\"))","v":""}]
[{"$f":"A50","v":"00:00:00"},null,{"$f":"C50","v":0},null,null,null,{"$f":"G50&1","v":"TT1"},null,null,null,null,null,null,"-",null,null,null,null,null,null,null,"00:00","00:00",0,0,false,null,null,null,null,null,null,null,{"$f":"IF(OR(M51>O51,R51>T51),L51,IF(OR(M51<O51,R51<T51),P51,\"\"))","v":""},{"$f":"IF(AND(M51<>\"\",M51=O51,R51=T51),L51,\"\")","v":""},{"$f":"IF(AND(M51<>\"\",M51=O51,R51=T51),P51,\"\")","v":""},{"$f":"IF(OR(M51<O51,R51<T51),L51,IF(OR(M51>O51,R51>T51),P51,\"\"))","v":""},"","","","",""]
[{"$f":"A51","v":"00:00:00"},null,{"$f":"C51","v":0},null,null,null,{"$f":"G50&2","v":"TT2"},null,null,null,null,null,null,"-",null,null,null,null,null,null,null,"00:00","00:00",0,0,false,null,null,null,null,null,null,null,{"$f":"IF(OR(M52>O52,R52>T52),L52,IF(OR(M52<O52,R52<T52),P52,\"\"))","v":""},{"$f":"IF(AND(M52<>\"\",M52=O52,R52=T52),L52,\"\")","v":""},{"$f":"IF(AND(M52<>\"\",M52=O52,R52=T52),P52,\"\")","v":""},{"$f":"IF(OR(M52<O52,R52<T52),L52,IF(OR(M52>O52,R52>T52),P52,\"\"))","v":""},"","","","",""]
[{"$f":"A52","v":"00:00:00"},null,{"$f":"C52","v":0},null,null,null,{"$f":"G50&3","v":"TT3"},null,null,null,null,null,null,"-",null,null,null,null,null,null,null,"00:00","00:00",0,0,false,null,null,null,null,null,null,null,{"$f":"IF(OR(M53>O53,R53>T53),L53,IF(OR(M53<O53,R53<T53),P53,\"\"))","v":""},{"$f":"IF(AND(M53<>\"\",M53=O53,R53=T53),L53,\"\")","v":""},{"$f":"IF(AND(M53<>\"\",M53=O53,R53=T53),P53,\"\")","v":""},{"$f":"IF(OR(M53<O53,R53<T53),L53,IF(OR(M53>O53,R53>T53),P53,\"\"))","v":""},"","","","",""]
[{"$f":"A53","v":"00:00:00"},null,{"$f":"C53","v":0},null,null,null,{"$f":"G50&4","v":"TT4"},null,null,null,null,null,null,"-",null,null,null,null,null,null,null,"00:00","00:00",0,0,false,null,null,null,null,null,null,null,{"$f":"IF(OR(M54>O54,R54>T54),L54,IF(OR(M54<O54,R54<T54),P54,\"\"))","v":""},{"$f":"IF(AND(M54<>\"\",M54=O54,R54=T54),L54,\"\")","v":""},{"$f":"IF(AND(M54<>\"\",M54=O54,R54=T54),P54,\"\")","v":""},{"$f":"IF(OR(M54<O54,R54<T54),L54,IF(OR(M54>O54,R54>T54),P54,\"\"))","v":""},"","","","",""]
[{"$f":"A54","v":"00:00:00"},null,null,null,{"$f":"N_Différentiel","v":"Shoot Out"},null,{"$f":"G50&5","v":"TT5"},null,null,null,null,null,null,"-",null,null,null,null,null,null,null,"00:00","00:00",0,0,false,null,null,null,null,null,null,null,null,null,null,null,"","","","",""]
[{"$f":"A50","v":"00:00:00"},null,null,null,{"$f":"N_Substitute","v":"Substitute"},null,{"$f":"G50&\"SB1\"","v":"TTSB1"},null,null,null,null,null,null,null,null,null,null,null,null,null,null,"00:00","00:00",0,0]
[{"$f":"A50","v":"00:00:00"},null,null,null,{"$f":"N_Substitute","v":"Substitute"},null,{"$f":"G50&\"SB2\"","v":"TTSB2"},null,null,null,null,null,null,null,null,null,null,null,null,null,null,"00:00","00:00",0,0]
[]
[{"$f":"OFFSET(A59,-1,0)","v":"00:00:00"},null,null,null,null,null,"DG",{"$f":"IF(K59=\"\",\"\",SUBSTITUTE(MID(K59,1,SEARCH(\"!\",K59,1)-1),\"'\",\"\"))","v":""},{"$f":"IF(K59=\"\",\"\",CELL(\"row\",INDIRECT(K59)))","v":""},{"$f":"IF(K59=\"\",\"\",CELL(\"col\",INDIRECT(K59)))","v":""},{"$f":"MID(Lire_Formule(L59),2,10000)","v":""},null,{"$f":"IF(K59=\"\",\"\",INDIRECT(ADDRESS(I59,J59+1,4,TRUE,H59)))","v":""},"-",{"$f":"IF(K59=\"\",\"\",INDIRECT(ADDRESS(I59,J59+3,4,TRUE,H59)))","v":""},{"$f":"IF(K59=\"\",\"\",IF(RIGHT(G59,1)=\"T\",INDIRECT(ADDRESS(I59+2,J59,4,TRUE,H59)),INDIRECT(ADDRESS(I59,J59+4,4,TRUE,H59))))","v":""},null,{"$f":"IF(M59=\"\",\"\",SUM(M60:M61))","v":""},null,{"$f":"IF(O59=\"\",\"\",SUM(O60:O61))","v":""},null,{"$f":"L59&TEXT(A59,\"hh:mm\")","v":"00:00"},{"$f":"P59&TEXT(A59,\"hh:mm\")","v":"00:00"},{"$f":"IF(L59=\"\",0,COUNTIF(PlayersAndHoursCol1,L59&TEXT($A59,\"hh:mm\"))+COUNTIF(PlayersAndHoursCol2,L59&TEXT($A59,\"hh:mm\")))","v":0},{"$f":"IF(P59=\"\",0,COUNTIF(PlayersAndHoursCol1,P59&TEXT($A59,\"hh:mm\"))+COUNTIF(PlayersAndHoursCol2,P59&TEXT($A59,\"hh:mm\")))","v":0},{"$f":"IF(AA59=\"\",FALSE,NOT(AND(ISNA(MATCH(AA59&TEXT($A59,\"hh:mm\"),PlayersAndHoursCol1,0)),ISNA(MATCH(AA59&TEXT($A59,\"hh:mm\"),PlayersAndHoursCol2,0)),COUNTIF(AD:AD,AA59&$A59)<=1)))","v":false},null,null,null,{"$f":"AA59&A59","v":"0"},null,null,null,{"$f":"IF(OR(M59>O59,R59>T59),L59,IF(OR(M59<O59,R59<T59),P59,\"\"))","v":""},{"$f":"IF(AND(M59<>\"\",M59=O59,R59=T59),L59,\"\")","v":""},{"$f":"IF(AND(M59<>\"\",M59=O59,R59=T59),P59,\"\")","v":""},{"$f":"IF(OR(M59<O59,R59<T59),L59,IF(OR(M59>O59,R59>T59),P59,\"\"))","v":""},{"$f":"IF(OR($AB59=\"\",$AB59=\"V\"),\"\",IF(MOD($AB59,10)=1,\"XXX\",\"\"))","v":""},{"$f":"IF(OR($AB59=\"\",$AB59=\"V\"),\"\",IF(MOD($AB59,100)>=10,\"XXX\",\"\"))","v":""},{"$f":"IF(OR($AB59=\"\",$AB59=\"V\"),\"\",IF(MOD($AB59,1000)>=100,\"XXX\",\"\"))","v":""},{"$f":"IF(OR($AB59=\"\",$AB59=\"V\"),\"\",IF(MOD($AB59,10000)>=1000,\"XXX\",\"\"))","v":""},{"$f":"IF(OR($AB59=\"\",$AB59=\"V\"),\"\",IF(MOD($AB59,100000)>=10000,\"XXX\",\"\"))","v":""}]
[{"$f":"A59","v":"00:00:00"},null,{"$f":"C59","v":0},null,null,null,{"$f":"G59&1","v":"DG1"},null,null,null,null,null,null,"-",null,null,null,null,null,null,null,{"$f":"L60&TEXT(A60,\"hh:mm\")","v":"00:00"},{"$f":"P60&TEXT(A60,\"hh:mm\")","v":"00:00"},{"$f":"IF(L60=\"\",0,COUNTIF(PlayersAndHoursCol1,L60&TEXT($A60,\"hh:mm\"))+COUNTIF(PlayersAndHoursCol2,L60&TEXT($A60,\"hh:mm\")))","v":0},{"$f":"IF(P60=\"\",0,COUNTIF(PlayersAndHoursCol1,P60&TEXT($A60,\"hh:mm\"))+COUNTIF(PlayersAndHoursCol2,P60&TEXT($A60,\"hh:mm\")))","v":0},{"$f":"IF(AA60=\"\",FALSE,NOT(AND(ISNA(MATCH(AA60&TEXT($A60,\"hh:mm\"),PlayersAndHoursCol1,0)),ISNA(MATCH(AA60&TEXT($A60,\"hh:mm\"),PlayersAndHoursCol2,0)),COUNTIF(AD:AD,AA60&$A60)<=1)))","v":false},null,null,null,null,null,null,null,{"$f":"IF(OR(M60>O60,R60>T60),L60,IF(OR(M60<O60,R60<T60),P60,\"\"))","v":""},{"$f":"IF(AND(M60<>\"\",M60=O60,R60=T60),L60,\"\")","v":""},{"$f":"IF(AND(M60<>\"\",M60=O60,R60=T60),P60,\"\")","v":""},{"$f":"IF(OR(M60<O60,R60<T60),L60,IF(OR(M60>O60,R60>T60),P60,\"\"))","v":""},{"$f":"IF(OR($AB60=\"\",$AB60=\"V\"),\"\",IF(MOD($AB60,10)=1,\"XXX\",\"\"))","v":""},{"$f":"IF(OR($AB60=\"\",$AB60=\"V\"),\"\",IF(MOD($AB60,100)>=10,\"XXX\",\"\"))","v":""},{"$f":"IF(OR($AB60=\"\",$AB60=\"V\"),\"\",IF(MOD($AB60,1000)>=100,\"XXX\",\"\"))","v":""},{"$f":"IF(OR($AB60=\"\",$AB60=\"V\"),\"\",IF(MOD($AB60,10000)>=1000,\"XXX\",\"\"))","v":""},{"$f":"IF(OR($AB60=\"\",$AB60=\"V\"),\"\",IF(MOD($AB60,100000)>=10000,\"XXX\",\"\"))","v":""}]
[{"$f":"A60","v":"00:00:00"},null,{"$f":"C60","v":0},null,null,null,{"$f":"G59&2","v":"DG2"},null,null,null,null,null,null,"-",null,null,null,null,null,null,null,{"$f":"L61&TEXT(A61,\"hh:mm\")","v":"00:00"},{"$f":"P61&TEXT(A61,\"hh:mm\")","v":"00:00"},{"$f":"IF(L61=\"\",0,COUNTIF(PlayersAndHoursCol1,L61&TEXT($A61,\"hh:mm\"))+COUNTIF(PlayersAndHoursCol2,L61&TEXT($A61,\"hh:mm\")))","v":0},{"$f":"IF(P61=\"\",0,COUNTIF(PlayersAndHoursCol1,P61&TEXT($A61,\"hh:mm\"))+COUNTIF(PlayersAndHoursCol2,P61&TEXT($A61,\"hh:mm\")))","v":0},{"$f":"IF(AA61=\"\",FALSE,NOT(AND(ISNA(MATCH(AA61&TEXT($A61,\"hh:mm\"),PlayersAndHoursCol1,0)),ISNA(MATCH(AA61&TEXT($A61,\"hh:mm\"),PlayersAndHoursCol2,0)),COUNTIF(AD:AD,AA61&$A61)<=1)))","v":false},null,null,null,null,null,null,null,{"$f":"IF(OR(M61>O61,R61>T61),L61,IF(OR(M61<O61,R61<T61),P61,\"\"))","v":""},{"$f":"IF(AND(M61<>\"\",M61=O61,R61=T61),L61,\"\")","v":""},{"$f":"IF(AND(M61<>\"\",M61=O61,R61=T61),P61,\"\")","v":""},{"$f":"IF(OR(M61<O61,R61<T61),L61,IF(OR(M61>O61,R61>T61),P61,\"\"))","v":""},{"$f":"IF(OR($AB61=\"\",$AB61=\"V\"),\"\",IF(MOD($AB61,10)=1,\"XXX\",\"\"))","v":""},{"$f":"IF(OR($AB61=\"\",$AB61=\"V\"),\"\",IF(MOD($AB61,100)>=10,\"XXX\",\"\"))","v":""},{"$f":"IF(OR($AB61=\"\",$AB61=\"V\"),\"\",IF(MOD($AB61,1000)>=100,\"XXX\",\"\"))","v":""},{"$f":"IF(OR($AB61=\"\",$AB61=\"V\"),\"\",IF(MOD($AB61,10000)>=1000,\"XXX\",\"\"))","v":""},{"$f":"IF(OR($AB61=\"\",$AB61=\"V\"),\"\",IF(MOD($AB61,100000)>=10000,\"XXX\",\"\"))","v":""}]
[]
[{"$f":"OFFSET(A63,-1,0)","v":"00:00:00"},null,null,null,null,null,"DE",{"$f":"IF(K63=\"\",\"\",SUBSTITUTE(MID(K63,1,SEARCH(\"!\",K63,1)-1),\"'\",\"\"))","v":""},{"$f":"IF(K63=\"\",\"\",CELL(\"row\",INDIRECT(K63)))","v":""},{"$f":"IF(K63=\"\",\"\",CELL(\"col\",INDIRECT(K63)))","v":""},{"$f":"MID(Lire_Formule(L63),2,10000)","v":""},null,{"$f":"IF(K63=\"\",\"\",IF(RIGHT(G63,1)=\"T\",INDIRECT(ADDRESS(I63,J63+1,4,TRUE,H63)),INDIRECT(ADDRESS(I63,J63+1,4,TRUE,H63))))","v":""},"-",{"$f":"IF(K63=\"\",\"\",IF(RIGHT(G63,1)=\"T\",INDIRECT(ADDRESS(I63+2,J63+1,4,TRUE,H63)),INDIRECT(ADDRESS(I63,J63+3,4,TRUE,H63))))","v":""},{"$f":"IF(K63=\"\",\"\",IF(RIGHT(G63,1)=\"T\",INDIRECT(ADDRESS(I63+2,J63,4,TRUE,H63)),INDIRECT(ADDRESS(I63,J63+4,4,TRUE,H63))))","v":""},{"$f":"IF(K63=\"\",\"\",IF(RIGHT(G63,1)=\"T\",INDIRECT(ADDRESS(I63+1,J63+3,4,TRUE,H63)),INDIRECT(ADDRESS(I63,J63+5,4,TRUE,H63))))","v":""},{"$f":"IF(K63=\"\",\"\",IF(RIGHT(G63,1)=\"T\",INDIRECT(ADDRESS(I63,J63+4,4,TRUE,H63)),INDIRECT(ADDRESS(I63+1,J63+1,4,TRUE,H63))))","v":""},"-",{"$f":"IF(K63=\"\",\"\",IF(RIGHT(G63,1)=\"T\",INDIRECT(ADDRESS(I63+2,J63+4,4,TRUE,H63)),INDIRECT(ADDRESS(I63+1,J63+3,4,TRUE,H63))))","v":""},null,{"$f":"L63&TEXT(A63,\"hh:mm\")","v":"00:00"},{"$f":"P63&TEXT(A63,\"hh:mm\")","v":"00:00"},{"$f":"IF(L63=\"\",0,COUNTIF(PlayersAndHoursCol1,L63&TEXT($A63,\"hh:mm\"))+COUNTIF(PlayersAndHoursCol2,L63&TEXT($A63,\"hh:mm\")))","v":0},{"$f":"IF(P63=\"\",0,COUNTIF(PlayersAndHoursCol1,P63&TEXT($A63,\"hh:mm\"))+COUNTIF(PlayersAndHoursCol2,P63&TEXT($A63,\"hh:mm\")))","v":0},{"$f":"IF(AA63=\"\",FALSE,NOT(AND(ISNA(MATCH(AA63&TEXT($A63,\"hh:mm\"),PlayersAndHoursCol1,0)),ISNA(MATCH(AA63&TEXT($A63,\"hh:mm\"),PlayersAndHoursCol2,0)),COUNTIF(AD:AD,AA63&$A63)<=1)))","v":false},null,null,null,{"$f":"AA63&A63","v":"0"},null,null,null,{"$f":"IF(OR(M63>O63,R63>T63),L63,IF(OR(M63<O63,R63<T63),P63,\"\"))","v":""},{"$f":"IF(AND(M63<>\"\",M63=O63,R63=T63),L63,\"\")","v":""},{"$f":"IF(AND(M63<>\"\",M63=O63,R63=T63),P63,\"\")","v":""},{"$f":"IF(OR(M63<O63,R63<T63),L63,IF(OR(M63>O63,R63>T63),P63,\"\"))","v":""},{"$f":"IF(OR($AB63=\"\",$AB63=\"V\"),\"\",IF(MOD($AB63,10)=1,\"XXX\",\"\"))","v":""},{"$f":"IF(OR($AB63=\"\",$AB63=\"V\"),\"\",IF(MOD($AB63,100)>=10,\"XXX\",\"\"))","v":""},{"$f":"IF(OR($AB63=\"\",$AB63=\"V\"),\"\",IF(MOD($AB63,1000)>=100,\"XXX\",\"\"))","v":""},{"$f":"IF(OR($AB63=\"\",$AB63=\"V\"),\"\",IF(MOD($AB63,10000)>=1000,\"XXX\",\"\"))","v":""},{"$f":"IF(OR($AB63=\"\",$AB63=\"V\"),\"\",IF(MOD($AB63,100000)>=10000,\"XXX\",\"\"))","v":""}]
[{"$f":"A63","v":"00:00:00"},null,{"$f":"C63","v":0},null,null,null,{"$f":"G63&1","v":"DE1"},null,null,null,null,null,null,"-",null,null,null,null,null,null,null,{"$f":"L64&TEXT(A64,\"hh:mm\")","v":"00:00"},{"$f":"P64&TEXT(A64,\"hh:mm\")","v":"00:00"},{"$f":"IF(L64=\"\",0,COUNTIF(PlayersAndHoursCol1,L64&TEXT($A64,\"hh:mm\"))+COUNTIF(PlayersAndHoursCol2,L64&TEXT($A64,\"hh:mm\")))","v":0},{"$f":"IF(P64=\"\",0,COUNTIF(PlayersAndHoursCol1,P64&TEXT($A64,\"hh:mm\"))+COUNTIF(PlayersAndHoursCol2,P64&TEXT($A64,\"hh:mm\")))","v":0},{"$f":"IF(AA64=\"\",FALSE,NOT(AND(ISNA(MATCH(AA64&TEXT($A64,\"hh:mm\"),PlayersAndHoursCol1,0)),ISNA(MATCH(AA64&TEXT($A64,\"hh:mm\"),PlayersAndHoursCol2,0)),COUNTIF(AD:AD,AA64&$A64)<=1)))","v":false},null,null,null,null,null,null,null,{"$f":"IF(OR(M64>O64,R64>T64),L64,IF(OR(M64<O64,R64<T64),P64,\"\"))","v":""},{"$f":"IF(AND(M64<>\"\",M64=O64,R64=T64),L64,\"\")","v":""},{"$f":"IF(AND(M64<>\"\",M64=O64,R64=T64),P64,\"\")","v":""},{"$f":"IF(OR(M64<O64,R64<T64),L64,IF(OR(M64>O64,R64>T64),P64,\"\"))","v":""},{"$f":"IF(OR($AB64=\"\",$AB64=\"V\"),\"\",IF(MOD($AB64,10)=1,\"XXX\",\"\"))","v":""},{"$f":"IF(OR($AB64=\"\",$AB64=\"V\"),\"\",IF(MOD($AB64,100)>=10,\"XXX\",\"\"))","v":""},{"$f":"IF(OR($AB64=\"\",$AB64=\"V\"),\"\",IF(MOD($AB64,1000)>=100,\"XXX\",\"\"))","v":""},{"$f":"IF(OR($AB64=\"\",$AB64=\"V\"),\"\",IF(MOD($AB64,10000)>=1000,\"XXX\",\"\"))","v":""},{"$f":"IF(OR($AB64=\"\",$AB64=\"V\"),\"\",IF(MOD($AB64,100000)>=10000,\"XXX\",\"\"))","v":""}]
[{"$f":"A64","v":"00:00:00"},null,{"$f":"C64","v":0},null,null,null,{"$f":"G63&2","v":"DE2"},null,null,null,null,null,null,"-",null,null,null,null,null,null,null,{"$f":"L65&TEXT(A65,\"hh:mm\")","v":"00:00"},{"$f":"P65&TEXT(A65,\"hh:mm\")","v":"00:00"},{"$f":"IF(L65=\"\",0,COUNTIF(PlayersAndHoursCol1,L65&TEXT($A65,\"hh:mm\"))+COUNTIF(PlayersAndHoursCol2,L65&TEXT($A65,\"hh:mm\")))","v":0},{"$f":"IF(P65=\"\",0,COUNTIF(PlayersAndHoursCol1,P65&TEXT($A65,\"hh:mm\"))+COUNTIF(PlayersAndHoursCol2,P65&TEXT($A65,\"hh:mm\")))","v":0},{"$f":"IF(AA65=\"\",FALSE,NOT(AND(ISNA(MATCH(AA65&TEXT($A65,\"hh:mm\"),PlayersAndHoursCol1,0)),ISNA(MATCH(AA65&TEXT($A65,\"hh:mm\"),PlayersAndHoursCol2,0)),COUNTIF(AD:AD,AA65&$A65)<=1)))","v":false},null,null,null,null,null,null,null,{"$f":"IF(OR(M65>O65,R65>T65),L65,IF(OR(M65<O65,R65<T65),P65,\"\"))","v":""},{"$f":"IF(AND(M65<>\"\",M65=O65,R65=T65),L65,\"\")","v":""},{"$f":"IF(AND(M65<>\"\",M65=O65,R65=T65),P65,\"\")","v":""},{"$f":"IF(OR(M65<O65,R65<T65),L65,IF(OR(M65>O65,R65>T65),P65,\"\"))","v":""},{"$f":"IF(OR($AB65=\"\",$AB65=\"V\"),\"\",IF(MOD($AB65,10)=1,\"XXX\",\"\"))","v":""},{"$f":"IF(OR($AB65=\"\",$AB65=\"V\"),\"\",IF(MOD($AB65,100)>=10,\"XXX\",\"\"))","v":""},{"$f":"IF(OR($AB65=\"\",$AB65=\"V\"),\"\",IF(MOD($AB65,1000)>=100,\"XXX\",\"\"))","v":""},{"$f":"IF(OR($AB65=\"\",$AB65=\"V\"),\"\",IF(MOD($AB65,10000)>=1000,\"XXX\",\"\"))","v":""},{"$f":"IF(OR($AB65=\"\",$AB65=\"V\"),\"\",IF(MOD($AB65,100000)>=10000,\"XXX\",\"\"))","v":""}]
[{"$f":"A65","v":"00:00:00"},null,null,null,{"$f":"N_Différentiel","v":"Shoot Out"},null,{"$f":"G63&3","v":"DE3"},null,null,null,null,null,null,"-",null,null,null,null,null,null,null,{"$f":"L66&TEXT(A66,\"hh:mm\")","v":"00:00"},{"$f":"P66&TEXT(A66,\"hh:mm\")","v":"00:00"},{"$f":"IF(L66=\"\",0,COUNTIF(PlayersAndHoursCol1,L66&TEXT($A66,\"hh:mm\"))+COUNTIF(PlayersAndHoursCol2,L66&TEXT($A66,\"hh:mm\")))","v":0},{"$f":"IF(P66=\"\",0,COUNTIF(PlayersAndHoursCol1,P66&TEXT($A66,\"hh:mm\"))+COUNTIF(PlayersAndHoursCol2,P66&TEXT($A66,\"hh:mm\")))","v":0},{"$f":"IF(AA66=\"\",FALSE,NOT(AND(ISNA(MATCH(AA66&TEXT($A66,\"hh:mm\"),PlayersAndHoursCol1,0)),ISNA(MATCH(AA66&TEXT($A66,\"hh:mm\"),PlayersAndHoursCol2,0)),COUNTIF(AD:AD,AA66&$A66)<=1)))","v":false},null,null,null,null,null,null,null,null,null,null,null,{"$f":"IF(OR($AB66=\"\",$AB66=\"V\"),\"\",IF(MOD($AB66,10)=1,\"XXX\",\"\"))","v":""},{"$f":"IF(OR($AB66=\"\",$AB66=\"V\"),\"\",IF(MOD($AB66,100)>=10,\"XXX\",\"\"))","v":""},{"$f":"IF(OR($AB66=\"\",$AB66=\"V\"),\"\",IF(MOD($AB66,1000)>=100,\"XXX\",\"\"))","v":""},{"$f":"IF(OR($AB66=\"\",$AB66=\"V\"),\"\",IF(MOD($AB66,10000)>=1000,\"XXX\",\"\"))","v":""},{"$f":"IF(OR($AB66=\"\",$AB66=\"V\"),\"\",IF(MOD($AB66,100000)>=10000,\"XXX\",\"\"))","v":""}]
[]
[{"$f":"OFFSET(A68,-1,0)","v":"00:00:00"},null,null,null,null,null,"DT",{"$f":"IF(K68=\"\",\"\",SUBSTITUTE(MID(K68,1,SEARCH(\"!\",K68,1)-1),\"'\",\"\"))","v":""},{"$f":"IF(K68=\"\",\"\",CELL(\"row\",INDIRECT(K68)))","v":""},{"$f":"IF(K68=\"\",\"\",CELL(\"col\",INDIRECT(K68)))","v":""},{"$f":"MID(Lire_Formule(L68),2,10000)","v":""},null,{"$f":"IF(K68=\"\",\"\",IF(RIGHT(G68,1)=\"T\",INDIRECT(ADDRESS(I68,J68+1,4,TRUE,H68)),INDIRECT(ADDRESS(I68,J68+1,4,TRUE,H68))))","v":""},"-",{"$f":"IF(K68=\"\",\"\",IF(RIGHT(G68,1)=\"T\",INDIRECT(ADDRESS(I68+2,J68+1,4,TRUE,H68)),INDIRECT(ADDRESS(I68,J68+3,4,TRUE,H68))))","v":""},{"$f":"IF(K68=\"\",\"\",IF(RIGHT(G68,1)=\"T\",INDIRECT(ADDRESS(I68+2,J68,4,TRUE,H68)),INDIRECT(ADDRESS(I68,J68+4,4,TRUE,H68))))","v":""},{"$f":"IF(K68=\"\",\"\",IF(RIGHT(G68,1)=\"T\",INDIRECT(ADDRESS(I68+1,J68+3,4,TRUE,H68)),INDIRECT(ADDRESS(I68,J68+5,4,TRUE,H68))))","v":""},{"$f":"IF(K68=\"\",\"\",IF(RIGHT(G68,1)=\"T\",INDIRECT(ADDRESS(I68,J68+4,4,TRUE,H68)),INDIRECT(ADDRESS(I68+1,J68+1,4,TRUE,H68))))","v":""},"-",{"$f":"IF(K68=\"\",\"\",IF(RIGHT(G68,1)=\"T\",INDIRECT(ADDRESS(I68+2,J68+4,4,TRUE,H68)),INDIRECT(ADDRESS(I68+1,J68+3,4,TRUE,H68))))","v":""},null,{"$f":"L68&A68","v":"0"},{"$f":"P68&A68","v":"0"},{"$f":"IF(L68=\"\",0,COUNTIF(PlayersAndHoursCol1,L68&$A68)+COUNTIF(PlayersAndHoursCol2,L68&$A68))","v":0},{"$f":"IF(P68=\"\",0,COUNTIF(PlayersAndHoursCol1,P68&$A68)+COUNTIF(PlayersAndHoursCol2,P68&$A68))","v":0},{"$f":"IF(AA68=\"\",FALSE,NOT(AND(ISNA(MATCH(AA68&TEXT($A68,\"hh:mm\"),PlayersAndHoursCol1,0)),ISNA(MATCH(AA68&TEXT($A68,\"hh:mm\"),PlayersAndHoursCol2,0)),COUNTIF(AD:AD,AA68&$A68)<=1)))","v":false},null,null,null,{"$f":"AA68&A68","v":"0"},null,null,null,{"$f":"IF(OR(M68>O68,R68>T68),L68,IF(OR(M68<O68,R68<T68),P68,\"\"))","v":""},{"$f":"IF(AND(M68<>\"\",M68=O68,R68=T68),L68,\"\")","v":""},{"$f":"IF(AND(M68<>\"\",M68=O68,R68=T68),P68,\"\")","v":""},{"$f":"IF(OR(M68<O68,R68<T68),L68,IF(OR(M68>O68,R68>T68),P68,\"\"))","v":""},{"$f":"IF(OR($AB68=\"\",$AB68=\"V\"),\"\",IF(MOD($AB68,10)=1,\"XXX\",\"\"))","v":""},{"$f":"IF(OR($AB68=\"\",$AB68=\"V\"),\"\",IF(MOD($AB68,100)>=10,\"XXX\",\"\"))","v":""},{"$f":"IF(OR($AB68=\"\",$AB68=\"V\"),\"\",IF(MOD($AB68,1000)>=100,\"XXX\",\"\"))","v":""},{"$f":"IF(OR($AB68=\"\",$AB68=\"V\"),\"\",IF(MOD($AB68,10000)>=1000,\"XXX\",\"\"))","v":""},{"$f":"IF(OR($AB68=\"\",$AB68=\"V\"),\"\",IF(MOD($AB68,100000)>=10000,\"XXX\",\"\"))","v":""}]
[{"$f":"A68","v":"00:00:00"},null,{"$f":"C68","v":0},null,null,null,{"$f":"G68&1","v":"DT1"},null,null,null,null,null,null,"-",null,null,null,null,null,null,null,{"$f":"L69&A68","v":"0"},{"$f":"P69&A68","v":"0"},{"$f":"IF(L69=\"\",0,COUNTIF(PlayersAndHoursCol1,L69&$A69)+COUNTIF(PlayersAndHoursCol2,L69&$A69))","v":0},{"$f":"IF(P69=\"\",0,COUNTIF(PlayersAndHoursCol1,P69&$A69)+COUNTIF(PlayersAndHoursCol2,P69&$A69))","v":0},{"$f":"IF(AA69=\"\",FALSE,NOT(AND(ISNA(MATCH(AA69&TEXT($A69,\"hh:mm\"),PlayersAndHoursCol1,0)),ISNA(MATCH(AA69&TEXT($A69,\"hh:mm\"),PlayersAndHoursCol2,0)),COUNTIF(AD:AD,AA69&$A69)<=1)))","v":false},null,null,null,null,null,null,null,{"$f":"IF(OR(M69>O69,R69>T69),L69,IF(OR(M69<O69,R69<T69),P69,\"\"))","v":""},{"$f":"IF(AND(M69<>\"\",M69=O69,R69=T69),L69,\"\")","v":""},{"$f":"IF(AND(M69<>\"\",M69=O69,R69=T69),P69,\"\")","v":""},{"$f":"IF(OR(M69<O69,R69<T69),L69,IF(OR(M69>O69,R69>T69),P69,\"\"))","v":""},{"$f":"IF(OR($AB69=\"\",$AB69=\"V\"),\"\",IF(MOD($AB69,10)=1,\"XXX\",\"\"))","v":""},{"$f":"IF(OR($AB69=\"\",$AB69=\"V\"),\"\",IF(MOD($AB69,100)>=10,\"XXX\",\"\"))","v":""},{"$f":"IF(OR($AB69=\"\",$AB69=\"V\"),\"\",IF(MOD($AB69,1000)>=100,\"XXX\",\"\"))","v":""},{"$f":"IF(OR($AB69=\"\",$AB69=\"V\"),\"\",IF(MOD($AB69,10000)>=1000,\"XXX\",\"\"))","v":""},{"$f":"IF(OR($AB69=\"\",$AB69=\"V\"),\"\",IF(MOD($AB69,100000)>=10000,\"XXX\",\"\"))","v":""}]
[{"$f":"A69","v":"00:00:00"},null,{"$f":"C69","v":0},null,null,null,{"$f":"G68&2","v":"DT2"},null,null,null,null,null,null,"-",null,null,null,null,null,null,null,{"$f":"L70&A68","v":"0"},{"$f":"P70&A68","v":"0"},{"$f":"IF(L70=\"\",0,COUNTIF(PlayersAndHoursCol1,L70&$A70)+COUNTIF(PlayersAndHoursCol2,L70&$A70))","v":0},{"$f":"IF(P70=\"\",0,COUNTIF(PlayersAndHoursCol1,P70&$A70)+COUNTIF(PlayersAndHoursCol2,P70&$A70))","v":0},{"$f":"IF(AA70=\"\",FALSE,NOT(AND(ISNA(MATCH(AA70&TEXT($A70,\"hh:mm\"),PlayersAndHoursCol1,0)),ISNA(MATCH(AA70&TEXT($A70,\"hh:mm\"),PlayersAndHoursCol2,0)),COUNTIF(AD:AD,AA70&$A70)<=1)))","v":false},null,null,null,null,null,null,null,{"$f":"IF(OR(M70>O70,R70>T70),L70,IF(OR(M70<O70,R70<T70),P70,\"\"))","v":""},{"$f":"IF(AND(M70<>\"\",M70=O70,R70=T70),L70,\"\")","v":""},{"$f":"IF(AND(M70<>\"\",M70=O70,R70=T70),P70,\"\")","v":""},{"$f":"IF(OR(M70<O70,R70<T70),L70,IF(OR(M70>O70,R70>T70),P70,\"\"))","v":""},{"$f":"IF(OR($AB70=\"\",$AB70=\"V\"),\"\",IF(MOD($AB70,10)=1,\"XXX\",\"\"))","v":""},{"$f":"IF(OR($AB70=\"\",$AB70=\"V\"),\"\",IF(MOD($AB70,100)>=10,\"XXX\",\"\"))","v":""},{"$f":"IF(OR($AB70=\"\",$AB70=\"V\"),\"\",IF(MOD($AB70,1000)>=100,\"XXX\",\"\"))","v":""},{"$f":"IF(OR($AB70=\"\",$AB70=\"V\"),\"\",IF(MOD($AB70,10000)>=1000,\"XXX\",\"\"))","v":""},{"$f":"IF(OR($AB70=\"\",$AB70=\"V\"),\"\",IF(MOD($AB70,100000)>=10000,\"XXX\",\"\"))","v":""}]
[{"$f":"A70","v":"00:00:00"},null,null,null,{"$f":"N_Différentiel","v":"Shoot Out"},null,{"$f":"G68&3","v":"DT3"},null,null,null,null,null,null,"-",null,null,null,null,null,null,null,{"$f":"L71&A68","v":"0"},{"$f":"P71&A68","v":"0"},{"$f":"IF(L71=\"\",0,COUNTIF(PlayersAndHoursCol1,L71&$A71)+COUNTIF(PlayersAndHoursCol2,L71&$A71))","v":0},{"$f":"IF(P71=\"\",0,COUNTIF(PlayersAndHoursCol1,P71&$A71)+COUNTIF(PlayersAndHoursCol2,P71&$A71))","v":0},{"$f":"IF(AA71=\"\",FALSE,NOT(AND(ISNA(MATCH(AA71&TEXT($A71,\"hh:mm\"),PlayersAndHoursCol1,0)),ISNA(MATCH(AA71&TEXT($A71,\"hh:mm\"),PlayersAndHoursCol2,0)),COUNTIF(AD:AD,AA71&$A71)<=1)))","v":false},null,null,null,null,null,null,null,null,null,null,null,{"$f":"IF(OR($AB71=\"\",$AB71=\"V\"),\"\",IF(MOD($AB71,10)=1,\"XXX\",\"\"))","v":""},{"$f":"IF(OR($AB71=\"\",$AB71=\"V\"),\"\",IF(MOD($AB71,100)>=10,\"XXX\",\"\"))","v":""},{"$f":"IF(OR($AB71=\"\",$AB71=\"V\"),\"\",IF(MOD($AB71,1000)>=100,\"XXX\",\"\"))","v":""},{"$f":"IF(OR($AB71=\"\",$AB71=\"V\"),\"\",IF(MOD($AB71,10000)>=1000,\"XXX\",\"\"))","v":""},{"$f":"IF(OR($AB71=\"\",$AB71=\"V\"),\"\",IF(MOD($AB71,100000)>=10000,\"XXX\",\"\"))","v":""}]
[]
[{"$f":"N_End_Planning","v":"END OF PLANNING"}]
[{"$f":"N_Insert_above","v":"Insert lines above this area"}]

{"sheet":"ExportScorerTableModel","index":16,"n_rows":27,"n_cols":27,"rows_kept":27,"cut":false,"hidden":true,"merged":[[28,0,28,26],[29,0,29,26],[1,17,1,19],[1,12,1,14]]}
["Table de Marque"]
["Heure",null,"Stade de l'épreuve",null,"N° de table",null,null,null,null,null,null,"Joueur N° 1","Scores",null,null,"Joueur N° 2","MS","Différentiel",null,null,null,null,null,null,null,null,"Arbitre"]
[]
[null,null,null,null,null,null,"IG",null,null,null,null,null,null,"-"]
[null,null,null,null,null,null,"IE",null,null,null,null,null,null,"-"]
[null,null,null,null,null,null,"TG",{"$f":"IF(K6=\"\",\"\",SUBSTITUTE(MID(K6,1,SEARCH(\"!\",K6,1)-1),\"'\",\"\"))","v":""},{"$f":"IF(K6=\"\",\"\",CELL(\"ligne\",INDIRECT(K6)))","v":""},{"$f":"IF(K6=\"\",\"\",CELL(\"colonne\",INDIRECT(K6)))","v":""},{"$f":"MID(Lire_Formule(L6),2,10000)","v":""},null,null,"-",null,null,null,null,null,null,null,{"$f":"L6&A6","v":""},{"$f":"P6&A6","v":""},{"$f":"IF(L6=\"\",0,COUNTIF(PlayersAndHoursCol1,L6&$A6)+COUNTIF(PlayersAndHoursCol2,L6&$A6))","v":0},{"$f":"IF(P6=\"\",0,COUNTIF(PlayersAndHoursCol1,P6&$A6)+COUNTIF(PlayersAndHoursCol2,P6&$A6))","v":0},{"$f":"IF(AA6=\"\",FALSE,NOT(AND(ISNA(MATCH(AA6&A6,PlayersAndHoursCol1,0)),ISNA(MATCH(AA6&A6,PlayersAndHoursCol2,0)),COUNTIF(#REF!,AA6&A6)<=1)))","v":false}]
[{"$f":"A6","v":"00:00:00"},null,null,null,null,null,{"$f":"G6&1","v":"TG1"},null,null,null,null,null,null,"-",null,null,null,null,null,null,null,{"$f":"L7&A6","v":""},{"$f":"P7&A6","v":""},0,0,{"$f":"IF(AA7=\"\",FALSE,NOT(AND(ISNA(MATCH(AA7&A6,PlayersAndHoursCol1,0)),ISNA(MATCH(AA7&A6,PlayersAndHoursCol2,0)))))","v":false}]
[{"$f":"A7","v":"00:00:00"},null,null,null,null,null,{"$f":"G6&2","v":"TG2"},null,null,null,null,null,null,"-",null,null,null,null,null,null,null,{"$f":"L8&A6","v":""},{"$f":"P8&A6","v":""},0,0,{"$f":"IF(AA8=\"\",FALSE,NOT(AND(ISNA(MATCH(AA8&A6,PlayersAndHoursCol1,0)),ISNA(MATCH(AA8&A6,PlayersAndHoursCol2,0)))))","v":false}]
[{"$f":"A8","v":"00:00:00"},null,null,null,null,null,{"$f":"G6&3","v":"TG3"},null,null,null,null,null,null,"-",null,null,null,null,null,null,null,{"$f":"L9&A6","v":""},{"$f":"P9&A6","v":""},0,0,{"$f":"IF(AA9=\"\",FALSE,NOT(AND(ISNA(MATCH(AA9&A6,PlayersAndHoursCol1,0)),ISNA(MATCH(AA9&A6,PlayersAndHoursCol2,0)))))","v":false}]
[{"$f":"A9","v":"00:00:00"},null,null,null,null,null,{"$f":"G6&4","v":"TG4"},null,null,null,null,null,null,"-",null,null,null,null,null,null,null,{"$f":"L10&A20","v":""},{"$f":"P10&A20","v":""},0,0,{"$f":"IF(AA10=\"\",FALSE,NOT(AND(ISNA(MATCH(AA10&A20,PlayersAndHoursCol1,0)),ISNA(MATCH(AA10&A20,PlayersAndHoursCol2,0)))))","v":false}]
[{"$f":"A10","v":"00:00:00"},null,null,null,{"$f":"N_Substitute","v":"Substitute"},null,{"$f":"G6&\"SB1\"","v":"TGSB1"},null,null,null,null,null,null,null,null,null,null,null,null,null,null,{"$f":"L11&A20","v":""},{"$f":"P11&A20","v":""},0,0,{"$f":"IF(AA11=\"\",FALSE,NOT(AND(ISNA(MATCH(AA11&A20,PlayersAndHoursCol1,0)),ISNA(MATCH(AA11&A20,PlayersAndHoursCol2,0)))))","v":false}]
[{"$f":"A6","v":"00:00:00"},null,null,null,{"$f":"N_Substitute","v":"Substitute"},null,{"$f":"G6&\"SB2\"","v":"TGSB2"},null,null,null,null,null,null,null,null,null,null,null,null,null,null,{"$f":"L12&A6","v":""},{"$f":"P12&A6","v":""},0,0,{"$f":"IF(AA12=\"\",FALSE,NOT(AND(ISNA(MATCH(AA12&A6,PlayersAndHoursCol1,0)),ISNA(MATCH(AA12&A6,PlayersAndHoursCol2,0)))))","v":false}]
[]
[]
[]
[]
[]
[]
[]
[]
[null,null,null,null,null,null,"TG",{"$f":"IF(K21=\"\",\"\",SUBSTITUTE(MID(K21,1,SEARCH(\"!\",K21,1)-1),\"'\",\"\"))","v":""},{"$f":"IF(K21=\"\",\"\",CELL(\"ligne\",INDIRECT(K21)))","v":""},{"$f":"IF(K21=\"\",\"\",CELL(\"colonne\",INDIRECT(K21)))","v":""},{"$f":"MID(Lire_Formule(L21),2,10000)","v":""},null,null,"-",null,null,null,null,null,null,null,{"$f":"L21&A21","v":""},{"$f":"P21&A21","v":""},{"$f":"IF(L21=\"\",0,COUNTIF(PlayersAndHoursCol1,L21&$A21)+COUNTIF(PlayersAndHoursCol2,L21&$A21))","v":0},{"$f":"IF(P21=\"\",0,COUNTIF(PlayersAndHoursCol1,P21&$A21)+COUNTIF(PlayersAndHoursCol2,P21&$A21))","v":0},{"$f":"IF(AA21=\"\",FALSE,NOT(AND(ISNA(MATCH(AA21&A21,PlayersAndHoursCol1,0)),ISNA(MATCH(AA21&A21,PlayersAndHoursCol2,0)),COUNTIF(#REF!,AA21&A21)<=1)))","v":false}]
[{"$f":"A21","v":"00:00:00"},null,null,null,null,null,{"$f":"G21&1","v":"TG1"},null,null,null,null,null,null,"-",null,null,null,null,null,null,null,{"$f":"L22&A21","v":""},{"$f":"P22&A21","v":""},0,0,{"$f":"IF(AA22=\"\",FALSE,NOT(AND(ISNA(MATCH(AA22&A21,PlayersAndHoursCol1,0)),ISNA(MATCH(AA22&A21,PlayersAndHoursCol2,0)))))","v":false}]
[{"$f":"A22","v":"00:00:00"},null,null,null,null,null,{"$f":"G21&2","v":"TG2"},null,null,null,null,null,null,"-",null,null,null,null,null,null,null,{"$f":"L23&A21","v":""},{"$f":"P23&A21","v":""},0,0,{"$f":"IF(AA23=\"\",FALSE,NOT(AND(ISNA(MATCH(AA23&A21,PlayersAndHoursCol1,0)),ISNA(MATCH(AA23&A21,PlayersAndHoursCol2,0)))))","v":false}]
[null,null,null,null,null,null,"TE",{"$f":"IF(K24=\"\",\"\",SUBSTITUTE(MID(K24,1,SEARCH(\"!\",K24,1)-1),\"'\",\"\"))","v":""},{"$f":"IF(K24=\"\",\"\",CELL(\"ligne\",INDIRECT(K24)))","v":""},{"$f":"IF(K24=\"\",\"\",CELL(\"colonne\",INDIRECT(K24)))","v":""},{"$f":"MID(Lire_Formule(L24),2,10000)","v":""},null,null,null,null,null,null,null,null,null,null,{"$f":"L24&A24","v":""},{"$f":"P24&A24","v":""},0,0,{"$f":"IF(AA24=\"\",FALSE,NOT(AND(ISNA(MATCH(AA24&A24,PlayersAndHoursCol1,0)),ISNA(MATCH(AA24&A24,PlayersAndHoursCol2,0)),COUNTIF(#REF!,AA24&A24)<=1)))","v":false}]
[{"$f":"A24","v":"00:00:00"},null,null,null,null,null,{"$f":"G24&1","v":"TE1"},null,null,null,null,null,null,"-",null,null,null,null,null,null,null,{"$f":"L25&A24","v":""},{"$f":"P25&A24","v":""},0,0,{"$f":"IF(AA25=\"\",FALSE,NOT(AND(ISNA(MATCH(AA25&A24,PlayersAndHoursCol1,0)),ISNA(MATCH(AA25&A24,PlayersAndHoursCol2,0)))))","v":false}]
[{"$f":"A25","v":"00:00:00"},null,null,null,null,null,{"$f":"G24&2","v":"TE2"},null,null,null,null,null,null,"-",null,null,null,null,null,null,null,{"$f":"L26&A24","v":""},{"$f":"P26&A24","v":""},0,0,{"$f":"IF(AA26=\"\",FALSE,NOT(AND(ISNA(MATCH(AA26&A24,PlayersAndHoursCol1,0)),ISNA(MATCH(AA26&A24,PlayersAndHoursCol2,0)))))","v":false}]
[{"$f":"A26","v":"00:00:00"},null,null,null,{"$f":"N_Différentiel","v":"Shoot Out"},null,{"$f":"G24&3","v":"TE3"},null,null,null,null,null,null,"-",null,null,null,null,null,null,null,{"$f":"L27&A24","v":""},{"$f":"P27&A24","v":""},0,0,{"$f":"IF(AA27=\"\",FALSE,NOT(AND(ISNA(MATCH(AA27&A24,PlayersAndHoursCol1,0)),ISNA(MATCH(AA27&A24,PlayersAndHoursCol2,0)))))","v":false}]

{"sheet":"ExportPlanningModel","index":17,"n_rows":34,"n_cols":12,"rows_kept":34,"cut":false,"hidden":true,"merged":[[7,0,7,11],[6,0,6,11]]}
[]
[]
[]
[null,null,null,null,null,null,{"$f":"Tournament_Title & \" Timetable\"","v":"<FEDERATION> <Event Name><YYYY> - <Location> - <Individuals/Teams> Competition Timetable"}]
[{"$f":"N_Row","v":"Row"},{"$f":"N_Heure","v":"Time"},{"$f":"N_Category","v":"Category"},{"$f":"N_Stade_Epreuve","v":"Stage"},{"$f":"N_Group","v":"Group"},{"$f":"N_Round","v":"Rd"},{"$f":"N_Round","v":"Rd"},{"$f":"N_N__de_table","v":"Table N°"},{"$f":"N_Player1","v":"Player 1"},"-",{"$f":"N_Player2","v":"Player 2"},{"$f":"N_Arbitre","v":"Referee"}]
[null,null,null,null,null,null,{"$f":"IF(GetStage=\"=N_Groups\",\"G\"&E6&\"/R\"&F6,IF(LEFT(GetStage,6)=\"=N__1_\",\"L\"&2*MID(GetStage,7,LEN(GetStage)-16),IF(GetStage=\"=N_BARRAGES\",\"BR\",IF(GetStage=\"=N_QUART_DE_FINALE\", \"QF\",IF(GetStage=\"=N_DEMI_FINALE\",\"SF\",IF(GetStage=\"=N_FINALE\",\"F\",\"\"))))))","v":""},null,null,"-"]
[]
[]
[]
[]
[]
[null,"You may change colors, lines & columns sizes, scoresheet disposition but you must respect followings. Especially, all following names must exists in this worksheet."]
[null,"Mandatory zones :"]
[null,"Don't modify the Three first lines !"]
[]
[null,"Click to check the current zone"]
[]
[null,"ExpPlanning_Header",null,null,null,null,null,null,"Header lines for Planning - must be entire lines"]
[null,"ExportPlanningHeader",null,null,null,null,null,null,"Match header line - must be entire line"]
[null,"ExportPlanningMatch",null,null,null,null,null,null,"Match line - must be entire line"]
[null,"ExportPlanningBreak",null,null,null,null,null,null,"Break line between sessions - must be entire line"]
[null,"ExportPlanningFooter",null,null,null,null,null,null,"Planning footer - must be entire line"]
[null,"ExportPlanning_Session",null,null,null,null,null,null,"Session N° cell"]
[null,"ExportPlanning_Time",null,null,null,null,null,null,"Time cell"]
[null,"ExportPlanning_Category",null,null,null,null,null,null,"Category cell : this cell will have the same color background as the orginal sheet label"]
[null,"ExportPlanning_Stage",null,null,null,null,null,null,"Stage cell"]
[null,"ExportPlanning_Group",null,null,null,null,null,null,"Group N° for group Stage"]
[null,"ExportPlanning_Round",null,null,null,null,null,null,"Round N° for group Stage"]
[null,"ExportPlanning_Table",null,null,null,null,null,null,"Table N°"]
[null,"ExportPlanning_Player1",null,null,null,null,null,null,"Player1/Team1 name"]
[null,"ExportPlanning_Player2",null,null,null,null,null,null,"Player2/Team2 name"]
[null,"ExportPlanning_Referee",null,null,null,null,null,null,"Referee Player/Team"]
[]
[null,"You can use formula in non nominated cells of a match line. These formula will be copy/paste. They must refer to cells in the same line with relative addesses (ex. \"E6\") and not names like \"ExportPlanning_Group\". For example, you can hide columns containing Stage, Group and Round named cells and make a new column with a cell containing formula to concatenate these 3 informations. \nYou can use the name \"GetStage\" to analyse the formula of the ExportPlanning_Stage cell.\nAs an example you can use this kind of formula : =IF(GetStage=\"=N_Groups\";\"G\"&E6&\"/R\"&F6;IF(LEFT(GetStage;6)=\"=N__1_\";\"L\"&2*STXT(GetStage;7;NBCAR(GetStage)-16);IF(GetStage=\"N_BARRAGES\";\"BR\";IF(GetStage=\"=N_QUART_DE_FINALE\"; \"QF\";IF(GetStage=\"=N_DEMI_FINALE\";\"SF\";IF(GetStage=\"=N_FINALE\";\"F\";\"\"))))))"]

{"sheet":"Ind Groups","index":18,"n_rows":1992,"n_cols":80,"rows_kept":1992,"cut":false,"hidden":true,"merged":[]}
[null,null,null,{"$f":"Event1","v":"Open"}]
[null,null,null,"Individuals",null,null,null,null,null,null,null,null,null,null,null,null,null,null,null,null,null,{"$f":"SHEETNAME(A1)","v":"Ind Groups"}]
[null,null,true]
[null,{"$f":"N_Group_3","v":"Group of 3"},null,null,null,null,null,null,null,null,null,null,null,null,null,null,null,null,null,null,null,null,null,null,null,null,null,null,null,null,null,null,null,null,null,null,null,null,{"$f":"B4","v":"Group of 3"},null,null,null,null,null,null,null,null,null,null,null,null,null,null,null,null,null,null,null,null,null,null,null,null,null,null,null,null,null,null,null,null,null,null,null,null,null,null,"Hidden columns for conditionnal formats => don't modify"]
[]
[null,{"$f":"N_Tirage","v":"Draw"},"Cla.","Cla1","Part","Cla2",{"$f":"N_Joueurs","v":"Players"},{"$f":"N_RankPoints","v":"Rk Pt."},{"$f":"N_Diff_Part","v":"Part-Diff"},{"$f":"N_Pts","v":"Pts"},{"$f":"N_J","v":"Pld"},{"$f":"N_G","v":"W"},{"$f":"N_N","v":"D"},{"$f":"N_P","v":"L"},{"$f":"N_BP","v":"F"},{"$f":"N_BC","v":"A"},{"$f":"N_Diff.","v":"SO"},null,{"$f":"N_Heure","v":"Time"},{"$f":"N_Table","v":"Table"},{"$f":"N_Arbitre","v":"Referee"},{"$f":"N_Matches","v":"Matches"},null,null,null,null,null,{"$f":"IF(MaxScore,N_MaxScore,\"\")","v":"Max Score"},null,null,{"$f":"N_G","v":"W"},{"$f":"N_N","v":"D"},{"$f":"N_N","v":"D"},{"$f":"N_P","v":"L"},"CONCAT","Ref Group",{"$f":"IF(COUNTA(W7:W9)=0,\"\",\"OK\")","v":""},null,null,{"$f":"N_Cla.","v":"Rk"},{"$f":"N_Joueurs","v":"Players"},{"$f":"N_Pts","v":"Pts"},{"$f":"N_J","v":"Pld"},{"$f":"N_G","v":"W"},{"$f":"N_N","v":"D"},{"$f":"N_P","v":"L"},{"$f":"N_BP","v":"F"},{"$f":"N_BC","v":"A"},{"$f":"N_Diff.","v":"SO"},{"$f":"N_Matches","v":"Matches"}]
[null,1,{"$f":"IF(AK6=\"\",\"\",RANK(F7,F7:F9)*1000+ROW())","v":""},{"$f":"IF(L7=\"\",\"\",CritClassInd1_Points*J7+CritClassInd1_Matches*L7+CritClassInd1_Attaque*O7+CritClassInd1_DiffButs*Q7)","v":""},{"$f":"IF(L7=\"\",\"\",Nb_Diff_Part(D7,D7:D9,G7,G7:G9,AI7:AI9)*CritClassInd_DiffPart+Nb_Goal_Part(D7,D7:D9,G7,G7:G9,V7:Z9)*CritClassInd_GoalPart+Nb_Score_Part(D7,D7:D9,G7,G7:G9,V7:Z9)*CritClassInd_ScorePart)","v":""},{"$f":"IF(L7=\"\",\"\",D7+E7+CritClassInd2_Points*J7+CritClassInd2_Matches*L7+CritClassInd2_Attaque*O7+CritClassInd2_DiffButs*Q7+CritClassInd_Ranking*H7+I7)","v":""},"A1",{"$f":"GMFTRANKINGPOINTS(G7,Particular_Category)","v":0},null,{"$f":"IF(AK6=\"\",\"\",(L7*Points_Victoire)+M7*Points_Null)","v":""},{"$f":"IF(L7=\"\",\"\",SUM(L7:N7))","v":""},{"$f":"IF(AK6=\"\",\"\",COUNTIF(AE7:AE9,G7))","v":""},{"$f":"IF(AK6=\"\",\"\",COUNTIF(AF7:AG9,G7))","v":""},{"$f":"IF(AK6=\"\",\"\",COUNTIF(AH7:AH9,G7))","v":""},{"$f":"IF(AK6=\"\",\"\",SUMIF(V7:V9,G7,AB7:AB9)+SUMIF(Z7:Z9,G7,AD7:AD9))","v":""},{"$f":"IF(AK6=\"\",\"\",SUMIF(V7:V9,G7,AD7:AD9)+SUMIF(Z7:Z9,G7,AB7:AB9))","v":""},{"$f":"IF(AK6=\"\",\"\",O7-P7)","v":""},"#G1",null,null,null,{"$f":"IF(COUNTA(G7:G9) =3,GMFTGROUPORDERIND(G7:G9,V7:V9,Z7:Z9),\"\")","v":"A3"},null,"-",null,{"$f":"IF(COUNTA(G7:G9) =3,GMFTGROUPORDERIND(G7:G9,V7:V9,Z7:Z9),\"\")","v":"A1"},null,{"$f":"IF(MaxScore,MaxGoals(W7,Y7,MaxGoalsValue),IF(W7=\"\",\"\",W7))","v":0},{"$f":"IF(MaxScore,\"-\",IF(W7=\"\",\"\",\"-\"))","v":"-"},{"$f":"IF(MaxScore,MaxGoals(Y7,W7,MaxGoalsValue),IF(Y7=\"\",\"\",Y7))","v":0},{"$f":"IF(W7=\"\",\"\",IF(W7>Y7,V7,IF(W7=Y7,\"\",Z7)))","v":""},{"$f":"IF(W7=\"\",\"\",IF(W7=Y7,V7,\"\"))","v":""},{"$f":"IF(W7=\"\",\"\",IF(W7=Y7,Z7,\"\"))","v":""},{"$f":"IF(W7=\"\",\"\",IF(W7<Y7,V7,IF(W7=Y7,\"\",Z7)))","v":""},{"$f":"CONCATENATE(AE7,AH7)","v":""},null,{"$f":"IF(AK6=\"\",\"\",SMALL(C7:C9,1))","v":""},null,null,{"$f":"IF(AK6=\"\",\"\",INT(AK7/1000))","v":""},{"$f":"IF(AK6=\"\",IF(HidePlayerFormulas,\"\",\"(\"&G7&\")\"),VLOOKUP(AK7,C7:Q9,5,FALSE))","v":""},{"$f":"VLOOKUP(AK7,$C7:$Q9,8,FALSE)","v":""},{"$f":"VLOOKUP(AK7,$C7:$Q9,9,FALSE)","v":""},{"$f":"VLOOKUP(AK7,$C7:$Q9,10,FALSE)","v":""},{"$f":"VLOOKUP(AK7,$C7:$Q9,11,FALSE)","v":""},{"$f":"VLOOKUP(AK7,$C7:$Q9,12,FALSE)","v":""},{"$f":"VLOOKUP(AK7,$C7:$Q9,13,FALSE)","v":""},{"$f":"VLOOKUP(AK7,$C7:$Q9,14,FALSE)","v":""},{"$f":"VLOOKUP(AK7,$C7:$Q9,15,FALSE)","v":""},{"$f":"IF(W7=\"\",\"\",IF(AO7=V7,W7,IF(AO7=Z7,Y7,\"\")))","v":""},{"$f":"IF(W8=\"\",\"\",IF(AO7=V8,W8,IF(AO7=Z8,Y8,\"\")))","v":""},{"$f":"IF(W9=\"\",\"\",IF(AO7=V9,W9,IF(AO7=Z9,Y9,\"\")))","v":""},null,null,null,null,null,null,null,null,null,null,null,null,null,null,null,null,null,null,null,null,null,null,null,null,null,{"$f":"IF(G7=\"[---WithDraw---]\",FALSE,IF(COUNTIF(PlayerNamesWithinGroups,G7)>1,TRUE,FALSE))","v":true},{"$f":"AND(LEFT($AO7,1) = \"(\", RIGHT($AO7,1) =\")\")","v":false},{"$f":"IF(OR($AN7=$AN6,$AN7=$AN8),TRUE,FALSE)","v":true}]
[null,2,{"$f":"IF(AK6=\"\",\"\",RANK(F8,F7:F9)*1000+ROW())","v":""},{"$f":"IF(L8=\"\",\"\",CritClassInd1_Points*J8+CritClassInd1_Matches*L8+CritClassInd1_Attaque*O8+CritClassInd1_DiffButs*Q8)","v":""},{"$f":"IF(L8=\"\",\"\",Nb_Diff_Part(D8,D7:D9,G8,G7:G9,AI7:AI9)*CritClassInd_DiffPart+Nb_Goal_Part(D8,D7:D9,G8,G7:G9,V7:Z9)*CritClassInd_GoalPart+Nb_Score_Part(D8,D7:D9,G8,G7:G9,V7:Z9)*CritClassInd_ScorePart)","v":""},{"$f":"IF(L8=\"\",\"\",D8+E8+CritClassInd2_Points*J8+CritClassInd2_Matches*L8+CritClassInd2_Attaque*O8+CritClassInd2_DiffButs*Q8+CritClassInd_Ranking*H8+I8)","v":""},"A2",{"$f":"GMFTRANKINGPOINTS(G8,Particular_Category)","v":0},null,{"$f":"IF(AK6=\"\",\"\",(L8*Points_Victoire)+M8*Points_Null)","v":""},{"$f":"IF(L8=\"\",\"\",SUM(L8:N8))","v":""},{"$f":"IF(AK6=\"\",\"\",COUNTIF(AE7:AE9,G8))","v":""},{"$f":"IF(AK6=\"\",\"\",COUNTIF(AF7:AG9,G8))","v":""},{"$f":"IF(AK6=\"\",\"\",COUNTIF(AH7:AH9,G8))","v":""},{"$f":"IF(AK6=\"\",\"\",SUMIF(V7:V9,G8,AB7:AB9)+SUMIF(Z7:Z9,G8,AD7:AD9))","v":""},{"$f":"IF(AK6=\"\",\"\",SUMIF(V7:V9,G8,AD7:AD9)+SUMIF(Z7:Z9,G8,AB7:AB9))","v":""},{"$f":"IF(AK6=\"\",\"\",O8-P8)","v":""},"#G2",null,null,null,{"$f":"IF(COUNTA(G7:G9) =3,GMFTGROUPORDERIND(G7:G9,V7:V9,Z7:Z9),\"\")","v":"A2"},null,"-",null,{"$f":"IF(COUNTA(G7:G9) =3,GMFTGROUPORDERIND(G7:G9,V7:V9,Z7:Z9),\"\")","v":"A3"},null,{"$f":"IF(MaxScore,MaxGoals(W8,Y8,MaxGoalsValue),IF(W8=\"\",\"\",W8))","v":0},{"$f":"IF(MaxScore,\"-\",IF(W8=\"\",\"\",\"-\"))","v":"-"},{"$f":"IF(MaxScore,MaxGoals(Y8,W8,MaxGoalsValue),IF(Y8=\"\",\"\",Y8))","v":0},{"$f":"IF(W8=\"\",\"\",IF(W8>Y8,V8,IF(W8=Y8,\"\",Z8)))","v":""},{"$f":"IF(W8=\"\",\"\",IF(W8=Y8,V8,\"\"))","v":""},{"$f":"IF(W8=\"\",\"\",IF(W8=Y8,Z8,\"\"))","v":""},{"$f":"IF(W8=\"\",\"\",IF(W8<Y8,V8,IF(W8=Y8,\"\",Z8)))","v":""},{"$f":"CONCATENATE(AE8,AH8)","v":""},null,{"$f":"IF(AK6=\"\",\"\",SMALL(C7:C9,2))","v":""},null,null,{"$f":"IF(AK6=\"\",\"\",INT(AK8/1000))","v":""},{"$f":"IF(AK6=\"\",IF(HidePlayerFormulas,\"\",\"(\"&G8&\")\"),VLOOKUP(AK8,C7:Q9,5,FALSE))","v":""},{"$f":"VLOOKUP(AK8,$C7:$Q9,8,FALSE)","v":""},{"$f":"VLOOKUP(AK8,$C7:$Q9,9,FALSE)","v":""},{"$f":"VLOOKUP(AK8,$C7:$Q9,10,FALSE)","v":""},{"$f":"VLOOKUP(AK8,$C7:$Q9,11,FALSE)","v":""},{"$f":"VLOOKUP(AK8,$C7:$Q9,12,FALSE)","v":""},{"$f":"VLOOKUP(AK8,$C7:$Q9,13,FALSE)","v":""},{"$f":"VLOOKUP(AK8,$C7:$Q9,14,FALSE)","v":""},{"$f":"VLOOKUP(AK8,$C7:$Q9,15,FALSE)","v":""},{"$f":"IF(W7=\"\",\"\",IF(AO8=V7,W7,IF(AO8=Z7,Y7,\"\")))","v":""},{"$f":"IF(W8=\"\",\"\",IF(AO8=V8,W8,IF(AO8=Z8,Y8,\"\")))","v":""},{"$f":"IF(W9=\"\",\"\",IF(AO8=V9,W9,IF(AO8=Z9,Y9,\"\")))","v":""},null,null,null,null,null,null,null,null,null,null,null,null,null,null,null,null,null,null,null,null,null,null,null,null,null,{"$f":"IF(G8=\"[---WithDraw---]\",FALSE,IF(COUNTIF(PlayerNamesWithinGroups,G8)>1,TRUE,FALSE))","v":true},{"$f":"AND(LEFT($AO8,1) = \"(\", RIGHT($AO8,1) =\")\")","v":false},{"$f":"IF(OR($AN8=$AN7,$AN8=$AN9),TRUE,FALSE)","v":true}]
[null,3,{"$f":"IF(AK6=\"\",\"\",RANK(F9,F7:F9)*1000+ROW())","v":""},{"$f":"IF(L9=\"\",\"\",CritClassInd1_Points*J9+CritClassInd1_Matches*L9+CritClassInd1_Attaque*O9+CritClassInd1_DiffButs*Q9)","v":""},{"$f":"IF(L9=\"\",\"\",Nb_Diff_Part(D9,D7:D9,G9,G7:G9,AI7:AI9)*CritClassInd_DiffPart+Nb_Goal_Part(D9,D7:D9,G9,G7:G9,V7:Z9)*CritClassInd_GoalPart+Nb_Score_Part(D9,D7:D9,G9,G7:G9,V7:Z9)*CritClassInd_ScorePart)","v":""},{"$f":"IF(L9=\"\",\"\",D9+E9+CritClassInd2_Points*J9+CritClassInd2_Matches*L9+CritClassInd2_Attaque*O9+CritClassInd2_DiffButs*Q9+CritClassInd_Ranking*H9+I9)","v":""},"A3",{"$f":"GMFTRANKINGPOINTS(G9,Particular_Category)","v":0},null,{"$f":"IF(AK6=\"\",\"\",(L9*Points_Victoire)+M9*Points_Null)","v":""},{"$f":"IF(L9=\"\",\"\",SUM(L9:N9))","v":""},{"$f":"IF(AK6=\"\",\"\",COUNTIF(AE7:AE9,G9))","v":""},{"$f":"IF(AK6=\"\",\"\",COUNTIF(AF7:AG9,G9))","v":""},{"$f":"IF(AK6=\"\",\"\",COUNTIF(AH7:AH9,G9))","v":""},{"$f":"IF(AK6=\"\",\"\",SUMIF(V7:V9,G9,AB7:AB9)+SUMIF(Z7:Z9,G9,AD7:AD9))","v":""},{"$f":"IF(AK6=\"\",\"\",SUMIF(V7:V9,G9,AD7:AD9)+SUMIF(Z7:Z9,G9,AB7:AB9))","v":""},{"$f":"IF(AK6=\"\",\"\",O9-P9)","v":""},"#G3",null,null,null,{"$f":"IF(COUNTA(G7:G9) =3,GMFTGROUPORDERIND(G7:G9,V7:V9,Z7:Z9),\"\")","v":"A1"},null,"-",null,{"$f":"IF(COUNTA(G7:G9) =3,GMFTGROUPORDERIND(G7:G9,V7:V9,Z7:Z9),\"\")","v":"A2"},null,{"$f":"IF(MaxScore,MaxGoals(W9,Y9,MaxGoalsValue),IF(W9=\"\",\"\",W9))","v":0},{"$f":"IF(MaxScore,\"-\",IF(W9=\"\",\"\",\"-\"))","v":"-"},{"$f":"IF(MaxScore,MaxGoals(Y9,W9,MaxGoalsValue),IF(Y9=\"\",\"\",Y9))","v":0},{"$f":"IF(W9=\"\",\"\",IF(W9>Y9,V9,IF(W9=Y9,\"\",Z9)))","v":""},{"$f":"IF(W9=\"\",\"\",IF(W9=Y9,V9,\"\"))","v":""},{"$f":"IF(W9=\"\",\"\",IF(W9=Y9,Z9,\"\"))","v":""},{"$f":"IF(W9=\"\",\"\",IF(W9<Y9,V9,IF(W9=Y9,\"\",Z9)))","v":""},{"$f":"CONCATENATE(AE9,AH9)","v":""},null,{"$f":"IF(AK6=\"\",\"\",SMALL(C7:C9,3))","v":""},null,null,{"$f":"IF(AK6=\"\",\"\",INT(AK9/1000))","v":""},{"$f":"IF(AK6=\"\",IF(HidePlayerFormulas,\"\",\"(\"&G9&\")\"),VLOOKUP(AK9,C7:Q9,5,FALSE))","v":""},{"$f":"VLOOKUP(AK9,$C7:$Q9,8,FALSE)","v":""},{"$f":"VLOOKUP(AK9,$C7:$Q9,9,FALSE)","v":""},{"$f":"VLOOKUP(AK9,$C7:$Q9,10,FALSE)","v":""},{"$f":"VLOOKUP(AK9,$C7:$Q9,11,FALSE)","v":""},{"$f":"VLOOKUP(AK9,$C7:$Q9,12,FALSE)","v":""},{"$f":"VLOOKUP(AK9,$C7:$Q9,13,FALSE)","v":""},{"$f":"VLOOKUP(AK9,$C7:$Q9,14,FALSE)","v":""},{"$f":"VLOOKUP(AK9,$C7:$Q9,15,FALSE)","v":""},{"$f":"IF(W7=\"\",\"\",IF(AO9=V7,W7,IF(AO9=Z7,Y7,\"\")))","v":""},{"$f":"IF(W8=\"\",\"\",IF(AO9=V8,W8,IF(AO9=Z8,Y8,\"\")))","v":""},{"$f":"IF(W9=\"\",\"\",IF(AO9=V9,W9,IF(AO9=Z9,Y9,\"\")))","v":""},null,null,null,null,null,null,null,null,null,null,null,null,null,null,null,null,null,null,null,null,null,null,null,null,null,{"$f":"IF(G9=\"[---WithDraw---]\",FALSE,IF(COUNTIF(PlayerNamesWithinGroups,G9)>1,TRUE,FALSE))","v":true},{"$f":"AND(LEFT($AO9,1) = \"(\", RIGHT($AO9,1) =\")\")","v":false},{"$f":"IF(OR($AN9=$AN8,$AN9=$AN10),TRUE,FALSE)","v":true}]
[]
[]
[null,{"$f":"N_Group_3_2Leg","v":"Group of 3 with first/second leg"},null,null,null,null,null,null,null,null,null,null,null,null,null,null,null,null,null,null,null,null,null,null,null,null,null,null,null,null,null,null,null,null,null,null,null,null,{"$f":"B12","v":"Group of 3 with first/second leg"}]
[]
[null,{"$f":"N_Tirage","v":"Draw"},"Cla.","Cla1","Part","Cla2",{"$f":"N_Joueurs","v":"Players"},{"$f":"N_RankPoints","v":"Rk Pt."},{"$f":"N_Diff_Part","v":"Part-Diff"},{"$f":"N_Pts","v":"Pts"},{"$f":"N_J","v":"Pld"},{"$f":"N_G","v":"W"},{"$f":"N_N","v":"D"},{"$f":"N_P","v":"L"},{"$f":"N_BP","v":"F"},{"$f":"N_BC","v":"A"},{"$f":"N_Diff.","v":"SO"},null,{"$f":"N_Heure","v":"Time"},{"$f":"N_Table","v":"Table"},{"$f":"N_Arbitre","v":"Referee"},{"$f":"N_Matches","v":"Matches"},null,null,null,null,null,{"$f":"IF(MaxScore,N_MaxScore,\"\")","v":"Max Score"},null,null,{"$f":"N_G","v":"W"},{"$f":"N_N","v":"D"},{"$f":"N_N","v":"D"},{"$f":"N_P","v":"L"},"CONCAT","Ref Group",{"$f":"IF(COUNTA(W15:W20)=0,\"\",\"OK\")","v":""},null,null,{"$f":"N_Cla.","v":"Rk"},{"$f":"N_Joueurs","v":"Players"},{"$f":"N_Pts","v":"Pts"},{"$f":"N_J","v":"Pld"},{"$f":"N_G","v":"W"},{"$f":"N_N","v":"D"},{"$f":"N_P","v":"L"},{"$f":"N_BP","v":"F"},{"$f":"N_BC","v":"A"},{"$f":"N_Diff.","v":"SO"},{"$f":"N_Matches","v":"Matches"}]
[null,1,{"$f":"IF(AK14=\"\",\"\",RANK(F15,F15:F17)*1000+ROW())","v":""},{"$f":"IF(L15=\"\",\"\",CritClassInd1_Points*J15+CritClassInd1_Matches*L15+CritClassInd1_Attaque*O15+CritClassInd1_DiffButs*Q15)","v":""},{"$f":"IF(L15=\"\",\"\",Nb_Diff_Part(D15,D15:D17,G15,G15:G17,AI15:AI20)*CritClassInd_DiffPart+Nb_Goal_Part(D15,D15:D17,G15,G15:G17,V15:Z20)*CritClassInd_GoalPart+Nb_Score_Part(D15,D15:D17,G15,G15:G17,V15:Z20)*CritClassInd_ScorePart)","v":""},{"$f":"IF(L15=\"\",\"\",D15+E15+CritClassInd2_Points*J15+CritClassInd2_Matches*L15+CritClassInd2_Attaque*O15+CritClassInd2_DiffButs*Q15+CritClassInd_Ranking*H15+I15)","v":""},"A1",{"$f":"GMFTRANKINGPOINTS(G15,Particular_Category)","v":0},null,{"$f":"IF(AK14=\"\",\"\",(L15*Points_Victoire)+M15*Points_Null)","v":""},{"$f":"IF(L15=\"\",\"\",SUM(L15:N15))","v":""},{"$f":"IF(AK14=\"\",\"\",COUNTIF(AE15:AE20,G15))","v":""},{"$f":"IF(AK14=\"\",\"\",COUNTIF(AF15:AG20,G15))","v":""},{"$f":"IF(AK14=\"\",\"\",COUNTIF(AH15:AH20,G15))","v":""},{"$f":"IF(AK14=\"\",\"\",SUMIF(V15:V20,G15,AB15:AB20)+SUMIF(Z15:Z20,G15,AD15:AD20))","v":""},{"$f":"IF(AK14=\"\",\"\",SUMIF(V15:V20,G15,AD15:AD20)+SUMIF(Z15:Z20,G15,AB15:AB20))","v":""},{"$f":"IF(AK14=\"\",\"\",O15-P15)","v":""},"#G1",null,null,null,{"$f":"IF(COUNTA(G15:G17) =3,GMFTGROUPORDERIND(G15:G17,V15:V17,Z15:Z17),\"\")","v":"A3"},null,"-",null,{"$f":"IF(COUNTA(G15:G17) =3,GMFTGROUPORDERIND(G15:G17,V15:V17,Z15:Z17),\"\")","v":"A1"},null,{"$f":"IF(MaxScore,MaxGoals(W15,Y15,MaxGoalsValue),IF(W15=\"\",\"\",W15))","v":0},{"$f":"IF(MaxScore,\"-\",IF(W15=\"\",\"\",\"-\"))","v":"-"},{"$f":"IF(MaxScore,MaxGoals(Y15,W15,MaxGoalsValue),IF(Y15=\"\",\"\",Y15))","v":0},{"$f":"IF(W15=\"\",\"\",IF(W15>Y15,V15,IF(W15=Y15,\"\",Z15)))","v":""},{"$f":"IF(W15=\"\",\"\",IF(W15=Y15,V15,\"\"))","v":""},{"$f":"IF(W15=\"\",\"\",IF(W15=Y15,Z15,\"\"))","v":""},{"$f":"IF(W15=\"\",\"\",IF(W15<Y15,V15,IF(W15=Y15,\"\",Z15)))","v":""},{"$f":"CONCATENATE(AE15,AH15)","v":""},null,{"$f":"IF(AK14=\"\",\"\",SMALL(C15:C17,1))","v":""},null,null,{"$f":"IF(AK14=\"\",\"\",INT(AK15/1000))","v":""},{"$f":"IF(AK14=\"\",IF(HidePlayerFormulas,\"\",\"(\"&G15&\")\"),VLOOKUP(AK15,C15:Q17,5,FALSE))","v":""},{"$f":"VLOOKUP(AK15,$C15:$Q17,8,FALSE)","v":""},{"$f":"VLOOKUP(AK15,$C15:$Q17,9,FALSE)","v":""},{"$f":"VLOOKUP(AK15,$C15:$Q17,10,FALSE)","v":""},{"$f":"VLOOKUP(AK15,$C15:$Q17,11,FALSE)","v":""},{"$f":"VLOOKUP(AK15,$C15:$Q17,12,FALSE)","v":""},{"$f":"VLOOKUP(AK15,$C15:$Q17,13,FALSE)","v":""},{"$f":"VLOOKUP(AK15,$C15:$Q17,14,FALSE)","v":""},{"$f":"VLOOKUP(AK15,$C15:$Q17,15,FALSE)","v":""},{"$f":"IF(W15=\"\",\"\",IF(AO15=V15,W15,IF(AO15=Z15,Y15,\"\")))","v":""},{"$f":"IF(W16=\"\",\"\",IF(AO15=V16,W16,IF(AO15=Z16,Y16,\"\")))","v":""},{"$f":"IF(W17=\"\",\"\",IF(AO15=V17,W17,IF(AO15=Z17,Y17,\"\")))","v":""},{"$f":"IF(W18=\"\",\"\",IF(AO15=V18,W18,IF(AO15=Z18,Y18,\"\")))","v":""},{"$f":"IF(W19=\"\",\"\",IF(AO15=V19,W19,IF(AO15=Z19,Y19,\"\")))","v":""},{"$f":"IF(W20=\"\",\"\",IF(AO15=V20,W20,IF(AO15=Z20,Y20,\"\")))","v":""},null,null,null,null,null,null,null,null,null,null,null,null,null,null,null,null,null,null,null,null,null,null,{"$f":"IF(G15=\"[---WithDraw---]\",FALSE,IF(COUNTIF(PlayerNamesWithinGroups,G15)>1,TRUE,FALSE))","v":true},{"$f":"AND(LEFT($AO15,1) = \"(\", RIGHT($AO15,1) =\")\")","v":false},{"$f":"IF(OR($AN15=$AN14,$AN15=$AN16),TRUE,FALSE)","v":true}]
[null,2,{"$f":"IF(AK14=\"\",\"\",RANK(F16,F15:F17)*1000+ROW())","v":""},{"$f":"IF(L16=\"\",\"\",CritClassInd1_Points*J16+CritClassInd1_Matches*L16+CritClassInd1_Attaque*O16+CritClassInd1_DiffButs*Q16)","v":""},{"$f":"IF(L16=\"\",\"\",Nb_Diff_Part(D16,D15:D17,G16,G15:G17,AI15:AI20)*CritClassInd_DiffPart+Nb_Goal_Part(D16,D15:D17,G16,G15:G17,V15:Z20)*CritClassInd_GoalPart+Nb_Score_Part(D16,D15:D17,G16,G15:G17,V15:Z20)*CritClassInd_ScorePart)","v":""},{"$f":"IF(L16=\"\",\"\",D16+E16+CritClassInd2_Points*J16+CritClassInd2_Matches*L16+CritClassInd2_Attaque*O16+CritClassInd2_DiffButs*Q16+CritClassInd_Ranking*H16+I16)","v":""},"A2",{"$f":"GMFTRANKINGPOINTS(G16,Particular_Category)","v":0},null,{"$f":"IF(AK14=\"\",\"\",(L16*Points_Victoire)+M16*Points_Null)","v":""},{"$f":"IF(L16=\"\",\"\",SUM(L16:N16))","v":""},{"$f":"IF(AK14=\"\",\"\",COUNTIF(AE15:AE20,G16))","v":""},{"$f":"IF(AK14=\"\",\"\",COUNTIF(AF15:AG20,G16))","v":""},{"$f":"IF(AK14=\"\",\"\",COUNTIF(AH15:AH20,G16))","v":""},{"$f":"IF(AK14=\"\",\"\",SUMIF(V15:V20,G16,AB15:AB20)+SUMIF(Z15:Z20,G16,AD15:AD20))","v":""},{"$f":"IF(AK14=\"\",\"\",SUMIF(V15:V20,G16,AD15:AD20)+SUMIF(Z15:Z20,G16,AB15:AB20))","v":""},{"$f":"IF(AK14=\"\",\"\",O16-P16)","v":""},"#G2",null,null,null,{"$f":"IF(COUNTA(G15:G17) =3,GMFTGROUPORDERIND(G15:G17,V15:V17,Z15:Z17),\"\")","v":"A2"},null,"-",null,{"$f":"IF(COUNTA(G15:G17) =3,GMFTGROUPORDERIND(G15:G17,V15:V17,Z15:Z17),\"\")","v":"A3"},null,0,"-",0,"","","","","",null,{"$f":"IF(AK14=\"\",\"\",SMALL(C15:C17,2))","v":""},null,null,{"$f":"IF(AK14=\"\",\"\",INT(AK16/1000))","v":""},{"$f":"IF(AK14=\"\",IF(HidePlayerFormulas,\"\",\"(\"&G16&\")\"),VLOOKUP(AK16,C15:Q17,5,FALSE))","v":""},{"$f":"VLOOKUP(AK16,$C15:$Q17,8,FALSE)","v":""},{"$f":"VLOOKUP(AK16,$C15:$Q17,9,FALSE)","v":""},{"$f":"VLOOKUP(AK16,$C15:$Q17,10,FALSE)","v":""},{"$f":"VLOOKUP(AK16,$C15:$Q17,11,FALSE)","v":""},{"$f":"VLOOKUP(AK16,$C15:$Q17,12,FALSE)","v":""},{"$f":"VLOOKUP(AK16,$C15:$Q17,13,FALSE)","v":""},{"$f":"VLOOKUP(AK16,$C15:$Q17,14,FALSE)","v":""},{"$f":"VLOOKUP(AK16,$C15:$Q17,15,FALSE)","v":""},{"$f":"IF(W15=\"\",\"\",IF(AO16=V15,W15,IF(AO16=Z15,Y15,\"\")))","v":""},{"$f":"IF(W16=\"\",\"\",IF(AO16=V16,W16,IF(AO16=Z16,Y16,\"\")))","v":""},{"$f":"IF(W17=\"\",\"\",IF(AO16=V17,W17,IF(AO16=Z17,Y17,\"\")))","v":""},{"$f":"IF(W18=\"\",\"\",IF(AO16=V18,W18,IF(AO16=Z18,Y18,\"\")))","v":""},{"$f":"IF(W19=\"\",\"\",IF(AO16=V19,W19,IF(AO16=Z19,Y19,\"\")))","v":""},{"$f":"IF(W20=\"\",\"\",IF(AO16=V20,W20,IF(AO16=Z20,Y20,\"\")))","v":""},null,null,null,null,null,null,null,null,null,null,null,null,null,null,null,null,null,null,null,null,null,null,{"$f":"IF(G16=\"[---WithDraw---]\",FALSE,IF(COUNTIF(PlayerNamesWithinGroups,G16)>1,TRUE,FALSE))","v":true},{"$f":"AND(LEFT($AO16,1) = \"(\", RIGHT($AO16,1) =\")\")","v":false},{"$f":"IF(OR($AN16=$AN15,$AN16=$AN17),TRUE,FALSE)","v":true}]
[null,3,{"$f":"IF(AK14=\"\",\"\",RANK(F17,F15:F17)*1000+ROW())","v":""},{"$f":"IF(L17=\"\",\"\",CritClassInd1_Points*J17+CritClassInd1_Matches*L17+CritClassInd1_Attaque*O17+CritClassInd1_DiffButs*Q17)","v":""},{"$f":"IF(L17=\"\",\"\",Nb_Diff_Part(D17,D15:D17,G17,G15:G17,AI15:AI20)*CritClassInd_DiffPart+Nb_Goal_Part(D17,D15:D17,G17,G15:G17,V15:Z20)*CritClassInd_GoalPart+Nb_Score_Part(D17,D15:D17,G17,G15:G17,V15:Z20)*CritClassInd_ScorePart)","v":""},{"$f":"IF(L17=\"\",\"\",D17+E17+CritClassInd2_Points*J17+CritClassInd2_Matches*L17+CritClassInd2_Attaque*O17+CritClassInd2_DiffButs*Q17+CritClassInd_Ranking*H17+I17)","v":""},"A3",{"$f":"GMFTRANKINGPOINTS(G17,Particular_Category)","v":0},null,{"$f":"IF(AK14=\"\",\"\",(L17*Points_Victoire)+M17*Points_Null)","v":""},{"$f":"IF(L17=\"\",\"\",SUM(L17:N17))","v":""},{"$f":"IF(AK14=\"\",\"\",COUNTIF(AE15:AE20,G17))","v":""},{"$f":"IF(AK14=\"\",\"\",COUNTIF(AF15:AG20,G17))","v":""},{"$f":"IF(AK14=\"\",\"\",COUNTIF(AH15:AH20,G17))","v":""},{"$f":"IF(AK14=\"\",\"\",SUMIF(V15:V20,G17,AB15:AB18)+SUMIF(Z15:Z18,G17,AD15:AD18))","v":""},{"$f":"IF(AK14=\"\",\"\",SUMIF(V15:V20,G17,AD15:AD20)+SUMIF(Z15:Z20,G17,AB15:AB20))","v":""},{"$f":"IF(AK14=\"\",\"\",O17-P17)","v":""},"#G3",null,null,null,{"$f":"IF(COUNTA(G15:G17) =3,GMFTGROUPORDERIND(G15:G17,V15:V17,Z15:Z17),\"\")","v":"A1"},null,"-",null,{"$f":"IF(COUNTA(G15:G17) =3,GMFTGROUPORDERIND(G15:G17,V15:V17,Z15:Z17),\"\")","v":"A2"},null,0,"-",0,"","","","","",null,{"$f":"IF(AK14=\"\",\"\",SMALL(C15:C17,3))","v":""},null,null,{"$f":"IF(AK14=\"\",\"\",INT(AK17/1000))","v":""},{"$f":"IF(AK14=\"\",IF(HidePlayerFormulas,\"\",\"(\"&G17&\")\"),VLOOKUP(AK17,C15:Q17,5,FALSE))","v":""},{"$f":"VLOOKUP(AK17,$C15:$Q17,8,FALSE)","v":""},{"$f":"VLOOKUP(AK17,$C15:$Q17,9,FALSE)","v":""},{"$f":"VLOOKUP(AK17,$C15:$Q17,10,FALSE)","v":""},{"$f":"VLOOKUP(AK17,$C15:$Q17,11,FALSE)","v":""},{"$f":"VLOOKUP(AK17,$C15:$Q17,12,FALSE)","v":""},{"$f":"VLOOKUP(AK17,$C15:$Q17,13,FALSE)","v":""},{"$f":"VLOOKUP(AK17,$C15:$Q17,14,FALSE)","v":""},{"$f":"VLOOKUP(AK17,$C15:$Q17,15,FALSE)","v":""},{"$f":"IF(W15=\"\",\"\",IF(AO17=V15,W15,IF(AO17=Z15,Y15,\"\")))","v":""},{"$f":"IF(W16=\"\",\"\",IF(AO17=V16,W16,IF(AO17=Z16,Y16,\"\")))","v":""},{"$f":"IF(W17=\"\",\"\",IF(AO17=V17,W17,IF(AO17=Z17,Y17,\"\")))","v":""},{"$f":"IF(W18=\"\",\"\",IF(AO17=V18,W18,IF(AO17=Z18,Y18,\"\")))","v":""},{"$f":"IF(W19=\"\",\"\",IF(AO17=V19,W19,IF(AO17=Z19,Y19,\"\")))","v":""},{"$f":"IF(W20=\"\",\"\",IF(AO17=V20,W20,IF(AO17=Z20,Y20,\"\")))","v":""},null,null,null,null,null,null,null,null,null,null,null,null,null,null,null,null,null,null,null,null,null,null,{"$f":"IF(G17=\"[---WithDraw---]\",FALSE,IF(COUNTIF(PlayerNamesWithinGroups,G17)>1,TRUE,FALSE))","v":true},{"$f":"AND(LEFT($AO17,1) = \"(\", RIGHT($AO17,1) =\")\")","v":false},{"$f":"IF(OR($AN17=$AN16,$AN17=$AN18),TRUE,FALSE)","v":true}]
[null,null,null,null,null,null,null,null,null,null,null,null,null,null,null,null,null,"#G4",null,null,null,{"$f":"IF(COUNTA(G15:G17) =3,GMFTGROUPORDERIND(G15:G17,V18:V20,Z18:Z20),\"\")","v":"A3"},null,"-",null,{"$f":"IF(COUNTA(G15:G17) =3,GMFTGROUPORDERIND(G15:G17,V18:V20,Z18:Z20),\"\")","v":"A1"},null,0,"-",0,"","","","",""]
[null,null,null,null,null,null,null,null,null,null,null,null,null,null,null,null,null,"#G5",null,null,null,{"$f":"IF(COUNTA(G15:G17) =3,GMFTGROUPORDERIND(G15:G17,V18:V20,Z18:Z20),\"\")","v":"A2"},null,"-",null,{"$f":"IF(COUNTA(G15:G17) =3,GMFTGROUPORDERIND(G15:G17,V18:V20,Z18:Z20),\"\")","v":"A3"},null,0,"-",0,"","","","",""]
[null,null,null,null,null,null,null,null,null,null,null,null,null,null,null,null,null,"#G6",null,null,null,{"$f":"IF(COUNTA(G15:G17) =3,GMFTGROUPORDERIND(G15:G17,V18:V20,Z18:Z20),\"\")","v":"A1"},null,"-",null,{"$f":"IF(COUNTA(G15:G17) =3,GMFTGROUPORDERIND(G15:G17,V18:V20,Z18:Z20),\"\")","v":"A2"},null,0,"-",0,"","","","",""]
[]
[]
[null,{"$f":"N_Group_4","v":"Group of 4"},null,null,null,null,null,null,null,null,null,null,null,null,null,null,null,null,null,null,null,null,null,null,null,null,null,null,null,null,null,null,null,null,null,null,null,null,{"$f":"B23","v":"Group of 4"}]
[]
[null,{"$f":"N_Tirage","v":"Draw"},"Cla.","Cla1","Part","Cla2",{"$f":"N_Joueurs","v":"Players"},{"$f":"N_RankPoints","v":"Rk Pt."},{"$f":"N_Diff_Part","v":"Part-Diff"},{"$f":"N_Pts","v":"Pts"},{"$f":"N_J","v":"Pld"},{"$f":"N_G","v":"W"},{"$f":"N_N","v":"D"},{"$f":"N_P","v":"L"},{"$f":"N_BP","v":"F"},{"$f":"N_BC","v":"A"},{"$f":"N_Diff.","v":"SO"},null,{"$f":"N_Heure","v":"Time"},{"$f":"N_Table","v":"Table"},{"$f":"N_Arbitre","v":"Referee"},{"$f":"N_Matches","v":"Matches"},null,null,null,null,null,{"$f":"IF(MaxScore,N_MaxScore,\"\")","v":"Max Score"},null,null,{"$f":"N_G","v":"W"},{"$f":"N_N","v":"D"},{"$f":"N_N","v":"D"},{"$f":"N_P","v":"L"},"CONCAT","Ref Group",{"$f":"IF(COUNTA(W26:W31)=0,\"\",\"OK\")","v":""},null,null,{"$f":"N_Cla.","v":"Rk"},{"$f":"N_Joueurs","v":"Players"},{"$f":"N_Pts","v":"Pts"},{"$f":"N_J","v":"Pld"},{"$f":"N_G","v":"W"},{"$f":"N_N","v":"D"},{"$f":"N_P","v":"L"},{"$f":"N_BP","v":"F"},{"$f":"N_BC","v":"A"},{"$f":"N_Diff.","v":"SO"},{"$f":"N_Matches","v":"Matches"}]
[null,1,{"$f":"IF(AK25=\"\",\"\",RANK(F26,F26:F29)*1000+ROW())","v":""},{"$f":"IF(L26=\"\",\"\",CritClassInd1_Points*J26+CritClassInd1_Matches*L26+CritClassInd1_Attaque*O26+CritClassInd1_DiffButs*Q26)","v":""},{"$f":"IF(L26=\"\",\"\",Nb_Diff_Part(D26,D26:D29,G26,G26:G29,AI26:AI31)*CritClassInd_DiffPart+Nb_Goal_Part(D26,D26:D29,G26,G26:G29,V26:Z31)*CritClassInd_GoalPart+Nb_Score_Part(D26,D26:D29,G26,G26:G29,V26:Z31)*CritClassInd_ScorePart)","v":""},{"$f":"IF(L26=\"\",\"\",D26+E26+CritClassInd2_Points*J26+CritClassInd2_Matches*L26+CritClassInd2_Attaque*O26+CritClassInd2_DiffButs*Q26+CritClassInd_Ranking*H26+I26)","v":""},"A1",{"$f":"GMFTRANKINGPOINTS(G26,Particular_Category)","v":0},null,{"$f":"IF(AK25=\"\",\"\",(L26*Points_Victoire)+M26*Points_Null)","v":""},{"$f":"IF(L26=\"\",\"\",SUM(L26:N26))","v":""},{"$f":"IF(AK25=\"\",\"\",COUNTIF(AE26:AE31,G26))","v":""},{"$f":"IF(AK25=\"\",\"\",COUNTIF(AF26:AG31,G26))","v":""},{"$f":"IF(AK25=\"\",\"\",COUNTIF(AH26:AH31,G26))","v":""},{"$f":"IF(AK25=\"\",\"\",SUMIF(V26:V31,G26,AB26:AB31)+SUMIF(Z26:Z31,G26,AD26:AD31))","v":""},{"$f":"IF(AK25=\"\",\"\",SUMIF(V26:V31,G26,AD26:AD31)+SUMIF(Z26:Z31,G26,AB26:AB31))","v":""},{"$f":"IF(AK25=\"\",\"\",O26-P26)","v":""},"#G1",null,null,null,{"$f":"IF(COUNTA(G26:G29) =4,GMFTGROUPORDERIND(G26:G29,V26:V31,Z26:Z31),\"\")","v":"A1"},null,"-",null,{"$f":"IF(COUNTA(G26:G29) =4,GMFTGROUPORDERIND(G26:G29,V26:V31,Z26:Z31),\"\")","v":"A4"},null,{"$f":"IF(MaxScore,MaxGoals(W26,Y26,MaxGoalsValue),IF(W26=\"\",\"\",W26))","v":0},{"$f":"IF(MaxScore,\"-\",IF(W26=\"\",\"\",\"-\"))","v":"-"},{"$f":"IF(MaxScore,MaxGoals(Y26,W26,MaxGoalsValue),IF(Y26=\"\",\"\",Y26))","v":0},{"$f":"IF(W26=\"\",\"\",IF(W26>Y26,V26,IF(W26=Y26,\"\",Z26)))","v":""},{"$f":"IF(W26=\"\",\"\",IF(W26=Y26,V26,\"\"))","v":""},{"$f":"IF(W26=\"\",\"\",IF(W26=Y26,Z26,\"\"))","v":""},{"$f":"IF(W26=\"\",\"\",IF(W26<Y26,V26,IF(W26=Y26,\"\",Z26)))","v":""},{"$f":"CONCATENATE(AE26,AH26)","v":""},null,{"$f":"IF(AK25=\"\",\"\",SMALL(C26:C29,1))","v":""},null,null,{"$f":"IF(AK25=\"\",\"\",INT(AK26/1000))","v":""},{"$f":"IF(AK25=\"\",IF(HidePlayerFormulas,\"\",\"(\"&G26&\")\"),VLOOKUP(AK26,C26:Q29,5,FALSE))","v":""},{"$f":"VLOOKUP(AK26,$C26:$Q29,8,FALSE)","v":""},{"$f":"VLOOKUP(AK26,$C26:$Q29,9,FALSE)","v":""},{"$f":"VLOOKUP(AK26,$C26:$Q29,10,FALSE)","v":""},{"$f":"VLOOKUP(AK26,$C26:$Q29,11,FALSE)","v":""},{"$f":"VLOOKUP(AK26,$C26:$Q29,12,FALSE)","v":""},{"$f":"VLOOKUP(AK26,$C26:$Q29,13,FALSE)","v":""},{"$f":"VLOOKUP(AK26,$C26:$Q29,14,FALSE)","v":""},{"$f":"VLOOKUP(AK26,$C26:$Q29,15,FALSE)","v":""},{"$f":"IF(W26=\"\",\"\",IF(AO26=V26,W26,IF(AO26=Z26,Y26,\"\")))","v":""},{"$f":"IF(W27=\"\",\"\",IF(AO26=V27,W27,IF(AO26=Z27,Y27,\"\")))","v":""},{"$f":"IF(W28=\"\",\"\",IF(AO26=V28,W28,IF(AO26=Z28,Y28,\"\")))","v":""},{"$f":"IF(W29=\"\",\"\",IF(AO26=V29,W29,IF(AO26=Z29,Y29,\"\")))","v":""},{"$f":"IF(W30=\"\",\"\",IF(AO26=V30,W30,IF(AO26=Z30,Y30,\"\")))","v":""},{"$f":"IF(W31=\"\",\"\",IF(AO26=V31,W31,IF(AO26=Z31,Y31,\"\")))","v":""},null,null,null,null,null,null,null,null,null,null,null,null,null,null,null,null,null,null,null,null,null,null,{"$f":"IF(G26=\"[---WithDraw---]\",FALSE,IF(COUNTIF(PlayerNamesWithinGroups,G26)>1,TRUE,FALSE))","v":true},{"$f":"AND(LEFT($AO26,1) = \"(\", RIGHT($AO26,1) =\")\")","v":false},{"$f":"IF(OR($AN26=$AN25,$AN26=$AN27),TRUE,FALSE)","v":true}]
[null,2,{"$f":"IF(AK25=\"\",\"\",RANK(F27,F26:F29)*1000+ROW())","v":""},{"$f":"IF(L27=\"\",\"\",CritClassInd1_Points*J27+CritClassInd1_Matches*L27+CritClassInd1_Attaque*O27+CritClassInd1_DiffButs*Q27)","v":""},{"$f":"IF(L27=\"\",\"\",Nb_Diff_Part(D27,D26:D29,G27,G26:G29,AI26:AI31)*CritClassInd_DiffPart+Nb_Goal_Part(D27,D26:D29,G27,G26:G29,V26:Z31)*CritClassInd_GoalPart+Nb_Score_Part(D27,D26:D29,G27,G26:G29,V26:Z31)*CritClassInd_ScorePart)","v":""},{"$f":"IF(L27=\"\",\"\",D27+E27+CritClassInd2_Points*J27+CritClassInd2_Matches*L27+CritClassInd2_Attaque*O27+CritClassInd2_DiffButs*Q27+CritClassInd_Ranking*H27+I27)","v":""},"A2",{"$f":"GMFTRANKINGPOINTS(G27,Particular_Category)","v":0},null,{"$f":"IF(AK25=\"\",\"\",(L27*Points_Victoire)+M27*Points_Null)","v":""},{"$f":"IF(L27=\"\",\"\",SUM(L27:N27))","v":""},{"$f":"IF(AK25=\"\",\"\",COUNTIF(AE26:AE31,G27))","v":""},{"$f":"IF(AK25=\"\",\"\",COUNTIF(AF26:AG31,G27))","v":""},{"$f":"IF(AK25=\"\",\"\",COUNTIF(AH26:AH31,G27))","v":""},{"$f":"IF(AK25=\"\",\"\",SUMIF(V26:V31,G27,AB26:AB31)+SUMIF(Z26:Z31,G27,AD26:AD31))","v":""},{"$f":"IF(AK25=\"\",\"\",SUMIF(V26:V31,G27,AD26:AD31)+SUMIF(Z26:Z31,G27,AB26:AB31))","v":""},{"$f":"IF(AK25=\"\",\"\",O27-P27)","v":""},"#G1",null,null,null,{"$f":"IF(COUNTA(G26:G29) =4,GMFTGROUPORDERIND(G26:G29,V26:V31,Z26:Z31),\"\")","v":"A2"},null,"-",null,{"$f":"IF(COUNTA(G26:G29) =4,GMFTGROUPORDERIND(G26:G29,V26:V31,Z26:Z31),\"\")","v":"A3"},null,0,"-",0,"","","","","",null,{"$f":"IF(AK25=\"\",\"\",SMALL(C26:C29,2))","v":""},null,null,{"$f":"IF(AK25=\"\",\"\",INT(AK27/1000))","v":""},{"$f":"IF(AK25=\"\",IF(HidePlayerFormulas,\"\",\"(\"&G27&\")\"),VLOOKUP(AK27,C26:Q29,5,FALSE))","v":""},{"$f":"VLOOKUP(AK27,$C26:$Q29,8,FALSE)","v":""},{"$f":"VLOOKUP(AK27,$C26:$Q29,9,FALSE)","v":""},{"$f":"VLOOKUP(AK27,$C26:$Q29,10,FALSE)","v":""},{"$f":"VLOOKUP(AK27,$C26:$Q29,11,FALSE)","v":""},{"$f":"VLOOKUP(AK27,$C26:$Q29,12,FALSE)","v":""},{"$f":"VLOOKUP(AK27,$C26:$Q29,13,FALSE)","v":""},{"$f":"VLOOKUP(AK27,$C26:$Q29,14,FALSE)","v":""},{"$f":"VLOOKUP(AK27,$C26:$Q29,15,FALSE)","v":""},{"$f":"IF(W26=\"\",\"\",IF(AO27=V26,W26,IF(AO27=Z26,Y26,\"\")))","v":""},{"$f":"IF(W27=\"\",\"\",IF(AO27=V27,W27,IF(AO27=Z27,Y27,\"\")))","v":""},{"$f":"IF(W28=\"\",\"\",IF(AO27=V28,W28,IF(AO27=Z28,Y28,\"\")))","v":""},{"$f":"IF(W29=\"\",\"\",IF(AO27=V29,W29,IF(AO27=Z29,Y29,\"\")))","v":""},{"$f":"IF(W30=\"\",\"\",IF(AO27=V30,W30,IF(AO27=Z30,Y30,\"\")))","v":""},{"$f":"IF(W31=\"\",\"\",IF(AO27=V31,W31,IF(AO27=Z31,Y31,\"\")))","v":""},null,null,null,null,null,null,null,null,null,null,null,null,null,null,null,null,null,null,null,null,null,null,{"$f":"IF(G27=\"[---WithDraw---]\",FALSE,IF(COUNTIF(PlayerNamesWithinGroups,G27)>1,TRUE,FALSE))","v":true},{"$f":"AND(LEFT($AO27,1) = \"(\", RIGHT($AO27,1) =\")\")","v":false},{"$f":"IF(OR($AN27=$AN26,$AN27=$AN28),TRUE,FALSE)","v":true}]
[null,3,{"$f":"IF(AK25=\"\",\"\",RANK(F28,F26:F29)*1000+ROW())","v":""},{"$f":"IF(L28=\"\",\"\",CritClassInd1_Points*J28+CritClassInd1_Matches*L28+CritClassInd1_Attaque*O28+CritClassInd1_DiffButs*Q28)","v":""},{"$f":"IF(L28=\"\",\"\",Nb_Diff_Part(D28,D26:D29,G28,G26:G29,AI26:AI31)*CritClassInd_DiffPart+Nb_Goal_Part(D28,D26:D29,G28,G26:G29,V26:Z31)*CritClassInd_GoalPart+Nb_Score_Part(D28,D26:D29,G28,G26:G29,V26:Z31)*CritClassInd_ScorePart)","v":""},{"$f":"IF(L28=\"\",\"\",D28+E28+CritClassInd2_Points*J28+CritClassInd2_Matches*L28+CritClassInd2_Attaque*O28+CritClassInd2_DiffButs*Q28+CritClassInd_Ranking*H28+I28)","v":""},"A3",{"$f":"GMFTRANKINGPOINTS(G28,Particular_Category)","v":0},null,{"$f":"IF(AK25=\"\",\"\",(L28*Points_Victoire)+M28*Points_Null)","v":""},{"$f":"IF(L28=\"\",\"\",SUM(L28:N28))","v":""},{"$f":"IF(AK25=\"\",\"\",COUNTIF(AE26:AE31,G28))","v":""},{"$f":"IF(AK25=\"\",\"\",COUNTIF(AF26:AG31,G28))","v":""},{"$f":"IF(AK25=\"\",\"\",COUNTIF(AH26:AH31,G28))","v":""},{"$f":"IF(AK25=\"\",\"\",SUMIF(V26:V31,G28,AB26:AB31)+SUMIF(Z26:Z31,G28,AD26:AD31))","v":""},{"$f":"IF(AK25=\"\",\"\",SUMIF(V26:V31,G28,AD26:AD31)+SUMIF(Z26:Z31,G28,AB26:AB31))","v":""},{"$f":"IF(AK25=\"\",\"\",O28-P28)","v":""},"#G2",null,null,null,{"$f":"IF(COUNTA(G26:G29) =4,GMFTGROUPORDERIND(G26:G29,V26:V31,Z26:Z31),\"\")","v":"A3"},null,"-",null,{"$f":"IF(COUNTA(G26:G29) =4,GMFTGROUPORDERIND(G26:G29,V26:V31,Z26:Z31),\"\")","v":"A1"},null,0,"-",0,"","","","","",null,{"$f":"IF(AK25=\"\",\"\",SMALL(C26:C29,3))","v":""},null,null,{"$f":"IF(AK25=\"\",\"\",INT(AK28/1000))","v":""},{"$f":"IF(AK25=\"\",IF(HidePlayerFormulas,\"\",\"(\"&G28&\")\"),VLOOKUP(AK28,C26:Q29,5,FALSE))","v":""},{"$f":"VLOOKUP(AK28,$C26:$Q29,8,FALSE)","v":""},{"$f":"VLOOKUP(AK28,$C26:$Q29,9,FALSE)","v":""},{"$f":"VLOOKUP(AK28,$C26:$Q29,10,FALSE)","v":""},{"$f":"VLOOKUP(AK28,$C26:$Q29,11,FALSE)","v":""},{"$f":"VLOOKUP(AK28,$C26:$Q29,12,FALSE)","v":""},{"$f":"VLOOKUP(AK28,$C26:$Q29,13,FALSE)","v":""},{"$f":"VLOOKUP(AK28,$C26:$Q29,14,FALSE)","v":""},{"$f":"VLOOKUP(AK28,$C26:$Q29,15,FALSE)","v":""},{"$f":"IF(W26=\"\",\"\",IF(AO28=V26,W26,IF(AO28=Z26,Y26,\"\")))","v":""},{"$f":"IF(W27=\"\",\"\",IF(AO28=V27,W27,IF(AO28=Z27,Y27,\"\")))","v":""},{"$f":"IF(W28=\"\",\"\",IF(AO28=V28,W28,IF(AO28=Z28,Y28,\"\")))","v":""},{"$f":"IF(W29=\"\",\"\",IF(AO28=V29,W29,IF(AO28=Z29,Y29,\"\")))","v":""},{"$f":"IF(W30=\"\",\"\",IF(AO28=V30,W30,IF(AO28=Z30,Y30,\"\")))","v":""},{"$f":"IF(W31=\"\",\"\",IF(AO28=V31,W31,IF(AO28=Z31,Y31,\"\")))","v":""},null,null,null,null,null,null,null,null,null,null,null,null,null,null,null,null,null,null,null,null,null,null,{"$f":"IF(G28=\"[---WithDraw---]\",FALSE,IF(COUNTIF(PlayerNamesWithinGroups,G28)>1,TRUE,FALSE))","v":true},{"$f":"AND(LEFT($AO28,1) = \"(\", RIGHT($AO28,1) =\")\")","v":false},{"$f":"IF(OR($AN28=$AN27,$AN28=$AN29),TRUE,FALSE)","v":true}]
[null,4,{"$f":"IF(AK25=\"\",\"\",RANK(F29,F26:F29)*1000+ROW())","v":""},{"$f":"IF(L29=\"\",\"\",CritClassInd1_Points*J29+CritClassInd1_Matches*L29+CritClassInd1_Attaque*O29+CritClassInd1_DiffButs*Q29)","v":""},{"$f":"IF(L29=\"\",\"\",Nb_Diff_Part(D29,D26:D29,G29,G26:G29,AI26:AI31)*CritClassInd_DiffPart+Nb_Goal_Part(D29,D26:D29,G29,G26:G29,V26:Z31)*CritClassInd_GoalPart+Nb_Score_Part(D29,D26:D29,G29,G26:G29,V26:Z31)*CritClassInd_ScorePart)","v":""},{"$f":"IF(L29=\"\",\"\",D29+E29+CritClassInd2_Points*J29+CritClassInd2_Matches*L29+CritClassInd2_Attaque*O29+CritClassInd2_DiffButs*Q29+CritClassInd_Ranking*H29+I29)","v":""},"A4",{"$f":"GMFTRANKINGPOINTS(G29,Particular_Category)","v":0},null,{"$f":"IF(AK25=\"\",\"\",(L29*Points_Victoire)+M29*Points_Null)","v":""},{"$f":"IF(L29=\"\",\"\",SUM(L29:N29))","v":""},{"$f":"IF(AK25=\"\",\"\",COUNTIF(AE26:AE31,G29))","v":""},{"$f":"IF(AK25=\"\",\"\",COUNTIF(AF26:AG31,G29))","v":""},{"$f":"IF(AK25=\"\",\"\",COUNTIF(AH26:AH31,G29))","v":""},{"$f":"IF(AK25=\"\",\"\",SUMIF(V26:V31,G29,AB26:AB31)+SUMIF(Z26:Z31,G29,AD26:AD31))","v":""},{"$f":"IF(AK25=\"\",\"\",SUMIF(V26:V31,G29,AD26:AD31)+SUMIF(Z26:Z31,G29,AB26:AB31))","v":""},{"$f":"IF(AK25=\"\",\"\",O29-P29)","v":""},"#G2",null,null,null,{"$f":"IF(COUNTA(G26:G29) =4,GMFTGROUPORDERIND(G26:G29,V26:V31,Z26:Z31),\"\")","v":"A4"},null,"-",null,{"$f":"IF(COUNTA(G26:G29) =4,GMFTGROUPORDERIND(G26:G29,V26:V31,Z26:Z31),\"\")","v":"A2"},null,0,"-",0,"","","","","",null,{"$f":"IF(AK25=\"\",\"\",SMALL(C26:C29,4))","v":""},null,null,{"$f":"IF(AK25=\"\",\"\",INT(AK29/1000))","v":""},{"$f":"IF(AK25=\"\",IF(HidePlayerFormulas,\"\",\"(\"&G29&\")\"),VLOOKUP(AK29,C26:Q29,5,FALSE))","v":""},{"$f":"VLOOKUP(AK29,$C26:$Q29,8,FALSE)","v":""},{"$f":"VLOOKUP(AK29,$C26:$Q29,9,FALSE)","v":""},{"$f":"VLOOKUP(AK29,$C26:$Q29,10,FALSE)","v":""},{"$f":"VLOOKUP(AK29,$C26:$Q29,11,FALSE)","v":""},{"$f":"VLOOKUP(AK29,$C26:$Q29,12,FALSE)","v":""},{"$f":"VLOOKUP(AK29,$C26:$Q29,13,FALSE)","v":""},{"$f":"VLOOKUP(AK29,$C26:$Q29,14,FALSE)","v":""},{"$f":"VLOOKUP(AK29,$C26:$Q29,15,FALSE)","v":""},{"$f":"IF(W26=\"\",\"\",IF(AO29=V26,W26,IF(AO29=Z26,Y26,\"\")))","v":""},{"$f":"IF(W27=\"\",\"\",IF(AO29=V27,W27,IF(AO29=Z27,Y27,\"\")))","v":""},{"$f":"IF(W28=\"\",\"\",IF(AO29=V28,W28,IF(AO29=Z28,Y28,\"\")))","v":""},{"$f":"IF(W29=\"\",\"\",IF(AO29=V29,W29,IF(AO29=Z29,Y29,\"\")))","v":""},{"$f":"IF(W30=\"\",\"\",IF(AO29=V30,W30,IF(AO29=Z30,Y30,\"\")))","v":""},{"$f":"IF(W31=\"\",\"\",IF(AO29=V31,W31,IF(AO29=Z31,Y31,\"\")))","v":""},null,null,null,null,null,null,null,null,null,null,null,null,null,null,null,null,null,null,null,null,null,null,{"$f":"IF(G29=\"[---WithDraw---]\",FALSE,IF(COUNTIF(PlayerNamesWithinGroups,G29)>1,TRUE,FALSE))","v":true},{"$f":"AND(LEFT($AO29,1) = \"(\", RIGHT($AO29,1) =\")\")","v":false},{"$f":"IF(OR($AN29=$AN28,$AN29=$AN30),TRUE,FALSE)","v":true}]
[null,null,null,null,null,null,null,null,null,null,null,null,null,null,null,null,null,"#G3",null,null,null,{"$f":"IF(COUNTA(G26:G29) =4,GMFTGROUPORDERIND(G26:G29,V26:V31,Z26:Z31),\"\")","v":"A1"},null,"-",null,{"$f":"IF(COUNTA(G26:G29) =4,GMFTGROUPORDERIND(G26:G29,V26:V31,Z26:Z31),\"\")","v":"A2"},null,0,"-",0,"","","","",""]
[null,null,null,null,null,null,null,null,null,null,null,null,null,null,null,null,null,"#G3",null,null,null,{"$f":"IF(COUNTA(G26:G29) =4,GMFTGROUPORDERIND(G26:G29,V26:V31,Z26:Z31),\"\")","v":"A3"},null,"-",null,{"$f":"IF(COUNTA(G26:G29) =4,GMFTGROUPORDERIND(G26:G29,V26:V31,Z26:Z31),\"\")","v":"A4"},null,0,"-",0,"","","","",""]
[]
[]
[null,{"$f":"N_Group_4_2leg","v":"Group of 4 with first/second leg"},null,null,null,null,null,null,null,null,null,null,null,null,null,null,null,null,null,null,null,null,null,null,null,null,null,null,null,null,null,null,null,null,null,null,null,null,{"$f":"B34","v":"Group of 4 with first/second leg"}]
[]
[null,{"$f":"N_Tirage","v":"Draw"},"Cla.","Cla1","Part","Cla2",{"$f":"N_Joueurs","v":"Players"},{"$f":"N_RankPoints","v":"Rk Pt."},{"$f":"N_Diff_Part","v":"Part-Diff"},{"$f":"N_Pts","v":"Pts"},{"$f":"N_J","v":"Pld"},{"$f":"N_G","v":"W"},{"$f":"N_N","v":"D"},{"$f":"N_P","v":"L"},{"$f":"N_BP","v":"F"},{"$f":"N_BC","v":"A"},{"$f":"N_Diff.","v":"SO"},null,{"$f":"N_Heure","v":"Time"},{"$f":"N_Table","v":"Table"},{"$f":"N_Arbitre","v":"Referee"},{"$f":"N_Matches","v":"Matches"},null,null,null,null,null,{"$f":"IF(MaxScore,N_MaxScore,\"\")","v":"Max Score"},null,null,{"$f":"N_G","v":"W"},{"$f":"N_N","v":"D"},{"$f":"N_N","v":"D"},{"$f":"N_P","v":"L"},"CONCAT","Ref Group",{"$f":"IF(COUNTA(W37:W48)=0,\"\",\"OK\")","v":""},null,null,{"$f":"N_Cla.","v":"Rk"},{"$f":"N_Joueurs","v":"Players"},{"$f":"N_Pts","v":"Pts"},{"$f":"N_J","v":"Pld"},{"$f":"N_G","v":"W"},{"$f":"N_N","v":"D"},{"$f":"N_P","v":"L"},{"$f":"N_BP","v":"F"},{"$f":"N_BC","v":"A"},{"$f":"N_Diff.","v":"SO"},{"$f":"N_Matches","v":"Matches"}]
[null,1,{"$f":"IF(AK36=\"\",\"\",RANK(F37,F37:F40)*1000+ROW())","v":""},{"$f":"IF(L37=\"\",\"\",CritClassInd1_Points*J37+CritClassInd1_Matches*L37+CritClassInd1_Attaque*O37+CritClassInd1_DiffButs*Q37)","v":""},{"$f":"IF(L37=\"\",\"\",Nb_Diff_Part(D37,D37:D40,G37,G37:G40,AI37:AI48)*CritClassInd_DiffPart+Nb_Goal_Part(D37,D37:D40,G37,G37:G40,V37:Z48)*CritClassInd_GoalPart+Nb_Score_Part(D37,D37:D40,G37,G37:G40,V37:Z48)*CritClassInd_ScorePart)","v":""},{"$f":"IF(L37=\"\",\"\",D37+E37+CritClassInd2_Points*J37+CritClassInd2_Matches*L37+CritClassInd2_Attaque*O37+CritClassInd2_DiffButs*Q37+CritClassInd_Ranking*H37+I37)","v":""},"A1",{"$f":"GMFTRANKINGPOINTS(G37,Particular_Category)","v":0},null,{"$f":"IF(AK36=\"\",\"\",(L37*Points_Victoire)+M37*Points_Null)","v":""},{"$f":"IF(L37=\"\",\"\",SUM(L37:N37))","v":""},{"$f":"IF(AK36=\"\",\"\",COUNTIF(AE37:AE48,G37))","v":""},{"$f":"IF(AK36=\"\",\"\",COUNTIF(AF37:AG48,G37))","v":""},{"$f":"IF(AK36=\"\",\"\",COUNTIF(AH37:AH48,G37))","v":""},{"$f":"IF(AK36=\"\",\"\",SUMIF(V37:V48,G37,AB37:AB48)+SUMIF(Z37:Z48,G37,AD37:AD48))","v":""},{"$f":"IF(AK36=\"\",\"\",SUMIF(V37:V48,G37,AD37:AD48)+SUMIF(Z37:Z48,G37,AB37:AB48))","v":""},{"$f":"IF(AK36=\"\",\"\",O37-P37)","v":""},"#G1",null,null,null,{"$f":"IF(COUNTA(G37:G40) =4,GMFTGROUPORDERIND(G37:G40,V37:V42,Z37:Z42),\"\")","v":"A1"},null,"-",null,{"$f":"IF(COUNTA(G37:G40) =4,GMFTGROUPORDERIND(G37:G40,V37:V42,Z37:Z42),\"\")","v":"A4"},null,{"$f":"IF(MaxScore,MaxGoals(W37,Y37,MaxGoalsValue),IF(W37=\"\",\"\",W37))","v":0},{"$f":"IF(MaxScore,\"-\",IF(W37=\"\",\"\",\"-\"))","v":"-"},{"$f":"IF(MaxScore,MaxGoals(Y37,W37,MaxGoalsValue),IF(Y37=\"\",\"\",Y37))","v":0},{"$f":"IF(W37=\"\",\"\",IF(W37>Y37,V37,IF(W37=Y37,\"\",Z37)))","v":""},{"$f":"IF(W37=\"\",\"\",IF(W37=Y37,V37,\"\"))","v":""},{"$f":"IF(W37=\"\",\"\",IF(W37=Y37,Z37,\"\"))","v":""},{"$f":"IF(W37=\"\",\"\",IF(W37<Y37,V37,IF(W37=Y37,\"\",Z37)))","v":""},{"$f":"CONCATENATE(AE37,AH37)","v":""},null,{"$f":"IF(AK36=\"\",\"\",SMALL(C37:C40,1))","v":""},null,null,{"$f":"IF(AK36=\"\",\"\",INT(AK37/1000))","v":""},{"$f":"IF(AK36=\"\",IF(HidePlayerFormulas,\"\",\"(\"&G37&\")\"),VLOOKUP(AK37,C37:Q40,5,FALSE))","v":""},{"$f":"VLOOKUP(AK37,$C37:$Q40,8,FALSE)","v":""},{"$f":"VLOOKUP(AK37,$C37:$Q40,9,FALSE)","v":""},{"$f":"VLOOKUP(AK37,$C37:$Q40,10,FALSE)","v":""},{"$f":"VLOOKUP(AK37,$C37:$Q40,11,FALSE)","v":""},{"$f":"VLOOKUP(AK37,$C37:$Q40,12,FALSE)","v":""},{"$f":"VLOOKUP(AK37,$C37:$Q40,13,FALSE)","v":""},{"$f":"VLOOKUP(AK37,$C37:$Q40,14,FALSE)","v":""},{"$f":"VLOOKUP(AK37,$C37:$Q40,15,FALSE)","v":""},{"$f":"IF(W37=\"\",\"\",IF(AO37=V37,W37,IF(AO37=Z37,Y37,\"\")))","v":""},{"$f":"IF(W38=\"\",\"\",IF(AO37=V38,W38,IF(AO37=Z38,Y38,\"\")))","v":""},{"$f":"IF(W39=\"\",\"\",IF(AO37=V39,W39,IF(AO37=Z39,Y39,\"\")))","v":""},{"$f":"IF(W40=\"\",\"\",IF(AO37=V40,W40,IF(AO37=Z40,Y40,\"\")))","v":""},{"$f":"IF(W41=\"\",\"\",IF(AO37=V41,W41,IF(AO37=Z41,Y41,\"\")))","v":""},{"$f":"IF(W42=\"\",\"\",IF(AO37=V42,W42,IF(AO37=Z42,Y42,\"\")))","v":""},{"$f":"IF(W43=\"\",\"\",IF(AO37=V43,W43,IF(AO37=Z43,Y43,\"\")))","v":""},{"$f":"IF(W44=\"\",\"\",IF(AO37=V44,W44,IF(AO37=Z44,Y44,\"\")))","v":""},{"$f":"IF(W45=\"\",\"\",IF(AO37=V45,W45,IF(AO37=Z45,Y45,\"\")))","v":""},{"$f":"IF(W46=\"\",\"\",IF(AO37=V46,W46,IF(AO37=Z46,Y46,\"\")))","v":""},{"$f":"IF(W47=\"\",\"\",IF(AO37=V47,W47,IF(AO37=Z47,Y47,\"\")))","v":""},{"$f":"IF(W48=\"\",\"\",IF(AO37=V48,W48,IF(AO37=Z48,Y48,\"\")))","v":""},null,null,null,null,null,null,null,null,null,null,null,null,null,null,null,null,{"$f":"IF(G37=\"[---WithDraw---]\",FALSE,IF(COUNTIF(PlayerNamesWithinGroups,G37)>1,TRUE,FALSE))","v":true},{"$f":"AND(LEFT($AO37,1) = \"(\", RIGHT($AO37,1) =\")\")","v":false},{"$f":"IF(OR($AN37=$AN36,$AN37=$AN38),TRUE,FALSE)","v":true}]
[null,2,{"$f":"IF(AK36=\"\",\"\",RANK(F38,F37:F40)*1000+ROW())","v":""},{"$f":"IF(L38=\"\",\"\",CritClassInd1_Points*J38+CritClassInd1_Matches*L38+CritClassInd1_Attaque*O38+CritClassInd1_DiffButs*Q38)","v":""},{"$f":"IF(L38=\"\",\"\",Nb_Diff_Part(D38,D37:D40,G38,G37:G40,AI37:AI48)*CritClassInd_DiffPart+Nb_Goal_Part(D38,D37:D40,G38,G37:G40,V37:Z48)*CritClassInd_GoalPart+Nb_Score_Part(D38,D37:D40,G38,G37:G40,V37:Z48)*CritClassInd_ScorePart)","v":""},{"$f":"IF(L38=\"\",\"\",D38+E38+CritClassInd2_Points*J38+CritClassInd2_Matches*L38+CritClassInd2_Attaque*O38+CritClassInd2_DiffButs*Q38+CritClassInd_Ranking*H38+I38)","v":""},"A2",{"$f":"GMFTRANKINGPOINTS(G38,Particular_Category)","v":0},null,{"$f":"IF(AK36=\"\",\"\",(L38*Points_Victoire)+M38*Points_Null)","v":""},{"$f":"IF(L38=\"\",\"\",SUM(L38:N38))","v":""},{"$f":"IF(AK36=\"\",\"\",COUNTIF(AE37:AE48,G38))","v":""},{"$f":"IF(AK36=\"\",\"\",COUNTIF(AF37:AG48,G38))","v":""},{"$f":"IF(AK36=\"\",\"\",COUNTIF(AH37:AH48,G38))","v":""},{"$f":"IF(AK36=\"\",\"\",SUMIF(V37:V48,G38,AB37:AB48)+SUMIF(Z37:Z48,G38,AD37:AD48))","v":""},{"$f":"IF(AK36=\"\",\"\",SUMIF(V37:V48,G38,AD37:AD48)+SUMIF(Z37:Z48,G38,AB37:AB48))","v":""},{"$f":"IF(AK36=\"\",\"\",O38-P38)","v":""},"#G1",null,null,null,{"$f":"IF(COUNTA(G37:G40) =4,GMFTGROUPORDERIND(G37:G40,V37:V42,Z37:Z42),\"\")","v":"A2"},null,"-",null,{"$f":"IF(COUNTA(G37:G40) =4,GMFTGROUPORDERIND(G37:G40,V37:V42,Z37:Z42),\"\")","v":"A3"},null,0,"-",0,"","","","","",null,{"$f":"IF(AK36=\"\",\"\",SMALL(C37:C40,2))","v":""},null,null,{"$f":"IF(AK36=\"\",\"\",INT(AK38/1000))","v":""},{"$f":"IF(AK36=\"\",IF(HidePlayerFormulas,\"\",\"(\"&G38&\")\"),VLOOKUP(AK38,C37:Q40,5,FALSE))","v":""},{"$f":"VLOOKUP(AK38,$C37:$Q40,8,FALSE)","v":""},{"$f":"VLOOKUP(AK38,$C37:$Q40,9,FALSE)","v":""},{"$f":"VLOOKUP(AK38,$C37:$Q40,10,FALSE)","v":""},{"$f":"VLOOKUP(AK38,$C37:$Q40,11,FALSE)","v":""},{"$f":"VLOOKUP(AK38,$C37:$Q40,12,FALSE)","v":""},{"$f":"VLOOKUP(AK38,$C37:$Q40,13,FALSE)","v":""},{"$f":"VLOOKUP(AK38,$C37:$Q40,14,FALSE)","v":""},{"$f":"VLOOKUP(AK38,$C37:$Q40,15,FALSE)","v":""},{"$f":"IF(W37=\"\",\"\",IF(AO38=V37,W37,IF(AO38=Z37,Y37,\"\")))","v":""},{"$f":"IF(W38=\"\",\"\",IF(AO38=V38,W38,IF(AO38=Z38,Y38,\"\")))","v":""},{"$f":"IF(W39=\"\",\"\",IF(AO38=V39,W39,IF(AO38=Z39,Y39,\"\")))","v":""},{"$f":"IF(W40=\"\",\"\",IF(AO38=V40,W40,IF(AO38=Z40,Y40,\"\")))","v":""},{"$f":"IF(W41=\"\",\"\",IF(AO38=V41,W41,IF(AO38=Z41,Y41,\"\")))","v":""},{"$f":"IF(W42=\"\",\"\",IF(AO38=V42,W42,IF(AO38=Z42,Y42,\"\")))","v":""},{"$f":"IF(W43=\"\",\"\",IF(AO38=V43,W43,IF(AO38=Z43,Y43,\"\")))","v":""},{"$f":"IF(W44=\"\",\"\",IF(AO38=V44,W44,IF(AO38=Z44,Y44,\"\")))","v":""},{"$f":"IF(W45=\"\",\"\",IF(AO38=V45,W45,IF(AO38=Z45,Y45,\"\")))","v":""},{"$f":"IF(W46=\"\",\"\",IF(AO38=V46,W46,IF(AO38=Z46,Y46,\"\")))","v":""},{"$f":"IF(W47=\"\",\"\",IF(AO38=V47,W47,IF(AO38=Z47,Y47,\"\")))","v":""},{"$f":"IF(W48=\"\",\"\",IF(AO38=V48,W48,IF(AO38=Z48,Y48,\"\")))","v":""},null,null,null,null,null,null,null,null,null,null,null,null,null,null,null,null,{"$f":"IF(G38=\"[---WithDraw---]\",FALSE,IF(COUNTIF(PlayerNamesWithinGroups,G38)>1,TRUE,FALSE))","v":true},{"$f":"AND(LEFT($AO38,1) = \"(\", RIGHT($AO38,1) =\")\")","v":false},{"$f":"IF(OR($AN38=$AN37,$AN38=$AN39),TRUE,FALSE)","v":true}]
[null,3,{"$f":"IF(AK36=\"\",\"\",RANK(F39,F37:F40)*1000+ROW())","v":""},{"$f":"IF(L39=\"\",\"\",CritClassInd1_Points*J39+CritClassInd1_Matches*L39+CritClassInd1_Attaque*O39+CritClassInd1_DiffButs*Q39)","v":""},{"$f":"IF(L39=\"\",\"\",Nb_Diff_Part(D39,D37:D40,G39,G37:G40,AI37:AI48)*CritClassInd_DiffPart+Nb_Goal_Part(D39,D37:D40,G39,G37:G40,V37:Z48)*CritClassInd_GoalPart+Nb_Score_Part(D39,D37:D40,G39,G37:G40,V37:Z48)*CritClassInd_ScorePart)","v":""},{"$f":"IF(L39=\"\",\"\",D39+E39+CritClassInd2_Points*J39+CritClassInd2_Matches*L39+CritClassInd2_Attaque*O39+CritClassInd2_DiffButs*Q39+CritClassInd_Ranking*H39+I39)","v":""},"A3",{"$f":"GMFTRANKINGPOINTS(G39,Particular_Category)","v":0},null,{"$f":"IF(AK36=\"\",\"\",(L39*Points_Victoire)+M39*Points_Null)","v":""},{"$f":"IF(L39=\"\",\"\",SUM(L39:N39))","v":""},{"$f":"IF(AK36=\"\",\"\",COUNTIF(AE37:AE48,G39))","v":""},{"$f":"IF(AK36=\"\",\"\",COUNTIF(AF37:AG48,G39))","v":""},{"$f":"IF(AK36=\"\",\"\",COUNTIF(AH37:AH48,G39))","v":""},{"$f":"IF(AK36=\"\",\"\",SUMIF(V37:V48,G39,AB37:AB48)+SUMIF(Z37:Z48,G39,AD37:AD48))","v":""},{"$f":"IF(AK36=\"\",\"\",SUMIF(V37:V48,G39,AD37:AD48)+SUMIF(Z37:Z48,G39,AB37:AB48))","v":""},{"$f":"IF(AK36=\"\",\"\",O39-P39)","v":""},"#G2",null,null,null,{"$f":"IF(COUNTA(G37:G40) =4,GMFTGROUPORDERIND(G37:G40,V37:V42,Z37:Z42),\"\")","v":"A3"},null,"-",null,{"$f":"IF(COUNTA(G37:G40) =4,GMFTGROUPORDERIND(G37:G40,V37:V42,Z37:Z42),\"\")","v":"A1"},null,0,"-",0,"","","","","",null,{"$f":"IF(AK36=\"\",\"\",SMALL(C37:C40,3))","v":""},null,null,{"$f":"IF(AK36=\"\",\"\",INT(AK39/1000))","v":""},{"$f":"IF(AK36=\"\",IF(HidePlayerFormulas,\"\",\"(\"&G39&\")\"),VLOOKUP(AK39,C37:Q40,5,FALSE))","v":""},{"$f":"VLOOKUP(AK39,$C37:$Q40,8,FALSE)","v":""},{"$f":"VLOOKUP(AK39,$C37:$Q40,9,FALSE)","v":""},{"$f":"VLOOKUP(AK39,$C37:$Q40,10,FALSE)","v":""},{"$f":"VLOOKUP(AK39,$C37:$Q40,11,FALSE)","v":""},{"$f":"VLOOKUP(AK39,$C37:$Q40,12,FALSE)","v":""},{"$f":"VLOOKUP(AK39,$C37:$Q40,13,FALSE)","v":""},{"$f":"VLOOKUP(AK39,$C37:$Q40,14,FALSE)","v":""},{"$f":"VLOOKUP(AK39,$C37:$Q40,15,FALSE)","v":""},{"$f":"IF(W37=\"\",\"\",IF(AO39=V37,W37,IF(AO39=Z37,Y37,\"\")))","v":""},{"$f":"IF(W38=\"\",\"\",IF(AO39=V38,W38,IF(AO39=Z38,Y38,\"\")))","v":""},{"$f":"IF(W39=\"\",\"\",IF(AO39=V39,W39,IF(AO39=Z39,Y39,\"\")))","v":""},{"$f":"IF(W40=\"\",\"\",IF(AO39=V40,W40,IF(AO39=Z40,Y40,\"\")))","v":""},{"$f":"IF(W41=\"\",\"\",IF(AO39=V41,W41,IF(AO39=Z41,Y41,\"\")))","v":""},{"$f":"IF(W42=\"\",\"\",IF(AO39=V42,W42,IF(AO39=Z42,Y42,\"\")))","v":""},{"$f":"IF(W43=\"\",\"\",IF(AO39=V43,W43,IF(AO39=Z43,Y43,\"\")))","v":""},{"$f":"IF(W44=\"\",\"\",IF(AO39=V44,W44,IF(AO39=Z44,Y44,\"\")))","v":""},{"$f":"IF(W45=\"\",\"\",IF(AO39=V45,W45,IF(AO39=Z45,Y45,\"\")))","v":""},{"$f":"IF(W46=\"\",\"\",IF(AO39=V46,W46,IF(AO39=Z46,Y46,\"\")))","v":""},{"$f":"IF(W47=\"\",\"\",IF(AO39=V47,W47,IF(AO39=Z47,Y47,\"\")))","v":""},{"$f":"IF(W48=\"\",\"\",IF(AO39=V48,W48,IF(AO39=Z48,Y48,\"\")))","v":""},null,null,null,null,null,null,null,null,null,null,null,null,null,null,null,null,{"$f":"IF(G39=\"[---WithDraw---]\",FALSE,IF(COUNTIF(PlayerNamesWithinGroups,G39)>1,TRUE,FALSE))","v":true},{"$f":"AND(LEFT($AO39,1) = \"(\", RIGHT($AO39,1) =\")\")","v":false},{"$f":"IF(OR($AN39=$AN38,$AN39=$AN40),TRUE,FALSE)","v":true}]
[null,4,{"$f":"IF(AK36=\"\",\"\",RANK(F40,F37:F40)*1000+ROW())","v":""},{"$f":"IF(L40=\"\",\"\",CritClassInd1_Points*J40+CritClassInd1_Matches*L40+CritClassInd1_Attaque*O40+CritClassInd1_DiffButs*Q40)","v":""},{"$f":"IF(L40=\"\",\"\",Nb_Diff_Part(D40,D37:D40,G40,G37:G40,AI37:AI48)*CritClassInd_DiffPart+Nb_Goal_Part(D40,D37:D40,G40,G37:G40,V37:Z48)*CritClassInd_GoalPart+Nb_Score_Part(D40,D37:D40,G40,G37:G40,V37:Z48)*CritClassInd_ScorePart)","v":""},{"$f":"IF(L40=\"\",\"\",D40+E40+CritClassInd2_Points*J40+CritClassInd2_Matches*L40+CritClassInd2_Attaque*O40+CritClassInd2_DiffButs*Q40+CritClassInd_Ranking*H40+I40)","v":""},"A4",{"$f":"GMFTRANKINGPOINTS(G40,Particular_Category)","v":0},null,{"$f":"IF(AK36=\"\",\"\",(L40*Points_Victoire)+M40*Points_Null)","v":""},{"$f":"IF(L40=\"\",\"\",SUM(L40:N40))","v":""},{"$f":"IF(AK36=\"\",\"\",COUNTIF(AE37:AE48,G40))","v":""},{"$f":"IF(AK36=\"\",\"\",COUNTIF(AF37:AG48,G40))","v":""},{"$f":"IF(AK36=\"\",\"\",COUNTIF(AH37:AH48,G40))","v":""},{"$f":"IF(AK36=\"\",\"\",SUMIF(V37:V48,G40,AB37:AB48)+SUMIF(Z37:Z48,G40,AD37:AD48))","v":""},{"$f":"IF(AK36=\"\",\"\",SUMIF(V37:V48,G40,AD37:AD48)+SUMIF(Z37:Z48,G40,AB37:AB48))","v":""},{"$f":"IF(AK36=\"\",\"\",O40-P40)","v":""},"#G2",null,null,null,{"$f":"IF(COUNTA(G37:G40) =4,GMFTGROUPORDERIND(G37:G40,V37:V42,Z37:Z42),\"\")","v":"A4"},null,"-",null,{"$f":"IF(COUNTA(G37:G40) =4,GMFTGROUPORDERIND(G37:G40,V37:V42,Z37:Z42),\"\")","v":"A2"},null,0,"-",0,"","","","","",null,{"$f":"IF(AK36=\"\",\"\",SMALL(C37:C40,4))","v":""},null,null,{"$f":"IF(AK36=\"\",\"\",INT(AK40/1000))","v":""},{"$f":"IF(AK36=\"\",IF(HidePlayerFormulas,\"\",\"(\"&G40&\")\"),VLOOKUP(AK40,C37:Q40,5,FALSE))","v":""},{"$f":"VLOOKUP(AK40,$C37:$Q40,8,FALSE)","v":""},{"$f":"VLOOKUP(AK40,$C37:$Q40,9,FALSE)","v":""},{"$f":"VLOOKUP(AK40,$C37:$Q40,10,FALSE)","v":""},{"$f":"VLOOKUP(AK40,$C37:$Q40,11,FALSE)","v":""},{"$f":"VLOOKUP(AK40,$C37:$Q40,12,FALSE)","v":""},{"$f":"VLOOKUP(AK40,$C37:$Q40,13,FALSE)","v":""},{"$f":"VLOOKUP(AK40,$C37:$Q40,14,FALSE)","v":""},{"$f":"VLOOKUP(AK40,$C37:$Q40,15,FALSE)","v":""},{"$f":"IF(W37=\"\",\"\",IF(AO40=V37,W37,IF(AO40=Z37,Y37,\"\")))","v":""},{"$f":"IF(W38=\"\",\"\",IF(AO40=V38,W38,IF(AO40=Z38,Y38,\"\")))","v":""},{"$f":"IF(W39=\"\",\"\",IF(AO40=V39,W39,IF(AO40=Z39,Y39,\"\")))","v":""},{"$f":"IF(W40=\"\",\"\",IF(AO40=V40,W40,IF(AO40=Z40,Y40,\"\")))","v":""},{"$f":"IF(W41=\"\",\"\",IF(AO40=V41,W41,IF(AO40=Z41,Y41,\"\")))","v":""},{"$f":"IF(W42=\"\",\"\",IF(AO40=V42,W42,IF(AO40=Z42,Y42,\"\")))","v":""},{"$f":"IF(W43=\"\",\"\",IF(AO40=V43,W43,IF(AO40=Z43,Y43,\"\")))","v":""},{"$f":"IF(W44=\"\",\"\",IF(AO40=V44,W44,IF(AO40=Z44,Y44,\"\")))","v":""},{"$f":"IF(W45=\"\",\"\",IF(AO40=V45,W45,IF(AO40=Z45,Y45,\"\")))","v":""},{"$f":"IF(W46=\"\",\"\",IF(AO40=V46,W46,IF(AO40=Z46,Y46,\"\")))","v":""},{"$f":"IF(W47=\"\",\"\",IF(AO40=V47,W47,IF(AO40=Z47,Y47,\"\")))","v":""},{"$f":"IF(W48=\"\",\"\",IF(AO40=V48,W48,IF(AO40=Z48,Y48,\"\")))","v":""},null,null,null,null,null,null,null,null,null,null,null,null,null,null,null,null,{"$f":"IF(G40=\"[---WithDraw---]\",FALSE,IF(COUNTIF(PlayerNamesWithinGroups,G40)>1,TRUE,FALSE))","v":true},{"$f":"AND(LEFT($AO40,1) = \"(\", RIGHT($AO40,1) =\")\")","v":false},{"$f":"IF(OR($AN40=$AN39,$AN40=$AN41),TRUE,FALSE)","v":true}]
[null,null,null,null,null,null,null,null,null,null,null,null,null,null,null,null,null,"#G3",null,null,null,{"$f":"IF(COUNTA(G37:G40) =4,GMFTGROUPORDERIND(G37:G40,V37:V42,Z37:Z42),\"\")","v":"A1"},null,"-",null,{"$f":"IF(COUNTA(G37:G40) =4,GMFTGROUPORDERIND(G37:G40,V37:V42,Z37:Z42),\"\")","v":"A2"},null,0,"-",0,"","","","",""]
[null,null,null,null,null,null,null,null,null,null,null,null,null,null,null,null,null,"#G3",null,null,null,{"$f":"IF(COUNTA(G37:G40) =4,GMFTGROUPORDERIND(G37:G40,V37:V42,Z37:Z42),\"\")","v":"A3"},null,"-",null,{"$f":"IF(COUNTA(G37:G40) =4,GMFTGROUPORDERIND(G37:G40,V37:V42,Z37:Z42),\"\")","v":"A4"},null,0,"-",0,"","","","",""]
[null,null,null,null,null,null,null,null,null,null,null,null,null,null,null,null,null,"#G4",null,null,null,{"$f":"Z37","v":"A4"},null,"-",null,{"$f":"V37","v":"A1"},null,0,"-",0,"","","","",""]
[null,null,null,null,null,null,null,null,null,null,null,null,null,null,null,null,null,"#G4",null,null,null,"A3",null,"-",null,"A2",null,0,"-",0,"","","","",""]
[null,null,null,null,null,null,null,null,null,null,null,null,null,null,null,null,null,"#G5",null,null,null,"A1",null,"-",null,"A3",null,0,"-",0,"","","","",""]
[null,null,null,null,null,null,null,null,null,null,null,null,null,null,null,null,null,"#G5",null,null,null,"A2",null,"-",null,"A4",null,0,"-",0,"","","","",""]
[null,null,null,null,null,null,null,null,null,null,null,null,null,null,null,null,null,"#G6",null,null,null,"A2",null,"-",null,"A1",null,0,"-",0,"","","","",""]
[null,null,null,null,null,null,null,null,null,null,null,null,null,null,null,null,null,"#G6",null,null,null,"A4",null,"-",null,"A3",null,0,"-",0,"","","","",""]
[]
[]
[null,{"$f":"N_Group_5","v":"Group of 5"},null,null,null,null,null,null,null,null,null,null,null,null,null,null,null,null,null,null,null,null,null,null,null,null,null,null,null,null,null,null,null,null,null,null,null,null,{"$f":"B51","v":"Group of 5"}]
[]
[null,{"$f":"N_Tirage","v":"Draw"},"Cla.","Cla1","Part","Cla2",{"$f":"N_Joueurs","v":"Players"},{"$f":"N_RankPoints","v":"Rk Pt."},{"$f":"N_Diff_Part","v":"Part-Diff"},{"$f":"N_Pts","v":"Pts"},{"$f":"N_J","v":"Pld"},{"$f":"N_G","v":"W"},{"$f":"N_N","v":"D"},{"$f":"N_P","v":"L"},{"$f":"N_BP","v":"F"},{"$f":"N_BC","v":"A"},{"$f":"N_Diff.","v":"SO"},null,{"$f":"N_Heure","v":"Time"},{"$f":"N_Table","v":"Table"},{"$f":"N_Arbitre","v":"Referee"},{"$f":"N_Matches","v":"Matches"},null,null,null,null,null,{"$f":"IF(MaxScore,N_MaxScore,\"\")","v":"Max Score"},null,null,{"$f":"N_G","v":"W"},{"$f":"N_N","v":"D"},{"$f":"N_N","v":"D"},{"$f":"N_P","v":"L"},"CONCAT","Ref Group",{"$f":"IF(COUNTA(W54:W63)=0,\"\",\"OK\")","v":""},null,null,{"$f":"N_Cla.","v":"Rk"},{"$f":"N_Joueurs","v":"Players"},{"$f":"N_Pts","v":"Pts"},{"$f":"N_J","v":"Pld"},{"$f":"N_G","v":"W"},{"$f":"N_N","v":"D"},{"$f":"N_P","v":"L"},{"$f":"N_BP","v":"F"},{"$f":"N_BC","v":"A"},{"$f":"N_Diff.","v":"SO"},{"$f":"N_Matches","v":"Matches"}]
[null,1,{"$f":"IF(AK53=\"\",\"\",RANK(F54,F54:F58)*1000+ROW())","v":""},{"$f":"IF(L54=\"\",\"\",CritClassInd1_Points*J54+CritClassInd1_Matches*L54+CritClassInd1_Attaque*O54+CritClassInd1_DiffButs*Q54)","v":""},{"$f":"IF(L54=\"\",\"\",Nb_Diff_Part(D54,D54:D58,G54,G54:G58,AI54:AI63)*CritClassInd_DiffPart+Nb_Goal_Part(D54,D54:D58,G54,G54:G58,V54:Z63)*CritClassInd_GoalPart+Nb_Score_Part(D54,D54:D58,G54,G54:G58,V54:Z63)*CritClassInd_ScorePart)","v":""},{"$f":"IF(L54=\"\",\"\",D54+E54+CritClassInd2_Points*J54+CritClassInd2_Matches*L54+CritClassInd2_Attaque*O54+CritClassInd2_DiffButs*Q54+CritClassInd_Ranking*H54+I54)","v":""},"A1",{"$f":"GMFTRANKINGPOINTS(G54,Particular_Category)","v":0},null,{"$f":"IF(AK53=\"\",\"\",(L54*Points_Victoire)+M54*Points_Null)","v":""},{"$f":"IF(L54=\"\",\"\",SUM(L54:N54))","v":""},{"$f":"IF(AK53=\"\",\"\",COUNTIF(AE54:AE63,G54))","v":""},{"$f":"IF(AK53=\"\",\"\",COUNTIF(AF54:AG63,G54))","v":""},{"$f":"IF(AK53=\"\",\"\",COUNTIF(AH54:AH63,G54))","v":""},{"$f":"IF(AK53=\"\",\"\",SUMIF(V54:V63,G54,AB54:AB63)+SUMIF(Z54:Z63,G54,AD54:AD63))","v":""},{"$f":"IF(AK53=\"\",\"\",SUMIF(V54:V63,G54,AD54:AD63)+SUMIF(Z54:Z63,G54,AB54:AB63))","v":""},{"$f":"IF(AK53=\"\",\"\",O54-P54)","v":""},"#G1",null,null,null,{"$f":"IF(G58=\"\",\"\",G58)","v":"A5"},null,"-",null,{"$f":"IF(G54=\"\",\"\",G54)","v":"A1"},null,{"$f":"IF(MaxScore,MaxGoals(W54,Y54,MaxGoalsValue),IF(W54=\"\",\"\",W54))","v":0},{"$f":"IF(MaxScore,\"-\",IF(W54=\"\",\"\",\"-\"))","v":"-"},{"$f":"IF(MaxScore,MaxGoals(Y54,W54,MaxGoalsValue),IF(Y54=\"\",\"\",Y54))","v":0},{"$f":"IF(W54=\"\",\"\",IF(W54>Y54,V54,IF(W54=Y54,\"\",Z54)))","v":""},{"$f":"IF(W54=\"\",\"\",IF(W54=Y54,V54,\"\"))","v":""},{"$f":"IF(W54=\"\",\"\",IF(W54=Y54,Z54,\"\"))","v":""},{"$f":"IF(W54=\"\",\"\",IF(W54<Y54,V54,IF(W54=Y54,\"\",Z54)))","v":""},{"$f":"CONCATENATE(AE54,AH54)","v":""},null,{"$f":"IF(AK53=\"\",\"\",SMALL(C54:C58,1))","v":""},null,null,{"$f":"IF(AK53=\"\",\"\",INT(AK54/1000))","v":""},{"$f":"IF(AK53=\"\",IF(HidePlayerFormulas,\"\",\"(\"&G54&\")\"),VLOOKUP(AK54,C54:Q58,5,FALSE))","v":""},{"$f":"VLOOKUP(AK54,C54:Q58,8,FALSE)","v":""},{"$f":"VLOOKUP(AK54,C54:Q58,9,FALSE)","v":""},{"$f":"VLOOKUP(AK54,C54:Q58,10,FALSE)","v":""},{"$f":"VLOOKUP(AK54,C54:Q58,11,FALSE)","v":""},{"$f":"VLOOKUP(AK54,C54:Q58,12,FALSE)","v":""},{"$f":"VLOOKUP(AK54,C54:Q58,13,FALSE)","v":""},{"$f":"VLOOKUP(AK54,C54:Q58,14,FALSE)","v":""},{"$f":"VLOOKUP(AK54,C54:Q58,15,FALSE)","v":""},{"$f":"IF(W54=\"\",\"\",IF(AO54=V54,W54,IF(AO54=Z54,Y54,\"\")))","v":""},{"$f":"IF(W55=\"\",\"\",IF(AO54=V55,W55,IF(AO54=Z55,Y55,\"\")))","v":""},{"$f":"IF(W56=\"\",\"\",IF(AO54=V56,W56,IF(AO54=Z56,Y56,\"\")))","v":""},{"$f":"IF(W57=\"\",\"\",IF(AO54=V57,W57,IF(AO54=Z57,Y57,\"\")))","v":""},{"$f":"IF(W58=\"\",\"\",IF(AO54=V58,W58,IF(AO54=Z58,Y58,\"\")))","v":""},{"$f":"IF(W59=\"\",\"\",IF(AO54=V59,W59,IF(AO54=Z59,Y59,\"\")))","v":""},{"$f":"IF(W60=\"\",\"\",IF(AO54=V60,W60,IF(AO54=Z60,Y60,\"\")))","v":""},{"$f":"IF(W61=\"\",\"\",IF(AO54=V61,W61,IF(AO54=Z61,Y61,\"\")))","v":""},{"$f":"IF(W62=\"\",\"\",IF(AO54=V62,W62,IF(AO54=Z62,Y62,\"\")))","v":""},{"$f":"IF(W63=\"\",\"\",IF(AO54=V63,W63,IF(AO54=Z63,Y63,\"\")))","v":""},null,null,null,null,null,null,null,null,null,null,null,null,null,null,null,null,null,null,{"$f":"IF(G54=\"[---WithDraw---]\",FALSE,IF(COUNTIF(PlayerNamesWithinGroups,G54)>1,TRUE,FALSE))","v":true},{"$f":"AND(LEFT($AO54,1) = \"(\", RIGHT($AO54,1) =\")\")","v":false},{"$f":"IF(OR($AN54=$AN53,$AN54=$AN55),TRUE,FALSE)","v":true}]
[null,2,{"$f":"IF(AK53=\"\",\"\",RANK(F55,F54:F58)*1000+ROW())","v":""},{"$f":"IF(L55=\"\",\"\",CritClassInd1_Points*J55+CritClassInd1_Matches*L55+CritClassInd1_Attaque*O55+CritClassInd1_DiffButs*Q55)","v":""},{"$f":"IF(L55=\"\",\"\",Nb_Diff_Part(D55,D54:D58,G55,G54:G58,AI54:AI63)*CritClassInd_DiffPart+Nb_Goal_Part(D55,D54:D58,G55,G54:G58,V54:Z63)*CritClassInd_GoalPart+Nb_Score_Part(D55,D54:D58,G55,G54:G58,V54:Z63)*CritClassInd_ScorePart)","v":""},{"$f":"IF(L55=\"\",\"\",D55+E55+CritClassInd2_Points*J55+CritClassInd2_Matches*L55+CritClassInd2_Attaque*O55+CritClassInd2_DiffButs*Q55+CritClassInd_Ranking*H55+I55)","v":""},"A2",{"$f":"GMFTRANKINGPOINTS(G55,Particular_Category)","v":0},null,{"$f":"IF(AK53=\"\",\"\",(L55*Points_Victoire)+M55*Points_Null)","v":""},{"$f":"IF(L55=\"\",\"\",SUM(L55:N55))","v":""},{"$f":"IF(AK53=\"\",\"\",COUNTIF(AE54:AE63,G55))","v":""},{"$f":"IF(AK53=\"\",\"\",COUNTIF(AF54:AG63,G55))","v":""},{"$f":"IF(AK53=\"\",\"\",COUNTIF(AH54:AH63,G55))","v":""},{"$f":"IF(AK53=\"\",\"\",SUMIF(V54:V63,G55,AB54:AB63)+SUMIF(Z54:Z63,G55,AD54:AD63))","v":""},{"$f":"IF(AK53=\"\",\"\",SUMIF(V54:V63,G55,AD54:AD63)+SUMIF(Z54:Z63,G55,AB54:AB63))","v":""},{"$f":"IF(AK53=\"\",\"\",O55-P55)","v":""},"#G1",null,null,null,{"$f":"IF(G55=\"\",\"\",G55)","v":"A2"},null,"-",null,{"$f":"IF(G56=\"\",\"\",G56)","v":"A3"},null,0,"-",0,"","","","","",null,{"$f":"IF(AK53=\"\",\"\",SMALL(C54:C58,2))","v":""},null,null,{"$f":"IF(AK53=\"\",\"\",INT(AK55/1000))","v":""},{"$f":"IF(AK53=\"\",IF(HidePlayerFormulas,\"\",\"(\"&G55&\")\"),VLOOKUP(AK55,C54:Q58,5,FALSE))","v":""},{"$f":"VLOOKUP(AK55,C54:Q58,8,FALSE)","v":""},{"$f":"VLOOKUP(AK55,C54:Q58,9,FALSE)","v":""},{"$f":"VLOOKUP(AK55,C54:Q58,10,FALSE)","v":""},{"$f":"VLOOKUP(AK55,C54:Q58,11,FALSE)","v":""},{"$f":"VLOOKUP(AK55,C54:Q58,12,FALSE)","v":""},{"$f":"VLOOKUP(AK55,C54:Q58,13,FALSE)","v":""},{"$f":"VLOOKUP(AK55,C54:Q58,14,FALSE)","v":""},{"$f":"VLOOKUP(AK55,C54:Q58,15,FALSE)","v":""},{"$f":"IF(W54=\"\",\"\",IF(AO55=V54,W54,IF(AO55=Z54,Y54,\"\")))","v":""},{"$f":"IF(W55=\"\",\"\",IF(AO55=V55,W55,IF(AO55=Z55,Y55,\"\")))","v":""},{"$f":"IF(W56=\"\",\"\",IF(AO55=V56,W56,IF(AO55=Z56,Y56,\"\")))","v":""},{"$f":"IF(W57=\"\",\"\",IF(AO55=V57,W57,IF(AO55=Z57,Y57,\"\")))","v":""},{"$f":"IF(W58=\"\",\"\",IF(AO55=V58,W58,IF(AO55=Z58,Y58,\"\")))","v":""},{"$f":"IF(W59=\"\",\"\",IF(AO55=V59,W59,IF(AO55=Z59,Y59,\"\")))","v":""},{"$f":"IF(W60=\"\",\"\",IF(AO55=V60,W60,IF(AO55=Z60,Y60,\"\")))","v":""},{"$f":"IF(W61=\"\",\"\",IF(AO55=V61,W61,IF(AO55=Z61,Y61,\"\")))","v":""},{"$f":"IF(W62=\"\",\"\",IF(AO55=V62,W62,IF(AO55=Z62,Y62,\"\")))","v":""},{"$f":"IF(W63=\"\",\"\",IF(AO55=V63,W63,IF(AO55=Z63,Y63,\"\")))","v":""},null,null,null,null,null,null,null,null,null,null,null,null,null,null,null,null,null,null,{"$f":"IF(G55=\"[---WithDraw---]\",FALSE,IF(COUNTIF(PlayerNamesWithinGroups,G55)>1,TRUE,FALSE))","v":true},{"$f":"AND(LEFT($AO55,1) = \"(\", RIGHT($AO55,1) =\")\")","v":false},{"$f":"IF(OR($AN55=$AN54,$AN55=$AN56),TRUE,FALSE)","v":true}]
[null,3,{"$f":"IF(AK53=\"\",\"\",RANK(F56,F54:F58)*1000+ROW())","v":""},{"$f":"IF(L56=\"\",\"\",CritClassInd1_Points*J56+CritClassInd1_Matches*L56+CritClassInd1_Attaque*O56+CritClassInd1_DiffButs*Q56)","v":""},{"$f":"IF(L56=\"\",\"\",Nb_Diff_Part(D56,D54:D58,G56,G54:G58,AI54:AI63)*CritClassInd_DiffPart+Nb_Goal_Part(D56,D54:D58,G56,G54:G58,V54:Z63)*CritClassInd_GoalPart+Nb_Score_Part(D56,D54:D58,G56,G54:G58,V54:Z63)*CritClassInd_ScorePart)","v":""},{"$f":"IF(L56=\"\",\"\",D56+E56+CritClassInd2_Points*J56+CritClassInd2_Matches*L56+CritClassInd2_Attaque*O56+CritClassInd2_DiffButs*Q56+CritClassInd_Ranking*H56+I56)","v":""},"A3",{"$f":"GMFTRANKINGPOINTS(G56,Particular_Category)","v":0},null,{"$f":"IF(AK53=\"\",\"\",(L56*Points_Victoire)+M56*Points_Null)","v":""},{"$f":"IF(L56=\"\",\"\",SUM(L56:N56))","v":""},{"$f":"IF(AK53=\"\",\"\",COUNTIF(AE54:AE63,G56))","v":""},{"$f":"IF(AK53=\"\",\"\",COUNTIF(AF54:AG63,G56))","v":""},{"$f":"IF(AK53=\"\",\"\",COUNTIF(AH54:AH63,G56))","v":""},{"$f":"IF(AK53=\"\",\"\",SUMIF(V54:V63,G56,AB54:AB63)+SUMIF(Z54:Z63,G56,AD54:AD63))","v":""},{"$f":"IF(AK53=\"\",\"\",SUMIF(V54:V63,G56,AD54:AD63)+SUMIF(Z54:Z63,G56,AB54:AB63))","v":""},{"$f":"IF(AK53=\"\",\"\",O56-P56)","v":""},"#G2",null,null,null,{"$f":"IF(G55=\"\",\"\",G55)","v":"A2"},null,"-",null,{"$f":"IF(G57=\"\",\"\",G57)","v":"A4"},null,0,"-",0,"","","","","",null,{"$f":"IF(AK53=\"\",\"\",SMALL(C54:C58,3))","v":""},null,null,{"$f":"IF(AK53=\"\",\"\",INT(AK56/1000))","v":""},{"$f":"IF(AK53=\"\",IF(HidePlayerFormulas,\"\",\"(\"&G56&\")\"),VLOOKUP(AK56,C54:Q58,5,FALSE))","v":""},{"$f":"VLOOKUP(AK56,C54:Q58,8,FALSE)","v":""},{"$f":"VLOOKUP(AK56,C54:Q58,9,FALSE)","v":""},{"$f":"VLOOKUP(AK56,C54:Q58,10,FALSE)","v":""},{"$f":"VLOOKUP(AK56,C54:Q58,11,FALSE)","v":""},{"$f":"VLOOKUP(AK56,C54:Q58,12,FALSE)","v":""},{"$f":"VLOOKUP(AK56,C54:Q58,13,FALSE)","v":""},{"$f":"VLOOKUP(AK56,C54:Q58,14,FALSE)","v":""},{"$f":"VLOOKUP(AK56,C54:Q58,15,FALSE)","v":""},{"$f":"IF(W54=\"\",\"\",IF(AO56=V54,W54,IF(AO56=Z54,Y54,\"\")))","v":""},{"$f":"IF(W55=\"\",\"\",IF(AO56=V55,W55,IF(AO56=Z55,Y55,\"\")))","v":""},{"$f":"IF(W56=\"\",\"\",IF(AO56=V56,W56,IF(AO56=Z56,Y56,\"\")))","v":""},{"$f":"IF(W57=\"\",\"\",IF(AO56=V57,W57,IF(AO56=Z57,Y57,\"\")))","v":""},{"$f":"IF(W58=\"\",\"\",IF(AO56=V58,W58,IF(AO56=Z58,Y58,\"\")))","v":""},{"$f":"IF(W59=\"\",\"\",IF(AO56=V59,W59,IF(AO56=Z59,Y59,\"\")))","v":""},{"$f":"IF(W60=\"\",\"\",IF(AO56=V60,W60,IF(AO56=Z60,Y60,\"\")))","v":""},{"$f":"IF(W61=\"\",\"\",IF(AO56=V61,W61,IF(AO56=Z61,Y61,\"\")))","v":""},{"$f":"IF(W62=\"\",\"\",IF(AO56=V62,W62,IF(AO56=Z62,Y62,\"\")))","v":""},{"$f":"IF(W63=\"\",\"\",IF(AO56=V63,W63,IF(AO56=Z63,Y63,\"\")))","v":""},null,null,null,null,null,null,null,null,null,null,null,null,null,null,null,null,null,null,{"$f":"IF(G56=\"[---WithDraw---]\",FALSE,IF(COUNTIF(PlayerNamesWithinGroups,G56)>1,TRUE,FALSE))","v":true},{"$f":"AND(LEFT($AO56,1) = \"(\", RIGHT($AO56,1) =\")\")","v":false},{"$f":"IF(OR($AN56=$AN55,$AN56=$AN57),TRUE,FALSE)","v":true}]
[null,4,{"$f":"IF(AK53=\"\",\"\",RANK(F57,F54:F58)*1000+ROW())","v":""},{"$f":"IF(L57=\"\",\"\",CritClassInd1_Points*J57+CritClassInd1_Matches*L57+CritClassInd1_Attaque*O57+CritClassInd1_DiffButs*Q57)","v":""},{"$f":"IF(L57=\"\",\"\",Nb_Diff_Part(D57,D54:D58,G57,G54:G58,AI54:AI63)*CritClassInd_DiffPart+Nb_Goal_Part(D57,D54:D58,G57,G54:G58,V54:Z63)*CritClassInd_GoalPart+Nb_Score_Part(D57,D54:D58,G57,G54:G58,V54:Z63)*CritClassInd_ScorePart)","v":""},{"$f":"IF(L57=\"\",\"\",D57+E57+CritClassInd2_Points*J57+CritClassInd2_Matches*L57+CritClassInd2_Attaque*O57+CritClassInd2_DiffButs*Q57+CritClassInd_Ranking*H57+I57)","v":""},"A4",{"$f":"GMFTRANKINGPOINTS(G57,Particular_Category)","v":0},null,{"$f":"IF(AK53=\"\",\"\",(L57*Points_Victoire)+M57*Points_Null)","v":""},{"$f":"IF(L57=\"\",\"\",SUM(L57:N57))","v":""},{"$f":"IF(AK53=\"\",\"\",COUNTIF(AE54:AE63,G57))","v":""},{"$f":"IF(AK53=\"\",\"\",COUNTIF(AF54:AG63,G57))","v":""},{"$f":"IF(AK53=\"\",\"\",COUNTIF(AH54:AH63,G57))","v":""},{"$f":"IF(AK53=\"\",\"\",SUMIF(V54:V63,G57,AB54:AB63)+SUMIF(Z54:Z63,G57,AD54:AD63))","v":""},{"$f":"IF(AK53=\"\",\"\",SUMIF(V54:V63,G57,AD54:AD63)+SUMIF(Z54:Z63,G57,AB54:AB63))","v":""},{"$f":"IF(AK53=\"\",\"\",O57-P57)","v":""},"#G2",null,null,null,{"$f":"IF(G56=\"\",\"\",G56)","v":"A3"},null,"-",null,{"$f":"IF(G58=\"\",\"\",G58)","v":"A5"},null,0,"-",0,"","","","","",null,{"$f":"IF(AK53=\"\",\"\",SMALL(C54:C58,4))","v":""},null,null,{"$f":"IF(AK53=\"\",\"\",INT(AK57/1000))","v":""},{"$f":"IF(AK53=\"\",IF(HidePlayerFormulas,\"\",\"(\"&G57&\")\"),VLOOKUP(AK57,C54:Q58,5,FALSE))","v":""},{"$f":"VLOOKUP(AK57,C54:Q58,8,FALSE)","v":""},{"$f":"VLOOKUP(AK57,C54:Q58,9,FALSE)","v":""},{"$f":"VLOOKUP(AK57,C54:Q58,10,FALSE)","v":""},{"$f":"VLOOKUP(AK57,C54:Q58,11,FALSE)","v":""},{"$f":"VLOOKUP(AK57,C54:Q58,12,FALSE)","v":""},{"$f":"VLOOKUP(AK57,C54:Q58,13,FALSE)","v":""},{"$f":"VLOOKUP(AK57,C54:Q58,14,FALSE)","v":""},{"$f":"VLOOKUP(AK57,C54:Q58,15,FALSE)","v":""},{"$f":"IF(W54=\"\",\"\",IF(AO57=V54,W54,IF(AO57=Z54,Y54,\"\")))","v":""},{"$f":"IF(W55=\"\",\"\",IF(AO57=V55,W55,IF(AO57=Z55,Y55,\"\")))","v":""},{"$f":"IF(W56=\"\",\"\",IF(AO57=V56,W56,IF(AO57=Z56,Y56,\"\")))","v":""},{"$f":"IF(W57=\"\",\"\",IF(AO57=V57,W57,IF(AO57=Z57,Y57,\"\")))","v":""},{"$f":"IF(W58=\"\",\"\",IF(AO57=V58,W58,IF(AO57=Z58,Y58,\"\")))","v":""},{"$f":"IF(W59=\"\",\"\",IF(AO57=V59,W59,IF(AO57=Z59,Y59,\"\")))","v":""},{"$f":"IF(W60=\"\",\"\",IF(AO57=V60,W60,IF(AO57=Z60,Y60,\"\")))","v":""},{"$f":"IF(W61=\"\",\"\",IF(AO57=V61,W61,IF(AO57=Z61,Y61,\"\")))","v":""},{"$f":"IF(W62=\"\",\"\",IF(AO57=V62,W62,IF(AO57=Z62,Y62,\"\")))","v":""},{"$f":"IF(W63=\"\",\"\",IF(AO57=V63,W63,IF(AO57=Z63,Y63,\"\")))","v":""},null,null,null,null,null,null,null,null,null,null,null,null,null,null,null,null,null,null,{"$f":"IF(G57=\"[---WithDraw---]\",FALSE,IF(COUNTIF(PlayerNamesWithinGroups,G57)>1,TRUE,FALSE))","v":true},{"$f":"AND(LEFT($AO57,1) = \"(\", RIGHT($AO57,1) =\")\")","v":false},{"$f":"IF(OR($AN57=$AN56,$AN57=$AN58),TRUE,FALSE)","v":true}]
[null,5,{"$f":"IF(AK53=\"\",\"\",RANK(F58,F54:F58)*1000+ROW())","v":""},{"$f":"IF(L58=\"\",\"\",CritClassInd1_Points*J58+CritClassInd1_Matches*L58+CritClassInd1_Attaque*O58+CritClassInd1_DiffButs*Q58)","v":""},{"$f":"IF(L58=\"\",\"\",Nb_Diff_Part(D58,D54:D58,G58,G54:G58,AI54:AI63)*CritClassInd_DiffPart+Nb_Goal_Part(D58,D54:D58,G58,G54:G58,V54:Z63)*CritClassInd_GoalPart+Nb_Score_Part(D58,D54:D58,G58,G54:G58,V54:Z63)*CritClassInd_ScorePart)","v":""},{"$f":"IF(L58=\"\",\"\",D58+E58+CritClassInd2_Points*J58+CritClassInd2_Matches*L58+CritClassInd2_Attaque*O58+CritClassInd2_DiffButs*Q58+CritClassInd_Ranking*H58+I58)","v":""},"A5",{"$f":"GMFTRANKINGPOINTS(G58,Particular_Category)","v":0},null,{"$f":"IF(AK53=\"\",\"\",(L58*Points_Victoire)+M58*Points_Null)","v":""},{"$f":"IF(L58=\"\",\"\",SUM(L58:N58))","v":""},{"$f":"IF(AK53=\"\",\"\",COUNTIF(AE54:AE63,G58))","v":""},{"$f":"IF(AK53=\"\",\"\",COUNTIF(AF54:AG63,G58))","v":""},{"$f":"IF(AK53=\"\",\"\",COUNTIF(AH54:AH63,G58))","v":""},{"$f":"IF(AK53=\"\",\"\",SUMIF(V54:V63,G58,AB54:AB63)+SUMIF(Z54:Z63,G58,AD54:AD63))","v":""},{"$f":"IF(AK53=\"\",\"\",SUMIF(V54:V63,G58,AD54:AD63)+SUMIF(Z54:Z63,G58,AB54:AB63))","v":""},{"$f":"IF(AK53=\"\",\"\",O58-P58)","v":""},"#G3",null,null,null,{"$f":"IF(G57=\"\",\"\",G57)","v":"A4"},null,"-",null,{"$f":"IF(G54=\"\",\"\",G54)","v":"A1"},null,0,"-",0,"","","","","",null,{"$f":"IF(AK53=\"\",\"\",SMALL(C54:C58,5))","v":""},null,null,{"$f":"IF(AK53=\"\",\"\",INT(AK58/1000))","v":""},{"$f":"IF(AK53=\"\",IF(HidePlayerFormulas,\"\",\"(\"&G58&\")\"),VLOOKUP(AK58,C54:Q58,5,FALSE))","v":""},{"$f":"VLOOKUP(AK58,C54:Q58,8,FALSE)","v":""},{"$f":"VLOOKUP(AK58,C54:Q58,9,FALSE)","v":""},{"$f":"VLOOKUP(AK58,C54:Q58,10,FALSE)","v":""},{"$f":"VLOOKUP(AK58,C54:Q58,11,FALSE)","v":""},{"$f":"VLOOKUP(AK58,C54:Q58,12,FALSE)","v":""},{"$f":"VLOOKUP(AK58,C54:Q58,13,FALSE)","v":""},{"$f":"VLOOKUP(AK58,C54:Q58,14,FALSE)","v":""},{"$f":"VLOOKUP(AK58,C54:Q58,15,FALSE)","v":""},{"$f":"IF(W54=\"\",\"\",IF(AO58=V54,W54,IF(AO58=Z54,Y54,\"\")))","v":""},{"$f":"IF(W55=\"\",\"\",IF(AO58=V55,W55,IF(AO58=Z55,Y55,\"\")))","v":""},{"$f":"IF(W56=\"\",\"\",IF(AO58=V56,W56,IF(AO58=Z56,Y56,\"\")))","v":""},{"$f":"IF(W57=\"\",\"\",IF(AO58=V57,W57,IF(AO58=Z57,Y57,\"\")))","v":""},{"$f":"IF(W58=\"\",\"\",IF(AO58=V58,W58,IF(AO58=Z58,Y58,\"\")))","v":""},{"$f":"IF(W59=\"\",\"\",IF(AO58=V59,W59,IF(AO58=Z59,Y59,\"\")))","v":""},{"$f":"IF(W60=\"\",\"\",IF(AO58=V60,W60,IF(AO58=Z60,Y60,\"\")))","v":""},{"$f":"IF(W61=\"\",\"\",IF(AO58=V61,W61,IF(AO58=Z61,Y61,\"\")))","v":""},{"$f":"IF(W62=\"\",\"\",IF(AO58=V62,W62,IF(AO58=Z62,Y62,\"\")))","v":""},{"$f":"IF(W63=\"\",\"\",IF(AO58=V63,W63,IF(AO58=Z63,Y63,\"\")))","v":""},null,null,null,null,null,null,null,null,null,null,null,null,null,null,null,null,null,null,{"$f":"IF(G58=\"[---WithDraw---]\",FALSE,IF(COUNTIF(PlayerNamesWithinGroups,G58)>1,TRUE,FALSE))","v":true},{"$f":"AND(LEFT($AO58,1) = \"(\", RIGHT($AO58,1) =\")\")","v":false},{"$f":"IF(OR($AN58=$AN57,$AN58=$AN59),TRUE,FALSE)","v":true}]
[null,null,null,null,null,null,null,null,null,null,null,null,null,null,null,null,null,"#G3",null,null,null,{"$f":"IF(G58=\"\",\"\",G58)","v":"A5"},null,"-",null,{"$f":"IF(G55=\"\",\"\",G55)","v":"A2"},null,0,"-",0,"","","","",""]
[null,null,null,null,null,null,null,null,null,null,null,null,null,null,null,null,null,"#G4",null,null,null,{"$f":"IF(G54=\"\",\"\",G54)","v":"A1"},null,"-",null,{"$f":"IF(G56=\"\",\"\",G56)","v":"A3"},null,0,"-",0,"","","","",""]
[null,null,null,null,null,null,null,null,null,null,null,null,null,null,null,null,null,"#G4",null,null,null,{"$f":"IF(G57=\"\",\"\",G57)","v":"A4"},null,"-",null,{"$f":"IF(G58=\"\",\"\",G58)","v":"A5"},null,0,"-",0,"","","","",""]
[null,null,null,null,null,null,null,null,null,null,null,null,null,null,null,null,null,"#G5",null,null,null,{"$f":"IF(G54=\"\",\"\",G54)","v":"A1"},null,"-",null,{"$f":"IF(G55=\"\",\"\",G55)","v":"A2"},null,0,"-",0,"","","","",""]
[null,null,null,null,null,null,null,null,null,null,null,null,null,null,null,null,null,"#G5",null,null,null,{"$f":"IF(G56=\"\",\"\",G56)","v":"A3"},null,"-",null,{"$f":"IF(G57=\"\",\"\",G57)","v":"A4"},null,0,"-",0,"","","","",""]
[]
[]
[null,{"$f":"N_Group_5_2leg","v":"Group of 5 with first/second leg"},null,null,null,null,null,null,null,null,null,null,null,null,null,null,null,null,null,null,null,null,null,null,null,null,null,null,null,null,null,null,null,null,null,null,null,null,{"$f":"B66","v":"Group of 5 with first/second leg"}]
[]
[null,{"$f":"N_Tirage","v":"Draw"},"Cla.","Cla1","Part","Cla2",{"$f":"N_Joueurs","v":"Players"},{"$f":"N_RankPoints","v":"Rk Pt."},{"$f":"N_Diff_Part","v":"Part-Diff"},{"$f":"N_Pts","v":"Pts"},{"$f":"N_J","v":"Pld"},{"$f":"N_G","v":"W"},{"$f":"N_N","v":"D"},{"$f":"N_P","v":"L"},{"$f":"N_BP","v":"F"},{"$f":"N_BC","v":"A"},{"$f":"N_Diff.","v":"SO"},null,{"$f":"N_Heure","v":"Time"},{"$f":"N_Table","v":"Table"},{"$f":"N_Arbitre","v":"Referee"},{"$f":"N_Matches","v":"Matches"},null,null,null,null,null,{"$f":"IF(MaxScore,N_MaxScore,\"\")","v":"Max Score"},null,null,{"$f":"N_G","v":"W"},{"$f":"N_N","v":"D"},{"$f":"N_N","v":"D"},{"$f":"N_P","v":"L"},"CONCAT","Ref Group",{"$f":"IF(COUNTA(W69:W88)=0,\"\",\"OK\")","v":""},null,null,{"$f":"N_Cla.","v":"Rk"},{"$f":"N_Joueurs","v":"Players"},{"$f":"N_Pts","v":"Pts"},{"$f":"N_J","v":"Pld"},{"$f":"N_G","v":"W"},{"$f":"N_N","v":"D"},{"$f":"N_P","v":"L"},{"$f":"N_BP","v":"F"},{"$f":"N_BC","v":"A"},{"$f":"N_Diff.","v":"SO"},{"$f":"N_Matches","v":"Matches"}]
[null,1,{"$f":"IF(AK68=\"\",\"\",RANK(F69,F69:F73)*1000+ROW())","v":""},{"$f":"IF(L69=\"\",\"\",CritClassInd1_Points*J69+CritClassInd1_Matches*L69+CritClassInd1_Attaque*O69+CritClassInd1_DiffButs*Q69)","v":""},{"$f":"IF(L69=\"\",\"\",Nb_Diff_Part(D69,D69:D73,G69,G69:G73,AI69:AI88)*CritClassInd_DiffPart+Nb_Goal_Part(D69,D69:D73,G69,G69:G73,V69:Z88)*CritClassInd_GoalPart+Nb_Score_Part(D69,D69:D73,G69,G69:G73,V69:Z88)*CritClassInd_ScorePart)","v":""},{"$f":"IF(L69=\"\",\"\",D69+E69+CritClassInd2_Points*J69+CritClassInd2_Matches*L69+CritClassInd2_Attaque*O69+CritClassInd2_DiffButs*Q69+CritClassInd_Ranking*H69+I69)","v":""},"A1",{"$f":"GMFTRANKINGPOINTS(G69,Particular_Category)","v":0},null,{"$f":"IF(AK68=\"\",\"\",(L69*Points_Victoire)+M69*Points_Null)","v":""},{"$f":"IF(L69=\"\",\"\",SUM(L69:N69))","v":""},{"$f":"IF(AK68=\"\",\"\",COUNTIF(AE69:AE88,G69))","v":""},{"$f":"IF(AK68=\"\",\"\",COUNTIF(AF69:AG88,G69))","v":""},{"$f":"IF(AK68=\"\",\"\",COUNTIF(AH69:AH88,G69))","v":""},{"$f":"IF(AK68=\"\",\"\",SUMIF(V69:V88,G69,AB69:AB88)+SUMIF(Z69:Z88,G69,AD69:AD88))","v":""},{"$f":"IF(AK68=\"\",\"\",SUMIF(V69:V88,G69,AD69:AD88)+SUMIF(Z69:Z88,G69,AB69:AB88))","v":""},{"$f":"IF(AK68=\"\",\"\",O69-P69)","v":""},"#G1",null,null,null,{"$f":"IF(G73=\"\",\"\",G73)","v":"A5"},null,"-",null,{"$f":"IF(G69=\"\",\"\",G69)","v":"A1"},null,{"$f":"IF(MaxScore,MaxGoals(W69,Y69,MaxGoalsValue),IF(W69=\"\",\"\",W69))","v":0},{"$f":"IF(MaxScore,\"-\",IF(W69=\"\",\"\",\"-\"))","v":"-"},{"$f":"IF(MaxScore,MaxGoals(Y69,W69,MaxGoalsValue),IF(Y69=\"\",\"\",Y69))","v":0},{"$f":"IF(W69=\"\",\"\",IF(W69>Y69,V69,IF(W69=Y69,\"\",Z69)))","v":""},{"$f":"IF(W69=\"\",\"\",IF(W69=Y69,V69,\"\"))","v":""},{"$f":"IF(W69=\"\",\"\",IF(W69=Y69,Z69,\"\"))","v":""},{"$f":"IF(W69=\"\",\"\",IF(W69<Y69,V69,IF(W69=Y69,\"\",Z69)))","v":""},{"$f":"CONCATENATE(AE69,AH69)","v":""},null,{"$f":"IF(AK68=\"\",\"\",SMALL(C69:C73,1))","v":""},null,null,{"$f":"IF(AK68=\"\",\"\",INT(AK69/1000))","v":""},{"$f":"IF(AK68=\"\",IF(HidePlayerFormulas,\"\",\"(\"&G69&\")\"),VLOOKUP(AK69,C69:Q73,5,FALSE))","v":""},{"$f":"VLOOKUP(AK69,C69:Q73,8,FALSE)","v":""},{"$f":"VLOOKUP(AK69,C69:Q73,9,FALSE)","v":""},{"$f":"VLOOKUP(AK69,C69:Q73,10,FALSE)","v":""},{"$f":"VLOOKUP(AK69,C69:Q73,11,FALSE)","v":""},{"$f":"VLOOKUP(AK69,C69:Q73,12,FALSE)","v":""},{"$f":"VLOOKUP(AK69,C69:Q73,13,FALSE)","v":""},{"$f":"VLOOKUP(AK69,C69:Q73,14,FALSE)","v":""},{"$f":"VLOOKUP(AK69,C69:Q73,15,FALSE)","v":""},{"$f":"IF(W69=\"\",\"\",IF(AO69=V69,W69,IF(AO69=Z69,Y69,\"\")))","v":""},{"$f":"IF(W70=\"\",\"\",IF(AO69=V70,W70,IF(AO69=Z70,Y70,\"\")))","v":""},{"$f":"IF(W71=\"\",\"\",IF(AO69=V71,W71,IF(AO69=Z71,Y71,\"\")))","v":""},{"$f":"IF(W72=\"\",\"\",IF(AO69=V72,W72,IF(AO69=Z72,Y72,\"\")))","v":""},{"$f":"IF(W73=\"\",\"\",IF(AO69=V73,W73,IF(AO69=Z73,Y73,\"\")))","v":""},{"$f":"IF(W74=\"\",\"\",IF(AO69=V74,W74,IF(AO69=Z74,Y74,\"\")))","v":""},{"$f":"IF(W75=\"\",\"\",IF(AO69=V75,W75,IF(AO69=Z75,Y75,\"\")))","v":""},{"$f":"IF(W76=\"\",\"\",IF(AO69=V76,W76,IF(AO69=Z76,Y76,\"\")))","v":""},{"$f":"IF(W77=\"\",\"\",IF(AO69=V77,W77,IF(AO69=Z77,Y77,\"\")))","v":""},{"$f":"IF(W78=\"\",\"\",IF(AO69=V78,W78,IF(AO69=Z78,Y78,\"\")))","v":""},{"$f":"IF(W79=\"\",\"\",IF(AO69=V79,W79,IF(AO69=Z79,Y79,\"\")))","v":""},{"$f":"IF(W80=\"\",\"\",IF(AO69=V80,W80,IF(AO69=Z80,Y80,\"\")))","v":""},{"$f":"IF(W81=\"\",\"\",IF(AO69=V81,W81,IF(AO69=Z81,Y81,\"\")))","v":""},{"$f":"IF(W82=\"\",\"\",IF(AO69=V82,W82,IF(AO69=Z82,Y82,\"\")))","v":""},{"$f":"IF(W83=\"\",\"\",IF(AO69=V83,W83,IF(AO69=Z83,Y83,\"\")))","v":""},{"$f":"IF(W84=\"\",\"\",IF(AO69=V84,W84,IF(AO69=Z84,Y84,\"\")))","v":""},{"$f":"IF(W85=\"\",\"\",IF(AO69=V85,W85,IF(AO69=Z85,Y85,\"\")))","v":""},{"$f":"IF(W86=\"\",\"\",IF(AO69=V86,W86,IF(AO69=Z86,Y86,\"\")))","v":""},{"$f":"IF(W87=\"\",\"\",IF(AO69=V87,W87,IF(AO69=Z87,Y87,\"\")))","v":""},{"$f":"IF(W88=\"\",\"\",IF(AO69=V88,W88,IF(AO69=Z88,Y88,\"\")))","v":""},null,null,null,null,null,null,null,null,{"$f":"IF(G69=\"[---WithDraw---]\",FALSE,IF(COUNTIF(PlayerNamesWithinGroups,G69)>1,TRUE,FALSE))","v":true},{"$f":"AND(LEFT($AO69,1) = \"(\", RIGHT($AO69,1) =\")\")","v":false},{"$f":"IF(OR($AN69=$AN68,$AN69=$AN70),TRUE,FALSE)","v":true}]
[null,2,{"$f":"IF(AK68=\"\",\"\",RANK(F70,F69:F73)*1000+ROW())","v":""},{"$f":"IF(L70=\"\",\"\",CritClassInd1_Points*J70+CritClassInd1_Matches*L70+CritClassInd1_Attaque*O70+CritClassInd1_DiffButs*Q70)","v":""},{"$f":"IF(L70=\"\",\"\",Nb_Diff_Part(D70,D69:D73,G70,G69:G73,AI69:AI88)*CritClassInd_DiffPart+Nb_Goal_Part(D70,D69:D73,G70,G69:G73,V69:Z88)*CritClassInd_GoalPart+Nb_Score_Part(D70,D69:D73,G70,G69:G73,V69:Z88)*CritClassInd_ScorePart)","v":""},{"$f":"IF(L70=\"\",\"\",D70+E70+CritClassInd2_Points*J70+CritClassInd2_Matches*L70+CritClassInd2_Attaque*O70+CritClassInd2_DiffButs*Q70+CritClassInd_Ranking*H70+I70)","v":""},"A2",{"$f":"GMFTRANKINGPOINTS(G70,Particular_Category)","v":0},null,{"$f":"IF(AK68=\"\",\"\",(L70*Points_Victoire)+M70*Points_Null)","v":""},{"$f":"IF(L70=\"\",\"\",SUM(L70:N70))","v":""},{"$f":"IF(AK68=\"\",\"\",COUNTIF(AE69:AE88,G70))","v":""},{"$f":"IF(AK68=\"\",\"\",COUNTIF(AF69:AG88,G70))","v":""},{"$f":"IF(AK68=\"\",\"\",COUNTIF(AH69:AH88,G70))","v":""},{"$f":"IF(AK68=\"\",\"\",SUMIF(V69:V88,G70,AB69:AB88)+SUMIF(Z69:Z88,G70,AD69:AD88))","v":""},{"$f":"IF(AK68=\"\",\"\",SUMIF(V69:V88,G70,AD69:AD88)+SUMIF(Z69:Z88,G70,AB69:AB88))","v":""},{"$f":"IF(AK68=\"\",\"\",O70-P70)","v":""},"#G1",null,null,null,{"$f":"IF(G70=\"\",\"\",G70)","v":"A2"},null,"-",null,{"$f":"IF(G71=\"\",\"\",G71)","v":"A3"},null,0,"-",0,"","","","","",null,{"$f":"IF(AK68=\"\",\"\",SMALL(C69:C73,2))","v":""},null,null,{"$f":"IF(AK68=\"\",\"\",INT(AK70/1000))","v":""},{"$f":"IF(AK68=\"\",IF(HidePlayerFormulas,\"\",\"(\"&G70&\")\"),VLOOKUP(AK70,C69:Q73,5,FALSE))","v":""},{"$f":"VLOOKUP(AK70,C69:Q73,8,FALSE)","v":""},{"$f":"VLOOKUP(AK70,C69:Q73,9,FALSE)","v":""},{"$f":"VLOOKUP(AK70,C69:Q73,10,FALSE)","v":""},{"$f":"VLOOKUP(AK70,C69:Q73,11,FALSE)","v":""},{"$f":"VLOOKUP(AK70,C69:Q73,12,FALSE)","v":""},{"$f":"VLOOKUP(AK70,C69:Q73,13,FALSE)","v":""},{"$f":"VLOOKUP(AK70,C69:Q73,14,FALSE)","v":""},{"$f":"VLOOKUP(AK70,C69:Q73,15,FALSE)","v":""},{"$f":"IF(W69=\"\",\"\",IF(AO70=V69,W69,IF(AO70=Z69,Y69,\"\")))","v":""},{"$f":"IF(W70=\"\",\"\",IF(AO70=V70,W70,IF(AO70=Z70,Y70,\"\")))","v":""},{"$f":"IF(W71=\"\",\"\",IF(AO70=V71,W71,IF(AO70=Z71,Y71,\"\")))","v":""},{"$f":"IF(W72=\"\",\"\",IF(AO70=V72,W72,IF(AO70=Z72,Y72,\"\")))","v":""},{"$f":"IF(W73=\"\",\"\",IF(AO70=V73,W73,IF(AO70=Z73,Y73,\"\")))","v":""},{"$f":"IF(W74=\"\",\"\",IF(AO70=V74,W74,IF(AO70=Z74,Y74,\"\")))","v":""},{"$f":"IF(W75=\"\",\"\",IF(AO70=V75,W75,IF(AO70=Z75,Y75,\"\")))","v":""},{"$f":"IF(W76=\"\",\"\",IF(AO70=V76,W76,IF(AO70=Z76,Y76,\"\")))","v":""},{"$f":"IF(W77=\"\",\"\",IF(AO70=V77,W77,IF(AO70=Z77,Y77,\"\")))","v":""},{"$f":"IF(W78=\"\",\"\",IF(AO70=V78,W78,IF(AO70=Z78,Y78,\"\")))","v":""},{"$f":"IF(W79=\"\",\"\",IF(AO70=V79,W79,IF(AO70=Z79,Y79,\"\")))","v":""},{"$f":"IF(W80=\"\",\"\",IF(AO70=V80,W80,IF(AO70=Z80,Y80,\"\")))","v":""},{"$f":"IF(W81=\"\",\"\",IF(AO70=V81,W81,IF(AO70=Z81,Y81,\"\")))","v":""},{"$f":"IF(W82=\"\",\"\",IF(AO70=V82,W82,IF(AO70=Z82,Y82,\"\")))","v":""},{"$f":"IF(W83=\"\",\"\",IF(AO70=V83,W83,IF(AO70=Z83,Y83,\"\")))","v":""},{"$f":"IF(W84=\"\",\"\",IF(AO70=V84,W84,IF(AO70=Z84,Y84,\"\")))","v":""},{"$f":"IF(W85=\"\",\"\",IF(AO70=V85,W85,IF(AO70=Z85,Y85,\"\")))","v":""},{"$f":"IF(W86=\"\",\"\",IF(AO70=V86,W86,IF(AO70=Z86,Y86,\"\")))","v":""},{"$f":"IF(W87=\"\",\"\",IF(AO70=V87,W87,IF(AO70=Z87,Y87,\"\")))","v":""},{"$f":"IF(W88=\"\",\"\",IF(AO70=V88,W88,IF(AO70=Z88,Y88,\"\")))","v":""},null,null,null,null,null,null,null,null,{"$f":"IF(G70=\"[---WithDraw---]\",FALSE,IF(COUNTIF(PlayerNamesWithinGroups,G70)>1,TRUE,FALSE))","v":true},{"$f":"AND(LEFT($AO70,1) = \"(\", RIGHT($AO70,1) =\")\")","v":false},{"$f":"IF(OR($AN70=$AN69,$AN70=$AN71),TRUE,FALSE)","v":true}]
[null,3,{"$f":"IF(AK68=\"\",\"\",RANK(F71,F69:F73)*1000+ROW())","v":""},{"$f":"IF(L71=\"\",\"\",CritClassInd1_Points*J71+CritClassInd1_Matches*L71+CritClassInd1_Attaque*O71+CritClassInd1_DiffButs*Q71)","v":""},{"$f":"IF(L71=\"\",\"\",Nb_Diff_Part(D71,D69:D73,G71,G69:G73,AI69:AI88)*CritClassInd_DiffPart+Nb_Goal_Part(D71,D69:D73,G71,G69:G73,V69:Z88)*CritClassInd_GoalPart+Nb_Score_Part(D71,D69:D73,G71,G69:G73,V69:Z88)*CritClassInd_ScorePart)","v":""},{"$f":"IF(L71=\"\",\"\",D71+E71+CritClassInd2_Points*J71+CritClassInd2_Matches*L71+CritClassInd2_Attaque*O71+CritClassInd2_DiffButs*Q71+CritClassInd_Ranking*H71+I71)","v":""},"A3",{"$f":"GMFTRANKINGPOINTS(G71,Particular_Category)","v":0},null,{"$f":"IF(AK68=\"\",\"\",(L71*Points_Victoire)+M71*Points_Null)","v":""},{"$f":"IF(L71=\"\",\"\",SUM(L71:N71))","v":""},{"$f":"IF(AK68=\"\",\"\",COUNTIF(AE69:AE88,G71))","v":""},{"$f":"IF(AK68=\"\",\"\",COUNTIF(AF69:AG88,G71))","v":""},{"$f":"IF(AK68=\"\",\"\",COUNTIF(AH69:AH88,G71))","v":""},{"$f":"IF(AK68=\"\",\"\",SUMIF(V69:V88,G71,AB69:AB88)+SUMIF(Z69:Z88,G71,AD69:AD88))","v":""},{"$f":"IF(AK68=\"\",\"\",SUMIF(V69:V88,G71,AD69:AD88)+SUMIF(Z69:Z88,G71,AB69:AB88))","v":""},{"$f":"IF(AK68=\"\",\"\",O71-P71)","v":""},"#G2",null,null,null,{"$f":"IF(G70=\"\",\"\",G70)","v":"A2"},null,"-",null,{"$f":"IF(G72=\"\",\"\",G72)","v":"A4"},null,0,"-",0,"","","","","",null,{"$f":"IF(AK68=\"\",\"\",SMALL(C69:C73,3))","v":""},null,null,{"$f":"IF(AK68=\"\",\"\",INT(AK71/1000))","v":""},{"$f":"IF(AK68=\"\",IF(HidePlayerFormulas,\"\",\"(\"&G71&\")\"),VLOOKUP(AK71,C69:Q73,5,FALSE))","v":""},{"$f":"VLOOKUP(AK71,C69:Q73,8,FALSE)","v":""},{"$f":"VLOOKUP(AK71,C69:Q73,9,FALSE)","v":""},{"$f":"VLOOKUP(AK71,C69:Q73,10,FALSE)","v":""},{"$f":"VLOOKUP(AK71,C69:Q73,11,FALSE)","v":""},{"$f":"VLOOKUP(AK71,C69:Q73,12,FALSE)","v":""},{"$f":"VLOOKUP(AK71,C69:Q73,13,FALSE)","v":""},{"$f":"VLOOKUP(AK71,C69:Q73,14,FALSE)","v":""},{"$f":"VLOOKUP(AK71,C69:Q73,15,FALSE)","v":""},{"$f":"IF(W69=\"\",\"\",IF(AO71=V69,W69,IF(AO71=Z69,Y69,\"\")))","v":""},{"$f":"IF(W70=\"\",\"\",IF(AO71=V70,W70,IF(AO71=Z70,Y70,\"\")))","v":""},{"$f":"IF(W71=\"\",\"\",IF(AO71=V71,W71,IF(AO71=Z71,Y71,\"\")))","v":""},{"$f":"IF(W72=\"\",\"\",IF(AO71=V72,W72,IF(AO71=Z72,Y72,\"\")))","v":""},{"$f":"IF(W73=\"\",\"\",IF(AO71=V73,W73,IF(AO71=Z73,Y73,\"\")))","v":""},{"$f":"IF(W74=\"\",\"\",IF(AO71=V74,W74,IF(AO71=Z74,Y74,\"\")))","v":""},{"$f":"IF(W75=\"\",\"\",IF(AO71=V75,W75,IF(AO71=Z75,Y75,\"\")))","v":""},{"$f":"IF(W76=\"\",\"\",IF(AO71=V76,W76,IF(AO71=Z76,Y76,\"\")))","v":""},{"$f":"IF(W77=\"\",\"\",IF(AO71=V77,W77,IF(AO71=Z77,Y77,\"\")))","v":""},{"$f":"IF(W78=\"\",\"\",IF(AO71=V78,W78,IF(AO71=Z78,Y78,\"\")))","v":""},{"$f":"IF(W79=\"\",\"\",IF(AO71=V79,W79,IF(AO71=Z79,Y79,\"\")))","v":""},{"$f":"IF(W80=\"\",\"\",IF(AO71=V80,W80,IF(AO71=Z80,Y80,\"\")))","v":""},{"$f":"IF(W81=\"\",\"\",IF(AO71=V81,W81,IF(AO71=Z81,Y81,\"\")))","v":""},{"$f":"IF(W82=\"\",\"\",IF(AO71=V82,W82,IF(AO71=Z82,Y82,\"\")))","v":""},{"$f":"IF(W83=\"\",\"\",IF(AO71=V83,W83,IF(AO71=Z83,Y83,\"\")))","v":""},{"$f":"IF(W84=\"\",\"\",IF(AO71=V84,W84,IF(AO71=Z84,Y84,\"\")))","v":""},{"$f":"IF(W85=\"\",\"\",IF(AO71=V85,W85,IF(AO71=Z85,Y85,\"\")))","v":""},{"$f":"IF(W86=\"\",\"\",IF(AO71=V86,W86,IF(AO71=Z86,Y86,\"\")))","v":""},{"$f":"IF(W87=\"\",\"\",IF(AO71=V87,W87,IF(AO71=Z87,Y87,\"\")))","v":""},{"$f":"IF(W88=\"\",\"\",IF(AO71=V88,W88,IF(AO71=Z88,Y88,\"\")))","v":""},null,null,null,null,null,null,null,null,{"$f":"IF(G71=\"[---WithDraw---]\",FALSE,IF(COUNTIF(PlayerNamesWithinGroups,G71)>1,TRUE,FALSE))","v":true},{"$f":"AND(LEFT($AO71,1) = \"(\", RIGHT($AO71,1) =\")\")","v":false},{"$f":"IF(OR($AN71=$AN70,$AN71=$AN72),TRUE,FALSE)","v":true}]
[null,4,{"$f":"IF(AK68=\"\",\"\",RANK(F72,F69:F73)*1000+ROW())","v":""},{"$f":"IF(L72=\"\",\"\",CritClassInd1_Points*J72+CritClassInd1_Matches*L72+CritClassInd1_Attaque*O72+CritClassInd1_DiffButs*Q72)","v":""},{"$f":"IF(L72=\"\",\"\",Nb_Diff_Part(D72,D69:D73,G72,G69:G73,AI69:AI88)*CritClassInd_DiffPart+Nb_Goal_Part(D72,D69:D73,G72,G69:G73,V69:Z88)*CritClassInd_GoalPart+Nb_Score_Part(D72,D69:D73,G72,G69:G73,V69:Z88)*CritClassInd_ScorePart)","v":""},{"$f":"IF(L72=\"\",\"\",D72+E72+CritClassInd2_Points*J72+CritClassInd2_Matches*L72+CritClassInd2_Attaque*O72+CritClassInd2_DiffButs*Q72+CritClassInd_Ranking*H72+I72)","v":""},"A4",{"$f":"GMFTRANKINGPOINTS(G72,Particular_Category)","v":0},null,{"$f":"IF(AK68=\"\",\"\",(L72*Points_Victoire)+M72*Points_Null)","v":""},{"$f":"IF(L72=\"\",\"\",SUM(L72:N72))","v":""},{"$f":"IF(AK68=\"\",\"\",COUNTIF(AE69:AE88,G72))","v":""},{"$f":"IF(AK68=\"\",\"\",COUNTIF(AF69:AG88,G72))","v":""},{"$f":"IF(AK68=\"\",\"\",COUNTIF(AH69:AH88,G72))","v":""},{"$f":"IF(AK68=\"\",\"\",SUMIF(V69:V88,G72,AB69:AB88)+SUMIF(Z69:Z88,G72,AD69:AD88))","v":""},{"$f":"IF(AK68=\"\",\"\",SUMIF(V69:V88,G72,AD69:AD88)+SUMIF(Z69:Z88,G72,AB69:AB88))","v":""},{"$f":"IF(AK68=\"\",\"\",O72-P72)","v":""},"#G2",null,null,null,{"$f":"IF(G71=\"\",\"\",G71)","v":"A3"},null,"-",null,{"$f":"IF(G73=\"\",\"\",G73)","v":"A5"},null,0,"-",0,"","","","","",null,{"$f":"IF(AK68=\"\",\"\",SMALL(C69:C73,4))","v":""},null,null,{"$f":"IF(AK68=\"\",\"\",INT(AK72/1000))","v":""},{"$f":"IF(AK68=\"\",IF(HidePlayerFormulas,\"\",\"(\"&G72&\")\"),VLOOKUP(AK72,C69:Q73,5,FALSE))","v":""},{"$f":"VLOOKUP(AK72,C69:Q73,8,FALSE)","v":""},{"$f":"VLOOKUP(AK72,C69:Q73,9,FALSE)","v":""},{"$f":"VLOOKUP(AK72,C69:Q73,10,FALSE)","v":""},{"$f":"VLOOKUP(AK72,C69:Q73,11,FALSE)","v":""},{"$f":"VLOOKUP(AK72,C69:Q73,12,FALSE)","v":""},{"$f":"VLOOKUP(AK72,C69:Q73,13,FALSE)","v":""},{"$f":"VLOOKUP(AK72,C69:Q73,14,FALSE)","v":""},{"$f":"VLOOKUP(AK72,C69:Q73,15,FALSE)","v":""},{"$f":"IF(W69=\"\",\"\",IF(AO72=V69,W69,IF(AO72=Z69,Y69,\"\")))","v":""},{"$f":"IF(W70=\"\",\"\",IF(AO72=V70,W70,IF(AO72=Z70,Y70,\"\")))","v":""},{"$f":"IF(W71=\"\",\"\",IF(AO72=V71,W71,IF(AO72=Z71,Y71,\"\")))","v":""},{"$f":"IF(W72=\"\",\"\",IF(AO72=V72,W72,IF(AO72=Z72,Y72,\"\")))","v":""},{"$f":"IF(W73=\"\",\"\",IF(AO72=V73,W73,IF(AO72=Z73,Y73,\"\")))","v":""},{"$f":"IF(W74=\"\",\"\",IF(AO72=V74,W74,IF(AO72=Z74,Y74,\"\")))","v":""},{"$f":"IF(W75=\"\",\"\",IF(AO72=V75,W75,IF(AO72=Z75,Y75,\"\")))","v":""},{"$f":"IF(W76=\"\",\"\",IF(AO72=V76,W76,IF(AO72=Z76,Y76,\"\")))","v":""},{"$f":"IF(W77=\"\",\"\",IF(AO72=V77,W77,IF(AO72=Z77,Y77,\"\")))","v":""},{"$f":"IF(W78=\"\",\"\",IF(AO72=V78,W78,IF(AO72=Z78,Y78,\"\")))","v":""},{"$f":"IF(W79=\"\",\"\",IF(AO72=V79,W79,IF(AO72=Z79,Y79,\"\")))","v":""},{"$f":"IF(W80=\"\",\"\",IF(AO72=V80,W80,IF(AO72=Z80,Y80,\"\")))","v":""},{"$f":"IF(W81=\"\",\"\",IF(AO72=V81,W81,IF(AO72=Z81,Y81,\"\")))","v":""},{"$f":"IF(W82=\"\",\"\",IF(AO72=V82,W82,IF(AO72=Z82,Y82,\"\")))","v":""},{"$f":"IF(W83=\"\",\"\",IF(AO72=V83,W83,IF(AO72=Z83,Y83,\"\")))","v":""},{"$f":"IF(W84=\"\",\"\",IF(AO72=V84,W84,IF(AO72=Z84,Y84,\"\")))","v":""},{"$f":"IF(W85=\"\",\"\",IF(AO72=V85,W85,IF(AO72=Z85,Y85,\"\")))","v":""},{"$f":"IF(W86=\"\",\"\",IF(AO72=V86,W86,IF(AO72=Z86,Y86,\"\")))","v":""},{"$f":"IF(W87=\"\",\"\",IF(AO72=V87,W87,IF(AO72=Z87,Y87,\"\")))","v":""},{"$f":"IF(W88=\"\",\"\",IF(AO72=V88,W88,IF(AO72=Z88,Y88,\"\")))","v":""},null,null,null,null,null,null,null,null,{"$f":"IF(G72=\"[---WithDraw---]\",FALSE,IF(COUNTIF(PlayerNamesWithinGroups,G72)>1,TRUE,FALSE))","v":true},{"$f":"AND(LEFT($AO72,1) = \"(\", RIGHT($AO72,1) =\")\")","v":false},{"$f":"IF(OR($AN72=$AN71,$AN72=$AN73),TRUE,FALSE)","v":true}]
[null,5,{"$f":"IF(AK68=\"\",\"\",RANK(F73,F69:F73)*1000+ROW())","v":""},{"$f":"IF(L73=\"\",\"\",CritClassInd1_Points*J73+CritClassInd1_Matches*L73+CritClassInd1_Attaque*O73+CritClassInd1_DiffButs*Q73)","v":""},{"$f":"IF(L73=\"\",\"\",Nb_Diff_Part(D73,D69:D73,G73,G69:G73,AI69:AI88)*CritClassInd_DiffPart+Nb_Goal_Part(D73,D69:D73,G73,G69:G73,V69:Z88)*CritClassInd_GoalPart+Nb_Score_Part(D73,D69:D73,G73,G69:G73,V69:Z88)*CritClassInd_ScorePart)","v":""},{"$f":"IF(L73=\"\",\"\",D73+E73+CritClassInd2_Points*J73+CritClassInd2_Matches*L73+CritClassInd2_Attaque*O73+CritClassInd2_DiffButs*Q73+CritClassInd_Ranking*H73+I73)","v":""},"A5",{"$f":"GMFTRANKINGPOINTS(G73,Particular_Category)","v":0},null,{"$f":"IF(AK68=\"\",\"\",(L73*Points_Victoire)+M73*Points_Null)","v":""},{"$f":"IF(L73=\"\",\"\",SUM(L73:N73))","v":""},{"$f":"IF(AK68=\"\",\"\",COUNTIF(AE69:AE88,G73))","v":""},{"$f":"IF(AK68=\"\",\"\",COUNTIF(AF69:AG88,G73))","v":""},{"$f":"IF(AK68=\"\",\"\",COUNTIF(AH69:AH88,G73))","v":""},{"$f":"IF(AK68=\"\",\"\",SUMIF(V69:V88,G73,AB69:AB88)+SUMIF(Z69:Z88,G73,AD69:AD88))","v":""},{"$f":"IF(AK68=\"\",\"\",SUMIF(V69:V88,G73,AD69:AD88)+SUMIF(Z69:Z88,G73,AB69:AB88))","v":""},{"$f":"IF(AK68=\"\",\"\",O73-P73)","v":""},"#G3",null,null,null,{"$f":"IF(G72=\"\",\"\",G72)","v":"A4"},null,"-",null,{"$f":"IF(G69=\"\",\"\",G69)","v":"A1"},null,0,"-",0,"","","","","",null,{"$f":"IF(AK68=\"\",\"\",SMALL(C69:C73,5))","v":""},null,null,{"$f":"IF(AK68=\"\",\"\",INT(AK73/1000))","v":""},{"$f":"IF(AK68=\"\",IF(HidePlayerFormulas,\"\",\"(\"&G73&\")\"),VLOOKUP(AK73,C69:Q73,5,FALSE))","v":""},{"$f":"VLOOKUP(AK73,C69:Q73,8,FALSE)","v":""},{"$f":"VLOOKUP(AK73,C69:Q73,9,FALSE)","v":""},{"$f":"VLOOKUP(AK73,C69:Q73,10,FALSE)","v":""},{"$f":"VLOOKUP(AK73,C69:Q73,11,FALSE)","v":""},{"$f":"VLOOKUP(AK73,C69:Q73,12,FALSE)","v":""},{"$f":"VLOOKUP(AK73,C69:Q73,13,FALSE)","v":""},{"$f":"VLOOKUP(AK73,C69:Q73,14,FALSE)","v":""},{"$f":"VLOOKUP(AK73,C69:Q73,15,FALSE)","v":""},{"$f":"IF(W69=\"\",\"\",IF(AO73=V69,W69,IF(AO73=Z69,Y69,\"\")))","v":""},{"$f":"IF(W70=\"\",\"\",IF(AO73=V70,W70,IF(AO73=Z70,Y70,\"\")))","v":""},{"$f":"IF(W71=\"\",\"\",IF(AO73=V71,W71,IF(AO73=Z71,Y71,\"\")))","v":""},{"$f":"IF(W72=\"\",\"\",IF(AO73=V72,W72,IF(AO73=Z72,Y72,\"\")))","v":""},{"$f":"IF(W73=\"\",\"\",IF(AO73=V73,W73,IF(AO73=Z73,Y73,\"\")))","v":""},{"$f":"IF(W74=\"\",\"\",IF(AO73=V74,W74,IF(AO73=Z74,Y74,\"\")))","v":""},{"$f":"IF(W75=\"\",\"\",IF(AO73=V75,W75,IF(AO73=Z75,Y75,\"\")))","v":""},{"$f":"IF(W76=\"\",\"\",IF(AO73=V76,W76,IF(AO73=Z76,Y76,\"\")))","v":""},{"$f":"IF(W77=\"\",\"\",IF(AO73=V77,W77,IF(AO73=Z77,Y77,\"\")))","v":""},{"$f":"IF(W78=\"\",\"\",IF(AO73=V78,W78,IF(AO73=Z78,Y78,\"\")))","v":""},{"$f":"IF(W79=\"\",\"\",IF(AO73=V79,W79,IF(AO73=Z79,Y79,\"\")))","v":""},{"$f":"IF(W80=\"\",\"\",IF(AO73=V80,W80,IF(AO73=Z80,Y80,\"\")))","v":""},{"$f":"IF(W81=\"\",\"\",IF(AO73=V81,W81,IF(AO73=Z81,Y81,\"\")))","v":""},{"$f":"IF(W82=\"\",\"\",IF(AO73=V82,W82,IF(AO73=Z82,Y82,\"\")))","v":""},{"$f":"IF(W83=\"\",\"\",IF(AO73=V83,W83,IF(AO73=Z83,Y83,\"\")))","v":""},{"$f":"IF(W84=\"\",\"\",IF(AO73=V84,W84,IF(AO73=Z84,Y84,\"\")))","v":""},{"$f":"IF(W85=\"\",\"\",IF(AO73=V85,W85,IF(AO73=Z85,Y85,\"\")))","v":""},{"$f":"IF(W86=\"\",\"\",IF(AO73=V86,W86,IF(AO73=Z86,Y86,\"\")))","v":""},{"$f":"IF(W87=\"\",\"\",IF(AO73=V87,W87,IF(AO73=Z87,Y87,\"\")))","v":""},{"$f":"IF(W88=\"\",\"\",IF(AO73=V88,W88,IF(AO73=Z88,Y88,\"\")))","v":""},null,null,null,null,null,null,null,null,{"$f":"IF(G73=\"[---WithDraw---]\",FALSE,IF(COUNTIF(PlayerNamesWithinGroups,G73)>1,TRUE,FALSE))","v":true},{"$f":"AND(LEFT($AO73,1) = \"(\", RIGHT($AO73,1) =\")\")","v":false},{"$f":"IF(OR($AN73=$AN72,$AN73=$AN74),TRUE,FALSE)","v":true}]
[null,null,null,null,null,null,null,null,null,null,null,null,null,null,null,null,null,"#G3",null,null,null,{"$f":"IF(G73=\"\",\"\",G73)","v":"A5"},null,"-",null,{"$f":"IF(G70=\"\",\"\",G70)","v":"A2"},null,0,"-",0,"","","","",""]
[null,null,null,null,null,null,null,null,null,null,null,null,null,null,null,null,null,"#G4",null,null,null,{"$f":"IF(G69=\"\",\"\",G69)","v":"A1"},null,"-",null,{"$f":"IF(G71=\"\",\"\",G71)","v":"A3"},null,0,"-",0,"","","","",""]
[null,null,null,null,null,null,null,null,null,null,null,null,null,null,null,null,null,"#G4",null,null,null,{"$f":"IF(G72=\"\",\"\",G72)","v":"A4"},null,"-",null,{"$f":"IF(G73=\"\",\"\",G73)","v":"A5"},null,0,"-",0,"","","","",""]
[null,null,null,null,null,null,null,null,null,null,null,null,null,null,null,null,null,"#G5",null,null,null,{"$f":"IF(G69=\"\",\"\",G69)","v":"A1"},null,"-",null,{"$f":"IF(G70=\"\",\"\",G70)","v":"A2"},null,0,"-",0,"","","","",""]
[null,null,null,null,null,null,null,null,null,null,null,null,null,null,null,null,null,"#G5",null,null,null,{"$f":"IF(G71=\"\",\"\",G71)","v":"A3"},null,"-",null,{"$f":"IF(G72=\"\",\"\",G72)","v":"A4"},null,0,"-",0,"","","","",""]
[null,null,null,null,null,null,null,null,null,null,null,null,null,null,null,null,null,"#G6",null,null,null,{"$f":"IF(G69=\"\",\"\",G69)","v":"A1"},null,"-",null,{"$f":"IF(G73=\"\",\"\",G73)","v":"A5"},null,{"$f":"IF(MaxScore,MaxGoals(W79,Y79,MaxGoalsValue),IF(W79=\"\",\"\",W79))","v":0},{"$f":"IF(MaxScore,\"-\",IF(W79=\"\",\"\",\"-\"))","v":"-"},{"$f":"IF(MaxScore,MaxGoals(Y79,W79,MaxGoalsValue),IF(Y79=\"\",\"\",Y79))","v":0},{"$f":"IF(W79=\"\",\"\",IF(W79>Y79,V79,IF(W79=Y79,\"\",Z79)))","v":""},{"$f":"IF(W79=\"\",\"\",IF(W79=Y79,V79,\"\"))","v":""},{"$f":"IF(W79=\"\",\"\",IF(W79=Y79,Z79,\"\"))","v":""},{"$f":"IF(W79=\"\",\"\",IF(W79<Y79,V79,IF(W79=Y79,\"\",Z79)))","v":""},{"$f":"CONCATENATE(AE79,AH79)","v":""},null,{"$f":"IF(AK78=\"\",\"\",SMALL(C79:C83,1))","v":""}]
[null,null,null,null,null,null,null,null,null,null,null,null,null,null,null,null,null,"#G6",null,null,null,{"$f":"IF(G71=\"\",\"\",G71)","v":"A3"},null,"-",null,{"$f":"IF(G70=\"\",\"\",G70)","v":"A2"},null,0,"-",0,"","","","","",null,{"$f":"IF(AK78=\"\",\"\",SMALL(C79:C83,2))","v":""}]
[null,null,null,null,null,null,null,null,null,null,null,null,null,null,null,null,null,"#G7",null,null,null,{"$f":"IF(G72=\"\",\"\",G72)","v":"A4"},null,"-",null,{"$f":"IF(G70=\"\",\"\",G70)","v":"A2"},null,0,"-",0,"","","","","",null,{"$f":"IF(AK78=\"\",\"\",SMALL(C79:C83,3))","v":""}]
[null,null,null,null,null,null,null,null,null,null,null,null,null,null,null,null,null,"#G7",null,null,null,{"$f":"IF(G73=\"\",\"\",G73)","v":"A5"},null,"-",null,{"$f":"IF(G71=\"\",\"\",G71)","v":"A3"},null,0,"-",0,"","","","","",null,{"$f":"IF(AK78=\"\",\"\",SMALL(C79:C83,4))","v":""}]
[null,null,null,null,null,null,null,null,null,null,null,null,null,null,null,null,null,"#G8",null,null,null,{"$f":"IF(G69=\"\",\"\",G69)","v":"A1"},null,"-",null,{"$f":"IF(G72=\"\",\"\",G72)","v":"A4"},null,0,"-",0,"","","","","",null,{"$f":"IF(AK78=\"\",\"\",SMALL(C79:C83,5))","v":""}]
[null,null,null,null,null,null,null,null,null,null,null,null,null,null,null,null,null,"#G8",null,null,null,{"$f":"IF(G70=\"\",\"\",G70)","v":"A2"},null,"-",null,{"$f":"IF(G73=\"\",\"\",G73)","v":"A5"},null,0,"-",0,"","","","",""]
[null,null,null,null,null,null,null,null,null,null,null,null,null,null,null,null,null,"#G9",null,null,null,{"$f":"IF(G71=\"\",\"\",G71)","v":"A3"},null,"-",null,{"$f":"IF(G69=\"\",\"\",G69)","v":"A1"},null,0,"-",0,"","","","",""]
[null,null,null,null,null,null,null,null,null,null,null,null,null,null,null,null,null,"#G9",null,null,null,{"$f":"IF(G73=\"\",\"\",G73)","v":"A5"},null,"-",null,{"$f":"IF(G72=\"\",\"\",G72)","v":"A4"},null,0,"-",0,"","","","",""]
[null,null,null,null,null,null,null,null,null,null,null,null,null,null,null,null,null,"#G10",null,null,null,{"$f":"IF(G70=\"\",\"\",G70)","v":"A2"},null,"-",null,{"$f":"IF(G69=\"\",\"\",G69)","v":"A1"},null,0,"-",0,"","","","",""]
[null,null,null,null,null,null,null,null,null,null,null,null,null,null,null,null,null,"#G10",null,null,null,{"$f":"IF(G72=\"\",\"\",G72)","v":"A4"},null,"-",null,{"$f":"IF(G71=\"\",\"\",G71)","v":"A3"},null,0,"-",0,"","","","",""]
[]
[]
[null,{"$f":"N_Group_6","v":"Group of 6"},null,null,null,null,null,null,null,null,null,null,null,null,null,null,null,null,null,null,null,null,null,null,null,null,null,null,null,null,null,null,null,null,null,null,null,null,{"$f":"B91","v":"Group of 6"}]
[]
[null,{"$f":"N_Tirage","v":"Draw"},"Cla.","Cla1","Part","Cla2",{"$f":"N_Joueurs","v":"Players"},{"$f":"N_RankPoints","v":"Rk Pt."},{"$f":"N_Diff_Part","v":"Part-Diff"},{"$f":"N_Pts","v":"Pts"},{"$f":"N_J","v":"Pld"},{"$f":"N_G","v":"W"},{"$f":"N_N","v":"D"},{"$f":"N_P","v":"L"},{"$f":"N_BP","v":"F"},{"$f":"N_BC","v":"A"},{"$f":"N_Diff.","v":"SO"},null,{"$f":"N_Heure","v":"Time"},{"$f":"N_Table","v":"Table"},{"$f":"N_Arbitre","v":"Referee"},{"$f":"N_Matches","v":"Matches"},null,null,null,null,null,{"$f":"IF(MaxScore,N_MaxScore,\"\")","v":"Max Score"},null,null,{"$f":"N_G","v":"W"},{"$f":"N_N","v":"D"},{"$f":"N_N","v":"D"},{"$f":"N_P","v":"L"},"CONCAT","Ref Group",{"$f":"IF(COUNTA(W94:W110)=0,\"\",\"OK\")","v":""},null,null,{"$f":"N_Cla.","v":"Rk"},{"$f":"N_Joueurs","v":"Players"},{"$f":"N_Pts","v":"Pts"},{"$f":"N_J","v":"Pld"},{"$f":"N_G","v":"W"},{"$f":"N_N","v":"D"},{"$f":"N_P","v":"L"},{"$f":"N_BP","v":"F"},{"$f":"N_BC","v":"A"},{"$f":"N_Diff.","v":"SO"},{"$f":"N_Matches","v":"Matches"}]
[null,1,{"$f":"IF(AK93=\"\",\"\",RANK(F94,F94:F99)*1000+ROW())","v":""},{"$f":"IF(L94=\"\",\"\",CritClassInd1_Points*J94+CritClassInd1_Matches*L94+CritClassInd1_Attaque*O94+CritClassInd1_DiffButs*Q94)","v":""},{"$f":"IF(L94=\"\",\"\",Nb_Diff_Part(D94,D94:D99,G94,G94:G99,AI94:AI110)*CritClassInd_DiffPart+Nb_Goal_Part(D94,D94:D99,G94,G94:G99,V94:Z110)*CritClassInd_GoalPart+Nb_Score_Part(D94,D94:D99,G94,G94:G99,V94:Z110)*CritClassInd_ScorePart)","v":""},{"$f":"IF(L94=\"\",\"\",D94+E94+CritClassInd2_Points*J94+CritClassInd2_Matches*L94+CritClassInd2_Attaque*O94+CritClassInd2_DiffButs*Q94+CritClassInd_Ranking*H94+I94)","v":""},"A1",{"$f":"GMFTRANKINGPOINTS(G94,Particular_Category)","v":0},null,{"$f":"IF(AK93=\"\",\"\",(L94*Points_Victoire)+M94*Points_Null)","v":""},{"$f":"IF(L94=\"\",\"\",SUM(L94:N94))","v":""},{"$f":"IF(AK93=\"\",\"\",COUNTIF(AE94:AE110,G94))","v":""},{"$f":"IF(AK93=\"\",\"\",COUNTIF(AF94:AG110,G94))","v":""},{"$f":"IF(AK93=\"\",\"\",COUNTIF(AH94:AH110,G94))","v":""},{"$f":"IF(AK93=\"\",\"\",SUMIF(V94:V110,G94,AB94:AB110)+SUMIF(Z94:Z110,G94,AD94:AD110))","v":""},{"$f":"IF(AK93=\"\",\"\",SUMIF(V94:V110,G94,AD94:AD110)+SUMIF(Z94:Z110,G94,AB94:AB110))","v":""},{"$f":"IF(AK93=\"\",\"\",O94-P94)","v":""},"#G1",null,null,null,{"$f":"IF(G94=\"\",\"\",G94)","v":"A1"},null,"-",null,{"$f":"IF(G98=\"\",\"\",G98)","v":"A5"},null,{"$f":"IF(MaxScore,MaxGoals(W94,Y94,MaxGoalsValue),IF(W94=\"\",\"\",W94))","v":0},{"$f":"IF(MaxScore,\"-\",IF(W94=\"\",\"\",\"-\"))","v":"-"},{"$f":"IF(MaxScore,MaxGoals(Y94,W94,MaxGoalsValue),IF(Y94=\"\",\"\",Y94))","v":0},{"$f":"IF(W94=\"\",\"\",IF(W94>Y94,V94,IF(W94=Y94,\"\",Z94)))","v":""},{"$f":"IF(W94=\"\",\"\",IF(W94=Y94,V94,\"\"))","v":""},{"$f":"IF(W94=\"\",\"\",IF(W94=Y94,Z94,\"\"))","v":""},{"$f":"IF(W94=\"\",\"\",IF(W94<Y94,V94,IF(W94=Y94,\"\",Z94)))","v":""},{"$f":"CONCATENATE(AE94,AH94)","v":""},null,{"$f":"IF(AK93=\"\",\"\",SMALL(C94:C99,1))","v":""},null,null,{"$f":"IF(AK93=\"\",\"\",INT(AK94/1000))","v":""},{"$f":"IF(AK93=\"\",IF(HidePlayerFormulas,\"\",\"(\"&G94&\")\"),VLOOKUP(AK94,C94:Q99,5,FALSE))","v":""},{"$f":"VLOOKUP(AK94,C94:Q99,8,FALSE)","v":""},{"$f":"VLOOKUP(AK94,C94:Q99,9,FALSE)","v":""},{"$f":"VLOOKUP(AK94,C94:Q99,10,FALSE)","v":""},{"$f":"VLOOKUP(AK94,C94:Q99,11,FALSE)","v":""},{"$f":"VLOOKUP(AK94,C94:Q99,12,FALSE)","v":""},{"$f":"VLOOKUP(AK94,C94:Q99,13,FALSE)","v":""},{"$f":"VLOOKUP(AK94,C94:Q99,14,FALSE)","v":""},{"$f":"VLOOKUP(AK94,C94:Q99,15,FALSE)","v":""},{"$f":"IF(W99=\"\",\"\",IF(AO94=V99,W99,IF(AO94=Z99,Y99,\"\")))","v":""},{"$f":"IF(W98=\"\",\"\",IF(AO94=V98,W98,IF(AO94=Z98,Y98,\"\")))","v":""},{"$f":"IF(W97=\"\",\"\",IF(AO94=V97,W97,IF(AO94=Z97,Y97,\"\")))","v":""},{"$f":"IF(W102=\"\",\"\",IF(AO94=V102,W102,IF(AO94=Z102,Y102,\"\")))","v":""},{"$f":"IF(W101=\"\",\"\",IF(AO94=V101,W101,IF(AO94=Z101,Y101,\"\")))","v":""},{"$f":"IF(W100=\"\",\"\",IF(AO94=V100,W100,IF(AO94=Z100,Y100,\"\")))","v":""},{"$f":"IF(W94=\"\",\"\",IF(AO94=V94,W94,IF(AO94=Z94,Y94,\"\")))","v":""},{"$f":"IF(W95=\"\",\"\",IF(AO94=V95,W95,IF(AO94=Z95,Y95,\"\")))","v":""},{"$f":"IF(W96=\"\",\"\",IF(AO94=V96,W96,IF(AO94=Z96,Y96,\"\")))","v":""},{"$f":"IF(W104=\"\",\"\",IF(AO94=V104,W104,IF(AO94=Z104,Y104,\"\")))","v":""},{"$f":"IF(W103=\"\",\"\",IF(AO94=V103,W103,IF(AO94=Z103,Y103,\"\")))","v":""},{"$f":"IF(W105=\"\",\"\",IF(AO94=V105,W105,IF(AO94=Z105,Y105,\"\")))","v":""},{"$f":"IF(W108=\"\",\"\",IF(AO94=V108,W108,IF(AO94=Z108,Y108,\"\")))","v":""},{"$f":"IF(W107=\"\",\"\",IF(AO94=V107,W107,IF(AO94=Z107,Y107,\"\")))","v":""},{"$f":"IF(W106=\"\",\"\",IF(AO94=V106,W106,IF(AO94=Z106,Y106,\"\")))","v":""},null,null,null,null,null,null,null,null,null,null,null,null,null,{"$f":"IF(G94=\"[---WithDraw---]\",FALSE,IF(COUNTIF(PlayerNamesWithinGroups,G94)>1,TRUE,FALSE))","v":true},{"$f":"AND(LEFT($AO94,1) = \"(\", RIGHT($AO94,1) =\")\")","v":false},{"$f":"IF(OR($AN94=$AN93,$AN94=$AN95),TRUE,FALSE)","v":true}]
[null,2,{"$f":"IF(AK93=\"\",\"\",RANK(F95,F94:F99)*1000+ROW())","v":""},"",{"$f":"IF(L95=\"\",\"\",Nb_Diff_Part(D95,D94:D99,G95,G94:G99,AI94:AI110)*CritClassInd_DiffPart+Nb_Goal_Part(D95,D94:D99,G95,G94:G99,V94:Z110)*CritClassInd_GoalPart+Nb_Score_Part(D95,D94:D99,G95,G94:G99,V94:Z110)*CritClassInd_ScorePart)","v":""},"","A2",0,null,{"$f":"IF(AK93=\"\",\"\",(L95*Points_Victoire)+M95*Points_Null)","v":""},"",{"$f":"IF(AK93=\"\",\"\",COUNTIF(AE94:AE110,G95))","v":""},{"$f":"IF(AK93=\"\",\"\",COUNTIF(AF94:AG110,G95))","v":""},{"$f":"IF(AK93=\"\",\"\",COUNTIF(AH94:AH110,G95))","v":""},{"$f":"IF(AK93=\"\",\"\",SUMIF(V94:V110,G95,AB94:AB110)+SUMIF(Z94:Z110,G95,AD94:AD110))","v":""},{"$f":"IF(AK93=\"\",\"\",SUMIF(V94:V110,G95,AD94:AD110)+SUMIF(Z94:Z110,G95,AB94:AB110))","v":""},{"$f":"IF(AK93=\"\",\"\",O95-P95)","v":""},"#G1",null,null,null,{"$f":"IF(G95=\"\",\"\",G95)","v":"A2"},null,"-",null,{"$f":"IF(G96=\"\",\"\",G96)","v":"A3"},null,{"$f":"IF(MaxScore,MaxGoals(W95,Y95,MaxGoalsValue),IF(W95=\"\",\"\",W95))","v":0},"-",{"$f":"IF(MaxScore,MaxGoals(Y95,W95,MaxGoalsValue),IF(Y95=\"\",\"\",Y95))","v":0},"","","","","",null,{"$f":"IF(AK93=\"\",\"\",SMALL(C94:C99,2))","v":""},null,null,{"$f":"IF(AK93=\"\",\"\",INT(AK95/1000))","v":""},{"$f":"IF(AK93=\"\",IF(HidePlayerFormulas,\"\",\"(\"&G95&\")\"),VLOOKUP(AK95,C94:Q99,5,FALSE))","v":""},{"$f":"VLOOKUP(AK95,C94:Q99,8,FALSE)","v":""},{"$f":"VLOOKUP(AK95,C94:Q99,9,FALSE)","v":""},{"$f":"VLOOKUP(AK95,C94:Q99,10,FALSE)","v":""},{"$f":"VLOOKUP(AK95,C94:Q99,11,FALSE)","v":""},{"$f":"VLOOKUP(AK95,C94:Q99,12,FALSE)","v":""},{"$f":"VLOOKUP(AK95,C94:Q99,13,FALSE)","v":""},{"$f":"VLOOKUP(AK95,C94:Q99,14,FALSE)","v":""},{"$f":"VLOOKUP(AK95,C94:Q99,15,FALSE)","v":""},{"$f":"IF(W99=\"\",\"\",IF(AO95=V99,W99,IF(AO95=Z99,Y99,\"\")))","v":""},{"$f":"IF(W98=\"\",\"\",IF(AO95=V98,W98,IF(AO95=Z98,Y98,\"\")))","v":""},{"$f":"IF(W97=\"\",\"\",IF(AO95=V97,W97,IF(AO95=Z97,Y97,\"\")))","v":""},{"$f":"IF(W102=\"\",\"\",IF(AO95=V102,W102,IF(AO95=Z102,Y102,\"\")))","v":""},{"$f":"IF(W101=\"\",\"\",IF(AO95=V101,W101,IF(AO95=Z101,Y101,\"\")))","v":""},{"$f":"IF(W100=\"\",\"\",IF(AO95=V100,W100,IF(AO95=Z100,Y100,\"\")))","v":""},{"$f":"IF(W94=\"\",\"\",IF(AO95=V94,W94,IF(AO95=Z94,Y94,\"\")))","v":""},{"$f":"IF(W95=\"\",\"\",IF(AO95=V95,W95,IF(AO95=Z95,Y95,\"\")))","v":""},{"$f":"IF(W96=\"\",\"\",IF(AO95=V96,W96,IF(AO95=Z96,Y96,\"\")))","v":""},{"$f":"IF(W104=\"\",\"\",IF(AO95=V104,W104,IF(AO95=Z104,Y104,\"\")))","v":""},{"$f":"IF(W103=\"\",\"\",IF(AO95=V103,W103,IF(AO95=Z103,Y103,\"\")))","v":""},{"$f":"IF(W105=\"\",\"\",IF(AO95=V105,W105,IF(AO95=Z105,Y105,\"\")))","v":""},{"$f":"IF(W108=\"\",\"\",IF(AO95=V108,W108,IF(AO95=Z108,Y108,\"\")))","v":""},{"$f":"IF(W107=\"\",\"\",IF(AO95=V107,W107,IF(AO95=Z107,Y107,\"\")))","v":""},{"$f":"IF(W106=\"\",\"\",IF(AO95=V106,W106,IF(AO95=Z106,Y106,\"\")))","v":""},null,null,null,null,null,null,null,null,null,null,null,null,null,true,false,true]
[null,3,{"$f":"IF(AK93=\"\",\"\",RANK(F96,F94:F99)*1000+ROW())","v":""},"",{"$f":"IF(L96=\"\",\"\",Nb_Diff_Part(D96,D94:D99,G96,G94:G99,AI94:AI110)*CritClassInd_DiffPart+Nb_Goal_Part(D96,D94:D99,G96,G94:G99,V94:Z110)*CritClassInd_GoalPart+Nb_Score_Part(D96,D94:D99,G96,G94:G99,V94:Z110)*CritClassInd_ScorePart)","v":""},"","A3",0,null,{"$f":"IF(AK93=\"\",\"\",(L96*Points_Victoire)+M96*Points_Null)","v":""},"",{"$f":"IF(AK93=\"\",\"\",COUNTIF(AE94:AE110,G96))","v":""},{"$f":"IF(AK93=\"\",\"\",COUNTIF(AF94:AG110,G96))","v":""},{"$f":"IF(AK93=\"\",\"\",COUNTIF(AH94:AH110,G96))","v":""},{"$f":"IF(AK93=\"\",\"\",SUMIF(V94:V110,G96,AB94:AB110)+SUMIF(Z94:Z110,G96,AD94:AD110))","v":""},{"$f":"IF(AK93=\"\",\"\",SUMIF(V94:V110,G96,AD94:AD110)+SUMIF(Z94:Z110,G96,AB94:AB110))","v":""},{"$f":"IF(AK93=\"\",\"\",O96-P96)","v":""},"#G1",null,null,null,{"$f":"IF(G97=\"\",\"\",G97)","v":"A4"},null,"-",null,{"$f":"IF(G99=\"\",\"\",G99)","v":"A6"},null,{"$f":"IF(MaxScore,MaxGoals(W96,Y96,MaxGoalsValue),IF(W96=\"\",\"\",W96))","v":0},"-",{"$f":"IF(MaxScore,MaxGoals(Y96,W96,MaxGoalsValue),IF(Y96=\"\",\"\",Y96))","v":0},"","","","","",null,{"$f":"IF(AK93=\"\",\"\",SMALL(C94:C99,3))","v":""},null,null,{"$f":"IF(AK93=\"\",\"\",INT(AK96/1000))","v":""},{"$f":"IF(AK93=\"\",IF(HidePlayerFormulas,\"\",\"(\"&G96&\")\"),VLOOKUP(AK96,C94:Q99,5,FALSE))","v":""},{"$f":"VLOOKUP(AK96,C94:Q99,8,FALSE)","v":""},{"$f":"VLOOKUP(AK96,C94:Q99,9,FALSE)","v":""},{"$f":"VLOOKUP(AK96,C94:Q99,10,FALSE)","v":""},{"$f":"VLOOKUP(AK96,C94:Q99,11,FALSE)","v":""},{"$f":"VLOOKUP(AK96,C94:Q99,12,FALSE)","v":""},{"$f":"VLOOKUP(AK96,C94:Q99,13,FALSE)","v":""},{"$f":"VLOOKUP(AK96,C94:Q99,14,FALSE)","v":""},{"$f":"VLOOKUP(AK96,C94:Q99,15,FALSE)","v":""},{"$f":"IF(W99=\"\",\"\",IF(AO96=V99,W99,IF(AO96=Z99,Y99,\"\")))","v":""},{"$f":"IF(W98=\"\",\"\",IF(AO96=V98,W98,IF(AO96=Z98,Y98,\"\")))","v":""},{"$f":"IF(W97=\"\",\"\",IF(AO96=V97,W97,IF(AO96=Z97,Y97,\"\")))","v":""},{"$f":"IF(W102=\"\",\"\",IF(AO96=V102,W102,IF(AO96=Z102,Y102,\"\")))","v":""},{"$f":"IF(W101=\"\",\"\",IF(AO96=V101,W101,IF(AO96=Z101,Y101,\"\")))","v":""},{"$f":"IF(W100=\"\",\"\",IF(AO96=V100,W100,IF(AO96=Z100,Y100,\"\")))","v":""},{"$f":"IF(W94=\"\",\"\",IF(AO96=V94,W94,IF(AO96=Z94,Y94,\"\")))","v":""},{"$f":"IF(W95=\"\",\"\",IF(AO96=V95,W95,IF(AO96=Z95,Y95,\"\")))","v":""},{"$f":"IF(W96=\"\",\"\",IF(AO96=V96,W96,IF(AO96=Z96,Y96,\"\")))","v":""},{"$f":"IF(W104=\"\",\"\",IF(AO96=V104,W104,IF(AO96=Z104,Y104,\"\")))","v":""},{"$f":"IF(W103=\"\",\"\",IF(AO96=V103,W103,IF(AO96=Z103,Y103,\"\")))","v":""},{"$f":"IF(W105=\"\",\"\",IF(AO96=V105,W105,IF(AO96=Z105,Y105,\"\")))","v":""},{"$f":"IF(W108=\"\",\"\",IF(AO96=V108,W108,IF(AO96=Z108,Y108,\"\")))","v":""},{"$f":"IF(W107=\"\",\"\",IF(AO96=V107,W107,IF(AO96=Z107,Y107,\"\")))","v":""},{"$f":"IF(W106=\"\",\"\",IF(AO96=V106,W106,IF(AO96=Z106,Y106,\"\")))","v":""},null,null,null,null,null,null,null,null,null,null,null,null,null,true,false,true]
[null,4,{"$f":"IF(AK93=\"\",\"\",RANK(F97,F94:F99)*1000+ROW())","v":""},"",{"$f":"IF(L97=\"\",\"\",Nb_Diff_Part(D97,D94:D99,G97,G94:G99,AI94:AI110)*CritClassInd_DiffPart+Nb_Goal_Part(D97,D94:D99,G97,G94:G99,V94:Z110)*CritClassInd_GoalPart+Nb_Score_Part(D97,D94:D99,G97,G94:G99,V94:Z110)*CritClassInd_ScorePart)","v":""},"","A4",0,null,{"$f":"IF(AK93=\"\",\"\",(L97*Points_Victoire)+M97*Points_Null)","v":""},"",{"$f":"IF(AK93=\"\",\"\",COUNTIF(AE94:AE110,G97))","v":""},{"$f":"IF(AK93=\"\",\"\",COUNTIF(AF94:AG110,G97))","v":""},{"$f":"IF(AK93=\"\",\"\",COUNTIF(AH94:AH110,G97))","v":""},{"$f":"IF(AK93=\"\",\"\",SUMIF(V94:V110,G97,AB94:AB110)+SUMIF(Z94:Z110,G97,AD94:AD110))","v":""},{"$f":"IF(AK93=\"\",\"\",SUMIF(V94:V110,G97,AD94:AD110)+SUMIF(Z94:Z110,G97,AB94:AB110))","v":""},{"$f":"IF(AK93=\"\",\"\",O97-P97)","v":""},"#G2",null,null,null,{"$f":"IF(G95=\"\",\"\",G95)","v":"A2"},null,"-",null,{"$f":"IF(G97=\"\",\"\",G97)","v":"A4"},null,{"$f":"IF(MaxScore,MaxGoals(W97,Y97,MaxGoalsValue),IF(W97=\"\",\"\",W97))","v":0},"-",{"$f":"IF(MaxScore,MaxGoals(Y97,W97,MaxGoalsValue),IF(Y97=\"\",\"\",Y97))","v":0},"","","","","",null,{"$f":"IF(AK93=\"\",\"\",SMALL(C94:C99,4))","v":""},null,null,{"$f":"IF(AK93=\"\",\"\",INT(AK97/1000))","v":""},{"$f":"IF(AK93=\"\",IF(HidePlayerFormulas,\"\",\"(\"&G97&\")\"),VLOOKUP(AK97,C94:Q99,5,FALSE))","v":""},{"$f":"VLOOKUP(AK97,C94:Q99,8,FALSE)","v":""},{"$f":"VLOOKUP(AK97,C94:Q99,9,FALSE)","v":""},{"$f":"VLOOKUP(AK97,C94:Q99,10,FALSE)","v":""},{"$f":"VLOOKUP(AK97,C94:Q99,11,FALSE)","v":""},{"$f":"VLOOKUP(AK97,C94:Q99,12,FALSE)","v":""},{"$f":"VLOOKUP(AK97,C94:Q99,13,FALSE)","v":""},{"$f":"VLOOKUP(AK97,C94:Q99,14,FALSE)","v":""},{"$f":"VLOOKUP(AK97,C94:Q99,15,FALSE)","v":""},{"$f":"IF(W99=\"\",\"\",IF(AO97=V99,W99,IF(AO97=Z99,Y99,\"\")))","v":""},{"$f":"IF(W98=\"\",\"\",IF(AO97=V98,W98,IF(AO97=Z98,Y98,\"\")))","v":""},{"$f":"IF(W97=\"\",\"\",IF(AO97=V97,W97,IF(AO97=Z97,Y97,\"\")))","v":""},{"$f":"IF(W102=\"\",\"\",IF(AO97=V102,W102,IF(AO97=Z102,Y102,\"\")))","v":""},{"$f":"IF(W101=\"\",\"\",IF(AO97=V101,W101,IF(AO97=Z101,Y101,\"\")))","v":""},{"$f":"IF(W100=\"\",\"\",IF(AO97=V100,W100,IF(AO97=Z100,Y100,\"\")))","v":""},{"$f":"IF(W94=\"\",\"\",IF(AO97=V94,W94,IF(AO97=Z94,Y94,\"\")))","v":""},{"$f":"IF(W95=\"\",\"\",IF(AO97=V95,W95,IF(AO97=Z95,Y95,\"\")))","v":""},{"$f":"IF(W96=\"\",\"\",IF(AO97=V96,W96,IF(AO97=Z96,Y96,\"\")))","v":""},{"$f":"IF(W104=\"\",\"\",IF(AO97=V104,W104,IF(AO97=Z104,Y104,\"\")))","v":""},{"$f":"IF(W103=\"\",\"\",IF(AO97=V103,W103,IF(AO97=Z103,Y103,\"\")))","v":""},{"$f":"IF(W105=\"\",\"\",IF(AO97=V105,W105,IF(AO97=Z105,Y105,\"\")))","v":""},{"$f":"IF(W108=\"\",\"\",IF(AO97=V108,W108,IF(AO97=Z108,Y108,\"\")))","v":""},{"$f":"IF(W107=\"\",\"\",IF(AO97=V107,W107,IF(AO97=Z107,Y107,\"\")))","v":""},{"$f":"IF(W106=\"\",\"\",IF(AO97=V106,W106,IF(AO97=Z106,Y106,\"\")))","v":""},null,null,null,null,null,null,null,null,null,null,null,null,null,true,false,true]
[null,5,{"$f":"IF(AK93=\"\",\"\",RANK(F98,F94:F99)*1000+ROW())","v":""},"",{"$f":"IF(L98=\"\",\"\",Nb_Diff_Part(D98,D94:D99,G98,G94:G99,AI94:AI110)*CritClassInd_DiffPart+Nb_Goal_Part(D98,D94:D99,G98,G94:G99,V94:Z110)*CritClassInd_GoalPart+Nb_Score_Part(D98,D94:D99,G98,G94:G99,V94:Z110)*CritClassInd_ScorePart)","v":""},"","A5",0,null,{"$f":"IF(AK93=\"\",\"\",(L98*Points_Victoire)+M98*Points_Null)","v":""},"",{"$f":"IF(AK93=\"\",\"\",COUNTIF(AE94:AE110,G98))","v":""},{"$f":"IF(AK93=\"\",\"\",COUNTIF(AF94:AG110,G98))","v":""},{"$f":"IF(AK93=\"\",\"\",COUNTIF(AH94:AH110,G98))","v":""},{"$f":"IF(AK93=\"\",\"\",SUMIF(V94:V110,G98,AB94:AB110)+SUMIF(Z94:Z110,G98,AD94:AD110))","v":""},{"$f":"IF(AK93=\"\",\"\",SUMIF(V94:V110,G98,AD94:AD110)+SUMIF(Z94:Z110,G98,AB94:AB110))","v":""},{"$f":"IF(AK93=\"\",\"\",O98-P98)","v":""},"#G2",null,null,null,{"$f":"IF(G96=\"\",\"\",G96)","v":"A3"},null,"-",null,{"$f":"IF(G98=\"\",\"\",G98)","v":"A5"},null,{"$f":"IF(MaxScore,MaxGoals(W98,Y98,MaxGoalsValue),IF(W98=\"\",\"\",W98))","v":0},"-",{"$f":"IF(MaxScore,MaxGoals(Y98,W98,MaxGoalsValue),IF(Y98=\"\",\"\",Y98))","v":0},"","","","","",null,{"$f":"IF(AK93=\"\",\"\",SMALL(C94:C99,5))","v":""},null,null,{"$f":"IF(AK93=\"\",\"\",INT(AK98/1000))","v":""},{"$f":"IF(AK93=\"\",IF(HidePlayerFormulas,\"\",\"(\"&G98&\")\"),VLOOKUP(AK98,C94:Q99,5,FALSE))","v":""},{"$f":"VLOOKUP(AK98,C94:Q99,8,FALSE)","v":""},{"$f":"VLOOKUP(AK98,C94:Q99,9,FALSE)","v":""},{"$f":"VLOOKUP(AK98,C94:Q99,10,FALSE)","v":""},{"$f":"VLOOKUP(AK98,C94:Q99,11,FALSE)","v":""},{"$f":"VLOOKUP(AK98,C94:Q99,12,FALSE)","v":""},{"$f":"VLOOKUP(AK98,C94:Q99,13,FALSE)","v":""},{"$f":"VLOOKUP(AK98,C94:Q99,14,FALSE)","v":""},{"$f":"VLOOKUP(AK98,C94:Q99,15,FALSE)","v":""},{"$f":"IF(W99=\"\",\"\",IF(AO98=V99,W99,IF(AO98=Z99,Y99,\"\")))","v":""},{"$f":"IF(W98=\"\",\"\",IF(AO98=V98,W98,IF(AO98=Z98,Y98,\"\")))","v":""},{"$f":"IF(W97=\"\",\"\",IF(AO98=V97,W97,IF(AO98=Z97,Y97,\"\")))","v":""},{"$f":"IF(W102=\"\",\"\",IF(AO98=V102,W102,IF(AO98=Z102,Y102,\"\")))","v":""},{"$f":"IF(W101=\"\",\"\",IF(AO98=V101,W101,IF(AO98=Z101,Y101,\"\")))","v":""},{"$f":"IF(W100=\"\",\"\",IF(AO98=V100,W100,IF(AO98=Z100,Y100,\"\")))","v":""},{"$f":"IF(W94=\"\",\"\",IF(AO98=V94,W94,IF(AO98=Z94,Y94,\"\")))","v":""},{"$f":"IF(W95=\"\",\"\",IF(AO98=V95,W95,IF(AO98=Z95,Y95,\"\")))","v":""},{"$f":"IF(W96=\"\",\"\",IF(AO98=V96,W96,IF(AO98=Z96,Y96,\"\")))","v":""},{"$f":"IF(W104=\"\",\"\",IF(AO98=V104,W104,IF(AO98=Z104,Y104,\"\")))","v":""},{"$f":"IF(W103=\"\",\"\",IF(AO98=V103,W103,IF(AO98=Z103,Y103,\"\")))","v":""},{"$f":"IF(W105=\"\",\"\",IF(AO98=V105,W105,IF(AO98=Z105,Y105,\"\")))","v":""},{"$f":"IF(W108=\"\",\"\",IF(AO98=V108,W108,IF(AO98=Z108,Y108,\"\")))","v":""},{"$f":"IF(W107=\"\",\"\",IF(AO98=V107,W107,IF(AO98=Z107,Y107,\"\")))","v":""},{"$f":"IF(W106=\"\",\"\",IF(AO98=V106,W106,IF(AO98=Z106,Y106,\"\")))","v":""},null,null,null,null,null,null,null,null,null,null,null,null,null,true,false,true]
[null,6,{"$f":"IF(AK93=\"\",\"\",RANK(F99,F94:F99)*1000+ROW())","v":""},"",{"$f":"IF(L99=\"\",\"\",Nb_Diff_Part(D99,D94:D99,G99,G94:G99,AI94:AI110)*CritClassInd_DiffPart+Nb_Goal_Part(D99,D94:D99,G99,G94:G99,V94:Z110)*CritClassInd_GoalPart+Nb_Score_Part(D99,D94:D99,G99,G94:G99,V94:Z110)*CritClassInd_ScorePart)","v":""},"","A6",0,null,{"$f":"IF(AK93=\"\",\"\",(L99*Points_Victoire)+M99*Points_Null)","v":""},"",{"$f":"IF(AK93=\"\",\"\",COUNTIF(AE94:AE110,G99))","v":""},{"$f":"IF(AK93=\"\",\"\",COUNTIF(AF94:AG110,G99))","v":""},{"$f":"IF(AK93=\"\",\"\",COUNTIF(AH94:AH110,G99))","v":""},{"$f":"IF(AK93=\"\",\"\",SUMIF(V94:V110,G99,AB94:AB110)+SUMIF(Z94:Z110,G99,AD94:AD110))","v":""},{"$f":"IF(AK93=\"\",\"\",SUMIF(V94:V110,G99,AD94:AD110)+SUMIF(Z94:Z110,G99,AB94:AB110))","v":""},{"$f":"IF(AK93=\"\",\"\",O99-P99)","v":""},"#G2",null,null,null,{"$f":"IF(G99=\"\",\"\",G99)","v":"A6"},null,"-",null,{"$f":"IF(G94=\"\",\"\",G94)","v":"A1"},null,{"$f":"IF(MaxScore,MaxGoals(W99,Y99,MaxGoalsValue),IF(W99=\"\",\"\",W99))","v":0},"-",{"$f":"IF(MaxScore,MaxGoals(Y99,W99,MaxGoalsValue),IF(Y99=\"\",\"\",Y99))","v":0},"","","","","",null,{"$f":"IF(AK93=\"\",\"\",SMALL(C94:C99,6))","v":""},null,null,{"$f":"IF(AK93=\"\",\"\",INT(AK99/1000))","v":""},{"$f":"IF(AK93=\"\",IF(HidePlayerFormulas,\"\",\"(\"&G99&\")\"),VLOOKUP(AK99,C94:Q99,5,FALSE))","v":""},{"$f":"VLOOKUP(AK99,C94:Q99,8,FALSE)","v":""},{"$f":"VLOOKUP(AK99,C94:Q99,9,FALSE)","v":""},{"$f":"VLOOKUP(AK99,C94:Q99,10,FALSE)","v":""},{"$f":"VLOOKUP(AK99,C94:Q99,11,FALSE)","v":""},{"$f":"VLOOKUP(AK99,C94:Q99,12,FALSE)","v":""},{"$f":"VLOOKUP(AK99,C94:Q99,13,FALSE)","v":""},{"$f":"VLOOKUP(AK99,C94:Q99,14,FALSE)","v":""},{"$f":"VLOOKUP(AK99,C94:Q99,15,FALSE)","v":""},{"$f":"IF(W99=\"\",\"\",IF(AO99=V99,W99,IF(AO99=Z99,Y99,\"\")))","v":""},{"$f":"IF(W98=\"\",\"\",IF(AO99=V98,W98,IF(AO99=Z98,Y98,\"\")))","v":""},{"$f":"IF(W97=\"\",\"\",IF(AO99=V97,W97,IF(AO99=Z97,Y97,\"\")))","v":""},{"$f":"IF(W102=\"\",\"\",IF(AO99=V102,W102,IF(AO99=Z102,Y102,\"\")))","v":""},{"$f":"IF(W101=\"\",\"\",IF(AO99=V101,W101,IF(AO99=Z101,Y101,\"\")))","v":""},{"$f":"IF(W100=\"\",\"\",IF(AO99=V100,W100,IF(AO99=Z100,Y100,\"\")))","v":""},{"$f":"IF(W94=\"\",\"\",IF(AO99=V94,W94,IF(AO99=Z94,Y94,\"\")))","v":""},{"$f":"IF(W95=\"\",\"\",IF(AO99=V95,W95,IF(AO99=Z95,Y95,\"\")))","v":""},{"$f":"IF(W96=\"\",\"\",IF(AO99=V96,W96,IF(AO99=Z96,Y96,\"\")))","v":""},{"$f":"IF(W104=\"\",\"\",IF(AO99=V104,W104,IF(AO99=Z104,Y104,\"\")))","v":""},{"$f":"IF(W103=\"\",\"\",IF(AO99=V103,W103,IF(AO99=Z103,Y103,\"\")))","v":""},{"$f":"IF(W105=\"\",\"\",IF(AO99=V105,W105,IF(AO99=Z105,Y105,\"\")))","v":""},{"$f":"IF(W108=\"\",\"\",IF(AO99=V108,W108,IF(AO99=Z108,Y108,\"\")))","v":""},{"$f":"IF(W107=\"\",\"\",IF(AO99=V107,W107,IF(AO99=Z107,Y107,\"\")))","v":""},{"$f":"IF(W106=\"\",\"\",IF(AO99=V106,W106,IF(AO99=Z106,Y106,\"\")))","v":""},null,null,null,null,null,null,null,null,null,null,null,null,null,true,false,true]
[null,null,null,null,null,null,null,null,null,null,null,null,null,null,null,null,null,"#G3",null,null,null,{"$f":"IF(G94=\"\",\"\",G94)","v":"A1"},null,"-",null,{"$f":"IF(G97=\"\",\"\",G97)","v":"A4"},null,{"$f":"IF(MaxScore,MaxGoals(W100,Y100,MaxGoalsValue),IF(W100=\"\",\"\",W100))","v":0},"-",{"$f":"IF(MaxScore,MaxGoals(Y100,W100,MaxGoalsValue),IF(Y100=\"\",\"\",Y100))","v":0},"","","","",""]
[null,null,null,null,null,null,null,null,null,null,null,null,null,null,null,null,null,"#G3",null,null,null,{"$f":"IF(G98=\"\",\"\",G98)","v":"A5"},null,"-",null,{"$f":"IF(G95=\"\",\"\",G95)","v":"A2"},null,{"$f":"IF(MaxScore,MaxGoals(W101,Y101,MaxGoalsValue),IF(W101=\"\",\"\",W101))","v":0},"-",{"$f":"IF(MaxScore,MaxGoals(Y101,W101,MaxGoalsValue),IF(Y101=\"\",\"\",Y101))","v":0},"","","","",""]
[null,null,null,null,null,null,null,null,null,null,null,null,null,null,null,null,null,"#G3",null,null,null,{"$f":"IF(G99=\"\",\"\",G99)","v":"A6"},null,"-",null,{"$f":"IF(G96=\"\",\"\",G96)","v":"A3"},null,{"$f":"IF(MaxScore,MaxGoals(W102,Y102,MaxGoalsValue),IF(W102=\"\",\"\",W102))","v":0},"-",{"$f":"IF(MaxScore,MaxGoals(Y102,W102,MaxGoalsValue),IF(Y102=\"\",\"\",Y102))","v":0},"","","","",""]
[null,null,null,null,null,null,null,null,null,null,null,null,null,null,null,null,null,"#G4",null,null,null,{"$f":"IF(G95=\"\",\"\",G95)","v":"A2"},null,"-",null,{"$f":"IF(G99=\"\",\"\",G99)","v":"A6"},null,{"$f":"IF(MaxScore,MaxGoals(W103,Y103,MaxGoalsValue),IF(W103=\"\",\"\",W103))","v":0},"-",{"$f":"IF(MaxScore,MaxGoals(Y103,W103,MaxGoalsValue),IF(Y103=\"\",\"\",Y103))","v":0},"","","","",""]
[null,null,null,null,null,null,null,null,null,null,null,null,null,null,null,null,null,"#G4",null,null,null,{"$f":"IF(G96=\"\",\"\",G96)","v":"A3"},null,"-",null,{"$f":"IF(G94=\"\",\"\",G94)","v":"A1"},null,{"$f":"IF(MaxScore,MaxGoals(W104,Y104,MaxGoalsValue),IF(W104=\"\",\"\",W104))","v":0},"-",{"$f":"IF(MaxScore,MaxGoals(Y104,W104,MaxGoalsValue),IF(Y104=\"\",\"\",Y104))","v":0},"","","","",""]
[null,null,null,null,null,null,null,null,null,null,null,null,null,null,null,null,null,"#G4",null,null,null,{"$f":"IF(G97=\"\",\"\",G97)","v":"A4"},null,"-",null,{"$f":"IF(G98=\"\",\"\",G98)","v":"A5"},null,{"$f":"IF(MaxScore,MaxGoals(W105,Y105,MaxGoalsValue),IF(W105=\"\",\"\",W105))","v":0},{"$f":"IF(MaxScore,\"-\",IF(W105=\"\",\"\",\"-\"))","v":"-"},{"$f":"IF(MaxScore,MaxGoals(Y105,W105,MaxGoalsValue),IF(Y105=\"\",\"\",Y105))","v":0},{"$f":"IF(W105=\"\",\"\",IF(W105>Y105,V105,IF(W105=Y105,\"\",Z105)))","v":""},{"$f":"IF(W105=\"\",\"\",IF(W105=Y105,V105,\"\"))","v":""},{"$f":"IF(W105=\"\",\"\",IF(W105=Y105,Z105,\"\"))","v":""},{"$f":"IF(W105=\"\",\"\",IF(W105<Y105,V105,IF(W105=Y105,\"\",Z105)))","v":""},{"$f":"CONCATENATE(AE105,AH105)","v":""}]
[null,null,null,null,null,null,null,null,null,null,null,null,null,null,null,null,null,"#G5",null,null,null,{"$f":"IF(G94=\"\",\"\",G94)","v":"A1"},null,"-",null,{"$f":"IF(G95=\"\",\"\",G95)","v":"A2"},null,{"$f":"IF(MaxScore,MaxGoals(W106,Y106,MaxGoalsValue),IF(W106=\"\",\"\",W106))","v":0},{"$f":"IF(MaxScore,\"-\",IF(W106=\"\",\"\",\"-\"))","v":"-"},{"$f":"IF(MaxScore,MaxGoals(Y106,W106,MaxGoalsValue),IF(Y106=\"\",\"\",Y106))","v":0},{"$f":"IF(W106=\"\",\"\",IF(W106>Y106,V106,IF(W106=Y106,\"\",Z106)))","v":""},{"$f":"IF(W106=\"\",\"\",IF(W106=Y106,V106,\"\"))","v":""},{"$f":"IF(W106=\"\",\"\",IF(W106=Y106,Z106,\"\"))","v":""},{"$f":"IF(W106=\"\",\"\",IF(W106<Y106,V106,IF(W106=Y106,\"\",Z106)))","v":""},{"$f":"CONCATENATE(AE106,AH106)","v":""}]
[null,null,null,null,null,null,null,null,null,null,null,null,null,null,null,null,null,"#G5",null,null,null,{"$f":"IF(G96=\"\",\"\",G96)","v":"A3"},null,"-",null,{"$f":"IF(G97=\"\",\"\",G97)","v":"A4"},null,0,"-",0,"","","","",""]
[null,null,null,null,null,null,null,null,null,null,null,null,null,null,null,null,null,"#G5",null,null,null,{"$f":"IF(G98=\"\",\"\",G98)","v":"A5"},null,"-",null,{"$f":"IF(G99=\"\",\"\",G99)","v":"A6"},null,{"$f":"IF(MaxScore,MaxGoals(W108,Y108,MaxGoalsValue),IF(W108=\"\",\"\",W108))","v":0},{"$f":"IF(MaxScore,\"-\",IF(W108=\"\",\"\",\"-\"))","v":"-"},{"$f":"IF(MaxScore,MaxGoals(Y108,W108,MaxGoalsValue),IF(Y108=\"\",\"\",Y108))","v":0},{"$f":"IF(W108=\"\",\"\",IF(W108>Y108,V108,IF(W108=Y108,\"\",Z108)))","v":""},{"$f":"IF(W108=\"\",\"\",IF(W108=Y108,V108,\"\"))","v":""},{"$f":"IF(W108=\"\",\"\",IF(W108=Y108,Z108,\"\"))","v":""},{"$f":"IF(W108=\"\",\"\",IF(W108<Y108,V108,IF(W108=Y108,\"\",Z108)))","v":""},{"$f":"CONCATENATE(AE108,AH108)","v":""}]
[]
[]
[null,{"$f":"N_Group_6_Self_Refereeing","v":"Group of 6 with self refereeing"},null,null,null,null,null,null,null,null,null,null,null,null,null,null,null,null,null,null,null,null,null,null,null,null,null,null,null,null,null,null,null,null,null,null,null,null,{"$f":"B111","v":"Group of 6 with self refereeing"}]
[]
[null,{"$f":"N_Tirage","v":"Draw"},"Cla.","Cla1","Part","Cla2",{"$f":"N_Joueurs","v":"Players"},{"$f":"N_RankPoints","v":"Rk Pt."},{"$f":"N_Diff_Part","v":"Part-Diff"},{"$f":"N_Pts","v":"Pts"},{"$f":"N_J","v":"Pld"},{"$f":"N_G","v":"W"},{"$f":"N_N","v":"D"},{"$f":"N_P","v":"L"},{"$f":"N_BP","v":"F"},{"$f":"N_BC","v":"A"},{"$f":"N_Diff.","v":"SO"},null,{"$f":"N_Heure","v":"Time"},{"$f":"N_Table","v":"Table"},{"$f":"N_Arbitre","v":"Referee"},{"$f":"N_Matches","v":"Matches"},null,null,null,null,null,{"$f":"IF(MaxScore,N_MaxScore,\"\")","v":"Max Score"},null,null,{"$f":"N_G","v":"W"},{"$f":"N_N","v":"D"},{"$f":"N_N","v":"D"},{"$f":"N_P","v":"L"},"CONCAT","Ref Group",{"$f":"IF(COUNTA(W114:W128)=0,\"\",\"OK\")","v":""},null,null,{"$f":"N_Cla.","v":"Rk"},{"$f":"N_Joueurs","v":"Players"},{"$f":"N_Pts","v":"Pts"},{"$f":"N_J","v":"Pld"},{"$f":"N_G","v":"W"},{"$f":"N_N","v":"D"},{"$f":"N_P","v":"L"},{"$f":"N_BP","v":"F"},{"$f":"N_BC","v":"A"},{"$f":"N_Diff.","v":"SO"},{"$f":"N_Matches","v":"Matches"}]
[null,1,{"$f":"IF(AK113=\"\",\"\",RANK(F114,F114:F119)*1000+ROW())","v":""},{"$f":"IF(L114=\"\",\"\",CritClassInd1_Points*J114+CritClassInd1_Matches*L114+CritClassInd1_Attaque*O114+CritClassInd1_DiffButs*Q114)","v":""},{"$f":"IF(L114=\"\",\"\",Nb_Diff_Part(D114,D114:D119,G114,G114:G119,AI114:AI128)*CritClassInd_DiffPart+Nb_Goal_Part(D114,D114:D119,G114,G114:G119,V114:Z128)*CritClassInd_GoalPart+Nb_Score_Part(D114,D114:D119,G114,G114:G119,V114:Z128)*CritClassInd_ScorePart)","v":""},{"$f":"IF(L114=\"\",\"\",D114+E114+CritClassInd2_Points*J114+CritClassInd2_Matches*L114+CritClassInd2_Attaque*O114+CritClassInd2_DiffButs*Q114+CritClassInd_Ranking*H114+I114)","v":""},"A1",{"$f":"GMFTRANKINGPOINTS(G114,Particular_Category)","v":0},null,{"$f":"IF(AK113=\"\",\"\",(L114*Points_Victoire)+M114*Points_Null)","v":""},{"$f":"IF(L114=\"\",\"\",SUM(L114:N114))","v":""},{"$f":"IF(AK113=\"\",\"\",COUNTIF(AE114:AE128,G114))","v":""},{"$f":"IF(AK113=\"\",\"\",COUNTIF(AF114:AG128,G114))","v":""},{"$f":"IF(AK113=\"\",\"\",COUNTIF(AH114:AH128,G114))","v":""},{"$f":"IF(AK113=\"\",\"\",SUMIF(V114:V128,G114,AB114:AB128)+SUMIF(Z114:Z128,G114,AD114:AD128))","v":""},{"$f":"IF(AK113=\"\",\"\",SUMIF(V114:V128,G114,AD114:AD128)+SUMIF(Z114:Z128,G114,AB114:AB128))","v":""},{"$f":"IF(AK113=\"\",\"\",O114-P114)","v":""},"#GSR1",null,null,null,{"$f":"IF(G114=\"\",\"\",G114)","v":"A1"},null,"-",null,{"$f":"IF(G119=\"\",\"\",G119)","v":"A6"},null,{"$f":"IF(MaxScore,MaxGoals(W114,Y114,MaxGoalsValue),IF(W114=\"\",\"\",W114))","v":0},{"$f":"IF(MaxScore,\"-\",IF(W114=\"\",\"\",\"-\"))","v":"-"},{"$f":"IF(MaxScore,MaxGoals(Y114,W114,MaxGoalsValue),IF(Y114=\"\",\"\",Y114))","v":0},{"$f":"IF(W114=\"\",\"\",IF(W114>Y114,V114,IF(W114=Y114,\"\",Z114)))","v":""},{"$f":"IF(W114=\"\",\"\",IF(W114=Y114,V114,\"\"))","v":""},{"$f":"IF(W114=\"\",\"\",IF(W114=Y114,Z114,\"\"))","v":""},{"$f":"IF(W114=\"\",\"\",IF(W114<Y114,V114,IF(W114=Y114,\"\",Z114)))","v":""},{"$f":"CONCATENATE(AE114,AH114)","v":""},null,{"$f":"IF(AK113=\"\",\"\",SMALL(C114:C119,1))","v":""},null,null,{"$f":"IF(AK113=\"\",\"\",INT(AK114/1000))","v":""},{"$f":"IF(AK113=\"\",IF(HidePlayerFormulas,\"\",\"(\"&G114&\")\"),VLOOKUP(AK114,C114:Q119,5,FALSE))","v":""},{"$f":"VLOOKUP(AK114,C114:Q119,8,FALSE)","v":""},{"$f":"VLOOKUP(AK114,C114:Q119,9,FALSE)","v":""},{"$f":"VLOOKUP(AK114,C114:Q119,10,FALSE)","v":""},{"$f":"VLOOKUP(AK114,C114:Q119,11,FALSE)","v":""},{"$f":"VLOOKUP(AK114,C114:Q119,12,FALSE)","v":""},{"$f":"VLOOKUP(AK114,C114:Q119,13,FALSE)","v":""},{"$f":"VLOOKUP(AK114,C114:Q119,14,FALSE)","v":""},{"$f":"VLOOKUP(AK114,C114:Q119,15,FALSE)","v":""},{"$f":"IF(W114=\"\",\"\",IF(AO114=V114,W114,IF(AO114=Z114,Y114,\"\")))","v":""},{"$f":"IF(W115=\"\",\"\",IF(AO114=V115,W115,IF(AO114=Z115,Y115,\"\")))","v":""},{"$f":"IF(W116=\"\",\"\",IF(AO114=V116,W116,IF(AO114=Z116,Y116,\"\")))","v":""},{"$f":"IF(W117=\"\",\"\",IF(AO114=V117,W117,IF(AO114=Z117,Y117,\"\")))","v":""},{"$f":"IF(W118=\"\",\"\",IF(AO114=V118,W118,IF(AO114=Z118,Y118,\"\")))","v":""},{"$f":"IF(W119=\"\",\"\",IF(AO114=V119,W119,IF(AO114=Z119,Y119,\"\")))","v":""},{"$f":"IF(W120=\"\",\"\",IF(AO114=V120,W120,IF(AO114=Z120,Y120,\"\")))","v":""},{"$f":"IF(W121=\"\",\"\",IF(AO114=V121,W121,IF(AO114=Z121,Y121,\"\")))","v":""},{"$f":"IF(W122=\"\",\"\",IF(AO114=V122,W122,IF(AO114=Z122,Y122,\"\")))","v":""},{"$f":"IF(W123=\"\",\"\",IF(AO114=V123,W123,IF(AO114=Z123,Y123,\"\")))","v":""},{"$f":"IF(W124=\"\",\"\",IF(AO114=V124,W124,IF(AO114=Z124,Y124,\"\")))","v":""},{"$f":"IF(W125=\"\",\"\",IF(AO114=V125,W125,IF(AO114=Z125,Y125,\"\")))","v":""},{"$f":"IF(W126=\"\",\"\",IF(AO114=V126,W126,IF(AO114=Z126,Y126,\"\")))","v":""},{"$f":"IF(W127=\"\",\"\",IF(AO114=V127,W127,IF(AO114=Z127,Y127,\"\")))","v":""},{"$f":"IF(W128=\"\",\"\",IF(AO114=V128,W128,IF(AO114=Z128,Y128,\"\")))","v":""},null,null,null,null,null,null,null,null,null,null,null,null,null,{"$f":"IF(G114=\"[---WithDraw---]\",FALSE,IF(COUNTIF(PlayerNamesWithinGroups,G114)>1,TRUE,FALSE))","v":true},{"$f":"AND(LEFT($AO114,1) = \"(\", RIGHT($AO114,1) =\")\")","v":false},{"$f":"IF(OR($AN114=$AN113,$AN114=$AN115),TRUE,FALSE)","v":true}]
[null,2,{"$f":"IF(AK113=\"\",\"\",RANK(F115,F114:F119)*1000+ROW())","v":""},"",{"$f":"IF(L115=\"\",\"\",Nb_Diff_Part(D115,D114:D119,G115,G114:G119,AI114:AI128)*CritClassInd_DiffPart+Nb_Goal_Part(D115,D114:D119,G115,G114:G119,V114:Z128)*CritClassInd_GoalPart+Nb_Score_Part(D115,D114:D119,G115,G114:G119,V114:Z128)*CritClassInd_ScorePart)","v":""},"","A2",0,null,{"$f":"IF(AK113=\"\",\"\",(L115*Points_Victoire)+M115*Points_Null)","v":""},"",{"$f":"IF(AK113=\"\",\"\",COUNTIF(AE114:AE128,G115))","v":""},{"$f":"IF(AK113=\"\",\"\",COUNTIF(AF114:AG128,G115))","v":""},{"$f":"IF(AK113=\"\",\"\",COUNTIF(AH114:AH128,G115))","v":""},{"$f":"IF(AK113=\"\",\"\",SUMIF(V114:V128,G115,AB114:AB128)+SUMIF(Z114:Z128,G115,AD114:AD128))","v":""},{"$f":"IF(AK113=\"\",\"\",SUMIF(V114:V128,G115,AD114:AD128)+SUMIF(Z114:Z128,G115,AB114:AB128))","v":""},{"$f":"IF(AK113=\"\",\"\",O115-P115)","v":""},"#GSR1",null,null,null,{"$f":"IF(G116=\"\",\"\",G116)","v":"A3"},null,"-",null,{"$f":"IF(G118=\"\",\"\",G118)","v":"A5"},null,0,"-",0,"","","","","",null,{"$f":"IF(AK113=\"\",\"\",SMALL(C114:C119,2))","v":""},null,null,{"$f":"IF(AK113=\"\",\"\",INT(AK115/1000))","v":""},{"$f":"IF(AK113=\"\",IF(HidePlayerFormulas,\"\",\"(\"&G115&\")\"),VLOOKUP(AK115,C114:Q119,5,FALSE))","v":""},{"$f":"VLOOKUP(AK115,C114:Q119,8,FALSE)","v":""},{"$f":"VLOOKUP(AK115,C114:Q119,9,FALSE)","v":""},{"$f":"VLOOKUP(AK115,C114:Q119,10,FALSE)","v":""},{"$f":"VLOOKUP(AK115,C114:Q119,11,FALSE)","v":""},{"$f":"VLOOKUP(AK115,C114:Q119,12,FALSE)","v":""},{"$f":"VLOOKUP(AK115,C114:Q119,13,FALSE)","v":""},{"$f":"VLOOKUP(AK115,C114:Q119,14,FALSE)","v":""},{"$f":"VLOOKUP(AK115,C114:Q119,15,FALSE)","v":""},{"$f":"IF(W114=\"\",\"\",IF(AO115=V114,W114,IF(AO115=Z114,Y114,\"\")))","v":""},{"$f":"IF(W115=\"\",\"\",IF(AO115=V115,W115,IF(AO115=Z115,Y115,\"\")))","v":""},{"$f":"IF(W116=\"\",\"\",IF(AO115=V116,W116,IF(AO115=Z116,Y116,\"\")))","v":""},{"$f":"IF(W117=\"\",\"\",IF(AO115=V117,W117,IF(AO115=Z117,Y117,\"\")))","v":""},{"$f":"IF(W118=\"\",\"\",IF(AO115=V118,W118,IF(AO115=Z118,Y118,\"\")))","v":""},{"$f":"IF(W119=\"\",\"\",IF(AO115=V119,W119,IF(AO115=Z119,Y119,\"\")))","v":""},{"$f":"IF(W120=\"\",\"\",IF(AO115=V120,W120,IF(AO115=Z120,Y120,\"\")))","v":""},{"$f":"IF(W121=\"\",\"\",IF(AO115=V121,W121,IF(AO115=Z121,Y121,\"\")))","v":""},{"$f":"IF(W122=\"\",\"\",IF(AO115=V122,W122,IF(AO115=Z122,Y122,\"\")))","v":""},{"$f":"IF(W123=\"\",\"\",IF(AO115=V123,W123,IF(AO115=Z123,Y123,\"\")))","v":""},{"$f":"IF(W124=\"\",\"\",IF(AO115=V124,W124,IF(AO115=Z124,Y124,\"\")))","v":""},{"$f":"IF(W125=\"\",\"\",IF(AO115=V125,W125,IF(AO115=Z125,Y125,\"\")))","v":""},{"$f":"IF(W126=\"\",\"\",IF(AO115=V126,W126,IF(AO115=Z126,Y126,\"\")))","v":""},{"$f":"IF(W127=\"\",\"\",IF(AO115=V127,W127,IF(AO115=Z127,Y127,\"\")))","v":""},{"$f":"IF(W128=\"\",\"\",IF(AO115=V128,W128,IF(AO115=Z128,Y128,\"\")))","v":""},null,null,null,null,null,null,null,null,null,null,null,null,null,true,false,true]
[null,3,{"$f":"IF(AK113=\"\",\"\",RANK(F116,F114:F119)*1000+ROW())","v":""},"",{"$f":"IF(L116=\"\",\"\",Nb_Diff_Part(D116,D114:D119,G116,G114:G119,AI114:AI128)*CritClassInd_DiffPart+Nb_Goal_Part(D116,D114:D119,G116,G114:G119,V114:Z128)*CritClassInd_GoalPart+Nb_Score_Part(D116,D114:D119,G116,G114:G119,V114:Z128)*CritClassInd_ScorePart)","v":""},"","A3",0,null,{"$f":"IF(AK113=\"\",\"\",(L116*Points_Victoire)+M116*Points_Null)","v":""},"",{"$f":"IF(AK113=\"\",\"\",COUNTIF(AE114:AE128,G116))","v":""},{"$f":"IF(AK113=\"\",\"\",COUNTIF(AF114:AG128,G116))","v":""},{"$f":"IF(AK113=\"\",\"\",COUNTIF(AH114:AH128,G116))","v":""},{"$f":"IF(AK113=\"\",\"\",SUMIF(V114:V128,G116,AB114:AB128)+SUMIF(Z114:Z128,G116,AD114:AD128))","v":""},{"$f":"IF(AK113=\"\",\"\",SUMIF(V114:V128,G116,AD114:AD128)+SUMIF(Z114:Z128,G116,AB114:AB128))","v":""},{"$f":"IF(AK113=\"\",\"\",O116-P116)","v":""},"#GSR2",null,null,null,{"$f":"IF(G115=\"\",\"\",G115)","v":"A2"},null,"-",null,{"$f":"IF(G117=\"\",\"\",G117)","v":"A4"},null,0,"-",0,"","","","","",null,{"$f":"IF(AK113=\"\",\"\",SMALL(C114:C119,3))","v":""},null,null,{"$f":"IF(AK113=\"\",\"\",INT(AK116/1000))","v":""},{"$f":"IF(AK113=\"\",IF(HidePlayerFormulas,\"\",\"(\"&G116&\")\"),VLOOKUP(AK116,C114:Q119,5,FALSE))","v":""},{"$f":"VLOOKUP(AK116,C114:Q119,8,FALSE)","v":""},{"$f":"VLOOKUP(AK116,C114:Q119,9,FALSE)","v":""},{"$f":"VLOOKUP(AK116,C114:Q119,10,FALSE)","v":""},{"$f":"VLOOKUP(AK116,C114:Q119,11,FALSE)","v":""},{"$f":"VLOOKUP(AK116,C114:Q119,12,FALSE)","v":""},{"$f":"VLOOKUP(AK116,C114:Q119,13,FALSE)","v":""},{"$f":"VLOOKUP(AK116,C114:Q119,14,FALSE)","v":""},{"$f":"VLOOKUP(AK116,C114:Q119,15,FALSE)","v":""},{"$f":"IF(W114=\"\",\"\",IF(AO116=V114,W114,IF(AO116=Z114,Y114,\"\")))","v":""},{"$f":"IF(W115=\"\",\"\",IF(AO116=V115,W115,IF(AO116=Z115,Y115,\"\")))","v":""},{"$f":"IF(W116=\"\",\"\",IF(AO116=V116,W116,IF(AO116=Z116,Y116,\"\")))","v":""},{"$f":"IF(W117=\"\",\"\",IF(AO116=V117,W117,IF(AO116=Z117,Y117,\"\")))","v":""},{"$f":"IF(W118=\"\",\"\",IF(AO116=V118,W118,IF(AO116=Z118,Y118,\"\")))","v":""},{"$f":"IF(W119=\"\",\"\",IF(AO116=V119,W119,IF(AO116=Z119,Y119,\"\")))","v":""},{"$f":"IF(W120=\"\",\"\",IF(AO116=V120,W120,IF(AO116=Z120,Y120,\"\")))","v":""},{"$f":"IF(W121=\"\",\"\",IF(AO116=V121,W121,IF(AO116=Z121,Y121,\"\")))","v":""},{"$f":"IF(W122=\"\",\"\",IF(AO116=V122,W122,IF(AO116=Z122,Y122,\"\")))","v":""},{"$f":"IF(W123=\"\",\"\",IF(AO116=V123,W123,IF(AO116=Z123,Y123,\"\")))","v":""},{"$f":"IF(W124=\"\",\"\",IF(AO116=V124,W124,IF(AO116=Z124,Y124,\"\")))","v":""},{"$f":"IF(W125=\"\",\"\",IF(AO116=V125,W125,IF(AO116=Z125,Y125,\"\")))","v":""},{"$f":"IF(W126=\"\",\"\",IF(AO116=V126,W126,IF(AO116=Z126,Y126,\"\")))","v":""},{"$f":"IF(W127=\"\",\"\",IF(AO116=V127,W127,IF(AO116=Z127,Y127,\"\")))","v":""},{"$f":"IF(W128=\"\",\"\",IF(AO116=V128,W128,IF(AO116=Z128,Y128,\"\")))","v":""},null,null,null,null,null,null,null,null,null,null,null,null,null,true,false,true]
[null,4,{"$f":"IF(AK113=\"\",\"\",RANK(F117,F114:F119)*1000+ROW())","v":""},"",{"$f":"IF(L117=\"\",\"\",Nb_Diff_Part(D117,D114:D119,G117,G114:G119,AI114:AI128)*CritClassInd_DiffPart+Nb_Goal_Part(D117,D114:D119,G117,G114:G119,V114:Z128)*CritClassInd_GoalPart+Nb_Score_Part(D117,D114:D119,G117,G114:G119,V114:Z128)*CritClassInd_ScorePart)","v":""},"","A4",0,null,{"$f":"IF(AK113=\"\",\"\",(L117*Points_Victoire)+M117*Points_Null)","v":""},"",{"$f":"IF(AK113=\"\",\"\",COUNTIF(AE114:AE128,G117))","v":""},{"$f":"IF(AK113=\"\",\"\",COUNTIF(AF114:AG128,G117))","v":""},{"$f":"IF(AK113=\"\",\"\",COUNTIF(AH114:AH128,G117))","v":""},{"$f":"IF(AK113=\"\",\"\",SUMIF(V114:V128,G117,AB114:AB128)+SUMIF(Z114:Z128,G117,AD114:AD128))","v":""},{"$f":"IF(AK113=\"\",\"\",SUMIF(V114:V128,G117,AD114:AD128)+SUMIF(Z114:Z128,G117,AB114:AB128))","v":""},{"$f":"IF(AK113=\"\",\"\",O117-P117)","v":""},"#GSR2",null,null,null,{"$f":"IF(G116=\"\",\"\",G116)","v":"A3"},null,"-",null,{"$f":"IF(G119=\"\",\"\",G119)","v":"A6"},null,0,"-",0,"","","","","",null,{"$f":"IF(AK113=\"\",\"\",SMALL(C114:C119,4))","v":""},null,null,{"$f":"IF(AK113=\"\",\"\",INT(AK117/1000))","v":""},{"$f":"IF(AK113=\"\",IF(HidePlayerFormulas,\"\",\"(\"&G117&\")\"),VLOOKUP(AK117,C114:Q119,5,FALSE))","v":""},{"$f":"VLOOKUP(AK117,C114:Q119,8,FALSE)","v":""},{"$f":"VLOOKUP(AK117,C114:Q119,9,FALSE)","v":""},{"$f":"VLOOKUP(AK117,C114:Q119,10,FALSE)","v":""},{"$f":"VLOOKUP(AK117,C114:Q119,11,FALSE)","v":""},{"$f":"VLOOKUP(AK117,C114:Q119,12,FALSE)","v":""},{"$f":"VLOOKUP(AK117,C114:Q119,13,FALSE)","v":""},{"$f":"VLOOKUP(AK117,C114:Q119,14,FALSE)","v":""},{"$f":"VLOOKUP(AK117,C114:Q119,15,FALSE)","v":""},{"$f":"IF(W114=\"\",\"\",IF(AO117=V114,W114,IF(AO117=Z114,Y114,\"\")))","v":""},{"$f":"IF(W115=\"\",\"\",IF(AO117=V115,W115,IF(AO117=Z115,Y115,\"\")))","v":""},{"$f":"IF(W116=\"\",\"\",IF(AO117=V116,W116,IF(AO117=Z116,Y116,\"\")))","v":""},{"$f":"IF(W117=\"\",\"\",IF(AO117=V117,W117,IF(AO117=Z117,Y117,\"\")))","v":""},{"$f":"IF(W118=\"\",\"\",IF(AO117=V118,W118,IF(AO117=Z118,Y118,\"\")))","v":""},{"$f":"IF(W119=\"\",\"\",IF(AO117=V119,W119,IF(AO117=Z119,Y119,\"\")))","v":""},{"$f":"IF(W120=\"\",\"\",IF(AO117=V120,W120,IF(AO117=Z120,Y120,\"\")))","v":""},{"$f":"IF(W121=\"\",\"\",IF(AO117=V121,W121,IF(AO117=Z121,Y121,\"\")))","v":""},{"$f":"IF(W122=\"\",\"\",IF(AO117=V122,W122,IF(AO117=Z122,Y122,\"\")))","v":""},{"$f":"IF(W123=\"\",\"\",IF(AO117=V123,W123,IF(AO117=Z123,Y123,\"\")))","v":""},{"$f":"IF(W124=\"\",\"\",IF(AO117=V124,W124,IF(AO117=Z124,Y124,\"\")))","v":""},{"$f":"IF(W125=\"\",\"\",IF(AO117=V125,W125,IF(AO117=Z125,Y125,\"\")))","v":""},{"$f":"IF(W126=\"\",\"\",IF(AO117=V126,W126,IF(AO117=Z126,Y126,\"\")))","v":""},{"$f":"IF(W127=\"\",\"\",IF(AO117=V127,W127,IF(AO117=Z127,Y127,\"\")))","v":""},{"$f":"IF(W128=\"\",\"\",IF(AO117=V128,W128,IF(AO117=Z128,Y128,\"\")))","v":""},null,null,null,null,null,null,null,null,null,null,null,null,null,true,false,true]
[null,5,{"$f":"IF(AK113=\"\",\"\",RANK(F118,F114:F119)*1000+ROW())","v":""},"",{"$f":"IF(L118=\"\",\"\",Nb_Diff_Part(D118,D114:D119,G118,G114:G119,AI114:AI128)*CritClassInd_DiffPart+Nb_Goal_Part(D118,D114:D119,G118,G114:G119,V114:Z128)*CritClassInd_GoalPart+Nb_Score_Part(D118,D114:D119,G118,G114:G119,V114:Z128)*CritClassInd_ScorePart)","v":""},"","A5",0,null,{"$f":"IF(AK113=\"\",\"\",(L118*Points_Victoire)+M118*Points_Null)","v":""},"",{"$f":"IF(AK113=\"\",\"\",COUNTIF(AE114:AE128,G118))","v":""},{"$f":"IF(AK113=\"\",\"\",COUNTIF(AF114:AG128,G118))","v":""},{"$f":"IF(AK113=\"\",\"\",COUNTIF(AH114:AH128,G118))","v":""},{"$f":"IF(AK113=\"\",\"\",SUMIF(V114:V128,G118,AB114:AB128)+SUMIF(Z114:Z128,G118,AD114:AD128))","v":""},{"$f":"IF(AK113=\"\",\"\",SUMIF(V114:V128,G118,AD114:AD128)+SUMIF(Z114:Z128,G118,AB114:AB128))","v":""},{"$f":"IF(AK113=\"\",\"\",O118-P118)","v":""},"#GSR3",null,null,null,{"$f":"IF(G115=\"\",\"\",G115)","v":"A2"},null,"-",null,{"$f":"IF(G118=\"\",\"\",G118)","v":"A5"},null,0,"-",0,"","","","","",null,{"$f":"IF(AK113=\"\",\"\",SMALL(C114:C119,5))","v":""},null,null,{"$f":"IF(AK113=\"\",\"\",INT(AK118/1000))","v":""},{"$f":"IF(AK113=\"\",IF(HidePlayerFormulas,\"\",\"(\"&G118&\")\"),VLOOKUP(AK118,C114:Q119,5,FALSE))","v":""},{"$f":"VLOOKUP(AK118,C114:Q119,8,FALSE)","v":""},{"$f":"VLOOKUP(AK118,C114:Q119,9,FALSE)","v":""},{"$f":"VLOOKUP(AK118,C114:Q119,10,FALSE)","v":""},{"$f":"VLOOKUP(AK118,C114:Q119,11,FALSE)","v":""},{"$f":"VLOOKUP(AK118,C114:Q119,12,FALSE)","v":""},{"$f":"VLOOKUP(AK118,C114:Q119,13,FALSE)","v":""},{"$f":"VLOOKUP(AK118,C114:Q119,14,FALSE)","v":""},{"$f":"VLOOKUP(AK118,C114:Q119,15,FALSE)","v":""},{"$f":"IF(W114=\"\",\"\",IF(AO118=V114,W114,IF(AO118=Z114,Y114,\"\")))","v":""},{"$f":"IF(W115=\"\",\"\",IF(AO118=V115,W115,IF(AO118=Z115,Y115,\"\")))","v":""},{"$f":"IF(W116=\"\",\"\",IF(AO118=V116,W116,IF(AO118=Z116,Y116,\"\")))","v":""},{"$f":"IF(W117=\"\",\"\",IF(AO118=V117,W117,IF(AO118=Z117,Y117,\"\")))","v":""},{"$f":"IF(W118=\"\",\"\",IF(AO118=V118,W118,IF(AO118=Z118,Y118,\"\")))","v":""},{"$f":"IF(W119=\"\",\"\",IF(AO118=V119,W119,IF(AO118=Z119,Y119,\"\")))","v":""},{"$f":"IF(W120=\"\",\"\",IF(AO118=V120,W120,IF(AO118=Z120,Y120,\"\")))","v":""},{"$f":"IF(W121=\"\",\"\",IF(AO118=V121,W121,IF(AO118=Z121,Y121,\"\")))","v":""},{"$f":"IF(W122=\"\",\"\",IF(AO118=V122,W122,IF(AO118=Z122,Y122,\"\")))","v":""},{"$f":"IF(W123=\"\",\"\",IF(AO118=V123,W123,IF(AO118=Z123,Y123,\"\")))","v":""},{"$f":"IF(W124=\"\",\"\",IF(AO118=V124,W124,IF(AO118=Z124,Y124,\"\")))","v":""},{"$f":"IF(W125=\"\",\"\",IF(AO118=V125,W125,IF(AO118=Z125,Y125,\"\")))","v":""},{"$f":"IF(W126=\"\",\"\",IF(AO118=V126,W126,IF(AO118=Z126,Y126,\"\")))","v":""},{"$f":"IF(W127=\"\",\"\",IF(AO118=V127,W127,IF(AO118=Z127,Y127,\"\")))","v":""},{"$f":"IF(W128=\"\",\"\",IF(AO118=V128,W128,IF(AO118=Z128,Y128,\"\")))","v":""},null,null,null,null,null,null,null,null,null,null,null,null,null,true,false,true]
[null,6,{"$f":"IF(AK113=\"\",\"\",RANK(F119,F114:F119)*1000+ROW())","v":""},"",{"$f":"IF(L119=\"\",\"\",Nb_Diff_Part(D119,D114:D119,G119,G114:G119,AI114:AI128)*CritClassInd_DiffPart+Nb_Goal_Part(D119,D114:D119,G119,G114:G119,V114:Z128)*CritClassInd_GoalPart+Nb_Score_Part(D119,D114:D119,G119,G114:G119,V114:Z128)*CritClassInd_ScorePart)","v":""},"","A6",0,null,{"$f":"IF(AK113=\"\",\"\",(L119*Points_Victoire)+M119*Points_Null)","v":""},"",{"$f":"IF(AK113=\"\",\"\",COUNTIF(AE114:AE128,G119))","v":""},{"$f":"IF(AK113=\"\",\"\",COUNTIF(AF114:AG128,G119))","v":""},{"$f":"IF(AK113=\"\",\"\",COUNTIF(AH114:AH128,G119))","v":""},{"$f":"IF(AK113=\"\",\"\",SUMIF(V114:V128,G119,AB114:AB128)+SUMIF(Z114:Z128,G119,AD114:AD128))","v":""},{"$f":"IF(AK113=\"\",\"\",SUMIF(V114:V128,G119,AD114:AD128)+SUMIF(Z114:Z128,G119,AB114:AB128))","v":""},{"$f":"IF(AK113=\"\",\"\",O119-P119)","v":""},"#GSR3",null,null,null,{"$f":"IF(G114=\"\",\"\",G114)","v":"A1"},null,"-",null,{"$f":"IF(G117=\"\",\"\",G117)","v":"A4"},null,0,"-",0,"","","","","",null,{"$f":"IF(AK113=\"\",\"\",SMALL(C114:C119,6))","v":""},null,null,{"$f":"IF(AK113=\"\",\"\",INT(AK119/1000))","v":""},{"$f":"IF(AK113=\"\",IF(HidePlayerFormulas,\"\",\"(\"&G119&\")\"),VLOOKUP(AK119,C114:Q119,5,FALSE))","v":""},{"$f":"VLOOKUP(AK119,C114:Q119,8,FALSE)","v":""},{"$f":"VLOOKUP(AK119,C114:Q119,9,FALSE)","v":""},{"$f":"VLOOKUP(AK119,C114:Q119,10,FALSE)","v":""},{"$f":"VLOOKUP(AK119,C114:Q119,11,FALSE)","v":""},{"$f":"VLOOKUP(AK119,C114:Q119,12,FALSE)","v":""},{"$f":"VLOOKUP(AK119,C114:Q119,13,FALSE)","v":""},{"$f":"VLOOKUP(AK119,C114:Q119,14,FALSE)","v":""},{"$f":"VLOOKUP(AK119,C114:Q119,15,FALSE)","v":""},{"$f":"IF(W114=\"\",\"\",IF(AO119=V114,W114,IF(AO119=Z114,Y114,\"\")))","v":""},{"$f":"IF(W115=\"\",\"\",IF(AO119=V115,W115,IF(AO119=Z115,Y115,\"\")))","v":""},{"$f":"IF(W116=\"\",\"\",IF(AO119=V116,W116,IF(AO119=Z116,Y116,\"\")))","v":""},{"$f":"IF(W117=\"\",\"\",IF(AO119=V117,W117,IF(AO119=Z117,Y117,\"\")))","v":""},{"$f":"IF(W118=\"\",\"\",IF(AO119=V118,W118,IF(AO119=Z118,Y118,\"\")))","v":""},{"$f":"IF(W119=\"\",\"\",IF(AO119=V119,W119,IF(AO119=Z119,Y119,\"\")))","v":""},{"$f":"IF(W120=\"\",\"\",IF(AO119=V120,W120,IF(AO119=Z120,Y120,\"\")))","v":""},{"$f":"IF(W121=\"\",\"\",IF(AO119=V121,W121,IF(AO119=Z121,Y121,\"\")))","v":""},{"$f":"IF(W122=\"\",\"\",IF(AO119=V122,W122,IF(AO119=Z122,Y122,\"\")))","v":""},{"$f":"IF(W123=\"\",\"\",IF(AO119=V123,W123,IF(AO119=Z123,Y123,\"\")))","v":""},{"$f":"IF(W124=\"\",\"\",IF(AO119=V124,W124,IF(AO119=Z124,Y124,\"\")))","v":""},{"$f":"IF(W125=\"\",\"\",IF(AO119=V125,W125,IF(AO119=Z125,Y125,\"\")))","v":""},{"$f":"IF(W126=\"\",\"\",IF(AO119=V126,W126,IF(AO119=Z126,Y126,\"\")))","v":""},{"$f":"IF(W127=\"\",\"\",IF(AO119=V127,W127,IF(AO119=Z127,Y127,\"\")))","v":""},{"$f":"IF(W128=\"\",\"\",IF(AO119=V128,W128,IF(AO119=Z128,Y128,\"\")))","v":""},null,null,null,null,null,null,null,null,null,null,null,null,null,true,false,true]
[null,null,null,null,null,null,null,null,null,null,null,null,null,null,null,null,null,"#GSR4",null,null,null,{"$f":"IF(G114=\"\",\"\",G114)","v":"A1"},null,"-",null,{"$f":"IF(G118=\"\",\"\",G118)","v":"A5"},null,0,"-",0,"","","","",""]
[null,null,null,null,null,null,null,null,null,null,null,null,null,null,null,null,null,"#GSR4",null,null,null,{"$f":"IF(G115=\"\",\"\",G115)","v":"A2"},null,"-",null,{"$f":"IF(G116=\"\",\"\",G116)","v":"A3"},null,0,"-",0,"","","","",""]
[null,null,null,null,null,null,null,null,null,null,null,null,null,null,null,null,null,"#GSR5",null,null,null,{"$f":"IF(G117=\"\",\"\",G117)","v":"A4"},null,"-",null,{"$f":"IF(G119=\"\",\"\",G119)","v":"A6"},null,0,"-",0,"","","","",""]
[null,null,null,null,null,null,null,null,null,null,null,null,null,null,null,null,null,"#GSR5",null,null,null,{"$f":"IF(G114=\"\",\"\",G114)","v":"A1"},null,"-",null,{"$f":"IF(G116=\"\",\"\",G116)","v":"A3"},null,0,"-",0,"","","","",""]
[null,null,null,null,null,null,null,null,null,null,null,null,null,null,null,null,null,"#GSR6",null,null,null,{"$f":"IF(G115=\"\",\"\",G115)","v":"A2"},null,"-",null,{"$f":"IF(G119=\"\",\"\",G119)","v":"A6"},null,0,"-",0,"","","","",""]
[null,null,null,null,null,null,null,null,null,null,null,null,null,null,null,null,null,"#GSR6",null,null,null,{"$f":"IF(G117=\"\",\"\",G117)","v":"A4"},null,"-",null,{"$f":"IF(G118=\"\",\"\",G118)","v":"A5"},null,0,"-",0,"","","","",""]
[null,null,null,null,null,null,null,null,null,null,null,null,null,null,null,null,null,"#GSR7",null,null,null,{"$f":"IF(G118=\"\",\"\",G118)","v":"A5"},null,"-",null,{"$f":"IF(G119=\"\",\"\",G119)","v":"A6"},null,0,"-",0,"","","","",""]
[null,null,null,null,null,null,null,null,null,null,null,null,null,null,null,null,null,"#GSR7",null,null,null,{"$f":"IF(G116=\"\",\"\",G116)","v":"A3"},null,"-",null,{"$f":"IF(G117=\"\",\"\",G117)","v":"A4"},null,0,"-",0,"","","","",""]
[null,null,null,null,null,null,null,null,null,null,null,null,null,null,null,null,null,"#GSR8",null,null,null,{"$f":"IF(G114=\"\",\"\",G114)","v":"A1"},null,"-",null,{"$f":"IF(G115=\"\",\"\",G115)","v":"A2"},null,0,"-",0,"","","","",""]
[]
[]
[null,{"$f":"N_Group_7","v":"Group of 7"},null,null,null,null,null,null,null,null,null,null,null,null,null,null,null,null,null,null,null,null,null,null,null,null,null,null,null,null,null,null,null,null,null,null,null,null,{"$f":"B131","v":"Group of 7"}]
[]
[null,{"$f":"N_Tirage","v":"Draw"},"Cla.","Cla1","Part","Cla2",{"$f":"N_Joueurs","v":"Players"},{"$f":"N_RankPoints","v":"Rk Pt."},{"$f":"N_Diff_Part","v":"Part-Diff"},{"$f":"N_Pts","v":"Pts"},{"$f":"N_J","v":"Pld"},{"$f":"N_G","v":"W"},{"$f":"N_N","v":"D"},{"$f":"N_P","v":"L"},{"$f":"N_BP","v":"F"},{"$f":"N_BC","v":"A"},{"$f":"N_Diff.","v":"SO"},null,{"$f":"N_Heure","v":"Time"},{"$f":"N_Table","v":"Table"},{"$f":"N_Arbitre","v":"Referee"},{"$f":"N_Matches","v":"Matches"},null,null,null,null,null,{"$f":"IF(MaxScore,N_MaxScore,\"\")","v":"Max Score"},null,null,{"$f":"N_G","v":"W"},{"$f":"N_N","v":"D"},{"$f":"N_N","v":"D"},{"$f":"N_P","v":"L"},"CONCAT","Ref Group",{"$f":"IF(COUNTA(W134:W154)=0,\"\",\"OK\")","v":""},null,null,{"$f":"N_Cla.","v":"Rk"},{"$f":"N_Joueurs","v":"Players"},{"$f":"N_Pts","v":"Pts"},{"$f":"N_J","v":"Pld"},{"$f":"N_G","v":"W"},{"$f":"N_N","v":"D"},{"$f":"N_P","v":"L"},{"$f":"N_BP","v":"F"},{"$f":"N_BC","v":"A"},{"$f":"N_Diff.","v":"SO"},{"$f":"N_Matches","v":"Matches"}]
[null,1,{"$f":"IF(AK133=\"\",\"\",RANK(F134,F134:F140)*1000+ROW())","v":""},{"$f":"IF(L134=\"\",\"\",CritClassInd1_Points*J134+CritClassInd1_Matches*L134+CritClassInd1_Attaque*O134+CritClassInd1_DiffButs*Q134)","v":""},{"$f":"IF(L134=\"\",\"\",Nb_Diff_Part(D134,D134:D140,G134,G134:G140,AI134:AI154)*CritClassInd_DiffPart+Nb_Goal_Part(D134,D134:D140,G134,G134:G140,V134:Z154)*CritClassInd_GoalPart+Nb_Score_Part(D134,D134:D140,G134,G134:G140,V134:Z154)*CritClassInd_ScorePart)","v":""},{"$f":"IF(L134=\"\",\"\",D134+E134+CritClassInd2_Points*J134+CritClassInd2_Matches*L134+CritClassInd2_Attaque*O134+CritClassInd2_DiffButs*Q134+CritClassInd_Ranking*H134+I134)","v":""},"A1",{"$f":"GMFTRANKINGPOINTS(G134,Particular_Category)","v":0},null,{"$f":"IF(AK133=\"\",\"\",(L134*Points_Victoire)+M134*Points_Null)","v":""},{"$f":"IF(L134=\"\",\"\",SUM(L134:N134))","v":""},{"$f":"IF(AK133=\"\",\"\",COUNTIF(AE134:AE154,G134))","v":""},{"$f":"IF(AK133=\"\",\"\",COUNTIF(AF134:AG154,G134))","v":""},{"$f":"IF(AK133=\"\",\"\",COUNTIF(AH134:AH154,G134))","v":""},{"$f":"IF(AK133=\"\",\"\",SUMIF(V134:V154,G134,AB134:AB154)+SUMIF(Z134:Z154,G134,AD134:AD154))","v":""},{"$f":"IF(AK133=\"\",\"\",SUMIF(V134:V154,G134,AD134:AD154)+SUMIF(Z134:Z154,G134,AB134:AB154))","v":""},{"$f":"IF(AK133=\"\",\"\",O134-P134)","v":""},"#G1",null,null,null,{"$f":"IF(G134=\"\",\"\",G134)","v":"A1"},null,"-",null,{"$f":"IF(G136=\"\",\"\",G136)","v":"A3"},null,{"$f":"IF(MaxScore,MaxGoals(W134,Y134,MaxGoalsValue),IF(W134=\"\",\"\",W134))","v":0},{"$f":"IF(MaxScore,\"-\",IF(W134=\"\",\"\",\"-\"))","v":"-"},{"$f":"IF(MaxScore,MaxGoals(Y134,W134,MaxGoalsValue),IF(Y134=\"\",\"\",Y134))","v":0},{"$f":"IF(W134=\"\",\"\",IF(W134>Y134,V134,IF(W134=Y134,\"\",Z134)))","v":""},{"$f":"IF(W134=\"\",\"\",IF(W134=Y134,V134,\"\"))","v":""},{"$f":"IF(W134=\"\",\"\",IF(W134=Y134,Z134,\"\"))","v":""},{"$f":"IF(W134=\"\",\"\",IF(W134<Y134,V134,IF(W134=Y134,\"\",Z134)))","v":""},{"$f":"CONCATENATE(AE134,AH134)","v":""},null,{"$f":"IF(AK133=\"\",\"\",SMALL(C134:C140,1))","v":""},null,null,{"$f":"IF(AK133=\"\",\"\",INT(AK134/1000))","v":""},{"$f":"IF(AK133=\"\",IF(HidePlayerFormulas,\"\",\"(\"&G134&\")\"),VLOOKUP(AK134,C134:Q140,5,FALSE))","v":""},{"$f":"VLOOKUP(AK134,C134:Q140,8,FALSE)","v":""},{"$f":"VLOOKUP(AK134,C134:Q140,9,FALSE)","v":""},{"$f":"VLOOKUP(AK134,C134:Q140,10,FALSE)","v":""},{"$f":"VLOOKUP(AK134,C134:Q140,11,FALSE)","v":""},{"$f":"VLOOKUP(AK134,C134:Q140,12,FALSE)","v":""},{"$f":"VLOOKUP(AK134,C134:Q140,13,FALSE)","v":""},{"$f":"VLOOKUP(AK134,C134:Q140,14,FALSE)","v":""},{"$f":"VLOOKUP(AK134,C134:Q140,15,FALSE)","v":""},{"$f":"IF(W134=\"\",\"\",IF(AO134=V134,W134,IF(AO134=Z134,Y134,\"\")))","v":""},{"$f":"IF(W135=\"\",\"\",IF(AO134=V135,W135,IF(AO134=Z135,Y135,\"\")))","v":""},{"$f":"IF(W136=\"\",\"\",IF(AO134=V136,W136,IF(AO134=Z136,Y136,\"\")))","v":""},{"$f":"IF(W137=\"\",\"\",IF(AO134=V137,W137,IF(AO134=Z137,Y137,\"\")))","v":""},{"$f":"IF(W138=\"\",\"\",IF(AO134=V138,W138,IF(AO134=Z138,Y138,\"\")))","v":""},{"$f":"IF(W139=\"\",\"\",IF(AO134=V139,W139,IF(AO134=Z139,Y139,\"\")))","v":""},{"$f":"IF(W140=\"\",\"\",IF(AO134=V140,W140,IF(AO134=Z140,Y140,\"\")))","v":""},{"$f":"IF(W141=\"\",\"\",IF(AO134=V141,W141,IF(AO134=Z141,Y141,\"\")))","v":""},{"$f":"IF(W142=\"\",\"\",IF(AO134=V142,W142,IF(AO134=Z142,Y142,\"\")))","v":""},{"$f":"IF(W143=\"\",\"\",IF(AO134=V143,W143,IF(AO134=Z143,Y143,\"\")))","v":""},{"$f":"IF(W145=\"\",\"\",IF(AO134=V145,W145,IF(AO134=Z145,Y145,\"\")))","v":""},{"$f":"IF(W144=\"\",\"\",IF(AO134=V144,W144,IF(AO134=Z144,Y144,\"\")))","v":""},{"$f":"IF(W146=\"\",\"\",IF(AO134=V146,W146,IF(AO134=Z146,Y146,\"\")))","v":""},{"$f":"IF(W147=\"\",\"\",IF(AO134=V147,W147,IF(AO134=Z147,Y147,\"\")))","v":""},{"$f":"IF(W148=\"\",\"\",IF(AO134=V148,W148,IF(AO134=Z148,Y148,\"\")))","v":""},{"$f":"IF(W149=\"\",\"\",IF(AO134=V149,W149,IF(AO134=Z149,Y149,\"\")))","v":""},{"$f":"IF(W150=\"\",\"\",IF(AO134=V150,W150,IF(AO134=Z150,Y150,\"\")))","v":""},{"$f":"IF(W151=\"\",\"\",IF(AO134=V151,W151,IF(AO134=Z151,Y151,\"\")))","v":""},{"$f":"IF(W152=\"\",\"\",IF(AO134=V152,W152,IF(AO134=Z152,Y152,\"\")))","v":""},{"$f":"IF(W153=\"\",\"\",IF(AO134=V153,W153,IF(AO134=Z153,Y153,\"\")))","v":""},{"$f":"IF(W154=\"\",\"\",IF(AO134=V154,W154,IF(AO134=Z154,Y154,\"\")))","v":""},null,null,null,null,null,null,null,{"$f":"IF(G134=\"[---WithDraw---]\",FALSE,IF(COUNTIF(PlayerNamesWithinGroups,G134)>1,TRUE,FALSE))","v":true},{"$f":"AND(LEFT($AO134,1) = \"(\", RIGHT($AO134,1) =\")\")","v":false},{"$f":"IF(OR($AN134=$AN133,$AN134=$AN135),TRUE,FALSE)","v":true}]
[null,2,{"$f":"IF(AK133=\"\",\"\",RANK(F135,F134:F140)*1000+ROW())","v":""},"",{"$f":"IF(L135=\"\",\"\",Nb_Diff_Part(D135,D134:D140,G135,G134:G140,AI134:AI154)*CritClassInd_DiffPart+Nb_Goal_Part(D135,D134:D140,G135,G134:G140,V134:Z154)*CritClassInd_GoalPart+Nb_Score_Part(D135,D134:D140,G135,G134:G140,V134:Z154)*CritClassInd_ScorePart)","v":""},"","A2",0,null,{"$f":"IF(AK133=\"\",\"\",(L135*Points_Victoire)+M135*Points_Null)","v":""},"",{"$f":"IF(AK133=\"\",\"\",COUNTIF(AE134:AE154,G135))","v":""},{"$f":"IF(AK133=\"\",\"\",COUNTIF(AF134:AG154,G135))","v":""},{"$f":"IF(AK133=\"\",\"\",COUNTIF(AH134:AH154,G135))","v":""},{"$f":"IF(AK133=\"\",\"\",SUMIF(V134:V154,G135,AB134:AB154)+SUMIF(Z134:Z154,G135,AD134:AD154))","v":""},{"$f":"IF(AK133=\"\",\"\",SUMIF(V134:V154,G135,AD134:AD154)+SUMIF(Z134:Z154,G135,AB134:AB154))","v":""},{"$f":"IF(AK133=\"\",\"\",O135-P135)","v":""},"#G1",null,null,null,{"$f":"IF(G137=\"\",\"\",G137)","v":"A4"},null,"-",null,{"$f":"IF(G140=\"\",\"\",G140)","v":"A7"},null,0,"-",0,{"$f":"IF(W135=\"\",\"\",IF(W135>Y135,V135,IF(W135=Y135,\"\",Z135)))","v":""},{"$f":"IF(W135=\"\",\"\",IF(W135=Y135,V135,\"\"))","v":""},{"$f":"IF(W135=\"\",\"\",IF(W135=Y135,Z135,\"\"))","v":""},{"$f":"IF(W135=\"\",\"\",IF(W135<Y135,V135,IF(W135=Y135,\"\",Z135)))","v":""},{"$f":"CONCATENATE(AE135,AH135)","v":""},null,{"$f":"IF(AK133=\"\",\"\",SMALL(C134:C140,2))","v":""},null,null,{"$f":"IF(AK133=\"\",\"\",INT(AK135/1000))","v":""},{"$f":"IF(AK133=\"\",IF(HidePlayerFormulas,\"\",\"(\"&G135&\")\"),VLOOKUP(AK135,C134:Q140,5,FALSE))","v":""},{"$f":"VLOOKUP(AK135,C134:Q140,8,FALSE)","v":""},{"$f":"VLOOKUP(AK135,C134:Q140,9,FALSE)","v":""},{"$f":"VLOOKUP(AK135,C134:Q140,10,FALSE)","v":""},{"$f":"VLOOKUP(AK135,C134:Q140,11,FALSE)","v":""},{"$f":"VLOOKUP(AK135,C134:Q140,12,FALSE)","v":""},{"$f":"VLOOKUP(AK135,C134:Q140,13,FALSE)","v":""},{"$f":"VLOOKUP(AK135,C134:Q140,14,FALSE)","v":""},{"$f":"VLOOKUP(AK135,C134:Q140,15,FALSE)","v":""},{"$f":"IF(W134=\"\",\"\",IF(AO135=V134,W134,IF(AO135=Z134,Y134,\"\")))","v":""},{"$f":"IF(W135=\"\",\"\",IF(AO135=V135,W135,IF(AO135=Z135,Y135,\"\")))","v":""},{"$f":"IF(W136=\"\",\"\",IF(AO135=V136,W136,IF(AO135=Z136,Y136,\"\")))","v":""},{"$f":"IF(W137=\"\",\"\",IF(AO135=V137,W137,IF(AO135=Z137,Y137,\"\")))","v":""},{"$f":"IF(W138=\"\",\"\",IF(AO135=V138,W138,IF(AO135=Z138,Y138,\"\")))","v":""},{"$f":"IF(W139=\"\",\"\",IF(AO135=V139,W139,IF(AO135=Z139,Y139,\"\")))","v":""},{"$f":"IF(W140=\"\",\"\",IF(AO135=V140,W140,IF(AO135=Z140,Y140,\"\")))","v":""},{"$f":"IF(W141=\"\",\"\",IF(AO135=V141,W141,IF(AO135=Z141,Y141,\"\")))","v":""},{"$f":"IF(W142=\"\",\"\",IF(AO135=V142,W142,IF(AO135=Z142,Y142,\"\")))","v":""},{"$f":"IF(W143=\"\",\"\",IF(AO135=V143,W143,IF(AO135=Z143,Y143,\"\")))","v":""},{"$f":"IF(W145=\"\",\"\",IF(AO135=V145,W145,IF(AO135=Z145,Y145,\"\")))","v":""},{"$f":"IF(W144=\"\",\"\",IF(AO135=V144,W144,IF(AO135=Z144,Y144,\"\")))","v":""},{"$f":"IF(W146=\"\",\"\",IF(AO135=V146,W146,IF(AO135=Z146,Y146,\"\")))","v":""},{"$f":"IF(W147=\"\",\"\",IF(AO135=V147,W147,IF(AO135=Z147,Y147,\"\")))","v":""},{"$f":"IF(W148=\"\",\"\",IF(AO135=V148,W148,IF(AO135=Z148,Y148,\"\")))","v":""},{"$f":"IF(W149=\"\",\"\",IF(AO135=V149,W149,IF(AO135=Z149,Y149,\"\")))","v":""},{"$f":"IF(W150=\"\",\"\",IF(AO135=V150,W150,IF(AO135=Z150,Y150,\"\")))","v":""},{"$f":"IF(W151=\"\",\"\",IF(AO135=V151,W151,IF(AO135=Z151,Y151,\"\")))","v":""},{"$f":"IF(W152=\"\",\"\",IF(AO135=V152,W152,IF(AO135=Z152,Y152,\"\")))","v":""},{"$f":"IF(W153=\"\",\"\",IF(AO135=V153,W153,IF(AO135=Z153,Y153,\"\")))","v":""},{"$f":"IF(W154=\"\",\"\",IF(AO135=V154,W154,IF(AO135=Z154,Y154,\"\")))","v":""},null,null,null,null,null,null,null,true,false,true]
[null,3,{"$f":"IF(AK133=\"\",\"\",RANK(F136,F134:F140)*1000+ROW())","v":""},"",{"$f":"IF(L136=\"\",\"\",Nb_Diff_Part(D136,D134:D140,G136,G134:G140,AI134:AI154)*CritClassInd_DiffPart+Nb_Goal_Part(D136,D134:D140,G136,G134:G140,V134:Z154)*CritClassInd_GoalPart+Nb_Score_Part(D136,D134:D140,G136,G134:G140,V134:Z154)*CritClassInd_ScorePart)","v":""},"","A3",0,null,{"$f":"IF(AK133=\"\",\"\",(L136*Points_Victoire)+M136*Points_Null)","v":""},"",{"$f":"IF(AK133=\"\",\"\",COUNTIF(AE134:AE154,G136))","v":""},{"$f":"IF(AK133=\"\",\"\",COUNTIF(AF134:AG154,G136))","v":""},{"$f":"IF(AK133=\"\",\"\",COUNTIF(AH134:AH154,G136))","v":""},{"$f":"IF(AK133=\"\",\"\",SUMIF(V134:V154,G136,AB134:AB154)+SUMIF(Z134:Z154,G136,AD134:AD154))","v":""},{"$f":"IF(AK133=\"\",\"\",SUMIF(V134:V154,G136,AD134:AD154)+SUMIF(Z134:Z154,G136,AB134:AB154))","v":""},{"$f":"IF(AK133=\"\",\"\",O136-P136)","v":""},"#G1",null,null,null,{"$f":"IF(G138=\"\",\"\",G138)","v":"A5"},null,"-",null,{"$f":"IF(G139=\"\",\"\",G139)","v":"A6"},null,0,"-",0,{"$f":"IF(W136=\"\",\"\",IF(W136>Y136,V136,IF(W136=Y136,\"\",Z136)))","v":""},{"$f":"IF(W136=\"\",\"\",IF(W136=Y136,V136,\"\"))","v":""},{"$f":"IF(W136=\"\",\"\",IF(W136=Y136,Z136,\"\"))","v":""},{"$f":"IF(W136=\"\",\"\",IF(W136<Y136,V136,IF(W136=Y136,\"\",Z136)))","v":""},{"$f":"CONCATENATE(AE136,AH136)","v":""},null,{"$f":"IF(AK133=\"\",\"\",SMALL(C134:C140,3))","v":""},null,null,{"$f":"IF(AK133=\"\",\"\",INT(AK136/1000))","v":""},{"$f":"IF(AK133=\"\",IF(HidePlayerFormulas,\"\",\"(\"&G136&\")\"),VLOOKUP(AK136,C134:Q140,5,FALSE))","v":""},{"$f":"VLOOKUP(AK136,C134:Q140,8,FALSE)","v":""},{"$f":"VLOOKUP(AK136,C134:Q140,9,FALSE)","v":""},{"$f":"VLOOKUP(AK136,C134:Q140,10,FALSE)","v":""},{"$f":"VLOOKUP(AK136,C134:Q140,11,FALSE)","v":""},{"$f":"VLOOKUP(AK136,C134:Q140,12,FALSE)","v":""},{"$f":"VLOOKUP(AK136,C134:Q140,13,FALSE)","v":""},{"$f":"VLOOKUP(AK136,C134:Q140,14,FALSE)","v":""},{"$f":"VLOOKUP(AK136,C134:Q140,15,FALSE)","v":""},{"$f":"IF(W134=\"\",\"\",IF(AO136=V134,W134,IF(AO136=Z134,Y134,\"\")))","v":""},{"$f":"IF(W135=\"\",\"\",IF(AO136=V135,W135,IF(AO136=Z135,Y135,\"\")))","v":""},{"$f":"IF(W136=\"\",\"\",IF(AO136=V136,W136,IF(AO136=Z136,Y136,\"\")))","v":""},{"$f":"IF(W137=\"\",\"\",IF(AO136=V137,W137,IF(AO136=Z137,Y137,\"\")))","v":""},{"$f":"IF(W138=\"\",\"\",IF(AO136=V138,W138,IF(AO136=Z138,Y138,\"\")))","v":""},{"$f":"IF(W139=\"\",\"\",IF(AO136=V139,W139,IF(AO136=Z139,Y139,\"\")))","v":""},{"$f":"IF(W140=\"\",\"\",IF(AO136=V140,W140,IF(AO136=Z140,Y140,\"\")))","v":""},{"$f":"IF(W141=\"\",\"\",IF(AO136=V141,W141,IF(AO136=Z141,Y141,\"\")))","v":""},{"$f":"IF(W142=\"\",\"\",IF(AO136=V142,W142,IF(AO136=Z142,Y142,\"\")))","v":""},{"$f":"IF(W143=\"\",\"\",IF(AO136=V143,W143,IF(AO136=Z143,Y143,\"\")))","v":""},{"$f":"IF(W145=\"\",\"\",IF(AO136=V145,W145,IF(AO136=Z145,Y145,\"\")))","v":""},{"$f":"IF(W144=\"\",\"\",IF(AO136=V144,W144,IF(AO136=Z144,Y144,\"\")))","v":""},{"$f":"IF(W146=\"\",\"\",IF(AO136=V146,W146,IF(AO136=Z146,Y146,\"\")))","v":""},{"$f":"IF(W147=\"\",\"\",IF(AO136=V147,W147,IF(AO136=Z147,Y147,\"\")))","v":""},{"$f":"IF(W148=\"\",\"\",IF(AO136=V148,W148,IF(AO136=Z148,Y148,\"\")))","v":""},{"$f":"IF(W149=\"\",\"\",IF(AO136=V149,W149,IF(AO136=Z149,Y149,\"\")))","v":""},{"$f":"IF(W150=\"\",\"\",IF(AO136=V150,W150,IF(AO136=Z150,Y150,\"\")))","v":""},{"$f":"IF(W151=\"\",\"\",IF(AO136=V151,W151,IF(AO136=Z151,Y151,\"\")))","v":""},{"$f":"IF(W152=\"\",\"\",IF(AO136=V152,W152,IF(AO136=Z152,Y152,\"\")))","v":""},{"$f":"IF(W153=\"\",\"\",IF(AO136=V153,W153,IF(AO136=Z153,Y153,\"\")))","v":""},{"$f":"IF(W154=\"\",\"\",IF(AO136=V154,W154,IF(AO136=Z154,Y154,\"\")))","v":""},null,null,null,null,null,null,null,true,false,true]
[null,4,{"$f":"IF(AK133=\"\",\"\",RANK(F137,F134:F140)*1000+ROW())","v":""},"",{"$f":"IF(L137=\"\",\"\",Nb_Diff_Part(D137,D134:D140,G137,G134:G140,AI134:AI154)*CritClassInd_DiffPart+Nb_Goal_Part(D137,D134:D140,G137,G134:G140,V134:Z154)*CritClassInd_GoalPart+Nb_Score_Part(D137,D134:D140,G137,G134:G140,V134:Z154)*CritClassInd_ScorePart)","v":""},"","A4",0,null,{"$f":"IF(AK133=\"\",\"\",(L137*Points_Victoire)+M137*Points_Null)","v":""},"",{"$f":"IF(AK133=\"\",\"\",COUNTIF(AE134:AE154,G137))","v":""},{"$f":"IF(AK133=\"\",\"\",COUNTIF(AF134:AG154,G137))","v":""},{"$f":"IF(AK133=\"\",\"\",COUNTIF(AH134:AH154,G137))","v":""},{"$f":"IF(AK133=\"\",\"\",SUMIF(V134:V154,G137,AB134:AB154)+SUMIF(Z134:Z154,G137,AD134:AD154))","v":""},{"$f":"IF(AK133=\"\",\"\",SUMIF(V134:V154,G137,AD134:AD154)+SUMIF(Z134:Z154,G137,AB134:AB154))","v":""},{"$f":"IF(AK133=\"\",\"\",O137-P137)","v":""},"#G2",null,null,null,{"$f":"IF(G134=\"\",\"\",G134)","v":"A1"},null,"-",null,{"$f":"IF(G138=\"\",\"\",G138)","v":"A5"},null,0,"-",0,{"$f":"IF(W137=\"\",\"\",IF(W137>Y137,V137,IF(W137=Y137,\"\",Z137)))","v":""},{"$f":"IF(W137=\"\",\"\",IF(W137=Y137,V137,\"\"))","v":""},{"$f":"IF(W137=\"\",\"\",IF(W137=Y137,Z137,\"\"))","v":""},{"$f":"IF(W137=\"\",\"\",IF(W137<Y137,V137,IF(W137=Y137,\"\",Z137)))","v":""},{"$f":"CONCATENATE(AE137,AH137)","v":""},null,{"$f":"IF(AK133=\"\",\"\",SMALL(C134:C140,4))","v":""},null,null,{"$f":"IF(AK133=\"\",\"\",INT(AK137/1000))","v":""},{"$f":"IF(AK133=\"\",IF(HidePlayerFormulas,\"\",\"(\"&G137&\")\"),VLOOKUP(AK137,C134:Q140,5,FALSE))","v":""},{"$f":"VLOOKUP(AK137,C134:Q140,8,FALSE)","v":""},{"$f":"VLOOKUP(AK137,C134:Q140,9,FALSE)","v":""},{"$f":"VLOOKUP(AK137,C134:Q140,10,FALSE)","v":""},{"$f":"VLOOKUP(AK137,C134:Q140,11,FALSE)","v":""},{"$f":"VLOOKUP(AK137,C134:Q140,12,FALSE)","v":""},{"$f":"VLOOKUP(AK137,C134:Q140,13,FALSE)","v":""},{"$f":"VLOOKUP(AK137,C134:Q140,14,FALSE)","v":""},{"$f":"VLOOKUP(AK137,C134:Q140,15,FALSE)","v":""},{"$f":"IF(W134=\"\",\"\",IF(AO137=V134,W134,IF(AO137=Z134,Y134,\"\")))","v":""},{"$f":"IF(W135=\"\",\"\",IF(AO137=V135,W135,IF(AO137=Z135,Y135,\"\")))","v":""},{"$f":"IF(W136=\"\",\"\",IF(AO137=V136,W136,IF(AO137=Z136,Y136,\"\")))","v":""},{"$f":"IF(W137=\"\",\"\",IF(AO137=V137,W137,IF(AO137=Z137,Y137,\"\")))","v":""},{"$f":"IF(W138=\"\",\"\",IF(AO137=V138,W138,IF(AO137=Z138,Y138,\"\")))","v":""},{"$f":"IF(W139=\"\",\"\",IF(AO137=V139,W139,IF(AO137=Z139,Y139,\"\")))","v":""},{"$f":"IF(W140=\"\",\"\",IF(AO137=V140,W140,IF(AO137=Z140,Y140,\"\")))","v":""},{"$f":"IF(W141=\"\",\"\",IF(AO137=V141,W141,IF(AO137=Z141,Y141,\"\")))","v":""},{"$f":"IF(W142=\"\",\"\",IF(AO137=V142,W142,IF(AO137=Z142,Y142,\"\")))","v":""},{"$f":"IF(W143=\"\",\"\",IF(AO137=V143,W143,IF(AO137=Z143,Y143,\"\")))","v":""},{"$f":"IF(W145=\"\",\"\",IF(AO137=V145,W145,IF(AO137=Z145,Y145,\"\")))","v":""},{"$f":"IF(W144=\"\",\"\",IF(AO137=V144,W144,IF(AO137=Z144,Y144,\"\")))","v":""},{"$f":"IF(W146=\"\",\"\",IF(AO137=V146,W146,IF(AO137=Z146,Y146,\"\")))","v":""},{"$f":"IF(W147=\"\",\"\",IF(AO137=V147,W147,IF(AO137=Z147,Y147,\"\")))","v":""},{"$f":"IF(W148=\"\",\"\",IF(AO137=V148,W148,IF(AO137=Z148,Y148,\"\")))","v":""},{"$f":"IF(W149=\"\",\"\",IF(AO137=V149,W149,IF(AO137=Z149,Y149,\"\")))","v":""},{"$f":"IF(W150=\"\",\"\",IF(AO137=V150,W150,IF(AO137=Z150,Y150,\"\")))","v":""},{"$f":"IF(W151=\"\",\"\",IF(AO137=V151,W151,IF(AO137=Z151,Y151,\"\")))","v":""},{"$f":"IF(W152=\"\",\"\",IF(AO137=V152,W152,IF(AO137=Z152,Y152,\"\")))","v":""},{"$f":"IF(W153=\"\",\"\",IF(AO137=V153,W153,IF(AO137=Z153,Y153,\"\")))","v":""},{"$f":"IF(W154=\"\",\"\",IF(AO137=V154,W154,IF(AO137=Z154,Y154,\"\")))","v":""},null,null,null,null,null,null,null,true,false,true]
[null,5,{"$f":"IF(AK133=\"\",\"\",RANK(F138,F134:F140)*1000+ROW())","v":""},"",{"$f":"IF(L138=\"\",\"\",Nb_Diff_Part(D138,D134:D140,G138,G134:G140,AI134:AI154)*CritClassInd_DiffPart+Nb_Goal_Part(D138,D134:D140,G138,G134:G140,V134:Z154)*CritClassInd_GoalPart+Nb_Score_Part(D138,D134:D140,G138,G134:G140,V134:Z154)*CritClassInd_ScorePart)","v":""},"","A5",0,null,{"$f":"IF(AK133=\"\",\"\",(L138*Points_Victoire)+M138*Points_Null)","v":""},"",{"$f":"IF(AK133=\"\",\"\",COUNTIF(AE134:AE154,G138))","v":""},{"$f":"IF(AK133=\"\",\"\",COUNTIF(AF134:AG154,G138))","v":""},{"$f":"IF(AK133=\"\",\"\",COUNTIF(AH134:AH154,G138))","v":""},{"$f":"IF(AK133=\"\",\"\",SUMIF(V134:V154,G138,AB134:AB154)+SUMIF(Z134:Z154,G138,AD134:AD154))","v":""},{"$f":"IF(AK133=\"\",\"\",SUMIF(V134:V154,G138,AD134:AD154)+SUMIF(Z134:Z154,G138,AB134:AB154))","v":""},{"$f":"IF(AK133=\"\",\"\",O138-P138)","v":""},"#G2",null,null,null,{"$f":"IF(G135=\"\",\"\",G135)","v":"A2"},null,"-",null,{"$f":"IF(G137=\"\",\"\",G137)","v":"A4"},null,0,"-",0,"","","","","",null,{"$f":"IF(AK133=\"\",\"\",SMALL(C134:C140,5))","v":""},null,null,{"$f":"IF(AK133=\"\",\"\",INT(AK138/1000))","v":""},{"$f":"IF(AK133=\"\",IF(HidePlayerFormulas,\"\",\"(\"&G138&\")\"),VLOOKUP(AK138,C134:Q140,5,FALSE))","v":""},{"$f":"VLOOKUP(AK138,C134:Q140,8,FALSE)","v":""},{"$f":"VLOOKUP(AK138,C134:Q140,9,FALSE)","v":""},{"$f":"VLOOKUP(AK138,C134:Q140,10,FALSE)","v":""},{"$f":"VLOOKUP(AK138,C134:Q140,11,FALSE)","v":""},{"$f":"VLOOKUP(AK138,C134:Q140,12,FALSE)","v":""},{"$f":"VLOOKUP(AK138,C134:Q140,13,FALSE)","v":""},{"$f":"VLOOKUP(AK138,C134:Q140,14,FALSE)","v":""},{"$f":"VLOOKUP(AK138,C134:Q140,15,FALSE)","v":""},{"$f":"IF(W134=\"\",\"\",IF(AO138=V134,W134,IF(AO138=Z134,Y134,\"\")))","v":""},{"$f":"IF(W135=\"\",\"\",IF(AO138=V135,W135,IF(AO138=Z135,Y135,\"\")))","v":""},{"$f":"IF(W136=\"\",\"\",IF(AO138=V136,W136,IF(AO138=Z136,Y136,\"\")))","v":""},{"$f":"IF(W137=\"\",\"\",IF(AO138=V137,W137,IF(AO138=Z137,Y137,\"\")))","v":""},{"$f":"IF(W138=\"\",\"\",IF(AO138=V138,W138,IF(AO138=Z138,Y138,\"\")))","v":""},{"$f":"IF(W139=\"\",\"\",IF(AO138=V139,W139,IF(AO138=Z139,Y139,\"\")))","v":""},{"$f":"IF(W140=\"\",\"\",IF(AO138=V140,W140,IF(AO138=Z140,Y140,\"\")))","v":""},{"$f":"IF(W141=\"\",\"\",IF(AO138=V141,W141,IF(AO138=Z141,Y141,\"\")))","v":""},{"$f":"IF(W142=\"\",\"\",IF(AO138=V142,W142,IF(AO138=Z142,Y142,\"\")))","v":""},{"$f":"IF(W143=\"\",\"\",IF(AO138=V143,W143,IF(AO138=Z143,Y143,\"\")))","v":""},{"$f":"IF(W145=\"\",\"\",IF(AO138=V145,W145,IF(AO138=Z145,Y145,\"\")))","v":""},{"$f":"IF(W144=\"\",\"\",IF(AO138=V144,W144,IF(AO138=Z144,Y144,\"\")))","v":""},{"$f":"IF(W146=\"\",\"\",IF(AO138=V146,W146,IF(AO138=Z146,Y146,\"\")))","v":""},{"$f":"IF(W147=\"\",\"\",IF(AO138=V147,W147,IF(AO138=Z147,Y147,\"\")))","v":""},{"$f":"IF(W148=\"\",\"\",IF(AO138=V148,W148,IF(AO138=Z148,Y148,\"\")))","v":""},{"$f":"IF(W149=\"\",\"\",IF(AO138=V149,W149,IF(AO138=Z149,Y149,\"\")))","v":""},{"$f":"IF(W150=\"\",\"\",IF(AO138=V150,W150,IF(AO138=Z150,Y150,\"\")))","v":""},{"$f":"IF(W151=\"\",\"\",IF(AO138=V151,W151,IF(AO138=Z151,Y151,\"\")))","v":""},{"$f":"IF(W152=\"\",\"\",IF(AO138=V152,W152,IF(AO138=Z152,Y152,\"\")))","v":""},{"$f":"IF(W153=\"\",\"\",IF(AO138=V153,W153,IF(AO138=Z153,Y153,\"\")))","v":""},{"$f":"IF(W154=\"\",\"\",IF(AO138=V154,W154,IF(AO138=Z154,Y154,\"\")))","v":""},null,null,null,null,null,null,null,true,false,true]
[null,6,{"$f":"IF(AK133=\"\",\"\",RANK(F139,F134:F140)*1000+ROW())","v":""},"",{"$f":"IF(L139=\"\",\"\",Nb_Diff_Part(D139,D134:D140,G139,G134:G140,AI134:AI154)*CritClassInd_DiffPart+Nb_Goal_Part(D139,D134:D140,G139,G134:G140,V134:Z154)*CritClassInd_GoalPart+Nb_Score_Part(D139,D134:D140,G139,G134:G140,V134:Z154)*CritClassInd_ScorePart)","v":""},"","A6",0,null,{"$f":"IF(AK133=\"\",\"\",(L139*Points_Victoire)+M139*Points_Null)","v":""},"",{"$f":"IF(AK133=\"\",\"\",COUNTIF(AE134:AE154,G139))","v":""},{"$f":"IF(AK133=\"\",\"\",COUNTIF(AF134:AG154,G139))","v":""},{"$f":"IF(AK133=\"\",\"\",COUNTIF(AH134:AH154,G139))","v":""},{"$f":"IF(AK133=\"\",\"\",SUMIF(V134:V154,G139,AB134:AB154)+SUMIF(Z134:Z154,G139,AD134:AD154))","v":""},{"$f":"IF(AK133=\"\",\"\",SUMIF(V134:V154,G139,AD134:AD154)+SUMIF(Z134:Z154,G139,AB134:AB154))","v":""},{"$f":"IF(AK133=\"\",\"\",O139-P139)","v":""},"#G2",null,null,null,{"$f":"IF(G139=\"\",\"\",G139)","v":"A6"},null,"-",null,{"$f":"IF(G140=\"\",\"\",G140)","v":"A7"},null,0,"-",0,"","","","","",null,{"$f":"IF(AK133=\"\",\"\",SMALL(C134:C140,6))","v":""},null,null,{"$f":"IF(AK133=\"\",\"\",INT(AK139/1000))","v":""},{"$f":"IF(AK133=\"\",IF(HidePlayerFormulas,\"\",\"(\"&G139&\")\"),VLOOKUP(AK139,C134:Q140,5,FALSE))","v":""},{"$f":"VLOOKUP(AK139,C134:Q140,8,FALSE)","v":""},{"$f":"VLOOKUP(AK139,C134:Q140,9,FALSE)","v":""},{"$f":"VLOOKUP(AK139,C134:Q140,10,FALSE)","v":""},{"$f":"VLOOKUP(AK139,C134:Q140,11,FALSE)","v":""},{"$f":"VLOOKUP(AK139,C134:Q140,12,FALSE)","v":""},{"$f":"VLOOKUP(AK139,C134:Q140,13,FALSE)","v":""},{"$f":"VLOOKUP(AK139,C134:Q140,14,FALSE)","v":""},{"$f":"VLOOKUP(AK139,C134:Q140,15,FALSE)","v":""},{"$f":"IF(W134=\"\",\"\",IF(AO139=V134,W134,IF(AO139=Z134,Y134,\"\")))","v":""},{"$f":"IF(W135=\"\",\"\",IF(AO139=V135,W135,IF(AO139=Z135,Y135,\"\")))","v":""},{"$f":"IF(W136=\"\",\"\",IF(AO139=V136,W136,IF(AO139=Z136,Y136,\"\")))","v":""},{"$f":"IF(W137=\"\",\"\",IF(AO139=V137,W137,IF(AO139=Z137,Y137,\"\")))","v":""},{"$f":"IF(W138=\"\",\"\",IF(AO139=V138,W138,IF(AO139=Z138,Y138,\"\")))","v":""},{"$f":"IF(W139=\"\",\"\",IF(AO139=V139,W139,IF(AO139=Z139,Y139,\"\")))","v":""},{"$f":"IF(W140=\"\",\"\",IF(AO139=V140,W140,IF(AO139=Z140,Y140,\"\")))","v":""},{"$f":"IF(W141=\"\",\"\",IF(AO139=V141,W141,IF(AO139=Z141,Y141,\"\")))","v":""},{"$f":"IF(W142=\"\",\"\",IF(AO139=V142,W142,IF(AO139=Z142,Y142,\"\")))","v":""},{"$f":"IF(W143=\"\",\"\",IF(AO139=V143,W143,IF(AO139=Z143,Y143,\"\")))","v":""},{"$f":"IF(W145=\"\",\"\",IF(AO139=V145,W145,IF(AO139=Z145,Y145,\"\")))","v":""},{"$f":"IF(W144=\"\",\"\",IF(AO139=V144,W144,IF(AO139=Z144,Y144,\"\")))","v":""},{"$f":"IF(W146=\"\",\"\",IF(AO139=V146,W146,IF(AO139=Z146,Y146,\"\")))","v":""},{"$f":"IF(W147=\"\",\"\",IF(AO139=V147,W147,IF(AO139=Z147,Y147,\"\")))","v":""},{"$f":"IF(W148=\"\",\"\",IF(AO139=V148,W148,IF(AO139=Z148,Y148,\"\")))","v":""},{"$f":"IF(W149=\"\",\"\",IF(AO139=V149,W149,IF(AO139=Z149,Y149,\"\")))","v":""},{"$f":"IF(W150=\"\",\"\",IF(AO139=V150,W150,IF(AO139=Z150,Y150,\"\")))","v":""},{"$f":"IF(W151=\"\",\"\",IF(AO139=V151,W151,IF(AO139=Z151,Y151,\"\")))","v":""},{"$f":"IF(W152=\"\",\"\",IF(AO139=V152,W152,IF(AO139=Z152,Y152,\"\")))","v":""},{"$f":"IF(W153=\"\",\"\",IF(AO139=V153,W153,IF(AO139=Z153,Y153,\"\")))","v":""},{"$f":"IF(W154=\"\",\"\",IF(AO139=V154,W154,IF(AO139=Z154,Y154,\"\")))","v":""},null,null,null,null,null,null,null,true,false,true]
[null,7,{"$f":"IF(AK133=\"\",\"\",RANK(F140,F134:F140)*1000+ROW())","v":""},"",{"$f":"IF(L140=\"\",\"\",Nb_Diff_Part(D140,D134:D140,G140,G134:G140,AI134:AI154)*CritClassInd_DiffPart+Nb_Goal_Part(D140,D134:D140,G140,G134:G140,V134:Z154)*CritClassInd_GoalPart+Nb_Score_Part(D140,D134:D140,G140,G134:G140,V134:Z154)*CritClassInd_ScorePart)","v":""},"","A7",0,null,{"$f":"IF(AK133=\"\",\"\",(L140*Points_Victoire)+M140*Points_Null)","v":""},"",{"$f":"IF(AK133=\"\",\"\",COUNTIF(AE134:AE154,G140))","v":""},{"$f":"IF(AK133=\"\",\"\",COUNTIF(AF134:AG154,G140))","v":""},{"$f":"IF(AK133=\"\",\"\",COUNTIF(AH134:AH154,G140))","v":""},{"$f":"IF(AK133=\"\",\"\",SUMIF(V134:V154,G140,AB134:AB154)+SUMIF(Z134:Z154,G140,AD134:AD154))","v":""},{"$f":"IF(AK133=\"\",\"\",SUMIF(V134:V154,G140,AD134:AD154)+SUMIF(Z134:Z154,G140,AB134:AB154))","v":""},{"$f":"IF(AK133=\"\",\"\",O140-P140)","v":""},"#G3",null,null,null,{"$f":"IF(G135=\"\",\"\",G135)","v":"A2"},null,"-",null,{"$f":"IF(G139=\"\",\"\",G139)","v":"A6"},null,0,"-",0,"","","","","",null,{"$f":"IF(AK133=\"\",\"\",SMALL(C134:C140,7))","v":""},null,null,{"$f":"IF(AK133=\"\",\"\",INT(AK140/1000))","v":""},{"$f":"IF(AK133=\"\",IF(HidePlayerFormulas,\"\",\"(\"&G140&\")\"),VLOOKUP(AK140,C134:Q140,5,FALSE))","v":""},{"$f":"VLOOKUP(AK140,C134:Q140,8,FALSE)","v":""},{"$f":"VLOOKUP(AK140,C134:Q140,9,FALSE)","v":""},{"$f":"VLOOKUP(AK140,C134:Q140,10,FALSE)","v":""},{"$f":"VLOOKUP(AK140,C134:Q140,11,FALSE)","v":""},{"$f":"VLOOKUP(AK140,C134:Q140,12,FALSE)","v":""},{"$f":"VLOOKUP(AK140,C134:Q140,13,FALSE)","v":""},{"$f":"VLOOKUP(AK140,C134:Q140,14,FALSE)","v":""},{"$f":"VLOOKUP(AK140,C134:Q140,15,FALSE)","v":""},{"$f":"IF(W134=\"\",\"\",IF(AO140=V134,W134,IF(AO140=Z134,Y134,\"\")))","v":""},{"$f":"IF(W135=\"\",\"\",IF(AO140=V135,W135,IF(AO140=Z135,Y135,\"\")))","v":""},{"$f":"IF(W136=\"\",\"\",IF(AO140=V136,W136,IF(AO140=Z136,Y136,\"\")))","v":""},{"$f":"IF(W137=\"\",\"\",IF(AO140=V137,W137,IF(AO140=Z137,Y137,\"\")))","v":""},{"$f":"IF(W138=\"\",\"\",IF(AO140=V138,W138,IF(AO140=Z138,Y138,\"\")))","v":""},{"$f":"IF(W139=\"\",\"\",IF(AO140=V139,W139,IF(AO140=Z139,Y139,\"\")))","v":""},{"$f":"IF(W140=\"\",\"\",IF(AO140=V140,W140,IF(AO140=Z140,Y140,\"\")))","v":""},{"$f":"IF(W141=\"\",\"\",IF(AO140=V141,W141,IF(AO140=Z141,Y141,\"\")))","v":""},{"$f":"IF(W142=\"\",\"\",IF(AO140=V142,W142,IF(AO140=Z142,Y142,\"\")))","v":""},{"$f":"IF(W143=\"\",\"\",IF(AO140=V143,W143,IF(AO140=Z143,Y143,\"\")))","v":""},{"$f":"IF(W145=\"\",\"\",IF(AO140=V145,W145,IF(AO140=Z145,Y145,\"\")))","v":""},{"$f":"IF(W144=\"\",\"\",IF(AO140=V144,W144,IF(AO140=Z144,Y144,\"\")))","v":""},{"$f":"IF(W146=\"\",\"\",IF(AO140=V146,W146,IF(AO140=Z146,Y146,\"\")))","v":""},{"$f":"IF(W147=\"\",\"\",IF(AO140=V147,W147,IF(AO140=Z147,Y147,\"\")))","v":""},{"$f":"IF(W148=\"\",\"\",IF(AO140=V148,W148,IF(AO140=Z148,Y148,\"\")))","v":""},{"$f":"IF(W149=\"\",\"\",IF(AO140=V149,W149,IF(AO140=Z149,Y149,\"\")))","v":""},{"$f":"IF(W150=\"\",\"\",IF(AO140=V150,W150,IF(AO140=Z150,Y150,\"\")))","v":""},{"$f":"IF(W151=\"\",\"\",IF(AO140=V151,W151,IF(AO140=Z151,Y151,\"\")))","v":""},{"$f":"IF(W152=\"\",\"\",IF(AO140=V152,W152,IF(AO140=Z152,Y152,\"\")))","v":""},{"$f":"IF(W153=\"\",\"\",IF(AO140=V153,W153,IF(AO140=Z153,Y153,\"\")))","v":""},{"$f":"IF(W154=\"\",\"\",IF(AO140=V154,W154,IF(AO140=Z154,Y154,\"\")))","v":""},null,null,null,null,null,null,null,true,false,true]
[null,null,null,null,null,null,null,null,null,null,null,null,null,null,null,null,null,"#G3",null,null,null,{"$f":"IF(G136=\"\",\"\",G136)","v":"A3"},null,"-",null,{"$f":"IF(G138=\"\",\"\",G138)","v":"A5"},null,0,"-",0,"","","","",""]
[null,null,null,null,null,null,null,null,null,null,null,null,null,null,null,null,null,"#G3",null,null,null,{"$f":"IF(G140=\"\",\"\",G140)","v":"A7"},null,"-",null,{"$f":"IF(G134=\"\",\"\",G134)","v":"A1"},null,0,"-",0,"","","","",""]
[null,null,null,null,null,null,null,null,null,null,null,null,null,null,null,null,null,"#G4",null,null,null,{"$f":"IF(G134=\"\",\"\",G134)","v":"A1"},null,"-",null,{"$f":"IF(G135=\"\",\"\",G135)","v":"A2"},null,0,"-",0,"","","","",""]
[null,null,null,null,null,null,null,null,null,null,null,null,null,null,null,null,null,"#G4",null,null,null,{"$f":"IF(G136=\"\",\"\",G136)","v":"A3"},null,"-",null,{"$f":"IF(G140=\"\",\"\",G140)","v":"A7"},null,{"$f":"IF(MaxScore,MaxGoals(W144,Y144,MaxGoalsValue),IF(W144=\"\",\"\",W144))","v":0},{"$f":"IF(MaxScore,\"-\",IF(W144=\"\",\"\",\"-\"))","v":"-"},{"$f":"IF(MaxScore,MaxGoals(Y144,W144,MaxGoalsValue),IF(Y144=\"\",\"\",Y144))","v":0},{"$f":"IF(W144=\"\",\"\",IF(W144>Y144,V144,IF(W144=Y144,\"\",Z144)))","v":""},{"$f":"IF(W144=\"\",\"\",IF(W144=Y144,V144,\"\"))","v":""},{"$f":"IF(W144=\"\",\"\",IF(W144=Y144,Z144,\"\"))","v":""},{"$f":"IF(W144=\"\",\"\",IF(W144<Y144,V144,IF(W144=Y144,\"\",Z144)))","v":""},{"$f":"CONCATENATE(AE144,AH144)","v":""}]
[null,null,null,null,null,null,null,null,null,null,null,null,null,null,null,null,null,"#G4",null,null,null,{"$f":"IF(G137=\"\",\"\",G137)","v":"A4"},null,"-",null,{"$f":"IF(G139=\"\",\"\",G139)","v":"A6"},null,{"$f":"IF(MaxScore,MaxGoals(W145,Y145,MaxGoalsValue),IF(W145=\"\",\"\",W145))","v":0},{"$f":"IF(MaxScore,\"-\",IF(W145=\"\",\"\",\"-\"))","v":"-"},{"$f":"IF(MaxScore,MaxGoals(Y145,W145,MaxGoalsValue),IF(Y145=\"\",\"\",Y145))","v":0},{"$f":"IF(W145=\"\",\"\",IF(W145>Y145,V145,IF(W145=Y145,\"\",Z145)))","v":""},{"$f":"IF(W145=\"\",\"\",IF(W145=Y145,V145,\"\"))","v":""},{"$f":"IF(W145=\"\",\"\",IF(W145=Y145,Z145,\"\"))","v":""},{"$f":"IF(W145=\"\",\"\",IF(W145<Y145,V145,IF(W145=Y145,\"\",Z145)))","v":""},{"$f":"CONCATENATE(AE145,AH145)","v":""}]
[null,null,null,null,null,null,null,null,null,null,null,null,null,null,null,null,null,"#G5",null,null,null,{"$f":"IF(G135=\"\",\"\",G135)","v":"A2"},null,"-",null,{"$f":"IF(G136=\"\",\"\",G136)","v":"A3"},null,0,"-",0,"","","","",""]
[null,null,null,null,null,null,null,null,null,null,null,null,null,null,null,null,null,"#G5",null,null,null,{"$f":"IF(G137=\"\",\"\",G137)","v":"A4"},null,"-",null,{"$f":"IF(G134=\"\",\"\",G134)","v":"A1"},null,0,"-",0,"","","","",""]
[null,null,null,null,null,null,null,null,null,null,null,null,null,null,null,null,null,"#G5",null,null,null,{"$f":"IF(G140=\"\",\"\",G140)","v":"A7"},null,"-",null,{"$f":"IF(G138=\"\",\"\",G138)","v":"A5"},null,0,"-",0,"","","","",""]
[null,null,null,null,null,null,null,null,null,null,null,null,null,null,null,null,null,"#G6",null,null,null,{"$f":"IF(G136=\"\",\"\",G136)","v":"A3"},null,"-",null,{"$f":"IF(G137=\"\",\"\",G137)","v":"A4"},null,0,"-",0,"","","","",""]
[null,null,null,null,null,null,null,null,null,null,null,null,null,null,null,null,null,"#G6",null,null,null,{"$f":"IF(G138=\"\",\"\",G138)","v":"A5"},null,"-",null,{"$f":"IF(G135=\"\",\"\",G135)","v":"A2"},null,0,"-",0,"","","","",""]
[null,null,null,null,null,null,null,null,null,null,null,null,null,null,null,null,null,"#G6",null,null,null,{"$f":"IF(G139=\"\",\"\",G139)","v":"A6"},null,"-",null,{"$f":"IF(G134=\"\",\"\",G134)","v":"A1"},null,0,"-",0,"","","","",""]
[null,null,null,null,null,null,null,null,null,null,null,null,null,null,null,null,null,"#G7",null,null,null,{"$f":"IF(G138=\"\",\"\",G138)","v":"A5"},null,"-",null,{"$f":"IF(G137=\"\",\"\",G137)","v":"A4"},null,0,"-",0,"","","","",""]
[null,null,null,null,null,null,null,null,null,null,null,null,null,null,null,null,null,"#G7",null,null,null,{"$f":"IF(G139=\"\",\"\",G139)","v":"A6"},null,"-",null,{"$f":"IF(G136=\"\",\"\",G136)","v":"A3"},null,0,"-",0,"","","","",""]
[null,null,null,null,null,null,null,null,null,null,null,null,null,null,null,null,null,"#G7",null,null,null,{"$f":"IF(G140=\"\",\"\",G140)","v":"A7"},null,"-",null,{"$f":"IF(G135=\"\",\"\",G135)","v":"A2"},null,0,"-",0,"","","","",""]
[]
[]
[null,{"$f":"N_Group_8","v":"Group of 8"},null,null,null,null,null,null,null,null,null,null,null,null,null,null,null,null,null,null,null,null,null,null,null,null,null,null,null,null,null,null,null,null,null,null,null,null,{"$f":"B157","v":"Group of 8"}]
[]
[null,{"$f":"N_Tirage","v":"Draw"},"Cla.","Cla1","Part","Cla2",{"$f":"N_Joueurs","v":"Players"},{"$f":"N_RankPoints","v":"Rk Pt."},{"$f":"N_Diff_Part","v":"Part-Diff"},{"$f":"N_Pts","v":"Pts"},{"$f":"N_J","v":"Pld"},{"$f":"N_G","v":"W"},{"$f":"N_N","v":"D"},{"$f":"N_P","v":"L"},{"$f":"N_BP","v":"F"},{"$f":"N_BC","v":"A"},{"$f":"N_Diff.","v":"SO"},null,{"$f":"N_Heure","v":"Time"},{"$f":"N_Table","v":"Table"},{"$f":"N_Arbitre","v":"Referee"},{"$f":"N_Matches","v":"Matches"},null,null,null,null,null,{"$f":"IF(MaxScore,N_MaxScore,\"\")","v":"Max Score"},null,null,{"$f":"N_G","v":"W"},{"$f":"N_N","v":"D"},{"$f":"N_N","v":"D"},{"$f":"N_P","v":"L"},"CONCAT","Ref Group",{"$f":"IF(COUNTA(W160:W187)=0,\"\",\"OK\")","v":""},null,null,{"$f":"N_Cla.","v":"Rk"},{"$f":"N_Joueurs","v":"Players"},{"$f":"N_Pts","v":"Pts"},{"$f":"N_J","v":"Pld"},{"$f":"N_G","v":"W"},{"$f":"N_N","v":"D"},{"$f":"N_P","v":"L"},{"$f":"N_BP","v":"F"},{"$f":"N_BC","v":"A"},{"$f":"N_Diff.","v":"SO"},{"$f":"N_Matches","v":"Matches"}]
[null,1,{"$f":"IF(AK159=\"\",\"\",RANK(F160,F160:F167)*1000+ROW())","v":""},{"$f":"IF(L160=\"\",\"\",CritClassInd1_Points*J160+CritClassInd1_Matches*L160+CritClassInd1_Attaque*O160+CritClassInd1_DiffButs*Q160)","v":""},{"$f":"IF(L160=\"\",\"\",Nb_Diff_Part(D160,D160:D167,G160,G160:G167,AI160:AI187)*CritClassInd_DiffPart+Nb_Goal_Part(D160,D160:D167,G160,G160:G167,V160:Z187)*CritClassInd_GoalPart+Nb_Score_Part(D160,D160:D167,G160,G160:G167,V160:Z187)*CritClassInd_ScorePart)","v":""},{"$f":"IF(L160=\"\",\"\",D160+E160+CritClassInd2_Points*J160+CritClassInd2_Matches*L160+CritClassInd2_Attaque*O160+CritClassInd2_DiffButs*Q160+CritClassInd_Ranking*H160+I160)","v":""},"A1",{"$f":"GMFTRANKINGPOINTS(G160,Particular_Category)","v":0},null,{"$f":"IF(AK159=\"\",\"\",(L160*Points_Victoire)+M160*Points_Null)","v":""},{"$f":"IF(L160=\"\",\"\",SUM(L160:N160))","v":""},{"$f":"IF(AK159=\"\",\"\",COUNTIF(AE160:AE187,G160))","v":""},{"$f":"IF(AK159=\"\",\"\",COUNTIF(AF160:AG187,G160))","v":""},{"$f":"IF(AK159=\"\",\"\",COUNTIF(AH160:AH187,G160))","v":""},{"$f":"IF(AK159=\"\",\"\",SUMIF(V160:V187,G160,AB160:AB187)+SUMIF(Z160:Z187,G160,AD160:AD187))","v":""},{"$f":"IF(AK159=\"\",\"\",SUMIF(V160:V187,G160,AD160:AD187)+SUMIF(Z160:Z187,G160,AB160:AB187))","v":""},{"$f":"IF(AK159=\"\",\"\",O160-P160)","v":""},"#G1",null,null,null,{"$f":"IF(G160=\"\",\"\",G160)","v":"A1"},null,"-",null,{"$f":"IF(G162=\"\",\"\",G162)","v":"A3"},null,{"$f":"IF(MaxScore,MaxGoals(W160,Y160,MaxGoalsValue),IF(W160=\"\",\"\",W160))","v":0},{"$f":"IF(MaxScore,\"-\",IF(W160=\"\",\"\",\"-\"))","v":"-"},{"$f":"IF(MaxScore,MaxGoals(Y160,W160,MaxGoalsValue),IF(Y160=\"\",\"\",Y160))","v":0},{"$f":"IF(W160=\"\",\"\",IF(W160>Y160,V160,IF(W160=Y160,\"\",Z160)))","v":""},{"$f":"IF(W160=\"\",\"\",IF(W160=Y160,V160,\"\"))","v":""},{"$f":"IF(W160=\"\",\"\",IF(W160=Y160,Z160,\"\"))","v":""},{"$f":"IF(W160=\"\",\"\",IF(W160<Y160,V160,IF(W160=Y160,\"\",Z160)))","v":""},{"$f":"CONCATENATE(AE160,AH160)","v":""},null,{"$f":"IF(AK159=\"\",\"\",SMALL(C160:C167,1))","v":""},null,null,{"$f":"IF(AK159=\"\",\"\",INT(AK160/1000))","v":""},{"$f":"IF(AK159=\"\",IF(HidePlayerFormulas,\"\",\"(\"&G160&\")\"),VLOOKUP(AK160,C160:Q167,5,FALSE))","v":""},{"$f":"VLOOKUP(AK160,C160:Q167,8,FALSE)","v":""},{"$f":"VLOOKUP(AK160,C160:Q167,9,FALSE)","v":""},{"$f":"VLOOKUP(AK160,C160:Q167,10,FALSE)","v":""},{"$f":"VLOOKUP(AK160,C160:Q167,11,FALSE)","v":""},{"$f":"VLOOKUP(AK160,C160:Q167,12,FALSE)","v":""},{"$f":"VLOOKUP(AK160,C160:Q167,13,FALSE)","v":""},{"$f":"VLOOKUP(AK160,C160:Q167,14,FALSE)","v":""},{"$f":"VLOOKUP(AK160,C160:Q167,15,FALSE)","v":""},{"$f":"IF(W184=\"\",\"\",IF(AO160=V184,W184,IF(AO160=Z184,Y184,\"\")))","v":""},{"$f":"IF(W185=\"\",\"\",IF(AO160=V185,W185,IF(AO160=Z185,Y185,\"\")))","v":""},{"$f":"IF(W186=\"\",\"\",IF(AO160=V186,W186,IF(AO160=Z186,Y186,\"\")))","v":""},{"$f":"IF(W187=\"\",\"\",IF(AO160=V187,W187,IF(AO160=Z187,Y187,\"\")))","v":""},{"$f":"IF(W180=\"\",\"\",IF(AO160=V180,W180,IF(AO160=Z180,Y180,\"\")))","v":""},{"$f":"IF(W181=\"\",\"\",IF(AO160=V181,W181,IF(AO160=Z181,Y181,\"\")))","v":""},{"$f":"IF(W182=\"\",\"\",IF(AO160=V182,W182,IF(AO160=Z182,Y182,\"\")))","v":""},{"$f":"IF(W183=\"\",\"\",IF(AO160=V183,W183,IF(AO160=Z183,Y183,\"\")))","v":""},{"$f":"IF(W176=\"\",\"\",IF(AO160=V176,W176,IF(AO160=Z176,Y176,\"\")))","v":""},{"$f":"IF(W177=\"\",\"\",IF(AO160=V177,W177,IF(AO160=Z177,Y177,\"\")))","v":""},{"$f":"IF(W178=\"\",\"\",IF(AO160=V178,W178,IF(AO160=Z178,Y178,\"\")))","v":""},{"$f":"IF(W179=\"\",\"\",IF(AO160=V179,W179,IF(AO160=Z179,Y179,\"\")))","v":""},{"$f":"IF(W172=\"\",\"\",IF(AO160=V172,W172,IF(AO160=Z172,Y172,\"\")))","v":""},{"$f":"IF(W173=\"\",\"\",IF(AO160=V173,W173,IF(AO160=Z173,Y173,\"\")))","v":""},{"$f":"IF(W174=\"\",\"\",IF(AO160=V174,W174,IF(AO160=Z174,Y174,\"\")))","v":""},{"$f":"IF(W175=\"\",\"\",IF(AO160=V175,W175,IF(AO160=Z175,Y175,\"\")))","v":""},{"$f":"IF(W168=\"\",\"\",IF(AO160=V168,W168,IF(AO160=Z168,Y168,\"\")))","v":""},{"$f":"IF(W169=\"\",\"\",IF(AO160=V169,W169,IF(AO160=Z169,Y169,\"\")))","v":""},{"$f":"IF(W170=\"\",\"\",IF(AO160=V170,W170,IF(AO160=Z170,Y170,\"\")))","v":""},{"$f":"IF(W171=\"\",\"\",IF(AO160=V171,W171,IF(AO160=Z171,Y171,\"\")))","v":""},{"$f":"IF(W164=\"\",\"\",IF(AO160=V164,W164,IF(AO160=Z164,Y164,\"\")))","v":""},{"$f":"IF(W165=\"\",\"\",IF(AO160=V165,W165,IF(AO160=Z165,Y165,\"\")))","v":""},{"$f":"IF(W166=\"\",\"\",IF(AO160=V166,W166,IF(AO160=Z166,Y166,\"\")))","v":""},{"$f":"IF(W167=\"\",\"\",IF(AO160=V167,W167,IF(AO160=Z167,Y167,\"\")))","v":""},{"$f":"IF(W160=\"\",\"\",IF(AO160=V160,W160,IF(AO160=Z160,Y160,\"\")))","v":""},{"$f":"IF(W161=\"\",\"\",IF(AO160=V161,W161,IF(AO160=Z161,Y161,\"\")))","v":""},{"$f":"IF(W162=\"\",\"\",IF(AO160=V162,W162,IF(AO160=Z162,Y162,\"\")))","v":""},{"$f":"IF(W163=\"\",\"\",IF(AO160=V163,W163,IF(AO160=Z163,Y163,\"\")))","v":""},{"$f":"IF(G160=\"[---WithDraw---]\",FALSE,IF(COUNTIF(PlayerNamesWithinGroups,G160)>1,TRUE,FALSE))","v":true},{"$f":"AND(LEFT($AO160,1) = \"(\", RIGHT($AO160,1) =\")\")","v":false},{"$f":"IF(OR($AN160=$AN159,$AN160=$AN161),TRUE,FALSE)","v":true}]
[null,2,{"$f":"IF(AK159=\"\",\"\",RANK(F161,F160:F167)*1000+ROW())","v":""},"",{"$f":"IF(L161=\"\",\"\",Nb_Diff_Part(D161,D160:D167,G161,G160:G167,AI160:AI187)*CritClassInd_DiffPart+Nb_Goal_Part(D161,D160:D167,G161,G160:G167,V160:Z187)*CritClassInd_GoalPart+Nb_Score_Part(D161,D160:D167,G161,G160:G167,V160:Z187)*CritClassInd_ScorePart)","v":""},"","A2",0,null,{"$f":"IF(AK159=\"\",\"\",(L161*Points_Victoire)+M161*Points_Null)","v":""},"",{"$f":"IF(AK159=\"\",\"\",COUNTIF(AE160:AE187,G161))","v":""},{"$f":"IF(AK159=\"\",\"\",COUNTIF(AF160:AG187,G161))","v":""},{"$f":"IF(AK159=\"\",\"\",COUNTIF(AH160:AH187,G161))","v":""},{"$f":"IF(AK159=\"\",\"\",SUMIF(V160:V187,G161,AB160:AB187)+SUMIF(Z160:Z187,G161,AD160:AD187))","v":""},{"$f":"IF(AK159=\"\",\"\",SUMIF(V160:V187,G161,AD160:AD187)+SUMIF(Z160:Z187,G161,AB160:AB187))","v":""},{"$f":"IF(AK159=\"\",\"\",O161-P161)","v":""},"#G1",null,null,null,{"$f":"IF(G161=\"\",\"\",G161)","v":"A2"},null,"-",null,{"$f":"IF(G167=\"\",\"\",G167)","v":"A8"},null,0,"-",0,"","","","","",null,{"$f":"IF(AK159=\"\",\"\",SMALL(C160:C167,2))","v":""},null,null,{"$f":"IF(AK159=\"\",\"\",INT(AK161/1000))","v":""},{"$f":"IF(AK159=\"\",IF(HidePlayerFormulas,\"\",\"(\"&G161&\")\"),VLOOKUP(AK161,C160:Q167,5,FALSE))","v":""},{"$f":"VLOOKUP(AK161,C160:Q167,8,FALSE)","v":""},{"$f":"VLOOKUP(AK161,C160:Q167,9,FALSE)","v":""},{"$f":"VLOOKUP(AK161,C160:Q167,10,FALSE)","v":""},{"$f":"VLOOKUP(AK161,C160:Q167,11,FALSE)","v":""},{"$f":"VLOOKUP(AK161,C160:Q167,12,FALSE)","v":""},{"$f":"VLOOKUP(AK161,C160:Q167,13,FALSE)","v":""},{"$f":"VLOOKUP(AK161,C160:Q167,14,FALSE)","v":""},{"$f":"VLOOKUP(AK161,C160:Q167,15,FALSE)","v":""},{"$f":"IF(W184=\"\",\"\",IF(AO161=V184,W184,IF(AO161=Z184,Y184,\"\")))","v":""},{"$f":"IF(W185=\"\",\"\",IF(AO161=V185,W185,IF(AO161=Z185,Y185,\"\")))","v":""},{"$f":"IF(W186=\"\",\"\",IF(AO161=V186,W186,IF(AO161=Z186,Y186,\"\")))","v":""},{"$f":"IF(W187=\"\",\"\",IF(AO161=V187,W187,IF(AO161=Z187,Y187,\"\")))","v":""},{"$f":"IF(W180=\"\",\"\",IF(AO161=V180,W180,IF(AO161=Z180,Y180,\"\")))","v":""},{"$f":"IF(W181=\"\",\"\",IF(AO161=V181,W181,IF(AO161=Z181,Y181,\"\")))","v":""},{"$f":"IF(W182=\"\",\"\",IF(AO161=V182,W182,IF(AO161=Z182,Y182,\"\")))","v":""},{"$f":"IF(W183=\"\",\"\",IF(AO161=V183,W183,IF(AO161=Z183,Y183,\"\")))","v":""},{"$f":"IF(W176=\"\",\"\",IF(AO161=V176,W176,IF(AO161=Z176,Y176,\"\")))","v":""},{"$f":"IF(W177=\"\",\"\",IF(AO161=V177,W177,IF(AO161=Z177,Y177,\"\")))","v":""},{"$f":"IF(W178=\"\",\"\",IF(AO161=V178,W178,IF(AO161=Z178,Y178,\"\")))","v":""},{"$f":"IF(W179=\"\",\"\",IF(AO161=V179,W179,IF(AO161=Z179,Y179,\"\")))","v":""},{"$f":"IF(W172=\"\",\"\",IF(AO161=V172,W172,IF(AO161=Z172,Y172,\"\")))","v":""},{"$f":"IF(W173=\"\",\"\",IF(AO161=V173,W173,IF(AO161=Z173,Y173,\"\")))","v":""},{"$f":"IF(W174=\"\",\"\",IF(AO161=V174,W174,IF(AO161=Z174,Y174,\"\")))","v":""},{"$f":"IF(W175=\"\",\"\",IF(AO161=V175,W175,IF(AO161=Z175,Y175,\"\")))","v":""},{"$f":"IF(W168=\"\",\"\",IF(AO161=V168,W168,IF(AO161=Z168,Y168,\"\")))","v":""},{"$f":"IF(W169=\"\",\"\",IF(AO161=V169,W169,IF(AO161=Z169,Y169,\"\")))","v":""},{"$f":"IF(W170=\"\",\"\",IF(AO161=V170,W170,IF(AO161=Z170,Y170,\"\")))","v":""},{"$f":"IF(W171=\"\",\"\",IF(AO161=V171,W171,IF(AO161=Z171,Y171,\"\")))","v":""},{"$f":"IF(W164=\"\",\"\",IF(AO161=V164,W164,IF(AO161=Z164,Y164,\"\")))","v":""},{"$f":"IF(W165=\"\",\"\",IF(AO161=V165,W165,IF(AO161=Z165,Y165,\"\")))","v":""},{"$f":"IF(W166=\"\",\"\",IF(AO161=V166,W166,IF(AO161=Z166,Y166,\"\")))","v":""},{"$f":"IF(W167=\"\",\"\",IF(AO161=V167,W167,IF(AO161=Z167,Y167,\"\")))","v":""},{"$f":"IF(W160=\"\",\"\",IF(AO161=V160,W160,IF(AO161=Z160,Y160,\"\")))","v":""},{"$f":"IF(W161=\"\",\"\",IF(AO161=V161,W161,IF(AO161=Z161,Y161,\"\")))","v":""},{"$f":"IF(W162=\"\",\"\",IF(AO161=V162,W162,IF(AO161=Z162,Y162,\"\")))","v":""},{"$f":"IF(W163=\"\",\"\",IF(AO161=V163,W163,IF(AO161=Z163,Y163,\"\")))","v":""},true,false,true]
[null,3,{"$f":"IF(AK159=\"\",\"\",RANK(F162,F160:F167)*1000+ROW())","v":""},"",{"$f":"IF(L162=\"\",\"\",Nb_Diff_Part(D162,D160:D167,G162,G160:G167,AI160:AI187)*CritClassInd_DiffPart+Nb_Goal_Part(D162,D160:D167,G162,G160:G167,V160:Z187)*CritClassInd_GoalPart+Nb_Score_Part(D162,D160:D167,G162,G160:G167,V160:Z187)*CritClassInd_ScorePart)","v":""},"","A3",0,null,{"$f":"IF(AK159=\"\",\"\",(L162*Points_Victoire)+M162*Points_Null)","v":""},"",{"$f":"IF(AK159=\"\",\"\",COUNTIF(AE160:AE187,G162))","v":""},{"$f":"IF(AK159=\"\",\"\",COUNTIF(AF160:AG187,G162))","v":""},{"$f":"IF(AK159=\"\",\"\",COUNTIF(AH160:AH187,G162))","v":""},{"$f":"IF(AK159=\"\",\"\",SUMIF(V160:V187,G162,AB160:AB187)+SUMIF(Z160:Z187,G162,AD160:AD187))","v":""},{"$f":"IF(AK159=\"\",\"\",SUMIF(V160:V187,G162,AD160:AD187)+SUMIF(Z160:Z187,G162,AB160:AB187))","v":""},{"$f":"IF(AK159=\"\",\"\",O162-P162)","v":""},"#G1",null,null,null,{"$f":"IF(G163=\"\",\"\",G163)","v":"A4"},null,"-",null,{"$f":"IF(G166=\"\",\"\",G166)","v":"A7"},null,0,"-",0,"","","","","",null,{"$f":"IF(AK159=\"\",\"\",SMALL(C160:C167,3))","v":""},null,null,{"$f":"IF(AK159=\"\",\"\",INT(AK162/1000))","v":""},{"$f":"IF(AK159=\"\",IF(HidePlayerFormulas,\"\",\"(\"&G162&\")\"),VLOOKUP(AK162,C160:Q167,5,FALSE))","v":""},{"$f":"VLOOKUP(AK162,C160:Q167,8,FALSE)","v":""},{"$f":"VLOOKUP(AK162,C160:Q167,9,FALSE)","v":""},{"$f":"VLOOKUP(AK162,C160:Q167,10,FALSE)","v":""},{"$f":"VLOOKUP(AK162,C160:Q167,11,FALSE)","v":""},{"$f":"VLOOKUP(AK162,C160:Q167,12,FALSE)","v":""},{"$f":"VLOOKUP(AK162,C160:Q167,13,FALSE)","v":""},{"$f":"VLOOKUP(AK162,C160:Q167,14,FALSE)","v":""},{"$f":"VLOOKUP(AK162,C160:Q167,15,FALSE)","v":""},{"$f":"IF(W184=\"\",\"\",IF(AO162=V184,W184,IF(AO162=Z184,Y184,\"\")))","v":""},{"$f":"IF(W185=\"\",\"\",IF(AO162=V185,W185,IF(AO162=Z185,Y185,\"\")))","v":""},{"$f":"IF(W186=\"\",\"\",IF(AO162=V186,W186,IF(AO162=Z186,Y186,\"\")))","v":""},{"$f":"IF(W187=\"\",\"\",IF(AO162=V187,W187,IF(AO162=Z187,Y187,\"\")))","v":""},{"$f":"IF(W180=\"\",\"\",IF(AO162=V180,W180,IF(AO162=Z180,Y180,\"\")))","v":""},{"$f":"IF(W181=\"\",\"\",IF(AO162=V181,W181,IF(AO162=Z181,Y181,\"\")))","v":""},{"$f":"IF(W182=\"\",\"\",IF(AO162=V182,W182,IF(AO162=Z182,Y182,\"\")))","v":""},{"$f":"IF(W183=\"\",\"\",IF(AO162=V183,W183,IF(AO162=Z183,Y183,\"\")))","v":""},{"$f":"IF(W176=\"\",\"\",IF(AO162=V176,W176,IF(AO162=Z176,Y176,\"\")))","v":""},{"$f":"IF(W177=\"\",\"\",IF(AO162=V177,W177,IF(AO162=Z177,Y177,\"\")))","v":""},{"$f":"IF(W178=\"\",\"\",IF(AO162=V178,W178,IF(AO162=Z178,Y178,\"\")))","v":""},{"$f":"IF(W179=\"\",\"\",IF(AO162=V179,W179,IF(AO162=Z179,Y179,\"\")))","v":""},{"$f":"IF(W172=\"\",\"\",IF(AO162=V172,W172,IF(AO162=Z172,Y172,\"\")))","v":""},{"$f":"IF(W173=\"\",\"\",IF(AO162=V173,W173,IF(AO162=Z173,Y173,\"\")))","v":""},{"$f":"IF(W174=\"\",\"\",IF(AO162=V174,W174,IF(AO162=Z174,Y174,\"\")))","v":""},{"$f":"IF(W175=\"\",\"\",IF(AO162=V175,W175,IF(AO162=Z175,Y175,\"\")))","v":""},{"$f":"IF(W168=\"\",\"\",IF(AO162=V168,W168,IF(AO162=Z168,Y168,\"\")))","v":""},{"$f":"IF(W169=\"\",\"\",IF(AO162=V169,W169,IF(AO162=Z169,Y169,\"\")))","v":""},{"$f":"IF(W170=\"\",\"\",IF(AO162=V170,W170,IF(AO162=Z170,Y170,\"\")))","v":""},{"$f":"IF(W171=\"\",\"\",IF(AO162=V171,W171,IF(AO162=Z171,Y171,\"\")))","v":""},{"$f":"IF(W164=\"\",\"\",IF(AO162=V164,W164,IF(AO162=Z164,Y164,\"\")))","v":""},{"$f":"IF(W165=\"\",\"\",IF(AO162=V165,W165,IF(AO162=Z165,Y165,\"\")))","v":""},{"$f":"IF(W166=\"\",\"\",IF(AO162=V166,W166,IF(AO162=Z166,Y166,\"\")))","v":""},{"$f":"IF(W167=\"\",\"\",IF(AO162=V167,W167,IF(AO162=Z167,Y167,\"\")))","v":""},{"$f":"IF(W160=\"\",\"\",IF(AO162=V160,W160,IF(AO162=Z160,Y160,\"\")))","v":""},{"$f":"IF(W161=\"\",\"\",IF(AO162=V161,W161,IF(AO162=Z161,Y161,\"\")))","v":""},{"$f":"IF(W162=\"\",\"\",IF(AO162=V162,W162,IF(AO162=Z162,Y162,\"\")))","v":""},{"$f":"IF(W163=\"\",\"\",IF(AO162=V163,W163,IF(AO162=Z163,Y163,\"\")))","v":""},true,false,true]
[null,4,{"$f":"IF(AK159=\"\",\"\",RANK(F163,F160:F167)*1000+ROW())","v":""},"",{"$f":"IF(L163=\"\",\"\",Nb_Diff_Part(D163,D160:D167,G163,G160:G167,AI160:AI187)*CritClassInd_DiffPart+Nb_Goal_Part(D163,D160:D167,G163,G160:G167,V160:Z187)*CritClassInd_GoalPart+Nb_Score_Part(D163,D160:D167,G163,G160:G167,V160:Z187)*CritClassInd_ScorePart)","v":""},"","A4",0,null,{"$f":"IF(AK159=\"\",\"\",(L163*Points_Victoire)+M163*Points_Null)","v":""},"",{"$f":"IF(AK159=\"\",\"\",COUNTIF(AE160:AE187,G163))","v":""},{"$f":"IF(AK159=\"\",\"\",COUNTIF(AF160:AG187,G163))","v":""},{"$f":"IF(AK159=\"\",\"\",COUNTIF(AH160:AH187,G163))","v":""},{"$f":"IF(AK159=\"\",\"\",SUMIF(V160:V187,G163,AB160:AB187)+SUMIF(Z160:Z187,G163,AD160:AD187))","v":""},{"$f":"IF(AK159=\"\",\"\",SUMIF(V160:V187,G163,AD160:AD187)+SUMIF(Z160:Z187,G163,AB160:AB187))","v":""},{"$f":"IF(AK159=\"\",\"\",O163-P163)","v":""},"#G1",null,null,null,{"$f":"IF(G164=\"\",\"\",G164)","v":"A5"},null,"-",null,{"$f":"IF(G165=\"\",\"\",G165)","v":"A6"},null,0,"-",0,"","","","","",null,{"$f":"IF(AK159=\"\",\"\",SMALL(C160:C167,4))","v":""},null,null,{"$f":"IF(AK159=\"\",\"\",INT(AK163/1000))","v":""},{"$f":"IF(AK159=\"\",IF(HidePlayerFormulas,\"\",\"(\"&G163&\")\"),VLOOKUP(AK163,C160:Q167,5,FALSE))","v":""},{"$f":"VLOOKUP(AK163,C160:Q167,8,FALSE)","v":""},{"$f":"VLOOKUP(AK163,C160:Q167,9,FALSE)","v":""},{"$f":"VLOOKUP(AK163,C160:Q167,10,FALSE)","v":""},{"$f":"VLOOKUP(AK163,C160:Q167,11,FALSE)","v":""},{"$f":"VLOOKUP(AK163,C160:Q167,12,FALSE)","v":""},{"$f":"VLOOKUP(AK163,C160:Q167,13,FALSE)","v":""},{"$f":"VLOOKUP(AK163,C160:Q167,14,FALSE)","v":""},{"$f":"VLOOKUP(AK163,C160:Q167,15,FALSE)","v":""},{"$f":"IF(W184=\"\",\"\",IF(AO163=V184,W184,IF(AO163=Z184,Y184,\"\")))","v":""},{"$f":"IF(W185=\"\",\"\",IF(AO163=V185,W185,IF(AO163=Z185,Y185,\"\")))","v":""},{"$f":"IF(W186=\"\",\"\",IF(AO163=V186,W186,IF(AO163=Z186,Y186,\"\")))","v":""},{"$f":"IF(W187=\"\",\"\",IF(AO163=V187,W187,IF(AO163=Z187,Y187,\"\")))","v":""},{"$f":"IF(W180=\"\",\"\",IF(AO163=V180,W180,IF(AO163=Z180,Y180,\"\")))","v":""},{"$f":"IF(W181=\"\",\"\",IF(AO163=V181,W181,IF(AO163=Z181,Y181,\"\")))","v":""},{"$f":"IF(W182=\"\",\"\",IF(AO163=V182,W182,IF(AO163=Z182,Y182,\"\")))","v":""},{"$f":"IF(W183=\"\",\"\",IF(AO163=V183,W183,IF(AO163=Z183,Y183,\"\")))","v":""},{"$f":"IF(W176=\"\",\"\",IF(AO163=V176,W176,IF(AO163=Z176,Y176,\"\")))","v":""},{"$f":"IF(W177=\"\",\"\",IF(AO163=V177,W177,IF(AO163=Z177,Y177,\"\")))","v":""},{"$f":"IF(W178=\"\",\"\",IF(AO163=V178,W178,IF(AO163=Z178,Y178,\"\")))","v":""},{"$f":"IF(W179=\"\",\"\",IF(AO163=V179,W179,IF(AO163=Z179,Y179,\"\")))","v":""},{"$f":"IF(W172=\"\",\"\",IF(AO163=V172,W172,IF(AO163=Z172,Y172,\"\")))","v":""},{"$f":"IF(W173=\"\",\"\",IF(AO163=V173,W173,IF(AO163=Z173,Y173,\"\")))","v":""},{"$f":"IF(W174=\"\",\"\",IF(AO163=V174,W174,IF(AO163=Z174,Y174,\"\")))","v":""},{"$f":"IF(W175=\"\",\"\",IF(AO163=V175,W175,IF(AO163=Z175,Y175,\"\")))","v":""},{"$f":"IF(W168=\"\",\"\",IF(AO163=V168,W168,IF(AO163=Z168,Y168,\"\")))","v":""},{"$f":"IF(W169=\"\",\"\",IF(AO163=V169,W169,IF(AO163=Z169,Y169,\"\")))","v":""},{"$f":"IF(W170=\"\",\"\",IF(AO163=V170,W170,IF(AO163=Z170,Y170,\"\")))","v":""},{"$f":"IF(W171=\"\",\"\",IF(AO163=V171,W171,IF(AO163=Z171,Y171,\"\")))","v":""},{"$f":"IF(W164=\"\",\"\",IF(AO163=V164,W164,IF(AO163=Z164,Y164,\"\")))","v":""},{"$f":"IF(W165=\"\",\"\",IF(AO163=V165,W165,IF(AO163=Z165,Y165,\"\")))","v":""},{"$f":"IF(W166=\"\",\"\",IF(AO163=V166,W166,IF(AO163=Z166,Y166,\"\")))","v":""},{"$f":"IF(W167=\"\",\"\",IF(AO163=V167,W167,IF(AO163=Z167,Y167,\"\")))","v":""},{"$f":"IF(W160=\"\",\"\",IF(AO163=V160,W160,IF(AO163=Z160,Y160,\"\")))","v":""},{"$f":"IF(W161=\"\",\"\",IF(AO163=V161,W161,IF(AO163=Z161,Y161,\"\")))","v":""},{"$f":"IF(W162=\"\",\"\",IF(AO163=V162,W162,IF(AO163=Z162,Y162,\"\")))","v":""},{"$f":"IF(W163=\"\",\"\",IF(AO163=V163,W163,IF(AO163=Z163,Y163,\"\")))","v":""},true,false,true]
[null,5,{"$f":"IF(AK159=\"\",\"\",RANK(F164,F160:F167)*1000+ROW())","v":""},"",{"$f":"IF(L164=\"\",\"\",Nb_Diff_Part(D164,D160:D167,G164,G160:G167,AI160:AI187)*CritClassInd_DiffPart+Nb_Goal_Part(D164,D160:D167,G164,G160:G167,V160:Z187)*CritClassInd_GoalPart+Nb_Score_Part(D164,D160:D167,G164,G160:G167,V160:Z187)*CritClassInd_ScorePart)","v":""},"","A5",0,null,{"$f":"IF(AK159=\"\",\"\",(L164*Points_Victoire)+M164*Points_Null)","v":""},"",{"$f":"IF(AK159=\"\",\"\",COUNTIF(AE160:AE187,G164))","v":""},{"$f":"IF(AK159=\"\",\"\",COUNTIF(AF160:AG187,G164))","v":""},{"$f":"IF(AK159=\"\",\"\",COUNTIF(AH160:AH187,G164))","v":""},{"$f":"IF(AK159=\"\",\"\",SUMIF(V160:V187,G164,AB160:AB187)+SUMIF(Z160:Z187,G164,AD160:AD187))","v":""},{"$f":"IF(AK159=\"\",\"\",SUMIF(V160:V187,G164,AD160:AD187)+SUMIF(Z160:Z187,G164,AB160:AB187))","v":""},{"$f":"IF(AK159=\"\",\"\",O164-P164)","v":""},"#G2",null,null,null,{"$f":"IF(G160=\"\",\"\",G160)","v":"A1"},null,"-",null,{"$f":"IF(G164=\"\",\"\",G164)","v":"A5"},null,0,"-",0,"","","","","",null,{"$f":"IF(AK159=\"\",\"\",SMALL(C160:C167,5))","v":""},null,null,{"$f":"IF(AK159=\"\",\"\",INT(AK164/1000))","v":""},{"$f":"IF(AK159=\"\",IF(HidePlayerFormulas,\"\",\"(\"&G164&\")\"),VLOOKUP(AK164,C160:Q167,5,FALSE))","v":""},{"$f":"VLOOKUP(AK164,C160:Q167,8,FALSE)","v":""},{"$f":"VLOOKUP(AK164,C160:Q167,9,FALSE)","v":""},{"$f":"VLOOKUP(AK164,C160:Q167,10,FALSE)","v":""},{"$f":"VLOOKUP(AK164,C160:Q167,11,FALSE)","v":""},{"$f":"VLOOKUP(AK164,C160:Q167,12,FALSE)","v":""},{"$f":"VLOOKUP(AK164,C160:Q167,13,FALSE)","v":""},{"$f":"VLOOKUP(AK164,C160:Q167,14,FALSE)","v":""},{"$f":"VLOOKUP(AK164,C160:Q167,15,FALSE)","v":""},{"$f":"IF(W184=\"\",\"\",IF(AO164=V184,W184,IF(AO164=Z184,Y184,\"\")))","v":""},{"$f":"IF(W185=\"\",\"\",IF(AO164=V185,W185,IF(AO164=Z185,Y185,\"\")))","v":""},{"$f":"IF(W186=\"\",\"\",IF(AO164=V186,W186,IF(AO164=Z186,Y186,\"\")))","v":""},{"$f":"IF(W187=\"\",\"\",IF(AO164=V187,W187,IF(AO164=Z187,Y187,\"\")))","v":""},{"$f":"IF(W180=\"\",\"\",IF(AO164=V180,W180,IF(AO164=Z180,Y180,\"\")))","v":""},{"$f":"IF(W181=\"\",\"\",IF(AO164=V181,W181,IF(AO164=Z181,Y181,\"\")))","v":""},{"$f":"IF(W182=\"\",\"\",IF(AO164=V182,W182,IF(AO164=Z182,Y182,\"\")))","v":""},{"$f":"IF(W183=\"\",\"\",IF(AO164=V183,W183,IF(AO164=Z183,Y183,\"\")))","v":""},{"$f":"IF(W176=\"\",\"\",IF(AO164=V176,W176,IF(AO164=Z176,Y176,\"\")))","v":""},{"$f":"IF(W177=\"\",\"\",IF(AO164=V177,W177,IF(AO164=Z177,Y177,\"\")))","v":""},{"$f":"IF(W178=\"\",\"\",IF(AO164=V178,W178,IF(AO164=Z178,Y178,\"\")))","v":""},{"$f":"IF(W179=\"\",\"\",IF(AO164=V179,W179,IF(AO164=Z179,Y179,\"\")))","v":""},{"$f":"IF(W172=\"\",\"\",IF(AO164=V172,W172,IF(AO164=Z172,Y172,\"\")))","v":""},{"$f":"IF(W173=\"\",\"\",IF(AO164=V173,W173,IF(AO164=Z173,Y173,\"\")))","v":""},{"$f":"IF(W174=\"\",\"\",IF(AO164=V174,W174,IF(AO164=Z174,Y174,\"\")))","v":""},{"$f":"IF(W175=\"\",\"\",IF(AO164=V175,W175,IF(AO164=Z175,Y175,\"\")))","v":""},{"$f":"IF(W168=\"\",\"\",IF(AO164=V168,W168,IF(AO164=Z168,Y168,\"\")))","v":""},{"$f":"IF(W169=\"\",\"\",IF(AO164=V169,W169,IF(AO164=Z169,Y169,\"\")))","v":""},{"$f":"IF(W170=\"\",\"\",IF(AO164=V170,W170,IF(AO164=Z170,Y170,\"\")))","v":""},{"$f":"IF(W171=\"\",\"\",IF(AO164=V171,W171,IF(AO164=Z171,Y171,\"\")))","v":""},{"$f":"IF(W164=\"\",\"\",IF(AO164=V164,W164,IF(AO164=Z164,Y164,\"\")))","v":""},{"$f":"IF(W165=\"\",\"\",IF(AO164=V165,W165,IF(AO164=Z165,Y165,\"\")))","v":""},{"$f":"IF(W166=\"\",\"\",IF(AO164=V166,W166,IF(AO164=Z166,Y166,\"\")))","v":""},{"$f":"IF(W167=\"\",\"\",IF(AO164=V167,W167,IF(AO164=Z167,Y167,\"\")))","v":""},{"$f":"IF(W160=\"\",\"\",IF(AO164=V160,W160,IF(AO164=Z160,Y160,\"\")))","v":""},{"$f":"IF(W161=\"\",\"\",IF(AO164=V161,W161,IF(AO164=Z161,Y161,\"\")))","v":""},{"$f":"IF(W162=\"\",\"\",IF(AO164=V162,W162,IF(AO164=Z162,Y162,\"\")))","v":""},{"$f":"IF(W163=\"\",\"\",IF(AO164=V163,W163,IF(AO164=Z163,Y163,\"\")))","v":""},true,false,true]
[null,6,{"$f":"IF(AK159=\"\",\"\",RANK(F165,F160:F167)*1000+ROW())","v":""},"",{"$f":"IF(L165=\"\",\"\",Nb_Diff_Part(D165,D160:D167,G165,G160:G167,AI160:AI187)*CritClassInd_DiffPart+Nb_Goal_Part(D165,D160:D167,G165,G160:G167,V160:Z187)*CritClassInd_GoalPart+Nb_Score_Part(D165,D160:D167,G165,G160:G167,V160:Z187)*CritClassInd_ScorePart)","v":""},"","A6",0,null,{"$f":"IF(AK159=\"\",\"\",(L165*Points_Victoire)+M165*Points_Null)","v":""},"",{"$f":"IF(AK159=\"\",\"\",COUNTIF(AE160:AE187,G165))","v":""},{"$f":"IF(AK159=\"\",\"\",COUNTIF(AF160:AG187,G165))","v":""},{"$f":"IF(AK159=\"\",\"\",COUNTIF(AH160:AH187,G165))","v":""},{"$f":"IF(AK159=\"\",\"\",SUMIF(V160:V187,G165,AB160:AB187)+SUMIF(Z160:Z187,G165,AD160:AD187))","v":""},{"$f":"IF(AK159=\"\",\"\",SUMIF(V160:V187,G165,AD160:AD187)+SUMIF(Z160:Z187,G165,AB160:AB187))","v":""},{"$f":"IF(AK159=\"\",\"\",O165-P165)","v":""},"#G2",null,null,null,{"$f":"IF(G161=\"\",\"\",G161)","v":"A2"},null,"-",null,{"$f":"IF(G163=\"\",\"\",G163)","v":"A4"},null,0,"-",0,"","","","","",null,{"$f":"IF(AK159=\"\",\"\",SMALL(C160:C167,6))","v":""},null,null,{"$f":"IF(AK159=\"\",\"\",INT(AK165/1000))","v":""},{"$f":"IF(AK159=\"\",IF(HidePlayerFormulas,\"\",\"(\"&G165&\")\"),VLOOKUP(AK165,C160:Q167,5,FALSE))","v":""},{"$f":"VLOOKUP(AK165,C160:Q167,8,FALSE)","v":""},{"$f":"VLOOKUP(AK165,C160:Q167,9,FALSE)","v":""},{"$f":"VLOOKUP(AK165,C160:Q167,10,FALSE)","v":""},{"$f":"VLOOKUP(AK165,C160:Q167,11,FALSE)","v":""},{"$f":"VLOOKUP(AK165,C160:Q167,12,FALSE)","v":""},{"$f":"VLOOKUP(AK165,C160:Q167,13,FALSE)","v":""},{"$f":"VLOOKUP(AK165,C160:Q167,14,FALSE)","v":""},{"$f":"VLOOKUP(AK165,C160:Q167,15,FALSE)","v":""},{"$f":"IF(W184=\"\",\"\",IF(AO165=V184,W184,IF(AO165=Z184,Y184,\"\")))","v":""},{"$f":"IF(W185=\"\",\"\",IF(AO165=V185,W185,IF(AO165=Z185,Y185,\"\")))","v":""},{"$f":"IF(W186=\"\",\"\",IF(AO165=V186,W186,IF(AO165=Z186,Y186,\"\")))","v":""},{"$f":"IF(W187=\"\",\"\",IF(AO165=V187,W187,IF(AO165=Z187,Y187,\"\")))","v":""},{"$f":"IF(W180=\"\",\"\",IF(AO165=V180,W180,IF(AO165=Z180,Y180,\"\")))","v":""},{"$f":"IF(W181=\"\",\"\",IF(AO165=V181,W181,IF(AO165=Z181,Y181,\"\")))","v":""},{"$f":"IF(W182=\"\",\"\",IF(AO165=V182,W182,IF(AO165=Z182,Y182,\"\")))","v":""},{"$f":"IF(W183=\"\",\"\",IF(AO165=V183,W183,IF(AO165=Z183,Y183,\"\")))","v":""},{"$f":"IF(W176=\"\",\"\",IF(AO165=V176,W176,IF(AO165=Z176,Y176,\"\")))","v":""},{"$f":"IF(W177=\"\",\"\",IF(AO165=V177,W177,IF(AO165=Z177,Y177,\"\")))","v":""},{"$f":"IF(W178=\"\",\"\",IF(AO165=V178,W178,IF(AO165=Z178,Y178,\"\")))","v":""},{"$f":"IF(W179=\"\",\"\",IF(AO165=V179,W179,IF(AO165=Z179,Y179,\"\")))","v":""},{"$f":"IF(W172=\"\",\"\",IF(AO165=V172,W172,IF(AO165=Z172,Y172,\"\")))","v":""},{"$f":"IF(W173=\"\",\"\",IF(AO165=V173,W173,IF(AO165=Z173,Y173,\"\")))","v":""},{"$f":"IF(W174=\"\",\"\",IF(AO165=V174,W174,IF(AO165=Z174,Y174,\"\")))","v":""},{"$f":"IF(W175=\"\",\"\",IF(AO165=V175,W175,IF(AO165=Z175,Y175,\"\")))","v":""},{"$f":"IF(W168=\"\",\"\",IF(AO165=V168,W168,IF(AO165=Z168,Y168,\"\")))","v":""},{"$f":"IF(W169=\"\",\"\",IF(AO165=V169,W169,IF(AO165=Z169,Y169,\"\")))","v":""},{"$f":"IF(W170=\"\",\"\",IF(AO165=V170,W170,IF(AO165=Z170,Y170,\"\")))","v":""},{"$f":"IF(W171=\"\",\"\",IF(AO165=V171,W171,IF(AO165=Z171,Y171,\"\")))","v":""},{"$f":"IF(W164=\"\",\"\",IF(AO165=V164,W164,IF(AO165=Z164,Y164,\"\")))","v":""},{"$f":"IF(W165=\"\",\"\",IF(AO165=V165,W165,IF(AO165=Z165,Y165,\"\")))","v":""},{"$f":"IF(W166=\"\",\"\",IF(AO165=V166,W166,IF(AO165=Z166,Y166,\"\")))","v":""},{"$f":"IF(W167=\"\",\"\",IF(AO165=V167,W167,IF(AO165=Z167,Y167,\"\")))","v":""},{"$f":"IF(W160=\"\",\"\",IF(AO165=V160,W160,IF(AO165=Z160,Y160,\"\")))","v":""},{"$f":"IF(W161=\"\",\"\",IF(AO165=V161,W161,IF(AO165=Z161,Y161,\"\")))","v":""},{"$f":"IF(W162=\"\",\"\",IF(AO165=V162,W162,IF(AO165=Z162,Y162,\"\")))","v":""},{"$f":"IF(W163=\"\",\"\",IF(AO165=V163,W163,IF(AO165=Z163,Y163,\"\")))","v":""},true,false,true]
[null,7,{"$f":"IF(AK159=\"\",\"\",RANK(F166,F160:F167)*1000+ROW())","v":""},"",{"$f":"IF(L166=\"\",\"\",Nb_Diff_Part(D166,D160:D167,G166,G160:G167,AI160:AI187)*CritClassInd_DiffPart+Nb_Goal_Part(D166,D160:D167,G166,G160:G167,V160:Z187)*CritClassInd_GoalPart+Nb_Score_Part(D166,D160:D167,G166,G160:G167,V160:Z187)*CritClassInd_ScorePart)","v":""},"","A7",0,null,{"$f":"IF(AK159=\"\",\"\",(L166*Points_Victoire)+M166*Points_Null)","v":""},"",{"$f":"IF(AK159=\"\",\"\",COUNTIF(AE160:AE187,G166))","v":""},{"$f":"IF(AK159=\"\",\"\",COUNTIF(AF160:AG187,G166))","v":""},{"$f":"IF(AK159=\"\",\"\",COUNTIF(AH160:AH187,G166))","v":""},{"$f":"IF(AK159=\"\",\"\",SUMIF(V160:V187,G166,AB160:AB187)+SUMIF(Z160:Z187,G166,AD160:AD187))","v":""},{"$f":"IF(AK159=\"\",\"\",SUMIF(V160:V187,G166,AD160:AD187)+SUMIF(Z160:Z187,G166,AB160:AB187))","v":""},{"$f":"IF(AK159=\"\",\"\",O166-P166)","v":""},"#G2",null,null,null,{"$f":"IF(G162=\"\",\"\",G162)","v":"A3"},null,"-",null,{"$f":"IF(G167=\"\",\"\",G167)","v":"A8"},null,0,"-",0,"","","","","",null,{"$f":"IF(AK159=\"\",\"\",SMALL(C160:C167,7))","v":""},null,null,{"$f":"IF(AK159=\"\",\"\",INT(AK166/1000))","v":""},{"$f":"IF(AK159=\"\",IF(HidePlayerFormulas,\"\",\"(\"&G166&\")\"),VLOOKUP(AK166,C160:Q167,5,FALSE))","v":""},{"$f":"VLOOKUP(AK166,C160:Q167,8,FALSE)","v":""},{"$f":"VLOOKUP(AK166,C160:Q167,9,FALSE)","v":""},{"$f":"VLOOKUP(AK166,C160:Q167,10,FALSE)","v":""},{"$f":"VLOOKUP(AK166,C160:Q167,11,FALSE)","v":""},{"$f":"VLOOKUP(AK166,C160:Q167,12,FALSE)","v":""},{"$f":"VLOOKUP(AK166,C160:Q167,13,FALSE)","v":""},{"$f":"VLOOKUP(AK166,C160:Q167,14,FALSE)","v":""},{"$f":"VLOOKUP(AK166,C160:Q167,15,FALSE)","v":""},{"$f":"IF(W184=\"\",\"\",IF(AO166=V184,W184,IF(AO166=Z184,Y184,\"\")))","v":""},{"$f":"IF(W185=\"\",\"\",IF(AO166=V185,W185,IF(AO166=Z185,Y185,\"\")))","v":""},{"$f":"IF(W186=\"\",\"\",IF(AO166=V186,W186,IF(AO166=Z186,Y186,\"\")))","v":""},{"$f":"IF(W187=\"\",\"\",IF(AO166=V187,W187,IF(AO166=Z187,Y187,\"\")))","v":""},{"$f":"IF(W180=\"\",\"\",IF(AO166=V180,W180,IF(AO166=Z180,Y180,\"\")))","v":""},{"$f":"IF(W181=\"\",\"\",IF(AO166=V181,W181,IF(AO166=Z181,Y181,\"\")))","v":""},{"$f":"IF(W182=\"\",\"\",IF(AO166=V182,W182,IF(AO166=Z182,Y182,\"\")))","v":""},{"$f":"IF(W183=\"\",\"\",IF(AO166=V183,W183,IF(AO166=Z183,Y183,\"\")))","v":""},{"$f":"IF(W176=\"\",\"\",IF(AO166=V176,W176,IF(AO166=Z176,Y176,\"\")))","v":""},{"$f":"IF(W177=\"\",\"\",IF(AO166=V177,W177,IF(AO166=Z177,Y177,\"\")))","v":""},{"$f":"IF(W178=\"\",\"\",IF(AO166=V178,W178,IF(AO166=Z178,Y178,\"\")))","v":""},{"$f":"IF(W179=\"\",\"\",IF(AO166=V179,W179,IF(AO166=Z179,Y179,\"\")))","v":""},{"$f":"IF(W172=\"\",\"\",IF(AO166=V172,W172,IF(AO166=Z172,Y172,\"\")))","v":""},{"$f":"IF(W173=\"\",\"\",IF(AO166=V173,W173,IF(AO166=Z173,Y173,\"\")))","v":""},{"$f":"IF(W174=\"\",\"\",IF(AO166=V174,W174,IF(AO166=Z174,Y174,\"\")))","v":""},{"$f":"IF(W175=\"\",\"\",IF(AO166=V175,W175,IF(AO166=Z175,Y175,\"\")))","v":""},{"$f":"IF(W168=\"\",\"\",IF(AO166=V168,W168,IF(AO166=Z168,Y168,\"\")))","v":""},{"$f":"IF(W169=\"\",\"\",IF(AO166=V169,W169,IF(AO166=Z169,Y169,\"\")))","v":""},{"$f":"IF(W170=\"\",\"\",IF(AO166=V170,W170,IF(AO166=Z170,Y170,\"\")))","v":""},{"$f":"IF(W171=\"\",\"\",IF(AO166=V171,W171,IF(AO166=Z171,Y171,\"\")))","v":""},{"$f":"IF(W164=\"\",\"\",IF(AO166=V164,W164,IF(AO166=Z164,Y164,\"\")))","v":""},{"$f":"IF(W165=\"\",\"\",IF(AO166=V165,W165,IF(AO166=Z165,Y165,\"\")))","v":""},{"$f":"IF(W166=\"\",\"\",IF(AO166=V166,W166,IF(AO166=Z166,Y166,\"\")))","v":""},{"$f":"IF(W167=\"\",\"\",IF(AO166=V167,W167,IF(AO166=Z167,Y167,\"\")))","v":""},{"$f":"IF(W160=\"\",\"\",IF(AO166=V160,W160,IF(AO166=Z160,Y160,\"\")))","v":""},{"$f":"IF(W161=\"\",\"\",IF(AO166=V161,W161,IF(AO166=Z161,Y161,\"\")))","v":""},{"$f":"IF(W162=\"\",\"\",IF(AO166=V162,W162,IF(AO166=Z162,Y162,\"\")))","v":""},{"$f":"IF(W163=\"\",\"\",IF(AO166=V163,W163,IF(AO166=Z163,Y163,\"\")))","v":""},true,false,true]
[null,8,{"$f":"IF(AK159=\"\",\"\",RANK(F167,F160:F167)*1000+ROW())","v":""},"",{"$f":"IF(L167=\"\",\"\",Nb_Diff_Part(D167,D160:D167,G167,G160:G167,AI160:AI187)*CritClassInd_DiffPart+Nb_Goal_Part(D167,D160:D167,G167,G160:G167,V160:Z187)*CritClassInd_GoalPart+Nb_Score_Part(D167,D160:D167,G167,G160:G167,V160:Z187)*CritClassInd_ScorePart)","v":""},"","A8",0,null,{"$f":"IF(AK159=\"\",\"\",(L167*Points_Victoire)+M167*Points_Null)","v":""},"",{"$f":"IF(AK159=\"\",\"\",COUNTIF(AE160:AE187,G167))","v":""},{"$f":"IF(AK159=\"\",\"\",COUNTIF(AF160:AG187,G167))","v":""},{"$f":"IF(AK159=\"\",\"\",COUNTIF(AH160:AH187,G167))","v":""},{"$f":"IF(AK159=\"\",\"\",SUMIF(V160:V187,G167,AB160:AB187)+SUMIF(Z160:Z187,G167,AD160:AD187))","v":""},{"$f":"IF(AK159=\"\",\"\",SUMIF(V160:V187,G167,AD160:AD187)+SUMIF(Z160:Z187,G167,AB160:AB187))","v":""},{"$f":"IF(AK159=\"\",\"\",O167-P167)","v":""},"#G2",null,null,null,{"$f":"IF(G165=\"\",\"\",G165)","v":"A6"},null,"-",null,{"$f":"IF(G166=\"\",\"\",G166)","v":"A7"},null,0,"-",0,"","","","","",null,{"$f":"IF(AK159=\"\",\"\",SMALL(C160:C167,8))","v":""},null,null,{"$f":"IF(AK159=\"\",\"\",INT(AK167/1000))","v":""},{"$f":"IF(AK159=\"\",IF(HidePlayerFormulas,\"\",\"(\"&G167&\")\"),VLOOKUP(AK167,C160:Q167,5,FALSE))","v":""},{"$f":"VLOOKUP(AK167,C160:Q167,8,FALSE)","v":""},{"$f":"VLOOKUP(AK167,C160:Q167,9,FALSE)","v":""},{"$f":"VLOOKUP(AK167,C160:Q167,10,FALSE)","v":""},{"$f":"VLOOKUP(AK167,C160:Q167,11,FALSE)","v":""},{"$f":"VLOOKUP(AK167,C160:Q167,12,FALSE)","v":""},{"$f":"VLOOKUP(AK167,C160:Q167,13,FALSE)","v":""},{"$f":"VLOOKUP(AK167,C160:Q167,14,FALSE)","v":""},{"$f":"VLOOKUP(AK167,C160:Q167,15,FALSE)","v":""},{"$f":"IF(W184=\"\",\"\",IF(AO167=V184,W184,IF(AO167=Z184,Y184,\"\")))","v":""},{"$f":"IF(W185=\"\",\"\",IF(AO167=V185,W185,IF(AO167=Z185,Y185,\"\")))","v":""},{"$f":"IF(W186=\"\",\"\",IF(AO167=V186,W186,IF(AO167=Z186,Y186,\"\")))","v":""},{"$f":"IF(W187=\"\",\"\",IF(AO167=V187,W187,IF(AO167=Z187,Y187,\"\")))","v":""},{"$f":"IF(W180=\"\",\"\",IF(AO167=V180,W180,IF(AO167=Z180,Y180,\"\")))","v":""},{"$f":"IF(W181=\"\",\"\",IF(AO167=V181,W181,IF(AO167=Z181,Y181,\"\")))","v":""},{"$f":"IF(W182=\"\",\"\",IF(AO167=V182,W182,IF(AO167=Z182,Y182,\"\")))","v":""},{"$f":"IF(W183=\"\",\"\",IF(AO167=V183,W183,IF(AO167=Z183,Y183,\"\")))","v":""},{"$f":"IF(W176=\"\",\"\",IF(AO167=V176,W176,IF(AO167=Z176,Y176,\"\")))","v":""},{"$f":"IF(W177=\"\",\"\",IF(AO167=V177,W177,IF(AO167=Z177,Y177,\"\")))","v":""},{"$f":"IF(W178=\"\",\"\",IF(AO167=V178,W178,IF(AO167=Z178,Y178,\"\")))","v":""},{"$f":"IF(W179=\"\",\"\",IF(AO167=V179,W179,IF(AO167=Z179,Y179,\"\")))","v":""},{"$f":"IF(W172=\"\",\"\",IF(AO167=V172,W172,IF(AO167=Z172,Y172,\"\")))","v":""},{"$f":"IF(W173=\"\",\"\",IF(AO167=V173,W173,IF(AO167=Z173,Y173,\"\")))","v":""},{"$f":"IF(W174=\"\",\"\",IF(AO167=V174,W174,IF(AO167=Z174,Y174,\"\")))","v":""},{"$f":"IF(W175=\"\",\"\",IF(AO167=V175,W175,IF(AO167=Z175,Y175,\"\")))","v":""},{"$f":"IF(W168=\"\",\"\",IF(AO167=V168,W168,IF(AO167=Z168,Y168,\"\")))","v":""},{"$f":"IF(W169=\"\",\"\",IF(AO167=V169,W169,IF(AO167=Z169,Y169,\"\")))","v":""},{"$f":"IF(W170=\"\",\"\",IF(AO167=V170,W170,IF(AO167=Z170,Y170,\"\")))","v":""},{"$f":"IF(W171=\"\",\"\",IF(AO167=V171,W171,IF(AO167=Z171,Y171,\"\")))","v":""},{"$f":"IF(W164=\"\",\"\",IF(AO167=V164,W164,IF(AO167=Z164,Y164,\"\")))","v":""},{"$f":"IF(W165=\"\",\"\",IF(AO167=V165,W165,IF(AO167=Z165,Y165,\"\")))","v":""},{"$f":"IF(W166=\"\",\"\",IF(AO167=V166,W166,IF(AO167=Z166,Y166,\"\")))","v":""},{"$f":"IF(W167=\"\",\"\",IF(AO167=V167,W167,IF(AO167=Z167,Y167,\"\")))","v":""},{"$f":"IF(W160=\"\",\"\",IF(AO167=V160,W160,IF(AO167=Z160,Y160,\"\")))","v":""},{"$f":"IF(W161=\"\",\"\",IF(AO167=V161,W161,IF(AO167=Z161,Y161,\"\")))","v":""},{"$f":"IF(W162=\"\",\"\",IF(AO167=V162,W162,IF(AO167=Z162,Y162,\"\")))","v":""},{"$f":"IF(W163=\"\",\"\",IF(AO167=V163,W163,IF(AO167=Z163,Y163,\"\")))","v":""},false,false,true]
[null,null,null,null,null,null,null,null,null,null,null,null,null,null,null,null,null,"#G3",null,null,null,{"$f":"IF(G162=\"\",\"\",G162)","v":"A3"},null,"-",null,{"$f":"IF(G164=\"\",\"\",G164)","v":"A5"},null,0,"-",0,"","","","",""]
[null,null,null,null,null,null,null,null,null,null,null,null,null,null,null,null,null,"#G3",null,null,null,{"$f":"IF(G165=\"\",\"\",G165)","v":"A6"},null,"-",null,{"$f":"IF(G161=\"\",\"\",G161)","v":"A2"},null,0,"-",0,"","","","",""]
[null,null,null,null,null,null,null,null,null,null,null,null,null,null,null,null,null,"#G3",null,null,null,{"$f":"IF(G166=\"\",\"\",G166)","v":"A7"},null,"-",null,{"$f":"IF(G160=\"\",\"\",G160)","v":"A1"},null,0,"-",0,"","","","",""]
[null,null,null,null,null,null,null,null,null,null,null,null,null,null,null,null,null,"#G3",null,null,null,{"$f":"IF(G167=\"\",\"\",G167)","v":"A8"},null,"-",null,{"$f":"IF(G163=\"\",\"\",G163)","v":"A4"},null,0,"-",0,"","","","",""]
[null,null,null,null,null,null,null,null,null,null,null,null,null,null,null,null,null,"#G4",null,null,null,{"$f":"IF(G160=\"\",\"\",G160)","v":"A1"},null,"-",null,{"$f":"IF(G161=\"\",\"\",G161)","v":"A2"},null,0,"-",0,"","","","",""]
[null,null,null,null,null,null,null,null,null,null,null,null,null,null,null,null,null,"#G4",null,null,null,{"$f":"IF(G163=\"\",\"\",G163)","v":"A4"},null,"-",null,{"$f":"IF(G165=\"\",\"\",G165)","v":"A6"},null,0,"-",0,"","","","",""]
[null,null,null,null,null,null,null,null,null,null,null,null,null,null,null,null,null,"#G4",null,null,null,{"$f":"IF(G164=\"\",\"\",G164)","v":"A5"},null,"-",null,{"$f":"IF(G167=\"\",\"\",G167)","v":"A8"},null,0,"-",0,"","","","",""]
[null,null,null,null,null,null,null,null,null,null,null,null,null,null,null,null,null,"#G4",null,null,null,{"$f":"IF(G166=\"\",\"\",G166)","v":"A7"},null,"-",null,{"$f":"IF(G162=\"\",\"\",G162)","v":"A3"},null,0,"-",0,"","","","",""]
[null,null,null,null,null,null,null,null,null,null,null,null,null,null,null,null,null,"#G5",null,null,null,{"$f":"IF(G160=\"\",\"\",G160)","v":"A1"},null,"-",null,{"$f":"IF(G163=\"\",\"\",G163)","v":"A4"},null,0,"-",0,"","","","",""]
[null,null,null,null,null,null,null,null,null,null,null,null,null,null,null,null,null,"#G5",null,null,null,{"$f":"IF(G161=\"\",\"\",G161)","v":"A2"},null,"-",null,{"$f":"IF(G162=\"\",\"\",G162)","v":"A3"},null,0,"-",0,"","","","",""]
[null,null,null,null,null,null,null,null,null,null,null,null,null,null,null,null,null,"#G5",null,null,null,{"$f":"IF(G164=\"\",\"\",G164)","v":"A5"},null,"-",null,{"$f":"IF(G166=\"\",\"\",G166)","v":"A7"},null,0,"-",0,"","","","",""]
[null,null,null,null,null,null,null,null,null,null,null,null,null,null,null,null,null,"#G5",null,null,null,{"$f":"IF(G167=\"\",\"\",G167)","v":"A8"},null,"-",null,{"$f":"IF(G165=\"\",\"\",G165)","v":"A6"},null,0,"-",0,"","","","",""]
[null,null,null,null,null,null,null,null,null,null,null,null,null,null,null,null,null,"#G6",null,null,null,{"$f":"IF(G162=\"\",\"\",G162)","v":"A3"},null,"-",null,{"$f":"IF(G163=\"\",\"\",G163)","v":"A4"},null,0,"-",0,"","","","",""]
[null,null,null,null,null,null,null,null,null,null,null,null,null,null,null,null,null,"#G6",null,null,null,{"$f":"IF(G164=\"\",\"\",G164)","v":"A5"},null,"-",null,{"$f":"IF(G161=\"\",\"\",G161)","v":"A2"},null,0,"-",0,"","","","",""]
[null,null,null,null,null,null,null,null,null,null,null,null,null,null,null,null,null,"#G6",null,null,null,{"$f":"IF(G165=\"\",\"\",G165)","v":"A6"},null,"-",null,{"$f":"IF(G160=\"\",\"\",G160)","v":"A1"},null,0,"-",0,"","","","",""]
[null,null,null,null,null,null,null,null,null,null,null,null,null,null,null,null,null,"#G6",null,null,null,{"$f":"IF(G166=\"\",\"\",G166)","v":"A7"},null,"-",null,{"$f":"IF(G167=\"\",\"\",G167)","v":"A8"},null,0,"-",0,"","","","",""]
[null,null,null,null,null,null,null,null,null,null,null,null,null,null,null,null,null,"#G7",null,null,null,{"$f":"IF(G161=\"\",\"\",G161)","v":"A2"},null,"-",null,{"$f":"IF(G166=\"\",\"\",G166)","v":"A7"},null,0,"-",0,"","","","",""]
[null,null,null,null,null,null,null,null,null,null,null,null,null,null,null,null,null,"#G7",null,null,null,{"$f":"IF(G162=\"\",\"\",G162)","v":"A3"},null,"-",null,{"$f":"IF(G165=\"\",\"\",G165)","v":"A6"},null,0,"-",0,"","","","",""]
[null,null,null,null,null,null,null,null,null,null,null,null,null,null,null,null,null,"#G7",null,null,null,{"$f":"IF(G163=\"\",\"\",G163)","v":"A4"},null,"-",null,{"$f":"IF(G164=\"\",\"\",G164)","v":"A5"},null,0,"-",0,"","","","",""]
[null,null,null,null,null,null,null,null,null,null,null,null,null,null,null,null,null,"#G7",null,null,null,{"$f":"IF(G167=\"\",\"\",G167)","v":"A8"},null,"-",null,{"$f":"IF(G160=\"\",\"\",G160)","v":"A1"},null,0,"-",0,"","","","",""]
[]
[]
[null,{"$f":"N_Group_9","v":"Group of 9"},null,null,null,null,null,null,null,null,null,null,null,null,null,null,null,null,null,null,null,null,null,null,null,null,null,null,null,null,null,null,null,null,null,null,null,null,{"$f":"B190","v":"Group of 9"}]
[]
[null,{"$f":"N_Tirage","v":"Draw"},"Cla.","Cla1","Part","Cla2",{"$f":"N_Joueurs","v":"Players"},{"$f":"N_RankPoints","v":"Rk Pt."},{"$f":"N_Diff_Part","v":"Part-Diff"},"Pts","J","G","N","P","BP","BC","Diff",null,null,null,null,null,null,null,null,null,null,null,null,null,{"$f":"N_G","v":"W"},{"$f":"N_N","v":"D"},{"$f":"N_N","v":"D"},{"$f":"N_P","v":"L"},"CONCAT","Ref Group",{"$f":"IF(COUNTA(W204:W255)=0,\"\",\"OK\")","v":""},null,null,{"$f":"N_Cla.","v":"Rk"},{"$f":"N_Joueurs","v":"Players"},{"$f":"N_Pts","v":"Pts"},{"$f":"N_J","v":"Pld"},{"$f":"N_G","v":"W"},{"$f":"N_N","v":"D"},{"$f":"N_P","v":"L"},{"$f":"N_BP","v":"F"},{"$f":"N_BC","v":"A"},{"$f":"N_Diff.","v":"SO"}]
[null,1,{"$f":"IF(AK192=\"\",\"\",RANK(F193,F193:F201)*1000+ROW())","v":""},{"$f":"IF(L193=\"\",\"\",CritClassInd1_Points*J193+CritClassInd1_Matches*L193+CritClassInd1_Attaque*O193+CritClassInd1_DiffButs*Q193)","v":""},{"$f":"IF(L193=\"\",\"\",Nb_Diff_Part(D193,D193:D201,G193,G193:G201,AI204:AI255)*CritClassInd_DiffPart+Nb_Goal_Part(D193,D193:D201,G193,G193:G201,V204:Z255)*CritClassInd_GoalPart+Nb_Score_Part(D193,D193:D201,G193,G193:G201,V204:Z255)*CritClassInd_ScorePart)","v":""},{"$f":"IF(L193=\"\",\"\",D193+E193+CritClassInd2_Points*J193+CritClassInd2_Matches*L193+CritClassInd2_Attaque*O193+CritClassInd2_DiffButs*Q193+CritClassInd_Ranking*H193+I193)","v":""},"A1",{"$f":"GMFTRANKINGPOINTS(G193,Particular_Category)","v":0},null,{"$f":"IF(AK192=\"\",\"\",(L193*Points_Victoire)+M193*Points_Null)","v":""},{"$f":"IF(L193=\"\",\"\",SUM(L193:N193))","v":""},{"$f":"IF(AK192=\"\",\"\",COUNTIF(AE204:AE255,G193))","v":""},{"$f":"IF(AK192=\"\",\"\",COUNTIF(AF204:AG255,G193))","v":""},{"$f":"IF(AK192=\"\",\"\",COUNTIF(AH204:AH255,G193))","v":""},{"$f":"IF(AK192=\"\",\"\",SUMIF(V204:V255,G193,AB204:AB255)+SUMIF(Z204:Z255,G193,AD204:AD255))","v":""},{"$f":"IF(AK192=\"\",\"\",SUMIF(V204:V255,G193,AD204:AD255)+SUMIF(Z204:Z255,G193,AB204:AB255))","v":""},{"$f":"IF(AK192=\"\",\"\",O193-P193)","v":""},null,null,null,null,null,null,null,null,null,null,null,null,null,null,null,null,null,null,null,{"$f":"IF(AK192=\"\",\"\",SMALL(C193:C201,1))","v":""},null,null,{"$f":"IF(AK192=\"\",\"\",INT(AK193/1000))","v":""},{"$f":"IF(AK192=\"\",\"\",VLOOKUP(AK193,C193:Q201,5,FALSE))","v":""},{"$f":"VLOOKUP(AK193,C193:Q201,8,FALSE)","v":""},{"$f":"VLOOKUP(AK193,C193:Q201,9,FALSE)","v":""},{"$f":"VLOOKUP(AK193,C193:Q201,10,FALSE)","v":""},{"$f":"VLOOKUP(AK193,C193:Q201,11,FALSE)","v":""},{"$f":"VLOOKUP(AK193,C193:Q201,12,FALSE)","v":""},{"$f":"VLOOKUP(AK193,C193:Q201,13,FALSE)","v":""},{"$f":"VLOOKUP(AK193,C193:Q201,14,FALSE)","v":""},{"$f":"VLOOKUP(AK193,C193:Q201,15,FALSE)","v":""}]
[null,2,{"$f":"IF(AK192=\"\",\"\",RANK(F194,F193:F201)*1000+ROW())","v":""},{"$f":"IF(L194=\"\",\"\",CritClassInd1_Points*J194+CritClassInd1_Matches*L194+CritClassInd1_Attaque*O194+CritClassInd1_DiffButs*Q194)","v":""},{"$f":"IF(L194=\"\",\"\",Nb_Diff_Part(D194,D193:D201,G194,G193:G201,AI204:AI255)*CritClassInd_DiffPart+Nb_Goal_Part(D194,D193:D201,G194,G193:G201,V204:Z255)*CritClassInd_GoalPart+Nb_Score_Part(D194,D193:D201,G194,G193:G201,V204:Z255)*CritClassInd_ScorePart)","v":""},{"$f":"IF(L194=\"\",\"\",D194+E194+CritClassInd2_Points*J194+CritClassInd2_Matches*L194+CritClassInd2_Attaque*O194+CritClassInd2_DiffButs*Q194+CritClassInd_Ranking*H194+I194)","v":""},"A2",0,null,{"$f":"IF(AK192=\"\",\"\",(L194*Points_Victoire)+M194*Points_Null)","v":""},"",{"$f":"IF(AK192=\"\",\"\",COUNTIF(AE204:AE255,G194))","v":""},{"$f":"IF(AK192=\"\",\"\",COUNTIF(AF204:AG255,G194))","v":""},{"$f":"IF(AK192=\"\",\"\",COUNTIF(AH204:AH255,G194))","v":""},{"$f":"IF(AK192=\"\",\"\",SUMIF(V204:V255,G194,AB204:AB255)+SUMIF(Z204:Z255,G194,AD204:AD255))","v":""},{"$f":"IF(AK192=\"\",\"\",SUMIF(V204:V255,G194,AD204:AD255)+SUMIF(Z204:Z255,G194,AB204:AB255))","v":""},{"$f":"IF(AK192=\"\",\"\",O194-P194)","v":""},null,null,null,null,null,null,null,null,null,null,null,null,null,null,null,null,null,null,null,{"$f":"IF(AK192=\"\",\"\",SMALL(C193:C201,2))","v":""},null,null,{"$f":"IF(AK192=\"\",\"\",INT(AK194/1000))","v":""},{"$f":"IF(AK192=\"\",\"\",VLOOKUP(AK194,C193:Q201,5,FALSE))","v":""},{"$f":"VLOOKUP(AK194,C193:Q201,8,FALSE)","v":""},{"$f":"VLOOKUP(AK194,C193:Q201,9,FALSE)","v":""},{"$f":"VLOOKUP(AK194,C193:Q201,10,FALSE)","v":""},{"$f":"VLOOKUP(AK194,C193:Q201,11,FALSE)","v":""},{"$f":"VLOOKUP(AK194,C193:Q201,12,FALSE)","v":""},{"$f":"VLOOKUP(AK194,C193:Q201,13,FALSE)","v":""},{"$f":"VLOOKUP(AK194,C193:Q201,14,FALSE)","v":""},{"$f":"VLOOKUP(AK194,C193:Q201,15,FALSE)","v":""}]
[null,3,{"$f":"IF(AK192=\"\",\"\",RANK(F195,F193:F201)*1000+ROW())","v":""},"",{"$f":"IF(L195=\"\",\"\",Nb_Diff_Part(D195,D193:D201,G195,G193:G201,AI204:AI255)*CritClassInd_DiffPart+Nb_Goal_Part(D195,D193:D201,G195,G193:G201,V204:Z255)*CritClassInd_GoalPart+Nb_Score_Part(D195,D193:D201,G195,G193:G201,V204:Z255)*CritClassInd_ScorePart)","v":""},"","A3",0,null,{"$f":"IF(AK192=\"\",\"\",(L195*Points_Victoire)+M195*Points_Null)","v":""},"",{"$f":"IF(AK192=\"\",\"\",COUNTIF(AE204:AE255,G195))","v":""},{"$f":"IF(AK192=\"\",\"\",COUNTIF(AF204:AG255,G195))","v":""},{"$f":"IF(AK192=\"\",\"\",COUNTIF(AH204:AH255,G195))","v":""},{"$f":"IF(AK192=\"\",\"\",SUMIF(V204:V255,G195,AB204:AB255)+SUMIF(Z204:Z255,G195,AD204:AD255))","v":""},{"$f":"IF(AK192=\"\",\"\",SUMIF(V204:V255,G195,AD204:AD255)+SUMIF(Z204:Z255,G195,AB204:AB255))","v":""},{"$f":"IF(AK192=\"\",\"\",O195-P195)","v":""},null,null,null,null,null,null,null,null,null,null,null,null,null,null,null,null,null,null,null,{"$f":"IF(AK192=\"\",\"\",SMALL(C193:C201,3))","v":""},null,null,{"$f":"IF(AK192=\"\",\"\",INT(AK195/1000))","v":""},{"$f":"IF(AK192=\"\",\"\",VLOOKUP(AK195,C193:Q201,5,FALSE))","v":""},{"$f":"VLOOKUP(AK195,C193:Q201,8,FALSE)","v":""},{"$f":"VLOOKUP(AK195,C193:Q201,9,FALSE)","v":""},{"$f":"VLOOKUP(AK195,C193:Q201,10,FALSE)","v":""},{"$f":"VLOOKUP(AK195,C193:Q201,11,FALSE)","v":""},{"$f":"VLOOKUP(AK195,C193:Q201,12,FALSE)","v":""},{"$f":"VLOOKUP(AK195,C193:Q201,13,FALSE)","v":""},{"$f":"VLOOKUP(AK195,C193:Q201,14,FALSE)","v":""},{"$f":"VLOOKUP(AK195,C193:Q201,15,FALSE)","v":""}]
[null,4,{"$f":"IF(AK192=\"\",\"\",RANK(F196,F193:F201)*1000+ROW())","v":""},"",{"$f":"IF(L196=\"\",\"\",Nb_Diff_Part(D196,D193:D201,G196,G193:G201,AI204:AI255)*CritClassInd_DiffPart+Nb_Goal_Part(D196,D193:D201,G196,G193:G201,V204:Z255)*CritClassInd_GoalPart+Nb_Score_Part(D196,D193:D201,G196,G193:G201,V204:Z255)*CritClassInd_ScorePart)","v":""},"","A4",0,null,{"$f":"IF(AK192=\"\",\"\",(L196*Points_Victoire)+M196*Points_Null)","v":""},"",{"$f":"IF(AK192=\"\",\"\",COUNTIF(AE204:AE255,G196))","v":""},{"$f":"IF(AK192=\"\",\"\",COUNTIF(AF204:AG255,G196))","v":""},{"$f":"IF(AK192=\"\",\"\",COUNTIF(AH204:AH255,G196))","v":""},{"$f":"IF(AK192=\"\",\"\",SUMIF(V204:V255,G196,AB204:AB255)+SUMIF(Z204:Z255,G196,AD204:AD255))","v":""},{"$f":"IF(AK192=\"\",\"\",SUMIF(V204:V255,G196,AD204:AD255)+SUMIF(Z204:Z255,G196,AB204:AB255))","v":""},{"$f":"IF(AK192=\"\",\"\",O196-P196)","v":""},null,null,null,null,null,null,null,null,null,null,null,null,null,null,null,null,null,null,null,{"$f":"IF(AK192=\"\",\"\",SMALL(C193:C201,4))","v":""},null,null,{"$f":"IF(AK192=\"\",\"\",INT(AK196/1000))","v":""},{"$f":"IF(AK192=\"\",\"\",VLOOKUP(AK196,C193:Q201,5,FALSE))","v":""},{"$f":"VLOOKUP(AK196,C193:Q201,8,FALSE)","v":""},{"$f":"VLOOKUP(AK196,C193:Q201,9,FALSE)","v":""},{"$f":"VLOOKUP(AK196,C193:Q201,10,FALSE)","v":""},{"$f":"VLOOKUP(AK196,C193:Q201,11,FALSE)","v":""},{"$f":"VLOOKUP(AK196,C193:Q201,12,FALSE)","v":""},{"$f":"VLOOKUP(AK196,C193:Q201,13,FALSE)","v":""},{"$f":"VLOOKUP(AK196,C193:Q201,14,FALSE)","v":""},{"$f":"VLOOKUP(AK196,C193:Q201,15,FALSE)","v":""}]
[null,5,{"$f":"IF(AK192=\"\",\"\",RANK(F197,F193:F201)*1000+ROW())","v":""},"",{"$f":"IF(L197=\"\",\"\",Nb_Diff_Part(D197,D193:D201,G197,G193:G201,AI204:AI255)*CritClassInd_DiffPart+Nb_Goal_Part(D197,D193:D201,G197,G193:G201,V204:Z255)*CritClassInd_GoalPart+Nb_Score_Part(D197,D193:D201,G197,G193:G201,V204:Z255)*CritClassInd_ScorePart)","v":""},"","A5",0,null,{"$f":"IF(AK192=\"\",\"\",(L197*Points_Victoire)+M197*Points_Null)","v":""},"",{"$f":"IF(AK192=\"\",\"\",COUNTIF(AE204:AE255,G197))","v":""},{"$f":"IF(AK192=\"\",\"\",COUNTIF(AF204:AG255,G197))","v":""},{"$f":"IF(AK192=\"\",\"\",COUNTIF(AH204:AH255,G197))","v":""},{"$f":"IF(AK192=\"\",\"\",SUMIF(V204:V255,G197,AB204:AB255)+SUMIF(Z204:Z255,G197,AD204:AD255))","v":""},{"$f":"IF(AK192=\"\",\"\",SUMIF(V204:V255,G197,AD204:AD255)+SUMIF(Z204:Z255,G197,AB204:AB255))","v":""},{"$f":"IF(AK192=\"\",\"\",O197-P197)","v":""},null,null,null,null,null,null,null,null,null,null,null,null,null,null,null,null,null,null,null,{"$f":"IF(AK192=\"\",\"\",SMALL(C193:C201,5))","v":""},null,null,{"$f":"IF(AK192=\"\",\"\",INT(AK197/1000))","v":""},{"$f":"IF(AK192=\"\",\"\",VLOOKUP(AK197,C193:Q201,5,FALSE))","v":""},{"$f":"VLOOKUP(AK197,C193:Q201,8,FALSE)","v":""},{"$f":"VLOOKUP(AK197,C193:Q201,9,FALSE)","v":""},{"$f":"VLOOKUP(AK197,C193:Q201,10,FALSE)","v":""},{"$f":"VLOOKUP(AK197,C193:Q201,11,FALSE)","v":""},{"$f":"VLOOKUP(AK197,C193:Q201,12,FALSE)","v":""},{"$f":"VLOOKUP(AK197,C193:Q201,13,FALSE)","v":""},{"$f":"VLOOKUP(AK197,C193:Q201,14,FALSE)","v":""},{"$f":"VLOOKUP(AK197,C193:Q201,15,FALSE)","v":""}]
[null,6,{"$f":"IF(AK192=\"\",\"\",RANK(F198,F193:F201)*1000+ROW())","v":""},"",{"$f":"IF(L198=\"\",\"\",Nb_Diff_Part(D198,D193:D201,G198,G193:G201,AI204:AI255)*CritClassInd_DiffPart+Nb_Goal_Part(D198,D193:D201,G198,G193:G201,V204:Z255)*CritClassInd_GoalPart+Nb_Score_Part(D198,D193:D201,G198,G193:G201,V204:Z255)*CritClassInd_ScorePart)","v":""},"","A6",0,null,{"$f":"IF(AK192=\"\",\"\",(L198*Points_Victoire)+M198*Points_Null)","v":""},"",{"$f":"IF(AK192=\"\",\"\",COUNTIF(AE204:AE255,G198))","v":""},{"$f":"IF(AK192=\"\",\"\",COUNTIF(AF204:AG255,G198))","v":""},{"$f":"IF(AK192=\"\",\"\",COUNTIF(AH204:AH255,G198))","v":""},{"$f":"IF(AK192=\"\",\"\",SUMIF(V204:V255,G198,AB204:AB255)+SUMIF(Z204:Z255,G198,AD204:AD255))","v":""},{"$f":"IF(AK192=\"\",\"\",SUMIF(V204:V255,G198,AD204:AD255)+SUMIF(Z204:Z255,G198,AB204:AB255))","v":""},{"$f":"IF(AK192=\"\",\"\",O198-P198)","v":""},null,null,null,null,null,null,null,null,null,null,null,null,null,null,null,null,null,null,null,{"$f":"IF(AK192=\"\",\"\",SMALL(C193:C201,6))","v":""},null,null,{"$f":"IF(AK192=\"\",\"\",INT(AK198/1000))","v":""},{"$f":"IF(AK192=\"\",\"\",VLOOKUP(AK198,C193:Q201,5,FALSE))","v":""},{"$f":"VLOOKUP(AK198,C193:Q201,8,FALSE)","v":""},{"$f":"VLOOKUP(AK198,C193:Q201,9,FALSE)","v":""},{"$f":"VLOOKUP(AK198,C193:Q201,10,FALSE)","v":""},{"$f":"VLOOKUP(AK198,C193:Q201,11,FALSE)","v":""},{"$f":"VLOOKUP(AK198,C193:Q201,12,FALSE)","v":""},{"$f":"VLOOKUP(AK198,C193:Q201,13,FALSE)","v":""},{"$f":"VLOOKUP(AK198,C193:Q201,14,FALSE)","v":""},{"$f":"VLOOKUP(AK198,C193:Q201,15,FALSE)","v":""}]
[null,7,{"$f":"IF(AK192=\"\",\"\",RANK(F199,F193:F201)*1000+ROW())","v":""},"",{"$f":"IF(L199=\"\",\"\",Nb_Diff_Part(D199,D193:D201,G199,G193:G201,AI204:AI255)*CritClassInd_DiffPart+Nb_Goal_Part(D199,D193:D201,G199,G193:G201,V204:Z255)*CritClassInd_GoalPart+Nb_Score_Part(D199,D193:D201,G199,G193:G201,V204:Z255)*CritClassInd_ScorePart)","v":""},"","A7",0,null,{"$f":"IF(AK192=\"\",\"\",(L199*Points_Victoire)+M199*Points_Null)","v":""},"",{"$f":"IF(AK192=\"\",\"\",COUNTIF(AE204:AE255,G199))","v":""},{"$f":"IF(AK192=\"\",\"\",COUNTIF(AF204:AG255,G199))","v":""},{"$f":"IF(AK192=\"\",\"\",COUNTIF(AH204:AH255,G199))","v":""},{"$f":"IF(AK192=\"\",\"\",SUMIF(V204:V255,G199,AB204:AB255)+SUMIF(Z204:Z255,G199,AD204:AD255))","v":""},{"$f":"IF(AK192=\"\",\"\",SUMIF(V204:V255,G199,AD204:AD255)+SUMIF(Z204:Z255,G199,AB204:AB255))","v":""},{"$f":"IF(AK192=\"\",\"\",O199-P199)","v":""},null,null,null,null,null,null,null,null,null,null,null,null,null,null,null,null,null,null,null,{"$f":"IF(AK192=\"\",\"\",SMALL(C193:C201,7))","v":""},null,null,{"$f":"IF(AK192=\"\",\"\",INT(AK199/1000))","v":""},{"$f":"IF(AK192=\"\",\"\",VLOOKUP(AK199,C193:Q201,5,FALSE))","v":""},{"$f":"VLOOKUP(AK199,C193:Q201,8,FALSE)","v":""},{"$f":"VLOOKUP(AK199,C193:Q201,9,FALSE)","v":""},{"$f":"VLOOKUP(AK199,C193:Q201,10,FALSE)","v":""},{"$f":"VLOOKUP(AK199,C193:Q201,11,FALSE)","v":""},{"$f":"VLOOKUP(AK199,C193:Q201,12,FALSE)","v":""},{"$f":"VLOOKUP(AK199,C193:Q201,13,FALSE)","v":""},{"$f":"VLOOKUP(AK199,C193:Q201,14,FALSE)","v":""},{"$f":"VLOOKUP(AK199,C193:Q201,15,FALSE)","v":""}]
[null,8,{"$f":"IF(AK192=\"\",\"\",RANK(F200,F193:F201)*1000+ROW())","v":""},"",{"$f":"IF(L200=\"\",\"\",Nb_Diff_Part(D200,D193:D201,G200,G193:G201,AI204:AI255)*CritClassInd_DiffPart+Nb_Goal_Part(D200,D193:D201,G200,G193:G201,V204:Z255)*CritClassInd_GoalPart+Nb_Score_Part(D200,D193:D201,G200,G193:G201,V204:Z255)*CritClassInd_ScorePart)","v":""},"","A8",0,null,{"$f":"IF(AK192=\"\",\"\",(L200*Points_Victoire)+M200*Points_Null)","v":""},"",{"$f":"IF(AK192=\"\",\"\",COUNTIF(AE204:AE255,G200))","v":""},{"$f":"IF(AK192=\"\",\"\",COUNTIF(AF204:AG255,G200))","v":""},{"$f":"IF(AK192=\"\",\"\",COUNTIF(AH204:AH255,G200))","v":""},{"$f":"IF(AK192=\"\",\"\",SUMIF(V204:V255,G200,AB204:AB255)+SUMIF(Z204:Z255,G200,AD204:AD255))","v":""},{"$f":"IF(AK192=\"\",\"\",SUMIF(V204:V255,G200,AD204:AD255)+SUMIF(Z204:Z255,G200,AB204:AB255))","v":""},{"$f":"IF(AK192=\"\",\"\",O200-P200)","v":""},null,null,null,null,null,null,null,null,null,null,null,null,null,null,null,null,null,null,null,{"$f":"IF(AK192=\"\",\"\",SMALL(C193:C201,8))","v":""},null,null,{"$f":"IF(AK192=\"\",\"\",INT(AK200/1000))","v":""},{"$f":"IF(AK192=\"\",\"\",VLOOKUP(AK200,C193:Q201,5,FALSE))","v":""},{"$f":"VLOOKUP(AK200,C193:Q201,8,FALSE)","v":""},{"$f":"VLOOKUP(AK200,C193:Q201,9,FALSE)","v":""},{"$f":"VLOOKUP(AK200,C193:Q201,10,FALSE)","v":""},{"$f":"VLOOKUP(AK200,C193:Q201,11,FALSE)","v":""},{"$f":"VLOOKUP(AK200,C193:Q201,12,FALSE)","v":""},{"$f":"VLOOKUP(AK200,C193:Q201,13,FALSE)","v":""},{"$f":"VLOOKUP(AK200,C193:Q201,14,FALSE)","v":""},{"$f":"VLOOKUP(AK200,C193:Q201,15,FALSE)","v":""}]
[null,9,{"$f":"IF(AK192=\"\",\"\",RANK(F201,F193:F201)*1000+ROW())","v":""},"",{"$f":"IF(L201=\"\",\"\",Nb_Diff_Part(D201,D193:D201,G201,G193:G201,AI204:AI255)*CritClassInd_DiffPart+Nb_Goal_Part(D201,D193:D201,G201,G193:G201,V204:Z255)*CritClassInd_GoalPart+Nb_Score_Part(D201,D193:D201,G201,G193:G201,V204:Z255)*CritClassInd_ScorePart)","v":""},"","A9",0,null,{"$f":"IF(AK192=\"\",\"\",(L201*Points_Victoire)+M201*Points_Null)","v":""},"",{"$f":"IF(AK192=\"\",\"\",COUNTIF(AE204:AE255,G201))","v":""},{"$f":"IF(AK192=\"\",\"\",COUNTIF(AF204:AG255,G201))","v":""},{"$f":"IF(AK192=\"\",\"\",COUNTIF(AH204:AH255,G201))","v":""},{"$f":"IF(AK192=\"\",\"\",SUMIF(V204:V255,G201,AB204:AB255)+SUMIF(Z204:Z255,G201,AD204:AD255))","v":""},{"$f":"IF(AK192=\"\",\"\",SUMIF(V204:V255,G201,AD204:AD255)+SUMIF(Z204:Z255,G201,AB204:AB255))","v":""},{"$f":"IF(AK192=\"\",\"\",O201-P201)","v":""},null,null,null,null,null,null,null,null,null,null,null,null,null,null,null,null,null,null,null,{"$f":"IF(AK192=\"\",\"\",SMALL(C193:C201,9))","v":""},null,null,{"$f":"IF(AK192=\"\",\"\",INT(AK201/1000))","v":""},{"$f":"IF(AK192=\"\",\"\",VLOOKUP(AK201,C193:Q201,5,FALSE))","v":""},{"$f":"VLOOKUP(AK201,C193:Q201,8,FALSE)","v":""},{"$f":"VLOOKUP(AK201,C193:Q201,9,FALSE)","v":""},{"$f":"VLOOKUP(AK201,C193:Q201,10,FALSE)","v":""},{"$f":"VLOOKUP(AK201,C193:Q201,11,FALSE)","v":""},{"$f":"VLOOKUP(AK201,C193:Q201,12,FALSE)","v":""},{"$f":"VLOOKUP(AK201,C193:Q201,13,FALSE)","v":""},{"$f":"VLOOKUP(AK201,C193:Q201,14,FALSE)","v":""},{"$f":"VLOOKUP(AK201,C193:Q201,15,FALSE)","v":""}]
[null,null,null,null,null,null,null,null,null,null,null,null,null,null,null,null,null,null,1,null,null,null,null,null,null,null,null,{"$f":"IF(MaxScore,N_MaxScore,\"\")","v":"Max Score"}]
[null,null,null,null,null,null,null,null,null,null,null,null,null,null,null,null,null,null,{"$f":"N_Heure","v":"Time"},{"$f":"N_Table","v":"Table"},{"$f":"N_Arbitre","v":"Referee"},{"$f":"N_Matches","v":"Matches"}]
[null,null,null,null,null,null,null,null,null,null,null,null,null,null,null,null,null,"#G1",null,null,null,{"$f":"IF(G193=\"\",\"\",G193)","v":"A1"},null,"-",null,{"$f":"IF(G195=\"\",\"\",G195)","v":"A3"},null,{"$f":"IF(MaxScore,MaxGoals(W204,Y204,MaxGoalsValue),IF(W204=\"\",\"\",W204))","v":0},{"$f":"IF(MaxScore,\"-\",IF(W204=\"\",\"\",\"-\"))","v":"-"},{"$f":"IF(MaxScore,MaxGoals(Y204,W204,MaxGoalsValue),IF(Y204=\"\",\"\",Y204))","v":0},{"$f":"IF(W204=\"\",\"\",IF(W204>Y204,V204,IF(W204=Y204,\"\",Z204)))","v":""},{"$f":"IF(W204=\"\",\"\",IF(W204=Y204,V204,\"\"))","v":""},{"$f":"IF(W204=\"\",\"\",IF(W204=Y204,Z204,\"\"))","v":""},{"$f":"IF(W204=\"\",\"\",IF(W204<Y204,V204,IF(W204=Y204,\"\",Z204)))","v":""},{"$f":"CONCATENATE(AE204,AH204)","v":""}]
[null,null,null,null,null,null,null,null,null,null,null,null,null,null,null,null,null,"#G1",null,null,null,{"$f":"IF(G196=\"\",\"\",G196)","v":"A4"},null,"-",null,{"$f":"IF(G201=\"\",\"\",G201)","v":"A9"},null,{"$f":"IF(MaxScore,MaxGoals(W205,Y205,MaxGoalsValue),IF(W205=\"\",\"\",W205))","v":0},{"$f":"IF(MaxScore,\"-\",IF(W205=\"\",\"\",\"-\"))","v":"-"},{"$f":"IF(MaxScore,MaxGoals(Y205,W205,MaxGoalsValue),IF(Y205=\"\",\"\",Y205))","v":0},{"$f":"IF(W205=\"\",\"\",IF(W205>Y205,V205,IF(W205=Y205,\"\",Z205)))","v":""},{"$f":"IF(W205=\"\",\"\",IF(W205=Y205,V205,\"\"))","v":""},{"$f":"IF(W205=\"\",\"\",IF(W205=Y205,Z205,\"\"))","v":""},{"$f":"IF(W205=\"\",\"\",IF(W205<Y205,V205,IF(W205=Y205,\"\",Z205)))","v":""},{"$f":"CONCATENATE(AE205,AH205)","v":""}]
[null,null,null,null,null,null,null,null,null,null,null,null,null,null,null,null,null,"#G1",null,null,null,{"$f":"IF(G197=\"\",\"\",G197)","v":"A5"},null,"-",null,{"$f":"IF(G200=\"\",\"\",G200)","v":"A8"},null,{"$f":"IF(MaxScore,MaxGoals(W206,Y206,MaxGoalsValue),IF(W206=\"\",\"\",W206))","v":0},{"$f":"IF(MaxScore,\"-\",IF(W206=\"\",\"\",\"-\"))","v":"-"},{"$f":"IF(MaxScore,MaxGoals(Y206,W206,MaxGoalsValue),IF(Y206=\"\",\"\",Y206))","v":0},{"$f":"IF(W206=\"\",\"\",IF(W206>Y206,V206,IF(W206=Y206,\"\",Z206)))","v":""},{"$f":"IF(W206=\"\",\"\",IF(W206=Y206,V206,\"\"))","v":""},{"$f":"IF(W206=\"\",\"\",IF(W206=Y206,Z206,\"\"))","v":""},{"$f":"IF(W206=\"\",\"\",IF(W206<Y206,V206,IF(W206=Y206,\"\",Z206)))","v":""},{"$f":"CONCATENATE(AE206,AH206)","v":""}]
[null,null,null,null,null,null,null,null,null,null,null,null,null,null,null,null,null,"#G1",null,null,null,{"$f":"IF(G198=\"\",\"\",G198)","v":"A6"},null,"-",null,{"$f":"IF(G199=\"\",\"\",G199)","v":"A7"},null,{"$f":"IF(MaxScore,MaxGoals(W207,Y207,MaxGoalsValue),IF(W207=\"\",\"\",W207))","v":0},{"$f":"IF(MaxScore,\"-\",IF(W207=\"\",\"\",\"-\"))","v":"-"},{"$f":"IF(MaxScore,MaxGoals(Y207,W207,MaxGoalsValue),IF(Y207=\"\",\"\",Y207))","v":0},{"$f":"IF(W207=\"\",\"\",IF(W207>Y207,V207,IF(W207=Y207,\"\",Z207)))","v":""},{"$f":"IF(W207=\"\",\"\",IF(W207=Y207,V207,\"\"))","v":""},{"$f":"IF(W207=\"\",\"\",IF(W207=Y207,Z207,\"\"))","v":""},{"$f":"IF(W207=\"\",\"\",IF(W207<Y207,V207,IF(W207=Y207,\"\",Z207)))","v":""},{"$f":"CONCATENATE(AE207,AH207)","v":""}]
[null,null,null,null,null,null,null,null,null,null,null,null,null,null,null,null,null,null,{"$f":"S202+1","v":2}]
[null,null,null,null,null,null,null,null,null,null,null,null,null,null,null,null,null,null,{"$f":"N_Heure","v":"Time"},{"$f":"N_Table","v":"Table"},{"$f":"N_Arbitre","v":"Referee"},{"$f":"N_Matches","v":"Matches"}]
[null,null,null,null,null,null,null,null,null,null,null,null,null,null,null,null,null,"#G2",null,null,null,{"$f":"G193","v":"A1"},null,"-",null,{"$f":"G197","v":"A5"},null,{"$f":"IF(MaxScore,MaxGoals(W210,Y210,MaxGoalsValue),IF(W210=\"\",\"\",W210))","v":0},{"$f":"IF(MaxScore,\"-\",IF(W210=\"\",\"\",\"-\"))","v":"-"},{"$f":"IF(MaxScore,MaxGoals(Y210,W210,MaxGoalsValue),IF(Y210=\"\",\"\",Y210))","v":0},{"$f":"IF(W210=\"\",\"\",IF(W210>Y210,V210,IF(W210=Y210,\"\",Z210)))","v":""},{"$f":"IF(W210=\"\",\"\",IF(W210=Y210,V210,\"\"))","v":""},{"$f":"IF(W210=\"\",\"\",IF(W210=Y210,Z210,\"\"))","v":""},{"$f":"IF(W210=\"\",\"\",IF(W210<Y210,V210,IF(W210=Y210,\"\",Z210)))","v":""},{"$f":"CONCATENATE(AE210,AH210)","v":""}]
[null,null,null,null,null,null,null,null,null,null,null,null,null,null,null,null,null,"#G2",null,null,null,{"$f":"G194","v":"A2"},null,"-",null,{"$f":"G196","v":"A4"},null,{"$f":"IF(MaxScore,MaxGoals(W211,Y211,MaxGoalsValue),IF(W211=\"\",\"\",W211))","v":0},{"$f":"IF(MaxScore,\"-\",IF(W211=\"\",\"\",\"-\"))","v":"-"},{"$f":"IF(MaxScore,MaxGoals(Y211,W211,MaxGoalsValue),IF(Y211=\"\",\"\",Y211))","v":0},{"$f":"IF(W211=\"\",\"\",IF(W211>Y211,V211,IF(W211=Y211,\"\",Z211)))","v":""},{"$f":"IF(W211=\"\",\"\",IF(W211=Y211,V211,\"\"))","v":""},{"$f":"IF(W211=\"\",\"\",IF(W211=Y211,Z211,\"\"))","v":""},{"$f":"IF(W211=\"\",\"\",IF(W211<Y211,V211,IF(W211=Y211,\"\",Z211)))","v":""},{"$f":"CONCATENATE(AE211,AH211)","v":""}]
[null,null,null,null,null,null,null,null,null,null,null,null,null,null,null,null,null,"#G2",null,null,null,{"$f":"G199","v":"A7"},null,"-",null,{"$f":"G200","v":"A8"},null,{"$f":"IF(MaxScore,MaxGoals(W212,Y212,MaxGoalsValue),IF(W212=\"\",\"\",W212))","v":0},{"$f":"IF(MaxScore,\"-\",IF(W212=\"\",\"\",\"-\"))","v":"-"},{"$f":"IF(MaxScore,MaxGoals(Y212,W212,MaxGoalsValue),IF(Y212=\"\",\"\",Y212))","v":0},{"$f":"IF(W212=\"\",\"\",IF(W212>Y212,V212,IF(W212=Y212,\"\",Z212)))","v":""},{"$f":"IF(W212=\"\",\"\",IF(W212=Y212,V212,\"\"))","v":""},{"$f":"IF(W212=\"\",\"\",IF(W212=Y212,Z212,\"\"))","v":""},{"$f":"IF(W212=\"\",\"\",IF(W212<Y212,V212,IF(W212=Y212,\"\",Z212)))","v":""},{"$f":"CONCATENATE(AE212,AH212)","v":""}]
[null,null,null,null,null,null,null,null,null,null,null,null,null,null,null,null,null,"#G2",null,null,null,{"$f":"G201","v":"A9"},null,"-",null,{"$f":"G198","v":"A6"},null,{"$f":"IF(MaxScore,MaxGoals(W213,Y213,MaxGoalsValue),IF(W213=\"\",\"\",W213))","v":0},{"$f":"IF(MaxScore,\"-\",IF(W213=\"\",\"\",\"-\"))","v":"-"},{"$f":"IF(MaxScore,MaxGoals(Y213,W213,MaxGoalsValue),IF(Y213=\"\",\"\",Y213))","v":0},{"$f":"IF(W213=\"\",\"\",IF(W213>Y213,V213,IF(W213=Y213,\"\",Z213)))","v":""},{"$f":"IF(W213=\"\",\"\",IF(W213=Y213,V213,\"\"))","v":""},{"$f":"IF(W213=\"\",\"\",IF(W213=Y213,Z213,\"\"))","v":""},{"$f":"IF(W213=\"\",\"\",IF(W213<Y213,V213,IF(W213=Y213,\"\",Z213)))","v":""},{"$f":"CONCATENATE(AE213,AH213)","v":""}]
[null,null,null,null,null,null,null,null,null,null,null,null,null,null,null,null,null,null,{"$f":"S208+1","v":3}]
[null,null,null,null,null,null,null,null,null,null,null,null,null,null,null,null,null,null,{"$f":"N_Heure","v":"Time"},{"$f":"N_Table","v":"Table"},{"$f":"N_Arbitre","v":"Referee"},{"$f":"N_Matches","v":"Matches"}]
[null,null,null,null,null,null,null,null,null,null,null,null,null,null,null,null,null,"#G3",null,null,null,{"$f":"G194","v":"A2"},null,"-",null,{"$f":"G198","v":"A6"},null,{"$f":"IF(MaxScore,MaxGoals(W216,Y216,MaxGoalsValue),IF(W216=\"\",\"\",W216))","v":0},{"$f":"IF(MaxScore,\"-\",IF(W216=\"\",\"\",\"-\"))","v":"-"},{"$f":"IF(MaxScore,MaxGoals(Y216,W216,MaxGoalsValue),IF(Y216=\"\",\"\",Y216))","v":0},{"$f":"IF(W216=\"\",\"\",IF(W216>Y216,V216,IF(W216=Y216,\"\",Z216)))","v":""},{"$f":"IF(W216=\"\",\"\",IF(W216=Y216,V216,\"\"))","v":""},{"$f":"IF(W216=\"\",\"\",IF(W216=Y216,Z216,\"\"))","v":""},{"$f":"IF(W216=\"\",\"\",IF(W216<Y216,V216,IF(W216=Y216,\"\",Z216)))","v":""},{"$f":"CONCATENATE(AE216,AH216)","v":""}]
[null,null,null,null,null,null,null,null,null,null,null,null,null,null,null,null,null,"#G3",null,null,null,{"$f":"G195","v":"A3"},null,"-",null,{"$f":"G197","v":"A5"},null,{"$f":"IF(MaxScore,MaxGoals(W217,Y217,MaxGoalsValue),IF(W217=\"\",\"\",W217))","v":0},{"$f":"IF(MaxScore,\"-\",IF(W217=\"\",\"\",\"-\"))","v":"-"},{"$f":"IF(MaxScore,MaxGoals(Y217,W217,MaxGoalsValue),IF(Y217=\"\",\"\",Y217))","v":0},{"$f":"IF(W217=\"\",\"\",IF(W217>Y217,V217,IF(W217=Y217,\"\",Z217)))","v":""},{"$f":"IF(W217=\"\",\"\",IF(W217=Y217,V217,\"\"))","v":""},{"$f":"IF(W217=\"\",\"\",IF(W217=Y217,Z217,\"\"))","v":""},{"$f":"IF(W217=\"\",\"\",IF(W217<Y217,V217,IF(W217=Y217,\"\",Z217)))","v":""},{"$f":"CONCATENATE(AE217,AH217)","v":""}]
[null,null,null,null,null,null,null,null,null,null,null,null,null,null,null,null,null,"#G3",null,null,null,{"$f":"G199","v":"A7"},null,"-",null,{"$f":"G193","v":"A1"},null,{"$f":"IF(MaxScore,MaxGoals(W218,Y218,MaxGoalsValue),IF(W218=\"\",\"\",W218))","v":0},{"$f":"IF(MaxScore,\"-\",IF(W218=\"\",\"\",\"-\"))","v":"-"},{"$f":"IF(MaxScore,MaxGoals(Y218,W218,MaxGoalsValue),IF(Y218=\"\",\"\",Y218))","v":0},{"$f":"IF(W218=\"\",\"\",IF(W218>Y218,V218,IF(W218=Y218,\"\",Z218)))","v":""},{"$f":"IF(W218=\"\",\"\",IF(W218=Y218,V218,\"\"))","v":""},{"$f":"IF(W218=\"\",\"\",IF(W218=Y218,Z218,\"\"))","v":""},{"$f":"IF(W218=\"\",\"\",IF(W218<Y218,V218,IF(W218=Y218,\"\",Z218)))","v":""},{"$f":"CONCATENATE(AE218,AH218)","v":""}]
[null,null,null,null,null,null,null,null,null,null,null,null,null,null,null,null,null,"#G3",null,null,null,{"$f":"G200","v":"A8"},null,"-",null,{"$f":"G201","v":"A9"},null,{"$f":"IF(MaxScore,MaxGoals(W219,Y219,MaxGoalsValue),IF(W219=\"\",\"\",W219))","v":0},{"$f":"IF(MaxScore,\"-\",IF(W219=\"\",\"\",\"-\"))","v":"-"},{"$f":"IF(MaxScore,MaxGoals(Y219,W219,MaxGoalsValue),IF(Y219=\"\",\"\",Y219))","v":0},{"$f":"IF(W219=\"\",\"\",IF(W219>Y219,V219,IF(W219=Y219,\"\",Z219)))","v":""},{"$f":"IF(W219=\"\",\"\",IF(W219=Y219,V219,\"\"))","v":""},{"$f":"IF(W219=\"\",\"\",IF(W219=Y219,Z219,\"\"))","v":""},{"$f":"IF(W219=\"\",\"\",IF(W219<Y219,V219,IF(W219=Y219,\"\",Z219)))","v":""},{"$f":"CONCATENATE(AE219,AH219)","v":""}]
[null,null,null,null,null,null,null,null,null,null,null,null,null,null,null,null,null,null,{"$f":"S214+1","v":4}]
[null,null,null,null,null,null,null,null,null,null,null,null,null,null,null,null,null,null,{"$f":"N_Heure","v":"Time"},{"$f":"N_Table","v":"Table"},{"$f":"N_Arbitre","v":"Referee"},{"$f":"N_Matches","v":"Matches"}]
[null,null,null,null,null,null,null,null,null,null,null,null,null,null,null,null,null,"#G4",null,null,null,{"$f":"G193","v":"A1"},null,"-",null,{"$f":"G201","v":"A9"},null,{"$f":"IF(MaxScore,MaxGoals(W222,Y222,MaxGoalsValue),IF(W222=\"\",\"\",W222))","v":0},{"$f":"IF(MaxScore,\"-\",IF(W222=\"\",\"\",\"-\"))","v":"-"},{"$f":"IF(MaxScore,MaxGoals(Y222,W222,MaxGoalsValue),IF(Y222=\"\",\"\",Y222))","v":0},{"$f":"IF(W222=\"\",\"\",IF(W222>Y222,V222,IF(W222=Y222,\"\",Z222)))","v":""},{"$f":"IF(W222=\"\",\"\",IF(W222=Y222,V222,\"\"))","v":""},{"$f":"IF(W222=\"\",\"\",IF(W222=Y222,Z222,\"\"))","v":""},{"$f":"IF(W222=\"\",\"\",IF(W222<Y222,V222,IF(W222=Y222,\"\",Z222)))","v":""},{"$f":"CONCATENATE(AE222,AH222)","v":""}]
[null,null,null,null,null,null,null,null,null,null,null,null,null,null,null,null,null,"#G4",null,null,null,{"$f":"G198","v":"A6"},null,"-",null,{"$f":"G196","v":"A4"},null,{"$f":"IF(MaxScore,MaxGoals(W223,Y223,MaxGoalsValue),IF(W223=\"\",\"\",W223))","v":0},{"$f":"IF(MaxScore,\"-\",IF(W223=\"\",\"\",\"-\"))","v":"-"},{"$f":"IF(MaxScore,MaxGoals(Y223,W223,MaxGoalsValue),IF(Y223=\"\",\"\",Y223))","v":0},{"$f":"IF(W223=\"\",\"\",IF(W223>Y223,V223,IF(W223=Y223,\"\",Z223)))","v":""},{"$f":"IF(W223=\"\",\"\",IF(W223=Y223,V223,\"\"))","v":""},{"$f":"IF(W223=\"\",\"\",IF(W223=Y223,Z223,\"\"))","v":""},{"$f":"IF(W223=\"\",\"\",IF(W223<Y223,V223,IF(W223=Y223,\"\",Z223)))","v":""},{"$f":"CONCATENATE(AE223,AH223)","v":""}]
[null,null,null,null,null,null,null,null,null,null,null,null,null,null,null,null,null,"#G4",null,null,null,{"$f":"G199","v":"A7"},null,"-",null,{"$f":"G195","v":"A3"},null,{"$f":"IF(MaxScore,MaxGoals(W224,Y224,MaxGoalsValue),IF(W224=\"\",\"\",W224))","v":0},{"$f":"IF(MaxScore,\"-\",IF(W224=\"\",\"\",\"-\"))","v":"-"},{"$f":"IF(MaxScore,MaxGoals(Y224,W224,MaxGoalsValue),IF(Y224=\"\",\"\",Y224))","v":0},{"$f":"IF(W224=\"\",\"\",IF(W224>Y224,V224,IF(W224=Y224,\"\",Z224)))","v":""},{"$f":"IF(W224=\"\",\"\",IF(W224=Y224,V224,\"\"))","v":""},{"$f":"IF(W224=\"\",\"\",IF(W224=Y224,Z224,\"\"))","v":""},{"$f":"IF(W224=\"\",\"\",IF(W224<Y224,V224,IF(W224=Y224,\"\",Z224)))","v":""},{"$f":"CONCATENATE(AE224,AH224)","v":""}]
[null,null,null,null,null,null,null,null,null,null,null,null,null,null,null,null,null,"#G4",null,null,null,{"$f":"G200","v":"A8"},null,"-",null,{"$f":"G194","v":"A2"},null,{"$f":"IF(MaxScore,MaxGoals(W225,Y225,MaxGoalsValue),IF(W225=\"\",\"\",W225))","v":0},{"$f":"IF(MaxScore,\"-\",IF(W225=\"\",\"\",\"-\"))","v":"-"},{"$f":"IF(MaxScore,MaxGoals(Y225,W225,MaxGoalsValue),IF(Y225=\"\",\"\",Y225))","v":0},{"$f":"IF(W225=\"\",\"\",IF(W225>Y225,V225,IF(W225=Y225,\"\",Z225)))","v":""},{"$f":"IF(W225=\"\",\"\",IF(W225=Y225,V225,\"\"))","v":""},{"$f":"IF(W225=\"\",\"\",IF(W225=Y225,Z225,\"\"))","v":""},{"$f":"IF(W225=\"\",\"\",IF(W225<Y225,V225,IF(W225=Y225,\"\",Z225)))","v":""},{"$f":"CONCATENATE(AE225,AH225)","v":""}]
[null,null,null,null,null,null,null,null,null,null,null,null,null,null,null,null,null,null,{"$f":"S220+1","v":5}]
[null,null,null,null,null,null,null,null,null,null,null,null,null,null,null,null,null,null,{"$f":"N_Heure","v":"Time"},{"$f":"N_Table","v":"Table"},{"$f":"N_Arbitre","v":"Referee"},{"$f":"N_Matches","v":"Matches"}]
[null,null,null,null,null,null,null,null,null,null,null,null,null,null,null,null,null,"#G5",null,null,null,{"$f":"G194","v":"A2"},null,"-",null,{"$f":"G193","v":"A1"},null,{"$f":"IF(MaxScore,MaxGoals(W228,Y228,MaxGoalsValue),IF(W228=\"\",\"\",W228))","v":0},{"$f":"IF(MaxScore,\"-\",IF(W228=\"\",\"\",\"-\"))","v":"-"},{"$f":"IF(MaxScore,MaxGoals(Y228,W228,MaxGoalsValue),IF(Y228=\"\",\"\",Y228))","v":0},{"$f":"IF(W228=\"\",\"\",IF(W228>Y228,V228,IF(W228=Y228,\"\",Z228)))","v":""},{"$f":"IF(W228=\"\",\"\",IF(W228=Y228,V228,\"\"))","v":""},{"$f":"IF(W228=\"\",\"\",IF(W228=Y228,Z228,\"\"))","v":""},{"$f":"IF(W228=\"\",\"\",IF(W228<Y228,V228,IF(W228=Y228,\"\",Z228)))","v":""},{"$f":"CONCATENATE(AE228,AH228)","v":""}]
[null,null,null,null,null,null,null,null,null,null,null,null,null,null,null,null,null,"#G5",null,null,null,{"$f":"G196","v":"A4"},null,"-",null,{"$f":"G200","v":"A8"},null,{"$f":"IF(MaxScore,MaxGoals(W229,Y229,MaxGoalsValue),IF(W229=\"\",\"\",W229))","v":0},{"$f":"IF(MaxScore,\"-\",IF(W229=\"\",\"\",\"-\"))","v":"-"},{"$f":"IF(MaxScore,MaxGoals(Y229,W229,MaxGoalsValue),IF(Y229=\"\",\"\",Y229))","v":0},{"$f":"IF(W229=\"\",\"\",IF(W229>Y229,V229,IF(W229=Y229,\"\",Z229)))","v":""},{"$f":"IF(W229=\"\",\"\",IF(W229=Y229,V229,\"\"))","v":""},{"$f":"IF(W229=\"\",\"\",IF(W229=Y229,Z229,\"\"))","v":""},{"$f":"IF(W229=\"\",\"\",IF(W229<Y229,V229,IF(W229=Y229,\"\",Z229)))","v":""},{"$f":"CONCATENATE(AE229,AH229)","v":""}]
[null,null,null,null,null,null,null,null,null,null,null,null,null,null,null,null,null,"#G5",null,null,null,{"$f":"G197","v":"A5"},null,"-",null,{"$f":"G199","v":"A7"},null,{"$f":"IF(MaxScore,MaxGoals(W230,Y230,MaxGoalsValue),IF(W230=\"\",\"\",W230))","v":0},{"$f":"IF(MaxScore,\"-\",IF(W230=\"\",\"\",\"-\"))","v":"-"},{"$f":"IF(MaxScore,MaxGoals(Y230,W230,MaxGoalsValue),IF(Y230=\"\",\"\",Y230))","v":0},{"$f":"IF(W230=\"\",\"\",IF(W230>Y230,V230,IF(W230=Y230,\"\",Z230)))","v":""},{"$f":"IF(W230=\"\",\"\",IF(W230=Y230,V230,\"\"))","v":""},{"$f":"IF(W230=\"\",\"\",IF(W230=Y230,Z230,\"\"))","v":""},{"$f":"IF(W230=\"\",\"\",IF(W230<Y230,V230,IF(W230=Y230,\"\",Z230)))","v":""},{"$f":"CONCATENATE(AE230,AH230)","v":""}]
[null,null,null,null,null,null,null,null,null,null,null,null,null,null,null,null,null,"#G5",null,null,null,{"$f":"G201","v":"A9"},null,"-",null,{"$f":"G195","v":"A3"},null,{"$f":"IF(MaxScore,MaxGoals(W231,Y231,MaxGoalsValue),IF(W231=\"\",\"\",W231))","v":0},{"$f":"IF(MaxScore,\"-\",IF(W231=\"\",\"\",\"-\"))","v":"-"},{"$f":"IF(MaxScore,MaxGoals(Y231,W231,MaxGoalsValue),IF(Y231=\"\",\"\",Y231))","v":0},{"$f":"IF(W231=\"\",\"\",IF(W231>Y231,V231,IF(W231=Y231,\"\",Z231)))","v":""},{"$f":"IF(W231=\"\",\"\",IF(W231=Y231,V231,\"\"))","v":""},{"$f":"IF(W231=\"\",\"\",IF(W231=Y231,Z231,\"\"))","v":""},{"$f":"IF(W231=\"\",\"\",IF(W231<Y231,V231,IF(W231=Y231,\"\",Z231)))","v":""},{"$f":"CONCATENATE(AE231,AH231)","v":""}]
[null,null,null,null,null,null,null,null,null,null,null,null,null,null,null,null,null,null,{"$f":"S226+1","v":6}]
[null,null,null,null,null,null,null,null,null,null,null,null,null,null,null,null,null,null,{"$f":"N_Heure","v":"Time"},{"$f":"N_Table","v":"Table"},{"$f":"N_Arbitre","v":"Referee"},{"$f":"N_Matches","v":"Matches"}]
[null,null,null,null,null,null,null,null,null,null,null,null,null,null,null,null,null,"#G6",null,null,null,{"$f":"G193","v":"A1"},null,"-",null,{"$f":"G196","v":"A4"},null,{"$f":"IF(MaxScore,MaxGoals(W234,Y234,MaxGoalsValue),IF(W234=\"\",\"\",W234))","v":0},{"$f":"IF(MaxScore,\"-\",IF(W234=\"\",\"\",\"-\"))","v":"-"},{"$f":"IF(MaxScore,MaxGoals(Y234,W234,MaxGoalsValue),IF(Y234=\"\",\"\",Y234))","v":0},{"$f":"IF(W234=\"\",\"\",IF(W234>Y234,V234,IF(W234=Y234,\"\",Z234)))","v":""},{"$f":"IF(W234=\"\",\"\",IF(W234=Y234,V234,\"\"))","v":""},{"$f":"IF(W234=\"\",\"\",IF(W234=Y234,Z234,\"\"))","v":""},{"$f":"IF(W234=\"\",\"\",IF(W234<Y234,V234,IF(W234=Y234,\"\",Z234)))","v":""},{"$f":"CONCATENATE(AE234,AH234)","v":""}]
[null,null,null,null,null,null,null,null,null,null,null,null,null,null,null,null,null,"#G6",null,null,null,{"$f":"G195","v":"A3"},null,"-",null,{"$f":"G194","v":"A2"},null,{"$f":"IF(MaxScore,MaxGoals(W235,Y235,MaxGoalsValue),IF(W235=\"\",\"\",W235))","v":0},{"$f":"IF(MaxScore,\"-\",IF(W235=\"\",\"\",\"-\"))","v":"-"},{"$f":"IF(MaxScore,MaxGoals(Y235,W235,MaxGoalsValue),IF(Y235=\"\",\"\",Y235))","v":0},{"$f":"IF(W235=\"\",\"\",IF(W235>Y235,V235,IF(W235=Y235,\"\",Z235)))","v":""},{"$f":"IF(W235=\"\",\"\",IF(W235=Y235,V235,\"\"))","v":""},{"$f":"IF(W235=\"\",\"\",IF(W235=Y235,Z235,\"\"))","v":""},{"$f":"IF(W235=\"\",\"\",IF(W235<Y235,V235,IF(W235=Y235,\"\",Z235)))","v":""},{"$f":"CONCATENATE(AE235,AH235)","v":""}]
[null,null,null,null,null,null,null,null,null,null,null,null,null,null,null,null,null,"#G6",null,null,null,{"$f":"G197","v":"A5"},null,"-",null,{"$f":"G201","v":"A9"},null,{"$f":"IF(MaxScore,MaxGoals(W236,Y236,MaxGoalsValue),IF(W236=\"\",\"\",W236))","v":0},{"$f":"IF(MaxScore,\"-\",IF(W236=\"\",\"\",\"-\"))","v":"-"},{"$f":"IF(MaxScore,MaxGoals(Y236,W236,MaxGoalsValue),IF(Y236=\"\",\"\",Y236))","v":0},{"$f":"IF(W236=\"\",\"\",IF(W236>Y236,V236,IF(W236=Y236,\"\",Z236)))","v":""},{"$f":"IF(W236=\"\",\"\",IF(W236=Y236,V236,\"\"))","v":""},{"$f":"IF(W236=\"\",\"\",IF(W236=Y236,Z236,\"\"))","v":""},{"$f":"IF(W236=\"\",\"\",IF(W236<Y236,V236,IF(W236=Y236,\"\",Z236)))","v":""},{"$f":"CONCATENATE(AE236,AH236)","v":""}]
[null,null,null,null,null,null,null,null,null,null,null,null,null,null,null,null,null,"#G6",null,null,null,{"$f":"G200","v":"A8"},null,"-",null,{"$f":"G198","v":"A6"},null,{"$f":"IF(MaxScore,MaxGoals(W237,Y237,MaxGoalsValue),IF(W237=\"\",\"\",W237))","v":0},{"$f":"IF(MaxScore,\"-\",IF(W237=\"\",\"\",\"-\"))","v":"-"},{"$f":"IF(MaxScore,MaxGoals(Y237,W237,MaxGoalsValue),IF(Y237=\"\",\"\",Y237))","v":0},{"$f":"IF(W237=\"\",\"\",IF(W237>Y237,V237,IF(W237=Y237,\"\",Z237)))","v":""},{"$f":"IF(W237=\"\",\"\",IF(W237=Y237,V237,\"\"))","v":""},{"$f":"IF(W237=\"\",\"\",IF(W237=Y237,Z237,\"\"))","v":""},{"$f":"IF(W237=\"\",\"\",IF(W237<Y237,V237,IF(W237=Y237,\"\",Z237)))","v":""},{"$f":"CONCATENATE(AE237,AH237)","v":""}]
[null,null,null,null,null,null,null,null,null,null,null,null,null,null,null,null,null,null,{"$f":"S232+1","v":7}]
[null,null,null,null,null,null,null,null,null,null,null,null,null,null,null,null,null,null,{"$f":"N_Heure","v":"Time"},{"$f":"N_Table","v":"Table"},{"$f":"N_Arbitre","v":"Referee"},{"$f":"N_Matches","v":"Matches"}]
[null,null,null,null,null,null,null,null,null,null,null,null,null,null,null,null,null,"#G7",null,null,null,{"$f":"G194","v":"A2"},null,"-",null,{"$f":"G197","v":"A5"},null,{"$f":"IF(MaxScore,MaxGoals(W240,Y240,MaxGoalsValue),IF(W240=\"\",\"\",W240))","v":0},{"$f":"IF(MaxScore,\"-\",IF(W240=\"\",\"\",\"-\"))","v":"-"},{"$f":"IF(MaxScore,MaxGoals(Y240,W240,MaxGoalsValue),IF(Y240=\"\",\"\",Y240))","v":0},{"$f":"IF(W240=\"\",\"\",IF(W240>Y240,V240,IF(W240=Y240,\"\",Z240)))","v":""},{"$f":"IF(W240=\"\",\"\",IF(W240=Y240,V240,\"\"))","v":""},{"$f":"IF(W240=\"\",\"\",IF(W240=Y240,Z240,\"\"))","v":""},{"$f":"IF(W240=\"\",\"\",IF(W240<Y240,V240,IF(W240=Y240,\"\",Z240)))","v":""},{"$f":"CONCATENATE(AE240,AH240)","v":""}]
[null,null,null,null,null,null,null,null,null,null,null,null,null,null,null,null,null,"#G7",null,null,null,{"$f":"G196","v":"A4"},null,"-",null,{"$f":"G195","v":"A3"},null,{"$f":"IF(MaxScore,MaxGoals(W241,Y241,MaxGoalsValue),IF(W241=\"\",\"\",W241))","v":0},{"$f":"IF(MaxScore,\"-\",IF(W241=\"\",\"\",\"-\"))","v":"-"},{"$f":"IF(MaxScore,MaxGoals(Y241,W241,MaxGoalsValue),IF(Y241=\"\",\"\",Y241))","v":0},{"$f":"IF(W241=\"\",\"\",IF(W241>Y241,V241,IF(W241=Y241,\"\",Z241)))","v":""},{"$f":"IF(W241=\"\",\"\",IF(W241=Y241,V241,\"\"))","v":""},{"$f":"IF(W241=\"\",\"\",IF(W241=Y241,Z241,\"\"))","v":""},{"$f":"IF(W241=\"\",\"\",IF(W241<Y241,V241,IF(W241=Y241,\"\",Z241)))","v":""},{"$f":"CONCATENATE(AE241,AH241)","v":""}]
[null,null,null,null,null,null,null,null,null,null,null,null,null,null,null,null,null,"#G7",null,null,null,{"$f":"G198","v":"A6"},null,"-",null,{"$f":"G193","v":"A1"},null,{"$f":"IF(MaxScore,MaxGoals(W242,Y242,MaxGoalsValue),IF(W242=\"\",\"\",W242))","v":0},{"$f":"IF(MaxScore,\"-\",IF(W242=\"\",\"\",\"-\"))","v":"-"},{"$f":"IF(MaxScore,MaxGoals(Y242,W242,MaxGoalsValue),IF(Y242=\"\",\"\",Y242))","v":0},{"$f":"IF(W242=\"\",\"\",IF(W242>Y242,V242,IF(W242=Y242,\"\",Z242)))","v":""},{"$f":"IF(W242=\"\",\"\",IF(W242=Y242,V242,\"\"))","v":""},{"$f":"IF(W242=\"\",\"\",IF(W242=Y242,Z242,\"\"))","v":""},{"$f":"IF(W242=\"\",\"\",IF(W242<Y242,V242,IF(W242=Y242,\"\",Z242)))","v":""},{"$f":"CONCATENATE(AE242,AH242)","v":""}]
[null,null,null,null,null,null,null,null,null,null,null,null,null,null,null,null,null,"#G7",null,null,null,{"$f":"G201","v":"A9"},null,"-",null,{"$f":"G199","v":"A7"},null,{"$f":"IF(MaxScore,MaxGoals(W243,Y243,MaxGoalsValue),IF(W243=\"\",\"\",W243))","v":0},{"$f":"IF(MaxScore,\"-\",IF(W243=\"\",\"\",\"-\"))","v":"-"},{"$f":"IF(MaxScore,MaxGoals(Y243,W243,MaxGoalsValue),IF(Y243=\"\",\"\",Y243))","v":0},{"$f":"IF(W243=\"\",\"\",IF(W243>Y243,V243,IF(W243=Y243,\"\",Z243)))","v":""},{"$f":"IF(W243=\"\",\"\",IF(W243=Y243,V243,\"\"))","v":""},{"$f":"IF(W243=\"\",\"\",IF(W243=Y243,Z243,\"\"))","v":""},{"$f":"IF(W243=\"\",\"\",IF(W243<Y243,V243,IF(W243=Y243,\"\",Z243)))","v":""},{"$f":"CONCATENATE(AE243,AH243)","v":""}]
[null,null,null,null,null,null,null,null,null,null,null,null,null,null,null,null,null,null,{"$f":"S238+1","v":8}]
[null,null,null,null,null,null,null,null,null,null,null,null,null,null,null,null,null,null,{"$f":"N_Heure","v":"Time"},{"$f":"N_Table","v":"Table"},{"$f":"N_Arbitre","v":"Referee"},{"$f":"N_Matches","v":"Matches"}]
[null,null,null,null,null,null,null,null,null,null,null,null,null,null,null,null,null,"#G8",null,null,null,{"$f":"G195","v":"A3"},null,"-",null,{"$f":"G198","v":"A6"},null,{"$f":"IF(MaxScore,MaxGoals(W246,Y246,MaxGoalsValue),IF(W246=\"\",\"\",W246))","v":0},{"$f":"IF(MaxScore,\"-\",IF(W246=\"\",\"\",\"-\"))","v":"-"},{"$f":"IF(MaxScore,MaxGoals(Y246,W246,MaxGoalsValue),IF(Y246=\"\",\"\",Y246))","v":0},{"$f":"IF(W246=\"\",\"\",IF(W246>Y246,V246,IF(W246=Y246,\"\",Z246)))","v":""},{"$f":"IF(W246=\"\",\"\",IF(W246=Y246,V246,\"\"))","v":""},{"$f":"IF(W246=\"\",\"\",IF(W246=Y246,Z246,\"\"))","v":""},{"$f":"IF(W246=\"\",\"\",IF(W246<Y246,V246,IF(W246=Y246,\"\",Z246)))","v":""},{"$f":"CONCATENATE(AE246,AH246)","v":""}]
[null,null,null,null,null,null,null,null,null,null,null,null,null,null,null,null,null,"#G8",null,null,null,{"$f":"G197","v":"A5"},null,"-",null,{"$f":"G196","v":"A4"},null,{"$f":"IF(MaxScore,MaxGoals(W247,Y247,MaxGoalsValue),IF(W247=\"\",\"\",W247))","v":0},{"$f":"IF(MaxScore,\"-\",IF(W247=\"\",\"\",\"-\"))","v":"-"},{"$f":"IF(MaxScore,MaxGoals(Y247,W247,MaxGoalsValue),IF(Y247=\"\",\"\",Y247))","v":0},{"$f":"IF(W247=\"\",\"\",IF(W247>Y247,V247,IF(W247=Y247,\"\",Z247)))","v":""},{"$f":"IF(W247=\"\",\"\",IF(W247=Y247,V247,\"\"))","v":""},{"$f":"IF(W247=\"\",\"\",IF(W247=Y247,Z247,\"\"))","v":""},{"$f":"IF(W247=\"\",\"\",IF(W247<Y247,V247,IF(W247=Y247,\"\",Z247)))","v":""},{"$f":"CONCATENATE(AE247,AH247)","v":""}]
[null,null,null,null,null,null,null,null,null,null,null,null,null,null,null,null,null,"#G8",null,null,null,{"$f":"G199","v":"A7"},null,"-",null,{"$f":"G194","v":"A2"},null,{"$f":"IF(MaxScore,MaxGoals(W248,Y248,MaxGoalsValue),IF(W248=\"\",\"\",W248))","v":0},{"$f":"IF(MaxScore,\"-\",IF(W248=\"\",\"\",\"-\"))","v":"-"},{"$f":"IF(MaxScore,MaxGoals(Y248,W248,MaxGoalsValue),IF(Y248=\"\",\"\",Y248))","v":0},{"$f":"IF(W248=\"\",\"\",IF(W248>Y248,V248,IF(W248=Y248,\"\",Z248)))","v":""},{"$f":"IF(W248=\"\",\"\",IF(W248=Y248,V248,\"\"))","v":""},{"$f":"IF(W248=\"\",\"\",IF(W248=Y248,Z248,\"\"))","v":""},{"$f":"IF(W248=\"\",\"\",IF(W248<Y248,V248,IF(W248=Y248,\"\",Z248)))","v":""},{"$f":"CONCATENATE(AE248,AH248)","v":""}]
[null,null,null,null,null,null,null,null,null,null,null,null,null,null,null,null,null,"#G8",null,null,null,{"$f":"G200","v":"A8"},null,"-",null,{"$f":"G193","v":"A1"},null,{"$f":"IF(MaxScore,MaxGoals(W249,Y249,MaxGoalsValue),IF(W249=\"\",\"\",W249))","v":0},{"$f":"IF(MaxScore,\"-\",IF(W249=\"\",\"\",\"-\"))","v":"-"},{"$f":"IF(MaxScore,MaxGoals(Y249,W249,MaxGoalsValue),IF(Y249=\"\",\"\",Y249))","v":0},{"$f":"IF(W249=\"\",\"\",IF(W249>Y249,V249,IF(W249=Y249,\"\",Z249)))","v":""},{"$f":"IF(W249=\"\",\"\",IF(W249=Y249,V249,\"\"))","v":""},{"$f":"IF(W249=\"\",\"\",IF(W249=Y249,Z249,\"\"))","v":""},{"$f":"IF(W249=\"\",\"\",IF(W249<Y249,V249,IF(W249=Y249,\"\",Z249)))","v":""},{"$f":"CONCATENATE(AE249,AH249)","v":""}]
[null,null,null,null,null,null,null,null,null,null,null,null,null,null,null,null,null,null,{"$f":"S244+1","v":9}]
[null,null,null,null,null,null,null,null,null,null,null,null,null,null,null,null,null,null,{"$f":"N_Heure","v":"Time"},{"$f":"N_Table","v":"Table"},{"$f":"N_Arbitre","v":"Referee"},{"$f":"N_Matches","v":"Matches"}]
[null,null,null,null,null,null,null,null,null,null,null,null,null,null,null,null,null,"#G9",null,null,null,{"$f":"G195","v":"A3"},null,"-",null,{"$f":"G200","v":"A8"},null,{"$f":"IF(MaxScore,MaxGoals(W252,Y252,MaxGoalsValue),IF(W252=\"\",\"\",W252))","v":0},{"$f":"IF(MaxScore,\"-\",IF(W252=\"\",\"\",\"-\"))","v":"-"},{"$f":"IF(MaxScore,MaxGoals(Y252,W252,MaxGoalsValue),IF(Y252=\"\",\"\",Y252))","v":0},{"$f":"IF(W252=\"\",\"\",IF(W252>Y252,V252,IF(W252=Y252,\"\",Z252)))","v":""},{"$f":"IF(W252=\"\",\"\",IF(W252=Y252,V252,\"\"))","v":""},{"$f":"IF(W252=\"\",\"\",IF(W252=Y252,Z252,\"\"))","v":""},{"$f":"IF(W252=\"\",\"\",IF(W252<Y252,V252,IF(W252=Y252,\"\",Z252)))","v":""},{"$f":"CONCATENATE(AE252,AH252)","v":""}]
[null,null,null,null,null,null,null,null,null,null,null,null,null,null,null,null,null,"#G9",null,null,null,{"$f":"G196","v":"A4"},null,"-",null,{"$f":"G199","v":"A7"},null,{"$f":"IF(MaxScore,MaxGoals(W253,Y253,MaxGoalsValue),IF(W253=\"\",\"\",W253))","v":0},{"$f":"IF(MaxScore,\"-\",IF(W253=\"\",\"\",\"-\"))","v":"-"},{"$f":"IF(MaxScore,MaxGoals(Y253,W253,MaxGoalsValue),IF(Y253=\"\",\"\",Y253))","v":0},{"$f":"IF(W253=\"\",\"\",IF(W253>Y253,V253,IF(W253=Y253,\"\",Z253)))","v":""},{"$f":"IF(W253=\"\",\"\",IF(W253=Y253,V253,\"\"))","v":""},{"$f":"IF(W253=\"\",\"\",IF(W253=Y253,Z253,\"\"))","v":""},{"$f":"IF(W253=\"\",\"\",IF(W253<Y253,V253,IF(W253=Y253,\"\",Z253)))","v":""},{"$f":"CONCATENATE(AE253,AH253)","v":""}]
[null,null,null,null,null,null,null,null,null,null,null,null,null,null,null,null,null,"#G9",null,null,null,{"$f":"G198","v":"A6"},null,"-",null,{"$f":"G197","v":"A5"},null,{"$f":"IF(MaxScore,MaxGoals(W254,Y254,MaxGoalsValue),IF(W254=\"\",\"\",W254))","v":0},{"$f":"IF(MaxScore,\"-\",IF(W254=\"\",\"\",\"-\"))","v":"-"},{"$f":"IF(MaxScore,MaxGoals(Y254,W254,MaxGoalsValue),IF(Y254=\"\",\"\",Y254))","v":0},{"$f":"IF(W254=\"\",\"\",IF(W254>Y254,V254,IF(W254=Y254,\"\",Z254)))","v":""},{"$f":"IF(W254=\"\",\"\",IF(W254=Y254,V254,\"\"))","v":""},{"$f":"IF(W254=\"\",\"\",IF(W254=Y254,Z254,\"\"))","v":""},{"$f":"IF(W254=\"\",\"\",IF(W254<Y254,V254,IF(W254=Y254,\"\",Z254)))","v":""},{"$f":"CONCATENATE(AE254,AH254)","v":""}]
[null,null,null,null,null,null,null,null,null,null,null,null,null,null,null,null,null,"#G9",null,null,null,{"$f":"G201","v":"A9"},null,"-",null,{"$f":"G194","v":"A2"},null,{"$f":"IF(MaxScore,MaxGoals(W255,Y255,MaxGoalsValue),IF(W255=\"\",\"\",W255))","v":0},{"$f":"IF(MaxScore,\"-\",IF(W255=\"\",\"\",\"-\"))","v":"-"},{"$f":"IF(MaxScore,MaxGoals(Y255,W255,MaxGoalsValue),IF(Y255=\"\",\"\",Y255))","v":0},{"$f":"IF(W255=\"\",\"\",IF(W255>Y255,V255,IF(W255=Y255,\"\",Z255)))","v":""},{"$f":"IF(W255=\"\",\"\",IF(W255=Y255,V255,\"\"))","v":""},{"$f":"IF(W255=\"\",\"\",IF(W255=Y255,Z255,\"\"))","v":""},{"$f":"IF(W255=\"\",\"\",IF(W255<Y255,V255,IF(W255=Y255,\"\",Z255)))","v":""},{"$f":"CONCATENATE(AE255,AH255)","v":""}]
[]
[null,{"$f":"N_Group_10","v":"Group of 10"},null,null,null,null,null,null,null,null,null,null,null,null,null,null,null,null,null,null,null,null,null,null,null,null,null,null,null,null,null,null,null,null,null,null,null,null,{"$f":"B257","v":"Group of 10"}]
[]
[null,{"$f":"N_Tirage","v":"Draw"},"Cla.","Cla1","Part","Cla2",{"$f":"N_Joueurs","v":"Players"},{"$f":"N_RankPoints","v":"Rk Pt."},{"$f":"N_Diff_Part","v":"Part-Diff"},"Pts","J","G","N","P","BP","BC","Diff",null,null,null,null,null,null,null,null,null,null,null,null,null,{"$f":"N_G","v":"W"},{"$f":"N_N","v":"D"},{"$f":"N_N","v":"D"},{"$f":"N_P","v":"L"},"CONCAT","Ref Group",{"$f":"IF(COUNTA(W272:W332)=0,\"\",\"OK\")","v":""},null,null,{"$f":"N_Cla.","v":"Rk"},{"$f":"N_Joueurs","v":"Players"},{"$f":"N_Pts","v":"Pts"},{"$f":"N_J","v":"Pld"},{"$f":"N_G","v":"W"},{"$f":"N_N","v":"D"},{"$f":"N_P","v":"L"},{"$f":"N_BP","v":"F"},{"$f":"N_BC","v":"A"},{"$f":"N_Diff.","v":"SO"}]
[null,1,{"$f":"IF(AK259=\"\",\"\",RANK(F260,F260:F269)*1000+ROW())","v":""},{"$f":"IF(L260=\"\",\"\",CritClassInd1_Points*J260+CritClassInd1_Matches*L260+CritClassInd1_Attaque*O260+CritClassInd1_DiffButs*Q260)","v":""},{"$f":"IF(L260=\"\",\"\",Nb_Diff_Part(D260,D260:D269,G260,G260:G269,AI272:AI332)*CritClassInd_DiffPart+Nb_Goal_Part(D260,D260:D269,G260,G260:G269,V272:Z332)*CritClassInd_GoalPart+Nb_Score_Part(D260,D260:D269,G260,G260:G269,V272:Z332)*CritClassInd_ScorePart)","v":""},{"$f":"IF(L260=\"\",\"\",D260+E260+CritClassInd2_Points*J260+CritClassInd2_Matches*L260+CritClassInd2_Attaque*O260+CritClassInd2_DiffButs*Q260+CritClassInd_Ranking*H260+I260)","v":""},"A1",{"$f":"GMFTRANKINGPOINTS(G260,Particular_Category)","v":0},null,{"$f":"IF(AK259=\"\",\"\",(L260*Points_Victoire)+M260*Points_Null)","v":""},{"$f":"IF(L260=\"\",\"\",SUM(L260:N260))","v":""},{"$f":"IF(AK259=\"\",\"\",COUNTIF(AE272:AE332,G260))","v":""},{"$f":"IF(AK259=\"\",\"\",COUNTIF(AF272:AG332,G260))","v":""},{"$f":"IF(AK259=\"\",\"\",COUNTIF(AH272:AH332,G260))","v":""},{"$f":"IF(AK259=\"\",\"\",SUMIF(V272:V332,G260,AB272:AB332)+SUMIF(Z272:Z332,G260,AD272:AD332))","v":""},{"$f":"IF(AK259=\"\",\"\",SUMIF(V272:V332,G260,AD272:AD332)+SUMIF(Z272:Z332,G260,AB272:AB332))","v":""},{"$f":"IF(AK259=\"\",\"\",O260-P260)","v":""},null,null,null,null,null,null,null,null,null,null,null,null,null,null,null,null,null,null,null,{"$f":"IF(AK259=\"\",\"\",SMALL(C260:C269,1))","v":""},null,null,{"$f":"IF(AK259=\"\",\"\",INT(AK260/1000))","v":""},{"$f":"IF(AK259=\"\",\"\",VLOOKUP(AK260,C260:Q269,5,FALSE))","v":""},{"$f":"VLOOKUP(AK260,C260:Q269,8,FALSE)","v":""},{"$f":"VLOOKUP(AK260,C260:Q269,9,FALSE)","v":""},{"$f":"VLOOKUP(AK260,C260:Q269,10,FALSE)","v":""},{"$f":"VLOOKUP(AK260,C260:Q269,11,FALSE)","v":""},{"$f":"VLOOKUP(AK260,C260:Q269,12,FALSE)","v":""},{"$f":"VLOOKUP(AK260,C260:Q269,13,FALSE)","v":""},{"$f":"VLOOKUP(AK260,C260:Q269,14,FALSE)","v":""},{"$f":"VLOOKUP(AK260,C260:Q269,15,FALSE)","v":""}]
[null,2,{"$f":"IF(AK259=\"\",\"\",RANK(F261,F260:F269)*1000+ROW())","v":""},{"$f":"IF(L261=\"\",\"\",CritClassInd1_Points*J261+CritClassInd1_Matches*L261+CritClassInd1_Attaque*O261+CritClassInd1_DiffButs*Q261)","v":""},{"$f":"IF(L261=\"\",\"\",Nb_Diff_Part(D261,D260:D269,G261,G260:G269,AI272:AI332)*CritClassInd_DiffPart+Nb_Goal_Part(D261,D260:D269,G261,G260:G269,V272:Z332)*CritClassInd_GoalPart+Nb_Score_Part(D261,D260:D269,G261,G260:G269,V272:Z332)*CritClassInd_ScorePart)","v":""},{"$f":"IF(L261=\"\",\"\",D261+E261+CritClassInd2_Points*J261+CritClassInd2_Matches*L261+CritClassInd2_Attaque*O261+CritClassInd2_DiffButs*Q261+CritClassInd_Ranking*H261+I261)","v":""},"A2",0,null,{"$f":"IF(AK259=\"\",\"\",(L261*Points_Victoire)+M261*Points_Null)","v":""},"",{"$f":"IF(AK259=\"\",\"\",COUNTIF(AE272:AE332,G261))","v":""},{"$f":"IF(AK259=\"\",\"\",COUNTIF(AF272:AG332,G261))","v":""},{"$f":"IF(AK259=\"\",\"\",COUNTIF(AH272:AH332,G261))","v":""},{"$f":"IF(AK259=\"\",\"\",SUMIF(V272:V332,G261,AB272:AB332)+SUMIF(Z272:Z332,G261,AD272:AD332))","v":""},{"$f":"IF(AK259=\"\",\"\",SUMIF(V272:V332,G261,AD272:AD332)+SUMIF(Z272:Z332,G261,AB272:AB332))","v":""},{"$f":"IF(AK259=\"\",\"\",O261-P261)","v":""},null,null,null,null,null,null,null,null,null,null,null,null,null,null,null,null,null,null,null,{"$f":"IF(AK259=\"\",\"\",SMALL(C260:C269,2))","v":""},null,null,{"$f":"IF(AK259=\"\",\"\",INT(AK261/1000))","v":""},{"$f":"IF(AK259=\"\",\"\",VLOOKUP(AK261,C260:Q269,5,FALSE))","v":""},{"$f":"VLOOKUP(AK261,C260:Q269,8,FALSE)","v":""},{"$f":"VLOOKUP(AK261,C260:Q269,9,FALSE)","v":""},{"$f":"VLOOKUP(AK261,C260:Q269,10,FALSE)","v":""},{"$f":"VLOOKUP(AK261,C260:Q269,11,FALSE)","v":""},{"$f":"VLOOKUP(AK261,C260:Q269,12,FALSE)","v":""},{"$f":"VLOOKUP(AK261,C260:Q269,13,FALSE)","v":""},{"$f":"VLOOKUP(AK261,C260:Q269,14,FALSE)","v":""},{"$f":"VLOOKUP(AK261,C260:Q269,15,FALSE)","v":""}]
[null,3,{"$f":"IF(AK259=\"\",\"\",RANK(F262,F260:F269)*1000+ROW())","v":""},"",{"$f":"IF(L262=\"\",\"\",Nb_Diff_Part(D262,D260:D269,G262,G260:G269,AI272:AI332)*CritClassInd_DiffPart+Nb_Goal_Part(D262,D260:D269,G262,G260:G269,V272:Z332)*CritClassInd_GoalPart+Nb_Score_Part(D262,D260:D269,G262,G260:G269,V272:Z332)*CritClassInd_ScorePart)","v":""},"","A3",0,null,{"$f":"IF(AK259=\"\",\"\",(L262*Points_Victoire)+M262*Points_Null)","v":""},"",{"$f":"IF(AK259=\"\",\"\",COUNTIF(AE272:AE332,G262))","v":""},{"$f":"IF(AK259=\"\",\"\",COUNTIF(AF272:AG332,G262))","v":""},{"$f":"IF(AK259=\"\",\"\",COUNTIF(AH272:AH332,G262))","v":""},{"$f":"IF(AK259=\"\",\"\",SUMIF(V272:V332,G262,AB272:AB332)+SUMIF(Z272:Z332,G262,AD272:AD332))","v":""},{"$f":"IF(AK259=\"\",\"\",SUMIF(V272:V332,G262,AD272:AD332)+SUMIF(Z272:Z332,G262,AB272:AB332))","v":""},{"$f":"IF(AK259=\"\",\"\",O262-P262)","v":""},null,null,null,null,null,null,null,null,null,null,null,null,null,null,null,null,null,null,null,{"$f":"IF(AK259=\"\",\"\",SMALL(C260:C269,3))","v":""},null,null,{"$f":"IF(AK259=\"\",\"\",INT(AK262/1000))","v":""},{"$f":"IF(AK259=\"\",\"\",VLOOKUP(AK262,C260:Q269,5,FALSE))","v":""},{"$f":"VLOOKUP(AK262,C260:Q269,8,FALSE)","v":""},{"$f":"VLOOKUP(AK262,C260:Q269,9,FALSE)","v":""},{"$f":"VLOOKUP(AK262,C260:Q269,10,FALSE)","v":""},{"$f":"VLOOKUP(AK262,C260:Q269,11,FALSE)","v":""},{"$f":"VLOOKUP(AK262,C260:Q269,12,FALSE)","v":""},{"$f":"VLOOKUP(AK262,C260:Q269,13,FALSE)","v":""},{"$f":"VLOOKUP(AK262,C260:Q269,14,FALSE)","v":""},{"$f":"VLOOKUP(AK262,C260:Q269,15,FALSE)","v":""}]
[null,4,{"$f":"IF(AK259=\"\",\"\",RANK(F263,F260:F269)*1000+ROW())","v":""},"",{"$f":"IF(L263=\"\",\"\",Nb_Diff_Part(D263,D260:D269,G263,G260:G269,AI272:AI332)*CritClassInd_DiffPart+Nb_Goal_Part(D263,D260:D269,G263,G260:G269,V272:Z332)*CritClassInd_GoalPart+Nb_Score_Part(D263,D260:D269,G263,G260:G269,V272:Z332)*CritClassInd_ScorePart)","v":""},"","A4",0,null,{"$f":"IF(AK259=\"\",\"\",(L263*Points_Victoire)+M263*Points_Null)","v":""},"",{"$f":"IF(AK259=\"\",\"\",COUNTIF(AE272:AE332,G263))","v":""},{"$f":"IF(AK259=\"\",\"\",COUNTIF(AF272:AG332,G263))","v":""},{"$f":"IF(AK259=\"\",\"\",COUNTIF(AH272:AH332,G263))","v":""},{"$f":"IF(AK259=\"\",\"\",SUMIF(V272:V332,G263,AB272:AB332)+SUMIF(Z272:Z332,G263,AD272:AD332))","v":""},{"$f":"IF(AK259=\"\",\"\",SUMIF(V272:V332,G263,AD272:AD332)+SUMIF(Z272:Z332,G263,AB272:AB332))","v":""},{"$f":"IF(AK259=\"\",\"\",O263-P263)","v":""},null,null,null,null,null,null,null,null,null,null,null,null,null,null,null,null,null,null,null,{"$f":"IF(AK259=\"\",\"\",SMALL(C260:C269,4))","v":""},null,null,{"$f":"IF(AK259=\"\",\"\",INT(AK263/1000))","v":""},{"$f":"IF(AK259=\"\",\"\",VLOOKUP(AK263,C260:Q269,5,FALSE))","v":""},{"$f":"VLOOKUP(AK263,C260:Q269,8,FALSE)","v":""},{"$f":"VLOOKUP(AK263,C260:Q269,9,FALSE)","v":""},{"$f":"VLOOKUP(AK263,C260:Q269,10,FALSE)","v":""},{"$f":"VLOOKUP(AK263,C260:Q269,11,FALSE)","v":""},{"$f":"VLOOKUP(AK263,C260:Q269,12,FALSE)","v":""},{"$f":"VLOOKUP(AK263,C260:Q269,13,FALSE)","v":""},{"$f":"VLOOKUP(AK263,C260:Q269,14,FALSE)","v":""},{"$f":"VLOOKUP(AK263,C260:Q269,15,FALSE)","v":""}]
[null,5,{"$f":"IF(AK259=\"\",\"\",RANK(F264,F260:F269)*1000+ROW())","v":""},"",{"$f":"IF(L264=\"\",\"\",Nb_Diff_Part(D264,D260:D269,G264,G260:G269,AI272:AI332)*CritClassInd_DiffPart+Nb_Goal_Part(D264,D260:D269,G264,G260:G269,V272:Z332)*CritClassInd_GoalPart+Nb_Score_Part(D264,D260:D269,G264,G260:G269,V272:Z332)*CritClassInd_ScorePart)","v":""},"","A5",0,null,{"$f":"IF(AK259=\"\",\"\",(L264*Points_Victoire)+M264*Points_Null)","v":""},"",{"$f":"IF(AK259=\"\",\"\",COUNTIF(AE272:AE332,G264))","v":""},{"$f":"IF(AK259=\"\",\"\",COUNTIF(AF272:AG332,G264))","v":""},{"$f":"IF(AK259=\"\",\"\",COUNTIF(AH272:AH332,G264))","v":""},{"$f":"IF(AK259=\"\",\"\",SUMIF(V272:V332,G264,AB272:AB332)+SUMIF(Z272:Z332,G264,AD272:AD332))","v":""},{"$f":"IF(AK259=\"\",\"\",SUMIF(V272:V332,G264,AD272:AD332)+SUMIF(Z272:Z332,G264,AB272:AB332))","v":""},{"$f":"IF(AK259=\"\",\"\",O264-P264)","v":""},null,null,null,null,null,null,null,null,null,null,null,null,null,null,null,null,null,null,null,{"$f":"IF(AK259=\"\",\"\",SMALL(C260:C269,5))","v":""},null,null,{"$f":"IF(AK259=\"\",\"\",INT(AK264/1000))","v":""},{"$f":"IF(AK259=\"\",\"\",VLOOKUP(AK264,C260:Q269,5,FALSE))","v":""},{"$f":"VLOOKUP(AK264,C260:Q269,8,FALSE)","v":""},{"$f":"VLOOKUP(AK264,C260:Q269,9,FALSE)","v":""},{"$f":"VLOOKUP(AK264,C260:Q269,10,FALSE)","v":""},{"$f":"VLOOKUP(AK264,C260:Q269,11,FALSE)","v":""},{"$f":"VLOOKUP(AK264,C260:Q269,12,FALSE)","v":""},{"$f":"VLOOKUP(AK264,C260:Q269,13,FALSE)","v":""},{"$f":"VLOOKUP(AK264,C260:Q269,14,FALSE)","v":""},{"$f":"VLOOKUP(AK264,C260:Q269,15,FALSE)","v":""}]
[null,6,{"$f":"IF(AK259=\"\",\"\",RANK(F265,F260:F269)*1000+ROW())","v":""},"",{"$f":"IF(L265=\"\",\"\",Nb_Diff_Part(D265,D260:D269,G265,G260:G269,AI272:AI332)*CritClassInd_DiffPart+Nb_Goal_Part(D265,D260:D269,G265,G260:G269,V272:Z332)*CritClassInd_GoalPart+Nb_Score_Part(D265,D260:D269,G265,G260:G269,V272:Z332)*CritClassInd_ScorePart)","v":""},"","A6",0,null,{"$f":"IF(AK259=\"\",\"\",(L265*Points_Victoire)+M265*Points_Null)","v":""},"",{"$f":"IF(AK259=\"\",\"\",COUNTIF(AE272:AE332,G265))","v":""},{"$f":"IF(AK259=\"\",\"\",COUNTIF(AF272:AG332,G265))","v":""},{"$f":"IF(AK259=\"\",\"\",COUNTIF(AH272:AH332,G265))","v":""},{"$f":"IF(AK259=\"\",\"\",SUMIF(V272:V332,G265,AB272:AB332)+SUMIF(Z272:Z332,G265,AD272:AD332))","v":""},{"$f":"IF(AK259=\"\",\"\",SUMIF(V272:V332,G265,AD272:AD332)+SUMIF(Z272:Z332,G265,AB272:AB332))","v":""},{"$f":"IF(AK259=\"\",\"\",O265-P265)","v":""},null,null,null,null,null,null,null,null,null,null,null,null,null,null,null,null,null,null,null,{"$f":"IF(AK259=\"\",\"\",SMALL(C260:C269,6))","v":""},null,null,{"$f":"IF(AK259=\"\",\"\",INT(AK265/1000))","v":""},{"$f":"IF(AK259=\"\",\"\",VLOOKUP(AK265,C260:Q269,5,FALSE))","v":""},{"$f":"VLOOKUP(AK265,C260:Q269,8,FALSE)","v":""},{"$f":"VLOOKUP(AK265,C260:Q269,9,FALSE)","v":""},{"$f":"VLOOKUP(AK265,C260:Q269,10,FALSE)","v":""},{"$f":"VLOOKUP(AK265,C260:Q269,11,FALSE)","v":""},{"$f":"VLOOKUP(AK265,C260:Q269,12,FALSE)","v":""},{"$f":"VLOOKUP(AK265,C260:Q269,13,FALSE)","v":""},{"$f":"VLOOKUP(AK265,C260:Q269,14,FALSE)","v":""},{"$f":"VLOOKUP(AK265,C260:Q269,15,FALSE)","v":""}]
[null,7,{"$f":"IF(AK259=\"\",\"\",RANK(F266,F260:F269)*1000+ROW())","v":""},"",{"$f":"IF(L266=\"\",\"\",Nb_Diff_Part(D266,D260:D269,G266,G260:G269,AI272:AI332)*CritClassInd_DiffPart+Nb_Goal_Part(D266,D260:D269,G266,G260:G269,V272:Z332)*CritClassInd_GoalPart+Nb_Score_Part(D266,D260:D269,G266,G260:G269,V272:Z332)*CritClassInd_ScorePart)","v":""},"","A7",0,null,{"$f":"IF(AK259=\"\",\"\",(L266*Points_Victoire)+M266*Points_Null)","v":""},"",{"$f":"IF(AK259=\"\",\"\",COUNTIF(AE272:AE332,G266))","v":""},{"$f":"IF(AK259=\"\",\"\",COUNTIF(AF272:AG332,G266))","v":""},{"$f":"IF(AK259=\"\",\"\",COUNTIF(AH272:AH332,G266))","v":""},{"$f":"IF(AK259=\"\",\"\",SUMIF(V272:V332,G266,AB272:AB332)+SUMIF(Z272:Z332,G266,AD272:AD332))","v":""},{"$f":"IF(AK259=\"\",\"\",SUMIF(V272:V332,G266,AD272:AD332)+SUMIF(Z272:Z332,G266,AB272:AB332))","v":""},{"$f":"IF(AK259=\"\",\"\",O266-P266)","v":""},null,null,null,null,null,null,null,null,null,null,null,null,null,null,null,null,null,null,null,{"$f":"IF(AK259=\"\",\"\",SMALL(C260:C269,7))","v":""},null,null,{"$f":"IF(AK259=\"\",\"\",INT(AK266/1000))","v":""},{"$f":"IF(AK259=\"\",\"\",VLOOKUP(AK266,C260:Q269,5,FALSE))","v":""},{"$f":"VLOOKUP(AK266,C260:Q269,8,FALSE)","v":""},{"$f":"VLOOKUP(AK266,C260:Q269,9,FALSE)","v":""},{"$f":"VLOOKUP(AK266,C260:Q269,10,FALSE)","v":""},{"$f":"VLOOKUP(AK266,C260:Q269,11,FALSE)","v":""},{"$f":"VLOOKUP(AK266,C260:Q269,12,FALSE)","v":""},{"$f":"VLOOKUP(AK266,C260:Q269,13,FALSE)","v":""},{"$f":"VLOOKUP(AK266,C260:Q269,14,FALSE)","v":""},{"$f":"VLOOKUP(AK266,C260:Q269,15,FALSE)","v":""}]
[null,8,{"$f":"IF(AK259=\"\",\"\",RANK(F267,F260:F269)*1000+ROW())","v":""},"",{"$f":"IF(L267=\"\",\"\",Nb_Diff_Part(D267,D260:D269,G267,G260:G269,AI272:AI332)*CritClassInd_DiffPart+Nb_Goal_Part(D267,D260:D269,G267,G260:G269,V272:Z332)*CritClassInd_GoalPart+Nb_Score_Part(D267,D260:D269,G267,G260:G269,V272:Z332)*CritClassInd_ScorePart)","v":""},"","A8",0,null,{"$f":"IF(AK259=\"\",\"\",(L267*Points_Victoire)+M267*Points_Null)","v":""},"",{"$f":"IF(AK259=\"\",\"\",COUNTIF(AE272:AE332,G267))","v":""},{"$f":"IF(AK259=\"\",\"\",COUNTIF(AF272:AG332,G267))","v":""},{"$f":"IF(AK259=\"\",\"\",COUNTIF(AH272:AH332,G267))","v":""},{"$f":"IF(AK259=\"\",\"\",SUMIF(V272:V332,G267,AB272:AB332)+SUMIF(Z272:Z332,G267,AD272:AD332))","v":""},{"$f":"IF(AK259=\"\",\"\",SUMIF(V272:V332,G267,AD272:AD332)+SUMIF(Z272:Z332,G267,AB272:AB332))","v":""},{"$f":"IF(AK259=\"\",\"\",O267-P267)","v":""},null,null,null,null,null,null,null,null,null,null,null,null,null,null,null,null,null,null,null,{"$f":"IF(AK259=\"\",\"\",SMALL(C260:C269,8))","v":""},null,null,{"$f":"IF(AK259=\"\",\"\",INT(AK267/1000))","v":""},{"$f":"IF(AK259=\"\",\"\",VLOOKUP(AK267,C260:Q269,5,FALSE))","v":""},{"$f":"VLOOKUP(AK267,C260:Q269,8,FALSE)","v":""},{"$f":"VLOOKUP(AK267,C260:Q269,9,FALSE)","v":""},{"$f":"VLOOKUP(AK267,C260:Q269,10,FALSE)","v":""},{"$f":"VLOOKUP(AK267,C260:Q269,11,FALSE)","v":""},{"$f":"VLOOKUP(AK267,C260:Q269,12,FALSE)","v":""},{"$f":"VLOOKUP(AK267,C260:Q269,13,FALSE)","v":""},{"$f":"VLOOKUP(AK267,C260:Q269,14,FALSE)","v":""},{"$f":"VLOOKUP(AK267,C260:Q269,15,FALSE)","v":""}]
[null,9,{"$f":"IF(AK259=\"\",\"\",RANK(F268,F260:F269)*1000+ROW())","v":""},"",{"$f":"IF(L268=\"\",\"\",Nb_Diff_Part(D268,D260:D269,G268,G260:G269,AI272:AI332)*CritClassInd_DiffPart+Nb_Goal_Part(D268,D260:D269,G268,G260:G269,V272:Z332)*CritClassInd_GoalPart+Nb_Score_Part(D268,D260:D269,G268,G260:G269,V272:Z332)*CritClassInd_ScorePart)","v":""},"","A9",0,null,{"$f":"IF(AK259=\"\",\"\",(L268*Points_Victoire)+M268*Points_Null)","v":""},"",{"$f":"IF(AK259=\"\",\"\",COUNTIF(AE272:AE332,G268))","v":""},{"$f":"IF(AK259=\"\",\"\",COUNTIF(AF272:AG332,G268))","v":""},{"$f":"IF(AK259=\"\",\"\",COUNTIF(AH272:AH332,G268))","v":""},{"$f":"IF(AK259=\"\",\"\",SUMIF(V272:V332,G268,AB272:AB332)+SUMIF(Z272:Z332,G268,AD272:AD332))","v":""},{"$f":"IF(AK259=\"\",\"\",SUMIF(V272:V332,G268,AD272:AD332)+SUMIF(Z272:Z332,G268,AB272:AB332))","v":""},{"$f":"IF(AK259=\"\",\"\",O268-P268)","v":""},null,null,null,null,null,null,null,null,null,null,null,null,null,null,null,null,null,null,null,{"$f":"IF(AK259=\"\",\"\",SMALL(C260:C269,9))","v":""},null,null,{"$f":"IF(AK259=\"\",\"\",INT(AK268/1000))","v":""},{"$f":"IF(AK259=\"\",\"\",VLOOKUP(AK268,C260:Q269,5,FALSE))","v":""},{"$f":"VLOOKUP(AK268,C260:Q269,8,FALSE)","v":""},{"$f":"VLOOKUP(AK268,C260:Q269,9,FALSE)","v":""},{"$f":"VLOOKUP(AK268,C260:Q269,10,FALSE)","v":""},{"$f":"VLOOKUP(AK268,C260:Q269,11,FALSE)","v":""},{"$f":"VLOOKUP(AK268,C260:Q269,12,FALSE)","v":""},{"$f":"VLOOKUP(AK268,C260:Q269,13,FALSE)","v":""},{"$f":"VLOOKUP(AK268,C260:Q269,14,FALSE)","v":""},{"$f":"VLOOKUP(AK268,C260:Q269,15,FALSE)","v":""}]
[null,10,{"$f":"IF(AK259=\"\",\"\",RANK(F269,F260:F269)*1000+ROW())","v":""},"",{"$f":"IF(L269=\"\",\"\",Nb_Diff_Part(D269,D260:D269,G269,G260:G269,AI272:AI332)*CritClassInd_DiffPart+Nb_Goal_Part(D269,D260:D269,G269,G260:G269,V272:Z332)*CritClassInd_GoalPart+Nb_Score_Part(D269,D260:D269,G269,G260:G269,V272:Z332)*CritClassInd_ScorePart)","v":""},"","A10",0,null,{"$f":"IF(AK259=\"\",\"\",(L269*Points_Victoire)+M269*Points_Null)","v":""},"",{"$f":"IF(AK259=\"\",\"\",COUNTIF(AE272:AE332,G269))","v":""},{"$f":"IF(AK259=\"\",\"\",COUNTIF(AF272:AG332,G269))","v":""},{"$f":"IF(AK259=\"\",\"\",COUNTIF(AH272:AH332,G269))","v":""},{"$f":"IF(AK259=\"\",\"\",SUMIF(V272:V332,G269,AB272:AB332)+SUMIF(Z272:Z332,G269,AD272:AD332))","v":""},{"$f":"IF(AK259=\"\",\"\",SUMIF(V272:V332,G269,AD272:AD332)+SUMIF(Z272:Z332,G269,AB272:AB332))","v":""},{"$f":"IF(AK259=\"\",\"\",O269-P269)","v":""},null,null,null,null,null,null,null,null,null,null,null,null,null,null,null,null,null,null,null,{"$f":"IF(AK259=\"\",\"\",SMALL(C260:C269,10))","v":""},null,null,{"$f":"IF(AK259=\"\",\"\",INT(AK269/1000))","v":""},{"$f":"IF(AK259=\"\",\"\",VLOOKUP(AK269,C260:Q269,5,FALSE))","v":""},{"$f":"VLOOKUP(AK269,C260:Q269,8,FALSE)","v":""},{"$f":"VLOOKUP(AK269,C260:Q269,9,FALSE)","v":""},{"$f":"VLOOKUP(AK269,C260:Q269,10,FALSE)","v":""},{"$f":"VLOOKUP(AK269,C260:Q269,11,FALSE)","v":""},{"$f":"VLOOKUP(AK269,C260:Q269,12,FALSE)","v":""},{"$f":"VLOOKUP(AK269,C260:Q269,13,FALSE)","v":""},{"$f":"VLOOKUP(AK269,C260:Q269,14,FALSE)","v":""},{"$f":"VLOOKUP(AK269,C260:Q269,15,FALSE)","v":""}]
[null,null,null,null,null,null,null,null,null,null,null,null,null,null,null,null,null,null,1,null,null,null,null,null,null,null,null,{"$f":"IF(MaxScore,N_MaxScore,\"\")","v":"Max Score"}]
[null,null,null,null,null,null,null,null,null,null,null,null,null,null,null,null,null,null,{"$f":"N_Heure","v":"Time"},{"$f":"N_Table","v":"Table"},{"$f":"N_Arbitre","v":"Referee"},{"$f":"N_Matches","v":"Matches"}]
[null,null,null,null,null,null,null,null,null,null,null,null,null,null,null,null,null,"#G1",null,null,null,{"$f":"IF(G260=\"\",\"\",G260)","v":"A1"},null,"-",null,{"$f":"G262","v":"A3"},null,{"$f":"IF(MaxScore,MaxGoals(W272,Y272,MaxGoalsValue),IF(W272=\"\",\"\",W272))","v":0},{"$f":"IF(MaxScore,\"-\",IF(W272=\"\",\"\",\"-\"))","v":"-"},{"$f":"IF(MaxScore,MaxGoals(Y272,W272,MaxGoalsValue),IF(Y272=\"\",\"\",Y272))","v":0},{"$f":"IF(W272=\"\",\"\",IF(W272>Y272,V272,IF(W272=Y272,\"\",Z272)))","v":""},{"$f":"IF(W272=\"\",\"\",IF(W272=Y272,V272,\"\"))","v":""},{"$f":"IF(W272=\"\",\"\",IF(W272=Y272,Z272,\"\"))","v":""},{"$f":"IF(W272=\"\",\"\",IF(W272<Y272,V272,IF(W272=Y272,\"\",Z272)))","v":""},{"$f":"CONCATENATE(AE272,AH272)","v":""}]
[null,null,null,null,null,null,null,null,null,null,null,null,null,null,null,null,null,"#G1",null,null,null,{"$f":"G261","v":"A2"},null,"-",null,{"$f":"G269","v":"A10"},null,{"$f":"IF(MaxScore,MaxGoals(W273,Y273,MaxGoalsValue),IF(W273=\"\",\"\",W273))","v":0},{"$f":"IF(MaxScore,\"-\",IF(W273=\"\",\"\",\"-\"))","v":"-"},{"$f":"IF(MaxScore,MaxGoals(Y273,W273,MaxGoalsValue),IF(Y273=\"\",\"\",Y273))","v":0},{"$f":"IF(W273=\"\",\"\",IF(W273>Y273,V273,IF(W273=Y273,\"\",Z273)))","v":""},{"$f":"IF(W273=\"\",\"\",IF(W273=Y273,V273,\"\"))","v":""},{"$f":"IF(W273=\"\",\"\",IF(W273=Y273,Z273,\"\"))","v":""},{"$f":"IF(W273=\"\",\"\",IF(W273<Y273,V273,IF(W273=Y273,\"\",Z273)))","v":""},{"$f":"CONCATENATE(AE273,AH273)","v":""}]
[null,null,null,null,null,null,null,null,null,null,null,null,null,null,null,null,null,"#G1",null,null,null,{"$f":"G263","v":"A4"},null,"-",null,{"$f":"G268","v":"A9"},null,{"$f":"IF(MaxScore,MaxGoals(W274,Y274,MaxGoalsValue),IF(W274=\"\",\"\",W274))","v":0},{"$f":"IF(MaxScore,\"-\",IF(W274=\"\",\"\",\"-\"))","v":"-"},{"$f":"IF(MaxScore,MaxGoals(Y274,W274,MaxGoalsValue),IF(Y274=\"\",\"\",Y274))","v":0},{"$f":"IF(W274=\"\",\"\",IF(W274>Y274,V274,IF(W274=Y274,\"\",Z274)))","v":""},{"$f":"IF(W274=\"\",\"\",IF(W274=Y274,V274,\"\"))","v":""},{"$f":"IF(W274=\"\",\"\",IF(W274=Y274,Z274,\"\"))","v":""},{"$f":"IF(W274=\"\",\"\",IF(W274<Y274,V274,IF(W274=Y274,\"\",Z274)))","v":""},{"$f":"CONCATENATE(AE274,AH274)","v":""}]
[null,null,null,null,null,null,null,null,null,null,null,null,null,null,null,null,null,"#G1",null,null,null,{"$f":"G264","v":"A5"},null,"-",null,{"$f":"G267","v":"A8"},null,{"$f":"IF(MaxScore,MaxGoals(W275,Y275,MaxGoalsValue),IF(W275=\"\",\"\",W275))","v":0},{"$f":"IF(MaxScore,\"-\",IF(W275=\"\",\"\",\"-\"))","v":"-"},{"$f":"IF(MaxScore,MaxGoals(Y275,W275,MaxGoalsValue),IF(Y275=\"\",\"\",Y275))","v":0},{"$f":"IF(W275=\"\",\"\",IF(W275>Y275,V275,IF(W275=Y275,\"\",Z275)))","v":""},{"$f":"IF(W275=\"\",\"\",IF(W275=Y275,V275,\"\"))","v":""},{"$f":"IF(W275=\"\",\"\",IF(W275=Y275,Z275,\"\"))","v":""},{"$f":"IF(W275=\"\",\"\",IF(W275<Y275,V275,IF(W275=Y275,\"\",Z275)))","v":""},{"$f":"CONCATENATE(AE275,AH275)","v":""}]
[null,null,null,null,null,null,null,null,null,null,null,null,null,null,null,null,null,"#G1",null,null,null,{"$f":"G265","v":"A6"},null,"-",null,{"$f":"G266","v":"A7"},null,{"$f":"IF(MaxScore,MaxGoals(W276,Y276,MaxGoalsValue),IF(W276=\"\",\"\",W276))","v":0},{"$f":"IF(MaxScore,\"-\",IF(W276=\"\",\"\",\"-\"))","v":"-"},{"$f":"IF(MaxScore,MaxGoals(Y276,W276,MaxGoalsValue),IF(Y276=\"\",\"\",Y276))","v":0},{"$f":"IF(W276=\"\",\"\",IF(W276>Y276,V276,IF(W276=Y276,\"\",Z276)))","v":""},{"$f":"IF(W276=\"\",\"\",IF(W276=Y276,V276,\"\"))","v":""},{"$f":"IF(W276=\"\",\"\",IF(W276=Y276,Z276,\"\"))","v":""},{"$f":"IF(W276=\"\",\"\",IF(W276<Y276,V276,IF(W276=Y276,\"\",Z276)))","v":""},{"$f":"CONCATENATE(AE276,AH276)","v":""}]
[null,null,null,null,null,null,null,null,null,null,null,null,null,null,null,null,null,null,{"$f":"S270+1","v":2}]
[null,null,null,null,null,null,null,null,null,null,null,null,null,null,null,null,null,null,{"$f":"N_Heure","v":"Time"},{"$f":"N_Table","v":"Table"},{"$f":"N_Arbitre","v":"Referee"},{"$f":"N_Matches","v":"Matches"}]
[null,null,null,null,null,null,null,null,null,null,null,null,null,null,null,null,null,"#G2",null,null,null,{"$f":"G261","v":"A2"},null,"-",null,{"$f":"G263","v":"A4"},null,{"$f":"IF(MaxScore,MaxGoals(W279,Y279,MaxGoalsValue),IF(W279=\"\",\"\",W279))","v":0},{"$f":"IF(MaxScore,\"-\",IF(W279=\"\",\"\",\"-\"))","v":"-"},{"$f":"IF(MaxScore,MaxGoals(Y279,W279,MaxGoalsValue),IF(Y279=\"\",\"\",Y279))","v":0},{"$f":"IF(W279=\"\",\"\",IF(W279>Y279,V279,IF(W279=Y279,\"\",Z279)))","v":""},{"$f":"IF(W279=\"\",\"\",IF(W279=Y279,V279,\"\"))","v":""},{"$f":"IF(W279=\"\",\"\",IF(W279=Y279,Z279,\"\"))","v":""},{"$f":"IF(W279=\"\",\"\",IF(W279<Y279,V279,IF(W279=Y279,\"\",Z279)))","v":""},{"$f":"CONCATENATE(AE279,AH279)","v":""}]
[null,null,null,null,null,null,null,null,null,null,null,null,null,null,null,null,null,"#G2",null,null,null,{"$f":"G262","v":"A3"},null,"-",null,{"$f":"G269","v":"A10"},null,{"$f":"IF(MaxScore,MaxGoals(W280,Y280,MaxGoalsValue),IF(W280=\"\",\"\",W280))","v":0},{"$f":"IF(MaxScore,\"-\",IF(W280=\"\",\"\",\"-\"))","v":"-"},{"$f":"IF(MaxScore,MaxGoals(Y280,W280,MaxGoalsValue),IF(Y280=\"\",\"\",Y280))","v":0},{"$f":"IF(W280=\"\",\"\",IF(W280>Y280,V280,IF(W280=Y280,\"\",Z280)))","v":""},{"$f":"IF(W280=\"\",\"\",IF(W280=Y280,V280,\"\"))","v":""},{"$f":"IF(W280=\"\",\"\",IF(W280=Y280,Z280,\"\"))","v":""},{"$f":"IF(W280=\"\",\"\",IF(W280<Y280,V280,IF(W280=Y280,\"\",Z280)))","v":""},{"$f":"CONCATENATE(AE280,AH280)","v":""}]
[null,null,null,null,null,null,null,null,null,null,null,null,null,null,null,null,null,"#G2",null,null,null,{"$f":"G264","v":"A5"},null,"-",null,{"$f":"G260","v":"A1"},null,{"$f":"IF(MaxScore,MaxGoals(W281,Y281,MaxGoalsValue),IF(W281=\"\",\"\",W281))","v":0},{"$f":"IF(MaxScore,\"-\",IF(W281=\"\",\"\",\"-\"))","v":"-"},{"$f":"IF(MaxScore,MaxGoals(Y281,W281,MaxGoalsValue),IF(Y281=\"\",\"\",Y281))","v":0},{"$f":"IF(W281=\"\",\"\",IF(W281>Y281,V281,IF(W281=Y281,\"\",Z281)))","v":""},{"$f":"IF(W281=\"\",\"\",IF(W281=Y281,V281,\"\"))","v":""},{"$f":"IF(W281=\"\",\"\",IF(W281=Y281,Z281,\"\"))","v":""},{"$f":"IF(W281=\"\",\"\",IF(W281<Y281,V281,IF(W281=Y281,\"\",Z281)))","v":""},{"$f":"CONCATENATE(AE281,AH281)","v":""}]
[null,null,null,null,null,null,null,null,null,null,null,null,null,null,null,null,null,"#G2",null,null,null,{"$f":"G266","v":"A7"},null,"-",null,{"$f":"G267","v":"A8"},null,{"$f":"IF(MaxScore,MaxGoals(W282,Y282,MaxGoalsValue),IF(W282=\"\",\"\",W282))","v":0},{"$f":"IF(MaxScore,\"-\",IF(W282=\"\",\"\",\"-\"))","v":"-"},{"$f":"IF(MaxScore,MaxGoals(Y282,W282,MaxGoalsValue),IF(Y282=\"\",\"\",Y282))","v":0},{"$f":"IF(W282=\"\",\"\",IF(W282>Y282,V282,IF(W282=Y282,\"\",Z282)))","v":""},{"$f":"IF(W282=\"\",\"\",IF(W282=Y282,V282,\"\"))","v":""},{"$f":"IF(W282=\"\",\"\",IF(W282=Y282,Z282,\"\"))","v":""},{"$f":"IF(W282=\"\",\"\",IF(W282<Y282,V282,IF(W282=Y282,\"\",Z282)))","v":""},{"$f":"CONCATENATE(AE282,AH282)","v":""}]
[null,null,null,null,null,null,null,null,null,null,null,null,null,null,null,null,null,"#G2",null,null,null,{"$f":"G268","v":"A9"},null,"-",null,{"$f":"G265","v":"A6"},null,{"$f":"IF(MaxScore,MaxGoals(W283,Y283,MaxGoalsValue),IF(W283=\"\",\"\",W283))","v":0},{"$f":"IF(MaxScore,\"-\",IF(W283=\"\",\"\",\"-\"))","v":"-"},{"$f":"IF(MaxScore,MaxGoals(Y283,W283,MaxGoalsValue),IF(Y283=\"\",\"\",Y283))","v":0},{"$f":"IF(W283=\"\",\"\",IF(W283>Y283,V283,IF(W283=Y283,\"\",Z283)))","v":""},{"$f":"IF(W283=\"\",\"\",IF(W283=Y283,V283,\"\"))","v":""},{"$f":"IF(W283=\"\",\"\",IF(W283=Y283,Z283,\"\"))","v":""},{"$f":"IF(W283=\"\",\"\",IF(W283<Y283,V283,IF(W283=Y283,\"\",Z283)))","v":""},{"$f":"CONCATENATE(AE283,AH283)","v":""}]
[null,null,null,null,null,null,null,null,null,null,null,null,null,null,null,null,null,null,{"$f":"S277+1","v":3}]
[null,null,null,null,null,null,null,null,null,null,null,null,null,null,null,null,null,null,{"$f":"N_Heure","v":"Time"},{"$f":"N_Table","v":"Table"},{"$f":"N_Arbitre","v":"Referee"},{"$f":"N_Matches","v":"Matches"}]
[null,null,null,null,null,null,null,null,null,null,null,null,null,null,null,null,null,"#G3",null,null,null,{"$f":"G262","v":"A3"},null,"-",null,{"$f":"G264","v":"A5"},null,{"$f":"IF(MaxScore,MaxGoals(W286,Y286,MaxGoalsValue),IF(W286=\"\",\"\",W286))","v":0},{"$f":"IF(MaxScore,\"-\",IF(W286=\"\",\"\",\"-\"))","v":"-"},{"$f":"IF(MaxScore,MaxGoals(Y286,W286,MaxGoalsValue),IF(Y286=\"\",\"\",Y286))","v":0},{"$f":"IF(W286=\"\",\"\",IF(W286>Y286,V286,IF(W286=Y286,\"\",Z286)))","v":""},{"$f":"IF(W286=\"\",\"\",IF(W286=Y286,V286,\"\"))","v":""},{"$f":"IF(W286=\"\",\"\",IF(W286=Y286,Z286,\"\"))","v":""},{"$f":"IF(W286=\"\",\"\",IF(W286<Y286,V286,IF(W286=Y286,\"\",Z286)))","v":""},{"$f":"CONCATENATE(AE286,AH286)","v":""}]
[null,null,null,null,null,null,null,null,null,null,null,null,null,null,null,null,null,"#G3",null,null,null,{"$f":"G263","v":"A4"},null,"-",null,{"$f":"G269","v":"A10"},null,{"$f":"IF(MaxScore,MaxGoals(W287,Y287,MaxGoalsValue),IF(W287=\"\",\"\",W287))","v":0},{"$f":"IF(MaxScore,\"-\",IF(W287=\"\",\"\",\"-\"))","v":"-"},{"$f":"IF(MaxScore,MaxGoals(Y287,W287,MaxGoalsValue),IF(Y287=\"\",\"\",Y287))","v":0},{"$f":"IF(W287=\"\",\"\",IF(W287>Y287,V287,IF(W287=Y287,\"\",Z287)))","v":""},{"$f":"IF(W287=\"\",\"\",IF(W287=Y287,V287,\"\"))","v":""},{"$f":"IF(W287=\"\",\"\",IF(W287=Y287,Z287,\"\"))","v":""},{"$f":"IF(W287=\"\",\"\",IF(W287<Y287,V287,IF(W287=Y287,\"\",Z287)))","v":""},{"$f":"CONCATENATE(AE287,AH287)","v":""}]
[null,null,null,null,null,null,null,null,null,null,null,null,null,null,null,null,null,"#G3",null,null,null,{"$f":"G265","v":"A6"},null,"-",null,{"$f":"G261","v":"A2"},null,{"$f":"IF(MaxScore,MaxGoals(W288,Y288,MaxGoalsValue),IF(W288=\"\",\"\",W288))","v":0},{"$f":"IF(MaxScore,\"-\",IF(W288=\"\",\"\",\"-\"))","v":"-"},{"$f":"IF(MaxScore,MaxGoals(Y288,W288,MaxGoalsValue),IF(Y288=\"\",\"\",Y288))","v":0},{"$f":"IF(W288=\"\",\"\",IF(W288>Y288,V288,IF(W288=Y288,\"\",Z288)))","v":""},{"$f":"IF(W288=\"\",\"\",IF(W288=Y288,V288,\"\"))","v":""},{"$f":"IF(W288=\"\",\"\",IF(W288=Y288,Z288,\"\"))","v":""},{"$f":"IF(W288=\"\",\"\",IF(W288<Y288,V288,IF(W288=Y288,\"\",Z288)))","v":""},{"$f":"CONCATENATE(AE288,AH288)","v":""}]
[null,null,null,null,null,null,null,null,null,null,null,null,null,null,null,null,null,"#G3",null,null,null,{"$f":"G266","v":"A7"},null,"-",null,{"$f":"G260","v":"A1"},null,{"$f":"IF(MaxScore,MaxGoals(W289,Y289,MaxGoalsValue),IF(W289=\"\",\"\",W289))","v":0},{"$f":"IF(MaxScore,\"-\",IF(W289=\"\",\"\",\"-\"))","v":"-"},{"$f":"IF(MaxScore,MaxGoals(Y289,W289,MaxGoalsValue),IF(Y289=\"\",\"\",Y289))","v":0},{"$f":"IF(W289=\"\",\"\",IF(W289>Y289,V289,IF(W289=Y289,\"\",Z289)))","v":""},{"$f":"IF(W289=\"\",\"\",IF(W289=Y289,V289,\"\"))","v":""},{"$f":"IF(W289=\"\",\"\",IF(W289=Y289,Z289,\"\"))","v":""},{"$f":"IF(W289=\"\",\"\",IF(W289<Y289,V289,IF(W289=Y289,\"\",Z289)))","v":""},{"$f":"CONCATENATE(AE289,AH289)","v":""}]
[null,null,null,null,null,null,null,null,null,null,null,null,null,null,null,null,null,"#G3",null,null,null,{"$f":"G267","v":"A8"},null,"-",null,{"$f":"G268","v":"A9"},null,{"$f":"IF(MaxScore,MaxGoals(W290,Y290,MaxGoalsValue),IF(W290=\"\",\"\",W290))","v":0},{"$f":"IF(MaxScore,\"-\",IF(W290=\"\",\"\",\"-\"))","v":"-"},{"$f":"IF(MaxScore,MaxGoals(Y290,W290,MaxGoalsValue),IF(Y290=\"\",\"\",Y290))","v":0},{"$f":"IF(W290=\"\",\"\",IF(W290>Y290,V290,IF(W290=Y290,\"\",Z290)))","v":""},{"$f":"IF(W290=\"\",\"\",IF(W290=Y290,V290,\"\"))","v":""},{"$f":"IF(W290=\"\",\"\",IF(W290=Y290,Z290,\"\"))","v":""},{"$f":"IF(W290=\"\",\"\",IF(W290<Y290,V290,IF(W290=Y290,\"\",Z290)))","v":""},{"$f":"CONCATENATE(AE290,AH290)","v":""}]
[null,null,null,null,null,null,null,null,null,null,null,null,null,null,null,null,null,null,{"$f":"S284+1","v":4}]
[null,null,null,null,null,null,null,null,null,null,null,null,null,null,null,null,null,null,{"$f":"N_Heure","v":"Time"},{"$f":"N_Table","v":"Table"},{"$f":"N_Arbitre","v":"Referee"},{"$f":"N_Matches","v":"Matches"}]
[null,null,null,null,null,null,null,null,null,null,null,null,null,null,null,null,null,"#G4",null,null,null,{"$f":"G260","v":"A1"},null,"-",null,{"$f":"G268","v":"A9"},null,{"$f":"IF(MaxScore,MaxGoals(W293,Y293,MaxGoalsValue),IF(W293=\"\",\"\",W293))","v":0},{"$f":"IF(MaxScore,\"-\",IF(W293=\"\",\"\",\"-\"))","v":"-"},{"$f":"IF(MaxScore,MaxGoals(Y293,W293,MaxGoalsValue),IF(Y293=\"\",\"\",Y293))","v":0},{"$f":"IF(W293=\"\",\"\",IF(W293>Y293,V293,IF(W293=Y293,\"\",Z293)))","v":""},{"$f":"IF(W293=\"\",\"\",IF(W293=Y293,V293,\"\"))","v":""},{"$f":"IF(W293=\"\",\"\",IF(W293=Y293,Z293,\"\"))","v":""},{"$f":"IF(W293=\"\",\"\",IF(W293<Y293,V293,IF(W293=Y293,\"\",Z293)))","v":""},{"$f":"CONCATENATE(AE293,AH293)","v":""}]
[null,null,null,null,null,null,null,null,null,null,null,null,null,null,null,null,null,"#G4",null,null,null,{"$f":"G261","v":"A2"},null,"-",null,{"$f":"G267","v":"A8"},null,{"$f":"IF(MaxScore,MaxGoals(W294,Y294,MaxGoalsValue),IF(W294=\"\",\"\",W294))","v":0},{"$f":"IF(MaxScore,\"-\",IF(W294=\"\",\"\",\"-\"))","v":"-"},{"$f":"IF(MaxScore,MaxGoals(Y294,W294,MaxGoalsValue),IF(Y294=\"\",\"\",Y294))","v":0},{"$f":"IF(W294=\"\",\"\",IF(W294>Y294,V294,IF(W294=Y294,\"\",Z294)))","v":""},{"$f":"IF(W294=\"\",\"\",IF(W294=Y294,V294,\"\"))","v":""},{"$f":"IF(W294=\"\",\"\",IF(W294=Y294,Z294,\"\"))","v":""},{"$f":"IF(W294=\"\",\"\",IF(W294<Y294,V294,IF(W294=Y294,\"\",Z294)))","v":""},{"$f":"CONCATENATE(AE294,AH294)","v":""}]
[null,null,null,null,null,null,null,null,null,null,null,null,null,null,null,null,null,"#G4",null,null,null,{"$f":"G262","v":"A3"},null,"-",null,{"$f":"G266","v":"A7"},null,{"$f":"IF(MaxScore,MaxGoals(W295,Y295,MaxGoalsValue),IF(W295=\"\",\"\",W295))","v":0},{"$f":"IF(MaxScore,\"-\",IF(W295=\"\",\"\",\"-\"))","v":"-"},{"$f":"IF(MaxScore,MaxGoals(Y295,W295,MaxGoalsValue),IF(Y295=\"\",\"\",Y295))","v":0},{"$f":"IF(W295=\"\",\"\",IF(W295>Y295,V295,IF(W295=Y295,\"\",Z295)))","v":""},{"$f":"IF(W295=\"\",\"\",IF(W295=Y295,V295,\"\"))","v":""},{"$f":"IF(W295=\"\",\"\",IF(W295=Y295,Z295,\"\"))","v":""},{"$f":"IF(W295=\"\",\"\",IF(W295<Y295,V295,IF(W295=Y295,\"\",Z295)))","v":""},{"$f":"CONCATENATE(AE295,AH295)","v":""}]
[null,null,null,null,null,null,null,null,null,null,null,null,null,null,null,null,null,"#G4",null,null,null,{"$f":"G263","v":"A4"},null,"-",null,{"$f":"G265","v":"A6"},null,{"$f":"IF(MaxScore,MaxGoals(W296,Y296,MaxGoalsValue),IF(W296=\"\",\"\",W296))","v":0},{"$f":"IF(MaxScore,\"-\",IF(W296=\"\",\"\",\"-\"))","v":"-"},{"$f":"IF(MaxScore,MaxGoals(Y296,W296,MaxGoalsValue),IF(Y296=\"\",\"\",Y296))","v":0},{"$f":"IF(W296=\"\",\"\",IF(W296>Y296,V296,IF(W296=Y296,\"\",Z296)))","v":""},{"$f":"IF(W296=\"\",\"\",IF(W296=Y296,V296,\"\"))","v":""},{"$f":"IF(W296=\"\",\"\",IF(W296=Y296,Z296,\"\"))","v":""},{"$f":"IF(W296=\"\",\"\",IF(W296<Y296,V296,IF(W296=Y296,\"\",Z296)))","v":""},{"$f":"CONCATENATE(AE296,AH296)","v":""}]
[null,null,null,null,null,null,null,null,null,null,null,null,null,null,null,null,null,"#G4",null,null,null,{"$f":"G269","v":"A10"},null,"-",null,{"$f":"G264","v":"A5"},null,{"$f":"IF(MaxScore,MaxGoals(W297,Y297,MaxGoalsValue),IF(W297=\"\",\"\",W297))","v":0},{"$f":"IF(MaxScore,\"-\",IF(W297=\"\",\"\",\"-\"))","v":"-"},{"$f":"IF(MaxScore,MaxGoals(Y297,W297,MaxGoalsValue),IF(Y297=\"\",\"\",Y297))","v":0},{"$f":"IF(W297=\"\",\"\",IF(W297>Y297,V297,IF(W297=Y297,\"\",Z297)))","v":""},{"$f":"IF(W297=\"\",\"\",IF(W297=Y297,V297,\"\"))","v":""},{"$f":"IF(W297=\"\",\"\",IF(W297=Y297,Z297,\"\"))","v":""},{"$f":"IF(W297=\"\",\"\",IF(W297<Y297,V297,IF(W297=Y297,\"\",Z297)))","v":""},{"$f":"CONCATENATE(AE297,AH297)","v":""}]
[null,null,null,null,null,null,null,null,null,null,null,null,null,null,null,null,null,null,{"$f":"S291+1","v":5}]
[null,null,null,null,null,null,null,null,null,null,null,null,null,null,null,null,null,null,{"$f":"N_Heure","v":"Time"},{"$f":"N_Table","v":"Table"},{"$f":"N_Arbitre","v":"Referee"},{"$f":"N_Matches","v":"Matches"}]
[null,null,null,null,null,null,null,null,null,null,null,null,null,null,null,null,null,"#G5",null,null,null,{"$f":"G260","v":"A1"},null,"-",null,{"$f":"G261","v":"A2"},null,{"$f":"IF(MaxScore,MaxGoals(W300,Y300,MaxGoalsValue),IF(W300=\"\",\"\",W300))","v":0},{"$f":"IF(MaxScore,\"-\",IF(W300=\"\",\"\",\"-\"))","v":"-"},{"$f":"IF(MaxScore,MaxGoals(Y300,W300,MaxGoalsValue),IF(Y300=\"\",\"\",Y300))","v":0},{"$f":"IF(W300=\"\",\"\",IF(W300>Y300,V300,IF(W300=Y300,\"\",Z300)))","v":""},{"$f":"IF(W300=\"\",\"\",IF(W300=Y300,V300,\"\"))","v":""},{"$f":"IF(W300=\"\",\"\",IF(W300=Y300,Z300,\"\"))","v":""},{"$f":"IF(W300=\"\",\"\",IF(W300<Y300,V300,IF(W300=Y300,\"\",Z300)))","v":""},{"$f":"CONCATENATE(AE300,AH300)","v":""}]
[null,null,null,null,null,null,null,null,null,null,null,null,null,null,null,null,null,"#G5",null,null,null,{"$f":"G264","v":"A5"},null,"-",null,{"$f":"G266","v":"A7"},null,{"$f":"IF(MaxScore,MaxGoals(W301,Y301,MaxGoalsValue),IF(W301=\"\",\"\",W301))","v":0},{"$f":"IF(MaxScore,\"-\",IF(W301=\"\",\"\",\"-\"))","v":"-"},{"$f":"IF(MaxScore,MaxGoals(Y301,W301,MaxGoalsValue),IF(Y301=\"\",\"\",Y301))","v":0},{"$f":"IF(W301=\"\",\"\",IF(W301>Y301,V301,IF(W301=Y301,\"\",Z301)))","v":""},{"$f":"IF(W301=\"\",\"\",IF(W301=Y301,V301,\"\"))","v":""},{"$f":"IF(W301=\"\",\"\",IF(W301=Y301,Z301,\"\"))","v":""},{"$f":"IF(W301=\"\",\"\",IF(W301<Y301,V301,IF(W301=Y301,\"\",Z301)))","v":""},{"$f":"CONCATENATE(AE301,AH301)","v":""}]
[null,null,null,null,null,null,null,null,null,null,null,null,null,null,null,null,null,"#G5",null,null,null,{"$f":"G267","v":"A8"},null,"-",null,{"$f":"G263","v":"A4"},null,{"$f":"IF(MaxScore,MaxGoals(W302,Y302,MaxGoalsValue),IF(W302=\"\",\"\",W302))","v":0},{"$f":"IF(MaxScore,\"-\",IF(W302=\"\",\"\",\"-\"))","v":"-"},{"$f":"IF(MaxScore,MaxGoals(Y302,W302,MaxGoalsValue),IF(Y302=\"\",\"\",Y302))","v":0},{"$f":"IF(W302=\"\",\"\",IF(W302>Y302,V302,IF(W302=Y302,\"\",Z302)))","v":""},{"$f":"IF(W302=\"\",\"\",IF(W302=Y302,V302,\"\"))","v":""},{"$f":"IF(W302=\"\",\"\",IF(W302=Y302,Z302,\"\"))","v":""},{"$f":"IF(W302=\"\",\"\",IF(W302<Y302,V302,IF(W302=Y302,\"\",Z302)))","v":""},{"$f":"CONCATENATE(AE302,AH302)","v":""}]
[null,null,null,null,null,null,null,null,null,null,null,null,null,null,null,null,null,"#G5",null,null,null,{"$f":"G268","v":"A9"},null,"-",null,{"$f":"G262","v":"A3"},null,{"$f":"IF(MaxScore,MaxGoals(W303,Y303,MaxGoalsValue),IF(W303=\"\",\"\",W303))","v":0},{"$f":"IF(MaxScore,\"-\",IF(W303=\"\",\"\",\"-\"))","v":"-"},{"$f":"IF(MaxScore,MaxGoals(Y303,W303,MaxGoalsValue),IF(Y303=\"\",\"\",Y303))","v":0},{"$f":"IF(W303=\"\",\"\",IF(W303>Y303,V303,IF(W303=Y303,\"\",Z303)))","v":""},{"$f":"IF(W303=\"\",\"\",IF(W303=Y303,V303,\"\"))","v":""},{"$f":"IF(W303=\"\",\"\",IF(W303=Y303,Z303,\"\"))","v":""},{"$f":"IF(W303=\"\",\"\",IF(W303<Y303,V303,IF(W303=Y303,\"\",Z303)))","v":""},{"$f":"CONCATENATE(AE303,AH303)","v":""}]
[null,null,null,null,null,null,null,null,null,null,null,null,null,null,null,null,null,"#G5",null,null,null,{"$f":"G269","v":"A10"},null,"-",null,{"$f":"G265","v":"A6"},null,{"$f":"IF(MaxScore,MaxGoals(W304,Y304,MaxGoalsValue),IF(W304=\"\",\"\",W304))","v":0},{"$f":"IF(MaxScore,\"-\",IF(W304=\"\",\"\",\"-\"))","v":"-"},{"$f":"IF(MaxScore,MaxGoals(Y304,W304,MaxGoalsValue),IF(Y304=\"\",\"\",Y304))","v":0},{"$f":"IF(W304=\"\",\"\",IF(W304>Y304,V304,IF(W304=Y304,\"\",Z304)))","v":""},{"$f":"IF(W304=\"\",\"\",IF(W304=Y304,V304,\"\"))","v":""},{"$f":"IF(W304=\"\",\"\",IF(W304=Y304,Z304,\"\"))","v":""},{"$f":"IF(W304=\"\",\"\",IF(W304<Y304,V304,IF(W304=Y304,\"\",Z304)))","v":""},{"$f":"CONCATENATE(AE304,AH304)","v":""}]
[null,null,null,null,null,null,null,null,null,null,null,null,null,null,null,null,null,null,{"$f":"S298+1","v":6}]
[null,null,null,null,null,null,null,null,null,null,null,null,null,null,null,null,null,null,{"$f":"N_Heure","v":"Time"},{"$f":"N_Table","v":"Table"},{"$f":"N_Arbitre","v":"Referee"},{"$f":"N_Matches","v":"Matches"}]
[null,null,null,null,null,null,null,null,null,null,null,null,null,null,null,null,null,"#G6",null,null,null,{"$f":"G260","v":"A1"},null,"-",null,{"$f":"G263","v":"A4"},null,{"$f":"IF(MaxScore,MaxGoals(W307,Y307,MaxGoalsValue),IF(W307=\"\",\"\",W307))","v":0},{"$f":"IF(MaxScore,\"-\",IF(W307=\"\",\"\",\"-\"))","v":"-"},{"$f":"IF(MaxScore,MaxGoals(Y307,W307,MaxGoalsValue),IF(Y307=\"\",\"\",Y307))","v":0},{"$f":"IF(W307=\"\",\"\",IF(W307>Y307,V307,IF(W307=Y307,\"\",Z307)))","v":""},{"$f":"IF(W307=\"\",\"\",IF(W307=Y307,V307,\"\"))","v":""},{"$f":"IF(W307=\"\",\"\",IF(W307=Y307,Z307,\"\"))","v":""},{"$f":"IF(W307=\"\",\"\",IF(W307<Y307,V307,IF(W307=Y307,\"\",Z307)))","v":""},{"$f":"CONCATENATE(AE307,AH307)","v":""}]
[null,null,null,null,null,null,null,null,null,null,null,null,null,null,null,null,null,"#G6",null,null,null,{"$f":"G261","v":"A2"},null,"-",null,{"$f":"G262","v":"A3"},null,{"$f":"IF(MaxScore,MaxGoals(W308,Y308,MaxGoalsValue),IF(W308=\"\",\"\",W308))","v":0},{"$f":"IF(MaxScore,\"-\",IF(W308=\"\",\"\",\"-\"))","v":"-"},{"$f":"IF(MaxScore,MaxGoals(Y308,W308,MaxGoalsValue),IF(Y308=\"\",\"\",Y308))","v":0},{"$f":"IF(W308=\"\",\"\",IF(W308>Y308,V308,IF(W308=Y308,\"\",Z308)))","v":""},{"$f":"IF(W308=\"\",\"\",IF(W308=Y308,V308,\"\"))","v":""},{"$f":"IF(W308=\"\",\"\",IF(W308=Y308,Z308,\"\"))","v":""},{"$f":"IF(W308=\"\",\"\",IF(W308<Y308,V308,IF(W308=Y308,\"\",Z308)))","v":""},{"$f":"CONCATENATE(AE308,AH308)","v":""}]
[null,null,null,null,null,null,null,null,null,null,null,null,null,null,null,null,null,"#G6",null,null,null,{"$f":"G264","v":"A5"},null,"-",null,{"$f":"G268","v":"A9"},null,{"$f":"IF(MaxScore,MaxGoals(W309,Y309,MaxGoalsValue),IF(W309=\"\",\"\",W309))","v":0},{"$f":"IF(MaxScore,\"-\",IF(W309=\"\",\"\",\"-\"))","v":"-"},{"$f":"IF(MaxScore,MaxGoals(Y309,W309,MaxGoalsValue),IF(Y309=\"\",\"\",Y309))","v":0},{"$f":"IF(W309=\"\",\"\",IF(W309>Y309,V309,IF(W309=Y309,\"\",Z309)))","v":""},{"$f":"IF(W309=\"\",\"\",IF(W309=Y309,V309,\"\"))","v":""},{"$f":"IF(W309=\"\",\"\",IF(W309=Y309,Z309,\"\"))","v":""},{"$f":"IF(W309=\"\",\"\",IF(W309<Y309,V309,IF(W309=Y309,\"\",Z309)))","v":""},{"$f":"CONCATENATE(AE309,AH309)","v":""}]
[null,null,null,null,null,null,null,null,null,null,null,null,null,null,null,null,null,"#G6",null,null,null,{"$f":"G265","v":"A6"},null,"-",null,{"$f":"G267","v":"A8"},null,{"$f":"IF(MaxScore,MaxGoals(W310,Y310,MaxGoalsValue),IF(W310=\"\",\"\",W310))","v":0},{"$f":"IF(MaxScore,\"-\",IF(W310=\"\",\"\",\"-\"))","v":"-"},{"$f":"IF(MaxScore,MaxGoals(Y310,W310,MaxGoalsValue),IF(Y310=\"\",\"\",Y310))","v":0},{"$f":"IF(W310=\"\",\"\",IF(W310>Y310,V310,IF(W310=Y310,\"\",Z310)))","v":""},{"$f":"IF(W310=\"\",\"\",IF(W310=Y310,V310,\"\"))","v":""},{"$f":"IF(W310=\"\",\"\",IF(W310=Y310,Z310,\"\"))","v":""},{"$f":"IF(W310=\"\",\"\",IF(W310<Y310,V310,IF(W310=Y310,\"\",Z310)))","v":""},{"$f":"CONCATENATE(AE310,AH310)","v":""}]
[null,null,null,null,null,null,null,null,null,null,null,null,null,null,null,null,null,"#G6",null,null,null,{"$f":"G266","v":"A7"},null,"-",null,{"$f":"G269","v":"A10"},null,{"$f":"IF(MaxScore,MaxGoals(W311,Y311,MaxGoalsValue),IF(W311=\"\",\"\",W311))","v":0},{"$f":"IF(MaxScore,\"-\",IF(W311=\"\",\"\",\"-\"))","v":"-"},{"$f":"IF(MaxScore,MaxGoals(Y311,W311,MaxGoalsValue),IF(Y311=\"\",\"\",Y311))","v":0},{"$f":"IF(W311=\"\",\"\",IF(W311>Y311,V311,IF(W311=Y311,\"\",Z311)))","v":""},{"$f":"IF(W311=\"\",\"\",IF(W311=Y311,V311,\"\"))","v":""},{"$f":"IF(W311=\"\",\"\",IF(W311=Y311,Z311,\"\"))","v":""},{"$f":"IF(W311=\"\",\"\",IF(W311<Y311,V311,IF(W311=Y311,\"\",Z311)))","v":""},{"$f":"CONCATENATE(AE311,AH311)","v":""}]
[null,null,null,null,null,null,null,null,null,null,null,null,null,null,null,null,null,null,{"$f":"S305+1","v":7}]
[null,null,null,null,null,null,null,null,null,null,null,null,null,null,null,null,null,null,{"$f":"N_Heure","v":"Time"},{"$f":"N_Table","v":"Table"},{"$f":"N_Arbitre","v":"Referee"},{"$f":"N_Matches","v":"Matches"}]
[null,null,null,null,null,null,null,null,null,null,null,null,null,null,null,null,null,"#G7",null,null,null,{"$f":"G260","v":"A1"},null,"-",null,{"$f":"G265","v":"A6"},null,{"$f":"IF(MaxScore,MaxGoals(W314,Y314,MaxGoalsValue),IF(W314=\"\",\"\",W314))","v":0},{"$f":"IF(MaxScore,\"-\",IF(W314=\"\",\"\",\"-\"))","v":"-"},{"$f":"IF(MaxScore,MaxGoals(Y314,W314,MaxGoalsValue),IF(Y314=\"\",\"\",Y314))","v":0},{"$f":"IF(W314=\"\",\"\",IF(W314>Y314,V314,IF(W314=Y314,\"\",Z314)))","v":""},{"$f":"IF(W314=\"\",\"\",IF(W314=Y314,V314,\"\"))","v":""},{"$f":"IF(W314=\"\",\"\",IF(W314=Y314,Z314,\"\"))","v":""},{"$f":"IF(W314=\"\",\"\",IF(W314<Y314,V314,IF(W314=Y314,\"\",Z314)))","v":""},{"$f":"CONCATENATE(AE314,AH314)","v":""}]
[null,null,null,null,null,null,null,null,null,null,null,null,null,null,null,null,null,"#G7",null,null,null,{"$f":"G261","v":"A2"},null,"-",null,{"$f":"G264","v":"A5"},null,{"$f":"IF(MaxScore,MaxGoals(W315,Y315,MaxGoalsValue),IF(W315=\"\",\"\",W315))","v":0},{"$f":"IF(MaxScore,\"-\",IF(W315=\"\",\"\",\"-\"))","v":"-"},{"$f":"IF(MaxScore,MaxGoals(Y315,W315,MaxGoalsValue),IF(Y315=\"\",\"\",Y315))","v":0},{"$f":"IF(W315=\"\",\"\",IF(W315>Y315,V315,IF(W315=Y315,\"\",Z315)))","v":""},{"$f":"IF(W315=\"\",\"\",IF(W315=Y315,V315,\"\"))","v":""},{"$f":"IF(W315=\"\",\"\",IF(W315=Y315,Z315,\"\"))","v":""},{"$f":"IF(W315=\"\",\"\",IF(W315<Y315,V315,IF(W315=Y315,\"\",Z315)))","v":""},{"$f":"CONCATENATE(AE315,AH315)","v":""}]
[null,null,null,null,null,null,null,null,null,null,null,null,null,null,null,null,null,"#G7",null,null,null,{"$f":"G262","v":"A3"},null,"-",null,{"$f":"G263","v":"A4"},null,{"$f":"IF(MaxScore,MaxGoals(W316,Y316,MaxGoalsValue),IF(W316=\"\",\"\",W316))","v":0},{"$f":"IF(MaxScore,\"-\",IF(W316=\"\",\"\",\"-\"))","v":"-"},{"$f":"IF(MaxScore,MaxGoals(Y316,W316,MaxGoalsValue),IF(Y316=\"\",\"\",Y316))","v":0},{"$f":"IF(W316=\"\",\"\",IF(W316>Y316,V316,IF(W316=Y316,\"\",Z316)))","v":""},{"$f":"IF(W316=\"\",\"\",IF(W316=Y316,V316,\"\"))","v":""},{"$f":"IF(W316=\"\",\"\",IF(W316=Y316,Z316,\"\"))","v":""},{"$f":"IF(W316=\"\",\"\",IF(W316<Y316,V316,IF(W316=Y316,\"\",Z316)))","v":""},{"$f":"CONCATENATE(AE316,AH316)","v":""}]
[null,null,null,null,null,null,null,null,null,null,null,null,null,null,null,null,null,"#G7",null,null,null,{"$f":"G267","v":"A8"},null,"-",null,{"$f":"G269","v":"A10"},null,{"$f":"IF(MaxScore,MaxGoals(W317,Y317,MaxGoalsValue),IF(W317=\"\",\"\",W317))","v":0},{"$f":"IF(MaxScore,\"-\",IF(W317=\"\",\"\",\"-\"))","v":"-"},{"$f":"IF(MaxScore,MaxGoals(Y317,W317,MaxGoalsValue),IF(Y317=\"\",\"\",Y317))","v":0},{"$f":"IF(W317=\"\",\"\",IF(W317>Y317,V317,IF(W317=Y317,\"\",Z317)))","v":""},{"$f":"IF(W317=\"\",\"\",IF(W317=Y317,V317,\"\"))","v":""},{"$f":"IF(W317=\"\",\"\",IF(W317=Y317,Z317,\"\"))","v":""},{"$f":"IF(W317=\"\",\"\",IF(W317<Y317,V317,IF(W317=Y317,\"\",Z317)))","v":""},{"$f":"CONCATENATE(AE317,AH317)","v":""}]
[null,null,null,null,null,null,null,null,null,null,null,null,null,null,null,null,null,"#G7",null,null,null,{"$f":"G268","v":"A9"},null,"-",null,{"$f":"G266","v":"A7"},null,{"$f":"IF(MaxScore,MaxGoals(W318,Y318,MaxGoalsValue),IF(W318=\"\",\"\",W318))","v":0},{"$f":"IF(MaxScore,\"-\",IF(W318=\"\",\"\",\"-\"))","v":"-"},{"$f":"IF(MaxScore,MaxGoals(Y318,W318,MaxGoalsValue),IF(Y318=\"\",\"\",Y318))","v":0},{"$f":"IF(W318=\"\",\"\",IF(W318>Y318,V318,IF(W318=Y318,\"\",Z318)))","v":""},{"$f":"IF(W318=\"\",\"\",IF(W318=Y318,V318,\"\"))","v":""},{"$f":"IF(W318=\"\",\"\",IF(W318=Y318,Z318,\"\"))","v":""},{"$f":"IF(W318=\"\",\"\",IF(W318<Y318,V318,IF(W318=Y318,\"\",Z318)))","v":""},{"$f":"CONCATENATE(AE318,AH318)","v":""}]
[null,null,null,null,null,null,null,null,null,null,null,null,null,null,null,null,null,null,{"$f":"S312+1","v":8}]
[null,null,null,null,null,null,null,null,null,null,null,null,null,null,null,null,null,null,{"$f":"N_Heure","v":"Time"},{"$f":"N_Table","v":"Table"},{"$f":"N_Arbitre","v":"Referee"},{"$f":"N_Matches","v":"Matches"}]
[null,null,null,null,null,null,null,null,null,null,null,null,null,null,null,null,null,"#G8",null,null,null,{"$f":"G263","v":"A4"},null,"-",null,{"$f":"G264","v":"A5"},null,{"$f":"IF(MaxScore,MaxGoals(W321,Y321,MaxGoalsValue),IF(W321=\"\",\"\",W321))","v":0},{"$f":"IF(MaxScore,\"-\",IF(W321=\"\",\"\",\"-\"))","v":"-"},{"$f":"IF(MaxScore,MaxGoals(Y321,W321,MaxGoalsValue),IF(Y321=\"\",\"\",Y321))","v":0},{"$f":"IF(W321=\"\",\"\",IF(W321>Y321,V321,IF(W321=Y321,\"\",Z321)))","v":""},{"$f":"IF(W321=\"\",\"\",IF(W321=Y321,V321,\"\"))","v":""},{"$f":"IF(W321=\"\",\"\",IF(W321=Y321,Z321,\"\"))","v":""},{"$f":"IF(W321=\"\",\"\",IF(W321<Y321,V321,IF(W321=Y321,\"\",Z321)))","v":""},{"$f":"CONCATENATE(AE321,AH321)","v":""}]
[null,null,null,null,null,null,null,null,null,null,null,null,null,null,null,null,null,"#G8",null,null,null,{"$f":"G265","v":"A6"},null,"-",null,{"$f":"G262","v":"A3"},null,{"$f":"IF(MaxScore,MaxGoals(W322,Y322,MaxGoalsValue),IF(W322=\"\",\"\",W322))","v":0},{"$f":"IF(MaxScore,\"-\",IF(W322=\"\",\"\",\"-\"))","v":"-"},{"$f":"IF(MaxScore,MaxGoals(Y322,W322,MaxGoalsValue),IF(Y322=\"\",\"\",Y322))","v":0},{"$f":"IF(W322=\"\",\"\",IF(W322>Y322,V322,IF(W322=Y322,\"\",Z322)))","v":""},{"$f":"IF(W322=\"\",\"\",IF(W322=Y322,V322,\"\"))","v":""},{"$f":"IF(W322=\"\",\"\",IF(W322=Y322,Z322,\"\"))","v":""},{"$f":"IF(W322=\"\",\"\",IF(W322<Y322,V322,IF(W322=Y322,\"\",Z322)))","v":""},{"$f":"CONCATENATE(AE322,AH322)","v":""}]
[null,null,null,null,null,null,null,null,null,null,null,null,null,null,null,null,null,"#G8",null,null,null,{"$f":"G266","v":"A7"},null,"-",null,{"$f":"G261","v":"A2"},null,{"$f":"IF(MaxScore,MaxGoals(W323,Y323,MaxGoalsValue),IF(W323=\"\",\"\",W323))","v":0},{"$f":"IF(MaxScore,\"-\",IF(W323=\"\",\"\",\"-\"))","v":"-"},{"$f":"IF(MaxScore,MaxGoals(Y323,W323,MaxGoalsValue),IF(Y323=\"\",\"\",Y323))","v":0},{"$f":"IF(W323=\"\",\"\",IF(W323>Y323,V323,IF(W323=Y323,\"\",Z323)))","v":""},{"$f":"IF(W323=\"\",\"\",IF(W323=Y323,V323,\"\"))","v":""},{"$f":"IF(W323=\"\",\"\",IF(W323=Y323,Z323,\"\"))","v":""},{"$f":"IF(W323=\"\",\"\",IF(W323<Y323,V323,IF(W323=Y323,\"\",Z323)))","v":""},{"$f":"CONCATENATE(AE323,AH323)","v":""}]
[null,null,null,null,null,null,null,null,null,null,null,null,null,null,null,null,null,"#G8",null,null,null,{"$f":"G267","v":"A8"},null,"-",null,{"$f":"G260","v":"A1"},null,{"$f":"IF(MaxScore,MaxGoals(W324,Y324,MaxGoalsValue),IF(W324=\"\",\"\",W324))","v":0},{"$f":"IF(MaxScore,\"-\",IF(W324=\"\",\"\",\"-\"))","v":"-"},{"$f":"IF(MaxScore,MaxGoals(Y324,W324,MaxGoalsValue),IF(Y324=\"\",\"\",Y324))","v":0},{"$f":"IF(W324=\"\",\"\",IF(W324>Y324,V324,IF(W324=Y324,\"\",Z324)))","v":""},{"$f":"IF(W324=\"\",\"\",IF(W324=Y324,V324,\"\"))","v":""},{"$f":"IF(W324=\"\",\"\",IF(W324=Y324,Z324,\"\"))","v":""},{"$f":"IF(W324=\"\",\"\",IF(W324<Y324,V324,IF(W324=Y324,\"\",Z324)))","v":""},{"$f":"CONCATENATE(AE324,AH324)","v":""}]
[null,null,null,null,null,null,null,null,null,null,null,null,null,null,null,null,null,"#G8",null,null,null,{"$f":"G269","v":"A10"},null,"-",null,{"$f":"G268","v":"A9"},null,{"$f":"IF(MaxScore,MaxGoals(W325,Y325,MaxGoalsValue),IF(W325=\"\",\"\",W325))","v":0},{"$f":"IF(MaxScore,\"-\",IF(W325=\"\",\"\",\"-\"))","v":"-"},{"$f":"IF(MaxScore,MaxGoals(Y325,W325,MaxGoalsValue),IF(Y325=\"\",\"\",Y325))","v":0},{"$f":"IF(W325=\"\",\"\",IF(W325>Y325,V325,IF(W325=Y325,\"\",Z325)))","v":""},{"$f":"IF(W325=\"\",\"\",IF(W325=Y325,V325,\"\"))","v":""},{"$f":"IF(W325=\"\",\"\",IF(W325=Y325,Z325,\"\"))","v":""},{"$f":"IF(W325=\"\",\"\",IF(W325<Y325,V325,IF(W325=Y325,\"\",Z325)))","v":""},{"$f":"CONCATENATE(AE325,AH325)","v":""}]
[null,null,null,null,null,null,null,null,null,null,null,null,null,null,null,null,null,null,{"$f":"S319+1","v":9}]
[null,null,null,null,null,null,null,null,null,null,null,null,null,null,null,null,null,null,{"$f":"N_Heure","v":"Time"},{"$f":"N_Table","v":"Table"},{"$f":"N_Arbitre","v":"Referee"},{"$f":"N_Matches","v":"Matches"}]
[null,null,null,null,null,null,null,null,null,null,null,null,null,null,null,null,null,"#G9",null,null,null,{"$f":"G262","v":"A3"},null,"-",null,{"$f":"G267","v":"A8"},null,{"$f":"IF(MaxScore,MaxGoals(W328,Y328,MaxGoalsValue),IF(W328=\"\",\"\",W328))","v":0},{"$f":"IF(MaxScore,\"-\",IF(W328=\"\",\"\",\"-\"))","v":"-"},{"$f":"IF(MaxScore,MaxGoals(Y328,W328,MaxGoalsValue),IF(Y328=\"\",\"\",Y328))","v":0},{"$f":"IF(W328=\"\",\"\",IF(W328>Y328,V328,IF(W328=Y328,\"\",Z328)))","v":""},{"$f":"IF(W328=\"\",\"\",IF(W328=Y328,V328,\"\"))","v":""},{"$f":"IF(W328=\"\",\"\",IF(W328=Y328,Z328,\"\"))","v":""},{"$f":"IF(W328=\"\",\"\",IF(W328<Y328,V328,IF(W328=Y328,\"\",Z328)))","v":""},{"$f":"CONCATENATE(AE328,AH328)","v":""}]
[null,null,null,null,null,null,null,null,null,null,null,null,null,null,null,null,null,"#G9",null,null,null,{"$f":"G263","v":"A4"},null,"-",null,{"$f":"G266","v":"A7"},null,{"$f":"IF(MaxScore,MaxGoals(W329,Y329,MaxGoalsValue),IF(W329=\"\",\"\",W329))","v":0},{"$f":"IF(MaxScore,\"-\",IF(W329=\"\",\"\",\"-\"))","v":"-"},{"$f":"IF(MaxScore,MaxGoals(Y329,W329,MaxGoalsValue),IF(Y329=\"\",\"\",Y329))","v":0},{"$f":"IF(W329=\"\",\"\",IF(W329>Y329,V329,IF(W329=Y329,\"\",Z329)))","v":""},{"$f":"IF(W329=\"\",\"\",IF(W329=Y329,V329,\"\"))","v":""},{"$f":"IF(W329=\"\",\"\",IF(W329=Y329,Z329,\"\"))","v":""},{"$f":"IF(W329=\"\",\"\",IF(W329<Y329,V329,IF(W329=Y329,\"\",Z329)))","v":""},{"$f":"CONCATENATE(AE329,AH329)","v":""}]
[null,null,null,null,null,null,null,null,null,null,null,null,null,null,null,null,null,"#G9",null,null,null,{"$f":"G264","v":"A5"},null,"-",null,{"$f":"G265","v":"A6"},null,{"$f":"IF(MaxScore,MaxGoals(W330,Y330,MaxGoalsValue),IF(W330=\"\",\"\",W330))","v":0},{"$f":"IF(MaxScore,\"-\",IF(W330=\"\",\"\",\"-\"))","v":"-"},{"$f":"IF(MaxScore,MaxGoals(Y330,W330,MaxGoalsValue),IF(Y330=\"\",\"\",Y330))","v":0},{"$f":"IF(W330=\"\",\"\",IF(W330>Y330,V330,IF(W330=Y330,\"\",Z330)))","v":""},{"$f":"IF(W330=\"\",\"\",IF(W330=Y330,V330,\"\"))","v":""},{"$f":"IF(W330=\"\",\"\",IF(W330=Y330,Z330,\"\"))","v":""},{"$f":"IF(W330=\"\",\"\",IF(W330<Y330,V330,IF(W330=Y330,\"\",Z330)))","v":""},{"$f":"CONCATENATE(AE330,AH330)","v":""}]
[null,null,null,null,null,null,null,null,null,null,null,null,null,null,null,null,null,"#G9",null,null,null,{"$f":"G268","v":"A9"},null,"-",null,{"$f":"G261","v":"A2"},null,{"$f":"IF(MaxScore,MaxGoals(W331,Y331,MaxGoalsValue),IF(W331=\"\",\"\",W331))","v":0},{"$f":"IF(MaxScore,\"-\",IF(W331=\"\",\"\",\"-\"))","v":"-"},{"$f":"IF(MaxScore,MaxGoals(Y331,W331,MaxGoalsValue),IF(Y331=\"\",\"\",Y331))","v":0},{"$f":"IF(W331=\"\",\"\",IF(W331>Y331,V331,IF(W331=Y331,\"\",Z331)))","v":""},{"$f":"IF(W331=\"\",\"\",IF(W331=Y331,V331,\"\"))","v":""},{"$f":"IF(W331=\"\",\"\",IF(W331=Y331,Z331,\"\"))","v":""},{"$f":"IF(W331=\"\",\"\",IF(W331<Y331,V331,IF(W331=Y331,\"\",Z331)))","v":""},{"$f":"CONCATENATE(AE331,AH331)","v":""}]
[null,null,null,null,null,null,null,null,null,null,null,null,null,null,null,null,null,"#G9",null,null,null,{"$f":"G269","v":"A10"},null,"-",null,{"$f":"G260","v":"A1"},null,{"$f":"IF(MaxScore,MaxGoals(W332,Y332,MaxGoalsValue),IF(W332=\"\",\"\",W332))","v":0},{"$f":"IF(MaxScore,\"-\",IF(W332=\"\",\"\",\"-\"))","v":"-"},{"$f":"IF(MaxScore,MaxGoals(Y332,W332,MaxGoalsValue),IF(Y332=\"\",\"\",Y332))","v":0},{"$f":"IF(W332=\"\",\"\",IF(W332>Y332,V332,IF(W332=Y332,\"\",Z332)))","v":""},{"$f":"IF(W332=\"\",\"\",IF(W332=Y332,V332,\"\"))","v":""},{"$f":"IF(W332=\"\",\"\",IF(W332=Y332,Z332,\"\"))","v":""},{"$f":"IF(W332=\"\",\"\",IF(W332<Y332,V332,IF(W332=Y332,\"\",Z332)))","v":""},{"$f":"CONCATENATE(AE332,AH332)","v":""}]
[]
[null,{"$f":"N_Group_11","v":"Group of 11"},null,null,null,null,null,null,null,null,null,null,null,null,null,null,null,null,null,null,null,null,null,null,null,null,null,null,null,null,null,null,null,null,null,null,null,null,{"$f":"B334","v":"Group of 11"}]
[]
[null,{"$f":"N_Tirage","v":"Draw"},"Cla.","Cla1","Part","Cla2",{"$f":"N_Joueurs","v":"Players"},{"$f":"N_RankPoints","v":"Rk Pt."},{"$f":"N_Diff_Part","v":"Part-Diff"},"Pts","J","G","N","P","BP","BC","Diff",null,null,null,null,null,null,null,null,null,null,null,null,null,{"$f":"N_G","v":"W"},{"$f":"N_N","v":"D"},{"$f":"N_N","v":"D"},{"$f":"N_P","v":"L"},"CONCAT","Ref Group",{"$f":"IF(COUNTA(W350:W424)=0,\"\",\"OK\")","v":""},null,null,{"$f":"N_Cla.","v":"Rk"},{"$f":"N_Joueurs","v":"Players"},{"$f":"N_Pts","v":"Pts"},{"$f":"N_J","v":"Pld"},{"$f":"N_G","v":"W"},{"$f":"N_N","v":"D"},{"$f":"N_P","v":"L"},{"$f":"N_BP","v":"F"},{"$f":"N_BC","v":"A"},{"$f":"N_Diff.","v":"SO"}]
[null,1,{"$f":"IF(AK336=\"\",\"\",RANK(F337,F337:F347)*1000+ROW())","v":""},{"$f":"IF(L337=\"\",\"\",CritClassInd1_Points*J337+CritClassInd1_Matches*L337+CritClassInd1_Attaque*O337+CritClassInd1_DiffButs*Q337)","v":""},{"$f":"IF(L337=\"\",\"\",Nb_Diff_Part(D337,D337:D347,G337,G337:G347,AI350:AI424)*CritClassInd_DiffPart+Nb_Goal_Part(D337,D337:D347,G337,G337:G347,V350:Z424)*CritClassInd_GoalPart+Nb_Score_Part(D337,D337:D347,G337,G337:G347,V350:Z424)*CritClassInd_ScorePart)","v":""},{"$f":"IF(L337=\"\",\"\",D337+E337+CritClassInd2_Points*J337+CritClassInd2_Matches*L337+CritClassInd2_Attaque*O337+CritClassInd2_DiffButs*Q337+CritClassInd_Ranking*H337+I337)","v":""},"A",{"$f":"GMFTRANKINGPOINTS(G337,Particular_Category)","v":0},null,{"$f":"IF(AK336=\"\",\"\",(L337*Points_Victoire)+M337*Points_Null)","v":""},{"$f":"IF(L337=\"\",\"\",SUM(L337:N337))","v":""},{"$f":"IF(AK336=\"\",\"\",COUNTIF(AE350:AE424,G337))","v":""},{"$f":"IF(AK336=\"\",\"\",COUNTIF(AF350:AG424,G337))","v":""},{"$f":"IF(AK336=\"\",\"\",COUNTIF(AH350:AH424,G337))","v":""},{"$f":"IF(AK336=\"\",\"\",SUMIF(V350:V424,G337,AB350:AB424)+SUMIF(Z350:Z424,G337,AD350:AD424))","v":""},{"$f":"IF(AK336=\"\",\"\",SUMIF(V350:V424,G337,AD350:AD424)+SUMIF(Z350:Z424,G337,AB350:AB424))","v":""},{"$f":"IF(AK336=\"\",\"\",O337-P337)","v":""},null,null,null,null,null,null,null,null,null,null,null,null,null,null,null,null,null,null,null,{"$f":"IF(AK336=\"\",\"\",SMALL(C337:C347,1))","v":""},null,null,{"$f":"IF(AK336=\"\",\"\",INT(AK337/1000))","v":""},{"$f":"IF(AK336=\"\",\"\",VLOOKUP(AK337,C337:Q347,5,FALSE))","v":""},{"$f":"VLOOKUP(AK337,C337:Q347,8,FALSE)","v":""},{"$f":"VLOOKUP(AK337,C337:Q347,9,FALSE)","v":""},{"$f":"VLOOKUP(AK337,C337:Q347,10,FALSE)","v":""},{"$f":"VLOOKUP(AK337,C337:Q347,11,FALSE)","v":""},{"$f":"VLOOKUP(AK337,C337:Q347,12,FALSE)","v":""},{"$f":"VLOOKUP(AK337,C337:Q347,13,FALSE)","v":""},{"$f":"VLOOKUP(AK337,C337:Q347,14,FALSE)","v":""},{"$f":"VLOOKUP(AK337,C337:Q347,15,FALSE)","v":""}]
[null,2,{"$f":"IF(AK336=\"\",\"\",RANK(F338,F337:F347)*1000+ROW())","v":""},{"$f":"IF(L338=\"\",\"\",CritClassInd1_Points*J338+CritClassInd1_Matches*L338+CritClassInd1_Attaque*O338+CritClassInd1_DiffButs*Q338)","v":""},{"$f":"IF(L338=\"\",\"\",Nb_Diff_Part(D338,D337:D347,G338,G337:G347,AI350:AI424)*CritClassInd_DiffPart+Nb_Goal_Part(D338,D337:D347,G338,G337:G347,V350:Z424)*CritClassInd_GoalPart+Nb_Score_Part(D338,D337:D347,G338,G337:G347,V350:Z424)*CritClassInd_ScorePart)","v":""},{"$f":"IF(L338=\"\",\"\",D338+E338+CritClassInd2_Points*J338+CritClassInd2_Matches*L338+CritClassInd2_Attaque*O338+CritClassInd2_DiffButs*Q338+CritClassInd_Ranking*H338+I338)","v":""},"B",0,null,{"$f":"IF(AK336=\"\",\"\",(L338*Points_Victoire)+M338*Points_Null)","v":""},"",{"$f":"IF(AK336=\"\",\"\",COUNTIF(AE350:AE424,G338))","v":""},{"$f":"IF(AK336=\"\",\"\",COUNTIF(AF350:AG424,G338))","v":""},{"$f":"IF(AK336=\"\",\"\",COUNTIF(AH350:AH424,G338))","v":""},{"$f":"IF(AK336=\"\",\"\",SUMIF(V350:V424,G338,AB350:AB424)+SUMIF(Z350:Z424,G338,AD350:AD424))","v":""},{"$f":"IF(AK336=\"\",\"\",SUMIF(V350:V424,G338,AD350:AD424)+SUMIF(Z350:Z424,G338,AB350:AB424))","v":""},{"$f":"IF(AK336=\"\",\"\",O338-P338)","v":""},null,null,null,null,null,null,null,null,null,null,null,null,null,null,null,null,null,null,null,{"$f":"IF(AK336=\"\",\"\",SMALL(C337:C347,2))","v":""},null,null,{"$f":"IF(AK336=\"\",\"\",INT(AK338/1000))","v":""},{"$f":"IF(AK336=\"\",\"\",VLOOKUP(AK338,C337:Q347,5,FALSE))","v":""},{"$f":"VLOOKUP(AK338,C337:Q347,8,FALSE)","v":""},{"$f":"VLOOKUP(AK338,C337:Q347,9,FALSE)","v":""},{"$f":"VLOOKUP(AK338,C337:Q347,10,FALSE)","v":""},{"$f":"VLOOKUP(AK338,C337:Q347,11,FALSE)","v":""},{"$f":"VLOOKUP(AK338,C337:Q347,12,FALSE)","v":""},{"$f":"VLOOKUP(AK338,C337:Q347,13,FALSE)","v":""},{"$f":"VLOOKUP(AK338,C337:Q347,14,FALSE)","v":""},{"$f":"VLOOKUP(AK338,C337:Q347,15,FALSE)","v":""}]
[null,3,{"$f":"IF(AK336=\"\",\"\",RANK(F339,F337:F347)*1000+ROW())","v":""},"",{"$f":"IF(L339=\"\",\"\",Nb_Diff_Part(D339,D337:D347,G339,G337:G347,AI350:AI424)*CritClassInd_DiffPart+Nb_Goal_Part(D339,D337:D347,G339,G337:G347,V350:Z424)*CritClassInd_GoalPart+Nb_Score_Part(D339,D337:D347,G339,G337:G347,V350:Z424)*CritClassInd_ScorePart)","v":""},"","C",0,null,{"$f":"IF(AK336=\"\",\"\",(L339*Points_Victoire)+M339*Points_Null)","v":""},"",{"$f":"IF(AK336=\"\",\"\",COUNTIF(AE350:AE424,G339))","v":""},{"$f":"IF(AK336=\"\",\"\",COUNTIF(AF350:AG424,G339))","v":""},{"$f":"IF(AK336=\"\",\"\",COUNTIF(AH350:AH424,G339))","v":""},{"$f":"IF(AK336=\"\",\"\",SUMIF(V350:V424,G339,AB350:AB424)+SUMIF(Z350:Z424,G339,AD350:AD424))","v":""},{"$f":"IF(AK336=\"\",\"\",SUMIF(V350:V424,G339,AD350:AD424)+SUMIF(Z350:Z424,G339,AB350:AB424))","v":""},{"$f":"IF(AK336=\"\",\"\",O339-P339)","v":""},null,null,null,null,null,null,null,null,null,null,null,null,null,null,null,null,null,null,null,{"$f":"IF(AK336=\"\",\"\",SMALL(C337:C347,3))","v":""},null,null,{"$f":"IF(AK336=\"\",\"\",INT(AK339/1000))","v":""},{"$f":"IF(AK336=\"\",\"\",VLOOKUP(AK339,C337:Q347,5,FALSE))","v":""},{"$f":"VLOOKUP(AK339,C337:Q347,8,FALSE)","v":""},{"$f":"VLOOKUP(AK339,C337:Q347,9,FALSE)","v":""},{"$f":"VLOOKUP(AK339,C337:Q347,10,FALSE)","v":""},{"$f":"VLOOKUP(AK339,C337:Q347,11,FALSE)","v":""},{"$f":"VLOOKUP(AK339,C337:Q347,12,FALSE)","v":""},{"$f":"VLOOKUP(AK339,C337:Q347,13,FALSE)","v":""},{"$f":"VLOOKUP(AK339,C337:Q347,14,FALSE)","v":""},{"$f":"VLOOKUP(AK339,C337:Q347,15,FALSE)","v":""}]
[null,4,{"$f":"IF(AK336=\"\",\"\",RANK(F340,F337:F347)*1000+ROW())","v":""},"",{"$f":"IF(L340=\"\",\"\",Nb_Diff_Part(D340,D337:D347,G340,G337:G347,AI350:AI424)*CritClassInd_DiffPart+Nb_Goal_Part(D340,D337:D347,G340,G337:G347,V350:Z424)*CritClassInd_GoalPart+Nb_Score_Part(D340,D337:D347,G340,G337:G347,V350:Z424)*CritClassInd_ScorePart)","v":""},"","D",0,null,{"$f":"IF(AK336=\"\",\"\",(L340*Points_Victoire)+M340*Points_Null)","v":""},"",{"$f":"IF(AK336=\"\",\"\",COUNTIF(AE350:AE424,G340))","v":""},{"$f":"IF(AK336=\"\",\"\",COUNTIF(AF350:AG424,G340))","v":""},{"$f":"IF(AK336=\"\",\"\",COUNTIF(AH350:AH424,G340))","v":""},{"$f":"IF(AK336=\"\",\"\",SUMIF(V350:V424,G340,AB350:AB424)+SUMIF(Z350:Z424,G340,AD350:AD424))","v":""},{"$f":"IF(AK336=\"\",\"\",SUMIF(V350:V424,G340,AD350:AD424)+SUMIF(Z350:Z424,G340,AB350:AB424))","v":""},{"$f":"IF(AK336=\"\",\"\",O340-P340)","v":""},null,null,null,null,null,null,null,null,null,null,null,null,null,null,null,null,null,null,null,{"$f":"IF(AK336=\"\",\"\",SMALL(C337:C347,4))","v":""},null,null,{"$f":"IF(AK336=\"\",\"\",INT(AK340/1000))","v":""},{"$f":"IF(AK336=\"\",\"\",VLOOKUP(AK340,C337:Q347,5,FALSE))","v":""},{"$f":"VLOOKUP(AK340,C337:Q347,8,FALSE)","v":""},{"$f":"VLOOKUP(AK340,C337:Q347,9,FALSE)","v":""},{"$f":"VLOOKUP(AK340,C337:Q347,10,FALSE)","v":""},{"$f":"VLOOKUP(AK340,C337:Q347,11,FALSE)","v":""},{"$f":"VLOOKUP(AK340,C337:Q347,12,FALSE)","v":""},{"$f":"VLOOKUP(AK340,C337:Q347,13,FALSE)","v":""},{"$f":"VLOOKUP(AK340,C337:Q347,14,FALSE)","v":""},{"$f":"VLOOKUP(AK340,C337:Q347,15,FALSE)","v":""}]
[null,5,{"$f":"IF(AK336=\"\",\"\",RANK(F341,F337:F347)*1000+ROW())","v":""},"",{"$f":"IF(L341=\"\",\"\",Nb_Diff_Part(D341,D337:D347,G341,G337:G347,AI350:AI424)*CritClassInd_DiffPart+Nb_Goal_Part(D341,D337:D347,G341,G337:G347,V350:Z424)*CritClassInd_GoalPart+Nb_Score_Part(D341,D337:D347,G341,G337:G347,V350:Z424)*CritClassInd_ScorePart)","v":""},"","E",0,null,{"$f":"IF(AK336=\"\",\"\",(L341*Points_Victoire)+M341*Points_Null)","v":""},"",{"$f":"IF(AK336=\"\",\"\",COUNTIF(AE350:AE424,G341))","v":""},{"$f":"IF(AK336=\"\",\"\",COUNTIF(AF350:AG424,G341))","v":""},{"$f":"IF(AK336=\"\",\"\",COUNTIF(AH350:AH424,G341))","v":""},{"$f":"IF(AK336=\"\",\"\",SUMIF(V350:V424,G341,AB350:AB424)+SUMIF(Z350:Z424,G341,AD350:AD424))","v":""},{"$f":"IF(AK336=\"\",\"\",SUMIF(V350:V424,G341,AD350:AD424)+SUMIF(Z350:Z424,G341,AB350:AB424))","v":""},{"$f":"IF(AK336=\"\",\"\",O341-P341)","v":""},null,null,null,null,null,null,null,null,null,null,null,null,null,null,null,null,null,null,null,{"$f":"IF(AK336=\"\",\"\",SMALL(C337:C347,5))","v":""},null,null,{"$f":"IF(AK336=\"\",\"\",INT(AK341/1000))","v":""},{"$f":"IF(AK336=\"\",\"\",VLOOKUP(AK341,C337:Q347,5,FALSE))","v":""},{"$f":"VLOOKUP(AK341,C337:Q347,8,FALSE)","v":""},{"$f":"VLOOKUP(AK341,C337:Q347,9,FALSE)","v":""},{"$f":"VLOOKUP(AK341,C337:Q347,10,FALSE)","v":""},{"$f":"VLOOKUP(AK341,C337:Q347,11,FALSE)","v":""},{"$f":"VLOOKUP(AK341,C337:Q347,12,FALSE)","v":""},{"$f":"VLOOKUP(AK341,C337:Q347,13,FALSE)","v":""},{"$f":"VLOOKUP(AK341,C337:Q347,14,FALSE)","v":""},{"$f":"VLOOKUP(AK341,C337:Q347,15,FALSE)","v":""}]
[null,6,{"$f":"IF(AK336=\"\",\"\",RANK(F342,F337:F347)*1000+ROW())","v":""},"",{"$f":"IF(L342=\"\",\"\",Nb_Diff_Part(D342,D337:D347,G342,G337:G347,AI350:AI424)*CritClassInd_DiffPart+Nb_Goal_Part(D342,D337:D347,G342,G337:G347,V350:Z424)*CritClassInd_GoalPart+Nb_Score_Part(D342,D337:D347,G342,G337:G347,V350:Z424)*CritClassInd_ScorePart)","v":""},"","F",0,null,{"$f":"IF(AK336=\"\",\"\",(L342*Points_Victoire)+M342*Points_Null)","v":""},"",{"$f":"IF(AK336=\"\",\"\",COUNTIF(AE350:AE424,G342))","v":""},{"$f":"IF(AK336=\"\",\"\",COUNTIF(AF350:AG424,G342))","v":""},{"$f":"IF(AK336=\"\",\"\",COUNTIF(AH350:AH424,G342))","v":""},{"$f":"IF(AK336=\"\",\"\",SUMIF(V350:V424,G342,AB350:AB424)+SUMIF(Z350:Z424,G342,AD350:AD424))","v":""},{"$f":"IF(AK336=\"\",\"\",SUMIF(V350:V424,G342,AD350:AD424)+SUMIF(Z350:Z424,G342,AB350:AB424))","v":""},{"$f":"IF(AK336=\"\",\"\",O342-P342)","v":""},null,null,null,null,null,null,null,null,null,null,null,null,null,null,null,null,null,null,null,{"$f":"IF(AK336=\"\",\"\",SMALL(C337:C347,6))","v":""},null,null,{"$f":"IF(AK336=\"\",\"\",INT(AK342/1000))","v":""},{"$f":"IF(AK336=\"\",\"\",VLOOKUP(AK342,C337:Q347,5,FALSE))","v":""},{"$f":"VLOOKUP(AK342,C337:Q347,8,FALSE)","v":""},{"$f":"VLOOKUP(AK342,C337:Q347,9,FALSE)","v":""},{"$f":"VLOOKUP(AK342,C337:Q347,10,FALSE)","v":""},{"$f":"VLOOKUP(AK342,C337:Q347,11,FALSE)","v":""},{"$f":"VLOOKUP(AK342,C337:Q347,12,FALSE)","v":""},{"$f":"VLOOKUP(AK342,C337:Q347,13,FALSE)","v":""},{"$f":"VLOOKUP(AK342,C337:Q347,14,FALSE)","v":""},{"$f":"VLOOKUP(AK342,C337:Q347,15,FALSE)","v":""}]
[null,7,{"$f":"IF(AK336=\"\",\"\",RANK(F343,F337:F347)*1000+ROW())","v":""},"",{"$f":"IF(L343=\"\",\"\",Nb_Diff_Part(D343,D337:D347,G343,G337:G347,AI350:AI424)*CritClassInd_DiffPart+Nb_Goal_Part(D343,D337:D347,G343,G337:G347,V350:Z424)*CritClassInd_GoalPart+Nb_Score_Part(D343,D337:D347,G343,G337:G347,V350:Z424)*CritClassInd_ScorePart)","v":""},"","G",0,null,{"$f":"IF(AK336=\"\",\"\",(L343*Points_Victoire)+M343*Points_Null)","v":""},"",{"$f":"IF(AK336=\"\",\"\",COUNTIF(AE350:AE424,G343))","v":""},{"$f":"IF(AK336=\"\",\"\",COUNTIF(AF350:AG424,G343))","v":""},{"$f":"IF(AK336=\"\",\"\",COUNTIF(AH350:AH424,G343))","v":""},{"$f":"IF(AK336=\"\",\"\",SUMIF(V350:V424,G343,AB350:AB424)+SUMIF(Z350:Z424,G343,AD350:AD424))","v":""},{"$f":"IF(AK336=\"\",\"\",SUMIF(V350:V424,G343,AD350:AD424)+SUMIF(Z350:Z424,G343,AB350:AB424))","v":""},{"$f":"IF(AK336=\"\",\"\",O343-P343)","v":""},null,null,null,null,null,null,null,null,null,null,null,null,null,null,null,null,null,null,null,{"$f":"IF(AK336=\"\",\"\",SMALL(C337:C347,7))","v":""},null,null,{"$f":"IF(AK336=\"\",\"\",INT(AK343/1000))","v":""},{"$f":"IF(AK336=\"\",\"\",VLOOKUP(AK343,C337:Q347,5,FALSE))","v":""},{"$f":"VLOOKUP(AK343,C337:Q347,8,FALSE)","v":""},{"$f":"VLOOKUP(AK343,C337:Q347,9,FALSE)","v":""},{"$f":"VLOOKUP(AK343,C337:Q347,10,FALSE)","v":""},{"$f":"VLOOKUP(AK343,C337:Q347,11,FALSE)","v":""},{"$f":"VLOOKUP(AK343,C337:Q347,12,FALSE)","v":""},{"$f":"VLOOKUP(AK343,C337:Q347,13,FALSE)","v":""},{"$f":"VLOOKUP(AK343,C337:Q347,14,FALSE)","v":""},{"$f":"VLOOKUP(AK343,C337:Q347,15,FALSE)","v":""}]
[null,8,{"$f":"IF(AK336=\"\",\"\",RANK(F344,F337:F347)*1000+ROW())","v":""},"",{"$f":"IF(L344=\"\",\"\",Nb_Diff_Part(D344,D337:D347,G344,G337:G347,AI350:AI424)*CritClassInd_DiffPart+Nb_Goal_Part(D344,D337:D347,G344,G337:G347,V350:Z424)*CritClassInd_GoalPart+Nb_Score_Part(D344,D337:D347,G344,G337:G347,V350:Z424)*CritClassInd_ScorePart)","v":""},"","H",0,null,{"$f":"IF(AK336=\"\",\"\",(L344*Points_Victoire)+M344*Points_Null)","v":""},"",{"$f":"IF(AK336=\"\",\"\",COUNTIF(AE350:AE424,G344))","v":""},{"$f":"IF(AK336=\"\",\"\",COUNTIF(AF350:AG424,G344))","v":""},{"$f":"IF(AK336=\"\",\"\",COUNTIF(AH350:AH424,G344))","v":""},{"$f":"IF(AK336=\"\",\"\",SUMIF(V350:V424,G344,AB350:AB424)+SUMIF(Z350:Z424,G344,AD350:AD424))","v":""},{"$f":"IF(AK336=\"\",\"\",SUMIF(V350:V424,G344,AD350:AD424)+SUMIF(Z350:Z424,G344,AB350:AB424))","v":""},{"$f":"IF(AK336=\"\",\"\",O344-P344)","v":""},null,null,null,null,null,null,null,null,null,null,null,null,null,null,null,null,null,null,null,{"$f":"IF(AK336=\"\",\"\",SMALL(C337:C347,8))","v":""},null,null,{"$f":"IF(AK336=\"\",\"\",INT(AK344/1000))","v":""},{"$f":"IF(AK336=\"\",\"\",VLOOKUP(AK344,C337:Q347,5,FALSE))","v":""},{"$f":"VLOOKUP(AK344,C337:Q347,8,FALSE)","v":""},{"$f":"VLOOKUP(AK344,C337:Q347,9,FALSE)","v":""},{"$f":"VLOOKUP(AK344,C337:Q347,10,FALSE)","v":""},{"$f":"VLOOKUP(AK344,C337:Q347,11,FALSE)","v":""},{"$f":"VLOOKUP(AK344,C337:Q347,12,FALSE)","v":""},{"$f":"VLOOKUP(AK344,C337:Q347,13,FALSE)","v":""},{"$f":"VLOOKUP(AK344,C337:Q347,14,FALSE)","v":""},{"$f":"VLOOKUP(AK344,C337:Q347,15,FALSE)","v":""}]
[null,9,{"$f":"IF(AK336=\"\",\"\",RANK(F345,F337:F347)*1000+ROW())","v":""},"",{"$f":"IF(L345=\"\",\"\",Nb_Diff_Part(D345,D337:D347,G345,G337:G347,AI350:AI424)*CritClassInd_DiffPart+Nb_Goal_Part(D345,D337:D347,G345,G337:G347,V350:Z424)*CritClassInd_GoalPart+Nb_Score_Part(D345,D337:D347,G345,G337:G347,V350:Z424)*CritClassInd_ScorePart)","v":""},"","I",0,null,{"$f":"IF(AK336=\"\",\"\",(L345*Points_Victoire)+M345*Points_Null)","v":""},"",{"$f":"IF(AK336=\"\",\"\",COUNTIF(AE350:AE424,G345))","v":""},{"$f":"IF(AK336=\"\",\"\",COUNTIF(AF350:AG424,G345))","v":""},{"$f":"IF(AK336=\"\",\"\",COUNTIF(AH350:AH424,G345))","v":""},{"$f":"IF(AK336=\"\",\"\",SUMIF(V350:V424,G345,AB350:AB424)+SUMIF(Z350:Z424,G345,AD350:AD424))","v":""},{"$f":"IF(AK336=\"\",\"\",SUMIF(V350:V424,G345,AD350:AD424)+SUMIF(Z350:Z424,G345,AB350:AB424))","v":""},{"$f":"IF(AK336=\"\",\"\",O345-P345)","v":""},null,null,null,null,null,null,null,null,null,null,null,null,null,null,null,null,null,null,null,{"$f":"IF(AK336=\"\",\"\",SMALL(C337:C347,9))","v":""},null,null,{"$f":"IF(AK336=\"\",\"\",INT(AK345/1000))","v":""},{"$f":"IF(AK336=\"\",\"\",VLOOKUP(AK345,C337:Q347,5,FALSE))","v":""},{"$f":"VLOOKUP(AK345,C337:Q347,8,FALSE)","v":""},{"$f":"VLOOKUP(AK345,C337:Q347,9,FALSE)","v":""},{"$f":"VLOOKUP(AK345,C337:Q347,10,FALSE)","v":""},{"$f":"VLOOKUP(AK345,C337:Q347,11,FALSE)","v":""},{"$f":"VLOOKUP(AK345,C337:Q347,12,FALSE)","v":""},{"$f":"VLOOKUP(AK345,C337:Q347,13,FALSE)","v":""},{"$f":"VLOOKUP(AK345,C337:Q347,14,FALSE)","v":""},{"$f":"VLOOKUP(AK345,C337:Q347,15,FALSE)","v":""}]
[null,10,{"$f":"IF(AK336=\"\",\"\",RANK(F346,F337:F347)*1000+ROW())","v":""},"",{"$f":"IF(L346=\"\",\"\",Nb_Diff_Part(D346,D337:D347,G346,G337:G347,AI350:AI424)*CritClassInd_DiffPart+Nb_Goal_Part(D346,D337:D347,G346,G337:G347,V350:Z424)*CritClassInd_GoalPart+Nb_Score_Part(D346,D337:D347,G346,G337:G347,V350:Z424)*CritClassInd_ScorePart)","v":""},"","J",0,null,{"$f":"IF(AK336=\"\",\"\",(L346*Points_Victoire)+M346*Points_Null)","v":""},"",{"$f":"IF(AK336=\"\",\"\",COUNTIF(AE350:AE424,G346))","v":""},{"$f":"IF(AK336=\"\",\"\",COUNTIF(AF350:AG424,G346))","v":""},{"$f":"IF(AK336=\"\",\"\",COUNTIF(AH350:AH424,G346))","v":""},{"$f":"IF(AK336=\"\",\"\",SUMIF(V350:V424,G346,AB350:AB424)+SUMIF(Z350:Z424,G346,AD350:AD424))","v":""},{"$f":"IF(AK336=\"\",\"\",SUMIF(V350:V424,G346,AD350:AD424)+SUMIF(Z350:Z424,G346,AB350:AB424))","v":""},{"$f":"IF(AK336=\"\",\"\",O346-P346)","v":""},null,null,null,null,null,null,null,null,null,null,null,null,null,null,null,null,null,null,null,{"$f":"IF(AK336=\"\",\"\",SMALL(C337:C347,10))","v":""},null,null,{"$f":"IF(AK336=\"\",\"\",INT(AK346/1000))","v":""},{"$f":"IF(AK336=\"\",\"\",VLOOKUP(AK346,C337:Q347,5,FALSE))","v":""},{"$f":"VLOOKUP(AK346,C337:Q347,8,FALSE)","v":""},{"$f":"VLOOKUP(AK346,C337:Q347,9,FALSE)","v":""},{"$f":"VLOOKUP(AK346,C337:Q347,10,FALSE)","v":""},{"$f":"VLOOKUP(AK346,C337:Q347,11,FALSE)","v":""},{"$f":"VLOOKUP(AK346,C337:Q347,12,FALSE)","v":""},{"$f":"VLOOKUP(AK346,C337:Q347,13,FALSE)","v":""},{"$f":"VLOOKUP(AK346,C337:Q347,14,FALSE)","v":""},{"$f":"VLOOKUP(AK346,C337:Q347,15,FALSE)","v":""}]
[null,11,{"$f":"IF(AK336=\"\",\"\",RANK(F347,F337:F347)*1000+ROW())","v":""},"",{"$f":"IF(L347=\"\",\"\",Nb_Diff_Part(D347,D337:D347,G347,G337:G347,AI350:AI424)*CritClassInd_DiffPart+Nb_Goal_Part(D347,D337:D347,G347,G337:G347,V350:Z424)*CritClassInd_GoalPart+Nb_Score_Part(D347,D337:D347,G347,G337:G347,V350:Z424)*CritClassInd_ScorePart)","v":""},"","K",0,null,{"$f":"IF(AK336=\"\",\"\",(L347*Points_Victoire)+M347*Points_Null)","v":""},"",{"$f":"IF(AK336=\"\",\"\",COUNTIF(AE350:AE424,G347))","v":""},{"$f":"IF(AK336=\"\",\"\",COUNTIF(AF350:AG424,G347))","v":""},{"$f":"IF(AK336=\"\",\"\",COUNTIF(AH350:AH424,G347))","v":""},{"$f":"IF(AK336=\"\",\"\",SUMIF(V350:V424,G347,AB350:AB424)+SUMIF(Z350:Z424,G347,AD350:AD424))","v":""},{"$f":"IF(AK336=\"\",\"\",SUMIF(V350:V424,G347,AD350:AD424)+SUMIF(Z350:Z424,G347,AB350:AB424))","v":""},{"$f":"IF(AK336=\"\",\"\",O347-P347)","v":""},null,null,null,null,null,null,null,null,null,null,null,null,null,null,null,null,null,null,null,{"$f":"IF(AK336=\"\",\"\",SMALL(C337:C347,11))","v":""},null,null,{"$f":"IF(AK336=\"\",\"\",INT(AK347/1000))","v":""},{"$f":"IF(AK336=\"\",\"\",VLOOKUP(AK347,C337:Q347,5,FALSE))","v":""},{"$f":"VLOOKUP(AK347,C337:Q347,8,FALSE)","v":""},{"$f":"VLOOKUP(AK347,C337:Q347,9,FALSE)","v":""},{"$f":"VLOOKUP(AK347,C337:Q347,10,FALSE)","v":""},{"$f":"VLOOKUP(AK347,C337:Q347,11,FALSE)","v":""},{"$f":"VLOOKUP(AK347,C337:Q347,12,FALSE)","v":""},{"$f":"VLOOKUP(AK347,C337:Q347,13,FALSE)","v":""},{"$f":"VLOOKUP(AK347,C337:Q347,14,FALSE)","v":""},{"$f":"VLOOKUP(AK347,C337:Q347,15,FALSE)","v":""}]
[null,null,null,null,null,null,null,null,null,null,null,null,null,null,null,null,null,null,1,null,null,null,null,null,null,null,null,{"$f":"IF(MaxScore,N_MaxScore,\"\")","v":"Max Score"}]
[null,null,null,null,null,null,null,null,null,null,null,null,null,null,null,null,null,null,{"$f":"N_Heure","v":"Time"},{"$f":"N_Table","v":"Table"},{"$f":"N_Arbitre","v":"Referee"},{"$f":"N_Matches","v":"Matches"}]
[null,null,null,null,null,null,null,null,null,null,null,null,null,null,null,null,null,"#G1",null,null,null,{"$f":"IF(G337=\"\",\"\",G337)","v":"A"},null,"-",null,{"$f":"IF(G338=\"\",\"\",G338)","v":"B"},null,{"$f":"IF(MaxScore,MaxGoals(W350,Y350,MaxGoalsValue),IF(W350=\"\",\"\",W350))","v":0},{"$f":"IF(MaxScore,\"-\",IF(W350=\"\",\"\",\"-\"))","v":"-"},{"$f":"IF(MaxScore,MaxGoals(Y350,W350,MaxGoalsValue),IF(Y350=\"\",\"\",Y350))","v":0},{"$f":"IF(W350=\"\",\"\",IF(W350>Y350,V350,IF(W350=Y350,\"\",Z350)))","v":""},{"$f":"IF(W350=\"\",\"\",IF(W350=Y350,V350,\"\"))","v":""},{"$f":"IF(W350=\"\",\"\",IF(W350=Y350,Z350,\"\"))","v":""},{"$f":"IF(W350=\"\",\"\",IF(W350<Y350,V350,IF(W350=Y350,\"\",Z350)))","v":""},{"$f":"CONCATENATE(AE350,AH350)","v":""}]
[null,null,null,null,null,null,null,null,null,null,null,null,null,null,null,null,null,"#G1",null,null,null,{"$f":"IF(G339=\"\",\"\",G339)","v":"C"},null,"-",null,{"$f":"IF(G340=\"\",\"\",G340)","v":"D"},null,{"$f":"IF(MaxScore,MaxGoals(W351,Y351,MaxGoalsValue),IF(W351=\"\",\"\",W351))","v":0},{"$f":"IF(MaxScore,\"-\",IF(W351=\"\",\"\",\"-\"))","v":"-"},{"$f":"IF(MaxScore,MaxGoals(Y351,W351,MaxGoalsValue),IF(Y351=\"\",\"\",Y351))","v":0},{"$f":"IF(W351=\"\",\"\",IF(W351>Y351,V351,IF(W351=Y351,\"\",Z351)))","v":""},{"$f":"IF(W351=\"\",\"\",IF(W351=Y351,V351,\"\"))","v":""},{"$f":"IF(W351=\"\",\"\",IF(W351=Y351,Z351,\"\"))","v":""},{"$f":"IF(W351=\"\",\"\",IF(W351<Y351,V351,IF(W351=Y351,\"\",Z351)))","v":""},{"$f":"CONCATENATE(AE351,AH351)","v":""}]
[null,null,null,null,null,null,null,null,null,null,null,null,null,null,null,null,null,"#G1",null,null,null,{"$f":"IF(G341=\"\",\"\",G341)","v":"E"},null,"-",null,{"$f":"IF(G342=\"\",\"\",G342)","v":"F"},null,{"$f":"IF(MaxScore,MaxGoals(W352,Y352,MaxGoalsValue),IF(W352=\"\",\"\",W352))","v":0},{"$f":"IF(MaxScore,\"-\",IF(W352=\"\",\"\",\"-\"))","v":"-"},{"$f":"IF(MaxScore,MaxGoals(Y352,W352,MaxGoalsValue),IF(Y352=\"\",\"\",Y352))","v":0},{"$f":"IF(W352=\"\",\"\",IF(W352>Y352,V352,IF(W352=Y352,\"\",Z352)))","v":""},{"$f":"IF(W352=\"\",\"\",IF(W352=Y352,V352,\"\"))","v":""},{"$f":"IF(W352=\"\",\"\",IF(W352=Y352,Z352,\"\"))","v":""},{"$f":"IF(W352=\"\",\"\",IF(W352<Y352,V352,IF(W352=Y352,\"\",Z352)))","v":""},{"$f":"CONCATENATE(AE352,AH352)","v":""}]
[null,null,null,null,null,null,null,null,null,null,null,null,null,null,null,null,null,"#G1",null,null,null,{"$f":"IF(G343=\"\",\"\",G343)","v":"G"},null,"-",null,{"$f":"IF(G344=\"\",\"\",G344)","v":"H"},null,{"$f":"IF(MaxScore,MaxGoals(W353,Y353,MaxGoalsValue),IF(W353=\"\",\"\",W353))","v":0},{"$f":"IF(MaxScore,\"-\",IF(W353=\"\",\"\",\"-\"))","v":"-"},{"$f":"IF(MaxScore,MaxGoals(Y353,W353,MaxGoalsValue),IF(Y353=\"\",\"\",Y353))","v":0},{"$f":"IF(W353=\"\",\"\",IF(W353>Y353,V353,IF(W353=Y353,\"\",Z353)))","v":""},{"$f":"IF(W353=\"\",\"\",IF(W353=Y353,V353,\"\"))","v":""},{"$f":"IF(W353=\"\",\"\",IF(W353=Y353,Z353,\"\"))","v":""},{"$f":"IF(W353=\"\",\"\",IF(W353<Y353,V353,IF(W353=Y353,\"\",Z353)))","v":""},{"$f":"CONCATENATE(AE353,AH353)","v":""}]
[null,null,null,null,null,null,null,null,null,null,null,null,null,null,null,null,null,"#G1",null,null,null,{"$f":"IF(G345=\"\",\"\",G345)","v":"I"},null,"-",null,{"$f":"IF(G346=\"\",\"\",G346)","v":"J"},null,{"$f":"IF(MaxScore,MaxGoals(W354,Y354,MaxGoalsValue),IF(W354=\"\",\"\",W354))","v":0},{"$f":"IF(MaxScore,\"-\",IF(W354=\"\",\"\",\"-\"))","v":"-"},{"$f":"IF(MaxScore,MaxGoals(Y354,W354,MaxGoalsValue),IF(Y354=\"\",\"\",Y354))","v":0},{"$f":"IF(W354=\"\",\"\",IF(W354>Y354,V354,IF(W354=Y354,\"\",Z354)))","v":""},{"$f":"IF(W354=\"\",\"\",IF(W354=Y354,V354,\"\"))","v":""},{"$f":"IF(W354=\"\",\"\",IF(W354=Y354,Z354,\"\"))","v":""},{"$f":"IF(W354=\"\",\"\",IF(W354<Y354,V354,IF(W354=Y354,\"\",Z354)))","v":""},{"$f":"CONCATENATE(AE354,AH354)","v":""}]
[null,null,null,null,null,null,null,null,null,null,null,null,null,null,null,null,null,null,{"$f":"S348+1","v":2}]
[null,null,null,null,null,null,null,null,null,null,null,null,null,null,null,null,null,null,{"$f":"N_Heure","v":"Time"},{"$f":"N_Table","v":"Table"},{"$f":"N_Arbitre","v":"Referee"},{"$f":"N_Matches","v":"Matches"}]
[null,null,null,null,null,null,null,null,null,null,null,null,null,null,null,null,null,"#G2",null,null,null,{"$f":"V351","v":"C"},null,"-",null,{"$f":"V350","v":"A"},null,{"$f":"IF(MaxScore,MaxGoals(W357,Y357,MaxGoalsValue),IF(W357=\"\",\"\",W357))","v":0},{"$f":"IF(MaxScore,\"-\",IF(W357=\"\",\"\",\"-\"))","v":"-"},{"$f":"IF(MaxScore,MaxGoals(Y357,W357,MaxGoalsValue),IF(Y357=\"\",\"\",Y357))","v":0},{"$f":"IF(W357=\"\",\"\",IF(W357>Y357,V357,IF(W357=Y357,\"\",Z357)))","v":""},{"$f":"IF(W357=\"\",\"\",IF(W357=Y357,V357,\"\"))","v":""},{"$f":"IF(W357=\"\",\"\",IF(W357=Y357,Z357,\"\"))","v":""},{"$f":"IF(W357=\"\",\"\",IF(W357<Y357,V357,IF(W357=Y357,\"\",Z357)))","v":""},{"$f":"CONCATENATE(AE357,AH357)","v":""}]
[null,null,null,null,null,null,null,null,null,null,null,null,null,null,null,null,null,"#G2",null,null,null,{"$f":"Z350","v":"B"},null,"-",null,{"$f":"V352","v":"E"},null,{"$f":"IF(MaxScore,MaxGoals(W358,Y358,MaxGoalsValue),IF(W358=\"\",\"\",W358))","v":0},{"$f":"IF(MaxScore,\"-\",IF(W358=\"\",\"\",\"-\"))","v":"-"},{"$f":"IF(MaxScore,MaxGoals(Y358,W358,MaxGoalsValue),IF(Y358=\"\",\"\",Y358))","v":0},{"$f":"IF(W358=\"\",\"\",IF(W358>Y358,V358,IF(W358=Y358,\"\",Z358)))","v":""},{"$f":"IF(W358=\"\",\"\",IF(W358=Y358,V358,\"\"))","v":""},{"$f":"IF(W358=\"\",\"\",IF(W358=Y358,Z358,\"\"))","v":""},{"$f":"IF(W358=\"\",\"\",IF(W358<Y358,V358,IF(W358=Y358,\"\",Z358)))","v":""},{"$f":"CONCATENATE(AE358,AH358)","v":""}]
[null,null,null,null,null,null,null,null,null,null,null,null,null,null,null,null,null,"#G2",null,null,null,{"$f":"Z351","v":"D"},null,"-",null,{"$f":"V353","v":"G"},null,{"$f":"IF(MaxScore,MaxGoals(W359,Y359,MaxGoalsValue),IF(W359=\"\",\"\",W359))","v":0},{"$f":"IF(MaxScore,\"-\",IF(W359=\"\",\"\",\"-\"))","v":"-"},{"$f":"IF(MaxScore,MaxGoals(Y359,W359,MaxGoalsValue),IF(Y359=\"\",\"\",Y359))","v":0},{"$f":"IF(W359=\"\",\"\",IF(W359>Y359,V359,IF(W359=Y359,\"\",Z359)))","v":""},{"$f":"IF(W359=\"\",\"\",IF(W359=Y359,V359,\"\"))","v":""},{"$f":"IF(W359=\"\",\"\",IF(W359=Y359,Z359,\"\"))","v":""},{"$f":"IF(W359=\"\",\"\",IF(W359<Y359,V359,IF(W359=Y359,\"\",Z359)))","v":""},{"$f":"CONCATENATE(AE359,AH359)","v":""}]
[null,null,null,null,null,null,null,null,null,null,null,null,null,null,null,null,null,"#G2",null,null,null,{"$f":"Z352","v":"F"},null,"-",null,{"$f":"V354","v":"I"},null,{"$f":"IF(MaxScore,MaxGoals(W360,Y360,MaxGoalsValue),IF(W360=\"\",\"\",W360))","v":0},{"$f":"IF(MaxScore,\"-\",IF(W360=\"\",\"\",\"-\"))","v":"-"},{"$f":"IF(MaxScore,MaxGoals(Y360,W360,MaxGoalsValue),IF(Y360=\"\",\"\",Y360))","v":0},{"$f":"IF(W360=\"\",\"\",IF(W360>Y360,V360,IF(W360=Y360,\"\",Z360)))","v":""},{"$f":"IF(W360=\"\",\"\",IF(W360=Y360,V360,\"\"))","v":""},{"$f":"IF(W360=\"\",\"\",IF(W360=Y360,Z360,\"\"))","v":""},{"$f":"IF(W360=\"\",\"\",IF(W360<Y360,V360,IF(W360=Y360,\"\",Z360)))","v":""},{"$f":"CONCATENATE(AE360,AH360)","v":""}]
[null,null,null,null,null,null,null,null,null,null,null,null,null,null,null,null,null,"#G2",null,null,null,{"$f":"Z353","v":"H"},null,"-",null,{"$f":"G347","v":"K"},null,{"$f":"IF(MaxScore,MaxGoals(W361,Y361,MaxGoalsValue),IF(W361=\"\",\"\",W361))","v":0},{"$f":"IF(MaxScore,\"-\",IF(W361=\"\",\"\",\"-\"))","v":"-"},{"$f":"IF(MaxScore,MaxGoals(Y361,W361,MaxGoalsValue),IF(Y361=\"\",\"\",Y361))","v":0},{"$f":"IF(W361=\"\",\"\",IF(W361>Y361,V361,IF(W361=Y361,\"\",Z361)))","v":""},{"$f":"IF(W361=\"\",\"\",IF(W361=Y361,V361,\"\"))","v":""},{"$f":"IF(W361=\"\",\"\",IF(W361=Y361,Z361,\"\"))","v":""},{"$f":"IF(W361=\"\",\"\",IF(W361<Y361,V361,IF(W361=Y361,\"\",Z361)))","v":""},{"$f":"CONCATENATE(AE361,AH361)","v":""}]
[null,null,null,null,null,null,null,null,null,null,null,null,null,null,null,null,null,null,{"$f":"S355+1","v":3}]
[null,null,null,null,null,null,null,null,null,null,null,null,null,null,null,null,null,null,{"$f":"N_Heure","v":"Time"},{"$f":"N_Table","v":"Table"},{"$f":"N_Arbitre","v":"Referee"},{"$f":"N_Matches","v":"Matches"}]
[null,null,null,null,null,null,null,null,null,null,null,null,null,null,null,null,null,"#G3",null,null,null,{"$f":"Z357","v":"A"},null,"-",null,{"$f":"Z358","v":"E"},null,{"$f":"IF(MaxScore,MaxGoals(W364,Y364,MaxGoalsValue),IF(W364=\"\",\"\",W364))","v":0},{"$f":"IF(MaxScore,\"-\",IF(W364=\"\",\"\",\"-\"))","v":"-"},{"$f":"IF(MaxScore,MaxGoals(Y364,W364,MaxGoalsValue),IF(Y364=\"\",\"\",Y364))","v":0},{"$f":"IF(W364=\"\",\"\",IF(W364>Y364,V364,IF(W364=Y364,\"\",Z364)))","v":""},{"$f":"IF(W364=\"\",\"\",IF(W364=Y364,V364,\"\"))","v":""},{"$f":"IF(W364=\"\",\"\",IF(W364=Y364,Z364,\"\"))","v":""},{"$f":"IF(W364=\"\",\"\",IF(W364<Y364,V364,IF(W364=Y364,\"\",Z364)))","v":""},{"$f":"CONCATENATE(AE364,AH364)","v":""}]
[null,null,null,null,null,null,null,null,null,null,null,null,null,null,null,null,null,"#G3",null,null,null,{"$f":"Z359","v":"G"},null,"-",null,{"$f":"V357","v":"C"},null,{"$f":"IF(MaxScore,MaxGoals(W365,Y365,MaxGoalsValue),IF(W365=\"\",\"\",W365))","v":0},{"$f":"IF(MaxScore,\"-\",IF(W365=\"\",\"\",\"-\"))","v":"-"},{"$f":"IF(MaxScore,MaxGoals(Y365,W365,MaxGoalsValue),IF(Y365=\"\",\"\",Y365))","v":0},{"$f":"IF(W365=\"\",\"\",IF(W365>Y365,V365,IF(W365=Y365,\"\",Z365)))","v":""},{"$f":"IF(W365=\"\",\"\",IF(W365=Y365,V365,\"\"))","v":""},{"$f":"IF(W365=\"\",\"\",IF(W365=Y365,Z365,\"\"))","v":""},{"$f":"IF(W365=\"\",\"\",IF(W365<Y365,V365,IF(W365=Y365,\"\",Z365)))","v":""},{"$f":"CONCATENATE(AE365,AH365)","v":""}]
[null,null,null,null,null,null,null,null,null,null,null,null,null,null,null,null,null,"#G3",null,null,null,{"$f":"Z360","v":"I"},null,"-",null,{"$f":"V358","v":"B"},null,{"$f":"IF(MaxScore,MaxGoals(W366,Y366,MaxGoalsValue),IF(W366=\"\",\"\",W366))","v":0},{"$f":"IF(MaxScore,\"-\",IF(W366=\"\",\"\",\"-\"))","v":"-"},{"$f":"IF(MaxScore,MaxGoals(Y366,W366,MaxGoalsValue),IF(Y366=\"\",\"\",Y366))","v":0},{"$f":"IF(W366=\"\",\"\",IF(W366>Y366,V366,IF(W366=Y366,\"\",Z366)))","v":""},{"$f":"IF(W366=\"\",\"\",IF(W366=Y366,V366,\"\"))","v":""},{"$f":"IF(W366=\"\",\"\",IF(W366=Y366,Z366,\"\"))","v":""},{"$f":"IF(W366=\"\",\"\",IF(W366<Y366,V366,IF(W366=Y366,\"\",Z366)))","v":""},{"$f":"CONCATENATE(AE366,AH366)","v":""}]
[null,null,null,null,null,null,null,null,null,null,null,null,null,null,null,null,null,"#G3",null,null,null,{"$f":"Z361","v":"K"},null,"-",null,{"$f":"V359","v":"D"},null,{"$f":"IF(MaxScore,MaxGoals(W367,Y367,MaxGoalsValue),IF(W367=\"\",\"\",W367))","v":0},{"$f":"IF(MaxScore,\"-\",IF(W367=\"\",\"\",\"-\"))","v":"-"},{"$f":"IF(MaxScore,MaxGoals(Y367,W367,MaxGoalsValue),IF(Y367=\"\",\"\",Y367))","v":0},{"$f":"IF(W367=\"\",\"\",IF(W367>Y367,V367,IF(W367=Y367,\"\",Z367)))","v":""},{"$f":"IF(W367=\"\",\"\",IF(W367=Y367,V367,\"\"))","v":""},{"$f":"IF(W367=\"\",\"\",IF(W367=Y367,Z367,\"\"))","v":""},{"$f":"IF(W367=\"\",\"\",IF(W367<Y367,V367,IF(W367=Y367,\"\",Z367)))","v":""},{"$f":"CONCATENATE(AE367,AH367)","v":""}]
[null,null,null,null,null,null,null,null,null,null,null,null,null,null,null,null,null,"#G3",null,null,null,{"$f":"Z354","v":"J"},null,"-",null,{"$f":"V361","v":"H"},null,{"$f":"IF(MaxScore,MaxGoals(W368,Y368,MaxGoalsValue),IF(W368=\"\",\"\",W368))","v":0},{"$f":"IF(MaxScore,\"-\",IF(W368=\"\",\"\",\"-\"))","v":"-"},{"$f":"IF(MaxScore,MaxGoals(Y368,W368,MaxGoalsValue),IF(Y368=\"\",\"\",Y368))","v":0},{"$f":"IF(W368=\"\",\"\",IF(W368>Y368,V368,IF(W368=Y368,\"\",Z368)))","v":""},{"$f":"IF(W368=\"\",\"\",IF(W368=Y368,V368,\"\"))","v":""},{"$f":"IF(W368=\"\",\"\",IF(W368=Y368,Z368,\"\"))","v":""},{"$f":"IF(W368=\"\",\"\",IF(W368<Y368,V368,IF(W368=Y368,\"\",Z368)))","v":""},{"$f":"CONCATENATE(AE368,AH368)","v":""}]
[null,null,null,null,null,null,null,null,null,null,null,null,null,null,null,null,null,null,{"$f":"S362+1","v":4}]
[null,null,null,null,null,null,null,null,null,null,null,null,null,null,null,null,null,null,{"$f":"N_Heure","v":"Time"},{"$f":"N_Table","v":"Table"},{"$f":"N_Arbitre","v":"Referee"},{"$f":"N_Matches","v":"Matches"}]
[null,null,null,null,null,null,null,null,null,null,null,null,null,null,null,null,null,"#G4",null,null,null,{"$f":"V365","v":"G"},null,"-",null,{"$f":"V364","v":"A"},null,{"$f":"IF(MaxScore,MaxGoals(W371,Y371,MaxGoalsValue),IF(W371=\"\",\"\",W371))","v":0},{"$f":"IF(MaxScore,\"-\",IF(W371=\"\",\"\",\"-\"))","v":"-"},{"$f":"IF(MaxScore,MaxGoals(Y371,W371,MaxGoalsValue),IF(Y371=\"\",\"\",Y371))","v":0},{"$f":"IF(W371=\"\",\"\",IF(W371>Y371,V371,IF(W371=Y371,\"\",Z371)))","v":""},{"$f":"IF(W371=\"\",\"\",IF(W371=Y371,V371,\"\"))","v":""},{"$f":"IF(W371=\"\",\"\",IF(W371=Y371,Z371,\"\"))","v":""},{"$f":"IF(W371=\"\",\"\",IF(W371<Y371,V371,IF(W371=Y371,\"\",Z371)))","v":""},{"$f":"CONCATENATE(AE371,AH371)","v":""}]
[null,null,null,null,null,null,null,null,null,null,null,null,null,null,null,null,null,"#G4",null,null,null,{"$f":"Z364","v":"E"},null,"-",null,{"$f":"V366","v":"I"},null,{"$f":"IF(MaxScore,MaxGoals(W372,Y372,MaxGoalsValue),IF(W372=\"\",\"\",W372))","v":0},{"$f":"IF(MaxScore,\"-\",IF(W372=\"\",\"\",\"-\"))","v":"-"},{"$f":"IF(MaxScore,MaxGoals(Y372,W372,MaxGoalsValue),IF(Y372=\"\",\"\",Y372))","v":0},{"$f":"IF(W372=\"\",\"\",IF(W372>Y372,V372,IF(W372=Y372,\"\",Z372)))","v":""},{"$f":"IF(W372=\"\",\"\",IF(W372=Y372,V372,\"\"))","v":""},{"$f":"IF(W372=\"\",\"\",IF(W372=Y372,Z372,\"\"))","v":""},{"$f":"IF(W372=\"\",\"\",IF(W372<Y372,V372,IF(W372=Y372,\"\",Z372)))","v":""},{"$f":"CONCATENATE(AE372,AH372)","v":""}]
[null,null,null,null,null,null,null,null,null,null,null,null,null,null,null,null,null,"#G4",null,null,null,{"$f":"Z365","v":"C"},null,"-",null,{"$f":"V367","v":"K"},null,{"$f":"IF(MaxScore,MaxGoals(W373,Y373,MaxGoalsValue),IF(W373=\"\",\"\",W373))","v":0},{"$f":"IF(MaxScore,\"-\",IF(W373=\"\",\"\",\"-\"))","v":"-"},{"$f":"IF(MaxScore,MaxGoals(Y373,W373,MaxGoalsValue),IF(Y373=\"\",\"\",Y373))","v":0},{"$f":"IF(W373=\"\",\"\",IF(W373>Y373,V373,IF(W373=Y373,\"\",Z373)))","v":""},{"$f":"IF(W373=\"\",\"\",IF(W373=Y373,V373,\"\"))","v":""},{"$f":"IF(W373=\"\",\"\",IF(W373=Y373,Z373,\"\"))","v":""},{"$f":"IF(W373=\"\",\"\",IF(W373<Y373,V373,IF(W373=Y373,\"\",Z373)))","v":""},{"$f":"CONCATENATE(AE373,AH373)","v":""}]
[null,null,null,null,null,null,null,null,null,null,null,null,null,null,null,null,null,"#G4",null,null,null,{"$f":"Z367","v":"D"},null,"-",null,{"$f":"V368","v":"J"},null,{"$f":"IF(MaxScore,MaxGoals(W374,Y374,MaxGoalsValue),IF(W374=\"\",\"\",W374))","v":0},{"$f":"IF(MaxScore,\"-\",IF(W374=\"\",\"\",\"-\"))","v":"-"},{"$f":"IF(MaxScore,MaxGoals(Y374,W374,MaxGoalsValue),IF(Y374=\"\",\"\",Y374))","v":0},{"$f":"IF(W374=\"\",\"\",IF(W374>Y374,V374,IF(W374=Y374,\"\",Z374)))","v":""},{"$f":"IF(W374=\"\",\"\",IF(W374=Y374,V374,\"\"))","v":""},{"$f":"IF(W374=\"\",\"\",IF(W374=Y374,Z374,\"\"))","v":""},{"$f":"IF(W374=\"\",\"\",IF(W374<Y374,V374,IF(W374=Y374,\"\",Z374)))","v":""},{"$f":"CONCATENATE(AE374,AH374)","v":""}]
[null,null,null,null,null,null,null,null,null,null,null,null,null,null,null,null,null,"#G4",null,null,null,{"$f":"V360","v":"F"},null,"-",null,{"$f":"Z368","v":"H"},null,{"$f":"IF(MaxScore,MaxGoals(W375,Y375,MaxGoalsValue),IF(W375=\"\",\"\",W375))","v":0},{"$f":"IF(MaxScore,\"-\",IF(W375=\"\",\"\",\"-\"))","v":"-"},{"$f":"IF(MaxScore,MaxGoals(Y375,W375,MaxGoalsValue),IF(Y375=\"\",\"\",Y375))","v":0},{"$f":"IF(W375=\"\",\"\",IF(W375>Y375,V375,IF(W375=Y375,\"\",Z375)))","v":""},{"$f":"IF(W375=\"\",\"\",IF(W375=Y375,V375,\"\"))","v":""},{"$f":"IF(W375=\"\",\"\",IF(W375=Y375,Z375,\"\"))","v":""},{"$f":"IF(W375=\"\",\"\",IF(W375<Y375,V375,IF(W375=Y375,\"\",Z375)))","v":""},{"$f":"CONCATENATE(AE375,AH375)","v":""}]
[null,null,null,null,null,null,null,null,null,null,null,null,null,null,null,null,null,null,{"$f":"S369+1","v":5}]
[null,null,null,null,null,null,null,null,null,null,null,null,null,null,null,null,null,null,{"$f":"N_Heure","v":"Time"},{"$f":"N_Table","v":"Table"},{"$f":"N_Arbitre","v":"Referee"},{"$f":"N_Matches","v":"Matches"}]
[null,null,null,null,null,null,null,null,null,null,null,null,null,null,null,null,null,"#G5",null,null,null,{"$f":"Z371","v":"A"},null,"-",null,{"$f":"Z372","v":"I"},null,{"$f":"IF(MaxScore,MaxGoals(W378,Y378,MaxGoalsValue),IF(W378=\"\",\"\",W378))","v":0},{"$f":"IF(MaxScore,\"-\",IF(W378=\"\",\"\",\"-\"))","v":"-"},{"$f":"IF(MaxScore,MaxGoals(Y378,W378,MaxGoalsValue),IF(Y378=\"\",\"\",Y378))","v":0},{"$f":"IF(W378=\"\",\"\",IF(W378>Y378,V378,IF(W378=Y378,\"\",Z378)))","v":""},{"$f":"IF(W378=\"\",\"\",IF(W378=Y378,V378,\"\"))","v":""},{"$f":"IF(W378=\"\",\"\",IF(W378=Y378,Z378,\"\"))","v":""},{"$f":"IF(W378=\"\",\"\",IF(W378<Y378,V378,IF(W378=Y378,\"\",Z378)))","v":""},{"$f":"CONCATENATE(AE378,AH378)","v":""}]
[null,null,null,null,null,null,null,null,null,null,null,null,null,null,null,null,null,"#G5",null,null,null,{"$f":"Z373","v":"K"},null,"-",null,{"$f":"V371","v":"G"},null,{"$f":"IF(MaxScore,MaxGoals(W379,Y379,MaxGoalsValue),IF(W379=\"\",\"\",W379))","v":0},{"$f":"IF(MaxScore,\"-\",IF(W379=\"\",\"\",\"-\"))","v":"-"},{"$f":"IF(MaxScore,MaxGoals(Y379,W379,MaxGoalsValue),IF(Y379=\"\",\"\",Y379))","v":0},{"$f":"IF(W379=\"\",\"\",IF(W379>Y379,V379,IF(W379=Y379,\"\",Z379)))","v":""},{"$f":"IF(W379=\"\",\"\",IF(W379=Y379,V379,\"\"))","v":""},{"$f":"IF(W379=\"\",\"\",IF(W379=Y379,Z379,\"\"))","v":""},{"$f":"IF(W379=\"\",\"\",IF(W379<Y379,V379,IF(W379=Y379,\"\",Z379)))","v":""},{"$f":"CONCATENATE(AE379,AH379)","v":""}]
[null,null,null,null,null,null,null,null,null,null,null,null,null,null,null,null,null,"#G5",null,null,null,{"$f":"Z374","v":"J"},null,"-",null,{"$f":"V373","v":"C"},null,{"$f":"IF(MaxScore,MaxGoals(W380,Y380,MaxGoalsValue),IF(W380=\"\",\"\",W380))","v":0},{"$f":"IF(MaxScore,\"-\",IF(W380=\"\",\"\",\"-\"))","v":"-"},{"$f":"IF(MaxScore,MaxGoals(Y380,W380,MaxGoalsValue),IF(Y380=\"\",\"\",Y380))","v":0},{"$f":"IF(W380=\"\",\"\",IF(W380>Y380,V380,IF(W380=Y380,\"\",Z380)))","v":""},{"$f":"IF(W380=\"\",\"\",IF(W380=Y380,V380,\"\"))","v":""},{"$f":"IF(W380=\"\",\"\",IF(W380=Y380,Z380,\"\"))","v":""},{"$f":"IF(W380=\"\",\"\",IF(W380<Y380,V380,IF(W380=Y380,\"\",Z380)))","v":""},{"$f":"CONCATENATE(AE380,AH380)","v":""}]
[null,null,null,null,null,null,null,null,null,null,null,null,null,null,null,null,null,"#G5",null,null,null,{"$f":"Z375","v":"H"},null,"-",null,{"$f":"Z366","v":"B"},null,{"$f":"IF(MaxScore,MaxGoals(W381,Y381,MaxGoalsValue),IF(W381=\"\",\"\",W381))","v":0},{"$f":"IF(MaxScore,\"-\",IF(W381=\"\",\"\",\"-\"))","v":"-"},{"$f":"IF(MaxScore,MaxGoals(Y381,W381,MaxGoalsValue),IF(Y381=\"\",\"\",Y381))","v":0},{"$f":"IF(W381=\"\",\"\",IF(W381>Y381,V381,IF(W381=Y381,\"\",Z381)))","v":""},{"$f":"IF(W381=\"\",\"\",IF(W381=Y381,V381,\"\"))","v":""},{"$f":"IF(W381=\"\",\"\",IF(W381=Y381,Z381,\"\"))","v":""},{"$f":"IF(W381=\"\",\"\",IF(W381<Y381,V381,IF(W381=Y381,\"\",Z381)))","v":""},{"$f":"CONCATENATE(AE381,AH381)","v":""}]
[null,null,null,null,null,null,null,null,null,null,null,null,null,null,null,null,null,"#G5",null,null,null,{"$f":"V375","v":"F"},null,"-",null,{"$f":"V374","v":"D"},null,{"$f":"IF(MaxScore,MaxGoals(W382,Y382,MaxGoalsValue),IF(W382=\"\",\"\",W382))","v":0},{"$f":"IF(MaxScore,\"-\",IF(W382=\"\",\"\",\"-\"))","v":"-"},{"$f":"IF(MaxScore,MaxGoals(Y382,W382,MaxGoalsValue),IF(Y382=\"\",\"\",Y382))","v":0},{"$f":"IF(W382=\"\",\"\",IF(W382>Y382,V382,IF(W382=Y382,\"\",Z382)))","v":""},{"$f":"IF(W382=\"\",\"\",IF(W382=Y382,V382,\"\"))","v":""},{"$f":"IF(W382=\"\",\"\",IF(W382=Y382,Z382,\"\"))","v":""},{"$f":"IF(W382=\"\",\"\",IF(W382<Y382,V382,IF(W382=Y382,\"\",Z382)))","v":""},{"$f":"CONCATENATE(AE382,AH382)","v":""}]
[null,null,null,null,null,null,null,null,null,null,null,null,null,null,null,null,null,null,{"$f":"S376+1","v":6}]
[null,null,null,null,null,null,null,null,null,null,null,null,null,null,null,null,null,null,{"$f":"N_Heure","v":"Time"},{"$f":"N_Table","v":"Table"},{"$f":"N_Arbitre","v":"Referee"},{"$f":"N_Matches","v":"Matches"}]
[null,null,null,null,null,null,null,null,null,null,null,null,null,null,null,null,null,"#G6",null,null,null,{"$f":"V379","v":"K"},null,"-",null,{"$f":"V378","v":"A"},null,{"$f":"IF(MaxScore,MaxGoals(W385,Y385,MaxGoalsValue),IF(W385=\"\",\"\",W385))","v":0},{"$f":"IF(MaxScore,\"-\",IF(W385=\"\",\"\",\"-\"))","v":"-"},{"$f":"IF(MaxScore,MaxGoals(Y385,W385,MaxGoalsValue),IF(Y385=\"\",\"\",Y385))","v":0},{"$f":"IF(W385=\"\",\"\",IF(W385>Y385,V385,IF(W385=Y385,\"\",Z385)))","v":""},{"$f":"IF(W385=\"\",\"\",IF(W385=Y385,V385,\"\"))","v":""},{"$f":"IF(W385=\"\",\"\",IF(W385=Y385,Z385,\"\"))","v":""},{"$f":"IF(W385=\"\",\"\",IF(W385<Y385,V385,IF(W385=Y385,\"\",Z385)))","v":""},{"$f":"CONCATENATE(AE385,AH385)","v":""}]
[null,null,null,null,null,null,null,null,null,null,null,null,null,null,null,null,null,"#G6",null,null,null,{"$f":"Z379","v":"G"},null,"-",null,{"$f":"V380","v":"J"},null,{"$f":"IF(MaxScore,MaxGoals(W386,Y386,MaxGoalsValue),IF(W386=\"\",\"\",W386))","v":0},{"$f":"IF(MaxScore,\"-\",IF(W386=\"\",\"\",\"-\"))","v":"-"},{"$f":"IF(MaxScore,MaxGoals(Y386,W386,MaxGoalsValue),IF(Y386=\"\",\"\",Y386))","v":0},{"$f":"IF(W386=\"\",\"\",IF(W386>Y386,V386,IF(W386=Y386,\"\",Z386)))","v":""},{"$f":"IF(W386=\"\",\"\",IF(W386=Y386,V386,\"\"))","v":""},{"$f":"IF(W386=\"\",\"\",IF(W386=Y386,Z386,\"\"))","v":""},{"$f":"IF(W386=\"\",\"\",IF(W386<Y386,V386,IF(W386=Y386,\"\",Z386)))","v":""},{"$f":"CONCATENATE(AE386,AH386)","v":""}]
[null,null,null,null,null,null,null,null,null,null,null,null,null,null,null,null,null,"#G6",null,null,null,{"$f":"V372","v":"E"},null,"-",null,{"$f":"V381","v":"H"},null,{"$f":"IF(MaxScore,MaxGoals(W387,Y387,MaxGoalsValue),IF(W387=\"\",\"\",W387))","v":0},{"$f":"IF(MaxScore,\"-\",IF(W387=\"\",\"\",\"-\"))","v":"-"},{"$f":"IF(MaxScore,MaxGoals(Y387,W387,MaxGoalsValue),IF(Y387=\"\",\"\",Y387))","v":0},{"$f":"IF(W387=\"\",\"\",IF(W387>Y387,V387,IF(W387=Y387,\"\",Z387)))","v":""},{"$f":"IF(W387=\"\",\"\",IF(W387=Y387,V387,\"\"))","v":""},{"$f":"IF(W387=\"\",\"\",IF(W387=Y387,Z387,\"\"))","v":""},{"$f":"IF(W387=\"\",\"\",IF(W387<Y387,V387,IF(W387=Y387,\"\",Z387)))","v":""},{"$f":"CONCATENATE(AE387,AH387)","v":""}]
[null,null,null,null,null,null,null,null,null,null,null,null,null,null,null,null,null,"#G6",null,null,null,{"$f":"Z380","v":"C"},null,"-",null,{"$f":"V382","v":"F"},null,{"$f":"IF(MaxScore,MaxGoals(W388,Y388,MaxGoalsValue),IF(W388=\"\",\"\",W388))","v":0},{"$f":"IF(MaxScore,\"-\",IF(W388=\"\",\"\",\"-\"))","v":"-"},{"$f":"IF(MaxScore,MaxGoals(Y388,W388,MaxGoalsValue),IF(Y388=\"\",\"\",Y388))","v":0},{"$f":"IF(W388=\"\",\"\",IF(W388>Y388,V388,IF(W388=Y388,\"\",Z388)))","v":""},{"$f":"IF(W388=\"\",\"\",IF(W388=Y388,V388,\"\"))","v":""},{"$f":"IF(W388=\"\",\"\",IF(W388=Y388,Z388,\"\"))","v":""},{"$f":"IF(W388=\"\",\"\",IF(W388<Y388,V388,IF(W388=Y388,\"\",Z388)))","v":""},{"$f":"CONCATENATE(AE388,AH388)","v":""}]
[null,null,null,null,null,null,null,null,null,null,null,null,null,null,null,null,null,"#G6",null,null,null,{"$f":"Z381","v":"B"},null,"-",null,{"$f":"Z382","v":"D"},null,{"$f":"IF(MaxScore,MaxGoals(W389,Y389,MaxGoalsValue),IF(W389=\"\",\"\",W389))","v":0},{"$f":"IF(MaxScore,\"-\",IF(W389=\"\",\"\",\"-\"))","v":"-"},{"$f":"IF(MaxScore,MaxGoals(Y389,W389,MaxGoalsValue),IF(Y389=\"\",\"\",Y389))","v":0},{"$f":"IF(W389=\"\",\"\",IF(W389>Y389,V389,IF(W389=Y389,\"\",Z389)))","v":""},{"$f":"IF(W389=\"\",\"\",IF(W389=Y389,V389,\"\"))","v":""},{"$f":"IF(W389=\"\",\"\",IF(W389=Y389,Z389,\"\"))","v":""},{"$f":"IF(W389=\"\",\"\",IF(W389<Y389,V389,IF(W389=Y389,\"\",Z389)))","v":""},{"$f":"CONCATENATE(AE389,AH389)","v":""}]
[null,null,null,null,null,null,null,null,null,null,null,null,null,null,null,null,null,null,{"$f":"S383+1","v":7}]
[null,null,null,null,null,null,null,null,null,null,null,null,null,null,null,null,null,null,{"$f":"N_Heure","v":"Time"},{"$f":"N_Table","v":"Table"},{"$f":"N_Arbitre","v":"Referee"},{"$f":"N_Matches","v":"Matches"}]
[null,null,null,null,null,null,null,null,null,null,null,null,null,null,null,null,null,"#G7",null,null,null,{"$f":"Z386","v":"J"},null,"-",null,{"$f":"V385","v":"K"},null,{"$f":"IF(MaxScore,MaxGoals(W392,Y392,MaxGoalsValue),IF(W392=\"\",\"\",W392))","v":0},{"$f":"IF(MaxScore,\"-\",IF(W392=\"\",\"\",\"-\"))","v":"-"},{"$f":"IF(MaxScore,MaxGoals(Y392,W392,MaxGoalsValue),IF(Y392=\"\",\"\",Y392))","v":0},{"$f":"IF(W392=\"\",\"\",IF(W392>Y392,V392,IF(W392=Y392,\"\",Z392)))","v":""},{"$f":"IF(W392=\"\",\"\",IF(W392=Y392,V392,\"\"))","v":""},{"$f":"IF(W392=\"\",\"\",IF(W392=Y392,Z392,\"\"))","v":""},{"$f":"IF(W392=\"\",\"\",IF(W392<Y392,V392,IF(W392=Y392,\"\",Z392)))","v":""},{"$f":"CONCATENATE(AE392,AH392)","v":""}]
[null,null,null,null,null,null,null,null,null,null,null,null,null,null,null,null,null,"#G7",null,null,null,{"$f":"Z387","v":"H"},null,"-",null,{"$f":"Z378","v":"I"},null,{"$f":"IF(MaxScore,MaxGoals(W393,Y393,MaxGoalsValue),IF(W393=\"\",\"\",W393))","v":0},{"$f":"IF(MaxScore,\"-\",IF(W393=\"\",\"\",\"-\"))","v":"-"},{"$f":"IF(MaxScore,MaxGoals(Y393,W393,MaxGoalsValue),IF(Y393=\"\",\"\",Y393))","v":0},{"$f":"IF(W393=\"\",\"\",IF(W393>Y393,V393,IF(W393=Y393,\"\",Z393)))","v":""},{"$f":"IF(W393=\"\",\"\",IF(W393=Y393,V393,\"\"))","v":""},{"$f":"IF(W393=\"\",\"\",IF(W393=Y393,Z393,\"\"))","v":""},{"$f":"IF(W393=\"\",\"\",IF(W393<Y393,V393,IF(W393=Y393,\"\",Z393)))","v":""},{"$f":"CONCATENATE(AE393,AH393)","v":""}]
[null,null,null,null,null,null,null,null,null,null,null,null,null,null,null,null,null,"#G7",null,null,null,{"$f":"Z388","v":"F"},null,"-",null,{"$f":"V386","v":"G"},null,{"$f":"IF(MaxScore,MaxGoals(W394,Y394,MaxGoalsValue),IF(W394=\"\",\"\",W394))","v":0},{"$f":"IF(MaxScore,\"-\",IF(W394=\"\",\"\",\"-\"))","v":"-"},{"$f":"IF(MaxScore,MaxGoals(Y394,W394,MaxGoalsValue),IF(Y394=\"\",\"\",Y394))","v":0},{"$f":"IF(W394=\"\",\"\",IF(W394>Y394,V394,IF(W394=Y394,\"\",Z394)))","v":""},{"$f":"IF(W394=\"\",\"\",IF(W394=Y394,V394,\"\"))","v":""},{"$f":"IF(W394=\"\",\"\",IF(W394=Y394,Z394,\"\"))","v":""},{"$f":"IF(W394=\"\",\"\",IF(W394<Y394,V394,IF(W394=Y394,\"\",Z394)))","v":""},{"$f":"CONCATENATE(AE394,AH394)","v":""}]
[null,null,null,null,null,null,null,null,null,null,null,null,null,null,null,null,null,"#G7",null,null,null,{"$f":"Z389","v":"D"},null,"-",null,{"$f":"V387","v":"E"},null,{"$f":"IF(MaxScore,MaxGoals(W395,Y395,MaxGoalsValue),IF(W395=\"\",\"\",W395))","v":0},{"$f":"IF(MaxScore,\"-\",IF(W395=\"\",\"\",\"-\"))","v":"-"},{"$f":"IF(MaxScore,MaxGoals(Y395,W395,MaxGoalsValue),IF(Y395=\"\",\"\",Y395))","v":0},{"$f":"IF(W395=\"\",\"\",IF(W395>Y395,V395,IF(W395=Y395,\"\",Z395)))","v":""},{"$f":"IF(W395=\"\",\"\",IF(W395=Y395,V395,\"\"))","v":""},{"$f":"IF(W395=\"\",\"\",IF(W395=Y395,Z395,\"\"))","v":""},{"$f":"IF(W395=\"\",\"\",IF(W395<Y395,V395,IF(W395=Y395,\"\",Z395)))","v":""},{"$f":"CONCATENATE(AE395,AH395)","v":""}]
[null,null,null,null,null,null,null,null,null,null,null,null,null,null,null,null,null,"#G7",null,null,null,{"$f":"V389","v":"B"},null,"-",null,{"$f":"V388","v":"C"},null,{"$f":"IF(MaxScore,MaxGoals(W396,Y396,MaxGoalsValue),IF(W396=\"\",\"\",W396))","v":0},{"$f":"IF(MaxScore,\"-\",IF(W396=\"\",\"\",\"-\"))","v":"-"},{"$f":"IF(MaxScore,MaxGoals(Y396,W396,MaxGoalsValue),IF(Y396=\"\",\"\",Y396))","v":0},{"$f":"IF(W396=\"\",\"\",IF(W396>Y396,V396,IF(W396=Y396,\"\",Z396)))","v":""},{"$f":"IF(W396=\"\",\"\",IF(W396=Y396,V396,\"\"))","v":""},{"$f":"IF(W396=\"\",\"\",IF(W396=Y396,Z396,\"\"))","v":""},{"$f":"IF(W396=\"\",\"\",IF(W396<Y396,V396,IF(W396=Y396,\"\",Z396)))","v":""},{"$f":"CONCATENATE(AE396,AH396)","v":""}]
[null,null,null,null,null,null,null,null,null,null,null,null,null,null,null,null,null,null,{"$f":"S390+1","v":8}]
[null,null,null,null,null,null,null,null,null,null,null,null,null,null,null,null,null,null,{"$f":"N_Heure","v":"Time"},{"$f":"N_Table","v":"Table"},{"$f":"N_Arbitre","v":"Referee"},{"$f":"N_Matches","v":"Matches"}]
[null,null,null,null,null,null,null,null,null,null,null,null,null,null,null,null,null,"#G8",null,null,null,{"$f":"V392","v":"J"},null,"-",null,{"$f":"Z385","v":"A"},null,{"$f":"IF(MaxScore,MaxGoals(W399,Y399,MaxGoalsValue),IF(W399=\"\",\"\",W399))","v":0},{"$f":"IF(MaxScore,\"-\",IF(W399=\"\",\"\",\"-\"))","v":"-"},{"$f":"IF(MaxScore,MaxGoals(Y399,W399,MaxGoalsValue),IF(Y399=\"\",\"\",Y399))","v":0},{"$f":"IF(W399=\"\",\"\",IF(W399>Y399,V399,IF(W399=Y399,\"\",Z399)))","v":""},{"$f":"IF(W399=\"\",\"\",IF(W399=Y399,V399,\"\"))","v":""},{"$f":"IF(W399=\"\",\"\",IF(W399=Y399,Z399,\"\"))","v":""},{"$f":"IF(W399=\"\",\"\",IF(W399<Y399,V399,IF(W399=Y399,\"\",Z399)))","v":""},{"$f":"CONCATENATE(AE399,AH399)","v":""}]
[null,null,null,null,null,null,null,null,null,null,null,null,null,null,null,null,null,"#G8",null,null,null,{"$f":"Z392","v":"K"},null,"-",null,{"$f":"V394","v":"F"},null,{"$f":"IF(MaxScore,MaxGoals(W400,Y400,MaxGoalsValue),IF(W400=\"\",\"\",W400))","v":0},{"$f":"IF(MaxScore,\"-\",IF(W400=\"\",\"\",\"-\"))","v":"-"},{"$f":"IF(MaxScore,MaxGoals(Y400,W400,MaxGoalsValue),IF(Y400=\"\",\"\",Y400))","v":0},{"$f":"IF(W400=\"\",\"\",IF(W400>Y400,V400,IF(W400=Y400,\"\",Z400)))","v":""},{"$f":"IF(W400=\"\",\"\",IF(W400=Y400,V400,\"\"))","v":""},{"$f":"IF(W400=\"\",\"\",IF(W400=Y400,Z400,\"\"))","v":""},{"$f":"IF(W400=\"\",\"\",IF(W400<Y400,V400,IF(W400=Y400,\"\",Z400)))","v":""},{"$f":"CONCATENATE(AE400,AH400)","v":""}]
[null,null,null,null,null,null,null,null,null,null,null,null,null,null,null,null,null,"#G8",null,null,null,{"$f":"Z393","v":"I"},null,"-",null,{"$f":"V395","v":"D"},null,{"$f":"IF(MaxScore,MaxGoals(W401,Y401,MaxGoalsValue),IF(W401=\"\",\"\",W401))","v":0},{"$f":"IF(MaxScore,\"-\",IF(W401=\"\",\"\",\"-\"))","v":"-"},{"$f":"IF(MaxScore,MaxGoals(Y401,W401,MaxGoalsValue),IF(Y401=\"\",\"\",Y401))","v":0},{"$f":"IF(W401=\"\",\"\",IF(W401>Y401,V401,IF(W401=Y401,\"\",Z401)))","v":""},{"$f":"IF(W401=\"\",\"\",IF(W401=Y401,V401,\"\"))","v":""},{"$f":"IF(W401=\"\",\"\",IF(W401=Y401,Z401,\"\"))","v":""},{"$f":"IF(W401=\"\",\"\",IF(W401<Y401,V401,IF(W401=Y401,\"\",Z401)))","v":""},{"$f":"CONCATENATE(AE401,AH401)","v":""}]
[null,null,null,null,null,null,null,null,null,null,null,null,null,null,null,null,null,"#G8",null,null,null,{"$f":"Z394","v":"G"},null,"-",null,{"$f":"V396","v":"B"},null,{"$f":"IF(MaxScore,MaxGoals(W402,Y402,MaxGoalsValue),IF(W402=\"\",\"\",W402))","v":0},{"$f":"IF(MaxScore,\"-\",IF(W402=\"\",\"\",\"-\"))","v":"-"},{"$f":"IF(MaxScore,MaxGoals(Y402,W402,MaxGoalsValue),IF(Y402=\"\",\"\",Y402))","v":0},{"$f":"IF(W402=\"\",\"\",IF(W402>Y402,V402,IF(W402=Y402,\"\",Z402)))","v":""},{"$f":"IF(W402=\"\",\"\",IF(W402=Y402,V402,\"\"))","v":""},{"$f":"IF(W402=\"\",\"\",IF(W402=Y402,Z402,\"\"))","v":""},{"$f":"IF(W402=\"\",\"\",IF(W402<Y402,V402,IF(W402=Y402,\"\",Z402)))","v":""},{"$f":"CONCATENATE(AE402,AH402)","v":""}]
[null,null,null,null,null,null,null,null,null,null,null,null,null,null,null,null,null,"#G8",null,null,null,{"$f":"Z395","v":"E"},null,"-",null,{"$f":"Z396","v":"C"},null,{"$f":"IF(MaxScore,MaxGoals(W403,Y403,MaxGoalsValue),IF(W403=\"\",\"\",W403))","v":0},{"$f":"IF(MaxScore,\"-\",IF(W403=\"\",\"\",\"-\"))","v":"-"},{"$f":"IF(MaxScore,MaxGoals(Y403,W403,MaxGoalsValue),IF(Y403=\"\",\"\",Y403))","v":0},{"$f":"IF(W403=\"\",\"\",IF(W403>Y403,V403,IF(W403=Y403,\"\",Z403)))","v":""},{"$f":"IF(W403=\"\",\"\",IF(W403=Y403,V403,\"\"))","v":""},{"$f":"IF(W403=\"\",\"\",IF(W403=Y403,Z403,\"\"))","v":""},{"$f":"IF(W403=\"\",\"\",IF(W403<Y403,V403,IF(W403=Y403,\"\",Z403)))","v":""},{"$f":"CONCATENATE(AE403,AH403)","v":""}]
[null,null,null,null,null,null,null,null,null,null,null,null,null,null,null,null,null,null,{"$f":"S397+1","v":9}]
[null,null,null,null,null,null,null,null,null,null,null,null,null,null,null,null,null,null,{"$f":"N_Heure","v":"Time"},{"$f":"N_Table","v":"Table"},{"$f":"N_Arbitre","v":"Referee"},{"$f":"N_Matches","v":"Matches"}]
[null,null,null,null,null,null,null,null,null,null,null,null,null,null,null,null,null,"#G9",null,null,null,{"$f":"Z399","v":"A"},null,"-",null,{"$f":"V393","v":"H"},null,{"$f":"IF(MaxScore,MaxGoals(W406,Y406,MaxGoalsValue),IF(W406=\"\",\"\",W406))","v":0},{"$f":"IF(MaxScore,\"-\",IF(W406=\"\",\"\",\"-\"))","v":"-"},{"$f":"IF(MaxScore,MaxGoals(Y406,W406,MaxGoalsValue),IF(Y406=\"\",\"\",Y406))","v":0},{"$f":"IF(W406=\"\",\"\",IF(W406>Y406,V406,IF(W406=Y406,\"\",Z406)))","v":""},{"$f":"IF(W406=\"\",\"\",IF(W406=Y406,V406,\"\"))","v":""},{"$f":"IF(W406=\"\",\"\",IF(W406=Y406,Z406,\"\"))","v":""},{"$f":"IF(W406=\"\",\"\",IF(W406<Y406,V406,IF(W406=Y406,\"\",Z406)))","v":""},{"$f":"CONCATENATE(AE406,AH406)","v":""}]
[null,null,null,null,null,null,null,null,null,null,null,null,null,null,null,null,null,"#G9",null,null,null,{"$f":"Z400","v":"F"},null,"-",null,{"$f":"V399","v":"J"},null,{"$f":"IF(MaxScore,MaxGoals(W407,Y407,MaxGoalsValue),IF(W407=\"\",\"\",W407))","v":0},{"$f":"IF(MaxScore,\"-\",IF(W407=\"\",\"\",\"-\"))","v":"-"},{"$f":"IF(MaxScore,MaxGoals(Y407,W407,MaxGoalsValue),IF(Y407=\"\",\"\",Y407))","v":0},{"$f":"IF(W407=\"\",\"\",IF(W407>Y407,V407,IF(W407=Y407,\"\",Z407)))","v":""},{"$f":"IF(W407=\"\",\"\",IF(W407=Y407,V407,\"\"))","v":""},{"$f":"IF(W407=\"\",\"\",IF(W407=Y407,Z407,\"\"))","v":""},{"$f":"IF(W407=\"\",\"\",IF(W407<Y407,V407,IF(W407=Y407,\"\",Z407)))","v":""},{"$f":"CONCATENATE(AE407,AH407)","v":""}]
[null,null,null,null,null,null,null,null,null,null,null,null,null,null,null,null,null,"#G9",null,null,null,{"$f":"Z402","v":"B"},null,"-",null,{"$f":"V400","v":"K"},null,{"$f":"IF(MaxScore,MaxGoals(W408,Y408,MaxGoalsValue),IF(W408=\"\",\"\",W408))","v":0},{"$f":"IF(MaxScore,\"-\",IF(W408=\"\",\"\",\"-\"))","v":"-"},{"$f":"IF(MaxScore,MaxGoals(Y408,W408,MaxGoalsValue),IF(Y408=\"\",\"\",Y408))","v":0},{"$f":"IF(W408=\"\",\"\",IF(W408>Y408,V408,IF(W408=Y408,\"\",Z408)))","v":""},{"$f":"IF(W408=\"\",\"\",IF(W408=Y408,V408,\"\"))","v":""},{"$f":"IF(W408=\"\",\"\",IF(W408=Y408,Z408,\"\"))","v":""},{"$f":"IF(W408=\"\",\"\",IF(W408<Y408,V408,IF(W408=Y408,\"\",Z408)))","v":""},{"$f":"CONCATENATE(AE408,AH408)","v":""}]
[null,null,null,null,null,null,null,null,null,null,null,null,null,null,null,null,null,"#G9",null,null,null,{"$f":"Z403","v":"C"},null,"-",null,{"$f":"V401","v":"I"},null,{"$f":"IF(MaxScore,MaxGoals(W409,Y409,MaxGoalsValue),IF(W409=\"\",\"\",W409))","v":0},{"$f":"IF(MaxScore,\"-\",IF(W409=\"\",\"\",\"-\"))","v":"-"},{"$f":"IF(MaxScore,MaxGoals(Y409,W409,MaxGoalsValue),IF(Y409=\"\",\"\",Y409))","v":0},{"$f":"IF(W409=\"\",\"\",IF(W409>Y409,V409,IF(W409=Y409,\"\",Z409)))","v":""},{"$f":"IF(W409=\"\",\"\",IF(W409=Y409,V409,\"\"))","v":""},{"$f":"IF(W409=\"\",\"\",IF(W409=Y409,Z409,\"\"))","v":""},{"$f":"IF(W409=\"\",\"\",IF(W409<Y409,V409,IF(W409=Y409,\"\",Z409)))","v":""},{"$f":"CONCATENATE(AE409,AH409)","v":""}]
[null,null,null,null,null,null,null,null,null,null,null,null,null,null,null,null,null,"#G9",null,null,null,{"$f":"V403","v":"E"},null,"-",null,{"$f":"V402","v":"G"},null,{"$f":"IF(MaxScore,MaxGoals(W410,Y410,MaxGoalsValue),IF(W410=\"\",\"\",W410))","v":0},{"$f":"IF(MaxScore,\"-\",IF(W410=\"\",\"\",\"-\"))","v":"-"},{"$f":"IF(MaxScore,MaxGoals(Y410,W410,MaxGoalsValue),IF(Y410=\"\",\"\",Y410))","v":0},{"$f":"IF(W410=\"\",\"\",IF(W410>Y410,V410,IF(W410=Y410,\"\",Z410)))","v":""},{"$f":"IF(W410=\"\",\"\",IF(W410=Y410,V410,\"\"))","v":""},{"$f":"IF(W410=\"\",\"\",IF(W410=Y410,Z410,\"\"))","v":""},{"$f":"IF(W410=\"\",\"\",IF(W410<Y410,V410,IF(W410=Y410,\"\",Z410)))","v":""},{"$f":"CONCATENATE(AE410,AH410)","v":""}]
[null,null,null,null,null,null,null,null,null,null,null,null,null,null,null,null,null,null,{"$f":"S404+1","v":10}]
[null,null,null,null,null,null,null,null,null,null,null,null,null,null,null,null,null,null,{"$f":"N_Heure","v":"Time"},{"$f":"N_Table","v":"Table"},{"$f":"N_Arbitre","v":"Referee"},{"$f":"N_Matches","v":"Matches"}]
[null,null,null,null,null,null,null,null,null,null,null,null,null,null,null,null,null,"#G10",null,null,null,{"$f":"V407","v":"F"},null,"-",null,{"$f":"V406","v":"A"},null,{"$f":"IF(MaxScore,MaxGoals(W413,Y413,MaxGoalsValue),IF(W413=\"\",\"\",W413))","v":0},{"$f":"IF(MaxScore,\"-\",IF(W413=\"\",\"\",\"-\"))","v":"-"},{"$f":"IF(MaxScore,MaxGoals(Y413,W413,MaxGoalsValue),IF(Y413=\"\",\"\",Y413))","v":0},{"$f":"IF(W413=\"\",\"\",IF(W413>Y413,V413,IF(W413=Y413,\"\",Z413)))","v":""},{"$f":"IF(W413=\"\",\"\",IF(W413=Y413,V413,\"\"))","v":""},{"$f":"IF(W413=\"\",\"\",IF(W413=Y413,Z413,\"\"))","v":""},{"$f":"IF(W413=\"\",\"\",IF(W413<Y413,V413,IF(W413=Y413,\"\",Z413)))","v":""},{"$f":"CONCATENATE(AE413,AH413)","v":""}]
[null,null,null,null,null,null,null,null,null,null,null,null,null,null,null,null,null,"#G10",null,null,null,{"$f":"Z406","v":"H"},null,"-",null,{"$f":"Z401","v":"D"},null,{"$f":"IF(MaxScore,MaxGoals(W414,Y414,MaxGoalsValue),IF(W414=\"\",\"\",W414))","v":0},{"$f":"IF(MaxScore,\"-\",IF(W414=\"\",\"\",\"-\"))","v":"-"},{"$f":"IF(MaxScore,MaxGoals(Y414,W414,MaxGoalsValue),IF(Y414=\"\",\"\",Y414))","v":0},{"$f":"IF(W414=\"\",\"\",IF(W414>Y414,V414,IF(W414=Y414,\"\",Z414)))","v":""},{"$f":"IF(W414=\"\",\"\",IF(W414=Y414,V414,\"\"))","v":""},{"$f":"IF(W414=\"\",\"\",IF(W414=Y414,Z414,\"\"))","v":""},{"$f":"IF(W414=\"\",\"\",IF(W414<Y414,V414,IF(W414=Y414,\"\",Z414)))","v":""},{"$f":"CONCATENATE(AE414,AH414)","v":""}]
[null,null,null,null,null,null,null,null,null,null,null,null,null,null,null,null,null,"#G10",null,null,null,{"$f":"Z407","v":"J"},null,"-",null,{"$f":"V408","v":"B"},null,{"$f":"IF(MaxScore,MaxGoals(W415,Y415,MaxGoalsValue),IF(W415=\"\",\"\",W415))","v":0},{"$f":"IF(MaxScore,\"-\",IF(W415=\"\",\"\",\"-\"))","v":"-"},{"$f":"IF(MaxScore,MaxGoals(Y415,W415,MaxGoalsValue),IF(Y415=\"\",\"\",Y415))","v":0},{"$f":"IF(W415=\"\",\"\",IF(W415>Y415,V415,IF(W415=Y415,\"\",Z415)))","v":""},{"$f":"IF(W415=\"\",\"\",IF(W415=Y415,V415,\"\"))","v":""},{"$f":"IF(W415=\"\",\"\",IF(W415=Y415,Z415,\"\"))","v":""},{"$f":"IF(W415=\"\",\"\",IF(W415<Y415,V415,IF(W415=Y415,\"\",Z415)))","v":""},{"$f":"CONCATENATE(AE415,AH415)","v":""}]
[null,null,null,null,null,null,null,null,null,null,null,null,null,null,null,null,null,"#G10",null,null,null,{"$f":"Z408","v":"K"},null,"-",null,{"$f":"V410","v":"E"},null,{"$f":"IF(MaxScore,MaxGoals(W416,Y416,MaxGoalsValue),IF(W416=\"\",\"\",W416))","v":0},{"$f":"IF(MaxScore,\"-\",IF(W416=\"\",\"\",\"-\"))","v":"-"},{"$f":"IF(MaxScore,MaxGoals(Y416,W416,MaxGoalsValue),IF(Y416=\"\",\"\",Y416))","v":0},{"$f":"IF(W416=\"\",\"\",IF(W416>Y416,V416,IF(W416=Y416,\"\",Z416)))","v":""},{"$f":"IF(W416=\"\",\"\",IF(W416=Y416,V416,\"\"))","v":""},{"$f":"IF(W416=\"\",\"\",IF(W416=Y416,Z416,\"\"))","v":""},{"$f":"IF(W416=\"\",\"\",IF(W416<Y416,V416,IF(W416=Y416,\"\",Z416)))","v":""},{"$f":"CONCATENATE(AE416,AH416)","v":""}]
[null,null,null,null,null,null,null,null,null,null,null,null,null,null,null,null,null,"#G10",null,null,null,{"$f":"Z409","v":"I"},null,"-",null,{"$f":"Z410","v":"G"},null,{"$f":"IF(MaxScore,MaxGoals(W417,Y417,MaxGoalsValue),IF(W417=\"\",\"\",W417))","v":0},{"$f":"IF(MaxScore,\"-\",IF(W417=\"\",\"\",\"-\"))","v":"-"},{"$f":"IF(MaxScore,MaxGoals(Y417,W417,MaxGoalsValue),IF(Y417=\"\",\"\",Y417))","v":0},{"$f":"IF(W417=\"\",\"\",IF(W417>Y417,V417,IF(W417=Y417,\"\",Z417)))","v":""},{"$f":"IF(W417=\"\",\"\",IF(W417=Y417,V417,\"\"))","v":""},{"$f":"IF(W417=\"\",\"\",IF(W417=Y417,Z417,\"\"))","v":""},{"$f":"IF(W417=\"\",\"\",IF(W417<Y417,V417,IF(W417=Y417,\"\",Z417)))","v":""},{"$f":"CONCATENATE(AE417,AH417)","v":""}]
[null,null,null,null,null,null,null,null,null,null,null,null,null,null,null,null,null,null,{"$f":"S411+1","v":11}]
[null,null,null,null,null,null,null,null,null,null,null,null,null,null,null,null,null,null,{"$f":"N_Heure","v":"Time"},{"$f":"N_Table","v":"Table"},{"$f":"N_Arbitre","v":"Referee"},{"$f":"N_Matches","v":"Matches"}]
[null,null,null,null,null,null,null,null,null,null,null,null,null,null,null,null,null,"#G11",null,null,null,{"$f":"Z413","v":"A"},null,"-",null,{"$f":"Z414","v":"D"},null,{"$f":"IF(MaxScore,MaxGoals(W420,Y420,MaxGoalsValue),IF(W420=\"\",\"\",W420))","v":0},{"$f":"IF(MaxScore,\"-\",IF(W420=\"\",\"\",\"-\"))","v":"-"},{"$f":"IF(MaxScore,MaxGoals(Y420,W420,MaxGoalsValue),IF(Y420=\"\",\"\",Y420))","v":0},{"$f":"IF(W420=\"\",\"\",IF(W420>Y420,V420,IF(W420=Y420,\"\",Z420)))","v":""},{"$f":"IF(W420=\"\",\"\",IF(W420=Y420,V420,\"\"))","v":""},{"$f":"IF(W420=\"\",\"\",IF(W420=Y420,Z420,\"\"))","v":""},{"$f":"IF(W420=\"\",\"\",IF(W420<Y420,V420,IF(W420=Y420,\"\",Z420)))","v":""},{"$f":"CONCATENATE(AE420,AH420)","v":""}]
[null,null,null,null,null,null,null,null,null,null,null,null,null,null,null,null,null,"#G11",null,null,null,{"$f":"Z415","v":"B"},null,"-",null,{"$f":"V413","v":"F"},null,{"$f":"IF(MaxScore,MaxGoals(W421,Y421,MaxGoalsValue),IF(W421=\"\",\"\",W421))","v":0},{"$f":"IF(MaxScore,\"-\",IF(W421=\"\",\"\",\"-\"))","v":"-"},{"$f":"IF(MaxScore,MaxGoals(Y421,W421,MaxGoalsValue),IF(Y421=\"\",\"\",Y421))","v":0},{"$f":"IF(W421=\"\",\"\",IF(W421>Y421,V421,IF(W421=Y421,\"\",Z421)))","v":""},{"$f":"IF(W421=\"\",\"\",IF(W421=Y421,V421,\"\"))","v":""},{"$f":"IF(W421=\"\",\"\",IF(W421=Y421,Z421,\"\"))","v":""},{"$f":"IF(W421=\"\",\"\",IF(W421<Y421,V421,IF(W421=Y421,\"\",Z421)))","v":""},{"$f":"CONCATENATE(AE421,AH421)","v":""}]
[null,null,null,null,null,null,null,null,null,null,null,null,null,null,null,null,null,"#G11",null,null,null,{"$f":"V409","v":"C"},null,"-",null,{"$f":"V414","v":"H"},null,{"$f":"IF(MaxScore,MaxGoals(W422,Y422,MaxGoalsValue),IF(W422=\"\",\"\",W422))","v":0},{"$f":"IF(MaxScore,\"-\",IF(W422=\"\",\"\",\"-\"))","v":"-"},{"$f":"IF(MaxScore,MaxGoals(Y422,W422,MaxGoalsValue),IF(Y422=\"\",\"\",Y422))","v":0},{"$f":"IF(W422=\"\",\"\",IF(W422>Y422,V422,IF(W422=Y422,\"\",Z422)))","v":""},{"$f":"IF(W422=\"\",\"\",IF(W422=Y422,V422,\"\"))","v":""},{"$f":"IF(W422=\"\",\"\",IF(W422=Y422,Z422,\"\"))","v":""},{"$f":"IF(W422=\"\",\"\",IF(W422<Y422,V422,IF(W422=Y422,\"\",Z422)))","v":""},{"$f":"CONCATENATE(AE422,AH422)","v":""}]
[null,null,null,null,null,null,null,null,null,null,null,null,null,null,null,null,null,"#G11",null,null,null,{"$f":"Z416","v":"E"},null,"-",null,{"$f":"V415","v":"J"},null,{"$f":"IF(MaxScore,MaxGoals(W423,Y423,MaxGoalsValue),IF(W423=\"\",\"\",W423))","v":0},{"$f":"IF(MaxScore,\"-\",IF(W423=\"\",\"\",\"-\"))","v":"-"},{"$f":"IF(MaxScore,MaxGoals(Y423,W423,MaxGoalsValue),IF(Y423=\"\",\"\",Y423))","v":0},{"$f":"IF(W423=\"\",\"\",IF(W423>Y423,V423,IF(W423=Y423,\"\",Z423)))","v":""},{"$f":"IF(W423=\"\",\"\",IF(W423=Y423,V423,\"\"))","v":""},{"$f":"IF(W423=\"\",\"\",IF(W423=Y423,Z423,\"\"))","v":""},{"$f":"IF(W423=\"\",\"\",IF(W423<Y423,V423,IF(W423=Y423,\"\",Z423)))","v":""},{"$f":"CONCATENATE(AE423,AH423)","v":""}]
[null,null,null,null,null,null,null,null,null,null,null,null,null,null,null,null,null,"#G11",null,null,null,{"$f":"V417","v":"I"},null,"-",null,{"$f":"V416","v":"K"},null,{"$f":"IF(MaxScore,MaxGoals(W424,Y424,MaxGoalsValue),IF(W424=\"\",\"\",W424))","v":0},{"$f":"IF(MaxScore,\"-\",IF(W424=\"\",\"\",\"-\"))","v":"-"},{"$f":"IF(MaxScore,MaxGoals(Y424,W424,MaxGoalsValue),IF(Y424=\"\",\"\",Y424))","v":0},{"$f":"IF(W424=\"\",\"\",IF(W424>Y424,V424,IF(W424=Y424,\"\",Z424)))","v":""},{"$f":"IF(W424=\"\",\"\",IF(W424=Y424,V424,\"\"))","v":""},{"$f":"IF(W424=\"\",\"\",IF(W424=Y424,Z424,\"\"))","v":""},{"$f":"IF(W424=\"\",\"\",IF(W424<Y424,V424,IF(W424=Y424,\"\",Z424)))","v":""},{"$f":"CONCATENATE(AE424,AH424)","v":""}]
[]
[null,{"$f":"N_Group_12","v":"Group of 12"},null,null,null,null,null,null,null,null,null,null,null,null,null,null,null,null,null,null,null,null,null,null,null,null,null,null,null,null,null,null,null,null,null,null,null,null,{"$f":"B426","v":"Group of 12"}]
[]
[null,{"$f":"N_Tirage","v":"Draw"},"Cla.","Cla1","Part","Cla2",{"$f":"N_Joueurs","v":"Players"},{"$f":"N_RankPoints","v":"Rk Pt."},{"$f":"N_Diff_Part","v":"Part-Diff"},"Pts","J","G","N","P","BP","BC","Diff",null,null,null,null,null,null,null,null,null,null,null,null,null,{"$f":"N_G","v":"W"},{"$f":"N_N","v":"D"},{"$f":"N_N","v":"D"},{"$f":"N_P","v":"L"},"CONCAT","Ref Group",{"$f":"IF(COUNTA(W443:W528)=0,\"\",\"OK\")","v":""},null,null,{"$f":"N_Cla.","v":"Rk"},{"$f":"N_Joueurs","v":"Players"},{"$f":"N_Pts","v":"Pts"},{"$f":"N_J","v":"Pld"},{"$f":"N_G","v":"W"},{"$f":"N_N","v":"D"},{"$f":"N_P","v":"L"},{"$f":"N_BP","v":"F"},{"$f":"N_BC","v":"A"},{"$f":"N_Diff.","v":"SO"}]
[null,1,{"$f":"IF(AK428=\"\",\"\",RANK(F429,F429:F440)*1000+ROW())","v":""},{"$f":"IF(L429=\"\",\"\",CritClassInd1_Points*J429+CritClassInd1_Matches*L429+CritClassInd1_Attaque*O429+CritClassInd1_DiffButs*Q429)","v":""},{"$f":"IF(L429=\"\",\"\",Nb_Diff_Part(D429,D429:D440,G429,G429:G440,AI443:AI528)*CritClassInd_DiffPart+Nb_Goal_Part(D429,D429:D440,G429,G429:G440,V443:Z528)*CritClassInd_GoalPart+Nb_Score_Part(D429,D429:D440,G429,G429:G440,V443:Z528)*CritClassInd_ScorePart)","v":""},{"$f":"IF(L429=\"\",\"\",D429+E429+CritClassInd2_Points*J429+CritClassInd2_Matches*L429+CritClassInd2_Attaque*O429+CritClassInd2_DiffButs*Q429+CritClassInd_Ranking*H429+I429)","v":""},"A",{"$f":"GMFTRANKINGPOINTS(G429,Particular_Category)","v":0},null,{"$f":"IF(AK428=\"\",\"\",(L429*Points_Victoire)+M429*Points_Null)","v":""},{"$f":"IF(L429=\"\",\"\",SUM(L429:N429))","v":""},{"$f":"IF(AK428=\"\",\"\",COUNTIF(AE443:AE528,G429))","v":""},{"$f":"IF(AK428=\"\",\"\",COUNTIF(AF443:AG528,G429))","v":""},{"$f":"IF(AK428=\"\",\"\",COUNTIF(AH443:AH528,G429))","v":""},{"$f":"IF(AK428=\"\",\"\",SUMIF(V443:V528,G429,AB443:AB528)+SUMIF(Z443:Z528,G429,AD443:AD528))","v":""},{"$f":"IF(AK428=\"\",\"\",SUMIF(V443:V528,G429,AD443:AD528)+SUMIF(Z443:Z528,G429,AB443:AB528))","v":""},{"$f":"IF(AK428=\"\",\"\",O429-P429)","v":""},null,null,null,null,null,null,null,null,null,null,null,null,null,null,null,null,null,null,null,{"$f":"IF(AK428=\"\",\"\",SMALL(C429:C440,1))","v":""},null,null,{"$f":"IF(AK428=\"\",\"\",INT(AK429/1000))","v":""},{"$f":"IF(AK428=\"\",\"\",VLOOKUP(AK429,C429:Q440,5,FALSE))","v":""},{"$f":"VLOOKUP(AK429,C429:Q440,8,FALSE)","v":""},{"$f":"VLOOKUP(AK429,C429:Q440,9,FALSE)","v":""},{"$f":"VLOOKUP(AK429,C429:Q440,10,FALSE)","v":""},{"$f":"VLOOKUP(AK429,C429:Q440,11,FALSE)","v":""},{"$f":"VLOOKUP(AK429,C429:Q440,12,FALSE)","v":""},{"$f":"VLOOKUP(AK429,C429:Q440,13,FALSE)","v":""},{"$f":"VLOOKUP(AK429,C429:Q440,14,FALSE)","v":""},{"$f":"VLOOKUP(AK429,C429:Q440,15,FALSE)","v":""}]
[null,2,{"$f":"IF(AK428=\"\",\"\",RANK(F430,F429:F440)*1000+ROW())","v":""},{"$f":"IF(L430=\"\",\"\",CritClassInd1_Points*J430+CritClassInd1_Matches*L430+CritClassInd1_Attaque*O430+CritClassInd1_DiffButs*Q430)","v":""},{"$f":"IF(L430=\"\",\"\",Nb_Diff_Part(D430,D429:D440,G430,G429:G440,AI443:AI528)*CritClassInd_DiffPart+Nb_Goal_Part(D430,D429:D440,G430,G429:G440,V443:Z528)*CritClassInd_GoalPart+Nb_Score_Part(D430,D429:D440,G430,G429:G440,V443:Z528)*CritClassInd_ScorePart)","v":""},{"$f":"IF(L430=\"\",\"\",D430+E430+CritClassInd2_Points*J430+CritClassInd2_Matches*L430+CritClassInd2_Attaque*O430+CritClassInd2_DiffButs*Q430+CritClassInd_Ranking*H430+I430)","v":""},"B",0,null,{"$f":"IF(AK428=\"\",\"\",(L430*Points_Victoire)+M430*Points_Null)","v":""},"",{"$f":"IF(AK428=\"\",\"\",COUNTIF(AE443:AE528,G430))","v":""},{"$f":"IF(AK428=\"\",\"\",COUNTIF(AF443:AG528,G430))","v":""},{"$f":"IF(AK428=\"\",\"\",COUNTIF(AH443:AH528,G430))","v":""},{"$f":"IF(AK428=\"\",\"\",SUMIF(V443:V528,G430,AB443:AB528)+SUMIF(Z443:Z528,G430,AD443:AD528))","v":""},{"$f":"IF(AK428=\"\",\"\",SUMIF(V443:V528,G430,AD443:AD528)+SUMIF(Z443:Z528,G430,AB443:AB528))","v":""},{"$f":"IF(AK428=\"\",\"\",O430-P430)","v":""},null,null,null,null,null,null,null,null,null,null,null,null,null,null,null,null,null,null,null,{"$f":"IF(AK428=\"\",\"\",SMALL(C429:C440,2))","v":""},null,null,{"$f":"IF(AK428=\"\",\"\",INT(AK430/1000))","v":""},{"$f":"IF(AK428=\"\",\"\",VLOOKUP(AK430,C429:Q440,5,FALSE))","v":""},{"$f":"VLOOKUP(AK430,C429:Q440,8,FALSE)","v":""},{"$f":"VLOOKUP(AK430,C429:Q440,9,FALSE)","v":""},{"$f":"VLOOKUP(AK430,C429:Q440,10,FALSE)","v":""},{"$f":"VLOOKUP(AK430,C429:Q440,11,FALSE)","v":""},{"$f":"VLOOKUP(AK430,C429:Q440,12,FALSE)","v":""},{"$f":"VLOOKUP(AK430,C429:Q440,13,FALSE)","v":""},{"$f":"VLOOKUP(AK430,C429:Q440,14,FALSE)","v":""},{"$f":"VLOOKUP(AK430,C429:Q440,15,FALSE)","v":""}]
[null,3,{"$f":"IF(AK428=\"\",\"\",RANK(F431,F429:F440)*1000+ROW())","v":""},"",{"$f":"IF(L431=\"\",\"\",Nb_Diff_Part(D431,D429:D440,G431,G429:G440,AI443:AI528)*CritClassInd_DiffPart+Nb_Goal_Part(D431,D429:D440,G431,G429:G440,V443:Z528)*CritClassInd_GoalPart+Nb_Score_Part(D431,D429:D440,G431,G429:G440,V443:Z528)*CritClassInd_ScorePart)","v":""},"","C",0,null,{"$f":"IF(AK428=\"\",\"\",(L431*Points_Victoire)+M431*Points_Null)","v":""},"",{"$f":"IF(AK428=\"\",\"\",COUNTIF(AE443:AE528,G431))","v":""},{"$f":"IF(AK428=\"\",\"\",COUNTIF(AF443:AG528,G431))","v":""},{"$f":"IF(AK428=\"\",\"\",COUNTIF(AH443:AH528,G431))","v":""},{"$f":"IF(AK428=\"\",\"\",SUMIF(V443:V528,G431,AB443:AB528)+SUMIF(Z443:Z528,G431,AD443:AD528))","v":""},{"$f":"IF(AK428=\"\",\"\",SUMIF(V443:V528,G431,AD443:AD528)+SUMIF(Z443:Z528,G431,AB443:AB528))","v":""},{"$f":"IF(AK428=\"\",\"\",O431-P431)","v":""},null,null,null,null,null,null,null,null,null,null,null,null,null,null,null,null,null,null,null,{"$f":"IF(AK428=\"\",\"\",SMALL(C429:C440,3))","v":""},null,null,{"$f":"IF(AK428=\"\",\"\",INT(AK431/1000))","v":""},{"$f":"IF(AK428=\"\",\"\",VLOOKUP(AK431,C429:Q440,5,FALSE))","v":""},{"$f":"VLOOKUP(AK431,C429:Q440,8,FALSE)","v":""},{"$f":"VLOOKUP(AK431,C429:Q440,9,FALSE)","v":""},{"$f":"VLOOKUP(AK431,C429:Q440,10,FALSE)","v":""},{"$f":"VLOOKUP(AK431,C429:Q440,11,FALSE)","v":""},{"$f":"VLOOKUP(AK431,C429:Q440,12,FALSE)","v":""},{"$f":"VLOOKUP(AK431,C429:Q440,13,FALSE)","v":""},{"$f":"VLOOKUP(AK431,C429:Q440,14,FALSE)","v":""},{"$f":"VLOOKUP(AK431,C429:Q440,15,FALSE)","v":""}]
[null,4,{"$f":"IF(AK428=\"\",\"\",RANK(F432,F429:F440)*1000+ROW())","v":""},"",{"$f":"IF(L432=\"\",\"\",Nb_Diff_Part(D432,D429:D440,G432,G429:G440,AI443:AI528)*CritClassInd_DiffPart+Nb_Goal_Part(D432,D429:D440,G432,G429:G440,V443:Z528)*CritClassInd_GoalPart+Nb_Score_Part(D432,D429:D440,G432,G429:G440,V443:Z528)*CritClassInd_ScorePart)","v":""},"","D",0,null,{"$f":"IF(AK428=\"\",\"\",(L432*Points_Victoire)+M432*Points_Null)","v":""},"",{"$f":"IF(AK428=\"\",\"\",COUNTIF(AE443:AE528,G432))","v":""},{"$f":"IF(AK428=\"\",\"\",COUNTIF(AF443:AG528,G432))","v":""},{"$f":"IF(AK428=\"\",\"\",COUNTIF(AH443:AH528,G432))","v":""},{"$f":"IF(AK428=\"\",\"\",SUMIF(V443:V528,G432,AB443:AB528)+SUMIF(Z443:Z528,G432,AD443:AD528))","v":""},{"$f":"IF(AK428=\"\",\"\",SUMIF(V443:V528,G432,AD443:AD528)+SUMIF(Z443:Z528,G432,AB443:AB528))","v":""},{"$f":"IF(AK428=\"\",\"\",O432-P432)","v":""},null,null,null,null,null,null,null,null,null,null,null,null,null,null,null,null,null,null,null,{"$f":"IF(AK428=\"\",\"\",SMALL(C429:C440,4))","v":""},null,null,{"$f":"IF(AK428=\"\",\"\",INT(AK432/1000))","v":""},{"$f":"IF(AK428=\"\",\"\",VLOOKUP(AK432,C429:Q440,5,FALSE))","v":""},{"$f":"VLOOKUP(AK432,C429:Q440,8,FALSE)","v":""},{"$f":"VLOOKUP(AK432,C429:Q440,9,FALSE)","v":""},{"$f":"VLOOKUP(AK432,C429:Q440,10,FALSE)","v":""},{"$f":"VLOOKUP(AK432,C429:Q440,11,FALSE)","v":""},{"$f":"VLOOKUP(AK432,C429:Q440,12,FALSE)","v":""},{"$f":"VLOOKUP(AK432,C429:Q440,13,FALSE)","v":""},{"$f":"VLOOKUP(AK432,C429:Q440,14,FALSE)","v":""},{"$f":"VLOOKUP(AK432,C429:Q440,15,FALSE)","v":""}]
[null,5,{"$f":"IF(AK428=\"\",\"\",RANK(F433,F429:F440)*1000+ROW())","v":""},"",{"$f":"IF(L433=\"\",\"\",Nb_Diff_Part(D433,D429:D440,G433,G429:G440,AI443:AI528)*CritClassInd_DiffPart+Nb_Goal_Part(D433,D429:D440,G433,G429:G440,V443:Z528)*CritClassInd_GoalPart+Nb_Score_Part(D433,D429:D440,G433,G429:G440,V443:Z528)*CritClassInd_ScorePart)","v":""},"","E",0,null,{"$f":"IF(AK428=\"\",\"\",(L433*Points_Victoire)+M433*Points_Null)","v":""},"",{"$f":"IF(AK428=\"\",\"\",COUNTIF(AE443:AE528,G433))","v":""},{"$f":"IF(AK428=\"\",\"\",COUNTIF(AF443:AG528,G433))","v":""},{"$f":"IF(AK428=\"\",\"\",COUNTIF(AH443:AH528,G433))","v":""},{"$f":"IF(AK428=\"\",\"\",SUMIF(V443:V528,G433,AB443:AB528)+SUMIF(Z443:Z528,G433,AD443:AD528))","v":""},{"$f":"IF(AK428=\"\",\"\",SUMIF(V443:V528,G433,AD443:AD528)+SUMIF(Z443:Z528,G433,AB443:AB528))","v":""},{"$f":"IF(AK428=\"\",\"\",O433-P433)","v":""},null,null,null,null,null,null,null,null,null,null,null,null,null,null,null,null,null,null,null,{"$f":"IF(AK428=\"\",\"\",SMALL(C429:C440,5))","v":""},null,null,{"$f":"IF(AK428=\"\",\"\",INT(AK433/1000))","v":""},{"$f":"IF(AK428=\"\",\"\",VLOOKUP(AK433,C429:Q440,5,FALSE))","v":""},{"$f":"VLOOKUP(AK433,C429:Q440,8,FALSE)","v":""},{"$f":"VLOOKUP(AK433,C429:Q440,9,FALSE)","v":""},{"$f":"VLOOKUP(AK433,C429:Q440,10,FALSE)","v":""},{"$f":"VLOOKUP(AK433,C429:Q440,11,FALSE)","v":""},{"$f":"VLOOKUP(AK433,C429:Q440,12,FALSE)","v":""},{"$f":"VLOOKUP(AK433,C429:Q440,13,FALSE)","v":""},{"$f":"VLOOKUP(AK433,C429:Q440,14,FALSE)","v":""},{"$f":"VLOOKUP(AK433,C429:Q440,15,FALSE)","v":""}]
[null,6,{"$f":"IF(AK428=\"\",\"\",RANK(F434,F429:F440)*1000+ROW())","v":""},"",{"$f":"IF(L434=\"\",\"\",Nb_Diff_Part(D434,D429:D440,G434,G429:G440,AI443:AI528)*CritClassInd_DiffPart+Nb_Goal_Part(D434,D429:D440,G434,G429:G440,V443:Z528)*CritClassInd_GoalPart+Nb_Score_Part(D434,D429:D440,G434,G429:G440,V443:Z528)*CritClassInd_ScorePart)","v":""},"","F",0,null,{"$f":"IF(AK428=\"\",\"\",(L434*Points_Victoire)+M434*Points_Null)","v":""},"",{"$f":"IF(AK428=\"\",\"\",COUNTIF(AE443:AE528,G434))","v":""},{"$f":"IF(AK428=\"\",\"\",COUNTIF(AF443:AG528,G434))","v":""},{"$f":"IF(AK428=\"\",\"\",COUNTIF(AH443:AH528,G434))","v":""},{"$f":"IF(AK428=\"\",\"\",SUMIF(V443:V528,G434,AB443:AB528)+SUMIF(Z443:Z528,G434,AD443:AD528))","v":""},{"$f":"IF(AK428=\"\",\"\",SUMIF(V443:V528,G434,AD443:AD528)+SUMIF(Z443:Z528,G434,AB443:AB528))","v":""},{"$f":"IF(AK428=\"\",\"\",O434-P434)","v":""},null,null,null,null,null,null,null,null,null,null,null,null,null,null,null,null,null,null,null,{"$f":"IF(AK428=\"\",\"\",SMALL(C429:C440,6))","v":""},null,null,{"$f":"IF(AK428=\"\",\"\",INT(AK434/1000))","v":""},{"$f":"IF(AK428=\"\",\"\",VLOOKUP(AK434,C429:Q440,5,FALSE))","v":""},{"$f":"VLOOKUP(AK434,C429:Q440,8,FALSE)","v":""},{"$f":"VLOOKUP(AK434,C429:Q440,9,FALSE)","v":""},{"$f":"VLOOKUP(AK434,C429:Q440,10,FALSE)","v":""},{"$f":"VLOOKUP(AK434,C429:Q440,11,FALSE)","v":""},{"$f":"VLOOKUP(AK434,C429:Q440,12,FALSE)","v":""},{"$f":"VLOOKUP(AK434,C429:Q440,13,FALSE)","v":""},{"$f":"VLOOKUP(AK434,C429:Q440,14,FALSE)","v":""},{"$f":"VLOOKUP(AK434,C429:Q440,15,FALSE)","v":""}]
[null,7,{"$f":"IF(AK428=\"\",\"\",RANK(F435,F429:F440)*1000+ROW())","v":""},"",{"$f":"IF(L435=\"\",\"\",Nb_Diff_Part(D435,D429:D440,G435,G429:G440,AI443:AI528)*CritClassInd_DiffPart+Nb_Goal_Part(D435,D429:D440,G435,G429:G440,V443:Z528)*CritClassInd_GoalPart+Nb_Score_Part(D435,D429:D440,G435,G429:G440,V443:Z528)*CritClassInd_ScorePart)","v":""},"","G",0,null,{"$f":"IF(AK428=\"\",\"\",(L435*Points_Victoire)+M435*Points_Null)","v":""},"",{"$f":"IF(AK428=\"\",\"\",COUNTIF(AE443:AE528,G435))","v":""},{"$f":"IF(AK428=\"\",\"\",COUNTIF(AF443:AG528,G435))","v":""},{"$f":"IF(AK428=\"\",\"\",COUNTIF(AH443:AH528,G435))","v":""},{"$f":"IF(AK428=\"\",\"\",SUMIF(V443:V528,G435,AB443:AB528)+SUMIF(Z443:Z528,G435,AD443:AD528))","v":""},{"$f":"IF(AK428=\"\",\"\",SUMIF(V443:V528,G435,AD443:AD528)+SUMIF(Z443:Z528,G435,AB443:AB528))","v":""},{"$f":"IF(AK428=\"\",\"\",O435-P435)","v":""},null,null,null,null,null,null,null,null,null,null,null,null,null,null,null,null,null,null,null,{"$f":"IF(AK428=\"\",\"\",SMALL(C429:C440,7))","v":""},null,null,{"$f":"IF(AK428=\"\",\"\",INT(AK435/1000))","v":""},{"$f":"IF(AK428=\"\",\"\",VLOOKUP(AK435,C429:Q440,5,FALSE))","v":""},{"$f":"VLOOKUP(AK435,C429:Q440,8,FALSE)","v":""},{"$f":"VLOOKUP(AK435,C429:Q440,9,FALSE)","v":""},{"$f":"VLOOKUP(AK435,C429:Q440,10,FALSE)","v":""},{"$f":"VLOOKUP(AK435,C429:Q440,11,FALSE)","v":""},{"$f":"VLOOKUP(AK435,C429:Q440,12,FALSE)","v":""},{"$f":"VLOOKUP(AK435,C429:Q440,13,FALSE)","v":""},{"$f":"VLOOKUP(AK435,C429:Q440,14,FALSE)","v":""},{"$f":"VLOOKUP(AK435,C429:Q440,15,FALSE)","v":""}]
[null,8,{"$f":"IF(AK428=\"\",\"\",RANK(F436,F429:F440)*1000+ROW())","v":""},"",{"$f":"IF(L436=\"\",\"\",Nb_Diff_Part(D436,D429:D440,G436,G429:G440,AI443:AI528)*CritClassInd_DiffPart+Nb_Goal_Part(D436,D429:D440,G436,G429:G440,V443:Z528)*CritClassInd_GoalPart+Nb_Score_Part(D436,D429:D440,G436,G429:G440,V443:Z528)*CritClassInd_ScorePart)","v":""},"","H",0,null,{"$f":"IF(AK428=\"\",\"\",(L436*Points_Victoire)+M436*Points_Null)","v":""},"",{"$f":"IF(AK428=\"\",\"\",COUNTIF(AE443:AE528,G436))","v":""},{"$f":"IF(AK428=\"\",\"\",COUNTIF(AF443:AG528,G436))","v":""},{"$f":"IF(AK428=\"\",\"\",COUNTIF(AH443:AH528,G436))","v":""},{"$f":"IF(AK428=\"\",\"\",SUMIF(V443:V528,G436,AB443:AB528)+SUMIF(Z443:Z528,G436,AD443:AD528))","v":""},{"$f":"IF(AK428=\"\",\"\",SUMIF(V443:V528,G436,AD443:AD528)+SUMIF(Z443:Z528,G436,AB443:AB528))","v":""},{"$f":"IF(AK428=\"\",\"\",O436-P436)","v":""},null,null,null,null,null,null,null,null,null,null,null,null,null,null,null,null,null,null,null,{"$f":"IF(AK428=\"\",\"\",SMALL(C429:C440,8))","v":""},null,null,{"$f":"IF(AK428=\"\",\"\",INT(AK436/1000))","v":""},{"$f":"IF(AK428=\"\",\"\",VLOOKUP(AK436,C429:Q440,5,FALSE))","v":""},{"$f":"VLOOKUP(AK436,C429:Q440,8,FALSE)","v":""},{"$f":"VLOOKUP(AK436,C429:Q440,9,FALSE)","v":""},{"$f":"VLOOKUP(AK436,C429:Q440,10,FALSE)","v":""},{"$f":"VLOOKUP(AK436,C429:Q440,11,FALSE)","v":""},{"$f":"VLOOKUP(AK436,C429:Q440,12,FALSE)","v":""},{"$f":"VLOOKUP(AK436,C429:Q440,13,FALSE)","v":""},{"$f":"VLOOKUP(AK436,C429:Q440,14,FALSE)","v":""},{"$f":"VLOOKUP(AK436,C429:Q440,15,FALSE)","v":""}]
[null,9,{"$f":"IF(AK428=\"\",\"\",RANK(F437,F429:F440)*1000+ROW())","v":""},"",{"$f":"IF(L437=\"\",\"\",Nb_Diff_Part(D437,D429:D440,G437,G429:G440,AI443:AI528)*CritClassInd_DiffPart+Nb_Goal_Part(D437,D429:D440,G437,G429:G440,V443:Z528)*CritClassInd_GoalPart+Nb_Score_Part(D437,D429:D440,G437,G429:G440,V443:Z528)*CritClassInd_ScorePart)","v":""},"","I",0,null,{"$f":"IF(AK428=\"\",\"\",(L437*Points_Victoire)+M437*Points_Null)","v":""},"",{"$f":"IF(AK428=\"\",\"\",COUNTIF(AE443:AE528,G437))","v":""},{"$f":"IF(AK428=\"\",\"\",COUNTIF(AF443:AG528,G437))","v":""},{"$f":"IF(AK428=\"\",\"\",COUNTIF(AH443:AH528,G437))","v":""},{"$f":"IF(AK428=\"\",\"\",SUMIF(V443:V528,G437,AB443:AB528)+SUMIF(Z443:Z528,G437,AD443:AD528))","v":""},{"$f":"IF(AK428=\"\",\"\",SUMIF(V443:V528,G437,AD443:AD528)+SUMIF(Z443:Z528,G437,AB443:AB528))","v":""},{"$f":"IF(AK428=\"\",\"\",O437-P437)","v":""},null,null,null,null,null,null,null,null,null,null,null,null,null,null,null,null,null,null,null,{"$f":"IF(AK428=\"\",\"\",SMALL(C429:C440,9))","v":""},null,null,{"$f":"IF(AK428=\"\",\"\",INT(AK437/1000))","v":""},{"$f":"IF(AK428=\"\",\"\",VLOOKUP(AK437,C429:Q440,5,FALSE))","v":""},{"$f":"VLOOKUP(AK437,C429:Q440,8,FALSE)","v":""},{"$f":"VLOOKUP(AK437,C429:Q440,9,FALSE)","v":""},{"$f":"VLOOKUP(AK437,C429:Q440,10,FALSE)","v":""},{"$f":"VLOOKUP(AK437,C429:Q440,11,FALSE)","v":""},{"$f":"VLOOKUP(AK437,C429:Q440,12,FALSE)","v":""},{"$f":"VLOOKUP(AK437,C429:Q440,13,FALSE)","v":""},{"$f":"VLOOKUP(AK437,C429:Q440,14,FALSE)","v":""},{"$f":"VLOOKUP(AK437,C429:Q440,15,FALSE)","v":""}]
[null,10,{"$f":"IF(AK428=\"\",\"\",RANK(F438,F429:F440)*1000+ROW())","v":""},"",{"$f":"IF(L438=\"\",\"\",Nb_Diff_Part(D438,D429:D440,G438,G429:G440,AI443:AI528)*CritClassInd_DiffPart+Nb_Goal_Part(D438,D429:D440,G438,G429:G440,V443:Z528)*CritClassInd_GoalPart+Nb_Score_Part(D438,D429:D440,G438,G429:G440,V443:Z528)*CritClassInd_ScorePart)","v":""},"","J",0,null,{"$f":"IF(AK428=\"\",\"\",(L438*Points_Victoire)+M438*Points_Null)","v":""},"",{"$f":"IF(AK428=\"\",\"\",COUNTIF(AE443:AE528,G438))","v":""},{"$f":"IF(AK428=\"\",\"\",COUNTIF(AF443:AG528,G438))","v":""},{"$f":"IF(AK428=\"\",\"\",COUNTIF(AH443:AH528,G438))","v":""},{"$f":"IF(AK428=\"\",\"\",SUMIF(V443:V528,G438,AB443:AB528)+SUMIF(Z443:Z528,G438,AD443:AD528))","v":""},{"$f":"IF(AK428=\"\",\"\",SUMIF(V443:V528,G438,AD443:AD528)+SUMIF(Z443:Z528,G438,AB443:AB528))","v":""},{"$f":"IF(AK428=\"\",\"\",O438-P438)","v":""},null,null,null,null,null,null,null,null,null,null,null,null,null,null,null,null,null,null,null,{"$f":"IF(AK428=\"\",\"\",SMALL(C429:C440,10))","v":""},null,null,{"$f":"IF(AK428=\"\",\"\",INT(AK438/1000))","v":""},{"$f":"IF(AK428=\"\",\"\",VLOOKUP(AK438,C429:Q440,5,FALSE))","v":""},{"$f":"VLOOKUP(AK438,C429:Q440,8,FALSE)","v":""},{"$f":"VLOOKUP(AK438,C429:Q440,9,FALSE)","v":""},{"$f":"VLOOKUP(AK438,C429:Q440,10,FALSE)","v":""},{"$f":"VLOOKUP(AK438,C429:Q440,11,FALSE)","v":""},{"$f":"VLOOKUP(AK438,C429:Q440,12,FALSE)","v":""},{"$f":"VLOOKUP(AK438,C429:Q440,13,FALSE)","v":""},{"$f":"VLOOKUP(AK438,C429:Q440,14,FALSE)","v":""},{"$f":"VLOOKUP(AK438,C429:Q440,15,FALSE)","v":""}]
[null,11,{"$f":"IF(AK428=\"\",\"\",RANK(F439,F429:F440)*1000+ROW())","v":""},"",{"$f":"IF(L439=\"\",\"\",Nb_Diff_Part(D439,D429:D440,G439,G429:G440,AI443:AI528)*CritClassInd_DiffPart+Nb_Goal_Part(D439,D429:D440,G439,G429:G440,V443:Z528)*CritClassInd_GoalPart+Nb_Score_Part(D439,D429:D440,G439,G429:G440,V443:Z528)*CritClassInd_ScorePart)","v":""},"","K",0,null,{"$f":"IF(AK428=\"\",\"\",(L439*Points_Victoire)+M439*Points_Null)","v":""},"",{"$f":"IF(AK428=\"\",\"\",COUNTIF(AE443:AE528,G439))","v":""},{"$f":"IF(AK428=\"\",\"\",COUNTIF(AF443:AG528,G439))","v":""},{"$f":"IF(AK428=\"\",\"\",COUNTIF(AH443:AH528,G439))","v":""},{"$f":"IF(AK428=\"\",\"\",SUMIF(V443:V528,G439,AB443:AB528)+SUMIF(Z443:Z528,G439,AD443:AD528))","v":""},{"$f":"IF(AK428=\"\",\"\",SUMIF(V443:V528,G439,AD443:AD528)+SUMIF(Z443:Z528,G439,AB443:AB528))","v":""},{"$f":"IF(AK428=\"\",\"\",O439-P439)","v":""},null,null,null,null,null,null,null,null,null,null,null,null,null,null,null,null,null,null,null,{"$f":"IF(AK428=\"\",\"\",SMALL(C429:C440,11))","v":""},null,null,{"$f":"IF(AK428=\"\",\"\",INT(AK439/1000))","v":""},{"$f":"IF(AK428=\"\",\"\",VLOOKUP(AK439,C429:Q440,5,FALSE))","v":""},{"$f":"VLOOKUP(AK439,C429:Q440,8,FALSE)","v":""},{"$f":"VLOOKUP(AK439,C429:Q440,9,FALSE)","v":""},{"$f":"VLOOKUP(AK439,C429:Q440,10,FALSE)","v":""},{"$f":"VLOOKUP(AK439,C429:Q440,11,FALSE)","v":""},{"$f":"VLOOKUP(AK439,C429:Q440,12,FALSE)","v":""},{"$f":"VLOOKUP(AK439,C429:Q440,13,FALSE)","v":""},{"$f":"VLOOKUP(AK439,C429:Q440,14,FALSE)","v":""},{"$f":"VLOOKUP(AK439,C429:Q440,15,FALSE)","v":""}]
[null,12,{"$f":"IF(AK428=\"\",\"\",RANK(F440,F429:F440)*1000+ROW())","v":""},"",{"$f":"IF(L440=\"\",\"\",Nb_Diff_Part(D440,D429:D440,G440,G429:G440,AI443:AI528)*CritClassInd_DiffPart+Nb_Goal_Part(D440,D429:D440,G440,G429:G440,V443:Z528)*CritClassInd_GoalPart+Nb_Score_Part(D440,D429:D440,G440,G429:G440,V443:Z528)*CritClassInd_ScorePart)","v":""},"","L",0,null,{"$f":"IF(AK428=\"\",\"\",(L440*Points_Victoire)+M440*Points_Null)","v":""},"",{"$f":"IF(AK428=\"\",\"\",COUNTIF(AE443:AE528,G440))","v":""},{"$f":"IF(AK428=\"\",\"\",COUNTIF(AF443:AG528,G440))","v":""},{"$f":"IF(AK428=\"\",\"\",COUNTIF(AH443:AH528,G440))","v":""},{"$f":"IF(AK428=\"\",\"\",SUMIF(V443:V528,G440,AB443:AB528)+SUMIF(Z443:Z528,G440,AD443:AD528))","v":""},{"$f":"IF(AK428=\"\",\"\",SUMIF(V443:V528,G440,AD443:AD528)+SUMIF(Z443:Z528,G440,AB443:AB528))","v":""},{"$f":"IF(AK428=\"\",\"\",O440-P440)","v":""},null,null,null,null,null,null,null,null,null,null,null,null,null,null,null,null,null,null,null,{"$f":"IF(AK428=\"\",\"\",SMALL(C429:C440,12))","v":""},null,null,{"$f":"IF(AK428=\"\",\"\",INT(AK440/1000))","v":""},{"$f":"IF(AK428=\"\",\"\",VLOOKUP(AK440,C429:Q440,5,FALSE))","v":""},{"$f":"VLOOKUP(AK440,C429:Q440,8,FALSE)","v":""},{"$f":"VLOOKUP(AK440,C429:Q440,9,FALSE)","v":""},{"$f":"VLOOKUP(AK440,C429:Q440,10,FALSE)","v":""},{"$f":"VLOOKUP(AK440,C429:Q440,11,FALSE)","v":""},{"$f":"VLOOKUP(AK440,C429:Q440,12,FALSE)","v":""},{"$f":"VLOOKUP(AK440,C429:Q440,13,FALSE)","v":""},{"$f":"VLOOKUP(AK440,C429:Q440,14,FALSE)","v":""},{"$f":"VLOOKUP(AK440,C429:Q440,15,FALSE)","v":""}]
[null,null,null,null,null,null,null,null,null,null,null,null,null,null,null,null,null,null,1,null,null,null,null,null,null,null,null,{"$f":"IF(MaxScore,N_MaxScore,\"\")","v":"Max Score"}]
[null,null,null,null,null,null,null,null,null,null,null,null,null,null,null,null,null,null,{"$f":"N_Heure","v":"Time"},{"$f":"N_Table","v":"Table"},{"$f":"N_Arbitre","v":"Referee"},{"$f":"N_Matches","v":"Matches"}]
[null,null,null,null,null,null,null,null,null,null,null,null,null,null,null,null,null,"#G1",null,null,null,{"$f":"IF(G429=\"\",\"\",G429)","v":"A"},null,"-",null,{"$f":"IF(G430=\"\",\"\",G430)","v":"B"},null,{"$f":"IF(MaxScore,MaxGoals(W443,Y443,MaxGoalsValue),IF(W443=\"\",\"\",W443))","v":0},{"$f":"IF(MaxScore,\"-\",IF(W443=\"\",\"\",\"-\"))","v":"-"},{"$f":"IF(MaxScore,MaxGoals(Y443,W443,MaxGoalsValue),IF(Y443=\"\",\"\",Y443))","v":0},{"$f":"IF(W443=\"\",\"\",IF(W443>Y443,V443,IF(W443=Y443,\"\",Z443)))","v":""},{"$f":"IF(W443=\"\",\"\",IF(W443=Y443,V443,\"\"))","v":""},{"$f":"IF(W443=\"\",\"\",IF(W443=Y443,Z443,\"\"))","v":""},{"$f":"IF(W443=\"\",\"\",IF(W443<Y443,V443,IF(W443=Y443,\"\",Z443)))","v":""},{"$f":"CONCATENATE(AE443,AH443)","v":""}]
[null,null,null,null,null,null,null,null,null,null,null,null,null,null,null,null,null,"#G1",null,null,null,{"$f":"IF(G431=\"\",\"\",G431)","v":"C"},null,"-",null,{"$f":"IF(G432=\"\",\"\",G432)","v":"D"},null,0,"-",0,"","","","",""]
[null,null,null,null,null,null,null,null,null,null,null,null,null,null,null,null,null,"#G1",null,null,null,{"$f":"IF(G433=\"\",\"\",G433)","v":"E"},null,"-",null,{"$f":"IF(G434=\"\",\"\",G434)","v":"F"},null,0,"-",0,"","","","",""]
[null,null,null,null,null,null,null,null,null,null,null,null,null,null,null,null,null,"#G1",null,null,null,{"$f":"IF(G435=\"\",\"\",G435)","v":"G"},null,"-",null,{"$f":"IF(G436=\"\",\"\",G436)","v":"H"},null,0,"-",0,"","","","",""]
[null,null,null,null,null,null,null,null,null,null,null,null,null,null,null,null,null,"#G1",null,null,null,{"$f":"IF(G437=\"\",\"\",G437)","v":"I"},null,"-",null,{"$f":"IF(G438=\"\",\"\",G438)","v":"J"},null,0,"-",0,"","","","",""]
[null,null,null,null,null,null,null,null,null,null,null,null,null,null,null,null,null,"#G1",null,null,null,{"$f":"IF(G439=\"\",\"\",G439)","v":"K"},null,"-",null,{"$f":"IF(G440=\"\",\"\",G440)","v":"L"},null,0,"-",0,"","","","",""]
[null,null,null,null,null,null,null,null,null,null,null,null,null,null,null,null,null,null,{"$f":"S441+1","v":2}]
[null,null,null,null,null,null,null,null,null,null,null,null,null,null,null,null,null,null,{"$f":"N_Heure","v":"Time"},{"$f":"N_Table","v":"Table"},{"$f":"N_Arbitre","v":"Referee"},{"$f":"N_Matches","v":"Matches"}]
[null,null,null,null,null,null,null,null,null,null,null,null,null,null,null,null,null,"#G2",null,null,null,{"$f":"V444","v":"C"},null,"-",null,{"$f":"V443","v":"A"},null,{"$f":"IF(MaxScore,MaxGoals(W451,Y451,MaxGoalsValue),IF(W451=\"\",\"\",W451))","v":0},{"$f":"IF(MaxScore,\"-\",IF(W451=\"\",\"\",\"-\"))","v":"-"},{"$f":"IF(MaxScore,MaxGoals(Y451,W451,MaxGoalsValue),IF(Y451=\"\",\"\",Y451))","v":0},{"$f":"IF(W451=\"\",\"\",IF(W451>Y451,V451,IF(W451=Y451,\"\",Z451)))","v":""},{"$f":"IF(W451=\"\",\"\",IF(W451=Y451,V451,\"\"))","v":""},{"$f":"IF(W451=\"\",\"\",IF(W451=Y451,Z451,\"\"))","v":""},{"$f":"IF(W451=\"\",\"\",IF(W451<Y451,V451,IF(W451=Y451,\"\",Z451)))","v":""},{"$f":"CONCATENATE(AE451,AH451)","v":""}]
[null,null,null,null,null,null,null,null,null,null,null,null,null,null,null,null,null,"#G2",null,null,null,{"$f":"Z443","v":"B"},null,"-",null,{"$f":"V445","v":"E"},null,0,"-",0,"","","","",""]
[null,null,null,null,null,null,null,null,null,null,null,null,null,null,null,null,null,"#G2",null,null,null,{"$f":"Z444","v":"D"},null,"-",null,{"$f":"V446","v":"G"},null,0,"-",0,"","","","",""]
[null,null,null,null,null,null,null,null,null,null,null,null,null,null,null,null,null,"#G2",null,null,null,{"$f":"Z445","v":"F"},null,"-",null,{"$f":"V447","v":"I"},null,0,"-",0,"","","","",""]
[null,null,null,null,null,null,null,null,null,null,null,null,null,null,null,null,null,"#G2",null,null,null,{"$f":"Z446","v":"H"},null,"-",null,{"$f":"V448","v":"K"},null,0,"-",0,"","","","",""]
[null,null,null,null,null,null,null,null,null,null,null,null,null,null,null,null,null,"#G2",null,null,null,{"$f":"Z447","v":"J"},null,"-",null,{"$f":"Z448","v":"L"},null,0,"-",0,"","","","",""]
[null,null,null,null,null,null,null,null,null,null,null,null,null,null,null,null,null,null,{"$f":"S449+1","v":3}]
[null,null,null,null,null,null,null,null,null,null,null,null,null,null,null,null,null,null,{"$f":"N_Heure","v":"Time"},{"$f":"N_Table","v":"Table"},{"$f":"N_Arbitre","v":"Referee"},{"$f":"N_Matches","v":"Matches"}]
[null,null,null,null,null,null,null,null,null,null,null,null,null,null,null,null,null,"#G3",null,null,null,{"$f":"Z451","v":"A"},null,"-",null,{"$f":"Z452","v":"E"},null,{"$f":"IF(MaxScore,MaxGoals(W459,Y459,MaxGoalsValue),IF(W459=\"\",\"\",W459))","v":0},{"$f":"IF(MaxScore,\"-\",IF(W459=\"\",\"\",\"-\"))","v":"-"},{"$f":"IF(MaxScore,MaxGoals(Y459,W459,MaxGoalsValue),IF(Y459=\"\",\"\",Y459))","v":0},{"$f":"IF(W459=\"\",\"\",IF(W459>Y459,V459,IF(W459=Y459,\"\",Z459)))","v":""},{"$f":"IF(W459=\"\",\"\",IF(W459=Y459,V459,\"\"))","v":""},{"$f":"IF(W459=\"\",\"\",IF(W459=Y459,Z459,\"\"))","v":""},{"$f":"IF(W459=\"\",\"\",IF(W459<Y459,V459,IF(W459=Y459,\"\",Z459)))","v":""},{"$f":"CONCATENATE(AE459,AH459)","v":""}]
[null,null,null,null,null,null,null,null,null,null,null,null,null,null,null,null,null,"#G3",null,null,null,{"$f":"Z453","v":"G"},null,"-",null,{"$f":"V451","v":"C"},null,0,"-",0,"","","","",""]
[null,null,null,null,null,null,null,null,null,null,null,null,null,null,null,null,null,"#G3",null,null,null,{"$f":"Z454","v":"I"},null,"-",null,{"$f":"V452","v":"B"},null,0,"-",0,"","","","",""]
[null,null,null,null,null,null,null,null,null,null,null,null,null,null,null,null,null,"#G3",null,null,null,{"$f":"Z455","v":"K"},null,"-",null,{"$f":"V453","v":"D"},null,0,"-",0,"","","","",""]
[null,null,null,null,null,null,null,null,null,null,null,null,null,null,null,null,null,"#G3",null,null,null,{"$f":"Z456","v":"L"},null,"-",null,{"$f":"V454","v":"F"},null,0,"-",0,"","","","",""]
[null,null,null,null,null,null,null,null,null,null,null,null,null,null,null,null,null,"#G3",null,null,null,{"$f":"V456","v":"J"},null,"-",null,{"$f":"V455","v":"H"},null,0,"-",0,"","","","",""]
[null,null,null,null,null,null,null,null,null,null,null,null,null,null,null,null,null,null,{"$f":"S457+1","v":4}]
[null,null,null,null,null,null,null,null,null,null,null,null,null,null,null,null,null,null,{"$f":"N_Heure","v":"Time"},{"$f":"N_Table","v":"Table"},{"$f":"N_Arbitre","v":"Referee"},{"$f":"N_Matches","v":"Matches"}]
[null,null,null,null,null,null,null,null,null,null,null,null,null,null,null,null,null,"#G4",null,null,null,{"$f":"V460","v":"G"},null,"-",null,{"$f":"V459","v":"A"},null,{"$f":"IF(MaxScore,MaxGoals(W467,Y467,MaxGoalsValue),IF(W467=\"\",\"\",W467))","v":0},{"$f":"IF(MaxScore,\"-\",IF(W467=\"\",\"\",\"-\"))","v":"-"},{"$f":"IF(MaxScore,MaxGoals(Y467,W467,MaxGoalsValue),IF(Y467=\"\",\"\",Y467))","v":0},{"$f":"IF(W467=\"\",\"\",IF(W467>Y467,V467,IF(W467=Y467,\"\",Z467)))","v":""},{"$f":"IF(W467=\"\",\"\",IF(W467=Y467,V467,\"\"))","v":""},{"$f":"IF(W467=\"\",\"\",IF(W467=Y467,Z467,\"\"))","v":""},{"$f":"IF(W467=\"\",\"\",IF(W467<Y467,V467,IF(W467=Y467,\"\",Z467)))","v":""},{"$f":"CONCATENATE(AE467,AH467)","v":""}]
[null,null,null,null,null,null,null,null,null,null,null,null,null,null,null,null,null,"#G4",null,null,null,{"$f":"Z459","v":"E"},null,"-",null,{"$f":"V461","v":"I"},null,0,"-",0,"","","","",""]
[null,null,null,null,null,null,null,null,null,null,null,null,null,null,null,null,null,"#G4",null,null,null,{"$f":"Z460","v":"C"},null,"-",null,{"$f":"V462","v":"K"},null,0,"-",0,"","","","",""]
[null,null,null,null,null,null,null,null,null,null,null,null,null,null,null,null,null,"#G4",null,null,null,{"$f":"Z461","v":"B"},null,"-",null,{"$f":"V463","v":"L"},null,0,"-",0,"","","","",""]
[null,null,null,null,null,null,null,null,null,null,null,null,null,null,null,null,null,"#G4",null,null,null,{"$f":"Z462","v":"D"},null,"-",null,{"$f":"V464","v":"J"},null,0,"-",0,"","","","",""]
[null,null,null,null,null,null,null,null,null,null,null,null,null,null,null,null,null,"#G4",null,null,null,{"$f":"Z463","v":"F"},null,"-",null,{"$f":"Z464","v":"H"},null,0,"-",0,"","","","",""]
[null,null,null,null,null,null,null,null,null,null,null,null,null,null,null,null,null,null,{"$f":"S465+1","v":5}]
[null,null,null,null,null,null,null,null,null,null,null,null,null,null,null,null,null,null,{"$f":"N_Heure","v":"Time"},{"$f":"N_Table","v":"Table"},{"$f":"N_Arbitre","v":"Referee"},{"$f":"N_Matches","v":"Matches"}]
[null,null,null,null,null,null,null,null,null,null,null,null,null,null,null,null,null,"#G5",null,null,null,{"$f":"Z467","v":"A"},null,"-",null,{"$f":"Z468","v":"I"},null,{"$f":"IF(MaxScore,MaxGoals(W475,Y475,MaxGoalsValue),IF(W475=\"\",\"\",W475))","v":0},{"$f":"IF(MaxScore,\"-\",IF(W475=\"\",\"\",\"-\"))","v":"-"},{"$f":"IF(MaxScore,MaxGoals(Y475,W475,MaxGoalsValue),IF(Y475=\"\",\"\",Y475))","v":0},{"$f":"IF(W475=\"\",\"\",IF(W475>Y475,V475,IF(W475=Y475,\"\",Z475)))","v":""},{"$f":"IF(W475=\"\",\"\",IF(W475=Y475,V475,\"\"))","v":""},{"$f":"IF(W475=\"\",\"\",IF(W475=Y475,Z475,\"\"))","v":""},{"$f":"IF(W475=\"\",\"\",IF(W475<Y475,V475,IF(W475=Y475,\"\",Z475)))","v":""},{"$f":"CONCATENATE(AE475,AH475)","v":""}]
[null,null,null,null,null,null,null,null,null,null,null,null,null,null,null,null,null,"#G5",null,null,null,{"$f":"Z469","v":"K"},null,"-",null,{"$f":"V467","v":"G"},null,0,"-",0,"","","","",""]
[null,null,null,null,null,null,null,null,null,null,null,null,null,null,null,null,null,"#G5",null,null,null,{"$f":"Z470","v":"L"},null,"-",null,{"$f":"V468","v":"E"},null,0,"-",0,"","","","",""]
[null,null,null,null,null,null,null,null,null,null,null,null,null,null,null,null,null,"#G5",null,null,null,{"$f":"Z471","v":"J"},null,"-",null,{"$f":"V469","v":"C"},null,0,"-",0,"","","","",""]
[null,null,null,null,null,null,null,null,null,null,null,null,null,null,null,null,null,"#G5",null,null,null,{"$f":"Z472","v":"H"},null,"-",null,{"$f":"V470","v":"B"},null,0,"-",0,"","","","",""]
[null,null,null,null,null,null,null,null,null,null,null,null,null,null,null,null,null,"#G5",null,null,null,{"$f":"V472","v":"F"},null,"-",null,{"$f":"V471","v":"D"},null,0,"-",0,"","","","",""]
[null,null,null,null,null,null,null,null,null,null,null,null,null,null,null,null,null,null,{"$f":"S473+1","v":6}]
[null,null,null,null,null,null,null,null,null,null,null,null,null,null,null,null,null,null,{"$f":"N_Heure","v":"Time"},{"$f":"N_Table","v":"Table"},{"$f":"N_Arbitre","v":"Referee"},{"$f":"N_Matches","v":"Matches"}]
[null,null,null,null,null,null,null,null,null,null,null,null,null,null,null,null,null,"#G6",null,null,null,{"$f":"V476","v":"K"},null,"-",null,{"$f":"V475","v":"A"},null,{"$f":"IF(MaxScore,MaxGoals(W483,Y483,MaxGoalsValue),IF(W483=\"\",\"\",W483))","v":0},{"$f":"IF(MaxScore,\"-\",IF(W483=\"\",\"\",\"-\"))","v":"-"},{"$f":"IF(MaxScore,MaxGoals(Y483,W483,MaxGoalsValue),IF(Y483=\"\",\"\",Y483))","v":0},{"$f":"IF(W483=\"\",\"\",IF(W483>Y483,V483,IF(W483=Y483,\"\",Z483)))","v":""},{"$f":"IF(W483=\"\",\"\",IF(W483=Y483,V483,\"\"))","v":""},{"$f":"IF(W483=\"\",\"\",IF(W483=Y483,Z483,\"\"))","v":""},{"$f":"IF(W483=\"\",\"\",IF(W483<Y483,V483,IF(W483=Y483,\"\",Z483)))","v":""},{"$f":"CONCATENATE(AE483,AH483)","v":""}]
[null,null,null,null,null,null,null,null,null,null,null,null,null,null,null,null,null,"#G6",null,null,null,{"$f":"Z475","v":"I"},null,"-",null,{"$f":"V477","v":"L"},null,0,"-",0,"","","","",""]
[null,null,null,null,null,null,null,null,null,null,null,null,null,null,null,null,null,"#G6",null,null,null,{"$f":"Z476","v":"G"},null,"-",null,{"$f":"V478","v":"J"},null,0,"-",0,"","","","",""]
[null,null,null,null,null,null,null,null,null,null,null,null,null,null,null,null,null,"#G6",null,null,null,{"$f":"Z477","v":"E"},null,"-",null,{"$f":"V479","v":"H"},null,0,"-",0,"","","","",""]
[null,null,null,null,null,null,null,null,null,null,null,null,null,null,null,null,null,"#G6",null,null,null,{"$f":"Z478","v":"C"},null,"-",null,{"$f":"V480","v":"F"},null,0,"-",0,"","","","",""]
[null,null,null,null,null,null,null,null,null,null,null,null,null,null,null,null,null,"#G6",null,null,null,{"$f":"Z479","v":"B"},null,"-",null,{"$f":"Z480","v":"D"},null,0,"-",0,"","","","",""]
[null,null,null,null,null,null,null,null,null,null,null,null,null,null,null,null,null,null,{"$f":"S481+1","v":7}]
[null,null,null,null,null,null,null,null,null,null,null,null,null,null,null,null,null,null,{"$f":"N_Heure","v":"Time"},{"$f":"N_Table","v":"Table"},{"$f":"N_Arbitre","v":"Referee"},{"$f":"N_Matches","v":"Matches"}]
[null,null,null,null,null,null,null,null,null,null,null,null,null,null,null,null,null,"#G7",null,null,null,{"$f":"Z483","v":"A"},null,"-",null,{"$f":"Z484","v":"L"},null,{"$f":"IF(MaxScore,MaxGoals(W491,Y491,MaxGoalsValue),IF(W491=\"\",\"\",W491))","v":0},{"$f":"IF(MaxScore,\"-\",IF(W491=\"\",\"\",\"-\"))","v":"-"},{"$f":"IF(MaxScore,MaxGoals(Y491,W491,MaxGoalsValue),IF(Y491=\"\",\"\",Y491))","v":0},{"$f":"IF(W491=\"\",\"\",IF(W491>Y491,V491,IF(W491=Y491,\"\",Z491)))","v":""},{"$f":"IF(W491=\"\",\"\",IF(W491=Y491,V491,\"\"))","v":""},{"$f":"IF(W491=\"\",\"\",IF(W491=Y491,Z491,\"\"))","v":""},{"$f":"IF(W491=\"\",\"\",IF(W491<Y491,V491,IF(W491=Y491,\"\",Z491)))","v":""},{"$f":"CONCATENATE(AE491,AH491)","v":""}]
[null,null,null,null,null,null,null,null,null,null,null,null,null,null,null,null,null,"#G7",null,null,null,{"$f":"Z485","v":"J"},null,"-",null,{"$f":"V483","v":"K"},null,0,"-",0,"","","","",""]
[null,null,null,null,null,null,null,null,null,null,null,null,null,null,null,null,null,"#G7",null,null,null,{"$f":"Z486","v":"H"},null,"-",null,{"$f":"V484","v":"I"},null,0,"-",0,"","","","",""]
[null,null,null,null,null,null,null,null,null,null,null,null,null,null,null,null,null,"#G7",null,null,null,{"$f":"Z487","v":"F"},null,"-",null,{"$f":"V485","v":"G"},null,0,"-",0,"","","","",""]
[null,null,null,null,null,null,null,null,null,null,null,null,null,null,null,null,null,"#G7",null,null,null,{"$f":"Z488","v":"D"},null,"-",null,{"$f":"V486","v":"E"},null,0,"-",0,"","","","",""]
[null,null,null,null,null,null,null,null,null,null,null,null,null,null,null,null,null,"#G7",null,null,null,{"$f":"V488","v":"B"},null,"-",null,{"$f":"V487","v":"C"},null,0,"-",0,"","","","",""]
[null,null,null,null,null,null,null,null,null,null,null,null,null,null,null,null,null,null,{"$f":"S489+1","v":8}]
[null,null,null,null,null,null,null,null,null,null,null,null,null,null,null,null,null,null,{"$f":"N_Heure","v":"Time"},{"$f":"N_Table","v":"Table"},{"$f":"N_Arbitre","v":"Referee"},{"$f":"N_Matches","v":"Matches"}]
[null,null,null,null,null,null,null,null,null,null,null,null,null,null,null,null,null,"#G8",null,null,null,{"$f":"V492","v":"J"},null,"-",null,{"$f":"V491","v":"A"},null,{"$f":"IF(MaxScore,MaxGoals(W499,Y499,MaxGoalsValue),IF(W499=\"\",\"\",W499))","v":0},{"$f":"IF(MaxScore,\"-\",IF(W499=\"\",\"\",\"-\"))","v":"-"},{"$f":"IF(MaxScore,MaxGoals(Y499,W499,MaxGoalsValue),IF(Y499=\"\",\"\",Y499))","v":0},{"$f":"IF(W499=\"\",\"\",IF(W499>Y499,V499,IF(W499=Y499,\"\",Z499)))","v":""},{"$f":"IF(W499=\"\",\"\",IF(W499=Y499,V499,\"\"))","v":""},{"$f":"IF(W499=\"\",\"\",IF(W499=Y499,Z499,\"\"))","v":""},{"$f":"IF(W499=\"\",\"\",IF(W499<Y499,V499,IF(W499=Y499,\"\",Z499)))","v":""},{"$f":"CONCATENATE(AE499,AH499)","v":""}]
[null,null,null,null,null,null,null,null,null,null,null,null,null,null,null,null,null,"#G8",null,null,null,{"$f":"Z491","v":"L"},null,"-",null,{"$f":"V493","v":"H"},null,0,"-",0,"","","","",""]
[null,null,null,null,null,null,null,null,null,null,null,null,null,null,null,null,null,"#G8",null,null,null,{"$f":"Z492","v":"K"},null,"-",null,{"$f":"V494","v":"F"},null,0,"-",0,"","","","",""]
[null,null,null,null,null,null,null,null,null,null,null,null,null,null,null,null,null,"#G8",null,null,null,{"$f":"Z493","v":"I"},null,"-",null,{"$f":"V495","v":"D"},null,0,"-",0,"","","","",""]
[null,null,null,null,null,null,null,null,null,null,null,null,null,null,null,null,null,"#G8",null,null,null,{"$f":"Z494","v":"G"},null,"-",null,{"$f":"V496","v":"B"},null,0,"-",0,"","","","",""]
[null,null,null,null,null,null,null,null,null,null,null,null,null,null,null,null,null,"#G8",null,null,null,{"$f":"Z495","v":"E"},null,"-",null,{"$f":"Z496","v":"C"},null,0,"-",0,"","","","",""]
[null,null,null,null,null,null,null,null,null,null,null,null,null,null,null,null,null,null,{"$f":"S497+1","v":9}]
[null,null,null,null,null,null,null,null,null,null,null,null,null,null,null,null,null,null,{"$f":"N_Heure","v":"Time"},{"$f":"N_Table","v":"Table"},{"$f":"N_Arbitre","v":"Referee"},{"$f":"N_Matches","v":"Matches"}]
[null,null,null,null,null,null,null,null,null,null,null,null,null,null,null,null,null,"#G9",null,null,null,{"$f":"Z499","v":"A"},null,"-",null,{"$f":"Z500","v":"H"},null,{"$f":"IF(MaxScore,MaxGoals(W507,Y507,MaxGoalsValue),IF(W507=\"\",\"\",W507))","v":0},{"$f":"IF(MaxScore,\"-\",IF(W507=\"\",\"\",\"-\"))","v":"-"},{"$f":"IF(MaxScore,MaxGoals(Y507,W507,MaxGoalsValue),IF(Y507=\"\",\"\",Y507))","v":0},{"$f":"IF(W507=\"\",\"\",IF(W507>Y507,V507,IF(W507=Y507,\"\",Z507)))","v":""},{"$f":"IF(W507=\"\",\"\",IF(W507=Y507,V507,\"\"))","v":""},{"$f":"IF(W507=\"\",\"\",IF(W507=Y507,Z507,\"\"))","v":""},{"$f":"IF(W507=\"\",\"\",IF(W507<Y507,V507,IF(W507=Y507,\"\",Z507)))","v":""},{"$f":"CONCATENATE(AE507,AH507)","v":""}]
[null,null,null,null,null,null,null,null,null,null,null,null,null,null,null,null,null,"#G9",null,null,null,{"$f":"Z501","v":"F"},null,"-",null,{"$f":"V499","v":"J"},null,0,"-",0,"","","","",""]
[null,null,null,null,null,null,null,null,null,null,null,null,null,null,null,null,null,"#G9",null,null,null,{"$f":"Z502","v":"D"},null,"-",null,{"$f":"V500","v":"L"},null,0,"-",0,"","","","",""]
[null,null,null,null,null,null,null,null,null,null,null,null,null,null,null,null,null,"#G9",null,null,null,{"$f":"Z503","v":"B"},null,"-",null,{"$f":"V501","v":"K"},null,0,"-",0,"","","","",""]
[null,null,null,null,null,null,null,null,null,null,null,null,null,null,null,null,null,"#G9",null,null,null,{"$f":"Z504","v":"C"},null,"-",null,{"$f":"V502","v":"I"},null,0,"-",0,"","","","",""]
[null,null,null,null,null,null,null,null,null,null,null,null,null,null,null,null,null,"#G9",null,null,null,{"$f":"V504","v":"E"},null,"-",null,{"$f":"V503","v":"G"},null,0,"-",0,"","","","",""]
[null,null,null,null,null,null,null,null,null,null,null,null,null,null,null,null,null,null,{"$f":"S505+1","v":10}]
[null,null,null,null,null,null,null,null,null,null,null,null,null,null,null,null,null,null,{"$f":"N_Heure","v":"Time"},{"$f":"N_Table","v":"Table"},{"$f":"N_Arbitre","v":"Referee"},{"$f":"N_Matches","v":"Matches"}]
[null,null,null,null,null,null,null,null,null,null,null,null,null,null,null,null,null,"#G10",null,null,null,{"$f":"V508","v":"F"},null,"-",null,{"$f":"V507","v":"A"},null,{"$f":"IF(MaxScore,MaxGoals(W515,Y515,MaxGoalsValue),IF(W515=\"\",\"\",W515))","v":0},{"$f":"IF(MaxScore,\"-\",IF(W515=\"\",\"\",\"-\"))","v":"-"},{"$f":"IF(MaxScore,MaxGoals(Y515,W515,MaxGoalsValue),IF(Y515=\"\",\"\",Y515))","v":0},{"$f":"IF(W515=\"\",\"\",IF(W515>Y515,V515,IF(W515=Y515,\"\",Z515)))","v":""},{"$f":"IF(W515=\"\",\"\",IF(W515=Y515,V515,\"\"))","v":""},{"$f":"IF(W515=\"\",\"\",IF(W515=Y515,Z515,\"\"))","v":""},{"$f":"IF(W515=\"\",\"\",IF(W515<Y515,V515,IF(W515=Y515,\"\",Z515)))","v":""},{"$f":"CONCATENATE(AE515,AH515)","v":""}]
[null,null,null,null,null,null,null,null,null,null,null,null,null,null,null,null,null,"#G10",null,null,null,{"$f":"Z507","v":"H"},null,"-",null,{"$f":"V509","v":"D"},null,0,"-",0,"","","","",""]
[null,null,null,null,null,null,null,null,null,null,null,null,null,null,null,null,null,"#G10",null,null,null,{"$f":"Z508","v":"J"},null,"-",null,{"$f":"V510","v":"B"},null,0,"-",0,"","","","",""]
[null,null,null,null,null,null,null,null,null,null,null,null,null,null,null,null,null,"#G10",null,null,null,{"$f":"Z509","v":"L"},null,"-",null,{"$f":"V511","v":"C"},null,0,"-",0,"","","","",""]
[null,null,null,null,null,null,null,null,null,null,null,null,null,null,null,null,null,"#G10",null,null,null,{"$f":"Z510","v":"K"},null,"-",null,{"$f":"V512","v":"E"},null,0,"-",0,"","","","",""]
[null,null,null,null,null,null,null,null,null,null,null,null,null,null,null,null,null,"#G10",null,null,null,{"$f":"Z511","v":"I"},null,"-",null,{"$f":"Z512","v":"G"},null,0,"-",0,"","","","",""]
[null,null,null,null,null,null,null,null,null,null,null,null,null,null,null,null,null,null,{"$f":"S513+1","v":11}]
[null,null,null,null,null,null,null,null,null,null,null,null,null,null,null,null,null,null,{"$f":"N_Heure","v":"Time"},{"$f":"N_Table","v":"Table"},{"$f":"N_Arbitre","v":"Referee"},{"$f":"N_Matches","v":"Matches"}]
[null,null,null,null,null,null,null,null,null,null,null,null,null,null,null,null,null,"#G11",null,null,null,{"$f":"Z515","v":"A"},null,"-",null,{"$f":"Z516","v":"D"},null,{"$f":"IF(MaxScore,MaxGoals(W523,Y523,MaxGoalsValue),IF(W523=\"\",\"\",W523))","v":0},{"$f":"IF(MaxScore,\"-\",IF(W523=\"\",\"\",\"-\"))","v":"-"},{"$f":"IF(MaxScore,MaxGoals(Y523,W523,MaxGoalsValue),IF(Y523=\"\",\"\",Y523))","v":0},{"$f":"IF(W523=\"\",\"\",IF(W523>Y523,V523,IF(W523=Y523,\"\",Z523)))","v":""},{"$f":"IF(W523=\"\",\"\",IF(W523=Y523,V523,\"\"))","v":""},{"$f":"IF(W523=\"\",\"\",IF(W523=Y523,Z523,\"\"))","v":""},{"$f":"IF(W523=\"\",\"\",IF(W523<Y523,V523,IF(W523=Y523,\"\",Z523)))","v":""},{"$f":"CONCATENATE(AE523,AH523)","v":""}]
[null,null,null,null,null,null,null,null,null,null,null,null,null,null,null,null,null,"#G11",null,null,null,{"$f":"Z517","v":"B"},null,"-",null,{"$f":"V515","v":"F"},null,0,"-",0,"","","","",""]
[null,null,null,null,null,null,null,null,null,null,null,null,null,null,null,null,null,"#G11",null,null,null,{"$f":"Z518","v":"C"},null,"-",null,{"$f":"V516","v":"H"},null,0,"-",0,"","","","",""]
[null,null,null,null,null,null,null,null,null,null,null,null,null,null,null,null,null,"#G11",null,null,null,{"$f":"Z519","v":"E"},null,"-",null,{"$f":"V517","v":"J"},null,0,"-",0,"","","","",""]
[null,null,null,null,null,null,null,null,null,null,null,null,null,null,null,null,null,"#G11",null,null,null,{"$f":"Z520","v":"G"},null,"-",null,{"$f":"V518","v":"L"},null,0,"-",0,"","","","",""]
[null,null,null,null,null,null,null,null,null,null,null,null,null,null,null,null,null,"#G11",null,null,null,{"$f":"V520","v":"I"},null,"-",null,{"$f":"V519","v":"K"},null,0,"-",0,"","","","",""]
[]
[null,{"$f":"N_Group_13","v":"Group of 13"},null,null,null,null,null,null,null,null,null,null,null,null,null,null,null,null,null,null,null,null,null,null,null,null,null,null,null,null,null,null,null,null,null,null,null,null,{"$f":"B530","v":"Group of 13"}]
[]
[null,{"$f":"N_Tirage","v":"Draw"},"Cla.","Cla1","Part","Cla2",{"$f":"N_Joueurs","v":"Players"},{"$f":"N_RankPoints","v":"Rk Pt."},{"$f":"N_Diff_Part","v":"Part-Diff"},"Pts","J","G","N","P","BP","BC","Diff",null,null,null,null,null,null,null,null,null,null,null,null,null,{"$f":"N_G","v":"W"},{"$f":"N_N","v":"D"},{"$f":"N_N","v":"D"},{"$f":"N_P","v":"L"},"CONCAT","Ref Group",{"$f":"IF(COUNTA(W548:W649)=0,\"\",\"OK\")","v":""},null,null,{"$f":"N_Cla.","v":"Rk"},{"$f":"N_Joueurs","v":"Players"},{"$f":"N_Pts","v":"Pts"},{"$f":"N_J","v":"Pld"},{"$f":"N_G","v":"W"},{"$f":"N_N","v":"D"},{"$f":"N_P","v":"L"},{"$f":"N_BP","v":"F"},{"$f":"N_BC","v":"A"},{"$f":"N_Diff.","v":"SO"}]
[null,1,{"$f":"IF(AK532=\"\",\"\",RANK(F533,F533:F545)*1000+ROW())","v":""},{"$f":"IF(L533=\"\",\"\",CritClassInd1_Points*J533+CritClassInd1_Matches*L533+CritClassInd1_Attaque*O533+CritClassInd1_DiffButs*Q533)","v":""},{"$f":"IF(L533=\"\",\"\",Nb_Diff_Part(D533,D533:D545,G533,G533:G545,AI548:AI649)*CritClassInd_DiffPart+Nb_Goal_Part(D533,D533:D545,G533,G533:G545,V548:Z649)*CritClassInd_GoalPart+Nb_Score_Part(D533,D533:D545,G533,G533:G545,V548:Z649)*CritClassInd_ScorePart)","v":""},{"$f":"IF(L533=\"\",\"\",D533+E533+CritClassInd2_Points*J533+CritClassInd2_Matches*L533+CritClassInd2_Attaque*O533+CritClassInd2_DiffButs*Q533+CritClassInd_Ranking*H533+I533)","v":""},"A",{"$f":"GMFTRANKINGPOINTS(G533,Particular_Category)","v":0},null,{"$f":"IF(AK532=\"\",\"\",(L533*Points_Victoire)+M533*Points_Null)","v":""},{"$f":"IF(L533=\"\",\"\",SUM(L533:N533))","v":""},{"$f":"IF(AK532=\"\",\"\",COUNTIF(AE548:AE649,G533))","v":""},{"$f":"IF(AK532=\"\",\"\",COUNTIF(AF548:AG649,G533))","v":""},{"$f":"IF(AK532=\"\",\"\",COUNTIF(AH548:AH649,G533))","v":""},{"$f":"IF(AK532=\"\",\"\",SUMIF(V548:V649,G533,AB548:AB649)+SUMIF(Z548:Z649,G533,AD548:AD649))","v":""},{"$f":"IF(AK532=\"\",\"\",SUMIF(V548:V649,G533,AD548:AD649)+SUMIF(Z548:Z649,G533,AB548:AB649))","v":""},{"$f":"IF(AK532=\"\",\"\",O533-P533)","v":""},null,null,null,null,null,null,null,null,null,null,null,null,null,null,null,null,null,null,null,{"$f":"IF(AK532=\"\",\"\",SMALL(C533:C545,1))","v":""},null,null,{"$f":"IF(AK532=\"\",\"\",INT(AK533/1000))","v":""},{"$f":"IF(AK532=\"\",\"\",VLOOKUP(AK533,C533:Q545,5,FALSE))","v":""},{"$f":"VLOOKUP(AK533,C533:Q545,8,FALSE)","v":""},{"$f":"VLOOKUP(AK533,C533:Q545,9,FALSE)","v":""},{"$f":"VLOOKUP(AK533,C533:Q545,10,FALSE)","v":""},{"$f":"VLOOKUP(AK533,C533:Q545,11,FALSE)","v":""},{"$f":"VLOOKUP(AK533,C533:Q545,12,FALSE)","v":""},{"$f":"VLOOKUP(AK533,C533:Q545,13,FALSE)","v":""},{"$f":"VLOOKUP(AK533,C533:Q545,14,FALSE)","v":""},{"$f":"VLOOKUP(AK533,C533:Q545,15,FALSE)","v":""}]
[null,2,{"$f":"IF(AK532=\"\",\"\",RANK(F534,F533:F545)*1000+ROW())","v":""},{"$f":"IF(L534=\"\",\"\",CritClassInd1_Points*J534+CritClassInd1_Matches*L534+CritClassInd1_Attaque*O534+CritClassInd1_DiffButs*Q534)","v":""},{"$f":"IF(L534=\"\",\"\",Nb_Diff_Part(D534,D533:D545,G534,G533:G545,AI548:AI649)*CritClassInd_DiffPart+Nb_Goal_Part(D534,D533:D545,G534,G533:G545,V548:Z649)*CritClassInd_GoalPart+Nb_Score_Part(D534,D533:D545,G534,G533:G545,V548:Z649)*CritClassInd_ScorePart)","v":""},{"$f":"IF(L534=\"\",\"\",D534+E534+CritClassInd2_Points*J534+CritClassInd2_Matches*L534+CritClassInd2_Attaque*O534+CritClassInd2_DiffButs*Q534+CritClassInd_Ranking*H534+I534)","v":""},"B",0,null,{"$f":"IF(AK532=\"\",\"\",(L534*Points_Victoire)+M534*Points_Null)","v":""},"",{"$f":"IF(AK532=\"\",\"\",COUNTIF(AE548:AE649,G534))","v":""},{"$f":"IF(AK532=\"\",\"\",COUNTIF(AF548:AG649,G534))","v":""},{"$f":"IF(AK532=\"\",\"\",COUNTIF(AH548:AH649,G534))","v":""},{"$f":"IF(AK532=\"\",\"\",SUMIF(V548:V649,G534,AB548:AB649)+SUMIF(Z548:Z649,G534,AD548:AD649))","v":""},{"$f":"IF(AK532=\"\",\"\",SUMIF(V548:V649,G534,AD548:AD649)+SUMIF(Z548:Z649,G534,AB548:AB649))","v":""},{"$f":"IF(AK532=\"\",\"\",O534-P534)","v":""},null,null,null,null,null,null,null,null,null,null,null,null,null,null,null,null,null,null,null,{"$f":"IF(AK532=\"\",\"\",SMALL(C533:C545,2))","v":""},null,null,{"$f":"IF(AK532=\"\",\"\",INT(AK534/1000))","v":""},{"$f":"IF(AK532=\"\",\"\",VLOOKUP(AK534,C533:Q545,5,FALSE))","v":""},{"$f":"VLOOKUP(AK534,C533:Q545,8,FALSE)","v":""},{"$f":"VLOOKUP(AK534,C533:Q545,9,FALSE)","v":""},{"$f":"VLOOKUP(AK534,C533:Q545,10,FALSE)","v":""},{"$f":"VLOOKUP(AK534,C533:Q545,11,FALSE)","v":""},{"$f":"VLOOKUP(AK534,C533:Q545,12,FALSE)","v":""},{"$f":"VLOOKUP(AK534,C533:Q545,13,FALSE)","v":""},{"$f":"VLOOKUP(AK534,C533:Q545,14,FALSE)","v":""},{"$f":"VLOOKUP(AK534,C533:Q545,15,FALSE)","v":""}]
[null,3,{"$f":"IF(AK532=\"\",\"\",RANK(F535,F533:F545)*1000+ROW())","v":""},"",{"$f":"IF(L535=\"\",\"\",Nb_Diff_Part(D535,D533:D545,G535,G533:G545,AI548:AI649)*CritClassInd_DiffPart+Nb_Goal_Part(D535,D533:D545,G535,G533:G545,V548:Z649)*CritClassInd_GoalPart+Nb_Score_Part(D535,D533:D545,G535,G533:G545,V548:Z649)*CritClassInd_ScorePart)","v":""},"","C",0,null,{"$f":"IF(AK532=\"\",\"\",(L535*Points_Victoire)+M535*Points_Null)","v":""},"",{"$f":"IF(AK532=\"\",\"\",COUNTIF(AE548:AE649,G535))","v":""},{"$f":"IF(AK532=\"\",\"\",COUNTIF(AF548:AG649,G535))","v":""},{"$f":"IF(AK532=\"\",\"\",COUNTIF(AH548:AH649,G535))","v":""},{"$f":"IF(AK532=\"\",\"\",SUMIF(V548:V649,G535,AB548:AB649)+SUMIF(Z548:Z649,G535,AD548:AD649))","v":""},{"$f":"IF(AK532=\"\",\"\",SUMIF(V548:V649,G535,AD548:AD649)+SUMIF(Z548:Z649,G535,AB548:AB649))","v":""},{"$f":"IF(AK532=\"\",\"\",O535-P535)","v":""},null,null,null,null,null,null,null,null,null,null,null,null,null,null,null,null,null,null,null,{"$f":"IF(AK532=\"\",\"\",SMALL(C533:C545,3))","v":""},null,null,{"$f":"IF(AK532=\"\",\"\",INT(AK535/1000))","v":""},{"$f":"IF(AK532=\"\",\"\",VLOOKUP(AK535,C533:Q545,5,FALSE))","v":""},{"$f":"VLOOKUP(AK535,C533:Q545,8,FALSE)","v":""},{"$f":"VLOOKUP(AK535,C533:Q545,9,FALSE)","v":""},{"$f":"VLOOKUP(AK535,C533:Q545,10,FALSE)","v":""},{"$f":"VLOOKUP(AK535,C533:Q545,11,FALSE)","v":""},{"$f":"VLOOKUP(AK535,C533:Q545,12,FALSE)","v":""},{"$f":"VLOOKUP(AK535,C533:Q545,13,FALSE)","v":""},{"$f":"VLOOKUP(AK535,C533:Q545,14,FALSE)","v":""},{"$f":"VLOOKUP(AK535,C533:Q545,15,FALSE)","v":""}]
[null,4,{"$f":"IF(AK532=\"\",\"\",RANK(F536,F533:F545)*1000+ROW())","v":""},"",{"$f":"IF(L536=\"\",\"\",Nb_Diff_Part(D536,D533:D545,G536,G533:G545,AI548:AI649)*CritClassInd_DiffPart+Nb_Goal_Part(D536,D533:D545,G536,G533:G545,V548:Z649)*CritClassInd_GoalPart+Nb_Score_Part(D536,D533:D545,G536,G533:G545,V548:Z649)*CritClassInd_ScorePart)","v":""},"","D",0,null,{"$f":"IF(AK532=\"\",\"\",(L536*Points_Victoire)+M536*Points_Null)","v":""},"",{"$f":"IF(AK532=\"\",\"\",COUNTIF(AE548:AE649,G536))","v":""},{"$f":"IF(AK532=\"\",\"\",COUNTIF(AF548:AG649,G536))","v":""},{"$f":"IF(AK532=\"\",\"\",COUNTIF(AH548:AH649,G536))","v":""},{"$f":"IF(AK532=\"\",\"\",SUMIF(V548:V649,G536,AB548:AB649)+SUMIF(Z548:Z649,G536,AD548:AD649))","v":""},{"$f":"IF(AK532=\"\",\"\",SUMIF(V548:V649,G536,AD548:AD649)+SUMIF(Z548:Z649,G536,AB548:AB649))","v":""},{"$f":"IF(AK532=\"\",\"\",O536-P536)","v":""},null,null,null,null,null,null,null,null,null,null,null,null,null,null,null,null,null,null,null,{"$f":"IF(AK532=\"\",\"\",SMALL(C533:C545,4))","v":""},null,null,{"$f":"IF(AK532=\"\",\"\",INT(AK536/1000))","v":""},{"$f":"IF(AK532=\"\",\"\",VLOOKUP(AK536,C533:Q545,5,FALSE))","v":""},{"$f":"VLOOKUP(AK536,C533:Q545,8,FALSE)","v":""},{"$f":"VLOOKUP(AK536,C533:Q545,9,FALSE)","v":""},{"$f":"VLOOKUP(AK536,C533:Q545,10,FALSE)","v":""},{"$f":"VLOOKUP(AK536,C533:Q545,11,FALSE)","v":""},{"$f":"VLOOKUP(AK536,C533:Q545,12,FALSE)","v":""},{"$f":"VLOOKUP(AK536,C533:Q545,13,FALSE)","v":""},{"$f":"VLOOKUP(AK536,C533:Q545,14,FALSE)","v":""},{"$f":"VLOOKUP(AK536,C533:Q545,15,FALSE)","v":""}]
[null,5,{"$f":"IF(AK532=\"\",\"\",RANK(F537,F533:F545)*1000+ROW())","v":""},"",{"$f":"IF(L537=\"\",\"\",Nb_Diff_Part(D537,D533:D545,G537,G533:G545,AI548:AI649)*CritClassInd_DiffPart+Nb_Goal_Part(D537,D533:D545,G537,G533:G545,V548:Z649)*CritClassInd_GoalPart+Nb_Score_Part(D537,D533:D545,G537,G533:G545,V548:Z649)*CritClassInd_ScorePart)","v":""},"","E",0,null,{"$f":"IF(AK532=\"\",\"\",(L537*Points_Victoire)+M537*Points_Null)","v":""},"",{"$f":"IF(AK532=\"\",\"\",COUNTIF(AE548:AE649,G537))","v":""},{"$f":"IF(AK532=\"\",\"\",COUNTIF(AF548:AG649,G537))","v":""},{"$f":"IF(AK532=\"\",\"\",COUNTIF(AH548:AH649,G537))","v":""},{"$f":"IF(AK532=\"\",\"\",SUMIF(V548:V649,G537,AB548:AB649)+SUMIF(Z548:Z649,G537,AD548:AD649))","v":""},{"$f":"IF(AK532=\"\",\"\",SUMIF(V548:V649,G537,AD548:AD649)+SUMIF(Z548:Z649,G537,AB548:AB649))","v":""},{"$f":"IF(AK532=\"\",\"\",O537-P537)","v":""},null,null,null,null,null,null,null,null,null,null,null,null,null,null,null,null,null,null,null,{"$f":"IF(AK532=\"\",\"\",SMALL(C533:C545,5))","v":""},null,null,{"$f":"IF(AK532=\"\",\"\",INT(AK537/1000))","v":""},{"$f":"IF(AK532=\"\",\"\",VLOOKUP(AK537,C533:Q545,5,FALSE))","v":""},{"$f":"VLOOKUP(AK537,C533:Q545,8,FALSE)","v":""},{"$f":"VLOOKUP(AK537,C533:Q545,9,FALSE)","v":""},{"$f":"VLOOKUP(AK537,C533:Q545,10,FALSE)","v":""},{"$f":"VLOOKUP(AK537,C533:Q545,11,FALSE)","v":""},{"$f":"VLOOKUP(AK537,C533:Q545,12,FALSE)","v":""},{"$f":"VLOOKUP(AK537,C533:Q545,13,FALSE)","v":""},{"$f":"VLOOKUP(AK537,C533:Q545,14,FALSE)","v":""},{"$f":"VLOOKUP(AK537,C533:Q545,15,FALSE)","v":""}]
[null,6,{"$f":"IF(AK532=\"\",\"\",RANK(F538,F533:F545)*1000+ROW())","v":""},"",{"$f":"IF(L538=\"\",\"\",Nb_Diff_Part(D538,D533:D545,G538,G533:G545,AI548:AI649)*CritClassInd_DiffPart+Nb_Goal_Part(D538,D533:D545,G538,G533:G545,V548:Z649)*CritClassInd_GoalPart+Nb_Score_Part(D538,D533:D545,G538,G533:G545,V548:Z649)*CritClassInd_ScorePart)","v":""},"","F",0,null,{"$f":"IF(AK532=\"\",\"\",(L538*Points_Victoire)+M538*Points_Null)","v":""},"",{"$f":"IF(AK532=\"\",\"\",COUNTIF(AE548:AE649,G538))","v":""},{"$f":"IF(AK532=\"\",\"\",COUNTIF(AF548:AG649,G538))","v":""},{"$f":"IF(AK532=\"\",\"\",COUNTIF(AH548:AH649,G538))","v":""},{"$f":"IF(AK532=\"\",\"\",SUMIF(V548:V649,G538,AB548:AB649)+SUMIF(Z548:Z649,G538,AD548:AD649))","v":""},{"$f":"IF(AK532=\"\",\"\",SUMIF(V548:V649,G538,AD548:AD649)+SUMIF(Z548:Z649,G538,AB548:AB649))","v":""},{"$f":"IF(AK532=\"\",\"\",O538-P538)","v":""},null,null,null,null,null,null,null,null,null,null,null,null,null,null,null,null,null,null,null,{"$f":"IF(AK532=\"\",\"\",SMALL(C533:C545,6))","v":""},null,null,{"$f":"IF(AK532=\"\",\"\",INT(AK538/1000))","v":""},{"$f":"IF(AK532=\"\",\"\",VLOOKUP(AK538,C533:Q545,5,FALSE))","v":""},{"$f":"VLOOKUP(AK538,C533:Q545,8,FALSE)","v":""},{"$f":"VLOOKUP(AK538,C533:Q545,9,FALSE)","v":""},{"$f":"VLOOKUP(AK538,C533:Q545,10,FALSE)","v":""},{"$f":"VLOOKUP(AK538,C533:Q545,11,FALSE)","v":""},{"$f":"VLOOKUP(AK538,C533:Q545,12,FALSE)","v":""},{"$f":"VLOOKUP(AK538,C533:Q545,13,FALSE)","v":""},{"$f":"VLOOKUP(AK538,C533:Q545,14,FALSE)","v":""},{"$f":"VLOOKUP(AK538,C533:Q545,15,FALSE)","v":""}]
[null,7,{"$f":"IF(AK532=\"\",\"\",RANK(F539,F533:F545)*1000+ROW())","v":""},"",{"$f":"IF(L539=\"\",\"\",Nb_Diff_Part(D539,D533:D545,G539,G533:G545,AI548:AI649)*CritClassInd_DiffPart+Nb_Goal_Part(D539,D533:D545,G539,G533:G545,V548:Z649)*CritClassInd_GoalPart+Nb_Score_Part(D539,D533:D545,G539,G533:G545,V548:Z649)*CritClassInd_ScorePart)","v":""},"","G",0,null,{"$f":"IF(AK532=\"\",\"\",(L539*Points_Victoire)+M539*Points_Null)","v":""},"",{"$f":"IF(AK532=\"\",\"\",COUNTIF(AE548:AE649,G539))","v":""},{"$f":"IF(AK532=\"\",\"\",COUNTIF(AF548:AG649,G539))","v":""},{"$f":"IF(AK532=\"\",\"\",COUNTIF(AH548:AH649,G539))","v":""},{"$f":"IF(AK532=\"\",\"\",SUMIF(V548:V649,G539,AB548:AB649)+SUMIF(Z548:Z649,G539,AD548:AD649))","v":""},{"$f":"IF(AK532=\"\",\"\",SUMIF(V548:V649,G539,AD548:AD649)+SUMIF(Z548:Z649,G539,AB548:AB649))","v":""},{"$f":"IF(AK532=\"\",\"\",O539-P539)","v":""},null,null,null,null,null,null,null,null,null,null,null,null,null,null,null,null,null,null,null,{"$f":"IF(AK532=\"\",\"\",SMALL(C533:C545,7))","v":""},null,null,{"$f":"IF(AK532=\"\",\"\",INT(AK539/1000))","v":""},{"$f":"IF(AK532=\"\",\"\",VLOOKUP(AK539,C533:Q545,5,FALSE))","v":""},{"$f":"VLOOKUP(AK539,C533:Q545,8,FALSE)","v":""},{"$f":"VLOOKUP(AK539,C533:Q545,9,FALSE)","v":""},{"$f":"VLOOKUP(AK539,C533:Q545,10,FALSE)","v":""},{"$f":"VLOOKUP(AK539,C533:Q545,11,FALSE)","v":""},{"$f":"VLOOKUP(AK539,C533:Q545,12,FALSE)","v":""},{"$f":"VLOOKUP(AK539,C533:Q545,13,FALSE)","v":""},{"$f":"VLOOKUP(AK539,C533:Q545,14,FALSE)","v":""},{"$f":"VLOOKUP(AK539,C533:Q545,15,FALSE)","v":""}]
[null,8,{"$f":"IF(AK532=\"\",\"\",RANK(F540,F533:F545)*1000+ROW())","v":""},"",{"$f":"IF(L540=\"\",\"\",Nb_Diff_Part(D540,D533:D545,G540,G533:G545,AI548:AI649)*CritClassInd_DiffPart+Nb_Goal_Part(D540,D533:D545,G540,G533:G545,V548:Z649)*CritClassInd_GoalPart+Nb_Score_Part(D540,D533:D545,G540,G533:G545,V548:Z649)*CritClassInd_ScorePart)","v":""},"","H",0,null,{"$f":"IF(AK532=\"\",\"\",(L540*Points_Victoire)+M540*Points_Null)","v":""},"",{"$f":"IF(AK532=\"\",\"\",COUNTIF(AE548:AE649,G540))","v":""},{"$f":"IF(AK532=\"\",\"\",COUNTIF(AF548:AG649,G540))","v":""},{"$f":"IF(AK532=\"\",\"\",COUNTIF(AH548:AH649,G540))","v":""},{"$f":"IF(AK532=\"\",\"\",SUMIF(V548:V649,G540,AB548:AB649)+SUMIF(Z548:Z649,G540,AD548:AD649))","v":""},{"$f":"IF(AK532=\"\",\"\",SUMIF(V548:V649,G540,AD548:AD649)+SUMIF(Z548:Z649,G540,AB548:AB649))","v":""},{"$f":"IF(AK532=\"\",\"\",O540-P540)","v":""},null,null,null,null,null,null,null,null,null,null,null,null,null,null,null,null,null,null,null,{"$f":"IF(AK532=\"\",\"\",SMALL(C533:C545,8))","v":""},null,null,{"$f":"IF(AK532=\"\",\"\",INT(AK540/1000))","v":""},{"$f":"IF(AK532=\"\",\"\",VLOOKUP(AK540,C533:Q545,5,FALSE))","v":""},{"$f":"VLOOKUP(AK540,C533:Q545,8,FALSE)","v":""},{"$f":"VLOOKUP(AK540,C533:Q545,9,FALSE)","v":""},{"$f":"VLOOKUP(AK540,C533:Q545,10,FALSE)","v":""},{"$f":"VLOOKUP(AK540,C533:Q545,11,FALSE)","v":""},{"$f":"VLOOKUP(AK540,C533:Q545,12,FALSE)","v":""},{"$f":"VLOOKUP(AK540,C533:Q545,13,FALSE)","v":""},{"$f":"VLOOKUP(AK540,C533:Q545,14,FALSE)","v":""},{"$f":"VLOOKUP(AK540,C533:Q545,15,FALSE)","v":""}]
[null,9,{"$f":"IF(AK532=\"\",\"\",RANK(F541,F533:F545)*1000+ROW())","v":""},"",{"$f":"IF(L541=\"\",\"\",Nb_Diff_Part(D541,D533:D545,G541,G533:G545,AI548:AI649)*CritClassInd_DiffPart+Nb_Goal_Part(D541,D533:D545,G541,G533:G545,V548:Z649)*CritClassInd_GoalPart+Nb_Score_Part(D541,D533:D545,G541,G533:G545,V548:Z649)*CritClassInd_ScorePart)","v":""},"","I",0,null,{"$f":"IF(AK532=\"\",\"\",(L541*Points_Victoire)+M541*Points_Null)","v":""},"",{"$f":"IF(AK532=\"\",\"\",COUNTIF(AE548:AE649,G541))","v":""},{"$f":"IF(AK532=\"\",\"\",COUNTIF(AF548:AG649,G541))","v":""},{"$f":"IF(AK532=\"\",\"\",COUNTIF(AH548:AH649,G541))","v":""},{"$f":"IF(AK532=\"\",\"\",SUMIF(V548:V649,G541,AB548:AB649)+SUMIF(Z548:Z649,G541,AD548:AD649))","v":""},{"$f":"IF(AK532=\"\",\"\",SUMIF(V548:V649,G541,AD548:AD649)+SUMIF(Z548:Z649,G541,AB548:AB649))","v":""},{"$f":"IF(AK532=\"\",\"\",O541-P541)","v":""},null,null,null,null,null,null,null,null,null,null,null,null,null,null,null,null,null,null,null,{"$f":"IF(AK532=\"\",\"\",SMALL(C533:C545,9))","v":""},null,null,{"$f":"IF(AK532=\"\",\"\",INT(AK541/1000))","v":""},{"$f":"IF(AK532=\"\",\"\",VLOOKUP(AK541,C533:Q545,5,FALSE))","v":""},{"$f":"VLOOKUP(AK541,C533:Q545,8,FALSE)","v":""},{"$f":"VLOOKUP(AK541,C533:Q545,9,FALSE)","v":""},{"$f":"VLOOKUP(AK541,C533:Q545,10,FALSE)","v":""},{"$f":"VLOOKUP(AK541,C533:Q545,11,FALSE)","v":""},{"$f":"VLOOKUP(AK541,C533:Q545,12,FALSE)","v":""},{"$f":"VLOOKUP(AK541,C533:Q545,13,FALSE)","v":""},{"$f":"VLOOKUP(AK541,C533:Q545,14,FALSE)","v":""},{"$f":"VLOOKUP(AK541,C533:Q545,15,FALSE)","v":""}]
[null,10,{"$f":"IF(AK532=\"\",\"\",RANK(F542,F533:F545)*1000+ROW())","v":""},"",{"$f":"IF(L542=\"\",\"\",Nb_Diff_Part(D542,D533:D545,G542,G533:G545,AI548:AI649)*CritClassInd_DiffPart+Nb_Goal_Part(D542,D533:D545,G542,G533:G545,V548:Z649)*CritClassInd_GoalPart+Nb_Score_Part(D542,D533:D545,G542,G533:G545,V548:Z649)*CritClassInd_ScorePart)","v":""},"","J",0,null,{"$f":"IF(AK532=\"\",\"\",(L542*Points_Victoire)+M542*Points_Null)","v":""},"",{"$f":"IF(AK532=\"\",\"\",COUNTIF(AE548:AE649,G542))","v":""},{"$f":"IF(AK532=\"\",\"\",COUNTIF(AF548:AG649,G542))","v":""},{"$f":"IF(AK532=\"\",\"\",COUNTIF(AH548:AH649,G542))","v":""},{"$f":"IF(AK532=\"\",\"\",SUMIF(V548:V649,G542,AB548:AB649)+SUMIF(Z548:Z649,G542,AD548:AD649))","v":""},{"$f":"IF(AK532=\"\",\"\",SUMIF(V548:V649,G542,AD548:AD649)+SUMIF(Z548:Z649,G542,AB548:AB649))","v":""},{"$f":"IF(AK532=\"\",\"\",O542-P542)","v":""},null,null,null,null,null,null,null,null,null,null,null,null,null,null,null,null,null,null,null,{"$f":"IF(AK532=\"\",\"\",SMALL(C533:C545,10))","v":""},null,null,{"$f":"IF(AK532=\"\",\"\",INT(AK542/1000))","v":""},{"$f":"IF(AK532=\"\",\"\",VLOOKUP(AK542,C533:Q545,5,FALSE))","v":""},{"$f":"VLOOKUP(AK542,C533:Q545,8,FALSE)","v":""},{"$f":"VLOOKUP(AK542,C533:Q545,9,FALSE)","v":""},{"$f":"VLOOKUP(AK542,C533:Q545,10,FALSE)","v":""},{"$f":"VLOOKUP(AK542,C533:Q545,11,FALSE)","v":""},{"$f":"VLOOKUP(AK542,C533:Q545,12,FALSE)","v":""},{"$f":"VLOOKUP(AK542,C533:Q545,13,FALSE)","v":""},{"$f":"VLOOKUP(AK542,C533:Q545,14,FALSE)","v":""},{"$f":"VLOOKUP(AK542,C533:Q545,15,FALSE)","v":""}]
[null,11,{"$f":"IF(AK532=\"\",\"\",RANK(F543,F533:F545)*1000+ROW())","v":""},"",{"$f":"IF(L543=\"\",\"\",Nb_Diff_Part(D543,D533:D545,G543,G533:G545,AI548:AI649)*CritClassInd_DiffPart+Nb_Goal_Part(D543,D533:D545,G543,G533:G545,V548:Z649)*CritClassInd_GoalPart+Nb_Score_Part(D543,D533:D545,G543,G533:G545,V548:Z649)*CritClassInd_ScorePart)","v":""},"","K",0,null,{"$f":"IF(AK532=\"\",\"\",(L543*Points_Victoire)+M543*Points_Null)","v":""},"",{"$f":"IF(AK532=\"\",\"\",COUNTIF(AE548:AE649,G543))","v":""},{"$f":"IF(AK532=\"\",\"\",COUNTIF(AF548:AG649,G543))","v":""},{"$f":"IF(AK532=\"\",\"\",COUNTIF(AH548:AH649,G543))","v":""},{"$f":"IF(AK532=\"\",\"\",SUMIF(V548:V649,G543,AB548:AB649)+SUMIF(Z548:Z649,G543,AD548:AD649))","v":""},{"$f":"IF(AK532=\"\",\"\",SUMIF(V548:V649,G543,AD548:AD649)+SUMIF(Z548:Z649,G543,AB548:AB649))","v":""},{"$f":"IF(AK532=\"\",\"\",O543-P543)","v":""},null,null,null,null,null,null,null,null,null,null,null,null,null,null,null,null,null,null,null,{"$f":"IF(AK532=\"\",\"\",SMALL(C533:C545,11))","v":""},null,null,{"$f":"IF(AK532=\"\",\"\",INT(AK543/1000))","v":""},{"$f":"IF(AK532=\"\",\"\",VLOOKUP(AK543,C533:Q545,5,FALSE))","v":""},{"$f":"VLOOKUP(AK543,C533:Q545,8,FALSE)","v":""},{"$f":"VLOOKUP(AK543,C533:Q545,9,FALSE)","v":""},{"$f":"VLOOKUP(AK543,C533:Q545,10,FALSE)","v":""},{"$f":"VLOOKUP(AK543,C533:Q545,11,FALSE)","v":""},{"$f":"VLOOKUP(AK543,C533:Q545,12,FALSE)","v":""},{"$f":"VLOOKUP(AK543,C533:Q545,13,FALSE)","v":""},{"$f":"VLOOKUP(AK543,C533:Q545,14,FALSE)","v":""},{"$f":"VLOOKUP(AK543,C533:Q545,15,FALSE)","v":""}]
[null,12,{"$f":"IF(AK532=\"\",\"\",RANK(F544,F533:F545)*1000+ROW())","v":""},"",{"$f":"IF(L544=\"\",\"\",Nb_Diff_Part(D544,D533:D545,G544,G533:G545,AI548:AI649)*CritClassInd_DiffPart+Nb_Goal_Part(D544,D533:D545,G544,G533:G545,V548:Z649)*CritClassInd_GoalPart+Nb_Score_Part(D544,D533:D545,G544,G533:G545,V548:Z649)*CritClassInd_ScorePart)","v":""},"","L",0,null,{"$f":"IF(AK532=\"\",\"\",(L544*Points_Victoire)+M544*Points_Null)","v":""},"",{"$f":"IF(AK532=\"\",\"\",COUNTIF(AE548:AE649,G544))","v":""},{"$f":"IF(AK532=\"\",\"\",COUNTIF(AF548:AG649,G544))","v":""},{"$f":"IF(AK532=\"\",\"\",COUNTIF(AH548:AH649,G544))","v":""},{"$f":"IF(AK532=\"\",\"\",SUMIF(V548:V649,G544,AB548:AB649)+SUMIF(Z548:Z649,G544,AD548:AD649))","v":""},{"$f":"IF(AK532=\"\",\"\",SUMIF(V548:V649,G544,AD548:AD649)+SUMIF(Z548:Z649,G544,AB548:AB649))","v":""},{"$f":"IF(AK532=\"\",\"\",O544-P544)","v":""},null,null,null,null,null,null,null,null,null,null,null,null,null,null,null,null,null,null,null,{"$f":"IF(AK532=\"\",\"\",SMALL(C533:C545,12))","v":""},null,null,{"$f":"IF(AK532=\"\",\"\",INT(AK544/1000))","v":""},{"$f":"IF(AK532=\"\",\"\",VLOOKUP(AK544,C533:Q545,5,FALSE))","v":""},{"$f":"VLOOKUP(AK544,C533:Q545,8,FALSE)","v":""},{"$f":"VLOOKUP(AK544,C533:Q545,9,FALSE)","v":""},{"$f":"VLOOKUP(AK544,C533:Q545,10,FALSE)","v":""},{"$f":"VLOOKUP(AK544,C533:Q545,11,FALSE)","v":""},{"$f":"VLOOKUP(AK544,C533:Q545,12,FALSE)","v":""},{"$f":"VLOOKUP(AK544,C533:Q545,13,FALSE)","v":""},{"$f":"VLOOKUP(AK544,C533:Q545,14,FALSE)","v":""},{"$f":"VLOOKUP(AK544,C533:Q545,15,FALSE)","v":""}]
[null,13,{"$f":"IF(AK532=\"\",\"\",RANK(F545,F533:F545)*1000+ROW())","v":""},"",{"$f":"IF(L545=\"\",\"\",Nb_Diff_Part(D545,D533:D545,G545,G533:G545,AI548:AI649)*CritClassInd_DiffPart+Nb_Goal_Part(D545,D533:D545,G545,G533:G545,V548:Z649)*CritClassInd_GoalPart+Nb_Score_Part(D545,D533:D545,G545,G533:G545,V548:Z649)*CritClassInd_ScorePart)","v":""},"","M",0,null,{"$f":"IF(AK532=\"\",\"\",(L545*Points_Victoire)+M545*Points_Null)","v":""},"",{"$f":"IF(AK532=\"\",\"\",COUNTIF(AE548:AE649,G545))","v":""},{"$f":"IF(AK532=\"\",\"\",COUNTIF(AF548:AG649,G545))","v":""},{"$f":"IF(AK532=\"\",\"\",COUNTIF(AH548:AH649,G545))","v":""},{"$f":"IF(AK532=\"\",\"\",SUMIF(V548:V649,G545,AB548:AB649)+SUMIF(Z548:Z649,G545,AD548:AD649))","v":""},{"$f":"IF(AK532=\"\",\"\",SUMIF(V548:V649,G545,AD548:AD649)+SUMIF(Z548:Z649,G545,AB548:AB649))","v":""},{"$f":"IF(AK532=\"\",\"\",O545-P545)","v":""},null,null,null,null,null,null,null,null,null,null,null,null,null,null,null,null,null,null,null,{"$f":"IF(AK532=\"\",\"\",SMALL(C533:C545,13))","v":""},null,null,{"$f":"IF(AK532=\"\",\"\",INT(AK545/1000))","v":""},{"$f":"IF(AK532=\"\",\"\",VLOOKUP(AK545,C533:Q545,5,FALSE))","v":""},{"$f":"VLOOKUP(AK545,C533:Q545,8,FALSE)","v":""},{"$f":"VLOOKUP(AK545,C533:Q545,9,FALSE)","v":""},{"$f":"VLOOKUP(AK545,C533:Q545,10,FALSE)","v":""},{"$f":"VLOOKUP(AK545,C533:Q545,11,FALSE)","v":""},{"$f":"VLOOKUP(AK545,C533:Q545,12,FALSE)","v":""},{"$f":"VLOOKUP(AK545,C533:Q545,13,FALSE)","v":""},{"$f":"VLOOKUP(AK545,C533:Q545,14,FALSE)","v":""},{"$f":"VLOOKUP(AK545,C533:Q545,15,FALSE)","v":""}]
[null,null,null,null,null,null,null,null,null,null,null,null,null,null,null,null,null,null,1,null,null,null,null,null,null,null,null,{"$f":"IF(MaxScore,N_MaxScore,\"\")","v":"Max Score"}]
[null,null,null,null,null,null,null,null,null,null,null,null,null,null,null,null,null,null,{"$f":"N_Heure","v":"Time"},{"$f":"N_Table","v":"Table"},{"$f":"N_Arbitre","v":"Referee"},{"$f":"N_Matches","v":"Matches"}]
[null,null,null,null,null,null,null,null,null,null,null,null,null,null,null,null,null,"#G1",null,null,null,{"$f":"IF(G533=\"\",\"\",G533)","v":"A"},null,"-",null,{"$f":"IF(G534=\"\",\"\",G534)","v":"B"},null,{"$f":"IF(MaxScore,MaxGoals(W548,Y548,MaxGoalsValue),IF(W548=\"\",\"\",W548))","v":0},{"$f":"IF(MaxScore,\"-\",IF(W548=\"\",\"\",\"-\"))","v":"-"},{"$f":"IF(MaxScore,MaxGoals(Y548,W548,MaxGoalsValue),IF(Y548=\"\",\"\",Y548))","v":0},{"$f":"IF(W548=\"\",\"\",IF(W548>Y548,V548,IF(W548=Y548,\"\",Z548)))","v":""},{"$f":"IF(W548=\"\",\"\",IF(W548=Y548,V548,\"\"))","v":""},{"$f":"IF(W548=\"\",\"\",IF(W548=Y548,Z548,\"\"))","v":""},{"$f":"IF(W548=\"\",\"\",IF(W548<Y548,V548,IF(W548=Y548,\"\",Z548)))","v":""},{"$f":"CONCATENATE(AE548,AH548)","v":""}]
[null,null,null,null,null,null,null,null,null,null,null,null,null,null,null,null,null,"#G1",null,null,null,{"$f":"IF(G535=\"\",\"\",G535)","v":"C"},null,"-",null,{"$f":"IF(G536=\"\",\"\",G536)","v":"D"},null,0,"-",0,"","","","",""]
[null,null,null,null,null,null,null,null,null,null,null,null,null,null,null,null,null,"#G1",null,null,null,{"$f":"IF(G537=\"\",\"\",G537)","v":"E"},null,"-",null,{"$f":"IF(G538=\"\",\"\",G538)","v":"F"},null,0,"-",0,"","","","",""]
[null,null,null,null,null,null,null,null,null,null,null,null,null,null,null,null,null,"#G1",null,null,null,{"$f":"IF(G539=\"\",\"\",G539)","v":"G"},null,"-",null,{"$f":"IF(G540=\"\",\"\",G540)","v":"H"},null,0,"-",0,"","","","",""]
[null,null,null,null,null,null,null,null,null,null,null,null,null,null,null,null,null,"#G1",null,null,null,{"$f":"IF(G541=\"\",\"\",G541)","v":"I"},null,"-",null,{"$f":"IF(G542=\"\",\"\",G542)","v":"J"},null,0,"-",0,"","","","",""]
[null,null,null,null,null,null,null,null,null,null,null,null,null,null,null,null,null,"#G1",null,null,null,{"$f":"IF(G543=\"\",\"\",G543)","v":"K"},null,"-",null,{"$f":"IF(G544=\"\",\"\",G544)","v":"L"},null,0,"-",0,"","","","",""]
[null,null,null,null,null,null,null,null,null,null,null,null,null,null,null,null,null,null,{"$f":"S546+1","v":2}]
[null,null,null,null,null,null,null,null,null,null,null,null,null,null,null,null,null,null,{"$f":"N_Heure","v":"Time"},{"$f":"N_Table","v":"Table"},{"$f":"N_Arbitre","v":"Referee"},{"$f":"N_Matches","v":"Matches"}]
[null,null,null,null,null,null,null,null,null,null,null,null,null,null,null,null,null,"#G2",null,null,null,{"$f":"V549","v":"C"},null,"-",null,{"$f":"V548","v":"A"},null,{"$f":"IF(MaxScore,MaxGoals(W556,Y556,MaxGoalsValue),IF(W556=\"\",\"\",W556))","v":0},{"$f":"IF(MaxScore,\"-\",IF(W556=\"\",\"\",\"-\"))","v":"-"},{"$f":"IF(MaxScore,MaxGoals(Y556,W556,MaxGoalsValue),IF(Y556=\"\",\"\",Y556))","v":0},{"$f":"IF(W556=\"\",\"\",IF(W556>Y556,V556,IF(W556=Y556,\"\",Z556)))","v":""},{"$f":"IF(W556=\"\",\"\",IF(W556=Y556,V556,\"\"))","v":""},{"$f":"IF(W556=\"\",\"\",IF(W556=Y556,Z556,\"\"))","v":""},{"$f":"IF(W556=\"\",\"\",IF(W556<Y556,V556,IF(W556=Y556,\"\",Z556)))","v":""},{"$f":"CONCATENATE(AE556,AH556)","v":""}]
[null,null,null,null,null,null,null,null,null,null,null,null,null,null,null,null,null,"#G2",null,null,null,{"$f":"Z548","v":"B"},null,"-",null,{"$f":"V550","v":"E"},null,0,"-",0,"","","","",""]
[null,null,null,null,null,null,null,null,null,null,null,null,null,null,null,null,null,"#G2",null,null,null,{"$f":"Z549","v":"D"},null,"-",null,{"$f":"V551","v":"G"},null,0,"-",0,"","","","",""]
[null,null,null,null,null,null,null,null,null,null,null,null,null,null,null,null,null,"#G2",null,null,null,{"$f":"Z550","v":"F"},null,"-",null,{"$f":"V552","v":"I"},null,0,"-",0,"","","","",""]
[null,null,null,null,null,null,null,null,null,null,null,null,null,null,null,null,null,"#G2",null,null,null,{"$f":"Z551","v":"H"},null,"-",null,{"$f":"V553","v":"K"},null,0,"-",0,"","","","",""]
[null,null,null,null,null,null,null,null,null,null,null,null,null,null,null,null,null,"#G2",null,null,null,{"$f":"Z552","v":"J"},null,"-",null,{"$f":"G545","v":"M"},null,0,"-",0,"","","","",""]
[null,null,null,null,null,null,null,null,null,null,null,null,null,null,null,null,null,null,{"$f":"S554+1","v":3}]
[null,null,null,null,null,null,null,null,null,null,null,null,null,null,null,null,null,null,{"$f":"N_Heure","v":"Time"},{"$f":"N_Table","v":"Table"},{"$f":"N_Arbitre","v":"Referee"},{"$f":"N_Matches","v":"Matches"}]
[null,null,null,null,null,null,null,null,null,null,null,null,null,null,null,null,null,"#G3",null,null,null,{"$f":"Z556","v":"A"},null,"-",null,{"$f":"Z557","v":"E"},null,{"$f":"IF(MaxScore,MaxGoals(W564,Y564,MaxGoalsValue),IF(W564=\"\",\"\",W564))","v":0},{"$f":"IF(MaxScore,\"-\",IF(W564=\"\",\"\",\"-\"))","v":"-"},{"$f":"IF(MaxScore,MaxGoals(Y564,W564,MaxGoalsValue),IF(Y564=\"\",\"\",Y564))","v":0},{"$f":"IF(W564=\"\",\"\",IF(W564>Y564,V564,IF(W564=Y564,\"\",Z564)))","v":""},{"$f":"IF(W564=\"\",\"\",IF(W564=Y564,V564,\"\"))","v":""},{"$f":"IF(W564=\"\",\"\",IF(W564=Y564,Z564,\"\"))","v":""},{"$f":"IF(W564=\"\",\"\",IF(W564<Y564,V564,IF(W564=Y564,\"\",Z564)))","v":""},{"$f":"CONCATENATE(AE564,AH564)","v":""}]
[null,null,null,null,null,null,null,null,null,null,null,null,null,null,null,null,null,"#G3",null,null,null,{"$f":"Z558","v":"G"},null,"-",null,{"$f":"V556","v":"C"},null,0,"-",0,"","","","",""]
[null,null,null,null,null,null,null,null,null,null,null,null,null,null,null,null,null,"#G3",null,null,null,{"$f":"Z559","v":"I"},null,"-",null,{"$f":"V557","v":"B"},null,0,"-",0,"","","","",""]
[null,null,null,null,null,null,null,null,null,null,null,null,null,null,null,null,null,"#G3",null,null,null,{"$f":"Z560","v":"K"},null,"-",null,{"$f":"V558","v":"D"},null,0,"-",0,"","","","",""]
[null,null,null,null,null,null,null,null,null,null,null,null,null,null,null,null,null,"#G3",null,null,null,{"$f":"Z561","v":"M"},null,"-",null,{"$f":"V559","v":"F"},null,0,"-",0,"","","","",""]
[null,null,null,null,null,null,null,null,null,null,null,null,null,null,null,null,null,"#G3",null,null,null,{"$f":"Z553","v":"L"},null,"-",null,{"$f":"+V561","v":"J"},null,0,"-",0,"","","","",""]
[null,null,null,null,null,null,null,null,null,null,null,null,null,null,null,null,null,null,{"$f":"S562+1","v":4}]
[null,null,null,null,null,null,null,null,null,null,null,null,null,null,null,null,null,null,{"$f":"N_Heure","v":"Time"},{"$f":"N_Table","v":"Table"},{"$f":"N_Arbitre","v":"Referee"},{"$f":"N_Matches","v":"Matches"}]
[null,null,null,null,null,null,null,null,null,null,null,null,null,null,null,null,null,"#G4",null,null,null,{"$f":"V565","v":"G"},null,"-",null,{"$f":"V564","v":"A"},null,{"$f":"IF(MaxScore,MaxGoals(W572,Y572,MaxGoalsValue),IF(W572=\"\",\"\",W572))","v":0},{"$f":"IF(MaxScore,\"-\",IF(W572=\"\",\"\",\"-\"))","v":"-"},{"$f":"IF(MaxScore,MaxGoals(Y572,W572,MaxGoalsValue),IF(Y572=\"\",\"\",Y572))","v":0},{"$f":"IF(W572=\"\",\"\",IF(W572>Y572,V572,IF(W572=Y572,\"\",Z572)))","v":""},{"$f":"IF(W572=\"\",\"\",IF(W572=Y572,V572,\"\"))","v":""},{"$f":"IF(W572=\"\",\"\",IF(W572=Y572,Z572,\"\"))","v":""},{"$f":"IF(W572=\"\",\"\",IF(W572<Y572,V572,IF(W572=Y572,\"\",Z572)))","v":""},{"$f":"CONCATENATE(AE572,AH572)","v":""}]
[null,null,null,null,null,null,null,null,null,null,null,null,null,null,null,null,null,"#G4",null,null,null,{"$f":"Z564","v":"E"},null,"-",null,{"$f":"V566","v":"I"},null,0,"-",0,"","","","",""]
[null,null,null,null,null,null,null,null,null,null,null,null,null,null,null,null,null,"#G4",null,null,null,{"$f":"Z565","v":"C"},null,"-",null,{"$f":"V567","v":"K"},null,0,"-",0,"","","","",""]
[null,null,null,null,null,null,null,null,null,null,null,null,null,null,null,null,null,"#G4",null,null,null,{"$f":"Z566","v":"B"},null,"-",null,{"$f":"V568","v":"M"},null,0,"-",0,"","","","",""]
[null,null,null,null,null,null,null,null,null,null,null,null,null,null,null,null,null,"#G4",null,null,null,{"$f":"Z568","v":"F"},null,"-",null,{"$f":"V569","v":"L"},null,0,"-",0,"","","","",""]
[null,null,null,null,null,null,null,null,null,null,null,null,null,null,null,null,null,"#G4",null,null,null,{"$f":"V560","v":"H"},null,"-",null,{"$f":"+Z569","v":"J"},null,0,"-",0,"","","","",""]
[null,null,null,null,null,null,null,null,null,null,null,null,null,null,null,null,null,null,{"$f":"S570+1","v":5}]
[null,null,null,null,null,null,null,null,null,null,null,null,null,null,null,null,null,null,{"$f":"N_Heure","v":"Time"},{"$f":"N_Table","v":"Table"},{"$f":"N_Arbitre","v":"Referee"},{"$f":"N_Matches","v":"Matches"}]
[null,null,null,null,null,null,null,null,null,null,null,null,null,null,null,null,null,"#G5",null,null,null,{"$f":"Z572","v":"A"},null,"-",null,{"$f":"Z573","v":"I"},null,{"$f":"IF(MaxScore,MaxGoals(W580,Y580,MaxGoalsValue),IF(W580=\"\",\"\",W580))","v":0},{"$f":"IF(MaxScore,\"-\",IF(W580=\"\",\"\",\"-\"))","v":"-"},{"$f":"IF(MaxScore,MaxGoals(Y580,W580,MaxGoalsValue),IF(Y580=\"\",\"\",Y580))","v":0},{"$f":"IF(W580=\"\",\"\",IF(W580>Y580,V580,IF(W580=Y580,\"\",Z580)))","v":""},{"$f":"IF(W580=\"\",\"\",IF(W580=Y580,V580,\"\"))","v":""},{"$f":"IF(W580=\"\",\"\",IF(W580=Y580,Z580,\"\"))","v":""},{"$f":"IF(W580=\"\",\"\",IF(W580<Y580,V580,IF(W580=Y580,\"\",Z580)))","v":""},{"$f":"CONCATENATE(AE580,AH580)","v":""}]
[null,null,null,null,null,null,null,null,null,null,null,null,null,null,null,null,null,"#G5",null,null,null,{"$f":"Z574","v":"K"},null,"-",null,{"$f":"V572","v":"G"},null,0,"-",0,"","","","",""]
[null,null,null,null,null,null,null,null,null,null,null,null,null,null,null,null,null,"#G5",null,null,null,{"$f":"Z575","v":"M"},null,"-",null,{"$f":"V573","v":"E"},null,0,"-",0,"","","","",""]
[null,null,null,null,null,null,null,null,null,null,null,null,null,null,null,null,null,"#G5",null,null,null,{"$f":"Z576","v":"L"},null,"-",null,{"$f":"V575","v":"B"},null,0,"-",0,"","","","",""]
[null,null,null,null,null,null,null,null,null,null,null,null,null,null,null,null,null,"#G5",null,null,null,{"$f":"Z577","v":"J"},null,"-",null,{"$f":"Z567","v":"D"},null,0,"-",0,"","","","",""]
[null,null,null,null,null,null,null,null,null,null,null,null,null,null,null,null,null,"#G5",null,null,null,{"$f":"+V577","v":"H"},null,"-",null,{"$f":"+V576","v":"F"},null,0,"-",0,"","","","",""]
[null,null,null,null,null,null,null,null,null,null,null,null,null,null,null,null,null,null,{"$f":"S578+1","v":6}]
[null,null,null,null,null,null,null,null,null,null,null,null,null,null,null,null,null,null,{"$f":"N_Heure","v":"Time"},{"$f":"N_Table","v":"Table"},{"$f":"N_Arbitre","v":"Referee"},{"$f":"N_Matches","v":"Matches"}]
[null,null,null,null,null,null,null,null,null,null,null,null,null,null,null,null,null,"#G6",null,null,null,{"$f":"V581","v":"K"},null,"-",null,{"$f":"V580","v":"A"},null,{"$f":"IF(MaxScore,MaxGoals(W588,Y588,MaxGoalsValue),IF(W588=\"\",\"\",W588))","v":0},{"$f":"IF(MaxScore,\"-\",IF(W588=\"\",\"\",\"-\"))","v":"-"},{"$f":"IF(MaxScore,MaxGoals(Y588,W588,MaxGoalsValue),IF(Y588=\"\",\"\",Y588))","v":0},{"$f":"IF(W588=\"\",\"\",IF(W588>Y588,V588,IF(W588=Y588,\"\",Z588)))","v":""},{"$f":"IF(W588=\"\",\"\",IF(W588=Y588,V588,\"\"))","v":""},{"$f":"IF(W588=\"\",\"\",IF(W588=Y588,Z588,\"\"))","v":""},{"$f":"IF(W588=\"\",\"\",IF(W588<Y588,V588,IF(W588=Y588,\"\",Z588)))","v":""},{"$f":"CONCATENATE(AE588,AH588)","v":""}]
[null,null,null,null,null,null,null,null,null,null,null,null,null,null,null,null,null,"#G6",null,null,null,{"$f":"Z580","v":"I"},null,"-",null,{"$f":"V582","v":"M"},null,0,"-",0,"","","","",""]
[null,null,null,null,null,null,null,null,null,null,null,null,null,null,null,null,null,"#G6",null,null,null,{"$f":"Z582","v":"E"},null,"-",null,{"$f":"V583","v":"L"},null,0,"-",0,"","","","",""]
[null,null,null,null,null,null,null,null,null,null,null,null,null,null,null,null,null,"#G6",null,null,null,{"$f":"V574","v":"C"},null,"-",null,{"$f":"V584","v":"J"},null,0,"-",0,"","","","",""]
[null,null,null,null,null,null,null,null,null,null,null,null,null,null,null,null,null,"#G6",null,null,null,{"$f":"Z583","v":"B"},null,"-",null,{"$f":"V585","v":"H"},null,0,"-",0,"","","","",""]
[null,null,null,null,null,null,null,null,null,null,null,null,null,null,null,null,null,"#G6",null,null,null,{"$f":"Z584","v":"D"},null,"-",null,{"$f":"+Z585","v":"F"},null,0,"-",0,"","","","",""]
[null,null,null,null,null,null,null,null,null,null,null,null,null,null,null,null,null,null,{"$f":"S586+1","v":7}]
[null,null,null,null,null,null,null,null,null,null,null,null,null,null,null,null,null,null,{"$f":"N_Heure","v":"Time"},{"$f":"N_Table","v":"Table"},{"$f":"N_Arbitre","v":"Referee"},{"$f":"N_Matches","v":"Matches"}]
[null,null,null,null,null,null,null,null,null,null,null,null,null,null,null,null,null,"#G7",null,null,null,{"$f":"Z588","v":"A"},null,"-",null,{"$f":"Z589","v":"M"},null,{"$f":"IF(MaxScore,MaxGoals(W596,Y596,MaxGoalsValue),IF(W596=\"\",\"\",W596))","v":0},{"$f":"IF(MaxScore,\"-\",IF(W596=\"\",\"\",\"-\"))","v":"-"},{"$f":"IF(MaxScore,MaxGoals(Y596,W596,MaxGoalsValue),IF(Y596=\"\",\"\",Y596))","v":0},{"$f":"IF(W596=\"\",\"\",IF(W596>Y596,V596,IF(W596=Y596,\"\",Z596)))","v":""},{"$f":"IF(W596=\"\",\"\",IF(W596=Y596,V596,\"\"))","v":""},{"$f":"IF(W596=\"\",\"\",IF(W596=Y596,Z596,\"\"))","v":""},{"$f":"IF(W596=\"\",\"\",IF(W596<Y596,V596,IF(W596=Y596,\"\",Z596)))","v":""},{"$f":"CONCATENATE(AE596,AH596)","v":""}]
[null,null,null,null,null,null,null,null,null,null,null,null,null,null,null,null,null,"#G7",null,null,null,{"$f":"Z590","v":"L"},null,"-",null,{"$f":"V589","v":"I"},null,0,"-",0,"","","","",""]
[null,null,null,null,null,null,null,null,null,null,null,null,null,null,null,null,null,"#G7",null,null,null,{"$f":"Z591","v":"J"},null,"-",null,{"$f":"Z581","v":"G"},null,0,"-",0,"","","","",""]
[null,null,null,null,null,null,null,null,null,null,null,null,null,null,null,null,null,"#G7",null,null,null,{"$f":"Z592","v":"H"},null,"-",null,{"$f":"V590","v":"E"},null,0,"-",0,"","","","",""]
[null,null,null,null,null,null,null,null,null,null,null,null,null,null,null,null,null,"#G7",null,null,null,{"$f":"Z593","v":"F"},null,"-",null,{"$f":"V591","v":"C"},null,0,"-",0,"","","","",""]
[null,null,null,null,null,null,null,null,null,null,null,null,null,null,null,null,null,"#G7",null,null,null,{"$f":"+V593","v":"D"},null,"-",null,{"$f":"+V592","v":"B"},null,0,"-",0,"","","","",""]
[null,null,null,null,null,null,null,null,null,null,null,null,null,null,null,null,null,null,{"$f":"S594+1","v":8}]
[null,null,null,null,null,null,null,null,null,null,null,null,null,null,null,null,null,null,{"$f":"N_Heure","v":"Time"},{"$f":"N_Table","v":"Table"},{"$f":"N_Arbitre","v":"Referee"},{"$f":"N_Matches","v":"Matches"}]
[null,null,null,null,null,null,null,null,null,null,null,null,null,null,null,null,null,"#G8",null,null,null,{"$f":"Z596","v":"M"},null,"-",null,{"$f":"V597","v":"L"},null,{"$f":"IF(MaxScore,MaxGoals(W604,Y604,MaxGoalsValue),IF(W604=\"\",\"\",W604))","v":0},{"$f":"IF(MaxScore,\"-\",IF(W604=\"\",\"\",\"-\"))","v":"-"},{"$f":"IF(MaxScore,MaxGoals(Y604,W604,MaxGoalsValue),IF(Y604=\"\",\"\",Y604))","v":0},{"$f":"IF(W604=\"\",\"\",IF(W604>Y604,V604,IF(W604=Y604,\"\",Z604)))","v":""},{"$f":"IF(W604=\"\",\"\",IF(W604=Y604,V604,\"\"))","v":""},{"$f":"IF(W604=\"\",\"\",IF(W604=Y604,Z604,\"\"))","v":""},{"$f":"IF(W604=\"\",\"\",IF(W604<Y604,V604,IF(W604=Y604,\"\",Z604)))","v":""},{"$f":"CONCATENATE(AE604,AH604)","v":""}]
[null,null,null,null,null,null,null,null,null,null,null,null,null,null,null,null,null,"#G8",null,null,null,{"$f":"V588","v":"K"},null,"-",null,{"$f":"V598","v":"J"},null,0,"-",0,"","","","",""]
[null,null,null,null,null,null,null,null,null,null,null,null,null,null,null,null,null,"#G8",null,null,null,{"$f":"Z597","v":"I"},null,"-",null,{"$f":"V599","v":"H"},null,0,"-",0,"","","","",""]
[null,null,null,null,null,null,null,null,null,null,null,null,null,null,null,null,null,"#G8",null,null,null,{"$f":"Z598","v":"G"},null,"-",null,{"$f":"V600","v":"F"},null,0,"-",0,"","","","",""]
[null,null,null,null,null,null,null,null,null,null,null,null,null,null,null,null,null,"#G8",null,null,null,{"$f":"Z599","v":"E"},null,"-",null,{"$f":"V601","v":"D"},null,0,"-",0,"","","","",""]
[null,null,null,null,null,null,null,null,null,null,null,null,null,null,null,null,null,"#G8",null,null,null,{"$f":"Z600","v":"C"},null,"-",null,{"$f":"+Z601","v":"B"},null,0,"-",0,"","","","",""]
[null,null,null,null,null,null,null,null,null,null,null,null,null,null,null,null,null,null,{"$f":"S602+1","v":9}]
[null,null,null,null,null,null,null,null,null,null,null,null,null,null,null,null,null,null,{"$f":"N_Heure","v":"Time"},{"$f":"N_Table","v":"Table"},{"$f":"N_Arbitre","v":"Referee"},{"$f":"N_Matches","v":"Matches"}]
[null,null,null,null,null,null,null,null,null,null,null,null,null,null,null,null,null,"#G9",null,null,null,{"$f":"V596","v":"A"},null,"-",null,{"$f":"Z604","v":"L"},null,{"$f":"IF(MaxScore,MaxGoals(W612,Y612,MaxGoalsValue),IF(W612=\"\",\"\",W612))","v":0},{"$f":"IF(MaxScore,\"-\",IF(W612=\"\",\"\",\"-\"))","v":"-"},{"$f":"IF(MaxScore,MaxGoals(Y612,W612,MaxGoalsValue),IF(Y612=\"\",\"\",Y612))","v":0},{"$f":"IF(W612=\"\",\"\",IF(W612>Y612,V612,IF(W612=Y612,\"\",Z612)))","v":""},{"$f":"IF(W612=\"\",\"\",IF(W612=Y612,V612,\"\"))","v":""},{"$f":"IF(W612=\"\",\"\",IF(W612=Y612,Z612,\"\"))","v":""},{"$f":"IF(W612=\"\",\"\",IF(W612<Y612,V612,IF(W612=Y612,\"\",Z612)))","v":""},{"$f":"CONCATENATE(AE612,AH612)","v":""}]
[null,null,null,null,null,null,null,null,null,null,null,null,null,null,null,null,null,"#G9",null,null,null,{"$f":"Z606","v":"H"},null,"-",null,{"$f":"V604","v":"M"},null,0,"-",0,"","","","",""]
[null,null,null,null,null,null,null,null,null,null,null,null,null,null,null,null,null,"#G9",null,null,null,{"$f":"Z607","v":"F"},null,"-",null,{"$f":"V605","v":"K"},null,0,"-",0,"","","","",""]
[null,null,null,null,null,null,null,null,null,null,null,null,null,null,null,null,null,"#G9",null,null,null,{"$f":"Z608","v":"D"},null,"-",null,{"$f":"V606","v":"I"},null,0,"-",0,"","","","",""]
[null,null,null,null,null,null,null,null,null,null,null,null,null,null,null,null,null,"#G9",null,null,null,{"$f":"Z609","v":"B"},null,"-",null,{"$f":"V607","v":"G"},null,0,"-",0,"","","","",""]
[null,null,null,null,null,null,null,null,null,null,null,null,null,null,null,null,null,"#G9",null,null,null,{"$f":"+V609","v":"C"},null,"-",null,{"$f":"+V608","v":"E"},null,0,"-",0,"","","","",""]
[null,null,null,null,null,null,null,null,null,null,null,null,null,null,null,null,null,null,{"$f":"S610+1","v":10}]
[null,null,null,null,null,null,null,null,null,null,null,null,null,null,null,null,null,null,{"$f":"N_Heure","v":"Time"},{"$f":"N_Table","v":"Table"},{"$f":"N_Arbitre","v":"Referee"},{"$f":"N_Matches","v":"Matches"}]
[null,null,null,null,null,null,null,null,null,null,null,null,null,null,null,null,null,"#G10",null,null,null,{"$f":"Z605","v":"J"},null,"-",null,{"$f":"V612","v":"A"},null,{"$f":"IF(MaxScore,MaxGoals(W620,Y620,MaxGoalsValue),IF(W620=\"\",\"\",W620))","v":0},{"$f":"IF(MaxScore,\"-\",IF(W620=\"\",\"\",\"-\"))","v":"-"},{"$f":"IF(MaxScore,MaxGoals(Y620,W620,MaxGoalsValue),IF(Y620=\"\",\"\",Y620))","v":0},{"$f":"IF(W620=\"\",\"\",IF(W620>Y620,V620,IF(W620=Y620,\"\",Z620)))","v":""},{"$f":"IF(W620=\"\",\"\",IF(W620=Y620,V620,\"\"))","v":""},{"$f":"IF(W620=\"\",\"\",IF(W620=Y620,Z620,\"\"))","v":""},{"$f":"IF(W620=\"\",\"\",IF(W620<Y620,V620,IF(W620=Y620,\"\",Z620)))","v":""},{"$f":"CONCATENATE(AE620,AH620)","v":""}]
[null,null,null,null,null,null,null,null,null,null,null,null,null,null,null,null,null,"#G10",null,null,null,{"$f":"Z612","v":"L"},null,"-",null,{"$f":"V613","v":"H"},null,0,"-",0,"","","","",""]
[null,null,null,null,null,null,null,null,null,null,null,null,null,null,null,null,null,"#G10",null,null,null,{"$f":"Z613","v":"M"},null,"-",null,{"$f":"V615","v":"D"},null,0,"-",0,"","","","",""]
[null,null,null,null,null,null,null,null,null,null,null,null,null,null,null,null,null,"#G10",null,null,null,{"$f":"Z614","v":"K"},null,"-",null,{"$f":"V616","v":"B"},null,0,"-",0,"","","","",""]
[null,null,null,null,null,null,null,null,null,null,null,null,null,null,null,null,null,"#G10",null,null,null,{"$f":"Z615","v":"I"},null,"-",null,{"$f":"V617","v":"C"},null,0,"-",0,"","","","",""]
[null,null,null,null,null,null,null,null,null,null,null,null,null,null,null,null,null,"#G10",null,null,null,{"$f":"Z616","v":"G"},null,"-",null,{"$f":"+Z617","v":"E"},null,0,"-",0,"","","","",""]
[null,null,null,null,null,null,null,null,null,null,null,null,null,null,null,null,null,null,{"$f":"S618+1","v":11}]
[null,null,null,null,null,null,null,null,null,null,null,null,null,null,null,null,null,null,{"$f":"N_Heure","v":"Time"},{"$f":"N_Table","v":"Table"},{"$f":"N_Arbitre","v":"Referee"},{"$f":"N_Matches","v":"Matches"}]
[null,null,null,null,null,null,null,null,null,null,null,null,null,null,null,null,null,"#G11",null,null,null,{"$f":"Z620","v":"A"},null,"-",null,{"$f":"Z621","v":"H"},null,{"$f":"IF(MaxScore,MaxGoals(W628,Y628,MaxGoalsValue),IF(W628=\"\",\"\",W628))","v":0},{"$f":"IF(MaxScore,\"-\",IF(W628=\"\",\"\",\"-\"))","v":"-"},{"$f":"IF(MaxScore,MaxGoals(Y628,W628,MaxGoalsValue),IF(Y628=\"\",\"\",Y628))","v":0},{"$f":"IF(W628=\"\",\"\",IF(W628>Y628,V628,IF(W628=Y628,\"\",Z628)))","v":""},{"$f":"IF(W628=\"\",\"\",IF(W628=Y628,V628,\"\"))","v":""},{"$f":"IF(W628=\"\",\"\",IF(W628=Y628,Z628,\"\"))","v":""},{"$f":"IF(W628=\"\",\"\",IF(W628<Y628,V628,IF(W628=Y628,\"\",Z628)))","v":""},{"$f":"CONCATENATE(AE628,AH628)","v":""}]
[null,null,null,null,null,null,null,null,null,null,null,null,null,null,null,null,null,"#G11",null,null,null,{"$f":"V614","v":"F"},null,"-",null,{"$f":"V620","v":"J"},null,0,"-",0,"","","","",""]
[null,null,null,null,null,null,null,null,null,null,null,null,null,null,null,null,null,"#G11",null,null,null,{"$f":"Z622","v":"D"},null,"-",null,{"$f":"V621","v":"L"},null,0,"-",0,"","","","",""]
[null,null,null,null,null,null,null,null,null,null,null,null,null,null,null,null,null,"#G11",null,null,null,{"$f":"Z624","v":"C"},null,"-",null,{"$f":"V622","v":"M"},null,0,"-",0,"","","","",""]
[null,null,null,null,null,null,null,null,null,null,null,null,null,null,null,null,null,"#G11",null,null,null,{"$f":"Z625","v":"E"},null,"-",null,{"$f":"V623","v":"K"},null,0,"-",0,"","","","",""]
[null,null,null,null,null,null,null,null,null,null,null,null,null,null,null,null,null,"#G11",null,null,null,{"$f":"+V625","v":"G"},null,"-",null,{"$f":"+V624","v":"I"},null,0,"-",0,"","","","",""]
[null,null,null,null,null,null,null,null,null,null,null,null,null,null,null,null,null,null,{"$f":"S626+1","v":12}]
[null,null,null,null,null,null,null,null,null,null,null,null,null,null,null,null,null,null,{"$f":"N_Heure","v":"Time"},{"$f":"N_Table","v":"Table"},{"$f":"N_Arbitre","v":"Referee"},{"$f":"N_Matches","v":"Matches"}]
[null,null,null,null,null,null,null,null,null,null,null,null,null,null,null,null,null,"#G12",null,null,null,{"$f":"V629","v":"F"},null,"-",null,{"$f":"V628","v":"A"},null,{"$f":"IF(MaxScore,MaxGoals(W636,Y636,MaxGoalsValue),IF(W636=\"\",\"\",W636))","v":0},{"$f":"IF(MaxScore,\"-\",IF(W636=\"\",\"\",\"-\"))","v":"-"},{"$f":"IF(MaxScore,MaxGoals(Y636,W636,MaxGoalsValue),IF(Y636=\"\",\"\",Y636))","v":0},{"$f":"IF(W636=\"\",\"\",IF(W636>Y636,V636,IF(W636=Y636,\"\",Z636)))","v":""},{"$f":"IF(W636=\"\",\"\",IF(W636=Y636,V636,\"\"))","v":""},{"$f":"IF(W636=\"\",\"\",IF(W636=Y636,Z636,\"\"))","v":""},{"$f":"IF(W636=\"\",\"\",IF(W636<Y636,V636,IF(W636=Y636,\"\",Z636)))","v":""},{"$f":"CONCATENATE(AE636,AH636)","v":""}]
[null,null,null,null,null,null,null,null,null,null,null,null,null,null,null,null,null,"#G12",null,null,null,{"$f":"Z628","v":"H"},null,"-",null,{"$f":"V630","v":"D"},null,0,"-",0,"","","","",""]
[null,null,null,null,null,null,null,null,null,null,null,null,null,null,null,null,null,"#G12",null,null,null,{"$f":"Z629","v":"J"},null,"-",null,{"$f":"Z623","v":"B"},null,0,"-",0,"","","","",""]
[null,null,null,null,null,null,null,null,null,null,null,null,null,null,null,null,null,"#G12",null,null,null,{"$f":"Z630","v":"L"},null,"-",null,{"$f":"V631","v":"C"},null,0,"-",0,"","","","",""]
[null,null,null,null,null,null,null,null,null,null,null,null,null,null,null,null,null,"#G12",null,null,null,{"$f":"Z631","v":"M"},null,"-",null,{"$f":"V633","v":"G"},null,0,"-",0,"","","","",""]
[null,null,null,null,null,null,null,null,null,null,null,null,null,null,null,null,null,"#G12",null,null,null,{"$f":"Z632","v":"K"},null,"-",null,{"$f":"+Z633","v":"I"},null,0,"-",0,"","","","",""]
[null,null,null,null,null,null,null,null,null,null,null,null,null,null,null,null,null,null,{"$f":"S634+1","v":13}]
[null,null,null,null,null,null,null,null,null,null,null,null,null,null,null,null,null,null,{"$f":"N_Heure","v":"Time"},{"$f":"N_Table","v":"Table"},{"$f":"N_Arbitre","v":"Referee"},{"$f":"N_Matches","v":"Matches"}]
[null,null,null,null,null,null,null,null,null,null,null,null,null,null,null,null,null,"#G13",null,null,null,{"$f":"Z636","v":"A"},null,"-",null,{"$f":"Z637","v":"D"},null,{"$f":"IF(MaxScore,MaxGoals(W644,Y644,MaxGoalsValue),IF(W644=\"\",\"\",W644))","v":0},{"$f":"IF(MaxScore,\"-\",IF(W644=\"\",\"\",\"-\"))","v":"-"},{"$f":"IF(MaxScore,MaxGoals(Y644,W644,MaxGoalsValue),IF(Y644=\"\",\"\",Y644))","v":0},{"$f":"IF(W644=\"\",\"\",IF(W644>Y644,V644,IF(W644=Y644,\"\",Z644)))","v":""},{"$f":"IF(W644=\"\",\"\",IF(W644=Y644,V644,\"\"))","v":""},{"$f":"IF(W644=\"\",\"\",IF(W644=Y644,Z644,\"\"))","v":""},{"$f":"IF(W644=\"\",\"\",IF(W644<Y644,V644,IF(W644=Y644,\"\",Z644)))","v":""},{"$f":"CONCATENATE(AE644,AH644)","v":""}]
[null,null,null,null,null,null,null,null,null,null,null,null,null,null,null,null,null,"#G13",null,null,null,{"$f":"Z638","v":"B"},null,"-",null,{"$f":"V636","v":"F"},null,0,"-",0,"","","","",""]
[null,null,null,null,null,null,null,null,null,null,null,null,null,null,null,null,null,"#G13",null,null,null,{"$f":"Z639","v":"C"},null,"-",null,{"$f":"V637","v":"H"},null,0,"-",0,"","","","",""]
[null,null,null,null,null,null,null,null,null,null,null,null,null,null,null,null,null,"#G13",null,null,null,{"$f":"V632","v":"E"},null,"-",null,{"$f":"V638","v":"J"},null,0,"-",0,"","","","",""]
[null,null,null,null,null,null,null,null,null,null,null,null,null,null,null,null,null,"#G13",null,null,null,{"$f":"Z640","v":"G"},null,"-",null,{"$f":"V639","v":"L"},null,0,"-",0,"","","","",""]
[null,null,null,null,null,null,null,null,null,null,null,null,null,null,null,null,null,"#G13",null,null,null,{"$f":"+V641","v":"K"},null,"-",null,{"$f":"+V640","v":"M"},null,0,"-",0,"","","","",""]
[]
[null,{"$f":"N_Group_14","v":"Group of 14"},null,null,null,null,null,null,null,null,null,null,null,null,null,null,null,null,null,null,null,null,null,null,null,null,null,null,null,null,null,null,null,null,null,null,null,null,{"$f":"B651","v":"Group of 14"}]
[]
[null,{"$f":"N_Tirage","v":"Draw"},"Cla.","Cla1","Part","Cla2",{"$f":"N_Joueurs","v":"Players"},{"$f":"N_RankPoints","v":"Rk Pt."},{"$f":"N_Diff_Part","v":"Part-Diff"},"Pts","J","G","N","P","BP","BC","Diff",null,null,null,null,null,null,null,null,null,null,null,null,null,{"$f":"N_G","v":"W"},{"$f":"N_N","v":"D"},{"$f":"N_N","v":"D"},{"$f":"N_P","v":"L"},"CONCAT","Ref Group",{"$f":"IF(COUNTA(W670:W784)=0,\"\",\"OK\")","v":""},null,null,{"$f":"N_Cla.","v":"Rk"},{"$f":"N_Joueurs","v":"Players"},{"$f":"N_Pts","v":"Pts"},{"$f":"N_J","v":"Pld"},{"$f":"N_G","v":"W"},{"$f":"N_N","v":"D"},{"$f":"N_P","v":"L"},{"$f":"N_BP","v":"F"},{"$f":"N_BC","v":"A"},{"$f":"N_Diff.","v":"SO"}]
[null,1,{"$f":"IF(AK653=\"\",\"\",RANK(F654,F654:F667)*1000+ROW())","v":""},{"$f":"IF(L654=\"\",\"\",CritClassInd1_Points*J654+CritClassInd1_Matches*L654+CritClassInd1_Attaque*O654+CritClassInd1_DiffButs*Q654)","v":""},{"$f":"IF(L654=\"\",\"\",Nb_Diff_Part(D654,D654:D667,G654,G654:G667,AI670:AI784)*CritClassInd_DiffPart+Nb_Goal_Part(D654,D654:D667,G654,G654:G667,V670:Z784)*CritClassInd_GoalPart+Nb_Score_Part(D654,D654:D667,G654,G654:G667,V670:Z784)*CritClassInd_ScorePart)","v":""},{"$f":"IF(L654=\"\",\"\",D654+E654+CritClassInd2_Points*J654+CritClassInd2_Matches*L654+CritClassInd2_Attaque*O654+CritClassInd2_DiffButs*Q654+CritClassInd_Ranking*H654+I654)","v":""},"A",{"$f":"GMFTRANKINGPOINTS(G654,Particular_Category)","v":0},null,{"$f":"IF(AK653=\"\",\"\",(L654*Points_Victoire)+M654*Points_Null)","v":""},{"$f":"IF(L654=\"\",\"\",SUM(L654:N654))","v":""},{"$f":"IF(AK653=\"\",\"\",COUNTIF(AE670:AE784,G654))","v":""},{"$f":"IF(AK653=\"\",\"\",COUNTIF(AF670:AG784,G654))","v":""},{"$f":"IF(AK653=\"\",\"\",COUNTIF(AH670:AH784,G654))","v":""},{"$f":"IF(AK653=\"\",\"\",SUMIF(V670:V784,G654,AB670:AB784)+SUMIF(Z670:Z784,G654,AD670:AD784))","v":""},{"$f":"IF(AK653=\"\",\"\",SUMIF(V670:V784,G654,AD670:AD784)+SUMIF(Z670:Z784,G654,AB670:AB784))","v":""},{"$f":"IF(AK653=\"\",\"\",O654-P654)","v":""},null,null,null,null,null,null,null,null,null,null,null,null,null,null,null,null,null,null,null,{"$f":"IF(AK653=\"\",\"\",SMALL(C654:C667,1))","v":""},null,null,{"$f":"IF(AK653=\"\",\"\",INT(AK654/1000))","v":""},{"$f":"IF(AK653=\"\",\"\",VLOOKUP(AK654,C654:Q667,5,FALSE))","v":""},{"$f":"VLOOKUP(AK654,C654:Q667,8,FALSE)","v":""},{"$f":"VLOOKUP(AK654,C654:Q667,9,FALSE)","v":""},{"$f":"VLOOKUP(AK654,C654:Q667,10,FALSE)","v":""},{"$f":"VLOOKUP(AK654,C654:Q667,11,FALSE)","v":""},{"$f":"VLOOKUP(AK654,C654:Q667,12,FALSE)","v":""},{"$f":"VLOOKUP(AK654,C654:Q667,13,FALSE)","v":""},{"$f":"VLOOKUP(AK654,C654:Q667,14,FALSE)","v":""},{"$f":"VLOOKUP(AK654,C654:Q667,15,FALSE)","v":""}]
[null,2,{"$f":"IF(AK653=\"\",\"\",RANK(F655,F654:F667)*1000+ROW())","v":""},{"$f":"IF(L655=\"\",\"\",CritClassInd1_Points*J655+CritClassInd1_Matches*L655+CritClassInd1_Attaque*O655+CritClassInd1_DiffButs*Q655)","v":""},{"$f":"IF(L655=\"\",\"\",Nb_Diff_Part(D655,D654:D667,G655,G654:G667,AI670:AI784)*CritClassInd_DiffPart+Nb_Goal_Part(D655,D654:D667,G655,G654:G667,V670:Z784)*CritClassInd_GoalPart+Nb_Score_Part(D655,D654:D667,G655,G654:G667,V670:Z784)*CritClassInd_ScorePart)","v":""},{"$f":"IF(L655=\"\",\"\",D655+E655+CritClassInd2_Points*J655+CritClassInd2_Matches*L655+CritClassInd2_Attaque*O655+CritClassInd2_DiffButs*Q655+CritClassInd_Ranking*H655+I655)","v":""},"B",0,null,{"$f":"IF(AK653=\"\",\"\",(L655*Points_Victoire)+M655*Points_Null)","v":""},"",{"$f":"IF(AK653=\"\",\"\",COUNTIF(AE670:AE784,G655))","v":""},{"$f":"IF(AK653=\"\",\"\",COUNTIF(AF670:AG784,G655))","v":""},{"$f":"IF(AK653=\"\",\"\",COUNTIF(AH670:AH784,G655))","v":""},{"$f":"IF(AK653=\"\",\"\",SUMIF(V670:V784,G655,AB670:AB784)+SUMIF(Z670:Z784,G655,AD670:AD784))","v":""},{"$f":"IF(AK653=\"\",\"\",SUMIF(V670:V784,G655,AD670:AD784)+SUMIF(Z670:Z784,G655,AB670:AB784))","v":""},{"$f":"IF(AK653=\"\",\"\",O655-P655)","v":""},null,null,null,null,null,null,null,null,null,null,null,null,null,null,null,null,null,null,null,{"$f":"IF(AK653=\"\",\"\",SMALL(C654:C667,2))","v":""},null,null,{"$f":"IF(AK653=\"\",\"\",INT(AK655/1000))","v":""},{"$f":"IF(AK653=\"\",\"\",VLOOKUP(AK655,C654:Q667,5,FALSE))","v":""},{"$f":"VLOOKUP(AK655,C654:Q667,8,FALSE)","v":""},{"$f":"VLOOKUP(AK655,C654:Q667,9,FALSE)","v":""},{"$f":"VLOOKUP(AK655,C654:Q667,10,FALSE)","v":""},{"$f":"VLOOKUP(AK655,C654:Q667,11,FALSE)","v":""},{"$f":"VLOOKUP(AK655,C654:Q667,12,FALSE)","v":""},{"$f":"VLOOKUP(AK655,C654:Q667,13,FALSE)","v":""},{"$f":"VLOOKUP(AK655,C654:Q667,14,FALSE)","v":""},{"$f":"VLOOKUP(AK655,C654:Q667,15,FALSE)","v":""}]
[null,3,{"$f":"IF(AK653=\"\",\"\",RANK(F656,F654:F667)*1000+ROW())","v":""},"",{"$f":"IF(L656=\"\",\"\",Nb_Diff_Part(D656,D654:D667,G656,G654:G667,AI670:AI784)*CritClassInd_DiffPart+Nb_Goal_Part(D656,D654:D667,G656,G654:G667,V670:Z784)*CritClassInd_GoalPart+Nb_Score_Part(D656,D654:D667,G656,G654:G667,V670:Z784)*CritClassInd_ScorePart)","v":""},"","C",0,null,{"$f":"IF(AK653=\"\",\"\",(L656*Points_Victoire)+M656*Points_Null)","v":""},"",{"$f":"IF(AK653=\"\",\"\",COUNTIF(AE670:AE784,G656))","v":""},{"$f":"IF(AK653=\"\",\"\",COUNTIF(AF670:AG784,G656))","v":""},{"$f":"IF(AK653=\"\",\"\",COUNTIF(AH670:AH784,G656))","v":""},{"$f":"IF(AK653=\"\",\"\",SUMIF(V670:V784,G656,AB670:AB784)+SUMIF(Z670:Z784,G656,AD670:AD784))","v":""},{"$f":"IF(AK653=\"\",\"\",SUMIF(V670:V784,G656,AD670:AD784)+SUMIF(Z670:Z784,G656,AB670:AB784))","v":""},{"$f":"IF(AK653=\"\",\"\",O656-P656)","v":""},null,null,null,null,null,null,null,null,null,null,null,null,null,null,null,null,null,null,null,{"$f":"IF(AK653=\"\",\"\",SMALL(C654:C667,3))","v":""},null,null,{"$f":"IF(AK653=\"\",\"\",INT(AK656/1000))","v":""},{"$f":"IF(AK653=\"\",\"\",VLOOKUP(AK656,C654:Q667,5,FALSE))","v":""},{"$f":"VLOOKUP(AK656,C654:Q667,8,FALSE)","v":""},{"$f":"VLOOKUP(AK656,C654:Q667,9,FALSE)","v":""},{"$f":"VLOOKUP(AK656,C654:Q667,10,FALSE)","v":""},{"$f":"VLOOKUP(AK656,C654:Q667,11,FALSE)","v":""},{"$f":"VLOOKUP(AK656,C654:Q667,12,FALSE)","v":""},{"$f":"VLOOKUP(AK656,C654:Q667,13,FALSE)","v":""},{"$f":"VLOOKUP(AK656,C654:Q667,14,FALSE)","v":""},{"$f":"VLOOKUP(AK656,C654:Q667,15,FALSE)","v":""}]
[null,4,{"$f":"IF(AK653=\"\",\"\",RANK(F657,F654:F667)*1000+ROW())","v":""},"",{"$f":"IF(L657=\"\",\"\",Nb_Diff_Part(D657,D654:D667,G657,G654:G667,AI670:AI784)*CritClassInd_DiffPart+Nb_Goal_Part(D657,D654:D667,G657,G654:G667,V670:Z784)*CritClassInd_GoalPart+Nb_Score_Part(D657,D654:D667,G657,G654:G667,V670:Z784)*CritClassInd_ScorePart)","v":""},"","D",0,null,{"$f":"IF(AK653=\"\",\"\",(L657*Points_Victoire)+M657*Points_Null)","v":""},"",{"$f":"IF(AK653=\"\",\"\",COUNTIF(AE670:AE784,G657))","v":""},{"$f":"IF(AK653=\"\",\"\",COUNTIF(AF670:AG784,G657))","v":""},{"$f":"IF(AK653=\"\",\"\",COUNTIF(AH670:AH784,G657))","v":""},{"$f":"IF(AK653=\"\",\"\",SUMIF(V670:V784,G657,AB670:AB784)+SUMIF(Z670:Z784,G657,AD670:AD784))","v":""},{"$f":"IF(AK653=\"\",\"\",SUMIF(V670:V784,G657,AD670:AD784)+SUMIF(Z670:Z784,G657,AB670:AB784))","v":""},{"$f":"IF(AK653=\"\",\"\",O657-P657)","v":""},null,null,null,null,null,null,null,null,null,null,null,null,null,null,null,null,null,null,null,{"$f":"IF(AK653=\"\",\"\",SMALL(C654:C667,4))","v":""},null,null,{"$f":"IF(AK653=\"\",\"\",INT(AK657/1000))","v":""},{"$f":"IF(AK653=\"\",\"\",VLOOKUP(AK657,C654:Q667,5,FALSE))","v":""},{"$f":"VLOOKUP(AK657,C654:Q667,8,FALSE)","v":""},{"$f":"VLOOKUP(AK657,C654:Q667,9,FALSE)","v":""},{"$f":"VLOOKUP(AK657,C654:Q667,10,FALSE)","v":""},{"$f":"VLOOKUP(AK657,C654:Q667,11,FALSE)","v":""},{"$f":"VLOOKUP(AK657,C654:Q667,12,FALSE)","v":""},{"$f":"VLOOKUP(AK657,C654:Q667,13,FALSE)","v":""},{"$f":"VLOOKUP(AK657,C654:Q667,14,FALSE)","v":""},{"$f":"VLOOKUP(AK657,C654:Q667,15,FALSE)","v":""}]
[null,5,{"$f":"IF(AK653=\"\",\"\",RANK(F658,F654:F667)*1000+ROW())","v":""},"",{"$f":"IF(L658=\"\",\"\",Nb_Diff_Part(D658,D654:D667,G658,G654:G667,AI670:AI784)*CritClassInd_DiffPart+Nb_Goal_Part(D658,D654:D667,G658,G654:G667,V670:Z784)*CritClassInd_GoalPart+Nb_Score_Part(D658,D654:D667,G658,G654:G667,V670:Z784)*CritClassInd_ScorePart)","v":""},"","E",0,null,{"$f":"IF(AK653=\"\",\"\",(L658*Points_Victoire)+M658*Points_Null)","v":""},"",{"$f":"IF(AK653=\"\",\"\",COUNTIF(AE670:AE784,G658))","v":""},{"$f":"IF(AK653=\"\",\"\",COUNTIF(AF670:AG784,G658))","v":""},{"$f":"IF(AK653=\"\",\"\",COUNTIF(AH670:AH784,G658))","v":""},{"$f":"IF(AK653=\"\",\"\",SUMIF(V670:V784,G658,AB670:AB784)+SUMIF(Z670:Z784,G658,AD670:AD784))","v":""},{"$f":"IF(AK653=\"\",\"\",SUMIF(V670:V784,G658,AD670:AD784)+SUMIF(Z670:Z784,G658,AB670:AB784))","v":""},{"$f":"IF(AK653=\"\",\"\",O658-P658)","v":""},null,null,null,null,null,null,null,null,null,null,null,null,null,null,null,null,null,null,null,{"$f":"IF(AK653=\"\",\"\",SMALL(C654:C667,5))","v":""},null,null,{"$f":"IF(AK653=\"\",\"\",INT(AK658/1000))","v":""},{"$f":"IF(AK653=\"\",\"\",VLOOKUP(AK658,C654:Q667,5,FALSE))","v":""},{"$f":"VLOOKUP(AK658,C654:Q667,8,FALSE)","v":""},{"$f":"VLOOKUP(AK658,C654:Q667,9,FALSE)","v":""},{"$f":"VLOOKUP(AK658,C654:Q667,10,FALSE)","v":""},{"$f":"VLOOKUP(AK658,C654:Q667,11,FALSE)","v":""},{"$f":"VLOOKUP(AK658,C654:Q667,12,FALSE)","v":""},{"$f":"VLOOKUP(AK658,C654:Q667,13,FALSE)","v":""},{"$f":"VLOOKUP(AK658,C654:Q667,14,FALSE)","v":""},{"$f":"VLOOKUP(AK658,C654:Q667,15,FALSE)","v":""}]
[null,6,{"$f":"IF(AK653=\"\",\"\",RANK(F659,F654:F667)*1000+ROW())","v":""},"",{"$f":"IF(L659=\"\",\"\",Nb_Diff_Part(D659,D654:D667,G659,G654:G667,AI670:AI784)*CritClassInd_DiffPart+Nb_Goal_Part(D659,D654:D667,G659,G654:G667,V670:Z784)*CritClassInd_GoalPart+Nb_Score_Part(D659,D654:D667,G659,G654:G667,V670:Z784)*CritClassInd_ScorePart)","v":""},"","F",0,null,{"$f":"IF(AK653=\"\",\"\",(L659*Points_Victoire)+M659*Points_Null)","v":""},"",{"$f":"IF(AK653=\"\",\"\",COUNTIF(AE670:AE784,G659))","v":""},{"$f":"IF(AK653=\"\",\"\",COUNTIF(AF670:AG784,G659))","v":""},{"$f":"IF(AK653=\"\",\"\",COUNTIF(AH670:AH784,G659))","v":""},{"$f":"IF(AK653=\"\",\"\",SUMIF(V670:V784,G659,AB670:AB784)+SUMIF(Z670:Z784,G659,AD670:AD784))","v":""},{"$f":"IF(AK653=\"\",\"\",SUMIF(V670:V784,G659,AD670:AD784)+SUMIF(Z670:Z784,G659,AB670:AB784))","v":""},{"$f":"IF(AK653=\"\",\"\",O659-P659)","v":""},null,null,null,null,null,null,null,null,null,null,null,null,null,null,null,null,null,null,null,{"$f":"IF(AK653=\"\",\"\",SMALL(C654:C667,6))","v":""},null,null,{"$f":"IF(AK653=\"\",\"\",INT(AK659/1000))","v":""},{"$f":"IF(AK653=\"\",\"\",VLOOKUP(AK659,C654:Q667,5,FALSE))","v":""},{"$f":"VLOOKUP(AK659,C654:Q667,8,FALSE)","v":""},{"$f":"VLOOKUP(AK659,C654:Q667,9,FALSE)","v":""},{"$f":"VLOOKUP(AK659,C654:Q667,10,FALSE)","v":""},{"$f":"VLOOKUP(AK659,C654:Q667,11,FALSE)","v":""},{"$f":"VLOOKUP(AK659,C654:Q667,12,FALSE)","v":""},{"$f":"VLOOKUP(AK659,C654:Q667,13,FALSE)","v":""},{"$f":"VLOOKUP(AK659,C654:Q667,14,FALSE)","v":""},{"$f":"VLOOKUP(AK659,C654:Q667,15,FALSE)","v":""}]
[null,7,{"$f":"IF(AK653=\"\",\"\",RANK(F660,F654:F667)*1000+ROW())","v":""},"",{"$f":"IF(L660=\"\",\"\",Nb_Diff_Part(D660,D654:D667,G660,G654:G667,AI670:AI784)*CritClassInd_DiffPart+Nb_Goal_Part(D660,D654:D667,G660,G654:G667,V670:Z784)*CritClassInd_GoalPart+Nb_Score_Part(D660,D654:D667,G660,G654:G667,V670:Z784)*CritClassInd_ScorePart)","v":""},"","G",0,null,{"$f":"IF(AK653=\"\",\"\",(L660*Points_Victoire)+M660*Points_Null)","v":""},"",{"$f":"IF(AK653=\"\",\"\",COUNTIF(AE670:AE784,G660))","v":""},{"$f":"IF(AK653=\"\",\"\",COUNTIF(AF670:AG784,G660))","v":""},{"$f":"IF(AK653=\"\",\"\",COUNTIF(AH670:AH784,G660))","v":""},{"$f":"IF(AK653=\"\",\"\",SUMIF(V670:V784,G660,AB670:AB784)+SUMIF(Z670:Z784,G660,AD670:AD784))","v":""},{"$f":"IF(AK653=\"\",\"\",SUMIF(V670:V784,G660,AD670:AD784)+SUMIF(Z670:Z784,G660,AB670:AB784))","v":""},{"$f":"IF(AK653=\"\",\"\",O660-P660)","v":""},null,null,null,null,null,null,null,null,null,null,null,null,null,null,null,null,null,null,null,{"$f":"IF(AK653=\"\",\"\",SMALL(C654:C667,7))","v":""},null,null,{"$f":"IF(AK653=\"\",\"\",INT(AK660/1000))","v":""},{"$f":"IF(AK653=\"\",\"\",VLOOKUP(AK660,C654:Q667,5,FALSE))","v":""},{"$f":"VLOOKUP(AK660,C654:Q667,8,FALSE)","v":""},{"$f":"VLOOKUP(AK660,C654:Q667,9,FALSE)","v":""},{"$f":"VLOOKUP(AK660,C654:Q667,10,FALSE)","v":""},{"$f":"VLOOKUP(AK660,C654:Q667,11,FALSE)","v":""},{"$f":"VLOOKUP(AK660,C654:Q667,12,FALSE)","v":""},{"$f":"VLOOKUP(AK660,C654:Q667,13,FALSE)","v":""},{"$f":"VLOOKUP(AK660,C654:Q667,14,FALSE)","v":""},{"$f":"VLOOKUP(AK660,C654:Q667,15,FALSE)","v":""}]
[null,8,{"$f":"IF(AK653=\"\",\"\",RANK(F661,F654:F667)*1000+ROW())","v":""},"",{"$f":"IF(L661=\"\",\"\",Nb_Diff_Part(D661,D654:D667,G661,G654:G667,AI670:AI784)*CritClassInd_DiffPart+Nb_Goal_Part(D661,D654:D667,G661,G654:G667,V670:Z784)*CritClassInd_GoalPart+Nb_Score_Part(D661,D654:D667,G661,G654:G667,V670:Z784)*CritClassInd_ScorePart)","v":""},"","H",0,null,{"$f":"IF(AK653=\"\",\"\",(L661*Points_Victoire)+M661*Points_Null)","v":""},"",{"$f":"IF(AK653=\"\",\"\",COUNTIF(AE670:AE784,G661))","v":""},{"$f":"IF(AK653=\"\",\"\",COUNTIF(AF670:AG784,G661))","v":""},{"$f":"IF(AK653=\"\",\"\",COUNTIF(AH670:AH784,G661))","v":""},{"$f":"IF(AK653=\"\",\"\",SUMIF(V670:V784,G661,AB670:AB784)+SUMIF(Z670:Z784,G661,AD670:AD784))","v":""},{"$f":"IF(AK653=\"\",\"\",SUMIF(V670:V784,G661,AD670:AD784)+SUMIF(Z670:Z784,G661,AB670:AB784))","v":""},{"$f":"IF(AK653=\"\",\"\",O661-P661)","v":""},null,null,null,null,null,null,null,null,null,null,null,null,null,null,null,null,null,null,null,{"$f":"IF(AK653=\"\",\"\",SMALL(C654:C667,8))","v":""},null,null,{"$f":"IF(AK653=\"\",\"\",INT(AK661/1000))","v":""},{"$f":"IF(AK653=\"\",\"\",VLOOKUP(AK661,C654:Q667,5,FALSE))","v":""},{"$f":"VLOOKUP(AK661,C654:Q667,8,FALSE)","v":""},{"$f":"VLOOKUP(AK661,C654:Q667,9,FALSE)","v":""},{"$f":"VLOOKUP(AK661,C654:Q667,10,FALSE)","v":""},{"$f":"VLOOKUP(AK661,C654:Q667,11,FALSE)","v":""},{"$f":"VLOOKUP(AK661,C654:Q667,12,FALSE)","v":""},{"$f":"VLOOKUP(AK661,C654:Q667,13,FALSE)","v":""},{"$f":"VLOOKUP(AK661,C654:Q667,14,FALSE)","v":""},{"$f":"VLOOKUP(AK661,C654:Q667,15,FALSE)","v":""}]
[null,9,{"$f":"IF(AK653=\"\",\"\",RANK(F662,F654:F667)*1000+ROW())","v":""},"",{"$f":"IF(L662=\"\",\"\",Nb_Diff_Part(D662,D654:D667,G662,G654:G667,AI670:AI784)*CritClassInd_DiffPart+Nb_Goal_Part(D662,D654:D667,G662,G654:G667,V670:Z784)*CritClassInd_GoalPart+Nb_Score_Part(D662,D654:D667,G662,G654:G667,V670:Z784)*CritClassInd_ScorePart)","v":""},"","I",0,null,{"$f":"IF(AK653=\"\",\"\",(L662*Points_Victoire)+M662*Points_Null)","v":""},"",{"$f":"IF(AK653=\"\",\"\",COUNTIF(AE670:AE784,G662))","v":""},{"$f":"IF(AK653=\"\",\"\",COUNTIF(AF670:AG784,G662))","v":""},{"$f":"IF(AK653=\"\",\"\",COUNTIF(AH670:AH784,G662))","v":""},{"$f":"IF(AK653=\"\",\"\",SUMIF(V670:V784,G662,AB670:AB784)+SUMIF(Z670:Z784,G662,AD670:AD784))","v":""},{"$f":"IF(AK653=\"\",\"\",SUMIF(V670:V784,G662,AD670:AD784)+SUMIF(Z670:Z784,G662,AB670:AB784))","v":""},{"$f":"IF(AK653=\"\",\"\",O662-P662)","v":""},null,null,null,null,null,null,null,null,null,null,null,null,null,null,null,null,null,null,null,{"$f":"IF(AK653=\"\",\"\",SMALL(C654:C667,9))","v":""},null,null,{"$f":"IF(AK653=\"\",\"\",INT(AK662/1000))","v":""},{"$f":"IF(AK653=\"\",\"\",VLOOKUP(AK662,C654:Q667,5,FALSE))","v":""},{"$f":"VLOOKUP(AK662,C654:Q667,8,FALSE)","v":""},{"$f":"VLOOKUP(AK662,C654:Q667,9,FALSE)","v":""},{"$f":"VLOOKUP(AK662,C654:Q667,10,FALSE)","v":""},{"$f":"VLOOKUP(AK662,C654:Q667,11,FALSE)","v":""},{"$f":"VLOOKUP(AK662,C654:Q667,12,FALSE)","v":""},{"$f":"VLOOKUP(AK662,C654:Q667,13,FALSE)","v":""},{"$f":"VLOOKUP(AK662,C654:Q667,14,FALSE)","v":""},{"$f":"VLOOKUP(AK662,C654:Q667,15,FALSE)","v":""}]
[null,10,{"$f":"IF(AK653=\"\",\"\",RANK(F663,F654:F667)*1000+ROW())","v":""},"",{"$f":"IF(L663=\"\",\"\",Nb_Diff_Part(D663,D654:D667,G663,G654:G667,AI670:AI784)*CritClassInd_DiffPart+Nb_Goal_Part(D663,D654:D667,G663,G654:G667,V670:Z784)*CritClassInd_GoalPart+Nb_Score_Part(D663,D654:D667,G663,G654:G667,V670:Z784)*CritClassInd_ScorePart)","v":""},"","J",0,null,{"$f":"IF(AK653=\"\",\"\",(L663*Points_Victoire)+M663*Points_Null)","v":""},"",{"$f":"IF(AK653=\"\",\"\",COUNTIF(AE670:AE784,G663))","v":""},{"$f":"IF(AK653=\"\",\"\",COUNTIF(AF670:AG784,G663))","v":""},{"$f":"IF(AK653=\"\",\"\",COUNTIF(AH670:AH784,G663))","v":""},{"$f":"IF(AK653=\"\",\"\",SUMIF(V670:V784,G663,AB670:AB784)+SUMIF(Z670:Z784,G663,AD670:AD784))","v":""},{"$f":"IF(AK653=\"\",\"\",SUMIF(V670:V784,G663,AD670:AD784)+SUMIF(Z670:Z784,G663,AB670:AB784))","v":""},{"$f":"IF(AK653=\"\",\"\",O663-P663)","v":""},null,null,null,null,null,null,null,null,null,null,null,null,null,null,null,null,null,null,null,{"$f":"IF(AK653=\"\",\"\",SMALL(C654:C667,10))","v":""},null,null,{"$f":"IF(AK653=\"\",\"\",INT(AK663/1000))","v":""},{"$f":"IF(AK653=\"\",\"\",VLOOKUP(AK663,C654:Q667,5,FALSE))","v":""},{"$f":"VLOOKUP(AK663,C654:Q667,8,FALSE)","v":""},{"$f":"VLOOKUP(AK663,C654:Q667,9,FALSE)","v":""},{"$f":"VLOOKUP(AK663,C654:Q667,10,FALSE)","v":""},{"$f":"VLOOKUP(AK663,C654:Q667,11,FALSE)","v":""},{"$f":"VLOOKUP(AK663,C654:Q667,12,FALSE)","v":""},{"$f":"VLOOKUP(AK663,C654:Q667,13,FALSE)","v":""},{"$f":"VLOOKUP(AK663,C654:Q667,14,FALSE)","v":""},{"$f":"VLOOKUP(AK663,C654:Q667,15,FALSE)","v":""}]
[null,11,{"$f":"IF(AK653=\"\",\"\",RANK(F664,F654:F667)*1000+ROW())","v":""},"",{"$f":"IF(L664=\"\",\"\",Nb_Diff_Part(D664,D654:D667,G664,G654:G667,AI670:AI784)*CritClassInd_DiffPart+Nb_Goal_Part(D664,D654:D667,G664,G654:G667,V670:Z784)*CritClassInd_GoalPart+Nb_Score_Part(D664,D654:D667,G664,G654:G667,V670:Z784)*CritClassInd_ScorePart)","v":""},"","K",0,null,{"$f":"IF(AK653=\"\",\"\",(L664*Points_Victoire)+M664*Points_Null)","v":""},"",{"$f":"IF(AK653=\"\",\"\",COUNTIF(AE670:AE784,G664))","v":""},{"$f":"IF(AK653=\"\",\"\",COUNTIF(AF670:AG784,G664))","v":""},{"$f":"IF(AK653=\"\",\"\",COUNTIF(AH670:AH784,G664))","v":""},{"$f":"IF(AK653=\"\",\"\",SUMIF(V670:V784,G664,AB670:AB784)+SUMIF(Z670:Z784,G664,AD670:AD784))","v":""},{"$f":"IF(AK653=\"\",\"\",SUMIF(V670:V784,G664,AD670:AD784)+SUMIF(Z670:Z784,G664,AB670:AB784))","v":""},{"$f":"IF(AK653=\"\",\"\",O664-P664)","v":""},null,null,null,null,null,null,null,null,null,null,null,null,null,null,null,null,null,null,null,{"$f":"IF(AK653=\"\",\"\",SMALL(C654:C667,11))","v":""},null,null,{"$f":"IF(AK653=\"\",\"\",INT(AK664/1000))","v":""},{"$f":"IF(AK653=\"\",\"\",VLOOKUP(AK664,C654:Q667,5,FALSE))","v":""},{"$f":"VLOOKUP(AK664,C654:Q667,8,FALSE)","v":""},{"$f":"VLOOKUP(AK664,C654:Q667,9,FALSE)","v":""},{"$f":"VLOOKUP(AK664,C654:Q667,10,FALSE)","v":""},{"$f":"VLOOKUP(AK664,C654:Q667,11,FALSE)","v":""},{"$f":"VLOOKUP(AK664,C654:Q667,12,FALSE)","v":""},{"$f":"VLOOKUP(AK664,C654:Q667,13,FALSE)","v":""},{"$f":"VLOOKUP(AK664,C654:Q667,14,FALSE)","v":""},{"$f":"VLOOKUP(AK664,C654:Q667,15,FALSE)","v":""}]
[null,12,{"$f":"IF(AK653=\"\",\"\",RANK(F665,F654:F667)*1000+ROW())","v":""},"",{"$f":"IF(L665=\"\",\"\",Nb_Diff_Part(D665,D654:D667,G665,G654:G667,AI670:AI784)*CritClassInd_DiffPart+Nb_Goal_Part(D665,D654:D667,G665,G654:G667,V670:Z784)*CritClassInd_GoalPart+Nb_Score_Part(D665,D654:D667,G665,G654:G667,V670:Z784)*CritClassInd_ScorePart)","v":""},"","L",0,null,{"$f":"IF(AK653=\"\",\"\",(L665*Points_Victoire)+M665*Points_Null)","v":""},"",{"$f":"IF(AK653=\"\",\"\",COUNTIF(AE670:AE784,G665))","v":""},{"$f":"IF(AK653=\"\",\"\",COUNTIF(AF670:AG784,G665))","v":""},{"$f":"IF(AK653=\"\",\"\",COUNTIF(AH670:AH784,G665))","v":""},{"$f":"IF(AK653=\"\",\"\",SUMIF(V670:V784,G665,AB670:AB784)+SUMIF(Z670:Z784,G665,AD670:AD784))","v":""},{"$f":"IF(AK653=\"\",\"\",SUMIF(V670:V784,G665,AD670:AD784)+SUMIF(Z670:Z784,G665,AB670:AB784))","v":""},{"$f":"IF(AK653=\"\",\"\",O665-P665)","v":""},null,null,null,null,null,null,null,null,null,null,null,null,null,null,null,null,null,null,null,{"$f":"IF(AK653=\"\",\"\",SMALL(C654:C667,12))","v":""},null,null,{"$f":"IF(AK653=\"\",\"\",INT(AK665/1000))","v":""},{"$f":"IF(AK653=\"\",\"\",VLOOKUP(AK665,C654:Q667,5,FALSE))","v":""},{"$f":"VLOOKUP(AK665,C654:Q667,8,FALSE)","v":""},{"$f":"VLOOKUP(AK665,C654:Q667,9,FALSE)","v":""},{"$f":"VLOOKUP(AK665,C654:Q667,10,FALSE)","v":""},{"$f":"VLOOKUP(AK665,C654:Q667,11,FALSE)","v":""},{"$f":"VLOOKUP(AK665,C654:Q667,12,FALSE)","v":""},{"$f":"VLOOKUP(AK665,C654:Q667,13,FALSE)","v":""},{"$f":"VLOOKUP(AK665,C654:Q667,14,FALSE)","v":""},{"$f":"VLOOKUP(AK665,C654:Q667,15,FALSE)","v":""}]
[null,13,{"$f":"IF(AK653=\"\",\"\",RANK(F666,F654:F667)*1000+ROW())","v":""},"",{"$f":"IF(L666=\"\",\"\",Nb_Diff_Part(D666,D654:D667,G666,G654:G667,AI670:AI784)*CritClassInd_DiffPart+Nb_Goal_Part(D666,D654:D667,G666,G654:G667,V670:Z784)*CritClassInd_GoalPart+Nb_Score_Part(D666,D654:D667,G666,G654:G667,V670:Z784)*CritClassInd_ScorePart)","v":""},"","M",0,null,{"$f":"IF(AK653=\"\",\"\",(L666*Points_Victoire)+M666*Points_Null)","v":""},"",{"$f":"IF(AK653=\"\",\"\",COUNTIF(AE670:AE784,G666))","v":""},{"$f":"IF(AK653=\"\",\"\",COUNTIF(AF670:AG784,G666))","v":""},{"$f":"IF(AK653=\"\",\"\",COUNTIF(AH670:AH784,G666))","v":""},{"$f":"IF(AK653=\"\",\"\",SUMIF(V670:V784,G666,AB670:AB784)+SUMIF(Z670:Z784,G666,AD670:AD784))","v":""},{"$f":"IF(AK653=\"\",\"\",SUMIF(V670:V784,G666,AD670:AD784)+SUMIF(Z670:Z784,G666,AB670:AB784))","v":""},{"$f":"IF(AK653=\"\",\"\",O666-P666)","v":""},null,null,null,null,null,null,null,null,null,null,null,null,null,null,null,null,null,null,null,{"$f":"IF(AK653=\"\",\"\",SMALL(C654:C667,13))","v":""},null,null,{"$f":"IF(AK653=\"\",\"\",INT(AK666/1000))","v":""},{"$f":"IF(AK653=\"\",\"\",VLOOKUP(AK666,C654:Q667,5,FALSE))","v":""},{"$f":"VLOOKUP(AK666,C654:Q667,8,FALSE)","v":""},{"$f":"VLOOKUP(AK666,C654:Q667,9,FALSE)","v":""},{"$f":"VLOOKUP(AK666,C654:Q667,10,FALSE)","v":""},{"$f":"VLOOKUP(AK666,C654:Q667,11,FALSE)","v":""},{"$f":"VLOOKUP(AK666,C654:Q667,12,FALSE)","v":""},{"$f":"VLOOKUP(AK666,C654:Q667,13,FALSE)","v":""},{"$f":"VLOOKUP(AK666,C654:Q667,14,FALSE)","v":""},{"$f":"VLOOKUP(AK666,C654:Q667,15,FALSE)","v":""}]
[null,14,{"$f":"IF(AK653=\"\",\"\",RANK(F667,F654:F667)*1000+ROW())","v":""},"",{"$f":"IF(L667=\"\",\"\",Nb_Diff_Part(D667,D654:D667,G667,G654:G667,AI670:AI784)*CritClassInd_DiffPart+Nb_Goal_Part(D667,D654:D667,G667,G654:G667,V670:Z784)*CritClassInd_GoalPart+Nb_Score_Part(D667,D654:D667,G667,G654:G667,V670:Z784)*CritClassInd_ScorePart)","v":""},"","N",0,null,{"$f":"IF(AK653=\"\",\"\",(L667*Points_Victoire)+M667*Points_Null)","v":""},"",{"$f":"IF(AK653=\"\",\"\",COUNTIF(AE670:AE784,G667))","v":""},{"$f":"IF(AK653=\"\",\"\",COUNTIF(AF670:AG784,G667))","v":""},{"$f":"IF(AK653=\"\",\"\",COUNTIF(AH670:AH784,G667))","v":""},{"$f":"IF(AK653=\"\",\"\",SUMIF(V670:V784,G667,AB670:AB784)+SUMIF(Z670:Z784,G667,AD670:AD784))","v":""},{"$f":"IF(AK653=\"\",\"\",SUMIF(V670:V784,G667,AD670:AD784)+SUMIF(Z670:Z784,G667,AB670:AB784))","v":""},{"$f":"IF(AK653=\"\",\"\",O667-P667)","v":""},null,null,null,null,null,null,null,null,null,null,null,null,null,null,null,null,null,null,null,{"$f":"IF(AK653=\"\",\"\",SMALL(C654:C667,14))","v":""},null,null,{"$f":"IF(AK653=\"\",\"\",INT(AK667/1000))","v":""},{"$f":"IF(AK653=\"\",\"\",VLOOKUP(AK667,C654:Q667,5,FALSE))","v":""},{"$f":"VLOOKUP(AK667,C654:Q667,8,FALSE)","v":""},{"$f":"VLOOKUP(AK667,C654:Q667,9,FALSE)","v":""},{"$f":"VLOOKUP(AK667,C654:Q667,10,FALSE)","v":""},{"$f":"VLOOKUP(AK667,C654:Q667,11,FALSE)","v":""},{"$f":"VLOOKUP(AK667,C654:Q667,12,FALSE)","v":""},{"$f":"VLOOKUP(AK667,C654:Q667,13,FALSE)","v":""},{"$f":"VLOOKUP(AK667,C654:Q667,14,FALSE)","v":""},{"$f":"VLOOKUP(AK667,C654:Q667,15,FALSE)","v":""}]
[null,null,null,null,null,null,null,null,null,null,null,null,null,null,null,null,null,null,1,null,null,null,null,null,null,null,null,{"$f":"IF(MaxScore,N_MaxScore,\"\")","v":"Max Score"}]
[null,null,null,null,null,null,null,null,null,null,null,null,null,null,null,null,null,null,{"$f":"N_Heure","v":"Time"},{"$f":"N_Table","v":"Table"},{"$f":"N_Arbitre","v":"Referee"},{"$f":"N_Matches","v":"Matches"}]
[null,null,null,null,null,null,null,null,null,null,null,null,null,null,null,null,null,"#G1",null,null,null,{"$f":"IF(G654=\"\",\"\",G654)","v":"A"},null,"-",null,{"$f":"IF(G655=\"\",\"\",G655)","v":"B"},null,{"$f":"IF(MaxScore,MaxGoals(W670,Y670,MaxGoalsValue),IF(W670=\"\",\"\",W670))","v":0},{"$f":"IF(MaxScore,\"-\",IF(W670=\"\",\"\",\"-\"))","v":"-"},{"$f":"IF(MaxScore,MaxGoals(Y670,W670,MaxGoalsValue),IF(Y670=\"\",\"\",Y670))","v":0},{"$f":"IF(W670=\"\",\"\",IF(W670>Y670,V670,IF(W670=Y670,\"\",Z670)))","v":""},{"$f":"IF(W670=\"\",\"\",IF(W670=Y670,V670,\"\"))","v":""},{"$f":"IF(W670=\"\",\"\",IF(W670=Y670,Z670,\"\"))","v":""},{"$f":"IF(W670=\"\",\"\",IF(W670<Y670,V670,IF(W670=Y670,\"\",Z670)))","v":""},{"$f":"CONCATENATE(AE670,AH670)","v":""}]
[null,null,null,null,null,null,null,null,null,null,null,null,null,null,null,null,null,"#G1",null,null,null,{"$f":"IF(G656=\"\",\"\",G656)","v":"C"},null,"-",null,{"$f":"IF(G657=\"\",\"\",G657)","v":"D"},null,0,"-",0,"","","","",""]
[null,null,null,null,null,null,null,null,null,null,null,null,null,null,null,null,null,"#G1",null,null,null,{"$f":"IF(G658=\"\",\"\",G658)","v":"E"},null,"-",null,{"$f":"IF(G659=\"\",\"\",G659)","v":"F"},null,0,"-",0,"","","","",""]
[null,null,null,null,null,null,null,null,null,null,null,null,null,null,null,null,null,"#G1",null,null,null,{"$f":"IF(G660=\"\",\"\",G660)","v":"G"},null,"-",null,{"$f":"IF(G661=\"\",\"\",G661)","v":"H"},null,0,"-",0,"","","","",""]
[null,null,null,null,null,null,null,null,null,null,null,null,null,null,null,null,null,"#G1",null,null,null,{"$f":"IF(G662=\"\",\"\",G662)","v":"I"},null,"-",null,{"$f":"IF(G663=\"\",\"\",G663)","v":"J"},null,0,"-",0,"","","","",""]
[null,null,null,null,null,null,null,null,null,null,null,null,null,null,null,null,null,"#G1",null,null,null,{"$f":"IF(G664=\"\",\"\",G664)","v":"K"},null,"-",null,{"$f":"IF(G665=\"\",\"\",G665)","v":"L"},null,0,"-",0,"","","","",""]
[null,null,null,null,null,null,null,null,null,null,null,null,null,null,null,null,null,"#G1",null,null,null,{"$f":"IF(G666=\"\",\"\",G666)","v":"M"},null,"-",null,{"$f":"IF(G667=\"\",\"\",G667)","v":"N"},null,0,"-",0,"","","","",""]
[null,null,null,null,null,null,null,null,null,null,null,null,null,null,null,null,null,null,{"$f":"S668+1","v":2}]
[null,null,null,null,null,null,null,null,null,null,null,null,null,null,null,null,null,null,{"$f":"N_Heure","v":"Time"},{"$f":"N_Table","v":"Table"},{"$f":"N_Arbitre","v":"Referee"},{"$f":"N_Matches","v":"Matches"}]
[null,null,null,null,null,null,null,null,null,null,null,null,null,null,null,null,null,"#G2",null,null,null,{"$f":"V671","v":"C"},null,"-",null,{"$f":"V670","v":"A"},null,{"$f":"IF(MaxScore,MaxGoals(W679,Y679,MaxGoalsValue),IF(W679=\"\",\"\",W679))","v":0},{"$f":"IF(MaxScore,\"-\",IF(W679=\"\",\"\",\"-\"))","v":"-"},{"$f":"IF(MaxScore,MaxGoals(Y679,W679,MaxGoalsValue),IF(Y679=\"\",\"\",Y679))","v":0},{"$f":"IF(W679=\"\",\"\",IF(W679>Y679,V679,IF(W679=Y679,\"\",Z679)))","v":""},{"$f":"IF(W679=\"\",\"\",IF(W679=Y679,V679,\"\"))","v":""},{"$f":"IF(W679=\"\",\"\",IF(W679=Y679,Z679,\"\"))","v":""},{"$f":"IF(W679=\"\",\"\",IF(W679<Y679,V679,IF(W679=Y679,\"\",Z679)))","v":""},{"$f":"CONCATENATE(AE679,AH679)","v":""}]
[null,null,null,null,null,null,null,null,null,null,null,null,null,null,null,null,null,"#G2",null,null,null,{"$f":"Z670","v":"B"},null,"-",null,{"$f":"V672","v":"E"},null,0,"-",0,"","","","",""]
[null,null,null,null,null,null,null,null,null,null,null,null,null,null,null,null,null,"#G2",null,null,null,"D",null,"-",null,{"$f":"V673","v":"G"},null,0,"-",0,"","","","",""]
[null,null,null,null,null,null,null,null,null,null,null,null,null,null,null,null,null,"#G2",null,null,null,"F",null,"-",null,{"$f":"V674","v":"I"},null,0,"-",0,"","","","",""]
[null,null,null,null,null,null,null,null,null,null,null,null,null,null,null,null,null,"#G2",null,null,null,"H",null,"-",null,{"$f":"V675","v":"K"},null,0,"-",0,"","","","",""]
[null,null,null,null,null,null,null,null,null,null,null,null,null,null,null,null,null,"#G2",null,null,null,"J",null,"-",null,{"$f":"V676","v":"M"},null,0,"-",0,"","","","",""]
[null,null,null,null,null,null,null,null,null,null,null,null,null,null,null,null,null,"#G2",null,null,null,"L",null,"-",null,{"$f":"+Z676","v":"N"},null,0,"-",0,"","","","",""]
[null,null,null,null,null,null,null,null,null,null,null,null,null,null,null,null,null,null,{"$f":"S677+1","v":3}]
[null,null,null,null,null,null,null,null,null,null,null,null,null,null,null,null,null,null,{"$f":"N_Heure","v":"Time"},{"$f":"N_Table","v":"Table"},{"$f":"N_Arbitre","v":"Referee"},{"$f":"N_Matches","v":"Matches"}]
[null,null,null,null,null,null,null,null,null,null,null,null,null,null,null,null,null,"#G3",null,null,null,{"$f":"Z679","v":"A"},null,"-",null,{"$f":"Z680","v":"E"},null,{"$f":"IF(MaxScore,MaxGoals(W688,Y688,MaxGoalsValue),IF(W688=\"\",\"\",W688))","v":0},{"$f":"IF(MaxScore,\"-\",IF(W688=\"\",\"\",\"-\"))","v":"-"},{"$f":"IF(MaxScore,MaxGoals(Y688,W688,MaxGoalsValue),IF(Y688=\"\",\"\",Y688))","v":0},{"$f":"IF(W688=\"\",\"\",IF(W688>Y688,V688,IF(W688=Y688,\"\",Z688)))","v":""},{"$f":"IF(W688=\"\",\"\",IF(W688=Y688,V688,\"\"))","v":""},{"$f":"IF(W688=\"\",\"\",IF(W688=Y688,Z688,\"\"))","v":""},{"$f":"IF(W688=\"\",\"\",IF(W688<Y688,V688,IF(W688=Y688,\"\",Z688)))","v":""},{"$f":"CONCATENATE(AE688,AH688)","v":""}]
[null,null,null,null,null,null,null,null,null,null,null,null,null,null,null,null,null,"#G3",null,null,null,{"$f":"Z681","v":"G"},null,"-",null,{"$f":"V679","v":"C"},null,0,"-",0,"","","","",""]
[null,null,null,null,null,null,null,null,null,null,null,null,null,null,null,null,null,"#G3",null,null,null,{"$f":"Z682","v":"I"},null,"-",null,{"$f":"V680","v":"B"},null,0,"-",0,"","","","",""]
[null,null,null,null,null,null,null,null,null,null,null,null,null,null,null,null,null,"#G3",null,null,null,{"$f":"Z683","v":"K"},null,"-",null,{"$f":"V681","v":"D"},null,0,"-",0,"","","","",""]
[null,null,null,null,null,null,null,null,null,null,null,null,null,null,null,null,null,"#G3",null,null,null,{"$f":"Z684","v":"M"},null,"-",null,{"$f":"V682","v":"F"},null,0,"-",0,"","","","",""]
[null,null,null,null,null,null,null,null,null,null,null,null,null,null,null,null,null,"#G3",null,null,null,{"$f":"Z685","v":"N"},null,"-",null,{"$f":"V683","v":"H"},null,0,"-",0,"","","","",""]
[null,null,null,null,null,null,null,null,null,null,null,null,null,null,null,null,null,"#G3",null,null,null,{"$f":"+V685","v":"L"},null,"-",null,{"$f":"+V684","v":"J"},null,0,"-",0,"","","","",""]
[null,null,null,null,null,null,null,null,null,null,null,null,null,null,null,null,null,null,{"$f":"S686+1","v":4}]
[null,null,null,null,null,null,null,null,null,null,null,null,null,null,null,null,null,null,{"$f":"N_Heure","v":"Time"},{"$f":"N_Table","v":"Table"},{"$f":"N_Arbitre","v":"Referee"},{"$f":"N_Matches","v":"Matches"}]
[null,null,null,null,null,null,null,null,null,null,null,null,null,null,null,null,null,"#G4",null,null,null,{"$f":"V689","v":"G"},null,"-",null,{"$f":"V688","v":"A"},null,{"$f":"IF(MaxScore,MaxGoals(W697,Y697,MaxGoalsValue),IF(W697=\"\",\"\",W697))","v":0},{"$f":"IF(MaxScore,\"-\",IF(W697=\"\",\"\",\"-\"))","v":"-"},{"$f":"IF(MaxScore,MaxGoals(Y697,W697,MaxGoalsValue),IF(Y697=\"\",\"\",Y697))","v":0},{"$f":"IF(W697=\"\",\"\",IF(W697>Y697,V697,IF(W697=Y697,\"\",Z697)))","v":""},{"$f":"IF(W697=\"\",\"\",IF(W697=Y697,V697,\"\"))","v":""},{"$f":"IF(W697=\"\",\"\",IF(W697=Y697,Z697,\"\"))","v":""},{"$f":"IF(W697=\"\",\"\",IF(W697<Y697,V697,IF(W697=Y697,\"\",Z697)))","v":""},{"$f":"CONCATENATE(AE697,AH697)","v":""}]
[null,null,null,null,null,null,null,null,null,null,null,null,null,null,null,null,null,"#G4",null,null,null,{"$f":"Z688","v":"E"},null,"-",null,{"$f":"V690","v":"I"},null,0,"-",0,"","","","",""]
[null,null,null,null,null,null,null,null,null,null,null,null,null,null,null,null,null,"#G4",null,null,null,"C",null,"-",null,{"$f":"V691","v":"K"},null,0,"-",0,"","","","",""]
[null,null,null,null,null,null,null,null,null,null,null,null,null,null,null,null,null,"#G4",null,null,null,"B",null,"-",null,{"$f":"V692","v":"M"},null,0,"-",0,"","","","",""]
[null,null,null,null,null,null,null,null,null,null,null,null,null,null,null,null,null,"#G4",null,null,null,"D",null,"-",null,{"$f":"V693","v":"N"},null,0,"-",0,"","","","",""]
[null,null,null,null,null,null,null,null,null,null,null,null,null,null,null,null,null,"#G4",null,null,null,"F",null,"-",null,{"$f":"V694","v":"L"},null,0,"-",0,"","","","",""]
[null,null,null,null,null,null,null,null,null,null,null,null,null,null,null,null,null,"#G4",null,null,null,"H",null,"-",null,{"$f":"+Z694","v":"J"},null,0,"-",0,"","","","",""]
[null,null,null,null,null,null,null,null,null,null,null,null,null,null,null,null,null,null,{"$f":"S695+1","v":5}]
[null,null,null,null,null,null,null,null,null,null,null,null,null,null,null,null,null,null,{"$f":"N_Heure","v":"Time"},{"$f":"N_Table","v":"Table"},{"$f":"N_Arbitre","v":"Referee"},{"$f":"N_Matches","v":"Matches"}]
[null,null,null,null,null,null,null,null,null,null,null,null,null,null,null,null,null,"#G5",null,null,null,{"$f":"Z697","v":"A"},null,"-",null,{"$f":"Z698","v":"I"},null,{"$f":"IF(MaxScore,MaxGoals(W706,Y706,MaxGoalsValue),IF(W706=\"\",\"\",W706))","v":0},{"$f":"IF(MaxScore,\"-\",IF(W706=\"\",\"\",\"-\"))","v":"-"},{"$f":"IF(MaxScore,MaxGoals(Y706,W706,MaxGoalsValue),IF(Y706=\"\",\"\",Y706))","v":0},{"$f":"IF(W706=\"\",\"\",IF(W706>Y706,V706,IF(W706=Y706,\"\",Z706)))","v":""},{"$f":"IF(W706=\"\",\"\",IF(W706=Y706,V706,\"\"))","v":""},{"$f":"IF(W706=\"\",\"\",IF(W706=Y706,Z706,\"\"))","v":""},{"$f":"IF(W706=\"\",\"\",IF(W706<Y706,V706,IF(W706=Y706,\"\",Z706)))","v":""},{"$f":"CONCATENATE(AE706,AH706)","v":""}]
[null,null,null,null,null,null,null,null,null,null,null,null,null,null,null,null,null,"#G5",null,null,null,{"$f":"Z699","v":"K"},null,"-",null,{"$f":"V697","v":"G"},null,0,"-",0,"","","","",""]
[null,null,null,null,null,null,null,null,null,null,null,null,null,null,null,null,null,"#G5",null,null,null,{"$f":"Z700","v":"M"},null,"-",null,{"$f":"V698","v":"E"},null,0,"-",0,"","","","",""]
[null,null,null,null,null,null,null,null,null,null,null,null,null,null,null,null,null,"#G5",null,null,null,{"$f":"Z701","v":"N"},null,"-",null,{"$f":"V699","v":"C"},null,0,"-",0,"","","","",""]
[null,null,null,null,null,null,null,null,null,null,null,null,null,null,null,null,null,"#G5",null,null,null,{"$f":"Z702","v":"L"},null,"-",null,{"$f":"V700","v":"B"},null,0,"-",0,"","","","",""]
[null,null,null,null,null,null,null,null,null,null,null,null,null,null,null,null,null,"#G5",null,null,null,{"$f":"Z703","v":"J"},null,"-",null,{"$f":"V701","v":"D"},null,0,"-",0,"","","","",""]
[null,null,null,null,null,null,null,null,null,null,null,null,null,null,null,null,null,"#G5",null,null,null,{"$f":"+V703","v":"H"},null,"-",null,{"$f":"+V702","v":"F"},null,0,"-",0,"","","","",""]
[null,null,null,null,null,null,null,null,null,null,null,null,null,null,null,null,null,null,{"$f":"S704+1","v":6}]
[null,null,null,null,null,null,null,null,null,null,null,null,null,null,null,null,null,null,{"$f":"N_Heure","v":"Time"},{"$f":"N_Table","v":"Table"},{"$f":"N_Arbitre","v":"Referee"},{"$f":"N_Matches","v":"Matches"}]
[null,null,null,null,null,null,null,null,null,null,null,null,null,null,null,null,null,"#G6",null,null,null,{"$f":"V707","v":"K"},null,"-",null,{"$f":"V706","v":"A"},null,{"$f":"IF(MaxScore,MaxGoals(W715,Y715,MaxGoalsValue),IF(W715=\"\",\"\",W715))","v":0},{"$f":"IF(MaxScore,\"-\",IF(W715=\"\",\"\",\"-\"))","v":"-"},{"$f":"IF(MaxScore,MaxGoals(Y715,W715,MaxGoalsValue),IF(Y715=\"\",\"\",Y715))","v":0},{"$f":"IF(W715=\"\",\"\",IF(W715>Y715,V715,IF(W715=Y715,\"\",Z715)))","v":""},{"$f":"IF(W715=\"\",\"\",IF(W715=Y715,V715,\"\"))","v":""},{"$f":"IF(W715=\"\",\"\",IF(W715=Y715,Z715,\"\"))","v":""},{"$f":"IF(W715=\"\",\"\",IF(W715<Y715,V715,IF(W715=Y715,\"\",Z715)))","v":""},{"$f":"CONCATENATE(AE715,AH715)","v":""}]
[null,null,null,null,null,null,null,null,null,null,null,null,null,null,null,null,null,"#G6",null,null,null,{"$f":"Z706","v":"I"},null,"-",null,{"$f":"V708","v":"M"},null,0,"-",0,"","","","",""]
[null,null,null,null,null,null,null,null,null,null,null,null,null,null,null,null,null,"#G6",null,null,null,"G",null,"-",null,{"$f":"V709","v":"N"},null,0,"-",0,"","","","",""]
[null,null,null,null,null,null,null,null,null,null,null,null,null,null,null,null,null,"#G6",null,null,null,"E",null,"-",null,{"$f":"V710","v":"L"},null,0,"-",0,"","","","",""]
[null,null,null,null,null,null,null,null,null,null,null,null,null,null,null,null,null,"#G6",null,null,null,"C",null,"-",null,{"$f":"V711","v":"J"},null,0,"-",0,"","","","",""]
[null,null,null,null,null,null,null,null,null,null,null,null,null,null,null,null,null,"#G6",null,null,null,"B",null,"-",null,{"$f":"V712","v":"H"},null,0,"-",0,"","","","",""]
[null,null,null,null,null,null,null,null,null,null,null,null,null,null,null,null,null,"#G6",null,null,null,"D",null,"-",null,{"$f":"+Z712","v":"F"},null,0,"-",0,"","","","",""]
[null,null,null,null,null,null,null,null,null,null,null,null,null,null,null,null,null,null,{"$f":"S713+1","v":7}]
[null,null,null,null,null,null,null,null,null,null,null,null,null,null,null,null,null,null,{"$f":"N_Heure","v":"Time"},{"$f":"N_Table","v":"Table"},{"$f":"N_Arbitre","v":"Referee"},{"$f":"N_Matches","v":"Matches"}]
[null,null,null,null,null,null,null,null,null,null,null,null,null,null,null,null,null,"#G7",null,null,null,{"$f":"Z715","v":"A"},null,"-",null,{"$f":"Z716","v":"M"},null,{"$f":"IF(MaxScore,MaxGoals(W724,Y724,MaxGoalsValue),IF(W724=\"\",\"\",W724))","v":0},{"$f":"IF(MaxScore,\"-\",IF(W724=\"\",\"\",\"-\"))","v":"-"},{"$f":"IF(MaxScore,MaxGoals(Y724,W724,MaxGoalsValue),IF(Y724=\"\",\"\",Y724))","v":0},{"$f":"IF(W724=\"\",\"\",IF(W724>Y724,V724,IF(W724=Y724,\"\",Z724)))","v":""},{"$f":"IF(W724=\"\",\"\",IF(W724=Y724,V724,\"\"))","v":""},{"$f":"IF(W724=\"\",\"\",IF(W724=Y724,Z724,\"\"))","v":""},{"$f":"IF(W724=\"\",\"\",IF(W724<Y724,V724,IF(W724=Y724,\"\",Z724)))","v":""},{"$f":"CONCATENATE(AE724,AH724)","v":""}]
[null,null,null,null,null,null,null,null,null,null,null,null,null,null,null,null,null,"#G7",null,null,null,{"$f":"Z717","v":"N"},null,"-",null,{"$f":"V715","v":"K"},null,0,"-",0,"","","","",""]
[null,null,null,null,null,null,null,null,null,null,null,null,null,null,null,null,null,"#G7",null,null,null,{"$f":"Z718","v":"L"},null,"-",null,{"$f":"V716","v":"I"},null,0,"-",0,"","","","",""]
[null,null,null,null,null,null,null,null,null,null,null,null,null,null,null,null,null,"#G7",null,null,null,{"$f":"Z719","v":"J"},null,"-",null,{"$f":"V717","v":"G"},null,0,"-",0,"","","","",""]
[null,null,null,null,null,null,null,null,null,null,null,null,null,null,null,null,null,"#G7",null,null,null,{"$f":"Z720","v":"H"},null,"-",null,{"$f":"V718","v":"E"},null,0,"-",0,"","","","",""]
[null,null,null,null,null,null,null,null,null,null,null,null,null,null,null,null,null,"#G7",null,null,null,{"$f":"Z721","v":"F"},null,"-",null,{"$f":"V719","v":"C"},null,0,"-",0,"","","","",""]
[null,null,null,null,null,null,null,null,null,null,null,null,null,null,null,null,null,"#G7",null,null,null,{"$f":"+V721","v":"D"},null,"-",null,{"$f":"+V720","v":"B"},null,0,"-",0,"","","","",""]
[null,null,null,null,null,null,null,null,null,null,null,null,null,null,null,null,null,null,{"$f":"S722+1","v":8}]
[null,null,null,null,null,null,null,null,null,null,null,null,null,null,null,null,null,null,{"$f":"N_Heure","v":"Time"},{"$f":"N_Table","v":"Table"},{"$f":"N_Arbitre","v":"Referee"},{"$f":"N_Matches","v":"Matches"}]
[null,null,null,null,null,null,null,null,null,null,null,null,null,null,null,null,null,"#G8",null,null,null,{"$f":"V725","v":"N"},null,"-",null,{"$f":"V724","v":"A"},null,{"$f":"IF(MaxScore,MaxGoals(W733,Y733,MaxGoalsValue),IF(W733=\"\",\"\",W733))","v":0},{"$f":"IF(MaxScore,\"-\",IF(W733=\"\",\"\",\"-\"))","v":"-"},{"$f":"IF(MaxScore,MaxGoals(Y733,W733,MaxGoalsValue),IF(Y733=\"\",\"\",Y733))","v":0},{"$f":"IF(W733=\"\",\"\",IF(W733>Y733,V733,IF(W733=Y733,\"\",Z733)))","v":""},{"$f":"IF(W733=\"\",\"\",IF(W733=Y733,V733,\"\"))","v":""},{"$f":"IF(W733=\"\",\"\",IF(W733=Y733,Z733,\"\"))","v":""},{"$f":"IF(W733=\"\",\"\",IF(W733<Y733,V733,IF(W733=Y733,\"\",Z733)))","v":""},{"$f":"CONCATENATE(AE733,AH733)","v":""}]
[null,null,null,null,null,null,null,null,null,null,null,null,null,null,null,null,null,"#G8",null,null,null,{"$f":"Z724","v":"M"},null,"-",null,{"$f":"V726","v":"L"},null,0,"-",0,"","","","",""]
[null,null,null,null,null,null,null,null,null,null,null,null,null,null,null,null,null,"#G8",null,null,null,"K",null,"-",null,{"$f":"V727","v":"J"},null,0,"-",0,"","","","",""]
[null,null,null,null,null,null,null,null,null,null,null,null,null,null,null,null,null,"#G8",null,null,null,"I",null,"-",null,{"$f":"V728","v":"H"},null,0,"-",0,"","","","",""]
[null,null,null,null,null,null,null,null,null,null,null,null,null,null,null,null,null,"#G8",null,null,null,"G",null,"-",null,{"$f":"V729","v":"F"},null,0,"-",0,"","","","",""]
[null,null,null,null,null,null,null,null,null,null,null,null,null,null,null,null,null,"#G8",null,null,null,"E",null,"-",null,{"$f":"V730","v":"D"},null,0,"-",0,"","","","",""]
[null,null,null,null,null,null,null,null,null,null,null,null,null,null,null,null,null,"#G8",null,null,null,"C",null,"-",null,{"$f":"+Z730","v":"B"},null,0,"-",0,"","","","",""]
[null,null,null,null,null,null,null,null,null,null,null,null,null,null,null,null,null,null,{"$f":"S731+1","v":9}]
[null,null,null,null,null,null,null,null,null,null,null,null,null,null,null,null,null,null,{"$f":"N_Heure","v":"Time"},{"$f":"N_Table","v":"Table"},{"$f":"N_Arbitre","v":"Referee"},{"$f":"N_Matches","v":"Matches"}]
[null,null,null,null,null,null,null,null,null,null,null,null,null,null,null,null,null,"#G9",null,null,null,{"$f":"Z733","v":"A"},null,"-",null,{"$f":"Z734","v":"L"},null,{"$f":"IF(MaxScore,MaxGoals(W742,Y742,MaxGoalsValue),IF(W742=\"\",\"\",W742))","v":0},{"$f":"IF(MaxScore,\"-\",IF(W742=\"\",\"\",\"-\"))","v":"-"},{"$f":"IF(MaxScore,MaxGoals(Y742,W742,MaxGoalsValue),IF(Y742=\"\",\"\",Y742))","v":0},{"$f":"IF(W742=\"\",\"\",IF(W742>Y742,V742,IF(W742=Y742,\"\",Z742)))","v":""},{"$f":"IF(W742=\"\",\"\",IF(W742=Y742,V742,\"\"))","v":""},{"$f":"IF(W742=\"\",\"\",IF(W742=Y742,Z742,\"\"))","v":""},{"$f":"IF(W742=\"\",\"\",IF(W742<Y742,V742,IF(W742=Y742,\"\",Z742)))","v":""},{"$f":"CONCATENATE(AE742,AH742)","v":""}]
[null,null,null,null,null,null,null,null,null,null,null,null,null,null,null,null,null,"#G9",null,null,null,{"$f":"Z735","v":"J"},null,"-",null,{"$f":"V733","v":"N"},null,0,"-",0,"","","","",""]
[null,null,null,null,null,null,null,null,null,null,null,null,null,null,null,null,null,"#G9",null,null,null,{"$f":"Z736","v":"H"},null,"-",null,{"$f":"V734","v":"M"},null,0,"-",0,"","","","",""]
[null,null,null,null,null,null,null,null,null,null,null,null,null,null,null,null,null,"#G9",null,null,null,{"$f":"Z737","v":"F"},null,"-",null,{"$f":"V735","v":"K"},null,0,"-",0,"","","","",""]
[null,null,null,null,null,null,null,null,null,null,null,null,null,null,null,null,null,"#G9",null,null,null,{"$f":"Z738","v":"D"},null,"-",null,{"$f":"V736","v":"I"},null,0,"-",0,"","","","",""]
[null,null,null,null,null,null,null,null,null,null,null,null,null,null,null,null,null,"#G9",null,null,null,{"$f":"Z739","v":"B"},null,"-",null,{"$f":"V737","v":"G"},null,0,"-",0,"","","","",""]
[null,null,null,null,null,null,null,null,null,null,null,null,null,null,null,null,null,"#G9",null,null,null,{"$f":"+V739","v":"C"},null,"-",null,{"$f":"+V738","v":"E"},null,0,"-",0,"","","","",""]
[null,null,null,null,null,null,null,null,null,null,null,null,null,null,null,null,null,null,{"$f":"S740+1","v":10}]
[null,null,null,null,null,null,null,null,null,null,null,null,null,null,null,null,null,null,{"$f":"N_Heure","v":"Time"},{"$f":"N_Table","v":"Table"},{"$f":"N_Arbitre","v":"Referee"},{"$f":"N_Matches","v":"Matches"}]
[null,null,null,null,null,null,null,null,null,null,null,null,null,null,null,null,null,"#G10",null,null,null,{"$f":"V743","v":"J"},null,"-",null,{"$f":"V742","v":"A"},null,{"$f":"IF(MaxScore,MaxGoals(W751,Y751,MaxGoalsValue),IF(W751=\"\",\"\",W751))","v":0},{"$f":"IF(MaxScore,\"-\",IF(W751=\"\",\"\",\"-\"))","v":"-"},{"$f":"IF(MaxScore,MaxGoals(Y751,W751,MaxGoalsValue),IF(Y751=\"\",\"\",Y751))","v":0},{"$f":"IF(W751=\"\",\"\",IF(W751>Y751,V751,IF(W751=Y751,\"\",Z751)))","v":""},{"$f":"IF(W751=\"\",\"\",IF(W751=Y751,V751,\"\"))","v":""},{"$f":"IF(W751=\"\",\"\",IF(W751=Y751,Z751,\"\"))","v":""},{"$f":"IF(W751=\"\",\"\",IF(W751<Y751,V751,IF(W751=Y751,\"\",Z751)))","v":""},{"$f":"CONCATENATE(AE751,AH751)","v":""}]
[null,null,null,null,null,null,null,null,null,null,null,null,null,null,null,null,null,"#G10",null,null,null,{"$f":"Z742","v":"L"},null,"-",null,{"$f":"V744","v":"H"},null,0,"-",0,"","","","",""]
[null,null,null,null,null,null,null,null,null,null,null,null,null,null,null,null,null,"#G10",null,null,null,"N",null,"-",null,{"$f":"V745","v":"F"},null,0,"-",0,"","","","",""]
[null,null,null,null,null,null,null,null,null,null,null,null,null,null,null,null,null,"#G10",null,null,null,"M",null,"-",null,{"$f":"V746","v":"D"},null,0,"-",0,"","","","",""]
[null,null,null,null,null,null,null,null,null,null,null,null,null,null,null,null,null,"#G10",null,null,null,"K",null,"-",null,{"$f":"V747","v":"B"},null,0,"-",0,"","","","",""]
[null,null,null,null,null,null,null,null,null,null,null,null,null,null,null,null,null,"#G10",null,null,null,"I",null,"-",null,{"$f":"V748","v":"C"},null,0,"-",0,"","","","",""]
[null,null,null,null,null,null,null,null,null,null,null,null,null,null,null,null,null,"#G10",null,null,null,"G",null,"-",null,{"$f":"+Z748","v":"E"},null,0,"-",0,"","","","",""]
[null,null,null,null,null,null,null,null,null,null,null,null,null,null,null,null,null,null,{"$f":"S749+1","v":11}]
[null,null,null,null,null,null,null,null,null,null,null,null,null,null,null,null,null,null,{"$f":"N_Heure","v":"Time"},{"$f":"N_Table","v":"Table"},{"$f":"N_Arbitre","v":"Referee"},{"$f":"N_Matches","v":"Matches"}]
[null,null,null,null,null,null,null,null,null,null,null,null,null,null,null,null,null,"#G11",null,null,null,{"$f":"Z751","v":"A"},null,"-",null,{"$f":"Z752","v":"H"},null,{"$f":"IF(MaxScore,MaxGoals(W760,Y760,MaxGoalsValue),IF(W760=\"\",\"\",W760))","v":0},{"$f":"IF(MaxScore,\"-\",IF(W760=\"\",\"\",\"-\"))","v":"-"},{"$f":"IF(MaxScore,MaxGoals(Y760,W760,MaxGoalsValue),IF(Y760=\"\",\"\",Y760))","v":0},{"$f":"IF(W760=\"\",\"\",IF(W760>Y760,V760,IF(W760=Y760,\"\",Z760)))","v":""},{"$f":"IF(W760=\"\",\"\",IF(W760=Y760,V760,\"\"))","v":""},{"$f":"IF(W760=\"\",\"\",IF(W760=Y760,Z760,\"\"))","v":""},{"$f":"IF(W760=\"\",\"\",IF(W760<Y760,V760,IF(W760=Y760,\"\",Z760)))","v":""},{"$f":"CONCATENATE(AE760,AH760)","v":""}]
[null,null,null,null,null,null,null,null,null,null,null,null,null,null,null,null,null,"#G11",null,null,null,{"$f":"Z753","v":"F"},null,"-",null,{"$f":"V751","v":"J"},null,0,"-",0,"","","","",""]
[null,null,null,null,null,null,null,null,null,null,null,null,null,null,null,null,null,"#G11",null,null,null,{"$f":"Z754","v":"D"},null,"-",null,{"$f":"V752","v":"L"},null,0,"-",0,"","","","",""]
[null,null,null,null,null,null,null,null,null,null,null,null,null,null,null,null,null,"#G11",null,null,null,{"$f":"Z755","v":"B"},null,"-",null,{"$f":"V753","v":"N"},null,0,"-",0,"","","","",""]
[null,null,null,null,null,null,null,null,null,null,null,null,null,null,null,null,null,"#G11",null,null,null,{"$f":"Z756","v":"C"},null,"-",null,{"$f":"V754","v":"M"},null,0,"-",0,"","","","",""]
[null,null,null,null,null,null,null,null,null,null,null,null,null,null,null,null,null,"#G11",null,null,null,{"$f":"Z757","v":"E"},null,"-",null,{"$f":"V755","v":"K"},null,0,"-",0,"","","","",""]
[null,null,null,null,null,null,null,null,null,null,null,null,null,null,null,null,null,"#G11",null,null,null,{"$f":"+V757","v":"G"},null,"-",null,{"$f":"+V756","v":"I"},null,0,"-",0,"","","","",""]
[null,null,null,null,null,null,null,null,null,null,null,null,null,null,null,null,null,null,{"$f":"S758+1","v":12}]
[null,null,null,null,null,null,null,null,null,null,null,null,null,null,null,null,null,null,{"$f":"N_Heure","v":"Time"},{"$f":"N_Table","v":"Table"},{"$f":"N_Arbitre","v":"Referee"},{"$f":"N_Matches","v":"Matches"}]
[null,null,null,null,null,null,null,null,null,null,null,null,null,null,null,null,null,"#G12",null,null,null,{"$f":"V761","v":"F"},null,"-",null,{"$f":"V760","v":"A"},null,{"$f":"IF(MaxScore,MaxGoals(W769,Y769,MaxGoalsValue),IF(W769=\"\",\"\",W769))","v":0},{"$f":"IF(MaxScore,\"-\",IF(W769=\"\",\"\",\"-\"))","v":"-"},{"$f":"IF(MaxScore,MaxGoals(Y769,W769,MaxGoalsValue),IF(Y769=\"\",\"\",Y769))","v":0},{"$f":"IF(W769=\"\",\"\",IF(W769>Y769,V769,IF(W769=Y769,\"\",Z769)))","v":""},{"$f":"IF(W769=\"\",\"\",IF(W769=Y769,V769,\"\"))","v":""},{"$f":"IF(W769=\"\",\"\",IF(W769=Y769,Z769,\"\"))","v":""},{"$f":"IF(W769=\"\",\"\",IF(W769<Y769,V769,IF(W769=Y769,\"\",Z769)))","v":""},{"$f":"CONCATENATE(AE769,AH769)","v":""}]
[null,null,null,null,null,null,null,null,null,null,null,null,null,null,null,null,null,"#G12",null,null,null,{"$f":"Z760","v":"H"},null,"-",null,{"$f":"V762","v":"D"},null,0,"-",0,"","","","",""]
[null,null,null,null,null,null,null,null,null,null,null,null,null,null,null,null,null,"#G12",null,null,null,"J",null,"-",null,{"$f":"V763","v":"B"},null,0,"-",0,"","","","",""]
[null,null,null,null,null,null,null,null,null,null,null,null,null,null,null,null,null,"#G12",null,null,null,"L",null,"-",null,{"$f":"V764","v":"C"},null,0,"-",0,"","","","",""]
[null,null,null,null,null,null,null,null,null,null,null,null,null,null,null,null,null,"#G12",null,null,null,"N",null,"-",null,{"$f":"V765","v":"E"},null,0,"-",0,"","","","",""]
[null,null,null,null,null,null,null,null,null,null,null,null,null,null,null,null,null,"#G12",null,null,null,"M",null,"-",null,{"$f":"V766","v":"G"},null,0,"-",0,"","","","",""]
[null,null,null,null,null,null,null,null,null,null,null,null,null,null,null,null,null,"#G12",null,null,null,"K",null,"-",null,{"$f":"+Z766","v":"I"},null,0,"-",0,"","","","",""]
[null,null,null,null,null,null,null,null,null,null,null,null,null,null,null,null,null,null,{"$f":"S767+1","v":13}]
[null,null,null,null,null,null,null,null,null,null,null,null,null,null,null,null,null,null,{"$f":"N_Heure","v":"Time"},{"$f":"N_Table","v":"Table"},{"$f":"N_Arbitre","v":"Referee"},{"$f":"N_Matches","v":"Matches"}]
[null,null,null,null,null,null,null,null,null,null,null,null,null,null,null,null,null,"#G13",null,null,null,{"$f":"Z769","v":"A"},null,"-",null,{"$f":"Z770","v":"D"},null,{"$f":"IF(MaxScore,MaxGoals(W778,Y778,MaxGoalsValue),IF(W778=\"\",\"\",W778))","v":0},{"$f":"IF(MaxScore,\"-\",IF(W778=\"\",\"\",\"-\"))","v":"-"},{"$f":"IF(MaxScore,MaxGoals(Y778,W778,MaxGoalsValue),IF(Y778=\"\",\"\",Y778))","v":0},{"$f":"IF(W778=\"\",\"\",IF(W778>Y778,V778,IF(W778=Y778,\"\",Z778)))","v":""},{"$f":"IF(W778=\"\",\"\",IF(W778=Y778,V778,\"\"))","v":""},{"$f":"IF(W778=\"\",\"\",IF(W778=Y778,Z778,\"\"))","v":""},{"$f":"IF(W778=\"\",\"\",IF(W778<Y778,V778,IF(W778=Y778,\"\",Z778)))","v":""},{"$f":"CONCATENATE(AE778,AH778)","v":""}]
[null,null,null,null,null,null,null,null,null,null,null,null,null,null,null,null,null,"#G13",null,null,null,{"$f":"Z771","v":"B"},null,"-",null,{"$f":"V769","v":"F"},null,0,"-",0,"","","","",""]
[null,null,null,null,null,null,null,null,null,null,null,null,null,null,null,null,null,"#G13",null,null,null,{"$f":"Z772","v":"C"},null,"-",null,{"$f":"V770","v":"H"},null,0,"-",0,"","","","",""]
[null,null,null,null,null,null,null,null,null,null,null,null,null,null,null,null,null,"#G13",null,null,null,{"$f":"Z773","v":"E"},null,"-",null,{"$f":"V771","v":"J"},null,0,"-",0,"","","","",""]
[null,null,null,null,null,null,null,null,null,null,null,null,null,null,null,null,null,"#G13",null,null,null,{"$f":"Z774","v":"G"},null,"-",null,{"$f":"V772","v":"L"},null,0,"-",0,"","","","",""]
[null,null,null,null,null,null,null,null,null,null,null,null,null,null,null,null,null,"#G13",null,null,null,{"$f":"Z775","v":"I"},null,"-",null,{"$f":"V773","v":"N"},null,0,"-",0,"","","","",""]
[null,null,null,null,null,null,null,null,null,null,null,null,null,null,null,null,null,"#G13",null,null,null,{"$f":"+V775","v":"K"},null,"-",null,{"$f":"+V774","v":"M"},null,0,"-",0,"","","","",""]
[]
[null,{"$f":"N_Group_15","v":"Group of 15"},null,null,null,null,null,null,null,null,null,null,null,null,null,null,null,null,null,null,null,null,null,null,null,null,null,null,null,null,null,null,null,null,null,null,null,null,{"$f":"B786","v":"Group of 15"}]
[]
[null,{"$f":"N_Tirage","v":"Draw"},"Cla.","Cla1","Part","Cla2",{"$f":"N_Joueurs","v":"Players"},{"$f":"N_RankPoints","v":"Rk Pt."},{"$f":"N_Diff_Part","v":"Part-Diff"},"Pts","J","G","N","P","BP","BC","Diff",null,null,null,null,null,null,null,null,null,null,null,null,null,{"$f":"N_G","v":"W"},{"$f":"N_N","v":"D"},{"$f":"N_N","v":"D"},{"$f":"N_P","v":"L"},"CONCAT","Ref Group",{"$f":"IF(COUNTA(W806:W938)=0,\"\",\"OK\")","v":""},null,null,{"$f":"N_Cla.","v":"Rk"},{"$f":"N_Joueurs","v":"Players"},{"$f":"N_Pts","v":"Pts"},{"$f":"N_J","v":"Pld"},{"$f":"N_G","v":"W"},{"$f":"N_N","v":"D"},{"$f":"N_P","v":"L"},{"$f":"N_BP","v":"F"},{"$f":"N_BC","v":"A"},{"$f":"N_Diff.","v":"SO"}]
[null,1,{"$f":"IF(AK788=\"\",\"\",RANK(F789,F789:F803)*1000+ROW())","v":""},{"$f":"IF(L789=\"\",\"\",CritClassInd1_Points*J789+CritClassInd1_Matches*L789+CritClassInd1_Attaque*O789+CritClassInd1_DiffButs*Q789)","v":""},{"$f":"IF(L789=\"\",\"\",Nb_Diff_Part(D789,D789:D803,G789,G789:G803,AI806:AI938)*CritClassInd_DiffPart+Nb_Goal_Part(D789,D789:D803,G789,G789:G803,V806:Z938)*CritClassInd_GoalPart+Nb_Score_Part(D789,D789:D803,G789,G789:G803,V806:Z938)*CritClassInd_ScorePart)","v":""},{"$f":"IF(L789=\"\",\"\",D789+E789+CritClassInd2_Points*J789+CritClassInd2_Matches*L789+CritClassInd2_Attaque*O789+CritClassInd2_DiffButs*Q789+CritClassInd_Ranking*H789+I789)","v":""},"A",{"$f":"GMFTRANKINGPOINTS(G789,Particular_Category)","v":0},null,{"$f":"IF(AK788=\"\",\"\",(L789*Points_Victoire)+M789*Points_Null)","v":""},{"$f":"IF(L789=\"\",\"\",SUM(L789:N789))","v":""},{"$f":"IF(AK788=\"\",\"\",COUNTIF(AE806:AE938,G789))","v":""},{"$f":"IF(AK788=\"\",\"\",COUNTIF(AF806:AG938,G789))","v":""},{"$f":"IF(AK788=\"\",\"\",COUNTIF(AH806:AH938,G789))","v":""},{"$f":"IF(AK788=\"\",\"\",SUMIF(V806:V938,G789,AB806:AB938)+SUMIF(Z806:Z938,G789,AD806:AD938))","v":""},{"$f":"IF(AK788=\"\",\"\",SUMIF(V806:V938,G789,AD806:AD938)+SUMIF(Z806:Z938,G789,AB806:AB938))","v":""},{"$f":"IF(AK788=\"\",\"\",O789-P789)","v":""},null,null,null,null,null,null,null,null,null,null,null,null,null,null,null,null,null,null,null,{"$f":"IF(AK788=\"\",\"\",SMALL(C789:C803,1))","v":""},null,null,{"$f":"IF(AK788=\"\",\"\",INT(AK789/1000))","v":""},{"$f":"IF(AK788=\"\",\"\",VLOOKUP(AK789,C789:Q803,5,FALSE))","v":""},{"$f":"VLOOKUP(AK789,C789:Q803,8,FALSE)","v":""},{"$f":"VLOOKUP(AK789,C789:Q803,9,FALSE)","v":""},{"$f":"VLOOKUP(AK789,C789:Q803,10,FALSE)","v":""},{"$f":"VLOOKUP(AK789,C789:Q803,11,FALSE)","v":""},{"$f":"VLOOKUP(AK789,C789:Q803,12,FALSE)","v":""},{"$f":"VLOOKUP(AK789,C789:Q803,13,FALSE)","v":""},{"$f":"VLOOKUP(AK789,C789:Q803,14,FALSE)","v":""},{"$f":"VLOOKUP(AK789,C789:Q803,15,FALSE)","v":""}]
[null,2,{"$f":"IF(AK788=\"\",\"\",RANK(F790,F789:F803)*1000+ROW())","v":""},{"$f":"IF(L790=\"\",\"\",CritClassInd1_Points*J790+CritClassInd1_Matches*L790+CritClassInd1_Attaque*O790+CritClassInd1_DiffButs*Q790)","v":""},{"$f":"IF(L790=\"\",\"\",Nb_Diff_Part(D790,D789:D803,G790,G789:G803,AI806:AI938)*CritClassInd_DiffPart+Nb_Goal_Part(D790,D789:D803,G790,G789:G803,V806:Z938)*CritClassInd_GoalPart+Nb_Score_Part(D790,D789:D803,G790,G789:G803,V806:Z938)*CritClassInd_ScorePart)","v":""},{"$f":"IF(L790=\"\",\"\",D790+E790+CritClassInd2_Points*J790+CritClassInd2_Matches*L790+CritClassInd2_Attaque*O790+CritClassInd2_DiffButs*Q790+CritClassInd_Ranking*H790+I790)","v":""},"B",0,null,{"$f":"IF(AK788=\"\",\"\",(L790*Points_Victoire)+M790*Points_Null)","v":""},"",{"$f":"IF(AK788=\"\",\"\",COUNTIF(AE806:AE938,G790))","v":""},{"$f":"IF(AK788=\"\",\"\",COUNTIF(AF806:AG938,G790))","v":""},{"$f":"IF(AK788=\"\",\"\",COUNTIF(AH806:AH938,G790))","v":""},{"$f":"IF(AK788=\"\",\"\",SUMIF(V806:V938,G790,AB806:AB938)+SUMIF(Z806:Z938,G790,AD806:AD938))","v":""},{"$f":"IF(AK788=\"\",\"\",SUMIF(V806:V938,G790,AD806:AD938)+SUMIF(Z806:Z938,G790,AB806:AB938))","v":""},{"$f":"IF(AK788=\"\",\"\",O790-P790)","v":""},null,null,null,null,null,null,null,null,null,null,null,null,null,null,null,null,null,null,null,{"$f":"IF(AK788=\"\",\"\",SMALL(C789:C803,2))","v":""},null,null,{"$f":"IF(AK788=\"\",\"\",INT(AK790/1000))","v":""},{"$f":"IF(AK788=\"\",\"\",VLOOKUP(AK790,C789:Q803,5,FALSE))","v":""},{"$f":"VLOOKUP(AK790,C789:Q803,8,FALSE)","v":""},{"$f":"VLOOKUP(AK790,C789:Q803,9,FALSE)","v":""},{"$f":"VLOOKUP(AK790,C789:Q803,10,FALSE)","v":""},{"$f":"VLOOKUP(AK790,C789:Q803,11,FALSE)","v":""},{"$f":"VLOOKUP(AK790,C789:Q803,12,FALSE)","v":""},{"$f":"VLOOKUP(AK790,C789:Q803,13,FALSE)","v":""},{"$f":"VLOOKUP(AK790,C789:Q803,14,FALSE)","v":""},{"$f":"VLOOKUP(AK790,C789:Q803,15,FALSE)","v":""}]
[null,3,{"$f":"IF(AK788=\"\",\"\",RANK(F791,F789:F803)*1000+ROW())","v":""},"",{"$f":"IF(L791=\"\",\"\",Nb_Diff_Part(D791,D789:D803,G791,G789:G803,AI806:AI938)*CritClassInd_DiffPart+Nb_Goal_Part(D791,D789:D803,G791,G789:G803,V806:Z938)*CritClassInd_GoalPart+Nb_Score_Part(D791,D789:D803,G791,G789:G803,V806:Z938)*CritClassInd_ScorePart)","v":""},"","C",0,null,{"$f":"IF(AK788=\"\",\"\",(L791*Points_Victoire)+M791*Points_Null)","v":""},"",{"$f":"IF(AK788=\"\",\"\",COUNTIF(AE806:AE938,G791))","v":""},{"$f":"IF(AK788=\"\",\"\",COUNTIF(AF806:AG938,G791))","v":""},{"$f":"IF(AK788=\"\",\"\",COUNTIF(AH806:AH938,G791))","v":""},{"$f":"IF(AK788=\"\",\"\",SUMIF(V806:V938,G791,AB806:AB938)+SUMIF(Z806:Z938,G791,AD806:AD938))","v":""},{"$f":"IF(AK788=\"\",\"\",SUMIF(V806:V938,G791,AD806:AD938)+SUMIF(Z806:Z938,G791,AB806:AB938))","v":""},{"$f":"IF(AK788=\"\",\"\",O791-P791)","v":""},null,null,null,null,null,null,null,null,null,null,null,null,null,null,null,null,null,null,null,{"$f":"IF(AK788=\"\",\"\",SMALL(C789:C803,3))","v":""},null,null,{"$f":"IF(AK788=\"\",\"\",INT(AK791/1000))","v":""},{"$f":"IF(AK788=\"\",\"\",VLOOKUP(AK791,C789:Q803,5,FALSE))","v":""},{"$f":"VLOOKUP(AK791,C789:Q803,8,FALSE)","v":""},{"$f":"VLOOKUP(AK791,C789:Q803,9,FALSE)","v":""},{"$f":"VLOOKUP(AK791,C789:Q803,10,FALSE)","v":""},{"$f":"VLOOKUP(AK791,C789:Q803,11,FALSE)","v":""},{"$f":"VLOOKUP(AK791,C789:Q803,12,FALSE)","v":""},{"$f":"VLOOKUP(AK791,C789:Q803,13,FALSE)","v":""},{"$f":"VLOOKUP(AK791,C789:Q803,14,FALSE)","v":""},{"$f":"VLOOKUP(AK791,C789:Q803,15,FALSE)","v":""}]
[null,4,{"$f":"IF(AK788=\"\",\"\",RANK(F792,F789:F803)*1000+ROW())","v":""},"",{"$f":"IF(L792=\"\",\"\",Nb_Diff_Part(D792,D789:D803,G792,G789:G803,AI806:AI938)*CritClassInd_DiffPart+Nb_Goal_Part(D792,D789:D803,G792,G789:G803,V806:Z938)*CritClassInd_GoalPart+Nb_Score_Part(D792,D789:D803,G792,G789:G803,V806:Z938)*CritClassInd_ScorePart)","v":""},"","D",0,null,{"$f":"IF(AK788=\"\",\"\",(L792*Points_Victoire)+M792*Points_Null)","v":""},"",{"$f":"IF(AK788=\"\",\"\",COUNTIF(AE806:AE938,G792))","v":""},{"$f":"IF(AK788=\"\",\"\",COUNTIF(AF806:AG938,G792))","v":""},{"$f":"IF(AK788=\"\",\"\",COUNTIF(AH806:AH938,G792))","v":""},{"$f":"IF(AK788=\"\",\"\",SUMIF(V806:V938,G792,AB806:AB938)+SUMIF(Z806:Z938,G792,AD806:AD938))","v":""},{"$f":"IF(AK788=\"\",\"\",SUMIF(V806:V938,G792,AD806:AD938)+SUMIF(Z806:Z938,G792,AB806:AB938))","v":""},{"$f":"IF(AK788=\"\",\"\",O792-P792)","v":""},null,null,null,null,null,null,null,null,null,null,null,null,null,null,null,null,null,null,null,{"$f":"IF(AK788=\"\",\"\",SMALL(C789:C803,4))","v":""},null,null,{"$f":"IF(AK788=\"\",\"\",INT(AK792/1000))","v":""},{"$f":"IF(AK788=\"\",\"\",VLOOKUP(AK792,C789:Q803,5,FALSE))","v":""},{"$f":"VLOOKUP(AK792,C789:Q803,8,FALSE)","v":""},{"$f":"VLOOKUP(AK792,C789:Q803,9,FALSE)","v":""},{"$f":"VLOOKUP(AK792,C789:Q803,10,FALSE)","v":""},{"$f":"VLOOKUP(AK792,C789:Q803,11,FALSE)","v":""},{"$f":"VLOOKUP(AK792,C789:Q803,12,FALSE)","v":""},{"$f":"VLOOKUP(AK792,C789:Q803,13,FALSE)","v":""},{"$f":"VLOOKUP(AK792,C789:Q803,14,FALSE)","v":""},{"$f":"VLOOKUP(AK792,C789:Q803,15,FALSE)","v":""}]
[null,5,{"$f":"IF(AK788=\"\",\"\",RANK(F793,F789:F803)*1000+ROW())","v":""},"",{"$f":"IF(L793=\"\",\"\",Nb_Diff_Part(D793,D789:D803,G793,G789:G803,AI806:AI938)*CritClassInd_DiffPart+Nb_Goal_Part(D793,D789:D803,G793,G789:G803,V806:Z938)*CritClassInd_GoalPart+Nb_Score_Part(D793,D789:D803,G793,G789:G803,V806:Z938)*CritClassInd_ScorePart)","v":""},"","E",0,null,{"$f":"IF(AK788=\"\",\"\",(L793*Points_Victoire)+M793*Points_Null)","v":""},"",{"$f":"IF(AK788=\"\",\"\",COUNTIF(AE806:AE938,G793))","v":""},{"$f":"IF(AK788=\"\",\"\",COUNTIF(AF806:AG938,G793))","v":""},{"$f":"IF(AK788=\"\",\"\",COUNTIF(AH806:AH938,G793))","v":""},{"$f":"IF(AK788=\"\",\"\",SUMIF(V806:V938,G793,AB806:AB938)+SUMIF(Z806:Z938,G793,AD806:AD938))","v":""},{"$f":"IF(AK788=\"\",\"\",SUMIF(V806:V938,G793,AD806:AD938)+SUMIF(Z806:Z938,G793,AB806:AB938))","v":""},{"$f":"IF(AK788=\"\",\"\",O793-P793)","v":""},null,null,null,null,null,null,null,null,null,null,null,null,null,null,null,null,null,null,null,{"$f":"IF(AK788=\"\",\"\",SMALL(C789:C803,5))","v":""},null,null,{"$f":"IF(AK788=\"\",\"\",INT(AK793/1000))","v":""},{"$f":"IF(AK788=\"\",\"\",VLOOKUP(AK793,C789:Q803,5,FALSE))","v":""},{"$f":"VLOOKUP(AK793,C789:Q803,8,FALSE)","v":""},{"$f":"VLOOKUP(AK793,C789:Q803,9,FALSE)","v":""},{"$f":"VLOOKUP(AK793,C789:Q803,10,FALSE)","v":""},{"$f":"VLOOKUP(AK793,C789:Q803,11,FALSE)","v":""},{"$f":"VLOOKUP(AK793,C789:Q803,12,FALSE)","v":""},{"$f":"VLOOKUP(AK793,C789:Q803,13,FALSE)","v":""},{"$f":"VLOOKUP(AK793,C789:Q803,14,FALSE)","v":""},{"$f":"VLOOKUP(AK793,C789:Q803,15,FALSE)","v":""}]
[null,6,{"$f":"IF(AK788=\"\",\"\",RANK(F794,F789:F803)*1000+ROW())","v":""},"",{"$f":"IF(L794=\"\",\"\",Nb_Diff_Part(D794,D789:D803,G794,G789:G803,AI806:AI938)*CritClassInd_DiffPart+Nb_Goal_Part(D794,D789:D803,G794,G789:G803,V806:Z938)*CritClassInd_GoalPart+Nb_Score_Part(D794,D789:D803,G794,G789:G803,V806:Z938)*CritClassInd_ScorePart)","v":""},"","F",0,null,{"$f":"IF(AK788=\"\",\"\",(L794*Points_Victoire)+M794*Points_Null)","v":""},"",{"$f":"IF(AK788=\"\",\"\",COUNTIF(AE806:AE938,G794))","v":""},{"$f":"IF(AK788=\"\",\"\",COUNTIF(AF806:AG938,G794))","v":""},{"$f":"IF(AK788=\"\",\"\",COUNTIF(AH806:AH938,G794))","v":""},{"$f":"IF(AK788=\"\",\"\",SUMIF(V806:V938,G794,AB806:AB938)+SUMIF(Z806:Z938,G794,AD806:AD938))","v":""},{"$f":"IF(AK788=\"\",\"\",SUMIF(V806:V938,G794,AD806:AD938)+SUMIF(Z806:Z938,G794,AB806:AB938))","v":""},{"$f":"IF(AK788=\"\",\"\",O794-P794)","v":""},null,null,null,null,null,null,null,null,null,null,null,null,null,null,null,null,null,null,null,{"$f":"IF(AK788=\"\",\"\",SMALL(C789:C803,6))","v":""},null,null,{"$f":"IF(AK788=\"\",\"\",INT(AK794/1000))","v":""},{"$f":"IF(AK788=\"\",\"\",VLOOKUP(AK794,C789:Q803,5,FALSE))","v":""},{"$f":"VLOOKUP(AK794,C789:Q803,8,FALSE)","v":""},{"$f":"VLOOKUP(AK794,C789:Q803,9,FALSE)","v":""},{"$f":"VLOOKUP(AK794,C789:Q803,10,FALSE)","v":""},{"$f":"VLOOKUP(AK794,C789:Q803,11,FALSE)","v":""},{"$f":"VLOOKUP(AK794,C789:Q803,12,FALSE)","v":""},{"$f":"VLOOKUP(AK794,C789:Q803,13,FALSE)","v":""},{"$f":"VLOOKUP(AK794,C789:Q803,14,FALSE)","v":""},{"$f":"VLOOKUP(AK794,C789:Q803,15,FALSE)","v":""}]
[null,7,{"$f":"IF(AK788=\"\",\"\",RANK(F795,F789:F803)*1000+ROW())","v":""},"",{"$f":"IF(L795=\"\",\"\",Nb_Diff_Part(D795,D789:D803,G795,G789:G803,AI806:AI938)*CritClassInd_DiffPart+Nb_Goal_Part(D795,D789:D803,G795,G789:G803,V806:Z938)*CritClassInd_GoalPart+Nb_Score_Part(D795,D789:D803,G795,G789:G803,V806:Z938)*CritClassInd_ScorePart)","v":""},"","G",0,null,{"$f":"IF(AK788=\"\",\"\",(L795*Points_Victoire)+M795*Points_Null)","v":""},"",{"$f":"IF(AK788=\"\",\"\",COUNTIF(AE806:AE938,G795))","v":""},{"$f":"IF(AK788=\"\",\"\",COUNTIF(AF806:AG938,G795))","v":""},{"$f":"IF(AK788=\"\",\"\",COUNTIF(AH806:AH938,G795))","v":""},{"$f":"IF(AK788=\"\",\"\",SUMIF(V806:V938,G795,AB806:AB938)+SUMIF(Z806:Z938,G795,AD806:AD938))","v":""},{"$f":"IF(AK788=\"\",\"\",SUMIF(V806:V938,G795,AD806:AD938)+SUMIF(Z806:Z938,G795,AB806:AB938))","v":""},{"$f":"IF(AK788=\"\",\"\",O795-P795)","v":""},null,null,null,null,null,null,null,null,null,null,null,null,null,null,null,null,null,null,null,{"$f":"IF(AK788=\"\",\"\",SMALL(C789:C803,7))","v":""},null,null,{"$f":"IF(AK788=\"\",\"\",INT(AK795/1000))","v":""},{"$f":"IF(AK788=\"\",\"\",VLOOKUP(AK795,C789:Q803,5,FALSE))","v":""},{"$f":"VLOOKUP(AK795,C789:Q803,8,FALSE)","v":""},{"$f":"VLOOKUP(AK795,C789:Q803,9,FALSE)","v":""},{"$f":"VLOOKUP(AK795,C789:Q803,10,FALSE)","v":""},{"$f":"VLOOKUP(AK795,C789:Q803,11,FALSE)","v":""},{"$f":"VLOOKUP(AK795,C789:Q803,12,FALSE)","v":""},{"$f":"VLOOKUP(AK795,C789:Q803,13,FALSE)","v":""},{"$f":"VLOOKUP(AK795,C789:Q803,14,FALSE)","v":""},{"$f":"VLOOKUP(AK795,C789:Q803,15,FALSE)","v":""}]
[null,8,{"$f":"IF(AK788=\"\",\"\",RANK(F796,F789:F803)*1000+ROW())","v":""},"",{"$f":"IF(L796=\"\",\"\",Nb_Diff_Part(D796,D789:D803,G796,G789:G803,AI806:AI938)*CritClassInd_DiffPart+Nb_Goal_Part(D796,D789:D803,G796,G789:G803,V806:Z938)*CritClassInd_GoalPart+Nb_Score_Part(D796,D789:D803,G796,G789:G803,V806:Z938)*CritClassInd_ScorePart)","v":""},"","H",0,null,{"$f":"IF(AK788=\"\",\"\",(L796*Points_Victoire)+M796*Points_Null)","v":""},"",{"$f":"IF(AK788=\"\",\"\",COUNTIF(AE806:AE938,G796))","v":""},{"$f":"IF(AK788=\"\",\"\",COUNTIF(AF806:AG938,G796))","v":""},{"$f":"IF(AK788=\"\",\"\",COUNTIF(AH806:AH938,G796))","v":""},{"$f":"IF(AK788=\"\",\"\",SUMIF(V806:V938,G796,AB806:AB938)+SUMIF(Z806:Z938,G796,AD806:AD938))","v":""},{"$f":"IF(AK788=\"\",\"\",SUMIF(V806:V938,G796,AD806:AD938)+SUMIF(Z806:Z938,G796,AB806:AB938))","v":""},{"$f":"IF(AK788=\"\",\"\",O796-P796)","v":""},null,null,null,null,null,null,null,null,null,null,null,null,null,null,null,null,null,null,null,{"$f":"IF(AK788=\"\",\"\",SMALL(C789:C803,8))","v":""},null,null,{"$f":"IF(AK788=\"\",\"\",INT(AK796/1000))","v":""},{"$f":"IF(AK788=\"\",\"\",VLOOKUP(AK796,C789:Q803,5,FALSE))","v":""},{"$f":"VLOOKUP(AK796,C789:Q803,8,FALSE)","v":""},{"$f":"VLOOKUP(AK796,C789:Q803,9,FALSE)","v":""},{"$f":"VLOOKUP(AK796,C789:Q803,10,FALSE)","v":""},{"$f":"VLOOKUP(AK796,C789:Q803,11,FALSE)","v":""},{"$f":"VLOOKUP(AK796,C789:Q803,12,FALSE)","v":""},{"$f":"VLOOKUP(AK796,C789:Q803,13,FALSE)","v":""},{"$f":"VLOOKUP(AK796,C789:Q803,14,FALSE)","v":""},{"$f":"VLOOKUP(AK796,C789:Q803,15,FALSE)","v":""}]
[null,9,{"$f":"IF(AK788=\"\",\"\",RANK(F797,F789:F803)*1000+ROW())","v":""},"",{"$f":"IF(L797=\"\",\"\",Nb_Diff_Part(D797,D789:D803,G797,G789:G803,AI806:AI938)*CritClassInd_DiffPart+Nb_Goal_Part(D797,D789:D803,G797,G789:G803,V806:Z938)*CritClassInd_GoalPart+Nb_Score_Part(D797,D789:D803,G797,G789:G803,V806:Z938)*CritClassInd_ScorePart)","v":""},"","I",0,null,{"$f":"IF(AK788=\"\",\"\",(L797*Points_Victoire)+M797*Points_Null)","v":""},"",{"$f":"IF(AK788=\"\",\"\",COUNTIF(AE806:AE938,G797))","v":""},{"$f":"IF(AK788=\"\",\"\",COUNTIF(AF806:AG938,G797))","v":""},{"$f":"IF(AK788=\"\",\"\",COUNTIF(AH806:AH938,G797))","v":""},{"$f":"IF(AK788=\"\",\"\",SUMIF(V806:V938,G797,AB806:AB938)+SUMIF(Z806:Z938,G797,AD806:AD938))","v":""},{"$f":"IF(AK788=\"\",\"\",SUMIF(V806:V938,G797,AD806:AD938)+SUMIF(Z806:Z938,G797,AB806:AB938))","v":""},{"$f":"IF(AK788=\"\",\"\",O797-P797)","v":""},null,null,null,null,null,null,null,null,null,null,null,null,null,null,null,null,null,null,null,{"$f":"IF(AK788=\"\",\"\",SMALL(C789:C803,9))","v":""},null,null,{"$f":"IF(AK788=\"\",\"\",INT(AK797/1000))","v":""},{"$f":"IF(AK788=\"\",\"\",VLOOKUP(AK797,C789:Q803,5,FALSE))","v":""},{"$f":"VLOOKUP(AK797,C789:Q803,8,FALSE)","v":""},{"$f":"VLOOKUP(AK797,C789:Q803,9,FALSE)","v":""},{"$f":"VLOOKUP(AK797,C789:Q803,10,FALSE)","v":""},{"$f":"VLOOKUP(AK797,C789:Q803,11,FALSE)","v":""},{"$f":"VLOOKUP(AK797,C789:Q803,12,FALSE)","v":""},{"$f":"VLOOKUP(AK797,C789:Q803,13,FALSE)","v":""},{"$f":"VLOOKUP(AK797,C789:Q803,14,FALSE)","v":""},{"$f":"VLOOKUP(AK797,C789:Q803,15,FALSE)","v":""}]
[null,10,{"$f":"IF(AK788=\"\",\"\",RANK(F798,F789:F803)*1000+ROW())","v":""},"",{"$f":"IF(L798=\"\",\"\",Nb_Diff_Part(D798,D789:D803,G798,G789:G803,AI806:AI938)*CritClassInd_DiffPart+Nb_Goal_Part(D798,D789:D803,G798,G789:G803,V806:Z938)*CritClassInd_GoalPart+Nb_Score_Part(D798,D789:D803,G798,G789:G803,V806:Z938)*CritClassInd_ScorePart)","v":""},"","J",0,null,{"$f":"IF(AK788=\"\",\"\",(L798*Points_Victoire)+M798*Points_Null)","v":""},"",{"$f":"IF(AK788=\"\",\"\",COUNTIF(AE806:AE938,G798))","v":""},{"$f":"IF(AK788=\"\",\"\",COUNTIF(AF806:AG938,G798))","v":""},{"$f":"IF(AK788=\"\",\"\",COUNTIF(AH806:AH938,G798))","v":""},{"$f":"IF(AK788=\"\",\"\",SUMIF(V806:V938,G798,AB806:AB938)+SUMIF(Z806:Z938,G798,AD806:AD938))","v":""},{"$f":"IF(AK788=\"\",\"\",SUMIF(V806:V938,G798,AD806:AD938)+SUMIF(Z806:Z938,G798,AB806:AB938))","v":""},{"$f":"IF(AK788=\"\",\"\",O798-P798)","v":""},null,null,null,null,null,null,null,null,null,null,null,null,null,null,null,null,null,null,null,{"$f":"IF(AK788=\"\",\"\",SMALL(C789:C803,10))","v":""},null,null,{"$f":"IF(AK788=\"\",\"\",INT(AK798/1000))","v":""},{"$f":"IF(AK788=\"\",\"\",VLOOKUP(AK798,C789:Q803,5,FALSE))","v":""},{"$f":"VLOOKUP(AK798,C789:Q803,8,FALSE)","v":""},{"$f":"VLOOKUP(AK798,C789:Q803,9,FALSE)","v":""},{"$f":"VLOOKUP(AK798,C789:Q803,10,FALSE)","v":""},{"$f":"VLOOKUP(AK798,C789:Q803,11,FALSE)","v":""},{"$f":"VLOOKUP(AK798,C789:Q803,12,FALSE)","v":""},{"$f":"VLOOKUP(AK798,C789:Q803,13,FALSE)","v":""},{"$f":"VLOOKUP(AK798,C789:Q803,14,FALSE)","v":""},{"$f":"VLOOKUP(AK798,C789:Q803,15,FALSE)","v":""}]
[null,11,{"$f":"IF(AK788=\"\",\"\",RANK(F799,F789:F803)*1000+ROW())","v":""},"",{"$f":"IF(L799=\"\",\"\",Nb_Diff_Part(D799,D789:D803,G799,G789:G803,AI806:AI938)*CritClassInd_DiffPart+Nb_Goal_Part(D799,D789:D803,G799,G789:G803,V806:Z938)*CritClassInd_GoalPart+Nb_Score_Part(D799,D789:D803,G799,G789:G803,V806:Z938)*CritClassInd_ScorePart)","v":""},"","K",0,null,{"$f":"IF(AK788=\"\",\"\",(L799*Points_Victoire)+M799*Points_Null)","v":""},"",{"$f":"IF(AK788=\"\",\"\",COUNTIF(AE806:AE938,G799))","v":""},{"$f":"IF(AK788=\"\",\"\",COUNTIF(AF806:AG938,G799))","v":""},{"$f":"IF(AK788=\"\",\"\",COUNTIF(AH806:AH938,G799))","v":""},{"$f":"IF(AK788=\"\",\"\",SUMIF(V806:V938,G799,AB806:AB938)+SUMIF(Z806:Z938,G799,AD806:AD938))","v":""},{"$f":"IF(AK788=\"\",\"\",SUMIF(V806:V938,G799,AD806:AD938)+SUMIF(Z806:Z938,G799,AB806:AB938))","v":""},{"$f":"IF(AK788=\"\",\"\",O799-P799)","v":""},null,null,null,null,null,null,null,null,null,null,null,null,null,null,null,null,null,null,null,{"$f":"IF(AK788=\"\",\"\",SMALL(C789:C803,11))","v":""},null,null,{"$f":"IF(AK788=\"\",\"\",INT(AK799/1000))","v":""},{"$f":"IF(AK788=\"\",\"\",VLOOKUP(AK799,C789:Q803,5,FALSE))","v":""},{"$f":"VLOOKUP(AK799,C789:Q803,8,FALSE)","v":""},{"$f":"VLOOKUP(AK799,C789:Q803,9,FALSE)","v":""},{"$f":"VLOOKUP(AK799,C789:Q803,10,FALSE)","v":""},{"$f":"VLOOKUP(AK799,C789:Q803,11,FALSE)","v":""},{"$f":"VLOOKUP(AK799,C789:Q803,12,FALSE)","v":""},{"$f":"VLOOKUP(AK799,C789:Q803,13,FALSE)","v":""},{"$f":"VLOOKUP(AK799,C789:Q803,14,FALSE)","v":""},{"$f":"VLOOKUP(AK799,C789:Q803,15,FALSE)","v":""}]
[null,12,{"$f":"IF(AK788=\"\",\"\",RANK(F800,F789:F803)*1000+ROW())","v":""},"",{"$f":"IF(L800=\"\",\"\",Nb_Diff_Part(D800,D789:D803,G800,G789:G803,AI806:AI938)*CritClassInd_DiffPart+Nb_Goal_Part(D800,D789:D803,G800,G789:G803,V806:Z938)*CritClassInd_GoalPart+Nb_Score_Part(D800,D789:D803,G800,G789:G803,V806:Z938)*CritClassInd_ScorePart)","v":""},"","L",0,null,{"$f":"IF(AK788=\"\",\"\",(L800*Points_Victoire)+M800*Points_Null)","v":""},"",{"$f":"IF(AK788=\"\",\"\",COUNTIF(AE806:AE938,G800))","v":""},{"$f":"IF(AK788=\"\",\"\",COUNTIF(AF806:AG938,G800))","v":""},{"$f":"IF(AK788=\"\",\"\",COUNTIF(AH806:AH938,G800))","v":""},{"$f":"IF(AK788=\"\",\"\",SUMIF(V806:V938,G800,AB806:AB938)+SUMIF(Z806:Z938,G800,AD806:AD938))","v":""},{"$f":"IF(AK788=\"\",\"\",SUMIF(V806:V938,G800,AD806:AD938)+SUMIF(Z806:Z938,G800,AB806:AB938))","v":""},{"$f":"IF(AK788=\"\",\"\",O800-P800)","v":""},null,null,null,null,null,null,null,null,null,null,null,null,null,null,null,null,null,null,null,{"$f":"IF(AK788=\"\",\"\",SMALL(C789:C803,12))","v":""},null,null,{"$f":"IF(AK788=\"\",\"\",INT(AK800/1000))","v":""},{"$f":"IF(AK788=\"\",\"\",VLOOKUP(AK800,C789:Q803,5,FALSE))","v":""},{"$f":"VLOOKUP(AK800,C789:Q803,8,FALSE)","v":""},{"$f":"VLOOKUP(AK800,C789:Q803,9,FALSE)","v":""},{"$f":"VLOOKUP(AK800,C789:Q803,10,FALSE)","v":""},{"$f":"VLOOKUP(AK800,C789:Q803,11,FALSE)","v":""},{"$f":"VLOOKUP(AK800,C789:Q803,12,FALSE)","v":""},{"$f":"VLOOKUP(AK800,C789:Q803,13,FALSE)","v":""},{"$f":"VLOOKUP(AK800,C789:Q803,14,FALSE)","v":""},{"$f":"VLOOKUP(AK800,C789:Q803,15,FALSE)","v":""}]
[null,13,{"$f":"IF(AK788=\"\",\"\",RANK(F801,F789:F803)*1000+ROW())","v":""},"",{"$f":"IF(L801=\"\",\"\",Nb_Diff_Part(D801,D789:D803,G801,G789:G803,AI806:AI938)*CritClassInd_DiffPart+Nb_Goal_Part(D801,D789:D803,G801,G789:G803,V806:Z938)*CritClassInd_GoalPart+Nb_Score_Part(D801,D789:D803,G801,G789:G803,V806:Z938)*CritClassInd_ScorePart)","v":""},"","M",0,null,{"$f":"IF(AK788=\"\",\"\",(L801*Points_Victoire)+M801*Points_Null)","v":""},"",{"$f":"IF(AK788=\"\",\"\",COUNTIF(AE806:AE938,G801))","v":""},{"$f":"IF(AK788=\"\",\"\",COUNTIF(AF806:AG938,G801))","v":""},{"$f":"IF(AK788=\"\",\"\",COUNTIF(AH806:AH938,G801))","v":""},{"$f":"IF(AK788=\"\",\"\",SUMIF(V806:V938,G801,AB806:AB938)+SUMIF(Z806:Z938,G801,AD806:AD938))","v":""},{"$f":"IF(AK788=\"\",\"\",SUMIF(V806:V938,G801,AD806:AD938)+SUMIF(Z806:Z938,G801,AB806:AB938))","v":""},{"$f":"IF(AK788=\"\",\"\",O801-P801)","v":""},null,null,null,null,null,null,null,null,null,null,null,null,null,null,null,null,null,null,null,{"$f":"IF(AK788=\"\",\"\",SMALL(C789:C803,13))","v":""},null,null,{"$f":"IF(AK788=\"\",\"\",INT(AK801/1000))","v":""},{"$f":"IF(AK788=\"\",\"\",VLOOKUP(AK801,C789:Q803,5,FALSE))","v":""},{"$f":"VLOOKUP(AK801,C789:Q803,8,FALSE)","v":""},{"$f":"VLOOKUP(AK801,C789:Q803,9,FALSE)","v":""},{"$f":"VLOOKUP(AK801,C789:Q803,10,FALSE)","v":""},{"$f":"VLOOKUP(AK801,C789:Q803,11,FALSE)","v":""},{"$f":"VLOOKUP(AK801,C789:Q803,12,FALSE)","v":""},{"$f":"VLOOKUP(AK801,C789:Q803,13,FALSE)","v":""},{"$f":"VLOOKUP(AK801,C789:Q803,14,FALSE)","v":""},{"$f":"VLOOKUP(AK801,C789:Q803,15,FALSE)","v":""}]
[null,14,{"$f":"IF(AK788=\"\",\"\",RANK(F802,F789:F803)*1000+ROW())","v":""},"",{"$f":"IF(L802=\"\",\"\",Nb_Diff_Part(D802,D789:D803,G802,G789:G803,AI806:AI938)*CritClassInd_DiffPart+Nb_Goal_Part(D802,D789:D803,G802,G789:G803,V806:Z938)*CritClassInd_GoalPart+Nb_Score_Part(D802,D789:D803,G802,G789:G803,V806:Z938)*CritClassInd_ScorePart)","v":""},"","N",0,null,{"$f":"IF(AK788=\"\",\"\",(L802*Points_Victoire)+M802*Points_Null)","v":""},"",{"$f":"IF(AK788=\"\",\"\",COUNTIF(AE806:AE938,G802))","v":""},{"$f":"IF(AK788=\"\",\"\",COUNTIF(AF806:AG938,G802))","v":""},{"$f":"IF(AK788=\"\",\"\",COUNTIF(AH806:AH938,G802))","v":""},{"$f":"IF(AK788=\"\",\"\",SUMIF(V806:V938,G802,AB806:AB938)+SUMIF(Z806:Z938,G802,AD806:AD938))","v":""},{"$f":"IF(AK788=\"\",\"\",SUMIF(V806:V938,G802,AD806:AD938)+SUMIF(Z806:Z938,G802,AB806:AB938))","v":""},{"$f":"IF(AK788=\"\",\"\",O802-P802)","v":""},null,null,null,null,null,null,null,null,null,null,null,null,null,null,null,null,null,null,null,{"$f":"IF(AK788=\"\",\"\",SMALL(C789:C803,14))","v":""},null,null,{"$f":"IF(AK788=\"\",\"\",INT(AK802/1000))","v":""},{"$f":"IF(AK788=\"\",\"\",VLOOKUP(AK802,C789:Q803,5,FALSE))","v":""},{"$f":"VLOOKUP(AK802,C789:Q803,8,FALSE)","v":""},{"$f":"VLOOKUP(AK802,C789:Q803,9,FALSE)","v":""},{"$f":"VLOOKUP(AK802,C789:Q803,10,FALSE)","v":""},{"$f":"VLOOKUP(AK802,C789:Q803,11,FALSE)","v":""},{"$f":"VLOOKUP(AK802,C789:Q803,12,FALSE)","v":""},{"$f":"VLOOKUP(AK802,C789:Q803,13,FALSE)","v":""},{"$f":"VLOOKUP(AK802,C789:Q803,14,FALSE)","v":""},{"$f":"VLOOKUP(AK802,C789:Q803,15,FALSE)","v":""}]
[null,15,{"$f":"IF(AK788=\"\",\"\",RANK(F803,F789:F803)*1000+ROW())","v":""},"",{"$f":"IF(L803=\"\",\"\",Nb_Diff_Part(D803,D789:D803,G803,G789:G803,AI806:AI938)*CritClassInd_DiffPart+Nb_Goal_Part(D803,D789:D803,G803,G789:G803,V806:Z938)*CritClassInd_GoalPart+Nb_Score_Part(D803,D789:D803,G803,G789:G803,V806:Z938)*CritClassInd_ScorePart)","v":""},"","O",0,null,{"$f":"IF(AK788=\"\",\"\",(L803*Points_Victoire)+M803*Points_Null)","v":""},"",{"$f":"IF(AK788=\"\",\"\",COUNTIF(AE806:AE938,G803))","v":""},{"$f":"IF(AK788=\"\",\"\",COUNTIF(AF806:AG938,G803))","v":""},{"$f":"IF(AK788=\"\",\"\",COUNTIF(AH806:AH938,G803))","v":""},{"$f":"IF(AK788=\"\",\"\",SUMIF(V806:V938,G803,AB806:AB938)+SUMIF(Z806:Z938,G803,AD806:AD938))","v":""},{"$f":"IF(AK788=\"\",\"\",SUMIF(V806:V938,G803,AD806:AD938)+SUMIF(Z806:Z938,G803,AB806:AB938))","v":""},{"$f":"IF(AK788=\"\",\"\",O803-P803)","v":""},null,null,null,null,null,null,null,null,null,null,null,null,null,null,null,null,null,null,null,{"$f":"IF(AK788=\"\",\"\",SMALL(C789:C803,15))","v":""},null,null,{"$f":"IF(AK788=\"\",\"\",INT(AK803/1000))","v":""},{"$f":"IF(AK788=\"\",\"\",VLOOKUP(AK803,C789:Q803,5,FALSE))","v":""},{"$f":"VLOOKUP(AK803,C789:Q803,8,FALSE)","v":""},{"$f":"VLOOKUP(AK803,C789:Q803,9,FALSE)","v":""},{"$f":"VLOOKUP(AK803,C789:Q803,10,FALSE)","v":""},{"$f":"VLOOKUP(AK803,C789:Q803,11,FALSE)","v":""},{"$f":"VLOOKUP(AK803,C789:Q803,12,FALSE)","v":""},{"$f":"VLOOKUP(AK803,C789:Q803,13,FALSE)","v":""},{"$f":"VLOOKUP(AK803,C789:Q803,14,FALSE)","v":""},{"$f":"VLOOKUP(AK803,C789:Q803,15,FALSE)","v":""}]
[null,null,null,null,null,null,null,null,null,null,null,null,null,null,null,null,null,null,1,null,null,null,null,null,null,null,null,{"$f":"IF(MaxScore,N_MaxScore,\"\")","v":"Max Score"}]
[null,null,null,null,null,null,null,null,null,null,null,null,null,null,null,null,null,null,{"$f":"N_Heure","v":"Time"},{"$f":"N_Table","v":"Table"},{"$f":"N_Arbitre","v":"Referee"},{"$f":"N_Matches","v":"Matches"}]
[null,null,null,null,null,null,null,null,null,null,null,null,null,null,null,null,null,"#G1",null,null,null,{"$f":"IF(G789=\"\",\"\",G789)","v":"A"},null,"-",null,{"$f":"IF(G790=\"\",\"\",G790)","v":"B"},null,{"$f":"IF(MaxScore,MaxGoals(W806,Y806,MaxGoalsValue),IF(W806=\"\",\"\",W806))","v":0},{"$f":"IF(MaxScore,\"-\",IF(W806=\"\",\"\",\"-\"))","v":"-"},{"$f":"IF(MaxScore,MaxGoals(Y806,W806,MaxGoalsValue),IF(Y806=\"\",\"\",Y806))","v":0},{"$f":"IF(W806=\"\",\"\",IF(W806>Y806,V806,IF(W806=Y806,\"\",Z806)))","v":""},{"$f":"IF(W806=\"\",\"\",IF(W806=Y806,V806,\"\"))","v":""},{"$f":"IF(W806=\"\",\"\",IF(W806=Y806,Z806,\"\"))","v":""},{"$f":"IF(W806=\"\",\"\",IF(W806<Y806,V806,IF(W806=Y806,\"\",Z806)))","v":""},{"$f":"CONCATENATE(AE806,AH806)","v":""}]
[null,null,null,null,null,null,null,null,null,null,null,null,null,null,null,null,null,"#G1",null,null,null,{"$f":"IF(G791=\"\",\"\",G791)","v":"C"},null,"-",null,{"$f":"IF(G792=\"\",\"\",G792)","v":"D"},null,0,"-",0,"","","","",""]
[null,null,null,null,null,null,null,null,null,null,null,null,null,null,null,null,null,"#G1",null,null,null,{"$f":"IF(G793=\"\",\"\",G793)","v":"E"},null,"-",null,{"$f":"IF(G794=\"\",\"\",G794)","v":"F"},null,0,"-",0,"","","","",""]
[null,null,null,null,null,null,null,null,null,null,null,null,null,null,null,null,null,"#G1",null,null,null,{"$f":"IF(G795=\"\",\"\",G795)","v":"G"},null,"-",null,{"$f":"IF(G796=\"\",\"\",G796)","v":"H"},null,0,"-",0,"","","","",""]
[null,null,null,null,null,null,null,null,null,null,null,null,null,null,null,null,null,"#G1",null,null,null,{"$f":"IF(G797=\"\",\"\",G797)","v":"I"},null,"-",null,{"$f":"IF(G798=\"\",\"\",G798)","v":"J"},null,0,"-",0,"","","","",""]
[null,null,null,null,null,null,null,null,null,null,null,null,null,null,null,null,null,"#G1",null,null,null,{"$f":"IF(G799=\"\",\"\",G799)","v":"K"},null,"-",null,{"$f":"IF(G800=\"\",\"\",G800)","v":"L"},null,0,"-",0,"","","","",""]
[null,null,null,null,null,null,null,null,null,null,null,null,null,null,null,null,null,"#G1",null,null,null,{"$f":"IF(G801=\"\",\"\",G801)","v":"M"},null,"-",null,{"$f":"IF(G802=\"\",\"\",G802)","v":"N"},null,0,"-",0,"","","","",""]
[null,null,null,null,null,null,null,null,null,null,null,null,null,null,null,null,null,null,{"$f":"S804+1","v":2}]
[null,null,null,null,null,null,null,null,null,null,null,null,null,null,null,null,null,null,{"$f":"N_Heure","v":"Time"},{"$f":"N_Table","v":"Table"},{"$f":"N_Arbitre","v":"Referee"},{"$f":"N_Matches","v":"Matches"}]
[null,null,null,null,null,null,null,null,null,null,null,null,null,null,null,null,null,"#G2",null,null,null,{"$f":"V807","v":"C"},null,"-",null,{"$f":"V806","v":"A"},null,{"$f":"IF(MaxScore,MaxGoals(W815,Y815,MaxGoalsValue),IF(W815=\"\",\"\",W815))","v":0},{"$f":"IF(MaxScore,\"-\",IF(W815=\"\",\"\",\"-\"))","v":"-"},{"$f":"IF(MaxScore,MaxGoals(Y815,W815,MaxGoalsValue),IF(Y815=\"\",\"\",Y815))","v":0},{"$f":"IF(W815=\"\",\"\",IF(W815>Y815,V815,IF(W815=Y815,\"\",Z815)))","v":""},{"$f":"IF(W815=\"\",\"\",IF(W815=Y815,V815,\"\"))","v":""},{"$f":"IF(W815=\"\",\"\",IF(W815=Y815,Z815,\"\"))","v":""},{"$f":"IF(W815=\"\",\"\",IF(W815<Y815,V815,IF(W815=Y815,\"\",Z815)))","v":""},{"$f":"CONCATENATE(AE815,AH815)","v":""}]
[null,null,null,null,null,null,null,null,null,null,null,null,null,null,null,null,null,"#G2",null,null,null,{"$f":"Z806","v":"B"},null,"-",null,{"$f":"V808","v":"E"},null,0,"-",0,"","","","",""]
[null,null,null,null,null,null,null,null,null,null,null,null,null,null,null,null,null,"#G2",null,null,null,"D",null,"-",null,{"$f":"V809","v":"G"},null,0,"-",0,"","","","",""]
[null,null,null,null,null,null,null,null,null,null,null,null,null,null,null,null,null,"#G2",null,null,null,"F",null,"-",null,{"$f":"V810","v":"I"},null,0,"-",0,"","","","",""]
[null,null,null,null,null,null,null,null,null,null,null,null,null,null,null,null,null,"#G2",null,null,null,"H",null,"-",null,{"$f":"V811","v":"K"},null,0,"-",0,"","","","",""]
[null,null,null,null,null,null,null,null,null,null,null,null,null,null,null,null,null,"#G2",null,null,null,"J",null,"-",null,{"$f":"V812","v":"M"},null,0,"-",0,"","","","",""]
[null,null,null,null,null,null,null,null,null,null,null,null,null,null,null,null,null,"#G2",null,null,null,"L",null,"-",null,{"$f":"G803","v":"O"},null,0,"-",0,"","","","",""]
[null,null,null,null,null,null,null,null,null,null,null,null,null,null,null,null,null,null,{"$f":"S813+1","v":3}]
[null,null,null,null,null,null,null,null,null,null,null,null,null,null,null,null,null,null,{"$f":"N_Heure","v":"Time"},{"$f":"N_Table","v":"Table"},{"$f":"N_Arbitre","v":"Referee"},{"$f":"N_Matches","v":"Matches"}]
[null,null,null,null,null,null,null,null,null,null,null,null,null,null,null,null,null,"#G3",null,null,null,{"$f":"Z815","v":"A"},null,"-",null,{"$f":"Z816","v":"E"},null,{"$f":"IF(MaxScore,MaxGoals(W824,Y824,MaxGoalsValue),IF(W824=\"\",\"\",W824))","v":0},{"$f":"IF(MaxScore,\"-\",IF(W824=\"\",\"\",\"-\"))","v":"-"},{"$f":"IF(MaxScore,MaxGoals(Y824,W824,MaxGoalsValue),IF(Y824=\"\",\"\",Y824))","v":0},{"$f":"IF(W824=\"\",\"\",IF(W824>Y824,V824,IF(W824=Y824,\"\",Z824)))","v":""},{"$f":"IF(W824=\"\",\"\",IF(W824=Y824,V824,\"\"))","v":""},{"$f":"IF(W824=\"\",\"\",IF(W824=Y824,Z824,\"\"))","v":""},{"$f":"IF(W824=\"\",\"\",IF(W824<Y824,V824,IF(W824=Y824,\"\",Z824)))","v":""},{"$f":"CONCATENATE(AE824,AH824)","v":""}]
[null,null,null,null,null,null,null,null,null,null,null,null,null,null,null,null,null,"#G3",null,null,null,{"$f":"Z817","v":"G"},null,"-",null,{"$f":"V815","v":"C"},null,0,"-",0,"","","","",""]
[null,null,null,null,null,null,null,null,null,null,null,null,null,null,null,null,null,"#G3",null,null,null,{"$f":"Z818","v":"I"},null,"-",null,{"$f":"V816","v":"B"},null,0,"-",0,"","","","",""]
[null,null,null,null,null,null,null,null,null,null,null,null,null,null,null,null,null,"#G3",null,null,null,{"$f":"Z819","v":"K"},null,"-",null,{"$f":"V817","v":"D"},null,0,"-",0,"","","","",""]
[null,null,null,null,null,null,null,null,null,null,null,null,null,null,null,null,null,"#G3",null,null,null,{"$f":"Z820","v":"M"},null,"-",null,{"$f":"V818","v":"F"},null,0,"-",0,"","","","",""]
[null,null,null,null,null,null,null,null,null,null,null,null,null,null,null,null,null,"#G3",null,null,null,{"$f":"Z821","v":"O"},null,"-",null,{"$f":"V819","v":"H"},null,0,"-",0,"","","","",""]
[null,null,null,null,null,null,null,null,null,null,null,null,null,null,null,null,null,"#G3",null,null,null,{"$f":"Z812","v":"N"},null,"-",null,{"$f":"V821","v":"L"},null,0,"-",0,"","","","",""]
[null,null,null,null,null,null,null,null,null,null,null,null,null,null,null,null,null,null,{"$f":"S822+1","v":4}]
[null,null,null,null,null,null,null,null,null,null,null,null,null,null,null,null,null,null,{"$f":"N_Heure","v":"Time"},{"$f":"N_Table","v":"Table"},{"$f":"N_Arbitre","v":"Referee"},{"$f":"N_Matches","v":"Matches"}]
[null,null,null,null,null,null,null,null,null,null,null,null,null,null,null,null,null,"#G4",null,null,null,{"$f":"V825","v":"G"},null,"-",null,{"$f":"V824","v":"A"},null,{"$f":"IF(MaxScore,MaxGoals(W833,Y833,MaxGoalsValue),IF(W833=\"\",\"\",W833))","v":0},{"$f":"IF(MaxScore,\"-\",IF(W833=\"\",\"\",\"-\"))","v":"-"},{"$f":"IF(MaxScore,MaxGoals(Y833,W833,MaxGoalsValue),IF(Y833=\"\",\"\",Y833))","v":0},{"$f":"IF(W833=\"\",\"\",IF(W833>Y833,V833,IF(W833=Y833,\"\",Z833)))","v":""},{"$f":"IF(W833=\"\",\"\",IF(W833=Y833,V833,\"\"))","v":""},{"$f":"IF(W833=\"\",\"\",IF(W833=Y833,Z833,\"\"))","v":""},{"$f":"IF(W833=\"\",\"\",IF(W833<Y833,V833,IF(W833=Y833,\"\",Z833)))","v":""},{"$f":"CONCATENATE(AE833,AH833)","v":""}]
[null,null,null,null,null,null,null,null,null,null,null,null,null,null,null,null,null,"#G4",null,null,null,{"$f":"Z824","v":"E"},null,"-",null,{"$f":"V826","v":"I"},null,0,"-",0,"","","","",""]
[null,null,null,null,null,null,null,null,null,null,null,null,null,null,null,null,null,"#G4",null,null,null,{"$f":"Z825","v":"C"},null,"-",null,{"$f":"V827","v":"K"},null,0,"-",0,"","","","",""]
[null,null,null,null,null,null,null,null,null,null,null,null,null,null,null,null,null,"#G4",null,null,null,{"$f":"Z826","v":"B"},null,"-",null,{"$f":"V828","v":"M"},null,0,"-",0,"","","","",""]
[null,null,null,null,null,null,null,null,null,null,null,null,null,null,null,null,null,"#G4",null,null,null,{"$f":"Z827","v":"D"},null,"-",null,{"$f":"V829","v":"O"},null,0,"-",0,"","","","",""]
[null,null,null,null,null,null,null,null,null,null,null,null,null,null,null,null,null,"#G4",null,null,null,{"$f":"Z829","v":"H"},null,"-",null,{"$f":"V830","v":"N"},null,0,"-",0,"","","","",""]
[null,null,null,null,null,null,null,null,null,null,null,null,null,null,null,null,null,"#G4",null,null,null,{"$f":"V820","v":"J"},null,"-",null,{"$f":"Z830","v":"L"},null,0,"-",0,"","","","",""]
[null,null,null,null,null,null,null,null,null,null,null,null,null,null,null,null,null,null,{"$f":"S831+1","v":5}]
[null,null,null,null,null,null,null,null,null,null,null,null,null,null,null,null,null,null,{"$f":"N_Heure","v":"Time"},{"$f":"N_Table","v":"Table"},{"$f":"N_Arbitre","v":"Referee"},{"$f":"N_Matches","v":"Matches"}]
[null,null,null,null,null,null,null,null,null,null,null,null,null,null,null,null,null,"#G5",null,null,null,{"$f":"Z833","v":"A"},null,"-",null,{"$f":"Z834","v":"I"},null,{"$f":"IF(MaxScore,MaxGoals(W842,Y842,MaxGoalsValue),IF(W842=\"\",\"\",W842))","v":0},{"$f":"IF(MaxScore,\"-\",IF(W842=\"\",\"\",\"-\"))","v":"-"},{"$f":"IF(MaxScore,MaxGoals(Y842,W842,MaxGoalsValue),IF(Y842=\"\",\"\",Y842))","v":0},{"$f":"IF(W842=\"\",\"\",IF(W842>Y842,V842,IF(W842=Y842,\"\",Z842)))","v":""},{"$f":"IF(W842=\"\",\"\",IF(W842=Y842,V842,\"\"))","v":""},{"$f":"IF(W842=\"\",\"\",IF(W842=Y842,Z842,\"\"))","v":""},{"$f":"IF(W842=\"\",\"\",IF(W842<Y842,V842,IF(W842=Y842,\"\",Z842)))","v":""},{"$f":"CONCATENATE(AE842,AH842)","v":""}]
[null,null,null,null,null,null,null,null,null,null,null,null,null,null,null,null,null,"#G5",null,null,null,{"$f":"Z835","v":"K"},null,"-",null,{"$f":"V833","v":"G"},null,0,"-",0,"","","","",""]
[null,null,null,null,null,null,null,null,null,null,null,null,null,null,null,null,null,"#G5",null,null,null,{"$f":"Z836","v":"M"},null,"-",null,{"$f":"V834","v":"E"},null,0,"-",0,"","","","",""]
[null,null,null,null,null,null,null,null,null,null,null,null,null,null,null,null,null,"#G5",null,null,null,{"$f":"Z837","v":"O"},null,"-",null,{"$f":"V835","v":"C"},null,0,"-",0,"","","","",""]
[null,null,null,null,null,null,null,null,null,null,null,null,null,null,null,null,null,"#G5",null,null,null,{"$f":"Z838","v":"N"},null,"-",null,{"$f":"V837","v":"D"},null,0,"-",0,"","","","",""]
[null,null,null,null,null,null,null,null,null,null,null,null,null,null,null,null,null,"#G5",null,null,null,{"$f":"Z839","v":"L"},null,"-",null,{"$f":"Z828","v":"F"},null,0,"-",0,"","","","",""]
[null,null,null,null,null,null,null,null,null,null,null,null,null,null,null,null,null,"#G5",null,null,null,{"$f":"V839","v":"J"},null,"-",null,{"$f":"V838","v":"H"},null,0,"-",0,"","","","",""]
[null,null,null,null,null,null,null,null,null,null,null,null,null,null,null,null,null,null,{"$f":"S840+1","v":6}]
[null,null,null,null,null,null,null,null,null,null,null,null,null,null,null,null,null,null,{"$f":"N_Heure","v":"Time"},{"$f":"N_Table","v":"Table"},{"$f":"N_Arbitre","v":"Referee"},{"$f":"N_Matches","v":"Matches"}]
[null,null,null,null,null,null,null,null,null,null,null,null,null,null,null,null,null,"#G6",null,null,null,{"$f":"V843","v":"K"},null,"-",null,{"$f":"V842","v":"A"},null,{"$f":"IF(MaxScore,MaxGoals(W851,Y851,MaxGoalsValue),IF(W851=\"\",\"\",W851))","v":0},{"$f":"IF(MaxScore,\"-\",IF(W851=\"\",\"\",\"-\"))","v":"-"},{"$f":"IF(MaxScore,MaxGoals(Y851,W851,MaxGoalsValue),IF(Y851=\"\",\"\",Y851))","v":0},{"$f":"IF(W851=\"\",\"\",IF(W851>Y851,V851,IF(W851=Y851,\"\",Z851)))","v":""},{"$f":"IF(W851=\"\",\"\",IF(W851=Y851,V851,\"\"))","v":""},{"$f":"IF(W851=\"\",\"\",IF(W851=Y851,Z851,\"\"))","v":""},{"$f":"IF(W851=\"\",\"\",IF(W851<Y851,V851,IF(W851=Y851,\"\",Z851)))","v":""},{"$f":"CONCATENATE(AE851,AH851)","v":""}]
[null,null,null,null,null,null,null,null,null,null,null,null,null,null,null,null,null,"#G6",null,null,null,{"$f":"Z842","v":"I"},null,"-",null,{"$f":"V844","v":"M"},null,0,"-",0,"","","","",""]
[null,null,null,null,null,null,null,null,null,null,null,null,null,null,null,null,null,"#G6",null,null,null,{"$f":"Z843","v":"G"},null,"-",null,{"$f":"V845","v":"O"},null,0,"-",0,"","","","",""]
[null,null,null,null,null,null,null,null,null,null,null,null,null,null,null,null,null,"#G6",null,null,null,{"$f":"Z845","v":"C"},null,"-",null,{"$f":"V846","v":"N"},null,0,"-",0,"","","","",""]
[null,null,null,null,null,null,null,null,null,null,null,null,null,null,null,null,null,"#G6",null,null,null,{"$f":"V836","v":"B"},null,"-",null,{"$f":"V847","v":"L"},null,0,"-",0,"","","","",""]
[null,null,null,null,null,null,null,null,null,null,null,null,null,null,null,null,null,"#G6",null,null,null,{"$f":"Z846","v":"D"},null,"-",null,{"$f":"V848","v":"J"},null,0,"-",0,"","","","",""]
[null,null,null,null,null,null,null,null,null,null,null,null,null,null,null,null,null,"#G6",null,null,null,{"$f":"Z847","v":"F"},null,"-",null,{"$f":"Z848","v":"H"},null,0,"-",0,"","","","",""]
[null,null,null,null,null,null,null,null,null,null,null,null,null,null,null,null,null,null,{"$f":"S849+1","v":7}]
[null,null,null,null,null,null,null,null,null,null,null,null,null,null,null,null,null,null,{"$f":"N_Heure","v":"Time"},{"$f":"N_Table","v":"Table"},{"$f":"N_Arbitre","v":"Referee"},{"$f":"N_Matches","v":"Matches"}]
[null,null,null,null,null,null,null,null,null,null,null,null,null,null,null,null,null,"#G7",null,null,null,{"$f":"Z851","v":"A"},null,"-",null,{"$f":"Z852","v":"M"},null,{"$f":"IF(MaxScore,MaxGoals(W860,Y860,MaxGoalsValue),IF(W860=\"\",\"\",W860))","v":0},{"$f":"IF(MaxScore,\"-\",IF(W860=\"\",\"\",\"-\"))","v":"-"},{"$f":"IF(MaxScore,MaxGoals(Y860,W860,MaxGoalsValue),IF(Y860=\"\",\"\",Y860))","v":0},{"$f":"IF(W860=\"\",\"\",IF(W860>Y860,V860,IF(W860=Y860,\"\",Z860)))","v":""},{"$f":"IF(W860=\"\",\"\",IF(W860=Y860,V860,\"\"))","v":""},{"$f":"IF(W860=\"\",\"\",IF(W860=Y860,Z860,\"\"))","v":""},{"$f":"IF(W860=\"\",\"\",IF(W860<Y860,V860,IF(W860=Y860,\"\",Z860)))","v":""},{"$f":"CONCATENATE(AE860,AH860)","v":""}]
[null,null,null,null,null,null,null,null,null,null,null,null,null,null,null,null,null,"#G7",null,null,null,{"$f":"Z853","v":"O"},null,"-",null,{"$f":"V851","v":"K"},null,0,"-",0,"","","","",""]
[null,null,null,null,null,null,null,null,null,null,null,null,null,null,null,null,null,"#G7",null,null,null,{"$f":"Z854","v":"N"},null,"-",null,{"$f":"V853","v":"G"},null,0,"-",0,"","","","",""]
[null,null,null,null,null,null,null,null,null,null,null,null,null,null,null,null,null,"#G7",null,null,null,{"$f":"Z855","v":"L"},null,"-",null,{"$f":"Z844","v":"E"},null,0,"-",0,"","","","",""]
[null,null,null,null,null,null,null,null,null,null,null,null,null,null,null,null,null,"#G7",null,null,null,{"$f":"Z856","v":"J"},null,"-",null,{"$f":"V854","v":"C"},null,0,"-",0,"","","","",""]
[null,null,null,null,null,null,null,null,null,null,null,null,null,null,null,null,null,"#G7",null,null,null,{"$f":"Z857","v":"H"},null,"-",null,{"$f":"V855","v":"B"},null,0,"-",0,"","","","",""]
[null,null,null,null,null,null,null,null,null,null,null,null,null,null,null,null,null,"#G7",null,null,null,{"$f":"V857","v":"F"},null,"-",null,{"$f":"V856","v":"D"},null,0,"-",0,"","","","",""]
[null,null,null,null,null,null,null,null,null,null,null,null,null,null,null,null,null,null,{"$f":"S858+1","v":8}]
[null,null,null,null,null,null,null,null,null,null,null,null,null,null,null,null,null,null,{"$f":"N_Heure","v":"Time"},{"$f":"N_Table","v":"Table"},{"$f":"N_Arbitre","v":"Referee"},{"$f":"N_Matches","v":"Matches"}]
[null,null,null,null,null,null,null,null,null,null,null,null,null,null,null,null,null,"#G8",null,null,null,{"$f":"V861","v":"O"},null,"-",null,{"$f":"V860","v":"A"},null,{"$f":"IF(MaxScore,MaxGoals(W869,Y869,MaxGoalsValue),IF(W869=\"\",\"\",W869))","v":0},{"$f":"IF(MaxScore,\"-\",IF(W869=\"\",\"\",\"-\"))","v":"-"},{"$f":"IF(MaxScore,MaxGoals(Y869,W869,MaxGoalsValue),IF(Y869=\"\",\"\",Y869))","v":0},{"$f":"IF(W869=\"\",\"\",IF(W869>Y869,V869,IF(W869=Y869,\"\",Z869)))","v":""},{"$f":"IF(W869=\"\",\"\",IF(W869=Y869,V869,\"\"))","v":""},{"$f":"IF(W869=\"\",\"\",IF(W869=Y869,Z869,\"\"))","v":""},{"$f":"IF(W869=\"\",\"\",IF(W869<Y869,V869,IF(W869=Y869,\"\",Z869)))","v":""},{"$f":"CONCATENATE(AE869,AH869)","v":""}]
[null,null,null,null,null,null,null,null,null,null,null,null,null,null,null,null,null,"#G8",null,null,null,{"$f":"Z861","v":"K"},null,"-",null,{"$f":"V862","v":"N"},null,0,"-",0,"","","","",""]
[null,null,null,null,null,null,null,null,null,null,null,null,null,null,null,null,null,"#G8",null,null,null,{"$f":"V852","v":"I"},null,"-",null,{"$f":"V863","v":"L"},null,0,"-",0,"","","","",""]
[null,null,null,null,null,null,null,null,null,null,null,null,null,null,null,null,null,"#G8",null,null,null,{"$f":"Z862","v":"G"},null,"-",null,{"$f":"V864","v":"J"},null,0,"-",0,"","","","",""]
[null,null,null,null,null,null,null,null,null,null,null,null,null,null,null,null,null,"#G8",null,null,null,{"$f":"Z863","v":"E"},null,"-",null,{"$f":"V865","v":"H"},null,0,"-",0,"","","","",""]
[null,null,null,null,null,null,null,null,null,null,null,null,null,null,null,null,null,"#G8",null,null,null,{"$f":"Z864","v":"C"},null,"-",null,{"$f":"V866","v":"F"},null,0,"-",0,"","","","",""]
[null,null,null,null,null,null,null,null,null,null,null,null,null,null,null,null,null,"#G8",null,null,null,{"$f":"Z865","v":"B"},null,"-",null,{"$f":"Z866","v":"D"},null,0,"-",0,"","","","",""]
[null,null,null,null,null,null,null,null,null,null,null,null,null,null,null,null,null,null,{"$f":"S867+1","v":9}]
[null,null,null,null,null,null,null,null,null,null,null,null,null,null,null,null,null,null,{"$f":"N_Heure","v":"Time"},{"$f":"N_Table","v":"Table"},{"$f":"N_Arbitre","v":"Referee"},{"$f":"N_Matches","v":"Matches"}]
[null,null,null,null,null,null,null,null,null,null,null,null,null,null,null,null,null,"#G9",null,null,null,{"$f":"Z870","v":"N"},null,"-",null,{"$f":"V869","v":"O"},null,{"$f":"IF(MaxScore,MaxGoals(W878,Y878,MaxGoalsValue),IF(W878=\"\",\"\",W878))","v":0},{"$f":"IF(MaxScore,\"-\",IF(W878=\"\",\"\",\"-\"))","v":"-"},{"$f":"IF(MaxScore,MaxGoals(Y878,W878,MaxGoalsValue),IF(Y878=\"\",\"\",Y878))","v":0},{"$f":"IF(W878=\"\",\"\",IF(W878>Y878,V878,IF(W878=Y878,\"\",Z878)))","v":""},{"$f":"IF(W878=\"\",\"\",IF(W878=Y878,V878,\"\"))","v":""},{"$f":"IF(W878=\"\",\"\",IF(W878=Y878,Z878,\"\"))","v":""},{"$f":"IF(W878=\"\",\"\",IF(W878<Y878,V878,IF(W878=Y878,\"\",Z878)))","v":""},{"$f":"CONCATENATE(AE878,AH878)","v":""}]
[null,null,null,null,null,null,null,null,null,null,null,null,null,null,null,null,null,"#G9",null,null,null,"L",null,"-",null,{"$f":"Z860","v":"M"},null,0,"-",0,"","","","",""]
[null,null,null,null,null,null,null,null,null,null,null,null,null,null,null,null,null,"#G9",null,null,null,"J",null,"-",null,{"$f":"V870","v":"K"},null,0,"-",0,"","","","",""]
[null,null,null,null,null,null,null,null,null,null,null,null,null,null,null,null,null,"#G9",null,null,null,"H",null,"-",null,{"$f":"V871","v":"I"},null,0,"-",0,"","","","",""]
[null,null,null,null,null,null,null,null,null,null,null,null,null,null,null,null,null,"#G9",null,null,null,"F",null,"-",null,{"$f":"V872","v":"G"},null,0,"-",0,"","","","",""]
[null,null,null,null,null,null,null,null,null,null,null,null,null,null,null,null,null,"#G9",null,null,null,"D",null,"-",null,{"$f":"V873","v":"E"},null,0,"-",0,"","","","",""]
[null,null,null,null,null,null,null,null,null,null,null,null,null,null,null,null,null,"#G9",null,null,null,{"$f":"V875","v":"B"},null,"-",null,{"$f":"V874","v":"C"},null,0,"-",0,"","","","",""]
[null,null,null,null,null,null,null,null,null,null,null,null,null,null,null,null,null,null,{"$f":"S876+1","v":10}]
[null,null,null,null,null,null,null,null,null,null,null,null,null,null,null,null,null,null,{"$f":"N_Heure","v":"Time"},{"$f":"N_Table","v":"Table"},{"$f":"N_Arbitre","v":"Referee"},{"$f":"N_Matches","v":"Matches"}]
[null,null,null,null,null,null,null,null,null,null,null,null,null,null,null,null,null,"#G10",null,null,null,{"$f":"V878","v":"N"},null,"-",null,{"$f":"Z869","v":"A"},null,{"$f":"IF(MaxScore,MaxGoals(W887,Y887,MaxGoalsValue),IF(W887=\"\",\"\",W887))","v":0},{"$f":"IF(MaxScore,\"-\",IF(W887=\"\",\"\",\"-\"))","v":"-"},{"$f":"IF(MaxScore,MaxGoals(Y887,W887,MaxGoalsValue),IF(Y887=\"\",\"\",Y887))","v":0},{"$f":"IF(W887=\"\",\"\",IF(W887>Y887,V887,IF(W887=Y887,\"\",Z887)))","v":""},{"$f":"IF(W887=\"\",\"\",IF(W887=Y887,V887,\"\"))","v":""},{"$f":"IF(W887=\"\",\"\",IF(W887=Y887,Z887,\"\"))","v":""},{"$f":"IF(W887=\"\",\"\",IF(W887<Y887,V887,IF(W887=Y887,\"\",Z887)))","v":""},{"$f":"CONCATENATE(AE887,AH887)","v":""}]
[null,null,null,null,null,null,null,null,null,null,null,null,null,null,null,null,null,"#G10",null,null,null,{"$f":"Z878","v":"O"},null,"-",null,{"$f":"V880","v":"J"},null,0,"-",0,"","","","",""]
[null,null,null,null,null,null,null,null,null,null,null,null,null,null,null,null,null,"#G10",null,null,null,"M",null,"-",null,{"$f":"V881","v":"H"},null,0,"-",0,"","","","",""]
[null,null,null,null,null,null,null,null,null,null,null,null,null,null,null,null,null,"#G10",null,null,null,"K",null,"-",null,{"$f":"V882","v":"F"},null,0,"-",0,"","","","",""]
[null,null,null,null,null,null,null,null,null,null,null,null,null,null,null,null,null,"#G10",null,null,null,"I",null,"-",null,{"$f":"V883","v":"D"},null,0,"-",0,"","","","",""]
[null,null,null,null,null,null,null,null,null,null,null,null,null,null,null,null,null,"#G10",null,null,null,"G",null,"-",null,{"$f":"V884","v":"B"},null,0,"-",0,"","","","",""]
[null,null,null,null,null,null,null,null,null,null,null,null,null,null,null,null,null,"#G10",null,null,null,"E",null,"-",null,{"$f":"Z884","v":"C"},null,0,"-",0,"","","","",""]
[null,null,null,null,null,null,null,null,null,null,null,null,null,null,null,null,null,null,{"$f":"S885+1","v":11}]
[null,null,null,null,null,null,null,null,null,null,null,null,null,null,null,null,null,null,{"$f":"N_Heure","v":"Time"},{"$f":"N_Table","v":"Table"},{"$f":"N_Arbitre","v":"Referee"},{"$f":"N_Matches","v":"Matches"}]
[null,null,null,null,null,null,null,null,null,null,null,null,null,null,null,null,null,"#G11",null,null,null,{"$f":"Z887","v":"A"},null,"-",null,{"$f":"V879","v":"L"},null,{"$f":"IF(MaxScore,MaxGoals(W896,Y896,MaxGoalsValue),IF(W896=\"\",\"\",W896))","v":0},{"$f":"IF(MaxScore,\"-\",IF(W896=\"\",\"\",\"-\"))","v":"-"},{"$f":"IF(MaxScore,MaxGoals(Y896,W896,MaxGoalsValue),IF(Y896=\"\",\"\",Y896))","v":0},{"$f":"IF(W896=\"\",\"\",IF(W896>Y896,V896,IF(W896=Y896,\"\",Z896)))","v":""},{"$f":"IF(W896=\"\",\"\",IF(W896=Y896,V896,\"\"))","v":""},{"$f":"IF(W896=\"\",\"\",IF(W896=Y896,Z896,\"\"))","v":""},{"$f":"IF(W896=\"\",\"\",IF(W896<Y896,V896,IF(W896=Y896,\"\",Z896)))","v":""},{"$f":"CONCATENATE(AE896,AH896)","v":""}]
[null,null,null,null,null,null,null,null,null,null,null,null,null,null,null,null,null,"#G11",null,null,null,{"$f":"Z888","v":"J"},null,"-",null,{"$f":"V887","v":"N"},null,0,"-",0,"","","","",""]
[null,null,null,null,null,null,null,null,null,null,null,null,null,null,null,null,null,"#G11",null,null,null,{"$f":"Z890","v":"F"},null,"-",null,"O",null,0,"-",0,"","","","",""]
[null,null,null,null,null,null,null,null,null,null,null,null,null,null,null,null,null,"#G11",null,null,null,{"$f":"Z891","v":"D"},null,"-",null,"M",null,0,"-",0,"","","","",""]
[null,null,null,null,null,null,null,null,null,null,null,null,null,null,null,null,null,"#G11",null,null,null,{"$f":"Z892","v":"B"},null,"-",null,"K",null,0,"-",0,"","","","",""]
[null,null,null,null,null,null,null,null,null,null,null,null,null,null,null,null,null,"#G11",null,null,null,{"$f":"Z893","v":"C"},null,"-",null,"I",null,0,"-",0,"","","","",""]
[null,null,null,null,null,null,null,null,null,null,null,null,null,null,null,null,null,"#G11",null,null,null,{"$f":"V893","v":"E"},null,"-",null,"G",null,0,"-",0,"","","","",""]
[null,null,null,null,null,null,null,null,null,null,null,null,null,null,null,null,null,null,{"$f":"S894+1","v":12}]
[null,null,null,null,null,null,null,null,null,null,null,null,null,null,null,null,null,null,{"$f":"N_Heure","v":"Time"},{"$f":"N_Table","v":"Table"},{"$f":"N_Arbitre","v":"Referee"},{"$f":"N_Matches","v":"Matches"}]
[null,null,null,null,null,null,null,null,null,null,null,null,null,null,null,null,null,"#G12",null,null,null,{"$f":"V897","v":"J"},null,"-",null,{"$f":"V896","v":"A"},null,{"$f":"IF(MaxScore,MaxGoals(W905,Y905,MaxGoalsValue),IF(W905=\"\",\"\",W905))","v":0},{"$f":"IF(MaxScore,\"-\",IF(W905=\"\",\"\",\"-\"))","v":"-"},{"$f":"IF(MaxScore,MaxGoals(Y905,W905,MaxGoalsValue),IF(Y905=\"\",\"\",Y905))","v":0},{"$f":"IF(W905=\"\",\"\",IF(W905>Y905,V905,IF(W905=Y905,\"\",Z905)))","v":""},{"$f":"IF(W905=\"\",\"\",IF(W905=Y905,V905,\"\"))","v":""},{"$f":"IF(W905=\"\",\"\",IF(W905=Y905,Z905,\"\"))","v":""},{"$f":"IF(W905=\"\",\"\",IF(W905<Y905,V905,IF(W905=Y905,\"\",Z905)))","v":""},{"$f":"CONCATENATE(AE905,AH905)","v":""}]
[null,null,null,null,null,null,null,null,null,null,null,null,null,null,null,null,null,"#G12",null,null,null,{"$f":"Z896","v":"L"},null,"-",null,{"$f":"Z889","v":"H"},null,0,"-",0,"","","","",""]
[null,null,null,null,null,null,null,null,null,null,null,null,null,null,null,null,null,"#G12",null,null,null,"N",null,"-",null,{"$f":"V898","v":"F"},null,0,"-",0,"","","","",""]
[null,null,null,null,null,null,null,null,null,null,null,null,null,null,null,null,null,"#G12",null,null,null,"O",null,"-",null,{"$f":"V900","v":"B"},null,0,"-",0,"","","","",""]
[null,null,null,null,null,null,null,null,null,null,null,null,null,null,null,null,null,"#G12",null,null,null,"M",null,"-",null,{"$f":"V901","v":"C"},null,0,"-",0,"","","","",""]
[null,null,null,null,null,null,null,null,null,null,null,null,null,null,null,null,null,"#G12",null,null,null,"K",null,"-",null,{"$f":"V902","v":"E"},null,0,"-",0,"","","","",""]
[null,null,null,null,null,null,null,null,null,null,null,null,null,null,null,null,null,"#G12",null,null,null,"I",null,"-",null,{"$f":"Z902","v":"G"},null,0,"-",0,"","","","",""]
[null,null,null,null,null,null,null,null,null,null,null,null,null,null,null,null,null,null,{"$f":"S903+1","v":13}]
[null,null,null,null,null,null,null,null,null,null,null,null,null,null,null,null,null,null,{"$f":"N_Heure","v":"Time"},{"$f":"N_Table","v":"Table"},{"$f":"N_Arbitre","v":"Referee"},{"$f":"N_Matches","v":"Matches"}]
[null,null,null,null,null,null,null,null,null,null,null,null,null,null,null,null,null,"#G13",null,null,null,{"$f":"Z905","v":"A"},null,"-",null,{"$f":"Z906","v":"H"},null,{"$f":"IF(MaxScore,MaxGoals(W914,Y914,MaxGoalsValue),IF(W914=\"\",\"\",W914))","v":0},{"$f":"IF(MaxScore,\"-\",IF(W914=\"\",\"\",\"-\"))","v":"-"},{"$f":"IF(MaxScore,MaxGoals(Y914,W914,MaxGoalsValue),IF(Y914=\"\",\"\",Y914))","v":0},{"$f":"IF(W914=\"\",\"\",IF(W914>Y914,V914,IF(W914=Y914,\"\",Z914)))","v":""},{"$f":"IF(W914=\"\",\"\",IF(W914=Y914,V914,\"\"))","v":""},{"$f":"IF(W914=\"\",\"\",IF(W914=Y914,Z914,\"\"))","v":""},{"$f":"IF(W914=\"\",\"\",IF(W914<Y914,V914,IF(W914=Y914,\"\",Z914)))","v":""},{"$f":"CONCATENATE(AE914,AH914)","v":""}]
[null,null,null,null,null,null,null,null,null,null,null,null,null,null,null,null,null,"#G13",null,null,null,{"$f":"Z907","v":"F"},null,"-",null,{"$f":"V905","v":"J"},null,0,"-",0,"","","","",""]
[null,null,null,null,null,null,null,null,null,null,null,null,null,null,null,null,null,"#G13",null,null,null,{"$f":"V899","v":"D"},null,"-",null,"L",null,0,"-",0,"","","","",""]
[null,null,null,null,null,null,null,null,null,null,null,null,null,null,null,null,null,"#G13",null,null,null,{"$f":"Z908","v":"B"},null,"-",null,"N",null,0,"-",0,"","","","",""]
[null,null,null,null,null,null,null,null,null,null,null,null,null,null,null,null,null,"#G13",null,null,null,{"$f":"Z910","v":"E"},null,"-",null,"O",null,0,"-",0,"","","","",""]
[null,null,null,null,null,null,null,null,null,null,null,null,null,null,null,null,null,"#G13",null,null,null,{"$f":"Z911","v":"G"},null,"-",null,"M",null,0,"-",0,"","","","",""]
[null,null,null,null,null,null,null,null,null,null,null,null,null,null,null,null,null,"#G13",null,null,null,{"$f":"V911","v":"I"},null,"-",null,"K",null,0,"-",0,"","","","",""]
[null,null,null,null,null,null,null,null,null,null,null,null,null,null,null,null,null,null,{"$f":"S912+1","v":14}]
[null,null,null,null,null,null,null,null,null,null,null,null,null,null,null,null,null,null,{"$f":"N_Heure","v":"Time"},{"$f":"N_Table","v":"Table"},{"$f":"N_Arbitre","v":"Referee"},{"$f":"N_Matches","v":"Matches"}]
[null,null,null,null,null,null,null,null,null,null,null,null,null,null,null,null,null,"#G14",null,null,null,{"$f":"V915","v":"F"},null,"-",null,{"$f":"V914","v":"A"},null,{"$f":"IF(MaxScore,MaxGoals(W923,Y923,MaxGoalsValue),IF(W923=\"\",\"\",W923))","v":0},{"$f":"IF(MaxScore,\"-\",IF(W923=\"\",\"\",\"-\"))","v":"-"},{"$f":"IF(MaxScore,MaxGoals(Y923,W923,MaxGoalsValue),IF(Y923=\"\",\"\",Y923))","v":0},{"$f":"IF(W923=\"\",\"\",IF(W923>Y923,V923,IF(W923=Y923,\"\",Z923)))","v":""},{"$f":"IF(W923=\"\",\"\",IF(W923=Y923,V923,\"\"))","v":""},{"$f":"IF(W923=\"\",\"\",IF(W923=Y923,Z923,\"\"))","v":""},{"$f":"IF(W923=\"\",\"\",IF(W923<Y923,V923,IF(W923=Y923,\"\",Z923)))","v":""},{"$f":"CONCATENATE(AE923,AH923)","v":""}]
[null,null,null,null,null,null,null,null,null,null,null,null,null,null,null,null,null,"#G14",null,null,null,{"$f":"Z914","v":"H"},null,"-",null,{"$f":"V916","v":"D"},null,0,"-",0,"","","","",""]
[null,null,null,null,null,null,null,null,null,null,null,null,null,null,null,null,null,"#G14",null,null,null,"J",null,"-",null,{"$f":"V917","v":"B"},null,0,"-",0,"","","","",""]
[null,null,null,null,null,null,null,null,null,null,null,null,null,null,null,null,null,"#G14",null,null,null,"L",null,"-",null,{"$f":"Z909","v":"C"},null,0,"-",0,"","","","",""]
[null,null,null,null,null,null,null,null,null,null,null,null,null,null,null,null,null,"#G14",null,null,null,"N",null,"-",null,{"$f":"V918","v":"E"},null,0,"-",0,"","","","",""]
[null,null,null,null,null,null,null,null,null,null,null,null,null,null,null,null,null,"#G14",null,null,null,"O",null,"-",null,{"$f":"V920","v":"I"},null,0,"-",0,"","","","",""]
[null,null,null,null,null,null,null,null,null,null,null,null,null,null,null,null,null,"#G14",null,null,null,"M",null,"-",null,{"$f":"Z920","v":"K"},null,0,"-",0,"","","","",""]
[null,null,null,null,null,null,null,null,null,null,null,null,null,null,null,null,null,null,{"$f":"S921+1","v":15}]
[null,null,null,null,null,null,null,null,null,null,null,null,null,null,null,null,null,null,{"$f":"N_Heure","v":"Time"},{"$f":"N_Table","v":"Table"},{"$f":"N_Arbitre","v":"Referee"},{"$f":"N_Matches","v":"Matches"}]
[null,null,null,null,null,null,null,null,null,null,null,null,null,null,null,null,null,"#G15",null,null,null,{"$f":"Z923","v":"A"},null,"-",null,{"$f":"Z924","v":"D"},null,{"$f":"IF(MaxScore,MaxGoals(W932,Y932,MaxGoalsValue),IF(W932=\"\",\"\",W932))","v":0},{"$f":"IF(MaxScore,\"-\",IF(W932=\"\",\"\",\"-\"))","v":"-"},{"$f":"IF(MaxScore,MaxGoals(Y932,W932,MaxGoalsValue),IF(Y932=\"\",\"\",Y932))","v":0},{"$f":"IF(W932=\"\",\"\",IF(W932>Y932,V932,IF(W932=Y932,\"\",Z932)))","v":""},{"$f":"IF(W932=\"\",\"\",IF(W932=Y932,V932,\"\"))","v":""},{"$f":"IF(W932=\"\",\"\",IF(W932=Y932,Z932,\"\"))","v":""},{"$f":"IF(W932=\"\",\"\",IF(W932<Y932,V932,IF(W932=Y932,\"\",Z932)))","v":""},{"$f":"CONCATENATE(AE932,AH932)","v":""}]
[null,null,null,null,null,null,null,null,null,null,null,null,null,null,null,null,null,"#G15",null,null,null,{"$f":"Z925","v":"B"},null,"-",null,{"$f":"V923","v":"F"},null,0,"-",0,"","","","",""]
[null,null,null,null,null,null,null,null,null,null,null,null,null,null,null,null,null,"#G15",null,null,null,{"$f":"Z926","v":"C"},null,"-",null,"H",null,0,"-",0,"","","","",""]
[null,null,null,null,null,null,null,null,null,null,null,null,null,null,null,null,null,"#G15",null,null,null,{"$f":"Z927","v":"E"},null,"-",null,"J",null,0,"-",0,"","","","",""]
[null,null,null,null,null,null,null,null,null,null,null,null,null,null,null,null,null,"#G15",null,null,null,{"$f":"V919","v":"G"},null,"-",null,"L",null,0,"-",0,"","","","",""]
[null,null,null,null,null,null,null,null,null,null,null,null,null,null,null,null,null,"#G15",null,null,null,{"$f":"Z928","v":"I"},null,"-",null,"N",null,0,"-",0,"","","","",""]
[null,null,null,null,null,null,null,null,null,null,null,null,null,null,null,null,null,"#G15",null,null,null,{"$f":"V929","v":"M"},null,"-",null,"O",null,0,"-",0,"","","","",""]
[]
[null,{"$f":"N_Group_16","v":"Group of 16"},null,null,null,null,null,null,null,null,null,null,null,null,null,null,null,null,null,null,null,null,null,null,null,null,null,null,null,null,null,null,null,null,null,null,null,null,{"$f":"B940","v":"Group of 16"}]
[]
[null,{"$f":"N_Tirage","v":"Draw"},"Cla.","Cla1","Part","Cla2",{"$f":"N_Joueurs","v":"Players"},{"$f":"N_RankPoints","v":"Rk Pt."},{"$f":"N_Diff_Part","v":"Part-Diff"},"Pts","J","G","N","P","BP","BC","Diff",null,null,null,null,null,null,null,null,null,null,null,null,null,{"$f":"N_G","v":"W"},{"$f":"N_N","v":"D"},{"$f":"N_N","v":"D"},{"$f":"N_P","v":"L"},"CONCAT","Ref Group",{"$f":"IF(COUNTA(W961:W1108)=0,\"\",\"OK\")","v":""},null,null,{"$f":"N_Cla.","v":"Rk"},{"$f":"N_Joueurs","v":"Players"},{"$f":"N_Pts","v":"Pts"},{"$f":"N_J","v":"Pld"},{"$f":"N_G","v":"W"},{"$f":"N_N","v":"D"},{"$f":"N_P","v":"L"},{"$f":"N_BP","v":"F"},{"$f":"N_BC","v":"A"},{"$f":"N_Diff.","v":"SO"}]
[null,1,{"$f":"IF(AK942=\"\",\"\",RANK(F943,F943:F958)*1000+ROW())","v":""},{"$f":"IF(L943=\"\",\"\",CritClassInd1_Points*J943+CritClassInd1_Matches*L943+CritClassInd1_Attaque*O943+CritClassInd1_DiffButs*Q943)","v":""},{"$f":"IF(L943=\"\",\"\",Nb_Diff_Part(D943,D943:D958,G943,G943:G958,AI961:AI1108)*CritClassInd_DiffPart+Nb_Goal_Part(D943,D943:D958,G943,G943:G958,V961:Z1108)*CritClassInd_GoalPart+Nb_Score_Part(D943,D943:D958,G943,G943:G958,V961:Z1108)*CritClassInd_ScorePart)","v":""},{"$f":"IF(L943=\"\",\"\",D943+E943+CritClassInd2_Points*J943+CritClassInd2_Matches*L943+CritClassInd2_Attaque*O943+CritClassInd2_DiffButs*Q943+CritClassInd_Ranking*H943+I943)","v":""},"A",{"$f":"GMFTRANKINGPOINTS(G943,Particular_Category)","v":0},null,{"$f":"IF(AK942=\"\",\"\",(L943*Points_Victoire)+M943*Points_Null)","v":""},{"$f":"IF(L943=\"\",\"\",SUM(L943:N943))","v":""},{"$f":"IF(AK942=\"\",\"\",COUNTIF(AE961:AE1108,G943))","v":""},{"$f":"IF(AK942=\"\",\"\",COUNTIF(AF961:AG1108,G943))","v":""},{"$f":"IF(AK942=\"\",\"\",COUNTIF(AH961:AH1108,G943))","v":""},{"$f":"IF(AK942=\"\",\"\",SUMIF(V961:V1108,G943,AB961:AB1108)+SUMIF(Z961:Z1108,G943,AD961:AD1108))","v":""},{"$f":"IF(AK942=\"\",\"\",SUMIF(V961:V1108,G943,AD961:AD1108)+SUMIF(Z961:Z1108,G943,AB961:AB1108))","v":""},{"$f":"IF(AK942=\"\",\"\",O943-P943)","v":""},null,null,null,null,null,null,null,null,null,null,null,null,null,null,null,null,null,null,null,{"$f":"IF(AK942=\"\",\"\",SMALL(C943:C958,1))","v":""},null,null,{"$f":"IF(AK942=\"\",\"\",INT(AK943/1000))","v":""},{"$f":"IF(AK942=\"\",\"\",VLOOKUP(AK943,C943:Q958,5,FALSE))","v":""},{"$f":"VLOOKUP(AK943,C943:Q958,8,FALSE)","v":""},{"$f":"VLOOKUP(AK943,C943:Q958,9,FALSE)","v":""},{"$f":"VLOOKUP(AK943,C943:Q958,10,FALSE)","v":""},{"$f":"VLOOKUP(AK943,C943:Q958,11,FALSE)","v":""},{"$f":"VLOOKUP(AK943,C943:Q958,12,FALSE)","v":""},{"$f":"VLOOKUP(AK943,C943:Q958,13,FALSE)","v":""},{"$f":"VLOOKUP(AK943,C943:Q958,14,FALSE)","v":""},{"$f":"VLOOKUP(AK943,C943:Q958,15,FALSE)","v":""}]
[null,2,{"$f":"IF(AK942=\"\",\"\",RANK(F944,F943:F958)*1000+ROW())","v":""},{"$f":"IF(L944=\"\",\"\",CritClassInd1_Points*J944+CritClassInd1_Matches*L944+CritClassInd1_Attaque*O944+CritClassInd1_DiffButs*Q944)","v":""},{"$f":"IF(L944=\"\",\"\",Nb_Diff_Part(D944,D943:D958,G944,G943:G958,AI961:AI1108)*CritClassInd_DiffPart+Nb_Goal_Part(D944,D943:D958,G944,G943:G958,V961:Z1108)*CritClassInd_GoalPart+Nb_Score_Part(D944,D943:D958,G944,G943:G958,V961:Z1108)*CritClassInd_ScorePart)","v":""},{"$f":"IF(L944=\"\",\"\",D944+E944+CritClassInd2_Points*J944+CritClassInd2_Matches*L944+CritClassInd2_Attaque*O944+CritClassInd2_DiffButs*Q944+CritClassInd_Ranking*H944+I944)","v":""},"B",0,null,{"$f":"IF(AK942=\"\",\"\",(L944*Points_Victoire)+M944*Points_Null)","v":""},"",{"$f":"IF(AK942=\"\",\"\",COUNTIF(AE961:AE1108,G944))","v":""},{"$f":"IF(AK942=\"\",\"\",COUNTIF(AF961:AG1108,G944))","v":""},{"$f":"IF(AK942=\"\",\"\",COUNTIF(AH961:AH1108,G944))","v":""},{"$f":"IF(AK942=\"\",\"\",SUMIF(V961:V1108,G944,AB961:AB1108)+SUMIF(Z961:Z1108,G944,AD961:AD1108))","v":""},{"$f":"IF(AK942=\"\",\"\",SUMIF(V961:V1108,G944,AD961:AD1108)+SUMIF(Z961:Z1108,G944,AB961:AB1108))","v":""},{"$f":"IF(AK942=\"\",\"\",O944-P944)","v":""},null,null,null,null,null,null,null,null,null,null,null,null,null,null,null,null,null,null,null,{"$f":"IF(AK942=\"\",\"\",SMALL(C943:C958,2))","v":""},null,null,{"$f":"IF(AK942=\"\",\"\",INT(AK944/1000))","v":""},{"$f":"IF(AK942=\"\",\"\",VLOOKUP(AK944,C943:Q958,5,FALSE))","v":""},{"$f":"VLOOKUP(AK944,C943:Q958,8,FALSE)","v":""},{"$f":"VLOOKUP(AK944,C943:Q958,9,FALSE)","v":""},{"$f":"VLOOKUP(AK944,C943:Q958,10,FALSE)","v":""},{"$f":"VLOOKUP(AK944,C943:Q958,11,FALSE)","v":""},{"$f":"VLOOKUP(AK944,C943:Q958,12,FALSE)","v":""},{"$f":"VLOOKUP(AK944,C943:Q958,13,FALSE)","v":""},{"$f":"VLOOKUP(AK944,C943:Q958,14,FALSE)","v":""},{"$f":"VLOOKUP(AK944,C943:Q958,15,FALSE)","v":""}]
[null,3,{"$f":"IF(AK942=\"\",\"\",RANK(F945,F943:F958)*1000+ROW())","v":""},"",{"$f":"IF(L945=\"\",\"\",Nb_Diff_Part(D945,D943:D958,G945,G943:G958,AI961:AI1108)*CritClassInd_DiffPart+Nb_Goal_Part(D945,D943:D958,G945,G943:G958,V961:Z1108)*CritClassInd_GoalPart+Nb_Score_Part(D945,D943:D958,G945,G943:G958,V961:Z1108)*CritClassInd_ScorePart)","v":""},"","C",0,null,{"$f":"IF(AK942=\"\",\"\",(L945*Points_Victoire)+M945*Points_Null)","v":""},"",{"$f":"IF(AK942=\"\",\"\",COUNTIF(AE961:AE1108,G945))","v":""},{"$f":"IF(AK942=\"\",\"\",COUNTIF(AF961:AG1108,G945))","v":""},{"$f":"IF(AK942=\"\",\"\",COUNTIF(AH961:AH1108,G945))","v":""},{"$f":"IF(AK942=\"\",\"\",SUMIF(V961:V1108,G945,AB961:AB1108)+SUMIF(Z961:Z1108,G945,AD961:AD1108))","v":""},{"$f":"IF(AK942=\"\",\"\",SUMIF(V961:V1108,G945,AD961:AD1108)+SUMIF(Z961:Z1108,G945,AB961:AB1108))","v":""},{"$f":"IF(AK942=\"\",\"\",O945-P945)","v":""},null,null,null,null,null,null,null,null,null,null,null,null,null,null,null,null,null,null,null,{"$f":"IF(AK942=\"\",\"\",SMALL(C943:C958,3))","v":""},null,null,{"$f":"IF(AK942=\"\",\"\",INT(AK945/1000))","v":""},{"$f":"IF(AK942=\"\",\"\",VLOOKUP(AK945,C943:Q958,5,FALSE))","v":""},{"$f":"VLOOKUP(AK945,C943:Q958,8,FALSE)","v":""},{"$f":"VLOOKUP(AK945,C943:Q958,9,FALSE)","v":""},{"$f":"VLOOKUP(AK945,C943:Q958,10,FALSE)","v":""},{"$f":"VLOOKUP(AK945,C943:Q958,11,FALSE)","v":""},{"$f":"VLOOKUP(AK945,C943:Q958,12,FALSE)","v":""},{"$f":"VLOOKUP(AK945,C943:Q958,13,FALSE)","v":""},{"$f":"VLOOKUP(AK945,C943:Q958,14,FALSE)","v":""},{"$f":"VLOOKUP(AK945,C943:Q958,15,FALSE)","v":""}]
[null,4,{"$f":"IF(AK942=\"\",\"\",RANK(F946,F943:F958)*1000+ROW())","v":""},"",{"$f":"IF(L946=\"\",\"\",Nb_Diff_Part(D946,D943:D958,G946,G943:G958,AI961:AI1108)*CritClassInd_DiffPart+Nb_Goal_Part(D946,D943:D958,G946,G943:G958,V961:Z1108)*CritClassInd_GoalPart+Nb_Score_Part(D946,D943:D958,G946,G943:G958,V961:Z1108)*CritClassInd_ScorePart)","v":""},"","D",0,null,{"$f":"IF(AK942=\"\",\"\",(L946*Points_Victoire)+M946*Points_Null)","v":""},"",{"$f":"IF(AK942=\"\",\"\",COUNTIF(AE961:AE1108,G946))","v":""},{"$f":"IF(AK942=\"\",\"\",COUNTIF(AF961:AG1108,G946))","v":""},{"$f":"IF(AK942=\"\",\"\",COUNTIF(AH961:AH1108,G946))","v":""},{"$f":"IF(AK942=\"\",\"\",SUMIF(V961:V1108,G946,AB961:AB1108)+SUMIF(Z961:Z1108,G946,AD961:AD1108))","v":""},{"$f":"IF(AK942=\"\",\"\",SUMIF(V961:V1108,G946,AD961:AD1108)+SUMIF(Z961:Z1108,G946,AB961:AB1108))","v":""},{"$f":"IF(AK942=\"\",\"\",O946-P946)","v":""},null,null,null,null,null,null,null,null,null,null,null,null,null,null,null,null,null,null,null,{"$f":"IF(AK942=\"\",\"\",SMALL(C943:C958,4))","v":""},null,null,{"$f":"IF(AK942=\"\",\"\",INT(AK946/1000))","v":""},{"$f":"IF(AK942=\"\",\"\",VLOOKUP(AK946,C943:Q958,5,FALSE))","v":""},{"$f":"VLOOKUP(AK946,C943:Q958,8,FALSE)","v":""},{"$f":"VLOOKUP(AK946,C943:Q958,9,FALSE)","v":""},{"$f":"VLOOKUP(AK946,C943:Q958,10,FALSE)","v":""},{"$f":"VLOOKUP(AK946,C943:Q958,11,FALSE)","v":""},{"$f":"VLOOKUP(AK946,C943:Q958,12,FALSE)","v":""},{"$f":"VLOOKUP(AK946,C943:Q958,13,FALSE)","v":""},{"$f":"VLOOKUP(AK946,C943:Q958,14,FALSE)","v":""},{"$f":"VLOOKUP(AK946,C943:Q958,15,FALSE)","v":""}]
[null,5,{"$f":"IF(AK942=\"\",\"\",RANK(F947,F943:F958)*1000+ROW())","v":""},"",{"$f":"IF(L947=\"\",\"\",Nb_Diff_Part(D947,D943:D958,G947,G943:G958,AI961:AI1108)*CritClassInd_DiffPart+Nb_Goal_Part(D947,D943:D958,G947,G943:G958,V961:Z1108)*CritClassInd_GoalPart+Nb_Score_Part(D947,D943:D958,G947,G943:G958,V961:Z1108)*CritClassInd_ScorePart)","v":""},"","E",0,null,{"$f":"IF(AK942=\"\",\"\",(L947*Points_Victoire)+M947*Points_Null)","v":""},"",{"$f":"IF(AK942=\"\",\"\",COUNTIF(AE961:AE1108,G947))","v":""},{"$f":"IF(AK942=\"\",\"\",COUNTIF(AF961:AG1108,G947))","v":""},{"$f":"IF(AK942=\"\",\"\",COUNTIF(AH961:AH1108,G947))","v":""},{"$f":"IF(AK942=\"\",\"\",SUMIF(V961:V1108,G947,AB961:AB1108)+SUMIF(Z961:Z1108,G947,AD961:AD1108))","v":""},{"$f":"IF(AK942=\"\",\"\",SUMIF(V961:V1108,G947,AD961:AD1108)+SUMIF(Z961:Z1108,G947,AB961:AB1108))","v":""},{"$f":"IF(AK942=\"\",\"\",O947-P947)","v":""},null,null,null,null,null,null,null,null,null,null,null,null,null,null,null,null,null,null,null,{"$f":"IF(AK942=\"\",\"\",SMALL(C943:C958,5))","v":""},null,null,{"$f":"IF(AK942=\"\",\"\",INT(AK947/1000))","v":""},{"$f":"IF(AK942=\"\",\"\",VLOOKUP(AK947,C943:Q958,5,FALSE))","v":""},{"$f":"VLOOKUP(AK947,C943:Q958,8,FALSE)","v":""},{"$f":"VLOOKUP(AK947,C943:Q958,9,FALSE)","v":""},{"$f":"VLOOKUP(AK947,C943:Q958,10,FALSE)","v":""},{"$f":"VLOOKUP(AK947,C943:Q958,11,FALSE)","v":""},{"$f":"VLOOKUP(AK947,C943:Q958,12,FALSE)","v":""},{"$f":"VLOOKUP(AK947,C943:Q958,13,FALSE)","v":""},{"$f":"VLOOKUP(AK947,C943:Q958,14,FALSE)","v":""},{"$f":"VLOOKUP(AK947,C943:Q958,15,FALSE)","v":""}]
[null,6,{"$f":"IF(AK942=\"\",\"\",RANK(F948,F943:F958)*1000+ROW())","v":""},"",{"$f":"IF(L948=\"\",\"\",Nb_Diff_Part(D948,D943:D958,G948,G943:G958,AI961:AI1108)*CritClassInd_DiffPart+Nb_Goal_Part(D948,D943:D958,G948,G943:G958,V961:Z1108)*CritClassInd_GoalPart+Nb_Score_Part(D948,D943:D958,G948,G943:G958,V961:Z1108)*CritClassInd_ScorePart)","v":""},"","F",0,null,{"$f":"IF(AK942=\"\",\"\",(L948*Points_Victoire)+M948*Points_Null)","v":""},"",{"$f":"IF(AK942=\"\",\"\",COUNTIF(AE961:AE1108,G948))","v":""},{"$f":"IF(AK942=\"\",\"\",COUNTIF(AF961:AG1108,G948))","v":""},{"$f":"IF(AK942=\"\",\"\",COUNTIF(AH961:AH1108,G948))","v":""},{"$f":"IF(AK942=\"\",\"\",SUMIF(V961:V1108,G948,AB961:AB1108)+SUMIF(Z961:Z1108,G948,AD961:AD1108))","v":""},{"$f":"IF(AK942=\"\",\"\",SUMIF(V961:V1108,G948,AD961:AD1108)+SUMIF(Z961:Z1108,G948,AB961:AB1108))","v":""},{"$f":"IF(AK942=\"\",\"\",O948-P948)","v":""},null,null,null,null,null,null,null,null,null,null,null,null,null,null,null,null,null,null,null,{"$f":"IF(AK942=\"\",\"\",SMALL(C943:C958,6))","v":""},null,null,{"$f":"IF(AK942=\"\",\"\",INT(AK948/1000))","v":""},{"$f":"IF(AK942=\"\",\"\",VLOOKUP(AK948,C943:Q958,5,FALSE))","v":""},{"$f":"VLOOKUP(AK948,C943:Q958,8,FALSE)","v":""},{"$f":"VLOOKUP(AK948,C943:Q958,9,FALSE)","v":""},{"$f":"VLOOKUP(AK948,C943:Q958,10,FALSE)","v":""},{"$f":"VLOOKUP(AK948,C943:Q958,11,FALSE)","v":""},{"$f":"VLOOKUP(AK948,C943:Q958,12,FALSE)","v":""},{"$f":"VLOOKUP(AK948,C943:Q958,13,FALSE)","v":""},{"$f":"VLOOKUP(AK948,C943:Q958,14,FALSE)","v":""},{"$f":"VLOOKUP(AK948,C943:Q958,15,FALSE)","v":""}]
[null,7,{"$f":"IF(AK942=\"\",\"\",RANK(F949,F943:F958)*1000+ROW())","v":""},"",{"$f":"IF(L949=\"\",\"\",Nb_Diff_Part(D949,D943:D958,G949,G943:G958,AI961:AI1108)*CritClassInd_DiffPart+Nb_Goal_Part(D949,D943:D958,G949,G943:G958,V961:Z1108)*CritClassInd_GoalPart+Nb_Score_Part(D949,D943:D958,G949,G943:G958,V961:Z1108)*CritClassInd_ScorePart)","v":""},"","G",0,null,{"$f":"IF(AK942=\"\",\"\",(L949*Points_Victoire)+M949*Points_Null)","v":""},"",{"$f":"IF(AK942=\"\",\"\",COUNTIF(AE961:AE1108,G949))","v":""},{"$f":"IF(AK942=\"\",\"\",COUNTIF(AF961:AG1108,G949))","v":""},{"$f":"IF(AK942=\"\",\"\",COUNTIF(AH961:AH1108,G949))","v":""},{"$f":"IF(AK942=\"\",\"\",SUMIF(V961:V1108,G949,AB961:AB1108)+SUMIF(Z961:Z1108,G949,AD961:AD1108))","v":""},{"$f":"IF(AK942=\"\",\"\",SUMIF(V961:V1108,G949,AD961:AD1108)+SUMIF(Z961:Z1108,G949,AB961:AB1108))","v":""},{"$f":"IF(AK942=\"\",\"\",O949-P949)","v":""},null,null,null,null,null,null,null,null,null,null,null,null,null,null,null,null,null,null,null,{"$f":"IF(AK942=\"\",\"\",SMALL(C943:C958,7))","v":""},null,null,{"$f":"IF(AK942=\"\",\"\",INT(AK949/1000))","v":""},{"$f":"IF(AK942=\"\",\"\",VLOOKUP(AK949,C943:Q958,5,FALSE))","v":""},{"$f":"VLOOKUP(AK949,C943:Q958,8,FALSE)","v":""},{"$f":"VLOOKUP(AK949,C943:Q958,9,FALSE)","v":""},{"$f":"VLOOKUP(AK949,C943:Q958,10,FALSE)","v":""},{"$f":"VLOOKUP(AK949,C943:Q958,11,FALSE)","v":""},{"$f":"VLOOKUP(AK949,C943:Q958,12,FALSE)","v":""},{"$f":"VLOOKUP(AK949,C943:Q958,13,FALSE)","v":""},{"$f":"VLOOKUP(AK949,C943:Q958,14,FALSE)","v":""},{"$f":"VLOOKUP(AK949,C943:Q958,15,FALSE)","v":""}]
[null,8,{"$f":"IF(AK942=\"\",\"\",RANK(F950,F943:F958)*1000+ROW())","v":""},"",{"$f":"IF(L950=\"\",\"\",Nb_Diff_Part(D950,D943:D958,G950,G943:G958,AI961:AI1108)*CritClassInd_DiffPart+Nb_Goal_Part(D950,D943:D958,G950,G943:G958,V961:Z1108)*CritClassInd_GoalPart+Nb_Score_Part(D950,D943:D958,G950,G943:G958,V961:Z1108)*CritClassInd_ScorePart)","v":""},"","H",0,null,{"$f":"IF(AK942=\"\",\"\",(L950*Points_Victoire)+M950*Points_Null)","v":""},"",{"$f":"IF(AK942=\"\",\"\",COUNTIF(AE961:AE1108,G950))","v":""},{"$f":"IF(AK942=\"\",\"\",COUNTIF(AF961:AG1108,G950))","v":""},{"$f":"IF(AK942=\"\",\"\",COUNTIF(AH961:AH1108,G950))","v":""},{"$f":"IF(AK942=\"\",\"\",SUMIF(V961:V1108,G950,AB961:AB1108)+SUMIF(Z961:Z1108,G950,AD961:AD1108))","v":""},{"$f":"IF(AK942=\"\",\"\",SUMIF(V961:V1108,G950,AD961:AD1108)+SUMIF(Z961:Z1108,G950,AB961:AB1108))","v":""},{"$f":"IF(AK942=\"\",\"\",O950-P950)","v":""},null,null,null,null,null,null,null,null,null,null,null,null,null,null,null,null,null,null,null,{"$f":"IF(AK942=\"\",\"\",SMALL(C943:C958,8))","v":""},null,null,{"$f":"IF(AK942=\"\",\"\",INT(AK950/1000))","v":""},{"$f":"IF(AK942=\"\",\"\",VLOOKUP(AK950,C943:Q958,5,FALSE))","v":""},{"$f":"VLOOKUP(AK950,C943:Q958,8,FALSE)","v":""},{"$f":"VLOOKUP(AK950,C943:Q958,9,FALSE)","v":""},{"$f":"VLOOKUP(AK950,C943:Q958,10,FALSE)","v":""},{"$f":"VLOOKUP(AK950,C943:Q958,11,FALSE)","v":""},{"$f":"VLOOKUP(AK950,C943:Q958,12,FALSE)","v":""},{"$f":"VLOOKUP(AK950,C943:Q958,13,FALSE)","v":""},{"$f":"VLOOKUP(AK950,C943:Q958,14,FALSE)","v":""},{"$f":"VLOOKUP(AK950,C943:Q958,15,FALSE)","v":""}]
[null,9,{"$f":"IF(AK942=\"\",\"\",RANK(F951,F943:F958)*1000+ROW())","v":""},"",{"$f":"IF(L951=\"\",\"\",Nb_Diff_Part(D951,D943:D958,G951,G943:G958,AI961:AI1108)*CritClassInd_DiffPart+Nb_Goal_Part(D951,D943:D958,G951,G943:G958,V961:Z1108)*CritClassInd_GoalPart+Nb_Score_Part(D951,D943:D958,G951,G943:G958,V961:Z1108)*CritClassInd_ScorePart)","v":""},"","I",0,null,{"$f":"IF(AK942=\"\",\"\",(L951*Points_Victoire)+M951*Points_Null)","v":""},"",{"$f":"IF(AK942=\"\",\"\",COUNTIF(AE961:AE1108,G951))","v":""},{"$f":"IF(AK942=\"\",\"\",COUNTIF(AF961:AG1108,G951))","v":""},{"$f":"IF(AK942=\"\",\"\",COUNTIF(AH961:AH1108,G951))","v":""},{"$f":"IF(AK942=\"\",\"\",SUMIF(V961:V1108,G951,AB961:AB1108)+SUMIF(Z961:Z1108,G951,AD961:AD1108))","v":""},{"$f":"IF(AK942=\"\",\"\",SUMIF(V961:V1108,G951,AD961:AD1108)+SUMIF(Z961:Z1108,G951,AB961:AB1108))","v":""},{"$f":"IF(AK942=\"\",\"\",O951-P951)","v":""},null,null,null,null,null,null,null,null,null,null,null,null,null,null,null,null,null,null,null,{"$f":"IF(AK942=\"\",\"\",SMALL(C943:C958,9))","v":""},null,null,{"$f":"IF(AK942=\"\",\"\",INT(AK951/1000))","v":""},{"$f":"IF(AK942=\"\",\"\",VLOOKUP(AK951,C943:Q958,5,FALSE))","v":""},{"$f":"VLOOKUP(AK951,C943:Q958,8,FALSE)","v":""},{"$f":"VLOOKUP(AK951,C943:Q958,9,FALSE)","v":""},{"$f":"VLOOKUP(AK951,C943:Q958,10,FALSE)","v":""},{"$f":"VLOOKUP(AK951,C943:Q958,11,FALSE)","v":""},{"$f":"VLOOKUP(AK951,C943:Q958,12,FALSE)","v":""},{"$f":"VLOOKUP(AK951,C943:Q958,13,FALSE)","v":""},{"$f":"VLOOKUP(AK951,C943:Q958,14,FALSE)","v":""},{"$f":"VLOOKUP(AK951,C943:Q958,15,FALSE)","v":""}]
[null,10,{"$f":"IF(AK942=\"\",\"\",RANK(F952,F943:F958)*1000+ROW())","v":""},"",{"$f":"IF(L952=\"\",\"\",Nb_Diff_Part(D952,D943:D958,G952,G943:G958,AI961:AI1108)*CritClassInd_DiffPart+Nb_Goal_Part(D952,D943:D958,G952,G943:G958,V961:Z1108)*CritClassInd_GoalPart+Nb_Score_Part(D952,D943:D958,G952,G943:G958,V961:Z1108)*CritClassInd_ScorePart)","v":""},"","J",0,null,{"$f":"IF(AK942=\"\",\"\",(L952*Points_Victoire)+M952*Points_Null)","v":""},"",{"$f":"IF(AK942=\"\",\"\",COUNTIF(AE961:AE1108,G952))","v":""},{"$f":"IF(AK942=\"\",\"\",COUNTIF(AF961:AG1108,G952))","v":""},{"$f":"IF(AK942=\"\",\"\",COUNTIF(AH961:AH1108,G952))","v":""},{"$f":"IF(AK942=\"\",\"\",SUMIF(V961:V1108,G952,AB961:AB1108)+SUMIF(Z961:Z1108,G952,AD961:AD1108))","v":""},{"$f":"IF(AK942=\"\",\"\",SUMIF(V961:V1108,G952,AD961:AD1108)+SUMIF(Z961:Z1108,G952,AB961:AB1108))","v":""},{"$f":"IF(AK942=\"\",\"\",O952-P952)","v":""},null,null,null,null,null,null,null,null,null,null,null,null,null,null,null,null,null,null,null,{"$f":"IF(AK942=\"\",\"\",SMALL(C943:C958,10))","v":""},null,null,{"$f":"IF(AK942=\"\",\"\",INT(AK952/1000))","v":""},{"$f":"IF(AK942=\"\",\"\",VLOOKUP(AK952,C943:Q958,5,FALSE))","v":""},{"$f":"VLOOKUP(AK952,C943:Q958,8,FALSE)","v":""},{"$f":"VLOOKUP(AK952,C943:Q958,9,FALSE)","v":""},{"$f":"VLOOKUP(AK952,C943:Q958,10,FALSE)","v":""},{"$f":"VLOOKUP(AK952,C943:Q958,11,FALSE)","v":""},{"$f":"VLOOKUP(AK952,C943:Q958,12,FALSE)","v":""},{"$f":"VLOOKUP(AK952,C943:Q958,13,FALSE)","v":""},{"$f":"VLOOKUP(AK952,C943:Q958,14,FALSE)","v":""},{"$f":"VLOOKUP(AK952,C943:Q958,15,FALSE)","v":""}]
[null,11,{"$f":"IF(AK942=\"\",\"\",RANK(F953,F943:F958)*1000+ROW())","v":""},"",{"$f":"IF(L953=\"\",\"\",Nb_Diff_Part(D953,D943:D958,G953,G943:G958,AI961:AI1108)*CritClassInd_DiffPart+Nb_Goal_Part(D953,D943:D958,G953,G943:G958,V961:Z1108)*CritClassInd_GoalPart+Nb_Score_Part(D953,D943:D958,G953,G943:G958,V961:Z1108)*CritClassInd_ScorePart)","v":""},"","K",0,null,{"$f":"IF(AK942=\"\",\"\",(L953*Points_Victoire)+M953*Points_Null)","v":""},"",{"$f":"IF(AK942=\"\",\"\",COUNTIF(AE961:AE1108,G953))","v":""},{"$f":"IF(AK942=\"\",\"\",COUNTIF(AF961:AG1108,G953))","v":""},{"$f":"IF(AK942=\"\",\"\",COUNTIF(AH961:AH1108,G953))","v":""},{"$f":"IF(AK942=\"\",\"\",SUMIF(V961:V1108,G953,AB961:AB1108)+SUMIF(Z961:Z1108,G953,AD961:AD1108))","v":""},{"$f":"IF(AK942=\"\",\"\",SUMIF(V961:V1108,G953,AD961:AD1108)+SUMIF(Z961:Z1108,G953,AB961:AB1108))","v":""},{"$f":"IF(AK942=\"\",\"\",O953-P953)","v":""},null,null,null,null,null,null,null,null,null,null,null,null,null,null,null,null,null,null,null,{"$f":"IF(AK942=\"\",\"\",SMALL(C943:C958,11))","v":""},null,null,{"$f":"IF(AK942=\"\",\"\",INT(AK953/1000))","v":""},{"$f":"IF(AK942=\"\",\"\",VLOOKUP(AK953,C943:Q958,5,FALSE))","v":""},{"$f":"VLOOKUP(AK953,C943:Q958,8,FALSE)","v":""},{"$f":"VLOOKUP(AK953,C943:Q958,9,FALSE)","v":""},{"$f":"VLOOKUP(AK953,C943:Q958,10,FALSE)","v":""},{"$f":"VLOOKUP(AK953,C943:Q958,11,FALSE)","v":""},{"$f":"VLOOKUP(AK953,C943:Q958,12,FALSE)","v":""},{"$f":"VLOOKUP(AK953,C943:Q958,13,FALSE)","v":""},{"$f":"VLOOKUP(AK953,C943:Q958,14,FALSE)","v":""},{"$f":"VLOOKUP(AK953,C943:Q958,15,FALSE)","v":""}]
[null,12,{"$f":"IF(AK942=\"\",\"\",RANK(F954,F943:F958)*1000+ROW())","v":""},"",{"$f":"IF(L954=\"\",\"\",Nb_Diff_Part(D954,D943:D958,G954,G943:G958,AI961:AI1108)*CritClassInd_DiffPart+Nb_Goal_Part(D954,D943:D958,G954,G943:G958,V961:Z1108)*CritClassInd_GoalPart+Nb_Score_Part(D954,D943:D958,G954,G943:G958,V961:Z1108)*CritClassInd_ScorePart)","v":""},"","L",0,null,{"$f":"IF(AK942=\"\",\"\",(L954*Points_Victoire)+M954*Points_Null)","v":""},"",{"$f":"IF(AK942=\"\",\"\",COUNTIF(AE961:AE1108,G954))","v":""},{"$f":"IF(AK942=\"\",\"\",COUNTIF(AF961:AG1108,G954))","v":""},{"$f":"IF(AK942=\"\",\"\",COUNTIF(AH961:AH1108,G954))","v":""},{"$f":"IF(AK942=\"\",\"\",SUMIF(V961:V1108,G954,AB961:AB1108)+SUMIF(Z961:Z1108,G954,AD961:AD1108))","v":""},{"$f":"IF(AK942=\"\",\"\",SUMIF(V961:V1108,G954,AD961:AD1108)+SUMIF(Z961:Z1108,G954,AB961:AB1108))","v":""},{"$f":"IF(AK942=\"\",\"\",O954-P954)","v":""},null,null,null,null,null,null,null,null,null,null,null,null,null,null,null,null,null,null,null,{"$f":"IF(AK942=\"\",\"\",SMALL(C943:C958,12))","v":""},null,null,{"$f":"IF(AK942=\"\",\"\",INT(AK954/1000))","v":""},{"$f":"IF(AK942=\"\",\"\",VLOOKUP(AK954,C943:Q958,5,FALSE))","v":""},{"$f":"VLOOKUP(AK954,C943:Q958,8,FALSE)","v":""},{"$f":"VLOOKUP(AK954,C943:Q958,9,FALSE)","v":""},{"$f":"VLOOKUP(AK954,C943:Q958,10,FALSE)","v":""},{"$f":"VLOOKUP(AK954,C943:Q958,11,FALSE)","v":""},{"$f":"VLOOKUP(AK954,C943:Q958,12,FALSE)","v":""},{"$f":"VLOOKUP(AK954,C943:Q958,13,FALSE)","v":""},{"$f":"VLOOKUP(AK954,C943:Q958,14,FALSE)","v":""},{"$f":"VLOOKUP(AK954,C943:Q958,15,FALSE)","v":""}]
[null,13,{"$f":"IF(AK942=\"\",\"\",RANK(F955,F943:F958)*1000+ROW())","v":""},"",{"$f":"IF(L955=\"\",\"\",Nb_Diff_Part(D955,D943:D958,G955,G943:G958,AI961:AI1108)*CritClassInd_DiffPart+Nb_Goal_Part(D955,D943:D958,G955,G943:G958,V961:Z1108)*CritClassInd_GoalPart+Nb_Score_Part(D955,D943:D958,G955,G943:G958,V961:Z1108)*CritClassInd_ScorePart)","v":""},"","M",0,null,{"$f":"IF(AK942=\"\",\"\",(L955*Points_Victoire)+M955*Points_Null)","v":""},"",{"$f":"IF(AK942=\"\",\"\",COUNTIF(AE961:AE1108,G955))","v":""},{"$f":"IF(AK942=\"\",\"\",COUNTIF(AF961:AG1108,G955))","v":""},{"$f":"IF(AK942=\"\",\"\",COUNTIF(AH961:AH1108,G955))","v":""},{"$f":"IF(AK942=\"\",\"\",SUMIF(V961:V1108,G955,AB961:AB1108)+SUMIF(Z961:Z1108,G955,AD961:AD1108))","v":""},{"$f":"IF(AK942=\"\",\"\",SUMIF(V961:V1108,G955,AD961:AD1108)+SUMIF(Z961:Z1108,G955,AB961:AB1108))","v":""},{"$f":"IF(AK942=\"\",\"\",O955-P955)","v":""},null,null,null,null,null,null,null,null,null,null,null,null,null,null,null,null,null,null,null,{"$f":"IF(AK942=\"\",\"\",SMALL(C943:C958,13))","v":""},null,null,{"$f":"IF(AK942=\"\",\"\",INT(AK955/1000))","v":""},{"$f":"IF(AK942=\"\",\"\",VLOOKUP(AK955,C943:Q958,5,FALSE))","v":""},{"$f":"VLOOKUP(AK955,C943:Q958,8,FALSE)","v":""},{"$f":"VLOOKUP(AK955,C943:Q958,9,FALSE)","v":""},{"$f":"VLOOKUP(AK955,C943:Q958,10,FALSE)","v":""},{"$f":"VLOOKUP(AK955,C943:Q958,11,FALSE)","v":""},{"$f":"VLOOKUP(AK955,C943:Q958,12,FALSE)","v":""},{"$f":"VLOOKUP(AK955,C943:Q958,13,FALSE)","v":""},{"$f":"VLOOKUP(AK955,C943:Q958,14,FALSE)","v":""},{"$f":"VLOOKUP(AK955,C943:Q958,15,FALSE)","v":""}]
[null,14,{"$f":"IF(AK942=\"\",\"\",RANK(F956,F943:F958)*1000+ROW())","v":""},"",{"$f":"IF(L956=\"\",\"\",Nb_Diff_Part(D956,D943:D958,G956,G943:G958,AI961:AI1108)*CritClassInd_DiffPart+Nb_Goal_Part(D956,D943:D958,G956,G943:G958,V961:Z1108)*CritClassInd_GoalPart+Nb_Score_Part(D956,D943:D958,G956,G943:G958,V961:Z1108)*CritClassInd_ScorePart)","v":""},"","N",0,null,{"$f":"IF(AK942=\"\",\"\",(L956*Points_Victoire)+M956*Points_Null)","v":""},"",{"$f":"IF(AK942=\"\",\"\",COUNTIF(AE961:AE1108,G956))","v":""},{"$f":"IF(AK942=\"\",\"\",COUNTIF(AF961:AG1108,G956))","v":""},{"$f":"IF(AK942=\"\",\"\",COUNTIF(AH961:AH1108,G956))","v":""},{"$f":"IF(AK942=\"\",\"\",SUMIF(V961:V1108,G956,AB961:AB1108)+SUMIF(Z961:Z1108,G956,AD961:AD1108))","v":""},{"$f":"IF(AK942=\"\",\"\",SUMIF(V961:V1108,G956,AD961:AD1108)+SUMIF(Z961:Z1108,G956,AB961:AB1108))","v":""},{"$f":"IF(AK942=\"\",\"\",O956-P956)","v":""},null,null,null,null,null,null,null,null,null,null,null,null,null,null,null,null,null,null,null,{"$f":"IF(AK942=\"\",\"\",SMALL(C943:C958,14))","v":""},null,null,{"$f":"IF(AK942=\"\",\"\",INT(AK956/1000))","v":""},{"$f":"IF(AK942=\"\",\"\",VLOOKUP(AK956,C943:Q958,5,FALSE))","v":""},{"$f":"VLOOKUP(AK956,C943:Q958,8,FALSE)","v":""},{"$f":"VLOOKUP(AK956,C943:Q958,9,FALSE)","v":""},{"$f":"VLOOKUP(AK956,C943:Q958,10,FALSE)","v":""},{"$f":"VLOOKUP(AK956,C943:Q958,11,FALSE)","v":""},{"$f":"VLOOKUP(AK956,C943:Q958,12,FALSE)","v":""},{"$f":"VLOOKUP(AK956,C943:Q958,13,FALSE)","v":""},{"$f":"VLOOKUP(AK956,C943:Q958,14,FALSE)","v":""},{"$f":"VLOOKUP(AK956,C943:Q958,15,FALSE)","v":""}]
[null,15,{"$f":"IF(AK942=\"\",\"\",RANK(F957,F943:F958)*1000+ROW())","v":""},"",{"$f":"IF(L957=\"\",\"\",Nb_Diff_Part(D957,D943:D958,G957,G943:G958,AI961:AI1108)*CritClassInd_DiffPart+Nb_Goal_Part(D957,D943:D958,G957,G943:G958,V961:Z1108)*CritClassInd_GoalPart+Nb_Score_Part(D957,D943:D958,G957,G943:G958,V961:Z1108)*CritClassInd_ScorePart)","v":""},"","O",0,null,{"$f":"IF(AK942=\"\",\"\",(L957*Points_Victoire)+M957*Points_Null)","v":""},"",{"$f":"IF(AK942=\"\",\"\",COUNTIF(AE961:AE1108,G957))","v":""},{"$f":"IF(AK942=\"\",\"\",COUNTIF(AF961:AG1108,G957))","v":""},{"$f":"IF(AK942=\"\",\"\",COUNTIF(AH961:AH1108,G957))","v":""},{"$f":"IF(AK942=\"\",\"\",SUMIF(V961:V1108,G957,AB961:AB1108)+SUMIF(Z961:Z1108,G957,AD961:AD1108))","v":""},{"$f":"IF(AK942=\"\",\"\",SUMIF(V961:V1108,G957,AD961:AD1108)+SUMIF(Z961:Z1108,G957,AB961:AB1108))","v":""},{"$f":"IF(AK942=\"\",\"\",O957-P957)","v":""},null,null,null,null,null,null,null,null,null,null,null,null,null,null,null,null,null,null,null,{"$f":"IF(AK942=\"\",\"\",SMALL(C943:C958,15))","v":""},null,null,{"$f":"IF(AK942=\"\",\"\",INT(AK957/1000))","v":""},{"$f":"IF(AK942=\"\",\"\",VLOOKUP(AK957,C943:Q958,5,FALSE))","v":""},{"$f":"VLOOKUP(AK957,C943:Q958,8,FALSE)","v":""},{"$f":"VLOOKUP(AK957,C943:Q958,9,FALSE)","v":""},{"$f":"VLOOKUP(AK957,C943:Q958,10,FALSE)","v":""},{"$f":"VLOOKUP(AK957,C943:Q958,11,FALSE)","v":""},{"$f":"VLOOKUP(AK957,C943:Q958,12,FALSE)","v":""},{"$f":"VLOOKUP(AK957,C943:Q958,13,FALSE)","v":""},{"$f":"VLOOKUP(AK957,C943:Q958,14,FALSE)","v":""},{"$f":"VLOOKUP(AK957,C943:Q958,15,FALSE)","v":""}]
[null,16,{"$f":"IF(AK942=\"\",\"\",RANK(F958,F943:F958)*1000+ROW())","v":""},"",{"$f":"IF(L958=\"\",\"\",Nb_Diff_Part(D958,D943:D958,G958,G943:G958,AI961:AI1108)*CritClassInd_DiffPart+Nb_Goal_Part(D958,D943:D958,G958,G943:G958,V961:Z1108)*CritClassInd_GoalPart+Nb_Score_Part(D958,D943:D958,G958,G943:G958,V961:Z1108)*CritClassInd_ScorePart)","v":""},"","P",0,null,{"$f":"IF(AK942=\"\",\"\",(L958*Points_Victoire)+M958*Points_Null)","v":""},"",{"$f":"IF(AK942=\"\",\"\",COUNTIF(AE961:AE1108,G958))","v":""},{"$f":"IF(AK942=\"\",\"\",COUNTIF(AF961:AG1108,G958))","v":""},{"$f":"IF(AK942=\"\",\"\",COUNTIF(AH961:AH1108,G958))","v":""},{"$f":"IF(AK942=\"\",\"\",SUMIF(V961:V1108,G958,AB961:AB1108)+SUMIF(Z961:Z1108,G958,AD961:AD1108))","v":""},{"$f":"IF(AK942=\"\",\"\",SUMIF(V961:V1108,G958,AD961:AD1108)+SUMIF(Z961:Z1108,G958,AB961:AB1108))","v":""},{"$f":"IF(AK942=\"\",\"\",O958-P958)","v":""},null,null,null,null,null,null,null,null,null,null,null,null,null,null,null,null,null,null,null,{"$f":"IF(AK942=\"\",\"\",SMALL(C943:C958,16))","v":""},null,null,{"$f":"IF(AK942=\"\",\"\",INT(AK958/1000))","v":""},{"$f":"IF(AK942=\"\",\"\",VLOOKUP(AK958,C943:Q958,5,FALSE))","v":""},{"$f":"VLOOKUP(AK958,C943:Q958,8,FALSE)","v":""},{"$f":"VLOOKUP(AK958,C943:Q958,9,FALSE)","v":""},{"$f":"VLOOKUP(AK958,C943:Q958,10,FALSE)","v":""},{"$f":"VLOOKUP(AK958,C943:Q958,11,FALSE)","v":""},{"$f":"VLOOKUP(AK958,C943:Q958,12,FALSE)","v":""},{"$f":"VLOOKUP(AK958,C943:Q958,13,FALSE)","v":""},{"$f":"VLOOKUP(AK958,C943:Q958,14,FALSE)","v":""},{"$f":"VLOOKUP(AK958,C943:Q958,15,FALSE)","v":""}]
[null,null,null,null,null,null,null,null,null,null,null,null,null,null,null,null,null,null,1,null,null,null,null,null,null,null,null,{"$f":"IF(MaxScore,N_MaxScore,\"\")","v":"Max Score"}]
[null,null,null,null,null,null,null,null,null,null,null,null,null,null,null,null,null,null,{"$f":"N_Heure","v":"Time"},{"$f":"N_Table","v":"Table"},{"$f":"N_Arbitre","v":"Referee"},{"$f":"N_Matches","v":"Matches"}]
[null,null,null,null,null,null,null,null,null,null,null,null,null,null,null,null,null,"#G1",null,null,null,{"$f":"IF(G943=\"\",\"\",G943)","v":"A"},null,"-",null,{"$f":"IF(G944=\"\",\"\",G944)","v":"B"},null,{"$f":"IF(MaxScore,MaxGoals(W961,Y961,MaxGoalsValue),IF(W961=\"\",\"\",W961))","v":0},{"$f":"IF(MaxScore,\"-\",IF(W961=\"\",\"\",\"-\"))","v":"-"},{"$f":"IF(MaxScore,MaxGoals(Y961,W961,MaxGoalsValue),IF(Y961=\"\",\"\",Y961))","v":0},{"$f":"IF(W961=\"\",\"\",IF(W961>Y961,V961,IF(W961=Y961,\"\",Z961)))","v":""},{"$f":"IF(W961=\"\",\"\",IF(W961=Y961,V961,\"\"))","v":""},{"$f":"IF(W961=\"\",\"\",IF(W961=Y961,Z961,\"\"))","v":""},{"$f":"IF(W961=\"\",\"\",IF(W961<Y961,V961,IF(W961=Y961,\"\",Z961)))","v":""},{"$f":"CONCATENATE(AE961,AH961)","v":""}]
[null,null,null,null,null,null,null,null,null,null,null,null,null,null,null,null,null,"#G1",null,null,null,{"$f":"IF(G945=\"\",\"\",G945)","v":"C"},null,"-",null,{"$f":"IF(G946=\"\",\"\",G946)","v":"D"},null,0,"-",0,"","","","",""]
[null,null,null,null,null,null,null,null,null,null,null,null,null,null,null,null,null,"#G1",null,null,null,{"$f":"IF(G947=\"\",\"\",G947)","v":"E"},null,"-",null,{"$f":"IF(G948=\"\",\"\",G948)","v":"F"},null,0,"-",0,"","","","",""]
[null,null,null,null,null,null,null,null,null,null,null,null,null,null,null,null,null,"#G1",null,null,null,{"$f":"IF(G949=\"\",\"\",G949)","v":"G"},null,"-",null,{"$f":"IF(G950=\"\",\"\",G950)","v":"H"},null,0,"-",0,"","","","",""]
[null,null,null,null,null,null,null,null,null,null,null,null,null,null,null,null,null,"#G1",null,null,null,{"$f":"IF(G951=\"\",\"\",G951)","v":"I"},null,"-",null,{"$f":"IF(G952=\"\",\"\",G952)","v":"J"},null,0,"-",0,"","","","",""]
[null,null,null,null,null,null,null,null,null,null,null,null,null,null,null,null,null,"#G1",null,null,null,{"$f":"IF(G953=\"\",\"\",G953)","v":"K"},null,"-",null,{"$f":"IF(G954=\"\",\"\",G954)","v":"L"},null,0,"-",0,"","","","",""]
[null,null,null,null,null,null,null,null,null,null,null,null,null,null,null,null,null,"#G1",null,null,null,{"$f":"IF(G955=\"\",\"\",G955)","v":"M"},null,"-",null,{"$f":"IF(G956=\"\",\"\",G956)","v":"N"},null,0,"-",0,"","","","",""]
[null,null,null,null,null,null,null,null,null,null,null,null,null,null,null,null,null,"#G1",null,null,null,{"$f":"IF(G957=\"\",\"\",G957)","v":"O"},null,"-",null,{"$f":"IF(G958=\"\",\"\",G958)","v":"P"},null,0,"-",0,"","","","",""]
[null,null,null,null,null,null,null,null,null,null,null,null,null,null,null,null,null,null,{"$f":"S959+1","v":2}]
[null,null,null,null,null,null,null,null,null,null,null,null,null,null,null,null,null,null,{"$f":"N_Heure","v":"Time"},{"$f":"N_Table","v":"Table"},{"$f":"N_Arbitre","v":"Referee"},{"$f":"N_Matches","v":"Matches"}]
[null,null,null,null,null,null,null,null,null,null,null,null,null,null,null,null,null,"#G2",null,null,null,{"$f":"V962","v":"C"},null,"-",null,{"$f":"V961","v":"A"},null,{"$f":"IF(MaxScore,MaxGoals(W971,Y971,MaxGoalsValue),IF(W971=\"\",\"\",W971))","v":0},{"$f":"IF(MaxScore,\"-\",IF(W971=\"\",\"\",\"-\"))","v":"-"},{"$f":"IF(MaxScore,MaxGoals(Y971,W971,MaxGoalsValue),IF(Y971=\"\",\"\",Y971))","v":0},{"$f":"IF(W971=\"\",\"\",IF(W971>Y971,V971,IF(W971=Y971,\"\",Z971)))","v":""},{"$f":"IF(W971=\"\",\"\",IF(W971=Y971,V971,\"\"))","v":""},{"$f":"IF(W971=\"\",\"\",IF(W971=Y971,Z971,\"\"))","v":""},{"$f":"IF(W971=\"\",\"\",IF(W971<Y971,V971,IF(W971=Y971,\"\",Z971)))","v":""},{"$f":"CONCATENATE(AE971,AH971)","v":""}]
[null,null,null,null,null,null,null,null,null,null,null,null,null,null,null,null,null,"#G2",null,null,null,{"$f":"Z961","v":"B"},null,"-",null,{"$f":"V963","v":"E"},null,0,"-",0,"","","","",""]
[null,null,null,null,null,null,null,null,null,null,null,null,null,null,null,null,null,"#G2",null,null,null,"D",null,"-",null,"G",null,0,"-",0,"","","","",""]
[null,null,null,null,null,null,null,null,null,null,null,null,null,null,null,null,null,"#G2",null,null,null,"F",null,"-",null,"I",null,0,"-",0,"","","","",""]
[null,null,null,null,null,null,null,null,null,null,null,null,null,null,null,null,null,"#G2",null,null,null,"H",null,"-",null,"K",null,0,"-",0,"","","","",""]
[null,null,null,null,null,null,null,null,null,null,null,null,null,null,null,null,null,"#G2",null,null,null,"J",null,"-",null,"M",null,0,"-",0,"","","","",""]
[null,null,null,null,null,null,null,null,null,null,null,null,null,null,null,null,null,"#G2",null,null,null,"L",null,"-",null,"O",null,0,"-",0,"","","","",""]
[null,null,null,null,null,null,null,null,null,null,null,null,null,null,null,null,null,"#G2",null,null,null,"N",null,"-",null,{"$f":"Z968","v":"P"},null,0,"-",0,"","","","",""]
[null,null,null,null,null,null,null,null,null,null,null,null,null,null,null,null,null,null,{"$f":"S969+1","v":3}]
[null,null,null,null,null,null,null,null,null,null,null,null,null,null,null,null,null,null,{"$f":"N_Heure","v":"Time"},{"$f":"N_Table","v":"Table"},{"$f":"N_Arbitre","v":"Referee"},{"$f":"N_Matches","v":"Matches"}]
[null,null,null,null,null,null,null,null,null,null,null,null,null,null,null,null,null,"#G3",null,null,null,{"$f":"Z971","v":"A"},null,"-",null,{"$f":"Z972","v":"E"},null,{"$f":"IF(MaxScore,MaxGoals(W981,Y981,MaxGoalsValue),IF(W981=\"\",\"\",W981))","v":0},{"$f":"IF(MaxScore,\"-\",IF(W981=\"\",\"\",\"-\"))","v":"-"},{"$f":"IF(MaxScore,MaxGoals(Y981,W981,MaxGoalsValue),IF(Y981=\"\",\"\",Y981))","v":0},{"$f":"IF(W981=\"\",\"\",IF(W981>Y981,V981,IF(W981=Y981,\"\",Z981)))","v":""},{"$f":"IF(W981=\"\",\"\",IF(W981=Y981,V981,\"\"))","v":""},{"$f":"IF(W981=\"\",\"\",IF(W981=Y981,Z981,\"\"))","v":""},{"$f":"IF(W981=\"\",\"\",IF(W981<Y981,V981,IF(W981=Y981,\"\",Z981)))","v":""},{"$f":"CONCATENATE(AE981,AH981)","v":""}]
[null,null,null,null,null,null,null,null,null,null,null,null,null,null,null,null,null,"#G3",null,null,null,{"$f":"Z973","v":"G"},null,"-",null,{"$f":"V971","v":"C"},null,0,"-",0,"","","","",""]
[null,null,null,null,null,null,null,null,null,null,null,null,null,null,null,null,null,"#G3",null,null,null,"I",null,"-",null,"B",null,0,"-",0,"","","","",""]
[null,null,null,null,null,null,null,null,null,null,null,null,null,null,null,null,null,"#G3",null,null,null,"K",null,"-",null,"D",null,0,"-",0,"","","","",""]
[null,null,null,null,null,null,null,null,null,null,null,null,null,null,null,null,null,"#G3",null,null,null,"M",null,"-",null,"F",null,0,"-",0,"","","","",""]
[null,null,null,null,null,null,null,null,null,null,null,null,null,null,null,null,null,"#G3",null,null,null,"O",null,"-",null,"H",null,0,"-",0,"","","","",""]
[null,null,null,null,null,null,null,null,null,null,null,null,null,null,null,null,null,"#G3",null,null,null,"P",null,"-",null,"J",null,0,"-",0,"","","","",""]
[null,null,null,null,null,null,null,null,null,null,null,null,null,null,null,null,null,"#G3",null,null,null,{"$f":"V978","v":"N"},null,"-",null,{"$f":"V977","v":"L"},null,0,"-",0,"","","","",""]
[null,null,null,null,null,null,null,null,null,null,null,null,null,null,null,null,null,null,{"$f":"S979+1","v":4}]
[null,null,null,null,null,null,null,null,null,null,null,null,null,null,null,null,null,null,{"$f":"N_Heure","v":"Time"},{"$f":"N_Table","v":"Table"},{"$f":"N_Arbitre","v":"Referee"},{"$f":"N_Matches","v":"Matches"}]
[null,null,null,null,null,null,null,null,null,null,null,null,null,null,null,null,null,"#G4",null,null,null,{"$f":"V982","v":"G"},null,"-",null,{"$f":"V981","v":"A"},null,{"$f":"IF(MaxScore,MaxGoals(W991,Y991,MaxGoalsValue),IF(W991=\"\",\"\",W991))","v":0},{"$f":"IF(MaxScore,\"-\",IF(W991=\"\",\"\",\"-\"))","v":"-"},{"$f":"IF(MaxScore,MaxGoals(Y991,W991,MaxGoalsValue),IF(Y991=\"\",\"\",Y991))","v":0},{"$f":"IF(W991=\"\",\"\",IF(W991>Y991,V991,IF(W991=Y991,\"\",Z991)))","v":""},{"$f":"IF(W991=\"\",\"\",IF(W991=Y991,V991,\"\"))","v":""},{"$f":"IF(W991=\"\",\"\",IF(W991=Y991,Z991,\"\"))","v":""},{"$f":"IF(W991=\"\",\"\",IF(W991<Y991,V991,IF(W991=Y991,\"\",Z991)))","v":""},{"$f":"CONCATENATE(AE991,AH991)","v":""}]
[null,null,null,null,null,null,null,null,null,null,null,null,null,null,null,null,null,"#G4",null,null,null,{"$f":"Z981","v":"E"},null,"-",null,{"$f":"V983","v":"I"},null,0,"-",0,"","","","",""]
[null,null,null,null,null,null,null,null,null,null,null,null,null,null,null,null,null,"#G4",null,null,null,"C",null,"-",null,"K",null,0,"-",0,"","","","",""]
[null,null,null,null,null,null,null,null,null,null,null,null,null,null,null,null,null,"#G4",null,null,null,"B",null,"-",null,"M",null,0,"-",0,"","","","",""]
[null,null,null,null,null,null,null,null,null,null,null,null,null,null,null,null,null,"#G4",null,null,null,"D",null,"-",null,"O",null,0,"-",0,"","","","",""]
[null,null,null,null,null,null,null,null,null,null,null,null,null,null,null,null,null,"#G4",null,null,null,"F",null,"-",null,"P",null,0,"-",0,"","","","",""]
[null,null,null,null,null,null,null,null,null,null,null,null,null,null,null,null,null,"#G4",null,null,null,"H",null,"-",null,"N",null,0,"-",0,"","","","",""]
[null,null,null,null,null,null,null,null,null,null,null,null,null,null,null,null,null,"#G4",null,null,null,"J",null,"-",null,{"$f":"Z988","v":"L"},null,0,"-",0,"","","","",""]
[null,null,null,null,null,null,null,null,null,null,null,null,null,null,null,null,null,null,{"$f":"S989+1","v":5}]
[null,null,null,null,null,null,null,null,null,null,null,null,null,null,null,null,null,null,{"$f":"N_Heure","v":"Time"},{"$f":"N_Table","v":"Table"},{"$f":"N_Arbitre","v":"Referee"},{"$f":"N_Matches","v":"Matches"}]
[null,null,null,null,null,null,null,null,null,null,null,null,null,null,null,null,null,"#G5",null,null,null,{"$f":"Z991","v":"A"},null,"-",null,{"$f":"Z992","v":"I"},null,{"$f":"IF(MaxScore,MaxGoals(W1001,Y1001,MaxGoalsValue),IF(W1001=\"\",\"\",W1001))","v":0},{"$f":"IF(MaxScore,\"-\",IF(W1001=\"\",\"\",\"-\"))","v":"-"},{"$f":"IF(MaxScore,MaxGoals(Y1001,W1001,MaxGoalsValue),IF(Y1001=\"\",\"\",Y1001))","v":0},{"$f":"IF(W1001=\"\",\"\",IF(W1001>Y1001,V1001,IF(W1001=Y1001,\"\",Z1001)))","v":""},{"$f":"IF(W1001=\"\",\"\",IF(W1001=Y1001,V1001,\"\"))","v":""},{"$f":"IF(W1001=\"\",\"\",IF(W1001=Y1001,Z1001,\"\"))","v":""},{"$f":"IF(W1001=\"\",\"\",IF(W1001<Y1001,V1001,IF(W1001=Y1001,\"\",Z1001)))","v":""},{"$f":"CONCATENATE(AE1001,AH1001)","v":""}]
[null,null,null,null,null,null,null,null,null,null,null,null,null,null,null,null,null,"#G5",null,null,null,{"$f":"Z993","v":"K"},null,"-",null,{"$f":"V991","v":"G"},null,0,"-",0,"","","","",""]
[null,null,null,null,null,null,null,null,null,null,null,null,null,null,null,null,null,"#G5",null,null,null,"M",null,"-",null,"E",null,0,"-",0,"","","","",""]
[null,null,null,null,null,null,null,null,null,null,null,null,null,null,null,null,null,"#G5",null,null,null,"O",null,"-",null,"C",null,0,"-",0,"","","","",""]
[null,null,null,null,null,null,null,null,null,null,null,null,null,null,null,null,null,"#G5",null,null,null,"P",null,"-",null,"B",null,0,"-",0,"","","","",""]
[null,null,null,null,null,null,null,null,null,null,null,null,null,null,null,null,null,"#G5",null,null,null,"N",null,"-",null,"D",null,0,"-",0,"","","","",""]
[null,null,null,null,null,null,null,null,null,null,null,null,null,null,null,null,null,"#G5",null,null,null,"L",null,"-",null,"F",null,0,"-",0,"","","","",""]
[null,null,null,null,null,null,null,null,null,null,null,null,null,null,null,null,null,"#G5",null,null,null,{"$f":"V998","v":"J"},null,"-",null,{"$f":"V997","v":"H"},null,0,"-",0,"","","","",""]
[null,null,null,null,null,null,null,null,null,null,null,null,null,null,null,null,null,null,{"$f":"S999+1","v":6}]
[null,null,null,null,null,null,null,null,null,null,null,null,null,null,null,null,null,null,{"$f":"N_Heure","v":"Time"},{"$f":"N_Table","v":"Table"},{"$f":"N_Arbitre","v":"Referee"},{"$f":"N_Matches","v":"Matches"}]
[null,null,null,null,null,null,null,null,null,null,null,null,null,null,null,null,null,"#G6",null,null,null,{"$f":"V1002","v":"K"},null,"-",null,{"$f":"V1001","v":"A"},null,{"$f":"IF(MaxScore,MaxGoals(W1011,Y1011,MaxGoalsValue),IF(W1011=\"\",\"\",W1011))","v":0},{"$f":"IF(MaxScore,\"-\",IF(W1011=\"\",\"\",\"-\"))","v":"-"},{"$f":"IF(MaxScore,MaxGoals(Y1011,W1011,MaxGoalsValue),IF(Y1011=\"\",\"\",Y1011))","v":0},{"$f":"IF(W1011=\"\",\"\",IF(W1011>Y1011,V1011,IF(W1011=Y1011,\"\",Z1011)))","v":""},{"$f":"IF(W1011=\"\",\"\",IF(W1011=Y1011,V1011,\"\"))","v":""},{"$f":"IF(W1011=\"\",\"\",IF(W1011=Y1011,Z1011,\"\"))","v":""},{"$f":"IF(W1011=\"\",\"\",IF(W1011<Y1011,V1011,IF(W1011=Y1011,\"\",Z1011)))","v":""},{"$f":"CONCATENATE(AE1011,AH1011)","v":""}]
[null,null,null,null,null,null,null,null,null,null,null,null,null,null,null,null,null,"#G6",null,null,null,{"$f":"Z1001","v":"I"},null,"-",null,{"$f":"V1003","v":"M"},null,0,"-",0,"","","","",""]
[null,null,null,null,null,null,null,null,null,null,null,null,null,null,null,null,null,"#G6",null,null,null,"G",null,"-",null,"O",null,0,"-",0,"","","","",""]
[null,null,null,null,null,null,null,null,null,null,null,null,null,null,null,null,null,"#G6",null,null,null,"E",null,"-",null,"P",null,0,"-",0,"","","","",""]
[null,null,null,null,null,null,null,null,null,null,null,null,null,null,null,null,null,"#G6",null,null,null,"C",null,"-",null,"N",null,0,"-",0,"","","","",""]
[null,null,null,null,null,null,null,null,null,null,null,null,null,null,null,null,null,"#G6",null,null,null,"B",null,"-",null,"L",null,0,"-",0,"","","","",""]
[null,null,null,null,null,null,null,null,null,null,null,null,null,null,null,null,null,"#G6",null,null,null,"D",null,"-",null,"J",null,0,"-",0,"","","","",""]
[null,null,null,null,null,null,null,null,null,null,null,null,null,null,null,null,null,"#G6",null,null,null,"F",null,"-",null,{"$f":"Z1008","v":"H"},null,0,"-",0,"","","","",""]
[null,null,null,null,null,null,null,null,null,null,null,null,null,null,null,null,null,null,{"$f":"S1009+1","v":7}]
[null,null,null,null,null,null,null,null,null,null,null,null,null,null,null,null,null,null,{"$f":"N_Heure","v":"Time"},{"$f":"N_Table","v":"Table"},{"$f":"N_Arbitre","v":"Referee"},{"$f":"N_Matches","v":"Matches"}]
[null,null,null,null,null,null,null,null,null,null,null,null,null,null,null,null,null,"#G7",null,null,null,{"$f":"Z1011","v":"A"},null,"-",null,{"$f":"Z1012","v":"M"},null,{"$f":"IF(MaxScore,MaxGoals(W1021,Y1021,MaxGoalsValue),IF(W1021=\"\",\"\",W1021))","v":0},{"$f":"IF(MaxScore,\"-\",IF(W1021=\"\",\"\",\"-\"))","v":"-"},{"$f":"IF(MaxScore,MaxGoals(Y1021,W1021,MaxGoalsValue),IF(Y1021=\"\",\"\",Y1021))","v":0},{"$f":"IF(W1021=\"\",\"\",IF(W1021>Y1021,V1021,IF(W1021=Y1021,\"\",Z1021)))","v":""},{"$f":"IF(W1021=\"\",\"\",IF(W1021=Y1021,V1021,\"\"))","v":""},{"$f":"IF(W1021=\"\",\"\",IF(W1021=Y1021,Z1021,\"\"))","v":""},{"$f":"IF(W1021=\"\",\"\",IF(W1021<Y1021,V1021,IF(W1021=Y1021,\"\",Z1021)))","v":""},{"$f":"CONCATENATE(AE1021,AH1021)","v":""}]
[null,null,null,null,null,null,null,null,null,null,null,null,null,null,null,null,null,"#G7",null,null,null,{"$f":"Z1013","v":"O"},null,"-",null,{"$f":"V1011","v":"K"},null,0,"-",0,"","","","",""]
[null,null,null,null,null,null,null,null,null,null,null,null,null,null,null,null,null,"#G7",null,null,null,"P",null,"-",null,"I",null,0,"-",0,"","","","",""]
[null,null,null,null,null,null,null,null,null,null,null,null,null,null,null,null,null,"#G7",null,null,null,"N",null,"-",null,"G",null,0,"-",0,"","","","",""]
[null,null,null,null,null,null,null,null,null,null,null,null,null,null,null,null,null,"#G7",null,null,null,"L",null,"-",null,"E",null,0,"-",0,"","","","",""]
[null,null,null,null,null,null,null,null,null,null,null,null,null,null,null,null,null,"#G7",null,null,null,"J",null,"-",null,"C",null,0,"-",0,"","","","",""]
[null,null,null,null,null,null,null,null,null,null,null,null,null,null,null,null,null,"#G7",null,null,null,"H",null,"-",null,"B",null,0,"-",0,"","","","",""]
[null,null,null,null,null,null,null,null,null,null,null,null,null,null,null,null,null,"#G7",null,null,null,{"$f":"V1018","v":"F"},null,"-",null,{"$f":"V1017","v":"D"},null,0,"-",0,"","","","",""]
[null,null,null,null,null,null,null,null,null,null,null,null,null,null,null,null,null,null,{"$f":"S1019+1","v":8}]
[null,null,null,null,null,null,null,null,null,null,null,null,null,null,null,null,null,null,{"$f":"N_Heure","v":"Time"},{"$f":"N_Table","v":"Table"},{"$f":"N_Arbitre","v":"Referee"},{"$f":"N_Matches","v":"Matches"}]
[null,null,null,null,null,null,null,null,null,null,null,null,null,null,null,null,null,"#G8",null,null,null,{"$f":"V1022","v":"O"},null,"-",null,{"$f":"V1021","v":"A"},null,{"$f":"IF(MaxScore,MaxGoals(W1031,Y1031,MaxGoalsValue),IF(W1031=\"\",\"\",W1031))","v":0},{"$f":"IF(MaxScore,\"-\",IF(W1031=\"\",\"\",\"-\"))","v":"-"},{"$f":"IF(MaxScore,MaxGoals(Y1031,W1031,MaxGoalsValue),IF(Y1031=\"\",\"\",Y1031))","v":0},{"$f":"IF(W1031=\"\",\"\",IF(W1031>Y1031,V1031,IF(W1031=Y1031,\"\",Z1031)))","v":""},{"$f":"IF(W1031=\"\",\"\",IF(W1031=Y1031,V1031,\"\"))","v":""},{"$f":"IF(W1031=\"\",\"\",IF(W1031=Y1031,Z1031,\"\"))","v":""},{"$f":"IF(W1031=\"\",\"\",IF(W1031<Y1031,V1031,IF(W1031=Y1031,\"\",Z1031)))","v":""},{"$f":"CONCATENATE(AE1031,AH1031)","v":""}]
[null,null,null,null,null,null,null,null,null,null,null,null,null,null,null,null,null,"#G8",null,null,null,{"$f":"Z1021","v":"M"},null,"-",null,{"$f":"V1023","v":"P"},null,0,"-",0,"","","","",""]
[null,null,null,null,null,null,null,null,null,null,null,null,null,null,null,null,null,"#G8",null,null,null,"K",null,"-",null,"N",null,0,"-",0,"","","","",""]
[null,null,null,null,null,null,null,null,null,null,null,null,null,null,null,null,null,"#G8",null,null,null,"I",null,"-",null,"L",null,0,"-",0,"","","","",""]
[null,null,null,null,null,null,null,null,null,null,null,null,null,null,null,null,null,"#G8",null,null,null,"G",null,"-",null,"J",null,0,"-",0,"","","","",""]
[null,null,null,null,null,null,null,null,null,null,null,null,null,null,null,null,null,"#G8",null,null,null,"E",null,"-",null,"H",null,0,"-",0,"","","","",""]
[null,null,null,null,null,null,null,null,null,null,null,null,null,null,null,null,null,"#G8",null,null,null,"C",null,"-",null,"F",null,0,"-",0,"","","","",""]
[null,null,null,null,null,null,null,null,null,null,null,null,null,null,null,null,null,"#G8",null,null,null,"B",null,"-",null,{"$f":"Z1028","v":"D"},null,0,"-",0,"","","","",""]
[null,null,null,null,null,null,null,null,null,null,null,null,null,null,null,null,null,null,{"$f":"S1029+1","v":9}]
[null,null,null,null,null,null,null,null,null,null,null,null,null,null,null,null,null,null,{"$f":"N_Heure","v":"Time"},{"$f":"N_Table","v":"Table"},{"$f":"N_Arbitre","v":"Referee"},{"$f":"N_Matches","v":"Matches"}]
[null,null,null,null,null,null,null,null,null,null,null,null,null,null,null,null,null,"#G9",null,null,null,{"$f":"Z1031","v":"A"},null,"-",null,{"$f":"Z1032","v":"P"},null,{"$f":"IF(MaxScore,MaxGoals(W1041,Y1041,MaxGoalsValue),IF(W1041=\"\",\"\",W1041))","v":0},{"$f":"IF(MaxScore,\"-\",IF(W1041=\"\",\"\",\"-\"))","v":"-"},{"$f":"IF(MaxScore,MaxGoals(Y1041,W1041,MaxGoalsValue),IF(Y1041=\"\",\"\",Y1041))","v":0},{"$f":"IF(W1041=\"\",\"\",IF(W1041>Y1041,V1041,IF(W1041=Y1041,\"\",Z1041)))","v":""},{"$f":"IF(W1041=\"\",\"\",IF(W1041=Y1041,V1041,\"\"))","v":""},{"$f":"IF(W1041=\"\",\"\",IF(W1041=Y1041,Z1041,\"\"))","v":""},{"$f":"IF(W1041=\"\",\"\",IF(W1041<Y1041,V1041,IF(W1041=Y1041,\"\",Z1041)))","v":""},{"$f":"CONCATENATE(AE1041,AH1041)","v":""}]
[null,null,null,null,null,null,null,null,null,null,null,null,null,null,null,null,null,"#G9",null,null,null,{"$f":"Z1033","v":"N"},null,"-",null,{"$f":"V1031","v":"O"},null,0,"-",0,"","","","",""]
[null,null,null,null,null,null,null,null,null,null,null,null,null,null,null,null,null,"#G9",null,null,null,"L",null,"-",null,"M",null,0,"-",0,"","","","",""]
[null,null,null,null,null,null,null,null,null,null,null,null,null,null,null,null,null,"#G9",null,null,null,"J",null,"-",null,"K",null,0,"-",0,"","","","",""]
[null,null,null,null,null,null,null,null,null,null,null,null,null,null,null,null,null,"#G9",null,null,null,"H",null,"-",null,"I",null,0,"-",0,"","","","",""]
[null,null,null,null,null,null,null,null,null,null,null,null,null,null,null,null,null,"#G9",null,null,null,"F",null,"-",null,"G",null,0,"-",0,"","","","",""]
[null,null,null,null,null,null,null,null,null,null,null,null,null,null,null,null,null,"#G9",null,null,null,"D",null,"-",null,"E",null,0,"-",0,"","","","",""]
[null,null,null,null,null,null,null,null,null,null,null,null,null,null,null,null,null,"#G9",null,null,null,{"$f":"V1038","v":"B"},null,"-",null,{"$f":"V1037","v":"C"},null,0,"-",0,"","","","",""]
[null,null,null,null,null,null,null,null,null,null,null,null,null,null,null,null,null,null,{"$f":"S1039+1","v":10}]
[null,null,null,null,null,null,null,null,null,null,null,null,null,null,null,null,null,null,{"$f":"N_Heure","v":"Time"},{"$f":"N_Table","v":"Table"},{"$f":"N_Arbitre","v":"Referee"},{"$f":"N_Matches","v":"Matches"}]
[null,null,null,null,null,null,null,null,null,null,null,null,null,null,null,null,null,"#G10",null,null,null,{"$f":"V1042","v":"N"},null,"-",null,{"$f":"V1041","v":"A"},null,{"$f":"IF(MaxScore,MaxGoals(W1051,Y1051,MaxGoalsValue),IF(W1051=\"\",\"\",W1051))","v":0},{"$f":"IF(MaxScore,\"-\",IF(W1051=\"\",\"\",\"-\"))","v":"-"},{"$f":"IF(MaxScore,MaxGoals(Y1051,W1051,MaxGoalsValue),IF(Y1051=\"\",\"\",Y1051))","v":0},{"$f":"IF(W1051=\"\",\"\",IF(W1051>Y1051,V1051,IF(W1051=Y1051,\"\",Z1051)))","v":""},{"$f":"IF(W1051=\"\",\"\",IF(W1051=Y1051,V1051,\"\"))","v":""},{"$f":"IF(W1051=\"\",\"\",IF(W1051=Y1051,Z1051,\"\"))","v":""},{"$f":"IF(W1051=\"\",\"\",IF(W1051<Y1051,V1051,IF(W1051=Y1051,\"\",Z1051)))","v":""},{"$f":"CONCATENATE(AE1051,AH1051)","v":""}]
[null,null,null,null,null,null,null,null,null,null,null,null,null,null,null,null,null,"#G10",null,null,null,{"$f":"Z1041","v":"P"},null,"-",null,{"$f":"V1043","v":"L"},null,0,"-",0,"","","","",""]
[null,null,null,null,null,null,null,null,null,null,null,null,null,null,null,null,null,"#G10",null,null,null,"O",null,"-",null,"J",null,0,"-",0,"","","","",""]
[null,null,null,null,null,null,null,null,null,null,null,null,null,null,null,null,null,"#G10",null,null,null,"M",null,"-",null,"H",null,0,"-",0,"","","","",""]
[null,null,null,null,null,null,null,null,null,null,null,null,null,null,null,null,null,"#G10",null,null,null,"K",null,"-",null,"F",null,0,"-",0,"","","","",""]
[null,null,null,null,null,null,null,null,null,null,null,null,null,null,null,null,null,"#G10",null,null,null,"I",null,"-",null,"D",null,0,"-",0,"","","","",""]
[null,null,null,null,null,null,null,null,null,null,null,null,null,null,null,null,null,"#G10",null,null,null,"G",null,"-",null,"B",null,0,"-",0,"","","","",""]
[null,null,null,null,null,null,null,null,null,null,null,null,null,null,null,null,null,"#G10",null,null,null,"E",null,"-",null,{"$f":"Z1048","v":"C"},null,0,"-",0,"","","","",""]
[null,null,null,null,null,null,null,null,null,null,null,null,null,null,null,null,null,null,{"$f":"S1049+1","v":11}]
[null,null,null,null,null,null,null,null,null,null,null,null,null,null,null,null,null,null,{"$f":"N_Heure","v":"Time"},{"$f":"N_Table","v":"Table"},{"$f":"N_Arbitre","v":"Referee"},{"$f":"N_Matches","v":"Matches"}]
[null,null,null,null,null,null,null,null,null,null,null,null,null,null,null,null,null,"#G11",null,null,null,{"$f":"Z1051","v":"A"},null,"-",null,{"$f":"Z1052","v":"L"},null,{"$f":"IF(MaxScore,MaxGoals(W1061,Y1061,MaxGoalsValue),IF(W1061=\"\",\"\",W1061))","v":0},{"$f":"IF(MaxScore,\"-\",IF(W1061=\"\",\"\",\"-\"))","v":"-"},{"$f":"IF(MaxScore,MaxGoals(Y1061,W1061,MaxGoalsValue),IF(Y1061=\"\",\"\",Y1061))","v":0},{"$f":"IF(W1061=\"\",\"\",IF(W1061>Y1061,V1061,IF(W1061=Y1061,\"\",Z1061)))","v":""},{"$f":"IF(W1061=\"\",\"\",IF(W1061=Y1061,V1061,\"\"))","v":""},{"$f":"IF(W1061=\"\",\"\",IF(W1061=Y1061,Z1061,\"\"))","v":""},{"$f":"IF(W1061=\"\",\"\",IF(W1061<Y1061,V1061,IF(W1061=Y1061,\"\",Z1061)))","v":""},{"$f":"CONCATENATE(AE1061,AH1061)","v":""}]
[null,null,null,null,null,null,null,null,null,null,null,null,null,null,null,null,null,"#G11",null,null,null,{"$f":"Z1053","v":"J"},null,"-",null,{"$f":"V1051","v":"N"},null,0,"-",0,"","","","",""]
[null,null,null,null,null,null,null,null,null,null,null,null,null,null,null,null,null,"#G11",null,null,null,"H",null,"-",null,"P",null,0,"-",0,"","","","",""]
[null,null,null,null,null,null,null,null,null,null,null,null,null,null,null,null,null,"#G11",null,null,null,"F",null,"-",null,"O",null,0,"-",0,"","","","",""]
[null,null,null,null,null,null,null,null,null,null,null,null,null,null,null,null,null,"#G11",null,null,null,"D",null,"-",null,"M",null,0,"-",0,"","","","",""]
[null,null,null,null,null,null,null,null,null,null,null,null,null,null,null,null,null,"#G11",null,null,null,"B",null,"-",null,"K",null,0,"-",0,"","","","",""]
[null,null,null,null,null,null,null,null,null,null,null,null,null,null,null,null,null,"#G11",null,null,null,"C",null,"-",null,"I",null,0,"-",0,"","","","",""]
[null,null,null,null,null,null,null,null,null,null,null,null,null,null,null,null,null,"#G11",null,null,null,{"$f":"V1058","v":"E"},null,"-",null,{"$f":"V1057","v":"G"},null,0,"-",0,"","","","",""]
[null,null,null,null,null,null,null,null,null,null,null,null,null,null,null,null,null,null,{"$f":"S1059+1","v":12}]
[null,null,null,null,null,null,null,null,null,null,null,null,null,null,null,null,null,null,{"$f":"N_Heure","v":"Time"},{"$f":"N_Table","v":"Table"},{"$f":"N_Arbitre","v":"Referee"},{"$f":"N_Matches","v":"Matches"}]
[null,null,null,null,null,null,null,null,null,null,null,null,null,null,null,null,null,"#G12",null,null,null,{"$f":"V1062","v":"J"},null,"-",null,{"$f":"V1061","v":"A"},null,{"$f":"IF(MaxScore,MaxGoals(W1071,Y1071,MaxGoalsValue),IF(W1071=\"\",\"\",W1071))","v":0},{"$f":"IF(MaxScore,\"-\",IF(W1071=\"\",\"\",\"-\"))","v":"-"},{"$f":"IF(MaxScore,MaxGoals(Y1071,W1071,MaxGoalsValue),IF(Y1071=\"\",\"\",Y1071))","v":0},{"$f":"IF(W1071=\"\",\"\",IF(W1071>Y1071,V1071,IF(W1071=Y1071,\"\",Z1071)))","v":""},{"$f":"IF(W1071=\"\",\"\",IF(W1071=Y1071,V1071,\"\"))","v":""},{"$f":"IF(W1071=\"\",\"\",IF(W1071=Y1071,Z1071,\"\"))","v":""},{"$f":"IF(W1071=\"\",\"\",IF(W1071<Y1071,V1071,IF(W1071=Y1071,\"\",Z1071)))","v":""},{"$f":"CONCATENATE(AE1071,AH1071)","v":""}]
[null,null,null,null,null,null,null,null,null,null,null,null,null,null,null,null,null,"#G12",null,null,null,{"$f":"Z1061","v":"L"},null,"-",null,{"$f":"V1063","v":"H"},null,0,"-",0,"","","","",""]
[null,null,null,null,null,null,null,null,null,null,null,null,null,null,null,null,null,"#G12",null,null,null,"N",null,"-",null,"F",null,0,"-",0,"","","","",""]
[null,null,null,null,null,null,null,null,null,null,null,null,null,null,null,null,null,"#G12",null,null,null,"P",null,"-",null,"D",null,0,"-",0,"","","","",""]
[null,null,null,null,null,null,null,null,null,null,null,null,null,null,null,null,null,"#G12",null,null,null,"O",null,"-",null,"B",null,0,"-",0,"","","","",""]
[null,null,null,null,null,null,null,null,null,null,null,null,null,null,null,null,null,"#G12",null,null,null,"M",null,"-",null,"C",null,0,"-",0,"","","","",""]
[null,null,null,null,null,null,null,null,null,null,null,null,null,null,null,null,null,"#G12",null,null,null,"K",null,"-",null,"E",null,0,"-",0,"","","","",""]
[null,null,null,null,null,null,null,null,null,null,null,null,null,null,null,null,null,"#G12",null,null,null,"I",null,"-",null,{"$f":"Z1068","v":"G"},null,0,"-",0,"","","","",""]
[null,null,null,null,null,null,null,null,null,null,null,null,null,null,null,null,null,null,{"$f":"S1069+1","v":13}]
[null,null,null,null,null,null,null,null,null,null,null,null,null,null,null,null,null,null,{"$f":"N_Heure","v":"Time"},{"$f":"N_Table","v":"Table"},{"$f":"N_Arbitre","v":"Referee"},{"$f":"N_Matches","v":"Matches"}]
[null,null,null,null,null,null,null,null,null,null,null,null,null,null,null,null,null,"#G13",null,null,null,{"$f":"Z1071","v":"A"},null,"-",null,{"$f":"Z1072","v":"H"},null,{"$f":"IF(MaxScore,MaxGoals(W1081,Y1081,MaxGoalsValue),IF(W1081=\"\",\"\",W1081))","v":0},{"$f":"IF(MaxScore,\"-\",IF(W1081=\"\",\"\",\"-\"))","v":"-"},{"$f":"IF(MaxScore,MaxGoals(Y1081,W1081,MaxGoalsValue),IF(Y1081=\"\",\"\",Y1081))","v":0},{"$f":"IF(W1081=\"\",\"\",IF(W1081>Y1081,V1081,IF(W1081=Y1081,\"\",Z1081)))","v":""},{"$f":"IF(W1081=\"\",\"\",IF(W1081=Y1081,V1081,\"\"))","v":""},{"$f":"IF(W1081=\"\",\"\",IF(W1081=Y1081,Z1081,\"\"))","v":""},{"$f":"IF(W1081=\"\",\"\",IF(W1081<Y1081,V1081,IF(W1081=Y1081,\"\",Z1081)))","v":""},{"$f":"CONCATENATE(AE1081,AH1081)","v":""}]
[null,null,null,null,null,null,null,null,null,null,null,null,null,null,null,null,null,"#G13",null,null,null,{"$f":"Z1073","v":"F"},null,"-",null,{"$f":"V1071","v":"J"},null,0,"-",0,"","","","",""]
[null,null,null,null,null,null,null,null,null,null,null,null,null,null,null,null,null,"#G13",null,null,null,"D",null,"-",null,"L",null,0,"-",0,"","","","",""]
[null,null,null,null,null,null,null,null,null,null,null,null,null,null,null,null,null,"#G13",null,null,null,"B",null,"-",null,"N",null,0,"-",0,"","","","",""]
[null,null,null,null,null,null,null,null,null,null,null,null,null,null,null,null,null,"#G13",null,null,null,"C",null,"-",null,"P",null,0,"-",0,"","","","",""]
[null,null,null,null,null,null,null,null,null,null,null,null,null,null,null,null,null,"#G13",null,null,null,"E",null,"-",null,"O",null,0,"-",0,"","","","",""]
[null,null,null,null,null,null,null,null,null,null,null,null,null,null,null,null,null,"#G13",null,null,null,"G",null,"-",null,"M",null,0,"-",0,"","","","",""]
[null,null,null,null,null,null,null,null,null,null,null,null,null,null,null,null,null,"#G13",null,null,null,{"$f":"V1078","v":"I"},null,"-",null,{"$f":"V1077","v":"K"},null,0,"-",0,"","","","",""]
[null,null,null,null,null,null,null,null,null,null,null,null,null,null,null,null,null,null,{"$f":"S1079+1","v":14}]
[null,null,null,null,null,null,null,null,null,null,null,null,null,null,null,null,null,null,{"$f":"N_Heure","v":"Time"},{"$f":"N_Table","v":"Table"},{"$f":"N_Arbitre","v":"Referee"},{"$f":"N_Matches","v":"Matches"}]
[null,null,null,null,null,null,null,null,null,null,null,null,null,null,null,null,null,"#G14",null,null,null,{"$f":"V1082","v":"F"},null,"-",null,{"$f":"V1081","v":"A"},null,{"$f":"IF(MaxScore,MaxGoals(W1091,Y1091,MaxGoalsValue),IF(W1091=\"\",\"\",W1091))","v":0},{"$f":"IF(MaxScore,\"-\",IF(W1091=\"\",\"\",\"-\"))","v":"-"},{"$f":"IF(MaxScore,MaxGoals(Y1091,W1091,MaxGoalsValue),IF(Y1091=\"\",\"\",Y1091))","v":0},{"$f":"IF(W1091=\"\",\"\",IF(W1091>Y1091,V1091,IF(W1091=Y1091,\"\",Z1091)))","v":""},{"$f":"IF(W1091=\"\",\"\",IF(W1091=Y1091,V1091,\"\"))","v":""},{"$f":"IF(W1091=\"\",\"\",IF(W1091=Y1091,Z1091,\"\"))","v":""},{"$f":"IF(W1091=\"\",\"\",IF(W1091<Y1091,V1091,IF(W1091=Y1091,\"\",Z1091)))","v":""},{"$f":"CONCATENATE(AE1091,AH1091)","v":""}]
[null,null,null,null,null,null,null,null,null,null,null,null,null,null,null,null,null,"#G14",null,null,null,{"$f":"Z1081","v":"H"},null,"-",null,{"$f":"V1083","v":"D"},null,0,"-",0,"","","","",""]
[null,null,null,null,null,null,null,null,null,null,null,null,null,null,null,null,null,"#G14",null,null,null,"J",null,"-",null,"B",null,0,"-",0,"","","","",""]
[null,null,null,null,null,null,null,null,null,null,null,null,null,null,null,null,null,"#G14",null,null,null,"L",null,"-",null,"C",null,0,"-",0,"","","","",""]
[null,null,null,null,null,null,null,null,null,null,null,null,null,null,null,null,null,"#G14",null,null,null,"N",null,"-",null,"E",null,0,"-",0,"","","","",""]
[null,null,null,null,null,null,null,null,null,null,null,null,null,null,null,null,null,"#G14",null,null,null,"P",null,"-",null,"G",null,0,"-",0,"","","","",""]
[null,null,null,null,null,null,null,null,null,null,null,null,null,null,null,null,null,"#G14",null,null,null,"O",null,"-",null,"I",null,0,"-",0,"","","","",""]
[null,null,null,null,null,null,null,null,null,null,null,null,null,null,null,null,null,"#G14",null,null,null,"M",null,"-",null,{"$f":"Z1088","v":"K"},null,0,"-",0,"","","","",""]
[null,null,null,null,null,null,null,null,null,null,null,null,null,null,null,null,null,null,{"$f":"S1089+1","v":15}]
[null,null,null,null,null,null,null,null,null,null,null,null,null,null,null,null,null,null,{"$f":"N_Heure","v":"Time"},{"$f":"N_Table","v":"Table"},{"$f":"N_Arbitre","v":"Referee"},{"$f":"N_Matches","v":"Matches"}]
[null,null,null,null,null,null,null,null,null,null,null,null,null,null,null,null,null,"#G15",null,null,null,{"$f":"Z1091","v":"A"},null,"-",null,{"$f":"Z1092","v":"D"},null,{"$f":"IF(MaxScore,MaxGoals(W1101,Y1101,MaxGoalsValue),IF(W1101=\"\",\"\",W1101))","v":0},{"$f":"IF(MaxScore,\"-\",IF(W1101=\"\",\"\",\"-\"))","v":"-"},{"$f":"IF(MaxScore,MaxGoals(Y1101,W1101,MaxGoalsValue),IF(Y1101=\"\",\"\",Y1101))","v":0},{"$f":"IF(W1101=\"\",\"\",IF(W1101>Y1101,V1101,IF(W1101=Y1101,\"\",Z1101)))","v":""},{"$f":"IF(W1101=\"\",\"\",IF(W1101=Y1101,V1101,\"\"))","v":""},{"$f":"IF(W1101=\"\",\"\",IF(W1101=Y1101,Z1101,\"\"))","v":""},{"$f":"IF(W1101=\"\",\"\",IF(W1101<Y1101,V1101,IF(W1101=Y1101,\"\",Z1101)))","v":""},{"$f":"CONCATENATE(AE1101,AH1101)","v":""}]
[null,null,null,null,null,null,null,null,null,null,null,null,null,null,null,null,null,"#G15",null,null,null,{"$f":"Z1093","v":"B"},null,"-",null,{"$f":"V1091","v":"F"},null,0,"-",0,"","","","",""]
[null,null,null,null,null,null,null,null,null,null,null,null,null,null,null,null,null,"#G15",null,null,null,"C",null,"-",null,"H",null,0,"-",0,"","","","",""]
[null,null,null,null,null,null,null,null,null,null,null,null,null,null,null,null,null,"#G15",null,null,null,"E",null,"-",null,"J",null,0,"-",0,"","","","",""]
[null,null,null,null,null,null,null,null,null,null,null,null,null,null,null,null,null,"#G15",null,null,null,"G",null,"-",null,"L",null,0,"-",0,"","","","",""]
[null,null,null,null,null,null,null,null,null,null,null,null,null,null,null,null,null,"#G15",null,null,null,"I",null,"-",null,"N",null,0,"-",0,"","","","",""]
[null,null,null,null,null,null,null,null,null,null,null,null,null,null,null,null,null,"#G15",null,null,null,"K",null,"-",null,"P",null,0,"-",0,"","","","",""]
[null,null,null,null,null,null,null,null,null,null,null,null,null,null,null,null,null,"#G15",null,null,null,{"$f":"V1098","v":"M"},null,"-",null,{"$f":"V1097","v":"O"},null,0,"-",0,"","","","",""]
[]
[null,{"$f":"N_Group_17","v":"Group of 17"},null,null,null,null,null,null,null,null,null,null,null,null,null,null,null,null,null,null,null,null,null,null,null,null,null,null,null,null,null,null,null,null,null,null,null,null,{"$f":"B1110","v":"Group of 17"}]
[]
[null,{"$f":"N_Tirage","v":"Draw"},"Cla.","Cla1","Part","Cla2",{"$f":"N_Joueurs","v":"Players"},{"$f":"N_RankPoints","v":"Rk Pt."},{"$f":"N_Diff_Part","v":"Part-Diff"},"Pts","J","G","N","P","BP","BC","Diff",null,null,null,null,null,null,null,null,null,null,null,null,null,{"$f":"N_G","v":"W"},{"$f":"N_N","v":"D"},{"$f":"N_N","v":"D"},{"$f":"N_P","v":"L"},"CONCAT","Ref Group",{"$f":"IF(COUNTA(W1132:W1299)=0,\"\",\"OK\")","v":""},null,null,{"$f":"N_Cla.","v":"Rk"},{"$f":"N_Joueurs","v":"Players"},{"$f":"N_Pts","v":"Pts"},{"$f":"N_J","v":"Pld"},{"$f":"N_G","v":"W"},{"$f":"N_N","v":"D"},{"$f":"N_P","v":"L"},{"$f":"N_BP","v":"F"},{"$f":"N_BC","v":"A"},{"$f":"N_Diff.","v":"SO"}]
[null,1,{"$f":"IF(AK1112=\"\",\"\",RANK(F1113,F1113:F1129)*1000+ROW())","v":""},{"$f":"IF(L1113=\"\",\"\",CritClassInd1_Points*J1113+CritClassInd1_Matches*L1113+CritClassInd1_Attaque*O1113+CritClassInd1_DiffButs*Q1113)","v":""},{"$f":"IF(L1113=\"\",\"\",Nb_Diff_Part(D1113,D1113:D1129,G1113,G1113:G1129,AI1132:AI1299)*CritClassInd_DiffPart+Nb_Goal_Part(D1113,D1113:D1129,G1113,G1113:G1129,V1132:Z1299)*CritClassInd_GoalPart+Nb_Score_Part(D1113,D1113:D1129,G1113,G1113:G1129,V1132:Z1299)*CritClassInd_ScorePart)","v":""},{"$f":"IF(L1113=\"\",\"\",D1113+E1113+CritClassInd2_Points*J1113+CritClassInd2_Matches*L1113+CritClassInd2_Attaque*O1113+CritClassInd2_DiffButs*Q1113+CritClassInd_Ranking*H1113+I1113)","v":""},"A",{"$f":"GMFTRANKINGPOINTS(G1113,Particular_Category)","v":0},null,{"$f":"IF(AK1112=\"\",\"\",(L1113*Points_Victoire)+M1113*Points_Null)","v":""},{"$f":"IF(L1113=\"\",\"\",SUM(L1113:N1113))","v":""},{"$f":"IF(AK1112=\"\",\"\",COUNTIF(AE1132:AE1299,G1113))","v":""},{"$f":"IF(AK1112=\"\",\"\",COUNTIF(AF1132:AG1299,G1113))","v":""},{"$f":"IF(AK1112=\"\",\"\",COUNTIF(AH1132:AH1299,G1113))","v":""},{"$f":"IF(AK1112=\"\",\"\",SUMIF(V1132:V1299,G1113,AB1132:AB1299)+SUMIF(Z1132:Z1299,G1113,AD1132:AD1299))","v":""},{"$f":"IF(AK1112=\"\",\"\",SUMIF(V1132:V1299,G1113,AD1132:AD1299)+SUMIF(Z1132:Z1299,G1113,AB1132:AB1299))","v":""},{"$f":"IF(AK1112=\"\",\"\",O1113-P1113)","v":""},null,null,null,null,null,null,null,null,null,null,null,null,null,null,null,null,null,null,null,{"$f":"IF(AK1112=\"\",\"\",SMALL(C1113:C1129,1))","v":""},null,null,{"$f":"IF(AK1112=\"\",\"\",INT(AK1113/1000))","v":""},{"$f":"IF(AK1112=\"\",\"\",VLOOKUP(AK1113,C1113:Q1129,5,FALSE))","v":""},{"$f":"VLOOKUP(AK1113,C1113:Q1129,8,FALSE)","v":""},{"$f":"VLOOKUP(AK1113,C1113:Q1129,9,FALSE)","v":""},{"$f":"VLOOKUP(AK1113,C1113:Q1129,10,FALSE)","v":""},{"$f":"VLOOKUP(AK1113,C1113:Q1129,11,FALSE)","v":""},{"$f":"VLOOKUP(AK1113,C1113:Q1129,12,FALSE)","v":""},{"$f":"VLOOKUP(AK1113,C1113:Q1129,13,FALSE)","v":""},{"$f":"VLOOKUP(AK1113,C1113:Q1129,14,FALSE)","v":""},{"$f":"VLOOKUP(AK1113,C1113:Q1129,15,FALSE)","v":""}]
[null,2,{"$f":"IF(AK1112=\"\",\"\",RANK(F1114,F1113:F1129)*1000+ROW())","v":""},{"$f":"IF(L1114=\"\",\"\",CritClassInd1_Points*J1114+CritClassInd1_Matches*L1114+CritClassInd1_Attaque*O1114+CritClassInd1_DiffButs*Q1114)","v":""},{"$f":"IF(L1114=\"\",\"\",Nb_Diff_Part(D1114,D1113:D1129,G1114,G1113:G1129,AI1132:AI1299)*CritClassInd_DiffPart+Nb_Goal_Part(D1114,D1113:D1129,G1114,G1113:G1129,V1132:Z1299)*CritClassInd_GoalPart+Nb_Score_Part(D1114,D1113:D1129,G1114,G1113:G1129,V1132:Z1299)*CritClassInd_ScorePart)","v":""},{"$f":"IF(L1114=\"\",\"\",D1114+E1114+CritClassInd2_Points*J1114+CritClassInd2_Matches*L1114+CritClassInd2_Attaque*O1114+CritClassInd2_DiffButs*Q1114+CritClassInd_Ranking*H1114+I1114)","v":""},"B",0,null,{"$f":"IF(AK1112=\"\",\"\",(L1114*Points_Victoire)+M1114*Points_Null)","v":""},"",{"$f":"IF(AK1112=\"\",\"\",COUNTIF(AE1132:AE1299,G1114))","v":""},{"$f":"IF(AK1112=\"\",\"\",COUNTIF(AF1132:AG1299,G1114))","v":""},{"$f":"IF(AK1112=\"\",\"\",COUNTIF(AH1132:AH1299,G1114))","v":""},{"$f":"IF(AK1112=\"\",\"\",SUMIF(V1132:V1299,G1114,AB1132:AB1299)+SUMIF(Z1132:Z1299,G1114,AD1132:AD1299))","v":""},{"$f":"IF(AK1112=\"\",\"\",SUMIF(V1132:V1299,G1114,AD1132:AD1299)+SUMIF(Z1132:Z1299,G1114,AB1132:AB1299))","v":""},{"$f":"IF(AK1112=\"\",\"\",O1114-P1114)","v":""},null,null,null,null,null,null,null,null,null,null,null,null,null,null,null,null,null,null,null,{"$f":"IF(AK1112=\"\",\"\",SMALL(C1113:C1129,2))","v":""},null,null,{"$f":"IF(AK1112=\"\",\"\",INT(AK1114/1000))","v":""},{"$f":"IF(AK1112=\"\",\"\",VLOOKUP(AK1114,C1113:Q1129,5,FALSE))","v":""},{"$f":"VLOOKUP(AK1114,C1113:Q1129,8,FALSE)","v":""},{"$f":"VLOOKUP(AK1114,C1113:Q1129,9,FALSE)","v":""},{"$f":"VLOOKUP(AK1114,C1113:Q1129,10,FALSE)","v":""},{"$f":"VLOOKUP(AK1114,C1113:Q1129,11,FALSE)","v":""},{"$f":"VLOOKUP(AK1114,C1113:Q1129,12,FALSE)","v":""},{"$f":"VLOOKUP(AK1114,C1113:Q1129,13,FALSE)","v":""},{"$f":"VLOOKUP(AK1114,C1113:Q1129,14,FALSE)","v":""},{"$f":"VLOOKUP(AK1114,C1113:Q1129,15,FALSE)","v":""}]
[null,3,{"$f":"IF(AK1112=\"\",\"\",RANK(F1115,F1113:F1129)*1000+ROW())","v":""},"",{"$f":"IF(L1115=\"\",\"\",Nb_Diff_Part(D1115,D1113:D1129,G1115,G1113:G1129,AI1132:AI1299)*CritClassInd_DiffPart+Nb_Goal_Part(D1115,D1113:D1129,G1115,G1113:G1129,V1132:Z1299)*CritClassInd_GoalPart+Nb_Score_Part(D1115,D1113:D1129,G1115,G1113:G1129,V1132:Z1299)*CritClassInd_ScorePart)","v":""},"","C",0,null,{"$f":"IF(AK1112=\"\",\"\",(L1115*Points_Victoire)+M1115*Points_Null)","v":""},"",{"$f":"IF(AK1112=\"\",\"\",COUNTIF(AE1132:AE1299,G1115))","v":""},{"$f":"IF(AK1112=\"\",\"\",COUNTIF(AF1132:AG1299,G1115))","v":""},{"$f":"IF(AK1112=\"\",\"\",COUNTIF(AH1132:AH1299,G1115))","v":""},{"$f":"IF(AK1112=\"\",\"\",SUMIF(V1132:V1299,G1115,AB1132:AB1299)+SUMIF(Z1132:Z1299,G1115,AD1132:AD1299))","v":""},{"$f":"IF(AK1112=\"\",\"\",SUMIF(V1132:V1299,G1115,AD1132:AD1299)+SUMIF(Z1132:Z1299,G1115,AB1132:AB1299))","v":""},{"$f":"IF(AK1112=\"\",\"\",O1115-P1115)","v":""},null,null,null,null,null,null,null,null,null,null,null,null,null,null,null,null,null,null,null,{"$f":"IF(AK1112=\"\",\"\",SMALL(C1113:C1129,3))","v":""},null,null,{"$f":"IF(AK1112=\"\",\"\",INT(AK1115/1000))","v":""},{"$f":"IF(AK1112=\"\",\"\",VLOOKUP(AK1115,C1113:Q1129,5,FALSE))","v":""},{"$f":"VLOOKUP(AK1115,C1113:Q1129,8,FALSE)","v":""},{"$f":"VLOOKUP(AK1115,C1113:Q1129,9,FALSE)","v":""},{"$f":"VLOOKUP(AK1115,C1113:Q1129,10,FALSE)","v":""},{"$f":"VLOOKUP(AK1115,C1113:Q1129,11,FALSE)","v":""},{"$f":"VLOOKUP(AK1115,C1113:Q1129,12,FALSE)","v":""},{"$f":"VLOOKUP(AK1115,C1113:Q1129,13,FALSE)","v":""},{"$f":"VLOOKUP(AK1115,C1113:Q1129,14,FALSE)","v":""},{"$f":"VLOOKUP(AK1115,C1113:Q1129,15,FALSE)","v":""}]
[null,4,{"$f":"IF(AK1112=\"\",\"\",RANK(F1116,F1113:F1129)*1000+ROW())","v":""},"",{"$f":"IF(L1116=\"\",\"\",Nb_Diff_Part(D1116,D1113:D1129,G1116,G1113:G1129,AI1132:AI1299)*CritClassInd_DiffPart+Nb_Goal_Part(D1116,D1113:D1129,G1116,G1113:G1129,V1132:Z1299)*CritClassInd_GoalPart+Nb_Score_Part(D1116,D1113:D1129,G1116,G1113:G1129,V1132:Z1299)*CritClassInd_ScorePart)","v":""},"","D",0,null,{"$f":"IF(AK1112=\"\",\"\",(L1116*Points_Victoire)+M1116*Points_Null)","v":""},"",{"$f":"IF(AK1112=\"\",\"\",COUNTIF(AE1132:AE1299,G1116))","v":""},{"$f":"IF(AK1112=\"\",\"\",COUNTIF(AF1132:AG1299,G1116))","v":""},{"$f":"IF(AK1112=\"\",\"\",COUNTIF(AH1132:AH1299,G1116))","v":""},{"$f":"IF(AK1112=\"\",\"\",SUMIF(V1132:V1299,G1116,AB1132:AB1299)+SUMIF(Z1132:Z1299,G1116,AD1132:AD1299))","v":""},{"$f":"IF(AK1112=\"\",\"\",SUMIF(V1132:V1299,G1116,AD1132:AD1299)+SUMIF(Z1132:Z1299,G1116,AB1132:AB1299))","v":""},{"$f":"IF(AK1112=\"\",\"\",O1116-P1116)","v":""},null,null,null,null,null,null,null,null,null,null,null,null,null,null,null,null,null,null,null,{"$f":"IF(AK1112=\"\",\"\",SMALL(C1113:C1129,4))","v":""},null,null,{"$f":"IF(AK1112=\"\",\"\",INT(AK1116/1000))","v":""},{"$f":"IF(AK1112=\"\",\"\",VLOOKUP(AK1116,C1113:Q1129,5,FALSE))","v":""},{"$f":"VLOOKUP(AK1116,C1113:Q1129,8,FALSE)","v":""},{"$f":"VLOOKUP(AK1116,C1113:Q1129,9,FALSE)","v":""},{"$f":"VLOOKUP(AK1116,C1113:Q1129,10,FALSE)","v":""},{"$f":"VLOOKUP(AK1116,C1113:Q1129,11,FALSE)","v":""},{"$f":"VLOOKUP(AK1116,C1113:Q1129,12,FALSE)","v":""},{"$f":"VLOOKUP(AK1116,C1113:Q1129,13,FALSE)","v":""},{"$f":"VLOOKUP(AK1116,C1113:Q1129,14,FALSE)","v":""},{"$f":"VLOOKUP(AK1116,C1113:Q1129,15,FALSE)","v":""}]
[null,5,{"$f":"IF(AK1112=\"\",\"\",RANK(F1117,F1113:F1129)*1000+ROW())","v":""},"",{"$f":"IF(L1117=\"\",\"\",Nb_Diff_Part(D1117,D1113:D1129,G1117,G1113:G1129,AI1132:AI1299)*CritClassInd_DiffPart+Nb_Goal_Part(D1117,D1113:D1129,G1117,G1113:G1129,V1132:Z1299)*CritClassInd_GoalPart+Nb_Score_Part(D1117,D1113:D1129,G1117,G1113:G1129,V1132:Z1299)*CritClassInd_ScorePart)","v":""},"","E",0,null,{"$f":"IF(AK1112=\"\",\"\",(L1117*Points_Victoire)+M1117*Points_Null)","v":""},"",{"$f":"IF(AK1112=\"\",\"\",COUNTIF(AE1132:AE1299,G1117))","v":""},{"$f":"IF(AK1112=\"\",\"\",COUNTIF(AF1132:AG1299,G1117))","v":""},{"$f":"IF(AK1112=\"\",\"\",COUNTIF(AH1132:AH1299,G1117))","v":""},{"$f":"IF(AK1112=\"\",\"\",SUMIF(V1132:V1299,G1117,AB1132:AB1299)+SUMIF(Z1132:Z1299,G1117,AD1132:AD1299))","v":""},{"$f":"IF(AK1112=\"\",\"\",SUMIF(V1132:V1299,G1117,AD1132:AD1299)+SUMIF(Z1132:Z1299,G1117,AB1132:AB1299))","v":""},{"$f":"IF(AK1112=\"\",\"\",O1117-P1117)","v":""},null,null,null,null,null,null,null,null,null,null,null,null,null,null,null,null,null,null,null,{"$f":"IF(AK1112=\"\",\"\",SMALL(C1113:C1129,5))","v":""},null,null,{"$f":"IF(AK1112=\"\",\"\",INT(AK1117/1000))","v":""},{"$f":"IF(AK1112=\"\",\"\",VLOOKUP(AK1117,C1113:Q1129,5,FALSE))","v":""},{"$f":"VLOOKUP(AK1117,C1113:Q1129,8,FALSE)","v":""},{"$f":"VLOOKUP(AK1117,C1113:Q1129,9,FALSE)","v":""},{"$f":"VLOOKUP(AK1117,C1113:Q1129,10,FALSE)","v":""},{"$f":"VLOOKUP(AK1117,C1113:Q1129,11,FALSE)","v":""},{"$f":"VLOOKUP(AK1117,C1113:Q1129,12,FALSE)","v":""},{"$f":"VLOOKUP(AK1117,C1113:Q1129,13,FALSE)","v":""},{"$f":"VLOOKUP(AK1117,C1113:Q1129,14,FALSE)","v":""},{"$f":"VLOOKUP(AK1117,C1113:Q1129,15,FALSE)","v":""}]
[null,6,{"$f":"IF(AK1112=\"\",\"\",RANK(F1118,F1113:F1129)*1000+ROW())","v":""},"",{"$f":"IF(L1118=\"\",\"\",Nb_Diff_Part(D1118,D1113:D1129,G1118,G1113:G1129,AI1132:AI1299)*CritClassInd_DiffPart+Nb_Goal_Part(D1118,D1113:D1129,G1118,G1113:G1129,V1132:Z1299)*CritClassInd_GoalPart+Nb_Score_Part(D1118,D1113:D1129,G1118,G1113:G1129,V1132:Z1299)*CritClassInd_ScorePart)","v":""},"","F",0,null,{"$f":"IF(AK1112=\"\",\"\",(L1118*Points_Victoire)+M1118*Points_Null)","v":""},"",{"$f":"IF(AK1112=\"\",\"\",COUNTIF(AE1132:AE1299,G1118))","v":""},{"$f":"IF(AK1112=\"\",\"\",COUNTIF(AF1132:AG1299,G1118))","v":""},{"$f":"IF(AK1112=\"\",\"\",COUNTIF(AH1132:AH1299,G1118))","v":""},{"$f":"IF(AK1112=\"\",\"\",SUMIF(V1132:V1299,G1118,AB1132:AB1299)+SUMIF(Z1132:Z1299,G1118,AD1132:AD1299))","v":""},{"$f":"IF(AK1112=\"\",\"\",SUMIF(V1132:V1299,G1118,AD1132:AD1299)+SUMIF(Z1132:Z1299,G1118,AB1132:AB1299))","v":""},{"$f":"IF(AK1112=\"\",\"\",O1118-P1118)","v":""},null,null,null,null,null,null,null,null,null,null,null,null,null,null,null,null,null,null,null,{"$f":"IF(AK1112=\"\",\"\",SMALL(C1113:C1129,6))","v":""},null,null,{"$f":"IF(AK1112=\"\",\"\",INT(AK1118/1000))","v":""},{"$f":"IF(AK1112=\"\",\"\",VLOOKUP(AK1118,C1113:Q1129,5,FALSE))","v":""},{"$f":"VLOOKUP(AK1118,C1113:Q1129,8,FALSE)","v":""},{"$f":"VLOOKUP(AK1118,C1113:Q1129,9,FALSE)","v":""},{"$f":"VLOOKUP(AK1118,C1113:Q1129,10,FALSE)","v":""},{"$f":"VLOOKUP(AK1118,C1113:Q1129,11,FALSE)","v":""},{"$f":"VLOOKUP(AK1118,C1113:Q1129,12,FALSE)","v":""},{"$f":"VLOOKUP(AK1118,C1113:Q1129,13,FALSE)","v":""},{"$f":"VLOOKUP(AK1118,C1113:Q1129,14,FALSE)","v":""},{"$f":"VLOOKUP(AK1118,C1113:Q1129,15,FALSE)","v":""}]
[null,7,{"$f":"IF(AK1112=\"\",\"\",RANK(F1119,F1113:F1129)*1000+ROW())","v":""},"",{"$f":"IF(L1119=\"\",\"\",Nb_Diff_Part(D1119,D1113:D1129,G1119,G1113:G1129,AI1132:AI1299)*CritClassInd_DiffPart+Nb_Goal_Part(D1119,D1113:D1129,G1119,G1113:G1129,V1132:Z1299)*CritClassInd_GoalPart+Nb_Score_Part(D1119,D1113:D1129,G1119,G1113:G1129,V1132:Z1299)*CritClassInd_ScorePart)","v":""},"","G",0,null,{"$f":"IF(AK1112=\"\",\"\",(L1119*Points_Victoire)+M1119*Points_Null)","v":""},"",{"$f":"IF(AK1112=\"\",\"\",COUNTIF(AE1132:AE1299,G1119))","v":""},{"$f":"IF(AK1112=\"\",\"\",COUNTIF(AF1132:AG1299,G1119))","v":""},{"$f":"IF(AK1112=\"\",\"\",COUNTIF(AH1132:AH1299,G1119))","v":""},{"$f":"IF(AK1112=\"\",\"\",SUMIF(V1132:V1299,G1119,AB1132:AB1299)+SUMIF(Z1132:Z1299,G1119,AD1132:AD1299))","v":""},{"$f":"IF(AK1112=\"\",\"\",SUMIF(V1132:V1299,G1119,AD1132:AD1299)+SUMIF(Z1132:Z1299,G1119,AB1132:AB1299))","v":""},{"$f":"IF(AK1112=\"\",\"\",O1119-P1119)","v":""},null,null,null,null,null,null,null,null,null,null,null,null,null,null,null,null,null,null,null,{"$f":"IF(AK1112=\"\",\"\",SMALL(C1113:C1129,7))","v":""},null,null,{"$f":"IF(AK1112=\"\",\"\",INT(AK1119/1000))","v":""},{"$f":"IF(AK1112=\"\",\"\",VLOOKUP(AK1119,C1113:Q1129,5,FALSE))","v":""},{"$f":"VLOOKUP(AK1119,C1113:Q1129,8,FALSE)","v":""},{"$f":"VLOOKUP(AK1119,C1113:Q1129,9,FALSE)","v":""},{"$f":"VLOOKUP(AK1119,C1113:Q1129,10,FALSE)","v":""},{"$f":"VLOOKUP(AK1119,C1113:Q1129,11,FALSE)","v":""},{"$f":"VLOOKUP(AK1119,C1113:Q1129,12,FALSE)","v":""},{"$f":"VLOOKUP(AK1119,C1113:Q1129,13,FALSE)","v":""},{"$f":"VLOOKUP(AK1119,C1113:Q1129,14,FALSE)","v":""},{"$f":"VLOOKUP(AK1119,C1113:Q1129,15,FALSE)","v":""}]
[null,8,{"$f":"IF(AK1112=\"\",\"\",RANK(F1120,F1113:F1129)*1000+ROW())","v":""},"",{"$f":"IF(L1120=\"\",\"\",Nb_Diff_Part(D1120,D1113:D1129,G1120,G1113:G1129,AI1132:AI1299)*CritClassInd_DiffPart+Nb_Goal_Part(D1120,D1113:D1129,G1120,G1113:G1129,V1132:Z1299)*CritClassInd_GoalPart+Nb_Score_Part(D1120,D1113:D1129,G1120,G1113:G1129,V1132:Z1299)*CritClassInd_ScorePart)","v":""},"","H",0,null,{"$f":"IF(AK1112=\"\",\"\",(L1120*Points_Victoire)+M1120*Points_Null)","v":""},"",{"$f":"IF(AK1112=\"\",\"\",COUNTIF(AE1132:AE1299,G1120))","v":""},{"$f":"IF(AK1112=\"\",\"\",COUNTIF(AF1132:AG1299,G1120))","v":""},{"$f":"IF(AK1112=\"\",\"\",COUNTIF(AH1132:AH1299,G1120))","v":""},{"$f":"IF(AK1112=\"\",\"\",SUMIF(V1132:V1299,G1120,AB1132:AB1299)+SUMIF(Z1132:Z1299,G1120,AD1132:AD1299))","v":""},{"$f":"IF(AK1112=\"\",\"\",SUMIF(V1132:V1299,G1120,AD1132:AD1299)+SUMIF(Z1132:Z1299,G1120,AB1132:AB1299))","v":""},{"$f":"IF(AK1112=\"\",\"\",O1120-P1120)","v":""},null,null,null,null,null,null,null,null,null,null,null,null,null,null,null,null,null,null,null,{"$f":"IF(AK1112=\"\",\"\",SMALL(C1113:C1129,8))","v":""},null,null,{"$f":"IF(AK1112=\"\",\"\",INT(AK1120/1000))","v":""},{"$f":"IF(AK1112=\"\",\"\",VLOOKUP(AK1120,C1113:Q1129,5,FALSE))","v":""},{"$f":"VLOOKUP(AK1120,C1113:Q1129,8,FALSE)","v":""},{"$f":"VLOOKUP(AK1120,C1113:Q1129,9,FALSE)","v":""},{"$f":"VLOOKUP(AK1120,C1113:Q1129,10,FALSE)","v":""},{"$f":"VLOOKUP(AK1120,C1113:Q1129,11,FALSE)","v":""},{"$f":"VLOOKUP(AK1120,C1113:Q1129,12,FALSE)","v":""},{"$f":"VLOOKUP(AK1120,C1113:Q1129,13,FALSE)","v":""},{"$f":"VLOOKUP(AK1120,C1113:Q1129,14,FALSE)","v":""},{"$f":"VLOOKUP(AK1120,C1113:Q1129,15,FALSE)","v":""}]
[null,9,{"$f":"IF(AK1112=\"\",\"\",RANK(F1121,F1113:F1129)*1000+ROW())","v":""},"",{"$f":"IF(L1121=\"\",\"\",Nb_Diff_Part(D1121,D1113:D1129,G1121,G1113:G1129,AI1132:AI1299)*CritClassInd_DiffPart+Nb_Goal_Part(D1121,D1113:D1129,G1121,G1113:G1129,V1132:Z1299)*CritClassInd_GoalPart+Nb_Score_Part(D1121,D1113:D1129,G1121,G1113:G1129,V1132:Z1299)*CritClassInd_ScorePart)","v":""},"","I",0,null,{"$f":"IF(AK1112=\"\",\"\",(L1121*Points_Victoire)+M1121*Points_Null)","v":""},"",{"$f":"IF(AK1112=\"\",\"\",COUNTIF(AE1132:AE1299,G1121))","v":""},{"$f":"IF(AK1112=\"\",\"\",COUNTIF(AF1132:AG1299,G1121))","v":""},{"$f":"IF(AK1112=\"\",\"\",COUNTIF(AH1132:AH1299,G1121))","v":""},{"$f":"IF(AK1112=\"\",\"\",SUMIF(V1132:V1299,G1121,AB1132:AB1299)+SUMIF(Z1132:Z1299,G1121,AD1132:AD1299))","v":""},{"$f":"IF(AK1112=\"\",\"\",SUMIF(V1132:V1299,G1121,AD1132:AD1299)+SUMIF(Z1132:Z1299,G1121,AB1132:AB1299))","v":""},{"$f":"IF(AK1112=\"\",\"\",O1121-P1121)","v":""},null,null,null,null,null,null,null,null,null,null,null,null,null,null,null,null,null,null,null,{"$f":"IF(AK1112=\"\",\"\",SMALL(C1113:C1129,9))","v":""},null,null,{"$f":"IF(AK1112=\"\",\"\",INT(AK1121/1000))","v":""},{"$f":"IF(AK1112=\"\",\"\",VLOOKUP(AK1121,C1113:Q1129,5,FALSE))","v":""},{"$f":"VLOOKUP(AK1121,C1113:Q1129,8,FALSE)","v":""},{"$f":"VLOOKUP(AK1121,C1113:Q1129,9,FALSE)","v":""},{"$f":"VLOOKUP(AK1121,C1113:Q1129,10,FALSE)","v":""},{"$f":"VLOOKUP(AK1121,C1113:Q1129,11,FALSE)","v":""},{"$f":"VLOOKUP(AK1121,C1113:Q1129,12,FALSE)","v":""},{"$f":"VLOOKUP(AK1121,C1113:Q1129,13,FALSE)","v":""},{"$f":"VLOOKUP(AK1121,C1113:Q1129,14,FALSE)","v":""},{"$f":"VLOOKUP(AK1121,C1113:Q1129,15,FALSE)","v":""}]
[null,10,{"$f":"IF(AK1112=\"\",\"\",RANK(F1122,F1113:F1129)*1000+ROW())","v":""},"",{"$f":"IF(L1122=\"\",\"\",Nb_Diff_Part(D1122,D1113:D1129,G1122,G1113:G1129,AI1132:AI1299)*CritClassInd_DiffPart+Nb_Goal_Part(D1122,D1113:D1129,G1122,G1113:G1129,V1132:Z1299)*CritClassInd_GoalPart+Nb_Score_Part(D1122,D1113:D1129,G1122,G1113:G1129,V1132:Z1299)*CritClassInd_ScorePart)","v":""},"","J",0,null,{"$f":"IF(AK1112=\"\",\"\",(L1122*Points_Victoire)+M1122*Points_Null)","v":""},"",{"$f":"IF(AK1112=\"\",\"\",COUNTIF(AE1132:AE1299,G1122))","v":""},{"$f":"IF(AK1112=\"\",\"\",COUNTIF(AF1132:AG1299,G1122))","v":""},{"$f":"IF(AK1112=\"\",\"\",COUNTIF(AH1132:AH1299,G1122))","v":""},{"$f":"IF(AK1112=\"\",\"\",SUMIF(V1132:V1299,G1122,AB1132:AB1299)+SUMIF(Z1132:Z1299,G1122,AD1132:AD1299))","v":""},{"$f":"IF(AK1112=\"\",\"\",SUMIF(V1132:V1299,G1122,AD1132:AD1299)+SUMIF(Z1132:Z1299,G1122,AB1132:AB1299))","v":""},{"$f":"IF(AK1112=\"\",\"\",O1122-P1122)","v":""},null,null,null,null,null,null,null,null,null,null,null,null,null,null,null,null,null,null,null,{"$f":"IF(AK1112=\"\",\"\",SMALL(C1113:C1129,10))","v":""},null,null,{"$f":"IF(AK1112=\"\",\"\",INT(AK1122/1000))","v":""},{"$f":"IF(AK1112=\"\",\"\",VLOOKUP(AK1122,C1113:Q1129,5,FALSE))","v":""},{"$f":"VLOOKUP(AK1122,C1113:Q1129,8,FALSE)","v":""},{"$f":"VLOOKUP(AK1122,C1113:Q1129,9,FALSE)","v":""},{"$f":"VLOOKUP(AK1122,C1113:Q1129,10,FALSE)","v":""},{"$f":"VLOOKUP(AK1122,C1113:Q1129,11,FALSE)","v":""},{"$f":"VLOOKUP(AK1122,C1113:Q1129,12,FALSE)","v":""},{"$f":"VLOOKUP(AK1122,C1113:Q1129,13,FALSE)","v":""},{"$f":"VLOOKUP(AK1122,C1113:Q1129,14,FALSE)","v":""},{"$f":"VLOOKUP(AK1122,C1113:Q1129,15,FALSE)","v":""}]
[null,11,{"$f":"IF(AK1112=\"\",\"\",RANK(F1123,F1113:F1129)*1000+ROW())","v":""},"",{"$f":"IF(L1123=\"\",\"\",Nb_Diff_Part(D1123,D1113:D1129,G1123,G1113:G1129,AI1132:AI1299)*CritClassInd_DiffPart+Nb_Goal_Part(D1123,D1113:D1129,G1123,G1113:G1129,V1132:Z1299)*CritClassInd_GoalPart+Nb_Score_Part(D1123,D1113:D1129,G1123,G1113:G1129,V1132:Z1299)*CritClassInd_ScorePart)","v":""},"","K",0,null,{"$f":"IF(AK1112=\"\",\"\",(L1123*Points_Victoire)+M1123*Points_Null)","v":""},"",{"$f":"IF(AK1112=\"\",\"\",COUNTIF(AE1132:AE1299,G1123))","v":""},{"$f":"IF(AK1112=\"\",\"\",COUNTIF(AF1132:AG1299,G1123))","v":""},{"$f":"IF(AK1112=\"\",\"\",COUNTIF(AH1132:AH1299,G1123))","v":""},{"$f":"IF(AK1112=\"\",\"\",SUMIF(V1132:V1299,G1123,AB1132:AB1299)+SUMIF(Z1132:Z1299,G1123,AD1132:AD1299))","v":""},{"$f":"IF(AK1112=\"\",\"\",SUMIF(V1132:V1299,G1123,AD1132:AD1299)+SUMIF(Z1132:Z1299,G1123,AB1132:AB1299))","v":""},{"$f":"IF(AK1112=\"\",\"\",O1123-P1123)","v":""},null,null,null,null,null,null,null,null,null,null,null,null,null,null,null,null,null,null,null,{"$f":"IF(AK1112=\"\",\"\",SMALL(C1113:C1129,11))","v":""},null,null,{"$f":"IF(AK1112=\"\",\"\",INT(AK1123/1000))","v":""},{"$f":"IF(AK1112=\"\",\"\",VLOOKUP(AK1123,C1113:Q1129,5,FALSE))","v":""},{"$f":"VLOOKUP(AK1123,C1113:Q1129,8,FALSE)","v":""},{"$f":"VLOOKUP(AK1123,C1113:Q1129,9,FALSE)","v":""},{"$f":"VLOOKUP(AK1123,C1113:Q1129,10,FALSE)","v":""},{"$f":"VLOOKUP(AK1123,C1113:Q1129,11,FALSE)","v":""},{"$f":"VLOOKUP(AK1123,C1113:Q1129,12,FALSE)","v":""},{"$f":"VLOOKUP(AK1123,C1113:Q1129,13,FALSE)","v":""},{"$f":"VLOOKUP(AK1123,C1113:Q1129,14,FALSE)","v":""},{"$f":"VLOOKUP(AK1123,C1113:Q1129,15,FALSE)","v":""}]
[null,12,{"$f":"IF(AK1112=\"\",\"\",RANK(F1124,F1113:F1129)*1000+ROW())","v":""},"",{"$f":"IF(L1124=\"\",\"\",Nb_Diff_Part(D1124,D1113:D1129,G1124,G1113:G1129,AI1132:AI1299)*CritClassInd_DiffPart+Nb_Goal_Part(D1124,D1113:D1129,G1124,G1113:G1129,V1132:Z1299)*CritClassInd_GoalPart+Nb_Score_Part(D1124,D1113:D1129,G1124,G1113:G1129,V1132:Z1299)*CritClassInd_ScorePart)","v":""},"","L",0,null,{"$f":"IF(AK1112=\"\",\"\",(L1124*Points_Victoire)+M1124*Points_Null)","v":""},"",{"$f":"IF(AK1112=\"\",\"\",COUNTIF(AE1132:AE1299,G1124))","v":""},{"$f":"IF(AK1112=\"\",\"\",COUNTIF(AF1132:AG1299,G1124))","v":""},{"$f":"IF(AK1112=\"\",\"\",COUNTIF(AH1132:AH1299,G1124))","v":""},{"$f":"IF(AK1112=\"\",\"\",SUMIF(V1132:V1299,G1124,AB1132:AB1299)+SUMIF(Z1132:Z1299,G1124,AD1132:AD1299))","v":""},{"$f":"IF(AK1112=\"\",\"\",SUMIF(V1132:V1299,G1124,AD1132:AD1299)+SUMIF(Z1132:Z1299,G1124,AB1132:AB1299))","v":""},{"$f":"IF(AK1112=\"\",\"\",O1124-P1124)","v":""},null,null,null,null,null,null,null,null,null,null,null,null,null,null,null,null,null,null,null,{"$f":"IF(AK1112=\"\",\"\",SMALL(C1113:C1129,12))","v":""},null,null,{"$f":"IF(AK1112=\"\",\"\",INT(AK1124/1000))","v":""},{"$f":"IF(AK1112=\"\",\"\",VLOOKUP(AK1124,C1113:Q1129,5,FALSE))","v":""},{"$f":"VLOOKUP(AK1124,C1113:Q1129,8,FALSE)","v":""},{"$f":"VLOOKUP(AK1124,C1113:Q1129,9,FALSE)","v":""},{"$f":"VLOOKUP(AK1124,C1113:Q1129,10,FALSE)","v":""},{"$f":"VLOOKUP(AK1124,C1113:Q1129,11,FALSE)","v":""},{"$f":"VLOOKUP(AK1124,C1113:Q1129,12,FALSE)","v":""},{"$f":"VLOOKUP(AK1124,C1113:Q1129,13,FALSE)","v":""},{"$f":"VLOOKUP(AK1124,C1113:Q1129,14,FALSE)","v":""},{"$f":"VLOOKUP(AK1124,C1113:Q1129,15,FALSE)","v":""}]
[null,13,{"$f":"IF(AK1112=\"\",\"\",RANK(F1125,F1113:F1129)*1000+ROW())","v":""},"",{"$f":"IF(L1125=\"\",\"\",Nb_Diff_Part(D1125,D1113:D1129,G1125,G1113:G1129,AI1132:AI1299)*CritClassInd_DiffPart+Nb_Goal_Part(D1125,D1113:D1129,G1125,G1113:G1129,V1132:Z1299)*CritClassInd_GoalPart+Nb_Score_Part(D1125,D1113:D1129,G1125,G1113:G1129,V1132:Z1299)*CritClassInd_ScorePart)","v":""},"","M",0,null,{"$f":"IF(AK1112=\"\",\"\",(L1125*Points_Victoire)+M1125*Points_Null)","v":""},"",{"$f":"IF(AK1112=\"\",\"\",COUNTIF(AE1132:AE1299,G1125))","v":""},{"$f":"IF(AK1112=\"\",\"\",COUNTIF(AF1132:AG1299,G1125))","v":""},{"$f":"IF(AK1112=\"\",\"\",COUNTIF(AH1132:AH1299,G1125))","v":""},{"$f":"IF(AK1112=\"\",\"\",SUMIF(V1132:V1299,G1125,AB1132:AB1299)+SUMIF(Z1132:Z1299,G1125,AD1132:AD1299))","v":""},{"$f":"IF(AK1112=\"\",\"\",SUMIF(V1132:V1299,G1125,AD1132:AD1299)+SUMIF(Z1132:Z1299,G1125,AB1132:AB1299))","v":""},{"$f":"IF(AK1112=\"\",\"\",O1125-P1125)","v":""},null,null,null,null,null,null,null,null,null,null,null,null,null,null,null,null,null,null,null,{"$f":"IF(AK1112=\"\",\"\",SMALL(C1113:C1129,13))","v":""},null,null,{"$f":"IF(AK1112=\"\",\"\",INT(AK1125/1000))","v":""},{"$f":"IF(AK1112=\"\",\"\",VLOOKUP(AK1125,C1113:Q1129,5,FALSE))","v":""},{"$f":"VLOOKUP(AK1125,C1113:Q1129,8,FALSE)","v":""},{"$f":"VLOOKUP(AK1125,C1113:Q1129,9,FALSE)","v":""},{"$f":"VLOOKUP(AK1125,C1113:Q1129,10,FALSE)","v":""},{"$f":"VLOOKUP(AK1125,C1113:Q1129,11,FALSE)","v":""},{"$f":"VLOOKUP(AK1125,C1113:Q1129,12,FALSE)","v":""},{"$f":"VLOOKUP(AK1125,C1113:Q1129,13,FALSE)","v":""},{"$f":"VLOOKUP(AK1125,C1113:Q1129,14,FALSE)","v":""},{"$f":"VLOOKUP(AK1125,C1113:Q1129,15,FALSE)","v":""}]
[null,14,{"$f":"IF(AK1112=\"\",\"\",RANK(F1126,F1113:F1129)*1000+ROW())","v":""},"",{"$f":"IF(L1126=\"\",\"\",Nb_Diff_Part(D1126,D1113:D1129,G1126,G1113:G1129,AI1132:AI1299)*CritClassInd_DiffPart+Nb_Goal_Part(D1126,D1113:D1129,G1126,G1113:G1129,V1132:Z1299)*CritClassInd_GoalPart+Nb_Score_Part(D1126,D1113:D1129,G1126,G1113:G1129,V1132:Z1299)*CritClassInd_ScorePart)","v":""},"","N",0,null,{"$f":"IF(AK1112=\"\",\"\",(L1126*Points_Victoire)+M1126*Points_Null)","v":""},"",{"$f":"IF(AK1112=\"\",\"\",COUNTIF(AE1132:AE1299,G1126))","v":""},{"$f":"IF(AK1112=\"\",\"\",COUNTIF(AF1132:AG1299,G1126))","v":""},{"$f":"IF(AK1112=\"\",\"\",COUNTIF(AH1132:AH1299,G1126))","v":""},{"$f":"IF(AK1112=\"\",\"\",SUMIF(V1132:V1299,G1126,AB1132:AB1299)+SUMIF(Z1132:Z1299,G1126,AD1132:AD1299))","v":""},{"$f":"IF(AK1112=\"\",\"\",SUMIF(V1132:V1299,G1126,AD1132:AD1299)+SUMIF(Z1132:Z1299,G1126,AB1132:AB1299))","v":""},{"$f":"IF(AK1112=\"\",\"\",O1126-P1126)","v":""},null,null,null,null,null,null,null,null,null,null,null,null,null,null,null,null,null,null,null,{"$f":"IF(AK1112=\"\",\"\",SMALL(C1113:C1129,14))","v":""},null,null,{"$f":"IF(AK1112=\"\",\"\",INT(AK1126/1000))","v":""},{"$f":"IF(AK1112=\"\",\"\",VLOOKUP(AK1126,C1113:Q1129,5,FALSE))","v":""},{"$f":"VLOOKUP(AK1126,C1113:Q1129,8,FALSE)","v":""},{"$f":"VLOOKUP(AK1126,C1113:Q1129,9,FALSE)","v":""},{"$f":"VLOOKUP(AK1126,C1113:Q1129,10,FALSE)","v":""},{"$f":"VLOOKUP(AK1126,C1113:Q1129,11,FALSE)","v":""},{"$f":"VLOOKUP(AK1126,C1113:Q1129,12,FALSE)","v":""},{"$f":"VLOOKUP(AK1126,C1113:Q1129,13,FALSE)","v":""},{"$f":"VLOOKUP(AK1126,C1113:Q1129,14,FALSE)","v":""},{"$f":"VLOOKUP(AK1126,C1113:Q1129,15,FALSE)","v":""}]
[null,15,{"$f":"IF(AK1112=\"\",\"\",RANK(F1127,F1113:F1129)*1000+ROW())","v":""},"",{"$f":"IF(L1127=\"\",\"\",Nb_Diff_Part(D1127,D1113:D1129,G1127,G1113:G1129,AI1132:AI1299)*CritClassInd_DiffPart+Nb_Goal_Part(D1127,D1113:D1129,G1127,G1113:G1129,V1132:Z1299)*CritClassInd_GoalPart+Nb_Score_Part(D1127,D1113:D1129,G1127,G1113:G1129,V1132:Z1299)*CritClassInd_ScorePart)","v":""},"","O",0,null,{"$f":"IF(AK1112=\"\",\"\",(L1127*Points_Victoire)+M1127*Points_Null)","v":""},"",{"$f":"IF(AK1112=\"\",\"\",COUNTIF(AE1132:AE1299,G1127))","v":""},{"$f":"IF(AK1112=\"\",\"\",COUNTIF(AF1132:AG1299,G1127))","v":""},{"$f":"IF(AK1112=\"\",\"\",COUNTIF(AH1132:AH1299,G1127))","v":""},{"$f":"IF(AK1112=\"\",\"\",SUMIF(V1132:V1299,G1127,AB1132:AB1299)+SUMIF(Z1132:Z1299,G1127,AD1132:AD1299))","v":""},{"$f":"IF(AK1112=\"\",\"\",SUMIF(V1132:V1299,G1127,AD1132:AD1299)+SUMIF(Z1132:Z1299,G1127,AB1132:AB1299))","v":""},{"$f":"IF(AK1112=\"\",\"\",O1127-P1127)","v":""},null,null,null,null,null,null,null,null,null,null,null,null,null,null,null,null,null,null,null,{"$f":"IF(AK1112=\"\",\"\",SMALL(C1113:C1129,15))","v":""},null,null,{"$f":"IF(AK1112=\"\",\"\",INT(AK1127/1000))","v":""},{"$f":"IF(AK1112=\"\",\"\",VLOOKUP(AK1127,C1113:Q1129,5,FALSE))","v":""},{"$f":"VLOOKUP(AK1127,C1113:Q1129,8,FALSE)","v":""},{"$f":"VLOOKUP(AK1127,C1113:Q1129,9,FALSE)","v":""},{"$f":"VLOOKUP(AK1127,C1113:Q1129,10,FALSE)","v":""},{"$f":"VLOOKUP(AK1127,C1113:Q1129,11,FALSE)","v":""},{"$f":"VLOOKUP(AK1127,C1113:Q1129,12,FALSE)","v":""},{"$f":"VLOOKUP(AK1127,C1113:Q1129,13,FALSE)","v":""},{"$f":"VLOOKUP(AK1127,C1113:Q1129,14,FALSE)","v":""},{"$f":"VLOOKUP(AK1127,C1113:Q1129,15,FALSE)","v":""}]
[null,16,{"$f":"IF(AK1112=\"\",\"\",RANK(F1128,F1113:F1129)*1000+ROW())","v":""},"",{"$f":"IF(L1128=\"\",\"\",Nb_Diff_Part(D1128,D1113:D1129,G1128,G1113:G1129,AI1132:AI1299)*CritClassInd_DiffPart+Nb_Goal_Part(D1128,D1113:D1129,G1128,G1113:G1129,V1132:Z1299)*CritClassInd_GoalPart+Nb_Score_Part(D1128,D1113:D1129,G1128,G1113:G1129,V1132:Z1299)*CritClassInd_ScorePart)","v":""},"","P",0,null,{"$f":"IF(AK1112=\"\",\"\",(L1128*Points_Victoire)+M1128*Points_Null)","v":""},"",{"$f":"IF(AK1112=\"\",\"\",COUNTIF(AE1132:AE1299,G1128))","v":""},{"$f":"IF(AK1112=\"\",\"\",COUNTIF(AF1132:AG1299,G1128))","v":""},{"$f":"IF(AK1112=\"\",\"\",COUNTIF(AH1132:AH1299,G1128))","v":""},{"$f":"IF(AK1112=\"\",\"\",SUMIF(V1132:V1299,G1128,AB1132:AB1299)+SUMIF(Z1132:Z1299,G1128,AD1132:AD1299))","v":""},{"$f":"IF(AK1112=\"\",\"\",SUMIF(V1132:V1299,G1128,AD1132:AD1299)+SUMIF(Z1132:Z1299,G1128,AB1132:AB1299))","v":""},{"$f":"IF(AK1112=\"\",\"\",O1128-P1128)","v":""},null,null,null,null,null,null,null,null,null,null,null,null,null,null,null,null,null,null,null,{"$f":"IF(AK1112=\"\",\"\",SMALL(C1113:C1129,16))","v":""},null,null,{"$f":"IF(AK1112=\"\",\"\",INT(AK1128/1000))","v":""},{"$f":"IF(AK1112=\"\",\"\",VLOOKUP(AK1128,C1113:Q1129,5,FALSE))","v":""},{"$f":"VLOOKUP(AK1128,C1113:Q1129,8,FALSE)","v":""},{"$f":"VLOOKUP(AK1128,C1113:Q1129,9,FALSE)","v":""},{"$f":"VLOOKUP(AK1128,C1113:Q1129,10,FALSE)","v":""},{"$f":"VLOOKUP(AK1128,C1113:Q1129,11,FALSE)","v":""},{"$f":"VLOOKUP(AK1128,C1113:Q1129,12,FALSE)","v":""},{"$f":"VLOOKUP(AK1128,C1113:Q1129,13,FALSE)","v":""},{"$f":"VLOOKUP(AK1128,C1113:Q1129,14,FALSE)","v":""},{"$f":"VLOOKUP(AK1128,C1113:Q1129,15,FALSE)","v":""}]
[null,17,{"$f":"IF(AK1112=\"\",\"\",RANK(F1129,F1113:F1129)*1000+ROW())","v":""},"",{"$f":"IF(L1129=\"\",\"\",Nb_Diff_Part(D1129,D1113:D1129,G1129,G1113:G1129,AI1132:AI1299)*CritClassInd_DiffPart+Nb_Goal_Part(D1129,D1113:D1129,G1129,G1113:G1129,V1132:Z1299)*CritClassInd_GoalPart+Nb_Score_Part(D1129,D1113:D1129,G1129,G1113:G1129,V1132:Z1299)*CritClassInd_ScorePart)","v":""},"","Q",0,null,{"$f":"IF(AK1112=\"\",\"\",(L1129*Points_Victoire)+M1129*Points_Null)","v":""},"",{"$f":"IF(AK1112=\"\",\"\",COUNTIF(AE1132:AE1299,G1129))","v":""},{"$f":"IF(AK1112=\"\",\"\",COUNTIF(AF1132:AG1299,G1129))","v":""},{"$f":"IF(AK1112=\"\",\"\",COUNTIF(AH1132:AH1299,G1129))","v":""},{"$f":"IF(AK1112=\"\",\"\",SUMIF(V1132:V1299,G1129,AB1132:AB1299)+SUMIF(Z1132:Z1299,G1129,AD1132:AD1299))","v":""},{"$f":"IF(AK1112=\"\",\"\",SUMIF(V1132:V1299,G1129,AD1132:AD1299)+SUMIF(Z1132:Z1299,G1129,AB1132:AB1299))","v":""},{"$f":"IF(AK1112=\"\",\"\",O1129-P1129)","v":""},null,null,null,null,null,null,null,null,null,null,null,null,null,null,null,null,null,null,null,{"$f":"IF(AK1112=\"\",\"\",SMALL(C1113:C1129,17))","v":""},null,null,{"$f":"IF(AK1112=\"\",\"\",INT(AK1129/1000))","v":""},{"$f":"IF(AK1112=\"\",\"\",VLOOKUP(AK1129,C1113:Q1129,5,FALSE))","v":""},{"$f":"VLOOKUP(AK1129,C1113:Q1129,8,FALSE)","v":""},{"$f":"VLOOKUP(AK1129,C1113:Q1129,9,FALSE)","v":""},{"$f":"VLOOKUP(AK1129,C1113:Q1129,10,FALSE)","v":""},{"$f":"VLOOKUP(AK1129,C1113:Q1129,11,FALSE)","v":""},{"$f":"VLOOKUP(AK1129,C1113:Q1129,12,FALSE)","v":""},{"$f":"VLOOKUP(AK1129,C1113:Q1129,13,FALSE)","v":""},{"$f":"VLOOKUP(AK1129,C1113:Q1129,14,FALSE)","v":""},{"$f":"VLOOKUP(AK1129,C1113:Q1129,15,FALSE)","v":""}]
[null,null,null,null,null,null,null,null,null,null,null,null,null,null,null,null,null,null,1,null,null,null,null,null,null,null,null,{"$f":"IF(MaxScore,N_MaxScore,\"\")","v":"Max Score"}]
[null,null,null,null,null,null,null,null,null,null,null,null,null,null,null,null,null,null,{"$f":"N_Heure","v":"Time"},{"$f":"N_Table","v":"Table"},{"$f":"N_Arbitre","v":"Referee"},{"$f":"N_Matches","v":"Matches"}]
[null,null,null,null,null,null,null,null,null,null,null,null,null,null,null,null,null,"#G1",null,null,null,{"$f":"IF(G1113=\"\",\"\",G1113)","v":"A"},null,"-",null,{"$f":"IF(G1114=\"\",\"\",G1114)","v":"B"},null,{"$f":"IF(MaxScore,MaxGoals(W1132,Y1132,MaxGoalsValue),IF(W1132=\"\",\"\",W1132))","v":0},{"$f":"IF(MaxScore,\"-\",IF(W1132=\"\",\"\",\"-\"))","v":"-"},{"$f":"IF(MaxScore,MaxGoals(Y1132,W1132,MaxGoalsValue),IF(Y1132=\"\",\"\",Y1132))","v":0},{"$f":"IF(W1132=\"\",\"\",IF(W1132>Y1132,V1132,IF(W1132=Y1132,\"\",Z1132)))","v":""},{"$f":"IF(W1132=\"\",\"\",IF(W1132=Y1132,V1132,\"\"))","v":""},{"$f":"IF(W1132=\"\",\"\",IF(W1132=Y1132,Z1132,\"\"))","v":""},{"$f":"IF(W1132=\"\",\"\",IF(W1132<Y1132,V1132,IF(W1132=Y1132,\"\",Z1132)))","v":""},{"$f":"CONCATENATE(AE1132,AH1132)","v":""}]
[null,null,null,null,null,null,null,null,null,null,null,null,null,null,null,null,null,"#G1",null,null,null,{"$f":"IF(G1115=\"\",\"\",G1115)","v":"C"},null,"-",null,{"$f":"IF(G1116=\"\",\"\",G1116)","v":"D"},null,0,"-",0,"","","","",""]
[null,null,null,null,null,null,null,null,null,null,null,null,null,null,null,null,null,"#G1",null,null,null,{"$f":"IF(G1117=\"\",\"\",G1117)","v":"E"},null,"-",null,{"$f":"IF(G1118=\"\",\"\",G1118)","v":"F"},null,0,"-",0,"","","","",""]
[null,null,null,null,null,null,null,null,null,null,null,null,null,null,null,null,null,"#G1",null,null,null,{"$f":"IF(G1119=\"\",\"\",G1119)","v":"G"},null,"-",null,{"$f":"IF(G1120=\"\",\"\",G1120)","v":"H"},null,0,"-",0,"","","","",""]
[null,null,null,null,null,null,null,null,null,null,null,null,null,null,null,null,null,"#G1",null,null,null,{"$f":"IF(G1121=\"\",\"\",G1121)","v":"I"},null,"-",null,{"$f":"IF(G1122=\"\",\"\",G1122)","v":"J"},null,0,"-",0,"","","","",""]
[null,null,null,null,null,null,null,null,null,null,null,null,null,null,null,null,null,"#G1",null,null,null,{"$f":"IF(G1123=\"\",\"\",G1123)","v":"K"},null,"-",null,{"$f":"IF(G1124=\"\",\"\",G1124)","v":"L"},null,0,"-",0,"","","","",""]
[null,null,null,null,null,null,null,null,null,null,null,null,null,null,null,null,null,"#G1",null,null,null,{"$f":"IF(G1125=\"\",\"\",G1125)","v":"M"},null,"-",null,{"$f":"IF(G1126=\"\",\"\",G1126)","v":"N"},null,0,"-",0,"","","","",""]
[null,null,null,null,null,null,null,null,null,null,null,null,null,null,null,null,null,"#G1",null,null,null,{"$f":"IF(G1127=\"\",\"\",G1127)","v":"O"},null,"-",null,{"$f":"IF(G1128=\"\",\"\",G1128)","v":"P"},null,0,"-",0,"","","","",""]
[null,null,null,null,null,null,null,null,null,null,null,null,null,null,null,null,null,null,{"$f":"S1130+1","v":2}]
[null,null,null,null,null,null,null,null,null,null,null,null,null,null,null,null,null,null,{"$f":"N_Heure","v":"Time"},{"$f":"N_Table","v":"Table"},{"$f":"N_Arbitre","v":"Referee"},{"$f":"N_Matches","v":"Matches"}]
[null,null,null,null,null,null,null,null,null,null,null,null,null,null,null,null,null,"#G2",null,null,null,{"$f":"V1133","v":"C"},null,"-",null,{"$f":"V1132","v":"A"},null,{"$f":"IF(MaxScore,MaxGoals(W1142,Y1142,MaxGoalsValue),IF(W1142=\"\",\"\",W1142))","v":0},{"$f":"IF(MaxScore,\"-\",IF(W1142=\"\",\"\",\"-\"))","v":"-"},{"$f":"IF(MaxScore,MaxGoals(Y1142,W1142,MaxGoalsValue),IF(Y1142=\"\",\"\",Y1142))","v":0},{"$f":"IF(W1142=\"\",\"\",IF(W1142>Y1142,V1142,IF(W1142=Y1142,\"\",Z1142)))","v":""},{"$f":"IF(W1142=\"\",\"\",IF(W1142=Y1142,V1142,\"\"))","v":""},{"$f":"IF(W1142=\"\",\"\",IF(W1142=Y1142,Z1142,\"\"))","v":""},{"$f":"IF(W1142=\"\",\"\",IF(W1142<Y1142,V1142,IF(W1142=Y1142,\"\",Z1142)))","v":""},{"$f":"CONCATENATE(AE1142,AH1142)","v":""}]
[null,null,null,null,null,null,null,null,null,null,null,null,null,null,null,null,null,"#G2",null,null,null,{"$f":"Z1132","v":"B"},null,"-",null,{"$f":"V1134","v":"E"},null,0,"-",0,"","","","",""]
[null,null,null,null,null,null,null,null,null,null,null,null,null,null,null,null,null,"#G2",null,null,null,"D",null,"-",null,"G",null,0,"-",0,"","","","",""]
[null,null,null,null,null,null,null,null,null,null,null,null,null,null,null,null,null,"#G2",null,null,null,"F",null,"-",null,"I",null,0,"-",0,"","","","",""]
[null,null,null,null,null,null,null,null,null,null,null,null,null,null,null,null,null,"#G2",null,null,null,"H",null,"-",null,"K",null,0,"-",0,"","","","",""]
[null,null,null,null,null,null,null,null,null,null,null,null,null,null,null,null,null,"#G2",null,null,null,"J",null,"-",null,"M",null,0,"-",0,"","","","",""]
[null,null,null,null,null,null,null,null,null,null,null,null,null,null,null,null,null,"#G2",null,null,null,"L",null,"-",null,"O",null,0,"-",0,"","","","",""]
[null,null,null,null,null,null,null,null,null,null,null,null,null,null,null,null,null,"#G2",null,null,null,"N",null,"-",null,{"$f":"G1129","v":"Q"},null,0,"-",0,"","","","",""]
[null,null,null,null,null,null,null,null,null,null,null,null,null,null,null,null,null,null,{"$f":"S1140+1","v":3}]
[null,null,null,null,null,null,null,null,null,null,null,null,null,null,null,null,null,null,{"$f":"N_Heure","v":"Time"},{"$f":"N_Table","v":"Table"},{"$f":"N_Arbitre","v":"Referee"},{"$f":"N_Matches","v":"Matches"}]
[null,null,null,null,null,null,null,null,null,null,null,null,null,null,null,null,null,"#G3",null,null,null,{"$f":"Z1142","v":"A"},null,"-",null,{"$f":"Z1143","v":"E"},null,{"$f":"IF(MaxScore,MaxGoals(W1152,Y1152,MaxGoalsValue),IF(W1152=\"\",\"\",W1152))","v":0},{"$f":"IF(MaxScore,\"-\",IF(W1152=\"\",\"\",\"-\"))","v":"-"},{"$f":"IF(MaxScore,MaxGoals(Y1152,W1152,MaxGoalsValue),IF(Y1152=\"\",\"\",Y1152))","v":0},{"$f":"IF(W1152=\"\",\"\",IF(W1152>Y1152,V1152,IF(W1152=Y1152,\"\",Z1152)))","v":""},{"$f":"IF(W1152=\"\",\"\",IF(W1152=Y1152,V1152,\"\"))","v":""},{"$f":"IF(W1152=\"\",\"\",IF(W1152=Y1152,Z1152,\"\"))","v":""},{"$f":"IF(W1152=\"\",\"\",IF(W1152<Y1152,V1152,IF(W1152=Y1152,\"\",Z1152)))","v":""},{"$f":"CONCATENATE(AE1152,AH1152)","v":""}]
[null,null,null,null,null,null,null,null,null,null,null,null,null,null,null,null,null,"#G3",null,null,null,{"$f":"Z1144","v":"G"},null,"-",null,{"$f":"V1142","v":"C"},null,0,"-",0,"","","","",""]
[null,null,null,null,null,null,null,null,null,null,null,null,null,null,null,null,null,"#G3",null,null,null,"I",null,"-",null,"B",null,0,"-",0,"","","","",""]
[null,null,null,null,null,null,null,null,null,null,null,null,null,null,null,null,null,"#G3",null,null,null,"K",null,"-",null,"D",null,0,"-",0,"","","","",""]
[null,null,null,null,null,null,null,null,null,null,null,null,null,null,null,null,null,"#G3",null,null,null,"M",null,"-",null,"F",null,0,"-",0,"","","","",""]
[null,null,null,null,null,null,null,null,null,null,null,null,null,null,null,null,null,"#G3",null,null,null,"O",null,"-",null,"H",null,0,"-",0,"","","","",""]
[null,null,null,null,null,null,null,null,null,null,null,null,null,null,null,null,null,"#G3",null,null,null,"Q",null,"-",null,"J",null,0,"-",0,"","","","",""]
[null,null,null,null,null,null,null,null,null,null,null,null,null,null,null,null,null,"#G3",null,null,null,{"$f":"Z1139","v":"P"},null,"-",null,{"$f":"V1149","v":"N"},null,0,"-",0,"","","","",""]
[null,null,null,null,null,null,null,null,null,null,null,null,null,null,null,null,null,null,{"$f":"S1150+1","v":4}]
[null,null,null,null,null,null,null,null,null,null,null,null,null,null,null,null,null,null,{"$f":"N_Heure","v":"Time"},{"$f":"N_Table","v":"Table"},{"$f":"N_Arbitre","v":"Referee"},{"$f":"N_Matches","v":"Matches"}]
[null,null,null,null,null,null,null,null,null,null,null,null,null,null,null,null,null,"#G4",null,null,null,{"$f":"V1153","v":"G"},null,"-",null,{"$f":"V1152","v":"A"},null,{"$f":"IF(MaxScore,MaxGoals(W1162,Y1162,MaxGoalsValue),IF(W1162=\"\",\"\",W1162))","v":0},{"$f":"IF(MaxScore,\"-\",IF(W1162=\"\",\"\",\"-\"))","v":"-"},{"$f":"IF(MaxScore,MaxGoals(Y1162,W1162,MaxGoalsValue),IF(Y1162=\"\",\"\",Y1162))","v":0},{"$f":"IF(W1162=\"\",\"\",IF(W1162>Y1162,V1162,IF(W1162=Y1162,\"\",Z1162)))","v":""},{"$f":"IF(W1162=\"\",\"\",IF(W1162=Y1162,V1162,\"\"))","v":""},{"$f":"IF(W1162=\"\",\"\",IF(W1162=Y1162,Z1162,\"\"))","v":""},{"$f":"IF(W1162=\"\",\"\",IF(W1162<Y1162,V1162,IF(W1162=Y1162,\"\",Z1162)))","v":""},{"$f":"CONCATENATE(AE1162,AH1162)","v":""}]
[null,null,null,null,null,null,null,null,null,null,null,null,null,null,null,null,null,"#G4",null,null,null,{"$f":"Z1152","v":"E"},null,"-",null,{"$f":"V1154","v":"I"},null,0,"-",0,"","","","",""]
[null,null,null,null,null,null,null,null,null,null,null,null,null,null,null,null,null,"#G4",null,null,null,{"$f":"Z1153","v":"C"},null,"-",null,"K",null,0,"-",0,"","","","",""]
[null,null,null,null,null,null,null,null,null,null,null,null,null,null,null,null,null,"#G4",null,null,null,{"$f":"Z1154","v":"B"},null,"-",null,"M",null,0,"-",0,"","","","",""]
[null,null,null,null,null,null,null,null,null,null,null,null,null,null,null,null,null,"#G4",null,null,null,{"$f":"Z1155","v":"D"},null,"-",null,"O",null,0,"-",0,"","","","",""]
[null,null,null,null,null,null,null,null,null,null,null,null,null,null,null,null,null,"#G4",null,null,null,{"$f":"Z1156","v":"F"},null,"-",null,"Q",null,0,"-",0,"","","","",""]
[null,null,null,null,null,null,null,null,null,null,null,null,null,null,null,null,null,"#G4",null,null,null,{"$f":"Z1158","v":"J"},null,"-",null,"P",null,0,"-",0,"","","","",""]
[null,null,null,null,null,null,null,null,null,null,null,null,null,null,null,null,null,"#G4",null,null,null,{"$f":"V1148","v":"L"},null,"-",null,{"$f":"Z1159","v":"N"},null,0,"-",0,"","","","",""]
[null,null,null,null,null,null,null,null,null,null,null,null,null,null,null,null,null,null,{"$f":"S1160+1","v":5}]
[null,null,null,null,null,null,null,null,null,null,null,null,null,null,null,null,null,null,{"$f":"N_Heure","v":"Time"},{"$f":"N_Table","v":"Table"},{"$f":"N_Arbitre","v":"Referee"},{"$f":"N_Matches","v":"Matches"}]
[null,null,null,null,null,null,null,null,null,null,null,null,null,null,null,null,null,"#G5",null,null,null,{"$f":"Z1162","v":"A"},null,"-",null,{"$f":"Z1163","v":"I"},null,{"$f":"IF(MaxScore,MaxGoals(W1172,Y1172,MaxGoalsValue),IF(W1172=\"\",\"\",W1172))","v":0},{"$f":"IF(MaxScore,\"-\",IF(W1172=\"\",\"\",\"-\"))","v":"-"},{"$f":"IF(MaxScore,MaxGoals(Y1172,W1172,MaxGoalsValue),IF(Y1172=\"\",\"\",Y1172))","v":0},{"$f":"IF(W1172=\"\",\"\",IF(W1172>Y1172,V1172,IF(W1172=Y1172,\"\",Z1172)))","v":""},{"$f":"IF(W1172=\"\",\"\",IF(W1172=Y1172,V1172,\"\"))","v":""},{"$f":"IF(W1172=\"\",\"\",IF(W1172=Y1172,Z1172,\"\"))","v":""},{"$f":"IF(W1172=\"\",\"\",IF(W1172<Y1172,V1172,IF(W1172=Y1172,\"\",Z1172)))","v":""},{"$f":"CONCATENATE(AE1172,AH1172)","v":""}]
[null,null,null,null,null,null,null,null,null,null,null,null,null,null,null,null,null,"#G5",null,null,null,{"$f":"Z1164","v":"K"},null,"-",null,{"$f":"V1162","v":"G"},null,0,"-",0,"","","","",""]
[null,null,null,null,null,null,null,null,null,null,null,null,null,null,null,null,null,"#G5",null,null,null,"M",null,"-",null,{"$f":"V1163","v":"E"},null,0,"-",0,"","","","",""]
[null,null,null,null,null,null,null,null,null,null,null,null,null,null,null,null,null,"#G5",null,null,null,"O",null,"-",null,{"$f":"V1164","v":"C"},null,0,"-",0,"","","","",""]
[null,null,null,null,null,null,null,null,null,null,null,null,null,null,null,null,null,"#G5",null,null,null,"Q",null,"-",null,{"$f":"V1165","v":"B"},null,0,"-",0,"","","","",""]
[null,null,null,null,null,null,null,null,null,null,null,null,null,null,null,null,null,"#G5",null,null,null,"P",null,"-",null,{"$f":"V1167","v":"F"},null,0,"-",0,"","","","",""]
[null,null,null,null,null,null,null,null,null,null,null,null,null,null,null,null,null,"#G5",null,null,null,"N",null,"-",null,{"$f":"Z1157","v":"H"},null,0,"-",0,"","","","",""]
[null,null,null,null,null,null,null,null,null,null,null,null,null,null,null,null,null,"#G5",null,null,null,{"$f":"V1169","v":"L"},null,"-",null,{"$f":"V1168","v":"J"},null,0,"-",0,"","","","",""]
[null,null,null,null,null,null,null,null,null,null,null,null,null,null,null,null,null,null,{"$f":"S1170+1","v":6}]
[null,null,null,null,null,null,null,null,null,null,null,null,null,null,null,null,null,null,{"$f":"N_Heure","v":"Time"},{"$f":"N_Table","v":"Table"},{"$f":"N_Arbitre","v":"Referee"},{"$f":"N_Matches","v":"Matches"}]
[null,null,null,null,null,null,null,null,null,null,null,null,null,null,null,null,null,"#G6",null,null,null,{"$f":"V1173","v":"K"},null,"-",null,{"$f":"V1172","v":"A"},null,{"$f":"IF(MaxScore,MaxGoals(W1182,Y1182,MaxGoalsValue),IF(W1182=\"\",\"\",W1182))","v":0},{"$f":"IF(MaxScore,\"-\",IF(W1182=\"\",\"\",\"-\"))","v":"-"},{"$f":"IF(MaxScore,MaxGoals(Y1182,W1182,MaxGoalsValue),IF(Y1182=\"\",\"\",Y1182))","v":0},{"$f":"IF(W1182=\"\",\"\",IF(W1182>Y1182,V1182,IF(W1182=Y1182,\"\",Z1182)))","v":""},{"$f":"IF(W1182=\"\",\"\",IF(W1182=Y1182,V1182,\"\"))","v":""},{"$f":"IF(W1182=\"\",\"\",IF(W1182=Y1182,Z1182,\"\"))","v":""},{"$f":"IF(W1182=\"\",\"\",IF(W1182<Y1182,V1182,IF(W1182=Y1182,\"\",Z1182)))","v":""},{"$f":"CONCATENATE(AE1182,AH1182)","v":""}]
[null,null,null,null,null,null,null,null,null,null,null,null,null,null,null,null,null,"#G6",null,null,null,{"$f":"Z1172","v":"I"},null,"-",null,{"$f":"V1174","v":"M"},null,0,"-",0,"","","","",""]
[null,null,null,null,null,null,null,null,null,null,null,null,null,null,null,null,null,"#G6",null,null,null,{"$f":"Z1173","v":"G"},null,"-",null,"O",null,0,"-",0,"","","","",""]
[null,null,null,null,null,null,null,null,null,null,null,null,null,null,null,null,null,"#G6",null,null,null,{"$f":"Z1174","v":"E"},null,"-",null,"Q",null,0,"-",0,"","","","",""]
[null,null,null,null,null,null,null,null,null,null,null,null,null,null,null,null,null,"#G6",null,null,null,{"$f":"Z1176","v":"B"},null,"-",null,"P",null,0,"-",0,"","","","",""]
[null,null,null,null,null,null,null,null,null,null,null,null,null,null,null,null,null,"#G6",null,null,null,{"$f":"V1166","v":"D"},null,"-",null,"N",null,0,"-",0,"","","","",""]
[null,null,null,null,null,null,null,null,null,null,null,null,null,null,null,null,null,"#G6",null,null,null,{"$f":"Z1177","v":"F"},null,"-",null,"L",null,0,"-",0,"","","","",""]
[null,null,null,null,null,null,null,null,null,null,null,null,null,null,null,null,null,"#G6",null,null,null,{"$f":"Z1178","v":"H"},null,"-",null,{"$f":"Z1179","v":"J"},null,0,"-",0,"","","","",""]
[null,null,null,null,null,null,null,null,null,null,null,null,null,null,null,null,null,null,{"$f":"S1180+1","v":7}]
[null,null,null,null,null,null,null,null,null,null,null,null,null,null,null,null,null,null,{"$f":"N_Heure","v":"Time"},{"$f":"N_Table","v":"Table"},{"$f":"N_Arbitre","v":"Referee"},{"$f":"N_Matches","v":"Matches"}]
[null,null,null,null,null,null,null,null,null,null,null,null,null,null,null,null,null,"#G7",null,null,null,{"$f":"Z1182","v":"A"},null,"-",null,{"$f":"Z1183","v":"M"},null,{"$f":"IF(MaxScore,MaxGoals(W1192,Y1192,MaxGoalsValue),IF(W1192=\"\",\"\",W1192))","v":0},{"$f":"IF(MaxScore,\"-\",IF(W1192=\"\",\"\",\"-\"))","v":"-"},{"$f":"IF(MaxScore,MaxGoals(Y1192,W1192,MaxGoalsValue),IF(Y1192=\"\",\"\",Y1192))","v":0},{"$f":"IF(W1192=\"\",\"\",IF(W1192>Y1192,V1192,IF(W1192=Y1192,\"\",Z1192)))","v":""},{"$f":"IF(W1192=\"\",\"\",IF(W1192=Y1192,V1192,\"\"))","v":""},{"$f":"IF(W1192=\"\",\"\",IF(W1192=Y1192,Z1192,\"\"))","v":""},{"$f":"IF(W1192=\"\",\"\",IF(W1192<Y1192,V1192,IF(W1192=Y1192,\"\",Z1192)))","v":""},{"$f":"CONCATENATE(AE1192,AH1192)","v":""}]
[null,null,null,null,null,null,null,null,null,null,null,null,null,null,null,null,null,"#G7",null,null,null,{"$f":"Z1184","v":"O"},null,"-",null,{"$f":"V1182","v":"K"},null,0,"-",0,"","","","",""]
[null,null,null,null,null,null,null,null,null,null,null,null,null,null,null,null,null,"#G7",null,null,null,"Q",null,"-",null,{"$f":"V1183","v":"I"},null,0,"-",0,"","","","",""]
[null,null,null,null,null,null,null,null,null,null,null,null,null,null,null,null,null,"#G7",null,null,null,"P",null,"-",null,{"$f":"V1185","v":"E"},null,0,"-",0,"","","","",""]
[null,null,null,null,null,null,null,null,null,null,null,null,null,null,null,null,null,"#G7",null,null,null,"N",null,"-",null,{"$f":"Z1175","v":"C"},null,0,"-",0,"","","","",""]
[null,null,null,null,null,null,null,null,null,null,null,null,null,null,null,null,null,"#G7",null,null,null,"L",null,"-",null,{"$f":"V1186","v":"B"},null,0,"-",0,"","","","",""]
[null,null,null,null,null,null,null,null,null,null,null,null,null,null,null,null,null,"#G7",null,null,null,"J",null,"-",null,{"$f":"V1187","v":"D"},null,0,"-",0,"","","","",""]
[null,null,null,null,null,null,null,null,null,null,null,null,null,null,null,null,null,"#G7",null,null,null,{"$f":"V1189","v":"H"},null,"-",null,{"$f":"V1188","v":"F"},null,0,"-",0,"","","","",""]
[null,null,null,null,null,null,null,null,null,null,null,null,null,null,null,null,null,null,{"$f":"S1190+1","v":8}]
[null,null,null,null,null,null,null,null,null,null,null,null,null,null,null,null,null,null,{"$f":"N_Heure","v":"Time"},{"$f":"N_Table","v":"Table"},{"$f":"N_Arbitre","v":"Referee"},{"$f":"N_Matches","v":"Matches"}]
[null,null,null,null,null,null,null,null,null,null,null,null,null,null,null,null,null,"#G8",null,null,null,{"$f":"V1193","v":"O"},null,"-",null,{"$f":"V1192","v":"A"},null,{"$f":"IF(MaxScore,MaxGoals(W1202,Y1202,MaxGoalsValue),IF(W1202=\"\",\"\",W1202))","v":0},{"$f":"IF(MaxScore,\"-\",IF(W1202=\"\",\"\",\"-\"))","v":"-"},{"$f":"IF(MaxScore,MaxGoals(Y1202,W1202,MaxGoalsValue),IF(Y1202=\"\",\"\",Y1202))","v":0},{"$f":"IF(W1202=\"\",\"\",IF(W1202>Y1202,V1202,IF(W1202=Y1202,\"\",Z1202)))","v":""},{"$f":"IF(W1202=\"\",\"\",IF(W1202=Y1202,V1202,\"\"))","v":""},{"$f":"IF(W1202=\"\",\"\",IF(W1202=Y1202,Z1202,\"\"))","v":""},{"$f":"IF(W1202=\"\",\"\",IF(W1202<Y1202,V1202,IF(W1202=Y1202,\"\",Z1202)))","v":""},{"$f":"CONCATENATE(AE1202,AH1202)","v":""}]
[null,null,null,null,null,null,null,null,null,null,null,null,null,null,null,null,null,"#G8",null,null,null,{"$f":"Z1192","v":"M"},null,"-",null,{"$f":"V1194","v":"Q"},null,0,"-",0,"","","","",""]
[null,null,null,null,null,null,null,null,null,null,null,null,null,null,null,null,null,"#G8",null,null,null,{"$f":"Z1194","v":"I"},null,"-",null,"P",null,0,"-",0,"","","","",""]
[null,null,null,null,null,null,null,null,null,null,null,null,null,null,null,null,null,"#G8",null,null,null,{"$f":"V1184","v":"G"},null,"-",null,"N",null,0,"-",0,"","","","",""]
[null,null,null,null,null,null,null,null,null,null,null,null,null,null,null,null,null,"#G8",null,null,null,{"$f":"Z1195","v":"E"},null,"-",null,"L",null,0,"-",0,"","","","",""]
[null,null,null,null,null,null,null,null,null,null,null,null,null,null,null,null,null,"#G8",null,null,null,{"$f":"Z1196","v":"C"},null,"-",null,"J",null,0,"-",0,"","","","",""]
[null,null,null,null,null,null,null,null,null,null,null,null,null,null,null,null,null,"#G8",null,null,null,{"$f":"Z1197","v":"B"},null,"-",null,"H",null,0,"-",0,"","","","",""]
[null,null,null,null,null,null,null,null,null,null,null,null,null,null,null,null,null,"#G8",null,null,null,{"$f":"Z1198","v":"D"},null,"-",null,{"$f":"Z1199","v":"F"},null,0,"-",0,"","","","",""]
[null,null,null,null,null,null,null,null,null,null,null,null,null,null,null,null,null,null,{"$f":"S1200+1","v":9}]
[null,null,null,null,null,null,null,null,null,null,null,null,null,null,null,null,null,null,{"$f":"N_Heure","v":"Time"},{"$f":"N_Table","v":"Table"},{"$f":"N_Arbitre","v":"Referee"},{"$f":"N_Matches","v":"Matches"}]
[null,null,null,null,null,null,null,null,null,null,null,null,null,null,null,null,null,"#G9",null,null,null,{"$f":"Z1202","v":"A"},null,"-",null,{"$f":"Z1203","v":"Q"},null,{"$f":"IF(MaxScore,MaxGoals(W1212,Y1212,MaxGoalsValue),IF(W1212=\"\",\"\",W1212))","v":0},{"$f":"IF(MaxScore,\"-\",IF(W1212=\"\",\"\",\"-\"))","v":"-"},{"$f":"IF(MaxScore,MaxGoals(Y1212,W1212,MaxGoalsValue),IF(Y1212=\"\",\"\",Y1212))","v":0},{"$f":"IF(W1212=\"\",\"\",IF(W1212>Y1212,V1212,IF(W1212=Y1212,\"\",Z1212)))","v":""},{"$f":"IF(W1212=\"\",\"\",IF(W1212=Y1212,V1212,\"\"))","v":""},{"$f":"IF(W1212=\"\",\"\",IF(W1212=Y1212,Z1212,\"\"))","v":""},{"$f":"IF(W1212=\"\",\"\",IF(W1212<Y1212,V1212,IF(W1212=Y1212,\"\",Z1212)))","v":""},{"$f":"CONCATENATE(AE1212,AH1212)","v":""}]
[null,null,null,null,null,null,null,null,null,null,null,null,null,null,null,null,null,"#G9",null,null,null,{"$f":"Z1204","v":"P"},null,"-",null,{"$f":"V1203","v":"M"},null,0,"-",0,"","","","",""]
[null,null,null,null,null,null,null,null,null,null,null,null,null,null,null,null,null,"#G9",null,null,null,"N",null,"-",null,{"$f":"Z1193","v":"K"},null,0,"-",0,"","","","",""]
[null,null,null,null,null,null,null,null,null,null,null,null,null,null,null,null,null,"#G9",null,null,null,"L",null,"-",null,{"$f":"V1204","v":"I"},null,0,"-",0,"","","","",""]
[null,null,null,null,null,null,null,null,null,null,null,null,null,null,null,null,null,"#G9",null,null,null,"J",null,"-",null,{"$f":"V1205","v":"G"},null,0,"-",0,"","","","",""]
[null,null,null,null,null,null,null,null,null,null,null,null,null,null,null,null,null,"#G9",null,null,null,"H",null,"-",null,{"$f":"V1206","v":"E"},null,0,"-",0,"","","","",""]
[null,null,null,null,null,null,null,null,null,null,null,null,null,null,null,null,null,"#G9",null,null,null,"F",null,"-",null,{"$f":"V1207","v":"C"},null,0,"-",0,"","","","",""]
[null,null,null,null,null,null,null,null,null,null,null,null,null,null,null,null,null,"#G9",null,null,null,{"$f":"V1209","v":"D"},null,"-",null,{"$f":"V1208","v":"B"},null,0,"-",0,"","","","",""]
[null,null,null,null,null,null,null,null,null,null,null,null,null,null,null,null,null,null,{"$f":"S1210+1","v":10}]
[null,null,null,null,null,null,null,null,null,null,null,null,null,null,null,null,null,null,{"$f":"N_Heure","v":"Time"},{"$f":"N_Table","v":"Table"},{"$f":"N_Arbitre","v":"Referee"},{"$f":"N_Matches","v":"Matches"}]
[null,null,null,null,null,null,null,null,null,null,null,null,null,null,null,null,null,"#G10",null,null,null,{"$f":"Z1212","v":"Q"},null,"-",null,{"$f":"V1213","v":"P"},null,{"$f":"IF(MaxScore,MaxGoals(W1222,Y1222,MaxGoalsValue),IF(W1222=\"\",\"\",W1222))","v":0},{"$f":"IF(MaxScore,\"-\",IF(W1222=\"\",\"\",\"-\"))","v":"-"},{"$f":"IF(MaxScore,MaxGoals(Y1222,W1222,MaxGoalsValue),IF(Y1222=\"\",\"\",Y1222))","v":0},{"$f":"IF(W1222=\"\",\"\",IF(W1222>Y1222,V1222,IF(W1222=Y1222,\"\",Z1222)))","v":""},{"$f":"IF(W1222=\"\",\"\",IF(W1222=Y1222,V1222,\"\"))","v":""},{"$f":"IF(W1222=\"\",\"\",IF(W1222=Y1222,Z1222,\"\"))","v":""},{"$f":"IF(W1222=\"\",\"\",IF(W1222<Y1222,V1222,IF(W1222=Y1222,\"\",Z1222)))","v":""},{"$f":"CONCATENATE(AE1222,AH1222)","v":""}]
[null,null,null,null,null,null,null,null,null,null,null,null,null,null,null,null,null,"#G10",null,null,null,{"$f":"V1202","v":"O"},null,"-",null,"N",null,0,"-",0,"","","","",""]
[null,null,null,null,null,null,null,null,null,null,null,null,null,null,null,null,null,"#G10",null,null,null,{"$f":"Z1213","v":"M"},null,"-",null,"L",null,0,"-",0,"","","","",""]
[null,null,null,null,null,null,null,null,null,null,null,null,null,null,null,null,null,"#G10",null,null,null,"K",null,"-",null,"J",null,0,"-",0,"","","","",""]
[null,null,null,null,null,null,null,null,null,null,null,null,null,null,null,null,null,"#G10",null,null,null,"I",null,"-",null,"H",null,0,"-",0,"","","","",""]
[null,null,null,null,null,null,null,null,null,null,null,null,null,null,null,null,null,"#G10",null,null,null,"G",null,"-",null,"F",null,0,"-",0,"","","","",""]
[null,null,null,null,null,null,null,null,null,null,null,null,null,null,null,null,null,"#G10",null,null,null,"E",null,"-",null,"D",null,0,"-",0,"","","","",""]
[null,null,null,null,null,null,null,null,null,null,null,null,null,null,null,null,null,"#G10",null,null,null,"C",null,"-",null,{"$f":"Z1219","v":"B"},null,0,"-",0,"","","","",""]
[null,null,null,null,null,null,null,null,null,null,null,null,null,null,null,null,null,null,{"$f":"S1220+1","v":11}]
[null,null,null,null,null,null,null,null,null,null,null,null,null,null,null,null,null,null,{"$f":"N_Heure","v":"Time"},{"$f":"N_Table","v":"Table"},{"$f":"N_Arbitre","v":"Referee"},{"$f":"N_Matches","v":"Matches"}]
[null,null,null,null,null,null,null,null,null,null,null,null,null,null,null,null,null,"#G11",null,null,null,{"$f":"V1212","v":"A"},null,"-",null,{"$f":"Z1222","v":"P"},null,{"$f":"IF(MaxScore,MaxGoals(W1232,Y1232,MaxGoalsValue),IF(W1232=\"\",\"\",W1232))","v":0},{"$f":"IF(MaxScore,\"-\",IF(W1232=\"\",\"\",\"-\"))","v":"-"},{"$f":"IF(MaxScore,MaxGoals(Y1232,W1232,MaxGoalsValue),IF(Y1232=\"\",\"\",Y1232))","v":0},{"$f":"IF(W1232=\"\",\"\",IF(W1232>Y1232,V1232,IF(W1232=Y1232,\"\",Z1232)))","v":""},{"$f":"IF(W1232=\"\",\"\",IF(W1232=Y1232,V1232,\"\"))","v":""},{"$f":"IF(W1232=\"\",\"\",IF(W1232=Y1232,Z1232,\"\"))","v":""},{"$f":"IF(W1232=\"\",\"\",IF(W1232<Y1232,V1232,IF(W1232=Y1232,\"\",Z1232)))","v":""},{"$f":"CONCATENATE(AE1232,AH1232)","v":""}]
[null,null,null,null,null,null,null,null,null,null,null,null,null,null,null,null,null,"#G11",null,null,null,{"$f":"Z1224","v":"L"},null,"-",null,{"$f":"V1222","v":"Q"},null,0,"-",0,"","","","",""]
[null,null,null,null,null,null,null,null,null,null,null,null,null,null,null,null,null,"#G11",null,null,null,"J",null,"-",null,"O",null,0,"-",0,"","","","",""]
[null,null,null,null,null,null,null,null,null,null,null,null,null,null,null,null,null,"#G11",null,null,null,"H",null,"-",null,"M",null,0,"-",0,"","","","",""]
[null,null,null,null,null,null,null,null,null,null,null,null,null,null,null,null,null,"#G11",null,null,null,"F",null,"-",null,"K",null,0,"-",0,"","","","",""]
[null,null,null,null,null,null,null,null,null,null,null,null,null,null,null,null,null,"#G11",null,null,null,"D",null,"-",null,"I",null,0,"-",0,"","","","",""]
[null,null,null,null,null,null,null,null,null,null,null,null,null,null,null,null,null,"#G11",null,null,null,"B",null,"-",null,"G",null,0,"-",0,"","","","",""]
[null,null,null,null,null,null,null,null,null,null,null,null,null,null,null,null,null,"#G11",null,null,null,{"$f":"V1229","v":"C"},null,"-",null,{"$f":"V1228","v":"E"},null,0,"-",0,"","","","",""]
[null,null,null,null,null,null,null,null,null,null,null,null,null,null,null,null,null,null,{"$f":"S1230+1","v":12}]
[null,null,null,null,null,null,null,null,null,null,null,null,null,null,null,null,null,null,{"$f":"N_Heure","v":"Time"},{"$f":"N_Table","v":"Table"},{"$f":"N_Arbitre","v":"Referee"},{"$f":"N_Matches","v":"Matches"}]
[null,null,null,null,null,null,null,null,null,null,null,null,null,null,null,null,null,"#G12",null,null,null,{"$f":"Z1223","v":"N"},null,"-",null,{"$f":"V1232","v":"A"},null,{"$f":"IF(MaxScore,MaxGoals(W1242,Y1242,MaxGoalsValue),IF(W1242=\"\",\"\",W1242))","v":0},{"$f":"IF(MaxScore,\"-\",IF(W1242=\"\",\"\",\"-\"))","v":"-"},{"$f":"IF(MaxScore,MaxGoals(Y1242,W1242,MaxGoalsValue),IF(Y1242=\"\",\"\",Y1242))","v":0},{"$f":"IF(W1242=\"\",\"\",IF(W1242>Y1242,V1242,IF(W1242=Y1242,\"\",Z1242)))","v":""},{"$f":"IF(W1242=\"\",\"\",IF(W1242=Y1242,V1242,\"\"))","v":""},{"$f":"IF(W1242=\"\",\"\",IF(W1242=Y1242,Z1242,\"\"))","v":""},{"$f":"IF(W1242=\"\",\"\",IF(W1242<Y1242,V1242,IF(W1242=Y1242,\"\",Z1242)))","v":""},{"$f":"CONCATENATE(AE1242,AH1242)","v":""}]
[null,null,null,null,null,null,null,null,null,null,null,null,null,null,null,null,null,"#G12",null,null,null,{"$f":"Z1232","v":"P"},null,"-",null,{"$f":"V1233","v":"L"},null,0,"-",0,"","","","",""]
[null,null,null,null,null,null,null,null,null,null,null,null,null,null,null,null,null,"#G12",null,null,null,{"$f":"Z1233","v":"Q"},null,"-",null,{"$f":"V1235","v":"H"},null,0,"-",0,"","","","",""]
[null,null,null,null,null,null,null,null,null,null,null,null,null,null,null,null,null,"#G12",null,null,null,"O",null,"-",null,{"$f":"V1236","v":"F"},null,0,"-",0,"","","","",""]
[null,null,null,null,null,null,null,null,null,null,null,null,null,null,null,null,null,"#G12",null,null,null,"M",null,"-",null,{"$f":"V1237","v":"D"},null,0,"-",0,"","","","",""]
[null,null,null,null,null,null,null,null,null,null,null,null,null,null,null,null,null,"#G12",null,null,null,"K",null,"-",null,{"$f":"V1238","v":"B"},null,0,"-",0,"","","","",""]
[null,null,null,null,null,null,null,null,null,null,null,null,null,null,null,null,null,"#G12",null,null,null,"I",null,"-",null,{"$f":"V1239","v":"C"},null,0,"-",0,"","","","",""]
[null,null,null,null,null,null,null,null,null,null,null,null,null,null,null,null,null,"#G12",null,null,null,"G",null,"-",null,{"$f":"Z1239","v":"E"},null,0,"-",0,"","","","",""]
[null,null,null,null,null,null,null,null,null,null,null,null,null,null,null,null,null,null,{"$f":"S1240+1","v":13}]
[null,null,null,null,null,null,null,null,null,null,null,null,null,null,null,null,null,null,{"$f":"N_Heure","v":"Time"},{"$f":"N_Table","v":"Table"},{"$f":"N_Arbitre","v":"Referee"},{"$f":"N_Matches","v":"Matches"}]
[null,null,null,null,null,null,null,null,null,null,null,null,null,null,null,null,null,"#G13",null,null,null,{"$f":"Z1242","v":"A"},null,"-",null,{"$f":"Z1243","v":"L"},null,{"$f":"IF(MaxScore,MaxGoals(W1252,Y1252,MaxGoalsValue),IF(W1252=\"\",\"\",W1252))","v":0},{"$f":"IF(MaxScore,\"-\",IF(W1252=\"\",\"\",\"-\"))","v":"-"},{"$f":"IF(MaxScore,MaxGoals(Y1252,W1252,MaxGoalsValue),IF(Y1252=\"\",\"\",Y1252))","v":0},{"$f":"IF(W1252=\"\",\"\",IF(W1252>Y1252,V1252,IF(W1252=Y1252,\"\",Z1252)))","v":""},{"$f":"IF(W1252=\"\",\"\",IF(W1252=Y1252,V1252,\"\"))","v":""},{"$f":"IF(W1252=\"\",\"\",IF(W1252=Y1252,Z1252,\"\"))","v":""},{"$f":"IF(W1252=\"\",\"\",IF(W1252<Y1252,V1252,IF(W1252=Y1252,\"\",Z1252)))","v":""},{"$f":"CONCATENATE(AE1252,AH1252)","v":""}]
[null,null,null,null,null,null,null,null,null,null,null,null,null,null,null,null,null,"#G13",null,null,null,{"$f":"V1234","v":"J"},null,"-",null,{"$f":"V1242","v":"N"},null,0,"-",0,"","","","",""]
[null,null,null,null,null,null,null,null,null,null,null,null,null,null,null,null,null,"#G13",null,null,null,{"$f":"Z1244","v":"H"},null,"-",null,"P",null,0,"-",0,"","","","",""]
[null,null,null,null,null,null,null,null,null,null,null,null,null,null,null,null,null,"#G13",null,null,null,{"$f":"Z1246","v":"D"},null,"-",null,"Q",null,0,"-",0,"","","","",""]
[null,null,null,null,null,null,null,null,null,null,null,null,null,null,null,null,null,"#G13",null,null,null,{"$f":"Z1247","v":"B"},null,"-",null,"O",null,0,"-",0,"","","","",""]
[null,null,null,null,null,null,null,null,null,null,null,null,null,null,null,null,null,"#G13",null,null,null,{"$f":"Z1248","v":"C"},null,"-",null,"M",null,0,"-",0,"","","","",""]
[null,null,null,null,null,null,null,null,null,null,null,null,null,null,null,null,null,"#G13",null,null,null,{"$f":"Z1249","v":"E"},null,"-",null,"K",null,0,"-",0,"","","","",""]
[null,null,null,null,null,null,null,null,null,null,null,null,null,null,null,null,null,"#G13",null,null,null,{"$f":"V1249","v":"G"},null,"-",null,"I",null,0,"-",0,"","","","",""]
[null,null,null,null,null,null,null,null,null,null,null,null,null,null,null,null,null,null,{"$f":"S1250+1","v":14}]
[null,null,null,null,null,null,null,null,null,null,null,null,null,null,null,null,null,null,{"$f":"N_Heure","v":"Time"},{"$f":"N_Table","v":"Table"},{"$f":"N_Arbitre","v":"Referee"},{"$f":"N_Matches","v":"Matches"}]
[null,null,null,null,null,null,null,null,null,null,null,null,null,null,null,null,null,"#G14",null,null,null,{"$f":"V1253","v":"J"},null,"-",null,{"$f":"V1252","v":"A"},null,{"$f":"IF(MaxScore,MaxGoals(W1262,Y1262,MaxGoalsValue),IF(W1262=\"\",\"\",W1262))","v":0},{"$f":"IF(MaxScore,\"-\",IF(W1262=\"\",\"\",\"-\"))","v":"-"},{"$f":"IF(MaxScore,MaxGoals(Y1262,W1262,MaxGoalsValue),IF(Y1262=\"\",\"\",Y1262))","v":0},{"$f":"IF(W1262=\"\",\"\",IF(W1262>Y1262,V1262,IF(W1262=Y1262,\"\",Z1262)))","v":""},{"$f":"IF(W1262=\"\",\"\",IF(W1262=Y1262,V1262,\"\"))","v":""},{"$f":"IF(W1262=\"\",\"\",IF(W1262=Y1262,Z1262,\"\"))","v":""},{"$f":"IF(W1262=\"\",\"\",IF(W1262<Y1262,V1262,IF(W1262=Y1262,\"\",Z1262)))","v":""},{"$f":"CONCATENATE(AE1262,AH1262)","v":""}]
[null,null,null,null,null,null,null,null,null,null,null,null,null,null,null,null,null,"#G14",null,null,null,{"$f":"Z1252","v":"L"},null,"-",null,{"$f":"V1254","v":"H"},null,0,"-",0,"","","","",""]
[null,null,null,null,null,null,null,null,null,null,null,null,null,null,null,null,null,"#G14",null,null,null,"N",null,"-",null,{"$f":"Z1245","v":"F"},null,0,"-",0,"","","","",""]
[null,null,null,null,null,null,null,null,null,null,null,null,null,null,null,null,null,"#G14",null,null,null,"P",null,"-",null,{"$f":"V1255","v":"D"},null,0,"-",0,"","","","",""]
[null,null,null,null,null,null,null,null,null,null,null,null,null,null,null,null,null,"#G14",null,null,null,"Q",null,"-",null,{"$f":"V1257","v":"C"},null,0,"-",0,"","","","",""]
[null,null,null,null,null,null,null,null,null,null,null,null,null,null,null,null,null,"#G14",null,null,null,"O",null,"-",null,{"$f":"V1258","v":"E"},null,0,"-",0,"","","","",""]
[null,null,null,null,null,null,null,null,null,null,null,null,null,null,null,null,null,"#G14",null,null,null,"M",null,"-",null,{"$f":"V1259","v":"G"},null,0,"-",0,"","","","",""]
[null,null,null,null,null,null,null,null,null,null,null,null,null,null,null,null,null,"#G14",null,null,null,"K",null,"-",null,{"$f":"Z1259","v":"I"},null,0,"-",0,"","","","",""]
[null,null,null,null,null,null,null,null,null,null,null,null,null,null,null,null,null,null,{"$f":"S1260+1","v":15}]
[null,null,null,null,null,null,null,null,null,null,null,null,null,null,null,null,null,null,{"$f":"N_Heure","v":"Time"},{"$f":"N_Table","v":"Table"},{"$f":"N_Arbitre","v":"Referee"},{"$f":"N_Matches","v":"Matches"}]
[null,null,null,null,null,null,null,null,null,null,null,null,null,null,null,null,null,"#G15",null,null,null,{"$f":"Z1262","v":"A"},null,"-",null,{"$f":"Z1263","v":"H"},null,{"$f":"IF(MaxScore,MaxGoals(W1272,Y1272,MaxGoalsValue),IF(W1272=\"\",\"\",W1272))","v":0},{"$f":"IF(MaxScore,\"-\",IF(W1272=\"\",\"\",\"-\"))","v":"-"},{"$f":"IF(MaxScore,MaxGoals(Y1272,W1272,MaxGoalsValue),IF(Y1272=\"\",\"\",Y1272))","v":0},{"$f":"IF(W1272=\"\",\"\",IF(W1272>Y1272,V1272,IF(W1272=Y1272,\"\",Z1272)))","v":""},{"$f":"IF(W1272=\"\",\"\",IF(W1272=Y1272,V1272,\"\"))","v":""},{"$f":"IF(W1272=\"\",\"\",IF(W1272=Y1272,Z1272,\"\"))","v":""},{"$f":"IF(W1272=\"\",\"\",IF(W1272<Y1272,V1272,IF(W1272=Y1272,\"\",Z1272)))","v":""},{"$f":"CONCATENATE(AE1272,AH1272)","v":""}]
[null,null,null,null,null,null,null,null,null,null,null,null,null,null,null,null,null,"#G15",null,null,null,{"$f":"Z1264","v":"F"},null,"-",null,{"$f":"V1262","v":"J"},null,0,"-",0,"","","","",""]
[null,null,null,null,null,null,null,null,null,null,null,null,null,null,null,null,null,"#G15",null,null,null,{"$f":"Z1265","v":"D"},null,"-",null,"L",null,0,"-",0,"","","","",""]
[null,null,null,null,null,null,null,null,null,null,null,null,null,null,null,null,null,"#G15",null,null,null,{"$f":"V1256","v":"B"},null,"-",null,"N",null,0,"-",0,"","","","",""]
[null,null,null,null,null,null,null,null,null,null,null,null,null,null,null,null,null,"#G15",null,null,null,{"$f":"Z1266","v":"C"},null,"-",null,"P",null,0,"-",0,"","","","",""]
[null,null,null,null,null,null,null,null,null,null,null,null,null,null,null,null,null,"#G15",null,null,null,{"$f":"Z1268","v":"G"},null,"-",null,"Q",null,0,"-",0,"","","","",""]
[null,null,null,null,null,null,null,null,null,null,null,null,null,null,null,null,null,"#G15",null,null,null,{"$f":"Z1269","v":"I"},null,"-",null,"O",null,0,"-",0,"","","","",""]
[null,null,null,null,null,null,null,null,null,null,null,null,null,null,null,null,null,"#G15",null,null,null,{"$f":"V1269","v":"K"},null,"-",null,"M",null,0,"-",0,"","","","",""]
[null,null,null,null,null,null,null,null,null,null,null,null,null,null,null,null,null,null,{"$f":"S1270+1","v":16}]
[null,null,null,null,null,null,null,null,null,null,null,null,null,null,null,null,null,null,{"$f":"N_Heure","v":"Time"},{"$f":"N_Table","v":"Table"},{"$f":"N_Arbitre","v":"Referee"},{"$f":"N_Matches","v":"Matches"}]
[null,null,null,null,null,null,null,null,null,null,null,null,null,null,null,null,null,"#G16",null,null,null,{"$f":"V1273","v":"F"},null,"-",null,{"$f":"V1272","v":"A"},null,{"$f":"IF(MaxScore,MaxGoals(W1282,Y1282,MaxGoalsValue),IF(W1282=\"\",\"\",W1282))","v":0},{"$f":"IF(MaxScore,\"-\",IF(W1282=\"\",\"\",\"-\"))","v":"-"},{"$f":"IF(MaxScore,MaxGoals(Y1282,W1282,MaxGoalsValue),IF(Y1282=\"\",\"\",Y1282))","v":0},{"$f":"IF(W1282=\"\",\"\",IF(W1282>Y1282,V1282,IF(W1282=Y1282,\"\",Z1282)))","v":""},{"$f":"IF(W1282=\"\",\"\",IF(W1282=Y1282,V1282,\"\"))","v":""},{"$f":"IF(W1282=\"\",\"\",IF(W1282=Y1282,Z1282,\"\"))","v":""},{"$f":"IF(W1282=\"\",\"\",IF(W1282<Y1282,V1282,IF(W1282=Y1282,\"\",Z1282)))","v":""},{"$f":"CONCATENATE(AE1282,AH1282)","v":""}]
[null,null,null,null,null,null,null,null,null,null,null,null,null,null,null,null,null,"#G16",null,null,null,{"$f":"Z1272","v":"H"},null,"-",null,{"$f":"V1274","v":"D"},null,0,"-",0,"","","","",""]
[null,null,null,null,null,null,null,null,null,null,null,null,null,null,null,null,null,"#G16",null,null,null,"J",null,"-",null,{"$f":"V1275","v":"B"},null,0,"-",0,"","","","",""]
[null,null,null,null,null,null,null,null,null,null,null,null,null,null,null,null,null,"#G16",null,null,null,"L",null,"-",null,{"$f":"V1276","v":"C"},null,0,"-",0,"","","","",""]
[null,null,null,null,null,null,null,null,null,null,null,null,null,null,null,null,null,"#G16",null,null,null,"N",null,"-",null,{"$f":"Z1267","v":"E"},null,0,"-",0,"","","","",""]
[null,null,null,null,null,null,null,null,null,null,null,null,null,null,null,null,null,"#G16",null,null,null,"P",null,"-",null,{"$f":"V1277","v":"G"},null,0,"-",0,"","","","",""]
[null,null,null,null,null,null,null,null,null,null,null,null,null,null,null,null,null,"#G16",null,null,null,"Q",null,"-",null,{"$f":"V1279","v":"K"},null,0,"-",0,"","","","",""]
[null,null,null,null,null,null,null,null,null,null,null,null,null,null,null,null,null,"#G16",null,null,null,"O",null,"-",null,{"$f":"Z1279","v":"M"},null,0,"-",0,"","","","",""]
[null,null,null,null,null,null,null,null,null,null,null,null,null,null,null,null,null,null,{"$f":"S1280+1","v":17}]
[null,null,null,null,null,null,null,null,null,null,null,null,null,null,null,null,null,null,{"$f":"N_Heure","v":"Time"},{"$f":"N_Table","v":"Table"},{"$f":"N_Arbitre","v":"Referee"},{"$f":"N_Matches","v":"Matches"}]
[null,null,null,null,null,null,null,null,null,null,null,null,null,null,null,null,null,"#G17",null,null,null,{"$f":"Z1282","v":"A"},null,"-",null,{"$f":"Z1283","v":"D"},null,{"$f":"IF(MaxScore,MaxGoals(W1292,Y1292,MaxGoalsValue),IF(W1292=\"\",\"\",W1292))","v":0},{"$f":"IF(MaxScore,\"-\",IF(W1292=\"\",\"\",\"-\"))","v":"-"},{"$f":"IF(MaxScore,MaxGoals(Y1292,W1292,MaxGoalsValue),IF(Y1292=\"\",\"\",Y1292))","v":0},{"$f":"IF(W1292=\"\",\"\",IF(W1292>Y1292,V1292,IF(W1292=Y1292,\"\",Z1292)))","v":""},{"$f":"IF(W1292=\"\",\"\",IF(W1292=Y1292,V1292,\"\"))","v":""},{"$f":"IF(W1292=\"\",\"\",IF(W1292=Y1292,Z1292,\"\"))","v":""},{"$f":"IF(W1292=\"\",\"\",IF(W1292<Y1292,V1292,IF(W1292=Y1292,\"\",Z1292)))","v":""},{"$f":"CONCATENATE(AE1292,AH1292)","v":""}]
[null,null,null,null,null,null,null,null,null,null,null,null,null,null,null,null,null,"#G17",null,null,null,{"$f":"Z1284","v":"B"},null,"-",null,{"$f":"V1282","v":"F"},null,0,"-",0,"","","","",""]
[null,null,null,null,null,null,null,null,null,null,null,null,null,null,null,null,null,"#G17",null,null,null,{"$f":"Z1285","v":"C"},null,"-",null,"H",null,0,"-",0,"","","","",""]
[null,null,null,null,null,null,null,null,null,null,null,null,null,null,null,null,null,"#G17",null,null,null,{"$f":"Z1286","v":"E"},null,"-",null,"J",null,0,"-",0,"","","","",""]
[null,null,null,null,null,null,null,null,null,null,null,null,null,null,null,null,null,"#G17",null,null,null,{"$f":"Z1287","v":"G"},null,"-",null,"L",null,0,"-",0,"","","","",""]
[null,null,null,null,null,null,null,null,null,null,null,null,null,null,null,null,null,"#G17",null,null,null,{"$f":"V1278","v":"I"},null,"-",null,"N",null,0,"-",0,"","","","",""]
[null,null,null,null,null,null,null,null,null,null,null,null,null,null,null,null,null,"#G17",null,null,null,{"$f":"Z1288","v":"K"},null,"-",null,"P",null,0,"-",0,"","","","",""]
[null,null,null,null,null,null,null,null,null,null,null,null,null,null,null,null,null,"#G17",null,null,null,{"$f":"V1289","v":"O"},null,"-",null,"Q",null,0,"-",0,"","","","",""]
[]
[null,{"$f":"N_Group_18","v":"Group of 18"},null,null,null,null,null,null,null,null,null,null,null,null,null,null,null,null,null,null,null,null,null,null,null,null,null,null,null,null,null,null,null,null,null,null,null,null,{"$f":"B1301","v":"Group of 18"}]
[]
[null,{"$f":"N_Tirage","v":"Draw"},"Cla.","Cla1","Part","Cla2",{"$f":"N_Joueurs","v":"Players"},{"$f":"N_RankPoints","v":"Rk Pt."},{"$f":"N_Diff_Part","v":"Part-Diff"},"Pts","J","G","N","P","BP","BC","Diff",null,null,null,null,null,null,null,null,null,null,null,null,null,{"$f":"N_G","v":"W"},{"$f":"N_N","v":"D"},{"$f":"N_N","v":"D"},{"$f":"N_P","v":"L"},"CONCAT","Ref Group",{"$f":"IF(COUNTA(W1324:W1508)=0,\"\",\"OK\")","v":""},null,null,{"$f":"N_Cla.","v":"Rk"},{"$f":"N_Joueurs","v":"Players"},{"$f":"N_Pts","v":"Pts"},{"$f":"N_J","v":"Pld"},{"$f":"N_G","v":"W"},{"$f":"N_N","v":"D"},{"$f":"N_P","v":"L"},{"$f":"N_BP","v":"F"},{"$f":"N_BC","v":"A"},{"$f":"N_Diff.","v":"SO"}]
[null,1,{"$f":"IF(AK1303=\"\",\"\",RANK(F1304,F1304:F1321)*1000+ROW())","v":""},{"$f":"IF(L1304=\"\",\"\",CritClassInd1_Points*J1304+CritClassInd1_Matches*L1304+CritClassInd1_Attaque*O1304+CritClassInd1_DiffButs*Q1304)","v":""},{"$f":"IF(L1304=\"\",\"\",Nb_Diff_Part(D1304,D1304:D1321,G1304,G1304:G1321,AI1324:AI1508)*CritClassInd_DiffPart+Nb_Goal_Part(D1304,D1304:D1321,G1304,G1304:G1321,V1324:Z1508)*CritClassInd_GoalPart+Nb_Score_Part(D1304,D1304:D1321,G1304,G1304:G1321,V1324:Z1508)*CritClassInd_ScorePart)","v":""},{"$f":"IF(L1304=\"\",\"\",D1304+E1304+CritClassInd2_Points*J1304+CritClassInd2_Matches*L1304+CritClassInd2_Attaque*O1304+CritClassInd2_DiffButs*Q1304+CritClassInd_Ranking*H1304+I1304)","v":""},"A",{"$f":"GMFTRANKINGPOINTS(G1304,Particular_Category)","v":0},null,{"$f":"IF(AK1303=\"\",\"\",(L1304*Points_Victoire)+M1304*Points_Null)","v":""},{"$f":"IF(L1304=\"\",\"\",SUM(L1304:N1304))","v":""},{"$f":"IF(AK1303=\"\",\"\",COUNTIF(AE1324:AE1508,G1304))","v":""},{"$f":"IF(AK1303=\"\",\"\",COUNTIF(AF1324:AG1508,G1304))","v":""},{"$f":"IF(AK1303=\"\",\"\",COUNTIF(AH1324:AH1508,G1304))","v":""},{"$f":"IF(AK1303=\"\",\"\",SUMIF(V1324:V1508,G1304,AB1324:AB1508)+SUMIF(Z1324:Z1508,G1304,AD1324:AD1508))","v":""},{"$f":"IF(AK1303=\"\",\"\",SUMIF(V1324:V1508,G1304,AD1324:AD1508)+SUMIF(Z1324:Z1508,G1304,AB1324:AB1508))","v":""},{"$f":"IF(AK1303=\"\",\"\",O1304-P1304)","v":""},null,null,null,null,null,null,null,null,null,null,null,null,null,null,null,null,null,null,null,{"$f":"IF(AK1303=\"\",\"\",SMALL(C1304:C1321,1))","v":""},null,null,{"$f":"IF(AK1303=\"\",\"\",INT(AK1304/1000))","v":""},{"$f":"IF(AK1303=\"\",\"\",VLOOKUP(AK1304,C1304:Q1321,5,FALSE))","v":""},{"$f":"VLOOKUP(AK1304,C1304:Q1321,8,FALSE)","v":""},{"$f":"VLOOKUP(AK1304,C1304:Q1321,9,FALSE)","v":""},{"$f":"VLOOKUP(AK1304,C1304:Q1321,10,FALSE)","v":""},{"$f":"VLOOKUP(AK1304,C1304:Q1321,11,FALSE)","v":""},{"$f":"VLOOKUP(AK1304,C1304:Q1321,12,FALSE)","v":""},{"$f":"VLOOKUP(AK1304,C1304:Q1321,13,FALSE)","v":""},{"$f":"VLOOKUP(AK1304,C1304:Q1321,14,FALSE)","v":""},{"$f":"VLOOKUP(AK1304,C1304:Q1321,15,FALSE)","v":""}]
[null,2,{"$f":"IF(AK1303=\"\",\"\",RANK(F1305,F1304:F1321)*1000+ROW())","v":""},{"$f":"IF(L1305=\"\",\"\",CritClassInd1_Points*J1305+CritClassInd1_Matches*L1305+CritClassInd1_Attaque*O1305+CritClassInd1_DiffButs*Q1305)","v":""},{"$f":"IF(L1305=\"\",\"\",Nb_Diff_Part(D1305,D1304:D1321,G1305,G1304:G1321,AI1324:AI1508)*CritClassInd_DiffPart+Nb_Goal_Part(D1305,D1304:D1321,G1305,G1304:G1321,V1324:Z1508)*CritClassInd_GoalPart+Nb_Score_Part(D1305,D1304:D1321,G1305,G1304:G1321,V1324:Z1508)*CritClassInd_ScorePart)","v":""},{"$f":"IF(L1305=\"\",\"\",D1305+E1305+CritClassInd2_Points*J1305+CritClassInd2_Matches*L1305+CritClassInd2_Attaque*O1305+CritClassInd2_DiffButs*Q1305+CritClassInd_Ranking*H1305+I1305)","v":""},"B",0,null,{"$f":"IF(AK1303=\"\",\"\",(L1305*Points_Victoire)+M1305*Points_Null)","v":""},"",{"$f":"IF(AK1303=\"\",\"\",COUNTIF(AE1324:AE1508,G1305))","v":""},{"$f":"IF(AK1303=\"\",\"\",COUNTIF(AF1324:AG1508,G1305))","v":""},{"$f":"IF(AK1303=\"\",\"\",COUNTIF(AH1324:AH1508,G1305))","v":""},{"$f":"IF(AK1303=\"\",\"\",SUMIF(V1324:V1508,G1305,AB1324:AB1508)+SUMIF(Z1324:Z1508,G1305,AD1324:AD1508))","v":""},{"$f":"IF(AK1303=\"\",\"\",SUMIF(V1324:V1508,G1305,AD1324:AD1508)+SUMIF(Z1324:Z1508,G1305,AB1324:AB1508))","v":""},{"$f":"IF(AK1303=\"\",\"\",O1305-P1305)","v":""},null,null,null,null,null,null,null,null,null,null,null,null,null,null,null,null,null,null,null,{"$f":"IF(AK1303=\"\",\"\",SMALL(C1304:C1321,2))","v":""},null,null,{"$f":"IF(AK1303=\"\",\"\",INT(AK1305/1000))","v":""},{"$f":"IF(AK1303=\"\",\"\",VLOOKUP(AK1305,C1304:Q1321,5,FALSE))","v":""},{"$f":"VLOOKUP(AK1305,C1304:Q1321,8,FALSE)","v":""},{"$f":"VLOOKUP(AK1305,C1304:Q1321,9,FALSE)","v":""},{"$f":"VLOOKUP(AK1305,C1304:Q1321,10,FALSE)","v":""},{"$f":"VLOOKUP(AK1305,C1304:Q1321,11,FALSE)","v":""},{"$f":"VLOOKUP(AK1305,C1304:Q1321,12,FALSE)","v":""},{"$f":"VLOOKUP(AK1305,C1304:Q1321,13,FALSE)","v":""},{"$f":"VLOOKUP(AK1305,C1304:Q1321,14,FALSE)","v":""},{"$f":"VLOOKUP(AK1305,C1304:Q1321,15,FALSE)","v":""}]
[null,3,{"$f":"IF(AK1303=\"\",\"\",RANK(F1306,F1304:F1321)*1000+ROW())","v":""},"",{"$f":"IF(L1306=\"\",\"\",Nb_Diff_Part(D1306,D1304:D1321,G1306,G1304:G1321,AI1324:AI1508)*CritClassInd_DiffPart+Nb_Goal_Part(D1306,D1304:D1321,G1306,G1304:G1321,V1324:Z1508)*CritClassInd_GoalPart+Nb_Score_Part(D1306,D1304:D1321,G1306,G1304:G1321,V1324:Z1508)*CritClassInd_ScorePart)","v":""},"","C",0,null,{"$f":"IF(AK1303=\"\",\"\",(L1306*Points_Victoire)+M1306*Points_Null)","v":""},"",{"$f":"IF(AK1303=\"\",\"\",COUNTIF(AE1324:AE1508,G1306))","v":""},{"$f":"IF(AK1303=\"\",\"\",COUNTIF(AF1324:AG1508,G1306))","v":""},{"$f":"IF(AK1303=\"\",\"\",COUNTIF(AH1324:AH1508,G1306))","v":""},{"$f":"IF(AK1303=\"\",\"\",SUMIF(V1324:V1508,G1306,AB1324:AB1508)+SUMIF(Z1324:Z1508,G1306,AD1324:AD1508))","v":""},{"$f":"IF(AK1303=\"\",\"\",SUMIF(V1324:V1508,G1306,AD1324:AD1508)+SUMIF(Z1324:Z1508,G1306,AB1324:AB1508))","v":""},{"$f":"IF(AK1303=\"\",\"\",O1306-P1306)","v":""},null,null,null,null,null,null,null,null,null,null,null,null,null,null,null,null,null,null,null,{"$f":"IF(AK1303=\"\",\"\",SMALL(C1304:C1321,3))","v":""},null,null,{"$f":"IF(AK1303=\"\",\"\",INT(AK1306/1000))","v":""},{"$f":"IF(AK1303=\"\",\"\",VLOOKUP(AK1306,C1304:Q1321,5,FALSE))","v":""},{"$f":"VLOOKUP(AK1306,C1304:Q1321,8,FALSE)","v":""},{"$f":"VLOOKUP(AK1306,C1304:Q1321,9,FALSE)","v":""},{"$f":"VLOOKUP(AK1306,C1304:Q1321,10,FALSE)","v":""},{"$f":"VLOOKUP(AK1306,C1304:Q1321,11,FALSE)","v":""},{"$f":"VLOOKUP(AK1306,C1304:Q1321,12,FALSE)","v":""},{"$f":"VLOOKUP(AK1306,C1304:Q1321,13,FALSE)","v":""},{"$f":"VLOOKUP(AK1306,C1304:Q1321,14,FALSE)","v":""},{"$f":"VLOOKUP(AK1306,C1304:Q1321,15,FALSE)","v":""}]
[null,4,{"$f":"IF(AK1303=\"\",\"\",RANK(F1307,F1304:F1321)*1000+ROW())","v":""},"",{"$f":"IF(L1307=\"\",\"\",Nb_Diff_Part(D1307,D1304:D1321,G1307,G1304:G1321,AI1324:AI1508)*CritClassInd_DiffPart+Nb_Goal_Part(D1307,D1304:D1321,G1307,G1304:G1321,V1324:Z1508)*CritClassInd_GoalPart+Nb_Score_Part(D1307,D1304:D1321,G1307,G1304:G1321,V1324:Z1508)*CritClassInd_ScorePart)","v":""},"","D",0,null,{"$f":"IF(AK1303=\"\",\"\",(L1307*Points_Victoire)+M1307*Points_Null)","v":""},"",{"$f":"IF(AK1303=\"\",\"\",COUNTIF(AE1324:AE1508,G1307))","v":""},{"$f":"IF(AK1303=\"\",\"\",COUNTIF(AF1324:AG1508,G1307))","v":""},{"$f":"IF(AK1303=\"\",\"\",COUNTIF(AH1324:AH1508,G1307))","v":""},{"$f":"IF(AK1303=\"\",\"\",SUMIF(V1324:V1508,G1307,AB1324:AB1508)+SUMIF(Z1324:Z1508,G1307,AD1324:AD1508))","v":""},{"$f":"IF(AK1303=\"\",\"\",SUMIF(V1324:V1508,G1307,AD1324:AD1508)+SUMIF(Z1324:Z1508,G1307,AB1324:AB1508))","v":""},{"$f":"IF(AK1303=\"\",\"\",O1307-P1307)","v":""},null,null,null,null,null,null,null,null,null,null,null,null,null,null,null,null,null,null,null,{"$f":"IF(AK1303=\"\",\"\",SMALL(C1304:C1321,4))","v":""},null,null,{"$f":"IF(AK1303=\"\",\"\",INT(AK1307/1000))","v":""},{"$f":"IF(AK1303=\"\",\"\",VLOOKUP(AK1307,C1304:Q1321,5,FALSE))","v":""},{"$f":"VLOOKUP(AK1307,C1304:Q1321,8,FALSE)","v":""},{"$f":"VLOOKUP(AK1307,C1304:Q1321,9,FALSE)","v":""},{"$f":"VLOOKUP(AK1307,C1304:Q1321,10,FALSE)","v":""},{"$f":"VLOOKUP(AK1307,C1304:Q1321,11,FALSE)","v":""},{"$f":"VLOOKUP(AK1307,C1304:Q1321,12,FALSE)","v":""},{"$f":"VLOOKUP(AK1307,C1304:Q1321,13,FALSE)","v":""},{"$f":"VLOOKUP(AK1307,C1304:Q1321,14,FALSE)","v":""},{"$f":"VLOOKUP(AK1307,C1304:Q1321,15,FALSE)","v":""}]
[null,5,{"$f":"IF(AK1303=\"\",\"\",RANK(F1308,F1304:F1321)*1000+ROW())","v":""},"",{"$f":"IF(L1308=\"\",\"\",Nb_Diff_Part(D1308,D1304:D1321,G1308,G1304:G1321,AI1324:AI1508)*CritClassInd_DiffPart+Nb_Goal_Part(D1308,D1304:D1321,G1308,G1304:G1321,V1324:Z1508)*CritClassInd_GoalPart+Nb_Score_Part(D1308,D1304:D1321,G1308,G1304:G1321,V1324:Z1508)*CritClassInd_ScorePart)","v":""},"","E",0,null,{"$f":"IF(AK1303=\"\",\"\",(L1308*Points_Victoire)+M1308*Points_Null)","v":""},"",{"$f":"IF(AK1303=\"\",\"\",COUNTIF(AE1324:AE1508,G1308))","v":""},{"$f":"IF(AK1303=\"\",\"\",COUNTIF(AF1324:AG1508,G1308))","v":""},{"$f":"IF(AK1303=\"\",\"\",COUNTIF(AH1324:AH1508,G1308))","v":""},{"$f":"IF(AK1303=\"\",\"\",SUMIF(V1324:V1508,G1308,AB1324:AB1508)+SUMIF(Z1324:Z1508,G1308,AD1324:AD1508))","v":""},{"$f":"IF(AK1303=\"\",\"\",SUMIF(V1324:V1508,G1308,AD1324:AD1508)+SUMIF(Z1324:Z1508,G1308,AB1324:AB1508))","v":""},{"$f":"IF(AK1303=\"\",\"\",O1308-P1308)","v":""},null,null,null,null,null,null,null,null,null,null,null,null,null,null,null,null,null,null,null,{"$f":"IF(AK1303=\"\",\"\",SMALL(C1304:C1321,5))","v":""},null,null,{"$f":"IF(AK1303=\"\",\"\",INT(AK1308/1000))","v":""},{"$f":"IF(AK1303=\"\",\"\",VLOOKUP(AK1308,C1304:Q1321,5,FALSE))","v":""},{"$f":"VLOOKUP(AK1308,C1304:Q1321,8,FALSE)","v":""},{"$f":"VLOOKUP(AK1308,C1304:Q1321,9,FALSE)","v":""},{"$f":"VLOOKUP(AK1308,C1304:Q1321,10,FALSE)","v":""},{"$f":"VLOOKUP(AK1308,C1304:Q1321,11,FALSE)","v":""},{"$f":"VLOOKUP(AK1308,C1304:Q1321,12,FALSE)","v":""},{"$f":"VLOOKUP(AK1308,C1304:Q1321,13,FALSE)","v":""},{"$f":"VLOOKUP(AK1308,C1304:Q1321,14,FALSE)","v":""},{"$f":"VLOOKUP(AK1308,C1304:Q1321,15,FALSE)","v":""}]
[null,6,{"$f":"IF(AK1303=\"\",\"\",RANK(F1309,F1304:F1321)*1000+ROW())","v":""},"",{"$f":"IF(L1309=\"\",\"\",Nb_Diff_Part(D1309,D1304:D1321,G1309,G1304:G1321,AI1324:AI1508)*CritClassInd_DiffPart+Nb_Goal_Part(D1309,D1304:D1321,G1309,G1304:G1321,V1324:Z1508)*CritClassInd_GoalPart+Nb_Score_Part(D1309,D1304:D1321,G1309,G1304:G1321,V1324:Z1508)*CritClassInd_ScorePart)","v":""},"","F",0,null,{"$f":"IF(AK1303=\"\",\"\",(L1309*Points_Victoire)+M1309*Points_Null)","v":""},"",{"$f":"IF(AK1303=\"\",\"\",COUNTIF(AE1324:AE1508,G1309))","v":""},{"$f":"IF(AK1303=\"\",\"\",COUNTIF(AF1324:AG1508,G1309))","v":""},{"$f":"IF(AK1303=\"\",\"\",COUNTIF(AH1324:AH1508,G1309))","v":""},{"$f":"IF(AK1303=\"\",\"\",SUMIF(V1324:V1508,G1309,AB1324:AB1508)+SUMIF(Z1324:Z1508,G1309,AD1324:AD1508))","v":""},{"$f":"IF(AK1303=\"\",\"\",SUMIF(V1324:V1508,G1309,AD1324:AD1508)+SUMIF(Z1324:Z1508,G1309,AB1324:AB1508))","v":""},{"$f":"IF(AK1303=\"\",\"\",O1309-P1309)","v":""},null,null,null,null,null,null,null,null,null,null,null,null,null,null,null,null,null,null,null,{"$f":"IF(AK1303=\"\",\"\",SMALL(C1304:C1321,6))","v":""},null,null,{"$f":"IF(AK1303=\"\",\"\",INT(AK1309/1000))","v":""},{"$f":"IF(AK1303=\"\",\"\",VLOOKUP(AK1309,C1304:Q1321,5,FALSE))","v":""},{"$f":"VLOOKUP(AK1309,C1304:Q1321,8,FALSE)","v":""},{"$f":"VLOOKUP(AK1309,C1304:Q1321,9,FALSE)","v":""},{"$f":"VLOOKUP(AK1309,C1304:Q1321,10,FALSE)","v":""},{"$f":"VLOOKUP(AK1309,C1304:Q1321,11,FALSE)","v":""},{"$f":"VLOOKUP(AK1309,C1304:Q1321,12,FALSE)","v":""},{"$f":"VLOOKUP(AK1309,C1304:Q1321,13,FALSE)","v":""},{"$f":"VLOOKUP(AK1309,C1304:Q1321,14,FALSE)","v":""},{"$f":"VLOOKUP(AK1309,C1304:Q1321,15,FALSE)","v":""}]
[null,7,{"$f":"IF(AK1303=\"\",\"\",RANK(F1310,F1304:F1321)*1000+ROW())","v":""},"",{"$f":"IF(L1310=\"\",\"\",Nb_Diff_Part(D1310,D1304:D1321,G1310,G1304:G1321,AI1324:AI1508)*CritClassInd_DiffPart+Nb_Goal_Part(D1310,D1304:D1321,G1310,G1304:G1321,V1324:Z1508)*CritClassInd_GoalPart+Nb_Score_Part(D1310,D1304:D1321,G1310,G1304:G1321,V1324:Z1508)*CritClassInd_ScorePart)","v":""},"","G",0,null,{"$f":"IF(AK1303=\"\",\"\",(L1310*Points_Victoire)+M1310*Points_Null)","v":""},"",{"$f":"IF(AK1303=\"\",\"\",COUNTIF(AE1324:AE1508,G1310))","v":""},{"$f":"IF(AK1303=\"\",\"\",COUNTIF(AF1324:AG1508,G1310))","v":""},{"$f":"IF(AK1303=\"\",\"\",COUNTIF(AH1324:AH1508,G1310))","v":""},{"$f":"IF(AK1303=\"\",\"\",SUMIF(V1324:V1508,G1310,AB1324:AB1508)+SUMIF(Z1324:Z1508,G1310,AD1324:AD1508))","v":""},{"$f":"IF(AK1303=\"\",\"\",SUMIF(V1324:V1508,G1310,AD1324:AD1508)+SUMIF(Z1324:Z1508,G1310,AB1324:AB1508))","v":""},{"$f":"IF(AK1303=\"\",\"\",O1310-P1310)","v":""},null,null,null,null,null,null,null,null,null,null,null,null,null,null,null,null,null,null,null,{"$f":"IF(AK1303=\"\",\"\",SMALL(C1304:C1321,7))","v":""},null,null,{"$f":"IF(AK1303=\"\",\"\",INT(AK1310/1000))","v":""},{"$f":"IF(AK1303=\"\",\"\",VLOOKUP(AK1310,C1304:Q1321,5,FALSE))","v":""},{"$f":"VLOOKUP(AK1310,C1304:Q1321,8,FALSE)","v":""},{"$f":"VLOOKUP(AK1310,C1304:Q1321,9,FALSE)","v":""},{"$f":"VLOOKUP(AK1310,C1304:Q1321,10,FALSE)","v":""},{"$f":"VLOOKUP(AK1310,C1304:Q1321,11,FALSE)","v":""},{"$f":"VLOOKUP(AK1310,C1304:Q1321,12,FALSE)","v":""},{"$f":"VLOOKUP(AK1310,C1304:Q1321,13,FALSE)","v":""},{"$f":"VLOOKUP(AK1310,C1304:Q1321,14,FALSE)","v":""},{"$f":"VLOOKUP(AK1310,C1304:Q1321,15,FALSE)","v":""}]
[null,8,{"$f":"IF(AK1303=\"\",\"\",RANK(F1311,F1304:F1321)*1000+ROW())","v":""},"",{"$f":"IF(L1311=\"\",\"\",Nb_Diff_Part(D1311,D1304:D1321,G1311,G1304:G1321,AI1324:AI1508)*CritClassInd_DiffPart+Nb_Goal_Part(D1311,D1304:D1321,G1311,G1304:G1321,V1324:Z1508)*CritClassInd_GoalPart+Nb_Score_Part(D1311,D1304:D1321,G1311,G1304:G1321,V1324:Z1508)*CritClassInd_ScorePart)","v":""},"","H",0,null,{"$f":"IF(AK1303=\"\",\"\",(L1311*Points_Victoire)+M1311*Points_Null)","v":""},"",{"$f":"IF(AK1303=\"\",\"\",COUNTIF(AE1324:AE1508,G1311))","v":""},{"$f":"IF(AK1303=\"\",\"\",COUNTIF(AF1324:AG1508,G1311))","v":""},{"$f":"IF(AK1303=\"\",\"\",COUNTIF(AH1324:AH1508,G1311))","v":""},{"$f":"IF(AK1303=\"\",\"\",SUMIF(V1324:V1508,G1311,AB1324:AB1508)+SUMIF(Z1324:Z1508,G1311,AD1324:AD1508))","v":""},{"$f":"IF(AK1303=\"\",\"\",SUMIF(V1324:V1508,G1311,AD1324:AD1508)+SUMIF(Z1324:Z1508,G1311,AB1324:AB1508))","v":""},{"$f":"IF(AK1303=\"\",\"\",O1311-P1311)","v":""},null,null,null,null,null,null,null,null,null,null,null,null,null,null,null,null,null,null,null,{"$f":"IF(AK1303=\"\",\"\",SMALL(C1304:C1321,8))","v":""},null,null,{"$f":"IF(AK1303=\"\",\"\",INT(AK1311/1000))","v":""},{"$f":"IF(AK1303=\"\",\"\",VLOOKUP(AK1311,C1304:Q1321,5,FALSE))","v":""},{"$f":"VLOOKUP(AK1311,C1304:Q1321,8,FALSE)","v":""},{"$f":"VLOOKUP(AK1311,C1304:Q1321,9,FALSE)","v":""},{"$f":"VLOOKUP(AK1311,C1304:Q1321,10,FALSE)","v":""},{"$f":"VLOOKUP(AK1311,C1304:Q1321,11,FALSE)","v":""},{"$f":"VLOOKUP(AK1311,C1304:Q1321,12,FALSE)","v":""},{"$f":"VLOOKUP(AK1311,C1304:Q1321,13,FALSE)","v":""},{"$f":"VLOOKUP(AK1311,C1304:Q1321,14,FALSE)","v":""},{"$f":"VLOOKUP(AK1311,C1304:Q1321,15,FALSE)","v":""}]
[null,9,{"$f":"IF(AK1303=\"\",\"\",RANK(F1312,F1304:F1321)*1000+ROW())","v":""},"",{"$f":"IF(L1312=\"\",\"\",Nb_Diff_Part(D1312,D1304:D1321,G1312,G1304:G1321,AI1324:AI1508)*CritClassInd_DiffPart+Nb_Goal_Part(D1312,D1304:D1321,G1312,G1304:G1321,V1324:Z1508)*CritClassInd_GoalPart+Nb_Score_Part(D1312,D1304:D1321,G1312,G1304:G1321,V1324:Z1508)*CritClassInd_ScorePart)","v":""},"","I",0,null,{"$f":"IF(AK1303=\"\",\"\",(L1312*Points_Victoire)+M1312*Points_Null)","v":""},"",{"$f":"IF(AK1303=\"\",\"\",COUNTIF(AE1324:AE1508,G1312))","v":""},{"$f":"IF(AK1303=\"\",\"\",COUNTIF(AF1324:AG1508,G1312))","v":""},{"$f":"IF(AK1303=\"\",\"\",COUNTIF(AH1324:AH1508,G1312))","v":""},{"$f":"IF(AK1303=\"\",\"\",SUMIF(V1324:V1508,G1312,AB1324:AB1508)+SUMIF(Z1324:Z1508,G1312,AD1324:AD1508))","v":""},{"$f":"IF(AK1303=\"\",\"\",SUMIF(V1324:V1508,G1312,AD1324:AD1508)+SUMIF(Z1324:Z1508,G1312,AB1324:AB1508))","v":""},{"$f":"IF(AK1303=\"\",\"\",O1312-P1312)","v":""},null,null,null,null,null,null,null,null,null,null,null,null,null,null,null,null,null,null,null,{"$f":"IF(AK1303=\"\",\"\",SMALL(C1304:C1321,9))","v":""},null,null,{"$f":"IF(AK1303=\"\",\"\",INT(AK1312/1000))","v":""},{"$f":"IF(AK1303=\"\",\"\",VLOOKUP(AK1312,C1304:Q1321,5,FALSE))","v":""},{"$f":"VLOOKUP(AK1312,C1304:Q1321,8,FALSE)","v":""},{"$f":"VLOOKUP(AK1312,C1304:Q1321,9,FALSE)","v":""},{"$f":"VLOOKUP(AK1312,C1304:Q1321,10,FALSE)","v":""},{"$f":"VLOOKUP(AK1312,C1304:Q1321,11,FALSE)","v":""},{"$f":"VLOOKUP(AK1312,C1304:Q1321,12,FALSE)","v":""},{"$f":"VLOOKUP(AK1312,C1304:Q1321,13,FALSE)","v":""},{"$f":"VLOOKUP(AK1312,C1304:Q1321,14,FALSE)","v":""},{"$f":"VLOOKUP(AK1312,C1304:Q1321,15,FALSE)","v":""}]
[null,10,{"$f":"IF(AK1303=\"\",\"\",RANK(F1313,F1304:F1321)*1000+ROW())","v":""},"",{"$f":"IF(L1313=\"\",\"\",Nb_Diff_Part(D1313,D1304:D1321,G1313,G1304:G1321,AI1324:AI1508)*CritClassInd_DiffPart+Nb_Goal_Part(D1313,D1304:D1321,G1313,G1304:G1321,V1324:Z1508)*CritClassInd_GoalPart+Nb_Score_Part(D1313,D1304:D1321,G1313,G1304:G1321,V1324:Z1508)*CritClassInd_ScorePart)","v":""},"","J",0,null,{"$f":"IF(AK1303=\"\",\"\",(L1313*Points_Victoire)+M1313*Points_Null)","v":""},"",{"$f":"IF(AK1303=\"\",\"\",COUNTIF(AE1324:AE1508,G1313))","v":""},{"$f":"IF(AK1303=\"\",\"\",COUNTIF(AF1324:AG1508,G1313))","v":""},{"$f":"IF(AK1303=\"\",\"\",COUNTIF(AH1324:AH1508,G1313))","v":""},{"$f":"IF(AK1303=\"\",\"\",SUMIF(V1324:V1508,G1313,AB1324:AB1508)+SUMIF(Z1324:Z1508,G1313,AD1324:AD1508))","v":""},{"$f":"IF(AK1303=\"\",\"\",SUMIF(V1324:V1508,G1313,AD1324:AD1508)+SUMIF(Z1324:Z1508,G1313,AB1324:AB1508))","v":""},{"$f":"IF(AK1303=\"\",\"\",O1313-P1313)","v":""},null,null,null,null,null,null,null,null,null,null,null,null,null,null,null,null,null,null,null,{"$f":"IF(AK1303=\"\",\"\",SMALL(C1304:C1321,10))","v":""},null,null,{"$f":"IF(AK1303=\"\",\"\",INT(AK1313/1000))","v":""},{"$f":"IF(AK1303=\"\",\"\",VLOOKUP(AK1313,C1304:Q1321,5,FALSE))","v":""},{"$f":"VLOOKUP(AK1313,C1304:Q1321,8,FALSE)","v":""},{"$f":"VLOOKUP(AK1313,C1304:Q1321,9,FALSE)","v":""},{"$f":"VLOOKUP(AK1313,C1304:Q1321,10,FALSE)","v":""},{"$f":"VLOOKUP(AK1313,C1304:Q1321,11,FALSE)","v":""},{"$f":"VLOOKUP(AK1313,C1304:Q1321,12,FALSE)","v":""},{"$f":"VLOOKUP(AK1313,C1304:Q1321,13,FALSE)","v":""},{"$f":"VLOOKUP(AK1313,C1304:Q1321,14,FALSE)","v":""},{"$f":"VLOOKUP(AK1313,C1304:Q1321,15,FALSE)","v":""}]
[null,11,{"$f":"IF(AK1303=\"\",\"\",RANK(F1314,F1304:F1321)*1000+ROW())","v":""},"",{"$f":"IF(L1314=\"\",\"\",Nb_Diff_Part(D1314,D1304:D1321,G1314,G1304:G1321,AI1324:AI1508)*CritClassInd_DiffPart+Nb_Goal_Part(D1314,D1304:D1321,G1314,G1304:G1321,V1324:Z1508)*CritClassInd_GoalPart+Nb_Score_Part(D1314,D1304:D1321,G1314,G1304:G1321,V1324:Z1508)*CritClassInd_ScorePart)","v":""},"","K",0,null,{"$f":"IF(AK1303=\"\",\"\",(L1314*Points_Victoire)+M1314*Points_Null)","v":""},"",{"$f":"IF(AK1303=\"\",\"\",COUNTIF(AE1324:AE1508,G1314))","v":""},{"$f":"IF(AK1303=\"\",\"\",COUNTIF(AF1324:AG1508,G1314))","v":""},{"$f":"IF(AK1303=\"\",\"\",COUNTIF(AH1324:AH1508,G1314))","v":""},{"$f":"IF(AK1303=\"\",\"\",SUMIF(V1324:V1508,G1314,AB1324:AB1508)+SUMIF(Z1324:Z1508,G1314,AD1324:AD1508))","v":""},{"$f":"IF(AK1303=\"\",\"\",SUMIF(V1324:V1508,G1314,AD1324:AD1508)+SUMIF(Z1324:Z1508,G1314,AB1324:AB1508))","v":""},{"$f":"IF(AK1303=\"\",\"\",O1314-P1314)","v":""},null,null,null,null,null,null,null,null,null,null,null,null,null,null,null,null,null,null,null,{"$f":"IF(AK1303=\"\",\"\",SMALL(C1304:C1321,11))","v":""},null,null,{"$f":"IF(AK1303=\"\",\"\",INT(AK1314/1000))","v":""},{"$f":"IF(AK1303=\"\",\"\",VLOOKUP(AK1314,C1304:Q1321,5,FALSE))","v":""},{"$f":"VLOOKUP(AK1314,C1304:Q1321,8,FALSE)","v":""},{"$f":"VLOOKUP(AK1314,C1304:Q1321,9,FALSE)","v":""},{"$f":"VLOOKUP(AK1314,C1304:Q1321,10,FALSE)","v":""},{"$f":"VLOOKUP(AK1314,C1304:Q1321,11,FALSE)","v":""},{"$f":"VLOOKUP(AK1314,C1304:Q1321,12,FALSE)","v":""},{"$f":"VLOOKUP(AK1314,C1304:Q1321,13,FALSE)","v":""},{"$f":"VLOOKUP(AK1314,C1304:Q1321,14,FALSE)","v":""},{"$f":"VLOOKUP(AK1314,C1304:Q1321,15,FALSE)","v":""}]
[null,12,{"$f":"IF(AK1303=\"\",\"\",RANK(F1315,F1304:F1321)*1000+ROW())","v":""},"",{"$f":"IF(L1315=\"\",\"\",Nb_Diff_Part(D1315,D1304:D1321,G1315,G1304:G1321,AI1324:AI1508)*CritClassInd_DiffPart+Nb_Goal_Part(D1315,D1304:D1321,G1315,G1304:G1321,V1324:Z1508)*CritClassInd_GoalPart+Nb_Score_Part(D1315,D1304:D1321,G1315,G1304:G1321,V1324:Z1508)*CritClassInd_ScorePart)","v":""},"","L",0,null,{"$f":"IF(AK1303=\"\",\"\",(L1315*Points_Victoire)+M1315*Points_Null)","v":""},"",{"$f":"IF(AK1303=\"\",\"\",COUNTIF(AE1324:AE1508,G1315))","v":""},{"$f":"IF(AK1303=\"\",\"\",COUNTIF(AF1324:AG1508,G1315))","v":""},{"$f":"IF(AK1303=\"\",\"\",COUNTIF(AH1324:AH1508,G1315))","v":""},{"$f":"IF(AK1303=\"\",\"\",SUMIF(V1324:V1508,G1315,AB1324:AB1508)+SUMIF(Z1324:Z1508,G1315,AD1324:AD1508))","v":""},{"$f":"IF(AK1303=\"\",\"\",SUMIF(V1324:V1508,G1315,AD1324:AD1508)+SUMIF(Z1324:Z1508,G1315,AB1324:AB1508))","v":""},{"$f":"IF(AK1303=\"\",\"\",O1315-P1315)","v":""},null,null,null,null,null,null,null,null,null,null,null,null,null,null,null,null,null,null,null,{"$f":"IF(AK1303=\"\",\"\",SMALL(C1304:C1321,12))","v":""},null,null,{"$f":"IF(AK1303=\"\",\"\",INT(AK1315/1000))","v":""},{"$f":"IF(AK1303=\"\",\"\",VLOOKUP(AK1315,C1304:Q1321,5,FALSE))","v":""},{"$f":"VLOOKUP(AK1315,C1304:Q1321,8,FALSE)","v":""},{"$f":"VLOOKUP(AK1315,C1304:Q1321,9,FALSE)","v":""},{"$f":"VLOOKUP(AK1315,C1304:Q1321,10,FALSE)","v":""},{"$f":"VLOOKUP(AK1315,C1304:Q1321,11,FALSE)","v":""},{"$f":"VLOOKUP(AK1315,C1304:Q1321,12,FALSE)","v":""},{"$f":"VLOOKUP(AK1315,C1304:Q1321,13,FALSE)","v":""},{"$f":"VLOOKUP(AK1315,C1304:Q1321,14,FALSE)","v":""},{"$f":"VLOOKUP(AK1315,C1304:Q1321,15,FALSE)","v":""}]
[null,13,{"$f":"IF(AK1303=\"\",\"\",RANK(F1316,F1304:F1321)*1000+ROW())","v":""},"",{"$f":"IF(L1316=\"\",\"\",Nb_Diff_Part(D1316,D1304:D1321,G1316,G1304:G1321,AI1324:AI1508)*CritClassInd_DiffPart+Nb_Goal_Part(D1316,D1304:D1321,G1316,G1304:G1321,V1324:Z1508)*CritClassInd_GoalPart+Nb_Score_Part(D1316,D1304:D1321,G1316,G1304:G1321,V1324:Z1508)*CritClassInd_ScorePart)","v":""},"","M",0,null,{"$f":"IF(AK1303=\"\",\"\",(L1316*Points_Victoire)+M1316*Points_Null)","v":""},"",{"$f":"IF(AK1303=\"\",\"\",COUNTIF(AE1324:AE1508,G1316))","v":""},{"$f":"IF(AK1303=\"\",\"\",COUNTIF(AF1324:AG1508,G1316))","v":""},{"$f":"IF(AK1303=\"\",\"\",COUNTIF(AH1324:AH1508,G1316))","v":""},{"$f":"IF(AK1303=\"\",\"\",SUMIF(V1324:V1508,G1316,AB1324:AB1508)+SUMIF(Z1324:Z1508,G1316,AD1324:AD1508))","v":""},{"$f":"IF(AK1303=\"\",\"\",SUMIF(V1324:V1508,G1316,AD1324:AD1508)+SUMIF(Z1324:Z1508,G1316,AB1324:AB1508))","v":""},{"$f":"IF(AK1303=\"\",\"\",O1316-P1316)","v":""},null,null,null,null,null,null,null,null,null,null,null,null,null,null,null,null,null,null,null,{"$f":"IF(AK1303=\"\",\"\",SMALL(C1304:C1321,13))","v":""},null,null,{"$f":"IF(AK1303=\"\",\"\",INT(AK1316/1000))","v":""},{"$f":"IF(AK1303=\"\",\"\",VLOOKUP(AK1316,C1304:Q1321,5,FALSE))","v":""},{"$f":"VLOOKUP(AK1316,C1304:Q1321,8,FALSE)","v":""},{"$f":"VLOOKUP(AK1316,C1304:Q1321,9,FALSE)","v":""},{"$f":"VLOOKUP(AK1316,C1304:Q1321,10,FALSE)","v":""},{"$f":"VLOOKUP(AK1316,C1304:Q1321,11,FALSE)","v":""},{"$f":"VLOOKUP(AK1316,C1304:Q1321,12,FALSE)","v":""},{"$f":"VLOOKUP(AK1316,C1304:Q1321,13,FALSE)","v":""},{"$f":"VLOOKUP(AK1316,C1304:Q1321,14,FALSE)","v":""},{"$f":"VLOOKUP(AK1316,C1304:Q1321,15,FALSE)","v":""}]
[null,14,{"$f":"IF(AK1303=\"\",\"\",RANK(F1317,F1304:F1321)*1000+ROW())","v":""},"",{"$f":"IF(L1317=\"\",\"\",Nb_Diff_Part(D1317,D1304:D1321,G1317,G1304:G1321,AI1324:AI1508)*CritClassInd_DiffPart+Nb_Goal_Part(D1317,D1304:D1321,G1317,G1304:G1321,V1324:Z1508)*CritClassInd_GoalPart+Nb_Score_Part(D1317,D1304:D1321,G1317,G1304:G1321,V1324:Z1508)*CritClassInd_ScorePart)","v":""},"","N",0,null,{"$f":"IF(AK1303=\"\",\"\",(L1317*Points_Victoire)+M1317*Points_Null)","v":""},"",{"$f":"IF(AK1303=\"\",\"\",COUNTIF(AE1324:AE1508,G1317))","v":""},{"$f":"IF(AK1303=\"\",\"\",COUNTIF(AF1324:AG1508,G1317))","v":""},{"$f":"IF(AK1303=\"\",\"\",COUNTIF(AH1324:AH1508,G1317))","v":""},{"$f":"IF(AK1303=\"\",\"\",SUMIF(V1324:V1508,G1317,AB1324:AB1508)+SUMIF(Z1324:Z1508,G1317,AD1324:AD1508))","v":""},{"$f":"IF(AK1303=\"\",\"\",SUMIF(V1324:V1508,G1317,AD1324:AD1508)+SUMIF(Z1324:Z1508,G1317,AB1324:AB1508))","v":""},{"$f":"IF(AK1303=\"\",\"\",O1317-P1317)","v":""},null,null,null,null,null,null,null,null,null,null,null,null,null,null,null,null,null,null,null,{"$f":"IF(AK1303=\"\",\"\",SMALL(C1304:C1321,14))","v":""},null,null,{"$f":"IF(AK1303=\"\",\"\",INT(AK1317/1000))","v":""},{"$f":"IF(AK1303=\"\",\"\",VLOOKUP(AK1317,C1304:Q1321,5,FALSE))","v":""},{"$f":"VLOOKUP(AK1317,C1304:Q1321,8,FALSE)","v":""},{"$f":"VLOOKUP(AK1317,C1304:Q1321,9,FALSE)","v":""},{"$f":"VLOOKUP(AK1317,C1304:Q1321,10,FALSE)","v":""},{"$f":"VLOOKUP(AK1317,C1304:Q1321,11,FALSE)","v":""},{"$f":"VLOOKUP(AK1317,C1304:Q1321,12,FALSE)","v":""},{"$f":"VLOOKUP(AK1317,C1304:Q1321,13,FALSE)","v":""},{"$f":"VLOOKUP(AK1317,C1304:Q1321,14,FALSE)","v":""},{"$f":"VLOOKUP(AK1317,C1304:Q1321,15,FALSE)","v":""}]
[null,15,{"$f":"IF(AK1303=\"\",\"\",RANK(F1318,F1304:F1321)*1000+ROW())","v":""},"",{"$f":"IF(L1318=\"\",\"\",Nb_Diff_Part(D1318,D1304:D1321,G1318,G1304:G1321,AI1324:AI1508)*CritClassInd_DiffPart+Nb_Goal_Part(D1318,D1304:D1321,G1318,G1304:G1321,V1324:Z1508)*CritClassInd_GoalPart+Nb_Score_Part(D1318,D1304:D1321,G1318,G1304:G1321,V1324:Z1508)*CritClassInd_ScorePart)","v":""},"","O",0,null,{"$f":"IF(AK1303=\"\",\"\",(L1318*Points_Victoire)+M1318*Points_Null)","v":""},"",{"$f":"IF(AK1303=\"\",\"\",COUNTIF(AE1324:AE1508,G1318))","v":""},{"$f":"IF(AK1303=\"\",\"\",COUNTIF(AF1324:AG1508,G1318))","v":""},{"$f":"IF(AK1303=\"\",\"\",COUNTIF(AH1324:AH1508,G1318))","v":""},{"$f":"IF(AK1303=\"\",\"\",SUMIF(V1324:V1508,G1318,AB1324:AB1508)+SUMIF(Z1324:Z1508,G1318,AD1324:AD1508))","v":""},{"$f":"IF(AK1303=\"\",\"\",SUMIF(V1324:V1508,G1318,AD1324:AD1508)+SUMIF(Z1324:Z1508,G1318,AB1324:AB1508))","v":""},{"$f":"IF(AK1303=\"\",\"\",O1318-P1318)","v":""},null,null,null,null,null,null,null,null,null,null,null,null,null,null,null,null,null,null,null,{"$f":"IF(AK1303=\"\",\"\",SMALL(C1304:C1321,15))","v":""},null,null,{"$f":"IF(AK1303=\"\",\"\",INT(AK1318/1000))","v":""},{"$f":"IF(AK1303=\"\",\"\",VLOOKUP(AK1318,C1304:Q1321,5,FALSE))","v":""},{"$f":"VLOOKUP(AK1318,C1304:Q1321,8,FALSE)","v":""},{"$f":"VLOOKUP(AK1318,C1304:Q1321,9,FALSE)","v":""},{"$f":"VLOOKUP(AK1318,C1304:Q1321,10,FALSE)","v":""},{"$f":"VLOOKUP(AK1318,C1304:Q1321,11,FALSE)","v":""},{"$f":"VLOOKUP(AK1318,C1304:Q1321,12,FALSE)","v":""},{"$f":"VLOOKUP(AK1318,C1304:Q1321,13,FALSE)","v":""},{"$f":"VLOOKUP(AK1318,C1304:Q1321,14,FALSE)","v":""},{"$f":"VLOOKUP(AK1318,C1304:Q1321,15,FALSE)","v":""}]
[null,16,{"$f":"IF(AK1303=\"\",\"\",RANK(F1319,F1304:F1321)*1000+ROW())","v":""},"",{"$f":"IF(L1319=\"\",\"\",Nb_Diff_Part(D1319,D1304:D1321,G1319,G1304:G1321,AI1324:AI1508)*CritClassInd_DiffPart+Nb_Goal_Part(D1319,D1304:D1321,G1319,G1304:G1321,V1324:Z1508)*CritClassInd_GoalPart+Nb_Score_Part(D1319,D1304:D1321,G1319,G1304:G1321,V1324:Z1508)*CritClassInd_ScorePart)","v":""},"","P",0,null,{"$f":"IF(AK1303=\"\",\"\",(L1319*Points_Victoire)+M1319*Points_Null)","v":""},"",{"$f":"IF(AK1303=\"\",\"\",COUNTIF(AE1324:AE1508,G1319))","v":""},{"$f":"IF(AK1303=\"\",\"\",COUNTIF(AF1324:AG1508,G1319))","v":""},{"$f":"IF(AK1303=\"\",\"\",COUNTIF(AH1324:AH1508,G1319))","v":""},{"$f":"IF(AK1303=\"\",\"\",SUMIF(V1324:V1508,G1319,AB1324:AB1508)+SUMIF(Z1324:Z1508,G1319,AD1324:AD1508))","v":""},{"$f":"IF(AK1303=\"\",\"\",SUMIF(V1324:V1508,G1319,AD1324:AD1508)+SUMIF(Z1324:Z1508,G1319,AB1324:AB1508))","v":""},{"$f":"IF(AK1303=\"\",\"\",O1319-P1319)","v":""},null,null,null,null,null,null,null,null,null,null,null,null,null,null,null,null,null,null,null,{"$f":"IF(AK1303=\"\",\"\",SMALL(C1304:C1321,16))","v":""},null,null,{"$f":"IF(AK1303=\"\",\"\",INT(AK1319/1000))","v":""},{"$f":"IF(AK1303=\"\",\"\",VLOOKUP(AK1319,C1304:Q1321,5,FALSE))","v":""},{"$f":"VLOOKUP(AK1319,C1304:Q1321,8,FALSE)","v":""},{"$f":"VLOOKUP(AK1319,C1304:Q1321,9,FALSE)","v":""},{"$f":"VLOOKUP(AK1319,C1304:Q1321,10,FALSE)","v":""},{"$f":"VLOOKUP(AK1319,C1304:Q1321,11,FALSE)","v":""},{"$f":"VLOOKUP(AK1319,C1304:Q1321,12,FALSE)","v":""},{"$f":"VLOOKUP(AK1319,C1304:Q1321,13,FALSE)","v":""},{"$f":"VLOOKUP(AK1319,C1304:Q1321,14,FALSE)","v":""},{"$f":"VLOOKUP(AK1319,C1304:Q1321,15,FALSE)","v":""}]
[null,17,{"$f":"IF(AK1303=\"\",\"\",RANK(F1320,F1304:F1321)*1000+ROW())","v":""},"",{"$f":"IF(L1320=\"\",\"\",Nb_Diff_Part(D1320,D1304:D1321,G1320,G1304:G1321,AI1324:AI1508)*CritClassInd_DiffPart+Nb_Goal_Part(D1320,D1304:D1321,G1320,G1304:G1321,V1324:Z1508)*CritClassInd_GoalPart+Nb_Score_Part(D1320,D1304:D1321,G1320,G1304:G1321,V1324:Z1508)*CritClassInd_ScorePart)","v":""},"","Q",0,null,{"$f":"IF(AK1303=\"\",\"\",(L1320*Points_Victoire)+M1320*Points_Null)","v":""},"",{"$f":"IF(AK1303=\"\",\"\",COUNTIF(AE1324:AE1508,G1320))","v":""},{"$f":"IF(AK1303=\"\",\"\",COUNTIF(AF1324:AG1508,G1320))","v":""},{"$f":"IF(AK1303=\"\",\"\",COUNTIF(AH1324:AH1508,G1320))","v":""},{"$f":"IF(AK1303=\"\",\"\",SUMIF(V1324:V1508,G1320,AB1324:AB1508)+SUMIF(Z1324:Z1508,G1320,AD1324:AD1508))","v":""},{"$f":"IF(AK1303=\"\",\"\",SUMIF(V1324:V1508,G1320,AD1324:AD1508)+SUMIF(Z1324:Z1508,G1320,AB1324:AB1508))","v":""},{"$f":"IF(AK1303=\"\",\"\",O1320-P1320)","v":""},null,null,null,null,null,null,null,null,null,null,null,null,null,null,null,null,null,null,null,{"$f":"IF(AK1303=\"\",\"\",SMALL(C1304:C1321,17))","v":""},null,null,{"$f":"IF(AK1303=\"\",\"\",INT(AK1320/1000))","v":""},{"$f":"IF(AK1303=\"\",\"\",VLOOKUP(AK1320,C1304:Q1321,5,FALSE))","v":""},{"$f":"VLOOKUP(AK1320,C1304:Q1321,8,FALSE)","v":""},{"$f":"VLOOKUP(AK1320,C1304:Q1321,9,FALSE)","v":""},{"$f":"VLOOKUP(AK1320,C1304:Q1321,10,FALSE)","v":""},{"$f":"VLOOKUP(AK1320,C1304:Q1321,11,FALSE)","v":""},{"$f":"VLOOKUP(AK1320,C1304:Q1321,12,FALSE)","v":""},{"$f":"VLOOKUP(AK1320,C1304:Q1321,13,FALSE)","v":""},{"$f":"VLOOKUP(AK1320,C1304:Q1321,14,FALSE)","v":""},{"$f":"VLOOKUP(AK1320,C1304:Q1321,15,FALSE)","v":""}]
[null,18,{"$f":"IF(AK1303=\"\",\"\",RANK(F1321,F1304:F1321)*1000+ROW())","v":""},"",{"$f":"IF(L1321=\"\",\"\",Nb_Diff_Part(D1321,D1304:D1321,G1321,G1304:G1321,AI1324:AI1508)*CritClassInd_DiffPart+Nb_Goal_Part(D1321,D1304:D1321,G1321,G1304:G1321,V1324:Z1508)*CritClassInd_GoalPart+Nb_Score_Part(D1321,D1304:D1321,G1321,G1304:G1321,V1324:Z1508)*CritClassInd_ScorePart)","v":""},"","R",0,null,{"$f":"IF(AK1303=\"\",\"\",(L1321*Points_Victoire)+M1321*Points_Null)","v":""},"",{"$f":"IF(AK1303=\"\",\"\",COUNTIF(AE1324:AE1508,G1321))","v":""},{"$f":"IF(AK1303=\"\",\"\",COUNTIF(AF1324:AG1508,G1321))","v":""},{"$f":"IF(AK1303=\"\",\"\",COUNTIF(AH1324:AH1508,G1321))","v":""},{"$f":"IF(AK1303=\"\",\"\",SUMIF(V1324:V1508,G1321,AB1324:AB1508)+SUMIF(Z1324:Z1508,G1321,AD1324:AD1508))","v":""},{"$f":"IF(AK1303=\"\",\"\",SUMIF(V1324:V1508,G1321,AD1324:AD1508)+SUMIF(Z1324:Z1508,G1321,AB1324:AB1508))","v":""},{"$f":"IF(AK1303=\"\",\"\",O1321-P1321)","v":""},null,null,null,null,null,null,null,null,null,null,null,null,null,null,null,null,null,null,null,{"$f":"IF(AK1303=\"\",\"\",SMALL(C1304:C1321,18))","v":""},null,null,{"$f":"IF(AK1303=\"\",\"\",INT(AK1321/1000))","v":""},{"$f":"IF(AK1303=\"\",\"\",VLOOKUP(AK1321,C1304:Q1321,5,FALSE))","v":""},{"$f":"VLOOKUP(AK1321,C1304:Q1321,8,FALSE)","v":""},{"$f":"VLOOKUP(AK1321,C1304:Q1321,9,FALSE)","v":""},{"$f":"VLOOKUP(AK1321,C1304:Q1321,10,FALSE)","v":""},{"$f":"VLOOKUP(AK1321,C1304:Q1321,11,FALSE)","v":""},{"$f":"VLOOKUP(AK1321,C1304:Q1321,12,FALSE)","v":""},{"$f":"VLOOKUP(AK1321,C1304:Q1321,13,FALSE)","v":""},{"$f":"VLOOKUP(AK1321,C1304:Q1321,14,FALSE)","v":""},{"$f":"VLOOKUP(AK1321,C1304:Q1321,15,FALSE)","v":""}]
[null,null,null,null,null,null,null,null,null,null,null,null,null,null,null,null,null,null,1,null,null,null,null,null,null,null,null,{"$f":"IF(MaxScore,N_MaxScore,\"\")","v":"Max Score"}]
[null,null,null,null,null,null,null,null,null,null,null,null,null,null,null,null,null,null,{"$f":"N_Heure","v":"Time"},{"$f":"N_Table","v":"Table"},{"$f":"N_Arbitre","v":"Referee"},{"$f":"N_Matches","v":"Matches"}]
[null,null,null,null,null,null,null,null,null,null,null,null,null,null,null,null,null,"#G1",null,null,null,{"$f":"IF(G1304=\"\",\"\",G1304)","v":"A"},null,"-",null,{"$f":"IF(G1305=\"\",\"\",G1305)","v":"B"},null,{"$f":"IF(MaxScore,MaxGoals(W1324,Y1324,MaxGoalsValue),IF(W1324=\"\",\"\",W1324))","v":0},{"$f":"IF(MaxScore,\"-\",IF(W1324=\"\",\"\",\"-\"))","v":"-"},{"$f":"IF(MaxScore,MaxGoals(Y1324,W1324,MaxGoalsValue),IF(Y1324=\"\",\"\",Y1324))","v":0},{"$f":"IF(W1324=\"\",\"\",IF(W1324>Y1324,V1324,IF(W1324=Y1324,\"\",Z1324)))","v":""},{"$f":"IF(W1324=\"\",\"\",IF(W1324=Y1324,V1324,\"\"))","v":""},{"$f":"IF(W1324=\"\",\"\",IF(W1324=Y1324,Z1324,\"\"))","v":""},{"$f":"IF(W1324=\"\",\"\",IF(W1324<Y1324,V1324,IF(W1324=Y1324,\"\",Z1324)))","v":""},{"$f":"CONCATENATE(AE1324,AH1324)","v":""}]
[null,null,null,null,null,null,null,null,null,null,null,null,null,null,null,null,null,"#G1",null,null,null,{"$f":"IF(G1306=\"\",\"\",G1306)","v":"C"},null,"-",null,{"$f":"IF(G1307=\"\",\"\",G1307)","v":"D"},null,0,"-",0,"","","","",""]
[null,null,null,null,null,null,null,null,null,null,null,null,null,null,null,null,null,"#G1",null,null,null,{"$f":"IF(G1308=\"\",\"\",G1308)","v":"E"},null,"-",null,{"$f":"IF(G1309=\"\",\"\",G1309)","v":"F"},null,0,"-",0,"","","","",""]
[null,null,null,null,null,null,null,null,null,null,null,null,null,null,null,null,null,"#G1",null,null,null,{"$f":"IF(G1310=\"\",\"\",G1310)","v":"G"},null,"-",null,{"$f":"IF(G1311=\"\",\"\",G1311)","v":"H"},null,0,"-",0,"","","","",""]
[null,null,null,null,null,null,null,null,null,null,null,null,null,null,null,null,null,"#G1",null,null,null,{"$f":"IF(G1312=\"\",\"\",G1312)","v":"I"},null,"-",null,{"$f":"IF(G1313=\"\",\"\",G1313)","v":"J"},null,0,"-",0,"","","","",""]
[null,null,null,null,null,null,null,null,null,null,null,null,null,null,null,null,null,"#G1",null,null,null,{"$f":"IF(G1314=\"\",\"\",G1314)","v":"K"},null,"-",null,{"$f":"IF(G1315=\"\",\"\",G1315)","v":"L"},null,0,"-",0,"","","","",""]
[null,null,null,null,null,null,null,null,null,null,null,null,null,null,null,null,null,"#G1",null,null,null,{"$f":"IF(G1316=\"\",\"\",G1316)","v":"M"},null,"-",null,{"$f":"IF(G1317=\"\",\"\",G1317)","v":"N"},null,0,"-",0,"","","","",""]
[null,null,null,null,null,null,null,null,null,null,null,null,null,null,null,null,null,"#G1",null,null,null,{"$f":"IF(G1318=\"\",\"\",G1318)","v":"O"},null,"-",null,{"$f":"IF(G1319=\"\",\"\",G1319)","v":"P"},null,0,"-",0,"","","","",""]
[null,null,null,null,null,null,null,null,null,null,null,null,null,null,null,null,null,"#G1",null,null,null,{"$f":"IF(G1320=\"\",\"\",G1320)","v":"Q"},null,"-",null,{"$f":"IF(G1321=\"\",\"\",G1321)","v":"R"},null,0,"-",0,"","","","",""]
[null,null,null,null,null,null,null,null,null,null,null,null,null,null,null,null,null,null,{"$f":"S1322+1","v":2}]
[null,null,null,null,null,null,null,null,null,null,null,null,null,null,null,null,null,null,{"$f":"N_Heure","v":"Time"},{"$f":"N_Table","v":"Table"},{"$f":"N_Arbitre","v":"Referee"},{"$f":"N_Matches","v":"Matches"}]
[null,null,null,null,null,null,null,null,null,null,null,null,null,null,null,null,null,"#G2",null,null,null,{"$f":"V1325","v":"C"},null,"-",null,{"$f":"V1324","v":"A"},null,{"$f":"IF(MaxScore,MaxGoals(W1335,Y1335,MaxGoalsValue),IF(W1335=\"\",\"\",W1335))","v":0},{"$f":"IF(MaxScore,\"-\",IF(W1335=\"\",\"\",\"-\"))","v":"-"},{"$f":"IF(MaxScore,MaxGoals(Y1335,W1335,MaxGoalsValue),IF(Y1335=\"\",\"\",Y1335))","v":0},{"$f":"IF(W1335=\"\",\"\",IF(W1335>Y1335,V1335,IF(W1335=Y1335,\"\",Z1335)))","v":""},{"$f":"IF(W1335=\"\",\"\",IF(W1335=Y1335,V1335,\"\"))","v":""},{"$f":"IF(W1335=\"\",\"\",IF(W1335=Y1335,Z1335,\"\"))","v":""},{"$f":"IF(W1335=\"\",\"\",IF(W1335<Y1335,V1335,IF(W1335=Y1335,\"\",Z1335)))","v":""},{"$f":"CONCATENATE(AE1335,AH1335)","v":""}]
[null,null,null,null,null,null,null,null,null,null,null,null,null,null,null,null,null,"#G2",null,null,null,{"$f":"Z1324","v":"B"},null,"-",null,{"$f":"V1326","v":"E"},null,0,"-",0,"","","","",""]
[null,null,null,null,null,null,null,null,null,null,null,null,null,null,null,null,null,"#G2",null,null,null,"D",null,"-",null,"G",null,0,"-",0,"","","","",""]
[null,null,null,null,null,null,null,null,null,null,null,null,null,null,null,null,null,"#G2",null,null,null,"F",null,"-",null,"I",null,0,"-",0,"","","","",""]
[null,null,null,null,null,null,null,null,null,null,null,null,null,null,null,null,null,"#G2",null,null,null,"H",null,"-",null,"K",null,0,"-",0,"","","","",""]
[null,null,null,null,null,null,null,null,null,null,null,null,null,null,null,null,null,"#G2",null,null,null,"J",null,"-",null,"M",null,0,"-",0,"","","","",""]
[null,null,null,null,null,null,null,null,null,null,null,null,null,null,null,null,null,"#G2",null,null,null,"L",null,"-",null,"O",null,0,"-",0,"","","","",""]
[null,null,null,null,null,null,null,null,null,null,null,null,null,null,null,null,null,"#G2",null,null,null,"N",null,"-",null,"Q",null,0,"-",0,"","","","",""]
[null,null,null,null,null,null,null,null,null,null,null,null,null,null,null,null,null,"#G2",null,null,null,"P",null,"-",null,{"$f":"Z1332","v":"R"},null,0,"-",0,"","","","",""]
[null,null,null,null,null,null,null,null,null,null,null,null,null,null,null,null,null,null,{"$f":"S1333+1","v":3}]
[null,null,null,null,null,null,null,null,null,null,null,null,null,null,null,null,null,null,{"$f":"N_Heure","v":"Time"},{"$f":"N_Table","v":"Table"},{"$f":"N_Arbitre","v":"Referee"},{"$f":"N_Matches","v":"Matches"}]
[null,null,null,null,null,null,null,null,null,null,null,null,null,null,null,null,null,"#G3",null,null,null,{"$f":"Z1335","v":"A"},null,"-",null,{"$f":"Z1336","v":"E"},null,{"$f":"IF(MaxScore,MaxGoals(W1346,Y1346,MaxGoalsValue),IF(W1346=\"\",\"\",W1346))","v":0},{"$f":"IF(MaxScore,\"-\",IF(W1346=\"\",\"\",\"-\"))","v":"-"},{"$f":"IF(MaxScore,MaxGoals(Y1346,W1346,MaxGoalsValue),IF(Y1346=\"\",\"\",Y1346))","v":0},{"$f":"IF(W1346=\"\",\"\",IF(W1346>Y1346,V1346,IF(W1346=Y1346,\"\",Z1346)))","v":""},{"$f":"IF(W1346=\"\",\"\",IF(W1346=Y1346,V1346,\"\"))","v":""},{"$f":"IF(W1346=\"\",\"\",IF(W1346=Y1346,Z1346,\"\"))","v":""},{"$f":"IF(W1346=\"\",\"\",IF(W1346<Y1346,V1346,IF(W1346=Y1346,\"\",Z1346)))","v":""},{"$f":"CONCATENATE(AE1346,AH1346)","v":""}]
[null,null,null,null,null,null,null,null,null,null,null,null,null,null,null,null,null,"#G3",null,null,null,{"$f":"Z1337","v":"G"},null,"-",null,{"$f":"V1335","v":"C"},null,0,"-",0,"","","","",""]
[null,null,null,null,null,null,null,null,null,null,null,null,null,null,null,null,null,"#G3",null,null,null,"I",null,"-",null,"B",null,0,"-",0,"","","","",""]
[null,null,null,null,null,null,null,null,null,null,null,null,null,null,null,null,null,"#G3",null,null,null,"K",null,"-",null,"D",null,0,"-",0,"","","","",""]
[null,null,null,null,null,null,null,null,null,null,null,null,null,null,null,null,null,"#G3",null,null,null,"M",null,"-",null,"F",null,0,"-",0,"","","","",""]
[null,null,null,null,null,null,null,null,null,null,null,null,null,null,null,null,null,"#G3",null,null,null,"O",null,"-",null,"H",null,0,"-",0,"","","","",""]
[null,null,null,null,null,null,null,null,null,null,null,null,null,null,null,null,null,"#G3",null,null,null,"Q",null,"-",null,"J",null,0,"-",0,"","","","",""]
[null,null,null,null,null,null,null,null,null,null,null,null,null,null,null,null,null,"#G3",null,null,null,"R",null,"-",null,"L",null,0,"-",0,"","","","",""]
[null,null,null,null,null,null,null,null,null,null,null,null,null,null,null,null,null,"#G3",null,null,null,{"$f":"V1343","v":"P"},null,"-",null,{"$f":"V1342","v":"N"},null,0,"-",0,"","","","",""]
[null,null,null,null,null,null,null,null,null,null,null,null,null,null,null,null,null,null,{"$f":"S1344+1","v":4}]
[null,null,null,null,null,null,null,null,null,null,null,null,null,null,null,null,null,null,{"$f":"N_Heure","v":"Time"},{"$f":"N_Table","v":"Table"},{"$f":"N_Arbitre","v":"Referee"},{"$f":"N_Matches","v":"Matches"}]
[null,null,null,null,null,null,null,null,null,null,null,null,null,null,null,null,null,"#G4",null,null,null,{"$f":"V1347","v":"G"},null,"-",null,{"$f":"V1346","v":"A"},null,{"$f":"IF(MaxScore,MaxGoals(W1357,Y1357,MaxGoalsValue),IF(W1357=\"\",\"\",W1357))","v":0},{"$f":"IF(MaxScore,\"-\",IF(W1357=\"\",\"\",\"-\"))","v":"-"},{"$f":"IF(MaxScore,MaxGoals(Y1357,W1357,MaxGoalsValue),IF(Y1357=\"\",\"\",Y1357))","v":0},{"$f":"IF(W1357=\"\",\"\",IF(W1357>Y1357,V1357,IF(W1357=Y1357,\"\",Z1357)))","v":""},{"$f":"IF(W1357=\"\",\"\",IF(W1357=Y1357,V1357,\"\"))","v":""},{"$f":"IF(W1357=\"\",\"\",IF(W1357=Y1357,Z1357,\"\"))","v":""},{"$f":"IF(W1357=\"\",\"\",IF(W1357<Y1357,V1357,IF(W1357=Y1357,\"\",Z1357)))","v":""},{"$f":"CONCATENATE(AE1357,AH1357)","v":""}]
[null,null,null,null,null,null,null,null,null,null,null,null,null,null,null,null,null,"#G4",null,null,null,{"$f":"Z1346","v":"E"},null,"-",null,{"$f":"V1348","v":"I"},null,0,"-",0,"","","","",""]
[null,null,null,null,null,null,null,null,null,null,null,null,null,null,null,null,null,"#G4",null,null,null,"C",null,"-",null,"K",null,0,"-",0,"","","","",""]
[null,null,null,null,null,null,null,null,null,null,null,null,null,null,null,null,null,"#G4",null,null,null,"B",null,"-",null,"M",null,0,"-",0,"","","","",""]
[null,null,null,null,null,null,null,null,null,null,null,null,null,null,null,null,null,"#G4",null,null,null,"D",null,"-",null,"O",null,0,"-",0,"","","","",""]
[null,null,null,null,null,null,null,null,null,null,null,null,null,null,null,null,null,"#G4",null,null,null,"F",null,"-",null,"Q",null,0,"-",0,"","","","",""]
[null,null,null,null,null,null,null,null,null,null,null,null,null,null,null,null,null,"#G4",null,null,null,"H",null,"-",null,"R",null,0,"-",0,"","","","",""]
[null,null,null,null,null,null,null,null,null,null,null,null,null,null,null,null,null,"#G4",null,null,null,"J",null,"-",null,"P",null,0,"-",0,"","","","",""]
[null,null,null,null,null,null,null,null,null,null,null,null,null,null,null,null,null,"#G4",null,null,null,"L",null,"-",null,{"$f":"Z1354","v":"N"},null,0,"-",0,"","","","",""]
[null,null,null,null,null,null,null,null,null,null,null,null,null,null,null,null,null,null,{"$f":"S1355+1","v":5}]
[null,null,null,null,null,null,null,null,null,null,null,null,null,null,null,null,null,null,{"$f":"N_Heure","v":"Time"},{"$f":"N_Table","v":"Table"},{"$f":"N_Arbitre","v":"Referee"},{"$f":"N_Matches","v":"Matches"}]
[null,null,null,null,null,null,null,null,null,null,null,null,null,null,null,null,null,"#G5",null,null,null,{"$f":"Z1357","v":"A"},null,"-",null,{"$f":"Z1358","v":"I"},null,{"$f":"IF(MaxScore,MaxGoals(W1368,Y1368,MaxGoalsValue),IF(W1368=\"\",\"\",W1368))","v":0},{"$f":"IF(MaxScore,\"-\",IF(W1368=\"\",\"\",\"-\"))","v":"-"},{"$f":"IF(MaxScore,MaxGoals(Y1368,W1368,MaxGoalsValue),IF(Y1368=\"\",\"\",Y1368))","v":0},{"$f":"IF(W1368=\"\",\"\",IF(W1368>Y1368,V1368,IF(W1368=Y1368,\"\",Z1368)))","v":""},{"$f":"IF(W1368=\"\",\"\",IF(W1368=Y1368,V1368,\"\"))","v":""},{"$f":"IF(W1368=\"\",\"\",IF(W1368=Y1368,Z1368,\"\"))","v":""},{"$f":"IF(W1368=\"\",\"\",IF(W1368<Y1368,V1368,IF(W1368=Y1368,\"\",Z1368)))","v":""},{"$f":"CONCATENATE(AE1368,AH1368)","v":""}]
[null,null,null,null,null,null,null,null,null,null,null,null,null,null,null,null,null,"#G5",null,null,null,{"$f":"Z1359","v":"K"},null,"-",null,{"$f":"V1357","v":"G"},null,0,"-",0,"","","","",""]
[null,null,null,null,null,null,null,null,null,null,null,null,null,null,null,null,null,"#G5",null,null,null,"M",null,"-",null,"E",null,0,"-",0,"","","","",""]
[null,null,null,null,null,null,null,null,null,null,null,null,null,null,null,null,null,"#G5",null,null,null,"O",null,"-",null,"C",null,0,"-",0,"","","","",""]
[null,null,null,null,null,null,null,null,null,null,null,null,null,null,null,null,null,"#G5",null,null,null,"Q",null,"-",null,"B",null,0,"-",0,"","","","",""]
[null,null,null,null,null,null,null,null,null,null,null,null,null,null,null,null,null,"#G5",null,null,null,"R",null,"-",null,"D",null,0,"-",0,"","","","",""]
[null,null,null,null,null,null,null,null,null,null,null,null,null,null,null,null,null,"#G5",null,null,null,"P",null,"-",null,"F",null,0,"-",0,"","","","",""]
[null,null,null,null,null,null,null,null,null,null,null,null,null,null,null,null,null,"#G5",null,null,null,"N",null,"-",null,"H",null,0,"-",0,"","","","",""]
[null,null,null,null,null,null,null,null,null,null,null,null,null,null,null,null,null,"#G5",null,null,null,{"$f":"V1365","v":"L"},null,"-",null,{"$f":"V1364","v":"J"},null,0,"-",0,"","","","",""]
[null,null,null,null,null,null,null,null,null,null,null,null,null,null,null,null,null,null,{"$f":"S1366+1","v":6}]
[null,null,null,null,null,null,null,null,null,null,null,null,null,null,null,null,null,null,{"$f":"N_Heure","v":"Time"},{"$f":"N_Table","v":"Table"},{"$f":"N_Arbitre","v":"Referee"},{"$f":"N_Matches","v":"Matches"}]
[null,null,null,null,null,null,null,null,null,null,null,null,null,null,null,null,null,"#G6",null,null,null,{"$f":"V1369","v":"K"},null,"-",null,{"$f":"V1368","v":"A"},null,{"$f":"IF(MaxScore,MaxGoals(W1379,Y1379,MaxGoalsValue),IF(W1379=\"\",\"\",W1379))","v":0},{"$f":"IF(MaxScore,\"-\",IF(W1379=\"\",\"\",\"-\"))","v":"-"},{"$f":"IF(MaxScore,MaxGoals(Y1379,W1379,MaxGoalsValue),IF(Y1379=\"\",\"\",Y1379))","v":0},{"$f":"IF(W1379=\"\",\"\",IF(W1379>Y1379,V1379,IF(W1379=Y1379,\"\",Z1379)))","v":""},{"$f":"IF(W1379=\"\",\"\",IF(W1379=Y1379,V1379,\"\"))","v":""},{"$f":"IF(W1379=\"\",\"\",IF(W1379=Y1379,Z1379,\"\"))","v":""},{"$f":"IF(W1379=\"\",\"\",IF(W1379<Y1379,V1379,IF(W1379=Y1379,\"\",Z1379)))","v":""},{"$f":"CONCATENATE(AE1379,AH1379)","v":""}]
[null,null,null,null,null,null,null,null,null,null,null,null,null,null,null,null,null,"#G6",null,null,null,{"$f":"Z1368","v":"I"},null,"-",null,{"$f":"V1370","v":"M"},null,0,"-",0,"","","","",""]
[null,null,null,null,null,null,null,null,null,null,null,null,null,null,null,null,null,"#G6",null,null,null,"G",null,"-",null,"O",null,0,"-",0,"","","","",""]
[null,null,null,null,null,null,null,null,null,null,null,null,null,null,null,null,null,"#G6",null,null,null,"E",null,"-",null,"Q",null,0,"-",0,"","","","",""]
[null,null,null,null,null,null,null,null,null,null,null,null,null,null,null,null,null,"#G6",null,null,null,"C",null,"-",null,"R",null,0,"-",0,"","","","",""]
[null,null,null,null,null,null,null,null,null,null,null,null,null,null,null,null,null,"#G6",null,null,null,"B",null,"-",null,"P",null,0,"-",0,"","","","",""]
[null,null,null,null,null,null,null,null,null,null,null,null,null,null,null,null,null,"#G6",null,null,null,"D",null,"-",null,"N",null,0,"-",0,"","","","",""]
[null,null,null,null,null,null,null,null,null,null,null,null,null,null,null,null,null,"#G6",null,null,null,"F",null,"-",null,"L",null,0,"-",0,"","","","",""]
[null,null,null,null,null,null,null,null,null,null,null,null,null,null,null,null,null,"#G6",null,null,null,"H",null,"-",null,{"$f":"Z1376","v":"J"},null,0,"-",0,"","","","",""]
[null,null,null,null,null,null,null,null,null,null,null,null,null,null,null,null,null,null,{"$f":"S1377+1","v":7}]
[null,null,null,null,null,null,null,null,null,null,null,null,null,null,null,null,null,null,{"$f":"N_Heure","v":"Time"},{"$f":"N_Table","v":"Table"},{"$f":"N_Arbitre","v":"Referee"},{"$f":"N_Matches","v":"Matches"}]
[null,null,null,null,null,null,null,null,null,null,null,null,null,null,null,null,null,"#G7",null,null,null,{"$f":"Z1379","v":"A"},null,"-",null,{"$f":"Z1380","v":"M"},null,{"$f":"IF(MaxScore,MaxGoals(W1390,Y1390,MaxGoalsValue),IF(W1390=\"\",\"\",W1390))","v":0},{"$f":"IF(MaxScore,\"-\",IF(W1390=\"\",\"\",\"-\"))","v":"-"},{"$f":"IF(MaxScore,MaxGoals(Y1390,W1390,MaxGoalsValue),IF(Y1390=\"\",\"\",Y1390))","v":0},{"$f":"IF(W1390=\"\",\"\",IF(W1390>Y1390,V1390,IF(W1390=Y1390,\"\",Z1390)))","v":""},{"$f":"IF(W1390=\"\",\"\",IF(W1390=Y1390,V1390,\"\"))","v":""},{"$f":"IF(W1390=\"\",\"\",IF(W1390=Y1390,Z1390,\"\"))","v":""},{"$f":"IF(W1390=\"\",\"\",IF(W1390<Y1390,V1390,IF(W1390=Y1390,\"\",Z1390)))","v":""},{"$f":"CONCATENATE(AE1390,AH1390)","v":""}]
[null,null,null,null,null,null,null,null,null,null,null,null,null,null,null,null,null,"#G7",null,null,null,{"$f":"Z1381","v":"O"},null,"-",null,{"$f":"V1379","v":"K"},null,0,"-",0,"","","","",""]
[null,null,null,null,null,null,null,null,null,null,null,null,null,null,null,null,null,"#G7",null,null,null,"Q",null,"-",null,"I",null,0,"-",0,"","","","",""]
[null,null,null,null,null,null,null,null,null,null,null,null,null,null,null,null,null,"#G7",null,null,null,"R",null,"-",null,"G",null,0,"-",0,"","","","",""]
[null,null,null,null,null,null,null,null,null,null,null,null,null,null,null,null,null,"#G7",null,null,null,"P",null,"-",null,"E",null,0,"-",0,"","","","",""]
[null,null,null,null,null,null,null,null,null,null,null,null,null,null,null,null,null,"#G7",null,null,null,"N",null,"-",null,"C",null,0,"-",0,"","","","",""]
[null,null,null,null,null,null,null,null,null,null,null,null,null,null,null,null,null,"#G7",null,null,null,"L",null,"-",null,"B",null,0,"-",0,"","","","",""]
[null,null,null,null,null,null,null,null,null,null,null,null,null,null,null,null,null,"#G7",null,null,null,"J",null,"-",null,"D",null,0,"-",0,"","","","",""]
[null,null,null,null,null,null,null,null,null,null,null,null,null,null,null,null,null,"#G7",null,null,null,{"$f":"V1387","v":"H"},null,"-",null,{"$f":"V1386","v":"F"},null,0,"-",0,"","","","",""]
[null,null,null,null,null,null,null,null,null,null,null,null,null,null,null,null,null,null,{"$f":"S1388+1","v":8}]
[null,null,null,null,null,null,null,null,null,null,null,null,null,null,null,null,null,null,{"$f":"N_Heure","v":"Time"},{"$f":"N_Table","v":"Table"},{"$f":"N_Arbitre","v":"Referee"},{"$f":"N_Matches","v":"Matches"}]
[null,null,null,null,null,null,null,null,null,null,null,null,null,null,null,null,null,"#G8",null,null,null,{"$f":"V1391","v":"O"},null,"-",null,{"$f":"V1390","v":"A"},null,{"$f":"IF(MaxScore,MaxGoals(W1401,Y1401,MaxGoalsValue),IF(W1401=\"\",\"\",W1401))","v":0},{"$f":"IF(MaxScore,\"-\",IF(W1401=\"\",\"\",\"-\"))","v":"-"},{"$f":"IF(MaxScore,MaxGoals(Y1401,W1401,MaxGoalsValue),IF(Y1401=\"\",\"\",Y1401))","v":0},{"$f":"IF(W1401=\"\",\"\",IF(W1401>Y1401,V1401,IF(W1401=Y1401,\"\",Z1401)))","v":""},{"$f":"IF(W1401=\"\",\"\",IF(W1401=Y1401,V1401,\"\"))","v":""},{"$f":"IF(W1401=\"\",\"\",IF(W1401=Y1401,Z1401,\"\"))","v":""},{"$f":"IF(W1401=\"\",\"\",IF(W1401<Y1401,V1401,IF(W1401=Y1401,\"\",Z1401)))","v":""},{"$f":"CONCATENATE(AE1401,AH1401)","v":""}]
[null,null,null,null,null,null,null,null,null,null,null,null,null,null,null,null,null,"#G8",null,null,null,{"$f":"Z1390","v":"M"},null,"-",null,{"$f":"V1392","v":"Q"},null,0,"-",0,"","","","",""]
[null,null,null,null,null,null,null,null,null,null,null,null,null,null,null,null,null,"#G8",null,null,null,"K",null,"-",null,"R",null,0,"-",0,"","","","",""]
[null,null,null,null,null,null,null,null,null,null,null,null,null,null,null,null,null,"#G8",null,null,null,"I",null,"-",null,"P",null,0,"-",0,"","","","",""]
[null,null,null,null,null,null,null,null,null,null,null,null,null,null,null,null,null,"#G8",null,null,null,"G",null,"-",null,"N",null,0,"-",0,"","","","",""]
[null,null,null,null,null,null,null,null,null,null,null,null,null,null,null,null,null,"#G8",null,null,null,"E",null,"-",null,"L",null,0,"-",0,"","","","",""]
[null,null,null,null,null,null,null,null,null,null,null,null,null,null,null,null,null,"#G8",null,null,null,"C",null,"-",null,"J",null,0,"-",0,"","","","",""]
[null,null,null,null,null,null,null,null,null,null,null,null,null,null,null,null,null,"#G8",null,null,null,"B",null,"-",null,"H",null,0,"-",0,"","","","",""]
[null,null,null,null,null,null,null,null,null,null,null,null,null,null,null,null,null,"#G8",null,null,null,"D",null,"-",null,{"$f":"Z1398","v":"F"},null,0,"-",0,"","","","",""]
[null,null,null,null,null,null,null,null,null,null,null,null,null,null,null,null,null,null,{"$f":"S1399+1","v":9}]
[null,null,null,null,null,null,null,null,null,null,null,null,null,null,null,null,null,null,{"$f":"N_Heure","v":"Time"},{"$f":"N_Table","v":"Table"},{"$f":"N_Arbitre","v":"Referee"},{"$f":"N_Matches","v":"Matches"}]
[null,null,null,null,null,null,null,null,null,null,null,null,null,null,null,null,null,"#G9",null,null,null,{"$f":"Z1401","v":"A"},null,"-",null,{"$f":"Z1402","v":"Q"},null,{"$f":"IF(MaxScore,MaxGoals(W1412,Y1412,MaxGoalsValue),IF(W1412=\"\",\"\",W1412))","v":0},{"$f":"IF(MaxScore,\"-\",IF(W1412=\"\",\"\",\"-\"))","v":"-"},{"$f":"IF(MaxScore,MaxGoals(Y1412,W1412,MaxGoalsValue),IF(Y1412=\"\",\"\",Y1412))","v":0},{"$f":"IF(W1412=\"\",\"\",IF(W1412>Y1412,V1412,IF(W1412=Y1412,\"\",Z1412)))","v":""},{"$f":"IF(W1412=\"\",\"\",IF(W1412=Y1412,V1412,\"\"))","v":""},{"$f":"IF(W1412=\"\",\"\",IF(W1412=Y1412,Z1412,\"\"))","v":""},{"$f":"IF(W1412=\"\",\"\",IF(W1412<Y1412,V1412,IF(W1412=Y1412,\"\",Z1412)))","v":""},{"$f":"CONCATENATE(AE1412,AH1412)","v":""}]
[null,null,null,null,null,null,null,null,null,null,null,null,null,null,null,null,null,"#G9",null,null,null,{"$f":"Z1403","v":"R"},null,"-",null,{"$f":"V1401","v":"O"},null,0,"-",0,"","","","",""]
[null,null,null,null,null,null,null,null,null,null,null,null,null,null,null,null,null,"#G9",null,null,null,"P",null,"-",null,"M",null,0,"-",0,"","","","",""]
[null,null,null,null,null,null,null,null,null,null,null,null,null,null,null,null,null,"#G9",null,null,null,"N",null,"-",null,"K",null,0,"-",0,"","","","",""]
[null,null,null,null,null,null,null,null,null,null,null,null,null,null,null,null,null,"#G9",null,null,null,"L",null,"-",null,"I",null,0,"-",0,"","","","",""]
[null,null,null,null,null,null,null,null,null,null,null,null,null,null,null,null,null,"#G9",null,null,null,"J",null,"-",null,"G",null,0,"-",0,"","","","",""]
[null,null,null,null,null,null,null,null,null,null,null,null,null,null,null,null,null,"#G9",null,null,null,"H",null,"-",null,"E",null,0,"-",0,"","","","",""]
[null,null,null,null,null,null,null,null,null,null,null,null,null,null,null,null,null,"#G9",null,null,null,"F",null,"-",null,"C",null,0,"-",0,"","","","",""]
[null,null,null,null,null,null,null,null,null,null,null,null,null,null,null,null,null,"#G9",null,null,null,{"$f":"V1409","v":"D"},null,"-",null,{"$f":"V1408","v":"B"},null,0,"-",0,"","","","",""]
[null,null,null,null,null,null,null,null,null,null,null,null,null,null,null,null,null,null,{"$f":"S1410+1","v":10}]
[null,null,null,null,null,null,null,null,null,null,null,null,null,null,null,null,null,null,{"$f":"N_Heure","v":"Time"},{"$f":"N_Table","v":"Table"},{"$f":"N_Arbitre","v":"Referee"},{"$f":"N_Matches","v":"Matches"}]
[null,null,null,null,null,null,null,null,null,null,null,null,null,null,null,null,null,"#G10",null,null,null,{"$f":"V1413","v":"R"},null,"-",null,{"$f":"V1412","v":"A"},null,{"$f":"IF(MaxScore,MaxGoals(W1423,Y1423,MaxGoalsValue),IF(W1423=\"\",\"\",W1423))","v":0},{"$f":"IF(MaxScore,\"-\",IF(W1423=\"\",\"\",\"-\"))","v":"-"},{"$f":"IF(MaxScore,MaxGoals(Y1423,W1423,MaxGoalsValue),IF(Y1423=\"\",\"\",Y1423))","v":0},{"$f":"IF(W1423=\"\",\"\",IF(W1423>Y1423,V1423,IF(W1423=Y1423,\"\",Z1423)))","v":""},{"$f":"IF(W1423=\"\",\"\",IF(W1423=Y1423,V1423,\"\"))","v":""},{"$f":"IF(W1423=\"\",\"\",IF(W1423=Y1423,Z1423,\"\"))","v":""},{"$f":"IF(W1423=\"\",\"\",IF(W1423<Y1423,V1423,IF(W1423=Y1423,\"\",Z1423)))","v":""},{"$f":"CONCATENATE(AE1423,AH1423)","v":""}]
[null,null,null,null,null,null,null,null,null,null,null,null,null,null,null,null,null,"#G10",null,null,null,{"$f":"Z1412","v":"Q"},null,"-",null,{"$f":"V1414","v":"P"},null,0,"-",0,"","","","",""]
[null,null,null,null,null,null,null,null,null,null,null,null,null,null,null,null,null,"#G10",null,null,null,"O",null,"-",null,"N",null,0,"-",0,"","","","",""]
[null,null,null,null,null,null,null,null,null,null,null,null,null,null,null,null,null,"#G10",null,null,null,"M",null,"-",null,"L",null,0,"-",0,"","","","",""]
[null,null,null,null,null,null,null,null,null,null,null,null,null,null,null,null,null,"#G10",null,null,null,"K",null,"-",null,"J",null,0,"-",0,"","","","",""]
[null,null,null,null,null,null,null,null,null,null,null,null,null,null,null,null,null,"#G10",null,null,null,"I",null,"-",null,"H",null,0,"-",0,"","","","",""]
[null,null,null,null,null,null,null,null,null,null,null,null,null,null,null,null,null,"#G10",null,null,null,"G",null,"-",null,"F",null,0,"-",0,"","","","",""]
[null,null,null,null,null,null,null,null,null,null,null,null,null,null,null,null,null,"#G10",null,null,null,"E",null,"-",null,"D",null,0,"-",0,"","","","",""]
[null,null,null,null,null,null,null,null,null,null,null,null,null,null,null,null,null,"#G10",null,null,null,"C",null,"-",null,{"$f":"Z1420","v":"B"},null,0,"-",0,"","","","",""]
[null,null,null,null,null,null,null,null,null,null,null,null,null,null,null,null,null,null,{"$f":"S1421+1","v":11}]
[null,null,null,null,null,null,null,null,null,null,null,null,null,null,null,null,null,null,{"$f":"N_Heure","v":"Time"},{"$f":"N_Table","v":"Table"},{"$f":"N_Arbitre","v":"Referee"},{"$f":"N_Matches","v":"Matches"}]
[null,null,null,null,null,null,null,null,null,null,null,null,null,null,null,null,null,"#G11",null,null,null,{"$f":"Z1423","v":"A"},null,"-",null,{"$f":"Z1424","v":"P"},null,{"$f":"IF(MaxScore,MaxGoals(W1434,Y1434,MaxGoalsValue),IF(W1434=\"\",\"\",W1434))","v":0},{"$f":"IF(MaxScore,\"-\",IF(W1434=\"\",\"\",\"-\"))","v":"-"},{"$f":"IF(MaxScore,MaxGoals(Y1434,W1434,MaxGoalsValue),IF(Y1434=\"\",\"\",Y1434))","v":0},{"$f":"IF(W1434=\"\",\"\",IF(W1434>Y1434,V1434,IF(W1434=Y1434,\"\",Z1434)))","v":""},{"$f":"IF(W1434=\"\",\"\",IF(W1434=Y1434,V1434,\"\"))","v":""},{"$f":"IF(W1434=\"\",\"\",IF(W1434=Y1434,Z1434,\"\"))","v":""},{"$f":"IF(W1434=\"\",\"\",IF(W1434<Y1434,V1434,IF(W1434=Y1434,\"\",Z1434)))","v":""},{"$f":"CONCATENATE(AE1434,AH1434)","v":""}]
[null,null,null,null,null,null,null,null,null,null,null,null,null,null,null,null,null,"#G11",null,null,null,{"$f":"Z1425","v":"N"},null,"-",null,{"$f":"V1423","v":"R"},null,0,"-",0,"","","","",""]
[null,null,null,null,null,null,null,null,null,null,null,null,null,null,null,null,null,"#G11",null,null,null,"L",null,"-",null,"Q",null,0,"-",0,"","","","",""]
[null,null,null,null,null,null,null,null,null,null,null,null,null,null,null,null,null,"#G11",null,null,null,"J",null,"-",null,"O",null,0,"-",0,"","","","",""]
[null,null,null,null,null,null,null,null,null,null,null,null,null,null,null,null,null,"#G11",null,null,null,"H",null,"-",null,"M",null,0,"-",0,"","","","",""]
[null,null,null,null,null,null,null,null,null,null,null,null,null,null,null,null,null,"#G11",null,null,null,"F",null,"-",null,"K",null,0,"-",0,"","","","",""]
[null,null,null,null,null,null,null,null,null,null,null,null,null,null,null,null,null,"#G11",null,null,null,"D",null,"-",null,"I",null,0,"-",0,"","","","",""]
[null,null,null,null,null,null,null,null,null,null,null,null,null,null,null,null,null,"#G11",null,null,null,"B",null,"-",null,"G",null,0,"-",0,"","","","",""]
[null,null,null,null,null,null,null,null,null,null,null,null,null,null,null,null,null,"#G11",null,null,null,{"$f":"V1431","v":"C"},null,"-",null,{"$f":"V1430","v":"E"},null,0,"-",0,"","","","",""]
[null,null,null,null,null,null,null,null,null,null,null,null,null,null,null,null,null,null,{"$f":"S1432+1","v":12}]
[null,null,null,null,null,null,null,null,null,null,null,null,null,null,null,null,null,null,{"$f":"N_Heure","v":"Time"},{"$f":"N_Table","v":"Table"},{"$f":"N_Arbitre","v":"Referee"},{"$f":"N_Matches","v":"Matches"}]
[null,null,null,null,null,null,null,null,null,null,null,null,null,null,null,null,null,"#G12",null,null,null,{"$f":"V1435","v":"N"},null,"-",null,{"$f":"V1434","v":"A"},null,{"$f":"IF(MaxScore,MaxGoals(W1445,Y1445,MaxGoalsValue),IF(W1445=\"\",\"\",W1445))","v":0},{"$f":"IF(MaxScore,\"-\",IF(W1445=\"\",\"\",\"-\"))","v":"-"},{"$f":"IF(MaxScore,MaxGoals(Y1445,W1445,MaxGoalsValue),IF(Y1445=\"\",\"\",Y1445))","v":0},{"$f":"IF(W1445=\"\",\"\",IF(W1445>Y1445,V1445,IF(W1445=Y1445,\"\",Z1445)))","v":""},{"$f":"IF(W1445=\"\",\"\",IF(W1445=Y1445,V1445,\"\"))","v":""},{"$f":"IF(W1445=\"\",\"\",IF(W1445=Y1445,Z1445,\"\"))","v":""},{"$f":"IF(W1445=\"\",\"\",IF(W1445<Y1445,V1445,IF(W1445=Y1445,\"\",Z1445)))","v":""},{"$f":"CONCATENATE(AE1445,AH1445)","v":""}]
[null,null,null,null,null,null,null,null,null,null,null,null,null,null,null,null,null,"#G12",null,null,null,{"$f":"Z1434","v":"P"},null,"-",null,{"$f":"V1436","v":"L"},null,0,"-",0,"","","","",""]
[null,null,null,null,null,null,null,null,null,null,null,null,null,null,null,null,null,"#G12",null,null,null,"R",null,"-",null,"J",null,0,"-",0,"","","","",""]
[null,null,null,null,null,null,null,null,null,null,null,null,null,null,null,null,null,"#G12",null,null,null,"Q",null,"-",null,"H",null,0,"-",0,"","","","",""]
[null,null,null,null,null,null,null,null,null,null,null,null,null,null,null,null,null,"#G12",null,null,null,"O",null,"-",null,"F",null,0,"-",0,"","","","",""]
[null,null,null,null,null,null,null,null,null,null,null,null,null,null,null,null,null,"#G12",null,null,null,"M",null,"-",null,"D",null,0,"-",0,"","","","",""]
[null,null,null,null,null,null,null,null,null,null,null,null,null,null,null,null,null,"#G12",null,null,null,"K",null,"-",null,"B",null,0,"-",0,"","","","",""]
[null,null,null,null,null,null,null,null,null,null,null,null,null,null,null,null,null,"#G12",null,null,null,"I",null,"-",null,"C",null,0,"-",0,"","","","",""]
[null,null,null,null,null,null,null,null,null,null,null,null,null,null,null,null,null,"#G12",null,null,null,"G",null,"-",null,{"$f":"Z1442","v":"E"},null,0,"-",0,"","","","",""]
[null,null,null,null,null,null,null,null,null,null,null,null,null,null,null,null,null,null,{"$f":"S1443+1","v":13}]
[null,null,null,null,null,null,null,null,null,null,null,null,null,null,null,null,null,null,{"$f":"N_Heure","v":"Time"},{"$f":"N_Table","v":"Table"},{"$f":"N_Arbitre","v":"Referee"},{"$f":"N_Matches","v":"Matches"}]
[null,null,null,null,null,null,null,null,null,null,null,null,null,null,null,null,null,"#G13",null,null,null,{"$f":"Z1445","v":"A"},null,"-",null,{"$f":"Z1446","v":"L"},null,{"$f":"IF(MaxScore,MaxGoals(W1456,Y1456,MaxGoalsValue),IF(W1456=\"\",\"\",W1456))","v":0},{"$f":"IF(MaxScore,\"-\",IF(W1456=\"\",\"\",\"-\"))","v":"-"},{"$f":"IF(MaxScore,MaxGoals(Y1456,W1456,MaxGoalsValue),IF(Y1456=\"\",\"\",Y1456))","v":0},{"$f":"IF(W1456=\"\",\"\",IF(W1456>Y1456,V1456,IF(W1456=Y1456,\"\",Z1456)))","v":""},{"$f":"IF(W1456=\"\",\"\",IF(W1456=Y1456,V1456,\"\"))","v":""},{"$f":"IF(W1456=\"\",\"\",IF(W1456=Y1456,Z1456,\"\"))","v":""},{"$f":"IF(W1456=\"\",\"\",IF(W1456<Y1456,V1456,IF(W1456=Y1456,\"\",Z1456)))","v":""},{"$f":"CONCATENATE(AE1456,AH1456)","v":""}]
[null,null,null,null,null,null,null,null,null,null,null,null,null,null,null,null,null,"#G13",null,null,null,{"$f":"Z1447","v":"J"},null,"-",null,{"$f":"V1445","v":"N"},null,0,"-",0,"","","","",""]
[null,null,null,null,null,null,null,null,null,null,null,null,null,null,null,null,null,"#G13",null,null,null,"H",null,"-",null,"P",null,0,"-",0,"","","","",""]
[null,null,null,null,null,null,null,null,null,null,null,null,null,null,null,null,null,"#G13",null,null,null,"F",null,"-",null,"R",null,0,"-",0,"","","","",""]
[null,null,null,null,null,null,null,null,null,null,null,null,null,null,null,null,null,"#G13",null,null,null,"D",null,"-",null,"Q",null,0,"-",0,"","","","",""]
[null,null,null,null,null,null,null,null,null,null,null,null,null,null,null,null,null,"#G13",null,null,null,"B",null,"-",null,"O",null,0,"-",0,"","","","",""]
[null,null,null,null,null,null,null,null,null,null,null,null,null,null,null,null,null,"#G13",null,null,null,"C",null,"-",null,"M",null,0,"-",0,"","","","",""]
[null,null,null,null,null,null,null,null,null,null,null,null,null,null,null,null,null,"#G13",null,null,null,"E",null,"-",null,"K",null,0,"-",0,"","","","",""]
[null,null,null,null,null,null,null,null,null,null,null,null,null,null,null,null,null,"#G13",null,null,null,{"$f":"V1453","v":"G"},null,"-",null,{"$f":"V1452","v":"I"},null,0,"-",0,"","","","",""]
[null,null,null,null,null,null,null,null,null,null,null,null,null,null,null,null,null,null,{"$f":"S1454+1","v":14}]
[null,null,null,null,null,null,null,null,null,null,null,null,null,null,null,null,null,null,{"$f":"N_Heure","v":"Time"},{"$f":"N_Table","v":"Table"},{"$f":"N_Arbitre","v":"Referee"},{"$f":"N_Matches","v":"Matches"}]
[null,null,null,null,null,null,null,null,null,null,null,null,null,null,null,null,null,"#G14",null,null,null,{"$f":"V1457","v":"J"},null,"-",null,{"$f":"V1456","v":"A"},null,{"$f":"IF(MaxScore,MaxGoals(W1467,Y1467,MaxGoalsValue),IF(W1467=\"\",\"\",W1467))","v":0},{"$f":"IF(MaxScore,\"-\",IF(W1467=\"\",\"\",\"-\"))","v":"-"},{"$f":"IF(MaxScore,MaxGoals(Y1467,W1467,MaxGoalsValue),IF(Y1467=\"\",\"\",Y1467))","v":0},{"$f":"IF(W1467=\"\",\"\",IF(W1467>Y1467,V1467,IF(W1467=Y1467,\"\",Z1467)))","v":""},{"$f":"IF(W1467=\"\",\"\",IF(W1467=Y1467,V1467,\"\"))","v":""},{"$f":"IF(W1467=\"\",\"\",IF(W1467=Y1467,Z1467,\"\"))","v":""},{"$f":"IF(W1467=\"\",\"\",IF(W1467<Y1467,V1467,IF(W1467=Y1467,\"\",Z1467)))","v":""},{"$f":"CONCATENATE(AE1467,AH1467)","v":""}]
[null,null,null,null,null,null,null,null,null,null,null,null,null,null,null,null,null,"#G14",null,null,null,{"$f":"Z1456","v":"L"},null,"-",null,{"$f":"V1458","v":"H"},null,0,"-",0,"","","","",""]
[null,null,null,null,null,null,null,null,null,null,null,null,null,null,null,null,null,"#G14",null,null,null,"N",null,"-",null,"F",null,0,"-",0,"","","","",""]
[null,null,null,null,null,null,null,null,null,null,null,null,null,null,null,null,null,"#G14",null,null,null,"P",null,"-",null,"D",null,0,"-",0,"","","","",""]
[null,null,null,null,null,null,null,null,null,null,null,null,null,null,null,null,null,"#G14",null,null,null,"R",null,"-",null,"B",null,0,"-",0,"","","","",""]
[null,null,null,null,null,null,null,null,null,null,null,null,null,null,null,null,null,"#G14",null,null,null,"Q",null,"-",null,"C",null,0,"-",0,"","","","",""]
[null,null,null,null,null,null,null,null,null,null,null,null,null,null,null,null,null,"#G14",null,null,null,"O",null,"-",null,"E",null,0,"-",0,"","","","",""]
[null,null,null,null,null,null,null,null,null,null,null,null,null,null,null,null,null,"#G14",null,null,null,"M",null,"-",null,"G",null,0,"-",0,"","","","",""]
[null,null,null,null,null,null,null,null,null,null,null,null,null,null,null,null,null,"#G14",null,null,null,"K",null,"-",null,{"$f":"Z1464","v":"I"},null,0,"-",0,"","","","",""]
[null,null,null,null,null,null,null,null,null,null,null,null,null,null,null,null,null,null,{"$f":"S1465+1","v":15}]
[null,null,null,null,null,null,null,null,null,null,null,null,null,null,null,null,null,null,{"$f":"N_Heure","v":"Time"},{"$f":"N_Table","v":"Table"},{"$f":"N_Arbitre","v":"Referee"},{"$f":"N_Matches","v":"Matches"}]
[null,null,null,null,null,null,null,null,null,null,null,null,null,null,null,null,null,"#G15",null,null,null,{"$f":"Z1467","v":"A"},null,"-",null,{"$f":"Z1468","v":"H"},null,{"$f":"IF(MaxScore,MaxGoals(W1478,Y1478,MaxGoalsValue),IF(W1478=\"\",\"\",W1478))","v":0},{"$f":"IF(MaxScore,\"-\",IF(W1478=\"\",\"\",\"-\"))","v":"-"},{"$f":"IF(MaxScore,MaxGoals(Y1478,W1478,MaxGoalsValue),IF(Y1478=\"\",\"\",Y1478))","v":0},{"$f":"IF(W1478=\"\",\"\",IF(W1478>Y1478,V1478,IF(W1478=Y1478,\"\",Z1478)))","v":""},{"$f":"IF(W1478=\"\",\"\",IF(W1478=Y1478,V1478,\"\"))","v":""},{"$f":"IF(W1478=\"\",\"\",IF(W1478=Y1478,Z1478,\"\"))","v":""},{"$f":"IF(W1478=\"\",\"\",IF(W1478<Y1478,V1478,IF(W1478=Y1478,\"\",Z1478)))","v":""},{"$f":"CONCATENATE(AE1478,AH1478)","v":""}]
[null,null,null,null,null,null,null,null,null,null,null,null,null,null,null,null,null,"#G15",null,null,null,{"$f":"Z1469","v":"F"},null,"-",null,{"$f":"V1467","v":"J"},null,0,"-",0,"","","","",""]
[null,null,null,null,null,null,null,null,null,null,null,null,null,null,null,null,null,"#G15",null,null,null,"D",null,"-",null,"L",null,0,"-",0,"","","","",""]
[null,null,null,null,null,null,null,null,null,null,null,null,null,null,null,null,null,"#G15",null,null,null,"B",null,"-",null,"N",null,0,"-",0,"","","","",""]
[null,null,null,null,null,null,null,null,null,null,null,null,null,null,null,null,null,"#G15",null,null,null,"C",null,"-",null,"P",null,0,"-",0,"","","","",""]
[null,null,null,null,null,null,null,null,null,null,null,null,null,null,null,null,null,"#G15",null,null,null,"E",null,"-",null,"R",null,0,"-",0,"","","","",""]
[null,null,null,null,null,null,null,null,null,null,null,null,null,null,null,null,null,"#G15",null,null,null,"G",null,"-",null,"Q",null,0,"-",0,"","","","",""]
[null,null,null,null,null,null,null,null,null,null,null,null,null,null,null,null,null,"#G15",null,null,null,"I",null,"-",null,"O",null,0,"-",0,"","","","",""]
[null,null,null,null,null,null,null,null,null,null,null,null,null,null,null,null,null,"#G15",null,null,null,{"$f":"V1475","v":"K"},null,"-",null,{"$f":"V1474","v":"M"},null,0,"-",0,"","","","",""]
[null,null,null,null,null,null,null,null,null,null,null,null,null,null,null,null,null,null,{"$f":"S1476+1","v":16}]
[null,null,null,null,null,null,null,null,null,null,null,null,null,null,null,null,null,null,{"$f":"N_Heure","v":"Time"},{"$f":"N_Table","v":"Table"},{"$f":"N_Arbitre","v":"Referee"},{"$f":"N_Matches","v":"Matches"}]
[null,null,null,null,null,null,null,null,null,null,null,null,null,null,null,null,null,"#G16",null,null,null,{"$f":"V1479","v":"F"},null,"-",null,{"$f":"V1478","v":"A"},null,{"$f":"IF(MaxScore,MaxGoals(W1489,Y1489,MaxGoalsValue),IF(W1489=\"\",\"\",W1489))","v":0},{"$f":"IF(MaxScore,\"-\",IF(W1489=\"\",\"\",\"-\"))","v":"-"},{"$f":"IF(MaxScore,MaxGoals(Y1489,W1489,MaxGoalsValue),IF(Y1489=\"\",\"\",Y1489))","v":0},{"$f":"IF(W1489=\"\",\"\",IF(W1489>Y1489,V1489,IF(W1489=Y1489,\"\",Z1489)))","v":""},{"$f":"IF(W1489=\"\",\"\",IF(W1489=Y1489,V1489,\"\"))","v":""},{"$f":"IF(W1489=\"\",\"\",IF(W1489=Y1489,Z1489,\"\"))","v":""},{"$f":"IF(W1489=\"\",\"\",IF(W1489<Y1489,V1489,IF(W1489=Y1489,\"\",Z1489)))","v":""},{"$f":"CONCATENATE(AE1489,AH1489)","v":""}]
[null,null,null,null,null,null,null,null,null,null,null,null,null,null,null,null,null,"#G16",null,null,null,{"$f":"Z1478","v":"H"},null,"-",null,{"$f":"V1480","v":"D"},null,0,"-",0,"","","","",""]
[null,null,null,null,null,null,null,null,null,null,null,null,null,null,null,null,null,"#G16",null,null,null,"J",null,"-",null,"B",null,0,"-",0,"","","","",""]
[null,null,null,null,null,null,null,null,null,null,null,null,null,null,null,null,null,"#G16",null,null,null,"L",null,"-",null,"C",null,0,"-",0,"","","","",""]
[null,null,null,null,null,null,null,null,null,null,null,null,null,null,null,null,null,"#G16",null,null,null,"N",null,"-",null,"E",null,0,"-",0,"","","","",""]
[null,null,null,null,null,null,null,null,null,null,null,null,null,null,null,null,null,"#G16",null,null,null,"P",null,"-",null,"G",null,0,"-",0,"","","","",""]
[null,null,null,null,null,null,null,null,null,null,null,null,null,null,null,null,null,"#G16",null,null,null,"R",null,"-",null,"I",null,0,"-",0,"","","","",""]
[null,null,null,null,null,null,null,null,null,null,null,null,null,null,null,null,null,"#G16",null,null,null,"Q",null,"-",null,"K",null,0,"-",0,"","","","",""]
[null,null,null,null,null,null,null,null,null,null,null,null,null,null,null,null,null,"#G16",null,null,null,"O",null,"-",null,{"$f":"Z1486","v":"M"},null,0,"-",0,"","","","",""]
[null,null,null,null,null,null,null,null,null,null,null,null,null,null,null,null,null,null,{"$f":"S1487+1","v":17}]
[null,null,null,null,null,null,null,null,null,null,null,null,null,null,null,null,null,null,{"$f":"N_Heure","v":"Time"},{"$f":"N_Table","v":"Table"},{"$f":"N_Arbitre","v":"Referee"},{"$f":"N_Matches","v":"Matches"}]
[null,null,null,null,null,null,null,null,null,null,null,null,null,null,null,null,null,"#G17",null,null,null,{"$f":"Z1489","v":"A"},null,"-",null,{"$f":"Z1490","v":"D"},null,{"$f":"IF(MaxScore,MaxGoals(W1500,Y1500,MaxGoalsValue),IF(W1500=\"\",\"\",W1500))","v":0},{"$f":"IF(MaxScore,\"-\",IF(W1500=\"\",\"\",\"-\"))","v":"-"},{"$f":"IF(MaxScore,MaxGoals(Y1500,W1500,MaxGoalsValue),IF(Y1500=\"\",\"\",Y1500))","v":0},{"$f":"IF(W1500=\"\",\"\",IF(W1500>Y1500,V1500,IF(W1500=Y1500,\"\",Z1500)))","v":""},{"$f":"IF(W1500=\"\",\"\",IF(W1500=Y1500,V1500,\"\"))","v":""},{"$f":"IF(W1500=\"\",\"\",IF(W1500=Y1500,Z1500,\"\"))","v":""},{"$f":"IF(W1500=\"\",\"\",IF(W1500<Y1500,V1500,IF(W1500=Y1500,\"\",Z1500)))","v":""},{"$f":"CONCATENATE(AE1500,AH1500)","v":""}]
[null,null,null,null,null,null,null,null,null,null,null,null,null,null,null,null,null,"#G17",null,null,null,{"$f":"Z1491","v":"B"},null,"-",null,{"$f":"V1489","v":"F"},null,0,"-",0,"","","","",""]
[null,null,null,null,null,null,null,null,null,null,null,null,null,null,null,null,null,"#G17",null,null,null,"C",null,"-",null,"H",null,0,"-",0,"","","","",""]
[null,null,null,null,null,null,null,null,null,null,null,null,null,null,null,null,null,"#G17",null,null,null,"E",null,"-",null,"J",null,0,"-",0,"","","","",""]
[null,null,null,null,null,null,null,null,null,null,null,null,null,null,null,null,null,"#G17",null,null,null,"G",null,"-",null,"L",null,0,"-",0,"","","","",""]
[null,null,null,null,null,null,null,null,null,null,null,null,null,null,null,null,null,"#G17",null,null,null,"I",null,"-",null,"N",null,0,"-",0,"","","","",""]
[null,null,null,null,null,null,null,null,null,null,null,null,null,null,null,null,null,"#G17",null,null,null,"K",null,"-",null,"P",null,0,"-",0,"","","","",""]
[null,null,null,null,null,null,null,null,null,null,null,null,null,null,null,null,null,"#G17",null,null,null,"M",null,"-",null,"R",null,0,"-",0,"","","","",""]
[null,null,null,null,null,null,null,null,null,null,null,null,null,null,null,null,null,"#G17",null,null,null,{"$f":"V1497","v":"O"},null,"-",null,{"$f":"V1496","v":"Q"},null,0,"-",0,"","","","",""]
[]
[null,{"$f":"N_Group_19","v":"Group of 19"},null,null,null,null,null,null,null,null,null,null,null,null,null,null,null,null,null,null,null,null,null,null,null,null,null,null,null,null,null,null,null,null,null,null,null,null,{"$f":"B1510","v":"Group of 19"}]
[]
[null,{"$f":"N_Tirage","v":"Draw"},"Cla.","Cla1","Part","Cla2",{"$f":"N_Joueurs","v":"Players"},{"$f":"N_RankPoints","v":"Rk Pt."},{"$f":"N_Diff_Part","v":"Part-Diff"},"Pts","J","G","N","P","BP","BC","Diff",null,null,null,null,null,null,null,null,null,null,null,null,null,{"$f":"N_G","v":"W"},{"$f":"N_N","v":"D"},{"$f":"N_N","v":"D"},{"$f":"N_P","v":"L"},"CONCAT","Ref Group",{"$f":"IF(COUNTA(W1534:W1740)=0,\"\",\"OK\")","v":""},null,null,{"$f":"N_Cla.","v":"Rk"},{"$f":"N_Joueurs","v":"Players"},{"$f":"N_Pts","v":"Pts"},{"$f":"N_J","v":"Pld"},{"$f":"N_G","v":"W"},{"$f":"N_N","v":"D"},{"$f":"N_P","v":"L"},{"$f":"N_BP","v":"F"},{"$f":"N_BC","v":"A"},{"$f":"N_Diff.","v":"SO"}]
[null,1,{"$f":"IF(AK1512=\"\",\"\",RANK(F1513,F1513:F1531)*1000+ROW())","v":""},{"$f":"IF(L1513=\"\",\"\",CritClassInd1_Points*J1513+CritClassInd1_Matches*L1513+CritClassInd1_Attaque*O1513+CritClassInd1_DiffButs*Q1513)","v":""},{"$f":"IF(L1513=\"\",\"\",Nb_Diff_Part(D1513,D1513:D1531,G1513,G1513:G1531,AI1534:AI1740)*CritClassInd_DiffPart+Nb_Goal_Part(D1513,D1513:D1531,G1513,G1513:G1531,V1534:Z1740)*CritClassInd_GoalPart+Nb_Score_Part(D1513,D1513:D1531,G1513,G1513:G1531,V1534:Z1740)*CritClassInd_ScorePart)","v":""},{"$f":"IF(L1513=\"\",\"\",D1513+E1513+CritClassInd2_Points*J1513+CritClassInd2_Matches*L1513+CritClassInd2_Attaque*O1513+CritClassInd2_DiffButs*Q1513+CritClassInd_Ranking*H1513+I1513)","v":""},"A",{"$f":"GMFTRANKINGPOINTS(G1513,Particular_Category)","v":0},null,{"$f":"IF(AK1512=\"\",\"\",(L1513*Points_Victoire)+M1513*Points_Null)","v":""},{"$f":"IF(L1513=\"\",\"\",SUM(L1513:N1513))","v":""},{"$f":"IF(AK1512=\"\",\"\",COUNTIF(AE1534:AE1740,G1513))","v":""},{"$f":"IF(AK1512=\"\",\"\",COUNTIF(AF1534:AG1740,G1513))","v":""},{"$f":"IF(AK1512=\"\",\"\",COUNTIF(AH1534:AH1740,G1513))","v":""},{"$f":"IF(AK1512=\"\",\"\",SUMIF(V1534:V1740,G1513,AB1534:AB1740)+SUMIF(Z1534:Z1740,G1513,AD1534:AD1740))","v":""},{"$f":"IF(AK1512=\"\",\"\",SUMIF(V1534:V1740,G1513,AD1534:AD1740)+SUMIF(Z1534:Z1740,G1513,AB1534:AB1740))","v":""},{"$f":"IF(AK1512=\"\",\"\",O1513-P1513)","v":""},null,null,null,null,null,null,null,null,null,null,null,null,null,null,null,null,null,null,null,{"$f":"IF(AK1512=\"\",\"\",SMALL(C1513:C1531,1))","v":""},null,null,{"$f":"IF(AK1512=\"\",\"\",INT(AK1513/1000))","v":""},{"$f":"IF(AK1512=\"\",\"\",VLOOKUP(AK1513,C1513:Q1531,5,FALSE))","v":""},{"$f":"VLOOKUP(AK1513,C1513:Q1531,8,FALSE)","v":""},{"$f":"VLOOKUP(AK1513,C1513:Q1531,9,FALSE)","v":""},{"$f":"VLOOKUP(AK1513,C1513:Q1531,10,FALSE)","v":""},{"$f":"VLOOKUP(AK1513,C1513:Q1531,11,FALSE)","v":""},{"$f":"VLOOKUP(AK1513,C1513:Q1531,12,FALSE)","v":""},{"$f":"VLOOKUP(AK1513,C1513:Q1531,13,FALSE)","v":""},{"$f":"VLOOKUP(AK1513,C1513:Q1531,14,FALSE)","v":""},{"$f":"VLOOKUP(AK1513,C1513:Q1531,15,FALSE)","v":""}]
[null,2,{"$f":"IF(AK1512=\"\",\"\",RANK(F1514,F1513:F1531)*1000+ROW())","v":""},{"$f":"IF(L1514=\"\",\"\",CritClassInd1_Points*J1514+CritClassInd1_Matches*L1514+CritClassInd1_Attaque*O1514+CritClassInd1_DiffButs*Q1514)","v":""},{"$f":"IF(L1514=\"\",\"\",Nb_Diff_Part(D1514,D1513:D1531,G1514,G1513:G1531,AI1534:AI1740)*CritClassInd_DiffPart+Nb_Goal_Part(D1514,D1513:D1531,G1514,G1513:G1531,V1534:Z1740)*CritClassInd_GoalPart+Nb_Score_Part(D1514,D1513:D1531,G1514,G1513:G1531,V1534:Z1740)*CritClassInd_ScorePart)","v":""},{"$f":"IF(L1514=\"\",\"\",D1514+E1514+CritClassInd2_Points*J1514+CritClassInd2_Matches*L1514+CritClassInd2_Attaque*O1514+CritClassInd2_DiffButs*Q1514+CritClassInd_Ranking*H1514+I1514)","v":""},"B",0,null,{"$f":"IF(AK1512=\"\",\"\",(L1514*Points_Victoire)+M1514*Points_Null)","v":""},"",{"$f":"IF(AK1512=\"\",\"\",COUNTIF(AE1534:AE1740,G1514))","v":""},{"$f":"IF(AK1512=\"\",\"\",COUNTIF(AF1534:AG1740,G1514))","v":""},{"$f":"IF(AK1512=\"\",\"\",COUNTIF(AH1534:AH1740,G1514))","v":""},{"$f":"IF(AK1512=\"\",\"\",SUMIF(V1534:V1740,G1514,AB1534:AB1740)+SUMIF(Z1534:Z1740,G1514,AD1534:AD1740))","v":""},{"$f":"IF(AK1512=\"\",\"\",SUMIF(V1534:V1740,G1514,AD1534:AD1740)+SUMIF(Z1534:Z1740,G1514,AB1534:AB1740))","v":""},{"$f":"IF(AK1512=\"\",\"\",O1514-P1514)","v":""},null,null,null,null,null,null,null,null,null,null,null,null,null,null,null,null,null,null,null,{"$f":"IF(AK1512=\"\",\"\",SMALL(C1513:C1531,2))","v":""},null,null,{"$f":"IF(AK1512=\"\",\"\",INT(AK1514/1000))","v":""},{"$f":"IF(AK1512=\"\",\"\",VLOOKUP(AK1514,C1513:Q1531,5,FALSE))","v":""},{"$f":"VLOOKUP(AK1514,C1513:Q1531,8,FALSE)","v":""},{"$f":"VLOOKUP(AK1514,C1513:Q1531,9,FALSE)","v":""},{"$f":"VLOOKUP(AK1514,C1513:Q1531,10,FALSE)","v":""},{"$f":"VLOOKUP(AK1514,C1513:Q1531,11,FALSE)","v":""},{"$f":"VLOOKUP(AK1514,C1513:Q1531,12,FALSE)","v":""},{"$f":"VLOOKUP(AK1514,C1513:Q1531,13,FALSE)","v":""},{"$f":"VLOOKUP(AK1514,C1513:Q1531,14,FALSE)","v":""},{"$f":"VLOOKUP(AK1514,C1513:Q1531,15,FALSE)","v":""}]
[null,3,{"$f":"IF(AK1512=\"\",\"\",RANK(F1515,F1513:F1531)*1000+ROW())","v":""},"",{"$f":"IF(L1515=\"\",\"\",Nb_Diff_Part(D1515,D1513:D1531,G1515,G1513:G1531,AI1534:AI1740)*CritClassInd_DiffPart+Nb_Goal_Part(D1515,D1513:D1531,G1515,G1513:G1531,V1534:Z1740)*CritClassInd_GoalPart+Nb_Score_Part(D1515,D1513:D1531,G1515,G1513:G1531,V1534:Z1740)*CritClassInd_ScorePart)","v":""},"","C",0,null,{"$f":"IF(AK1512=\"\",\"\",(L1515*Points_Victoire)+M1515*Points_Null)","v":""},"",{"$f":"IF(AK1512=\"\",\"\",COUNTIF(AE1534:AE1740,G1515))","v":""},{"$f":"IF(AK1512=\"\",\"\",COUNTIF(AF1534:AG1740,G1515))","v":""},{"$f":"IF(AK1512=\"\",\"\",COUNTIF(AH1534:AH1740,G1515))","v":""},{"$f":"IF(AK1512=\"\",\"\",SUMIF(V1534:V1740,G1515,AB1534:AB1740)+SUMIF(Z1534:Z1740,G1515,AD1534:AD1740))","v":""},{"$f":"IF(AK1512=\"\",\"\",SUMIF(V1534:V1740,G1515,AD1534:AD1740)+SUMIF(Z1534:Z1740,G1515,AB1534:AB1740))","v":""},{"$f":"IF(AK1512=\"\",\"\",O1515-P1515)","v":""},null,null,null,null,null,null,null,null,null,null,null,null,null,null,null,null,null,null,null,{"$f":"IF(AK1512=\"\",\"\",SMALL(C1513:C1531,3))","v":""},null,null,{"$f":"IF(AK1512=\"\",\"\",INT(AK1515/1000))","v":""},{"$f":"IF(AK1512=\"\",\"\",VLOOKUP(AK1515,C1513:Q1531,5,FALSE))","v":""},{"$f":"VLOOKUP(AK1515,C1513:Q1531,8,FALSE)","v":""},{"$f":"VLOOKUP(AK1515,C1513:Q1531,9,FALSE)","v":""},{"$f":"VLOOKUP(AK1515,C1513:Q1531,10,FALSE)","v":""},{"$f":"VLOOKUP(AK1515,C1513:Q1531,11,FALSE)","v":""},{"$f":"VLOOKUP(AK1515,C1513:Q1531,12,FALSE)","v":""},{"$f":"VLOOKUP(AK1515,C1513:Q1531,13,FALSE)","v":""},{"$f":"VLOOKUP(AK1515,C1513:Q1531,14,FALSE)","v":""},{"$f":"VLOOKUP(AK1515,C1513:Q1531,15,FALSE)","v":""}]
[null,4,{"$f":"IF(AK1512=\"\",\"\",RANK(F1516,F1513:F1531)*1000+ROW())","v":""},"",{"$f":"IF(L1516=\"\",\"\",Nb_Diff_Part(D1516,D1513:D1531,G1516,G1513:G1531,AI1534:AI1740)*CritClassInd_DiffPart+Nb_Goal_Part(D1516,D1513:D1531,G1516,G1513:G1531,V1534:Z1740)*CritClassInd_GoalPart+Nb_Score_Part(D1516,D1513:D1531,G1516,G1513:G1531,V1534:Z1740)*CritClassInd_ScorePart)","v":""},"","D",0,null,{"$f":"IF(AK1512=\"\",\"\",(L1516*Points_Victoire)+M1516*Points_Null)","v":""},"",{"$f":"IF(AK1512=\"\",\"\",COUNTIF(AE1534:AE1740,G1516))","v":""},{"$f":"IF(AK1512=\"\",\"\",COUNTIF(AF1534:AG1740,G1516))","v":""},{"$f":"IF(AK1512=\"\",\"\",COUNTIF(AH1534:AH1740,G1516))","v":""},{"$f":"IF(AK1512=\"\",\"\",SUMIF(V1534:V1740,G1516,AB1534:AB1740)+SUMIF(Z1534:Z1740,G1516,AD1534:AD1740))","v":""},{"$f":"IF(AK1512=\"\",\"\",SUMIF(V1534:V1740,G1516,AD1534:AD1740)+SUMIF(Z1534:Z1740,G1516,AB1534:AB1740))","v":""},{"$f":"IF(AK1512=\"\",\"\",O1516-P1516)","v":""},null,null,null,null,null,null,null,null,null,null,null,null,null,null,null,null,null,null,null,{"$f":"IF(AK1512=\"\",\"\",SMALL(C1513:C1531,4))","v":""},null,null,{"$f":"IF(AK1512=\"\",\"\",INT(AK1516/1000))","v":""},{"$f":"IF(AK1512=\"\",\"\",VLOOKUP(AK1516,C1513:Q1531,5,FALSE))","v":""},{"$f":"VLOOKUP(AK1516,C1513:Q1531,8,FALSE)","v":""},{"$f":"VLOOKUP(AK1516,C1513:Q1531,9,FALSE)","v":""},{"$f":"VLOOKUP(AK1516,C1513:Q1531,10,FALSE)","v":""},{"$f":"VLOOKUP(AK1516,C1513:Q1531,11,FALSE)","v":""},{"$f":"VLOOKUP(AK1516,C1513:Q1531,12,FALSE)","v":""},{"$f":"VLOOKUP(AK1516,C1513:Q1531,13,FALSE)","v":""},{"$f":"VLOOKUP(AK1516,C1513:Q1531,14,FALSE)","v":""},{"$f":"VLOOKUP(AK1516,C1513:Q1531,15,FALSE)","v":""}]
[null,5,{"$f":"IF(AK1512=\"\",\"\",RANK(F1517,F1513:F1531)*1000+ROW())","v":""},"",{"$f":"IF(L1517=\"\",\"\",Nb_Diff_Part(D1517,D1513:D1531,G1517,G1513:G1531,AI1534:AI1740)*CritClassInd_DiffPart+Nb_Goal_Part(D1517,D1513:D1531,G1517,G1513:G1531,V1534:Z1740)*CritClassInd_GoalPart+Nb_Score_Part(D1517,D1513:D1531,G1517,G1513:G1531,V1534:Z1740)*CritClassInd_ScorePart)","v":""},"","E",0,null,{"$f":"IF(AK1512=\"\",\"\",(L1517*Points_Victoire)+M1517*Points_Null)","v":""},"",{"$f":"IF(AK1512=\"\",\"\",COUNTIF(AE1534:AE1740,G1517))","v":""},{"$f":"IF(AK1512=\"\",\"\",COUNTIF(AF1534:AG1740,G1517))","v":""},{"$f":"IF(AK1512=\"\",\"\",COUNTIF(AH1534:AH1740,G1517))","v":""},{"$f":"IF(AK1512=\"\",\"\",SUMIF(V1534:V1740,G1517,AB1534:AB1740)+SUMIF(Z1534:Z1740,G1517,AD1534:AD1740))","v":""},{"$f":"IF(AK1512=\"\",\"\",SUMIF(V1534:V1740,G1517,AD1534:AD1740)+SUMIF(Z1534:Z1740,G1517,AB1534:AB1740))","v":""},{"$f":"IF(AK1512=\"\",\"\",O1517-P1517)","v":""},null,null,null,null,null,null,null,null,null,null,null,null,null,null,null,null,null,null,null,{"$f":"IF(AK1512=\"\",\"\",SMALL(C1513:C1531,5))","v":""},null,null,{"$f":"IF(AK1512=\"\",\"\",INT(AK1517/1000))","v":""},{"$f":"IF(AK1512=\"\",\"\",VLOOKUP(AK1517,C1513:Q1531,5,FALSE))","v":""},{"$f":"VLOOKUP(AK1517,C1513:Q1531,8,FALSE)","v":""},{"$f":"VLOOKUP(AK1517,C1513:Q1531,9,FALSE)","v":""},{"$f":"VLOOKUP(AK1517,C1513:Q1531,10,FALSE)","v":""},{"$f":"VLOOKUP(AK1517,C1513:Q1531,11,FALSE)","v":""},{"$f":"VLOOKUP(AK1517,C1513:Q1531,12,FALSE)","v":""},{"$f":"VLOOKUP(AK1517,C1513:Q1531,13,FALSE)","v":""},{"$f":"VLOOKUP(AK1517,C1513:Q1531,14,FALSE)","v":""},{"$f":"VLOOKUP(AK1517,C1513:Q1531,15,FALSE)","v":""}]
[null,6,{"$f":"IF(AK1512=\"\",\"\",RANK(F1518,F1513:F1531)*1000+ROW())","v":""},"",{"$f":"IF(L1518=\"\",\"\",Nb_Diff_Part(D1518,D1513:D1531,G1518,G1513:G1531,AI1534:AI1740)*CritClassInd_DiffPart+Nb_Goal_Part(D1518,D1513:D1531,G1518,G1513:G1531,V1534:Z1740)*CritClassInd_GoalPart+Nb_Score_Part(D1518,D1513:D1531,G1518,G1513:G1531,V1534:Z1740)*CritClassInd_ScorePart)","v":""},"","F",0,null,{"$f":"IF(AK1512=\"\",\"\",(L1518*Points_Victoire)+M1518*Points_Null)","v":""},"",{"$f":"IF(AK1512=\"\",\"\",COUNTIF(AE1534:AE1740,G1518))","v":""},{"$f":"IF(AK1512=\"\",\"\",COUNTIF(AF1534:AG1740,G1518))","v":""},{"$f":"IF(AK1512=\"\",\"\",COUNTIF(AH1534:AH1740,G1518))","v":""},{"$f":"IF(AK1512=\"\",\"\",SUMIF(V1534:V1740,G1518,AB1534:AB1740)+SUMIF(Z1534:Z1740,G1518,AD1534:AD1740))","v":""},{"$f":"IF(AK1512=\"\",\"\",SUMIF(V1534:V1740,G1518,AD1534:AD1740)+SUMIF(Z1534:Z1740,G1518,AB1534:AB1740))","v":""},{"$f":"IF(AK1512=\"\",\"\",O1518-P1518)","v":""},null,null,null,null,null,null,null,null,null,null,null,null,null,null,null,null,null,null,null,{"$f":"IF(AK1512=\"\",\"\",SMALL(C1513:C1531,6))","v":""},null,null,{"$f":"IF(AK1512=\"\",\"\",INT(AK1518/1000))","v":""},{"$f":"IF(AK1512=\"\",\"\",VLOOKUP(AK1518,C1513:Q1531,5,FALSE))","v":""},{"$f":"VLOOKUP(AK1518,C1513:Q1531,8,FALSE)","v":""},{"$f":"VLOOKUP(AK1518,C1513:Q1531,9,FALSE)","v":""},{"$f":"VLOOKUP(AK1518,C1513:Q1531,10,FALSE)","v":""},{"$f":"VLOOKUP(AK1518,C1513:Q1531,11,FALSE)","v":""},{"$f":"VLOOKUP(AK1518,C1513:Q1531,12,FALSE)","v":""},{"$f":"VLOOKUP(AK1518,C1513:Q1531,13,FALSE)","v":""},{"$f":"VLOOKUP(AK1518,C1513:Q1531,14,FALSE)","v":""},{"$f":"VLOOKUP(AK1518,C1513:Q1531,15,FALSE)","v":""}]
[null,7,{"$f":"IF(AK1512=\"\",\"\",RANK(F1519,F1513:F1531)*1000+ROW())","v":""},"",{"$f":"IF(L1519=\"\",\"\",Nb_Diff_Part(D1519,D1513:D1531,G1519,G1513:G1531,AI1534:AI1740)*CritClassInd_DiffPart+Nb_Goal_Part(D1519,D1513:D1531,G1519,G1513:G1531,V1534:Z1740)*CritClassInd_GoalPart+Nb_Score_Part(D1519,D1513:D1531,G1519,G1513:G1531,V1534:Z1740)*CritClassInd_ScorePart)","v":""},"","G",0,null,{"$f":"IF(AK1512=\"\",\"\",(L1519*Points_Victoire)+M1519*Points_Null)","v":""},"",{"$f":"IF(AK1512=\"\",\"\",COUNTIF(AE1534:AE1740,G1519))","v":""},{"$f":"IF(AK1512=\"\",\"\",COUNTIF(AF1534:AG1740,G1519))","v":""},{"$f":"IF(AK1512=\"\",\"\",COUNTIF(AH1534:AH1740,G1519))","v":""},{"$f":"IF(AK1512=\"\",\"\",SUMIF(V1534:V1740,G1519,AB1534:AB1740)+SUMIF(Z1534:Z1740,G1519,AD1534:AD1740))","v":""},{"$f":"IF(AK1512=\"\",\"\",SUMIF(V1534:V1740,G1519,AD1534:AD1740)+SUMIF(Z1534:Z1740,G1519,AB1534:AB1740))","v":""},{"$f":"IF(AK1512=\"\",\"\",O1519-P1519)","v":""},null,null,null,null,null,null,null,null,null,null,null,null,null,null,null,null,null,null,null,{"$f":"IF(AK1512=\"\",\"\",SMALL(C1513:C1531,7))","v":""},null,null,{"$f":"IF(AK1512=\"\",\"\",INT(AK1519/1000))","v":""},{"$f":"IF(AK1512=\"\",\"\",VLOOKUP(AK1519,C1513:Q1531,5,FALSE))","v":""},{"$f":"VLOOKUP(AK1519,C1513:Q1531,8,FALSE)","v":""},{"$f":"VLOOKUP(AK1519,C1513:Q1531,9,FALSE)","v":""},{"$f":"VLOOKUP(AK1519,C1513:Q1531,10,FALSE)","v":""},{"$f":"VLOOKUP(AK1519,C1513:Q1531,11,FALSE)","v":""},{"$f":"VLOOKUP(AK1519,C1513:Q1531,12,FALSE)","v":""},{"$f":"VLOOKUP(AK1519,C1513:Q1531,13,FALSE)","v":""},{"$f":"VLOOKUP(AK1519,C1513:Q1531,14,FALSE)","v":""},{"$f":"VLOOKUP(AK1519,C1513:Q1531,15,FALSE)","v":""}]
[null,8,{"$f":"IF(AK1512=\"\",\"\",RANK(F1520,F1513:F1531)*1000+ROW())","v":""},"",{"$f":"IF(L1520=\"\",\"\",Nb_Diff_Part(D1520,D1513:D1531,G1520,G1513:G1531,AI1534:AI1740)*CritClassInd_DiffPart+Nb_Goal_Part(D1520,D1513:D1531,G1520,G1513:G1531,V1534:Z1740)*CritClassInd_GoalPart+Nb_Score_Part(D1520,D1513:D1531,G1520,G1513:G1531,V1534:Z1740)*CritClassInd_ScorePart)","v":""},"","H",0,null,{"$f":"IF(AK1512=\"\",\"\",(L1520*Points_Victoire)+M1520*Points_Null)","v":""},"",{"$f":"IF(AK1512=\"\",\"\",COUNTIF(AE1534:AE1740,G1520))","v":""},{"$f":"IF(AK1512=\"\",\"\",COUNTIF(AF1534:AG1740,G1520))","v":""},{"$f":"IF(AK1512=\"\",\"\",COUNTIF(AH1534:AH1740,G1520))","v":""},{"$f":"IF(AK1512=\"\",\"\",SUMIF(V1534:V1740,G1520,AB1534:AB1740)+SUMIF(Z1534:Z1740,G1520,AD1534:AD1740))","v":""},{"$f":"IF(AK1512=\"\",\"\",SUMIF(V1534:V1740,G1520,AD1534:AD1740)+SUMIF(Z1534:Z1740,G1520,AB1534:AB1740))","v":""},{"$f":"IF(AK1512=\"\",\"\",O1520-P1520)","v":""},null,null,null,null,null,null,null,null,null,null,null,null,null,null,null,null,null,null,null,{"$f":"IF(AK1512=\"\",\"\",SMALL(C1513:C1531,8))","v":""},null,null,{"$f":"IF(AK1512=\"\",\"\",INT(AK1520/1000))","v":""},{"$f":"IF(AK1512=\"\",\"\",VLOOKUP(AK1520,C1513:Q1531,5,FALSE))","v":""},{"$f":"VLOOKUP(AK1520,C1513:Q1531,8,FALSE)","v":""},{"$f":"VLOOKUP(AK1520,C1513:Q1531,9,FALSE)","v":""},{"$f":"VLOOKUP(AK1520,C1513:Q1531,10,FALSE)","v":""},{"$f":"VLOOKUP(AK1520,C1513:Q1531,11,FALSE)","v":""},{"$f":"VLOOKUP(AK1520,C1513:Q1531,12,FALSE)","v":""},{"$f":"VLOOKUP(AK1520,C1513:Q1531,13,FALSE)","v":""},{"$f":"VLOOKUP(AK1520,C1513:Q1531,14,FALSE)","v":""},{"$f":"VLOOKUP(AK1520,C1513:Q1531,15,FALSE)","v":""}]
[null,9,{"$f":"IF(AK1512=\"\",\"\",RANK(F1521,F1513:F1531)*1000+ROW())","v":""},"",{"$f":"IF(L1521=\"\",\"\",Nb_Diff_Part(D1521,D1513:D1531,G1521,G1513:G1531,AI1534:AI1740)*CritClassInd_DiffPart+Nb_Goal_Part(D1521,D1513:D1531,G1521,G1513:G1531,V1534:Z1740)*CritClassInd_GoalPart+Nb_Score_Part(D1521,D1513:D1531,G1521,G1513:G1531,V1534:Z1740)*CritClassInd_ScorePart)","v":""},"","I",0,null,{"$f":"IF(AK1512=\"\",\"\",(L1521*Points_Victoire)+M1521*Points_Null)","v":""},"",{"$f":"IF(AK1512=\"\",\"\",COUNTIF(AE1534:AE1740,G1521))","v":""},{"$f":"IF(AK1512=\"\",\"\",COUNTIF(AF1534:AG1740,G1521))","v":""},{"$f":"IF(AK1512=\"\",\"\",COUNTIF(AH1534:AH1740,G1521))","v":""},{"$f":"IF(AK1512=\"\",\"\",SUMIF(V1534:V1740,G1521,AB1534:AB1740)+SUMIF(Z1534:Z1740,G1521,AD1534:AD1740))","v":""},{"$f":"IF(AK1512=\"\",\"\",SUMIF(V1534:V1740,G1521,AD1534:AD1740)+SUMIF(Z1534:Z1740,G1521,AB1534:AB1740))","v":""},{"$f":"IF(AK1512=\"\",\"\",O1521-P1521)","v":""},null,null,null,null,null,null,null,null,null,null,null,null,null,null,null,null,null,null,null,{"$f":"IF(AK1512=\"\",\"\",SMALL(C1513:C1531,9))","v":""},null,null,{"$f":"IF(AK1512=\"\",\"\",INT(AK1521/1000))","v":""},{"$f":"IF(AK1512=\"\",\"\",VLOOKUP(AK1521,C1513:Q1531,5,FALSE))","v":""},{"$f":"VLOOKUP(AK1521,C1513:Q1531,8,FALSE)","v":""},{"$f":"VLOOKUP(AK1521,C1513:Q1531,9,FALSE)","v":""},{"$f":"VLOOKUP(AK1521,C1513:Q1531,10,FALSE)","v":""},{"$f":"VLOOKUP(AK1521,C1513:Q1531,11,FALSE)","v":""},{"$f":"VLOOKUP(AK1521,C1513:Q1531,12,FALSE)","v":""},{"$f":"VLOOKUP(AK1521,C1513:Q1531,13,FALSE)","v":""},{"$f":"VLOOKUP(AK1521,C1513:Q1531,14,FALSE)","v":""},{"$f":"VLOOKUP(AK1521,C1513:Q1531,15,FALSE)","v":""}]
[null,10,{"$f":"IF(AK1512=\"\",\"\",RANK(F1522,F1513:F1531)*1000+ROW())","v":""},"",{"$f":"IF(L1522=\"\",\"\",Nb_Diff_Part(D1522,D1513:D1531,G1522,G1513:G1531,AI1534:AI1740)*CritClassInd_DiffPart+Nb_Goal_Part(D1522,D1513:D1531,G1522,G1513:G1531,V1534:Z1740)*CritClassInd_GoalPart+Nb_Score_Part(D1522,D1513:D1531,G1522,G1513:G1531,V1534:Z1740)*CritClassInd_ScorePart)","v":""},"","J",0,null,{"$f":"IF(AK1512=\"\",\"\",(L1522*Points_Victoire)+M1522*Points_Null)","v":""},"",{"$f":"IF(AK1512=\"\",\"\",COUNTIF(AE1534:AE1740,G1522))","v":""},{"$f":"IF(AK1512=\"\",\"\",COUNTIF(AF1534:AG1740,G1522))","v":""},{"$f":"IF(AK1512=\"\",\"\",COUNTIF(AH1534:AH1740,G1522))","v":""},{"$f":"IF(AK1512=\"\",\"\",SUMIF(V1534:V1740,G1522,AB1534:AB1740)+SUMIF(Z1534:Z1740,G1522,AD1534:AD1740))","v":""},{"$f":"IF(AK1512=\"\",\"\",SUMIF(V1534:V1740,G1522,AD1534:AD1740)+SUMIF(Z1534:Z1740,G1522,AB1534:AB1740))","v":""},{"$f":"IF(AK1512=\"\",\"\",O1522-P1522)","v":""},null,null,null,null,null,null,null,null,null,null,null,null,null,null,null,null,null,null,null,{"$f":"IF(AK1512=\"\",\"\",SMALL(C1513:C1531,10))","v":""},null,null,{"$f":"IF(AK1512=\"\",\"\",INT(AK1522/1000))","v":""},{"$f":"IF(AK1512=\"\",\"\",VLOOKUP(AK1522,C1513:Q1531,5,FALSE))","v":""},{"$f":"VLOOKUP(AK1522,C1513:Q1531,8,FALSE)","v":""},{"$f":"VLOOKUP(AK1522,C1513:Q1531,9,FALSE)","v":""},{"$f":"VLOOKUP(AK1522,C1513:Q1531,10,FALSE)","v":""},{"$f":"VLOOKUP(AK1522,C1513:Q1531,11,FALSE)","v":""},{"$f":"VLOOKUP(AK1522,C1513:Q1531,12,FALSE)","v":""},{"$f":"VLOOKUP(AK1522,C1513:Q1531,13,FALSE)","v":""},{"$f":"VLOOKUP(AK1522,C1513:Q1531,14,FALSE)","v":""},{"$f":"VLOOKUP(AK1522,C1513:Q1531,15,FALSE)","v":""}]
[null,11,{"$f":"IF(AK1512=\"\",\"\",RANK(F1523,F1513:F1531)*1000+ROW())","v":""},"",{"$f":"IF(L1523=\"\",\"\",Nb_Diff_Part(D1523,D1513:D1531,G1523,G1513:G1531,AI1534:AI1740)*CritClassInd_DiffPart+Nb_Goal_Part(D1523,D1513:D1531,G1523,G1513:G1531,V1534:Z1740)*CritClassInd_GoalPart+Nb_Score_Part(D1523,D1513:D1531,G1523,G1513:G1531,V1534:Z1740)*CritClassInd_ScorePart)","v":""},"","K",0,null,{"$f":"IF(AK1512=\"\",\"\",(L1523*Points_Victoire)+M1523*Points_Null)","v":""},"",{"$f":"IF(AK1512=\"\",\"\",COUNTIF(AE1534:AE1740,G1523))","v":""},{"$f":"IF(AK1512=\"\",\"\",COUNTIF(AF1534:AG1740,G1523))","v":""},{"$f":"IF(AK1512=\"\",\"\",COUNTIF(AH1534:AH1740,G1523))","v":""},{"$f":"IF(AK1512=\"\",\"\",SUMIF(V1534:V1740,G1523,AB1534:AB1740)+SUMIF(Z1534:Z1740,G1523,AD1534:AD1740))","v":""},{"$f":"IF(AK1512=\"\",\"\",SUMIF(V1534:V1740,G1523,AD1534:AD1740)+SUMIF(Z1534:Z1740,G1523,AB1534:AB1740))","v":""},{"$f":"IF(AK1512=\"\",\"\",O1523-P1523)","v":""},null,null,null,null,null,null,null,null,null,null,null,null,null,null,null,null,null,null,null,{"$f":"IF(AK1512=\"\",\"\",SMALL(C1513:C1531,11))","v":""},null,null,{"$f":"IF(AK1512=\"\",\"\",INT(AK1523/1000))","v":""},{"$f":"IF(AK1512=\"\",\"\",VLOOKUP(AK1523,C1513:Q1531,5,FALSE))","v":""},{"$f":"VLOOKUP(AK1523,C1513:Q1531,8,FALSE)","v":""},{"$f":"VLOOKUP(AK1523,C1513:Q1531,9,FALSE)","v":""},{"$f":"VLOOKUP(AK1523,C1513:Q1531,10,FALSE)","v":""},{"$f":"VLOOKUP(AK1523,C1513:Q1531,11,FALSE)","v":""},{"$f":"VLOOKUP(AK1523,C1513:Q1531,12,FALSE)","v":""},{"$f":"VLOOKUP(AK1523,C1513:Q1531,13,FALSE)","v":""},{"$f":"VLOOKUP(AK1523,C1513:Q1531,14,FALSE)","v":""},{"$f":"VLOOKUP(AK1523,C1513:Q1531,15,FALSE)","v":""}]
[null,12,{"$f":"IF(AK1512=\"\",\"\",RANK(F1524,F1513:F1531)*1000+ROW())","v":""},"",{"$f":"IF(L1524=\"\",\"\",Nb_Diff_Part(D1524,D1513:D1531,G1524,G1513:G1531,AI1534:AI1740)*CritClassInd_DiffPart+Nb_Goal_Part(D1524,D1513:D1531,G1524,G1513:G1531,V1534:Z1740)*CritClassInd_GoalPart+Nb_Score_Part(D1524,D1513:D1531,G1524,G1513:G1531,V1534:Z1740)*CritClassInd_ScorePart)","v":""},"","L",0,null,{"$f":"IF(AK1512=\"\",\"\",(L1524*Points_Victoire)+M1524*Points_Null)","v":""},"",{"$f":"IF(AK1512=\"\",\"\",COUNTIF(AE1534:AE1740,G1524))","v":""},{"$f":"IF(AK1512=\"\",\"\",COUNTIF(AF1534:AG1740,G1524))","v":""},{"$f":"IF(AK1512=\"\",\"\",COUNTIF(AH1534:AH1740,G1524))","v":""},{"$f":"IF(AK1512=\"\",\"\",SUMIF(V1534:V1740,G1524,AB1534:AB1740)+SUMIF(Z1534:Z1740,G1524,AD1534:AD1740))","v":""},{"$f":"IF(AK1512=\"\",\"\",SUMIF(V1534:V1740,G1524,AD1534:AD1740)+SUMIF(Z1534:Z1740,G1524,AB1534:AB1740))","v":""},{"$f":"IF(AK1512=\"\",\"\",O1524-P1524)","v":""},null,null,null,null,null,null,null,null,null,null,null,null,null,null,null,null,null,null,null,{"$f":"IF(AK1512=\"\",\"\",SMALL(C1513:C1531,12))","v":""},null,null,{"$f":"IF(AK1512=\"\",\"\",INT(AK1524/1000))","v":""},{"$f":"IF(AK1512=\"\",\"\",VLOOKUP(AK1524,C1513:Q1531,5,FALSE))","v":""},{"$f":"VLOOKUP(AK1524,C1513:Q1531,8,FALSE)","v":""},{"$f":"VLOOKUP(AK1524,C1513:Q1531,9,FALSE)","v":""},{"$f":"VLOOKUP(AK1524,C1513:Q1531,10,FALSE)","v":""},{"$f":"VLOOKUP(AK1524,C1513:Q1531,11,FALSE)","v":""},{"$f":"VLOOKUP(AK1524,C1513:Q1531,12,FALSE)","v":""},{"$f":"VLOOKUP(AK1524,C1513:Q1531,13,FALSE)","v":""},{"$f":"VLOOKUP(AK1524,C1513:Q1531,14,FALSE)","v":""},{"$f":"VLOOKUP(AK1524,C1513:Q1531,15,FALSE)","v":""}]
[null,13,{"$f":"IF(AK1512=\"\",\"\",RANK(F1525,F1513:F1531)*1000+ROW())","v":""},"",{"$f":"IF(L1525=\"\",\"\",Nb_Diff_Part(D1525,D1513:D1531,G1525,G1513:G1531,AI1534:AI1740)*CritClassInd_DiffPart+Nb_Goal_Part(D1525,D1513:D1531,G1525,G1513:G1531,V1534:Z1740)*CritClassInd_GoalPart+Nb_Score_Part(D1525,D1513:D1531,G1525,G1513:G1531,V1534:Z1740)*CritClassInd_ScorePart)","v":""},"","M",0,null,{"$f":"IF(AK1512=\"\",\"\",(L1525*Points_Victoire)+M1525*Points_Null)","v":""},"",{"$f":"IF(AK1512=\"\",\"\",COUNTIF(AE1534:AE1740,G1525))","v":""},{"$f":"IF(AK1512=\"\",\"\",COUNTIF(AF1534:AG1740,G1525))","v":""},{"$f":"IF(AK1512=\"\",\"\",COUNTIF(AH1534:AH1740,G1525))","v":""},{"$f":"IF(AK1512=\"\",\"\",SUMIF(V1534:V1740,G1525,AB1534:AB1740)+SUMIF(Z1534:Z1740,G1525,AD1534:AD1740))","v":""},{"$f":"IF(AK1512=\"\",\"\",SUMIF(V1534:V1740,G1525,AD1534:AD1740)+SUMIF(Z1534:Z1740,G1525,AB1534:AB1740))","v":""},{"$f":"IF(AK1512=\"\",\"\",O1525-P1525)","v":""},null,null,null,null,null,null,null,null,null,null,null,null,null,null,null,null,null,null,null,{"$f":"IF(AK1512=\"\",\"\",SMALL(C1513:C1531,13))","v":""},null,null,{"$f":"IF(AK1512=\"\",\"\",INT(AK1525/1000))","v":""},{"$f":"IF(AK1512=\"\",\"\",VLOOKUP(AK1525,C1513:Q1531,5,FALSE))","v":""},{"$f":"VLOOKUP(AK1525,C1513:Q1531,8,FALSE)","v":""},{"$f":"VLOOKUP(AK1525,C1513:Q1531,9,FALSE)","v":""},{"$f":"VLOOKUP(AK1525,C1513:Q1531,10,FALSE)","v":""},{"$f":"VLOOKUP(AK1525,C1513:Q1531,11,FALSE)","v":""},{"$f":"VLOOKUP(AK1525,C1513:Q1531,12,FALSE)","v":""},{"$f":"VLOOKUP(AK1525,C1513:Q1531,13,FALSE)","v":""},{"$f":"VLOOKUP(AK1525,C1513:Q1531,14,FALSE)","v":""},{"$f":"VLOOKUP(AK1525,C1513:Q1531,15,FALSE)","v":""}]
[null,14,{"$f":"IF(AK1512=\"\",\"\",RANK(F1526,F1513:F1531)*1000+ROW())","v":""},"",{"$f":"IF(L1526=\"\",\"\",Nb_Diff_Part(D1526,D1513:D1531,G1526,G1513:G1531,AI1534:AI1740)*CritClassInd_DiffPart+Nb_Goal_Part(D1526,D1513:D1531,G1526,G1513:G1531,V1534:Z1740)*CritClassInd_GoalPart+Nb_Score_Part(D1526,D1513:D1531,G1526,G1513:G1531,V1534:Z1740)*CritClassInd_ScorePart)","v":""},"","N",0,null,{"$f":"IF(AK1512=\"\",\"\",(L1526*Points_Victoire)+M1526*Points_Null)","v":""},"",{"$f":"IF(AK1512=\"\",\"\",COUNTIF(AE1534:AE1740,G1526))","v":""},{"$f":"IF(AK1512=\"\",\"\",COUNTIF(AF1534:AG1740,G1526))","v":""},{"$f":"IF(AK1512=\"\",\"\",COUNTIF(AH1534:AH1740,G1526))","v":""},{"$f":"IF(AK1512=\"\",\"\",SUMIF(V1534:V1740,G1526,AB1534:AB1740)+SUMIF(Z1534:Z1740,G1526,AD1534:AD1740))","v":""},{"$f":"IF(AK1512=\"\",\"\",SUMIF(V1534:V1740,G1526,AD1534:AD1740)+SUMIF(Z1534:Z1740,G1526,AB1534:AB1740))","v":""},{"$f":"IF(AK1512=\"\",\"\",O1526-P1526)","v":""},null,null,null,null,null,null,null,null,null,null,null,null,null,null,null,null,null,null,null,{"$f":"IF(AK1512=\"\",\"\",SMALL(C1513:C1531,14))","v":""},null,null,{"$f":"IF(AK1512=\"\",\"\",INT(AK1526/1000))","v":""},{"$f":"IF(AK1512=\"\",\"\",VLOOKUP(AK1526,C1513:Q1531,5,FALSE))","v":""},{"$f":"VLOOKUP(AK1526,C1513:Q1531,8,FALSE)","v":""},{"$f":"VLOOKUP(AK1526,C1513:Q1531,9,FALSE)","v":""},{"$f":"VLOOKUP(AK1526,C1513:Q1531,10,FALSE)","v":""},{"$f":"VLOOKUP(AK1526,C1513:Q1531,11,FALSE)","v":""},{"$f":"VLOOKUP(AK1526,C1513:Q1531,12,FALSE)","v":""},{"$f":"VLOOKUP(AK1526,C1513:Q1531,13,FALSE)","v":""},{"$f":"VLOOKUP(AK1526,C1513:Q1531,14,FALSE)","v":""},{"$f":"VLOOKUP(AK1526,C1513:Q1531,15,FALSE)","v":""}]
[null,15,{"$f":"IF(AK1512=\"\",\"\",RANK(F1527,F1513:F1531)*1000+ROW())","v":""},"",{"$f":"IF(L1527=\"\",\"\",Nb_Diff_Part(D1527,D1513:D1531,G1527,G1513:G1531,AI1534:AI1740)*CritClassInd_DiffPart+Nb_Goal_Part(D1527,D1513:D1531,G1527,G1513:G1531,V1534:Z1740)*CritClassInd_GoalPart+Nb_Score_Part(D1527,D1513:D1531,G1527,G1513:G1531,V1534:Z1740)*CritClassInd_ScorePart)","v":""},"","O",0,null,{"$f":"IF(AK1512=\"\",\"\",(L1527*Points_Victoire)+M1527*Points_Null)","v":""},"",{"$f":"IF(AK1512=\"\",\"\",COUNTIF(AE1534:AE1740,G1527))","v":""},{"$f":"IF(AK1512=\"\",\"\",COUNTIF(AF1534:AG1740,G1527))","v":""},{"$f":"IF(AK1512=\"\",\"\",COUNTIF(AH1534:AH1740,G1527))","v":""},{"$f":"IF(AK1512=\"\",\"\",SUMIF(V1534:V1740,G1527,AB1534:AB1740)+SUMIF(Z1534:Z1740,G1527,AD1534:AD1740))","v":""},{"$f":"IF(AK1512=\"\",\"\",SUMIF(V1534:V1740,G1527,AD1534:AD1740)+SUMIF(Z1534:Z1740,G1527,AB1534:AB1740))","v":""},{"$f":"IF(AK1512=\"\",\"\",O1527-P1527)","v":""},null,null,null,null,null,null,null,null,null,null,null,null,null,null,null,null,null,null,null,{"$f":"IF(AK1512=\"\",\"\",SMALL(C1513:C1531,15))","v":""},null,null,{"$f":"IF(AK1512=\"\",\"\",INT(AK1527/1000))","v":""},{"$f":"IF(AK1512=\"\",\"\",VLOOKUP(AK1527,C1513:Q1531,5,FALSE))","v":""},{"$f":"VLOOKUP(AK1527,C1513:Q1531,8,FALSE)","v":""},{"$f":"VLOOKUP(AK1527,C1513:Q1531,9,FALSE)","v":""},{"$f":"VLOOKUP(AK1527,C1513:Q1531,10,FALSE)","v":""},{"$f":"VLOOKUP(AK1527,C1513:Q1531,11,FALSE)","v":""},{"$f":"VLOOKUP(AK1527,C1513:Q1531,12,FALSE)","v":""},{"$f":"VLOOKUP(AK1527,C1513:Q1531,13,FALSE)","v":""},{"$f":"VLOOKUP(AK1527,C1513:Q1531,14,FALSE)","v":""},{"$f":"VLOOKUP(AK1527,C1513:Q1531,15,FALSE)","v":""}]
[null,16,{"$f":"IF(AK1512=\"\",\"\",RANK(F1528,F1513:F1531)*1000+ROW())","v":""},"",{"$f":"IF(L1528=\"\",\"\",Nb_Diff_Part(D1528,D1513:D1531,G1528,G1513:G1531,AI1534:AI1740)*CritClassInd_DiffPart+Nb_Goal_Part(D1528,D1513:D1531,G1528,G1513:G1531,V1534:Z1740)*CritClassInd_GoalPart+Nb_Score_Part(D1528,D1513:D1531,G1528,G1513:G1531,V1534:Z1740)*CritClassInd_ScorePart)","v":""},"","P",0,null,{"$f":"IF(AK1512=\"\",\"\",(L1528*Points_Victoire)+M1528*Points_Null)","v":""},"",{"$f":"IF(AK1512=\"\",\"\",COUNTIF(AE1534:AE1740,G1528))","v":""},{"$f":"IF(AK1512=\"\",\"\",COUNTIF(AF1534:AG1740,G1528))","v":""},{"$f":"IF(AK1512=\"\",\"\",COUNTIF(AH1534:AH1740,G1528))","v":""},{"$f":"IF(AK1512=\"\",\"\",SUMIF(V1534:V1740,G1528,AB1534:AB1740)+SUMIF(Z1534:Z1740,G1528,AD1534:AD1740))","v":""},{"$f":"IF(AK1512=\"\",\"\",SUMIF(V1534:V1740,G1528,AD1534:AD1740)+SUMIF(Z1534:Z1740,G1528,AB1534:AB1740))","v":""},{"$f":"IF(AK1512=\"\",\"\",O1528-P1528)","v":""},null,null,null,null,null,null,null,null,null,null,null,null,null,null,null,null,null,null,null,{"$f":"IF(AK1512=\"\",\"\",SMALL(C1513:C1531,16))","v":""},null,null,{"$f":"IF(AK1512=\"\",\"\",INT(AK1528/1000))","v":""},{"$f":"IF(AK1512=\"\",\"\",VLOOKUP(AK1528,C1513:Q1531,5,FALSE))","v":""},{"$f":"VLOOKUP(AK1528,C1513:Q1531,8,FALSE)","v":""},{"$f":"VLOOKUP(AK1528,C1513:Q1531,9,FALSE)","v":""},{"$f":"VLOOKUP(AK1528,C1513:Q1531,10,FALSE)","v":""},{"$f":"VLOOKUP(AK1528,C1513:Q1531,11,FALSE)","v":""},{"$f":"VLOOKUP(AK1528,C1513:Q1531,12,FALSE)","v":""},{"$f":"VLOOKUP(AK1528,C1513:Q1531,13,FALSE)","v":""},{"$f":"VLOOKUP(AK1528,C1513:Q1531,14,FALSE)","v":""},{"$f":"VLOOKUP(AK1528,C1513:Q1531,15,FALSE)","v":""}]
[null,17,{"$f":"IF(AK1512=\"\",\"\",RANK(F1529,F1513:F1531)*1000+ROW())","v":""},"",{"$f":"IF(L1529=\"\",\"\",Nb_Diff_Part(D1529,D1513:D1531,G1529,G1513:G1531,AI1534:AI1740)*CritClassInd_DiffPart+Nb_Goal_Part(D1529,D1513:D1531,G1529,G1513:G1531,V1534:Z1740)*CritClassInd_GoalPart+Nb_Score_Part(D1529,D1513:D1531,G1529,G1513:G1531,V1534:Z1740)*CritClassInd_ScorePart)","v":""},"","Q",0,null,{"$f":"IF(AK1512=\"\",\"\",(L1529*Points_Victoire)+M1529*Points_Null)","v":""},"",{"$f":"IF(AK1512=\"\",\"\",COUNTIF(AE1534:AE1740,G1529))","v":""},{"$f":"IF(AK1512=\"\",\"\",COUNTIF(AF1534:AG1740,G1529))","v":""},{"$f":"IF(AK1512=\"\",\"\",COUNTIF(AH1534:AH1740,G1529))","v":""},{"$f":"IF(AK1512=\"\",\"\",SUMIF(V1534:V1740,G1529,AB1534:AB1740)+SUMIF(Z1534:Z1740,G1529,AD1534:AD1740))","v":""},{"$f":"IF(AK1512=\"\",\"\",SUMIF(V1534:V1740,G1529,AD1534:AD1740)+SUMIF(Z1534:Z1740,G1529,AB1534:AB1740))","v":""},{"$f":"IF(AK1512=\"\",\"\",O1529-P1529)","v":""},null,null,null,null,null,null,null,null,null,null,null,null,null,null,null,null,null,null,null,{"$f":"IF(AK1512=\"\",\"\",SMALL(C1513:C1531,17))","v":""},null,null,{"$f":"IF(AK1512=\"\",\"\",INT(AK1529/1000))","v":""},{"$f":"IF(AK1512=\"\",\"\",VLOOKUP(AK1529,C1513:Q1531,5,FALSE))","v":""},{"$f":"VLOOKUP(AK1529,C1513:Q1531,8,FALSE)","v":""},{"$f":"VLOOKUP(AK1529,C1513:Q1531,9,FALSE)","v":""},{"$f":"VLOOKUP(AK1529,C1513:Q1531,10,FALSE)","v":""},{"$f":"VLOOKUP(AK1529,C1513:Q1531,11,FALSE)","v":""},{"$f":"VLOOKUP(AK1529,C1513:Q1531,12,FALSE)","v":""},{"$f":"VLOOKUP(AK1529,C1513:Q1531,13,FALSE)","v":""},{"$f":"VLOOKUP(AK1529,C1513:Q1531,14,FALSE)","v":""},{"$f":"VLOOKUP(AK1529,C1513:Q1531,15,FALSE)","v":""}]
[null,18,{"$f":"IF(AK1512=\"\",\"\",RANK(F1530,F1513:F1531)*1000+ROW())","v":""},"",{"$f":"IF(L1530=\"\",\"\",Nb_Diff_Part(D1530,D1513:D1531,G1530,G1513:G1531,AI1534:AI1740)*CritClassInd_DiffPart+Nb_Goal_Part(D1530,D1513:D1531,G1530,G1513:G1531,V1534:Z1740)*CritClassInd_GoalPart+Nb_Score_Part(D1530,D1513:D1531,G1530,G1513:G1531,V1534:Z1740)*CritClassInd_ScorePart)","v":""},"","R",0,null,{"$f":"IF(AK1512=\"\",\"\",(L1530*Points_Victoire)+M1530*Points_Null)","v":""},"",{"$f":"IF(AK1512=\"\",\"\",COUNTIF(AE1534:AE1740,G1530))","v":""},{"$f":"IF(AK1512=\"\",\"\",COUNTIF(AF1534:AG1740,G1530))","v":""},{"$f":"IF(AK1512=\"\",\"\",COUNTIF(AH1534:AH1740,G1530))","v":""},{"$f":"IF(AK1512=\"\",\"\",SUMIF(V1534:V1740,G1530,AB1534:AB1740)+SUMIF(Z1534:Z1740,G1530,AD1534:AD1740))","v":""},{"$f":"IF(AK1512=\"\",\"\",SUMIF(V1534:V1740,G1530,AD1534:AD1740)+SUMIF(Z1534:Z1740,G1530,AB1534:AB1740))","v":""},{"$f":"IF(AK1512=\"\",\"\",O1530-P1530)","v":""},null,null,null,null,null,null,null,null,null,null,null,null,null,null,null,null,null,null,null,{"$f":"IF(AK1512=\"\",\"\",SMALL(C1513:C1531,18))","v":""},null,null,{"$f":"IF(AK1512=\"\",\"\",INT(AK1530/1000))","v":""},{"$f":"IF(AK1512=\"\",\"\",VLOOKUP(AK1530,C1513:Q1531,5,FALSE))","v":""},{"$f":"VLOOKUP(AK1530,C1513:Q1531,8,FALSE)","v":""},{"$f":"VLOOKUP(AK1530,C1513:Q1531,9,FALSE)","v":""},{"$f":"VLOOKUP(AK1530,C1513:Q1531,10,FALSE)","v":""},{"$f":"VLOOKUP(AK1530,C1513:Q1531,11,FALSE)","v":""},{"$f":"VLOOKUP(AK1530,C1513:Q1531,12,FALSE)","v":""},{"$f":"VLOOKUP(AK1530,C1513:Q1531,13,FALSE)","v":""},{"$f":"VLOOKUP(AK1530,C1513:Q1531,14,FALSE)","v":""},{"$f":"VLOOKUP(AK1530,C1513:Q1531,15,FALSE)","v":""}]
[null,19,{"$f":"IF(AK1512=\"\",\"\",RANK(F1531,F1513:F1531)*1000+ROW())","v":""},"",{"$f":"IF(L1531=\"\",\"\",Nb_Diff_Part(D1531,D1513:D1531,G1531,G1513:G1531,AI1534:AI1740)*CritClassInd_DiffPart+Nb_Goal_Part(D1531,D1513:D1531,G1531,G1513:G1531,V1534:Z1740)*CritClassInd_GoalPart+Nb_Score_Part(D1531,D1513:D1531,G1531,G1513:G1531,V1534:Z1740)*CritClassInd_ScorePart)","v":""},"","S",0,null,{"$f":"IF(AK1512=\"\",\"\",(L1531*Points_Victoire)+M1531*Points_Null)","v":""},"",{"$f":"IF(AK1512=\"\",\"\",COUNTIF(AE1534:AE1740,G1531))","v":""},{"$f":"IF(AK1512=\"\",\"\",COUNTIF(AF1534:AG1740,G1531))","v":""},{"$f":"IF(AK1512=\"\",\"\",COUNTIF(AH1534:AH1740,G1531))","v":""},{"$f":"IF(AK1512=\"\",\"\",SUMIF(V1534:V1740,G1531,AB1534:AB1740)+SUMIF(Z1534:Z1740,G1531,AD1534:AD1740))","v":""},{"$f":"IF(AK1512=\"\",\"\",SUMIF(V1534:V1740,G1531,AD1534:AD1740)+SUMIF(Z1534:Z1740,G1531,AB1534:AB1740))","v":""},{"$f":"IF(AK1512=\"\",\"\",O1531-P1531)","v":""},null,null,null,null,null,null,null,null,null,null,null,null,null,null,null,null,null,null,null,{"$f":"IF(AK1512=\"\",\"\",SMALL(C1513:C1531,19))","v":""},null,null,{"$f":"IF(AK1512=\"\",\"\",INT(AK1531/1000))","v":""},{"$f":"IF(AK1512=\"\",\"\",VLOOKUP(AK1531,C1513:Q1531,5,FALSE))","v":""},{"$f":"VLOOKUP(AK1531,C1513:Q1531,8,FALSE)","v":""},{"$f":"VLOOKUP(AK1531,C1513:Q1531,9,FALSE)","v":""},{"$f":"VLOOKUP(AK1531,C1513:Q1531,10,FALSE)","v":""},{"$f":"VLOOKUP(AK1531,C1513:Q1531,11,FALSE)","v":""},{"$f":"VLOOKUP(AK1531,C1513:Q1531,12,FALSE)","v":""},{"$f":"VLOOKUP(AK1531,C1513:Q1531,13,FALSE)","v":""},{"$f":"VLOOKUP(AK1531,C1513:Q1531,14,FALSE)","v":""},{"$f":"VLOOKUP(AK1531,C1513:Q1531,15,FALSE)","v":""}]
[null,null,null,null,null,null,null,null,null,null,null,null,null,null,null,null,null,null,1,null,null,null,null,null,null,null,null,{"$f":"IF(MaxScore,N_MaxScore,\"\")","v":"Max Score"}]
[null,null,null,null,null,null,null,null,null,null,null,null,null,null,null,null,null,null,{"$f":"N_Heure","v":"Time"},{"$f":"N_Table","v":"Table"},{"$f":"N_Arbitre","v":"Referee"},{"$f":"N_Matches","v":"Matches"}]
[null,null,null,null,null,null,null,null,null,null,null,null,null,null,null,null,null,"#G1",null,null,null,{"$f":"IF(G1513=\"\",\"\",G1513)","v":"A"},null,"-",null,{"$f":"IF(G1514=\"\",\"\",G1514)","v":"B"},null,{"$f":"IF(MaxScore,MaxGoals(W1534,Y1534,MaxGoalsValue),IF(W1534=\"\",\"\",W1534))","v":0},{"$f":"IF(MaxScore,\"-\",IF(W1534=\"\",\"\",\"-\"))","v":"-"},{"$f":"IF(MaxScore,MaxGoals(Y1534,W1534,MaxGoalsValue),IF(Y1534=\"\",\"\",Y1534))","v":0},{"$f":"IF(W1534=\"\",\"\",IF(W1534>Y1534,V1534,IF(W1534=Y1534,\"\",Z1534)))","v":""},{"$f":"IF(W1534=\"\",\"\",IF(W1534=Y1534,V1534,\"\"))","v":""},{"$f":"IF(W1534=\"\",\"\",IF(W1534=Y1534,Z1534,\"\"))","v":""},{"$f":"IF(W1534=\"\",\"\",IF(W1534<Y1534,V1534,IF(W1534=Y1534,\"\",Z1534)))","v":""},{"$f":"CONCATENATE(AE1534,AH1534)","v":""}]
[null,null,null,null,null,null,null,null,null,null,null,null,null,null,null,null,null,"#G1",null,null,null,{"$f":"IF(G1515=\"\",\"\",G1515)","v":"C"},null,"-",null,{"$f":"IF(G1516=\"\",\"\",G1516)","v":"D"},null,0,"-",0,"","","","",""]
[null,null,null,null,null,null,null,null,null,null,null,null,null,null,null,null,null,"#G1",null,null,null,{"$f":"IF(G1517=\"\",\"\",G1517)","v":"E"},null,"-",null,{"$f":"IF(G1518=\"\",\"\",G1518)","v":"F"},null,0,"-",0,"","","","",""]
[null,null,null,null,null,null,null,null,null,null,null,null,null,null,null,null,null,"#G1",null,null,null,{"$f":"IF(G1519=\"\",\"\",G1519)","v":"G"},null,"-",null,{"$f":"IF(G1520=\"\",\"\",G1520)","v":"H"},null,0,"-",0,"","","","",""]
[null,null,null,null,null,null,null,null,null,null,null,null,null,null,null,null,null,"#G1",null,null,null,{"$f":"IF(G1521=\"\",\"\",G1521)","v":"I"},null,"-",null,{"$f":"IF(G1522=\"\",\"\",G1522)","v":"J"},null,0,"-",0,"","","","",""]
[null,null,null,null,null,null,null,null,null,null,null,null,null,null,null,null,null,"#G1",null,null,null,{"$f":"IF(G1523=\"\",\"\",G1523)","v":"K"},null,"-",null,{"$f":"IF(G1524=\"\",\"\",G1524)","v":"L"},null,0,"-",0,"","","","",""]
[null,null,null,null,null,null,null,null,null,null,null,null,null,null,null,null,null,"#G1",null,null,null,{"$f":"IF(G1525=\"\",\"\",G1525)","v":"M"},null,"-",null,{"$f":"IF(G1526=\"\",\"\",G1526)","v":"N"},null,0,"-",0,"","","","",""]
[null,null,null,null,null,null,null,null,null,null,null,null,null,null,null,null,null,"#G1",null,null,null,{"$f":"IF(G1527=\"\",\"\",G1527)","v":"O"},null,"-",null,{"$f":"IF(G1528=\"\",\"\",G1528)","v":"P"},null,0,"-",0,"","","","",""]
[null,null,null,null,null,null,null,null,null,null,null,null,null,null,null,null,null,"#G1",null,null,null,{"$f":"IF(G1529=\"\",\"\",G1529)","v":"Q"},null,"-",null,{"$f":"IF(G1530=\"\",\"\",G1530)","v":"R"},null,0,"-",0,"","","","",""]
[null,null,null,null,null,null,null,null,null,null,null,null,null,null,null,null,null,null,{"$f":"S1532+1","v":2}]
[null,null,null,null,null,null,null,null,null,null,null,null,null,null,null,null,null,null,{"$f":"N_Heure","v":"Time"},{"$f":"N_Table","v":"Table"},{"$f":"N_Arbitre","v":"Referee"},{"$f":"N_Matches","v":"Matches"}]
[null,null,null,null,null,null,null,null,null,null,null,null,null,null,null,null,null,"#G2",null,null,null,{"$f":"V1535","v":"C"},null,"-",null,{"$f":"V1534","v":"A"},null,{"$f":"IF(MaxScore,MaxGoals(W1545,Y1545,MaxGoalsValue),IF(W1545=\"\",\"\",W1545))","v":0},{"$f":"IF(MaxScore,\"-\",IF(W1545=\"\",\"\",\"-\"))","v":"-"},{"$f":"IF(MaxScore,MaxGoals(Y1545,W1545,MaxGoalsValue),IF(Y1545=\"\",\"\",Y1545))","v":0},{"$f":"IF(W1545=\"\",\"\",IF(W1545>Y1545,V1545,IF(W1545=Y1545,\"\",Z1545)))","v":""},{"$f":"IF(W1545=\"\",\"\",IF(W1545=Y1545,V1545,\"\"))","v":""},{"$f":"IF(W1545=\"\",\"\",IF(W1545=Y1545,Z1545,\"\"))","v":""},{"$f":"IF(W1545=\"\",\"\",IF(W1545<Y1545,V1545,IF(W1545=Y1545,\"\",Z1545)))","v":""},{"$f":"CONCATENATE(AE1545,AH1545)","v":""}]
[null,null,null,null,null,null,null,null,null,null,null,null,null,null,null,null,null,"#G2",null,null,null,{"$f":"Z1534","v":"B"},null,"-",null,{"$f":"V1536","v":"E"},null,0,"-",0,"","","","",""]
[null,null,null,null,null,null,null,null,null,null,null,null,null,null,null,null,null,"#G2",null,null,null,"D",null,"-",null,"G",null,0,"-",0,"","","","",""]
[null,null,null,null,null,null,null,null,null,null,null,null,null,null,null,null,null,"#G2",null,null,null,"F",null,"-",null,"I",null,0,"-",0,"","","","",""]
[null,null,null,null,null,null,null,null,null,null,null,null,null,null,null,null,null,"#G2",null,null,null,"H",null,"-",null,"K",null,0,"-",0,"","","","",""]
[null,null,null,null,null,null,null,null,null,null,null,null,null,null,null,null,null,"#G2",null,null,null,"J",null,"-",null,"M",null,0,"-",0,"","","","",""]
[null,null,null,null,null,null,null,null,null,null,null,null,null,null,null,null,null,"#G2",null,null,null,"L",null,"-",null,"O",null,0,"-",0,"","","","",""]
[null,null,null,null,null,null,null,null,null,null,null,null,null,null,null,null,null,"#G2",null,null,null,"N",null,"-",null,"Q",null,0,"-",0,"","","","",""]
[null,null,null,null,null,null,null,null,null,null,null,null,null,null,null,null,null,"#G2",null,null,null,"P",null,"-",null,{"$f":"G1531","v":"S"},null,0,"-",0,"","","","",""]
[null,null,null,null,null,null,null,null,null,null,null,null,null,null,null,null,null,null,{"$f":"S1543+1","v":3}]
[null,null,null,null,null,null,null,null,null,null,null,null,null,null,null,null,null,null,{"$f":"N_Heure","v":"Time"},{"$f":"N_Table","v":"Table"},{"$f":"N_Arbitre","v":"Referee"},{"$f":"N_Matches","v":"Matches"}]
[null,null,null,null,null,null,null,null,null,null,null,null,null,null,null,null,null,"#G3",null,null,null,{"$f":"Z1545","v":"A"},null,"-",null,{"$f":"Z1546","v":"E"},null,{"$f":"IF(MaxScore,MaxGoals(W1556,Y1556,MaxGoalsValue),IF(W1556=\"\",\"\",W1556))","v":0},{"$f":"IF(MaxScore,\"-\",IF(W1556=\"\",\"\",\"-\"))","v":"-"},{"$f":"IF(MaxScore,MaxGoals(Y1556,W1556,MaxGoalsValue),IF(Y1556=\"\",\"\",Y1556))","v":0},{"$f":"IF(W1556=\"\",\"\",IF(W1556>Y1556,V1556,IF(W1556=Y1556,\"\",Z1556)))","v":""},{"$f":"IF(W1556=\"\",\"\",IF(W1556=Y1556,V1556,\"\"))","v":""},{"$f":"IF(W1556=\"\",\"\",IF(W1556=Y1556,Z1556,\"\"))","v":""},{"$f":"IF(W1556=\"\",\"\",IF(W1556<Y1556,V1556,IF(W1556=Y1556,\"\",Z1556)))","v":""},{"$f":"CONCATENATE(AE1556,AH1556)","v":""}]
[null,null,null,null,null,null,null,null,null,null,null,null,null,null,null,null,null,"#G3",null,null,null,{"$f":"Z1547","v":"G"},null,"-",null,{"$f":"V1545","v":"C"},null,0,"-",0,"","","","",""]
[null,null,null,null,null,null,null,null,null,null,null,null,null,null,null,null,null,"#G3",null,null,null,"I",null,"-",null,"B",null,0,"-",0,"","","","",""]
[null,null,null,null,null,null,null,null,null,null,null,null,null,null,null,null,null,"#G3",null,null,null,"K",null,"-",null,"D",null,0,"-",0,"","","","",""]
[null,null,null,null,null,null,null,null,null,null,null,null,null,null,null,null,null,"#G3",null,null,null,"M",null,"-",null,"F",null,0,"-",0,"","","","",""]
[null,null,null,null,null,null,null,null,null,null,null,null,null,null,null,null,null,"#G3",null,null,null,"O",null,"-",null,"H",null,0,"-",0,"","","","",""]
[null,null,null,null,null,null,null,null,null,null,null,null,null,null,null,null,null,"#G3",null,null,null,"Q",null,"-",null,"J",null,0,"-",0,"","","","",""]
[null,null,null,null,null,null,null,null,null,null,null,null,null,null,null,null,null,"#G3",null,null,null,"S",null,"-",null,"L",null,0,"-",0,"","","","",""]
[null,null,null,null,null,null,null,null,null,null,null,null,null,null,null,null,null,"#G3",null,null,null,{"$f":"Z1542","v":"R"},null,"-",null,{"$f":"V1553","v":"P"},null,0,"-",0,"","","","",""]
[null,null,null,null,null,null,null,null,null,null,null,null,null,null,null,null,null,null,{"$f":"S1554+1","v":4}]
[null,null,null,null,null,null,null,null,null,null,null,null,null,null,null,null,null,null,{"$f":"N_Heure","v":"Time"},{"$f":"N_Table","v":"Table"},{"$f":"N_Arbitre","v":"Referee"},{"$f":"N_Matches","v":"Matches"}]
[null,null,null,null,null,null,null,null,null,null,null,null,null,null,null,null,null,"#G4",null,null,null,{"$f":"V1557","v":"G"},null,"-",null,{"$f":"V1556","v":"A"},null,{"$f":"IF(MaxScore,MaxGoals(W1567,Y1567,MaxGoalsValue),IF(W1567=\"\",\"\",W1567))","v":0},{"$f":"IF(MaxScore,\"-\",IF(W1567=\"\",\"\",\"-\"))","v":"-"},{"$f":"IF(MaxScore,MaxGoals(Y1567,W1567,MaxGoalsValue),IF(Y1567=\"\",\"\",Y1567))","v":0},{"$f":"IF(W1567=\"\",\"\",IF(W1567>Y1567,V1567,IF(W1567=Y1567,\"\",Z1567)))","v":""},{"$f":"IF(W1567=\"\",\"\",IF(W1567=Y1567,V1567,\"\"))","v":""},{"$f":"IF(W1567=\"\",\"\",IF(W1567=Y1567,Z1567,\"\"))","v":""},{"$f":"IF(W1567=\"\",\"\",IF(W1567<Y1567,V1567,IF(W1567=Y1567,\"\",Z1567)))","v":""},{"$f":"CONCATENATE(AE1567,AH1567)","v":""}]
[null,null,null,null,null,null,null,null,null,null,null,null,null,null,null,null,null,"#G4",null,null,null,{"$f":"Z1556","v":"E"},null,"-",null,{"$f":"V1558","v":"I"},null,0,"-",0,"","","","",""]
[null,null,null,null,null,null,null,null,null,null,null,null,null,null,null,null,null,"#G4",null,null,null,"C",null,"-",null,"K",null,0,"-",0,"","","","",""]
[null,null,null,null,null,null,null,null,null,null,null,null,null,null,null,null,null,"#G4",null,null,null,"B",null,"-",null,"M",null,0,"-",0,"","","","",""]
[null,null,null,null,null,null,null,null,null,null,null,null,null,null,null,null,null,"#G4",null,null,null,"D",null,"-",null,"O",null,0,"-",0,"","","","",""]
[null,null,null,null,null,null,null,null,null,null,null,null,null,null,null,null,null,"#G4",null,null,null,"F",null,"-",null,"Q",null,0,"-",0,"","","","",""]
[null,null,null,null,null,null,null,null,null,null,null,null,null,null,null,null,null,"#G4",null,null,null,"H",null,"-",null,"S",null,0,"-",0,"","","","",""]
[null,null,null,null,null,null,null,null,null,null,null,null,null,null,null,null,null,"#G4",null,null,null,{"$f":"Z1563","v":"L"},null,"-",null,"R",null,0,"-",0,"","","","",""]
[null,null,null,null,null,null,null,null,null,null,null,null,null,null,null,null,null,"#G4",null,null,null,{"$f":"V1552","v":"N"},null,"-",null,{"$f":"Z1564","v":"P"},null,0,"-",0,"","","","",""]
[null,null,null,null,null,null,null,null,null,null,null,null,null,null,null,null,null,null,{"$f":"S1565+1","v":5}]
[null,null,null,null,null,null,null,null,null,null,null,null,null,null,null,null,null,null,{"$f":"N_Heure","v":"Time"},{"$f":"N_Table","v":"Table"},{"$f":"N_Arbitre","v":"Referee"},{"$f":"N_Matches","v":"Matches"}]
[null,null,null,null,null,null,null,null,null,null,null,null,null,null,null,null,null,"#G5",null,null,null,{"$f":"Z1567","v":"A"},null,"-",null,{"$f":"Z1568","v":"I"},null,{"$f":"IF(MaxScore,MaxGoals(W1578,Y1578,MaxGoalsValue),IF(W1578=\"\",\"\",W1578))","v":0},{"$f":"IF(MaxScore,\"-\",IF(W1578=\"\",\"\",\"-\"))","v":"-"},{"$f":"IF(MaxScore,MaxGoals(Y1578,W1578,MaxGoalsValue),IF(Y1578=\"\",\"\",Y1578))","v":0},{"$f":"IF(W1578=\"\",\"\",IF(W1578>Y1578,V1578,IF(W1578=Y1578,\"\",Z1578)))","v":""},{"$f":"IF(W1578=\"\",\"\",IF(W1578=Y1578,V1578,\"\"))","v":""},{"$f":"IF(W1578=\"\",\"\",IF(W1578=Y1578,Z1578,\"\"))","v":""},{"$f":"IF(W1578=\"\",\"\",IF(W1578<Y1578,V1578,IF(W1578=Y1578,\"\",Z1578)))","v":""},{"$f":"CONCATENATE(AE1578,AH1578)","v":""}]
[null,null,null,null,null,null,null,null,null,null,null,null,null,null,null,null,null,"#G5",null,null,null,{"$f":"Z1569","v":"K"},null,"-",null,{"$f":"V1567","v":"G"},null,0,"-",0,"","","","",""]
[null,null,null,null,null,null,null,null,null,null,null,null,null,null,null,null,null,"#G5",null,null,null,"M",null,"-",null,{"$f":"V1568","v":"E"},null,0,"-",0,"","","","",""]
[null,null,null,null,null,null,null,null,null,null,null,null,null,null,null,null,null,"#G5",null,null,null,"O",null,"-",null,{"$f":"V1569","v":"C"},null,0,"-",0,"","","","",""]
[null,null,null,null,null,null,null,null,null,null,null,null,null,null,null,null,null,"#G5",null,null,null,"Q",null,"-",null,{"$f":"V1570","v":"B"},null,0,"-",0,"","","","",""]
[null,null,null,null,null,null,null,null,null,null,null,null,null,null,null,null,null,"#G5",null,null,null,"S",null,"-",null,{"$f":"V1571","v":"D"},null,0,"-",0,"","","","",""]
[null,null,null,null,null,null,null,null,null,null,null,null,null,null,null,null,null,"#G5",null,null,null,"R",null,"-",null,{"$f":"V1573","v":"H"},null,0,"-",0,"","","","",""]
[null,null,null,null,null,null,null,null,null,null,null,null,null,null,null,null,null,"#G5",null,null,null,"P",null,"-",null,{"$f":"Z1562","v":"J"},null,0,"-",0,"","","","",""]
[null,null,null,null,null,null,null,null,null,null,null,null,null,null,null,null,null,"#G5",null,null,null,{"$f":"V1575","v":"N"},null,"-",null,{"$f":"V1574","v":"L"},null,0,"-",0,"","","","",""]
[null,null,null,null,null,null,null,null,null,null,null,null,null,null,null,null,null,null,{"$f":"S1576+1","v":6}]
[null,null,null,null,null,null,null,null,null,null,null,null,null,null,null,null,null,null,{"$f":"N_Heure","v":"Time"},{"$f":"N_Table","v":"Table"},{"$f":"N_Arbitre","v":"Referee"},{"$f":"N_Matches","v":"Matches"}]
[null,null,null,null,null,null,null,null,null,null,null,null,null,null,null,null,null,"#G6",null,null,null,{"$f":"V1579","v":"K"},null,"-",null,{"$f":"V1578","v":"A"},null,{"$f":"IF(MaxScore,MaxGoals(W1589,Y1589,MaxGoalsValue),IF(W1589=\"\",\"\",W1589))","v":0},{"$f":"IF(MaxScore,\"-\",IF(W1589=\"\",\"\",\"-\"))","v":"-"},{"$f":"IF(MaxScore,MaxGoals(Y1589,W1589,MaxGoalsValue),IF(Y1589=\"\",\"\",Y1589))","v":0},{"$f":"IF(W1589=\"\",\"\",IF(W1589>Y1589,V1589,IF(W1589=Y1589,\"\",Z1589)))","v":""},{"$f":"IF(W1589=\"\",\"\",IF(W1589=Y1589,V1589,\"\"))","v":""},{"$f":"IF(W1589=\"\",\"\",IF(W1589=Y1589,Z1589,\"\"))","v":""},{"$f":"IF(W1589=\"\",\"\",IF(W1589<Y1589,V1589,IF(W1589=Y1589,\"\",Z1589)))","v":""},{"$f":"CONCATENATE(AE1589,AH1589)","v":""}]
[null,null,null,null,null,null,null,null,null,null,null,null,null,null,null,null,null,"#G6",null,null,null,{"$f":"Z1578","v":"I"},null,"-",null,{"$f":"V1580","v":"M"},null,0,"-",0,"","","","",""]
[null,null,null,null,null,null,null,null,null,null,null,null,null,null,null,null,null,"#G6",null,null,null,{"$f":"Z1579","v":"G"},null,"-",null,"O",null,0,"-",0,"","","","",""]
[null,null,null,null,null,null,null,null,null,null,null,null,null,null,null,null,null,"#G6",null,null,null,{"$f":"Z1580","v":"E"},null,"-",null,"Q",null,0,"-",0,"","","","",""]
[null,null,null,null,null,null,null,null,null,null,null,null,null,null,null,null,null,"#G6",null,null,null,{"$f":"Z1581","v":"C"},null,"-",null,"S",null,0,"-",0,"","","","",""]
[null,null,null,null,null,null,null,null,null,null,null,null,null,null,null,null,null,"#G6",null,null,null,{"$f":"Z1583","v":"D"},null,"-",null,"R",null,0,"-",0,"","","","",""]
[null,null,null,null,null,null,null,null,null,null,null,null,null,null,null,null,null,"#G6",null,null,null,{"$f":"V1572","v":"F"},null,"-",null,"P",null,0,"-",0,"","","","",""]
[null,null,null,null,null,null,null,null,null,null,null,null,null,null,null,null,null,"#G6",null,null,null,{"$f":"Z1584","v":"H"},null,"-",null,"N",null,0,"-",0,"","","","",""]
[null,null,null,null,null,null,null,null,null,null,null,null,null,null,null,null,null,"#G6",null,null,null,{"$f":"Z1585","v":"J"},null,"-",null,{"$f":"Z1586","v":"L"},null,0,"-",0,"","","","",""]
[null,null,null,null,null,null,null,null,null,null,null,null,null,null,null,null,null,null,{"$f":"S1587+1","v":7}]
[null,null,null,null,null,null,null,null,null,null,null,null,null,null,null,null,null,null,{"$f":"N_Heure","v":"Time"},{"$f":"N_Table","v":"Table"},{"$f":"N_Arbitre","v":"Referee"},{"$f":"N_Matches","v":"Matches"}]
[null,null,null,null,null,null,null,null,null,null,null,null,null,null,null,null,null,"#G7",null,null,null,{"$f":"Z1589","v":"A"},null,"-",null,{"$f":"Z1590","v":"M"},null,{"$f":"IF(MaxScore,MaxGoals(W1600,Y1600,MaxGoalsValue),IF(W1600=\"\",\"\",W1600))","v":0},{"$f":"IF(MaxScore,\"-\",IF(W1600=\"\",\"\",\"-\"))","v":"-"},{"$f":"IF(MaxScore,MaxGoals(Y1600,W1600,MaxGoalsValue),IF(Y1600=\"\",\"\",Y1600))","v":0},{"$f":"IF(W1600=\"\",\"\",IF(W1600>Y1600,V1600,IF(W1600=Y1600,\"\",Z1600)))","v":""},{"$f":"IF(W1600=\"\",\"\",IF(W1600=Y1600,V1600,\"\"))","v":""},{"$f":"IF(W1600=\"\",\"\",IF(W1600=Y1600,Z1600,\"\"))","v":""},{"$f":"IF(W1600=\"\",\"\",IF(W1600<Y1600,V1600,IF(W1600=Y1600,\"\",Z1600)))","v":""},{"$f":"CONCATENATE(AE1600,AH1600)","v":""}]
[null,null,null,null,null,null,null,null,null,null,null,null,null,null,null,null,null,"#G7",null,null,null,{"$f":"Z1591","v":"O"},null,"-",null,{"$f":"V1589","v":"K"},null,0,"-",0,"","","","",""]
[null,null,null,null,null,null,null,null,null,null,null,null,null,null,null,null,null,"#G7",null,null,null,"Q",null,"-",null,{"$f":"V1590","v":"I"},null,0,"-",0,"","","","",""]
[null,null,null,null,null,null,null,null,null,null,null,null,null,null,null,null,null,"#G7",null,null,null,"S",null,"-",null,{"$f":"V1591","v":"G"},null,0,"-",0,"","","","",""]
[null,null,null,null,null,null,null,null,null,null,null,null,null,null,null,null,null,"#G7",null,null,null,"R",null,"-",null,{"$f":"V1593","v":"C"},null,0,"-",0,"","","","",""]
[null,null,null,null,null,null,null,null,null,null,null,null,null,null,null,null,null,"#G7",null,null,null,"P",null,"-",null,{"$f":"Z1582","v":"B"},null,0,"-",0,"","","","",""]
[null,null,null,null,null,null,null,null,null,null,null,null,null,null,null,null,null,"#G7",null,null,null,"N",null,"-",null,{"$f":"V1594","v":"D"},null,0,"-",0,"","","","",""]
[null,null,null,null,null,null,null,null,null,null,null,null,null,null,null,null,null,"#G7",null,null,null,"L",null,"-",null,{"$f":"V1595","v":"F"},null,0,"-",0,"","","","",""]
[null,null,null,null,null,null,null,null,null,null,null,null,null,null,null,null,null,"#G7",null,null,null,{"$f":"V1597","v":"J"},null,"-",null,{"$f":"V1596","v":"H"},null,0,"-",0,"","","","",""]
[null,null,null,null,null,null,null,null,null,null,null,null,null,null,null,null,null,null,{"$f":"S1598+1","v":8}]
[null,null,null,null,null,null,null,null,null,null,null,null,null,null,null,null,null,null,{"$f":"N_Heure","v":"Time"},{"$f":"N_Table","v":"Table"},{"$f":"N_Arbitre","v":"Referee"},{"$f":"N_Matches","v":"Matches"}]
[null,null,null,null,null,null,null,null,null,null,null,null,null,null,null,null,null,"#G8",null,null,null,{"$f":"V1601","v":"O"},null,"-",null,{"$f":"V1600","v":"A"},null,{"$f":"IF(MaxScore,MaxGoals(W1611,Y1611,MaxGoalsValue),IF(W1611=\"\",\"\",W1611))","v":0},{"$f":"IF(MaxScore,\"-\",IF(W1611=\"\",\"\",\"-\"))","v":"-"},{"$f":"IF(MaxScore,MaxGoals(Y1611,W1611,MaxGoalsValue),IF(Y1611=\"\",\"\",Y1611))","v":0},{"$f":"IF(W1611=\"\",\"\",IF(W1611>Y1611,V1611,IF(W1611=Y1611,\"\",Z1611)))","v":""},{"$f":"IF(W1611=\"\",\"\",IF(W1611=Y1611,V1611,\"\"))","v":""},{"$f":"IF(W1611=\"\",\"\",IF(W1611=Y1611,Z1611,\"\"))","v":""},{"$f":"IF(W1611=\"\",\"\",IF(W1611<Y1611,V1611,IF(W1611=Y1611,\"\",Z1611)))","v":""},{"$f":"CONCATENATE(AE1611,AH1611)","v":""}]
[null,null,null,null,null,null,null,null,null,null,null,null,null,null,null,null,null,"#G8",null,null,null,{"$f":"Z1600","v":"M"},null,"-",null,{"$f":"V1602","v":"Q"},null,0,"-",0,"","","","",""]
[null,null,null,null,null,null,null,null,null,null,null,null,null,null,null,null,null,"#G8",null,null,null,{"$f":"Z1601","v":"K"},null,"-",null,"S",null,0,"-",0,"","","","",""]
[null,null,null,null,null,null,null,null,null,null,null,null,null,null,null,null,null,"#G8",null,null,null,{"$f":"Z1603","v":"G"},null,"-",null,"R",null,0,"-",0,"","","","",""]
[null,null,null,null,null,null,null,null,null,null,null,null,null,null,null,null,null,"#G8",null,null,null,{"$f":"V1592","v":"E"},null,"-",null,"P",null,0,"-",0,"","","","",""]
[null,null,null,null,null,null,null,null,null,null,null,null,null,null,null,null,null,"#G8",null,null,null,{"$f":"Z1604","v":"C"},null,"-",null,"N",null,0,"-",0,"","","","",""]
[null,null,null,null,null,null,null,null,null,null,null,null,null,null,null,null,null,"#G8",null,null,null,{"$f":"Z1605","v":"B"},null,"-",null,"L",null,0,"-",0,"","","","",""]
[null,null,null,null,null,null,null,null,null,null,null,null,null,null,null,null,null,"#G8",null,null,null,{"$f":"Z1606","v":"D"},null,"-",null,"J",null,0,"-",0,"","","","",""]
[null,null,null,null,null,null,null,null,null,null,null,null,null,null,null,null,null,"#G8",null,null,null,{"$f":"Z1607","v":"F"},null,"-",null,{"$f":"Z1608","v":"H"},null,0,"-",0,"","","","",""]
[null,null,null,null,null,null,null,null,null,null,null,null,null,null,null,null,null,null,{"$f":"S1609+1","v":9}]
[null,null,null,null,null,null,null,null,null,null,null,null,null,null,null,null,null,null,{"$f":"N_Heure","v":"Time"},{"$f":"N_Table","v":"Table"},{"$f":"N_Arbitre","v":"Referee"},{"$f":"N_Matches","v":"Matches"}]
[null,null,null,null,null,null,null,null,null,null,null,null,null,null,null,null,null,"#G9",null,null,null,{"$f":"Z1611","v":"A"},null,"-",null,{"$f":"Z1612","v":"Q"},null,{"$f":"IF(MaxScore,MaxGoals(W1622,Y1622,MaxGoalsValue),IF(W1622=\"\",\"\",W1622))","v":0},{"$f":"IF(MaxScore,\"-\",IF(W1622=\"\",\"\",\"-\"))","v":"-"},{"$f":"IF(MaxScore,MaxGoals(Y1622,W1622,MaxGoalsValue),IF(Y1622=\"\",\"\",Y1622))","v":0},{"$f":"IF(W1622=\"\",\"\",IF(W1622>Y1622,V1622,IF(W1622=Y1622,\"\",Z1622)))","v":""},{"$f":"IF(W1622=\"\",\"\",IF(W1622=Y1622,V1622,\"\"))","v":""},{"$f":"IF(W1622=\"\",\"\",IF(W1622=Y1622,Z1622,\"\"))","v":""},{"$f":"IF(W1622=\"\",\"\",IF(W1622<Y1622,V1622,IF(W1622=Y1622,\"\",Z1622)))","v":""},{"$f":"CONCATENATE(AE1622,AH1622)","v":""}]
[null,null,null,null,null,null,null,null,null,null,null,null,null,null,null,null,null,"#G9",null,null,null,{"$f":"Z1613","v":"S"},null,"-",null,{"$f":"V1611","v":"O"},null,0,"-",0,"","","","",""]
[null,null,null,null,null,null,null,null,null,null,null,null,null,null,null,null,null,"#G9",null,null,null,{"$f":"Z1614","v":"R"},null,"-",null,{"$f":"V1613","v":"K"},null,0,"-",0,"","","","",""]
[null,null,null,null,null,null,null,null,null,null,null,null,null,null,null,null,null,"#G9",null,null,null,"P",null,"-",null,{"$f":"Z1602","v":"I"},null,0,"-",0,"","","","",""]
[null,null,null,null,null,null,null,null,null,null,null,null,null,null,null,null,null,"#G9",null,null,null,"N",null,"-",null,{"$f":"V1614","v":"G"},null,0,"-",0,"","","","",""]
[null,null,null,null,null,null,null,null,null,null,null,null,null,null,null,null,null,"#G9",null,null,null,"L",null,"-",null,{"$f":"V1615","v":"E"},null,0,"-",0,"","","","",""]
[null,null,null,null,null,null,null,null,null,null,null,null,null,null,null,null,null,"#G9",null,null,null,"J",null,"-",null,{"$f":"V1616","v":"C"},null,0,"-",0,"","","","",""]
[null,null,null,null,null,null,null,null,null,null,null,null,null,null,null,null,null,"#G9",null,null,null,"H",null,"-",null,{"$f":"V1617","v":"B"},null,0,"-",0,"","","","",""]
[null,null,null,null,null,null,null,null,null,null,null,null,null,null,null,null,null,"#G9",null,null,null,{"$f":"V1619","v":"F"},null,"-",null,{"$f":"V1618","v":"D"},null,0,"-",0,"","","","",""]
[null,null,null,null,null,null,null,null,null,null,null,null,null,null,null,null,null,null,{"$f":"S1620+1","v":10}]
[null,null,null,null,null,null,null,null,null,null,null,null,null,null,null,null,null,null,{"$f":"N_Heure","v":"Time"},{"$f":"N_Table","v":"Table"},{"$f":"N_Arbitre","v":"Referee"},{"$f":"N_Matches","v":"Matches"}]
[null,null,null,null,null,null,null,null,null,null,null,null,null,null,null,null,null,"#G10",null,null,null,{"$f":"V1623","v":"S"},null,"-",null,{"$f":"V1622","v":"A"},null,{"$f":"IF(MaxScore,MaxGoals(W1633,Y1633,MaxGoalsValue),IF(W1633=\"\",\"\",W1633))","v":0},{"$f":"IF(MaxScore,\"-\",IF(W1633=\"\",\"\",\"-\"))","v":"-"},{"$f":"IF(MaxScore,MaxGoals(Y1633,W1633,MaxGoalsValue),IF(Y1633=\"\",\"\",Y1633))","v":0},{"$f":"IF(W1633=\"\",\"\",IF(W1633>Y1633,V1633,IF(W1633=Y1633,\"\",Z1633)))","v":""},{"$f":"IF(W1633=\"\",\"\",IF(W1633=Y1633,V1633,\"\"))","v":""},{"$f":"IF(W1633=\"\",\"\",IF(W1633=Y1633,Z1633,\"\"))","v":""},{"$f":"IF(W1633=\"\",\"\",IF(W1633<Y1633,V1633,IF(W1633=Y1633,\"\",Z1633)))","v":""},{"$f":"CONCATENATE(AE1633,AH1633)","v":""}]
[null,null,null,null,null,null,null,null,null,null,null,null,null,null,null,null,null,"#G10",null,null,null,{"$f":"Z1623","v":"O"},null,"-",null,{"$f":"V1624","v":"R"},null,0,"-",0,"","","","",""]
[null,null,null,null,null,null,null,null,null,null,null,null,null,null,null,null,null,"#G10",null,null,null,{"$f":"V1612","v":"M"},null,"-",null,"P",null,0,"-",0,"","","","",""]
[null,null,null,null,null,null,null,null,null,null,null,null,null,null,null,null,null,"#G10",null,null,null,{"$f":"Z1624","v":"K"},null,"-",null,"N",null,0,"-",0,"","","","",""]
[null,null,null,null,null,null,null,null,null,null,null,null,null,null,null,null,null,"#G10",null,null,null,"I",null,"-",null,"L",null,0,"-",0,"","","","",""]
[null,null,null,null,null,null,null,null,null,null,null,null,null,null,null,null,null,"#G10",null,null,null,"G",null,"-",null,"J",null,0,"-",0,"","","","",""]
[null,null,null,null,null,null,null,null,null,null,null,null,null,null,null,null,null,"#G10",null,null,null,"E",null,"-",null,"H",null,0,"-",0,"","","","",""]
[null,null,null,null,null,null,null,null,null,null,null,null,null,null,null,null,null,"#G10",null,null,null,"C",null,"-",null,{"$f":"V1630","v":"F"},null,0,"-",0,"","","","",""]
[null,null,null,null,null,null,null,null,null,null,null,null,null,null,null,null,null,"#G10",null,null,null,"B",null,"-",null,{"$f":"Z1630","v":"D"},null,0,"-",0,"","","","",""]
[null,null,null,null,null,null,null,null,null,null,null,null,null,null,null,null,null,null,{"$f":"S1631+1","v":11}]
[null,null,null,null,null,null,null,null,null,null,null,null,null,null,null,null,null,null,{"$f":"N_Heure","v":"Time"},{"$f":"N_Table","v":"Table"},{"$f":"N_Arbitre","v":"Referee"},{"$f":"N_Matches","v":"Matches"}]
[null,null,null,null,null,null,null,null,null,null,null,null,null,null,null,null,null,"#G11",null,null,null,{"$f":"Z1634","v":"R"},null,"-",null,{"$f":"V1633","v":"S"},null,{"$f":"IF(MaxScore,MaxGoals(W1644,Y1644,MaxGoalsValue),IF(W1644=\"\",\"\",W1644))","v":0},{"$f":"IF(MaxScore,\"-\",IF(W1644=\"\",\"\",\"-\"))","v":"-"},{"$f":"IF(MaxScore,MaxGoals(Y1644,W1644,MaxGoalsValue),IF(Y1644=\"\",\"\",Y1644))","v":0},{"$f":"IF(W1644=\"\",\"\",IF(W1644>Y1644,V1644,IF(W1644=Y1644,\"\",Z1644)))","v":""},{"$f":"IF(W1644=\"\",\"\",IF(W1644=Y1644,V1644,\"\"))","v":""},{"$f":"IF(W1644=\"\",\"\",IF(W1644=Y1644,Z1644,\"\"))","v":""},{"$f":"IF(W1644=\"\",\"\",IF(W1644<Y1644,V1644,IF(W1644=Y1644,\"\",Z1644)))","v":""},{"$f":"CONCATENATE(AE1644,AH1644)","v":""}]
[null,null,null,null,null,null,null,null,null,null,null,null,null,null,null,null,null,"#G11",null,null,null,"P",null,"-",null,{"$f":"Z1622","v":"Q"},null,0,"-",0,"","","","",""]
[null,null,null,null,null,null,null,null,null,null,null,null,null,null,null,null,null,"#G11",null,null,null,"N",null,"-",null,{"$f":"V1634","v":"O"},null,0,"-",0,"","","","",""]
[null,null,null,null,null,null,null,null,null,null,null,null,null,null,null,null,null,"#G11",null,null,null,"L",null,"-",null,"M",null,0,"-",0,"","","","",""]
[null,null,null,null,null,null,null,null,null,null,null,null,null,null,null,null,null,"#G11",null,null,null,"J",null,"-",null,"K",null,0,"-",0,"","","","",""]
[null,null,null,null,null,null,null,null,null,null,null,null,null,null,null,null,null,"#G11",null,null,null,"H",null,"-",null,"I",null,0,"-",0,"","","","",""]
[null,null,null,null,null,null,null,null,null,null,null,null,null,null,null,null,null,"#G11",null,null,null,{"$f":"Z1640","v":"F"},null,"-",null,"G",null,0,"-",0,"","","","",""]
[null,null,null,null,null,null,null,null,null,null,null,null,null,null,null,null,null,"#G11",null,null,null,{"$f":"Z1641","v":"D"},null,"-",null,"E",null,0,"-",0,"","","","",""]
[null,null,null,null,null,null,null,null,null,null,null,null,null,null,null,null,null,"#G11",null,null,null,{"$f":"V1641","v":"B"},null,"-",null,"C",null,0,"-",0,"","","","",""]
[null,null,null,null,null,null,null,null,null,null,null,null,null,null,null,null,null,null,{"$f":"S1642+1","v":12}]
[null,null,null,null,null,null,null,null,null,null,null,null,null,null,null,null,null,null,{"$f":"N_Heure","v":"Time"},{"$f":"N_Table","v":"Table"},{"$f":"N_Arbitre","v":"Referee"},{"$f":"N_Matches","v":"Matches"}]
[null,null,null,null,null,null,null,null,null,null,null,null,null,null,null,null,null,"#G12",null,null,null,{"$f":"V1644","v":"R"},null,"-",null,{"$f":"Z1633","v":"A"},null,{"$f":"IF(MaxScore,MaxGoals(W1655,Y1655,MaxGoalsValue),IF(W1655=\"\",\"\",W1655))","v":0},{"$f":"IF(MaxScore,\"-\",IF(W1655=\"\",\"\",\"-\"))","v":"-"},{"$f":"IF(MaxScore,MaxGoals(Y1655,W1655,MaxGoalsValue),IF(Y1655=\"\",\"\",Y1655))","v":0},{"$f":"IF(W1655=\"\",\"\",IF(W1655>Y1655,V1655,IF(W1655=Y1655,\"\",Z1655)))","v":""},{"$f":"IF(W1655=\"\",\"\",IF(W1655=Y1655,V1655,\"\"))","v":""},{"$f":"IF(W1655=\"\",\"\",IF(W1655=Y1655,Z1655,\"\"))","v":""},{"$f":"IF(W1655=\"\",\"\",IF(W1655<Y1655,V1655,IF(W1655=Y1655,\"\",Z1655)))","v":""},{"$f":"CONCATENATE(AE1655,AH1655)","v":""}]
[null,null,null,null,null,null,null,null,null,null,null,null,null,null,null,null,null,"#G12",null,null,null,{"$f":"Z1644","v":"S"},null,"-",null,{"$f":"V1646","v":"N"},null,0,"-",0,"","","","",""]
[null,null,null,null,null,null,null,null,null,null,null,null,null,null,null,null,null,"#G12",null,null,null,{"$f":"Z1645","v":"Q"},null,"-",null,"L",null,0,"-",0,"","","","",""]
[null,null,null,null,null,null,null,null,null,null,null,null,null,null,null,null,null,"#G12",null,null,null,"O",null,"-",null,"J",null,0,"-",0,"","","","",""]
[null,null,null,null,null,null,null,null,null,null,null,null,null,null,null,null,null,"#G12",null,null,null,{"$f":"Z1647","v":"M"},null,"-",null,"H",null,0,"-",0,"","","","",""]
[null,null,null,null,null,null,null,null,null,null,null,null,null,null,null,null,null,"#G12",null,null,null,"K",null,"-",null,"F",null,0,"-",0,"","","","",""]
[null,null,null,null,null,null,null,null,null,null,null,null,null,null,null,null,null,"#G12",null,null,null,{"$f":"Z1649","v":"I"},null,"-",null,"D",null,0,"-",0,"","","","",""]
[null,null,null,null,null,null,null,null,null,null,null,null,null,null,null,null,null,"#G12",null,null,null,"G",null,"-",null,"B",null,0,"-",0,"","","","",""]
[null,null,null,null,null,null,null,null,null,null,null,null,null,null,null,null,null,"#G12",null,null,null,{"$f":"Z1651","v":"E"},null,"-",null,{"$f":"Z1652","v":"C"},null,0,"-",0,"","","","",""]
[null,null,null,null,null,null,null,null,null,null,null,null,null,null,null,null,null,null,{"$f":"S1653+1","v":13}]
[null,null,null,null,null,null,null,null,null,null,null,null,null,null,null,null,null,null,{"$f":"N_Heure","v":"Time"},{"$f":"N_Table","v":"Table"},{"$f":"N_Arbitre","v":"Referee"},{"$f":"N_Matches","v":"Matches"}]
[null,null,null,null,null,null,null,null,null,null,null,null,null,null,null,null,null,"#G13",null,null,null,{"$f":"Z1655","v":"A"},null,"-",null,{"$f":"V1645","v":"P"},null,{"$f":"IF(MaxScore,MaxGoals(W1666,Y1666,MaxGoalsValue),IF(W1666=\"\",\"\",W1666))","v":0},{"$f":"IF(MaxScore,\"-\",IF(W1666=\"\",\"\",\"-\"))","v":"-"},{"$f":"IF(MaxScore,MaxGoals(Y1666,W1666,MaxGoalsValue),IF(Y1666=\"\",\"\",Y1666))","v":0},{"$f":"IF(W1666=\"\",\"\",IF(W1666>Y1666,V1666,IF(W1666=Y1666,\"\",Z1666)))","v":""},{"$f":"IF(W1666=\"\",\"\",IF(W1666=Y1666,V1666,\"\"))","v":""},{"$f":"IF(W1666=\"\",\"\",IF(W1666=Y1666,Z1666,\"\"))","v":""},{"$f":"IF(W1666=\"\",\"\",IF(W1666<Y1666,V1666,IF(W1666=Y1666,\"\",Z1666)))","v":""},{"$f":"CONCATENATE(AE1666,AH1666)","v":""}]
[null,null,null,null,null,null,null,null,null,null,null,null,null,null,null,null,null,"#G13",null,null,null,{"$f":"Z1656","v":"N"},null,"-",null,{"$f":"V1655","v":"R"},null,0,"-",0,"","","","",""]
[null,null,null,null,null,null,null,null,null,null,null,null,null,null,null,null,null,"#G13",null,null,null,{"$f":"Z1658","v":"J"},null,"-",null,{"$f":"V1656","v":"S"},null,0,"-",0,"","","","",""]
[null,null,null,null,null,null,null,null,null,null,null,null,null,null,null,null,null,"#G13",null,null,null,"H",null,"-",null,{"$f":"V1657","v":"Q"},null,0,"-",0,"","","","",""]
[null,null,null,null,null,null,null,null,null,null,null,null,null,null,null,null,null,"#G13",null,null,null,"F",null,"-",null,"O",null,0,"-",0,"","","","",""]
[null,null,null,null,null,null,null,null,null,null,null,null,null,null,null,null,null,"#G13",null,null,null,"D",null,"-",null,{"$f":"V1659","v":"M"},null,0,"-",0,"","","","",""]
[null,null,null,null,null,null,null,null,null,null,null,null,null,null,null,null,null,"#G13",null,null,null,"B",null,"-",null,"K",null,0,"-",0,"","","","",""]
[null,null,null,null,null,null,null,null,null,null,null,null,null,null,null,null,null,"#G13",null,null,null,"C",null,"-",null,{"$f":"V1661","v":"I"},null,0,"-",0,"","","","",""]
[null,null,null,null,null,null,null,null,null,null,null,null,null,null,null,null,null,"#G13",null,null,null,{"$f":"V1663","v":"E"},null,"-",null,"G",null,0,"-",0,"","","","",""]
[null,null,null,null,null,null,null,null,null,null,null,null,null,null,null,null,null,null,{"$f":"S1664+1","v":14}]
[null,null,null,null,null,null,null,null,null,null,null,null,null,null,null,null,null,null,{"$f":"N_Heure","v":"Time"},{"$f":"N_Table","v":"Table"},{"$f":"N_Arbitre","v":"Referee"},{"$f":"N_Matches","v":"Matches"}]
[null,null,null,null,null,null,null,null,null,null,null,null,null,null,null,null,null,"#G14",null,null,null,{"$f":"V1667","v":"N"},null,"-",null,{"$f":"V1666","v":"A"},null,{"$f":"IF(MaxScore,MaxGoals(W1677,Y1677,MaxGoalsValue),IF(W1677=\"\",\"\",W1677))","v":0},{"$f":"IF(MaxScore,\"-\",IF(W1677=\"\",\"\",\"-\"))","v":"-"},{"$f":"IF(MaxScore,MaxGoals(Y1677,W1677,MaxGoalsValue),IF(Y1677=\"\",\"\",Y1677))","v":0},{"$f":"IF(W1677=\"\",\"\",IF(W1677>Y1677,V1677,IF(W1677=Y1677,\"\",Z1677)))","v":""},{"$f":"IF(W1677=\"\",\"\",IF(W1677=Y1677,V1677,\"\"))","v":""},{"$f":"IF(W1677=\"\",\"\",IF(W1677=Y1677,Z1677,\"\"))","v":""},{"$f":"IF(W1677=\"\",\"\",IF(W1677<Y1677,V1677,IF(W1677=Y1677,\"\",Z1677)))","v":""},{"$f":"CONCATENATE(AE1677,AH1677)","v":""}]
[null,null,null,null,null,null,null,null,null,null,null,null,null,null,null,null,null,"#G14",null,null,null,{"$f":"Z1666","v":"P"},null,"-",null,{"$f":"Z1657","v":"L"},null,0,"-",0,"","","","",""]
[null,null,null,null,null,null,null,null,null,null,null,null,null,null,null,null,null,"#G14",null,null,null,"R",null,"-",null,{"$f":"V1668","v":"J"},null,0,"-",0,"","","","",""]
[null,null,null,null,null,null,null,null,null,null,null,null,null,null,null,null,null,"#G14",null,null,null,"S",null,"-",null,{"$f":"V1670","v":"F"},null,0,"-",0,"","","","",""]
[null,null,null,null,null,null,null,null,null,null,null,null,null,null,null,null,null,"#G14",null,null,null,"Q",null,"-",null,{"$f":"V1671","v":"D"},null,0,"-",0,"","","","",""]
[null,null,null,null,null,null,null,null,null,null,null,null,null,null,null,null,null,"#G14",null,null,null,"O",null,"-",null,{"$f":"V1672","v":"B"},null,0,"-",0,"","","","",""]
[null,null,null,null,null,null,null,null,null,null,null,null,null,null,null,null,null,"#G14",null,null,null,"M",null,"-",null,{"$f":"V1673","v":"C"},null,0,"-",0,"","","","",""]
[null,null,null,null,null,null,null,null,null,null,null,null,null,null,null,null,null,"#G14",null,null,null,"K",null,"-",null,{"$f":"V1674","v":"E"},null,0,"-",0,"","","","",""]
[null,null,null,null,null,null,null,null,null,null,null,null,null,null,null,null,null,"#G14",null,null,null,"I",null,"-",null,{"$f":"Z1674","v":"G"},null,0,"-",0,"","","","",""]
[null,null,null,null,null,null,null,null,null,null,null,null,null,null,null,null,null,null,{"$f":"S1675+1","v":15}]
[null,null,null,null,null,null,null,null,null,null,null,null,null,null,null,null,null,null,{"$f":"N_Heure","v":"Time"},{"$f":"N_Table","v":"Table"},{"$f":"N_Arbitre","v":"Referee"},{"$f":"N_Matches","v":"Matches"}]
[null,null,null,null,null,null,null,null,null,null,null,null,null,null,null,null,null,"#G15",null,null,null,{"$f":"Z1677","v":"A"},null,"-",null,{"$f":"Z1678","v":"L"},null,{"$f":"IF(MaxScore,MaxGoals(W1688,Y1688,MaxGoalsValue),IF(W1688=\"\",\"\",W1688))","v":0},{"$f":"IF(MaxScore,\"-\",IF(W1688=\"\",\"\",\"-\"))","v":"-"},{"$f":"IF(MaxScore,MaxGoals(Y1688,W1688,MaxGoalsValue),IF(Y1688=\"\",\"\",Y1688))","v":0},{"$f":"IF(W1688=\"\",\"\",IF(W1688>Y1688,V1688,IF(W1688=Y1688,\"\",Z1688)))","v":""},{"$f":"IF(W1688=\"\",\"\",IF(W1688=Y1688,V1688,\"\"))","v":""},{"$f":"IF(W1688=\"\",\"\",IF(W1688=Y1688,Z1688,\"\"))","v":""},{"$f":"IF(W1688=\"\",\"\",IF(W1688<Y1688,V1688,IF(W1688=Y1688,\"\",Z1688)))","v":""},{"$f":"CONCATENATE(AE1688,AH1688)","v":""}]
[null,null,null,null,null,null,null,null,null,null,null,null,null,null,null,null,null,"#G15",null,null,null,{"$f":"Z1679","v":"J"},null,"-",null,{"$f":"V1677","v":"N"},null,0,"-",0,"","","","",""]
[null,null,null,null,null,null,null,null,null,null,null,null,null,null,null,null,null,"#G15",null,null,null,{"$f":"V1669","v":"H"},null,"-",null,"P",null,0,"-",0,"","","","",""]
[null,null,null,null,null,null,null,null,null,null,null,null,null,null,null,null,null,"#G15",null,null,null,{"$f":"Z1680","v":"F"},null,"-",null,"R",null,0,"-",0,"","","","",""]
[null,null,null,null,null,null,null,null,null,null,null,null,null,null,null,null,null,"#G15",null,null,null,{"$f":"Z1682","v":"B"},null,"-",null,"S",null,0,"-",0,"","","","",""]
[null,null,null,null,null,null,null,null,null,null,null,null,null,null,null,null,null,"#G15",null,null,null,{"$f":"Z1683","v":"C"},null,"-",null,"Q",null,0,"-",0,"","","","",""]
[null,null,null,null,null,null,null,null,null,null,null,null,null,null,null,null,null,"#G15",null,null,null,{"$f":"Z1684","v":"E"},null,"-",null,"O",null,0,"-",0,"","","","",""]
[null,null,null,null,null,null,null,null,null,null,null,null,null,null,null,null,null,"#G15",null,null,null,{"$f":"Z1685","v":"G"},null,"-",null,"M",null,0,"-",0,"","","","",""]
[null,null,null,null,null,null,null,null,null,null,null,null,null,null,null,null,null,"#G15",null,null,null,{"$f":"V1685","v":"I"},null,"-",null,"K",null,0,"-",0,"","","","",""]
[null,null,null,null,null,null,null,null,null,null,null,null,null,null,null,null,null,null,{"$f":"S1686+1","v":16}]
[null,null,null,null,null,null,null,null,null,null,null,null,null,null,null,null,null,null,{"$f":"N_Heure","v":"Time"},{"$f":"N_Table","v":"Table"},{"$f":"N_Arbitre","v":"Referee"},{"$f":"N_Matches","v":"Matches"}]
[null,null,null,null,null,null,null,null,null,null,null,null,null,null,null,null,null,"#G16",null,null,null,{"$f":"V1689","v":"J"},null,"-",null,{"$f":"V1688","v":"A"},null,{"$f":"IF(MaxScore,MaxGoals(W1699,Y1699,MaxGoalsValue),IF(W1699=\"\",\"\",W1699))","v":0},{"$f":"IF(MaxScore,\"-\",IF(W1699=\"\",\"\",\"-\"))","v":"-"},{"$f":"IF(MaxScore,MaxGoals(Y1699,W1699,MaxGoalsValue),IF(Y1699=\"\",\"\",Y1699))","v":0},{"$f":"IF(W1699=\"\",\"\",IF(W1699>Y1699,V1699,IF(W1699=Y1699,\"\",Z1699)))","v":""},{"$f":"IF(W1699=\"\",\"\",IF(W1699=Y1699,V1699,\"\"))","v":""},{"$f":"IF(W1699=\"\",\"\",IF(W1699=Y1699,Z1699,\"\"))","v":""},{"$f":"IF(W1699=\"\",\"\",IF(W1699<Y1699,V1699,IF(W1699=Y1699,\"\",Z1699)))","v":""},{"$f":"CONCATENATE(AE1699,AH1699)","v":""}]
[null,null,null,null,null,null,null,null,null,null,null,null,null,null,null,null,null,"#G16",null,null,null,{"$f":"Z1688","v":"L"},null,"-",null,{"$f":"V1690","v":"H"},null,0,"-",0,"","","","",""]
[null,null,null,null,null,null,null,null,null,null,null,null,null,null,null,null,null,"#G16",null,null,null,"N",null,"-",null,{"$f":"V1691","v":"F"},null,0,"-",0,"","","","",""]
[null,null,null,null,null,null,null,null,null,null,null,null,null,null,null,null,null,"#G16",null,null,null,"P",null,"-",null,{"$f":"Z1681","v":"D"},null,0,"-",0,"","","","",""]
[null,null,null,null,null,null,null,null,null,null,null,null,null,null,null,null,null,"#G16",null,null,null,"R",null,"-",null,{"$f":"V1692","v":"B"},null,0,"-",0,"","","","",""]
[null,null,null,null,null,null,null,null,null,null,null,null,null,null,null,null,null,"#G16",null,null,null,"S",null,"-",null,{"$f":"V1694","v":"E"},null,0,"-",0,"","","","",""]
[null,null,null,null,null,null,null,null,null,null,null,null,null,null,null,null,null,"#G16",null,null,null,"Q",null,"-",null,{"$f":"V1695","v":"G"},null,0,"-",0,"","","","",""]
[null,null,null,null,null,null,null,null,null,null,null,null,null,null,null,null,null,"#G16",null,null,null,"O",null,"-",null,{"$f":"V1696","v":"I"},null,0,"-",0,"","","","",""]
[null,null,null,null,null,null,null,null,null,null,null,null,null,null,null,null,null,"#G16",null,null,null,"M",null,"-",null,{"$f":"Z1696","v":"K"},null,0,"-",0,"","","","",""]
[null,null,null,null,null,null,null,null,null,null,null,null,null,null,null,null,null,null,{"$f":"S1697+1","v":17}]
[null,null,null,null,null,null,null,null,null,null,null,null,null,null,null,null,null,null,{"$f":"N_Heure","v":"Time"},{"$f":"N_Table","v":"Table"},{"$f":"N_Arbitre","v":"Referee"},{"$f":"N_Matches","v":"Matches"}]
[null,null,null,null,null,null,null,null,null,null,null,null,null,null,null,null,null,"#G17",null,null,null,{"$f":"Z1699","v":"A"},null,"-",null,{"$f":"Z1700","v":"H"},null,{"$f":"IF(MaxScore,MaxGoals(W1710,Y1710,MaxGoalsValue),IF(W1710=\"\",\"\",W1710))","v":0},{"$f":"IF(MaxScore,\"-\",IF(W1710=\"\",\"\",\"-\"))","v":"-"},{"$f":"IF(MaxScore,MaxGoals(Y1710,W1710,MaxGoalsValue),IF(Y1710=\"\",\"\",Y1710))","v":0},{"$f":"IF(W1710=\"\",\"\",IF(W1710>Y1710,V1710,IF(W1710=Y1710,\"\",Z1710)))","v":""},{"$f":"IF(W1710=\"\",\"\",IF(W1710=Y1710,V1710,\"\"))","v":""},{"$f":"IF(W1710=\"\",\"\",IF(W1710=Y1710,Z1710,\"\"))","v":""},{"$f":"IF(W1710=\"\",\"\",IF(W1710<Y1710,V1710,IF(W1710=Y1710,\"\",Z1710)))","v":""},{"$f":"CONCATENATE(AE1710,AH1710)","v":""}]
[null,null,null,null,null,null,null,null,null,null,null,null,null,null,null,null,null,"#G17",null,null,null,{"$f":"Z1701","v":"F"},null,"-",null,{"$f":"V1699","v":"J"},null,0,"-",0,"","","","",""]
[null,null,null,null,null,null,null,null,null,null,null,null,null,null,null,null,null,"#G17",null,null,null,{"$f":"Z1702","v":"D"},null,"-",null,"L",null,0,"-",0,"","","","",""]
[null,null,null,null,null,null,null,null,null,null,null,null,null,null,null,null,null,"#G17",null,null,null,{"$f":"Z1703","v":"B"},null,"-",null,"N",null,0,"-",0,"","","","",""]
[null,null,null,null,null,null,null,null,null,null,null,null,null,null,null,null,null,"#G17",null,null,null,{"$f":"V1693","v":"C"},null,"-",null,"P",null,0,"-",0,"","","","",""]
[null,null,null,null,null,null,null,null,null,null,null,null,null,null,null,null,null,"#G17",null,null,null,{"$f":"Z1704","v":"E"},null,"-",null,"R",null,0,"-",0,"","","","",""]
[null,null,null,null,null,null,null,null,null,null,null,null,null,null,null,null,null,"#G17",null,null,null,{"$f":"Z1706","v":"I"},null,"-",null,"S",null,0,"-",0,"","","","",""]
[null,null,null,null,null,null,null,null,null,null,null,null,null,null,null,null,null,"#G17",null,null,null,{"$f":"Z1707","v":"K"},null,"-",null,"Q",null,0,"-",0,"","","","",""]
[null,null,null,null,null,null,null,null,null,null,null,null,null,null,null,null,null,"#G17",null,null,null,{"$f":"V1707","v":"M"},null,"-",null,"O",null,0,"-",0,"","","","",""]
[null,null,null,null,null,null,null,null,null,null,null,null,null,null,null,null,null,null,{"$f":"S1708+1","v":18}]
[null,null,null,null,null,null,null,null,null,null,null,null,null,null,null,null,null,null,{"$f":"N_Heure","v":"Time"},{"$f":"N_Table","v":"Table"},{"$f":"N_Arbitre","v":"Referee"},{"$f":"N_Matches","v":"Matches"}]
[null,null,null,null,null,null,null,null,null,null,null,null,null,null,null,null,null,"#G18",null,null,null,{"$f":"V1711","v":"F"},null,"-",null,{"$f":"V1710","v":"A"},null,{"$f":"IF(MaxScore,MaxGoals(W1721,Y1721,MaxGoalsValue),IF(W1721=\"\",\"\",W1721))","v":0},{"$f":"IF(MaxScore,\"-\",IF(W1721=\"\",\"\",\"-\"))","v":"-"},{"$f":"IF(MaxScore,MaxGoals(Y1721,W1721,MaxGoalsValue),IF(Y1721=\"\",\"\",Y1721))","v":0},{"$f":"IF(W1721=\"\",\"\",IF(W1721>Y1721,V1721,IF(W1721=Y1721,\"\",Z1721)))","v":""},{"$f":"IF(W1721=\"\",\"\",IF(W1721=Y1721,V1721,\"\"))","v":""},{"$f":"IF(W1721=\"\",\"\",IF(W1721=Y1721,Z1721,\"\"))","v":""},{"$f":"IF(W1721=\"\",\"\",IF(W1721<Y1721,V1721,IF(W1721=Y1721,\"\",Z1721)))","v":""},{"$f":"CONCATENATE(AE1721,AH1721)","v":""}]
[null,null,null,null,null,null,null,null,null,null,null,null,null,null,null,null,null,"#G18",null,null,null,{"$f":"Z1710","v":"H"},null,"-",null,{"$f":"V1712","v":"D"},null,0,"-",0,"","","","",""]
[null,null,null,null,null,null,null,null,null,null,null,null,null,null,null,null,null,"#G18",null,null,null,"J",null,"-",null,{"$f":"V1713","v":"B"},null,0,"-",0,"","","","",""]
[null,null,null,null,null,null,null,null,null,null,null,null,null,null,null,null,null,"#G18",null,null,null,"L",null,"-",null,{"$f":"V1714","v":"C"},null,0,"-",0,"","","","",""]
[null,null,null,null,null,null,null,null,null,null,null,null,null,null,null,null,null,"#G18",null,null,null,"N",null,"-",null,{"$f":"V1715","v":"E"},null,0,"-",0,"","","","",""]
[null,null,null,null,null,null,null,null,null,null,null,null,null,null,null,null,null,"#G18",null,null,null,"P",null,"-",null,{"$f":"Z1705","v":"G"},null,0,"-",0,"","","","",""]
[null,null,null,null,null,null,null,null,null,null,null,null,null,null,null,null,null,"#G18",null,null,null,"R",null,"-",null,{"$f":"V1716","v":"I"},null,0,"-",0,"","","","",""]
[null,null,null,null,null,null,null,null,null,null,null,null,null,null,null,null,null,"#G18",null,null,null,"S",null,"-",null,{"$f":"V1718","v":"M"},null,0,"-",0,"","","","",""]
[null,null,null,null,null,null,null,null,null,null,null,null,null,null,null,null,null,"#G18",null,null,null,"Q",null,"-",null,{"$f":"Z1718","v":"O"},null,0,"-",0,"","","","",""]
[null,null,null,null,null,null,null,null,null,null,null,null,null,null,null,null,null,null,{"$f":"S1719+1","v":19}]
[null,null,null,null,null,null,null,null,null,null,null,null,null,null,null,null,null,null,{"$f":"N_Heure","v":"Time"},{"$f":"N_Table","v":"Table"},{"$f":"N_Arbitre","v":"Referee"},{"$f":"N_Matches","v":"Matches"}]
[null,null,null,null,null,null,null,null,null,null,null,null,null,null,null,null,null,"#G19",null,null,null,{"$f":"Z1721","v":"A"},null,"-",null,{"$f":"Z1722","v":"D"},null,{"$f":"IF(MaxScore,MaxGoals(W1732,Y1732,MaxGoalsValue),IF(W1732=\"\",\"\",W1732))","v":0},{"$f":"IF(MaxScore,\"-\",IF(W1732=\"\",\"\",\"-\"))","v":"-"},{"$f":"IF(MaxScore,MaxGoals(Y1732,W1732,MaxGoalsValue),IF(Y1732=\"\",\"\",Y1732))","v":0},{"$f":"IF(W1732=\"\",\"\",IF(W1732>Y1732,V1732,IF(W1732=Y1732,\"\",Z1732)))","v":""},{"$f":"IF(W1732=\"\",\"\",IF(W1732=Y1732,V1732,\"\"))","v":""},{"$f":"IF(W1732=\"\",\"\",IF(W1732=Y1732,Z1732,\"\"))","v":""},{"$f":"IF(W1732=\"\",\"\",IF(W1732<Y1732,V1732,IF(W1732=Y1732,\"\",Z1732)))","v":""},{"$f":"CONCATENATE(AE1732,AH1732)","v":""}]
[null,null,null,null,null,null,null,null,null,null,null,null,null,null,null,null,null,"#G19",null,null,null,{"$f":"Z1723","v":"B"},null,"-",null,{"$f":"V1721","v":"F"},null,0,"-",0,"","","","",""]
[null,null,null,null,null,null,null,null,null,null,null,null,null,null,null,null,null,"#G19",null,null,null,{"$f":"Z1724","v":"C"},null,"-",null,"H",null,0,"-",0,"","","","",""]
[null,null,null,null,null,null,null,null,null,null,null,null,null,null,null,null,null,"#G19",null,null,null,{"$f":"Z1725","v":"E"},null,"-",null,"J",null,0,"-",0,"","","","",""]
[null,null,null,null,null,null,null,null,null,null,null,null,null,null,null,null,null,"#G19",null,null,null,{"$f":"Z1726","v":"G"},null,"-",null,"L",null,0,"-",0,"","","","",""]
[null,null,null,null,null,null,null,null,null,null,null,null,null,null,null,null,null,"#G19",null,null,null,{"$f":"Z1727","v":"I"},null,"-",null,"N",null,0,"-",0,"","","","",""]
[null,null,null,null,null,null,null,null,null,null,null,null,null,null,null,null,null,"#G19",null,null,null,{"$f":"V1717","v":"K"},null,"-",null,"P",null,0,"-",0,"","","","",""]
[null,null,null,null,null,null,null,null,null,null,null,null,null,null,null,null,null,"#G19",null,null,null,{"$f":"Z1728","v":"M"},null,"-",null,"R",null,0,"-",0,"","","","",""]
[null,null,null,null,null,null,null,null,null,null,null,null,null,null,null,null,null,"#G19",null,null,null,{"$f":"V1729","v":"Q"},null,"-",null,"S",null,0,"-",0,"","","","",""]
[]
[null,{"$f":"N_Group_20","v":"Group of 20"},null,null,null,null,null,null,null,null,null,null,null,null,null,null,null,null,null,null,null,null,null,null,null,null,null,null,null,null,null,null,null,null,null,null,null,null,{"$f":"B1742","v":"Group of 20"}]
[]
[null,{"$f":"N_Tirage","v":"Draw"},"Cla.","Cla1","Part","Cla2",{"$f":"N_Joueurs","v":"Players"},{"$f":"N_RankPoints","v":"Rk Pt."},{"$f":"N_Diff_Part","v":"Part-Diff"},"Pts","J","G","N","P","BP","BC","Diff",null,null,null,null,null,null,null,null,null,null,null,null,null,{"$f":"N_G","v":"W"},{"$f":"N_N","v":"D"},{"$f":"N_N","v":"D"},{"$f":"N_P","v":"L"},"CONCAT","Ref Group",{"$f":"IF(COUNTA(W1767:W1992)=0,\"\",\"OK\")","v":""},null,null,{"$f":"N_Cla.","v":"Rk"},{"$f":"N_Joueurs","v":"Players"},{"$f":"N_Pts","v":"Pts"},{"$f":"N_J","v":"Pld"},{"$f":"N_G","v":"W"},{"$f":"N_N","v":"D"},{"$f":"N_P","v":"L"},{"$f":"N_BP","v":"F"},{"$f":"N_BC","v":"A"},{"$f":"N_Diff.","v":"SO"}]
[null,1,{"$f":"IF(AK1744=\"\",\"\",RANK(F1745,F1745:F1764)*1000+ROW())","v":""},{"$f":"IF(L1745=\"\",\"\",CritClassInd1_Points*J1745+CritClassInd1_Matches*L1745+CritClassInd1_Attaque*O1745+CritClassInd1_DiffButs*Q1745)","v":""},{"$f":"IF(L1745=\"\",\"\",Nb_Diff_Part(D1745,D1745:D1764,G1745,G1745:G1764,AI1767:AI1992)*CritClassInd_DiffPart+Nb_Goal_Part(D1745,D1745:D1764,G1745,G1745:G1764,V1767:Z1992)*CritClassInd_GoalPart+Nb_Score_Part(D1745,D1745:D1764,G1745,G1745:G1764,V1767:Z1992)*CritClassInd_ScorePart)","v":""},{"$f":"IF(L1745=\"\",\"\",D1745+E1745+CritClassInd2_Points*J1745+CritClassInd2_Matches*L1745+CritClassInd2_Attaque*O1745+CritClassInd2_DiffButs*Q1745+CritClassInd_Ranking*H1745+I1745)","v":""},"A",{"$f":"GMFTRANKINGPOINTS(G1745,Particular_Category)","v":0},null,{"$f":"IF(AK1744=\"\",\"\",(L1745*Points_Victoire)+M1745*Points_Null)","v":""},{"$f":"IF(L1745=\"\",\"\",SUM(L1745:N1745))","v":""},{"$f":"IF(AK1744=\"\",\"\",COUNTIF(AE1767:AE1992,G1745))","v":""},{"$f":"IF(AK1744=\"\",\"\",COUNTIF(AF1767:AG1992,G1745))","v":""},{"$f":"IF(AK1744=\"\",\"\",COUNTIF(AH1767:AH1992,G1745))","v":""},{"$f":"IF(AK1744=\"\",\"\",SUMIF(V1767:V1992,G1745,AB1767:AB1992)+SUMIF(Z1767:Z1992,G1745,AD1767:AD1992))","v":""},{"$f":"IF(AK1744=\"\",\"\",SUMIF(V1767:V1992,G1745,AD1767:AD1992)+SUMIF(Z1767:Z1992,G1745,AB1767:AB1992))","v":""},{"$f":"IF(AK1744=\"\",\"\",O1745-P1745)","v":""},null,null,null,null,null,null,null,null,null,null,null,null,null,null,null,null,null,null,null,{"$f":"IF(AK1744=\"\",\"\",SMALL(C1745:C1764,1))","v":""},null,null,{"$f":"IF(AK1744=\"\",\"\",INT(AK1745/1000))","v":""},{"$f":"IF(AK1744=\"\",\"\",VLOOKUP(AK1745,C1745:Q1764,5,FALSE))","v":""},{"$f":"VLOOKUP(AK1745,C1745:Q1764,8,FALSE)","v":""},{"$f":"VLOOKUP(AK1745,C1745:Q1764,9,FALSE)","v":""},{"$f":"VLOOKUP(AK1745,C1745:Q1764,10,FALSE)","v":""},{"$f":"VLOOKUP(AK1745,C1745:Q1764,11,FALSE)","v":""},{"$f":"VLOOKUP(AK1745,C1745:Q1764,12,FALSE)","v":""},{"$f":"VLOOKUP(AK1745,C1745:Q1764,13,FALSE)","v":""},{"$f":"VLOOKUP(AK1745,C1745:Q1764,14,FALSE)","v":""},{"$f":"VLOOKUP(AK1745,C1745:Q1764,15,FALSE)","v":""}]
[null,2,{"$f":"IF(AK1744=\"\",\"\",RANK(F1746,F1745:F1764)*1000+ROW())","v":""},{"$f":"IF(L1746=\"\",\"\",CritClassInd1_Points*J1746+CritClassInd1_Matches*L1746+CritClassInd1_Attaque*O1746+CritClassInd1_DiffButs*Q1746)","v":""},{"$f":"IF(L1746=\"\",\"\",Nb_Diff_Part(D1746,D1745:D1764,G1746,G1745:G1764,AI1767:AI1992)*CritClassInd_DiffPart+Nb_Goal_Part(D1746,D1745:D1764,G1746,G1745:G1764,V1767:Z1992)*CritClassInd_GoalPart+Nb_Score_Part(D1746,D1745:D1764,G1746,G1745:G1764,V1767:Z1992)*CritClassInd_ScorePart)","v":""},{"$f":"IF(L1746=\"\",\"\",D1746+E1746+CritClassInd2_Points*J1746+CritClassInd2_Matches*L1746+CritClassInd2_Attaque*O1746+CritClassInd2_DiffButs*Q1746+CritClassInd_Ranking*H1746+I1746)","v":""},"B",0,null,{"$f":"IF(AK1744=\"\",\"\",(L1746*Points_Victoire)+M1746*Points_Null)","v":""},"",{"$f":"IF(AK1744=\"\",\"\",COUNTIF(AE1767:AE1992,G1746))","v":""},{"$f":"IF(AK1744=\"\",\"\",COUNTIF(AF1767:AG1992,G1746))","v":""},{"$f":"IF(AK1744=\"\",\"\",COUNTIF(AH1767:AH1992,G1746))","v":""},{"$f":"IF(AK1744=\"\",\"\",SUMIF(V1767:V1992,G1746,AB1767:AB1992)+SUMIF(Z1767:Z1992,G1746,AD1767:AD1992))","v":""},{"$f":"IF(AK1744=\"\",\"\",SUMIF(V1767:V1992,G1746,AD1767:AD1992)+SUMIF(Z1767:Z1992,G1746,AB1767:AB1992))","v":""},{"$f":"IF(AK1744=\"\",\"\",O1746-P1746)","v":""},null,null,null,null,null,null,null,null,null,null,null,null,null,null,null,null,null,null,null,{"$f":"IF(AK1744=\"\",\"\",SMALL(C1745:C1764,2))","v":""},null,null,{"$f":"IF(AK1744=\"\",\"\",INT(AK1746/1000))","v":""},{"$f":"IF(AK1744=\"\",\"\",VLOOKUP(AK1746,C1745:Q1764,5,FALSE))","v":""},{"$f":"VLOOKUP(AK1746,C1745:Q1764,8,FALSE)","v":""},{"$f":"VLOOKUP(AK1746,C1745:Q1764,9,FALSE)","v":""},{"$f":"VLOOKUP(AK1746,C1745:Q1764,10,FALSE)","v":""},{"$f":"VLOOKUP(AK1746,C1745:Q1764,11,FALSE)","v":""},{"$f":"VLOOKUP(AK1746,C1745:Q1764,12,FALSE)","v":""},{"$f":"VLOOKUP(AK1746,C1745:Q1764,13,FALSE)","v":""},{"$f":"VLOOKUP(AK1746,C1745:Q1764,14,FALSE)","v":""},{"$f":"VLOOKUP(AK1746,C1745:Q1764,15,FALSE)","v":""}]
[null,3,{"$f":"IF(AK1744=\"\",\"\",RANK(F1747,F1745:F1764)*1000+ROW())","v":""},"",{"$f":"IF(L1747=\"\",\"\",Nb_Diff_Part(D1747,D1745:D1764,G1747,G1745:G1764,AI1767:AI1992)*CritClassInd_DiffPart+Nb_Goal_Part(D1747,D1745:D1764,G1747,G1745:G1764,V1767:Z1992)*CritClassInd_GoalPart+Nb_Score_Part(D1747,D1745:D1764,G1747,G1745:G1764,V1767:Z1992)*CritClassInd_ScorePart)","v":""},"","C",0,null,{"$f":"IF(AK1744=\"\",\"\",(L1747*Points_Victoire)+M1747*Points_Null)","v":""},"",{"$f":"IF(AK1744=\"\",\"\",COUNTIF(AE1767:AE1992,G1747))","v":""},{"$f":"IF(AK1744=\"\",\"\",COUNTIF(AF1767:AG1992,G1747))","v":""},{"$f":"IF(AK1744=\"\",\"\",COUNTIF(AH1767:AH1992,G1747))","v":""},{"$f":"IF(AK1744=\"\",\"\",SUMIF(V1767:V1992,G1747,AB1767:AB1992)+SUMIF(Z1767:Z1992,G1747,AD1767:AD1992))","v":""},{"$f":"IF(AK1744=\"\",\"\",SUMIF(V1767:V1992,G1747,AD1767:AD1992)+SUMIF(Z1767:Z1992,G1747,AB1767:AB1992))","v":""},{"$f":"IF(AK1744=\"\",\"\",O1747-P1747)","v":""},null,null,null,null,null,null,null,null,null,null,null,null,null,null,null,null,null,null,null,{"$f":"IF(AK1744=\"\",\"\",SMALL(C1745:C1764,3))","v":""},null,null,{"$f":"IF(AK1744=\"\",\"\",INT(AK1747/1000))","v":""},{"$f":"IF(AK1744=\"\",\"\",VLOOKUP(AK1747,C1745:Q1764,5,FALSE))","v":""},{"$f":"VLOOKUP(AK1747,C1745:Q1764,8,FALSE)","v":""},{"$f":"VLOOKUP(AK1747,C1745:Q1764,9,FALSE)","v":""},{"$f":"VLOOKUP(AK1747,C1745:Q1764,10,FALSE)","v":""},{"$f":"VLOOKUP(AK1747,C1745:Q1764,11,FALSE)","v":""},{"$f":"VLOOKUP(AK1747,C1745:Q1764,12,FALSE)","v":""},{"$f":"VLOOKUP(AK1747,C1745:Q1764,13,FALSE)","v":""},{"$f":"VLOOKUP(AK1747,C1745:Q1764,14,FALSE)","v":""},{"$f":"VLOOKUP(AK1747,C1745:Q1764,15,FALSE)","v":""}]
[null,4,{"$f":"IF(AK1744=\"\",\"\",RANK(F1748,F1745:F1764)*1000+ROW())","v":""},"",{"$f":"IF(L1748=\"\",\"\",Nb_Diff_Part(D1748,D1745:D1764,G1748,G1745:G1764,AI1767:AI1992)*CritClassInd_DiffPart+Nb_Goal_Part(D1748,D1745:D1764,G1748,G1745:G1764,V1767:Z1992)*CritClassInd_GoalPart+Nb_Score_Part(D1748,D1745:D1764,G1748,G1745:G1764,V1767:Z1992)*CritClassInd_ScorePart)","v":""},"","D",0,null,{"$f":"IF(AK1744=\"\",\"\",(L1748*Points_Victoire)+M1748*Points_Null)","v":""},"",{"$f":"IF(AK1744=\"\",\"\",COUNTIF(AE1767:AE1992,G1748))","v":""},{"$f":"IF(AK1744=\"\",\"\",COUNTIF(AF1767:AG1992,G1748))","v":""},{"$f":"IF(AK1744=\"\",\"\",COUNTIF(AH1767:AH1992,G1748))","v":""},{"$f":"IF(AK1744=\"\",\"\",SUMIF(V1767:V1992,G1748,AB1767:AB1992)+SUMIF(Z1767:Z1992,G1748,AD1767:AD1992))","v":""},{"$f":"IF(AK1744=\"\",\"\",SUMIF(V1767:V1992,G1748,AD1767:AD1992)+SUMIF(Z1767:Z1992,G1748,AB1767:AB1992))","v":""},{"$f":"IF(AK1744=\"\",\"\",O1748-P1748)","v":""},null,null,null,null,null,null,null,null,null,null,null,null,null,null,null,null,null,null,null,{"$f":"IF(AK1744=\"\",\"\",SMALL(C1745:C1764,4))","v":""},null,null,{"$f":"IF(AK1744=\"\",\"\",INT(AK1748/1000))","v":""},{"$f":"IF(AK1744=\"\",\"\",VLOOKUP(AK1748,C1745:Q1764,5,FALSE))","v":""},{"$f":"VLOOKUP(AK1748,C1745:Q1764,8,FALSE)","v":""},{"$f":"VLOOKUP(AK1748,C1745:Q1764,9,FALSE)","v":""},{"$f":"VLOOKUP(AK1748,C1745:Q1764,10,FALSE)","v":""},{"$f":"VLOOKUP(AK1748,C1745:Q1764,11,FALSE)","v":""},{"$f":"VLOOKUP(AK1748,C1745:Q1764,12,FALSE)","v":""},{"$f":"VLOOKUP(AK1748,C1745:Q1764,13,FALSE)","v":""},{"$f":"VLOOKUP(AK1748,C1745:Q1764,14,FALSE)","v":""},{"$f":"VLOOKUP(AK1748,C1745:Q1764,15,FALSE)","v":""}]
[null,5,{"$f":"IF(AK1744=\"\",\"\",RANK(F1749,F1745:F1764)*1000+ROW())","v":""},"",{"$f":"IF(L1749=\"\",\"\",Nb_Diff_Part(D1749,D1745:D1764,G1749,G1745:G1764,AI1767:AI1992)*CritClassInd_DiffPart+Nb_Goal_Part(D1749,D1745:D1764,G1749,G1745:G1764,V1767:Z1992)*CritClassInd_GoalPart+Nb_Score_Part(D1749,D1745:D1764,G1749,G1745:G1764,V1767:Z1992)*CritClassInd_ScorePart)","v":""},"","E",0,null,{"$f":"IF(AK1744=\"\",\"\",(L1749*Points_Victoire)+M1749*Points_Null)","v":""},"",{"$f":"IF(AK1744=\"\",\"\",COUNTIF(AE1767:AE1992,G1749))","v":""},{"$f":"IF(AK1744=\"\",\"\",COUNTIF(AF1767:AG1992,G1749))","v":""},{"$f":"IF(AK1744=\"\",\"\",COUNTIF(AH1767:AH1992,G1749))","v":""},{"$f":"IF(AK1744=\"\",\"\",SUMIF(V1767:V1992,G1749,AB1767:AB1992)+SUMIF(Z1767:Z1992,G1749,AD1767:AD1992))","v":""},{"$f":"IF(AK1744=\"\",\"\",SUMIF(V1767:V1992,G1749,AD1767:AD1992)+SUMIF(Z1767:Z1992,G1749,AB1767:AB1992))","v":""},{"$f":"IF(AK1744=\"\",\"\",O1749-P1749)","v":""},null,null,null,null,null,null,null,null,null,null,null,null,null,null,null,null,null,null,null,{"$f":"IF(AK1744=\"\",\"\",SMALL(C1745:C1764,5))","v":""},null,null,{"$f":"IF(AK1744=\"\",\"\",INT(AK1749/1000))","v":""},{"$f":"IF(AK1744=\"\",\"\",VLOOKUP(AK1749,C1745:Q1764,5,FALSE))","v":""},{"$f":"VLOOKUP(AK1749,C1745:Q1764,8,FALSE)","v":""},{"$f":"VLOOKUP(AK1749,C1745:Q1764,9,FALSE)","v":""},{"$f":"VLOOKUP(AK1749,C1745:Q1764,10,FALSE)","v":""},{"$f":"VLOOKUP(AK1749,C1745:Q1764,11,FALSE)","v":""},{"$f":"VLOOKUP(AK1749,C1745:Q1764,12,FALSE)","v":""},{"$f":"VLOOKUP(AK1749,C1745:Q1764,13,FALSE)","v":""},{"$f":"VLOOKUP(AK1749,C1745:Q1764,14,FALSE)","v":""},{"$f":"VLOOKUP(AK1749,C1745:Q1764,15,FALSE)","v":""}]
[null,6,{"$f":"IF(AK1744=\"\",\"\",RANK(F1750,F1745:F1764)*1000+ROW())","v":""},"",{"$f":"IF(L1750=\"\",\"\",Nb_Diff_Part(D1750,D1745:D1764,G1750,G1745:G1764,AI1767:AI1992)*CritClassInd_DiffPart+Nb_Goal_Part(D1750,D1745:D1764,G1750,G1745:G1764,V1767:Z1992)*CritClassInd_GoalPart+Nb_Score_Part(D1750,D1745:D1764,G1750,G1745:G1764,V1767:Z1992)*CritClassInd_ScorePart)","v":""},"","F",0,null,{"$f":"IF(AK1744=\"\",\"\",(L1750*Points_Victoire)+M1750*Points_Null)","v":""},"",{"$f":"IF(AK1744=\"\",\"\",COUNTIF(AE1767:AE1992,G1750))","v":""},{"$f":"IF(AK1744=\"\",\"\",COUNTIF(AF1767:AG1992,G1750))","v":""},{"$f":"IF(AK1744=\"\",\"\",COUNTIF(AH1767:AH1992,G1750))","v":""},{"$f":"IF(AK1744=\"\",\"\",SUMIF(V1767:V1992,G1750,AB1767:AB1992)+SUMIF(Z1767:Z1992,G1750,AD1767:AD1992))","v":""},{"$f":"IF(AK1744=\"\",\"\",SUMIF(V1767:V1992,G1750,AD1767:AD1992)+SUMIF(Z1767:Z1992,G1750,AB1767:AB1992))","v":""},{"$f":"IF(AK1744=\"\",\"\",O1750-P1750)","v":""},null,null,null,null,null,null,null,null,null,null,null,null,null,null,null,null,null,null,null,{"$f":"IF(AK1744=\"\",\"\",SMALL(C1745:C1764,6))","v":""},null,null,{"$f":"IF(AK1744=\"\",\"\",INT(AK1750/1000))","v":""},{"$f":"IF(AK1744=\"\",\"\",VLOOKUP(AK1750,C1745:Q1764,5,FALSE))","v":""},{"$f":"VLOOKUP(AK1750,C1745:Q1764,8,FALSE)","v":""},{"$f":"VLOOKUP(AK1750,C1745:Q1764,9,FALSE)","v":""},{"$f":"VLOOKUP(AK1750,C1745:Q1764,10,FALSE)","v":""},{"$f":"VLOOKUP(AK1750,C1745:Q1764,11,FALSE)","v":""},{"$f":"VLOOKUP(AK1750,C1745:Q1764,12,FALSE)","v":""},{"$f":"VLOOKUP(AK1750,C1745:Q1764,13,FALSE)","v":""},{"$f":"VLOOKUP(AK1750,C1745:Q1764,14,FALSE)","v":""},{"$f":"VLOOKUP(AK1750,C1745:Q1764,15,FALSE)","v":""}]
[null,7,{"$f":"IF(AK1744=\"\",\"\",RANK(F1751,F1745:F1764)*1000+ROW())","v":""},"",{"$f":"IF(L1751=\"\",\"\",Nb_Diff_Part(D1751,D1745:D1764,G1751,G1745:G1764,AI1767:AI1992)*CritClassInd_DiffPart+Nb_Goal_Part(D1751,D1745:D1764,G1751,G1745:G1764,V1767:Z1992)*CritClassInd_GoalPart+Nb_Score_Part(D1751,D1745:D1764,G1751,G1745:G1764,V1767:Z1992)*CritClassInd_ScorePart)","v":""},"","G",0,null,{"$f":"IF(AK1744=\"\",\"\",(L1751*Points_Victoire)+M1751*Points_Null)","v":""},"",{"$f":"IF(AK1744=\"\",\"\",COUNTIF(AE1767:AE1992,G1751))","v":""},{"$f":"IF(AK1744=\"\",\"\",COUNTIF(AF1767:AG1992,G1751))","v":""},{"$f":"IF(AK1744=\"\",\"\",COUNTIF(AH1767:AH1992,G1751))","v":""},{"$f":"IF(AK1744=\"\",\"\",SUMIF(V1767:V1992,G1751,AB1767:AB1992)+SUMIF(Z1767:Z1992,G1751,AD1767:AD1992))","v":""},{"$f":"IF(AK1744=\"\",\"\",SUMIF(V1767:V1992,G1751,AD1767:AD1992)+SUMIF(Z1767:Z1992,G1751,AB1767:AB1992))","v":""},{"$f":"IF(AK1744=\"\",\"\",O1751-P1751)","v":""},null,null,null,null,null,null,null,null,null,null,null,null,null,null,null,null,null,null,null,{"$f":"IF(AK1744=\"\",\"\",SMALL(C1745:C1764,7))","v":""},null,null,{"$f":"IF(AK1744=\"\",\"\",INT(AK1751/1000))","v":""},{"$f":"IF(AK1744=\"\",\"\",VLOOKUP(AK1751,C1745:Q1764,5,FALSE))","v":""},{"$f":"VLOOKUP(AK1751,C1745:Q1764,8,FALSE)","v":""},{"$f":"VLOOKUP(AK1751,C1745:Q1764,9,FALSE)","v":""},{"$f":"VLOOKUP(AK1751,C1745:Q1764,10,FALSE)","v":""},{"$f":"VLOOKUP(AK1751,C1745:Q1764,11,FALSE)","v":""},{"$f":"VLOOKUP(AK1751,C1745:Q1764,12,FALSE)","v":""},{"$f":"VLOOKUP(AK1751,C1745:Q1764,13,FALSE)","v":""},{"$f":"VLOOKUP(AK1751,C1745:Q1764,14,FALSE)","v":""},{"$f":"VLOOKUP(AK1751,C1745:Q1764,15,FALSE)","v":""}]
[null,8,{"$f":"IF(AK1744=\"\",\"\",RANK(F1752,F1745:F1764)*1000+ROW())","v":""},"",{"$f":"IF(L1752=\"\",\"\",Nb_Diff_Part(D1752,D1745:D1764,G1752,G1745:G1764,AI1767:AI1992)*CritClassInd_DiffPart+Nb_Goal_Part(D1752,D1745:D1764,G1752,G1745:G1764,V1767:Z1992)*CritClassInd_GoalPart+Nb_Score_Part(D1752,D1745:D1764,G1752,G1745:G1764,V1767:Z1992)*CritClassInd_ScorePart)","v":""},"","H",0,null,{"$f":"IF(AK1744=\"\",\"\",(L1752*Points_Victoire)+M1752*Points_Null)","v":""},"",{"$f":"IF(AK1744=\"\",\"\",COUNTIF(AE1767:AE1992,G1752))","v":""},{"$f":"IF(AK1744=\"\",\"\",COUNTIF(AF1767:AG1992,G1752))","v":""},{"$f":"IF(AK1744=\"\",\"\",COUNTIF(AH1767:AH1992,G1752))","v":""},{"$f":"IF(AK1744=\"\",\"\",SUMIF(V1767:V1992,G1752,AB1767:AB1992)+SUMIF(Z1767:Z1992,G1752,AD1767:AD1992))","v":""},{"$f":"IF(AK1744=\"\",\"\",SUMIF(V1767:V1992,G1752,AD1767:AD1992)+SUMIF(Z1767:Z1992,G1752,AB1767:AB1992))","v":""},{"$f":"IF(AK1744=\"\",\"\",O1752-P1752)","v":""},null,null,null,null,null,null,null,null,null,null,null,null,null,null,null,null,null,null,null,{"$f":"IF(AK1744=\"\",\"\",SMALL(C1745:C1764,8))","v":""},null,null,{"$f":"IF(AK1744=\"\",\"\",INT(AK1752/1000))","v":""},{"$f":"IF(AK1744=\"\",\"\",VLOOKUP(AK1752,C1745:Q1764,5,FALSE))","v":""},{"$f":"VLOOKUP(AK1752,C1745:Q1764,8,FALSE)","v":""},{"$f":"VLOOKUP(AK1752,C1745:Q1764,9,FALSE)","v":""},{"$f":"VLOOKUP(AK1752,C1745:Q1764,10,FALSE)","v":""},{"$f":"VLOOKUP(AK1752,C1745:Q1764,11,FALSE)","v":""},{"$f":"VLOOKUP(AK1752,C1745:Q1764,12,FALSE)","v":""},{"$f":"VLOOKUP(AK1752,C1745:Q1764,13,FALSE)","v":""},{"$f":"VLOOKUP(AK1752,C1745:Q1764,14,FALSE)","v":""},{"$f":"VLOOKUP(AK1752,C1745:Q1764,15,FALSE)","v":""}]
[null,9,{"$f":"IF(AK1744=\"\",\"\",RANK(F1753,F1745:F1764)*1000+ROW())","v":""},"",{"$f":"IF(L1753=\"\",\"\",Nb_Diff_Part(D1753,D1745:D1764,G1753,G1745:G1764,AI1767:AI1992)*CritClassInd_DiffPart+Nb_Goal_Part(D1753,D1745:D1764,G1753,G1745:G1764,V1767:Z1992)*CritClassInd_GoalPart+Nb_Score_Part(D1753,D1745:D1764,G1753,G1745:G1764,V1767:Z1992)*CritClassInd_ScorePart)","v":""},"","I",0,null,{"$f":"IF(AK1744=\"\",\"\",(L1753*Points_Victoire)+M1753*Points_Null)","v":""},"",{"$f":"IF(AK1744=\"\",\"\",COUNTIF(AE1767:AE1992,G1753))","v":""},{"$f":"IF(AK1744=\"\",\"\",COUNTIF(AF1767:AG1992,G1753))","v":""},{"$f":"IF(AK1744=\"\",\"\",COUNTIF(AH1767:AH1992,G1753))","v":""},{"$f":"IF(AK1744=\"\",\"\",SUMIF(V1767:V1992,G1753,AB1767:AB1992)+SUMIF(Z1767:Z1992,G1753,AD1767:AD1992))","v":""},{"$f":"IF(AK1744=\"\",\"\",SUMIF(V1767:V1992,G1753,AD1767:AD1992)+SUMIF(Z1767:Z1992,G1753,AB1767:AB1992))","v":""},{"$f":"IF(AK1744=\"\",\"\",O1753-P1753)","v":""},null,null,null,null,null,null,null,null,null,null,null,null,null,null,null,null,null,null,null,{"$f":"IF(AK1744=\"\",\"\",SMALL(C1745:C1764,9))","v":""},null,null,{"$f":"IF(AK1744=\"\",\"\",INT(AK1753/1000))","v":""},{"$f":"IF(AK1744=\"\",\"\",VLOOKUP(AK1753,C1745:Q1764,5,FALSE))","v":""},{"$f":"VLOOKUP(AK1753,C1745:Q1764,8,FALSE)","v":""},{"$f":"VLOOKUP(AK1753,C1745:Q1764,9,FALSE)","v":""},{"$f":"VLOOKUP(AK1753,C1745:Q1764,10,FALSE)","v":""},{"$f":"VLOOKUP(AK1753,C1745:Q1764,11,FALSE)","v":""},{"$f":"VLOOKUP(AK1753,C1745:Q1764,12,FALSE)","v":""},{"$f":"VLOOKUP(AK1753,C1745:Q1764,13,FALSE)","v":""},{"$f":"VLOOKUP(AK1753,C1745:Q1764,14,FALSE)","v":""},{"$f":"VLOOKUP(AK1753,C1745:Q1764,15,FALSE)","v":""}]
[null,10,{"$f":"IF(AK1744=\"\",\"\",RANK(F1754,F1745:F1764)*1000+ROW())","v":""},"",{"$f":"IF(L1754=\"\",\"\",Nb_Diff_Part(D1754,D1745:D1764,G1754,G1745:G1764,AI1767:AI1992)*CritClassInd_DiffPart+Nb_Goal_Part(D1754,D1745:D1764,G1754,G1745:G1764,V1767:Z1992)*CritClassInd_GoalPart+Nb_Score_Part(D1754,D1745:D1764,G1754,G1745:G1764,V1767:Z1992)*CritClassInd_ScorePart)","v":""},"","J",0,null,{"$f":"IF(AK1744=\"\",\"\",(L1754*Points_Victoire)+M1754*Points_Null)","v":""},"",{"$f":"IF(AK1744=\"\",\"\",COUNTIF(AE1767:AE1992,G1754))","v":""},{"$f":"IF(AK1744=\"\",\"\",COUNTIF(AF1767:AG1992,G1754))","v":""},{"$f":"IF(AK1744=\"\",\"\",COUNTIF(AH1767:AH1992,G1754))","v":""},{"$f":"IF(AK1744=\"\",\"\",SUMIF(V1767:V1992,G1754,AB1767:AB1992)+SUMIF(Z1767:Z1992,G1754,AD1767:AD1992))","v":""},{"$f":"IF(AK1744=\"\",\"\",SUMIF(V1767:V1992,G1754,AD1767:AD1992)+SUMIF(Z1767:Z1992,G1754,AB1767:AB1992))","v":""},{"$f":"IF(AK1744=\"\",\"\",O1754-P1754)","v":""},null,null,null,null,null,null,null,null,null,null,null,null,null,null,null,null,null,null,null,{"$f":"IF(AK1744=\"\",\"\",SMALL(C1745:C1764,10))","v":""},null,null,{"$f":"IF(AK1744=\"\",\"\",INT(AK1754/1000))","v":""},{"$f":"IF(AK1744=\"\",\"\",VLOOKUP(AK1754,C1745:Q1764,5,FALSE))","v":""},{"$f":"VLOOKUP(AK1754,C1745:Q1764,8,FALSE)","v":""},{"$f":"VLOOKUP(AK1754,C1745:Q1764,9,FALSE)","v":""},{"$f":"VLOOKUP(AK1754,C1745:Q1764,10,FALSE)","v":""},{"$f":"VLOOKUP(AK1754,C1745:Q1764,11,FALSE)","v":""},{"$f":"VLOOKUP(AK1754,C1745:Q1764,12,FALSE)","v":""},{"$f":"VLOOKUP(AK1754,C1745:Q1764,13,FALSE)","v":""},{"$f":"VLOOKUP(AK1754,C1745:Q1764,14,FALSE)","v":""},{"$f":"VLOOKUP(AK1754,C1745:Q1764,15,FALSE)","v":""}]
[null,11,{"$f":"IF(AK1744=\"\",\"\",RANK(F1755,F1745:F1764)*1000+ROW())","v":""},"",{"$f":"IF(L1755=\"\",\"\",Nb_Diff_Part(D1755,D1745:D1764,G1755,G1745:G1764,AI1767:AI1992)*CritClassInd_DiffPart+Nb_Goal_Part(D1755,D1745:D1764,G1755,G1745:G1764,V1767:Z1992)*CritClassInd_GoalPart+Nb_Score_Part(D1755,D1745:D1764,G1755,G1745:G1764,V1767:Z1992)*CritClassInd_ScorePart)","v":""},"","K",0,null,{"$f":"IF(AK1744=\"\",\"\",(L1755*Points_Victoire)+M1755*Points_Null)","v":""},"",{"$f":"IF(AK1744=\"\",\"\",COUNTIF(AE1767:AE1992,G1755))","v":""},{"$f":"IF(AK1744=\"\",\"\",COUNTIF(AF1767:AG1992,G1755))","v":""},{"$f":"IF(AK1744=\"\",\"\",COUNTIF(AH1767:AH1992,G1755))","v":""},{"$f":"IF(AK1744=\"\",\"\",SUMIF(V1767:V1992,G1755,AB1767:AB1992)+SUMIF(Z1767:Z1992,G1755,AD1767:AD1992))","v":""},{"$f":"IF(AK1744=\"\",\"\",SUMIF(V1767:V1992,G1755,AD1767:AD1992)+SUMIF(Z1767:Z1992,G1755,AB1767:AB1992))","v":""},{"$f":"IF(AK1744=\"\",\"\",O1755-P1755)","v":""},null,null,null,null,null,null,null,null,null,null,null,null,null,null,null,null,null,null,null,{"$f":"IF(AK1744=\"\",\"\",SMALL(C1745:C1764,11))","v":""},null,null,{"$f":"IF(AK1744=\"\",\"\",INT(AK1755/1000))","v":""},{"$f":"IF(AK1744=\"\",\"\",VLOOKUP(AK1755,C1745:Q1764,5,FALSE))","v":""},{"$f":"VLOOKUP(AK1755,C1745:Q1764,8,FALSE)","v":""},{"$f":"VLOOKUP(AK1755,C1745:Q1764,9,FALSE)","v":""},{"$f":"VLOOKUP(AK1755,C1745:Q1764,10,FALSE)","v":""},{"$f":"VLOOKUP(AK1755,C1745:Q1764,11,FALSE)","v":""},{"$f":"VLOOKUP(AK1755,C1745:Q1764,12,FALSE)","v":""},{"$f":"VLOOKUP(AK1755,C1745:Q1764,13,FALSE)","v":""},{"$f":"VLOOKUP(AK1755,C1745:Q1764,14,FALSE)","v":""},{"$f":"VLOOKUP(AK1755,C1745:Q1764,15,FALSE)","v":""}]
[null,12,{"$f":"IF(AK1744=\"\",\"\",RANK(F1756,F1745:F1764)*1000+ROW())","v":""},"",{"$f":"IF(L1756=\"\",\"\",Nb_Diff_Part(D1756,D1745:D1764,G1756,G1745:G1764,AI1767:AI1992)*CritClassInd_DiffPart+Nb_Goal_Part(D1756,D1745:D1764,G1756,G1745:G1764,V1767:Z1992)*CritClassInd_GoalPart+Nb_Score_Part(D1756,D1745:D1764,G1756,G1745:G1764,V1767:Z1992)*CritClassInd_ScorePart)","v":""},"","L",0,null,{"$f":"IF(AK1744=\"\",\"\",(L1756*Points_Victoire)+M1756*Points_Null)","v":""},"",{"$f":"IF(AK1744=\"\",\"\",COUNTIF(AE1767:AE1992,G1756))","v":""},{"$f":"IF(AK1744=\"\",\"\",COUNTIF(AF1767:AG1992,G1756))","v":""},{"$f":"IF(AK1744=\"\",\"\",COUNTIF(AH1767:AH1992,G1756))","v":""},{"$f":"IF(AK1744=\"\",\"\",SUMIF(V1767:V1992,G1756,AB1767:AB1992)+SUMIF(Z1767:Z1992,G1756,AD1767:AD1992))","v":""},{"$f":"IF(AK1744=\"\",\"\",SUMIF(V1767:V1992,G1756,AD1767:AD1992)+SUMIF(Z1767:Z1992,G1756,AB1767:AB1992))","v":""},{"$f":"IF(AK1744=\"\",\"\",O1756-P1756)","v":""},null,null,null,null,null,null,null,null,null,null,null,null,null,null,null,null,null,null,null,{"$f":"IF(AK1744=\"\",\"\",SMALL(C1745:C1764,12))","v":""},null,null,{"$f":"IF(AK1744=\"\",\"\",INT(AK1756/1000))","v":""},{"$f":"IF(AK1744=\"\",\"\",VLOOKUP(AK1756,C1745:Q1764,5,FALSE))","v":""},{"$f":"VLOOKUP(AK1756,C1745:Q1764,8,FALSE)","v":""},{"$f":"VLOOKUP(AK1756,C1745:Q1764,9,FALSE)","v":""},{"$f":"VLOOKUP(AK1756,C1745:Q1764,10,FALSE)","v":""},{"$f":"VLOOKUP(AK1756,C1745:Q1764,11,FALSE)","v":""},{"$f":"VLOOKUP(AK1756,C1745:Q1764,12,FALSE)","v":""},{"$f":"VLOOKUP(AK1756,C1745:Q1764,13,FALSE)","v":""},{"$f":"VLOOKUP(AK1756,C1745:Q1764,14,FALSE)","v":""},{"$f":"VLOOKUP(AK1756,C1745:Q1764,15,FALSE)","v":""}]
[null,13,{"$f":"IF(AK1744=\"\",\"\",RANK(F1757,F1745:F1764)*1000+ROW())","v":""},"",{"$f":"IF(L1757=\"\",\"\",Nb_Diff_Part(D1757,D1745:D1764,G1757,G1745:G1764,AI1767:AI1992)*CritClassInd_DiffPart+Nb_Goal_Part(D1757,D1745:D1764,G1757,G1745:G1764,V1767:Z1992)*CritClassInd_GoalPart+Nb_Score_Part(D1757,D1745:D1764,G1757,G1745:G1764,V1767:Z1992)*CritClassInd_ScorePart)","v":""},"","M",0,null,{"$f":"IF(AK1744=\"\",\"\",(L1757*Points_Victoire)+M1757*Points_Null)","v":""},"",{"$f":"IF(AK1744=\"\",\"\",COUNTIF(AE1767:AE1992,G1757))","v":""},{"$f":"IF(AK1744=\"\",\"\",COUNTIF(AF1767:AG1992,G1757))","v":""},{"$f":"IF(AK1744=\"\",\"\",COUNTIF(AH1767:AH1992,G1757))","v":""},{"$f":"IF(AK1744=\"\",\"\",SUMIF(V1767:V1992,G1757,AB1767:AB1992)+SUMIF(Z1767:Z1992,G1757,AD1767:AD1992))","v":""},{"$f":"IF(AK1744=\"\",\"\",SUMIF(V1767:V1992,G1757,AD1767:AD1992)+SUMIF(Z1767:Z1992,G1757,AB1767:AB1992))","v":""},{"$f":"IF(AK1744=\"\",\"\",O1757-P1757)","v":""},null,null,null,null,null,null,null,null,null,null,null,null,null,null,null,null,null,null,null,{"$f":"IF(AK1744=\"\",\"\",SMALL(C1745:C1764,13))","v":""},null,null,{"$f":"IF(AK1744=\"\",\"\",INT(AK1757/1000))","v":""},{"$f":"IF(AK1744=\"\",\"\",VLOOKUP(AK1757,C1745:Q1764,5,FALSE))","v":""},{"$f":"VLOOKUP(AK1757,C1745:Q1764,8,FALSE)","v":""},{"$f":"VLOOKUP(AK1757,C1745:Q1764,9,FALSE)","v":""},{"$f":"VLOOKUP(AK1757,C1745:Q1764,10,FALSE)","v":""},{"$f":"VLOOKUP(AK1757,C1745:Q1764,11,FALSE)","v":""},{"$f":"VLOOKUP(AK1757,C1745:Q1764,12,FALSE)","v":""},{"$f":"VLOOKUP(AK1757,C1745:Q1764,13,FALSE)","v":""},{"$f":"VLOOKUP(AK1757,C1745:Q1764,14,FALSE)","v":""},{"$f":"VLOOKUP(AK1757,C1745:Q1764,15,FALSE)","v":""}]
[null,14,{"$f":"IF(AK1744=\"\",\"\",RANK(F1758,F1745:F1764)*1000+ROW())","v":""},"",{"$f":"IF(L1758=\"\",\"\",Nb_Diff_Part(D1758,D1745:D1764,G1758,G1745:G1764,AI1767:AI1992)*CritClassInd_DiffPart+Nb_Goal_Part(D1758,D1745:D1764,G1758,G1745:G1764,V1767:Z1992)*CritClassInd_GoalPart+Nb_Score_Part(D1758,D1745:D1764,G1758,G1745:G1764,V1767:Z1992)*CritClassInd_ScorePart)","v":""},"","N",0,null,{"$f":"IF(AK1744=\"\",\"\",(L1758*Points_Victoire)+M1758*Points_Null)","v":""},"",{"$f":"IF(AK1744=\"\",\"\",COUNTIF(AE1767:AE1992,G1758))","v":""},{"$f":"IF(AK1744=\"\",\"\",COUNTIF(AF1767:AG1992,G1758))","v":""},{"$f":"IF(AK1744=\"\",\"\",COUNTIF(AH1767:AH1992,G1758))","v":""},{"$f":"IF(AK1744=\"\",\"\",SUMIF(V1767:V1992,G1758,AB1767:AB1992)+SUMIF(Z1767:Z1992,G1758,AD1767:AD1992))","v":""},{"$f":"IF(AK1744=\"\",\"\",SUMIF(V1767:V1992,G1758,AD1767:AD1992)+SUMIF(Z1767:Z1992,G1758,AB1767:AB1992))","v":""},{"$f":"IF(AK1744=\"\",\"\",O1758-P1758)","v":""},null,null,null,null,null,null,null,null,null,null,null,null,null,null,null,null,null,null,null,{"$f":"IF(AK1744=\"\",\"\",SMALL(C1745:C1764,14))","v":""},null,null,{"$f":"IF(AK1744=\"\",\"\",INT(AK1758/1000))","v":""},{"$f":"IF(AK1744=\"\",\"\",VLOOKUP(AK1758,C1745:Q1764,5,FALSE))","v":""},{"$f":"VLOOKUP(AK1758,C1745:Q1764,8,FALSE)","v":""},{"$f":"VLOOKUP(AK1758,C1745:Q1764,9,FALSE)","v":""},{"$f":"VLOOKUP(AK1758,C1745:Q1764,10,FALSE)","v":""},{"$f":"VLOOKUP(AK1758,C1745:Q1764,11,FALSE)","v":""},{"$f":"VLOOKUP(AK1758,C1745:Q1764,12,FALSE)","v":""},{"$f":"VLOOKUP(AK1758,C1745:Q1764,13,FALSE)","v":""},{"$f":"VLOOKUP(AK1758,C1745:Q1764,14,FALSE)","v":""},{"$f":"VLOOKUP(AK1758,C1745:Q1764,15,FALSE)","v":""}]
[null,15,{"$f":"IF(AK1744=\"\",\"\",RANK(F1759,F1745:F1764)*1000+ROW())","v":""},"",{"$f":"IF(L1759=\"\",\"\",Nb_Diff_Part(D1759,D1745:D1764,G1759,G1745:G1764,AI1767:AI1992)*CritClassInd_DiffPart+Nb_Goal_Part(D1759,D1745:D1764,G1759,G1745:G1764,V1767:Z1992)*CritClassInd_GoalPart+Nb_Score_Part(D1759,D1745:D1764,G1759,G1745:G1764,V1767:Z1992)*CritClassInd_ScorePart)","v":""},"","O",0,null,{"$f":"IF(AK1744=\"\",\"\",(L1759*Points_Victoire)+M1759*Points_Null)","v":""},"",{"$f":"IF(AK1744=\"\",\"\",COUNTIF(AE1767:AE1992,G1759))","v":""},{"$f":"IF(AK1744=\"\",\"\",COUNTIF(AF1767:AG1992,G1759))","v":""},{"$f":"IF(AK1744=\"\",\"\",COUNTIF(AH1767:AH1992,G1759))","v":""},{"$f":"IF(AK1744=\"\",\"\",SUMIF(V1767:V1992,G1759,AB1767:AB1992)+SUMIF(Z1767:Z1992,G1759,AD1767:AD1992))","v":""},{"$f":"IF(AK1744=\"\",\"\",SUMIF(V1767:V1992,G1759,AD1767:AD1992)+SUMIF(Z1767:Z1992,G1759,AB1767:AB1992))","v":""},{"$f":"IF(AK1744=\"\",\"\",O1759-P1759)","v":""},null,null,null,null,null,null,null,null,null,null,null,null,null,null,null,null,null,null,null,{"$f":"IF(AK1744=\"\",\"\",SMALL(C1745:C1764,15))","v":""},null,null,{"$f":"IF(AK1744=\"\",\"\",INT(AK1759/1000))","v":""},{"$f":"IF(AK1744=\"\",\"\",VLOOKUP(AK1759,C1745:Q1764,5,FALSE))","v":""},{"$f":"VLOOKUP(AK1759,C1745:Q1764,8,FALSE)","v":""},{"$f":"VLOOKUP(AK1759,C1745:Q1764,9,FALSE)","v":""},{"$f":"VLOOKUP(AK1759,C1745:Q1764,10,FALSE)","v":""},{"$f":"VLOOKUP(AK1759,C1745:Q1764,11,FALSE)","v":""},{"$f":"VLOOKUP(AK1759,C1745:Q1764,12,FALSE)","v":""},{"$f":"VLOOKUP(AK1759,C1745:Q1764,13,FALSE)","v":""},{"$f":"VLOOKUP(AK1759,C1745:Q1764,14,FALSE)","v":""},{"$f":"VLOOKUP(AK1759,C1745:Q1764,15,FALSE)","v":""}]
[null,16,{"$f":"IF(AK1744=\"\",\"\",RANK(F1760,F1745:F1764)*1000+ROW())","v":""},"",{"$f":"IF(L1760=\"\",\"\",Nb_Diff_Part(D1760,D1745:D1764,G1760,G1745:G1764,AI1767:AI1992)*CritClassInd_DiffPart+Nb_Goal_Part(D1760,D1745:D1764,G1760,G1745:G1764,V1767:Z1992)*CritClassInd_GoalPart+Nb_Score_Part(D1760,D1745:D1764,G1760,G1745:G1764,V1767:Z1992)*CritClassInd_ScorePart)","v":""},"","P",0,null,{"$f":"IF(AK1744=\"\",\"\",(L1760*Points_Victoire)+M1760*Points_Null)","v":""},"",{"$f":"IF(AK1744=\"\",\"\",COUNTIF(AE1767:AE1992,G1760))","v":""},{"$f":"IF(AK1744=\"\",\"\",COUNTIF(AF1767:AG1992,G1760))","v":""},{"$f":"IF(AK1744=\"\",\"\",COUNTIF(AH1767:AH1992,G1760))","v":""},{"$f":"IF(AK1744=\"\",\"\",SUMIF(V1767:V1992,G1760,AB1767:AB1992)+SUMIF(Z1767:Z1992,G1760,AD1767:AD1992))","v":""},{"$f":"IF(AK1744=\"\",\"\",SUMIF(V1767:V1992,G1760,AD1767:AD1992)+SUMIF(Z1767:Z1992,G1760,AB1767:AB1992))","v":""},{"$f":"IF(AK1744=\"\",\"\",O1760-P1760)","v":""},null,null,null,null,null,null,null,null,null,null,null,null,null,null,null,null,null,null,null,{"$f":"IF(AK1744=\"\",\"\",SMALL(C1745:C1764,16))","v":""},null,null,{"$f":"IF(AK1744=\"\",\"\",INT(AK1760/1000))","v":""},{"$f":"IF(AK1744=\"\",\"\",VLOOKUP(AK1760,C1745:Q1764,5,FALSE))","v":""},{"$f":"VLOOKUP(AK1760,C1745:Q1764,8,FALSE)","v":""},{"$f":"VLOOKUP(AK1760,C1745:Q1764,9,FALSE)","v":""},{"$f":"VLOOKUP(AK1760,C1745:Q1764,10,FALSE)","v":""},{"$f":"VLOOKUP(AK1760,C1745:Q1764,11,FALSE)","v":""},{"$f":"VLOOKUP(AK1760,C1745:Q1764,12,FALSE)","v":""},{"$f":"VLOOKUP(AK1760,C1745:Q1764,13,FALSE)","v":""},{"$f":"VLOOKUP(AK1760,C1745:Q1764,14,FALSE)","v":""},{"$f":"VLOOKUP(AK1760,C1745:Q1764,15,FALSE)","v":""}]
[null,17,{"$f":"IF(AK1744=\"\",\"\",RANK(F1761,F1745:F1764)*1000+ROW())","v":""},"",{"$f":"IF(L1761=\"\",\"\",Nb_Diff_Part(D1761,D1745:D1764,G1761,G1745:G1764,AI1767:AI1992)*CritClassInd_DiffPart+Nb_Goal_Part(D1761,D1745:D1764,G1761,G1745:G1764,V1767:Z1992)*CritClassInd_GoalPart+Nb_Score_Part(D1761,D1745:D1764,G1761,G1745:G1764,V1767:Z1992)*CritClassInd_ScorePart)","v":""},"","Q",0,null,{"$f":"IF(AK1744=\"\",\"\",(L1761*Points_Victoire)+M1761*Points_Null)","v":""},"",{"$f":"IF(AK1744=\"\",\"\",COUNTIF(AE1767:AE1992,G1761))","v":""},{"$f":"IF(AK1744=\"\",\"\",COUNTIF(AF1767:AG1992,G1761))","v":""},{"$f":"IF(AK1744=\"\",\"\",COUNTIF(AH1767:AH1992,G1761))","v":""},{"$f":"IF(AK1744=\"\",\"\",SUMIF(V1767:V1992,G1761,AB1767:AB1992)+SUMIF(Z1767:Z1992,G1761,AD1767:AD1992))","v":""},{"$f":"IF(AK1744=\"\",\"\",SUMIF(V1767:V1992,G1761,AD1767:AD1992)+SUMIF(Z1767:Z1992,G1761,AB1767:AB1992))","v":""},{"$f":"IF(AK1744=\"\",\"\",O1761-P1761)","v":""},null,null,null,null,null,null,null,null,null,null,null,null,null,null,null,null,null,null,null,{"$f":"IF(AK1744=\"\",\"\",SMALL(C1745:C1764,17))","v":""},null,null,{"$f":"IF(AK1744=\"\",\"\",INT(AK1761/1000))","v":""},{"$f":"IF(AK1744=\"\",\"\",VLOOKUP(AK1761,C1745:Q1764,5,FALSE))","v":""},{"$f":"VLOOKUP(AK1761,C1745:Q1764,8,FALSE)","v":""},{"$f":"VLOOKUP(AK1761,C1745:Q1764,9,FALSE)","v":""},{"$f":"VLOOKUP(AK1761,C1745:Q1764,10,FALSE)","v":""},{"$f":"VLOOKUP(AK1761,C1745:Q1764,11,FALSE)","v":""},{"$f":"VLOOKUP(AK1761,C1745:Q1764,12,FALSE)","v":""},{"$f":"VLOOKUP(AK1761,C1745:Q1764,13,FALSE)","v":""},{"$f":"VLOOKUP(AK1761,C1745:Q1764,14,FALSE)","v":""},{"$f":"VLOOKUP(AK1761,C1745:Q1764,15,FALSE)","v":""}]
[null,18,{"$f":"IF(AK1744=\"\",\"\",RANK(F1762,F1745:F1764)*1000+ROW())","v":""},"",{"$f":"IF(L1762=\"\",\"\",Nb_Diff_Part(D1762,D1745:D1764,G1762,G1745:G1764,AI1767:AI1992)*CritClassInd_DiffPart+Nb_Goal_Part(D1762,D1745:D1764,G1762,G1745:G1764,V1767:Z1992)*CritClassInd_GoalPart+Nb_Score_Part(D1762,D1745:D1764,G1762,G1745:G1764,V1767:Z1992)*CritClassInd_ScorePart)","v":""},"","R",0,null,{"$f":"IF(AK1744=\"\",\"\",(L1762*Points_Victoire)+M1762*Points_Null)","v":""},"",{"$f":"IF(AK1744=\"\",\"\",COUNTIF(AE1767:AE1992,G1762))","v":""},{"$f":"IF(AK1744=\"\",\"\",COUNTIF(AF1767:AG1992,G1762))","v":""},{"$f":"IF(AK1744=\"\",\"\",COUNTIF(AH1767:AH1992,G1762))","v":""},{"$f":"IF(AK1744=\"\",\"\",SUMIF(V1767:V1992,G1762,AB1767:AB1992)+SUMIF(Z1767:Z1992,G1762,AD1767:AD1992))","v":""},{"$f":"IF(AK1744=\"\",\"\",SUMIF(V1767:V1992,G1762,AD1767:AD1992)+SUMIF(Z1767:Z1992,G1762,AB1767:AB1992))","v":""},{"$f":"IF(AK1744=\"\",\"\",O1762-P1762)","v":""},null,null,null,null,null,null,null,null,null,null,null,null,null,null,null,null,null,null,null,{"$f":"IF(AK1744=\"\",\"\",SMALL(C1745:C1764,18))","v":""},null,null,{"$f":"IF(AK1744=\"\",\"\",INT(AK1762/1000))","v":""},{"$f":"IF(AK1744=\"\",\"\",VLOOKUP(AK1762,C1745:Q1764,5,FALSE))","v":""},{"$f":"VLOOKUP(AK1762,C1745:Q1764,8,FALSE)","v":""},{"$f":"VLOOKUP(AK1762,C1745:Q1764,9,FALSE)","v":""},{"$f":"VLOOKUP(AK1762,C1745:Q1764,10,FALSE)","v":""},{"$f":"VLOOKUP(AK1762,C1745:Q1764,11,FALSE)","v":""},{"$f":"VLOOKUP(AK1762,C1745:Q1764,12,FALSE)","v":""},{"$f":"VLOOKUP(AK1762,C1745:Q1764,13,FALSE)","v":""},{"$f":"VLOOKUP(AK1762,C1745:Q1764,14,FALSE)","v":""},{"$f":"VLOOKUP(AK1762,C1745:Q1764,15,FALSE)","v":""}]
[null,19,{"$f":"IF(AK1744=\"\",\"\",RANK(F1763,F1745:F1764)*1000+ROW())","v":""},"",{"$f":"IF(L1763=\"\",\"\",Nb_Diff_Part(D1763,D1745:D1764,G1763,G1745:G1764,AI1767:AI1992)*CritClassInd_DiffPart+Nb_Goal_Part(D1763,D1745:D1764,G1763,G1745:G1764,V1767:Z1992)*CritClassInd_GoalPart+Nb_Score_Part(D1763,D1745:D1764,G1763,G1745:G1764,V1767:Z1992)*CritClassInd_ScorePart)","v":""},"","S",0,null,{"$f":"IF(AK1744=\"\",\"\",(L1763*Points_Victoire)+M1763*Points_Null)","v":""},"",{"$f":"IF(AK1744=\"\",\"\",COUNTIF(AE1767:AE1992,G1763))","v":""},{"$f":"IF(AK1744=\"\",\"\",COUNTIF(AF1767:AG1992,G1763))","v":""},{"$f":"IF(AK1744=\"\",\"\",COUNTIF(AH1767:AH1992,G1763))","v":""},{"$f":"IF(AK1744=\"\",\"\",SUMIF(V1767:V1992,G1763,AB1767:AB1992)+SUMIF(Z1767:Z1992,G1763,AD1767:AD1992))","v":""},{"$f":"IF(AK1744=\"\",\"\",SUMIF(V1767:V1992,G1763,AD1767:AD1992)+SUMIF(Z1767:Z1992,G1763,AB1767:AB1992))","v":""},{"$f":"IF(AK1744=\"\",\"\",O1763-P1763)","v":""},null,null,null,null,null,null,null,null,null,null,null,null,null,null,null,null,null,null,null,{"$f":"IF(AK1744=\"\",\"\",SMALL(C1745:C1764,19))","v":""},null,null,{"$f":"IF(AK1744=\"\",\"\",INT(AK1763/1000))","v":""},{"$f":"IF(AK1744=\"\",\"\",VLOOKUP(AK1763,C1745:Q1764,5,FALSE))","v":""},{"$f":"VLOOKUP(AK1763,C1745:Q1764,8,FALSE)","v":""},{"$f":"VLOOKUP(AK1763,C1745:Q1764,9,FALSE)","v":""},{"$f":"VLOOKUP(AK1763,C1745:Q1764,10,FALSE)","v":""},{"$f":"VLOOKUP(AK1763,C1745:Q1764,11,FALSE)","v":""},{"$f":"VLOOKUP(AK1763,C1745:Q1764,12,FALSE)","v":""},{"$f":"VLOOKUP(AK1763,C1745:Q1764,13,FALSE)","v":""},{"$f":"VLOOKUP(AK1763,C1745:Q1764,14,FALSE)","v":""},{"$f":"VLOOKUP(AK1763,C1745:Q1764,15,FALSE)","v":""}]
[null,20,{"$f":"IF(AK1744=\"\",\"\",RANK(F1764,F1745:F1764)*1000+ROW())","v":""},"",{"$f":"IF(L1764=\"\",\"\",Nb_Diff_Part(D1764,D1745:D1764,G1764,G1745:G1764,AI1767:AI1992)*CritClassInd_DiffPart+Nb_Goal_Part(D1764,D1745:D1764,G1764,G1745:G1764,V1767:Z1992)*CritClassInd_GoalPart+Nb_Score_Part(D1764,D1745:D1764,G1764,G1745:G1764,V1767:Z1992)*CritClassInd_ScorePart)","v":""},"","T",0,null,{"$f":"IF(AK1744=\"\",\"\",(L1764*Points_Victoire)+M1764*Points_Null)","v":""},"",{"$f":"IF(AK1744=\"\",\"\",COUNTIF(AE1767:AE1992,G1764))","v":""},{"$f":"IF(AK1744=\"\",\"\",COUNTIF(AF1767:AG1992,G1764))","v":""},{"$f":"IF(AK1744=\"\",\"\",COUNTIF(AH1767:AH1992,G1764))","v":""},{"$f":"IF(AK1744=\"\",\"\",SUMIF(V1767:V1992,G1764,AB1767:AB1992)+SUMIF(Z1767:Z1992,G1764,AD1767:AD1992))","v":""},{"$f":"IF(AK1744=\"\",\"\",SUMIF(V1767:V1992,G1764,AD1767:AD1992)+SUMIF(Z1767:Z1992,G1764,AB1767:AB1992))","v":""},{"$f":"IF(AK1744=\"\",\"\",O1764-P1764)","v":""},null,null,null,null,null,null,null,null,null,null,null,null,null,null,null,null,null,null,null,{"$f":"IF(AK1744=\"\",\"\",SMALL(C1745:C1764,20))","v":""},null,null,{"$f":"IF(AK1744=\"\",\"\",INT(AK1764/1000))","v":""},{"$f":"IF(AK1744=\"\",\"\",VLOOKUP(AK1764,C1745:Q1764,5,FALSE))","v":""},{"$f":"VLOOKUP(AK1764,C1745:Q1764,8,FALSE)","v":""},{"$f":"VLOOKUP(AK1764,C1745:Q1764,9,FALSE)","v":""},{"$f":"VLOOKUP(AK1764,C1745:Q1764,10,FALSE)","v":""},{"$f":"VLOOKUP(AK1764,C1745:Q1764,11,FALSE)","v":""},{"$f":"VLOOKUP(AK1764,C1745:Q1764,12,FALSE)","v":""},{"$f":"VLOOKUP(AK1764,C1745:Q1764,13,FALSE)","v":""},{"$f":"VLOOKUP(AK1764,C1745:Q1764,14,FALSE)","v":""},{"$f":"VLOOKUP(AK1764,C1745:Q1764,15,FALSE)","v":""}]
[null,null,null,null,null,null,null,null,null,null,null,null,null,null,null,null,null,null,1,null,null,null,null,null,null,null,null,{"$f":"IF(MaxScore,N_MaxScore,\"\")","v":"Max Score"}]
[null,null,null,null,null,null,null,null,null,null,null,null,null,null,null,null,null,null,{"$f":"N_Heure","v":"Time"},{"$f":"N_Table","v":"Table"},{"$f":"N_Arbitre","v":"Referee"},{"$f":"N_Matches","v":"Matches"}]
[null,null,null,null,null,null,null,null,null,null,null,null,null,null,null,null,null,"#G1",null,null,null,{"$f":"IF(G1745=\"\",\"\",G1745)","v":"A"},null,"-",null,{"$f":"IF(G1746=\"\",\"\",G1746)","v":"B"},null,{"$f":"IF(MaxScore,MaxGoals(W1767,Y1767,MaxGoalsValue),IF(W1767=\"\",\"\",W1767))","v":0},{"$f":"IF(MaxScore,\"-\",IF(W1767=\"\",\"\",\"-\"))","v":"-"},{"$f":"IF(MaxScore,MaxGoals(Y1767,W1767,MaxGoalsValue),IF(Y1767=\"\",\"\",Y1767))","v":0},{"$f":"IF(W1767=\"\",\"\",IF(W1767>Y1767,V1767,IF(W1767=Y1767,\"\",Z1767)))","v":""},{"$f":"IF(W1767=\"\",\"\",IF(W1767=Y1767,V1767,\"\"))","v":""},{"$f":"IF(W1767=\"\",\"\",IF(W1767=Y1767,Z1767,\"\"))","v":""},{"$f":"IF(W1767=\"\",\"\",IF(W1767<Y1767,V1767,IF(W1767=Y1767,\"\",Z1767)))","v":""},{"$f":"CONCATENATE(AE1767,AH1767)","v":""}]
[null,null,null,null,null,null,null,null,null,null,null,null,null,null,null,null,null,"#G1",null,null,null,{"$f":"IF(G1747=\"\",\"\",G1747)","v":"C"},null,"-",null,{"$f":"IF(G1748=\"\",\"\",G1748)","v":"D"},null,0,"-",0,"","","","",""]
[null,null,null,null,null,null,null,null,null,null,null,null,null,null,null,null,null,"#G1",null,null,null,{"$f":"IF(G1749=\"\",\"\",G1749)","v":"E"},null,"-",null,{"$f":"IF(G1750=\"\",\"\",G1750)","v":"F"},null,0,"-",0,"","","","",""]
[null,null,null,null,null,null,null,null,null,null,null,null,null,null,null,null,null,"#G1",null,null,null,{"$f":"IF(G1751=\"\",\"\",G1751)","v":"G"},null,"-",null,{"$f":"IF(G1752=\"\",\"\",G1752)","v":"H"},null,0,"-",0,"","","","",""]
[null,null,null,null,null,null,null,null,null,null,null,null,null,null,null,null,null,"#G1",null,null,null,{"$f":"IF(G1753=\"\",\"\",G1753)","v":"I"},null,"-",null,{"$f":"IF(G1754=\"\",\"\",G1754)","v":"J"},null,0,"-",0,"","","","",""]
[null,null,null,null,null,null,null,null,null,null,null,null,null,null,null,null,null,"#G1",null,null,null,{"$f":"IF(G1755=\"\",\"\",G1755)","v":"K"},null,"-",null,{"$f":"IF(G1756=\"\",\"\",G1756)","v":"L"},null,0,"-",0,"","","","",""]
[null,null,null,null,null,null,null,null,null,null,null,null,null,null,null,null,null,"#G1",null,null,null,{"$f":"IF(G1757=\"\",\"\",G1757)","v":"M"},null,"-",null,{"$f":"IF(G1758=\"\",\"\",G1758)","v":"N"},null,0,"-",0,"","","","",""]
[null,null,null,null,null,null,null,null,null,null,null,null,null,null,null,null,null,"#G1",null,null,null,{"$f":"IF(G1759=\"\",\"\",G1759)","v":"O"},null,"-",null,{"$f":"IF(G1760=\"\",\"\",G1760)","v":"P"},null,0,"-",0,"","","","",""]
[null,null,null,null,null,null,null,null,null,null,null,null,null,null,null,null,null,"#G1",null,null,null,{"$f":"IF(G1761=\"\",\"\",G1761)","v":"Q"},null,"-",null,{"$f":"IF(G1762=\"\",\"\",G1762)","v":"R"},null,0,"-",0,"","","","",""]
[null,null,null,null,null,null,null,null,null,null,null,null,null,null,null,null,null,"#G1",null,null,null,{"$f":"IF(G1763=\"\",\"\",G1763)","v":"S"},null,"-",null,{"$f":"IF(G1764=\"\",\"\",G1764)","v":"T"},null,0,"-",0,"","","","",""]
[null,null,null,null,null,null,null,null,null,null,null,null,null,null,null,null,null,null,{"$f":"S1765+1","v":2}]
[null,null,null,null,null,null,null,null,null,null,null,null,null,null,null,null,null,null,{"$f":"N_Heure","v":"Time"},{"$f":"N_Table","v":"Table"},{"$f":"N_Arbitre","v":"Referee"},{"$f":"N_Matches","v":"Matches"}]
[null,null,null,null,null,null,null,null,null,null,null,null,null,null,null,null,null,"#G2",null,null,null,{"$f":"V1768","v":"C"},null,"-",null,{"$f":"V1767","v":"A"},null,{"$f":"IF(MaxScore,MaxGoals(W1779,Y1779,MaxGoalsValue),IF(W1779=\"\",\"\",W1779))","v":0},{"$f":"IF(MaxScore,\"-\",IF(W1779=\"\",\"\",\"-\"))","v":"-"},{"$f":"IF(MaxScore,MaxGoals(Y1779,W1779,MaxGoalsValue),IF(Y1779=\"\",\"\",Y1779))","v":0},{"$f":"IF(W1779=\"\",\"\",IF(W1779>Y1779,V1779,IF(W1779=Y1779,\"\",Z1779)))","v":""},{"$f":"IF(W1779=\"\",\"\",IF(W1779=Y1779,V1779,\"\"))","v":""},{"$f":"IF(W1779=\"\",\"\",IF(W1779=Y1779,Z1779,\"\"))","v":""},{"$f":"IF(W1779=\"\",\"\",IF(W1779<Y1779,V1779,IF(W1779=Y1779,\"\",Z1779)))","v":""},{"$f":"CONCATENATE(AE1779,AH1779)","v":""}]
[null,null,null,null,null,null,null,null,null,null,null,null,null,null,null,null,null,"#G2",null,null,null,{"$f":"Z1767","v":"B"},null,"-",null,{"$f":"V1769","v":"E"},null,0,"-",0,"","","","",""]
[null,null,null,null,null,null,null,null,null,null,null,null,null,null,null,null,null,"#G2",null,null,null,"D",null,"-",null,"G",null,0,"-",0,"","","","",""]
[null,null,null,null,null,null,null,null,null,null,null,null,null,null,null,null,null,"#G2",null,null,null,"F",null,"-",null,"I",null,0,"-",0,"","","","",""]
[null,null,null,null,null,null,null,null,null,null,null,null,null,null,null,null,null,"#G2",null,null,null,"H",null,"-",null,"K",null,0,"-",0,"","","","",""]
[null,null,null,null,null,null,null,null,null,null,null,null,null,null,null,null,null,"#G2",null,null,null,"J",null,"-",null,"M",null,0,"-",0,"","","","",""]
[null,null,null,null,null,null,null,null,null,null,null,null,null,null,null,null,null,"#G2",null,null,null,"L",null,"-",null,"O",null,0,"-",0,"","","","",""]
[null,null,null,null,null,null,null,null,null,null,null,null,null,null,null,null,null,"#G2",null,null,null,"N",null,"-",null,"Q",null,0,"-",0,"","","","",""]
[null,null,null,null,null,null,null,null,null,null,null,null,null,null,null,null,null,"#G2",null,null,null,"P",null,"-",null,"S",null,0,"-",0,"","","","",""]
[null,null,null,null,null,null,null,null,null,null,null,null,null,null,null,null,null,"#G2",null,null,null,"R",null,"-",null,{"$f":"Z1776","v":"T"},null,0,"-",0,"","","","",""]
[null,null,null,null,null,null,null,null,null,null,null,null,null,null,null,null,null,null,{"$f":"S1777+1","v":3}]
[null,null,null,null,null,null,null,null,null,null,null,null,null,null,null,null,null,null,{"$f":"N_Heure","v":"Time"},{"$f":"N_Table","v":"Table"},{"$f":"N_Arbitre","v":"Referee"},{"$f":"N_Matches","v":"Matches"}]
[null,null,null,null,null,null,null,null,null,null,null,null,null,null,null,null,null,"#G3",null,null,null,{"$f":"Z1779","v":"A"},null,"-",null,{"$f":"Z1780","v":"E"},null,{"$f":"IF(MaxScore,MaxGoals(W1791,Y1791,MaxGoalsValue),IF(W1791=\"\",\"\",W1791))","v":0},{"$f":"IF(MaxScore,\"-\",IF(W1791=\"\",\"\",\"-\"))","v":"-"},{"$f":"IF(MaxScore,MaxGoals(Y1791,W1791,MaxGoalsValue),IF(Y1791=\"\",\"\",Y1791))","v":0},{"$f":"IF(W1791=\"\",\"\",IF(W1791>Y1791,V1791,IF(W1791=Y1791,\"\",Z1791)))","v":""},{"$f":"IF(W1791=\"\",\"\",IF(W1791=Y1791,V1791,\"\"))","v":""},{"$f":"IF(W1791=\"\",\"\",IF(W1791=Y1791,Z1791,\"\"))","v":""},{"$f":"IF(W1791=\"\",\"\",IF(W1791<Y1791,V1791,IF(W1791=Y1791,\"\",Z1791)))","v":""},{"$f":"CONCATENATE(AE1791,AH1791)","v":""}]
[null,null,null,null,null,null,null,null,null,null,null,null,null,null,null,null,null,"#G3",null,null,null,{"$f":"Z1781","v":"G"},null,"-",null,{"$f":"V1779","v":"C"},null,0,"-",0,"","","","",""]
[null,null,null,null,null,null,null,null,null,null,null,null,null,null,null,null,null,"#G3",null,null,null,"I",null,"-",null,"B",null,0,"-",0,"","","","",""]
[null,null,null,null,null,null,null,null,null,null,null,null,null,null,null,null,null,"#G3",null,null,null,"K",null,"-",null,"D",null,0,"-",0,"","","","",""]
[null,null,null,null,null,null,null,null,null,null,null,null,null,null,null,null,null,"#G3",null,null,null,"M",null,"-",null,"F",null,0,"-",0,"","","","",""]
[null,null,null,null,null,null,null,null,null,null,null,null,null,null,null,null,null,"#G3",null,null,null,"O",null,"-",null,"H",null,0,"-",0,"","","","",""]
[null,null,null,null,null,null,null,null,null,null,null,null,null,null,null,null,null,"#G3",null,null,null,"Q",null,"-",null,"J",null,0,"-",0,"","","","",""]
[null,null,null,null,null,null,null,null,null,null,null,null,null,null,null,null,null,"#G3",null,null,null,"S",null,"-",null,"L",null,0,"-",0,"","","","",""]
[null,null,null,null,null,null,null,null,null,null,null,null,null,null,null,null,null,"#G3",null,null,null,"T",null,"-",null,"N",null,0,"-",0,"","","","",""]
[null,null,null,null,null,null,null,null,null,null,null,null,null,null,null,null,null,"#G3",null,null,null,{"$f":"V1788","v":"R"},null,"-",null,"P",null,0,"-",0,"","","","",""]
[null,null,null,null,null,null,null,null,null,null,null,null,null,null,null,null,null,null,{"$f":"S1789+1","v":4}]
[null,null,null,null,null,null,null,null,null,null,null,null,null,null,null,null,null,null,{"$f":"N_Heure","v":"Time"},{"$f":"N_Table","v":"Table"},{"$f":"N_Arbitre","v":"Referee"},{"$f":"N_Matches","v":"Matches"}]
[null,null,null,null,null,null,null,null,null,null,null,null,null,null,null,null,null,"#G4",null,null,null,{"$f":"V1792","v":"G"},null,"-",null,{"$f":"V1791","v":"A"},null,{"$f":"IF(MaxScore,MaxGoals(W1803,Y1803,MaxGoalsValue),IF(W1803=\"\",\"\",W1803))","v":0},{"$f":"IF(MaxScore,\"-\",IF(W1803=\"\",\"\",\"-\"))","v":"-"},{"$f":"IF(MaxScore,MaxGoals(Y1803,W1803,MaxGoalsValue),IF(Y1803=\"\",\"\",Y1803))","v":0},{"$f":"IF(W1803=\"\",\"\",IF(W1803>Y1803,V1803,IF(W1803=Y1803,\"\",Z1803)))","v":""},{"$f":"IF(W1803=\"\",\"\",IF(W1803=Y1803,V1803,\"\"))","v":""},{"$f":"IF(W1803=\"\",\"\",IF(W1803=Y1803,Z1803,\"\"))","v":""},{"$f":"IF(W1803=\"\",\"\",IF(W1803<Y1803,V1803,IF(W1803=Y1803,\"\",Z1803)))","v":""},{"$f":"CONCATENATE(AE1803,AH1803)","v":""}]
[null,null,null,null,null,null,null,null,null,null,null,null,null,null,null,null,null,"#G4",null,null,null,{"$f":"Z1791","v":"E"},null,"-",null,{"$f":"V1793","v":"I"},null,0,"-",0,"","","","",""]
[null,null,null,null,null,null,null,null,null,null,null,null,null,null,null,null,null,"#G4",null,null,null,"C",null,"-",null,"K",null,0,"-",0,"","","","",""]
[null,null,null,null,null,null,null,null,null,null,null,null,null,null,null,null,null,"#G4",null,null,null,"B",null,"-",null,"M",null,0,"-",0,"","","","",""]
[null,null,null,null,null,null,null,null,null,null,null,null,null,null,null,null,null,"#G4",null,null,null,"D",null,"-",null,"O",null,0,"-",0,"","","","",""]
[null,null,null,null,null,null,null,null,null,null,null,null,null,null,null,null,null,"#G4",null,null,null,"F",null,"-",null,"Q",null,0,"-",0,"","","","",""]
[null,null,null,null,null,null,null,null,null,null,null,null,null,null,null,null,null,"#G4",null,null,null,"H",null,"-",null,"S",null,0,"-",0,"","","","",""]
[null,null,null,null,null,null,null,null,null,null,null,null,null,null,null,null,null,"#G4",null,null,null,"J",null,"-",null,"T",null,0,"-",0,"","","","",""]
[null,null,null,null,null,null,null,null,null,null,null,null,null,null,null,null,null,"#G4",null,null,null,"L",null,"-",null,"R",null,0,"-",0,"","","","",""]
[null,null,null,null,null,null,null,null,null,null,null,null,null,null,null,null,null,"#G4",null,null,null,"N",null,"-",null,{"$f":"Z1800","v":"P"},null,0,"-",0,"","","","",""]
[null,null,null,null,null,null,null,null,null,null,null,null,null,null,null,null,null,null,{"$f":"S1801+1","v":5}]
[null,null,null,null,null,null,null,null,null,null,null,null,null,null,null,null,null,null,{"$f":"N_Heure","v":"Time"},{"$f":"N_Table","v":"Table"},{"$f":"N_Arbitre","v":"Referee"},{"$f":"N_Matches","v":"Matches"}]
[null,null,null,null,null,null,null,null,null,null,null,null,null,null,null,null,null,"#G5",null,null,null,{"$f":"Z1803","v":"A"},null,"-",null,{"$f":"Z1804","v":"I"},null,{"$f":"IF(MaxScore,MaxGoals(W1815,Y1815,MaxGoalsValue),IF(W1815=\"\",\"\",W1815))","v":0},{"$f":"IF(MaxScore,\"-\",IF(W1815=\"\",\"\",\"-\"))","v":"-"},{"$f":"IF(MaxScore,MaxGoals(Y1815,W1815,MaxGoalsValue),IF(Y1815=\"\",\"\",Y1815))","v":0},{"$f":"IF(W1815=\"\",\"\",IF(W1815>Y1815,V1815,IF(W1815=Y1815,\"\",Z1815)))","v":""},{"$f":"IF(W1815=\"\",\"\",IF(W1815=Y1815,V1815,\"\"))","v":""},{"$f":"IF(W1815=\"\",\"\",IF(W1815=Y1815,Z1815,\"\"))","v":""},{"$f":"IF(W1815=\"\",\"\",IF(W1815<Y1815,V1815,IF(W1815=Y1815,\"\",Z1815)))","v":""},{"$f":"CONCATENATE(AE1815,AH1815)","v":""}]
[null,null,null,null,null,null,null,null,null,null,null,null,null,null,null,null,null,"#G5",null,null,null,{"$f":"Z1805","v":"K"},null,"-",null,{"$f":"V1803","v":"G"},null,0,"-",0,"","","","",""]
[null,null,null,null,null,null,null,null,null,null,null,null,null,null,null,null,null,"#G5",null,null,null,"M",null,"-",null,"E",null,0,"-",0,"","","","",""]
[null,null,null,null,null,null,null,null,null,null,null,null,null,null,null,null,null,"#G5",null,null,null,"O",null,"-",null,"C",null,0,"-",0,"","","","",""]
[null,null,null,null,null,null,null,null,null,null,null,null,null,null,null,null,null,"#G5",null,null,null,"Q",null,"-",null,"B",null,0,"-",0,"","","","",""]
[null,null,null,null,null,null,null,null,null,null,null,null,null,null,null,null,null,"#G5",null,null,null,"S",null,"-",null,"D",null,0,"-",0,"","","","",""]
[null,null,null,null,null,null,null,null,null,null,null,null,null,null,null,null,null,"#G5",null,null,null,"T",null,"-",null,"F",null,0,"-",0,"","","","",""]
[null,null,null,null,null,null,null,null,null,null,null,null,null,null,null,null,null,"#G5",null,null,null,"R",null,"-",null,"H",null,0,"-",0,"","","","",""]
[null,null,null,null,null,null,null,null,null,null,null,null,null,null,null,null,null,"#G5",null,null,null,"P",null,"-",null,"J",null,0,"-",0,"","","","",""]
[null,null,null,null,null,null,null,null,null,null,null,null,null,null,null,null,null,"#G5",null,null,null,{"$f":"V1812","v":"N"},null,"-",null,"L",null,0,"-",0,"","","","",""]
[null,null,null,null,null,null,null,null,null,null,null,null,null,null,null,null,null,null,{"$f":"S1813+1","v":6}]
[null,null,null,null,null,null,null,null,null,null,null,null,null,null,null,null,null,null,{"$f":"N_Heure","v":"Time"},{"$f":"N_Table","v":"Table"},{"$f":"N_Arbitre","v":"Referee"},{"$f":"N_Matches","v":"Matches"}]
[null,null,null,null,null,null,null,null,null,null,null,null,null,null,null,null,null,"#G6",null,null,null,{"$f":"V1816","v":"K"},null,"-",null,{"$f":"V1815","v":"A"},null,{"$f":"IF(MaxScore,MaxGoals(W1827,Y1827,MaxGoalsValue),IF(W1827=\"\",\"\",W1827))","v":0},{"$f":"IF(MaxScore,\"-\",IF(W1827=\"\",\"\",\"-\"))","v":"-"},{"$f":"IF(MaxScore,MaxGoals(Y1827,W1827,MaxGoalsValue),IF(Y1827=\"\",\"\",Y1827))","v":0},{"$f":"IF(W1827=\"\",\"\",IF(W1827>Y1827,V1827,IF(W1827=Y1827,\"\",Z1827)))","v":""},{"$f":"IF(W1827=\"\",\"\",IF(W1827=Y1827,V1827,\"\"))","v":""},{"$f":"IF(W1827=\"\",\"\",IF(W1827=Y1827,Z1827,\"\"))","v":""},{"$f":"IF(W1827=\"\",\"\",IF(W1827<Y1827,V1827,IF(W1827=Y1827,\"\",Z1827)))","v":""},{"$f":"CONCATENATE(AE1827,AH1827)","v":""}]
[null,null,null,null,null,null,null,null,null,null,null,null,null,null,null,null,null,"#G6",null,null,null,{"$f":"Z1815","v":"I"},null,"-",null,{"$f":"V1817","v":"M"},null,0,"-",0,"","","","",""]
[null,null,null,null,null,null,null,null,null,null,null,null,null,null,null,null,null,"#G6",null,null,null,"G",null,"-",null,"O",null,0,"-",0,"","","","",""]
[null,null,null,null,null,null,null,null,null,null,null,null,null,null,null,null,null,"#G6",null,null,null,"E",null,"-",null,"Q",null,0,"-",0,"","","","",""]
[null,null,null,null,null,null,null,null,null,null,null,null,null,null,null,null,null,"#G6",null,null,null,"C",null,"-",null,"S",null,0,"-",0,"","","","",""]
[null,null,null,null,null,null,null,null,null,null,null,null,null,null,null,null,null,"#G6",null,null,null,"B",null,"-",null,"T",null,0,"-",0,"","","","",""]
[null,null,null,null,null,null,null,null,null,null,null,null,null,null,null,null,null,"#G6",null,null,null,"D",null,"-",null,"R",null,0,"-",0,"","","","",""]
[null,null,null,null,null,null,null,null,null,null,null,null,null,null,null,null,null,"#G6",null,null,null,"F",null,"-",null,"P",null,0,"-",0,"","","","",""]
[null,null,null,null,null,null,null,null,null,null,null,null,null,null,null,null,null,"#G6",null,null,null,"H",null,"-",null,"N",null,0,"-",0,"","","","",""]
[null,null,null,null,null,null,null,null,null,null,null,null,null,null,null,null,null,"#G6",null,null,null,"J",null,"-",null,{"$f":"Z1824","v":"L"},null,0,"-",0,"","","","",""]
[null,null,null,null,null,null,null,null,null,null,null,null,null,null,null,null,null,null,{"$f":"S1825+1","v":7}]
[null,null,null,null,null,null,null,null,null,null,null,null,null,null,null,null,null,null,{"$f":"N_Heure","v":"Time"},{"$f":"N_Table","v":"Table"},{"$f":"N_Arbitre","v":"Referee"},{"$f":"N_Matches","v":"Matches"}]
[null,null,null,null,null,null,null,null,null,null,null,null,null,null,null,null,null,"#G7",null,null,null,{"$f":"Z1827","v":"A"},null,"-",null,{"$f":"Z1828","v":"M"},null,{"$f":"IF(MaxScore,MaxGoals(W1839,Y1839,MaxGoalsValue),IF(W1839=\"\",\"\",W1839))","v":0},{"$f":"IF(MaxScore,\"-\",IF(W1839=\"\",\"\",\"-\"))","v":"-"},{"$f":"IF(MaxScore,MaxGoals(Y1839,W1839,MaxGoalsValue),IF(Y1839=\"\",\"\",Y1839))","v":0},{"$f":"IF(W1839=\"\",\"\",IF(W1839>Y1839,V1839,IF(W1839=Y1839,\"\",Z1839)))","v":""},{"$f":"IF(W1839=\"\",\"\",IF(W1839=Y1839,V1839,\"\"))","v":""},{"$f":"IF(W1839=\"\",\"\",IF(W1839=Y1839,Z1839,\"\"))","v":""},{"$f":"IF(W1839=\"\",\"\",IF(W1839<Y1839,V1839,IF(W1839=Y1839,\"\",Z1839)))","v":""},{"$f":"CONCATENATE(AE1839,AH1839)","v":""}]
[null,null,null,null,null,null,null,null,null,null,null,null,null,null,null,null,null,"#G7",null,null,null,{"$f":"Z1829","v":"O"},null,"-",null,{"$f":"V1827","v":"K"},null,0,"-",0,"","","","",""]
[null,null,null,null,null,null,null,null,null,null,null,null,null,null,null,null,null,"#G7",null,null,null,"Q",null,"-",null,"I",null,0,"-",0,"","","","",""]
[null,null,null,null,null,null,null,null,null,null,null,null,null,null,null,null,null,"#G7",null,null,null,"S",null,"-",null,"G",null,0,"-",0,"","","","",""]
[null,null,null,null,null,null,null,null,null,null,null,null,null,null,null,null,null,"#G7",null,null,null,"T",null,"-",null,"E",null,0,"-",0,"","","","",""]
[null,null,null,null,null,null,null,null,null,null,null,null,null,null,null,null,null,"#G7",null,null,null,"R",null,"-",null,"C",null,0,"-",0,"","","","",""]
[null,null,null,null,null,null,null,null,null,null,null,null,null,null,null,null,null,"#G7",null,null,null,"P",null,"-",null,"B",null,0,"-",0,"","","","",""]
[null,null,null,null,null,null,null,null,null,null,null,null,null,null,null,null,null,"#G7",null,null,null,"N",null,"-",null,"D",null,0,"-",0,"","","","",""]
[null,null,null,null,null,null,null,null,null,null,null,null,null,null,null,null,null,"#G7",null,null,null,"L",null,"-",null,"F",null,0,"-",0,"","","","",""]
[null,null,null,null,null,null,null,null,null,null,null,null,null,null,null,null,null,"#G7",null,null,null,{"$f":"V1836","v":"J"},null,"-",null,"H",null,0,"-",0,"","","","",""]
[null,null,null,null,null,null,null,null,null,null,null,null,null,null,null,null,null,null,{"$f":"S1837+1","v":8}]
[null,null,null,null,null,null,null,null,null,null,null,null,null,null,null,null,null,null,{"$f":"N_Heure","v":"Time"},{"$f":"N_Table","v":"Table"},{"$f":"N_Arbitre","v":"Referee"},{"$f":"N_Matches","v":"Matches"}]
[null,null,null,null,null,null,null,null,null,null,null,null,null,null,null,null,null,"#G8",null,null,null,{"$f":"V1840","v":"O"},null,"-",null,{"$f":"V1839","v":"A"},null,{"$f":"IF(MaxScore,MaxGoals(W1851,Y1851,MaxGoalsValue),IF(W1851=\"\",\"\",W1851))","v":0},{"$f":"IF(MaxScore,\"-\",IF(W1851=\"\",\"\",\"-\"))","v":"-"},{"$f":"IF(MaxScore,MaxGoals(Y1851,W1851,MaxGoalsValue),IF(Y1851=\"\",\"\",Y1851))","v":0},{"$f":"IF(W1851=\"\",\"\",IF(W1851>Y1851,V1851,IF(W1851=Y1851,\"\",Z1851)))","v":""},{"$f":"IF(W1851=\"\",\"\",IF(W1851=Y1851,V1851,\"\"))","v":""},{"$f":"IF(W1851=\"\",\"\",IF(W1851=Y1851,Z1851,\"\"))","v":""},{"$f":"IF(W1851=\"\",\"\",IF(W1851<Y1851,V1851,IF(W1851=Y1851,\"\",Z1851)))","v":""},{"$f":"CONCATENATE(AE1851,AH1851)","v":""}]
[null,null,null,null,null,null,null,null,null,null,null,null,null,null,null,null,null,"#G8",null,null,null,{"$f":"Z1839","v":"M"},null,"-",null,{"$f":"V1841","v":"Q"},null,0,"-",0,"","","","",""]
[null,null,null,null,null,null,null,null,null,null,null,null,null,null,null,null,null,"#G8",null,null,null,"K",null,"-",null,"S",null,0,"-",0,"","","","",""]
[null,null,null,null,null,null,null,null,null,null,null,null,null,null,null,null,null,"#G8",null,null,null,"I",null,"-",null,"T",null,0,"-",0,"","","","",""]
[null,null,null,null,null,null,null,null,null,null,null,null,null,null,null,null,null,"#G8",null,null,null,"G",null,"-",null,"R",null,0,"-",0,"","","","",""]
[null,null,null,null,null,null,null,null,null,null,null,null,null,null,null,null,null,"#G8",null,null,null,"E",null,"-",null,"P",null,0,"-",0,"","","","",""]
[null,null,null,null,null,null,null,null,null,null,null,null,null,null,null,null,null,"#G8",null,null,null,"C",null,"-",null,"N",null,0,"-",0,"","","","",""]
[null,null,null,null,null,null,null,null,null,null,null,null,null,null,null,null,null,"#G8",null,null,null,"B",null,"-",null,"L",null,0,"-",0,"","","","",""]
[null,null,null,null,null,null,null,null,null,null,null,null,null,null,null,null,null,"#G8",null,null,null,"D",null,"-",null,"J",null,0,"-",0,"","","","",""]
[null,null,null,null,null,null,null,null,null,null,null,null,null,null,null,null,null,"#G8",null,null,null,"F",null,"-",null,{"$f":"Z1848","v":"H"},null,0,"-",0,"","","","",""]
[null,null,null,null,null,null,null,null,null,null,null,null,null,null,null,null,null,null,{"$f":"S1849+1","v":9}]
[null,null,null,null,null,null,null,null,null,null,null,null,null,null,null,null,null,null,{"$f":"N_Heure","v":"Time"},{"$f":"N_Table","v":"Table"},{"$f":"N_Arbitre","v":"Referee"},{"$f":"N_Matches","v":"Matches"}]
[null,null,null,null,null,null,null,null,null,null,null,null,null,null,null,null,null,"#G9",null,null,null,{"$f":"Z1851","v":"A"},null,"-",null,{"$f":"Z1852","v":"Q"},null,{"$f":"IF(MaxScore,MaxGoals(W1863,Y1863,MaxGoalsValue),IF(W1863=\"\",\"\",W1863))","v":0},{"$f":"IF(MaxScore,\"-\",IF(W1863=\"\",\"\",\"-\"))","v":"-"},{"$f":"IF(MaxScore,MaxGoals(Y1863,W1863,MaxGoalsValue),IF(Y1863=\"\",\"\",Y1863))","v":0},{"$f":"IF(W1863=\"\",\"\",IF(W1863>Y1863,V1863,IF(W1863=Y1863,\"\",Z1863)))","v":""},{"$f":"IF(W1863=\"\",\"\",IF(W1863=Y1863,V1863,\"\"))","v":""},{"$f":"IF(W1863=\"\",\"\",IF(W1863=Y1863,Z1863,\"\"))","v":""},{"$f":"IF(W1863=\"\",\"\",IF(W1863<Y1863,V1863,IF(W1863=Y1863,\"\",Z1863)))","v":""},{"$f":"CONCATENATE(AE1863,AH1863)","v":""}]
[null,null,null,null,null,null,null,null,null,null,null,null,null,null,null,null,null,"#G9",null,null,null,{"$f":"Z1853","v":"S"},null,"-",null,{"$f":"V1851","v":"O"},null,0,"-",0,"","","","",""]
[null,null,null,null,null,null,null,null,null,null,null,null,null,null,null,null,null,"#G9",null,null,null,"T",null,"-",null,"M",null,0,"-",0,"","","","",""]
[null,null,null,null,null,null,null,null,null,null,null,null,null,null,null,null,null,"#G9",null,null,null,"R",null,"-",null,"K",null,0,"-",0,"","","","",""]
[null,null,null,null,null,null,null,null,null,null,null,null,null,null,null,null,null,"#G9",null,null,null,"P",null,"-",null,"I",null,0,"-",0,"","","","",""]
[null,null,null,null,null,null,null,null,null,null,null,null,null,null,null,null,null,"#G9",null,null,null,"N",null,"-",null,"G",null,0,"-",0,"","","","",""]
[null,null,null,null,null,null,null,null,null,null,null,null,null,null,null,null,null,"#G9",null,null,null,"L",null,"-",null,"E",null,0,"-",0,"","","","",""]
[null,null,null,null,null,null,null,null,null,null,null,null,null,null,null,null,null,"#G9",null,null,null,"J",null,"-",null,"C",null,0,"-",0,"","","","",""]
[null,null,null,null,null,null,null,null,null,null,null,null,null,null,null,null,null,"#G9",null,null,null,"H",null,"-",null,"B",null,0,"-",0,"","","","",""]
[null,null,null,null,null,null,null,null,null,null,null,null,null,null,null,null,null,"#G9",null,null,null,{"$f":"V1860","v":"F"},null,"-",null,"D",null,0,"-",0,"","","","",""]
[null,null,null,null,null,null,null,null,null,null,null,null,null,null,null,null,null,null,{"$f":"S1861+1","v":10}]
[null,null,null,null,null,null,null,null,null,null,null,null,null,null,null,null,null,null,{"$f":"N_Heure","v":"Time"},{"$f":"N_Table","v":"Table"},{"$f":"N_Arbitre","v":"Referee"},{"$f":"N_Matches","v":"Matches"}]
[null,null,null,null,null,null,null,null,null,null,null,null,null,null,null,null,null,"#G10",null,null,null,{"$f":"V1864","v":"S"},null,"-",null,{"$f":"V1863","v":"A"},null,{"$f":"IF(MaxScore,MaxGoals(W1875,Y1875,MaxGoalsValue),IF(W1875=\"\",\"\",W1875))","v":0},{"$f":"IF(MaxScore,\"-\",IF(W1875=\"\",\"\",\"-\"))","v":"-"},{"$f":"IF(MaxScore,MaxGoals(Y1875,W1875,MaxGoalsValue),IF(Y1875=\"\",\"\",Y1875))","v":0},{"$f":"IF(W1875=\"\",\"\",IF(W1875>Y1875,V1875,IF(W1875=Y1875,\"\",Z1875)))","v":""},{"$f":"IF(W1875=\"\",\"\",IF(W1875=Y1875,V1875,\"\"))","v":""},{"$f":"IF(W1875=\"\",\"\",IF(W1875=Y1875,Z1875,\"\"))","v":""},{"$f":"IF(W1875=\"\",\"\",IF(W1875<Y1875,V1875,IF(W1875=Y1875,\"\",Z1875)))","v":""},{"$f":"CONCATENATE(AE1875,AH1875)","v":""}]
[null,null,null,null,null,null,null,null,null,null,null,null,null,null,null,null,null,"#G10",null,null,null,{"$f":"Z1863","v":"Q"},null,"-",null,{"$f":"V1865","v":"T"},null,0,"-",0,"","","","",""]
[null,null,null,null,null,null,null,null,null,null,null,null,null,null,null,null,null,"#G10",null,null,null,"O",null,"-",null,"R",null,0,"-",0,"","","","",""]
[null,null,null,null,null,null,null,null,null,null,null,null,null,null,null,null,null,"#G10",null,null,null,"M",null,"-",null,"P",null,0,"-",0,"","","","",""]
[null,null,null,null,null,null,null,null,null,null,null,null,null,null,null,null,null,"#G10",null,null,null,"K",null,"-",null,"N",null,0,"-",0,"","","","",""]
[null,null,null,null,null,null,null,null,null,null,null,null,null,null,null,null,null,"#G10",null,null,null,"I",null,"-",null,"L",null,0,"-",0,"","","","",""]
[null,null,null,null,null,null,null,null,null,null,null,null,null,null,null,null,null,"#G10",null,null,null,"G",null,"-",null,"J",null,0,"-",0,"","","","",""]
[null,null,null,null,null,null,null,null,null,null,null,null,null,null,null,null,null,"#G10",null,null,null,"E",null,"-",null,"H",null,0,"-",0,"","","","",""]
[null,null,null,null,null,null,null,null,null,null,null,null,null,null,null,null,null,"#G10",null,null,null,"C",null,"-",null,"F",null,0,"-",0,"","","","",""]
[null,null,null,null,null,null,null,null,null,null,null,null,null,null,null,null,null,"#G10",null,null,null,"B",null,"-",null,{"$f":"Z1872","v":"D"},null,0,"-",0,"","","","",""]
[null,null,null,null,null,null,null,null,null,null,null,null,null,null,null,null,null,null,{"$f":"S1873+1","v":11}]
[null,null,null,null,null,null,null,null,null,null,null,null,null,null,null,null,null,null,{"$f":"N_Heure","v":"Time"},{"$f":"N_Table","v":"Table"},{"$f":"N_Arbitre","v":"Referee"},{"$f":"N_Matches","v":"Matches"}]
[null,null,null,null,null,null,null,null,null,null,null,null,null,null,null,null,null,"#G11",null,null,null,{"$f":"Z1875","v":"A"},null,"-",null,{"$f":"Z1876","v":"T"},null,{"$f":"IF(MaxScore,MaxGoals(W1887,Y1887,MaxGoalsValue),IF(W1887=\"\",\"\",W1887))","v":0},{"$f":"IF(MaxScore,\"-\",IF(W1887=\"\",\"\",\"-\"))","v":"-"},{"$f":"IF(MaxScore,MaxGoals(Y1887,W1887,MaxGoalsValue),IF(Y1887=\"\",\"\",Y1887))","v":0},{"$f":"IF(W1887=\"\",\"\",IF(W1887>Y1887,V1887,IF(W1887=Y1887,\"\",Z1887)))","v":""},{"$f":"IF(W1887=\"\",\"\",IF(W1887=Y1887,V1887,\"\"))","v":""},{"$f":"IF(W1887=\"\",\"\",IF(W1887=Y1887,Z1887,\"\"))","v":""},{"$f":"IF(W1887=\"\",\"\",IF(W1887<Y1887,V1887,IF(W1887=Y1887,\"\",Z1887)))","v":""},{"$f":"CONCATENATE(AE1887,AH1887)","v":""}]
[null,null,null,null,null,null,null,null,null,null,null,null,null,null,null,null,null,"#G11",null,null,null,{"$f":"Z1877","v":"R"},null,"-",null,{"$f":"V1875","v":"S"},null,0,"-",0,"","","","",""]
[null,null,null,null,null,null,null,null,null,null,null,null,null,null,null,null,null,"#G11",null,null,null,"P",null,"-",null,"Q",null,0,"-",0,"","","","",""]
[null,null,null,null,null,null,null,null,null,null,null,null,null,null,null,null,null,"#G11",null,null,null,"N",null,"-",null,"O",null,0,"-",0,"","","","",""]
[null,null,null,null,null,null,null,null,null,null,null,null,null,null,null,null,null,"#G11",null,null,null,"L",null,"-",null,"M",null,0,"-",0,"","","","",""]
[null,null,null,null,null,null,null,null,null,null,null,null,null,null,null,null,null,"#G11",null,null,null,"J",null,"-",null,"K",null,0,"-",0,"","","","",""]
[null,null,null,null,null,null,null,null,null,null,null,null,null,null,null,null,null,"#G11",null,null,null,"H",null,"-",null,"I",null,0,"-",0,"","","","",""]
[null,null,null,null,null,null,null,null,null,null,null,null,null,null,null,null,null,"#G11",null,null,null,"F",null,"-",null,"G",null,0,"-",0,"","","","",""]
[null,null,null,null,null,null,null,null,null,null,null,null,null,null,null,null,null,"#G11",null,null,null,"D",null,"-",null,"E",null,0,"-",0,"","","","",""]
[null,null,null,null,null,null,null,null,null,null,null,null,null,null,null,null,null,"#G11",null,null,null,{"$f":"V1884","v":"B"},null,"-",null,"C",null,0,"-",0,"","","","",""]
[null,null,null,null,null,null,null,null,null,null,null,null,null,null,null,null,null,null,{"$f":"S1885+1","v":12}]
[null,null,null,null,null,null,null,null,null,null,null,null,null,null,null,null,null,null,{"$f":"N_Heure","v":"Time"},{"$f":"N_Table","v":"Table"},{"$f":"N_Arbitre","v":"Referee"},{"$f":"N_Matches","v":"Matches"}]
[null,null,null,null,null,null,null,null,null,null,null,null,null,null,null,null,null,"#G12",null,null,null,{"$f":"V1888","v":"R"},null,"-",null,{"$f":"V1887","v":"A"},null,{"$f":"IF(MaxScore,MaxGoals(W1899,Y1899,MaxGoalsValue),IF(W1899=\"\",\"\",W1899))","v":0},{"$f":"IF(MaxScore,\"-\",IF(W1899=\"\",\"\",\"-\"))","v":"-"},{"$f":"IF(MaxScore,MaxGoals(Y1899,W1899,MaxGoalsValue),IF(Y1899=\"\",\"\",Y1899))","v":0},{"$f":"IF(W1899=\"\",\"\",IF(W1899>Y1899,V1899,IF(W1899=Y1899,\"\",Z1899)))","v":""},{"$f":"IF(W1899=\"\",\"\",IF(W1899=Y1899,V1899,\"\"))","v":""},{"$f":"IF(W1899=\"\",\"\",IF(W1899=Y1899,Z1899,\"\"))","v":""},{"$f":"IF(W1899=\"\",\"\",IF(W1899<Y1899,V1899,IF(W1899=Y1899,\"\",Z1899)))","v":""},{"$f":"CONCATENATE(AE1899,AH1899)","v":""}]
[null,null,null,null,null,null,null,null,null,null,null,null,null,null,null,null,null,"#G12",null,null,null,{"$f":"Z1887","v":"T"},null,"-",null,{"$f":"V1889","v":"P"},null,0,"-",0,"","","","",""]
[null,null,null,null,null,null,null,null,null,null,null,null,null,null,null,null,null,"#G12",null,null,null,"S",null,"-",null,"N",null,0,"-",0,"","","","",""]
[null,null,null,null,null,null,null,null,null,null,null,null,null,null,null,null,null,"#G12",null,null,null,"Q",null,"-",null,"L",null,0,"-",0,"","","","",""]
[null,null,null,null,null,null,null,null,null,null,null,null,null,null,null,null,null,"#G12",null,null,null,"O",null,"-",null,"J",null,0,"-",0,"","","","",""]
[null,null,null,null,null,null,null,null,null,null,null,null,null,null,null,null,null,"#G12",null,null,null,"M",null,"-",null,"H",null,0,"-",0,"","","","",""]
[null,null,null,null,null,null,null,null,null,null,null,null,null,null,null,null,null,"#G12",null,null,null,"K",null,"-",null,"F",null,0,"-",0,"","","","",""]
[null,null,null,null,null,null,null,null,null,null,null,null,null,null,null,null,null,"#G12",null,null,null,"I",null,"-",null,"D",null,0,"-",0,"","","","",""]
[null,null,null,null,null,null,null,null,null,null,null,null,null,null,null,null,null,"#G12",null,null,null,"G",null,"-",null,"B",null,0,"-",0,"","","","",""]
[null,null,null,null,null,null,null,null,null,null,null,null,null,null,null,null,null,"#G12",null,null,null,"E",null,"-",null,{"$f":"Z1896","v":"C"},null,0,"-",0,"","","","",""]
[null,null,null,null,null,null,null,null,null,null,null,null,null,null,null,null,null,null,{"$f":"S1897+1","v":13}]
[null,null,null,null,null,null,null,null,null,null,null,null,null,null,null,null,null,null,{"$f":"N_Heure","v":"Time"},{"$f":"N_Table","v":"Table"},{"$f":"N_Arbitre","v":"Referee"},{"$f":"N_Matches","v":"Matches"}]
[null,null,null,null,null,null,null,null,null,null,null,null,null,null,null,null,null,"#G13",null,null,null,{"$f":"Z1899","v":"A"},null,"-",null,{"$f":"Z1900","v":"P"},null,{"$f":"IF(MaxScore,MaxGoals(W1911,Y1911,MaxGoalsValue),IF(W1911=\"\",\"\",W1911))","v":0},{"$f":"IF(MaxScore,\"-\",IF(W1911=\"\",\"\",\"-\"))","v":"-"},{"$f":"IF(MaxScore,MaxGoals(Y1911,W1911,MaxGoalsValue),IF(Y1911=\"\",\"\",Y1911))","v":0},{"$f":"IF(W1911=\"\",\"\",IF(W1911>Y1911,V1911,IF(W1911=Y1911,\"\",Z1911)))","v":""},{"$f":"IF(W1911=\"\",\"\",IF(W1911=Y1911,V1911,\"\"))","v":""},{"$f":"IF(W1911=\"\",\"\",IF(W1911=Y1911,Z1911,\"\"))","v":""},{"$f":"IF(W1911=\"\",\"\",IF(W1911<Y1911,V1911,IF(W1911=Y1911,\"\",Z1911)))","v":""},{"$f":"CONCATENATE(AE1911,AH1911)","v":""}]
[null,null,null,null,null,null,null,null,null,null,null,null,null,null,null,null,null,"#G13",null,null,null,{"$f":"Z1901","v":"N"},null,"-",null,{"$f":"V1899","v":"R"},null,0,"-",0,"","","","",""]
[null,null,null,null,null,null,null,null,null,null,null,null,null,null,null,null,null,"#G13",null,null,null,"L",null,"-",null,"T",null,0,"-",0,"","","","",""]
[null,null,null,null,null,null,null,null,null,null,null,null,null,null,null,null,null,"#G13",null,null,null,"J",null,"-",null,"S",null,0,"-",0,"","","","",""]
[null,null,null,null,null,null,null,null,null,null,null,null,null,null,null,null,null,"#G13",null,null,null,"H",null,"-",null,"Q",null,0,"-",0,"","","","",""]
[null,null,null,null,null,null,null,null,null,null,null,null,null,null,null,null,null,"#G13",null,null,null,"F",null,"-",null,"O",null,0,"-",0,"","","","",""]
[null,null,null,null,null,null,null,null,null,null,null,null,null,null,null,null,null,"#G13",null,null,null,"D",null,"-",null,"M",null,0,"-",0,"","","","",""]
[null,null,null,null,null,null,null,null,null,null,null,null,null,null,null,null,null,"#G13",null,null,null,"B",null,"-",null,"K",null,0,"-",0,"","","","",""]
[null,null,null,null,null,null,null,null,null,null,null,null,null,null,null,null,null,"#G13",null,null,null,"C",null,"-",null,"I",null,0,"-",0,"","","","",""]
[null,null,null,null,null,null,null,null,null,null,null,null,null,null,null,null,null,"#G13",null,null,null,{"$f":"V1908","v":"E"},null,"-",null,"G",null,0,"-",0,"","","","",""]
[null,null,null,null,null,null,null,null,null,null,null,null,null,null,null,null,null,null,{"$f":"S1909+1","v":14}]
[null,null,null,null,null,null,null,null,null,null,null,null,null,null,null,null,null,null,{"$f":"N_Heure","v":"Time"},{"$f":"N_Table","v":"Table"},{"$f":"N_Arbitre","v":"Referee"},{"$f":"N_Matches","v":"Matches"}]
[null,null,null,null,null,null,null,null,null,null,null,null,null,null,null,null,null,"#G14",null,null,null,{"$f":"V1912","v":"N"},null,"-",null,{"$f":"V1911","v":"A"},null,{"$f":"IF(MaxScore,MaxGoals(W1923,Y1923,MaxGoalsValue),IF(W1923=\"\",\"\",W1923))","v":0},{"$f":"IF(MaxScore,\"-\",IF(W1923=\"\",\"\",\"-\"))","v":"-"},{"$f":"IF(MaxScore,MaxGoals(Y1923,W1923,MaxGoalsValue),IF(Y1923=\"\",\"\",Y1923))","v":0},{"$f":"IF(W1923=\"\",\"\",IF(W1923>Y1923,V1923,IF(W1923=Y1923,\"\",Z1923)))","v":""},{"$f":"IF(W1923=\"\",\"\",IF(W1923=Y1923,V1923,\"\"))","v":""},{"$f":"IF(W1923=\"\",\"\",IF(W1923=Y1923,Z1923,\"\"))","v":""},{"$f":"IF(W1923=\"\",\"\",IF(W1923<Y1923,V1923,IF(W1923=Y1923,\"\",Z1923)))","v":""},{"$f":"CONCATENATE(AE1923,AH1923)","v":""}]
[null,null,null,null,null,null,null,null,null,null,null,null,null,null,null,null,null,"#G14",null,null,null,{"$f":"Z1911","v":"P"},null,"-",null,{"$f":"V1913","v":"L"},null,0,"-",0,"","","","",""]
[null,null,null,null,null,null,null,null,null,null,null,null,null,null,null,null,null,"#G14",null,null,null,"R",null,"-",null,"J",null,0,"-",0,"","","","",""]
[null,null,null,null,null,null,null,null,null,null,null,null,null,null,null,null,null,"#G14",null,null,null,"T",null,"-",null,"H",null,0,"-",0,"","","","",""]
[null,null,null,null,null,null,null,null,null,null,null,null,null,null,null,null,null,"#G14",null,null,null,"S",null,"-",null,"F",null,0,"-",0,"","","","",""]
[null,null,null,null,null,null,null,null,null,null,null,null,null,null,null,null,null,"#G14",null,null,null,"Q",null,"-",null,"D",null,0,"-",0,"","","","",""]
[null,null,null,null,null,null,null,null,null,null,null,null,null,null,null,null,null,"#G14",null,null,null,"O",null,"-",null,"B",null,0,"-",0,"","","","",""]
[null,null,null,null,null,null,null,null,null,null,null,null,null,null,null,null,null,"#G14",null,null,null,"M",null,"-",null,"C",null,0,"-",0,"","","","",""]
[null,null,null,null,null,null,null,null,null,null,null,null,null,null,null,null,null,"#G14",null,null,null,"K",null,"-",null,"E",null,0,"-",0,"","","","",""]
[null,null,null,null,null,null,null,null,null,null,null,null,null,null,null,null,null,"#G14",null,null,null,"I",null,"-",null,{"$f":"Z1920","v":"G"},null,0,"-",0,"","","","",""]
[null,null,null,null,null,null,null,null,null,null,null,null,null,null,null,null,null,null,{"$f":"S1921+1","v":15}]
[null,null,null,null,null,null,null,null,null,null,null,null,null,null,null,null,null,null,{"$f":"N_Heure","v":"Time"},{"$f":"N_Table","v":"Table"},{"$f":"N_Arbitre","v":"Referee"},{"$f":"N_Matches","v":"Matches"}]
[null,null,null,null,null,null,null,null,null,null,null,null,null,null,null,null,null,"#G15",null,null,null,{"$f":"Z1923","v":"A"},null,"-",null,{"$f":"Z1924","v":"L"},null,{"$f":"IF(MaxScore,MaxGoals(W1935,Y1935,MaxGoalsValue),IF(W1935=\"\",\"\",W1935))","v":0},{"$f":"IF(MaxScore,\"-\",IF(W1935=\"\",\"\",\"-\"))","v":"-"},{"$f":"IF(MaxScore,MaxGoals(Y1935,W1935,MaxGoalsValue),IF(Y1935=\"\",\"\",Y1935))","v":0},{"$f":"IF(W1935=\"\",\"\",IF(W1935>Y1935,V1935,IF(W1935=Y1935,\"\",Z1935)))","v":""},{"$f":"IF(W1935=\"\",\"\",IF(W1935=Y1935,V1935,\"\"))","v":""},{"$f":"IF(W1935=\"\",\"\",IF(W1935=Y1935,Z1935,\"\"))","v":""},{"$f":"IF(W1935=\"\",\"\",IF(W1935<Y1935,V1935,IF(W1935=Y1935,\"\",Z1935)))","v":""},{"$f":"CONCATENATE(AE1935,AH1935)","v":""}]
[null,null,null,null,null,null,null,null,null,null,null,null,null,null,null,null,null,"#G15",null,null,null,{"$f":"Z1925","v":"J"},null,"-",null,{"$f":"V1923","v":"N"},null,0,"-",0,"","","","",""]
[null,null,null,null,null,null,null,null,null,null,null,null,null,null,null,null,null,"#G15",null,null,null,"H",null,"-",null,"P",null,0,"-",0,"","","","",""]
[null,null,null,null,null,null,null,null,null,null,null,null,null,null,null,null,null,"#G15",null,null,null,"F",null,"-",null,"R",null,0,"-",0,"","","","",""]
[null,null,null,null,null,null,null,null,null,null,null,null,null,null,null,null,null,"#G15",null,null,null,"D",null,"-",null,"T",null,0,"-",0,"","","","",""]
[null,null,null,null,null,null,null,null,null,null,null,null,null,null,null,null,null,"#G15",null,null,null,"B",null,"-",null,"S",null,0,"-",0,"","","","",""]
[null,null,null,null,null,null,null,null,null,null,null,null,null,null,null,null,null,"#G15",null,null,null,"C",null,"-",null,"Q",null,0,"-",0,"","","","",""]
[null,null,null,null,null,null,null,null,null,null,null,null,null,null,null,null,null,"#G15",null,null,null,"E",null,"-",null,"O",null,0,"-",0,"","","","",""]
[null,null,null,null,null,null,null,null,null,null,null,null,null,null,null,null,null,"#G15",null,null,null,"G",null,"-",null,"M",null,0,"-",0,"","","","",""]
[null,null,null,null,null,null,null,null,null,null,null,null,null,null,null,null,null,"#G15",null,null,null,{"$f":"V1932","v":"I"},null,"-",null,"K",null,0,"-",0,"","","","",""]
[null,null,null,null,null,null,null,null,null,null,null,null,null,null,null,null,null,null,{"$f":"S1933+1","v":16}]
[null,null,null,null,null,null,null,null,null,null,null,null,null,null,null,null,null,null,{"$f":"N_Heure","v":"Time"},{"$f":"N_Table","v":"Table"},{"$f":"N_Arbitre","v":"Referee"},{"$f":"N_Matches","v":"Matches"}]
[null,null,null,null,null,null,null,null,null,null,null,null,null,null,null,null,null,"#G16",null,null,null,{"$f":"V1936","v":"J"},null,"-",null,{"$f":"V1935","v":"A"},null,{"$f":"IF(MaxScore,MaxGoals(W1947,Y1947,MaxGoalsValue),IF(W1947=\"\",\"\",W1947))","v":0},{"$f":"IF(MaxScore,\"-\",IF(W1947=\"\",\"\",\"-\"))","v":"-"},{"$f":"IF(MaxScore,MaxGoals(Y1947,W1947,MaxGoalsValue),IF(Y1947=\"\",\"\",Y1947))","v":0},{"$f":"IF(W1947=\"\",\"\",IF(W1947>Y1947,V1947,IF(W1947=Y1947,\"\",Z1947)))","v":""},{"$f":"IF(W1947=\"\",\"\",IF(W1947=Y1947,V1947,\"\"))","v":""},{"$f":"IF(W1947=\"\",\"\",IF(W1947=Y1947,Z1947,\"\"))","v":""},{"$f":"IF(W1947=\"\",\"\",IF(W1947<Y1947,V1947,IF(W1947=Y1947,\"\",Z1947)))","v":""},{"$f":"CONCATENATE(AE1947,AH1947)","v":""}]
[null,null,null,null,null,null,null,null,null,null,null,null,null,null,null,null,null,"#G16",null,null,null,{"$f":"Z1935","v":"L"},null,"-",null,{"$f":"V1937","v":"H"},null,0,"-",0,"","","","",""]
[null,null,null,null,null,null,null,null,null,null,null,null,null,null,null,null,null,"#G16",null,null,null,"N",null,"-",null,"F",null,0,"-",0,"","","","",""]
[null,null,null,null,null,null,null,null,null,null,null,null,null,null,null,null,null,"#G16",null,null,null,"P",null,"-",null,"D",null,0,"-",0,"","","","",""]
[null,null,null,null,null,null,null,null,null,null,null,null,null,null,null,null,null,"#G16",null,null,null,"R",null,"-",null,"B",null,0,"-",0,"","","","",""]
[null,null,null,null,null,null,null,null,null,null,null,null,null,null,null,null,null,"#G16",null,null,null,"T",null,"-",null,"C",null,0,"-",0,"","","","",""]
[null,null,null,null,null,null,null,null,null,null,null,null,null,null,null,null,null,"#G16",null,null,null,"S",null,"-",null,"E",null,0,"-",0,"","","","",""]
[null,null,null,null,null,null,null,null,null,null,null,null,null,null,null,null,null,"#G16",null,null,null,"Q",null,"-",null,"G",null,0,"-",0,"","","","",""]
[null,null,null,null,null,null,null,null,null,null,null,null,null,null,null,null,null,"#G16",null,null,null,"O",null,"-",null,"I",null,0,"-",0,"","","","",""]
[null,null,null,null,null,null,null,null,null,null,null,null,null,null,null,null,null,"#G16",null,null,null,"M",null,"-",null,{"$f":"Z1944","v":"K"},null,0,"-",0,"","","","",""]
[null,null,null,null,null,null,null,null,null,null,null,null,null,null,null,null,null,null,{"$f":"S1945+1","v":17}]
[null,null,null,null,null,null,null,null,null,null,null,null,null,null,null,null,null,null,{"$f":"N_Heure","v":"Time"},{"$f":"N_Table","v":"Table"},{"$f":"N_Arbitre","v":"Referee"},{"$f":"N_Matches","v":"Matches"}]
[null,null,null,null,null,null,null,null,null,null,null,null,null,null,null,null,null,"#G17",null,null,null,{"$f":"Z1947","v":"A"},null,"-",null,{"$f":"Z1948","v":"H"},null,{"$f":"IF(MaxScore,MaxGoals(W1959,Y1959,MaxGoalsValue),IF(W1959=\"\",\"\",W1959))","v":0},{"$f":"IF(MaxScore,\"-\",IF(W1959=\"\",\"\",\"-\"))","v":"-"},{"$f":"IF(MaxScore,MaxGoals(Y1959,W1959,MaxGoalsValue),IF(Y1959=\"\",\"\",Y1959))","v":0},{"$f":"IF(W1959=\"\",\"\",IF(W1959>Y1959,V1959,IF(W1959=Y1959,\"\",Z1959)))","v":""},{"$f":"IF(W1959=\"\",\"\",IF(W1959=Y1959,V1959,\"\"))","v":""},{"$f":"IF(W1959=\"\",\"\",IF(W1959=Y1959,Z1959,\"\"))","v":""},{"$f":"IF(W1959=\"\",\"\",IF(W1959<Y1959,V1959,IF(W1959=Y1959,\"\",Z1959)))","v":""},{"$f":"CONCATENATE(AE1959,AH1959)","v":""}]
[null,null,null,null,null,null,null,null,null,null,null,null,null,null,null,null,null,"#G17",null,null,null,{"$f":"Z1949","v":"F"},null,"-",null,{"$f":"V1947","v":"J"},null,0,"-",0,"","","","",""]
[null,null,null,null,null,null,null,null,null,null,null,null,null,null,null,null,null,"#G17",null,null,null,"D",null,"-",null,"L",null,0,"-",0,"","","","",""]
[null,null,null,null,null,null,null,null,null,null,null,null,null,null,null,null,null,"#G17",null,null,null,"B",null,"-",null,"N",null,0,"-",0,"","","","",""]
[null,null,null,null,null,null,null,null,null,null,null,null,null,null,null,null,null,"#G17",null,null,null,"C",null,"-",null,"P",null,0,"-",0,"","","","",""]
[null,null,null,null,null,null,null,null,null,null,null,null,null,null,null,null,null,"#G17",null,null,null,"E",null,"-",null,"R",null,0,"-",0,"","","","",""]
[null,null,null,null,null,null,null,null,null,null,null,null,null,null,null,null,null,"#G17",null,null,null,"G",null,"-",null,"T",null,0,"-",0,"","","","",""]
[null,null,null,null,null,null,null,null,null,null,null,null,null,null,null,null,null,"#G17",null,null,null,"I",null,"-",null,"S",null,0,"-",0,"","","","",""]
[null,null,null,null,null,null,null,null,null,null,null,null,null,null,null,null,null,"#G17",null,null,null,"K",null,"-",null,"Q",null,0,"-",0,"","","","",""]
[null,null,null,null,null,null,null,null,null,null,null,null,null,null,null,null,null,"#G17",null,null,null,{"$f":"V1956","v":"M"},null,"-",null,"O",null,0,"-",0,"","","","",""]
[null,null,null,null,null,null,null,null,null,null,null,null,null,null,null,null,null,null,{"$f":"S1957+1","v":18}]
[null,null,null,null,null,null,null,null,null,null,null,null,null,null,null,null,null,null,{"$f":"N_Heure","v":"Time"},{"$f":"N_Table","v":"Table"},{"$f":"N_Arbitre","v":"Referee"},{"$f":"N_Matches","v":"Matches"}]
[null,null,null,null,null,null,null,null,null,null,null,null,null,null,null,null,null,"#G18",null,null,null,{"$f":"V1960","v":"F"},null,"-",null,{"$f":"V1959","v":"A"},null,{"$f":"IF(MaxScore,MaxGoals(W1971,Y1971,MaxGoalsValue),IF(W1971=\"\",\"\",W1971))","v":0},{"$f":"IF(MaxScore,\"-\",IF(W1971=\"\",\"\",\"-\"))","v":"-"},{"$f":"IF(MaxScore,MaxGoals(Y1971,W1971,MaxGoalsValue),IF(Y1971=\"\",\"\",Y1971))","v":0},{"$f":"IF(W1971=\"\",\"\",IF(W1971>Y1971,V1971,IF(W1971=Y1971,\"\",Z1971)))","v":""},{"$f":"IF(W1971=\"\",\"\",IF(W1971=Y1971,V1971,\"\"))","v":""},{"$f":"IF(W1971=\"\",\"\",IF(W1971=Y1971,Z1971,\"\"))","v":""},{"$f":"IF(W1971=\"\",\"\",IF(W1971<Y1971,V1971,IF(W1971=Y1971,\"\",Z1971)))","v":""},{"$f":"CONCATENATE(AE1971,AH1971)","v":""}]
[null,null,null,null,null,null,null,null,null,null,null,null,null,null,null,null,null,"#G18",null,null,null,{"$f":"Z1959","v":"H"},null,"-",null,{"$f":"V1961","v":"D"},null,0,"-",0,"","","","",""]
[null,null,null,null,null,null,null,null,null,null,null,null,null,null,null,null,null,"#G18",null,null,null,"J",null,"-",null,"B",null,0,"-",0,"","","","",""]
[null,null,null,null,null,null,null,null,null,null,null,null,null,null,null,null,null,"#G18",null,null,null,"L",null,"-",null,"C",null,0,"-",0,"","","","",""]
[null,null,null,null,null,null,null,null,null,null,null,null,null,null,null,null,null,"#G18",null,null,null,"N",null,"-",null,"E",null,0,"-",0,"","","","",""]
[null,null,null,null,null,null,null,null,null,null,null,null,null,null,null,null,null,"#G18",null,null,null,"P",null,"-",null,"G",null,0,"-",0,"","","","",""]
[null,null,null,null,null,null,null,null,null,null,null,null,null,null,null,null,null,"#G18",null,null,null,"R",null,"-",null,"I",null,0,"-",0,"","","","",""]
[null,null,null,null,null,null,null,null,null,null,null,null,null,null,null,null,null,"#G18",null,null,null,"T",null,"-",null,"K",null,0,"-",0,"","","","",""]
[null,null,null,null,null,null,null,null,null,null,null,null,null,null,null,null,null,"#G18",null,null,null,"S",null,"-",null,"M",null,0,"-",0,"","","","",""]
[null,null,null,null,null,null,null,null,null,null,null,null,null,null,null,null,null,"#G18",null,null,null,"Q",null,"-",null,{"$f":"Z1968","v":"O"},null,0,"-",0,"","","","",""]
[null,null,null,null,null,null,null,null,null,null,null,null,null,null,null,null,null,null,{"$f":"S1969+1","v":19}]
[null,null,null,null,null,null,null,null,null,null,null,null,null,null,null,null,null,null,{"$f":"N_Heure","v":"Time"},{"$f":"N_Table","v":"Table"},{"$f":"N_Arbitre","v":"Referee"},{"$f":"N_Matches","v":"Matches"}]
[null,null,null,null,null,null,null,null,null,null,null,null,null,null,null,null,null,"#G19",null,null,null,{"$f":"Z1971","v":"A"},null,"-",null,{"$f":"Z1972","v":"D"},null,{"$f":"IF(MaxScore,MaxGoals(W1983,Y1983,MaxGoalsValue),IF(W1983=\"\",\"\",W1983))","v":0},{"$f":"IF(MaxScore,\"-\",IF(W1983=\"\",\"\",\"-\"))","v":"-"},{"$f":"IF(MaxScore,MaxGoals(Y1983,W1983,MaxGoalsValue),IF(Y1983=\"\",\"\",Y1983))","v":0},{"$f":"IF(W1983=\"\",\"\",IF(W1983>Y1983,V1983,IF(W1983=Y1983,\"\",Z1983)))","v":""},{"$f":"IF(W1983=\"\",\"\",IF(W1983=Y1983,V1983,\"\"))","v":""},{"$f":"IF(W1983=\"\",\"\",IF(W1983=Y1983,Z1983,\"\"))","v":""},{"$f":"IF(W1983=\"\",\"\",IF(W1983<Y1983,V1983,IF(W1983=Y1983,\"\",Z1983)))","v":""},{"$f":"CONCATENATE(AE1983,AH1983)","v":""}]
[null,null,null,null,null,null,null,null,null,null,null,null,null,null,null,null,null,"#G19",null,null,null,{"$f":"Z1973","v":"B"},null,"-",null,{"$f":"V1971","v":"F"},null,0,"-",0,"","","","",""]
[null,null,null,null,null,null,null,null,null,null,null,null,null,null,null,null,null,"#G19",null,null,null,"C",null,"-",null,"H",null,0,"-",0,"","","","",""]
[null,null,null,null,null,null,null,null,null,null,null,null,null,null,null,null,null,"#G19",null,null,null,"E",null,"-",null,"J",null,0,"-",0,"","","","",""]
[null,null,null,null,null,null,null,null,null,null,null,null,null,null,null,null,null,"#G19",null,null,null,"G",null,"-",null,"L",null,0,"-",0,"","","","",""]
[null,null,null,null,null,null,null,null,null,null,null,null,null,null,null,null,null,"#G19",null,null,null,"I",null,"-",null,"N",null,0,"-",0,"","","","",""]
[null,null,null,null,null,null,null,null,null,null,null,null,null,null,null,null,null,"#G19",null,null,null,"K",null,"-",null,"P",null,0,"-",0,"","","","",""]
[null,null,null,null,null,null,null,null,null,null,null,null,null,null,null,null,null,"#G19",null,null,null,"M",null,"-",null,"R",null,0,"-",0,"","","","",""]
[null,null,null,null,null,null,null,null,null,null,null,null,null,null,null,null,null,"#G19",null,null,null,"O",null,"-",null,"T",null,0,"-",0,"","","","",""]
[null,null,null,null,null,null,null,null,null,null,null,null,null,null,null,null,null,"#G19",null,null,null,{"$f":"V1980","v":"Q"},null,"-",null,"S",null,0,"-",0,"","","","",""]

{"sheet":"Dble Groups","index":19,"n_rows":172,"n_cols":88,"rows_kept":172,"cut":false,"hidden":true,"merged":[]}
[null,null,null,{"$f":"Event6","v":"U12"}]
[null,null,null,"Double",null,null,null,null,null,null,null,null,null,null,null,null,null,null,null,null,null,null,null,null,{"$f":"SHEETNAME(D1)","v":"Dble Groups"},null,null,null,null,null,null,null,null,null,null,null,null,null,null,null,null,null,null,null,null,null,null,null,null,null,null,null,null,null,null,null,null,null,null,null,null,null,null,null,null,null,null,null,null,null,null,null,null,null,null,null,null,null,null,null,null,null,null,null,null,null,null,"Don't suppress cells above"]
[null,null,null,null,null,null,"Double",null,null,null,null,null,null,null,null,null,null,null,null,null,null,null,null,null,null,null,null,null,null,null,null,null,null,null,null,null,null,null,null,null,null,null,null,null,null,null,null,null,null,null,null,null,null,null,null,null,null,null,null,null,null,null,null,null,null,null,null,null,null,null,null,null,null,null,null,null,null,null,null,null,null,null,null,null,null,null,null,{"$f":"COUNTA(CJ4:CJ67)-COUNTIF(CJ4:CJ67,\"\")","v":0}]
[null,{"$f":"N_Group_3","v":"Group of 3"},null,null,null,null,null,null,null,null,null,null,null,null,null,null,null,null,null,null,null,null,null,null,null,null,null,null,null,null,null,null,null,null,null,null,null,null,null,{"$f":"B4","v":"Group of 3"},null,null,null,null,null,null,null,null,null,null,null,null,null,null,null,null,null,null,null,null,null,null,null,null,null,null,null,null,null,"Hidden columns for conditionnal formats => don't modify",null,null,null,null,null,null,null,null,null,null,null,null,null,null,null,null,null,{"$f":"TEAMLISTEVT(Particular_Category)","v":""}]
[null,null,null,null,null,null,null,null,null,null,null,null,null,null,null,null,null,null,null,null,null,null,null,null,null,null,null,null,null,null,null,null,null,null,null,null,null,null,null,null,null,null,null,null,null,null,null,null,null,null,null,null,null,null,null,null,null,null,null,null,null,null,null,null,null,null,null,null,null,null,null,null,null,null,null,null,null,null,null,null,null,null,null,null,null,null,null,""]
[null,{"$f":"N_Tirage","v":"Draw"},"Cla.","Cla1","Part","Cla2",{"$f":"N_Equipes","v":"Teams"},{"$f":"N_Pts","v":"Pts"},{"$f":"N_J","v":"Pld"},{"$f":"N_G","v":"W"},{"$f":"N_N","v":"D"},{"$f":"N_P","v":"L"},{"$f":"N_Diff_R","v":"ED"},{"$f":"N_MP","v":"WM"},{"$f":"N_MC","v":"LM"},{"$f":"N_Diff_M","v":"MD"},{"$f":"N_BP","v":"F"},{"$f":"N_BC","v":"A"},{"$f":"N_Diff_B","v":"GD"},null,null,null,null,null,null,null,null,null,null,null,null,null,null,null,null,null,null,null,null,null,{"$f":"N_Cla.","v":"Rk"},{"$f":"N_Equipes","v":"Teams"},{"$f":"N_Pts","v":"Pts"},{"$f":"N_J","v":"Pld"},{"$f":"N_G","v":"W"},{"$f":"N_N","v":"D"},{"$f":"N_P","v":"L"},{"$f":"N_Diff_R","v":"ED"},{"$f":"N_MP","v":"WM"},{"$f":"N_MC","v":"LM"},{"$f":"N_Diff_M","v":"MD"},{"$f":"N_BP","v":"F"},{"$f":"N_BC","v":"A"},{"$f":"N_Diff_B","v":"GD"},{"$f":"N_Matches","v":"Matches"},null,null,null,null,null,null,null,null,null,null,null,null,null,null,null,null,null,null,null,null,null,null,null,null,null,null,null,null,null,null,null,null,""]
[null,1,{"$f":"IF(AL10=\"\",\"\",RANK(F7,F7:F9)*1000+ROW())","v":""},{"$f":"IF(J7=\"\",\"\",H7*CritClassEq1_Points+M7*CritClassEq1_DiffRencontres+P7*CritClassEq1_DiffMatches+S7*CritClassEq1_DiffButs+N7*CritClassEq1_Matches+Q7*CritClassEq1_Attaque)","v":""},{"$f":"IF(J7=\"\",\"\",Nb_Diff_Part(D7,D7:D9,G7,G7:G9,AK11:AK19)*CritClassInd_DiffPart)","v":""},{"$f":"IF(J7=\"\",\"\",D7+E7+H7*CritClassEq2_Points+M7*CritClassEq2_DiffRencontres+P7*CritClassEq2_DiffMatches+S7*CritClassEq2_DiffButs+N7*CritClassEq2_Matches+Q7*CritClassEq2_Attaque)","v":""},"Db1",{"$f":"IF(AL10=\"\",\"\",(J7*Points_Victoire)+K7*Points_Null)","v":""},{"$f":"IF(J7=\"\",\"\",SUM(J7:L7))","v":""},{"$f":"IF(AL10=\"\",\"\",COUNTIF(AE11:AE17,G7))","v":""},{"$f":"IF(AL10=\"\",\"\",COUNTIF(AF11:AG17,G7))","v":""},{"$f":"IF(AL10=\"\",\"\",COUNTIF(AH11:AH17,G7))","v":""},{"$f":"IF(AL10=\"\",\"\",J7-L7)","v":""},{"$f":"IF(AL10=\"\",\"\",SUMIF(Y11:Y17,G7,Z10:AL17)+SUMIF(AC11:AC17,G7,AB11:AB17))","v":""},{"$f":"IF(AL10=\"\",\"\",SUMIF(Y11:Y17,G7,AB11:AB17)+SUMIF(AC11:AC17,G7,Z10:AL17))","v":""},{"$f":"IF(AL10=\"\",\"\",N7-O7)","v":""},{"$f":"IF(AL10=\"\",\"\",SUMIF(Y11:Y19,G7,AI11:AI19)+SUMIF(AC11:AC19,G7,AJ11:AJ19))","v":""},{"$f":"IF(AL10=\"\",\"\",SUMIF(Y11:Y19,G7,AJ11:AJ19)+SUMIF(AC11:AC19,G7,AI11:AI19))","v":""},{"$f":"IF(AL10=\"\",\"\",Q7-R7)","v":""},null,null,null,null,null,null,null,null,null,null,null,null,null,null,null,null,null,null,{"$f":"IF(AL10=\"\",\"\",SMALL(C7:C9,1))","v":""},null,null,{"$f":"IF(AL10=\"\",\"\",INT(AL7/1000))","v":""},{"$f":"IF(AL10=\"\",IF(HidePlayerFormulas,\"\",\"(\"&G7&\")\"),VLOOKUP(AL7,C7:S9,5,FALSE))","v":""},{"$f":"VLOOKUP(AL7,C7:S9,6,FALSE)","v":""},{"$f":"VLOOKUP(AL7,C7:S9,7,FALSE)","v":""},{"$f":"VLOOKUP(AL7,C7:S9,8,FALSE)","v":""},{"$f":"VLOOKUP(AL7,C7:S9,9,FALSE)","v":""},{"$f":"VLOOKUP(AL7,C7:S9,10,FALSE)","v":""},{"$f":"VLOOKUP(AL7,C7:S9,11,FALSE)","v":""},{"$f":"VLOOKUP(AL7,C7:S9,12,FALSE)","v":""},{"$f":"VLOOKUP(AL7,C7:S9,13,FALSE)","v":""},{"$f":"VLOOKUP(AL7,C7:S9,14,FALSE)","v":""},{"$f":"VLOOKUP(AL7,C7:S9,15,FALSE)","v":""},{"$f":"VLOOKUP(AL7,C7:S9,16,FALSE)","v":""},{"$f":"VLOOKUP(AL7,C7:S9,17,FALSE)","v":""},{"$f":"IF(Z11=\"\",\"\",IF(AP7=Y11,Z11,IF(AP7=AC11,AB11,\"\")))","v":""},{"$f":"IF(Z14=\"\",\"\",IF(AP7=Y14,Z14,IF(AP7=AC14,AB14,\"\")))","v":""},{"$f":"IF(Z17=\"\",\"\",IF(AP7=Y17,Z17,IF(AP7=AC17,AB17,\"\")))","v":""},null,null,null,null,null,null,null,null,null,null,null,null,{"$f":"IF(G7=\"[---WithDraw---]\",FALSE,IF(COUNTIF(PlayerNamesWithinGroups,G7)>1,TRUE,FALSE))","v":true},{"$f":"AND(LEFT($AP7,1) = \"(\", RIGHT($AP7,1) =\")\")","v":false},{"$f":"IF(OR($AO7=$AO6,$AO7=$AO8),TRUE,FALSE)","v":true},null,null,null,null,null,null,null,null,null,null,null,null,null,null,null,""]
[null,2,{"$f":"IF(AL10=\"\",\"\",RANK(F8,F7:F9)*1000+ROW())","v":""},{"$f":"IF(J8=\"\",\"\",H8*CritClassEq1_Points+M8*CritClassEq1_DiffRencontres+P8*CritClassEq1_DiffMatches+S8*CritClassEq1_DiffButs+N8*CritClassEq1_Matches+Q8*CritClassEq1_Attaque)","v":""},{"$f":"IF(J8=\"\",\"\",Nb_Diff_Part(D8,D7:D9,G8,G7:G9,AK11:AK19)*CritClassInd_DiffPart)","v":""},{"$f":"IF(J8=\"\",\"\",D8+E8+H8*CritClassEq2_Points+M8*CritClassEq2_DiffRencontres+P8*CritClassEq2_DiffMatches+S8*CritClassEq2_DiffButs+N8*CritClassEq2_Matches+Q8*CritClassEq2_Attaque)","v":""},"Db2",{"$f":"IF(AL10=\"\",\"\",(J8*Points_Victoire)+K8*Points_Null)","v":""},{"$f":"IF(J8=\"\",\"\",SUM(J8:L8))","v":""},{"$f":"IF(AL10=\"\",\"\",COUNTIF(AE11:AE17,G8))","v":""},{"$f":"IF(AL10=\"\",\"\",COUNTIF(AF11:AG17,G8))","v":""},{"$f":"IF(AL10=\"\",\"\",COUNTIF(AH11:AH17,G8))","v":""},{"$f":"IF(AL10=\"\",\"\",J8-L8)","v":""},{"$f":"IF(AL10=\"\",\"\",SUMIF(Y11:Y17,G8,Z10:AL17)+SUMIF(AC11:AC17,G8,AB11:AB17))","v":""},{"$f":"IF(AL10=\"\",\"\",SUMIF(Y11:Y17,G8,AB11:AB17)+SUMIF(AC11:AC17,G8,Z10:AL17))","v":""},{"$f":"IF(AL10=\"\",\"\",N8-O8)","v":""},{"$f":"IF(AL10=\"\",\"\",SUMIF(Y11:Y19,G8,AI11:AI19)+SUMIF(AC11:AC19,G8,AJ11:AJ19))","v":""},{"$f":"IF(AL10=\"\",\"\",SUMIF(Y11:Y19,G8,AJ11:AJ19)+SUMIF(AC11:AC19,G8,AI11:AI19))","v":""},{"$f":"IF(AL10=\"\",\"\",Q8-R8)","v":""},null,null,null,null,null,null,null,null,null,null,null,null,null,null,null,null,null,null,{"$f":"IF(AL10=\"\",\"\",SMALL(C7:C9,2))","v":""},null,null,{"$f":"IF(AL10=\"\",\"\",INT(AL8/1000))","v":""},{"$f":"IF(AL10=\"\",IF(HidePlayerFormulas,\"\",\"(\"&G8&\")\"),VLOOKUP(AL8,C7:S9,5,FALSE))","v":""},{"$f":"VLOOKUP(AL8,C7:S9,6,FALSE)","v":""},{"$f":"VLOOKUP(AL8,C7:S9,7,FALSE)","v":""},{"$f":"VLOOKUP(AL8,C7:S9,8,FALSE)","v":""},{"$f":"VLOOKUP(AL8,C7:S9,9,FALSE)","v":""},{"$f":"VLOOKUP(AL8,C7:S9,10,FALSE)","v":""},{"$f":"VLOOKUP(AL8,C7:S9,11,FALSE)","v":""},{"$f":"VLOOKUP(AL8,C7:S9,12,FALSE)","v":""},{"$f":"VLOOKUP(AL8,C7:S9,13,FALSE)","v":""},{"$f":"VLOOKUP(AL8,C7:S9,14,FALSE)","v":""},{"$f":"VLOOKUP(AL8,C7:S9,15,FALSE)","v":""},{"$f":"VLOOKUP(AL8,C7:S9,16,FALSE)","v":""},{"$f":"VLOOKUP(AL8,C7:S9,17,FALSE)","v":""},{"$f":"IF(Z11=\"\",\"\",IF(AP8=Y11,Z11,IF(AP8=AC11,AB11,\"\")))","v":""},{"$f":"IF(Z14=\"\",\"\",IF(AP8=Y14,Z14,IF(AP8=AC14,AB14,\"\")))","v":""},{"$f":"IF(Z17=\"\",\"\",IF(AP8=Y17,Z17,IF(AP8=AC17,AB17,\"\")))","v":""},null,null,null,null,null,null,null,null,null,null,null,null,{"$f":"IF(G8=\"[---WithDraw---]\",FALSE,IF(COUNTIF(PlayerNamesWithinGroups,G8)>1,TRUE,FALSE))","v":true},{"$f":"AND(LEFT($AP8,1) = \"(\", RIGHT($AP8,1) =\")\")","v":false},{"$f":"IF(OR($AO8=$AO7,$AO8=$AO9),TRUE,FALSE)","v":true},null,null,null,null,null,null,null,null,null,null,null,null,null,null,null,""]
[null,3,{"$f":"IF(AL10=\"\",\"\",RANK(F9,F7:F9)*1000+ROW())","v":""},{"$f":"IF(J9=\"\",\"\",H9*CritClassEq1_Points+M9*CritClassEq1_DiffRencontres+P9*CritClassEq1_DiffMatches+S9*CritClassEq1_DiffButs+N9*CritClassEq1_Matches+Q9*CritClassEq1_Attaque)","v":""},{"$f":"IF(J9=\"\",\"\",Nb_Diff_Part(D9,D7:D9,G9,G7:G9,AK11:AK19)*CritClassInd_DiffPart)","v":""},{"$f":"IF(J9=\"\",\"\",D9+E9+H9*CritClassEq2_Points+M9*CritClassEq2_DiffRencontres+P9*CritClassEq2_DiffMatches+S9*CritClassEq2_DiffButs+N9*CritClassEq2_Matches+Q9*CritClassEq2_Attaque)","v":""},"Db3",{"$f":"IF(AL10=\"\",\"\",(J9*Points_Victoire)+K9*Points_Null)","v":""},{"$f":"IF(J9=\"\",\"\",SUM(J9:L9))","v":""},{"$f":"IF(AL10=\"\",\"\",COUNTIF(AE11:AE17,G9))","v":""},{"$f":"IF(AL10=\"\",\"\",COUNTIF(AF11:AG17,G9))","v":""},{"$f":"IF(AL10=\"\",\"\",COUNTIF(AH11:AH17,G9))","v":""},{"$f":"IF(AL10=\"\",\"\",J9-L9)","v":""},{"$f":"IF(AL10=\"\",\"\",SUMIF(Y11:Y17,G9,Z10:AL17)+SUMIF(AC11:AC17,G9,AB11:AB17))","v":""},{"$f":"IF(AL10=\"\",\"\",SUMIF(Y11:Y17,G9,AB11:AB17)+SUMIF(AC11:AC17,G9,Z10:AL17))","v":""},{"$f":"IF(AL10=\"\",\"\",N9-O9)","v":""},{"$f":"IF(AL10=\"\",\"\",SUMIF(Y11:Y19,G9,AI11:AI19)+SUMIF(AC11:AC19,G9,AJ11:AJ19))","v":""},{"$f":"IF(AL10=\"\",\"\",SUMIF(Y11:Y19,G9,AJ11:AJ19)+SUMIF(AC11:AC19,G9,AI11:AI19))","v":""},{"$f":"IF(AL10=\"\",\"\",Q9-R9)","v":""},null,null,null,null,null,null,null,null,null,null,null,null,null,null,null,null,null,null,{"$f":"IF(AL10=\"\",\"\",SMALL(C7:C9,3))","v":""},null,null,{"$f":"IF(AL10=\"\",\"\",INT(AL9/1000))","v":""},{"$f":"IF(AL10=\"\",IF(HidePlayerFormulas,\"\",\"(\"&G9&\")\"),VLOOKUP(AL9,C7:S9,5,FALSE))","v":""},{"$f":"VLOOKUP(AL9,C7:S9,6,FALSE)","v":""},{"$f":"VLOOKUP(AL9,C7:S9,7,FALSE)","v":""},{"$f":"VLOOKUP(AL9,C7:S9,8,FALSE)","v":""},{"$f":"VLOOKUP(AL9,C7:S9,9,FALSE)","v":""},{"$f":"VLOOKUP(AL9,C7:S9,10,FALSE)","v":""},{"$f":"VLOOKUP(AL9,C7:S9,11,FALSE)","v":""},{"$f":"VLOOKUP(AL9,C7:S9,12,FALSE)","v":""},{"$f":"VLOOKUP(AL9,C7:S9,13,FALSE)","v":""},{"$f":"VLOOKUP(AL9,C7:S9,14,FALSE)","v":""},{"$f":"VLOOKUP(AL9,C7:S9,15,FALSE)","v":""},{"$f":"VLOOKUP(AL9,C7:S9,16,FALSE)","v":""},{"$f":"VLOOKUP(AL9,C7:S9,17,FALSE)","v":""},{"$f":"IF(Z11=\"\",\"\",IF(AP9=Y11,Z11,IF(AP9=AC11,AB11,\"\")))","v":""},{"$f":"IF(Z14=\"\",\"\",IF(AP9=Y14,Z14,IF(AP9=AC14,AB14,\"\")))","v":""},{"$f":"IF(Z17=\"\",\"\",IF(AP9=Y17,Z17,IF(AP9=AC17,AB17,\"\")))","v":""},null,null,null,null,null,null,null,null,null,null,null,null,{"$f":"IF(G9=\"[---WithDraw---]\",FALSE,IF(COUNTIF(PlayerNamesWithinGroups,G9)>1,TRUE,FALSE))","v":true},{"$f":"AND(LEFT($AP9,1) = \"(\", RIGHT($AP9,1) =\")\")","v":false},{"$f":"IF(OR($AO9=$AO8,$AO9=$AO10),TRUE,FALSE)","v":true},null,null,null,null,null,null,null,null,null,null,null,null,null,null,null,""]
[null,null,null,null,null,null,null,null,null,null,null,null,null,null,null,null,null,null,null,null,null,{"$f":"N_Heure","v":"Time"},{"$f":"N_Table","v":"Table"},{"$f":"N_Arbitre","v":"Referee"},{"$f":"N_Matches","v":"Matches"},null,null,null,null,null,null,null,null,null,null,null,null,{"$f":"IF(COUNTA(Z11:Z19)>3,\"OK\",\"\")","v":""},null,null,null,null,null,null,null,null,null,null,null,null,null,null,null,null,null,null,null,null,null,null,null,null,null,null,null,null,null,null,null,null,null,null,null,null,null,null,null,null,null,null,null,null,null,null,null,null,null,""]
[null,null,null,null,null,null,null,null,null,null,null,null,null,null,null,null,null,null,null,null,"#G1",null,null,null,{"$f":"IF(COUNTA(G7:G9) =3,GMFTGROUPORDERDBLE(G7:G9,Y11:Y19,AC11:AC19),\"\")","v":"Db3"},{"$f":"IF(OR(ISNUMBER(Z12),ISNUMBER(Z13)),2-COUNTBLANK(AI12:AI13),\"\")","v":""},"-",{"$f":"IF(OR(ISNUMBER(Z12),ISNUMBER(Z13)),2-COUNTBLANK(AJ12:AJ13),\"\")","v":""},{"$f":"IF(COUNTA(G7:G9) =3,GMFTGROUPORDERDBLE(G7:G9,Y11:Y19,AC11:AC19),\"\")","v":"Db1"},null,{"$f":"IF(Z11=\"\",\"\",IF(Z11>AB11,Y11,IF(Z11=AB11,\"\",AC11)))","v":""},{"$f":"IF(Z11=\"\",\"\",IF(Z11=AB11,Y11,\"\"))","v":""},{"$f":"IF(Z11=\"\",\"\",IF(Z11=AB11,AC11,\"\"))","v":""},{"$f":"IF(Z11=\"\",\"\",IF(Z11<AB11,Y11,IF(Z11=AB11,\"\",AC11)))","v":""},{"$f":"IF(Z11=\"\",\"\",SUM(Z12:Z13))","v":""},{"$f":"IF(Z11=\"\",\"\",SUM(AB12:AB13))","v":""},{"$f":"CONCATENATE(AE11,AH11)","v":""},null,null,null,null,null,null,null,null,null,null,null,null,null,null,null,null,null,null,null,null,null,null,null,null,null,null,null,null,null,null,null,null,null,null,null,null,null,null,null,null,null,null,null,null,null,null,null,null,null,null,""]
[null,null,null,null,null,null,null,null,null,null,null,null,null,null,null,null,null,null,null,null,null,null,null,null,null,null,"-",null,null,null,"","","","",{"$f":"IF(Z12=\"\",\"\",IF(Z12>AB12,Y11,\"\"))","v":""},{"$f":"IF(Z12=\"\",\"\",IF(Z12<AB12,AC11,\"\"))","v":""},"",null,null,null,null,null,null,null,null,null,null,null,null,null,null,null,null,null,null,null,null,null,null,null,null,null,null,null,null,null,null,null,null,null,null,null,null,null,null,null,null,null,null,null,null,null,null,null,null,null,null,""]
[null,null,null,null,null,null,null,null,null,null,null,null,null,null,null,null,null,null,null,null,null,null,null,null,null,null,"-",null,null,null,"","","","",{"$f":"IF(Z13=\"\",\"\",IF(Z13>AB13,Y11,\"\"))","v":""},{"$f":"IF(Z13=\"\",\"\",IF(Z13<AB13,AC11,\"\"))","v":""},"",null,null,null,null,null,null,null,null,null,null,null,null,null,null,null,null,null,null,null,null,null,null,null,null,null,null,null,null,null,null,null,null,null,null,null,null,null,null,null,null,null,null,null,null,null,null,null,null,null,null,""]
[null,null,null,null,null,null,null,null,null,null,null,null,null,null,null,null,null,null,null,null,"#G2",null,null,null,{"$f":"IF(COUNTA(G7:G9) =3,GMFTGROUPORDERDBLE(G7:G9,Y11:Y19,AC11:AC19),\"\")","v":"Db2"},{"$f":"IF(OR(ISNUMBER(Z15),ISNUMBER(Z16)),2-COUNTBLANK(AI15:AI16),\"\")","v":""},"-",{"$f":"IF(OR(ISNUMBER(Z15),ISNUMBER(Z16)),2-COUNTBLANK(AJ15:AJ16),\"\")","v":""},{"$f":"IF(COUNTA(G7:G9) =3,GMFTGROUPORDERDBLE(G7:G9,Y11:Y19,AC11:AC19),\"\")","v":"Db3"},null,"","","","",{"$f":"IF(Z14=\"\",\"\",SUM(Z15:Z16))","v":""},{"$f":"IF(Z14=\"\",\"\",SUM(AB15:AB16))","v":""},"",null,null,null,null,null,null,null,null,null,null,null,null,null,null,null,null,null,null,null,null,null,null,null,null,null,null,null,null,null,null,null,null,null,null,null,null,null,null,null,null,null,null,null,null,null,null,null,null,null,null,""]
[null,null,null,null,null,null,null,null,null,null,null,null,null,null,null,null,null,null,null,null,null,null,null,null,null,null,"-",null,null,null,"","","","",{"$f":"IF(Z15=\"\",\"\",IF(Z15>AB15,Y14,\"\"))","v":""},{"$f":"IF(Z15=\"\",\"\",IF(Z15<AB15,AC14,\"\"))","v":""},"",null,null,null,null,null,null,null,null,null,null,null,null,null,null,null,null,null,null,null,null,null,null,null,null,null,null,null,null,null,null,null,null,null,null,null,null,null,null,null,null,null,null,null,null,null,null,null,null,null,null,""]
[null,null,null,null,null,null,null,null,null,null,null,null,null,null,null,null,null,null,null,null,null,null,null,null,null,null,"-",null,null,null,"","","","",{"$f":"IF(Z16=\"\",\"\",IF(Z16>AB16,Y14,\"\"))","v":""},{"$f":"IF(Z16=\"\",\"\",IF(Z16<AB16,AC14,\"\"))","v":""},"",null,null,null,null,null,null,null,null,null,null,null,null,null,null,null,null,null,null,null,null,null,null,null,null,null,null,null,null,null,null,null,null,null,null,null,null,null,null,null,null,null,null,null,null,null,null,null,null,null,null,""]
[null,null,null,null,null,null,null,null,null,null,null,null,null,null,null,null,null,null,null,null,"#G3",null,null,null,{"$f":"IF(COUNTA(G7:G9) =3,GMFTGROUPORDERDBLE(G7:G9,Y11:Y19,AC11:AC19),\"\")","v":"Db1"},{"$f":"IF(OR(ISNUMBER(Z18),ISNUMBER(Z19)),2-COUNTBLANK(AI18:AI19),\"\")","v":""},"-",{"$f":"IF(OR(ISNUMBER(Z18),ISNUMBER(Z19)),2-COUNTBLANK(AJ18:AJ19),\"\")","v":""},{"$f":"IF(COUNTA(G7:G9) =3,GMFTGROUPORDERDBLE(G7:G9,Y11:Y19,AC11:AC19),\"\")","v":"Db2"},null,"","","","",{"$f":"IF(Z17=\"\",\"\",SUM(Z18:Z19))","v":""},{"$f":"IF(Z17=\"\",\"\",SUM(AB18:AB19))","v":""},"",null,null,null,null,null,null,null,null,null,null,null,null,null,null,null,null,null,null,null,null,null,null,null,null,null,null,null,null,null,null,null,null,null,null,null,null,null,null,null,null,null,null,null,null,null,null,null,null,null,null,""]
[null,null,null,null,null,null,null,null,null,null,null,null,null,null,null,null,null,null,null,null,null,null,null,null,null,null,"-",null,null,null,"","","","",{"$f":"IF(Z18=\"\",\"\",IF(Z18>AB18,Y17,\"\"))","v":""},{"$f":"IF(Z18=\"\",\"\",IF(Z18<AB18,AC17,\"\"))","v":""},"",null,null,null,null,null,null,null,null,null,null,null,null,null,null,null,null,null,null,null,null,null,null,null,null,null,null,null,null,null,null,null,null,null,null,null,null,null,null,null,null,null,null,null,null,null,null,null,null,null,null,""]
[null,null,null,null,null,null,null,null,null,null,null,null,null,null,null,null,null,null,null,null,null,null,null,null,null,null,"-",null,null,null,"","","","",{"$f":"IF(Z19=\"\",\"\",IF(Z19>AB19,Y17,\"\"))","v":""},{"$f":"IF(Z19=\"\",\"\",IF(Z19<AB19,AC17,\"\"))","v":""},"",null,null,null,null,null,null,null,null,null,null,null,null,null,null,null,null,null,null,null,null,null,null,null,null,null,null,null,null,null,null,null,null,null,null,null,null,null,null,null,null,null,null,null,null,null,null,null,null,null,null,""]
[null,null,null,null,null,null,null,null,null,null,null,null,null,null,null,null,null,null,null,null,null,null,null,null,null,null,null,null,null,null,null,null,null,null,null,null,null,null,null,null,null,null,null,null,null,null,null,null,null,null,null,null,null,null,null,null,null,null,null,null,null,null,null,null,null,null,null,null,null,null,null,null,null,null,null,null,null,null,null,null,null,null,null,null,null,null,null,""]
[null,null,null,null,null,null,null,null,null,null,null,null,null,null,null,null,null,null,null,null,null,null,null,null,null,null,null,null,null,null,null,null,null,null,null,null,null,null,null,null,null,null,null,null,null,null,null,null,null,null,null,null,null,null,null,null,null,null,null,null,null,null,null,null,null,null,null,null,null,null,null,null,null,null,null,null,null,null,null,null,null,null,null,null,null,null,null,""]
[null,{"$f":"N_Group_3_2Leg","v":"Group of 3 with first/second leg"},null,null,null,null,null,null,null,null,null,null,null,null,null,null,null,null,null,null,null,null,null,null,null,null,null,null,null,null,null,null,null,null,null,null,null,null,null,{"$f":"B22","v":"Group of 3 with first/second leg"},null,null,null,null,null,null,null,null,null,null,null,null,null,null,null,null,null,null,null,null,null,null,null,null,null,null,null,null,null,null,null,null,null,null,null,null,null,null,null,null,null,null,null,null,null,null,null,""]
[null,null,null,null,null,null,null,null,null,null,null,null,null,null,null,null,null,null,null,null,null,null,null,null,null,null,null,null,null,null,null,null,null,null,null,null,null,null,null,null,null,null,null,null,null,null,null,null,null,null,null,null,null,null,null,null,null,null,null,null,null,null,null,null,null,null,null,null,null,null,null,null,null,null,null,null,null,null,null,null,null,null,null,null,null,null,null,""]
[null,{"$f":"N_Tirage","v":"Draw"},"Cla.","Cla1","Part","Cla2",{"$f":"N_Equipes","v":"Teams"},{"$f":"N_Pts","v":"Pts"},{"$f":"N_J","v":"Pld"},{"$f":"N_G","v":"W"},{"$f":"N_N","v":"D"},{"$f":"N_P","v":"L"},{"$f":"N_Diff_R","v":"ED"},{"$f":"N_MP","v":"WM"},{"$f":"N_MC","v":"LM"},{"$f":"N_Diff_M","v":"MD"},{"$f":"N_BP","v":"F"},{"$f":"N_BC","v":"A"},{"$f":"N_Diff_B","v":"GD"},null,null,null,null,null,null,null,null,null,null,null,null,null,null,null,null,null,null,null,null,null,{"$f":"N_Cla.","v":"Rk"},{"$f":"N_Equipes","v":"Teams"},{"$f":"N_Pts","v":"Pts"},{"$f":"N_J","v":"Pld"},{"$f":"N_G","v":"W"},{"$f":"N_N","v":"D"},{"$f":"N_P","v":"L"},{"$f":"N_Diff_R","v":"ED"},{"$f":"N_MP","v":"WM"},{"$f":"N_MC","v":"LM"},{"$f":"N_Diff_M","v":"MD"},{"$f":"N_BP","v":"F"},{"$f":"N_BC","v":"A"},{"$f":"N_Diff_B","v":"GD"},{"$f":"N_Matches","v":"Matches"},null,null,null,null,null,null,null,null,null,null,null,null,null,null,null,null,null,null,null,null,null,null,null,null,null,null,null,null,null,null,null,null,""]
[null,1,{"$f":"IF(AL28=\"\",\"\",RANK(F25,F25:F27)*1000+ROW())","v":""},{"$f":"IF(J25=\"\",\"\",H25*CritClassEq1_Points+M25*CritClassEq1_DiffRencontres+P25*CritClassEq1_DiffMatches+S25*CritClassEq1_DiffButs+N25*CritClassEq1_Matches+Q25*CritClassEq1_Attaque)","v":""},{"$f":"IF(J25=\"\",\"\",Nb_Diff_Part(D25,D25:D27,G25,G25:G27,AK29:AK46)*CritClassInd_DiffPart)","v":""},{"$f":"IF(J25=\"\",\"\",D25+E25+H25*CritClassEq2_Points+M25*CritClassEq2_DiffRencontres+P25*CritClassEq2_DiffMatches+S25*CritClassEq2_DiffButs+N25*CritClassEq2_Matches+Q25*CritClassEq2_Attaque)","v":""},"Db1",{"$f":"IF(AL28=\"\",\"\",(J25*Points_Victoire)+K25*Points_Null)","v":""},{"$f":"IF(J25=\"\",\"\",SUM(J25:L25))","v":""},{"$f":"IF(AL28=\"\",\"\",COUNTIF(AE29:AE46,G25))","v":""},{"$f":"IF(AL28=\"\",\"\",COUNTIF(AF29:AG46,G25))","v":""},{"$f":"IF(AL28=\"\",\"\",COUNTIF(AH29:AH46,G25))","v":""},{"$f":"IF(AL28=\"\",\"\",J25-L25)","v":""},{"$f":"IF(AL28=\"\",\"\",SUMIF(Y29:Y46,G25,Z28:AL46)+SUMIF(AC29:AC46,G25,AB29:AB46))","v":""},{"$f":"IF(AL28=\"\",\"\",SUMIF(Y29:Y46,G25,AB29:AB46)+SUMIF(AC29:AC46,G25,Z28:AL46))","v":""},{"$f":"IF(AL28=\"\",\"\",N25-O25)","v":""},{"$f":"IF(AL28=\"\",\"\",SUMIF(Y29:Y46,G25,AI29:AI46)+SUMIF(AC29:AC46,G25,AJ29:AJ46))","v":""},{"$f":"IF(AL28=\"\",\"\",SUMIF(Y29:Y46,G25,AJ29:AJ46)+SUMIF(AC29:AC46,G25,AI29:AI46))","v":""},{"$f":"IF(AL28=\"\",\"\",Q25-R25)","v":""},null,null,null,null,null,null,null,null,null,null,null,null,null,null,null,null,null,null,{"$f":"IF(AL28=\"\",\"\",SMALL(C25:C27,1))","v":""},null,null,{"$f":"IF(AL28=\"\",\"\",INT(AL25/1000))","v":""},{"$f":"IF(AL28=\"\",IF(HidePlayerFormulas,\"\",\"(\"&G25&\")\"),VLOOKUP(AL25,C25:S27,5,FALSE))","v":""},{"$f":"VLOOKUP(AL25,C25:S27,6,FALSE)","v":""},{"$f":"VLOOKUP(AL25,C25:S27,7,FALSE)","v":""},{"$f":"VLOOKUP(AL25,C25:S27,8,FALSE)","v":""},{"$f":"VLOOKUP(AL25,C25:S27,9,FALSE)","v":""},{"$f":"VLOOKUP(AL25,C25:S27,10,FALSE)","v":""},{"$f":"VLOOKUP(AL25,C25:S27,11,FALSE)","v":""},{"$f":"VLOOKUP(AL25,C25:S27,12,FALSE)","v":""},{"$f":"VLOOKUP(AL25,C25:S27,13,FALSE)","v":""},{"$f":"VLOOKUP(AL25,C25:S27,14,FALSE)","v":""},{"$f":"VLOOKUP(AL25,C25:S27,15,FALSE)","v":""},{"$f":"VLOOKUP(AL25,C25:S27,16,FALSE)","v":""},{"$f":"VLOOKUP(AL25,C25:S27,17,FALSE)","v":""},{"$f":"IF(Z29=\"\",\"\",IF(AP25=Y29,Z29,IF(AP25=AC29,AB29,\"\")))","v":""},{"$f":"IF(Z32=\"\",\"\",IF(AP25=Y32,Z32,IF(AP25=AC32,AB32,\"\")))","v":""},{"$f":"IF(Z35=\"\",\"\",IF(AP25=Y35,Z35,IF(AP25=AC35,AB35,\"\")))","v":""},{"$f":"IF(Z38=\"\",\"\",IF(AP25=Y38,Z38,IF(AP25=AC38,AB38,\"\")))","v":""},{"$f":"IF(Z41=\"\",\"\",IF(AP25=Y41,Z41,IF(AP25=AC41,AB41,\"\")))","v":""},{"$f":"IF(Z44=\"\",\"\",IF(AP25=Y44,Z44,IF(AP25=AC44,AB44,\"\")))","v":""},null,null,null,null,null,null,null,null,null,{"$f":"IF(G25=\"[---WithDraw---]\",FALSE,IF(COUNTIF(PlayerNamesWithinGroups,G25)>1,TRUE,FALSE))","v":true},{"$f":"AND(LEFT($AP25,1) = \"(\", RIGHT($AP25,1) =\")\")","v":false},{"$f":"IF(OR($AO25=$AO24,$AO25=$AO26),TRUE,FALSE)","v":true},null,null,null,null,null,null,null,null,null,null,null,null,null,null,null,""]
[null,2,{"$f":"IF(AL28=\"\",\"\",RANK(F26,F25:F27)*1000+ROW())","v":""},{"$f":"IF(J26=\"\",\"\",H26*CritClassEq1_Points+M26*CritClassEq1_DiffRencontres+P26*CritClassEq1_DiffMatches+S26*CritClassEq1_DiffButs+N26*CritClassEq1_Matches+Q26*CritClassEq1_Attaque)","v":""},{"$f":"IF(J26=\"\",\"\",Nb_Diff_Part(D26,D25:D27,G26,G25:G27,AK29:AK46)*CritClassInd_DiffPart)","v":""},{"$f":"IF(J26=\"\",\"\",D26+E26+H26*CritClassEq2_Points+M26*CritClassEq2_DiffRencontres+P26*CritClassEq2_DiffMatches+S26*CritClassEq2_DiffButs+N26*CritClassEq2_Matches+Q26*CritClassEq2_Attaque)","v":""},"Db2",{"$f":"IF(AL28=\"\",\"\",(J26*Points_Victoire)+K26*Points_Null)","v":""},{"$f":"IF(J26=\"\",\"\",SUM(J26:L26))","v":""},{"$f":"IF(AL28=\"\",\"\",COUNTIF(AE29:AE46,G26))","v":""},{"$f":"IF(AL28=\"\",\"\",COUNTIF(AF29:AG46,G26))","v":""},{"$f":"IF(AL28=\"\",\"\",COUNTIF(AH29:AH46,G26))","v":""},{"$f":"IF(AL28=\"\",\"\",J26-L26)","v":""},{"$f":"IF(AL28=\"\",\"\",SUMIF(Y29:Y46,G26,Z28:AL46)+SUMIF(AC29:AC46,G26,AB29:AB46))","v":""},{"$f":"IF(AL28=\"\",\"\",SUMIF(Y29:Y46,G26,AB29:AB46)+SUMIF(AC29:AC46,G26,Z28:AL46))","v":""},{"$f":"IF(AL28=\"\",\"\",N26-O26)","v":""},{"$f":"IF(AL28=\"\",\"\",SUMIF(Y29:Y46,G26,AI29:AI46)+SUMIF(AC29:AC46,G26,AJ29:AJ46))","v":""},{"$f":"IF(AL28=\"\",\"\",SUMIF(Y29:Y46,G26,AJ29:AJ46)+SUMIF(AC29:AC46,G26,AI29:AI46))","v":""},{"$f":"IF(AL28=\"\",\"\",Q26-R26)","v":""},null,null,null,null,null,null,null,null,null,null,null,null,null,null,null,null,null,null,{"$f":"IF(AL28=\"\",\"\",SMALL(C25:C27,2))","v":""},null,null,{"$f":"IF(AL28=\"\",\"\",INT(AL26/1000))","v":""},{"$f":"IF(AL28=\"\",IF(HidePlayerFormulas,\"\",\"(\"&G26&\")\"),VLOOKUP(AL26,C25:S27,5,FALSE))","v":""},{"$f":"VLOOKUP(AL26,C25:S27,6,FALSE)","v":""},{"$f":"VLOOKUP(AL26,C25:S27,7,FALSE)","v":""},{"$f":"VLOOKUP(AL26,C25:S27,8,FALSE)","v":""},{"$f":"VLOOKUP(AL26,C25:S27,9,FALSE)","v":""},{"$f":"VLOOKUP(AL26,C25:S27,10,FALSE)","v":""},{"$f":"VLOOKUP(AL26,C25:S27,11,FALSE)","v":""},{"$f":"VLOOKUP(AL26,C25:S27,12,FALSE)","v":""},{"$f":"VLOOKUP(AL26,C25:S27,13,FALSE)","v":""},{"$f":"VLOOKUP(AL26,C25:S27,14,FALSE)","v":""},{"$f":"VLOOKUP(AL26,C25:S27,15,FALSE)","v":""},{"$f":"VLOOKUP(AL26,C25:S27,16,FALSE)","v":""},{"$f":"VLOOKUP(AL26,C25:S27,17,FALSE)","v":""},{"$f":"IF(Z29=\"\",\"\",IF(AP26=Y29,Z29,IF(AP26=AC29,AB29,\"\")))","v":""},{"$f":"IF(Z32=\"\",\"\",IF(AP26=Y32,Z32,IF(AP26=AC32,AB32,\"\")))","v":""},{"$f":"IF(Z35=\"\",\"\",IF(AP26=Y35,Z35,IF(AP26=AC35,AB35,\"\")))","v":""},{"$f":"IF(Z38=\"\",\"\",IF(AP26=Y38,Z38,IF(AP26=AC38,AB38,\"\")))","v":""},{"$f":"IF(Z41=\"\",\"\",IF(AP26=Y41,Z41,IF(AP26=AC41,AB41,\"\")))","v":""},{"$f":"IF(Z44=\"\",\"\",IF(AP26=Y44,Z44,IF(AP26=AC44,AB44,\"\")))","v":""},null,null,null,null,null,null,null,null,null,{"$f":"IF(G26=\"[---WithDraw---]\",FALSE,IF(COUNTIF(PlayerNamesWithinGroups,G26)>1,TRUE,FALSE))","v":true},{"$f":"AND(LEFT($AP26,1) = \"(\", RIGHT($AP26,1) =\")\")","v":false},{"$f":"IF(OR($AO26=$AO25,$AO26=$AO27),TRUE,FALSE)","v":true},null,null,null,null,null,null,null,null,null,null,null,null,null,null,null,""]
[null,3,{"$f":"IF(AL28=\"\",\"\",RANK(F27,F25:F27)*1000+ROW())","v":""},{"$f":"IF(J27=\"\",\"\",H27*CritClassEq1_Points+M27*CritClassEq1_DiffRencontres+P27*CritClassEq1_DiffMatches+S27*CritClassEq1_DiffButs+N27*CritClassEq1_Matches+Q27*CritClassEq1_Attaque)","v":""},{"$f":"IF(J27=\"\",\"\",Nb_Diff_Part(D27,D25:D27,G27,G25:G27,AK29:AK46)*CritClassInd_DiffPart)","v":""},{"$f":"IF(J27=\"\",\"\",D27+E27+H27*CritClassEq2_Points+M27*CritClassEq2_DiffRencontres+P27*CritClassEq2_DiffMatches+S27*CritClassEq2_DiffButs+N27*CritClassEq2_Matches+Q27*CritClassEq2_Attaque)","v":""},"Db3",{"$f":"IF(AL28=\"\",\"\",(J27*Points_Victoire)+K27*Points_Null)","v":""},{"$f":"IF(J27=\"\",\"\",SUM(J27:L27))","v":""},{"$f":"IF(AL28=\"\",\"\",COUNTIF(AE29:AE46,G27))","v":""},{"$f":"IF(AL28=\"\",\"\",COUNTIF(AF29:AG46,G27))","v":""},{"$f":"IF(AL28=\"\",\"\",COUNTIF(AH29:AH46,G27))","v":""},{"$f":"IF(AL28=\"\",\"\",J27-L27)","v":""},{"$f":"IF(AL28=\"\",\"\",SUMIF(Y29:Y46,G27,Z28:AL46)+SUMIF(AC29:AC46,G27,AB29:AB46))","v":""},{"$f":"IF(AL28=\"\",\"\",SUMIF(Y29:Y46,G27,AB29:AB46)+SUMIF(AC29:AC46,G27,Z28:AL46))","v":""},{"$f":"IF(AL28=\"\",\"\",N27-O27)","v":""},{"$f":"IF(AL28=\"\",\"\",SUMIF(Y29:Y46,G27,AI29:AI46)+SUMIF(AC29:AC46,G27,AJ29:AJ46))","v":""},{"$f":"IF(AL28=\"\",\"\",SUMIF(Y29:Y46,G27,AJ29:AJ46)+SUMIF(AC29:AC46,G27,AI29:AI46))","v":""},{"$f":"IF(AL28=\"\",\"\",Q27-R27)","v":""},null,null,null,null,null,null,null,null,null,null,null,null,null,null,null,null,null,null,{"$f":"IF(AL28=\"\",\"\",SMALL(C25:C27,3))","v":""},null,null,{"$f":"IF(AL28=\"\",\"\",INT(AL27/1000))","v":""},{"$f":"IF(AL28=\"\",IF(HidePlayerFormulas,\"\",\"(\"&G27&\")\"),VLOOKUP(AL27,C25:S27,5,FALSE))","v":""},{"$f":"VLOOKUP(AL27,C25:S27,6,FALSE)","v":""},{"$f":"VLOOKUP(AL27,C25:S27,7,FALSE)","v":""},{"$f":"VLOOKUP(AL27,C25:S27,8,FALSE)","v":""},{"$f":"VLOOKUP(AL27,C25:S27,9,FALSE)","v":""},{"$f":"VLOOKUP(AL27,C25:S27,10,FALSE)","v":""},{"$f":"VLOOKUP(AL27,C25:S27,11,FALSE)","v":""},{"$f":"VLOOKUP(AL27,C25:S27,12,FALSE)","v":""},{"$f":"VLOOKUP(AL27,C25:S27,13,FALSE)","v":""},{"$f":"VLOOKUP(AL27,C25:S27,14,FALSE)","v":""},{"$f":"VLOOKUP(AL27,C25:S27,15,FALSE)","v":""},{"$f":"VLOOKUP(AL27,C25:S27,16,FALSE)","v":""},{"$f":"VLOOKUP(AL27,C25:S27,17,FALSE)","v":""},{"$f":"IF(Z29=\"\",\"\",IF(AP27=Y29,Z29,IF(AP27=AC29,AB29,\"\")))","v":""},{"$f":"IF(Z32=\"\",\"\",IF(AP27=Y32,Z32,IF(AP27=AC32,AB32,\"\")))","v":""},{"$f":"IF(Z35=\"\",\"\",IF(AP27=Y35,Z35,IF(AP27=AC35,AB35,\"\")))","v":""},{"$f":"IF(Z38=\"\",\"\",IF(AP27=Y38,Z38,IF(AP27=AC38,AB38,\"\")))","v":""},{"$f":"IF(Z41=\"\",\"\",IF(AP27=Y41,Z41,IF(AP27=AC41,AB41,\"\")))","v":""},{"$f":"IF(Z44=\"\",\"\",IF(AP27=Y44,Z44,IF(AP27=AC44,AB44,\"\")))","v":""},null,null,null,null,null,null,null,null,null,{"$f":"IF(G27=\"[---WithDraw---]\",FALSE,IF(COUNTIF(PlayerNamesWithinGroups,G27)>1,TRUE,FALSE))","v":true},{"$f":"AND(LEFT($AP27,1) = \"(\", RIGHT($AP27,1) =\")\")","v":false},{"$f":"IF(OR($AO27=$AO26,$AO27=$AO28),TRUE,FALSE)","v":true},null,null,null,null,null,null,null,null,null,null,null,null,null,null,null,""]
[null,null,null,null,null,null,null,null,null,null,null,null,null,null,null,null,null,null,null,null,null,{"$f":"N_Heure","v":"Time"},{"$f":"N_Table","v":"Table"},{"$f":"N_Arbitre","v":"Referee"},{"$f":"N_Matches","v":"Matches"},null,null,null,null,null,null,null,null,null,null,null,null,{"$f":"IF(COUNTA(Z29:Z46)>6,\"OK\",\"\")","v":""},null,null,null,null,null,null,null,null,null,null,null,null,null,null,null,null,null,null,null,null,null,null,null,null,null,null,null,null,null,null,null,null,null,null,null,null,null,null,null,null,null,null,null,null,null,null,null,null,null,""]
[null,null,null,null,null,null,null,null,null,null,null,null,null,null,null,null,null,null,null,null,"#G1",null,null,null,{"$f":"IF(COUNTA(G25:G27) =3,GMFTGROUPORDERDBLE(G25:G27,Y29:Y37,AC29:AC37),\"\")","v":"Db3"},{"$f":"IF(OR(ISNUMBER(Z30),ISNUMBER(Z31)),2-COUNTBLANK(AI30:AI31),\"\")","v":""},"-",{"$f":"IF(OR(ISNUMBER(Z30),ISNUMBER(Z31)),2-COUNTBLANK(AJ30:AJ31),\"\")","v":""},{"$f":"IF(COUNTA(G25:G27) =3,GMFTGROUPORDERDBLE(G25:G27,Y29:Y37,AC29:AC37),\"\")","v":"Db1"},null,{"$f":"IF(Z29=\"\",\"\",IF(Z29>AB29,Y29,IF(Z29=AB29,\"\",AC29)))","v":""},{"$f":"IF(Z29=\"\",\"\",IF(Z29=AB29,Y29,\"\"))","v":""},{"$f":"IF(Z29=\"\",\"\",IF(Z29=AB29,AC29,\"\"))","v":""},{"$f":"IF(Z29=\"\",\"\",IF(Z29<AB29,Y29,IF(Z29=AB29,\"\",AC29)))","v":""},{"$f":"IF(Z29=\"\",\"\",SUM(Z30:Z31))","v":""},{"$f":"IF(Z29=\"\",\"\",SUM(AB30:AB31))","v":""},{"$f":"CONCATENATE(AE29,AH29)","v":""},null,null,null,null,null,null,null,null,null,null,null,null,null,null,null,null,null,null,null,null,null,null,null,null,null,null,null,null,null,null,null,null,null,null,null,null,null,null,null,null,null,null,null,null,null,null,null,null,null,null,""]
[null,null,null,null,null,null,null,null,null,null,null,null,null,null,null,null,null,null,null,null,null,null,null,null,null,null,"-",null,null,null,"","","","",{"$f":"IF(Z30=\"\",\"\",IF(Z30>AB30,Y29,\"\"))","v":""},{"$f":"IF(Z30=\"\",\"\",IF(Z30<AB30,AC29,\"\"))","v":""},"",null,null,null,null,null,null,null,null,null,null,null,null,null,null,null,null,null,null,null,null,null,null,null,null,null,null,null,null,null,null,null,null,null,null,null,null,null,null,null,null,null,null,null,null,null,null,null,null,null,null,""]
[null,null,null,null,null,null,null,null,null,null,null,null,null,null,null,null,null,null,null,null,null,null,null,null,null,null,"-",null,null,null,"","","","",{"$f":"IF(Z31=\"\",\"\",IF(Z31>AB31,Y29,\"\"))","v":""},{"$f":"IF(Z31=\"\",\"\",IF(Z31<AB31,AC29,\"\"))","v":""},"",null,null,null,null,null,null,null,null,null,null,null,null,null,null,null,null,null,null,null,null,null,null,null,null,null,null,null,null,null,null,null,null,null,null,null,null,null,null,null,null,null,null,null,null,null,null,null,null,null,null,""]
[null,null,null,null,null,null,null,null,null,null,null,null,null,null,null,null,null,null,null,null,"#G2",null,null,null,{"$f":"IF(COUNTA(G25:G27) =3,GMFTGROUPORDERDBLE(G25:G27,Y29:Y37,AC29:AC37),\"\")","v":"Db2"},{"$f":"IF(OR(ISNUMBER(Z33),ISNUMBER(Z34)),2-COUNTBLANK(AI33:AI34),\"\")","v":""},"-",{"$f":"IF(OR(ISNUMBER(Z33),ISNUMBER(Z34)),2-COUNTBLANK(AJ33:AJ34),\"\")","v":""},{"$f":"IF(COUNTA(G25:G27) =3,GMFTGROUPORDERDBLE(G25:G27,Y29:Y37,AC29:AC37),\"\")","v":"Db3"},null,"","","","",{"$f":"IF(Z32=\"\",\"\",SUM(Z33:Z34))","v":""},{"$f":"IF(Z32=\"\",\"\",SUM(AB33:AB34))","v":""},"",null,null,null,null,null,null,null,null,null,null,null,null,null,null,null,null,null,null,null,null,null,null,null,null,null,null,null,null,null,null,null,null,null,null,null,null,null,null,null,null,null,null,null,null,null,null,null,null,null,null,""]
[null,null,null,null,null,null,null,null,null,null,null,null,null,null,null,null,null,null,null,null,null,null,null,null,null,null,"-",null,null,null,"","","","",{"$f":"IF(Z33=\"\",\"\",IF(Z33>AB33,Y32,\"\"))","v":""},{"$f":"IF(Z33=\"\",\"\",IF(Z33<AB33,AC32,\"\"))","v":""},"",null,null,null,null,null,null,null,null,null,null,null,null,null,null,null,null,null,null,null,null,null,null,null,null,null,null,null,null,null,null,null,null,null,null,null,null,null,null,null,null,null,null,null,null,null,null,null,null,null,null,""]
[null,null,null,null,null,null,null,null,null,null,null,null,null,null,null,null,null,null,null,null,null,null,null,null,null,null,"-",null,null,null,"","","","",{"$f":"IF(Z34=\"\",\"\",IF(Z34>AB34,Y32,\"\"))","v":""},{"$f":"IF(Z34=\"\",\"\",IF(Z34<AB34,AC32,\"\"))","v":""},"",null,null,null,null,null,null,null,null,null,null,null,null,null,null,null,null,null,null,null,null,null,null,null,null,null,null,null,null,null,null,null,null,null,null,null,null,null,null,null,null,null,null,null,null,null,null,null,null,null,null,""]
[null,null,null,null,null,null,null,null,null,null,null,null,null,null,null,null,null,null,null,null,"#G3",null,null,null,{"$f":"IF(COUNTA(G25:G27) =3,GMFTGROUPORDERDBLE(G25:G27,Y29:Y37,AC29:AC37),\"\")","v":"Db1"},{"$f":"IF(OR(ISNUMBER(Z36),ISNUMBER(Z37)),2-COUNTBLANK(AI36:AI37),\"\")","v":""},"-",{"$f":"IF(OR(ISNUMBER(Z36),ISNUMBER(Z37)),2-COUNTBLANK(AJ36:AJ37),\"\")","v":""},{"$f":"IF(COUNTA(G25:G27) =3,GMFTGROUPORDERDBLE(G25:G27,Y29:Y37,AC29:AC37),\"\")","v":"Db2"},null,"","","","",{"$f":"IF(Z35=\"\",\"\",SUM(Z36:Z37))","v":""},{"$f":"IF(Z35=\"\",\"\",SUM(AB36:AB37))","v":""},"",null,null,null,null,null,null,null,null,null,null,null,null,null,null,null,null,null,null,null,null,null,null,null,null,null,null,null,null,null,null,null,null,null,null,null,null,null,null,null,null,null,null,null,null,null,null,null,null,null,null,""]
[null,null,null,null,null,null,null,null,null,null,null,null,null,null,null,null,null,null,null,null,null,null,null,null,null,null,"-",null,null,null,"","","","",{"$f":"IF(Z36=\"\",\"\",IF(Z36>AB36,Y35,\"\"))","v":""},{"$f":"IF(Z36=\"\",\"\",IF(Z36<AB36,AC35,\"\"))","v":""},"",null,null,null,null,null,null,null,null,null,null,null,null,null,null,null,null,null,null,null,null,null,null,null,null,null,null,null,null,null,null,null,null,null,null,null,null,null,null,null,null,null,null,null,null,null,null,null,null,null,null,""]
[null,null,null,null,null,null,null,null,null,null,null,null,null,null,null,null,null,null,null,null,null,null,null,null,null,null,"-",null,null,null,"","","","",{"$f":"IF(Z37=\"\",\"\",IF(Z37>AB37,Y35,\"\"))","v":""},{"$f":"IF(Z37=\"\",\"\",IF(Z37<AB37,AC35,\"\"))","v":""},"",null,null,null,null,null,null,null,null,null,null,null,null,null,null,null,null,null,null,null,null,null,null,null,null,null,null,null,null,null,null,null,null,null,null,null,null,null,null,null,null,null,null,null,null,null,null,null,null,null,null,""]
[null,null,null,null,null,null,null,null,null,null,null,null,null,null,null,null,null,null,null,null,"#G4",null,null,null,{"$f":"AC29","v":"Db1"},{"$f":"IF(OR(ISNUMBER(Z39),ISNUMBER(Z40)),2-COUNTBLANK(AI39:AI40),\"\")","v":""},"-",{"$f":"IF(OR(ISNUMBER(Z39),ISNUMBER(Z40)),2-COUNTBLANK(AJ39:AJ40),\"\")","v":""},{"$f":"Y29","v":"Db3"},null,"","","","",{"$f":"IF(Z38=\"\",\"\",SUM(Z39:Z40))","v":""},{"$f":"IF(Z38=\"\",\"\",SUM(AB39:AB40))","v":""},"",null,null,null,null,null,null,null,null,null,null,null,null,null,null,null,null,null,null,null,null,null,null,null,null,null,null,null,null,null,null,null,null,null,null,null,null,null,null,null,null,null,null,null,null,null,null,null,null,null,null,""]
[null,null,null,null,null,null,null,null,null,null,null,null,null,null,null,null,null,null,null,null,null,null,null,null,null,null,"-",null,null,null,"","","","",{"$f":"IF(Z39=\"\",\"\",IF(Z39>AB39,Y38,\"\"))","v":""},{"$f":"IF(Z39=\"\",\"\",IF(Z39<AB39,AC38,\"\"))","v":""},"",null,null,null,null,null,null,null,null,null,null,null,null,null,null,null,null,null,null,null,null,null,null,null,null,null,null,null,null,null,null,null,null,null,null,null,null,null,null,null,null,null,null,null,null,null,null,null,null,null,null,""]
[null,null,null,null,null,null,null,null,null,null,null,null,null,null,null,null,null,null,null,null,null,null,null,null,null,null,"-",null,null,null,"","","","",{"$f":"IF(Z40=\"\",\"\",IF(Z40>AB40,Y38,\"\"))","v":""},{"$f":"IF(Z40=\"\",\"\",IF(Z40<AB40,AC38,\"\"))","v":""},"",null,null,null,null,null,null,null,null,null,null,null,null,null,null,null,null,null,null,null,null,null,null,null,null,null,null,null,null,null,null,null,null,null,null,null,null,null,null,null,null,null,null,null,null,null,null,null,null,null,null,""]
[null,null,null,null,null,null,null,null,null,null,null,null,null,null,null,null,null,null,null,null,"#G5",null,null,null,{"$f":"AC32","v":"Db3"},{"$f":"IF(OR(ISNUMBER(Z42),ISNUMBER(Z43)),2-COUNTBLANK(AI42:AI43),\"\")","v":""},"-",{"$f":"IF(OR(ISNUMBER(Z42),ISNUMBER(Z43)),2-COUNTBLANK(AJ42:AJ43),\"\")","v":""},{"$f":"Y32","v":"Db2"},null,"","","","",{"$f":"IF(Z41=\"\",\"\",SUM(Z42:Z43))","v":""},{"$f":"IF(Z41=\"\",\"\",SUM(AB42:AB43))","v":""},"",null,null,null,null,null,null,null,null,null,null,null,null,null,null,null,null,null,null,null,null,null,null,null,null,null,null,null,null,null,null,null,null,null,null,null,null,null,null,null,null,null,null,null,null,null,null,null,null,null,null,""]
[null,null,null,null,null,null,null,null,null,null,null,null,null,null,null,null,null,null,null,null,null,null,null,null,null,null,"-",null,null,null,"","","","",{"$f":"IF(Z42=\"\",\"\",IF(Z42>AB42,Y41,\"\"))","v":""},{"$f":"IF(Z42=\"\",\"\",IF(Z42<AB42,AC41,\"\"))","v":""},"",null,null,null,null,null,null,null,null,null,null,null,null,null,null,null,null,null,null,null,null,null,null,null,null,null,null,null,null,null,null,null,null,null,null,null,null,null,null,null,null,null,null,null,null,null,null,null,null,null,null,""]
[null,null,null,null,null,null,null,null,null,null,null,null,null,null,null,null,null,null,null,null,null,null,null,null,null,null,"-",null,null,null,"","","","",{"$f":"IF(Z43=\"\",\"\",IF(Z43>AB43,Y41,\"\"))","v":""},{"$f":"IF(Z43=\"\",\"\",IF(Z43<AB43,AC41,\"\"))","v":""},"",null,null,null,null,null,null,null,null,null,null,null,null,null,null,null,null,null,null,null,null,null,null,null,null,null,null,null,null,null,null,null,null,null,null,null,null,null,null,null,null,null,null,null,null,null,null,null,null,null,null,""]
[null,null,null,null,null,null,null,null,null,null,null,null,null,null,null,null,null,null,null,null,"#G6",null,null,null,{"$f":"AC35","v":"Db2"},{"$f":"IF(OR(ISNUMBER(Z45),ISNUMBER(Z46)),2-COUNTBLANK(AI45:AI46),\"\")","v":""},"-",{"$f":"IF(OR(ISNUMBER(Z45),ISNUMBER(Z46)),2-COUNTBLANK(AJ45:AJ46),\"\")","v":""},{"$f":"Y35","v":"Db1"},null,"","","","",{"$f":"IF(Z44=\"\",\"\",SUM(Z45:Z46))","v":""},{"$f":"IF(Z44=\"\",\"\",SUM(AB45:AB46))","v":""},"",null,null,null,null,null,null,null,null,null,null,null,null,null,null,null,null,null,null,null,null,null,null,null,null,null,null,null,null,null,null,null,null,null,null,null,null,null,null,null,null,null,null,null,null,null,null,null,null,null,null,""]
[null,null,null,null,null,null,null,null,null,null,null,null,null,null,null,null,null,null,null,null,null,null,null,null,null,null,"-",null,null,null,"","","","",{"$f":"IF(Z45=\"\",\"\",IF(Z45>AB45,Y44,\"\"))","v":""},{"$f":"IF(Z45=\"\",\"\",IF(Z45<AB45,AC44,\"\"))","v":""},"",null,null,null,null,null,null,null,null,null,null,null,null,null,null,null,null,null,null,null,null,null,null,null,null,null,null,null,null,null,null,null,null,null,null,null,null,null,null,null,null,null,null,null,null,null,null,null,null,null,null,""]
[null,null,null,null,null,null,null,null,null,null,null,null,null,null,null,null,null,null,null,null,null,null,null,null,null,null,"-",null,null,null,"","","","",{"$f":"IF(Z46=\"\",\"\",IF(Z46>AB46,Y44,\"\"))","v":""},{"$f":"IF(Z46=\"\",\"\",IF(Z46<AB46,AC44,\"\"))","v":""},"",null,null,null,null,null,null,null,null,null,null,null,null,null,null,null,null,null,null,null,null,null,null,null,null,null,null,null,null,null,null,null,null,null,null,null,null,null,null,null,null,null,null,null,null,null,null,null,null,null,null,""]
[null,null,null,null,null,null,null,null,null,null,null,null,null,null,null,null,null,null,null,null,null,null,null,null,null,null,null,null,null,null,null,null,null,null,null,null,null,null,null,null,null,null,null,null,null,null,null,null,null,null,null,null,null,null,null,null,null,null,null,null,null,null,null,null,null,null,null,null,null,null,null,null,null,null,null,null,null,null,null,null,null,null,null,null,null,null,null,""]
[null,null,null,null,null,null,null,null,null,null,null,null,null,null,null,null,null,null,null,null,null,null,null,null,null,null,null,null,null,null,null,null,null,null,null,null,null,null,null,null,null,null,null,null,null,null,null,null,null,null,null,null,null,null,null,null,null,null,null,null,null,null,null,null,null,null,null,null,null,null,null,null,null,null,null,null,null,null,null,null,null,null,null,null,null,null,null,""]
[null,{"$f":"N_Group_4","v":"Group of 4"},null,null,null,null,null,null,null,null,null,null,null,null,null,null,null,null,null,null,null,null,null,null,null,null,null,null,null,null,null,null,null,null,null,null,null,null,null,{"$f":"B49","v":"Group of 4"},null,null,null,null,null,null,null,null,null,null,null,null,null,null,null,null,null,null,null,null,null,null,null,null,null,null,null,null,null,null,null,null,null,null,null,null,null,null,null,null,null,null,null,null,null,null,null,""]
[null,null,null,null,null,null,null,null,null,null,null,null,null,null,null,null,null,null,null,null,null,null,null,null,null,null,null,null,null,null,null,null,null,null,null,null,null,null,null,null,null,null,null,null,null,null,null,null,null,null,null,null,null,null,null,null,null,null,null,null,null,null,null,null,null,null,null,null,null,null,null,null,null,null,null,null,null,null,null,null,null,null,null,null,null,null,null,""]
[null,{"$f":"N_Tirage","v":"Draw"},"Cla.","Cla1","Part","Cla2",{"$f":"N_Equipes","v":"Teams"},{"$f":"N_Pts","v":"Pts"},{"$f":"N_J","v":"Pld"},{"$f":"N_G","v":"W"},{"$f":"N_N","v":"D"},{"$f":"N_P","v":"L"},{"$f":"N_Diff_R","v":"ED"},{"$f":"N_MP","v":"WM"},{"$f":"N_MC","v":"LM"},{"$f":"N_Diff_M","v":"MD"},{"$f":"N_BP","v":"F"},{"$f":"N_BC","v":"A"},{"$f":"N_Diff_B","v":"GD"},null,null,null,null,null,null,null,null,null,null,null,null,null,null,null,null,null,null,null,null,null,{"$f":"N_Cla.","v":"Rk"},{"$f":"N_Equipes","v":"Teams"},{"$f":"N_Pts","v":"Pts"},{"$f":"N_J","v":"Pld"},{"$f":"N_G","v":"W"},{"$f":"N_N","v":"D"},{"$f":"N_P","v":"L"},{"$f":"N_Diff_R","v":"ED"},{"$f":"N_MP","v":"WM"},{"$f":"N_MC","v":"LM"},{"$f":"N_Diff_M","v":"MD"},{"$f":"N_BP","v":"F"},{"$f":"N_BC","v":"A"},{"$f":"N_Diff_B","v":"GD"},{"$f":"N_Matches","v":"Matches"},null,null,null,null,null,null,null,null,null,null,null,null,null,null,null,null,null,null,null,null,null,null,null,null,null,null,null,null,null,null,null,null,""]
[null,1,{"$f":"IF(AL56=\"\",\"\",RANK(F52,F52:F54)*1000+ROW())","v":""},{"$f":"IF(J52=\"\",\"\",H52*CritClassEq1_Points+M52*CritClassEq1_DiffRencontres+P52*CritClassEq1_DiffMatches+S52*CritClassEq1_DiffButs+N52*CritClassEq1_Matches+Q52*CritClassEq1_Attaque)","v":""},{"$f":"IF(J52=\"\",\"\",Nb_Diff_Part(D52,D52:D55,G52,G52:G55,AK57:AK74)*CritClassInd_DiffPart)","v":""},{"$f":"IF(J52=\"\",\"\",D52+E52+H52*CritClassEq2_Points+M52*CritClassEq2_DiffRencontres+P52*CritClassEq2_DiffMatches+S52*CritClassEq2_DiffButs+N52*CritClassEq2_Matches+Q52*CritClassEq2_Attaque)","v":""},"Db1",{"$f":"IF(AL56=\"\",\"\",(J52*Points_Victoire)+K52*Points_Null)","v":""},{"$f":"IF(J52=\"\",\"\",SUM(J52:L52))","v":""},{"$f":"IF(AL56=\"\",\"\",COUNTIF(AE57:AE74,G52))","v":""},{"$f":"IF(AL56=\"\",\"\",COUNTIF(AF57:AG74,G52))","v":""},{"$f":"IF(AL56=\"\",\"\",COUNTIF(AH57:AH74,G52))","v":""},{"$f":"IF(AL56=\"\",\"\",J52-L52)","v":""},{"$f":"IF(AL56=\"\",\"\",SUMIF(Y57:Y74,G52,Z56:AL74)+SUMIF(AC57:AC74,G52,AB57:AB74))","v":""},{"$f":"IF(AL56=\"\",\"\",SUMIF(Y57:Y74,G52,AB57:AB74)+SUMIF(AC57:AC74,G52,Z56:AL74))","v":""},{"$f":"IF(AL56=\"\",\"\",N52-O52)","v":""},{"$f":"IF(AL56=\"\",\"\",SUMIF(Y57:Y74,G52,AI57:AI74)+SUMIF(AC57:AC74,G52,AJ57:AJ74))","v":""},{"$f":"IF(AL56=\"\",\"\",SUMIF(Y57:Y74,G52,AJ57:AJ74)+SUMIF(AC57:AC74,G52,AI57:AI74))","v":""},{"$f":"IF(AL56=\"\",\"\",Q52-R52)","v":""},null,null,null,null,null,null,null,null,null,null,null,null,null,null,null,null,null,null,{"$f":"IF(AL56=\"\",\"\",SMALL(C52:C55,1))","v":""},null,null,{"$f":"IF(AL56=\"\",\"\",INT(AL52/1000))","v":""},{"$f":"IF(AL56=\"\",IF(HidePlayerFormulas,\"\",\"(\"&G52&\")\"),VLOOKUP(AL52,C52:S55,5,FALSE))","v":""},{"$f":"VLOOKUP(AL52,C52:S55,6,FALSE)","v":""},{"$f":"VLOOKUP(AL52,C52:S55,7,FALSE)","v":""},{"$f":"VLOOKUP(AL52,C52:S55,8,FALSE)","v":""},{"$f":"VLOOKUP(AL52,C52:S55,9,FALSE)","v":""},{"$f":"VLOOKUP(AL52,C52:S55,10,FALSE)","v":""},{"$f":"VLOOKUP(AL52,C52:S55,11,FALSE)","v":""},{"$f":"VLOOKUP(AL52,C52:S55,12,FALSE)","v":""},{"$f":"VLOOKUP(AL52,C52:S55,13,FALSE)","v":""},{"$f":"VLOOKUP(AL52,C52:S55,14,FALSE)","v":""},{"$f":"VLOOKUP(AL52,C52:S55,15,FALSE)","v":""},{"$f":"VLOOKUP(AL52,C52:S55,16,FALSE)","v":""},{"$f":"VLOOKUP(AL52,C52:S55,17,FALSE)","v":""},{"$f":"IF(Z57=\"\",\"\",IF(AP52=Y57,Z57,IF(AP52=AC57,AB57,\"\")))","v":""},{"$f":"IF(Z60=\"\",\"\",IF(AP52=Y60,Z60,IF(AP52=AC60,AB60,\"\")))","v":""},{"$f":"IF(Z63=\"\",\"\",IF(AP52=Y63,Z63,IF(AP52=AC63,AB63,\"\")))","v":""},{"$f":"IF(Z66=\"\",\"\",IF(AP52=Y66,Z66,IF(AP52=AC66,AB66,\"\")))","v":""},{"$f":"IF(Z69=\"\",\"\",IF(AP52=Y69,Z69,IF(AP52=AC69,AB69,\"\")))","v":""},{"$f":"IF(Z72=\"\",\"\",IF(AP52=Y72,Z72,IF(AP52=AC72,AB72,\"\")))","v":""},null,null,null,null,null,null,null,null,null,{"$f":"IF(G52=\"[---WithDraw---]\",FALSE,IF(COUNTIF(PlayerNamesWithinGroups,G52)>1,TRUE,FALSE))","v":true},{"$f":"AND(LEFT($AP52,1) = \"(\", RIGHT($AP52,1) =\")\")","v":false},{"$f":"IF(OR($AO52=$AO51,$AO52=$AO53),TRUE,FALSE)","v":true},null,null,null,null,null,null,null,null,null,null,null,null,null,null,null,""]
[null,2,{"$f":"IF(AL56=\"\",\"\",RANK(D53,D52:D55)*1000+ROW())","v":""},{"$f":"IF(J53=\"\",\"\",H53*CritClassEq1_Points+M53*CritClassEq1_DiffRencontres+P53*CritClassEq1_DiffMatches+S53*CritClassEq1_DiffButs+N53*CritClassEq1_Matches+Q53*CritClassEq1_Attaque)","v":""},{"$f":"IF(J53=\"\",\"\",Nb_Diff_Part(D53,D52:D55,G53,G52:G55,AK57:AK74)*CritClassInd_DiffPart)","v":""},{"$f":"IF(J53=\"\",\"\",D53+E53+H53*CritClassEq2_Points+M53*CritClassEq2_DiffRencontres+P53*CritClassEq2_DiffMatches+S53*CritClassEq2_DiffButs+N53*CritClassEq2_Matches+Q53*CritClassEq2_Attaque)","v":""},"Db2",{"$f":"IF(AL56=\"\",\"\",(J53*Points_Victoire)+K53*Points_Null)","v":""},{"$f":"IF(J53=\"\",\"\",SUM(J53:L53))","v":""},{"$f":"IF(AL56=\"\",\"\",COUNTIF(AE57:AE74,G53))","v":""},{"$f":"IF(AL56=\"\",\"\",COUNTIF(AF57:AG74,G53))","v":""},{"$f":"IF(AL56=\"\",\"\",COUNTIF(AH57:AH74,G53))","v":""},{"$f":"IF(AL56=\"\",\"\",J53-L53)","v":""},{"$f":"IF(AL56=\"\",\"\",SUMIF(Y57:Y74,G53,Z56:AL74)+SUMIF(AC57:AC74,G53,AB57:AB74))","v":""},{"$f":"IF(AL56=\"\",\"\",SUMIF(Y57:Y74,G53,AB57:AB74)+SUMIF(AC57:AC74,G53,Z56:AL74))","v":""},{"$f":"IF(AL56=\"\",\"\",N53-O53)","v":""},{"$f":"IF(AL56=\"\",\"\",SUMIF(Y57:Y74,G53,AI57:AI74)+SUMIF(AC57:AC74,G53,AJ57:AJ74))","v":""},{"$f":"IF(AL56=\"\",\"\",SUMIF(Y57:Y74,G53,AJ57:AJ74)+SUMIF(AC57:AC74,G53,AI57:AI74))","v":""},{"$f":"IF(AL56=\"\",\"\",Q53-R53)","v":""},null,null,null,null,null,null,null,null,null,null,null,null,null,null,null,null,null,null,{"$f":"IF(AL56=\"\",\"\",SMALL(C52:C55,2))","v":""},null,null,{"$f":"IF(AL56=\"\",\"\",INT(AL53/1000))","v":""},{"$f":"IF(AL56=\"\",IF(HidePlayerFormulas,\"\",\"(\"&G53&\")\"),VLOOKUP(AL53,C52:S55,5,FALSE))","v":""},{"$f":"VLOOKUP(AL53,C52:S55,6,FALSE)","v":""},{"$f":"VLOOKUP(AL53,C52:S55,7,FALSE)","v":""},{"$f":"VLOOKUP(AL53,C52:S55,8,FALSE)","v":""},{"$f":"VLOOKUP(AL53,C52:S55,9,FALSE)","v":""},{"$f":"VLOOKUP(AL53,C52:S55,10,FALSE)","v":""},{"$f":"VLOOKUP(AL53,C52:S55,11,FALSE)","v":""},{"$f":"VLOOKUP(AL53,C52:S55,12,FALSE)","v":""},{"$f":"VLOOKUP(AL53,C52:S55,13,FALSE)","v":""},{"$f":"VLOOKUP(AL53,C52:S55,14,FALSE)","v":""},{"$f":"VLOOKUP(AL53,C52:S55,15,FALSE)","v":""},{"$f":"VLOOKUP(AL53,C52:S55,16,FALSE)","v":""},{"$f":"VLOOKUP(AL53,C52:S55,17,FALSE)","v":""},{"$f":"IF(Z57=\"\",\"\",IF(AP53=Y57,Z57,IF(AP53=AC57,AB57,\"\")))","v":""},{"$f":"IF(Z60=\"\",\"\",IF(AP53=Y60,Z60,IF(AP53=AC60,AB60,\"\")))","v":""},{"$f":"IF(Z63=\"\",\"\",IF(AP53=Y63,Z63,IF(AP53=AC63,AB63,\"\")))","v":""},{"$f":"IF(Z66=\"\",\"\",IF(AP53=Y66,Z66,IF(AP53=AC66,AB66,\"\")))","v":""},{"$f":"IF(Z69=\"\",\"\",IF(AP53=Y69,Z69,IF(AP53=AC69,AB69,\"\")))","v":""},{"$f":"IF(Z72=\"\",\"\",IF(AP53=Y72,Z72,IF(AP53=AC72,AB72,\"\")))","v":""},null,null,null,null,null,null,null,null,null,{"$f":"IF(G53=\"[---WithDraw---]\",FALSE,IF(COUNTIF(PlayerNamesWithinGroups,G53)>1,TRUE,FALSE))","v":true},{"$f":"AND(LEFT($AP53,1) = \"(\", RIGHT($AP53,1) =\")\")","v":false},{"$f":"IF(OR($AO53=$AO52,$AO53=$AO54),TRUE,FALSE)","v":true},null,null,null,null,null,null,null,null,null,null,null,null,null,null,null,""]
[null,3,{"$f":"IF(AL56=\"\",\"\",RANK(D54,D52:D55)*1000+ROW())","v":""},{"$f":"IF(J54=\"\",\"\",H54*CritClassEq1_Points+M54*CritClassEq1_DiffRencontres+P54*CritClassEq1_DiffMatches+S54*CritClassEq1_DiffButs+N54*CritClassEq1_Matches+Q54*CritClassEq1_Attaque)","v":""},{"$f":"IF(J54=\"\",\"\",Nb_Diff_Part(D54,D52:D55,G54,G52:G55,AK57:AK74)*CritClassInd_DiffPart)","v":""},{"$f":"IF(J54=\"\",\"\",D54+E54+H54*CritClassEq2_Points+M54*CritClassEq2_DiffRencontres+P54*CritClassEq2_DiffMatches+S54*CritClassEq2_DiffButs+N54*CritClassEq2_Matches+Q54*CritClassEq2_Attaque)","v":""},"Db3",{"$f":"IF(AL56=\"\",\"\",(J54*Points_Victoire)+K54*Points_Null)","v":""},{"$f":"IF(J54=\"\",\"\",SUM(J54:L54))","v":""},{"$f":"IF(AL56=\"\",\"\",COUNTIF(AE57:AE74,G54))","v":""},{"$f":"IF(AL56=\"\",\"\",COUNTIF(AF57:AG74,G54))","v":""},{"$f":"IF(AL56=\"\",\"\",COUNTIF(AH57:AH74,G54))","v":""},{"$f":"IF(AL56=\"\",\"\",J54-L54)","v":""},{"$f":"IF(AL56=\"\",\"\",SUMIF(Y57:Y74,G54,Z56:AL74)+SUMIF(AC57:AC74,G54,AB57:AB74))","v":""},{"$f":"IF(AL56=\"\",\"\",SUMIF(Y57:Y74,G54,AB57:AB74)+SUMIF(AC57:AC74,G54,Z56:AL74))","v":""},{"$f":"IF(AL56=\"\",\"\",N54-O54)","v":""},{"$f":"IF(AL56=\"\",\"\",SUMIF(Y57:Y74,G54,AI57:AI74)+SUMIF(AC57:AC74,G54,AJ57:AJ74))","v":""},{"$f":"IF(AL56=\"\",\"\",SUMIF(Y57:Y74,G54,AJ57:AJ74)+SUMIF(AC57:AC74,G54,AI57:AI74))","v":""},{"$f":"IF(AL56=\"\",\"\",Q54-R54)","v":""},null,null,null,null,null,null,null,null,null,null,null,null,null,null,null,null,null,null,{"$f":"IF(AL56=\"\",\"\",SMALL(C52:C55,3))","v":""},null,null,{"$f":"IF(AL56=\"\",\"\",INT(AL54/1000))","v":""},{"$f":"IF(AL56=\"\",IF(HidePlayerFormulas,\"\",\"(\"&G54&\")\"),VLOOKUP(AL54,C52:S55,5,FALSE))","v":""},{"$f":"VLOOKUP(AL54,C52:S55,6,FALSE)","v":""},{"$f":"VLOOKUP(AL54,C52:S55,7,FALSE)","v":""},{"$f":"VLOOKUP(AL54,C52:S55,8,FALSE)","v":""},{"$f":"VLOOKUP(AL54,C52:S55,9,FALSE)","v":""},{"$f":"VLOOKUP(AL54,C52:S55,10,FALSE)","v":""},{"$f":"VLOOKUP(AL54,C52:S55,11,FALSE)","v":""},{"$f":"VLOOKUP(AL54,C52:S55,12,FALSE)","v":""},{"$f":"VLOOKUP(AL54,C52:S55,13,FALSE)","v":""},{"$f":"VLOOKUP(AL54,C52:S55,14,FALSE)","v":""},{"$f":"VLOOKUP(AL54,C52:S55,15,FALSE)","v":""},{"$f":"VLOOKUP(AL54,C52:S55,16,FALSE)","v":""},{"$f":"VLOOKUP(AL54,C52:S55,17,FALSE)","v":""},{"$f":"IF(Z57=\"\",\"\",IF(AP54=Y57,Z57,IF(AP54=AC57,AB57,\"\")))","v":""},{"$f":"IF(Z60=\"\",\"\",IF(AP54=Y60,Z60,IF(AP54=AC60,AB60,\"\")))","v":""},{"$f":"IF(Z63=\"\",\"\",IF(AP54=Y63,Z63,IF(AP54=AC63,AB63,\"\")))","v":""},{"$f":"IF(Z66=\"\",\"\",IF(AP54=Y66,Z66,IF(AP54=AC66,AB66,\"\")))","v":""},{"$f":"IF(Z69=\"\",\"\",IF(AP54=Y69,Z69,IF(AP54=AC69,AB69,\"\")))","v":""},{"$f":"IF(Z72=\"\",\"\",IF(AP54=Y72,Z72,IF(AP54=AC72,AB72,\"\")))","v":""},null,null,null,null,null,null,null,null,null,{"$f":"IF(G54=\"[---WithDraw---]\",FALSE,IF(COUNTIF(PlayerNamesWithinGroups,G54)>1,TRUE,FALSE))","v":true},{"$f":"AND(LEFT($AP54,1) = \"(\", RIGHT($AP54,1) =\")\")","v":false},{"$f":"IF(OR($AO54=$AO53,$AO54=$AO55),TRUE,FALSE)","v":true},null,null,null,null,null,null,null,null,null,null,null,null,null,null,null,""]
[null,4,{"$f":"IF(AL56=\"\",\"\",RANK(D55,D52:D55)*1000+ROW())","v":""},{"$f":"IF(J55=\"\",\"\",H55*CritClassEq1_Points+M55*CritClassEq1_DiffRencontres+P55*CritClassEq1_DiffMatches+S55*CritClassEq1_DiffButs+N55*CritClassEq1_Matches+Q55*CritClassEq1_Attaque)","v":""},{"$f":"IF(J55=\"\",\"\",Nb_Diff_Part(D55,D52:D55,G55,G52:G55,AK57:AK74)*CritClassInd_DiffPart)","v":""},{"$f":"IF(J55=\"\",\"\",D55+E55+H55*CritClassEq2_Points+M55*CritClassEq2_DiffRencontres+P55*CritClassEq2_DiffMatches+S55*CritClassEq2_DiffButs+N55*CritClassEq2_Matches+Q55*CritClassEq2_Attaque)","v":""},"Db4",{"$f":"IF(AL56=\"\",\"\",(J55*Points_Victoire)+K55*Points_Null)","v":""},{"$f":"IF(J55=\"\",\"\",SUM(J55:L55))","v":""},{"$f":"IF(AL56=\"\",\"\",COUNTIF(AE57:AE74,G55))","v":""},{"$f":"IF(AL56=\"\",\"\",COUNTIF(AF57:AG74,G55))","v":""},{"$f":"IF(AL56=\"\",\"\",COUNTIF(AH57:AH74,G55))","v":""},{"$f":"IF(AL56=\"\",\"\",J55-L55)","v":""},{"$f":"IF(AL56=\"\",\"\",SUMIF(Y57:Y74,G55,Z56:AL74)+SUMIF(AC57:AC74,G55,AB57:AB74))","v":""},{"$f":"IF(AL56=\"\",\"\",SUMIF(Y57:Y74,G55,AB57:AB74)+SUMIF(AC57:AC74,G55,Z56:AL74))","v":""},{"$f":"IF(AL56=\"\",\"\",N55-O55)","v":""},{"$f":"IF(AL56=\"\",\"\",SUMIF(Y57:Y74,G55,AI57:AI74)+SUMIF(AC57:AC74,G55,AJ57:AJ74))","v":""},{"$f":"IF(AL56=\"\",\"\",SUMIF(Y57:Y74,G55,AJ57:AJ74)+SUMIF(AC57:AC74,G55,AI57:AI74))","v":""},{"$f":"IF(AL56=\"\",\"\",Q55-R55)","v":""},null,null,null,null,null,null,null,null,null,null,null,null,null,null,null,null,null,null,{"$f":"IF(AL56=\"\",\"\",SMALL(C52:C55,4))","v":""},null,null,{"$f":"IF(AL56=\"\",\"\",INT(AL55/1000))","v":""},{"$f":"IF(AL56=\"\",IF(HidePlayerFormulas,\"\",\"(\"&G55&\")\"),VLOOKUP(AL55,C52:S55,5,FALSE))","v":""},{"$f":"VLOOKUP(AL55,C52:S55,6,FALSE)","v":""},{"$f":"VLOOKUP(AL55,C52:S55,7,FALSE)","v":""},{"$f":"VLOOKUP(AL55,C52:S55,8,FALSE)","v":""},{"$f":"VLOOKUP(AL55,C52:S55,9,FALSE)","v":""},{"$f":"VLOOKUP(AL55,C52:S55,10,FALSE)","v":""},{"$f":"VLOOKUP(AL55,C52:S55,11,FALSE)","v":""},{"$f":"VLOOKUP(AL55,C52:S55,12,FALSE)","v":""},{"$f":"VLOOKUP(AL55,C52:S55,13,FALSE)","v":""},{"$f":"VLOOKUP(AL55,C52:S55,14,FALSE)","v":""},{"$f":"VLOOKUP(AL55,C52:S55,15,FALSE)","v":""},{"$f":"VLOOKUP(AL55,C52:S55,16,FALSE)","v":""},{"$f":"VLOOKUP(AL55,C52:S55,17,FALSE)","v":""},{"$f":"IF(Z57=\"\",\"\",IF(AP55=Y57,Z57,IF(AP55=AC57,AB57,\"\")))","v":""},{"$f":"IF(Z60=\"\",\"\",IF(AP55=Y60,Z60,IF(AP55=AC60,AB60,\"\")))","v":""},{"$f":"IF(Z63=\"\",\"\",IF(AP55=Y63,Z63,IF(AP55=AC63,AB63,\"\")))","v":""},{"$f":"IF(Z66=\"\",\"\",IF(AP55=Y66,Z66,IF(AP55=AC66,AB66,\"\")))","v":""},{"$f":"IF(Z69=\"\",\"\",IF(AP55=Y69,Z69,IF(AP55=AC69,AB69,\"\")))","v":""},{"$f":"IF(Z72=\"\",\"\",IF(AP55=Y72,Z72,IF(AP55=AC72,AB72,\"\")))","v":""},null,null,null,null,null,null,null,null,null,{"$f":"IF(G55=\"[---WithDraw---]\",FALSE,IF(COUNTIF(PlayerNamesWithinGroups,G55)>1,TRUE,FALSE))","v":true},{"$f":"AND(LEFT($AP55,1) = \"(\", RIGHT($AP55,1) =\")\")","v":false},{"$f":"IF(OR($AO55=$AO54,$AO55=$AO56),TRUE,FALSE)","v":true},null,null,null,null,null,null,null,null,null,null,null,null,null,null,null,""]
[null,null,null,null,null,null,null,null,null,null,null,null,null,null,null,null,null,null,null,null,null,{"$f":"N_Heure","v":"Time"},{"$f":"N_Table","v":"Table"},{"$f":"N_Arbitre","v":"Referee"},{"$f":"N_Matches","v":"Matches"},null,null,null,null,null,null,null,null,null,null,null,null,{"$f":"IF(COUNTA(Z57:Z74)>6,\"OK\",\"\")","v":""},null,null,null,null,null,null,null,null,null,null,null,null,null,null,null,null,null,null,null,null,null,null,null,null,null,null,null,null,null,null,null,null,null,null,null,null,null,null,null,null,null,null,null,null,null,null,null,null,null,""]
[null,null,null,null,null,null,null,null,null,null,null,null,null,null,null,null,null,null,null,null,"#G1",null,null,null,{"$f":"IF(COUNTA(G52:G55) =4,GMFTGROUPORDERDBLE(G52:G55,Y57:Y74,AC57:AC74),\"\")","v":"Db1"},{"$f":"IF(OR(ISNUMBER(Z58),ISNUMBER(Z59)),2-COUNTBLANK(AI58:AI59),\"\")","v":""},"-",{"$f":"IF(OR(ISNUMBER(Z58),ISNUMBER(Z59)),2-COUNTBLANK(AJ58:AJ59),\"\")","v":""},{"$f":"IF(COUNTA(G52:G55) =4,GMFTGROUPORDERDBLE(G52:G55,Y57:Y74,AC57:AC74),\"\")","v":"Db4"},null,{"$f":"IF(Z57=\"\",\"\",IF(Z57>AB57,Y57,IF(Z57=AB57,\"\",AC57)))","v":""},{"$f":"IF(Z57=\"\",\"\",IF(Z57=AB57,Y57,\"\"))","v":""},{"$f":"IF(Z57=\"\",\"\",IF(Z57=AB57,AC57,\"\"))","v":""},{"$f":"IF(Z57=\"\",\"\",IF(Z57<AB57,Y57,IF(Z57=AB57,\"\",AC57)))","v":""},{"$f":"IF(Z57=\"\",\"\",SUM(Z58:Z59))","v":""},{"$f":"IF(Z57=\"\",\"\",SUM(AB58:AB59))","v":""},{"$f":"CONCATENATE(AE57,AH57)","v":""},null,null,null,null,null,null,null,null,null,null,null,null,null,null,null,null,null,null,null,null,null,null,null,null,null,null,null,null,null,null,null,null,null,null,null,null,null,null,null,null,null,null,null,null,null,null,null,null,null,null,""]
[null,null,null,null,null,null,null,null,null,null,null,null,null,null,null,null,null,null,null,null,null,null,null,null,null,null,"-",null,null,null,"","","","",{"$f":"IF(Z58=\"\",\"\",IF(Z58>AB58,Y57,\"\"))","v":""},{"$f":"IF(Z58=\"\",\"\",IF(Z58<AB58,AC57,\"\"))","v":""},"",null,null,null,null,null,null,null,null,null,null,null,null,null,null,null,null,null,null,null,null,null,null,null,null,null,null,null,null,null,null,null,null,null,null,null,null,null,null,null,null,null,null,null,null,null,null,null,null,null,null,""]
[null,null,null,null,null,null,null,null,null,null,null,null,null,null,null,null,null,null,null,null,null,null,null,null,null,null,"-",null,null,null,"","","","",{"$f":"IF(Z59=\"\",\"\",IF(Z59>AB59,Y57,\"\"))","v":""},{"$f":"IF(Z59=\"\",\"\",IF(Z59<AB59,AC57,\"\"))","v":""},"",null,null,null,null,null,null,null,null,null,null,null,null,null,null,null,null,null,null,null,null,null,null,null,null,null,null,null,null,null,null,null,null,null,null,null,null,null,null,null,null,null,null,null,null,null,null,null,null,null,null,""]
[null,null,null,null,null,null,null,null,null,null,null,null,null,null,null,null,null,null,null,null,"#G1",null,null,null,{"$f":"IF(COUNTA(G52:G55) =4,GMFTGROUPORDERDBLE(G52:G55,Y57:Y74,AC57:AC74),\"\")","v":"Db2"},{"$f":"IF(OR(ISNUMBER(Z61),ISNUMBER(Z62)),2-COUNTBLANK(AI61:AI62),\"\")","v":""},"-",{"$f":"IF(OR(ISNUMBER(Z61),ISNUMBER(Z62)),2-COUNTBLANK(AJ61:AJ62),\"\")","v":""},{"$f":"IF(COUNTA(G52:G55) =4,GMFTGROUPORDERDBLE(G52:G55,Y57:Y74,AC57:AC74),\"\")","v":"Db3"},null,"","","","",{"$f":"IF(Z60=\"\",\"\",SUM(Z61:Z62))","v":""},{"$f":"IF(Z60=\"\",\"\",SUM(AB61:AB62))","v":""},"",null,null,null,null,null,null,null,null,null,null,null,null,null,null,null,null,null,null,null,null,null,null,null,null,null,null,null,null,null,null,null,null,null,null,null,null,null,null,null,null,null,null,null,null,null,null,null,null,null,null,""]
[null,null,null,null,null,null,null,null,null,null,null,null,null,null,null,null,null,null,null,null,null,null,null,null,null,null,"-",null,null,null,"","","","",{"$f":"IF(Z61=\"\",\"\",IF(Z61>AB61,Y60,\"\"))","v":""},{"$f":"IF(Z61=\"\",\"\",IF(Z61<AB61,AC60,\"\"))","v":""},"",null,null,null,null,null,null,null,null,null,null,null,null,null,null,null,null,null,null,null,null,null,null,null,null,null,null,null,null,null,null,null,null,null,null,null,null,null,null,null,null,null,null,null,null,null,null,null,null,null,null,""]
[null,null,null,null,null,null,null,null,null,null,null,null,null,null,null,null,null,null,null,null,null,null,null,null,null,null,"-",null,null,null,"","","","",{"$f":"IF(Z62=\"\",\"\",IF(Z62>AB62,Y60,\"\"))","v":""},{"$f":"IF(Z62=\"\",\"\",IF(Z62<AB62,AC60,\"\"))","v":""},"",null,null,null,null,null,null,null,null,null,null,null,null,null,null,null,null,null,null,null,null,null,null,null,null,null,null,null,null,null,null,null,null,null,null,null,null,null,null,null,null,null,null,null,null,null,null,null,null,null,null,""]
[null,null,null,null,null,null,null,null,null,null,null,null,null,null,null,null,null,null,null,null,"#G2",null,null,null,{"$f":"IF(COUNTA(G52:G55) =4,GMFTGROUPORDERDBLE(G52:G55,Y57:Y74,AC57:AC74),\"\")","v":"Db3"},{"$f":"IF(OR(ISNUMBER(Z64),ISNUMBER(Z65)),2-COUNTBLANK(AI64:AI65),\"\")","v":""},"-",{"$f":"IF(OR(ISNUMBER(Z64),ISNUMBER(Z65)),2-COUNTBLANK(AJ64:AJ65),\"\")","v":""},{"$f":"IF(COUNTA(G52:G55) =4,GMFTGROUPORDERDBLE(G52:G55,Y57:Y74,AC57:AC74),\"\")","v":"Db1"},null,"","","","",{"$f":"IF(Z63=\"\",\"\",SUM(Z64:Z65))","v":""},{"$f":"IF(Z63=\"\",\"\",SUM(AB64:AB65))","v":""},"",null,null,null,null,null,null,null,null,null,null,null,null,null,null,null,null,null,null,null,null,null,null,null,null,null,null,null,null,null,null,null,null,null,null,null,null,null,null,null,null,null,null,null,null,null,null,null,null,null,null,""]
[null,null,null,null,null,null,null,null,null,null,null,null,null,null,null,null,null,null,null,null,null,null,null,null,null,null,"-",null,null,null,"","","","",{"$f":"IF(Z64=\"\",\"\",IF(Z64>AB64,Y63,\"\"))","v":""},{"$f":"IF(Z64=\"\",\"\",IF(Z64<AB64,AC63,\"\"))","v":""},"",null,null,null,null,null,null,null,null,null,null,null,null,null,null,null,null,null,null,null,null,null,null,null,null,null,null,null,null,null,null,null,null,null,null,null,null,null,null,null,null,null,null,null,null,null,null,null,null,null,null,""]
[null,null,null,null,null,null,null,null,null,null,null,null,null,null,null,null,null,null,null,null,null,null,null,null,null,null,"-",null,null,null,"","","","",{"$f":"IF(Z65=\"\",\"\",IF(Z65>AB65,Y63,\"\"))","v":""},{"$f":"IF(Z65=\"\",\"\",IF(Z65<AB65,AC63,\"\"))","v":""},"",null,null,null,null,null,null,null,null,null,null,null,null,null,null,null,null,null,null,null,null,null,null,null,null,null,null,null,null,null,null,null,null,null,null,null,null,null,null,null,null,null,null,null,null,null,null,null,null,null,null,""]
[null,null,null,null,null,null,null,null,null,null,null,null,null,null,null,null,null,null,null,null,"#G2",null,null,null,{"$f":"IF(COUNTA(G52:G55) =4,GMFTGROUPORDERDBLE(G52:G55,Y57:Y74,AC57:AC74),\"\")","v":"Db4"},{"$f":"IF(OR(ISNUMBER(Z67),ISNUMBER(Z68)),2-COUNTBLANK(AI67:AI68),\"\")","v":""},"-",{"$f":"IF(OR(ISNUMBER(Z67),ISNUMBER(Z68)),2-COUNTBLANK(AJ67:AJ68),\"\")","v":""},{"$f":"IF(COUNTA(G52:G55) =4,GMFTGROUPORDERDBLE(G52:G55,Y57:Y74,AC57:AC74),\"\")","v":"Db2"},null,"","","","",{"$f":"IF(Z66=\"\",\"\",SUM(Z67:Z68))","v":""},{"$f":"IF(Z66=\"\",\"\",SUM(AB67:AB68))","v":""},"",null,null,null,null,null,null,null,null,null,null,null,null,null,null,null,null,null,null,null,null,null,null,null,null,null,null,null,null,null,null,null,null,null,null,null,null,null,null,null,null,null,null,null,null,null,null,null,null,null,null,""]
[null,null,null,null,null,null,null,null,null,null,null,null,null,null,null,null,null,null,null,null,null,null,null,null,null,null,"-",null,null,null,"","","","",{"$f":"IF(Z67=\"\",\"\",IF(Z67>AB67,Y66,\"\"))","v":""},{"$f":"IF(Z67=\"\",\"\",IF(Z67<AB67,AC66,\"\"))","v":""},"",null,null,null,null,null,null,null,null,null,null,null,null,null,null,null,null,null,null,null,null,null,null,null,null,null,null,null,null,null,null,null,null,null,null,null,null,null,null,null,null,null,null,null,null,null,null,null,null,null,null,""]
[null,null,null,null,null,null,null,null,null,null,null,null,null,null,null,null,null,null,null,null,null,null,null,null,null,null,"-",null,null,null,"","","","",{"$f":"IF(Z68=\"\",\"\",IF(Z68>AB68,Y66,\"\"))","v":""},{"$f":"IF(Z68=\"\",\"\",IF(Z68<AB68,AC66,\"\"))","v":""},""]
[null,null,null,null,null,null,null,null,null,null,null,null,null,null,null,null,null,null,null,null,"#G3",null,null,null,{"$f":"IF(COUNTA(G52:G55) =4,GMFTGROUPORDERDBLE(G52:G55,Y57:Y74,AC57:AC74),\"\")","v":"Db1"},{"$f":"IF(OR(ISNUMBER(Z70),ISNUMBER(Z71)),2-COUNTBLANK(AI70:AI71),\"\")","v":""},"-",{"$f":"IF(OR(ISNUMBER(Z70),ISNUMBER(Z71)),2-COUNTBLANK(AJ70:AJ71),\"\")","v":""},{"$f":"IF(COUNTA(G52:G55) =4,GMFTGROUPORDERDBLE(G52:G55,Y57:Y74,AC57:AC74),\"\")","v":"Db2"},null,"","","","",{"$f":"IF(Z69=\"\",\"\",SUM(Z70:Z71))","v":""},{"$f":"IF(Z69=\"\",\"\",SUM(AB70:AB71))","v":""},""]
[null,null,null,null,null,null,null,null,null,null,null,null,null,null,null,null,null,null,null,null,null,null,null,null,null,null,"-",null,null,null,"","","","",{"$f":"IF(Z70=\"\",\"\",IF(Z70>AB70,Y69,\"\"))","v":""},{"$f":"IF(Z70=\"\",\"\",IF(Z70<AB70,AC69,\"\"))","v":""},""]
[null,null,null,null,null,null,null,null,null,null,null,null,null,null,null,null,null,null,null,null,null,null,null,null,null,null,"-",null,null,null,"","","","",{"$f":"IF(Z71=\"\",\"\",IF(Z71>AB71,Y69,\"\"))","v":""},{"$f":"IF(Z71=\"\",\"\",IF(Z71<AB71,AC69,\"\"))","v":""},""]
[null,null,null,null,null,null,null,null,null,null,null,null,null,null,null,null,null,null,null,null,"#G3",null,null,null,{"$f":"IF(COUNTA(G52:G55) =4,GMFTGROUPORDERDBLE(G52:G55,Y57:Y74,AC57:AC74),\"\")","v":"Db3"},{"$f":"IF(OR(ISNUMBER(Z73),ISNUMBER(Z74)),2-COUNTBLANK(AI73:AI74),\"\")","v":""},"-",{"$f":"IF(OR(ISNUMBER(Z73),ISNUMBER(Z74)),2-COUNTBLANK(AJ73:AJ74),\"\")","v":""},{"$f":"IF(COUNTA(G52:G55) =4,GMFTGROUPORDERDBLE(G52:G55,Y57:Y74,AC57:AC74),\"\")","v":"Db4"},null,"","","","",{"$f":"IF(Z72=\"\",\"\",SUM(Z73:Z74))","v":""},{"$f":"IF(Z72=\"\",\"\",SUM(AB73:AB74))","v":""},""]
[null,null,null,null,null,null,null,null,null,null,null,null,null,null,null,null,null,null,null,null,null,null,null,null,null,null,"-",null,null,null,"","","","",{"$f":"IF(Z73=\"\",\"\",IF(Z73>AB73,Y72,\"\"))","v":""},{"$f":"IF(Z73=\"\",\"\",IF(Z73<AB73,AC72,\"\"))","v":""},""]
[null,null,null,null,null,null,null,null,null,null,null,null,null,null,null,null,null,null,null,null,null,null,null,null,null,null,"-",null,null,null,"","","","",{"$f":"IF(Z74=\"\",\"\",IF(Z74>AB74,Y72,\"\"))","v":""},{"$f":"IF(Z74=\"\",\"\",IF(Z74<AB74,AC72,\"\"))","v":""},""]
[]
[]
[null,{"$f":"N_Group_5","v":"Group of 5"},null,null,null,null,null,null,null,null,null,null,null,null,null,null,null,null,null,null,null,null,null,null,null,null,null,null,null,null,null,null,null,null,null,null,null,null,null,{"$f":"B77","v":"Group of 5"}]
[]
[null,{"$f":"N_Tirage","v":"Draw"},"Cla.","Cla1","Part","Cla2",{"$f":"N_Equipes","v":"Teams"},{"$f":"N_Pts","v":"Pts"},{"$f":"N_J","v":"Pld"},{"$f":"N_G","v":"W"},{"$f":"N_N","v":"D"},{"$f":"N_P","v":"L"},{"$f":"N_Diff_R","v":"ED"},{"$f":"N_MP","v":"WM"},{"$f":"N_MC","v":"LM"},{"$f":"N_Diff_M","v":"MD"},{"$f":"N_BP","v":"F"},{"$f":"N_BC","v":"A"},{"$f":"N_Diff_B","v":"GD"},null,null,null,null,null,null,null,null,null,null,null,null,null,null,null,null,null,null,null,null,null,{"$f":"N_Cla.","v":"Rk"},{"$f":"N_Equipes","v":"Teams"},{"$f":"N_Pts","v":"Pts"},{"$f":"N_J","v":"Pld"},{"$f":"N_G","v":"W"},{"$f":"N_N","v":"D"},{"$f":"N_P","v":"L"},{"$f":"N_Diff_R","v":"ED"},{"$f":"N_MP","v":"WM"},{"$f":"N_MC","v":"LM"},{"$f":"N_Diff_M","v":"MD"},{"$f":"N_BP","v":"F"},{"$f":"N_BC","v":"A"},{"$f":"N_Diff_B","v":"GD"},{"$f":"N_Matches","v":"Matches"}]
[null,1,{"$f":"IF(AL85=\"\",\"\",RANK(F80,F80:F84)*1000+ROW())","v":""},{"$f":"IF(J80=\"\",\"\",H80*CritClassEq1_Points+M80*CritClassEq1_DiffRencontres+P80*CritClassEq1_DiffMatches+S80*CritClassEq1_DiffButs+N80*CritClassEq1_Matches+Q80*CritClassEq1_Attaque)","v":""},{"$f":"IF(J80=\"\",\"\",Nb_Diff_Part(D80,D80:D84,G80,G80:G84,AK86:AK115)*CritClassInd_DiffPart)","v":""},{"$f":"IF(J80=\"\",\"\",D80+E80+H80*CritClassEq2_Points+M80*CritClassEq2_DiffRencontres+P80*CritClassEq2_DiffMatches+S80*CritClassEq2_DiffButs+N80*CritClassEq2_Matches+Q80*CritClassEq2_Attaque)","v":""},"Db1",{"$f":"IF(AL85=\"\",\"\",(J80*Points_Victoire)+K80*Points_Null)","v":""},{"$f":"IF(J80=\"\",\"\",SUM(J80:L80))","v":""},{"$f":"IF(AL85=\"\",\"\",COUNTIF(AE86:AE115,G80))","v":""},{"$f":"IF(AL85=\"\",\"\",COUNTIF(AF86:AG115,G80))","v":""},{"$f":"IF(AL85=\"\",\"\",COUNTIF(AH86:AH115,G80))","v":""},{"$f":"IF(AL85=\"\",\"\",J80-L80)","v":""},{"$f":"IF(AL85=\"\",\"\",SUMIF(Y86:Y115,G80,Z85:AL115)+SUMIF(AC86:AC115,G80,AB86:AB115))","v":""},{"$f":"IF(AL85=\"\",\"\",SUMIF(Y86:Y115,G80,AB86:AB115)+SUMIF(AC86:AC115,G80,Z85:AL115))","v":""},{"$f":"IF(AL85=\"\",\"\",N80-O80)","v":""},{"$f":"IF(AL85=\"\",\"\",SUMIF(Y86:Y115,G80,AI86:AI115)+SUMIF(AC86:AC115,G80,AJ86:AJ115))","v":""},{"$f":"IF(AL85=\"\",\"\",SUMIF(Y86:Y115,G80,AJ86:AJ115)+SUMIF(AC86:AC115,G80,AI86:AI115))","v":""},{"$f":"IF(AL85=\"\",\"\",Q80-R80)","v":""},null,null,null,null,null,null,null,null,null,null,null,null,null,null,null,null,null,null,{"$f":"IF(AL85=\"\",\"\",SMALL(C80:C84,1))","v":""},null,null,{"$f":"IF(AL85=\"\",\"\",INT(AL80/1000))","v":""},{"$f":"IF(AL85=\"\",IF(HidePlayerFormulas,\"\",\"(\"&G80&\")\"),VLOOKUP(AL80,C80:S84,5,FALSE))","v":""},{"$f":"VLOOKUP(AL80,C80:S84,6,FALSE)","v":""},{"$f":"VLOOKUP(AL80,C80:S84,7,FALSE)","v":""},{"$f":"VLOOKUP(AL80,C80:S84,8,FALSE)","v":""},{"$f":"VLOOKUP(AL80,C80:S84,9,FALSE)","v":""},{"$f":"VLOOKUP(AL80,C80:S84,10,FALSE)","v":""},{"$f":"VLOOKUP(AL80,C80:S84,11,FALSE)","v":""},{"$f":"VLOOKUP(AL80,C80:S84,12,FALSE)","v":""},{"$f":"VLOOKUP(AL80,C80:S84,13,FALSE)","v":""},{"$f":"VLOOKUP(AL80,C80:S84,14,FALSE)","v":""},{"$f":"VLOOKUP(AL80,C80:S84,15,FALSE)","v":""},{"$f":"VLOOKUP(AL80,C80:S84,16,FALSE)","v":""},{"$f":"VLOOKUP(AL80,C80:S84,17,FALSE)","v":""},{"$f":"IF(Z86=\"\",\"\",IF(AP80=Y86,Z86,IF(AP80=AC86,AB86,\"\")))","v":""},{"$f":"IF(Z89=\"\",\"\",IF(AP80=Y89,Z89,IF(AP80=AC89,AB89,\"\")))","v":""},{"$f":"IF(Z92=\"\",\"\",IF(AP80=Y92,Z92,IF(AP80=AC92,AB92,\"\")))","v":""},{"$f":"IF(Z95=\"\",\"\",IF(AP80=Y95,Z95,IF(AP80=AC95,AB95,\"\")))","v":""},{"$f":"IF(Z98=\"\",\"\",IF(AP80=Y98,Z98,IF(AP80=AC98,AB98,\"\")))","v":""},{"$f":"IF(Z101=\"\",\"\",IF(AP80=Y101,Z101,IF(AP80=AC101,AB101,\"\")))","v":""},{"$f":"IF(Z104=\"\",\"\",IF(AP80=Y104,Z104,IF(AP80=AC104,AB104,\"\")))","v":""},{"$f":"IF(Z107=\"\",\"\",IF(AP80=Y107,Z107,IF(AP80=AC107,AB107,\"\")))","v":""},{"$f":"IF(Z110=\"\",\"\",IF(AP80=Y110,Z110,IF(AP80=AC110,AB110,\"\")))","v":""},{"$f":"IF(Z113=\"\",\"\",IF(AP80=Y113,Z113,IF(AP80=AC113,AB113,\"\")))","v":""},null,null,null,null,null,{"$f":"IF(G80=\"[---WithDraw---]\",FALSE,IF(COUNTIF(PlayerNamesWithinGroups,G80)>1,TRUE,FALSE))","v":true},{"$f":"AND(LEFT($AP80,1) = \"(\", RIGHT($AP80,1) =\")\")","v":false},{"$f":"IF(OR($AO80=$AO79,$AO80=$AO81),TRUE,FALSE)","v":true}]
[null,2,{"$f":"IF(AL85=\"\",\"\",RANK(F81,F80:F84)*1000+ROW())","v":""},{"$f":"IF(J81=\"\",\"\",H81*CritClassEq1_Points+M81*CritClassEq1_DiffRencontres+P81*CritClassEq1_DiffMatches+S81*CritClassEq1_DiffButs+N81*CritClassEq1_Matches+Q81*CritClassEq1_Attaque)","v":""},{"$f":"IF(J81=\"\",\"\",Nb_Diff_Part(D81,D80:D84,G81,G80:G84,AK86:AK115)*CritClassInd_DiffPart)","v":""},{"$f":"IF(J81=\"\",\"\",D81+E81+H81*CritClassEq2_Points+M81*CritClassEq2_DiffRencontres+P81*CritClassEq2_DiffMatches+S81*CritClassEq2_DiffButs+N81*CritClassEq2_Matches+Q81*CritClassEq2_Attaque)","v":""},"Db2",{"$f":"IF(AL85=\"\",\"\",(J81*Points_Victoire)+K81*Points_Null)","v":""},{"$f":"IF(J81=\"\",\"\",SUM(J81:L81))","v":""},{"$f":"IF(AL85=\"\",\"\",COUNTIF(AE86:AE115,G81))","v":""},{"$f":"IF(AL85=\"\",\"\",COUNTIF(AF86:AG115,G81))","v":""},{"$f":"IF(AL85=\"\",\"\",COUNTIF(AH86:AH115,G81))","v":""},{"$f":"IF(AL85=\"\",\"\",J81-L81)","v":""},{"$f":"IF(AL85=\"\",\"\",SUMIF(Y86:Y115,G81,Z85:AL115)+SUMIF(AC86:AC115,G81,AB86:AB115))","v":""},{"$f":"IF(AL85=\"\",\"\",SUMIF(Y86:Y115,G81,AB86:AB115)+SUMIF(AC86:AC115,G81,Z85:AL115))","v":""},{"$f":"IF(AL85=\"\",\"\",N81-O81)","v":""},{"$f":"IF(AL85=\"\",\"\",SUMIF(Y86:Y115,G81,AI86:AI115)+SUMIF(AC86:AC115,G81,AJ86:AJ115))","v":""},{"$f":"IF(AL85=\"\",\"\",SUMIF(Y86:Y115,G81,AJ86:AJ115)+SUMIF(AC86:AC115,G81,AI86:AI115))","v":""},{"$f":"IF(AL85=\"\",\"\",Q81-R81)","v":""},null,null,null,null,null,null,null,null,null,null,null,null,null,null,null,null,null,null,{"$f":"IF(AL85=\"\",\"\",SMALL(C80:C84,2))","v":""},null,null,{"$f":"IF(AL85=\"\",\"\",INT(AL81/1000))","v":""},{"$f":"IF(AL85=\"\",IF(HidePlayerFormulas,\"\",\"(\"&G81&\")\"),VLOOKUP(AL81,C80:S84,5,FALSE))","v":""},{"$f":"VLOOKUP(AL81,C80:S84,6,FALSE)","v":""},{"$f":"VLOOKUP(AL81,C80:S84,7,FALSE)","v":""},{"$f":"VLOOKUP(AL81,C80:S84,8,FALSE)","v":""},{"$f":"VLOOKUP(AL81,C80:S84,9,FALSE)","v":""},{"$f":"VLOOKUP(AL81,C80:S84,10,FALSE)","v":""},{"$f":"VLOOKUP(AL81,C80:S84,11,FALSE)","v":""},{"$f":"VLOOKUP(AL81,C80:S84,12,FALSE)","v":""},{"$f":"VLOOKUP(AL81,C80:S84,13,FALSE)","v":""},{"$f":"VLOOKUP(AL81,C80:S84,14,FALSE)","v":""},{"$f":"VLOOKUP(AL81,C80:S84,15,FALSE)","v":""},{"$f":"VLOOKUP(AL81,C80:S84,16,FALSE)","v":""},{"$f":"VLOOKUP(AL81,C80:S84,17,FALSE)","v":""},{"$f":"IF(Z86=\"\",\"\",IF(AP81=Y86,Z86,IF(AP81=AC86,AB86,\"\")))","v":""},{"$f":"IF(Z89=\"\",\"\",IF(AP81=Y89,Z89,IF(AP81=AC89,AB89,\"\")))","v":""},{"$f":"IF(Z92=\"\",\"\",IF(AP81=Y92,Z92,IF(AP81=AC92,AB92,\"\")))","v":""},{"$f":"IF(Z95=\"\",\"\",IF(AP81=Y95,Z95,IF(AP81=AC95,AB95,\"\")))","v":""},{"$f":"IF(Z98=\"\",\"\",IF(AP81=Y98,Z98,IF(AP81=AC98,AB98,\"\")))","v":""},{"$f":"IF(Z101=\"\",\"\",IF(AP81=Y101,Z101,IF(AP81=AC101,AB101,\"\")))","v":""},{"$f":"IF(Z104=\"\",\"\",IF(AP81=Y104,Z104,IF(AP81=AC104,AB104,\"\")))","v":""},{"$f":"IF(Z107=\"\",\"\",IF(AP81=Y107,Z107,IF(AP81=AC107,AB107,\"\")))","v":""},{"$f":"IF(Z110=\"\",\"\",IF(AP81=Y110,Z110,IF(AP81=AC110,AB110,\"\")))","v":""},{"$f":"IF(Z113=\"\",\"\",IF(AP81=Y113,Z113,IF(AP81=AC113,AB113,\"\")))","v":""},null,null,null,null,null,{"$f":"IF(G81=\"[---WithDraw---]\",FALSE,IF(COUNTIF(PlayerNamesWithinGroups,G81)>1,TRUE,FALSE))","v":true},{"$f":"AND(LEFT($AP81,1) = \"(\", RIGHT($AP81,1) =\")\")","v":false},{"$f":"IF(OR($AO81=$AO80,$AO81=$AO82),TRUE,FALSE)","v":true}]
[null,3,{"$f":"IF(AL85=\"\",\"\",RANK(F82,F80:F84)*1000+ROW())","v":""},{"$f":"IF(J82=\"\",\"\",H82*CritClassEq1_Points+M82*CritClassEq1_DiffRencontres+P82*CritClassEq1_DiffMatches+S82*CritClassEq1_DiffButs+N82*CritClassEq1_Matches+Q82*CritClassEq1_Attaque)","v":""},{"$f":"IF(J82=\"\",\"\",Nb_Diff_Part(D82,D80:D84,G82,G80:G84,AK86:AK115)*CritClassInd_DiffPart)","v":""},{"$f":"IF(J82=\"\",\"\",D82+E82+H82*CritClassEq2_Points+M82*CritClassEq2_DiffRencontres+P82*CritClassEq2_DiffMatches+S82*CritClassEq2_DiffButs+N82*CritClassEq2_Matches+Q82*CritClassEq2_Attaque)","v":""},"Db3",{"$f":"IF(AL85=\"\",\"\",(J82*Points_Victoire)+K82*Points_Null)","v":""},{"$f":"IF(J82=\"\",\"\",SUM(J82:L82))","v":""},{"$f":"IF(AL85=\"\",\"\",COUNTIF(AE86:AE115,G82))","v":""},{"$f":"IF(AL85=\"\",\"\",COUNTIF(AF86:AG115,G82))","v":""},{"$f":"IF(AL85=\"\",\"\",COUNTIF(AH86:AH115,G82))","v":""},{"$f":"IF(AL85=\"\",\"\",J82-L82)","v":""},{"$f":"IF(AL85=\"\",\"\",SUMIF(Y86:Y115,G82,Z85:AL115)+SUMIF(AC86:AC115,G82,AB86:AB115))","v":""},{"$f":"IF(AL85=\"\",\"\",SUMIF(Y86:Y115,G82,AB86:AB115)+SUMIF(AC86:AC115,G82,Z85:AL115))","v":""},{"$f":"IF(AL85=\"\",\"\",N82-O82)","v":""},{"$f":"IF(AL85=\"\",\"\",SUMIF(Y86:Y115,G82,AI86:AI115)+SUMIF(AC86:AC115,G82,AJ86:AJ115))","v":""},{"$f":"IF(AL85=\"\",\"\",SUMIF(Y86:Y115,G82,AJ86:AJ115)+SUMIF(AC86:AC115,G82,AI86:AI115))","v":""},{"$f":"IF(AL85=\"\",\"\",Q82-R82)","v":""},null,null,null,null,null,null,null,null,null,null,null,null,null,null,null,null,null,null,{"$f":"IF(AL85=\"\",\"\",SMALL(C80:C84,3))","v":""},null,null,{"$f":"IF(AL85=\"\",\"\",INT(AL82/1000))","v":""},{"$f":"IF(AL85=\"\",IF(HidePlayerFormulas,\"\",\"(\"&G82&\")\"),VLOOKUP(AL82,C80:S84,5,FALSE))","v":""},{"$f":"VLOOKUP(AL82,C80:S84,6,FALSE)","v":""},{"$f":"VLOOKUP(AL82,C80:S84,7,FALSE)","v":""},{"$f":"VLOOKUP(AL82,C80:S84,8,FALSE)","v":""},{"$f":"VLOOKUP(AL82,C80:S84,9,FALSE)","v":""},{"$f":"VLOOKUP(AL82,C80:S84,10,FALSE)","v":""},{"$f":"VLOOKUP(AL82,C80:S84,11,FALSE)","v":""},{"$f":"VLOOKUP(AL82,C80:S84,12,FALSE)","v":""},{"$f":"VLOOKUP(AL82,C80:S84,13,FALSE)","v":""},{"$f":"VLOOKUP(AL82,C80:S84,14,FALSE)","v":""},{"$f":"VLOOKUP(AL82,C80:S84,15,FALSE)","v":""},{"$f":"VLOOKUP(AL82,C80:S84,16,FALSE)","v":""},{"$f":"VLOOKUP(AL82,C80:S84,17,FALSE)","v":""},{"$f":"IF(Z86=\"\",\"\",IF(AP82=Y86,Z86,IF(AP82=AC86,AB86,\"\")))","v":""},{"$f":"IF(Z89=\"\",\"\",IF(AP82=Y89,Z89,IF(AP82=AC89,AB89,\"\")))","v":""},{"$f":"IF(Z92=\"\",\"\",IF(AP82=Y92,Z92,IF(AP82=AC92,AB92,\"\")))","v":""},{"$f":"IF(Z95=\"\",\"\",IF(AP82=Y95,Z95,IF(AP82=AC95,AB95,\"\")))","v":""},{"$f":"IF(Z98=\"\",\"\",IF(AP82=Y98,Z98,IF(AP82=AC98,AB98,\"\")))","v":""},{"$f":"IF(Z101=\"\",\"\",IF(AP82=Y101,Z101,IF(AP82=AC101,AB101,\"\")))","v":""},{"$f":"IF(Z104=\"\",\"\",IF(AP82=Y104,Z104,IF(AP82=AC104,AB104,\"\")))","v":""},{"$f":"IF(Z107=\"\",\"\",IF(AP82=Y107,Z107,IF(AP82=AC107,AB107,\"\")))","v":""},{"$f":"IF(Z110=\"\",\"\",IF(AP82=Y110,Z110,IF(AP82=AC110,AB110,\"\")))","v":""},{"$f":"IF(Z113=\"\",\"\",IF(AP82=Y113,Z113,IF(AP82=AC113,AB113,\"\")))","v":""},null,null,null,null,null,{"$f":"IF(G82=\"[---WithDraw---]\",FALSE,IF(COUNTIF(PlayerNamesWithinGroups,G82)>1,TRUE,FALSE))","v":true},{"$f":"AND(LEFT($AP82,1) = \"(\", RIGHT($AP82,1) =\")\")","v":false},{"$f":"IF(OR($AO82=$AO81,$AO82=$AO83),TRUE,FALSE)","v":true}]
[null,4,{"$f":"IF(AL85=\"\",\"\",RANK(F83,F80:F84)*1000+ROW())","v":""},{"$f":"IF(J83=\"\",\"\",H83*CritClassEq1_Points+M83*CritClassEq1_DiffRencontres+P83*CritClassEq1_DiffMatches+S83*CritClassEq1_DiffButs+N83*CritClassEq1_Matches+Q83*CritClassEq1_Attaque)","v":""},{"$f":"IF(J83=\"\",\"\",Nb_Diff_Part(D83,D80:D84,G83,G80:G84,AK86:AK115)*CritClassInd_DiffPart)","v":""},{"$f":"IF(J83=\"\",\"\",D83+E83+H83*CritClassEq2_Points+M83*CritClassEq2_DiffRencontres+P83*CritClassEq2_DiffMatches+S83*CritClassEq2_DiffButs+N83*CritClassEq2_Matches+Q83*CritClassEq2_Attaque)","v":""},"Db4",{"$f":"IF(AL85=\"\",\"\",(J83*Points_Victoire)+K83*Points_Null)","v":""},{"$f":"IF(J83=\"\",\"\",SUM(J83:L83))","v":""},{"$f":"IF(AL85=\"\",\"\",COUNTIF(AE86:AE115,G83))","v":""},{"$f":"IF(AL85=\"\",\"\",COUNTIF(AF86:AG115,G83))","v":""},{"$f":"IF(AL85=\"\",\"\",COUNTIF(AH86:AH115,G83))","v":""},{"$f":"IF(AL85=\"\",\"\",J83-L83)","v":""},{"$f":"IF(AL85=\"\",\"\",SUMIF(Y86:Y115,G83,Z85:AL115)+SUMIF(AC86:AC115,G83,AB86:AB115))","v":""},{"$f":"IF(AL85=\"\",\"\",SUMIF(Y86:Y115,G83,AB86:AB115)+SUMIF(AC86:AC115,G83,Z85:AL115))","v":""},{"$f":"IF(AL85=\"\",\"\",N83-O83)","v":""},{"$f":"IF(AL85=\"\",\"\",SUMIF(Y86:Y115,G83,AI86:AI115)+SUMIF(AC86:AC115,G83,AJ86:AJ115))","v":""},{"$f":"IF(AL85=\"\",\"\",SUMIF(Y86:Y115,G83,AJ86:AJ115)+SUMIF(AC86:AC115,G83,AI86:AI115))","v":""},{"$f":"IF(AL85=\"\",\"\",Q83-R83)","v":""},null,null,null,null,null,null,null,null,null,null,null,null,null,null,null,null,null,null,{"$f":"IF(AL85=\"\",\"\",SMALL(C80:C84,4))","v":""},null,null,{"$f":"IF(AL85=\"\",\"\",INT(AL83/1000))","v":""},{"$f":"IF(AL85=\"\",IF(HidePlayerFormulas,\"\",\"(\"&G83&\")\"),VLOOKUP(AL83,C80:S84,5,FALSE))","v":""},{"$f":"VLOOKUP(AL83,C80:S84,6,FALSE)","v":""},{"$f":"VLOOKUP(AL83,C80:S84,7,FALSE)","v":""},{"$f":"VLOOKUP(AL83,C80:S84,8,FALSE)","v":""},{"$f":"VLOOKUP(AL83,C80:S84,9,FALSE)","v":""},{"$f":"VLOOKUP(AL83,C80:S84,10,FALSE)","v":""},{"$f":"VLOOKUP(AL83,C80:S84,11,FALSE)","v":""},{"$f":"VLOOKUP(AL83,C80:S84,12,FALSE)","v":""},{"$f":"VLOOKUP(AL83,C80:S84,13,FALSE)","v":""},{"$f":"VLOOKUP(AL83,C80:S84,14,FALSE)","v":""},{"$f":"VLOOKUP(AL83,C80:S84,15,FALSE)","v":""},{"$f":"VLOOKUP(AL83,C80:S84,16,FALSE)","v":""},{"$f":"VLOOKUP(AL83,C80:S84,17,FALSE)","v":""},{"$f":"IF(Z86=\"\",\"\",IF(AP83=Y86,Z86,IF(AP83=AC86,AB86,\"\")))","v":""},{"$f":"IF(Z89=\"\",\"\",IF(AP83=Y89,Z89,IF(AP83=AC89,AB89,\"\")))","v":""},{"$f":"IF(Z92=\"\",\"\",IF(AP83=Y92,Z92,IF(AP83=AC92,AB92,\"\")))","v":""},{"$f":"IF(Z95=\"\",\"\",IF(AP83=Y95,Z95,IF(AP83=AC95,AB95,\"\")))","v":""},{"$f":"IF(Z98=\"\",\"\",IF(AP83=Y98,Z98,IF(AP83=AC98,AB98,\"\")))","v":""},{"$f":"IF(Z101=\"\",\"\",IF(AP83=Y101,Z101,IF(AP83=AC101,AB101,\"\")))","v":""},{"$f":"IF(Z104=\"\",\"\",IF(AP83=Y104,Z104,IF(AP83=AC104,AB104,\"\")))","v":""},{"$f":"IF(Z107=\"\",\"\",IF(AP83=Y107,Z107,IF(AP83=AC107,AB107,\"\")))","v":""},{"$f":"IF(Z110=\"\",\"\",IF(AP83=Y110,Z110,IF(AP83=AC110,AB110,\"\")))","v":""},{"$f":"IF(Z113=\"\",\"\",IF(AP83=Y113,Z113,IF(AP83=AC113,AB113,\"\")))","v":""},null,null,null,null,null,{"$f":"IF(G83=\"[---WithDraw---]\",FALSE,IF(COUNTIF(PlayerNamesWithinGroups,G83)>1,TRUE,FALSE))","v":true},{"$f":"AND(LEFT($AP83,1) = \"(\", RIGHT($AP83,1) =\")\")","v":false},{"$f":"IF(OR($AO83=$AO82,$AO83=$AO84),TRUE,FALSE)","v":true}]
[null,5,{"$f":"IF(AL85=\"\",\"\",RANK(F84,F80:F84)*1000+ROW())","v":""},{"$f":"IF(J84=\"\",\"\",H84*CritClassEq1_Points+M84*CritClassEq1_DiffRencontres+P84*CritClassEq1_DiffMatches+S84*CritClassEq1_DiffButs+N84*CritClassEq1_Matches+Q84*CritClassEq1_Attaque)","v":""},{"$f":"IF(J84=\"\",\"\",Nb_Diff_Part(D84,D80:D84,G84,G80:G84,AK86:AK115)*CritClassInd_DiffPart)","v":""},{"$f":"IF(J84=\"\",\"\",D84+E84+H84*CritClassEq2_Points+M84*CritClassEq2_DiffRencontres+P84*CritClassEq2_DiffMatches+S84*CritClassEq2_DiffButs+N84*CritClassEq2_Matches+Q84*CritClassEq2_Attaque)","v":""},"Db5",{"$f":"IF(AL85=\"\",\"\",(J84*Points_Victoire)+K84*Points_Null)","v":""},{"$f":"IF(J84=\"\",\"\",SUM(J84:L84))","v":""},{"$f":"IF(AL85=\"\",\"\",COUNTIF(AE86:AE115,G84))","v":""},{"$f":"IF(AL85=\"\",\"\",COUNTIF(AF86:AG115,G84))","v":""},{"$f":"IF(AL85=\"\",\"\",COUNTIF(AH86:AH115,G84))","v":""},{"$f":"IF(AL85=\"\",\"\",J84-L84)","v":""},{"$f":"IF(AL85=\"\",\"\",SUMIF(Y86:Y115,G84,Z85:AL115)+SUMIF(AC86:AC115,G84,AB86:AB115))","v":""},{"$f":"IF(AL85=\"\",\"\",SUMIF(Y86:Y115,G84,AB86:AB115)+SUMIF(AC86:AC115,G84,Z85:AL115))","v":""},{"$f":"IF(AL85=\"\",\"\",N84-O84)","v":""},{"$f":"IF(AL85=\"\",\"\",SUMIF(Y86:Y115,G84,AI86:AI115)+SUMIF(AC86:AC115,G84,AJ86:AJ115))","v":""},{"$f":"IF(AL85=\"\",\"\",SUMIF(Y86:Y115,G84,AJ86:AJ115)+SUMIF(AC86:AC115,G84,AI86:AI115))","v":""},{"$f":"IF(AL85=\"\",\"\",Q84-R84)","v":""},null,null,null,null,null,null,null,null,null,null,null,null,null,null,null,null,null,null,{"$f":"IF(AL85=\"\",\"\",SMALL(C80:C84,5))","v":""},null,null,{"$f":"IF(AL85=\"\",\"\",INT(AL84/1000))","v":""},{"$f":"IF(AL85=\"\",IF(HidePlayerFormulas,\"\",\"(\"&G84&\")\"),VLOOKUP(AL84,C80:S84,5,FALSE))","v":""},{"$f":"VLOOKUP(AL84,C80:S84,6,FALSE)","v":""},{"$f":"VLOOKUP(AL84,C80:S84,7,FALSE)","v":""},{"$f":"VLOOKUP(AL84,C80:S84,8,FALSE)","v":""},{"$f":"VLOOKUP(AL84,C80:S84,9,FALSE)","v":""},{"$f":"VLOOKUP(AL84,C80:S84,10,FALSE)","v":""},{"$f":"VLOOKUP(AL84,C80:S84,11,FALSE)","v":""},{"$f":"VLOOKUP(AL84,C80:S84,12,FALSE)","v":""},{"$f":"VLOOKUP(AL84,C80:S84,13,FALSE)","v":""},{"$f":"VLOOKUP(AL84,C80:S84,14,FALSE)","v":""},{"$f":"VLOOKUP(AL84,C80:S84,15,FALSE)","v":""},{"$f":"VLOOKUP(AL84,C80:S84,16,FALSE)","v":""},{"$f":"VLOOKUP(AL84,C80:S84,17,FALSE)","v":""},{"$f":"IF(Z86=\"\",\"\",IF(AP84=Y86,Z86,IF(AP84=AC86,AB86,\"\")))","v":""},{"$f":"IF(Z89=\"\",\"\",IF(AP84=Y89,Z89,IF(AP84=AC89,AB89,\"\")))","v":""},{"$f":"IF(Z92=\"\",\"\",IF(AP84=Y92,Z92,IF(AP84=AC92,AB92,\"\")))","v":""},{"$f":"IF(Z95=\"\",\"\",IF(AP84=Y95,Z95,IF(AP84=AC95,AB95,\"\")))","v":""},{"$f":"IF(Z98=\"\",\"\",IF(AP84=Y98,Z98,IF(AP84=AC98,AB98,\"\")))","v":""},{"$f":"IF(Z101=\"\",\"\",IF(AP84=Y101,Z101,IF(AP84=AC101,AB101,\"\")))","v":""},{"$f":"IF(Z104=\"\",\"\",IF(AP84=Y104,Z104,IF(AP84=AC104,AB104,\"\")))","v":""},{"$f":"IF(Z107=\"\",\"\",IF(AP84=Y107,Z107,IF(AP84=AC107,AB107,\"\")))","v":""},{"$f":"IF(Z110=\"\",\"\",IF(AP84=Y110,Z110,IF(AP84=AC110,AB110,\"\")))","v":""},{"$f":"IF(Z113=\"\",\"\",IF(AP84=Y113,Z113,IF(AP84=AC113,AB113,\"\")))","v":""},null,null,null,null,null,{"$f":"IF(G84=\"[---WithDraw---]\",FALSE,IF(COUNTIF(PlayerNamesWithinGroups,G84)>1,TRUE,FALSE))","v":true},{"$f":"AND(LEFT($AP84,1) = \"(\", RIGHT($AP84,1) =\")\")","v":false},{"$f":"IF(OR($AO84=$AO83,$AO84=$AO85),TRUE,FALSE)","v":true}]
[null,null,null,null,null,null,null,null,null,null,null,null,null,null,null,null,null,null,null,null,null,{"$f":"N_Heure","v":"Time"},{"$f":"N_Table","v":"Table"},{"$f":"N_Arbitre","v":"Referee"},{"$f":"N_Matches","v":"Matches"},null,null,null,null,null,null,null,null,null,null,null,null,{"$f":"IF(COUNTA(Z86:Z115)>10,\"OK\",\"\")","v":""}]
[null,null,null,null,null,null,null,null,null,null,null,null,null,null,null,null,null,null,null,null,"#G1",null,null,null,{"$f":"IF(G80=\"\",\"\",G80)","v":"Db1"},{"$f":"IF(OR(ISNUMBER(Z87),ISNUMBER(Z88)),2-COUNTBLANK(AI87:AI88),\"\")","v":""},"-",{"$f":"IF(OR(ISNUMBER(Z87),ISNUMBER(Z88)),2-COUNTBLANK(AJ87:AJ88),\"\")","v":""},{"$f":"IF(G84=\"\",\"\",G84)","v":"Db5"},null,{"$f":"IF(Z86=\"\",\"\",IF(Z86>AB86,Y86,IF(Z86=AB86,\"\",AC86)))","v":""},{"$f":"IF(Z86=\"\",\"\",IF(Z86=AB86,Y86,\"\"))","v":""},{"$f":"IF(Z86=\"\",\"\",IF(Z86=AB86,AC86,\"\"))","v":""},{"$f":"IF(Z86=\"\",\"\",IF(Z86<AB86,Y86,IF(Z86=AB86,\"\",AC86)))","v":""},{"$f":"IF(Z86=\"\",\"\",SUM(Z87:Z88))","v":""},{"$f":"IF(Z86=\"\",\"\",SUM(AB87:AB88))","v":""},{"$f":"CONCATENATE(AE86,AH86)","v":""}]
[null,null,null,null,null,null,null,null,null,null,null,null,null,null,null,null,null,null,null,null,null,null,null,null,null,null,"-",null,null,null,"","","","",{"$f":"IF(Z87=\"\",\"\",IF(Z87>AB87,Y86,\"\"))","v":""},{"$f":"IF(Z87=\"\",\"\",IF(Z87<AB87,AC86,\"\"))","v":""},""]
[null,null,null,null,null,null,null,null,null,null,null,null,null,null,null,null,null,null,null,null,null,null,null,null,null,null,"-",null,null,null,"","","","",{"$f":"IF(Z88=\"\",\"\",IF(Z88>AB88,Y86,\"\"))","v":""},{"$f":"IF(Z88=\"\",\"\",IF(Z88<AB88,AC86,\"\"))","v":""},""]
[null,null,null,null,null,null,null,null,null,null,null,null,null,null,null,null,null,null,null,null,"#G1",null,null,null,{"$f":"IF(G81=\"\",\"\",G81)","v":"Db2"},{"$f":"IF(OR(ISNUMBER(Z90),ISNUMBER(Z91)),2-COUNTBLANK(AI90:AI91),\"\")","v":""},"-",{"$f":"IF(OR(ISNUMBER(Z90),ISNUMBER(Z91)),2-COUNTBLANK(AJ90:AJ91),\"\")","v":""},{"$f":"IF(G83=\"\",\"\",G83)","v":"Db4"},null,"","","","",{"$f":"IF(Z89=\"\",\"\",SUM(Z90:Z91))","v":""},{"$f":"IF(Z89=\"\",\"\",SUM(AB90:AB91))","v":""},""]
[null,null,null,null,null,null,null,null,null,null,null,null,null,null,null,null,null,null,null,null,null,null,null,null,null,null,"-",null,null,null,"","","","",{"$f":"IF(Z90=\"\",\"\",IF(Z90>AB90,Y89,\"\"))","v":""},{"$f":"IF(Z90=\"\",\"\",IF(Z90<AB90,AC89,\"\"))","v":""},""]
[null,null,null,null,null,null,null,null,null,null,null,null,null,null,null,null,null,null,null,null,null,null,null,null,null,null,"-",null,null,null,"","","","",{"$f":"IF(Z91=\"\",\"\",IF(Z91>AB91,Y89,\"\"))","v":""},{"$f":"IF(Z91=\"\",\"\",IF(Z91<AB91,AC89,\"\"))","v":""},""]
[null,null,null,null,null,null,null,null,null,null,null,null,null,null,null,null,null,null,null,null,"#G2",null,null,null,{"$f":"IF(G80=\"\",\"\",G80)","v":"Db1"},{"$f":"IF(OR(ISNUMBER(Z93),ISNUMBER(Z94)),2-COUNTBLANK(AI93:AI94),\"\")","v":""},"-",{"$f":"IF(OR(ISNUMBER(Z93),ISNUMBER(Z94)),2-COUNTBLANK(AJ93:AJ94),\"\")","v":""},{"$f":"IF(G83=\"\",\"\",G83)","v":"Db4"},null,"","","","",{"$f":"IF(Z92=\"\",\"\",SUM(Z93:Z94))","v":""},{"$f":"IF(Z92=\"\",\"\",SUM(AB93:AB94))","v":""},""]
[null,null,null,null,null,null,null,null,null,null,null,null,null,null,null,null,null,null,null,null,null,null,null,null,null,null,"-",null,null,null,"","","","",{"$f":"IF(Z93=\"\",\"\",IF(Z93>AB93,Y92,\"\"))","v":""},{"$f":"IF(Z93=\"\",\"\",IF(Z93<AB93,AC92,\"\"))","v":""},""]
[null,null,null,null,null,null,null,null,null,null,null,null,null,null,null,null,null,null,null,null,null,null,null,null,null,null,"-",null,null,null,"","","","",{"$f":"IF(Z94=\"\",\"\",IF(Z94>AB94,Y92,\"\"))","v":""},{"$f":"IF(Z94=\"\",\"\",IF(Z94<AB94,AC92,\"\"))","v":""},""]
[null,null,null,null,null,null,null,null,null,null,null,null,null,null,null,null,null,null,null,null,"#G2",null,null,null,{"$f":"IF(G81=\"\",\"\",G81)","v":"Db2"},{"$f":"IF(OR(ISNUMBER(Z96),ISNUMBER(Z97)),2-COUNTBLANK(AI96:AI97),\"\")","v":""},"-",{"$f":"IF(OR(ISNUMBER(Z96),ISNUMBER(Z97)),2-COUNTBLANK(AJ96:AJ97),\"\")","v":""},{"$f":"IF(G82=\"\",\"\",G82)","v":"Db3"},null,"","","","",{"$f":"IF(Z95=\"\",\"\",SUM(Z96:Z97))","v":""},{"$f":"IF(Z95=\"\",\"\",SUM(AB96:AB97))","v":""},""]
[null,null,null,null,null,null,null,null,null,null,null,null,null,null,null,null,null,null,null,null,null,null,null,null,null,null,"-",null,null,null,"","","","",{"$f":"IF(Z96=\"\",\"\",IF(Z96>AB96,Y95,\"\"))","v":""},{"$f":"IF(Z96=\"\",\"\",IF(Z96<AB96,AC95,\"\"))","v":""},""]
[null,null,null,null,null,null,null,null,null,null,null,null,null,null,null,null,null,null,null,null,null,null,null,null,null,null,"-",null,null,null,"","","","",{"$f":"IF(Z97=\"\",\"\",IF(Z97>AB97,Y95,\"\"))","v":""},{"$f":"IF(Z97=\"\",\"\",IF(Z97<AB97,AC95,\"\"))","v":""},""]
[null,null,null,null,null,null,null,null,null,null,null,null,null,null,null,null,null,null,null,null,"#G3",null,null,null,{"$f":"IF(G80=\"\",\"\",G80)","v":"Db1"},{"$f":"IF(OR(ISNUMBER(Z99),ISNUMBER(Z100)),2-COUNTBLANK(AI99:AI100),\"\")","v":""},"-",{"$f":"IF(OR(ISNUMBER(Z99),ISNUMBER(Z100)),2-COUNTBLANK(AJ99:AJ100),\"\")","v":""},{"$f":"IF(G82=\"\",\"\",G82)","v":"Db3"},null,"","","","",{"$f":"IF(Z98=\"\",\"\",SUM(Z99:Z100))","v":""},{"$f":"IF(Z98=\"\",\"\",SUM(AB99:AB100))","v":""},""]
[null,null,null,null,null,null,null,null,null,null,null,null,null,null,null,null,null,null,null,null,null,null,null,null,null,null,"-",null,null,null,"","","","",{"$f":"IF(Z99=\"\",\"\",IF(Z99>AB99,Y98,\"\"))","v":""},{"$f":"IF(Z99=\"\",\"\",IF(Z99<AB99,AC98,\"\"))","v":""},""]
[null,null,null,null,null,null,null,null,null,null,null,null,null,null,null,null,null,null,null,null,null,null,null,null,null,null,"-",null,null,null,"","","","",{"$f":"IF(Z100=\"\",\"\",IF(Z100>AB100,Y98,\"\"))","v":""},{"$f":"IF(Z100=\"\",\"\",IF(Z100<AB100,AC98,\"\"))","v":""},""]
[null,null,null,null,null,null,null,null,null,null,null,null,null,null,null,null,null,null,null,null,"#G3",null,null,null,{"$f":"IF(G83=\"\",\"\",G83)","v":"Db4"},{"$f":"IF(OR(ISNUMBER(Z102),ISNUMBER(Z103)),2-COUNTBLANK(AI102:AI103),\"\")","v":""},"-",{"$f":"IF(OR(ISNUMBER(Z102),ISNUMBER(Z103)),2-COUNTBLANK(AJ102:AJ103),\"\")","v":""},{"$f":"IF(G84=\"\",\"\",G84)","v":"Db5"},null,"","","","",{"$f":"IF(Z101=\"\",\"\",SUM(Z103:Z115))","v":""},{"$f":"IF(Z101=\"\",\"\",SUM(AB103:AB115))","v":""},""]
[null,null,null,null,null,null,null,null,null,null,null,null,null,null,null,null,null,null,null,null,null,null,null,null,null,null,"-",null,null,null,{"$f":"IF(Z102=\"\",\"\",IF(Z102>AB102,Y102,IF(Z102=AB102,\"\",AC102)))","v":""},{"$f":"IF(Z102=\"\",\"\",IF(Z102=AB102,Y102,\"\"))","v":""},{"$f":"IF(Z102=\"\",\"\",IF(Z102=AB102,AC102,\"\"))","v":""},{"$f":"IF(Z102=\"\",\"\",IF(Z102<AB102,Y102,IF(Z102=AB102,\"\",AC102)))","v":""},{"$f":"IF(Z102=\"\",\"\",IF(Z102>AB102,Y101,\"\"))","v":""},{"$f":"IF(Z102=\"\",\"\",IF(Z102<AB102,AC101,\"\"))","v":""},{"$f":"CONCATENATE(AE102,AH102)","v":""}]
[null,null,null,null,null,null,null,null,null,null,null,null,null,null,null,null,null,null,null,null,null,null,null,null,null,null,"-",null,null,null,{"$f":"IF(Z103=\"\",\"\",IF(Z103>AB103,Y103,IF(Z103=AB103,\"\",AC103)))","v":""},{"$f":"IF(Z103=\"\",\"\",IF(Z103=AB103,Y103,\"\"))","v":""},{"$f":"IF(Z103=\"\",\"\",IF(Z103=AB103,AC103,\"\"))","v":""},{"$f":"IF(Z103=\"\",\"\",IF(Z103<AB103,Y103,IF(Z103=AB103,\"\",AC103)))","v":""},{"$f":"IF(Z103=\"\",\"\",IF(Z103>AB103,Y101,\"\"))","v":""},{"$f":"IF(Z103=\"\",\"\",IF(Z103<AB103,AC101,\"\"))","v":""},{"$f":"CONCATENATE(AE103,AH103)","v":""}]
[null,null,null,null,null,null,null,null,null,null,null,null,null,null,null,null,null,null,null,null,"#G4",null,null,null,{"$f":"IF(G81=\"\",\"\",G81)","v":"Db2"},{"$f":"IF(OR(ISNUMBER(Z105),ISNUMBER(Z106)),2-COUNTBLANK(AI105:AI106),\"\")","v":""},"-",{"$f":"IF(OR(ISNUMBER(Z105),ISNUMBER(Z106)),2-COUNTBLANK(AJ105:AJ106),\"\")","v":""},{"$f":"IF(G84=\"\",\"\",G84)","v":"Db5"},null,"","","","",{"$f":"IF(Z104=\"\",\"\",SUM(Z105:Z106))","v":""},{"$f":"IF(Z104=\"\",\"\",SUM(AB105:AB106))","v":""},""]
[null,null,null,null,null,null,null,null,null,null,null,null,null,null,null,null,null,null,null,null,null,null,null,null,null,null,"-",null,null,null,"","","","",{"$f":"IF(Z105=\"\",\"\",IF(Z105>AB105,Y104,\"\"))","v":""},{"$f":"IF(Z105=\"\",\"\",IF(Z105<AB105,AC104,\"\"))","v":""},""]
[null,null,null,null,null,null,null,null,null,null,null,null,null,null,null,null,null,null,null,null,null,null,null,null,null,null,"-",null,null,null,"","","","",{"$f":"IF(Z106=\"\",\"\",IF(Z106>AB106,Y104,\"\"))","v":""},{"$f":"IF(Z106=\"\",\"\",IF(Z106<AB106,AC104,\"\"))","v":""},""]
[null,null,null,null,null,null,null,null,null,null,null,null,null,null,null,null,null,null,null,null,"#G4",null,null,null,{"$f":"IF(G82=\"\",\"\",G82)","v":"Db3"},{"$f":"IF(OR(ISNUMBER(Z108),ISNUMBER(Z109)),2-COUNTBLANK(AI108:AI109),\"\")","v":""},"-",{"$f":"IF(OR(ISNUMBER(Z108),ISNUMBER(Z109)),2-COUNTBLANK(AJ108:AJ109),\"\")","v":""},{"$f":"IF(G83=\"\",\"\",G83)","v":"Db4"},null,"","","","",{"$f":"IF(Z107=\"\",\"\",SUM(Z108:Z109))","v":""},{"$f":"IF(Z107=\"\",\"\",SUM(AB108:AB109))","v":""},""]
[null,null,null,null,null,null,null,null,null,null,null,null,null,null,null,null,null,null,null,null,null,null,null,null,null,null,"-",null,null,null,"","","","",{"$f":"IF(Z108=\"\",\"\",IF(Z108>AB108,Y107,\"\"))","v":""},{"$f":"IF(Z108=\"\",\"\",IF(Z108<AB108,AC107,\"\"))","v":""},""]
[null,null,null,null,null,null,null,null,null,null,null,null,null,null,null,null,null,null,null,null,null,null,null,null,null,null,"-",null,null,null,"","","","",{"$f":"IF(Z109=\"\",\"\",IF(Z109>AB109,Y107,\"\"))","v":""},{"$f":"IF(Z109=\"\",\"\",IF(Z109<AB109,AC107,\"\"))","v":""},""]
[null,null,null,null,null,null,null,null,null,null,null,null,null,null,null,null,null,null,null,null,"#G5",null,null,null,{"$f":"IF(G80=\"\",\"\",G80)","v":"Db1"},{"$f":"IF(OR(ISNUMBER(Z111),ISNUMBER(Z112)),2-COUNTBLANK(AI111:AI112),\"\")","v":""},"-",{"$f":"IF(OR(ISNUMBER(Z111),ISNUMBER(Z112)),2-COUNTBLANK(AJ111:AJ112),\"\")","v":""},{"$f":"IF(G81=\"\",\"\",G81)","v":"Db2"},null,"","","","",{"$f":"IF(Z110=\"\",\"\",SUM(Z111:Z112))","v":""},{"$f":"IF(Z110=\"\",\"\",SUM(AB111:AB112))","v":""},""]
[null,null,null,null,null,null,null,null,null,null,null,null,null,null,null,null,null,null,null,null,null,null,null,null,null,null,"-",null,null,null,"","","","",{"$f":"IF(Z111=\"\",\"\",IF(Z111>AB111,Y110,\"\"))","v":""},{"$f":"IF(Z111=\"\",\"\",IF(Z111<AB111,AC110,\"\"))","v":""},""]
[null,null,null,null,null,null,null,null,null,null,null,null,null,null,null,null,null,null,null,null,null,null,null,null,null,null,"-",null,null,null,"","","","",{"$f":"IF(Z112=\"\",\"\",IF(Z112>AB112,Y110,\"\"))","v":""},{"$f":"IF(Z112=\"\",\"\",IF(Z112<AB112,AC110,\"\"))","v":""},""]
[null,null,null,null,null,null,null,null,null,null,null,null,null,null,null,null,null,null,null,null,"#G5",null,null,null,{"$f":"IF(G82=\"\",\"\",G82)","v":"Db3"},{"$f":"IF(OR(ISNUMBER(Z114),ISNUMBER(Z115)),2-COUNTBLANK(AI114:AI115),\"\")","v":""},"-",{"$f":"IF(OR(ISNUMBER(Z114),ISNUMBER(Z115)),2-COUNTBLANK(AJ114:AJ115),\"\")","v":""},{"$f":"IF(G84=\"\",\"\",G84)","v":"Db5"},null,"","","","",{"$f":"IF(Z113=\"\",\"\",SUM(Z114:Z115))","v":""},{"$f":"IF(Z113=\"\",\"\",SUM(AB114:AB115))","v":""},""]
[null,null,null,null,null,null,null,null,null,null,null,null,null,null,null,null,null,null,null,null,null,null,null,null,null,null,"-",null,null,null,"","","","",{"$f":"IF(Z114=\"\",\"\",IF(Z114>AB114,Y113,\"\"))","v":""},{"$f":"IF(Z114=\"\",\"\",IF(Z114<AB114,AC113,\"\"))","v":""},""]
[null,null,null,null,null,null,null,null,null,null,null,null,null,null,null,null,null,null,null,null,null,null,null,null,null,null,"-",null,null,null,"","","","",{"$f":"IF(Z115=\"\",\"\",IF(Z115>AB115,Y113,\"\"))","v":""},{"$f":"IF(Z115=\"\",\"\",IF(Z115<AB115,AC113,\"\"))","v":""},""]
[]
[]
[null,{"$f":"N_Group_6","v":"Group of 6"},null,null,null,null,null,null,null,null,null,null,null,null,null,null,null,null,null,null,null,null,null,null,null,null,null,null,null,null,null,null,null,null,null,null,null,null,null,{"$f":"B118","v":"Group of 6"}]
[]
[null,{"$f":"N_Tirage","v":"Draw"},"Cla.","Cla1","Part","Cla2",{"$f":"N_Equipes","v":"Teams"},{"$f":"N_Pts","v":"Pts"},{"$f":"N_J","v":"Pld"},{"$f":"N_G","v":"W"},{"$f":"N_N","v":"D"},{"$f":"N_P","v":"L"},{"$f":"N_Diff_R","v":"ED"},{"$f":"N_MP","v":"WM"},{"$f":"N_MC","v":"LM"},{"$f":"N_Diff_M","v":"MD"},{"$f":"N_BP","v":"F"},{"$f":"N_BC","v":"A"},{"$f":"N_Diff_B","v":"GD"},null,null,null,null,null,null,null,null,null,null,null,null,null,null,null,null,null,null,null,null,null,{"$f":"N_Cla.","v":"Rk"},{"$f":"N_Equipes","v":"Teams"},{"$f":"N_Pts","v":"Pts"},{"$f":"N_J","v":"Pld"},{"$f":"N_G","v":"W"},{"$f":"N_N","v":"D"},{"$f":"N_P","v":"L"},{"$f":"N_Diff_R","v":"ED"},{"$f":"N_MP","v":"WM"},{"$f":"N_MC","v":"LM"},{"$f":"N_Diff_M","v":"MD"},{"$f":"N_BP","v":"F"},{"$f":"N_BC","v":"A"},{"$f":"N_Diff_B","v":"GD"},{"$f":"N_Matches","v":"Matches"}]
[null,1,{"$f":"IF(AL127=\"\",\"\",RANK(F121,F121:F126)*1000+ROW())","v":""},{"$f":"IF(J121=\"\",\"\",H121*CritClassEq1_Points+M121*CritClassEq1_DiffRencontres+P121*CritClassEq1_DiffMatches+S121*CritClassEq1_DiffButs+N121*CritClassEq1_Matches+Q121*CritClassEq1_Attaque)","v":""},{"$f":"IF(J121=\"\",\"\",Nb_Diff_Part(D121,D121:D126,G121,G121:G126,AK128:AK172)*CritClassInd_DiffPart)","v":""},{"$f":"IF(J121=\"\",\"\",D121+E121+H121*CritClassEq2_Points+M121*CritClassEq2_DiffRencontres+P121*CritClassEq2_DiffMatches+S121*CritClassEq2_DiffButs+N121*CritClassEq2_Matches+Q121*CritClassEq2_Attaque)","v":""},"Db1",{"$f":"IF(AL127=\"\",\"\",(J121*Points_Victoire)+K121*Points_Null)","v":""},{"$f":"IF(J121=\"\",\"\",SUM(J121:L121))","v":""},{"$f":"IF(AL127=\"\",\"\",COUNTIF(AE128:AE172,G121))","v":""},{"$f":"IF(AL127=\"\",\"\",COUNTIF(AF128:AG172,G121))","v":""},{"$f":"IF(AL127=\"\",\"\",COUNTIF(AH128:AH172,G121))","v":""},{"$f":"IF(AL127=\"\",\"\",J121-L121)","v":""},{"$f":"IF(AL127=\"\",\"\",SUMIF(Y128:Y172,G121,Z128:Z172)+SUMIF(AC128:AC172,G121,AB128:AB172))","v":""},{"$f":"IF(AL127=\"\",\"\",SUMIF(Y128:Y172,G121,AB128:AB172)+SUMIF(AC128:AC172,G121,Z128:Z172))","v":""},{"$f":"IF(AL127=\"\",\"\",N121-O121)","v":""},{"$f":"IF(AL127=\"\",\"\",SUMIF(Y128:Y172,G121,AI128:AI172)+SUMIF(AC128:AC172,G121,AJ128:AJ172))","v":""},{"$f":"IF(AL127=\"\",\"\",SUMIF(Y128:Y172,G121,AJ128:AJ172)+SUMIF(AC128:AC172,G121,AI128:AI172))","v":""},{"$f":"IF(AL127=\"\",\"\",Q121-R121)","v":""},null,null,null,null,null,null,null,null,null,null,null,null,null,null,null,null,null,null,{"$f":"IF(AL127=\"\",\"\",SMALL(C121:C126,1))","v":""},null,null,{"$f":"IF(AL127=\"\",\"\",INT(AL121/1000))","v":""},{"$f":"IF(AL127=\"\",IF(HidePlayerFormulas,\"\",\"(\"&G121&\")\"),VLOOKUP(AL121,C121:S126,5,FALSE))","v":""},{"$f":"VLOOKUP(AL121,C121:S126,6,FALSE)","v":""},{"$f":"VLOOKUP(AL121,C121:S126,7,FALSE)","v":""},{"$f":"VLOOKUP(AL121,C121:S126,8,FALSE)","v":""},{"$f":"VLOOKUP(AL121,C121:S126,9,FALSE)","v":""},{"$f":"VLOOKUP(AL121,C121:S126,10,FALSE)","v":""},{"$f":"VLOOKUP(AL121,C121:S126,11,FALSE)","v":""},{"$f":"VLOOKUP(AL121,C121:S126,12,FALSE)","v":""},{"$f":"VLOOKUP(AL121,C121:S126,13,FALSE)","v":""},{"$f":"VLOOKUP(AL121,C121:S126,14,FALSE)","v":""},{"$f":"VLOOKUP(AL121,C121:S126,15,FALSE)","v":""},{"$f":"VLOOKUP(AL121,C121:S126,16,FALSE)","v":""},{"$f":"VLOOKUP(AL121,C121:S126,17,FALSE)","v":""},{"$f":"IF(Z128=\"\",\"\",IF(AP121=Y128,Z128,IF(AP121=AC128,AB128,\"\")))","v":""},{"$f":"IF(Z131=\"\",\"\",IF(AP121=Y131,Z131,IF(AP121=AC131,AB131,\"\")))","v":""},{"$f":"IF(Z134=\"\",\"\",IF(AP121=Y134,Z134,IF(AP121=AC134,AB134,\"\")))","v":""},{"$f":"IF(Z137=\"\",\"\",IF(AP121=Y137,Z137,IF(AP121=AC137,AB137,\"\")))","v":""},{"$f":"IF(Z140=\"\",\"\",IF(AP121=Y140,Z140,IF(AP121=AC140,AB140,\"\")))","v":""},{"$f":"IF(Z143=\"\",\"\",IF(AP121=Y143,Z143,IF(AP121=AC143,AB143,\"\")))","v":""},{"$f":"IF(Z146=\"\",\"\",IF(AP121=Y146,Z146,IF(AP121=AC146,AB146,\"\")))","v":""},{"$f":"IF(Z149=\"\",\"\",IF(AP121=Y149,Z149,IF(AP121=AC149,AB149,\"\")))","v":""},{"$f":"IF(Z152=\"\",\"\",IF(AP121=Y152,Z152,IF(AP121=AC152,AB152,\"\")))","v":""},{"$f":"IF(Z155=\"\",\"\",IF(AP121=Y155,Z155,IF(AP121=AC155,AB155,\"\")))","v":""},{"$f":"IF(Z158=\"\",\"\",IF(AP121=Y158,Z158,IF(AP121=AC158,AB158,\"\")))","v":""},{"$f":"IF(Z161=\"\",\"\",IF(AP121=Y161,Z161,IF(AP121=AC161,AB161,\"\")))","v":""},{"$f":"IF(Z164=\"\",\"\",IF(AP121=Y164,Z164,IF(AP121=AC164,AB164,\"\")))","v":""},{"$f":"IF(Z167=\"\",\"\",IF(AP121=Y167,Z167,IF(AP121=AC167,AB167,\"\")))","v":""},{"$f":"IF(Z170=\"\",\"\",IF(AP121=Y170,Z170,IF(AP121=AC170,AB170,\"\")))","v":""},{"$f":"IF(G121=\"[---WithDraw---]\",FALSE,IF(COUNTIF(PlayerNamesWithinGroups,G121)>1,TRUE,FALSE))","v":true},{"$f":"AND(LEFT($AP121,1) = \"(\", RIGHT($AP121,1) =\")\")","v":false},{"$f":"IF(OR($AO121=$AO120,$AO121=$AO122),TRUE,FALSE)","v":true}]
[null,2,{"$f":"IF(AL127=\"\",\"\",RANK(F122,F121:F126)*1000+ROW())","v":""},"",{"$f":"IF(J122=\"\",\"\",Nb_Diff_Part(D122,D121:D126,G122,G121:G126,AK128:AK172)*CritClassInd_DiffPart)","v":""},"","Db2",{"$f":"IF(AL127=\"\",\"\",(J122*Points_Victoire)+K122*Points_Null)","v":""},"",{"$f":"IF(AL127=\"\",\"\",COUNTIF(AE128:AE172,G122))","v":""},{"$f":"IF(AL127=\"\",\"\",COUNTIF(AF128:AG172,G122))","v":""},{"$f":"IF(AL127=\"\",\"\",COUNTIF(AH128:AH172,G122))","v":""},{"$f":"IF(AL127=\"\",\"\",J122-L122)","v":""},{"$f":"IF(AL127=\"\",\"\",SUMIF(Y128:Y172,G122,Z128:Z172)+SUMIF(AC128:AC172,G122,AB128:AB172))","v":""},{"$f":"IF(AL127=\"\",\"\",SUMIF(Y128:Y172,G122,AB128:AB172)+SUMIF(AC128:AC172,G122,Z128:Z172))","v":""},{"$f":"IF(AL127=\"\",\"\",N122-O122)","v":""},{"$f":"IF(AL127=\"\",\"\",SUMIF(Y128:Y172,G122,AI128:AI172)+SUMIF(AC128:AC172,G122,AJ128:AJ172))","v":""},{"$f":"IF(AL127=\"\",\"\",SUMIF(Y128:Y172,G122,AJ128:AJ172)+SUMIF(AC128:AC172,G122,AI128:AI172))","v":""},{"$f":"IF(AL127=\"\",\"\",Q122-R122)","v":""},null,null,null,null,null,null,null,null,null,null,null,null,null,null,null,null,null,null,{"$f":"IF(AL127=\"\",\"\",SMALL(C121:C126,2))","v":""},null,null,{"$f":"IF(AL127=\"\",\"\",INT(AL122/1000))","v":""},{"$f":"IF(AL127=\"\",IF(HidePlayerFormulas,\"\",\"(\"&G122&\")\"),VLOOKUP(AL122,C121:S126,5,FALSE))","v":""},{"$f":"VLOOKUP(AL122,C121:S126,6,FALSE)","v":""},{"$f":"VLOOKUP(AL122,C121:S126,7,FALSE)","v":""},{"$f":"VLOOKUP(AL122,C121:S126,8,FALSE)","v":""},{"$f":"VLOOKUP(AL122,C121:S126,9,FALSE)","v":""},{"$f":"VLOOKUP(AL122,C121:S126,10,FALSE)","v":""},{"$f":"VLOOKUP(AL122,C121:S126,11,FALSE)","v":""},{"$f":"VLOOKUP(AL122,C121:S126,12,FALSE)","v":""},{"$f":"VLOOKUP(AL122,C121:S126,13,FALSE)","v":""},{"$f":"VLOOKUP(AL122,C121:S126,14,FALSE)","v":""},{"$f":"VLOOKUP(AL122,C121:S126,15,FALSE)","v":""},{"$f":"VLOOKUP(AL122,C121:S126,16,FALSE)","v":""},{"$f":"VLOOKUP(AL122,C121:S126,17,FALSE)","v":""},{"$f":"IF(Z128=\"\",\"\",IF(AP122=Y128,Z128,IF(AP122=AC128,AB128,\"\")))","v":""},{"$f":"IF(Z131=\"\",\"\",IF(AP122=Y131,Z131,IF(AP122=AC131,AB131,\"\")))","v":""},{"$f":"IF(Z134=\"\",\"\",IF(AP122=Y134,Z134,IF(AP122=AC134,AB134,\"\")))","v":""},{"$f":"IF(Z137=\"\",\"\",IF(AP122=Y137,Z137,IF(AP122=AC137,AB137,\"\")))","v":""},{"$f":"IF(Z140=\"\",\"\",IF(AP122=Y140,Z140,IF(AP122=AC140,AB140,\"\")))","v":""},{"$f":"IF(Z143=\"\",\"\",IF(AP122=Y143,Z143,IF(AP122=AC143,AB143,\"\")))","v":""},{"$f":"IF(Z146=\"\",\"\",IF(AP122=Y146,Z146,IF(AP122=AC146,AB146,\"\")))","v":""},{"$f":"IF(Z149=\"\",\"\",IF(AP122=Y149,Z149,IF(AP122=AC149,AB149,\"\")))","v":""},{"$f":"IF(Z152=\"\",\"\",IF(AP122=Y152,Z152,IF(AP122=AC152,AB152,\"\")))","v":""},{"$f":"IF(Z155=\"\",\"\",IF(AP122=Y155,Z155,IF(AP122=AC155,AB155,\"\")))","v":""},{"$f":"IF(Z158=\"\",\"\",IF(AP122=Y158,Z158,IF(AP122=AC158,AB158,\"\")))","v":""},{"$f":"IF(Z161=\"\",\"\",IF(AP122=Y161,Z161,IF(AP122=AC161,AB161,\"\")))","v":""},{"$f":"IF(Z164=\"\",\"\",IF(AP122=Y164,Z164,IF(AP122=AC164,AB164,\"\")))","v":""},{"$f":"IF(Z167=\"\",\"\",IF(AP122=Y167,Z167,IF(AP122=AC167,AB167,\"\")))","v":""},{"$f":"IF(Z170=\"\",\"\",IF(AP122=Y170,Z170,IF(AP122=AC170,AB170,\"\")))","v":""},true,false,true]
[null,3,{"$f":"IF(AL127=\"\",\"\",RANK(F123,F121:F126)*1000+ROW())","v":""},"",{"$f":"IF(J123=\"\",\"\",Nb_Diff_Part(D123,D121:D126,G123,G121:G126,AK128:AK172)*CritClassInd_DiffPart)","v":""},"","Db3",{"$f":"IF(AL127=\"\",\"\",(J123*Points_Victoire)+K123*Points_Null)","v":""},"",{"$f":"IF(AL127=\"\",\"\",COUNTIF(AE128:AE172,G123))","v":""},{"$f":"IF(AL127=\"\",\"\",COUNTIF(AF128:AG172,G123))","v":""},{"$f":"IF(AL127=\"\",\"\",COUNTIF(AH128:AH172,G123))","v":""},{"$f":"IF(AL127=\"\",\"\",J123-L123)","v":""},{"$f":"IF(AL127=\"\",\"\",SUMIF(Y128:Y172,G123,Z128:Z172)+SUMIF(AC128:AC172,G123,AB128:AB172))","v":""},{"$f":"IF(AL127=\"\",\"\",SUMIF(Y128:Y172,G123,AB128:AB172)+SUMIF(AC128:AC172,G123,Z128:Z172))","v":""},{"$f":"IF(AL127=\"\",\"\",N123-O123)","v":""},{"$f":"IF(AL127=\"\",\"\",SUMIF(Y128:Y172,G123,AI128:AI172)+SUMIF(AC128:AC172,G123,AJ128:AJ172))","v":""},{"$f":"IF(AL127=\"\",\"\",SUMIF(Y128:Y172,G123,AJ128:AJ172)+SUMIF(AC128:AC172,G123,AI128:AI172))","v":""},{"$f":"IF(AL127=\"\",\"\",Q123-R123)","v":""},null,null,null,null,null,null,null,null,null,null,null,null,null,null,null,null,null,null,{"$f":"IF(AL127=\"\",\"\",SMALL(C121:C126,3))","v":""},null,null,{"$f":"IF(AL127=\"\",\"\",INT(AL123/1000))","v":""},{"$f":"IF(AL127=\"\",IF(HidePlayerFormulas,\"\",\"(\"&G123&\")\"),VLOOKUP(AL123,C121:S126,5,FALSE))","v":""},{"$f":"VLOOKUP(AL123,C121:S126,6,FALSE)","v":""},{"$f":"VLOOKUP(AL123,C121:S126,7,FALSE)","v":""},{"$f":"VLOOKUP(AL123,C121:S126,8,FALSE)","v":""},{"$f":"VLOOKUP(AL123,C121:S126,9,FALSE)","v":""},{"$f":"VLOOKUP(AL123,C121:S126,10,FALSE)","v":""},{"$f":"VLOOKUP(AL123,C121:S126,11,FALSE)","v":""},{"$f":"VLOOKUP(AL123,C121:S126,12,FALSE)","v":""},{"$f":"VLOOKUP(AL123,C121:S126,13,FALSE)","v":""},{"$f":"VLOOKUP(AL123,C121:S126,14,FALSE)","v":""},{"$f":"VLOOKUP(AL123,C121:S126,15,FALSE)","v":""},{"$f":"VLOOKUP(AL123,C121:S126,16,FALSE)","v":""},{"$f":"VLOOKUP(AL123,C121:S126,17,FALSE)","v":""},{"$f":"IF(Z128=\"\",\"\",IF(AP123=Y128,Z128,IF(AP123=AC128,AB128,\"\")))","v":""},{"$f":"IF(Z131=\"\",\"\",IF(AP123=Y131,Z131,IF(AP123=AC131,AB131,\"\")))","v":""},{"$f":"IF(Z134=\"\",\"\",IF(AP123=Y134,Z134,IF(AP123=AC134,AB134,\"\")))","v":""},{"$f":"IF(Z137=\"\",\"\",IF(AP123=Y137,Z137,IF(AP123=AC137,AB137,\"\")))","v":""},{"$f":"IF(Z140=\"\",\"\",IF(AP123=Y140,Z140,IF(AP123=AC140,AB140,\"\")))","v":""},{"$f":"IF(Z143=\"\",\"\",IF(AP123=Y143,Z143,IF(AP123=AC143,AB143,\"\")))","v":""},{"$f":"IF(Z146=\"\",\"\",IF(AP123=Y146,Z146,IF(AP123=AC146,AB146,\"\")))","v":""},{"$f":"IF(Z149=\"\",\"\",IF(AP123=Y149,Z149,IF(AP123=AC149,AB149,\"\")))","v":""},{"$f":"IF(Z152=\"\",\"\",IF(AP123=Y152,Z152,IF(AP123=AC152,AB152,\"\")))","v":""},{"$f":"IF(Z155=\"\",\"\",IF(AP123=Y155,Z155,IF(AP123=AC155,AB155,\"\")))","v":""},{"$f":"IF(Z158=\"\",\"\",IF(AP123=Y158,Z158,IF(AP123=AC158,AB158,\"\")))","v":""},{"$f":"IF(Z161=\"\",\"\",IF(AP123=Y161,Z161,IF(AP123=AC161,AB161,\"\")))","v":""},{"$f":"IF(Z164=\"\",\"\",IF(AP123=Y164,Z164,IF(AP123=AC164,AB164,\"\")))","v":""},{"$f":"IF(Z167=\"\",\"\",IF(AP123=Y167,Z167,IF(AP123=AC167,AB167,\"\")))","v":""},{"$f":"IF(Z170=\"\",\"\",IF(AP123=Y170,Z170,IF(AP123=AC170,AB170,\"\")))","v":""},true,false,true]
[null,4,{"$f":"IF(AL127=\"\",\"\",RANK(F124,F121:F126)*1000+ROW())","v":""},"",{"$f":"IF(J124=\"\",\"\",Nb_Diff_Part(D124,D121:D126,G124,G121:G126,AK128:AK172)*CritClassInd_DiffPart)","v":""},"","Db4",{"$f":"IF(AL127=\"\",\"\",(J124*Points_Victoire)+K124*Points_Null)","v":""},"",{"$f":"IF(AL127=\"\",\"\",COUNTIF(AE128:AE172,G124))","v":""},{"$f":"IF(AL127=\"\",\"\",COUNTIF(AF128:AG172,G124))","v":""},{"$f":"IF(AL127=\"\",\"\",COUNTIF(AH128:AH172,G124))","v":""},{"$f":"IF(AL127=\"\",\"\",J124-L124)","v":""},{"$f":"IF(AL127=\"\",\"\",SUMIF(Y128:Y172,G124,Z128:Z172)+SUMIF(AC128:AC172,G124,AB128:AB172))","v":""},{"$f":"IF(AL127=\"\",\"\",SUMIF(Y128:Y172,G124,AB128:AB172)+SUMIF(AC128:AC172,G124,Z128:Z172))","v":""},{"$f":"IF(AL127=\"\",\"\",N124-O124)","v":""},{"$f":"IF(AL127=\"\",\"\",SUMIF(Y128:Y172,G124,AI128:AI172)+SUMIF(AC128:AC172,G124,AJ128:AJ172))","v":""},{"$f":"IF(AL127=\"\",\"\",SUMIF(Y128:Y172,G124,AJ128:AJ172)+SUMIF(AC128:AC172,G124,AI128:AI172))","v":""},{"$f":"IF(AL127=\"\",\"\",Q124-R124)","v":""},null,null,null,null,null,null,null,null,null,null,null,null,null,null,null,null,null,null,{"$f":"IF(AL127=\"\",\"\",SMALL(C121:C126,4))","v":""},null,null,{"$f":"IF(AL127=\"\",\"\",INT(AL124/1000))","v":""},{"$f":"IF(AL127=\"\",IF(HidePlayerFormulas,\"\",\"(\"&G124&\")\"),VLOOKUP(AL124,C121:S126,5,FALSE))","v":""},{"$f":"VLOOKUP(AL124,C121:S126,6,FALSE)","v":""},{"$f":"VLOOKUP(AL124,C121:S126,7,FALSE)","v":""},{"$f":"VLOOKUP(AL124,C121:S126,8,FALSE)","v":""},{"$f":"VLOOKUP(AL124,C121:S126,9,FALSE)","v":""},{"$f":"VLOOKUP(AL124,C121:S126,10,FALSE)","v":""},{"$f":"VLOOKUP(AL124,C121:S126,11,FALSE)","v":""},{"$f":"VLOOKUP(AL124,C121:S126,12,FALSE)","v":""},{"$f":"VLOOKUP(AL124,C121:S126,13,FALSE)","v":""},{"$f":"VLOOKUP(AL124,C121:S126,14,FALSE)","v":""},{"$f":"VLOOKUP(AL124,C121:S126,15,FALSE)","v":""},{"$f":"VLOOKUP(AL124,C121:S126,16,FALSE)","v":""},{"$f":"VLOOKUP(AL124,C121:S126,17,FALSE)","v":""},{"$f":"IF(Z128=\"\",\"\",IF(AP124=Y128,Z128,IF(AP124=AC128,AB128,\"\")))","v":""},{"$f":"IF(Z131=\"\",\"\",IF(AP124=Y131,Z131,IF(AP124=AC131,AB131,\"\")))","v":""},{"$f":"IF(Z134=\"\",\"\",IF(AP124=Y134,Z134,IF(AP124=AC134,AB134,\"\")))","v":""},{"$f":"IF(Z137=\"\",\"\",IF(AP124=Y137,Z137,IF(AP124=AC137,AB137,\"\")))","v":""},{"$f":"IF(Z140=\"\",\"\",IF(AP124=Y140,Z140,IF(AP124=AC140,AB140,\"\")))","v":""},{"$f":"IF(Z143=\"\",\"\",IF(AP124=Y143,Z143,IF(AP124=AC143,AB143,\"\")))","v":""},{"$f":"IF(Z146=\"\",\"\",IF(AP124=Y146,Z146,IF(AP124=AC146,AB146,\"\")))","v":""},{"$f":"IF(Z149=\"\",\"\",IF(AP124=Y149,Z149,IF(AP124=AC149,AB149,\"\")))","v":""},{"$f":"IF(Z152=\"\",\"\",IF(AP124=Y152,Z152,IF(AP124=AC152,AB152,\"\")))","v":""},{"$f":"IF(Z155=\"\",\"\",IF(AP124=Y155,Z155,IF(AP124=AC155,AB155,\"\")))","v":""},{"$f":"IF(Z158=\"\",\"\",IF(AP124=Y158,Z158,IF(AP124=AC158,AB158,\"\")))","v":""},{"$f":"IF(Z161=\"\",\"\",IF(AP124=Y161,Z161,IF(AP124=AC161,AB161,\"\")))","v":""},{"$f":"IF(Z164=\"\",\"\",IF(AP124=Y164,Z164,IF(AP124=AC164,AB164,\"\")))","v":""},{"$f":"IF(Z167=\"\",\"\",IF(AP124=Y167,Z167,IF(AP124=AC167,AB167,\"\")))","v":""},{"$f":"IF(Z170=\"\",\"\",IF(AP124=Y170,Z170,IF(AP124=AC170,AB170,\"\")))","v":""},true,false,true]
[null,5,{"$f":"IF(AL127=\"\",\"\",RANK(F125,F121:F126)*1000+ROW())","v":""},"",{"$f":"IF(J125=\"\",\"\",Nb_Diff_Part(D125,D121:D126,G125,G121:G126,AK128:AK172)*CritClassInd_DiffPart)","v":""},"","Db5",{"$f":"IF(AL127=\"\",\"\",(J125*Points_Victoire)+K125*Points_Null)","v":""},"",{"$f":"IF(AL127=\"\",\"\",COUNTIF(AE128:AE172,G125))","v":""},{"$f":"IF(AL127=\"\",\"\",COUNTIF(AF128:AG172,G125))","v":""},{"$f":"IF(AL127=\"\",\"\",COUNTIF(AH128:AH172,G125))","v":""},{"$f":"IF(AL127=\"\",\"\",J125-L125)","v":""},{"$f":"IF(AL127=\"\",\"\",SUMIF(Y128:Y172,G125,Z128:Z172)+SUMIF(AC128:AC172,G125,AB128:AB172))","v":""},{"$f":"IF(AL127=\"\",\"\",SUMIF(Y128:Y172,G125,AB128:AB172)+SUMIF(AC128:AC172,G125,Z128:Z172))","v":""},{"$f":"IF(AL127=\"\",\"\",N125-O125)","v":""},{"$f":"IF(AL127=\"\",\"\",SUMIF(Y128:Y172,G125,AI128:AI172)+SUMIF(AC128:AC172,G125,AJ128:AJ172))","v":""},{"$f":"IF(AL127=\"\",\"\",SUMIF(Y128:Y172,G125,AJ128:AJ172)+SUMIF(AC128:AC172,G125,AI128:AI172))","v":""},{"$f":"IF(AL127=\"\",\"\",Q125-R125)","v":""},null,null,null,null,null,null,null,null,null,null,null,null,null,null,null,null,null,null,{"$f":"IF(AL127=\"\",\"\",SMALL(C121:C126,5))","v":""},null,null,{"$f":"IF(AL127=\"\",\"\",INT(AL125/1000))","v":""},{"$f":"IF(AL127=\"\",IF(HidePlayerFormulas,\"\",\"(\"&G125&\")\"),VLOOKUP(AL125,C121:S126,5,FALSE))","v":""},{"$f":"VLOOKUP(AL125,C121:S126,6,FALSE)","v":""},{"$f":"VLOOKUP(AL125,C121:S126,7,FALSE)","v":""},{"$f":"VLOOKUP(AL125,C121:S126,8,FALSE)","v":""},{"$f":"VLOOKUP(AL125,C121:S126,9,FALSE)","v":""},{"$f":"VLOOKUP(AL125,C121:S126,10,FALSE)","v":""},{"$f":"VLOOKUP(AL125,C121:S126,11,FALSE)","v":""},{"$f":"VLOOKUP(AL125,C121:S126,12,FALSE)","v":""},{"$f":"VLOOKUP(AL125,C121:S126,13,FALSE)","v":""},{"$f":"VLOOKUP(AL125,C121:S126,14,FALSE)","v":""},{"$f":"VLOOKUP(AL125,C121:S126,15,FALSE)","v":""},{"$f":"VLOOKUP(AL125,C121:S126,16,FALSE)","v":""},{"$f":"VLOOKUP(AL125,C121:S126,17,FALSE)","v":""},{"$f":"IF(Z128=\"\",\"\",IF(AP125=Y128,Z128,IF(AP125=AC128,AB128,\"\")))","v":""},{"$f":"IF(Z131=\"\",\"\",IF(AP125=Y131,Z131,IF(AP125=AC131,AB131,\"\")))","v":""},{"$f":"IF(Z134=\"\",\"\",IF(AP125=Y134,Z134,IF(AP125=AC134,AB134,\"\")))","v":""},{"$f":"IF(Z137=\"\",\"\",IF(AP125=Y137,Z137,IF(AP125=AC137,AB137,\"\")))","v":""},{"$f":"IF(Z140=\"\",\"\",IF(AP125=Y140,Z140,IF(AP125=AC140,AB140,\"\")))","v":""},{"$f":"IF(Z143=\"\",\"\",IF(AP125=Y143,Z143,IF(AP125=AC143,AB143,\"\")))","v":""},{"$f":"IF(Z146=\"\",\"\",IF(AP125=Y146,Z146,IF(AP125=AC146,AB146,\"\")))","v":""},{"$f":"IF(Z149=\"\",\"\",IF(AP125=Y149,Z149,IF(AP125=AC149,AB149,\"\")))","v":""},{"$f":"IF(Z152=\"\",\"\",IF(AP125=Y152,Z152,IF(AP125=AC152,AB152,\"\")))","v":""},{"$f":"IF(Z155=\"\",\"\",IF(AP125=Y155,Z155,IF(AP125=AC155,AB155,\"\")))","v":""},{"$f":"IF(Z158=\"\",\"\",IF(AP125=Y158,Z158,IF(AP125=AC158,AB158,\"\")))","v":""},{"$f":"IF(Z161=\"\",\"\",IF(AP125=Y161,Z161,IF(AP125=AC161,AB161,\"\")))","v":""},{"$f":"IF(Z164=\"\",\"\",IF(AP125=Y164,Z164,IF(AP125=AC164,AB164,\"\")))","v":""},{"$f":"IF(Z167=\"\",\"\",IF(AP125=Y167,Z167,IF(AP125=AC167,AB167,\"\")))","v":""},{"$f":"IF(Z170=\"\",\"\",IF(AP125=Y170,Z170,IF(AP125=AC170,AB170,\"\")))","v":""},true,false,true]
[null,6,{"$f":"IF(AL127=\"\",\"\",RANK(F126,F121:F126)*1000+ROW())","v":""},"",{"$f":"IF(J126=\"\",\"\",Nb_Diff_Part(D126,D121:D126,G126,G121:G126,AK128:AK172)*CritClassInd_DiffPart)","v":""},"","Db6",{"$f":"IF(AL127=\"\",\"\",(J126*Points_Victoire)+K126*Points_Null)","v":""},"",{"$f":"IF(AL127=\"\",\"\",COUNTIF(AE128:AE172,G126))","v":""},{"$f":"IF(AL127=\"\",\"\",COUNTIF(AF128:AG172,G126))","v":""},{"$f":"IF(AL127=\"\",\"\",COUNTIF(AH128:AH172,G126))","v":""},{"$f":"IF(AL127=\"\",\"\",J126-L126)","v":""},{"$f":"IF(AL127=\"\",\"\",SUMIF(Y128:Y172,G126,Z128:Z172)+SUMIF(AC128:AC172,G126,AB128:AB172))","v":""},{"$f":"IF(AL127=\"\",\"\",SUMIF(Y128:Y172,G126,AB128:AB172)+SUMIF(AC128:AC172,G126,Z128:Z172))","v":""},{"$f":"IF(AL127=\"\",\"\",N126-O126)","v":""},{"$f":"IF(AL127=\"\",\"\",SUMIF(Y128:Y172,G126,AI128:AI172)+SUMIF(AC128:AC172,G126,AJ128:AJ172))","v":""},{"$f":"IF(AL127=\"\",\"\",SUMIF(Y128:Y172,G126,AJ128:AJ172)+SUMIF(AC128:AC172,G126,AI128:AI172))","v":""},{"$f":"IF(AL127=\"\",\"\",Q126-R126)","v":""},null,null,null,null,null,null,null,null,null,null,null,null,null,null,null,null,null,null,{"$f":"IF(AL127=\"\",\"\",SMALL(C121:C126,6))","v":""},null,null,{"$f":"IF(AL127=\"\",\"\",INT(AL126/1000))","v":""},{"$f":"IF(AL127=\"\",IF(HidePlayerFormulas,\"\",\"(\"&G126&\")\"),VLOOKUP(AL126,C121:S126,5,FALSE))","v":""},{"$f":"VLOOKUP(AL126,C121:S126,6,FALSE)","v":""},{"$f":"VLOOKUP(AL126,C121:S126,7,FALSE)","v":""},{"$f":"VLOOKUP(AL126,C121:S126,8,FALSE)","v":""},{"$f":"VLOOKUP(AL126,C121:S126,9,FALSE)","v":""},{"$f":"VLOOKUP(AL126,C121:S126,10,FALSE)","v":""},{"$f":"VLOOKUP(AL126,C121:S126,11,FALSE)","v":""},{"$f":"VLOOKUP(AL126,C121:S126,12,FALSE)","v":""},{"$f":"VLOOKUP(AL126,C121:S126,13,FALSE)","v":""},{"$f":"VLOOKUP(AL126,C121:S126,14,FALSE)","v":""},{"$f":"VLOOKUP(AL126,C121:S126,15,FALSE)","v":""},{"$f":"VLOOKUP(AL126,C121:S126,16,FALSE)","v":""},{"$f":"VLOOKUP(AL126,C121:S126,17,FALSE)","v":""},{"$f":"IF(Z128=\"\",\"\",IF(AP126=Y128,Z128,IF(AP126=AC128,AB128,\"\")))","v":""},{"$f":"IF(Z131=\"\",\"\",IF(AP126=Y131,Z131,IF(AP126=AC131,AB131,\"\")))","v":""},{"$f":"IF(Z134=\"\",\"\",IF(AP126=Y134,Z134,IF(AP126=AC134,AB134,\"\")))","v":""},{"$f":"IF(Z137=\"\",\"\",IF(AP126=Y137,Z137,IF(AP126=AC137,AB137,\"\")))","v":""},{"$f":"IF(Z140=\"\",\"\",IF(AP126=Y140,Z140,IF(AP126=AC140,AB140,\"\")))","v":""},{"$f":"IF(Z143=\"\",\"\",IF(AP126=Y143,Z143,IF(AP126=AC143,AB143,\"\")))","v":""},{"$f":"IF(Z146=\"\",\"\",IF(AP126=Y146,Z146,IF(AP126=AC146,AB146,\"\")))","v":""},{"$f":"IF(Z149=\"\",\"\",IF(AP126=Y149,Z149,IF(AP126=AC149,AB149,\"\")))","v":""},{"$f":"IF(Z152=\"\",\"\",IF(AP126=Y152,Z152,IF(AP126=AC152,AB152,\"\")))","v":""},{"$f":"IF(Z155=\"\",\"\",IF(AP126=Y155,Z155,IF(AP126=AC155,AB155,\"\")))","v":""},{"$f":"IF(Z158=\"\",\"\",IF(AP126=Y158,Z158,IF(AP126=AC158,AB158,\"\")))","v":""},{"$f":"IF(Z161=\"\",\"\",IF(AP126=Y161,Z161,IF(AP126=AC161,AB161,\"\")))","v":""},{"$f":"IF(Z164=\"\",\"\",IF(AP126=Y164,Z164,IF(AP126=AC164,AB164,\"\")))","v":""},{"$f":"IF(Z167=\"\",\"\",IF(AP126=Y167,Z167,IF(AP126=AC167,AB167,\"\")))","v":""},{"$f":"IF(Z170=\"\",\"\",IF(AP126=Y170,Z170,IF(AP126=AC170,AB170,\"\")))","v":""},false,false,true]
[null,null,null,null,null,null,null,null,null,null,null,null,null,null,null,null,null,null,null,null,null,{"$f":"N_Heure","v":"Time"},{"$f":"N_Table","v":"Table"},{"$f":"N_Arbitre","v":"Referee"},{"$f":"N_Matches","v":"Matches"},null,null,null,null,null,null,null,null,null,null,null,null,{"$f":"IF(COUNTA(Z128:Z172)>15,\"OK\",\"\")","v":""}]
[null,null,null,null,null,null,null,null,null,null,null,null,null,null,null,null,null,null,null,null,"#G1",null,null,null,{"$f":"IF(G121=\"\",\"\",G121)","v":"Db1"},{"$f":"IF(OR(ISNUMBER(Z129),ISNUMBER(Z130)),2-COUNTBLANK(AI129:AI130),\"\")","v":""},"-",{"$f":"IF(OR(ISNUMBER(Z129),ISNUMBER(Z130)),2-COUNTBLANK(AJ129:AJ130),\"\")","v":""},{"$f":"IF(G126=\"\",\"\",G126)","v":"Db6"},null,{"$f":"IF(Z128=\"\",\"\",IF(Z128>AB128,Y128,IF(Z128=AB128,\"\",AC128)))","v":""},{"$f":"IF(Z128=\"\",\"\",IF(Z128=AB128,Y128,\"\"))","v":""},{"$f":"IF(Z128=\"\",\"\",IF(Z128=AB128,AC128,\"\"))","v":""},{"$f":"IF(Z128=\"\",\"\",IF(Z128<AB128,Y128,IF(Z128=AB128,\"\",AC128)))","v":""},{"$f":"IF(Z128=\"\",\"\",SUM(Z129:Z130))","v":""},{"$f":"IF(Z128=\"\",\"\",SUM(AB129:AB130))","v":""},{"$f":"CONCATENATE(AE128,AH128)","v":""}]
[null,null,null,null,null,null,null,null,null,null,null,null,null,null,null,null,null,null,null,null,null,null,null,null,null,null,"-",null,null,null,"","","","",{"$f":"IF(Z129=\"\",\"\",IF(Z129>AB129,Y128,\"\"))","v":""},{"$f":"IF(Z129=\"\",\"\",IF(Z129<AB129,AC128,\"\"))","v":""},""]
[null,null,null,null,null,null,null,null,null,null,null,null,null,null,null,null,null,null,null,null,null,null,null,null,null,null,"-",null,null,null,"","","","",{"$f":"IF(Z130=\"\",\"\",IF(Z130>AB130,Y128,\"\"))","v":""},{"$f":"IF(Z130=\"\",\"\",IF(Z130<AB130,AC128,\"\"))","v":""},""]
[null,null,null,null,null,null,null,null,null,null,null,null,null,null,null,null,null,null,null,null,"#G1",null,null,null,{"$f":"IF(G123=\"\",\"\",G123)","v":"Db3"},{"$f":"IF(OR(ISNUMBER(Z132),ISNUMBER(Z133)),2-COUNTBLANK(AI132:AI133),\"\")","v":""},"-",{"$f":"IF(OR(ISNUMBER(Z132),ISNUMBER(Z133)),2-COUNTBLANK(AJ132:AJ133),\"\")","v":""},{"$f":"IF(G125=\"\",\"\",G125)","v":"Db5"},null,"","","","",{"$f":"IF(Z131=\"\",\"\",SUM(Z132:Z133))","v":""},{"$f":"IF(Z131=\"\",\"\",SUM(AB132:AB133))","v":""},""]
[null,null,null,null,null,null,null,null,null,null,null,null,null,null,null,null,null,null,null,null,null,null,null,null,null,null,"-",null,null,null,"","","","",{"$f":"IF(Z132=\"\",\"\",IF(Z132>AB132,Y131,\"\"))","v":""},{"$f":"IF(Z132=\"\",\"\",IF(Z132<AB132,AC131,\"\"))","v":""},""]
[null,null,null,null,null,null,null,null,null,null,null,null,null,null,null,null,null,null,null,null,null,null,null,null,null,null,"-",null,null,null,"","","","",{"$f":"IF(Z133=\"\",\"\",IF(Z133>AB133,Y131,\"\"))","v":""},{"$f":"IF(Z133=\"\",\"\",IF(Z133<AB133,AC131,\"\"))","v":""},""]
[null,null,null,null,null,null,null,null,null,null,null,null,null,null,null,null,null,null,null,null,"#G2",null,null,null,{"$f":"IF(G122=\"\",\"\",G122)","v":"Db2"},{"$f":"IF(OR(ISNUMBER(Z135),ISNUMBER(Z136)),2-COUNTBLANK(AI135:AI136),\"\")","v":""},"-",{"$f":"IF(OR(ISNUMBER(Z135),ISNUMBER(Z136)),2-COUNTBLANK(AJ135:AJ136),\"\")","v":""},{"$f":"IF(G124=\"\",\"\",G124)","v":"Db4"},null,"","","","",{"$f":"IF(Z134=\"\",\"\",SUM(Z135:Z136))","v":""},{"$f":"IF(Z134=\"\",\"\",SUM(AB135:AB136))","v":""},""]
[null,null,null,null,null,null,null,null,null,null,null,null,null,null,null,null,null,null,null,null,null,null,null,null,null,null,"-",null,null,null,"","","","",{"$f":"IF(Z135=\"\",\"\",IF(Z135>AB135,Y134,\"\"))","v":""},{"$f":"IF(Z135=\"\",\"\",IF(Z135<AB135,AC134,\"\"))","v":""},""]
[null,null,null,null,null,null,null,null,null,null,null,null,null,null,null,null,null,null,null,null,null,null,null,null,null,null,"-",null,null,null,"","","","",{"$f":"IF(Z136=\"\",\"\",IF(Z136>AB136,Y134,\"\"))","v":""},{"$f":"IF(Z136=\"\",\"\",IF(Z136<AB136,AC134,\"\"))","v":""},""]
[null,null,null,null,null,null,null,null,null,null,null,null,null,null,null,null,null,null,null,null,"#G2",null,null,null,{"$f":"IF(G123=\"\",\"\",G123)","v":"Db3"},{"$f":"IF(OR(ISNUMBER(Z138),ISNUMBER(Z139)),2-COUNTBLANK(AI138:AI139),\"\")","v":""},"-",{"$f":"IF(OR(ISNUMBER(Z138),ISNUMBER(Z139)),2-COUNTBLANK(AJ138:AJ139),\"\")","v":""},{"$f":"IF(G126=\"\",\"\",G126)","v":"Db6"},null,"","","","",{"$f":"IF(Z137=\"\",\"\",SUM(Z138:Z139))","v":""},{"$f":"IF(Z137=\"\",\"\",SUM(AB138:AB139))","v":""},""]
[null,null,null,null,null,null,null,null,null,null,null,null,null,null,null,null,null,null,null,null,null,null,null,null,null,null,"-",null,null,null,"","","","",{"$f":"IF(Z138=\"\",\"\",IF(Z138>AB138,Y137,\"\"))","v":""},{"$f":"IF(Z138=\"\",\"\",IF(Z138<AB138,AC137,\"\"))","v":""},""]
[null,null,null,null,null,null,null,null,null,null,null,null,null,null,null,null,null,null,null,null,null,null,null,null,null,null,"-",null,null,null,"","","","",{"$f":"IF(Z139=\"\",\"\",IF(Z139>AB139,Y137,\"\"))","v":""},{"$f":"IF(Z139=\"\",\"\",IF(Z139<AB139,AC137,\"\"))","v":""},""]
[null,null,null,null,null,null,null,null,null,null,null,null,null,null,null,null,null,null,null,null,"#G3",null,null,null,{"$f":"IF(G122=\"\",\"\",G122)","v":"Db2"},{"$f":"IF(OR(ISNUMBER(Z141),ISNUMBER(Z142)),2-COUNTBLANK(AI141:AI142),\"\")","v":""},"-",{"$f":"IF(OR(ISNUMBER(Z141),ISNUMBER(Z142)),2-COUNTBLANK(AJ141:AJ142),\"\")","v":""},{"$f":"IF(G125=\"\",\"\",G125)","v":"Db5"},null,"","","","",{"$f":"IF(Z140=\"\",\"\",SUM(Z141:Z142))","v":""},{"$f":"IF(Z140=\"\",\"\",SUM(AB141:AB142))","v":""},""]
[null,null,null,null,null,null,null,null,null,null,null,null,null,null,null,null,null,null,null,null,null,null,null,null,null,null,"-",null,null,null,"","","","",{"$f":"IF(Z141=\"\",\"\",IF(Z141>AB141,Y140,\"\"))","v":""},{"$f":"IF(Z141=\"\",\"\",IF(Z141<AB141,AC140,\"\"))","v":""},""]
[null,null,null,null,null,null,null,null,null,null,null,null,null,null,null,null,null,null,null,null,null,null,null,null,null,null,"-",null,null,null,"","","","",{"$f":"IF(Z142=\"\",\"\",IF(Z142>AB142,Y140,\"\"))","v":""},{"$f":"IF(Z142=\"\",\"\",IF(Z142<AB142,AC140,\"\"))","v":""},""]
[null,null,null,null,null,null,null,null,null,null,null,null,null,null,null,null,null,null,null,null,"#G3",null,null,null,{"$f":"IF(G121=\"\",\"\",G121)","v":"Db1"},{"$f":"IF(OR(ISNUMBER(Z144),ISNUMBER(Z145)),2-COUNTBLANK(AI144:AI145),\"\")","v":""},"-",{"$f":"IF(OR(ISNUMBER(Z144),ISNUMBER(Z145)),2-COUNTBLANK(AJ144:AJ145),\"\")","v":""},{"$f":"IF(G124=\"\",\"\",G124)","v":"Db4"},null,"","","","",{"$f":"IF(Z143=\"\",\"\",SUM(Z145:Z157))","v":""},{"$f":"IF(Z143=\"\",\"\",SUM(AB145:AB157))","v":""},""]
[null,null,null,null,null,null,null,null,null,null,null,null,null,null,null,null,null,null,null,null,null,null,null,null,null,null,"-",null,null,null,{"$f":"IF(Z144=\"\",\"\",IF(Z144>AB144,Y144,IF(Z144=AB144,\"\",AC144)))","v":""},{"$f":"IF(Z144=\"\",\"\",IF(Z144=AB144,Y144,\"\"))","v":""},{"$f":"IF(Z144=\"\",\"\",IF(Z144=AB144,AC144,\"\"))","v":""},{"$f":"IF(Z144=\"\",\"\",IF(Z144<AB144,Y144,IF(Z144=AB144,\"\",AC144)))","v":""},{"$f":"IF(Z144=\"\",\"\",IF(Z144>AB144,Y143,\"\"))","v":""},{"$f":"IF(Z144=\"\",\"\",IF(Z144<AB144,AC143,\"\"))","v":""},{"$f":"CONCATENATE(AE144,AH144)","v":""}]
[null,null,null,null,null,null,null,null,null,null,null,null,null,null,null,null,null,null,null,null,null,null,null,null,null,null,"-",null,null,null,"","","","",{"$f":"IF(Z145=\"\",\"\",IF(Z145>AB145,Y143,\"\"))","v":""},{"$f":"IF(Z145=\"\",\"\",IF(Z145<AB145,AC143,\"\"))","v":""},""]
[null,null,null,null,null,null,null,null,null,null,null,null,null,null,null,null,null,null,null,null,"#G4",null,null,null,{"$f":"IF(G121=\"\",\"\",G121)","v":"Db1"},{"$f":"IF(OR(ISNUMBER(Z147),ISNUMBER(Z148)),2-COUNTBLANK(AI147:AI148),\"\")","v":""},"-",{"$f":"IF(OR(ISNUMBER(Z147),ISNUMBER(Z148)),2-COUNTBLANK(AJ147:AJ148),\"\")","v":""},{"$f":"IF(G125=\"\",\"\",G125)","v":"Db5"},null,"","","","",{"$f":"IF(Z146=\"\",\"\",SUM(Z147:Z148))","v":""},{"$f":"IF(Z146=\"\",\"\",SUM(AB147:AB148))","v":""},""]
[null,null,null,null,null,null,null,null,null,null,null,null,null,null,null,null,null,null,null,null,null,null,null,null,null,null,"-",null,null,null,"","","","",{"$f":"IF(Z147=\"\",\"\",IF(Z147>AB147,Y146,\"\"))","v":""},{"$f":"IF(Z147=\"\",\"\",IF(Z147<AB147,AC146,\"\"))","v":""},""]
[null,null,null,null,null,null,null,null,null,null,null,null,null,null,null,null,null,null,null,null,null,null,null,null,null,null,"-",null,null,null,"","","","",{"$f":"IF(Z148=\"\",\"\",IF(Z148>AB148,Y146,\"\"))","v":""},{"$f":"IF(Z148=\"\",\"\",IF(Z148<AB148,AC146,\"\"))","v":""},""]
[null,null,null,null,null,null,null,null,null,null,null,null,null,null,null,null,null,null,null,null,"#G4",null,null,null,{"$f":"IF(G122=\"\",\"\",G122)","v":"Db2"},{"$f":"IF(OR(ISNUMBER(Z150),ISNUMBER(Z151)),2-COUNTBLANK(AI150:AI151),\"\")","v":""},"-",{"$f":"IF(OR(ISNUMBER(Z150),ISNUMBER(Z151)),2-COUNTBLANK(AJ150:AJ151),\"\")","v":""},{"$f":"IF(G123=\"\",\"\",G123)","v":"Db3"},null,"","","","",{"$f":"IF(Z149=\"\",\"\",SUM(Z150:Z151))","v":""},{"$f":"IF(Z149=\"\",\"\",SUM(AB150:AB151))","v":""},""]
[null,null,null,null,null,null,null,null,null,null,null,null,null,null,null,null,null,null,null,null,null,null,null,null,null,null,"-",null,null,null,"","","","",{"$f":"IF(Z150=\"\",\"\",IF(Z150>AB150,Y149,\"\"))","v":""},{"$f":"IF(Z150=\"\",\"\",IF(Z150<AB150,AC149,\"\"))","v":""},""]
[null,null,null,null,null,null,null,null,null,null,null,null,null,null,null,null,null,null,null,null,null,null,null,null,null,null,"-",null,null,null,"","","","",{"$f":"IF(Z151=\"\",\"\",IF(Z151>AB151,Y149,\"\"))","v":""},{"$f":"IF(Z151=\"\",\"\",IF(Z151<AB151,AC149,\"\"))","v":""},""]
[null,null,null,null,null,null,null,null,null,null,null,null,null,null,null,null,null,null,null,null,"#G5",null,null,null,{"$f":"IF(G124=\"\",\"\",G124)","v":"Db4"},{"$f":"IF(OR(ISNUMBER(Z153),ISNUMBER(Z154)),2-COUNTBLANK(AI153:AI154),\"\")","v":""},"-",{"$f":"IF(OR(ISNUMBER(Z153),ISNUMBER(Z154)),2-COUNTBLANK(AJ153:AJ154),\"\")","v":""},{"$f":"IF(G126=\"\",\"\",G126)","v":"Db6"},null,"","","","",{"$f":"IF(Z152=\"\",\"\",SUM(Z153:Z154))","v":""},{"$f":"IF(Z152=\"\",\"\",SUM(AB153:AB154))","v":""},""]
[null,null,null,null,null,null,null,null,null,null,null,null,null,null,null,null,null,null,null,null,null,null,null,null,null,null,"-",null,null,null,"","","","",{"$f":"IF(Z153=\"\",\"\",IF(Z153>AB153,Y152,\"\"))","v":""},{"$f":"IF(Z153=\"\",\"\",IF(Z153<AB153,AC152,\"\"))","v":""},""]
[null,null,null,null,null,null,null,null,null,null,null,null,null,null,null,null,null,null,null,null,null,null,null,null,null,null,"-",null,null,null,"","","","",{"$f":"IF(Z154=\"\",\"\",IF(Z154>AB154,Y152,\"\"))","v":""},{"$f":"IF(Z154=\"\",\"\",IF(Z154<AB154,AC152,\"\"))","v":""},""]
[null,null,null,null,null,null,null,null,null,null,null,null,null,null,null,null,null,null,null,null,"#G5",null,null,null,{"$f":"IF(G121=\"\",\"\",G121)","v":"Db1"},{"$f":"IF(OR(ISNUMBER(Z156),ISNUMBER(Z157)),2-COUNTBLANK(AI156:AI157),\"\")","v":""},"-",{"$f":"IF(OR(ISNUMBER(Z156),ISNUMBER(Z157)),2-COUNTBLANK(AJ156:AJ157),\"\")","v":""},{"$f":"IF(G123=\"\",\"\",G123)","v":"Db3"},null,"","","","",{"$f":"IF(Z155=\"\",\"\",SUM(Z156:Z157))","v":""},{"$f":"IF(Z155=\"\",\"\",SUM(AB156:AB157))","v":""},""]
[null,null,null,null,null,null,null,null,null,null,null,null,null,null,null,null,null,null,null,null,null,null,null,null,null,null,"-",null,null,null,"","","","",{"$f":"IF(Z156=\"\",\"\",IF(Z156>AB156,Y155,\"\"))","v":""},{"$f":"IF(Z156=\"\",\"\",IF(Z156<AB156,AC155,\"\"))","v":""},""]
[null,null,null,null,null,null,null,null,null,null,null,null,null,null,null,null,null,null,null,null,null,null,null,null,null,null,"-",null,null,null,"","","","",{"$f":"IF(Z157=\"\",\"\",IF(Z157>AB157,Y155,\"\"))","v":""},{"$f":"IF(Z157=\"\",\"\",IF(Z157<AB157,AC155,\"\"))","v":""},""]
[null,null,null,null,null,null,null,null,null,null,null,null,null,null,null,null,null,null,null,null,"#G6",null,null,null,{"$f":"IF(G122=\"\",\"\",G122)","v":"Db2"},{"$f":"IF(OR(ISNUMBER(Z159),ISNUMBER(Z160)),2-COUNTBLANK(AI159:AI160),\"\")","v":""},"-",{"$f":"IF(OR(ISNUMBER(Z159),ISNUMBER(Z160)),2-COUNTBLANK(AJ159:AJ160),\"\")","v":""},{"$f":"IF(G126=\"\",\"\",G126)","v":"Db6"},null,"","","","",{"$f":"IF(Z158=\"\",\"\",SUM(Z160:Z172))","v":""},{"$f":"IF(Z158=\"\",\"\",SUM(AB160:AB172))","v":""},""]
[null,null,null,null,null,null,null,null,null,null,null,null,null,null,null,null,null,null,null,null,null,null,null,null,null,null,"-",null,"",null,"","","","",{"$f":"IF(Z159=\"\",\"\",IF(Z159>AB159,Y158,\"\"))","v":""},{"$f":"IF(Z159=\"\",\"\",IF(Z159<AB159,AC158,\"\"))","v":""},""]
[null,null,null,null,null,null,null,null,null,null,null,null,null,null,null,null,null,null,null,null,null,null,null,null,null,null,"-",null,"",null,"","","","",{"$f":"IF(Z160=\"\",\"\",IF(Z160>AB160,Y158,\"\"))","v":""},{"$f":"IF(Z160=\"\",\"\",IF(Z160<AB160,AC158,\"\"))","v":""},""]
[null,null,null,null,null,null,null,null,null,null,null,null,null,null,null,null,null,null,null,null,"#G6",null,null,null,{"$f":"IF(G124=\"\",\"\",G124)","v":"Db4"},{"$f":"IF(OR(ISNUMBER(Z162),ISNUMBER(Z163)),2-COUNTBLANK(AI162:AI163),\"\")","v":""},"-",{"$f":"IF(OR(ISNUMBER(Z162),ISNUMBER(Z163)),2-COUNTBLANK(AJ162:AJ163),\"\")","v":""},{"$f":"IF(G125=\"\",\"\",G125)","v":"Db5"},null,{"$f":"IF(Z161=\"\",\"\",IF(Z161>AB161,Y161,IF(Z161=AB161,\"\",AC161)))","v":""},{"$f":"IF(Z161=\"\",\"\",IF(Z161=AB161,Y161,\"\"))","v":""},{"$f":"IF(Z161=\"\",\"\",IF(Z161=AB161,AC161,\"\"))","v":""},{"$f":"IF(Z161=\"\",\"\",IF(Z161<AB161,Y161,IF(Z161=AB161,\"\",AC161)))","v":""},{"$f":"IF(Z161=\"\",\"\",SUM(Z162:Z163))","v":""},{"$f":"IF(Z161=\"\",\"\",SUM(AB162:AB163))","v":""},{"$f":"CONCATENATE(AE161,AH161)","v":""}]
[null,null,null,null,null,null,null,null,null,null,null,null,null,null,null,null,null,null,null,null,null,null,null,null,{"$f":"IF(G128=\"\",\"\",G128)","v":""},null,"-",null,"",null,"","","","",{"$f":"IF(Z162=\"\",\"\",IF(Z162>AB162,Y161,\"\"))","v":""},{"$f":"IF(Z162=\"\",\"\",IF(Z162<AB162,AC161,\"\"))","v":""},""]
[null,null,null,null,null,null,null,null,null,null,null,null,null,null,null,null,null,null,null,null,null,null,null,null,"",null,"-",null,"",null,"","","","",{"$f":"IF(Z163=\"\",\"\",IF(Z163>AB163,Y161,\"\"))","v":""},{"$f":"IF(Z163=\"\",\"\",IF(Z163<AB163,AC161,\"\"))","v":""},""]
[null,null,null,null,null,null,null,null,null,null,null,null,null,null,null,null,null,null,null,null,"#G7",null,null,null,{"$f":"IF(G125=\"\",\"\",G125)","v":"Db5"},{"$f":"IF(OR(ISNUMBER(Z165),ISNUMBER(Z166)),2-COUNTBLANK(AI165:AI166),\"\")","v":""},"-",{"$f":"IF(OR(ISNUMBER(Z165),ISNUMBER(Z166)),2-COUNTBLANK(AJ165:AJ166),\"\")","v":""},{"$f":"IF(G126=\"\",\"\",G126)","v":"Db6"},null,"","","","",{"$f":"IF(Z164=\"\",\"\",SUM(Z165:Z166))","v":""},{"$f":"IF(Z164=\"\",\"\",SUM(AB165:AB166))","v":""},""]
[null,null,null,null,null,null,null,null,null,null,null,null,null,null,null,null,null,null,null,null,null,null,null,null,"",null,"-",null,"",null,"","","","",{"$f":"IF(Z165=\"\",\"\",IF(Z165>AB165,Y164,\"\"))","v":""},{"$f":"IF(Z165=\"\",\"\",IF(Z165<AB165,AC164,\"\"))","v":""},""]
[null,null,null,null,null,null,null,null,null,null,null,null,null,null,null,null,null,null,null,null,null,null,null,null,"",null,"-",null,"",null,"","","","",{"$f":"IF(Z166=\"\",\"\",IF(Z166>AB166,Y164,\"\"))","v":""},{"$f":"IF(Z166=\"\",\"\",IF(Z166<AB166,AC164,\"\"))","v":""},""]
[null,null,null,null,null,null,null,null,null,null,null,null,null,null,null,null,null,null,null,null,"#G8",null,null,null,{"$f":"IF(G123=\"\",\"\",G123)","v":"Db3"},{"$f":"IF(OR(ISNUMBER(Z168),ISNUMBER(Z169)),2-COUNTBLANK(AI168:AI169),\"\")","v":""},"-",{"$f":"IF(OR(ISNUMBER(Z168),ISNUMBER(Z169)),2-COUNTBLANK(AJ168:AJ169),\"\")","v":""},{"$f":"IF(G124=\"\",\"\",G124)","v":"Db4"},null,"","","","",{"$f":"IF(Z167=\"\",\"\",SUM(Z168:Z169))","v":""},{"$f":"IF(Z167=\"\",\"\",SUM(AB168:AB169))","v":""},""]
[null,null,null,null,null,null,null,null,null,null,null,null,null,null,null,null,null,null,null,null,null,null,null,null,"",null,"-",null,"",null,"","","","",{"$f":"IF(Z168=\"\",\"\",IF(Z168>AB168,Y167,\"\"))","v":""},{"$f":"IF(Z168=\"\",\"\",IF(Z168<AB168,AC167,\"\"))","v":""},""]
[null,null,null,null,null,null,null,null,null,null,null,null,null,null,null,null,null,null,null,null,null,null,null,null,"",null,"-",null,"",null,"","","","",{"$f":"IF(Z169=\"\",\"\",IF(Z169>AB169,Y167,\"\"))","v":""},{"$f":"IF(Z169=\"\",\"\",IF(Z169<AB169,AC167,\"\"))","v":""},""]
[null,null,null,null,null,null,null,null,null,null,null,null,null,null,null,null,null,null,null,null,"#G8",null,null,null,{"$f":"IF(G121=\"\",\"\",G121)","v":"Db1"},{"$f":"IF(OR(ISNUMBER(Z171),ISNUMBER(Z172)),2-COUNTBLANK(AI171:AI172),\"\")","v":""},"-",{"$f":"IF(OR(ISNUMBER(Z171),ISNUMBER(Z172)),2-COUNTBLANK(AJ171:AJ172),\"\")","v":""},{"$f":"IF(G122=\"\",\"\",G122)","v":"Db2"},null,"","","","",{"$f":"IF(Z170=\"\",\"\",SUM(Z171:Z172))","v":""},{"$f":"IF(Z170=\"\",\"\",SUM(AB171:AB172))","v":""},""]
[null,null,null,null,null,null,null,null,null,null,null,null,null,null,null,null,null,null,null,null,null,null,null,null,null,null,"-",null,null,null,"","","","",{"$f":"IF(Z171=\"\",\"\",IF(Z171>AB171,Y170,\"\"))","v":""},{"$f":"IF(Z171=\"\",\"\",IF(Z171<AB171,AC170,\"\"))","v":""},""]
[null,null,null,null,null,null,null,null,null,null,null,null,null,null,null,null,null,null,null,null,null,null,null,null,null,null,"-",null,null,null,"","","","",{"$f":"IF(Z172=\"\",\"\",IF(Z172>AB172,Y170,\"\"))","v":""},{"$f":"IF(Z172=\"\",\"\",IF(Z172<AB172,AC170,\"\"))","v":""},""]

{"sheet":"Team Groups","index":20,"n_rows":702,"n_cols":88,"rows_kept":702,"cut":false,"hidden":true,"merged":[]}
[null,null,null,{"$f":"Event6","v":"U12"}]
[null,null,null,"Team",null,null,null,null,null,null,null,null,null,null,null,null,null,null,null,null,null,null,null,null,{"$f":"SHEETNAME(A1)","v":"Team Groups"},null,null,null,null,null,null,null,null,null,null,null,null,null,null,null,null,null,null,null,null,null,null,null,null,null,null,null,null,null,null,null,null,null,null,null,null,null,null,null,null,null,null,null,null,null,null,null,null,null,null,null,null,null,null,null,null,null,null,null,null,null,null,"Don't suppress cells above"]
[null,null,null,null,null,null,"Team",null,null,null,null,null,null,null,null,null,null,null,null,null,null,null,null,null,null,null,null,null,null,null,null,null,null,null,null,null,null,null,null,null,null,null,null,null,null,null,null,null,null,null,null,null,null,null,null,null,null,null,null,null,null,null,null,null,null,null,null,null,null,null,null,null,null,null,null,null,null,null,null,null,null,null,null,null,null,null,null,{"$f":"COUNTA(CJ4:CJ67)-COUNTIF(CJ4:CJ67,\"\")","v":0}]
[null,{"$f":"N_Group_3","v":"Group of 3"},null,null,null,null,null,null,null,null,null,null,null,null,null,null,null,null,null,null,null,null,null,null,null,null,null,null,null,null,null,null,null,null,null,null,null,null,null,{"$f":"B4","v":"Group of 3"},null,null,null,null,null,null,null,null,null,null,null,null,null,null,null,null,null,null,null,null,null,null,null,null,null,null,null,null,null,null,null,null,null,null,null,null,null,null,null,null,null,null,"Hidden columns for conditionnal formats => don't modify",null,null,null,null,{"$f":"TEAMLISTEVT(Particular_Category)","v":""}]
[null,null,null,null,null,null,null,null,null,null,null,null,null,null,null,null,null,null,null,null,null,null,null,null,null,null,null,null,null,null,null,null,null,null,null,null,null,null,null,null,null,null,null,null,null,null,null,null,null,null,null,null,null,null,null,null,null,null,null,null,null,null,null,null,null,null,null,null,null,null,null,null,null,null,null,null,null,null,null,null,null,null,null,null,null,null,null,""]
[null,{"$f":"N_Tirage","v":"Draw"},"Cla.","Cla1","Part","Cla2",{"$f":"N_Equipes","v":"Teams"},{"$f":"N_Pts","v":"Pts"},{"$f":"N_J","v":"Pld"},{"$f":"N_G","v":"W"},{"$f":"N_N","v":"D"},{"$f":"N_P","v":"L"},{"$f":"N_Diff_R","v":"ED"},{"$f":"N_MP","v":"WM"},{"$f":"N_MC","v":"LM"},{"$f":"N_Diff_M","v":"MD"},{"$f":"N_BP","v":"F"},{"$f":"N_BC","v":"A"},{"$f":"N_Diff_B","v":"GD"},null,null,null,null,null,null,null,null,null,null,null,null,null,null,null,null,null,null,null,null,null,{"$f":"N_Cla.","v":"Rk"},{"$f":"N_Equipes","v":"Teams"},{"$f":"N_Pts","v":"Pts"},{"$f":"N_J","v":"Pld"},{"$f":"N_G","v":"W"},{"$f":"N_N","v":"D"},{"$f":"N_P","v":"L"},{"$f":"N_Diff_R","v":"ED"},{"$f":"N_MP","v":"WM"},{"$f":"N_MC","v":"LM"},{"$f":"N_Diff_M","v":"MD"},{"$f":"N_BP","v":"F"},{"$f":"N_BC","v":"A"},{"$f":"N_Diff_B","v":"GD"},{"$f":"N_Matches","v":"Matches"},null,null,null,null,null,null,null,null,null,null,null,null,null,null,null,null,null,null,null,null,null,null,null,null,null,null,null,null,null,null,null,null,""]
[null,1,{"$f":"IF(AL10=\"\",\"\",RANK(F7,F7:F9)*1000+ROW())","v":""},{"$f":"IF(J7=\"\",\"\",H7*CritClassEq1_Points+M7*CritClassEq1_DiffRencontres+P7*CritClassEq1_DiffMatches+S7*CritClassEq1_DiffButs+N7*CritClassEq1_Matches+Q7*CritClassEq1_Attaque)","v":""},{"$f":"IF(J7=\"\",\"\",Nb_Diff_Part(D7,D7:D9,G7,G7:G9,AK11:AK29)*CritClassEq_DiffPart+Nb_Goal_Part(D7,D7:D9,G7,G7:G9,Y11:AC29)*CritClassEq_IndsPart+Nb_Score_Part(D7,D7:D9,G7,G7:G9,Y11:AC29)*CritClassEq_WinsPart+Nb_GoalTeam_Part(D7,D7:D9,G7,G7:G9,Y11:AC29)*CritClassEq_GoalPart+Nb_ScoreTeam_Part(D7,D7:D9,G7,G7:G9,Y11:AC29)*CritClassEq_ScorePart)","v":""},{"$f":"IF(J7=\"\",\"\",D7+E7+H7*CritClassEq2_Points+M7*CritClassEq2_DiffRencontres+P7*CritClassEq2_DiffMatches+S7*CritClassEq2_DiffButs+N7*CritClassEq2_Matches+Q7*CritClassEq2_Attaque)","v":""},"Eq1",{"$f":"IF(AL10=\"\",\"\",(J7*Points_Victoire)+K7*Points_Null)","v":""},{"$f":"IF(J7=\"\",\"\",SUM(J7:L7))","v":""},{"$f":"IF(AL10=\"\",\"\",COUNTIF(AE11:AE25,G7))","v":""},{"$f":"IF(AL10=\"\",\"\",COUNTIF(AF11:AG25,G7))","v":""},{"$f":"IF(AL10=\"\",\"\",COUNTIF(AH11:AH25,G7))","v":""},{"$f":"IF(AL10=\"\",\"\",J7-L7)","v":""},{"$f":"IF(AL10=\"\",\"\",SUMIF(Y11:Y25,G7,Z11:Z25)+SUMIF(AC11:AC25,G7,AB11:AB25))","v":""},{"$f":"IF(AL10=\"\",\"\",SUMIF(Y11:Y25,G7,AB11:AB25)+SUMIF(AC11:AC25,G7,Z11:AL25))","v":""},{"$f":"IF(AL10=\"\",\"\",N7-O7)","v":""},{"$f":"IF(AL10=\"\",\"\",SUMIF(Y11:Y29,G7,AI11:AI29)+SUMIF(AC11:AC29,G7,AJ11:AJ29))","v":""},{"$f":"IF(AL10=\"\",\"\",SUMIF(Y11:Y29,G7,AJ11:AJ29)+SUMIF(AC11:AC29,G7,AI11:AI29))","v":""},{"$f":"IF(AL10=\"\",\"\",Q7-R7)","v":""},null,null,null,null,null,null,null,null,null,null,null,null,null,null,null,null,null,null,{"$f":"IF(AL10=\"\",\"\",SMALL(C7:C9,1))","v":""},null,null,{"$f":"IF(AL10=\"\",\"\",INT(AL7/1000))","v":""},{"$f":"IF(AL10=\"\",IF(HidePlayerFormulas,\"\",\"(\"&G7&\")\"),VLOOKUP(AL7,C7:S9,5,FALSE))","v":""},{"$f":"VLOOKUP(AL7,C7:S9,6,FALSE)","v":""},{"$f":"VLOOKUP(AL7,C7:S9,7,FALSE)","v":""},{"$f":"VLOOKUP(AL7,C7:S9,8,FALSE)","v":""},{"$f":"VLOOKUP(AL7,C7:S9,9,FALSE)","v":""},{"$f":"VLOOKUP(AL7,C7:S9,10,FALSE)","v":""},{"$f":"VLOOKUP(AL7,C7:S9,11,FALSE)","v":""},{"$f":"VLOOKUP(AL7,C7:S9,12,FALSE)","v":""},{"$f":"VLOOKUP(AL7,C7:S9,13,FALSE)","v":""},{"$f":"VLOOKUP(AL7,C7:S9,14,FALSE)","v":""},{"$f":"VLOOKUP(AL7,C7:S9,15,FALSE)","v":""},{"$f":"VLOOKUP(AL7,C7:S9,16,FALSE)","v":""},{"$f":"VLOOKUP(AL7,C7:S9,17,FALSE)","v":""},{"$f":"IF(Z11=\"\",\"\",IF(AP7=Y11,Z11&\"(\"&SUM(Z12:Z15)&\")\",IF(AP7=AC11,AB11&\"(\"&SUM(AB12:AB15)&\")\",\"\")))","v":""},{"$f":"IF(Z18=\"\",\"\",IF(AP7=Y18,Z18&\"(\"&SUM(Z19:Z22)&\")\",IF(AP7=AC18,AB18&\"(\"&SUM(AB19:AB22)&\")\",\"\")))","v":""},{"$f":"IF(Z25=\"\",\"\",IF(AP7=Y25,Z25&\"(\"&SUM(Z26:Z29)&\")\",IF(AP7=AC25,AB25&\"(\"&SUM(AB26:AB29)&\")\",\"\")))","v":""},null,null,null,null,null,null,null,null,null,null,null,null,null,null,null,null,null,null,null,null,null,null,null,null,null,{"$f":"IF(G7=\"[---WithDraw---]\",FALSE,IF(COUNTIF(PlayerNamesWithinGroups,G7)>1,TRUE,FALSE))","v":true},{"$f":"AND(LEFT($AP7,1) = \"(\", RIGHT($AP7,1) =\")\")","v":false},{"$f":"IF(OR($AO7=$AO6,$AO7=$AO8),TRUE,FALSE)","v":true},null,null,""]
[null,2,{"$f":"IF(AL10=\"\",\"\",RANK(F8,F7:F9)*1000+ROW())","v":""},{"$f":"IF(J8=\"\",\"\",H8*CritClassEq1_Points+M8*CritClassEq1_DiffRencontres+P8*CritClassEq1_DiffMatches+S8*CritClassEq1_DiffButs+N8*CritClassEq1_Matches+Q8*CritClassEq1_Attaque)","v":""},{"$f":"IF(J8=\"\",\"\",Nb_Diff_Part(D8,D7:D9,G8,G7:G9,AK11:AK29)*CritClassEq_DiffPart+Nb_Goal_Part(D8,D7:D9,G8,G7:G9,Y11:AC29)*CritClassEq_IndsPart+Nb_Score_Part(D8,D7:D9,G8,G7:G9,Y11:AC29)*CritClassEq_WinsPart+Nb_GoalTeam_Part(D8,D7:D9,G8,G7:G9,Y11:AC29)*CritClassEq_GoalPart+Nb_ScoreTeam_Part(D8,D7:D9,G8,G7:G9,Y11:AC29)*CritClassEq_ScorePart)","v":""},{"$f":"IF(J8=\"\",\"\",D8+E8+H8*CritClassEq2_Points+M8*CritClassEq2_DiffRencontres+P8*CritClassEq2_DiffMatches+S8*CritClassEq2_DiffButs+N8*CritClassEq2_Matches+Q8*CritClassEq2_Attaque)","v":""},"Eq2",{"$f":"IF(AL10=\"\",\"\",(J8*Points_Victoire)+K8*Points_Null)","v":""},{"$f":"IF(J8=\"\",\"\",SUM(J8:L8))","v":""},{"$f":"IF(AL10=\"\",\"\",COUNTIF(AE11:AE25,G8))","v":""},{"$f":"IF(AL10=\"\",\"\",COUNTIF(AF11:AG25,G8))","v":""},{"$f":"IF(AL10=\"\",\"\",COUNTIF(AH11:AH25,G8))","v":""},{"$f":"IF(AL10=\"\",\"\",J8-L8)","v":""},{"$f":"IF(AL10=\"\",\"\",SUMIF(Y11:Y25,G8,Z11:Z25)+SUMIF(AC11:AC25,G8,AB11:AB25))","v":""},{"$f":"IF(AL10=\"\",\"\",SUMIF(Y11:Y25,G8,AB11:AB25)+SUMIF(AC11:AC25,G8,Z11:AL25))","v":""},{"$f":"IF(AL10=\"\",\"\",N8-O8)","v":""},{"$f":"IF(AL10=\"\",\"\",SUMIF(Y11:Y29,G8,AI11:AI29)+SUMIF(AC11:AC29,G8,AJ11:AJ29))","v":""},{"$f":"IF(AL10=\"\",\"\",SUMIF(Y11:Y29,G8,AJ11:AJ29)+SUMIF(AC11:AC29,G8,AI11:AI29))","v":""},{"$f":"IF(AL10=\"\",\"\",Q8-R8)","v":""},null,null,null,null,null,null,null,null,null,null,null,null,null,null,null,null,null,null,{"$f":"IF(AL10=\"\",\"\",SMALL(C7:C9,2))","v":""},null,null,{"$f":"IF(AL10=\"\",\"\",INT(AL8/1000))","v":""},{"$f":"IF(AL10=\"\",IF(HidePlayerFormulas,\"\",\"(\"&G8&\")\"),VLOOKUP(AL8,C7:S9,5,FALSE))","v":""},{"$f":"VLOOKUP(AL8,C7:S9,6,FALSE)","v":""},{"$f":"VLOOKUP(AL8,C7:S9,7,FALSE)","v":""},{"$f":"VLOOKUP(AL8,C7:S9,8,FALSE)","v":""},{"$f":"VLOOKUP(AL8,C7:S9,9,FALSE)","v":""},{"$f":"VLOOKUP(AL8,C7:S9,10,FALSE)","v":""},{"$f":"VLOOKUP(AL8,C7:S9,11,FALSE)","v":""},{"$f":"VLOOKUP(AL8,C7:S9,12,FALSE)","v":""},{"$f":"VLOOKUP(AL8,C7:S9,13,FALSE)","v":""},{"$f":"VLOOKUP(AL8,C7:S9,14,FALSE)","v":""},{"$f":"VLOOKUP(AL8,C7:S9,15,FALSE)","v":""},{"$f":"VLOOKUP(AL8,C7:S9,16,FALSE)","v":""},{"$f":"VLOOKUP(AL8,C7:S9,17,FALSE)","v":""},{"$f":"IF(Z11=\"\",\"\",IF(AP8=Y11,Z11&\"(\"&SUM(Z12:Z15)&\")\",IF(AP8=AC11,AB11&\"(\"&SUM(AB12:AB15)&\")\",\"\")))","v":""},{"$f":"IF(Z18=\"\",\"\",IF(AP8=Y18,Z18&\"(\"&SUM(Z19:Z22)&\")\",IF(AP8=AC18,AB18&\"(\"&SUM(AB19:AB22)&\")\",\"\")))","v":""},{"$f":"IF(Z25=\"\",\"\",IF(AP8=Y25,Z25&\"(\"&SUM(Z26:Z29)&\")\",IF(AP8=AC25,AB25&\"(\"&SUM(AB26:AB29)&\")\",\"\")))","v":""},null,null,null,null,null,null,null,null,null,null,null,null,null,null,null,null,null,null,null,null,null,null,null,null,null,{"$f":"IF(G8=\"[---WithDraw---]\",FALSE,IF(COUNTIF(PlayerNamesWithinGroups,G8)>1,TRUE,FALSE))","v":true},{"$f":"AND(LEFT($AP8,1) = \"(\", RIGHT($AP8,1) =\")\")","v":false},{"$f":"IF(OR($AO8=$AO7,$AO8=$AO9),TRUE,FALSE)","v":true},null,null,""]
[null,3,{"$f":"IF(AL10=\"\",\"\",RANK(F9,F7:F9)*1000+ROW())","v":""},{"$f":"IF(J9=\"\",\"\",H9*CritClassEq1_Points+M9*CritClassEq1_DiffRencontres+P9*CritClassEq1_DiffMatches+S9*CritClassEq1_DiffButs+N9*CritClassEq1_Matches+Q9*CritClassEq1_Attaque)","v":""},{"$f":"IF(J9=\"\",\"\",Nb_Diff_Part(D9,D7:D9,G9,G7:G9,AK11:AK29)*CritClassEq_DiffPart+Nb_Goal_Part(D9,D7:D9,G9,G7:G9,Y11:AC29)*CritClassEq_IndsPart+Nb_Score_Part(D9,D7:D9,G9,G7:G9,Y11:AC29)*CritClassEq_WinsPart+Nb_GoalTeam_Part(D9,D7:D9,G9,G7:G9,Y11:AC29)*CritClassEq_GoalPart+Nb_ScoreTeam_Part(D9,D7:D9,G9,G7:G9,Y11:AC29)*CritClassEq_ScorePart)","v":""},{"$f":"IF(J9=\"\",\"\",D9+E9+H9*CritClassEq2_Points+M9*CritClassEq2_DiffRencontres+P9*CritClassEq2_DiffMatches+S9*CritClassEq2_DiffButs+N9*CritClassEq2_Matches+Q9*CritClassEq2_Attaque)","v":""},"Eq3",{"$f":"IF(AL10=\"\",\"\",(J9*Points_Victoire)+K9*Points_Null)","v":""},{"$f":"IF(J9=\"\",\"\",SUM(J9:L9))","v":""},{"$f":"IF(AL10=\"\",\"\",COUNTIF(AE11:AE25,G9))","v":""},{"$f":"IF(AL10=\"\",\"\",COUNTIF(AF11:AG25,G9))","v":""},{"$f":"IF(AL10=\"\",\"\",COUNTIF(AH11:AH25,G9))","v":""},{"$f":"IF(AL10=\"\",\"\",J9-L9)","v":""},{"$f":"IF(AL10=\"\",\"\",SUMIF(Y11:Y25,G9,Z11:Z25)+SUMIF(AC11:AC25,G9,AB11:AB25))","v":""},{"$f":"IF(AL10=\"\",\"\",SUMIF(Y11:Y25,G9,AB11:AB25)+SUMIF(AC11:AC25,G9,Z11:AL25))","v":""},{"$f":"IF(AL10=\"\",\"\",N9-O9)","v":""},{"$f":"IF(AL10=\"\",\"\",SUMIF(Y11:Y29,G9,AI11:AI29)+SUMIF(AC11:AC29,G9,AJ11:AJ29))","v":""},{"$f":"IF(AL10=\"\",\"\",SUMIF(Y11:Y29,G9,AJ11:AJ29)+SUMIF(AC11:AC29,G9,AI11:AI29))","v":""},{"$f":"IF(AL10=\"\",\"\",Q9-R9)","v":""},null,null,null,null,null,null,null,null,null,null,null,null,null,null,null,null,null,null,{"$f":"IF(AL10=\"\",\"\",SMALL(C7:C9,3))","v":""},null,null,{"$f":"IF(AL10=\"\",\"\",INT(AL9/1000))","v":""},{"$f":"IF(AL10=\"\",IF(HidePlayerFormulas,\"\",\"(\"&G9&\")\"),VLOOKUP(AL9,C7:S9,5,FALSE))","v":""},{"$f":"VLOOKUP(AL9,C7:S9,6,FALSE)","v":""},{"$f":"VLOOKUP(AL9,C7:S9,7,FALSE)","v":""},{"$f":"VLOOKUP(AL9,C7:S9,8,FALSE)","v":""},{"$f":"VLOOKUP(AL9,C7:S9,9,FALSE)","v":""},{"$f":"VLOOKUP(AL9,C7:S9,10,FALSE)","v":""},{"$f":"VLOOKUP(AL9,C7:S9,11,FALSE)","v":""},{"$f":"VLOOKUP(AL9,C7:S9,12,FALSE)","v":""},{"$f":"VLOOKUP(AL9,C7:S9,13,FALSE)","v":""},{"$f":"VLOOKUP(AL9,C7:S9,14,FALSE)","v":""},{"$f":"VLOOKUP(AL9,C7:S9,15,FALSE)","v":""},{"$f":"VLOOKUP(AL9,C7:S9,16,FALSE)","v":""},{"$f":"VLOOKUP(AL9,C7:S9,17,FALSE)","v":""},{"$f":"IF(Z11=\"\",\"\",IF(AP9=Y11,Z11&\"(\"&SUM(Z12:Z15)&\")\",IF(AP9=AC11,AB11&\"(\"&SUM(AB12:AB15)&\")\",\"\")))","v":""},{"$f":"IF(Z18=\"\",\"\",IF(AP9=Y18,Z18&\"(\"&SUM(Z19:Z22)&\")\",IF(AP9=AC18,AB18&\"(\"&SUM(AB19:AB22)&\")\",\"\")))","v":""},{"$f":"IF(Z25=\"\",\"\",IF(AP9=Y25,Z25&\"(\"&SUM(Z26:Z29)&\")\",IF(AP9=AC25,AB25&\"(\"&SUM(AB26:AB29)&\")\",\"\")))","v":""},null,null,null,null,null,null,null,null,null,null,null,null,null,null,null,null,null,null,null,null,null,null,null,null,null,{"$f":"IF(G9=\"[---WithDraw---]\",FALSE,IF(COUNTIF(PlayerNamesWithinGroups,G9)>1,TRUE,FALSE))","v":true},{"$f":"AND(LEFT($AP9,1) = \"(\", RIGHT($AP9,1) =\")\")","v":false},{"$f":"IF(OR($AO9=$AO8,$AO9=$AO10),TRUE,FALSE)","v":true},null,null,""]
[null,null,null,null,null,null,null,null,null,null,null,null,null,null,null,null,null,null,null,null,null,{"$f":"N_Heure","v":"Time"},{"$f":"N_Table","v":"Table"},{"$f":"N_Arbitre","v":"Referee"},{"$f":"N_Matches","v":"Matches"},null,null,null,null,null,null,null,null,null,null,null,null,{"$f":"IF(COUNTA(Z11:Z29)>3,\"OK\",\"\")","v":""},null,null,null,null,null,null,null,null,null,null,null,null,null,null,null,null,null,null,null,null,null,null,null,null,null,null,null,null,null,null,null,null,null,null,null,null,null,null,null,null,null,null,null,null,null,null,null,null,null,""]
[null,null,null,null,null,null,null,null,null,null,null,null,null,null,null,null,null,null,null,null,"#G1",null,null,null,{"$f":"IF(COUNTA(G7:G9) =3,GMFTGROUPORDERTEAM(G7:G9,Y11:Y31,AC11:AC31),\"\")","v":"Eq3"},{"$f":"IF(OR(ISNUMBER(Z12),ISNUMBER(Z13),ISNUMBER(Z14),ISNUMBER(Z15)),4-COUNTBLANK(AI12:AI15),\"\")","v":""},"-",{"$f":"IF(OR(ISNUMBER(Z12),ISNUMBER(Z13),ISNUMBER(Z14),ISNUMBER(Z15)),4-COUNTBLANK(AJ12:AJ15),\"\")","v":""},{"$f":"IF(COUNTA(G7:G9) =3,GMFTGROUPORDERTEAM(G7:G9,Y11:Y31,AC11:AC31),\"\")","v":"Eq1"},null,{"$f":"IF(Z11=\"\",\"\",IF(Z11>AB11,Y11,IF(Z11=AB11,IF(NoDrawWithWithdraw,IF(AL11=Y11,AC11,IF(AL11=AC11,Y11,\"\")),\"\"),AC11)))","v":""},{"$f":"IF(Z11=\"\",\"\",IF(Z11=AB11,IF(NoDrawWithWithdraw,IF(AL11=Y11,\"\",IF(AL11=AC11,\"\",Y11)),Y11),\"\"))","v":""},{"$f":"IF(Z11=\"\",\"\",IF(Z11=AB11,IF(NoDrawWithWithdraw,IF(AL11=Y11,\"\",IF(AL11=AC11,\"\",AC11)),AC11),\"\"))","v":""},{"$f":"IF(Z11=\"\",\"\",IF(Z11<AB11,Y11,IF(Z11=AB11,IF(NoDrawWithWithdraw,IF(AL11=Y11,Y11,IF(AL11=AC11,AC11,\"\")),\"\"),AC11)))","v":""},{"$f":"IF(Z11=\"\",\"\",SUM(Z12:Z15))","v":""},{"$f":"IF(Z11=\"\",\"\",SUM(AB12:AB15))","v":""},{"$f":"CONCATENATE(AE11,AH11)","v":""},{"$f":"IF(COUNTIF(Y12:Y15,WithdrawLabel)>COUNTIF(AC12:AC15,WithdrawLabel),Y11,IF(COUNTIF(AC12:AC15,WithdrawLabel)>COUNTIF(Y12:Y15,WithdrawLabel),AC11,\"\"))","v":""},null,null,null,null,null,null,null,null,null,null,null,null,null,null,null,null,null,null,null,null,null,null,null,null,null,null,null,null,null,null,null,null,null,null,null,null,null,null,null,null,null,null,null,null,null,null,null,null,null,""]
[null,null,null,null,null,null,null,null,null,null,null,null,null,null,null,null,null,null,null,null,null,null,null,null,null,null,"-",null,null,null,{"$f":"IF(Z12=\"\",\"\",IF(Z12>AB12,Y12,IF(Z12=AB12,\"\",AC12)))","v":""},{"$f":"IF(Z12=\"\",\"\",IF(Z12=AB12,Y12,\"\"))","v":""},{"$f":"IF(Z12=\"\",\"\",IF(Z12=AB12,AC12,\"\"))","v":""},{"$f":"IF(Z12=\"\",\"\",IF(Z12<AB12,Y12,IF(Z12=AB12,\"\",AC12)))","v":""},{"$f":"IF(Z12=\"\",\"\",IF(Z12>AB12,Y11,\"\"))","v":""},{"$f":"IF(Z12=\"\",\"\",IF(Z12<AB12,AC11,\"\"))","v":""},{"$f":"CONCATENATE(AE12,AH12)","v":""},null,null,null,null,null,null,null,null,null,null,null,null,null,null,null,null,null,null,null,null,null,null,null,null,null,null,null,null,null,null,null,null,null,null,null,null,null,null,null,null,null,null,null,null,null,null,null,null,null,null,""]
[null,null,null,null,null,null,null,null,null,null,null,null,null,null,null,null,null,null,null,null,null,null,null,null,null,null,"-",null,null,null,"","","","",{"$f":"IF(Z13=\"\",\"\",IF(Z13>AB13,Y11,\"\"))","v":""},{"$f":"IF(Z13=\"\",\"\",IF(Z13<AB13,AC11,\"\"))","v":""},"",null,null,null,null,null,null,null,null,null,null,null,null,null,null,null,null,null,null,null,null,null,null,null,null,null,null,null,null,null,null,null,null,null,null,null,null,null,null,null,null,null,null,null,null,null,null,null,null,null,null,""]
[null,null,null,null,null,null,null,null,null,null,null,null,null,null,null,null,null,null,null,null,null,null,null,null,null,null,"-",null,null,null,"","","","",{"$f":"IF(Z14=\"\",\"\",IF(Z14>AB14,Y11,\"\"))","v":""},{"$f":"IF(Z14=\"\",\"\",IF(Z14<AB14,AC11,\"\"))","v":""},"",null,null,null,null,null,null,null,null,null,null,null,null,null,null,null,null,null,null,null,null,null,null,null,null,null,null,null,null,null,null,null,null,null,null,null,null,null,null,null,null,null,null,null,null,null,null,null,null,null,null,""]
[null,null,null,null,null,null,null,null,null,null,null,null,null,null,null,null,null,null,null,null,null,null,null,null,null,null,"-",null,null,null,"","","","",{"$f":"IF(Z15=\"\",\"\",IF(Z15>AB15,Y11,\"\"))","v":""},{"$f":"IF(Z15=\"\",\"\",IF(Z15<AB15,AC11,\"\"))","v":""},"",null,null,null,null,null,null,null,null,null,null,null,null,null,null,null,null,null,null,null,null,null,null,null,null,null,null,null,null,null,null,null,null,null,null,null,null,null,null,null,null,null,null,null,null,null,null,null,null,null,null,""]
[null,null,null,null,null,null,null,null,null,null,null,null,null,null,null,null,null,null,null,null,null,null,null,{"$f":"N_Substitute","v":"Substitute"},null,null,null,null,null,null,null,null,null,null,null,null,null,null,null,null,null,null,null,null,null,null,null,null,null,null,null,null,null,null,null,null,null,null,null,null,null,null,null,null,null,null,null,null,null,null,null,null,null,null,null,null,null,null,null,null,null,null,null,null,null,null,null,""]
[null,null,null,null,null,null,null,null,null,null,null,null,null,null,null,null,null,null,null,null,null,null,null,{"$f":"N_Substitute","v":"Substitute"},null,null,null,null,null,null,null,null,null,null,null,null,null,null,null,null,null,null,null,null,null,null,null,null,null,null,null,null,null,null,null,null,null,null,null,null,null,null,null,null,null,null,null,null,null,null,null,null,null,null,null,null,null,null,null,null,null,null,null,null,null,null,null,""]
[null,null,null,null,null,null,null,null,null,null,null,null,null,null,null,null,null,null,null,null,"#G2",null,null,null,{"$f":"IF(COUNTA(G7:G9) =3,GMFTGROUPORDERTEAM(G7:G9,Y11:Y31,AC11:AC31),\"\")","v":"Eq2"},{"$f":"IF(OR(ISNUMBER(Z19),ISNUMBER(Z20),ISNUMBER(Z21),ISNUMBER(Z22)),4-COUNTBLANK(AI19:AI22),\"\")","v":""},"-",{"$f":"IF(OR(ISNUMBER(Z19),ISNUMBER(Z20),ISNUMBER(Z21),ISNUMBER(Z22)),4-COUNTBLANK(AJ19:AJ22),\"\")","v":""},{"$f":"IF(COUNTA(G7:G9) =3,GMFTGROUPORDERTEAM(G7:G9,Y11:Y31,AC11:AC31),\"\")","v":"Eq3"},null,{"$f":"IF(Z18=\"\",\"\",IF(Z18>AB18,Y18,IF(Z18=AB18,IF(NoDrawWithWithdraw,IF(AL18=Y18,AC18,IF(AL18=AC18,Y18,\"\")),\"\"),AC18)))","v":""},{"$f":"IF(Z18=\"\",\"\",IF(Z18=AB18,IF(NoDrawWithWithdraw,IF(AL18=Y18,\"\",IF(AL18=AC18,\"\",Y18)),Y18),\"\"))","v":""},{"$f":"IF(Z18=\"\",\"\",IF(Z18=AB18,IF(NoDrawWithWithdraw,IF(AL18=Y18,\"\",IF(AL18=AC18,\"\",AC18)),AC18),\"\"))","v":""},{"$f":"IF(Z18=\"\",\"\",IF(Z18<AB18,Y18,IF(Z18=AB18,IF(NoDrawWithWithdraw,IF(AL18=Y18,Y18,IF(AL18=AC18,AC18,\"\")),\"\"),AC18)))","v":""},{"$f":"IF(Z18=\"\",\"\",SUM(Z19:Z22))","v":""},{"$f":"IF(Z18=\"\",\"\",SUM(AB19:AB22))","v":""},{"$f":"CONCATENATE(AE18,AH18)","v":""},{"$f":"IF(COUNTIF(Y19:Y22,WithdrawLabel)>COUNTIF(AC19:AC22,WithdrawLabel),Y18,IF(COUNTIF(AC19:AC22,WithdrawLabel)>COUNTIF(Y19:Y22,WithdrawLabel),AC18,\"\"))","v":""},null,null,null,null,null,null,null,null,null,null,null,null,null,null,null,null,null,null,null,null,null,null,null,null,null,null,null,null,null,null,null,null,null,null,null,null,null,null,null,null,null,null,null,null,null,null,null,null,null,""]
[null,null,null,null,null,null,null,null,null,null,null,null,null,null,null,null,null,null,null,null,null,null,null,null,null,null,"-",null,null,null,"","","","",{"$f":"IF(Z19=\"\",\"\",IF(Z19>AB19,Y18,\"\"))","v":""},{"$f":"IF(Z19=\"\",\"\",IF(Z19<AB19,AC18,\"\"))","v":""},"",null,null,null,null,null,null,null,null,null,null,null,null,null,null,null,null,null,null,null,null,null,null,null,null,null,null,null,null,null,null,null,null,null,null,null,null,null,null,null,null,null,null,null,null,null,null,null,null,null,null,""]
[null,null,null,null,null,null,null,null,null,null,null,null,null,null,null,null,null,null,null,null,null,null,null,null,null,null,"-",null,null,null,"","","","",{"$f":"IF(Z20=\"\",\"\",IF(Z20>AB20,Y18,\"\"))","v":""},{"$f":"IF(Z20=\"\",\"\",IF(Z20<AB20,AC18,\"\"))","v":""},"",null,null,null,null,null,null,null,null,null,null,null,null,null,null,null,null,null,null,null,null,null,null,null,null,null,null,null,null,null,null,null,null,null,null,null,null,null,null,null,null,null,null,null,null,null,null,null,null,null,null,""]
[null,null,null,null,null,null,null,null,null,null,null,null,null,null,null,null,null,null,null,null,null,null,null,null,null,null,"-",null,null,null,"","","","",{"$f":"IF(Z21=\"\",\"\",IF(Z21>AB21,Y18,\"\"))","v":""},{"$f":"IF(Z21=\"\",\"\",IF(Z21<AB21,AC18,\"\"))","v":""},"",null,null,null,null,null,null,null,null,null,null,null,null,null,null,null,null,null,null,null,null,null,null,null,null,null,null,null,null,null,null,null,null,null,null,null,null,null,null,null,null,null,null,null,null,null,null,null,null,null,null,""]
[null,null,null,null,null,null,null,null,null,null,null,null,null,null,null,null,null,null,null,null,null,null,null,null,null,null,"-",null,null,null,"","","","",{"$f":"IF(Z22=\"\",\"\",IF(Z22>AB22,Y18,\"\"))","v":""},{"$f":"IF(Z22=\"\",\"\",IF(Z22<AB22,AC18,\"\"))","v":""},"",null,null,null,null,null,null,null,null,null,null,null,null,null,null,null,null,null,null,null,null,null,null,null,null,null,null,null,null,null,null,null,null,null,null,null,null,null,null,null,null,null,null,null,null,null,null,null,null,null,null,""]
[null,null,null,null,null,null,null,null,null,null,null,null,null,null,null,null,null,null,null,null,null,null,null,{"$f":"N_Substitute","v":"Substitute"},null,null,null,null,null,null,null,null,null,null,null,null,null,null,null,null,null,null,null,null,null,null,null,null,null,null,null,null,null,null,null,null,null,null,null,null,null,null,null,null,null,null,null,null,null,null,null,null,null,null,null,null,null,null,null,null,null,null,null,null,null,null,null,""]
[null,null,null,null,null,null,null,null,null,null,null,null,null,null,null,null,null,null,null,null,null,null,null,{"$f":"N_Substitute","v":"Substitute"},null,null,null,null,null,null,null,null,null,null,null,null,null,null,null,null,null,null,null,null,null,null,null,null,null,null,null,null,null,null,null,null,null,null,null,null,null,null,null,null,null,null,null,null,null,null,null,null,null,null,null,null,null,null,null,null,null,null,null,null,null,null,null,""]
[null,null,null,null,null,null,null,null,null,null,null,null,null,null,null,null,null,null,null,null,"#G3",null,null,null,{"$f":"IF(COUNTA(G7:G9) =3,GMFTGROUPORDERTEAM(G7:G9,Y11:Y31,AC11:AC31),\"\")","v":"Eq1"},{"$f":"IF(OR(ISNUMBER(Z26),ISNUMBER(Z27),ISNUMBER(Z28),ISNUMBER(Z29)),4-COUNTBLANK(AI26:AI29),\"\")","v":""},"-",{"$f":"IF(OR(ISNUMBER(Z26),ISNUMBER(Z27),ISNUMBER(Z28),ISNUMBER(Z29)),4-COUNTBLANK(AJ26:AJ29),\"\")","v":""},{"$f":"IF(COUNTA(G7:G9) =3,GMFTGROUPORDERTEAM(G7:G9,Y11:Y31,AC11:AC31),\"\")","v":"Eq2"},null,{"$f":"IF(Z25=\"\",\"\",IF(Z25>AB25,Y25,IF(Z25=AB25,IF(NoDrawWithWithdraw,IF(AL25=Y25,AC25,IF(AL25=AC25,Y25,\"\")),\"\"),AC25)))","v":""},{"$f":"IF(Z25=\"\",\"\",IF(Z25=AB25,IF(NoDrawWithWithdraw,IF(AL25=Y25,\"\",IF(AL25=AC25,\"\",Y25)),Y25),\"\"))","v":""},{"$f":"IF(Z25=\"\",\"\",IF(Z25=AB25,IF(NoDrawWithWithdraw,IF(AL25=Y25,\"\",IF(AL25=AC25,\"\",AC25)),AC25),\"\"))","v":""},{"$f":"IF(Z25=\"\",\"\",IF(Z25<AB25,Y25,IF(Z25=AB25,IF(NoDrawWithWithdraw,IF(AL25=Y25,Y25,IF(AL25=AC25,AC25,\"\")),\"\"),AC25)))","v":""},{"$f":"IF(Z25=\"\",\"\",SUM(Z26:Z29))","v":""},{"$f":"IF(Z25=\"\",\"\",SUM(AB26:AB29))","v":""},{"$f":"CONCATENATE(AE25,AH25)","v":""},{"$f":"IF(COUNTIF(Y26:Y29,WithdrawLabel)>COUNTIF(AC26:AC29,WithdrawLabel),Y25,IF(COUNTIF(AC26:AC29,WithdrawLabel)>COUNTIF(Y26:Y29,WithdrawLabel),AC25,\"\"))","v":""},null,null,null,null,null,null,null,null,null,null,null,null,null,null,null,null,null,null,null,null,null,null,null,null,null,null,null,null,null,null,null,null,null,null,null,null,null,null,null,null,null,null,null,null,null,null,null,null,null,""]
[null,null,null,null,null,null,null,null,null,null,null,null,null,null,null,null,null,null,null,null,null,null,null,null,null,null,"-",null,null,null,"","","","",{"$f":"IF(Z26=\"\",\"\",IF(Z26>AB26,Y25,\"\"))","v":""},{"$f":"IF(Z26=\"\",\"\",IF(Z26<AB26,AC25,\"\"))","v":""},"",null,null,null,null,null,null,null,null,null,null,null,null,null,null,null,null,null,null,null,null,null,null,null,null,null,null,null,null,null,null,null,null,null,null,null,null,null,null,null,null,null,null,null,null,null,null,null,null,null,null,""]
[null,null,null,null,null,null,null,null,null,null,null,null,null,null,null,null,null,null,null,null,null,null,null,null,null,null,"-",null,null,null,"","","","",{"$f":"IF(Z27=\"\",\"\",IF(Z27>AB27,Y25,\"\"))","v":""},{"$f":"IF(Z27=\"\",\"\",IF(Z27<AB27,AC25,\"\"))","v":""},"",null,null,null,null,null,null,null,null,null,null,null,null,null,null,null,null,null,null,null,null,null,null,null,null,null,null,null,null,null,null,null,null,null,null,null,null,null,null,null,null,null,null,null,null,null,null,null,null,null,null,""]
[null,null,null,null,null,null,null,null,null,null,null,null,null,null,null,null,null,null,null,null,null,null,null,null,null,null,"-",null,null,null,"","","","",{"$f":"IF(Z28=\"\",\"\",IF(Z28>AB28,Y25,\"\"))","v":""},{"$f":"IF(Z28=\"\",\"\",IF(Z28<AB28,AC25,\"\"))","v":""},"",null,null,null,null,null,null,null,null,null,null,null,null,null,null,null,null,null,null,null,null,null,null,null,null,null,null,null,null,null,null,null,null,null,null,null,null,null,null,null,null,null,null,null,null,null,null,null,null,null,null,""]
[null,null,null,null,null,null,null,null,null,null,null,null,null,null,null,null,null,null,null,null,null,null,null,null,null,null,"-",null,null,null,"","","","",{"$f":"IF(Z29=\"\",\"\",IF(Z29>AB29,Y25,\"\"))","v":""},{"$f":"IF(Z29=\"\",\"\",IF(Z29<AB29,AC25,\"\"))","v":""},"",null,null,null,null,null,null,null,null,null,null,null,null,null,null,null,null,null,null,null,null,null,null,null,null,null,null,null,null,null,null,null,null,null,null,null,null,null,null,null,null,null,null,null,null,null,null,null,null,null,null,""]
[null,null,null,null,null,null,null,null,null,null,null,null,null,null,null,null,null,null,null,null,null,null,null,{"$f":"N_Substitute","v":"Substitute"},null,null,null,null,null,null,null,null,null,null,null,null,null,null,null,null,null,null,null,null,null,null,null,null,null,null,null,null,null,null,null,null,null,null,null,null,null,null,null,null,null,null,null,null,null,null,null,null,null,null,null,null,null,null,null,null,null,null,null,null,null,null,null,""]
[null,null,null,null,null,null,null,null,null,null,null,null,null,null,null,null,null,null,null,null,null,null,null,{"$f":"N_Substitute","v":"Substitute"},null,null,null,null,null,null,null,null,null,null,null,null,null,null,null,null,null,null,null,null,null,null,null,null,null,null,null,null,null,null,null,null,null,null,null,null,null,null,null,null,null,null,null,null,null,null,null,null,null,null,null,null,null,null,null,null,null,null,null,null,null,null,null,""]
[null,null,null,null,null,null,null,null,null,null,null,null,null,null,null,null,null,null,null,null,null,null,null,null,null,null,null,null,null,null,null,null,null,null,null,null,null,null,null,null,null,null,null,null,null,null,null,null,null,null,null,null,null,null,null,null,null,null,null,null,null,null,null,null,null,null,null,null,null,null,null,null,null,null,null,null,null,null,null,null,null,null,null,null,null,null,null,""]
[null,null,null,null,null,null,null,null,null,null,null,null,null,null,null,null,null,null,null,null,null,null,null,null,null,null,null,null,null,null,null,null,null,null,null,null,null,null,null,null,null,null,null,null,null,null,null,null,null,null,null,null,null,null,null,null,null,null,null,null,null,null,null,null,null,null,null,null,null,null,null,null,null,null,null,null,null,null,null,null,null,null,null,null,null,null,null,""]
[null,{"$f":"N_Group_3_2Leg","v":"Group of 3 with first/second leg"},null,null,null,null,null,null,null,null,null,null,null,null,null,null,null,null,null,null,null,null,null,null,null,null,null,null,null,null,null,null,null,null,null,null,null,null,null,{"$f":"B34","v":"Group of 3 with first/second leg"},null,null,null,null,null,null,null,null,null,null,null,null,null,null,null,null,null,null,null,null,null,null,null,null,null,null,null,null,null,null,null,null,null,null,null,null,null,null,null,null,null,null,null,null,null,null,null,""]
[null,null,null,null,null,null,null,null,null,null,null,null,null,null,null,null,null,null,null,null,null,null,null,null,null,null,null,null,null,null,null,null,null,null,null,null,null,null,null,null,null,null,null,null,null,null,null,null,null,null,null,null,null,null,null,null,null,null,null,null,null,null,null,null,null,null,null,null,null,null,null,null,null,null,null,null,null,null,null,null,null,null,null,null,null,null,null,""]
[null,{"$f":"N_Tirage","v":"Draw"},"Cla.","Cla1","Part","Cla2",{"$f":"N_Equipes","v":"Teams"},{"$f":"N_Pts","v":"Pts"},{"$f":"N_J","v":"Pld"},{"$f":"N_G","v":"W"},{"$f":"N_N","v":"D"},{"$f":"N_P","v":"L"},{"$f":"N_Diff_R","v":"ED"},{"$f":"N_MP","v":"WM"},{"$f":"N_MC","v":"LM"},{"$f":"N_Diff_M","v":"MD"},{"$f":"N_BP","v":"F"},{"$f":"N_BC","v":"A"},{"$f":"N_Diff_B","v":"GD"},null,null,null,null,null,null,null,null,null,null,null,null,null,null,null,null,null,null,null,null,null,{"$f":"N_Cla.","v":"Rk"},{"$f":"N_Equipes","v":"Teams"},{"$f":"N_Pts","v":"Pts"},{"$f":"N_J","v":"Pld"},{"$f":"N_G","v":"W"},{"$f":"N_N","v":"D"},{"$f":"N_P","v":"L"},{"$f":"N_Diff_R","v":"ED"},{"$f":"N_MP","v":"WM"},{"$f":"N_MC","v":"LM"},{"$f":"N_Diff_M","v":"MD"},{"$f":"N_BP","v":"F"},{"$f":"N_BC","v":"A"},{"$f":"N_Diff_B","v":"GD"},{"$f":"N_Matches","v":"Matches"},null,null,null,null,null,null,null,null,null,null,null,null,null,null,null,null,null,null,null,null,null,null,null,null,null,null,null,null,null,null,null,null,""]
[null,1,{"$f":"IF(AL40=\"\",\"\",RANK(F37,F37:F39)*1000+ROW())","v":""},{"$f":"IF(J37=\"\",\"\",H37*CritClassEq1_Points+M37*CritClassEq1_DiffRencontres+P37*CritClassEq1_DiffMatches+S37*CritClassEq1_DiffButs+N37*CritClassEq1_Matches+Q37*CritClassEq1_Attaque)","v":""},{"$f":"IF(J37=\"\",\"\",Nb_Diff_Part(D37,D37:D39,G37,G37:G39,AK41:AK76)*CritClassEq_DiffPart+Nb_Goal_Part(D37,D37:D39,G37,G37:G39,Y41:AC76)*CritClassEq_IndsPart+Nb_Score_Part(D37,D37:D39,G37,G37:G39,Y41:AC76)*CritClassEq_WinsPart+Nb_GoalTeam_Part(D37,D37:D39,G37,G37:G39,Y41:AC76)*CritClassEq_GoalPart+Nb_ScoreTeam_Part(D37,D37:D39,G37,G37:G39,Y41:AC76)*CritClassEq_ScorePart)","v":""},{"$f":"IF(J37=\"\",\"\",D37+E37+H37*CritClassEq2_Points+M37*CritClassEq2_DiffRencontres+P37*CritClassEq2_DiffMatches+S37*CritClassEq2_DiffButs+N37*CritClassEq2_Matches+Q37*CritClassEq2_Attaque)","v":""},"Eq1",{"$f":"IF(AL40=\"\",\"\",(J37*Points_Victoire)+K37*Points_Null)","v":""},{"$f":"IF(J37=\"\",\"\",SUM(J37:L37))","v":""},{"$f":"IF(AL40=\"\",\"\",COUNTIF(AE41:AE80,G37))","v":""},{"$f":"IF(AL40=\"\",\"\",COUNTIF(AF41:AG80,G37))","v":""},{"$f":"IF(AL40=\"\",\"\",COUNTIF(AH41:AH80,G37))","v":""},{"$f":"IF(AL40=\"\",\"\",J37-L37)","v":""},{"$f":"IF(AL40=\"\",\"\",SUMIF(Y41:Y80,G37,Z41:Z80)+SUMIF(AC41:AC80,G37,AB41:AB80))","v":""},{"$f":"IF(AL40=\"\",\"\",SUMIF(Y41:Y80,G37,AB41:AB80)+SUMIF(AC41:AC80,G37,Z41:AL80))","v":""},{"$f":"IF(AL40=\"\",\"\",N37-O37)","v":""},{"$f":"IF(AL40=\"\",\"\",SUMIF(Y41:Y80,G37,AI41:AI80)+SUMIF(AC41:AC80,G37,AJ41:AJ80))","v":""},{"$f":"IF(AL40=\"\",\"\",SUMIF(Y41:Y80,G37,AJ41:AJ80)+SUMIF(AC41:AC80,G37,AI41:AI80))","v":""},{"$f":"IF(AL40=\"\",\"\",Q37-R37)","v":""},null,null,null,null,null,null,null,null,null,null,null,null,null,null,null,null,null,null,{"$f":"IF(AL40=\"\",\"\",SMALL(C37:C39,1))","v":""},null,null,{"$f":"IF(AL40=\"\",\"\",INT(AL37/1000))","v":""},{"$f":"IF(AL40=\"\",IF(HidePlayerFormulas,\"\",\"(\"&G37&\")\"),VLOOKUP(AL37,C37:S39,5,FALSE))","v":""},{"$f":"VLOOKUP(AL37,C37:S39,6,FALSE)","v":""},{"$f":"VLOOKUP(AL37,C37:S39,7,FALSE)","v":""},{"$f":"VLOOKUP(AL37,C37:S39,8,FALSE)","v":""},{"$f":"VLOOKUP(AL37,C37:S39,9,FALSE)","v":""},{"$f":"VLOOKUP(AL37,C37:S39,10,FALSE)","v":""},{"$f":"VLOOKUP(AL37,C37:S39,11,FALSE)","v":""},{"$f":"VLOOKUP(AL37,C37:S39,12,FALSE)","v":""},{"$f":"VLOOKUP(AL37,C37:S39,13,FALSE)","v":""},{"$f":"VLOOKUP(AL37,C37:S39,14,FALSE)","v":""},{"$f":"VLOOKUP(AL37,C37:S39,15,FALSE)","v":""},{"$f":"VLOOKUP(AL37,C37:S39,16,FALSE)","v":""},{"$f":"VLOOKUP(AL37,C37:S39,17,FALSE)","v":""},{"$f":"IF(Z41=\"\",\"\",IF(AP37=Y41,Z41&\"(\"&SUM(Z42:Z45)&\")\",IF(AP37=AC41,AB41&\"(\"&SUM(AB42:AB45)&\")\",\"\")))","v":""},{"$f":"IF(Z48=\"\",\"\",IF(AP37=Y48,Z48&\"(\"&SUM(Z49:Z52)&\")\",IF(AP37=AC48,AB48&\"(\"&SUM(AB49:AB52)&\")\",\"\")))","v":""},{"$f":"IF(Z55=\"\",\"\",IF(AP37=Y55,Z55&\"(\"&SUM(Z56:Z59)&\")\",IF(AP37=AC55,AB55&\"(\"&SUM(AB56:AB59)&\")\",\"\")))","v":""},{"$f":"IF(Z62=\"\",\"\",IF(AP37=Y62,Z62&\"(\"&SUM(Z63:Z66)&\")\",IF(AP37=AC62,AB62&\"(\"&SUM(AB63:AB66)&\")\",\"\")))","v":""},{"$f":"IF(Z69=\"\",\"\",IF(AP37=Y69,Z69&\"(\"&SUM(Z70:Z73)&\")\",IF(AP37=AC69,AB69&\"(\"&SUM(AB70:AB73)&\")\",\"\")))","v":""},{"$f":"IF(Z76=\"\",\"\",IF(AP37=Y76,Z76&\"(\"&SUM(Z77:Z80)&\")\",IF(AP37=AC76,AB76&\"(\"&SUM(AB77:AB80)&\")\",\"\")))","v":""},null,null,null,null,null,null,null,null,null,null,null,null,null,null,null,null,null,null,null,null,null,null,{"$f":"IF(G37=\"[---WithDraw---]\",FALSE,IF(COUNTIF(PlayerNamesWithinGroups,G37)>1,TRUE,FALSE))","v":true},{"$f":"AND(LEFT($AP37,1) = \"(\", RIGHT($AP37,1) =\")\")","v":false},{"$f":"IF(OR($AO37=$AO36,$AO37=$AO38),TRUE,FALSE)","v":true},null,null,""]
[null,2,{"$f":"IF(AL40=\"\",\"\",RANK(F38,F37:F39)*1000+ROW())","v":""},{"$f":"IF(J38=\"\",\"\",H38*CritClassEq1_Points+M38*CritClassEq1_DiffRencontres+P38*CritClassEq1_DiffMatches+S38*CritClassEq1_DiffButs+N38*CritClassEq1_Matches+Q38*CritClassEq1_Attaque)","v":""},{"$f":"IF(J38=\"\",\"\",Nb_Diff_Part(D38,D37:D39,G38,G37:G39,AK41:AK76)*CritClassEq_DiffPart+Nb_Goal_Part(D38,D37:D39,G38,G37:G39,Y41:AC76)*CritClassEq_IndsPart+Nb_Score_Part(D38,D37:D39,G38,G37:G39,Y41:AC76)*CritClassEq_WinsPart+Nb_GoalTeam_Part(D38,D37:D39,G38,G37:G39,Y41:AC76)*CritClassEq_GoalPart+Nb_ScoreTeam_Part(D38,D37:D39,G38,G37:G39,Y41:AC76)*CritClassEq_ScorePart)","v":""},{"$f":"IF(J38=\"\",\"\",D38+E38+H38*CritClassEq2_Points+M38*CritClassEq2_DiffRencontres+P38*CritClassEq2_DiffMatches+S38*CritClassEq2_DiffButs+N38*CritClassEq2_Matches+Q38*CritClassEq2_Attaque)","v":""},"Eq2",{"$f":"IF(AL40=\"\",\"\",(J38*Points_Victoire)+K38*Points_Null)","v":""},{"$f":"IF(J38=\"\",\"\",SUM(J38:L38))","v":""},{"$f":"IF(AL40=\"\",\"\",COUNTIF(AE41:AE80,G38))","v":""},{"$f":"IF(AL40=\"\",\"\",COUNTIF(AF41:AG80,G38))","v":""},{"$f":"IF(AL40=\"\",\"\",COUNTIF(AH41:AH80,G38))","v":""},{"$f":"IF(AL40=\"\",\"\",J38-L38)","v":""},{"$f":"IF(AL40=\"\",\"\",SUMIF(Y41:Y80,G38,Z41:Z80)+SUMIF(AC41:AC80,G38,AB41:AB80))","v":""},{"$f":"IF(AL40=\"\",\"\",SUMIF(Y41:Y80,G38,AB41:AB80)+SUMIF(AC41:AC80,G38,Z41:AL80))","v":""},{"$f":"IF(AL40=\"\",\"\",N38-O38)","v":""},{"$f":"IF(AL40=\"\",\"\",SUMIF(Y41:Y80,G38,AI41:AI80)+SUMIF(AC41:AC80,G38,AJ41:AJ80))","v":""},{"$f":"IF(AL40=\"\",\"\",SUMIF(Y41:Y80,G38,AJ41:AJ80)+SUMIF(AC41:AC80,G38,AI41:AI80))","v":""},{"$f":"IF(AL40=\"\",\"\",Q38-R38)","v":""},null,null,null,null,null,null,null,null,null,null,null,null,null,null,null,null,null,null,{"$f":"IF(AL40=\"\",\"\",SMALL(C37:C39,2))","v":""},null,null,{"$f":"IF(AL40=\"\",\"\",INT(AL38/1000))","v":""},{"$f":"IF(AL40=\"\",IF(HidePlayerFormulas,\"\",\"(\"&G38&\")\"),VLOOKUP(AL38,C37:S39,5,FALSE))","v":""},{"$f":"VLOOKUP(AL38,C37:S39,6,FALSE)","v":""},{"$f":"VLOOKUP(AL38,C37:S39,7,FALSE)","v":""},{"$f":"VLOOKUP(AL38,C37:S39,8,FALSE)","v":""},{"$f":"VLOOKUP(AL38,C37:S39,9,FALSE)","v":""},{"$f":"VLOOKUP(AL38,C37:S39,10,FALSE)","v":""},{"$f":"VLOOKUP(AL38,C37:S39,11,FALSE)","v":""},{"$f":"VLOOKUP(AL38,C37:S39,12,FALSE)","v":""},{"$f":"VLOOKUP(AL38,C37:S39,13,FALSE)","v":""},{"$f":"VLOOKUP(AL38,C37:S39,14,FALSE)","v":""},{"$f":"VLOOKUP(AL38,C37:S39,15,FALSE)","v":""},{"$f":"VLOOKUP(AL38,C37:S39,16,FALSE)","v":""},{"$f":"VLOOKUP(AL38,C37:S39,17,FALSE)","v":""},{"$f":"IF(Z41=\"\",\"\",IF(AP38=Y41,Z41&\"(\"&SUM(Z42:Z45)&\")\",IF(AP38=AC41,AB41&\"(\"&SUM(AB42:AB45)&\")\",\"\")))","v":""},{"$f":"IF(Z48=\"\",\"\",IF(AP38=Y48,Z48&\"(\"&SUM(Z49:Z52)&\")\",IF(AP38=AC48,AB48&\"(\"&SUM(AB49:AB52)&\")\",\"\")))","v":""},{"$f":"IF(Z55=\"\",\"\",IF(AP38=Y55,Z55&\"(\"&SUM(Z56:Z59)&\")\",IF(AP38=AC55,AB55&\"(\"&SUM(AB56:AB59)&\")\",\"\")))","v":""},{"$f":"IF(Z62=\"\",\"\",IF(AP38=Y62,Z62&\"(\"&SUM(Z63:Z66)&\")\",IF(AP38=AC62,AB62&\"(\"&SUM(AB63:AB66)&\")\",\"\")))","v":""},{"$f":"IF(Z69=\"\",\"\",IF(AP38=Y69,Z69&\"(\"&SUM(Z70:Z73)&\")\",IF(AP38=AC69,AB69&\"(\"&SUM(AB70:AB73)&\")\",\"\")))","v":""},{"$f":"IF(Z76=\"\",\"\",IF(AP38=Y76,Z76&\"(\"&SUM(Z77:Z80)&\")\",IF(AP38=AC76,AB76&\"(\"&SUM(AB77:AB80)&\")\",\"\")))","v":""},null,null,null,null,null,null,null,null,null,null,null,null,null,null,null,null,null,null,null,null,null,null,{"$f":"IF(G38=\"[---WithDraw---]\",FALSE,IF(COUNTIF(PlayerNamesWithinGroups,G38)>1,TRUE,FALSE))","v":true},{"$f":"AND(LEFT($AP38,1) = \"(\", RIGHT($AP38,1) =\")\")","v":false},{"$f":"IF(OR($AO38=$AO37,$AO38=$AO39),TRUE,FALSE)","v":true},null,null,""]
[null,3,{"$f":"IF(AL40=\"\",\"\",RANK(F39,F37:F39)*1000+ROW())","v":""},{"$f":"IF(J39=\"\",\"\",H39*CritClassEq1_Points+M39*CritClassEq1_DiffRencontres+P39*CritClassEq1_DiffMatches+S39*CritClassEq1_DiffButs+N39*CritClassEq1_Matches+Q39*CritClassEq1_Attaque)","v":""},{"$f":"IF(J39=\"\",\"\",Nb_Diff_Part(D39,D37:D39,G39,G37:G39,AK41:AK76)*CritClassEq_DiffPart+Nb_Goal_Part(D39,D37:D39,G39,G37:G39,Y41:AC76)*CritClassEq_IndsPart+Nb_Score_Part(D39,D37:D39,G39,G37:G39,Y41:AC76)*CritClassEq_WinsPart+Nb_GoalTeam_Part(D39,D37:D39,G39,G37:G39,Y41:AC76)*CritClassEq_GoalPart+Nb_ScoreTeam_Part(D39,D37:D39,G39,G37:G39,Y41:AC76)*CritClassEq_ScorePart)","v":""},{"$f":"IF(J39=\"\",\"\",D39+E39+H39*CritClassEq2_Points+M39*CritClassEq2_DiffRencontres+P39*CritClassEq2_DiffMatches+S39*CritClassEq2_DiffButs+N39*CritClassEq2_Matches+Q39*CritClassEq2_Attaque)","v":""},"Eq3",{"$f":"IF(AL40=\"\",\"\",(J39*Points_Victoire)+K39*Points_Null)","v":""},{"$f":"IF(J39=\"\",\"\",SUM(J39:L39))","v":""},{"$f":"IF(AL40=\"\",\"\",COUNTIF(AE41:AE80,G39))","v":""},{"$f":"IF(AL40=\"\",\"\",COUNTIF(AF41:AG80,G39))","v":""},{"$f":"IF(AL40=\"\",\"\",COUNTIF(AH41:AH80,G39))","v":""},{"$f":"IF(AL40=\"\",\"\",J39-L39)","v":""},{"$f":"IF(AL40=\"\",\"\",SUMIF(Y41:Y80,G39,Z41:Z80)+SUMIF(AC41:AC80,G39,AB41:AB80))","v":""},{"$f":"IF(AL40=\"\",\"\",SUMIF(Y41:Y80,G39,AB41:AB80)+SUMIF(AC41:AC80,G39,Z41:AL80))","v":""},{"$f":"IF(AL40=\"\",\"\",N39-O39)","v":""},{"$f":"IF(AL40=\"\",\"\",SUMIF(Y41:Y80,G39,AI41:AI80)+SUMIF(AC41:AC80,G39,AJ41:AJ80))","v":""},{"$f":"IF(AL40=\"\",\"\",SUMIF(Y41:Y80,G39,AJ41:AJ80)+SUMIF(AC41:AC80,G39,AI41:AI80))","v":""},{"$f":"IF(AL40=\"\",\"\",Q39-R39)","v":""},null,null,null,null,null,null,null,null,null,null,null,null,null,null,null,null,null,null,{"$f":"IF(AL40=\"\",\"\",SMALL(C37:C39,3))","v":""},null,null,{"$f":"IF(AL40=\"\",\"\",INT(AL39/1000))","v":""},{"$f":"IF(AL40=\"\",IF(HidePlayerFormulas,\"\",\"(\"&G39&\")\"),VLOOKUP(AL39,C37:S39,5,FALSE))","v":""},{"$f":"VLOOKUP(AL39,C37:S39,6,FALSE)","v":""},{"$f":"VLOOKUP(AL39,C37:S39,7,FALSE)","v":""},{"$f":"VLOOKUP(AL39,C37:S39,8,FALSE)","v":""},{"$f":"VLOOKUP(AL39,C37:S39,9,FALSE)","v":""},{"$f":"VLOOKUP(AL39,C37:S39,10,FALSE)","v":""},{"$f":"VLOOKUP(AL39,C37:S39,11,FALSE)","v":""},{"$f":"VLOOKUP(AL39,C37:S39,12,FALSE)","v":""},{"$f":"VLOOKUP(AL39,C37:S39,13,FALSE)","v":""},{"$f":"VLOOKUP(AL39,C37:S39,14,FALSE)","v":""},{"$f":"VLOOKUP(AL39,C37:S39,15,FALSE)","v":""},{"$f":"VLOOKUP(AL39,C37:S39,16,FALSE)","v":""},{"$f":"VLOOKUP(AL39,C37:S39,17,FALSE)","v":""},{"$f":"IF(Z41=\"\",\"\",IF(AP39=Y41,Z41&\"(\"&SUM(Z42:Z45)&\")\",IF(AP39=AC41,AB41&\"(\"&SUM(AB42:AB45)&\")\",\"\")))","v":""},{"$f":"IF(Z48=\"\",\"\",IF(AP39=Y48,Z48&\"(\"&SUM(Z49:Z52)&\")\",IF(AP39=AC48,AB48&\"(\"&SUM(AB49:AB52)&\")\",\"\")))","v":""},{"$f":"IF(Z55=\"\",\"\",IF(AP39=Y55,Z55&\"(\"&SUM(Z56:Z59)&\")\",IF(AP39=AC55,AB55&\"(\"&SUM(AB56:AB59)&\")\",\"\")))","v":""},{"$f":"IF(Z62=\"\",\"\",IF(AP39=Y62,Z62&\"(\"&SUM(Z63:Z66)&\")\",IF(AP39=AC62,AB62&\"(\"&SUM(AB63:AB66)&\")\",\"\")))","v":""},{"$f":"IF(Z69=\"\",\"\",IF(AP39=Y69,Z69&\"(\"&SUM(Z70:Z73)&\")\",IF(AP39=AC69,AB69&\"(\"&SUM(AB70:AB73)&\")\",\"\")))","v":""},{"$f":"IF(Z76=\"\",\"\",IF(AP39=Y76,Z76&\"(\"&SUM(Z77:Z80)&\")\",IF(AP39=AC76,AB76&\"(\"&SUM(AB77:AB80)&\")\",\"\")))","v":""},null,null,null,null,null,null,null,null,null,null,null,null,null,null,null,null,null,null,null,null,null,null,{"$f":"IF(G39=\"[---WithDraw---]\",FALSE,IF(COUNTIF(PlayerNamesWithinGroups,G39)>1,TRUE,FALSE))","v":true},{"$f":"AND(LEFT($AP39,1) = \"(\", RIGHT($AP39,1) =\")\")","v":false},{"$f":"IF(OR($AO39=$AO38,$AO39=$AO40),TRUE,FALSE)","v":true},null,null,""]
[null,null,null,null,null,null,null,null,null,null,null,null,null,null,null,null,null,null,null,null,null,{"$f":"N_Heure","v":"Time"},{"$f":"N_Table","v":"Table"},{"$f":"N_Arbitre","v":"Referee"},{"$f":"N_Matches","v":"Matches"},null,null,null,null,null,null,null,null,null,null,null,null,{"$f":"IF(COUNTA(Z41:Z80)>6,\"OK\",\"\")","v":""},null,null,null,null,null,null,null,null,null,null,null,null,null,null,null,null,null,null,null,null,null,null,null,null,null,null,null,null,null,null,null,null,null,null,null,null,null,null,null,null,null,null,null,null,null,null,null,null,null,""]
[null,null,null,null,null,null,null,null,null,null,null,null,null,null,null,null,null,null,null,null,"#G1",null,null,null,{"$f":"IF(COUNTA(G37:G39) =3,GMFTGROUPORDERTEAM(G37:G39,Y41:Y61,AC41:AC61),\"\")","v":"Eq3"},{"$f":"IF(OR(ISNUMBER(Z42),ISNUMBER(Z43),ISNUMBER(Z44),ISNUMBER(Z45)),4-COUNTBLANK(AI42:AI45),\"\")","v":""},"-",{"$f":"IF(OR(ISNUMBER(Z42),ISNUMBER(Z43),ISNUMBER(Z44),ISNUMBER(Z45)),4-COUNTBLANK(AJ42:AJ45),\"\")","v":""},{"$f":"IF(COUNTA(G37:G39) =3,GMFTGROUPORDERTEAM(G37:G39,Y41:Y61,AC41:AC61),\"\")","v":"Eq1"},null,{"$f":"IF(Z41=\"\",\"\",IF(Z41>AB41,Y41,IF(Z41=AB41,IF(NoDrawWithWithdraw,IF(AL41=Y41,AC41,IF(AL41=AC41,Y41,\"\")),\"\"),AC41)))","v":""},{"$f":"IF(Z41=\"\",\"\",IF(Z41=AB41,IF(NoDrawWithWithdraw,IF(AL41=Y41,\"\",IF(AL41=AC41,\"\",Y41)),Y41),\"\"))","v":""},{"$f":"IF(Z41=\"\",\"\",IF(Z41=AB41,IF(NoDrawWithWithdraw,IF(AL41=Y41,\"\",IF(AL41=AC41,\"\",AC41)),AC41),\"\"))","v":""},{"$f":"IF(Z41=\"\",\"\",IF(Z41<AB41,Y41,IF(Z41=AB41,IF(NoDrawWithWithdraw,IF(AL41=Y41,Y41,IF(AL41=AC41,AC41,\"\")),\"\"),AC41)))","v":""},{"$f":"IF(Z41=\"\",\"\",SUM(Z42:Z45))","v":""},{"$f":"IF(Z41=\"\",\"\",SUM(AB42:AB45))","v":""},{"$f":"CONCATENATE(AE41,AH41)","v":""},{"$f":"IF(COUNTIF(Y42:Y45,WithdrawLabel)>COUNTIF(AC42:AC45,WithdrawLabel),Y41,IF(COUNTIF(AC42:AC45,WithdrawLabel)>COUNTIF(Y42:Y45,WithdrawLabel),AC41,\"\"))","v":""},null,null,null,null,null,null,null,null,null,null,null,null,null,null,null,null,null,null,null,null,null,null,null,null,null,null,null,null,null,null,null,null,null,null,null,null,null,null,null,null,null,null,null,null,null,null,null,null,null,""]
[null,null,null,null,null,null,null,null,null,null,null,null,null,null,null,null,null,null,null,null,null,null,null,null,null,null,"-",null,null,null,{"$f":"IF(Z42=\"\",\"\",IF(Z42>AB42,Y42,IF(Z42=AB42,\"\",AC42)))","v":""},{"$f":"IF(Z42=\"\",\"\",IF(Z42=AB42,Y42,\"\"))","v":""},{"$f":"IF(Z42=\"\",\"\",IF(Z42=AB42,AC42,\"\"))","v":""},{"$f":"IF(Z42=\"\",\"\",IF(Z42<AB42,Y42,IF(Z42=AB42,\"\",AC42)))","v":""},{"$f":"IF(Z42=\"\",\"\",IF(Z42>AB42,Y41,\"\"))","v":""},{"$f":"IF(Z42=\"\",\"\",IF(Z42<AB42,AC41,\"\"))","v":""},{"$f":"CONCATENATE(AE42,AH42)","v":""},null,null,null,null,null,null,null,null,null,null,null,null,null,null,null,null,null,null,null,null,null,null,null,null,null,null,null,null,null,null,null,null,null,null,null,null,null,null,null,null,null,null,null,null,null,null,null,null,null,null,""]
[null,null,null,null,null,null,null,null,null,null,null,null,null,null,null,null,null,null,null,null,null,null,null,null,null,null,"-",null,null,null,{"$f":"IF(Z43=\"\",\"\",IF(Z43>AB43,Y43,IF(Z43=AB43,\"\",AC43)))","v":""},{"$f":"IF(Z43=\"\",\"\",IF(Z43=AB43,Y43,\"\"))","v":""},{"$f":"IF(Z43=\"\",\"\",IF(Z43=AB43,AC43,\"\"))","v":""},{"$f":"IF(Z43=\"\",\"\",IF(Z43<AB43,Y43,IF(Z43=AB43,\"\",AC43)))","v":""},{"$f":"IF(Z43=\"\",\"\",IF(Z43>AB43,Y41,\"\"))","v":""},{"$f":"IF(Z43=\"\",\"\",IF(Z43<AB43,AC41,\"\"))","v":""},{"$f":"CONCATENATE(AE43,AH43)","v":""},null,null,null,null,null,null,null,null,null,null,null,null,null,null,null,null,null,null,null,null,null,null,null,null,null,null,null,null,null,null,null,null,null,null,null,null,null,null,null,null,null,null,null,null,null,null,null,null,null,null,""]
[null,null,null,null,null,null,null,null,null,null,null,null,null,null,null,null,null,null,null,null,null,null,null,null,null,null,"-",null,null,null,{"$f":"IF(Z44=\"\",\"\",IF(Z44>AB44,Y44,IF(Z44=AB44,\"\",AC44)))","v":""},{"$f":"IF(Z44=\"\",\"\",IF(Z44=AB44,Y44,\"\"))","v":""},{"$f":"IF(Z44=\"\",\"\",IF(Z44=AB44,AC44,\"\"))","v":""},{"$f":"IF(Z44=\"\",\"\",IF(Z44<AB44,Y44,IF(Z44=AB44,\"\",AC44)))","v":""},{"$f":"IF(Z44=\"\",\"\",IF(Z44>AB44,Y41,\"\"))","v":""},{"$f":"IF(Z44=\"\",\"\",IF(Z44<AB44,AC41,\"\"))","v":""},{"$f":"CONCATENATE(AE44,AH44)","v":""},null,null,null,null,null,null,null,null,null,null,null,null,null,null,null,null,null,null,null,null,null,null,null,null,null,null,null,null,null,null,null,null,null,null,null,null,null,null,null,null,null,null,null,null,null,null,null,null,null,null,""]
[null,null,null,null,null,null,null,null,null,null,null,null,null,null,null,null,null,null,null,null,null,null,null,null,null,null,"-",null,null,null,{"$f":"IF(Z45=\"\",\"\",IF(Z45>AB45,Y45,IF(Z45=AB45,\"\",AC45)))","v":""},{"$f":"IF(Z45=\"\",\"\",IF(Z45=AB45,Y45,\"\"))","v":""},{"$f":"IF(Z45=\"\",\"\",IF(Z45=AB45,AC45,\"\"))","v":""},{"$f":"IF(Z45=\"\",\"\",IF(Z45<AB45,Y45,IF(Z45=AB45,\"\",AC45)))","v":""},{"$f":"IF(Z45=\"\",\"\",IF(Z45>AB45,Y41,\"\"))","v":""},{"$f":"IF(Z45=\"\",\"\",IF(Z45<AB45,AC41,\"\"))","v":""},{"$f":"CONCATENATE(AE45,AH45)","v":""},null,null,null,null,null,null,null,null,null,null,null,null,null,null,null,null,null,null,null,null,null,null,null,null,null,null,null,null,null,null,null,null,null,null,null,null,null,null,null,null,null,null,null,null,null,null,null,null,null,null,""]
[null,null,null,null,null,null,null,null,null,null,null,null,null,null,null,null,null,null,null,null,null,null,null,{"$f":"N_Substitute","v":"Substitute"},null,null,null,null,null,null,null,null,null,null,null,null,null,null,null,null,null,null,null,null,null,null,null,null,null,null,null,null,null,null,null,null,null,null,null,null,null,null,null,null,null,null,null,null,null,null,null,null,null,null,null,null,null,null,null,null,null,null,null,null,null,null,null,""]
[null,null,null,null,null,null,null,null,null,null,null,null,null,null,null,null,null,null,null,null,null,null,null,{"$f":"N_Substitute","v":"Substitute"},null,null,null,null,null,null,null,null,null,null,null,null,null,null,null,null,null,null,null,null,null,null,null,null,null,null,null,null,null,null,null,null,null,null,null,null,null,null,null,null,null,null,null,null,null,null,null,null,null,null,null,null,null,null,null,null,null,null,null,null,null,null,null,""]
[null,null,null,null,null,null,null,null,null,null,null,null,null,null,null,null,null,null,null,null,"#G2",null,null,null,{"$f":"IF(COUNTA(G37:G39) =3,GMFTGROUPORDERTEAM(G37:G39,Y41:Y61,AC41:AC61),\"\")","v":"Eq2"},{"$f":"IF(OR(ISNUMBER(Z49),ISNUMBER(Z50),ISNUMBER(Z51),ISNUMBER(Z52)),4-COUNTBLANK(AI49:AI52),\"\")","v":""},"-",{"$f":"IF(OR(ISNUMBER(Z49),ISNUMBER(Z50),ISNUMBER(Z51),ISNUMBER(Z52)),4-COUNTBLANK(AJ49:AJ52),\"\")","v":""},{"$f":"IF(COUNTA(G37:G39) =3,GMFTGROUPORDERTEAM(G37:G39,Y41:Y61,AC41:AC61),\"\")","v":"Eq3"},null,{"$f":"IF(Z48=\"\",\"\",IF(Z48>AB48,Y48,IF(Z48=AB48,IF(NoDrawWithWithdraw,IF(AL48=Y48,AC48,IF(AL48=AC48,Y48,\"\")),\"\"),AC48)))","v":""},{"$f":"IF(Z48=\"\",\"\",IF(Z48=AB48,IF(NoDrawWithWithdraw,IF(AL48=Y48,\"\",IF(AL48=AC48,\"\",Y48)),Y48),\"\"))","v":""},{"$f":"IF(Z48=\"\",\"\",IF(Z48=AB48,IF(NoDrawWithWithdraw,IF(AL48=Y48,\"\",IF(AL48=AC48,\"\",AC48)),AC48),\"\"))","v":""},{"$f":"IF(Z48=\"\",\"\",IF(Z48<AB48,Y48,IF(Z48=AB48,IF(NoDrawWithWithdraw,IF(AL48=Y48,Y48,IF(AL48=AC48,AC48,\"\")),\"\"),AC48)))","v":""},{"$f":"IF(Z48=\"\",\"\",SUM(Z49:Z52))","v":""},{"$f":"IF(Z48=\"\",\"\",SUM(AB49:AB52))","v":""},{"$f":"CONCATENATE(AE48,AH48)","v":""},{"$f":"IF(COUNTIF(Y49:Y52,WithdrawLabel)>COUNTIF(AC49:AC52,WithdrawLabel),Y48,IF(COUNTIF(AC49:AC52,WithdrawLabel)>COUNTIF(Y49:Y52,WithdrawLabel),AC48,\"\"))","v":""},null,null,null,null,null,null,null,null,null,null,null,null,null,null,null,null,null,null,null,null,null,null,null,null,null,null,null,null,null,null,null,null,null,null,null,null,null,null,null,null,null,null,null,null,null,null,null,null,null,""]
[null,null,null,null,null,null,null,null,null,null,null,null,null,null,null,null,null,null,null,null,null,null,null,null,null,null,"-",null,null,null,{"$f":"IF(Z49=\"\",\"\",IF(Z49>AB49,Y49,IF(Z49=AB49,\"\",AC49)))","v":""},{"$f":"IF(Z49=\"\",\"\",IF(Z49=AB49,Y49,\"\"))","v":""},{"$f":"IF(Z49=\"\",\"\",IF(Z49=AB49,AC49,\"\"))","v":""},{"$f":"IF(Z49=\"\",\"\",IF(Z49<AB49,Y49,IF(Z49=AB49,\"\",AC49)))","v":""},{"$f":"IF(Z49=\"\",\"\",IF(Z49>AB49,Y48,\"\"))","v":""},{"$f":"IF(Z49=\"\",\"\",IF(Z49<AB49,AC48,\"\"))","v":""},{"$f":"CONCATENATE(AE49,AH49)","v":""},null,null,null,null,null,null,null,null,null,null,null,null,null,null,null,null,null,null,null,null,null,null,null,null,null,null,null,null,null,null,null,null,null,null,null,null,null,null,null,null,null,null,null,null,null,null,null,null,null,null,""]
[null,null,null,null,null,null,null,null,null,null,null,null,null,null,null,null,null,null,null,null,null,null,null,null,null,null,"-",null,null,null,{"$f":"IF(Z50=\"\",\"\",IF(Z50>AB50,Y50,IF(Z50=AB50,\"\",AC50)))","v":""},{"$f":"IF(Z50=\"\",\"\",IF(Z50=AB50,Y50,\"\"))","v":""},{"$f":"IF(Z50=\"\",\"\",IF(Z50=AB50,AC50,\"\"))","v":""},{"$f":"IF(Z50=\"\",\"\",IF(Z50<AB50,Y50,IF(Z50=AB50,\"\",AC50)))","v":""},{"$f":"IF(Z50=\"\",\"\",IF(Z50>AB50,Y48,\"\"))","v":""},{"$f":"IF(Z50=\"\",\"\",IF(Z50<AB50,AC48,\"\"))","v":""},{"$f":"CONCATENATE(AE50,AH50)","v":""},null,null,null,null,null,null,null,null,null,null,null,null,null,null,null,null,null,null,null,null,null,null,null,null,null,null,null,null,null,null,null,null,null,null,null,null,null,null,null,null,null,null,null,null,null,null,null,null,null,null,""]
[null,null,null,null,null,null,null,null,null,null,null,null,null,null,null,null,null,null,null,null,null,null,null,null,null,null,"-",null,null,null,{"$f":"IF(Z51=\"\",\"\",IF(Z51>AB51,Y51,IF(Z51=AB51,\"\",AC51)))","v":""},{"$f":"IF(Z51=\"\",\"\",IF(Z51=AB51,Y51,\"\"))","v":""},{"$f":"IF(Z51=\"\",\"\",IF(Z51=AB51,AC51,\"\"))","v":""},{"$f":"IF(Z51=\"\",\"\",IF(Z51<AB51,Y51,IF(Z51=AB51,\"\",AC51)))","v":""},{"$f":"IF(Z51=\"\",\"\",IF(Z51>AB51,Y48,\"\"))","v":""},{"$f":"IF(Z51=\"\",\"\",IF(Z51<AB51,AC48,\"\"))","v":""},{"$f":"CONCATENATE(AE51,AH51)","v":""},null,null,null,null,null,null,null,null,null,null,null,null,null,null,null,null,null,null,null,null,null,null,null,null,null,null,null,null,null,null,null,null,null,null,null,null,null,null,null,null,null,null,null,null,null,null,null,null,null,null,""]
[null,null,null,null,null,null,null,null,null,null,null,null,null,null,null,null,null,null,null,null,null,null,null,null,null,null,"-",null,null,null,{"$f":"IF(Z52=\"\",\"\",IF(Z52>AB52,Y52,IF(Z52=AB52,\"\",AC52)))","v":""},{"$f":"IF(Z52=\"\",\"\",IF(Z52=AB52,Y52,\"\"))","v":""},{"$f":"IF(Z52=\"\",\"\",IF(Z52=AB52,AC52,\"\"))","v":""},{"$f":"IF(Z52=\"\",\"\",IF(Z52<AB52,Y52,IF(Z52=AB52,\"\",AC52)))","v":""},{"$f":"IF(Z52=\"\",\"\",IF(Z52>AB52,Y48,\"\"))","v":""},{"$f":"IF(Z52=\"\",\"\",IF(Z52<AB52,AC48,\"\"))","v":""},{"$f":"CONCATENATE(AE52,AH52)","v":""},null,null,null,null,null,null,null,null,null,null,null,null,null,null,null,null,null,null,null,null,null,null,null,null,null,null,null,null,null,null,null,null,null,null,null,null,null,null,null,null,null,null,null,null,null,null,null,null,null,null,""]
[null,null,null,null,null,null,null,null,null,null,null,null,null,null,null,null,null,null,null,null,null,null,null,{"$f":"N_Substitute","v":"Substitute"},null,null,null,null,null,null,null,null,null,null,null,null,null,null,null,null,null,null,null,null,null,null,null,null,null,null,null,null,null,null,null,null,null,null,null,null,null,null,null,null,null,null,null,null,null,null,null,null,null,null,null,null,null,null,null,null,null,null,null,null,null,null,null,""]
[null,null,null,null,null,null,null,null,null,null,null,null,null,null,null,null,null,null,null,null,null,null,null,{"$f":"N_Substitute","v":"Substitute"},null,null,null,null,null,null,null,null,null,null,null,null,null,null,null,null,null,null,null,null,null,null,null,null,null,null,null,null,null,null,null,null,null,null,null,null,null,null,null,null,null,null,null,null,null,null,null,null,null,null,null,null,null,null,null,null,null,null,null,null,null,null,null,""]
[null,null,null,null,null,null,null,null,null,null,null,null,null,null,null,null,null,null,null,null,"#G3",null,null,null,{"$f":"IF(COUNTA(G37:G39) =3,GMFTGROUPORDERTEAM(G37:G39,Y41:Y61,AC41:AC61),\"\")","v":"Eq1"},{"$f":"IF(OR(ISNUMBER(Z56),ISNUMBER(Z57),ISNUMBER(Z58),ISNUMBER(Z59)),4-COUNTBLANK(AI56:AI59),\"\")","v":""},"-",{"$f":"IF(OR(ISNUMBER(Z56),ISNUMBER(Z57),ISNUMBER(Z58),ISNUMBER(Z59)),4-COUNTBLANK(AJ56:AJ59),\"\")","v":""},{"$f":"IF(COUNTA(G37:G39) =3,GMFTGROUPORDERTEAM(G37:G39,Y41:Y61,AC41:AC61),\"\")","v":"Eq2"},null,{"$f":"IF(Z55=\"\",\"\",IF(Z55>AB55,Y55,IF(Z55=AB55,IF(NoDrawWithWithdraw,IF(AL55=Y55,AC55,IF(AL55=AC55,Y55,\"\")),\"\"),AC55)))","v":""},{"$f":"IF(Z55=\"\",\"\",IF(Z55=AB55,IF(NoDrawWithWithdraw,IF(AL55=Y55,\"\",IF(AL55=AC55,\"\",Y55)),Y55),\"\"))","v":""},{"$f":"IF(Z55=\"\",\"\",IF(Z55=AB55,IF(NoDrawWithWithdraw,IF(AL55=Y55,\"\",IF(AL55=AC55,\"\",AC55)),AC55),\"\"))","v":""},{"$f":"IF(Z55=\"\",\"\",IF(Z55<AB55,Y55,IF(Z55=AB55,IF(NoDrawWithWithdraw,IF(AL55=Y55,Y55,IF(AL55=AC55,AC55,\"\")),\"\"),AC55)))","v":""},{"$f":"IF(Z55=\"\",\"\",SUM(Z56:Z59))","v":""},{"$f":"IF(Z55=\"\",\"\",SUM(AB56:AB59))","v":""},{"$f":"CONCATENATE(AE55,AH55)","v":""},{"$f":"IF(COUNTIF(Y56:Y59,WithdrawLabel)>COUNTIF(AC56:AC59,WithdrawLabel),Y55,IF(COUNTIF(AC56:AC59,WithdrawLabel)>COUNTIF(Y56:Y59,WithdrawLabel),AC55,\"\"))","v":""},null,null,null,null,null,null,null,null,null,null,null,null,null,null,null,null,null,null,null,null,null,null,null,null,null,null,null,null,null,null,null,null,null,null,null,null,null,null,null,null,null,null,null,null,null,null,null,null,null,""]
[null,null,null,null,null,null,null,null,null,null,null,null,null,null,null,null,null,null,null,null,null,null,null,null,null,null,"-",null,null,null,{"$f":"IF(Z56=\"\",\"\",IF(Z56>AB56,Y56,IF(Z56=AB56,\"\",AC56)))","v":""},{"$f":"IF(Z56=\"\",\"\",IF(Z56=AB56,Y56,\"\"))","v":""},{"$f":"IF(Z56=\"\",\"\",IF(Z56=AB56,AC56,\"\"))","v":""},{"$f":"IF(Z56=\"\",\"\",IF(Z56<AB56,Y56,IF(Z56=AB56,\"\",AC56)))","v":""},{"$f":"IF(Z56=\"\",\"\",IF(Z56>AB56,Y55,\"\"))","v":""},{"$f":"IF(Z56=\"\",\"\",IF(Z56<AB56,AC55,\"\"))","v":""},{"$f":"CONCATENATE(AE56,AH56)","v":""},null,null,null,null,null,null,null,null,null,null,null,null,null,null,null,null,null,null,null,null,null,null,null,null,null,null,null,null,null,null,null,null,null,null,null,null,null,null,null,null,null,null,null,null,null,null,null,null,null,null,""]
[null,null,null,null,null,null,null,null,null,null,null,null,null,null,null,null,null,null,null,null,null,null,null,null,null,null,"-",null,null,null,{"$f":"IF(Z57=\"\",\"\",IF(Z57>AB57,Y57,IF(Z57=AB57,\"\",AC57)))","v":""},{"$f":"IF(Z57=\"\",\"\",IF(Z57=AB57,Y57,\"\"))","v":""},{"$f":"IF(Z57=\"\",\"\",IF(Z57=AB57,AC57,\"\"))","v":""},{"$f":"IF(Z57=\"\",\"\",IF(Z57<AB57,Y57,IF(Z57=AB57,\"\",AC57)))","v":""},{"$f":"IF(Z57=\"\",\"\",IF(Z57>AB57,Y55,\"\"))","v":""},{"$f":"IF(Z57=\"\",\"\",IF(Z57<AB57,AC55,\"\"))","v":""},{"$f":"CONCATENATE(AE57,AH57)","v":""},null,null,null,null,null,null,null,null,null,null,null,null,null,null,null,null,null,null,null,null,null,null,null,null,null,null,null,null,null,null,null,null,null,null,null,null,null,null,null,null,null,null,null,null,null,null,null,null,null,null,""]
[null,null,null,null,null,null,null,null,null,null,null,null,null,null,null,null,null,null,null,null,null,null,null,null,null,null,"-",null,null,null,{"$f":"IF(Z58=\"\",\"\",IF(Z58>AB58,Y58,IF(Z58=AB58,\"\",AC58)))","v":""},{"$f":"IF(Z58=\"\",\"\",IF(Z58=AB58,Y58,\"\"))","v":""},{"$f":"IF(Z58=\"\",\"\",IF(Z58=AB58,AC58,\"\"))","v":""},{"$f":"IF(Z58=\"\",\"\",IF(Z58<AB58,Y58,IF(Z58=AB58,\"\",AC58)))","v":""},{"$f":"IF(Z58=\"\",\"\",IF(Z58>AB58,Y55,\"\"))","v":""},{"$f":"IF(Z58=\"\",\"\",IF(Z58<AB58,AC55,\"\"))","v":""},{"$f":"CONCATENATE(AE58,AH58)","v":""},null,null,null,null,null,null,null,null,null,null,null,null,null,null,null,null,null,null,null,null,null,null,null,null,null,null,null,null,null,null,null,null,null,null,null,null,null,null,null,null,null,null,null,null,null,null,null,null,null,null,""]
[null,null,null,null,null,null,null,null,null,null,null,null,null,null,null,null,null,null,null,null,null,null,null,null,null,null,"-",null,null,null,{"$f":"IF(Z59=\"\",\"\",IF(Z59>AB59,Y59,IF(Z59=AB59,\"\",AC59)))","v":""},{"$f":"IF(Z59=\"\",\"\",IF(Z59=AB59,Y59,\"\"))","v":""},{"$f":"IF(Z59=\"\",\"\",IF(Z59=AB59,AC59,\"\"))","v":""},{"$f":"IF(Z59=\"\",\"\",IF(Z59<AB59,Y59,IF(Z59=AB59,\"\",AC59)))","v":""},{"$f":"IF(Z59=\"\",\"\",IF(Z59>AB59,Y55,\"\"))","v":""},{"$f":"IF(Z59=\"\",\"\",IF(Z59<AB59,AC55,\"\"))","v":""},{"$f":"CONCATENATE(AE59,AH59)","v":""},null,null,null,null,null,null,null,null,null,null,null,null,null,null,null,null,null,null,null,null,null,null,null,null,null,null,null,null,null,null,null,null,null,null,null,null,null,null,null,null,null,null,null,null,null,null,null,null,null,null,""]
[null,null,null,null,null,null,null,null,null,null,null,null,null,null,null,null,null,null,null,null,null,null,null,{"$f":"N_Substitute","v":"Substitute"},null,null,null,null,null,null,null,null,null,null,null,null,null,null,null,null,null,null,null,null,null,null,null,null,null,null,null,null,null,null,null,null,null,null,null,null,null,null,null,null,null,null,null,null,null,null,null,null,null,null,null,null,null,null,null,null,null,null,null,null,null,null,null,""]
[null,null,null,null,null,null,null,null,null,null,null,null,null,null,null,null,null,null,null,null,null,null,null,{"$f":"N_Substitute","v":"Substitute"},null,null,null,null,null,null,null,null,null,null,null,null,null,null,null,null,null,null,null,null,null,null,null,null,null,null,null,null,null,null,null,null,null,null,null,null,null,null,null,null,null,null,null,null,null,null,null,null,null,null,null,null,null,null,null,null,null,null,null,null,null,null,null,""]
[null,null,null,null,null,null,null,null,null,null,null,null,null,null,null,null,null,null,null,null,"#G4",null,null,null,{"$f":"AC41","v":"Eq1"},{"$f":"IF(OR(ISNUMBER(Z63),ISNUMBER(Z64),ISNUMBER(Z65),ISNUMBER(Z66)),4-COUNTBLANK(AI63:AI66),\"\")","v":""},"-",{"$f":"IF(OR(ISNUMBER(Z63),ISNUMBER(Z64),ISNUMBER(Z65),ISNUMBER(Z66)),4-COUNTBLANK(AJ63:AJ66),\"\")","v":""},{"$f":"Y41","v":"Eq3"},null,{"$f":"IF(Z62=\"\",\"\",IF(Z62>AB62,Y62,IF(Z62=AB62,IF(NoDrawWithWithdraw,IF(AL62=Y62,AC62,IF(AL62=AC62,Y62,\"\")),\"\"),AC62)))","v":""},{"$f":"IF(Z62=\"\",\"\",IF(Z62=AB62,IF(NoDrawWithWithdraw,IF(AL62=Y62,\"\",IF(AL62=AC62,\"\",Y62)),Y62),\"\"))","v":""},{"$f":"IF(Z62=\"\",\"\",IF(Z62=AB62,IF(NoDrawWithWithdraw,IF(AL62=Y62,\"\",IF(AL62=AC62,\"\",AC62)),AC62),\"\"))","v":""},{"$f":"IF(Z62=\"\",\"\",IF(Z62<AB62,Y62,IF(Z62=AB62,IF(NoDrawWithWithdraw,IF(AL62=Y62,Y62,IF(AL62=AC62,AC62,\"\")),\"\"),AC62)))","v":""},{"$f":"IF(Z62=\"\",\"\",SUM(Z63:Z66))","v":""},{"$f":"IF(Z62=\"\",\"\",SUM(AB63:AB66))","v":""},{"$f":"CONCATENATE(AE62,AH62)","v":""},{"$f":"IF(COUNTIF(Y63:Y66,WithdrawLabel)>COUNTIF(AC63:AC66,WithdrawLabel),Y62,IF(COUNTIF(AC63:AC66,WithdrawLabel)>COUNTIF(Y63:Y66,WithdrawLabel),AC62,\"\"))","v":""},null,null,null,null,null,null,null,null,null,null,null,null,null,null,null,null,null,null,null,null,null,null,null,null,null,null,null,null,null,null,null,null,null,null,null,null,null,null,null,null,null,null,null,null,null,null,null,null,null,""]
[null,null,null,null,null,null,null,null,null,null,null,null,null,null,null,null,null,null,null,null,null,null,null,null,null,null,"-",null,null,null,{"$f":"IF(Z63=\"\",\"\",IF(Z63>AB63,Y63,IF(Z63=AB63,\"\",AC63)))","v":""},{"$f":"IF(Z63=\"\",\"\",IF(Z63=AB63,Y63,\"\"))","v":""},{"$f":"IF(Z63=\"\",\"\",IF(Z63=AB63,AC63,\"\"))","v":""},{"$f":"IF(Z63=\"\",\"\",IF(Z63<AB63,Y63,IF(Z63=AB63,\"\",AC63)))","v":""},{"$f":"IF(Z63=\"\",\"\",IF(Z63>AB63,Y62,\"\"))","v":""},{"$f":"IF(Z63=\"\",\"\",IF(Z63<AB63,AC62,\"\"))","v":""},{"$f":"CONCATENATE(AE63,AH63)","v":""},null,null,null,null,null,null,null,null,null,null,null,null,null,null,null,null,null,null,null,null,null,null,null,null,null,null,null,null,null,null,null,null,null,null,null,null,null,null,null,null,null,null,null,null,null,null,null,null,null,null,""]
[null,null,null,null,null,null,null,null,null,null,null,null,null,null,null,null,null,null,null,null,null,null,null,null,null,null,"-",null,null,null,{"$f":"IF(Z64=\"\",\"\",IF(Z64>AB64,Y64,IF(Z64=AB64,\"\",AC64)))","v":""},{"$f":"IF(Z64=\"\",\"\",IF(Z64=AB64,Y64,\"\"))","v":""},{"$f":"IF(Z64=\"\",\"\",IF(Z64=AB64,AC64,\"\"))","v":""},{"$f":"IF(Z64=\"\",\"\",IF(Z64<AB64,Y64,IF(Z64=AB64,\"\",AC64)))","v":""},{"$f":"IF(Z64=\"\",\"\",IF(Z64>AB64,Y62,\"\"))","v":""},{"$f":"IF(Z64=\"\",\"\",IF(Z64<AB64,AC62,\"\"))","v":""},{"$f":"CONCATENATE(AE64,AH64)","v":""},null,null,null,null,null,null,null,null,null,null,null,null,null,null,null,null,null,null,null,null,null,null,null,null,null,null,null,null,null,null,null,null,null,null,null,null,null,null,null,null,null,null,null,null,null,null,null,null,null,null,""]
[null,null,null,null,null,null,null,null,null,null,null,null,null,null,null,null,null,null,null,null,null,null,null,null,null,null,"-",null,null,null,{"$f":"IF(Z65=\"\",\"\",IF(Z65>AB65,Y65,IF(Z65=AB65,\"\",AC65)))","v":""},{"$f":"IF(Z65=\"\",\"\",IF(Z65=AB65,Y65,\"\"))","v":""},{"$f":"IF(Z65=\"\",\"\",IF(Z65=AB65,AC65,\"\"))","v":""},{"$f":"IF(Z65=\"\",\"\",IF(Z65<AB65,Y65,IF(Z65=AB65,\"\",AC65)))","v":""},{"$f":"IF(Z65=\"\",\"\",IF(Z65>AB65,Y62,\"\"))","v":""},{"$f":"IF(Z65=\"\",\"\",IF(Z65<AB65,AC62,\"\"))","v":""},{"$f":"CONCATENATE(AE65,AH65)","v":""},null,null,null,null,null,null,null,null,null,null,null,null,null,null,null,null,null,null,null,null,null,null,null,null,null,null,null,null,null,null,null,null,null,null,null,null,null,null,null,null,null,null,null,null,null,null,null,null,null,null,""]
[null,null,null,null,null,null,null,null,null,null,null,null,null,null,null,null,null,null,null,null,null,null,null,null,null,null,"-",null,null,null,{"$f":"IF(Z66=\"\",\"\",IF(Z66>AB66,Y66,IF(Z66=AB66,\"\",AC66)))","v":""},{"$f":"IF(Z66=\"\",\"\",IF(Z66=AB66,Y66,\"\"))","v":""},{"$f":"IF(Z66=\"\",\"\",IF(Z66=AB66,AC66,\"\"))","v":""},{"$f":"IF(Z66=\"\",\"\",IF(Z66<AB66,Y66,IF(Z66=AB66,\"\",AC66)))","v":""},{"$f":"IF(Z66=\"\",\"\",IF(Z66>AB66,Y62,\"\"))","v":""},{"$f":"IF(Z66=\"\",\"\",IF(Z66<AB66,AC62,\"\"))","v":""},{"$f":"CONCATENATE(AE66,AH66)","v":""},null,null,null,null,null,null,null,null,null,null,null,null,null,null,null,null,null,null,null,null,null,null,null,null,null,null,null,null,null,null,null,null,null,null,null,null,null,null,null,null,null,null,null,null,null,null,null,null,null,null,""]
[null,null,null,null,null,null,null,null,null,null,null,null,null,null,null,null,null,null,null,null,null,null,null,{"$f":"N_Substitute","v":"Substitute"},null,null,null,null,null,null,null,null,null,null,null,null,null,null,null,null,null,null,null,null,null,null,null,null,null,null,null,null,null,null,null,null,null,null,null,null,null,null,null,null,null,null,null,null,null,null,null,null,null,null,null,null,null,null,null,null,null,null,null,null,null,null,null,""]
[null,null,null,null,null,null,null,null,null,null,null,null,null,null,null,null,null,null,null,null,null,null,null,{"$f":"N_Substitute","v":"Substitute"}]
[null,null,null,null,null,null,null,null,null,null,null,null,null,null,null,null,null,null,null,null,"#G5",null,null,null,{"$f":"AC48","v":"Eq3"},{"$f":"IF(OR(ISNUMBER(Z70),ISNUMBER(Z71),ISNUMBER(Z72),ISNUMBER(Z73)),4-COUNTBLANK(AI70:AI73),\"\")","v":""},"-",{"$f":"IF(OR(ISNUMBER(Z70),ISNUMBER(Z71),ISNUMBER(Z72),ISNUMBER(Z73)),4-COUNTBLANK(AJ70:AJ73),\"\")","v":""},{"$f":"Y48","v":"Eq2"},null,{"$f":"IF(Z69=\"\",\"\",IF(Z69>AB69,Y69,IF(Z69=AB69,IF(NoDrawWithWithdraw,IF(AL69=Y69,AC69,IF(AL69=AC69,Y69,\"\")),\"\"),AC69)))","v":""},{"$f":"IF(Z69=\"\",\"\",IF(Z69=AB69,IF(NoDrawWithWithdraw,IF(AL69=Y69,\"\",IF(AL69=AC69,\"\",Y69)),Y69),\"\"))","v":""},{"$f":"IF(Z69=\"\",\"\",IF(Z69=AB69,IF(NoDrawWithWithdraw,IF(AL69=Y69,\"\",IF(AL69=AC69,\"\",AC69)),AC69),\"\"))","v":""},{"$f":"IF(Z69=\"\",\"\",IF(Z69<AB69,Y69,IF(Z69=AB69,IF(NoDrawWithWithdraw,IF(AL69=Y69,Y69,IF(AL69=AC69,AC69,\"\")),\"\"),AC69)))","v":""},{"$f":"IF(Z69=\"\",\"\",SUM(Z70:Z73))","v":""},{"$f":"IF(Z69=\"\",\"\",SUM(AB70:AB73))","v":""},{"$f":"CONCATENATE(AE69,AH69)","v":""},{"$f":"IF(COUNTIF(Y70:Y73,WithdrawLabel)>COUNTIF(AC70:AC73,WithdrawLabel),Y69,IF(COUNTIF(AC70:AC73,WithdrawLabel)>COUNTIF(Y70:Y73,WithdrawLabel),AC69,\"\"))","v":""}]
[null,null,null,null,null,null,null,null,null,null,null,null,null,null,null,null,null,null,null,null,null,null,null,null,null,null,"-",null,null,null,{"$f":"IF(Z70=\"\",\"\",IF(Z70>AB70,Y70,IF(Z70=AB70,\"\",AC70)))","v":""},{"$f":"IF(Z70=\"\",\"\",IF(Z70=AB70,Y70,\"\"))","v":""},{"$f":"IF(Z70=\"\",\"\",IF(Z70=AB70,AC70,\"\"))","v":""},{"$f":"IF(Z70=\"\",\"\",IF(Z70<AB70,Y70,IF(Z70=AB70,\"\",AC70)))","v":""},{"$f":"IF(Z70=\"\",\"\",IF(Z70>AB70,Y69,\"\"))","v":""},{"$f":"IF(Z70=\"\",\"\",IF(Z70<AB70,AC69,\"\"))","v":""},{"$f":"CONCATENATE(AE70,AH70)","v":""}]
[null,null,null,null,null,null,null,null,null,null,null,null,null,null,null,null,null,null,null,null,null,null,null,null,null,null,"-",null,null,null,{"$f":"IF(Z71=\"\",\"\",IF(Z71>AB71,Y71,IF(Z71=AB71,\"\",AC71)))","v":""},{"$f":"IF(Z71=\"\",\"\",IF(Z71=AB71,Y71,\"\"))","v":""},{"$f":"IF(Z71=\"\",\"\",IF(Z71=AB71,AC71,\"\"))","v":""},{"$f":"IF(Z71=\"\",\"\",IF(Z71<AB71,Y71,IF(Z71=AB71,\"\",AC71)))","v":""},{"$f":"IF(Z71=\"\",\"\",IF(Z71>AB71,Y69,\"\"))","v":""},{"$f":"IF(Z71=\"\",\"\",IF(Z71<AB71,AC69,\"\"))","v":""},{"$f":"CONCATENATE(AE71,AH71)","v":""}]
[null,null,null,null,null,null,null,null,null,null,null,null,null,null,null,null,null,null,null,null,null,null,null,null,null,null,"-",null,null,null,{"$f":"IF(Z72=\"\",\"\",IF(Z72>AB72,Y72,IF(Z72=AB72,\"\",AC72)))","v":""},{"$f":"IF(Z72=\"\",\"\",IF(Z72=AB72,Y72,\"\"))","v":""},{"$f":"IF(Z72=\"\",\"\",IF(Z72=AB72,AC72,\"\"))","v":""},{"$f":"IF(Z72=\"\",\"\",IF(Z72<AB72,Y72,IF(Z72=AB72,\"\",AC72)))","v":""},{"$f":"IF(Z72=\"\",\"\",IF(Z72>AB72,Y69,\"\"))","v":""},{"$f":"IF(Z72=\"\",\"\",IF(Z72<AB72,AC69,\"\"))","v":""},{"$f":"CONCATENATE(AE72,AH72)","v":""}]
[null,null,null,null,null,null,null,null,null,null,null,null,null,null,null,null,null,null,null,null,null,null,null,null,null,null,"-",null,null,null,{"$f":"IF(Z73=\"\",\"\",IF(Z73>AB73,Y73,IF(Z73=AB73,\"\",AC73)))","v":""},{"$f":"IF(Z73=\"\",\"\",IF(Z73=AB73,Y73,\"\"))","v":""},{"$f":"IF(Z73=\"\",\"\",IF(Z73=AB73,AC73,\"\"))","v":""},{"$f":"IF(Z73=\"\",\"\",IF(Z73<AB73,Y73,IF(Z73=AB73,\"\",AC73)))","v":""},{"$f":"IF(Z73=\"\",\"\",IF(Z73>AB73,Y69,\"\"))","v":""},{"$f":"IF(Z73=\"\",\"\",IF(Z73<AB73,AC69,\"\"))","v":""},{"$f":"CONCATENATE(AE73,AH73)","v":""}]
[null,null,null,null,null,null,null,null,null,null,null,null,null,null,null,null,null,null,null,null,null,null,null,{"$f":"N_Substitute","v":"Substitute"}]
[null,null,null,null,null,null,null,null,null,null,null,null,null,null,null,null,null,null,null,null,null,null,null,{"$f":"N_Substitute","v":"Substitute"}]
[null,null,null,null,null,null,null,null,null,null,null,null,null,null,null,null,null,null,null,null,"#G6",null,null,null,{"$f":"AC55","v":"Eq2"},{"$f":"IF(OR(ISNUMBER(Z77),ISNUMBER(Z78),ISNUMBER(Z79),ISNUMBER(Z80)),4-COUNTBLANK(AI77:AI80),\"\")","v":""},"-",{"$f":"IF(OR(ISNUMBER(Z77),ISNUMBER(Z78),ISNUMBER(Z79),ISNUMBER(Z80)),4-COUNTBLANK(AJ77:AJ80),\"\")","v":""},{"$f":"Y55","v":"Eq1"},null,{"$f":"IF(Z76=\"\",\"\",IF(Z76>AB76,Y76,IF(Z76=AB76,IF(NoDrawWithWithdraw,IF(AL76=Y76,AC76,IF(AL76=AC76,Y76,\"\")),\"\"),AC76)))","v":""},{"$f":"IF(Z76=\"\",\"\",IF(Z76=AB76,IF(NoDrawWithWithdraw,IF(AL76=Y76,\"\",IF(AL76=AC76,\"\",Y76)),Y76),\"\"))","v":""},{"$f":"IF(Z76=\"\",\"\",IF(Z76=AB76,IF(NoDrawWithWithdraw,IF(AL76=Y76,\"\",IF(AL76=AC76,\"\",AC76)),AC76),\"\"))","v":""},{"$f":"IF(Z76=\"\",\"\",IF(Z76<AB76,Y76,IF(Z76=AB76,IF(NoDrawWithWithdraw,IF(AL76=Y76,Y76,IF(AL76=AC76,AC76,\"\")),\"\"),AC76)))","v":""},{"$f":"IF(Z76=\"\",\"\",SUM(Z77:Z80))","v":""},{"$f":"IF(Z76=\"\",\"\",SUM(AB77:AB80))","v":""},{"$f":"CONCATENATE(AE76,AH76)","v":""},{"$f":"IF(COUNTIF(Y77:Y80,WithdrawLabel)>COUNTIF(AC77:AC80,WithdrawLabel),Y76,IF(COUNTIF(AC77:AC80,WithdrawLabel)>COUNTIF(Y77:Y80,WithdrawLabel),AC76,\"\"))","v":""}]
[null,null,null,null,null,null,null,null,null,null,null,null,null,null,null,null,null,null,null,null,null,null,null,null,null,null,"-",null,null,null,{"$f":"IF(Z77=\"\",\"\",IF(Z77>AB77,Y77,IF(Z77=AB77,\"\",AC77)))","v":""},{"$f":"IF(Z77=\"\",\"\",IF(Z77=AB77,Y77,\"\"))","v":""},{"$f":"IF(Z77=\"\",\"\",IF(Z77=AB77,AC77,\"\"))","v":""},{"$f":"IF(Z77=\"\",\"\",IF(Z77<AB77,Y77,IF(Z77=AB77,\"\",AC77)))","v":""},{"$f":"IF(Z77=\"\",\"\",IF(Z77>AB77,Y76,\"\"))","v":""},{"$f":"IF(Z77=\"\",\"\",IF(Z77<AB77,AC76,\"\"))","v":""},{"$f":"CONCATENATE(AE77,AH77)","v":""}]
[null,null,null,null,null,null,null,null,null,null,null,null,null,null,null,null,null,null,null,null,null,null,null,null,null,null,"-",null,null,null,{"$f":"IF(Z78=\"\",\"\",IF(Z78>AB78,Y78,IF(Z78=AB78,\"\",AC78)))","v":""},{"$f":"IF(Z78=\"\",\"\",IF(Z78=AB78,Y78,\"\"))","v":""},{"$f":"IF(Z78=\"\",\"\",IF(Z78=AB78,AC78,\"\"))","v":""},{"$f":"IF(Z78=\"\",\"\",IF(Z78<AB78,Y78,IF(Z78=AB78,\"\",AC78)))","v":""},{"$f":"IF(Z78=\"\",\"\",IF(Z78>AB78,Y76,\"\"))","v":""},{"$f":"IF(Z78=\"\",\"\",IF(Z78<AB78,AC76,\"\"))","v":""},{"$f":"CONCATENATE(AE78,AH78)","v":""}]
[null,null,null,null,null,null,null,null,null,null,null,null,null,null,null,null,null,null,null,null,null,null,null,null,null,null,"-",null,null,null,{"$f":"IF(Z79=\"\",\"\",IF(Z79>AB79,Y79,IF(Z79=AB79,\"\",AC79)))","v":""},{"$f":"IF(Z79=\"\",\"\",IF(Z79=AB79,Y79,\"\"))","v":""},{"$f":"IF(Z79=\"\",\"\",IF(Z79=AB79,AC79,\"\"))","v":""},{"$f":"IF(Z79=\"\",\"\",IF(Z79<AB79,Y79,IF(Z79=AB79,\"\",AC79)))","v":""},{"$f":"IF(Z79=\"\",\"\",IF(Z79>AB79,Y76,\"\"))","v":""},{"$f":"IF(Z79=\"\",\"\",IF(Z79<AB79,AC76,\"\"))","v":""},{"$f":"CONCATENATE(AE79,AH79)","v":""}]
[null,null,null,null,null,null,null,null,null,null,null,null,null,null,null,null,null,null,null,null,null,null,null,null,null,null,"-",null,null,null,{"$f":"IF(Z80=\"\",\"\",IF(Z80>AB80,Y80,IF(Z80=AB80,\"\",AC80)))","v":""},{"$f":"IF(Z80=\"\",\"\",IF(Z80=AB80,Y80,\"\"))","v":""},{"$f":"IF(Z80=\"\",\"\",IF(Z80=AB80,AC80,\"\"))","v":""},{"$f":"IF(Z80=\"\",\"\",IF(Z80<AB80,Y80,IF(Z80=AB80,\"\",AC80)))","v":""},{"$f":"IF(Z80=\"\",\"\",IF(Z80>AB80,Y76,\"\"))","v":""},{"$f":"IF(Z80=\"\",\"\",IF(Z80<AB80,AC76,\"\"))","v":""},{"$f":"CONCATENATE(AE80,AH80)","v":""}]
[null,null,null,null,null,null,null,null,null,null,null,null,null,null,null,null,null,null,null,null,null,null,null,{"$f":"N_Substitute","v":"Substitute"}]
[null,null,null,null,null,null,null,null,null,null,null,null,null,null,null,null,null,null,null,null,null,null,null,{"$f":"N_Substitute","v":"Substitute"}]
[]
[]
[null,{"$f":"N_Group_4","v":"Group of 4"},null,null,null,null,null,null,null,null,null,null,null,null,null,null,null,null,null,null,null,null,null,null,null,null,null,null,null,null,null,null,null,null,null,null,null,null,null,{"$f":"B85","v":"Group of 4"}]
[]
[null,{"$f":"N_Tirage","v":"Draw"},"Cla.","Cla1","Part","Cla2",{"$f":"N_Equipes","v":"Teams"},{"$f":"N_Pts","v":"Pts"},{"$f":"N_J","v":"Pld"},{"$f":"N_G","v":"W"},{"$f":"N_N","v":"D"},{"$f":"N_P","v":"L"},{"$f":"N_Diff_R","v":"ED"},{"$f":"N_MP","v":"WM"},{"$f":"N_MC","v":"LM"},{"$f":"N_Diff_M","v":"MD"},{"$f":"N_BP","v":"F"},{"$f":"N_BC","v":"A"},{"$f":"N_Diff_B","v":"GD"},null,null,null,null,null,null,null,null,null,null,null,null,null,null,null,null,null,null,null,null,null,{"$f":"N_Cla.","v":"Rk"},{"$f":"N_Equipes","v":"Teams"},{"$f":"N_Pts","v":"Pts"},{"$f":"N_J","v":"Pld"},{"$f":"N_G","v":"W"},{"$f":"N_N","v":"D"},{"$f":"N_P","v":"L"},{"$f":"N_Diff_R","v":"ED"},{"$f":"N_MP","v":"WM"},{"$f":"N_MC","v":"LM"},{"$f":"N_Diff_M","v":"MD"},{"$f":"N_BP","v":"F"},{"$f":"N_BC","v":"A"},{"$f":"N_Diff_B","v":"GD"},{"$f":"N_Matches","v":"Matches"}]
[null,1,{"$f":"IF(AL92=\"\",\"\",RANK(F88,F88:F91)*1000+ROW())","v":""},{"$f":"IF(J88=\"\",\"\",H88*CritClassEq1_Points+M88*CritClassEq1_DiffRencontres+P88*CritClassEq1_DiffMatches+S88*CritClassEq1_DiffButs+N88*CritClassEq1_Matches+Q88*CritClassEq1_Attaque)","v":""},{"$f":"IF(J88=\"\",\"\",Nb_Diff_Part(D88,D88:D91,G88,G88:G91,AK93:AK128)*CritClassEq_DiffPart+Nb_Goal_Part(D88,D88:D91,G88,G88:G91,Y93:AC128)*CritClassEq_IndsPart+Nb_Score_Part(D88,D88:D91,G88,G88:G91,Y93:AC128)*CritClassEq_WinsPart+Nb_GoalTeam_Part(D88,D88:D91,G88,G88:G91,Y93:AC128)*CritClassEq_GoalPart+Nb_ScoreTeam_Part(D88,D88:D91,G88,G88:G91,Y93:AC128)*CritClassEq_ScorePart)","v":""},{"$f":"IF(J88=\"\",\"\",D88+E88+H88*CritClassEq2_Points+M88*CritClassEq2_DiffRencontres+P88*CritClassEq2_DiffMatches+S88*CritClassEq2_DiffButs+N88*CritClassEq2_Matches+Q88*CritClassEq2_Attaque)","v":""},"Eq1",{"$f":"IF(AL92=\"\",\"\",(J88*Points_Victoire)+K88*Points_Null)","v":""},{"$f":"IF(J88=\"\",\"\",SUM(J88:L88))","v":""},{"$f":"IF(AL92=\"\",\"\",COUNTIF(AE93:AE132,G88))","v":""},{"$f":"IF(AL92=\"\",\"\",COUNTIF(AF93:AG132,G88))","v":""},{"$f":"IF(AL92=\"\",\"\",COUNTIF(AH93:AH132,G88))","v":""},{"$f":"IF(AL92=\"\",\"\",J88-L88)","v":""},{"$f":"IF(AL92=\"\",\"\",SUMIF(Y93:Y132,G88,Z93:Z132)+SUMIF(AC93:AC132,G88,AB93:AB132))","v":""},{"$f":"IF(AL92=\"\",\"\",SUMIF(Y93:Y132,G88,AB93:AB132)+SUMIF(AC93:AC132,G88,Z93:AL132))","v":""},{"$f":"IF(AL92=\"\",\"\",N88-O88)","v":""},{"$f":"IF(AL92=\"\",\"\",SUMIF(Y93:Y132,G88,AI93:AI132)+SUMIF(AC93:AC132,G88,AJ93:AJ132))","v":""},{"$f":"IF(AL92=\"\",\"\",SUMIF(Y93:Y132,G88,AJ93:AJ132)+SUMIF(AC93:AC132,G88,AI93:AI132))","v":""},{"$f":"IF(AL92=\"\",\"\",Q88-R88)","v":""},null,null,null,null,null,null,null,null,null,null,null,null,null,null,null,null,null,null,{"$f":"IF(AL92=\"\",\"\",SMALL(C88:C91,1))","v":""},null,null,{"$f":"IF(AL92=\"\",\"\",INT(AL88/1000))","v":""},{"$f":"IF(AL92=\"\",IF(HidePlayerFormulas,\"\",\"(\"&G88&\")\"),VLOOKUP(AL88,C88:S91,5,FALSE))","v":""},{"$f":"VLOOKUP(AL88,C88:S91,6,FALSE)","v":""},{"$f":"VLOOKUP(AL88,C88:S91,7,FALSE)","v":""},{"$f":"VLOOKUP(AL88,C88:S91,8,FALSE)","v":""},{"$f":"VLOOKUP(AL88,C88:S91,9,FALSE)","v":""},{"$f":"VLOOKUP(AL88,C88:S91,10,FALSE)","v":""},{"$f":"VLOOKUP(AL88,C88:S91,11,FALSE)","v":""},{"$f":"VLOOKUP(AL88,C88:S91,12,FALSE)","v":""},{"$f":"VLOOKUP(AL88,C88:S91,13,FALSE)","v":""},{"$f":"VLOOKUP(AL88,C88:S91,14,FALSE)","v":""},{"$f":"VLOOKUP(AL88,C88:S91,15,FALSE)","v":""},{"$f":"VLOOKUP(AL88,C88:S91,16,FALSE)","v":""},{"$f":"VLOOKUP(AL88,C88:S91,17,FALSE)","v":""},{"$f":"IF(Z93=\"\",\"\",IF(AP88=Y93,Z93&\"(\"&SUM(Z94:Z97)&\")\",IF(AP88=AC93,AB93&\"(\"&SUM(AB94:AB97)&\")\",\"\")))","v":""},{"$f":"IF(Z100=\"\",\"\",IF(AP88=Y100,Z100&\"(\"&SUM(Z101:Z104)&\")\",IF(AP88=AC100,AB100&\"(\"&SUM(AB101:AB104)&\")\",\"\")))","v":""},{"$f":"IF(Z107=\"\",\"\",IF(AP88=Y107,Z107&\"(\"&SUM(Z108:Z111)&\")\",IF(AP88=AC107,AB107&\"(\"&SUM(AB108:AB111)&\")\",\"\")))","v":""},{"$f":"IF(Z114=\"\",\"\",IF(AP88=Y114,Z114&\"(\"&SUM(Z115:Z118)&\")\",IF(AP88=AC114,AB114&\"(\"&SUM(AB115:AB118)&\")\",\"\")))","v":""},{"$f":"IF(Z121=\"\",\"\",IF(AP88=Y121,Z121&\"(\"&SUM(Z122:Z125)&\")\",IF(AP88=AC121,AB121&\"(\"&SUM(AB122:AB125)&\")\",\"\")))","v":""},{"$f":"IF(Z128=\"\",\"\",IF(AP88=Y128,Z128&\"(\"&SUM(Z129:Z132)&\")\",IF(AP88=AC128,AB128&\"(\"&SUM(AB129:AB132)&\")\",\"\")))","v":""},null,null,null,null,null,null,null,null,null,null,null,null,null,null,null,null,null,null,null,null,null,null,{"$f":"IF(G88=\"[---WithDraw---]\",FALSE,IF(COUNTIF(PlayerNamesWithinGroups,G88)>1,TRUE,FALSE))","v":true},{"$f":"AND(LEFT($AP88,1) = \"(\", RIGHT($AP88,1) =\")\")","v":false},{"$f":"IF(OR($AO88=$AO87,$AO88=$AO89),TRUE,FALSE)","v":true}]
[null,2,{"$f":"IF(AL92=\"\",\"\",RANK(F89,F88:F91)*1000+ROW())","v":""},{"$f":"IF(J89=\"\",\"\",H89*CritClassEq1_Points+M89*CritClassEq1_DiffRencontres+P89*CritClassEq1_DiffMatches+S89*CritClassEq1_DiffButs+N89*CritClassEq1_Matches+Q89*CritClassEq1_Attaque)","v":""},{"$f":"IF(J89=\"\",\"\",Nb_Diff_Part(D89,D88:D91,G89,G88:G91,AK93:AK128)*CritClassEq_DiffPart+Nb_Goal_Part(D89,D88:D91,G89,G88:G91,Y93:AC128)*CritClassEq_IndsPart+Nb_Score_Part(D89,D88:D91,G89,G88:G91,Y93:AC128)*CritClassEq_WinsPart+Nb_GoalTeam_Part(D89,D88:D91,G89,G88:G91,Y93:AC128)*CritClassEq_GoalPart+Nb_ScoreTeam_Part(D89,D88:D91,G89,G88:G91,Y93:AC128)*CritClassEq_ScorePart)","v":""},{"$f":"IF(J89=\"\",\"\",D89+E89+H89*CritClassEq2_Points+M89*CritClassEq2_DiffRencontres+P89*CritClassEq2_DiffMatches+S89*CritClassEq2_DiffButs+N89*CritClassEq2_Matches+Q89*CritClassEq2_Attaque)","v":""},"Eq2",{"$f":"IF(AL92=\"\",\"\",(J89*Points_Victoire)+K89*Points_Null)","v":""},{"$f":"IF(J89=\"\",\"\",SUM(J89:L89))","v":""},{"$f":"IF(AL92=\"\",\"\",COUNTIF(AE93:AE132,G89))","v":""},{"$f":"IF(AL92=\"\",\"\",COUNTIF(AF93:AG132,G89))","v":""},{"$f":"IF(AL92=\"\",\"\",COUNTIF(AH93:AH132,G89))","v":""},{"$f":"IF(AL92=\"\",\"\",J89-L89)","v":""},{"$f":"IF(AL92=\"\",\"\",SUMIF(Y93:Y132,G89,Z93:Z132)+SUMIF(AC93:AC132,G89,AB93:AB132))","v":""},{"$f":"IF(AL92=\"\",\"\",SUMIF(Y93:Y132,G89,AB93:AB132)+SUMIF(AC93:AC132,G89,Z93:AL132))","v":""},{"$f":"IF(AL92=\"\",\"\",N89-O89)","v":""},{"$f":"IF(AL92=\"\",\"\",SUMIF(Y93:Y132,G89,AI93:AI132)+SUMIF(AC93:AC132,G89,AJ93:AJ132))","v":""},{"$f":"IF(AL92=\"\",\"\",SUMIF(Y93:Y132,G89,AJ93:AJ132)+SUMIF(AC93:AC132,G89,AI93:AI132))","v":""},{"$f":"IF(AL92=\"\",\"\",Q89-R89)","v":""},null,null,null,null,null,null,null,null,null,null,null,null,null,null,null,null,null,null,{"$f":"IF(AL92=\"\",\"\",SMALL(C88:C91,2))","v":""},null,null,{"$f":"IF(AL92=\"\",\"\",INT(AL89/1000))","v":""},{"$f":"IF(AL92=\"\",IF(HidePlayerFormulas,\"\",\"(\"&G89&\")\"),VLOOKUP(AL89,C88:S91,5,FALSE))","v":""},{"$f":"VLOOKUP(AL89,C88:S91,6,FALSE)","v":""},{"$f":"VLOOKUP(AL89,C88:S91,7,FALSE)","v":""},{"$f":"VLOOKUP(AL89,C88:S91,8,FALSE)","v":""},{"$f":"VLOOKUP(AL89,C88:S91,9,FALSE)","v":""},{"$f":"VLOOKUP(AL89,C88:S91,10,FALSE)","v":""},{"$f":"VLOOKUP(AL89,C88:S91,11,FALSE)","v":""},{"$f":"VLOOKUP(AL89,C88:S91,12,FALSE)","v":""},{"$f":"VLOOKUP(AL89,C88:S91,13,FALSE)","v":""},{"$f":"VLOOKUP(AL89,C88:S91,14,FALSE)","v":""},{"$f":"VLOOKUP(AL89,C88:S91,15,FALSE)","v":""},{"$f":"VLOOKUP(AL89,C88:S91,16,FALSE)","v":""},{"$f":"VLOOKUP(AL89,C88:S91,17,FALSE)","v":""},{"$f":"IF(Z93=\"\",\"\",IF(AP89=Y93,Z93&\"(\"&SUM(Z94:Z97)&\")\",IF(AP89=AC93,AB93&\"(\"&SUM(AB94:AB97)&\")\",\"\")))","v":""},{"$f":"IF(Z100=\"\",\"\",IF(AP89=Y100,Z100&\"(\"&SUM(Z101:Z104)&\")\",IF(AP89=AC100,AB100&\"(\"&SUM(AB101:AB104)&\")\",\"\")))","v":""},{"$f":"IF(Z107=\"\",\"\",IF(AP89=Y107,Z107&\"(\"&SUM(Z108:Z111)&\")\",IF(AP89=AC107,AB107&\"(\"&SUM(AB108:AB111)&\")\",\"\")))","v":""},{"$f":"IF(Z114=\"\",\"\",IF(AP89=Y114,Z114&\"(\"&SUM(Z115:Z118)&\")\",IF(AP89=AC114,AB114&\"(\"&SUM(AB115:AB118)&\")\",\"\")))","v":""},{"$f":"IF(Z121=\"\",\"\",IF(AP89=Y121,Z121&\"(\"&SUM(Z122:Z125)&\")\",IF(AP89=AC121,AB121&\"(\"&SUM(AB122:AB125)&\")\",\"\")))","v":""},{"$f":"IF(Z128=\"\",\"\",IF(AP89=Y128,Z128&\"(\"&SUM(Z129:Z132)&\")\",IF(AP89=AC128,AB128&\"(\"&SUM(AB129:AB132)&\")\",\"\")))","v":""},null,null,null,null,null,null,null,null,null,null,null,null,null,null,null,null,null,null,null,null,null,null,{"$f":"IF(G89=\"[---WithDraw---]\",FALSE,IF(COUNTIF(PlayerNamesWithinGroups,G89)>1,TRUE,FALSE))","v":true},{"$f":"AND(LEFT($AP89,1) = \"(\", RIGHT($AP89,1) =\")\")","v":false},{"$f":"IF(OR($AO89=$AO88,$AO89=$AO90),TRUE,FALSE)","v":true}]
[null,3,{"$f":"IF(AL92=\"\",\"\",RANK(F90,F88:F91)*1000+ROW())","v":""},{"$f":"IF(J90=\"\",\"\",H90*CritClassEq1_Points+M90*CritClassEq1_DiffRencontres+P90*CritClassEq1_DiffMatches+S90*CritClassEq1_DiffButs+N90*CritClassEq1_Matches+Q90*CritClassEq1_Attaque)","v":""},{"$f":"IF(J90=\"\",\"\",Nb_Diff_Part(D90,D88:D91,G90,G88:G91,AK93:AK128)*CritClassEq_DiffPart+Nb_Goal_Part(D90,D88:D91,G90,G88:G91,Y93:AC128)*CritClassEq_IndsPart+Nb_Score_Part(D90,D88:D91,G90,G88:G91,Y93:AC128)*CritClassEq_WinsPart+Nb_GoalTeam_Part(D90,D88:D91,G90,G88:G91,Y93:AC128)*CritClassEq_GoalPart+Nb_ScoreTeam_Part(D90,D88:D91,G90,G88:G91,Y93:AC128)*CritClassEq_ScorePart)","v":""},{"$f":"IF(J90=\"\",\"\",D90+E90+H90*CritClassEq2_Points+M90*CritClassEq2_DiffRencontres+P90*CritClassEq2_DiffMatches+S90*CritClassEq2_DiffButs+N90*CritClassEq2_Matches+Q90*CritClassEq2_Attaque)","v":""},"Eq3",{"$f":"IF(AL92=\"\",\"\",(J90*Points_Victoire)+K90*Points_Null)","v":""},{"$f":"IF(J90=\"\",\"\",SUM(J90:L90))","v":""},{"$f":"IF(AL92=\"\",\"\",COUNTIF(AE93:AE132,G90))","v":""},{"$f":"IF(AL92=\"\",\"\",COUNTIF(AF93:AG132,G90))","v":""},{"$f":"IF(AL92=\"\",\"\",COUNTIF(AH93:AH132,G90))","v":""},{"$f":"IF(AL92=\"\",\"\",J90-L90)","v":""},{"$f":"IF(AL92=\"\",\"\",SUMIF(Y93:Y132,G90,Z93:Z132)+SUMIF(AC93:AC132,G90,AB93:AB132))","v":""},{"$f":"IF(AL92=\"\",\"\",SUMIF(Y93:Y132,G90,AB93:AB132)+SUMIF(AC93:AC132,G90,Z93:AL132))","v":""},{"$f":"IF(AL92=\"\",\"\",N90-O90)","v":""},{"$f":"IF(AL92=\"\",\"\",SUMIF(Y93:Y132,G90,AI93:AI132)+SUMIF(AC93:AC132,G90,AJ93:AJ132))","v":""},{"$f":"IF(AL92=\"\",\"\",SUMIF(Y93:Y132,G90,AJ93:AJ132)+SUMIF(AC93:AC132,G90,AI93:AI132))","v":""},{"$f":"IF(AL92=\"\",\"\",Q90-R90)","v":""},null,null,null,null,null,null,null,null,null,null,null,null,null,null,null,null,null,null,{"$f":"IF(AL92=\"\",\"\",SMALL(C88:C91,3))","v":""},null,null,{"$f":"IF(AL92=\"\",\"\",INT(AL90/1000))","v":""},{"$f":"IF(AL92=\"\",IF(HidePlayerFormulas,\"\",\"(\"&G90&\")\"),VLOOKUP(AL90,C88:S91,5,FALSE))","v":""},{"$f":"VLOOKUP(AL90,C88:S91,6,FALSE)","v":""},{"$f":"VLOOKUP(AL90,C88:S91,7,FALSE)","v":""},{"$f":"VLOOKUP(AL90,C88:S91,8,FALSE)","v":""},{"$f":"VLOOKUP(AL90,C88:S91,9,FALSE)","v":""},{"$f":"VLOOKUP(AL90,C88:S91,10,FALSE)","v":""},{"$f":"VLOOKUP(AL90,C88:S91,11,FALSE)","v":""},{"$f":"VLOOKUP(AL90,C88:S91,12,FALSE)","v":""},{"$f":"VLOOKUP(AL90,C88:S91,13,FALSE)","v":""},{"$f":"VLOOKUP(AL90,C88:S91,14,FALSE)","v":""},{"$f":"VLOOKUP(AL90,C88:S91,15,FALSE)","v":""},{"$f":"VLOOKUP(AL90,C88:S91,16,FALSE)","v":""},{"$f":"VLOOKUP(AL90,C88:S91,17,FALSE)","v":""},{"$f":"IF(Z93=\"\",\"\",IF(AP90=Y93,Z93&\"(\"&SUM(Z94:Z97)&\")\",IF(AP90=AC93,AB93&\"(\"&SUM(AB94:AB97)&\")\",\"\")))","v":""},{"$f":"IF(Z100=\"\",\"\",IF(AP90=Y100,Z100&\"(\"&SUM(Z101:Z104)&\")\",IF(AP90=AC100,AB100&\"(\"&SUM(AB101:AB104)&\")\",\"\")))","v":""},{"$f":"IF(Z107=\"\",\"\",IF(AP90=Y107,Z107&\"(\"&SUM(Z108:Z111)&\")\",IF(AP90=AC107,AB107&\"(\"&SUM(AB108:AB111)&\")\",\"\")))","v":""},{"$f":"IF(Z114=\"\",\"\",IF(AP90=Y114,Z114&\"(\"&SUM(Z115:Z118)&\")\",IF(AP90=AC114,AB114&\"(\"&SUM(AB115:AB118)&\")\",\"\")))","v":""},{"$f":"IF(Z121=\"\",\"\",IF(AP90=Y121,Z121&\"(\"&SUM(Z122:Z125)&\")\",IF(AP90=AC121,AB121&\"(\"&SUM(AB122:AB125)&\")\",\"\")))","v":""},{"$f":"IF(Z128=\"\",\"\",IF(AP90=Y128,Z128&\"(\"&SUM(Z129:Z132)&\")\",IF(AP90=AC128,AB128&\"(\"&SUM(AB129:AB132)&\")\",\"\")))","v":""},null,null,null,null,null,null,null,null,null,null,null,null,null,null,null,null,null,null,null,null,null,null,{"$f":"IF(G90=\"[---WithDraw---]\",FALSE,IF(COUNTIF(PlayerNamesWithinGroups,G90)>1,TRUE,FALSE))","v":true},{"$f":"AND(LEFT($AP90,1) = \"(\", RIGHT($AP90,1) =\")\")","v":false},{"$f":"IF(OR($AO90=$AO89,$AO90=$AO91),TRUE,FALSE)","v":true}]
[null,4,{"$f":"IF(AL92=\"\",\"\",RANK(F91,F88:F91)*1000+ROW())","v":""},{"$f":"IF(J91=\"\",\"\",H91*CritClassEq1_Points+M91*CritClassEq1_DiffRencontres+P91*CritClassEq1_DiffMatches+S91*CritClassEq1_DiffButs+N91*CritClassEq1_Matches+Q91*CritClassEq1_Attaque)","v":""},{"$f":"IF(J91=\"\",\"\",Nb_Diff_Part(D91,D88:D91,G91,G88:G91,AK93:AK128)*CritClassEq_DiffPart+Nb_Goal_Part(D91,D88:D91,G91,G88:G91,Y93:AC128)*CritClassEq_IndsPart+Nb_Score_Part(D91,D88:D91,G91,G88:G91,Y93:AC128)*CritClassEq_WinsPart+Nb_GoalTeam_Part(D91,D88:D91,G91,G88:G91,Y93:AC128)*CritClassEq_GoalPart+Nb_ScoreTeam_Part(D91,D88:D91,G91,G88:G91,Y93:AC128)*CritClassEq_ScorePart)","v":""},{"$f":"IF(J91=\"\",\"\",D91+E91+H91*CritClassEq2_Points+M91*CritClassEq2_DiffRencontres+P91*CritClassEq2_DiffMatches+S91*CritClassEq2_DiffButs+N91*CritClassEq2_Matches+Q91*CritClassEq2_Attaque)","v":""},"Eq4",{"$f":"IF(AL92=\"\",\"\",(J91*Points_Victoire)+K91*Points_Null)","v":""},{"$f":"IF(J91=\"\",\"\",SUM(J91:L91))","v":""},{"$f":"IF(AL92=\"\",\"\",COUNTIF(AE93:AE132,G91))","v":""},{"$f":"IF(AL92=\"\",\"\",COUNTIF(AF93:AG132,G91))","v":""},{"$f":"IF(AL92=\"\",\"\",COUNTIF(AH93:AH132,G91))","v":""},{"$f":"IF(AL92=\"\",\"\",J91-L91)","v":""},{"$f":"IF(AL92=\"\",\"\",SUMIF(Y93:Y132,G91,Z93:Z132)+SUMIF(AC93:AC132,G91,AB93:AB132))","v":""},{"$f":"IF(AL92=\"\",\"\",SUMIF(Y93:Y132,G91,AB93:AB132)+SUMIF(AC93:AC132,G91,Z93:AL132))","v":""},{"$f":"IF(AL92=\"\",\"\",N91-O91)","v":""},{"$f":"IF(AL92=\"\",\"\",SUMIF(Y93:Y132,G91,AI93:AI132)+SUMIF(AC93:AC132,G91,AJ93:AJ132))","v":""},{"$f":"IF(AL92=\"\",\"\",SUMIF(Y93:Y132,G91,AJ93:AJ132)+SUMIF(AC93:AC132,G91,AI93:AI132))","v":""},{"$f":"IF(AL92=\"\",\"\",Q91-R91)","v":""},null,null,null,null,null,null,null,null,null,null,null,null,null,null,null,null,null,null,{"$f":"IF(AL92=\"\",\"\",SMALL(C88:C91,4))","v":""},null,null,{"$f":"IF(AL92=\"\",\"\",INT(AL91/1000))","v":""},{"$f":"IF(AL92=\"\",IF(HidePlayerFormulas,\"\",\"(\"&G91&\")\"),VLOOKUP(AL91,C88:S91,5,FALSE))","v":""},{"$f":"VLOOKUP(AL91,C88:S91,6,FALSE)","v":""},{"$f":"VLOOKUP(AL91,C88:S91,7,FALSE)","v":""},{"$f":"VLOOKUP(AL91,C88:S91,8,FALSE)","v":""},{"$f":"VLOOKUP(AL91,C88:S91,9,FALSE)","v":""},{"$f":"VLOOKUP(AL91,C88:S91,10,FALSE)","v":""},{"$f":"VLOOKUP(AL91,C88:S91,11,FALSE)","v":""},{"$f":"VLOOKUP(AL91,C88:S91,12,FALSE)","v":""},{"$f":"VLOOKUP(AL91,C88:S91,13,FALSE)","v":""},{"$f":"VLOOKUP(AL91,C88:S91,14,FALSE)","v":""},{"$f":"VLOOKUP(AL91,C88:S91,15,FALSE)","v":""},{"$f":"VLOOKUP(AL91,C88:S91,16,FALSE)","v":""},{"$f":"VLOOKUP(AL91,C88:S91,17,FALSE)","v":""},{"$f":"IF(Z93=\"\",\"\",IF(AP91=Y93,Z93&\"(\"&SUM(Z94:Z97)&\")\",IF(AP91=AC93,AB93&\"(\"&SUM(AB94:AB97)&\")\",\"\")))","v":""},{"$f":"IF(Z100=\"\",\"\",IF(AP91=Y100,Z100&\"(\"&SUM(Z101:Z104)&\")\",IF(AP91=AC100,AB100&\"(\"&SUM(AB101:AB104)&\")\",\"\")))","v":""},{"$f":"IF(Z107=\"\",\"\",IF(AP91=Y107,Z107&\"(\"&SUM(Z108:Z111)&\")\",IF(AP91=AC107,AB107&\"(\"&SUM(AB108:AB111)&\")\",\"\")))","v":""},{"$f":"IF(Z114=\"\",\"\",IF(AP91=Y114,Z114&\"(\"&SUM(Z115:Z118)&\")\",IF(AP91=AC114,AB114&\"(\"&SUM(AB115:AB118)&\")\",\"\")))","v":""},{"$f":"IF(Z121=\"\",\"\",IF(AP91=Y121,Z121&\"(\"&SUM(Z122:Z125)&\")\",IF(AP91=AC121,AB121&\"(\"&SUM(AB122:AB125)&\")\",\"\")))","v":""},{"$f":"IF(Z128=\"\",\"\",IF(AP91=Y128,Z128&\"(\"&SUM(Z129:Z132)&\")\",IF(AP91=AC128,AB128&\"(\"&SUM(AB129:AB132)&\")\",\"\")))","v":""},null,null,null,null,null,null,null,null,null,null,null,null,null,null,null,null,null,null,null,null,null,null,{"$f":"IF(G91=\"[---WithDraw---]\",FALSE,IF(COUNTIF(PlayerNamesWithinGroups,G91)>1,TRUE,FALSE))","v":true},{"$f":"AND(LEFT($AP91,1) = \"(\", RIGHT($AP91,1) =\")\")","v":false},{"$f":"IF(OR($AO91=$AO90,$AO91=$AO92),TRUE,FALSE)","v":true}]
[null,null,null,null,null,null,null,null,null,null,null,null,null,null,null,null,null,null,null,null,null,{"$f":"N_Heure","v":"Time"},{"$f":"N_Table","v":"Table"},{"$f":"N_Arbitre","v":"Referee"},{"$f":"N_Matches","v":"Matches"},null,null,null,null,null,null,null,null,null,null,null,null,{"$f":"IF(COUNTA(Z93:Z132)>6,\"OK\",\"\")","v":""}]
[null,null,null,null,null,null,null,null,null,null,null,null,null,null,null,null,null,null,null,null,"#G1",null,null,null,{"$f":"IF(COUNTA(G88:G91) =4,GMFTGROUPORDERTEAM(G88:G91,Y93:Y134,AC93:AC134),\"\")","v":"Eq1"},{"$f":"IF(OR(ISNUMBER(Z94),ISNUMBER(Z95),ISNUMBER(Z96),ISNUMBER(Z97)),4-COUNTBLANK(AI94:AI97),\"\")","v":""},"-",{"$f":"IF(OR(ISNUMBER(Z94),ISNUMBER(Z95),ISNUMBER(Z96),ISNUMBER(Z97)),4-COUNTBLANK(AJ94:AJ97),\"\")","v":""},{"$f":"IF(COUNTA(G88:G91) =4,GMFTGROUPORDERTEAM(G88:G91,Y93:Y134,AC93:AC134),\"\")","v":"Eq4"},null,{"$f":"IF(Z93=\"\",\"\",IF(Z93>AB93,Y93,IF(Z93=AB93,IF(NoDrawWithWithdraw,IF(AL93=Y93,AC93,IF(AL93=AC93,Y93,\"\")),\"\"),AC93)))","v":""},{"$f":"IF(Z93=\"\",\"\",IF(Z93=AB93,IF(NoDrawWithWithdraw,IF(AL93=Y93,\"\",IF(AL93=AC93,\"\",Y93)),Y93),\"\"))","v":""},{"$f":"IF(Z93=\"\",\"\",IF(Z93=AB93,IF(NoDrawWithWithdraw,IF(AL93=Y93,\"\",IF(AL93=AC93,\"\",AC93)),AC93),\"\"))","v":""},{"$f":"IF(Z93=\"\",\"\",IF(Z93<AB93,Y93,IF(Z93=AB93,IF(NoDrawWithWithdraw,IF(AL93=Y93,Y93,IF(AL93=AC93,AC93,\"\")),\"\"),AC93)))","v":""},{"$f":"IF(Z93=\"\",\"\",SUM(Z94:Z97))","v":""},{"$f":"IF(Z93=\"\",\"\",SUM(AB94:AB97))","v":""},{"$f":"CONCATENATE(AE93,AH93)","v":""},{"$f":"IF(COUNTIF(Y94:Y97,WithdrawLabel)>COUNTIF(AC94:AC97,WithdrawLabel),Y93,IF(COUNTIF(AC94:AC97,WithdrawLabel)>COUNTIF(Y94:Y97,WithdrawLabel),AC93,\"\"))","v":""}]
[null,null,null,null,null,null,null,null,null,null,null,null,null,null,null,null,null,null,null,null,null,null,null,null,null,null,"-",null,null,null,{"$f":"IF(Z94=\"\",\"\",IF(Z94>AB94,Y94,IF(Z94=AB94,\"\",AC94)))","v":""},{"$f":"IF(Z94=\"\",\"\",IF(Z94=AB94,Y94,\"\"))","v":""},{"$f":"IF(Z94=\"\",\"\",IF(Z94=AB94,AC94,\"\"))","v":""},{"$f":"IF(Z94=\"\",\"\",IF(Z94<AB94,Y94,IF(Z94=AB94,\"\",AC94)))","v":""},{"$f":"IF(Z94=\"\",\"\",IF(Z94>AB94,Y93,\"\"))","v":""},{"$f":"IF(Z94=\"\",\"\",IF(Z94<AB94,AC93,\"\"))","v":""},{"$f":"CONCATENATE(AE94,AH94)","v":""}]
[null,null,null,null,null,null,null,null,null,null,null,null,null,null,null,null,null,null,null,null,null,null,null,null,null,null,"-",null,null,null,{"$f":"IF(Z95=\"\",\"\",IF(Z95>AB95,Y95,IF(Z95=AB95,\"\",AC95)))","v":""},{"$f":"IF(Z95=\"\",\"\",IF(Z95=AB95,Y95,\"\"))","v":""},{"$f":"IF(Z95=\"\",\"\",IF(Z95=AB95,AC95,\"\"))","v":""},{"$f":"IF(Z95=\"\",\"\",IF(Z95<AB95,Y95,IF(Z95=AB95,\"\",AC95)))","v":""},{"$f":"IF(Z95=\"\",\"\",IF(Z95>AB95,Y93,\"\"))","v":""},{"$f":"IF(Z95=\"\",\"\",IF(Z95<AB95,AC93,\"\"))","v":""},{"$f":"CONCATENATE(AE95,AH95)","v":""}]
[null,null,null,null,null,null,null,null,null,null,null,null,null,null,null,null,null,null,null,null,null,null,null,null,null,null,"-",null,null,null,{"$f":"IF(Z96=\"\",\"\",IF(Z96>AB96,Y96,IF(Z96=AB96,\"\",AC96)))","v":""},{"$f":"IF(Z96=\"\",\"\",IF(Z96=AB96,Y96,\"\"))","v":""},{"$f":"IF(Z96=\"\",\"\",IF(Z96=AB96,AC96,\"\"))","v":""},{"$f":"IF(Z96=\"\",\"\",IF(Z96<AB96,Y96,IF(Z96=AB96,\"\",AC96)))","v":""},{"$f":"IF(Z96=\"\",\"\",IF(Z96>AB96,Y93,\"\"))","v":""},{"$f":"IF(Z96=\"\",\"\",IF(Z96<AB96,AC93,\"\"))","v":""},{"$f":"CONCATENATE(AE96,AH96)","v":""}]
[null,null,null,null,null,null,null,null,null,null,null,null,null,null,null,null,null,null,null,null,null,null,null,null,null,null,"-",null,null,null,{"$f":"IF(Z97=\"\",\"\",IF(Z97>AB97,Y97,IF(Z97=AB97,\"\",AC97)))","v":""},{"$f":"IF(Z97=\"\",\"\",IF(Z97=AB97,Y97,\"\"))","v":""},{"$f":"IF(Z97=\"\",\"\",IF(Z97=AB97,AC97,\"\"))","v":""},{"$f":"IF(Z97=\"\",\"\",IF(Z97<AB97,Y97,IF(Z97=AB97,\"\",AC97)))","v":""},{"$f":"IF(Z97=\"\",\"\",IF(Z97>AB97,Y93,\"\"))","v":""},{"$f":"IF(Z97=\"\",\"\",IF(Z97<AB97,AC93,\"\"))","v":""},{"$f":"CONCATENATE(AE97,AH97)","v":""}]
[null,null,null,null,null,null,null,null,null,null,null,null,null,null,null,null,null,null,null,null,null,null,null,{"$f":"N_Substitute","v":"Substitute"}]
[null,null,null,null,null,null,null,null,null,null,null,null,null,null,null,null,null,null,null,null,null,null,null,{"$f":"N_Substitute","v":"Substitute"}]
[null,null,null,null,null,null,null,null,null,null,null,null,null,null,null,null,null,null,null,null,"#G1",null,null,null,{"$f":"IF(COUNTA(G88:G91) =4,GMFTGROUPORDERTEAM(G88:G91,Y93:Y134,AC93:AC134),\"\")","v":"Eq2"},{"$f":"IF(OR(ISNUMBER(Z101),ISNUMBER(Z102),ISNUMBER(Z103),ISNUMBER(Z104)),4-COUNTBLANK(AI101:AI104),\"\")","v":""},"-",{"$f":"IF(OR(ISNUMBER(Z101),ISNUMBER(Z102),ISNUMBER(Z103),ISNUMBER(Z104)),4-COUNTBLANK(AJ101:AJ104),\"\")","v":""},{"$f":"IF(COUNTA(G88:G91) =4,GMFTGROUPORDERTEAM(G88:G91,Y93:Y134,AC93:AC134),\"\")","v":"Eq3"},null,{"$f":"IF(Z100=\"\",\"\",IF(Z100>AB100,Y100,IF(Z100=AB100,IF(NoDrawWithWithdraw,IF(AL100=Y100,AC100,IF(AL100=AC100,Y100,\"\")),\"\"),AC100)))","v":""},{"$f":"IF(Z100=\"\",\"\",IF(Z100=AB100,IF(NoDrawWithWithdraw,IF(AL100=Y100,\"\",IF(AL100=AC100,\"\",Y100)),Y100),\"\"))","v":""},{"$f":"IF(Z100=\"\",\"\",IF(Z100=AB100,IF(NoDrawWithWithdraw,IF(AL100=Y100,\"\",IF(AL100=AC100,\"\",AC100)),AC100),\"\"))","v":""},{"$f":"IF(Z100=\"\",\"\",IF(Z100<AB100,Y100,IF(Z100=AB100,IF(NoDrawWithWithdraw,IF(AL100=Y100,Y100,IF(AL100=AC100,AC100,\"\")),\"\"),AC100)))","v":""},{"$f":"IF(Z100=\"\",\"\",SUM(Z101:Z104))","v":""},{"$f":"IF(Z100=\"\",\"\",SUM(AB101:AB104))","v":""},{"$f":"CONCATENATE(AE100,AH100)","v":""},{"$f":"IF(COUNTIF(Y101:Y104,WithdrawLabel)>COUNTIF(AC101:AC104,WithdrawLabel),Y100,IF(COUNTIF(AC101:AC104,WithdrawLabel)>COUNTIF(Y101:Y104,WithdrawLabel),AC100,\"\"))","v":""}]
[null,null,null,null,null,null,null,null,null,null,null,null,null,null,null,null,null,null,null,null,null,null,null,null,null,null,"-",null,null,null,{"$f":"IF(Z101=\"\",\"\",IF(Z101>AB101,Y101,IF(Z101=AB101,\"\",AC101)))","v":""},{"$f":"IF(Z101=\"\",\"\",IF(Z101=AB101,Y101,\"\"))","v":""},{"$f":"IF(Z101=\"\",\"\",IF(Z101=AB101,AC101,\"\"))","v":""},{"$f":"IF(Z101=\"\",\"\",IF(Z101<AB101,Y101,IF(Z101=AB101,\"\",AC101)))","v":""},{"$f":"IF(Z101=\"\",\"\",IF(Z101>AB101,Y100,\"\"))","v":""},{"$f":"IF(Z101=\"\",\"\",IF(Z101<AB101,AC100,\"\"))","v":""},{"$f":"CONCATENATE(AE101,AH101)","v":""}]
[null,null,null,null,null,null,null,null,null,null,null,null,null,null,null,null,null,null,null,null,null,null,null,null,null,null,"-",null,null,null,{"$f":"IF(Z102=\"\",\"\",IF(Z102>AB102,Y102,IF(Z102=AB102,\"\",AC102)))","v":""},{"$f":"IF(Z102=\"\",\"\",IF(Z102=AB102,Y102,\"\"))","v":""},{"$f":"IF(Z102=\"\",\"\",IF(Z102=AB102,AC102,\"\"))","v":""},{"$f":"IF(Z102=\"\",\"\",IF(Z102<AB102,Y102,IF(Z102=AB102,\"\",AC102)))","v":""},{"$f":"IF(Z102=\"\",\"\",IF(Z102>AB102,Y100,\"\"))","v":""},{"$f":"IF(Z102=\"\",\"\",IF(Z102<AB102,AC100,\"\"))","v":""},{"$f":"CONCATENATE(AE102,AH102)","v":""}]
[null,null,null,null,null,null,null,null,null,null,null,null,null,null,null,null,null,null,null,null,null,null,null,null,null,null,"-",null,null,null,{"$f":"IF(Z103=\"\",\"\",IF(Z103>AB103,Y103,IF(Z103=AB103,\"\",AC103)))","v":""},{"$f":"IF(Z103=\"\",\"\",IF(Z103=AB103,Y103,\"\"))","v":""},{"$f":"IF(Z103=\"\",\"\",IF(Z103=AB103,AC103,\"\"))","v":""},{"$f":"IF(Z103=\"\",\"\",IF(Z103<AB103,Y103,IF(Z103=AB103,\"\",AC103)))","v":""},{"$f":"IF(Z103=\"\",\"\",IF(Z103>AB103,Y100,\"\"))","v":""},{"$f":"IF(Z103=\"\",\"\",IF(Z103<AB103,AC100,\"\"))","v":""},{"$f":"CONCATENATE(AE103,AH103)","v":""}]
[null,null,null,null,null,null,null,null,null,null,null,null,null,null,null,null,null,null,null,null,null,null,null,null,null,null,"-",null,null,null,{"$f":"IF(Z104=\"\",\"\",IF(Z104>AB104,Y104,IF(Z104=AB104,\"\",AC104)))","v":""},{"$f":"IF(Z104=\"\",\"\",IF(Z104=AB104,Y104,\"\"))","v":""},{"$f":"IF(Z104=\"\",\"\",IF(Z104=AB104,AC104,\"\"))","v":""},{"$f":"IF(Z104=\"\",\"\",IF(Z104<AB104,Y104,IF(Z104=AB104,\"\",AC104)))","v":""},{"$f":"IF(Z104=\"\",\"\",IF(Z104>AB104,Y100,\"\"))","v":""},{"$f":"IF(Z104=\"\",\"\",IF(Z104<AB104,AC100,\"\"))","v":""},{"$f":"CONCATENATE(AE104,AH104)","v":""}]
[null,null,null,null,null,null,null,null,null,null,null,null,null,null,null,null,null,null,null,null,null,null,null,{"$f":"N_Substitute","v":"Substitute"}]
[null,null,null,null,null,null,null,null,null,null,null,null,null,null,null,null,null,null,null,null,null,null,null,{"$f":"N_Substitute","v":"Substitute"}]
[null,null,null,null,null,null,null,null,null,null,null,null,null,null,null,null,null,null,null,null,"#G2",null,null,null,{"$f":"IF(COUNTA(G88:G91) =4,GMFTGROUPORDERTEAM(G88:G91,Y93:Y134,AC93:AC134),\"\")","v":"Eq3"},{"$f":"IF(OR(ISNUMBER(Z108),ISNUMBER(Z109),ISNUMBER(Z110),ISNUMBER(Z111)),4-COUNTBLANK(AI108:AI111),\"\")","v":""},"-",{"$f":"IF(OR(ISNUMBER(Z108),ISNUMBER(Z109),ISNUMBER(Z110),ISNUMBER(Z111)),4-COUNTBLANK(AJ108:AJ111),\"\")","v":""},{"$f":"IF(COUNTA(G88:G91) =4,GMFTGROUPORDERTEAM(G88:G91,Y93:Y134,AC93:AC134),\"\")","v":"Eq1"},null,{"$f":"IF(Z107=\"\",\"\",IF(Z107>AB107,Y107,IF(Z107=AB107,IF(NoDrawWithWithdraw,IF(AL107=Y107,AC107,IF(AL107=AC107,Y107,\"\")),\"\"),AC107)))","v":""},{"$f":"IF(Z107=\"\",\"\",IF(Z107=AB107,IF(NoDrawWithWithdraw,IF(AL107=Y107,\"\",IF(AL107=AC107,\"\",Y107)),Y107),\"\"))","v":""},{"$f":"IF(Z107=\"\",\"\",IF(Z107=AB107,IF(NoDrawWithWithdraw,IF(AL107=Y107,\"\",IF(AL107=AC107,\"\",AC107)),AC107),\"\"))","v":""},{"$f":"IF(Z107=\"\",\"\",IF(Z107<AB107,Y107,IF(Z107=AB107,IF(NoDrawWithWithdraw,IF(AL107=Y107,Y107,IF(AL107=AC107,AC107,\"\")),\"\"),AC107)))","v":""},{"$f":"IF(Z107=\"\",\"\",SUM(Z108:Z111))","v":""},{"$f":"IF(Z107=\"\",\"\",SUM(AB108:AB111))","v":""},{"$f":"CONCATENATE(AE107,AH107)","v":""},{"$f":"IF(COUNTIF(Y108:Y111,WithdrawLabel)>COUNTIF(AC108:AC111,WithdrawLabel),Y107,IF(COUNTIF(AC108:AC111,WithdrawLabel)>COUNTIF(Y108:Y111,WithdrawLabel),AC107,\"\"))","v":""}]
[null,null,null,null,null,null,null,null,null,null,null,null,null,null,null,null,null,null,null,null,null,null,null,null,null,null,"-",null,null,null,{"$f":"IF(Z108=\"\",\"\",IF(Z108>AB108,Y108,IF(Z108=AB108,\"\",AC108)))","v":""},{"$f":"IF(Z108=\"\",\"\",IF(Z108=AB108,Y108,\"\"))","v":""},{"$f":"IF(Z108=\"\",\"\",IF(Z108=AB108,AC108,\"\"))","v":""},{"$f":"IF(Z108=\"\",\"\",IF(Z108<AB108,Y108,IF(Z108=AB108,\"\",AC108)))","v":""},{"$f":"IF(Z108=\"\",\"\",IF(Z108>AB108,Y107,\"\"))","v":""},{"$f":"IF(Z108=\"\",\"\",IF(Z108<AB108,AC107,\"\"))","v":""},{"$f":"CONCATENATE(AE108,AH108)","v":""}]
[null,null,null,null,null,null,null,null,null,null,null,null,null,null,null,null,null,null,null,null,null,null,null,null,null,null,"-",null,null,null,{"$f":"IF(Z109=\"\",\"\",IF(Z109>AB109,Y109,IF(Z109=AB109,\"\",AC109)))","v":""},{"$f":"IF(Z109=\"\",\"\",IF(Z109=AB109,Y109,\"\"))","v":""},{"$f":"IF(Z109=\"\",\"\",IF(Z109=AB109,AC109,\"\"))","v":""},{"$f":"IF(Z109=\"\",\"\",IF(Z109<AB109,Y109,IF(Z109=AB109,\"\",AC109)))","v":""},{"$f":"IF(Z109=\"\",\"\",IF(Z109>AB109,Y107,\"\"))","v":""},{"$f":"IF(Z109=\"\",\"\",IF(Z109<AB109,AC107,\"\"))","v":""},{"$f":"CONCATENATE(AE109,AH109)","v":""}]
[null,null,null,null,null,null,null,null,null,null,null,null,null,null,null,null,null,null,null,null,null,null,null,null,null,null,"-",null,null,null,{"$f":"IF(Z110=\"\",\"\",IF(Z110>AB110,Y110,IF(Z110=AB110,\"\",AC110)))","v":""},{"$f":"IF(Z110=\"\",\"\",IF(Z110=AB110,Y110,\"\"))","v":""},{"$f":"IF(Z110=\"\",\"\",IF(Z110=AB110,AC110,\"\"))","v":""},{"$f":"IF(Z110=\"\",\"\",IF(Z110<AB110,Y110,IF(Z110=AB110,\"\",AC110)))","v":""},{"$f":"IF(Z110=\"\",\"\",IF(Z110>AB110,Y107,\"\"))","v":""},{"$f":"IF(Z110=\"\",\"\",IF(Z110<AB110,AC107,\"\"))","v":""},{"$f":"CONCATENATE(AE110,AH110)","v":""}]
[null,null,null,null,null,null,null,null,null,null,null,null,null,null,null,null,null,null,null,null,null,null,null,null,null,null,"-",null,null,null,{"$f":"IF(Z111=\"\",\"\",IF(Z111>AB111,Y111,IF(Z111=AB111,\"\",AC111)))","v":""},{"$f":"IF(Z111=\"\",\"\",IF(Z111=AB111,Y111,\"\"))","v":""},{"$f":"IF(Z111=\"\",\"\",IF(Z111=AB111,AC111,\"\"))","v":""},{"$f":"IF(Z111=\"\",\"\",IF(Z111<AB111,Y111,IF(Z111=AB111,\"\",AC111)))","v":""},{"$f":"IF(Z111=\"\",\"\",IF(Z111>AB111,Y107,\"\"))","v":""},{"$f":"IF(Z111=\"\",\"\",IF(Z111<AB111,AC107,\"\"))","v":""},{"$f":"CONCATENATE(AE111,AH111)","v":""}]
[null,null,null,null,null,null,null,null,null,null,null,null,null,null,null,null,null,null,null,null,null,null,null,{"$f":"N_Substitute","v":"Substitute"}]
[null,null,null,null,null,null,null,null,null,null,null,null,null,null,null,null,null,null,null,null,null,null,null,{"$f":"N_Substitute","v":"Substitute"}]
[null,null,null,null,null,null,null,null,null,null,null,null,null,null,null,null,null,null,null,null,"#G2",null,null,null,{"$f":"IF(COUNTA(G88:G91) =4,GMFTGROUPORDERTEAM(G88:G91,Y93:Y134,AC93:AC134),\"\")","v":"Eq4"},{"$f":"IF(OR(ISNUMBER(Z115),ISNUMBER(Z116),ISNUMBER(Z117),ISNUMBER(Z118)),4-COUNTBLANK(AI115:AI118),\"\")","v":""},"-",{"$f":"IF(OR(ISNUMBER(Z115),ISNUMBER(Z116),ISNUMBER(Z117),ISNUMBER(Z118)),4-COUNTBLANK(AJ115:AJ118),\"\")","v":""},{"$f":"IF(COUNTA(G88:G91) =4,GMFTGROUPORDERTEAM(G88:G91,Y93:Y134,AC93:AC134),\"\")","v":"Eq2"},null,{"$f":"IF(Z114=\"\",\"\",IF(Z114>AB114,Y114,IF(Z114=AB114,IF(NoDrawWithWithdraw,IF(AL114=Y114,AC114,IF(AL114=AC114,Y114,\"\")),\"\"),AC114)))","v":""},{"$f":"IF(Z114=\"\",\"\",IF(Z114=AB114,IF(NoDrawWithWithdraw,IF(AL114=Y114,\"\",IF(AL114=AC114,\"\",Y114)),Y114),\"\"))","v":""},{"$f":"IF(Z114=\"\",\"\",IF(Z114=AB114,IF(NoDrawWithWithdraw,IF(AL114=Y114,\"\",IF(AL114=AC114,\"\",AC114)),AC114),\"\"))","v":""},{"$f":"IF(Z114=\"\",\"\",IF(Z114<AB114,Y114,IF(Z114=AB114,IF(NoDrawWithWithdraw,IF(AL114=Y114,Y114,IF(AL114=AC114,AC114,\"\")),\"\"),AC114)))","v":""},{"$f":"IF(Z114=\"\",\"\",SUM(Z115:Z118))","v":""},{"$f":"IF(Z114=\"\",\"\",SUM(AB115:AB118))","v":""},{"$f":"CONCATENATE(AE114,AH114)","v":""},{"$f":"IF(COUNTIF(Y115:Y118,WithdrawLabel)>COUNTIF(AC115:AC118,WithdrawLabel),Y114,IF(COUNTIF(AC115:AC118,WithdrawLabel)>COUNTIF(Y115:Y118,WithdrawLabel),AC114,\"\"))","v":""}]
[null,null,null,null,null,null,null,null,null,null,null,null,null,null,null,null,null,null,null,null,null,null,null,null,null,null,"-",null,null,null,{"$f":"IF(Z115=\"\",\"\",IF(Z115>AB115,Y115,IF(Z115=AB115,\"\",AC115)))","v":""},{"$f":"IF(Z115=\"\",\"\",IF(Z115=AB115,Y115,\"\"))","v":""},{"$f":"IF(Z115=\"\",\"\",IF(Z115=AB115,AC115,\"\"))","v":""},{"$f":"IF(Z115=\"\",\"\",IF(Z115<AB115,Y115,IF(Z115=AB115,\"\",AC115)))","v":""},{"$f":"IF(Z115=\"\",\"\",IF(Z115>AB115,Y114,\"\"))","v":""},{"$f":"IF(Z115=\"\",\"\",IF(Z115<AB115,AC114,\"\"))","v":""},{"$f":"CONCATENATE(AE115,AH115)","v":""}]
[null,null,null,null,null,null,null,null,null,null,null,null,null,null,null,null,null,null,null,null,null,null,null,null,null,null,"-",null,null,null,{"$f":"IF(Z116=\"\",\"\",IF(Z116>AB116,Y116,IF(Z116=AB116,\"\",AC116)))","v":""},{"$f":"IF(Z116=\"\",\"\",IF(Z116=AB116,Y116,\"\"))","v":""},{"$f":"IF(Z116=\"\",\"\",IF(Z116=AB116,AC116,\"\"))","v":""},{"$f":"IF(Z116=\"\",\"\",IF(Z116<AB116,Y116,IF(Z116=AB116,\"\",AC116)))","v":""},{"$f":"IF(Z116=\"\",\"\",IF(Z116>AB116,Y114,\"\"))","v":""},{"$f":"IF(Z116=\"\",\"\",IF(Z116<AB116,AC114,\"\"))","v":""},{"$f":"CONCATENATE(AE116,AH116)","v":""}]
[null,null,null,null,null,null,null,null,null,null,null,null,null,null,null,null,null,null,null,null,null,null,null,null,null,null,"-",null,null,null,{"$f":"IF(Z117=\"\",\"\",IF(Z117>AB117,Y117,IF(Z117=AB117,\"\",AC117)))","v":""},{"$f":"IF(Z117=\"\",\"\",IF(Z117=AB117,Y117,\"\"))","v":""},{"$f":"IF(Z117=\"\",\"\",IF(Z117=AB117,AC117,\"\"))","v":""},{"$f":"IF(Z117=\"\",\"\",IF(Z117<AB117,Y117,IF(Z117=AB117,\"\",AC117)))","v":""},{"$f":"IF(Z117=\"\",\"\",IF(Z117>AB117,Y114,\"\"))","v":""},{"$f":"IF(Z117=\"\",\"\",IF(Z117<AB117,AC114,\"\"))","v":""},{"$f":"CONCATENATE(AE117,AH117)","v":""}]
[null,null,null,null,null,null,null,null,null,null,null,null,null,null,null,null,null,null,null,null,null,null,null,null,null,null,"-",null,null,null,{"$f":"IF(Z118=\"\",\"\",IF(Z118>AB118,Y118,IF(Z118=AB118,\"\",AC118)))","v":""},{"$f":"IF(Z118=\"\",\"\",IF(Z118=AB118,Y118,\"\"))","v":""},{"$f":"IF(Z118=\"\",\"\",IF(Z118=AB118,AC118,\"\"))","v":""},{"$f":"IF(Z118=\"\",\"\",IF(Z118<AB118,Y118,IF(Z118=AB118,\"\",AC118)))","v":""},{"$f":"IF(Z118=\"\",\"\",IF(Z118>AB118,Y114,\"\"))","v":""},{"$f":"IF(Z118=\"\",\"\",IF(Z118<AB118,AC114,\"\"))","v":""},{"$f":"CONCATENATE(AE118,AH118)","v":""}]
[null,null,null,null,null,null,null,null,null,null,null,null,null,null,null,null,null,null,null,null,null,null,null,{"$f":"N_Substitute","v":"Substitute"}]
[null,null,null,null,null,null,null,null,null,null,null,null,null,null,null,null,null,null,null,null,null,null,null,{"$f":"N_Substitute","v":"Substitute"}]
[null,null,null,null,null,null,null,null,null,null,null,null,null,null,null,null,null,null,null,null,"#G3",null,null,null,{"$f":"IF(COUNTA(G88:G91) =4,GMFTGROUPORDERTEAM(G88:G91,Y93:Y134,AC93:AC134),\"\")","v":"Eq1"},{"$f":"IF(OR(ISNUMBER(Z122),ISNUMBER(Z123),ISNUMBER(Z124),ISNUMBER(Z125)),4-COUNTBLANK(AI122:AI125),\"\")","v":""},"-",{"$f":"IF(OR(ISNUMBER(Z122),ISNUMBER(Z123),ISNUMBER(Z124),ISNUMBER(Z125)),4-COUNTBLANK(AJ122:AJ125),\"\")","v":""},{"$f":"IF(COUNTA(G88:G91) =4,GMFTGROUPORDERTEAM(G88:G91,Y93:Y134,AC93:AC134),\"\")","v":"Eq2"},null,{"$f":"IF(Z121=\"\",\"\",IF(Z121>AB121,Y121,IF(Z121=AB121,IF(NoDrawWithWithdraw,IF(AL121=Y121,AC121,IF(AL121=AC121,Y121,\"\")),\"\"),AC121)))","v":""},{"$f":"IF(Z121=\"\",\"\",IF(Z121=AB121,IF(NoDrawWithWithdraw,IF(AL121=Y121,\"\",IF(AL121=AC121,\"\",Y121)),Y121),\"\"))","v":""},{"$f":"IF(Z121=\"\",\"\",IF(Z121=AB121,IF(NoDrawWithWithdraw,IF(AL121=Y121,\"\",IF(AL121=AC121,\"\",AC121)),AC121),\"\"))","v":""},{"$f":"IF(Z121=\"\",\"\",IF(Z121<AB121,Y121,IF(Z121=AB121,IF(NoDrawWithWithdraw,IF(AL121=Y121,Y121,IF(AL121=AC121,AC121,\"\")),\"\"),AC121)))","v":""},{"$f":"IF(Z121=\"\",\"\",SUM(Z122:Z125))","v":""},{"$f":"IF(Z121=\"\",\"\",SUM(AB122:AB125))","v":""},{"$f":"CONCATENATE(AE121,AH121)","v":""},{"$f":"IF(COUNTIF(Y122:Y125,WithdrawLabel)>COUNTIF(AC122:AC125,WithdrawLabel),Y121,IF(COUNTIF(AC122:AC125,WithdrawLabel)>COUNTIF(Y122:Y125,WithdrawLabel),AC121,\"\"))","v":""}]
[null,null,null,null,null,null,null,null,null,null,null,null,null,null,null,null,null,null,null,null,null,null,null,null,null,null,"-",null,null,null,{"$f":"IF(Z122=\"\",\"\",IF(Z122>AB122,Y122,IF(Z122=AB122,\"\",AC122)))","v":""},{"$f":"IF(Z122=\"\",\"\",IF(Z122=AB122,Y122,\"\"))","v":""},{"$f":"IF(Z122=\"\",\"\",IF(Z122=AB122,AC122,\"\"))","v":""},{"$f":"IF(Z122=\"\",\"\",IF(Z122<AB122,Y122,IF(Z122=AB122,\"\",AC122)))","v":""},{"$f":"IF(Z122=\"\",\"\",IF(Z122>AB122,Y121,\"\"))","v":""},{"$f":"IF(Z122=\"\",\"\",IF(Z122<AB122,AC121,\"\"))","v":""},{"$f":"CONCATENATE(AE122,AH122)","v":""}]
[null,null,null,null,null,null,null,null,null,null,null,null,null,null,null,null,null,null,null,null,null,null,null,null,null,null,"-",null,null,null,{"$f":"IF(Z123=\"\",\"\",IF(Z123>AB123,Y123,IF(Z123=AB123,\"\",AC123)))","v":""},{"$f":"IF(Z123=\"\",\"\",IF(Z123=AB123,Y123,\"\"))","v":""},{"$f":"IF(Z123=\"\",\"\",IF(Z123=AB123,AC123,\"\"))","v":""},{"$f":"IF(Z123=\"\",\"\",IF(Z123<AB123,Y123,IF(Z123=AB123,\"\",AC123)))","v":""},{"$f":"IF(Z123=\"\",\"\",IF(Z123>AB123,Y121,\"\"))","v":""},{"$f":"IF(Z123=\"\",\"\",IF(Z123<AB123,AC121,\"\"))","v":""},{"$f":"CONCATENATE(AE123,AH123)","v":""}]
[null,null,null,null,null,null,null,null,null,null,null,null,null,null,null,null,null,null,null,null,null,null,null,null,null,null,"-",null,null,null,{"$f":"IF(Z124=\"\",\"\",IF(Z124>AB124,Y124,IF(Z124=AB124,\"\",AC124)))","v":""},{"$f":"IF(Z124=\"\",\"\",IF(Z124=AB124,Y124,\"\"))","v":""},{"$f":"IF(Z124=\"\",\"\",IF(Z124=AB124,AC124,\"\"))","v":""},{"$f":"IF(Z124=\"\",\"\",IF(Z124<AB124,Y124,IF(Z124=AB124,\"\",AC124)))","v":""},{"$f":"IF(Z124=\"\",\"\",IF(Z124>AB124,Y121,\"\"))","v":""},{"$f":"IF(Z124=\"\",\"\",IF(Z124<AB124,AC121,\"\"))","v":""},{"$f":"CONCATENATE(AE124,AH124)","v":""}]
[null,null,null,null,null,null,null,null,null,null,null,null,null,null,null,null,null,null,null,null,null,null,null,null,null,null,"-",null,null,null,{"$f":"IF(Z125=\"\",\"\",IF(Z125>AB125,Y125,IF(Z125=AB125,\"\",AC125)))","v":""},{"$f":"IF(Z125=\"\",\"\",IF(Z125=AB125,Y125,\"\"))","v":""},{"$f":"IF(Z125=\"\",\"\",IF(Z125=AB125,AC125,\"\"))","v":""},{"$f":"IF(Z125=\"\",\"\",IF(Z125<AB125,Y125,IF(Z125=AB125,\"\",AC125)))","v":""},{"$f":"IF(Z125=\"\",\"\",IF(Z125>AB125,Y121,\"\"))","v":""},{"$f":"IF(Z125=\"\",\"\",IF(Z125<AB125,AC121,\"\"))","v":""},{"$f":"CONCATENATE(AE125,AH125)","v":""}]
[null,null,null,null,null,null,null,null,null,null,null,null,null,null,null,null,null,null,null,null,null,null,null,{"$f":"N_Substitute","v":"Substitute"}]
[null,null,null,null,null,null,null,null,null,null,null,null,null,null,null,null,null,null,null,null,null,null,null,{"$f":"N_Substitute","v":"Substitute"}]
[null,null,null,null,null,null,null,null,null,null,null,null,null,null,null,null,null,null,null,null,"#G3",null,null,null,{"$f":"IF(COUNTA(G88:G91) =4,GMFTGROUPORDERTEAM(G88:G91,Y93:Y134,AC93:AC134),\"\")","v":"Eq3"},{"$f":"IF(OR(ISNUMBER(Z129),ISNUMBER(Z130),ISNUMBER(Z131),ISNUMBER(Z132)),4-COUNTBLANK(AI129:AI132),\"\")","v":""},"-",{"$f":"IF(OR(ISNUMBER(Z129),ISNUMBER(Z130),ISNUMBER(Z131),ISNUMBER(Z132)),4-COUNTBLANK(AJ129:AJ132),\"\")","v":""},{"$f":"IF(COUNTA(G88:G91) =4,GMFTGROUPORDERTEAM(G88:G91,Y93:Y134,AC93:AC134),\"\")","v":"Eq4"},null,{"$f":"IF(Z128=\"\",\"\",IF(Z128>AB128,Y128,IF(Z128=AB128,IF(NoDrawWithWithdraw,IF(AL128=Y128,AC128,IF(AL128=AC128,Y128,\"\")),\"\"),AC128)))","v":""},{"$f":"IF(Z128=\"\",\"\",IF(Z128=AB128,IF(NoDrawWithWithdraw,IF(AL128=Y128,\"\",IF(AL128=AC128,\"\",Y128)),Y128),\"\"))","v":""},{"$f":"IF(Z128=\"\",\"\",IF(Z128=AB128,IF(NoDrawWithWithdraw,IF(AL128=Y128,\"\",IF(AL128=AC128,\"\",AC128)),AC128),\"\"))","v":""},{"$f":"IF(Z128=\"\",\"\",IF(Z128<AB128,Y128,IF(Z128=AB128,IF(NoDrawWithWithdraw,IF(AL128=Y128,Y128,IF(AL128=AC128,AC128,\"\")),\"\"),AC128)))","v":""},{"$f":"IF(Z128=\"\",\"\",SUM(Z129:Z132))","v":""},{"$f":"IF(Z128=\"\",\"\",SUM(AB129:AB132))","v":""},{"$f":"CONCATENATE(AE128,AH128)","v":""},{"$f":"IF(COUNTIF(Y129:Y132,WithdrawLabel)>COUNTIF(AC129:AC132,WithdrawLabel),Y128,IF(COUNTIF(AC129:AC132,WithdrawLabel)>COUNTIF(Y129:Y132,WithdrawLabel),AC128,\"\"))","v":""}]
[null,null,null,null,null,null,null,null,null,null,null,null,null,null,null,null,null,null,null,null,null,null,null,null,null,null,"-",null,null,null,{"$f":"IF(Z129=\"\",\"\",IF(Z129>AB129,Y129,IF(Z129=AB129,\"\",AC129)))","v":""},{"$f":"IF(Z129=\"\",\"\",IF(Z129=AB129,Y129,\"\"))","v":""},{"$f":"IF(Z129=\"\",\"\",IF(Z129=AB129,AC129,\"\"))","v":""},{"$f":"IF(Z129=\"\",\"\",IF(Z129<AB129,Y129,IF(Z129=AB129,\"\",AC129)))","v":""},{"$f":"IF(Z129=\"\",\"\",IF(Z129>AB129,Y128,\"\"))","v":""},{"$f":"IF(Z129=\"\",\"\",IF(Z129<AB129,AC128,\"\"))","v":""},{"$f":"CONCATENATE(AE129,AH129)","v":""}]
[null,null,null,null,null,null,null,null,null,null,null,null,null,null,null,null,null,null,null,null,null,null,null,null,null,null,"-",null,null,null,{"$f":"IF(Z130=\"\",\"\",IF(Z130>AB130,Y130,IF(Z130=AB130,\"\",AC130)))","v":""},{"$f":"IF(Z130=\"\",\"\",IF(Z130=AB130,Y130,\"\"))","v":""},{"$f":"IF(Z130=\"\",\"\",IF(Z130=AB130,AC130,\"\"))","v":""},{"$f":"IF(Z130=\"\",\"\",IF(Z130<AB130,Y130,IF(Z130=AB130,\"\",AC130)))","v":""},{"$f":"IF(Z130=\"\",\"\",IF(Z130>AB130,Y128,\"\"))","v":""},{"$f":"IF(Z130=\"\",\"\",IF(Z130<AB130,AC128,\"\"))","v":""},{"$f":"CONCATENATE(AE130,AH130)","v":""}]
[null,null,null,null,null,null,null,null,null,null,null,null,null,null,null,null,null,null,null,null,null,null,null,null,null,null,"-",null,null,null,{"$f":"IF(Z131=\"\",\"\",IF(Z131>AB131,Y131,IF(Z131=AB131,\"\",AC131)))","v":""},{"$f":"IF(Z131=\"\",\"\",IF(Z131=AB131,Y131,\"\"))","v":""},{"$f":"IF(Z131=\"\",\"\",IF(Z131=AB131,AC131,\"\"))","v":""},{"$f":"IF(Z131=\"\",\"\",IF(Z131<AB131,Y131,IF(Z131=AB131,\"\",AC131)))","v":""},{"$f":"IF(Z131=\"\",\"\",IF(Z131>AB131,Y128,\"\"))","v":""},{"$f":"IF(Z131=\"\",\"\",IF(Z131<AB131,AC128,\"\"))","v":""},{"$f":"CONCATENATE(AE131,AH131)","v":""}]
[null,null,null,null,null,null,null,null,null,null,null,null,null,null,null,null,null,null,null,null,null,null,null,null,null,null,"-",null,null,null,{"$f":"IF(Z132=\"\",\"\",IF(Z132>AB132,Y132,IF(Z132=AB132,\"\",AC132)))","v":""},{"$f":"IF(Z132=\"\",\"\",IF(Z132=AB132,Y132,\"\"))","v":""},{"$f":"IF(Z132=\"\",\"\",IF(Z132=AB132,AC132,\"\"))","v":""},{"$f":"IF(Z132=\"\",\"\",IF(Z132<AB132,Y132,IF(Z132=AB132,\"\",AC132)))","v":""},{"$f":"IF(Z132=\"\",\"\",IF(Z132>AB132,Y128,\"\"))","v":""},{"$f":"IF(Z132=\"\",\"\",IF(Z132<AB132,AC128,\"\"))","v":""},{"$f":"CONCATENATE(AE132,AH132)","v":""}]
[null,null,null,null,null,null,null,null,null,null,null,null,null,null,null,null,null,null,null,null,null,null,null,{"$f":"N_Substitute","v":"Substitute"}]
[null,null,null,null,null,null,null,null,null,null,null,null,null,null,null,null,null,null,null,null,null,null,null,{"$f":"N_Substitute","v":"Substitute"}]
[]
[]
[null,{"$f":"N_Group_5","v":"Group of 5"},null,null,null,null,null,null,null,null,null,null,null,null,null,null,null,null,null,null,null,null,null,null,null,null,null,null,null,null,null,null,null,null,null,null,null,null,null,{"$f":"B137","v":"Group of 5"}]
[]
[null,{"$f":"N_Tirage","v":"Draw"},"Cla.","Cla1","Part","Cla2",{"$f":"N_Equipes","v":"Teams"},{"$f":"N_Pts","v":"Pts"},{"$f":"N_J","v":"Pld"},{"$f":"N_G","v":"W"},{"$f":"N_N","v":"D"},{"$f":"N_P","v":"L"},{"$f":"N_Diff_R","v":"ED"},{"$f":"N_MP","v":"WM"},{"$f":"N_MC","v":"LM"},{"$f":"N_Diff_M","v":"MD"},{"$f":"N_BP","v":"F"},{"$f":"N_BC","v":"A"},{"$f":"N_Diff_B","v":"GD"},null,null,null,null,null,null,null,null,null,null,null,null,null,null,null,null,null,null,null,null,null,{"$f":"N_Cla.","v":"Rk"},{"$f":"N_Equipes","v":"Teams"},{"$f":"N_Pts","v":"Pts"},{"$f":"N_J","v":"Pld"},{"$f":"N_G","v":"W"},{"$f":"N_N","v":"D"},{"$f":"N_P","v":"L"},{"$f":"N_Diff_R","v":"ED"},{"$f":"N_MP","v":"WM"},{"$f":"N_MC","v":"LM"},{"$f":"N_Diff_M","v":"MD"},{"$f":"N_BP","v":"F"},{"$f":"N_BC","v":"A"},{"$f":"N_Diff_B","v":"GD"},{"$f":"N_Matches","v":"Matches"}]
[null,1,{"$f":"IF(AL145=\"\",\"\",RANK(F140,F140:F144)*1000+ROW())","v":""},{"$f":"IF(J140=\"\",\"\",H140*CritClassEq1_Points+M140*CritClassEq1_DiffRencontres+P140*CritClassEq1_DiffMatches+S140*CritClassEq1_DiffButs+N140*CritClassEq1_Matches+Q140*CritClassEq1_Attaque)","v":""},{"$f":"IF(J140=\"\",\"\",Nb_Diff_Part(D140,D140:D144,G140,G140:G144,AK146:AK209)*CritClassEq_DiffPart+Nb_Goal_Part(D140,D140:D144,G140,G140:G144,Y146:AC209)*CritClassEq_IndsPart+Nb_Score_Part(D140,D140:D144,G140,G140:G144,Y146:AC209)*CritClassEq_WinsPart+Nb_GoalTeam_Part(D140,D140:D144,G140,G140:G144,Y146:AC209)*CritClassEq_GoalPart+Nb_ScoreTeam_Part(D140,D140:D144,G140,G140:G144,Y146:AC209)*CritClassEq_ScorePart)","v":""},{"$f":"IF(J140=\"\",\"\",D140+E140+H140*CritClassEq2_Points+M140*CritClassEq2_DiffRencontres+P140*CritClassEq2_DiffMatches+S140*CritClassEq2_DiffButs+N140*CritClassEq2_Matches+Q140*CritClassEq2_Attaque)","v":""},"Eq1",{"$f":"IF(AL145=\"\",\"\",(J140*Points_Victoire)+K140*Points_Null)","v":""},{"$f":"IF(J140=\"\",\"\",SUM(J140:L140))","v":""},{"$f":"IF(AL145=\"\",\"\",COUNTIF(AE146:AE213,G140))","v":""},{"$f":"IF(AL145=\"\",\"\",COUNTIF(AF146:AG213,G140))","v":""},{"$f":"IF(AL145=\"\",\"\",COUNTIF(AH146:AH213,G140))","v":""},{"$f":"IF(AL145=\"\",\"\",J140-L140)","v":""},{"$f":"IF(AL145=\"\",\"\",SUMIF(Y146:Y213,G140,Z146:Z213)+SUMIF(AC146:AC213,G140,AB146:AB213))","v":""},{"$f":"IF(AL145=\"\",\"\",SUMIF(Y146:Y213,G140,AB146:AB213)+SUMIF(AC146:AC213,G140,Z146:AL213))","v":""},{"$f":"IF(AL145=\"\",\"\",N140-O140)","v":""},{"$f":"IF(AL145=\"\",\"\",SUMIF(Y146:Y213,G140,AI146:AI213)+SUMIF(AC146:AC213,G140,AJ146:AJ213))","v":""},{"$f":"IF(AL145=\"\",\"\",SUMIF(Y146:Y213,G140,AJ146:AJ213)+SUMIF(AC146:AC213,G140,AI146:AI213))","v":""},{"$f":"IF(AL145=\"\",\"\",Q140-R140)","v":""},null,null,null,null,null,null,null,null,null,null,null,null,null,null,null,null,null,null,{"$f":"IF(AL145=\"\",\"\",SMALL(C140:C144,1))","v":""},null,null,{"$f":"IF(AL145=\"\",\"\",INT(AL140/1000))","v":""},{"$f":"IF(AL145=\"\",IF(HidePlayerFormulas,\"\",\"(\"&G140&\")\"),VLOOKUP(AL140,C140:S144,5,FALSE))","v":""},{"$f":"VLOOKUP(AL140,C140:S144,6,FALSE)","v":""},{"$f":"VLOOKUP(AL140,C140:S144,7,FALSE)","v":""},{"$f":"VLOOKUP(AL140,C140:S144,8,FALSE)","v":""},{"$f":"VLOOKUP(AL140,C140:S144,9,FALSE)","v":""},{"$f":"VLOOKUP(AL140,C140:S144,10,FALSE)","v":""},{"$f":"VLOOKUP(AL140,C140:S144,11,FALSE)","v":""},{"$f":"VLOOKUP(AL140,C140:S144,12,FALSE)","v":""},{"$f":"VLOOKUP(AL140,C140:S144,13,FALSE)","v":""},{"$f":"VLOOKUP(AL140,C140:S144,14,FALSE)","v":""},{"$f":"VLOOKUP(AL140,C140:S144,15,FALSE)","v":""},{"$f":"VLOOKUP(AL140,C140:S144,16,FALSE)","v":""},{"$f":"VLOOKUP(AL140,C140:S144,17,FALSE)","v":""},{"$f":"IF($Z146=\"\",\"\",IF($AP140=$Y146,$Z146&\"(\"&SUM($Z147:$Z150)&\")\",IF($AP140=$AC146,$AB146&\"(\"&SUM($AB147:$AB150)&\")\",\"\")))","v":""},{"$f":"IF($Z153=\"\",\"\",IF($AP140=$Y153,$Z153&\"(\"&SUM($Z154:$Z157)&\")\",IF($AP140=$AC153,$AB153&\"(\"&SUM($AB154:$AB157)&\")\",\"\")))","v":""},{"$f":"IF($Z160=\"\",\"\",IF($AP140=$Y160,$Z160&\"(\"&SUM($Z161:$Z164)&\")\",IF($AP140=$AC160,$AB160&\"(\"&SUM($AB161:$AB164)&\")\",\"\")))","v":""},{"$f":"IF($Z167=\"\",\"\",IF($AP140=$Y167,$Z167&\"(\"&SUM($Z168:$Z171)&\")\",IF($AP140=$AC167,$AB167&\"(\"&SUM($AB168:$AB171)&\")\",\"\")))","v":""},{"$f":"IF($Z174=\"\",\"\",IF($AP140=$Y174,$Z174&\"(\"&SUM($Z175:$Z178)&\")\",IF($AP140=$AC174,$AB174&\"(\"&SUM($AB175:$AB178)&\")\",\"\")))","v":""},{"$f":"IF($Z181=\"\",\"\",IF($AP140=$Y181,$Z181&\"(\"&SUM($Z182:$Z185)&\")\",IF($AP140=$AC181,$AB181&\"(\"&SUM($AB182:$AB185)&\")\",\"\")))","v":""},{"$f":"IF($Z188=\"\",\"\",IF($AP140=$Y188,$Z188&\"(\"&SUM($Z189:$Z192)&\")\",IF($AP140=$AC188,$AB188&\"(\"&SUM($AB189:$AB192)&\")\",\"\")))","v":""},{"$f":"IF($Z195=\"\",\"\",IF($AP140=$Y195,$Z195&\"(\"&SUM($Z196:$Z199)&\")\",IF($AP140=$AC195,$AB195&\"(\"&SUM($AB196:$AB199)&\")\",\"\")))","v":""},{"$f":"IF($Z202=\"\",\"\",IF($AP140=$Y202,$Z202&\"(\"&SUM($Z203:$Z206)&\")\",IF($AP140=$AC202,$AB202&\"(\"&SUM($AB203:$AB206)&\")\",\"\")))","v":""},{"$f":"IF($Z209=\"\",\"\",IF($AP140=$Y209,$Z209&\"(\"&SUM($Z210:$Z213)&\")\",IF($AP140=$AC209,$AB209&\"(\"&SUM($AB210:$AB213)&\")\",\"\")))","v":""},null,null,null,null,null,null,null,null,null,null,null,null,null,null,null,null,null,null,{"$f":"IF(G140=\"[---WithDraw---]\",FALSE,IF(COUNTIF(PlayerNamesWithinGroups,G140)>1,TRUE,FALSE))","v":true},{"$f":"AND(LEFT($AP140,1) = \"(\", RIGHT($AP140,1) =\")\")","v":false},{"$f":"IF(OR($AO140=$AO139,$AO140=$AO141),TRUE,FALSE)","v":true}]
[null,2,{"$f":"IF(AL145=\"\",\"\",RANK(F141,F140:F144)*1000+ROW())","v":""},{"$f":"IF(J141=\"\",\"\",H141*CritClassEq1_Points+M141*CritClassEq1_DiffRencontres+P141*CritClassEq1_DiffMatches+S141*CritClassEq1_DiffButs+N141*CritClassEq1_Matches+Q141*CritClassEq1_Attaque)","v":""},{"$f":"IF(J141=\"\",\"\",Nb_Diff_Part(D141,D140:D144,G141,G140:G144,AK146:AK209)*CritClassEq_DiffPart+Nb_Goal_Part(D141,D140:D144,G141,G140:G144,Y146:AC209)*CritClassEq_IndsPart+Nb_Score_Part(D141,D140:D144,G141,G140:G144,Y146:AC209)*CritClassEq_WinsPart+Nb_GoalTeam_Part(D141,D140:D144,G141,G140:G144,Y146:AC209)*CritClassEq_GoalPart+Nb_ScoreTeam_Part(D141,D140:D144,G141,G140:G144,Y146:AC209)*CritClassEq_ScorePart)","v":""},{"$f":"IF(J141=\"\",\"\",D141+E141+H141*CritClassEq2_Points+M141*CritClassEq2_DiffRencontres+P141*CritClassEq2_DiffMatches+S141*CritClassEq2_DiffButs+N141*CritClassEq2_Matches+Q141*CritClassEq2_Attaque)","v":""},"Eq2",{"$f":"IF(AL145=\"\",\"\",(J141*Points_Victoire)+K141*Points_Null)","v":""},{"$f":"IF(J141=\"\",\"\",SUM(J141:L141))","v":""},{"$f":"IF(AL145=\"\",\"\",COUNTIF(AE146:AE213,G141))","v":""},{"$f":"IF(AL145=\"\",\"\",COUNTIF(AF146:AG213,G141))","v":""},{"$f":"IF(AL145=\"\",\"\",COUNTIF(AH146:AH213,G141))","v":""},{"$f":"IF(AL145=\"\",\"\",J141-L141)","v":""},{"$f":"IF(AL145=\"\",\"\",SUMIF(Y146:Y213,G141,Z146:Z213)+SUMIF(AC146:AC213,G141,AB146:AB213))","v":""},{"$f":"IF(AL145=\"\",\"\",SUMIF(Y146:Y213,G141,AB146:AB213)+SUMIF(AC146:AC213,G141,Z146:AL213))","v":""},{"$f":"IF(AL145=\"\",\"\",N141-O141)","v":""},{"$f":"IF(AL145=\"\",\"\",SUMIF(Y146:Y213,G141,AI146:AI213)+SUMIF(AC146:AC213,G141,AJ146:AJ213))","v":""},{"$f":"IF(AL145=\"\",\"\",SUMIF(Y146:Y213,G141,AJ146:AJ213)+SUMIF(AC146:AC213,G141,AI146:AI213))","v":""},{"$f":"IF(AL145=\"\",\"\",Q141-R141)","v":""},null,null,null,null,null,null,null,null,null,null,null,null,null,null,null,null,null,null,{"$f":"IF(AL145=\"\",\"\",SMALL(C140:C144,2))","v":""},null,null,{"$f":"IF(AL145=\"\",\"\",INT(AL141/1000))","v":""},{"$f":"IF(AL145=\"\",IF(HidePlayerFormulas,\"\",\"(\"&G141&\")\"),VLOOKUP(AL141,C140:S144,5,FALSE))","v":""},{"$f":"VLOOKUP(AL141,C140:S144,6,FALSE)","v":""},{"$f":"VLOOKUP(AL141,C140:S144,7,FALSE)","v":""},{"$f":"VLOOKUP(AL141,C140:S144,8,FALSE)","v":""},{"$f":"VLOOKUP(AL141,C140:S144,9,FALSE)","v":""},{"$f":"VLOOKUP(AL141,C140:S144,10,FALSE)","v":""},{"$f":"VLOOKUP(AL141,C140:S144,11,FALSE)","v":""},{"$f":"VLOOKUP(AL141,C140:S144,12,FALSE)","v":""},{"$f":"VLOOKUP(AL141,C140:S144,13,FALSE)","v":""},{"$f":"VLOOKUP(AL141,C140:S144,14,FALSE)","v":""},{"$f":"VLOOKUP(AL141,C140:S144,15,FALSE)","v":""},{"$f":"VLOOKUP(AL141,C140:S144,16,FALSE)","v":""},{"$f":"VLOOKUP(AL141,C140:S144,17,FALSE)","v":""},{"$f":"IF($Z146=\"\",\"\",IF($AP141=$Y146,$Z146&\"(\"&SUM($Z147:$Z150)&\")\",IF($AP141=$AC146,$AB146&\"(\"&SUM($AB147:$AB150)&\")\",\"\")))","v":""},{"$f":"IF($Z153=\"\",\"\",IF($AP141=$Y153,$Z153&\"(\"&SUM($Z154:$Z157)&\")\",IF($AP141=$AC153,$AB153&\"(\"&SUM($AB154:$AB157)&\")\",\"\")))","v":""},{"$f":"IF($Z160=\"\",\"\",IF($AP141=$Y160,$Z160&\"(\"&SUM($Z161:$Z164)&\")\",IF($AP141=$AC160,$AB160&\"(\"&SUM($AB161:$AB164)&\")\",\"\")))","v":""},{"$f":"IF($Z167=\"\",\"\",IF($AP141=$Y167,$Z167&\"(\"&SUM($Z168:$Z171)&\")\",IF($AP141=$AC167,$AB167&\"(\"&SUM($AB168:$AB171)&\")\",\"\")))","v":""},{"$f":"IF($Z174=\"\",\"\",IF($AP141=$Y174,$Z174&\"(\"&SUM($Z175:$Z178)&\")\",IF($AP141=$AC174,$AB174&\"(\"&SUM($AB175:$AB178)&\")\",\"\")))","v":""},{"$f":"IF($Z181=\"\",\"\",IF($AP141=$Y181,$Z181&\"(\"&SUM($Z182:$Z185)&\")\",IF($AP141=$AC181,$AB181&\"(\"&SUM($AB182:$AB185)&\")\",\"\")))","v":""},{"$f":"IF($Z188=\"\",\"\",IF($AP141=$Y188,$Z188&\"(\"&SUM($Z189:$Z192)&\")\",IF($AP141=$AC188,$AB188&\"(\"&SUM($AB189:$AB192)&\")\",\"\")))","v":""},{"$f":"IF($Z195=\"\",\"\",IF($AP141=$Y195,$Z195&\"(\"&SUM($Z196:$Z199)&\")\",IF($AP141=$AC195,$AB195&\"(\"&SUM($AB196:$AB199)&\")\",\"\")))","v":""},{"$f":"IF($Z202=\"\",\"\",IF($AP141=$Y202,$Z202&\"(\"&SUM($Z203:$Z206)&\")\",IF($AP141=$AC202,$AB202&\"(\"&SUM($AB203:$AB206)&\")\",\"\")))","v":""},{"$f":"IF($Z209=\"\",\"\",IF($AP141=$Y209,$Z209&\"(\"&SUM($Z210:$Z213)&\")\",IF($AP141=$AC209,$AB209&\"(\"&SUM($AB210:$AB213)&\")\",\"\")))","v":""},null,null,null,null,null,null,null,null,null,null,null,null,null,null,null,null,null,null,{"$f":"IF(G141=\"[---WithDraw---]\",FALSE,IF(COUNTIF(PlayerNamesWithinGroups,G141)>1,TRUE,FALSE))","v":true},{"$f":"AND(LEFT($AP141,1) = \"(\", RIGHT($AP141,1) =\")\")","v":false},{"$f":"IF(OR($AO141=$AO140,$AO141=$AO142),TRUE,FALSE)","v":true}]
[null,3,{"$f":"IF(AL145=\"\",\"\",RANK(F142,F140:F144)*1000+ROW())","v":""},{"$f":"IF(J142=\"\",\"\",H142*CritClassEq1_Points+M142*CritClassEq1_DiffRencontres+P142*CritClassEq1_DiffMatches+S142*CritClassEq1_DiffButs+N142*CritClassEq1_Matches+Q142*CritClassEq1_Attaque)","v":""},{"$f":"IF(J142=\"\",\"\",Nb_Diff_Part(D142,D140:D144,G142,G140:G144,AK146:AK209)*CritClassEq_DiffPart+Nb_Goal_Part(D142,D140:D144,G142,G140:G144,Y146:AC209)*CritClassEq_IndsPart+Nb_Score_Part(D142,D140:D144,G142,G140:G144,Y146:AC209)*CritClassEq_WinsPart+Nb_GoalTeam_Part(D142,D140:D144,G142,G140:G144,Y146:AC209)*CritClassEq_GoalPart+Nb_ScoreTeam_Part(D142,D140:D144,G142,G140:G144,Y146:AC209)*CritClassEq_ScorePart)","v":""},{"$f":"IF(J142=\"\",\"\",D142+E142+H142*CritClassEq2_Points+M142*CritClassEq2_DiffRencontres+P142*CritClassEq2_DiffMatches+S142*CritClassEq2_DiffButs+N142*CritClassEq2_Matches+Q142*CritClassEq2_Attaque)","v":""},"Eq3",{"$f":"IF(AL145=\"\",\"\",(J142*Points_Victoire)+K142*Points_Null)","v":""},{"$f":"IF(J142=\"\",\"\",SUM(J142:L142))","v":""},{"$f":"IF(AL145=\"\",\"\",COUNTIF(AE146:AE213,G142))","v":""},{"$f":"IF(AL145=\"\",\"\",COUNTIF(AF146:AG213,G142))","v":""},{"$f":"IF(AL145=\"\",\"\",COUNTIF(AH146:AH213,G142))","v":""},{"$f":"IF(AL145=\"\",\"\",J142-L142)","v":""},{"$f":"IF(AL145=\"\",\"\",SUMIF(Y146:Y213,G142,Z146:Z213)+SUMIF(AC146:AC213,G142,AB146:AB213))","v":""},{"$f":"IF(AL145=\"\",\"\",SUMIF(Y146:Y213,G142,AB146:AB213)+SUMIF(AC146:AC213,G142,Z146:AL213))","v":""},{"$f":"IF(AL145=\"\",\"\",N142-O142)","v":""},{"$f":"IF(AL145=\"\",\"\",SUMIF(Y146:Y213,G142,AI146:AI213)+SUMIF(AC146:AC213,G142,AJ146:AJ213))","v":""},{"$f":"IF(AL145=\"\",\"\",SUMIF(Y146:Y213,G142,AJ146:AJ213)+SUMIF(AC146:AC213,G142,AI146:AI213))","v":""},{"$f":"IF(AL145=\"\",\"\",Q142-R142)","v":""},null,null,null,null,null,null,null,null,null,null,null,null,null,null,null,null,null,null,{"$f":"IF(AL145=\"\",\"\",SMALL(C140:C144,3))","v":""},null,null,{"$f":"IF(AL145=\"\",\"\",INT(AL142/1000))","v":""},{"$f":"IF(AL145=\"\",IF(HidePlayerFormulas,\"\",\"(\"&G142&\")\"),VLOOKUP(AL142,C140:S144,5,FALSE))","v":""},{"$f":"VLOOKUP(AL142,C140:S144,6,FALSE)","v":""},{"$f":"VLOOKUP(AL142,C140:S144,7,FALSE)","v":""},{"$f":"VLOOKUP(AL142,C140:S144,8,FALSE)","v":""},{"$f":"VLOOKUP(AL142,C140:S144,9,FALSE)","v":""},{"$f":"VLOOKUP(AL142,C140:S144,10,FALSE)","v":""},{"$f":"VLOOKUP(AL142,C140:S144,11,FALSE)","v":""},{"$f":"VLOOKUP(AL142,C140:S144,12,FALSE)","v":""},{"$f":"VLOOKUP(AL142,C140:S144,13,FALSE)","v":""},{"$f":"VLOOKUP(AL142,C140:S144,14,FALSE)","v":""},{"$f":"VLOOKUP(AL142,C140:S144,15,FALSE)","v":""},{"$f":"VLOOKUP(AL142,C140:S144,16,FALSE)","v":""},{"$f":"VLOOKUP(AL142,C140:S144,17,FALSE)","v":""},{"$f":"IF($Z146=\"\",\"\",IF($AP142=$Y146,$Z146&\"(\"&SUM($Z147:$Z150)&\")\",IF($AP142=$AC146,$AB146&\"(\"&SUM($AB147:$AB150)&\")\",\"\")))","v":""},{"$f":"IF($Z153=\"\",\"\",IF($AP142=$Y153,$Z153&\"(\"&SUM($Z154:$Z157)&\")\",IF($AP142=$AC153,$AB153&\"(\"&SUM($AB154:$AB157)&\")\",\"\")))","v":""},{"$f":"IF($Z160=\"\",\"\",IF($AP142=$Y160,$Z160&\"(\"&SUM($Z161:$Z164)&\")\",IF($AP142=$AC160,$AB160&\"(\"&SUM($AB161:$AB164)&\")\",\"\")))","v":""},{"$f":"IF($Z167=\"\",\"\",IF($AP142=$Y167,$Z167&\"(\"&SUM($Z168:$Z171)&\")\",IF($AP142=$AC167,$AB167&\"(\"&SUM($AB168:$AB171)&\")\",\"\")))","v":""},{"$f":"IF($Z174=\"\",\"\",IF($AP142=$Y174,$Z174&\"(\"&SUM($Z175:$Z178)&\")\",IF($AP142=$AC174,$AB174&\"(\"&SUM($AB175:$AB178)&\")\",\"\")))","v":""},{"$f":"IF($Z181=\"\",\"\",IF($AP142=$Y181,$Z181&\"(\"&SUM($Z182:$Z185)&\")\",IF($AP142=$AC181,$AB181&\"(\"&SUM($AB182:$AB185)&\")\",\"\")))","v":""},{"$f":"IF($Z188=\"\",\"\",IF($AP142=$Y188,$Z188&\"(\"&SUM($Z189:$Z192)&\")\",IF($AP142=$AC188,$AB188&\"(\"&SUM($AB189:$AB192)&\")\",\"\")))","v":""},{"$f":"IF($Z195=\"\",\"\",IF($AP142=$Y195,$Z195&\"(\"&SUM($Z196:$Z199)&\")\",IF($AP142=$AC195,$AB195&\"(\"&SUM($AB196:$AB199)&\")\",\"\")))","v":""},{"$f":"IF($Z202=\"\",\"\",IF($AP142=$Y202,$Z202&\"(\"&SUM($Z203:$Z206)&\")\",IF($AP142=$AC202,$AB202&\"(\"&SUM($AB203:$AB206)&\")\",\"\")))","v":""},{"$f":"IF($Z209=\"\",\"\",IF($AP142=$Y209,$Z209&\"(\"&SUM($Z210:$Z213)&\")\",IF($AP142=$AC209,$AB209&\"(\"&SUM($AB210:$AB213)&\")\",\"\")))","v":""},null,null,null,null,null,null,null,null,null,null,null,null,null,null,null,null,null,null,{"$f":"IF(G142=\"[---WithDraw---]\",FALSE,IF(COUNTIF(PlayerNamesWithinGroups,G142)>1,TRUE,FALSE))","v":true},{"$f":"AND(LEFT($AP142,1) = \"(\", RIGHT($AP142,1) =\")\")","v":false},{"$f":"IF(OR($AO142=$AO141,$AO142=$AO143),TRUE,FALSE)","v":true}]
[null,4,{"$f":"IF(AL145=\"\",\"\",RANK(F143,F140:F144)*1000+ROW())","v":""},{"$f":"IF(J143=\"\",\"\",H143*CritClassEq1_Points+M143*CritClassEq1_DiffRencontres+P143*CritClassEq1_DiffMatches+S143*CritClassEq1_DiffButs+N143*CritClassEq1_Matches+Q143*CritClassEq1_Attaque)","v":""},{"$f":"IF(J143=\"\",\"\",Nb_Diff_Part(D143,D140:D144,G143,G140:G144,AK146:AK209)*CritClassEq_DiffPart+Nb_Goal_Part(D143,D140:D144,G143,G140:G144,Y146:AC209)*CritClassEq_IndsPart+Nb_Score_Part(D143,D140:D144,G143,G140:G144,Y146:AC209)*CritClassEq_WinsPart+Nb_GoalTeam_Part(D143,D140:D144,G143,G140:G144,Y146:AC209)*CritClassEq_GoalPart+Nb_ScoreTeam_Part(D143,D140:D144,G143,G140:G144,Y146:AC209)*CritClassEq_ScorePart)","v":""},{"$f":"IF(J143=\"\",\"\",D143+E143+H143*CritClassEq2_Points+M143*CritClassEq2_DiffRencontres+P143*CritClassEq2_DiffMatches+S143*CritClassEq2_DiffButs+N143*CritClassEq2_Matches+Q143*CritClassEq2_Attaque)","v":""},"Eq4",{"$f":"IF(AL145=\"\",\"\",(J143*Points_Victoire)+K143*Points_Null)","v":""},{"$f":"IF(J143=\"\",\"\",SUM(J143:L143))","v":""},{"$f":"IF(AL145=\"\",\"\",COUNTIF(AE146:AE213,G143))","v":""},{"$f":"IF(AL145=\"\",\"\",COUNTIF(AF146:AG213,G143))","v":""},{"$f":"IF(AL145=\"\",\"\",COUNTIF(AH146:AH213,G143))","v":""},{"$f":"IF(AL145=\"\",\"\",J143-L143)","v":""},{"$f":"IF(AL145=\"\",\"\",SUMIF(Y146:Y213,G143,Z146:Z213)+SUMIF(AC146:AC213,G143,AB146:AB213))","v":""},{"$f":"IF(AL145=\"\",\"\",SUMIF(Y146:Y213,G143,AB146:AB213)+SUMIF(AC146:AC213,G143,Z146:AL213))","v":""},{"$f":"IF(AL145=\"\",\"\",N143-O143)","v":""},{"$f":"IF(AL145=\"\",\"\",SUMIF(Y146:Y213,G143,AI146:AI213)+SUMIF(AC146:AC213,G143,AJ146:AJ213))","v":""},{"$f":"IF(AL145=\"\",\"\",SUMIF(Y146:Y213,G143,AJ146:AJ213)+SUMIF(AC146:AC213,G143,AI146:AI213))","v":""},{"$f":"IF(AL145=\"\",\"\",Q143-R143)","v":""},null,null,null,null,null,null,null,null,null,null,null,null,null,null,null,null,null,null,{"$f":"IF(AL145=\"\",\"\",SMALL(C140:C144,4))","v":""},null,null,{"$f":"IF(AL145=\"\",\"\",INT(AL143/1000))","v":""},{"$f":"IF(AL145=\"\",IF(HidePlayerFormulas,\"\",\"(\"&G143&\")\"),VLOOKUP(AL143,C140:S144,5,FALSE))","v":""},{"$f":"VLOOKUP(AL143,C140:S144,6,FALSE)","v":""},{"$f":"VLOOKUP(AL143,C140:S144,7,FALSE)","v":""},{"$f":"VLOOKUP(AL143,C140:S144,8,FALSE)","v":""},{"$f":"VLOOKUP(AL143,C140:S144,9,FALSE)","v":""},{"$f":"VLOOKUP(AL143,C140:S144,10,FALSE)","v":""},{"$f":"VLOOKUP(AL143,C140:S144,11,FALSE)","v":""},{"$f":"VLOOKUP(AL143,C140:S144,12,FALSE)","v":""},{"$f":"VLOOKUP(AL143,C140:S144,13,FALSE)","v":""},{"$f":"VLOOKUP(AL143,C140:S144,14,FALSE)","v":""},{"$f":"VLOOKUP(AL143,C140:S144,15,FALSE)","v":""},{"$f":"VLOOKUP(AL143,C140:S144,16,FALSE)","v":""},{"$f":"VLOOKUP(AL143,C140:S144,17,FALSE)","v":""},{"$f":"IF($Z146=\"\",\"\",IF($AP143=$Y146,$Z146&\"(\"&SUM($Z147:$Z150)&\")\",IF($AP143=$AC146,$AB146&\"(\"&SUM($AB147:$AB150)&\")\",\"\")))","v":""},{"$f":"IF($Z153=\"\",\"\",IF($AP143=$Y153,$Z153&\"(\"&SUM($Z154:$Z157)&\")\",IF($AP143=$AC153,$AB153&\"(\"&SUM($AB154:$AB157)&\")\",\"\")))","v":""},{"$f":"IF($Z160=\"\",\"\",IF($AP143=$Y160,$Z160&\"(\"&SUM($Z161:$Z164)&\")\",IF($AP143=$AC160,$AB160&\"(\"&SUM($AB161:$AB164)&\")\",\"\")))","v":""},{"$f":"IF($Z167=\"\",\"\",IF($AP143=$Y167,$Z167&\"(\"&SUM($Z168:$Z171)&\")\",IF($AP143=$AC167,$AB167&\"(\"&SUM($AB168:$AB171)&\")\",\"\")))","v":""},{"$f":"IF($Z174=\"\",\"\",IF($AP143=$Y174,$Z174&\"(\"&SUM($Z175:$Z178)&\")\",IF($AP143=$AC174,$AB174&\"(\"&SUM($AB175:$AB178)&\")\",\"\")))","v":""},{"$f":"IF($Z181=\"\",\"\",IF($AP143=$Y181,$Z181&\"(\"&SUM($Z182:$Z185)&\")\",IF($AP143=$AC181,$AB181&\"(\"&SUM($AB182:$AB185)&\")\",\"\")))","v":""},{"$f":"IF($Z188=\"\",\"\",IF($AP143=$Y188,$Z188&\"(\"&SUM($Z189:$Z192)&\")\",IF($AP143=$AC188,$AB188&\"(\"&SUM($AB189:$AB192)&\")\",\"\")))","v":""},{"$f":"IF($Z195=\"\",\"\",IF($AP143=$Y195,$Z195&\"(\"&SUM($Z196:$Z199)&\")\",IF($AP143=$AC195,$AB195&\"(\"&SUM($AB196:$AB199)&\")\",\"\")))","v":""},{"$f":"IF($Z202=\"\",\"\",IF($AP143=$Y202,$Z202&\"(\"&SUM($Z203:$Z206)&\")\",IF($AP143=$AC202,$AB202&\"(\"&SUM($AB203:$AB206)&\")\",\"\")))","v":""},{"$f":"IF($Z209=\"\",\"\",IF($AP143=$Y209,$Z209&\"(\"&SUM($Z210:$Z213)&\")\",IF($AP143=$AC209,$AB209&\"(\"&SUM($AB210:$AB213)&\")\",\"\")))","v":""},null,null,null,null,null,null,null,null,null,null,null,null,null,null,null,null,null,null,{"$f":"IF(G143=\"[---WithDraw---]\",FALSE,IF(COUNTIF(PlayerNamesWithinGroups,G143)>1,TRUE,FALSE))","v":true},{"$f":"AND(LEFT($AP143,1) = \"(\", RIGHT($AP143,1) =\")\")","v":false},{"$f":"IF(OR($AO143=$AO142,$AO143=$AO144),TRUE,FALSE)","v":true}]
[null,5,{"$f":"IF(AL145=\"\",\"\",RANK(F144,F140:F144)*1000+ROW())","v":""},{"$f":"IF(J144=\"\",\"\",H144*CritClassEq1_Points+M144*CritClassEq1_DiffRencontres+P144*CritClassEq1_DiffMatches+S144*CritClassEq1_DiffButs+N144*CritClassEq1_Matches+Q144*CritClassEq1_Attaque)","v":""},{"$f":"IF(J144=\"\",\"\",Nb_Diff_Part(D144,D140:D144,G144,G140:G144,AK146:AK209)*CritClassEq_DiffPart+Nb_Goal_Part(D144,D140:D144,G144,G140:G144,Y146:AC209)*CritClassEq_IndsPart+Nb_Score_Part(D144,D140:D144,G144,G140:G144,Y146:AC209)*CritClassEq_WinsPart+Nb_GoalTeam_Part(D144,D140:D144,G144,G140:G144,Y146:AC209)*CritClassEq_GoalPart+Nb_ScoreTeam_Part(D144,D140:D144,G144,G140:G144,Y146:AC209)*CritClassEq_ScorePart)","v":""},{"$f":"IF(J144=\"\",\"\",D144+E144+H144*CritClassEq2_Points+M144*CritClassEq2_DiffRencontres+P144*CritClassEq2_DiffMatches+S144*CritClassEq2_DiffButs+N144*CritClassEq2_Matches+Q144*CritClassEq2_Attaque)","v":""},"Eq5",{"$f":"IF(AL145=\"\",\"\",(J144*Points_Victoire)+K144*Points_Null)","v":""},{"$f":"IF(J144=\"\",\"\",SUM(J144:L144))","v":""},{"$f":"IF(AL145=\"\",\"\",COUNTIF(AE146:AE213,G144))","v":""},{"$f":"IF(AL145=\"\",\"\",COUNTIF(AF146:AG213,G144))","v":""},{"$f":"IF(AL145=\"\",\"\",COUNTIF(AH146:AH213,G144))","v":""},{"$f":"IF(AL145=\"\",\"\",J144-L144)","v":""},{"$f":"IF(AL145=\"\",\"\",SUMIF(Y146:Y213,G144,Z146:Z213)+SUMIF(AC146:AC213,G144,AB146:AB213))","v":""},{"$f":"IF(AL145=\"\",\"\",SUMIF(Y146:Y213,G144,AB146:AB213)+SUMIF(AC146:AC213,G144,Z146:AL213))","v":""},{"$f":"IF(AL145=\"\",\"\",N144-O144)","v":""},{"$f":"IF(AL145=\"\",\"\",SUMIF(Y146:Y213,G144,AI146:AI213)+SUMIF(AC146:AC213,G144,AJ146:AJ213))","v":""},{"$f":"IF(AL145=\"\",\"\",SUMIF(Y146:Y213,G144,AJ146:AJ213)+SUMIF(AC146:AC213,G144,AI146:AI213))","v":""},{"$f":"IF(AL145=\"\",\"\",Q144-R144)","v":""},null,null,null,null,null,null,null,null,null,null,null,null,null,null,null,null,null,null,{"$f":"IF(AL145=\"\",\"\",SMALL(C140:C144,5))","v":""},null,null,{"$f":"IF(AL145=\"\",\"\",INT(AL144/1000))","v":""},{"$f":"IF(AL145=\"\",IF(HidePlayerFormulas,\"\",\"(\"&G144&\")\"),VLOOKUP(AL144,C140:S144,5,FALSE))","v":""},{"$f":"VLOOKUP(AL144,C140:S144,6,FALSE)","v":""},{"$f":"VLOOKUP(AL144,C140:S144,7,FALSE)","v":""},{"$f":"VLOOKUP(AL144,C140:S144,8,FALSE)","v":""},{"$f":"VLOOKUP(AL144,C140:S144,9,FALSE)","v":""},{"$f":"VLOOKUP(AL144,C140:S144,10,FALSE)","v":""},{"$f":"VLOOKUP(AL144,C140:S144,11,FALSE)","v":""},{"$f":"VLOOKUP(AL144,C140:S144,12,FALSE)","v":""},{"$f":"VLOOKUP(AL144,C140:S144,13,FALSE)","v":""},{"$f":"VLOOKUP(AL144,C140:S144,14,FALSE)","v":""},{"$f":"VLOOKUP(AL144,C140:S144,15,FALSE)","v":""},{"$f":"VLOOKUP(AL144,C140:S144,16,FALSE)","v":""},{"$f":"VLOOKUP(AL144,C140:S144,17,FALSE)","v":""},{"$f":"IF($Z146=\"\",\"\",IF($AP144=$Y146,$Z146&\"(\"&SUM($Z147:$Z150)&\")\",IF($AP144=$AC146,$AB146&\"(\"&SUM($AB147:$AB150)&\")\",\"\")))","v":""},{"$f":"IF($Z153=\"\",\"\",IF($AP144=$Y153,$Z153&\"(\"&SUM($Z154:$Z157)&\")\",IF($AP144=$AC153,$AB153&\"(\"&SUM($AB154:$AB157)&\")\",\"\")))","v":""},{"$f":"IF($Z160=\"\",\"\",IF($AP144=$Y160,$Z160&\"(\"&SUM($Z161:$Z164)&\")\",IF($AP144=$AC160,$AB160&\"(\"&SUM($AB161:$AB164)&\")\",\"\")))","v":""},{"$f":"IF($Z167=\"\",\"\",IF($AP144=$Y167,$Z167&\"(\"&SUM($Z168:$Z171)&\")\",IF($AP144=$AC167,$AB167&\"(\"&SUM($AB168:$AB171)&\")\",\"\")))","v":""},{"$f":"IF($Z174=\"\",\"\",IF($AP144=$Y174,$Z174&\"(\"&SUM($Z175:$Z178)&\")\",IF($AP144=$AC174,$AB174&\"(\"&SUM($AB175:$AB178)&\")\",\"\")))","v":""},{"$f":"IF($Z181=\"\",\"\",IF($AP144=$Y181,$Z181&\"(\"&SUM($Z182:$Z185)&\")\",IF($AP144=$AC181,$AB181&\"(\"&SUM($AB182:$AB185)&\")\",\"\")))","v":""},{"$f":"IF($Z188=\"\",\"\",IF($AP144=$Y188,$Z188&\"(\"&SUM($Z189:$Z192)&\")\",IF($AP144=$AC188,$AB188&\"(\"&SUM($AB189:$AB192)&\")\",\"\")))","v":""},{"$f":"IF($Z195=\"\",\"\",IF($AP144=$Y195,$Z195&\"(\"&SUM($Z196:$Z199)&\")\",IF($AP144=$AC195,$AB195&\"(\"&SUM($AB196:$AB199)&\")\",\"\")))","v":""},{"$f":"IF($Z202=\"\",\"\",IF($AP144=$Y202,$Z202&\"(\"&SUM($Z203:$Z206)&\")\",IF($AP144=$AC202,$AB202&\"(\"&SUM($AB203:$AB206)&\")\",\"\")))","v":""},{"$f":"IF($Z209=\"\",\"\",IF($AP144=$Y209,$Z209&\"(\"&SUM($Z210:$Z213)&\")\",IF($AP144=$AC209,$AB209&\"(\"&SUM($AB210:$AB213)&\")\",\"\")))","v":""},null,null,null,null,null,null,null,null,null,null,null,null,null,null,null,null,null,null,{"$f":"IF(G144=\"[---WithDraw---]\",FALSE,IF(COUNTIF(PlayerNamesWithinGroups,G144)>1,TRUE,FALSE))","v":true},{"$f":"AND(LEFT($AP144,1) = \"(\", RIGHT($AP144,1) =\")\")","v":false},{"$f":"IF(OR($AO144=$AO143,$AO144=$AO145),TRUE,FALSE)","v":true}]
[null,null,null,null,null,null,null,null,null,null,null,null,null,null,null,null,null,null,null,null,null,{"$f":"N_Heure","v":"Time"},{"$f":"N_Table","v":"Table"},{"$f":"N_Arbitre","v":"Referee"},{"$f":"N_Matches","v":"Matches"},null,null,null,null,null,null,null,null,null,null,null,null,{"$f":"IF(COUNTA(Z146:Z213)>10,\"OK\",\"\")","v":""}]
[null,null,null,null,null,null,null,null,null,null,null,null,null,null,null,null,null,null,null,null,"#G1",null,null,null,{"$f":"IF(G141=\"\",\"\",G141)","v":"Eq2"},{"$f":"IF(OR(ISNUMBER(Z147),ISNUMBER(Z148),ISNUMBER(Z149),ISNUMBER(Z150)),4-COUNTBLANK(AI147:AI150),\"\")","v":""},"-",{"$f":"IF(OR(ISNUMBER(Z147),ISNUMBER(Z148),ISNUMBER(Z149),ISNUMBER(Z150)),4-COUNTBLANK(AJ147:AJ150),\"\")","v":""},{"$f":"IF(G142=\"\",\"\",G142)","v":"Eq3"},null,{"$f":"IF(Z146=\"\",\"\",IF(Z146>AB146,Y146,IF(Z146=AB146,IF(NoDrawWithWithdraw,IF(AL146=Y146,AC146,IF(AL146=AC146,Y146,\"\")),\"\"),AC146)))","v":""},{"$f":"IF(Z146=\"\",\"\",IF(Z146=AB146,IF(NoDrawWithWithdraw,IF(AL146=Y146,\"\",IF(AL146=AC146,\"\",Y146)),Y146),\"\"))","v":""},{"$f":"IF(Z146=\"\",\"\",IF(Z146=AB146,IF(NoDrawWithWithdraw,IF(AL146=Y146,\"\",IF(AL146=AC146,\"\",AC146)),AC146),\"\"))","v":""},{"$f":"IF(Z146=\"\",\"\",IF(Z146<AB146,Y146,IF(Z146=AB146,IF(NoDrawWithWithdraw,IF(AL146=Y146,Y146,IF(AL146=AC146,AC146,\"\")),\"\"),AC146)))","v":""},{"$f":"IF(Z146=\"\",\"\",SUM(Z147:Z150))","v":""},{"$f":"IF(Z146=\"\",\"\",SUM(AB147:AB150))","v":""},{"$f":"CONCATENATE(AE146,AH146)","v":""},{"$f":"IF(COUNTIF(Y147:Y150,WithdrawLabel)>COUNTIF(AC147:AC150,WithdrawLabel),Y146,IF(COUNTIF(AC147:AC150,WithdrawLabel)>COUNTIF(Y147:Y150,WithdrawLabel),AC146,\"\"))","v":""}]
[null,null,null,null,null,null,null,null,null,null,null,null,null,null,null,null,null,null,null,null,null,null,null,null,null,null,"-",null,null,null,{"$f":"IF(Z147=\"\",\"\",IF(Z147>AB147,Y147,IF(Z147=AB147,\"\",AC147)))","v":""},{"$f":"IF(Z147=\"\",\"\",IF(Z147=AB147,Y147,\"\"))","v":""},{"$f":"IF(Z147=\"\",\"\",IF(Z147=AB147,AC147,\"\"))","v":""},{"$f":"IF(Z147=\"\",\"\",IF(Z147<AB147,Y147,IF(Z147=AB147,\"\",AC147)))","v":""},{"$f":"IF(Z147=\"\",\"\",IF(Z147>AB147,Y146,\"\"))","v":""},{"$f":"IF(Z147=\"\",\"\",IF(Z147<AB147,AC146,\"\"))","v":""},{"$f":"CONCATENATE(AE147,AH147)","v":""}]
[null,null,null,null,null,null,null,null,null,null,null,null,null,null,null,null,null,null,null,null,null,null,null,null,null,null,"-",null,null,null,{"$f":"IF(Z148=\"\",\"\",IF(Z148>AB148,Y148,IF(Z148=AB148,\"\",AC148)))","v":""},{"$f":"IF(Z148=\"\",\"\",IF(Z148=AB148,Y148,\"\"))","v":""},{"$f":"IF(Z148=\"\",\"\",IF(Z148=AB148,AC148,\"\"))","v":""},{"$f":"IF(Z148=\"\",\"\",IF(Z148<AB148,Y148,IF(Z148=AB148,\"\",AC148)))","v":""},{"$f":"IF(Z148=\"\",\"\",IF(Z148>AB148,Y146,\"\"))","v":""},{"$f":"IF(Z148=\"\",\"\",IF(Z148<AB148,AC146,\"\"))","v":""},{"$f":"CONCATENATE(AE148,AH148)","v":""}]
[null,null,null,null,null,null,null,null,null,null,null,null,null,null,null,null,null,null,null,null,null,null,null,null,null,null,"-",null,null,null,{"$f":"IF(Z149=\"\",\"\",IF(Z149>AB149,Y149,IF(Z149=AB149,\"\",AC149)))","v":""},{"$f":"IF(Z149=\"\",\"\",IF(Z149=AB149,Y149,\"\"))","v":""},{"$f":"IF(Z149=\"\",\"\",IF(Z149=AB149,AC149,\"\"))","v":""},{"$f":"IF(Z149=\"\",\"\",IF(Z149<AB149,Y149,IF(Z149=AB149,\"\",AC149)))","v":""},{"$f":"IF(Z149=\"\",\"\",IF(Z149>AB149,Y146,\"\"))","v":""},{"$f":"IF(Z149=\"\",\"\",IF(Z149<AB149,AC146,\"\"))","v":""},{"$f":"CONCATENATE(AE149,AH149)","v":""}]
[null,null,null,null,null,null,null,null,null,null,null,null,null,null,null,null,null,null,null,null,null,null,null,null,null,null,"-",null,null,null,{"$f":"IF(Z150=\"\",\"\",IF(Z150>AB150,Y150,IF(Z150=AB150,\"\",AC150)))","v":""},{"$f":"IF(Z150=\"\",\"\",IF(Z150=AB150,Y150,\"\"))","v":""},{"$f":"IF(Z150=\"\",\"\",IF(Z150=AB150,AC150,\"\"))","v":""},{"$f":"IF(Z150=\"\",\"\",IF(Z150<AB150,Y150,IF(Z150=AB150,\"\",AC150)))","v":""},{"$f":"IF(Z150=\"\",\"\",IF(Z150>AB150,Y146,\"\"))","v":""},{"$f":"IF(Z150=\"\",\"\",IF(Z150<AB150,AC146,\"\"))","v":""},{"$f":"CONCATENATE(AE150,AH150)","v":""}]
[null,null,null,null,null,null,null,null,null,null,null,null,null,null,null,null,null,null,null,null,null,null,null,{"$f":"N_Substitute","v":"Substitute"}]
[null,null,null,null,null,null,null,null,null,null,null,null,null,null,null,null,null,null,null,null,null,null,null,{"$f":"N_Substitute","v":"Substitute"}]
[null,null,null,null,null,null,null,null,null,null,null,null,null,null,null,null,null,null,null,null,"#G1",null,null,null,{"$f":"IF(G144=\"\",\"\",G144)","v":"Eq5"},{"$f":"IF(OR(ISNUMBER(Z154),ISNUMBER(Z155),ISNUMBER(Z156),ISNUMBER(Z157)),4-COUNTBLANK(AI154:AI157),\"\")","v":""},"-",{"$f":"IF(OR(ISNUMBER(Z154),ISNUMBER(Z155),ISNUMBER(Z156),ISNUMBER(Z157)),4-COUNTBLANK(AJ154:AJ157),\"\")","v":""},{"$f":"IF(G140=\"\",\"\",G140)","v":"Eq1"},null,{"$f":"IF(Z153=\"\",\"\",IF(Z153>AB153,Y153,IF(Z153=AB153,IF(NoDrawWithWithdraw,IF(AL153=Y153,AC153,IF(AL153=AC153,Y153,\"\")),\"\"),AC153)))","v":""},{"$f":"IF(Z153=\"\",\"\",IF(Z153=AB153,IF(NoDrawWithWithdraw,IF(AL153=Y153,\"\",IF(AL153=AC153,\"\",Y153)),Y153),\"\"))","v":""},{"$f":"IF(Z153=\"\",\"\",IF(Z153=AB153,IF(NoDrawWithWithdraw,IF(AL153=Y153,\"\",IF(AL153=AC153,\"\",AC153)),AC153),\"\"))","v":""},{"$f":"IF(Z153=\"\",\"\",IF(Z153<AB153,Y153,IF(Z153=AB153,IF(NoDrawWithWithdraw,IF(AL153=Y153,Y153,IF(AL153=AC153,AC153,\"\")),\"\"),AC153)))","v":""},{"$f":"IF(Z153=\"\",\"\",SUM(Z154:Z157))","v":""},{"$f":"IF(Z153=\"\",\"\",SUM(AB154:AB157))","v":""},{"$f":"CONCATENATE(AE153,AH153)","v":""},{"$f":"IF(COUNTIF(Y154:Y157,WithdrawLabel)>COUNTIF(AC154:AC157,WithdrawLabel),Y153,IF(COUNTIF(AC154:AC157,WithdrawLabel)>COUNTIF(Y154:Y157,WithdrawLabel),AC153,\"\"))","v":""}]
[null,null,null,null,null,null,null,null,null,null,null,null,null,null,null,null,null,null,null,null,null,null,null,null,null,null,"-",null,null,null,{"$f":"IF(Z154=\"\",\"\",IF(Z154>AB154,Y154,IF(Z154=AB154,\"\",AC154)))","v":""},{"$f":"IF(Z154=\"\",\"\",IF(Z154=AB154,Y154,\"\"))","v":""},{"$f":"IF(Z154=\"\",\"\",IF(Z154=AB154,AC154,\"\"))","v":""},{"$f":"IF(Z154=\"\",\"\",IF(Z154<AB154,Y154,IF(Z154=AB154,\"\",AC154)))","v":""},{"$f":"IF(Z154=\"\",\"\",IF(Z154>AB154,Y153,\"\"))","v":""},{"$f":"IF(Z154=\"\",\"\",IF(Z154<AB154,AC153,\"\"))","v":""},{"$f":"CONCATENATE(AE154,AH154)","v":""}]
[null,null,null,null,null,null,null,null,null,null,null,null,null,null,null,null,null,null,null,null,null,null,null,null,null,null,"-",null,null,null,{"$f":"IF(Z155=\"\",\"\",IF(Z155>AB155,Y155,IF(Z155=AB155,\"\",AC155)))","v":""},{"$f":"IF(Z155=\"\",\"\",IF(Z155=AB155,Y155,\"\"))","v":""},{"$f":"IF(Z155=\"\",\"\",IF(Z155=AB155,AC155,\"\"))","v":""},{"$f":"IF(Z155=\"\",\"\",IF(Z155<AB155,Y155,IF(Z155=AB155,\"\",AC155)))","v":""},{"$f":"IF(Z155=\"\",\"\",IF(Z155>AB155,Y153,\"\"))","v":""},{"$f":"IF(Z155=\"\",\"\",IF(Z155<AB155,AC153,\"\"))","v":""},{"$f":"CONCATENATE(AE155,AH155)","v":""}]
[null,null,null,null,null,null,null,null,null,null,null,null,null,null,null,null,null,null,null,null,null,null,null,null,null,null,"-",null,null,null,{"$f":"IF(Z156=\"\",\"\",IF(Z156>AB156,Y156,IF(Z156=AB156,\"\",AC156)))","v":""},{"$f":"IF(Z156=\"\",\"\",IF(Z156=AB156,Y156,\"\"))","v":""},{"$f":"IF(Z156=\"\",\"\",IF(Z156=AB156,AC156,\"\"))","v":""},{"$f":"IF(Z156=\"\",\"\",IF(Z156<AB156,Y156,IF(Z156=AB156,\"\",AC156)))","v":""},{"$f":"IF(Z156=\"\",\"\",IF(Z156>AB156,Y153,\"\"))","v":""},{"$f":"IF(Z156=\"\",\"\",IF(Z156<AB156,AC153,\"\"))","v":""},{"$f":"CONCATENATE(AE156,AH156)","v":""}]
[null,null,null,null,null,null,null,null,null,null,null,null,null,null,null,null,null,null,null,null,null,null,null,null,null,null,"-",null,null,null,{"$f":"IF(Z157=\"\",\"\",IF(Z157>AB157,Y157,IF(Z157=AB157,\"\",AC157)))","v":""},{"$f":"IF(Z157=\"\",\"\",IF(Z157=AB157,Y157,\"\"))","v":""},{"$f":"IF(Z157=\"\",\"\",IF(Z157=AB157,AC157,\"\"))","v":""},{"$f":"IF(Z157=\"\",\"\",IF(Z157<AB157,Y157,IF(Z157=AB157,\"\",AC157)))","v":""},{"$f":"IF(Z157=\"\",\"\",IF(Z157>AB157,Y153,\"\"))","v":""},{"$f":"IF(Z157=\"\",\"\",IF(Z157<AB157,AC153,\"\"))","v":""},{"$f":"CONCATENATE(AE157,AH157)","v":""}]
[null,null,null,null,null,null,null,null,null,null,null,null,null,null,null,null,null,null,null,null,null,null,null,{"$f":"N_Substitute","v":"Substitute"}]
[null,null,null,null,null,null,null,null,null,null,null,null,null,null,null,null,null,null,null,null,null,null,null,{"$f":"N_Substitute","v":"Substitute"}]
[null,null,null,null,null,null,null,null,null,null,null,null,null,null,null,null,null,null,null,null,"#G2",null,null,null,{"$f":"IF(G141=\"\",\"\",G141)","v":"Eq2"},{"$f":"IF(OR(ISNUMBER(Z161),ISNUMBER(Z162),ISNUMBER(Z163),ISNUMBER(Z164)),4-COUNTBLANK(AI161:AI164),\"\")","v":""},"-",{"$f":"IF(OR(ISNUMBER(Z161),ISNUMBER(Z162),ISNUMBER(Z163),ISNUMBER(Z164)),4-COUNTBLANK(AJ161:AJ164),\"\")","v":""},{"$f":"IF(G143=\"\",\"\",G143)","v":"Eq4"},null,{"$f":"IF(Z160=\"\",\"\",IF(Z160>AB160,Y160,IF(Z160=AB160,IF(NoDrawWithWithdraw,IF(AL160=Y160,AC160,IF(AL160=AC160,Y160,\"\")),\"\"),AC160)))","v":""},{"$f":"IF(Z160=\"\",\"\",IF(Z160=AB160,IF(NoDrawWithWithdraw,IF(AL160=Y160,\"\",IF(AL160=AC160,\"\",Y160)),Y160),\"\"))","v":""},{"$f":"IF(Z160=\"\",\"\",IF(Z160=AB160,IF(NoDrawWithWithdraw,IF(AL160=Y160,\"\",IF(AL160=AC160,\"\",AC160)),AC160),\"\"))","v":""},{"$f":"IF(Z160=\"\",\"\",IF(Z160<AB160,Y160,IF(Z160=AB160,IF(NoDrawWithWithdraw,IF(AL160=Y160,Y160,IF(AL160=AC160,AC160,\"\")),\"\"),AC160)))","v":""},{"$f":"IF(Z160=\"\",\"\",SUM(Z161:Z164))","v":""},{"$f":"IF(Z160=\"\",\"\",SUM(AB161:AB164))","v":""},{"$f":"CONCATENATE(AE160,AH160)","v":""},{"$f":"IF(COUNTIF(Y161:Y164,WithdrawLabel)>COUNTIF(AC161:AC164,WithdrawLabel),Y160,IF(COUNTIF(AC161:AC164,WithdrawLabel)>COUNTIF(Y161:Y164,WithdrawLabel),AC160,\"\"))","v":""}]
[null,null,null,null,null,null,null,null,null,null,null,null,null,null,null,null,null,null,null,null,null,null,null,null,null,null,"-",null,null,null,{"$f":"IF(Z161=\"\",\"\",IF(Z161>AB161,Y161,IF(Z161=AB161,\"\",AC161)))","v":""},{"$f":"IF(Z161=\"\",\"\",IF(Z161=AB161,Y161,\"\"))","v":""},{"$f":"IF(Z161=\"\",\"\",IF(Z161=AB161,AC161,\"\"))","v":""},{"$f":"IF(Z161=\"\",\"\",IF(Z161<AB161,Y161,IF(Z161=AB161,\"\",AC161)))","v":""},{"$f":"IF(Z161=\"\",\"\",IF(Z161>AB161,Y160,\"\"))","v":""},{"$f":"IF(Z161=\"\",\"\",IF(Z161<AB161,AC160,\"\"))","v":""},{"$f":"CONCATENATE(AE161,AH161)","v":""}]
[null,null,null,null,null,null,null,null,null,null,null,null,null,null,null,null,null,null,null,null,null,null,null,null,null,null,"-",null,null,null,{"$f":"IF(Z162=\"\",\"\",IF(Z162>AB162,Y162,IF(Z162=AB162,\"\",AC162)))","v":""},{"$f":"IF(Z162=\"\",\"\",IF(Z162=AB162,Y162,\"\"))","v":""},{"$f":"IF(Z162=\"\",\"\",IF(Z162=AB162,AC162,\"\"))","v":""},{"$f":"IF(Z162=\"\",\"\",IF(Z162<AB162,Y162,IF(Z162=AB162,\"\",AC162)))","v":""},{"$f":"IF(Z162=\"\",\"\",IF(Z162>AB162,Y160,\"\"))","v":""},{"$f":"IF(Z162=\"\",\"\",IF(Z162<AB162,AC160,\"\"))","v":""},{"$f":"CONCATENATE(AE162,AH162)","v":""}]
[null,null,null,null,null,null,null,null,null,null,null,null,null,null,null,null,null,null,null,null,null,null,null,null,null,null,"-",null,null,null,{"$f":"IF(Z163=\"\",\"\",IF(Z163>AB163,Y163,IF(Z163=AB163,\"\",AC163)))","v":""},{"$f":"IF(Z163=\"\",\"\",IF(Z163=AB163,Y163,\"\"))","v":""},{"$f":"IF(Z163=\"\",\"\",IF(Z163=AB163,AC163,\"\"))","v":""},{"$f":"IF(Z163=\"\",\"\",IF(Z163<AB163,Y163,IF(Z163=AB163,\"\",AC163)))","v":""},{"$f":"IF(Z163=\"\",\"\",IF(Z163>AB163,Y160,\"\"))","v":""},{"$f":"IF(Z163=\"\",\"\",IF(Z163<AB163,AC160,\"\"))","v":""},{"$f":"CONCATENATE(AE163,AH163)","v":""}]
[null,null,null,null,null,null,null,null,null,null,null,null,null,null,null,null,null,null,null,null,null,null,null,null,null,null,"-",null,null,null,{"$f":"IF(Z164=\"\",\"\",IF(Z164>AB164,Y164,IF(Z164=AB164,\"\",AC164)))","v":""},{"$f":"IF(Z164=\"\",\"\",IF(Z164=AB164,Y164,\"\"))","v":""},{"$f":"IF(Z164=\"\",\"\",IF(Z164=AB164,AC164,\"\"))","v":""},{"$f":"IF(Z164=\"\",\"\",IF(Z164<AB164,Y164,IF(Z164=AB164,\"\",AC164)))","v":""},{"$f":"IF(Z164=\"\",\"\",IF(Z164>AB164,Y160,\"\"))","v":""},{"$f":"IF(Z164=\"\",\"\",IF(Z164<AB164,AC160,\"\"))","v":""},{"$f":"CONCATENATE(AE164,AH164)","v":""}]
[null,null,null,null,null,null,null,null,null,null,null,null,null,null,null,null,null,null,null,null,null,null,null,{"$f":"N_Substitute","v":"Substitute"}]
[null,null,null,null,null,null,null,null,null,null,null,null,null,null,null,null,null,null,null,null,null,null,null,{"$f":"N_Substitute","v":"Substitute"}]
[null,null,null,null,null,null,null,null,null,null,null,null,null,null,null,null,null,null,null,null,"#G2",null,null,null,{"$f":"IF(G142=\"\",\"\",G142)","v":"Eq3"},{"$f":"IF(OR(ISNUMBER(Z168),ISNUMBER(Z169),ISNUMBER(Z170),ISNUMBER(Z171)),4-COUNTBLANK(AI168:AI171),\"\")","v":""},"-",{"$f":"IF(OR(ISNUMBER(Z168),ISNUMBER(Z169),ISNUMBER(Z170),ISNUMBER(Z171)),4-COUNTBLANK(AJ168:AJ171),\"\")","v":""},{"$f":"IF(G144=\"\",\"\",G144)","v":"Eq5"},null,{"$f":"IF(Z167=\"\",\"\",IF(Z167>AB167,Y167,IF(Z167=AB167,IF(NoDrawWithWithdraw,IF(AL167=Y167,AC167,IF(AL167=AC167,Y167,\"\")),\"\"),AC167)))","v":""},{"$f":"IF(Z167=\"\",\"\",IF(Z167=AB167,IF(NoDrawWithWithdraw,IF(AL167=Y167,\"\",IF(AL167=AC167,\"\",Y167)),Y167),\"\"))","v":""},{"$f":"IF(Z167=\"\",\"\",IF(Z167=AB167,IF(NoDrawWithWithdraw,IF(AL167=Y167,\"\",IF(AL167=AC167,\"\",AC167)),AC167),\"\"))","v":""},{"$f":"IF(Z167=\"\",\"\",IF(Z167<AB167,Y167,IF(Z167=AB167,IF(NoDrawWithWithdraw,IF(AL167=Y167,Y167,IF(AL167=AC167,AC167,\"\")),\"\"),AC167)))","v":""},{"$f":"IF(Z167=\"\",\"\",SUM(Z168:Z171))","v":""},{"$f":"IF(Z167=\"\",\"\",SUM(AB168:AB171))","v":""},{"$f":"CONCATENATE(AE167,AH167)","v":""},{"$f":"IF(COUNTIF(Y168:Y171,WithdrawLabel)>COUNTIF(AC168:AC171,WithdrawLabel),Y167,IF(COUNTIF(AC168:AC171,WithdrawLabel)>COUNTIF(Y168:Y171,WithdrawLabel),AC167,\"\"))","v":""}]
[null,null,null,null,null,null,null,null,null,null,null,null,null,null,null,null,null,null,null,null,null,null,null,null,null,null,"-",null,null,null,{"$f":"IF(Z168=\"\",\"\",IF(Z168>AB168,Y168,IF(Z168=AB168,\"\",AC168)))","v":""},{"$f":"IF(Z168=\"\",\"\",IF(Z168=AB168,Y168,\"\"))","v":""},{"$f":"IF(Z168=\"\",\"\",IF(Z168=AB168,AC168,\"\"))","v":""},{"$f":"IF(Z168=\"\",\"\",IF(Z168<AB168,Y168,IF(Z168=AB168,\"\",AC168)))","v":""},{"$f":"IF(Z168=\"\",\"\",IF(Z168>AB168,Y167,\"\"))","v":""},{"$f":"IF(Z168=\"\",\"\",IF(Z168<AB168,AC167,\"\"))","v":""},{"$f":"CONCATENATE(AE168,AH168)","v":""}]
[null,null,null,null,null,null,null,null,null,null,null,null,null,null,null,null,null,null,null,null,null,null,null,null,null,null,"-",null,null,null,{"$f":"IF(Z169=\"\",\"\",IF(Z169>AB169,Y169,IF(Z169=AB169,\"\",AC169)))","v":""},{"$f":"IF(Z169=\"\",\"\",IF(Z169=AB169,Y169,\"\"))","v":""},{"$f":"IF(Z169=\"\",\"\",IF(Z169=AB169,AC169,\"\"))","v":""},{"$f":"IF(Z169=\"\",\"\",IF(Z169<AB169,Y169,IF(Z169=AB169,\"\",AC169)))","v":""},{"$f":"IF(Z169=\"\",\"\",IF(Z169>AB169,Y167,\"\"))","v":""},{"$f":"IF(Z169=\"\",\"\",IF(Z169<AB169,AC167,\"\"))","v":""},{"$f":"CONCATENATE(AE169,AH169)","v":""}]
[null,null,null,null,null,null,null,null,null,null,null,null,null,null,null,null,null,null,null,null,null,null,null,null,null,null,"-",null,null,null,{"$f":"IF(Z170=\"\",\"\",IF(Z170>AB170,Y170,IF(Z170=AB170,\"\",AC170)))","v":""},{"$f":"IF(Z170=\"\",\"\",IF(Z170=AB170,Y170,\"\"))","v":""},{"$f":"IF(Z170=\"\",\"\",IF(Z170=AB170,AC170,\"\"))","v":""},{"$f":"IF(Z170=\"\",\"\",IF(Z170<AB170,Y170,IF(Z170=AB170,\"\",AC170)))","v":""},{"$f":"IF(Z170=\"\",\"\",IF(Z170>AB170,Y167,\"\"))","v":""},{"$f":"IF(Z170=\"\",\"\",IF(Z170<AB170,AC167,\"\"))","v":""},{"$f":"CONCATENATE(AE170,AH170)","v":""}]
[null,null,null,null,null,null,null,null,null,null,null,null,null,null,null,null,null,null,null,null,null,null,null,null,null,null,"-",null,null,null,{"$f":"IF(Z171=\"\",\"\",IF(Z171>AB171,Y171,IF(Z171=AB171,\"\",AC171)))","v":""},{"$f":"IF(Z171=\"\",\"\",IF(Z171=AB171,Y171,\"\"))","v":""},{"$f":"IF(Z171=\"\",\"\",IF(Z171=AB171,AC171,\"\"))","v":""},{"$f":"IF(Z171=\"\",\"\",IF(Z171<AB171,Y171,IF(Z171=AB171,\"\",AC171)))","v":""},{"$f":"IF(Z171=\"\",\"\",IF(Z171>AB171,Y167,\"\"))","v":""},{"$f":"IF(Z171=\"\",\"\",IF(Z171<AB171,AC167,\"\"))","v":""},{"$f":"CONCATENATE(AE171,AH171)","v":""}]
[null,null,null,null,null,null,null,null,null,null,null,null,null,null,null,null,null,null,null,null,null,null,null,{"$f":"N_Substitute","v":"Substitute"}]
[null,null,null,null,null,null,null,null,null,null,null,null,null,null,null,null,null,null,null,null,null,null,null,{"$f":"N_Substitute","v":"Substitute"}]
[null,null,null,null,null,null,null,null,null,null,null,null,null,null,null,null,null,null,null,null,"#G3",null,null,null,{"$f":"IF(G143=\"\",\"\",G143)","v":"Eq4"},{"$f":"IF(OR(ISNUMBER(Z175),ISNUMBER(Z176),ISNUMBER(Z177),ISNUMBER(Z178)),4-COUNTBLANK(AI175:AI178),\"\")","v":""},"-",{"$f":"IF(OR(ISNUMBER(Z175),ISNUMBER(Z176),ISNUMBER(Z177),ISNUMBER(Z178)),4-COUNTBLANK(AJ175:AJ178),\"\")","v":""},{"$f":"IF(G140=\"\",\"\",G140)","v":"Eq1"},null,{"$f":"IF(Z174=\"\",\"\",IF(Z174>AB174,Y174,IF(Z174=AB174,IF(NoDrawWithWithdraw,IF(AL174=Y174,AC174,IF(AL174=AC174,Y174,\"\")),\"\"),AC174)))","v":""},{"$f":"IF(Z174=\"\",\"\",IF(Z174=AB174,IF(NoDrawWithWithdraw,IF(AL174=Y174,\"\",IF(AL174=AC174,\"\",Y174)),Y174),\"\"))","v":""},{"$f":"IF(Z174=\"\",\"\",IF(Z174=AB174,IF(NoDrawWithWithdraw,IF(AL174=Y174,\"\",IF(AL174=AC174,\"\",AC174)),AC174),\"\"))","v":""},{"$f":"IF(Z174=\"\",\"\",IF(Z174<AB174,Y174,IF(Z174=AB174,IF(NoDrawWithWithdraw,IF(AL174=Y174,Y174,IF(AL174=AC174,AC174,\"\")),\"\"),AC174)))","v":""},{"$f":"IF(Z174=\"\",\"\",SUM(Z175:Z178))","v":""},{"$f":"IF(Z174=\"\",\"\",SUM(AB175:AB178))","v":""},{"$f":"CONCATENATE(AE174,AH174)","v":""},{"$f":"IF(COUNTIF(Y175:Y178,WithdrawLabel)>COUNTIF(AC175:AC178,WithdrawLabel),Y174,IF(COUNTIF(AC175:AC178,WithdrawLabel)>COUNTIF(Y175:Y178,WithdrawLabel),AC174,\"\"))","v":""}]
[null,null,null,null,null,null,null,null,null,null,null,null,null,null,null,null,null,null,null,null,null,null,null,null,null,null,"-",null,null,null,{"$f":"IF(Z175=\"\",\"\",IF(Z175>AB175,Y175,IF(Z175=AB175,\"\",AC175)))","v":""},{"$f":"IF(Z175=\"\",\"\",IF(Z175=AB175,Y175,\"\"))","v":""},{"$f":"IF(Z175=\"\",\"\",IF(Z175=AB175,AC175,\"\"))","v":""},{"$f":"IF(Z175=\"\",\"\",IF(Z175<AB175,Y175,IF(Z175=AB175,\"\",AC175)))","v":""},{"$f":"IF(Z175=\"\",\"\",IF(Z175>AB175,Y174,\"\"))","v":""},{"$f":"IF(Z175=\"\",\"\",IF(Z175<AB175,AC174,\"\"))","v":""},{"$f":"CONCATENATE(AE175,AH175)","v":""}]
[null,null,null,null,null,null,null,null,null,null,null,null,null,null,null,null,null,null,null,null,null,null,null,null,null,null,"-",null,null,null,{"$f":"IF(Z176=\"\",\"\",IF(Z176>AB176,Y176,IF(Z176=AB176,\"\",AC176)))","v":""},{"$f":"IF(Z176=\"\",\"\",IF(Z176=AB176,Y176,\"\"))","v":""},{"$f":"IF(Z176=\"\",\"\",IF(Z176=AB176,AC176,\"\"))","v":""},{"$f":"IF(Z176=\"\",\"\",IF(Z176<AB176,Y176,IF(Z176=AB176,\"\",AC176)))","v":""},{"$f":"IF(Z176=\"\",\"\",IF(Z176>AB176,Y174,\"\"))","v":""},{"$f":"IF(Z176=\"\",\"\",IF(Z176<AB176,AC174,\"\"))","v":""},{"$f":"CONCATENATE(AE176,AH176)","v":""}]
[null,null,null,null,null,null,null,null,null,null,null,null,null,null,null,null,null,null,null,null,null,null,null,null,null,null,"-",null,null,null,{"$f":"IF(Z177=\"\",\"\",IF(Z177>AB177,Y177,IF(Z177=AB177,\"\",AC177)))","v":""},{"$f":"IF(Z177=\"\",\"\",IF(Z177=AB177,Y177,\"\"))","v":""},{"$f":"IF(Z177=\"\",\"\",IF(Z177=AB177,AC177,\"\"))","v":""},{"$f":"IF(Z177=\"\",\"\",IF(Z177<AB177,Y177,IF(Z177=AB177,\"\",AC177)))","v":""},{"$f":"IF(Z177=\"\",\"\",IF(Z177>AB177,Y174,\"\"))","v":""},{"$f":"IF(Z177=\"\",\"\",IF(Z177<AB177,AC174,\"\"))","v":""},{"$f":"CONCATENATE(AE177,AH177)","v":""}]
[null,null,null,null,null,null,null,null,null,null,null,null,null,null,null,null,null,null,null,null,null,null,null,null,null,null,"-",null,null,null,{"$f":"IF(Z178=\"\",\"\",IF(Z178>AB178,Y178,IF(Z178=AB178,\"\",AC178)))","v":""},{"$f":"IF(Z178=\"\",\"\",IF(Z178=AB178,Y178,\"\"))","v":""},{"$f":"IF(Z178=\"\",\"\",IF(Z178=AB178,AC178,\"\"))","v":""},{"$f":"IF(Z178=\"\",\"\",IF(Z178<AB178,Y178,IF(Z178=AB178,\"\",AC178)))","v":""},{"$f":"IF(Z178=\"\",\"\",IF(Z178>AB178,Y174,\"\"))","v":""},{"$f":"IF(Z178=\"\",\"\",IF(Z178<AB178,AC174,\"\"))","v":""},{"$f":"CONCATENATE(AE178,AH178)","v":""}]
[null,null,null,null,null,null,null,null,null,null,null,null,null,null,null,null,null,null,null,null,null,null,null,{"$f":"N_Substitute","v":"Substitute"}]
[null,null,null,null,null,null,null,null,null,null,null,null,null,null,null,null,null,null,null,null,null,null,null,{"$f":"N_Substitute","v":"Substitute"}]
[null,null,null,null,null,null,null,null,null,null,null,null,null,null,null,null,null,null,null,null,"#G3",null,null,null,{"$f":"IF(G144=\"\",\"\",G144)","v":"Eq5"},{"$f":"IF(OR(ISNUMBER(Z182),ISNUMBER(Z183),ISNUMBER(Z184),ISNUMBER(Z185)),4-COUNTBLANK(AI182:AI185),\"\")","v":""},"-",{"$f":"IF(OR(ISNUMBER(Z182),ISNUMBER(Z183),ISNUMBER(Z184),ISNUMBER(Z185)),4-COUNTBLANK(AJ182:AJ185),\"\")","v":""},{"$f":"IF(G141=\"\",\"\",G141)","v":"Eq2"},null,{"$f":"IF(Z181=\"\",\"\",IF(Z181>AB181,Y181,IF(Z181=AB181,IF(NoDrawWithWithdraw,IF(AL181=Y181,AC181,IF(AL181=AC181,Y181,\"\")),\"\"),AC181)))","v":""},{"$f":"IF(Z181=\"\",\"\",IF(Z181=AB181,IF(NoDrawWithWithdraw,IF(AL181=Y181,\"\",IF(AL181=AC181,\"\",Y181)),Y181),\"\"))","v":""},{"$f":"IF(Z181=\"\",\"\",IF(Z181=AB181,IF(NoDrawWithWithdraw,IF(AL181=Y181,\"\",IF(AL181=AC181,\"\",AC181)),AC181),\"\"))","v":""},{"$f":"IF(Z181=\"\",\"\",IF(Z181<AB181,Y181,IF(Z181=AB181,IF(NoDrawWithWithdraw,IF(AL181=Y181,Y181,IF(AL181=AC181,AC181,\"\")),\"\"),AC181)))","v":""},{"$f":"IF(Z181=\"\",\"\",SUM(Z182:Z185))","v":""},{"$f":"IF(Z181=\"\",\"\",SUM(AB182:AB185))","v":""},{"$f":"CONCATENATE(AE181,AH181)","v":""},{"$f":"IF(COUNTIF(Y182:Y185,WithdrawLabel)>COUNTIF(AC182:AC185,WithdrawLabel),Y181,IF(COUNTIF(AC182:AC185,WithdrawLabel)>COUNTIF(Y182:Y185,WithdrawLabel),AC181,\"\"))","v":""}]
[null,null,null,null,null,null,null,null,null,null,null,null,null,null,null,null,null,null,null,null,null,null,null,null,null,null,"-",null,null,null,{"$f":"IF(Z182=\"\",\"\",IF(Z182>AB182,Y182,IF(Z182=AB182,\"\",AC182)))","v":""},{"$f":"IF(Z182=\"\",\"\",IF(Z182=AB182,Y182,\"\"))","v":""},{"$f":"IF(Z182=\"\",\"\",IF(Z182=AB182,AC182,\"\"))","v":""},{"$f":"IF(Z182=\"\",\"\",IF(Z182<AB182,Y182,IF(Z182=AB182,\"\",AC182)))","v":""},{"$f":"IF(Z182=\"\",\"\",IF(Z182>AB182,Y181,\"\"))","v":""},{"$f":"IF(Z182=\"\",\"\",IF(Z182<AB182,AC181,\"\"))","v":""},{"$f":"CONCATENATE(AE182,AH182)","v":""}]
[null,null,null,null,null,null,null,null,null,null,null,null,null,null,null,null,null,null,null,null,null,null,null,null,null,null,"-",null,null,null,{"$f":"IF(Z183=\"\",\"\",IF(Z183>AB183,Y183,IF(Z183=AB183,\"\",AC183)))","v":""},{"$f":"IF(Z183=\"\",\"\",IF(Z183=AB183,Y183,\"\"))","v":""},{"$f":"IF(Z183=\"\",\"\",IF(Z183=AB183,AC183,\"\"))","v":""},{"$f":"IF(Z183=\"\",\"\",IF(Z183<AB183,Y183,IF(Z183=AB183,\"\",AC183)))","v":""},{"$f":"IF(Z183=\"\",\"\",IF(Z183>AB183,Y181,\"\"))","v":""},{"$f":"IF(Z183=\"\",\"\",IF(Z183<AB183,AC181,\"\"))","v":""},{"$f":"CONCATENATE(AE183,AH183)","v":""}]
[null,null,null,null,null,null,null,null,null,null,null,null,null,null,null,null,null,null,null,null,null,null,null,null,null,null,"-",null,null,null,{"$f":"IF(Z184=\"\",\"\",IF(Z184>AB184,Y184,IF(Z184=AB184,\"\",AC184)))","v":""},{"$f":"IF(Z184=\"\",\"\",IF(Z184=AB184,Y184,\"\"))","v":""},{"$f":"IF(Z184=\"\",\"\",IF(Z184=AB184,AC184,\"\"))","v":""},{"$f":"IF(Z184=\"\",\"\",IF(Z184<AB184,Y184,IF(Z184=AB184,\"\",AC184)))","v":""},{"$f":"IF(Z184=\"\",\"\",IF(Z184>AB184,Y181,\"\"))","v":""},{"$f":"IF(Z184=\"\",\"\",IF(Z184<AB184,AC181,\"\"))","v":""},{"$f":"CONCATENATE(AE184,AH184)","v":""}]
[null,null,null,null,null,null,null,null,null,null,null,null,null,null,null,null,null,null,null,null,null,null,null,null,null,null,"-",null,null,null,{"$f":"IF(Z185=\"\",\"\",IF(Z185>AB185,Y185,IF(Z185=AB185,\"\",AC185)))","v":""},{"$f":"IF(Z185=\"\",\"\",IF(Z185=AB185,Y185,\"\"))","v":""},{"$f":"IF(Z185=\"\",\"\",IF(Z185=AB185,AC185,\"\"))","v":""},{"$f":"IF(Z185=\"\",\"\",IF(Z185<AB185,Y185,IF(Z185=AB185,\"\",AC185)))","v":""},{"$f":"IF(Z185=\"\",\"\",IF(Z185>AB185,Y181,\"\"))","v":""},{"$f":"IF(Z185=\"\",\"\",IF(Z185<AB185,AC181,\"\"))","v":""},{"$f":"CONCATENATE(AE185,AH185)","v":""}]
[null,null,null,null,null,null,null,null,null,null,null,null,null,null,null,null,null,null,null,null,null,null,null,{"$f":"N_Substitute","v":"Substitute"}]
[null,null,null,null,null,null,null,null,null,null,null,null,null,null,null,null,null,null,null,null,null,null,null,{"$f":"N_Substitute","v":"Substitute"}]
[null,null,null,null,null,null,null,null,null,null,null,null,null,null,null,null,null,null,null,null,"#G4",null,null,null,{"$f":"IF(G140=\"\",\"\",G140)","v":"Eq1"},{"$f":"IF(OR(ISNUMBER(Z189),ISNUMBER(Z190),ISNUMBER(Z191),ISNUMBER(Z192)),4-COUNTBLANK(AI189:AI192),\"\")","v":""},"-",{"$f":"IF(OR(ISNUMBER(Z189),ISNUMBER(Z190),ISNUMBER(Z191),ISNUMBER(Z192)),4-COUNTBLANK(AJ189:AJ192),\"\")","v":""},{"$f":"IF(G142=\"\",\"\",G142)","v":"Eq3"},null,{"$f":"IF(Z188=\"\",\"\",IF(Z188>AB188,Y188,IF(Z188=AB188,IF(NoDrawWithWithdraw,IF(AL188=Y188,AC188,IF(AL188=AC188,Y188,\"\")),\"\"),AC188)))","v":""},{"$f":"IF(Z188=\"\",\"\",IF(Z188=AB188,IF(NoDrawWithWithdraw,IF(AL188=Y188,\"\",IF(AL188=AC188,\"\",Y188)),Y188),\"\"))","v":""},{"$f":"IF(Z188=\"\",\"\",IF(Z188=AB188,IF(NoDrawWithWithdraw,IF(AL188=Y188,\"\",IF(AL188=AC188,\"\",AC188)),AC188),\"\"))","v":""},{"$f":"IF(Z188=\"\",\"\",IF(Z188<AB188,Y188,IF(Z188=AB188,IF(NoDrawWithWithdraw,IF(AL188=Y188,Y188,IF(AL188=AC188,AC188,\"\")),\"\"),AC188)))","v":""},{"$f":"IF(Z188=\"\",\"\",SUM(Z189:Z192))","v":""},{"$f":"IF(Z188=\"\",\"\",SUM(AB189:AB192))","v":""},{"$f":"CONCATENATE(AE188,AH188)","v":""},{"$f":"IF(COUNTIF(Y189:Y192,WithdrawLabel)>COUNTIF(AC189:AC192,WithdrawLabel),Y188,IF(COUNTIF(AC189:AC192,WithdrawLabel)>COUNTIF(Y189:Y192,WithdrawLabel),AC188,\"\"))","v":""}]
[null,null,null,null,null,null,null,null,null,null,null,null,null,null,null,null,null,null,null,null,null,null,null,null,null,null,"-",null,null,null,{"$f":"IF(Z189=\"\",\"\",IF(Z189>AB189,Y189,IF(Z189=AB189,\"\",AC189)))","v":""},{"$f":"IF(Z189=\"\",\"\",IF(Z189=AB189,Y189,\"\"))","v":""},{"$f":"IF(Z189=\"\",\"\",IF(Z189=AB189,AC189,\"\"))","v":""},{"$f":"IF(Z189=\"\",\"\",IF(Z189<AB189,Y189,IF(Z189=AB189,\"\",AC189)))","v":""},{"$f":"IF(Z189=\"\",\"\",IF(Z189>AB189,Y188,\"\"))","v":""},{"$f":"IF(Z189=\"\",\"\",IF(Z189<AB189,AC188,\"\"))","v":""},{"$f":"CONCATENATE(AE189,AH189)","v":""}]
[null,null,null,null,null,null,null,null,null,null,null,null,null,null,null,null,null,null,null,null,null,null,null,null,null,null,"-",null,null,null,{"$f":"IF(Z190=\"\",\"\",IF(Z190>AB190,Y190,IF(Z190=AB190,\"\",AC190)))","v":""},{"$f":"IF(Z190=\"\",\"\",IF(Z190=AB190,Y190,\"\"))","v":""},{"$f":"IF(Z190=\"\",\"\",IF(Z190=AB190,AC190,\"\"))","v":""},{"$f":"IF(Z190=\"\",\"\",IF(Z190<AB190,Y190,IF(Z190=AB190,\"\",AC190)))","v":""},{"$f":"IF(Z190=\"\",\"\",IF(Z190>AB190,Y188,\"\"))","v":""},{"$f":"IF(Z190=\"\",\"\",IF(Z190<AB190,AC188,\"\"))","v":""},{"$f":"CONCATENATE(AE190,AH190)","v":""}]
[null,null,null,null,null,null,null,null,null,null,null,null,null,null,null,null,null,null,null,null,null,null,null,null,null,null,"-",null,null,null,{"$f":"IF(Z191=\"\",\"\",IF(Z191>AB191,Y191,IF(Z191=AB191,\"\",AC191)))","v":""},{"$f":"IF(Z191=\"\",\"\",IF(Z191=AB191,Y191,\"\"))","v":""},{"$f":"IF(Z191=\"\",\"\",IF(Z191=AB191,AC191,\"\"))","v":""},{"$f":"IF(Z191=\"\",\"\",IF(Z191<AB191,Y191,IF(Z191=AB191,\"\",AC191)))","v":""},{"$f":"IF(Z191=\"\",\"\",IF(Z191>AB191,Y188,\"\"))","v":""},{"$f":"IF(Z191=\"\",\"\",IF(Z191<AB191,AC188,\"\"))","v":""},{"$f":"CONCATENATE(AE191,AH191)","v":""}]
[null,null,null,null,null,null,null,null,null,null,null,null,null,null,null,null,null,null,null,null,null,null,null,null,null,null,"-",null,null,null,{"$f":"IF(Z192=\"\",\"\",IF(Z192>AB192,Y192,IF(Z192=AB192,\"\",AC192)))","v":""},{"$f":"IF(Z192=\"\",\"\",IF(Z192=AB192,Y192,\"\"))","v":""},{"$f":"IF(Z192=\"\",\"\",IF(Z192=AB192,AC192,\"\"))","v":""},{"$f":"IF(Z192=\"\",\"\",IF(Z192<AB192,Y192,IF(Z192=AB192,\"\",AC192)))","v":""},{"$f":"IF(Z192=\"\",\"\",IF(Z192>AB192,Y188,\"\"))","v":""},{"$f":"IF(Z192=\"\",\"\",IF(Z192<AB192,AC188,\"\"))","v":""},{"$f":"CONCATENATE(AE192,AH192)","v":""}]
[null,null,null,null,null,null,null,null,null,null,null,null,null,null,null,null,null,null,null,null,null,null,null,{"$f":"N_Substitute","v":"Substitute"}]
[null,null,null,null,null,null,null,null,null,null,null,null,null,null,null,null,null,null,null,null,null,null,null,{"$f":"N_Substitute","v":"Substitute"}]
[null,null,null,null,null,null,null,null,null,null,null,null,null,null,null,null,null,null,null,null,"#G4",null,null,null,{"$f":"IF(G143=\"\",\"\",G143)","v":"Eq4"},{"$f":"IF(OR(ISNUMBER(Z196),ISNUMBER(Z197),ISNUMBER(Z198),ISNUMBER(Z199)),4-COUNTBLANK(AI196:AI199),\"\")","v":""},"-",{"$f":"IF(OR(ISNUMBER(Z196),ISNUMBER(Z197),ISNUMBER(Z198),ISNUMBER(Z199)),4-COUNTBLANK(AJ196:AJ199),\"\")","v":""},{"$f":"IF(G144=\"\",\"\",G144)","v":"Eq5"},null,{"$f":"IF(Z195=\"\",\"\",IF(Z195>AB195,Y195,IF(Z195=AB195,IF(NoDrawWithWithdraw,IF(AL195=Y195,AC195,IF(AL195=AC195,Y195,\"\")),\"\"),AC195)))","v":""},{"$f":"IF(Z195=\"\",\"\",IF(Z195=AB195,IF(NoDrawWithWithdraw,IF(AL195=Y195,\"\",IF(AL195=AC195,\"\",Y195)),Y195),\"\"))","v":""},{"$f":"IF(Z195=\"\",\"\",IF(Z195=AB195,IF(NoDrawWithWithdraw,IF(AL195=Y195,\"\",IF(AL195=AC195,\"\",AC195)),AC195),\"\"))","v":""},{"$f":"IF(Z195=\"\",\"\",IF(Z195<AB195,Y195,IF(Z195=AB195,IF(NoDrawWithWithdraw,IF(AL195=Y195,Y195,IF(AL195=AC195,AC195,\"\")),\"\"),AC195)))","v":""},{"$f":"IF(Z195=\"\",\"\",SUM(Z196:Z199))","v":""},{"$f":"IF(Z195=\"\",\"\",SUM(AB196:AB199))","v":""},{"$f":"CONCATENATE(AE195,AH195)","v":""},{"$f":"IF(COUNTIF(Y196:Y199,WithdrawLabel)>COUNTIF(AC196:AC199,WithdrawLabel),Y195,IF(COUNTIF(AC196:AC199,WithdrawLabel)>COUNTIF(Y196:Y199,WithdrawLabel),AC195,\"\"))","v":""}]
[null,null,null,null,null,null,null,null,null,null,null,null,null,null,null,null,null,null,null,null,null,null,null,null,null,null,"-",null,null,null,{"$f":"IF(Z196=\"\",\"\",IF(Z196>AB196,Y196,IF(Z196=AB196,\"\",AC196)))","v":""},{"$f":"IF(Z196=\"\",\"\",IF(Z196=AB196,Y196,\"\"))","v":""},{"$f":"IF(Z196=\"\",\"\",IF(Z196=AB196,AC196,\"\"))","v":""},{"$f":"IF(Z196=\"\",\"\",IF(Z196<AB196,Y196,IF(Z196=AB196,\"\",AC196)))","v":""},{"$f":"IF(Z196=\"\",\"\",IF(Z196>AB196,Y195,\"\"))","v":""},{"$f":"IF(Z196=\"\",\"\",IF(Z196<AB196,AC195,\"\"))","v":""},{"$f":"CONCATENATE(AE196,AH196)","v":""}]
[null,null,null,null,null,null,null,null,null,null,null,null,null,null,null,null,null,null,null,null,null,null,null,null,null,null,"-",null,null,null,{"$f":"IF(Z197=\"\",\"\",IF(Z197>AB197,Y197,IF(Z197=AB197,\"\",AC197)))","v":""},{"$f":"IF(Z197=\"\",\"\",IF(Z197=AB197,Y197,\"\"))","v":""},{"$f":"IF(Z197=\"\",\"\",IF(Z197=AB197,AC197,\"\"))","v":""},{"$f":"IF(Z197=\"\",\"\",IF(Z197<AB197,Y197,IF(Z197=AB197,\"\",AC197)))","v":""},{"$f":"IF(Z197=\"\",\"\",IF(Z197>AB197,Y195,\"\"))","v":""},{"$f":"IF(Z197=\"\",\"\",IF(Z197<AB197,AC195,\"\"))","v":""},{"$f":"CONCATENATE(AE197,AH197)","v":""}]
[null,null,null,null,null,null,null,null,null,null,null,null,null,null,null,null,null,null,null,null,null,null,null,null,null,null,"-",null,null,null,{"$f":"IF(Z198=\"\",\"\",IF(Z198>AB198,Y198,IF(Z198=AB198,\"\",AC198)))","v":""},{"$f":"IF(Z198=\"\",\"\",IF(Z198=AB198,Y198,\"\"))","v":""},{"$f":"IF(Z198=\"\",\"\",IF(Z198=AB198,AC198,\"\"))","v":""},{"$f":"IF(Z198=\"\",\"\",IF(Z198<AB198,Y198,IF(Z198=AB198,\"\",AC198)))","v":""},{"$f":"IF(Z198=\"\",\"\",IF(Z198>AB198,Y195,\"\"))","v":""},{"$f":"IF(Z198=\"\",\"\",IF(Z198<AB198,AC195,\"\"))","v":""},{"$f":"CONCATENATE(AE198,AH198)","v":""}]
[null,null,null,null,null,null,null,null,null,null,null,null,null,null,null,null,null,null,null,null,null,null,null,null,null,null,"-",null,null,null,{"$f":"IF(Z199=\"\",\"\",IF(Z199>AB199,Y199,IF(Z199=AB199,\"\",AC199)))","v":""},{"$f":"IF(Z199=\"\",\"\",IF(Z199=AB199,Y199,\"\"))","v":""},{"$f":"IF(Z199=\"\",\"\",IF(Z199=AB199,AC199,\"\"))","v":""},{"$f":"IF(Z199=\"\",\"\",IF(Z199<AB199,Y199,IF(Z199=AB199,\"\",AC199)))","v":""},{"$f":"IF(Z199=\"\",\"\",IF(Z199>AB199,Y195,\"\"))","v":""},{"$f":"IF(Z199=\"\",\"\",IF(Z199<AB199,AC195,\"\"))","v":""},{"$f":"CONCATENATE(AE199,AH199)","v":""}]
[null,null,null,null,null,null,null,null,null,null,null,null,null,null,null,null,null,null,null,null,null,null,null,{"$f":"N_Substitute","v":"Substitute"}]
[null,null,null,null,null,null,null,null,null,null,null,null,null,null,null,null,null,null,null,null,null,null,null,{"$f":"N_Substitute","v":"Substitute"}]
[null,null,null,null,null,null,null,null,null,null,null,null,null,null,null,null,null,null,null,null,"#G5",null,null,null,{"$f":"IF(G140=\"\",\"\",G140)","v":"Eq1"},{"$f":"IF(OR(ISNUMBER(Z203),ISNUMBER(Z204),ISNUMBER(Z205),ISNUMBER(Z206)),4-COUNTBLANK(AI203:AI206),\"\")","v":""},"-",{"$f":"IF(OR(ISNUMBER(Z203),ISNUMBER(Z204),ISNUMBER(Z205),ISNUMBER(Z206)),4-COUNTBLANK(AJ203:AJ206),\"\")","v":""},{"$f":"IF(G141=\"\",\"\",G141)","v":"Eq2"},null,{"$f":"IF(Z202=\"\",\"\",IF(Z202>AB202,Y202,IF(Z202=AB202,IF(NoDrawWithWithdraw,IF(AL202=Y202,AC202,IF(AL202=AC202,Y202,\"\")),\"\"),AC202)))","v":""},{"$f":"IF(Z202=\"\",\"\",IF(Z202=AB202,IF(NoDrawWithWithdraw,IF(AL202=Y202,\"\",IF(AL202=AC202,\"\",Y202)),Y202),\"\"))","v":""},{"$f":"IF(Z202=\"\",\"\",IF(Z202=AB202,IF(NoDrawWithWithdraw,IF(AL202=Y202,\"\",IF(AL202=AC202,\"\",AC202)),AC202),\"\"))","v":""},{"$f":"IF(Z202=\"\",\"\",IF(Z202<AB202,Y202,IF(Z202=AB202,IF(NoDrawWithWithdraw,IF(AL202=Y202,Y202,IF(AL202=AC202,AC202,\"\")),\"\"),AC202)))","v":""},{"$f":"IF(Z202=\"\",\"\",SUM(Z203:Z206))","v":""},{"$f":"IF(Z202=\"\",\"\",SUM(AB203:AB206))","v":""},{"$f":"CONCATENATE(AE202,AH202)","v":""},{"$f":"IF(COUNTIF(Y203:Y206,WithdrawLabel)>COUNTIF(AC203:AC206,WithdrawLabel),Y202,IF(COUNTIF(AC203:AC206,WithdrawLabel)>COUNTIF(Y203:Y206,WithdrawLabel),AC202,\"\"))","v":""}]
[null,null,null,null,null,null,null,null,null,null,null,null,null,null,null,null,null,null,null,null,null,null,null,null,null,null,"-",null,null,null,{"$f":"IF(Z203=\"\",\"\",IF(Z203>AB203,Y203,IF(Z203=AB203,\"\",AC203)))","v":""},{"$f":"IF(Z203=\"\",\"\",IF(Z203=AB203,Y203,\"\"))","v":""},{"$f":"IF(Z203=\"\",\"\",IF(Z203=AB203,AC203,\"\"))","v":""},{"$f":"IF(Z203=\"\",\"\",IF(Z203<AB203,Y203,IF(Z203=AB203,\"\",AC203)))","v":""},{"$f":"IF(Z203=\"\",\"\",IF(Z203>AB203,Y202,\"\"))","v":""},{"$f":"IF(Z203=\"\",\"\",IF(Z203<AB203,AC202,\"\"))","v":""},{"$f":"CONCATENATE(AE203,AH203)","v":""}]
[null,null,null,null,null,null,null,null,null,null,null,null,null,null,null,null,null,null,null,null,null,null,null,null,null,null,"-",null,null,null,{"$f":"IF(Z204=\"\",\"\",IF(Z204>AB204,Y204,IF(Z204=AB204,\"\",AC204)))","v":""},{"$f":"IF(Z204=\"\",\"\",IF(Z204=AB204,Y204,\"\"))","v":""},{"$f":"IF(Z204=\"\",\"\",IF(Z204=AB204,AC204,\"\"))","v":""},{"$f":"IF(Z204=\"\",\"\",IF(Z204<AB204,Y204,IF(Z204=AB204,\"\",AC204)))","v":""},{"$f":"IF(Z204=\"\",\"\",IF(Z204>AB204,Y202,\"\"))","v":""},{"$f":"IF(Z204=\"\",\"\",IF(Z204<AB204,AC202,\"\"))","v":""},{"$f":"CONCATENATE(AE204,AH204)","v":""}]
[null,null,null,null,null,null,null,null,null,null,null,null,null,null,null,null,null,null,null,null,null,null,null,null,null,null,"-",null,null,null,{"$f":"IF(Z205=\"\",\"\",IF(Z205>AB205,Y205,IF(Z205=AB205,\"\",AC205)))","v":""},{"$f":"IF(Z205=\"\",\"\",IF(Z205=AB205,Y205,\"\"))","v":""},{"$f":"IF(Z205=\"\",\"\",IF(Z205=AB205,AC205,\"\"))","v":""},{"$f":"IF(Z205=\"\",\"\",IF(Z205<AB205,Y205,IF(Z205=AB205,\"\",AC205)))","v":""},{"$f":"IF(Z205=\"\",\"\",IF(Z205>AB205,Y202,\"\"))","v":""},{"$f":"IF(Z205=\"\",\"\",IF(Z205<AB205,AC202,\"\"))","v":""},{"$f":"CONCATENATE(AE205,AH205)","v":""}]
[null,null,null,null,null,null,null,null,null,null,null,null,null,null,null,null,null,null,null,null,null,null,null,null,null,null,"-",null,null,null,{"$f":"IF(Z206=\"\",\"\",IF(Z206>AB206,Y206,IF(Z206=AB206,\"\",AC206)))","v":""},{"$f":"IF(Z206=\"\",\"\",IF(Z206=AB206,Y206,\"\"))","v":""},{"$f":"IF(Z206=\"\",\"\",IF(Z206=AB206,AC206,\"\"))","v":""},{"$f":"IF(Z206=\"\",\"\",IF(Z206<AB206,Y206,IF(Z206=AB206,\"\",AC206)))","v":""},{"$f":"IF(Z206=\"\",\"\",IF(Z206>AB206,Y202,\"\"))","v":""},{"$f":"IF(Z206=\"\",\"\",IF(Z206<AB206,AC202,\"\"))","v":""},{"$f":"CONCATENATE(AE206,AH206)","v":""}]
[null,null,null,null,null,null,null,null,null,null,null,null,null,null,null,null,null,null,null,null,null,null,null,{"$f":"N_Substitute","v":"Substitute"}]
[null,null,null,null,null,null,null,null,null,null,null,null,null,null,null,null,null,null,null,null,null,null,null,{"$f":"N_Substitute","v":"Substitute"}]
[null,null,null,null,null,null,null,null,null,null,null,null,null,null,null,null,null,null,null,null,"#G5",null,null,null,{"$f":"IF(G142=\"\",\"\",G142)","v":"Eq3"},{"$f":"IF(OR(ISNUMBER(Z210),ISNUMBER(Z211),ISNUMBER(Z212),ISNUMBER(Z213)),4-COUNTBLANK(AI210:AI213),\"\")","v":""},"-",{"$f":"IF(OR(ISNUMBER(Z210),ISNUMBER(Z211),ISNUMBER(Z212),ISNUMBER(Z213)),4-COUNTBLANK(AJ210:AJ213),\"\")","v":""},{"$f":"IF(G143=\"\",\"\",G143)","v":"Eq4"},null,{"$f":"IF(Z209=\"\",\"\",IF(Z209>AB209,Y209,IF(Z209=AB209,IF(NoDrawWithWithdraw,IF(AL209=Y209,AC209,IF(AL209=AC209,Y209,\"\")),\"\"),AC209)))","v":""},{"$f":"IF(Z209=\"\",\"\",IF(Z209=AB209,IF(NoDrawWithWithdraw,IF(AL209=Y209,\"\",IF(AL209=AC209,\"\",Y209)),Y209),\"\"))","v":""},{"$f":"IF(Z209=\"\",\"\",IF(Z209=AB209,IF(NoDrawWithWithdraw,IF(AL209=Y209,\"\",IF(AL209=AC209,\"\",AC209)),AC209),\"\"))","v":""},{"$f":"IF(Z209=\"\",\"\",IF(Z209<AB209,Y209,IF(Z209=AB209,IF(NoDrawWithWithdraw,IF(AL209=Y209,Y209,IF(AL209=AC209,AC209,\"\")),\"\"),AC209)))","v":""},{"$f":"IF(Z209=\"\",\"\",SUM(Z210:Z213))","v":""},{"$f":"IF(Z209=\"\",\"\",SUM(AB210:AB213))","v":""},{"$f":"CONCATENATE(AE209,AH209)","v":""},{"$f":"IF(COUNTIF(Y210:Y213,WithdrawLabel)>COUNTIF(AC210:AC213,WithdrawLabel),Y209,IF(COUNTIF(AC210:AC213,WithdrawLabel)>COUNTIF(Y210:Y213,WithdrawLabel),AC209,\"\"))","v":""}]
[null,null,null,null,null,null,null,null,null,null,null,null,null,null,null,null,null,null,null,null,null,null,null,null,null,null,"-",null,null,null,{"$f":"IF(Z210=\"\",\"\",IF(Z210>AB210,Y210,IF(Z210=AB210,\"\",AC210)))","v":""},{"$f":"IF(Z210=\"\",\"\",IF(Z210=AB210,Y210,\"\"))","v":""},{"$f":"IF(Z210=\"\",\"\",IF(Z210=AB210,AC210,\"\"))","v":""},{"$f":"IF(Z210=\"\",\"\",IF(Z210<AB210,Y210,IF(Z210=AB210,\"\",AC210)))","v":""},{"$f":"IF(Z210=\"\",\"\",IF(Z210>AB210,Y209,\"\"))","v":""},{"$f":"IF(Z210=\"\",\"\",IF(Z210<AB210,AC209,\"\"))","v":""},{"$f":"CONCATENATE(AE210,AH210)","v":""}]
[null,null,null,null,null,null,null,null,null,null,null,null,null,null,null,null,null,null,null,null,null,null,null,null,null,null,"-",null,null,null,{"$f":"IF(Z211=\"\",\"\",IF(Z211>AB211,Y211,IF(Z211=AB211,\"\",AC211)))","v":""},{"$f":"IF(Z211=\"\",\"\",IF(Z211=AB211,Y211,\"\"))","v":""},{"$f":"IF(Z211=\"\",\"\",IF(Z211=AB211,AC211,\"\"))","v":""},{"$f":"IF(Z211=\"\",\"\",IF(Z211<AB211,Y211,IF(Z211=AB211,\"\",AC211)))","v":""},{"$f":"IF(Z211=\"\",\"\",IF(Z211>AB211,Y209,\"\"))","v":""},{"$f":"IF(Z211=\"\",\"\",IF(Z211<AB211,AC209,\"\"))","v":""},{"$f":"CONCATENATE(AE211,AH211)","v":""}]
[null,null,null,null,null,null,null,null,null,null,null,null,null,null,null,null,null,null,null,null,null,null,null,null,null,null,"-",null,null,null,{"$f":"IF(Z212=\"\",\"\",IF(Z212>AB212,Y212,IF(Z212=AB212,\"\",AC212)))","v":""},{"$f":"IF(Z212=\"\",\"\",IF(Z212=AB212,Y212,\"\"))","v":""},{"$f":"IF(Z212=\"\",\"\",IF(Z212=AB212,AC212,\"\"))","v":""},{"$f":"IF(Z212=\"\",\"\",IF(Z212<AB212,Y212,IF(Z212=AB212,\"\",AC212)))","v":""},{"$f":"IF(Z212=\"\",\"\",IF(Z212>AB212,Y209,\"\"))","v":""},{"$f":"IF(Z212=\"\",\"\",IF(Z212<AB212,AC209,\"\"))","v":""},{"$f":"CONCATENATE(AE212,AH212)","v":""}]
[null,null,null,null,null,null,null,null,null,null,null,null,null,null,null,null,null,null,null,null,null,null,null,null,null,null,"-",null,null,null,{"$f":"IF(Z213=\"\",\"\",IF(Z213>AB213,Y213,IF(Z213=AB213,\"\",AC213)))","v":""},{"$f":"IF(Z213=\"\",\"\",IF(Z213=AB213,Y213,\"\"))","v":""},{"$f":"IF(Z213=\"\",\"\",IF(Z213=AB213,AC213,\"\"))","v":""},{"$f":"IF(Z213=\"\",\"\",IF(Z213<AB213,Y213,IF(Z213=AB213,\"\",AC213)))","v":""},{"$f":"IF(Z213=\"\",\"\",IF(Z213>AB213,Y209,\"\"))","v":""},{"$f":"IF(Z213=\"\",\"\",IF(Z213<AB213,AC209,\"\"))","v":""},{"$f":"CONCATENATE(AE213,AH213)","v":""}]
[null,null,null,null,null,null,null,null,null,null,null,null,null,null,null,null,null,null,null,null,null,null,null,{"$f":"N_Substitute","v":"Substitute"}]
[null,null,null,null,null,null,null,null,null,null,null,null,null,null,null,null,null,null,null,null,null,null,null,{"$f":"N_Substitute","v":"Substitute"}]
[]
[]
[null,{"$f":"N_Group_6","v":"Group of 6"},null,null,null,null,null,null,null,null,null,null,null,null,null,null,null,null,null,null,null,null,null,null,null,null,null,null,null,null,null,null,null,null,null,null,null,null,null,{"$f":"B218","v":"Group of 6"}]
[]
[null,{"$f":"N_Tirage","v":"Draw"},"Cla.","Cla1","Part","Cla2",{"$f":"N_Equipes","v":"Teams"},{"$f":"N_Pts","v":"Pts"},{"$f":"N_J","v":"Pld"},{"$f":"N_G","v":"W"},{"$f":"N_N","v":"D"},{"$f":"N_P","v":"L"},{"$f":"N_Diff_R","v":"ED"},{"$f":"N_MP","v":"WM"},{"$f":"N_MC","v":"LM"},{"$f":"N_Diff_M","v":"MD"},{"$f":"N_BP","v":"F"},{"$f":"N_BC","v":"A"},{"$f":"N_Diff_B","v":"GD"},null,null,null,null,null,null,null,null,null,null,null,null,null,null,null,null,null,null,null,null,null,{"$f":"N_Cla.","v":"Rk"},{"$f":"N_Equipes","v":"Teams"},{"$f":"N_Pts","v":"Pts"},{"$f":"N_J","v":"Pld"},{"$f":"N_G","v":"W"},{"$f":"N_N","v":"D"},{"$f":"N_P","v":"L"},{"$f":"N_Diff_R","v":"ED"},{"$f":"N_MP","v":"WM"},{"$f":"N_MC","v":"LM"},{"$f":"N_Diff_M","v":"MD"},{"$f":"N_BP","v":"F"},{"$f":"N_BC","v":"A"},{"$f":"N_Diff_B","v":"GD"},{"$f":"N_Matches","v":"Matches"}]
[null,1,{"$f":"IF(AL227=\"\",\"\",RANK(F221,F221:F226)*1000+ROW())","v":""},{"$f":"IF(J221=\"\",\"\",H221*CritClassEq1_Points+M221*CritClassEq1_DiffRencontres+P221*CritClassEq1_DiffMatches+S221*CritClassEq1_DiffButs+N221*CritClassEq1_Matches+Q221*CritClassEq1_Attaque)","v":""},{"$f":"IF(J221=\"\",\"\",Nb_Diff_Part(D221,D221:D226,G221,G221:G226,AK228:AK326)*CritClassEq_DiffPart+Nb_Goal_Part(D221,D221:D226,G221,G221:G226,Y228:AC326)*CritClassEq_IndsPart+Nb_Score_Part(D221,D221:D226,G221,G221:G226,Y228:AC326)*CritClassEq_WinsPart+Nb_GoalTeam_Part(D221,D221:D226,G221,G221:G226,Y228:AC326)*CritClassEq_GoalPart+Nb_ScoreTeam_Part(D221,D221:D226,G221,G221:G226,Y228:AC326)*CritClassEq_ScorePart)","v":""},{"$f":"IF(J221=\"\",\"\",D221+E221+H221*CritClassEq2_Points+M221*CritClassEq2_DiffRencontres+P221*CritClassEq2_DiffMatches+S221*CritClassEq2_DiffButs+N221*CritClassEq2_Matches+Q221*CritClassEq2_Attaque)","v":""},"Eq1",{"$f":"IF(AL227=\"\",\"\",(J221*Points_Victoire)+K221*Points_Null)","v":""},{"$f":"IF(J221=\"\",\"\",SUM(J221:L221))","v":""},{"$f":"IF(AL227=\"\",\"\",COUNTIF(AE228:AE330,G221))","v":""},{"$f":"IF(AL227=\"\",\"\",COUNTIF(AF228:AG330,G221))","v":""},{"$f":"IF(AL227=\"\",\"\",COUNTIF(AH228:AH330,G221))","v":""},{"$f":"IF(AL227=\"\",\"\",J221-L221)","v":""},{"$f":"IF(AL227=\"\",\"\",SUMIF(Y228:Y330,G221,Z228:Z330)+SUMIF(AC228:AC330,G221,AB228:AB330))","v":""},{"$f":"IF(AL227=\"\",\"\",SUMIF(Y228:Y330,G221,AB228:AB330)+SUMIF(AC228:AC330,G221,Z228:Z330))","v":""},{"$f":"IF(AL227=\"\",\"\",N221-O221)","v":""},{"$f":"IF(AL227=\"\",\"\",SUMIF(Y228:Y330,G221,AI228:AI330)+SUMIF(AC228:AC330,G221,AJ228:AJ330))","v":""},{"$f":"IF(AL227=\"\",\"\",SUMIF(Y228:Y330,G221,AJ228:AJ330)+SUMIF(AC228:AC330,G221,AI228:AI330))","v":""},{"$f":"IF(AL227=\"\",\"\",Q221-R221)","v":""},null,null,null,null,null,null,null,null,null,null,null,null,null,null,null,null,null,null,{"$f":"IF(AL227=\"\",\"\",SMALL(C221:C226,1))","v":""},null,null,{"$f":"IF(AL227=\"\",\"\",INT(AL221/1000))","v":""},{"$f":"IF(AL227=\"\",IF(HidePlayerFormulas,\"\",\"(\"&G221&\")\"),VLOOKUP(AL221,C221:S226,5,FALSE))","v":""},{"$f":"VLOOKUP(AL221,C221:S226,6,FALSE)","v":""},{"$f":"VLOOKUP(AL221,C221:S226,7,FALSE)","v":""},{"$f":"VLOOKUP(AL221,C221:S226,8,FALSE)","v":""},{"$f":"VLOOKUP(AL221,C221:S226,9,FALSE)","v":""},{"$f":"VLOOKUP(AL221,C221:S226,10,FALSE)","v":""},{"$f":"VLOOKUP(AL221,C221:S226,11,FALSE)","v":""},{"$f":"VLOOKUP(AL221,C221:S226,12,FALSE)","v":""},{"$f":"VLOOKUP(AL221,C221:S226,13,FALSE)","v":""},{"$f":"VLOOKUP(AL221,C221:S226,14,FALSE)","v":""},{"$f":"VLOOKUP(AL221,C221:S226,15,FALSE)","v":""},{"$f":"VLOOKUP(AL221,C221:S226,16,FALSE)","v":""},{"$f":"VLOOKUP(AL221,C221:S226,17,FALSE)","v":""},{"$f":"IF(Z228=\"\",\"\",IF(AP221=Y228,Z228&\"(\"&SUM(Z229:Z232)&\")\",IF(AP221=AC228,AB228&\"(\"&SUM(AB229:AB232)&\")\",\"\")))","v":""},{"$f":"IF(Z235=\"\",\"\",IF(AP221=Y235,Z235&\"(\"&SUM(Z236:Z239)&\")\",IF(AP221=AC235,AB235&\"(\"&SUM(AB236:AB239)&\")\",\"\")))","v":""},{"$f":"IF(Z242=\"\",\"\",IF(AP221=Y242,Z242&\"(\"&SUM(Z243:Z246)&\")\",IF(AP221=AC242,AB242&\"(\"&SUM(AB243:AB246)&\")\",\"\")))","v":""},{"$f":"IF(Z249=\"\",\"\",IF(AP221=Y249,Z249&\"(\"&SUM(Z250:Z253)&\")\",IF(AP221=AC249,AB249&\"(\"&SUM(AB250:AB253)&\")\",\"\")))","v":""},{"$f":"IF(Z256=\"\",\"\",IF(AP221=Y256,Z256&\"(\"&SUM(Z257:Z260)&\")\",IF(AP221=AC256,AB256&\"(\"&SUM(AB257:AB260)&\")\",\"\")))","v":""},{"$f":"IF(Z263=\"\",\"\",IF(AP221=Y263,Z263&\"(\"&SUM(Z264:Z267)&\")\",IF(AP221=AC263,AB263&\"(\"&SUM(AB264:AB267)&\")\",\"\")))","v":""},{"$f":"IF(Z270=\"\",\"\",IF(AP221=Y270,Z270&\"(\"&SUM(Z271:Z274)&\")\",IF(AP221=AC270,AB270&\"(\"&SUM(AB271:AB274)&\")\",\"\")))","v":""},{"$f":"IF(Z277=\"\",\"\",IF(AP221=Y277,Z277&\"(\"&SUM(Z278:Z281)&\")\",IF(AP221=AC277,AB277&\"(\"&SUM(AB278:AB281)&\")\",\"\")))","v":""},{"$f":"IF(Z284=\"\",\"\",IF(AP221=Y284,Z284&\"(\"&SUM(Z285:Z288)&\")\",IF(AP221=AC284,AB284&\"(\"&SUM(AB285:AB288)&\")\",\"\")))","v":""},{"$f":"IF(Z291=\"\",\"\",IF(AP221=Y291,Z291&\"(\"&SUM(Z292:Z295)&\")\",IF(AP221=AC291,AB291&\"(\"&SUM(AB292:AB295)&\")\",\"\")))","v":""},{"$f":"IF(Z298=\"\",\"\",IF(AP221=Y298,Z298&\"(\"&SUM(Z299:Z302)&\")\",IF(AP221=AC298,AB298&\"(\"&SUM(AB299:AB302)&\")\",\"\")))","v":""},{"$f":"IF(Z305=\"\",\"\",IF(AP221=Y305,Z305&\"(\"&SUM(Z306:Z309)&\")\",IF(AP221=AC305,AB305&\"(\"&SUM(AB306:AB309)&\")\",\"\")))","v":""},{"$f":"IF(Z312=\"\",\"\",IF(AP221=Y312,Z312&\"(\"&SUM(Z313:Z316)&\")\",IF(AP221=AC312,AB312&\"(\"&SUM(AB313:AB316)&\")\",\"\")))","v":""},{"$f":"IF(Z319=\"\",\"\",IF(AP221=Y319,Z319&\"(\"&SUM(Z320:Z323)&\")\",IF(AP221=AC319,AB319&\"(\"&SUM(AB320:AB323)&\")\",\"\")))","v":""},{"$f":"IF(Z326=\"\",\"\",IF(AP221=Y326,Z326&\"(\"&SUM(Z327:Z330)&\")\",IF(AP221=AC326,AB326&\"(\"&SUM(AB327:AB330)&\")\",\"\")))","v":""},null,null,null,null,null,null,null,null,null,null,null,null,null,{"$f":"IF(G221=\"[---WithDraw---]\",FALSE,IF(COUNTIF(PlayerNamesWithinGroups,G221)>1,TRUE,FALSE))","v":true},{"$f":"AND(LEFT($AP221,1) = \"(\", RIGHT($AP221,1) =\")\")","v":false},{"$f":"IF(OR($AO221=$AO220,$AO221=$AO222),TRUE,FALSE)","v":true}]
[null,2,{"$f":"IF(AL227=\"\",\"\",RANK(F222,F221:F226)*1000+ROW())","v":""},"",{"$f":"IF(J222=\"\",\"\",Nb_Diff_Part(D222,D221:D226,G222,G221:G226,AK228:AK326)*CritClassEq_DiffPart+Nb_Goal_Part(D222,D221:D226,G222,G221:G226,Y228:AC326)*CritClassEq_IndsPart+Nb_Score_Part(D222,D221:D226,G222,G221:G226,Y228:AC326)*CritClassEq_WinsPart+Nb_GoalTeam_Part(D222,D221:D226,G222,G221:G226,Y228:AC326)*CritClassEq_GoalPart+Nb_ScoreTeam_Part(D222,D221:D226,G222,G221:G226,Y228:AC326)*CritClassEq_ScorePart)","v":""},"","Eq2",{"$f":"IF(AL227=\"\",\"\",(J222*Points_Victoire)+K222*Points_Null)","v":""},"",{"$f":"IF(AL227=\"\",\"\",COUNTIF(AE228:AE330,G222))","v":""},{"$f":"IF(AL227=\"\",\"\",COUNTIF(AF228:AG330,G222))","v":""},{"$f":"IF(AL227=\"\",\"\",COUNTIF(AH228:AH330,G222))","v":""},{"$f":"IF(AL227=\"\",\"\",J222-L222)","v":""},{"$f":"IF(AL227=\"\",\"\",SUMIF(Y228:Y330,G222,Z228:Z330)+SUMIF(AC228:AC330,G222,AB228:AB330))","v":""},{"$f":"IF(AL227=\"\",\"\",SUMIF(Y228:Y330,G222,AB228:AB330)+SUMIF(AC228:AC330,G222,Z228:Z330))","v":""},{"$f":"IF(AL227=\"\",\"\",N222-O222)","v":""},{"$f":"IF(AL227=\"\",\"\",SUMIF(Y228:Y330,G222,AI228:AI330)+SUMIF(AC228:AC330,G222,AJ228:AJ330))","v":""},{"$f":"IF(AL227=\"\",\"\",SUMIF(Y228:Y330,G222,AJ228:AJ330)+SUMIF(AC228:AC330,G222,AI228:AI330))","v":""},{"$f":"IF(AL227=\"\",\"\",Q222-R222)","v":""},null,null,null,null,null,null,null,null,null,null,null,null,null,null,null,null,null,null,{"$f":"IF(AL227=\"\",\"\",SMALL(C221:C226,2))","v":""},null,null,{"$f":"IF(AL227=\"\",\"\",INT(AL222/1000))","v":""},{"$f":"IF(AL227=\"\",IF(HidePlayerFormulas,\"\",\"(\"&G222&\")\"),VLOOKUP(AL222,C221:S226,5,FALSE))","v":""},{"$f":"VLOOKUP(AL222,C221:S226,6,FALSE)","v":""},{"$f":"VLOOKUP(AL222,C221:S226,7,FALSE)","v":""},{"$f":"VLOOKUP(AL222,C221:S226,8,FALSE)","v":""},{"$f":"VLOOKUP(AL222,C221:S226,9,FALSE)","v":""},{"$f":"VLOOKUP(AL222,C221:S226,10,FALSE)","v":""},{"$f":"VLOOKUP(AL222,C221:S226,11,FALSE)","v":""},{"$f":"VLOOKUP(AL222,C221:S226,12,FALSE)","v":""},{"$f":"VLOOKUP(AL222,C221:S226,13,FALSE)","v":""},{"$f":"VLOOKUP(AL222,C221:S226,14,FALSE)","v":""},{"$f":"VLOOKUP(AL222,C221:S226,15,FALSE)","v":""},{"$f":"VLOOKUP(AL222,C221:S226,16,FALSE)","v":""},{"$f":"VLOOKUP(AL222,C221:S226,17,FALSE)","v":""},{"$f":"IF(Z228=\"\",\"\",IF(AP222=Y228,Z228&\"(\"&SUM(Z229:Z232)&\")\",IF(AP222=AC228,AB228&\"(\"&SUM(AB229:AB232)&\")\",\"\")))","v":""},{"$f":"IF(Z235=\"\",\"\",IF(AP222=Y235,Z235&\"(\"&SUM(Z236:Z239)&\")\",IF(AP222=AC235,AB235&\"(\"&SUM(AB236:AB239)&\")\",\"\")))","v":""},{"$f":"IF(Z242=\"\",\"\",IF(AP222=Y242,Z242&\"(\"&SUM(Z243:Z246)&\")\",IF(AP222=AC242,AB242&\"(\"&SUM(AB243:AB246)&\")\",\"\")))","v":""},{"$f":"IF(Z249=\"\",\"\",IF(AP222=Y249,Z249&\"(\"&SUM(Z250:Z253)&\")\",IF(AP222=AC249,AB249&\"(\"&SUM(AB250:AB253)&\")\",\"\")))","v":""},{"$f":"IF(Z256=\"\",\"\",IF(AP222=Y256,Z256&\"(\"&SUM(Z257:Z260)&\")\",IF(AP222=AC256,AB256&\"(\"&SUM(AB257:AB260)&\")\",\"\")))","v":""},{"$f":"IF(Z263=\"\",\"\",IF(AP222=Y263,Z263&\"(\"&SUM(Z264:Z267)&\")\",IF(AP222=AC263,AB263&\"(\"&SUM(AB264:AB267)&\")\",\"\")))","v":""},{"$f":"IF(Z270=\"\",\"\",IF(AP222=Y270,Z270&\"(\"&SUM(Z271:Z274)&\")\",IF(AP222=AC270,AB270&\"(\"&SUM(AB271:AB274)&\")\",\"\")))","v":""},{"$f":"IF(Z277=\"\",\"\",IF(AP222=Y277,Z277&\"(\"&SUM(Z278:Z281)&\")\",IF(AP222=AC277,AB277&\"(\"&SUM(AB278:AB281)&\")\",\"\")))","v":""},{"$f":"IF(Z284=\"\",\"\",IF(AP222=Y284,Z284&\"(\"&SUM(Z285:Z288)&\")\",IF(AP222=AC284,AB284&\"(\"&SUM(AB285:AB288)&\")\",\"\")))","v":""},{"$f":"IF(Z291=\"\",\"\",IF(AP222=Y291,Z291&\"(\"&SUM(Z292:Z295)&\")\",IF(AP222=AC291,AB291&\"(\"&SUM(AB292:AB295)&\")\",\"\")))","v":""},{"$f":"IF(Z298=\"\",\"\",IF(AP222=Y298,Z298&\"(\"&SUM(Z299:Z302)&\")\",IF(AP222=AC298,AB298&\"(\"&SUM(AB299:AB302)&\")\",\"\")))","v":""},{"$f":"IF(Z305=\"\",\"\",IF(AP222=Y305,Z305&\"(\"&SUM(Z306:Z309)&\")\",IF(AP222=AC305,AB305&\"(\"&SUM(AB306:AB309)&\")\",\"\")))","v":""},{"$f":"IF(Z312=\"\",\"\",IF(AP222=Y312,Z312&\"(\"&SUM(Z313:Z316)&\")\",IF(AP222=AC312,AB312&\"(\"&SUM(AB313:AB316)&\")\",\"\")))","v":""},{"$f":"IF(Z319=\"\",\"\",IF(AP222=Y319,Z319&\"(\"&SUM(Z320:Z323)&\")\",IF(AP222=AC319,AB319&\"(\"&SUM(AB320:AB323)&\")\",\"\")))","v":""},{"$f":"IF(Z326=\"\",\"\",IF(AP222=Y326,Z326&\"(\"&SUM(Z327:Z330)&\")\",IF(AP222=AC326,AB326&\"(\"&SUM(AB327:AB330)&\")\",\"\")))","v":""},null,null,null,null,null,null,null,null,null,null,null,null,null,true,false,true]
[null,3,{"$f":"IF(AL227=\"\",\"\",RANK(F223,F221:F226)*1000+ROW())","v":""},"",{"$f":"IF(J223=\"\",\"\",Nb_Diff_Part(D223,D221:D226,G223,G221:G226,AK228:AK326)*CritClassEq_DiffPart+Nb_Goal_Part(D223,D221:D226,G223,G221:G226,Y228:AC326)*CritClassEq_IndsPart+Nb_Score_Part(D223,D221:D226,G223,G221:G226,Y228:AC326)*CritClassEq_WinsPart+Nb_GoalTeam_Part(D223,D221:D226,G223,G221:G226,Y228:AC326)*CritClassEq_GoalPart+Nb_ScoreTeam_Part(D223,D221:D226,G223,G221:G226,Y228:AC326)*CritClassEq_ScorePart)","v":""},"","Eq3",{"$f":"IF(AL227=\"\",\"\",(J223*Points_Victoire)+K223*Points_Null)","v":""},"",{"$f":"IF(AL227=\"\",\"\",COUNTIF(AE228:AE330,G223))","v":""},{"$f":"IF(AL227=\"\",\"\",COUNTIF(AF228:AG330,G223))","v":""},{"$f":"IF(AL227=\"\",\"\",COUNTIF(AH228:AH330,G223))","v":""},{"$f":"IF(AL227=\"\",\"\",J223-L223)","v":""},{"$f":"IF(AL227=\"\",\"\",SUMIF(Y228:Y330,G223,Z228:Z330)+SUMIF(AC228:AC330,G223,AB228:AB330))","v":""},{"$f":"IF(AL227=\"\",\"\",SUMIF(Y228:Y330,G223,AB228:AB330)+SUMIF(AC228:AC330,G223,Z228:Z330))","v":""},{"$f":"IF(AL227=\"\",\"\",N223-O223)","v":""},{"$f":"IF(AL227=\"\",\"\",SUMIF(Y228:Y330,G223,AI228:AI330)+SUMIF(AC228:AC330,G223,AJ228:AJ330))","v":""},{"$f":"IF(AL227=\"\",\"\",SUMIF(Y228:Y330,G223,AJ228:AJ330)+SUMIF(AC228:AC330,G223,AI228:AI330))","v":""},{"$f":"IF(AL227=\"\",\"\",Q223-R223)","v":""},null,null,null,null,null,null,null,null,null,null,null,null,null,null,null,null,null,null,{"$f":"IF(AL227=\"\",\"\",SMALL(C221:C226,3))","v":""},null,null,{"$f":"IF(AL227=\"\",\"\",INT(AL223/1000))","v":""},{"$f":"IF(AL227=\"\",IF(HidePlayerFormulas,\"\",\"(\"&G223&\")\"),VLOOKUP(AL223,C221:S226,5,FALSE))","v":""},{"$f":"VLOOKUP(AL223,C221:S226,6,FALSE)","v":""},{"$f":"VLOOKUP(AL223,C221:S226,7,FALSE)","v":""},{"$f":"VLOOKUP(AL223,C221:S226,8,FALSE)","v":""},{"$f":"VLOOKUP(AL223,C221:S226,9,FALSE)","v":""},{"$f":"VLOOKUP(AL223,C221:S226,10,FALSE)","v":""},{"$f":"VLOOKUP(AL223,C221:S226,11,FALSE)","v":""},{"$f":"VLOOKUP(AL223,C221:S226,12,FALSE)","v":""},{"$f":"VLOOKUP(AL223,C221:S226,13,FALSE)","v":""},{"$f":"VLOOKUP(AL223,C221:S226,14,FALSE)","v":""},{"$f":"VLOOKUP(AL223,C221:S226,15,FALSE)","v":""},{"$f":"VLOOKUP(AL223,C221:S226,16,FALSE)","v":""},{"$f":"VLOOKUP(AL223,C221:S226,17,FALSE)","v":""},{"$f":"IF(Z228=\"\",\"\",IF(AP223=Y228,Z228&\"(\"&SUM(Z229:Z232)&\")\",IF(AP223=AC228,AB228&\"(\"&SUM(AB229:AB232)&\")\",\"\")))","v":""},{"$f":"IF(Z235=\"\",\"\",IF(AP223=Y235,Z235&\"(\"&SUM(Z236:Z239)&\")\",IF(AP223=AC235,AB235&\"(\"&SUM(AB236:AB239)&\")\",\"\")))","v":""},{"$f":"IF(Z242=\"\",\"\",IF(AP223=Y242,Z242&\"(\"&SUM(Z243:Z246)&\")\",IF(AP223=AC242,AB242&\"(\"&SUM(AB243:AB246)&\")\",\"\")))","v":""},{"$f":"IF(Z249=\"\",\"\",IF(AP223=Y249,Z249&\"(\"&SUM(Z250:Z253)&\")\",IF(AP223=AC249,AB249&\"(\"&SUM(AB250:AB253)&\")\",\"\")))","v":""},{"$f":"IF(Z256=\"\",\"\",IF(AP223=Y256,Z256&\"(\"&SUM(Z257:Z260)&\")\",IF(AP223=AC256,AB256&\"(\"&SUM(AB257:AB260)&\")\",\"\")))","v":""},{"$f":"IF(Z263=\"\",\"\",IF(AP223=Y263,Z263&\"(\"&SUM(Z264:Z267)&\")\",IF(AP223=AC263,AB263&\"(\"&SUM(AB264:AB267)&\")\",\"\")))","v":""},{"$f":"IF(Z270=\"\",\"\",IF(AP223=Y270,Z270&\"(\"&SUM(Z271:Z274)&\")\",IF(AP223=AC270,AB270&\"(\"&SUM(AB271:AB274)&\")\",\"\")))","v":""},{"$f":"IF(Z277=\"\",\"\",IF(AP223=Y277,Z277&\"(\"&SUM(Z278:Z281)&\")\",IF(AP223=AC277,AB277&\"(\"&SUM(AB278:AB281)&\")\",\"\")))","v":""},{"$f":"IF(Z284=\"\",\"\",IF(AP223=Y284,Z284&\"(\"&SUM(Z285:Z288)&\")\",IF(AP223=AC284,AB284&\"(\"&SUM(AB285:AB288)&\")\",\"\")))","v":""},{"$f":"IF(Z291=\"\",\"\",IF(AP223=Y291,Z291&\"(\"&SUM(Z292:Z295)&\")\",IF(AP223=AC291,AB291&\"(\"&SUM(AB292:AB295)&\")\",\"\")))","v":""},{"$f":"IF(Z298=\"\",\"\",IF(AP223=Y298,Z298&\"(\"&SUM(Z299:Z302)&\")\",IF(AP223=AC298,AB298&\"(\"&SUM(AB299:AB302)&\")\",\"\")))","v":""},{"$f":"IF(Z305=\"\",\"\",IF(AP223=Y305,Z305&\"(\"&SUM(Z306:Z309)&\")\",IF(AP223=AC305,AB305&\"(\"&SUM(AB306:AB309)&\")\",\"\")))","v":""},{"$f":"IF(Z312=\"\",\"\",IF(AP223=Y312,Z312&\"(\"&SUM(Z313:Z316)&\")\",IF(AP223=AC312,AB312&\"(\"&SUM(AB313:AB316)&\")\",\"\")))","v":""},{"$f":"IF(Z319=\"\",\"\",IF(AP223=Y319,Z319&\"(\"&SUM(Z320:Z323)&\")\",IF(AP223=AC319,AB319&\"(\"&SUM(AB320:AB323)&\")\",\"\")))","v":""},{"$f":"IF(Z326=\"\",\"\",IF(AP223=Y326,Z326&\"(\"&SUM(Z327:Z330)&\")\",IF(AP223=AC326,AB326&\"(\"&SUM(AB327:AB330)&\")\",\"\")))","v":""},null,null,null,null,null,null,null,null,null,null,null,null,null,true,false,true]
[null,4,{"$f":"IF(AL227=\"\",\"\",RANK(F224,F221:F226)*1000+ROW())","v":""},"",{"$f":"IF(J224=\"\",\"\",Nb_Diff_Part(D224,D221:D226,G224,G221:G226,AK228:AK326)*CritClassEq_DiffPart+Nb_Goal_Part(D224,D221:D226,G224,G221:G226,Y228:AC326)*CritClassEq_IndsPart+Nb_Score_Part(D224,D221:D226,G224,G221:G226,Y228:AC326)*CritClassEq_WinsPart+Nb_GoalTeam_Part(D224,D221:D226,G224,G221:G226,Y228:AC326)*CritClassEq_GoalPart+Nb_ScoreTeam_Part(D224,D221:D226,G224,G221:G226,Y228:AC326)*CritClassEq_ScorePart)","v":""},"","Eq4",{"$f":"IF(AL227=\"\",\"\",(J224*Points_Victoire)+K224*Points_Null)","v":""},"",{"$f":"IF(AL227=\"\",\"\",COUNTIF(AE228:AE330,G224))","v":""},{"$f":"IF(AL227=\"\",\"\",COUNTIF(AF228:AG330,G224))","v":""},{"$f":"IF(AL227=\"\",\"\",COUNTIF(AH228:AH330,G224))","v":""},{"$f":"IF(AL227=\"\",\"\",J224-L224)","v":""},{"$f":"IF(AL227=\"\",\"\",SUMIF(Y228:Y330,G224,Z228:Z330)+SUMIF(AC228:AC330,G224,AB228:AB330))","v":""},{"$f":"IF(AL227=\"\",\"\",SUMIF(Y228:Y330,G224,AB228:AB330)+SUMIF(AC228:AC330,G224,Z228:Z330))","v":""},{"$f":"IF(AL227=\"\",\"\",N224-O224)","v":""},{"$f":"IF(AL227=\"\",\"\",SUMIF(Y228:Y330,G224,AI228:AI330)+SUMIF(AC228:AC330,G224,AJ228:AJ330))","v":""},{"$f":"IF(AL227=\"\",\"\",SUMIF(Y228:Y330,G224,AJ228:AJ330)+SUMIF(AC228:AC330,G224,AI228:AI330))","v":""},{"$f":"IF(AL227=\"\",\"\",Q224-R224)","v":""},null,null,null,null,null,null,null,null,null,null,null,null,null,null,null,null,null,null,{"$f":"IF(AL227=\"\",\"\",SMALL(C221:C226,4))","v":""},null,null,{"$f":"IF(AL227=\"\",\"\",INT(AL224/1000))","v":""},{"$f":"IF(AL227=\"\",IF(HidePlayerFormulas,\"\",\"(\"&G224&\")\"),VLOOKUP(AL224,C221:S226,5,FALSE))","v":""},{"$f":"VLOOKUP(AL224,C221:S226,6,FALSE)","v":""},{"$f":"VLOOKUP(AL224,C221:S226,7,FALSE)","v":""},{"$f":"VLOOKUP(AL224,C221:S226,8,FALSE)","v":""},{"$f":"VLOOKUP(AL224,C221:S226,9,FALSE)","v":""},{"$f":"VLOOKUP(AL224,C221:S226,10,FALSE)","v":""},{"$f":"VLOOKUP(AL224,C221:S226,11,FALSE)","v":""},{"$f":"VLOOKUP(AL224,C221:S226,12,FALSE)","v":""},{"$f":"VLOOKUP(AL224,C221:S226,13,FALSE)","v":""},{"$f":"VLOOKUP(AL224,C221:S226,14,FALSE)","v":""},{"$f":"VLOOKUP(AL224,C221:S226,15,FALSE)","v":""},{"$f":"VLOOKUP(AL224,C221:S226,16,FALSE)","v":""},{"$f":"VLOOKUP(AL224,C221:S226,17,FALSE)","v":""},{"$f":"IF(Z228=\"\",\"\",IF(AP224=Y228,Z228&\"(\"&SUM(Z229:Z232)&\")\",IF(AP224=AC228,AB228&\"(\"&SUM(AB229:AB232)&\")\",\"\")))","v":""},{"$f":"IF(Z235=\"\",\"\",IF(AP224=Y235,Z235&\"(\"&SUM(Z236:Z239)&\")\",IF(AP224=AC235,AB235&\"(\"&SUM(AB236:AB239)&\")\",\"\")))","v":""},{"$f":"IF(Z242=\"\",\"\",IF(AP224=Y242,Z242&\"(\"&SUM(Z243:Z246)&\")\",IF(AP224=AC242,AB242&\"(\"&SUM(AB243:AB246)&\")\",\"\")))","v":""},{"$f":"IF(Z249=\"\",\"\",IF(AP224=Y249,Z249&\"(\"&SUM(Z250:Z253)&\")\",IF(AP224=AC249,AB249&\"(\"&SUM(AB250:AB253)&\")\",\"\")))","v":""},{"$f":"IF(Z256=\"\",\"\",IF(AP224=Y256,Z256&\"(\"&SUM(Z257:Z260)&\")\",IF(AP224=AC256,AB256&\"(\"&SUM(AB257:AB260)&\")\",\"\")))","v":""},{"$f":"IF(Z263=\"\",\"\",IF(AP224=Y263,Z263&\"(\"&SUM(Z264:Z267)&\")\",IF(AP224=AC263,AB263&\"(\"&SUM(AB264:AB267)&\")\",\"\")))","v":""},{"$f":"IF(Z270=\"\",\"\",IF(AP224=Y270,Z270&\"(\"&SUM(Z271:Z274)&\")\",IF(AP224=AC270,AB270&\"(\"&SUM(AB271:AB274)&\")\",\"\")))","v":""},{"$f":"IF(Z277=\"\",\"\",IF(AP224=Y277,Z277&\"(\"&SUM(Z278:Z281)&\")\",IF(AP224=AC277,AB277&\"(\"&SUM(AB278:AB281)&\")\",\"\")))","v":""},{"$f":"IF(Z284=\"\",\"\",IF(AP224=Y284,Z284&\"(\"&SUM(Z285:Z288)&\")\",IF(AP224=AC284,AB284&\"(\"&SUM(AB285:AB288)&\")\",\"\")))","v":""},{"$f":"IF(Z291=\"\",\"\",IF(AP224=Y291,Z291&\"(\"&SUM(Z292:Z295)&\")\",IF(AP224=AC291,AB291&\"(\"&SUM(AB292:AB295)&\")\",\"\")))","v":""},{"$f":"IF(Z298=\"\",\"\",IF(AP224=Y298,Z298&\"(\"&SUM(Z299:Z302)&\")\",IF(AP224=AC298,AB298&\"(\"&SUM(AB299:AB302)&\")\",\"\")))","v":""},{"$f":"IF(Z305=\"\",\"\",IF(AP224=Y305,Z305&\"(\"&SUM(Z306:Z309)&\")\",IF(AP224=AC305,AB305&\"(\"&SUM(AB306:AB309)&\")\",\"\")))","v":""},{"$f":"IF(Z312=\"\",\"\",IF(AP224=Y312,Z312&\"(\"&SUM(Z313:Z316)&\")\",IF(AP224=AC312,AB312&\"(\"&SUM(AB313:AB316)&\")\",\"\")))","v":""},{"$f":"IF(Z319=\"\",\"\",IF(AP224=Y319,Z319&\"(\"&SUM(Z320:Z323)&\")\",IF(AP224=AC319,AB319&\"(\"&SUM(AB320:AB323)&\")\",\"\")))","v":""},{"$f":"IF(Z326=\"\",\"\",IF(AP224=Y326,Z326&\"(\"&SUM(Z327:Z330)&\")\",IF(AP224=AC326,AB326&\"(\"&SUM(AB327:AB330)&\")\",\"\")))","v":""},null,null,null,null,null,null,null,null,null,null,null,null,null,true,false,true]
[null,5,{"$f":"IF(AL227=\"\",\"\",RANK(F225,F221:F226)*1000+ROW())","v":""},"",{"$f":"IF(J225=\"\",\"\",Nb_Diff_Part(D225,D221:D226,G225,G221:G226,AK228:AK326)*CritClassEq_DiffPart+Nb_Goal_Part(D225,D221:D226,G225,G221:G226,Y228:AC326)*CritClassEq_IndsPart+Nb_Score_Part(D225,D221:D226,G225,G221:G226,Y228:AC326)*CritClassEq_WinsPart+Nb_GoalTeam_Part(D225,D221:D226,G225,G221:G226,Y228:AC326)*CritClassEq_GoalPart+Nb_ScoreTeam_Part(D225,D221:D226,G225,G221:G226,Y228:AC326)*CritClassEq_ScorePart)","v":""},"","Eq5",{"$f":"IF(AL227=\"\",\"\",(J225*Points_Victoire)+K225*Points_Null)","v":""},"",{"$f":"IF(AL227=\"\",\"\",COUNTIF(AE228:AE330,G225))","v":""},{"$f":"IF(AL227=\"\",\"\",COUNTIF(AF228:AG330,G225))","v":""},{"$f":"IF(AL227=\"\",\"\",COUNTIF(AH228:AH330,G225))","v":""},{"$f":"IF(AL227=\"\",\"\",J225-L225)","v":""},{"$f":"IF(AL227=\"\",\"\",SUMIF(Y228:Y330,G225,Z228:Z330)+SUMIF(AC228:AC330,G225,AB228:AB330))","v":""},{"$f":"IF(AL227=\"\",\"\",SUMIF(Y228:Y330,G225,AB228:AB330)+SUMIF(AC228:AC330,G225,Z228:Z330))","v":""},{"$f":"IF(AL227=\"\",\"\",N225-O225)","v":""},{"$f":"IF(AL227=\"\",\"\",SUMIF(Y228:Y330,G225,AI228:AI330)+SUMIF(AC228:AC330,G225,AJ228:AJ330))","v":""},{"$f":"IF(AL227=\"\",\"\",SUMIF(Y228:Y330,G225,AJ228:AJ330)+SUMIF(AC228:AC330,G225,AI228:AI330))","v":""},{"$f":"IF(AL227=\"\",\"\",Q225-R225)","v":""},null,null,null,null,null,null,null,null,null,null,null,null,null,null,null,null,null,null,{"$f":"IF(AL227=\"\",\"\",SMALL(C221:C226,5))","v":""},null,null,{"$f":"IF(AL227=\"\",\"\",INT(AL225/1000))","v":""},{"$f":"IF(AL227=\"\",IF(HidePlayerFormulas,\"\",\"(\"&G225&\")\"),VLOOKUP(AL225,C221:S226,5,FALSE))","v":""},{"$f":"VLOOKUP(AL225,C221:S226,6,FALSE)","v":""},{"$f":"VLOOKUP(AL225,C221:S226,7,FALSE)","v":""},{"$f":"VLOOKUP(AL225,C221:S226,8,FALSE)","v":""},{"$f":"VLOOKUP(AL225,C221:S226,9,FALSE)","v":""},{"$f":"VLOOKUP(AL225,C221:S226,10,FALSE)","v":""},{"$f":"VLOOKUP(AL225,C221:S226,11,FALSE)","v":""},{"$f":"VLOOKUP(AL225,C221:S226,12,FALSE)","v":""},{"$f":"VLOOKUP(AL225,C221:S226,13,FALSE)","v":""},{"$f":"VLOOKUP(AL225,C221:S226,14,FALSE)","v":""},{"$f":"VLOOKUP(AL225,C221:S226,15,FALSE)","v":""},{"$f":"VLOOKUP(AL225,C221:S226,16,FALSE)","v":""},{"$f":"VLOOKUP(AL225,C221:S226,17,FALSE)","v":""},{"$f":"IF(Z228=\"\",\"\",IF(AP225=Y228,Z228&\"(\"&SUM(Z229:Z232)&\")\",IF(AP225=AC228,AB228&\"(\"&SUM(AB229:AB232)&\")\",\"\")))","v":""},{"$f":"IF(Z235=\"\",\"\",IF(AP225=Y235,Z235&\"(\"&SUM(Z236:Z239)&\")\",IF(AP225=AC235,AB235&\"(\"&SUM(AB236:AB239)&\")\",\"\")))","v":""},{"$f":"IF(Z242=\"\",\"\",IF(AP225=Y242,Z242&\"(\"&SUM(Z243:Z246)&\")\",IF(AP225=AC242,AB242&\"(\"&SUM(AB243:AB246)&\")\",\"\")))","v":""},{"$f":"IF(Z249=\"\",\"\",IF(AP225=Y249,Z249&\"(\"&SUM(Z250:Z253)&\")\",IF(AP225=AC249,AB249&\"(\"&SUM(AB250:AB253)&\")\",\"\")))","v":""},{"$f":"IF(Z256=\"\",\"\",IF(AP225=Y256,Z256&\"(\"&SUM(Z257:Z260)&\")\",IF(AP225=AC256,AB256&\"(\"&SUM(AB257:AB260)&\")\",\"\")))","v":""},{"$f":"IF(Z263=\"\",\"\",IF(AP225=Y263,Z263&\"(\"&SUM(Z264:Z267)&\")\",IF(AP225=AC263,AB263&\"(\"&SUM(AB264:AB267)&\")\",\"\")))","v":""},{"$f":"IF(Z270=\"\",\"\",IF(AP225=Y270,Z270&\"(\"&SUM(Z271:Z274)&\")\",IF(AP225=AC270,AB270&\"(\"&SUM(AB271:AB274)&\")\",\"\")))","v":""},{"$f":"IF(Z277=\"\",\"\",IF(AP225=Y277,Z277&\"(\"&SUM(Z278:Z281)&\")\",IF(AP225=AC277,AB277&\"(\"&SUM(AB278:AB281)&\")\",\"\")))","v":""},{"$f":"IF(Z284=\"\",\"\",IF(AP225=Y284,Z284&\"(\"&SUM(Z285:Z288)&\")\",IF(AP225=AC284,AB284&\"(\"&SUM(AB285:AB288)&\")\",\"\")))","v":""},{"$f":"IF(Z291=\"\",\"\",IF(AP225=Y291,Z291&\"(\"&SUM(Z292:Z295)&\")\",IF(AP225=AC291,AB291&\"(\"&SUM(AB292:AB295)&\")\",\"\")))","v":""},{"$f":"IF(Z298=\"\",\"\",IF(AP225=Y298,Z298&\"(\"&SUM(Z299:Z302)&\")\",IF(AP225=AC298,AB298&\"(\"&SUM(AB299:AB302)&\")\",\"\")))","v":""},{"$f":"IF(Z305=\"\",\"\",IF(AP225=Y305,Z305&\"(\"&SUM(Z306:Z309)&\")\",IF(AP225=AC305,AB305&\"(\"&SUM(AB306:AB309)&\")\",\"\")))","v":""},{"$f":"IF(Z312=\"\",\"\",IF(AP225=Y312,Z312&\"(\"&SUM(Z313:Z316)&\")\",IF(AP225=AC312,AB312&\"(\"&SUM(AB313:AB316)&\")\",\"\")))","v":""},{"$f":"IF(Z319=\"\",\"\",IF(AP225=Y319,Z319&\"(\"&SUM(Z320:Z323)&\")\",IF(AP225=AC319,AB319&\"(\"&SUM(AB320:AB323)&\")\",\"\")))","v":""},{"$f":"IF(Z326=\"\",\"\",IF(AP225=Y326,Z326&\"(\"&SUM(Z327:Z330)&\")\",IF(AP225=AC326,AB326&\"(\"&SUM(AB327:AB330)&\")\",\"\")))","v":""},null,null,null,null,null,null,null,null,null,null,null,null,null,true,false,true]
[null,6,{"$f":"IF(AL227=\"\",\"\",RANK(F226,F221:F226)*1000+ROW())","v":""},"",{"$f":"IF(J226=\"\",\"\",Nb_Diff_Part(D226,D221:D226,G226,G221:G226,AK228:AK326)*CritClassEq_DiffPart+Nb_Goal_Part(D226,D221:D226,G226,G221:G226,Y228:AC326)*CritClassEq_IndsPart+Nb_Score_Part(D226,D221:D226,G226,G221:G226,Y228:AC326)*CritClassEq_WinsPart+Nb_GoalTeam_Part(D226,D221:D226,G226,G221:G226,Y228:AC326)*CritClassEq_GoalPart+Nb_ScoreTeam_Part(D226,D221:D226,G226,G221:G226,Y228:AC326)*CritClassEq_ScorePart)","v":""},"","Eq6",{"$f":"IF(AL227=\"\",\"\",(J226*Points_Victoire)+K226*Points_Null)","v":""},"",{"$f":"IF(AL227=\"\",\"\",COUNTIF(AE228:AE330,G226))","v":""},{"$f":"IF(AL227=\"\",\"\",COUNTIF(AF228:AG330,G226))","v":""},{"$f":"IF(AL227=\"\",\"\",COUNTIF(AH228:AH330,G226))","v":""},{"$f":"IF(AL227=\"\",\"\",J226-L226)","v":""},{"$f":"IF(AL227=\"\",\"\",SUMIF(Y228:Y330,G226,Z228:Z330)+SUMIF(AC228:AC330,G226,AB228:AB330))","v":""},{"$f":"IF(AL227=\"\",\"\",SUMIF(Y228:Y330,G226,AB228:AB330)+SUMIF(AC228:AC330,G226,Z228:Z330))","v":""},{"$f":"IF(AL227=\"\",\"\",N226-O226)","v":""},{"$f":"IF(AL227=\"\",\"\",SUMIF(Y228:Y330,G226,AI228:AI330)+SUMIF(AC228:AC330,G226,AJ228:AJ330))","v":""},{"$f":"IF(AL227=\"\",\"\",SUMIF(Y228:Y330,G226,AJ228:AJ330)+SUMIF(AC228:AC330,G226,AI228:AI330))","v":""},{"$f":"IF(AL227=\"\",\"\",Q226-R226)","v":""},null,null,null,null,null,null,null,null,null,null,null,null,null,null,null,null,null,null,{"$f":"IF(AL227=\"\",\"\",SMALL(C221:C226,6))","v":""},null,null,{"$f":"IF(AL227=\"\",\"\",INT(AL226/1000))","v":""},{"$f":"IF(AL227=\"\",IF(HidePlayerFormulas,\"\",\"(\"&G226&\")\"),VLOOKUP(AL226,C221:S226,5,FALSE))","v":""},{"$f":"VLOOKUP(AL226,C221:S226,6,FALSE)","v":""},{"$f":"VLOOKUP(AL226,C221:S226,7,FALSE)","v":""},{"$f":"VLOOKUP(AL226,C221:S226,8,FALSE)","v":""},{"$f":"VLOOKUP(AL226,C221:S226,9,FALSE)","v":""},{"$f":"VLOOKUP(AL226,C221:S226,10,FALSE)","v":""},{"$f":"VLOOKUP(AL226,C221:S226,11,FALSE)","v":""},{"$f":"VLOOKUP(AL226,C221:S226,12,FALSE)","v":""},{"$f":"VLOOKUP(AL226,C221:S226,13,FALSE)","v":""},{"$f":"VLOOKUP(AL226,C221:S226,14,FALSE)","v":""},{"$f":"VLOOKUP(AL226,C221:S226,15,FALSE)","v":""},{"$f":"VLOOKUP(AL226,C221:S226,16,FALSE)","v":""},{"$f":"VLOOKUP(AL226,C221:S226,17,FALSE)","v":""},{"$f":"IF(Z228=\"\",\"\",IF(AP226=Y228,Z228&\"(\"&SUM(Z229:Z232)&\")\",IF(AP226=AC228,AB228&\"(\"&SUM(AB229:AB232)&\")\",\"\")))","v":""},{"$f":"IF(Z235=\"\",\"\",IF(AP226=Y235,Z235&\"(\"&SUM(Z236:Z239)&\")\",IF(AP226=AC235,AB235&\"(\"&SUM(AB236:AB239)&\")\",\"\")))","v":""},{"$f":"IF(Z242=\"\",\"\",IF(AP226=Y242,Z242&\"(\"&SUM(Z243:Z246)&\")\",IF(AP226=AC242,AB242&\"(\"&SUM(AB243:AB246)&\")\",\"\")))","v":""},{"$f":"IF(Z249=\"\",\"\",IF(AP226=Y249,Z249&\"(\"&SUM(Z250:Z253)&\")\",IF(AP226=AC249,AB249&\"(\"&SUM(AB250:AB253)&\")\",\"\")))","v":""},{"$f":"IF(Z256=\"\",\"\",IF(AP226=Y256,Z256&\"(\"&SUM(Z257:Z260)&\")\",IF(AP226=AC256,AB256&\"(\"&SUM(AB257:AB260)&\")\",\"\")))","v":""},{"$f":"IF(Z263=\"\",\"\",IF(AP226=Y263,Z263&\"(\"&SUM(Z264:Z267)&\")\",IF(AP226=AC263,AB263&\"(\"&SUM(AB264:AB267)&\")\",\"\")))","v":""},{"$f":"IF(Z270=\"\",\"\",IF(AP226=Y270,Z270&\"(\"&SUM(Z271:Z274)&\")\",IF(AP226=AC270,AB270&\"(\"&SUM(AB271:AB274)&\")\",\"\")))","v":""},{"$f":"IF(Z277=\"\",\"\",IF(AP226=Y277,Z277&\"(\"&SUM(Z278:Z281)&\")\",IF(AP226=AC277,AB277&\"(\"&SUM(AB278:AB281)&\")\",\"\")))","v":""},{"$f":"IF(Z284=\"\",\"\",IF(AP226=Y284,Z284&\"(\"&SUM(Z285:Z288)&\")\",IF(AP226=AC284,AB284&\"(\"&SUM(AB285:AB288)&\")\",\"\")))","v":""},{"$f":"IF(Z291=\"\",\"\",IF(AP226=Y291,Z291&\"(\"&SUM(Z292:Z295)&\")\",IF(AP226=AC291,AB291&\"(\"&SUM(AB292:AB295)&\")\",\"\")))","v":""},{"$f":"IF(Z298=\"\",\"\",IF(AP226=Y298,Z298&\"(\"&SUM(Z299:Z302)&\")\",IF(AP226=AC298,AB298&\"(\"&SUM(AB299:AB302)&\")\",\"\")))","v":""},{"$f":"IF(Z305=\"\",\"\",IF(AP226=Y305,Z305&\"(\"&SUM(Z306:Z309)&\")\",IF(AP226=AC305,AB305&\"(\"&SUM(AB306:AB309)&\")\",\"\")))","v":""},{"$f":"IF(Z312=\"\",\"\",IF(AP226=Y312,Z312&\"(\"&SUM(Z313:Z316)&\")\",IF(AP226=AC312,AB312&\"(\"&SUM(AB313:AB316)&\")\",\"\")))","v":""},{"$f":"IF(Z319=\"\",\"\",IF(AP226=Y319,Z319&\"(\"&SUM(Z320:Z323)&\")\",IF(AP226=AC319,AB319&\"(\"&SUM(AB320:AB323)&\")\",\"\")))","v":""},{"$f":"IF(Z326=\"\",\"\",IF(AP226=Y326,Z326&\"(\"&SUM(Z327:Z330)&\")\",IF(AP226=AC326,AB326&\"(\"&SUM(AB327:AB330)&\")\",\"\")))","v":""},null,null,null,null,null,null,null,null,null,null,null,null,null,true,false,true]
[null,null,null,null,null,null,null,null,null,null,null,null,null,null,null,null,null,null,null,null,null,{"$f":"N_Heure","v":"Time"},{"$f":"N_Table","v":"Table"},{"$f":"N_Arbitre","v":"Referee"},{"$f":"N_Matches","v":"Matches"},null,null,null,null,null,null,null,null,null,null,null,null,{"$f":"IF(COUNTA(Z228:Z330)>15,\"OK\",\"\")","v":""}]
[null,null,null,null,null,null,null,null,null,null,null,null,null,null,null,null,null,null,null,null,"#G1",null,null,null,{"$f":"IF(G221=\"\",\"\",G221)","v":"Eq1"},{"$f":"IF(OR(ISNUMBER(Z229),ISNUMBER(Z230),ISNUMBER(Z231),ISNUMBER(Z232)),4-COUNTBLANK(AI229:AI232),\"\")","v":""},"-",{"$f":"IF(OR(ISNUMBER(Z229),ISNUMBER(Z230),ISNUMBER(Z231),ISNUMBER(Z232)),4-COUNTBLANK(AJ229:AJ232),\"\")","v":""},{"$f":"IF(G225=\"\",\"\",G225)","v":"Eq5"},null,{"$f":"IF(Z228=\"\",\"\",IF(Z228>AB228,Y228,IF(Z228=AB228,IF(NoDrawWithWithdraw,IF(AL228=Y228,AC228,IF(AL228=AC228,Y228,\"\")),\"\"),AC228)))","v":""},{"$f":"IF(Z228=\"\",\"\",IF(Z228=AB228,IF(NoDrawWithWithdraw,IF(AL228=Y228,\"\",IF(AL228=AC228,\"\",Y228)),Y228),\"\"))","v":""},{"$f":"IF(Z228=\"\",\"\",IF(Z228=AB228,IF(NoDrawWithWithdraw,IF(AL228=Y228,\"\",IF(AL228=AC228,\"\",AC228)),AC228),\"\"))","v":""},{"$f":"IF(Z228=\"\",\"\",IF(Z228<AB228,Y228,IF(Z228=AB228,IF(NoDrawWithWithdraw,IF(AL228=Y228,Y228,IF(AL228=AC228,AC228,\"\")),\"\"),AC228)))","v":""},{"$f":"IF(Z228=\"\",\"\",SUM(Z229:Z232))","v":""},{"$f":"IF(Z228=\"\",\"\",SUM(AB229:AB232))","v":""},{"$f":"CONCATENATE(AE228,AH228)","v":""},{"$f":"IF(COUNTIF(Y229:Y232,WithdrawLabel)>COUNTIF(AC229:AC232,WithdrawLabel),Y228,IF(COUNTIF(AC229:AC232,WithdrawLabel)>COUNTIF(Y229:Y232,WithdrawLabel),AC228,\"\"))","v":""}]
[null,null,null,null,null,null,null,null,null,null,null,null,null,null,null,null,null,null,null,null,null,null,null,null,null,null,"-",null,null,null,{"$f":"IF(Z229=\"\",\"\",IF(Z229>AB229,Y229,IF(Z229=AB229,\"\",AC229)))","v":""},{"$f":"IF(Z229=\"\",\"\",IF(Z229=AB229,Y229,\"\"))","v":""},{"$f":"IF(Z229=\"\",\"\",IF(Z229=AB229,AC229,\"\"))","v":""},{"$f":"IF(Z229=\"\",\"\",IF(Z229<AB229,Y229,IF(Z229=AB229,\"\",AC229)))","v":""},{"$f":"IF(Z229=\"\",\"\",IF(Z229>AB229,Y228,\"\"))","v":""},{"$f":"IF(Z229=\"\",\"\",IF(Z229<AB229,AC228,\"\"))","v":""},{"$f":"CONCATENATE(AE229,AH229)","v":""}]
[null,null,null,null,null,null,null,null,null,null,null,null,null,null,null,null,null,null,null,null,null,null,null,null,null,null,"-",null,null,null,{"$f":"IF(Z230=\"\",\"\",IF(Z230>AB230,Y230,IF(Z230=AB230,\"\",AC230)))","v":""},{"$f":"IF(Z230=\"\",\"\",IF(Z230=AB230,Y230,\"\"))","v":""},{"$f":"IF(Z230=\"\",\"\",IF(Z230=AB230,AC230,\"\"))","v":""},{"$f":"IF(Z230=\"\",\"\",IF(Z230<AB230,Y230,IF(Z230=AB230,\"\",AC230)))","v":""},{"$f":"IF(Z230=\"\",\"\",IF(Z230>AB230,Y228,\"\"))","v":""},{"$f":"IF(Z230=\"\",\"\",IF(Z230<AB230,AC228,\"\"))","v":""},{"$f":"CONCATENATE(AE230,AH230)","v":""}]
[null,null,null,null,null,null,null,null,null,null,null,null,null,null,null,null,null,null,null,null,null,null,null,null,null,null,"-",null,null,null,{"$f":"IF(Z231=\"\",\"\",IF(Z231>AB231,Y231,IF(Z231=AB231,\"\",AC231)))","v":""},{"$f":"IF(Z231=\"\",\"\",IF(Z231=AB231,Y231,\"\"))","v":""},{"$f":"IF(Z231=\"\",\"\",IF(Z231=AB231,AC231,\"\"))","v":""},{"$f":"IF(Z231=\"\",\"\",IF(Z231<AB231,Y231,IF(Z231=AB231,\"\",AC231)))","v":""},{"$f":"IF(Z231=\"\",\"\",IF(Z231>AB231,Y228,\"\"))","v":""},{"$f":"IF(Z231=\"\",\"\",IF(Z231<AB231,AC228,\"\"))","v":""},{"$f":"CONCATENATE(AE231,AH231)","v":""}]
[null,null,null,null,null,null,null,null,null,null,null,null,null,null,null,null,null,null,null,null,null,null,null,null,null,null,"-",null,null,null,{"$f":"IF(Z232=\"\",\"\",IF(Z232>AB232,Y232,IF(Z232=AB232,\"\",AC232)))","v":""},{"$f":"IF(Z232=\"\",\"\",IF(Z232=AB232,Y232,\"\"))","v":""},{"$f":"IF(Z232=\"\",\"\",IF(Z232=AB232,AC232,\"\"))","v":""},{"$f":"IF(Z232=\"\",\"\",IF(Z232<AB232,Y232,IF(Z232=AB232,\"\",AC232)))","v":""},{"$f":"IF(Z232=\"\",\"\",IF(Z232>AB232,Y228,\"\"))","v":""},{"$f":"IF(Z232=\"\",\"\",IF(Z232<AB232,AC228,\"\"))","v":""},{"$f":"CONCATENATE(AE232,AH232)","v":""}]
[null,null,null,null,null,null,null,null,null,null,null,null,null,null,null,null,null,null,null,null,null,null,null,{"$f":"N_Substitute","v":"Substitute"}]
[null,null,null,null,null,null,null,null,null,null,null,null,null,null,null,null,null,null,null,null,null,null,null,{"$f":"N_Substitute","v":"Substitute"}]
[null,null,null,null,null,null,null,null,null,null,null,null,null,null,null,null,null,null,null,null,"#G1",null,null,null,{"$f":"IF(G222=\"\",\"\",G222)","v":"Eq2"},{"$f":"IF(OR(ISNUMBER(Z236),ISNUMBER(Z237),ISNUMBER(Z238),ISNUMBER(Z239)),4-COUNTBLANK(AI236:AI239),\"\")","v":""},"-",{"$f":"IF(OR(ISNUMBER(Z236),ISNUMBER(Z237),ISNUMBER(Z238),ISNUMBER(Z239)),4-COUNTBLANK(AJ236:AJ239),\"\")","v":""},{"$f":"IF(G223=\"\",\"\",G223)","v":"Eq3"},null,{"$f":"IF(Z235=\"\",\"\",IF(Z235>AB235,Y235,IF(Z235=AB235,IF(NoDrawWithWithdraw,IF(AL235=Y235,AC235,IF(AL235=AC235,Y235,\"\")),\"\"),AC235)))","v":""},{"$f":"IF(Z235=\"\",\"\",IF(Z235=AB235,IF(NoDrawWithWithdraw,IF(AL235=Y235,\"\",IF(AL235=AC235,\"\",Y235)),Y235),\"\"))","v":""},{"$f":"IF(Z235=\"\",\"\",IF(Z235=AB235,IF(NoDrawWithWithdraw,IF(AL235=Y235,\"\",IF(AL235=AC235,\"\",AC235)),AC235),\"\"))","v":""},{"$f":"IF(Z235=\"\",\"\",IF(Z235<AB235,Y235,IF(Z235=AB235,IF(NoDrawWithWithdraw,IF(AL235=Y235,Y235,IF(AL235=AC235,AC235,\"\")),\"\"),AC235)))","v":""},{"$f":"IF(Z235=\"\",\"\",SUM(Z236:Z239))","v":""},{"$f":"IF(Z235=\"\",\"\",SUM(AB236:AB239))","v":""},{"$f":"CONCATENATE(AE235,AH235)","v":""},{"$f":"IF(COUNTIF(Y236:Y239,WithdrawLabel)>COUNTIF(AC236:AC239,WithdrawLabel),Y235,IF(COUNTIF(AC236:AC239,WithdrawLabel)>COUNTIF(Y236:Y239,WithdrawLabel),AC235,\"\"))","v":""}]
[null,null,null,null,null,null,null,null,null,null,null,null,null,null,null,null,null,null,null,null,null,null,null,null,null,null,"-",null,null,null,{"$f":"IF(Z236=\"\",\"\",IF(Z236>AB236,Y236,IF(Z236=AB236,\"\",AC236)))","v":""},{"$f":"IF(Z236=\"\",\"\",IF(Z236=AB236,Y236,\"\"))","v":""},{"$f":"IF(Z236=\"\",\"\",IF(Z236=AB236,AC236,\"\"))","v":""},{"$f":"IF(Z236=\"\",\"\",IF(Z236<AB236,Y236,IF(Z236=AB236,\"\",AC236)))","v":""},{"$f":"IF(Z236=\"\",\"\",IF(Z236>AB236,Y235,\"\"))","v":""},{"$f":"IF(Z236=\"\",\"\",IF(Z236<AB236,AC235,\"\"))","v":""},{"$f":"CONCATENATE(AE236,AH236)","v":""}]
[null,null,null,null,null,null,null,null,null,null,null,null,null,null,null,null,null,null,null,null,null,null,null,null,null,null,"-",null,null,null,{"$f":"IF(Z237=\"\",\"\",IF(Z237>AB237,Y237,IF(Z237=AB237,\"\",AC237)))","v":""},{"$f":"IF(Z237=\"\",\"\",IF(Z237=AB237,Y237,\"\"))","v":""},{"$f":"IF(Z237=\"\",\"\",IF(Z237=AB237,AC237,\"\"))","v":""},{"$f":"IF(Z237=\"\",\"\",IF(Z237<AB237,Y237,IF(Z237=AB237,\"\",AC237)))","v":""},{"$f":"IF(Z237=\"\",\"\",IF(Z237>AB237,Y235,\"\"))","v":""},{"$f":"IF(Z237=\"\",\"\",IF(Z237<AB237,AC235,\"\"))","v":""},{"$f":"CONCATENATE(AE237,AH237)","v":""}]
[null,null,null,null,null,null,null,null,null,null,null,null,null,null,null,null,null,null,null,null,null,null,null,null,null,null,"-",null,null,null,{"$f":"IF(Z238=\"\",\"\",IF(Z238>AB238,Y238,IF(Z238=AB238,\"\",AC238)))","v":""},{"$f":"IF(Z238=\"\",\"\",IF(Z238=AB238,Y238,\"\"))","v":""},{"$f":"IF(Z238=\"\",\"\",IF(Z238=AB238,AC238,\"\"))","v":""},{"$f":"IF(Z238=\"\",\"\",IF(Z238<AB238,Y238,IF(Z238=AB238,\"\",AC238)))","v":""},{"$f":"IF(Z238=\"\",\"\",IF(Z238>AB238,Y235,\"\"))","v":""},{"$f":"IF(Z238=\"\",\"\",IF(Z238<AB238,AC235,\"\"))","v":""},{"$f":"CONCATENATE(AE238,AH238)","v":""}]
[null,null,null,null,null,null,null,null,null,null,null,null,null,null,null,null,null,null,null,null,null,null,null,null,null,null,"-",null,null,null,{"$f":"IF(Z239=\"\",\"\",IF(Z239>AB239,Y239,IF(Z239=AB239,\"\",AC239)))","v":""},{"$f":"IF(Z239=\"\",\"\",IF(Z239=AB239,Y239,\"\"))","v":""},{"$f":"IF(Z239=\"\",\"\",IF(Z239=AB239,AC239,\"\"))","v":""},{"$f":"IF(Z239=\"\",\"\",IF(Z239<AB239,Y239,IF(Z239=AB239,\"\",AC239)))","v":""},{"$f":"IF(Z239=\"\",\"\",IF(Z239>AB239,Y235,\"\"))","v":""},{"$f":"IF(Z239=\"\",\"\",IF(Z239<AB239,AC235,\"\"))","v":""},{"$f":"CONCATENATE(AE239,AH239)","v":""}]
[null,null,null,null,null,null,null,null,null,null,null,null,null,null,null,null,null,null,null,null,null,null,null,{"$f":"N_Substitute","v":"Substitute"}]
[null,null,null,null,null,null,null,null,null,null,null,null,null,null,null,null,null,null,null,null,null,null,null,{"$f":"N_Substitute","v":"Substitute"}]
[null,null,null,null,null,null,null,null,null,null,null,null,null,null,null,null,null,null,null,null,"#G1",null,null,null,{"$f":"IF(G224=\"\",\"\",G224)","v":"Eq4"},{"$f":"IF(OR(ISNUMBER(Z243),ISNUMBER(Z244),ISNUMBER(Z245),ISNUMBER(Z246)),4-COUNTBLANK(AI243:AI246),\"\")","v":""},"-",{"$f":"IF(OR(ISNUMBER(Z243),ISNUMBER(Z244),ISNUMBER(Z245),ISNUMBER(Z246)),4-COUNTBLANK(AJ243:AJ246),\"\")","v":""},{"$f":"IF(G226=\"\",\"\",G226)","v":"Eq6"},null,{"$f":"IF(Z242=\"\",\"\",IF(Z242>AB242,Y242,IF(Z242=AB242,IF(NoDrawWithWithdraw,IF(AL242=Y242,AC242,IF(AL242=AC242,Y242,\"\")),\"\"),AC242)))","v":""},{"$f":"IF(Z242=\"\",\"\",IF(Z242=AB242,IF(NoDrawWithWithdraw,IF(AL242=Y242,\"\",IF(AL242=AC242,\"\",Y242)),Y242),\"\"))","v":""},{"$f":"IF(Z242=\"\",\"\",IF(Z242=AB242,IF(NoDrawWithWithdraw,IF(AL242=Y242,\"\",IF(AL242=AC242,\"\",AC242)),AC242),\"\"))","v":""},{"$f":"IF(Z242=\"\",\"\",IF(Z242<AB242,Y242,IF(Z242=AB242,IF(NoDrawWithWithdraw,IF(AL242=Y242,Y242,IF(AL242=AC242,AC242,\"\")),\"\"),AC242)))","v":""},{"$f":"IF(Z242=\"\",\"\",SUM(Z243:Z246))","v":""},{"$f":"IF(Z242=\"\",\"\",SUM(AB243:AB246))","v":""},{"$f":"CONCATENATE(AE242,AH242)","v":""},{"$f":"IF(COUNTIF(Y243:Y246,WithdrawLabel)>COUNTIF(AC243:AC246,WithdrawLabel),Y242,IF(COUNTIF(AC243:AC246,WithdrawLabel)>COUNTIF(Y243:Y246,WithdrawLabel),AC242,\"\"))","v":""}]
[null,null,null,null,null,null,null,null,null,null,null,null,null,null,null,null,null,null,null,null,null,null,null,null,null,null,"-",null,null,null,{"$f":"IF(Z243=\"\",\"\",IF(Z243>AB243,Y243,IF(Z243=AB243,\"\",AC243)))","v":""},{"$f":"IF(Z243=\"\",\"\",IF(Z243=AB243,Y243,\"\"))","v":""},{"$f":"IF(Z243=\"\",\"\",IF(Z243=AB243,AC243,\"\"))","v":""},{"$f":"IF(Z243=\"\",\"\",IF(Z243<AB243,Y243,IF(Z243=AB243,\"\",AC243)))","v":""},{"$f":"IF(Z243=\"\",\"\",IF(Z243>AB243,Y242,\"\"))","v":""},{"$f":"IF(Z243=\"\",\"\",IF(Z243<AB243,AC242,\"\"))","v":""},{"$f":"CONCATENATE(AE243,AH243)","v":""}]
[null,null,null,null,null,null,null,null,null,null,null,null,null,null,null,null,null,null,null,null,null,null,null,null,null,null,"-",null,null,null,{"$f":"IF(Z244=\"\",\"\",IF(Z244>AB244,Y244,IF(Z244=AB244,\"\",AC244)))","v":""},{"$f":"IF(Z244=\"\",\"\",IF(Z244=AB244,Y244,\"\"))","v":""},{"$f":"IF(Z244=\"\",\"\",IF(Z244=AB244,AC244,\"\"))","v":""},{"$f":"IF(Z244=\"\",\"\",IF(Z244<AB244,Y244,IF(Z244=AB244,\"\",AC244)))","v":""},{"$f":"IF(Z244=\"\",\"\",IF(Z244>AB244,Y242,\"\"))","v":""},{"$f":"IF(Z244=\"\",\"\",IF(Z244<AB244,AC242,\"\"))","v":""},{"$f":"CONCATENATE(AE244,AH244)","v":""}]
[null,null,null,null,null,null,null,null,null,null,null,null,null,null,null,null,null,null,null,null,null,null,null,null,null,null,"-",null,null,null,{"$f":"IF(Z245=\"\",\"\",IF(Z245>AB245,Y245,IF(Z245=AB245,\"\",AC245)))","v":""},{"$f":"IF(Z245=\"\",\"\",IF(Z245=AB245,Y245,\"\"))","v":""},{"$f":"IF(Z245=\"\",\"\",IF(Z245=AB245,AC245,\"\"))","v":""},{"$f":"IF(Z245=\"\",\"\",IF(Z245<AB245,Y245,IF(Z245=AB245,\"\",AC245)))","v":""},{"$f":"IF(Z245=\"\",\"\",IF(Z245>AB245,Y242,\"\"))","v":""},{"$f":"IF(Z245=\"\",\"\",IF(Z245<AB245,AC242,\"\"))","v":""},{"$f":"CONCATENATE(AE245,AH245)","v":""}]
[null,null,null,null,null,null,null,null,null,null,null,null,null,null,null,null,null,null,null,null,null,null,null,null,null,null,"-",null,null,null,{"$f":"IF(Z246=\"\",\"\",IF(Z246>AB246,Y246,IF(Z246=AB246,\"\",AC246)))","v":""},{"$f":"IF(Z246=\"\",\"\",IF(Z246=AB246,Y246,\"\"))","v":""},{"$f":"IF(Z246=\"\",\"\",IF(Z246=AB246,AC246,\"\"))","v":""},{"$f":"IF(Z246=\"\",\"\",IF(Z246<AB246,Y246,IF(Z246=AB246,\"\",AC246)))","v":""},{"$f":"IF(Z246=\"\",\"\",IF(Z246>AB246,Y242,\"\"))","v":""},{"$f":"IF(Z246=\"\",\"\",IF(Z246<AB246,AC242,\"\"))","v":""},{"$f":"CONCATENATE(AE246,AH246)","v":""}]
[null,null,null,null,null,null,null,null,null,null,null,null,null,null,null,null,null,null,null,null,null,null,null,{"$f":"N_Substitute","v":"Substitute"}]
[null,null,null,null,null,null,null,null,null,null,null,null,null,null,null,null,null,null,null,null,null,null,null,{"$f":"N_Substitute","v":"Substitute"}]
[null,null,null,null,null,null,null,null,null,null,null,null,null,null,null,null,null,null,null,null,"#G2",null,null,null,{"$f":"IF(G222=\"\",\"\",G222)","v":"Eq2"},{"$f":"IF(OR(ISNUMBER(Z250),ISNUMBER(Z251),ISNUMBER(Z252),ISNUMBER(Z253)),4-COUNTBLANK(AI250:AI253),\"\")","v":""},"-",{"$f":"IF(OR(ISNUMBER(Z250),ISNUMBER(Z251),ISNUMBER(Z252),ISNUMBER(Z253)),4-COUNTBLANK(AJ250:AJ253),\"\")","v":""},{"$f":"IF(G224=\"\",\"\",G224)","v":"Eq4"},null,{"$f":"IF(Z249=\"\",\"\",IF(Z249>AB249,Y249,IF(Z249=AB249,IF(NoDrawWithWithdraw,IF(AL249=Y249,AC249,IF(AL249=AC249,Y249,\"\")),\"\"),AC249)))","v":""},{"$f":"IF(Z249=\"\",\"\",IF(Z249=AB249,IF(NoDrawWithWithdraw,IF(AL249=Y249,\"\",IF(AL249=AC249,\"\",Y249)),Y249),\"\"))","v":""},{"$f":"IF(Z249=\"\",\"\",IF(Z249=AB249,IF(NoDrawWithWithdraw,IF(AL249=Y249,\"\",IF(AL249=AC249,\"\",AC249)),AC249),\"\"))","v":""},{"$f":"IF(Z249=\"\",\"\",IF(Z249<AB249,Y249,IF(Z249=AB249,IF(NoDrawWithWithdraw,IF(AL249=Y249,Y249,IF(AL249=AC249,AC249,\"\")),\"\"),AC249)))","v":""},{"$f":"IF(Z249=\"\",\"\",SUM(Z250:Z253))","v":""},{"$f":"IF(Z249=\"\",\"\",SUM(AB250:AB253))","v":""},{"$f":"CONCATENATE(AE249,AH249)","v":""},{"$f":"IF(COUNTIF(Y250:Y253,WithdrawLabel)>COUNTIF(AC250:AC253,WithdrawLabel),Y249,IF(COUNTIF(AC250:AC253,WithdrawLabel)>COUNTIF(Y250:Y253,WithdrawLabel),AC249,\"\"))","v":""}]
[null,null,null,null,null,null,null,null,null,null,null,null,null,null,null,null,null,null,null,null,null,null,null,null,null,null,"-",null,null,null,{"$f":"IF(Z250=\"\",\"\",IF(Z250>AB250,Y250,IF(Z250=AB250,\"\",AC250)))","v":""},{"$f":"IF(Z250=\"\",\"\",IF(Z250=AB250,Y250,\"\"))","v":""},{"$f":"IF(Z250=\"\",\"\",IF(Z250=AB250,AC250,\"\"))","v":""},{"$f":"IF(Z250=\"\",\"\",IF(Z250<AB250,Y250,IF(Z250=AB250,\"\",AC250)))","v":""},{"$f":"IF(Z250=\"\",\"\",IF(Z250>AB250,Y249,\"\"))","v":""},{"$f":"IF(Z250=\"\",\"\",IF(Z250<AB250,AC249,\"\"))","v":""},{"$f":"CONCATENATE(AE250,AH250)","v":""}]
[null,null,null,null,null,null,null,null,null,null,null,null,null,null,null,null,null,null,null,null,null,null,null,null,null,null,"-",null,null,null,{"$f":"IF(Z251=\"\",\"\",IF(Z251>AB251,Y251,IF(Z251=AB251,\"\",AC251)))","v":""},{"$f":"IF(Z251=\"\",\"\",IF(Z251=AB251,Y251,\"\"))","v":""},{"$f":"IF(Z251=\"\",\"\",IF(Z251=AB251,AC251,\"\"))","v":""},{"$f":"IF(Z251=\"\",\"\",IF(Z251<AB251,Y251,IF(Z251=AB251,\"\",AC251)))","v":""},{"$f":"IF(Z251=\"\",\"\",IF(Z251>AB251,Y249,\"\"))","v":""},{"$f":"IF(Z251=\"\",\"\",IF(Z251<AB251,AC249,\"\"))","v":""},{"$f":"CONCATENATE(AE251,AH251)","v":""}]
[null,null,null,null,null,null,null,null,null,null,null,null,null,null,null,null,null,null,null,null,null,null,null,null,null,null,"-",null,null,null,{"$f":"IF(Z252=\"\",\"\",IF(Z252>AB252,Y252,IF(Z252=AB252,\"\",AC252)))","v":""},{"$f":"IF(Z252=\"\",\"\",IF(Z252=AB252,Y252,\"\"))","v":""},{"$f":"IF(Z252=\"\",\"\",IF(Z252=AB252,AC252,\"\"))","v":""},{"$f":"IF(Z252=\"\",\"\",IF(Z252<AB252,Y252,IF(Z252=AB252,\"\",AC252)))","v":""},{"$f":"IF(Z252=\"\",\"\",IF(Z252>AB252,Y249,\"\"))","v":""},{"$f":"IF(Z252=\"\",\"\",IF(Z252<AB252,AC249,\"\"))","v":""},{"$f":"CONCATENATE(AE252,AH252)","v":""}]
[null,null,null,null,null,null,null,null,null,null,null,null,null,null,null,null,null,null,null,null,null,null,null,null,null,null,"-",null,null,null,{"$f":"IF(Z253=\"\",\"\",IF(Z253>AB253,Y253,IF(Z253=AB253,\"\",AC253)))","v":""},{"$f":"IF(Z253=\"\",\"\",IF(Z253=AB253,Y253,\"\"))","v":""},{"$f":"IF(Z253=\"\",\"\",IF(Z253=AB253,AC253,\"\"))","v":""},{"$f":"IF(Z253=\"\",\"\",IF(Z253<AB253,Y253,IF(Z253=AB253,\"\",AC253)))","v":""},{"$f":"IF(Z253=\"\",\"\",IF(Z253>AB253,Y249,\"\"))","v":""},{"$f":"IF(Z253=\"\",\"\",IF(Z253<AB253,AC249,\"\"))","v":""},{"$f":"CONCATENATE(AE253,AH253)","v":""}]
[null,null,null,null,null,null,null,null,null,null,null,null,null,null,null,null,null,null,null,null,null,null,null,{"$f":"N_Substitute","v":"Substitute"}]
[null,null,null,null,null,null,null,null,null,null,null,null,null,null,null,null,null,null,null,null,null,null,null,{"$f":"N_Substitute","v":"Substitute"}]
[null,null,null,null,null,null,null,null,null,null,null,null,null,null,null,null,null,null,null,null,"#G2",null,null,null,{"$f":"IF(G223=\"\",\"\",G223)","v":"Eq3"},{"$f":"IF(OR(ISNUMBER(Z257),ISNUMBER(Z258),ISNUMBER(Z259),ISNUMBER(Z260)),4-COUNTBLANK(AI257:AI260),\"\")","v":""},"-",{"$f":"IF(OR(ISNUMBER(Z257),ISNUMBER(Z258),ISNUMBER(Z259),ISNUMBER(Z260)),4-COUNTBLANK(AJ257:AJ260),\"\")","v":""},{"$f":"IF(G225=\"\",\"\",G225)","v":"Eq5"},null,{"$f":"IF(Z256=\"\",\"\",IF(Z256>AB256,Y256,IF(Z256=AB256,IF(NoDrawWithWithdraw,IF(AL256=Y256,AC256,IF(AL256=AC256,Y256,\"\")),\"\"),AC256)))","v":""},{"$f":"IF(Z256=\"\",\"\",IF(Z256=AB256,IF(NoDrawWithWithdraw,IF(AL256=Y256,\"\",IF(AL256=AC256,\"\",Y256)),Y256),\"\"))","v":""},{"$f":"IF(Z256=\"\",\"\",IF(Z256=AB256,IF(NoDrawWithWithdraw,IF(AL256=Y256,\"\",IF(AL256=AC256,\"\",AC256)),AC256),\"\"))","v":""},{"$f":"IF(Z256=\"\",\"\",IF(Z256<AB256,Y256,IF(Z256=AB256,IF(NoDrawWithWithdraw,IF(AL256=Y256,Y256,IF(AL256=AC256,AC256,\"\")),\"\"),AC256)))","v":""},{"$f":"IF(Z256=\"\",\"\",SUM(Z257:Z260))","v":""},{"$f":"IF(Z256=\"\",\"\",SUM(AB257:AB260))","v":""},{"$f":"CONCATENATE(AE256,AH256)","v":""},{"$f":"IF(COUNTIF(Y257:Y260,WithdrawLabel)>COUNTIF(AC257:AC260,WithdrawLabel),Y256,IF(COUNTIF(AC257:AC260,WithdrawLabel)>COUNTIF(Y257:Y260,WithdrawLabel),AC256,\"\"))","v":""}]
[null,null,null,null,null,null,null,null,null,null,null,null,null,null,null,null,null,null,null,null,null,null,null,null,null,null,"-",null,null,null,{"$f":"IF(Z257=\"\",\"\",IF(Z257>AB257,Y257,IF(Z257=AB257,\"\",AC257)))","v":""},{"$f":"IF(Z257=\"\",\"\",IF(Z257=AB257,Y257,\"\"))","v":""},{"$f":"IF(Z257=\"\",\"\",IF(Z257=AB257,AC257,\"\"))","v":""},{"$f":"IF(Z257=\"\",\"\",IF(Z257<AB257,Y257,IF(Z257=AB257,\"\",AC257)))","v":""},{"$f":"IF(Z257=\"\",\"\",IF(Z257>AB257,Y256,\"\"))","v":""},{"$f":"IF(Z257=\"\",\"\",IF(Z257<AB257,AC256,\"\"))","v":""},{"$f":"CONCATENATE(AE257,AH257)","v":""}]
[null,null,null,null,null,null,null,null,null,null,null,null,null,null,null,null,null,null,null,null,null,null,null,null,null,null,"-",null,null,null,{"$f":"IF(Z258=\"\",\"\",IF(Z258>AB258,Y258,IF(Z258=AB258,\"\",AC258)))","v":""},{"$f":"IF(Z258=\"\",\"\",IF(Z258=AB258,Y258,\"\"))","v":""},{"$f":"IF(Z258=\"\",\"\",IF(Z258=AB258,AC258,\"\"))","v":""},{"$f":"IF(Z258=\"\",\"\",IF(Z258<AB258,Y258,IF(Z258=AB258,\"\",AC258)))","v":""},{"$f":"IF(Z258=\"\",\"\",IF(Z258>AB258,Y256,\"\"))","v":""},{"$f":"IF(Z258=\"\",\"\",IF(Z258<AB258,AC256,\"\"))","v":""},{"$f":"CONCATENATE(AE258,AH258)","v":""}]
[null,null,null,null,null,null,null,null,null,null,null,null,null,null,null,null,null,null,null,null,null,null,null,null,null,null,"-",null,null,null,{"$f":"IF(Z259=\"\",\"\",IF(Z259>AB259,Y259,IF(Z259=AB259,\"\",AC259)))","v":""},{"$f":"IF(Z259=\"\",\"\",IF(Z259=AB259,Y259,\"\"))","v":""},{"$f":"IF(Z259=\"\",\"\",IF(Z259=AB259,AC259,\"\"))","v":""},{"$f":"IF(Z259=\"\",\"\",IF(Z259<AB259,Y259,IF(Z259=AB259,\"\",AC259)))","v":""},{"$f":"IF(Z259=\"\",\"\",IF(Z259>AB259,Y256,\"\"))","v":""},{"$f":"IF(Z259=\"\",\"\",IF(Z259<AB259,AC256,\"\"))","v":""},{"$f":"CONCATENATE(AE259,AH259)","v":""}]
[null,null,null,null,null,null,null,null,null,null,null,null,null,null,null,null,null,null,null,null,null,null,null,null,null,null,"-",null,null,null,{"$f":"IF(Z260=\"\",\"\",IF(Z260>AB260,Y260,IF(Z260=AB260,\"\",AC260)))","v":""},{"$f":"IF(Z260=\"\",\"\",IF(Z260=AB260,Y260,\"\"))","v":""},{"$f":"IF(Z260=\"\",\"\",IF(Z260=AB260,AC260,\"\"))","v":""},{"$f":"IF(Z260=\"\",\"\",IF(Z260<AB260,Y260,IF(Z260=AB260,\"\",AC260)))","v":""},{"$f":"IF(Z260=\"\",\"\",IF(Z260>AB260,Y256,\"\"))","v":""},{"$f":"IF(Z260=\"\",\"\",IF(Z260<AB260,AC256,\"\"))","v":""},{"$f":"CONCATENATE(AE260,AH260)","v":""}]
[null,null,null,null,null,null,null,null,null,null,null,null,null,null,null,null,null,null,null,null,null,null,null,{"$f":"N_Substitute","v":"Substitute"}]
[null,null,null,null,null,null,null,null,null,null,null,null,null,null,null,null,null,null,null,null,null,null,null,{"$f":"N_Substitute","v":"Substitute"}]
[null,null,null,null,null,null,null,null,null,null,null,null,null,null,null,null,null,null,null,null,"#G2",null,null,null,{"$f":"IF(G226=\"\",\"\",G226)","v":"Eq6"},{"$f":"IF(OR(ISNUMBER(Z264),ISNUMBER(Z265),ISNUMBER(Z266),ISNUMBER(Z267)),4-COUNTBLANK(AI264:AI267),\"\")","v":""},"-",{"$f":"IF(OR(ISNUMBER(Z264),ISNUMBER(Z265),ISNUMBER(Z266),ISNUMBER(Z267)),4-COUNTBLANK(AJ264:AJ267),\"\")","v":""},{"$f":"IF(G221=\"\",\"\",G221)","v":"Eq1"},null,{"$f":"IF(Z263=\"\",\"\",IF(Z263>AB263,Y263,IF(Z263=AB263,IF(NoDrawWithWithdraw,IF(AL263=Y263,AC263,IF(AL263=AC263,Y263,\"\")),\"\"),AC263)))","v":""},{"$f":"IF(Z263=\"\",\"\",IF(Z263=AB263,IF(NoDrawWithWithdraw,IF(AL263=Y263,\"\",IF(AL263=AC263,\"\",Y263)),Y263),\"\"))","v":""},{"$f":"IF(Z263=\"\",\"\",IF(Z263=AB263,IF(NoDrawWithWithdraw,IF(AL263=Y263,\"\",IF(AL263=AC263,\"\",AC263)),AC263),\"\"))","v":""},{"$f":"IF(Z263=\"\",\"\",IF(Z263<AB263,Y263,IF(Z263=AB263,IF(NoDrawWithWithdraw,IF(AL263=Y263,Y263,IF(AL263=AC263,AC263,\"\")),\"\"),AC263)))","v":""},{"$f":"IF(Z263=\"\",\"\",SUM(Z264:Z267))","v":""},{"$f":"IF(Z263=\"\",\"\",SUM(AB264:AB267))","v":""},{"$f":"CONCATENATE(AE263,AH263)","v":""},{"$f":"IF(COUNTIF(Y264:Y267,WithdrawLabel)>COUNTIF(AC264:AC267,WithdrawLabel),Y263,IF(COUNTIF(AC264:AC267,WithdrawLabel)>COUNTIF(Y264:Y267,WithdrawLabel),AC263,\"\"))","v":""}]
[null,null,null,null,null,null,null,null,null,null,null,null,null,null,null,null,null,null,null,null,null,null,null,null,null,null,"-",null,null,null,{"$f":"IF(Z264=\"\",\"\",IF(Z264>AB264,Y264,IF(Z264=AB264,\"\",AC264)))","v":""},{"$f":"IF(Z264=\"\",\"\",IF(Z264=AB264,Y264,\"\"))","v":""},{"$f":"IF(Z264=\"\",\"\",IF(Z264=AB264,AC264,\"\"))","v":""},{"$f":"IF(Z264=\"\",\"\",IF(Z264<AB264,Y264,IF(Z264=AB264,\"\",AC264)))","v":""},{"$f":"IF(Z264=\"\",\"\",IF(Z264>AB264,Y263,\"\"))","v":""},{"$f":"IF(Z264=\"\",\"\",IF(Z264<AB264,AC263,\"\"))","v":""},{"$f":"CONCATENATE(AE264,AH264)","v":""}]
[null,null,null,null,null,null,null,null,null,null,null,null,null,null,null,null,null,null,null,null,null,null,null,null,null,null,"-",null,null,null,{"$f":"IF(Z265=\"\",\"\",IF(Z265>AB265,Y265,IF(Z265=AB265,\"\",AC265)))","v":""},{"$f":"IF(Z265=\"\",\"\",IF(Z265=AB265,Y265,\"\"))","v":""},{"$f":"IF(Z265=\"\",\"\",IF(Z265=AB265,AC265,\"\"))","v":""},{"$f":"IF(Z265=\"\",\"\",IF(Z265<AB265,Y265,IF(Z265=AB265,\"\",AC265)))","v":""},{"$f":"IF(Z265=\"\",\"\",IF(Z265>AB265,Y263,\"\"))","v":""},{"$f":"IF(Z265=\"\",\"\",IF(Z265<AB265,AC263,\"\"))","v":""},{"$f":"CONCATENATE(AE265,AH265)","v":""}]
[null,null,null,null,null,null,null,null,null,null,null,null,null,null,null,null,null,null,null,null,null,null,null,null,null,null,"-",null,null,null,{"$f":"IF(Z266=\"\",\"\",IF(Z266>AB266,Y266,IF(Z266=AB266,\"\",AC266)))","v":""},{"$f":"IF(Z266=\"\",\"\",IF(Z266=AB266,Y266,\"\"))","v":""},{"$f":"IF(Z266=\"\",\"\",IF(Z266=AB266,AC266,\"\"))","v":""},{"$f":"IF(Z266=\"\",\"\",IF(Z266<AB266,Y266,IF(Z266=AB266,\"\",AC266)))","v":""},{"$f":"IF(Z266=\"\",\"\",IF(Z266>AB266,Y263,\"\"))","v":""},{"$f":"IF(Z266=\"\",\"\",IF(Z266<AB266,AC263,\"\"))","v":""},{"$f":"CONCATENATE(AE266,AH266)","v":""}]
[null,null,null,null,null,null,null,null,null,null,null,null,null,null,null,null,null,null,null,null,null,null,null,null,null,null,"-",null,null,null,{"$f":"IF(Z267=\"\",\"\",IF(Z267>AB267,Y267,IF(Z267=AB267,\"\",AC267)))","v":""},{"$f":"IF(Z267=\"\",\"\",IF(Z267=AB267,Y267,\"\"))","v":""},{"$f":"IF(Z267=\"\",\"\",IF(Z267=AB267,AC267,\"\"))","v":""},{"$f":"IF(Z267=\"\",\"\",IF(Z267<AB267,Y267,IF(Z267=AB267,\"\",AC267)))","v":""},{"$f":"IF(Z267=\"\",\"\",IF(Z267>AB267,Y263,\"\"))","v":""},{"$f":"IF(Z267=\"\",\"\",IF(Z267<AB267,AC263,\"\"))","v":""},{"$f":"CONCATENATE(AE267,AH267)","v":""}]
[null,null,null,null,null,null,null,null,null,null,null,null,null,null,null,null,null,null,null,null,null,null,null,{"$f":"N_Substitute","v":"Substitute"}]
[null,null,null,null,null,null,null,null,null,null,null,null,null,null,null,null,null,null,null,null,null,null,null,{"$f":"N_Substitute","v":"Substitute"}]
[null,null,null,null,null,null,null,null,null,null,null,null,null,null,null,null,null,null,null,null,"#G3",null,null,null,{"$f":"IF(G221=\"\",\"\",G221)","v":"Eq1"},{"$f":"IF(OR(ISNUMBER(Z271),ISNUMBER(Z272),ISNUMBER(Z273),ISNUMBER(Z274)),4-COUNTBLANK(AI271:AI274),\"\")","v":""},"-",{"$f":"IF(OR(ISNUMBER(Z271),ISNUMBER(Z272),ISNUMBER(Z273),ISNUMBER(Z274)),4-COUNTBLANK(AJ271:AJ274),\"\")","v":""},{"$f":"IF(G224=\"\",\"\",G224)","v":"Eq4"},null,{"$f":"IF(Z270=\"\",\"\",IF(Z270>AB270,Y270,IF(Z270=AB270,IF(NoDrawWithWithdraw,IF(AL270=Y270,AC270,IF(AL270=AC270,Y270,\"\")),\"\"),AC270)))","v":""},{"$f":"IF(Z270=\"\",\"\",IF(Z270=AB270,IF(NoDrawWithWithdraw,IF(AL270=Y270,\"\",IF(AL270=AC270,\"\",Y270)),Y270),\"\"))","v":""},{"$f":"IF(Z270=\"\",\"\",IF(Z270=AB270,IF(NoDrawWithWithdraw,IF(AL270=Y270,\"\",IF(AL270=AC270,\"\",AC270)),AC270),\"\"))","v":""},{"$f":"IF(Z270=\"\",\"\",IF(Z270<AB270,Y270,IF(Z270=AB270,IF(NoDrawWithWithdraw,IF(AL270=Y270,Y270,IF(AL270=AC270,AC270,\"\")),\"\"),AC270)))","v":""},{"$f":"IF(Z270=\"\",\"\",SUM(Z271:Z274))","v":""},{"$f":"IF(Z270=\"\",\"\",SUM(AB271:AB274))","v":""},{"$f":"CONCATENATE(AE270,AH270)","v":""},{"$f":"IF(COUNTIF(Y271:Y274,WithdrawLabel)>COUNTIF(AC271:AC274,WithdrawLabel),Y270,IF(COUNTIF(AC271:AC274,WithdrawLabel)>COUNTIF(Y271:Y274,WithdrawLabel),AC270,\"\"))","v":""}]
[null,null,null,null,null,null,null,null,null,null,null,null,null,null,null,null,null,null,null,null,null,null,null,null,null,null,"-",null,null,null,{"$f":"IF(Z271=\"\",\"\",IF(Z271>AB271,Y271,IF(Z271=AB271,\"\",AC271)))","v":""},{"$f":"IF(Z271=\"\",\"\",IF(Z271=AB271,Y271,\"\"))","v":""},{"$f":"IF(Z271=\"\",\"\",IF(Z271=AB271,AC271,\"\"))","v":""},{"$f":"IF(Z271=\"\",\"\",IF(Z271<AB271,Y271,IF(Z271=AB271,\"\",AC271)))","v":""},{"$f":"IF(Z271=\"\",\"\",IF(Z271>AB271,Y270,\"\"))","v":""},{"$f":"IF(Z271=\"\",\"\",IF(Z271<AB271,AC270,\"\"))","v":""},{"$f":"CONCATENATE(AE271,AH271)","v":""}]
[null,null,null,null,null,null,null,null,null,null,null,null,null,null,null,null,null,null,null,null,null,null,null,null,null,null,"-",null,null,null,{"$f":"IF(Z272=\"\",\"\",IF(Z272>AB272,Y272,IF(Z272=AB272,\"\",AC272)))","v":""},{"$f":"IF(Z272=\"\",\"\",IF(Z272=AB272,Y272,\"\"))","v":""},{"$f":"IF(Z272=\"\",\"\",IF(Z272=AB272,AC272,\"\"))","v":""},{"$f":"IF(Z272=\"\",\"\",IF(Z272<AB272,Y272,IF(Z272=AB272,\"\",AC272)))","v":""},{"$f":"IF(Z272=\"\",\"\",IF(Z272>AB272,Y270,\"\"))","v":""},{"$f":"IF(Z272=\"\",\"\",IF(Z272<AB272,AC270,\"\"))","v":""},{"$f":"CONCATENATE(AE272,AH272)","v":""}]
[null,null,null,null,null,null,null,null,null,null,null,null,null,null,null,null,null,null,null,null,null,null,null,null,null,null,"-",null,null,null,{"$f":"IF(Z273=\"\",\"\",IF(Z273>AB273,Y273,IF(Z273=AB273,\"\",AC273)))","v":""},{"$f":"IF(Z273=\"\",\"\",IF(Z273=AB273,Y273,\"\"))","v":""},{"$f":"IF(Z273=\"\",\"\",IF(Z273=AB273,AC273,\"\"))","v":""},{"$f":"IF(Z273=\"\",\"\",IF(Z273<AB273,Y273,IF(Z273=AB273,\"\",AC273)))","v":""},{"$f":"IF(Z273=\"\",\"\",IF(Z273>AB273,Y270,\"\"))","v":""},{"$f":"IF(Z273=\"\",\"\",IF(Z273<AB273,AC270,\"\"))","v":""},{"$f":"CONCATENATE(AE273,AH273)","v":""}]
[null,null,null,null,null,null,null,null,null,null,null,null,null,null,null,null,null,null,null,null,null,null,null,null,null,null,"-",null,null,null,{"$f":"IF(Z274=\"\",\"\",IF(Z274>AB274,Y274,IF(Z274=AB274,\"\",AC274)))","v":""},{"$f":"IF(Z274=\"\",\"\",IF(Z274=AB274,Y274,\"\"))","v":""},{"$f":"IF(Z274=\"\",\"\",IF(Z274=AB274,AC274,\"\"))","v":""},{"$f":"IF(Z274=\"\",\"\",IF(Z274<AB274,Y274,IF(Z274=AB274,\"\",AC274)))","v":""},{"$f":"IF(Z274=\"\",\"\",IF(Z274>AB274,Y270,\"\"))","v":""},{"$f":"IF(Z274=\"\",\"\",IF(Z274<AB274,AC270,\"\"))","v":""},{"$f":"CONCATENATE(AE274,AH274)","v":""}]
[null,null,null,null,null,null,null,null,null,null,null,null,null,null,null,null,null,null,null,null,null,null,null,{"$f":"N_Substitute","v":"Substitute"}]
[null,null,null,null,null,null,null,null,null,null,null,null,null,null,null,null,null,null,null,null,null,null,null,{"$f":"N_Substitute","v":"Substitute"}]
[null,null,null,null,null,null,null,null,null,null,null,null,null,null,null,null,null,null,null,null,"#G3",null,null,null,{"$f":"IF(G225=\"\",\"\",G225)","v":"Eq5"},{"$f":"IF(OR(ISNUMBER(Z278),ISNUMBER(Z279),ISNUMBER(Z280),ISNUMBER(Z281)),4-COUNTBLANK(AI278:AI281),\"\")","v":""},"-",{"$f":"IF(OR(ISNUMBER(Z278),ISNUMBER(Z279),ISNUMBER(Z280),ISNUMBER(Z281)),4-COUNTBLANK(AJ278:AJ281),\"\")","v":""},{"$f":"IF(G222=\"\",\"\",G222)","v":"Eq2"},null,{"$f":"IF(Z277=\"\",\"\",IF(Z277>AB277,Y277,IF(Z277=AB277,IF(NoDrawWithWithdraw,IF(AL277=Y277,AC277,IF(AL277=AC277,Y277,\"\")),\"\"),AC277)))","v":""},{"$f":"IF(Z277=\"\",\"\",IF(Z277=AB277,IF(NoDrawWithWithdraw,IF(AL277=Y277,\"\",IF(AL277=AC277,\"\",Y277)),Y277),\"\"))","v":""},{"$f":"IF(Z277=\"\",\"\",IF(Z277=AB277,IF(NoDrawWithWithdraw,IF(AL277=Y277,\"\",IF(AL277=AC277,\"\",AC277)),AC277),\"\"))","v":""},{"$f":"IF(Z277=\"\",\"\",IF(Z277<AB277,Y277,IF(Z277=AB277,IF(NoDrawWithWithdraw,IF(AL277=Y277,Y277,IF(AL277=AC277,AC277,\"\")),\"\"),AC277)))","v":""},{"$f":"IF(Z277=\"\",\"\",SUM(Z278:Z281))","v":""},{"$f":"IF(Z277=\"\",\"\",SUM(AB278:AB281))","v":""},{"$f":"CONCATENATE(AE277,AH277)","v":""},{"$f":"IF(COUNTIF(Y278:Y281,WithdrawLabel)>COUNTIF(AC278:AC281,WithdrawLabel),Y277,IF(COUNTIF(AC278:AC281,WithdrawLabel)>COUNTIF(Y278:Y281,WithdrawLabel),AC277,\"\"))","v":""}]
[null,null,null,null,null,null,null,null,null,null,null,null,null,null,null,null,null,null,null,null,null,null,null,null,null,null,"-",null,null,null,{"$f":"IF(Z278=\"\",\"\",IF(Z278>AB278,Y278,IF(Z278=AB278,\"\",AC278)))","v":""},{"$f":"IF(Z278=\"\",\"\",IF(Z278=AB278,Y278,\"\"))","v":""},{"$f":"IF(Z278=\"\",\"\",IF(Z278=AB278,AC278,\"\"))","v":""},{"$f":"IF(Z278=\"\",\"\",IF(Z278<AB278,Y278,IF(Z278=AB278,\"\",AC278)))","v":""},{"$f":"IF(Z278=\"\",\"\",IF(Z278>AB278,Y277,\"\"))","v":""},{"$f":"IF(Z278=\"\",\"\",IF(Z278<AB278,AC277,\"\"))","v":""},{"$f":"CONCATENATE(AE278,AH278)","v":""}]
[null,null,null,null,null,null,null,null,null,null,null,null,null,null,null,null,null,null,null,null,null,null,null,null,null,null,"-",null,null,null,{"$f":"IF(Z279=\"\",\"\",IF(Z279>AB279,Y279,IF(Z279=AB279,\"\",AC279)))","v":""},{"$f":"IF(Z279=\"\",\"\",IF(Z279=AB279,Y279,\"\"))","v":""},{"$f":"IF(Z279=\"\",\"\",IF(Z279=AB279,AC279,\"\"))","v":""},{"$f":"IF(Z279=\"\",\"\",IF(Z279<AB279,Y279,IF(Z279=AB279,\"\",AC279)))","v":""},{"$f":"IF(Z279=\"\",\"\",IF(Z279>AB279,Y277,\"\"))","v":""},{"$f":"IF(Z279=\"\",\"\",IF(Z279<AB279,AC277,\"\"))","v":""},{"$f":"CONCATENATE(AE279,AH279)","v":""}]
[null,null,null,null,null,null,null,null,null,null,null,null,null,null,null,null,null,null,null,null,null,null,null,null,null,null,"-",null,null,null,{"$f":"IF(Z280=\"\",\"\",IF(Z280>AB280,Y280,IF(Z280=AB280,\"\",AC280)))","v":""},{"$f":"IF(Z280=\"\",\"\",IF(Z280=AB280,Y280,\"\"))","v":""},{"$f":"IF(Z280=\"\",\"\",IF(Z280=AB280,AC280,\"\"))","v":""},{"$f":"IF(Z280=\"\",\"\",IF(Z280<AB280,Y280,IF(Z280=AB280,\"\",AC280)))","v":""},{"$f":"IF(Z280=\"\",\"\",IF(Z280>AB280,Y277,\"\"))","v":""},{"$f":"IF(Z280=\"\",\"\",IF(Z280<AB280,AC277,\"\"))","v":""},{"$f":"CONCATENATE(AE280,AH280)","v":""}]
[null,null,null,null,null,null,null,null,null,null,null,null,null,null,null,null,null,null,null,null,null,null,null,null,null,null,"-",null,null,null,{"$f":"IF(Z281=\"\",\"\",IF(Z281>AB281,Y281,IF(Z281=AB281,\"\",AC281)))","v":""},{"$f":"IF(Z281=\"\",\"\",IF(Z281=AB281,Y281,\"\"))","v":""},{"$f":"IF(Z281=\"\",\"\",IF(Z281=AB281,AC281,\"\"))","v":""},{"$f":"IF(Z281=\"\",\"\",IF(Z281<AB281,Y281,IF(Z281=AB281,\"\",AC281)))","v":""},{"$f":"IF(Z281=\"\",\"\",IF(Z281>AB281,Y277,\"\"))","v":""},{"$f":"IF(Z281=\"\",\"\",IF(Z281<AB281,AC277,\"\"))","v":""},{"$f":"CONCATENATE(AE281,AH281)","v":""}]
[null,null,null,null,null,null,null,null,null,null,null,null,null,null,null,null,null,null,null,null,null,null,null,{"$f":"N_Substitute","v":"Substitute"}]
[null,null,null,null,null,null,null,null,null,null,null,null,null,null,null,null,null,null,null,null,null,null,null,{"$f":"N_Substitute","v":"Substitute"}]
[null,null,null,null,null,null,null,null,null,null,null,null,null,null,null,null,null,null,null,null,"#G3",null,null,null,{"$f":"IF(G226=\"\",\"\",G226)","v":"Eq6"},{"$f":"IF(OR(ISNUMBER(Z285),ISNUMBER(Z286),ISNUMBER(Z287),ISNUMBER(Z288)),4-COUNTBLANK(AI285:AI288),\"\")","v":""},"-",{"$f":"IF(OR(ISNUMBER(Z285),ISNUMBER(Z286),ISNUMBER(Z287),ISNUMBER(Z288)),4-COUNTBLANK(AJ285:AJ288),\"\")","v":""},{"$f":"IF(G223=\"\",\"\",G223)","v":"Eq3"},null,{"$f":"IF(Z284=\"\",\"\",IF(Z284>AB284,Y284,IF(Z284=AB284,IF(NoDrawWithWithdraw,IF(AL284=Y284,AC284,IF(AL284=AC284,Y284,\"\")),\"\"),AC284)))","v":""},{"$f":"IF(Z284=\"\",\"\",IF(Z284=AB284,IF(NoDrawWithWithdraw,IF(AL284=Y284,\"\",IF(AL284=AC284,\"\",Y284)),Y284),\"\"))","v":""},{"$f":"IF(Z284=\"\",\"\",IF(Z284=AB284,IF(NoDrawWithWithdraw,IF(AL284=Y284,\"\",IF(AL284=AC284,\"\",AC284)),AC284),\"\"))","v":""},{"$f":"IF(Z284=\"\",\"\",IF(Z284<AB284,Y284,IF(Z284=AB284,IF(NoDrawWithWithdraw,IF(AL284=Y284,Y284,IF(AL284=AC284,AC284,\"\")),\"\"),AC284)))","v":""},{"$f":"IF(Z284=\"\",\"\",SUM(Z285:Z288))","v":""},{"$f":"IF(Z284=\"\",\"\",SUM(AB285:AB288))","v":""},{"$f":"CONCATENATE(AE284,AH284)","v":""},{"$f":"IF(COUNTIF(Y285:Y288,WithdrawLabel)>COUNTIF(AC285:AC288,WithdrawLabel),Y284,IF(COUNTIF(AC285:AC288,WithdrawLabel)>COUNTIF(Y285:Y288,WithdrawLabel),AC284,\"\"))","v":""}]
[null,null,null,null,null,null,null,null,null,null,null,null,null,null,null,null,null,null,null,null,null,null,null,null,null,null,"-",null,null,null,{"$f":"IF(Z285=\"\",\"\",IF(Z285>AB285,Y285,IF(Z285=AB285,\"\",AC285)))","v":""},{"$f":"IF(Z285=\"\",\"\",IF(Z285=AB285,Y285,\"\"))","v":""},{"$f":"IF(Z285=\"\",\"\",IF(Z285=AB285,AC285,\"\"))","v":""},{"$f":"IF(Z285=\"\",\"\",IF(Z285<AB285,Y285,IF(Z285=AB285,\"\",AC285)))","v":""},{"$f":"IF(Z285=\"\",\"\",IF(Z285>AB285,Y284,\"\"))","v":""},{"$f":"IF(Z285=\"\",\"\",IF(Z285<AB285,AC284,\"\"))","v":""},{"$f":"CONCATENATE(AE285,AH285)","v":""}]
[null,null,null,null,null,null,null,null,null,null,null,null,null,null,null,null,null,null,null,null,null,null,null,null,null,null,"-",null,null,null,{"$f":"IF(Z286=\"\",\"\",IF(Z286>AB286,Y286,IF(Z286=AB286,\"\",AC286)))","v":""},{"$f":"IF(Z286=\"\",\"\",IF(Z286=AB286,Y286,\"\"))","v":""},{"$f":"IF(Z286=\"\",\"\",IF(Z286=AB286,AC286,\"\"))","v":""},{"$f":"IF(Z286=\"\",\"\",IF(Z286<AB286,Y286,IF(Z286=AB286,\"\",AC286)))","v":""},{"$f":"IF(Z286=\"\",\"\",IF(Z286>AB286,Y284,\"\"))","v":""},{"$f":"IF(Z286=\"\",\"\",IF(Z286<AB286,AC284,\"\"))","v":""},{"$f":"CONCATENATE(AE286,AH286)","v":""}]
[null,null,null,null,null,null,null,null,null,null,null,null,null,null,null,null,null,null,null,null,null,null,null,null,null,null,"-",null,null,null,{"$f":"IF(Z287=\"\",\"\",IF(Z287>AB287,Y287,IF(Z287=AB287,\"\",AC287)))","v":""},{"$f":"IF(Z287=\"\",\"\",IF(Z287=AB287,Y287,\"\"))","v":""},{"$f":"IF(Z287=\"\",\"\",IF(Z287=AB287,AC287,\"\"))","v":""},{"$f":"IF(Z287=\"\",\"\",IF(Z287<AB287,Y287,IF(Z287=AB287,\"\",AC287)))","v":""},{"$f":"IF(Z287=\"\",\"\",IF(Z287>AB287,Y284,\"\"))","v":""},{"$f":"IF(Z287=\"\",\"\",IF(Z287<AB287,AC284,\"\"))","v":""},{"$f":"CONCATENATE(AE287,AH287)","v":""}]
[null,null,null,null,null,null,null,null,null,null,null,null,null,null,null,null,null,null,null,null,null,null,null,null,null,null,"-",null,null,null,{"$f":"IF(Z288=\"\",\"\",IF(Z288>AB288,Y288,IF(Z288=AB288,\"\",AC288)))","v":""},{"$f":"IF(Z288=\"\",\"\",IF(Z288=AB288,Y288,\"\"))","v":""},{"$f":"IF(Z288=\"\",\"\",IF(Z288=AB288,AC288,\"\"))","v":""},{"$f":"IF(Z288=\"\",\"\",IF(Z288<AB288,Y288,IF(Z288=AB288,\"\",AC288)))","v":""},{"$f":"IF(Z288=\"\",\"\",IF(Z288>AB288,Y284,\"\"))","v":""},{"$f":"IF(Z288=\"\",\"\",IF(Z288<AB288,AC284,\"\"))","v":""},{"$f":"CONCATENATE(AE288,AH288)","v":""}]
[null,null,null,null,null,null,null,null,null,null,null,null,null,null,null,null,null,null,null,null,null,null,null,{"$f":"N_Substitute","v":"Substitute"}]
[null,null,null,null,null,null,null,null,null,null,null,null,null,null,null,null,null,null,null,null,null,null,null,{"$f":"N_Substitute","v":"Substitute"}]
[null,null,null,null,null,null,null,null,null,null,null,null,null,null,null,null,null,null,null,null,"#G4",null,null,null,{"$f":"IF(G222=\"\",\"\",G222)","v":"Eq2"},{"$f":"IF(OR(ISNUMBER(Z292),ISNUMBER(Z293),ISNUMBER(Z294),ISNUMBER(Z295)),4-COUNTBLANK(AI292:AI295),\"\")","v":""},"-",{"$f":"IF(OR(ISNUMBER(Z292),ISNUMBER(Z293),ISNUMBER(Z294),ISNUMBER(Z295)),4-COUNTBLANK(AJ292:AJ295),\"\")","v":""},{"$f":"IF(G226=\"\",\"\",G226)","v":"Eq6"},null,{"$f":"IF(Z291=\"\",\"\",IF(Z291>AB291,Y291,IF(Z291=AB291,IF(NoDrawWithWithdraw,IF(AL291=Y291,AC291,IF(AL291=AC291,Y291,\"\")),\"\"),AC291)))","v":""},{"$f":"IF(Z291=\"\",\"\",IF(Z291=AB291,IF(NoDrawWithWithdraw,IF(AL291=Y291,\"\",IF(AL291=AC291,\"\",Y291)),Y291),\"\"))","v":""},{"$f":"IF(Z291=\"\",\"\",IF(Z291=AB291,IF(NoDrawWithWithdraw,IF(AL291=Y291,\"\",IF(AL291=AC291,\"\",AC291)),AC291),\"\"))","v":""},{"$f":"IF(Z291=\"\",\"\",IF(Z291<AB291,Y291,IF(Z291=AB291,IF(NoDrawWithWithdraw,IF(AL291=Y291,Y291,IF(AL291=AC291,AC291,\"\")),\"\"),AC291)))","v":""},{"$f":"IF(Z291=\"\",\"\",SUM(Z292:Z295))","v":""},{"$f":"IF(Z291=\"\",\"\",SUM(AB292:AB295))","v":""},{"$f":"CONCATENATE(AE291,AH291)","v":""},{"$f":"IF(COUNTIF(Y292:Y295,WithdrawLabel)>COUNTIF(AC292:AC295,WithdrawLabel),Y291,IF(COUNTIF(AC292:AC295,WithdrawLabel)>COUNTIF(Y292:Y295,WithdrawLabel),AC291,\"\"))","v":""}]
[null,null,null,null,null,null,null,null,null,null,null,null,null,null,null,null,null,null,null,null,null,null,null,null,null,null,"-",null,null,null,{"$f":"IF(Z292=\"\",\"\",IF(Z292>AB292,Y292,IF(Z292=AB292,\"\",AC292)))","v":""},{"$f":"IF(Z292=\"\",\"\",IF(Z292=AB292,Y292,\"\"))","v":""},{"$f":"IF(Z292=\"\",\"\",IF(Z292=AB292,AC292,\"\"))","v":""},{"$f":"IF(Z292=\"\",\"\",IF(Z292<AB292,Y292,IF(Z292=AB292,\"\",AC292)))","v":""},{"$f":"IF(Z292=\"\",\"\",IF(Z292>AB292,Y291,\"\"))","v":""},{"$f":"IF(Z292=\"\",\"\",IF(Z292<AB292,AC291,\"\"))","v":""},{"$f":"CONCATENATE(AE292,AH292)","v":""}]
[null,null,null,null,null,null,null,null,null,null,null,null,null,null,null,null,null,null,null,null,null,null,null,null,null,null,"-",null,null,null,{"$f":"IF(Z293=\"\",\"\",IF(Z293>AB293,Y293,IF(Z293=AB293,\"\",AC293)))","v":""},{"$f":"IF(Z293=\"\",\"\",IF(Z293=AB293,Y293,\"\"))","v":""},{"$f":"IF(Z293=\"\",\"\",IF(Z293=AB293,AC293,\"\"))","v":""},{"$f":"IF(Z293=\"\",\"\",IF(Z293<AB293,Y293,IF(Z293=AB293,\"\",AC293)))","v":""},{"$f":"IF(Z293=\"\",\"\",IF(Z293>AB293,Y291,\"\"))","v":""},{"$f":"IF(Z293=\"\",\"\",IF(Z293<AB293,AC291,\"\"))","v":""},{"$f":"CONCATENATE(AE293,AH293)","v":""}]
[null,null,null,null,null,null,null,null,null,null,null,null,null,null,null,null,null,null,null,null,null,null,null,null,null,null,"-",null,null,null,{"$f":"IF(Z294=\"\",\"\",IF(Z294>AB294,Y294,IF(Z294=AB294,\"\",AC294)))","v":""},{"$f":"IF(Z294=\"\",\"\",IF(Z294=AB294,Y294,\"\"))","v":""},{"$f":"IF(Z294=\"\",\"\",IF(Z294=AB294,AC294,\"\"))","v":""},{"$f":"IF(Z294=\"\",\"\",IF(Z294<AB294,Y294,IF(Z294=AB294,\"\",AC294)))","v":""},{"$f":"IF(Z294=\"\",\"\",IF(Z294>AB294,Y291,\"\"))","v":""},{"$f":"IF(Z294=\"\",\"\",IF(Z294<AB294,AC291,\"\"))","v":""},{"$f":"CONCATENATE(AE294,AH294)","v":""}]
[null,null,null,null,null,null,null,null,null,null,null,null,null,null,null,null,null,null,null,null,null,null,null,null,null,null,"-",null,null,null,{"$f":"IF(Z295=\"\",\"\",IF(Z295>AB295,Y295,IF(Z295=AB295,\"\",AC295)))","v":""},{"$f":"IF(Z295=\"\",\"\",IF(Z295=AB295,Y295,\"\"))","v":""},{"$f":"IF(Z295=\"\",\"\",IF(Z295=AB295,AC295,\"\"))","v":""},{"$f":"IF(Z295=\"\",\"\",IF(Z295<AB295,Y295,IF(Z295=AB295,\"\",AC295)))","v":""},{"$f":"IF(Z295=\"\",\"\",IF(Z295>AB295,Y291,\"\"))","v":""},{"$f":"IF(Z295=\"\",\"\",IF(Z295<AB295,AC291,\"\"))","v":""},{"$f":"CONCATENATE(AE295,AH295)","v":""}]
[null,null,null,null,null,null,null,null,null,null,null,null,null,null,null,null,null,null,null,null,null,null,null,{"$f":"N_Substitute","v":"Substitute"}]
[null,null,null,null,null,null,null,null,null,null,null,null,null,null,null,null,null,null,null,null,null,null,null,{"$f":"N_Substitute","v":"Substitute"}]
[null,null,null,null,null,null,null,null,null,null,null,null,null,null,null,null,null,null,null,null,"#G4",null,null,null,{"$f":"IF(G223=\"\",\"\",G223)","v":"Eq3"},{"$f":"IF(OR(ISNUMBER(Z299),ISNUMBER(Z300),ISNUMBER(Z301),ISNUMBER(Z302)),4-COUNTBLANK(AI299:AI302),\"\")","v":""},"-",{"$f":"IF(OR(ISNUMBER(Z299),ISNUMBER(Z300),ISNUMBER(Z301),ISNUMBER(Z302)),4-COUNTBLANK(AJ299:AJ302),\"\")","v":""},{"$f":"IF(G221=\"\",\"\",G221)","v":"Eq1"},null,{"$f":"IF(Z298=\"\",\"\",IF(Z298>AB298,Y298,IF(Z298=AB298,IF(NoDrawWithWithdraw,IF(AL298=Y298,AC298,IF(AL298=AC298,Y298,\"\")),\"\"),AC298)))","v":""},{"$f":"IF(Z298=\"\",\"\",IF(Z298=AB298,IF(NoDrawWithWithdraw,IF(AL298=Y298,\"\",IF(AL298=AC298,\"\",Y298)),Y298),\"\"))","v":""},{"$f":"IF(Z298=\"\",\"\",IF(Z298=AB298,IF(NoDrawWithWithdraw,IF(AL298=Y298,\"\",IF(AL298=AC298,\"\",AC298)),AC298),\"\"))","v":""},{"$f":"IF(Z298=\"\",\"\",IF(Z298<AB298,Y298,IF(Z298=AB298,IF(NoDrawWithWithdraw,IF(AL298=Y298,Y298,IF(AL298=AC298,AC298,\"\")),\"\"),AC298)))","v":""},{"$f":"IF(Z298=\"\",\"\",SUM(Z299:Z302))","v":""},{"$f":"IF(Z298=\"\",\"\",SUM(AB299:AB302))","v":""},{"$f":"CONCATENATE(AE298,AH298)","v":""},{"$f":"IF(COUNTIF(Y299:Y302,WithdrawLabel)>COUNTIF(AC299:AC302,WithdrawLabel),Y298,IF(COUNTIF(AC299:AC302,WithdrawLabel)>COUNTIF(Y299:Y302,WithdrawLabel),AC298,\"\"))","v":""}]
[null,null,null,null,null,null,null,null,null,null,null,null,null,null,null,null,null,null,null,null,null,null,null,null,null,null,"-",null,null,null,{"$f":"IF(Z299=\"\",\"\",IF(Z299>AB299,Y299,IF(Z299=AB299,\"\",AC299)))","v":""},{"$f":"IF(Z299=\"\",\"\",IF(Z299=AB299,Y299,\"\"))","v":""},{"$f":"IF(Z299=\"\",\"\",IF(Z299=AB299,AC299,\"\"))","v":""},{"$f":"IF(Z299=\"\",\"\",IF(Z299<AB299,Y299,IF(Z299=AB299,\"\",AC299)))","v":""},{"$f":"IF(Z299=\"\",\"\",IF(Z299>AB299,Y298,\"\"))","v":""},{"$f":"IF(Z299=\"\",\"\",IF(Z299<AB299,AC298,\"\"))","v":""},{"$f":"CONCATENATE(AE299,AH299)","v":""}]
[null,null,null,null,null,null,null,null,null,null,null,null,null,null,null,null,null,null,null,null,null,null,null,null,null,null,"-",null,null,null,{"$f":"IF(Z300=\"\",\"\",IF(Z300>AB300,Y300,IF(Z300=AB300,\"\",AC300)))","v":""},{"$f":"IF(Z300=\"\",\"\",IF(Z300=AB300,Y300,\"\"))","v":""},{"$f":"IF(Z300=\"\",\"\",IF(Z300=AB300,AC300,\"\"))","v":""},{"$f":"IF(Z300=\"\",\"\",IF(Z300<AB300,Y300,IF(Z300=AB300,\"\",AC300)))","v":""},{"$f":"IF(Z300=\"\",\"\",IF(Z300>AB300,Y298,\"\"))","v":""},{"$f":"IF(Z300=\"\",\"\",IF(Z300<AB300,AC298,\"\"))","v":""},{"$f":"CONCATENATE(AE300,AH300)","v":""}]
[null,null,null,null,null,null,null,null,null,null,null,null,null,null,null,null,null,null,null,null,null,null,null,null,null,null,"-",null,null,null,{"$f":"IF(Z301=\"\",\"\",IF(Z301>AB301,Y301,IF(Z301=AB301,\"\",AC301)))","v":""},{"$f":"IF(Z301=\"\",\"\",IF(Z301=AB301,Y301,\"\"))","v":""},{"$f":"IF(Z301=\"\",\"\",IF(Z301=AB301,AC301,\"\"))","v":""},{"$f":"IF(Z301=\"\",\"\",IF(Z301<AB301,Y301,IF(Z301=AB301,\"\",AC301)))","v":""},{"$f":"IF(Z301=\"\",\"\",IF(Z301>AB301,Y298,\"\"))","v":""},{"$f":"IF(Z301=\"\",\"\",IF(Z301<AB301,AC298,\"\"))","v":""},{"$f":"CONCATENATE(AE301,AH301)","v":""}]
[null,null,null,null,null,null,null,null,null,null,null,null,null,null,null,null,null,null,null,null,null,null,null,null,null,null,"-",null,null,null,{"$f":"IF(Z302=\"\",\"\",IF(Z302>AB302,Y302,IF(Z302=AB302,\"\",AC302)))","v":""},{"$f":"IF(Z302=\"\",\"\",IF(Z302=AB302,Y302,\"\"))","v":""},{"$f":"IF(Z302=\"\",\"\",IF(Z302=AB302,AC302,\"\"))","v":""},{"$f":"IF(Z302=\"\",\"\",IF(Z302<AB302,Y302,IF(Z302=AB302,\"\",AC302)))","v":""},{"$f":"IF(Z302=\"\",\"\",IF(Z302>AB302,Y298,\"\"))","v":""},{"$f":"IF(Z302=\"\",\"\",IF(Z302<AB302,AC298,\"\"))","v":""},{"$f":"CONCATENATE(AE302,AH302)","v":""}]
[null,null,null,null,null,null,null,null,null,null,null,null,null,null,null,null,null,null,null,null,null,null,null,{"$f":"N_Substitute","v":"Substitute"}]
[null,null,null,null,null,null,null,null,null,null,null,null,null,null,null,null,null,null,null,null,null,null,null,{"$f":"N_Substitute","v":"Substitute"}]
[null,null,null,null,null,null,null,null,null,null,null,null,null,null,null,null,null,null,null,null,"#G4",null,null,null,{"$f":"IF(G224=\"\",\"\",G224)","v":"Eq4"},{"$f":"IF(OR(ISNUMBER(Z306),ISNUMBER(Z307),ISNUMBER(Z308),ISNUMBER(Z309)),4-COUNTBLANK(AI306:AI309),\"\")","v":""},"-",{"$f":"IF(OR(ISNUMBER(Z306),ISNUMBER(Z307),ISNUMBER(Z308),ISNUMBER(Z309)),4-COUNTBLANK(AJ306:AJ309),\"\")","v":""},{"$f":"IF(G225=\"\",\"\",G225)","v":"Eq5"},null,{"$f":"IF(Z305=\"\",\"\",IF(Z305>AB305,Y305,IF(Z305=AB305,IF(NoDrawWithWithdraw,IF(AL305=Y305,AC305,IF(AL305=AC305,Y305,\"\")),\"\"),AC305)))","v":""},{"$f":"IF(Z305=\"\",\"\",IF(Z305=AB305,IF(NoDrawWithWithdraw,IF(AL305=Y305,\"\",IF(AL305=AC305,\"\",Y305)),Y305),\"\"))","v":""},{"$f":"IF(Z305=\"\",\"\",IF(Z305=AB305,IF(NoDrawWithWithdraw,IF(AL305=Y305,\"\",IF(AL305=AC305,\"\",AC305)),AC305),\"\"))","v":""},{"$f":"IF(Z305=\"\",\"\",IF(Z305<AB305,Y305,IF(Z305=AB305,IF(NoDrawWithWithdraw,IF(AL305=Y305,Y305,IF(AL305=AC305,AC305,\"\")),\"\"),AC305)))","v":""},{"$f":"IF(Z305=\"\",\"\",SUM(Z306:Z309))","v":""},{"$f":"IF(Z305=\"\",\"\",SUM(AB306:AB309))","v":""},{"$f":"CONCATENATE(AE305,AH305)","v":""},{"$f":"IF(COUNTIF(Y306:Y309,WithdrawLabel)>COUNTIF(AC306:AC309,WithdrawLabel),Y305,IF(COUNTIF(AC306:AC309,WithdrawLabel)>COUNTIF(Y306:Y309,WithdrawLabel),AC305,\"\"))","v":""}]
[null,null,null,null,null,null,null,null,null,null,null,null,null,null,null,null,null,null,null,null,null,null,null,null,null,null,"-",null,null,null,null,null,null,null,{"$f":"IF(Z306=\"\",\"\",IF(Z306>AB306,Y305,\"\"))","v":""},{"$f":"IF(Z306=\"\",\"\",IF(Z306<AB306,AC305,\"\"))","v":""}]
[null,null,null,null,null,null,null,null,null,null,null,null,null,null,null,null,null,null,null,null,null,null,null,null,null,null,"-",null,null,null,null,null,null,null,{"$f":"IF(Z307=\"\",\"\",IF(Z307>AB307,Y305,\"\"))","v":""},{"$f":"IF(Z307=\"\",\"\",IF(Z307<AB307,AC305,\"\"))","v":""}]
[null,null,null,null,null,null,null,null,null,null,null,null,null,null,null,null,null,null,null,null,null,null,null,null,null,null,"-",null,null,null,null,null,null,null,{"$f":"IF(Z308=\"\",\"\",IF(Z308>AB308,Y305,\"\"))","v":""},{"$f":"IF(Z308=\"\",\"\",IF(Z308<AB308,AC305,\"\"))","v":""}]
[null,null,null,null,null,null,null,null,null,null,null,null,null,null,null,null,null,null,null,null,null,null,null,null,null,null,"-",null,null,null,null,null,null,null,{"$f":"IF(Z309=\"\",\"\",IF(Z309>AB309,Y305,\"\"))","v":""},{"$f":"IF(Z309=\"\",\"\",IF(Z309<AB309,AC305,\"\"))","v":""}]
[null,null,null,null,null,null,null,null,null,null,null,null,null,null,null,null,null,null,null,null,null,null,null,{"$f":"N_Substitute","v":"Substitute"}]
[null,null,null,null,null,null,null,null,null,null,null,null,null,null,null,null,null,null,null,null,null,null,null,{"$f":"N_Substitute","v":"Substitute"}]
[null,null,null,null,null,null,null,null,null,null,null,null,null,null,null,null,null,null,null,null,"#G5",null,null,null,{"$f":"IF(G221=\"\",\"\",G221)","v":"Eq1"},{"$f":"IF(OR(ISNUMBER(Z313),ISNUMBER(Z314),ISNUMBER(Z315),ISNUMBER(Z316)),4-COUNTBLANK(AI313:AI316),\"\")","v":""},"-",{"$f":"IF(OR(ISNUMBER(Z313),ISNUMBER(Z314),ISNUMBER(Z315),ISNUMBER(Z316)),4-COUNTBLANK(AJ313:AJ316),\"\")","v":""},{"$f":"IF(G222=\"\",\"\",G222)","v":"Eq2"},null,{"$f":"IF(Z312=\"\",\"\",IF(Z312>AB312,Y312,IF(Z312=AB312,IF(NoDrawWithWithdraw,IF(AL312=Y312,AC312,IF(AL312=AC312,Y312,\"\")),\"\"),AC312)))","v":""},{"$f":"IF(Z312=\"\",\"\",IF(Z312=AB312,IF(NoDrawWithWithdraw,IF(AL312=Y312,\"\",IF(AL312=AC312,\"\",Y312)),Y312),\"\"))","v":""},{"$f":"IF(Z312=\"\",\"\",IF(Z312=AB312,IF(NoDrawWithWithdraw,IF(AL312=Y312,\"\",IF(AL312=AC312,\"\",AC312)),AC312),\"\"))","v":""},{"$f":"IF(Z312=\"\",\"\",IF(Z312<AB312,Y312,IF(Z312=AB312,IF(NoDrawWithWithdraw,IF(AL312=Y312,Y312,IF(AL312=AC312,AC312,\"\")),\"\"),AC312)))","v":""},{"$f":"IF(Z312=\"\",\"\",SUM(Z313:Z316))","v":""},{"$f":"IF(Z312=\"\",\"\",SUM(AB313:AB316))","v":""},{"$f":"CONCATENATE(AE312,AH312)","v":""},{"$f":"IF(COUNTIF(Y313:Y316,WithdrawLabel)>COUNTIF(AC313:AC316,WithdrawLabel),Y312,IF(COUNTIF(AC313:AC316,WithdrawLabel)>COUNTIF(Y313:Y316,WithdrawLabel),AC312,\"\"))","v":""}]
[null,null,null,null,null,null,null,null,null,null,null,null,null,null,null,null,null,null,null,null,null,null,null,null,null,null,"-",null,null,null,{"$f":"IF(Z313=\"\",\"\",IF(Z313>AB313,Y313,IF(Z313=AB313,\"\",AC313)))","v":""},{"$f":"IF(Z313=\"\",\"\",IF(Z313=AB313,Y313,\"\"))","v":""},{"$f":"IF(Z313=\"\",\"\",IF(Z313=AB313,AC313,\"\"))","v":""},{"$f":"IF(Z313=\"\",\"\",IF(Z313<AB313,Y313,IF(Z313=AB313,\"\",AC313)))","v":""},{"$f":"IF(Z313=\"\",\"\",IF(Z313>AB313,Y312,\"\"))","v":""},{"$f":"IF(Z313=\"\",\"\",IF(Z313<AB313,AC312,\"\"))","v":""},{"$f":"CONCATENATE(AE313,AH313)","v":""}]
[null,null,null,null,null,null,null,null,null,null,null,null,null,null,null,null,null,null,null,null,null,null,null,null,null,null,"-",null,null,null,{"$f":"IF(Z314=\"\",\"\",IF(Z314>AB314,Y314,IF(Z314=AB314,\"\",AC314)))","v":""},{"$f":"IF(Z314=\"\",\"\",IF(Z314=AB314,Y314,\"\"))","v":""},{"$f":"IF(Z314=\"\",\"\",IF(Z314=AB314,AC314,\"\"))","v":""},{"$f":"IF(Z314=\"\",\"\",IF(Z314<AB314,Y314,IF(Z314=AB314,\"\",AC314)))","v":""},{"$f":"IF(Z314=\"\",\"\",IF(Z314>AB314,Y312,\"\"))","v":""},{"$f":"IF(Z314=\"\",\"\",IF(Z314<AB314,AC312,\"\"))","v":""},{"$f":"CONCATENATE(AE314,AH314)","v":""}]
[null,null,null,null,null,null,null,null,null,null,null,null,null,null,null,null,null,null,null,null,null,null,null,null,null,null,"-",null,null,null,{"$f":"IF(Z315=\"\",\"\",IF(Z315>AB315,Y315,IF(Z315=AB315,\"\",AC315)))","v":""},{"$f":"IF(Z315=\"\",\"\",IF(Z315=AB315,Y315,\"\"))","v":""},{"$f":"IF(Z315=\"\",\"\",IF(Z315=AB315,AC315,\"\"))","v":""},{"$f":"IF(Z315=\"\",\"\",IF(Z315<AB315,Y315,IF(Z315=AB315,\"\",AC315)))","v":""},{"$f":"IF(Z315=\"\",\"\",IF(Z315>AB315,Y312,\"\"))","v":""},{"$f":"IF(Z315=\"\",\"\",IF(Z315<AB315,AC312,\"\"))","v":""},{"$f":"CONCATENATE(AE315,AH315)","v":""}]
[null,null,null,null,null,null,null,null,null,null,null,null,null,null,null,null,null,null,null,null,null,null,null,null,null,null,"-",null,null,null,{"$f":"IF(Z316=\"\",\"\",IF(Z316>AB316,Y316,IF(Z316=AB316,\"\",AC316)))","v":""},{"$f":"IF(Z316=\"\",\"\",IF(Z316=AB316,Y316,\"\"))","v":""},{"$f":"IF(Z316=\"\",\"\",IF(Z316=AB316,AC316,\"\"))","v":""},{"$f":"IF(Z316=\"\",\"\",IF(Z316<AB316,Y316,IF(Z316=AB316,\"\",AC316)))","v":""},{"$f":"IF(Z316=\"\",\"\",IF(Z316>AB316,Y312,\"\"))","v":""},{"$f":"IF(Z316=\"\",\"\",IF(Z316<AB316,AC312,\"\"))","v":""},{"$f":"CONCATENATE(AE316,AH316)","v":""}]
[null,null,null,null,null,null,null,null,null,null,null,null,null,null,null,null,null,null,null,null,null,null,null,{"$f":"N_Substitute","v":"Substitute"}]
[null,null,null,null,null,null,null,null,null,null,null,null,null,null,null,null,null,null,null,null,null,null,null,{"$f":"N_Substitute","v":"Substitute"}]
[null,null,null,null,null,null,null,null,null,null,null,null,null,null,null,null,null,null,null,null,"#G5",null,null,null,{"$f":"IF(G223=\"\",\"\",G223)","v":"Eq3"},{"$f":"IF(OR(ISNUMBER(Z320),ISNUMBER(Z321),ISNUMBER(Z322),ISNUMBER(Z323)),4-COUNTBLANK(AI320:AI323),\"\")","v":""},"-",{"$f":"IF(OR(ISNUMBER(Z320),ISNUMBER(Z321),ISNUMBER(Z322),ISNUMBER(Z323)),4-COUNTBLANK(AJ320:AJ323),\"\")","v":""},{"$f":"IF(G224=\"\",\"\",G224)","v":"Eq4"},null,{"$f":"IF(Z319=\"\",\"\",IF(Z319>AB319,Y319,IF(Z319=AB319,IF(NoDrawWithWithdraw,IF(AL319=Y319,AC319,IF(AL319=AC319,Y319,\"\")),\"\"),AC319)))","v":""},{"$f":"IF(Z319=\"\",\"\",IF(Z319=AB319,IF(NoDrawWithWithdraw,IF(AL319=Y319,\"\",IF(AL319=AC319,\"\",Y319)),Y319),\"\"))","v":""},{"$f":"IF(Z319=\"\",\"\",IF(Z319=AB319,IF(NoDrawWithWithdraw,IF(AL319=Y319,\"\",IF(AL319=AC319,\"\",AC319)),AC319),\"\"))","v":""},{"$f":"IF(Z319=\"\",\"\",IF(Z319<AB319,Y319,IF(Z319=AB319,IF(NoDrawWithWithdraw,IF(AL319=Y319,Y319,IF(AL319=AC319,AC319,\"\")),\"\"),AC319)))","v":""},{"$f":"IF(Z319=\"\",\"\",SUM(Z320:Z323))","v":""},{"$f":"IF(Z319=\"\",\"\",SUM(AB320:AB323))","v":""},{"$f":"CONCATENATE(AE319,AH319)","v":""},{"$f":"IF(COUNTIF(Y320:Y323,WithdrawLabel)>COUNTIF(AC320:AC323,WithdrawLabel),Y319,IF(COUNTIF(AC320:AC323,WithdrawLabel)>COUNTIF(Y320:Y323,WithdrawLabel),AC319,\"\"))","v":""}]
[null,null,null,null,null,null,null,null,null,null,null,null,null,null,null,null,null,null,null,null,null,null,null,null,null,null,"-",null,null,null,{"$f":"IF(Z320=\"\",\"\",IF(Z320>AB320,Y320,IF(Z320=AB320,\"\",AC320)))","v":""},{"$f":"IF(Z320=\"\",\"\",IF(Z320=AB320,Y320,\"\"))","v":""},{"$f":"IF(Z320=\"\",\"\",IF(Z320=AB320,AC320,\"\"))","v":""},{"$f":"IF(Z320=\"\",\"\",IF(Z320<AB320,Y320,IF(Z320=AB320,\"\",AC320)))","v":""},{"$f":"IF(Z320=\"\",\"\",IF(Z320>AB320,Y319,\"\"))","v":""},{"$f":"IF(Z320=\"\",\"\",IF(Z320<AB320,AC319,\"\"))","v":""},{"$f":"CONCATENATE(AE320,AH320)","v":""}]
[null,null,null,null,null,null,null,null,null,null,null,null,null,null,null,null,null,null,null,null,null,null,null,null,null,null,"-",null,null,null,{"$f":"IF(Z321=\"\",\"\",IF(Z321>AB321,Y321,IF(Z321=AB321,\"\",AC321)))","v":""},{"$f":"IF(Z321=\"\",\"\",IF(Z321=AB321,Y321,\"\"))","v":""},{"$f":"IF(Z321=\"\",\"\",IF(Z321=AB321,AC321,\"\"))","v":""},{"$f":"IF(Z321=\"\",\"\",IF(Z321<AB321,Y321,IF(Z321=AB321,\"\",AC321)))","v":""},{"$f":"IF(Z321=\"\",\"\",IF(Z321>AB321,Y319,\"\"))","v":""},{"$f":"IF(Z321=\"\",\"\",IF(Z321<AB321,AC319,\"\"))","v":""},{"$f":"CONCATENATE(AE321,AH321)","v":""}]
[null,null,null,null,null,null,null,null,null,null,null,null,null,null,null,null,null,null,null,null,null,null,null,null,null,null,"-",null,null,null,{"$f":"IF(Z322=\"\",\"\",IF(Z322>AB322,Y322,IF(Z322=AB322,\"\",AC322)))","v":""},{"$f":"IF(Z322=\"\",\"\",IF(Z322=AB322,Y322,\"\"))","v":""},{"$f":"IF(Z322=\"\",\"\",IF(Z322=AB322,AC322,\"\"))","v":""},{"$f":"IF(Z322=\"\",\"\",IF(Z322<AB322,Y322,IF(Z322=AB322,\"\",AC322)))","v":""},{"$f":"IF(Z322=\"\",\"\",IF(Z322>AB322,Y319,\"\"))","v":""},{"$f":"IF(Z322=\"\",\"\",IF(Z322<AB322,AC319,\"\"))","v":""},{"$f":"CONCATENATE(AE322,AH322)","v":""}]
[null,null,null,null,null,null,null,null,null,null,null,null,null,null,null,null,null,null,null,null,null,null,null,null,null,null,"-",null,null,null,{"$f":"IF(Z323=\"\",\"\",IF(Z323>AB323,Y323,IF(Z323=AB323,\"\",AC323)))","v":""},{"$f":"IF(Z323=\"\",\"\",IF(Z323=AB323,Y323,\"\"))","v":""},{"$f":"IF(Z323=\"\",\"\",IF(Z323=AB323,AC323,\"\"))","v":""},{"$f":"IF(Z323=\"\",\"\",IF(Z323<AB323,Y323,IF(Z323=AB323,\"\",AC323)))","v":""},{"$f":"IF(Z323=\"\",\"\",IF(Z323>AB323,Y319,\"\"))","v":""},{"$f":"IF(Z323=\"\",\"\",IF(Z323<AB323,AC319,\"\"))","v":""},{"$f":"CONCATENATE(AE323,AH323)","v":""}]
[null,null,null,null,null,null,null,null,null,null,null,null,null,null,null,null,null,null,null,null,null,null,null,{"$f":"N_Substitute","v":"Substitute"}]
[null,null,null,null,null,null,null,null,null,null,null,null,null,null,null,null,null,null,null,null,null,null,null,{"$f":"N_Substitute","v":"Substitute"}]
[null,null,null,null,null,null,null,null,null,null,null,null,null,null,null,null,null,null,null,null,"#G5",null,null,null,{"$f":"IF(G225=\"\",\"\",G225)","v":"Eq5"},{"$f":"IF(OR(ISNUMBER(Z327),ISNUMBER(Z328),ISNUMBER(Z329),ISNUMBER(Z330)),4-COUNTBLANK(AI327:AI330),\"\")","v":""},"-",{"$f":"IF(OR(ISNUMBER(Z327),ISNUMBER(Z328),ISNUMBER(Z329),ISNUMBER(Z330)),4-COUNTBLANK(AJ327:AJ330),\"\")","v":""},{"$f":"IF(G226=\"\",\"\",G226)","v":"Eq6"},null,{"$f":"IF(Z326=\"\",\"\",IF(Z326>AB326,Y326,IF(Z326=AB326,IF(NoDrawWithWithdraw,IF(AL326=Y326,AC326,IF(AL326=AC326,Y326,\"\")),\"\"),AC326)))","v":""},{"$f":"IF(Z326=\"\",\"\",IF(Z326=AB326,IF(NoDrawWithWithdraw,IF(AL326=Y326,\"\",IF(AL326=AC326,\"\",Y326)),Y326),\"\"))","v":""},{"$f":"IF(Z326=\"\",\"\",IF(Z326=AB326,IF(NoDrawWithWithdraw,IF(AL326=Y326,\"\",IF(AL326=AC326,\"\",AC326)),AC326),\"\"))","v":""},{"$f":"IF(Z326=\"\",\"\",IF(Z326<AB326,Y326,IF(Z326=AB326,IF(NoDrawWithWithdraw,IF(AL326=Y326,Y326,IF(AL326=AC326,AC326,\"\")),\"\"),AC326)))","v":""},{"$f":"IF(Z326=\"\",\"\",SUM(Z327:Z330))","v":""},{"$f":"IF(Z326=\"\",\"\",SUM(AB327:AB330))","v":""},{"$f":"CONCATENATE(AE326,AH326)","v":""},{"$f":"IF(COUNTIF(Y327:Y330,WithdrawLabel)>COUNTIF(AC327:AC330,WithdrawLabel),Y326,IF(COUNTIF(AC327:AC330,WithdrawLabel)>COUNTIF(Y327:Y330,WithdrawLabel),AC326,\"\"))","v":""}]
[null,null,null,null,null,null,null,null,null,null,null,null,null,null,null,null,null,null,null,null,null,null,null,null,null,null,"-",null,null,null,{"$f":"IF(Z327=\"\",\"\",IF(Z327>AB327,Y327,IF(Z327=AB327,\"\",AC327)))","v":""},{"$f":"IF(Z327=\"\",\"\",IF(Z327=AB327,Y327,\"\"))","v":""},{"$f":"IF(Z327=\"\",\"\",IF(Z327=AB327,AC327,\"\"))","v":""},{"$f":"IF(Z327=\"\",\"\",IF(Z327<AB327,Y327,IF(Z327=AB327,\"\",AC327)))","v":""},{"$f":"IF(Z327=\"\",\"\",IF(Z327>AB327,Y326,\"\"))","v":""},{"$f":"IF(Z327=\"\",\"\",IF(Z327<AB327,AC326,\"\"))","v":""},{"$f":"CONCATENATE(AE327,AH327)","v":""}]
[null,null,null,null,null,null,null,null,null,null,null,null,null,null,null,null,null,null,null,null,null,null,null,null,null,null,"-",null,null,null,{"$f":"IF(Z328=\"\",\"\",IF(Z328>AB328,Y328,IF(Z328=AB328,\"\",AC328)))","v":""},{"$f":"IF(Z328=\"\",\"\",IF(Z328=AB328,Y328,\"\"))","v":""},{"$f":"IF(Z328=\"\",\"\",IF(Z328=AB328,AC328,\"\"))","v":""},{"$f":"IF(Z328=\"\",\"\",IF(Z328<AB328,Y328,IF(Z328=AB328,\"\",AC328)))","v":""},{"$f":"IF(Z328=\"\",\"\",IF(Z328>AB328,Y326,\"\"))","v":""},{"$f":"IF(Z328=\"\",\"\",IF(Z328<AB328,AC326,\"\"))","v":""},{"$f":"CONCATENATE(AE328,AH328)","v":""}]
[null,null,null,null,null,null,null,null,null,null,null,null,null,null,null,null,null,null,null,null,null,null,null,null,null,null,"-",null,null,null,{"$f":"IF(Z329=\"\",\"\",IF(Z329>AB329,Y329,IF(Z329=AB329,\"\",AC329)))","v":""},{"$f":"IF(Z329=\"\",\"\",IF(Z329=AB329,Y329,\"\"))","v":""},{"$f":"IF(Z329=\"\",\"\",IF(Z329=AB329,AC329,\"\"))","v":""},{"$f":"IF(Z329=\"\",\"\",IF(Z329<AB329,Y329,IF(Z329=AB329,\"\",AC329)))","v":""},{"$f":"IF(Z329=\"\",\"\",IF(Z329>AB329,Y326,\"\"))","v":""},{"$f":"IF(Z329=\"\",\"\",IF(Z329<AB329,AC326,\"\"))","v":""},{"$f":"CONCATENATE(AE329,AH329)","v":""}]
[null,null,null,null,null,null,null,null,null,null,null,null,null,null,null,null,null,null,null,null,null,null,null,null,null,null,"-",null,null,null,{"$f":"IF(Z330=\"\",\"\",IF(Z330>AB330,Y330,IF(Z330=AB330,\"\",AC330)))","v":""},{"$f":"IF(Z330=\"\",\"\",IF(Z330=AB330,Y330,\"\"))","v":""},{"$f":"IF(Z330=\"\",\"\",IF(Z330=AB330,AC330,\"\"))","v":""},{"$f":"IF(Z330=\"\",\"\",IF(Z330<AB330,Y330,IF(Z330=AB330,\"\",AC330)))","v":""},{"$f":"IF(Z330=\"\",\"\",IF(Z330>AB330,Y326,\"\"))","v":""},{"$f":"IF(Z330=\"\",\"\",IF(Z330<AB330,AC326,\"\"))","v":""},{"$f":"CONCATENATE(AE330,AH330)","v":""}]
[null,null,null,null,null,null,null,null,null,null,null,null,null,null,null,null,null,null,null,null,null,null,null,{"$f":"N_Substitute","v":"Substitute"}]
[null,null,null,null,null,null,null,null,null,null,null,null,null,null,null,null,null,null,null,null,null,null,null,{"$f":"N_Substitute","v":"Substitute"}]
[]
[]
[null,{"$f":"N_Group_7","v":"Group of 7"},null,null,null,null,null,null,null,null,null,null,null,null,null,null,null,null,null,null,null,null,null,null,null,null,null,null,null,null,null,null,null,null,null,null,null,null,null,{"$f":"B335","v":"Group of 7"}]
[]
[null,{"$f":"N_Tirage","v":"Draw"},"Cla.","Cla1","Part","Cla2",{"$f":"N_Equipes","v":"Teams"},{"$f":"N_Pts","v":"Pts"},{"$f":"N_J","v":"Pld"},{"$f":"N_G","v":"W"},{"$f":"N_N","v":"D"},{"$f":"N_P","v":"L"},{"$f":"N_Diff_R","v":"ED"},{"$f":"N_MP","v":"WM"},{"$f":"N_MC","v":"LM"},{"$f":"N_Diff_M","v":"MD"},{"$f":"N_BP","v":"F"},{"$f":"N_BC","v":"A"},{"$f":"N_Diff_B","v":"GD"},null,null,null,null,null,null,null,null,null,null,null,null,null,null,null,null,null,null,null,null,null,{"$f":"N_Cla.","v":"Rk"},{"$f":"N_Equipes","v":"Teams"},{"$f":"N_Pts","v":"Pts"},{"$f":"N_J","v":"Pld"},{"$f":"N_G","v":"W"},{"$f":"N_N","v":"D"},{"$f":"N_P","v":"L"},{"$f":"N_Diff_R","v":"ED"},{"$f":"N_MP","v":"WM"},{"$f":"N_MC","v":"LM"},{"$f":"N_Diff_M","v":"MD"},{"$f":"N_BP","v":"F"},{"$f":"N_BC","v":"A"},{"$f":"N_Diff_B","v":"GD"},{"$f":"N_Matches","v":"Matches"}]
[null,1,{"$f":"IF(AL345=\"\",\"\",RANK(F338,F338:F344)*1000+ROW())","v":""},{"$f":"IF(J338=\"\",\"\",H338*CritClassEq1_Points+M338*CritClassEq1_DiffRencontres+P338*CritClassEq1_DiffMatches+S338*CritClassEq1_DiffButs+N338*CritClassEq1_Matches+Q338*CritClassEq1_Attaque)","v":""},{"$f":"IF(J338=\"\",\"\",Nb_Diff_Part(D338,D338:D344,G338,G338:G344,AK346:AK486)*CritClassEq_DiffPart+Nb_Goal_Part(D338,D338:D344,G338,G338:G344,Y346:AC486)*CritClassEq_IndsPart+Nb_Score_Part(D338,D338:D344,G338,G338:G344,Y346:AC486)*CritClassEq_WinsPart+Nb_GoalTeam_Part(D338,D338:D344,G338,G338:G344,Y346:AC486)*CritClassEq_GoalPart+Nb_ScoreTeam_Part(D338,D338:D344,G338,G338:G344,Y346:AC486)*CritClassEq_ScorePart)","v":""},{"$f":"IF(J338=\"\",\"\",D338+E338+H338*CritClassEq2_Points+M338*CritClassEq2_DiffRencontres+P338*CritClassEq2_DiffMatches+S338*CritClassEq2_DiffButs+N338*CritClassEq2_Matches+Q338*CritClassEq2_Attaque)","v":""},"Eq1",{"$f":"IF(AL345=\"\",\"\",(J338*Points_Victoire)+K338*Points_Null)","v":""},{"$f":"IF(J338=\"\",\"\",SUM(J338:L338))","v":""},{"$f":"IF(AL345=\"\",\"\",COUNTIF(AE346:AE490,G338))","v":""},{"$f":"IF(AL345=\"\",\"\",COUNTIF(AF346:AG490,G338))","v":""},{"$f":"IF(AL345=\"\",\"\",COUNTIF(AH346:AH490,G338))","v":""},{"$f":"IF(AL345=\"\",\"\",J338-L338)","v":""},{"$f":"IF(AL345=\"\",\"\",SUMIF(Y346:Y490,G338,Z346:Z490)+SUMIF(AC346:AC490,G338,AB346:AB490))","v":""},{"$f":"IF(AL345=\"\",\"\",SUMIF(Y346:Y490,G338,AB346:AB490)+SUMIF(AC346:AC490,G338,Z346:AL490))","v":""},{"$f":"IF(AL345=\"\",\"\",N338-O338)","v":""},{"$f":"IF(AL345=\"\",\"\",SUMIF(Y346:Y490,G338,AI346:AI490)+SUMIF(AC346:AC490,G338,AJ346:AJ490))","v":""},{"$f":"IF(AL345=\"\",\"\",SUMIF(Y346:Y490,G338,AJ346:AJ490)+SUMIF(AC346:AC490,G338,AI346:AI490))","v":""},{"$f":"IF(AL345=\"\",\"\",Q338-R338)","v":""},null,null,null,null,null,null,null,null,null,null,null,null,null,null,null,null,null,null,{"$f":"IF(AL345=\"\",\"\",SMALL(C338:C344,1))","v":""},null,null,{"$f":"IF(AL345=\"\",\"\",INT(AL338/1000))","v":""},{"$f":"IF(AL345=\"\",IF(HidePlayerFormulas,\"\",\"(\"&G338&\")\"),VLOOKUP(AL338,C338:S344,5,FALSE))","v":""},{"$f":"VLOOKUP(AL338,C338:S344,6,FALSE)","v":""},{"$f":"VLOOKUP(AL338,C338:S344,7,FALSE)","v":""},{"$f":"VLOOKUP(AL338,C338:S344,8,FALSE)","v":""},{"$f":"VLOOKUP(AL338,C338:S344,9,FALSE)","v":""},{"$f":"VLOOKUP(AL338,C338:S344,10,FALSE)","v":""},{"$f":"VLOOKUP(AL338,C338:S344,11,FALSE)","v":""},{"$f":"VLOOKUP(AL338,C338:S344,12,FALSE)","v":""},{"$f":"VLOOKUP(AL338,C338:S344,13,FALSE)","v":""},{"$f":"VLOOKUP(AL338,C338:S344,14,FALSE)","v":""},{"$f":"VLOOKUP(AL338,C338:S344,15,FALSE)","v":""},{"$f":"VLOOKUP(AL338,C338:S344,16,FALSE)","v":""},{"$f":"VLOOKUP(AL338,C338:S344,17,FALSE)","v":""},{"$f":"IF(Z346=\"\",\"\",IF(AP338=Y346,Z346&\"(\"&SUM(Z347:Z350)&\")\",IF(AP338=AC346,AB346&\"(\"&SUM(AB347:AB350)&\")\",\"\")))","v":""},{"$f":"IF(Z353=\"\",\"\",IF(AP338=Y353,Z353&\"(\"&SUM(Z354:Z357)&\")\",IF(AP338=AC353,AB353&\"(\"&SUM(AB354:AB357)&\")\",\"\")))","v":""},{"$f":"IF(Z360=\"\",\"\",IF(AP338=Y360,Z360&\"(\"&SUM(Z361:Z364)&\")\",IF(AP338=AC360,AB360&\"(\"&SUM(AB361:AB364)&\")\",\"\")))","v":""},{"$f":"IF(Z367=\"\",\"\",IF(AP338=Y367,Z367&\"(\"&SUM(Z368:Z371)&\")\",IF(AP338=AC367,AB367&\"(\"&SUM(AB368:AB371)&\")\",\"\")))","v":""},{"$f":"IF(Z374=\"\",\"\",IF(AP338=Y374,Z374&\"(\"&SUM(Z375:Z378)&\")\",IF(AP338=AC374,AB374&\"(\"&SUM(AB375:AB378)&\")\",\"\")))","v":""},{"$f":"IF(Z381=\"\",\"\",IF(AP338=Y381,Z381&\"(\"&SUM(Z382:Z385)&\")\",IF(AP338=AC381,AB381&\"(\"&SUM(AB382:AB385)&\")\",\"\")))","v":""},{"$f":"IF(Z388=\"\",\"\",IF(AP338=Y388,Z388&\"(\"&SUM(Z389:Z392)&\")\",IF(AP338=AC388,AB388&\"(\"&SUM(AB389:AB392)&\")\",\"\")))","v":""},{"$f":"IF(Z395=\"\",\"\",IF(AP338=Y395,Z395&\"(\"&SUM(Z396:Z399)&\")\",IF(AP338=AC395,AB395&\"(\"&SUM(AB396:AB399)&\")\",\"\")))","v":""},{"$f":"IF(Z402=\"\",\"\",IF(AP338=Y402,Z402&\"(\"&SUM(Z403:Z406)&\")\",IF(AP338=AC402,AB402&\"(\"&SUM(AB403:AB406)&\")\",\"\")))","v":""},{"$f":"IF(Z409=\"\",\"\",IF(AP338=Y409,Z409&\"(\"&SUM(Z410:Z413)&\")\",IF(AP338=AC409,AB409&\"(\"&SUM(AB410:AB413)&\")\",\"\")))","v":""},{"$f":"IF(Z416=\"\",\"\",IF(AP338=Y416,Z416&\"(\"&SUM(Z417:Z420)&\")\",IF(AP338=AC416,AB416&\"(\"&SUM(AB417:AB420)&\")\",\"\")))","v":""},{"$f":"IF(Z423=\"\",\"\",IF(AP338=Y423,Z423&\"(\"&SUM(Z424:Z427)&\")\",IF(AP338=AC423,AB423&\"(\"&SUM(AB424:AB427)&\")\",\"\")))","v":""},{"$f":"IF(Z430=\"\",\"\",IF(AP338=Y430,Z430&\"(\"&SUM(Z431:Z434)&\")\",IF(AP338=AC430,AB430&\"(\"&SUM(AB431:AB434)&\")\",\"\")))","v":""},{"$f":"IF(Z437=\"\",\"\",IF(AP338=Y437,Z437&\"(\"&SUM(Z438:Z441)&\")\",IF(AP338=AC437,AB437&\"(\"&SUM(AB438:AB441)&\")\",\"\")))","v":""},{"$f":"IF(Z444=\"\",\"\",IF(AP338=Y444,Z444&\"(\"&SUM(Z445:Z448)&\")\",IF(AP338=AC444,AB444&\"(\"&SUM(AB445:AB448)&\")\",\"\")))","v":""},{"$f":"IF(Z451=\"\",\"\",IF(AP338=Y451,Z451&\"(\"&SUM(Z452:Z455)&\")\",IF(AP338=AC451,AB451&\"(\"&SUM(AB452:AB455)&\")\",\"\")))","v":""},{"$f":"IF(Z458=\"\",\"\",IF(AP338=Y458,Z458&\"(\"&SUM(Z459:Z462)&\")\",IF(AP338=AC458,AB458&\"(\"&SUM(AB459:AB462)&\")\",\"\")))","v":""},{"$f":"IF(Z465=\"\",\"\",IF(AP338=Y465,Z465&\"(\"&SUM(Z466:Z469)&\")\",IF(AP338=AC465,AB465&\"(\"&SUM(AB466:AB469)&\")\",\"\")))","v":""},{"$f":"IF(Z472=\"\",\"\",IF(AP338=Y472,Z472&\"(\"&SUM(Z473:Z476)&\")\",IF(AP338=AC472,AB472&\"(\"&SUM(AB473:AB476)&\")\",\"\")))","v":""},{"$f":"IF(Z479=\"\",\"\",IF(AP338=Y479,Z479&\"(\"&SUM(Z480:Z483)&\")\",IF(AP338=AC479,AB479&\"(\"&SUM(AB480:AB483)&\")\",\"\")))","v":""},{"$f":"IF(Z486=\"\",\"\",IF(AP338=Y486,Z486&\"(\"&SUM(Z487:Z490)&\")\",IF(AP338=AC486,AB486&\"(\"&SUM(AB487:AB490)&\")\",\"\")))","v":""},null,null,null,null,null,null,null,{"$f":"IF(G338=\"[---WithDraw---]\",FALSE,IF(COUNTIF(PlayerNamesWithinGroups,G338)>1,TRUE,FALSE))","v":true},{"$f":"AND(LEFT($AP338,1) = \"(\", RIGHT($AP338,1) =\")\")","v":false},{"$f":"IF(OR($AO338=$AO337,$AO338=$AO339),TRUE,FALSE)","v":true}]
[null,2,{"$f":"IF(AL345=\"\",\"\",RANK(F339,F338:F344)*1000+ROW())","v":""},"",{"$f":"IF(J339=\"\",\"\",Nb_Diff_Part(D339,D338:D344,G339,G338:G344,AK346:AK486)*CritClassEq_DiffPart+Nb_Goal_Part(D339,D338:D344,G339,G338:G344,Y346:AC486)*CritClassEq_IndsPart+Nb_Score_Part(D339,D338:D344,G339,G338:G344,Y346:AC486)*CritClassEq_WinsPart+Nb_GoalTeam_Part(D339,D338:D344,G339,G338:G344,Y346:AC486)*CritClassEq_GoalPart+Nb_ScoreTeam_Part(D339,D338:D344,G339,G338:G344,Y346:AC486)*CritClassEq_ScorePart)","v":""},"","Eq2",{"$f":"IF(AL345=\"\",\"\",(J339*Points_Victoire)+K339*Points_Null)","v":""},"",{"$f":"IF(AL345=\"\",\"\",COUNTIF(AE346:AE490,G339))","v":""},{"$f":"IF(AL345=\"\",\"\",COUNTIF(AF346:AG490,G339))","v":""},{"$f":"IF(AL345=\"\",\"\",COUNTIF(AH346:AH490,G339))","v":""},{"$f":"IF(AL345=\"\",\"\",J339-L339)","v":""},{"$f":"IF(AL345=\"\",\"\",SUMIF(Y346:Y490,G339,Z346:Z490)+SUMIF(AC346:AC490,G339,AB346:AB490))","v":""},{"$f":"IF(AL345=\"\",\"\",SUMIF(Y346:Y490,G339,AB346:AB490)+SUMIF(AC346:AC490,G339,Z346:AL490))","v":""},{"$f":"IF(AL345=\"\",\"\",N339-O339)","v":""},{"$f":"IF(AL345=\"\",\"\",SUMIF(Y346:Y490,G339,AI346:AI490)+SUMIF(AC346:AC490,G339,AJ346:AJ490))","v":""},{"$f":"IF(AL345=\"\",\"\",SUMIF(Y346:Y490,G339,AJ346:AJ490)+SUMIF(AC346:AC490,G339,AI346:AI490))","v":""},{"$f":"IF(AL345=\"\",\"\",Q339-R339)","v":""},null,null,null,null,null,null,null,null,null,null,null,null,null,null,null,null,null,null,{"$f":"IF(AL345=\"\",\"\",SMALL(C338:C344,2))","v":""},null,null,{"$f":"IF(AL345=\"\",\"\",INT(AL339/1000))","v":""},{"$f":"IF(AL345=\"\",IF(HidePlayerFormulas,\"\",\"(\"&G339&\")\"),VLOOKUP(AL339,C338:S344,5,FALSE))","v":""},{"$f":"VLOOKUP(AL339,C338:S344,6,FALSE)","v":""},{"$f":"VLOOKUP(AL339,C338:S344,7,FALSE)","v":""},{"$f":"VLOOKUP(AL339,C338:S344,8,FALSE)","v":""},{"$f":"VLOOKUP(AL339,C338:S344,9,FALSE)","v":""},{"$f":"VLOOKUP(AL339,C338:S344,10,FALSE)","v":""},{"$f":"VLOOKUP(AL339,C338:S344,11,FALSE)","v":""},{"$f":"VLOOKUP(AL339,C338:S344,12,FALSE)","v":""},{"$f":"VLOOKUP(AL339,C338:S344,13,FALSE)","v":""},{"$f":"VLOOKUP(AL339,C338:S344,14,FALSE)","v":""},{"$f":"VLOOKUP(AL339,C338:S344,15,FALSE)","v":""},{"$f":"VLOOKUP(AL339,C338:S344,16,FALSE)","v":""},{"$f":"VLOOKUP(AL339,C338:S344,17,FALSE)","v":""},{"$f":"IF(Z346=\"\",\"\",IF(AP339=Y346,Z346&\"(\"&SUM(Z347:Z350)&\")\",IF(AP339=AC346,AB346&\"(\"&SUM(AB347:AB350)&\")\",\"\")))","v":""},{"$f":"IF(Z353=\"\",\"\",IF(AP339=Y353,Z353&\"(\"&SUM(Z354:Z357)&\")\",IF(AP339=AC353,AB353&\"(\"&SUM(AB354:AB357)&\")\",\"\")))","v":""},{"$f":"IF(Z360=\"\",\"\",IF(AP339=Y360,Z360&\"(\"&SUM(Z361:Z364)&\")\",IF(AP339=AC360,AB360&\"(\"&SUM(AB361:AB364)&\")\",\"\")))","v":""},{"$f":"IF(Z367=\"\",\"\",IF(AP339=Y367,Z367&\"(\"&SUM(Z368:Z371)&\")\",IF(AP339=AC367,AB367&\"(\"&SUM(AB368:AB371)&\")\",\"\")))","v":""},{"$f":"IF(Z374=\"\",\"\",IF(AP339=Y374,Z374&\"(\"&SUM(Z375:Z378)&\")\",IF(AP339=AC374,AB374&\"(\"&SUM(AB375:AB378)&\")\",\"\")))","v":""},{"$f":"IF(Z381=\"\",\"\",IF(AP339=Y381,Z381&\"(\"&SUM(Z382:Z385)&\")\",IF(AP339=AC381,AB381&\"(\"&SUM(AB382:AB385)&\")\",\"\")))","v":""},{"$f":"IF(Z388=\"\",\"\",IF(AP339=Y388,Z388&\"(\"&SUM(Z389:Z392)&\")\",IF(AP339=AC388,AB388&\"(\"&SUM(AB389:AB392)&\")\",\"\")))","v":""},{"$f":"IF(Z395=\"\",\"\",IF(AP339=Y395,Z395&\"(\"&SUM(Z396:Z399)&\")\",IF(AP339=AC395,AB395&\"(\"&SUM(AB396:AB399)&\")\",\"\")))","v":""},{"$f":"IF(Z402=\"\",\"\",IF(AP339=Y402,Z402&\"(\"&SUM(Z403:Z406)&\")\",IF(AP339=AC402,AB402&\"(\"&SUM(AB403:AB406)&\")\",\"\")))","v":""},{"$f":"IF(Z409=\"\",\"\",IF(AP339=Y409,Z409&\"(\"&SUM(Z410:Z413)&\")\",IF(AP339=AC409,AB409&\"(\"&SUM(AB410:AB413)&\")\",\"\")))","v":""},{"$f":"IF(Z416=\"\",\"\",IF(AP339=Y416,Z416&\"(\"&SUM(Z417:Z420)&\")\",IF(AP339=AC416,AB416&\"(\"&SUM(AB417:AB420)&\")\",\"\")))","v":""},{"$f":"IF(Z423=\"\",\"\",IF(AP339=Y423,Z423&\"(\"&SUM(Z424:Z427)&\")\",IF(AP339=AC423,AB423&\"(\"&SUM(AB424:AB427)&\")\",\"\")))","v":""},{"$f":"IF(Z430=\"\",\"\",IF(AP339=Y430,Z430&\"(\"&SUM(Z431:Z434)&\")\",IF(AP339=AC430,AB430&\"(\"&SUM(AB431:AB434)&\")\",\"\")))","v":""},{"$f":"IF(Z437=\"\",\"\",IF(AP339=Y437,Z437&\"(\"&SUM(Z438:Z441)&\")\",IF(AP339=AC437,AB437&\"(\"&SUM(AB438:AB441)&\")\",\"\")))","v":""},{"$f":"IF(Z444=\"\",\"\",IF(AP339=Y444,Z444&\"(\"&SUM(Z445:Z448)&\")\",IF(AP339=AC444,AB444&\"(\"&SUM(AB445:AB448)&\")\",\"\")))","v":""},{"$f":"IF(Z451=\"\",\"\",IF(AP339=Y451,Z451&\"(\"&SUM(Z452:Z455)&\")\",IF(AP339=AC451,AB451&\"(\"&SUM(AB452:AB455)&\")\",\"\")))","v":""},{"$f":"IF(Z458=\"\",\"\",IF(AP339=Y458,Z458&\"(\"&SUM(Z459:Z462)&\")\",IF(AP339=AC458,AB458&\"(\"&SUM(AB459:AB462)&\")\",\"\")))","v":""},{"$f":"IF(Z465=\"\",\"\",IF(AP339=Y465,Z465&\"(\"&SUM(Z466:Z469)&\")\",IF(AP339=AC465,AB465&\"(\"&SUM(AB466:AB469)&\")\",\"\")))","v":""},{"$f":"IF(Z472=\"\",\"\",IF(AP339=Y472,Z472&\"(\"&SUM(Z473:Z476)&\")\",IF(AP339=AC472,AB472&\"(\"&SUM(AB473:AB476)&\")\",\"\")))","v":""},{"$f":"IF(Z479=\"\",\"\",IF(AP339=Y479,Z479&\"(\"&SUM(Z480:Z483)&\")\",IF(AP339=AC479,AB479&\"(\"&SUM(AB480:AB483)&\")\",\"\")))","v":""},{"$f":"IF(Z486=\"\",\"\",IF(AP339=Y486,Z486&\"(\"&SUM(Z487:Z490)&\")\",IF(AP339=AC486,AB486&\"(\"&SUM(AB487:AB490)&\")\",\"\")))","v":""},null,null,null,null,null,null,null,true,false,true]
[null,3,{"$f":"IF(AL345=\"\",\"\",RANK(F340,F338:F344)*1000+ROW())","v":""},"",{"$f":"IF(J340=\"\",\"\",Nb_Diff_Part(D340,D338:D344,G340,G338:G344,AK346:AK486)*CritClassEq_DiffPart+Nb_Goal_Part(D340,D338:D344,G340,G338:G344,Y346:AC486)*CritClassEq_IndsPart+Nb_Score_Part(D340,D338:D344,G340,G338:G344,Y346:AC486)*CritClassEq_WinsPart+Nb_GoalTeam_Part(D340,D338:D344,G340,G338:G344,Y346:AC486)*CritClassEq_GoalPart+Nb_ScoreTeam_Part(D340,D338:D344,G340,G338:G344,Y346:AC486)*CritClassEq_ScorePart)","v":""},"","Eq3",{"$f":"IF(AL345=\"\",\"\",(J340*Points_Victoire)+K340*Points_Null)","v":""},"",{"$f":"IF(AL345=\"\",\"\",COUNTIF(AE346:AE490,G340))","v":""},{"$f":"IF(AL345=\"\",\"\",COUNTIF(AF346:AG490,G340))","v":""},{"$f":"IF(AL345=\"\",\"\",COUNTIF(AH346:AH490,G340))","v":""},{"$f":"IF(AL345=\"\",\"\",J340-L340)","v":""},{"$f":"IF(AL345=\"\",\"\",SUMIF(Y346:Y490,G340,Z346:Z490)+SUMIF(AC346:AC490,G340,AB346:AB490))","v":""},{"$f":"IF(AL345=\"\",\"\",SUMIF(Y346:Y490,G340,AB346:AB490)+SUMIF(AC346:AC490,G340,Z346:AL490))","v":""},{"$f":"IF(AL345=\"\",\"\",N340-O340)","v":""},{"$f":"IF(AL345=\"\",\"\",SUMIF(Y346:Y490,G340,AI346:AI490)+SUMIF(AC346:AC490,G340,AJ346:AJ490))","v":""},{"$f":"IF(AL345=\"\",\"\",SUMIF(Y346:Y490,G340,AJ346:AJ490)+SUMIF(AC346:AC490,G340,AI346:AI490))","v":""},{"$f":"IF(AL345=\"\",\"\",Q340-R340)","v":""},null,null,null,null,null,null,null,null,null,null,null,null,null,null,null,null,null,null,{"$f":"IF(AL345=\"\",\"\",SMALL(C338:C344,3))","v":""},null,null,{"$f":"IF(AL345=\"\",\"\",INT(AL340/1000))","v":""},{"$f":"IF(AL345=\"\",IF(HidePlayerFormulas,\"\",\"(\"&G340&\")\"),VLOOKUP(AL340,C338:S344,5,FALSE))","v":""},{"$f":"VLOOKUP(AL340,C338:S344,6,FALSE)","v":""},{"$f":"VLOOKUP(AL340,C338:S344,7,FALSE)","v":""},{"$f":"VLOOKUP(AL340,C338:S344,8,FALSE)","v":""},{"$f":"VLOOKUP(AL340,C338:S344,9,FALSE)","v":""},{"$f":"VLOOKUP(AL340,C338:S344,10,FALSE)","v":""},{"$f":"VLOOKUP(AL340,C338:S344,11,FALSE)","v":""},{"$f":"VLOOKUP(AL340,C338:S344,12,FALSE)","v":""},{"$f":"VLOOKUP(AL340,C338:S344,13,FALSE)","v":""},{"$f":"VLOOKUP(AL340,C338:S344,14,FALSE)","v":""},{"$f":"VLOOKUP(AL340,C338:S344,15,FALSE)","v":""},{"$f":"VLOOKUP(AL340,C338:S344,16,FALSE)","v":""},{"$f":"VLOOKUP(AL340,C338:S344,17,FALSE)","v":""},{"$f":"IF(Z346=\"\",\"\",IF(AP340=Y346,Z346&\"(\"&SUM(Z347:Z350)&\")\",IF(AP340=AC346,AB346&\"(\"&SUM(AB347:AB350)&\")\",\"\")))","v":""},{"$f":"IF(Z353=\"\",\"\",IF(AP340=Y353,Z353&\"(\"&SUM(Z354:Z357)&\")\",IF(AP340=AC353,AB353&\"(\"&SUM(AB354:AB357)&\")\",\"\")))","v":""},{"$f":"IF(Z360=\"\",\"\",IF(AP340=Y360,Z360&\"(\"&SUM(Z361:Z364)&\")\",IF(AP340=AC360,AB360&\"(\"&SUM(AB361:AB364)&\")\",\"\")))","v":""},{"$f":"IF(Z367=\"\",\"\",IF(AP340=Y367,Z367&\"(\"&SUM(Z368:Z371)&\")\",IF(AP340=AC367,AB367&\"(\"&SUM(AB368:AB371)&\")\",\"\")))","v":""},{"$f":"IF(Z374=\"\",\"\",IF(AP340=Y374,Z374&\"(\"&SUM(Z375:Z378)&\")\",IF(AP340=AC374,AB374&\"(\"&SUM(AB375:AB378)&\")\",\"\")))","v":""},{"$f":"IF(Z381=\"\",\"\",IF(AP340=Y381,Z381&\"(\"&SUM(Z382:Z385)&\")\",IF(AP340=AC381,AB381&\"(\"&SUM(AB382:AB385)&\")\",\"\")))","v":""},{"$f":"IF(Z388=\"\",\"\",IF(AP340=Y388,Z388&\"(\"&SUM(Z389:Z392)&\")\",IF(AP340=AC388,AB388&\"(\"&SUM(AB389:AB392)&\")\",\"\")))","v":""},{"$f":"IF(Z395=\"\",\"\",IF(AP340=Y395,Z395&\"(\"&SUM(Z396:Z399)&\")\",IF(AP340=AC395,AB395&\"(\"&SUM(AB396:AB399)&\")\",\"\")))","v":""},{"$f":"IF(Z402=\"\",\"\",IF(AP340=Y402,Z402&\"(\"&SUM(Z403:Z406)&\")\",IF(AP340=AC402,AB402&\"(\"&SUM(AB403:AB406)&\")\",\"\")))","v":""},{"$f":"IF(Z409=\"\",\"\",IF(AP340=Y409,Z409&\"(\"&SUM(Z410:Z413)&\")\",IF(AP340=AC409,AB409&\"(\"&SUM(AB410:AB413)&\")\",\"\")))","v":""},{"$f":"IF(Z416=\"\",\"\",IF(AP340=Y416,Z416&\"(\"&SUM(Z417:Z420)&\")\",IF(AP340=AC416,AB416&\"(\"&SUM(AB417:AB420)&\")\",\"\")))","v":""},{"$f":"IF(Z423=\"\",\"\",IF(AP340=Y423,Z423&\"(\"&SUM(Z424:Z427)&\")\",IF(AP340=AC423,AB423&\"(\"&SUM(AB424:AB427)&\")\",\"\")))","v":""},{"$f":"IF(Z430=\"\",\"\",IF(AP340=Y430,Z430&\"(\"&SUM(Z431:Z434)&\")\",IF(AP340=AC430,AB430&\"(\"&SUM(AB431:AB434)&\")\",\"\")))","v":""},{"$f":"IF(Z437=\"\",\"\",IF(AP340=Y437,Z437&\"(\"&SUM(Z438:Z441)&\")\",IF(AP340=AC437,AB437&\"(\"&SUM(AB438:AB441)&\")\",\"\")))","v":""},{"$f":"IF(Z444=\"\",\"\",IF(AP340=Y444,Z444&\"(\"&SUM(Z445:Z448)&\")\",IF(AP340=AC444,AB444&\"(\"&SUM(AB445:AB448)&\")\",\"\")))","v":""},{"$f":"IF(Z451=\"\",\"\",IF(AP340=Y451,Z451&\"(\"&SUM(Z452:Z455)&\")\",IF(AP340=AC451,AB451&\"(\"&SUM(AB452:AB455)&\")\",\"\")))","v":""},{"$f":"IF(Z458=\"\",\"\",IF(AP340=Y458,Z458&\"(\"&SUM(Z459:Z462)&\")\",IF(AP340=AC458,AB458&\"(\"&SUM(AB459:AB462)&\")\",\"\")))","v":""},{"$f":"IF(Z465=\"\",\"\",IF(AP340=Y465,Z465&\"(\"&SUM(Z466:Z469)&\")\",IF(AP340=AC465,AB465&\"(\"&SUM(AB466:AB469)&\")\",\"\")))","v":""},{"$f":"IF(Z472=\"\",\"\",IF(AP340=Y472,Z472&\"(\"&SUM(Z473:Z476)&\")\",IF(AP340=AC472,AB472&\"(\"&SUM(AB473:AB476)&\")\",\"\")))","v":""},{"$f":"IF(Z479=\"\",\"\",IF(AP340=Y479,Z479&\"(\"&SUM(Z480:Z483)&\")\",IF(AP340=AC479,AB479&\"(\"&SUM(AB480:AB483)&\")\",\"\")))","v":""},{"$f":"IF(Z486=\"\",\"\",IF(AP340=Y486,Z486&\"(\"&SUM(Z487:Z490)&\")\",IF(AP340=AC486,AB486&\"(\"&SUM(AB487:AB490)&\")\",\"\")))","v":""},null,null,null,null,null,null,null,true,false,true]
[null,4,{"$f":"IF(AL345=\"\",\"\",RANK(F341,F338:F344)*1000+ROW())","v":""},"",{"$f":"IF(J341=\"\",\"\",Nb_Diff_Part(D341,D338:D344,G341,G338:G344,AK346:AK486)*CritClassEq_DiffPart+Nb_Goal_Part(D341,D338:D344,G341,G338:G344,Y346:AC486)*CritClassEq_IndsPart+Nb_Score_Part(D341,D338:D344,G341,G338:G344,Y346:AC486)*CritClassEq_WinsPart+Nb_GoalTeam_Part(D341,D338:D344,G341,G338:G344,Y346:AC486)*CritClassEq_GoalPart+Nb_ScoreTeam_Part(D341,D338:D344,G341,G338:G344,Y346:AC486)*CritClassEq_ScorePart)","v":""},"","Eq4",{"$f":"IF(AL345=\"\",\"\",(J341*Points_Victoire)+K341*Points_Null)","v":""},"",{"$f":"IF(AL345=\"\",\"\",COUNTIF(AE346:AE490,G341))","v":""},{"$f":"IF(AL345=\"\",\"\",COUNTIF(AF346:AG490,G341))","v":""},{"$f":"IF(AL345=\"\",\"\",COUNTIF(AH346:AH490,G341))","v":""},{"$f":"IF(AL345=\"\",\"\",J341-L341)","v":""},{"$f":"IF(AL345=\"\",\"\",SUMIF(Y346:Y490,G341,Z346:Z490)+SUMIF(AC346:AC490,G341,AB346:AB490))","v":""},{"$f":"IF(AL345=\"\",\"\",SUMIF(Y346:Y490,G341,AB346:AB490)+SUMIF(AC346:AC490,G341,Z346:AL490))","v":""},{"$f":"IF(AL345=\"\",\"\",N341-O341)","v":""},{"$f":"IF(AL345=\"\",\"\",SUMIF(Y346:Y490,G341,AI346:AI490)+SUMIF(AC346:AC490,G341,AJ346:AJ490))","v":""},{"$f":"IF(AL345=\"\",\"\",SUMIF(Y346:Y490,G341,AJ346:AJ490)+SUMIF(AC346:AC490,G341,AI346:AI490))","v":""},{"$f":"IF(AL345=\"\",\"\",Q341-R341)","v":""},null,null,null,null,null,null,null,null,null,null,null,null,null,null,null,null,null,null,{"$f":"IF(AL345=\"\",\"\",SMALL(C338:C344,4))","v":""},null,null,{"$f":"IF(AL345=\"\",\"\",INT(AL341/1000))","v":""},{"$f":"IF(AL345=\"\",IF(HidePlayerFormulas,\"\",\"(\"&G341&\")\"),VLOOKUP(AL341,C338:S344,5,FALSE))","v":""},{"$f":"VLOOKUP(AL341,C338:S344,6,FALSE)","v":""},{"$f":"VLOOKUP(AL341,C338:S344,7,FALSE)","v":""},{"$f":"VLOOKUP(AL341,C338:S344,8,FALSE)","v":""},{"$f":"VLOOKUP(AL341,C338:S344,9,FALSE)","v":""},{"$f":"VLOOKUP(AL341,C338:S344,10,FALSE)","v":""},{"$f":"VLOOKUP(AL341,C338:S344,11,FALSE)","v":""},{"$f":"VLOOKUP(AL341,C338:S344,12,FALSE)","v":""},{"$f":"VLOOKUP(AL341,C338:S344,13,FALSE)","v":""},{"$f":"VLOOKUP(AL341,C338:S344,14,FALSE)","v":""},{"$f":"VLOOKUP(AL341,C338:S344,15,FALSE)","v":""},{"$f":"VLOOKUP(AL341,C338:S344,16,FALSE)","v":""},{"$f":"VLOOKUP(AL341,C338:S344,17,FALSE)","v":""},{"$f":"IF(Z346=\"\",\"\",IF(AP341=Y346,Z346&\"(\"&SUM(Z347:Z350)&\")\",IF(AP341=AC346,AB346&\"(\"&SUM(AB347:AB350)&\")\",\"\")))","v":""},{"$f":"IF(Z353=\"\",\"\",IF(AP341=Y353,Z353&\"(\"&SUM(Z354:Z357)&\")\",IF(AP341=AC353,AB353&\"(\"&SUM(AB354:AB357)&\")\",\"\")))","v":""},{"$f":"IF(Z360=\"\",\"\",IF(AP341=Y360,Z360&\"(\"&SUM(Z361:Z364)&\")\",IF(AP341=AC360,AB360&\"(\"&SUM(AB361:AB364)&\")\",\"\")))","v":""},{"$f":"IF(Z367=\"\",\"\",IF(AP341=Y367,Z367&\"(\"&SUM(Z368:Z371)&\")\",IF(AP341=AC367,AB367&\"(\"&SUM(AB368:AB371)&\")\",\"\")))","v":""},{"$f":"IF(Z374=\"\",\"\",IF(AP341=Y374,Z374&\"(\"&SUM(Z375:Z378)&\")\",IF(AP341=AC374,AB374&\"(\"&SUM(AB375:AB378)&\")\",\"\")))","v":""},{"$f":"IF(Z381=\"\",\"\",IF(AP341=Y381,Z381&\"(\"&SUM(Z382:Z385)&\")\",IF(AP341=AC381,AB381&\"(\"&SUM(AB382:AB385)&\")\",\"\")))","v":""},{"$f":"IF(Z388=\"\",\"\",IF(AP341=Y388,Z388&\"(\"&SUM(Z389:Z392)&\")\",IF(AP341=AC388,AB388&\"(\"&SUM(AB389:AB392)&\")\",\"\")))","v":""},{"$f":"IF(Z395=\"\",\"\",IF(AP341=Y395,Z395&\"(\"&SUM(Z396:Z399)&\")\",IF(AP341=AC395,AB395&\"(\"&SUM(AB396:AB399)&\")\",\"\")))","v":""},{"$f":"IF(Z402=\"\",\"\",IF(AP341=Y402,Z402&\"(\"&SUM(Z403:Z406)&\")\",IF(AP341=AC402,AB402&\"(\"&SUM(AB403:AB406)&\")\",\"\")))","v":""},{"$f":"IF(Z409=\"\",\"\",IF(AP341=Y409,Z409&\"(\"&SUM(Z410:Z413)&\")\",IF(AP341=AC409,AB409&\"(\"&SUM(AB410:AB413)&\")\",\"\")))","v":""},{"$f":"IF(Z416=\"\",\"\",IF(AP341=Y416,Z416&\"(\"&SUM(Z417:Z420)&\")\",IF(AP341=AC416,AB416&\"(\"&SUM(AB417:AB420)&\")\",\"\")))","v":""},{"$f":"IF(Z423=\"\",\"\",IF(AP341=Y423,Z423&\"(\"&SUM(Z424:Z427)&\")\",IF(AP341=AC423,AB423&\"(\"&SUM(AB424:AB427)&\")\",\"\")))","v":""},{"$f":"IF(Z430=\"\",\"\",IF(AP341=Y430,Z430&\"(\"&SUM(Z431:Z434)&\")\",IF(AP341=AC430,AB430&\"(\"&SUM(AB431:AB434)&\")\",\"\")))","v":""},{"$f":"IF(Z437=\"\",\"\",IF(AP341=Y437,Z437&\"(\"&SUM(Z438:Z441)&\")\",IF(AP341=AC437,AB437&\"(\"&SUM(AB438:AB441)&\")\",\"\")))","v":""},{"$f":"IF(Z444=\"\",\"\",IF(AP341=Y444,Z444&\"(\"&SUM(Z445:Z448)&\")\",IF(AP341=AC444,AB444&\"(\"&SUM(AB445:AB448)&\")\",\"\")))","v":""},{"$f":"IF(Z451=\"\",\"\",IF(AP341=Y451,Z451&\"(\"&SUM(Z452:Z455)&\")\",IF(AP341=AC451,AB451&\"(\"&SUM(AB452:AB455)&\")\",\"\")))","v":""},{"$f":"IF(Z458=\"\",\"\",IF(AP341=Y458,Z458&\"(\"&SUM(Z459:Z462)&\")\",IF(AP341=AC458,AB458&\"(\"&SUM(AB459:AB462)&\")\",\"\")))","v":""},{"$f":"IF(Z465=\"\",\"\",IF(AP341=Y465,Z465&\"(\"&SUM(Z466:Z469)&\")\",IF(AP341=AC465,AB465&\"(\"&SUM(AB466:AB469)&\")\",\"\")))","v":""},{"$f":"IF(Z472=\"\",\"\",IF(AP341=Y472,Z472&\"(\"&SUM(Z473:Z476)&\")\",IF(AP341=AC472,AB472&\"(\"&SUM(AB473:AB476)&\")\",\"\")))","v":""},{"$f":"IF(Z479=\"\",\"\",IF(AP341=Y479,Z479&\"(\"&SUM(Z480:Z483)&\")\",IF(AP341=AC479,AB479&\"(\"&SUM(AB480:AB483)&\")\",\"\")))","v":""},{"$f":"IF(Z486=\"\",\"\",IF(AP341=Y486,Z486&\"(\"&SUM(Z487:Z490)&\")\",IF(AP341=AC486,AB486&\"(\"&SUM(AB487:AB490)&\")\",\"\")))","v":""},null,null,null,null,null,null,null,true,false,true]
[null,5,{"$f":"IF(AL345=\"\",\"\",RANK(F342,F338:F344)*1000+ROW())","v":""},"",{"$f":"IF(J342=\"\",\"\",Nb_Diff_Part(D342,D338:D344,G342,G338:G344,AK346:AK486)*CritClassEq_DiffPart+Nb_Goal_Part(D342,D338:D344,G342,G338:G344,Y346:AC486)*CritClassEq_IndsPart+Nb_Score_Part(D342,D338:D344,G342,G338:G344,Y346:AC486)*CritClassEq_WinsPart+Nb_GoalTeam_Part(D342,D338:D344,G342,G338:G344,Y346:AC486)*CritClassEq_GoalPart+Nb_ScoreTeam_Part(D342,D338:D344,G342,G338:G344,Y346:AC486)*CritClassEq_ScorePart)","v":""},"","Eq5",{"$f":"IF(AL345=\"\",\"\",(J342*Points_Victoire)+K342*Points_Null)","v":""},"",{"$f":"IF(AL345=\"\",\"\",COUNTIF(AE346:AE490,G342))","v":""},{"$f":"IF(AL345=\"\",\"\",COUNTIF(AF346:AG490,G342))","v":""},{"$f":"IF(AL345=\"\",\"\",COUNTIF(AH346:AH490,G342))","v":""},{"$f":"IF(AL345=\"\",\"\",J342-L342)","v":""},{"$f":"IF(AL345=\"\",\"\",SUMIF(Y346:Y490,G342,Z346:Z490)+SUMIF(AC346:AC490,G342,AB346:AB490))","v":""},{"$f":"IF(AL345=\"\",\"\",SUMIF(Y346:Y490,G342,AB346:AB490)+SUMIF(AC346:AC490,G342,Z346:AL490))","v":""},{"$f":"IF(AL345=\"\",\"\",N342-O342)","v":""},{"$f":"IF(AL345=\"\",\"\",SUMIF(Y346:Y490,G342,AI346:AI490)+SUMIF(AC346:AC490,G342,AJ346:AJ490))","v":""},{"$f":"IF(AL345=\"\",\"\",SUMIF(Y346:Y490,G342,AJ346:AJ490)+SUMIF(AC346:AC490,G342,AI346:AI490))","v":""},{"$f":"IF(AL345=\"\",\"\",Q342-R342)","v":""},null,null,null,null,null,null,null,null,null,null,null,null,null,null,null,null,null,null,{"$f":"IF(AL345=\"\",\"\",SMALL(C338:C344,5))","v":""},null,null,{"$f":"IF(AL345=\"\",\"\",INT(AL342/1000))","v":""},{"$f":"IF(AL345=\"\",IF(HidePlayerFormulas,\"\",\"(\"&G342&\")\"),VLOOKUP(AL342,C338:S344,5,FALSE))","v":""},{"$f":"VLOOKUP(AL342,C338:S344,6,FALSE)","v":""},{"$f":"VLOOKUP(AL342,C338:S344,7,FALSE)","v":""},{"$f":"VLOOKUP(AL342,C338:S344,8,FALSE)","v":""},{"$f":"VLOOKUP(AL342,C338:S344,9,FALSE)","v":""},{"$f":"VLOOKUP(AL342,C338:S344,10,FALSE)","v":""},{"$f":"VLOOKUP(AL342,C338:S344,11,FALSE)","v":""},{"$f":"VLOOKUP(AL342,C338:S344,12,FALSE)","v":""},{"$f":"VLOOKUP(AL342,C338:S344,13,FALSE)","v":""},{"$f":"VLOOKUP(AL342,C338:S344,14,FALSE)","v":""},{"$f":"VLOOKUP(AL342,C338:S344,15,FALSE)","v":""},{"$f":"VLOOKUP(AL342,C338:S344,16,FALSE)","v":""},{"$f":"VLOOKUP(AL342,C338:S344,17,FALSE)","v":""},{"$f":"IF(Z346=\"\",\"\",IF(AP342=Y346,Z346&\"(\"&SUM(Z347:Z350)&\")\",IF(AP342=AC346,AB346&\"(\"&SUM(AB347:AB350)&\")\",\"\")))","v":""},{"$f":"IF(Z353=\"\",\"\",IF(AP342=Y353,Z353&\"(\"&SUM(Z354:Z357)&\")\",IF(AP342=AC353,AB353&\"(\"&SUM(AB354:AB357)&\")\",\"\")))","v":""},{"$f":"IF(Z360=\"\",\"\",IF(AP342=Y360,Z360&\"(\"&SUM(Z361:Z364)&\")\",IF(AP342=AC360,AB360&\"(\"&SUM(AB361:AB364)&\")\",\"\")))","v":""},{"$f":"IF(Z367=\"\",\"\",IF(AP342=Y367,Z367&\"(\"&SUM(Z368:Z371)&\")\",IF(AP342=AC367,AB367&\"(\"&SUM(AB368:AB371)&\")\",\"\")))","v":""},{"$f":"IF(Z374=\"\",\"\",IF(AP342=Y374,Z374&\"(\"&SUM(Z375:Z378)&\")\",IF(AP342=AC374,AB374&\"(\"&SUM(AB375:AB378)&\")\",\"\")))","v":""},{"$f":"IF(Z381=\"\",\"\",IF(AP342=Y381,Z381&\"(\"&SUM(Z382:Z385)&\")\",IF(AP342=AC381,AB381&\"(\"&SUM(AB382:AB385)&\")\",\"\")))","v":""},{"$f":"IF(Z388=\"\",\"\",IF(AP342=Y388,Z388&\"(\"&SUM(Z389:Z392)&\")\",IF(AP342=AC388,AB388&\"(\"&SUM(AB389:AB392)&\")\",\"\")))","v":""},{"$f":"IF(Z395=\"\",\"\",IF(AP342=Y395,Z395&\"(\"&SUM(Z396:Z399)&\")\",IF(AP342=AC395,AB395&\"(\"&SUM(AB396:AB399)&\")\",\"\")))","v":""},{"$f":"IF(Z402=\"\",\"\",IF(AP342=Y402,Z402&\"(\"&SUM(Z403:Z406)&\")\",IF(AP342=AC402,AB402&\"(\"&SUM(AB403:AB406)&\")\",\"\")))","v":""},{"$f":"IF(Z409=\"\",\"\",IF(AP342=Y409,Z409&\"(\"&SUM(Z410:Z413)&\")\",IF(AP342=AC409,AB409&\"(\"&SUM(AB410:AB413)&\")\",\"\")))","v":""},{"$f":"IF(Z416=\"\",\"\",IF(AP342=Y416,Z416&\"(\"&SUM(Z417:Z420)&\")\",IF(AP342=AC416,AB416&\"(\"&SUM(AB417:AB420)&\")\",\"\")))","v":""},{"$f":"IF(Z423=\"\",\"\",IF(AP342=Y423,Z423&\"(\"&SUM(Z424:Z427)&\")\",IF(AP342=AC423,AB423&\"(\"&SUM(AB424:AB427)&\")\",\"\")))","v":""},{"$f":"IF(Z430=\"\",\"\",IF(AP342=Y430,Z430&\"(\"&SUM(Z431:Z434)&\")\",IF(AP342=AC430,AB430&\"(\"&SUM(AB431:AB434)&\")\",\"\")))","v":""},{"$f":"IF(Z437=\"\",\"\",IF(AP342=Y437,Z437&\"(\"&SUM(Z438:Z441)&\")\",IF(AP342=AC437,AB437&\"(\"&SUM(AB438:AB441)&\")\",\"\")))","v":""},{"$f":"IF(Z444=\"\",\"\",IF(AP342=Y444,Z444&\"(\"&SUM(Z445:Z448)&\")\",IF(AP342=AC444,AB444&\"(\"&SUM(AB445:AB448)&\")\",\"\")))","v":""},{"$f":"IF(Z451=\"\",\"\",IF(AP342=Y451,Z451&\"(\"&SUM(Z452:Z455)&\")\",IF(AP342=AC451,AB451&\"(\"&SUM(AB452:AB455)&\")\",\"\")))","v":""},{"$f":"IF(Z458=\"\",\"\",IF(AP342=Y458,Z458&\"(\"&SUM(Z459:Z462)&\")\",IF(AP342=AC458,AB458&\"(\"&SUM(AB459:AB462)&\")\",\"\")))","v":""},{"$f":"IF(Z465=\"\",\"\",IF(AP342=Y465,Z465&\"(\"&SUM(Z466:Z469)&\")\",IF(AP342=AC465,AB465&\"(\"&SUM(AB466:AB469)&\")\",\"\")))","v":""},{"$f":"IF(Z472=\"\",\"\",IF(AP342=Y472,Z472&\"(\"&SUM(Z473:Z476)&\")\",IF(AP342=AC472,AB472&\"(\"&SUM(AB473:AB476)&\")\",\"\")))","v":""},{"$f":"IF(Z479=\"\",\"\",IF(AP342=Y479,Z479&\"(\"&SUM(Z480:Z483)&\")\",IF(AP342=AC479,AB479&\"(\"&SUM(AB480:AB483)&\")\",\"\")))","v":""},{"$f":"IF(Z486=\"\",\"\",IF(AP342=Y486,Z486&\"(\"&SUM(Z487:Z490)&\")\",IF(AP342=AC486,AB486&\"(\"&SUM(AB487:AB490)&\")\",\"\")))","v":""},null,null,null,null,null,null,null,true,false,true]
[null,6,{"$f":"IF(AL345=\"\",\"\",RANK(F343,F338:F344)*1000+ROW())","v":""},"",{"$f":"IF(J343=\"\",\"\",Nb_Diff_Part(D343,D338:D344,G343,G338:G344,AK346:AK486)*CritClassEq_DiffPart+Nb_Goal_Part(D343,D338:D344,G343,G338:G344,Y346:AC486)*CritClassEq_IndsPart+Nb_Score_Part(D343,D338:D344,G343,G338:G344,Y346:AC486)*CritClassEq_WinsPart+Nb_GoalTeam_Part(D343,D338:D344,G343,G338:G344,Y346:AC486)*CritClassEq_GoalPart+Nb_ScoreTeam_Part(D343,D338:D344,G343,G338:G344,Y346:AC486)*CritClassEq_ScorePart)","v":""},"","Eq6",{"$f":"IF(AL345=\"\",\"\",(J343*Points_Victoire)+K343*Points_Null)","v":""},"",{"$f":"IF(AL345=\"\",\"\",COUNTIF(AE346:AE490,G343))","v":""},{"$f":"IF(AL345=\"\",\"\",COUNTIF(AF346:AG490,G343))","v":""},{"$f":"IF(AL345=\"\",\"\",COUNTIF(AH346:AH490,G343))","v":""},{"$f":"IF(AL345=\"\",\"\",J343-L343)","v":""},{"$f":"IF(AL345=\"\",\"\",SUMIF(Y346:Y490,G343,Z346:Z490)+SUMIF(AC346:AC490,G343,AB346:AB490))","v":""},{"$f":"IF(AL345=\"\",\"\",SUMIF(Y346:Y490,G343,AB346:AB490)+SUMIF(AC346:AC490,G343,Z346:AL490))","v":""},{"$f":"IF(AL345=\"\",\"\",N343-O343)","v":""},{"$f":"IF(AL345=\"\",\"\",SUMIF(Y346:Y490,G343,AI346:AI490)+SUMIF(AC346:AC490,G343,AJ346:AJ490))","v":""},{"$f":"IF(AL345=\"\",\"\",SUMIF(Y346:Y490,G343,AJ346:AJ490)+SUMIF(AC346:AC490,G343,AI346:AI490))","v":""},{"$f":"IF(AL345=\"\",\"\",Q343-R343)","v":""},null,null,null,null,null,null,null,null,null,null,null,null,null,null,null,null,null,null,{"$f":"IF(AL345=\"\",\"\",SMALL(C338:C344,6))","v":""},null,null,{"$f":"IF(AL345=\"\",\"\",INT(AL343/1000))","v":""},{"$f":"IF(AL345=\"\",IF(HidePlayerFormulas,\"\",\"(\"&G343&\")\"),VLOOKUP(AL343,C338:S344,5,FALSE))","v":""},{"$f":"VLOOKUP(AL343,C338:S344,6,FALSE)","v":""},{"$f":"VLOOKUP(AL343,C338:S344,7,FALSE)","v":""},{"$f":"VLOOKUP(AL343,C338:S344,8,FALSE)","v":""},{"$f":"VLOOKUP(AL343,C338:S344,9,FALSE)","v":""},{"$f":"VLOOKUP(AL343,C338:S344,10,FALSE)","v":""},{"$f":"VLOOKUP(AL343,C338:S344,11,FALSE)","v":""},{"$f":"VLOOKUP(AL343,C338:S344,12,FALSE)","v":""},{"$f":"VLOOKUP(AL343,C338:S344,13,FALSE)","v":""},{"$f":"VLOOKUP(AL343,C338:S344,14,FALSE)","v":""},{"$f":"VLOOKUP(AL343,C338:S344,15,FALSE)","v":""},{"$f":"VLOOKUP(AL343,C338:S344,16,FALSE)","v":""},{"$f":"VLOOKUP(AL343,C338:S344,17,FALSE)","v":""},{"$f":"IF(Z346=\"\",\"\",IF(AP343=Y346,Z346&\"(\"&SUM(Z347:Z350)&\")\",IF(AP343=AC346,AB346&\"(\"&SUM(AB347:AB350)&\")\",\"\")))","v":""},{"$f":"IF(Z353=\"\",\"\",IF(AP343=Y353,Z353&\"(\"&SUM(Z354:Z357)&\")\",IF(AP343=AC353,AB353&\"(\"&SUM(AB354:AB357)&\")\",\"\")))","v":""},{"$f":"IF(Z360=\"\",\"\",IF(AP343=Y360,Z360&\"(\"&SUM(Z361:Z364)&\")\",IF(AP343=AC360,AB360&\"(\"&SUM(AB361:AB364)&\")\",\"\")))","v":""},{"$f":"IF(Z367=\"\",\"\",IF(AP343=Y367,Z367&\"(\"&SUM(Z368:Z371)&\")\",IF(AP343=AC367,AB367&\"(\"&SUM(AB368:AB371)&\")\",\"\")))","v":""},{"$f":"IF(Z374=\"\",\"\",IF(AP343=Y374,Z374&\"(\"&SUM(Z375:Z378)&\")\",IF(AP343=AC374,AB374&\"(\"&SUM(AB375:AB378)&\")\",\"\")))","v":""},{"$f":"IF(Z381=\"\",\"\",IF(AP343=Y381,Z381&\"(\"&SUM(Z382:Z385)&\")\",IF(AP343=AC381,AB381&\"(\"&SUM(AB382:AB385)&\")\",\"\")))","v":""},{"$f":"IF(Z388=\"\",\"\",IF(AP343=Y388,Z388&\"(\"&SUM(Z389:Z392)&\")\",IF(AP343=AC388,AB388&\"(\"&SUM(AB389:AB392)&\")\",\"\")))","v":""},{"$f":"IF(Z395=\"\",\"\",IF(AP343=Y395,Z395&\"(\"&SUM(Z396:Z399)&\")\",IF(AP343=AC395,AB395&\"(\"&SUM(AB396:AB399)&\")\",\"\")))","v":""},{"$f":"IF(Z402=\"\",\"\",IF(AP343=Y402,Z402&\"(\"&SUM(Z403:Z406)&\")\",IF(AP343=AC402,AB402&\"(\"&SUM(AB403:AB406)&\")\",\"\")))","v":""},{"$f":"IF(Z409=\"\",\"\",IF(AP343=Y409,Z409&\"(\"&SUM(Z410:Z413)&\")\",IF(AP343=AC409,AB409&\"(\"&SUM(AB410:AB413)&\")\",\"\")))","v":""},{"$f":"IF(Z416=\"\",\"\",IF(AP343=Y416,Z416&\"(\"&SUM(Z417:Z420)&\")\",IF(AP343=AC416,AB416&\"(\"&SUM(AB417:AB420)&\")\",\"\")))","v":""},{"$f":"IF(Z423=\"\",\"\",IF(AP343=Y423,Z423&\"(\"&SUM(Z424:Z427)&\")\",IF(AP343=AC423,AB423&\"(\"&SUM(AB424:AB427)&\")\",\"\")))","v":""},{"$f":"IF(Z430=\"\",\"\",IF(AP343=Y430,Z430&\"(\"&SUM(Z431:Z434)&\")\",IF(AP343=AC430,AB430&\"(\"&SUM(AB431:AB434)&\")\",\"\")))","v":""},{"$f":"IF(Z437=\"\",\"\",IF(AP343=Y437,Z437&\"(\"&SUM(Z438:Z441)&\")\",IF(AP343=AC437,AB437&\"(\"&SUM(AB438:AB441)&\")\",\"\")))","v":""},{"$f":"IF(Z444=\"\",\"\",IF(AP343=Y444,Z444&\"(\"&SUM(Z445:Z448)&\")\",IF(AP343=AC444,AB444&\"(\"&SUM(AB445:AB448)&\")\",\"\")))","v":""},{"$f":"IF(Z451=\"\",\"\",IF(AP343=Y451,Z451&\"(\"&SUM(Z452:Z455)&\")\",IF(AP343=AC451,AB451&\"(\"&SUM(AB452:AB455)&\")\",\"\")))","v":""},{"$f":"IF(Z458=\"\",\"\",IF(AP343=Y458,Z458&\"(\"&SUM(Z459:Z462)&\")\",IF(AP343=AC458,AB458&\"(\"&SUM(AB459:AB462)&\")\",\"\")))","v":""},{"$f":"IF(Z465=\"\",\"\",IF(AP343=Y465,Z465&\"(\"&SUM(Z466:Z469)&\")\",IF(AP343=AC465,AB465&\"(\"&SUM(AB466:AB469)&\")\",\"\")))","v":""},{"$f":"IF(Z472=\"\",\"\",IF(AP343=Y472,Z472&\"(\"&SUM(Z473:Z476)&\")\",IF(AP343=AC472,AB472&\"(\"&SUM(AB473:AB476)&\")\",\"\")))","v":""},{"$f":"IF(Z479=\"\",\"\",IF(AP343=Y479,Z479&\"(\"&SUM(Z480:Z483)&\")\",IF(AP343=AC479,AB479&\"(\"&SUM(AB480:AB483)&\")\",\"\")))","v":""},{"$f":"IF(Z486=\"\",\"\",IF(AP343=Y486,Z486&\"(\"&SUM(Z487:Z490)&\")\",IF(AP343=AC486,AB486&\"(\"&SUM(AB487:AB490)&\")\",\"\")))","v":""},null,null,null,null,null,null,null,true,false,true]
[null,7,{"$f":"IF(AL345=\"\",\"\",RANK(F344,F338:F344)*1000+ROW())","v":""},"",{"$f":"IF(J344=\"\",\"\",Nb_Diff_Part(D344,D338:D344,G344,G338:G344,AK346:AK486)*CritClassEq_DiffPart+Nb_Goal_Part(D344,D338:D344,G344,G338:G344,Y346:AC486)*CritClassEq_IndsPart+Nb_Score_Part(D344,D338:D344,G344,G338:G344,Y346:AC486)*CritClassEq_WinsPart+Nb_GoalTeam_Part(D344,D338:D344,G344,G338:G344,Y346:AC486)*CritClassEq_GoalPart+Nb_ScoreTeam_Part(D344,D338:D344,G344,G338:G344,Y346:AC486)*CritClassEq_ScorePart)","v":""},"","Eq7",{"$f":"IF(AL345=\"\",\"\",(J344*Points_Victoire)+K344*Points_Null)","v":""},"",{"$f":"IF(AL345=\"\",\"\",COUNTIF(AE346:AE490,G344))","v":""},{"$f":"IF(AL345=\"\",\"\",COUNTIF(AF346:AG490,G344))","v":""},{"$f":"IF(AL345=\"\",\"\",COUNTIF(AH346:AH490,G344))","v":""},{"$f":"IF(AL345=\"\",\"\",J344-L344)","v":""},{"$f":"IF(AL345=\"\",\"\",SUMIF(Y346:Y490,G344,Z346:Z490)+SUMIF(AC346:AC490,G344,AB346:AB490))","v":""},{"$f":"IF(AL345=\"\",\"\",SUMIF(Y346:Y490,G344,AB346:AB490)+SUMIF(AC346:AC490,G344,Z346:AL490))","v":""},{"$f":"IF(AL345=\"\",\"\",N344-O344)","v":""},{"$f":"IF(AL345=\"\",\"\",SUMIF(Y346:Y490,G344,AI346:AI490)+SUMIF(AC346:AC490,G344,AJ346:AJ490))","v":""},{"$f":"IF(AL345=\"\",\"\",SUMIF(Y346:Y490,G344,AJ346:AJ490)+SUMIF(AC346:AC490,G344,AI346:AI490))","v":""},{"$f":"IF(AL345=\"\",\"\",Q344-R344)","v":""},null,null,null,null,null,null,null,null,null,null,null,null,null,null,null,null,null,null,{"$f":"IF(AL345=\"\",\"\",SMALL(C338:C344,7))","v":""},null,null,{"$f":"IF(AL345=\"\",\"\",INT(AL344/1000))","v":""},{"$f":"IF(AL345=\"\",IF(HidePlayerFormulas,\"\",\"(\"&G344&\")\"),VLOOKUP(AL344,C338:S344,5,FALSE))","v":""},{"$f":"VLOOKUP(AL344,C338:S344,6,FALSE)","v":""},{"$f":"VLOOKUP(AL344,C338:S344,7,FALSE)","v":""},{"$f":"VLOOKUP(AL344,C338:S344,8,FALSE)","v":""},{"$f":"VLOOKUP(AL344,C338:S344,9,FALSE)","v":""},{"$f":"VLOOKUP(AL344,C338:S344,10,FALSE)","v":""},{"$f":"VLOOKUP(AL344,C338:S344,11,FALSE)","v":""},{"$f":"VLOOKUP(AL344,C338:S344,12,FALSE)","v":""},{"$f":"VLOOKUP(AL344,C338:S344,13,FALSE)","v":""},{"$f":"VLOOKUP(AL344,C338:S344,14,FALSE)","v":""},{"$f":"VLOOKUP(AL344,C338:S344,15,FALSE)","v":""},{"$f":"VLOOKUP(AL344,C338:S344,16,FALSE)","v":""},{"$f":"VLOOKUP(AL344,C338:S344,17,FALSE)","v":""},{"$f":"IF(Z346=\"\",\"\",IF(AP344=Y346,Z346&\"(\"&SUM(Z347:Z350)&\")\",IF(AP344=AC346,AB346&\"(\"&SUM(AB347:AB350)&\")\",\"\")))","v":""},{"$f":"IF(Z353=\"\",\"\",IF(AP344=Y353,Z353&\"(\"&SUM(Z354:Z357)&\")\",IF(AP344=AC353,AB353&\"(\"&SUM(AB354:AB357)&\")\",\"\")))","v":""},{"$f":"IF(Z360=\"\",\"\",IF(AP344=Y360,Z360&\"(\"&SUM(Z361:Z364)&\")\",IF(AP344=AC360,AB360&\"(\"&SUM(AB361:AB364)&\")\",\"\")))","v":""},{"$f":"IF(Z367=\"\",\"\",IF(AP344=Y367,Z367&\"(\"&SUM(Z368:Z371)&\")\",IF(AP344=AC367,AB367&\"(\"&SUM(AB368:AB371)&\")\",\"\")))","v":""},{"$f":"IF(Z374=\"\",\"\",IF(AP344=Y374,Z374&\"(\"&SUM(Z375:Z378)&\")\",IF(AP344=AC374,AB374&\"(\"&SUM(AB375:AB378)&\")\",\"\")))","v":""},{"$f":"IF(Z381=\"\",\"\",IF(AP344=Y381,Z381&\"(\"&SUM(Z382:Z385)&\")\",IF(AP344=AC381,AB381&\"(\"&SUM(AB382:AB385)&\")\",\"\")))","v":""},{"$f":"IF(Z388=\"\",\"\",IF(AP344=Y388,Z388&\"(\"&SUM(Z389:Z392)&\")\",IF(AP344=AC388,AB388&\"(\"&SUM(AB389:AB392)&\")\",\"\")))","v":""},{"$f":"IF(Z395=\"\",\"\",IF(AP344=Y395,Z395&\"(\"&SUM(Z396:Z399)&\")\",IF(AP344=AC395,AB395&\"(\"&SUM(AB396:AB399)&\")\",\"\")))","v":""},{"$f":"IF(Z402=\"\",\"\",IF(AP344=Y402,Z402&\"(\"&SUM(Z403:Z406)&\")\",IF(AP344=AC402,AB402&\"(\"&SUM(AB403:AB406)&\")\",\"\")))","v":""},{"$f":"IF(Z409=\"\",\"\",IF(AP344=Y409,Z409&\"(\"&SUM(Z410:Z413)&\")\",IF(AP344=AC409,AB409&\"(\"&SUM(AB410:AB413)&\")\",\"\")))","v":""},{"$f":"IF(Z416=\"\",\"\",IF(AP344=Y416,Z416&\"(\"&SUM(Z417:Z420)&\")\",IF(AP344=AC416,AB416&\"(\"&SUM(AB417:AB420)&\")\",\"\")))","v":""},{"$f":"IF(Z423=\"\",\"\",IF(AP344=Y423,Z423&\"(\"&SUM(Z424:Z427)&\")\",IF(AP344=AC423,AB423&\"(\"&SUM(AB424:AB427)&\")\",\"\")))","v":""},{"$f":"IF(Z430=\"\",\"\",IF(AP344=Y430,Z430&\"(\"&SUM(Z431:Z434)&\")\",IF(AP344=AC430,AB430&\"(\"&SUM(AB431:AB434)&\")\",\"\")))","v":""},{"$f":"IF(Z437=\"\",\"\",IF(AP344=Y437,Z437&\"(\"&SUM(Z438:Z441)&\")\",IF(AP344=AC437,AB437&\"(\"&SUM(AB438:AB441)&\")\",\"\")))","v":""},{"$f":"IF(Z444=\"\",\"\",IF(AP344=Y444,Z444&\"(\"&SUM(Z445:Z448)&\")\",IF(AP344=AC444,AB444&\"(\"&SUM(AB445:AB448)&\")\",\"\")))","v":""},{"$f":"IF(Z451=\"\",\"\",IF(AP344=Y451,Z451&\"(\"&SUM(Z452:Z455)&\")\",IF(AP344=AC451,AB451&\"(\"&SUM(AB452:AB455)&\")\",\"\")))","v":""},{"$f":"IF(Z458=\"\",\"\",IF(AP344=Y458,Z458&\"(\"&SUM(Z459:Z462)&\")\",IF(AP344=AC458,AB458&\"(\"&SUM(AB459:AB462)&\")\",\"\")))","v":""},{"$f":"IF(Z465=\"\",\"\",IF(AP344=Y465,Z465&\"(\"&SUM(Z466:Z469)&\")\",IF(AP344=AC465,AB465&\"(\"&SUM(AB466:AB469)&\")\",\"\")))","v":""},{"$f":"IF(Z472=\"\",\"\",IF(AP344=Y472,Z472&\"(\"&SUM(Z473:Z476)&\")\",IF(AP344=AC472,AB472&\"(\"&SUM(AB473:AB476)&\")\",\"\")))","v":""},{"$f":"IF(Z479=\"\",\"\",IF(AP344=Y479,Z479&\"(\"&SUM(Z480:Z483)&\")\",IF(AP344=AC479,AB479&\"(\"&SUM(AB480:AB483)&\")\",\"\")))","v":""},{"$f":"IF(Z486=\"\",\"\",IF(AP344=Y486,Z486&\"(\"&SUM(Z487:Z490)&\")\",IF(AP344=AC486,AB486&\"(\"&SUM(AB487:AB490)&\")\",\"\")))","v":""},null,null,null,null,null,null,null,true,false,true]
[null,null,null,null,null,null,null,null,null,null,null,null,null,null,null,null,null,null,null,null,null,{"$f":"N_Heure","v":"Time"},{"$f":"N_Table","v":"Table"},{"$f":"N_Arbitre","v":"Referee"},{"$f":"N_Matches","v":"Matches"},null,null,null,null,null,null,null,null,null,null,null,null,{"$f":"IF(COUNTA(Z346:Z490)>21,\"OK\",\"\")","v":""}]
[null,null,null,null,null,null,null,null,null,null,null,null,null,null,null,null,null,null,null,null,"#G1",null,null,null,{"$f":"IF(G338=\"\",\"\",G338)","v":"Eq1"},{"$f":"IF(OR(ISNUMBER(Z347),ISNUMBER(Z348),ISNUMBER(Z349),ISNUMBER(Z350)),4-COUNTBLANK(AI347:AI350),\"\")","v":""},"-",{"$f":"IF(OR(ISNUMBER(Z347),ISNUMBER(Z348),ISNUMBER(Z349),ISNUMBER(Z350)),4-COUNTBLANK(AJ347:AJ350),\"\")","v":""},{"$f":"IF(G340=\"\",\"\",G340)","v":"Eq3"},null,{"$f":"IF(Z346=\"\",\"\",IF(Z346>AB346,Y346,IF(Z346=AB346,IF(NoDrawWithWithdraw,IF(AL346=Y346,AC346,IF(AL346=AC346,Y346,\"\")),\"\"),AC346)))","v":""},{"$f":"IF(Z346=\"\",\"\",IF(Z346=AB346,IF(NoDrawWithWithdraw,IF(AL346=Y346,\"\",IF(AL346=AC346,\"\",Y346)),Y346),\"\"))","v":""},{"$f":"IF(Z346=\"\",\"\",IF(Z346=AB346,IF(NoDrawWithWithdraw,IF(AL346=Y346,\"\",IF(AL346=AC346,\"\",AC346)),AC346),\"\"))","v":""},{"$f":"IF(Z346=\"\",\"\",IF(Z346<AB346,Y346,IF(Z346=AB346,IF(NoDrawWithWithdraw,IF(AL346=Y346,Y346,IF(AL346=AC346,AC346,\"\")),\"\"),AC346)))","v":""},{"$f":"IF(Z346=\"\",\"\",SUM(Z347:Z350))","v":""},{"$f":"IF(Z346=\"\",\"\",SUM(AB347:AB350))","v":""},{"$f":"CONCATENATE(AE346,AH346)","v":""},{"$f":"IF(COUNTIF(Y347:Y350,WithdrawLabel)>COUNTIF(AC347:AC350,WithdrawLabel),Y346,IF(COUNTIF(AC347:AC350,WithdrawLabel)>COUNTIF(Y347:Y350,WithdrawLabel),AC346,\"\"))","v":""}]
[null,null,null,null,null,null,null,null,null,null,null,null,null,null,null,null,null,null,null,null,null,null,null,null,null,null,"-",null,null,null,{"$f":"IF(Z347=\"\",\"\",IF(Z347>AB347,Y347,IF(Z347=AB347,\"\",AC347)))","v":""},{"$f":"IF(Z347=\"\",\"\",IF(Z347=AB347,Y347,\"\"))","v":""},{"$f":"IF(Z347=\"\",\"\",IF(Z347=AB347,AC347,\"\"))","v":""},{"$f":"IF(Z347=\"\",\"\",IF(Z347<AB347,Y347,IF(Z347=AB347,\"\",AC347)))","v":""},{"$f":"IF(Z347=\"\",\"\",IF(Z347>AB347,Y346,\"\"))","v":""},{"$f":"IF(Z347=\"\",\"\",IF(Z347<AB347,AC346,\"\"))","v":""},{"$f":"CONCATENATE(AE347,AH347)","v":""}]
[null,null,null,null,null,null,null,null,null,null,null,null,null,null,null,null,null,null,null,null,null,null,null,null,null,null,"-",null,null,null,{"$f":"IF(Z348=\"\",\"\",IF(Z348>AB348,Y348,IF(Z348=AB348,\"\",AC348)))","v":""},{"$f":"IF(Z348=\"\",\"\",IF(Z348=AB348,Y348,\"\"))","v":""},{"$f":"IF(Z348=\"\",\"\",IF(Z348=AB348,AC348,\"\"))","v":""},{"$f":"IF(Z348=\"\",\"\",IF(Z348<AB348,Y348,IF(Z348=AB348,\"\",AC348)))","v":""},{"$f":"IF(Z348=\"\",\"\",IF(Z348>AB348,Y346,\"\"))","v":""},{"$f":"IF(Z348=\"\",\"\",IF(Z348<AB348,AC346,\"\"))","v":""},{"$f":"CONCATENATE(AE348,AH348)","v":""}]
[null,null,null,null,null,null,null,null,null,null,null,null,null,null,null,null,null,null,null,null,null,null,null,null,null,null,"-",null,null,null,{"$f":"IF(Z349=\"\",\"\",IF(Z349>AB349,Y349,IF(Z349=AB349,\"\",AC349)))","v":""},{"$f":"IF(Z349=\"\",\"\",IF(Z349=AB349,Y349,\"\"))","v":""},{"$f":"IF(Z349=\"\",\"\",IF(Z349=AB349,AC349,\"\"))","v":""},{"$f":"IF(Z349=\"\",\"\",IF(Z349<AB349,Y349,IF(Z349=AB349,\"\",AC349)))","v":""},{"$f":"IF(Z349=\"\",\"\",IF(Z349>AB349,Y346,\"\"))","v":""},{"$f":"IF(Z349=\"\",\"\",IF(Z349<AB349,AC346,\"\"))","v":""},{"$f":"CONCATENATE(AE349,AH349)","v":""}]
[null,null,null,null,null,null,null,null,null,null,null,null,null,null,null,null,null,null,null,null,null,null,null,null,null,null,"-",null,null,null,{"$f":"IF(Z350=\"\",\"\",IF(Z350>AB350,Y350,IF(Z350=AB350,\"\",AC350)))","v":""},{"$f":"IF(Z350=\"\",\"\",IF(Z350=AB350,Y350,\"\"))","v":""},{"$f":"IF(Z350=\"\",\"\",IF(Z350=AB350,AC350,\"\"))","v":""},{"$f":"IF(Z350=\"\",\"\",IF(Z350<AB350,Y350,IF(Z350=AB350,\"\",AC350)))","v":""},{"$f":"IF(Z350=\"\",\"\",IF(Z350>AB350,Y346,\"\"))","v":""},{"$f":"IF(Z350=\"\",\"\",IF(Z350<AB350,AC346,\"\"))","v":""},{"$f":"CONCATENATE(AE350,AH350)","v":""}]
[null,null,null,null,null,null,null,null,null,null,null,null,null,null,null,null,null,null,null,null,null,null,null,{"$f":"N_Substitute","v":"Substitute"}]
[null,null,null,null,null,null,null,null,null,null,null,null,null,null,null,null,null,null,null,null,null,null,null,{"$f":"N_Substitute","v":"Substitute"}]
[null,null,null,null,null,null,null,null,null,null,null,null,null,null,null,null,null,null,null,null,"#G1",null,null,null,{"$f":"IF(G341=\"\",\"\",G341)","v":"Eq4"},{"$f":"IF(OR(ISNUMBER(Z354),ISNUMBER(Z355),ISNUMBER(Z356),ISNUMBER(Z357)),4-COUNTBLANK(AI354:AI357),\"\")","v":""},"-",{"$f":"IF(OR(ISNUMBER(Z354),ISNUMBER(Z355),ISNUMBER(Z356),ISNUMBER(Z357)),4-COUNTBLANK(AJ354:AJ357),\"\")","v":""},{"$f":"IF(G344=\"\",\"\",G344)","v":"Eq7"},null,{"$f":"IF(Z353=\"\",\"\",IF(Z353>AB353,Y353,IF(Z353=AB353,IF(NoDrawWithWithdraw,IF(AL353=Y353,AC353,IF(AL353=AC353,Y353,\"\")),\"\"),AC353)))","v":""},{"$f":"IF(Z353=\"\",\"\",IF(Z353=AB353,IF(NoDrawWithWithdraw,IF(AL353=Y353,\"\",IF(AL353=AC353,\"\",Y353)),Y353),\"\"))","v":""},{"$f":"IF(Z353=\"\",\"\",IF(Z353=AB353,IF(NoDrawWithWithdraw,IF(AL353=Y353,\"\",IF(AL353=AC353,\"\",AC353)),AC353),\"\"))","v":""},{"$f":"IF(Z353=\"\",\"\",IF(Z353<AB353,Y353,IF(Z353=AB353,IF(NoDrawWithWithdraw,IF(AL353=Y353,Y353,IF(AL353=AC353,AC353,\"\")),\"\"),AC353)))","v":""},{"$f":"IF(Z353=\"\",\"\",SUM(Z354:Z357))","v":""},{"$f":"IF(Z353=\"\",\"\",SUM(AB354:AB357))","v":""},{"$f":"CONCATENATE(AE353,AH353)","v":""},{"$f":"IF(COUNTIF(Y354:Y357,WithdrawLabel)>COUNTIF(AC354:AC357,WithdrawLabel),Y353,IF(COUNTIF(AC354:AC357,WithdrawLabel)>COUNTIF(Y354:Y357,WithdrawLabel),AC353,\"\"))","v":""}]
[null,null,null,null,null,null,null,null,null,null,null,null,null,null,null,null,null,null,null,null,null,null,null,null,null,null,"-",null,null,null,{"$f":"IF(Z354=\"\",\"\",IF(Z354>AB354,Y354,IF(Z354=AB354,\"\",AC354)))","v":""},{"$f":"IF(Z354=\"\",\"\",IF(Z354=AB354,Y354,\"\"))","v":""},{"$f":"IF(Z354=\"\",\"\",IF(Z354=AB354,AC354,\"\"))","v":""},{"$f":"IF(Z354=\"\",\"\",IF(Z354<AB354,Y354,IF(Z354=AB354,\"\",AC354)))","v":""},{"$f":"IF(Z354=\"\",\"\",IF(Z354>AB354,Y353,\"\"))","v":""},{"$f":"IF(Z354=\"\",\"\",IF(Z354<AB354,AC353,\"\"))","v":""},{"$f":"CONCATENATE(AE354,AH354)","v":""}]
[null,null,null,null,null,null,null,null,null,null,null,null,null,null,null,null,null,null,null,null,null,null,null,null,null,null,"-",null,null,null,{"$f":"IF(Z355=\"\",\"\",IF(Z355>AB355,Y355,IF(Z355=AB355,\"\",AC355)))","v":""},{"$f":"IF(Z355=\"\",\"\",IF(Z355=AB355,Y355,\"\"))","v":""},{"$f":"IF(Z355=\"\",\"\",IF(Z355=AB355,AC355,\"\"))","v":""},{"$f":"IF(Z355=\"\",\"\",IF(Z355<AB355,Y355,IF(Z355=AB355,\"\",AC355)))","v":""},{"$f":"IF(Z355=\"\",\"\",IF(Z355>AB355,Y353,\"\"))","v":""},{"$f":"IF(Z355=\"\",\"\",IF(Z355<AB355,AC353,\"\"))","v":""},{"$f":"CONCATENATE(AE355,AH355)","v":""}]
[null,null,null,null,null,null,null,null,null,null,null,null,null,null,null,null,null,null,null,null,null,null,null,null,null,null,"-",null,null,null,{"$f":"IF(Z356=\"\",\"\",IF(Z356>AB356,Y356,IF(Z356=AB356,\"\",AC356)))","v":""},{"$f":"IF(Z356=\"\",\"\",IF(Z356=AB356,Y356,\"\"))","v":""},{"$f":"IF(Z356=\"\",\"\",IF(Z356=AB356,AC356,\"\"))","v":""},{"$f":"IF(Z356=\"\",\"\",IF(Z356<AB356,Y356,IF(Z356=AB356,\"\",AC356)))","v":""},{"$f":"IF(Z356=\"\",\"\",IF(Z356>AB356,Y353,\"\"))","v":""},{"$f":"IF(Z356=\"\",\"\",IF(Z356<AB356,AC353,\"\"))","v":""},{"$f":"CONCATENATE(AE356,AH356)","v":""}]
[null,null,null,null,null,null,null,null,null,null,null,null,null,null,null,null,null,null,null,null,null,null,null,null,null,null,"-",null,null,null,{"$f":"IF(Z357=\"\",\"\",IF(Z357>AB357,Y357,IF(Z357=AB357,\"\",AC357)))","v":""},{"$f":"IF(Z357=\"\",\"\",IF(Z357=AB357,Y357,\"\"))","v":""},{"$f":"IF(Z357=\"\",\"\",IF(Z357=AB357,AC357,\"\"))","v":""},{"$f":"IF(Z357=\"\",\"\",IF(Z357<AB357,Y357,IF(Z357=AB357,\"\",AC357)))","v":""},{"$f":"IF(Z357=\"\",\"\",IF(Z357>AB357,Y353,\"\"))","v":""},{"$f":"IF(Z357=\"\",\"\",IF(Z357<AB357,AC353,\"\"))","v":""},{"$f":"CONCATENATE(AE357,AH357)","v":""}]
[null,null,null,null,null,null,null,null,null,null,null,null,null,null,null,null,null,null,null,null,null,null,null,{"$f":"N_Substitute","v":"Substitute"}]
[null,null,null,null,null,null,null,null,null,null,null,null,null,null,null,null,null,null,null,null,null,null,null,{"$f":"N_Substitute","v":"Substitute"}]
[null,null,null,null,null,null,null,null,null,null,null,null,null,null,null,null,null,null,null,null,"#G1",null,null,null,{"$f":"IF(G342=\"\",\"\",G342)","v":"Eq5"},{"$f":"IF(OR(ISNUMBER(Z361),ISNUMBER(Z362),ISNUMBER(Z363),ISNUMBER(Z364)),4-COUNTBLANK(AI361:AI364),\"\")","v":""},"-",{"$f":"IF(OR(ISNUMBER(Z361),ISNUMBER(Z362),ISNUMBER(Z363),ISNUMBER(Z364)),4-COUNTBLANK(AJ361:AJ364),\"\")","v":""},{"$f":"IF(G343=\"\",\"\",G343)","v":"Eq6"},null,{"$f":"IF(Z360=\"\",\"\",IF(Z360>AB360,Y360,IF(Z360=AB360,IF(NoDrawWithWithdraw,IF(AL360=Y360,AC360,IF(AL360=AC360,Y360,\"\")),\"\"),AC360)))","v":""},{"$f":"IF(Z360=\"\",\"\",IF(Z360=AB360,IF(NoDrawWithWithdraw,IF(AL360=Y360,\"\",IF(AL360=AC360,\"\",Y360)),Y360),\"\"))","v":""},{"$f":"IF(Z360=\"\",\"\",IF(Z360=AB360,IF(NoDrawWithWithdraw,IF(AL360=Y360,\"\",IF(AL360=AC360,\"\",AC360)),AC360),\"\"))","v":""},{"$f":"IF(Z360=\"\",\"\",IF(Z360<AB360,Y360,IF(Z360=AB360,IF(NoDrawWithWithdraw,IF(AL360=Y360,Y360,IF(AL360=AC360,AC360,\"\")),\"\"),AC360)))","v":""},{"$f":"IF(Z360=\"\",\"\",SUM(Z361:Z364))","v":""},{"$f":"IF(Z360=\"\",\"\",SUM(AB361:AB364))","v":""},{"$f":"CONCATENATE(AE360,AH360)","v":""},{"$f":"IF(COUNTIF(Y361:Y364,WithdrawLabel)>COUNTIF(AC361:AC364,WithdrawLabel),Y360,IF(COUNTIF(AC361:AC364,WithdrawLabel)>COUNTIF(Y361:Y364,WithdrawLabel),AC360,\"\"))","v":""}]
[null,null,null,null,null,null,null,null,null,null,null,null,null,null,null,null,null,null,null,null,null,null,null,null,null,null,"-",null,null,null,{"$f":"IF(Z361=\"\",\"\",IF(Z361>AB361,Y361,IF(Z361=AB361,\"\",AC361)))","v":""},{"$f":"IF(Z361=\"\",\"\",IF(Z361=AB361,Y361,\"\"))","v":""},{"$f":"IF(Z361=\"\",\"\",IF(Z361=AB361,AC361,\"\"))","v":""},{"$f":"IF(Z361=\"\",\"\",IF(Z361<AB361,Y361,IF(Z361=AB361,\"\",AC361)))","v":""},{"$f":"IF(Z361=\"\",\"\",IF(Z361>AB361,Y360,\"\"))","v":""},{"$f":"IF(Z361=\"\",\"\",IF(Z361<AB361,AC360,\"\"))","v":""},{"$f":"CONCATENATE(AE361,AH361)","v":""}]
[null,null,null,null,null,null,null,null,null,null,null,null,null,null,null,null,null,null,null,null,null,null,null,null,null,null,"-",null,null,null,{"$f":"IF(Z362=\"\",\"\",IF(Z362>AB362,Y362,IF(Z362=AB362,\"\",AC362)))","v":""},{"$f":"IF(Z362=\"\",\"\",IF(Z362=AB362,Y362,\"\"))","v":""},{"$f":"IF(Z362=\"\",\"\",IF(Z362=AB362,AC362,\"\"))","v":""},{"$f":"IF(Z362=\"\",\"\",IF(Z362<AB362,Y362,IF(Z362=AB362,\"\",AC362)))","v":""},{"$f":"IF(Z362=\"\",\"\",IF(Z362>AB362,Y360,\"\"))","v":""},{"$f":"IF(Z362=\"\",\"\",IF(Z362<AB362,AC360,\"\"))","v":""},{"$f":"CONCATENATE(AE362,AH362)","v":""}]
[null,null,null,null,null,null,null,null,null,null,null,null,null,null,null,null,null,null,null,null,null,null,null,null,null,null,"-",null,null,null,{"$f":"IF(Z363=\"\",\"\",IF(Z363>AB363,Y363,IF(Z363=AB363,\"\",AC363)))","v":""},{"$f":"IF(Z363=\"\",\"\",IF(Z363=AB363,Y363,\"\"))","v":""},{"$f":"IF(Z363=\"\",\"\",IF(Z363=AB363,AC363,\"\"))","v":""},{"$f":"IF(Z363=\"\",\"\",IF(Z363<AB363,Y363,IF(Z363=AB363,\"\",AC363)))","v":""},{"$f":"IF(Z363=\"\",\"\",IF(Z363>AB363,Y360,\"\"))","v":""},{"$f":"IF(Z363=\"\",\"\",IF(Z363<AB363,AC360,\"\"))","v":""},{"$f":"CONCATENATE(AE363,AH363)","v":""}]
[null,null,null,null,null,null,null,null,null,null,null,null,null,null,null,null,null,null,null,null,null,null,null,null,null,null,"-",null,null,null,{"$f":"IF(Z364=\"\",\"\",IF(Z364>AB364,Y364,IF(Z364=AB364,\"\",AC364)))","v":""},{"$f":"IF(Z364=\"\",\"\",IF(Z364=AB364,Y364,\"\"))","v":""},{"$f":"IF(Z364=\"\",\"\",IF(Z364=AB364,AC364,\"\"))","v":""},{"$f":"IF(Z364=\"\",\"\",IF(Z364<AB364,Y364,IF(Z364=AB364,\"\",AC364)))","v":""},{"$f":"IF(Z364=\"\",\"\",IF(Z364>AB364,Y360,\"\"))","v":""},{"$f":"IF(Z364=\"\",\"\",IF(Z364<AB364,AC360,\"\"))","v":""},{"$f":"CONCATENATE(AE364,AH364)","v":""}]
[null,null,null,null,null,null,null,null,null,null,null,null,null,null,null,null,null,null,null,null,null,null,null,{"$f":"N_Substitute","v":"Substitute"}]
[null,null,null,null,null,null,null,null,null,null,null,null,null,null,null,null,null,null,null,null,null,null,null,{"$f":"N_Substitute","v":"Substitute"}]
[null,null,null,null,null,null,null,null,null,null,null,null,null,null,null,null,null,null,null,null,"#G2",null,null,null,{"$f":"G338","v":"Eq1"},{"$f":"IF(OR(ISNUMBER(Z368),ISNUMBER(Z369),ISNUMBER(Z370),ISNUMBER(Z371)),4-COUNTBLANK(AI368:AI371),\"\")","v":""},"-",{"$f":"IF(OR(ISNUMBER(Z368),ISNUMBER(Z369),ISNUMBER(Z370),ISNUMBER(Z371)),4-COUNTBLANK(AJ368:AJ371),\"\")","v":""},{"$f":"G342","v":"Eq5"},null,{"$f":"IF(Z367=\"\",\"\",IF(Z367>AB367,Y367,IF(Z367=AB367,IF(NoDrawWithWithdraw,IF(AL367=Y367,AC367,IF(AL367=AC367,Y367,\"\")),\"\"),AC367)))","v":""},{"$f":"IF(Z367=\"\",\"\",IF(Z367=AB367,IF(NoDrawWithWithdraw,IF(AL367=Y367,\"\",IF(AL367=AC367,\"\",Y367)),Y367),\"\"))","v":""},{"$f":"IF(Z367=\"\",\"\",IF(Z367=AB367,IF(NoDrawWithWithdraw,IF(AL367=Y367,\"\",IF(AL367=AC367,\"\",AC367)),AC367),\"\"))","v":""},{"$f":"IF(Z367=\"\",\"\",IF(Z367<AB367,Y367,IF(Z367=AB367,IF(NoDrawWithWithdraw,IF(AL367=Y367,Y367,IF(AL367=AC367,AC367,\"\")),\"\"),AC367)))","v":""},{"$f":"IF(Z367=\"\",\"\",SUM(Z368:Z371))","v":""},{"$f":"IF(Z367=\"\",\"\",SUM(AB368:AB371))","v":""},{"$f":"CONCATENATE(AE367,AH367)","v":""},{"$f":"IF(COUNTIF(Y368:Y371,WithdrawLabel)>COUNTIF(AC368:AC371,WithdrawLabel),Y367,IF(COUNTIF(AC368:AC371,WithdrawLabel)>COUNTIF(Y368:Y371,WithdrawLabel),AC367,\"\"))","v":""}]
[null,null,null,null,null,null,null,null,null,null,null,null,null,null,null,null,null,null,null,null,null,null,null,null,null,null,"-",null,null,null,{"$f":"IF(Z368=\"\",\"\",IF(Z368>AB368,Y368,IF(Z368=AB368,\"\",AC368)))","v":""},{"$f":"IF(Z368=\"\",\"\",IF(Z368=AB368,Y368,\"\"))","v":""},{"$f":"IF(Z368=\"\",\"\",IF(Z368=AB368,AC368,\"\"))","v":""},{"$f":"IF(Z368=\"\",\"\",IF(Z368<AB368,Y368,IF(Z368=AB368,\"\",AC368)))","v":""},{"$f":"IF(Z368=\"\",\"\",IF(Z368>AB368,Y367,\"\"))","v":""},{"$f":"IF(Z368=\"\",\"\",IF(Z368<AB368,AC367,\"\"))","v":""},{"$f":"CONCATENATE(AE368,AH368)","v":""}]
[null,null,null,null,null,null,null,null,null,null,null,null,null,null,null,null,null,null,null,null,null,null,null,null,null,null,"-",null,null,null,{"$f":"IF(Z369=\"\",\"\",IF(Z369>AB369,Y369,IF(Z369=AB369,\"\",AC369)))","v":""},{"$f":"IF(Z369=\"\",\"\",IF(Z369=AB369,Y369,\"\"))","v":""},{"$f":"IF(Z369=\"\",\"\",IF(Z369=AB369,AC369,\"\"))","v":""},{"$f":"IF(Z369=\"\",\"\",IF(Z369<AB369,Y369,IF(Z369=AB369,\"\",AC369)))","v":""},{"$f":"IF(Z369=\"\",\"\",IF(Z369>AB369,Y367,\"\"))","v":""},{"$f":"IF(Z369=\"\",\"\",IF(Z369<AB369,AC367,\"\"))","v":""},{"$f":"CONCATENATE(AE369,AH369)","v":""}]
[null,null,null,null,null,null,null,null,null,null,null,null,null,null,null,null,null,null,null,null,null,null,null,null,null,null,"-",null,null,null,{"$f":"IF(Z370=\"\",\"\",IF(Z370>AB370,Y370,IF(Z370=AB370,\"\",AC370)))","v":""},{"$f":"IF(Z370=\"\",\"\",IF(Z370=AB370,Y370,\"\"))","v":""},{"$f":"IF(Z370=\"\",\"\",IF(Z370=AB370,AC370,\"\"))","v":""},{"$f":"IF(Z370=\"\",\"\",IF(Z370<AB370,Y370,IF(Z370=AB370,\"\",AC370)))","v":""},{"$f":"IF(Z370=\"\",\"\",IF(Z370>AB370,Y367,\"\"))","v":""},{"$f":"IF(Z370=\"\",\"\",IF(Z370<AB370,AC367,\"\"))","v":""},{"$f":"CONCATENATE(AE370,AH370)","v":""}]
[null,null,null,null,null,null,null,null,null,null,null,null,null,null,null,null,null,null,null,null,null,null,null,null,null,null,"-",null,null,null,{"$f":"IF(Z371=\"\",\"\",IF(Z371>AB371,Y371,IF(Z371=AB371,\"\",AC371)))","v":""},{"$f":"IF(Z371=\"\",\"\",IF(Z371=AB371,Y371,\"\"))","v":""},{"$f":"IF(Z371=\"\",\"\",IF(Z371=AB371,AC371,\"\"))","v":""},{"$f":"IF(Z371=\"\",\"\",IF(Z371<AB371,Y371,IF(Z371=AB371,\"\",AC371)))","v":""},{"$f":"IF(Z371=\"\",\"\",IF(Z371>AB371,Y367,\"\"))","v":""},{"$f":"IF(Z371=\"\",\"\",IF(Z371<AB371,AC367,\"\"))","v":""},{"$f":"CONCATENATE(AE371,AH371)","v":""}]
[null,null,null,null,null,null,null,null,null,null,null,null,null,null,null,null,null,null,null,null,null,null,null,{"$f":"N_Substitute","v":"Substitute"}]
[null,null,null,null,null,null,null,null,null,null,null,null,null,null,null,null,null,null,null,null,null,null,null,{"$f":"N_Substitute","v":"Substitute"}]
[null,null,null,null,null,null,null,null,null,null,null,null,null,null,null,null,null,null,null,null,"#G2",null,null,null,{"$f":"G339","v":"Eq2"},{"$f":"IF(OR(ISNUMBER(Z375),ISNUMBER(Z376),ISNUMBER(Z377),ISNUMBER(Z378)),4-COUNTBLANK(AI375:AI378),\"\")","v":""},"-",{"$f":"IF(OR(ISNUMBER(Z375),ISNUMBER(Z376),ISNUMBER(Z377),ISNUMBER(Z378)),4-COUNTBLANK(AJ375:AJ378),\"\")","v":""},{"$f":"G341","v":"Eq4"},null,{"$f":"IF(Z374=\"\",\"\",IF(Z374>AB374,Y374,IF(Z374=AB374,IF(NoDrawWithWithdraw,IF(AL374=Y374,AC374,IF(AL374=AC374,Y374,\"\")),\"\"),AC374)))","v":""},{"$f":"IF(Z374=\"\",\"\",IF(Z374=AB374,IF(NoDrawWithWithdraw,IF(AL374=Y374,\"\",IF(AL374=AC374,\"\",Y374)),Y374),\"\"))","v":""},{"$f":"IF(Z374=\"\",\"\",IF(Z374=AB374,IF(NoDrawWithWithdraw,IF(AL374=Y374,\"\",IF(AL374=AC374,\"\",AC374)),AC374),\"\"))","v":""},{"$f":"IF(Z374=\"\",\"\",IF(Z374<AB374,Y374,IF(Z374=AB374,IF(NoDrawWithWithdraw,IF(AL374=Y374,Y374,IF(AL374=AC374,AC374,\"\")),\"\"),AC374)))","v":""},{"$f":"IF(Z374=\"\",\"\",SUM(Z375:Z378))","v":""},{"$f":"IF(Z374=\"\",\"\",SUM(AB375:AB378))","v":""},{"$f":"CONCATENATE(AE374,AH374)","v":""},{"$f":"IF(COUNTIF(Y375:Y378,WithdrawLabel)>COUNTIF(AC375:AC378,WithdrawLabel),Y374,IF(COUNTIF(AC375:AC378,WithdrawLabel)>COUNTIF(Y375:Y378,WithdrawLabel),AC374,\"\"))","v":""}]
[null,null,null,null,null,null,null,null,null,null,null,null,null,null,null,null,null,null,null,null,null,null,null,null,null,null,"-",null,null,null,{"$f":"IF(Z375=\"\",\"\",IF(Z375>AB375,Y375,IF(Z375=AB375,\"\",AC375)))","v":""},{"$f":"IF(Z375=\"\",\"\",IF(Z375=AB375,Y375,\"\"))","v":""},{"$f":"IF(Z375=\"\",\"\",IF(Z375=AB375,AC375,\"\"))","v":""},{"$f":"IF(Z375=\"\",\"\",IF(Z375<AB375,Y375,IF(Z375=AB375,\"\",AC375)))","v":""},{"$f":"IF(Z375=\"\",\"\",IF(Z375>AB375,Y374,\"\"))","v":""},{"$f":"IF(Z375=\"\",\"\",IF(Z375<AB375,AC374,\"\"))","v":""},{"$f":"CONCATENATE(AE375,AH375)","v":""}]
[null,null,null,null,null,null,null,null,null,null,null,null,null,null,null,null,null,null,null,null,null,null,null,null,null,null,"-",null,null,null,{"$f":"IF(Z376=\"\",\"\",IF(Z376>AB376,Y376,IF(Z376=AB376,\"\",AC376)))","v":""},{"$f":"IF(Z376=\"\",\"\",IF(Z376=AB376,Y376,\"\"))","v":""},{"$f":"IF(Z376=\"\",\"\",IF(Z376=AB376,AC376,\"\"))","v":""},{"$f":"IF(Z376=\"\",\"\",IF(Z376<AB376,Y376,IF(Z376=AB376,\"\",AC376)))","v":""},{"$f":"IF(Z376=\"\",\"\",IF(Z376>AB376,Y374,\"\"))","v":""},{"$f":"IF(Z376=\"\",\"\",IF(Z376<AB376,AC374,\"\"))","v":""},{"$f":"CONCATENATE(AE376,AH376)","v":""}]
[null,null,null,null,null,null,null,null,null,null,null,null,null,null,null,null,null,null,null,null,null,null,null,null,null,null,"-",null,null,null,{"$f":"IF(Z377=\"\",\"\",IF(Z377>AB377,Y377,IF(Z377=AB377,\"\",AC377)))","v":""},{"$f":"IF(Z377=\"\",\"\",IF(Z377=AB377,Y377,\"\"))","v":""},{"$f":"IF(Z377=\"\",\"\",IF(Z377=AB377,AC377,\"\"))","v":""},{"$f":"IF(Z377=\"\",\"\",IF(Z377<AB377,Y377,IF(Z377=AB377,\"\",AC377)))","v":""},{"$f":"IF(Z377=\"\",\"\",IF(Z377>AB377,Y374,\"\"))","v":""},{"$f":"IF(Z377=\"\",\"\",IF(Z377<AB377,AC374,\"\"))","v":""},{"$f":"CONCATENATE(AE377,AH377)","v":""}]
[null,null,null,null,null,null,null,null,null,null,null,null,null,null,null,null,null,null,null,null,null,null,null,null,null,null,"-",null,null,null,{"$f":"IF(Z378=\"\",\"\",IF(Z378>AB378,Y378,IF(Z378=AB378,\"\",AC378)))","v":""},{"$f":"IF(Z378=\"\",\"\",IF(Z378=AB378,Y378,\"\"))","v":""},{"$f":"IF(Z378=\"\",\"\",IF(Z378=AB378,AC378,\"\"))","v":""},{"$f":"IF(Z378=\"\",\"\",IF(Z378<AB378,Y378,IF(Z378=AB378,\"\",AC378)))","v":""},{"$f":"IF(Z378=\"\",\"\",IF(Z378>AB378,Y374,\"\"))","v":""},{"$f":"IF(Z378=\"\",\"\",IF(Z378<AB378,AC374,\"\"))","v":""},{"$f":"CONCATENATE(AE378,AH378)","v":""}]
[null,null,null,null,null,null,null,null,null,null,null,null,null,null,null,null,null,null,null,null,null,null,null,{"$f":"N_Substitute","v":"Substitute"}]
[null,null,null,null,null,null,null,null,null,null,null,null,null,null,null,null,null,null,null,null,null,null,null,{"$f":"N_Substitute","v":"Substitute"}]
[null,null,null,null,null,null,null,null,null,null,null,null,null,null,null,null,null,null,null,null,"#G2",null,null,null,{"$f":"G343","v":"Eq6"},{"$f":"IF(OR(ISNUMBER(Z382),ISNUMBER(Z383),ISNUMBER(Z384),ISNUMBER(Z385)),4-COUNTBLANK(AI382:AI385),\"\")","v":""},"-",{"$f":"IF(OR(ISNUMBER(Z382),ISNUMBER(Z383),ISNUMBER(Z384),ISNUMBER(Z385)),4-COUNTBLANK(AJ382:AJ385),\"\")","v":""},{"$f":"G344","v":"Eq7"},null,{"$f":"IF(Z381=\"\",\"\",IF(Z381>AB381,Y381,IF(Z381=AB381,IF(NoDrawWithWithdraw,IF(AL381=Y381,AC381,IF(AL381=AC381,Y381,\"\")),\"\"),AC381)))","v":""},{"$f":"IF(Z381=\"\",\"\",IF(Z381=AB381,IF(NoDrawWithWithdraw,IF(AL381=Y381,\"\",IF(AL381=AC381,\"\",Y381)),Y381),\"\"))","v":""},{"$f":"IF(Z381=\"\",\"\",IF(Z381=AB381,IF(NoDrawWithWithdraw,IF(AL381=Y381,\"\",IF(AL381=AC381,\"\",AC381)),AC381),\"\"))","v":""},{"$f":"IF(Z381=\"\",\"\",IF(Z381<AB381,Y381,IF(Z381=AB381,IF(NoDrawWithWithdraw,IF(AL381=Y381,Y381,IF(AL381=AC381,AC381,\"\")),\"\"),AC381)))","v":""},{"$f":"IF(Z381=\"\",\"\",SUM(Z382:Z385))","v":""},{"$f":"IF(Z381=\"\",\"\",SUM(AB382:AB385))","v":""},{"$f":"CONCATENATE(AE381,AH381)","v":""},{"$f":"IF(COUNTIF(Y382:Y385,WithdrawLabel)>COUNTIF(AC382:AC385,WithdrawLabel),Y381,IF(COUNTIF(AC382:AC385,WithdrawLabel)>COUNTIF(Y382:Y385,WithdrawLabel),AC381,\"\"))","v":""}]
[null,null,null,null,null,null,null,null,null,null,null,null,null,null,null,null,null,null,null,null,null,null,null,null,null,null,"-",null,null,null,{"$f":"IF(Z382=\"\",\"\",IF(Z382>AB382,Y382,IF(Z382=AB382,\"\",AC382)))","v":""},{"$f":"IF(Z382=\"\",\"\",IF(Z382=AB382,Y382,\"\"))","v":""},{"$f":"IF(Z382=\"\",\"\",IF(Z382=AB382,AC382,\"\"))","v":""},{"$f":"IF(Z382=\"\",\"\",IF(Z382<AB382,Y382,IF(Z382=AB382,\"\",AC382)))","v":""},{"$f":"IF(Z382=\"\",\"\",IF(Z382>AB382,Y381,\"\"))","v":""},{"$f":"IF(Z382=\"\",\"\",IF(Z382<AB382,AC381,\"\"))","v":""},{"$f":"CONCATENATE(AE382,AH382)","v":""}]
[null,null,null,null,null,null,null,null,null,null,null,null,null,null,null,null,null,null,null,null,null,null,null,null,null,null,"-",null,null,null,{"$f":"IF(Z383=\"\",\"\",IF(Z383>AB383,Y383,IF(Z383=AB383,\"\",AC383)))","v":""},{"$f":"IF(Z383=\"\",\"\",IF(Z383=AB383,Y383,\"\"))","v":""},{"$f":"IF(Z383=\"\",\"\",IF(Z383=AB383,AC383,\"\"))","v":""},{"$f":"IF(Z383=\"\",\"\",IF(Z383<AB383,Y383,IF(Z383=AB383,\"\",AC383)))","v":""},{"$f":"IF(Z383=\"\",\"\",IF(Z383>AB383,Y381,\"\"))","v":""},{"$f":"IF(Z383=\"\",\"\",IF(Z383<AB383,AC381,\"\"))","v":""},{"$f":"CONCATENATE(AE383,AH383)","v":""}]
[null,null,null,null,null,null,null,null,null,null,null,null,null,null,null,null,null,null,null,null,null,null,null,null,null,null,"-",null,null,null,{"$f":"IF(Z384=\"\",\"\",IF(Z384>AB384,Y384,IF(Z384=AB384,\"\",AC384)))","v":""},{"$f":"IF(Z384=\"\",\"\",IF(Z384=AB384,Y384,\"\"))","v":""},{"$f":"IF(Z384=\"\",\"\",IF(Z384=AB384,AC384,\"\"))","v":""},{"$f":"IF(Z384=\"\",\"\",IF(Z384<AB384,Y384,IF(Z384=AB384,\"\",AC384)))","v":""},{"$f":"IF(Z384=\"\",\"\",IF(Z384>AB384,Y381,\"\"))","v":""},{"$f":"IF(Z384=\"\",\"\",IF(Z384<AB384,AC381,\"\"))","v":""},{"$f":"CONCATENATE(AE384,AH384)","v":""}]
[null,null,null,null,null,null,null,null,null,null,null,null,null,null,null,null,null,null,null,null,null,null,null,null,null,null,"-",null,null,null,{"$f":"IF(Z385=\"\",\"\",IF(Z385>AB385,Y385,IF(Z385=AB385,\"\",AC385)))","v":""},{"$f":"IF(Z385=\"\",\"\",IF(Z385=AB385,Y385,\"\"))","v":""},{"$f":"IF(Z385=\"\",\"\",IF(Z385=AB385,AC385,\"\"))","v":""},{"$f":"IF(Z385=\"\",\"\",IF(Z385<AB385,Y385,IF(Z385=AB385,\"\",AC385)))","v":""},{"$f":"IF(Z385=\"\",\"\",IF(Z385>AB385,Y381,\"\"))","v":""},{"$f":"IF(Z385=\"\",\"\",IF(Z385<AB385,AC381,\"\"))","v":""},{"$f":"CONCATENATE(AE385,AH385)","v":""}]
[null,null,null,null,null,null,null,null,null,null,null,null,null,null,null,null,null,null,null,null,null,null,null,{"$f":"N_Substitute","v":"Substitute"}]
[null,null,null,null,null,null,null,null,null,null,null,null,null,null,null,null,null,null,null,null,null,null,null,{"$f":"N_Substitute","v":"Substitute"}]
[null,null,null,null,null,null,null,null,null,null,null,null,null,null,null,null,null,null,null,null,"#G3",null,null,null,{"$f":"G339","v":"Eq2"},{"$f":"IF(OR(ISNUMBER(Z389),ISNUMBER(Z390),ISNUMBER(Z391),ISNUMBER(Z392)),4-COUNTBLANK(AI389:AI392),\"\")","v":""},"-",{"$f":"IF(OR(ISNUMBER(Z389),ISNUMBER(Z390),ISNUMBER(Z391),ISNUMBER(Z392)),4-COUNTBLANK(AJ389:AJ392),\"\")","v":""},{"$f":"G343","v":"Eq6"},null,{"$f":"IF(Z388=\"\",\"\",IF(Z388>AB388,Y388,IF(Z388=AB388,IF(NoDrawWithWithdraw,IF(AL388=Y388,AC388,IF(AL388=AC388,Y388,\"\")),\"\"),AC388)))","v":""},{"$f":"IF(Z388=\"\",\"\",IF(Z388=AB388,IF(NoDrawWithWithdraw,IF(AL388=Y388,\"\",IF(AL388=AC388,\"\",Y388)),Y388),\"\"))","v":""},{"$f":"IF(Z388=\"\",\"\",IF(Z388=AB388,IF(NoDrawWithWithdraw,IF(AL388=Y388,\"\",IF(AL388=AC388,\"\",AC388)),AC388),\"\"))","v":""},{"$f":"IF(Z388=\"\",\"\",IF(Z388<AB388,Y388,IF(Z388=AB388,IF(NoDrawWithWithdraw,IF(AL388=Y388,Y388,IF(AL388=AC388,AC388,\"\")),\"\"),AC388)))","v":""},{"$f":"IF(Z388=\"\",\"\",SUM(Z389:Z392))","v":""},{"$f":"IF(Z388=\"\",\"\",SUM(AB389:AB392))","v":""},{"$f":"CONCATENATE(AE388,AH388)","v":""},{"$f":"IF(COUNTIF(Y389:Y392,WithdrawLabel)>COUNTIF(AC389:AC392,WithdrawLabel),Y388,IF(COUNTIF(AC389:AC392,WithdrawLabel)>COUNTIF(Y389:Y392,WithdrawLabel),AC388,\"\"))","v":""}]
[null,null,null,null,null,null,null,null,null,null,null,null,null,null,null,null,null,null,null,null,null,null,null,null,null,null,"-",null,null,null,{"$f":"IF(Z389=\"\",\"\",IF(Z389>AB389,Y389,IF(Z389=AB389,\"\",AC389)))","v":""},{"$f":"IF(Z389=\"\",\"\",IF(Z389=AB389,Y389,\"\"))","v":""},{"$f":"IF(Z389=\"\",\"\",IF(Z389=AB389,AC389,\"\"))","v":""},{"$f":"IF(Z389=\"\",\"\",IF(Z389<AB389,Y389,IF(Z389=AB389,\"\",AC389)))","v":""},{"$f":"IF(Z389=\"\",\"\",IF(Z389>AB389,Y388,\"\"))","v":""},{"$f":"IF(Z389=\"\",\"\",IF(Z389<AB389,AC388,\"\"))","v":""},{"$f":"CONCATENATE(AE389,AH389)","v":""}]
[null,null,null,null,null,null,null,null,null,null,null,null,null,null,null,null,null,null,null,null,null,null,null,null,null,null,"-",null,null,null,{"$f":"IF(Z390=\"\",\"\",IF(Z390>AB390,Y390,IF(Z390=AB390,\"\",AC390)))","v":""},{"$f":"IF(Z390=\"\",\"\",IF(Z390=AB390,Y390,\"\"))","v":""},{"$f":"IF(Z390=\"\",\"\",IF(Z390=AB390,AC390,\"\"))","v":""},{"$f":"IF(Z390=\"\",\"\",IF(Z390<AB390,Y390,IF(Z390=AB390,\"\",AC390)))","v":""},{"$f":"IF(Z390=\"\",\"\",IF(Z390>AB390,Y388,\"\"))","v":""},{"$f":"IF(Z390=\"\",\"\",IF(Z390<AB390,AC388,\"\"))","v":""},{"$f":"CONCATENATE(AE390,AH390)","v":""}]
[null,null,null,null,null,null,null,null,null,null,null,null,null,null,null,null,null,null,null,null,null,null,null,null,null,null,"-",null,null,null,{"$f":"IF(Z391=\"\",\"\",IF(Z391>AB391,Y391,IF(Z391=AB391,\"\",AC391)))","v":""},{"$f":"IF(Z391=\"\",\"\",IF(Z391=AB391,Y391,\"\"))","v":""},{"$f":"IF(Z391=\"\",\"\",IF(Z391=AB391,AC391,\"\"))","v":""},{"$f":"IF(Z391=\"\",\"\",IF(Z391<AB391,Y391,IF(Z391=AB391,\"\",AC391)))","v":""},{"$f":"IF(Z391=\"\",\"\",IF(Z391>AB391,Y388,\"\"))","v":""},{"$f":"IF(Z391=\"\",\"\",IF(Z391<AB391,AC388,\"\"))","v":""},{"$f":"CONCATENATE(AE391,AH391)","v":""}]
[null,null,null,null,null,null,null,null,null,null,null,null,null,null,null,null,null,null,null,null,null,null,null,null,null,null,"-",null,null,null,{"$f":"IF(Z392=\"\",\"\",IF(Z392>AB392,Y392,IF(Z392=AB392,\"\",AC392)))","v":""},{"$f":"IF(Z392=\"\",\"\",IF(Z392=AB392,Y392,\"\"))","v":""},{"$f":"IF(Z392=\"\",\"\",IF(Z392=AB392,AC392,\"\"))","v":""},{"$f":"IF(Z392=\"\",\"\",IF(Z392<AB392,Y392,IF(Z392=AB392,\"\",AC392)))","v":""},{"$f":"IF(Z392=\"\",\"\",IF(Z392>AB392,Y388,\"\"))","v":""},{"$f":"IF(Z392=\"\",\"\",IF(Z392<AB392,AC388,\"\"))","v":""},{"$f":"CONCATENATE(AE392,AH392)","v":""}]
[null,null,null,null,null,null,null,null,null,null,null,null,null,null,null,null,null,null,null,null,null,null,null,{"$f":"N_Substitute","v":"Substitute"}]
[null,null,null,null,null,null,null,null,null,null,null,null,null,null,null,null,null,null,null,null,null,null,null,{"$f":"N_Substitute","v":"Substitute"}]
[null,null,null,null,null,null,null,null,null,null,null,null,null,null,null,null,null,null,null,null,"#G3",null,null,null,{"$f":"G340","v":"Eq3"},{"$f":"IF(OR(ISNUMBER(Z396),ISNUMBER(Z397),ISNUMBER(Z398),ISNUMBER(Z399)),4-COUNTBLANK(AI396:AI399),\"\")","v":""},"-",{"$f":"IF(OR(ISNUMBER(Z396),ISNUMBER(Z397),ISNUMBER(Z398),ISNUMBER(Z399)),4-COUNTBLANK(AJ396:AJ399),\"\")","v":""},{"$f":"G342","v":"Eq5"},null,{"$f":"IF(Z395=\"\",\"\",IF(Z395>AB395,Y395,IF(Z395=AB395,IF(NoDrawWithWithdraw,IF(AL395=Y395,AC395,IF(AL395=AC395,Y395,\"\")),\"\"),AC395)))","v":""},{"$f":"IF(Z395=\"\",\"\",IF(Z395=AB395,IF(NoDrawWithWithdraw,IF(AL395=Y395,\"\",IF(AL395=AC395,\"\",Y395)),Y395),\"\"))","v":""},{"$f":"IF(Z395=\"\",\"\",IF(Z395=AB395,IF(NoDrawWithWithdraw,IF(AL395=Y395,\"\",IF(AL395=AC395,\"\",AC395)),AC395),\"\"))","v":""},{"$f":"IF(Z395=\"\",\"\",IF(Z395<AB395,Y395,IF(Z395=AB395,IF(NoDrawWithWithdraw,IF(AL395=Y395,Y395,IF(AL395=AC395,AC395,\"\")),\"\"),AC395)))","v":""},{"$f":"IF(Z395=\"\",\"\",SUM(Z396:Z399))","v":""},{"$f":"IF(Z395=\"\",\"\",SUM(AB396:AB399))","v":""},{"$f":"CONCATENATE(AE395,AH395)","v":""},{"$f":"IF(COUNTIF(Y396:Y399,WithdrawLabel)>COUNTIF(AC396:AC399,WithdrawLabel),Y395,IF(COUNTIF(AC396:AC399,WithdrawLabel)>COUNTIF(Y396:Y399,WithdrawLabel),AC395,\"\"))","v":""}]
[null,null,null,null,null,null,null,null,null,null,null,null,null,null,null,null,null,null,null,null,null,null,null,null,null,null,"-",null,null,null,{"$f":"IF(Z396=\"\",\"\",IF(Z396>AB396,Y396,IF(Z396=AB396,\"\",AC396)))","v":""},{"$f":"IF(Z396=\"\",\"\",IF(Z396=AB396,Y396,\"\"))","v":""},{"$f":"IF(Z396=\"\",\"\",IF(Z396=AB396,AC396,\"\"))","v":""},{"$f":"IF(Z396=\"\",\"\",IF(Z396<AB396,Y396,IF(Z396=AB396,\"\",AC396)))","v":""},{"$f":"IF(Z396=\"\",\"\",IF(Z396>AB396,Y395,\"\"))","v":""},{"$f":"IF(Z396=\"\",\"\",IF(Z396<AB396,AC395,\"\"))","v":""},{"$f":"CONCATENATE(AE396,AH396)","v":""}]
[null,null,null,null,null,null,null,null,null,null,null,null,null,null,null,null,null,null,null,null,null,null,null,null,null,null,"-",null,null,null,{"$f":"IF(Z397=\"\",\"\",IF(Z397>AB397,Y397,IF(Z397=AB397,\"\",AC397)))","v":""},{"$f":"IF(Z397=\"\",\"\",IF(Z397=AB397,Y397,\"\"))","v":""},{"$f":"IF(Z397=\"\",\"\",IF(Z397=AB397,AC397,\"\"))","v":""},{"$f":"IF(Z397=\"\",\"\",IF(Z397<AB397,Y397,IF(Z397=AB397,\"\",AC397)))","v":""},{"$f":"IF(Z397=\"\",\"\",IF(Z397>AB397,Y395,\"\"))","v":""},{"$f":"IF(Z397=\"\",\"\",IF(Z397<AB397,AC395,\"\"))","v":""},{"$f":"CONCATENATE(AE397,AH397)","v":""}]
[null,null,null,null,null,null,null,null,null,null,null,null,null,null,null,null,null,null,null,null,null,null,null,null,null,null,"-",null,null,null,{"$f":"IF(Z398=\"\",\"\",IF(Z398>AB398,Y398,IF(Z398=AB398,\"\",AC398)))","v":""},{"$f":"IF(Z398=\"\",\"\",IF(Z398=AB398,Y398,\"\"))","v":""},{"$f":"IF(Z398=\"\",\"\",IF(Z398=AB398,AC398,\"\"))","v":""},{"$f":"IF(Z398=\"\",\"\",IF(Z398<AB398,Y398,IF(Z398=AB398,\"\",AC398)))","v":""},{"$f":"IF(Z398=\"\",\"\",IF(Z398>AB398,Y395,\"\"))","v":""},{"$f":"IF(Z398=\"\",\"\",IF(Z398<AB398,AC395,\"\"))","v":""},{"$f":"CONCATENATE(AE398,AH398)","v":""}]
[null,null,null,null,null,null,null,null,null,null,null,null,null,null,null,null,null,null,null,null,null,null,null,null,null,null,"-",null,null,null,{"$f":"IF(Z399=\"\",\"\",IF(Z399>AB399,Y399,IF(Z399=AB399,\"\",AC399)))","v":""},{"$f":"IF(Z399=\"\",\"\",IF(Z399=AB399,Y399,\"\"))","v":""},{"$f":"IF(Z399=\"\",\"\",IF(Z399=AB399,AC399,\"\"))","v":""},{"$f":"IF(Z399=\"\",\"\",IF(Z399<AB399,Y399,IF(Z399=AB399,\"\",AC399)))","v":""},{"$f":"IF(Z399=\"\",\"\",IF(Z399>AB399,Y395,\"\"))","v":""},{"$f":"IF(Z399=\"\",\"\",IF(Z399<AB399,AC395,\"\"))","v":""},{"$f":"CONCATENATE(AE399,AH399)","v":""}]
[null,null,null,null,null,null,null,null,null,null,null,null,null,null,null,null,null,null,null,null,null,null,null,{"$f":"N_Substitute","v":"Substitute"}]
[null,null,null,null,null,null,null,null,null,null,null,null,null,null,null,null,null,null,null,null,null,null,null,{"$f":"N_Substitute","v":"Substitute"}]
[null,null,null,null,null,null,null,null,null,null,null,null,null,null,null,null,null,null,null,null,"#G3",null,null,null,{"$f":"G344","v":"Eq7"},{"$f":"IF(OR(ISNUMBER(Z403),ISNUMBER(Z404),ISNUMBER(Z405),ISNUMBER(Z406)),4-COUNTBLANK(AI403:AI406),\"\")","v":""},"-",{"$f":"IF(OR(ISNUMBER(Z403),ISNUMBER(Z404),ISNUMBER(Z405),ISNUMBER(Z406)),4-COUNTBLANK(AJ403:AJ406),\"\")","v":""},{"$f":"G338","v":"Eq1"},null,{"$f":"IF(Z402=\"\",\"\",IF(Z402>AB402,Y402,IF(Z402=AB402,IF(NoDrawWithWithdraw,IF(AL402=Y402,AC402,IF(AL402=AC402,Y402,\"\")),\"\"),AC402)))","v":""},{"$f":"IF(Z402=\"\",\"\",IF(Z402=AB402,IF(NoDrawWithWithdraw,IF(AL402=Y402,\"\",IF(AL402=AC402,\"\",Y402)),Y402),\"\"))","v":""},{"$f":"IF(Z402=\"\",\"\",IF(Z402=AB402,IF(NoDrawWithWithdraw,IF(AL402=Y402,\"\",IF(AL402=AC402,\"\",AC402)),AC402),\"\"))","v":""},{"$f":"IF(Z402=\"\",\"\",IF(Z402<AB402,Y402,IF(Z402=AB402,IF(NoDrawWithWithdraw,IF(AL402=Y402,Y402,IF(AL402=AC402,AC402,\"\")),\"\"),AC402)))","v":""},{"$f":"IF(Z402=\"\",\"\",SUM(Z403:Z406))","v":""},{"$f":"IF(Z402=\"\",\"\",SUM(AB403:AB406))","v":""},{"$f":"CONCATENATE(AE402,AH402)","v":""},{"$f":"IF(COUNTIF(Y403:Y406,WithdrawLabel)>COUNTIF(AC403:AC406,WithdrawLabel),Y402,IF(COUNTIF(AC403:AC406,WithdrawLabel)>COUNTIF(Y403:Y406,WithdrawLabel),AC402,\"\"))","v":""}]
[null,null,null,null,null,null,null,null,null,null,null,null,null,null,null,null,null,null,null,null,null,null,null,null,null,null,"-",null,null,null,{"$f":"IF(Z403=\"\",\"\",IF(Z403>AB403,Y403,IF(Z403=AB403,\"\",AC403)))","v":""},{"$f":"IF(Z403=\"\",\"\",IF(Z403=AB403,Y403,\"\"))","v":""},{"$f":"IF(Z403=\"\",\"\",IF(Z403=AB403,AC403,\"\"))","v":""},{"$f":"IF(Z403=\"\",\"\",IF(Z403<AB403,Y403,IF(Z403=AB403,\"\",AC403)))","v":""},{"$f":"IF(Z403=\"\",\"\",IF(Z403>AB403,Y402,\"\"))","v":""},{"$f":"IF(Z403=\"\",\"\",IF(Z403<AB403,AC402,\"\"))","v":""},{"$f":"CONCATENATE(AE403,AH403)","v":""}]
[null,null,null,null,null,null,null,null,null,null,null,null,null,null,null,null,null,null,null,null,null,null,null,null,null,null,"-",null,null,null,{"$f":"IF(Z404=\"\",\"\",IF(Z404>AB404,Y404,IF(Z404=AB404,\"\",AC404)))","v":""},{"$f":"IF(Z404=\"\",\"\",IF(Z404=AB404,Y404,\"\"))","v":""},{"$f":"IF(Z404=\"\",\"\",IF(Z404=AB404,AC404,\"\"))","v":""},{"$f":"IF(Z404=\"\",\"\",IF(Z404<AB404,Y404,IF(Z404=AB404,\"\",AC404)))","v":""},{"$f":"IF(Z404=\"\",\"\",IF(Z404>AB404,Y402,\"\"))","v":""},{"$f":"IF(Z404=\"\",\"\",IF(Z404<AB404,AC402,\"\"))","v":""},{"$f":"CONCATENATE(AE404,AH404)","v":""}]
[null,null,null,null,null,null,null,null,null,null,null,null,null,null,null,null,null,null,null,null,null,null,null,null,null,null,"-",null,null,null,{"$f":"IF(Z405=\"\",\"\",IF(Z405>AB405,Y405,IF(Z405=AB405,\"\",AC405)))","v":""},{"$f":"IF(Z405=\"\",\"\",IF(Z405=AB405,Y405,\"\"))","v":""},{"$f":"IF(Z405=\"\",\"\",IF(Z405=AB405,AC405,\"\"))","v":""},{"$f":"IF(Z405=\"\",\"\",IF(Z405<AB405,Y405,IF(Z405=AB405,\"\",AC405)))","v":""},{"$f":"IF(Z405=\"\",\"\",IF(Z405>AB405,Y402,\"\"))","v":""},{"$f":"IF(Z405=\"\",\"\",IF(Z405<AB405,AC402,\"\"))","v":""},{"$f":"CONCATENATE(AE405,AH405)","v":""}]
[null,null,null,null,null,null,null,null,null,null,null,null,null,null,null,null,null,null,null,null,null,null,null,null,null,null,"-",null,null,null,{"$f":"IF(Z406=\"\",\"\",IF(Z406>AB406,Y406,IF(Z406=AB406,\"\",AC406)))","v":""},{"$f":"IF(Z406=\"\",\"\",IF(Z406=AB406,Y406,\"\"))","v":""},{"$f":"IF(Z406=\"\",\"\",IF(Z406=AB406,AC406,\"\"))","v":""},{"$f":"IF(Z406=\"\",\"\",IF(Z406<AB406,Y406,IF(Z406=AB406,\"\",AC406)))","v":""},{"$f":"IF(Z406=\"\",\"\",IF(Z406>AB406,Y402,\"\"))","v":""},{"$f":"IF(Z406=\"\",\"\",IF(Z406<AB406,AC402,\"\"))","v":""},{"$f":"CONCATENATE(AE406,AH406)","v":""}]
[null,null,null,null,null,null,null,null,null,null,null,null,null,null,null,null,null,null,null,null,null,null,null,{"$f":"N_Substitute","v":"Substitute"}]
[null,null,null,null,null,null,null,null,null,null,null,null,null,null,null,null,null,null,null,null,null,null,null,{"$f":"N_Substitute","v":"Substitute"}]
[null,null,null,null,null,null,null,null,null,null,null,null,null,null,null,null,null,null,null,null,"#G4",null,null,null,{"$f":"G338","v":"Eq1"},{"$f":"IF(OR(ISNUMBER(Z410),ISNUMBER(Z411),ISNUMBER(Z412),ISNUMBER(Z413)),4-COUNTBLANK(AI410:AI413),\"\")","v":""},"-",{"$f":"IF(OR(ISNUMBER(Z410),ISNUMBER(Z411),ISNUMBER(Z412),ISNUMBER(Z413)),4-COUNTBLANK(AJ410:AJ413),\"\")","v":""},{"$f":"G339","v":"Eq2"},null,{"$f":"IF(Z409=\"\",\"\",IF(Z409>AB409,Y409,IF(Z409=AB409,IF(NoDrawWithWithdraw,IF(AL409=Y409,AC409,IF(AL409=AC409,Y409,\"\")),\"\"),AC409)))","v":""},{"$f":"IF(Z409=\"\",\"\",IF(Z409=AB409,IF(NoDrawWithWithdraw,IF(AL409=Y409,\"\",IF(AL409=AC409,\"\",Y409)),Y409),\"\"))","v":""},{"$f":"IF(Z409=\"\",\"\",IF(Z409=AB409,IF(NoDrawWithWithdraw,IF(AL409=Y409,\"\",IF(AL409=AC409,\"\",AC409)),AC409),\"\"))","v":""},{"$f":"IF(Z409=\"\",\"\",IF(Z409<AB409,Y409,IF(Z409=AB409,IF(NoDrawWithWithdraw,IF(AL409=Y409,Y409,IF(AL409=AC409,AC409,\"\")),\"\"),AC409)))","v":""},{"$f":"IF(Z409=\"\",\"\",SUM(Z410:Z413))","v":""},{"$f":"IF(Z409=\"\",\"\",SUM(AB410:AB413))","v":""},{"$f":"CONCATENATE(AE409,AH409)","v":""},{"$f":"IF(COUNTIF(Y410:Y413,WithdrawLabel)>COUNTIF(AC410:AC413,WithdrawLabel),Y409,IF(COUNTIF(AC410:AC413,WithdrawLabel)>COUNTIF(Y410:Y413,WithdrawLabel),AC409,\"\"))","v":""}]
[null,null,null,null,null,null,null,null,null,null,null,null,null,null,null,null,null,null,null,null,null,null,null,null,null,null,"-",null,null,null,{"$f":"IF(Z410=\"\",\"\",IF(Z410>AB410,Y410,IF(Z410=AB410,\"\",AC410)))","v":""},{"$f":"IF(Z410=\"\",\"\",IF(Z410=AB410,Y410,\"\"))","v":""},{"$f":"IF(Z410=\"\",\"\",IF(Z410=AB410,AC410,\"\"))","v":""},{"$f":"IF(Z410=\"\",\"\",IF(Z410<AB410,Y410,IF(Z410=AB410,\"\",AC410)))","v":""},{"$f":"IF(Z410=\"\",\"\",IF(Z410>AB410,Y409,\"\"))","v":""},{"$f":"IF(Z410=\"\",\"\",IF(Z410<AB410,AC409,\"\"))","v":""},{"$f":"CONCATENATE(AE410,AH410)","v":""}]
[null,null,null,null,null,null,null,null,null,null,null,null,null,null,null,null,null,null,null,null,null,null,null,null,null,null,"-",null,null,null,{"$f":"IF(Z411=\"\",\"\",IF(Z411>AB411,Y411,IF(Z411=AB411,\"\",AC411)))","v":""},{"$f":"IF(Z411=\"\",\"\",IF(Z411=AB411,Y411,\"\"))","v":""},{"$f":"IF(Z411=\"\",\"\",IF(Z411=AB411,AC411,\"\"))","v":""},{"$f":"IF(Z411=\"\",\"\",IF(Z411<AB411,Y411,IF(Z411=AB411,\"\",AC411)))","v":""},{"$f":"IF(Z411=\"\",\"\",IF(Z411>AB411,Y409,\"\"))","v":""},{"$f":"IF(Z411=\"\",\"\",IF(Z411<AB411,AC409,\"\"))","v":""},{"$f":"CONCATENATE(AE411,AH411)","v":""}]
[null,null,null,null,null,null,null,null,null,null,null,null,null,null,null,null,null,null,null,null,null,null,null,null,null,null,"-",null,null,null,{"$f":"IF(Z412=\"\",\"\",IF(Z412>AB412,Y412,IF(Z412=AB412,\"\",AC412)))","v":""},{"$f":"IF(Z412=\"\",\"\",IF(Z412=AB412,Y412,\"\"))","v":""},{"$f":"IF(Z412=\"\",\"\",IF(Z412=AB412,AC412,\"\"))","v":""},{"$f":"IF(Z412=\"\",\"\",IF(Z412<AB412,Y412,IF(Z412=AB412,\"\",AC412)))","v":""},{"$f":"IF(Z412=\"\",\"\",IF(Z412>AB412,Y409,\"\"))","v":""},{"$f":"IF(Z412=\"\",\"\",IF(Z412<AB412,AC409,\"\"))","v":""},{"$f":"CONCATENATE(AE412,AH412)","v":""}]
[null,null,null,null,null,null,null,null,null,null,null,null,null,null,null,null,null,null,null,null,null,null,null,null,null,null,"-",null,null,null,{"$f":"IF(Z413=\"\",\"\",IF(Z413>AB413,Y413,IF(Z413=AB413,\"\",AC413)))","v":""},{"$f":"IF(Z413=\"\",\"\",IF(Z413=AB413,Y413,\"\"))","v":""},{"$f":"IF(Z413=\"\",\"\",IF(Z413=AB413,AC413,\"\"))","v":""},{"$f":"IF(Z413=\"\",\"\",IF(Z413<AB413,Y413,IF(Z413=AB413,\"\",AC413)))","v":""},{"$f":"IF(Z413=\"\",\"\",IF(Z413>AB413,Y409,\"\"))","v":""},{"$f":"IF(Z413=\"\",\"\",IF(Z413<AB413,AC409,\"\"))","v":""},{"$f":"CONCATENATE(AE413,AH413)","v":""}]
[null,null,null,null,null,null,null,null,null,null,null,null,null,null,null,null,null,null,null,null,null,null,null,{"$f":"N_Substitute","v":"Substitute"}]
[null,null,null,null,null,null,null,null,null,null,null,null,null,null,null,null,null,null,null,null,null,null,null,{"$f":"N_Substitute","v":"Substitute"}]
[null,null,null,null,null,null,null,null,null,null,null,null,null,null,null,null,null,null,null,null,"#G4",null,null,null,{"$f":"G340","v":"Eq3"},{"$f":"IF(OR(ISNUMBER(Z417),ISNUMBER(Z418),ISNUMBER(Z419),ISNUMBER(Z420)),4-COUNTBLANK(AI417:AI420),\"\")","v":""},"-",{"$f":"IF(OR(ISNUMBER(Z417),ISNUMBER(Z418),ISNUMBER(Z419),ISNUMBER(Z420)),4-COUNTBLANK(AJ417:AJ420),\"\")","v":""},{"$f":"G344","v":"Eq7"},null,{"$f":"IF(Z416=\"\",\"\",IF(Z416>AB416,Y416,IF(Z416=AB416,IF(NoDrawWithWithdraw,IF(AL416=Y416,AC416,IF(AL416=AC416,Y416,\"\")),\"\"),AC416)))","v":""},{"$f":"IF(Z416=\"\",\"\",IF(Z416=AB416,IF(NoDrawWithWithdraw,IF(AL416=Y416,\"\",IF(AL416=AC416,\"\",Y416)),Y416),\"\"))","v":""},{"$f":"IF(Z416=\"\",\"\",IF(Z416=AB416,IF(NoDrawWithWithdraw,IF(AL416=Y416,\"\",IF(AL416=AC416,\"\",AC416)),AC416),\"\"))","v":""},{"$f":"IF(Z416=\"\",\"\",IF(Z416<AB416,Y416,IF(Z416=AB416,IF(NoDrawWithWithdraw,IF(AL416=Y416,Y416,IF(AL416=AC416,AC416,\"\")),\"\"),AC416)))","v":""},{"$f":"IF(Z416=\"\",\"\",SUM(Z417:Z420))","v":""},{"$f":"IF(Z416=\"\",\"\",SUM(AB417:AB420))","v":""},{"$f":"CONCATENATE(AE416,AH416)","v":""},{"$f":"IF(COUNTIF(Y417:Y420,WithdrawLabel)>COUNTIF(AC417:AC420,WithdrawLabel),Y416,IF(COUNTIF(AC417:AC420,WithdrawLabel)>COUNTIF(Y417:Y420,WithdrawLabel),AC416,\"\"))","v":""}]
[null,null,null,null,null,null,null,null,null,null,null,null,null,null,null,null,null,null,null,null,null,null,null,null,null,null,"-",null,null,null,{"$f":"IF(Z417=\"\",\"\",IF(Z417>AB417,Y417,IF(Z417=AB417,\"\",AC417)))","v":""},{"$f":"IF(Z417=\"\",\"\",IF(Z417=AB417,Y417,\"\"))","v":""},{"$f":"IF(Z417=\"\",\"\",IF(Z417=AB417,AC417,\"\"))","v":""},{"$f":"IF(Z417=\"\",\"\",IF(Z417<AB417,Y417,IF(Z417=AB417,\"\",AC417)))","v":""},{"$f":"IF(Z417=\"\",\"\",IF(Z417>AB417,Y416,\"\"))","v":""},{"$f":"IF(Z417=\"\",\"\",IF(Z417<AB417,AC416,\"\"))","v":""},{"$f":"CONCATENATE(AE417,AH417)","v":""}]
[null,null,null,null,null,null,null,null,null,null,null,null,null,null,null,null,null,null,null,null,null,null,null,null,null,null,"-",null,null,null,{"$f":"IF(Z418=\"\",\"\",IF(Z418>AB418,Y418,IF(Z418=AB418,\"\",AC418)))","v":""},{"$f":"IF(Z418=\"\",\"\",IF(Z418=AB418,Y418,\"\"))","v":""},{"$f":"IF(Z418=\"\",\"\",IF(Z418=AB418,AC418,\"\"))","v":""},{"$f":"IF(Z418=\"\",\"\",IF(Z418<AB418,Y418,IF(Z418=AB418,\"\",AC418)))","v":""},{"$f":"IF(Z418=\"\",\"\",IF(Z418>AB418,Y416,\"\"))","v":""},{"$f":"IF(Z418=\"\",\"\",IF(Z418<AB418,AC416,\"\"))","v":""},{"$f":"CONCATENATE(AE418,AH418)","v":""}]
[null,null,null,null,null,null,null,null,null,null,null,null,null,null,null,null,null,null,null,null,null,null,null,null,null,null,"-",null,null,null,{"$f":"IF(Z419=\"\",\"\",IF(Z419>AB419,Y419,IF(Z419=AB419,\"\",AC419)))","v":""},{"$f":"IF(Z419=\"\",\"\",IF(Z419=AB419,Y419,\"\"))","v":""},{"$f":"IF(Z419=\"\",\"\",IF(Z419=AB419,AC419,\"\"))","v":""},{"$f":"IF(Z419=\"\",\"\",IF(Z419<AB419,Y419,IF(Z419=AB419,\"\",AC419)))","v":""},{"$f":"IF(Z419=\"\",\"\",IF(Z419>AB419,Y416,\"\"))","v":""},{"$f":"IF(Z419=\"\",\"\",IF(Z419<AB419,AC416,\"\"))","v":""},{"$f":"CONCATENATE(AE419,AH419)","v":""}]
[null,null,null,null,null,null,null,null,null,null,null,null,null,null,null,null,null,null,null,null,null,null,null,null,null,null,"-",null,null,null,{"$f":"IF(Z420=\"\",\"\",IF(Z420>AB420,Y420,IF(Z420=AB420,\"\",AC420)))","v":""},{"$f":"IF(Z420=\"\",\"\",IF(Z420=AB420,Y420,\"\"))","v":""},{"$f":"IF(Z420=\"\",\"\",IF(Z420=AB420,AC420,\"\"))","v":""},{"$f":"IF(Z420=\"\",\"\",IF(Z420<AB420,Y420,IF(Z420=AB420,\"\",AC420)))","v":""},{"$f":"IF(Z420=\"\",\"\",IF(Z420>AB420,Y416,\"\"))","v":""},{"$f":"IF(Z420=\"\",\"\",IF(Z420<AB420,AC416,\"\"))","v":""},{"$f":"CONCATENATE(AE420,AH420)","v":""}]
[null,null,null,null,null,null,null,null,null,null,null,null,null,null,null,null,null,null,null,null,null,null,null,{"$f":"N_Substitute","v":"Substitute"}]
[null,null,null,null,null,null,null,null,null,null,null,null,null,null,null,null,null,null,null,null,null,null,null,{"$f":"N_Substitute","v":"Substitute"}]
[null,null,null,null,null,null,null,null,null,null,null,null,null,null,null,null,null,null,null,null,"#G4",null,null,null,{"$f":"G341","v":"Eq4"},{"$f":"IF(OR(ISNUMBER(Z424),ISNUMBER(Z425),ISNUMBER(Z426),ISNUMBER(Z427)),4-COUNTBLANK(AI424:AI427),\"\")","v":""},"-",{"$f":"IF(OR(ISNUMBER(Z424),ISNUMBER(Z425),ISNUMBER(Z426),ISNUMBER(Z427)),4-COUNTBLANK(AJ424:AJ427),\"\")","v":""},{"$f":"G343","v":"Eq6"},null,{"$f":"IF(Z423=\"\",\"\",IF(Z423>AB423,Y423,IF(Z423=AB423,IF(NoDrawWithWithdraw,IF(AL423=Y423,AC423,IF(AL423=AC423,Y423,\"\")),\"\"),AC423)))","v":""},{"$f":"IF(Z423=\"\",\"\",IF(Z423=AB423,IF(NoDrawWithWithdraw,IF(AL423=Y423,\"\",IF(AL423=AC423,\"\",Y423)),Y423),\"\"))","v":""},{"$f":"IF(Z423=\"\",\"\",IF(Z423=AB423,IF(NoDrawWithWithdraw,IF(AL423=Y423,\"\",IF(AL423=AC423,\"\",AC423)),AC423),\"\"))","v":""},{"$f":"IF(Z423=\"\",\"\",IF(Z423<AB423,Y423,IF(Z423=AB423,IF(NoDrawWithWithdraw,IF(AL423=Y423,Y423,IF(AL423=AC423,AC423,\"\")),\"\"),AC423)))","v":""},{"$f":"IF(Z423=\"\",\"\",SUM(Z424:Z427))","v":""},{"$f":"IF(Z423=\"\",\"\",SUM(AB424:AB427))","v":""},{"$f":"CONCATENATE(AE423,AH423)","v":""},{"$f":"IF(COUNTIF(Y424:Y427,WithdrawLabel)>COUNTIF(AC424:AC427,WithdrawLabel),Y423,IF(COUNTIF(AC424:AC427,WithdrawLabel)>COUNTIF(Y424:Y427,WithdrawLabel),AC423,\"\"))","v":""}]
[null,null,null,null,null,null,null,null,null,null,null,null,null,null,null,null,null,null,null,null,null,null,null,null,null,null,"-",null,null,null,{"$f":"IF(Z424=\"\",\"\",IF(Z424>AB424,Y424,IF(Z424=AB424,\"\",AC424)))","v":""},{"$f":"IF(Z424=\"\",\"\",IF(Z424=AB424,Y424,\"\"))","v":""},{"$f":"IF(Z424=\"\",\"\",IF(Z424=AB424,AC424,\"\"))","v":""},{"$f":"IF(Z424=\"\",\"\",IF(Z424<AB424,Y424,IF(Z424=AB424,\"\",AC424)))","v":""},{"$f":"IF(Z424=\"\",\"\",IF(Z424>AB424,Y423,\"\"))","v":""},{"$f":"IF(Z424=\"\",\"\",IF(Z424<AB424,AC423,\"\"))","v":""},{"$f":"CONCATENATE(AE424,AH424)","v":""}]
[null,null,null,null,null,null,null,null,null,null,null,null,null,null,null,null,null,null,null,null,null,null,null,null,null,null,"-",null,null,null,{"$f":"IF(Z425=\"\",\"\",IF(Z425>AB425,Y425,IF(Z425=AB425,\"\",AC425)))","v":""},{"$f":"IF(Z425=\"\",\"\",IF(Z425=AB425,Y425,\"\"))","v":""},{"$f":"IF(Z425=\"\",\"\",IF(Z425=AB425,AC425,\"\"))","v":""},{"$f":"IF(Z425=\"\",\"\",IF(Z425<AB425,Y425,IF(Z425=AB425,\"\",AC425)))","v":""},{"$f":"IF(Z425=\"\",\"\",IF(Z425>AB425,Y423,\"\"))","v":""},{"$f":"IF(Z425=\"\",\"\",IF(Z425<AB425,AC423,\"\"))","v":""},{"$f":"CONCATENATE(AE425,AH425)","v":""}]
[null,null,null,null,null,null,null,null,null,null,null,null,null,null,null,null,null,null,null,null,null,null,null,null,null,null,"-",null,null,null,{"$f":"IF(Z426=\"\",\"\",IF(Z426>AB426,Y426,IF(Z426=AB426,\"\",AC426)))","v":""},{"$f":"IF(Z426=\"\",\"\",IF(Z426=AB426,Y426,\"\"))","v":""},{"$f":"IF(Z426=\"\",\"\",IF(Z426=AB426,AC426,\"\"))","v":""},{"$f":"IF(Z426=\"\",\"\",IF(Z426<AB426,Y426,IF(Z426=AB426,\"\",AC426)))","v":""},{"$f":"IF(Z426=\"\",\"\",IF(Z426>AB426,Y423,\"\"))","v":""},{"$f":"IF(Z426=\"\",\"\",IF(Z426<AB426,AC423,\"\"))","v":""},{"$f":"CONCATENATE(AE426,AH426)","v":""}]
[null,null,null,null,null,null,null,null,null,null,null,null,null,null,null,null,null,null,null,null,null,null,null,null,null,null,"-",null,null,null,{"$f":"IF(Z427=\"\",\"\",IF(Z427>AB427,Y427,IF(Z427=AB427,\"\",AC427)))","v":""},{"$f":"IF(Z427=\"\",\"\",IF(Z427=AB427,Y427,\"\"))","v":""},{"$f":"IF(Z427=\"\",\"\",IF(Z427=AB427,AC427,\"\"))","v":""},{"$f":"IF(Z427=\"\",\"\",IF(Z427<AB427,Y427,IF(Z427=AB427,\"\",AC427)))","v":""},{"$f":"IF(Z427=\"\",\"\",IF(Z427>AB427,Y423,\"\"))","v":""},{"$f":"IF(Z427=\"\",\"\",IF(Z427<AB427,AC423,\"\"))","v":""},{"$f":"CONCATENATE(AE427,AH427)","v":""}]
[null,null,null,null,null,null,null,null,null,null,null,null,null,null,null,null,null,null,null,null,null,null,null,{"$f":"N_Substitute","v":"Substitute"}]
[null,null,null,null,null,null,null,null,null,null,null,null,null,null,null,null,null,null,null,null,null,null,null,{"$f":"N_Substitute","v":"Substitute"}]
[null,null,null,null,null,null,null,null,null,null,null,null,null,null,null,null,null,null,null,null,"#G5",null,null,null,{"$f":"G339","v":"Eq2"},{"$f":"IF(OR(ISNUMBER(Z431),ISNUMBER(Z432),ISNUMBER(Z433),ISNUMBER(Z434)),4-COUNTBLANK(AI431:AI434),\"\")","v":""},"-",{"$f":"IF(OR(ISNUMBER(Z431),ISNUMBER(Z432),ISNUMBER(Z433),ISNUMBER(Z434)),4-COUNTBLANK(AJ431:AJ434),\"\")","v":""},{"$f":"G340","v":"Eq3"},null,{"$f":"IF(Z430=\"\",\"\",IF(Z430>AB430,Y430,IF(Z430=AB430,IF(NoDrawWithWithdraw,IF(AL430=Y430,AC430,IF(AL430=AC430,Y430,\"\")),\"\"),AC430)))","v":""},{"$f":"IF(Z430=\"\",\"\",IF(Z430=AB430,IF(NoDrawWithWithdraw,IF(AL430=Y430,\"\",IF(AL430=AC430,\"\",Y430)),Y430),\"\"))","v":""},{"$f":"IF(Z430=\"\",\"\",IF(Z430=AB430,IF(NoDrawWithWithdraw,IF(AL430=Y430,\"\",IF(AL430=AC430,\"\",AC430)),AC430),\"\"))","v":""},{"$f":"IF(Z430=\"\",\"\",IF(Z430<AB430,Y430,IF(Z430=AB430,IF(NoDrawWithWithdraw,IF(AL430=Y430,Y430,IF(AL430=AC430,AC430,\"\")),\"\"),AC430)))","v":""},{"$f":"IF(Z430=\"\",\"\",SUM(Z431:Z434))","v":""},{"$f":"IF(Z430=\"\",\"\",SUM(AB431:AB434))","v":""},{"$f":"CONCATENATE(AE430,AH430)","v":""},{"$f":"IF(COUNTIF(Y431:Y434,WithdrawLabel)>COUNTIF(AC431:AC434,WithdrawLabel),Y430,IF(COUNTIF(AC431:AC434,WithdrawLabel)>COUNTIF(Y431:Y434,WithdrawLabel),AC430,\"\"))","v":""}]
[null,null,null,null,null,null,null,null,null,null,null,null,null,null,null,null,null,null,null,null,null,null,null,null,null,null,"-",null,null,null,{"$f":"IF(Z431=\"\",\"\",IF(Z431>AB431,Y431,IF(Z431=AB431,\"\",AC431)))","v":""},{"$f":"IF(Z431=\"\",\"\",IF(Z431=AB431,Y431,\"\"))","v":""},{"$f":"IF(Z431=\"\",\"\",IF(Z431=AB431,AC431,\"\"))","v":""},{"$f":"IF(Z431=\"\",\"\",IF(Z431<AB431,Y431,IF(Z431=AB431,\"\",AC431)))","v":""},{"$f":"IF(Z431=\"\",\"\",IF(Z431>AB431,Y430,\"\"))","v":""},{"$f":"IF(Z431=\"\",\"\",IF(Z431<AB431,AC430,\"\"))","v":""},{"$f":"CONCATENATE(AE431,AH431)","v":""}]
[null,null,null,null,null,null,null,null,null,null,null,null,null,null,null,null,null,null,null,null,null,null,null,null,null,null,"-",null,null,null,{"$f":"IF(Z432=\"\",\"\",IF(Z432>AB432,Y432,IF(Z432=AB432,\"\",AC432)))","v":""},{"$f":"IF(Z432=\"\",\"\",IF(Z432=AB432,Y432,\"\"))","v":""},{"$f":"IF(Z432=\"\",\"\",IF(Z432=AB432,AC432,\"\"))","v":""},{"$f":"IF(Z432=\"\",\"\",IF(Z432<AB432,Y432,IF(Z432=AB432,\"\",AC432)))","v":""},{"$f":"IF(Z432=\"\",\"\",IF(Z432>AB432,Y430,\"\"))","v":""},{"$f":"IF(Z432=\"\",\"\",IF(Z432<AB432,AC430,\"\"))","v":""},{"$f":"CONCATENATE(AE432,AH432)","v":""}]
[null,null,null,null,null,null,null,null,null,null,null,null,null,null,null,null,null,null,null,null,null,null,null,null,null,null,"-",null,null,null,{"$f":"IF(Z433=\"\",\"\",IF(Z433>AB433,Y433,IF(Z433=AB433,\"\",AC433)))","v":""},{"$f":"IF(Z433=\"\",\"\",IF(Z433=AB433,Y433,\"\"))","v":""},{"$f":"IF(Z433=\"\",\"\",IF(Z433=AB433,AC433,\"\"))","v":""},{"$f":"IF(Z433=\"\",\"\",IF(Z433<AB433,Y433,IF(Z433=AB433,\"\",AC433)))","v":""},{"$f":"IF(Z433=\"\",\"\",IF(Z433>AB433,Y430,\"\"))","v":""},{"$f":"IF(Z433=\"\",\"\",IF(Z433<AB433,AC430,\"\"))","v":""},{"$f":"CONCATENATE(AE433,AH433)","v":""}]
[null,null,null,null,null,null,null,null,null,null,null,null,null,null,null,null,null,null,null,null,null,null,null,null,null,null,"-",null,null,null,{"$f":"IF(Z434=\"\",\"\",IF(Z434>AB434,Y434,IF(Z434=AB434,\"\",AC434)))","v":""},{"$f":"IF(Z434=\"\",\"\",IF(Z434=AB434,Y434,\"\"))","v":""},{"$f":"IF(Z434=\"\",\"\",IF(Z434=AB434,AC434,\"\"))","v":""},{"$f":"IF(Z434=\"\",\"\",IF(Z434<AB434,Y434,IF(Z434=AB434,\"\",AC434)))","v":""},{"$f":"IF(Z434=\"\",\"\",IF(Z434>AB434,Y430,\"\"))","v":""},{"$f":"IF(Z434=\"\",\"\",IF(Z434<AB434,AC430,\"\"))","v":""},{"$f":"CONCATENATE(AE434,AH434)","v":""}]
[null,null,null,null,null,null,null,null,null,null,null,null,null,null,null,null,null,null,null,null,null,null,null,{"$f":"N_Substitute","v":"Substitute"}]
[null,null,null,null,null,null,null,null,null,null,null,null,null,null,null,null,null,null,null,null,null,null,null,{"$f":"N_Substitute","v":"Substitute"}]
[null,null,null,null,null,null,null,null,null,null,null,null,null,null,null,null,null,null,null,null,"#G5",null,null,null,{"$f":"G341","v":"Eq4"},{"$f":"IF(OR(ISNUMBER(Z438),ISNUMBER(Z439),ISNUMBER(Z440),ISNUMBER(Z441)),4-COUNTBLANK(AI438:AI441),\"\")","v":""},"-",{"$f":"IF(OR(ISNUMBER(Z438),ISNUMBER(Z439),ISNUMBER(Z440),ISNUMBER(Z441)),4-COUNTBLANK(AJ438:AJ441),\"\")","v":""},{"$f":"G338","v":"Eq1"},null,{"$f":"IF(Z437=\"\",\"\",IF(Z437>AB437,Y437,IF(Z437=AB437,IF(NoDrawWithWithdraw,IF(AL437=Y437,AC437,IF(AL437=AC437,Y437,\"\")),\"\"),AC437)))","v":""},{"$f":"IF(Z437=\"\",\"\",IF(Z437=AB437,IF(NoDrawWithWithdraw,IF(AL437=Y437,\"\",IF(AL437=AC437,\"\",Y437)),Y437),\"\"))","v":""},{"$f":"IF(Z437=\"\",\"\",IF(Z437=AB437,IF(NoDrawWithWithdraw,IF(AL437=Y437,\"\",IF(AL437=AC437,\"\",AC437)),AC437),\"\"))","v":""},{"$f":"IF(Z437=\"\",\"\",IF(Z437<AB437,Y437,IF(Z437=AB437,IF(NoDrawWithWithdraw,IF(AL437=Y437,Y437,IF(AL437=AC437,AC437,\"\")),\"\"),AC437)))","v":""},{"$f":"IF(Z437=\"\",\"\",SUM(Z438:Z441))","v":""},{"$f":"IF(Z437=\"\",\"\",SUM(AB438:AB441))","v":""},{"$f":"CONCATENATE(AE437,AH437)","v":""},{"$f":"IF(COUNTIF(Y438:Y441,WithdrawLabel)>COUNTIF(AC438:AC441,WithdrawLabel),Y437,IF(COUNTIF(AC438:AC441,WithdrawLabel)>COUNTIF(Y438:Y441,WithdrawLabel),AC437,\"\"))","v":""}]
[null,null,null,null,null,null,null,null,null,null,null,null,null,null,null,null,null,null,null,null,null,null,null,null,null,null,"-",null,null,null,{"$f":"IF(Z438=\"\",\"\",IF(Z438>AB438,Y438,IF(Z438=AB438,\"\",AC438)))","v":""},{"$f":"IF(Z438=\"\",\"\",IF(Z438=AB438,Y438,\"\"))","v":""},{"$f":"IF(Z438=\"\",\"\",IF(Z438=AB438,AC438,\"\"))","v":""},{"$f":"IF(Z438=\"\",\"\",IF(Z438<AB438,Y438,IF(Z438=AB438,\"\",AC438)))","v":""},{"$f":"IF(Z438=\"\",\"\",IF(Z438>AB438,Y437,\"\"))","v":""},{"$f":"IF(Z438=\"\",\"\",IF(Z438<AB438,AC437,\"\"))","v":""},{"$f":"CONCATENATE(AE438,AH438)","v":""}]
[null,null,null,null,null,null,null,null,null,null,null,null,null,null,null,null,null,null,null,null,null,null,null,null,null,null,"-",null,null,null,{"$f":"IF(Z439=\"\",\"\",IF(Z439>AB439,Y439,IF(Z439=AB439,\"\",AC439)))","v":""},{"$f":"IF(Z439=\"\",\"\",IF(Z439=AB439,Y439,\"\"))","v":""},{"$f":"IF(Z439=\"\",\"\",IF(Z439=AB439,AC439,\"\"))","v":""},{"$f":"IF(Z439=\"\",\"\",IF(Z439<AB439,Y439,IF(Z439=AB439,\"\",AC439)))","v":""},{"$f":"IF(Z439=\"\",\"\",IF(Z439>AB439,Y437,\"\"))","v":""},{"$f":"IF(Z439=\"\",\"\",IF(Z439<AB439,AC437,\"\"))","v":""},{"$f":"CONCATENATE(AE439,AH439)","v":""}]
[null,null,null,null,null,null,null,null,null,null,null,null,null,null,null,null,null,null,null,null,null,null,null,null,null,null,"-",null,null,null,{"$f":"IF(Z440=\"\",\"\",IF(Z440>AB440,Y440,IF(Z440=AB440,\"\",AC440)))","v":""},{"$f":"IF(Z440=\"\",\"\",IF(Z440=AB440,Y440,\"\"))","v":""},{"$f":"IF(Z440=\"\",\"\",IF(Z440=AB440,AC440,\"\"))","v":""},{"$f":"IF(Z440=\"\",\"\",IF(Z440<AB440,Y440,IF(Z440=AB440,\"\",AC440)))","v":""},{"$f":"IF(Z440=\"\",\"\",IF(Z440>AB440,Y437,\"\"))","v":""},{"$f":"IF(Z440=\"\",\"\",IF(Z440<AB440,AC437,\"\"))","v":""},{"$f":"CONCATENATE(AE440,AH440)","v":""}]
[null,null,null,null,null,null,null,null,null,null,null,null,null,null,null,null,null,null,null,null,null,null,null,null,null,null,"-",null,null,null,{"$f":"IF(Z441=\"\",\"\",IF(Z441>AB441,Y441,IF(Z441=AB441,\"\",AC441)))","v":""},{"$f":"IF(Z441=\"\",\"\",IF(Z441=AB441,Y441,\"\"))","v":""},{"$f":"IF(Z441=\"\",\"\",IF(Z441=AB441,AC441,\"\"))","v":""},{"$f":"IF(Z441=\"\",\"\",IF(Z441<AB441,Y441,IF(Z441=AB441,\"\",AC441)))","v":""},{"$f":"IF(Z441=\"\",\"\",IF(Z441>AB441,Y437,\"\"))","v":""},{"$f":"IF(Z441=\"\",\"\",IF(Z441<AB441,AC437,\"\"))","v":""},{"$f":"CONCATENATE(AE441,AH441)","v":""}]
[null,null,null,null,null,null,null,null,null,null,null,null,null,null,null,null,null,null,null,null,null,null,null,{"$f":"N_Substitute","v":"Substitute"}]
[null,null,null,null,null,null,null,null,null,null,null,null,null,null,null,null,null,null,null,null,null,null,null,{"$f":"N_Substitute","v":"Substitute"}]
[null,null,null,null,null,null,null,null,null,null,null,null,null,null,null,null,null,null,null,null,"#G5",null,null,null,{"$f":"G344","v":"Eq7"},{"$f":"IF(OR(ISNUMBER(Z445),ISNUMBER(Z446),ISNUMBER(Z447),ISNUMBER(Z448)),4-COUNTBLANK(AI445:AI448),\"\")","v":""},"-",{"$f":"IF(OR(ISNUMBER(Z445),ISNUMBER(Z446),ISNUMBER(Z447),ISNUMBER(Z448)),4-COUNTBLANK(AJ445:AJ448),\"\")","v":""},{"$f":"G342","v":"Eq5"},null,{"$f":"IF(Z444=\"\",\"\",IF(Z444>AB444,Y444,IF(Z444=AB444,IF(NoDrawWithWithdraw,IF(AL444=Y444,AC444,IF(AL444=AC444,Y444,\"\")),\"\"),AC444)))","v":""},{"$f":"IF(Z444=\"\",\"\",IF(Z444=AB444,IF(NoDrawWithWithdraw,IF(AL444=Y444,\"\",IF(AL444=AC444,\"\",Y444)),Y444),\"\"))","v":""},{"$f":"IF(Z444=\"\",\"\",IF(Z444=AB444,IF(NoDrawWithWithdraw,IF(AL444=Y444,\"\",IF(AL444=AC444,\"\",AC444)),AC444),\"\"))","v":""},{"$f":"IF(Z444=\"\",\"\",IF(Z444<AB444,Y444,IF(Z444=AB444,IF(NoDrawWithWithdraw,IF(AL444=Y444,Y444,IF(AL444=AC444,AC444,\"\")),\"\"),AC444)))","v":""},{"$f":"IF(Z444=\"\",\"\",SUM(Z445:Z448))","v":""},{"$f":"IF(Z444=\"\",\"\",SUM(AB445:AB448))","v":""},{"$f":"CONCATENATE(AE444,AH444)","v":""},{"$f":"IF(COUNTIF(Y445:Y448,WithdrawLabel)>COUNTIF(AC445:AC448,WithdrawLabel),Y444,IF(COUNTIF(AC445:AC448,WithdrawLabel)>COUNTIF(Y445:Y448,WithdrawLabel),AC444,\"\"))","v":""}]
[null,null,null,null,null,null,null,null,null,null,null,null,null,null,null,null,null,null,null,null,null,null,null,null,null,null,"-",null,null,null,{"$f":"IF(Z445=\"\",\"\",IF(Z445>AB445,Y445,IF(Z445=AB445,\"\",AC445)))","v":""},{"$f":"IF(Z445=\"\",\"\",IF(Z445=AB445,Y445,\"\"))","v":""},{"$f":"IF(Z445=\"\",\"\",IF(Z445=AB445,AC445,\"\"))","v":""},{"$f":"IF(Z445=\"\",\"\",IF(Z445<AB445,Y445,IF(Z445=AB445,\"\",AC445)))","v":""},{"$f":"IF(Z445=\"\",\"\",IF(Z445>AB445,Y444,\"\"))","v":""},{"$f":"IF(Z445=\"\",\"\",IF(Z445<AB445,AC444,\"\"))","v":""},{"$f":"CONCATENATE(AE445,AH445)","v":""}]
[null,null,null,null,null,null,null,null,null,null,null,null,null,null,null,null,null,null,null,null,null,null,null,null,null,null,"-",null,null,null,{"$f":"IF(Z446=\"\",\"\",IF(Z446>AB446,Y446,IF(Z446=AB446,\"\",AC446)))","v":""},{"$f":"IF(Z446=\"\",\"\",IF(Z446=AB446,Y446,\"\"))","v":""},{"$f":"IF(Z446=\"\",\"\",IF(Z446=AB446,AC446,\"\"))","v":""},{"$f":"IF(Z446=\"\",\"\",IF(Z446<AB446,Y446,IF(Z446=AB446,\"\",AC446)))","v":""},{"$f":"IF(Z446=\"\",\"\",IF(Z446>AB446,Y444,\"\"))","v":""},{"$f":"IF(Z446=\"\",\"\",IF(Z446<AB446,AC444,\"\"))","v":""},{"$f":"CONCATENATE(AE446,AH446)","v":""}]
[null,null,null,null,null,null,null,null,null,null,null,null,null,null,null,null,null,null,null,null,null,null,null,null,null,null,"-",null,null,null,{"$f":"IF(Z447=\"\",\"\",IF(Z447>AB447,Y447,IF(Z447=AB447,\"\",AC447)))","v":""},{"$f":"IF(Z447=\"\",\"\",IF(Z447=AB447,Y447,\"\"))","v":""},{"$f":"IF(Z447=\"\",\"\",IF(Z447=AB447,AC447,\"\"))","v":""},{"$f":"IF(Z447=\"\",\"\",IF(Z447<AB447,Y447,IF(Z447=AB447,\"\",AC447)))","v":""},{"$f":"IF(Z447=\"\",\"\",IF(Z447>AB447,Y444,\"\"))","v":""},{"$f":"IF(Z447=\"\",\"\",IF(Z447<AB447,AC444,\"\"))","v":""},{"$f":"CONCATENATE(AE447,AH447)","v":""}]
[null,null,null,null,null,null,null,null,null,null,null,null,null,null,null,null,null,null,null,null,null,null,null,null,null,null,"-",null,null,null,{"$f":"IF(Z448=\"\",\"\",IF(Z448>AB448,Y448,IF(Z448=AB448,\"\",AC448)))","v":""},{"$f":"IF(Z448=\"\",\"\",IF(Z448=AB448,Y448,\"\"))","v":""},{"$f":"IF(Z448=\"\",\"\",IF(Z448=AB448,AC448,\"\"))","v":""},{"$f":"IF(Z448=\"\",\"\",IF(Z448<AB448,Y448,IF(Z448=AB448,\"\",AC448)))","v":""},{"$f":"IF(Z448=\"\",\"\",IF(Z448>AB448,Y444,\"\"))","v":""},{"$f":"IF(Z448=\"\",\"\",IF(Z448<AB448,AC444,\"\"))","v":""},{"$f":"CONCATENATE(AE448,AH448)","v":""}]
[null,null,null,null,null,null,null,null,null,null,null,null,null,null,null,null,null,null,null,null,null,null,null,{"$f":"N_Substitute","v":"Substitute"}]
[null,null,null,null,null,null,null,null,null,null,null,null,null,null,null,null,null,null,null,null,null,null,null,{"$f":"N_Substitute","v":"Substitute"}]
[null,null,null,null,null,null,null,null,null,null,null,null,null,null,null,null,null,null,null,null,"#G6",null,null,null,{"$f":"G340","v":"Eq3"},{"$f":"IF(OR(ISNUMBER(Z452),ISNUMBER(Z453),ISNUMBER(Z454),ISNUMBER(Z455)),4-COUNTBLANK(AI452:AI455),\"\")","v":""},"-",{"$f":"IF(OR(ISNUMBER(Z452),ISNUMBER(Z453),ISNUMBER(Z454),ISNUMBER(Z455)),4-COUNTBLANK(AJ452:AJ455),\"\")","v":""},{"$f":"G341","v":"Eq4"},null,{"$f":"IF(Z451=\"\",\"\",IF(Z451>AB451,Y451,IF(Z451=AB451,IF(NoDrawWithWithdraw,IF(AL451=Y451,AC451,IF(AL451=AC451,Y451,\"\")),\"\"),AC451)))","v":""},{"$f":"IF(Z451=\"\",\"\",IF(Z451=AB451,IF(NoDrawWithWithdraw,IF(AL451=Y451,\"\",IF(AL451=AC451,\"\",Y451)),Y451),\"\"))","v":""},{"$f":"IF(Z451=\"\",\"\",IF(Z451=AB451,IF(NoDrawWithWithdraw,IF(AL451=Y451,\"\",IF(AL451=AC451,\"\",AC451)),AC451),\"\"))","v":""},{"$f":"IF(Z451=\"\",\"\",IF(Z451<AB451,Y451,IF(Z451=AB451,IF(NoDrawWithWithdraw,IF(AL451=Y451,Y451,IF(AL451=AC451,AC451,\"\")),\"\"),AC451)))","v":""},{"$f":"IF(Z451=\"\",\"\",SUM(Z452:Z455))","v":""},{"$f":"IF(Z451=\"\",\"\",SUM(AB452:AB455))","v":""},{"$f":"CONCATENATE(AE451,AH451)","v":""},{"$f":"IF(COUNTIF(Y452:Y455,WithdrawLabel)>COUNTIF(AC452:AC455,WithdrawLabel),Y451,IF(COUNTIF(AC452:AC455,WithdrawLabel)>COUNTIF(Y452:Y455,WithdrawLabel),AC451,\"\"))","v":""}]
[null,null,null,null,null,null,null,null,null,null,null,null,null,null,null,null,null,null,null,null,null,null,null,null,null,null,"-",null,null,null,{"$f":"IF(Z452=\"\",\"\",IF(Z452>AB452,Y452,IF(Z452=AB452,\"\",AC452)))","v":""},{"$f":"IF(Z452=\"\",\"\",IF(Z452=AB452,Y452,\"\"))","v":""},{"$f":"IF(Z452=\"\",\"\",IF(Z452=AB452,AC452,\"\"))","v":""},{"$f":"IF(Z452=\"\",\"\",IF(Z452<AB452,Y452,IF(Z452=AB452,\"\",AC452)))","v":""},{"$f":"IF(Z452=\"\",\"\",IF(Z452>AB452,Y451,\"\"))","v":""},{"$f":"IF(Z452=\"\",\"\",IF(Z452<AB452,AC451,\"\"))","v":""},{"$f":"CONCATENATE(AE452,AH452)","v":""}]
[null,null,null,null,null,null,null,null,null,null,null,null,null,null,null,null,null,null,null,null,null,null,null,null,null,null,"-",null,null,null,{"$f":"IF(Z453=\"\",\"\",IF(Z453>AB453,Y453,IF(Z453=AB453,\"\",AC453)))","v":""},{"$f":"IF(Z453=\"\",\"\",IF(Z453=AB453,Y453,\"\"))","v":""},{"$f":"IF(Z453=\"\",\"\",IF(Z453=AB453,AC453,\"\"))","v":""},{"$f":"IF(Z453=\"\",\"\",IF(Z453<AB453,Y453,IF(Z453=AB453,\"\",AC453)))","v":""},{"$f":"IF(Z453=\"\",\"\",IF(Z453>AB453,Y451,\"\"))","v":""},{"$f":"IF(Z453=\"\",\"\",IF(Z453<AB453,AC451,\"\"))","v":""},{"$f":"CONCATENATE(AE453,AH453)","v":""}]
[null,null,null,null,null,null,null,null,null,null,null,null,null,null,null,null,null,null,null,null,null,null,null,null,null,null,"-",null,null,null,{"$f":"IF(Z454=\"\",\"\",IF(Z454>AB454,Y454,IF(Z454=AB454,\"\",AC454)))","v":""},{"$f":"IF(Z454=\"\",\"\",IF(Z454=AB454,Y454,\"\"))","v":""},{"$f":"IF(Z454=\"\",\"\",IF(Z454=AB454,AC454,\"\"))","v":""},{"$f":"IF(Z454=\"\",\"\",IF(Z454<AB454,Y454,IF(Z454=AB454,\"\",AC454)))","v":""},{"$f":"IF(Z454=\"\",\"\",IF(Z454>AB454,Y451,\"\"))","v":""},{"$f":"IF(Z454=\"\",\"\",IF(Z454<AB454,AC451,\"\"))","v":""},{"$f":"CONCATENATE(AE454,AH454)","v":""}]
[null,null,null,null,null,null,null,null,null,null,null,null,null,null,null,null,null,null,null,null,null,null,null,null,null,null,"-",null,null,null,{"$f":"IF(Z455=\"\",\"\",IF(Z455>AB455,Y455,IF(Z455=AB455,\"\",AC455)))","v":""},{"$f":"IF(Z455=\"\",\"\",IF(Z455=AB455,Y455,\"\"))","v":""},{"$f":"IF(Z455=\"\",\"\",IF(Z455=AB455,AC455,\"\"))","v":""},{"$f":"IF(Z455=\"\",\"\",IF(Z455<AB455,Y455,IF(Z455=AB455,\"\",AC455)))","v":""},{"$f":"IF(Z455=\"\",\"\",IF(Z455>AB455,Y451,\"\"))","v":""},{"$f":"IF(Z455=\"\",\"\",IF(Z455<AB455,AC451,\"\"))","v":""},{"$f":"CONCATENATE(AE455,AH455)","v":""}]
[null,null,null,null,null,null,null,null,null,null,null,null,null,null,null,null,null,null,null,null,null,null,null,{"$f":"N_Substitute","v":"Substitute"}]
[null,null,null,null,null,null,null,null,null,null,null,null,null,null,null,null,null,null,null,null,null,null,null,{"$f":"N_Substitute","v":"Substitute"}]
[null,null,null,null,null,null,null,null,null,null,null,null,null,null,null,null,null,null,null,null,"#G6",null,null,null,{"$f":"G342","v":"Eq5"},{"$f":"IF(OR(ISNUMBER(Z459),ISNUMBER(Z460),ISNUMBER(Z461),ISNUMBER(Z462)),4-COUNTBLANK(AI459:AI462),\"\")","v":""},"-",{"$f":"IF(OR(ISNUMBER(Z459),ISNUMBER(Z460),ISNUMBER(Z461),ISNUMBER(Z462)),4-COUNTBLANK(AJ459:AJ462),\"\")","v":""},{"$f":"G339","v":"Eq2"},null,{"$f":"IF(Z458=\"\",\"\",IF(Z458>AB458,Y458,IF(Z458=AB458,IF(NoDrawWithWithdraw,IF(AL458=Y458,AC458,IF(AL458=AC458,Y458,\"\")),\"\"),AC458)))","v":""},{"$f":"IF(Z458=\"\",\"\",IF(Z458=AB458,IF(NoDrawWithWithdraw,IF(AL458=Y458,\"\",IF(AL458=AC458,\"\",Y458)),Y458),\"\"))","v":""},{"$f":"IF(Z458=\"\",\"\",IF(Z458=AB458,IF(NoDrawWithWithdraw,IF(AL458=Y458,\"\",IF(AL458=AC458,\"\",AC458)),AC458),\"\"))","v":""},{"$f":"IF(Z458=\"\",\"\",IF(Z458<AB458,Y458,IF(Z458=AB458,IF(NoDrawWithWithdraw,IF(AL458=Y458,Y458,IF(AL458=AC458,AC458,\"\")),\"\"),AC458)))","v":""},{"$f":"IF(Z458=\"\",\"\",SUM(Z459:Z462))","v":""},{"$f":"IF(Z458=\"\",\"\",SUM(AB459:AB462))","v":""},{"$f":"CONCATENATE(AE458,AH458)","v":""},{"$f":"IF(COUNTIF(Y459:Y462,WithdrawLabel)>COUNTIF(AC459:AC462,WithdrawLabel),Y458,IF(COUNTIF(AC459:AC462,WithdrawLabel)>COUNTIF(Y459:Y462,WithdrawLabel),AC458,\"\"))","v":""}]
[null,null,null,null,null,null,null,null,null,null,null,null,null,null,null,null,null,null,null,null,null,null,null,null,null,null,"-",null,null,null,{"$f":"IF(Z459=\"\",\"\",IF(Z459>AB459,Y459,IF(Z459=AB459,\"\",AC459)))","v":""},{"$f":"IF(Z459=\"\",\"\",IF(Z459=AB459,Y459,\"\"))","v":""},{"$f":"IF(Z459=\"\",\"\",IF(Z459=AB459,AC459,\"\"))","v":""},{"$f":"IF(Z459=\"\",\"\",IF(Z459<AB459,Y459,IF(Z459=AB459,\"\",AC459)))","v":""},{"$f":"IF(Z459=\"\",\"\",IF(Z459>AB459,Y458,\"\"))","v":""},{"$f":"IF(Z459=\"\",\"\",IF(Z459<AB459,AC458,\"\"))","v":""},{"$f":"CONCATENATE(AE459,AH459)","v":""}]
[null,null,null,null,null,null,null,null,null,null,null,null,null,null,null,null,null,null,null,null,null,null,null,null,null,null,"-",null,null,null,{"$f":"IF(Z460=\"\",\"\",IF(Z460>AB460,Y460,IF(Z460=AB460,\"\",AC460)))","v":""},{"$f":"IF(Z460=\"\",\"\",IF(Z460=AB460,Y460,\"\"))","v":""},{"$f":"IF(Z460=\"\",\"\",IF(Z460=AB460,AC460,\"\"))","v":""},{"$f":"IF(Z460=\"\",\"\",IF(Z460<AB460,Y460,IF(Z460=AB460,\"\",AC460)))","v":""},{"$f":"IF(Z460=\"\",\"\",IF(Z460>AB460,Y458,\"\"))","v":""},{"$f":"IF(Z460=\"\",\"\",IF(Z460<AB460,AC458,\"\"))","v":""},{"$f":"CONCATENATE(AE460,AH460)","v":""}]
[null,null,null,null,null,null,null,null,null,null,null,null,null,null,null,null,null,null,null,null,null,null,null,null,null,null,"-",null,null,null,{"$f":"IF(Z461=\"\",\"\",IF(Z461>AB461,Y461,IF(Z461=AB461,\"\",AC461)))","v":""},{"$f":"IF(Z461=\"\",\"\",IF(Z461=AB461,Y461,\"\"))","v":""},{"$f":"IF(Z461=\"\",\"\",IF(Z461=AB461,AC461,\"\"))","v":""},{"$f":"IF(Z461=\"\",\"\",IF(Z461<AB461,Y461,IF(Z461=AB461,\"\",AC461)))","v":""},{"$f":"IF(Z461=\"\",\"\",IF(Z461>AB461,Y458,\"\"))","v":""},{"$f":"IF(Z461=\"\",\"\",IF(Z461<AB461,AC458,\"\"))","v":""},{"$f":"CONCATENATE(AE461,AH461)","v":""}]
[null,null,null,null,null,null,null,null,null,null,null,null,null,null,null,null,null,null,null,null,null,null,null,null,null,null,"-",null,null,null,{"$f":"IF(Z462=\"\",\"\",IF(Z462>AB462,Y462,IF(Z462=AB462,\"\",AC462)))","v":""},{"$f":"IF(Z462=\"\",\"\",IF(Z462=AB462,Y462,\"\"))","v":""},{"$f":"IF(Z462=\"\",\"\",IF(Z462=AB462,AC462,\"\"))","v":""},{"$f":"IF(Z462=\"\",\"\",IF(Z462<AB462,Y462,IF(Z462=AB462,\"\",AC462)))","v":""},{"$f":"IF(Z462=\"\",\"\",IF(Z462>AB462,Y458,\"\"))","v":""},{"$f":"IF(Z462=\"\",\"\",IF(Z462<AB462,AC458,\"\"))","v":""},{"$f":"CONCATENATE(AE462,AH462)","v":""}]
[null,null,null,null,null,null,null,null,null,null,null,null,null,null,null,null,null,null,null,null,null,null,null,{"$f":"N_Substitute","v":"Substitute"}]
[null,null,null,null,null,null,null,null,null,null,null,null,null,null,null,null,null,null,null,null,null,null,null,{"$f":"N_Substitute","v":"Substitute"}]
[null,null,null,null,null,null,null,null,null,null,null,null,null,null,null,null,null,null,null,null,"#G6",null,null,null,{"$f":"G343","v":"Eq6"},{"$f":"IF(OR(ISNUMBER(Z466),ISNUMBER(Z467),ISNUMBER(Z468),ISNUMBER(Z469)),4-COUNTBLANK(AI466:AI469),\"\")","v":""},"-",{"$f":"IF(OR(ISNUMBER(Z466),ISNUMBER(Z467),ISNUMBER(Z468),ISNUMBER(Z469)),4-COUNTBLANK(AJ466:AJ469),\"\")","v":""},{"$f":"G338","v":"Eq1"},null,{"$f":"IF(Z465=\"\",\"\",IF(Z465>AB465,Y465,IF(Z465=AB465,IF(NoDrawWithWithdraw,IF(AL465=Y465,AC465,IF(AL465=AC465,Y465,\"\")),\"\"),AC465)))","v":""},{"$f":"IF(Z465=\"\",\"\",IF(Z465=AB465,IF(NoDrawWithWithdraw,IF(AL465=Y465,\"\",IF(AL465=AC465,\"\",Y465)),Y465),\"\"))","v":""},{"$f":"IF(Z465=\"\",\"\",IF(Z465=AB465,IF(NoDrawWithWithdraw,IF(AL465=Y465,\"\",IF(AL465=AC465,\"\",AC465)),AC465),\"\"))","v":""},{"$f":"IF(Z465=\"\",\"\",IF(Z465<AB465,Y465,IF(Z465=AB465,IF(NoDrawWithWithdraw,IF(AL465=Y465,Y465,IF(AL465=AC465,AC465,\"\")),\"\"),AC465)))","v":""},{"$f":"IF(Z465=\"\",\"\",SUM(Z466:Z469))","v":""},{"$f":"IF(Z465=\"\",\"\",SUM(AB466:AB469))","v":""},{"$f":"CONCATENATE(AE465,AH465)","v":""},{"$f":"IF(COUNTIF(Y466:Y469,WithdrawLabel)>COUNTIF(AC466:AC469,WithdrawLabel),Y465,IF(COUNTIF(AC466:AC469,WithdrawLabel)>COUNTIF(Y466:Y469,WithdrawLabel),AC465,\"\"))","v":""}]
[null,null,null,null,null,null,null,null,null,null,null,null,null,null,null,null,null,null,null,null,null,null,null,null,null,null,"-",null,null,null,{"$f":"IF(Z466=\"\",\"\",IF(Z466>AB466,Y466,IF(Z466=AB466,\"\",AC466)))","v":""},{"$f":"IF(Z466=\"\",\"\",IF(Z466=AB466,Y466,\"\"))","v":""},{"$f":"IF(Z466=\"\",\"\",IF(Z466=AB466,AC466,\"\"))","v":""},{"$f":"IF(Z466=\"\",\"\",IF(Z466<AB466,Y466,IF(Z466=AB466,\"\",AC466)))","v":""},{"$f":"IF(Z466=\"\",\"\",IF(Z466>AB466,Y465,\"\"))","v":""},{"$f":"IF(Z466=\"\",\"\",IF(Z466<AB466,AC465,\"\"))","v":""},{"$f":"CONCATENATE(AE466,AH466)","v":""}]
[null,null,null,null,null,null,null,null,null,null,null,null,null,null,null,null,null,null,null,null,null,null,null,null,null,null,"-",null,null,null,{"$f":"IF(Z467=\"\",\"\",IF(Z467>AB467,Y467,IF(Z467=AB467,\"\",AC467)))","v":""},{"$f":"IF(Z467=\"\",\"\",IF(Z467=AB467,Y467,\"\"))","v":""},{"$f":"IF(Z467=\"\",\"\",IF(Z467=AB467,AC467,\"\"))","v":""},{"$f":"IF(Z467=\"\",\"\",IF(Z467<AB467,Y467,IF(Z467=AB467,\"\",AC467)))","v":""},{"$f":"IF(Z467=\"\",\"\",IF(Z467>AB467,Y465,\"\"))","v":""},{"$f":"IF(Z467=\"\",\"\",IF(Z467<AB467,AC465,\"\"))","v":""},{"$f":"CONCATENATE(AE467,AH467)","v":""}]
[null,null,null,null,null,null,null,null,null,null,null,null,null,null,null,null,null,null,null,null,null,null,null,null,null,null,"-",null,null,null,{"$f":"IF(Z468=\"\",\"\",IF(Z468>AB468,Y468,IF(Z468=AB468,\"\",AC468)))","v":""},{"$f":"IF(Z468=\"\",\"\",IF(Z468=AB468,Y468,\"\"))","v":""},{"$f":"IF(Z468=\"\",\"\",IF(Z468=AB468,AC468,\"\"))","v":""},{"$f":"IF(Z468=\"\",\"\",IF(Z468<AB468,Y468,IF(Z468=AB468,\"\",AC468)))","v":""},{"$f":"IF(Z468=\"\",\"\",IF(Z468>AB468,Y465,\"\"))","v":""},{"$f":"IF(Z468=\"\",\"\",IF(Z468<AB468,AC465,\"\"))","v":""},{"$f":"CONCATENATE(AE468,AH468)","v":""}]
[null,null,null,null,null,null,null,null,null,null,null,null,null,null,null,null,null,null,null,null,null,null,null,null,null,null,"-",null,null,null,{"$f":"IF(Z469=\"\",\"\",IF(Z469>AB469,Y469,IF(Z469=AB469,\"\",AC469)))","v":""},{"$f":"IF(Z469=\"\",\"\",IF(Z469=AB469,Y469,\"\"))","v":""},{"$f":"IF(Z469=\"\",\"\",IF(Z469=AB469,AC469,\"\"))","v":""},{"$f":"IF(Z469=\"\",\"\",IF(Z469<AB469,Y469,IF(Z469=AB469,\"\",AC469)))","v":""},{"$f":"IF(Z469=\"\",\"\",IF(Z469>AB469,Y465,\"\"))","v":""},{"$f":"IF(Z469=\"\",\"\",IF(Z469<AB469,AC465,\"\"))","v":""},{"$f":"CONCATENATE(AE469,AH469)","v":""}]
[null,null,null,null,null,null,null,null,null,null,null,null,null,null,null,null,null,null,null,null,null,null,null,{"$f":"N_Substitute","v":"Substitute"}]
[null,null,null,null,null,null,null,null,null,null,null,null,null,null,null,null,null,null,null,null,null,null,null,{"$f":"N_Substitute","v":"Substitute"}]
[null,null,null,null,null,null,null,null,null,null,null,null,null,null,null,null,null,null,null,null,"#G7",null,null,null,{"$f":"G342","v":"Eq5"},{"$f":"IF(OR(ISNUMBER(Z473),ISNUMBER(Z474),ISNUMBER(Z475),ISNUMBER(Z476)),4-COUNTBLANK(AI473:AI476),\"\")","v":""},"-",{"$f":"IF(OR(ISNUMBER(Z473),ISNUMBER(Z474),ISNUMBER(Z475),ISNUMBER(Z476)),4-COUNTBLANK(AJ473:AJ476),\"\")","v":""},{"$f":"G341","v":"Eq4"},null,{"$f":"IF(Z472=\"\",\"\",IF(Z472>AB472,Y472,IF(Z472=AB472,IF(NoDrawWithWithdraw,IF(AL472=Y472,AC472,IF(AL472=AC472,Y472,\"\")),\"\"),AC472)))","v":""},{"$f":"IF(Z472=\"\",\"\",IF(Z472=AB472,IF(NoDrawWithWithdraw,IF(AL472=Y472,\"\",IF(AL472=AC472,\"\",Y472)),Y472),\"\"))","v":""},{"$f":"IF(Z472=\"\",\"\",IF(Z472=AB472,IF(NoDrawWithWithdraw,IF(AL472=Y472,\"\",IF(AL472=AC472,\"\",AC472)),AC472),\"\"))","v":""},{"$f":"IF(Z472=\"\",\"\",IF(Z472<AB472,Y472,IF(Z472=AB472,IF(NoDrawWithWithdraw,IF(AL472=Y472,Y472,IF(AL472=AC472,AC472,\"\")),\"\"),AC472)))","v":""},{"$f":"IF(Z472=\"\",\"\",SUM(Z473:Z476))","v":""},{"$f":"IF(Z472=\"\",\"\",SUM(AB473:AB476))","v":""},{"$f":"CONCATENATE(AE472,AH472)","v":""},{"$f":"IF(COUNTIF(Y473:Y476,WithdrawLabel)>COUNTIF(AC473:AC476,WithdrawLabel),Y472,IF(COUNTIF(AC473:AC476,WithdrawLabel)>COUNTIF(Y473:Y476,WithdrawLabel),AC472,\"\"))","v":""}]
[null,null,null,null,null,null,null,null,null,null,null,null,null,null,null,null,null,null,null,null,null,null,null,null,null,null,"-",null,null,null,{"$f":"IF(Z473=\"\",\"\",IF(Z473>AB473,Y473,IF(Z473=AB473,\"\",AC473)))","v":""},{"$f":"IF(Z473=\"\",\"\",IF(Z473=AB473,Y473,\"\"))","v":""},{"$f":"IF(Z473=\"\",\"\",IF(Z473=AB473,AC473,\"\"))","v":""},{"$f":"IF(Z473=\"\",\"\",IF(Z473<AB473,Y473,IF(Z473=AB473,\"\",AC473)))","v":""},{"$f":"IF(Z473=\"\",\"\",IF(Z473>AB473,Y472,\"\"))","v":""},{"$f":"IF(Z473=\"\",\"\",IF(Z473<AB473,AC472,\"\"))","v":""},{"$f":"CONCATENATE(AE473,AH473)","v":""}]
[null,null,null,null,null,null,null,null,null,null,null,null,null,null,null,null,null,null,null,null,null,null,null,null,null,null,"-",null,null,null,{"$f":"IF(Z474=\"\",\"\",IF(Z474>AB474,Y474,IF(Z474=AB474,\"\",AC474)))","v":""},{"$f":"IF(Z474=\"\",\"\",IF(Z474=AB474,Y474,\"\"))","v":""},{"$f":"IF(Z474=\"\",\"\",IF(Z474=AB474,AC474,\"\"))","v":""},{"$f":"IF(Z474=\"\",\"\",IF(Z474<AB474,Y474,IF(Z474=AB474,\"\",AC474)))","v":""},{"$f":"IF(Z474=\"\",\"\",IF(Z474>AB474,Y472,\"\"))","v":""},{"$f":"IF(Z474=\"\",\"\",IF(Z474<AB474,AC472,\"\"))","v":""},{"$f":"CONCATENATE(AE474,AH474)","v":""}]
[null,null,null,null,null,null,null,null,null,null,null,null,null,null,null,null,null,null,null,null,null,null,null,null,null,null,"-",null,null,null,{"$f":"IF(Z475=\"\",\"\",IF(Z475>AB475,Y475,IF(Z475=AB475,\"\",AC475)))","v":""},{"$f":"IF(Z475=\"\",\"\",IF(Z475=AB475,Y475,\"\"))","v":""},{"$f":"IF(Z475=\"\",\"\",IF(Z475=AB475,AC475,\"\"))","v":""},{"$f":"IF(Z475=\"\",\"\",IF(Z475<AB475,Y475,IF(Z475=AB475,\"\",AC475)))","v":""},{"$f":"IF(Z475=\"\",\"\",IF(Z475>AB475,Y472,\"\"))","v":""},{"$f":"IF(Z475=\"\",\"\",IF(Z475<AB475,AC472,\"\"))","v":""},{"$f":"CONCATENATE(AE475,AH475)","v":""}]
[null,null,null,null,null,null,null,null,null,null,null,null,null,null,null,null,null,null,null,null,null,null,null,null,null,null,"-",null,null,null,{"$f":"IF(Z476=\"\",\"\",IF(Z476>AB476,Y476,IF(Z476=AB476,\"\",AC476)))","v":""},{"$f":"IF(Z476=\"\",\"\",IF(Z476=AB476,Y476,\"\"))","v":""},{"$f":"IF(Z476=\"\",\"\",IF(Z476=AB476,AC476,\"\"))","v":""},{"$f":"IF(Z476=\"\",\"\",IF(Z476<AB476,Y476,IF(Z476=AB476,\"\",AC476)))","v":""},{"$f":"IF(Z476=\"\",\"\",IF(Z476>AB476,Y472,\"\"))","v":""},{"$f":"IF(Z476=\"\",\"\",IF(Z476<AB476,AC472,\"\"))","v":""},{"$f":"CONCATENATE(AE476,AH476)","v":""}]
[null,null,null,null,null,null,null,null,null,null,null,null,null,null,null,null,null,null,null,null,null,null,null,{"$f":"N_Substitute","v":"Substitute"}]
[null,null,null,null,null,null,null,null,null,null,null,null,null,null,null,null,null,null,null,null,null,null,null,{"$f":"N_Substitute","v":"Substitute"}]
[null,null,null,null,null,null,null,null,null,null,null,null,null,null,null,null,null,null,null,null,"#G7",null,null,null,{"$f":"G343","v":"Eq6"},{"$f":"IF(OR(ISNUMBER(Z480),ISNUMBER(Z481),ISNUMBER(Z482),ISNUMBER(Z483)),4-COUNTBLANK(AI480:AI483),\"\")","v":""},"-",{"$f":"IF(OR(ISNUMBER(Z480),ISNUMBER(Z481),ISNUMBER(Z482),ISNUMBER(Z483)),4-COUNTBLANK(AJ480:AJ483),\"\")","v":""},{"$f":"G340","v":"Eq3"},null,{"$f":"IF(Z479=\"\",\"\",IF(Z479>AB479,Y479,IF(Z479=AB479,IF(NoDrawWithWithdraw,IF(AL479=Y479,AC479,IF(AL479=AC479,Y479,\"\")),\"\"),AC479)))","v":""},{"$f":"IF(Z479=\"\",\"\",IF(Z479=AB479,IF(NoDrawWithWithdraw,IF(AL479=Y479,\"\",IF(AL479=AC479,\"\",Y479)),Y479),\"\"))","v":""},{"$f":"IF(Z479=\"\",\"\",IF(Z479=AB479,IF(NoDrawWithWithdraw,IF(AL479=Y479,\"\",IF(AL479=AC479,\"\",AC479)),AC479),\"\"))","v":""},{"$f":"IF(Z479=\"\",\"\",IF(Z479<AB479,Y479,IF(Z479=AB479,IF(NoDrawWithWithdraw,IF(AL479=Y479,Y479,IF(AL479=AC479,AC479,\"\")),\"\"),AC479)))","v":""},{"$f":"IF(Z479=\"\",\"\",SUM(Z480:Z483))","v":""},{"$f":"IF(Z479=\"\",\"\",SUM(AB480:AB483))","v":""},{"$f":"CONCATENATE(AE479,AH479)","v":""},{"$f":"IF(COUNTIF(Y480:Y483,WithdrawLabel)>COUNTIF(AC480:AC483,WithdrawLabel),Y479,IF(COUNTIF(AC480:AC483,WithdrawLabel)>COUNTIF(Y480:Y483,WithdrawLabel),AC479,\"\"))","v":""}]
[null,null,null,null,null,null,null,null,null,null,null,null,null,null,null,null,null,null,null,null,null,null,null,null,null,null,"-",null,null,null,{"$f":"IF(Z480=\"\",\"\",IF(Z480>AB480,Y480,IF(Z480=AB480,\"\",AC480)))","v":""},{"$f":"IF(Z480=\"\",\"\",IF(Z480=AB480,Y480,\"\"))","v":""},{"$f":"IF(Z480=\"\",\"\",IF(Z480=AB480,AC480,\"\"))","v":""},{"$f":"IF(Z480=\"\",\"\",IF(Z480<AB480,Y480,IF(Z480=AB480,\"\",AC480)))","v":""},{"$f":"IF(Z480=\"\",\"\",IF(Z480>AB480,Y479,\"\"))","v":""},{"$f":"IF(Z480=\"\",\"\",IF(Z480<AB480,AC479,\"\"))","v":""},{"$f":"CONCATENATE(AE480,AH480)","v":""}]
[null,null,null,null,null,null,null,null,null,null,null,null,null,null,null,null,null,null,null,null,null,null,null,null,null,null,"-",null,null,null,{"$f":"IF(Z481=\"\",\"\",IF(Z481>AB481,Y481,IF(Z481=AB481,\"\",AC481)))","v":""},{"$f":"IF(Z481=\"\",\"\",IF(Z481=AB481,Y481,\"\"))","v":""},{"$f":"IF(Z481=\"\",\"\",IF(Z481=AB481,AC481,\"\"))","v":""},{"$f":"IF(Z481=\"\",\"\",IF(Z481<AB481,Y481,IF(Z481=AB481,\"\",AC481)))","v":""},{"$f":"IF(Z481=\"\",\"\",IF(Z481>AB481,Y479,\"\"))","v":""},{"$f":"IF(Z481=\"\",\"\",IF(Z481<AB481,AC479,\"\"))","v":""},{"$f":"CONCATENATE(AE481,AH481)","v":""}]
[null,null,null,null,null,null,null,null,null,null,null,null,null,null,null,null,null,null,null,null,null,null,null,null,null,null,"-",null,null,null,{"$f":"IF(Z482=\"\",\"\",IF(Z482>AB482,Y482,IF(Z482=AB482,\"\",AC482)))","v":""},{"$f":"IF(Z482=\"\",\"\",IF(Z482=AB482,Y482,\"\"))","v":""},{"$f":"IF(Z482=\"\",\"\",IF(Z482=AB482,AC482,\"\"))","v":""},{"$f":"IF(Z482=\"\",\"\",IF(Z482<AB482,Y482,IF(Z482=AB482,\"\",AC482)))","v":""},{"$f":"IF(Z482=\"\",\"\",IF(Z482>AB482,Y479,\"\"))","v":""},{"$f":"IF(Z482=\"\",\"\",IF(Z482<AB482,AC479,\"\"))","v":""},{"$f":"CONCATENATE(AE482,AH482)","v":""}]
[null,null,null,null,null,null,null,null,null,null,null,null,null,null,null,null,null,null,null,null,null,null,null,null,null,null,"-",null,null,null,{"$f":"IF(Z483=\"\",\"\",IF(Z483>AB483,Y483,IF(Z483=AB483,\"\",AC483)))","v":""},{"$f":"IF(Z483=\"\",\"\",IF(Z483=AB483,Y483,\"\"))","v":""},{"$f":"IF(Z483=\"\",\"\",IF(Z483=AB483,AC483,\"\"))","v":""},{"$f":"IF(Z483=\"\",\"\",IF(Z483<AB483,Y483,IF(Z483=AB483,\"\",AC483)))","v":""},{"$f":"IF(Z483=\"\",\"\",IF(Z483>AB483,Y479,\"\"))","v":""},{"$f":"IF(Z483=\"\",\"\",IF(Z483<AB483,AC479,\"\"))","v":""},{"$f":"CONCATENATE(AE483,AH483)","v":""}]
[null,null,null,null,null,null,null,null,null,null,null,null,null,null,null,null,null,null,null,null,null,null,null,{"$f":"N_Substitute","v":"Substitute"}]
[null,null,null,null,null,null,null,null,null,null,null,null,null,null,null,null,null,null,null,null,null,null,null,{"$f":"N_Substitute","v":"Substitute"}]
[null,null,null,null,null,null,null,null,null,null,null,null,null,null,null,null,null,null,null,null,"#G7",null,null,null,{"$f":"G344","v":"Eq7"},{"$f":"IF(OR(ISNUMBER(Z487),ISNUMBER(Z488),ISNUMBER(Z489),ISNUMBER(Z490)),4-COUNTBLANK(AI487:AI490),\"\")","v":""},"-",{"$f":"IF(OR(ISNUMBER(Z487),ISNUMBER(Z488),ISNUMBER(Z489),ISNUMBER(Z490)),4-COUNTBLANK(AJ487:AJ490),\"\")","v":""},{"$f":"G339","v":"Eq2"},null,{"$f":"IF(Z486=\"\",\"\",IF(Z486>AB486,Y486,IF(Z486=AB486,IF(NoDrawWithWithdraw,IF(AL486=Y486,AC486,IF(AL486=AC486,Y486,\"\")),\"\"),AC486)))","v":""},{"$f":"IF(Z486=\"\",\"\",IF(Z486=AB486,IF(NoDrawWithWithdraw,IF(AL486=Y486,\"\",IF(AL486=AC486,\"\",Y486)),Y486),\"\"))","v":""},{"$f":"IF(Z486=\"\",\"\",IF(Z486=AB486,IF(NoDrawWithWithdraw,IF(AL486=Y486,\"\",IF(AL486=AC486,\"\",AC486)),AC486),\"\"))","v":""},{"$f":"IF(Z486=\"\",\"\",IF(Z486<AB486,Y486,IF(Z486=AB486,IF(NoDrawWithWithdraw,IF(AL486=Y486,Y486,IF(AL486=AC486,AC486,\"\")),\"\"),AC486)))","v":""},{"$f":"IF(Z486=\"\",\"\",SUM(Z487:Z490))","v":""},{"$f":"IF(Z486=\"\",\"\",SUM(AB487:AB490))","v":""},{"$f":"CONCATENATE(AE486,AH486)","v":""},{"$f":"IF(COUNTIF(Y487:Y490,WithdrawLabel)>COUNTIF(AC487:AC490,WithdrawLabel),Y486,IF(COUNTIF(AC487:AC490,WithdrawLabel)>COUNTIF(Y487:Y490,WithdrawLabel),AC486,\"\"))","v":""}]
[null,null,null,null,null,null,null,null,null,null,null,null,null,null,null,null,null,null,null,null,null,null,null,null,null,null,"-",null,null,null,{"$f":"IF(Z487=\"\",\"\",IF(Z487>AB487,Y487,IF(Z487=AB487,\"\",AC487)))","v":""},{"$f":"IF(Z487=\"\",\"\",IF(Z487=AB487,Y487,\"\"))","v":""},{"$f":"IF(Z487=\"\",\"\",IF(Z487=AB487,AC487,\"\"))","v":""},{"$f":"IF(Z487=\"\",\"\",IF(Z487<AB487,Y487,IF(Z487=AB487,\"\",AC487)))","v":""},{"$f":"IF(Z487=\"\",\"\",IF(Z487>AB487,Y486,\"\"))","v":""},{"$f":"IF(Z487=\"\",\"\",IF(Z487<AB487,AC486,\"\"))","v":""},{"$f":"CONCATENATE(AE487,AH487)","v":""}]
[null,null,null,null,null,null,null,null,null,null,null,null,null,null,null,null,null,null,null,null,null,null,null,null,null,null,"-",null,null,null,{"$f":"IF(Z488=\"\",\"\",IF(Z488>AB488,Y488,IF(Z488=AB488,\"\",AC488)))","v":""},{"$f":"IF(Z488=\"\",\"\",IF(Z488=AB488,Y488,\"\"))","v":""},{"$f":"IF(Z488=\"\",\"\",IF(Z488=AB488,AC488,\"\"))","v":""},{"$f":"IF(Z488=\"\",\"\",IF(Z488<AB488,Y488,IF(Z488=AB488,\"\",AC488)))","v":""},{"$f":"IF(Z488=\"\",\"\",IF(Z488>AB488,Y486,\"\"))","v":""},{"$f":"IF(Z488=\"\",\"\",IF(Z488<AB488,AC486,\"\"))","v":""},{"$f":"CONCATENATE(AE488,AH488)","v":""}]
[null,null,null,null,null,null,null,null,null,null,null,null,null,null,null,null,null,null,null,null,null,null,null,null,null,null,"-",null,null,null,{"$f":"IF(Z489=\"\",\"\",IF(Z489>AB489,Y489,IF(Z489=AB489,\"\",AC489)))","v":""},{"$f":"IF(Z489=\"\",\"\",IF(Z489=AB489,Y489,\"\"))","v":""},{"$f":"IF(Z489=\"\",\"\",IF(Z489=AB489,AC489,\"\"))","v":""},{"$f":"IF(Z489=\"\",\"\",IF(Z489<AB489,Y489,IF(Z489=AB489,\"\",AC489)))","v":""},{"$f":"IF(Z489=\"\",\"\",IF(Z489>AB489,Y486,\"\"))","v":""},{"$f":"IF(Z489=\"\",\"\",IF(Z489<AB489,AC486,\"\"))","v":""},{"$f":"CONCATENATE(AE489,AH489)","v":""}]
[null,null,null,null,null,null,null,null,null,null,null,null,null,null,null,null,null,null,null,null,null,null,null,null,null,null,"-",null,null,null,{"$f":"IF(Z490=\"\",\"\",IF(Z490>AB490,Y490,IF(Z490=AB490,\"\",AC490)))","v":""},{"$f":"IF(Z490=\"\",\"\",IF(Z490=AB490,Y490,\"\"))","v":""},{"$f":"IF(Z490=\"\",\"\",IF(Z490=AB490,AC490,\"\"))","v":""},{"$f":"IF(Z490=\"\",\"\",IF(Z490<AB490,Y490,IF(Z490=AB490,\"\",AC490)))","v":""},{"$f":"IF(Z490=\"\",\"\",IF(Z490>AB490,Y486,\"\"))","v":""},{"$f":"IF(Z490=\"\",\"\",IF(Z490<AB490,AC486,\"\"))","v":""},{"$f":"CONCATENATE(AE490,AH490)","v":""}]
[null,null,null,null,null,null,null,null,null,null,null,null,null,null,null,null,null,null,null,null,null,null,null,{"$f":"N_Substitute","v":"Substitute"}]
[null,null,null,null,null,null,null,null,null,null,null,null,null,null,null,null,null,null,null,null,null,null,null,{"$f":"N_Substitute","v":"Substitute"}]
[]
[]
[null,{"$f":"N_Group_8","v":"Group of 8"},null,null,null,null,null,null,null,null,null,null,null,null,null,null,null,null,null,null,null,null,null,null,null,null,null,null,null,null,null,null,null,null,null,null,null,null,null,{"$f":"B495","v":"Group of 8"}]
[]
[null,{"$f":"N_Tirage","v":"Draw"},"Cla.","Cla1","Part","Cla2",{"$f":"N_Equipes","v":"Teams"},{"$f":"N_Pts","v":"Pts"},{"$f":"N_J","v":"Pld"},{"$f":"N_G","v":"W"},{"$f":"N_N","v":"D"},{"$f":"N_P","v":"L"},{"$f":"N_Diff_R","v":"ED"},{"$f":"N_MP","v":"WM"},{"$f":"N_MC","v":"LM"},{"$f":"N_Diff_M","v":"MD"},{"$f":"N_BP","v":"F"},{"$f":"N_BC","v":"A"},{"$f":"N_Diff_B","v":"GD"},null,null,null,null,null,null,null,null,null,null,null,null,null,null,null,null,null,null,null,null,null,{"$f":"N_Cla.","v":"Rk"},{"$f":"N_Equipes","v":"Teams"},{"$f":"N_Pts","v":"Pts"},{"$f":"N_J","v":"Pld"},{"$f":"N_G","v":"W"},{"$f":"N_N","v":"D"},{"$f":"N_P","v":"L"},{"$f":"N_Diff_R","v":"ED"},{"$f":"N_MP","v":"WM"},{"$f":"N_MC","v":"LM"},{"$f":"N_Diff_M","v":"MD"},{"$f":"N_BP","v":"F"},{"$f":"N_BC","v":"A"},{"$f":"N_Diff_B","v":"GD"},{"$f":"N_Matches","v":"Matches"}]
[null,1,{"$f":"IF(Z507=\"\",\"\",RANK(F498,F498:F505)*1000+ROW())","v":""},{"$f":"IF(J498=\"\",\"\",H498*CritClassEq1_Points+M498*CritClassEq1_DiffRencontres+P498*CritClassEq1_DiffMatches+S498*CritClassEq1_DiffButs+N498*CritClassEq1_Matches+Q498*CritClassEq1_Attaque)","v":""},{"$f":"IF(J498=\"\",\"\",Nb_Diff_Part(D498,D498:D505,G498,G498:G505,AK507:AK696)*CritClassEq_DiffPart+Nb_Goal_Part(D498,D498:D505,G498,G498:G505,Y507:AC696)*CritClassEq_IndsPart+Nb_Score_Part(D498,D498:D505,G498,G498:G505,Y507:AC696)*CritClassEq_WinsPart+Nb_GoalTeam_Part(D498,D498:D505,G498,G498:G505,Y507:AC696)*CritClassEq_GoalPart+Nb_ScoreTeam_Part(D498,D498:D505,G498,G498:G505,Y507:AC696)*CritClassEq_ScorePart)","v":""},{"$f":"IF(J498=\"\",\"\",D498+E498+H498*CritClassEq2_Points+M498*CritClassEq2_DiffRencontres+P498*CritClassEq2_DiffMatches+S498*CritClassEq2_DiffButs+N498*CritClassEq2_Matches+Q498*CritClassEq2_Attaque)","v":""},"Eq1",{"$f":"IF(Z507=\"\",\"\",(J498*Points_Victoire)+K498*Points_Null)","v":""},{"$f":"IF(J498=\"\",\"\",SUM(J498:L498))","v":""},{"$f":"IF(Z507=\"\",\"\",COUNTIF(AE507:AE700,G498))","v":""},{"$f":"IF(Z507=\"\",\"\",COUNTIF(AF507:AG700,G498))","v":""},{"$f":"IF(Z507=\"\",\"\",COUNTIF(AH507:AH700,G498))","v":""},{"$f":"IF(Z507=\"\",\"\",J498-L498)","v":""},{"$f":"IF(Z507=\"\",\"\",SUMIF(Y507:Y700,G498,Z507:Z700)+SUMIF(AC507:AC700,G498,AB507:AB700))","v":""},{"$f":"IF(Z507=\"\",\"\",SUMIF(Y507:Y700,G498,AB507:AB700)+SUMIF(AC507:AC700,G498,Z507:Z700))","v":""},{"$f":"IF(Z507=\"\",\"\",N498-O498)","v":""},{"$f":"IF(Z507=\"\",\"\",SUMIF(Y507:Y700,G498,AI507:AI700)+SUMIF(AC507:AC700,G498,AJ507:AJ700))","v":""},{"$f":"IF(Z507=\"\",\"\",SUMIF(Y507:Y700,G498,AJ507:AJ700)+SUMIF(AC507:AC700,G498,AI507:AI700))","v":""},{"$f":"IF(Z507=\"\",\"\",Q498-R498)","v":""},null,null,null,null,null,null,null,null,null,null,null,null,null,null,null,null,null,null,{"$f":"IF(Z507=\"\",\"\",SMALL(C498:C505,1))","v":""},null,null,{"$f":"IF(Z507=\"\",\"\",INT(AL498/1000))","v":""},{"$f":"IF(Z507=\"\",IF(HidePlayerFormulas,\"\",\"(\"&G498&\")\"),VLOOKUP(AL498,C498:S505,5,FALSE))","v":""},{"$f":"VLOOKUP(AL498,C498:S505,6,FALSE)","v":""},{"$f":"VLOOKUP(AL498,C498:S505,7,FALSE)","v":""},{"$f":"VLOOKUP(AL498,C498:S505,8,FALSE)","v":""},{"$f":"VLOOKUP(AL498,C498:S505,9,FALSE)","v":""},{"$f":"VLOOKUP(AL498,C498:S505,10,FALSE)","v":""},{"$f":"VLOOKUP(AL498,C498:S505,11,FALSE)","v":""},{"$f":"VLOOKUP(AL498,C498:S505,12,FALSE)","v":""},{"$f":"VLOOKUP(AL498,C498:S505,13,FALSE)","v":""},{"$f":"VLOOKUP(AL498,C498:S505,14,FALSE)","v":""},{"$f":"VLOOKUP(AL498,C498:S505,15,FALSE)","v":""},{"$f":"VLOOKUP(AL498,C498:S505,16,FALSE)","v":""},{"$f":"VLOOKUP(AL498,C498:S505,17,FALSE)","v":""},{"$f":"IF(Z507=\"\",\"\",IF(AP498=Y507,Z507&\"(\"&SUM(Z508:Z511)&\")\",IF(AP498=AC507,AB507&\"(\"&SUM(AB508:AB511)&\")\",\"\")))","v":""},{"$f":"IF(Z514=\"\",\"\",IF(AP498=Y514,Z514&\"(\"&SUM(Z515:Z518)&\")\",IF(AP498=AC514,AB514&\"(\"&SUM(AB515:AB518)&\")\",\"\")))","v":""},{"$f":"IF(Z521=\"\",\"\",IF(AP498=Y521,Z521&\"(\"&SUM(Z522:Z525)&\")\",IF(AP498=AC521,AB521&\"(\"&SUM(AB522:AB525)&\")\",\"\")))","v":""},{"$f":"IF(Z528=\"\",\"\",IF(AP498=Y528,Z528&\"(\"&SUM(Z529:Z532)&\")\",IF(AP498=AC528,AB528&\"(\"&SUM(AB529:AB532)&\")\",\"\")))","v":""},{"$f":"IF(Z535=\"\",\"\",IF(AP498=Y535,Z535&\"(\"&SUM(Z536:Z539)&\")\",IF(AP498=AC535,AB535&\"(\"&SUM(AB536:AB539)&\")\",\"\")))","v":""},{"$f":"IF(Z542=\"\",\"\",IF(AP498=Y542,Z542&\"(\"&SUM(Z543:Z546)&\")\",IF(AP498=AC542,AB542&\"(\"&SUM(AB543:AB546)&\")\",\"\")))","v":""},{"$f":"IF(Z549=\"\",\"\",IF(AP498=Y549,Z549&\"(\"&SUM(Z550:Z553)&\")\",IF(AP498=AC549,AB549&\"(\"&SUM(AB550:AB553)&\")\",\"\")))","v":""},{"$f":"IF(Z556=\"\",\"\",IF(AP498=Y556,Z556&\"(\"&SUM(Z557:Z560)&\")\",IF(AP498=AC556,AB556&\"(\"&SUM(AB557:AB560)&\")\",\"\")))","v":""},{"$f":"IF(Z563=\"\",\"\",IF(AP498=Y563,Z563&\"(\"&SUM(Z564:Z567)&\")\",IF(AP498=AC563,AB563&\"(\"&SUM(AB564:AB567)&\")\",\"\")))","v":""},{"$f":"IF(Z570=\"\",\"\",IF(AP498=Y570,Z570&\"(\"&SUM(Z571:Z574)&\")\",IF(AP498=AC570,AB570&\"(\"&SUM(AB571:AB574)&\")\",\"\")))","v":""},{"$f":"IF(Z577=\"\",\"\",IF(AP498=Y577,Z577&\"(\"&SUM(Z578:Z581)&\")\",IF(AP498=AC577,AB577&\"(\"&SUM(AB578:AB581)&\")\",\"\")))","v":""},{"$f":"IF(Z584=\"\",\"\",IF(AP498=Y584,Z584&\"(\"&SUM(Z585:Z588)&\")\",IF(AP498=AC584,AB584&\"(\"&SUM(AB585:AB588)&\")\",\"\")))","v":""},{"$f":"IF(Z591=\"\",\"\",IF(AP498=Y591,Z591&\"(\"&SUM(Z592:Z595)&\")\",IF(AP498=AC591,AB591&\"(\"&SUM(AB592:AB595)&\")\",\"\")))","v":""},{"$f":"IF(Z598=\"\",\"\",IF(AP498=Y598,Z598&\"(\"&SUM(Z599:Z602)&\")\",IF(AP498=AC598,AB598&\"(\"&SUM(AB599:AB602)&\")\",\"\")))","v":""},{"$f":"IF(Z605=\"\",\"\",IF(AP498=Y605,Z605&\"(\"&SUM(Z606:Z609)&\")\",IF(AP498=AC605,AB605&\"(\"&SUM(AB606:AB609)&\")\",\"\")))","v":""},{"$f":"IF(Z612=\"\",\"\",IF(AP498=Y612,Z612&\"(\"&SUM(Z613:Z616)&\")\",IF(AP498=AC612,AB612&\"(\"&SUM(AB613:AB616)&\")\",\"\")))","v":""},{"$f":"IF(Z619=\"\",\"\",IF(AP498=Y619,Z619&\"(\"&SUM(Z620:Z623)&\")\",IF(AP498=AC619,AB619&\"(\"&SUM(AB620:AB623)&\")\",\"\")))","v":""},{"$f":"IF(Z626=\"\",\"\",IF(AP498=Y626,Z626&\"(\"&SUM(Z627:Z630)&\")\",IF(AP498=AC626,AB626&\"(\"&SUM(AB627:AB630)&\")\",\"\")))","v":""},{"$f":"IF(Z633=\"\",\"\",IF(AP498=Y633,Z633&\"(\"&SUM(Z634:Z637)&\")\",IF(AP498=AC633,AB633&\"(\"&SUM(AB634:AB637)&\")\",\"\")))","v":""},{"$f":"IF(Z640=\"\",\"\",IF(AP498=Y640,Z640&\"(\"&SUM(Z641:Z644)&\")\",IF(AP498=AC640,AB640&\"(\"&SUM(AB641:AB644)&\")\",\"\")))","v":""},{"$f":"IF(Z647=\"\",\"\",IF(AP498=Y647,Z647&\"(\"&SUM(Z648:Z651)&\")\",IF(AP498=AC647,AB647&\"(\"&SUM(AB648:AB651)&\")\",\"\")))","v":""},{"$f":"IF(Z654=\"\",\"\",IF(AP498=Y654,Z654&\"(\"&SUM(Z655:Z658)&\")\",IF(AP498=AC654,AB654&\"(\"&SUM(AB655:AB658)&\")\",\"\")))","v":""},{"$f":"IF(Z661=\"\",\"\",IF(AP498=Y661,Z661&\"(\"&SUM(Z662:Z665)&\")\",IF(AP498=AC661,AB661&\"(\"&SUM(AB662:AB665)&\")\",\"\")))","v":""},{"$f":"IF(Z668=\"\",\"\",IF(AP498=Y668,Z668&\"(\"&SUM(Z669:Z672)&\")\",IF(AP498=AC668,AB668&\"(\"&SUM(AB669:AB672)&\")\",\"\")))","v":""},{"$f":"IF(Z675=\"\",\"\",IF(AP498=Y675,Z675&\"(\"&SUM(Z676:Z679)&\")\",IF(AP498=AC675,AB675&\"(\"&SUM(AB676:AB679)&\")\",\"\")))","v":""},{"$f":"IF(Z682=\"\",\"\",IF(AP498=Y682,Z682&\"(\"&SUM(Z683:Z686)&\")\",IF(AP498=AC682,AB682&\"(\"&SUM(AB683:AB686)&\")\",\"\")))","v":""},{"$f":"IF(Z689=\"\",\"\",IF(AP498=Y689,Z689&\"(\"&SUM(Z690:Z693)&\")\",IF(AP498=AC689,AB689&\"(\"&SUM(AB690:AB693)&\")\",\"\")))","v":""},{"$f":"IF(Z696=\"\",\"\",IF(AP498=Y696,Z696&\"(\"&SUM(Z697:Z700)&\")\",IF(AP498=AC696,AB696&\"(\"&SUM(AB697:AB700)&\")\",\"\")))","v":""},{"$f":"IF(G498=\"[---WithDraw---]\",FALSE,IF(COUNTIF(PlayerNamesWithinGroups,G498)>1,TRUE,FALSE))","v":true},{"$f":"AND(LEFT($AP498,1) = \"(\", RIGHT($AP498,1) =\")\")","v":false},{"$f":"IF(OR($AO498=$AO497,$AO498=$AO499),TRUE,FALSE)","v":true}]
[null,2,{"$f":"IF(Z507=\"\",\"\",RANK(F499,F498:F505)*1000+ROW())","v":""},"",{"$f":"IF(J499=\"\",\"\",Nb_Diff_Part(D499,D498:D505,G499,G498:G505,AK507:AK696)*CritClassEq_DiffPart+Nb_Goal_Part(D499,D498:D505,G499,G498:G505,Y507:AC696)*CritClassEq_IndsPart+Nb_Score_Part(D499,D498:D505,G499,G498:G505,Y507:AC696)*CritClassEq_WinsPart+Nb_GoalTeam_Part(D499,D498:D505,G499,G498:G505,Y507:AC696)*CritClassEq_GoalPart+Nb_ScoreTeam_Part(D499,D498:D505,G499,G498:G505,Y507:AC696)*CritClassEq_ScorePart)","v":""},{"$f":"IF(J499=\"\",\"\",D499+E499+H499*CritClassEq2_Points+M499*CritClassEq2_DiffRencontres+P499*CritClassEq2_DiffMatches+S499*CritClassEq2_DiffButs+N499*CritClassEq2_Matches+Q499*CritClassEq2_Attaque)","v":""},"Eq2",{"$f":"IF(Z507=\"\",\"\",(J499*Points_Victoire)+K499*Points_Null)","v":""},{"$f":"IF(J499=\"\",\"\",SUM(J499:L499))","v":""},{"$f":"IF(Z507=\"\",\"\",COUNTIF(AE507:AE700,G499))","v":""},{"$f":"IF(Z507=\"\",\"\",COUNTIF(AF507:AG700,G499))","v":""},{"$f":"IF(Z507=\"\",\"\",COUNTIF(AH507:AH700,G499))","v":""},{"$f":"IF(Z507=\"\",\"\",J499-L499)","v":""},{"$f":"IF(Z507=\"\",\"\",SUMIF(Y507:Y700,G499,Z507:Z700)+SUMIF(AC507:AC700,G499,AB507:AB700))","v":""},{"$f":"IF(Z507=\"\",\"\",SUMIF(Y507:Y700,G499,AB507:AB700)+SUMIF(AC507:AC700,G499,Z507:Z700))","v":""},{"$f":"IF(Z507=\"\",\"\",N499-O499)","v":""},{"$f":"IF(Z507=\"\",\"\",SUMIF(Y507:Y700,G499,AI507:AI700)+SUMIF(AC507:AC700,G499,AJ507:AJ700))","v":""},{"$f":"IF(Z507=\"\",\"\",SUMIF(Y507:Y700,G499,AJ507:AJ700)+SUMIF(AC507:AC700,G499,AI507:AI700))","v":""},{"$f":"IF(Z507=\"\",\"\",Q499-R499)","v":""},null,null,null,null,null,null,null,null,null,null,null,null,null,null,null,null,null,null,{"$f":"IF(Z507=\"\",\"\",SMALL(C498:C505,2))","v":""},null,null,{"$f":"IF(Z507=\"\",\"\",INT(AL499/1000))","v":""},{"$f":"IF(Z507=\"\",IF(HidePlayerFormulas,\"\",\"(\"&G499&\")\"),VLOOKUP(AL499,C498:S505,5,FALSE))","v":""},{"$f":"VLOOKUP(AL499,C498:S505,6,FALSE)","v":""},{"$f":"VLOOKUP(AL499,C498:S505,7,FALSE)","v":""},{"$f":"VLOOKUP(AL499,C498:S505,8,FALSE)","v":""},{"$f":"VLOOKUP(AL499,C498:S505,9,FALSE)","v":""},{"$f":"VLOOKUP(AL499,C498:S505,10,FALSE)","v":""},{"$f":"VLOOKUP(AL499,C498:S505,11,FALSE)","v":""},{"$f":"VLOOKUP(AL499,C498:S505,12,FALSE)","v":""},{"$f":"VLOOKUP(AL499,C498:S505,13,FALSE)","v":""},{"$f":"VLOOKUP(AL499,C498:S505,14,FALSE)","v":""},{"$f":"VLOOKUP(AL499,C498:S505,15,FALSE)","v":""},{"$f":"VLOOKUP(AL499,C498:S505,16,FALSE)","v":""},{"$f":"VLOOKUP(AL499,C498:S505,17,FALSE)","v":""},{"$f":"IF(Z507=\"\",\"\",IF(AP499=Y507,Z507&\"(\"&SUM(Z508:Z511)&\")\",IF(AP499=AC507,AB507&\"(\"&SUM(AB508:AB511)&\")\",\"\")))","v":""},{"$f":"IF(Z514=\"\",\"\",IF(AP499=Y514,Z514&\"(\"&SUM(Z515:Z518)&\")\",IF(AP499=AC514,AB514&\"(\"&SUM(AB515:AB518)&\")\",\"\")))","v":""},{"$f":"IF(Z521=\"\",\"\",IF(AP499=Y521,Z521&\"(\"&SUM(Z522:Z525)&\")\",IF(AP499=AC521,AB521&\"(\"&SUM(AB522:AB525)&\")\",\"\")))","v":""},{"$f":"IF(Z528=\"\",\"\",IF(AP499=Y528,Z528&\"(\"&SUM(Z529:Z532)&\")\",IF(AP499=AC528,AB528&\"(\"&SUM(AB529:AB532)&\")\",\"\")))","v":""},{"$f":"IF(Z535=\"\",\"\",IF(AP499=Y535,Z535&\"(\"&SUM(Z536:Z539)&\")\",IF(AP499=AC535,AB535&\"(\"&SUM(AB536:AB539)&\")\",\"\")))","v":""},{"$f":"IF(Z542=\"\",\"\",IF(AP499=Y542,Z542&\"(\"&SUM(Z543:Z546)&\")\",IF(AP499=AC542,AB542&\"(\"&SUM(AB543:AB546)&\")\",\"\")))","v":""},{"$f":"IF(Z549=\"\",\"\",IF(AP499=Y549,Z549&\"(\"&SUM(Z550:Z553)&\")\",IF(AP499=AC549,AB549&\"(\"&SUM(AB550:AB553)&\")\",\"\")))","v":""},{"$f":"IF(Z556=\"\",\"\",IF(AP499=Y556,Z556&\"(\"&SUM(Z557:Z560)&\")\",IF(AP499=AC556,AB556&\"(\"&SUM(AB557:AB560)&\")\",\"\")))","v":""},{"$f":"IF(Z563=\"\",\"\",IF(AP499=Y563,Z563&\"(\"&SUM(Z564:Z567)&\")\",IF(AP499=AC563,AB563&\"(\"&SUM(AB564:AB567)&\")\",\"\")))","v":""},{"$f":"IF(Z570=\"\",\"\",IF(AP499=Y570,Z570&\"(\"&SUM(Z571:Z574)&\")\",IF(AP499=AC570,AB570&\"(\"&SUM(AB571:AB574)&\")\",\"\")))","v":""},{"$f":"IF(Z577=\"\",\"\",IF(AP499=Y577,Z577&\"(\"&SUM(Z578:Z581)&\")\",IF(AP499=AC577,AB577&\"(\"&SUM(AB578:AB581)&\")\",\"\")))","v":""},{"$f":"IF(Z584=\"\",\"\",IF(AP499=Y584,Z584&\"(\"&SUM(Z585:Z588)&\")\",IF(AP499=AC584,AB584&\"(\"&SUM(AB585:AB588)&\")\",\"\")))","v":""},{"$f":"IF(Z591=\"\",\"\",IF(AP499=Y591,Z591&\"(\"&SUM(Z592:Z595)&\")\",IF(AP499=AC591,AB591&\"(\"&SUM(AB592:AB595)&\")\",\"\")))","v":""},{"$f":"IF(Z598=\"\",\"\",IF(AP499=Y598,Z598&\"(\"&SUM(Z599:Z602)&\")\",IF(AP499=AC598,AB598&\"(\"&SUM(AB599:AB602)&\")\",\"\")))","v":""},{"$f":"IF(Z605=\"\",\"\",IF(AP499=Y605,Z605&\"(\"&SUM(Z606:Z609)&\")\",IF(AP499=AC605,AB605&\"(\"&SUM(AB606:AB609)&\")\",\"\")))","v":""},{"$f":"IF(Z612=\"\",\"\",IF(AP499=Y612,Z612&\"(\"&SUM(Z613:Z616)&\")\",IF(AP499=AC612,AB612&\"(\"&SUM(AB613:AB616)&\")\",\"\")))","v":""},{"$f":"IF(Z619=\"\",\"\",IF(AP499=Y619,Z619&\"(\"&SUM(Z620:Z623)&\")\",IF(AP499=AC619,AB619&\"(\"&SUM(AB620:AB623)&\")\",\"\")))","v":""},{"$f":"IF(Z626=\"\",\"\",IF(AP499=Y626,Z626&\"(\"&SUM(Z627:Z630)&\")\",IF(AP499=AC626,AB626&\"(\"&SUM(AB627:AB630)&\")\",\"\")))","v":""},{"$f":"IF(Z633=\"\",\"\",IF(AP499=Y633,Z633&\"(\"&SUM(Z634:Z637)&\")\",IF(AP499=AC633,AB633&\"(\"&SUM(AB634:AB637)&\")\",\"\")))","v":""},{"$f":"IF(Z640=\"\",\"\",IF(AP499=Y640,Z640&\"(\"&SUM(Z641:Z644)&\")\",IF(AP499=AC640,AB640&\"(\"&SUM(AB641:AB644)&\")\",\"\")))","v":""},{"$f":"IF(Z647=\"\",\"\",IF(AP499=Y647,Z647&\"(\"&SUM(Z648:Z651)&\")\",IF(AP499=AC647,AB647&\"(\"&SUM(AB648:AB651)&\")\",\"\")))","v":""},{"$f":"IF(Z654=\"\",\"\",IF(AP499=Y654,Z654&\"(\"&SUM(Z655:Z658)&\")\",IF(AP499=AC654,AB654&\"(\"&SUM(AB655:AB658)&\")\",\"\")))","v":""},{"$f":"IF(Z661=\"\",\"\",IF(AP499=Y661,Z661&\"(\"&SUM(Z662:Z665)&\")\",IF(AP499=AC661,AB661&\"(\"&SUM(AB662:AB665)&\")\",\"\")))","v":""},{"$f":"IF(Z668=\"\",\"\",IF(AP499=Y668,Z668&\"(\"&SUM(Z669:Z672)&\")\",IF(AP499=AC668,AB668&\"(\"&SUM(AB669:AB672)&\")\",\"\")))","v":""},{"$f":"IF(Z675=\"\",\"\",IF(AP499=Y675,Z675&\"(\"&SUM(Z676:Z679)&\")\",IF(AP499=AC675,AB675&\"(\"&SUM(AB676:AB679)&\")\",\"\")))","v":""},{"$f":"IF(Z682=\"\",\"\",IF(AP499=Y682,Z682&\"(\"&SUM(Z683:Z686)&\")\",IF(AP499=AC682,AB682&\"(\"&SUM(AB683:AB686)&\")\",\"\")))","v":""},{"$f":"IF(Z689=\"\",\"\",IF(AP499=Y689,Z689&\"(\"&SUM(Z690:Z693)&\")\",IF(AP499=AC689,AB689&\"(\"&SUM(AB690:AB693)&\")\",\"\")))","v":""},{"$f":"IF(Z696=\"\",\"\",IF(AP499=Y696,Z696&\"(\"&SUM(Z697:Z700)&\")\",IF(AP499=AC696,AB696&\"(\"&SUM(AB697:AB700)&\")\",\"\")))","v":""},true,false,true]
[null,3,{"$f":"IF(Z507=\"\",\"\",RANK(F500,F498:F505)*1000+ROW())","v":""},{"$f":"IF(J500=\"\",\"\",H500*CritClassEq1_Points+M500*CritClassEq1_DiffRencontres+P500*CritClassEq1_DiffMatches+S500*CritClassEq1_DiffButs+N500*CritClassEq1_Matches+Q500*CritClassEq1_Attaque)","v":""},{"$f":"IF(J500=\"\",\"\",Nb_Diff_Part(D500,D498:D505,G500,G498:G505,AK507:AK696)*CritClassEq_DiffPart+Nb_Goal_Part(D500,D498:D505,G500,G498:G505,Y507:AC696)*CritClassEq_IndsPart+Nb_Score_Part(D500,D498:D505,G500,G498:G505,Y507:AC696)*CritClassEq_WinsPart+Nb_GoalTeam_Part(D500,D498:D505,G500,G498:G505,Y507:AC696)*CritClassEq_GoalPart+Nb_ScoreTeam_Part(D500,D498:D505,G500,G498:G505,Y507:AC696)*CritClassEq_ScorePart)","v":""},"","Eq3",{"$f":"IF(Z507=\"\",\"\",(J500*Points_Victoire)+K500*Points_Null)","v":""},"",{"$f":"IF(Z507=\"\",\"\",COUNTIF(AE507:AE700,G500))","v":""},{"$f":"IF(Z507=\"\",\"\",COUNTIF(AF507:AG700,G500))","v":""},{"$f":"IF(Z507=\"\",\"\",COUNTIF(AH507:AH700,G500))","v":""},{"$f":"IF(Z507=\"\",\"\",J500-L500)","v":""},{"$f":"IF(Z507=\"\",\"\",SUMIF(Y507:Y700,G500,Z507:Z700)+SUMIF(AC507:AC700,G500,AB507:AB700))","v":""},{"$f":"IF(Z507=\"\",\"\",SUMIF(Y507:Y700,G500,AB507:AB700)+SUMIF(AC507:AC700,G500,Z507:Z700))","v":""},{"$f":"IF(Z507=\"\",\"\",N500-O500)","v":""},{"$f":"IF(Z507=\"\",\"\",SUMIF(Y507:Y700,G500,AI507:AI700)+SUMIF(AC507:AC700,G500,AJ507:AJ700))","v":""},{"$f":"IF(Z507=\"\",\"\",SUMIF(Y507:Y700,G500,AJ507:AJ700)+SUMIF(AC507:AC700,G500,AI507:AI700))","v":""},{"$f":"IF(Z507=\"\",\"\",Q500-R500)","v":""},null,null,null,null,null,null,null,null,null,null,null,null,null,null,null,null,null,null,{"$f":"IF(Z507=\"\",\"\",SMALL(C498:C505,3))","v":""},null,null,{"$f":"IF(Z507=\"\",\"\",INT(AL500/1000))","v":""},{"$f":"IF(Z507=\"\",IF(HidePlayerFormulas,\"\",\"(\"&G500&\")\"),VLOOKUP(AL500,C498:S505,5,FALSE))","v":""},{"$f":"VLOOKUP(AL500,C498:S505,6,FALSE)","v":""},{"$f":"VLOOKUP(AL500,C498:S505,7,FALSE)","v":""},{"$f":"VLOOKUP(AL500,C498:S505,8,FALSE)","v":""},{"$f":"VLOOKUP(AL500,C498:S505,9,FALSE)","v":""},{"$f":"VLOOKUP(AL500,C498:S505,10,FALSE)","v":""},{"$f":"VLOOKUP(AL500,C498:S505,11,FALSE)","v":""},{"$f":"VLOOKUP(AL500,C498:S505,12,FALSE)","v":""},{"$f":"VLOOKUP(AL500,C498:S505,13,FALSE)","v":""},{"$f":"VLOOKUP(AL500,C498:S505,14,FALSE)","v":""},{"$f":"VLOOKUP(AL500,C498:S505,15,FALSE)","v":""},{"$f":"VLOOKUP(AL500,C498:S505,16,FALSE)","v":""},{"$f":"VLOOKUP(AL500,C498:S505,17,FALSE)","v":""},{"$f":"IF(Z507=\"\",\"\",IF(AP500=Y507,Z507&\"(\"&SUM(Z508:Z511)&\")\",IF(AP500=AC507,AB507&\"(\"&SUM(AB508:AB511)&\")\",\"\")))","v":""},{"$f":"IF(Z514=\"\",\"\",IF(AP500=Y514,Z514&\"(\"&SUM(Z515:Z518)&\")\",IF(AP500=AC514,AB514&\"(\"&SUM(AB515:AB518)&\")\",\"\")))","v":""},{"$f":"IF(Z521=\"\",\"\",IF(AP500=Y521,Z521&\"(\"&SUM(Z522:Z525)&\")\",IF(AP500=AC521,AB521&\"(\"&SUM(AB522:AB525)&\")\",\"\")))","v":""},{"$f":"IF(Z528=\"\",\"\",IF(AP500=Y528,Z528&\"(\"&SUM(Z529:Z532)&\")\",IF(AP500=AC528,AB528&\"(\"&SUM(AB529:AB532)&\")\",\"\")))","v":""},{"$f":"IF(Z535=\"\",\"\",IF(AP500=Y535,Z535&\"(\"&SUM(Z536:Z539)&\")\",IF(AP500=AC535,AB535&\"(\"&SUM(AB536:AB539)&\")\",\"\")))","v":""},{"$f":"IF(Z542=\"\",\"\",IF(AP500=Y542,Z542&\"(\"&SUM(Z543:Z546)&\")\",IF(AP500=AC542,AB542&\"(\"&SUM(AB543:AB546)&\")\",\"\")))","v":""},{"$f":"IF(Z549=\"\",\"\",IF(AP500=Y549,Z549&\"(\"&SUM(Z550:Z553)&\")\",IF(AP500=AC549,AB549&\"(\"&SUM(AB550:AB553)&\")\",\"\")))","v":""},{"$f":"IF(Z556=\"\",\"\",IF(AP500=Y556,Z556&\"(\"&SUM(Z557:Z560)&\")\",IF(AP500=AC556,AB556&\"(\"&SUM(AB557:AB560)&\")\",\"\")))","v":""},{"$f":"IF(Z563=\"\",\"\",IF(AP500=Y563,Z563&\"(\"&SUM(Z564:Z567)&\")\",IF(AP500=AC563,AB563&\"(\"&SUM(AB564:AB567)&\")\",\"\")))","v":""},{"$f":"IF(Z570=\"\",\"\",IF(AP500=Y570,Z570&\"(\"&SUM(Z571:Z574)&\")\",IF(AP500=AC570,AB570&\"(\"&SUM(AB571:AB574)&\")\",\"\")))","v":""},{"$f":"IF(Z577=\"\",\"\",IF(AP500=Y577,Z577&\"(\"&SUM(Z578:Z581)&\")\",IF(AP500=AC577,AB577&\"(\"&SUM(AB578:AB581)&\")\",\"\")))","v":""},{"$f":"IF(Z584=\"\",\"\",IF(AP500=Y584,Z584&\"(\"&SUM(Z585:Z588)&\")\",IF(AP500=AC584,AB584&\"(\"&SUM(AB585:AB588)&\")\",\"\")))","v":""},{"$f":"IF(Z591=\"\",\"\",IF(AP500=Y591,Z591&\"(\"&SUM(Z592:Z595)&\")\",IF(AP500=AC591,AB591&\"(\"&SUM(AB592:AB595)&\")\",\"\")))","v":""},{"$f":"IF(Z598=\"\",\"\",IF(AP500=Y598,Z598&\"(\"&SUM(Z599:Z602)&\")\",IF(AP500=AC598,AB598&\"(\"&SUM(AB599:AB602)&\")\",\"\")))","v":""},{"$f":"IF(Z605=\"\",\"\",IF(AP500=Y605,Z605&\"(\"&SUM(Z606:Z609)&\")\",IF(AP500=AC605,AB605&\"(\"&SUM(AB606:AB609)&\")\",\"\")))","v":""},{"$f":"IF(Z612=\"\",\"\",IF(AP500=Y612,Z612&\"(\"&SUM(Z613:Z616)&\")\",IF(AP500=AC612,AB612&\"(\"&SUM(AB613:AB616)&\")\",\"\")))","v":""},{"$f":"IF(Z619=\"\",\"\",IF(AP500=Y619,Z619&\"(\"&SUM(Z620:Z623)&\")\",IF(AP500=AC619,AB619&\"(\"&SUM(AB620:AB623)&\")\",\"\")))","v":""},{"$f":"IF(Z626=\"\",\"\",IF(AP500=Y626,Z626&\"(\"&SUM(Z627:Z630)&\")\",IF(AP500=AC626,AB626&\"(\"&SUM(AB627:AB630)&\")\",\"\")))","v":""},{"$f":"IF(Z633=\"\",\"\",IF(AP500=Y633,Z633&\"(\"&SUM(Z634:Z637)&\")\",IF(AP500=AC633,AB633&\"(\"&SUM(AB634:AB637)&\")\",\"\")))","v":""},{"$f":"IF(Z640=\"\",\"\",IF(AP500=Y640,Z640&\"(\"&SUM(Z641:Z644)&\")\",IF(AP500=AC640,AB640&\"(\"&SUM(AB641:AB644)&\")\",\"\")))","v":""},{"$f":"IF(Z647=\"\",\"\",IF(AP500=Y647,Z647&\"(\"&SUM(Z648:Z651)&\")\",IF(AP500=AC647,AB647&\"(\"&SUM(AB648:AB651)&\")\",\"\")))","v":""},{"$f":"IF(Z654=\"\",\"\",IF(AP500=Y654,Z654&\"(\"&SUM(Z655:Z658)&\")\",IF(AP500=AC654,AB654&\"(\"&SUM(AB655:AB658)&\")\",\"\")))","v":""},{"$f":"IF(Z661=\"\",\"\",IF(AP500=Y661,Z661&\"(\"&SUM(Z662:Z665)&\")\",IF(AP500=AC661,AB661&\"(\"&SUM(AB662:AB665)&\")\",\"\")))","v":""},{"$f":"IF(Z668=\"\",\"\",IF(AP500=Y668,Z668&\"(\"&SUM(Z669:Z672)&\")\",IF(AP500=AC668,AB668&\"(\"&SUM(AB669:AB672)&\")\",\"\")))","v":""},{"$f":"IF(Z675=\"\",\"\",IF(AP500=Y675,Z675&\"(\"&SUM(Z676:Z679)&\")\",IF(AP500=AC675,AB675&\"(\"&SUM(AB676:AB679)&\")\",\"\")))","v":""},{"$f":"IF(Z682=\"\",\"\",IF(AP500=Y682,Z682&\"(\"&SUM(Z683:Z686)&\")\",IF(AP500=AC682,AB682&\"(\"&SUM(AB683:AB686)&\")\",\"\")))","v":""},{"$f":"IF(Z689=\"\",\"\",IF(AP500=Y689,Z689&\"(\"&SUM(Z690:Z693)&\")\",IF(AP500=AC689,AB689&\"(\"&SUM(AB690:AB693)&\")\",\"\")))","v":""},{"$f":"IF(Z696=\"\",\"\",IF(AP500=Y696,Z696&\"(\"&SUM(Z697:Z700)&\")\",IF(AP500=AC696,AB696&\"(\"&SUM(AB697:AB700)&\")\",\"\")))","v":""},true,false,true]
[null,4,{"$f":"IF(Z507=\"\",\"\",RANK(F501,F498:F505)*1000+ROW())","v":""},"",{"$f":"IF(J501=\"\",\"\",Nb_Diff_Part(D501,D498:D505,G501,G498:G505,AK507:AK696)*CritClassEq_DiffPart+Nb_Goal_Part(D501,D498:D505,G501,G498:G505,Y507:AC696)*CritClassEq_IndsPart+Nb_Score_Part(D501,D498:D505,G501,G498:G505,Y507:AC696)*CritClassEq_WinsPart+Nb_GoalTeam_Part(D501,D498:D505,G501,G498:G505,Y507:AC696)*CritClassEq_GoalPart+Nb_ScoreTeam_Part(D501,D498:D505,G501,G498:G505,Y507:AC696)*CritClassEq_ScorePart)","v":""},"","Eq4",{"$f":"IF(Z507=\"\",\"\",(J501*Points_Victoire)+K501*Points_Null)","v":""},"",{"$f":"IF(Z507=\"\",\"\",COUNTIF(AE507:AE700,G501))","v":""},{"$f":"IF(Z507=\"\",\"\",COUNTIF(AF507:AG700,G501))","v":""},{"$f":"IF(Z507=\"\",\"\",COUNTIF(AH507:AH700,G501))","v":""},{"$f":"IF(Z507=\"\",\"\",J501-L501)","v":""},{"$f":"IF(Z507=\"\",\"\",SUMIF(Y507:Y700,G501,Z507:Z700)+SUMIF(AC507:AC700,G501,AB507:AB700))","v":""},{"$f":"IF(Z507=\"\",\"\",SUMIF(Y507:Y700,G501,AB507:AB700)+SUMIF(AC507:AC700,G501,Z507:Z700))","v":""},{"$f":"IF(Z507=\"\",\"\",N501-O501)","v":""},{"$f":"IF(Z507=\"\",\"\",SUMIF(Y507:Y700,G501,AI507:AI700)+SUMIF(AC507:AC700,G501,AJ507:AJ700))","v":""},{"$f":"IF(Z507=\"\",\"\",SUMIF(Y507:Y700,G501,AJ507:AJ700)+SUMIF(AC507:AC700,G501,AI507:AI700))","v":""},{"$f":"IF(Z507=\"\",\"\",Q501-R501)","v":""},null,null,null,null,null,null,null,null,null,null,null,null,null,null,null,null,null,null,{"$f":"IF(Z507=\"\",\"\",SMALL(C498:C505,4))","v":""},null,null,{"$f":"IF(Z507=\"\",\"\",INT(AL501/1000))","v":""},{"$f":"IF(Z507=\"\",IF(HidePlayerFormulas,\"\",\"(\"&G501&\")\"),VLOOKUP(AL501,C498:S505,5,FALSE))","v":""},{"$f":"VLOOKUP(AL501,C498:S505,6,FALSE)","v":""},{"$f":"VLOOKUP(AL501,C498:S505,7,FALSE)","v":""},{"$f":"VLOOKUP(AL501,C498:S505,8,FALSE)","v":""},{"$f":"VLOOKUP(AL501,C498:S505,9,FALSE)","v":""},{"$f":"VLOOKUP(AL501,C498:S505,10,FALSE)","v":""},{"$f":"VLOOKUP(AL501,C498:S505,11,FALSE)","v":""},{"$f":"VLOOKUP(AL501,C498:S505,12,FALSE)","v":""},{"$f":"VLOOKUP(AL501,C498:S505,13,FALSE)","v":""},{"$f":"VLOOKUP(AL501,C498:S505,14,FALSE)","v":""},{"$f":"VLOOKUP(AL501,C498:S505,15,FALSE)","v":""},{"$f":"VLOOKUP(AL501,C498:S505,16,FALSE)","v":""},{"$f":"VLOOKUP(AL501,C498:S505,17,FALSE)","v":""},{"$f":"IF(Z507=\"\",\"\",IF(AP501=Y507,Z507&\"(\"&SUM(Z508:Z511)&\")\",IF(AP501=AC507,AB507&\"(\"&SUM(AB508:AB511)&\")\",\"\")))","v":""},{"$f":"IF(Z514=\"\",\"\",IF(AP501=Y514,Z514&\"(\"&SUM(Z515:Z518)&\")\",IF(AP501=AC514,AB514&\"(\"&SUM(AB515:AB518)&\")\",\"\")))","v":""},{"$f":"IF(Z521=\"\",\"\",IF(AP501=Y521,Z521&\"(\"&SUM(Z522:Z525)&\")\",IF(AP501=AC521,AB521&\"(\"&SUM(AB522:AB525)&\")\",\"\")))","v":""},{"$f":"IF(Z528=\"\",\"\",IF(AP501=Y528,Z528&\"(\"&SUM(Z529:Z532)&\")\",IF(AP501=AC528,AB528&\"(\"&SUM(AB529:AB532)&\")\",\"\")))","v":""},{"$f":"IF(Z535=\"\",\"\",IF(AP501=Y535,Z535&\"(\"&SUM(Z536:Z539)&\")\",IF(AP501=AC535,AB535&\"(\"&SUM(AB536:AB539)&\")\",\"\")))","v":""},{"$f":"IF(Z542=\"\",\"\",IF(AP501=Y542,Z542&\"(\"&SUM(Z543:Z546)&\")\",IF(AP501=AC542,AB542&\"(\"&SUM(AB543:AB546)&\")\",\"\")))","v":""},{"$f":"IF(Z549=\"\",\"\",IF(AP501=Y549,Z549&\"(\"&SUM(Z550:Z553)&\")\",IF(AP501=AC549,AB549&\"(\"&SUM(AB550:AB553)&\")\",\"\")))","v":""},{"$f":"IF(Z556=\"\",\"\",IF(AP501=Y556,Z556&\"(\"&SUM(Z557:Z560)&\")\",IF(AP501=AC556,AB556&\"(\"&SUM(AB557:AB560)&\")\",\"\")))","v":""},{"$f":"IF(Z563=\"\",\"\",IF(AP501=Y563,Z563&\"(\"&SUM(Z564:Z567)&\")\",IF(AP501=AC563,AB563&\"(\"&SUM(AB564:AB567)&\")\",\"\")))","v":""},{"$f":"IF(Z570=\"\",\"\",IF(AP501=Y570,Z570&\"(\"&SUM(Z571:Z574)&\")\",IF(AP501=AC570,AB570&\"(\"&SUM(AB571:AB574)&\")\",\"\")))","v":""},{"$f":"IF(Z577=\"\",\"\",IF(AP501=Y577,Z577&\"(\"&SUM(Z578:Z581)&\")\",IF(AP501=AC577,AB577&\"(\"&SUM(AB578:AB581)&\")\",\"\")))","v":""},{"$f":"IF(Z584=\"\",\"\",IF(AP501=Y584,Z584&\"(\"&SUM(Z585:Z588)&\")\",IF(AP501=AC584,AB584&\"(\"&SUM(AB585:AB588)&\")\",\"\")))","v":""},{"$f":"IF(Z591=\"\",\"\",IF(AP501=Y591,Z591&\"(\"&SUM(Z592:Z595)&\")\",IF(AP501=AC591,AB591&\"(\"&SUM(AB592:AB595)&\")\",\"\")))","v":""},{"$f":"IF(Z598=\"\",\"\",IF(AP501=Y598,Z598&\"(\"&SUM(Z599:Z602)&\")\",IF(AP501=AC598,AB598&\"(\"&SUM(AB599:AB602)&\")\",\"\")))","v":""},{"$f":"IF(Z605=\"\",\"\",IF(AP501=Y605,Z605&\"(\"&SUM(Z606:Z609)&\")\",IF(AP501=AC605,AB605&\"(\"&SUM(AB606:AB609)&\")\",\"\")))","v":""},{"$f":"IF(Z612=\"\",\"\",IF(AP501=Y612,Z612&\"(\"&SUM(Z613:Z616)&\")\",IF(AP501=AC612,AB612&\"(\"&SUM(AB613:AB616)&\")\",\"\")))","v":""},{"$f":"IF(Z619=\"\",\"\",IF(AP501=Y619,Z619&\"(\"&SUM(Z620:Z623)&\")\",IF(AP501=AC619,AB619&\"(\"&SUM(AB620:AB623)&\")\",\"\")))","v":""},{"$f":"IF(Z626=\"\",\"\",IF(AP501=Y626,Z626&\"(\"&SUM(Z627:Z630)&\")\",IF(AP501=AC626,AB626&\"(\"&SUM(AB627:AB630)&\")\",\"\")))","v":""},{"$f":"IF(Z633=\"\",\"\",IF(AP501=Y633,Z633&\"(\"&SUM(Z634:Z637)&\")\",IF(AP501=AC633,AB633&\"(\"&SUM(AB634:AB637)&\")\",\"\")))","v":""},{"$f":"IF(Z640=\"\",\"\",IF(AP501=Y640,Z640&\"(\"&SUM(Z641:Z644)&\")\",IF(AP501=AC640,AB640&\"(\"&SUM(AB641:AB644)&\")\",\"\")))","v":""},{"$f":"IF(Z647=\"\",\"\",IF(AP501=Y647,Z647&\"(\"&SUM(Z648:Z651)&\")\",IF(AP501=AC647,AB647&\"(\"&SUM(AB648:AB651)&\")\",\"\")))","v":""},{"$f":"IF(Z654=\"\",\"\",IF(AP501=Y654,Z654&\"(\"&SUM(Z655:Z658)&\")\",IF(AP501=AC654,AB654&\"(\"&SUM(AB655:AB658)&\")\",\"\")))","v":""},{"$f":"IF(Z661=\"\",\"\",IF(AP501=Y661,Z661&\"(\"&SUM(Z662:Z665)&\")\",IF(AP501=AC661,AB661&\"(\"&SUM(AB662:AB665)&\")\",\"\")))","v":""},{"$f":"IF(Z668=\"\",\"\",IF(AP501=Y668,Z668&\"(\"&SUM(Z669:Z672)&\")\",IF(AP501=AC668,AB668&\"(\"&SUM(AB669:AB672)&\")\",\"\")))","v":""},{"$f":"IF(Z675=\"\",\"\",IF(AP501=Y675,Z675&\"(\"&SUM(Z676:Z679)&\")\",IF(AP501=AC675,AB675&\"(\"&SUM(AB676:AB679)&\")\",\"\")))","v":""},{"$f":"IF(Z682=\"\",\"\",IF(AP501=Y682,Z682&\"(\"&SUM(Z683:Z686)&\")\",IF(AP501=AC682,AB682&\"(\"&SUM(AB683:AB686)&\")\",\"\")))","v":""},{"$f":"IF(Z689=\"\",\"\",IF(AP501=Y689,Z689&\"(\"&SUM(Z690:Z693)&\")\",IF(AP501=AC689,AB689&\"(\"&SUM(AB690:AB693)&\")\",\"\")))","v":""},{"$f":"IF(Z696=\"\",\"\",IF(AP501=Y696,Z696&\"(\"&SUM(Z697:Z700)&\")\",IF(AP501=AC696,AB696&\"(\"&SUM(AB697:AB700)&\")\",\"\")))","v":""},true,false,true]
[null,5,{"$f":"IF(Z507=\"\",\"\",RANK(F502,F498:F505)*1000+ROW())","v":""},"",{"$f":"IF(J502=\"\",\"\",Nb_Diff_Part(D502,D498:D505,G502,G498:G505,AK507:AK696)*CritClassEq_DiffPart+Nb_Goal_Part(D502,D498:D505,G502,G498:G505,Y507:AC696)*CritClassEq_IndsPart+Nb_Score_Part(D502,D498:D505,G502,G498:G505,Y507:AC696)*CritClassEq_WinsPart+Nb_GoalTeam_Part(D502,D498:D505,G502,G498:G505,Y507:AC696)*CritClassEq_GoalPart+Nb_ScoreTeam_Part(D502,D498:D505,G502,G498:G505,Y507:AC696)*CritClassEq_ScorePart)","v":""},"","Eq5",{"$f":"IF(Z507=\"\",\"\",(J502*Points_Victoire)+K502*Points_Null)","v":""},"",{"$f":"IF(Z507=\"\",\"\",COUNTIF(AE507:AE700,G502))","v":""},{"$f":"IF(Z507=\"\",\"\",COUNTIF(AF507:AG700,G502))","v":""},{"$f":"IF(Z507=\"\",\"\",COUNTIF(AH507:AH700,G502))","v":""},{"$f":"IF(Z507=\"\",\"\",J502-L502)","v":""},{"$f":"IF(Z507=\"\",\"\",SUMIF(Y507:Y700,G502,Z507:Z700)+SUMIF(AC507:AC700,G502,AB507:AB700))","v":""},{"$f":"IF(Z507=\"\",\"\",SUMIF(Y507:Y700,G502,AB507:AB700)+SUMIF(AC507:AC700,G502,Z507:Z700))","v":""},{"$f":"IF(Z507=\"\",\"\",N502-O502)","v":""},{"$f":"IF(Z507=\"\",\"\",SUMIF(Y507:Y700,G502,AI507:AI700)+SUMIF(AC507:AC700,G502,AJ507:AJ700))","v":""},{"$f":"IF(Z507=\"\",\"\",SUMIF(Y507:Y700,G502,AJ507:AJ700)+SUMIF(AC507:AC700,G502,AI507:AI700))","v":""},{"$f":"IF(Z507=\"\",\"\",Q502-R502)","v":""},null,null,null,null,null,null,null,null,null,null,null,null,null,null,null,null,null,null,{"$f":"IF(Z507=\"\",\"\",SMALL(C498:C505,5))","v":""},null,null,{"$f":"IF(Z507=\"\",\"\",INT(AL502/1000))","v":""},{"$f":"IF(Z507=\"\",IF(HidePlayerFormulas,\"\",\"(\"&G502&\")\"),VLOOKUP(AL502,C498:S505,5,FALSE))","v":""},{"$f":"VLOOKUP(AL502,C498:S505,6,FALSE)","v":""},{"$f":"VLOOKUP(AL502,C498:S505,7,FALSE)","v":""},{"$f":"VLOOKUP(AL502,C498:S505,8,FALSE)","v":""},{"$f":"VLOOKUP(AL502,C498:S505,9,FALSE)","v":""},{"$f":"VLOOKUP(AL502,C498:S505,10,FALSE)","v":""},{"$f":"VLOOKUP(AL502,C498:S505,11,FALSE)","v":""},{"$f":"VLOOKUP(AL502,C498:S505,12,FALSE)","v":""},{"$f":"VLOOKUP(AL502,C498:S505,13,FALSE)","v":""},{"$f":"VLOOKUP(AL502,C498:S505,14,FALSE)","v":""},{"$f":"VLOOKUP(AL502,C498:S505,15,FALSE)","v":""},{"$f":"VLOOKUP(AL502,C498:S505,16,FALSE)","v":""},{"$f":"VLOOKUP(AL502,C498:S505,17,FALSE)","v":""},{"$f":"IF(Z507=\"\",\"\",IF(AP502=Y507,Z507&\"(\"&SUM(Z508:Z511)&\")\",IF(AP502=AC507,AB507&\"(\"&SUM(AB508:AB511)&\")\",\"\")))","v":""},{"$f":"IF(Z514=\"\",\"\",IF(AP502=Y514,Z514&\"(\"&SUM(Z515:Z518)&\")\",IF(AP502=AC514,AB514&\"(\"&SUM(AB515:AB518)&\")\",\"\")))","v":""},{"$f":"IF(Z521=\"\",\"\",IF(AP502=Y521,Z521&\"(\"&SUM(Z522:Z525)&\")\",IF(AP502=AC521,AB521&\"(\"&SUM(AB522:AB525)&\")\",\"\")))","v":""},{"$f":"IF(Z528=\"\",\"\",IF(AP502=Y528,Z528&\"(\"&SUM(Z529:Z532)&\")\",IF(AP502=AC528,AB528&\"(\"&SUM(AB529:AB532)&\")\",\"\")))","v":""},{"$f":"IF(Z535=\"\",\"\",IF(AP502=Y535,Z535&\"(\"&SUM(Z536:Z539)&\")\",IF(AP502=AC535,AB535&\"(\"&SUM(AB536:AB539)&\")\",\"\")))","v":""},{"$f":"IF(Z542=\"\",\"\",IF(AP502=Y542,Z542&\"(\"&SUM(Z543:Z546)&\")\",IF(AP502=AC542,AB542&\"(\"&SUM(AB543:AB546)&\")\",\"\")))","v":""},{"$f":"IF(Z549=\"\",\"\",IF(AP502=Y549,Z549&\"(\"&SUM(Z550:Z553)&\")\",IF(AP502=AC549,AB549&\"(\"&SUM(AB550:AB553)&\")\",\"\")))","v":""},{"$f":"IF(Z556=\"\",\"\",IF(AP502=Y556,Z556&\"(\"&SUM(Z557:Z560)&\")\",IF(AP502=AC556,AB556&\"(\"&SUM(AB557:AB560)&\")\",\"\")))","v":""},{"$f":"IF(Z563=\"\",\"\",IF(AP502=Y563,Z563&\"(\"&SUM(Z564:Z567)&\")\",IF(AP502=AC563,AB563&\"(\"&SUM(AB564:AB567)&\")\",\"\")))","v":""},{"$f":"IF(Z570=\"\",\"\",IF(AP502=Y570,Z570&\"(\"&SUM(Z571:Z574)&\")\",IF(AP502=AC570,AB570&\"(\"&SUM(AB571:AB574)&\")\",\"\")))","v":""},{"$f":"IF(Z577=\"\",\"\",IF(AP502=Y577,Z577&\"(\"&SUM(Z578:Z581)&\")\",IF(AP502=AC577,AB577&\"(\"&SUM(AB578:AB581)&\")\",\"\")))","v":""},{"$f":"IF(Z584=\"\",\"\",IF(AP502=Y584,Z584&\"(\"&SUM(Z585:Z588)&\")\",IF(AP502=AC584,AB584&\"(\"&SUM(AB585:AB588)&\")\",\"\")))","v":""},{"$f":"IF(Z591=\"\",\"\",IF(AP502=Y591,Z591&\"(\"&SUM(Z592:Z595)&\")\",IF(AP502=AC591,AB591&\"(\"&SUM(AB592:AB595)&\")\",\"\")))","v":""},{"$f":"IF(Z598=\"\",\"\",IF(AP502=Y598,Z598&\"(\"&SUM(Z599:Z602)&\")\",IF(AP502=AC598,AB598&\"(\"&SUM(AB599:AB602)&\")\",\"\")))","v":""},{"$f":"IF(Z605=\"\",\"\",IF(AP502=Y605,Z605&\"(\"&SUM(Z606:Z609)&\")\",IF(AP502=AC605,AB605&\"(\"&SUM(AB606:AB609)&\")\",\"\")))","v":""},{"$f":"IF(Z612=\"\",\"\",IF(AP502=Y612,Z612&\"(\"&SUM(Z613:Z616)&\")\",IF(AP502=AC612,AB612&\"(\"&SUM(AB613:AB616)&\")\",\"\")))","v":""},{"$f":"IF(Z619=\"\",\"\",IF(AP502=Y619,Z619&\"(\"&SUM(Z620:Z623)&\")\",IF(AP502=AC619,AB619&\"(\"&SUM(AB620:AB623)&\")\",\"\")))","v":""},{"$f":"IF(Z626=\"\",\"\",IF(AP502=Y626,Z626&\"(\"&SUM(Z627:Z630)&\")\",IF(AP502=AC626,AB626&\"(\"&SUM(AB627:AB630)&\")\",\"\")))","v":""},{"$f":"IF(Z633=\"\",\"\",IF(AP502=Y633,Z633&\"(\"&SUM(Z634:Z637)&\")\",IF(AP502=AC633,AB633&\"(\"&SUM(AB634:AB637)&\")\",\"\")))","v":""},{"$f":"IF(Z640=\"\",\"\",IF(AP502=Y640,Z640&\"(\"&SUM(Z641:Z644)&\")\",IF(AP502=AC640,AB640&\"(\"&SUM(AB641:AB644)&\")\",\"\")))","v":""},{"$f":"IF(Z647=\"\",\"\",IF(AP502=Y647,Z647&\"(\"&SUM(Z648:Z651)&\")\",IF(AP502=AC647,AB647&\"(\"&SUM(AB648:AB651)&\")\",\"\")))","v":""},{"$f":"IF(Z654=\"\",\"\",IF(AP502=Y654,Z654&\"(\"&SUM(Z655:Z658)&\")\",IF(AP502=AC654,AB654&\"(\"&SUM(AB655:AB658)&\")\",\"\")))","v":""},{"$f":"IF(Z661=\"\",\"\",IF(AP502=Y661,Z661&\"(\"&SUM(Z662:Z665)&\")\",IF(AP502=AC661,AB661&\"(\"&SUM(AB662:AB665)&\")\",\"\")))","v":""},{"$f":"IF(Z668=\"\",\"\",IF(AP502=Y668,Z668&\"(\"&SUM(Z669:Z672)&\")\",IF(AP502=AC668,AB668&\"(\"&SUM(AB669:AB672)&\")\",\"\")))","v":""},{"$f":"IF(Z675=\"\",\"\",IF(AP502=Y675,Z675&\"(\"&SUM(Z676:Z679)&\")\",IF(AP502=AC675,AB675&\"(\"&SUM(AB676:AB679)&\")\",\"\")))","v":""},{"$f":"IF(Z682=\"\",\"\",IF(AP502=Y682,Z682&\"(\"&SUM(Z683:Z686)&\")\",IF(AP502=AC682,AB682&\"(\"&SUM(AB683:AB686)&\")\",\"\")))","v":""},{"$f":"IF(Z689=\"\",\"\",IF(AP502=Y689,Z689&\"(\"&SUM(Z690:Z693)&\")\",IF(AP502=AC689,AB689&\"(\"&SUM(AB690:AB693)&\")\",\"\")))","v":""},{"$f":"IF(Z696=\"\",\"\",IF(AP502=Y696,Z696&\"(\"&SUM(Z697:Z700)&\")\",IF(AP502=AC696,AB696&\"(\"&SUM(AB697:AB700)&\")\",\"\")))","v":""},true,false,true]
[null,6,{"$f":"IF(Z507=\"\",\"\",RANK(F503,F498:F505)*1000+ROW())","v":""},"",{"$f":"IF(J503=\"\",\"\",Nb_Diff_Part(D503,D498:D505,G503,G498:G505,AK507:AK696)*CritClassEq_DiffPart+Nb_Goal_Part(D503,D498:D505,G503,G498:G505,Y507:AC696)*CritClassEq_IndsPart+Nb_Score_Part(D503,D498:D505,G503,G498:G505,Y507:AC696)*CritClassEq_WinsPart+Nb_GoalTeam_Part(D503,D498:D505,G503,G498:G505,Y507:AC696)*CritClassEq_GoalPart+Nb_ScoreTeam_Part(D503,D498:D505,G503,G498:G505,Y507:AC696)*CritClassEq_ScorePart)","v":""},"","Eq6",{"$f":"IF(Z507=\"\",\"\",(J503*Points_Victoire)+K503*Points_Null)","v":""},"",{"$f":"IF(Z507=\"\",\"\",COUNTIF(AE507:AE700,G503))","v":""},{"$f":"IF(Z507=\"\",\"\",COUNTIF(AF507:AG700,G503))","v":""},{"$f":"IF(Z507=\"\",\"\",COUNTIF(AH507:AH700,G503))","v":""},{"$f":"IF(Z507=\"\",\"\",J503-L503)","v":""},{"$f":"IF(Z507=\"\",\"\",SUMIF(Y507:Y700,G503,Z507:Z700)+SUMIF(AC507:AC700,G503,AB507:AB700))","v":""},{"$f":"IF(Z507=\"\",\"\",SUMIF(Y507:Y700,G503,AB507:AB700)+SUMIF(AC507:AC700,G503,Z507:Z700))","v":""},{"$f":"IF(Z507=\"\",\"\",N503-O503)","v":""},{"$f":"IF(Z507=\"\",\"\",SUMIF(Y507:Y700,G503,AI507:AI700)+SUMIF(AC507:AC700,G503,AJ507:AJ700))","v":""},{"$f":"IF(Z507=\"\",\"\",SUMIF(Y507:Y700,G503,AJ507:AJ700)+SUMIF(AC507:AC700,G503,AI507:AI700))","v":""},{"$f":"IF(Z507=\"\",\"\",Q503-R503)","v":""},null,null,null,null,null,null,null,null,null,null,null,null,null,null,null,null,null,null,{"$f":"IF(Z507=\"\",\"\",SMALL(C498:C505,6))","v":""},null,null,{"$f":"IF(Z507=\"\",\"\",INT(AL503/1000))","v":""},{"$f":"IF(Z507=\"\",IF(HidePlayerFormulas,\"\",\"(\"&G503&\")\"),VLOOKUP(AL503,C498:S505,5,FALSE))","v":""},{"$f":"VLOOKUP(AL503,C498:S505,6,FALSE)","v":""},{"$f":"VLOOKUP(AL503,C498:S505,7,FALSE)","v":""},{"$f":"VLOOKUP(AL503,C498:S505,8,FALSE)","v":""},{"$f":"VLOOKUP(AL503,C498:S505,9,FALSE)","v":""},{"$f":"VLOOKUP(AL503,C498:S505,10,FALSE)","v":""},{"$f":"VLOOKUP(AL503,C498:S505,11,FALSE)","v":""},{"$f":"VLOOKUP(AL503,C498:S505,12,FALSE)","v":""},{"$f":"VLOOKUP(AL503,C498:S505,13,FALSE)","v":""},{"$f":"VLOOKUP(AL503,C498:S505,14,FALSE)","v":""},{"$f":"VLOOKUP(AL503,C498:S505,15,FALSE)","v":""},{"$f":"VLOOKUP(AL503,C498:S505,16,FALSE)","v":""},{"$f":"VLOOKUP(AL503,C498:S505,17,FALSE)","v":""},{"$f":"IF(Z507=\"\",\"\",IF(AP503=Y507,Z507&\"(\"&SUM(Z508:Z511)&\")\",IF(AP503=AC507,AB507&\"(\"&SUM(AB508:AB511)&\")\",\"\")))","v":""},{"$f":"IF(Z514=\"\",\"\",IF(AP503=Y514,Z514&\"(\"&SUM(Z515:Z518)&\")\",IF(AP503=AC514,AB514&\"(\"&SUM(AB515:AB518)&\")\",\"\")))","v":""},{"$f":"IF(Z521=\"\",\"\",IF(AP503=Y521,Z521&\"(\"&SUM(Z522:Z525)&\")\",IF(AP503=AC521,AB521&\"(\"&SUM(AB522:AB525)&\")\",\"\")))","v":""},{"$f":"IF(Z528=\"\",\"\",IF(AP503=Y528,Z528&\"(\"&SUM(Z529:Z532)&\")\",IF(AP503=AC528,AB528&\"(\"&SUM(AB529:AB532)&\")\",\"\")))","v":""},{"$f":"IF(Z535=\"\",\"\",IF(AP503=Y535,Z535&\"(\"&SUM(Z536:Z539)&\")\",IF(AP503=AC535,AB535&\"(\"&SUM(AB536:AB539)&\")\",\"\")))","v":""},{"$f":"IF(Z542=\"\",\"\",IF(AP503=Y542,Z542&\"(\"&SUM(Z543:Z546)&\")\",IF(AP503=AC542,AB542&\"(\"&SUM(AB543:AB546)&\")\",\"\")))","v":""},{"$f":"IF(Z549=\"\",\"\",IF(AP503=Y549,Z549&\"(\"&SUM(Z550:Z553)&\")\",IF(AP503=AC549,AB549&\"(\"&SUM(AB550:AB553)&\")\",\"\")))","v":""},{"$f":"IF(Z556=\"\",\"\",IF(AP503=Y556,Z556&\"(\"&SUM(Z557:Z560)&\")\",IF(AP503=AC556,AB556&\"(\"&SUM(AB557:AB560)&\")\",\"\")))","v":""},{"$f":"IF(Z563=\"\",\"\",IF(AP503=Y563,Z563&\"(\"&SUM(Z564:Z567)&\")\",IF(AP503=AC563,AB563&\"(\"&SUM(AB564:AB567)&\")\",\"\")))","v":""},{"$f":"IF(Z570=\"\",\"\",IF(AP503=Y570,Z570&\"(\"&SUM(Z571:Z574)&\")\",IF(AP503=AC570,AB570&\"(\"&SUM(AB571:AB574)&\")\",\"\")))","v":""},{"$f":"IF(Z577=\"\",\"\",IF(AP503=Y577,Z577&\"(\"&SUM(Z578:Z581)&\")\",IF(AP503=AC577,AB577&\"(\"&SUM(AB578:AB581)&\")\",\"\")))","v":""},{"$f":"IF(Z584=\"\",\"\",IF(AP503=Y584,Z584&\"(\"&SUM(Z585:Z588)&\")\",IF(AP503=AC584,AB584&\"(\"&SUM(AB585:AB588)&\")\",\"\")))","v":""},{"$f":"IF(Z591=\"\",\"\",IF(AP503=Y591,Z591&\"(\"&SUM(Z592:Z595)&\")\",IF(AP503=AC591,AB591&\"(\"&SUM(AB592:AB595)&\")\",\"\")))","v":""},{"$f":"IF(Z598=\"\",\"\",IF(AP503=Y598,Z598&\"(\"&SUM(Z599:Z602)&\")\",IF(AP503=AC598,AB598&\"(\"&SUM(AB599:AB602)&\")\",\"\")))","v":""},{"$f":"IF(Z605=\"\",\"\",IF(AP503=Y605,Z605&\"(\"&SUM(Z606:Z609)&\")\",IF(AP503=AC605,AB605&\"(\"&SUM(AB606:AB609)&\")\",\"\")))","v":""},{"$f":"IF(Z612=\"\",\"\",IF(AP503=Y612,Z612&\"(\"&SUM(Z613:Z616)&\")\",IF(AP503=AC612,AB612&\"(\"&SUM(AB613:AB616)&\")\",\"\")))","v":""},{"$f":"IF(Z619=\"\",\"\",IF(AP503=Y619,Z619&\"(\"&SUM(Z620:Z623)&\")\",IF(AP503=AC619,AB619&\"(\"&SUM(AB620:AB623)&\")\",\"\")))","v":""},{"$f":"IF(Z626=\"\",\"\",IF(AP503=Y626,Z626&\"(\"&SUM(Z627:Z630)&\")\",IF(AP503=AC626,AB626&\"(\"&SUM(AB627:AB630)&\")\",\"\")))","v":""},{"$f":"IF(Z633=\"\",\"\",IF(AP503=Y633,Z633&\"(\"&SUM(Z634:Z637)&\")\",IF(AP503=AC633,AB633&\"(\"&SUM(AB634:AB637)&\")\",\"\")))","v":""},{"$f":"IF(Z640=\"\",\"\",IF(AP503=Y640,Z640&\"(\"&SUM(Z641:Z644)&\")\",IF(AP503=AC640,AB640&\"(\"&SUM(AB641:AB644)&\")\",\"\")))","v":""},{"$f":"IF(Z647=\"\",\"\",IF(AP503=Y647,Z647&\"(\"&SUM(Z648:Z651)&\")\",IF(AP503=AC647,AB647&\"(\"&SUM(AB648:AB651)&\")\",\"\")))","v":""},{"$f":"IF(Z654=\"\",\"\",IF(AP503=Y654,Z654&\"(\"&SUM(Z655:Z658)&\")\",IF(AP503=AC654,AB654&\"(\"&SUM(AB655:AB658)&\")\",\"\")))","v":""},{"$f":"IF(Z661=\"\",\"\",IF(AP503=Y661,Z661&\"(\"&SUM(Z662:Z665)&\")\",IF(AP503=AC661,AB661&\"(\"&SUM(AB662:AB665)&\")\",\"\")))","v":""},{"$f":"IF(Z668=\"\",\"\",IF(AP503=Y668,Z668&\"(\"&SUM(Z669:Z672)&\")\",IF(AP503=AC668,AB668&\"(\"&SUM(AB669:AB672)&\")\",\"\")))","v":""},{"$f":"IF(Z675=\"\",\"\",IF(AP503=Y675,Z675&\"(\"&SUM(Z676:Z679)&\")\",IF(AP503=AC675,AB675&\"(\"&SUM(AB676:AB679)&\")\",\"\")))","v":""},{"$f":"IF(Z682=\"\",\"\",IF(AP503=Y682,Z682&\"(\"&SUM(Z683:Z686)&\")\",IF(AP503=AC682,AB682&\"(\"&SUM(AB683:AB686)&\")\",\"\")))","v":""},{"$f":"IF(Z689=\"\",\"\",IF(AP503=Y689,Z689&\"(\"&SUM(Z690:Z693)&\")\",IF(AP503=AC689,AB689&\"(\"&SUM(AB690:AB693)&\")\",\"\")))","v":""},{"$f":"IF(Z696=\"\",\"\",IF(AP503=Y696,Z696&\"(\"&SUM(Z697:Z700)&\")\",IF(AP503=AC696,AB696&\"(\"&SUM(AB697:AB700)&\")\",\"\")))","v":""},true,false,true]
[null,7,{"$f":"IF(Z507=\"\",\"\",RANK(F504,F498:F505)*1000+ROW())","v":""},"",{"$f":"IF(J504=\"\",\"\",Nb_Diff_Part(D504,D498:D505,G504,G498:G505,AK507:AK696)*CritClassEq_DiffPart+Nb_Goal_Part(D504,D498:D505,G504,G498:G505,Y507:AC696)*CritClassEq_IndsPart+Nb_Score_Part(D504,D498:D505,G504,G498:G505,Y507:AC696)*CritClassEq_WinsPart+Nb_GoalTeam_Part(D504,D498:D505,G504,G498:G505,Y507:AC696)*CritClassEq_GoalPart+Nb_ScoreTeam_Part(D504,D498:D505,G504,G498:G505,Y507:AC696)*CritClassEq_ScorePart)","v":""},"","Eq7",{"$f":"IF(Z507=\"\",\"\",(J504*Points_Victoire)+K504*Points_Null)","v":""},"",{"$f":"IF(Z507=\"\",\"\",COUNTIF(AE507:AE700,G504))","v":""},{"$f":"IF(Z507=\"\",\"\",COUNTIF(AF507:AG700,G504))","v":""},{"$f":"IF(Z507=\"\",\"\",COUNTIF(AH507:AH700,G504))","v":""},{"$f":"IF(Z507=\"\",\"\",J504-L504)","v":""},{"$f":"IF(Z507=\"\",\"\",SUMIF(Y507:Y700,G504,Z507:Z700)+SUMIF(AC507:AC700,G504,AB507:AB700))","v":""},{"$f":"IF(Z507=\"\",\"\",SUMIF(Y507:Y700,G504,AB507:AB700)+SUMIF(AC507:AC700,G504,Z507:Z700))","v":""},{"$f":"IF(Z507=\"\",\"\",N504-O504)","v":""},{"$f":"IF(Z507=\"\",\"\",SUMIF(Y507:Y700,G504,AI507:AI700)+SUMIF(AC507:AC700,G504,AJ507:AJ700))","v":""},{"$f":"IF(Z507=\"\",\"\",SUMIF(Y507:Y700,G504,AJ507:AJ700)+SUMIF(AC507:AC700,G504,AI507:AI700))","v":""},{"$f":"IF(Z507=\"\",\"\",Q504-R504)","v":""},null,null,null,null,null,null,null,null,null,null,null,null,null,null,null,null,null,null,{"$f":"IF(Z507=\"\",\"\",SMALL(C498:C505,7))","v":""},null,null,{"$f":"IF(Z507=\"\",\"\",INT(AL504/1000))","v":""},{"$f":"IF(Z507=\"\",IF(HidePlayerFormulas,\"\",\"(\"&G504&\")\"),VLOOKUP(AL504,C498:S505,5,FALSE))","v":""},{"$f":"VLOOKUP(AL504,C498:S505,6,FALSE)","v":""},{"$f":"VLOOKUP(AL504,C498:S505,7,FALSE)","v":""},{"$f":"VLOOKUP(AL504,C498:S505,8,FALSE)","v":""},{"$f":"VLOOKUP(AL504,C498:S505,9,FALSE)","v":""},{"$f":"VLOOKUP(AL504,C498:S505,10,FALSE)","v":""},{"$f":"VLOOKUP(AL504,C498:S505,11,FALSE)","v":""},{"$f":"VLOOKUP(AL504,C498:S505,12,FALSE)","v":""},{"$f":"VLOOKUP(AL504,C498:S505,13,FALSE)","v":""},{"$f":"VLOOKUP(AL504,C498:S505,14,FALSE)","v":""},{"$f":"VLOOKUP(AL504,C498:S505,15,FALSE)","v":""},{"$f":"VLOOKUP(AL504,C498:S505,16,FALSE)","v":""},{"$f":"VLOOKUP(AL504,C498:S505,17,FALSE)","v":""},{"$f":"IF(Z507=\"\",\"\",IF(AP504=Y507,Z507&\"(\"&SUM(Z508:Z511)&\")\",IF(AP504=AC507,AB507&\"(\"&SUM(AB508:AB511)&\")\",\"\")))","v":""},{"$f":"IF(Z514=\"\",\"\",IF(AP504=Y514,Z514&\"(\"&SUM(Z515:Z518)&\")\",IF(AP504=AC514,AB514&\"(\"&SUM(AB515:AB518)&\")\",\"\")))","v":""},{"$f":"IF(Z521=\"\",\"\",IF(AP504=Y521,Z521&\"(\"&SUM(Z522:Z525)&\")\",IF(AP504=AC521,AB521&\"(\"&SUM(AB522:AB525)&\")\",\"\")))","v":""},{"$f":"IF(Z528=\"\",\"\",IF(AP504=Y528,Z528&\"(\"&SUM(Z529:Z532)&\")\",IF(AP504=AC528,AB528&\"(\"&SUM(AB529:AB532)&\")\",\"\")))","v":""},{"$f":"IF(Z535=\"\",\"\",IF(AP504=Y535,Z535&\"(\"&SUM(Z536:Z539)&\")\",IF(AP504=AC535,AB535&\"(\"&SUM(AB536:AB539)&\")\",\"\")))","v":""},{"$f":"IF(Z542=\"\",\"\",IF(AP504=Y542,Z542&\"(\"&SUM(Z543:Z546)&\")\",IF(AP504=AC542,AB542&\"(\"&SUM(AB543:AB546)&\")\",\"\")))","v":""},{"$f":"IF(Z549=\"\",\"\",IF(AP504=Y549,Z549&\"(\"&SUM(Z550:Z553)&\")\",IF(AP504=AC549,AB549&\"(\"&SUM(AB550:AB553)&\")\",\"\")))","v":""},{"$f":"IF(Z556=\"\",\"\",IF(AP504=Y556,Z556&\"(\"&SUM(Z557:Z560)&\")\",IF(AP504=AC556,AB556&\"(\"&SUM(AB557:AB560)&\")\",\"\")))","v":""},{"$f":"IF(Z563=\"\",\"\",IF(AP504=Y563,Z563&\"(\"&SUM(Z564:Z567)&\")\",IF(AP504=AC563,AB563&\"(\"&SUM(AB564:AB567)&\")\",\"\")))","v":""},{"$f":"IF(Z570=\"\",\"\",IF(AP504=Y570,Z570&\"(\"&SUM(Z571:Z574)&\")\",IF(AP504=AC570,AB570&\"(\"&SUM(AB571:AB574)&\")\",\"\")))","v":""},{"$f":"IF(Z577=\"\",\"\",IF(AP504=Y577,Z577&\"(\"&SUM(Z578:Z581)&\")\",IF(AP504=AC577,AB577&\"(\"&SUM(AB578:AB581)&\")\",\"\")))","v":""},{"$f":"IF(Z584=\"\",\"\",IF(AP504=Y584,Z584&\"(\"&SUM(Z585:Z588)&\")\",IF(AP504=AC584,AB584&\"(\"&SUM(AB585:AB588)&\")\",\"\")))","v":""},{"$f":"IF(Z591=\"\",\"\",IF(AP504=Y591,Z591&\"(\"&SUM(Z592:Z595)&\")\",IF(AP504=AC591,AB591&\"(\"&SUM(AB592:AB595)&\")\",\"\")))","v":""},{"$f":"IF(Z598=\"\",\"\",IF(AP504=Y598,Z598&\"(\"&SUM(Z599:Z602)&\")\",IF(AP504=AC598,AB598&\"(\"&SUM(AB599:AB602)&\")\",\"\")))","v":""},{"$f":"IF(Z605=\"\",\"\",IF(AP504=Y605,Z605&\"(\"&SUM(Z606:Z609)&\")\",IF(AP504=AC605,AB605&\"(\"&SUM(AB606:AB609)&\")\",\"\")))","v":""},{"$f":"IF(Z612=\"\",\"\",IF(AP504=Y612,Z612&\"(\"&SUM(Z613:Z616)&\")\",IF(AP504=AC612,AB612&\"(\"&SUM(AB613:AB616)&\")\",\"\")))","v":""},{"$f":"IF(Z619=\"\",\"\",IF(AP504=Y619,Z619&\"(\"&SUM(Z620:Z623)&\")\",IF(AP504=AC619,AB619&\"(\"&SUM(AB620:AB623)&\")\",\"\")))","v":""},{"$f":"IF(Z626=\"\",\"\",IF(AP504=Y626,Z626&\"(\"&SUM(Z627:Z630)&\")\",IF(AP504=AC626,AB626&\"(\"&SUM(AB627:AB630)&\")\",\"\")))","v":""},{"$f":"IF(Z633=\"\",\"\",IF(AP504=Y633,Z633&\"(\"&SUM(Z634:Z637)&\")\",IF(AP504=AC633,AB633&\"(\"&SUM(AB634:AB637)&\")\",\"\")))","v":""},{"$f":"IF(Z640=\"\",\"\",IF(AP504=Y640,Z640&\"(\"&SUM(Z641:Z644)&\")\",IF(AP504=AC640,AB640&\"(\"&SUM(AB641:AB644)&\")\",\"\")))","v":""},{"$f":"IF(Z647=\"\",\"\",IF(AP504=Y647,Z647&\"(\"&SUM(Z648:Z651)&\")\",IF(AP504=AC647,AB647&\"(\"&SUM(AB648:AB651)&\")\",\"\")))","v":""},{"$f":"IF(Z654=\"\",\"\",IF(AP504=Y654,Z654&\"(\"&SUM(Z655:Z658)&\")\",IF(AP504=AC654,AB654&\"(\"&SUM(AB655:AB658)&\")\",\"\")))","v":""},{"$f":"IF(Z661=\"\",\"\",IF(AP504=Y661,Z661&\"(\"&SUM(Z662:Z665)&\")\",IF(AP504=AC661,AB661&\"(\"&SUM(AB662:AB665)&\")\",\"\")))","v":""},{"$f":"IF(Z668=\"\",\"\",IF(AP504=Y668,Z668&\"(\"&SUM(Z669:Z672)&\")\",IF(AP504=AC668,AB668&\"(\"&SUM(AB669:AB672)&\")\",\"\")))","v":""},{"$f":"IF(Z675=\"\",\"\",IF(AP504=Y675,Z675&\"(\"&SUM(Z676:Z679)&\")\",IF(AP504=AC675,AB675&\"(\"&SUM(AB676:AB679)&\")\",\"\")))","v":""},{"$f":"IF(Z682=\"\",\"\",IF(AP504=Y682,Z682&\"(\"&SUM(Z683:Z686)&\")\",IF(AP504=AC682,AB682&\"(\"&SUM(AB683:AB686)&\")\",\"\")))","v":""},{"$f":"IF(Z689=\"\",\"\",IF(AP504=Y689,Z689&\"(\"&SUM(Z690:Z693)&\")\",IF(AP504=AC689,AB689&\"(\"&SUM(AB690:AB693)&\")\",\"\")))","v":""},{"$f":"IF(Z696=\"\",\"\",IF(AP504=Y696,Z696&\"(\"&SUM(Z697:Z700)&\")\",IF(AP504=AC696,AB696&\"(\"&SUM(AB697:AB700)&\")\",\"\")))","v":""},true,false,true]
[null,8,{"$f":"IF(Z507=\"\",\"\",RANK(F505,F498:F505)*1000+ROW())","v":""},"",{"$f":"IF(J505=\"\",\"\",Nb_Diff_Part(D505,D498:D505,G505,G498:G505,AK507:AK696)*CritClassEq_DiffPart+Nb_Goal_Part(D505,D498:D505,G505,G498:G505,Y507:AC696)*CritClassEq_IndsPart+Nb_Score_Part(D505,D498:D505,G505,G498:G505,Y507:AC696)*CritClassEq_WinsPart+Nb_GoalTeam_Part(D505,D498:D505,G505,G498:G505,Y507:AC696)*CritClassEq_GoalPart+Nb_ScoreTeam_Part(D505,D498:D505,G505,G498:G505,Y507:AC696)*CritClassEq_ScorePart)","v":""},"","Eq8",{"$f":"IF(Z507=\"\",\"\",(J505*Points_Victoire)+K505*Points_Null)","v":""},"",{"$f":"IF(Z507=\"\",\"\",COUNTIF(AE507:AE700,G505))","v":""},{"$f":"IF(Z507=\"\",\"\",COUNTIF(AF507:AG700,G505))","v":""},{"$f":"IF(Z507=\"\",\"\",COUNTIF(AH507:AH700,G505))","v":""},{"$f":"IF(Z507=\"\",\"\",J505-L505)","v":""},{"$f":"IF(Z507=\"\",\"\",SUMIF(Y507:Y700,G505,Z507:Z700)+SUMIF(AC507:AC700,G505,AB507:AB700))","v":""},{"$f":"IF(Z507=\"\",\"\",SUMIF(Y507:Y700,G505,AB507:AB700)+SUMIF(AC507:AC700,G505,Z507:Z700))","v":""},{"$f":"IF(Z507=\"\",\"\",N505-O505)","v":""},{"$f":"IF(Z507=\"\",\"\",SUMIF(Y507:Y700,G505,AI507:AI700)+SUMIF(AC507:AC700,G505,AJ507:AJ700))","v":""},{"$f":"IF(Z507=\"\",\"\",SUMIF(Y507:Y700,G505,AJ507:AJ700)+SUMIF(AC507:AC700,G505,AI507:AI700))","v":""},{"$f":"IF(Z507=\"\",\"\",Q505-R505)","v":""},null,null,null,null,null,null,null,null,null,null,null,null,null,null,null,null,null,null,{"$f":"IF(Z507=\"\",\"\",SMALL(C498:C505,8))","v":""},null,null,{"$f":"IF(Z507=\"\",\"\",INT(AL505/1000))","v":""},{"$f":"IF(Z507=\"\",IF(HidePlayerFormulas,\"\",\"(\"&G505&\")\"),VLOOKUP(AL505,C498:S505,5,FALSE))","v":""},{"$f":"VLOOKUP(AL505,C498:S505,6,FALSE)","v":""},{"$f":"VLOOKUP(AL505,C498:S505,7,FALSE)","v":""},{"$f":"VLOOKUP(AL505,C498:S505,8,FALSE)","v":""},{"$f":"VLOOKUP(AL505,C498:S505,9,FALSE)","v":""},{"$f":"VLOOKUP(AL505,C498:S505,10,FALSE)","v":""},{"$f":"VLOOKUP(AL505,C498:S505,11,FALSE)","v":""},{"$f":"VLOOKUP(AL505,C498:S505,12,FALSE)","v":""},{"$f":"VLOOKUP(AL505,C498:S505,13,FALSE)","v":""},{"$f":"VLOOKUP(AL505,C498:S505,14,FALSE)","v":""},{"$f":"VLOOKUP(AL505,C498:S505,15,FALSE)","v":""},{"$f":"VLOOKUP(AL505,C498:S505,16,FALSE)","v":""},{"$f":"VLOOKUP(AL505,C498:S505,17,FALSE)","v":""},{"$f":"IF(Z507=\"\",\"\",IF(AP505=Y507,Z507&\"(\"&SUM(Z508:Z511)&\")\",IF(AP505=AC507,AB507&\"(\"&SUM(AB508:AB511)&\")\",\"\")))","v":""},{"$f":"IF(Z514=\"\",\"\",IF(AP505=Y514,Z514&\"(\"&SUM(Z515:Z518)&\")\",IF(AP505=AC514,AB514&\"(\"&SUM(AB515:AB518)&\")\",\"\")))","v":""},{"$f":"IF(Z521=\"\",\"\",IF(AP505=Y521,Z521&\"(\"&SUM(Z522:Z525)&\")\",IF(AP505=AC521,AB521&\"(\"&SUM(AB522:AB525)&\")\",\"\")))","v":""},{"$f":"IF(Z528=\"\",\"\",IF(AP505=Y528,Z528&\"(\"&SUM(Z529:Z532)&\")\",IF(AP505=AC528,AB528&\"(\"&SUM(AB529:AB532)&\")\",\"\")))","v":""},{"$f":"IF(Z535=\"\",\"\",IF(AP505=Y535,Z535&\"(\"&SUM(Z536:Z539)&\")\",IF(AP505=AC535,AB535&\"(\"&SUM(AB536:AB539)&\")\",\"\")))","v":""},{"$f":"IF(Z542=\"\",\"\",IF(AP505=Y542,Z542&\"(\"&SUM(Z543:Z546)&\")\",IF(AP505=AC542,AB542&\"(\"&SUM(AB543:AB546)&\")\",\"\")))","v":""},{"$f":"IF(Z549=\"\",\"\",IF(AP505=Y549,Z549&\"(\"&SUM(Z550:Z553)&\")\",IF(AP505=AC549,AB549&\"(\"&SUM(AB550:AB553)&\")\",\"\")))","v":""},{"$f":"IF(Z556=\"\",\"\",IF(AP505=Y556,Z556&\"(\"&SUM(Z557:Z560)&\")\",IF(AP505=AC556,AB556&\"(\"&SUM(AB557:AB560)&\")\",\"\")))","v":""},{"$f":"IF(Z563=\"\",\"\",IF(AP505=Y563,Z563&\"(\"&SUM(Z564:Z567)&\")\",IF(AP505=AC563,AB563&\"(\"&SUM(AB564:AB567)&\")\",\"\")))","v":""},{"$f":"IF(Z570=\"\",\"\",IF(AP505=Y570,Z570&\"(\"&SUM(Z571:Z574)&\")\",IF(AP505=AC570,AB570&\"(\"&SUM(AB571:AB574)&\")\",\"\")))","v":""},{"$f":"IF(Z577=\"\",\"\",IF(AP505=Y577,Z577&\"(\"&SUM(Z578:Z581)&\")\",IF(AP505=AC577,AB577&\"(\"&SUM(AB578:AB581)&\")\",\"\")))","v":""},{"$f":"IF(Z584=\"\",\"\",IF(AP505=Y584,Z584&\"(\"&SUM(Z585:Z588)&\")\",IF(AP505=AC584,AB584&\"(\"&SUM(AB585:AB588)&\")\",\"\")))","v":""},{"$f":"IF(Z591=\"\",\"\",IF(AP505=Y591,Z591&\"(\"&SUM(Z592:Z595)&\")\",IF(AP505=AC591,AB591&\"(\"&SUM(AB592:AB595)&\")\",\"\")))","v":""},{"$f":"IF(Z598=\"\",\"\",IF(AP505=Y598,Z598&\"(\"&SUM(Z599:Z602)&\")\",IF(AP505=AC598,AB598&\"(\"&SUM(AB599:AB602)&\")\",\"\")))","v":""},{"$f":"IF(Z605=\"\",\"\",IF(AP505=Y605,Z605&\"(\"&SUM(Z606:Z609)&\")\",IF(AP505=AC605,AB605&\"(\"&SUM(AB606:AB609)&\")\",\"\")))","v":""},{"$f":"IF(Z612=\"\",\"\",IF(AP505=Y612,Z612&\"(\"&SUM(Z613:Z616)&\")\",IF(AP505=AC612,AB612&\"(\"&SUM(AB613:AB616)&\")\",\"\")))","v":""},{"$f":"IF(Z619=\"\",\"\",IF(AP505=Y619,Z619&\"(\"&SUM(Z620:Z623)&\")\",IF(AP505=AC619,AB619&\"(\"&SUM(AB620:AB623)&\")\",\"\")))","v":""},{"$f":"IF(Z626=\"\",\"\",IF(AP505=Y626,Z626&\"(\"&SUM(Z627:Z630)&\")\",IF(AP505=AC626,AB626&\"(\"&SUM(AB627:AB630)&\")\",\"\")))","v":""},{"$f":"IF(Z633=\"\",\"\",IF(AP505=Y633,Z633&\"(\"&SUM(Z634:Z637)&\")\",IF(AP505=AC633,AB633&\"(\"&SUM(AB634:AB637)&\")\",\"\")))","v":""},{"$f":"IF(Z640=\"\",\"\",IF(AP505=Y640,Z640&\"(\"&SUM(Z641:Z644)&\")\",IF(AP505=AC640,AB640&\"(\"&SUM(AB641:AB644)&\")\",\"\")))","v":""},{"$f":"IF(Z647=\"\",\"\",IF(AP505=Y647,Z647&\"(\"&SUM(Z648:Z651)&\")\",IF(AP505=AC647,AB647&\"(\"&SUM(AB648:AB651)&\")\",\"\")))","v":""},{"$f":"IF(Z654=\"\",\"\",IF(AP505=Y654,Z654&\"(\"&SUM(Z655:Z658)&\")\",IF(AP505=AC654,AB654&\"(\"&SUM(AB655:AB658)&\")\",\"\")))","v":""},{"$f":"IF(Z661=\"\",\"\",IF(AP505=Y661,Z661&\"(\"&SUM(Z662:Z665)&\")\",IF(AP505=AC661,AB661&\"(\"&SUM(AB662:AB665)&\")\",\"\")))","v":""},{"$f":"IF(Z668=\"\",\"\",IF(AP505=Y668,Z668&\"(\"&SUM(Z669:Z672)&\")\",IF(AP505=AC668,AB668&\"(\"&SUM(AB669:AB672)&\")\",\"\")))","v":""},{"$f":"IF(Z675=\"\",\"\",IF(AP505=Y675,Z675&\"(\"&SUM(Z676:Z679)&\")\",IF(AP505=AC675,AB675&\"(\"&SUM(AB676:AB679)&\")\",\"\")))","v":""},{"$f":"IF(Z682=\"\",\"\",IF(AP505=Y682,Z682&\"(\"&SUM(Z683:Z686)&\")\",IF(AP505=AC682,AB682&\"(\"&SUM(AB683:AB686)&\")\",\"\")))","v":""},{"$f":"IF(Z689=\"\",\"\",IF(AP505=Y689,Z689&\"(\"&SUM(Z690:Z693)&\")\",IF(AP505=AC689,AB689&\"(\"&SUM(AB690:AB693)&\")\",\"\")))","v":""},{"$f":"IF(Z696=\"\",\"\",IF(AP505=Y696,Z696&\"(\"&SUM(Z697:Z700)&\")\",IF(AP505=AC696,AB696&\"(\"&SUM(AB697:AB700)&\")\",\"\")))","v":""},false,false,true]
[null,null,null,null,null,null,null,null,null,null,null,null,null,null,null,null,null,null,null,null,null,{"$f":"N_Heure","v":"Time"},{"$f":"N_Table","v":"Table"},{"$f":"N_Arbitre","v":"Referee"},{"$f":"N_Matches","v":"Matches"},null,null,null,null,null,{"$f":"N_G","v":"W"},{"$f":"N_N","v":"D"},{"$f":"N_N","v":"D"},{"$f":"N_P","v":"L"},null,null,"concat",{"$f":"IF(COUNTA(Z507:Z700)>28,\"OK\",\"\")","v":""}]
[null,null,null,null,null,null,null,null,null,null,null,null,null,null,null,null,null,null,null,null,"#G1",null,null,null,{"$f":"G498","v":"Eq1"},{"$f":"IF(OR(ISNUMBER(Z508),ISNUMBER(Z509),ISNUMBER(Z510),ISNUMBER(Z511)),4-COUNTBLANK(AI508:AI511),\"\")","v":""},"-",{"$f":"IF(OR(ISNUMBER(Z508),ISNUMBER(Z509),ISNUMBER(Z510),ISNUMBER(Z511)),4-COUNTBLANK(AJ508:AJ511),\"\")","v":""},{"$f":"G500","v":"Eq3"},null,{"$f":"IF(Z507=\"\",\"\",IF(Z507>AB507,Y507,IF(Z507=AB507,IF(NoDrawWithWithdraw,IF(AL507=Y507,AC507,IF(AL507=AC507,Y507,\"\")),\"\"),AC507)))","v":""},{"$f":"IF(Z507=\"\",\"\",IF(Z507=AB507,IF(NoDrawWithWithdraw,IF(AL507=Y507,\"\",IF(AL507=AC507,\"\",Y507)),Y507),\"\"))","v":""},{"$f":"IF(Z507=\"\",\"\",IF(Z507=AB507,IF(NoDrawWithWithdraw,IF(AL507=Y507,\"\",IF(AL507=AC507,\"\",AC507)),AC507),\"\"))","v":""},{"$f":"IF(Z507=\"\",\"\",IF(Z507<AB507,Y507,IF(Z507=AB507,IF(NoDrawWithWithdraw,IF(AL507=Y507,Y507,IF(AL507=AC507,AC507,\"\")),\"\"),AC507)))","v":""},{"$f":"IF(Z507=\"\",\"\",SUM(Z508:Z511))","v":""},{"$f":"IF(Z507=\"\",\"\",SUM(AB508:AB511))","v":""},{"$f":"CONCATENATE(AE507,AH507)","v":""},{"$f":"IF(COUNTIF(Y508:Y511,WithdrawLabel)>COUNTIF(AC508:AC511,WithdrawLabel),Y507,IF(COUNTIF(AC508:AC511,WithdrawLabel)>COUNTIF(Y508:Y511,WithdrawLabel),AC507,\"\"))","v":""}]
[null,null,null,null,null,null,null,null,null,null,null,null,null,null,null,null,null,null,null,null,null,null,null,null,null,null,"-",null,null,null,{"$f":"IF(Z508=\"\",\"\",IF(Z508>AB508,Y508,IF(Z508=AB508,\"\",AC508)))","v":""},{"$f":"IF(Z508=\"\",\"\",IF(Z508=AB508,Y508,\"\"))","v":""},{"$f":"IF(Z508=\"\",\"\",IF(Z508=AB508,AC508,\"\"))","v":""},{"$f":"IF(Z508=\"\",\"\",IF(Z508<AB508,Y508,IF(Z508=AB508,\"\",AC508)))","v":""},{"$f":"IF(Z508=\"\",\"\",IF(Z508>AB508,Y507,\"\"))","v":""},{"$f":"IF(Z508=\"\",\"\",IF(Z508<AB508,AC507,\"\"))","v":""},{"$f":"CONCATENATE(AE508,AH508)","v":""}]
[null,null,null,null,null,null,null,null,null,null,null,null,null,null,null,null,null,null,null,null,null,null,null,null,null,null,"-",null,null,null,{"$f":"IF(Z509=\"\",\"\",IF(Z509>AB509,Y509,IF(Z509=AB509,\"\",AC509)))","v":""},{"$f":"IF(Z509=\"\",\"\",IF(Z509=AB509,Y509,\"\"))","v":""},{"$f":"IF(Z509=\"\",\"\",IF(Z509=AB509,AC509,\"\"))","v":""},{"$f":"IF(Z509=\"\",\"\",IF(Z509<AB509,Y509,IF(Z509=AB509,\"\",AC509)))","v":""},{"$f":"IF(Z509=\"\",\"\",IF(Z509>AB509,Y507,\"\"))","v":""},{"$f":"IF(Z509=\"\",\"\",IF(Z509<AB509,AC507,\"\"))","v":""},{"$f":"CONCATENATE(AE509,AH509)","v":""}]
[null,null,null,null,null,null,null,null,null,null,null,null,null,null,null,null,null,null,null,null,null,null,null,null,null,null,"-",null,null,null,{"$f":"IF(Z510=\"\",\"\",IF(Z510>AB510,Y510,IF(Z510=AB510,\"\",AC510)))","v":""},{"$f":"IF(Z510=\"\",\"\",IF(Z510=AB510,Y510,\"\"))","v":""},{"$f":"IF(Z510=\"\",\"\",IF(Z510=AB510,AC510,\"\"))","v":""},{"$f":"IF(Z510=\"\",\"\",IF(Z510<AB510,Y510,IF(Z510=AB510,\"\",AC510)))","v":""},{"$f":"IF(Z510=\"\",\"\",IF(Z510>AB510,Y507,\"\"))","v":""},{"$f":"IF(Z510=\"\",\"\",IF(Z510<AB510,AC507,\"\"))","v":""},{"$f":"CONCATENATE(AE510,AH510)","v":""}]
[null,null,null,null,null,null,null,null,null,null,null,null,null,null,null,null,null,null,null,null,null,null,null,null,null,null,"-",null,null,null,{"$f":"IF(Z511=\"\",\"\",IF(Z511>AB511,Y511,IF(Z511=AB511,\"\",AC511)))","v":""},{"$f":"IF(Z511=\"\",\"\",IF(Z511=AB511,Y511,\"\"))","v":""},{"$f":"IF(Z511=\"\",\"\",IF(Z511=AB511,AC511,\"\"))","v":""},{"$f":"IF(Z511=\"\",\"\",IF(Z511<AB511,Y511,IF(Z511=AB511,\"\",AC511)))","v":""},{"$f":"IF(Z511=\"\",\"\",IF(Z511>AB511,Y507,\"\"))","v":""},{"$f":"IF(Z511=\"\",\"\",IF(Z511<AB511,AC507,\"\"))","v":""},{"$f":"CONCATENATE(AE511,AH511)","v":""}]
[null,null,null,null,null,null,null,null,null,null,null,null,null,null,null,null,null,null,null,null,null,null,null,{"$f":"N_Substitute","v":"Substitute"}]
[null,null,null,null,null,null,null,null,null,null,null,null,null,null,null,null,null,null,null,null,null,null,null,{"$f":"N_Substitute","v":"Substitute"}]
[null,null,null,null,null,null,null,null,null,null,null,null,null,null,null,null,null,null,null,null,"#G1",null,null,null,{"$f":"G499","v":"Eq2"},{"$f":"IF(OR(ISNUMBER(Z515),ISNUMBER(Z516),ISNUMBER(Z517),ISNUMBER(Z518)),4-COUNTBLANK(AI515:AI518),\"\")","v":""},"-",{"$f":"IF(OR(ISNUMBER(Z515),ISNUMBER(Z516),ISNUMBER(Z517),ISNUMBER(Z518)),4-COUNTBLANK(AJ515:AJ518),\"\")","v":""},{"$f":"G505","v":"Eq8"},null,{"$f":"IF(Z514=\"\",\"\",IF(Z514>AB514,Y514,IF(Z514=AB514,IF(NoDrawWithWithdraw,IF(AL514=Y514,AC514,IF(AL514=AC514,Y514,\"\")),\"\"),AC514)))","v":""},{"$f":"IF(Z514=\"\",\"\",IF(Z514=AB514,IF(NoDrawWithWithdraw,IF(AL514=Y514,\"\",IF(AL514=AC514,\"\",Y514)),Y514),\"\"))","v":""},{"$f":"IF(Z514=\"\",\"\",IF(Z514=AB514,IF(NoDrawWithWithdraw,IF(AL514=Y514,\"\",IF(AL514=AC514,\"\",AC514)),AC514),\"\"))","v":""},{"$f":"IF(Z514=\"\",\"\",IF(Z514<AB514,Y514,IF(Z514=AB514,IF(NoDrawWithWithdraw,IF(AL514=Y514,Y514,IF(AL514=AC514,AC514,\"\")),\"\"),AC514)))","v":""},{"$f":"IF(Z514=\"\",\"\",SUM(Z515:Z518))","v":""},{"$f":"IF(Z514=\"\",\"\",SUM(AB515:AB518))","v":""},{"$f":"CONCATENATE(AE514,AH514)","v":""},{"$f":"IF(COUNTIF(Y515:Y518,WithdrawLabel)>COUNTIF(AC515:AC518,WithdrawLabel),Y514,IF(COUNTIF(AC515:AC518,WithdrawLabel)>COUNTIF(Y515:Y518,WithdrawLabel),AC514,\"\"))","v":""}]
[null,null,null,null,null,null,null,null,null,null,null,null,null,null,null,null,null,null,null,null,null,null,null,null,null,null,"-",null,null,null,{"$f":"IF(Z515=\"\",\"\",IF(Z515>AB515,Y515,IF(Z515=AB515,\"\",AC515)))","v":""},{"$f":"IF(Z515=\"\",\"\",IF(Z515=AB515,Y515,\"\"))","v":""},{"$f":"IF(Z515=\"\",\"\",IF(Z515=AB515,AC515,\"\"))","v":""},{"$f":"IF(Z515=\"\",\"\",IF(Z515<AB515,Y515,IF(Z515=AB515,\"\",AC515)))","v":""},{"$f":"IF(Z515=\"\",\"\",IF(Z515>AB515,Y514,\"\"))","v":""},{"$f":"IF(Z515=\"\",\"\",IF(Z515<AB515,AC514,\"\"))","v":""},{"$f":"CONCATENATE(AE515,AH515)","v":""}]
[null,null,null,null,null,null,null,null,null,null,null,null,null,null,null,null,null,null,null,null,null,null,null,null,null,null,"-",null,null,null,{"$f":"IF(Z516=\"\",\"\",IF(Z516>AB516,Y516,IF(Z516=AB516,\"\",AC516)))","v":""},{"$f":"IF(Z516=\"\",\"\",IF(Z516=AB516,Y516,\"\"))","v":""},{"$f":"IF(Z516=\"\",\"\",IF(Z516=AB516,AC516,\"\"))","v":""},{"$f":"IF(Z516=\"\",\"\",IF(Z516<AB516,Y516,IF(Z516=AB516,\"\",AC516)))","v":""},{"$f":"IF(Z516=\"\",\"\",IF(Z516>AB516,Y514,\"\"))","v":""},{"$f":"IF(Z516=\"\",\"\",IF(Z516<AB516,AC514,\"\"))","v":""},{"$f":"CONCATENATE(AE516,AH516)","v":""}]
[null,null,null,null,null,null,null,null,null,null,null,null,null,null,null,null,null,null,null,null,null,null,null,null,null,null,"-",null,null,null,{"$f":"IF(Z517=\"\",\"\",IF(Z517>AB517,Y517,IF(Z517=AB517,\"\",AC517)))","v":""},{"$f":"IF(Z517=\"\",\"\",IF(Z517=AB517,Y517,\"\"))","v":""},{"$f":"IF(Z517=\"\",\"\",IF(Z517=AB517,AC517,\"\"))","v":""},{"$f":"IF(Z517=\"\",\"\",IF(Z517<AB517,Y517,IF(Z517=AB517,\"\",AC517)))","v":""},{"$f":"IF(Z517=\"\",\"\",IF(Z517>AB517,Y514,\"\"))","v":""},{"$f":"IF(Z517=\"\",\"\",IF(Z517<AB517,AC514,\"\"))","v":""},{"$f":"CONCATENATE(AE517,AH517)","v":""}]
[null,null,null,null,null,null,null,null,null,null,null,null,null,null,null,null,null,null,null,null,null,null,null,null,null,null,"-",null,null,null,{"$f":"IF(Z518=\"\",\"\",IF(Z518>AB518,Y518,IF(Z518=AB518,\"\",AC518)))","v":""},{"$f":"IF(Z518=\"\",\"\",IF(Z518=AB518,Y518,\"\"))","v":""},{"$f":"IF(Z518=\"\",\"\",IF(Z518=AB518,AC518,\"\"))","v":""},{"$f":"IF(Z518=\"\",\"\",IF(Z518<AB518,Y518,IF(Z518=AB518,\"\",AC518)))","v":""},{"$f":"IF(Z518=\"\",\"\",IF(Z518>AB518,Y514,\"\"))","v":""},{"$f":"IF(Z518=\"\",\"\",IF(Z518<AB518,AC514,\"\"))","v":""},{"$f":"CONCATENATE(AE518,AH518)","v":""}]
[null,null,null,null,null,null,null,null,null,null,null,null,null,null,null,null,null,null,null,null,null,null,null,{"$f":"N_Substitute","v":"Substitute"}]
[null,null,null,null,null,null,null,null,null,null,null,null,null,null,null,null,null,null,null,null,null,null,null,{"$f":"N_Substitute","v":"Substitute"}]
[null,null,null,null,null,null,null,null,null,null,null,null,null,null,null,null,null,null,null,null,"#G1",null,null,null,{"$f":"G501","v":"Eq4"},{"$f":"IF(OR(ISNUMBER(Z522),ISNUMBER(Z523),ISNUMBER(Z524),ISNUMBER(Z525)),4-COUNTBLANK(AI522:AI525),\"\")","v":""},"-",{"$f":"IF(OR(ISNUMBER(Z522),ISNUMBER(Z523),ISNUMBER(Z524),ISNUMBER(Z525)),4-COUNTBLANK(AJ522:AJ525),\"\")","v":""},{"$f":"G504","v":"Eq7"},null,{"$f":"IF(Z521=\"\",\"\",IF(Z521>AB521,Y521,IF(Z521=AB521,IF(NoDrawWithWithdraw,IF(AL521=Y521,AC521,IF(AL521=AC521,Y521,\"\")),\"\"),AC521)))","v":""},{"$f":"IF(Z521=\"\",\"\",IF(Z521=AB521,IF(NoDrawWithWithdraw,IF(AL521=Y521,\"\",IF(AL521=AC521,\"\",Y521)),Y521),\"\"))","v":""},{"$f":"IF(Z521=\"\",\"\",IF(Z521=AB521,IF(NoDrawWithWithdraw,IF(AL521=Y521,\"\",IF(AL521=AC521,\"\",AC521)),AC521),\"\"))","v":""},{"$f":"IF(Z521=\"\",\"\",IF(Z521<AB521,Y521,IF(Z521=AB521,IF(NoDrawWithWithdraw,IF(AL521=Y521,Y521,IF(AL521=AC521,AC521,\"\")),\"\"),AC521)))","v":""},{"$f":"IF(Z521=\"\",\"\",SUM(Z522:Z525))","v":""},{"$f":"IF(Z521=\"\",\"\",SUM(AB522:AB525))","v":""},{"$f":"CONCATENATE(AE521,AH521)","v":""},{"$f":"IF(COUNTIF(Y522:Y525,WithdrawLabel)>COUNTIF(AC522:AC525,WithdrawLabel),Y521,IF(COUNTIF(AC522:AC525,WithdrawLabel)>COUNTIF(Y522:Y525,WithdrawLabel),AC521,\"\"))","v":""}]
[null,null,null,null,null,null,null,null,null,null,null,null,null,null,null,null,null,null,null,null,null,null,null,null,null,null,"-",null,null,null,{"$f":"IF(Z522=\"\",\"\",IF(Z522>AB522,Y522,IF(Z522=AB522,\"\",AC522)))","v":""},{"$f":"IF(Z522=\"\",\"\",IF(Z522=AB522,Y522,\"\"))","v":""},{"$f":"IF(Z522=\"\",\"\",IF(Z522=AB522,AC522,\"\"))","v":""},{"$f":"IF(Z522=\"\",\"\",IF(Z522<AB522,Y522,IF(Z522=AB522,\"\",AC522)))","v":""},{"$f":"IF(Z522=\"\",\"\",IF(Z522>AB522,Y521,\"\"))","v":""},{"$f":"IF(Z522=\"\",\"\",IF(Z522<AB522,AC521,\"\"))","v":""},{"$f":"CONCATENATE(AE522,AH522)","v":""}]
[null,null,null,null,null,null,null,null,null,null,null,null,null,null,null,null,null,null,null,null,null,null,null,null,null,null,"-",null,null,null,{"$f":"IF(Z523=\"\",\"\",IF(Z523>AB523,Y523,IF(Z523=AB523,\"\",AC523)))","v":""},{"$f":"IF(Z523=\"\",\"\",IF(Z523=AB523,Y523,\"\"))","v":""},{"$f":"IF(Z523=\"\",\"\",IF(Z523=AB523,AC523,\"\"))","v":""},{"$f":"IF(Z523=\"\",\"\",IF(Z523<AB523,Y523,IF(Z523=AB523,\"\",AC523)))","v":""},{"$f":"IF(Z523=\"\",\"\",IF(Z523>AB523,Y521,\"\"))","v":""},{"$f":"IF(Z523=\"\",\"\",IF(Z523<AB523,AC521,\"\"))","v":""},{"$f":"CONCATENATE(AE523,AH523)","v":""}]
[null,null,null,null,null,null,null,null,null,null,null,null,null,null,null,null,null,null,null,null,null,null,null,null,null,null,"-",null,null,null,{"$f":"IF(Z524=\"\",\"\",IF(Z524>AB524,Y524,IF(Z524=AB524,\"\",AC524)))","v":""},{"$f":"IF(Z524=\"\",\"\",IF(Z524=AB524,Y524,\"\"))","v":""},{"$f":"IF(Z524=\"\",\"\",IF(Z524=AB524,AC524,\"\"))","v":""},{"$f":"IF(Z524=\"\",\"\",IF(Z524<AB524,Y524,IF(Z524=AB524,\"\",AC524)))","v":""},{"$f":"IF(Z524=\"\",\"\",IF(Z524>AB524,Y521,\"\"))","v":""},{"$f":"IF(Z524=\"\",\"\",IF(Z524<AB524,AC521,\"\"))","v":""},{"$f":"CONCATENATE(AE524,AH524)","v":""}]
[null,null,null,null,null,null,null,null,null,null,null,null,null,null,null,null,null,null,null,null,null,null,null,null,null,null,"-",null,null,null,{"$f":"IF(Z525=\"\",\"\",IF(Z525>AB525,Y525,IF(Z525=AB525,\"\",AC525)))","v":""},{"$f":"IF(Z525=\"\",\"\",IF(Z525=AB525,Y525,\"\"))","v":""},{"$f":"IF(Z525=\"\",\"\",IF(Z525=AB525,AC525,\"\"))","v":""},{"$f":"IF(Z525=\"\",\"\",IF(Z525<AB525,Y525,IF(Z525=AB525,\"\",AC525)))","v":""},{"$f":"IF(Z525=\"\",\"\",IF(Z525>AB525,Y521,\"\"))","v":""},{"$f":"IF(Z525=\"\",\"\",IF(Z525<AB525,AC521,\"\"))","v":""},{"$f":"CONCATENATE(AE525,AH525)","v":""}]
[null,null,null,null,null,null,null,null,null,null,null,null,null,null,null,null,null,null,null,null,null,null,null,{"$f":"N_Substitute","v":"Substitute"}]
[null,null,null,null,null,null,null,null,null,null,null,null,null,null,null,null,null,null,null,null,null,null,null,{"$f":"N_Substitute","v":"Substitute"}]
[null,null,null,null,null,null,null,null,null,null,null,null,null,null,null,null,null,null,null,null,"#G1",null,null,null,{"$f":"G502","v":"Eq5"},{"$f":"IF(OR(ISNUMBER(Z529),ISNUMBER(Z530),ISNUMBER(Z531),ISNUMBER(Z532)),4-COUNTBLANK(AI529:AI532),\"\")","v":""},"-",{"$f":"IF(OR(ISNUMBER(Z529),ISNUMBER(Z530),ISNUMBER(Z531),ISNUMBER(Z532)),4-COUNTBLANK(AJ529:AJ532),\"\")","v":""},{"$f":"G503","v":"Eq6"},null,{"$f":"IF(Z528=\"\",\"\",IF(Z528>AB528,Y528,IF(Z528=AB528,IF(NoDrawWithWithdraw,IF(AL528=Y528,AC528,IF(AL528=AC528,Y528,\"\")),\"\"),AC528)))","v":""},{"$f":"IF(Z528=\"\",\"\",IF(Z528=AB528,IF(NoDrawWithWithdraw,IF(AL528=Y528,\"\",IF(AL528=AC528,\"\",Y528)),Y528),\"\"))","v":""},{"$f":"IF(Z528=\"\",\"\",IF(Z528=AB528,IF(NoDrawWithWithdraw,IF(AL528=Y528,\"\",IF(AL528=AC528,\"\",AC528)),AC528),\"\"))","v":""},{"$f":"IF(Z528=\"\",\"\",IF(Z528<AB528,Y528,IF(Z528=AB528,IF(NoDrawWithWithdraw,IF(AL528=Y528,Y528,IF(AL528=AC528,AC528,\"\")),\"\"),AC528)))","v":""},{"$f":"IF(Z528=\"\",\"\",SUM(Z529:Z532))","v":""},{"$f":"IF(Z528=\"\",\"\",SUM(AB529:AB532))","v":""},{"$f":"CONCATENATE(AE528,AH528)","v":""},{"$f":"IF(COUNTIF(Y529:Y532,WithdrawLabel)>COUNTIF(AC529:AC532,WithdrawLabel),Y528,IF(COUNTIF(AC529:AC532,WithdrawLabel)>COUNTIF(Y529:Y532,WithdrawLabel),AC528,\"\"))","v":""}]
[null,null,null,null,null,null,null,null,null,null,null,null,null,null,null,null,null,null,null,null,null,null,null,null,null,null,"-",null,null,null,{"$f":"IF(Z529=\"\",\"\",IF(Z529>AB529,Y529,IF(Z529=AB529,\"\",AC529)))","v":""},{"$f":"IF(Z529=\"\",\"\",IF(Z529=AB529,Y529,\"\"))","v":""},{"$f":"IF(Z529=\"\",\"\",IF(Z529=AB529,AC529,\"\"))","v":""},{"$f":"IF(Z529=\"\",\"\",IF(Z529<AB529,Y529,IF(Z529=AB529,\"\",AC529)))","v":""},{"$f":"IF(Z529=\"\",\"\",IF(Z529>AB529,Y528,\"\"))","v":""},{"$f":"IF(Z529=\"\",\"\",IF(Z529<AB529,AC528,\"\"))","v":""},{"$f":"CONCATENATE(AE529,AH529)","v":""}]
[null,null,null,null,null,null,null,null,null,null,null,null,null,null,null,null,null,null,null,null,null,null,null,null,null,null,"-",null,null,null,{"$f":"IF(Z530=\"\",\"\",IF(Z530>AB530,Y530,IF(Z530=AB530,\"\",AC530)))","v":""},{"$f":"IF(Z530=\"\",\"\",IF(Z530=AB530,Y530,\"\"))","v":""},{"$f":"IF(Z530=\"\",\"\",IF(Z530=AB530,AC530,\"\"))","v":""},{"$f":"IF(Z530=\"\",\"\",IF(Z530<AB530,Y530,IF(Z530=AB530,\"\",AC530)))","v":""},{"$f":"IF(Z530=\"\",\"\",IF(Z530>AB530,Y528,\"\"))","v":""},{"$f":"IF(Z530=\"\",\"\",IF(Z530<AB530,AC528,\"\"))","v":""},{"$f":"CONCATENATE(AE530,AH530)","v":""}]
[null,null,null,null,null,null,null,null,null,null,null,null,null,null,null,null,null,null,null,null,null,null,null,null,null,null,"-",null,null,null,{"$f":"IF(Z531=\"\",\"\",IF(Z531>AB531,Y531,IF(Z531=AB531,\"\",AC531)))","v":""},{"$f":"IF(Z531=\"\",\"\",IF(Z531=AB531,Y531,\"\"))","v":""},{"$f":"IF(Z531=\"\",\"\",IF(Z531=AB531,AC531,\"\"))","v":""},{"$f":"IF(Z531=\"\",\"\",IF(Z531<AB531,Y531,IF(Z531=AB531,\"\",AC531)))","v":""},{"$f":"IF(Z531=\"\",\"\",IF(Z531>AB531,Y528,\"\"))","v":""},{"$f":"IF(Z531=\"\",\"\",IF(Z531<AB531,AC528,\"\"))","v":""},{"$f":"CONCATENATE(AE531,AH531)","v":""}]
[null,null,null,null,null,null,null,null,null,null,null,null,null,null,null,null,null,null,null,null,null,null,null,null,null,null,"-",null,null,null,{"$f":"IF(Z532=\"\",\"\",IF(Z532>AB532,Y532,IF(Z532=AB532,\"\",AC532)))","v":""},{"$f":"IF(Z532=\"\",\"\",IF(Z532=AB532,Y532,\"\"))","v":""},{"$f":"IF(Z532=\"\",\"\",IF(Z532=AB532,AC532,\"\"))","v":""},{"$f":"IF(Z532=\"\",\"\",IF(Z532<AB532,Y532,IF(Z532=AB532,\"\",AC532)))","v":""},{"$f":"IF(Z532=\"\",\"\",IF(Z532>AB532,Y528,\"\"))","v":""},{"$f":"IF(Z532=\"\",\"\",IF(Z532<AB532,AC528,\"\"))","v":""},{"$f":"CONCATENATE(AE532,AH532)","v":""}]
[null,null,null,null,null,null,null,null,null,null,null,null,null,null,null,null,null,null,null,null,null,null,null,{"$f":"N_Substitute","v":"Substitute"}]
[null,null,null,null,null,null,null,null,null,null,null,null,null,null,null,null,null,null,null,null,null,null,null,{"$f":"N_Substitute","v":"Substitute"}]
[null,null,null,null,null,null,null,null,null,null,null,null,null,null,null,null,null,null,null,null,"#G2",null,null,null,{"$f":"G498","v":"Eq1"},{"$f":"IF(OR(ISNUMBER(Z536),ISNUMBER(Z537),ISNUMBER(Z538),ISNUMBER(Z539)),4-COUNTBLANK(AI536:AI539),\"\")","v":""},"-",{"$f":"IF(OR(ISNUMBER(Z536),ISNUMBER(Z537),ISNUMBER(Z538),ISNUMBER(Z539)),4-COUNTBLANK(AJ536:AJ539),\"\")","v":""},{"$f":"G502","v":"Eq5"},null,{"$f":"IF(Z535=\"\",\"\",IF(Z535>AB535,Y535,IF(Z535=AB535,IF(NoDrawWithWithdraw,IF(AL535=Y535,AC535,IF(AL535=AC535,Y535,\"\")),\"\"),AC535)))","v":""},{"$f":"IF(Z535=\"\",\"\",IF(Z535=AB535,IF(NoDrawWithWithdraw,IF(AL535=Y535,\"\",IF(AL535=AC535,\"\",Y535)),Y535),\"\"))","v":""},{"$f":"IF(Z535=\"\",\"\",IF(Z535=AB535,IF(NoDrawWithWithdraw,IF(AL535=Y535,\"\",IF(AL535=AC535,\"\",AC535)),AC535),\"\"))","v":""},{"$f":"IF(Z535=\"\",\"\",IF(Z535<AB535,Y535,IF(Z535=AB535,IF(NoDrawWithWithdraw,IF(AL535=Y535,Y535,IF(AL535=AC535,AC535,\"\")),\"\"),AC535)))","v":""},{"$f":"IF(Z535=\"\",\"\",SUM(Z536:Z539))","v":""},{"$f":"IF(Z535=\"\",\"\",SUM(AB536:AB539))","v":""},{"$f":"CONCATENATE(AE535,AH535)","v":""},{"$f":"IF(COUNTIF(Y536:Y539,WithdrawLabel)>COUNTIF(AC536:AC539,WithdrawLabel),Y535,IF(COUNTIF(AC536:AC539,WithdrawLabel)>COUNTIF(Y536:Y539,WithdrawLabel),AC535,\"\"))","v":""}]
[null,null,null,null,null,null,null,null,null,null,null,null,null,null,null,null,null,null,null,null,null,null,null,null,null,null,"-",null,null,null,{"$f":"IF(Z536=\"\",\"\",IF(Z536>AB536,Y536,IF(Z536=AB536,\"\",AC536)))","v":""},{"$f":"IF(Z536=\"\",\"\",IF(Z536=AB536,Y536,\"\"))","v":""},{"$f":"IF(Z536=\"\",\"\",IF(Z536=AB536,AC536,\"\"))","v":""},{"$f":"IF(Z536=\"\",\"\",IF(Z536<AB536,Y536,IF(Z536=AB536,\"\",AC536)))","v":""},{"$f":"IF(Z536=\"\",\"\",IF(Z536>AB536,Y535,\"\"))","v":""},{"$f":"IF(Z536=\"\",\"\",IF(Z536<AB536,AC535,\"\"))","v":""},{"$f":"CONCATENATE(AE536,AH536)","v":""}]
[null,null,null,null,null,null,null,null,null,null,null,null,null,null,null,null,null,null,null,null,null,null,null,null,null,null,"-",null,null,null,{"$f":"IF(Z537=\"\",\"\",IF(Z537>AB537,Y537,IF(Z537=AB537,\"\",AC537)))","v":""},{"$f":"IF(Z537=\"\",\"\",IF(Z537=AB537,Y537,\"\"))","v":""},{"$f":"IF(Z537=\"\",\"\",IF(Z537=AB537,AC537,\"\"))","v":""},{"$f":"IF(Z537=\"\",\"\",IF(Z537<AB537,Y537,IF(Z537=AB537,\"\",AC537)))","v":""},{"$f":"IF(Z537=\"\",\"\",IF(Z537>AB537,Y535,\"\"))","v":""},{"$f":"IF(Z537=\"\",\"\",IF(Z537<AB537,AC535,\"\"))","v":""},{"$f":"CONCATENATE(AE537,AH537)","v":""}]
[null,null,null,null,null,null,null,null,null,null,null,null,null,null,null,null,null,null,null,null,null,null,null,null,null,null,"-",null,null,null,{"$f":"IF(Z538=\"\",\"\",IF(Z538>AB538,Y538,IF(Z538=AB538,\"\",AC538)))","v":""},{"$f":"IF(Z538=\"\",\"\",IF(Z538=AB538,Y538,\"\"))","v":""},{"$f":"IF(Z538=\"\",\"\",IF(Z538=AB538,AC538,\"\"))","v":""},{"$f":"IF(Z538=\"\",\"\",IF(Z538<AB538,Y538,IF(Z538=AB538,\"\",AC538)))","v":""},{"$f":"IF(Z538=\"\",\"\",IF(Z538>AB538,Y535,\"\"))","v":""},{"$f":"IF(Z538=\"\",\"\",IF(Z538<AB538,AC535,\"\"))","v":""},{"$f":"CONCATENATE(AE538,AH538)","v":""}]
[null,null,null,null,null,null,null,null,null,null,null,null,null,null,null,null,null,null,null,null,null,null,null,null,null,null,"-",null,null,null,{"$f":"IF(Z539=\"\",\"\",IF(Z539>AB539,Y539,IF(Z539=AB539,\"\",AC539)))","v":""},{"$f":"IF(Z539=\"\",\"\",IF(Z539=AB539,Y539,\"\"))","v":""},{"$f":"IF(Z539=\"\",\"\",IF(Z539=AB539,AC539,\"\"))","v":""},{"$f":"IF(Z539=\"\",\"\",IF(Z539<AB539,Y539,IF(Z539=AB539,\"\",AC539)))","v":""},{"$f":"IF(Z539=\"\",\"\",IF(Z539>AB539,Y535,\"\"))","v":""},{"$f":"IF(Z539=\"\",\"\",IF(Z539<AB539,AC535,\"\"))","v":""},{"$f":"CONCATENATE(AE539,AH539)","v":""}]
[null,null,null,null,null,null,null,null,null,null,null,null,null,null,null,null,null,null,null,null,null,null,null,{"$f":"N_Substitute","v":"Substitute"}]
[null,null,null,null,null,null,null,null,null,null,null,null,null,null,null,null,null,null,null,null,null,null,null,{"$f":"N_Substitute","v":"Substitute"}]
[null,null,null,null,null,null,null,null,null,null,null,null,null,null,null,null,null,null,null,null,"#G2",null,null,null,{"$f":"G499","v":"Eq2"},{"$f":"IF(OR(ISNUMBER(Z543),ISNUMBER(Z544),ISNUMBER(Z545),ISNUMBER(Z546)),4-COUNTBLANK(AI543:AI546),\"\")","v":""},"-",{"$f":"IF(OR(ISNUMBER(Z543),ISNUMBER(Z544),ISNUMBER(Z545),ISNUMBER(Z546)),4-COUNTBLANK(AJ543:AJ546),\"\")","v":""},{"$f":"G501","v":"Eq4"},null,{"$f":"IF(Z542=\"\",\"\",IF(Z542>AB542,Y542,IF(Z542=AB542,IF(NoDrawWithWithdraw,IF(AL542=Y542,AC542,IF(AL542=AC542,Y542,\"\")),\"\"),AC542)))","v":""},{"$f":"IF(Z542=\"\",\"\",IF(Z542=AB542,IF(NoDrawWithWithdraw,IF(AL542=Y542,\"\",IF(AL542=AC542,\"\",Y542)),Y542),\"\"))","v":""},{"$f":"IF(Z542=\"\",\"\",IF(Z542=AB542,IF(NoDrawWithWithdraw,IF(AL542=Y542,\"\",IF(AL542=AC542,\"\",AC542)),AC542),\"\"))","v":""},{"$f":"IF(Z542=\"\",\"\",IF(Z542<AB542,Y542,IF(Z542=AB542,IF(NoDrawWithWithdraw,IF(AL542=Y542,Y542,IF(AL542=AC542,AC542,\"\")),\"\"),AC542)))","v":""},{"$f":"IF(Z542=\"\",\"\",SUM(Z543:Z546))","v":""},{"$f":"IF(Z542=\"\",\"\",SUM(AB543:AB546))","v":""},{"$f":"CONCATENATE(AE542,AH542)","v":""},{"$f":"IF(COUNTIF(Y543:Y546,WithdrawLabel)>COUNTIF(AC543:AC546,WithdrawLabel),Y542,IF(COUNTIF(AC543:AC546,WithdrawLabel)>COUNTIF(Y543:Y546,WithdrawLabel),AC542,\"\"))","v":""}]
[null,null,null,null,null,null,null,null,null,null,null,null,null,null,null,null,null,null,null,null,null,null,null,null,null,null,"-",null,null,null,{"$f":"IF(Z543=\"\",\"\",IF(Z543>AB543,Y543,IF(Z543=AB543,\"\",AC543)))","v":""},{"$f":"IF(Z543=\"\",\"\",IF(Z543=AB543,Y543,\"\"))","v":""},{"$f":"IF(Z543=\"\",\"\",IF(Z543=AB543,AC543,\"\"))","v":""},{"$f":"IF(Z543=\"\",\"\",IF(Z543<AB543,Y543,IF(Z543=AB543,\"\",AC543)))","v":""},{"$f":"IF(Z543=\"\",\"\",IF(Z543>AB543,Y542,\"\"))","v":""},{"$f":"IF(Z543=\"\",\"\",IF(Z543<AB543,AC542,\"\"))","v":""},{"$f":"CONCATENATE(AE543,AH543)","v":""}]
[null,null,null,null,null,null,null,null,null,null,null,null,null,null,null,null,null,null,null,null,null,null,null,null,null,null,"-",null,null,null,{"$f":"IF(Z544=\"\",\"\",IF(Z544>AB544,Y544,IF(Z544=AB544,\"\",AC544)))","v":""},{"$f":"IF(Z544=\"\",\"\",IF(Z544=AB544,Y544,\"\"))","v":""},{"$f":"IF(Z544=\"\",\"\",IF(Z544=AB544,AC544,\"\"))","v":""},{"$f":"IF(Z544=\"\",\"\",IF(Z544<AB544,Y544,IF(Z544=AB544,\"\",AC544)))","v":""},{"$f":"IF(Z544=\"\",\"\",IF(Z544>AB544,Y542,\"\"))","v":""},{"$f":"IF(Z544=\"\",\"\",IF(Z544<AB544,AC542,\"\"))","v":""},{"$f":"CONCATENATE(AE544,AH544)","v":""}]
[null,null,null,null,null,null,null,null,null,null,null,null,null,null,null,null,null,null,null,null,null,null,null,null,null,null,"-",null,null,null,{"$f":"IF(Z545=\"\",\"\",IF(Z545>AB545,Y545,IF(Z545=AB545,\"\",AC545)))","v":""},{"$f":"IF(Z545=\"\",\"\",IF(Z545=AB545,Y545,\"\"))","v":""},{"$f":"IF(Z545=\"\",\"\",IF(Z545=AB545,AC545,\"\"))","v":""},{"$f":"IF(Z545=\"\",\"\",IF(Z545<AB545,Y545,IF(Z545=AB545,\"\",AC545)))","v":""},{"$f":"IF(Z545=\"\",\"\",IF(Z545>AB545,Y542,\"\"))","v":""},{"$f":"IF(Z545=\"\",\"\",IF(Z545<AB545,AC542,\"\"))","v":""},{"$f":"CONCATENATE(AE545,AH545)","v":""}]
[null,null,null,null,null,null,null,null,null,null,null,null,null,null,null,null,null,null,null,null,null,null,null,null,null,null,"-",null,null,null,{"$f":"IF(Z546=\"\",\"\",IF(Z546>AB546,Y546,IF(Z546=AB546,\"\",AC546)))","v":""},{"$f":"IF(Z546=\"\",\"\",IF(Z546=AB546,Y546,\"\"))","v":""},{"$f":"IF(Z546=\"\",\"\",IF(Z546=AB546,AC546,\"\"))","v":""},{"$f":"IF(Z546=\"\",\"\",IF(Z546<AB546,Y546,IF(Z546=AB546,\"\",AC546)))","v":""},{"$f":"IF(Z546=\"\",\"\",IF(Z546>AB546,Y542,\"\"))","v":""},{"$f":"IF(Z546=\"\",\"\",IF(Z546<AB546,AC542,\"\"))","v":""},{"$f":"CONCATENATE(AE546,AH546)","v":""}]
[null,null,null,null,null,null,null,null,null,null,null,null,null,null,null,null,null,null,null,null,null,null,null,{"$f":"N_Substitute","v":"Substitute"}]
[null,null,null,null,null,null,null,null,null,null,null,null,null,null,null,null,null,null,null,null,null,null,null,{"$f":"N_Substitute","v":"Substitute"}]
[null,null,null,null,null,null,null,null,null,null,null,null,null,null,null,null,null,null,null,null,"#G2",null,null,null,{"$f":"G500","v":"Eq3"},{"$f":"IF(OR(ISNUMBER(Z550),ISNUMBER(Z551),ISNUMBER(Z552),ISNUMBER(Z553)),4-COUNTBLANK(AI550:AI553),\"\")","v":""},"-",{"$f":"IF(OR(ISNUMBER(Z550),ISNUMBER(Z551),ISNUMBER(Z552),ISNUMBER(Z553)),4-COUNTBLANK(AJ550:AJ553),\"\")","v":""},{"$f":"G505","v":"Eq8"},null,{"$f":"IF(Z549=\"\",\"\",IF(Z549>AB549,Y549,IF(Z549=AB549,IF(NoDrawWithWithdraw,IF(AL549=Y549,AC549,IF(AL549=AC549,Y549,\"\")),\"\"),AC549)))","v":""},{"$f":"IF(Z549=\"\",\"\",IF(Z549=AB549,IF(NoDrawWithWithdraw,IF(AL549=Y549,\"\",IF(AL549=AC549,\"\",Y549)),Y549),\"\"))","v":""},{"$f":"IF(Z549=\"\",\"\",IF(Z549=AB549,IF(NoDrawWithWithdraw,IF(AL549=Y549,\"\",IF(AL549=AC549,\"\",AC549)),AC549),\"\"))","v":""},{"$f":"IF(Z549=\"\",\"\",IF(Z549<AB549,Y549,IF(Z549=AB549,IF(NoDrawWithWithdraw,IF(AL549=Y549,Y549,IF(AL549=AC549,AC549,\"\")),\"\"),AC549)))","v":""},{"$f":"IF(Z549=\"\",\"\",SUM(Z550:Z553))","v":""},{"$f":"IF(Z549=\"\",\"\",SUM(AB550:AB553))","v":""},{"$f":"CONCATENATE(AE549,AH549)","v":""},{"$f":"IF(COUNTIF(Y550:Y553,WithdrawLabel)>COUNTIF(AC550:AC553,WithdrawLabel),Y549,IF(COUNTIF(AC550:AC553,WithdrawLabel)>COUNTIF(Y550:Y553,WithdrawLabel),AC549,\"\"))","v":""}]
[null,null,null,null,null,null,null,null,null,null,null,null,null,null,null,null,null,null,null,null,null,null,null,null,null,null,"-",null,null,null,{"$f":"IF(Z550=\"\",\"\",IF(Z550>AB550,Y550,IF(Z550=AB550,\"\",AC550)))","v":""},{"$f":"IF(Z550=\"\",\"\",IF(Z550=AB550,Y550,\"\"))","v":""},{"$f":"IF(Z550=\"\",\"\",IF(Z550=AB550,AC550,\"\"))","v":""},{"$f":"IF(Z550=\"\",\"\",IF(Z550<AB550,Y550,IF(Z550=AB550,\"\",AC550)))","v":""},{"$f":"IF(Z550=\"\",\"\",IF(Z550>AB550,Y549,\"\"))","v":""},{"$f":"IF(Z550=\"\",\"\",IF(Z550<AB550,AC549,\"\"))","v":""},{"$f":"CONCATENATE(AE550,AH550)","v":""}]
[null,null,null,null,null,null,null,null,null,null,null,null,null,null,null,null,null,null,null,null,null,null,null,null,null,null,"-",null,null,null,{"$f":"IF(Z551=\"\",\"\",IF(Z551>AB551,Y551,IF(Z551=AB551,\"\",AC551)))","v":""},{"$f":"IF(Z551=\"\",\"\",IF(Z551=AB551,Y551,\"\"))","v":""},{"$f":"IF(Z551=\"\",\"\",IF(Z551=AB551,AC551,\"\"))","v":""},{"$f":"IF(Z551=\"\",\"\",IF(Z551<AB551,Y551,IF(Z551=AB551,\"\",AC551)))","v":""},{"$f":"IF(Z551=\"\",\"\",IF(Z551>AB551,Y549,\"\"))","v":""},{"$f":"IF(Z551=\"\",\"\",IF(Z551<AB551,AC549,\"\"))","v":""},{"$f":"CONCATENATE(AE551,AH551)","v":""}]
[null,null,null,null,null,null,null,null,null,null,null,null,null,null,null,null,null,null,null,null,null,null,null,null,null,null,"-",null,null,null,{"$f":"IF(Z552=\"\",\"\",IF(Z552>AB552,Y552,IF(Z552=AB552,\"\",AC552)))","v":""},{"$f":"IF(Z552=\"\",\"\",IF(Z552=AB552,Y552,\"\"))","v":""},{"$f":"IF(Z552=\"\",\"\",IF(Z552=AB552,AC552,\"\"))","v":""},{"$f":"IF(Z552=\"\",\"\",IF(Z552<AB552,Y552,IF(Z552=AB552,\"\",AC552)))","v":""},{"$f":"IF(Z552=\"\",\"\",IF(Z552>AB552,Y549,\"\"))","v":""},{"$f":"IF(Z552=\"\",\"\",IF(Z552<AB552,AC549,\"\"))","v":""},{"$f":"CONCATENATE(AE552,AH552)","v":""}]
[null,null,null,null,null,null,null,null,null,null,null,null,null,null,null,null,null,null,null,null,null,null,null,null,null,null,"-",null,null,null,{"$f":"IF(Z553=\"\",\"\",IF(Z553>AB553,Y553,IF(Z553=AB553,\"\",AC553)))","v":""},{"$f":"IF(Z553=\"\",\"\",IF(Z553=AB553,Y553,\"\"))","v":""},{"$f":"IF(Z553=\"\",\"\",IF(Z553=AB553,AC553,\"\"))","v":""},{"$f":"IF(Z553=\"\",\"\",IF(Z553<AB553,Y553,IF(Z553=AB553,\"\",AC553)))","v":""},{"$f":"IF(Z553=\"\",\"\",IF(Z553>AB553,Y549,\"\"))","v":""},{"$f":"IF(Z553=\"\",\"\",IF(Z553<AB553,AC549,\"\"))","v":""},{"$f":"CONCATENATE(AE553,AH553)","v":""}]
[null,null,null,null,null,null,null,null,null,null,null,null,null,null,null,null,null,null,null,null,null,null,null,{"$f":"N_Substitute","v":"Substitute"}]
[null,null,null,null,null,null,null,null,null,null,null,null,null,null,null,null,null,null,null,null,null,null,null,{"$f":"N_Substitute","v":"Substitute"}]
[null,null,null,null,null,null,null,null,null,null,null,null,null,null,null,null,null,null,null,null,"#G2",null,null,null,{"$f":"G503","v":"Eq6"},{"$f":"IF(OR(ISNUMBER(Z557),ISNUMBER(Z558),ISNUMBER(Z559),ISNUMBER(Z560)),4-COUNTBLANK(AI557:AI560),\"\")","v":""},"-",{"$f":"IF(OR(ISNUMBER(Z557),ISNUMBER(Z558),ISNUMBER(Z559),ISNUMBER(Z560)),4-COUNTBLANK(AJ557:AJ560),\"\")","v":""},{"$f":"G504","v":"Eq7"},null,{"$f":"IF(Z556=\"\",\"\",IF(Z556>AB556,Y556,IF(Z556=AB556,IF(NoDrawWithWithdraw,IF(AL556=Y556,AC556,IF(AL556=AC556,Y556,\"\")),\"\"),AC556)))","v":""},{"$f":"IF(Z556=\"\",\"\",IF(Z556=AB556,IF(NoDrawWithWithdraw,IF(AL556=Y556,\"\",IF(AL556=AC556,\"\",Y556)),Y556),\"\"))","v":""},{"$f":"IF(Z556=\"\",\"\",IF(Z556=AB556,IF(NoDrawWithWithdraw,IF(AL556=Y556,\"\",IF(AL556=AC556,\"\",AC556)),AC556),\"\"))","v":""},{"$f":"IF(Z556=\"\",\"\",IF(Z556<AB556,Y556,IF(Z556=AB556,IF(NoDrawWithWithdraw,IF(AL556=Y556,Y556,IF(AL556=AC556,AC556,\"\")),\"\"),AC556)))","v":""},{"$f":"IF(Z556=\"\",\"\",SUM(Z557:Z560))","v":""},{"$f":"IF(Z556=\"\",\"\",SUM(AB557:AB560))","v":""},{"$f":"CONCATENATE(AE556,AH556)","v":""},{"$f":"IF(COUNTIF(Y557:Y560,WithdrawLabel)>COUNTIF(AC557:AC560,WithdrawLabel),Y556,IF(COUNTIF(AC557:AC560,WithdrawLabel)>COUNTIF(Y557:Y560,WithdrawLabel),AC556,\"\"))","v":""}]
[null,null,null,null,null,null,null,null,null,null,null,null,null,null,null,null,null,null,null,null,null,null,null,null,null,null,"-",null,null,null,{"$f":"IF(Z557=\"\",\"\",IF(Z557>AB557,Y557,IF(Z557=AB557,\"\",AC557)))","v":""},{"$f":"IF(Z557=\"\",\"\",IF(Z557=AB557,Y557,\"\"))","v":""},{"$f":"IF(Z557=\"\",\"\",IF(Z557=AB557,AC557,\"\"))","v":""},{"$f":"IF(Z557=\"\",\"\",IF(Z557<AB557,Y557,IF(Z557=AB557,\"\",AC557)))","v":""},{"$f":"IF(Z557=\"\",\"\",IF(Z557>AB557,Y556,\"\"))","v":""},{"$f":"IF(Z557=\"\",\"\",IF(Z557<AB557,AC556,\"\"))","v":""},{"$f":"CONCATENATE(AE557,AH557)","v":""}]
[null,null,null,null,null,null,null,null,null,null,null,null,null,null,null,null,null,null,null,null,null,null,null,null,null,null,"-",null,null,null,{"$f":"IF(Z558=\"\",\"\",IF(Z558>AB558,Y558,IF(Z558=AB558,\"\",AC558)))","v":""},{"$f":"IF(Z558=\"\",\"\",IF(Z558=AB558,Y558,\"\"))","v":""},{"$f":"IF(Z558=\"\",\"\",IF(Z558=AB558,AC558,\"\"))","v":""},{"$f":"IF(Z558=\"\",\"\",IF(Z558<AB558,Y558,IF(Z558=AB558,\"\",AC558)))","v":""},{"$f":"IF(Z558=\"\",\"\",IF(Z558>AB558,Y556,\"\"))","v":""},{"$f":"IF(Z558=\"\",\"\",IF(Z558<AB558,AC556,\"\"))","v":""},{"$f":"CONCATENATE(AE558,AH558)","v":""}]
[null,null,null,null,null,null,null,null,null,null,null,null,null,null,null,null,null,null,null,null,null,null,null,null,null,null,"-",null,null,null,{"$f":"IF(Z559=\"\",\"\",IF(Z559>AB559,Y559,IF(Z559=AB559,\"\",AC559)))","v":""},{"$f":"IF(Z559=\"\",\"\",IF(Z559=AB559,Y559,\"\"))","v":""},{"$f":"IF(Z559=\"\",\"\",IF(Z559=AB559,AC559,\"\"))","v":""},{"$f":"IF(Z559=\"\",\"\",IF(Z559<AB559,Y559,IF(Z559=AB559,\"\",AC559)))","v":""},{"$f":"IF(Z559=\"\",\"\",IF(Z559>AB559,Y556,\"\"))","v":""},{"$f":"IF(Z559=\"\",\"\",IF(Z559<AB559,AC556,\"\"))","v":""},{"$f":"CONCATENATE(AE559,AH559)","v":""}]
[null,null,null,null,null,null,null,null,null,null,null,null,null,null,null,null,null,null,null,null,null,null,null,null,null,null,"-",null,null,null,{"$f":"IF(Z560=\"\",\"\",IF(Z560>AB560,Y560,IF(Z560=AB560,\"\",AC560)))","v":""},{"$f":"IF(Z560=\"\",\"\",IF(Z560=AB560,Y560,\"\"))","v":""},{"$f":"IF(Z560=\"\",\"\",IF(Z560=AB560,AC560,\"\"))","v":""},{"$f":"IF(Z560=\"\",\"\",IF(Z560<AB560,Y560,IF(Z560=AB560,\"\",AC560)))","v":""},{"$f":"IF(Z560=\"\",\"\",IF(Z560>AB560,Y556,\"\"))","v":""},{"$f":"IF(Z560=\"\",\"\",IF(Z560<AB560,AC556,\"\"))","v":""},{"$f":"CONCATENATE(AE560,AH560)","v":""}]
[null,null,null,null,null,null,null,null,null,null,null,null,null,null,null,null,null,null,null,null,null,null,null,{"$f":"N_Substitute","v":"Substitute"}]
[null,null,null,null,null,null,null,null,null,null,null,null,null,null,null,null,null,null,null,null,null,null,null,{"$f":"N_Substitute","v":"Substitute"}]
[null,null,null,null,null,null,null,null,null,null,null,null,null,null,null,null,null,null,null,null,"#G3",null,null,null,{"$f":"G500","v":"Eq3"},{"$f":"IF(OR(ISNUMBER(Z564),ISNUMBER(Z565),ISNUMBER(Z566),ISNUMBER(Z567)),4-COUNTBLANK(AI564:AI567),\"\")","v":""},"-",{"$f":"IF(OR(ISNUMBER(Z564),ISNUMBER(Z565),ISNUMBER(Z566),ISNUMBER(Z567)),4-COUNTBLANK(AJ564:AJ567),\"\")","v":""},{"$f":"G502","v":"Eq5"},null,{"$f":"IF(Z563=\"\",\"\",IF(Z563>AB563,Y563,IF(Z563=AB563,IF(NoDrawWithWithdraw,IF(AL563=Y563,AC563,IF(AL563=AC563,Y563,\"\")),\"\"),AC563)))","v":""},{"$f":"IF(Z563=\"\",\"\",IF(Z563=AB563,IF(NoDrawWithWithdraw,IF(AL563=Y563,\"\",IF(AL563=AC563,\"\",Y563)),Y563),\"\"))","v":""},{"$f":"IF(Z563=\"\",\"\",IF(Z563=AB563,IF(NoDrawWithWithdraw,IF(AL563=Y563,\"\",IF(AL563=AC563,\"\",AC563)),AC563),\"\"))","v":""},{"$f":"IF(Z563=\"\",\"\",IF(Z563<AB563,Y563,IF(Z563=AB563,IF(NoDrawWithWithdraw,IF(AL563=Y563,Y563,IF(AL563=AC563,AC563,\"\")),\"\"),AC563)))","v":""},{"$f":"IF(Z563=\"\",\"\",SUM(Z564:Z567))","v":""},{"$f":"IF(Z563=\"\",\"\",SUM(AB564:AB567))","v":""},{"$f":"CONCATENATE(AE563,AH563)","v":""},{"$f":"IF(COUNTIF(Y564:Y567,WithdrawLabel)>COUNTIF(AC564:AC567,WithdrawLabel),Y563,IF(COUNTIF(AC564:AC567,WithdrawLabel)>COUNTIF(Y564:Y567,WithdrawLabel),AC563,\"\"))","v":""}]
[null,null,null,null,null,null,null,null,null,null,null,null,null,null,null,null,null,null,null,null,null,null,null,null,null,null,"-",null,null,null,{"$f":"IF(Z564=\"\",\"\",IF(Z564>AB564,Y564,IF(Z564=AB564,\"\",AC564)))","v":""},{"$f":"IF(Z564=\"\",\"\",IF(Z564=AB564,Y564,\"\"))","v":""},{"$f":"IF(Z564=\"\",\"\",IF(Z564=AB564,AC564,\"\"))","v":""},{"$f":"IF(Z564=\"\",\"\",IF(Z564<AB564,Y564,IF(Z564=AB564,\"\",AC564)))","v":""},{"$f":"IF(Z564=\"\",\"\",IF(Z564>AB564,Y563,\"\"))","v":""},{"$f":"IF(Z564=\"\",\"\",IF(Z564<AB564,AC563,\"\"))","v":""},{"$f":"CONCATENATE(AE564,AH564)","v":""}]
[null,null,null,null,null,null,null,null,null,null,null,null,null,null,null,null,null,null,null,null,null,null,null,null,null,null,"-",null,null,null,{"$f":"IF(Z565=\"\",\"\",IF(Z565>AB565,Y565,IF(Z565=AB565,\"\",AC565)))","v":""},{"$f":"IF(Z565=\"\",\"\",IF(Z565=AB565,Y565,\"\"))","v":""},{"$f":"IF(Z565=\"\",\"\",IF(Z565=AB565,AC565,\"\"))","v":""},{"$f":"IF(Z565=\"\",\"\",IF(Z565<AB565,Y565,IF(Z565=AB565,\"\",AC565)))","v":""},{"$f":"IF(Z565=\"\",\"\",IF(Z565>AB565,Y563,\"\"))","v":""},{"$f":"IF(Z565=\"\",\"\",IF(Z565<AB565,AC563,\"\"))","v":""},{"$f":"CONCATENATE(AE565,AH565)","v":""}]
[null,null,null,null,null,null,null,null,null,null,null,null,null,null,null,null,null,null,null,null,null,null,null,null,null,null,"-",null,null,null,{"$f":"IF(Z566=\"\",\"\",IF(Z566>AB566,Y566,IF(Z566=AB566,\"\",AC566)))","v":""},{"$f":"IF(Z566=\"\",\"\",IF(Z566=AB566,Y566,\"\"))","v":""},{"$f":"IF(Z566=\"\",\"\",IF(Z566=AB566,AC566,\"\"))","v":""},{"$f":"IF(Z566=\"\",\"\",IF(Z566<AB566,Y566,IF(Z566=AB566,\"\",AC566)))","v":""},{"$f":"IF(Z566=\"\",\"\",IF(Z566>AB566,Y563,\"\"))","v":""},{"$f":"IF(Z566=\"\",\"\",IF(Z566<AB566,AC563,\"\"))","v":""},{"$f":"CONCATENATE(AE566,AH566)","v":""}]
[null,null,null,null,null,null,null,null,null,null,null,null,null,null,null,null,null,null,null,null,null,null,null,null,null,null,"-",null,null,null,{"$f":"IF(Z567=\"\",\"\",IF(Z567>AB567,Y567,IF(Z567=AB567,\"\",AC567)))","v":""},{"$f":"IF(Z567=\"\",\"\",IF(Z567=AB567,Y567,\"\"))","v":""},{"$f":"IF(Z567=\"\",\"\",IF(Z567=AB567,AC567,\"\"))","v":""},{"$f":"IF(Z567=\"\",\"\",IF(Z567<AB567,Y567,IF(Z567=AB567,\"\",AC567)))","v":""},{"$f":"IF(Z567=\"\",\"\",IF(Z567>AB567,Y563,\"\"))","v":""},{"$f":"IF(Z567=\"\",\"\",IF(Z567<AB567,AC563,\"\"))","v":""},{"$f":"CONCATENATE(AE567,AH567)","v":""}]
[null,null,null,null,null,null,null,null,null,null,null,null,null,null,null,null,null,null,null,null,null,null,null,{"$f":"N_Substitute","v":"Substitute"}]
[null,null,null,null,null,null,null,null,null,null,null,null,null,null,null,null,null,null,null,null,null,null,null,{"$f":"N_Substitute","v":"Substitute"}]
[null,null,null,null,null,null,null,null,null,null,null,null,null,null,null,null,null,null,null,null,"#G3",null,null,null,{"$f":"G503","v":"Eq6"},{"$f":"IF(OR(ISNUMBER(Z571),ISNUMBER(Z572),ISNUMBER(Z573),ISNUMBER(Z574)),4-COUNTBLANK(AI571:AI574),\"\")","v":""},"-",{"$f":"IF(OR(ISNUMBER(Z571),ISNUMBER(Z572),ISNUMBER(Z573),ISNUMBER(Z574)),4-COUNTBLANK(AJ571:AJ574),\"\")","v":""},{"$f":"G499","v":"Eq2"},null,{"$f":"IF(Z570=\"\",\"\",IF(Z570>AB570,Y570,IF(Z570=AB570,IF(NoDrawWithWithdraw,IF(AL570=Y570,AC570,IF(AL570=AC570,Y570,\"\")),\"\"),AC570)))","v":""},{"$f":"IF(Z570=\"\",\"\",IF(Z570=AB570,IF(NoDrawWithWithdraw,IF(AL570=Y570,\"\",IF(AL570=AC570,\"\",Y570)),Y570),\"\"))","v":""},{"$f":"IF(Z570=\"\",\"\",IF(Z570=AB570,IF(NoDrawWithWithdraw,IF(AL570=Y570,\"\",IF(AL570=AC570,\"\",AC570)),AC570),\"\"))","v":""},{"$f":"IF(Z570=\"\",\"\",IF(Z570<AB570,Y570,IF(Z570=AB570,IF(NoDrawWithWithdraw,IF(AL570=Y570,Y570,IF(AL570=AC570,AC570,\"\")),\"\"),AC570)))","v":""},{"$f":"IF(Z570=\"\",\"\",SUM(Z571:Z574))","v":""},{"$f":"IF(Z570=\"\",\"\",SUM(AB571:AB574))","v":""},{"$f":"CONCATENATE(AE570,AH570)","v":""},{"$f":"IF(COUNTIF(Y571:Y574,WithdrawLabel)>COUNTIF(AC571:AC574,WithdrawLabel),Y570,IF(COUNTIF(AC571:AC574,WithdrawLabel)>COUNTIF(Y571:Y574,WithdrawLabel),AC570,\"\"))","v":""}]
[null,null,null,null,null,null,null,null,null,null,null,null,null,null,null,null,null,null,null,null,null,null,null,null,null,null,"-",null,null,null,{"$f":"IF(Z571=\"\",\"\",IF(Z571>AB571,Y571,IF(Z571=AB571,\"\",AC571)))","v":""},{"$f":"IF(Z571=\"\",\"\",IF(Z571=AB571,Y571,\"\"))","v":""},{"$f":"IF(Z571=\"\",\"\",IF(Z571=AB571,AC571,\"\"))","v":""},{"$f":"IF(Z571=\"\",\"\",IF(Z571<AB571,Y571,IF(Z571=AB571,\"\",AC571)))","v":""},{"$f":"IF(Z571=\"\",\"\",IF(Z571>AB571,Y570,\"\"))","v":""},{"$f":"IF(Z571=\"\",\"\",IF(Z571<AB571,AC570,\"\"))","v":""},{"$f":"CONCATENATE(AE571,AH571)","v":""}]
[null,null,null,null,null,null,null,null,null,null,null,null,null,null,null,null,null,null,null,null,null,null,null,null,null,null,"-",null,null,null,{"$f":"IF(Z572=\"\",\"\",IF(Z572>AB572,Y572,IF(Z572=AB572,\"\",AC572)))","v":""},{"$f":"IF(Z572=\"\",\"\",IF(Z572=AB572,Y572,\"\"))","v":""},{"$f":"IF(Z572=\"\",\"\",IF(Z572=AB572,AC572,\"\"))","v":""},{"$f":"IF(Z572=\"\",\"\",IF(Z572<AB572,Y572,IF(Z572=AB572,\"\",AC572)))","v":""},{"$f":"IF(Z572=\"\",\"\",IF(Z572>AB572,Y570,\"\"))","v":""},{"$f":"IF(Z572=\"\",\"\",IF(Z572<AB572,AC570,\"\"))","v":""},{"$f":"CONCATENATE(AE572,AH572)","v":""}]
[null,null,null,null,null,null,null,null,null,null,null,null,null,null,null,null,null,null,null,null,null,null,null,null,null,null,"-",null,null,null,{"$f":"IF(Z573=\"\",\"\",IF(Z573>AB573,Y573,IF(Z573=AB573,\"\",AC573)))","v":""},{"$f":"IF(Z573=\"\",\"\",IF(Z573=AB573,Y573,\"\"))","v":""},{"$f":"IF(Z573=\"\",\"\",IF(Z573=AB573,AC573,\"\"))","v":""},{"$f":"IF(Z573=\"\",\"\",IF(Z573<AB573,Y573,IF(Z573=AB573,\"\",AC573)))","v":""},{"$f":"IF(Z573=\"\",\"\",IF(Z573>AB573,Y570,\"\"))","v":""},{"$f":"IF(Z573=\"\",\"\",IF(Z573<AB573,AC570,\"\"))","v":""},{"$f":"CONCATENATE(AE573,AH573)","v":""}]
[null,null,null,null,null,null,null,null,null,null,null,null,null,null,null,null,null,null,null,null,null,null,null,null,null,null,"-",null,null,null,{"$f":"IF(Z574=\"\",\"\",IF(Z574>AB574,Y574,IF(Z574=AB574,\"\",AC574)))","v":""},{"$f":"IF(Z574=\"\",\"\",IF(Z574=AB574,Y574,\"\"))","v":""},{"$f":"IF(Z574=\"\",\"\",IF(Z574=AB574,AC574,\"\"))","v":""},{"$f":"IF(Z574=\"\",\"\",IF(Z574<AB574,Y574,IF(Z574=AB574,\"\",AC574)))","v":""},{"$f":"IF(Z574=\"\",\"\",IF(Z574>AB574,Y570,\"\"))","v":""},{"$f":"IF(Z574=\"\",\"\",IF(Z574<AB574,AC570,\"\"))","v":""},{"$f":"CONCATENATE(AE574,AH574)","v":""}]
[null,null,null,null,null,null,null,null,null,null,null,null,null,null,null,null,null,null,null,null,null,null,null,{"$f":"N_Substitute","v":"Substitute"}]
[null,null,null,null,null,null,null,null,null,null,null,null,null,null,null,null,null,null,null,null,null,null,null,{"$f":"N_Substitute","v":"Substitute"}]
[null,null,null,null,null,null,null,null,null,null,null,null,null,null,null,null,null,null,null,null,"#G3",null,null,null,{"$f":"G504","v":"Eq7"},{"$f":"IF(OR(ISNUMBER(Z578),ISNUMBER(Z579),ISNUMBER(Z580),ISNUMBER(Z581)),4-COUNTBLANK(AI578:AI581),\"\")","v":""},"-",{"$f":"IF(OR(ISNUMBER(Z578),ISNUMBER(Z579),ISNUMBER(Z580),ISNUMBER(Z581)),4-COUNTBLANK(AJ578:AJ581),\"\")","v":""},{"$f":"G498","v":"Eq1"},null,{"$f":"IF(Z577=\"\",\"\",IF(Z577>AB577,Y577,IF(Z577=AB577,IF(NoDrawWithWithdraw,IF(AL577=Y577,AC577,IF(AL577=AC577,Y577,\"\")),\"\"),AC577)))","v":""},{"$f":"IF(Z577=\"\",\"\",IF(Z577=AB577,IF(NoDrawWithWithdraw,IF(AL577=Y577,\"\",IF(AL577=AC577,\"\",Y577)),Y577),\"\"))","v":""},{"$f":"IF(Z577=\"\",\"\",IF(Z577=AB577,IF(NoDrawWithWithdraw,IF(AL577=Y577,\"\",IF(AL577=AC577,\"\",AC577)),AC577),\"\"))","v":""},{"$f":"IF(Z577=\"\",\"\",IF(Z577<AB577,Y577,IF(Z577=AB577,IF(NoDrawWithWithdraw,IF(AL577=Y577,Y577,IF(AL577=AC577,AC577,\"\")),\"\"),AC577)))","v":""},{"$f":"IF(Z577=\"\",\"\",SUM(Z578:Z581))","v":""},{"$f":"IF(Z577=\"\",\"\",SUM(AB578:AB581))","v":""},{"$f":"CONCATENATE(AE577,AH577)","v":""},{"$f":"IF(COUNTIF(Y578:Y581,WithdrawLabel)>COUNTIF(AC578:AC581,WithdrawLabel),Y577,IF(COUNTIF(AC578:AC581,WithdrawLabel)>COUNTIF(Y578:Y581,WithdrawLabel),AC577,\"\"))","v":""}]
[null,null,null,null,null,null,null,null,null,null,null,null,null,null,null,null,null,null,null,null,null,null,null,null,null,null,"-",null,null,null,{"$f":"IF(Z578=\"\",\"\",IF(Z578>AB578,Y578,IF(Z578=AB578,\"\",AC578)))","v":""},{"$f":"IF(Z578=\"\",\"\",IF(Z578=AB578,Y578,\"\"))","v":""},{"$f":"IF(Z578=\"\",\"\",IF(Z578=AB578,AC578,\"\"))","v":""},{"$f":"IF(Z578=\"\",\"\",IF(Z578<AB578,Y578,IF(Z578=AB578,\"\",AC578)))","v":""},{"$f":"IF(Z578=\"\",\"\",IF(Z578>AB578,Y577,\"\"))","v":""},{"$f":"IF(Z578=\"\",\"\",IF(Z578<AB578,AC577,\"\"))","v":""},{"$f":"CONCATENATE(AE578,AH578)","v":""}]
[null,null,null,null,null,null,null,null,null,null,null,null,null,null,null,null,null,null,null,null,null,null,null,null,null,null,"-",null,null,null,{"$f":"IF(Z579=\"\",\"\",IF(Z579>AB579,Y579,IF(Z579=AB579,\"\",AC579)))","v":""},{"$f":"IF(Z579=\"\",\"\",IF(Z579=AB579,Y579,\"\"))","v":""},{"$f":"IF(Z579=\"\",\"\",IF(Z579=AB579,AC579,\"\"))","v":""},{"$f":"IF(Z579=\"\",\"\",IF(Z579<AB579,Y579,IF(Z579=AB579,\"\",AC579)))","v":""},{"$f":"IF(Z579=\"\",\"\",IF(Z579>AB579,Y577,\"\"))","v":""},{"$f":"IF(Z579=\"\",\"\",IF(Z579<AB579,AC577,\"\"))","v":""},{"$f":"CONCATENATE(AE579,AH579)","v":""}]
[null,null,null,null,null,null,null,null,null,null,null,null,null,null,null,null,null,null,null,null,null,null,null,null,null,null,"-",null,null,null,{"$f":"IF(Z580=\"\",\"\",IF(Z580>AB580,Y580,IF(Z580=AB580,\"\",AC580)))","v":""},{"$f":"IF(Z580=\"\",\"\",IF(Z580=AB580,Y580,\"\"))","v":""},{"$f":"IF(Z580=\"\",\"\",IF(Z580=AB580,AC580,\"\"))","v":""},{"$f":"IF(Z580=\"\",\"\",IF(Z580<AB580,Y580,IF(Z580=AB580,\"\",AC580)))","v":""},{"$f":"IF(Z580=\"\",\"\",IF(Z580>AB580,Y577,\"\"))","v":""},{"$f":"IF(Z580=\"\",\"\",IF(Z580<AB580,AC577,\"\"))","v":""},{"$f":"CONCATENATE(AE580,AH580)","v":""}]
[null,null,null,null,null,null,null,null,null,null,null,null,null,null,null,null,null,null,null,null,null,null,null,null,null,null,"-",null,null,null,{"$f":"IF(Z581=\"\",\"\",IF(Z581>AB581,Y581,IF(Z581=AB581,\"\",AC581)))","v":""},{"$f":"IF(Z581=\"\",\"\",IF(Z581=AB581,Y581,\"\"))","v":""},{"$f":"IF(Z581=\"\",\"\",IF(Z581=AB581,AC581,\"\"))","v":""},{"$f":"IF(Z581=\"\",\"\",IF(Z581<AB581,Y581,IF(Z581=AB581,\"\",AC581)))","v":""},{"$f":"IF(Z581=\"\",\"\",IF(Z581>AB581,Y577,\"\"))","v":""},{"$f":"IF(Z581=\"\",\"\",IF(Z581<AB581,AC577,\"\"))","v":""},{"$f":"CONCATENATE(AE581,AH581)","v":""}]
[null,null,null,null,null,null,null,null,null,null,null,null,null,null,null,null,null,null,null,null,null,null,null,{"$f":"N_Substitute","v":"Substitute"}]
[null,null,null,null,null,null,null,null,null,null,null,null,null,null,null,null,null,null,null,null,null,null,null,{"$f":"N_Substitute","v":"Substitute"}]
[null,null,null,null,null,null,null,null,null,null,null,null,null,null,null,null,null,null,null,null,"#G3",null,null,null,{"$f":"G505","v":"Eq8"},{"$f":"IF(OR(ISNUMBER(Z585),ISNUMBER(Z586),ISNUMBER(Z587),ISNUMBER(Z588)),4-COUNTBLANK(AI585:AI588),\"\")","v":""},"-",{"$f":"IF(OR(ISNUMBER(Z585),ISNUMBER(Z586),ISNUMBER(Z587),ISNUMBER(Z588)),4-COUNTBLANK(AJ585:AJ588),\"\")","v":""},{"$f":"G501","v":"Eq4"},null,{"$f":"IF(Z584=\"\",\"\",IF(Z584>AB584,Y584,IF(Z584=AB584,IF(NoDrawWithWithdraw,IF(AL584=Y584,AC584,IF(AL584=AC584,Y584,\"\")),\"\"),AC584)))","v":""},{"$f":"IF(Z584=\"\",\"\",IF(Z584=AB584,IF(NoDrawWithWithdraw,IF(AL584=Y584,\"\",IF(AL584=AC584,\"\",Y584)),Y584),\"\"))","v":""},{"$f":"IF(Z584=\"\",\"\",IF(Z584=AB584,IF(NoDrawWithWithdraw,IF(AL584=Y584,\"\",IF(AL584=AC584,\"\",AC584)),AC584),\"\"))","v":""},{"$f":"IF(Z584=\"\",\"\",IF(Z584<AB584,Y584,IF(Z584=AB584,IF(NoDrawWithWithdraw,IF(AL584=Y584,Y584,IF(AL584=AC584,AC584,\"\")),\"\"),AC584)))","v":""},{"$f":"IF(Z584=\"\",\"\",SUM(Z585:Z588))","v":""},{"$f":"IF(Z584=\"\",\"\",SUM(AB585:AB588))","v":""},{"$f":"CONCATENATE(AE584,AH584)","v":""},{"$f":"IF(COUNTIF(Y585:Y588,WithdrawLabel)>COUNTIF(AC585:AC588,WithdrawLabel),Y584,IF(COUNTIF(AC585:AC588,WithdrawLabel)>COUNTIF(Y585:Y588,WithdrawLabel),AC584,\"\"))","v":""}]
[null,null,null,null,null,null,null,null,null,null,null,null,null,null,null,null,null,null,null,null,null,null,null,null,null,null,"-",null,null,null,{"$f":"IF(Z585=\"\",\"\",IF(Z585>AB585,Y585,IF(Z585=AB585,\"\",AC585)))","v":""},{"$f":"IF(Z585=\"\",\"\",IF(Z585=AB585,Y585,\"\"))","v":""},{"$f":"IF(Z585=\"\",\"\",IF(Z585=AB585,AC585,\"\"))","v":""},{"$f":"IF(Z585=\"\",\"\",IF(Z585<AB585,Y585,IF(Z585=AB585,\"\",AC585)))","v":""},{"$f":"IF(Z585=\"\",\"\",IF(Z585>AB585,Y584,\"\"))","v":""},{"$f":"IF(Z585=\"\",\"\",IF(Z585<AB585,AC584,\"\"))","v":""},{"$f":"CONCATENATE(AE585,AH585)","v":""}]
[null,null,null,null,null,null,null,null,null,null,null,null,null,null,null,null,null,null,null,null,null,null,null,null,null,null,"-",null,null,null,{"$f":"IF(Z586=\"\",\"\",IF(Z586>AB586,Y586,IF(Z586=AB586,\"\",AC586)))","v":""},{"$f":"IF(Z586=\"\",\"\",IF(Z586=AB586,Y586,\"\"))","v":""},{"$f":"IF(Z586=\"\",\"\",IF(Z586=AB586,AC586,\"\"))","v":""},{"$f":"IF(Z586=\"\",\"\",IF(Z586<AB586,Y586,IF(Z586=AB586,\"\",AC586)))","v":""},{"$f":"IF(Z586=\"\",\"\",IF(Z586>AB586,Y584,\"\"))","v":""},{"$f":"IF(Z586=\"\",\"\",IF(Z586<AB586,AC584,\"\"))","v":""},{"$f":"CONCATENATE(AE586,AH586)","v":""}]
[null,null,null,null,null,null,null,null,null,null,null,null,null,null,null,null,null,null,null,null,null,null,null,null,null,null,"-",null,null,null,{"$f":"IF(Z587=\"\",\"\",IF(Z587>AB587,Y587,IF(Z587=AB587,\"\",AC587)))","v":""},{"$f":"IF(Z587=\"\",\"\",IF(Z587=AB587,Y587,\"\"))","v":""},{"$f":"IF(Z587=\"\",\"\",IF(Z587=AB587,AC587,\"\"))","v":""},{"$f":"IF(Z587=\"\",\"\",IF(Z587<AB587,Y587,IF(Z587=AB587,\"\",AC587)))","v":""},{"$f":"IF(Z587=\"\",\"\",IF(Z587>AB587,Y584,\"\"))","v":""},{"$f":"IF(Z587=\"\",\"\",IF(Z587<AB587,AC584,\"\"))","v":""},{"$f":"CONCATENATE(AE587,AH587)","v":""}]
[null,null,null,null,null,null,null,null,null,null,null,null,null,null,null,null,null,null,null,null,null,null,null,null,null,null,"-",null,null,null,{"$f":"IF(Z588=\"\",\"\",IF(Z588>AB588,Y588,IF(Z588=AB588,\"\",AC588)))","v":""},{"$f":"IF(Z588=\"\",\"\",IF(Z588=AB588,Y588,\"\"))","v":""},{"$f":"IF(Z588=\"\",\"\",IF(Z588=AB588,AC588,\"\"))","v":""},{"$f":"IF(Z588=\"\",\"\",IF(Z588<AB588,Y588,IF(Z588=AB588,\"\",AC588)))","v":""},{"$f":"IF(Z588=\"\",\"\",IF(Z588>AB588,Y584,\"\"))","v":""},{"$f":"IF(Z588=\"\",\"\",IF(Z588<AB588,AC584,\"\"))","v":""},{"$f":"CONCATENATE(AE588,AH588)","v":""}]
[null,null,null,null,null,null,null,null,null,null,null,null,null,null,null,null,null,null,null,null,null,null,null,{"$f":"N_Substitute","v":"Substitute"}]
[null,null,null,null,null,null,null,null,null,null,null,null,null,null,null,null,null,null,null,null,null,null,null,{"$f":"N_Substitute","v":"Substitute"}]
[null,null,null,null,null,null,null,null,null,null,null,null,null,null,null,null,null,null,null,null,"#G4",null,null,null,{"$f":"G498","v":"Eq1"},{"$f":"IF(OR(ISNUMBER(Z592),ISNUMBER(Z593),ISNUMBER(Z594),ISNUMBER(Z595)),4-COUNTBLANK(AI592:AI595),\"\")","v":""},"-",{"$f":"IF(OR(ISNUMBER(Z592),ISNUMBER(Z593),ISNUMBER(Z594),ISNUMBER(Z595)),4-COUNTBLANK(AJ592:AJ595),\"\")","v":""},{"$f":"G499","v":"Eq2"},null,{"$f":"IF(Z591=\"\",\"\",IF(Z591>AB591,Y591,IF(Z591=AB591,IF(NoDrawWithWithdraw,IF(AL591=Y591,AC591,IF(AL591=AC591,Y591,\"\")),\"\"),AC591)))","v":""},{"$f":"IF(Z591=\"\",\"\",IF(Z591=AB591,IF(NoDrawWithWithdraw,IF(AL591=Y591,\"\",IF(AL591=AC591,\"\",Y591)),Y591),\"\"))","v":""},{"$f":"IF(Z591=\"\",\"\",IF(Z591=AB591,IF(NoDrawWithWithdraw,IF(AL591=Y591,\"\",IF(AL591=AC591,\"\",AC591)),AC591),\"\"))","v":""},{"$f":"IF(Z591=\"\",\"\",IF(Z591<AB591,Y591,IF(Z591=AB591,IF(NoDrawWithWithdraw,IF(AL591=Y591,Y591,IF(AL591=AC591,AC591,\"\")),\"\"),AC591)))","v":""},{"$f":"IF(Z591=\"\",\"\",SUM(Z592:Z595))","v":""},{"$f":"IF(Z591=\"\",\"\",SUM(AB592:AB595))","v":""},{"$f":"CONCATENATE(AE591,AH591)","v":""},{"$f":"IF(COUNTIF(Y592:Y595,WithdrawLabel)>COUNTIF(AC592:AC595,WithdrawLabel),Y591,IF(COUNTIF(AC592:AC595,WithdrawLabel)>COUNTIF(Y592:Y595,WithdrawLabel),AC591,\"\"))","v":""}]
[null,null,null,null,null,null,null,null,null,null,null,null,null,null,null,null,null,null,null,null,null,null,null,null,null,null,"-",null,null,null,{"$f":"IF(Z592=\"\",\"\",IF(Z592>AB592,Y592,IF(Z592=AB592,\"\",AC592)))","v":""},{"$f":"IF(Z592=\"\",\"\",IF(Z592=AB592,Y592,\"\"))","v":""},{"$f":"IF(Z592=\"\",\"\",IF(Z592=AB592,AC592,\"\"))","v":""},{"$f":"IF(Z592=\"\",\"\",IF(Z592<AB592,Y592,IF(Z592=AB592,\"\",AC592)))","v":""},{"$f":"IF(Z592=\"\",\"\",IF(Z592>AB592,Y591,\"\"))","v":""},{"$f":"IF(Z592=\"\",\"\",IF(Z592<AB592,AC591,\"\"))","v":""},{"$f":"CONCATENATE(AE592,AH592)","v":""}]
[null,null,null,null,null,null,null,null,null,null,null,null,null,null,null,null,null,null,null,null,null,null,null,null,null,null,"-",null,null,null,{"$f":"IF(Z593=\"\",\"\",IF(Z593>AB593,Y593,IF(Z593=AB593,\"\",AC593)))","v":""},{"$f":"IF(Z593=\"\",\"\",IF(Z593=AB593,Y593,\"\"))","v":""},{"$f":"IF(Z593=\"\",\"\",IF(Z593=AB593,AC593,\"\"))","v":""},{"$f":"IF(Z593=\"\",\"\",IF(Z593<AB593,Y593,IF(Z593=AB593,\"\",AC593)))","v":""},{"$f":"IF(Z593=\"\",\"\",IF(Z593>AB593,Y591,\"\"))","v":""},{"$f":"IF(Z593=\"\",\"\",IF(Z593<AB593,AC591,\"\"))","v":""},{"$f":"CONCATENATE(AE593,AH593)","v":""}]
[null,null,null,null,null,null,null,null,null,null,null,null,null,null,null,null,null,null,null,null,null,null,null,null,null,null,"-",null,null,null,{"$f":"IF(Z594=\"\",\"\",IF(Z594>AB594,Y594,IF(Z594=AB594,\"\",AC594)))","v":""},{"$f":"IF(Z594=\"\",\"\",IF(Z594=AB594,Y594,\"\"))","v":""},{"$f":"IF(Z594=\"\",\"\",IF(Z594=AB594,AC594,\"\"))","v":""},{"$f":"IF(Z594=\"\",\"\",IF(Z594<AB594,Y594,IF(Z594=AB594,\"\",AC594)))","v":""},{"$f":"IF(Z594=\"\",\"\",IF(Z594>AB594,Y591,\"\"))","v":""},{"$f":"IF(Z594=\"\",\"\",IF(Z594<AB594,AC591,\"\"))","v":""},{"$f":"CONCATENATE(AE594,AH594)","v":""}]
[null,null,null,null,null,null,null,null,null,null,null,null,null,null,null,null,null,null,null,null,null,null,null,null,null,null,"-",null,null,null,{"$f":"IF(Z595=\"\",\"\",IF(Z595>AB595,Y595,IF(Z595=AB595,\"\",AC595)))","v":""},{"$f":"IF(Z595=\"\",\"\",IF(Z595=AB595,Y595,\"\"))","v":""},{"$f":"IF(Z595=\"\",\"\",IF(Z595=AB595,AC595,\"\"))","v":""},{"$f":"IF(Z595=\"\",\"\",IF(Z595<AB595,Y595,IF(Z595=AB595,\"\",AC595)))","v":""},{"$f":"IF(Z595=\"\",\"\",IF(Z595>AB595,Y591,\"\"))","v":""},{"$f":"IF(Z595=\"\",\"\",IF(Z595<AB595,AC591,\"\"))","v":""},{"$f":"CONCATENATE(AE595,AH595)","v":""}]
[null,null,null,null,null,null,null,null,null,null,null,null,null,null,null,null,null,null,null,null,null,null,null,{"$f":"N_Substitute","v":"Substitute"}]
[null,null,null,null,null,null,null,null,null,null,null,null,null,null,null,null,null,null,null,null,null,null,null,{"$f":"N_Substitute","v":"Substitute"}]
[null,null,null,null,null,null,null,null,null,null,null,null,null,null,null,null,null,null,null,null,"#G4",null,null,null,{"$f":"G501","v":"Eq4"},{"$f":"IF(OR(ISNUMBER(Z599),ISNUMBER(Z600),ISNUMBER(Z601),ISNUMBER(Z602)),4-COUNTBLANK(AI599:AI602),\"\")","v":""},"-",{"$f":"IF(OR(ISNUMBER(Z599),ISNUMBER(Z600),ISNUMBER(Z601),ISNUMBER(Z602)),4-COUNTBLANK(AJ599:AJ602),\"\")","v":""},{"$f":"G503","v":"Eq6"},null,{"$f":"IF(Z598=\"\",\"\",IF(Z598>AB598,Y598,IF(Z598=AB598,IF(NoDrawWithWithdraw,IF(AL598=Y598,AC598,IF(AL598=AC598,Y598,\"\")),\"\"),AC598)))","v":""},{"$f":"IF(Z598=\"\",\"\",IF(Z598=AB598,IF(NoDrawWithWithdraw,IF(AL598=Y598,\"\",IF(AL598=AC598,\"\",Y598)),Y598),\"\"))","v":""},{"$f":"IF(Z598=\"\",\"\",IF(Z598=AB598,IF(NoDrawWithWithdraw,IF(AL598=Y598,\"\",IF(AL598=AC598,\"\",AC598)),AC598),\"\"))","v":""},{"$f":"IF(Z598=\"\",\"\",IF(Z598<AB598,Y598,IF(Z598=AB598,IF(NoDrawWithWithdraw,IF(AL598=Y598,Y598,IF(AL598=AC598,AC598,\"\")),\"\"),AC598)))","v":""},{"$f":"IF(Z598=\"\",\"\",SUM(Z599:Z602))","v":""},{"$f":"IF(Z598=\"\",\"\",SUM(AB599:AB602))","v":""},{"$f":"CONCATENATE(AE598,AH598)","v":""},{"$f":"IF(COUNTIF(Y599:Y602,WithdrawLabel)>COUNTIF(AC599:AC602,WithdrawLabel),Y598,IF(COUNTIF(AC599:AC602,WithdrawLabel)>COUNTIF(Y599:Y602,WithdrawLabel),AC598,\"\"))","v":""}]
[null,null,null,null,null,null,null,null,null,null,null,null,null,null,null,null,null,null,null,null,null,null,null,null,null,null,"-",null,null,null,{"$f":"IF(Z599=\"\",\"\",IF(Z599>AB599,Y599,IF(Z599=AB599,\"\",AC599)))","v":""},{"$f":"IF(Z599=\"\",\"\",IF(Z599=AB599,Y599,\"\"))","v":""},{"$f":"IF(Z599=\"\",\"\",IF(Z599=AB599,AC599,\"\"))","v":""},{"$f":"IF(Z599=\"\",\"\",IF(Z599<AB599,Y599,IF(Z599=AB599,\"\",AC599)))","v":""},{"$f":"IF(Z599=\"\",\"\",IF(Z599>AB599,Y598,\"\"))","v":""},{"$f":"IF(Z599=\"\",\"\",IF(Z599<AB599,AC598,\"\"))","v":""},{"$f":"CONCATENATE(AE599,AH599)","v":""}]
[null,null,null,null,null,null,null,null,null,null,null,null,null,null,null,null,null,null,null,null,null,null,null,null,null,null,"-",null,null,null,{"$f":"IF(Z600=\"\",\"\",IF(Z600>AB600,Y600,IF(Z600=AB600,\"\",AC600)))","v":""},{"$f":"IF(Z600=\"\",\"\",IF(Z600=AB600,Y600,\"\"))","v":""},{"$f":"IF(Z600=\"\",\"\",IF(Z600=AB600,AC600,\"\"))","v":""},{"$f":"IF(Z600=\"\",\"\",IF(Z600<AB600,Y600,IF(Z600=AB600,\"\",AC600)))","v":""},{"$f":"IF(Z600=\"\",\"\",IF(Z600>AB600,Y598,\"\"))","v":""},{"$f":"IF(Z600=\"\",\"\",IF(Z600<AB600,AC598,\"\"))","v":""},{"$f":"CONCATENATE(AE600,AH600)","v":""}]
[null,null,null,null,null,null,null,null,null,null,null,null,null,null,null,null,null,null,null,null,null,null,null,null,null,null,"-",null,null,null,{"$f":"IF(Z601=\"\",\"\",IF(Z601>AB601,Y601,IF(Z601=AB601,\"\",AC601)))","v":""},{"$f":"IF(Z601=\"\",\"\",IF(Z601=AB601,Y601,\"\"))","v":""},{"$f":"IF(Z601=\"\",\"\",IF(Z601=AB601,AC601,\"\"))","v":""},{"$f":"IF(Z601=\"\",\"\",IF(Z601<AB601,Y601,IF(Z601=AB601,\"\",AC601)))","v":""},{"$f":"IF(Z601=\"\",\"\",IF(Z601>AB601,Y598,\"\"))","v":""},{"$f":"IF(Z601=\"\",\"\",IF(Z601<AB601,AC598,\"\"))","v":""},{"$f":"CONCATENATE(AE601,AH601)","v":""}]
[null,null,null,null,null,null,null,null,null,null,null,null,null,null,null,null,null,null,null,null,null,null,null,null,null,null,"-",null,null,null,{"$f":"IF(Z602=\"\",\"\",IF(Z602>AB602,Y602,IF(Z602=AB602,\"\",AC602)))","v":""},{"$f":"IF(Z602=\"\",\"\",IF(Z602=AB602,Y602,\"\"))","v":""},{"$f":"IF(Z602=\"\",\"\",IF(Z602=AB602,AC602,\"\"))","v":""},{"$f":"IF(Z602=\"\",\"\",IF(Z602<AB602,Y602,IF(Z602=AB602,\"\",AC602)))","v":""},{"$f":"IF(Z602=\"\",\"\",IF(Z602>AB602,Y598,\"\"))","v":""},{"$f":"IF(Z602=\"\",\"\",IF(Z602<AB602,AC598,\"\"))","v":""},{"$f":"CONCATENATE(AE602,AH602)","v":""}]
[null,null,null,null,null,null,null,null,null,null,null,null,null,null,null,null,null,null,null,null,null,null,null,{"$f":"N_Substitute","v":"Substitute"}]
[null,null,null,null,null,null,null,null,null,null,null,null,null,null,null,null,null,null,null,null,null,null,null,{"$f":"N_Substitute","v":"Substitute"}]
[null,null,null,null,null,null,null,null,null,null,null,null,null,null,null,null,null,null,null,null,"#G4",null,null,null,{"$f":"G502","v":"Eq5"},{"$f":"IF(OR(ISNUMBER(Z606),ISNUMBER(Z607),ISNUMBER(Z608),ISNUMBER(Z609)),4-COUNTBLANK(AI606:AI609),\"\")","v":""},"-",{"$f":"IF(OR(ISNUMBER(Z606),ISNUMBER(Z607),ISNUMBER(Z608),ISNUMBER(Z609)),4-COUNTBLANK(AJ606:AJ609),\"\")","v":""},{"$f":"G505","v":"Eq8"},null,{"$f":"IF(Z605=\"\",\"\",IF(Z605>AB605,Y605,IF(Z605=AB605,IF(NoDrawWithWithdraw,IF(AL605=Y605,AC605,IF(AL605=AC605,Y605,\"\")),\"\"),AC605)))","v":""},{"$f":"IF(Z605=\"\",\"\",IF(Z605=AB605,IF(NoDrawWithWithdraw,IF(AL605=Y605,\"\",IF(AL605=AC605,\"\",Y605)),Y605),\"\"))","v":""},{"$f":"IF(Z605=\"\",\"\",IF(Z605=AB605,IF(NoDrawWithWithdraw,IF(AL605=Y605,\"\",IF(AL605=AC605,\"\",AC605)),AC605),\"\"))","v":""},{"$f":"IF(Z605=\"\",\"\",IF(Z605<AB605,Y605,IF(Z605=AB605,IF(NoDrawWithWithdraw,IF(AL605=Y605,Y605,IF(AL605=AC605,AC605,\"\")),\"\"),AC605)))","v":""},{"$f":"IF(Z605=\"\",\"\",SUM(Z606:Z609))","v":""},{"$f":"IF(Z605=\"\",\"\",SUM(AB606:AB609))","v":""},{"$f":"CONCATENATE(AE605,AH605)","v":""},{"$f":"IF(COUNTIF(Y606:Y609,WithdrawLabel)>COUNTIF(AC606:AC609,WithdrawLabel),Y605,IF(COUNTIF(AC606:AC609,WithdrawLabel)>COUNTIF(Y606:Y609,WithdrawLabel),AC605,\"\"))","v":""}]
[null,null,null,null,null,null,null,null,null,null,null,null,null,null,null,null,null,null,null,null,null,null,null,null,null,null,"-",null,null,null,{"$f":"IF(Z606=\"\",\"\",IF(Z606>AB606,Y606,IF(Z606=AB606,\"\",AC606)))","v":""},{"$f":"IF(Z606=\"\",\"\",IF(Z606=AB606,Y606,\"\"))","v":""},{"$f":"IF(Z606=\"\",\"\",IF(Z606=AB606,AC606,\"\"))","v":""},{"$f":"IF(Z606=\"\",\"\",IF(Z606<AB606,Y606,IF(Z606=AB606,\"\",AC606)))","v":""},{"$f":"IF(Z606=\"\",\"\",IF(Z606>AB606,Y605,\"\"))","v":""},{"$f":"IF(Z606=\"\",\"\",IF(Z606<AB606,AC605,\"\"))","v":""},{"$f":"CONCATENATE(AE606,AH606)","v":""}]
[null,null,null,null,null,null,null,null,null,null,null,null,null,null,null,null,null,null,null,null,null,null,null,null,null,null,"-",null,null,null,{"$f":"IF(Z607=\"\",\"\",IF(Z607>AB607,Y607,IF(Z607=AB607,\"\",AC607)))","v":""},{"$f":"IF(Z607=\"\",\"\",IF(Z607=AB607,Y607,\"\"))","v":""},{"$f":"IF(Z607=\"\",\"\",IF(Z607=AB607,AC607,\"\"))","v":""},{"$f":"IF(Z607=\"\",\"\",IF(Z607<AB607,Y607,IF(Z607=AB607,\"\",AC607)))","v":""},{"$f":"IF(Z607=\"\",\"\",IF(Z607>AB607,Y605,\"\"))","v":""},{"$f":"IF(Z607=\"\",\"\",IF(Z607<AB607,AC605,\"\"))","v":""},{"$f":"CONCATENATE(AE607,AH607)","v":""}]
[null,null,null,null,null,null,null,null,null,null,null,null,null,null,null,null,null,null,null,null,null,null,null,null,null,null,"-",null,null,null,{"$f":"IF(Z608=\"\",\"\",IF(Z608>AB608,Y608,IF(Z608=AB608,\"\",AC608)))","v":""},{"$f":"IF(Z608=\"\",\"\",IF(Z608=AB608,Y608,\"\"))","v":""},{"$f":"IF(Z608=\"\",\"\",IF(Z608=AB608,AC608,\"\"))","v":""},{"$f":"IF(Z608=\"\",\"\",IF(Z608<AB608,Y608,IF(Z608=AB608,\"\",AC608)))","v":""},{"$f":"IF(Z608=\"\",\"\",IF(Z608>AB608,Y605,\"\"))","v":""},{"$f":"IF(Z608=\"\",\"\",IF(Z608<AB608,AC605,\"\"))","v":""},{"$f":"CONCATENATE(AE608,AH608)","v":""}]
[null,null,null,null,null,null,null,null,null,null,null,null,null,null,null,null,null,null,null,null,null,null,null,null,null,null,"-",null,null,null,{"$f":"IF(Z609=\"\",\"\",IF(Z609>AB609,Y609,IF(Z609=AB609,\"\",AC609)))","v":""},{"$f":"IF(Z609=\"\",\"\",IF(Z609=AB609,Y609,\"\"))","v":""},{"$f":"IF(Z609=\"\",\"\",IF(Z609=AB609,AC609,\"\"))","v":""},{"$f":"IF(Z609=\"\",\"\",IF(Z609<AB609,Y609,IF(Z609=AB609,\"\",AC609)))","v":""},{"$f":"IF(Z609=\"\",\"\",IF(Z609>AB609,Y605,\"\"))","v":""},{"$f":"IF(Z609=\"\",\"\",IF(Z609<AB609,AC605,\"\"))","v":""},{"$f":"CONCATENATE(AE609,AH609)","v":""}]
[null,null,null,null,null,null,null,null,null,null,null,null,null,null,null,null,null,null,null,null,null,null,null,{"$f":"N_Substitute","v":"Substitute"}]
[null,null,null,null,null,null,null,null,null,null,null,null,null,null,null,null,null,null,null,null,null,null,null,{"$f":"N_Substitute","v":"Substitute"}]
[null,null,null,null,null,null,null,null,null,null,null,null,null,null,null,null,null,null,null,null,"#G4",null,null,null,{"$f":"G504","v":"Eq7"},{"$f":"IF(OR(ISNUMBER(Z613),ISNUMBER(Z614),ISNUMBER(Z615),ISNUMBER(Z616)),4-COUNTBLANK(AI613:AI616),\"\")","v":""},"-",{"$f":"IF(OR(ISNUMBER(Z613),ISNUMBER(Z614),ISNUMBER(Z615),ISNUMBER(Z616)),4-COUNTBLANK(AJ613:AJ616),\"\")","v":""},{"$f":"G500","v":"Eq3"},null,{"$f":"IF(Z612=\"\",\"\",IF(Z612>AB612,Y612,IF(Z612=AB612,IF(NoDrawWithWithdraw,IF(AL612=Y612,AC612,IF(AL612=AC612,Y612,\"\")),\"\"),AC612)))","v":""},{"$f":"IF(Z612=\"\",\"\",IF(Z612=AB612,IF(NoDrawWithWithdraw,IF(AL612=Y612,\"\",IF(AL612=AC612,\"\",Y612)),Y612),\"\"))","v":""},{"$f":"IF(Z612=\"\",\"\",IF(Z612=AB612,IF(NoDrawWithWithdraw,IF(AL612=Y612,\"\",IF(AL612=AC612,\"\",AC612)),AC612),\"\"))","v":""},{"$f":"IF(Z612=\"\",\"\",IF(Z612<AB612,Y612,IF(Z612=AB612,IF(NoDrawWithWithdraw,IF(AL612=Y612,Y612,IF(AL612=AC612,AC612,\"\")),\"\"),AC612)))","v":""},{"$f":"IF(Z612=\"\",\"\",SUM(Z613:Z616))","v":""},{"$f":"IF(Z612=\"\",\"\",SUM(AB613:AB616))","v":""},{"$f":"CONCATENATE(AE612,AH612)","v":""},{"$f":"IF(COUNTIF(Y613:Y616,WithdrawLabel)>COUNTIF(AC613:AC616,WithdrawLabel),Y612,IF(COUNTIF(AC613:AC616,WithdrawLabel)>COUNTIF(Y613:Y616,WithdrawLabel),AC612,\"\"))","v":""}]
[null,null,null,null,null,null,null,null,null,null,null,null,null,null,null,null,null,null,null,null,null,null,null,null,null,null,"-",null,null,null,{"$f":"IF(Z613=\"\",\"\",IF(Z613>AB613,Y613,IF(Z613=AB613,\"\",AC613)))","v":""},{"$f":"IF(Z613=\"\",\"\",IF(Z613=AB613,Y613,\"\"))","v":""},{"$f":"IF(Z613=\"\",\"\",IF(Z613=AB613,AC613,\"\"))","v":""},{"$f":"IF(Z613=\"\",\"\",IF(Z613<AB613,Y613,IF(Z613=AB613,\"\",AC613)))","v":""},{"$f":"IF(Z613=\"\",\"\",IF(Z613>AB613,Y612,\"\"))","v":""},{"$f":"IF(Z613=\"\",\"\",IF(Z613<AB613,AC612,\"\"))","v":""},{"$f":"CONCATENATE(AE613,AH613)","v":""}]
[null,null,null,null,null,null,null,null,null,null,null,null,null,null,null,null,null,null,null,null,null,null,null,null,null,null,"-",null,null,null,{"$f":"IF(Z614=\"\",\"\",IF(Z614>AB614,Y614,IF(Z614=AB614,\"\",AC614)))","v":""},{"$f":"IF(Z614=\"\",\"\",IF(Z614=AB614,Y614,\"\"))","v":""},{"$f":"IF(Z614=\"\",\"\",IF(Z614=AB614,AC614,\"\"))","v":""},{"$f":"IF(Z614=\"\",\"\",IF(Z614<AB614,Y614,IF(Z614=AB614,\"\",AC614)))","v":""},{"$f":"IF(Z614=\"\",\"\",IF(Z614>AB614,Y612,\"\"))","v":""},{"$f":"IF(Z614=\"\",\"\",IF(Z614<AB614,AC612,\"\"))","v":""},{"$f":"CONCATENATE(AE614,AH614)","v":""}]
[null,null,null,null,null,null,null,null,null,null,null,null,null,null,null,null,null,null,null,null,null,null,null,null,null,null,"-",null,null,null,{"$f":"IF(Z615=\"\",\"\",IF(Z615>AB615,Y615,IF(Z615=AB615,\"\",AC615)))","v":""},{"$f":"IF(Z615=\"\",\"\",IF(Z615=AB615,Y615,\"\"))","v":""},{"$f":"IF(Z615=\"\",\"\",IF(Z615=AB615,AC615,\"\"))","v":""},{"$f":"IF(Z615=\"\",\"\",IF(Z615<AB615,Y615,IF(Z615=AB615,\"\",AC615)))","v":""},{"$f":"IF(Z615=\"\",\"\",IF(Z615>AB615,Y612,\"\"))","v":""},{"$f":"IF(Z615=\"\",\"\",IF(Z615<AB615,AC612,\"\"))","v":""},{"$f":"CONCATENATE(AE615,AH615)","v":""}]
[null,null,null,null,null,null,null,null,null,null,null,null,null,null,null,null,null,null,null,null,null,null,null,null,null,null,"-",null,null,null,{"$f":"IF(Z616=\"\",\"\",IF(Z616>AB616,Y616,IF(Z616=AB616,\"\",AC616)))","v":""},{"$f":"IF(Z616=\"\",\"\",IF(Z616=AB616,Y616,\"\"))","v":""},{"$f":"IF(Z616=\"\",\"\",IF(Z616=AB616,AC616,\"\"))","v":""},{"$f":"IF(Z616=\"\",\"\",IF(Z616<AB616,Y616,IF(Z616=AB616,\"\",AC616)))","v":""},{"$f":"IF(Z616=\"\",\"\",IF(Z616>AB616,Y612,\"\"))","v":""},{"$f":"IF(Z616=\"\",\"\",IF(Z616<AB616,AC612,\"\"))","v":""},{"$f":"CONCATENATE(AE616,AH616)","v":""}]
[null,null,null,null,null,null,null,null,null,null,null,null,null,null,null,null,null,null,null,null,null,null,null,{"$f":"N_Substitute","v":"Substitute"}]
[null,null,null,null,null,null,null,null,null,null,null,null,null,null,null,null,null,null,null,null,null,null,null,{"$f":"N_Substitute","v":"Substitute"}]
[null,null,null,null,null,null,null,null,null,null,null,null,null,null,null,null,null,null,null,null,"#G5",null,null,null,{"$f":"G498","v":"Eq1"},{"$f":"IF(OR(ISNUMBER(Z620),ISNUMBER(Z621),ISNUMBER(Z622),ISNUMBER(Z623)),4-COUNTBLANK(AI620:AI623),\"\")","v":""},"-",{"$f":"IF(OR(ISNUMBER(Z620),ISNUMBER(Z621),ISNUMBER(Z622),ISNUMBER(Z623)),4-COUNTBLANK(AJ620:AJ623),\"\")","v":""},{"$f":"G501","v":"Eq4"},null,{"$f":"IF(Z619=\"\",\"\",IF(Z619>AB619,Y619,IF(Z619=AB619,IF(NoDrawWithWithdraw,IF(AL619=Y619,AC619,IF(AL619=AC619,Y619,\"\")),\"\"),AC619)))","v":""},{"$f":"IF(Z619=\"\",\"\",IF(Z619=AB619,IF(NoDrawWithWithdraw,IF(AL619=Y619,\"\",IF(AL619=AC619,\"\",Y619)),Y619),\"\"))","v":""},{"$f":"IF(Z619=\"\",\"\",IF(Z619=AB619,IF(NoDrawWithWithdraw,IF(AL619=Y619,\"\",IF(AL619=AC619,\"\",AC619)),AC619),\"\"))","v":""},{"$f":"IF(Z619=\"\",\"\",IF(Z619<AB619,Y619,IF(Z619=AB619,IF(NoDrawWithWithdraw,IF(AL619=Y619,Y619,IF(AL619=AC619,AC619,\"\")),\"\"),AC619)))","v":""},{"$f":"IF(Z619=\"\",\"\",SUM(Z620:Z623))","v":""},{"$f":"IF(Z619=\"\",\"\",SUM(AB620:AB623))","v":""},{"$f":"CONCATENATE(AE619,AH619)","v":""},{"$f":"IF(COUNTIF(Y620:Y623,WithdrawLabel)>COUNTIF(AC620:AC623,WithdrawLabel),Y619,IF(COUNTIF(AC620:AC623,WithdrawLabel)>COUNTIF(Y620:Y623,WithdrawLabel),AC619,\"\"))","v":""}]
[null,null,null,null,null,null,null,null,null,null,null,null,null,null,null,null,null,null,null,null,null,null,null,null,null,null,"-",null,null,null,{"$f":"IF(Z620=\"\",\"\",IF(Z620>AB620,Y620,IF(Z620=AB620,\"\",AC620)))","v":""},{"$f":"IF(Z620=\"\",\"\",IF(Z620=AB620,Y620,\"\"))","v":""},{"$f":"IF(Z620=\"\",\"\",IF(Z620=AB620,AC620,\"\"))","v":""},{"$f":"IF(Z620=\"\",\"\",IF(Z620<AB620,Y620,IF(Z620=AB620,\"\",AC620)))","v":""},{"$f":"IF(Z620=\"\",\"\",IF(Z620>AB620,Y619,\"\"))","v":""},{"$f":"IF(Z620=\"\",\"\",IF(Z620<AB620,AC619,\"\"))","v":""},{"$f":"CONCATENATE(AE620,AH620)","v":""}]
[null,null,null,null,null,null,null,null,null,null,null,null,null,null,null,null,null,null,null,null,null,null,null,null,null,null,"-",null,null,null,{"$f":"IF(Z621=\"\",\"\",IF(Z621>AB621,Y621,IF(Z621=AB621,\"\",AC621)))","v":""},{"$f":"IF(Z621=\"\",\"\",IF(Z621=AB621,Y621,\"\"))","v":""},{"$f":"IF(Z621=\"\",\"\",IF(Z621=AB621,AC621,\"\"))","v":""},{"$f":"IF(Z621=\"\",\"\",IF(Z621<AB621,Y621,IF(Z621=AB621,\"\",AC621)))","v":""},{"$f":"IF(Z621=\"\",\"\",IF(Z621>AB621,Y619,\"\"))","v":""},{"$f":"IF(Z621=\"\",\"\",IF(Z621<AB621,AC619,\"\"))","v":""},{"$f":"CONCATENATE(AE621,AH621)","v":""}]
[null,null,null,null,null,null,null,null,null,null,null,null,null,null,null,null,null,null,null,null,null,null,null,null,null,null,"-",null,null,null,{"$f":"IF(Z622=\"\",\"\",IF(Z622>AB622,Y622,IF(Z622=AB622,\"\",AC622)))","v":""},{"$f":"IF(Z622=\"\",\"\",IF(Z622=AB622,Y622,\"\"))","v":""},{"$f":"IF(Z622=\"\",\"\",IF(Z622=AB622,AC622,\"\"))","v":""},{"$f":"IF(Z622=\"\",\"\",IF(Z622<AB622,Y622,IF(Z622=AB622,\"\",AC622)))","v":""},{"$f":"IF(Z622=\"\",\"\",IF(Z622>AB622,Y619,\"\"))","v":""},{"$f":"IF(Z622=\"\",\"\",IF(Z622<AB622,AC619,\"\"))","v":""},{"$f":"CONCATENATE(AE622,AH622)","v":""}]
[null,null,null,null,null,null,null,null,null,null,null,null,null,null,null,null,null,null,null,null,null,null,null,null,null,null,"-",null,null,null,{"$f":"IF(Z623=\"\",\"\",IF(Z623>AB623,Y623,IF(Z623=AB623,\"\",AC623)))","v":""},{"$f":"IF(Z623=\"\",\"\",IF(Z623=AB623,Y623,\"\"))","v":""},{"$f":"IF(Z623=\"\",\"\",IF(Z623=AB623,AC623,\"\"))","v":""},{"$f":"IF(Z623=\"\",\"\",IF(Z623<AB623,Y623,IF(Z623=AB623,\"\",AC623)))","v":""},{"$f":"IF(Z623=\"\",\"\",IF(Z623>AB623,Y619,\"\"))","v":""},{"$f":"IF(Z623=\"\",\"\",IF(Z623<AB623,AC619,\"\"))","v":""},{"$f":"CONCATENATE(AE623,AH623)","v":""}]
[null,null,null,null,null,null,null,null,null,null,null,null,null,null,null,null,null,null,null,null,null,null,null,{"$f":"N_Substitute","v":"Substitute"}]
[null,null,null,null,null,null,null,null,null,null,null,null,null,null,null,null,null,null,null,null,null,null,null,{"$f":"N_Substitute","v":"Substitute"}]
[null,null,null,null,null,null,null,null,null,null,null,null,null,null,null,null,null,null,null,null,"#G5",null,null,null,{"$f":"G499","v":"Eq2"},{"$f":"IF(OR(ISNUMBER(Z627),ISNUMBER(Z628),ISNUMBER(Z629),ISNUMBER(Z630)),4-COUNTBLANK(AI627:AI630),\"\")","v":""},"-",{"$f":"IF(OR(ISNUMBER(Z627),ISNUMBER(Z628),ISNUMBER(Z629),ISNUMBER(Z630)),4-COUNTBLANK(AJ627:AJ630),\"\")","v":""},{"$f":"G500","v":"Eq3"},null,{"$f":"IF(Z626=\"\",\"\",IF(Z626>AB626,Y626,IF(Z626=AB626,IF(NoDrawWithWithdraw,IF(AL626=Y626,AC626,IF(AL626=AC626,Y626,\"\")),\"\"),AC626)))","v":""},{"$f":"IF(Z626=\"\",\"\",IF(Z626=AB626,IF(NoDrawWithWithdraw,IF(AL626=Y626,\"\",IF(AL626=AC626,\"\",Y626)),Y626),\"\"))","v":""},{"$f":"IF(Z626=\"\",\"\",IF(Z626=AB626,IF(NoDrawWithWithdraw,IF(AL626=Y626,\"\",IF(AL626=AC626,\"\",AC626)),AC626),\"\"))","v":""},{"$f":"IF(Z626=\"\",\"\",IF(Z626<AB626,Y626,IF(Z626=AB626,IF(NoDrawWithWithdraw,IF(AL626=Y626,Y626,IF(AL626=AC626,AC626,\"\")),\"\"),AC626)))","v":""},{"$f":"IF(Z626=\"\",\"\",SUM(Z627:Z630))","v":""},{"$f":"IF(Z626=\"\",\"\",SUM(AB627:AB630))","v":""},{"$f":"CONCATENATE(AE626,AH626)","v":""},{"$f":"IF(COUNTIF(Y627:Y630,WithdrawLabel)>COUNTIF(AC627:AC630,WithdrawLabel),Y626,IF(COUNTIF(AC627:AC630,WithdrawLabel)>COUNTIF(Y627:Y630,WithdrawLabel),AC626,\"\"))","v":""}]
[null,null,null,null,null,null,null,null,null,null,null,null,null,null,null,null,null,null,null,null,null,null,null,null,null,null,"-",null,null,null,{"$f":"IF(Z627=\"\",\"\",IF(Z627>AB627,Y627,IF(Z627=AB627,\"\",AC627)))","v":""},{"$f":"IF(Z627=\"\",\"\",IF(Z627=AB627,Y627,\"\"))","v":""},{"$f":"IF(Z627=\"\",\"\",IF(Z627=AB627,AC627,\"\"))","v":""},{"$f":"IF(Z627=\"\",\"\",IF(Z627<AB627,Y627,IF(Z627=AB627,\"\",AC627)))","v":""},{"$f":"IF(Z627=\"\",\"\",IF(Z627>AB627,Y626,\"\"))","v":""},{"$f":"IF(Z627=\"\",\"\",IF(Z627<AB627,AC626,\"\"))","v":""},{"$f":"CONCATENATE(AE627,AH627)","v":""}]
[null,null,null,null,null,null,null,null,null,null,null,null,null,null,null,null,null,null,null,null,null,null,null,null,null,null,"-",null,null,null,{"$f":"IF(Z628=\"\",\"\",IF(Z628>AB628,Y628,IF(Z628=AB628,\"\",AC628)))","v":""},{"$f":"IF(Z628=\"\",\"\",IF(Z628=AB628,Y628,\"\"))","v":""},{"$f":"IF(Z628=\"\",\"\",IF(Z628=AB628,AC628,\"\"))","v":""},{"$f":"IF(Z628=\"\",\"\",IF(Z628<AB628,Y628,IF(Z628=AB628,\"\",AC628)))","v":""},{"$f":"IF(Z628=\"\",\"\",IF(Z628>AB628,Y626,\"\"))","v":""},{"$f":"IF(Z628=\"\",\"\",IF(Z628<AB628,AC626,\"\"))","v":""},{"$f":"CONCATENATE(AE628,AH628)","v":""}]
[null,null,null,null,null,null,null,null,null,null,null,null,null,null,null,null,null,null,null,null,null,null,null,null,null,null,"-",null,null,null,{"$f":"IF(Z629=\"\",\"\",IF(Z629>AB629,Y629,IF(Z629=AB629,\"\",AC629)))","v":""},{"$f":"IF(Z629=\"\",\"\",IF(Z629=AB629,Y629,\"\"))","v":""},{"$f":"IF(Z629=\"\",\"\",IF(Z629=AB629,AC629,\"\"))","v":""},{"$f":"IF(Z629=\"\",\"\",IF(Z629<AB629,Y629,IF(Z629=AB629,\"\",AC629)))","v":""},{"$f":"IF(Z629=\"\",\"\",IF(Z629>AB629,Y626,\"\"))","v":""},{"$f":"IF(Z629=\"\",\"\",IF(Z629<AB629,AC626,\"\"))","v":""},{"$f":"CONCATENATE(AE629,AH629)","v":""}]
[null,null,null,null,null,null,null,null,null,null,null,null,null,null,null,null,null,null,null,null,null,null,null,null,null,null,"-",null,null,null,{"$f":"IF(Z630=\"\",\"\",IF(Z630>AB630,Y630,IF(Z630=AB630,\"\",AC630)))","v":""},{"$f":"IF(Z630=\"\",\"\",IF(Z630=AB630,Y630,\"\"))","v":""},{"$f":"IF(Z630=\"\",\"\",IF(Z630=AB630,AC630,\"\"))","v":""},{"$f":"IF(Z630=\"\",\"\",IF(Z630<AB630,Y630,IF(Z630=AB630,\"\",AC630)))","v":""},{"$f":"IF(Z630=\"\",\"\",IF(Z630>AB630,Y626,\"\"))","v":""},{"$f":"IF(Z630=\"\",\"\",IF(Z630<AB630,AC626,\"\"))","v":""},{"$f":"CONCATENATE(AE630,AH630)","v":""}]
[null,null,null,null,null,null,null,null,null,null,null,null,null,null,null,null,null,null,null,null,null,null,null,{"$f":"N_Substitute","v":"Substitute"}]
[null,null,null,null,null,null,null,null,null,null,null,null,null,null,null,null,null,null,null,null,null,null,null,{"$f":"N_Substitute","v":"Substitute"}]
[null,null,null,null,null,null,null,null,null,null,null,null,null,null,null,null,null,null,null,null,"#G5",null,null,null,{"$f":"G502","v":"Eq5"},{"$f":"IF(OR(ISNUMBER(Z634),ISNUMBER(Z635),ISNUMBER(Z636),ISNUMBER(Z637)),4-COUNTBLANK(AI634:AI637),\"\")","v":""},"-",{"$f":"IF(OR(ISNUMBER(Z634),ISNUMBER(Z635),ISNUMBER(Z636),ISNUMBER(Z637)),4-COUNTBLANK(AJ634:AJ637),\"\")","v":""},{"$f":"G504","v":"Eq7"},null,{"$f":"IF(Z633=\"\",\"\",IF(Z633>AB633,Y633,IF(Z633=AB633,IF(NoDrawWithWithdraw,IF(AL633=Y633,AC633,IF(AL633=AC633,Y633,\"\")),\"\"),AC633)))","v":""},{"$f":"IF(Z633=\"\",\"\",IF(Z633=AB633,IF(NoDrawWithWithdraw,IF(AL633=Y633,\"\",IF(AL633=AC633,\"\",Y633)),Y633),\"\"))","v":""},{"$f":"IF(Z633=\"\",\"\",IF(Z633=AB633,IF(NoDrawWithWithdraw,IF(AL633=Y633,\"\",IF(AL633=AC633,\"\",AC633)),AC633),\"\"))","v":""},{"$f":"IF(Z633=\"\",\"\",IF(Z633<AB633,Y633,IF(Z633=AB633,IF(NoDrawWithWithdraw,IF(AL633=Y633,Y633,IF(AL633=AC633,AC633,\"\")),\"\"),AC633)))","v":""},{"$f":"IF(Z633=\"\",\"\",SUM(Z634:Z637))","v":""},{"$f":"IF(Z633=\"\",\"\",SUM(AB634:AB637))","v":""},{"$f":"CONCATENATE(AE633,AH633)","v":""},{"$f":"IF(COUNTIF(Y634:Y637,WithdrawLabel)>COUNTIF(AC634:AC637,WithdrawLabel),Y633,IF(COUNTIF(AC634:AC637,WithdrawLabel)>COUNTIF(Y634:Y637,WithdrawLabel),AC633,\"\"))","v":""}]
[null,null,null,null,null,null,null,null,null,null,null,null,null,null,null,null,null,null,null,null,null,null,null,null,null,null,"-",null,null,null,{"$f":"IF(Z634=\"\",\"\",IF(Z634>AB634,Y634,IF(Z634=AB634,\"\",AC634)))","v":""},{"$f":"IF(Z634=\"\",\"\",IF(Z634=AB634,Y634,\"\"))","v":""},{"$f":"IF(Z634=\"\",\"\",IF(Z634=AB634,AC634,\"\"))","v":""},{"$f":"IF(Z634=\"\",\"\",IF(Z634<AB634,Y634,IF(Z634=AB634,\"\",AC634)))","v":""},{"$f":"IF(Z634=\"\",\"\",IF(Z634>AB634,Y633,\"\"))","v":""},{"$f":"IF(Z634=\"\",\"\",IF(Z634<AB634,AC633,\"\"))","v":""},{"$f":"CONCATENATE(AE634,AH634)","v":""}]
[null,null,null,null,null,null,null,null,null,null,null,null,null,null,null,null,null,null,null,null,null,null,null,null,null,null,"-",null,null,null,{"$f":"IF(Z635=\"\",\"\",IF(Z635>AB635,Y635,IF(Z635=AB635,\"\",AC635)))","v":""},{"$f":"IF(Z635=\"\",\"\",IF(Z635=AB635,Y635,\"\"))","v":""},{"$f":"IF(Z635=\"\",\"\",IF(Z635=AB635,AC635,\"\"))","v":""},{"$f":"IF(Z635=\"\",\"\",IF(Z635<AB635,Y635,IF(Z635=AB635,\"\",AC635)))","v":""},{"$f":"IF(Z635=\"\",\"\",IF(Z635>AB635,Y633,\"\"))","v":""},{"$f":"IF(Z635=\"\",\"\",IF(Z635<AB635,AC633,\"\"))","v":""},{"$f":"CONCATENATE(AE635,AH635)","v":""}]
[null,null,null,null,null,null,null,null,null,null,null,null,null,null,null,null,null,null,null,null,null,null,null,null,null,null,"-",null,null,null,{"$f":"IF(Z636=\"\",\"\",IF(Z636>AB636,Y636,IF(Z636=AB636,\"\",AC636)))","v":""},{"$f":"IF(Z636=\"\",\"\",IF(Z636=AB636,Y636,\"\"))","v":""},{"$f":"IF(Z636=\"\",\"\",IF(Z636=AB636,AC636,\"\"))","v":""},{"$f":"IF(Z636=\"\",\"\",IF(Z636<AB636,Y636,IF(Z636=AB636,\"\",AC636)))","v":""},{"$f":"IF(Z636=\"\",\"\",IF(Z636>AB636,Y633,\"\"))","v":""},{"$f":"IF(Z636=\"\",\"\",IF(Z636<AB636,AC633,\"\"))","v":""},{"$f":"CONCATENATE(AE636,AH636)","v":""}]
[null,null,null,null,null,null,null,null,null,null,null,null,null,null,null,null,null,null,null,null,null,null,null,null,null,null,"-",null,null,null,{"$f":"IF(Z637=\"\",\"\",IF(Z637>AB637,Y637,IF(Z637=AB637,\"\",AC637)))","v":""},{"$f":"IF(Z637=\"\",\"\",IF(Z637=AB637,Y637,\"\"))","v":""},{"$f":"IF(Z637=\"\",\"\",IF(Z637=AB637,AC637,\"\"))","v":""},{"$f":"IF(Z637=\"\",\"\",IF(Z637<AB637,Y637,IF(Z637=AB637,\"\",AC637)))","v":""},{"$f":"IF(Z637=\"\",\"\",IF(Z637>AB637,Y633,\"\"))","v":""},{"$f":"IF(Z637=\"\",\"\",IF(Z637<AB637,AC633,\"\"))","v":""},{"$f":"CONCATENATE(AE637,AH637)","v":""}]
[null,null,null,null,null,null,null,null,null,null,null,null,null,null,null,null,null,null,null,null,null,null,null,{"$f":"N_Substitute","v":"Substitute"}]
[null,null,null,null,null,null,null,null,null,null,null,null,null,null,null,null,null,null,null,null,null,null,null,{"$f":"N_Substitute","v":"Substitute"}]
[null,null,null,null,null,null,null,null,null,null,null,null,null,null,null,null,null,null,null,null,"#G5",null,null,null,{"$f":"G505","v":"Eq8"},{"$f":"IF(OR(ISNUMBER(Z641),ISNUMBER(Z642),ISNUMBER(Z643),ISNUMBER(Z644)),4-COUNTBLANK(AI641:AI644),\"\")","v":""},"-",{"$f":"IF(OR(ISNUMBER(Z641),ISNUMBER(Z642),ISNUMBER(Z643),ISNUMBER(Z644)),4-COUNTBLANK(AJ641:AJ644),\"\")","v":""},{"$f":"G503","v":"Eq6"},null,{"$f":"IF(Z640=\"\",\"\",IF(Z640>AB640,Y640,IF(Z640=AB640,IF(NoDrawWithWithdraw,IF(AL640=Y640,AC640,IF(AL640=AC640,Y640,\"\")),\"\"),AC640)))","v":""},{"$f":"IF(Z640=\"\",\"\",IF(Z640=AB640,IF(NoDrawWithWithdraw,IF(AL640=Y640,\"\",IF(AL640=AC640,\"\",Y640)),Y640),\"\"))","v":""},{"$f":"IF(Z640=\"\",\"\",IF(Z640=AB640,IF(NoDrawWithWithdraw,IF(AL640=Y640,\"\",IF(AL640=AC640,\"\",AC640)),AC640),\"\"))","v":""},{"$f":"IF(Z640=\"\",\"\",IF(Z640<AB640,Y640,IF(Z640=AB640,IF(NoDrawWithWithdraw,IF(AL640=Y640,Y640,IF(AL640=AC640,AC640,\"\")),\"\"),AC640)))","v":""},{"$f":"IF(Z640=\"\",\"\",SUM(Z641:Z644))","v":""},{"$f":"IF(Z640=\"\",\"\",SUM(AB641:AB644))","v":""},{"$f":"CONCATENATE(AE640,AH640)","v":""},{"$f":"IF(COUNTIF(Y641:Y644,WithdrawLabel)>COUNTIF(AC641:AC644,WithdrawLabel),Y640,IF(COUNTIF(AC641:AC644,WithdrawLabel)>COUNTIF(Y641:Y644,WithdrawLabel),AC640,\"\"))","v":""}]
[null,null,null,null,null,null,null,null,null,null,null,null,null,null,null,null,null,null,null,null,null,null,null,null,null,null,"-",null,null,null,{"$f":"IF(Z641=\"\",\"\",IF(Z641>AB641,Y641,IF(Z641=AB641,\"\",AC641)))","v":""},{"$f":"IF(Z641=\"\",\"\",IF(Z641=AB641,Y641,\"\"))","v":""},{"$f":"IF(Z641=\"\",\"\",IF(Z641=AB641,AC641,\"\"))","v":""},{"$f":"IF(Z641=\"\",\"\",IF(Z641<AB641,Y641,IF(Z641=AB641,\"\",AC641)))","v":""},{"$f":"IF(Z641=\"\",\"\",IF(Z641>AB641,Y640,\"\"))","v":""},{"$f":"IF(Z641=\"\",\"\",IF(Z641<AB641,AC640,\"\"))","v":""},{"$f":"CONCATENATE(AE641,AH641)","v":""}]
[null,null,null,null,null,null,null,null,null,null,null,null,null,null,null,null,null,null,null,null,null,null,null,null,null,null,"-",null,null,null,{"$f":"IF(Z642=\"\",\"\",IF(Z642>AB642,Y642,IF(Z642=AB642,\"\",AC642)))","v":""},{"$f":"IF(Z642=\"\",\"\",IF(Z642=AB642,Y642,\"\"))","v":""},{"$f":"IF(Z642=\"\",\"\",IF(Z642=AB642,AC642,\"\"))","v":""},{"$f":"IF(Z642=\"\",\"\",IF(Z642<AB642,Y642,IF(Z642=AB642,\"\",AC642)))","v":""},{"$f":"IF(Z642=\"\",\"\",IF(Z642>AB642,Y640,\"\"))","v":""},{"$f":"IF(Z642=\"\",\"\",IF(Z642<AB642,AC640,\"\"))","v":""},{"$f":"CONCATENATE(AE642,AH642)","v":""}]
[null,null,null,null,null,null,null,null,null,null,null,null,null,null,null,null,null,null,null,null,null,null,null,null,null,null,"-",null,null,null,{"$f":"IF(Z643=\"\",\"\",IF(Z643>AB643,Y643,IF(Z643=AB643,\"\",AC643)))","v":""},{"$f":"IF(Z643=\"\",\"\",IF(Z643=AB643,Y643,\"\"))","v":""},{"$f":"IF(Z643=\"\",\"\",IF(Z643=AB643,AC643,\"\"))","v":""},{"$f":"IF(Z643=\"\",\"\",IF(Z643<AB643,Y643,IF(Z643=AB643,\"\",AC643)))","v":""},{"$f":"IF(Z643=\"\",\"\",IF(Z643>AB643,Y640,\"\"))","v":""},{"$f":"IF(Z643=\"\",\"\",IF(Z643<AB643,AC640,\"\"))","v":""},{"$f":"CONCATENATE(AE643,AH643)","v":""}]
[null,null,null,null,null,null,null,null,null,null,null,null,null,null,null,null,null,null,null,null,null,null,null,null,null,null,"-",null,null,null,{"$f":"IF(Z644=\"\",\"\",IF(Z644>AB644,Y644,IF(Z644=AB644,\"\",AC644)))","v":""},{"$f":"IF(Z644=\"\",\"\",IF(Z644=AB644,Y644,\"\"))","v":""},{"$f":"IF(Z644=\"\",\"\",IF(Z644=AB644,AC644,\"\"))","v":""},{"$f":"IF(Z644=\"\",\"\",IF(Z644<AB644,Y644,IF(Z644=AB644,\"\",AC644)))","v":""},{"$f":"IF(Z644=\"\",\"\",IF(Z644>AB644,Y640,\"\"))","v":""},{"$f":"IF(Z644=\"\",\"\",IF(Z644<AB644,AC640,\"\"))","v":""},{"$f":"CONCATENATE(AE644,AH644)","v":""}]
[null,null,null,null,null,null,null,null,null,null,null,null,null,null,null,null,null,null,null,null,null,null,null,{"$f":"N_Substitute","v":"Substitute"}]
[null,null,null,null,null,null,null,null,null,null,null,null,null,null,null,null,null,null,null,null,null,null,null,{"$f":"N_Substitute","v":"Substitute"}]
[null,null,null,null,null,null,null,null,null,null,null,null,null,null,null,null,null,null,null,null,"#G6",null,null,null,{"$f":"G500","v":"Eq3"},{"$f":"IF(OR(ISNUMBER(Z648),ISNUMBER(Z649),ISNUMBER(Z650),ISNUMBER(Z651)),4-COUNTBLANK(AI648:AI651),\"\")","v":""},"-",{"$f":"IF(OR(ISNUMBER(Z648),ISNUMBER(Z649),ISNUMBER(Z650),ISNUMBER(Z651)),4-COUNTBLANK(AJ648:AJ651),\"\")","v":""},{"$f":"G501","v":"Eq4"},null,{"$f":"IF(Z647=\"\",\"\",IF(Z647>AB647,Y647,IF(Z647=AB647,IF(NoDrawWithWithdraw,IF(AL647=Y647,AC647,IF(AL647=AC647,Y647,\"\")),\"\"),AC647)))","v":""},{"$f":"IF(Z647=\"\",\"\",IF(Z647=AB647,IF(NoDrawWithWithdraw,IF(AL647=Y647,\"\",IF(AL647=AC647,\"\",Y647)),Y647),\"\"))","v":""},{"$f":"IF(Z647=\"\",\"\",IF(Z647=AB647,IF(NoDrawWithWithdraw,IF(AL647=Y647,\"\",IF(AL647=AC647,\"\",AC647)),AC647),\"\"))","v":""},{"$f":"IF(Z647=\"\",\"\",IF(Z647<AB647,Y647,IF(Z647=AB647,IF(NoDrawWithWithdraw,IF(AL647=Y647,Y647,IF(AL647=AC647,AC647,\"\")),\"\"),AC647)))","v":""},{"$f":"IF(Z647=\"\",\"\",SUM(Z648:Z651))","v":""},{"$f":"IF(Z647=\"\",\"\",SUM(AB648:AB651))","v":""},{"$f":"CONCATENATE(AE647,AH647)","v":""},{"$f":"IF(COUNTIF(Y648:Y651,WithdrawLabel)>COUNTIF(AC648:AC651,WithdrawLabel),Y647,IF(COUNTIF(AC648:AC651,WithdrawLabel)>COUNTIF(Y648:Y651,WithdrawLabel),AC647,\"\"))","v":""}]
[null,null,null,null,null,null,null,null,null,null,null,null,null,null,null,null,null,null,null,null,null,null,null,null,null,null,"-",null,null,null,{"$f":"IF(Z648=\"\",\"\",IF(Z648>AB648,Y648,IF(Z648=AB648,\"\",AC648)))","v":""},{"$f":"IF(Z648=\"\",\"\",IF(Z648=AB648,Y648,\"\"))","v":""},{"$f":"IF(Z648=\"\",\"\",IF(Z648=AB648,AC648,\"\"))","v":""},{"$f":"IF(Z648=\"\",\"\",IF(Z648<AB648,Y648,IF(Z648=AB648,\"\",AC648)))","v":""},{"$f":"IF(Z648=\"\",\"\",IF(Z648>AB648,Y647,\"\"))","v":""},{"$f":"IF(Z648=\"\",\"\",IF(Z648<AB648,AC647,\"\"))","v":""},{"$f":"CONCATENATE(AE648,AH648)","v":""}]
[null,null,null,null,null,null,null,null,null,null,null,null,null,null,null,null,null,null,null,null,null,null,null,null,null,null,"-",null,null,null,{"$f":"IF(Z649=\"\",\"\",IF(Z649>AB649,Y649,IF(Z649=AB649,\"\",AC649)))","v":""},{"$f":"IF(Z649=\"\",\"\",IF(Z649=AB649,Y649,\"\"))","v":""},{"$f":"IF(Z649=\"\",\"\",IF(Z649=AB649,AC649,\"\"))","v":""},{"$f":"IF(Z649=\"\",\"\",IF(Z649<AB649,Y649,IF(Z649=AB649,\"\",AC649)))","v":""},{"$f":"IF(Z649=\"\",\"\",IF(Z649>AB649,Y647,\"\"))","v":""},{"$f":"IF(Z649=\"\",\"\",IF(Z649<AB649,AC647,\"\"))","v":""},{"$f":"CONCATENATE(AE649,AH649)","v":""}]
[null,null,null,null,null,null,null,null,null,null,null,null,null,null,null,null,null,null,null,null,null,null,null,null,null,null,"-",null,null,null,{"$f":"IF(Z650=\"\",\"\",IF(Z650>AB650,Y650,IF(Z650=AB650,\"\",AC650)))","v":""},{"$f":"IF(Z650=\"\",\"\",IF(Z650=AB650,Y650,\"\"))","v":""},{"$f":"IF(Z650=\"\",\"\",IF(Z650=AB650,AC650,\"\"))","v":""},{"$f":"IF(Z650=\"\",\"\",IF(Z650<AB650,Y650,IF(Z650=AB650,\"\",AC650)))","v":""},{"$f":"IF(Z650=\"\",\"\",IF(Z650>AB650,Y647,\"\"))","v":""},{"$f":"IF(Z650=\"\",\"\",IF(Z650<AB650,AC647,\"\"))","v":""},{"$f":"CONCATENATE(AE650,AH650)","v":""}]
[null,null,null,null,null,null,null,null,null,null,null,null,null,null,null,null,null,null,null,null,null,null,null,null,null,null,"-",null,null,null,{"$f":"IF(Z651=\"\",\"\",IF(Z651>AB651,Y651,IF(Z651=AB651,\"\",AC651)))","v":""},{"$f":"IF(Z651=\"\",\"\",IF(Z651=AB651,Y651,\"\"))","v":""},{"$f":"IF(Z651=\"\",\"\",IF(Z651=AB651,AC651,\"\"))","v":""},{"$f":"IF(Z651=\"\",\"\",IF(Z651<AB651,Y651,IF(Z651=AB651,\"\",AC651)))","v":""},{"$f":"IF(Z651=\"\",\"\",IF(Z651>AB651,Y647,\"\"))","v":""},{"$f":"IF(Z651=\"\",\"\",IF(Z651<AB651,AC647,\"\"))","v":""},{"$f":"CONCATENATE(AE651,AH651)","v":""}]
[null,null,null,null,null,null,null,null,null,null,null,null,null,null,null,null,null,null,null,null,null,null,null,{"$f":"N_Substitute","v":"Substitute"}]
[null,null,null,null,null,null,null,null,null,null,null,null,null,null,null,null,null,null,null,null,null,null,null,{"$f":"N_Substitute","v":"Substitute"}]
[null,null,null,null,null,null,null,null,null,null,null,null,null,null,null,null,null,null,null,null,"#G6",null,null,null,{"$f":"G502","v":"Eq5"},{"$f":"IF(OR(ISNUMBER(Z655),ISNUMBER(Z656),ISNUMBER(Z657),ISNUMBER(Z658)),4-COUNTBLANK(AI655:AI658),\"\")","v":""},"-",{"$f":"IF(OR(ISNUMBER(Z655),ISNUMBER(Z656),ISNUMBER(Z657),ISNUMBER(Z658)),4-COUNTBLANK(AJ655:AJ658),\"\")","v":""},{"$f":"G499","v":"Eq2"},null,{"$f":"IF(Z654=\"\",\"\",IF(Z654>AB654,Y654,IF(Z654=AB654,IF(NoDrawWithWithdraw,IF(AL654=Y654,AC654,IF(AL654=AC654,Y654,\"\")),\"\"),AC654)))","v":""},{"$f":"IF(Z654=\"\",\"\",IF(Z654=AB654,IF(NoDrawWithWithdraw,IF(AL654=Y654,\"\",IF(AL654=AC654,\"\",Y654)),Y654),\"\"))","v":""},{"$f":"IF(Z654=\"\",\"\",IF(Z654=AB654,IF(NoDrawWithWithdraw,IF(AL654=Y654,\"\",IF(AL654=AC654,\"\",AC654)),AC654),\"\"))","v":""},{"$f":"IF(Z654=\"\",\"\",IF(Z654<AB654,Y654,IF(Z654=AB654,IF(NoDrawWithWithdraw,IF(AL654=Y654,Y654,IF(AL654=AC654,AC654,\"\")),\"\"),AC654)))","v":""},{"$f":"IF(Z654=\"\",\"\",SUM(Z655:Z658))","v":""},{"$f":"IF(Z654=\"\",\"\",SUM(AB655:AB658))","v":""},{"$f":"CONCATENATE(AE654,AH654)","v":""},{"$f":"IF(COUNTIF(Y655:Y658,WithdrawLabel)>COUNTIF(AC655:AC658,WithdrawLabel),Y654,IF(COUNTIF(AC655:AC658,WithdrawLabel)>COUNTIF(Y655:Y658,WithdrawLabel),AC654,\"\"))","v":""}]
[null,null,null,null,null,null,null,null,null,null,null,null,null,null,null,null,null,null,null,null,null,null,null,null,null,null,"-",null,null,null,{"$f":"IF(Z655=\"\",\"\",IF(Z655>AB655,Y655,IF(Z655=AB655,\"\",AC655)))","v":""},{"$f":"IF(Z655=\"\",\"\",IF(Z655=AB655,Y655,\"\"))","v":""},{"$f":"IF(Z655=\"\",\"\",IF(Z655=AB655,AC655,\"\"))","v":""},{"$f":"IF(Z655=\"\",\"\",IF(Z655<AB655,Y655,IF(Z655=AB655,\"\",AC655)))","v":""},{"$f":"IF(Z655=\"\",\"\",IF(Z655>AB655,Y654,\"\"))","v":""},{"$f":"IF(Z655=\"\",\"\",IF(Z655<AB655,AC654,\"\"))","v":""},{"$f":"CONCATENATE(AE655,AH655)","v":""}]
[null,null,null,null,null,null,null,null,null,null,null,null,null,null,null,null,null,null,null,null,null,null,null,null,null,null,"-",null,null,null,{"$f":"IF(Z656=\"\",\"\",IF(Z656>AB656,Y656,IF(Z656=AB656,\"\",AC656)))","v":""},{"$f":"IF(Z656=\"\",\"\",IF(Z656=AB656,Y656,\"\"))","v":""},{"$f":"IF(Z656=\"\",\"\",IF(Z656=AB656,AC656,\"\"))","v":""},{"$f":"IF(Z656=\"\",\"\",IF(Z656<AB656,Y656,IF(Z656=AB656,\"\",AC656)))","v":""},{"$f":"IF(Z656=\"\",\"\",IF(Z656>AB656,Y654,\"\"))","v":""},{"$f":"IF(Z656=\"\",\"\",IF(Z656<AB656,AC654,\"\"))","v":""},{"$f":"CONCATENATE(AE656,AH656)","v":""}]
[null,null,null,null,null,null,null,null,null,null,null,null,null,null,null,null,null,null,null,null,null,null,null,null,null,null,"-",null,null,null,{"$f":"IF(Z657=\"\",\"\",IF(Z657>AB657,Y657,IF(Z657=AB657,\"\",AC657)))","v":""},{"$f":"IF(Z657=\"\",\"\",IF(Z657=AB657,Y657,\"\"))","v":""},{"$f":"IF(Z657=\"\",\"\",IF(Z657=AB657,AC657,\"\"))","v":""},{"$f":"IF(Z657=\"\",\"\",IF(Z657<AB657,Y657,IF(Z657=AB657,\"\",AC657)))","v":""},{"$f":"IF(Z657=\"\",\"\",IF(Z657>AB657,Y654,\"\"))","v":""},{"$f":"IF(Z657=\"\",\"\",IF(Z657<AB657,AC654,\"\"))","v":""},{"$f":"CONCATENATE(AE657,AH657)","v":""}]
[null,null,null,null,null,null,null,null,null,null,null,null,null,null,null,null,null,null,null,null,null,null,null,null,null,null,"-",null,null,null,{"$f":"IF(Z658=\"\",\"\",IF(Z658>AB658,Y658,IF(Z658=AB658,\"\",AC658)))","v":""},{"$f":"IF(Z658=\"\",\"\",IF(Z658=AB658,Y658,\"\"))","v":""},{"$f":"IF(Z658=\"\",\"\",IF(Z658=AB658,AC658,\"\"))","v":""},{"$f":"IF(Z658=\"\",\"\",IF(Z658<AB658,Y658,IF(Z658=AB658,\"\",AC658)))","v":""},{"$f":"IF(Z658=\"\",\"\",IF(Z658>AB658,Y654,\"\"))","v":""},{"$f":"IF(Z658=\"\",\"\",IF(Z658<AB658,AC654,\"\"))","v":""},{"$f":"CONCATENATE(AE658,AH658)","v":""}]
[null,null,null,null,null,null,null,null,null,null,null,null,null,null,null,null,null,null,null,null,null,null,null,{"$f":"N_Substitute","v":"Substitute"}]
[null,null,null,null,null,null,null,null,null,null,null,null,null,null,null,null,null,null,null,null,null,null,null,{"$f":"N_Substitute","v":"Substitute"}]
[null,null,null,null,null,null,null,null,null,null,null,null,null,null,null,null,null,null,null,null,"#G6",null,null,null,{"$f":"G503","v":"Eq6"},{"$f":"IF(OR(ISNUMBER(Z662),ISNUMBER(Z663),ISNUMBER(Z664),ISNUMBER(Z665)),4-COUNTBLANK(AI662:AI665),\"\")","v":""},"-",{"$f":"IF(OR(ISNUMBER(Z662),ISNUMBER(Z663),ISNUMBER(Z664),ISNUMBER(Z665)),4-COUNTBLANK(AJ662:AJ665),\"\")","v":""},{"$f":"G498","v":"Eq1"},null,{"$f":"IF(Z661=\"\",\"\",IF(Z661>AB661,Y661,IF(Z661=AB661,IF(NoDrawWithWithdraw,IF(AL661=Y661,AC661,IF(AL661=AC661,Y661,\"\")),\"\"),AC661)))","v":""},{"$f":"IF(Z661=\"\",\"\",IF(Z661=AB661,IF(NoDrawWithWithdraw,IF(AL661=Y661,\"\",IF(AL661=AC661,\"\",Y661)),Y661),\"\"))","v":""},{"$f":"IF(Z661=\"\",\"\",IF(Z661=AB661,IF(NoDrawWithWithdraw,IF(AL661=Y661,\"\",IF(AL661=AC661,\"\",AC661)),AC661),\"\"))","v":""},{"$f":"IF(Z661=\"\",\"\",IF(Z661<AB661,Y661,IF(Z661=AB661,IF(NoDrawWithWithdraw,IF(AL661=Y661,Y661,IF(AL661=AC661,AC661,\"\")),\"\"),AC661)))","v":""},{"$f":"IF(Z661=\"\",\"\",SUM(Z662:Z665))","v":""},{"$f":"IF(Z661=\"\",\"\",SUM(AB662:AB665))","v":""},{"$f":"CONCATENATE(AE661,AH661)","v":""},{"$f":"IF(COUNTIF(Y662:Y665,WithdrawLabel)>COUNTIF(AC662:AC665,WithdrawLabel),Y661,IF(COUNTIF(AC662:AC665,WithdrawLabel)>COUNTIF(Y662:Y665,WithdrawLabel),AC661,\"\"))","v":""}]
[null,null,null,null,null,null,null,null,null,null,null,null,null,null,null,null,null,null,null,null,null,null,null,null,null,null,"-",null,null,null,{"$f":"IF(Z662=\"\",\"\",IF(Z662>AB662,Y662,IF(Z662=AB662,\"\",AC662)))","v":""},{"$f":"IF(Z662=\"\",\"\",IF(Z662=AB662,Y662,\"\"))","v":""},{"$f":"IF(Z662=\"\",\"\",IF(Z662=AB662,AC662,\"\"))","v":""},{"$f":"IF(Z662=\"\",\"\",IF(Z662<AB662,Y662,IF(Z662=AB662,\"\",AC662)))","v":""},{"$f":"IF(Z662=\"\",\"\",IF(Z662>AB662,Y661,\"\"))","v":""},{"$f":"IF(Z662=\"\",\"\",IF(Z662<AB662,AC661,\"\"))","v":""},{"$f":"CONCATENATE(AE662,AH662)","v":""}]
[null,null,null,null,null,null,null,null,null,null,null,null,null,null,null,null,null,null,null,null,null,null,null,null,null,null,"-",null,null,null,{"$f":"IF(Z663=\"\",\"\",IF(Z663>AB663,Y663,IF(Z663=AB663,\"\",AC663)))","v":""},{"$f":"IF(Z663=\"\",\"\",IF(Z663=AB663,Y663,\"\"))","v":""},{"$f":"IF(Z663=\"\",\"\",IF(Z663=AB663,AC663,\"\"))","v":""},{"$f":"IF(Z663=\"\",\"\",IF(Z663<AB663,Y663,IF(Z663=AB663,\"\",AC663)))","v":""},{"$f":"IF(Z663=\"\",\"\",IF(Z663>AB663,Y661,\"\"))","v":""},{"$f":"IF(Z663=\"\",\"\",IF(Z663<AB663,AC661,\"\"))","v":""},{"$f":"CONCATENATE(AE663,AH663)","v":""}]
[null,null,null,null,null,null,null,null,null,null,null,null,null,null,null,null,null,null,null,null,null,null,null,null,null,null,"-",null,null,null,{"$f":"IF(Z664=\"\",\"\",IF(Z664>AB664,Y664,IF(Z664=AB664,\"\",AC664)))","v":""},{"$f":"IF(Z664=\"\",\"\",IF(Z664=AB664,Y664,\"\"))","v":""},{"$f":"IF(Z664=\"\",\"\",IF(Z664=AB664,AC664,\"\"))","v":""},{"$f":"IF(Z664=\"\",\"\",IF(Z664<AB664,Y664,IF(Z664=AB664,\"\",AC664)))","v":""},{"$f":"IF(Z664=\"\",\"\",IF(Z664>AB664,Y661,\"\"))","v":""},{"$f":"IF(Z664=\"\",\"\",IF(Z664<AB664,AC661,\"\"))","v":""},{"$f":"CONCATENATE(AE664,AH664)","v":""}]
[null,null,null,null,null,null,null,null,null,null,null,null,null,null,null,null,null,null,null,null,null,null,null,null,null,null,"-",null,null,null,{"$f":"IF(Z665=\"\",\"\",IF(Z665>AB665,Y665,IF(Z665=AB665,\"\",AC665)))","v":""},{"$f":"IF(Z665=\"\",\"\",IF(Z665=AB665,Y665,\"\"))","v":""},{"$f":"IF(Z665=\"\",\"\",IF(Z665=AB665,AC665,\"\"))","v":""},{"$f":"IF(Z665=\"\",\"\",IF(Z665<AB665,Y665,IF(Z665=AB665,\"\",AC665)))","v":""},{"$f":"IF(Z665=\"\",\"\",IF(Z665>AB665,Y661,\"\"))","v":""},{"$f":"IF(Z665=\"\",\"\",IF(Z665<AB665,AC661,\"\"))","v":""},{"$f":"CONCATENATE(AE665,AH665)","v":""}]
[null,null,null,null,null,null,null,null,null,null,null,null,null,null,null,null,null,null,null,null,null,null,null,{"$f":"N_Substitute","v":"Substitute"}]
[null,null,null,null,null,null,null,null,null,null,null,null,null,null,null,null,null,null,null,null,null,null,null,{"$f":"N_Substitute","v":"Substitute"}]
[null,null,null,null,null,null,null,null,null,null,null,null,null,null,null,null,null,null,null,null,"#G6",null,null,null,{"$f":"G504","v":"Eq7"},{"$f":"IF(OR(ISNUMBER(Z669),ISNUMBER(Z670),ISNUMBER(Z671),ISNUMBER(Z672)),4-COUNTBLANK(AI669:AI672),\"\")","v":""},"-",{"$f":"IF(OR(ISNUMBER(Z669),ISNUMBER(Z670),ISNUMBER(Z671),ISNUMBER(Z672)),4-COUNTBLANK(AJ669:AJ672),\"\")","v":""},{"$f":"G505","v":"Eq8"},null,{"$f":"IF(Z668=\"\",\"\",IF(Z668>AB668,Y668,IF(Z668=AB668,IF(NoDrawWithWithdraw,IF(AL668=Y668,AC668,IF(AL668=AC668,Y668,\"\")),\"\"),AC668)))","v":""},{"$f":"IF(Z668=\"\",\"\",IF(Z668=AB668,IF(NoDrawWithWithdraw,IF(AL668=Y668,\"\",IF(AL668=AC668,\"\",Y668)),Y668),\"\"))","v":""},{"$f":"IF(Z668=\"\",\"\",IF(Z668=AB668,IF(NoDrawWithWithdraw,IF(AL668=Y668,\"\",IF(AL668=AC668,\"\",AC668)),AC668),\"\"))","v":""},{"$f":"IF(Z668=\"\",\"\",IF(Z668<AB668,Y668,IF(Z668=AB668,IF(NoDrawWithWithdraw,IF(AL668=Y668,Y668,IF(AL668=AC668,AC668,\"\")),\"\"),AC668)))","v":""},{"$f":"IF(Z668=\"\",\"\",SUM(Z669:Z672))","v":""},{"$f":"IF(Z668=\"\",\"\",SUM(AB669:AB672))","v":""},{"$f":"CONCATENATE(AE668,AH668)","v":""},{"$f":"IF(COUNTIF(Y669:Y672,WithdrawLabel)>COUNTIF(AC669:AC672,WithdrawLabel),Y668,IF(COUNTIF(AC669:AC672,WithdrawLabel)>COUNTIF(Y669:Y672,WithdrawLabel),AC668,\"\"))","v":""}]
[null,null,null,null,null,null,null,null,null,null,null,null,null,null,null,null,null,null,null,null,null,null,null,null,null,null,"-",null,null,null,{"$f":"IF(Z669=\"\",\"\",IF(Z669>AB669,Y669,IF(Z669=AB669,\"\",AC669)))","v":""},{"$f":"IF(Z669=\"\",\"\",IF(Z669=AB669,Y669,\"\"))","v":""},{"$f":"IF(Z669=\"\",\"\",IF(Z669=AB669,AC669,\"\"))","v":""},{"$f":"IF(Z669=\"\",\"\",IF(Z669<AB669,Y669,IF(Z669=AB669,\"\",AC669)))","v":""},{"$f":"IF(Z669=\"\",\"\",IF(Z669>AB669,Y668,\"\"))","v":""},{"$f":"IF(Z669=\"\",\"\",IF(Z669<AB669,AC668,\"\"))","v":""},{"$f":"CONCATENATE(AE669,AH669)","v":""}]
[null,null,null,null,null,null,null,null,null,null,null,null,null,null,null,null,null,null,null,null,null,null,null,null,null,null,"-",null,null,null,{"$f":"IF(Z670=\"\",\"\",IF(Z670>AB670,Y670,IF(Z670=AB670,\"\",AC670)))","v":""},{"$f":"IF(Z670=\"\",\"\",IF(Z670=AB670,Y670,\"\"))","v":""},{"$f":"IF(Z670=\"\",\"\",IF(Z670=AB670,AC670,\"\"))","v":""},{"$f":"IF(Z670=\"\",\"\",IF(Z670<AB670,Y670,IF(Z670=AB670,\"\",AC670)))","v":""},{"$f":"IF(Z670=\"\",\"\",IF(Z670>AB670,Y668,\"\"))","v":""},{"$f":"IF(Z670=\"\",\"\",IF(Z670<AB670,AC668,\"\"))","v":""},{"$f":"CONCATENATE(AE670,AH670)","v":""}]
[null,null,null,null,null,null,null,null,null,null,null,null,null,null,null,null,null,null,null,null,null,null,null,null,null,null,"-",null,null,null,{"$f":"IF(Z671=\"\",\"\",IF(Z671>AB671,Y671,IF(Z671=AB671,\"\",AC671)))","v":""},{"$f":"IF(Z671=\"\",\"\",IF(Z671=AB671,Y671,\"\"))","v":""},{"$f":"IF(Z671=\"\",\"\",IF(Z671=AB671,AC671,\"\"))","v":""},{"$f":"IF(Z671=\"\",\"\",IF(Z671<AB671,Y671,IF(Z671=AB671,\"\",AC671)))","v":""},{"$f":"IF(Z671=\"\",\"\",IF(Z671>AB671,Y668,\"\"))","v":""},{"$f":"IF(Z671=\"\",\"\",IF(Z671<AB671,AC668,\"\"))","v":""},{"$f":"CONCATENATE(AE671,AH671)","v":""}]
[null,null,null,null,null,null,null,null,null,null,null,null,null,null,null,null,null,null,null,null,null,null,null,null,null,null,"-",null,null,null,{"$f":"IF(Z672=\"\",\"\",IF(Z672>AB672,Y672,IF(Z672=AB672,\"\",AC672)))","v":""},{"$f":"IF(Z672=\"\",\"\",IF(Z672=AB672,Y672,\"\"))","v":""},{"$f":"IF(Z672=\"\",\"\",IF(Z672=AB672,AC672,\"\"))","v":""},{"$f":"IF(Z672=\"\",\"\",IF(Z672<AB672,Y672,IF(Z672=AB672,\"\",AC672)))","v":""},{"$f":"IF(Z672=\"\",\"\",IF(Z672>AB672,Y668,\"\"))","v":""},{"$f":"IF(Z672=\"\",\"\",IF(Z672<AB672,AC668,\"\"))","v":""},{"$f":"CONCATENATE(AE672,AH672)","v":""}]
[null,null,null,null,null,null,null,null,null,null,null,null,null,null,null,null,null,null,null,null,null,null,null,{"$f":"N_Substitute","v":"Substitute"}]
[null,null,null,null,null,null,null,null,null,null,null,null,null,null,null,null,null,null,null,null,null,null,null,{"$f":"N_Substitute","v":"Substitute"}]
[null,null,null,null,null,null,null,null,null,null,null,null,null,null,null,null,null,null,null,null,"#G7",null,null,null,{"$f":"G499","v":"Eq2"},{"$f":"IF(OR(ISNUMBER(Z676),ISNUMBER(Z677),ISNUMBER(Z678),ISNUMBER(Z679)),4-COUNTBLANK(AI676:AI679),\"\")","v":""},"-",{"$f":"IF(OR(ISNUMBER(Z676),ISNUMBER(Z677),ISNUMBER(Z678),ISNUMBER(Z679)),4-COUNTBLANK(AJ676:AJ679),\"\")","v":""},{"$f":"G504","v":"Eq7"},null,{"$f":"IF(Z675=\"\",\"\",IF(Z675>AB675,Y675,IF(Z675=AB675,IF(NoDrawWithWithdraw,IF(AL675=Y675,AC675,IF(AL675=AC675,Y675,\"\")),\"\"),AC675)))","v":""},{"$f":"IF(Z675=\"\",\"\",IF(Z675=AB675,IF(NoDrawWithWithdraw,IF(AL675=Y675,\"\",IF(AL675=AC675,\"\",Y675)),Y675),\"\"))","v":""},{"$f":"IF(Z675=\"\",\"\",IF(Z675=AB675,IF(NoDrawWithWithdraw,IF(AL675=Y675,\"\",IF(AL675=AC675,\"\",AC675)),AC675),\"\"))","v":""},{"$f":"IF(Z675=\"\",\"\",IF(Z675<AB675,Y675,IF(Z675=AB675,IF(NoDrawWithWithdraw,IF(AL675=Y675,Y675,IF(AL675=AC675,AC675,\"\")),\"\"),AC675)))","v":""},{"$f":"IF(Z675=\"\",\"\",SUM(Z676:Z679))","v":""},{"$f":"IF(Z675=\"\",\"\",SUM(AB676:AB679))","v":""},{"$f":"CONCATENATE(AE675,AH675)","v":""},{"$f":"IF(COUNTIF(Y676:Y679,WithdrawLabel)>COUNTIF(AC676:AC679,WithdrawLabel),Y675,IF(COUNTIF(AC676:AC679,WithdrawLabel)>COUNTIF(Y676:Y679,WithdrawLabel),AC675,\"\"))","v":""}]
[null,null,null,null,null,null,null,null,null,null,null,null,null,null,null,null,null,null,null,null,null,null,null,null,null,null,"-",null,null,null,{"$f":"IF(Z676=\"\",\"\",IF(Z676>AB676,Y676,IF(Z676=AB676,\"\",AC676)))","v":""},{"$f":"IF(Z676=\"\",\"\",IF(Z676=AB676,Y676,\"\"))","v":""},{"$f":"IF(Z676=\"\",\"\",IF(Z676=AB676,AC676,\"\"))","v":""},{"$f":"IF(Z676=\"\",\"\",IF(Z676<AB676,Y676,IF(Z676=AB676,\"\",AC676)))","v":""},{"$f":"IF(Z676=\"\",\"\",IF(Z676>AB676,Y675,\"\"))","v":""},{"$f":"IF(Z676=\"\",\"\",IF(Z676<AB676,AC675,\"\"))","v":""},{"$f":"CONCATENATE(AE676,AH676)","v":""}]
[null,null,null,null,null,null,null,null,null,null,null,null,null,null,null,null,null,null,null,null,null,null,null,null,null,null,"-",null,null,null,{"$f":"IF(Z677=\"\",\"\",IF(Z677>AB677,Y677,IF(Z677=AB677,\"\",AC677)))","v":""},{"$f":"IF(Z677=\"\",\"\",IF(Z677=AB677,Y677,\"\"))","v":""},{"$f":"IF(Z677=\"\",\"\",IF(Z677=AB677,AC677,\"\"))","v":""},{"$f":"IF(Z677=\"\",\"\",IF(Z677<AB677,Y677,IF(Z677=AB677,\"\",AC677)))","v":""},{"$f":"IF(Z677=\"\",\"\",IF(Z677>AB677,Y675,\"\"))","v":""},{"$f":"IF(Z677=\"\",\"\",IF(Z677<AB677,AC675,\"\"))","v":""},{"$f":"CONCATENATE(AE677,AH677)","v":""}]
[null,null,null,null,null,null,null,null,null,null,null,null,null,null,null,null,null,null,null,null,null,null,null,null,null,null,"-",null,null,null,{"$f":"IF(Z678=\"\",\"\",IF(Z678>AB678,Y678,IF(Z678=AB678,\"\",AC678)))","v":""},{"$f":"IF(Z678=\"\",\"\",IF(Z678=AB678,Y678,\"\"))","v":""},{"$f":"IF(Z678=\"\",\"\",IF(Z678=AB678,AC678,\"\"))","v":""},{"$f":"IF(Z678=\"\",\"\",IF(Z678<AB678,Y678,IF(Z678=AB678,\"\",AC678)))","v":""},{"$f":"IF(Z678=\"\",\"\",IF(Z678>AB678,Y675,\"\"))","v":""},{"$f":"IF(Z678=\"\",\"\",IF(Z678<AB678,AC675,\"\"))","v":""},{"$f":"CONCATENATE(AE678,AH678)","v":""}]
[null,null,null,null,null,null,null,null,null,null,null,null,null,null,null,null,null,null,null,null,null,null,null,null,null,null,"-",null,null,null,{"$f":"IF(Z679=\"\",\"\",IF(Z679>AB679,Y679,IF(Z679=AB679,\"\",AC679)))","v":""},{"$f":"IF(Z679=\"\",\"\",IF(Z679=AB679,Y679,\"\"))","v":""},{"$f":"IF(Z679=\"\",\"\",IF(Z679=AB679,AC679,\"\"))","v":""},{"$f":"IF(Z679=\"\",\"\",IF(Z679<AB679,Y679,IF(Z679=AB679,\"\",AC679)))","v":""},{"$f":"IF(Z679=\"\",\"\",IF(Z679>AB679,Y675,\"\"))","v":""},{"$f":"IF(Z679=\"\",\"\",IF(Z679<AB679,AC675,\"\"))","v":""},{"$f":"CONCATENATE(AE679,AH679)","v":""}]
[null,null,null,null,null,null,null,null,null,null,null,null,null,null,null,null,null,null,null,null,null,null,null,{"$f":"N_Substitute","v":"Substitute"}]
[null,null,null,null,null,null,null,null,null,null,null,null,null,null,null,null,null,null,null,null,null,null,null,{"$f":"N_Substitute","v":"Substitute"}]
[null,null,null,null,null,null,null,null,null,null,null,null,null,null,null,null,null,null,null,null,"#G7",null,null,null,{"$f":"G500","v":"Eq3"},{"$f":"IF(OR(ISNUMBER(Z683),ISNUMBER(Z684),ISNUMBER(Z685),ISNUMBER(Z686)),4-COUNTBLANK(AI683:AI686),\"\")","v":""},"-",{"$f":"IF(OR(ISNUMBER(Z683),ISNUMBER(Z684),ISNUMBER(Z685),ISNUMBER(Z686)),4-COUNTBLANK(AJ683:AJ686),\"\")","v":""},{"$f":"G503","v":"Eq6"},null,{"$f":"IF(Z682=\"\",\"\",IF(Z682>AB682,Y682,IF(Z682=AB682,IF(NoDrawWithWithdraw,IF(AL682=Y682,AC682,IF(AL682=AC682,Y682,\"\")),\"\"),AC682)))","v":""},{"$f":"IF(Z682=\"\",\"\",IF(Z682=AB682,IF(NoDrawWithWithdraw,IF(AL682=Y682,\"\",IF(AL682=AC682,\"\",Y682)),Y682),\"\"))","v":""},{"$f":"IF(Z682=\"\",\"\",IF(Z682=AB682,IF(NoDrawWithWithdraw,IF(AL682=Y682,\"\",IF(AL682=AC682,\"\",AC682)),AC682),\"\"))","v":""},{"$f":"IF(Z682=\"\",\"\",IF(Z682<AB682,Y682,IF(Z682=AB682,IF(NoDrawWithWithdraw,IF(AL682=Y682,Y682,IF(AL682=AC682,AC682,\"\")),\"\"),AC682)))","v":""},{"$f":"IF(Z682=\"\",\"\",SUM(Z683:Z686))","v":""},{"$f":"IF(Z682=\"\",\"\",SUM(AB683:AB686))","v":""},{"$f":"CONCATENATE(AE682,AH682)","v":""},{"$f":"IF(COUNTIF(Y683:Y686,WithdrawLabel)>COUNTIF(AC683:AC686,WithdrawLabel),Y682,IF(COUNTIF(AC683:AC686,WithdrawLabel)>COUNTIF(Y683:Y686,WithdrawLabel),AC682,\"\"))","v":""}]
[null,null,null,null,null,null,null,null,null,null,null,null,null,null,null,null,null,null,null,null,null,null,null,null,null,null,"-",null,null,null,{"$f":"IF(Z683=\"\",\"\",IF(Z683>AB683,Y683,IF(Z683=AB683,\"\",AC683)))","v":""},{"$f":"IF(Z683=\"\",\"\",IF(Z683=AB683,Y683,\"\"))","v":""},{"$f":"IF(Z683=\"\",\"\",IF(Z683=AB683,AC683,\"\"))","v":""},{"$f":"IF(Z683=\"\",\"\",IF(Z683<AB683,Y683,IF(Z683=AB683,\"\",AC683)))","v":""},{"$f":"IF(Z683=\"\",\"\",IF(Z683>AB683,Y682,\"\"))","v":""},{"$f":"IF(Z683=\"\",\"\",IF(Z683<AB683,AC682,\"\"))","v":""},{"$f":"CONCATENATE(AE683,AH683)","v":""}]
[null,null,null,null,null,null,null,null,null,null,null,null,null,null,null,null,null,null,null,null,null,null,null,null,null,null,"-",null,null,null,{"$f":"IF(Z684=\"\",\"\",IF(Z684>AB684,Y684,IF(Z684=AB684,\"\",AC684)))","v":""},{"$f":"IF(Z684=\"\",\"\",IF(Z684=AB684,Y684,\"\"))","v":""},{"$f":"IF(Z684=\"\",\"\",IF(Z684=AB684,AC684,\"\"))","v":""},{"$f":"IF(Z684=\"\",\"\",IF(Z684<AB684,Y684,IF(Z684=AB684,\"\",AC684)))","v":""},{"$f":"IF(Z684=\"\",\"\",IF(Z684>AB684,Y682,\"\"))","v":""},{"$f":"IF(Z684=\"\",\"\",IF(Z684<AB684,AC682,\"\"))","v":""},{"$f":"CONCATENATE(AE684,AH684)","v":""}]
[null,null,null,null,null,null,null,null,null,null,null,null,null,null,null,null,null,null,null,null,null,null,null,null,null,null,"-",null,null,null,{"$f":"IF(Z685=\"\",\"\",IF(Z685>AB685,Y685,IF(Z685=AB685,\"\",AC685)))","v":""},{"$f":"IF(Z685=\"\",\"\",IF(Z685=AB685,Y685,\"\"))","v":""},{"$f":"IF(Z685=\"\",\"\",IF(Z685=AB685,AC685,\"\"))","v":""},{"$f":"IF(Z685=\"\",\"\",IF(Z685<AB685,Y685,IF(Z685=AB685,\"\",AC685)))","v":""},{"$f":"IF(Z685=\"\",\"\",IF(Z685>AB685,Y682,\"\"))","v":""},{"$f":"IF(Z685=\"\",\"\",IF(Z685<AB685,AC682,\"\"))","v":""},{"$f":"CONCATENATE(AE685,AH685)","v":""}]
[null,null,null,null,null,null,null,null,null,null,null,null,null,null,null,null,null,null,null,null,null,null,null,null,null,null,"-",null,null,null,{"$f":"IF(Z686=\"\",\"\",IF(Z686>AB686,Y686,IF(Z686=AB686,\"\",AC686)))","v":""},{"$f":"IF(Z686=\"\",\"\",IF(Z686=AB686,Y686,\"\"))","v":""},{"$f":"IF(Z686=\"\",\"\",IF(Z686=AB686,AC686,\"\"))","v":""},{"$f":"IF(Z686=\"\",\"\",IF(Z686<AB686,Y686,IF(Z686=AB686,\"\",AC686)))","v":""},{"$f":"IF(Z686=\"\",\"\",IF(Z686>AB686,Y682,\"\"))","v":""},{"$f":"IF(Z686=\"\",\"\",IF(Z686<AB686,AC682,\"\"))","v":""},{"$f":"CONCATENATE(AE686,AH686)","v":""}]
[null,null,null,null,null,null,null,null,null,null,null,null,null,null,null,null,null,null,null,null,null,null,null,{"$f":"N_Substitute","v":"Substitute"}]
[null,null,null,null,null,null,null,null,null,null,null,null,null,null,null,null,null,null,null,null,null,null,null,{"$f":"N_Substitute","v":"Substitute"}]
[null,null,null,null,null,null,null,null,null,null,null,null,null,null,null,null,null,null,null,null,"#G7",null,null,null,{"$f":"G501","v":"Eq4"},{"$f":"IF(OR(ISNUMBER(Z690),ISNUMBER(Z691),ISNUMBER(Z692),ISNUMBER(Z693)),4-COUNTBLANK(AI690:AI693),\"\")","v":""},"-",{"$f":"IF(OR(ISNUMBER(Z690),ISNUMBER(Z691),ISNUMBER(Z692),ISNUMBER(Z693)),4-COUNTBLANK(AJ690:AJ693),\"\")","v":""},{"$f":"G502","v":"Eq5"},null,{"$f":"IF(Z689=\"\",\"\",IF(Z689>AB689,Y689,IF(Z689=AB689,IF(NoDrawWithWithdraw,IF(AL689=Y689,AC689,IF(AL689=AC689,Y689,\"\")),\"\"),AC689)))","v":""},{"$f":"IF(Z689=\"\",\"\",IF(Z689=AB689,IF(NoDrawWithWithdraw,IF(AL689=Y689,\"\",IF(AL689=AC689,\"\",Y689)),Y689),\"\"))","v":""},{"$f":"IF(Z689=\"\",\"\",IF(Z689=AB689,IF(NoDrawWithWithdraw,IF(AL689=Y689,\"\",IF(AL689=AC689,\"\",AC689)),AC689),\"\"))","v":""},{"$f":"IF(Z689=\"\",\"\",IF(Z689<AB689,Y689,IF(Z689=AB689,IF(NoDrawWithWithdraw,IF(AL689=Y689,Y689,IF(AL689=AC689,AC689,\"\")),\"\"),AC689)))","v":""},{"$f":"IF(Z689=\"\",\"\",SUM(Z690:Z693))","v":""},{"$f":"IF(Z689=\"\",\"\",SUM(AB690:AB693))","v":""},{"$f":"CONCATENATE(AE689,AH689)","v":""},{"$f":"IF(COUNTIF(Y690:Y693,WithdrawLabel)>COUNTIF(AC690:AC693,WithdrawLabel),Y689,IF(COUNTIF(AC690:AC693,WithdrawLabel)>COUNTIF(Y690:Y693,WithdrawLabel),AC689,\"\"))","v":""}]
[null,null,null,null,null,null,null,null,null,null,null,null,null,null,null,null,null,null,null,null,null,null,null,null,null,null,"-",null,null,null,{"$f":"IF(Z690=\"\",\"\",IF(Z690>AB690,Y690,IF(Z690=AB690,\"\",AC690)))","v":""},{"$f":"IF(Z690=\"\",\"\",IF(Z690=AB690,Y690,\"\"))","v":""},{"$f":"IF(Z690=\"\",\"\",IF(Z690=AB690,AC690,\"\"))","v":""},{"$f":"IF(Z690=\"\",\"\",IF(Z690<AB690,Y690,IF(Z690=AB690,\"\",AC690)))","v":""},{"$f":"IF(Z690=\"\",\"\",IF(Z690>AB690,Y689,\"\"))","v":""},{"$f":"IF(Z690=\"\",\"\",IF(Z690<AB690,AC689,\"\"))","v":""},{"$f":"CONCATENATE(AE690,AH690)","v":""}]
[null,null,null,null,null,null,null,null,null,null,null,null,null,null,null,null,null,null,null,null,null,null,null,null,null,null,"-",null,null,null,{"$f":"IF(Z691=\"\",\"\",IF(Z691>AB691,Y691,IF(Z691=AB691,\"\",AC691)))","v":""},{"$f":"IF(Z691=\"\",\"\",IF(Z691=AB691,Y691,\"\"))","v":""},{"$f":"IF(Z691=\"\",\"\",IF(Z691=AB691,AC691,\"\"))","v":""},{"$f":"IF(Z691=\"\",\"\",IF(Z691<AB691,Y691,IF(Z691=AB691,\"\",AC691)))","v":""},{"$f":"IF(Z691=\"\",\"\",IF(Z691>AB691,Y689,\"\"))","v":""},{"$f":"IF(Z691=\"\",\"\",IF(Z691<AB691,AC689,\"\"))","v":""},{"$f":"CONCATENATE(AE691,AH691)","v":""}]
[null,null,null,null,null,null,null,null,null,null,null,null,null,null,null,null,null,null,null,null,null,null,null,null,null,null,"-",null,null,null,{"$f":"IF(Z692=\"\",\"\",IF(Z692>AB692,Y692,IF(Z692=AB692,\"\",AC692)))","v":""},{"$f":"IF(Z692=\"\",\"\",IF(Z692=AB692,Y692,\"\"))","v":""},{"$f":"IF(Z692=\"\",\"\",IF(Z692=AB692,AC692,\"\"))","v":""},{"$f":"IF(Z692=\"\",\"\",IF(Z692<AB692,Y692,IF(Z692=AB692,\"\",AC692)))","v":""},{"$f":"IF(Z692=\"\",\"\",IF(Z692>AB692,Y689,\"\"))","v":""},{"$f":"IF(Z692=\"\",\"\",IF(Z692<AB692,AC689,\"\"))","v":""},{"$f":"CONCATENATE(AE692,AH692)","v":""}]
[null,null,null,null,null,null,null,null,null,null,null,null,null,null,null,null,null,null,null,null,null,null,null,null,null,null,"-",null,null,null,{"$f":"IF(Z693=\"\",\"\",IF(Z693>AB693,Y693,IF(Z693=AB693,\"\",AC693)))","v":""},{"$f":"IF(Z693=\"\",\"\",IF(Z693=AB693,Y693,\"\"))","v":""},{"$f":"IF(Z693=\"\",\"\",IF(Z693=AB693,AC693,\"\"))","v":""},{"$f":"IF(Z693=\"\",\"\",IF(Z693<AB693,Y693,IF(Z693=AB693,\"\",AC693)))","v":""},{"$f":"IF(Z693=\"\",\"\",IF(Z693>AB693,Y689,\"\"))","v":""},{"$f":"IF(Z693=\"\",\"\",IF(Z693<AB693,AC689,\"\"))","v":""},{"$f":"CONCATENATE(AE693,AH693)","v":""}]
[null,null,null,null,null,null,null,null,null,null,null,null,null,null,null,null,null,null,null,null,null,null,null,{"$f":"N_Substitute","v":"Substitute"}]
[null,null,null,null,null,null,null,null,null,null,null,null,null,null,null,null,null,null,null,null,null,null,null,{"$f":"N_Substitute","v":"Substitute"}]
[null,null,null,null,null,null,null,null,null,null,null,null,null,null,null,null,null,null,null,null,"#G7",null,null,null,{"$f":"G505","v":"Eq8"},{"$f":"IF(OR(ISNUMBER(Z697),ISNUMBER(Z698),ISNUMBER(Z699),ISNUMBER(Z700)),4-COUNTBLANK(AI697:AI700),\"\")","v":""},"-",{"$f":"IF(OR(ISNUMBER(Z697),ISNUMBER(Z698),ISNUMBER(Z699),ISNUMBER(Z700)),4-COUNTBLANK(AJ697:AJ700),\"\")","v":""},{"$f":"G498","v":"Eq1"},null,{"$f":"IF(Z696=\"\",\"\",IF(Z696>AB696,Y696,IF(Z696=AB696,IF(NoDrawWithWithdraw,IF(AL696=Y696,AC696,IF(AL696=AC696,Y696,\"\")),\"\"),AC696)))","v":""},{"$f":"IF(Z696=\"\",\"\",IF(Z696=AB696,IF(NoDrawWithWithdraw,IF(AL696=Y696,\"\",IF(AL696=AC696,\"\",Y696)),Y696),\"\"))","v":""},{"$f":"IF(Z696=\"\",\"\",IF(Z696=AB696,IF(NoDrawWithWithdraw,IF(AL696=Y696,\"\",IF(AL696=AC696,\"\",AC696)),AC696),\"\"))","v":""},{"$f":"IF(Z696=\"\",\"\",IF(Z696<AB696,Y696,IF(Z696=AB696,IF(NoDrawWithWithdraw,IF(AL696=Y696,Y696,IF(AL696=AC696,AC696,\"\")),\"\"),AC696)))","v":""},{"$f":"IF(Z696=\"\",\"\",SUM(Z697:Z700))","v":""},{"$f":"IF(Z696=\"\",\"\",SUM(AB697:AB700))","v":""},{"$f":"CONCATENATE(AE696,AH696)","v":""},{"$f":"IF(COUNTIF(Y697:Y700,WithdrawLabel)>COUNTIF(AC697:AC700,WithdrawLabel),Y696,IF(COUNTIF(AC697:AC700,WithdrawLabel)>COUNTIF(Y697:Y700,WithdrawLabel),AC696,\"\"))","v":""}]
[null,null,null,null,null,null,null,null,null,null,null,null,null,null,null,null,null,null,null,null,null,null,null,null,null,null,"-",null,null,null,{"$f":"IF(Z697=\"\",\"\",IF(Z697>AB697,Y697,IF(Z697=AB697,\"\",AC697)))","v":""},{"$f":"IF(Z697=\"\",\"\",IF(Z697=AB697,Y697,\"\"))","v":""},{"$f":"IF(Z697=\"\",\"\",IF(Z697=AB697,AC697,\"\"))","v":""},{"$f":"IF(Z697=\"\",\"\",IF(Z697<AB697,Y697,IF(Z697=AB697,\"\",AC697)))","v":""},{"$f":"IF(Z697=\"\",\"\",IF(Z697>AB697,Y696,\"\"))","v":""},{"$f":"IF(Z697=\"\",\"\",IF(Z697<AB697,AC696,\"\"))","v":""},{"$f":"CONCATENATE(AE697,AH697)","v":""}]
[null,null,null,null,null,null,null,null,null,null,null,null,null,null,null,null,null,null,null,null,null,null,null,null,null,null,"-",null,null,null,{"$f":"IF(Z698=\"\",\"\",IF(Z698>AB698,Y698,IF(Z698=AB698,\"\",AC698)))","v":""},{"$f":"IF(Z698=\"\",\"\",IF(Z698=AB698,Y698,\"\"))","v":""},{"$f":"IF(Z698=\"\",\"\",IF(Z698=AB698,AC698,\"\"))","v":""},{"$f":"IF(Z698=\"\",\"\",IF(Z698<AB698,Y698,IF(Z698=AB698,\"\",AC698)))","v":""},{"$f":"IF(Z698=\"\",\"\",IF(Z698>AB698,Y696,\"\"))","v":""},{"$f":"IF(Z698=\"\",\"\",IF(Z698<AB698,AC696,\"\"))","v":""},{"$f":"CONCATENATE(AE698,AH698)","v":""}]
[null,null,null,null,null,null,null,null,null,null,null,null,null,null,null,null,null,null,null,null,null,null,null,null,null,null,"-",null,null,null,{"$f":"IF(Z699=\"\",\"\",IF(Z699>AB699,Y699,IF(Z699=AB699,\"\",AC699)))","v":""},{"$f":"IF(Z699=\"\",\"\",IF(Z699=AB699,Y699,\"\"))","v":""},{"$f":"IF(Z699=\"\",\"\",IF(Z699=AB699,AC699,\"\"))","v":""},{"$f":"IF(Z699=\"\",\"\",IF(Z699<AB699,Y699,IF(Z699=AB699,\"\",AC699)))","v":""},{"$f":"IF(Z699=\"\",\"\",IF(Z699>AB699,Y696,\"\"))","v":""},{"$f":"IF(Z699=\"\",\"\",IF(Z699<AB699,AC696,\"\"))","v":""},{"$f":"CONCATENATE(AE699,AH699)","v":""}]
[null,null,null,null,null,null,null,null,null,null,null,null,null,null,null,null,null,null,null,null,null,null,null,null,null,null,"-",null,null,null,{"$f":"IF(Z700=\"\",\"\",IF(Z700>AB700,Y700,IF(Z700=AB700,\"\",AC700)))","v":""},{"$f":"IF(Z700=\"\",\"\",IF(Z700=AB700,Y700,\"\"))","v":""},{"$f":"IF(Z700=\"\",\"\",IF(Z700=AB700,AC700,\"\"))","v":""},{"$f":"IF(Z700=\"\",\"\",IF(Z700<AB700,Y700,IF(Z700=AB700,\"\",AC700)))","v":""},{"$f":"IF(Z700=\"\",\"\",IF(Z700>AB700,Y696,\"\"))","v":""},{"$f":"IF(Z700=\"\",\"\",IF(Z700<AB700,AC696,\"\"))","v":""},{"$f":"CONCATENATE(AE700,AH700)","v":""}]
[null,null,null,null,null,null,null,null,null,null,null,null,null,null,null,null,null,null,null,null,null,null,null,{"$f":"N_Substitute","v":"Substitute"}]
[null,null,null,null,null,null,null,null,null,null,null,null,null,null,null,null,null,null,null,null,null,null,null,{"$f":"N_Substitute","v":"Substitute"}]

{"sheet":"Ind FDL","index":21,"n_rows":322,"n_cols":29,"rows_kept":322,"cut":false,"hidden":true,"merged":[[320,27,320,29],[311,22,311,24],[320,22,320,24],[319,1,319,37],[311,27,311,29],[315,1,315,37],[316,22,316,24],[316,27,316,29],[3,1,3,37],[238,1,238,37],[4,22,4,24],[239,22,239,24],[4,27,4,29],[40,1,40,37],[41,22,41,24],[41,27,41,29],[171,1,171,37],[172,22,172,24],[172,27,172,29],[239,27,239,29],[273,1,273,37],[292,1,292,37],[304,27,304,29],[303,1,303,37],[310,1,310,37],[274,22,274,24],[274,27,274,29],[293,27,293,29],[304,22,304,24],[293,22,293,24]]}
[null,null,null,null,null,null,{"$f":"N_Event_Type","v":"Event Type"}]
[null,null,null,null,null,null,{"$f":"Event1","v":"Open"}]
[]
[null,{"$f":"N_BARRAGES","v":"PLAY-OFF"}]
[null,null,null,null,null,null,{"$f":"N_Qualifiés","v":"Qualified"},null,{"$f":"N_Disqualified","v":"Disqualified"},null,null,null,null,null,null,null,null,null,{"$f":"N_Heure","v":"Time"},{"$f":"N_Table","v":"Table"},{"$f":"N_Arbitre","v":"Referee"},null,{"$f":"N_Scores","v":"Scores"},null,null,null,{"$f":"N_MS","v":"SD"},{"$f":"N_Diff","v":"Pen."}]
[null,null,null,null,null,null,{"$f":"IF(W6=\"\",IF(OR(HidePlayerFormulas,V6=\"\"),\"\",\"(\"&V6&\"-\"&Z6&\")\"),IF(W6>Y6,V6,IF(Y6>W6,Z6,IF(AB6>AD6,V6,IF(AD6>AB6,Z6,mess_erreur_marque)))))","v":""},null,{"$f":"IF(G6=\"\",\"\",IF(G6=V6,Z6,V6))","v":""},null,null,null,null,null,null,null,null,"#FPO",null,null,null,null,null,"-",null,null,null,null,"-"]
[null,null,null,null,null,null,"",null,"",null,null,null,null,null,null,null,null,"#FPO",null,null,null,null,null,"-",null,null,null,null,"-"]
[null,null,null,null,null,null,"",null,"",null,null,null,null,null,null,null,null,"#FPO",null,null,null,null,null,"-",null,"",null,null,"-"]
[null,null,null,null,null,null,"",null,"",null,null,null,null,null,null,null,null,"#FPO",null,null,null,null,null,"-",null,null,null,null,"-"]
[null,null,null,null,null,null,"",null,"",null,null,null,null,null,null,null,null,"#FPO",null,null,null,null,null,"-",null,null,null,null,"-"]
[null,null,null,null,null,null,"",null,"",null,null,null,null,null,null,null,null,"#FPO",null,null,null,null,null,"-",null,null,null,null,"-"]
[null,null,null,null,null,null,"",null,"",null,null,null,null,null,null,null,null,"#FPO",null,null,null,null,null,"-",null,null,null,null,"-"]
[null,null,null,null,null,null,"",null,"",null,null,null,null,null,null,null,null,"#FPO",null,null,null,null,null,"-",null,null,null,null,"-"]
[null,null,null,null,null,null,"",null,"",null,null,null,null,null,null,null,null,"#FPO",null,null,null,null,null,"-",null,null,null,null,"-"]
[null,null,null,null,null,null,"",null,"",null,null,null,null,null,null,null,null,"#FPO",null,null,null,null,null,"-",null,null,null,null,"-"]
[null,null,null,null,null,null,"",null,"",null,null,null,null,null,null,null,null,"#FPO",null,null,null,null,null,"-",null,null,null,null,"-"]
[null,null,null,null,null,null,"",null,"",null,null,null,null,null,null,null,null,"#FPO",null,null,null,null,null,"-",null,null,null,null,"-"]
[]
[null,null,null,null,null,null,{"$f":"IF(W19=\"\",IF(OR(HidePlayerFormulas,V19=\"\"),\"\",\"(\"&V19&\"-\"&Z19&\")\"),IF(W19>Y19,V19,IF(Y19>W19,Z19,IF(AB19>AD19,V19,IF(AD19>AB19,Z19,mess_erreur_marque)))))","v":""},null,{"$f":"IF(G19=\"\",\"\",IF(G19=V19,Z19,V19))","v":""},null,null,null,null,null,null,null,null,"#FPO",null,null,null,null,null,"-",null,null,null,null,"-"]
[null,null,null,null,null,null,"",null,"",null,null,null,null,null,null,null,null,"#FPO",null,null,null,null,null,"-",null,null,null,null,"-"]
[null,null,null,null,null,null,"",null,"",null,null,null,null,null,null,null,null,"#FPO",null,null,null,null,null,"-",null,null,null,null,"-"]
[null,null,null,null,null,null,"",null,"",null,null,null,null,null,null,null,null,"#FPO",null,null,null,null,null,"-",null,null,null,null,"-"]
[null,null,null,null,null,null,"",null,"",null,null,null,null,null,null,null,null,"#FPO",null,null,null,null,null,"-",null,null,null,null,"-"]
[null,null,null,null,null,null,"",null,"",null,null,null,null,null,null,null,null,"#FPO",null,null,null,null,null,"-",null,null,null,null,"-"]
[null,null,null,null,null,null,"",null,"",null,null,null,null,null,null,null,null,"#FPO",null,null,null,null,null,"-",null,null,null,null,"-"]
[null,null,null,null,null,null,"",null,"",null,null,null,null,null,null,null,null,"#FPO",null,null,null,null,null,"-",null,null,null,null,"-"]
[null,null,null,null,null,null,"",null,"",null,null,null,null,null,null,null,null,"#FPO",null,null,null,null,null,"-",null,null,null,null,"-"]
[null,null,null,null,null,null,"",null,"",null,null,null,null,null,null,null,null,"#FPO",null,null,null,null,null,"-",null,null,null,null,"-"]
[null,null,null,null,null,null,"",null,"",null,null,null,null,null,null,null,null,"#FPO",null,null,null,null,null,"-",null,null,null,null,"-"]
[null,null,null,null,null,null,"",null,"",null,null,null,null,null,null,null,null,"#FPO",null,null,null,null,null,"-",null,null,null,null,"-"]
[null,null,null,null,null,null,{"$f":"N_Pre_Qualified","v":"Pre-qualified"}]
[]
[]
[]
[]
[]
[]
[]
[]
[]
[null,{"$f":"N__1_128_DE_FINALE","v":"LAST 256"}]
[null,null,null,null,null,null,{"$f":"N_Qualifiés","v":"Qualified"},null,{"$f":"N_Disqualified","v":"Disqualified"},null,null,null,null,null,null,null,null,null,{"$f":"N_Heure","v":"Time"},{"$f":"N_Table","v":"Table"},{"$f":"N_Arbitre","v":"Referee"},null,{"$f":"N_Scores","v":"Scores"},null,null,null,{"$f":"N_MS","v":"SD"},{"$f":"N_Diff","v":"Pen."}]
[null,null,null,null,null,null,{"$f":"IF(W43=\"\",IF(OR(HidePlayerFormulas,V43=\"\"),\"\",\"(\"&V43&\"-\"&Z43&\")\"),IF(W43>Y43,V43,IF(Y43>W43,Z43,IF(AB43>AD43,V43,IF(AD43>AB43,Z43,mess_erreur_marque)))))","v":""},null,{"$f":"IF(G43=\"\",\"\",IF(G43=V43,Z43,V43))","v":""},null,null,null,null,null,null,null,null,"#F128",null,null,null,null,null,"-",null,null,null,null,"-"]
[null,null,null,null,null,null,"",null,"",null,null,null,null,null,null,null,null,"#F128",null,null,null,null,null,"-",null,null,null,null,"-"]
[null,null,null,null,null,null,"",null,"",null,null,null,null,null,null,null,null,"#F128",null,null,null,null,null,"-",null,null,null,null,"-"]
[null,null,null,null,null,null,"",null,"",null,null,null,null,null,null,null,null,"#F128",null,null,null,null,null,"-",null,null,null,null,"-"]
[null,null,null,null,null,null,"",null,"",null,null,null,null,null,null,null,null,"#F128",null,null,null,null,null,"-",null,null,null,null,"-"]
[null,null,null,null,null,null,"",null,"",null,null,null,null,null,null,null,null,"#F128",null,null,null,null,null,"-",null,null,null,null,"-"]
[null,null,null,null,null,null,"",null,"",null,null,null,null,null,null,null,null,"#F128",null,null,null,null,null,"-",null,null,null,null,"-"]
[null,null,null,null,null,null,"",null,"",null,null,null,null,null,null,null,null,"#F128",null,null,null,null,null,"-",null,null,null,null,"-"]
[null,null,null,null,null,null,"",null,"",null,null,null,null,null,null,null,null,"#F128",null,null,null,null,null,"-",null,null,null,null,"-"]
[null,null,null,null,null,null,"",null,"",null,null,null,null,null,null,null,null,"#F128",null,null,null,null,null,"-",null,null,null,null,"-"]
[null,null,null,null,null,null,"",null,"",null,null,null,null,null,null,null,null,"#F128",null,null,null,null,null,"-",null,null,null,null,"-"]
[null,null,null,null,null,null,"",null,"",null,null,null,null,null,null,null,null,"#F128",null,null,null,null,null,"-",null,null,null,null,"-"]
[null,null,null,null,null,null,"",null,"",null,null,null,null,null,null,null,null,"#F128",null,null,null,null,null,"-",null,null,null,null,"-"]
[null,null,null,null,null,null,"",null,"",null,null,null,null,null,null,null,null,"#F128",null,null,null,null,null,"-",null,null,null,null,"-"]
[null,null,null,null,null,null,"",null,"",null,null,null,null,null,null,null,null,"#F128",null,null,null,null,null,"-",null,null,null,null,"-"]
[null,null,null,null,null,null,"",null,"",null,null,null,null,null,null,null,null,"#F128",null,null,null,null,null,"-",null,null,null,null,"-"]
[null,null,null,null,null,null,"",null,"",null,null,null,null,null,null,null,null,"#F128",null,null,null,null,null,"-",null,null,null,null,"-"]
[null,null,null,null,null,null,"",null,"",null,null,null,null,null,null,null,null,"#F128",null,null,null,null,null,"-",null,null,null,null,"-"]
[null,null,null,null,null,null,"",null,"",null,null,null,null,null,null,null,null,"#F128",null,null,null,null,null,"-",null,null,null,null,"-"]
[null,null,null,null,null,null,"",null,"",null,null,null,null,null,null,null,null,"#F128",null,null,null,null,null,"-",null,null,null,null,"-"]
[null,null,null,null,null,null,"",null,"",null,null,null,null,null,null,null,null,"#F128",null,null,null,null,null,"-",null,null,null,null,"-"]
[null,null,null,null,null,null,"",null,"",null,null,null,null,null,null,null,null,"#F128",null,null,null,null,null,"-",null,null,null,null,"-"]
[null,null,null,null,null,null,"",null,"",null,null,null,null,null,null,null,null,"#F128",null,null,null,null,null,"-",null,null,null,null,"-"]
[null,null,null,null,null,null,"",null,"",null,null,null,null,null,null,null,null,"#F128",null,null,null,null,null,"-",null,null,null,null,"-"]
[null,null,null,null,null,null,"",null,"",null,null,null,null,null,null,null,null,"#F128",null,null,null,null,null,"-",null,null,null,null,"-"]
[null,null,null,null,null,null,"",null,"",null,null,null,null,null,null,null,null,"#F128",null,null,null,null,null,"-",null,null,null,null,"-"]
[null,null,null,null,null,null,"",null,"",null,null,null,null,null,null,null,null,"#F128",null,null,null,null,null,"-",null,null,null,null,"-"]
[null,null,null,null,null,null,"",null,"",null,null,null,null,null,null,null,null,"#F128",null,null,null,null,null,"-",null,null,null,null,"-"]
[null,null,null,null,null,null,"",null,"",null,null,null,null,null,null,null,null,"#F128",null,null,null,null,null,"-",null,null,null,null,"-"]
[null,null,null,null,null,null,"",null,"",null,null,null,null,null,null,null,null,"#F128",null,null,null,null,null,"-",null,null,null,null,"-"]
[null,null,null,null,null,null,"",null,"",null,null,null,null,null,null,null,null,"#F128",null,null,null,null,null,"-",null,null,null,null,"-"]
[null,null,null,null,null,null,"",null,"",null,null,null,null,null,null,null,null,"#F128",null,null,null,null,null,"-",null,null,null,null,"-"]
[null,null,null,null,null,null,"",null,{"$f":"IF(G75=\"\",\"\",IF(G75=V75,Z75,V75))","v":""},null,null,null,null,null,null,null,null,"#F128",null,null,null,null,null,"-",null,null,null,null,"-"]
[null,null,null,null,null,null,"",null,"",null,null,null,null,null,null,null,null,"#F128",null,null,null,null,null,"-",null,null,null,null,"-"]
[null,null,null,null,null,null,"",null,"",null,null,null,null,null,null,null,null,"#F128",null,null,null,null,null,"-",null,null,null,null,"-"]
[null,null,null,null,null,null,"",null,"",null,null,null,null,null,null,null,null,"#F128",null,null,null,null,null,"-",null,null,null,null,"-"]
[null,null,null,null,null,null,"",null,"",null,null,null,null,null,null,null,null,"#F128",null,null,null,null,null,"-",null,null,null,null,"-"]
[null,null,null,null,null,null,"",null,"",null,null,null,null,null,null,null,null,"#F128",null,null,null,null,null,"-",null,null,null,null,"-"]
[null,null,null,null,null,null,"",null,"",null,null,null,null,null,null,null,null,"#F128",null,null,null,null,null,"-",null,null,null,null,"-"]
[null,null,null,null,null,null,"",null,"",null,null,null,null,null,null,null,null,"#F128",null,null,null,null,null,"-",null,null,null,null,"-"]
[null,null,null,null,null,null,"",null,"",null,null,null,null,null,null,null,null,"#F128",null,null,null,null,null,"-",null,null,null,null,"-"]
[null,null,null,null,null,null,"",null,"",null,null,null,null,null,null,null,null,"#F128",null,null,null,null,null,"-",null,null,null,null,"-"]
[null,null,null,null,null,null,"",null,"",null,null,null,null,null,null,null,null,"#F128",null,null,null,null,null,"-",null,null,null,null,"-"]
[null,null,null,null,null,null,"",null,"",null,null,null,null,null,null,null,null,"#F128",null,null,null,null,null,"-",null,null,null,null,"-"]
[null,null,null,null,null,null,"",null,"",null,null,null,null,null,null,null,null,"#F128",null,null,null,null,null,"-",null,null,null,null,"-"]
[null,null,null,null,null,null,"",null,"",null,null,null,null,null,null,null,null,"#F128",null,null,null,null,null,"-",null,null,null,null,"-"]
[null,null,null,null,null,null,"",null,"",null,null,null,null,null,null,null,null,"#F128",null,null,null,null,null,"-",null,null,null,null,"-"]
[null,null,null,null,null,null,"",null,"",null,null,null,null,null,null,null,null,"#F128",null,null,null,null,null,"-",null,null,null,null,"-"]
[null,null,null,null,null,null,"",null,"",null,null,null,null,null,null,null,null,"#F128",null,null,null,null,null,"-",null,null,null,null,"-"]
[null,null,null,null,null,null,"",null,"",null,null,null,null,null,null,null,null,"#F128",null,null,null,null,null,"-",null,null,null,null,"-"]
[null,null,null,null,null,null,"",null,"",null,null,null,null,null,null,null,null,"#F128",null,null,null,null,null,"-",null,null,null,null,"-"]
[null,null,null,null,null,null,"",null,"",null,null,null,null,null,null,null,null,"#F128",null,null,null,null,null,"-",null,null,null,null,"-"]
[null,null,null,null,null,null,"",null,"",null,null,null,null,null,null,null,null,"#F128",null,null,null,null,null,"-",null,null,null,null,"-"]
[null,null,null,null,null,null,"",null,"",null,null,null,null,null,null,null,null,"#F128",null,null,null,null,null,"-",null,null,null,null,"-"]
[null,null,null,null,null,null,"",null,"",null,null,null,null,null,null,null,null,"#F128",null,null,null,null,null,"-",null,null,null,null,"-"]
[null,null,null,null,null,null,"",null,"",null,null,null,null,null,null,null,null,"#F128",null,null,null,null,null,"-",null,null,null,null,"-"]
[null,null,null,null,null,null,"",null,"",null,null,null,null,null,null,null,null,"#F128",null,null,null,null,null,"-",null,null,null,null,"-"]
[null,null,null,null,null,null,"",null,"",null,null,null,null,null,null,null,null,"#F128",null,null,null,null,null,"-",null,null,null,null,"-"]
[null,null,null,null,null,null,"",null,"",null,null,null,null,null,null,null,null,"#F128",null,null,null,null,null,"-",null,null,null,null,"-"]
[null,null,null,null,null,null,"",null,"",null,null,null,null,null,null,null,null,"#F128",null,null,null,null,null,"-",null,null,null,null,"-"]
[null,null,null,null,null,null,"",null,"",null,null,null,null,null,null,null,null,"#F128",null,null,null,null,null,"-",null,null,null,null,"-"]
[null,null,null,null,null,null,"",null,"",null,null,null,null,null,null,null,null,"#F128",null,null,null,null,null,"-",null,null,null,null,"-"]
[null,null,null,null,null,null,"",null,"",null,null,null,null,null,null,null,null,"#F128",null,null,null,null,null,"-",null,null,null,null,"-"]
[null,null,null,null,null,null,"",null,"",null,null,null,null,null,null,null,null,"#F128",null,null,null,null,null,"-",null,null,null,null,"-"]
[null,null,null,null,null,null,{"$f":"IF(W107=\"\",IF(OR(HidePlayerFormulas,V107=\"\"),\"\",\"(\"&V107&\"-\"&Z107&\")\"),IF(W107>Y107,V107,IF(Y107>W107,Z107,IF(AB107>AD107,V107,IF(AD107>AB107,Z107,mess_erreur_marque)))))","v":""},null,{"$f":"IF(G107=\"\",\"\",IF(G107=V107,Z107,V107))","v":""},null,null,null,null,null,null,null,null,"#F128",null,null,null,null,null,"-",null,null,null,null,"-"]
[null,null,null,null,null,null,"",null,"",null,null,null,null,null,null,null,null,"#F128",null,null,null,null,null,"-",null,null,null,null,"-"]
[null,null,null,null,null,null,"",null,"",null,null,null,null,null,null,null,null,"#F128",null,null,null,null,null,"-",null,null,null,null,"-"]
[null,null,null,null,null,null,"",null,"",null,null,null,null,null,null,null,null,"#F128",null,null,null,null,null,"-",null,null,null,null,"-"]
[null,null,null,null,null,null,"",null,"",null,null,null,null,null,null,null,null,"#F128",null,null,null,null,null,"-",null,null,null,null,"-"]
[null,null,null,null,null,null,"",null,"",null,null,null,null,null,null,null,null,"#F128",null,null,null,null,null,"-",null,null,null,null,"-"]
[null,null,null,null,null,null,"",null,"",null,null,null,null,null,null,null,null,"#F128",null,null,null,null,null,"-",null,null,null,null,"-"]
[null,null,null,null,null,null,"",null,"",null,null,null,null,null,null,null,null,"#F128",null,null,null,null,null,"-",null,null,null,null,"-"]
[null,null,null,null,null,null,"",null,"",null,null,null,null,null,null,null,null,"#F128",null,null,null,null,null,"-",null,null,null,null,"-"]
[null,null,null,null,null,null,"",null,"",null,null,null,null,null,null,null,null,"#F128",null,null,null,null,null,"-",null,null,null,null,"-"]
[null,null,null,null,null,null,"",null,"",null,null,null,null,null,null,null,null,"#F128",null,null,null,null,null,"-",null,null,null,null,"-"]
[null,null,null,null,null,null,"",null,"",null,null,null,null,null,null,null,null,"#F128",null,null,null,null,null,"-",null,null,null,null,"-"]
[null,null,null,null,null,null,"",null,"",null,null,null,null,null,null,null,null,"#F128",null,null,null,null,null,"-",null,null,null,null,"-"]
[null,null,null,null,null,null,"",null,"",null,null,null,null,null,null,null,null,"#F128",null,null,null,null,null,"-",null,null,null,null,"-"]
[null,null,null,null,null,null,"",null,"",null,null,null,null,null,null,null,null,"#F128",null,null,null,null,null,"-",null,null,null,null,"-"]
[null,null,null,null,null,null,"",null,"",null,null,null,null,null,null,null,null,"#F128",null,null,null,null,null,"-",null,null,null,null,"-"]
[null,null,null,null,null,null,"",null,"",null,null,null,null,null,null,null,null,"#F128",null,null,null,null,null,"-",null,null,null,null,"-"]
[null,null,null,null,null,null,"",null,"",null,null,null,null,null,null,null,null,"#F128",null,null,null,null,null,"-",null,null,null,null,"-"]
[null,null,null,null,null,null,"",null,"",null,null,null,null,null,null,null,null,"#F128",null,null,null,null,null,"-",null,null,null,null,"-"]
[null,null,null,null,null,null,"",null,"",null,null,null,null,null,null,null,null,"#F128",null,null,null,null,null,"-",null,null,null,null,"-"]
[null,null,null,null,null,null,"",null,"",null,null,null,null,null,null,null,null,"#F128",null,null,null,null,null,"-",null,null,null,null,"-"]
[null,null,null,null,null,null,"",null,"",null,null,null,null,null,null,null,null,"#F128",null,null,null,null,null,"-",null,null,null,null,"-"]
[null,null,null,null,null,null,"",null,"",null,null,null,null,null,null,null,null,"#F128",null,null,null,null,null,"-",null,null,null,null,"-"]
[null,null,null,null,null,null,"",null,"",null,null,null,null,null,null,null,null,"#F128",null,null,null,null,null,"-",null,null,null,null,"-"]
[null,null,null,null,null,null,"",null,"",null,null,null,null,null,null,null,null,"#F128",null,null,null,null,null,"-",null,null,null,null,"-"]
[null,null,null,null,null,null,"",null,"",null,null,null,null,null,null,null,null,"#F128",null,null,null,null,null,"-",null,null,null,null,"-"]
[null,null,null,null,null,null,"",null,"",null,null,null,null,null,null,null,null,"#F128",null,null,null,null,null,"-",null,null,null,null,"-"]
[null,null,null,null,null,null,"",null,"",null,null,null,null,null,null,null,null,"#F128",null,null,null,null,null,"-",null,null,null,null,"-"]
[null,null,null,null,null,null,"",null,"",null,null,null,null,null,null,null,null,"#F128",null,null,null,null,null,"-",null,null,null,null,"-"]
[null,null,null,null,null,null,"",null,"",null,null,null,null,null,null,null,null,"#F128",null,null,null,null,null,"-",null,null,null,null,"-"]
[null,null,null,null,null,null,"",null,"",null,null,null,null,null,null,null,null,"#F128",null,null,null,null,null,"-",null,null,null,null,"-"]
[null,null,null,null,null,null,"",null,"",null,null,null,null,null,null,null,null,"#F128",null,null,null,null,null,"-",null,null,null,null,"-"]
[null,null,null,null,null,null,"",null,{"$f":"IF(G139=\"\",\"\",IF(G139=V139,Z139,V139))","v":""},null,null,null,null,null,null,null,null,"#F128",null,null,null,null,null,"-",null,null,null,null,"-"]
[null,null,null,null,null,null,"",null,"",null,null,null,null,null,null,null,null,"#F128",null,null,null,null,null,"-",null,null,null,null,"-"]
[null,null,null,null,null,null,"",null,"",null,null,null,null,null,null,null,null,"#F128",null,null,null,null,null,"-",null,null,null,null,"-"]
[null,null,null,null,null,null,"",null,"",null,null,null,null,null,null,null,null,"#F128",null,null,null,null,null,"-",null,null,null,null,"-"]
[null,null,null,null,null,null,"",null,"",null,null,null,null,null,null,null,null,"#F128",null,null,null,null,null,"-",null,null,null,null,"-"]
[null,null,null,null,null,null,"",null,"",null,null,null,null,null,null,null,null,"#F128",null,null,null,null,null,"-",null,null,null,null,"-"]
[null,null,null,null,null,null,"",null,"",null,null,null,null,null,null,null,null,"#F128",null,null,null,null,null,"-",null,null,null,null,"-"]
[null,null,null,null,null,null,"",null,"",null,null,null,null,null,null,null,null,"#F128",null,null,null,null,null,"-",null,null,null,null,"-"]
[null,null,null,null,null,null,"",null,"",null,null,null,null,null,null,null,null,"#F128",null,null,null,null,null,"-",null,null,null,null,"-"]
[null,null,null,null,null,null,"",null,"",null,null,null,null,null,null,null,null,"#F128",null,null,null,null,null,"-",null,null,null,null,"-"]
[null,null,null,null,null,null,"",null,"",null,null,null,null,null,null,null,null,"#F128",null,null,null,null,null,"-",null,null,null,null,"-"]
[null,null,null,null,null,null,"",null,"",null,null,null,null,null,null,null,null,"#F128",null,null,null,null,null,"-",null,null,null,null,"-"]
[null,null,null,null,null,null,"",null,"",null,null,null,null,null,null,null,null,"#F128",null,null,null,null,null,"-",null,null,null,null,"-"]
[null,null,null,null,null,null,"",null,"",null,null,null,null,null,null,null,null,"#F128",null,null,null,null,null,"-",null,null,null,null,"-"]
[null,null,null,null,null,null,"",null,"",null,null,null,null,null,null,null,null,"#F128",null,null,null,null,null,"-",null,null,null,null,"-"]
[null,null,null,null,null,null,"",null,"",null,null,null,null,null,null,null,null,"#F128",null,null,null,null,null,"-",null,null,null,null,"-"]
[null,null,null,null,null,null,"",null,"",null,null,null,null,null,null,null,null,"#F128",null,null,null,null,null,"-",null,null,null,null,"-"]
[null,null,null,null,null,null,"",null,"",null,null,null,null,null,null,null,null,"#F128",null,null,null,null,null,"-",null,null,null,null,"-"]
[null,null,null,null,null,null,"",null,"",null,null,null,null,null,null,null,null,"#F128",null,null,null,null,null,"-",null,null,null,null,"-"]
[null,null,null,null,null,null,"",null,"",null,null,null,null,null,null,null,null,"#F128",null,null,null,null,null,"-",null,null,null,null,"-"]
[null,null,null,null,null,null,"",null,"",null,null,null,null,null,null,null,null,"#F128",null,null,null,null,null,"-",null,null,null,null,"-"]
[null,null,null,null,null,null,"",null,"",null,null,null,null,null,null,null,null,"#F128",null,null,null,null,null,"-",null,null,null,null,"-"]
[null,null,null,null,null,null,"",null,"",null,null,null,null,null,null,null,null,"#F128",null,null,null,null,null,"-",null,null,null,null,"-"]
[null,null,null,null,null,null,"",null,"",null,null,null,null,null,null,null,null,"#F128",null,null,null,null,null,"-",null,null,null,null,"-"]
[null,null,null,null,null,null,"",null,"",null,null,null,null,null,null,null,null,"#F128",null,null,null,null,null,"-",null,null,null,null,"-"]
[null,null,null,null,null,null,"",null,"",null,null,null,null,null,null,null,null,"#F128",null,null,null,null,null,"-",null,null,null,null,"-"]
[null,null,null,null,null,null,"",null,"",null,null,null,null,null,null,null,null,"#F128",null,null,null,null,null,"-",null,null,null,null,"-"]
[null,null,null,null,null,null,"",null,"",null,null,null,null,null,null,null,null,"#F128",null,null,null,null,null,"-",null,null,null,null,"-"]
[null,null,null,null,null,null,"",null,"",null,null,null,null,null,null,null,null,"#F128",null,null,null,null,null,"-",null,null,null,null,"-"]
[null,null,null,null,null,null,"",null,"",null,null,null,null,null,null,null,null,"#F128",null,null,null,null,null,"-",null,null,null,null,"-"]
[null,null,null,null,null,null,"",null,"",null,null,null,null,null,null,null,null,"#F128",null,null,null,null,null,"-",null,null,null,null,"-"]
[null,null,null,null,null,null,"",null,"",null,null,null,null,null,null,null,null,"#F128",null,null,null,null,null,"-",null,null,null,null,"-"]
[]
[null,{"$f":"N__1_64_DE_FINALE","v":"LAST 128"}]
[null,null,null,null,null,null,{"$f":"N_Qualifiés","v":"Qualified"},null,{"$f":"N_Disqualified","v":"Disqualified"},null,null,null,null,null,null,null,null,null,{"$f":"N_Heure","v":"Time"},{"$f":"N_Table","v":"Table"},{"$f":"N_Arbitre","v":"Referee"},null,{"$f":"N_Scores","v":"Scores"},null,null,null,{"$f":"N_MS","v":"SD"},{"$f":"N_Diff","v":"Pen."}]
[null,null,null,null,null,null,{"$f":"IF(W174=\"\",IF(OR(HidePlayerFormulas,V174=\"\"),\"\",\"(\"&V174&\"-\"&Z174&\")\"),IF(W174>Y174,V174,IF(Y174>W174,Z174,IF(AB174>AD174,V174,IF(AD174>AB174,Z174,mess_erreur_marque)))))","v":""},null,{"$f":"IF(G174=\"\",\"\",IF(G174=V174,Z174,V174))","v":""},null,null,null,null,null,null,null,null,"#F64",null,null,null,null,null,"-",null,null,null,null,"-"]
[null,null,null,null,null,null,"",null,"",null,null,null,null,null,null,null,null,"#F64",null,null,null,null,null,"-",null,null,null,null,"-"]
[null,null,null,null,null,null,"",null,"",null,null,null,null,null,null,null,null,"#F64",null,null,null,null,null,"-",null,null,null,null,"-"]
[null,null,null,null,null,null,"",null,"",null,null,null,null,null,null,null,null,"#F64",null,null,null,null,null,"-",null,null,null,null,"-"]
[null,null,null,null,null,null,"",null,"",null,null,null,null,null,null,null,null,"#F64",null,null,null,null,null,"-",null,null,null,null,"-"]
[null,null,null,null,null,null,"",null,"",null,null,null,null,null,null,null,null,"#F64",null,null,null,null,null,"-",null,null,null,null,"-"]
[null,null,null,null,null,null,"",null,"",null,null,null,null,null,null,null,null,"#F64",null,null,null,null,null,"-",null,null,null,null,"-"]
[null,null,null,null,null,null,"",null,"",null,null,null,null,null,null,null,null,"#F64",null,null,null,null,null,"-",null,null,null,null,"-"]
[null,null,null,null,null,null,"",null,"",null,null,null,null,null,null,null,null,"#F64",null,null,null,null,null,"-",null,null,null,null,"-"]
[null,null,null,null,null,null,"",null,"",null,null,null,null,null,null,null,null,"#F64",null,null,null,null,null,"-",null,null,null,null,"-"]
[null,null,null,null,null,null,"",null,"",null,null,null,null,null,null,null,null,"#F64",null,null,null,null,null,"-",null,null,null,null,"-"]
[null,null,null,null,null,null,"",null,"",null,null,null,null,null,null,null,null,"#F64",null,null,null,null,null,"-",null,null,null,null,"-"]
[null,null,null,null,null,null,"",null,"",null,null,null,null,null,null,null,null,"#F64",null,null,null,null,null,"-",null,null,null,null,"-"]
[null,null,null,null,null,null,"",null,"",null,null,null,null,null,null,null,null,"#F64",null,null,null,null,null,"-",null,null,null,null,"-"]
[null,null,null,null,null,null,"",null,"",null,null,null,null,null,null,null,null,"#F64",null,null,null,null,null,"-",null,null,null,null,"-"]
[null,null,null,null,null,null,"",null,"",null,null,null,null,null,null,null,null,"#F64",null,null,null,null,null,"-",null,null,null,null,"-"]
[null,null,null,null,null,null,"",null,"",null,null,null,null,null,null,null,null,"#F64",null,null,null,null,null,"-",null,null,null,null,"-"]
[null,null,null,null,null,null,"",null,"",null,null,null,null,null,null,null,null,"#F64",null,null,null,null,null,"-",null,null,null,null,"-"]
[null,null,null,null,null,null,"",null,"",null,null,null,null,null,null,null,null,"#F64",null,null,null,null,null,"-",null,null,null,null,"-"]
[null,null,null,null,null,null,"",null,"",null,null,null,null,null,null,null,null,"#F64",null,null,null,null,null,"-",null,null,null,null,"-"]
[null,null,null,null,null,null,"",null,"",null,null,null,null,null,null,null,null,"#F64",null,null,null,null,null,"-",null,null,null,null,"-"]
[null,null,null,null,null,null,"",null,"",null,null,null,null,null,null,null,null,"#F64",null,null,null,null,null,"-",null,null,null,null,"-"]
[null,null,null,null,null,null,"",null,"",null,null,null,null,null,null,null,null,"#F64",null,null,null,null,null,"-",null,null,null,null,"-"]
[null,null,null,null,null,null,"",null,"",null,null,null,null,null,null,null,null,"#F64",null,null,null,null,null,"-",null,null,null,null,"-"]
[null,null,null,null,null,null,"",null,"",null,null,null,null,null,null,null,null,"#F64",null,null,null,null,null,"-",null,null,null,null,"-"]
[null,null,null,null,null,null,"",null,"",null,null,null,null,null,null,null,null,"#F64",null,null,null,null,null,"-",null,null,null,null,"-"]
[null,null,null,null,null,null,"",null,"",null,null,null,null,null,null,null,null,"#F64",null,null,null,null,null,"-",null,null,null,null,"-"]
[null,null,null,null,null,null,"",null,"",null,null,null,null,null,null,null,null,"#F64",null,null,null,null,null,"-",null,null,null,null,"-"]
[null,null,null,null,null,null,"",null,"",null,null,null,null,null,null,null,null,"#F64",null,null,null,null,null,"-",null,null,null,null,"-"]
[null,null,null,null,null,null,"",null,"",null,null,null,null,null,null,null,null,"#F64",null,null,null,null,null,"-",null,null,null,null,"-"]
[null,null,null,null,null,null,"",null,"",null,null,null,null,null,null,null,null,"#F64",null,null,null,null,null,"-",null,null,null,null,"-"]
[null,null,null,null,null,null,"",null,"",null,null,null,null,null,null,null,null,"#F64",null,null,null,null,null,"-",null,null,null,null,"-"]
[null,null,null,null,null,null,{"$f":"IF(W206=\"\",IF(OR(HidePlayerFormulas,V206=\"\"),\"\",\"(\"&V206&\"-\"&Z206&\")\"),IF(W206>Y206,V206,IF(Y206>W206,Z206,IF(AB206>AD206,V206,IF(AD206>AB206,Z206,mess_erreur_marque)))))","v":""},null,{"$f":"IF(G206=\"\",\"\",IF(G206=V206,Z206,V206))","v":""},null,null,null,null,null,null,null,null,"#F64",null,null,null,null,null,"-",null,null,null,null,"-"]
[null,null,null,null,null,null,"",null,"",null,null,null,null,null,null,null,null,"#F64",null,null,null,null,null,"-",null,null,null,null,"-"]
[null,null,null,null,null,null,"",null,"",null,null,null,null,null,null,null,null,"#F64",null,null,null,null,null,"-",null,null,null,null,"-"]
[null,null,null,null,null,null,"",null,"",null,null,null,null,null,null,null,null,"#F64",null,null,null,null,null,"-",null,null,null,null,"-"]
[null,null,null,null,null,null,"",null,"",null,null,null,null,null,null,null,null,"#F64",null,null,null,null,null,"-",null,null,null,null,"-"]
[null,null,null,null,null,null,"",null,"",null,null,null,null,null,null,null,null,"#F64",null,null,null,null,null,"-",null,null,null,null,"-"]
[null,null,null,null,null,null,"",null,"",null,null,null,null,null,null,null,null,"#F64",null,null,null,null,null,"-",null,null,null,null,"-"]
[null,null,null,null,null,null,"",null,"",null,null,null,null,null,null,null,null,"#F64",null,null,null,null,null,"-",null,null,null,null,"-"]
[null,null,null,null,null,null,"",null,"",null,null,null,null,null,null,null,null,"#F64",null,null,null,null,null,"-",null,null,null,null,"-"]
[null,null,null,null,null,null,"",null,"",null,null,null,null,null,null,null,null,"#F64",null,null,null,null,null,"-",null,null,null,null,"-"]
[null,null,null,null,null,null,"",null,"",null,null,null,null,null,null,null,null,"#F64",null,null,null,null,null,"-",null,null,null,null,"-"]
[null,null,null,null,null,null,"",null,"",null,null,null,null,null,null,null,null,"#F64",null,null,null,null,null,"-",null,null,null,null,"-"]
[null,null,null,null,null,null,"",null,"",null,null,null,null,null,null,null,null,"#F64",null,null,null,null,null,"-",null,null,null,null,"-"]
[null,null,null,null,null,null,"",null,"",null,null,null,null,null,null,null,null,"#F64",null,null,null,null,null,"-",null,null,null,null,"-"]
[null,null,null,null,null,null,"",null,"",null,null,null,null,null,null,null,null,"#F64",null,null,null,null,null,"-",null,null,null,null,"-"]
[null,null,null,null,null,null,"",null,"",null,null,null,null,null,null,null,null,"#F64",null,null,null,null,null,"-",null,null,null,null,"-"]
[null,null,null,null,null,null,"",null,"",null,null,null,null,null,null,null,null,"#F64",null,null,null,null,null,"-",null,null,null,null,"-"]
[null,null,null,null,null,null,"",null,"",null,null,null,null,null,null,null,null,"#F64",null,null,null,null,null,"-",null,null,null,null,"-"]
[null,null,null,null,null,null,"",null,"",null,null,null,null,null,null,null,null,"#F64",null,null,null,null,null,"-",null,null,null,null,"-"]
[null,null,null,null,null,null,"",null,"",null,null,null,null,null,null,null,null,"#F64",null,null,null,null,null,"-",null,null,null,null,"-"]
[null,null,null,null,null,null,"",null,"",null,null,null,null,null,null,null,null,"#F64",null,null,null,null,null,"-",null,null,null,null,"-"]
[null,null,null,null,null,null,"",null,"",null,null,null,null,null,null,null,null,"#F64",null,null,null,null,null,"-",null,null,null,null,"-"]
[null,null,null,null,null,null,"",null,"",null,null,null,null,null,null,null,null,"#F64",null,null,null,null,null,"-",null,null,null,null,"-"]
[null,null,null,null,null,null,"",null,"",null,null,null,null,null,null,null,null,"#F64",null,null,null,null,null,"-",null,null,null,null,"-"]
[null,null,null,null,null,null,"",null,"",null,null,null,null,null,null,null,null,"#F64",null,null,null,null,null,"-",null,null,null,null,"-"]
[null,null,null,null,null,null,"",null,"",null,null,null,null,null,null,null,null,"#F64",null,null,null,null,null,"-",null,null,null,null,"-"]
[null,null,null,null,null,null,"",null,"",null,null,null,null,null,null,null,null,"#F64",null,null,null,null,null,"-",null,null,null,null,"-"]
[null,null,null,null,null,null,"",null,"",null,null,null,null,null,null,null,null,"#F64",null,null,null,null,null,"-",null,null,null,null,"-"]
[null,null,null,null,null,null,"",null,"",null,null,null,null,null,null,null,null,"#F64",null,null,null,null,null,"-",null,null,null,null,"-"]
[null,null,null,null,null,null,"",null,"",null,null,null,null,null,null,null,null,"#F64",null,null,null,null,null,"-",null,null,null,null,"-"]
[null,null,null,null,null,null,"",null,"",null,null,null,null,null,null,null,null,"#F64",null,null,null,null,null,"-",null,null,null,null,"-"]
[null,null,null,null,null,null,"",null,"",null,null,null,null,null,null,null,null,"#F64",null,null,null,null,null,"-",null,null,null,null,"-"]
[]
[null,{"$f":"N__1_32_DE_FINALE","v":"LAST 64"}]
[null,null,null,null,null,null,{"$f":"N_Qualifiés","v":"Qualified"},null,{"$f":"N_Disqualified","v":"Disqualified"},null,null,null,null,null,null,null,null,null,{"$f":"N_Heure","v":"Time"},{"$f":"N_Table","v":"Table"},{"$f":"N_Arbitre","v":"Referee"},null,{"$f":"N_Scores","v":"Scores"},null,null,null,{"$f":"N_MS","v":"SD"},{"$f":"N_Diff","v":"Pen."}]
[null,null,null,null,null,null,{"$f":"IF(W241=\"\",IF(OR(HidePlayerFormulas,V241=\"\"),\"\",\"(\"&V241&\"-\"&Z241&\")\"),IF(W241>Y241,V241,IF(Y241>W241,Z241,IF(AB241>AD241,V241,IF(AD241>AB241,Z241,mess_erreur_marque)))))","v":""},null,{"$f":"IF(G241=\"\",\"\",IF(G241=V241,Z241,V241))","v":""},null,null,null,null,null,null,null,null,"#F32",null,null,null,null,null,"-",null,null,null,null,"-"]
[null,null,null,null,null,null,"",null,"",null,null,null,null,null,null,null,null,"#F32",null,null,null,null,null,"-",null,null,null,null,"-"]
[null,null,null,null,null,null,"",null,"",null,null,null,null,null,null,null,null,"#F32",null,null,null,null,null,"-",null,null,null,null,"-"]
[null,null,null,null,null,null,"",null,"",null,null,null,null,null,null,null,null,"#F32",null,null,null,null,null,"-",null,null,null,null,"-"]
[null,null,null,null,null,null,"",null,"",null,null,null,null,null,null,null,null,"#F32",null,null,null,null,null,"-",null,null,null,null,"-"]
[null,null,null,null,null,null,"",null,"",null,null,null,null,null,null,null,null,"#F32",null,null,null,null,null,"-",null,null,null,null,"-"]
[null,null,null,null,null,null,"",null,"",null,null,null,null,null,null,null,null,"#F32",null,null,null,null,null,"-",null,null,null,null,"-"]
[null,null,null,null,null,null,"",null,"",null,null,null,null,null,null,null,null,"#F32",null,null,null,null,null,"-",null,null,null,null,"-"]
[null,null,null,null,null,null,"",null,"",null,null,null,null,null,null,null,null,"#F32",null,null,null,null,null,"-",null,null,null,null,"-"]
[null,null,null,null,null,null,"",null,"",null,null,null,null,null,null,null,null,"#F32",null,null,null,null,null,"-",null,null,null,null,"-"]
[null,null,null,null,null,null,"",null,"",null,null,null,null,null,null,null,null,"#F32",null,null,null,null,null,"-",null,null,null,null,"-"]
[null,null,null,null,null,null,"",null,"",null,null,null,null,null,null,null,null,"#F32",null,null,null,null,null,"-",null,null,null,null,"-"]
[null,null,null,null,null,null,"",null,"",null,null,null,null,null,null,null,null,"#F32",null,null,null,null,null,"-",null,null,null,null,"-"]
[null,null,null,null,null,null,"",null,"",null,null,null,null,null,null,null,null,"#F32",null,null,null,null,null,"-",null,null,null,null,"-"]
[null,null,null,null,null,null,"",null,"",null,null,null,null,null,null,null,null,"#F32",null,null,null,null,null,"-",null,null,null,null,"-"]
[null,null,null,null,null,null,"",null,"",null,null,null,null,null,null,null,null,"#F32",null,null,null,null,null,"-",null,null,null,null,"-"]
[null,null,null,null,null,null,"",null,"",null,null,null,null,null,null,null,null,"#F32",null,null,null,null,null,"-",null,null,null,null,"-"]
[null,null,null,null,null,null,"",null,"",null,null,null,null,null,null,null,null,"#F32",null,null,null,null,null,"-",null,null,null,null,"-"]
[null,null,null,null,null,null,"",null,"",null,null,null,null,null,null,null,null,"#F32",null,null,null,null,null,"-",null,null,null,null,"-"]
[null,null,null,null,null,null,"",null,"",null,null,null,null,null,null,null,null,"#F32",null,null,null,null,null,"-",null,null,null,null,"-"]
[null,null,null,null,null,null,"",null,"",null,null,null,null,null,null,null,null,"#F32",null,null,null,null,null,"-",null,null,null,null,"-"]
[null,null,null,null,null,null,"",null,"",null,null,null,null,null,null,null,null,"#F32",null,null,null,null,null,"-",null,null,null,null,"-"]
[null,null,null,null,null,null,"",null,"",null,null,null,null,null,null,null,null,"#F32",null,null,null,null,null,"-",null,null,null,null,"-"]
[null,null,null,null,null,null,"",null,"",null,null,null,null,null,null,null,null,"#F32",null,null,null,null,null,"-",null,null,null,null,"-"]
[null,null,null,null,null,null,"",null,"",null,null,null,null,null,null,null,null,"#F32",null,null,null,null,null,"-",null,null,null,null,"-"]
[null,null,null,null,null,null,"",null,"",null,null,null,null,null,null,null,null,"#F32",null,null,null,null,null,"-",null,null,null,null,"-"]
[null,null,null,null,null,null,"",null,"",null,null,null,null,null,null,null,null,"#F32",null,null,null,null,null,"-",null,null,null,null,"-"]
[null,null,null,null,null,null,"",null,"",null,null,null,null,null,null,null,null,"#F32",null,null,null,null,null,"-",null,null,null,null,"-"]
[null,null,null,null,null,null,"",null,"",null,null,null,null,null,null,null,null,"#F32",null,null,null,null,null,"-",null,null,null,null,"-"]
[null,null,null,null,null,null,"",null,"",null,null,null,null,null,null,null,null,"#F32",null,null,null,null,null,"-",null,null,null,null,"-"]
[null,null,null,null,null,null,"",null,"",null,null,null,null,null,null,null,null,"#F32",null,null,null,null,null,"-",null,null,null,null,"-"]
[null,null,null,null,null,null,"",null,"",null,null,null,null,null,null,null,null,"#F32",null,null,null,null,null,"-",null,null,null,null,"-"]
[]
[null,{"$f":"N__1_16_DE_FINALE","v":"LAST 32"}]
[null,null,null,null,null,null,{"$f":"N_Qualifiés","v":"Qualified"},null,{"$f":"N_Disqualified","v":"Disqualified"},null,null,null,null,null,null,null,null,null,{"$f":"N_Heure","v":"Time"},{"$f":"N_Table","v":"Table"},{"$f":"N_Arbitre","v":"Referee"},null,{"$f":"N_Scores","v":"Scores"},null,null,null,{"$f":"N_MS","v":"SD"},{"$f":"N_Diff","v":"Pen."}]
[null,null,null,null,null,null,{"$f":"IF(W276=\"\",IF(OR(HidePlayerFormulas,V276=\"\"),\"\",\"(\"&V276&\"-\"&Z276&\")\"),IF(W276>Y276,V276,IF(Y276>W276,Z276,IF(AB276>AD276,V276,IF(AD276>AB276,Z276,mess_erreur_marque)))))","v":""},null,{"$f":"IF(G276=\"\",\"\",IF(G276=V276,Z276,V276))","v":""},null,null,null,null,null,null,null,null,"#F16",null,null,null,null,null,"-",null,null,null,null,"-"]
[null,null,null,null,null,null,"",null,"",null,null,null,null,null,null,null,null,"#F16",null,null,null,null,null,"-",null,null,null,null,"-"]
[null,null,null,null,null,null,"",null,"",null,null,null,null,null,null,null,null,"#F16",null,null,null,null,null,"-",null,null,null,null,"-"]
[null,null,null,null,null,null,"",null,"",null,null,null,null,null,null,null,null,"#F16",null,null,null,null,null,"-",null,null,null,null,"-"]
[null,null,null,null,null,null,"",null,"",null,null,null,null,null,null,null,null,"#F16",null,null,null,null,null,"-",null,null,null,null,"-"]
[null,null,null,null,null,null,"",null,"",null,null,null,null,null,null,null,null,"#F16",null,null,null,null,null,"-",null,null,null,null,"-"]
[null,null,null,null,null,null,"",null,"",null,null,null,null,null,null,null,null,"#F16",null,null,null,null,null,"-",null,null,null,null,"-"]
[null,null,null,null,null,null,"",null,"",null,null,null,null,null,null,null,null,"#F16",null,null,null,null,null,"-",null,null,null,null,"-"]
[null,null,null,null,null,null,"",null,"",null,null,null,null,null,null,null,null,"#F16",null,null,null,null,null,"-",null,null,null,null,"-"]
[null,null,null,null,null,null,"",null,"",null,null,null,null,null,null,null,null,"#F16",null,null,null,null,null,"-",null,null,null,null,"-"]
[null,null,null,null,null,null,"",null,"",null,null,null,null,null,null,null,null,"#F16",null,null,null,null,null,"-",null,null,null,null,"-"]
[null,null,null,null,null,null,"",null,"",null,null,null,null,null,null,null,null,"#F16",null,null,null,null,null,"-",null,null,null,null,"-"]
[null,null,null,null,null,null,"",null,"",null,null,null,null,null,null,null,null,"#F16",null,null,null,null,null,"-",null,null,null,null,"-"]
[null,null,null,null,null,null,"",null,"",null,null,null,null,null,null,null,null,"#F16",null,null,null,null,null,"-",null,null,null,null,"-"]
[null,null,null,null,null,null,"",null,"",null,null,null,null,null,null,null,null,"#F16",null,null,null,null,null,"-",null,null,null,null,"-"]
[null,null,null,null,null,null,"",null,"",null,null,null,null,null,null,null,null,"#F16",null,null,null,null,null,"-",null,null,null,null,"-"]
[]
[null,{"$f":"N__1_8_DE_FINALE","v":"LAST 16"}]
[null,null,null,null,null,null,{"$f":"N_Qualifiés","v":"Qualified"},null,{"$f":"N_Disqualified","v":"Disqualified"},null,null,null,null,null,null,null,null,null,{"$f":"N_Heure","v":"Time"},{"$f":"N_Table","v":"Table"},{"$f":"N_Arbitre","v":"Referee"},null,{"$f":"N_Scores","v":"Scores"},null,null,null,{"$f":"N_MS","v":"SD"},{"$f":"N_Diff","v":"Pen."}]
[null,null,null,null,null,null,{"$f":"IF(W295=\"\",IF(OR(HidePlayerFormulas,V295=\"\"),\"\",\"(\"&V295&\"-\"&Z295&\")\"),IF(W295>Y295,V295,IF(Y295>W295,Z295,IF(AB295>AD295,V295,IF(AD295>AB295,Z295,mess_erreur_marque)))))","v":""},null,{"$f":"IF(G295=\"\",\"\",IF(G295=V295,Z295,V295))","v":""},null,null,null,null,null,null,null,null,"#F8",null,null,null,null,null,"-",null,null,null,null,"-"]
[null,null,null,null,null,null,"",null,"",null,null,null,null,null,null,null,null,"#F8",null,null,null,null,null,"-",null,null,null,null,"-"]
[null,null,null,null,null,null,"",null,"",null,null,null,null,null,null,null,null,"#F8",null,null,null,null,null,"-",null,null,null,null,"-"]
[null,null,null,null,null,null,"",null,"",null,null,null,null,null,null,null,null,"#F8",null,null,null,null,null,"-",null,null,null,null,"-"]
[null,null,null,null,null,null,"",null,"",null,null,null,null,null,null,null,null,"#F8",null,null,null,null,null,"-",null,null,null,null,"-"]
[null,null,null,null,null,null,"",null,"",null,null,null,null,null,null,null,null,"#F8",null,null,null,null,null,"-",null,null,null,null,"-"]
[null,null,null,null,null,null,"",null,"",null,null,null,null,null,null,null,null,"#F8",null,null,null,null,null,"-",null,null,null,null,"-"]
[null,null,null,null,null,null,"",null,"",null,null,null,null,null,null,null,null,"#F8",null,null,null,null,null,"-",null,null,null,null,"-"]
[]
[null,{"$f":"N_QUART_DE_FINALE","v":"LAST 8"}]
[null,null,null,null,null,null,{"$f":"N_Qualifiés","v":"Qualified"},null,{"$f":"N_Disqualified","v":"Disqualified"},null,null,null,null,null,null,null,null,null,{"$f":"N_Heure","v":"Time"},{"$f":"N_Table","v":"Table"},{"$f":"N_Arbitre","v":"Referee"},null,{"$f":"N_Scores","v":"Scores"},null,null,null,{"$f":"N_MS","v":"SD"},{"$f":"N_Diff","v":"Pen."}]
[null,null,null,null,null,null,{"$f":"IF(W306=\"\",IF(OR(HidePlayerFormulas,V306=\"\"),\"\",\"(\"&V306&\"-\"&Z306&\")\"),IF(W306>Y306,V306,IF(Y306>W306,Z306,IF(AB306>AD306,V306,IF(AD306>AB306,Z306,mess_erreur_marque)))))","v":""},null,{"$f":"IF(G306=\"\",\"\",IF(G306=V306,Z306,V306))","v":""},null,null,null,null,null,null,null,null,"#F4",null,null,null,null,null,"-",null,null,null,null,"-"]
[null,null,null,null,null,null,{"$f":"IF(W307=\"\",IF(OR(HidePlayerFormulas,V307=\"\"),\"\",\"(\"&V307&\"-\"&Z307&\")\"),IF(W307>Y307,V307,IF(Y307>W307,Z307,IF(AB307>AD307,V307,IF(AD307>AB307,Z307,mess_erreur_marque)))))","v":""},null,{"$f":"IF(G307=\"\",\"\",IF(G307=V307,Z307,V307))","v":""},null,null,null,null,null,null,null,null,"#F4",null,null,null,null,null,"-",null,null,null,null,"-"]
[null,null,null,null,null,null,{"$f":"IF(W308=\"\",IF(OR(HidePlayerFormulas,V308=\"\"),\"\",\"(\"&V308&\"-\"&Z308&\")\"),IF(W308>Y308,V308,IF(Y308>W308,Z308,IF(AB308>AD308,V308,IF(AD308>AB308,Z308,mess_erreur_marque)))))","v":""},null,{"$f":"IF(G308=\"\",\"\",IF(G308=V308,Z308,V308))","v":""},null,null,null,null,null,null,null,null,"#F4",null,null,null,null,null,"-",null,null,null,null,"-"]
[null,null,null,null,null,null,{"$f":"IF(W309=\"\",IF(OR(HidePlayerFormulas,V309=\"\"),\"\",\"(\"&V309&\"-\"&Z309&\")\"),IF(W309>Y309,V309,IF(Y309>W309,Z309,IF(AB309>AD309,V309,IF(AD309>AB309,Z309,mess_erreur_marque)))))","v":""},null,{"$f":"IF(G309=\"\",\"\",IF(G309=V309,Z309,V309))","v":""},null,null,null,null,null,null,null,null,"#F4",null,null,null,null,null,"-",null,null,null,null,"-"]
[]
[null,{"$f":"N_DEMI_FINALE","v":"SEMI FINAL"}]
[null,null,null,null,null,null,{"$f":"N_Qualifiés","v":"Qualified"},null,{"$f":"N_Disqualified","v":"Disqualified"},null,null,null,null,null,null,null,null,null,{"$f":"N_Heure","v":"Time"},{"$f":"N_Table","v":"Table"},{"$f":"N_Arbitre","v":"Referee"},null,{"$f":"N_Scores","v":"Scores"},null,null,null,{"$f":"N_MS","v":"SD"},{"$f":"N_Diff","v":"Pen."}]
[null,null,null,null,null,null,{"$f":"IF(W313=\"\",IF(OR(HidePlayerFormulas,V313=\"\"),\"\",\"(\"&V313&\"-\"&Z313&\")\"),IF(W313>Y313,V313,IF(Y313>W313,Z313,IF(AB313>AD313,V313,IF(AD313>AB313,Z313,mess_erreur_marque)))))","v":""},null,{"$f":"IF(G313=\"\",\"\",IF(G313=V313,Z313,V313))","v":""},null,null,null,null,null,null,null,null,"#F2",null,null,null,null,null,"-",null,null,null,null,"-"]
[null,null,null,null,null,null,{"$f":"IF(W314=\"\",IF(OR(HidePlayerFormulas,V314=\"\"),\"\",\"(\"&V314&\"-\"&Z314&\")\"),IF(W314>Y314,V314,IF(Y314>W314,Z314,IF(AB314>AD314,V314,IF(AD314>AB314,Z314,mess_erreur_marque)))))","v":""},null,{"$f":"IF(G314=\"\",\"\",IF(G314=V314,Z314,V314))","v":""},null,null,null,null,null,null,null,null,"#F2",null,null,null,null,null,"-",null,null,null,null,"-"]
[]
[null,{"$f":"N_THIRD","v":"PLAY-OFF for 3rd PLACE"}]
[null,null,null,null,null,null,{"$f":"N_ThirdWinner","v":"Third"},null,{"$f":"N_ThirdLoser","v":"Fourth"},null,null,null,null,null,null,null,null,null,{"$f":"N_Heure","v":"Time"},{"$f":"N_Table","v":"Table"},{"$f":"N_Arbitre","v":"Referee"},null,{"$f":"N_Scores","v":"Scores"},null,null,null,{"$f":"N_MS","v":"SD"},{"$f":"N_Diff","v":"Pen."}]
[null,null,null,null,null,null,{"$f":"IF(W318=\"\",IF(OR(HidePlayerFormulas,V318=\"\"),\"\",\"(\"&V318&\"-\"&Z318&\")\"),IF(W318>Y318,V318,IF(Y318>W318,Z318,IF(AB318>AD318,V318,IF(AD318>AB318,Z318,mess_erreur_marque)))))","v":""},null,{"$f":"IF(G318=\"\",\"\",IF(G318=V318,Z318,V318))","v":""},null,null,null,null,null,null,null,null,"#F3",null,null,null,null,null,"-",null,null,null,null,"-"]
[]
[null,{"$f":"N_FINALE","v":"FINAL"}]
[null,null,null,null,null,null,{"$f":"N_VAINQUEUR","v":"WINNER"},null,{"$f":"N_Finalist","v":"Finalist"},null,null,null,null,null,null,null,null,null,{"$f":"N_Heure","v":"Time"},{"$f":"N_Table","v":"Table"},{"$f":"N_Arbitre","v":"Referee"},null,{"$f":"N_Scores","v":"Scores"},null,null,null,{"$f":"N_MS","v":"SD"},{"$f":"N_Diff","v":"Pen."}]
[null,null,null,null,null,null,{"$f":"IF(W322=\"\",IF(OR(HidePlayerFormulas,V322=\"\"),\"\",\"(\"&V322&\"-\"&Z322&\")\"),IF(W322>Y322,V322,IF(Y322>W322,Z322,IF(AB322>AD322,V322,IF(AD322>AB322,Z322,mess_erreur_marque)))))","v":""},null,{"$f":"IF(G322=\"\",\"\",IF(G322=V322,Z322,V322))","v":""},null,null,null,null,null,null,null,null,"#F1",null,null,null,null,null,"-",null,null,null,null,"-"]

{"sheet":"Team FDL","index":22,"n_rows":236,"n_cols":38,"rows_kept":236,"cut":false,"hidden":true,"merged":[[223,1,223,38],[188,25,188,28],[228,25,228,28],[147,24,147,28],[100,25,100,28],[109,24,109,28],[133,1,133,38],[197,24,197,28],[174,25,174,28],[138,25,138,28],[225,24,225,28],[185,24,185,28],[183,1,183,38],[209,1,209,38],[162,25,162,28],[171,24,171,28],[3,1,3,38],[35,1,35,38],[31,25,31,28],[30,25,30,28],[5,24,5,28],[8,25,8,28],[20,25,20,28],[17,24,17,28],[135,24,135,28],[64,25,64,28],[76,25,76,28],[85,24,85,28],[73,24,73,28],[88,25,88,28],[211,24,211,28],[214,25,214,28],[37,24,37,28],[32,25,32,28],[33,25,33,28],[40,25,40,28],[52,25,52,28],[61,24,61,28],[49,24,49,28],[200,25,200,28],[150,25,150,28],[159,24,159,28],[97,24,97,28],[112,25,112,28],[121,24,121,28],[124,25,124,28]]}
[null,null,null,null,null,null,null,null,null,null,null,null,null,null,null,null,null,null,null,null,null,null,null,null,{"$f":"N_Event_Type","v":"Event Type"}]
[null,null,null,null,null,null,null,null,null,null,null,null,null,null,null,null,null,null,null,null,null,null,null,null,{"$f":"Event1","v":"Open"}]
[]
[null,{"$f":"N_BARRAGES","v":"PLAY-OFF"}]
[]
[null,null,null,null,null,null,null,null,null,null,null,null,null,null,null,null,null,null,null,null,null,{"$f":"N_Heure","v":"Time"},{"$f":"N_Table","v":"Table"},{"$f":"N_Arbitre","v":"Referee"},{"$f":"N_Scores","v":"Scores"},null,null,null,null,{"$f":"N_MS","v":"SD"},null,null,null,null,null,null,null,{"$f":"IF(COUNTA(Z10:Z13)>3,\"OK\",\"\")","v":""}]
[null,null,null,null,null,null,null,null,null,null,null,null,null,null,null,null,null,null,null,null,"#FPO",null,null,null,null,{"$f":"IF(OR(ISNUMBER(Z10),ISNUMBER(Z11),ISNUMBER(Z12),ISNUMBER(Z13)),Lire_Gain_Matches(Z10:Z13, AB10:AB13),\"\")","v":""},"-",{"$f":"IF(OR(ISNUMBER(Z10),ISNUMBER(Z11),ISNUMBER(Z12),ISNUMBER(Z13)),Lire_Gain_Matches(AB10:AB13, Z10:Z13),\"\")","v":""},null,{"$f":"IF(ISNA(VLOOKUP(\"X\",AD10:AD13,1,FALSE)),\"\",\"X\")","v":""},{"$f":"IF(Z7=\"\",\"\",IF(Z7>AB7,Y7,IF(Z7=AB7,IF(AL7=Y7,AC7,IF(AL7=AC7,Y7,\"\")),AC7)))","v":""},{"$f":"IF(Z7=\"\",\"\",IF(Z7=AB7,IF(AL7=Y7,\"\",IF(AL7=AC7,\"\",Y7)),\"\"))","v":""},{"$f":"IF(Z7=\"\",\"\",IF(Z7=AB7,IF(AL7=Y7,\"\",IF(AL7=AC7,\"\",AC7)),\"\"))","v":""},{"$f":"IF(Z7=\"\",\"\",IF(Z7<AB7,Y7,IF(Z7=AB7,IF(AL7=Y7,Y7,IF(AL7=AC7,AC7,\"\")),AC7)))","v":""},null,null,null,{"$f":"IF(COUNTIF(Y10:Y13,WithdrawLabel)>COUNTIF(AC10:AC13,WithdrawLabel),Y7,IF(COUNTIF(AC10:AC13,WithdrawLabel)>COUNTIF(Y10:Y13,WithdrawLabel),AC7,\"\"))","v":""}]
[null,null,null,null,null,null,null,null,null,null,null,null,null,null,null,null,null,null,null,null,null,null,null,null,{"$f":"N_Total_buts","v":"Total goals"},{"$f":"IF(OR(ISNUMBER(Z10),ISNUMBER(Z11),ISNUMBER(Z12),ISNUMBER(Z13)),SUM(Z10:Z13),\"\")","v":""},"-",{"$f":"IF(OR(ISNUMBER(Z10),ISNUMBER(Z11),ISNUMBER(Z12),ISNUMBER(Z13)),SUM(AB10:AB13),\"\")","v":""},{"$f":"IF(Z14=\"\",\"\",CONCATENATE(\"(Diff : \",Z14,\" - \",AB14,\")\"))","v":""}]
[null,null,null,null,null,null,{"$f":"IF(Z9=\"\",\"\",IF(Z9=Y7,AC7,Y7))","v":""},null,null,{"$f":"IF(Z9=\"\",\"\",IF(Z9=Y7,AC7,Y7))","v":""},null,null,null,null,null,null,null,null,null,null,null,null,null,null,{"$f":"N_VAINQUEUR","v":"WINNER"},{"$f":"IF(AL6<>\"OK\",IF(HidePlayerFormulas,\"\",\"(\"&Y7&\"-\"&AC7&\")\"),IF(AE7=\"\",IF(Z8>AB8,Y7,IF(Z8<AB8,AC7,mess_erreur_marque)),AE7))","v":""}]
[null,null,null,null,null,null,null,null,null,null,null,null,null,null,null,null,null,null,null,null,null,null,null,null,null,null,"-"]
[null,null,null,null,null,null,null,null,null,null,null,null,null,null,null,null,null,null,null,null,null,null,null,null,null,null,"-"]
[null,null,null,null,null,null,null,null,null,null,null,null,null,null,null,null,null,null,null,null,null,null,null,null,null,null,"-"]
[null,null,null,null,null,null,null,null,null,null,null,null,null,null,null,null,null,null,null,null,null,null,null,null,null,null,"-"]
[null,null,null,null,null,null,null,null,null,null,null,null,null,null,null,null,null,null,null,null,null,null,{"$f":"N_Différentiel","v":"Shoot Out"},null,null,null,"-"]
[null,null,null,null,null,null,null,null,null,null,null,null,null,null,null,null,null,null,null,null,null,null,null,{"$f":"N_Substitute","v":"Substitute"}]
[null,null,null,null,null,null,null,null,null,null,null,null,null,null,null,null,null,null,null,null,null,null,null,{"$f":"N_Substitute","v":"Substitute"}]
[]
[null,null,null,null,null,null,null,null,null,null,null,null,null,null,null,null,null,null,null,null,null,{"$f":"N_Heure","v":"Time"},{"$f":"N_Table","v":"Table"},{"$f":"N_Arbitre","v":"Referee"},{"$f":"N_Scores","v":"Scores"},null,null,null,null,{"$f":"N_MS","v":"SD"},null,null,null,null,null,null,null,{"$f":"IF(COUNTA(Z22:Z25)>3,\"OK\",\"\")","v":""}]
[null,null,null,null,null,null,null,null,null,null,null,null,null,null,null,null,null,null,null,null,"#FPO",null,null,null,null,{"$f":"IF(OR(ISNUMBER(Z22),ISNUMBER(Z23),ISNUMBER(Z24),ISNUMBER(Z25)),Lire_Gain_Matches(Z22:Z25, AB22:AB25),\"\")","v":""},"-",{"$f":"IF(OR(ISNUMBER(Z22),ISNUMBER(Z23),ISNUMBER(Z24),ISNUMBER(Z25)),Lire_Gain_Matches(AB22:AB25, Z22:Z25),\"\")","v":""},null,{"$f":"IF(ISNA(VLOOKUP(\"X\",AD22:AD25,1,FALSE)),\"\",\"X\")","v":""},{"$f":"IF(Z19=\"\",\"\",IF(Z19>AB19,Y19,IF(Z19=AB19,IF(AL19=Y19,AC19,IF(AL19=AC19,Y19,\"\")),AC19)))","v":""},{"$f":"IF(Z19=\"\",\"\",IF(Z19=AB19,IF(AL19=Y19,\"\",IF(AL19=AC19,\"\",Y19)),\"\"))","v":""},{"$f":"IF(Z19=\"\",\"\",IF(Z19=AB19,IF(AL19=Y19,\"\",IF(AL19=AC19,\"\",AC19)),\"\"))","v":""},{"$f":"IF(Z19=\"\",\"\",IF(Z19<AB19,Y19,IF(Z19=AB19,IF(AL19=Y19,Y19,IF(AL19=AC19,AC19,\"\")),AC19)))","v":""},null,null,null,{"$f":"IF(COUNTIF(Y22:Y25,WithdrawLabel)>COUNTIF(AC22:AC25,WithdrawLabel),Y19,IF(COUNTIF(AC22:AC25,WithdrawLabel)>COUNTIF(Y22:Y25,WithdrawLabel),AC19,\"\"))","v":""}]
[null,null,null,null,null,null,null,null,null,null,null,null,null,null,null,null,null,null,null,null,null,null,null,null,{"$f":"N_Total_buts","v":"Total goals"},{"$f":"IF(OR(ISNUMBER(Z22),ISNUMBER(Z23),ISNUMBER(Z24),ISNUMBER(Z25)),SUM(Z22:Z25),\"\")","v":""},"-",{"$f":"IF(OR(ISNUMBER(Z22),ISNUMBER(Z23),ISNUMBER(Z24),ISNUMBER(Z25)),SUM(AB22:AB25),\"\")","v":""},{"$f":"IF(Z26=\"\",\"\",CONCATENATE(\"(Diff : \",Z26,\" - \",AB26,\")\"))","v":""}]
[null,null,null,null,null,null,null,null,null,{"$f":"IF(Z21=\"\",\"\",IF(Z21=Y19,AC19,Y19))","v":""},null,null,null,null,null,null,null,null,null,null,null,null,null,null,{"$f":"N_VAINQUEUR","v":"WINNER"},{"$f":"IF(AL18<>\"OK\",IF(HidePlayerFormulas,\"\",\"(\"&Y19&\"-\"&AC19&\")\"),IF(AE19=\"\",IF(Z20>AB20,Y19,IF(Z20<AB20,AC19,mess_erreur_marque)),AE19))","v":""}]
[null,null,null,null,null,null,null,null,null,null,null,null,null,null,null,null,null,null,null,null,null,null,null,null,null,null,"-",0]
[null,null,null,null,null,null,null,null,null,null,null,null,null,null,null,null,null,null,null,null,null,null,null,null,null,null,"-",1]
[null,null,null,null,null,null,null,null,null,null,null,null,null,null,null,null,null,null,null,null,null,null,null,null,null,null,"-",1]
[null,null,null,null,null,null,null,null,null,null,null,null,null,null,null,null,null,null,null,null,null,null,null,null,null,null,"-",3]
[null,null,null,null,null,null,null,null,null,null,null,null,null,null,null,null,null,null,null,null,null,null,{"$f":"N_Différentiel","v":"Shoot Out"},null,null,null,"-"]
[null,null,null,null,null,null,null,null,null,null,null,null,null,null,null,null,null,null,null,null,null,null,null,{"$f":"N_Substitute","v":"Substitute"}]
[null,null,null,null,null,null,null,null,null,null,null,null,null,null,null,null,null,null,null,null,null,null,null,{"$f":"N_Substitute","v":"Substitute"}]
[]
[null,null,null,null,null,null,null,null,null,null,null,null,null,null,null,null,null,null,null,null,null,null,null,null,null,{"$f":"N_Pre_Qualified","v":"Pre-qualified"}]
[]
[]
[]
[]
[]
[null,{"$f":"N__1_8_DE_FINALE","v":"LAST 16"}]
[]
[null,null,null,null,null,null,null,null,null,null,null,null,null,null,null,null,null,null,null,null,null,{"$f":"N_Heure","v":"Time"},{"$f":"N_Table","v":"Table"},{"$f":"N_Arbitre","v":"Referee"},{"$f":"N_Scores","v":"Scores"},null,null,null,null,{"$f":"N_MS","v":"SD"},null,null,null,null,null,null,null,{"$f":"IF(COUNTA(Z42:Z45)>3,\"OK\",\"\")","v":""}]
[null,null,null,null,null,null,null,null,null,null,null,null,null,null,null,null,null,null,null,null,"#F8",null,null,null,null,{"$f":"IF(OR(ISNUMBER(Z42),ISNUMBER(Z43),ISNUMBER(Z44),ISNUMBER(Z45)),Lire_Gain_Matches(Z42:Z45, AB42:AB45),\"\")","v":""},"-",{"$f":"IF(OR(ISNUMBER(Z42),ISNUMBER(Z43),ISNUMBER(Z44),ISNUMBER(Z45)),Lire_Gain_Matches(AB42:AB45, Z42:Z45),\"\")","v":""},null,{"$f":"IF(ISNA(VLOOKUP(\"X\",AD42:AD45,1,FALSE)),\"\",\"X\")","v":""},{"$f":"IF(Z39=\"\",\"\",IF(Z39>AB39,Y39,IF(Z39=AB39,IF(AL39=Y39,AC39,IF(AL39=AC39,Y39,\"\")),AC39)))","v":""},{"$f":"IF(Z39=\"\",\"\",IF(Z39=AB39,IF(AL39=Y39,\"\",IF(AL39=AC39,\"\",Y39)),\"\"))","v":""},{"$f":"IF(Z39=\"\",\"\",IF(Z39=AB39,IF(AL39=Y39,\"\",IF(AL39=AC39,\"\",AC39)),\"\"))","v":""},{"$f":"IF(Z39=\"\",\"\",IF(Z39<AB39,Y39,IF(Z39=AB39,IF(AL39=Y39,Y39,IF(AL39=AC39,AC39,\"\")),AC39)))","v":""},null,null,null,{"$f":"IF(COUNTIF(Y42:Y45,WithdrawLabel)>COUNTIF(AC42:AC45,WithdrawLabel),Y39,IF(COUNTIF(AC42:AC45,WithdrawLabel)>COUNTIF(Y42:Y45,WithdrawLabel),AC39,\"\"))","v":""}]
[null,null,null,null,null,null,null,null,null,null,null,null,null,null,null,null,null,null,null,null,null,null,null,null,{"$f":"N_Total_buts","v":"Total goals"},{"$f":"IF(OR(ISNUMBER(Z42),ISNUMBER(Z43),ISNUMBER(Z44),ISNUMBER(Z45)),SUM(Z42:Z45),\"\")","v":""},"-",{"$f":"IF(OR(ISNUMBER(Z42),ISNUMBER(Z43),ISNUMBER(Z44),ISNUMBER(Z45)),SUM(AB42:AB45),\"\")","v":""},{"$f":"IF(Z46=\"\",\"\",CONCATENATE(\"(Diff : \",Z46,\" - \",AB46,\")\"))","v":""}]
[null,null,null,null,null,null,null,null,null,{"$f":"IF(Z41=\"\",\"\",IF(Z41=Y39,AC39,Y39))","v":""},null,null,null,null,null,null,null,null,null,null,null,null,null,null,{"$f":"N_VAINQUEUR","v":"WINNER"},{"$f":"IF(AL38<>\"OK\",IF(HidePlayerFormulas,\"\",\"(\"&Y39&\"-\"&AC39&\")\"),IF(AE39=\"\",IF(Z40>AB40,Y39,IF(Z40<AB40,AC39,mess_erreur_marque)),AE39))","v":""}]
[null,null,null,null,null,null,null,null,null,null,null,null,null,null,null,null,null,null,null,null,null,null,null,null,null,null,"-"]
[null,null,null,null,null,null,null,null,null,null,null,null,null,null,null,null,null,null,null,null,null,null,null,null,null,null,"-"]
[null,null,null,null,null,null,null,null,null,null,null,null,null,null,null,null,null,null,null,null,null,null,null,null,null,null,"-"]
[null,null,null,null,null,null,null,null,null,null,null,null,null,null,null,null,null,null,null,null,null,null,null,null,null,null,"-"]
[null,null,null,null,null,null,null,null,null,null,null,null,null,null,null,null,null,null,null,null,null,null,{"$f":"N_Différentiel","v":"Shoot Out"},null,null,null,"-"]
[null,null,null,null,null,null,null,null,null,null,null,null,null,null,null,null,null,null,null,null,null,null,null,{"$f":"N_Substitute","v":"Substitute"}]
[null,null,null,null,null,null,null,null,null,null,null,null,null,null,null,null,null,null,null,null,null,null,null,{"$f":"N_Substitute","v":"Substitute"}]
[]
[null,null,null,null,null,null,null,null,null,null,null,null,null,null,null,null,null,null,null,null,null,{"$f":"N_Heure","v":"Time"},{"$f":"N_Table","v":"Table"},{"$f":"N_Arbitre","v":"Referee"},{"$f":"N_Scores","v":"Scores"},null,null,null,null,{"$f":"N_MS","v":"SD"},null,null,null,null,null,null,null,{"$f":"IF(COUNTA(Z54:Z57)>3,\"OK\",\"\")","v":""}]
[null,null,null,null,null,null,null,null,null,null,null,null,null,null,null,null,null,null,null,null,"#F8",null,null,null,null,{"$f":"IF(OR(ISNUMBER(Z54),ISNUMBER(Z55),ISNUMBER(Z56),ISNUMBER(Z57)),Lire_Gain_Matches(Z54:Z57, AB54:AB57),\"\")","v":""},"-",{"$f":"IF(OR(ISNUMBER(Z54),ISNUMBER(Z55),ISNUMBER(Z56),ISNUMBER(Z57)),Lire_Gain_Matches(AB54:AB57, Z54:Z57),\"\")","v":""},null,{"$f":"IF(ISNA(VLOOKUP(\"X\",AD54:AD57,1,FALSE)),\"\",\"X\")","v":""},{"$f":"IF(Z51=\"\",\"\",IF(Z51>AB51,Y51,IF(Z51=AB51,IF(AL51=Y51,AC51,IF(AL51=AC51,Y51,\"\")),AC51)))","v":""},{"$f":"IF(Z51=\"\",\"\",IF(Z51=AB51,IF(AL51=Y51,\"\",IF(AL51=AC51,\"\",Y51)),\"\"))","v":""},{"$f":"IF(Z51=\"\",\"\",IF(Z51=AB51,IF(AL51=Y51,\"\",IF(AL51=AC51,\"\",AC51)),\"\"))","v":""},{"$f":"IF(Z51=\"\",\"\",IF(Z51<AB51,Y51,IF(Z51=AB51,IF(AL51=Y51,Y51,IF(AL51=AC51,AC51,\"\")),AC51)))","v":""},null,null,null,{"$f":"IF(COUNTIF(Y54:Y57,WithdrawLabel)>COUNTIF(AC54:AC57,WithdrawLabel),Y51,IF(COUNTIF(AC54:AC57,WithdrawLabel)>COUNTIF(Y54:Y57,WithdrawLabel),AC51,\"\"))","v":""}]
[null,null,null,null,null,null,null,null,null,null,null,null,null,null,null,null,null,null,null,null,null,null,null,null,{"$f":"N_Total_buts","v":"Total goals"},{"$f":"IF(OR(ISNUMBER(Z54),ISNUMBER(Z55),ISNUMBER(Z56),ISNUMBER(Z57)),SUM(Z54:Z57),\"\")","v":""},"-",{"$f":"IF(OR(ISNUMBER(Z54),ISNUMBER(Z55),ISNUMBER(Z56),ISNUMBER(Z57)),SUM(AB54:AB57),\"\")","v":""},{"$f":"IF(Z58=\"\",\"\",CONCATENATE(\"(Diff : \",Z58,\" - \",AB58,\")\"))","v":""}]
[null,null,null,null,null,null,null,null,null,{"$f":"IF(Z53=\"\",\"\",IF(Z53=Y51,AC51,Y51))","v":""},null,null,null,null,null,null,null,null,null,null,null,null,null,null,{"$f":"N_VAINQUEUR","v":"WINNER"},{"$f":"IF(AL50<>\"OK\",IF(HidePlayerFormulas,\"\",\"(\"&Y51&\"-\"&AC51&\")\"),IF(AE51=\"\",IF(Z52>AB52,Y51,IF(Z52<AB52,AC51,mess_erreur_marque)),AE51))","v":""}]
[null,null,null,null,null,null,null,null,null,null,null,null,null,null,null,null,null,null,null,null,null,null,null,null,null,null,"-"]
[null,null,null,null,null,null,null,null,null,null,null,null,null,null,null,null,null,null,null,null,null,null,null,null,null,null,"-"]
[null,null,null,null,null,null,null,null,null,null,null,null,null,null,null,null,null,null,null,null,null,null,null,null,null,null,"-"]
[null,null,null,null,null,null,null,null,null,null,null,null,null,null,null,null,null,null,null,null,null,null,null,null,null,null,"-"]
[null,null,null,null,null,null,null,null,null,null,null,null,null,null,null,null,null,null,null,null,null,null,{"$f":"N_Différentiel","v":"Shoot Out"},null,null,null,"-"]
[null,null,null,null,null,null,null,null,null,null,null,null,null,null,null,null,null,null,null,null,null,null,null,{"$f":"N_Substitute","v":"Substitute"}]
[null,null,null,null,null,null,null,null,null,null,null,null,null,null,null,null,null,null,null,null,null,null,null,{"$f":"N_Substitute","v":"Substitute"}]
[]
[null,null,null,null,null,null,null,null,null,null,null,null,null,null,null,null,null,null,null,null,null,{"$f":"N_Heure","v":"Time"},{"$f":"N_Table","v":"Table"},{"$f":"N_Arbitre","v":"Referee"},{"$f":"N_Scores","v":"Scores"},null,null,null,null,{"$f":"N_MS","v":"SD"},null,null,null,null,null,null,null,{"$f":"IF(COUNTA(Z66:Z69)>3,\"OK\",\"\")","v":""}]
[null,null,null,null,null,null,null,null,null,null,null,null,null,null,null,null,null,null,null,null,"#F8",null,null,null,null,{"$f":"IF(OR(ISNUMBER(Z66),ISNUMBER(Z67),ISNUMBER(Z68),ISNUMBER(Z69)),Lire_Gain_Matches(Z66:Z69, AB66:AB69),\"\")","v":""},"-",{"$f":"IF(OR(ISNUMBER(Z66),ISNUMBER(Z67),ISNUMBER(Z68),ISNUMBER(Z69)),Lire_Gain_Matches(AB66:AB69, Z66:Z69),\"\")","v":""},null,{"$f":"IF(ISNA(VLOOKUP(\"X\",AD66:AD69,1,FALSE)),\"\",\"X\")","v":""},{"$f":"IF(Z63=\"\",\"\",IF(Z63>AB63,Y63,IF(Z63=AB63,IF(AL63=Y63,AC63,IF(AL63=AC63,Y63,\"\")),AC63)))","v":""},{"$f":"IF(Z63=\"\",\"\",IF(Z63=AB63,IF(AL63=Y63,\"\",IF(AL63=AC63,\"\",Y63)),\"\"))","v":""},{"$f":"IF(Z63=\"\",\"\",IF(Z63=AB63,IF(AL63=Y63,\"\",IF(AL63=AC63,\"\",AC63)),\"\"))","v":""},{"$f":"IF(Z63=\"\",\"\",IF(Z63<AB63,Y63,IF(Z63=AB63,IF(AL63=Y63,Y63,IF(AL63=AC63,AC63,\"\")),AC63)))","v":""},null,null,null,{"$f":"IF(COUNTIF(Y66:Y69,WithdrawLabel)>COUNTIF(AC66:AC69,WithdrawLabel),Y63,IF(COUNTIF(AC66:AC69,WithdrawLabel)>COUNTIF(Y66:Y69,WithdrawLabel),AC63,\"\"))","v":""}]
[null,null,null,null,null,null,null,null,null,null,null,null,null,null,null,null,null,null,null,null,null,null,null,null,{"$f":"N_Total_buts","v":"Total goals"},{"$f":"IF(OR(ISNUMBER(Z66),ISNUMBER(Z67),ISNUMBER(Z68),ISNUMBER(Z69)),SUM(Z66:Z69),\"\")","v":""},"-",{"$f":"IF(OR(ISNUMBER(Z66),ISNUMBER(Z67),ISNUMBER(Z68),ISNUMBER(Z69)),SUM(AB66:AB69),\"\")","v":""},{"$f":"IF(Z70=\"\",\"\",CONCATENATE(\"(Diff : \",Z70,\" - \",AB70,\")\"))","v":""}]
[null,null,null,null,null,null,null,null,null,{"$f":"IF(Z65=\"\",\"\",IF(Z65=Y63,AC63,Y63))","v":""},null,null,null,null,null,null,null,null,null,null,null,null,null,null,{"$f":"N_VAINQUEUR","v":"WINNER"},{"$f":"IF(AL62<>\"OK\",IF(HidePlayerFormulas,\"\",\"(\"&Y63&\"-\"&AC63&\")\"),IF(AE63=\"\",IF(Z64>AB64,Y63,IF(Z64<AB64,AC63,mess_erreur_marque)),AE63))","v":""}]
[null,null,null,null,null,null,null,null,null,null,null,null,null,null,null,null,null,null,null,null,null,null,null,null,null,null,"-"]
[null,null,null,null,null,null,null,null,null,null,null,null,null,null,null,null,null,null,null,null,null,null,null,null,null,null,"-"]
[null,null,null,null,null,null,null,null,null,null,null,null,null,null,null,null,null,null,null,null,null,null,null,null,null,null,"-"]
[null,null,null,null,null,null,null,null,null,null,null,null,null,null,null,null,null,null,null,null,null,null,null,null,null,null,"-"]
[null,null,null,null,null,null,null,null,null,null,null,null,null,null,null,null,null,null,null,null,null,null,{"$f":"N_Différentiel","v":"Shoot Out"},null,null,null,"-"]
[null,null,null,null,null,null,null,null,null,null,null,null,null,null,null,null,null,null,null,null,null,null,null,{"$f":"N_Substitute","v":"Substitute"}]
[null,null,null,null,null,null,null,null,null,null,null,null,null,null,null,null,null,null,null,null,null,null,null,{"$f":"N_Substitute","v":"Substitute"}]
[]
[null,null,null,null,null,null,null,null,null,null,null,null,null,null,null,null,null,null,null,null,null,{"$f":"N_Heure","v":"Time"},{"$f":"N_Table","v":"Table"},{"$f":"N_Arbitre","v":"Referee"},{"$f":"N_Scores","v":"Scores"},null,null,null,null,{"$f":"N_MS","v":"SD"},null,null,null,null,null,null,null,{"$f":"IF(COUNTA(Z78:Z81)>3,\"OK\",\"\")","v":""}]
[null,null,null,null,null,null,null,null,null,null,null,null,null,null,null,null,null,null,null,null,"#F8",null,null,null,null,{"$f":"IF(OR(ISNUMBER(Z78),ISNUMBER(Z79),ISNUMBER(Z80),ISNUMBER(Z81)),Lire_Gain_Matches(Z78:Z81, AB78:AB81),\"\")","v":""},"-",{"$f":"IF(OR(ISNUMBER(Z78),ISNUMBER(Z79),ISNUMBER(Z80),ISNUMBER(Z81)),Lire_Gain_Matches(AB78:AB81, Z78:Z81),\"\")","v":""},null,{"$f":"IF(ISNA(VLOOKUP(\"X\",AD78:AD81,1,FALSE)),\"\",\"X\")","v":""},{"$f":"IF(Z75=\"\",\"\",IF(Z75>AB75,Y75,IF(Z75=AB75,IF(AL75=Y75,AC75,IF(AL75=AC75,Y75,\"\")),AC75)))","v":""},{"$f":"IF(Z75=\"\",\"\",IF(Z75=AB75,IF(AL75=Y75,\"\",IF(AL75=AC75,\"\",Y75)),\"\"))","v":""},{"$f":"IF(Z75=\"\",\"\",IF(Z75=AB75,IF(AL75=Y75,\"\",IF(AL75=AC75,\"\",AC75)),\"\"))","v":""},{"$f":"IF(Z75=\"\",\"\",IF(Z75<AB75,Y75,IF(Z75=AB75,IF(AL75=Y75,Y75,IF(AL75=AC75,AC75,\"\")),AC75)))","v":""},null,null,null,{"$f":"IF(COUNTIF(Y78:Y81,WithdrawLabel)>COUNTIF(AC78:AC81,WithdrawLabel),Y75,IF(COUNTIF(AC78:AC81,WithdrawLabel)>COUNTIF(Y78:Y81,WithdrawLabel),AC75,\"\"))","v":""}]
[null,null,null,null,null,null,null,null,null,null,null,null,null,null,null,null,null,null,null,null,null,null,null,null,{"$f":"N_Total_buts","v":"Total goals"},{"$f":"IF(OR(ISNUMBER(Z78),ISNUMBER(Z79),ISNUMBER(Z80),ISNUMBER(Z81)),SUM(Z78:Z81),\"\")","v":""},"-",{"$f":"IF(OR(ISNUMBER(Z78),ISNUMBER(Z79),ISNUMBER(Z80),ISNUMBER(Z81)),SUM(AB78:AB81),\"\")","v":""},{"$f":"IF(Z82=\"\",\"\",CONCATENATE(\"(Diff : \",Z82,\" - \",AB82,\")\"))","v":""}]
[null,null,null,null,null,null,null,null,null,{"$f":"IF(Z77=\"\",\"\",IF(Z77=Y75,AC75,Y75))","v":""},null,null,null,null,null,null,null,null,null,null,null,null,null,null,{"$f":"N_VAINQUEUR","v":"WINNER"},{"$f":"IF(AL74<>\"OK\",IF(HidePlayerFormulas,\"\",\"(\"&Y75&\"-\"&AC75&\")\"),IF(AE75=\"\",IF(Z76>AB76,Y75,IF(Z76<AB76,AC75,mess_erreur_marque)),AE75))","v":""}]
[null,null,null,null,null,null,null,null,null,null,null,null,null,null,null,null,null,null,null,null,null,null,null,null,null,null,"-"]
[null,null,null,null,null,null,null,null,null,null,null,null,null,null,null,null,null,null,null,null,null,null,null,null,null,null,"-"]
[null,null,null,null,null,null,null,null,null,null,null,null,null,null,null,null,null,null,null,null,null,null,null,null,null,null,"-"]
[null,null,null,null,null,null,null,null,null,null,null,null,null,null,null,null,null,null,null,null,null,null,null,null,null,null,"-"]
[null,null,null,null,null,null,null,null,null,null,null,null,null,null,null,null,null,null,null,null,null,null,{"$f":"N_Différentiel","v":"Shoot Out"},null,null,null,"-"]
[null,null,null,null,null,null,null,null,null,null,null,null,null,null,null,null,null,null,null,null,null,null,null,{"$f":"N_Substitute","v":"Substitute"}]
[null,null,null,null,null,null,null,null,null,null,null,null,null,null,null,null,null,null,null,null,null,null,null,{"$f":"N_Substitute","v":"Substitute"}]
[]
[null,null,null,null,null,null,null,null,null,null,null,null,null,null,null,null,null,null,null,null,null,{"$f":"N_Heure","v":"Time"},{"$f":"N_Table","v":"Table"},{"$f":"N_Arbitre","v":"Referee"},{"$f":"N_Scores","v":"Scores"},null,null,null,null,{"$f":"N_MS","v":"SD"},null,null,null,null,null,null,null,{"$f":"IF(COUNTA(Z90:Z93)>3,\"OK\",\"\")","v":""}]
[null,null,null,null,null,null,null,null,null,null,null,null,null,null,null,null,null,null,null,null,"#F8",null,null,null,null,{"$f":"IF(OR(ISNUMBER(Z90),ISNUMBER(Z91),ISNUMBER(Z92),ISNUMBER(Z93)),Lire_Gain_Matches(Z90:Z93, AB90:AB93),\"\")","v":""},"-",{"$f":"IF(OR(ISNUMBER(Z90),ISNUMBER(Z91),ISNUMBER(Z92),ISNUMBER(Z93)),Lire_Gain_Matches(AB90:AB93, Z90:Z93),\"\")","v":""},null,{"$f":"IF(ISNA(VLOOKUP(\"X\",AD90:AD93,1,FALSE)),\"\",\"X\")","v":""},{"$f":"IF(Z87=\"\",\"\",IF(Z87>AB87,Y87,IF(Z87=AB87,IF(AL87=Y87,AC87,IF(AL87=AC87,Y87,\"\")),AC87)))","v":""},{"$f":"IF(Z87=\"\",\"\",IF(Z87=AB87,IF(AL87=Y87,\"\",IF(AL87=AC87,\"\",Y87)),\"\"))","v":""},{"$f":"IF(Z87=\"\",\"\",IF(Z87=AB87,IF(AL87=Y87,\"\",IF(AL87=AC87,\"\",AC87)),\"\"))","v":""},{"$f":"IF(Z87=\"\",\"\",IF(Z87<AB87,Y87,IF(Z87=AB87,IF(AL87=Y87,Y87,IF(AL87=AC87,AC87,\"\")),AC87)))","v":""},null,null,null,{"$f":"IF(COUNTIF(Y90:Y93,WithdrawLabel)>COUNTIF(AC90:AC93,WithdrawLabel),Y87,IF(COUNTIF(AC90:AC93,WithdrawLabel)>COUNTIF(Y90:Y93,WithdrawLabel),AC87,\"\"))","v":""}]
[null,null,null,null,null,null,null,null,null,null,null,null,null,null,null,null,null,null,null,null,null,null,null,null,{"$f":"N_Total_buts","v":"Total goals"},{"$f":"IF(OR(ISNUMBER(Z90),ISNUMBER(Z91),ISNUMBER(Z92),ISNUMBER(Z93)),SUM(Z90:Z93),\"\")","v":""},"-",{"$f":"IF(OR(ISNUMBER(Z90),ISNUMBER(Z91),ISNUMBER(Z92),ISNUMBER(Z93)),SUM(AB90:AB93),\"\")","v":""},{"$f":"IF(Z94=\"\",\"\",CONCATENATE(\"(Diff : \",Z94,\" - \",AB94,\")\"))","v":""}]
[null,null,null,null,null,null,null,null,null,{"$f":"IF(Z89=\"\",\"\",IF(Z89=Y87,AC87,Y87))","v":""},null,null,null,null,null,null,null,null,null,null,null,null,null,null,{"$f":"N_VAINQUEUR","v":"WINNER"},{"$f":"IF(AL86<>\"OK\",IF(HidePlayerFormulas,\"\",\"(\"&Y87&\"-\"&AC87&\")\"),IF(AE87=\"\",IF(Z88>AB88,Y87,IF(Z88<AB88,AC87,mess_erreur_marque)),AE87))","v":""}]
[null,null,null,null,null,null,null,null,null,null,null,null,null,null,null,null,null,null,null,null,null,null,null,null,null,null,"-"]
[null,null,null,null,null,null,null,null,null,null,null,null,null,null,null,null,null,null,null,null,null,null,null,null,null,null,"-"]
[null,null,null,null,null,null,null,null,null,null,null,null,null,null,null,null,null,null,null,null,null,null,null,null,null,null,"-"]
[null,null,null,null,null,null,null,null,null,null,null,null,null,null,null,null,null,null,null,null,null,null,null,null,null,null,"-"]
[null,null,null,null,null,null,null,null,null,null,null,null,null,null,null,null,null,null,null,null,null,null,{"$f":"N_Différentiel","v":"Shoot Out"},null,null,null,"-"]
[null,null,null,null,null,null,null,null,null,null,null,null,null,null,null,null,null,null,null,null,null,null,null,{"$f":"N_Substitute","v":"Substitute"}]
[null,null,null,null,null,null,null,null,null,null,null,null,null,null,null,null,null,null,null,null,null,null,null,{"$f":"N_Substitute","v":"Substitute"}]
[]
[null,null,null,null,null,null,null,null,null,null,null,null,null,null,null,null,null,null,null,null,null,{"$f":"N_Heure","v":"Time"},{"$f":"N_Table","v":"Table"},{"$f":"N_Arbitre","v":"Referee"},{"$f":"N_Scores","v":"Scores"},null,null,null,null,{"$f":"N_MS","v":"SD"},null,null,null,null,null,null,null,{"$f":"IF(COUNTA(Z102:Z105)>3,\"OK\",\"\")","v":""}]
[null,null,null,null,null,null,null,null,null,null,null,null,null,null,null,null,null,null,null,null,"#F8",null,null,null,null,{"$f":"IF(OR(ISNUMBER(Z102),ISNUMBER(Z103),ISNUMBER(Z104),ISNUMBER(Z105)),Lire_Gain_Matches(Z102:Z105, AB102:AB105),\"\")","v":""},"-",{"$f":"IF(OR(ISNUMBER(Z102),ISNUMBER(Z103),ISNUMBER(Z104),ISNUMBER(Z105)),Lire_Gain_Matches(AB102:AB105, Z102:Z105),\"\")","v":""},null,{"$f":"IF(ISNA(VLOOKUP(\"X\",AD102:AD105,1,FALSE)),\"\",\"X\")","v":""},{"$f":"IF(Z99=\"\",\"\",IF(Z99>AB99,Y99,IF(Z99=AB99,IF(AL99=Y99,AC99,IF(AL99=AC99,Y99,\"\")),AC99)))","v":""},{"$f":"IF(Z99=\"\",\"\",IF(Z99=AB99,IF(AL99=Y99,\"\",IF(AL99=AC99,\"\",Y99)),\"\"))","v":""},{"$f":"IF(Z99=\"\",\"\",IF(Z99=AB99,IF(AL99=Y99,\"\",IF(AL99=AC99,\"\",AC99)),\"\"))","v":""},{"$f":"IF(Z99=\"\",\"\",IF(Z99<AB99,Y99,IF(Z99=AB99,IF(AL99=Y99,Y99,IF(AL99=AC99,AC99,\"\")),AC99)))","v":""},null,null,null,{"$f":"IF(COUNTIF(Y102:Y105,WithdrawLabel)>COUNTIF(AC102:AC105,WithdrawLabel),Y99,IF(COUNTIF(AC102:AC105,WithdrawLabel)>COUNTIF(Y102:Y105,WithdrawLabel),AC99,\"\"))","v":""}]
[null,null,null,null,null,null,null,null,null,null,null,null,null,null,null,null,null,null,null,null,null,null,null,null,{"$f":"N_Total_buts","v":"Total goals"},{"$f":"IF(OR(ISNUMBER(Z102),ISNUMBER(Z103),ISNUMBER(Z104),ISNUMBER(Z105)),SUM(Z102:Z105),\"\")","v":""},"-",{"$f":"IF(OR(ISNUMBER(Z102),ISNUMBER(Z103),ISNUMBER(Z104),ISNUMBER(Z105)),SUM(AB102:AB105),\"\")","v":""},{"$f":"IF(Z106=\"\",\"\",CONCATENATE(\"(Diff : \",Z106,\" - \",AB106,\")\"))","v":""}]
[null,null,null,null,null,null,null,null,null,{"$f":"IF(Z101=\"\",\"\",IF(Z101=Y99,AC99,Y99))","v":""},null,null,null,null,null,null,null,null,null,null,null,null,null,null,{"$f":"N_VAINQUEUR","v":"WINNER"},{"$f":"IF(AL98<>\"OK\",IF(HidePlayerFormulas,\"\",\"(\"&Y99&\"-\"&AC99&\")\"),IF(AE99=\"\",IF(Z100>AB100,Y99,IF(Z100<AB100,AC99,mess_erreur_marque)),AE99))","v":""}]
[null,null,null,null,null,null,null,null,null,null,null,null,null,null,null,null,null,null,null,null,null,null,null,null,null,null,"-"]
[null,null,null,null,null,null,null,null,null,null,null,null,null,null,null,null,null,null,null,null,null,null,null,null,null,null,"-"]
[null,null,null,null,null,null,null,null,null,null,null,null,null,null,null,null,null,null,null,null,null,null,null,null,null,null,"-"]
[null,null,null,null,null,null,null,null,null,null,null,null,null,null,null,null,null,null,null,null,null,null,null,null,null,null,"-"]
[null,null,null,null,null,null,null,null,null,null,null,null,null,null,null,null,null,null,null,null,null,null,{"$f":"N_Différentiel","v":"Shoot Out"},null,null,null,"-"]
[null,null,null,null,null,null,null,null,null,null,null,null,null,null,null,null,null,null,null,null,null,null,null,{"$f":"N_Substitute","v":"Substitute"}]
[null,null,null,null,null,null,null,null,null,null,null,null,null,null,null,null,null,null,null,null,null,null,null,{"$f":"N_Substitute","v":"Substitute"}]
[]
[null,null,null,null,null,null,null,null,null,null,null,null,null,null,null,null,null,null,null,null,null,{"$f":"N_Heure","v":"Time"},{"$f":"N_Table","v":"Table"},{"$f":"N_Arbitre","v":"Referee"},{"$f":"N_Scores","v":"Scores"},null,null,null,null,{"$f":"N_MS","v":"SD"},null,null,null,null,null,null,null,{"$f":"IF(COUNTA(Z114:Z117)>3,\"OK\",\"\")","v":""}]
[null,null,null,null,null,null,null,null,null,null,null,null,null,null,null,null,null,null,null,null,"#F8",null,null,null,null,{"$f":"IF(OR(ISNUMBER(Z114),ISNUMBER(Z115),ISNUMBER(Z116),ISNUMBER(Z117)),Lire_Gain_Matches(Z114:Z117, AB114:AB117),\"\")","v":""},"-",{"$f":"IF(OR(ISNUMBER(Z114),ISNUMBER(Z115),ISNUMBER(Z116),ISNUMBER(Z117)),Lire_Gain_Matches(AB114:AB117, Z114:Z117),\"\")","v":""},null,{"$f":"IF(ISNA(VLOOKUP(\"X\",AD114:AD117,1,FALSE)),\"\",\"X\")","v":""},{"$f":"IF(Z111=\"\",\"\",IF(Z111>AB111,Y111,IF(Z111=AB111,IF(AL111=Y111,AC111,IF(AL111=AC111,Y111,\"\")),AC111)))","v":""},{"$f":"IF(Z111=\"\",\"\",IF(Z111=AB111,IF(AL111=Y111,\"\",IF(AL111=AC111,\"\",Y111)),\"\"))","v":""},{"$f":"IF(Z111=\"\",\"\",IF(Z111=AB111,IF(AL111=Y111,\"\",IF(AL111=AC111,\"\",AC111)),\"\"))","v":""},{"$f":"IF(Z111=\"\",\"\",IF(Z111<AB111,Y111,IF(Z111=AB111,IF(AL111=Y111,Y111,IF(AL111=AC111,AC111,\"\")),AC111)))","v":""},null,null,null,{"$f":"IF(COUNTIF(Y114:Y117,WithdrawLabel)>COUNTIF(AC114:AC117,WithdrawLabel),Y111,IF(COUNTIF(AC114:AC117,WithdrawLabel)>COUNTIF(Y114:Y117,WithdrawLabel),AC111,\"\"))","v":""}]
[null,null,null,null,null,null,null,null,null,null,null,null,null,null,null,null,null,null,null,null,null,null,null,null,{"$f":"N_Total_buts","v":"Total goals"},{"$f":"IF(OR(ISNUMBER(Z114),ISNUMBER(Z115),ISNUMBER(Z116),ISNUMBER(Z117)),SUM(Z114:Z117),\"\")","v":""},"-",{"$f":"IF(OR(ISNUMBER(Z114),ISNUMBER(Z115),ISNUMBER(Z116),ISNUMBER(Z117)),SUM(AB114:AB117),\"\")","v":""},{"$f":"IF(Z118=\"\",\"\",CONCATENATE(\"(Diff : \",Z118,\" - \",AB118,\")\"))","v":""}]
[null,null,null,null,null,null,null,null,null,{"$f":"IF(Z113=\"\",\"\",IF(Z113=Y111,AC111,Y111))","v":""},null,null,null,null,null,null,null,null,null,null,null,null,null,null,{"$f":"N_VAINQUEUR","v":"WINNER"},{"$f":"IF(AL110<>\"OK\",IF(HidePlayerFormulas,\"\",\"(\"&Y111&\"-\"&AC111&\")\"),IF(AE111=\"\",IF(Z112>AB112,Y111,IF(Z112<AB112,AC111,mess_erreur_marque)),AE111))","v":""}]
[null,null,null,null,null,null,null,null,null,null,null,null,null,null,null,null,null,null,null,null,null,null,null,null,null,null,"-"]
[null,null,null,null,null,null,null,null,null,null,null,null,null,null,null,null,null,null,null,null,null,null,null,null,null,null,"-"]
[null,null,null,null,null,null,null,null,null,null,null,null,null,null,null,null,null,null,null,null,null,null,null,null,null,null,"-"]
[null,null,null,null,null,null,null,null,null,null,null,null,null,null,null,null,null,null,null,null,null,null,null,null,null,null,"-"]
[null,null,null,null,null,null,null,null,null,null,null,null,null,null,null,null,null,null,null,null,null,null,{"$f":"N_Différentiel","v":"Shoot Out"},null,null,null,"-"]
[null,null,null,null,null,null,null,null,null,null,null,null,null,null,null,null,null,null,null,null,null,null,null,{"$f":"N_Substitute","v":"Substitute"}]
[null,null,null,null,null,null,null,null,null,null,null,null,null,null,null,null,null,null,null,null,null,null,null,{"$f":"N_Substitute","v":"Substitute"}]
[]
[null,null,null,null,null,null,null,null,null,null,null,null,null,null,null,null,null,null,null,null,null,{"$f":"N_Heure","v":"Time"},{"$f":"N_Table","v":"Table"},{"$f":"N_Arbitre","v":"Referee"},{"$f":"N_Scores","v":"Scores"},null,null,null,null,{"$f":"N_MS","v":"SD"},null,null,null,null,null,null,null,{"$f":"IF(COUNTA(Z126:Z129)>3,\"OK\",\"\")","v":""}]
[null,null,null,null,null,null,null,null,null,null,null,null,null,null,null,null,null,null,null,null,"#F8",null,null,null,null,{"$f":"IF(OR(ISNUMBER(Z126),ISNUMBER(Z127),ISNUMBER(Z128),ISNUMBER(Z129)),Lire_Gain_Matches(Z126:Z129, AB126:AB129),\"\")","v":""},"-",{"$f":"IF(OR(ISNUMBER(Z126),ISNUMBER(Z127),ISNUMBER(Z128),ISNUMBER(Z129)),Lire_Gain_Matches(AB126:AB129, Z126:Z129),\"\")","v":""},null,{"$f":"IF(ISNA(VLOOKUP(\"X\",AD126:AD129,1,FALSE)),\"\",\"X\")","v":""},{"$f":"IF(Z123=\"\",\"\",IF(Z123>AB123,Y123,IF(Z123=AB123,IF(AL123=Y123,AC123,IF(AL123=AC123,Y123,\"\")),AC123)))","v":""},{"$f":"IF(Z123=\"\",\"\",IF(Z123=AB123,IF(AL123=Y123,\"\",IF(AL123=AC123,\"\",Y123)),\"\"))","v":""},{"$f":"IF(Z123=\"\",\"\",IF(Z123=AB123,IF(AL123=Y123,\"\",IF(AL123=AC123,\"\",AC123)),\"\"))","v":""},{"$f":"IF(Z123=\"\",\"\",IF(Z123<AB123,Y123,IF(Z123=AB123,IF(AL123=Y123,Y123,IF(AL123=AC123,AC123,\"\")),AC123)))","v":""},null,null,null,{"$f":"IF(COUNTIF(Y126:Y129,WithdrawLabel)>COUNTIF(AC126:AC129,WithdrawLabel),Y123,IF(COUNTIF(AC126:AC129,WithdrawLabel)>COUNTIF(Y126:Y129,WithdrawLabel),AC123,\"\"))","v":""}]
[null,null,null,null,null,null,null,null,null,null,null,null,null,null,null,null,null,null,null,null,null,null,null,null,{"$f":"N_Total_buts","v":"Total goals"},{"$f":"IF(OR(ISNUMBER(Z126),ISNUMBER(Z127),ISNUMBER(Z128),ISNUMBER(Z129)),SUM(Z126:Z129),\"\")","v":""},"-",{"$f":"IF(OR(ISNUMBER(Z126),ISNUMBER(Z127),ISNUMBER(Z128),ISNUMBER(Z129)),SUM(AB126:AB129),\"\")","v":""},{"$f":"IF(Z130=\"\",\"\",CONCATENATE(\"(Diff : \",Z130,\" - \",AB130,\")\"))","v":""}]
[null,null,null,null,null,null,null,null,null,{"$f":"IF(Z125=\"\",\"\",IF(Z125=Y123,AC123,Y123))","v":""},null,null,null,null,null,null,null,null,null,null,null,null,null,null,{"$f":"N_VAINQUEUR","v":"WINNER"},{"$f":"IF(AL122<>\"OK\",IF(HidePlayerFormulas,\"\",\"(\"&Y123&\"-\"&AC123&\")\"),IF(AE123=\"\",IF(Z124>AB124,Y123,IF(Z124<AB124,AC123,mess_erreur_marque)),AE123))","v":""}]
[null,null,null,null,null,null,null,null,null,null,null,null,null,null,null,null,null,null,null,null,null,null,null,null,null,null,"-"]
[null,null,null,null,null,null,null,null,null,null,null,null,null,null,null,null,null,null,null,null,null,null,null,null,null,null,"-"]
[null,null,null,null,null,null,null,null,null,null,null,null,null,null,null,null,null,null,null,null,null,null,null,null,null,null,"-"]
[null,null,null,null,null,null,null,null,null,null,null,null,null,null,null,null,null,null,null,null,null,null,null,null,null,null,"-"]
[null,null,null,null,null,null,null,null,null,null,null,null,null,null,null,null,null,null,null,null,null,null,{"$f":"N_Différentiel","v":"Shoot Out"},null,null,null,"-"]
[null,null,null,null,null,null,null,null,null,null,null,null,null,null,null,null,null,null,null,null,null,null,null,{"$f":"N_Substitute","v":"Substitute"}]
[null,null,null,null,null,null,null,null,null,null,null,null,null,null,null,null,null,null,null,null,null,null,null,{"$f":"N_Substitute","v":"Substitute"}]
[]
[null,{"$f":"N_QUART_DE_FINALE","v":"LAST 8"}]
[]
[null,null,null,null,null,null,null,null,null,null,null,null,null,null,null,null,null,null,null,null,null,{"$f":"N_Heure","v":"Time"},{"$f":"N_Table","v":"Table"},{"$f":"N_Arbitre","v":"Referee"},{"$f":"N_Scores","v":"Scores"},null,null,null,null,{"$f":"N_MS","v":"SD"},null,null,null,null,null,null,null,{"$f":"IF(COUNTA(Z140:Z143)>3,\"OK\",\"\")","v":""}]
[null,null,null,null,null,null,null,null,null,null,null,null,null,null,null,null,null,null,null,null,"#F4",null,null,null,null,{"$f":"IF(OR(ISNUMBER(Z140),ISNUMBER(Z141),ISNUMBER(Z142),ISNUMBER(Z143)),Lire_Gain_Matches(Z140:Z143, AB140:AB143),\"\")","v":""},"-",{"$f":"IF(OR(ISNUMBER(Z140),ISNUMBER(Z141),ISNUMBER(Z142),ISNUMBER(Z143)),Lire_Gain_Matches(AB140:AB143, Z140:Z143),\"\")","v":""},null,{"$f":"IF(ISNA(VLOOKUP(\"X\",AD140:AD143,1,FALSE)),\"\",\"X\")","v":""},{"$f":"IF(Z137=\"\",\"\",IF(Z137>AB137,Y137,IF(Z137=AB137,IF(AL137=Y137,AC137,IF(AL137=AC137,Y137,\"\")),AC137)))","v":""},{"$f":"IF(Z137=\"\",\"\",IF(Z137=AB137,IF(AL137=Y137,\"\",IF(AL137=AC137,\"\",Y137)),\"\"))","v":""},{"$f":"IF(Z137=\"\",\"\",IF(Z137=AB137,IF(AL137=Y137,\"\",IF(AL137=AC137,\"\",AC137)),\"\"))","v":""},{"$f":"IF(Z137=\"\",\"\",IF(Z137<AB137,Y137,IF(Z137=AB137,IF(AL137=Y137,Y137,IF(AL137=AC137,AC137,\"\")),AC137)))","v":""},null,null,null,{"$f":"IF(COUNTIF(Y140:Y143,WithdrawLabel)>COUNTIF(AC140:AC143,WithdrawLabel),Y137,IF(COUNTIF(AC140:AC143,WithdrawLabel)>COUNTIF(Y140:Y143,WithdrawLabel),AC137,\"\"))","v":""}]
[null,null,null,null,null,null,null,null,null,null,null,null,null,null,null,null,null,null,null,null,null,null,null,null,{"$f":"N_Total_buts","v":"Total goals"},{"$f":"IF(OR(ISNUMBER(Z140),ISNUMBER(Z141),ISNUMBER(Z142),ISNUMBER(Z143)),SUM(Z140:Z143),\"\")","v":""},"-",{"$f":"IF(OR(ISNUMBER(Z140),ISNUMBER(Z141),ISNUMBER(Z142),ISNUMBER(Z143)),SUM(AB140:AB143),\"\")","v":""},{"$f":"IF(Z144=\"\",\"\",CONCATENATE(\"(Diff : \",Z144,\" - \",AB144,\")\"))","v":""}]
[null,null,null,null,null,null,null,null,null,{"$f":"IF(Z139=\"\",\"\",IF(Z139=Y137,AC137,Y137))","v":""},null,null,null,null,null,null,null,null,null,null,null,null,null,null,{"$f":"N_VAINQUEUR","v":"WINNER"},{"$f":"IF(AL136<>\"OK\",IF(HidePlayerFormulas,\"\",\"(\"&Y137&\"-\"&AC137&\")\"),IF(AE137=\"\",IF(Z138>AB138,Y137,IF(Z138<AB138,AC137,mess_erreur_marque)),AE137))","v":""}]
[null,null,null,null,null,null,null,null,null,null,null,null,null,null,null,null,null,null,null,null,null,null,null,null,null,null,"-"]
[null,null,null,null,null,null,null,null,null,null,null,null,null,null,null,null,null,null,null,null,null,null,null,null,null,null,"-"]
[null,null,null,null,null,null,null,null,null,null,null,null,null,null,null,null,null,null,null,null,null,null,null,null,null,null,"-"]
[null,null,null,null,null,null,null,null,null,null,null,null,null,null,null,null,null,null,null,null,null,null,null,null,null,null,"-"]
[null,null,null,null,null,null,null,null,null,null,null,null,null,null,null,null,null,null,null,null,null,null,{"$f":"N_Différentiel","v":"Shoot Out"},null,null,null,"-"]
[null,null,null,null,null,null,null,null,null,null,null,null,null,null,null,null,null,null,null,null,null,null,null,{"$f":"N_Substitute","v":"Substitute"}]
[null,null,null,null,null,null,null,null,null,null,null,null,null,null,null,null,null,null,null,null,null,null,null,{"$f":"N_Substitute","v":"Substitute"}]
[]
[null,null,null,null,null,null,null,null,null,null,null,null,null,null,null,null,null,null,null,null,null,{"$f":"N_Heure","v":"Time"},{"$f":"N_Table","v":"Table"},{"$f":"N_Arbitre","v":"Referee"},{"$f":"N_Scores","v":"Scores"},null,null,null,null,{"$f":"N_MS","v":"SD"},null,null,null,null,null,null,null,{"$f":"IF(COUNTA(Z152:Z155)>3,\"OK\",\"\")","v":""}]
[null,null,null,null,null,null,null,null,null,null,null,null,null,null,null,null,null,null,null,null,"#F4",null,null,null,null,{"$f":"IF(OR(ISNUMBER(Z152),ISNUMBER(Z153),ISNUMBER(Z154),ISNUMBER(Z155)),Lire_Gain_Matches(Z152:Z155, AB152:AB155),\"\")","v":""},"-",{"$f":"IF(OR(ISNUMBER(Z152),ISNUMBER(Z153),ISNUMBER(Z154),ISNUMBER(Z155)),Lire_Gain_Matches(AB152:AB155, Z152:Z155),\"\")","v":""},null,{"$f":"IF(ISNA(VLOOKUP(\"X\",AD152:AD155,1,FALSE)),\"\",\"X\")","v":""},{"$f":"IF(Z149=\"\",\"\",IF(Z149>AB149,Y149,IF(Z149=AB149,IF(AL149=Y149,AC149,IF(AL149=AC149,Y149,\"\")),AC149)))","v":""},{"$f":"IF(Z149=\"\",\"\",IF(Z149=AB149,IF(AL149=Y149,\"\",IF(AL149=AC149,\"\",Y149)),\"\"))","v":""},{"$f":"IF(Z149=\"\",\"\",IF(Z149=AB149,IF(AL149=Y149,\"\",IF(AL149=AC149,\"\",AC149)),\"\"))","v":""},{"$f":"IF(Z149=\"\",\"\",IF(Z149<AB149,Y149,IF(Z149=AB149,IF(AL149=Y149,Y149,IF(AL149=AC149,AC149,\"\")),AC149)))","v":""},null,null,null,{"$f":"IF(COUNTIF(Y152:Y155,WithdrawLabel)>COUNTIF(AC152:AC155,WithdrawLabel),Y149,IF(COUNTIF(AC152:AC155,WithdrawLabel)>COUNTIF(Y152:Y155,WithdrawLabel),AC149,\"\"))","v":""}]
[null,null,null,null,null,null,null,null,null,null,null,null,null,null,null,null,null,null,null,null,null,null,null,null,{"$f":"N_Total_buts","v":"Total goals"},{"$f":"IF(OR(ISNUMBER(Z152),ISNUMBER(Z153),ISNUMBER(Z154),ISNUMBER(Z155)),SUM(Z152:Z155),\"\")","v":""},"-",{"$f":"IF(OR(ISNUMBER(Z152),ISNUMBER(Z153),ISNUMBER(Z154),ISNUMBER(Z155)),SUM(AB152:AB155),\"\")","v":""},{"$f":"IF(Z156=\"\",\"\",CONCATENATE(\"(Diff : \",Z156,\" - \",AB156,\")\"))","v":""}]
[null,null,null,null,null,null,null,null,null,{"$f":"IF(Z151=\"\",\"\",IF(Z151=Y149,AC149,Y149))","v":""},null,null,null,null,null,null,null,null,null,null,null,null,null,null,{"$f":"N_VAINQUEUR","v":"WINNER"},{"$f":"IF(AL148<>\"OK\",IF(HidePlayerFormulas,\"\",\"(\"&Y149&\"-\"&AC149&\")\"),IF(AE149=\"\",IF(Z150>AB150,Y149,IF(Z150<AB150,AC149,mess_erreur_marque)),AE149))","v":""}]
[null,null,null,null,null,null,null,null,null,null,null,null,null,null,null,null,null,null,null,null,null,null,null,null,null,null,"-"]
[null,null,null,null,null,null,null,null,null,null,null,null,null,null,null,null,null,null,null,null,null,null,null,null,null,null,"-"]
[null,null,null,null,null,null,null,null,null,null,null,null,null,null,null,null,null,null,null,null,null,null,null,null,null,null,"-"]
[null,null,null,null,null,null,null,null,null,null,null,null,null,null,null,null,null,null,null,null,null,null,null,null,null,null,"-"]
[null,null,null,null,null,null,null,null,null,null,null,null,null,null,null,null,null,null,null,null,null,null,{"$f":"N_Différentiel","v":"Shoot Out"},null,null,null,"-"]
[null,null,null,null,null,null,null,null,null,null,null,null,null,null,null,null,null,null,null,null,null,null,null,{"$f":"N_Substitute","v":"Substitute"}]
[null,null,null,null,null,null,null,null,null,null,null,null,null,null,null,null,null,null,null,null,null,null,null,{"$f":"N_Substitute","v":"Substitute"}]
[]
[null,null,null,null,null,null,null,null,null,null,null,null,null,null,null,null,null,null,null,null,null,{"$f":"N_Heure","v":"Time"},{"$f":"N_Table","v":"Table"},{"$f":"N_Arbitre","v":"Referee"},{"$f":"N_Scores","v":"Scores"},null,null,null,null,{"$f":"N_MS","v":"SD"},null,null,null,null,null,null,null,{"$f":"IF(COUNTA(Z164:Z167)>3,\"OK\",\"\")","v":""}]
[null,null,null,null,null,null,null,null,null,null,null,null,null,null,null,null,null,null,null,null,"#F4",null,null,null,null,{"$f":"IF(OR(ISNUMBER(Z164),ISNUMBER(Z165),ISNUMBER(Z166),ISNUMBER(Z167)),Lire_Gain_Matches(Z164:Z167, AB164:AB167),\"\")","v":""},"-",{"$f":"IF(OR(ISNUMBER(Z164),ISNUMBER(Z165),ISNUMBER(Z166),ISNUMBER(Z167)),Lire_Gain_Matches(AB164:AB167, Z164:Z167),\"\")","v":""},null,{"$f":"IF(ISNA(VLOOKUP(\"X\",AD164:AD167,1,FALSE)),\"\",\"X\")","v":""},{"$f":"IF(Z161=\"\",\"\",IF(Z161>AB161,Y161,IF(Z161=AB161,IF(AL161=Y161,AC161,IF(AL161=AC161,Y161,\"\")),AC161)))","v":""},{"$f":"IF(Z161=\"\",\"\",IF(Z161=AB161,IF(AL161=Y161,\"\",IF(AL161=AC161,\"\",Y161)),\"\"))","v":""},{"$f":"IF(Z161=\"\",\"\",IF(Z161=AB161,IF(AL161=Y161,\"\",IF(AL161=AC161,\"\",AC161)),\"\"))","v":""},{"$f":"IF(Z161=\"\",\"\",IF(Z161<AB161,Y161,IF(Z161=AB161,IF(AL161=Y161,Y161,IF(AL161=AC161,AC161,\"\")),AC161)))","v":""},null,null,null,{"$f":"IF(COUNTIF(Y164:Y167,WithdrawLabel)>COUNTIF(AC164:AC167,WithdrawLabel),Y161,IF(COUNTIF(AC164:AC167,WithdrawLabel)>COUNTIF(Y164:Y167,WithdrawLabel),AC161,\"\"))","v":""}]
[null,null,null,null,null,null,null,null,null,null,null,null,null,null,null,null,null,null,null,null,null,null,null,null,{"$f":"N_Total_buts","v":"Total goals"},{"$f":"IF(OR(ISNUMBER(Z164),ISNUMBER(Z165),ISNUMBER(Z166),ISNUMBER(Z167)),SUM(Z164:Z167),\"\")","v":""},"-",{"$f":"IF(OR(ISNUMBER(Z164),ISNUMBER(Z165),ISNUMBER(Z166),ISNUMBER(Z167)),SUM(AB164:AB167),\"\")","v":""},{"$f":"IF(Z168=\"\",\"\",CONCATENATE(\"(Diff : \",Z168,\" - \",AB168,\")\"))","v":""}]
[null,null,null,null,null,null,null,null,null,{"$f":"IF(Z163=\"\",\"\",IF(Z163=Y161,AC161,Y161))","v":""},null,null,null,null,null,null,null,null,null,null,null,null,null,null,{"$f":"N_VAINQUEUR","v":"WINNER"},{"$f":"IF(AL160<>\"OK\",IF(HidePlayerFormulas,\"\",\"(\"&Y161&\"-\"&AC161&\")\"),IF(AE161=\"\",IF(Z162>AB162,Y161,IF(Z162<AB162,AC161,mess_erreur_marque)),AE161))","v":""}]
[null,null,null,null,null,null,null,null,null,null,null,null,null,null,null,null,null,null,null,null,null,null,null,null,null,null,"-"]
[null,null,null,null,null,null,null,null,null,null,null,null,null,null,null,null,null,null,null,null,null,null,null,null,null,null,"-"]
[null,null,null,null,null,null,null,null,null,null,null,null,null,null,null,null,null,null,null,null,null,null,null,null,null,null,"-"]
[null,null,null,null,null,null,null,null,null,null,null,null,null,null,null,null,null,null,null,null,null,null,null,null,null,null,"-"]
[null,null,null,null,null,null,null,null,null,null,null,null,null,null,null,null,null,null,null,null,null,null,{"$f":"N_Différentiel","v":"Shoot Out"},null,null,null,"-"]
[null,null,null,null,null,null,null,null,null,null,null,null,null,null,null,null,null,null,null,null,null,null,null,{"$f":"N_Substitute","v":"Substitute"}]
[null,null,null,null,null,null,null,null,null,null,null,null,null,null,null,null,null,null,null,null,null,null,null,{"$f":"N_Substitute","v":"Substitute"}]
[]
[null,null,null,null,null,null,null,null,null,null,null,null,null,null,null,null,null,null,null,null,null,{"$f":"N_Heure","v":"Time"},{"$f":"N_Table","v":"Table"},{"$f":"N_Arbitre","v":"Referee"},{"$f":"N_Scores","v":"Scores"},null,null,null,null,{"$f":"N_MS","v":"SD"},null,null,null,null,null,null,null,{"$f":"IF(COUNTA(Z176:Z179)>3,\"OK\",\"\")","v":""}]
[null,null,null,null,null,null,null,null,null,null,null,null,null,null,null,null,null,null,null,null,"#F4",null,null,null,null,{"$f":"IF(OR(ISNUMBER(Z176),ISNUMBER(Z177),ISNUMBER(Z178),ISNUMBER(Z179)),Lire_Gain_Matches(Z176:Z179, AB176:AB179),\"\")","v":""},"-",{"$f":"IF(OR(ISNUMBER(Z176),ISNUMBER(Z177),ISNUMBER(Z178),ISNUMBER(Z179)),Lire_Gain_Matches(AB176:AB179, Z176:Z179),\"\")","v":""},null,{"$f":"IF(ISNA(VLOOKUP(\"X\",AD176:AD179,1,FALSE)),\"\",\"X\")","v":""},{"$f":"IF(Z173=\"\",\"\",IF(Z173>AB173,Y173,IF(Z173=AB173,IF(AL173=Y173,AC173,IF(AL173=AC173,Y173,\"\")),AC173)))","v":""},{"$f":"IF(Z173=\"\",\"\",IF(Z173=AB173,IF(AL173=Y173,\"\",IF(AL173=AC173,\"\",Y173)),\"\"))","v":""},{"$f":"IF(Z173=\"\",\"\",IF(Z173=AB173,IF(AL173=Y173,\"\",IF(AL173=AC173,\"\",AC173)),\"\"))","v":""},{"$f":"IF(Z173=\"\",\"\",IF(Z173<AB173,Y173,IF(Z173=AB173,IF(AL173=Y173,Y173,IF(AL173=AC173,AC173,\"\")),AC173)))","v":""},null,null,null,{"$f":"IF(COUNTIF(Y176:Y179,WithdrawLabel)>COUNTIF(AC176:AC179,WithdrawLabel),Y173,IF(COUNTIF(AC176:AC179,WithdrawLabel)>COUNTIF(Y176:Y179,WithdrawLabel),AC173,\"\"))","v":""}]
[null,null,null,null,null,null,null,null,null,null,null,null,null,null,null,null,null,null,null,null,null,null,null,null,{"$f":"N_Total_buts","v":"Total goals"},{"$f":"IF(OR(ISNUMBER(Z176),ISNUMBER(Z177),ISNUMBER(Z178),ISNUMBER(Z179)),SUM(Z176:Z179),\"\")","v":""},"-",{"$f":"IF(OR(ISNUMBER(Z176),ISNUMBER(Z177),ISNUMBER(Z178),ISNUMBER(Z179)),SUM(AB176:AB179),\"\")","v":""},{"$f":"IF(Z180=\"\",\"\",CONCATENATE(\"(Diff : \",Z180,\" - \",AB180,\")\"))","v":""}]
[null,null,null,null,null,null,null,null,null,{"$f":"IF(Z175=\"\",\"\",IF(Z175=Y173,AC173,Y173))","v":""},null,null,null,null,null,null,null,null,null,null,null,null,null,null,{"$f":"N_VAINQUEUR","v":"WINNER"},{"$f":"IF(AL172<>\"OK\",IF(HidePlayerFormulas,\"\",\"(\"&Y173&\"-\"&AC173&\")\"),IF(AE173=\"\",IF(Z174>AB174,Y173,IF(Z174<AB174,AC173,mess_erreur_marque)),AE173))","v":""}]
[null,null,null,null,null,null,null,null,null,null,null,null,null,null,null,null,null,null,null,null,null,null,null,null,null,null,"-"]
[null,null,null,null,null,null,null,null,null,null,null,null,null,null,null,null,null,null,null,null,null,null,null,null,null,null,"-"]
[null,null,null,null,null,null,null,null,null,null,null,null,null,null,null,null,null,null,null,null,null,null,null,null,null,null,"-"]
[null,null,null,null,null,null,null,null,null,null,null,null,null,null,null,null,null,null,null,null,null,null,null,null,null,null,"-"]
[null,null,null,null,null,null,null,null,null,null,null,null,null,null,null,null,null,null,null,null,null,null,{"$f":"N_Différentiel","v":"Shoot Out"},null,null,null,"-"]
[null,null,null,null,null,null,null,null,null,null,null,null,null,null,null,null,null,null,null,null,null,null,null,{"$f":"N_Substitute","v":"Substitute"}]
[null,null,null,null,null,null,null,null,null,null,null,null,null,null,null,null,null,null,null,null,null,null,null,{"$f":"N_Substitute","v":"Substitute"}]
[]
[null,{"$f":"N_DEMI_FINALE","v":"SEMI FINAL"}]
[]
[null,null,null,null,null,null,null,null,null,null,null,null,null,null,null,null,null,null,null,null,null,{"$f":"N_Heure","v":"Time"},{"$f":"N_Table","v":"Table"},{"$f":"N_Arbitre","v":"Referee"},{"$f":"N_Scores","v":"Scores"},null,null,null,null,{"$f":"N_MS","v":"SD"},null,null,null,null,null,null,null,{"$f":"IF(COUNTA(Z190:Z193)>3,\"OK\",\"\")","v":""}]
[null,null,null,null,null,null,null,null,null,null,null,null,null,null,null,null,null,null,null,null,"#F2",null,null,null,null,{"$f":"IF(OR(ISNUMBER(Z190),ISNUMBER(Z191),ISNUMBER(Z192),ISNUMBER(Z193)),Lire_Gain_Matches(Z190:Z193, AB190:AB193),\"\")","v":""},"-",{"$f":"IF(OR(ISNUMBER(Z190),ISNUMBER(Z191),ISNUMBER(Z192),ISNUMBER(Z193)),Lire_Gain_Matches(AB190:AB193, Z190:Z193),\"\")","v":""},null,{"$f":"IF(ISNA(VLOOKUP(\"X\",AD190:AD193,1,FALSE)),\"\",\"X\")","v":""},{"$f":"IF(Z187=\"\",\"\",IF(Z187>AB187,Y187,IF(Z187=AB187,IF(AL187=Y187,AC187,IF(AL187=AC187,Y187,\"\")),AC187)))","v":""},{"$f":"IF(Z187=\"\",\"\",IF(Z187=AB187,IF(AL187=Y187,\"\",IF(AL187=AC187,\"\",Y187)),\"\"))","v":""},{"$f":"IF(Z187=\"\",\"\",IF(Z187=AB187,IF(AL187=Y187,\"\",IF(AL187=AC187,\"\",AC187)),\"\"))","v":""},{"$f":"IF(Z187=\"\",\"\",IF(Z187<AB187,Y187,IF(Z187=AB187,IF(AL187=Y187,Y187,IF(AL187=AC187,AC187,\"\")),AC187)))","v":""},null,null,null,{"$f":"IF(COUNTIF(Y190:Y193,WithdrawLabel)>COUNTIF(AC190:AC193,WithdrawLabel),Y187,IF(COUNTIF(AC190:AC193,WithdrawLabel)>COUNTIF(Y190:Y193,WithdrawLabel),AC187,\"\"))","v":""}]
[null,null,null,null,null,null,null,null,null,null,null,null,null,null,null,null,null,null,null,null,null,null,null,null,{"$f":"N_Total_buts","v":"Total goals"},{"$f":"IF(OR(ISNUMBER(Z190),ISNUMBER(Z191),ISNUMBER(Z192),ISNUMBER(Z193)),SUM(Z190:Z193),\"\")","v":""},"-",{"$f":"IF(OR(ISNUMBER(Z190),ISNUMBER(Z191),ISNUMBER(Z192),ISNUMBER(Z193)),SUM(AB190:AB193),\"\")","v":""},{"$f":"IF(Z194=\"\",\"\",CONCATENATE(\"(Diff : \",Z194,\" - \",AB194,\")\"))","v":""}]
[null,null,null,null,null,null,null,null,null,{"$f":"IF(Z189=\"\",\"\",IF(Z189=Y187,AC187,Y187))","v":""},null,null,null,null,null,null,null,null,null,null,null,null,null,null,{"$f":"N_VAINQUEUR","v":"WINNER"},{"$f":"IF(AL186<>\"OK\",IF(HidePlayerFormulas,\"\",\"(\"&Y187&\"-\"&AC187&\")\"),IF(AE187=\"\",IF(Z188>AB188,Y187,IF(Z188<AB188,AC187,mess_erreur_marque)),AE187))","v":""}]
[null,null,null,null,null,null,null,null,null,null,null,null,null,null,null,null,null,null,null,null,null,null,null,null,null,null,"-"]
[null,null,null,null,null,null,null,null,null,null,null,null,null,null,null,null,null,null,null,null,null,null,null,null,null,null,"-"]
[null,null,null,null,null,null,null,null,null,null,null,null,null,null,null,null,null,null,null,null,null,null,null,null,null,null,"-"]
[null,null,null,null,null,null,null,null,null,null,null,null,null,null,null,null,null,null,null,null,null,null,null,null,null,null,"-"]
[null,null,null,null,null,null,null,null,null,null,null,null,null,null,null,null,null,null,null,null,null,null,{"$f":"N_Différentiel","v":"Shoot Out"},null,null,null,"-"]
[null,null,null,null,null,null,null,null,null,null,null,null,null,null,null,null,null,null,null,null,null,null,null,{"$f":"N_Substitute","v":"Substitute"}]
[null,null,null,null,null,null,null,null,null,null,null,null,null,null,null,null,null,null,null,null,null,null,null,{"$f":"N_Substitute","v":"Substitute"}]
[]
[null,null,null,null,null,null,null,null,null,null,null,null,null,null,null,null,null,null,null,null,null,{"$f":"N_Heure","v":"Time"},{"$f":"N_Table","v":"Table"},{"$f":"N_Arbitre","v":"Referee"},{"$f":"N_Scores","v":"Scores"},null,null,null,null,{"$f":"N_MS","v":"SD"},null,null,null,null,null,null,null,{"$f":"IF(COUNTA(Z202:Z205)>3,\"OK\",\"\")","v":""}]
[null,null,null,null,null,null,null,null,null,null,null,null,null,null,null,null,null,null,null,null,"#F2",null,null,null,null,{"$f":"IF(OR(ISNUMBER(Z202),ISNUMBER(Z203),ISNUMBER(Z204),ISNUMBER(Z205)),Lire_Gain_Matches(Z202:Z205, AB202:AB205),\"\")","v":""},"-",{"$f":"IF(OR(ISNUMBER(Z202),ISNUMBER(Z203),ISNUMBER(Z204),ISNUMBER(Z205)),Lire_Gain_Matches(AB202:AB205, Z202:Z205),\"\")","v":""},null,{"$f":"IF(ISNA(VLOOKUP(\"X\",AD202:AD205,1,FALSE)),\"\",\"X\")","v":""},{"$f":"IF(Z199=\"\",\"\",IF(Z199>AB199,Y199,IF(Z199=AB199,IF(AL199=Y199,AC199,IF(AL199=AC199,Y199,\"\")),AC199)))","v":""},{"$f":"IF(Z199=\"\",\"\",IF(Z199=AB199,IF(AL199=Y199,\"\",IF(AL199=AC199,\"\",Y199)),\"\"))","v":""},{"$f":"IF(Z199=\"\",\"\",IF(Z199=AB199,IF(AL199=Y199,\"\",IF(AL199=AC199,\"\",AC199)),\"\"))","v":""},{"$f":"IF(Z199=\"\",\"\",IF(Z199<AB199,Y199,IF(Z199=AB199,IF(AL199=Y199,Y199,IF(AL199=AC199,AC199,\"\")),AC199)))","v":""},null,null,null,{"$f":"IF(COUNTIF(Y202:Y205,WithdrawLabel)>COUNTIF(AC202:AC205,WithdrawLabel),Y199,IF(COUNTIF(AC202:AC205,WithdrawLabel)>COUNTIF(Y202:Y205,WithdrawLabel),AC199,\"\"))","v":""}]
[null,null,null,null,null,null,null,null,null,null,null,null,null,null,null,null,null,null,null,null,null,null,null,null,{"$f":"N_Total_buts","v":"Total goals"},{"$f":"IF(OR(ISNUMBER(Z202),ISNUMBER(Z203),ISNUMBER(Z204),ISNUMBER(Z205)),SUM(Z202:Z205),\"\")","v":""},"-",{"$f":"IF(OR(ISNUMBER(Z202),ISNUMBER(Z203),ISNUMBER(Z204),ISNUMBER(Z205)),SUM(AB202:AB205),\"\")","v":""},{"$f":"IF(Z206=\"\",\"\",CONCATENATE(\"(Diff : \",Z206,\" - \",AB206,\")\"))","v":""}]
[null,null,null,null,null,null,null,null,null,{"$f":"IF(Z201=\"\",\"\",IF(Z201=Y199,AC199,Y199))","v":""},null,null,null,null,null,null,null,null,null,null,null,null,null,null,{"$f":"N_VAINQUEUR","v":"WINNER"},{"$f":"IF(AL198<>\"OK\",IF(HidePlayerFormulas,\"\",\"(\"&Y199&\"-\"&AC199&\")\"),IF(AE199=\"\",IF(Z200>AB200,Y199,IF(Z200<AB200,AC199,mess_erreur_marque)),AE199))","v":""}]
[null,null,null,null,null,null,null,null,null,null,null,null,null,null,null,null,null,null,null,null,null,null,null,null,null,null,"-"]
[null,null,null,null,null,null,null,null,null,null,null,null,null,null,null,null,null,null,null,null,null,null,null,null,null,null,"-"]
[null,null,null,null,null,null,null,null,null,null,null,null,null,null,null,null,null,null,null,null,null,null,null,null,null,null,"-"]
[null,null,null,null,null,null,null,null,null,null,null,null,null,null,null,null,null,null,null,null,null,null,null,null,null,null,"-"]
[null,null,null,null,null,null,null,null,null,null,null,null,null,null,null,null,null,null,null,null,null,null,{"$f":"N_Différentiel","v":"Shoot Out"},null,null,null,"-"]
[null,null,null,null,null,null,null,null,null,null,null,null,null,null,null,null,null,null,null,null,null,null,null,{"$f":"N_Substitute","v":"Substitute"}]
[null,null,null,null,null,null,null,null,null,null,null,null,null,null,null,null,null,null,null,null,null,null,null,{"$f":"N_Substitute","v":"Substitute"}]
[]
[null,{"$f":"N_THIRD","v":"PLAY-OFF for 3rd PLACE"}]
[]
[null,null,null,null,null,null,null,null,null,null,null,null,null,null,null,null,null,null,null,null,null,{"$f":"N_Heure","v":"Time"},{"$f":"N_Table","v":"Table"},{"$f":"N_Arbitre","v":"Referee"},{"$f":"N_Scores","v":"Scores"},null,null,null,null,{"$f":"N_MS","v":"SD"},null,null,null,null,null,null,null,{"$f":"IF(COUNTA(Z216:Z219)>3,\"OK\",\"\")","v":""}]
[null,null,null,null,null,null,null,null,null,null,null,null,null,null,null,null,null,null,null,null,"#F1",null,null,null,null,{"$f":"IF(OR(ISNUMBER(Z216),ISNUMBER(Z217),ISNUMBER(Z218),ISNUMBER(Z219)),Lire_Gain_Matches(Z216:Z219, AB216:AB219),\"\")","v":""},"-",{"$f":"IF(OR(ISNUMBER(Z216),ISNUMBER(Z217),ISNUMBER(Z218),ISNUMBER(Z219)),Lire_Gain_Matches(AB216:AB219, Z216:Z219),\"\")","v":""},null,{"$f":"IF(ISNA(VLOOKUP(\"X\",AD216:AD219,1,FALSE)),\"\",\"X\")","v":""},{"$f":"IF(Z213=\"\",\"\",IF(Z213>AB213,Y213,IF(Z213=AB213,IF(AL213=Y213,AC213,IF(AL213=AC213,Y213,\"\")),AC213)))","v":""},{"$f":"IF(Z213=\"\",\"\",IF(Z213=AB213,IF(AL213=Y213,\"\",IF(AL213=AC213,\"\",Y213)),\"\"))","v":""},{"$f":"IF(Z213=\"\",\"\",IF(Z213=AB213,IF(AL213=Y213,\"\",IF(AL213=AC213,\"\",AC213)),\"\"))","v":""},{"$f":"IF(Z213=\"\",\"\",IF(Z213<AB213,Y213,IF(Z213=AB213,IF(AL213=Y213,Y213,IF(AL213=AC213,AC213,\"\")),AC213)))","v":""},null,null,null,{"$f":"IF(COUNTIF(Y216:Y219,WithdrawLabel)>COUNTIF(AC216:AC219,WithdrawLabel),Y213,IF(COUNTIF(AC216:AC219,WithdrawLabel)>COUNTIF(Y216:Y219,WithdrawLabel),AC213,\"\"))","v":""}]
[null,null,null,null,null,null,null,null,null,null,null,null,null,null,null,null,null,null,null,null,null,null,null,null,{"$f":"N_Total_buts","v":"Total goals"},{"$f":"IF(OR(ISNUMBER(Z216),ISNUMBER(Z217),ISNUMBER(Z218),ISNUMBER(Z219)),SUM(Z216:Z219),\"\")","v":""},"-",{"$f":"IF(OR(ISNUMBER(Z216),ISNUMBER(Z217),ISNUMBER(Z218),ISNUMBER(Z219)),SUM(AB216:AB219),\"\")","v":""},{"$f":"IF(Z220=\"\",\"\",CONCATENATE(\"(Diff : \",Z220,\" - \",AB220,\")\"))","v":""}]
[null,null,null,null,null,null,null,null,null,{"$f":"IF(Z215=\"\",\"\",IF(Z215=Y213,AC213,Y213))","v":""},null,null,null,null,null,null,null,null,null,null,null,null,null,null,{"$f":"N_VAINQUEUR","v":"WINNER"},{"$f":"IF(AL212<>\"OK\",IF(HidePlayerFormulas,\"\",\"(\"&Y213&\"-\"&AC213&\")\"),IF(AE213=\"\",IF(Z214>AB214,Y213,IF(Z214<AB214,AC213,mess_erreur_marque)),AE213))","v":""}]
[null,null,null,null,null,null,null,null,null,null,null,null,null,null,null,null,null,null,null,null,null,null,null,null,null,null,"-"]
[null,null,null,null,null,null,null,null,null,null,null,null,null,null,null,null,null,null,null,null,null,null,null,null,null,null,"-"]
[null,null,null,null,null,null,null,null,null,null,null,null,null,null,null,null,null,null,null,null,null,null,null,null,null,null,"-"]
[null,null,null,null,null,null,null,null,null,null,null,null,null,null,null,null,null,null,null,null,null,null,null,null,null,null,"-"]
[null,null,null,null,null,null,null,null,null,null,null,null,null,null,null,null,null,null,null,null,null,null,{"$f":"N_Différentiel","v":"Shoot Out"},null,null,null,"-"]
[null,null,null,null,null,null,null,null,null,null,null,null,null,null,null,null,null,null,null,null,null,null,null,{"$f":"N_Substitute","v":"Substitute"}]
[null,null,null,null,null,null,null,null,null,null,null,null,null,null,null,null,null,null,null,null,null,null,null,{"$f":"N_Substitute","v":"Substitute"}]
[]
[null,{"$f":"N_FINALE","v":"FINAL"}]
[]
[null,null,null,null,null,null,null,null,null,null,null,null,null,null,null,null,null,null,null,null,null,{"$f":"N_Heure","v":"Time"},{"$f":"N_Table","v":"Table"},{"$f":"N_Arbitre","v":"Referee"},{"$f":"N_Scores","v":"Scores"},null,null,null,null,{"$f":"N_MS","v":"SD"},null,null,null,null,null,null,null,{"$f":"IF(COUNTA(Z230:Z233)>3,\"OK\",\"\")","v":""}]
[null,null,null,null,null,null,null,null,null,null,null,null,null,null,null,null,null,null,null,null,"#F1",null,null,null,null,{"$f":"IF(OR(ISNUMBER(Z230),ISNUMBER(Z231),ISNUMBER(Z232),ISNUMBER(Z233)),Lire_Gain_Matches(Z230:Z233, AB230:AB233),\"\")","v":""},"-",{"$f":"IF(OR(ISNUMBER(Z230),ISNUMBER(Z231),ISNUMBER(Z232),ISNUMBER(Z233)),Lire_Gain_Matches(AB230:AB233, Z230:Z233),\"\")","v":""},null,{"$f":"IF(ISNA(VLOOKUP(\"X\",AD230:AD233,1,FALSE)),\"\",\"X\")","v":""},{"$f":"IF(Z227=\"\",\"\",IF(Z227>AB227,Y227,IF(Z227=AB227,IF(AL227=Y227,AC227,IF(AL227=AC227,Y227,\"\")),AC227)))","v":""},{"$f":"IF(Z227=\"\",\"\",IF(Z227=AB227,IF(AL227=Y227,\"\",IF(AL227=AC227,\"\",Y227)),\"\"))","v":""},{"$f":"IF(Z227=\"\",\"\",IF(Z227=AB227,IF(AL227=Y227,\"\",IF(AL227=AC227,\"\",AC227)),\"\"))","v":""},{"$f":"IF(Z227=\"\",\"\",IF(Z227<AB227,Y227,IF(Z227=AB227,IF(AL227=Y227,Y227,IF(AL227=AC227,AC227,\"\")),AC227)))","v":""},null,null,null,{"$f":"IF(COUNTIF(Y230:Y233,WithdrawLabel)>COUNTIF(AC230:AC233,WithdrawLabel),Y227,IF(COUNTIF(AC230:AC233,WithdrawLabel)>COUNTIF(Y230:Y233,WithdrawLabel),AC227,\"\"))","v":""}]
[null,null,null,null,null,null,null,null,null,null,null,null,null,null,null,null,null,null,null,null,null,null,null,null,{"$f":"N_Total_buts","v":"Total goals"},{"$f":"IF(OR(ISNUMBER(Z230),ISNUMBER(Z231),ISNUMBER(Z232),ISNUMBER(Z233)),SUM(Z230:Z233),\"\")","v":""},"-",{"$f":"IF(OR(ISNUMBER(Z230),ISNUMBER(Z231),ISNUMBER(Z232),ISNUMBER(Z233)),SUM(AB230:AB233),\"\")","v":""},{"$f":"IF(Z234=\"\",\"\",CONCATENATE(\"(Diff : \",Z234,\" - \",AB234,\")\"))","v":""}]
[null,null,null,null,null,null,null,null,null,{"$f":"IF(Z229=\"\",\"\",IF(Z229=Y227,AC227,Y227))","v":""},null,null,null,null,null,null,null,null,null,null,null,null,null,null,{"$f":"N_VAINQUEUR","v":"WINNER"},{"$f":"IF(AL226<>\"OK\",IF(HidePlayerFormulas,\"\",\"(\"&Y227&\"-\"&AC227&\")\"),IF(AE227=\"\",IF(Z228>AB228,Y227,IF(Z228<AB228,AC227,mess_erreur_marque)),AE227))","v":""}]
[null,null,null,null,null,null,null,null,null,null,null,null,null,null,null,null,null,null,null,null,null,null,null,null,null,null,"-"]
[null,null,null,null,null,null,null,null,null,null,null,null,null,null,null,null,null,null,null,null,null,null,null,null,null,null,"-"]
[null,null,null,null,null,null,null,null,null,null,null,null,null,null,null,null,null,null,null,null,null,null,null,null,null,null,"-"]
[null,null,null,null,null,null,null,null,null,null,null,null,null,null,null,null,null,null,null,null,null,null,null,null,null,null,"-"]
[null,null,null,null,null,null,null,null,null,null,null,null,null,null,null,null,null,null,null,null,null,null,{"$f":"N_Différentiel","v":"Shoot Out"},null,null,null,"-"]
[null,null,null,null,null,null,null,null,null,null,null,null,null,null,null,null,null,null,null,null,null,null,null,{"$f":"N_Substitute","v":"Substitute"}]
[null,null,null,null,null,null,null,null,null,null,null,null,null,null,null,null,null,null,null,null,null,null,null,{"$f":"N_Substitute","v":"Substitute"}]

{"sheet":"Dble FDL","index":23,"n_rows":164,"n_cols":30,"rows_kept":164,"cut":false,"hidden":true,"merged":[[88,25,88,28],[98,25,98,28],[103,24,103,28],[119,24,119,28],[122,25,122,28],[95,24,95,28],[157,24,157,28],[160,25,160,28],[106,25,106,28],[132,25,132,28],[137,24,137,28],[111,24,111,28],[114,25,114,28],[155,1,155,38],[145,1,145,38],[147,24,147,28],[150,25,150,28],[129,24,129,28],[140,25,140,28],[77,24,77,28],[69,24,69,28],[72,25,72,28],[53,24,53,28],[61,24,61,28],[56,25,56,28],[48,25,48,28],[29,24,29,28],[64,25,64,28],[40,25,40,28],[45,24,45,28],[3,1,3,38],[27,1,27,38],[93,1,93,38],[127,1,127,38],[5,24,5,28],[8,25,8,28],[13,24,13,28],[25,25,25,28],[16,25,16,28],[24,25,24,28],[85,24,85,28],[23,25,23,28],[22,25,22,28],[32,25,32,28],[80,25,80,28],[37,24,37,28]]}
[null,null,null,null,null,null,null,null,null,null,null,null,null,null,null,null,null,null,null,null,null,null,null,null,{"$f":"N_Event_Type","v":"Event Type"}]
[null,null,null,null,null,null,null,null,null,null,null,null,null,null,null,null,null,null,null,null,null,null,null,null,{"$f":"Event1","v":"Open"}]
[]
[null,{"$f":"N_BARRAGES","v":"PLAY-OFF"}]
[]
[null,null,null,null,null,null,null,null,null,null,null,null,null,null,null,null,null,null,null,null,null,{"$f":"N_Heure","v":"Time"},{"$f":"N_Table","v":"Table"},{"$f":"N_Arbitre","v":"Referee"},{"$f":"N_Scores","v":"Scores"},null,null,null,null,{"$f":"N_MS","v":"SD"}]
[null,null,null,null,null,null,null,null,null,null,null,null,null,null,null,null,null,null,null,null,"#FPO",null,null,null,null,{"$f":"IF(OR(ISNUMBER(Z10),ISNUMBER(Z11)),Lire_Gain_Matches(Z10:Z11, AB10:AB11),\"\")","v":""},"-",{"$f":"IF(OR(ISNUMBER(Z10),ISNUMBER(Z11)),Lire_Gain_Matches(AB10:AB11, Z10:Z11),\"\")","v":""},null,{"$f":"IF(ISNA(VLOOKUP(\"X\",AD10:AD11,1,FALSE)),\"\",\"X\")","v":""}]
[null,null,null,null,null,null,null,null,null,null,null,null,null,null,null,null,null,null,null,null,null,null,null,null,{"$f":"N_Total_buts","v":"Total goals"},{"$f":"IF(OR(ISNUMBER(Z10),ISNUMBER(Z11)),SUM(Z10:Z11),\"\")","v":""},"-",{"$f":"IF(OR(ISNUMBER(Z10),ISNUMBER(Z11)),SUM(AB10:AB11),\"\")","v":""},{"$f":"IF(Z12=\"\",\"\",CONCATENATE(\"(Diff : \",Z12,\" - \",AB12,\")\"))","v":""}]
[null,null,null,null,null,null,null,null,null,{"$f":"IF(Z9=\"\",\"\",IF(Z9=Y7,AC7,Y7))","v":""},null,null,null,null,null,null,null,null,null,null,null,null,null,null,{"$f":"N_VAINQUEUR","v":"WINNER"},{"$f":"IF(Z10=\"\",IF(HidePlayerFormulas,\"\",\"(\"&Y7&\"-\"&AC7&\")\"),IF(Z7>AB7,Y7,IF(AB7>Z7,AC7,IF(Z8>AB8,Y7,IF(AB8>Z8,AC7,IF(Z14>AB14,Y7,IF(AB14>Z14,AC7,mess_erreur_marque)))))))","v":""}]
[null,null,null,null,null,null,null,null,null,null,null,null,null,null,null,null,null,null,null,null,null,null,null,null,null,null,"-"]
[null,null,null,null,null,null,null,null,null,null,null,null,null,null,null,null,null,null,null,null,null,null,null,null,null,null,"-"]
[null,null,null,null,null,null,null,null,null,null,null,null,null,null,null,null,null,null,null,null,null,null,{"$f":"N_Différentiel","v":"Shoot Out"},null,null,null,"-"]
[]
[null,null,null,null,null,null,null,null,null,null,null,null,null,null,null,null,null,null,null,null,null,{"$f":"N_Heure","v":"Time"},{"$f":"N_Table","v":"Table"},{"$f":"N_Arbitre","v":"Referee"},{"$f":"N_Scores","v":"Scores"},null,null,null,null,{"$f":"N_MS","v":"SD"}]
[null,null,null,null,null,null,null,null,null,null,null,null,null,null,null,null,null,null,null,null,"#FPO",null,null,null,null,{"$f":"IF(OR(ISNUMBER(Z18),ISNUMBER(Z19)),Lire_Gain_Matches(Z18:Z19, AB18:AB19),\"\")","v":""},"-",{"$f":"IF(OR(ISNUMBER(Z18),ISNUMBER(Z19)),Lire_Gain_Matches(AB18:AB19, Z18:Z19),\"\")","v":""},null,{"$f":"IF(ISNA(VLOOKUP(\"X\",AD18:AD19,1,FALSE)),\"\",\"X\")","v":""}]
[null,null,null,null,null,null,null,null,null,null,null,null,null,null,null,null,null,null,null,null,null,null,null,null,{"$f":"N_Total_buts","v":"Total goals"},{"$f":"IF(OR(ISNUMBER(Z18),ISNUMBER(Z19)),SUM(Z18:Z19),\"\")","v":""},"-",{"$f":"IF(OR(ISNUMBER(Z18),ISNUMBER(Z19)),SUM(AB18:AB19),\"\")","v":""},{"$f":"IF(Z20=\"\",\"\",CONCATENATE(\"(Diff : \",Z20,\" - \",AB20,\")\"))","v":""}]
[null,null,null,null,null,null,null,null,null,{"$f":"IF(Z17=\"\",\"\",IF(Z17=Y15,AC15,Y15))","v":""},null,null,null,null,null,null,null,null,null,null,null,null,null,null,{"$f":"N_VAINQUEUR","v":"WINNER"},{"$f":"IF(Z18=\"\",IF(HidePlayerFormulas,\"\",\"(\"&Y15&\"-\"&AC15&\")\"),IF(Z15>AB15,Y15,IF(AB15>Z15,AC15,IF(Z16>AB16,Y15,IF(AB16>Z16,AC15,IF(Z22>AB22,Y15,IF(AB22>Z22,AC15,mess_erreur_marque)))))))","v":""}]
[null,null,null,null,null,null,null,null,null,null,null,null,null,null,null,null,null,null,null,null,null,null,null,null,null,null,"-"]
[null,null,null,null,null,null,null,null,null,null,null,null,null,null,null,null,null,null,null,null,null,null,null,null,null,null,"-"]
[null,null,null,null,null,null,null,null,null,null,null,null,null,null,null,null,null,null,null,null,null,null,{"$f":"N_Différentiel","v":"Shoot Out"},null,null,null,"-"]
[]
[null,null,null,null,null,null,null,null,null,null,null,null,null,null,null,null,null,null,null,null,null,null,null,null,null,{"$f":"N_Pre_Qualified","v":"Pre-qualified"}]
[]
[]
[]
[]
[]
[null,{"$f":"N__1_8_DE_FINALE","v":"LAST 16"}]
[]
[null,null,null,null,null,null,null,null,null,null,null,null,null,null,null,null,null,null,null,null,null,{"$f":"N_Heure","v":"Time"},{"$f":"N_Table","v":"Table"},{"$f":"N_Arbitre","v":"Referee"},{"$f":"N_Scores","v":"Scores"},null,null,null,null,{"$f":"N_MS","v":"SD"}]
[null,null,null,null,null,null,null,null,null,null,null,null,null,null,null,null,null,null,null,null,"#F8",null,null,null,null,{"$f":"IF(OR(ISNUMBER(Z34),ISNUMBER(Z35)),Lire_Gain_Matches(Z34:Z35, AB34:AB35),\"\")","v":""},"-",{"$f":"IF(OR(ISNUMBER(Z34),ISNUMBER(Z35)),Lire_Gain_Matches(AB34:AB35, Z34:Z35),\"\")","v":""},null,{"$f":"IF(ISNA(VLOOKUP(\"X\",AD34:AD35,1,FALSE)),\"\",\"X\")","v":""}]
[null,null,null,null,null,null,null,null,null,null,null,null,null,null,null,null,null,null,null,null,null,null,null,null,{"$f":"N_Total_buts","v":"Total goals"},{"$f":"IF(OR(ISNUMBER(Z34),ISNUMBER(Z35)),SUM(Z34:Z35),\"\")","v":""},"-",{"$f":"IF(OR(ISNUMBER(Z34),ISNUMBER(Z35)),SUM(AB34:AB35),\"\")","v":""},{"$f":"IF(Z36=\"\",\"\",CONCATENATE(\"(Diff : \",Z36,\" - \",AB36,\")\"))","v":""}]
[null,null,null,null,null,null,null,null,null,{"$f":"IF(Z33=\"\",\"\",IF(Z33=Y31,AC31,Y31))","v":""},null,null,null,null,null,null,null,null,null,null,null,null,null,null,{"$f":"N_VAINQUEUR","v":"WINNER"},{"$f":"IF(Z34=\"\",IF(HidePlayerFormulas,\"\",\"(\"&Y31&\"-\"&AC31&\")\"),IF(Z31>AB31,Y31,IF(AB31>Z31,AC31,IF(Z32>AB32,Y31,IF(AB32>Z32,AC31,IF(Z38>AB38,Y31,IF(AB38>Z38,AC31,mess_erreur_marque)))))))","v":""}]
[null,null,null,null,null,null,null,null,null,null,null,null,null,null,null,null,null,null,null,null,null,null,null,null,null,null,"-"]
[null,null,null,null,null,null,null,null,null,null,null,null,null,null,null,null,null,null,null,null,null,null,null,null,null,null,"-"]
[null,null,null,null,null,null,null,null,null,null,null,null,null,null,null,null,null,null,null,null,null,null,{"$f":"N_Différentiel","v":"Shoot Out"},null,null,null,"-"]
[]
[null,null,null,null,null,null,null,null,null,null,null,null,null,null,null,null,null,null,null,null,null,{"$f":"N_Heure","v":"Time"},{"$f":"N_Table","v":"Table"},{"$f":"N_Arbitre","v":"Referee"},{"$f":"N_Scores","v":"Scores"},null,null,null,null,{"$f":"N_MS","v":"SD"}]
[null,null,null,null,null,null,null,null,null,null,null,null,null,null,null,null,null,null,null,null,"#F8",null,null,null,null,{"$f":"IF(OR(ISNUMBER(Z42),ISNUMBER(Z43)),Lire_Gain_Matches(Z42:Z43, AB42:AB43),\"\")","v":""},"-",{"$f":"IF(OR(ISNUMBER(Z42),ISNUMBER(Z43)),Lire_Gain_Matches(AB42:AB43, Z42:Z43),\"\")","v":""},null,{"$f":"IF(ISNA(VLOOKUP(\"X\",AD42:AD43,1,FALSE)),\"\",\"X\")","v":""}]
[null,null,null,null,null,null,null,null,null,null,null,null,null,null,null,null,null,null,null,null,null,null,null,null,{"$f":"N_Total_buts","v":"Total goals"},{"$f":"IF(OR(ISNUMBER(Z42),ISNUMBER(Z43)),SUM(Z42:Z43),\"\")","v":""},"-",{"$f":"IF(OR(ISNUMBER(Z42),ISNUMBER(Z43)),SUM(AB42:AB43),\"\")","v":""},{"$f":"IF(Z44=\"\",\"\",CONCATENATE(\"(Diff : \",Z44,\" - \",AB44,\")\"))","v":""}]
[null,null,null,null,null,null,null,null,null,{"$f":"IF(Z41=\"\",\"\",IF(Z41=Y39,AC39,Y39))","v":""},null,null,null,null,null,null,null,null,null,null,null,null,null,null,{"$f":"N_VAINQUEUR","v":"WINNER"},{"$f":"IF(Z42=\"\",IF(HidePlayerFormulas,\"\",\"(\"&Y39&\"-\"&AC39&\")\"),IF(Z39>AB39,Y39,IF(AB39>Z39,AC39,IF(Z40>AB40,Y39,IF(AB40>Z40,AC39,IF(Z46>AB46,Y39,IF(AB46>Z46,AC39,mess_erreur_marque)))))))","v":""}]
[null,null,null,null,null,null,null,null,null,null,null,null,null,null,null,null,null,null,null,null,null,null,null,null,null,null,"-"]
[null,null,null,null,null,null,null,null,null,null,null,null,null,null,null,null,null,null,null,null,null,null,null,null,null,null,"-"]
[null,null,null,null,null,null,null,null,null,null,null,null,null,null,null,null,null,null,null,null,null,null,{"$f":"N_Différentiel","v":"Shoot Out"},null,null,null,"-"]
[]
[null,null,null,null,null,null,null,null,null,null,null,null,null,null,null,null,null,null,null,null,null,{"$f":"N_Heure","v":"Time"},{"$f":"N_Table","v":"Table"},{"$f":"N_Arbitre","v":"Referee"},{"$f":"N_Scores","v":"Scores"},null,null,null,null,{"$f":"N_MS","v":"SD"}]
[null,null,null,null,null,null,null,null,null,null,null,null,null,null,null,null,null,null,null,null,"#F8",null,null,null,null,{"$f":"IF(OR(ISNUMBER(Z50),ISNUMBER(Z51)),Lire_Gain_Matches(Z50:Z51, AB50:AB51),\"\")","v":""},"-",{"$f":"IF(OR(ISNUMBER(Z50),ISNUMBER(Z51)),Lire_Gain_Matches(AB50:AB51, Z50:Z51),\"\")","v":""},null,{"$f":"IF(ISNA(VLOOKUP(\"X\",AD50:AD51,1,FALSE)),\"\",\"X\")","v":""}]
[null,null,null,null,null,null,null,null,null,null,null,null,null,null,null,null,null,null,null,null,null,null,null,null,{"$f":"N_Total_buts","v":"Total goals"},{"$f":"IF(OR(ISNUMBER(Z50),ISNUMBER(Z51)),SUM(Z50:Z51),\"\")","v":""},"-",{"$f":"IF(OR(ISNUMBER(Z50),ISNUMBER(Z51)),SUM(AB50:AB51),\"\")","v":""},{"$f":"IF(Z52=\"\",\"\",CONCATENATE(\"(Diff : \",Z52,\" - \",AB52,\")\"))","v":""}]
[null,null,null,null,null,null,null,null,null,{"$f":"IF(Z49=\"\",\"\",IF(Z49=Y47,AC47,Y47))","v":""},null,null,null,null,null,null,null,null,null,null,null,null,null,null,{"$f":"N_VAINQUEUR","v":"WINNER"},{"$f":"IF(Z50=\"\",IF(HidePlayerFormulas,\"\",\"(\"&Y47&\"-\"&AC47&\")\"),IF(Z47>AB47,Y47,IF(AB47>Z47,AC47,IF(Z48>AB48,Y47,IF(AB48>Z48,AC47,IF(Z54>AB54,Y47,IF(AB54>Z54,AC47,mess_erreur_marque)))))))","v":""}]
[null,null,null,null,null,null,null,null,null,null,null,null,null,null,null,null,null,null,null,null,null,null,null,null,null,null,"-"]
[null,null,null,null,null,null,null,null,null,null,null,null,null,null,null,null,null,null,null,null,null,null,null,null,null,null,"-"]
[null,null,null,null,null,null,null,null,null,null,null,null,null,null,null,null,null,null,null,null,null,null,{"$f":"N_Différentiel","v":"Shoot Out"},null,null,null,"-"]
[]
[null,null,null,null,null,null,null,null,null,null,null,null,null,null,null,null,null,null,null,null,null,{"$f":"N_Heure","v":"Time"},{"$f":"N_Table","v":"Table"},{"$f":"N_Arbitre","v":"Referee"},{"$f":"N_Scores","v":"Scores"},null,null,null,null,{"$f":"N_MS","v":"SD"}]
[null,null,null,null,null,null,null,null,null,null,null,null,null,null,null,null,null,null,null,null,"#F8",null,null,null,null,{"$f":"IF(OR(ISNUMBER(Z58),ISNUMBER(Z59)),Lire_Gain_Matches(Z58:Z59, AB58:AB59),\"\")","v":""},"-",{"$f":"IF(OR(ISNUMBER(Z58),ISNUMBER(Z59)),Lire_Gain_Matches(AB58:AB59, Z58:Z59),\"\")","v":""},null,{"$f":"IF(ISNA(VLOOKUP(\"X\",AD58:AD59,1,FALSE)),\"\",\"X\")","v":""}]
[null,null,null,null,null,null,null,null,null,null,null,null,null,null,null,null,null,null,null,null,null,null,null,null,{"$f":"N_Total_buts","v":"Total goals"},{"$f":"IF(OR(ISNUMBER(Z58),ISNUMBER(Z59)),SUM(Z58:Z59),\"\")","v":""},"-",{"$f":"IF(OR(ISNUMBER(Z58),ISNUMBER(Z59)),SUM(AB58:AB59),\"\")","v":""},{"$f":"IF(Z60=\"\",\"\",CONCATENATE(\"(Diff : \",Z60,\" - \",AB60,\")\"))","v":""}]
[null,null,null,null,null,null,null,null,null,{"$f":"IF(Z57=\"\",\"\",IF(Z57=Y55,AC55,Y55))","v":""},null,null,null,null,null,null,null,null,null,null,null,null,null,null,{"$f":"N_VAINQUEUR","v":"WINNER"},{"$f":"IF(Z58=\"\",IF(HidePlayerFormulas,\"\",\"(\"&Y55&\"-\"&AC55&\")\"),IF(Z55>AB55,Y55,IF(AB55>Z55,AC55,IF(Z56>AB56,Y55,IF(AB56>Z56,AC55,IF(Z62>AB62,Y55,IF(AB62>Z62,AC55,mess_erreur_marque)))))))","v":""}]
[null,null,null,null,null,null,null,null,null,null,null,null,null,null,null,null,null,null,null,null,null,null,null,null,null,null,"-"]
[null,null,null,null,null,null,null,null,null,null,null,null,null,null,null,null,null,null,null,null,null,null,null,null,null,null,"-"]
[null,null,null,null,null,null,null,null,null,null,null,null,null,null,null,null,null,null,null,null,null,null,{"$f":"N_Différentiel","v":"Shoot Out"},null,null,null,"-"]
[]
[null,null,null,null,null,null,null,null,null,null,null,null,null,null,null,null,null,null,null,null,null,{"$f":"N_Heure","v":"Time"},{"$f":"N_Table","v":"Table"},{"$f":"N_Arbitre","v":"Referee"},{"$f":"N_Scores","v":"Scores"},null,null,null,null,{"$f":"N_MS","v":"SD"}]
[null,null,null,null,null,null,null,null,null,null,null,null,null,null,null,null,null,null,null,null,"#F8",null,null,null,null,{"$f":"IF(OR(ISNUMBER(Z66),ISNUMBER(Z67)),Lire_Gain_Matches(Z66:Z67, AB66:AB67),\"\")","v":""},"-",{"$f":"IF(OR(ISNUMBER(Z66),ISNUMBER(Z67)),Lire_Gain_Matches(AB66:AB67, Z66:Z67),\"\")","v":""},null,{"$f":"IF(ISNA(VLOOKUP(\"X\",AD66:AD67,1,FALSE)),\"\",\"X\")","v":""}]
[null,null,null,null,null,null,null,null,null,null,null,null,null,null,null,null,null,null,null,null,null,null,null,null,{"$f":"N_Total_buts","v":"Total goals"},{"$f":"IF(OR(ISNUMBER(Z66),ISNUMBER(Z67)),SUM(Z66:Z67),\"\")","v":""},"-",{"$f":"IF(OR(ISNUMBER(Z66),ISNUMBER(Z67)),SUM(AB66:AB67),\"\")","v":""},{"$f":"IF(Z68=\"\",\"\",CONCATENATE(\"(Diff : \",Z68,\" - \",AB68,\")\"))","v":""}]
[null,null,null,null,null,null,null,null,null,{"$f":"IF(Z65=\"\",\"\",IF(Z65=Y63,AC63,Y63))","v":""},null,null,null,null,null,null,null,null,null,null,null,null,null,null,{"$f":"N_VAINQUEUR","v":"WINNER"},{"$f":"IF(Z66=\"\",IF(HidePlayerFormulas,\"\",\"(\"&Y63&\"-\"&AC63&\")\"),IF(Z63>AB63,Y63,IF(AB63>Z63,AC63,IF(Z64>AB64,Y63,IF(AB64>Z64,AC63,IF(Z70>AB70,Y63,IF(AB70>Z70,AC63,mess_erreur_marque)))))))","v":""}]
[null,null,null,null,null,null,null,null,null,null,null,null,null,null,null,null,null,null,null,null,null,null,null,null,null,null,"-"]
[null,null,null,null,null,null,null,null,null,null,null,null,null,null,null,null,null,null,null,null,null,null,null,null,null,null,"-"]
[null,null,null,null,null,null,null,null,null,null,null,null,null,null,null,null,null,null,null,null,null,null,{"$f":"N_Différentiel","v":"Shoot Out"},null,null,null,"-"]
[]
[null,null,null,null,null,null,null,null,null,null,null,null,null,null,null,null,null,null,null,null,null,{"$f":"N_Heure","v":"Time"},{"$f":"N_Table","v":"Table"},{"$f":"N_Arbitre","v":"Referee"},{"$f":"N_Scores","v":"Scores"},null,null,null,null,{"$f":"N_MS","v":"SD"}]
[null,null,null,null,null,null,null,null,null,null,null,null,null,null,null,null,null,null,null,null,"#F8",null,null,null,null,{"$f":"IF(OR(ISNUMBER(Z74),ISNUMBER(Z75)),Lire_Gain_Matches(Z74:Z75, AB74:AB75),\"\")","v":""},"-",{"$f":"IF(OR(ISNUMBER(Z74),ISNUMBER(Z75)),Lire_Gain_Matches(AB74:AB75, Z74:Z75),\"\")","v":""},null,{"$f":"IF(ISNA(VLOOKUP(\"X\",AD74:AD75,1,FALSE)),\"\",\"X\")","v":""}]
[null,null,null,null,null,null,null,null,null,null,null,null,null,null,null,null,null,null,null,null,null,null,null,null,{"$f":"N_Total_buts","v":"Total goals"},{"$f":"IF(OR(ISNUMBER(Z74),ISNUMBER(Z75)),SUM(Z74:Z75),\"\")","v":""},"-",{"$f":"IF(OR(ISNUMBER(Z74),ISNUMBER(Z75)),SUM(AB74:AB75),\"\")","v":""},{"$f":"IF(Z76=\"\",\"\",CONCATENATE(\"(Diff : \",Z76,\" - \",AB76,\")\"))","v":""}]
[null,null,null,null,null,null,null,null,null,{"$f":"IF(Z73=\"\",\"\",IF(Z73=Y71,AC71,Y71))","v":""},null,null,null,null,null,null,null,null,null,null,null,null,null,null,{"$f":"N_VAINQUEUR","v":"WINNER"},{"$f":"IF(Z74=\"\",IF(HidePlayerFormulas,\"\",\"(\"&Y71&\"-\"&AC71&\")\"),IF(Z71>AB71,Y71,IF(AB71>Z71,AC71,IF(Z72>AB72,Y71,IF(AB72>Z72,AC71,IF(Z78>AB78,Y71,IF(AB78>Z78,AC71,mess_erreur_marque)))))))","v":""}]
[null,null,null,null,null,null,null,null,null,null,null,null,null,null,null,null,null,null,null,null,null,null,null,null,null,null,"-"]
[null,null,null,null,null,null,null,null,null,null,null,null,null,null,null,null,null,null,null,null,null,null,null,null,null,null,"-"]
[null,null,null,null,null,null,null,null,null,null,null,null,null,null,null,null,null,null,null,null,null,null,{"$f":"N_Différentiel","v":"Shoot Out"},null,null,null,"-"]
[]
[null,null,null,null,null,null,null,null,null,null,null,null,null,null,null,null,null,null,null,null,null,{"$f":"N_Heure","v":"Time"},{"$f":"N_Table","v":"Table"},{"$f":"N_Arbitre","v":"Referee"},{"$f":"N_Scores","v":"Scores"},null,null,null,null,{"$f":"N_MS","v":"SD"}]
[null,null,null,null,null,null,null,null,null,null,null,null,null,null,null,null,null,null,null,null,"#F8",null,null,null,null,{"$f":"IF(OR(ISNUMBER(Z82),ISNUMBER(Z83)),Lire_Gain_Matches(Z82:Z83, AB82:AB83),\"\")","v":""},"-",{"$f":"IF(OR(ISNUMBER(Z82),ISNUMBER(Z83)),Lire_Gain_Matches(AB82:AB83, Z82:Z83),\"\")","v":""},null,{"$f":"IF(ISNA(VLOOKUP(\"X\",AD82:AD83,1,FALSE)),\"\",\"X\")","v":""}]
[null,null,null,null,null,null,null,null,null,null,null,null,null,null,null,null,null,null,null,null,null,null,null,null,{"$f":"N_Total_buts","v":"Total goals"},{"$f":"IF(OR(ISNUMBER(Z82),ISNUMBER(Z83)),SUM(Z82:Z83),\"\")","v":""},"-",{"$f":"IF(OR(ISNUMBER(Z82),ISNUMBER(Z83)),SUM(AB82:AB83),\"\")","v":""},{"$f":"IF(Z84=\"\",\"\",CONCATENATE(\"(Diff : \",Z84,\" - \",AB84,\")\"))","v":""}]
[null,null,null,null,null,null,null,null,null,{"$f":"IF(Z81=\"\",\"\",IF(Z81=Y79,AC79,Y79))","v":""},null,null,null,null,null,null,null,null,null,null,null,null,null,null,{"$f":"N_VAINQUEUR","v":"WINNER"},{"$f":"IF(Z82=\"\",IF(HidePlayerFormulas,\"\",\"(\"&Y79&\"-\"&AC79&\")\"),IF(Z79>AB79,Y79,IF(AB79>Z79,AC79,IF(Z80>AB80,Y79,IF(AB80>Z80,AC79,IF(Z86>AB86,Y79,IF(AB86>Z86,AC79,mess_erreur_marque)))))))","v":""}]
[null,null,null,null,null,null,null,null,null,null,null,null,null,null,null,null,null,null,null,null,null,null,null,null,null,null,"-"]
[null,null,null,null,null,null,null,null,null,null,null,null,null,null,null,null,null,null,null,null,null,null,null,null,null,null,"-"]
[null,null,null,null,null,null,null,null,null,null,null,null,null,null,null,null,null,null,null,null,null,null,{"$f":"N_Différentiel","v":"Shoot Out"},null,null,null,"-"]
[]
[null,null,null,null,null,null,null,null,null,null,null,null,null,null,null,null,null,null,null,null,null,{"$f":"N_Heure","v":"Time"},{"$f":"N_Table","v":"Table"},{"$f":"N_Arbitre","v":"Referee"},{"$f":"N_Scores","v":"Scores"},null,null,null,null,{"$f":"N_MS","v":"SD"}]
[null,null,null,null,null,null,null,null,null,null,null,null,null,null,null,null,null,null,null,null,"#F8",null,null,null,null,{"$f":"IF(OR(ISNUMBER(Z90),ISNUMBER(Z91)),Lire_Gain_Matches(Z90:Z91, AB90:AB91),\"\")","v":""},"-",{"$f":"IF(OR(ISNUMBER(Z90),ISNUMBER(Z91)),Lire_Gain_Matches(AB90:AB91, Z90:Z91),\"\")","v":""},null,{"$f":"IF(ISNA(VLOOKUP(\"X\",AD90:AD91,1,FALSE)),\"\",\"X\")","v":""}]
[null,null,null,null,null,null,null,null,null,null,null,null,null,null,null,null,null,null,null,null,null,null,null,null,{"$f":"N_Total_buts","v":"Total goals"},{"$f":"IF(OR(ISNUMBER(Z90),ISNUMBER(Z91)),SUM(Z90:Z91),\"\")","v":""},"-",{"$f":"IF(OR(ISNUMBER(Z90),ISNUMBER(Z91)),SUM(AB90:AB91),\"\")","v":""},{"$f":"IF(Z92=\"\",\"\",CONCATENATE(\"(Diff : \",Z92,\" - \",AB92,\")\"))","v":""}]
[null,null,null,null,null,null,null,null,null,{"$f":"IF(Z89=\"\",\"\",IF(Z89=Y87,AC87,Y87))","v":""},null,null,null,null,null,null,null,null,null,null,null,null,null,null,{"$f":"N_VAINQUEUR","v":"WINNER"},{"$f":"IF(Z90=\"\",IF(HidePlayerFormulas,\"\",\"(\"&Y87&\"-\"&AC87&\")\"),IF(Z87>AB87,Y87,IF(AB87>Z87,AC87,IF(Z88>AB88,Y87,IF(AB88>Z88,AC87,IF(Z94>AB94,Y87,IF(AB94>Z94,AC87,mess_erreur_marque)))))))","v":""}]
[null,null,null,null,null,null,null,null,null,null,null,null,null,null,null,null,null,null,null,null,null,null,null,null,null,null,"-"]
[null,null,null,null,null,null,null,null,null,null,null,null,null,null,null,null,null,null,null,null,null,null,null,null,null,null,"-"]
[null,null,null,null,null,null,null,null,null,null,null,null,null,null,null,null,null,null,null,null,null,null,{"$f":"N_Différentiel","v":"Shoot Out"},null,null,null,"-"]
[]
[null,{"$f":"N_QUART_DE_FINALE","v":"LAST 8"}]
[]
[null,null,null,null,null,null,null,null,null,null,null,null,null,null,null,null,null,null,null,null,null,{"$f":"N_Heure","v":"Time"},{"$f":"N_Table","v":"Table"},{"$f":"N_Arbitre","v":"Referee"},{"$f":"N_Scores","v":"Scores"},null,null,null,null,{"$f":"N_MS","v":"SD"}]
[null,null,null,null,null,null,null,null,null,null,null,null,null,null,null,null,null,null,null,null,"#F4",null,null,null,null,{"$f":"IF(OR(ISNUMBER(Z100),ISNUMBER(Z101)),Lire_Gain_Matches(Z100:Z101, AB100:AB101),\"\")","v":""},"-",{"$f":"IF(OR(ISNUMBER(Z100),ISNUMBER(Z101)),Lire_Gain_Matches(AB100:AB101, Z100:Z101),\"\")","v":""},null,{"$f":"IF(ISNA(VLOOKUP(\"X\",AD100:AD101,1,FALSE)),\"\",\"X\")","v":""}]
[null,null,null,null,null,null,null,null,null,null,null,null,null,null,null,null,null,null,null,null,null,null,null,null,{"$f":"N_Total_buts","v":"Total goals"},{"$f":"IF(OR(ISNUMBER(Z100),ISNUMBER(Z101)),SUM(Z100:Z101),\"\")","v":""},"-",{"$f":"IF(OR(ISNUMBER(Z100),ISNUMBER(Z101)),SUM(AB100:AB101),\"\")","v":""},{"$f":"IF(Z102=\"\",\"\",CONCATENATE(\"(Diff : \",Z102,\" - \",AB102,\")\"))","v":""}]
[null,null,null,null,null,null,null,null,null,{"$f":"IF(Z99=\"\",\"\",IF(Z99=Y97,AC97,Y97))","v":""},null,null,null,null,null,null,null,null,null,null,null,null,null,null,{"$f":"N_VAINQUEUR","v":"WINNER"},{"$f":"IF(Z100=\"\",IF(HidePlayerFormulas,\"\",\"(\"&Y97&\"-\"&AC97&\")\"),IF(Z97>AB97,Y97,IF(AB97>Z97,AC97,IF(Z98>AB98,Y97,IF(AB98>Z98,AC97,IF(Z104>AB104,Y97,IF(AB104>Z104,AC97,mess_erreur_marque)))))))","v":""}]
[null,null,null,null,null,null,null,null,null,null,null,null,null,null,null,null,null,null,null,null,null,null,null,null,null,null,"-"]
[null,null,null,null,null,null,null,null,null,null,null,null,null,null,null,null,null,null,null,null,null,null,null,null,null,null,"-"]
[null,null,null,null,null,null,null,null,null,null,null,null,null,null,null,null,null,null,null,null,null,null,{"$f":"N_Différentiel","v":"Shoot Out"},null,null,null,"-"]
[]
[null,null,null,null,null,null,null,null,null,null,null,null,null,null,null,null,null,null,null,null,null,{"$f":"N_Heure","v":"Time"},{"$f":"N_Table","v":"Table"},{"$f":"N_Arbitre","v":"Referee"},{"$f":"N_Scores","v":"Scores"},null,null,null,null,{"$f":"N_MS","v":"SD"}]
[null,null,null,null,null,null,null,null,null,null,null,null,null,null,null,null,null,null,null,null,"#F4",null,null,null,null,{"$f":"IF(OR(ISNUMBER(Z108),ISNUMBER(Z109)),Lire_Gain_Matches(Z108:Z109, AB108:AB109),\"\")","v":""},"-",{"$f":"IF(OR(ISNUMBER(Z108),ISNUMBER(Z109)),Lire_Gain_Matches(AB108:AB109, Z108:Z109),\"\")","v":""},null,{"$f":"IF(ISNA(VLOOKUP(\"X\",AD108:AD109,1,FALSE)),\"\",\"X\")","v":""}]
[null,null,null,null,null,null,null,null,null,null,null,null,null,null,null,null,null,null,null,null,null,null,null,null,{"$f":"N_Total_buts","v":"Total goals"},{"$f":"IF(OR(ISNUMBER(Z108),ISNUMBER(Z109)),SUM(Z108:Z109),\"\")","v":""},"-",{"$f":"IF(OR(ISNUMBER(Z108),ISNUMBER(Z109)),SUM(AB108:AB109),\"\")","v":""},{"$f":"IF(Z110=\"\",\"\",CONCATENATE(\"(Diff : \",Z110,\" - \",AB110,\")\"))","v":""}]
[null,null,null,null,null,null,null,null,null,{"$f":"IF(Z107=\"\",\"\",IF(Z107=Y105,AC105,Y105))","v":""},null,null,null,null,null,null,null,null,null,null,null,null,null,null,{"$f":"N_VAINQUEUR","v":"WINNER"},{"$f":"IF(Z108=\"\",IF(HidePlayerFormulas,\"\",\"(\"&Y105&\"-\"&AC105&\")\"),IF(Z105>AB105,Y105,IF(AB105>Z105,AC105,IF(Z106>AB106,Y105,IF(AB106>Z106,AC105,IF(Z112>AB112,Y105,IF(AB112>Z112,AC105,mess_erreur_marque)))))))","v":""}]
[null,null,null,null,null,null,null,null,null,null,null,null,null,null,null,null,null,null,null,null,null,null,null,null,null,null,"-"]
[null,null,null,null,null,null,null,null,null,null,null,null,null,null,null,null,null,null,null,null,null,null,null,null,null,null,"-"]
[null,null,null,null,null,null,null,null,null,null,null,null,null,null,null,null,null,null,null,null,null,null,{"$f":"N_Différentiel","v":"Shoot Out"},null,null,null,"-"]
[]
[null,null,null,null,null,null,null,null,null,null,null,null,null,null,null,null,null,null,null,null,null,{"$f":"N_Heure","v":"Time"},{"$f":"N_Table","v":"Table"},{"$f":"N_Arbitre","v":"Referee"},{"$f":"N_Scores","v":"Scores"},null,null,null,null,{"$f":"N_MS","v":"SD"}]
[null,null,null,null,null,null,null,null,null,null,null,null,null,null,null,null,null,null,null,null,"#F4",null,null,null,null,{"$f":"IF(OR(ISNUMBER(Z116),ISNUMBER(Z117)),Lire_Gain_Matches(Z116:Z117, AB116:AB117),\"\")","v":""},"-",{"$f":"IF(OR(ISNUMBER(Z116),ISNUMBER(Z117)),Lire_Gain_Matches(AB116:AB117, Z116:Z117),\"\")","v":""},null,{"$f":"IF(ISNA(VLOOKUP(\"X\",AD116:AD117,1,FALSE)),\"\",\"X\")","v":""}]
[null,null,null,null,null,null,null,null,null,null,null,null,null,null,null,null,null,null,null,null,null,null,null,null,{"$f":"N_Total_buts","v":"Total goals"},{"$f":"IF(OR(ISNUMBER(Z116),ISNUMBER(Z117)),SUM(Z116:Z117),\"\")","v":""},"-",{"$f":"IF(OR(ISNUMBER(Z116),ISNUMBER(Z117)),SUM(AB116:AB117),\"\")","v":""},{"$f":"IF(Z118=\"\",\"\",CONCATENATE(\"(Diff : \",Z118,\" - \",AB118,\")\"))","v":""}]
[null,null,null,null,null,null,null,null,null,{"$f":"IF(Z115=\"\",\"\",IF(Z115=Y113,AC113,Y113))","v":""},null,null,null,null,null,null,null,null,null,null,null,null,null,null,{"$f":"N_VAINQUEUR","v":"WINNER"},{"$f":"IF(Z116=\"\",IF(HidePlayerFormulas,\"\",\"(\"&Y113&\"-\"&AC113&\")\"),IF(Z113>AB113,Y113,IF(AB113>Z113,AC113,IF(Z114>AB114,Y113,IF(AB114>Z114,AC113,IF(Z120>AB120,Y113,IF(AB120>Z120,AC113,mess_erreur_marque)))))))","v":""}]
[null,null,null,null,null,null,null,null,null,null,null,null,null,null,null,null,null,null,null,null,null,null,null,null,null,null,"-"]
[null,null,null,null,null,null,null,null,null,null,null,null,null,null,null,null,null,null,null,null,null,null,null,null,null,null,"-"]
[null,null,null,null,null,null,null,null,null,null,null,null,null,null,null,null,null,null,null,null,null,null,{"$f":"N_Différentiel","v":"Shoot Out"},null,null,null,"-"]
[]
[null,null,null,null,null,null,null,null,null,null,null,null,null,null,null,null,null,null,null,null,null,{"$f":"N_Heure","v":"Time"},{"$f":"N_Table","v":"Table"},{"$f":"N_Arbitre","v":"Referee"},{"$f":"N_Scores","v":"Scores"},null,null,null,null,{"$f":"N_MS","v":"SD"}]
[null,null,null,null,null,null,null,null,null,null,null,null,null,null,null,null,null,null,null,null,"#F4",null,null,null,null,{"$f":"IF(OR(ISNUMBER(Z124),ISNUMBER(Z125)),Lire_Gain_Matches(Z124:Z125, AB124:AB125),\"\")","v":""},"-",{"$f":"IF(OR(ISNUMBER(Z124),ISNUMBER(Z125)),Lire_Gain_Matches(AB124:AB125, Z124:Z125),\"\")","v":""},null,{"$f":"IF(ISNA(VLOOKUP(\"X\",AD124:AD125,1,FALSE)),\"\",\"X\")","v":""}]
[null,null,null,null,null,null,null,null,null,null,null,null,null,null,null,null,null,null,null,null,null,null,null,null,{"$f":"N_Total_buts","v":"Total goals"},{"$f":"IF(OR(ISNUMBER(Z124),ISNUMBER(Z125)),SUM(Z124:Z125),\"\")","v":""},"-",{"$f":"IF(OR(ISNUMBER(Z124),ISNUMBER(Z125)),SUM(AB124:AB125),\"\")","v":""},{"$f":"IF(Z126=\"\",\"\",CONCATENATE(\"(Diff : \",Z126,\" - \",AB126,\")\"))","v":""}]
[null,null,null,null,null,null,null,null,null,{"$f":"IF(Z123=\"\",\"\",IF(Z123=Y121,AC121,Y121))","v":""},null,null,null,null,null,null,null,null,null,null,null,null,null,null,{"$f":"N_VAINQUEUR","v":"WINNER"},{"$f":"IF(Z124=\"\",IF(HidePlayerFormulas,\"\",\"(\"&Y121&\"-\"&AC121&\")\"),IF(Z121>AB121,Y121,IF(AB121>Z121,AC121,IF(Z122>AB122,Y121,IF(AB122>Z122,AC121,IF(Z128>AB128,Y121,IF(AB128>Z128,AC121,mess_erreur_marque)))))))","v":""}]
[null,null,null,null,null,null,null,null,null,null,null,null,null,null,null,null,null,null,null,null,null,null,null,null,null,null,"-"]
[null,null,null,null,null,null,null,null,null,null,null,null,null,null,null,null,null,null,null,null,null,null,null,null,null,null,"-"]
[null,null,null,null,null,null,null,null,null,null,null,null,null,null,null,null,null,null,null,null,null,null,{"$f":"N_Différentiel","v":"Shoot Out"},null,null,null,"-"]
[]
[null,{"$f":"N_DEMI_FINALE","v":"SEMI FINAL"}]
[]
[null,null,null,null,null,null,null,null,null,null,null,null,null,null,null,null,null,null,null,null,null,{"$f":"N_Heure","v":"Time"},{"$f":"N_Table","v":"Table"},{"$f":"N_Arbitre","v":"Referee"},{"$f":"N_Scores","v":"Scores"},null,null,null,null,{"$f":"N_MS","v":"SD"}]
[null,null,null,null,null,null,null,null,null,null,null,null,null,null,null,null,null,null,null,null,"#F2",null,null,null,null,{"$f":"IF(OR(ISNUMBER(Z134),ISNUMBER(Z135)),Lire_Gain_Matches(Z134:Z135, AB134:AB135),\"\")","v":""},"-",{"$f":"IF(OR(ISNUMBER(Z134),ISNUMBER(Z135)),Lire_Gain_Matches(AB134:AB135, Z134:Z135),\"\")","v":""},null,{"$f":"IF(ISNA(VLOOKUP(\"X\",AD134:AD135,1,FALSE)),\"\",\"X\")","v":""}]
[null,null,null,null,null,null,null,null,null,null,null,null,null,null,null,null,null,null,null,null,null,null,null,null,{"$f":"N_Total_buts","v":"Total goals"},{"$f":"IF(OR(ISNUMBER(Z134),ISNUMBER(Z135)),SUM(Z134:Z135),\"\")","v":""},"-",{"$f":"IF(OR(ISNUMBER(Z134),ISNUMBER(Z135)),SUM(AB134:AB135),\"\")","v":""},{"$f":"IF(Z136=\"\",\"\",CONCATENATE(\"(Diff : \",Z136,\" - \",AB136,\")\"))","v":""}]
[null,null,null,null,null,null,null,null,null,{"$f":"IF(Z133=\"\",\"\",IF(Z133=Y131,AC131,Y131))","v":""},null,null,null,null,null,null,null,null,null,null,null,null,null,null,{"$f":"N_VAINQUEUR","v":"WINNER"},{"$f":"IF(Z134=\"\",IF(HidePlayerFormulas,\"\",\"(\"&Y131&\"-\"&AC131&\")\"),IF(Z131>AB131,Y131,IF(AB131>Z131,AC131,IF(Z132>AB132,Y131,IF(AB132>Z132,AC131,IF(Z138>AB138,Y131,IF(AB138>Z138,AC131,mess_erreur_marque)))))))","v":""}]
[null,null,null,null,null,null,null,null,null,null,null,null,null,null,null,null,null,null,null,null,null,null,null,null,null,null,"-"]
[null,null,null,null,null,null,null,null,null,null,null,null,null,null,null,null,null,null,null,null,null,null,null,null,null,null,"-"]
[null,null,null,null,null,null,null,null,null,null,null,null,null,null,null,null,null,null,null,null,null,null,{"$f":"N_Différentiel","v":"Shoot Out"},null,null,null,"-"]
[]
[null,null,null,null,null,null,null,null,null,null,null,null,null,null,null,null,null,null,null,null,null,{"$f":"N_Heure","v":"Time"},{"$f":"N_Table","v":"Table"},{"$f":"N_Arbitre","v":"Referee"},{"$f":"N_Scores","v":"Scores"},null,null,null,null,{"$f":"N_MS","v":"SD"}]
[null,null,null,null,null,null,null,null,null,null,null,null,null,null,null,null,null,null,null,null,"#F2",null,null,null,null,{"$f":"IF(OR(ISNUMBER(Z142),ISNUMBER(Z143)),Lire_Gain_Matches(Z142:Z143, AB142:AB143),\"\")","v":""},"-",{"$f":"IF(OR(ISNUMBER(Z142),ISNUMBER(Z143)),Lire_Gain_Matches(AB142:AB143, Z142:Z143),\"\")","v":""},null,{"$f":"IF(ISNA(VLOOKUP(\"X\",AD142:AD143,1,FALSE)),\"\",\"X\")","v":""}]
[null,null,null,null,null,null,null,null,null,null,null,null,null,null,null,null,null,null,null,null,null,null,null,null,{"$f":"N_Total_buts","v":"Total goals"},{"$f":"IF(OR(ISNUMBER(Z142),ISNUMBER(Z143)),SUM(Z142:Z143),\"\")","v":""},"-",{"$f":"IF(OR(ISNUMBER(Z142),ISNUMBER(Z143)),SUM(AB142:AB143),\"\")","v":""},{"$f":"IF(Z144=\"\",\"\",CONCATENATE(\"(Diff : \",Z144,\" - \",AB144,\")\"))","v":""}]
[null,null,null,null,null,null,null,null,null,{"$f":"IF(Z141=\"\",\"\",IF(Z141=Y139,AC139,Y139))","v":""},null,null,null,null,null,null,null,null,null,null,null,null,null,null,{"$f":"N_VAINQUEUR","v":"WINNER"},{"$f":"IF(Z142=\"\",IF(HidePlayerFormulas,\"\",\"(\"&Y139&\"-\"&AC139&\")\"),IF(Z139>AB139,Y139,IF(AB139>Z139,AC139,IF(Z140>AB140,Y139,IF(AB140>Z140,AC139,IF(Z156>AB156,Y139,IF(AB156>Z156,AC139,mess_erreur_marque)))))))","v":""}]
[null,null,null,null,null,null,null,null,null,null,null,null,null,null,null,null,null,null,null,null,null,null,null,null,null,null,"-"]
[null,null,null,null,null,null,null,null,null,null,null,null,null,null,null,null,null,null,null,null,null,null,null,null,null,null,"-"]
[null,null,null,null,null,null,null,null,null,null,null,null,null,null,null,null,null,null,null,null,null,null,{"$f":"N_Différentiel","v":"Shoot Out"},null,null,null,"-"]
[]
[null,{"$f":"N_THIRD","v":"PLAY-OFF for 3rd PLACE"}]
[]
[null,null,null,null,null,null,null,null,null,null,null,null,null,null,null,null,null,null,null,null,null,{"$f":"N_Heure","v":"Time"},{"$f":"N_Table","v":"Table"},{"$f":"N_Arbitre","v":"Referee"},{"$f":"N_Scores","v":"Scores"},null,null,null,null,{"$f":"N_MS","v":"SD"}]
[null,null,null,null,null,null,null,null,null,null,null,null,null,null,null,null,null,null,null,null,"#F1",null,null,null,null,{"$f":"IF(OR(ISNUMBER(Z152),ISNUMBER(Z153)),Lire_Gain_Matches(Z152:Z153, AB152:AB153),\"\")","v":""},"-",{"$f":"IF(OR(ISNUMBER(Z152),ISNUMBER(Z153)),Lire_Gain_Matches(AB152:AB153, Z152:Z153),\"\")","v":""},null,{"$f":"IF(ISNA(VLOOKUP(\"X\",AD152:AD153,1,FALSE)),\"\",\"X\")","v":""}]
[null,null,null,null,null,null,null,null,null,null,null,null,null,null,null,null,null,null,null,null,null,null,null,null,{"$f":"N_Total_buts","v":"Total goals"},{"$f":"IF(OR(ISNUMBER(Z152),ISNUMBER(Z153)),SUM(Z152:Z153),\"\")","v":""},"-",{"$f":"IF(OR(ISNUMBER(Z152),ISNUMBER(Z153)),SUM(AB152:AB153),\"\")","v":""},{"$f":"IF(Z154=\"\",\"\",CONCATENATE(\"(Diff : \",Z154,\" - \",AB154,\")\"))","v":""}]
[null,null,null,null,null,null,null,null,null,{"$f":"IF(Z151=\"\",\"\",IF(Z151=Y149,AC149,Y149))","v":""},null,null,null,null,null,null,null,null,null,null,null,null,null,null,{"$f":"N_VAINQUEUR","v":"WINNER"},{"$f":"IF(Z152=\"\",IF(HidePlayerFormulas,\"\",\"(\"&Y149&\"-\"&AC149&\")\"),IF(Z149>AB149,Y149,IF(AB149>Z149,AC149,IF(Z150>AB150,Y149,IF(AB150>Z150,AC149,IF(Z156>AB156,Y149,IF(AB156>Z156,AC149,mess_erreur_marque)))))))","v":""}]
[null,null,null,null,null,null,null,null,null,null,null,null,null,null,null,null,null,null,null,null,null,null,null,null,null,null,"-"]
[null,null,null,null,null,null,null,null,null,null,null,null,null,null,null,null,null,null,null,null,null,null,null,null,null,null,"-"]
[null,null,null,null,null,null,null,null,null,null,null,null,null,null,null,null,null,null,null,null,null,null,{"$f":"N_Différentiel","v":"Shoot Out"},null,null,null,"-"]
[]
[null,{"$f":"N_FINALE","v":"FINAL"}]
[]
[null,null,null,null,null,null,null,null,null,null,null,null,null,null,null,null,null,null,null,null,null,{"$f":"N_Heure","v":"Time"},{"$f":"N_Table","v":"Table"},{"$f":"N_Arbitre","v":"Referee"},{"$f":"N_Scores","v":"Scores"},null,null,null,null,{"$f":"N_MS","v":"SD"}]
[null,null,null,null,null,null,null,null,null,null,null,null,null,null,null,null,null,null,null,null,"#F1",null,null,null,null,{"$f":"IF(OR(ISNUMBER(Z162),ISNUMBER(Z163)),Lire_Gain_Matches(Z162:Z163, AB162:AB163),\"\")","v":""},"-",{"$f":"IF(OR(ISNUMBER(Z162),ISNUMBER(Z163)),Lire_Gain_Matches(AB162:AB163, Z162:Z163),\"\")","v":""},null,{"$f":"IF(ISNA(VLOOKUP(\"X\",AD162:AD163,1,FALSE)),\"\",\"X\")","v":""}]
[null,null,null,null,null,null,null,null,null,null,null,null,null,null,null,null,null,null,null,null,null,null,null,null,{"$f":"N_Total_buts","v":"Total goals"},{"$f":"IF(OR(ISNUMBER(Z162),ISNUMBER(Z163)),SUM(Z162:Z163),\"\")","v":""},"-",{"$f":"IF(OR(ISNUMBER(Z162),ISNUMBER(Z163)),SUM(AB162:AB163),\"\")","v":""},{"$f":"IF(Z164=\"\",\"\",CONCATENATE(\"(Diff : \",Z164,\" - \",AB164,\")\"))","v":""}]
[null,null,null,null,null,null,null,null,null,{"$f":"IF(Z161=\"\",\"\",IF(Z161=Y159,AC159,Y159))","v":""},null,null,null,null,null,null,null,null,null,null,null,null,null,null,{"$f":"N_VAINQUEUR","v":"WINNER"},{"$f":"IF(Z162=\"\",IF(HidePlayerFormulas,\"\",\"(\"&Y159&\"-\"&AC159&\")\"),IF(Z159>AB159,Y159,IF(AB159>Z159,AC159,IF(Z160>AB160,Y159,IF(AB160>Z160,AC159,IF(Z166>AB166,Y159,IF(AB166>Z166,AC159,mess_erreur_marque)))))))","v":""}]
[null,null,null,null,null,null,null,null,null,null,null,null,null,null,null,null,null,null,null,null,null,null,null,null,null,null,"-"]
[null,null,null,null,null,null,null,null,null,null,null,null,null,null,null,null,null,null,null,null,null,null,null,null,null,null,"-"]
[null,null,null,null,null,null,null,null,null,null,null,null,null,null,null,null,null,null,null,null,null,null,{"$f":"N_Différentiel","v":"Shoot Out"},null,null,null,"-"]

{"sheet":"Ind by Sel. Match","index":24,"n_rows":71,"n_cols":46,"rows_kept":71,"cut":false,"hidden":true,"merged":[[33,3,35,3],[33,4,35,4],[9,2,11,2],[9,3,11,3],[9,4,11,4],[8,11,10,11],[17,2,19,2],[17,3,19,3],[17,4,19,4],[16,11,18,11],[25,2,27,2],[25,3,27,3],[25,4,27,4],[33,2,35,2],[24,11,26,11],[32,11,34,11],[67,2,69,2],[67,3,69,3],[67,4,69,4],[39,2,41,2],[39,3,41,3],[39,4,41,4],[51,2,53,2],[51,3,53,3],[51,4,53,4],[59,2,61,2],[59,3,61,3],[59,4,61,4],[24,12,26,12],[24,13,26,13],[8,13,10,13],[12,11,14,11],[12,12,14,12],[12,13,14,13],[8,12,10,12],[20,12,22,12],[20,13,22,13],[16,12,18,12],[20,11,22,11],[16,13,18,13],[32,12,34,12],[32,13,34,13],[36,11,38,11],[36,12,38,12],[36,13,38,13],[28,11,30,11],[28,12,30,12],[28,13,30,13],[48,11,50,11],[48,12,50,12],[48,13,50,13],[52,11,54,11],[52,12,54,12],[52,13,54,13],[40,11,42,11],[40,12,42,12],[40,13,42,13],[44,11,46,11],[44,12,46,12],[44,13,46,13],[56,11,58,11],[56,12,58,12],[56,13,58,13],[68,11,70,11],[68,12,70,12],[68,13,70,13],[60,11,62,11],[60,12,62,12],[60,13,62,13],[64,11,66,11],[64,12,66,12],[64,13,66,13],[10,19,12,19],[10,20,12,20],[18,18,20,18],[18,19,20,19],[18,20,20,20],[10,18,12,18],[26,18,28,18],[26,19,28,19],[26,20,28,20],[14,25,16,25],[14,26,16,26],[14,27,16,27],[30,25,32,25],[30,26,32,26],[22,32,24,32],[30,27,32,27],[34,18,36,18],[46,26,48,26],[46,27,48,27],[34,20,36,20],[42,20,44,20],[34,19,36,19],[42,18,44,18],[42,19,44,19],[38,41,40,41],[22,33,24,33],[22,34,24,34],[66,18,68,18],[66,19,68,19],[54,33,56,33],[54,34,56,34],[46,25,48,25],[62,27,64,27],[62,25,64,25],[54,32,56,32],[38,39,40,39],[38,40,40,40],[62,26,64,26],[58,20,60,20],[50,20,52,20],[50,18,52,18],[50,19,52,19],[66,20,68,20],[58,18,60,18],[58,19,60,19]]}
[]
[]
[]
[]
[]
[null,{"$f":"N_BARRAGES","v":"PLAY-OFF"},null,null,null,null,null,null,null,null,{"$f":"N__1_16_DE_FINALE","v":"LAST 32"},null,null,null,null,null,null,{"$f":"N__1_8_DE_FINALE","v":"LAST 16"},null,null,null,null,null,null,{"$f":"N_QUART_DE_FINALE","v":"LAST 8"},null,null,null,null,null,null,{"$f":"N_DEMI_FINALE","v":"SEMI FINAL"},null,null,null,null,null,null,{"$f":"N_FINALE","v":"FINAL"},null,null,null,null,null,null,{"$f":"N_Winner","v":"Winner"}]
[]
[null,null,null,null,null,null,null,null,null,null,null,{"$f":"N_Heure","v":"Time"},{"$f":"N_Table","v":"Table"},{"$f":"N_Arbitre","v":"Referee"},{"$f":"N_Buts","v":"Goals"},{"$f":"N_MS","v":"SD"},{"$f":"N_Diff","v":"Pen."}]
[null,null,{"$f":"N_Heure","v":"Time"},{"$f":"N_Table","v":"Table"},{"$f":"N_Arbitre","v":"Referee"},{"$f":"N_Buts","v":"Goals"},{"$f":"N_MS","v":"SD"},{"$f":"N_Diff","v":"Pen."},null,"N° 1",null,null,null,null,null,null,null,{"$f":"IF(O9=\"\",\"\",CONCATENATE(O9,\" \",IF(R10=K9,IF(P10=\"X\",N_res_MS,IF(Q9=\"\",\"\",CONCATENATE(N_res_Diff,Q9,\"-\",Q11))),\"\")))","v":""}]
["N° 32","toto",null,null,null,null,null,null,{"$f":"IF(F10=\"\",\"\",CONCATENATE(F10,\" \",IF(I11=B10,IF(G11=\"X\",N_res_MS,IF(H10=\"\",\"\",CONCATENATE(N_res_Diff,H10,\"-\",H12))),\"\")))","v":""},null,null,null,null,null,null,null,null,{"$f":"IF(O9=\"\",\"\",IF(O9>O11,K9,IF(O9<O11,K11,IF(Q9>Q11,K9,IF(Q9<Q11,K11,mess_erreur_marque)))))","v":""},{"$f":"N_Heure","v":"Time"},{"$f":"N_Table","v":"Table"},{"$f":"N_Arbitre","v":"Referee"},{"$f":"N_Buts","v":"Goals"},{"$f":"N_MS","v":"SD"},{"$f":"N_Diff","v":"Pen."}]
[null,null,null,null,null,null,null,null,{"$f":"IF(F10=\"\",\"\",IF(F10>F12,B10,IF(F10<F12,B12,IF(H10>H12,B10,IF(H10<H12,B12,mess_erreur_marque)))))","v":""},"N° 32",{"$f":"IF(I11=\"\",\"\",I11)","v":""},null,null,null,null,null,null,{"$f":"IF(O11=\"\",\"\",CONCATENATE(O11,\" \",IF(R10=K11,IF(P10=\"X\",N_res_MS,IF(Q11=\"\",\"\",CONCATENATE(N_res_Diff,Q11,\"-\",Q9))),\"\")))","v":""},null,null,null,null,null,null,{"$f":"IF(V11=\"\",\"\",CONCATENATE(V11,\" \",IF(Y12=R10,IF(W12=\"X\",N_res_MS,IF(X11=\"\",\"\",CONCATENATE(N_res_Diff,X11,\"-\",X13))),\"\")))","v":""}]
["N° 33","tutu",null,null,null,null,null,null,{"$f":"IF(F12=\"\",\"\",CONCATENATE(F12,\" \",IF(I11=B12,IF(G11=\"X\",N_res_MS,IF(H12=\"\",\"\",CONCATENATE(N_res_Diff,H12,\"-\",H10))),\"\")))","v":""},null,null,{"$f":"N_Heure","v":"Time"},{"$f":"N_Table","v":"Table"},{"$f":"N_Arbitre","v":"Referee"},{"$f":"N_Buts","v":"Goals"},{"$f":"N_MS","v":"SD"},{"$f":"N_Diff","v":"Pen."},null,null,null,null,null,null,null,{"$f":"IF(V11=\"\",\"\",IF(V11>V13,R10,IF(V11<V13,R14,IF(X11>X13,R10,IF(X11<X13,R14,mess_erreur_marque)))))","v":""}]
[null,null,null,null,null,null,null,null,null,"N° 16",null,null,null,null,null,null,null,{"$f":"IF(O13=\"\",\"\",CONCATENATE(O13,\" \",IF(R14=K13,IF(P14=\"X\",N_res_MS,IF(Q13=\"\",\"\",CONCATENATE(N_res_Diff,Q13,\"-\",Q15))),\"\")))","v":""},null,null,null,null,null,null,{"$f":"IF(V13=\"\",\"\",CONCATENATE(V13,\" \",IF(Y12=R14,IF(W12=\"X\",N_res_MS,IF(X13=\"\",\"\",CONCATENATE(N_res_Diff,X13,\"-\",X11))),\"\")))","v":""}]
[null,null,null,null,null,null,null,null,null,null,null,null,null,null,null,null,null,{"$f":"IF(O13=\"\",\"\",IF(O13>O15,K13,IF(O13<O15,K15,IF(Q13>Q15,K13,IF(Q13<Q15,K15,mess_erreur_marque)))))","v":""},null,null,null,null,null,null,null,{"$f":"N_Heure","v":"Time"},{"$f":"N_Table","v":"Table"},{"$f":"N_Arbitre","v":"Referee"},{"$f":"N_Buts","v":"Goals"},{"$f":"N_MS","v":"SD"},{"$f":"N_Diff","v":"Pen."}]
[null,null,null,null,null,null,null,null,null,"N° 17",null,null,null,null,null,null,null,{"$f":"IF(O15=\"\",\"\",CONCATENATE(O15,\" \",IF(R14=K15,IF(P14=\"X\",N_res_MS,IF(Q15=\"\",\"\",CONCATENATE(N_res_Diff,Q15,\"-\",Q13))),\"\")))","v":""},null,null,null,null,null,null,null,null,null,null,null,null,null,{"$f":"IF(AC15=\"\",\"\",CONCATENATE(AC15,\" \",IF(AF16=Y12,IF(AD16=\"X\",N_res_MS,IF(AE15=\"\",\"\",CONCATENATE(N_res_Diff,AE15,\"-\",AE17))),\"\")))","v":""}]
[null,null,null,null,null,null,null,null,null,null,null,{"$f":"N_Heure","v":"Time"},{"$f":"N_Table","v":"Table"},{"$f":"N_Arbitre","v":"Referee"},{"$f":"N_Buts","v":"Goals"},{"$f":"N_MS","v":"SD"},{"$f":"N_Diff","v":"Pen."},null,null,null,null,null,null,null,null,null,null,null,null,null,null,{"$f":"IF(AC15=\"\",\"\",IF(AC15>AC17,Y12,IF(AC15<AC17,Y20,IF(AE15>AE17,Y12,IF(AE15<AE17,Y20,mess_erreur_marque)))))","v":""}]
[null,null,{"$f":"N_Heure","v":"Time"},{"$f":"N_Table","v":"Table"},{"$f":"N_Arbitre","v":"Referee"},{"$f":"N_Buts","v":"Goals"},{"$f":"N_MS","v":"SD"},{"$f":"N_Diff","v":"Pen."},null,"N° 8",null,null,null,null,null,null,null,{"$f":"IF(O17=\"\",\"\",CONCATENATE(O17,\" \",IF(R18=K17,IF(P18=\"X\",N_res_MS,IF(Q17=\"\",\"\",CONCATENATE(N_res_Diff,Q17,\"-\",Q19))),\"\")))","v":""},null,null,null,null,null,null,null,null,null,null,null,null,null,{"$f":"IF(AC17=\"\",\"\",CONCATENATE(AC17,\" \",IF(AF16=Y20,IF(AD16=\"X\",N_res_MS,IF(AE17=\"\",\"\",CONCATENATE(N_res_Diff,AE17,\"-\",AE15))),\"\")))","v":""}]
["N° 25",null,null,null,null,null,null,null,{"$f":"IF(F18=\"\",\"\",CONCATENATE(F18,\" \",IF(I19=B18,IF(G19=\"X\",N_res_MS,IF(H18=\"\",\"\",CONCATENATE(N_res_Diff,H18,\"-\",H20))),\"\")))","v":""},null,null,null,null,null,null,null,null,{"$f":"IF(O17=\"\",\"\",IF(O17>O19,K17,IF(O17<O19,K19,IF(Q17>Q19,K17,IF(Q17<Q19,K19,mess_erreur_marque)))))","v":""},{"$f":"N_Heure","v":"Time"},{"$f":"N_Table","v":"Table"},{"$f":"N_Arbitre","v":"Referee"},{"$f":"N_Buts","v":"Goals"},{"$f":"N_MS","v":"SD"},{"$f":"N_Diff","v":"Pen."}]
[null,null,null,null,null,null,null,null,{"$f":"IF(F18=\"\",\"\",IF(F18>F20,B18,IF(F18<F20,B20,IF(H18>H20,B18,IF(H18<H20,B20,mess_erreur_marque)))))","v":""},"N° 25",{"$f":"IF(I19=\"\",\"\",I19)","v":""},null,null,null,null,null,null,{"$f":"IF(O19=\"\",\"\",CONCATENATE(O19,\" \",IF(R18=K19,IF(P18=\"X\",N_res_MS,IF(Q19=\"\",\"\",CONCATENATE(N_res_Diff,Q19,\"-\",Q17))),\"\")))","v":""},null,null,null,null,null,null,{"$f":"IF(V19=\"\",\"\",CONCATENATE(V19,\" \",IF(Y20=R18,IF(W20=\"X\",N_res_MS,IF(X19=\"\",\"\",CONCATENATE(N_res_Diff,X19,\"-\",X21))),\"\")))","v":""}]
["N° 40",null,null,null,null,null,null,null,{"$f":"IF(F20=\"\",\"\",CONCATENATE(F20,\" \",IF(I19=B20,IF(G19=\"X\",N_res_MS,IF(H20=\"\",\"\",CONCATENATE(N_res_Diff,H20,\"-\",H18))),\"\")))","v":""},null,null,{"$f":"N_Heure","v":"Time"},{"$f":"N_Table","v":"Table"},{"$f":"N_Arbitre","v":"Referee"},{"$f":"N_Buts","v":"Goals"},{"$f":"N_MS","v":"SD"},{"$f":"N_Diff","v":"Pen."},null,null,null,null,null,null,null,{"$f":"IF(V19=\"\",\"\",IF(V19>V21,R18,IF(V19<V21,R22,IF(X19>X21,R18,IF(X19<X21,R22,mess_erreur_marque)))))","v":""}]
[null,null,null,null,null,null,null,null,null,"N° 9",null,null,null,null,null,null,null,{"$f":"IF(O21=\"\",\"\",CONCATENATE(O21,\" \",IF(R22=K21,IF(P22=\"X\",N_res_MS,IF(Q21=\"\",\"\",CONCATENATE(N_res_Diff,Q21,\"-\",Q23))),\"\")))","v":""},null,null,null,null,null,null,{"$f":"IF(V21=\"\",\"\",CONCATENATE(V21,\" \",IF(Y20=R22,IF(W20=\"X\",N_res_MS,IF(X21=\"\",\"\",CONCATENATE(N_res_Diff,X21,\"-\",X19))),\"\")))","v":""}]
[null,null,null,null,null,null,null,null,null,null,null,null,null,null,null,null,null,{"$f":"IF(O21=\"\",\"\",IF(O21>O23,K21,IF(O21<O23,K23,IF(Q21>Q23,K21,IF(Q21<Q23,K23,mess_erreur_marque)))))","v":""},null,null,null,null,null,null,null,null,null,null,null,null,null,null,{"$f":"N_Heure","v":"Time"},{"$f":"N_Table","v":"Table"},{"$f":"N_Arbitre","v":"Referee"},{"$f":"N_Buts","v":"Goals"},{"$f":"N_MS","v":"SD"},{"$f":"N_Diff","v":"Pen."}]
[null,null,null,null,null,null,null,null,null,"N° 24",null,null,null,null,null,null,null,{"$f":"IF(O23=\"\",\"\",CONCATENATE(O23,\" \",IF(R22=K23,IF(P22=\"X\",N_res_MS,IF(Q23=\"\",\"\",CONCATENATE(N_res_Diff,Q23,\"-\",Q21))),\"\")))","v":""},null,null,null,null,null,null,null,null,null,null,null,null,null,null,null,null,null,null,null,null,{"$f":"IF(AJ23=\"\",\"\",CONCATENATE(AJ23,\" \",IF(AM24=AF16,IF(AK24=\"X\",N_res_MS,IF(AL23=\"\",\"\",CONCATENATE(N_res_Diff,AL23,\"-\",AL25))),\"\")))","v":""}]
[null,null,null,null,null,null,null,null,null,null,null,{"$f":"N_Heure","v":"Time"},{"$f":"N_Table","v":"Table"},{"$f":"N_Arbitre","v":"Referee"},{"$f":"N_Buts","v":"Goals"},{"$f":"N_MS","v":"SD"},{"$f":"N_Diff","v":"Pen."},null,null,null,null,null,null,null,null,null,null,null,null,null,null,null,null,null,null,null,null,null,{"$f":"IF(AJ23=\"\",\"\",IF(AJ23>AJ25,AF16,IF(AJ23<AJ25,AF32,IF(AL23>AL25,AF16,IF(AL23<AL25,AF32,mess_erreur_marque)))))","v":""}]
[null,null,{"$f":"N_Heure","v":"Time"},{"$f":"N_Table","v":"Table"},{"$f":"N_Arbitre","v":"Referee"},{"$f":"N_Buts","v":"Goals"},{"$f":"N_MS","v":"SD"},{"$f":"N_Diff","v":"Pen."},null,"N° 4",null,null,null,null,null,null,null,{"$f":"IF(O25=\"\",\"\",CONCATENATE(O25,\" \",IF(R26=K25,IF(P26=\"X\",N_res_MS,IF(Q25=\"\",\"\",CONCATENATE(N_res_Diff,Q25,\"-\",Q27))),\"\")))","v":""},null,null,null,null,null,null,null,null,null,null,null,null,null,null,null,null,null,null,null,null,{"$f":"IF(AJ25=\"\",\"\",CONCATENATE(AJ25,\" \",IF(AM24=AF32,IF(AK24=\"X\",N_res_MS,IF(AL25=\"\",\"\",CONCATENATE(N_res_Diff,AL25,\"-\",AL23))),\"\")))","v":""}]
["N° 36",null,null,null,null,null,null,null,{"$f":"IF(F26=\"\",\"\",CONCATENATE(F26,\" \",IF(I27=B26,IF(G27=\"X\",N_res_MS,IF(H26=\"\",\"\",CONCATENATE(N_res_Diff,H26,\"-\",H28))),\"\")))","v":""},null,null,null,null,null,null,null,null,{"$f":"IF(O25=\"\",\"\",IF(O25>O27,K25,IF(O25<O27,K27,IF(Q25>Q27,K25,IF(Q25<Q27,K27,mess_erreur_marque)))))","v":""},{"$f":"N_Heure","v":"Time"},{"$f":"N_Table","v":"Table"},{"$f":"N_Arbitre","v":"Referee"},{"$f":"N_Buts","v":"Goals"},{"$f":"N_MS","v":"SD"},{"$f":"N_Diff","v":"Pen."}]
[null,null,null,null,null,null,null,null,{"$f":"IF(F26=\"\",\"\",IF(F26>F28,B26,IF(F26<F28,B28,IF(H26>H28,B26,IF(H26<H28,B28,mess_erreur_marque)))))","v":""},"N° 29",{"$f":"IF(I27=\"\",\"\",I27)","v":""},null,null,null,null,null,null,{"$f":"IF(O27=\"\",\"\",CONCATENATE(O27,\" \",IF(R26=K27,IF(P26=\"X\",N_res_MS,IF(Q27=\"\",\"\",CONCATENATE(N_res_Diff,Q27,\"-\",Q25))),\"\")))","v":""},null,null,null,null,null,null,{"$f":"IF(V27=\"\",\"\",CONCATENATE(V27,\" \",IF(Y28=R26,IF(W28=\"X\",N_res_MS,IF(X27=\"\",\"\",CONCATENATE(N_res_Diff,X27,\"-\",X29))),\"\")))","v":""}]
["N° 29",null,null,null,null,null,null,null,{"$f":"IF(F28=\"\",\"\",CONCATENATE(F28,\" \",IF(I27=B28,IF(G27=\"X\",N_res_MS,IF(H28=\"\",\"\",CONCATENATE(N_res_Diff,H28,\"-\",H26))),\"\")))","v":""},null,null,{"$f":"N_Heure","v":"Time"},{"$f":"N_Table","v":"Table"},{"$f":"N_Arbitre","v":"Referee"},{"$f":"N_Buts","v":"Goals"},{"$f":"N_MS","v":"SD"},{"$f":"N_Diff","v":"Pen."},null,null,null,null,null,null,null,{"$f":"IF(V27=\"\",\"\",IF(V27>V29,R26,IF(V27<V29,R30,IF(X27>X29,R26,IF(X27<X29,R30,mess_erreur_marque)))))","v":""}]
[null,null,null,null,null,null,null,null,null,"N° 13",null,null,null,null,null,null,null,{"$f":"IF(O29=\"\",\"\",CONCATENATE(O29,\" \",IF(R30=K29,IF(P30=\"X\",N_res_MS,IF(Q29=\"\",\"\",CONCATENATE(N_res_Diff,Q29,\"-\",Q31))),\"\")))","v":""},null,null,null,null,null,null,{"$f":"IF(V29=\"\",\"\",CONCATENATE(V29,\" \",IF(Y28=R30,IF(W28=\"X\",N_res_MS,IF(X29=\"\",\"\",CONCATENATE(N_res_Diff,X29,\"-\",X27))),\"\")))","v":""}]
[null,null,null,null,null,null,null,null,null,null,null,null,null,null,null,null,null,{"$f":"IF(O29=\"\",\"\",IF(O29>O31,K29,IF(O29<O31,K31,IF(Q29>Q31,K29,IF(Q29<Q31,K31,mess_erreur_marque)))))","v":""},null,null,null,null,null,null,null,{"$f":"N_Heure","v":"Time"},{"$f":"N_Table","v":"Table"},{"$f":"N_Arbitre","v":"Referee"},{"$f":"N_Buts","v":"Goals"},{"$f":"N_MS","v":"SD"},{"$f":"N_Diff","v":"Pen."}]
[null,null,null,null,null,null,null,null,null,"N° 20",null,null,null,null,null,null,null,{"$f":"IF(O31=\"\",\"\",CONCATENATE(O31,\" \",IF(R30=K31,IF(P30=\"X\",N_res_MS,IF(Q31=\"\",\"\",CONCATENATE(N_res_Diff,Q31,\"-\",Q29))),\"\")))","v":""},null,null,null,null,null,null,null,null,null,null,null,null,null,{"$f":"IF(AC31=\"\",\"\",CONCATENATE(AC31,\" \",IF(AF32=Y28,IF(AD32=\"X\",N_res_MS,IF(AE31=\"\",\"\",CONCATENATE(N_res_Diff,AE31,\"-\",AE33))),\"\")))","v":""}]
[null,null,null,null,null,null,null,null,null,null,null,{"$f":"N_Heure","v":"Time"},{"$f":"N_Table","v":"Table"},{"$f":"N_Arbitre","v":"Referee"},{"$f":"N_Buts","v":"Goals"},{"$f":"N_MS","v":"SD"},{"$f":"N_Diff","v":"Pen."},null,null,null,null,null,null,null,null,null,null,null,null,null,null,{"$f":"IF(AC31=\"\",\"\",IF(AC31>AC33,Y28,IF(AC31<AC33,Y36,IF(AE31>AE33,Y28,IF(AE31<AE33,Y36,mess_erreur_marque)))))","v":""}]
[null,null,{"$f":"N_Heure","v":"Time"},{"$f":"N_Table","v":"Table"},{"$f":"N_Arbitre","v":"Referee"},{"$f":"N_Buts","v":"Goals"},{"$f":"N_MS","v":"SD"},{"$f":"N_Diff","v":"Pen."},null,"N° 5",null,null,null,null,null,null,null,{"$f":"IF(O33=\"\",\"\",CONCATENATE(O33,\" \",IF(R34=K33,IF(P34=\"X\",N_res_MS,IF(Q33=\"\",\"\",CONCATENATE(N_res_Diff,Q33,\"-\",Q35))),\"\")))","v":""},null,null,null,null,null,null,null,null,null,null,null,null,null,{"$f":"IF(AC33=\"\",\"\",CONCATENATE(AC33,\" \",IF(AF32=Y36,IF(AD32=\"X\",N_res_MS,IF(AE33=\"\",\"\",CONCATENATE(N_res_Diff,AE33,\"-\",AE31))),\"\")))","v":""}]
["N° 28",null,null,null,null,null,null,null,{"$f":"IF(F34=\"\",\"\",CONCATENATE(F34,\" \",IF(I35=B34,IF(G35=\"X\",N_res_MS,IF(H34=\"\",\"\",CONCATENATE(N_res_Diff,H34,\"-\",H36))),\"\")))","v":""},null,null,null,null,null,null,null,null,{"$f":"IF(O33=\"\",\"\",IF(O33>O35,K33,IF(O33<O35,K35,IF(Q33>Q35,K33,IF(Q33<Q35,K35,mess_erreur_marque)))))","v":""},{"$f":"N_Heure","v":"Time"},{"$f":"N_Table","v":"Table"},{"$f":"N_Arbitre","v":"Referee"},{"$f":"N_Buts","v":"Goals"},{"$f":"N_MS","v":"SD"},{"$f":"N_Diff","v":"Pen."}]
[null,null,null,null,null,null,null,null,{"$f":"IF(F34=\"\",\"\",IF(F34>F36,B34,IF(F34<F36,B36,IF(H34>H36,B34,IF(H34<H36,B36,mess_erreur_marque)))))","v":""},"N° 28",{"$f":"IF(I35=\"\",\"\",I35)","v":""},null,null,null,null,null,null,{"$f":"IF(O35=\"\",\"\",CONCATENATE(O35,\" \",IF(R34=K35,IF(P34=\"X\",N_res_MS,IF(Q35=\"\",\"\",CONCATENATE(N_res_Diff,Q35,\"-\",Q33))),\"\")))","v":""},null,null,null,null,null,null,{"$f":"IF(V35=\"\",\"\",CONCATENATE(V35,\" \",IF(Y36=R34,IF(W36=\"X\",N_res_MS,IF(X35=\"\",\"\",CONCATENATE(N_res_Diff,X35,\"-\",X37))),\"\")))","v":""}]
["N° 37",null,null,null,null,null,null,null,{"$f":"IF(F36=\"\",\"\",CONCATENATE(F36,\" \",IF(I35=B36,IF(G35=\"X\",N_res_MS,IF(H36=\"\",\"\",CONCATENATE(N_res_Diff,H36,\"-\",H34))),\"\")))","v":""},null,null,{"$f":"N_Heure","v":"Time"},{"$f":"N_Table","v":"Table"},{"$f":"N_Arbitre","v":"Referee"},{"$f":"N_Buts","v":"Goals"},{"$f":"N_MS","v":"SD"},{"$f":"N_Diff","v":"Pen."},null,null,null,null,null,null,null,{"$f":"IF(V35=\"\",\"\",IF(V35>V37,R34,IF(V35<V37,R38,IF(X35>X37,R34,IF(X35<X37,R38,mess_erreur_marque)))))","v":""}]
[null,null,null,null,null,null,null,null,null,"N° 12",null,null,null,null,null,null,null,{"$f":"IF(O37=\"\",\"\",CONCATENATE(O37,\" \",IF(R38=K37,IF(P38=\"X\",N_res_MS,IF(Q37=\"\",\"\",CONCATENATE(N_res_Diff,Q37,\"-\",Q39))),\"\")))","v":""},null,null,null,null,null,null,{"$f":"IF(V37=\"\",\"\",CONCATENATE(V37,\" \",IF(Y36=R38,IF(W36=\"X\",N_res_MS,IF(X37=\"\",\"\",CONCATENATE(N_res_Diff,X37,\"-\",X35))),\"\")))","v":""}]
[null,null,null,null,null,null,null,null,null,null,null,null,null,null,null,null,null,{"$f":"IF(O37=\"\",\"\",IF(O37>O39,K37,IF(O37<O39,K39,IF(Q37>Q39,K37,IF(Q37<Q39,K39,mess_erreur_marque)))))","v":""},null,null,null,null,null,null,null,null,null,null,null,null,null,null,null,null,null,null,null,null,null,{"$f":"N_Heure","v":"Time"},{"$f":"N_Table","v":"Table"},{"$f":"N_Arbitre","v":"Referee"},{"$f":"N_Buts","v":"Goals"},{"$f":"N_MS","v":"SD"},{"$f":"N_Diff","v":"Pen."}]
[null,null,{"$f":"N_Heure","v":"Time"},{"$f":"N_Table","v":"Table"},{"$f":"N_Arbitre","v":"Referee"},{"$f":"N_Buts","v":"Goals"},{"$f":"N_MS","v":"SD"},{"$f":"N_Diff","v":"Pen."},null,"N° 21",null,null,null,null,null,null,null,{"$f":"IF(O39=\"\",\"\",CONCATENATE(O39,\" \",IF(R38=K39,IF(P38=\"X\",N_res_MS,IF(Q39=\"\",\"\",CONCATENATE(N_res_Diff,Q39,\"-\",Q37))),\"\")))","v":""},null,null,null,null,null,null,null,null,null,null,null,null,null,null,null,null,null,null,null,null,null,null,null,null,null,null,null,{"$f":"IF(AQ39=\"\",\"\",CONCATENATE(AQ39,\" \",IF(AT40=AM24,IF(AR40=\"X\",N_res_MS,IF(AS39=\"\",\"\",CONCATENATE(N_res_Diff,AS39,\"-\",AS41))),\"\")))","v":""}]
["N° 27",null,null,null,null,null,null,null,{"$f":"IF(F40=\"\",\"\",CONCATENATE(F40,\" \",IF(I41=B40,IF(G41=\"X\",N_res_MS,IF(H40=\"\",\"\",CONCATENATE(N_res_Diff,H40,\"-\",H42))),\"\")))","v":""},null,null,{"$f":"N_Heure","v":"Time"},{"$f":"N_Table","v":"Table"},{"$f":"N_Arbitre","v":"Referee"},{"$f":"N_Buts","v":"Goals"},{"$f":"N_MS","v":"SD"},{"$f":"N_Diff","v":"Pen."},null,null,null,null,null,null,null,null,null,null,null,null,null,null,null,null,null,null,null,null,null,null,null,null,null,null,null,null,{"$f":"IF(AQ39=\"\",\"\",IF(AQ39>AQ41,#REF!,IF(AQ39<AQ41,AM56,IF(AS39>AS41,#REF!,IF(AS39<AS41,AM56,mess_erreur_marque)))))","v":""}]
[null,null,null,null,null,null,null,null,{"$f":"IF(F40=\"\",\"\",IF(F40>F42,B40,IF(F40<F42,B42,IF(H40>H42,B40,IF(H40<H42,B42,mess_erreur_marque)))))","v":""},"N° 27",{"$f":"IF(I41=\"\",\"\",I41)","v":""},null,null,null,null,null,null,{"$f":"IF(O41=\"\",\"\",CONCATENATE(O41,\" \",IF(R42=K41,IF(P42=\"X\",N_res_MS,IF(Q41=\"\",\"\",CONCATENATE(N_res_Diff,Q41,\"-\",Q43))),\"\")))","v":""},null,null,null,null,null,null,null,null,null,null,null,null,null,null,null,null,null,null,null,null,null,null,null,null,null,null,null,{"$f":"IF(AQ41=\"\",\"\",CONCATENATE(AQ41,\" \",IF(AT40=AM56,IF(AR40=\"X\",N_res_MS,IF(AS41=\"\",\"\",CONCATENATE(N_res_Diff,AS41,\"-\",AS39))),\"\")))","v":""}]
["N° 38",null,null,null,null,null,null,null,{"$f":"IF(F42=\"\",\"\",CONCATENATE(F42,\" \",IF(I41=B42,IF(G41=\"X\",N_res_MS,IF(H42=\"\",\"\",CONCATENATE(N_res_Diff,H42,\"-\",H40))),\"\")))","v":""},null,null,null,null,null,null,null,null,{"$f":"IF(O41=\"\",\"\",IF(O41>O43,K41,IF(O41<O43,K43,IF(Q41>Q43,K41,IF(Q41<Q43,K43,mess_erreur_marque)))))","v":""},{"$f":"N_Heure","v":"Time"},{"$f":"N_Table","v":"Table"},{"$f":"N_Arbitre","v":"Referee"},{"$f":"N_Buts","v":"Goals"},{"$f":"N_MS","v":"SD"},{"$f":"N_Diff","v":"Pen."}]
[null,null,null,null,null,null,null,null,null,"N° 6",null,null,null,null,null,null,null,{"$f":"IF(O43=\"\",\"\",CONCATENATE(O43,\" \",IF(R42=K43,IF(P42=\"X\",N_res_MS,IF(Q43=\"\",\"\",CONCATENATE(N_res_Diff,Q43,\"-\",Q41))),\"\")))","v":""},null,null,null,null,null,null,{"$f":"IF(V43=\"\",\"\",CONCATENATE(V43,\" \",IF(Y44=R42,IF(W44=\"X\",N_res_MS,IF(X43=\"\",\"\",CONCATENATE(N_res_Diff,X43,\"-\",X45))),\"\")))","v":""}]
[null,null,null,null,null,null,null,null,null,null,null,{"$f":"N_Heure","v":"Time"},{"$f":"N_Table","v":"Table"},{"$f":"N_Arbitre","v":"Referee"},{"$f":"N_Buts","v":"Goals"},{"$f":"N_MS","v":"SD"},{"$f":"N_Diff","v":"Pen."},null,null,null,null,null,null,null,{"$f":"IF(V43=\"\",\"\",IF(V43>V45,R42,IF(V43<V45,R46,IF(X43>X45,R42,IF(X43<X45,R46,mess_erreur_marque)))))","v":""}]
[null,null,null,null,null,null,null,null,null,"N° 22",null,null,null,null,null,null,null,{"$f":"IF(O45=\"\",\"\",CONCATENATE(O45,\" \",IF(R46=K45,IF(P46=\"X\",N_res_MS,IF(Q45=\"\",\"\",CONCATENATE(N_res_Diff,Q45,\"-\",Q47))),\"\")))","v":""},null,null,null,null,null,null,{"$f":"IF(V45=\"\",\"\",CONCATENATE(V45,\" \",IF(Y44=R46,IF(W44=\"X\",N_res_MS,IF(X45=\"\",\"\",CONCATENATE(N_res_Diff,X45,\"-\",X43))),\"\")))","v":""}]
[null,null,null,null,null,null,null,null,null,null,null,null,null,null,null,null,null,{"$f":"IF(O45=\"\",\"\",IF(O45>O47,K45,IF(O45<O47,K47,IF(Q45>Q47,K45,IF(Q45<Q47,K47,mess_erreur_marque)))))","v":""},null,null,null,null,null,null,null,{"$f":"N_Heure","v":"Time"},{"$f":"N_Table","v":"Table"},{"$f":"N_Arbitre","v":"Referee"},{"$f":"N_Buts","v":"Goals"},{"$f":"N_MS","v":"SD"},{"$f":"N_Diff","v":"Pen."}]
[null,null,null,null,null,null,null,null,null,"N° 11",null,null,null,null,null,null,null,{"$f":"IF(O47=\"\",\"\",CONCATENATE(O47,\" \",IF(R46=K47,IF(P46=\"X\",N_res_MS,IF(Q47=\"\",\"\",CONCATENATE(N_res_Diff,Q47,\"-\",Q45))),\"\")))","v":""},null,null,null,null,null,null,null,null,null,null,null,null,null,{"$f":"IF(AC47=\"\",\"\",CONCATENATE(AC47,\" \",IF(AF48=Y44,IF(AD48=\"X\",N_res_MS,IF(AE47=\"\",\"\",CONCATENATE(N_res_Diff,AE47,\"-\",AE49))),\"\")))","v":""}]
[null,null,null,null,null,null,null,null,null,null,null,{"$f":"N_Heure","v":"Time"},{"$f":"N_Table","v":"Table"},{"$f":"N_Arbitre","v":"Referee"},{"$f":"N_Buts","v":"Goals"},{"$f":"N_MS","v":"SD"},{"$f":"N_Diff","v":"Pen."},null,null,null,null,null,null,null,null,null,null,null,null,null,null,{"$f":"IF(AC47=\"\",\"\",IF(AC47>AC49,Y44,IF(AC47<AC49,Y52,IF(AE47>AE49,Y44,IF(AE47<AE49,Y52,mess_erreur_marque)))))","v":""}]
[null,null,null,null,null,null,null,null,null,"N° 19",null,null,null,null,null,null,null,{"$f":"IF(O49=\"\",\"\",CONCATENATE(O49,\" \",IF(R50=K49,IF(P50=\"X\",N_res_MS,IF(Q49=\"\",\"\",CONCATENATE(N_res_Diff,Q49,\"-\",Q51))),\"\")))","v":""},null,null,null,null,null,null,null,null,null,null,null,null,null,{"$f":"IF(AC49=\"\",\"\",CONCATENATE(AC49,\" \",IF(AF48=Y52,IF(AD48=\"X\",N_res_MS,IF(AE49=\"\",\"\",CONCATENATE(N_res_Diff,AE49,\"-\",AE47))),\"\")))","v":""}]
[null,null,null,null,null,null,null,null,null,null,null,null,null,null,null,null,null,{"$f":"IF(O49=\"\",\"\",IF(O49>O51,K49,IF(O49<O51,K51,IF(Q49>Q51,K49,IF(Q49<Q51,K51,mess_erreur_marque)))))","v":""},{"$f":"N_Heure","v":"Time"},{"$f":"N_Table","v":"Table"},{"$f":"N_Arbitre","v":"Referee"},{"$f":"N_Buts","v":"Goals"},{"$f":"N_MS","v":"SD"},{"$f":"N_Diff","v":"Pen."}]
[null,null,{"$f":"N_Heure","v":"Time"},{"$f":"N_Table","v":"Table"},{"$f":"N_Arbitre","v":"Referee"},{"$f":"N_Buts","v":"Goals"},{"$f":"N_MS","v":"SD"},{"$f":"N_Diff","v":"Pen."},null,"N° 14",null,null,null,null,null,null,null,{"$f":"IF(O51=\"\",\"\",CONCATENATE(O51,\" \",IF(R50=K51,IF(P50=\"X\",N_res_MS,IF(Q51=\"\",\"\",CONCATENATE(N_res_Diff,Q51,\"-\",Q49))),\"\")))","v":""},null,null,null,null,null,null,{"$f":"IF(V51=\"\",\"\",CONCATENATE(V51,\" \",IF(Y52=R50,IF(W52=\"X\",N_res_MS,IF(X51=\"\",\"\",CONCATENATE(N_res_Diff,X51,\"-\",X53))),\"\")))","v":""}]
["N° 30",null,null,null,null,null,null,null,{"$f":"IF(F52=\"\",\"\",CONCATENATE(F52,\" \",IF(I53=B52,IF(G53=\"X\",N_res_MS,IF(H52=\"\",\"\",CONCATENATE(N_res_Diff,H52,\"-\",H54))),\"\")))","v":""},null,null,{"$f":"N_Heure","v":"Time"},{"$f":"N_Table","v":"Table"},{"$f":"N_Arbitre","v":"Referee"},{"$f":"N_Buts","v":"Goals"},{"$f":"N_MS","v":"SD"},{"$f":"N_Diff","v":"Pen."},null,null,null,null,null,null,null,{"$f":"IF(V51=\"\",\"\",IF(V51>V53,R50,IF(V51<V53,R54,IF(X51>X53,R50,IF(X51<X53,R54,mess_erreur_marque)))))","v":""}]
[null,null,null,null,null,null,null,null,{"$f":"IF(F52=\"\",\"\",IF(F52>F54,B52,IF(F52<F54,B54,IF(H52>H54,B52,IF(H52<H54,B54,mess_erreur_marque)))))","v":""},"N° 30",{"$f":"IF(I53=\"\",\"\",I53)","v":""},null,null,null,null,null,null,{"$f":"IF(O53=\"\",\"\",CONCATENATE(O53,\" \",IF(R54=K53,IF(P54=\"X\",N_res_MS,IF(Q53=\"\",\"\",CONCATENATE(N_res_Diff,Q53,\"-\",Q55))),\"\")))","v":""},null,null,null,null,null,null,{"$f":"IF(V53=\"\",\"\",CONCATENATE(V53,\" \",IF(Y52=R54,IF(W52=\"X\",N_res_MS,IF(X53=\"\",\"\",CONCATENATE(N_res_Diff,X53,\"-\",X51))),\"\")))","v":""}]
["N° 35",null,null,null,null,null,null,null,{"$f":"IF(F54=\"\",\"\",CONCATENATE(F54,\" \",IF(I53=B54,IF(G53=\"X\",N_res_MS,IF(H54=\"\",\"\",CONCATENATE(N_res_Diff,H54,\"-\",H52))),\"\")))","v":""},null,null,null,null,null,null,null,null,{"$f":"IF(O53=\"\",\"\",IF(O53>O55,K53,IF(O53<O55,K55,IF(Q53>Q55,K53,IF(Q53<Q55,K55,mess_erreur_marque)))))","v":""},null,null,null,null,null,null,null,null,null,null,null,null,null,null,{"$f":"N_Heure","v":"Time"},{"$f":"N_Table","v":"Table"},{"$f":"N_Arbitre","v":"Referee"},{"$f":"N_Buts","v":"Goals"},{"$f":"N_MS","v":"SD"},{"$f":"N_Diff","v":"Pen."}]
[null,null,null,null,null,null,null,null,null,"N° 3",null,null,null,null,null,null,null,{"$f":"IF(O55=\"\",\"\",CONCATENATE(O55,\" \",IF(R54=K55,IF(P54=\"X\",N_res_MS,IF(Q55=\"\",\"\",CONCATENATE(N_res_Diff,Q55,\"-\",Q53))),\"\")))","v":""},null,null,null,null,null,null,null,null,null,null,null,null,null,null,null,null,null,null,null,null,{"$f":"IF(AJ55=\"\",\"\",CONCATENATE(AJ55,\" \",IF(AM56=AF48,IF(AK56=\"X\",N_res_MS,IF(AL55=\"\",\"\",CONCATENATE(N_res_Diff,AL55,\"-\",AL57))),\"\")))","v":""}]
[null,null,null,null,null,null,null,null,null,null,null,{"$f":"N_Heure","v":"Time"},{"$f":"N_Table","v":"Table"},{"$f":"N_Arbitre","v":"Referee"},{"$f":"N_Buts","v":"Goals"},{"$f":"N_MS","v":"SD"},{"$f":"N_Diff","v":"Pen."},null,null,null,null,null,null,null,null,null,null,null,null,null,null,null,null,null,null,null,null,null,{"$f":"IF(AJ55=\"\",\"\",IF(AJ55>AJ57,AF48,IF(AJ55<AJ57,AF64,IF(AL55>AL57,AF48,IF(AL55<AL57,AF64,mess_erreur_marque)))))","v":""}]
[null,null,null,null,null,null,null,null,null,"N° 23",null,null,null,null,null,null,null,{"$f":"IF(O57=\"\",\"\",CONCATENATE(O57,\" \",IF(R58=K57,IF(P58=\"X\",N_res_MS,IF(Q57=\"\",\"\",CONCATENATE(N_res_Diff,Q57,\"-\",Q59))),\"\")))","v":""},null,null,null,null,null,null,null,null,null,null,null,null,null,null,null,null,null,null,null,null,{"$f":"IF(AJ57=\"\",\"\",CONCATENATE(AJ57,\" \",IF(AM56=AF64,IF(AK56=\"X\",N_res_MS,IF(AL57=\"\",\"\",CONCATENATE(N_res_Diff,AL57,\"-\",AL55))),\"\")))","v":""}]
[null,null,null,null,null,null,null,null,null,null,null,null,null,null,null,null,null,{"$f":"IF(O57=\"\",\"\",IF(O57>O59,K57,IF(O57<O59,K59,IF(Q57>Q59,K57,IF(Q57<Q59,K59,mess_erreur_marque)))))","v":""},{"$f":"N_Heure","v":"Time"},{"$f":"N_Table","v":"Table"},{"$f":"N_Arbitre","v":"Referee"},{"$f":"N_Buts","v":"Goals"},{"$f":"N_MS","v":"SD"},{"$f":"N_Diff","v":"Pen."}]
[null,null,{"$f":"N_Heure","v":"Time"},{"$f":"N_Table","v":"Table"},{"$f":"N_Arbitre","v":"Referee"},{"$f":"N_Buts","v":"Goals"},{"$f":"N_MS","v":"SD"},{"$f":"N_Diff","v":"Pen."},null,"N° 10",null,null,null,null,null,null,null,{"$f":"IF(O59=\"\",\"\",CONCATENATE(O59,\" \",IF(R58=K59,IF(P58=\"X\",N_res_MS,IF(Q59=\"\",\"\",CONCATENATE(N_res_Diff,Q59,\"-\",Q57))),\"\")))","v":""},null,null,null,null,null,null,{"$f":"IF(V59=\"\",\"\",CONCATENATE(V59,\" \",IF(Y60=R58,IF(W60=\"X\",N_res_MS,IF(X59=\"\",\"\",CONCATENATE(N_res_Diff,X59,\"-\",X61))),\"\")))","v":""}]
["N° 26",null,null,null,null,null,null,null,{"$f":"IF(F60=\"\",\"\",CONCATENATE(F60,\" \",IF(I61=B60,IF(G61=\"X\",N_res_MS,IF(H60=\"\",\"\",CONCATENATE(N_res_Diff,H60,\"-\",H62))),\"\")))","v":""},null,null,{"$f":"N_Heure","v":"Time"},{"$f":"N_Table","v":"Table"},{"$f":"N_Arbitre","v":"Referee"},{"$f":"N_Buts","v":"Goals"},{"$f":"N_MS","v":"SD"},{"$f":"N_Diff","v":"Pen."},null,null,null,null,null,null,null,{"$f":"IF(V59=\"\",\"\",IF(V59>V61,R58,IF(V59<V61,R62,IF(X59>X61,R58,IF(X59<X61,R62,mess_erreur_marque)))))","v":""}]
[null,null,null,null,null,null,null,null,{"$f":"IF(F60=\"\",\"\",IF(F60>F62,B60,IF(F60<F62,B62,IF(H60>H62,B60,IF(H60<H62,B62,mess_erreur_marque)))))","v":""},"N° 26",{"$f":"IF(I61=\"\",\"\",I61)","v":""},null,null,null,null,null,null,{"$f":"IF(O61=\"\",\"\",CONCATENATE(O61,\" \",IF(R62=K61,IF(P62=\"X\",N_res_MS,IF(Q61=\"\",\"\",CONCATENATE(N_res_Diff,Q61,\"-\",Q63))),\"\")))","v":""},null,null,null,null,null,null,{"$f":"IF(V61=\"\",\"\",CONCATENATE(V61,\" \",IF(Y60=R62,IF(W60=\"X\",N_res_MS,IF(X61=\"\",\"\",CONCATENATE(N_res_Diff,X61,\"-\",X59))),\"\")))","v":""}]
["N° 39",null,null,null,null,null,null,null,{"$f":"IF(F62=\"\",\"\",CONCATENATE(F62,\" \",IF(I61=B62,IF(G61=\"X\",N_res_MS,IF(H62=\"\",\"\",CONCATENATE(N_res_Diff,H62,\"-\",H60))),\"\")))","v":""},null,null,null,null,null,null,null,null,{"$f":"IF(O61=\"\",\"\",IF(O61>O63,K61,IF(O61<O63,K63,IF(Q61>Q63,K61,IF(Q61<Q63,K63,mess_erreur_marque)))))","v":""},null,null,null,null,null,null,null,{"$f":"N_Heure","v":"Time"},{"$f":"N_Table","v":"Table"},{"$f":"N_Arbitre","v":"Referee"},{"$f":"N_Buts","v":"Goals"},{"$f":"N_MS","v":"SD"},{"$f":"N_Diff","v":"Pen."}]
[null,null,null,null,null,null,null,null,null,"N° 7",null,null,null,null,null,null,null,{"$f":"IF(O63=\"\",\"\",CONCATENATE(O63,\" \",IF(R62=K63,IF(P62=\"X\",N_res_MS,IF(Q63=\"\",\"\",CONCATENATE(N_res_Diff,Q63,\"-\",Q61))),\"\")))","v":""},null,null,null,null,null,null,null,null,null,null,null,null,null,{"$f":"IF(AC63=\"\",\"\",CONCATENATE(AC63,\" \",IF(AF64=Y60,IF(AD64=\"X\",N_res_MS,IF(AE63=\"\",\"\",CONCATENATE(N_res_Diff,AE63,\"-\",AE65))),\"\")))","v":""}]
[null,null,null,null,null,null,null,null,null,null,null,{"$f":"N_Heure","v":"Time"},{"$f":"N_Table","v":"Table"},{"$f":"N_Arbitre","v":"Referee"},{"$f":"N_Buts","v":"Goals"},{"$f":"N_MS","v":"SD"},{"$f":"N_Diff","v":"Pen."},null,null,null,null,null,null,null,null,null,null,null,null,null,null,{"$f":"IF(AC63=\"\",\"\",IF(AC63>AC65,Y60,IF(AC63<AC65,Y68,IF(AE63>AE65,Y60,IF(AE63<AE65,Y68,mess_erreur_marque)))))","v":""}]
[null,null,null,null,null,null,null,null,null,"N° 18",null,null,null,null,null,null,null,{"$f":"IF(O65=\"\",\"\",CONCATENATE(O65,\" \",IF(R66=K65,IF(P66=\"X\",N_res_MS,IF(Q65=\"\",\"\",CONCATENATE(N_res_Diff,Q65,\"-\",Q67))),\"\")))","v":""},null,null,null,null,null,null,null,null,null,null,null,null,null,{"$f":"IF(AC65=\"\",\"\",CONCATENATE(AC65,\" \",IF(AF64=Y68,IF(AD64=\"X\",N_res_MS,IF(AE65=\"\",\"\",CONCATENATE(N_res_Diff,AE65,\"-\",AE63))),\"\")))","v":""}]
[null,null,null,null,null,null,null,null,null,null,null,null,null,null,null,null,null,{"$f":"IF(O65=\"\",\"\",IF(O65>O67,K65,IF(O65<O67,K67,IF(Q65>Q67,K65,IF(Q65<Q67,K67,mess_erreur_marque)))))","v":""},{"$f":"N_Heure","v":"Time"},{"$f":"N_Table","v":"Table"},{"$f":"N_Arbitre","v":"Referee"},{"$f":"N_Buts","v":"Goals"},{"$f":"N_MS","v":"SD"},{"$f":"N_Diff","v":"Pen."}]
[null,null,{"$f":"N_Heure","v":"Time"},{"$f":"N_Table","v":"Table"},{"$f":"N_Arbitre","v":"Referee"},{"$f":"N_Buts","v":"Goals"},{"$f":"N_MS","v":"SD"},{"$f":"N_Diff","v":"Pen."},null,"N° 15",null,null,null,null,null,null,null,{"$f":"IF(O67=\"\",\"\",CONCATENATE(O67,\" \",IF(R66=K67,IF(P66=\"X\",N_res_MS,IF(Q67=\"\",\"\",CONCATENATE(N_res_Diff,Q67,\"-\",Q65))),\"\")))","v":""},null,null,null,null,null,null,{"$f":"IF(V67=\"\",\"\",CONCATENATE(V67,\" \",IF(Y68=R66,IF(W68=\"X\",N_res_MS,IF(X67=\"\",\"\",CONCATENATE(N_res_Diff,X67,\"-\",X69))),\"\")))","v":""}]
["N° 31","rere",null,null,null,null,null,null,{"$f":"IF(F68=\"\",\"\",CONCATENATE(F68,\" \",IF(I69=B68,IF(G69=\"X\",N_res_MS,IF(H68=\"\",\"\",CONCATENATE(N_res_Diff,H68,\"-\",H70))),\"\")))","v":""},null,null,{"$f":"N_Heure","v":"Time"},{"$f":"N_Table","v":"Table"},{"$f":"N_Arbitre","v":"Referee"},{"$f":"N_Buts","v":"Goals"},{"$f":"N_MS","v":"SD"},{"$f":"N_Diff","v":"Pen."},null,null,null,null,null,null,null,{"$f":"IF(V67=\"\",\"\",IF(V67>V69,R66,IF(V67<V69,R70,IF(X67>X69,R66,IF(X67<X69,R70,mess_erreur_marque)))))","v":""}]
[null,null,null,null,null,null,null,null,{"$f":"IF(F68=\"\",\"\",IF(F68>F70,B68,IF(F68<F70,B70,IF(H68>H70,B68,IF(H68<H70,B70,mess_erreur_marque)))))","v":""},"N° 31",{"$f":"IF(I69=\"\",\"\",I69)","v":""},null,null,null,null,null,null,{"$f":"IF(O69=\"\",\"\",CONCATENATE(O69,\" \",IF(R70=K69,IF(P70=\"X\",N_res_MS,IF(Q69=\"\",\"\",CONCATENATE(N_res_Diff,Q69,\"-\",Q71))),\"\")))","v":""},null,null,null,null,null,null,{"$f":"IF(V69=\"\",\"\",CONCATENATE(V69,\" \",IF(Y68=R70,IF(W68=\"X\",N_res_MS,IF(X69=\"\",\"\",CONCATENATE(N_res_Diff,X69,\"-\",X67))),\"\")))","v":""}]
["N° 34","ruru",null,null,null,null,null,null,{"$f":"IF(F70=\"\",\"\",CONCATENATE(F70,\" \",IF(I69=B70,IF(G69=\"X\",N_res_MS,IF(H70=\"\",\"\",CONCATENATE(N_res_Diff,H70,\"-\",H68))),\"\")))","v":""},null,null,null,null,null,null,null,null,{"$f":"IF(O69=\"\",\"\",IF(O69>O71,K69,IF(O69<O71,K71,IF(Q69>Q71,K69,IF(Q69<Q71,K71,mess_erreur_marque)))))","v":""}]
[null,null,null,null,null,null,null,null,null,"N° 2",null,null,null,null,null,null,null,{"$f":"IF(O71=\"\",\"\",CONCATENATE(O71,\" \",IF(R70=K71,IF(P70=\"X\",N_res_MS,IF(Q71=\"\",\"\",CONCATENATE(N_res_Diff,Q71,\"-\",Q69))),\"\")))","v":""}]

{"sheet":"Team by Sel. Match","index":25,"n_rows":128,"n_cols":74,"rows_kept":128,"cut":false,"hidden":true,"merged":[[5,49,5,64],[41,66,41,73],[7,10,7,14],[19,42,19,46],[34,58,34,62],[27,26,27,30],[11,26,11,30],[15,10,15,14],[5,1,5,16],[38,10,38,14],[5,17,5,32],[5,33,5,48],[122,10,122,14],[98,10,98,14],[55,49,55,64],[115,49,115,64],[110,42,110,46],[114,10,114,14],[83,10,83,14],[94,58,94,62],[69,1,69,64],[75,10,75,14],[118,26,118,30],[87,26,87,30],[79,42,79,46],[71,26,71,30],[101,66,101,69],[102,26,102,30],[106,10,106,14],[23,10,23,14],[31,10,31,14],[46,10,46,14],[58,26,58,30],[54,10,54,14],[91,10,91,14],[62,10,62,14],[50,42,50,46],[42,26,42,30]]}
[]
[]
[]
[]
[]
[null,{"$f":"N__1_8_DE_FINALE","v":"LAST 16"},null,null,null,null,null,null,null,null,null,null,null,null,null,null,null,{"$f":"N_QUART_DE_FINALE","v":"LAST 8"},null,null,null,null,null,null,null,null,null,null,null,null,null,null,null,{"$f":"N_DEMI_FINALE","v":"SEMI FINAL"},null,null,null,null,null,null,null,null,null,null,null,null,null,null,null,{"$f":"N_FINALE","v":"FINAL"}]
[]
[null,null,null,null,null,null,null,{"$f":"N_Heure","v":"Time"},{"$f":"N_Table","v":"Table"},{"$f":"N_Arbitre","v":"Referee"},{"$f":"N_Matches","v":"Matches"},null,null,null,null,{"$f":"N_MS","v":"SD"}]
[null,null,{"$f":"N_Matches","v":"Matches"},{"$f":"N_Buts","v":"Goals"},{"$f":"N_MS","v":"SD"},{"$f":"N_Diff","v":"Pen."},null,null,null,null,null,null,"-"]
[null,"Eq1",{"$f":"IF(OR(ISNUMBER(L9),ISNUMBER(L10),ISNUMBER(L11),ISNUMBER(L12)),Lire_Gain_Matches(L9:L12, N9:N12),\"\")","v":""},{"$f":"IF(OR(ISNUMBER(L9),ISNUMBER(L10),ISNUMBER(L11),ISNUMBER(L12)),SUM(L9:L12),\"\")","v":""},null,{"$f":"IF(L13=\"\",\"\",L13)","v":""},null,null,null,null,null,null,"-",null,null,null,{"$f":"IF(C10=\"\",\"\",CONCATENATE(C10,IF(B10=Q11,IF(C10=C12,CONCATENATE(\" [ \",D10,\" - \",D12,\" ] \",IF(E11=\"x\",N_res_MS,IF(F10=\"\",\"\",CONCATENATE(\" (\",N_res_Diff,\" \",F10,\" - \",F12,\")\")))),IF(E11=\"x\",N_res_MS,\"\")),\"\")))","v":""}]
[null,null,null,null,{"$f":"IF(ISNA(VLOOKUP(\"X\",P9:P12,1,FALSE)),\"\",\"X\")","v":""},null,null,null,null,null,null,null,"-",null,null,null,{"$f":"IF(C10=\"\",\"\",IF(C10>C12,B10,IF(C12>C10,B12,IF(D10>D12,B10,IF(D12>D10,B12,IF(F10>F12,B10,IF(F12>F10,B12,mess_erreur_marque)))))))","v":""}]
[null,"Eq2",{"$f":"IF(OR(ISNUMBER(L9),ISNUMBER(L10),ISNUMBER(L11),ISNUMBER(L12)),Lire_Gain_Matches(N9:N12, L9:L12),\"\")","v":""},{"$f":"IF(OR(ISNUMBER(L9),ISNUMBER(L10),ISNUMBER(L11),ISNUMBER(L12)),SUM(N9:N12),\"\")","v":""},null,{"$f":"IF(N13=\"\",\"\",N13)","v":""},null,null,null,null,null,null,"-",null,null,null,{"$f":"IF(C12=\"\",\"\",CONCATENATE(C12,IF(B12=Q11,IF(C10=C12,CONCATENATE(\" [ \",D12,\" -\",D10,\" ] \",IF(E11=\"x\",N_res_MS,IF(F12=\"\",\"\",CONCATENATE(\" (\",N_res_Diff,\" \",F12,\" - \",F10,\")\")))),IF(E11=\"x\",N_res_MS,\"\")),\"\")))","v":""},null,null,null,null,null,null,{"$f":"N_Heure","v":"Time"},{"$f":"N_Table","v":"Table"},{"$f":"N_Arbitre","v":"Referee"},{"$f":"N_Matches","v":"Matches"},null,null,null,null,{"$f":"N_MS","v":"SD"}]
[null,null,null,null,null,null,null,null,{"$f":"N_Différentiel","v":"Shoot Out"},null,null,null,"-",null,null,null,null,null,{"$f":"N_Matches","v":"Matches"},{"$f":"N_Buts","v":"Goals"},{"$f":"N_MS","v":"SD"},{"$f":"N_Diff","v":"Pen."},null,null,null,null,null,null,"-"]
[null,null,null,null,null,null,null,null,null,null,null,null,null,null,null,null,null,{"$f":"Q11","v":""},{"$f":"IF(OR(ISNUMBER(AB13),ISNUMBER(AB14),ISNUMBER(AB15),ISNUMBER(AB16)),Lire_Gain_Matches(AB13:AB16, AD13:AD16),\"\")","v":""},{"$f":"IF(OR(ISNUMBER(AB13),ISNUMBER(AB14),ISNUMBER(AB15),ISNUMBER(AB16)),SUM(AB13:AB16),\"\")","v":""},null,{"$f":"IF(AB17=\"\",\"\",AB17)","v":""},null,null,null,null,null,null,"-",null,null,null,{"$f":"IF(S14=\"\",\"\",CONCATENATE(S14,IF(R14=AG15,IF(S14=S16,CONCATENATE(\" [ \",T14,\" - \",T16,\" ] \",IF(U15=\"x\",N_res_MS,IF(V14=\"\",\"\",CONCATENATE(\" (\",N_res_Diff,\" \",V14,\" - \",V16,\")\")))),IF(U15=\"x\",N_res_MS,\"\")),\"\")))","v":""}]
[null,null,null,null,null,null,null,null,null,null,null,null,null,null,null,null,null,null,null,null,{"$f":"IF(ISNA(VLOOKUP(\"X\",AF13:AF16,1,FALSE)),\"\",\"X\")","v":""},null,null,null,null,null,null,null,"-",null,null,null,{"$f":"IF(S14=\"\",\"\",IF(S14>S16,R14,IF(S16>S14,R16,IF(T14>T16,R14,IF(T16>T14,R16,IF(V14>V16,R14,IF(V16>V14,R16,mess_erreur_marque)))))))","v":""}]
[null,null,null,null,null,null,null,{"$f":"N_Heure","v":"Time"},{"$f":"N_Table","v":"Table"},{"$f":"N_Arbitre","v":"Referee"},{"$f":"N_Matches","v":"Matches"},null,null,null,null,{"$f":"N_MS","v":"SD"},null,{"$f":"Q19","v":""},{"$f":"IF(OR(ISNUMBER(AB13),ISNUMBER(AB14),ISNUMBER(AB15),ISNUMBER(AB16)),Lire_Gain_Matches(AD13:AD16, AB13:AB16),\"\")","v":""},{"$f":"IF(OR(ISNUMBER(AB13),ISNUMBER(AB14),ISNUMBER(AB15),ISNUMBER(AB16)),SUM(AD13:AD16),\"\")","v":""},null,{"$f":"IF(AD17=\"\",\"\",AD17)","v":""},null,null,null,null,null,null,"-",null,null,null,{"$f":"IF(S16=\"\",\"\",CONCATENATE(S16,IF(R16=AG15,IF(S14=S16,CONCATENATE(\" [ \",T16,\" -\",T14,\" ] \",IF(U15=\"x\",N_res_MS,IF(V16=\"\",\"\",CONCATENATE(\" (\",N_res_Diff,\" \",V16,\" - \",V14,\")\")))),IF(U15=\"x\",N_res_MS,\"\")),\"\")))","v":""}]
[null,null,{"$f":"N_Matches","v":"Matches"},{"$f":"N_Buts","v":"Goals"},{"$f":"N_MS","v":"SD"},{"$f":"N_Diff","v":"Pen."},null,null,null,null,null,null,"-",null,null,null,null,null,null,null,null,null,null,null,{"$f":"N_Différentiel","v":"Shoot Out"},null,null,null,"-"]
[null,"Eq3",{"$f":"IF(OR(ISNUMBER(L17),ISNUMBER(L18),ISNUMBER(L19),ISNUMBER(L20)),Lire_Gain_Matches(L17:L20, N17:N20),\"\")","v":""},{"$f":"IF(OR(ISNUMBER(L17),ISNUMBER(L18),ISNUMBER(L19),ISNUMBER(L20)),SUM(L17:L20),\"\")","v":""},null,{"$f":"IF(L21=\"\",\"\",L21)","v":""},null,null,null,null,null,null,"-",null,null,null,{"$f":"IF(C18=\"\",\"\",CONCATENATE(C18,IF(B18=Q19,IF(C18=C20,CONCATENATE(\" [ \",D18,\" - \",D20,\" ] \",IF(E19=\"x\",N_res_MS,IF(F18=\"\",\"\",CONCATENATE(\" (\",N_res_Diff,\" \",F18,\" - \",F20,\")\")))),IF(E19=\"x\",N_res_MS,\"\")),\"\")))","v":""}]
[null,null,null,null,{"$f":"IF(ISNA(VLOOKUP(\"X\",P17:P20,1,FALSE)),\"\",\"X\")","v":""},null,null,null,null,null,null,null,"-",null,null,null,{"$f":"IF(C18=\"\",\"\",IF(C18>C20,B18,IF(C20>C18,B20,IF(D18>D20,B18,IF(D20>D18,B20,IF(F18>F20,B18,IF(F20>F18,B20,mess_erreur_marque)))))))","v":""}]
[null,"Eq4",{"$f":"IF(OR(ISNUMBER(L17),ISNUMBER(L18),ISNUMBER(L19),ISNUMBER(L20)),Lire_Gain_Matches(N17:N20, L17:L20),\"\")","v":""},{"$f":"IF(OR(ISNUMBER(L17),ISNUMBER(L18),ISNUMBER(L19),ISNUMBER(L20)),SUM(N17:N20),\"\")","v":""},null,{"$f":"IF(N21=\"\",\"\",N21)","v":""},null,null,null,null,null,null,"-",null,null,null,{"$f":"IF(C20=\"\",\"\",CONCATENATE(C20,IF(B20=Q19,IF(C18=C20,CONCATENATE(\" [ \",D20,\" -\",D18,\" ] \",IF(E19=\"x\",N_res_MS,IF(F20=\"\",\"\",CONCATENATE(\" (\",N_res_Diff,\" \",F20,\" - \",F18,\")\")))),IF(E19=\"x\",N_res_MS,\"\")),\"\")))","v":""},null,null,null,null,null,null,null,null,null,null,null,null,null,null,null,null,null,null,null,null,null,null,{"$f":"N_Heure","v":"Time"},{"$f":"N_Table","v":"Table"},{"$f":"N_Arbitre","v":"Referee"},{"$f":"N_Matches","v":"Matches"},null,null,null,null,{"$f":"N_MS","v":"SD"}]
[null,null,null,null,null,null,null,null,{"$f":"N_Différentiel","v":"Shoot Out"},null,null,null,"-",null,null,null,null,null,null,null,null,null,null,null,null,null,null,null,null,null,null,null,null,null,{"$f":"N_Matches","v":"Matches"},{"$f":"N_Buts","v":"Goals"},{"$f":"N_MS","v":"SD"},{"$f":"N_Diff","v":"Pen."},null,null,null,null,null,null,"-"]
[null,null,null,null,null,null,null,null,null,null,null,null,null,null,null,null,null,null,null,null,null,null,null,null,null,null,null,null,null,null,null,null,null,{"$f":"AG15","v":""},{"$f":"IF(OR(ISNUMBER(AR21),ISNUMBER(AR22),ISNUMBER(AR23),ISNUMBER(AR24)),Lire_Gain_Matches(AR21:AR24, AT21:AT24),\"\")","v":""},{"$f":"IF(OR(ISNUMBER(AR21),ISNUMBER(AR22),ISNUMBER(AR23),ISNUMBER(AR24)),SUM(AR21:AR24),\"\")","v":""},null,{"$f":"IF(AR25=\"\",\"\",AR25)","v":""},null,null,null,null,null,null,"-",null,null,null,{"$f":"IF(AI22=\"\",\"\",CONCATENATE(AI22,IF(AH22=AW23,IF(AI22=AI24,CONCATENATE(\" [ \",AJ22,\" - \",AJ24,\" ] \",IF(AK23=\"x\",N_res_MS,IF(AL22=\"\",\"\",CONCATENATE(\" (\",N_res_Diff,\" \",AL22,\" - \",AL24,\")\")))),IF(AK23=\"x\",N_res_MS,\"\")),\"\")))","v":""}]
[null,null,null,null,null,null,null,null,null,null,null,null,null,null,null,null,null,null,null,null,null,null,null,null,null,null,null,null,null,null,null,null,null,null,null,null,{"$f":"IF(ISNA(VLOOKUP(\"X\",AV21:AV24,1,FALSE)),\"\",\"X\")","v":""},null,null,null,null,null,null,null,"-",null,null,null,{"$f":"IF(AI22=\"\",\"\",IF(AI22>AI24,AH22,IF(AI24>AI22,AH24,IF(AJ22>AJ24,AH22,IF(AJ24>AJ22,AH24,IF(AL22>AL24,AH22,IF(AL24>AL22,AH24,mess_erreur_marque)))))))","v":""}]
[null,null,null,null,null,null,null,{"$f":"N_Heure","v":"Time"},{"$f":"N_Table","v":"Table"},{"$f":"N_Arbitre","v":"Referee"},{"$f":"N_Matches","v":"Matches"},null,null,null,null,{"$f":"N_MS","v":"SD"},null,null,null,null,null,null,null,null,null,null,null,null,null,null,null,null,null,{"$f":"AG31","v":""},{"$f":"IF(OR(ISNUMBER(AR21),ISNUMBER(AR22),ISNUMBER(AR23),ISNUMBER(AR24)),Lire_Gain_Matches(AT21:AT24, AR21:AR24),\"\")","v":""},{"$f":"IF(OR(ISNUMBER(AR21),ISNUMBER(AR22),ISNUMBER(AR23),ISNUMBER(AR24)),SUM(AT21:AT24),\"\")","v":""},null,{"$f":"IF(AT25=\"\",\"\",AT25)","v":""},null,null,null,null,null,null,"-",null,null,null,{"$f":"IF(AI24=\"\",\"\",CONCATENATE(AI24,IF(AH24=AW23,IF(AI22=AI24,CONCATENATE(\" [ \",AJ24,\" -\",AJ22,\" ] \",IF(AK23=\"x\",N_res_MS,IF(AL24=\"\",\"\",CONCATENATE(\" (\",N_res_Diff,\" \",AL24,\" - \",AL22,\")\")))),IF(AK23=\"x\",N_res_MS,\"\")),\"\")))","v":""}]
[null,null,{"$f":"N_Matches","v":"Matches"},{"$f":"N_Buts","v":"Goals"},{"$f":"N_MS","v":"SD"},{"$f":"N_Diff","v":"Pen."},null,null,null,null,null,null,"-",null,null,null,null,null,null,null,null,null,null,null,null,null,null,null,null,null,null,null,null,null,null,null,null,null,null,null,{"$f":"N_Différentiel","v":"Shoot Out"},null,null,null,"-"]
[null,"Eq1",{"$f":"IF(OR(ISNUMBER(L25),ISNUMBER(L26),ISNUMBER(L27),ISNUMBER(L28)),Lire_Gain_Matches(L25:L28, N25:N28),\"\")","v":""},{"$f":"IF(OR(ISNUMBER(L25),ISNUMBER(L26),ISNUMBER(L27),ISNUMBER(L28)),SUM(L25:L28),\"\")","v":""},null,{"$f":"IF(L29=\"\",\"\",L29)","v":""},null,null,null,null,null,null,"-",null,null,null,{"$f":"IF(C26=\"\",\"\",CONCATENATE(C26,IF(B26=Q27,IF(C26=C28,CONCATENATE(\" [ \",D26,\" - \",D28,\" ] \",IF(E27=\"x\",N_res_MS,IF(F26=\"\",\"\",CONCATENATE(\" (\",N_res_Diff,\" \",F26,\" - \",F28,\")\")))),IF(E27=\"x\",N_res_MS,\"\")),\"\")))","v":""}]
[null,null,null,null,{"$f":"IF(ISNA(VLOOKUP(\"X\",P25:P28,1,FALSE)),\"\",\"X\")","v":""},null,null,null,null,null,null,null,"-",null,null,null,{"$f":"IF(C26=\"\",\"\",IF(C26>C28,B26,IF(C28>C26,B28,IF(D26>D28,B26,IF(D28>D26,B28,IF(F26>F28,B26,IF(F28>F26,B28,mess_erreur_marque)))))))","v":""}]
[null,"Eq2",{"$f":"IF(OR(ISNUMBER(L25),ISNUMBER(L26),ISNUMBER(L27),ISNUMBER(L28)),Lire_Gain_Matches(N25:N28, L25:L28),\"\")","v":""},{"$f":"IF(OR(ISNUMBER(L25),ISNUMBER(L26),ISNUMBER(L27),ISNUMBER(L28)),SUM(N25:N28),\"\")","v":""},null,{"$f":"IF(N29=\"\",\"\",N29)","v":""},null,null,null,null,null,null,"-",null,null,null,{"$f":"IF(C28=\"\",\"\",CONCATENATE(C28,IF(B28=Q27,IF(C26=C28,CONCATENATE(\" [ \",D28,\" -\",D26,\" ] \",IF(E27=\"x\",N_res_MS,IF(F28=\"\",\"\",CONCATENATE(\" (\",N_res_Diff,\" \",F28,\" - \",F26,\")\")))),IF(E27=\"x\",N_res_MS,\"\")),\"\")))","v":""},null,null,null,null,null,null,{"$f":"N_Heure","v":"Time"},{"$f":"N_Table","v":"Table"},{"$f":"N_Arbitre","v":"Referee"},{"$f":"N_Matches","v":"Matches"},null,null,null,null,{"$f":"N_MS","v":"SD"}]
[null,null,null,null,null,null,null,null,{"$f":"N_Différentiel","v":"Shoot Out"},null,null,null,"-",null,null,null,null,null,{"$f":"N_Matches","v":"Matches"},{"$f":"N_Buts","v":"Goals"},{"$f":"N_MS","v":"SD"},{"$f":"N_Diff","v":"Pen."},null,null,null,null,null,null,"-"]
[null,null,null,null,null,null,null,null,null,null,null,null,null,null,null,null,null,{"$f":"Q27","v":""},{"$f":"IF(OR(ISNUMBER(AB29),ISNUMBER(AB30),ISNUMBER(AB31),ISNUMBER(AB32)),Lire_Gain_Matches(AB29:AB32, AD29:AD32),\"\")","v":""},{"$f":"IF(OR(ISNUMBER(AB29),ISNUMBER(AB30),ISNUMBER(AB31),ISNUMBER(AB32)),SUM(AB29:AB32),\"\")","v":""},null,{"$f":"IF(AB33=\"\",\"\",AB33)","v":""},null,null,null,null,null,null,"-",null,null,null,{"$f":"IF(S30=\"\",\"\",CONCATENATE(S30,IF(R30=AG31,IF(S30=S32,CONCATENATE(\" [ \",T30,\" - \",T32,\" ] \",IF(U31=\"x\",N_res_MS,IF(V30=\"\",\"\",CONCATENATE(\" (\",N_res_Diff,\" \",V30,\" - \",V32,\")\")))),IF(U31=\"x\",N_res_MS,\"\")),\"\")))","v":""}]
[null,null,null,null,null,null,null,null,null,null,null,null,null,null,null,null,null,null,null,null,{"$f":"IF(ISNA(VLOOKUP(\"X\",AF29:AF32,1,FALSE)),\"\",\"X\")","v":""},null,null,null,null,null,null,null,"-",null,null,null,{"$f":"IF(S30=\"\",\"\",IF(S30>S32,R30,IF(S32>S30,R32,IF(T30>T32,R30,IF(T32>T30,R32,IF(V30>V32,R30,IF(V32>V30,R32,mess_erreur_marque)))))))","v":""}]
[null,null,null,null,null,null,null,{"$f":"N_Heure","v":"Time"},{"$f":"N_Table","v":"Table"},{"$f":"N_Arbitre","v":"Referee"},{"$f":"N_Matches","v":"Matches"},null,null,null,null,{"$f":"N_MS","v":"SD"},null,{"$f":"Q35","v":""},{"$f":"IF(OR(ISNUMBER(AB29),ISNUMBER(AB30),ISNUMBER(AB31),ISNUMBER(AB32)),Lire_Gain_Matches(AD29:AD32, AB29:AB32),\"\")","v":""},{"$f":"IF(OR(ISNUMBER(AB29),ISNUMBER(AB30),ISNUMBER(AB31),ISNUMBER(AB32)),SUM(AD29:AD32),\"\")","v":""},null,{"$f":"IF(AD33=\"\",\"\",AD33)","v":""},null,null,null,null,null,null,"-",null,null,null,{"$f":"IF(S32=\"\",\"\",CONCATENATE(S32,IF(R32=AG31,IF(S30=S32,CONCATENATE(\" [ \",T32,\" -\",T30,\" ] \",IF(U31=\"x\",N_res_MS,IF(V32=\"\",\"\",CONCATENATE(\" (\",N_res_Diff,\" \",V32,\" - \",V30,\")\")))),IF(U31=\"x\",N_res_MS,\"\")),\"\")))","v":""}]
[null,null,{"$f":"N_Matches","v":"Matches"},{"$f":"N_Buts","v":"Goals"},{"$f":"N_MS","v":"SD"},{"$f":"N_Diff","v":"Pen."},null,null,null,null,null,null,"-",null,null,null,null,null,null,null,null,null,null,null,{"$f":"N_Différentiel","v":"Shoot Out"},null,null,null,"-"]
[null,null,null,null,null,{"$f":"IF(L37=\"\",\"\",L37)","v":""},null,null,null,null,null,null,"-",null,null,null,{"$f":"IF(C34=\"\",\"\",CONCATENATE(C34,IF(B34=Q35,IF(C34=C36,CONCATENATE(\" [ \",D34,\" - \",D36,\" ] \",IF(E35=\"x\",N_res_MS,IF(F34=\"\",\"\",CONCATENATE(\" (\",N_res_Diff,\" \",F34,\" - \",F36,\")\")))),IF(E35=\"x\",N_res_MS,\"\")),\"\")))","v":""}]
[null,null,null,null,{"$f":"IF(ISNA(VLOOKUP(\"X\",P33:P36,1,FALSE)),\"\",\"X\")","v":""},null,null,null,null,null,null,null,"-",null,null,null,{"$f":"IF(C34=\"\",\"\",IF(C34>C36,B34,IF(C36>C34,B36,IF(D34>D36,B34,IF(D36>D34,B36,IF(F34>F36,B34,IF(F36>F34,B36,mess_erreur_marque)))))))","v":""},null,null,null,null,null,null,null,null,null,null,null,null,null,null,null,null,null,null,null,null,null,null,null,null,null,null,null,null,null,null,null,null,null,null,null,null,null,null,{"$f":"N_Heure","v":"Time"},{"$f":"N_Table","v":"Table"},{"$f":"N_Arbitre","v":"Referee"},{"$f":"N_Matches","v":"Matches"},null,null,null,null,{"$f":"N_MS","v":"SD"}]
[null,null,null,null,null,{"$f":"IF(N37=\"\",\"\",N37)","v":""},null,null,null,null,null,null,"-",null,null,null,{"$f":"IF(C36=\"\",\"\",CONCATENATE(C36,IF(B36=Q35,IF(C34=C36,CONCATENATE(\" [ \",D36,\" -\",D34,\" ] \",IF(E35=\"x\",N_res_MS,IF(F36=\"\",\"\",CONCATENATE(\" (\",N_res_Diff,\" \",F36,\" - \",F34,\")\")))),IF(E35=\"x\",N_res_MS,\"\")),\"\")))","v":""},null,null,null,null,null,null,null,null,null,null,null,null,null,null,null,null,null,null,null,null,null,null,null,null,null,null,null,null,null,null,null,null,null,{"$f":"N_Matches","v":"Matches"},{"$f":"N_Buts","v":"Goals"},{"$f":"N_MS","v":"SD"},{"$f":"N_Diff","v":"Pen."},null,null,null,null,null,null,"-"]
[null,null,null,null,null,null,null,null,{"$f":"N_Différentiel","v":"Shoot Out"},null,null,null,"-",null,null,null,null,null,null,null,null,null,null,null,null,null,null,null,null,null,null,null,null,null,null,null,null,null,null,null,null,null,null,null,null,null,null,null,null,{"$f":"AW23","v":""},{"$f":"IF(OR(ISNUMBER(BH36),ISNUMBER(BH37),ISNUMBER(BH38),ISNUMBER(BH39)),Lire_Gain_Matches(BH36:BH39, BJ36:BJ39),\"\")","v":""},{"$f":"IF(OR(ISNUMBER(BH36),ISNUMBER(BH37),ISNUMBER(BH38),ISNUMBER(BH39)),SUM(BH36:BH39),\"\")","v":""},null,{"$f":"IF(BH40=\"\",\"\",BH40)","v":""},null,null,null,null,null,null,"-",null,null,null,{"$f":"IF(AY37=\"\",\"\",CONCATENATE(AY37,IF(AX37=BM38,IF(AY37=AY39,CONCATENATE(\" [ \",AZ37,\" - \",AZ39,\" ] \",IF(BA38=\"x\",N_res_MS,IF(BB37=\"\",\"\",CONCATENATE(\" (\",N_res_Diff,\" \",BB37,\" - \",BB39,\")\")))),IF(BA38=\"x\",N_res_MS,\"\")),\"\")))","v":""}]
[null,null,null,null,null,null,null,null,null,null,null,null,null,null,null,null,null,null,null,null,null,null,null,null,null,null,null,null,null,null,null,null,null,null,null,null,null,null,null,null,null,null,null,null,null,null,null,null,null,null,null,null,{"$f":"IF(ISNA(VLOOKUP(\"X\",BL36:BL39,1,FALSE)),\"\",\"X\")","v":""},null,null,null,null,null,null,null,"-",null,null,null,{"$f":"IF(AY37=\"\",\"\",IF(AY37>AY39,AX37,IF(AY39>AY37,AX39,IF(AZ37>AZ39,AX37,IF(AZ39>AZ37,AX39,IF(BB37>BB39,AX37,IF(BB39>BB37,AX39,mess_erreur_marque)))))))","v":""}]
[null,null,null,null,null,null,null,{"$f":"N_Heure","v":"Time"},{"$f":"N_Table","v":"Table"},{"$f":"N_Arbitre","v":"Referee"},{"$f":"N_Matches","v":"Matches"},null,null,null,null,{"$f":"N_MS","v":"SD"},null,null,null,null,null,null,null,null,null,null,null,null,null,null,null,null,null,null,null,null,null,null,null,null,null,null,null,null,null,null,null,null,null,{"$f":"AW54","v":""},{"$f":"IF(OR(ISNUMBER(BH36),ISNUMBER(BH37),ISNUMBER(BH38),ISNUMBER(BH39)),Lire_Gain_Matches(BJ36:BJ39, BH36:BH39),\"\")","v":""},{"$f":"IF(OR(ISNUMBER(BH36),ISNUMBER(BH37),ISNUMBER(BH38),ISNUMBER(BH39)),SUM(BJ36:BJ39),\"\")","v":""},null,{"$f":"IF(BJ40=\"\",\"\",BJ40)","v":""},null,null,null,null,null,null,"-",null,null,null,{"$f":"IF(AY39=\"\",\"\",CONCATENATE(AY39,IF(AX39=BM38,IF(AY37=AY39,CONCATENATE(\" [ \",AZ39,\" -\",AZ37,\" ] \",IF(BA38=\"x\",N_res_MS,IF(BB39=\"\",\"\",CONCATENATE(\" (\",N_res_Diff,\" \",BB39,\" - \",BB37,\")\")))),IF(BA38=\"x\",N_res_MS,\"\")),\"\")))","v":""}]
[null,null,{"$f":"N_Matches","v":"Matches"},{"$f":"N_Buts","v":"Goals"},{"$f":"N_MS","v":"SD"},{"$f":"N_Diff","v":"Pen."},null,null,null,null,null,null,"-",null,null,null,null,null,null,null,null,null,null,null,null,null,null,null,null,null,null,null,null,null,null,null,null,null,null,null,null,null,null,null,null,null,null,null,null,null,null,null,null,null,null,null,{"$f":"N_Différentiel","v":"Shoot Out"},null,null,null,"-"]
[null,null,{"$f":"IF(OR(ISNUMBER(L40),ISNUMBER(L41),ISNUMBER(L42),ISNUMBER(L43)),Lire_Gain_Matches(L40:L43, N40:N43),\"\")","v":""},{"$f":"IF(OR(ISNUMBER(L40),ISNUMBER(L41),ISNUMBER(L42),ISNUMBER(L43)),SUM(L40:L43),\"\")","v":""},null,{"$f":"IF(L44=\"\",\"\",L44)","v":""},null,null,null,null,null,null,"-",null,null,null,{"$f":"IF(C41=\"\",\"\",CONCATENATE(C41,IF(B41=Q42,IF(C41=C43,CONCATENATE(\" [ \",D41,\" - \",D43,\" ] \",IF(E42=\"x\",N_res_MS,IF(F41=\"\",\"\",CONCATENATE(\" (\",N_res_Diff,\" \",F41,\" - \",F43,\")\")))),IF(E42=\"x\",N_res_MS,\"\")),\"\")))","v":""}]
[null,null,null,null,{"$f":"IF(ISNA(VLOOKUP(\"X\",P40:P43,1,FALSE)),\"\",\"X\")","v":""},null,null,null,null,null,null,null,"-",null,null,null,{"$f":"IF(C41=\"\",\"\",IF(C41>C43,B41,IF(C43>C41,B43,IF(D41>D43,B41,IF(D43>D41,B43,IF(F41>F43,B41,IF(F43>F41,B43,mess_erreur_marque)))))))","v":""},null,null,null,null,null,null,null,null,null,null,null,null,null,null,null,null,null,null,null,null,null,null,null,null,null,null,null,null,null,null,null,null,null,null,null,null,null,null,null,null,null,null,null,null,null,null,null,null,null,"PODIUM"]
[null,null,{"$f":"IF(OR(ISNUMBER(L40),ISNUMBER(L41),ISNUMBER(L42),ISNUMBER(L43)),Lire_Gain_Matches(N40:N43, L40:L43),\"\")","v":""},{"$f":"IF(OR(ISNUMBER(L40),ISNUMBER(L41),ISNUMBER(L42),ISNUMBER(L43)),SUM(N40:N43),\"\")","v":""},null,{"$f":"IF(N44=\"\",\"\",N44)","v":""},null,null,null,null,null,null,"-",null,null,null,{"$f":"IF(C43=\"\",\"\",CONCATENATE(C43,IF(B43=Q42,IF(C41=C43,CONCATENATE(\" [ \",D43,\" -\",D41,\" ] \",IF(E42=\"x\",N_res_MS,IF(F43=\"\",\"\",CONCATENATE(\" (\",N_res_Diff,\" \",F43,\" - \",F41,\")\")))),IF(E42=\"x\",N_res_MS,\"\")),\"\")))","v":""},null,null,null,null,null,null,{"$f":"N_Heure","v":"Time"},{"$f":"N_Table","v":"Table"},{"$f":"N_Arbitre","v":"Referee"},{"$f":"N_Matches","v":"Matches"},null,null,null,null,{"$f":"N_MS","v":"SD"}]
[null,null,null,null,null,null,null,null,{"$f":"N_Différentiel","v":"Shoot Out"},null,null,null,"-",null,null,null,null,null,{"$f":"N_Matches","v":"Matches"},{"$f":"N_Buts","v":"Goals"},{"$f":"N_MS","v":"SD"},{"$f":"N_Diff","v":"Pen."},null,null,null,null,null,null,"-",null,null,null,null,null,null,null,null,null,null,null,null,null,null,null,null,null,null,null,null,null,null,null,null,null,null,null,null,null,null,null,null,null,null,null,null,null,null,{"$f":"BM38","v":""}]
[null,null,null,null,null,null,null,null,null,null,null,null,null,null,null,null,null,{"$f":"Q42","v":""},{"$f":"IF(OR(ISNUMBER(AB44),ISNUMBER(AB45),ISNUMBER(AB46),ISNUMBER(AB47)),Lire_Gain_Matches(AB44:AB47, AD44:AD47),\"\")","v":""},{"$f":"IF(OR(ISNUMBER(AB44),ISNUMBER(AB45),ISNUMBER(AB46),ISNUMBER(AB47)),SUM(AB44:AB47),\"\")","v":""},null,{"$f":"IF(AB48=\"\",\"\",AB48)","v":""},null,null,null,null,null,null,"-",null,null,null,{"$f":"IF(S45=\"\",\"\",CONCATENATE(S45,IF(R45=AG46,IF(S45=S47,CONCATENATE(\" [ \",T45,\" - \",T47,\" ] \",IF(U46=\"x\",N_res_MS,IF(V45=\"\",\"\",CONCATENATE(\" (\",N_res_Diff,\" \",V45,\" - \",V47,\")\")))),IF(U46=\"x\",N_res_MS,\"\")),\"\")))","v":""},null,null,null,null,null,null,null,null,null,null,null,null,null,null,null,null,null,null,null,null,null,null,null,null,null,null,null,null,null,null,null,null,null,{"$f":"IF(BM38=AX37,AX39,AX37)","v":""},{"$f":"IF(BP44=\"\",\"\",VLOOKUP(BP44,Equipes,2,FALSE))","v":""}]
[null,null,null,null,null,null,null,null,null,null,null,null,null,null,null,null,null,null,null,null,{"$f":"IF(ISNA(VLOOKUP(\"X\",AF44:AF47,1,FALSE)),\"\",\"X\")","v":""},null,null,null,null,null,null,null,"-",null,null,null,{"$f":"IF(S45=\"\",\"\",IF(S45>S47,R45,IF(S47>S45,R47,IF(T45>T47,R45,IF(T47>T45,R47,IF(V45>V47,R45,IF(V47>V45,R47,mess_erreur_marque)))))))","v":""},null,null,null,null,null,null,null,null,null,null,null,null,null,null,null,null,null,null,null,null,null,null,null,null,null,null,null,null,null,null,null,null,null,{"$f":"IF(BO45=\"\",\"\",VLOOKUP(BO45,Equipes,2,FALSE))","v":""},{"$f":"IF(BP44=\"\",\"\",VLOOKUP(BP44,Equipes,3,FALSE))","v":""},{"$f":"BM60","v":""}]
[null,null,null,null,null,null,null,{"$f":"N_Heure","v":"Time"},{"$f":"N_Table","v":"Table"},{"$f":"N_Arbitre","v":"Referee"},{"$f":"N_Matches","v":"Matches"},null,null,null,null,{"$f":"N_MS","v":"SD"},null,{"$f":"Q50","v":""},{"$f":"IF(OR(ISNUMBER(AB44),ISNUMBER(AB45),ISNUMBER(AB46),ISNUMBER(AB47)),Lire_Gain_Matches(AD44:AD47, AB44:AB47),\"\")","v":""},{"$f":"IF(OR(ISNUMBER(AB44),ISNUMBER(AB45),ISNUMBER(AB46),ISNUMBER(AB47)),SUM(AD44:AD47),\"\")","v":""},null,{"$f":"IF(AD48=\"\",\"\",AD48)","v":""},null,null,null,null,null,null,"-",null,null,null,{"$f":"IF(S47=\"\",\"\",CONCATENATE(S47,IF(R47=AG46,IF(S45=S47,CONCATENATE(\" [ \",T47,\" -\",T45,\" ] \",IF(U46=\"x\",N_res_MS,IF(V47=\"\",\"\",CONCATENATE(\" (\",N_res_Diff,\" \",V47,\" - \",V45,\")\")))),IF(U46=\"x\",N_res_MS,\"\")),\"\")))","v":""},null,null,null,null,null,null,null,null,null,null,null,null,null,null,null,null,null,null,null,null,null,null,null,null,null,null,null,null,null,null,null,null,null,{"$f":"IF(BO46=\"\",\"\",VLOOKUP(BO46,Equipes,3,FALSE))","v":""},{"$f":"IF(BP44=\"\",\"\",VLOOKUP(BP44,Equipes,4,FALSE))","v":""},{"$f":"IF(BQ46=\"\",\"\",VLOOKUP(BQ46,Equipes,2,FALSE))","v":""},{"$f":"IF(BM60=AX59,AX61,AX59)","v":""}]
[null,null,{"$f":"N_Matches","v":"Matches"},{"$f":"N_Buts","v":"Goals"},{"$f":"N_MS","v":"SD"},{"$f":"N_Diff","v":"Pen."},null,null,null,null,null,null,"-",null,null,null,null,null,null,null,null,null,null,null,{"$f":"N_Différentiel","v":"Shoot Out"},null,null,null,"-",null,null,null,null,null,null,null,null,null,null,null,null,null,null,null,null,null,null,null,null,null,null,null,null,null,null,null,null,null,null,null,null,null,null,null,null,null,{"$f":"IF(BO45=\"\",\"\",VLOOKUP(BO45,Equipes,4,FALSE))","v":""},{"$f":"IF(BP44=\"\",\"\",VLOOKUP(BP44,Equipes,5,FALSE))","v":""},{"$f":"IF(BQ46=\"\",\"\",VLOOKUP(BQ46,Equipes,3,FALSE))","v":""},{"$f":"IF(BR47=\"\",\"\",VLOOKUP(BR47,Equipes,2,FALSE))","v":""},{"$f":"BM98","v":""}]
[null,null,{"$f":"IF(OR(ISNUMBER(L48),ISNUMBER(L49),ISNUMBER(L50),ISNUMBER(L51)),Lire_Gain_Matches(L48:L51, N48:N51),\"\")","v":""},{"$f":"IF(OR(ISNUMBER(L48),ISNUMBER(L49),ISNUMBER(L50),ISNUMBER(L51)),SUM(L48:L51),\"\")","v":""},null,{"$f":"IF(L52=\"\",\"\",L52)","v":""},null,null,null,null,null,null,"-",null,null,null,{"$f":"IF(C49=\"\",\"\",CONCATENATE(C49,IF(B49=Q50,IF(C49=C51,CONCATENATE(\" [ \",D49,\" - \",D51,\" ] \",IF(E50=\"x\",N_res_MS,IF(F49=\"\",\"\",CONCATENATE(\" (\",N_res_Diff,\" \",F49,\" - \",F51,\")\")))),IF(E50=\"x\",N_res_MS,\"\")),\"\")))","v":""},null,null,null,null,null,null,null,null,null,null,null,null,null,null,null,null,null,null,null,null,null,null,null,null,null,null,null,null,null,null,null,null,null,null,null,null,null,null,null,null,null,null,null,null,null,null,null,null,null,{"$f":"IF(BO45=\"\",\"\",VLOOKUP(BO45,Equipes,5,FALSE))","v":""},{"$f":"IF(BP44=\"\",\"\",VLOOKUP(BP44,Equipes,6,FALSE))","v":""},{"$f":"IF(BQ46=\"\",\"\",VLOOKUP(BQ46,Equipes,5,FALSE))","v":""},{"$f":"IF(BR47=\"\",\"\",VLOOKUP(BR47,Equipes,3,FALSE))","v":""},{"$f":"IF(BS48=\"\",\"\",VLOOKUP(BS48,Equipes,2,FALSE))","v":""},{"$f":"IF(BM98=AX97,AX99,AX97)","v":""}]
[null,null,null,null,{"$f":"IF(ISNA(VLOOKUP(\"X\",P48:P51,1,FALSE)),\"\",\"X\")","v":""},null,null,null,null,null,null,null,"-",null,null,null,{"$f":"IF(C49=\"\",\"\",IF(C49>C51,B49,IF(C51>C49,B51,IF(D49>D51,B49,IF(D51>D49,B51,IF(F49>F51,B49,IF(F51>F49,B51,mess_erreur_marque)))))))","v":""},null,null,null,null,null,null,null,null,null,null,null,null,null,null,null,null,null,null,null,null,null,null,null,null,null,null,null,null,null,null,null,null,null,null,null,null,null,null,null,null,null,null,null,null,null,null,null,null,null,{"$f":"IF(BO45=\"\",\"\",VLOOKUP(BO45,Equipes,6,FALSE))","v":""},null,{"$f":"IF(BQ46=\"\",\"\",VLOOKUP(BQ46,Equipes,5,FALSE))","v":""},{"$f":"IF(BR47=\"\",\"\",VLOOKUP(BR47,Equipes,4,FALSE))","v":""},{"$f":"IF(BS48=\"\",\"\",VLOOKUP(BS48,Equipes,3,FALSE))","v":""},{"$f":"IF(BT49=\"\",\"\",VLOOKUP(BT49,Equipes,2,FALSE))","v":""},{"$f":"BM120","v":""}]
[null,null,{"$f":"IF(OR(ISNUMBER(L48),ISNUMBER(L49),ISNUMBER(L50),ISNUMBER(L51)),Lire_Gain_Matches(N48:N51, L48:L51),\"\")","v":""},{"$f":"IF(OR(ISNUMBER(L48),ISNUMBER(L49),ISNUMBER(L50),ISNUMBER(L51)),SUM(N48:N51),\"\")","v":""},null,{"$f":"IF(N52=\"\",\"\",N52)","v":""},null,null,null,null,null,null,"-",null,null,null,{"$f":"IF(C51=\"\",\"\",CONCATENATE(C51,IF(B51=Q50,IF(C49=C51,CONCATENATE(\" [ \",D51,\" -\",D49,\" ] \",IF(E50=\"x\",N_res_MS,IF(F51=\"\",\"\",CONCATENATE(\" (\",N_res_Diff,\" \",F51,\" - \",F49,\")\")))),IF(E50=\"x\",N_res_MS,\"\")),\"\")))","v":""},null,null,null,null,null,null,null,null,null,null,null,null,null,null,null,null,null,null,null,null,null,null,{"$f":"N_Heure","v":"Time"},{"$f":"N_Table","v":"Table"},{"$f":"N_Arbitre","v":"Referee"},{"$f":"N_Matches","v":"Matches"},null,null,null,null,{"$f":"N_MS","v":"SD"},null,null,null,null,null,null,null,null,null,null,null,null,null,null,null,null,null,null,null,null,{"$f":"IF(BQ46=\"\",\"\",VLOOKUP(BQ46,Equipes,6,FALSE))","v":""},{"$f":"IF(BR47=\"\",\"\",VLOOKUP(BR47,Equipes,5,FALSE))","v":""},{"$f":"IF(BS48=\"\",\"\",VLOOKUP(BS48,Equipes,4,FALSE))","v":""},{"$f":"IF(BT50=\"\",\"\",VLOOKUP(BT50,Equipes,3,FALSE))","v":""},{"$f":"IF(BU50=\"\",\"\",VLOOKUP(BU50,Equipes,2,FALSE))","v":""},{"$f":"IF(BM120=AX119,AX121,AX119)","v":""}]
[null,null,null,null,null,null,null,null,{"$f":"N_Différentiel","v":"Shoot Out"},null,null,null,"-",null,null,null,null,null,null,null,null,null,null,null,null,null,null,null,null,null,null,null,null,null,{"$f":"N_Matches","v":"Matches"},{"$f":"N_Buts","v":"Goals"},{"$f":"N_MS","v":"SD"},{"$f":"N_Diff","v":"Pen."},null,null,null,null,null,null,"-",null,null,null,null,null,null,null,null,null,null,null,null,null,null,null,null,null,null,null,null,null,null,null,null,{"$f":"IF(BR47=\"\",\"\",VLOOKUP(BR47,Equipes,6,FALSE))","v":""},{"$f":"IF(BS48=\"\",\"\",VLOOKUP(BS48,Equipes,5,FALSE))","v":""},{"$f":"IF(BT49=\"\",\"\",VLOOKUP(BT49,Equipes,4,FALSE))","v":""},{"$f":"IF(BU50=\"\",\"\",VLOOKUP(BU50,Equipes,3,FALSE))","v":""},{"$f":"IF(BV51=\"\",\"\",VLOOKUP(BV51,Equipes,2,FALSE))","v":""}]
[null,null,null,null,null,null,null,null,null,null,null,null,null,null,null,null,null,null,null,null,null,null,null,null,null,null,null,null,null,null,null,null,null,{"$f":"AG46","v":""},{"$f":"IF(OR(ISNUMBER(AR52),ISNUMBER(AR53),ISNUMBER(AR54),ISNUMBER(AR55)),Lire_Gain_Matches(AR52:AR55, AT52:AT55),\"\")","v":""},{"$f":"IF(OR(ISNUMBER(AR52),ISNUMBER(AR53),ISNUMBER(AR54),ISNUMBER(AR55)),SUM(AR52:AR55),\"\")","v":""},null,{"$f":"IF(AR56=\"\",\"\",AR56)","v":""},null,null,null,null,null,null,"-",null,null,null,{"$f":"IF(AI53=\"\",\"\",CONCATENATE(AI53,IF(AH53=AW54,IF(AI53=AI55,CONCATENATE(\" [ \",AJ53,\" - \",AJ55,\" ] \",IF(AK54=\"x\",N_res_MS,IF(AL53=\"\",\"\",CONCATENATE(\" (\",N_res_Diff,\" \",AL53,\" - \",AL55,\")\")))),IF(AK54=\"x\",N_res_MS,\"\")),\"\")))","v":""},null,null,null,null,null,null,null,null,null,null,null,null,null,null,null,null,null,null,null,null,null,{"$f":"IF(BS48=\"\",\"\",VLOOKUP(BS48,Equipes,6,FALSE))","v":""},{"$f":"IF(BT49=\"\",\"\",VLOOKUP(BT49,Equipes,5,FALSE))","v":""},{"$f":"IF(BU50=\"\",\"\",VLOOKUP(BU50,Equipes,5,FALSE))","v":""},{"$f":"IF(BV51=\"\",\"\",VLOOKUP(BV51,Equipes,3,FALSE))","v":""}]
[null,null,null,null,null,null,null,null,null,null,null,null,null,null,null,null,null,null,null,null,null,null,null,null,null,null,null,null,null,null,null,null,null,null,null,null,{"$f":"IF(ISNA(VLOOKUP(\"X\",AV52:AV55,1,FALSE)),\"\",\"X\")","v":""},null,null,null,null,null,null,null,"-",null,null,null,{"$f":"IF(AI53=\"\",\"\",IF(AI53>AI55,AH53,IF(AI55>AI53,AH55,IF(AJ53>AJ55,AH53,IF(AJ55>AJ53,AH55,IF(AL53>AL55,AH53,IF(AL55>AL53,AH55,mess_erreur_marque)))))))","v":""},null,null,null,null,null,null,null,null,null,null,null,null,null,null,null,null,null,null,null,null,null,null,{"$f":"IF(BT49=\"\",\"\",VLOOKUP(BT49,Equipes,6,FALSE))","v":""},{"$f":"IF(BU50=\"\",\"\",VLOOKUP(BU50,Equipes,5,FALSE))","v":""},{"$f":"IF(BV51=\"\",\"\",VLOOKUP(BV51,Equipes,4,FALSE))","v":""}]
[null,null,null,null,null,null,null,{"$f":"N_Heure","v":"Time"},{"$f":"N_Table","v":"Table"},{"$f":"N_Arbitre","v":"Referee"},{"$f":"N_Matches","v":"Matches"},null,null,null,null,{"$f":"N_MS","v":"SD"},null,null,null,null,null,null,null,null,null,null,null,null,null,null,null,null,null,{"$f":"AG62","v":""},{"$f":"IF(OR(ISNUMBER(AR52),ISNUMBER(AR53),ISNUMBER(AR54),ISNUMBER(AR55)),Lire_Gain_Matches(AT52:AT55, AR52:AR55),\"\")","v":""},{"$f":"IF(OR(ISNUMBER(AR52),ISNUMBER(AR53),ISNUMBER(AR54),ISNUMBER(AR55)),SUM(AT52:AT55),\"\")","v":""},null,{"$f":"IF(AT56=\"\",\"\",AT56)","v":""},null,null,null,null,null,null,"-",null,null,null,{"$f":"IF(AI55=\"\",\"\",CONCATENATE(AI55,IF(AH55=AW54,IF(AI53=AI55,CONCATENATE(\" [ \",AJ55,\" -\",AJ53,\" ] \",IF(AK54=\"x\",N_res_MS,IF(AL55=\"\",\"\",CONCATENATE(\" (\",N_res_Diff,\" \",AL55,\" - \",AL53,\")\")))),IF(AK54=\"x\",N_res_MS,\"\")),\"\")))","v":""},null,null,null,null,null,null,null,null,null,null,null,null,null,null,null,null,null,null,null,null,null,null,null,{"$f":"IF(BU50=\"\",\"\",VLOOKUP(BU50,Equipes,6,FALSE))","v":""},{"$f":"IF(BV51=\"\",\"\",VLOOKUP(BV51,Equipes,5,FALSE))","v":""}]
[null,null,{"$f":"N_Matches","v":"Matches"},{"$f":"N_Buts","v":"Goals"},{"$f":"N_MS","v":"SD"},{"$f":"N_Diff","v":"Pen."},null,null,null,null,null,null,"-",null,null,null,null,null,null,null,null,null,null,null,null,null,null,null,null,null,null,null,null,null,null,null,null,null,null,null,{"$f":"N_Différentiel","v":"Shoot Out"},null,null,null,"-",null,null,null,null,{"$f":"N_Petite_FINALE","v":"3rd place FINAL"},null,null,null,null,null,null,null,null,null,null,null,null,null,null,null,null,null,null,null,null,null,null,null,{"$f":"IF(BV51=\"\",\"\",VLOOKUP(BV51,Equipes,6,FALSE))","v":""}]
[null,null,{"$f":"IF(OR(ISNUMBER(L56),ISNUMBER(L57),ISNUMBER(L58),ISNUMBER(L59)),Lire_Gain_Matches(L56:L59, N56:N59),\"\")","v":""},{"$f":"IF(OR(ISNUMBER(L56),ISNUMBER(L57),ISNUMBER(L58),ISNUMBER(L59)),SUM(L56:L59),\"\")","v":""},null,{"$f":"IF(L60=\"\",\"\",L60)","v":""},null,null,null,null,null,null,"-",null,null,null,{"$f":"IF(C57=\"\",\"\",CONCATENATE(C57,IF(B57=Q58,IF(C57=C59,CONCATENATE(\" [ \",D57,\" - \",D59,\" ] \",IF(E58=\"x\",N_res_MS,IF(F57=\"\",\"\",CONCATENATE(\" (\",N_res_Diff,\" \",F57,\" - \",F59,\")\")))),IF(E58=\"x\",N_res_MS,\"\")),\"\")))","v":""},null,null,null,null,null,null,null,null,null,null,null,null,null,null,null,null,null,null,null,null,null,null,null,null,null,null,null,null,null,null,null,null,null,null,null,null,null,null,{"$f":"N_Heure","v":"Time"},{"$f":"N_Table","v":"Table"},{"$f":"N_Arbitre","v":"Referee"},{"$f":"N_Matches","v":"Matches"},null,null,null,null,{"$f":"N_MS","v":"SD"}]
[null,null,null,null,{"$f":"IF(ISNA(VLOOKUP(\"X\",P56:P59,1,FALSE)),\"\",\"X\")","v":""},null,null,null,null,null,null,null,"-",null,null,null,{"$f":"IF(C57=\"\",\"\",IF(C57>C59,B57,IF(C59>C57,B59,IF(D57>D59,B57,IF(D59>D57,B59,IF(F57>F59,B57,IF(F59>F57,B59,mess_erreur_marque)))))))","v":""},null,null,null,null,null,null,null,null,null,null,null,null,null,null,null,null,null,null,null,null,null,null,null,null,null,null,null,null,null,null,null,null,null,{"$f":"N_Matches","v":"Matches"},{"$f":"N_Buts","v":"Goals"},{"$f":"N_MS","v":"SD"},{"$f":"N_Diff","v":"Pen."},null,null,null,null,null,null,"-"]
[null,null,{"$f":"IF(OR(ISNUMBER(L56),ISNUMBER(L57),ISNUMBER(L58),ISNUMBER(L59)),Lire_Gain_Matches(N56:N59, L56:L59),\"\")","v":""},{"$f":"IF(OR(ISNUMBER(L56),ISNUMBER(L57),ISNUMBER(L58),ISNUMBER(L59)),SUM(N56:N59),\"\")","v":""},null,{"$f":"IF(N60=\"\",\"\",N60)","v":""},null,null,null,null,null,null,"-",null,null,null,{"$f":"IF(C59=\"\",\"\",CONCATENATE(C59,IF(B59=Q58,IF(C57=C59,CONCATENATE(\" [ \",D59,\" -\",D57,\" ] \",IF(E58=\"x\",N_res_MS,IF(F59=\"\",\"\",CONCATENATE(\" (\",N_res_Diff,\" \",F59,\" - \",F57,\")\")))),IF(E58=\"x\",N_res_MS,\"\")),\"\")))","v":""},null,null,null,null,null,null,{"$f":"N_Heure","v":"Time"},{"$f":"N_Table","v":"Table"},{"$f":"N_Arbitre","v":"Referee"},{"$f":"N_Matches","v":"Matches"},null,null,null,null,{"$f":"N_MS","v":"SD"},null,null,null,null,null,null,null,null,null,null,null,null,null,null,null,null,null,{"$f":"IF(AW23=AH22,AH24,AH22)","v":""},{"$f":"IF(OR(ISNUMBER(BH58),ISNUMBER(BH59),ISNUMBER(BH60),ISNUMBER(BH61)),Lire_Gain_Matches(BH58:BH61, BJ58:BJ61),\"\")","v":""},{"$f":"IF(OR(ISNUMBER(BH58),ISNUMBER(BH59),ISNUMBER(BH60),ISNUMBER(BH61)),SUM(BH58:BH61),\"\")","v":""},null,{"$f":"IF(BH62=\"\",\"\",BH62)","v":""},null,null,null,null,null,null,"-",null,null,null,{"$f":"IF(AY59=\"\",\"\",CONCATENATE(AY59,IF(AX59=BM60,IF(AY59=AY61,CONCATENATE(\" [ \",AZ59,\" - \",AZ61,\" ] \",IF(BA60=\"x\",N_res_MS,IF(BB59=\"\",\"\",CONCATENATE(\" (\",N_res_Diff,\" \",BB59,\" - \",BB61,\")\")))),IF(BA60=\"x\",N_res_MS,\"\")),\"\")))","v":""}]
[null,null,null,null,null,null,null,null,{"$f":"N_Différentiel","v":"Shoot Out"},null,null,null,"-",null,null,null,null,null,{"$f":"N_Matches","v":"Matches"},{"$f":"N_Buts","v":"Goals"},{"$f":"N_MS","v":"SD"},{"$f":"N_Diff","v":"Pen."},null,null,null,null,null,null,"-",null,null,null,null,null,null,null,null,null,null,null,null,null,null,null,null,null,null,null,null,null,null,null,{"$f":"IF(ISNA(VLOOKUP(\"X\",BL58:BL61,1,FALSE)),\"\",\"X\")","v":""},null,null,null,null,null,null,null,"-",null,null,null,{"$f":"IF(AY59=\"\",\"\",IF(AY59>AY61,AX59,IF(AY61>AY59,AX61,IF(AZ59>AZ61,AX59,IF(AZ61>AZ59,AX61,IF(BB59>BB61,AX59,IF(BB61>BB59,AX61,mess_erreur_marque)))))))","v":""}]
[null,null,null,null,null,null,null,null,null,null,null,null,null,null,null,null,null,{"$f":"Q58","v":""},{"$f":"IF(OR(ISNUMBER(AB60),ISNUMBER(AB61),ISNUMBER(AB62),ISNUMBER(AB63)),Lire_Gain_Matches(AB60:AB63, AD60:AD63),\"\")","v":""},{"$f":"IF(OR(ISNUMBER(AB60),ISNUMBER(AB61),ISNUMBER(AB62),ISNUMBER(AB63)),SUM(AB60:AB63),\"\")","v":""},null,{"$f":"IF(AB64=\"\",\"\",AB64)","v":""},null,null,null,null,null,null,"-",null,null,null,{"$f":"IF(S61=\"\",\"\",CONCATENATE(S61,IF(R61=AG62,IF(S61=S63,CONCATENATE(\" [ \",T61,\" - \",T63,\" ] \",IF(U62=\"x\",N_res_MS,IF(V61=\"\",\"\",CONCATENATE(\" (\",N_res_Diff,\" \",V61,\" - \",V63,\")\")))),IF(U62=\"x\",N_res_MS,\"\")),\"\")))","v":""},null,null,null,null,null,null,null,null,null,null,null,null,null,null,null,null,{"$f":"IF(AW54=AH53,AH55,AH53)","v":""},{"$f":"IF(OR(ISNUMBER(BH58),ISNUMBER(BH59),ISNUMBER(BH60),ISNUMBER(BH61)),Lire_Gain_Matches(BJ58:BJ61, BH58:BH61),\"\")","v":""},{"$f":"IF(OR(ISNUMBER(BH58),ISNUMBER(BH59),ISNUMBER(BH60),ISNUMBER(BH61)),SUM(BJ58:BJ61),\"\")","v":""},null,{"$f":"IF(BJ62=\"\",\"\",BJ62)","v":""},null,null,null,null,null,null,"-",null,null,null,{"$f":"IF(AY61=\"\",\"\",CONCATENATE(AY61,IF(AX61=BM60,IF(AY59=AY61,CONCATENATE(\" [ \",AZ61,\" -\",AZ59,\" ] \",IF(BA60=\"x\",N_res_MS,IF(BB61=\"\",\"\",CONCATENATE(\" (\",N_res_Diff,\" \",BB61,\" - \",BB59,\")\")))),IF(BA60=\"x\",N_res_MS,\"\")),\"\")))","v":""}]
[null,null,null,null,null,null,null,null,null,null,null,null,null,null,null,null,null,null,null,null,{"$f":"IF(ISNA(VLOOKUP(\"X\",AF60:AF63,1,FALSE)),\"\",\"X\")","v":""},null,null,null,null,null,null,null,"-",null,null,null,{"$f":"IF(S61=\"\",\"\",IF(S61>S63,R61,IF(S63>S61,R63,IF(T61>T63,R61,IF(T63>T61,R63,IF(V61>V63,R61,IF(V63>V61,R63,mess_erreur_marque)))))))","v":""},null,null,null,null,null,null,null,null,null,null,null,null,null,null,null,null,null,null,null,null,null,null,null,{"$f":"N_Différentiel","v":"Shoot Out"},null,null,null,"-"]
[null,null,null,null,null,null,null,{"$f":"N_Heure","v":"Time"},{"$f":"N_Table","v":"Table"},{"$f":"N_Arbitre","v":"Referee"},{"$f":"N_Matches","v":"Matches"},null,null,null,null,{"$f":"N_MS","v":"SD"},null,{"$f":"Q66","v":""},{"$f":"IF(OR(ISNUMBER(AB60),ISNUMBER(AB61),ISNUMBER(AB62),ISNUMBER(AB63)),Lire_Gain_Matches(AD60:AD63, AB60:AB63),\"\")","v":""},{"$f":"IF(OR(ISNUMBER(AB60),ISNUMBER(AB61),ISNUMBER(AB62),ISNUMBER(AB63)),SUM(AD60:AD63),\"\")","v":""},null,{"$f":"IF(AD64=\"\",\"\",AD64)","v":""},null,null,null,null,null,null,"-",null,null,null,{"$f":"IF(S63=\"\",\"\",CONCATENATE(S63,IF(R63=AG62,IF(S61=S63,CONCATENATE(\" [ \",T63,\" -\",T61,\" ] \",IF(U62=\"x\",N_res_MS,IF(V63=\"\",\"\",CONCATENATE(\" (\",N_res_Diff,\" \",V63,\" - \",V61,\")\")))),IF(U62=\"x\",N_res_MS,\"\")),\"\")))","v":""}]
[null,null,{"$f":"N_Matches","v":"Matches"},{"$f":"N_Buts","v":"Goals"},{"$f":"N_MS","v":"SD"},{"$f":"N_Diff","v":"Pen."},null,null,null,null,null,null,"-",null,null,null,null,null,null,null,null,null,null,null,{"$f":"N_Différentiel","v":"Shoot Out"},null,null,null,"-"]
[null,null,{"$f":"IF(OR(ISNUMBER(L64),ISNUMBER(L65),ISNUMBER(L66),ISNUMBER(L67)),Lire_Gain_Matches(L64:L67, N64:N67),\"\")","v":""},{"$f":"IF(OR(ISNUMBER(L64),ISNUMBER(L65),ISNUMBER(L66),ISNUMBER(L67)),SUM(L64:L67),\"\")","v":""},null,{"$f":"IF(L68=\"\",\"\",L68)","v":""},null,null,null,null,null,null,"-",null,null,null,{"$f":"IF(C65=\"\",\"\",CONCATENATE(C65,IF(B65=Q66,IF(C65=C67,CONCATENATE(\" [ \",D65,\" - \",D67,\" ] \",IF(E66=\"x\",N_res_MS,IF(F65=\"\",\"\",CONCATENATE(\" (\",N_res_Diff,\" \",F65,\" - \",F67,\")\")))),IF(E66=\"x\",N_res_MS,\"\")),\"\")))","v":""}]
[null,null,null,null,{"$f":"IF(ISNA(VLOOKUP(\"X\",P64:P67,1,FALSE)),\"\",\"X\")","v":""},null,null,null,null,null,null,null,"-",null,null,null,{"$f":"IF(C65=\"\",\"\",IF(C65>C67,B65,IF(C67>C65,B67,IF(D65>D67,B65,IF(D67>D65,B67,IF(F65>F67,B65,IF(F67>F65,B67,mess_erreur_marque)))))))","v":""}]
[null,null,{"$f":"IF(OR(ISNUMBER(L64),ISNUMBER(L65),ISNUMBER(L66),ISNUMBER(L67)),Lire_Gain_Matches(N64:N67, L64:L67),\"\")","v":""},{"$f":"IF(OR(ISNUMBER(L64),ISNUMBER(L65),ISNUMBER(L66),ISNUMBER(L67)),SUM(N64:N67),\"\")","v":""},null,{"$f":"IF(N68=\"\",\"\",N68)","v":""},null,null,null,null,null,null,"-",null,null,null,{"$f":"IF(C67=\"\",\"\",CONCATENATE(C67,IF(B67=Q66,IF(C65=C67,CONCATENATE(\" [ \",D67,\" -\",D65,\" ] \",IF(E66=\"x\",N_res_MS,IF(F67=\"\",\"\",CONCATENATE(\" (\",N_res_Diff,\" \",F67,\" - \",F65,\")\")))),IF(E66=\"x\",N_res_MS,\"\")),\"\")))","v":""}]
[null,null,null,null,null,null,null,null,{"$f":"N_Différentiel","v":"Shoot Out"},null,null,null,"-"]
[]
[null,"TABLEAU B - reversement éliminés des 1/8 emes et 1/4"]
[]
[null,null,null,null,null,null,null,null,null,null,null,null,null,null,null,null,null,null,null,null,null,null,null,{"$f":"N_Heure","v":"Time"},{"$f":"N_Table","v":"Table"},{"$f":"N_Arbitre","v":"Referee"},{"$f":"N_Matches","v":"Matches"},null,null,null,null,{"$f":"N_MS","v":"SD"}]
[null,null,null,null,null,null,null,null,null,null,null,null,null,null,null,null,null,null,{"$f":"N_Matches","v":"Matches"},{"$f":"N_Buts","v":"Goals"},{"$f":"N_MS","v":"SD"},{"$f":"N_Diff","v":"Pen."},null,null,null,null,null,null,"-"]
[null,null,null,null,null,null,null,null,null,null,null,null,null,null,null,null,null,{"$f":"IF(AG15=\"\",\"\",IF(AG15=R14,R16,IF(AG15=R16,R14,\"\")))","v":""},{"$f":"IF(OR(ISNUMBER(AB73),ISNUMBER(AB74),ISNUMBER(AB75),ISNUMBER(AB76)),Lire_Gain_Matches(AB73:AB76, AD73:AD76),\"\")","v":""},{"$f":"IF(OR(ISNUMBER(AB73),ISNUMBER(AB74),ISNUMBER(AB75),ISNUMBER(AB76)),SUM(AB73:AB76),\"\")","v":""},null,{"$f":"IF(AB77=\"\",\"\",AB77)","v":""},null,null,null,null,null,null,"-",null,null,null,{"$f":"IF(S74=\"\",\"\",CONCATENATE(S74,IF(R74=AG75,IF(S74=S76,CONCATENATE(\" [ \",T74,\" - \",T76,\" ] \",IF(U75=\"x\",N_res_MS,IF(V74=\"\",\"\",CONCATENATE(\" (\",N_res_Diff,\" \",V74,\" - \",V76,\")\")))),IF(U75=\"x\",N_res_MS,\"\")),\"\")))","v":""}]
[null,null,null,null,null,null,null,null,null,null,null,null,null,null,null,null,null,null,null,null,{"$f":"IF(ISNA(VLOOKUP(\"X\",AF73:AF76,1,FALSE)),\"\",\"X\")","v":""},null,null,null,null,null,null,null,"-",null,null,null,{"$f":"IF(S74=\"\",\"\",IF(S74>S76,R74,IF(S76>S74,R76,IF(T74>T76,R74,IF(T76>T74,R76,IF(V74>V76,R74,IF(V76>V74,R76,mess_erreur_marque)))))))","v":""}]
[null,null,null,null,null,null,null,{"$f":"N_Heure","v":"Time"},{"$f":"N_Table","v":"Table"},{"$f":"N_Arbitre","v":"Referee"},{"$f":"N_Matches","v":"Matches"},null,null,null,null,{"$f":"N_MS","v":"SD"},null,{"$f":"Q79","v":""},{"$f":"IF(OR(ISNUMBER(AB73),ISNUMBER(AB74),ISNUMBER(AB75),ISNUMBER(AB76)),Lire_Gain_Matches(AD73:AD76, AB73:AB76),\"\")","v":""},{"$f":"IF(OR(ISNUMBER(AB73),ISNUMBER(AB74),ISNUMBER(AB75),ISNUMBER(AB76)),SUM(AD73:AD76),\"\")","v":""},null,{"$f":"IF(AD77=\"\",\"\",AD77)","v":""},null,null,null,null,null,null,"-",null,null,null,{"$f":"IF(S76=\"\",\"\",CONCATENATE(S76,IF(R76=AG75,IF(S74=S76,CONCATENATE(\" [ \",T76,\" -\",T74,\" ] \",IF(U75=\"x\",N_res_MS,IF(V76=\"\",\"\",CONCATENATE(\" (\",N_res_Diff,\" \",V76,\" - \",V74,\")\")))),IF(U75=\"x\",N_res_MS,\"\")),\"\")))","v":""}]
[null,null,{"$f":"N_Matches","v":"Matches"},{"$f":"N_Buts","v":"Goals"},{"$f":"N_MS","v":"SD"},{"$f":"N_Diff","v":"Pen."},null,null,null,null,null,null,"-",null,null,null,null,null,null,null,null,null,null,null,{"$f":"N_Différentiel","v":"Shoot Out"},null,null,null,"-"]
[null,null,{"$f":"IF(OR(ISNUMBER(L77),ISNUMBER(L78),ISNUMBER(L79),ISNUMBER(L80)),Lire_Gain_Matches(L77:L80, N77:N80),\"\")","v":""},{"$f":"IF(OR(ISNUMBER(L77),ISNUMBER(L78),ISNUMBER(L79),ISNUMBER(L80)),SUM(L77:L80),\"\")","v":""},null,{"$f":"IF(L81=\"\",\"\",L81)","v":""},null,null,null,null,null,null,"-",null,null,null,{"$f":"IF(C78=\"\",\"\",CONCATENATE(C78,IF(B78=Q79,IF(C78=C80,CONCATENATE(\" [ \",D78,\" - \",D80,\" ] \",IF(E79=\"x\",N_res_MS,IF(F78=\"\",\"\",CONCATENATE(\" (\",N_res_Diff,\" \",F78,\" - \",F80,\")\")))),IF(E79=\"x\",N_res_MS,\"\")),\"\")))","v":""}]
[null,null,null,null,{"$f":"IF(ISNA(VLOOKUP(\"X\",P77:P80,1,FALSE)),\"\",\"X\")","v":""},null,null,null,null,null,null,null,"-",null,null,null,{"$f":"IF(C78=\"\",\"\",IF(C78>C80,B78,IF(C80>C78,B80,IF(D78>D80,B78,IF(D80>D78,B80,IF(F78>F80,B78,IF(F80>F78,B80,mess_erreur_marque)))))))","v":""}]
[null,{"$f":"IF(Q35=\"\",\"\",IF(Q35=B34,B36,IF(Q35=B36,B34,\"\")))","v":""},{"$f":"IF(OR(ISNUMBER(L77),ISNUMBER(L78),ISNUMBER(L79),ISNUMBER(L80)),Lire_Gain_Matches(N77:N80, L77:L80),\"\")","v":""},{"$f":"IF(OR(ISNUMBER(L77),ISNUMBER(L78),ISNUMBER(L79),ISNUMBER(L80)),SUM(N77:N80),\"\")","v":""},null,{"$f":"IF(N81=\"\",\"\",N81)","v":""},null,null,null,null,null,null,"-",null,null,null,{"$f":"IF(C80=\"\",\"\",CONCATENATE(C80,IF(B80=Q79,IF(C78=C80,CONCATENATE(\" [ \",D80,\" -\",D78,\" ] \",IF(E79=\"x\",N_res_MS,IF(F80=\"\",\"\",CONCATENATE(\" (\",N_res_Diff,\" \",F80,\" - \",F78,\")\")))),IF(E79=\"x\",N_res_MS,\"\")),\"\")))","v":""},null,null,null,null,null,null,null,null,null,null,null,null,null,null,null,null,null,null,null,null,null,null,{"$f":"N_Heure","v":"Time"},{"$f":"N_Table","v":"Table"},{"$f":"N_Arbitre","v":"Referee"},{"$f":"N_Matches","v":"Matches"},null,null,null,null,{"$f":"N_MS","v":"SD"}]
[null,null,null,null,null,null,null,null,{"$f":"N_Différentiel","v":"Shoot Out"},null,null,null,"-",null,null,null,null,null,null,null,null,null,null,null,null,null,null,null,null,null,null,null,null,null,{"$f":"N_Matches","v":"Matches"},{"$f":"N_Buts","v":"Goals"},{"$f":"N_MS","v":"SD"},{"$f":"N_Diff","v":"Pen."},null,null,null,null,null,null,"-"]
[null,null,null,null,null,null,null,null,null,null,null,null,null,null,null,null,null,null,null,null,null,null,null,null,null,null,null,null,null,null,null,null,null,{"$f":"AG75","v":""},{"$f":"IF(OR(ISNUMBER(AR81),ISNUMBER(AR82),ISNUMBER(AR83),ISNUMBER(AR84)),Lire_Gain_Matches(AR81:AR84, AT81:AT84),\"\")","v":""},{"$f":"IF(OR(ISNUMBER(AR81),ISNUMBER(AR82),ISNUMBER(AR83),ISNUMBER(AR84)),SUM(AR81:AR84),\"\")","v":""},null,{"$f":"IF(AR85=\"\",\"\",AR85)","v":""},null,null,null,null,null,null,"-",null,null,null,{"$f":"IF(AI82=\"\",\"\",CONCATENATE(AI82,IF(AH82=AW83,IF(AI82=AI84,CONCATENATE(\" [ \",AJ82,\" - \",AJ84,\" ] \",IF(AK83=\"x\",N_res_MS,IF(AL82=\"\",\"\",CONCATENATE(\" (\",N_res_Diff,\" \",AL82,\" - \",AL84,\")\")))),IF(AK83=\"x\",N_res_MS,\"\")),\"\")))","v":""}]
[null,null,null,null,null,null,null,null,null,null,null,null,null,null,null,null,null,null,null,null,null,null,null,null,null,null,null,null,null,null,null,null,null,null,null,null,{"$f":"IF(ISNA(VLOOKUP(\"X\",AV81:AV84,1,FALSE)),\"\",\"X\")","v":""},null,null,null,null,null,null,null,"-",null,null,null,{"$f":"IF(AI82=\"\",\"\",IF(AI82>AI84,AH82,IF(AI84>AI82,AH84,IF(AJ82>AJ84,AH82,IF(AJ84>AJ82,AH84,IF(AL82>AL84,AH82,IF(AL84>AL82,AH84,mess_erreur_marque)))))))","v":""}]
[null,null,null,null,null,null,null,null,null,null,null,null,null,null,null,null,null,null,null,null,null,null,null,null,null,null,null,null,null,null,null,null,null,{"$f":"AG91","v":""},{"$f":"IF(OR(ISNUMBER(AR81),ISNUMBER(AR82),ISNUMBER(AR83),ISNUMBER(AR84)),Lire_Gain_Matches(AT81:AT84, AR81:AR84),\"\")","v":""},{"$f":"IF(OR(ISNUMBER(AR81),ISNUMBER(AR82),ISNUMBER(AR83),ISNUMBER(AR84)),SUM(AT81:AT84),\"\")","v":""},null,{"$f":"IF(AT85=\"\",\"\",AT85)","v":""},null,null,null,null,null,null,"-",null,null,null,{"$f":"IF(AI84=\"\",\"\",CONCATENATE(AI84,IF(AH84=AW83,IF(AI82=AI84,CONCATENATE(\" [ \",AJ84,\" -\",AJ82,\" ] \",IF(AK83=\"x\",N_res_MS,IF(AL84=\"\",\"\",CONCATENATE(\" (\",N_res_Diff,\" \",AL84,\" - \",AL82,\")\")))),IF(AK83=\"x\",N_res_MS,\"\")),\"\")))","v":""}]
[null,null,null,null,null,null,null,null,null,null,null,null,null,null,null,null,null,null,null,null,null,null,null,null,null,null,null,null,null,null,null,null,null,null,null,null,null,null,null,null,{"$f":"N_Différentiel","v":"Shoot Out"},null,null,null,"-"]
[]
[]
[null,null,null,null,null,null,null,null,null,null,null,null,null,null,null,null,null,null,null,null,null,null,null,{"$f":"N_Heure","v":"Time"},{"$f":"N_Table","v":"Table"},{"$f":"N_Arbitre","v":"Referee"},{"$f":"N_Matches","v":"Matches"},null,null,null,null,{"$f":"N_MS","v":"SD"}]
[null,null,null,null,null,null,null,null,null,null,null,null,null,null,null,null,null,null,{"$f":"N_Matches","v":"Matches"},{"$f":"N_Buts","v":"Goals"},{"$f":"N_MS","v":"SD"},{"$f":"N_Diff","v":"Pen."},null,null,null,null,null,null,"-"]
[null,null,null,null,null,null,null,null,null,null,null,null,null,null,null,null,null,{"$f":"IF(AG31=\"\",\"\",IF(AG31=R30,R32,IF(AG31=R32,R30,\"\")))","v":""},{"$f":"IF(OR(ISNUMBER(AB89),ISNUMBER(AB90),ISNUMBER(AB91),ISNUMBER(AB92)),Lire_Gain_Matches(AB89:AB92, AD89:AD92),\"\")","v":""},{"$f":"IF(OR(ISNUMBER(AB89),ISNUMBER(AB90),ISNUMBER(AB91),ISNUMBER(AB92)),SUM(AB89:AB92),\"\")","v":""},null,{"$f":"IF(AB93=\"\",\"\",AB93)","v":""},null,null,null,null,null,null,"-",null,null,null,{"$f":"IF(S90=\"\",\"\",CONCATENATE(S90,IF(R90=AG91,IF(S90=S92,CONCATENATE(\" [ \",T90,\" - \",T92,\" ] \",IF(U91=\"x\",N_res_MS,IF(V90=\"\",\"\",CONCATENATE(\" (\",N_res_Diff,\" \",V90,\" - \",V92,\")\")))),IF(U91=\"x\",N_res_MS,\"\")),\"\")))","v":""}]
[null,null,null,null,null,null,null,null,null,null,null,null,null,null,null,null,null,null,null,null,{"$f":"IF(ISNA(VLOOKUP(\"X\",AF89:AF92,1,FALSE)),\"\",\"X\")","v":""},null,null,null,null,null,null,null,"-",null,null,null,{"$f":"IF(S90=\"\",\"\",IF(S90>S92,R90,IF(S92>S90,R92,IF(T90>T92,R90,IF(T92>T90,R92,IF(V90>V92,R90,IF(V92>V90,R92,mess_erreur_marque)))))))","v":""}]
[null,null,null,null,null,null,null,{"$f":"N_Heure","v":"Time"},{"$f":"N_Table","v":"Table"},{"$f":"N_Arbitre","v":"Referee"},{"$f":"N_Matches","v":"Matches"},null,null,null,null,{"$f":"N_MS","v":"SD"},null,{"$f":"Q95","v":""},{"$f":"IF(OR(ISNUMBER(AB89),ISNUMBER(AB90),ISNUMBER(AB91),ISNUMBER(AB92)),Lire_Gain_Matches(AD89:AD92, AB89:AB92),\"\")","v":""},{"$f":"IF(OR(ISNUMBER(AB89),ISNUMBER(AB90),ISNUMBER(AB91),ISNUMBER(AB92)),SUM(AD89:AD92),\"\")","v":""},null,{"$f":"IF(AD93=\"\",\"\",AD93)","v":""},null,null,null,null,null,null,"-",null,null,null,{"$f":"IF(S92=\"\",\"\",CONCATENATE(S92,IF(R92=AG91,IF(S90=S92,CONCATENATE(\" [ \",T92,\" -\",T90,\" ] \",IF(U91=\"x\",N_res_MS,IF(V92=\"\",\"\",CONCATENATE(\" (\",N_res_Diff,\" \",V92,\" - \",V90,\")\")))),IF(U91=\"x\",N_res_MS,\"\")),\"\")))","v":""}]
[null,null,{"$f":"N_Matches","v":"Matches"},{"$f":"N_Buts","v":"Goals"},{"$f":"N_MS","v":"SD"},{"$f":"N_Diff","v":"Pen."},null,null,null,null,null,null,"-",null,null,null,null,null,null,null,null,null,null,null,{"$f":"N_Différentiel","v":"Shoot Out"},null,null,null,"-"]
[null,null,{"$f":"IF(OR(ISNUMBER(L93),ISNUMBER(L94),ISNUMBER(L95),ISNUMBER(L96)),Lire_Gain_Matches(L93:L96, N93:N96),\"\")","v":""},{"$f":"IF(OR(ISNUMBER(L93),ISNUMBER(L94),ISNUMBER(L95),ISNUMBER(L96)),SUM(L93:L96),\"\")","v":""},null,{"$f":"IF(L97=\"\",\"\",L97)","v":""},null,null,null,null,null,null,"-",null,null,null,{"$f":"IF(C94=\"\",\"\",CONCATENATE(C94,IF(B94=Q95,IF(C94=C96,CONCATENATE(\" [ \",D94,\" - \",D96,\" ] \",IF(E95=\"x\",N_res_MS,IF(F94=\"\",\"\",CONCATENATE(\" (\",N_res_Diff,\" \",F94,\" - \",F96,\")\")))),IF(E95=\"x\",N_res_MS,\"\")),\"\")))","v":""}]
[null,null,null,null,{"$f":"IF(ISNA(VLOOKUP(\"X\",P93:P96,1,FALSE)),\"\",\"X\")","v":""},null,null,null,null,null,null,null,"-",null,null,null,{"$f":"IF(C94=\"\",\"\",IF(C94>C96,B94,IF(C96>C94,B96,IF(D94>D96,B94,IF(D96>D94,B96,IF(F94>F96,B94,IF(F96>F94,B96,mess_erreur_marque)))))))","v":""},null,null,null,null,null,null,null,null,null,null,null,null,null,null,null,null,null,null,null,null,null,null,null,null,null,null,null,null,null,null,null,null,null,null,null,null,null,null,{"$f":"N_Heure","v":"Time"},{"$f":"N_Table","v":"Table"},{"$f":"N_Arbitre","v":"Referee"},{"$f":"N_Matches","v":"Matches"},null,null,null,null,{"$f":"N_MS","v":"SD"}]
[null,null,{"$f":"IF(OR(ISNUMBER(L93),ISNUMBER(L94),ISNUMBER(L95),ISNUMBER(L96)),Lire_Gain_Matches(N93:N96, L93:L96),\"\")","v":""},{"$f":"IF(OR(ISNUMBER(L93),ISNUMBER(L94),ISNUMBER(L95),ISNUMBER(L96)),SUM(N93:N96),\"\")","v":""},null,{"$f":"IF(N97=\"\",\"\",N97)","v":""},null,null,null,null,null,null,"-",null,null,null,{"$f":"IF(C96=\"\",\"\",CONCATENATE(C96,IF(B96=Q95,IF(C94=C96,CONCATENATE(\" [ \",D96,\" -\",D94,\" ] \",IF(E95=\"x\",N_res_MS,IF(F96=\"\",\"\",CONCATENATE(\" (\",N_res_Diff,\" \",F96,\" - \",F94,\")\")))),IF(E95=\"x\",N_res_MS,\"\")),\"\")))","v":""},null,null,null,null,null,null,null,null,null,null,null,null,null,null,null,null,null,null,null,null,null,null,null,null,null,null,null,null,null,null,null,null,null,{"$f":"N_Matches","v":"Matches"},{"$f":"N_Buts","v":"Goals"},{"$f":"N_MS","v":"SD"},{"$f":"N_Diff","v":"Pen."},null,null,null,null,null,null,"-"]
[null,null,null,null,null,null,null,null,{"$f":"N_Différentiel","v":"Shoot Out"},null,null,null,"-",null,null,null,null,null,null,null,null,null,null,null,null,null,null,null,null,null,null,null,null,null,null,null,null,null,null,null,null,null,null,null,null,null,null,null,null,{"$f":"AW83","v":""},{"$f":"IF(OR(ISNUMBER(BH96),ISNUMBER(BH97),ISNUMBER(BH98),ISNUMBER(BH99)),Lire_Gain_Matches(BH96:BH99, BJ96:BJ99),\"\")","v":""},{"$f":"IF(OR(ISNUMBER(BH96),ISNUMBER(BH97),ISNUMBER(BH98),ISNUMBER(BH99)),SUM(BH96:BH99),\"\")","v":""},null,{"$f":"IF(BH100=\"\",\"\",BH100)","v":""},null,null,null,null,null,null,"-",null,null,null,{"$f":"IF(AY97=\"\",\"\",CONCATENATE(AY97,IF(AX97=BM98,IF(AY97=AY99,CONCATENATE(\" [ \",AZ97,\" - \",AZ99,\" ] \",IF(BA98=\"x\",N_res_MS,IF(BB97=\"\",\"\",CONCATENATE(\" (\",N_res_Diff,\" \",BB97,\" - \",BB99,\")\")))),IF(BA98=\"x\",N_res_MS,\"\")),\"\")))","v":""}]
[null,null,null,null,null,null,null,null,null,null,null,null,null,null,null,null,null,null,null,null,null,null,null,null,null,null,null,null,null,null,null,null,null,null,null,null,null,null,null,null,null,null,null,null,null,null,null,null,null,null,null,null,{"$f":"IF(ISNA(VLOOKUP(\"X\",BL96:BL99,1,FALSE)),\"\",\"X\")","v":""},null,null,null,null,null,null,null,"-",null,null,null,{"$f":"IF(AY97=\"\",\"\",IF(AY97>AY99,AX97,IF(AY99>AY97,AX99,IF(AZ97>AZ99,AX97,IF(AZ99>AZ97,AX99,IF(BB97>BB99,AX97,IF(BB99>BB97,AX99,mess_erreur_marque)))))))","v":""}]
[null,null,null,null,null,null,null,null,null,null,null,null,null,null,null,null,null,null,null,null,null,null,null,null,null,null,null,null,null,null,null,null,null,null,null,null,null,null,null,null,null,null,null,null,null,null,null,null,null,{"$f":"AW114","v":""},{"$f":"IF(OR(ISNUMBER(BH96),ISNUMBER(BH97),ISNUMBER(BH98),ISNUMBER(BH99)),Lire_Gain_Matches(BJ96:BJ99, BH96:BH99),\"\")","v":""},{"$f":"IF(OR(ISNUMBER(BH96),ISNUMBER(BH97),ISNUMBER(BH98),ISNUMBER(BH99)),SUM(BJ96:BJ99),\"\")","v":""},null,{"$f":"IF(BJ100=\"\",\"\",BJ100)","v":""},null,null,null,null,null,null,"-",null,null,null,{"$f":"IF(AY99=\"\",\"\",CONCATENATE(AY99,IF(AX99=BM98,IF(AY97=AY99,CONCATENATE(\" [ \",AZ99,\" -\",AZ97,\" ] \",IF(BA98=\"x\",N_res_MS,IF(BB99=\"\",\"\",CONCATENATE(\" (\",N_res_Diff,\" \",BB99,\" - \",BB97,\")\")))),IF(BA98=\"x\",N_res_MS,\"\")),\"\")))","v":""}]
[null,null,null,null,null,null,null,null,null,null,null,null,null,null,null,null,null,null,null,null,null,null,null,null,null,null,null,null,null,null,null,null,null,null,null,null,null,null,null,null,null,null,null,null,null,null,null,null,null,null,null,null,null,null,null,null,{"$f":"N_Différentiel","v":"Shoot Out"},null,null,null,"-"]
[]
[]
[null,null,null,null,null,null,null,null,null,null,null,null,null,null,null,null,null,null,null,null,null,null,null,{"$f":"N_Heure","v":"Time"},{"$f":"N_Table","v":"Table"},{"$f":"N_Arbitre","v":"Referee"},{"$f":"N_Matches","v":"Matches"},null,null,null,null,{"$f":"N_MS","v":"SD"}]
[null,null,null,null,null,null,null,null,null,null,null,null,null,null,null,null,null,null,{"$f":"N_Matches","v":"Matches"},{"$f":"N_Buts","v":"Goals"},{"$f":"N_MS","v":"SD"},{"$f":"N_Diff","v":"Pen."},null,null,null,null,null,null,"-"]
[null,null,null,null,null,null,null,null,null,null,null,null,null,null,null,null,null,null,{"$f":"IF(OR(ISNUMBER(AB104),ISNUMBER(AB105),ISNUMBER(AB106),ISNUMBER(AB107)),Lire_Gain_Matches(AB104:AB107, AD104:AD107),\"\")","v":""},{"$f":"IF(OR(ISNUMBER(AB104),ISNUMBER(AB105),ISNUMBER(AB106),ISNUMBER(AB107)),SUM(AB104:AB107),\"\")","v":""},null,{"$f":"IF(AB108=\"\",\"\",AB108)","v":""},null,null,null,null,null,null,"-",null,null,null,{"$f":"IF(S105=\"\",\"\",CONCATENATE(S105,IF(R105=AG106,IF(S105=S107,CONCATENATE(\" [ \",T105,\" - \",T107,\" ] \",IF(U106=\"x\",N_res_MS,IF(V105=\"\",\"\",CONCATENATE(\" (\",N_res_Diff,\" \",V105,\" - \",V107,\")\")))),IF(U106=\"x\",N_res_MS,\"\")),\"\")))","v":""}]
[null,null,null,null,null,null,null,null,null,null,null,null,null,null,null,null,null,null,null,null,{"$f":"IF(ISNA(VLOOKUP(\"X\",AF104:AF107,1,FALSE)),\"\",\"X\")","v":""},null,null,null,null,null,null,null,"-",null,null,null,{"$f":"IF(S105=\"\",\"\",IF(S105>S107,R105,IF(S107>S105,R107,IF(T105>T107,R105,IF(T107>T105,R107,IF(V105>V107,R105,IF(V107>V105,R107,mess_erreur_marque)))))))","v":""}]
[null,null,null,null,null,null,null,{"$f":"N_Heure","v":"Time"},{"$f":"N_Table","v":"Table"},{"$f":"N_Arbitre","v":"Referee"},{"$f":"N_Matches","v":"Matches"},null,null,null,null,{"$f":"N_MS","v":"SD"},null,{"$f":"Q110","v":""},{"$f":"IF(OR(ISNUMBER(AB104),ISNUMBER(AB105),ISNUMBER(AB106),ISNUMBER(AB107)),Lire_Gain_Matches(AD104:AD107, AB104:AB107),\"\")","v":""},{"$f":"IF(OR(ISNUMBER(AB104),ISNUMBER(AB105),ISNUMBER(AB106),ISNUMBER(AB107)),SUM(AD104:AD107),\"\")","v":""},null,{"$f":"IF(AD108=\"\",\"\",AD108)","v":""},null,null,null,null,null,null,"-",null,null,null,{"$f":"IF(S107=\"\",\"\",CONCATENATE(S107,IF(R107=AG106,IF(S105=S107,CONCATENATE(\" [ \",T107,\" -\",T105,\" ] \",IF(U106=\"x\",N_res_MS,IF(V107=\"\",\"\",CONCATENATE(\" (\",N_res_Diff,\" \",V107,\" - \",V105,\")\")))),IF(U106=\"x\",N_res_MS,\"\")),\"\")))","v":""}]
[null,null,{"$f":"N_Matches","v":"Matches"},{"$f":"N_Buts","v":"Goals"},{"$f":"N_MS","v":"SD"},{"$f":"N_Diff","v":"Pen."},null,null,null,null,null,null,"-",null,null,null,null,null,null,null,null,null,null,null,{"$f":"N_Différentiel","v":"Shoot Out"},null,null,null,"-"]
[null,null,{"$f":"IF(OR(ISNUMBER(L108),ISNUMBER(L109),ISNUMBER(L110),ISNUMBER(L111)),Lire_Gain_Matches(L108:L111, N108:N111),\"\")","v":""},{"$f":"IF(OR(ISNUMBER(L108),ISNUMBER(L109),ISNUMBER(L110),ISNUMBER(L111)),SUM(L108:L111),\"\")","v":""},null,{"$f":"IF(L112=\"\",\"\",L112)","v":""},null,null,null,null,null,null,"-",null,null,null,{"$f":"IF(C109=\"\",\"\",CONCATENATE(C109,IF(B109=Q110,IF(C109=C111,CONCATENATE(\" [ \",D109,\" - \",D111,\" ] \",IF(E110=\"x\",N_res_MS,IF(F109=\"\",\"\",CONCATENATE(\" (\",N_res_Diff,\" \",F109,\" - \",F111,\")\")))),IF(E110=\"x\",N_res_MS,\"\")),\"\")))","v":""}]
[null,null,null,null,{"$f":"IF(ISNA(VLOOKUP(\"X\",P108:P111,1,FALSE)),\"\",\"X\")","v":""},null,null,null,null,null,null,null,"-",null,null,null,{"$f":"IF(C109=\"\",\"\",IF(C109>C111,B109,IF(C111>C109,B111,IF(D109>D111,B109,IF(D111>D109,B111,IF(F109>F111,B109,IF(F111>F109,B111,mess_erreur_marque)))))))","v":""}]
[null,{"$f":"IF(Q66=\"\",\"\",IF(Q66=B65,B67,IF(Q66=B67,B65,\"\")))","v":""},{"$f":"IF(OR(ISNUMBER(L108),ISNUMBER(L109),ISNUMBER(L110),ISNUMBER(L111)),Lire_Gain_Matches(N108:N111, L108:L111),\"\")","v":""},{"$f":"IF(OR(ISNUMBER(L108),ISNUMBER(L109),ISNUMBER(L110),ISNUMBER(L111)),SUM(N108:N111),\"\")","v":""},null,{"$f":"IF(N112=\"\",\"\",N112)","v":""},null,null,null,null,null,null,"-",null,null,null,{"$f":"IF(C111=\"\",\"\",CONCATENATE(C111,IF(B111=Q110,IF(C109=C111,CONCATENATE(\" [ \",D111,\" -\",D109,\" ] \",IF(E110=\"x\",N_res_MS,IF(F111=\"\",\"\",CONCATENATE(\" (\",N_res_Diff,\" \",F111,\" - \",F109,\")\")))),IF(E110=\"x\",N_res_MS,\"\")),\"\")))","v":""},null,null,null,null,null,null,null,null,null,null,null,null,null,null,null,null,null,null,null,null,null,null,{"$f":"N_Heure","v":"Time"},{"$f":"N_Table","v":"Table"},{"$f":"N_Arbitre","v":"Referee"},{"$f":"N_Matches","v":"Matches"},null,null,null,null,{"$f":"N_MS","v":"SD"}]
[null,null,null,null,null,null,null,null,{"$f":"N_Différentiel","v":"Shoot Out"},null,null,null,"-",null,null,null,null,null,null,null,null,null,null,null,null,null,null,null,null,null,null,null,null,null,{"$f":"N_Matches","v":"Matches"},{"$f":"N_Buts","v":"Goals"},{"$f":"N_MS","v":"SD"},{"$f":"N_Diff","v":"Pen."},null,null,null,null,null,null,"-"]
[null,null,null,null,null,null,null,null,null,null,null,null,null,null,null,null,null,null,null,null,null,null,null,null,null,null,null,null,null,null,null,null,null,{"$f":"AG106","v":""},{"$f":"IF(OR(ISNUMBER(AR112),ISNUMBER(AR113),ISNUMBER(AR114),ISNUMBER(AR115)),Lire_Gain_Matches(AR112:AR115, AT112:AT115),\"\")","v":""},{"$f":"IF(OR(ISNUMBER(AR112),ISNUMBER(AR113),ISNUMBER(AR114),ISNUMBER(AR115)),SUM(AR112:AR115),\"\")","v":""},null,{"$f":"IF(AR116=\"\",\"\",AR116)","v":""},null,null,null,null,null,null,"-",null,null,null,{"$f":"IF(AI113=\"\",\"\",CONCATENATE(AI113,IF(AH113=AW114,IF(AI113=AI115,CONCATENATE(\" [ \",AJ113,\" - \",AJ115,\" ] \",IF(AK114=\"x\",N_res_MS,IF(AL113=\"\",\"\",CONCATENATE(\" (\",N_res_Diff,\" \",AL113,\" - \",AL115,\")\")))),IF(AK114=\"x\",N_res_MS,\"\")),\"\")))","v":""}]
[null,null,null,null,null,null,null,null,null,null,null,null,null,null,null,null,null,null,null,null,null,null,null,null,null,null,null,null,null,null,null,null,null,null,null,null,{"$f":"IF(ISNA(VLOOKUP(\"X\",AV112:AV115,1,FALSE)),\"\",\"X\")","v":""},null,null,null,null,null,null,null,"-",null,null,null,{"$f":"IF(AI113=\"\",\"\",IF(AI113>AI115,AH113,IF(AI115>AI113,AH115,IF(AJ113>AJ115,AH113,IF(AJ115>AJ113,AH115,IF(AL113>AL115,AH113,IF(AL115>AL113,AH115,mess_erreur_marque)))))))","v":""}]
[null,null,null,null,null,null,null,null,null,null,null,null,null,null,null,null,null,null,null,null,null,null,null,null,null,null,null,null,null,null,null,null,null,{"$f":"AG122","v":""},{"$f":"IF(OR(ISNUMBER(AR112),ISNUMBER(AR113),ISNUMBER(AR114),ISNUMBER(AR115)),Lire_Gain_Matches(AT112:AT115, AR112:AR115),\"\")","v":""},{"$f":"IF(OR(ISNUMBER(AR112),ISNUMBER(AR113),ISNUMBER(AR114),ISNUMBER(AR115)),SUM(AT112:AT115),\"\")","v":""},null,{"$f":"IF(AT116=\"\",\"\",AT116)","v":""},null,null,null,null,null,null,"-",null,null,null,{"$f":"IF(AI115=\"\",\"\",CONCATENATE(AI115,IF(AH115=AW114,IF(AI113=AI115,CONCATENATE(\" [ \",AJ115,\" -\",AJ113,\" ] \",IF(AK114=\"x\",N_res_MS,IF(AL115=\"\",\"\",CONCATENATE(\" (\",N_res_Diff,\" \",AL115,\" - \",AL113,\")\")))),IF(AK114=\"x\",N_res_MS,\"\")),\"\")))","v":""}]
[null,null,null,null,null,null,null,null,null,null,null,null,null,null,null,null,null,null,null,null,null,null,null,null,null,null,null,null,null,null,null,null,null,null,null,null,null,null,null,null,{"$f":"N_Différentiel","v":"Shoot Out"},null,null,null,"-",null,null,null,null,"Petite Finale"]
[null,null,null,null,null,null,null,null,null,null,null,null,null,null,null,null,null,null,null,null,null,null,null,null,null,null,null,null,null,null,null,null,null,null,null,null,null,null,null,null,null,null,null,null,null,null,null,null,null,null,null,null,null,null,null,{"$f":"N_Heure","v":"Time"},{"$f":"N_Table","v":"Table"},{"$f":"N_Arbitre","v":"Referee"},{"$f":"N_Matches","v":"Matches"},null,null,null,null,{"$f":"N_MS","v":"SD"}]
[null,null,null,null,null,null,null,null,null,null,null,null,null,null,null,null,null,null,null,null,null,null,null,null,null,null,null,null,null,null,null,null,null,null,null,null,null,null,null,null,null,null,null,null,null,null,null,null,null,null,{"$f":"N_Matches","v":"Matches"},{"$f":"N_Buts","v":"Goals"},{"$f":"N_MS","v":"SD"},{"$f":"N_Diff","v":"Pen."},null,null,null,null,null,null,"-"]
[null,null,null,null,null,null,null,null,null,null,null,null,null,null,null,null,null,null,null,null,null,null,null,{"$f":"N_Heure","v":"Time"},{"$f":"N_Table","v":"Table"},{"$f":"N_Arbitre","v":"Referee"},{"$f":"N_Matches","v":"Matches"},null,null,null,null,{"$f":"N_MS","v":"SD"},null,null,null,null,null,null,null,null,null,null,null,null,null,null,null,null,null,{"$f":"IF(AW83=AH82,AH84,AH82)","v":""},{"$f":"IF(OR(ISNUMBER(BH118),ISNUMBER(BH119),ISNUMBER(BH120),ISNUMBER(BH121)),Lire_Gain_Matches(BH118:BH121, BJ118:BJ121),\"\")","v":""},{"$f":"IF(OR(ISNUMBER(BH118),ISNUMBER(BH119),ISNUMBER(BH120),ISNUMBER(BH121)),SUM(BH118:BH121),\"\")","v":""},null,{"$f":"IF(BH122=\"\",\"\",BH122)","v":""},null,null,null,null,null,null,"-",null,null,null,{"$f":"IF(AY119=\"\",\"\",CONCATENATE(AY119,IF(AX119=BM120,IF(AY119=AY121,CONCATENATE(\" [ \",AZ119,\" - \",AZ121,\" ] \",IF(BA120=\"x\",N_res_MS,IF(BB119=\"\",\"\",CONCATENATE(\" (\",N_res_Diff,\" \",BB119,\" - \",BB121,\")\")))),IF(BA120=\"x\",N_res_MS,\"\")),\"\")))","v":""}]
[null,null,null,null,null,null,null,null,null,null,null,null,null,null,null,null,null,null,{"$f":"N_Matches","v":"Matches"},{"$f":"N_Buts","v":"Goals"},{"$f":"N_MS","v":"SD"},{"$f":"N_Diff","v":"Pen."},null,null,null,null,null,null,"-",null,null,null,null,null,null,null,null,null,null,null,null,null,null,null,null,null,null,null,null,null,null,null,{"$f":"IF(ISNA(VLOOKUP(\"X\",BL118:BL121,1,FALSE)),\"\",\"X\")","v":""},null,null,null,null,null,null,null,"-",null,null,null,{"$f":"IF(AY119=\"\",\"\",IF(AY119>AY121,AX119,IF(AY121>AY119,AX121,IF(AZ119>AZ121,AX119,IF(AZ121>AZ119,AX121,IF(BB119>BB121,AX119,IF(BB121>BB119,AX121,mess_erreur_marque)))))))","v":""}]
[null,null,null,null,null,null,null,null,null,null,null,null,null,null,null,null,null,{"$f":"IF(AG62=\"\",\"\",IF(AG62=R61,R63,IF(AG62=R63,R61,\"\")))","v":""},{"$f":"IF(OR(ISNUMBER(AB120),ISNUMBER(AB121),ISNUMBER(AB122),ISNUMBER(AB123)),Lire_Gain_Matches(AB120:AB123, AD120:AD123),\"\")","v":""},{"$f":"IF(OR(ISNUMBER(AB120),ISNUMBER(AB121),ISNUMBER(AB122),ISNUMBER(AB123)),SUM(AB120:AB123),\"\")","v":""},null,{"$f":"IF(AB124=\"\",\"\",AB124)","v":""},null,null,null,null,null,null,"-",null,null,null,{"$f":"IF(S121=\"\",\"\",CONCATENATE(S121,IF(R121=AG122,IF(S121=S123,CONCATENATE(\" [ \",T121,\" - \",T123,\" ] \",IF(U122=\"x\",N_res_MS,IF(V121=\"\",\"\",CONCATENATE(\" (\",N_res_Diff,\" \",V121,\" - \",V123,\")\")))),IF(U122=\"x\",N_res_MS,\"\")),\"\")))","v":""},null,null,null,null,null,null,null,null,null,null,null,null,null,null,null,null,{"$f":"IF(AW114=AH113,AH115,AH113)","v":""},{"$f":"IF(OR(ISNUMBER(BH118),ISNUMBER(BH119),ISNUMBER(BH120),ISNUMBER(BH121)),Lire_Gain_Matches(BJ118:BJ121, BH118:BH121),\"\")","v":""},{"$f":"IF(OR(ISNUMBER(BH118),ISNUMBER(BH119),ISNUMBER(BH120),ISNUMBER(BH121)),SUM(BJ118:BJ121),\"\")","v":""},null,{"$f":"IF(BJ122=\"\",\"\",BJ122)","v":""},null,null,null,null,null,null,"-",null,null,null,{"$f":"IF(AY121=\"\",\"\",CONCATENATE(AY121,IF(AX121=BM120,IF(AY119=AY121,CONCATENATE(\" [ \",AZ121,\" -\",AZ119,\" ] \",IF(BA120=\"x\",N_res_MS,IF(BB121=\"\",\"\",CONCATENATE(\" (\",N_res_Diff,\" \",BB121,\" - \",BB119,\")\")))),IF(BA120=\"x\",N_res_MS,\"\")),\"\")))","v":""}]
[null,null,null,null,null,null,null,null,null,null,null,null,null,null,null,null,null,null,null,null,{"$f":"IF(ISNA(VLOOKUP(\"X\",AF120:AF123,1,FALSE)),\"\",\"X\")","v":""},null,null,null,null,null,null,null,"-",null,null,null,{"$f":"IF(S121=\"\",\"\",IF(S121>S123,R121,IF(S123>S121,R123,IF(T121>T123,R121,IF(T123>T121,R123,IF(V121>V123,R121,IF(V123>V121,R123,mess_erreur_marque)))))))","v":""},null,null,null,null,null,null,null,null,null,null,null,null,null,null,null,null,null,null,null,null,null,null,null,{"$f":"N_Différentiel","v":"Shoot Out"},null,null,null,"-"]
[null,null,null,null,null,null,null,{"$f":"N_Heure","v":"Time"},{"$f":"N_Table","v":"Table"},{"$f":"N_Arbitre","v":"Referee"},{"$f":"N_Matches","v":"Matches"},null,null,null,null,{"$f":"N_MS","v":"SD"},null,{"$f":"Q126","v":""},{"$f":"IF(OR(ISNUMBER(AB120),ISNUMBER(AB121),ISNUMBER(AB122),ISNUMBER(AB123)),Lire_Gain_Matches(AD120:AD123, AB120:AB123),\"\")","v":""},{"$f":"IF(OR(ISNUMBER(AB120),ISNUMBER(AB121),ISNUMBER(AB122),ISNUMBER(AB123)),SUM(AD120:AD123),\"\")","v":""},null,{"$f":"IF(AD124=\"\",\"\",AD124)","v":""},null,null,null,null,null,null,"-",null,null,null,{"$f":"IF(S123=\"\",\"\",CONCATENATE(S123,IF(R123=AG122,IF(S121=S123,CONCATENATE(\" [ \",T123,\" -\",T121,\" ] \",IF(U122=\"x\",N_res_MS,IF(V123=\"\",\"\",CONCATENATE(\" (\",N_res_Diff,\" \",V123,\" - \",V121,\")\")))),IF(U122=\"x\",N_res_MS,\"\")),\"\")))","v":""}]
[null,null,{"$f":"N_Matches","v":"Matches"},{"$f":"N_Buts","v":"Goals"},{"$f":"N_MS","v":"SD"},{"$f":"N_Diff","v":"Pen."},null,null,null,null,null,null,"-",null,null,null,null,null,null,null,null,null,null,null,{"$f":"N_Différentiel","v":"Shoot Out"},null,null,null,"-"]
[null,{"$f":"IF(Q58=\"\",\"\",IF(Q58=B57,B59,IF(Q58=B59,B57,\"\")))","v":""},{"$f":"IF(OR(ISNUMBER(L124),ISNUMBER(L125),ISNUMBER(L126),ISNUMBER(L127)),Lire_Gain_Matches(L124:L127, N124:N127),\"\")","v":""},{"$f":"IF(OR(ISNUMBER(L124),ISNUMBER(L125),ISNUMBER(L126),ISNUMBER(L127)),SUM(L124:L127),\"\")","v":""},null,{"$f":"IF(L128=\"\",\"\",L128)","v":""},null,null,null,null,null,null,"-",null,null,null,{"$f":"IF(C125=\"\",\"\",CONCATENATE(C125,IF(B125=Q126,IF(C125=C127,CONCATENATE(\" [ \",D125,\" - \",D127,\" ] \",IF(E126=\"x\",N_res_MS,IF(F125=\"\",\"\",CONCATENATE(\" (\",N_res_Diff,\" \",F125,\" - \",F127,\")\")))),IF(E126=\"x\",N_res_MS,\"\")),\"\")))","v":""}]
[null,null,null,null,{"$f":"IF(ISNA(VLOOKUP(\"X\",P124:P127,1,FALSE)),\"\",\"X\")","v":""},null,null,null,null,null,null,null,"-",null,null,null,{"$f":"IF(C125=\"\",\"\",IF(C125>C127,B125,IF(C127>C125,B127,IF(D125>D127,B125,IF(D127>D125,B127,IF(F125>F127,B125,IF(F127>F125,B127,mess_erreur_marque)))))))","v":""}]
[null,{"$f":"IF(Q50=\"\",\"\",IF(Q50=B49,B51,IF(Q50=B51,B49,\"\")))","v":""},{"$f":"IF(OR(ISNUMBER(L124),ISNUMBER(L125),ISNUMBER(L126),ISNUMBER(L127)),Lire_Gain_Matches(N124:N127, L124:L127),\"\")","v":""},{"$f":"IF(OR(ISNUMBER(L124),ISNUMBER(L125),ISNUMBER(L126),ISNUMBER(L127)),SUM(N124:N127),\"\")","v":""},null,{"$f":"IF(N128=\"\",\"\",N128)","v":""},null,null,null,null,null,null,"-",null,null,null,{"$f":"IF(C127=\"\",\"\",CONCATENATE(C127,IF(B127=Q126,IF(C125=C127,CONCATENATE(\" [ \",D127,\" -\",D125,\" ] \",IF(E126=\"x\",N_res_MS,IF(F127=\"\",\"\",CONCATENATE(\" (\",N_res_Diff,\" \",F127,\" - \",F125,\")\")))),IF(E126=\"x\",N_res_MS,\"\")),\"\")))","v":""}]
[null,{"$f":"IF(BO45=\"\",\"\",VLOOKUP(BO45,Equipes,2,FALSE))","v":""},null,null,null,null,null,null,null,null,null,null,"-"]

{"sheet":"Dble by Sel. Match","index":26,"n_rows":66,"n_cols":69,"rows_kept":66,"cut":false,"hidden":true,"merged":[[5,1,5,5],[7,10,7,14],[5,17,5,21],[5,58,5,62],[5,49,5,53],[5,42,5,46],[50,42,50,46],[40,65,40,68],[5,33,5,37],[15,10,15,14],[23,10,23,14],[38,10,38,14],[31,10,31,14],[46,10,46,14],[27,26,27,30],[42,26,42,30],[34,58,34,62],[19,42,19,46],[11,26,11,30],[62,10,62,14],[58,26,58,30],[56,58,56,62],[54,49,54,53],[54,58,54,62],[54,10,54,14]]}
[]
[]
[]
[]
[]
[null,{"$f":"N__1_8_DE_FINALE","v":"LAST 16"},null,null,null,null,null,null,null,null,null,null,null,null,null,null,null,{"$f":"N_QUART_DE_FINALE","v":"LAST 8"},null,null,null,null,null,null,null,null,null,null,null,null,null,null,null,{"$f":"N_DEMI_FINALE","v":"SEMI FINAL"},null,null,null,null,null,null,null,null,null,null,null,null,null,null,null,{"$f":"N_FINALE","v":"FINAL"}]
[]
[null,null,{"$f":"N_Matches","v":"Matches"},{"$f":"N_Buts","v":"Goals"},{"$f":"N_MS","v":"SD"},{"$f":"N_Diff","v":"Pen."},null,{"$f":"N_Heure","v":"Time"},{"$f":"N_Table","v":"Table"},{"$f":"N_Arbitre","v":"Referee"},{"$f":"N_Matches","v":"Matches"},null,null,null,null,{"$f":"N_MS","v":"SD"}]
[null,"Db1",{"$f":"IF(OR(,ISNUMBER(L9),ISNUMBER(L10)),Lire_Gain_Matches(L9:L10, N9:N10),\"\")","v":""},{"$f":"IF(OR(ISNUMBER(L9),ISNUMBER(L10)),SUM(L9:L10),\"\")","v":""},null,{"$f":"IF(L11=\"\",\"\",L11)","v":""},null,null,null,null,null,null,null,null,null,null,{"$f":"IF(C9=\"\",\"\",CONCATENATE(C9,IF(B9=Q10,IF(C9=C11,CONCATENATE(\" [ \",D9,\" - \",D11,\" ] \",IF(E10=\"x\",N_res_MS,IF(F9=\"\",\"\",CONCATENATE(\" (\",N_res_Diff,\" \",F9,\" - \",F11,\")\")))),IF(E10=\"x\",N_res_MS,\"\")),\"\")))","v":""}]
[null,null,null,null,{"$f":"IF(ISNA(VLOOKUP(\"X\",P9:P10,1,FALSE)),\"\",\"x\")","v":""},null,null,null,null,null,null,null,null,null,null,null,{"$f":"IF(C9=\"\",\"\",IF(C9>C11,B9,IF(C11>C9,B11,IF(D9>D11,B9,IF(D11>D9,B11,IF(F9>F11,B9,IF(F11>F9,B11,mess_erreur_marque)))))))","v":""}]
[null,"Db2",{"$f":"IF(OR(ISNUMBER(L9),ISNUMBER(L10)),Lire_Gain_Matches(N9:N10, L9:L10),\"\")","v":""},{"$f":"IF(OR(ISNUMBER(L9),ISNUMBER(L10)),SUM(N9:N10),\"\")","v":""},null,{"$f":"IF(N11=\"\",\"\",N11)","v":""},null,null,{"$f":"N_Différentiel","v":"Shoot Out"},null,null,null,"-",null,null,null,{"$f":"IF(C11=\"\",\"\",CONCATENATE(C11,IF(B11=Q10,IF(C9=C11,CONCATENATE(\" [ \",D11,\" - \",D9,\" ] \",IF(E10=\"x\",N_res_MS,IF(F11=\"\",\"\",CONCATENATE(\" (\",N_res_Diff,\" \",F11,\" - \",F9,\")\")))),IF(E10=\"x\",N_res_MS,\"\")),\"\")))","v":""}]
[null,null,null,null,null,null,null,null,null,null,null,null,null,null,null,null,null,null,{"$f":"N_Matches","v":"Matches"},{"$f":"N_Buts","v":"Goals"},{"$f":"N_MS","v":"SD"},{"$f":"N_Diff","v":"Pen."},null,{"$f":"N_Heure","v":"Time"},{"$f":"N_Table","v":"Table"},{"$f":"N_Arbitre","v":"Referee"},{"$f":"N_Matches","v":"Matches"},null,null,null,null,{"$f":"N_MS","v":"SD"}]
[null,null,null,null,null,null,null,null,null,null,null,null,null,null,null,null,null,{"$f":"Q10","v":""},{"$f":"IF(OR(,ISNUMBER(AB13),ISNUMBER(AB14)),Lire_Gain_Matches(AB13:AB14, AD13:AD14),\"\")","v":""},{"$f":"IF(OR(ISNUMBER(AB13),ISNUMBER(AB14)),SUM(AB13:AB14),\"\")","v":""},null,{"$f":"IF(AB15=\"\",\"\",AB15)","v":""},null,null,null,null,null,null,null,null,null,null,{"$f":"IF(S13=\"\",\"\",CONCATENATE(S13,IF(R13=AG14,IF(S13=S15,CONCATENATE(\" [ \",T13,\" - \",T15,\" ] \",IF(U14=\"x\",N_res_MS,IF(V13=\"\",\"\",CONCATENATE(\" (\",N_res_Diff,\" \",V13,\" - \",V15,\")\")))),IF(U14=\"x\",N_res_MS,\"\")),\"\")))","v":""}]
[null,null,null,null,null,null,null,null,null,null,null,null,null,null,null,null,null,null,null,null,{"$f":"IF(ISNA(VLOOKUP(\"X\",AF13:AF14,1,FALSE)),\"\",\"X\")","v":""},null,null,null,null,null,null,null,null,null,null,null,{"$f":"IF(S13=\"\",\"\",IF(S13>S15,R13,IF(S15>S13,R15,IF(T13>T15,R13,IF(T15>T13,R15,IF(V13>V15,R13,IF(V15>V13,R15,mess_erreur_marque)))))))","v":""}]
[null,null,null,null,null,null,null,null,null,null,null,null,null,null,null,null,null,{"$f":"Q18","v":""},{"$f":"IF(OR(ISNUMBER(AB13),ISNUMBER(AB14)),Lire_Gain_Matches(AD13:AD14, AB13:AB14),\"\")","v":""},{"$f":"IF(OR(ISNUMBER(AB13),ISNUMBER(AB14)),SUM(AD13:AD14),\"\")","v":""},null,{"$f":"IF(AD15=\"\",\"\",AD15)","v":""},null,null,{"$f":"N_Différentiel","v":"Shoot Out"},null,null,null,"-",null,null,null,{"$f":"IF(S15=\"\",\"\",CONCATENATE(S15,IF(R15=AG14,IF(S13=S15,CONCATENATE(\" [ \",T15,\" - \",T13,\" ] \",IF(U14=\"x\",N_res_MS,IF(V15=\"\",\"\",CONCATENATE(\" (\",N_res_Diff,\" \",V15,\" - \",V13,\")\")))),IF(U14=\"x\",N_res_MS,\"\")),\"\")))","v":""}]
[null,null,{"$f":"N_Matches","v":"Matches"},{"$f":"N_Buts","v":"Goals"},{"$f":"N_MS","v":"SD"},{"$f":"N_Diff","v":"Pen."},null,{"$f":"N_Heure","v":"Time"},{"$f":"N_Table","v":"Table"},{"$f":"N_Arbitre","v":"Referee"},{"$f":"N_Matches","v":"Matches"},null,null,null,null,{"$f":"N_MS","v":"SD"}]
[null,null,{"$f":"IF(OR(,ISNUMBER(L17),ISNUMBER(L18)),Lire_Gain_Matches(L17:L18, N17:N18),\"\")","v":""},{"$f":"IF(OR(ISNUMBER(L17),ISNUMBER(L18)),SUM(L17:L18),\"\")","v":""},null,{"$f":"IF(L19=\"\",\"\",L19)","v":""},null,null,null,null,null,null,null,null,null,null,{"$f":"IF(C17=\"\",\"\",CONCATENATE(C17,IF(B17=Q18,IF(C17=C19,CONCATENATE(\" [ \",D17,\" - \",D19,\" ] \",IF(E18=\"x\",N_res_MS,IF(F17=\"\",\"\",CONCATENATE(\" (\",N_res_Diff,\" \",F17,\" - \",F19,\")\")))),IF(E18=\"x\",N_res_MS,\"\")),\"\")))","v":""}]
[null,null,null,null,{"$f":"IF(ISNA(VLOOKUP(\"X\",P17:P18,1,FALSE)),\"\",\"X\")","v":""},null,null,null,null,null,null,null,null,null,null,null,{"$f":"IF(C17=\"\",\"\",IF(C17>C19,B17,IF(C19>C17,B19,IF(D17>D19,B17,IF(D19>D17,B19,IF(F17>F19,B17,IF(F19>F17,B19,mess_erreur_marque)))))))","v":""}]
[null,null,{"$f":"IF(OR(ISNUMBER(L17),ISNUMBER(L18)),Lire_Gain_Matches(N17:N18, L17:L18),\"\")","v":""},{"$f":"IF(OR(ISNUMBER(L17),ISNUMBER(L18)),SUM(N17:N18),\"\")","v":""},null,{"$f":"IF(N19=\"\",\"\",N19)","v":""},null,null,{"$f":"N_Différentiel","v":"Shoot Out"},null,null,null,"-",null,null,null,{"$f":"IF(C19=\"\",\"\",CONCATENATE(C19,IF(B19=Q18,IF(C17=C19,CONCATENATE(\" [ \",D19,\" - \",D17,\" ] \",IF(E18=\"x\",N_res_MS,IF(F19=\"\",\"\",CONCATENATE(\" (\",N_res_Diff,\" \",F19,\" - \",F17,\")\")))),IF(E18=\"x\",N_res_MS,\"\")),\"\")))","v":""}]
[null,null,null,null,null,null,null,null,null,null,null,null,null,null,null,null,null,null,null,null,null,null,null,null,null,null,null,null,null,null,null,null,null,null,{"$f":"N_Matches","v":"Matches"},{"$f":"N_Buts","v":"Goals"},{"$f":"N_MS","v":"SD"},{"$f":"N_Diff","v":"Pen."},null,{"$f":"N_Heure","v":"Time"},{"$f":"N_Table","v":"Table"},{"$f":"N_Arbitre","v":"Referee"},{"$f":"N_Matches","v":"Matches"},null,null,null,null,{"$f":"N_MS","v":"SD"}]
[null,null,null,null,null,null,null,null,null,null,null,null,null,null,null,null,null,null,null,null,null,null,null,null,null,null,null,null,null,null,null,null,null,{"$f":"AG14","v":""},{"$f":"IF(OR(,ISNUMBER(AR21),ISNUMBER(AR22)),Lire_Gain_Matches(AR21:AR22, AT21:AT22),\"\")","v":""},{"$f":"IF(OR(ISNUMBER(AR21),ISNUMBER(AR22)),SUM(AR21:AR22),\"\")","v":""},null,{"$f":"IF(AR23=\"\",\"\",AR23)","v":""},null,null,null,null,null,null,null,null,null,null,{"$f":"IF(AI21=\"\",\"\",CONCATENATE(AI21,IF(AH21=AW22,IF(AI21=AI23,CONCATENATE(\" [ \",AJ21,\" - \",AJ23,\" ] \",IF(AK22=\"x\",N_res_MS,IF(AL21=\"\",\"\",CONCATENATE(\" (\",N_res_Diff,\" \",AL21,\" - \",AL23,\")\")))),IF(AK22=\"x\",N_res_MS,\"\")),\"\")))","v":""}]
[null,null,null,null,null,null,null,null,null,null,null,null,null,null,null,null,null,null,null,null,null,null,null,null,null,null,null,null,null,null,null,null,null,null,null,null,{"$f":"IF(ISNA(VLOOKUP(\"X\",AV21:AV22,1,FALSE)),\"\",\"X\")","v":""},null,null,null,null,null,null,null,null,null,null,null,{"$f":"IF(AI21=\"\",\"\",IF(AI21>AI23,AH21,IF(AI23>AI21,AH23,IF(AJ21>AJ23,AH21,IF(AJ23>AJ21,AH23,IF(AL21>AL23,AH21,IF(AL23>AL21,AH23,mess_erreur_marque)))))))","v":""}]
[null,null,null,null,null,null,null,null,null,null,null,null,null,null,null,null,null,null,null,null,null,null,null,null,null,null,null,null,null,null,null,null,null,{"$f":"AG30","v":""},{"$f":"IF(OR(ISNUMBER(AR21),ISNUMBER(AR22)),Lire_Gain_Matches(AT21:AT22, AR21:AR22),\"\")","v":""},{"$f":"IF(OR(ISNUMBER(AR21),ISNUMBER(AR22)),SUM(AT21:AT22),\"\")","v":""},null,{"$f":"IF(AT23=\"\",\"\",AT23)","v":""},null,null,{"$f":"N_Différentiel","v":"Shoot Out"},null,null,null,"-",null,null,null,{"$f":"IF(AI23=\"\",\"\",CONCATENATE(AI23,IF(AH23=AW22,IF(AI21=AI23,CONCATENATE(\" [ \",AJ23,\" - \",AJ21,\" ] \",IF(AK22=\"x\",N_res_MS,IF(AL23=\"\",\"\",CONCATENATE(\" (\",N_res_Diff,\" \",AL23,\" - \",AL21,\")\")))),IF(AK22=\"x\",N_res_MS,\"\")),\"\")))","v":""}]
[null,null,{"$f":"N_Matches","v":"Matches"},{"$f":"N_Buts","v":"Goals"},{"$f":"N_MS","v":"SD"},{"$f":"N_Diff","v":"Pen."},null,{"$f":"N_Heure","v":"Time"},{"$f":"N_Table","v":"Table"},{"$f":"N_Arbitre","v":"Referee"},{"$f":"N_Matches","v":"Matches"},null,null,null,null,{"$f":"N_MS","v":"SD"}]
[null,null,{"$f":"IF(OR(,ISNUMBER(L25),ISNUMBER(L26)),Lire_Gain_Matches(L25:L26, N25:N26),\"\")","v":""},{"$f":"IF(OR(ISNUMBER(L25),ISNUMBER(L26)),SUM(L25:L26),\"\")","v":""},null,{"$f":"IF(L27=\"\",\"\",L27)","v":""},null,null,null,null,null,null,null,null,null,null,{"$f":"IF(C25=\"\",\"\",CONCATENATE(C25,IF(B25=Q26,IF(C25=C27,CONCATENATE(\" [ \",D25,\" - \",D27,\" ] \",IF(E26=\"x\",N_res_MS,IF(F25=\"\",\"\",CONCATENATE(\" (\",N_res_Diff,\" \",F25,\" - \",F27,\")\")))),IF(E26=\"x\",N_res_MS,\"\")),\"\")))","v":""}]
[null,null,null,null,{"$f":"IF(ISNA(VLOOKUP(\"X\",P25:P26,1,FALSE)),\"\",\"X\")","v":""},null,null,null,null,null,null,null,null,null,null,null,{"$f":"IF(C25=\"\",\"\",IF(C25>C27,B25,IF(C27>C25,B27,IF(D25>D27,B25,IF(D27>D25,B27,IF(F25>F27,B25,IF(F27>F25,B27,mess_erreur_marque)))))))","v":""}]
[null,null,{"$f":"IF(OR(ISNUMBER(L25),ISNUMBER(L26)),Lire_Gain_Matches(N25:N26, L25:L26),\"\")","v":""},{"$f":"IF(OR(ISNUMBER(L25),ISNUMBER(L26)),SUM(N25:N26),\"\")","v":""},null,{"$f":"IF(N27=\"\",\"\",N27)","v":""},null,null,{"$f":"N_Différentiel","v":"Shoot Out"},null,null,null,"-",null,null,null,{"$f":"IF(C27=\"\",\"\",CONCATENATE(C27,IF(B27=Q26,IF(C25=C27,CONCATENATE(\" [ \",D27,\" - \",D25,\" ] \",IF(E26=\"x\",N_res_MS,IF(F27=\"\",\"\",CONCATENATE(\" (\",N_res_Diff,\" \",F27,\" - \",F25,\")\")))),IF(E26=\"x\",N_res_MS,\"\")),\"\")))","v":""}]
[null,null,null,null,null,null,null,null,null,null,null,null,null,null,null,null,null,null,{"$f":"N_Matches","v":"Matches"},{"$f":"N_Buts","v":"Goals"},{"$f":"N_MS","v":"SD"},{"$f":"N_Diff","v":"Pen."},null,{"$f":"N_Heure","v":"Time"},{"$f":"N_Table","v":"Table"},{"$f":"N_Arbitre","v":"Referee"},{"$f":"N_Matches","v":"Matches"},null,null,null,null,{"$f":"N_MS","v":"SD"}]
[null,null,null,null,null,null,null,null,null,null,null,null,null,null,null,null,null,{"$f":"Q26","v":""},{"$f":"IF(OR(,ISNUMBER(AB29),ISNUMBER(AB30)),Lire_Gain_Matches(AB29:AB30, AD29:AD30),\"\")","v":""},{"$f":"IF(OR(ISNUMBER(AB29),ISNUMBER(AB30)),SUM(AB29:AB30),\"\")","v":""},null,{"$f":"IF(AB31=\"\",\"\",AB31)","v":""},null,null,null,null,null,null,null,null,null,null,{"$f":"IF(S29=\"\",\"\",CONCATENATE(S29,IF(R29=AG30,IF(S29=S31,CONCATENATE(\" [ \",T29,\" - \",T31,\" ] \",IF(U30=\"x\",N_res_MS,IF(V29=\"\",\"\",CONCATENATE(\" (\",N_res_Diff,\" \",V29,\" - \",V31,\")\")))),IF(U30=\"x\",N_res_MS,\"\")),\"\")))","v":""}]
[null,null,null,null,null,null,null,null,null,null,null,null,null,null,null,null,null,null,null,null,{"$f":"IF(ISNA(VLOOKUP(\"X\",AF29:AF30,1,FALSE)),\"\",\"X\")","v":""},null,null,null,null,null,null,null,null,null,null,null,{"$f":"IF(S29=\"\",\"\",IF(S29>S31,R29,IF(S31>S29,R31,IF(T29>T31,R29,IF(T31>T29,R31,IF(V29>V31,R29,IF(V31>V29,R31,mess_erreur_marque)))))))","v":""}]
[null,null,null,null,null,null,null,null,null,null,null,null,null,null,null,null,null,{"$f":"Q34","v":""},{"$f":"IF(OR(ISNUMBER(AB29),ISNUMBER(AB30)),Lire_Gain_Matches(AD29:AD30, AB29:AB30),\"\")","v":""},{"$f":"IF(OR(ISNUMBER(AB29),ISNUMBER(AB30)),SUM(AD29:AD30),\"\")","v":""},null,{"$f":"IF(AD31=\"\",\"\",AD31)","v":""},null,null,{"$f":"N_Différentiel","v":"Shoot Out"},null,null,null,"-",null,null,null,{"$f":"IF(S31=\"\",\"\",CONCATENATE(S31,IF(R31=AG30,IF(S29=S31,CONCATENATE(\" [ \",T31,\" - \",T29,\" ] \",IF(U30=\"x\",N_res_MS,IF(V31=\"\",\"\",CONCATENATE(\" (\",N_res_Diff,\" \",V31,\" - \",V29,\")\")))),IF(U30=\"x\",N_res_MS,\"\")),\"\")))","v":""}]
[null,null,{"$f":"N_Matches","v":"Matches"},{"$f":"N_Buts","v":"Goals"},{"$f":"N_MS","v":"SD"},{"$f":"N_Diff","v":"Pen."},null,{"$f":"N_Heure","v":"Time"},{"$f":"N_Table","v":"Table"},{"$f":"N_Arbitre","v":"Referee"},{"$f":"N_Matches","v":"Matches"},null,null,null,null,{"$f":"N_MS","v":"SD"}]
[null,null,{"$f":"IF(OR(,ISNUMBER(L33),ISNUMBER(L34)),Lire_Gain_Matches(L33:L34, N33:N34),\"\")","v":""},{"$f":"IF(OR(ISNUMBER(L33),ISNUMBER(L34)),SUM(L33:L34),\"\")","v":""},null,{"$f":"IF(L35=\"\",\"\",L35)","v":""},null,null,null,null,null,null,null,null,null,null,{"$f":"IF(C33=\"\",\"\",CONCATENATE(C33,IF(B33=Q34,IF(C33=C35,CONCATENATE(\" [ \",D33,\" - \",D35,\" ] \",IF(E34=\"x\",N_res_MS,IF(F33=\"\",\"\",CONCATENATE(\" (\",N_res_Diff,\" \",F33,\" - \",F35,\")\")))),IF(E34=\"x\",N_res_MS,\"\")),\"\")))","v":""}]
[null,null,null,null,{"$f":"IF(ISNA(VLOOKUP(\"X\",P33:P34,1,FALSE)),\"\",\"X\")","v":""},null,null,null,null,null,null,null,null,null,null,null,{"$f":"IF(C33=\"\",\"\",IF(C33>C35,B33,IF(C35>C33,B35,IF(D33>D35,B33,IF(D35>D33,B35,IF(F33>F35,B33,IF(F35>F33,B35,mess_erreur_marque)))))))","v":""}]
[null,null,{"$f":"IF(OR(ISNUMBER(L33),ISNUMBER(L34)),Lire_Gain_Matches(N33:N34, L33:L34),\"\")","v":""},{"$f":"IF(OR(ISNUMBER(L33),ISNUMBER(L34)),SUM(N33:N34),\"\")","v":""},null,{"$f":"IF(N35=\"\",\"\",N35)","v":""},null,null,{"$f":"N_Différentiel","v":"Shoot Out"},null,null,null,"-",null,null,null,{"$f":"IF(C35=\"\",\"\",CONCATENATE(C35,IF(B35=Q34,IF(C33=C35,CONCATENATE(\" [ \",D35,\" - \",D33,\" ] \",IF(E34=\"x\",N_res_MS,IF(F35=\"\",\"\",CONCATENATE(\" (\",N_res_Diff,\" \",F35,\" - \",F33,\")\")))),IF(E34=\"x\",N_res_MS,\"\")),\"\")))","v":""},null,null,null,null,null,null,null,null,null,null,null,null,null,null,null,null,null,null,null,null,null,null,null,null,null,null,null,null,null,null,null,null,null,{"$f":"N_Matches","v":"Matches"},{"$f":"N_Buts","v":"Goals"},{"$f":"N_MS","v":"SD"},{"$f":"N_Diff","v":"Pen."},null,{"$f":"N_Heure","v":"Time"},{"$f":"N_Table","v":"Table"},{"$f":"N_Arbitre","v":"Referee"},{"$f":"N_Matches","v":"Matches"},null,null,null,null,{"$f":"N_MS","v":"SD"}]
[null,null,null,null,null,null,null,null,null,null,null,null,null,null,null,null,null,null,null,null,null,null,null,null,null,null,null,null,null,null,null,null,null,null,null,null,null,null,null,null,null,null,null,null,null,null,null,null,null,{"$f":"AW22","v":""},{"$f":"IF(OR(,ISNUMBER(BH36),ISNUMBER(BH37)),Lire_Gain_Matches(BH36:BH37, BJ36:BJ37),\"\")","v":""},{"$f":"IF(OR(ISNUMBER(BH36),ISNUMBER(BH37)),SUM(BH36:BH37),\"\")","v":""},null,{"$f":"IF(BH38=\"\",\"\",BH38)","v":""},null,null,null,null,null,null,null,null,null,null,{"$f":"IF(AY36=\"\",\"\",CONCATENATE(AY36,IF(AX36=BM37,IF(AY36=AY38,CONCATENATE(\" [ \",AZ36,\" - \",AZ38,\" ] \",IF(BA37=\"x\",N_res_MS,IF(BB36=\"\",\"\",CONCATENATE(\" (\",N_res_Diff,\" \",BB36,\" - \",BB38,\")\")))),IF(BA37=\"x\",N_res_MS,\"\")),\"\")))","v":""}]
[null,null,null,null,null,null,null,null,null,null,null,null,null,null,null,null,null,null,null,null,null,null,null,null,null,null,null,null,null,null,null,null,null,null,null,null,null,null,null,null,null,null,null,null,null,null,null,null,null,null,null,null,{"$f":"IF(ISNA(VLOOKUP(\"X\",BL36:BL37,1,FALSE)),\"\",\"X\")","v":""},null,null,null,null,null,null,null,null,null,null,null,{"$f":"IF(AY36=\"\",\"\",IF(AY36>AY38,AX36,IF(AY38>AY36,AX38,IF(AZ36>AZ38,AX36,IF(AZ38>AZ36,AX38,IF(BB36>BB38,AX36,IF(BB38>BB36,AX38,mess_erreur_marque)))))))","v":""}]
[null,null,null,null,null,null,null,null,null,null,null,null,null,null,null,null,null,null,null,null,null,null,null,null,null,null,null,null,null,null,null,null,null,null,null,null,null,null,null,null,null,null,null,null,null,null,null,null,null,{"$f":"AW53","v":""},{"$f":"IF(OR(ISNUMBER(BH36),ISNUMBER(BH37)),Lire_Gain_Matches(BJ36:BJ37, BH36:BH37),\"\")","v":""},{"$f":"IF(OR(ISNUMBER(BH36),ISNUMBER(BH37)),SUM(BJ36:BJ37),\"\")","v":""},null,{"$f":"IF(BJ38=\"\",\"\",BJ38)","v":""},null,null,{"$f":"N_Différentiel","v":"Shoot Out"},null,null,null,"-",null,null,null,{"$f":"IF(AY38=\"\",\"\",CONCATENATE(AY38,IF(AX38=BM37,IF(AY36=AY38,CONCATENATE(\" [ \",AZ38,\" - \",AZ36,\" ] \",IF(BA37=\"x\",N_res_MS,IF(BB38=\"\",\"\",CONCATENATE(\" (\",N_res_Diff,\" \",BB38,\" - \",BB36,\")\")))),IF(BA37=\"x\",N_res_MS,\"\")),\"\")))","v":""}]
[null,null,{"$f":"N_Matches","v":"Matches"},{"$f":"N_Buts","v":"Goals"},{"$f":"N_MS","v":"SD"},{"$f":"N_Diff","v":"Pen."},null,{"$f":"N_Heure","v":"Time"},{"$f":"N_Table","v":"Table"},{"$f":"N_Arbitre","v":"Referee"},{"$f":"N_Matches","v":"Matches"},null,null,null,null,{"$f":"N_MS","v":"SD"}]
[null,null,{"$f":"IF(OR(,ISNUMBER(L40),ISNUMBER(L41)),Lire_Gain_Matches(L40:L41, N40:N41),\"\")","v":""},{"$f":"IF(OR(ISNUMBER(L40),ISNUMBER(L41)),SUM(L40:L41),\"\")","v":""},null,{"$f":"IF(L42=\"\",\"\",L42)","v":""},null,null,null,null,null,null,null,null,null,null,{"$f":"IF(C40=\"\",\"\",CONCATENATE(C40,IF(B40=Q41,IF(C40=C42,CONCATENATE(\" [ \",D40,\" - \",D42,\" ] \",IF(E41=\"x\",N_res_MS,IF(F40=\"\",\"\",CONCATENATE(\" (\",N_res_Diff,\" \",F40,\" - \",F42,\")\")))),IF(E41=\"x\",N_res_MS,\"\")),\"\")))","v":""}]
[null,null,null,null,{"$f":"IF(ISNA(VLOOKUP(\"X\",P40:P41,1,FALSE)),\"\",\"X\")","v":""},null,null,null,null,null,null,null,null,null,null,null,{"$f":"IF(C40=\"\",\"\",IF(C40>C42,B40,IF(C42>C40,B42,IF(D40>D42,B40,IF(D42>D40,B42,IF(F40>F42,B40,IF(F42>F40,B42,mess_erreur_marque)))))))","v":""},null,null,null,null,null,null,null,null,null,null,null,null,null,null,null,null,null,null,null,null,null,null,null,null,null,null,null,null,null,null,null,null,null,null,null,null,null,null,null,null,null,null,null,null,null,null,null,null,"PODIUM"]
[null,null,{"$f":"IF(OR(ISNUMBER(L40),ISNUMBER(L41)),Lire_Gain_Matches(N40:N41, L40:L41),\"\")","v":""},{"$f":"IF(OR(ISNUMBER(L40),ISNUMBER(L41)),SUM(N40:N41),\"\")","v":""},null,{"$f":"IF(N42=\"\",\"\",N42)","v":""},null,null,{"$f":"N_Différentiel","v":"Shoot Out"},null,null,null,"-",null,null,null,{"$f":"IF(C42=\"\",\"\",CONCATENATE(C42,IF(B42=Q41,IF(C40=C42,CONCATENATE(\" [ \",D42,\" - \",D40,\" ] \",IF(E41=\"x\",N_res_MS,IF(F42=\"\",\"\",CONCATENATE(\" (\",N_res_Diff,\" \",F42,\" - \",F40,\")\")))),IF(E41=\"x\",N_res_MS,\"\")),\"\")))","v":""}]
[null,null,null,null,null,null,null,null,null,null,null,null,null,null,null,null,null,null,{"$f":"N_Matches","v":"Matches"},{"$f":"N_Buts","v":"Goals"},{"$f":"N_MS","v":"SD"},{"$f":"N_Diff","v":"Pen."},null,{"$f":"N_Heure","v":"Time"},{"$f":"N_Table","v":"Table"},{"$f":"N_Arbitre","v":"Referee"},{"$f":"N_Matches","v":"Matches"},null,null,null,null,{"$f":"N_MS","v":"SD"},null,null,null,null,null,null,null,null,null,null,null,null,null,null,null,null,null,null,null,null,null,null,null,null,null,null,null,null,null,null,null,null,null,null,{"$f":"BM37","v":""}]
[null,null,null,null,null,null,null,null,null,null,null,null,null,null,null,null,null,{"$f":"Q41","v":""},{"$f":"IF(OR(,ISNUMBER(AB44),ISNUMBER(AB45)),Lire_Gain_Matches(AB44:AB45, AD44:AD45),\"\")","v":""},{"$f":"IF(OR(ISNUMBER(AB44),ISNUMBER(AB45)),SUM(AB44:AB45),\"\")","v":""},null,{"$f":"IF(AB46=\"\",\"\",AB46)","v":""},null,null,null,null,null,null,null,null,null,null,{"$f":"IF(S44=\"\",\"\",CONCATENATE(S44,IF(R44=AG45,IF(S44=S46,CONCATENATE(\" [ \",T44,\" - \",T46,\" ] \",IF(U45=\"x\",N_res_MS,IF(V44=\"\",\"\",CONCATENATE(\" (\",N_res_Diff,\" \",V44,\" - \",V46,\")\")))),IF(U45=\"x\",N_res_MS,\"\")),\"\")))","v":""},null,null,null,null,null,null,null,null,null,null,null,null,null,null,null,null,null,null,null,null,null,null,null,null,null,null,null,null,null,null,null,null,{"$f":"IF(BM37=AX36,AX38,AX36)","v":""},{"$f":"IF(BO43=\"\",\"\",VLOOKUP(BO43,Equipes,2,FALSE))","v":""}]
[null,null,null,null,null,null,null,null,null,null,null,null,null,null,null,null,null,null,null,null,{"$f":"IF(ISNA(VLOOKUP(\"X\",AF44:AF45,1,FALSE)),\"\",\"X\")","v":""},null,null,null,null,null,null,null,null,null,null,null,{"$f":"IF(S44=\"\",\"\",IF(S44>S46,R44,IF(S46>S44,R46,IF(T44>T46,R44,IF(T46>T44,R46,IF(V44>V46,R44,IF(V46>V44,R46,mess_erreur_marque)))))))","v":""},null,null,null,null,null,null,null,null,null,null,null,null,null,null,null,null,null,null,null,null,null,null,null,null,null,null,null,null,null,null,null,null,{"$f":"IF(BN44=\"\",\"\",VLOOKUP(BN44,Equipes,2,FALSE))","v":""},{"$f":"IF(BO43=\"\",\"\",VLOOKUP(BO43,Equipes,3,FALSE))","v":""},{"$f":"BM59","v":""}]
[null,null,null,null,null,null,null,null,null,null,null,null,null,null,null,null,null,{"$f":"Q49","v":""},{"$f":"IF(OR(ISNUMBER(AB44),ISNUMBER(AB45)),Lire_Gain_Matches(AD44:AD45, AB44:AB45),\"\")","v":""},{"$f":"IF(OR(ISNUMBER(AB44),ISNUMBER(AB45)),SUM(AD44:AD45),\"\")","v":""},null,{"$f":"IF(AD46=\"\",\"\",AD46)","v":""},null,null,{"$f":"N_Différentiel","v":"Shoot Out"},null,null,null,"-",null,null,null,{"$f":"IF(S46=\"\",\"\",CONCATENATE(S46,IF(R46=AG45,IF(S44=S46,CONCATENATE(\" [ \",T46,\" - \",T44,\" ] \",IF(U45=\"x\",N_res_MS,IF(V46=\"\",\"\",CONCATENATE(\" (\",N_res_Diff,\" \",V46,\" - \",V44,\")\")))),IF(U45=\"x\",N_res_MS,\"\")),\"\")))","v":""},null,null,null,null,null,null,null,null,null,null,null,null,null,null,null,null,null,null,null,null,null,null,null,null,null,null,null,null,null,null,null,null,{"$f":"IF(BN45=\"\",\"\",VLOOKUP(BN45,Equipes,3,FALSE))","v":""},null,{"$f":"IF(BP45=\"\",\"\",VLOOKUP(BP45,Equipes,2,FALSE))","v":""},{"$f":"IF(BM59=AX58,AX60,AX58)","v":""}]
[null,null,{"$f":"N_Matches","v":"Matches"},{"$f":"N_Buts","v":"Goals"},{"$f":"N_MS","v":"SD"},{"$f":"N_Diff","v":"Pen."},null,{"$f":"N_Heure","v":"Time"},{"$f":"N_Table","v":"Table"},{"$f":"N_Arbitre","v":"Referee"},{"$f":"N_Matches","v":"Matches"},null,null,null,null,{"$f":"N_MS","v":"SD"},null,null,null,null,null,null,null,null,null,null,null,null,null,null,null,null,null,null,null,null,null,null,null,null,null,null,null,null,null,null,null,null,null,null,null,null,null,null,null,null,null,null,null,null,null,null,null,null,null,null,null,{"$f":"IF(BP45=\"\",\"\",VLOOKUP(BP45,Equipes,3,FALSE))","v":""},{"$f":"IF(BQ46=\"\",\"\",VLOOKUP(BQ46,Equipes,2,FALSE))","v":""}]
[null,null,{"$f":"IF(OR(,ISNUMBER(L48),ISNUMBER(L49)),Lire_Gain_Matches(L48:L49, N48:N49),\"\")","v":""},{"$f":"IF(OR(ISNUMBER(L48),ISNUMBER(L49)),SUM(L48:L49),\"\")","v":""},null,{"$f":"IF(L50=\"\",\"\",L50)","v":""},null,null,null,null,null,null,null,null,null,null,{"$f":"IF(C48=\"\",\"\",CONCATENATE(C48,IF(B48=Q49,IF(C48=C50,CONCATENATE(\" [ \",D48,\" - \",D50,\" ] \",IF(E49=\"x\",N_res_MS,IF(F48=\"\",\"\",CONCATENATE(\" (\",N_res_Diff,\" \",F48,\" - \",F50,\")\")))),IF(E49=\"x\",N_res_MS,\"\")),\"\")))","v":""},null,null,null,null,null,null,null,null,null,null,null,null,null,null,null,null,null,null,null,null,null,null,null,null,null,null,null,null,null,null,null,null,null,null,null,null,null,null,null,null,null,null,null,null,null,null,null,null,null,null,null,{"$f":"IF(BQ46=\"\",\"\",VLOOKUP(BQ46,Equipes,3,FALSE))","v":""}]
[null,null,null,null,{"$f":"IF(ISNA(VLOOKUP(\"X\",P48:P49,1,FALSE)),\"\",\"X\")","v":""},null,null,null,null,null,null,null,null,null,null,null,{"$f":"IF(C48=\"\",\"\",IF(C48>C50,B48,IF(C50>C48,B50,IF(D48>D50,B48,IF(D50>D48,B50,IF(F48>F50,B48,IF(F50>F48,B50,mess_erreur_marque)))))))","v":""}]
[null,null,{"$f":"IF(OR(ISNUMBER(L48),ISNUMBER(L49)),Lire_Gain_Matches(N48:N49, L48:L49),\"\")","v":""},{"$f":"IF(OR(ISNUMBER(L48),ISNUMBER(L49)),SUM(N48:N49),\"\")","v":""},null,{"$f":"IF(N50=\"\",\"\",N50)","v":""},null,null,{"$f":"N_Différentiel","v":"Shoot Out"},null,null,null,"-",null,null,null,{"$f":"IF(C50=\"\",\"\",CONCATENATE(C50,IF(B50=Q49,IF(C48=C50,CONCATENATE(\" [ \",D50,\" - \",D48,\" ] \",IF(E49=\"x\",N_res_MS,IF(F50=\"\",\"\",CONCATENATE(\" (\",N_res_Diff,\" \",F50,\" - \",F48,\")\")))),IF(E49=\"x\",N_res_MS,\"\")),\"\")))","v":""}]
[null,null,null,null,null,null,null,null,null,null,null,null,null,null,null,null,null,null,null,null,null,null,null,null,null,null,null,null,null,null,null,null,null,null,{"$f":"N_Matches","v":"Matches"},{"$f":"N_Buts","v":"Goals"},{"$f":"N_MS","v":"SD"},{"$f":"N_Diff","v":"Pen."},null,{"$f":"N_Heure","v":"Time"},{"$f":"N_Table","v":"Table"},{"$f":"N_Arbitre","v":"Referee"},{"$f":"N_Matches","v":"Matches"},null,null,null,null,{"$f":"N_MS","v":"SD"}]
[null,null,null,null,null,null,null,null,null,null,null,null,null,null,null,null,null,null,null,null,null,null,null,null,null,null,null,null,null,null,null,null,null,{"$f":"AG45","v":""},{"$f":"IF(OR(,ISNUMBER(AR52),ISNUMBER(AR53)),Lire_Gain_Matches(AR52:AR53, AT52:AT53),\"\")","v":""},{"$f":"IF(OR(ISNUMBER(AR52),ISNUMBER(AR53)),SUM(AR52:AR53),\"\")","v":""},null,{"$f":"IF(AR54=\"\",\"\",AR54)","v":""},null,null,null,null,null,null,null,null,null,null,{"$f":"IF(AI52=\"\",\"\",CONCATENATE(AI52,IF(AH52=AW53,IF(AI52=AI54,CONCATENATE(\" [ \",AJ52,\" - \",AJ54,\" ] \",IF(AK53=\"x\",N_res_MS,IF(AL52=\"\",\"\",CONCATENATE(\" (\",N_res_Diff,\" \",AL52,\" - \",AL54,\")\")))),IF(AK53=\"x\",N_res_MS,\"\")),\"\")))","v":""}]
[null,null,null,null,null,null,null,null,null,null,null,null,null,null,null,null,null,null,null,null,null,null,null,null,null,null,null,null,null,null,null,null,null,null,null,null,{"$f":"IF(ISNA(VLOOKUP(\"X\",AV52:AV53,1,FALSE)),\"\",\"X\")","v":""},null,null,null,null,null,null,null,null,null,null,null,{"$f":"IF(AI52=\"\",\"\",IF(AI52>AI54,AH52,IF(AI54>AI52,AH54,IF(AJ52>AJ54,AH52,IF(AJ54>AJ52,AH54,IF(AL52>AL54,AH52,IF(AL54>AL52,AH54,mess_erreur_marque)))))))","v":""}]
[null,null,null,null,null,null,null,null,null,null,null,null,null,null,null,null,null,null,null,null,null,null,null,null,null,null,null,null,null,null,null,null,null,{"$f":"AG61","v":""},{"$f":"IF(OR(ISNUMBER(AR52),ISNUMBER(AR53)),Lire_Gain_Matches(AT52:AT53, AR52:AR53),\"\")","v":""},{"$f":"IF(OR(ISNUMBER(AR52),ISNUMBER(AR53)),SUM(AT52:AT53),\"\")","v":""},null,{"$f":"IF(AT54=\"\",\"\",AT54)","v":""},null,null,{"$f":"N_Différentiel","v":"Shoot Out"},null,null,null,"-",null,null,null,{"$f":"IF(AI54=\"\",\"\",CONCATENATE(AI54,IF(AH54=AW53,IF(AI52=AI54,CONCATENATE(\" [ \",AJ54,\" - \",AJ52,\" ] \",IF(AK53=\"x\",N_res_MS,IF(AL54=\"\",\"\",CONCATENATE(\" (\",N_res_Diff,\" \",AL54,\" - \",AL52,\")\")))),IF(AK53=\"x\",N_res_MS,\"\")),\"\")))","v":""}]
[null,null,{"$f":"N_Matches","v":"Matches"},{"$f":"N_Buts","v":"Goals"},{"$f":"N_MS","v":"SD"},{"$f":"N_Diff","v":"Pen."},null,{"$f":"N_Heure","v":"Time"},{"$f":"N_Table","v":"Table"},{"$f":"N_Arbitre","v":"Referee"},{"$f":"N_Matches","v":"Matches"},null,null,null,null,{"$f":"N_MS","v":"SD"},null,null,null,null,null,null,null,null,null,null,null,null,null,null,null,null,null,null,null,null,null,null,null,null,null,null,null,null,null,null,null,null,null,{"$f":"N_Petite_FINALE","v":"3rd place FINAL"}]
[null,null,{"$f":"IF(OR(,ISNUMBER(L56),ISNUMBER(L57)),Lire_Gain_Matches(L56:L57, N56:N57),\"\")","v":""},{"$f":"IF(OR(ISNUMBER(L56),ISNUMBER(L57)),SUM(L56:L57),\"\")","v":""},null,{"$f":"IF(L58=\"\",\"\",L58)","v":""},null,null,null,null,null,null,null,null,null,null,{"$f":"IF(C56=\"\",\"\",CONCATENATE(C56,IF(B56=Q57,IF(C56=C58,CONCATENATE(\" [ \",D56,\" - \",D58,\" ] \",IF(E57=\"x\",N_res_MS,IF(F56=\"\",\"\",CONCATENATE(\" (\",N_res_Diff,\" \",F56,\" - \",F58,\")\")))),IF(E57=\"x\",N_res_MS,\"\")),\"\")))","v":""}]
[null,null,null,null,{"$f":"IF(ISNA(VLOOKUP(\"X\",P56:P57,1,FALSE)),\"\",\"X\")","v":""},null,null,null,null,null,null,null,null,null,null,null,{"$f":"IF(C56=\"\",\"\",IF(C56>C58,B56,IF(C58>C56,B58,IF(D56>D58,B56,IF(D58>D56,B58,IF(F56>F58,B56,IF(F58>F56,B58,mess_erreur_marque)))))))","v":""},null,null,null,null,null,null,null,null,null,null,null,null,null,null,null,null,null,null,null,null,null,null,null,null,null,null,null,null,null,null,null,null,null,{"$f":"N_Matches","v":"Matches"},{"$f":"N_Buts","v":"Goals"},{"$f":"N_MS","v":"SD"},{"$f":"N_Diff","v":"Pen."},null,{"$f":"N_Heure","v":"Time"},{"$f":"N_Table","v":"Table"},{"$f":"N_Arbitre","v":"Referee"},{"$f":"N_Matches","v":"Matches"},null,null,null,null,{"$f":"N_MS","v":"SD"}]
[null,null,{"$f":"IF(OR(ISNUMBER(L56),ISNUMBER(L57)),Lire_Gain_Matches(N56:N57, L56:L57),\"\")","v":""},{"$f":"IF(OR(ISNUMBER(L56),ISNUMBER(L57)),SUM(N56:N57),\"\")","v":""},null,{"$f":"IF(N58=\"\",\"\",N58)","v":""},null,null,{"$f":"N_Différentiel","v":"Shoot Out"},null,null,null,"-",null,null,null,{"$f":"IF(C58=\"\",\"\",CONCATENATE(C58,IF(B58=Q57,IF(C56=C58,CONCATENATE(\" [ \",D58,\" - \",D56,\" ] \",IF(E57=\"x\",N_res_MS,IF(F58=\"\",\"\",CONCATENATE(\" (\",N_res_Diff,\" \",F58,\" - \",F56,\")\")))),IF(E57=\"x\",N_res_MS,\"\")),\"\")))","v":""},null,null,null,null,null,null,null,null,null,null,null,null,null,null,null,null,null,null,null,null,null,null,null,null,null,null,null,null,null,null,null,null,{"$f":"IF(AW22=AH21,AH23,AH21)","v":""},{"$f":"IF(OR(,ISNUMBER(BH58),ISNUMBER(BH59)),Lire_Gain_Matches(BH58:BH59, BJ58:BJ59),\"\")","v":""},{"$f":"IF(OR(ISNUMBER(BH58),ISNUMBER(BH59)),SUM(BH58:BH59),\"\")","v":""},null,{"$f":"IF(BH60=\"\",\"\",BH60)","v":""},null,null,null,null,null,null,null,null,null,null,{"$f":"IF(AY58=\"\",\"\",CONCATENATE(AY58,IF(AX58=BM59,IF(AY58=AY60,CONCATENATE(\" [ \",AZ58,\" - \",AZ60,\" ] \",IF(BA59=\"x\",N_res_MS,IF(BB58=\"\",\"\",CONCATENATE(\" (\",N_res_Diff,\" \",BB58,\" - \",BB60,\")\")))),IF(BA59=\"x\",N_res_MS,\"\")),\"\")))","v":""}]
[null,null,null,null,null,null,null,null,null,null,null,null,null,null,null,null,null,null,{"$f":"N_Matches","v":"Matches"},{"$f":"N_Buts","v":"Goals"},{"$f":"N_MS","v":"SD"},{"$f":"N_Diff","v":"Pen."},null,{"$f":"N_Heure","v":"Time"},{"$f":"N_Table","v":"Table"},{"$f":"N_Arbitre","v":"Referee"},{"$f":"N_Matches","v":"Matches"},null,null,null,null,{"$f":"N_MS","v":"SD"},null,null,null,null,null,null,null,null,null,null,null,null,null,null,null,null,null,null,null,null,{"$f":"IF(ISNA(VLOOKUP(\"X\",BL58:BL59,1,FALSE)),\"\",\"X\")","v":""},null,null,null,null,null,null,null,null,null,null,null,{"$f":"IF(AY58=\"\",\"\",IF(AY58>AY60,AX58,IF(AY60>AY58,AX60,IF(AZ58>AZ60,AX58,IF(AZ60>AZ58,AX60,IF(BB58>BB60,AX58,IF(BB60>BB58,AX60,mess_erreur_marque)))))))","v":""}]
[null,null,null,null,null,null,null,null,null,null,null,null,null,null,null,null,null,{"$f":"Q57","v":""},{"$f":"IF(OR(,ISNUMBER(AB60),ISNUMBER(AB61)),Lire_Gain_Matches(AB60:AB61, AD60:AD61),\"\")","v":""},{"$f":"IF(OR(ISNUMBER(AB60),ISNUMBER(AB61)),SUM(AB60:AB61),\"\")","v":""},null,{"$f":"IF(AB62=\"\",\"\",AB62)","v":""},null,null,null,null,null,null,null,null,null,null,{"$f":"IF(S60=\"\",\"\",CONCATENATE(S60,IF(R60=AG61,IF(S60=S62,CONCATENATE(\" [ \",T60,\" - \",T62,\" ] \",IF(U61=\"x\",N_res_MS,IF(V60=\"\",\"\",CONCATENATE(\" (\",N_res_Diff,\" \",V60,\" - \",V62,\")\")))),IF(U61=\"x\",N_res_MS,\"\")),\"\")))","v":""},null,null,null,null,null,null,null,null,null,null,null,null,null,null,null,null,{"$f":"IF(AW53=AH52,AH54,AH52)","v":""},{"$f":"IF(OR(ISNUMBER(BH58),ISNUMBER(BH59)),Lire_Gain_Matches(BJ58:BJ59, BH58:BH59),\"\")","v":""},{"$f":"IF(OR(ISNUMBER(BH58),ISNUMBER(BH59)),SUM(BJ58:BJ59),\"\")","v":""},null,{"$f":"IF(BJ60=\"\",\"\",BJ60)","v":""},null,null,{"$f":"N_Différentiel","v":"Shoot Out"},null,null,null,"-",null,null,null,{"$f":"IF(AY60=\"\",\"\",CONCATENATE(AY60,IF(AX60=BM59,IF(AY58=AY60,CONCATENATE(\" [ \",AZ60,\" - \",AZ58,\" ] \",IF(BA59=\"x\",N_res_MS,IF(BB60=\"\",\"\",CONCATENATE(\" (\",N_res_Diff,\" \",BB60,\" - \",BB58,\")\")))),IF(BA59=\"x\",N_res_MS,\"\")),\"\")))","v":""}]
[null,null,null,null,null,null,null,null,null,null,null,null,null,null,null,null,null,null,null,null,{"$f":"IF(ISNA(VLOOKUP(\"X\",AF60:AF61,1,FALSE)),\"\",\"X\")","v":""},null,null,null,null,null,null,null,null,null,null,null,{"$f":"IF(S60=\"\",\"\",IF(S60>S62,R60,IF(S62>S60,R62,IF(T60>T62,R60,IF(T62>T60,R62,IF(V60>V62,R60,IF(V62>V60,R62,mess_erreur_marque)))))))","v":""}]
[null,null,null,null,null,null,null,null,null,null,null,null,null,null,null,null,null,{"$f":"Q65","v":""},{"$f":"IF(OR(ISNUMBER(AB60),ISNUMBER(AB61)),Lire_Gain_Matches(AD60:AD61, AB60:AB61),\"\")","v":""},{"$f":"IF(OR(ISNUMBER(AB60),ISNUMBER(AB61)),SUM(AD60:AD61),\"\")","v":""},null,{"$f":"IF(AD62=\"\",\"\",AD62)","v":""},null,null,{"$f":"N_Différentiel","v":"Shoot Out"},null,null,null,"-",null,null,null,{"$f":"IF(S62=\"\",\"\",CONCATENATE(S62,IF(R62=AG61,IF(S60=S62,CONCATENATE(\" [ \",T62,\" - \",T60,\" ] \",IF(U61=\"x\",N_res_MS,IF(V62=\"\",\"\",CONCATENATE(\" (\",N_res_Diff,\" \",V62,\" - \",V60,\")\")))),IF(U61=\"x\",N_res_MS,\"\")),\"\")))","v":""}]
[null,null,{"$f":"N_Matches","v":"Matches"},{"$f":"N_Buts","v":"Goals"},{"$f":"N_MS","v":"SD"},{"$f":"N_Diff","v":"Pen."},null,{"$f":"N_Heure","v":"Time"},{"$f":"N_Table","v":"Table"},{"$f":"N_Arbitre","v":"Referee"},{"$f":"N_Matches","v":"Matches"},null,null,null,null,{"$f":"N_MS","v":"SD"}]
[null,null,{"$f":"IF(OR(,ISNUMBER(L64),ISNUMBER(L65)),Lire_Gain_Matches(L64:L65, N64:N65),\"\")","v":""},{"$f":"IF(OR(ISNUMBER(L64),ISNUMBER(L65)),SUM(L64:L65),\"\")","v":""},null,{"$f":"IF(L66=\"\",\"\",L66)","v":""},null,null,null,null,null,null,null,null,null,null,{"$f":"IF(C64=\"\",\"\",CONCATENATE(C64,IF(B64=Q65,IF(C64=C66,CONCATENATE(\" [ \",D64,\" - \",D66,\" ] \",IF(E65=\"x\",N_res_MS,IF(F64=\"\",\"\",CONCATENATE(\" (\",N_res_Diff,\" \",F64,\" - \",F66,\")\")))),IF(E65=\"x\",N_res_MS,\"\")),\"\")))","v":""}]
[null,null,null,null,{"$f":"IF(ISNA(VLOOKUP(\"X\",P64:P65,1,FALSE)),\"\",\"X\")","v":""},null,null,null,null,null,null,null,null,null,null,null,{"$f":"IF(C64=\"\",\"\",IF(C64>C66,B64,IF(C66>C64,B66,IF(D64>D66,B64,IF(D66>D64,B66,IF(F64>F66,B64,IF(F66>F64,B66,mess_erreur_marque)))))))","v":""}]
[null,null,{"$f":"IF(OR(ISNUMBER(L64),ISNUMBER(L65)),Lire_Gain_Matches(N64:N65, L64:L65),\"\")","v":""},{"$f":"IF(OR(ISNUMBER(L64),ISNUMBER(L65)),SUM(N64:N65),\"\")","v":""},null,{"$f":"IF(N66=\"\",\"\",N66)","v":""},null,null,{"$f":"N_Différentiel","v":"Shoot Out"},null,null,null,"-",null,null,null,{"$f":"IF(C66=\"\",\"\",CONCATENATE(C66,IF(B66=Q65,IF(C64=C66,CONCATENATE(\" [ \",D66,\" - \",D64,\" ] \",IF(E65=\"x\",N_res_MS,IF(F66=\"\",\"\",CONCATENATE(\" (\",N_res_Diff,\" \",F66,\" - \",F64,\")\")))),IF(E65=\"x\",N_res_MS,\"\")),\"\")))","v":""}]

{"sheet":"DrawModel","index":27,"n_rows":132,"n_cols":41,"rows_kept":132,"cut":false,"hidden":true,"merged":[]}
[null,null,null,null,{"$f":"Tournament_Title","v":"<FEDERATION> <Event Name><YYYY> - <Location> - <Individuals/Teams> Competition"},null,null,null,null,null,null,null,null,null,null,null,null,null,null,null,null,null,null,null,null,null,null,null,null,null,null,null,null,null,null,null,"Nb players","Taille Gpe","Nb grpe"]
[null,null,null,null,{"$f":"N_Category","v":"Category"},null,null,"Open",null,null,null,null,null,null,null,null,null,null,null,null,null,null,null,null,null,{"$f":"IF(NationalityTrigram,4,5)","v":5},null,null,null,null,null,null,null,null,null,null,64,{"$f":"ROUNDUP(AK2/AM2,0)","v":4},16]
[null,null,null,null,null,null,null,null,null,null,null,null,null,null,{"$f":"N_Drawing","v":"Draw"},null,null,null,null,null,null,null,null,null,null,{"$f":"N_ParticipantsRanking","v":"Participants Ranking"},null,null,null,null,null,{"$f":"N_ParticipantsAlphabeticals","v":"Participants Alphabetical"}]
[null,"Group 1",null,null,"Group 2",null,null,"Group 3",null,null,"Group 4",null,null,null,"Group 1",null,null,"Group 2",null,null,"Group 3",null,null,"Group 4",null,"N°",{"$f":"N_Name","v":"Name"},{"$f":"N_Rank","v":"Rk"},{"$f":"N_Nationality","v":"Nationality"},{"$f":"N_Club","v":"Club"},null,{"$f":"N_Name","v":"Name"},{"$f":"N_Rank","v":"Rk"},{"$f":"N_Nationality","v":"Nationality"},{"$f":"N_Club","v":"Club"},null,"row","col","@"]
[1,{"$f":"IF(O5=\"\",N_ToBeDrawn,IF(VLOOKUP(O5,DrawParticipantsRankingList,2,FALSE)=\"\",N_Withdraw,VLOOKUP(O5,DrawParticipantsRankingList,2,FALSE)))","v":"Player 1"},{"$f":"IF(O5=\"\",N5,(IF(B5=N_Withdraw,\"\",VLOOKUP(O5,DrawParticipantsRankingList,NatClubColNum,FALSE))))","v":"ITA"},1,{"$f":"IF(R5=\"\",N_ToBeDrawn,IF(VLOOKUP(R5,DrawParticipantsRankingList,2,FALSE)=\"\",N_Withdraw,VLOOKUP(R5,DrawParticipantsRankingList,2,FALSE)))","v":"Player 2"},{"$f":"IF(R5=\"\",Q5,(IF(E5=N_Withdraw,\"\",VLOOKUP(R5,DrawParticipantsRankingList,NatClubColNum,FALSE))))","v":"ITA"},1,{"$f":"IF(U5=\"\",N_ToBeDrawn,IF(VLOOKUP(U5,DrawParticipantsRankingList,2,FALSE)=\"\",N_Withdraw,VLOOKUP(U5,DrawParticipantsRankingList,2,FALSE)))","v":"Player 3"},{"$f":"IF(U5=\"\",T5,(IF(H5=N_Withdraw,\"\",VLOOKUP(U5,DrawParticipantsRankingList,NatClubColNum,FALSE))))","v":"AUT"},1,{"$f":"IF(X5=\"\",N_ToBeDrawn,IF(VLOOKUP(X5,DrawParticipantsRankingList,2,FALSE)=\"\",N_Withdraw,VLOOKUP(X5,DrawParticipantsRankingList,2,FALSE)))","v":"Player 4"},{"$f":"IF(X5=\"\",W5,(IF(K5=N_Withdraw,\"\",VLOOKUP(X5,DrawParticipantsRankingList,NatClubColNum,FALSE))))","v":"ITA"},null,1,1,null,1,2,null,1,3,null,1,4,null,{"$f":"ROW(Z5)-ROW(Z$4)","v":1},"Player 1",1,"GIB","ITA",null,"Player 1",1,"GIB","ITA",null,{"$f":"QUOTIENT(Z5-1,DrawNbGroups)","v":0},{"$f":"MOD(Z5-1,DrawNbGroups)+IF(Z5<=DrawNbGroups*(DrawGroupSize-1),0,DrawNbGroups*DrawGroupSize-DrawNbParticipants)","v":0},{"$f":"IF(Z5>DrawNbParticipants,\"\",OFFSET($O$3,2+AK5+(DrawGroupSize+1+IF(OFFSET($W$3,DrawGroupSize-1+2,0)=\"\",0,1))*QUOTIENT(AL5,4),MOD(AL5,4)*3))","v":1},{"$f":"AK5+(DrawGroupSize+1+IF(OFFSET($W$3,DrawGroupSize-1+2,0)=\"\",0,1))*QUOTIENT(AL5,4)","v":0},{"$f":"MOD(AL5,4)*3","v":0}]
[2,{"$f":"IF(O6=\"\",N_ToBeDrawn,IF(VLOOKUP(O6,DrawParticipantsRankingList,2,FALSE)=\"\",N_Withdraw,VLOOKUP(O6,DrawParticipantsRankingList,2,FALSE)))","v":"Player 60"},{"$f":"IF(O6=\"\",N6,(IF(B6=N_Withdraw,\"\",VLOOKUP(O6,DrawParticipantsRankingList,NatClubColNum,FALSE))))","v":"ITA"},2,{"$f":"IF(R6=\"\",N_ToBeDrawn,IF(VLOOKUP(R6,DrawParticipantsRankingList,2,FALSE)=\"\",N_Withdraw,VLOOKUP(R6,DrawParticipantsRankingList,2,FALSE)))","v":"Player 61"},{"$f":"IF(R6=\"\",Q6,(IF(E6=N_Withdraw,\"\",VLOOKUP(R6,DrawParticipantsRankingList,NatClubColNum,FALSE))))","v":"AUT"},2,{"$f":"IF(U6=\"\",N_ToBeDrawn,IF(VLOOKUP(U6,DrawParticipantsRankingList,2,FALSE)=\"\",N_Withdraw,VLOOKUP(U6,DrawParticipantsRankingList,2,FALSE)))","v":"Player 62"},{"$f":"IF(U6=\"\",T6,(IF(H6=N_Withdraw,\"\",VLOOKUP(U6,DrawParticipantsRankingList,NatClubColNum,FALSE))))","v":"ITA"},2,{"$f":"IF(X6=\"\",N_ToBeDrawn,IF(VLOOKUP(X6,DrawParticipantsRankingList,2,FALSE)=\"\",N_Withdraw,VLOOKUP(X6,DrawParticipantsRankingList,2,FALSE)))","v":"Player 64"},{"$f":"IF(X6=\"\",W6,(IF(K6=N_Withdraw,\"\",VLOOKUP(X6,DrawParticipantsRankingList,NatClubColNum,FALSE))))","v":"ITA"},null,2,60,null,2,61,null,2,62,null,2,64,null,{"$f":"ROW(Z6)-ROW(Z$4)","v":2},"Player 2",{"$f":"AB5+Z6","v":3},"FRA","ITA",null,"Player2",2,"FRA","ITA",null,{"$f":"QUOTIENT(Z6-1,DrawNbGroups)","v":0},{"$f":"MOD(Z6-1,DrawNbGroups)+IF(Z6<=DrawNbGroups*(DrawGroupSize-1),0,DrawNbGroups*DrawGroupSize-DrawNbParticipants)","v":1},2,{"$f":"AK6+(DrawGroupSize+1+IF(OFFSET($W$3,DrawGroupSize-1+2,0)=\"\",0,1))*QUOTIENT(AL6,4)","v":0},{"$f":"MOD(AL6,4)*3","v":3}]
[3,{"$f":"IF(O7=\"\",N_ToBeDrawn,IF(VLOOKUP(O7,DrawParticipantsRankingList,2,FALSE)=\"\",N_Withdraw,VLOOKUP(O7,DrawParticipantsRankingList,2,FALSE)))","v":"To be Drawn"},{"$f":"IF(O7=\"\",N7,(IF(B7=N_Withdraw,\"\",VLOOKUP(O7,DrawParticipantsRankingList,NatClubColNum,FALSE))))","v":3},3,{"$f":"IF(R7=\"\",N_ToBeDrawn,IF(VLOOKUP(R7,DrawParticipantsRankingList,2,FALSE)=\"\",N_Withdraw,VLOOKUP(R7,DrawParticipantsRankingList,2,FALSE)))","v":"To be Drawn"},{"$f":"IF(R7=\"\",Q7,(IF(E7=N_Withdraw,\"\",VLOOKUP(R7,DrawParticipantsRankingList,NatClubColNum,FALSE))))","v":3},3,{"$f":"IF(U7=\"\",N_ToBeDrawn,IF(VLOOKUP(U7,DrawParticipantsRankingList,2,FALSE)=\"\",N_Withdraw,VLOOKUP(U7,DrawParticipantsRankingList,2,FALSE)))","v":"To be Drawn"},{"$f":"IF(U7=\"\",T7,(IF(H7=N_Withdraw,\"\",VLOOKUP(U7,DrawParticipantsRankingList,NatClubColNum,FALSE))))","v":3},3,{"$f":"IF(X7=\"\",N_ToBeDrawn,IF(VLOOKUP(X7,DrawParticipantsRankingList,2,FALSE)=\"\",N_Withdraw,VLOOKUP(X7,DrawParticipantsRankingList,2,FALSE)))","v":"To be Drawn"},{"$f":"IF(X7=\"\",W7,(IF(K7=N_Withdraw,\"\",VLOOKUP(X7,DrawParticipantsRankingList,NatClubColNum,FALSE))))","v":3},null,3,null,null,3,null,null,3,null,null,3,null,null,3,"Player 3",6,"GIB","AUT",null,"Player 3",3,"GIB","AUT",null,0,2,3,0,6]
[4,{"$f":"IF(O8=\"\",N_ToBeDrawn,IF(VLOOKUP(O8,DrawParticipantsRankingList,2,FALSE)=\"\",N_Withdraw,VLOOKUP(O8,DrawParticipantsRankingList,2,FALSE)))","v":"To be Drawn"},{"$f":"IF(O8=\"\",N8,(IF(B8=N_Withdraw,\"\",VLOOKUP(O8,DrawParticipantsRankingList,NatClubColNum,FALSE))))","v":4},4,{"$f":"IF(R8=\"\",N_ToBeDrawn,IF(VLOOKUP(R8,DrawParticipantsRankingList,2,FALSE)=\"\",N_Withdraw,VLOOKUP(R8,DrawParticipantsRankingList,2,FALSE)))","v":"To be Drawn"},{"$f":"IF(R8=\"\",Q8,(IF(E8=N_Withdraw,\"\",VLOOKUP(R8,DrawParticipantsRankingList,NatClubColNum,FALSE))))","v":4},4,{"$f":"IF(U8=\"\",N_ToBeDrawn,IF(VLOOKUP(U8,DrawParticipantsRankingList,2,FALSE)=\"\",N_Withdraw,VLOOKUP(U8,DrawParticipantsRankingList,2,FALSE)))","v":"To be Drawn"},{"$f":"IF(U8=\"\",T8,(IF(H8=N_Withdraw,\"\",VLOOKUP(U8,DrawParticipantsRankingList,NatClubColNum,FALSE))))","v":4},4,{"$f":"IF(X8=\"\",N_ToBeDrawn,IF(VLOOKUP(X8,DrawParticipantsRankingList,2,FALSE)=\"\",N_Withdraw,VLOOKUP(X8,DrawParticipantsRankingList,2,FALSE)))","v":"To be Drawn"},{"$f":"IF(X8=\"\",W8,(IF(K8=N_Withdraw,\"\",VLOOKUP(X8,DrawParticipantsRankingList,NatClubColNum,FALSE))))","v":4},null,4,null,null,4,null,null,4,null,null,4,null,null,4,"Player 4",10,"FRA","ITA",null,"Player2",2,"FRA","ITA",null,0,3,4,0,9]
[null,null,null,null,null,null,null,null,null,null,null,null,null,null,null,null,null,null,null,null,null,null,null,null,null,5,"Player 5",15,"GIB","AUT",null,"Player 3",3,"GIB","AUT",null,0,4,0,6,0]
[null,"Group 5",null,null,"Group 6",null,null,"Group 7",null,null,"Group 8",null,null,null,"Group 5",null,null,"Group 6",null,null,"Group 7",null,null,"Group 8",null,6,"Player 6",21,"FRA","ITA",null,"Player2",2,"FRA","ITA",null,0,5,0,6,3]
[1,{"$f":"IF(O11=\"\",N_ToBeDrawn,IF(VLOOKUP(O11,DrawParticipantsRankingList,2,FALSE)=\"\",N_Withdraw,VLOOKUP(O11,DrawParticipantsRankingList,2,FALSE)))","v":"To be Drawn"},{"$f":"IF(O11=\"\",N11,(IF(B11=N_Withdraw,\"\",VLOOKUP(O11,DrawParticipantsRankingList,NatClubColNum,FALSE))))","v":1},1,{"$f":"IF(R11=\"\",N_ToBeDrawn,IF(VLOOKUP(R11,DrawParticipantsRankingList,2,FALSE)=\"\",N_Withdraw,VLOOKUP(R11,DrawParticipantsRankingList,2,FALSE)))","v":"To be Drawn"},{"$f":"IF(R11=\"\",Q11,(IF(E11=N_Withdraw,\"\",VLOOKUP(R11,DrawParticipantsRankingList,NatClubColNum,FALSE))))","v":1},1,{"$f":"IF(U11=\"\",N_ToBeDrawn,IF(VLOOKUP(U11,DrawParticipantsRankingList,2,FALSE)=\"\",N_Withdraw,VLOOKUP(U11,DrawParticipantsRankingList,2,FALSE)))","v":"To be Drawn"},{"$f":"IF(U11=\"\",T11,(IF(H11=N_Withdraw,\"\",VLOOKUP(U11,DrawParticipantsRankingList,NatClubColNum,FALSE))))","v":1},1,{"$f":"IF(X11=\"\",N_ToBeDrawn,IF(VLOOKUP(X11,DrawParticipantsRankingList,2,FALSE)=\"\",N_Withdraw,VLOOKUP(X11,DrawParticipantsRankingList,2,FALSE)))","v":"To be Drawn"},{"$f":"IF(X11=\"\",W11,(IF(K11=N_Withdraw,\"\",VLOOKUP(X11,DrawParticipantsRankingList,NatClubColNum,FALSE))))","v":1},null,1,null,null,1,null,null,1,null,null,1,null,null,7,"Player 7",28,"GIB","AUT",null,"Player 3",3,"GIB","AUT",null,0,6,0,6,6]
[2,{"$f":"IF(O12=\"\",N_ToBeDrawn,IF(VLOOKUP(O12,DrawParticipantsRankingList,2,FALSE)=\"\",N_Withdraw,VLOOKUP(O12,DrawParticipantsRankingList,2,FALSE)))","v":"To be Drawn"},{"$f":"IF(O12=\"\",N12,(IF(B12=N_Withdraw,\"\",VLOOKUP(O12,DrawParticipantsRankingList,NatClubColNum,FALSE))))","v":2},2,{"$f":"IF(R12=\"\",N_ToBeDrawn,IF(VLOOKUP(R12,DrawParticipantsRankingList,2,FALSE)=\"\",N_Withdraw,VLOOKUP(R12,DrawParticipantsRankingList,2,FALSE)))","v":"To be Drawn"},{"$f":"IF(R12=\"\",Q12,(IF(E12=N_Withdraw,\"\",VLOOKUP(R12,DrawParticipantsRankingList,NatClubColNum,FALSE))))","v":2},2,{"$f":"IF(U12=\"\",N_ToBeDrawn,IF(VLOOKUP(U12,DrawParticipantsRankingList,2,FALSE)=\"\",N_Withdraw,VLOOKUP(U12,DrawParticipantsRankingList,2,FALSE)))","v":"To be Drawn"},{"$f":"IF(U12=\"\",T12,(IF(H12=N_Withdraw,\"\",VLOOKUP(U12,DrawParticipantsRankingList,NatClubColNum,FALSE))))","v":2},2,{"$f":"IF(X12=\"\",N_ToBeDrawn,IF(VLOOKUP(X12,DrawParticipantsRankingList,2,FALSE)=\"\",N_Withdraw,VLOOKUP(X12,DrawParticipantsRankingList,2,FALSE)))","v":"To be Drawn"},{"$f":"IF(X12=\"\",W12,(IF(K12=N_Withdraw,\"\",VLOOKUP(X12,DrawParticipantsRankingList,NatClubColNum,FALSE))))","v":2},null,2,null,null,2,null,null,2,null,null,2,null,null,8,"Player 8",36,"FRA","ITA",null,"Player2",2,"FRA","ITA",null,0,7,0,6,9]
[3,{"$f":"IF(O13=\"\",N_ToBeDrawn,IF(VLOOKUP(O13,DrawParticipantsRankingList,2,FALSE)=\"\",N_Withdraw,VLOOKUP(O13,DrawParticipantsRankingList,2,FALSE)))","v":"To be Drawn"},{"$f":"IF(O13=\"\",N13,(IF(B13=N_Withdraw,\"\",VLOOKUP(O13,DrawParticipantsRankingList,NatClubColNum,FALSE))))","v":3},3,{"$f":"IF(R13=\"\",N_ToBeDrawn,IF(VLOOKUP(R13,DrawParticipantsRankingList,2,FALSE)=\"\",N_Withdraw,VLOOKUP(R13,DrawParticipantsRankingList,2,FALSE)))","v":"To be Drawn"},{"$f":"IF(R13=\"\",Q13,(IF(E13=N_Withdraw,\"\",VLOOKUP(R13,DrawParticipantsRankingList,NatClubColNum,FALSE))))","v":3},3,{"$f":"IF(U13=\"\",N_ToBeDrawn,IF(VLOOKUP(U13,DrawParticipantsRankingList,2,FALSE)=\"\",N_Withdraw,VLOOKUP(U13,DrawParticipantsRankingList,2,FALSE)))","v":"To be Drawn"},{"$f":"IF(U13=\"\",T13,(IF(H13=N_Withdraw,\"\",VLOOKUP(U13,DrawParticipantsRankingList,NatClubColNum,FALSE))))","v":3},3,{"$f":"IF(X13=\"\",N_ToBeDrawn,IF(VLOOKUP(X13,DrawParticipantsRankingList,2,FALSE)=\"\",N_Withdraw,VLOOKUP(X13,DrawParticipantsRankingList,2,FALSE)))","v":"To be Drawn"},{"$f":"IF(X13=\"\",W13,(IF(K13=N_Withdraw,\"\",VLOOKUP(X13,DrawParticipantsRankingList,NatClubColNum,FALSE))))","v":3},null,3,null,null,3,null,null,3,null,null,3,null,null,9,"Player 9",45,"GIB","AUT",null,"Player 3",3,"GIB","AUT",null,0,8,0,12,0]
[4,{"$f":"IF(O14=\"\",N_ToBeDrawn,IF(VLOOKUP(O14,DrawParticipantsRankingList,2,FALSE)=\"\",N_Withdraw,VLOOKUP(O14,DrawParticipantsRankingList,2,FALSE)))","v":"To be Drawn"},{"$f":"IF(O14=\"\",N14,(IF(B14=N_Withdraw,\"\",VLOOKUP(O14,DrawParticipantsRankingList,NatClubColNum,FALSE))))","v":4},4,{"$f":"IF(R14=\"\",N_ToBeDrawn,IF(VLOOKUP(R14,DrawParticipantsRankingList,2,FALSE)=\"\",N_Withdraw,VLOOKUP(R14,DrawParticipantsRankingList,2,FALSE)))","v":"To be Drawn"},{"$f":"IF(R14=\"\",Q14,(IF(E14=N_Withdraw,\"\",VLOOKUP(R14,DrawParticipantsRankingList,NatClubColNum,FALSE))))","v":4},4,{"$f":"IF(U14=\"\",N_ToBeDrawn,IF(VLOOKUP(U14,DrawParticipantsRankingList,2,FALSE)=\"\",N_Withdraw,VLOOKUP(U14,DrawParticipantsRankingList,2,FALSE)))","v":"To be Drawn"},{"$f":"IF(U14=\"\",T14,(IF(H14=N_Withdraw,\"\",VLOOKUP(U14,DrawParticipantsRankingList,NatClubColNum,FALSE))))","v":4},4,{"$f":"IF(X14=\"\",N_ToBeDrawn,IF(VLOOKUP(X14,DrawParticipantsRankingList,2,FALSE)=\"\",N_Withdraw,VLOOKUP(X14,DrawParticipantsRankingList,2,FALSE)))","v":"To be Drawn"},{"$f":"IF(X14=\"\",W14,(IF(K14=N_Withdraw,\"\",VLOOKUP(X14,DrawParticipantsRankingList,NatClubColNum,FALSE))))","v":4},null,4,null,null,4,null,null,4,null,null,4,null,null,10,"Player 10",55,"FRA","AUT",null,"Player2",2,"FRA","ITA",null,0,9,0,12,3]
[null,null,null,null,null,null,null,null,null,null,null,null,null,null,null,null,null,null,null,null,null,null,null,null,null,11,"Player 11",66,"GIB","AUT",null,"Player 3",3,"GIB","AUT",null,0,10,0,12,6]
[null,"Group 9",null,null,"Group 10",null,null,"Group 11",null,null,"Group 12",null,null,null,"Group 9",null,null,"Group 10",null,null,"Group 11",null,null,"Group 12",null,12,"Player 12",78,"FRA","ITA",null,"Player2",2,"FRA","ITA",null,0,11,0,12,9]
[1,{"$f":"IF(O17=\"\",N_ToBeDrawn,IF(VLOOKUP(O17,DrawParticipantsRankingList,2,FALSE)=\"\",N_Withdraw,VLOOKUP(O17,DrawParticipantsRankingList,2,FALSE)))","v":"To be Drawn"},{"$f":"IF(O17=\"\",N17,(IF(B17=N_Withdraw,\"\",VLOOKUP(O17,DrawParticipantsRankingList,NatClubColNum,FALSE))))","v":1},1,{"$f":"IF(R17=\"\",N_ToBeDrawn,IF(VLOOKUP(R17,DrawParticipantsRankingList,2,FALSE)=\"\",N_Withdraw,VLOOKUP(R17,DrawParticipantsRankingList,2,FALSE)))","v":"To be Drawn"},{"$f":"IF(R17=\"\",Q17,(IF(E17=N_Withdraw,\"\",VLOOKUP(R17,DrawParticipantsRankingList,NatClubColNum,FALSE))))","v":1},1,{"$f":"IF(U17=\"\",N_ToBeDrawn,IF(VLOOKUP(U17,DrawParticipantsRankingList,2,FALSE)=\"\",N_Withdraw,VLOOKUP(U17,DrawParticipantsRankingList,2,FALSE)))","v":"To be Drawn"},{"$f":"IF(U17=\"\",T17,(IF(H17=N_Withdraw,\"\",VLOOKUP(U17,DrawParticipantsRankingList,NatClubColNum,FALSE))))","v":1},1,{"$f":"IF(X17=\"\",N_ToBeDrawn,IF(VLOOKUP(X17,DrawParticipantsRankingList,2,FALSE)=\"\",N_Withdraw,VLOOKUP(X17,DrawParticipantsRankingList,2,FALSE)))","v":"To be Drawn"},{"$f":"IF(X17=\"\",W17,(IF(K17=N_Withdraw,\"\",VLOOKUP(X17,DrawParticipantsRankingList,NatClubColNum,FALSE))))","v":1},null,1,null,null,1,null,null,1,null,null,1,null,null,13,"Player 13",91,"GIB","AUT",null,"Player 3",3,"GIB","AUT",null,0,12,0,18,0]
[2,{"$f":"IF(O18=\"\",N_ToBeDrawn,IF(VLOOKUP(O18,DrawParticipantsRankingList,2,FALSE)=\"\",N_Withdraw,VLOOKUP(O18,DrawParticipantsRankingList,2,FALSE)))","v":"To be Drawn"},{"$f":"IF(O18=\"\",N18,(IF(B18=N_Withdraw,\"\",VLOOKUP(O18,DrawParticipantsRankingList,NatClubColNum,FALSE))))","v":2},2,{"$f":"IF(R18=\"\",N_ToBeDrawn,IF(VLOOKUP(R18,DrawParticipantsRankingList,2,FALSE)=\"\",N_Withdraw,VLOOKUP(R18,DrawParticipantsRankingList,2,FALSE)))","v":"To be Drawn"},{"$f":"IF(R18=\"\",Q18,(IF(E18=N_Withdraw,\"\",VLOOKUP(R18,DrawParticipantsRankingList,NatClubColNum,FALSE))))","v":2},2,{"$f":"IF(U18=\"\",N_ToBeDrawn,IF(VLOOKUP(U18,DrawParticipantsRankingList,2,FALSE)=\"\",N_Withdraw,VLOOKUP(U18,DrawParticipantsRankingList,2,FALSE)))","v":"To be Drawn"},{"$f":"IF(U18=\"\",T18,(IF(H18=N_Withdraw,\"\",VLOOKUP(U18,DrawParticipantsRankingList,NatClubColNum,FALSE))))","v":2},2,{"$f":"IF(X18=\"\",N_ToBeDrawn,IF(VLOOKUP(X18,DrawParticipantsRankingList,2,FALSE)=\"\",N_Withdraw,VLOOKUP(X18,DrawParticipantsRankingList,2,FALSE)))","v":"To be Drawn"},{"$f":"IF(X18=\"\",W18,(IF(K18=N_Withdraw,\"\",VLOOKUP(X18,DrawParticipantsRankingList,NatClubColNum,FALSE))))","v":2},null,2,null,null,2,null,null,2,null,null,2,null,null,14,"Player 14",105,"FRA","ITA",null,"Player2",2,"FRA","ITA",null,0,13,0,18,3]
[3,{"$f":"IF(O19=\"\",N_ToBeDrawn,IF(VLOOKUP(O19,DrawParticipantsRankingList,2,FALSE)=\"\",N_Withdraw,VLOOKUP(O19,DrawParticipantsRankingList,2,FALSE)))","v":"To be Drawn"},{"$f":"IF(O19=\"\",N19,(IF(B19=N_Withdraw,\"\",VLOOKUP(O19,DrawParticipantsRankingList,NatClubColNum,FALSE))))","v":3},3,{"$f":"IF(R19=\"\",N_ToBeDrawn,IF(VLOOKUP(R19,DrawParticipantsRankingList,2,FALSE)=\"\",N_Withdraw,VLOOKUP(R19,DrawParticipantsRankingList,2,FALSE)))","v":"To be Drawn"},{"$f":"IF(R19=\"\",Q19,(IF(E19=N_Withdraw,\"\",VLOOKUP(R19,DrawParticipantsRankingList,NatClubColNum,FALSE))))","v":3},3,{"$f":"IF(U19=\"\",N_ToBeDrawn,IF(VLOOKUP(U19,DrawParticipantsRankingList,2,FALSE)=\"\",N_Withdraw,VLOOKUP(U19,DrawParticipantsRankingList,2,FALSE)))","v":"To be Drawn"},{"$f":"IF(U19=\"\",T19,(IF(H19=N_Withdraw,\"\",VLOOKUP(U19,DrawParticipantsRankingList,NatClubColNum,FALSE))))","v":3},3,{"$f":"IF(X19=\"\",N_ToBeDrawn,IF(VLOOKUP(X19,DrawParticipantsRankingList,2,FALSE)=\"\",N_Withdraw,VLOOKUP(X19,DrawParticipantsRankingList,2,FALSE)))","v":"To be Drawn"},{"$f":"IF(X19=\"\",W19,(IF(K19=N_Withdraw,\"\",VLOOKUP(X19,DrawParticipantsRankingList,NatClubColNum,FALSE))))","v":3},null,3,null,null,3,null,null,3,null,null,3,null,null,15,"Player 15",120,"GIB","AUT",null,"Player 3",3,"GIB","AUT",null,0,14,0,18,6]
[4,{"$f":"IF(O20=\"\",N_ToBeDrawn,IF(VLOOKUP(O20,DrawParticipantsRankingList,2,FALSE)=\"\",N_Withdraw,VLOOKUP(O20,DrawParticipantsRankingList,2,FALSE)))","v":"To be Drawn"},{"$f":"IF(O20=\"\",N20,(IF(B20=N_Withdraw,\"\",VLOOKUP(O20,DrawParticipantsRankingList,NatClubColNum,FALSE))))","v":4},4,{"$f":"IF(R20=\"\",N_ToBeDrawn,IF(VLOOKUP(R20,DrawParticipantsRankingList,2,FALSE)=\"\",N_Withdraw,VLOOKUP(R20,DrawParticipantsRankingList,2,FALSE)))","v":"To be Drawn"},{"$f":"IF(R20=\"\",Q20,(IF(E20=N_Withdraw,\"\",VLOOKUP(R20,DrawParticipantsRankingList,NatClubColNum,FALSE))))","v":4},4,{"$f":"IF(U20=\"\",N_ToBeDrawn,IF(VLOOKUP(U20,DrawParticipantsRankingList,2,FALSE)=\"\",N_Withdraw,VLOOKUP(U20,DrawParticipantsRankingList,2,FALSE)))","v":"To be Drawn"},{"$f":"IF(U20=\"\",T20,(IF(H20=N_Withdraw,\"\",VLOOKUP(U20,DrawParticipantsRankingList,NatClubColNum,FALSE))))","v":4},4,{"$f":"IF(X20=\"\",N_ToBeDrawn,IF(VLOOKUP(X20,DrawParticipantsRankingList,2,FALSE)=\"\",N_Withdraw,VLOOKUP(X20,DrawParticipantsRankingList,2,FALSE)))","v":"To be Drawn"},{"$f":"IF(X20=\"\",W20,(IF(K20=N_Withdraw,\"\",VLOOKUP(X20,DrawParticipantsRankingList,NatClubColNum,FALSE))))","v":4},null,4,null,null,4,null,null,4,null,null,4,null,null,16,"Player 16",136,"GIB","AUT",null,"Player2",2,"FRA","ITA",null,0,15,0,18,9]
[null,null,null,null,null,null,null,null,null,null,null,null,null,null,null,null,null,null,null,null,null,null,null,null,null,17,"Player 17",153,"GIB","AUT",null,"Player 3",3,"GIB","AUT",null,1,0,60,1,0]
[null,"Group 13",null,null,"Group 14",null,null,"Group 15",null,null,"Group 16",null,null,null,"Group 13",null,null,"Group 14",null,null,"Group 15",null,null,"Group 16",null,18,"Player 18",171,"FRA","ITA",null,"Player2",2,"FRA","ITA",null,1,1,61,1,3]
[1,{"$f":"IF(O23=\"\",N_ToBeDrawn,IF(VLOOKUP(O23,DrawParticipantsRankingList,2,FALSE)=\"\",N_Withdraw,VLOOKUP(O23,DrawParticipantsRankingList,2,FALSE)))","v":"To be Drawn"},{"$f":"IF(O23=\"\",N23,(IF(B23=N_Withdraw,\"\",VLOOKUP(O23,DrawParticipantsRankingList,NatClubColNum,FALSE))))","v":1},1,{"$f":"IF(R23=\"\",N_ToBeDrawn,IF(VLOOKUP(R23,DrawParticipantsRankingList,2,FALSE)=\"\",N_Withdraw,VLOOKUP(R23,DrawParticipantsRankingList,2,FALSE)))","v":"To be Drawn"},{"$f":"IF(R23=\"\",Q23,(IF(E23=N_Withdraw,\"\",VLOOKUP(R23,DrawParticipantsRankingList,NatClubColNum,FALSE))))","v":1},1,{"$f":"IF(U23=\"\",N_ToBeDrawn,IF(VLOOKUP(U23,DrawParticipantsRankingList,2,FALSE)=\"\",N_Withdraw,VLOOKUP(U23,DrawParticipantsRankingList,2,FALSE)))","v":"To be Drawn"},{"$f":"IF(U23=\"\",T23,(IF(H23=N_Withdraw,\"\",VLOOKUP(U23,DrawParticipantsRankingList,NatClubColNum,FALSE))))","v":1},1,{"$f":"IF(X23=\"\",N_ToBeDrawn,IF(VLOOKUP(X23,DrawParticipantsRankingList,2,FALSE)=\"\",N_Withdraw,VLOOKUP(X23,DrawParticipantsRankingList,2,FALSE)))","v":"To be Drawn"},{"$f":"IF(X23=\"\",W23,(IF(K23=N_Withdraw,\"\",VLOOKUP(X23,DrawParticipantsRankingList,NatClubColNum,FALSE))))","v":1},null,1,null,null,1,null,null,1,null,null,1,null,null,19,"Player 19",190,"GIB","AUT",null,"Player 3",3,"GIB","AUT",null,1,2,62,1,6]
[2,{"$f":"IF(O24=\"\",N_ToBeDrawn,IF(VLOOKUP(O24,DrawParticipantsRankingList,2,FALSE)=\"\",N_Withdraw,VLOOKUP(O24,DrawParticipantsRankingList,2,FALSE)))","v":"To be Drawn"},{"$f":"IF(O24=\"\",N24,(IF(B24=N_Withdraw,\"\",VLOOKUP(O24,DrawParticipantsRankingList,NatClubColNum,FALSE))))","v":2},2,{"$f":"IF(R24=\"\",N_ToBeDrawn,IF(VLOOKUP(R24,DrawParticipantsRankingList,2,FALSE)=\"\",N_Withdraw,VLOOKUP(R24,DrawParticipantsRankingList,2,FALSE)))","v":"To be Drawn"},{"$f":"IF(R24=\"\",Q24,(IF(E24=N_Withdraw,\"\",VLOOKUP(R24,DrawParticipantsRankingList,NatClubColNum,FALSE))))","v":2},2,{"$f":"IF(U24=\"\",N_ToBeDrawn,IF(VLOOKUP(U24,DrawParticipantsRankingList,2,FALSE)=\"\",N_Withdraw,VLOOKUP(U24,DrawParticipantsRankingList,2,FALSE)))","v":"To be Drawn"},{"$f":"IF(U24=\"\",T24,(IF(H24=N_Withdraw,\"\",VLOOKUP(U24,DrawParticipantsRankingList,NatClubColNum,FALSE))))","v":2},2,{"$f":"IF(X24=\"\",N_ToBeDrawn,IF(VLOOKUP(X24,DrawParticipantsRankingList,2,FALSE)=\"\",N_Withdraw,VLOOKUP(X24,DrawParticipantsRankingList,2,FALSE)))","v":"To be Drawn"},{"$f":"IF(X24=\"\",W24,(IF(K24=N_Withdraw,\"\",VLOOKUP(X24,DrawParticipantsRankingList,NatClubColNum,FALSE))))","v":2},null,2,null,null,2,null,null,2,null,null,2,null,null,20,"Player 20",210,"FRA","ITA",null,"Player2",2,"FRA","ITA",null,1,3,64,1,9]
[3,{"$f":"IF(O25=\"\",N_ToBeDrawn,IF(VLOOKUP(O25,DrawParticipantsRankingList,2,FALSE)=\"\",N_Withdraw,VLOOKUP(O25,DrawParticipantsRankingList,2,FALSE)))","v":"To be Drawn"},{"$f":"IF(O25=\"\",N25,(IF(B25=N_Withdraw,\"\",VLOOKUP(O25,DrawParticipantsRankingList,NatClubColNum,FALSE))))","v":3},3,{"$f":"IF(R25=\"\",N_ToBeDrawn,IF(VLOOKUP(R25,DrawParticipantsRankingList,2,FALSE)=\"\",N_Withdraw,VLOOKUP(R25,DrawParticipantsRankingList,2,FALSE)))","v":"To be Drawn"},{"$f":"IF(R25=\"\",Q25,(IF(E25=N_Withdraw,\"\",VLOOKUP(R25,DrawParticipantsRankingList,NatClubColNum,FALSE))))","v":3},3,{"$f":"IF(U25=\"\",N_ToBeDrawn,IF(VLOOKUP(U25,DrawParticipantsRankingList,2,FALSE)=\"\",N_Withdraw,VLOOKUP(U25,DrawParticipantsRankingList,2,FALSE)))","v":"To be Drawn"},{"$f":"IF(U25=\"\",T25,(IF(H25=N_Withdraw,\"\",VLOOKUP(U25,DrawParticipantsRankingList,NatClubColNum,FALSE))))","v":3},3,{"$f":"IF(X25=\"\",N_ToBeDrawn,IF(VLOOKUP(X25,DrawParticipantsRankingList,2,FALSE)=\"\",N_Withdraw,VLOOKUP(X25,DrawParticipantsRankingList,2,FALSE)))","v":"To be Drawn"},{"$f":"IF(X25=\"\",W25,(IF(K25=N_Withdraw,\"\",VLOOKUP(X25,DrawParticipantsRankingList,NatClubColNum,FALSE))))","v":3},null,3,null,null,3,null,null,3,null,null,3,null,null,21,"Player 21",231,"GIB","AUT",null,"Player 3",3,"GIB","AUT",null,1,4,0,7,0]
[4,{"$f":"IF(O26=\"\",N_ToBeDrawn,IF(VLOOKUP(O26,DrawParticipantsRankingList,2,FALSE)=\"\",N_Withdraw,VLOOKUP(O26,DrawParticipantsRankingList,2,FALSE)))","v":"To be Drawn"},{"$f":"IF(O26=\"\",N26,(IF(B26=N_Withdraw,\"\",VLOOKUP(O26,DrawParticipantsRankingList,NatClubColNum,FALSE))))","v":4},4,{"$f":"IF(R26=\"\",N_ToBeDrawn,IF(VLOOKUP(R26,DrawParticipantsRankingList,2,FALSE)=\"\",N_Withdraw,VLOOKUP(R26,DrawParticipantsRankingList,2,FALSE)))","v":"To be Drawn"},{"$f":"IF(R26=\"\",Q26,(IF(E26=N_Withdraw,\"\",VLOOKUP(R26,DrawParticipantsRankingList,NatClubColNum,FALSE))))","v":4},4,{"$f":"IF(U26=\"\",N_ToBeDrawn,IF(VLOOKUP(U26,DrawParticipantsRankingList,2,FALSE)=\"\",N_Withdraw,VLOOKUP(U26,DrawParticipantsRankingList,2,FALSE)))","v":"To be Drawn"},{"$f":"IF(U26=\"\",T26,(IF(H26=N_Withdraw,\"\",VLOOKUP(U26,DrawParticipantsRankingList,NatClubColNum,FALSE))))","v":4},4,{"$f":"IF(X26=\"\",N_ToBeDrawn,IF(VLOOKUP(X26,DrawParticipantsRankingList,2,FALSE)=\"\",N_Withdraw,VLOOKUP(X26,DrawParticipantsRankingList,2,FALSE)))","v":"To be Drawn"},{"$f":"IF(X26=\"\",W26,(IF(K26=N_Withdraw,\"\",VLOOKUP(X26,DrawParticipantsRankingList,NatClubColNum,FALSE))))","v":4},null,4,null,null,4,null,null,4,null,null,4,null,null,22,"Player 22",253,"FRA","ITA",null,"Player2",2,"FRA","ITA",null,1,5,0,7,3]
[null,null,null,null,null,null,null,null,null,null,null,null,null,null,null,null,null,null,null,null,null,null,null,null,null,23,"Player 23",276,"GIB","AUT",null,"Player 3",3,"GIB","AUT",null,1,6,0,7,6]
[null,null,null,null,null,null,null,null,null,null,null,null,null,null,null,null,null,null,null,null,null,null,null,null,null,24,"Player 24",300,"FRA","ITA",null,"Player2",2,"FRA","ITA",null,1,7,0,7,9]
[null,"Mandatory zones :",null,null,null,null,null,null,null,null,null,"A conditionnal format must be set ",null,null,null,null,null,null,null,null,null,null,null,null,null,25,"Player 25",325,"GIB","AUT",null,"Player 3",3,"GIB","AUT",null,1,8,0,13,0]
[null,"Click to check the current zone",null,null,null,null,null,null,null,null,null,"manually on this model,",null,null,null,null,null,null,null,null,null,null,null,null,null,26,"Player 26",351,"FRA","ITA",null,"Player2",2,"FRA","ITA",null,1,9,0,13,3]
[null,null,null,null,null,null,null,null,null,null,null,"for all draw groups column",null,null,null,null,null,null,null,null,600,null,null,null,null,27,"Player 27",378,"GIB","AUT",null,"Player 3",3,"GIB","AUT",null,1,10,0,13,6]
[null,"DrawTournamentTitle",null,null,"Title of the tournament",null,null,null,null,null,null,"to avoid double values ",null,null,null,null,null,null,null,null,null,null,null,null,null,28,"Player 28",406,"FRA","ITA",null,"Player2",2,"FRA","ITA",null,1,11,0,13,9]
[null,"DrawEventName",null,null,"Event Name (the name of the corresponding result sheet)",null,null,null,null,null,null,"as shown below",null,null,null,null,null,null,null,null,null,null,null,null,null,29,"Player 29",435,"GIB","AUT",null,"Player 3",3,"GIB","AUT",null,1,12,0,19,0]
[null,null,null,null,null,null,null,null,null,null,null,null,null,null,null,null,null,null,null,null,null,null,null,null,null,30,"Player 30",465,"FRA","ITA",null,"Player2",2,"FRA","ITA",null,1,13,0,19,3]
[null,"Rows 1 & 2",null,null,"Header lines for printing",null,null,null,null,null,null,null,null,null,509,null,null,511,null,null,530,null,null,513,null,31,"Player 31",496,"GIB","AUT",null,"Player 3",3,"GIB","AUT",null,1,14,0,19,6]
[null,null,null,null,null,null,null,null,null,null,null,null,null,null,510,null,null,520,null,null,512,null,null,540,null,32,"Player 32",528,"FRA","ITA",null,"Player2",2,"FRA","ITA",null,1,15,0,19,9]
[null,"DrawGroupHeader",null,null,"Named area (name) containing the header and content with following updatable zones :",null,null,null,null,null,null,null,null,null,515,null,null,522,null,null,535,null,null,522,null,33,"Player 33",561,"GIB","AUT",null,"Player 3",3,"GIB","AUT",null,2,0,{"$f":"IF(Z37>DrawNbParticipants,\"\",OFFSET($O$3,2+AK37+(DrawGroupSize+1+IF(OFFSET($W$3,DrawGroupSize-1+2,0)=\"\",0,1))*QUOTIENT(AL37,4),MOD(AL37,4)*3))","v":0},2,0]
[null,"DrawGroupFirstLine",null,null,null,"Col 1 : N° in the group",null,null,null,null,null,null,null,null,510,null,null,525,null,null,530,null,null,545,null,34,"Player 34",{"$f":"AB37+Z38","v":595},"FRA","ITA",null,"Player2",2,"FRA","ITA",null,2,1,0,2,3]
[null,"DrawGroupEvenLine",null,null,null,"Col 2 : Player/Team Name ",null,null,null,null,null,null,null,null,null,null,null,null,null,null,null,null,null,null,null,35,"Player 35",630,"GIB","AUT",null,"Player 3",3,"GIB","AUT",null,2,2,0,2,6]
[null,"DrawGroupOddLine",null,null,null,"Col 3 : Nationality/Club trigram depending of global parameter",null,null,null,null,null,"A same kind of conditionnal format will be set ",null,null,null,null,null,null,null,null,null,null,null,null,null,36,"Player 36",666,"FRA","ITA",null,"Player2",2,"FRA","ITA",null,2,3,0,2,9]
[null,"DrawGroupLastLine",null,null,null,null,null,null,null,null,null,"automatically by GMFT for each group ",null,null,null,null,null,null,null,null,null,null,null,null,null,37,"Player 37",703,"GIB","AUT",null,"Player 3",3,"GIB","AUT",null,2,4,0,8,0]
[null,"DrawGroupColumn1",null,null,"1st column of the group of 4 columns",null,null,null,null,null,null,"on club/nationality column to avoid doubles ",null,null,null,null,null,null,null,null,null,null,null,null,null,38,"Player 38",741,"FRA","ITA",null,"Player2",2,"FRA","ITA",null,2,5,0,8,3]
[null,"DrawGroupColumn2",null,null,"2nd column of the group of 4 columns",null,null,null,null,null,null,"The format for doubles will be as follow",null,null,null,null,null,null,null,null,null,null,"FRA",null,null,39,"Player 39",780,"GIB","AUT",null,"Player 3",3,"GIB","AUT",null,2,6,0,8,6]
[null,"DrawGroupColumn3",null,null,"3rd column of the group of 4 columns",null,null,null,null,null,null,null,null,null,null,null,null,null,null,null,null,null,null,null,null,40,"Player 40",820,"FRA","ITA",null,"Player2",2,"FRA","ITA",null,2,7,0,8,9]
[null,"DrawGroupColumn4",null,null,"4th column of the group of 4 columns",null,null,null,null,null,null,null,null,null,null,null,null,null,null,null,null,null,null,null,null,41,"Player 41",861,"GIB","AUT",null,"Player 3",3,"GIB","AUT",null,2,8,0,14,0]
[null,null,null,null,null,null,null,null,null,null,null,null,null,null,null,null,null,null,null,null,null,null,null,null,null,42,"Player 42",903,"FRA","ITA",null,"Player2",2,"FRA","ITA",null,2,9,0,14,3]
[null,"DrawGroupHeaderDraw",null,null,"Named area (name) containing the header and content with following updatable zones :",null,null,null,null,null,null,null,null,null,null,null,null,null,null,null,null,null,null,null,null,43,"Player 43",946,"GIB","AUT",null,"Player 3",3,"GIB","AUT",null,2,10,0,14,6]
[null,"DrawGroupFirstLineDraw",null,null,null,"Col 1 : N° in the group",null,null,null,null,null,null,null,null,null,null,null,null,null,null,null,null,null,null,null,44,"Player 44",990,"FRA","ITA",null,"Player2",2,"FRA","ITA",null,2,11,0,14,9]
[null,"DrawGroupEvenLineDraw",null,null,null,"Col 2 : N° of Player/Team drawn",null,null,null,null,null,null,null,null,null,null,null,null,null,null,null,null,null,null,null,45,"Player 45",1035,"GIB","AUT",null,"Player 3",3,"GIB","AUT",null,2,12,0,20,0]
[null,"DrawGroupOddLineDraw",null,null,null,null,null,null,null,null,null,null,null,null,null,null,null,null,null,null,null,null,null,null,null,46,"Player 46",1081,"FRA","ITA",null,"Player2",2,"FRA","ITA",null,2,13,0,20,3]
[null,"DrawGroupLastLineDraw",null,null,null,null,null,null,null,null,null,null,null,null,null,null,null,null,null,null,null,null,null,null,null,47,"Player 47",1128,"GIB","AUT",null,"Player 3",3,"GIB","AUT",null,2,14,0,20,6]
[null,"DrawGroupDrawColumn1",null,null,"1st column of the group of 4 columns",null,null,null,null,null,null,null,null,null,null,null,null,null,null,null,null,null,null,null,null,48,"Player 48",1176,"FRA","ITA",null,"Player2",2,"FRA","ITA",null,2,15,0,20,9]
[null,"DrawGroupDrawColumn2",null,null,"2nd column of the group of 4 columns",null,null,null,null,null,null,null,null,null,null,null,null,null,null,null,null,null,null,null,null,49,"Player 49",1225,"GIB","AUT",null,"Player 3",3,"GIB","AUT",null,3,0,0,3,0]
[null,"DrawGroupDrawColumn3",null,null,"3rd column of the group of 4 columns",null,null,null,null,null,null,null,null,null,null,null,null,null,null,null,null,null,null,null,null,50,"Player 50",1275,"FRA","ITA",null,"Player2",2,"FRA","ITA",null,3,1,0,3,3]
[null,"DrawGroupDrawColumn4",null,null,"4th column of the group of 4 columns",null,null,null,null,null,null,null,null,null,null,null,null,null,null,null,null,null,null,null,null,51,"Player 51",1326,"GIB","AUT",null,"Player 3",3,"GIB","AUT",null,3,2,0,3,6]
[null,null,null,null,null,null,null,null,null,null,null,null,null,null,null,null,null,null,null,null,null,null,null,null,null,52,"Player 52",1378,"FRA","ITA",null,"Player2",2,"FRA","ITA",null,3,3,0,3,9]
[null,null,null,null,null,null,null,null,null,null,null,null,null,null,null,null,null,null,null,null,null,null,null,null,null,53,"Player 53",1431,"GIB","AUT",null,"Player 3",3,"GIB","AUT",null,3,4,0,9,0]
[null,"DrawParticipantsRankHeader",null,null,"Named area (name) containing the header and content with following updatable zones :",null,null,null,null,null,null,null,null,null,null,null,null,null,null,null,null,null,null,null,null,54,"Player 54",1485,"FRA","ITA",null,"Player2",2,"FRA","ITA",null,3,5,0,9,3]
[null,"DrawParticipantsRankFirstLine",null,null,null,"Col 1 : N° in the list",null,null,null,null,null,null,null,null,null,null,null,null,null,null,null,null,null,null,null,55,"Player 55",1540,"GIB","AUT",null,"Player 3",3,"GIB","AUT",null,3,6,0,9,6]
[null,"DrawParticipantsRankEvenLine",null,null,null,"Col 2 : Player/Team name",null,null,null,null,null,null,null,null,null,null,null,null,null,null,null,null,null,null,null,56,"Player 56",1596,"FRA","ITA",null,"Player2",2,"FRA","ITA",null,3,7,0,9,9]
[null,"DrawParticipantsRankOddLine",null,null,null,"Col 3 : Ranking",null,null,null,null,null,null,null,null,null,null,null,null,null,null,null,null,null,null,null,57,"Player 57",1653,"GIB","AUT",null,"Player 3",3,"GIB","AUT",null,3,8,0,15,0]
[null,"DrawParticipantsRankLastLine",null,null,null,"Col 4 : Nationality trigram",null,null,null,null,null,null,null,null,null,null,null,null,null,null,null,null,null,null,null,58,"Player 58",1711,"FRA","ITA",null,"Player2",2,"FRA","ITA",null,3,9,0,15,3]
[null,null,null,null,null,"Col 5 : Club Trigram",null,null,null,null,null,null,null,null,null,null,null,null,null,null,null,null,null,null,null,59,"Player 59",1770,"GIB","AUT",null,"Player 3",3,"GIB","AUT",null,3,10,0,15,6]
[null,null,null,null,null,null,null,null,null,null,null,null,null,null,null,null,null,null,null,null,null,null,null,null,null,60,"Player 60",1830,"FRA","ITA",null,"Player2",2,"FRA","ITA",null,3,11,0,15,9]
[null,"DrawParticipantsLists",null,null,"The 2 lists of participants (sorted on Rank and Alphabetical)",null,null,null,null,null,null,null,null,null,null,null,null,null,null,null,null,null,null,null,null,61,"Player 61",1891,"GIB","AUT",null,"Player 3",3,"GIB","AUT",null,3,12,0,21,0]
[null,"DrawParticipantsRankingList",null,null,"List of participants sorted on Rank",null,null,null,null,null,null,null,null,null,null,null,null,null,null,null,null,null,null,null,null,62,"Player 62",1953,"FRA","ITA",null,"Player2",2,"FRA","ITA",null,3,13,0,21,3]
[null,"DrawParticipantsListByName",null,null,"List of participants to search by name",null,null,null,null,null,null,null,null,null,null,null,null,null,null,null,null,null,null,null,null,63,"Player 63",2016,"GIB","AUT",null,"Player 3",3,"GIB","AUT",null,3,14,0,21,6]
[null,null,null,null,null,null,null,null,null,null,null,null,null,null,null,null,null,null,null,null,null,null,null,null,null,64,"Player 64",2080,"FRA","ITA",null,"Player2",2,"FRA","ITA",null,3,15,0,21,9]
[null,null,null,null,null,null,null,null,null,null,null,null,null,null,null,null,null,null,null,null,null,null,null,null,null,65,null,null,null,null,null,null,null,null,null,null,4,0,{"$f":"IF(Z69>DrawNbParticipants,\"\",OFFSET($O$3,2+AK69+(DrawGroupSize+1+IF(OFFSET($W$3,DrawGroupSize-1+2,0)=\"\",0,1))*QUOTIENT(AL69,4),MOD(AL69,4)*3))","v":""},4,0]
[null,null,null,null,null,null,null,null,null,null,null,null,null,null,null,null,null,null,null,null,null,null,null,null,null,{"$f":"ROW(Z70)-ROW(Z$4)","v":66},null,null,null,null,null,null,null,null,null,null,{"$f":"QUOTIENT(Z70-1,DrawNbGroups)","v":4},{"$f":"MOD(Z70-1,DrawNbGroups)+IF(Z70<=DrawNbGroups*(DrawGroupSize-1),0,DrawNbGroups*DrawGroupSize-DrawNbParticipants)","v":1},"",{"$f":"AK70+(DrawGroupSize+1+IF(OFFSET($W$3,DrawGroupSize-1+2,0)=\"\",0,1))*QUOTIENT(AL70,4)","v":4},{"$f":"MOD(AL70,4)*3","v":3}]
[null,null,null,null,null,null,null,null,null,null,null,null,null,null,null,null,null,null,null,null,null,null,null,null,null,67,null,null,null,null,null,null,null,null,null,null,4,2,"",4,6]
[null,null,null,null,null,null,null,null,null,null,null,null,null,null,null,null,null,null,null,null,null,null,null,null,null,68,null,null,null,null,null,null,null,null,null,null,4,3,"",4,9]
[null,null,null,null,null,null,null,null,null,null,null,null,null,null,null,null,null,null,null,null,null,null,null,null,null,69,null,null,null,null,null,null,null,null,null,null,4,4,"",10,0]
[null,null,null,null,null,null,null,null,null,null,null,null,null,null,null,null,null,null,null,null,null,null,null,null,null,70,null,null,null,null,null,null,null,null,null,null,4,5,"",10,3]
[null,null,null,null,null,null,null,null,null,null,null,null,null,null,null,null,null,null,null,null,null,null,null,null,null,71,null,null,null,null,null,null,null,null,null,null,4,6,"",10,6]
[null,null,null,null,null,null,null,null,null,null,null,null,null,null,null,null,null,null,null,null,null,null,null,null,null,72,null,null,null,null,null,null,null,null,null,null,4,7,"",10,9]
[null,null,null,null,null,null,null,null,null,null,null,null,null,null,null,null,null,null,null,null,null,null,null,null,null,73,null,null,null,null,null,null,null,null,null,null,4,8,"",16,0]
[null,null,null,null,null,null,null,null,null,null,null,null,null,null,null,null,null,null,null,null,null,null,null,null,null,74,null,null,null,null,null,null,null,null,null,null,4,9,"",16,3]
[null,null,null,null,null,null,null,null,null,null,null,null,null,null,null,null,null,null,null,null,null,null,null,null,null,75,null,null,null,null,null,null,null,null,null,null,4,10,"",16,6]
[null,null,null,null,null,null,null,null,null,null,null,null,null,null,null,null,null,null,null,null,null,null,null,null,null,76,null,null,null,null,null,null,null,null,null,null,4,11,"",16,9]
[null,null,null,null,null,null,null,null,null,null,null,null,null,null,null,null,null,null,null,null,null,null,null,null,null,77,null,null,null,null,null,null,null,null,null,null,4,12,"",22,0]
[null,null,null,null,null,null,null,null,null,null,null,null,null,null,null,null,null,null,null,null,null,null,null,null,null,78,null,null,null,null,null,null,null,null,null,null,4,13,"",22,3]
[null,null,null,null,null,null,null,null,null,null,null,null,null,null,null,null,null,null,null,null,null,null,null,null,null,79,null,null,null,null,null,null,null,null,null,null,4,14,"",22,6]
[null,null,null,null,null,null,null,null,null,null,null,null,null,null,null,null,null,null,null,null,null,null,null,null,null,80,null,null,null,null,null,null,null,null,null,null,4,15,"",22,9]
[null,null,null,null,null,null,null,null,null,null,null,null,null,null,null,null,null,null,null,null,null,null,null,null,null,81,null,null,null,null,null,null,null,null,null,null,5,0,"",5,0]
[null,null,null,null,null,null,null,null,null,null,null,null,null,null,null,null,null,null,null,null,null,null,null,null,null,82,null,null,null,null,null,null,null,null,null,null,5,1,"",5,3]
[null,null,null,null,null,null,null,null,null,null,null,null,null,null,null,null,null,null,null,null,null,null,null,null,null,83,null,null,null,null,null,null,null,null,null,null,5,2,"",5,6]
[null,null,null,null,null,null,null,null,null,null,null,null,null,null,null,null,null,null,null,null,null,null,null,null,null,84,null,null,null,null,null,null,null,null,null,null,5,3,"",5,9]
[null,null,null,null,null,null,null,null,null,null,null,null,null,null,null,null,null,null,null,null,null,null,null,null,null,85,null,null,null,null,null,null,null,null,null,null,5,4,"",11,0]
[null,null,null,null,null,null,null,null,null,null,null,null,null,null,null,null,null,null,null,null,null,null,null,null,null,86,null,null,null,null,null,null,null,null,null,null,5,5,"",11,3]
[null,null,null,null,null,null,null,null,null,null,null,null,null,null,null,null,null,null,null,null,null,null,null,null,null,87,null,null,null,null,null,null,null,null,null,null,5,6,"",11,6]
[null,null,null,null,null,null,null,null,null,null,null,null,null,null,null,null,null,null,null,null,null,null,null,null,null,88,null,null,null,null,null,null,null,null,null,null,5,7,"",11,9]
[null,null,null,null,null,null,null,null,null,null,null,null,null,null,null,null,null,null,null,null,null,null,null,null,null,89,null,null,null,null,null,null,null,null,null,null,5,8,"",17,0]
[null,null,null,null,null,null,null,null,null,null,null,null,null,null,null,null,null,null,null,null,null,null,null,null,null,90,null,null,null,null,null,null,null,null,null,null,5,9,"",17,3]
[null,null,null,null,null,null,null,null,null,null,null,null,null,null,null,null,null,null,null,null,null,null,null,null,null,91,null,null,null,null,null,null,null,null,null,null,5,10,"",17,6]
[null,null,null,null,null,null,null,null,null,null,null,null,null,null,null,null,null,null,null,null,null,null,null,null,null,92,null,null,null,null,null,null,null,null,null,null,5,11,"",17,9]
[null,null,null,null,null,null,null,null,null,null,null,null,null,null,null,null,null,null,null,null,null,null,null,null,null,93,null,null,null,null,null,null,null,null,null,null,5,12,"",23,0]
[null,null,null,null,null,null,null,null,null,null,null,null,null,null,null,null,null,null,null,null,null,null,null,null,null,94,null,null,null,null,null,null,null,null,null,null,5,13,"",23,3]
[null,null,null,null,null,null,null,null,null,null,null,null,null,null,null,null,null,null,null,null,null,null,null,null,null,95,null,null,null,null,null,null,null,null,null,null,5,14,"",23,6]
[null,null,null,null,null,null,null,null,null,null,null,null,null,null,null,null,null,null,null,null,null,null,null,null,null,96,null,null,null,null,null,null,null,null,null,null,5,15,"",23,9]
[null,null,null,null,null,null,null,null,null,null,null,null,null,null,null,null,null,null,null,null,null,null,null,null,null,97,null,null,null,null,null,null,null,null,null,null,6,0,{"$f":"IF(Z101>DrawNbParticipants,\"\",OFFSET($O$3,2+AK101+(DrawGroupSize+1+IF(OFFSET($W$3,DrawGroupSize-1+2,0)=\"\",0,1))*QUOTIENT(AL101,4),MOD(AL101,4)*3))","v":""},6,0]
[null,null,null,null,null,null,null,null,null,null,null,null,null,null,null,null,null,null,null,null,null,null,null,null,null,98,null,null,null,null,null,null,null,null,null,null,6,1,"",6,3]
[null,null,null,null,null,null,null,null,null,null,null,null,null,null,null,null,null,null,null,null,null,null,null,null,null,99,null,null,null,null,null,null,null,null,null,null,6,2,"",6,6]
[null,null,null,null,null,null,null,null,null,null,null,null,null,null,null,null,null,null,null,null,null,null,null,null,null,100,null,null,null,null,null,null,null,null,null,null,6,3,"",6,9]
[null,null,null,null,null,null,null,null,null,null,null,null,null,null,null,null,null,null,null,null,null,null,null,null,null,101,null,null,null,null,null,null,null,null,null,null,6,4,"",12,0]
[null,null,null,null,null,null,null,null,null,null,null,null,null,null,null,null,null,null,null,null,null,null,null,null,null,102,null,null,null,null,null,null,null,null,null,null,6,5,"",12,3]
[null,null,null,null,null,null,null,null,null,null,null,null,null,null,null,null,null,null,null,null,null,null,null,null,null,103,null,null,null,null,null,null,null,null,null,null,6,6,"",12,6]
[null,null,null,null,null,null,null,null,null,null,null,null,null,null,null,null,null,null,null,null,null,null,null,null,null,104,null,null,null,null,null,null,null,null,null,null,6,7,"",12,9]
[null,null,null,null,null,null,null,null,null,null,null,null,null,null,null,null,null,null,null,null,null,null,null,null,null,105,null,null,null,null,null,null,null,null,null,null,6,8,"",18,0]
[null,null,null,null,null,null,null,null,null,null,null,null,null,null,null,null,null,null,null,null,null,null,null,null,null,106,null,null,null,null,null,null,null,null,null,null,6,9,"",18,3]
[null,null,null,null,null,null,null,null,null,null,null,null,null,null,null,null,null,null,null,null,null,null,null,null,null,107,null,null,null,null,null,null,null,null,null,null,6,10,"",18,6]
[null,null,null,null,null,null,null,null,null,null,null,null,null,null,null,null,null,null,null,null,null,null,null,null,null,108,null,null,null,null,null,null,null,null,null,null,6,11,"",18,9]
[null,null,null,null,null,null,null,null,null,null,null,null,null,null,null,null,null,null,null,null,null,null,null,null,null,109,null,null,null,null,null,null,null,null,null,null,6,12,"",24,0]
[null,null,null,null,null,null,null,null,null,null,null,null,null,null,null,null,null,null,null,null,null,null,null,null,null,110,null,null,null,null,null,null,null,null,null,null,6,13,"",24,3]
[null,null,null,null,null,null,null,null,null,null,null,null,null,null,null,null,null,null,null,null,null,null,null,null,null,111,null,null,null,null,null,null,null,null,null,null,6,14,"",24,6]
[null,null,null,null,null,null,null,null,null,null,null,null,null,null,null,null,null,null,null,null,null,null,null,null,null,112,null,null,null,null,null,null,null,null,null,null,6,15,"",24,9]
[null,null,null,null,null,null,null,null,null,null,null,null,null,null,null,null,null,null,null,null,null,null,null,null,null,113,null,null,null,null,null,null,null,null,null,null,7,0,"",7,0]
[null,null,null,null,null,null,null,null,null,null,null,null,null,null,null,null,null,null,null,null,null,null,null,null,null,114,null,null,null,null,null,null,null,null,null,null,7,1,"",7,3]
[null,null,null,null,null,null,null,null,null,null,null,null,null,null,null,null,null,null,null,null,null,null,null,null,null,115,null,null,null,null,null,null,null,null,null,null,7,2,"",7,6]
[null,null,null,null,null,null,null,null,null,null,null,null,null,null,null,null,null,null,null,null,null,null,null,null,null,116,null,null,null,null,null,null,null,null,null,null,7,3,"",7,9]
[null,null,null,null,null,null,null,null,null,null,null,null,null,null,null,null,null,null,null,null,null,null,null,null,null,117,null,null,null,null,null,null,null,null,null,null,7,4,"",13,0]
[null,null,null,null,null,null,null,null,null,null,null,null,null,null,null,null,null,null,null,null,null,null,null,null,null,118,null,null,null,null,null,null,null,null,null,null,7,5,"",13,3]
[null,null,null,null,null,null,null,null,null,null,null,null,null,null,null,null,null,null,null,null,null,null,null,null,null,119,null,null,null,null,null,null,null,null,null,null,7,6,"",13,6]
[null,null,null,null,null,null,null,null,null,null,null,null,null,null,null,null,null,null,null,null,null,null,null,null,null,120,null,null,null,null,null,null,null,null,null,null,7,7,"",13,9]
[null,null,null,null,null,null,null,null,null,null,null,null,null,null,null,null,null,null,null,null,null,null,null,null,null,121,null,null,null,null,null,null,null,null,null,null,7,8,"",19,0]
[null,null,null,null,null,null,null,null,null,null,null,null,null,null,null,null,null,null,null,null,null,null,null,null,null,122,null,null,null,null,null,null,null,null,null,null,7,9,"",19,3]
[null,null,null,null,null,null,null,null,null,null,null,null,null,null,null,null,null,null,null,null,null,null,null,null,null,123,null,null,null,null,null,null,null,null,null,null,7,10,"",19,6]
[null,null,null,null,null,null,null,null,null,null,null,null,null,null,null,null,null,null,null,null,null,null,null,null,null,124,null,null,null,null,null,null,null,null,null,null,7,11,"",19,9]
[null,null,null,null,null,null,null,null,null,null,null,null,null,null,null,null,null,null,null,null,null,null,null,null,null,125,null,null,null,null,null,null,null,null,null,null,7,12,"",25,0]
[null,null,null,null,null,null,null,null,null,null,null,null,null,null,null,null,null,null,null,null,null,null,null,null,null,126,null,null,null,null,null,null,null,null,null,null,7,13,"",25,3]
[null,null,null,null,null,null,null,null,null,null,null,null,null,null,null,null,null,null,null,null,null,null,null,null,null,127,null,null,null,null,null,null,null,null,null,null,7,14,"",25,6]
[null,null,null,null,null,null,null,null,null,null,null,null,null,null,null,null,null,null,null,null,null,null,null,null,null,{"$f":"ROW(Z132)-ROW(Z$4)","v":128},null,null,null,null,null,null,null,null,null,null,7,15,"",25,9]

{"sheet":"ExportResultsModel","index":28,"n_rows":101,"n_cols":21,"rows_kept":101,"cut":false,"hidden":true,"merged":[]}
["Results","Tournament Title automatically updated"]
[]
[{"$f":"N_Session","v":"Session Nbr "},1,null,null,null,"09:45:00"]
["test - Group 1 - Round 1","Firstname LASTNAME",1,"-",2,"Firstname LASTNAME",null,null,{"$f":"N_Joueurs","v":"Players"},{"$f":"N_Pts","v":"Pts"},{"$f":"N_J","v":"Pld"},{"$f":"N_G","v":"W"},{"$f":"N_N","v":"D"},{"$f":"N_P","v":"L"},{"$f":"N_BP","v":"F"},{"$f":"N_BC","v":"A"},{"$f":"N_Diff.","v":"SO"}]
["test - Group 2 - Round 1","Firstname LASTNAME",1,"-",2,"Firstname LASTNAME","sd",null,"Alexander Haas",9]
["test - Group 3 - Round 1","Firstname LASTNAME",2,"-",2,"Firstname LASTNAME","sh: 3-2",null,"Derek Conti",6]
[null,null,null,null,null,null,null,null,"Jean-Guillaume Einsle",3]
[null,null,null,null,null,null,null,null,"Chesney Van Keimpema",0]
["test - Group 1 - Round 1","Team A",2,"-",2,"Team B","[ 6- 6 ] (sh : 3-2)"]
[null,"Firstname LASTNAME",1,"-",2,"Firstname LASTNAME",null,null,{"$f":"N_Equipes","v":"Teams"},{"$f":"N_Pts","v":"Pts"},{"$f":"N_J","v":"Pld"},{"$f":"N_G","v":"W"},{"$f":"N_N","v":"D"},{"$f":"N_P","v":"L"},{"$f":"N_Diff_R","v":"ED"},{"$f":"N_MP","v":"WM"},{"$f":"N_MC","v":"LM"},{"$f":"N_Diff_M","v":"MD"},{"$f":"N_BP","v":"F"},{"$f":"N_BC","v":"A"},{"$f":"N_Diff_B","v":"GD"}]
[null,"Firstname LASTNAME",2,"-",1,"Firstname LASTNAME",null,null,"Alexander Haas",9]
[null,"Firstname LASTNAME",2,"-",1,"Firstname LASTNAME",null,null,"Derek Conti",6]
[null,"Firstname LASTNAME",1,"-",2,"Firstname LASTNAME",null,null,"Jean-Guillaume Einsle",3]
[{"$f":"N_Différentiel","v":"Shoot Out"},"Firstname LASTNAME",3,"-",2,"Firstname LASTNAME",null,null,"Chesney Van Keimpema",0]
[{"$f":"N_Substitue","v":"Substitute"},"Firstname LASTNAME","S1",null,"S3","Firstname LASTNAME",null,null,"Jean-Guillaume Einsle",3]
[{"$f":"N_Substitue","v":"Substitute"},null,null,null,"S4","Firstname LASTNAME"]
["test - Group 1 - Round 1","Team A",2,"-",2,"Team B","[ 7- 6 ] (sd)"]
[null,"Firstname LASTNAME",1,"-",2,"Firstname LASTNAME"]
[null,"Firstname LASTNAME",3,"-",1,"Firstname LASTNAME","sd"]
[null,"Firstname LASTNAME",2,"-",1,"Firstname LASTNAME"]
[null,"Firstname LASTNAME",1,"-",2,"Firstname LASTNAME"]
[null,null,null,null,"S3","Firstname LASTNAME"]
["test - Group 1 - Round 1","Team A",2,"-",1,"Team B","[ 8- 6 ] "]
[null,"Firstname LASTNAME",1,"-",2,"Firstname LASTNAME"]
[null,"Firstname LASTNAME",3,"-",1,"Firstname LASTNAME"]
[null,"Firstname LASTNAME",2,"-",1,"Firstname LASTNAME"]
[null,"Firstname LASTNAME",2,"-",2,"Firstname LASTNAME"]
[]
[]
[null,"Mandatory zones :"]
[null,"Click to check the current zone"]
[]
[null,"Tournament_Title","Title of the Tournament"]
[]
[null,"Rows 1 & 2","Header lines for printing"]
[]
[null,"Results_Session_Header","Named area (name) containing the Header of a session. This Area contains following updatable zones :"]
[null,null,null,"Col 1 : Session Nbr label"]
[null,null,null,"Col 2 : Session number"]
[null,null,null,"Col 6 : Session Hour"]
[]
[null,"Results_Match_First","Named area (name) containing one match result with following updatable zones :"]
[null,"Results_Match_Even",null,"Col 1  : Stage"]
[null,"Results_Match_Odd",null,"Col 2 : Player 1"]
[null,null,null,"Col 3 & 5 : Goals"]
[null,null,null,"Col 6 : Player 2"]
[null,null,null,"Col 7 : Special result ( sudden death or shouts)"]
[null,"Results_Group_Header","Named area (name) containing the header and results with following updatable zones :"]
[null,"Results_Group_FirstLine",null,"Col 1 : \"EventName - Group Group_N°\" for the header and player's names for other rows."]
[null,"Results_Group_EvenLine",null,"Col 2 : Points "]
[null,"Results_Group_OddLine",null,"Col 3 : Number of match played"]
[null,"Results_Group_LastLine",null,"Col 4 : Number of win "]
[null,null,null,"Col 5 : Number of Draw"]
[null,null,null,"Col 6 : Number of loose"]
[null,null,null,"Col 7 : Number of goals"]
[null,null,null,"Col 8 : Number of goals against"]
[null,null,null,"Col 9 : Goal difference"]
[]
[null,"Results_Match_Team_First","Named area (name) containing one encounter result with following updatable zones :"]
[null,"Results_Match_Team_Even",null,"Col 1  : Stage"]
[null,"Results_Match_Team_Odd",null,"Col 2 : Team 1"]
[null,null,null,"Col 3 & 5 : Won matches"]
[null,null,null,"Col 6 : Team 2"]
[null,null,null,"Col 7 : Special result ( Total of Goals and sudden death or shouts)"]
[]
[null,"Results_Match_TeamMatch","Named area (name) containing One individual match with following updatable zones :"]
[null,null,null,"Col 2 : Player 1"]
[null,null,null,"Col 3 & 5 : Goals"]
[null,null,null,"Col 6 : Player 2"]
[null,null,null,"Col 7 : Special result ( sudden death )"]
[null,"Results_Match_TeamLastMatch","Named area (name) containing One individual match with following updatable zones :"]
[null,null,null,"Col 2 : Player 1"]
[null,null,null,"Col 3 & 5 : Goals"]
[null,null,null,"Col 6 : Player 2"]
[null,null,null,"Col 7 : Special result ( sudden death )"]
[null,"Results_Match_TeamSubstitute","Named area (name) containing effective substitutions with following updatable zones :"]
[null,null,null,"Col 2 : Substitute for Team 1"]
[null,null,null,"Col 3 & 5 : Substitution Match (S1 to S4)"]
[null,null,null,"Col 6 : Subsitute for Team 2"]
[null,"Results_Match_TeamSubstituteEnd","Named area (name) containing effective substitutions with following updatable zones :"]
[null,null,null,"Col 2 : Substitute for Team 1"]
[null,null,null,"Col 3 & 5 : Substitution Match (S1 to S4)"]
[null,null,null,"Col 6 : Subsitute for Team 2"]
[null,"Results_Match_TeamShouts","Named area (name) containing shouts result with following updatable zones :"]
[null,null,null,"Col 2 : Player 1"]
[null,null,null,"Col 3 & 5 : Goals"]
[null,null,null,"Col 6 : Player 2"]
[]
[null,"Results_Group_Header_Team","Named area (name) containing the header and results with following updatable zones :"]
[null,"Results_Group_FirstLine_Team",null,"Col 1 : \"EventName - Group Group_N°\" for the header and player's names for other rows."]
[null,"Results_Group_EvenLine_Team",null,"Col 2 : Points "]
[null,"Results_Group_OddLine_Team",null,"Col 3 : Number of encounter played"]
[null,"Results_Group_LastLine_Team",null,"Col 4 : Number of won encounters"]
[null,null,null,"Col 5 : Number of Draw encounters"]
[null,null,null,"Col 6 : Number of loose encounters"]
[null,null,null,"Col 7 : Number of won individual matches"]
[null,null,null,"Col 8 : Number of loose individual matches"]
[null,null,null,"Col 9 : Matches difference"]
[null,null,null,"Col 10 : Number of goals"]
[null,null,null,"Col 11 : Number of goals against"]
[null,null,null,"Col 12 : Goal difference"]

{"sheet":"Planning","index":29,"n_rows":179,"n_cols":42,"rows_kept":179,"cut":false,"hidden":false,"merged":[[0,41,2,41],[1,33,1,36],[1,30,1,32],[2,17,2,19],[0,37,2,37],[0,38,2,38],[0,39,2,39],[0,40,2,40]]}
[null,null,{"$f":"N_PlanningTitle","v":"PLANNING"},null,null,null,null,null,null,null,null,null,null,null,null,null,null,null,null,null,null,null,null,null,null,null,null,null,null,null,null,null,null,null,null,null,null,{"$f":"N_CheckReferee_Club_InGroup","v":"Referee in the same Club as one of players of the group"},{"$f":"N_CheckReferee_Nat_InGroup","v":"Referee with the same Nationality as one of players of the group"},{"$f":"N_CheckReferee_SameClub","v":"Referee in the same Club as one of players"},{"$f":"N_CheckReferee_SameNat","v":"Referee with the same Nationality as one of players"},{"$f":"N_CheckReferee_SameGroup","v":"Referee in the same Group as one of players"}]
[null,null,null,null,null,null,null,null,null,null,null,{"$f":"N_Matches","v":"Matches"},null,null,null,null,null,null,null,null,null,null,null,null,null,null,null,null,null,null,"FISTF export fields",null,null,"For Statistics"]
[{"$f":"N_Heure","v":"Time"},null,{"$f":"N_Catégorie","v":"Stage"},null,{"$f":"N_N__de_table","v":"Table N°"},null,null,null,null,null,null,{"$f":"N_Player1","v":"Player 1"},null,"-",null,{"$f":"N_Player2","v":"Player 2"},{"$f":"N_MS","v":"SD"},{"$f":"N_Diff","v":"Pen."},null,null,null,null,null,null,null,null,{"$f":"N_Arbitre","v":"Referee"},null,null,"Referee with hour","Category","Stage","Group",{"$f":"N_Winner","v":"Winner"},{"$f":"N_Draw & \"1\"","v":"Draw1"},{"$f":"N_Draw & \"2\"","v":"Draw2"},{"$f":"N_Loser","v":"Loser"}]
["08:30:00",null,{"$f":"N_Session","v":"Session Nbr "},null,1,null,"S1",null,null,null,null,{"$f":"N_Duration","v":"Duration"},null,":",null,"00:50:00"]
[{"$f":"OFFSET(A5,-1,0)","v":"08:30:00"},null,{"$f":"\"Team - \" & N_Group & \" 1\" & \" - \" & N_Round & \" 2\"","v":"Team - Group 1 - Rd 2"},null,null,null,"TG",{"$f":"IF(K5=\"\",\"\",SUBSTITUTE(MID(K5,1,SEARCH(\"!\",K5,1)-1),\"'\",\"\"))","v":"Team"},{"$f":"IF(K5=\"\",\"\",CELL(\"row\",INDIRECT(K5)))","v":27},{"$f":"IF(K5=\"\",\"\",CELL(\"col\",INDIRECT(K5)))","v":25},{"$f":"MID(Lire_Formule(L5),2,10000)","v":"Team!Y27"},{"$f":"Team!Y27","v":"GCT DLF Gorizia (gor)"},0,"-",3,{"$f":"IF(K5=\"\",\"\",IF(RIGHT(G5,1)=\"T\",INDIRECT(ADDRESS(I5+2,J5,4,TRUE,H5)),INDIRECT(ADDRESS(I5,J5+4,4,TRUE,H5))))","v":"Atlas FTC (atl)"},null,{"$f":"IF(M5=\"\",\"\",SUM(M6:M9))","v":0},null,{"$f":"IF(O5=\"\",\"\",SUM(O6:O9))","v":12},null,{"$f":"L5&TEXT(A5,\"hh:mm\")","v":"GCT DLF Gorizia (gor)08:30"},{"$f":"P5&TEXT(A5,\"hh:mm\")","v":"Atlas FTC (atl)08:30"},{"$f":"IF(L5=\"\",0,COUNTIF(PlayersAndHoursCol1,L5&TEXT($A5,\"hh:mm\"))+COUNTIF(PlayersAndHoursCol2,L5&TEXT($A5,\"hh:mm\")))","v":1},{"$f":"IF(P5=\"\",0,COUNTIF(PlayersAndHoursCol1,P5&TEXT($A5,\"hh:mm\"))+COUNTIF(PlayersAndHoursCol2,P5&TEXT($A5,\"hh:mm\")))","v":1},{"$f":"IF(AA5=\"\",FALSE,NOT(AND(ISNA(MATCH(AA5&TEXT($A5,\"hh:mm\"),PlayersAndHoursCol1,0)),ISNA(MATCH(AA5&TEXT($A5,\"hh:mm\"),PlayersAndHoursCol2,0)),COUNTIF(AD:AD,AA5&$A5)<=1)))","v":false},"Barbarian Mixed Team","V",null,{"$f":"AA5&A5","v":"Barbarian Mixed Team0,354166666666667"},"Team","Groups",2,{"$f":"IF(OR(M5>O5,R5>T5),L5,IF(OR(M5<O5,R5<T5),P5,\"\"))","v":"Atlas FTC (atl)"},{"$f":"IF(AND(M5<>\"\",M5=O5,R5=T5),L5,\"\")","v":""},{"$f":"IF(AND(M5<>\"\",M5=O5,R5=T5),P5,\"\")","v":""},{"$f":"IF(OR(M5<O5,R5<T5),L5,IF(OR(M5>O5,R5>T5),P5,\"\"))","v":"GCT DLF Gorizia (gor)"},{"$f":"IF(OR($AB5=\"\",$AB5=\"V\"),\"\",IF(MOD($AB5,10)=1,\"XXX\",\"\"))","v":""},{"$f":"IF(OR($AB5=\"\",$AB5=\"V\"),\"\",IF(MOD($AB5,100)>=10,\"XXX\",\"\"))","v":""},{"$f":"IF(OR($AB5=\"\",$AB5=\"V\"),\"\",IF(MOD($AB5,1000)>=100,\"XXX\",\"\"))","v":""},{"$f":"IF(OR($AB5=\"\",$AB5=\"V\"),\"\",IF(MOD($AB5,10000)>=1000,\"XXX\",\"\"))","v":""},{"$f":"IF(OR($AB5=\"\",$AB5=\"V\"),\"\",IF(MOD($AB5,100000)>=10000,\"XXX\",\"\"))","v":""}]
[{"$f":"A5","v":"08:30:00"},null,{"$f":"C5","v":"Team - Group 1 - Rd 2"},null,null,null,{"$f":"G5&1","v":"TG1"},null,null,null,null,"Michael Stolzenberg ()",0,"-",4,"Stylianos Tsangouris (atl)",null,null,null,null,null,"Michael Stolzenberg ()08:30","Stylianos Tsangouris (atl)08:30",1,1,{"$f":"IF(AA6=\"\",FALSE,NOT(AND(ISNA(MATCH(AA6&TEXT($A6,\"hh:mm\"),PlayersAndHoursCol1,0)),ISNA(MATCH(AA6&TEXT($A6,\"hh:mm\"),PlayersAndHoursCol2,0)),COUNTIF(AD:AD,AA6&$A6)<=1)))","v":false},null,null,null,null,null,null,null,{"$f":"IF(OR(M6>O6,R6>T6),L6,IF(OR(M6<O6,R6<T6),P6,\"\"))","v":"Stylianos Tsangouris (atl)"},{"$f":"IF(AND(M6<>\"\",M6=O6,R6=T6),L6,\"\")","v":""},{"$f":"IF(AND(M6<>\"\",M6=O6,R6=T6),P6,\"\")","v":""},{"$f":"IF(OR(M6<O6,R6<T6),L6,IF(OR(M6>O6,R6>T6),P6,\"\"))","v":"Michael Stolzenberg ()"},{"$f":"IF(OR($AB6=\"\",$AB6=\"V\"),\"\",IF(MOD($AB6,10)=1,\"XXX\",\"\"))","v":""},{"$f":"IF(OR($AB6=\"\",$AB6=\"V\"),\"\",IF(MOD($AB6,100)>=10,\"XXX\",\"\"))","v":""},{"$f":"IF(OR($AB6=\"\",$AB6=\"V\"),\"\",IF(MOD($AB6,1000)>=100,\"XXX\",\"\"))","v":""},{"$f":"IF(OR($AB6=\"\",$AB6=\"V\"),\"\",IF(MOD($AB6,10000)>=1000,\"XXX\",\"\"))","v":""},{"$f":"IF(OR($AB6=\"\",$AB6=\"V\"),\"\",IF(MOD($AB6,100000)>=10000,\"XXX\",\"\"))","v":""}]
[{"$f":"A6","v":"08:30:00"},null,{"$f":"C6","v":"Team - Group 1 - Rd 2"},null,null,null,{"$f":"G5&2","v":"TG2"},null,null,null,null,"Michele Cerullo (gor)",0,"-",0,"Giannis Nikolaidis (atl)",null,null,null,null,null,"Michele Cerullo (gor)08:30","Giannis Nikolaidis (atl)08:30",1,1,{"$f":"IF(AA7=\"\",FALSE,NOT(AND(ISNA(MATCH(AA7&TEXT($A7,\"hh:mm\"),PlayersAndHoursCol1,0)),ISNA(MATCH(AA7&TEXT($A7,\"hh:mm\"),PlayersAndHoursCol2,0)),COUNTIF(AD:AD,AA7&$A7)<=1)))","v":false},null,null,null,null,null,null,null,{"$f":"IF(OR(M7>O7,R7>T7),L7,IF(OR(M7<O7,R7<T7),P7,\"\"))","v":""},{"$f":"IF(AND(M7<>\"\",M7=O7,R7=T7),L7,\"\")","v":"Michele Cerullo (gor)"},{"$f":"IF(AND(M7<>\"\",M7=O7,R7=T7),P7,\"\")","v":"Giannis Nikolaidis (atl)"},{"$f":"IF(OR(M7<O7,R7<T7),L7,IF(OR(M7>O7,R7>T7),P7,\"\"))","v":""},{"$f":"IF(OR($AB7=\"\",$AB7=\"V\"),\"\",IF(MOD($AB7,10)=1,\"XXX\",\"\"))","v":""},{"$f":"IF(OR($AB7=\"\",$AB7=\"V\"),\"\",IF(MOD($AB7,100)>=10,\"XXX\",\"\"))","v":""},{"$f":"IF(OR($AB7=\"\",$AB7=\"V\"),\"\",IF(MOD($AB7,1000)>=100,\"XXX\",\"\"))","v":""},{"$f":"IF(OR($AB7=\"\",$AB7=\"V\"),\"\",IF(MOD($AB7,10000)>=1000,\"XXX\",\"\"))","v":""},{"$f":"IF(OR($AB7=\"\",$AB7=\"V\"),\"\",IF(MOD($AB7,100000)>=10000,\"XXX\",\"\"))","v":""}]
[{"$f":"A7","v":"08:30:00"},null,{"$f":"C7","v":"Team - Group 1 - Rd 2"},null,null,null,{"$f":"G5&3","v":"TG3"},null,null,null,null,"Marco Pinausi (gor)",0,"-",3,"Joffray Laurent (atl)",null,null,null,null,null,"Marco Pinausi (gor)08:30","Joffray Laurent (atl)08:30",1,1,{"$f":"IF(AA8=\"\",FALSE,NOT(AND(ISNA(MATCH(AA8&TEXT($A8,\"hh:mm\"),PlayersAndHoursCol1,0)),ISNA(MATCH(AA8&TEXT($A8,\"hh:mm\"),PlayersAndHoursCol2,0)),COUNTIF(AD:AD,AA8&$A8)<=1)))","v":false},null,null,null,null,null,null,null,{"$f":"IF(OR(M8>O8,R8>T8),L8,IF(OR(M8<O8,R8<T8),P8,\"\"))","v":"Joffray Laurent (atl)"},{"$f":"IF(AND(M8<>\"\",M8=O8,R8=T8),L8,\"\")","v":""},{"$f":"IF(AND(M8<>\"\",M8=O8,R8=T8),P8,\"\")","v":""},{"$f":"IF(OR(M8<O8,R8<T8),L8,IF(OR(M8>O8,R8>T8),P8,\"\"))","v":"Marco Pinausi (gor)"},{"$f":"IF(OR($AB8=\"\",$AB8=\"V\"),\"\",IF(MOD($AB8,10)=1,\"XXX\",\"\"))","v":""},{"$f":"IF(OR($AB8=\"\",$AB8=\"V\"),\"\",IF(MOD($AB8,100)>=10,\"XXX\",\"\"))","v":""},{"$f":"IF(OR($AB8=\"\",$AB8=\"V\"),\"\",IF(MOD($AB8,1000)>=100,\"XXX\",\"\"))","v":""},{"$f":"IF(OR($AB8=\"\",$AB8=\"V\"),\"\",IF(MOD($AB8,10000)>=1000,\"XXX\",\"\"))","v":""},{"$f":"IF(OR($AB8=\"\",$AB8=\"V\"),\"\",IF(MOD($AB8,100000)>=10000,\"XXX\",\"\"))","v":""}]
[{"$f":"A8","v":"08:30:00"},null,{"$f":"C8","v":"Team - Group 1 - Rd 2"},null,null,null,{"$f":"G5&4","v":"TG4"},null,null,null,null,"To be defined",0,"-",5,"Athanasios Chaliotis (atl)",null,null,null,null,null,"To be defined08:30","Athanasios Chaliotis (atl)08:30",1,1,{"$f":"IF(AA9=\"\",FALSE,NOT(AND(ISNA(MATCH(AA9&TEXT($A9,\"hh:mm\"),PlayersAndHoursCol1,0)),ISNA(MATCH(AA9&TEXT($A9,\"hh:mm\"),PlayersAndHoursCol2,0)),COUNTIF(AD:AD,AA9&$A9)<=1)))","v":false},null,null,null,null,null,null,null,{"$f":"IF(OR(M9>O9,R9>T9),L9,IF(OR(M9<O9,R9<T9),P9,\"\"))","v":"Athanasios Chaliotis (atl)"},{"$f":"IF(AND(M9<>\"\",M9=O9,R9=T9),L9,\"\")","v":""},{"$f":"IF(AND(M9<>\"\",M9=O9,R9=T9),P9,\"\")","v":""},{"$f":"IF(OR(M9<O9,R9<T9),L9,IF(OR(M9>O9,R9>T9),P9,\"\"))","v":"To be defined"},{"$f":"IF(OR($AB9=\"\",$AB9=\"V\"),\"\",IF(MOD($AB9,10)=1,\"XXX\",\"\"))","v":""},{"$f":"IF(OR($AB9=\"\",$AB9=\"V\"),\"\",IF(MOD($AB9,100)>=10,\"XXX\",\"\"))","v":""},{"$f":"IF(OR($AB9=\"\",$AB9=\"V\"),\"\",IF(MOD($AB9,1000)>=100,\"XXX\",\"\"))","v":""},{"$f":"IF(OR($AB9=\"\",$AB9=\"V\"),\"\",IF(MOD($AB9,10000)>=1000,\"XXX\",\"\"))","v":""},{"$f":"IF(OR($AB9=\"\",$AB9=\"V\"),\"\",IF(MOD($AB9,100000)>=10000,\"XXX\",\"\"))","v":""}]
[{"$f":"A9","v":"08:30:00"},null,null,null,{"$f":"N_Substitute","v":"Substitute"},null,{"$f":"G5&\"SB1\"","v":"TGSB1"},null,null,null,null,null,null,null,null,null,null,null,null,null,null,"08:30","08:30",0,0]
[{"$f":"A5","v":"08:30:00"},null,null,null,{"$f":"N_Substitute","v":"Substitute"},null,{"$f":"G5&\"SB2\"","v":"TGSB2"},null,null,null,null,null,null,null,null,null,null,null,null,null,null,"08:30","08:30",0,0]
[{"$f":"OFFSET(A12,-1,0)","v":"08:30:00"},null,{"$f":"\"Team - \" & N_Group & \" 2\" & \" - \" & N_Round & \" 2\"","v":"Team - Group 2 - Rd 2"},null,null,null,"TG",{"$f":"IF(K12=\"\",\"\",SUBSTITUTE(MID(K12,1,SEARCH(\"!\",K12,1)-1),\"'\",\"\"))","v":"Team"},{"$f":"IF(K12=\"\",\"\",CELL(\"row\",INDIRECT(K12)))","v":114},{"$f":"IF(K12=\"\",\"\",CELL(\"col\",INDIRECT(K12)))","v":25},{"$f":"MID(Lire_Formule(L12),2,10000)","v":"Team!Y114"},{"$f":"Team!Y114","v":"TSC Phoenix 2 (wie)"},1,"-",2,{"$f":"IF(K12=\"\",\"\",IF(RIGHT(G12,1)=\"T\",INDIRECT(ADDRESS(I12+2,J12,4,TRUE,H12)),INDIRECT(ADDRESS(I12,J12+4,4,TRUE,H12))))","v":"TSC Royal 78 Kaisermühlen 2 (roy)"},null,{"$f":"IF(M12=\"\",\"\",SUM(M13:M16))","v":5},null,{"$f":"IF(O12=\"\",\"\",SUM(O13:O16))","v":5},null,{"$f":"L12&TEXT(A12,\"hh:mm\")","v":"TSC Phoenix 2 (wie)08:30"},{"$f":"P12&TEXT(A12,\"hh:mm\")","v":"TSC Royal 78 Kaisermühlen 2 (roy)08:30"},1,1,{"$f":"IF(AA12=\"\",FALSE,NOT(AND(ISNA(MATCH(AA12&TEXT($A12,\"hh:mm\"),PlayersAndHoursCol1,0)),ISNA(MATCH(AA12&TEXT($A12,\"hh:mm\"),PlayersAndHoursCol2,0)),COUNTIF(AD:AD,AA12&$A12)<=1)))","v":false},"Bormla SC (bor)","V",null,{"$f":"AA12&A12","v":"Bormla SC (bor)0,354166666666667"},"Team","Groups",2,{"$f":"IF(OR(M12>O12,R12>T12),L12,IF(OR(M12<O12,R12<T12),P12,\"\"))","v":"TSC Royal 78 Kaisermühlen 2 (roy)"},{"$f":"IF(AND(M12<>\"\",M12=O12,R12=T12),L12,\"\")","v":""},{"$f":"IF(AND(M12<>\"\",M12=O12,R12=T12),P12,\"\")","v":""},{"$f":"IF(OR(M12<O12,R12<T12),L12,IF(OR(M12>O12,R12>T12),P12,\"\"))","v":"TSC Phoenix 2 (wie)"},{"$f":"IF(OR($AB12=\"\",$AB12=\"V\"),\"\",IF(MOD($AB12,10)=1,\"XXX\",\"\"))","v":""},{"$f":"IF(OR($AB12=\"\",$AB12=\"V\"),\"\",IF(MOD($AB12,100)>=10,\"XXX\",\"\"))","v":""},{"$f":"IF(OR($AB12=\"\",$AB12=\"V\"),\"\",IF(MOD($AB12,1000)>=100,\"XXX\",\"\"))","v":""},{"$f":"IF(OR($AB12=\"\",$AB12=\"V\"),\"\",IF(MOD($AB12,10000)>=1000,\"XXX\",\"\"))","v":""},{"$f":"IF(OR($AB12=\"\",$AB12=\"V\"),\"\",IF(MOD($AB12,100000)>=10000,\"XXX\",\"\"))","v":""}]
[{"$f":"A12","v":"08:30:00"},null,{"$f":"C12","v":"Team - Group 2 - Rd 2"},null,null,null,{"$f":"G12&1","v":"TG1"},null,null,null,null,"Gábor Baross (wie)",1,"-",2,"Eder Heinz (roy)",null,null,null,null,null,"Gábor Baross (wie)08:30","Eder Heinz (roy)08:30",1,1,{"$f":"IF(AA13=\"\",FALSE,NOT(AND(ISNA(MATCH(AA13&TEXT($A13,\"hh:mm\"),PlayersAndHoursCol1,0)),ISNA(MATCH(AA13&TEXT($A13,\"hh:mm\"),PlayersAndHoursCol2,0)),COUNTIF(AD:AD,AA13&$A13)<=1)))","v":false},null,null,null,null,null,null,null,{"$f":"IF(OR(M13>O13,R13>T13),L13,IF(OR(M13<O13,R13<T13),P13,\"\"))","v":"Eder Heinz (roy)"},{"$f":"IF(AND(M13<>\"\",M13=O13,R13=T13),L13,\"\")","v":""},{"$f":"IF(AND(M13<>\"\",M13=O13,R13=T13),P13,\"\")","v":""},{"$f":"IF(OR(M13<O13,R13<T13),L13,IF(OR(M13>O13,R13>T13),P13,\"\"))","v":"Gábor Baross (wie)"},{"$f":"IF(OR($AB13=\"\",$AB13=\"V\"),\"\",IF(MOD($AB13,10)=1,\"XXX\",\"\"))","v":""},{"$f":"IF(OR($AB13=\"\",$AB13=\"V\"),\"\",IF(MOD($AB13,100)>=10,\"XXX\",\"\"))","v":""},{"$f":"IF(OR($AB13=\"\",$AB13=\"V\"),\"\",IF(MOD($AB13,1000)>=100,\"XXX\",\"\"))","v":""},{"$f":"IF(OR($AB13=\"\",$AB13=\"V\"),\"\",IF(MOD($AB13,10000)>=1000,\"XXX\",\"\"))","v":""},{"$f":"IF(OR($AB13=\"\",$AB13=\"V\"),\"\",IF(MOD($AB13,100000)>=10000,\"XXX\",\"\"))","v":""}]
[{"$f":"A13","v":"08:30:00"},null,{"$f":"C13","v":"Team - Group 2 - Rd 2"},null,null,null,{"$f":"G12&2","v":"TG2"},null,null,null,null,"Igor Ljubisavljevic (wie)",4,"-",0,"Christian Hausmann (roy)",null,null,null,null,null,"Igor Ljubisavljevic (wie)08:30","Christian Hausmann (roy)08:30",1,1,{"$f":"IF(AA14=\"\",FALSE,NOT(AND(ISNA(MATCH(AA14&TEXT($A14,\"hh:mm\"),PlayersAndHoursCol1,0)),ISNA(MATCH(AA14&TEXT($A14,\"hh:mm\"),PlayersAndHoursCol2,0)),COUNTIF(AD:AD,AA14&$A14)<=1)))","v":false},null,null,null,null,null,null,null,{"$f":"IF(OR(M14>O14,R14>T14),L14,IF(OR(M14<O14,R14<T14),P14,\"\"))","v":"Igor Ljubisavljevic (wie)"},{"$f":"IF(AND(M14<>\"\",M14=O14,R14=T14),L14,\"\")","v":""},{"$f":"IF(AND(M14<>\"\",M14=O14,R14=T14),P14,\"\")","v":""},{"$f":"IF(OR(M14<O14,R14<T14),L14,IF(OR(M14>O14,R14>T14),P14,\"\"))","v":"Christian Hausmann (roy)"},{"$f":"IF(OR($AB14=\"\",$AB14=\"V\"),\"\",IF(MOD($AB14,10)=1,\"XXX\",\"\"))","v":""},{"$f":"IF(OR($AB14=\"\",$AB14=\"V\"),\"\",IF(MOD($AB14,100)>=10,\"XXX\",\"\"))","v":""},{"$f":"IF(OR($AB14=\"\",$AB14=\"V\"),\"\",IF(MOD($AB14,1000)>=100,\"XXX\",\"\"))","v":""},{"$f":"IF(OR($AB14=\"\",$AB14=\"V\"),\"\",IF(MOD($AB14,10000)>=1000,\"XXX\",\"\"))","v":""},{"$f":"IF(OR($AB14=\"\",$AB14=\"V\"),\"\",IF(MOD($AB14,100000)>=10000,\"XXX\",\"\"))","v":""}]
[{"$f":"A14","v":"08:30:00"},null,{"$f":"C14","v":"Team - Group 2 - Rd 2"},null,null,null,{"$f":"G12&3","v":"TG3"},null,null,null,null,"Alfred Strommer (wie)",0,"-",3,"Robert Lenz (roy)",null,null,null,null,null,"Alfred Strommer (wie)08:30","Robert Lenz (roy)08:30",1,1,{"$f":"IF(AA15=\"\",FALSE,NOT(AND(ISNA(MATCH(AA15&TEXT($A15,\"hh:mm\"),PlayersAndHoursCol1,0)),ISNA(MATCH(AA15&TEXT($A15,\"hh:mm\"),PlayersAndHoursCol2,0)),COUNTIF(AD:AD,AA15&$A15)<=1)))","v":false},null,null,null,null,null,null,null,{"$f":"IF(OR(M15>O15,R15>T15),L15,IF(OR(M15<O15,R15<T15),P15,\"\"))","v":"Robert Lenz (roy)"},{"$f":"IF(AND(M15<>\"\",M15=O15,R15=T15),L15,\"\")","v":""},{"$f":"IF(AND(M15<>\"\",M15=O15,R15=T15),P15,\"\")","v":""},{"$f":"IF(OR(M15<O15,R15<T15),L15,IF(OR(M15>O15,R15>T15),P15,\"\"))","v":"Alfred Strommer (wie)"},{"$f":"IF(OR($AB15=\"\",$AB15=\"V\"),\"\",IF(MOD($AB15,10)=1,\"XXX\",\"\"))","v":""},{"$f":"IF(OR($AB15=\"\",$AB15=\"V\"),\"\",IF(MOD($AB15,100)>=10,\"XXX\",\"\"))","v":""},{"$f":"IF(OR($AB15=\"\",$AB15=\"V\"),\"\",IF(MOD($AB15,1000)>=100,\"XXX\",\"\"))","v":""},{"$f":"IF(OR($AB15=\"\",$AB15=\"V\"),\"\",IF(MOD($AB15,10000)>=1000,\"XXX\",\"\"))","v":""},{"$f":"IF(OR($AB15=\"\",$AB15=\"V\"),\"\",IF(MOD($AB15,100000)>=10000,\"XXX\",\"\"))","v":""}]
[{"$f":"A15","v":"08:30:00"},null,{"$f":"C15","v":"Team - Group 2 - Rd 2"},null,null,null,{"$f":"G12&4","v":"TG4"},null,null,null,null,"Florian Daxböck (wie)",0,"-",0,"Karl Vranovitz (roy)",null,null,null,null,null,"Florian Daxböck (wie)08:30","Karl Vranovitz (roy)08:30",1,1,{"$f":"IF(AA16=\"\",FALSE,NOT(AND(ISNA(MATCH(AA16&TEXT($A16,\"hh:mm\"),PlayersAndHoursCol1,0)),ISNA(MATCH(AA16&TEXT($A16,\"hh:mm\"),PlayersAndHoursCol2,0)),COUNTIF(AD:AD,AA16&$A16)<=1)))","v":false},null,null,null,null,null,null,null,{"$f":"IF(OR(M16>O16,R16>T16),L16,IF(OR(M16<O16,R16<T16),P16,\"\"))","v":""},{"$f":"IF(AND(M16<>\"\",M16=O16,R16=T16),L16,\"\")","v":"Florian Daxböck (wie)"},{"$f":"IF(AND(M16<>\"\",M16=O16,R16=T16),P16,\"\")","v":"Karl Vranovitz (roy)"},{"$f":"IF(OR(M16<O16,R16<T16),L16,IF(OR(M16>O16,R16>T16),P16,\"\"))","v":""},{"$f":"IF(OR($AB16=\"\",$AB16=\"V\"),\"\",IF(MOD($AB16,10)=1,\"XXX\",\"\"))","v":""},{"$f":"IF(OR($AB16=\"\",$AB16=\"V\"),\"\",IF(MOD($AB16,100)>=10,\"XXX\",\"\"))","v":""},{"$f":"IF(OR($AB16=\"\",$AB16=\"V\"),\"\",IF(MOD($AB16,1000)>=100,\"XXX\",\"\"))","v":""},{"$f":"IF(OR($AB16=\"\",$AB16=\"V\"),\"\",IF(MOD($AB16,10000)>=1000,\"XXX\",\"\"))","v":""},{"$f":"IF(OR($AB16=\"\",$AB16=\"V\"),\"\",IF(MOD($AB16,100000)>=10000,\"XXX\",\"\"))","v":""}]
[{"$f":"A16","v":"08:30:00"},null,null,null,{"$f":"N_Substitute","v":"Substitute"},null,{"$f":"G12&\"SB1\"","v":"TGSB1"},null,null,null,null,null,null,null,null,null,null,null,null,null,null,"08:30","08:30",0,0]
[{"$f":"A12","v":"08:30:00"},null,null,null,{"$f":"N_Substitute","v":"Substitute"},null,{"$f":"G12&\"SB2\"","v":"TGSB2"},null,null,null,null,null,null,null,null,null,null,null,null,null,null,"08:30","08:30",0,0]
[{"$f":"OFFSET(A19,-1,0)","v":"08:30:00"},null,{"$f":"\"Team - \" & N_Group & \" 1\" & \" - \" & N_Round & \" 2\"","v":"Team - Group 1 - Rd 2"},null,null,null,"TG",{"$f":"IF(K19=\"\",\"\",SUBSTITUTE(MID(K19,1,SEARCH(\"!\",K19,1)-1),\"'\",\"\"))","v":"Team"},{"$f":"IF(K19=\"\",\"\",CELL(\"row\",INDIRECT(K19)))","v":34},{"$f":"IF(K19=\"\",\"\",CELL(\"col\",INDIRECT(K19)))","v":25},{"$f":"MID(Lire_Formule(L19),2,10000)","v":"Team!Y34"},{"$f":"Team!Y34","v":"TSC Phoenix (wie)"},1,"-",3,{"$f":"IF(K19=\"\",\"\",IF(RIGHT(G19,1)=\"T\",INDIRECT(ADDRESS(I19+2,J19,4,TRUE,H19)),INDIRECT(ADDRESS(I19,J19+4,4,TRUE,H19))))","v":"TSC Royal 78 Kaisermühlen (roy)"},null,{"$f":"IF(M19=\"\",\"\",SUM(M20:M23))","v":5},null,{"$f":"IF(O19=\"\",\"\",SUM(O20:O23))","v":12},null,{"$f":"L19&TEXT(A19,\"hh:mm\")","v":"TSC Phoenix (wie)08:30"},{"$f":"P19&TEXT(A19,\"hh:mm\")","v":"TSC Royal 78 Kaisermühlen (roy)08:30"},1,1,{"$f":"IF(AA19=\"\",FALSE,NOT(AND(ISNA(MATCH(AA19&TEXT($A19,\"hh:mm\"),PlayersAndHoursCol1,0)),ISNA(MATCH(AA19&TEXT($A19,\"hh:mm\"),PlayersAndHoursCol2,0)),COUNTIF(AD:AD,AA19&$A19)<=1)))","v":false},"ST Stembert (ste)","V",null,{"$f":"AA19&A19","v":"ST Stembert (ste)0,354166666666667"},"Team","Groups",2,{"$f":"IF(OR(M19>O19,R19>T19),L19,IF(OR(M19<O19,R19<T19),P19,\"\"))","v":"TSC Royal 78 Kaisermühlen (roy)"},{"$f":"IF(AND(M19<>\"\",M19=O19,R19=T19),L19,\"\")","v":""},{"$f":"IF(AND(M19<>\"\",M19=O19,R19=T19),P19,\"\")","v":""},{"$f":"IF(OR(M19<O19,R19<T19),L19,IF(OR(M19>O19,R19>T19),P19,\"\"))","v":"TSC Phoenix (wie)"},{"$f":"IF(OR($AB19=\"\",$AB19=\"V\"),\"\",IF(MOD($AB19,10)=1,\"XXX\",\"\"))","v":""},{"$f":"IF(OR($AB19=\"\",$AB19=\"V\"),\"\",IF(MOD($AB19,100)>=10,\"XXX\",\"\"))","v":""},{"$f":"IF(OR($AB19=\"\",$AB19=\"V\"),\"\",IF(MOD($AB19,1000)>=100,\"XXX\",\"\"))","v":""},{"$f":"IF(OR($AB19=\"\",$AB19=\"V\"),\"\",IF(MOD($AB19,10000)>=1000,\"XXX\",\"\"))","v":""},{"$f":"IF(OR($AB19=\"\",$AB19=\"V\"),\"\",IF(MOD($AB19,100000)>=10000,\"XXX\",\"\"))","v":""}]
[{"$f":"A19","v":"08:30:00"},null,{"$f":"C19","v":"Team - Group 1 - Rd 2"},null,null,null,{"$f":"G19&1","v":"TG1"},null,null,null,null,"Christian Blümel (wie)",4,"-",2,"Alexander Haas (roy)",null,null,null,null,null,"Christian Blümel (wie)08:30","Alexander Haas (roy)08:30",1,1,{"$f":"IF(AA20=\"\",FALSE,NOT(AND(ISNA(MATCH(AA20&TEXT($A20,\"hh:mm\"),PlayersAndHoursCol1,0)),ISNA(MATCH(AA20&TEXT($A20,\"hh:mm\"),PlayersAndHoursCol2,0)),COUNTIF(AD:AD,AA20&$A20)<=1)))","v":false},null,null,null,null,null,null,null,{"$f":"IF(OR(M20>O20,R20>T20),L20,IF(OR(M20<O20,R20<T20),P20,\"\"))","v":"Christian Blümel (wie)"},{"$f":"IF(AND(M20<>\"\",M20=O20,R20=T20),L20,\"\")","v":""},{"$f":"IF(AND(M20<>\"\",M20=O20,R20=T20),P20,\"\")","v":""},{"$f":"IF(OR(M20<O20,R20<T20),L20,IF(OR(M20>O20,R20>T20),P20,\"\"))","v":"Alexander Haas (roy)"},{"$f":"IF(OR($AB20=\"\",$AB20=\"V\"),\"\",IF(MOD($AB20,10)=1,\"XXX\",\"\"))","v":""},{"$f":"IF(OR($AB20=\"\",$AB20=\"V\"),\"\",IF(MOD($AB20,100)>=10,\"XXX\",\"\"))","v":""},{"$f":"IF(OR($AB20=\"\",$AB20=\"V\"),\"\",IF(MOD($AB20,1000)>=100,\"XXX\",\"\"))","v":""},{"$f":"IF(OR($AB20=\"\",$AB20=\"V\"),\"\",IF(MOD($AB20,10000)>=1000,\"XXX\",\"\"))","v":""},{"$f":"IF(OR($AB20=\"\",$AB20=\"V\"),\"\",IF(MOD($AB20,100000)>=10000,\"XXX\",\"\"))","v":""}]
[{"$f":"A20","v":"08:30:00"},null,{"$f":"C20","v":"Team - Group 1 - Rd 2"},null,null,null,{"$f":"G19&2","v":"TG2"},null,null,null,null,"Manfred Pawlica (wie)",0,"-",4,"Daniel Vranovitz (roy)",null,null,null,null,null,"Manfred Pawlica (wie)08:30","Daniel Vranovitz (roy)08:30",1,1,{"$f":"IF(AA21=\"\",FALSE,NOT(AND(ISNA(MATCH(AA21&TEXT($A21,\"hh:mm\"),PlayersAndHoursCol1,0)),ISNA(MATCH(AA21&TEXT($A21,\"hh:mm\"),PlayersAndHoursCol2,0)),COUNTIF(AD:AD,AA21&$A21)<=1)))","v":false},null,null,null,null,null,null,null,{"$f":"IF(OR(M21>O21,R21>T21),L21,IF(OR(M21<O21,R21<T21),P21,\"\"))","v":"Daniel Vranovitz (roy)"},{"$f":"IF(AND(M21<>\"\",M21=O21,R21=T21),L21,\"\")","v":""},{"$f":"IF(AND(M21<>\"\",M21=O21,R21=T21),P21,\"\")","v":""},{"$f":"IF(OR(M21<O21,R21<T21),L21,IF(OR(M21>O21,R21>T21),P21,\"\"))","v":"Manfred Pawlica (wie)"},{"$f":"IF(OR($AB21=\"\",$AB21=\"V\"),\"\",IF(MOD($AB21,10)=1,\"XXX\",\"\"))","v":""},{"$f":"IF(OR($AB21=\"\",$AB21=\"V\"),\"\",IF(MOD($AB21,100)>=10,\"XXX\",\"\"))","v":""},{"$f":"IF(OR($AB21=\"\",$AB21=\"V\"),\"\",IF(MOD($AB21,1000)>=100,\"XXX\",\"\"))","v":""},{"$f":"IF(OR($AB21=\"\",$AB21=\"V\"),\"\",IF(MOD($AB21,10000)>=1000,\"XXX\",\"\"))","v":""},{"$f":"IF(OR($AB21=\"\",$AB21=\"V\"),\"\",IF(MOD($AB21,100000)>=10000,\"XXX\",\"\"))","v":""}]
[{"$f":"A21","v":"08:30:00"},null,{"$f":"C21","v":"Team - Group 1 - Rd 2"},null,null,null,{"$f":"G19&3","v":"TG3"},null,null,null,null,"Marios Strommer (wie)",1,"-",2,"Murat Tünger (roy)",null,null,null,null,null,"Marios Strommer (wie)08:30","Murat Tünger (roy)08:30",1,1,{"$f":"IF(AA22=\"\",FALSE,NOT(AND(ISNA(MATCH(AA22&TEXT($A22,\"hh:mm\"),PlayersAndHoursCol1,0)),ISNA(MATCH(AA22&TEXT($A22,\"hh:mm\"),PlayersAndHoursCol2,0)),COUNTIF(AD:AD,AA22&$A22)<=1)))","v":false},null,null,null,null,null,null,null,{"$f":"IF(OR(M22>O22,R22>T22),L22,IF(OR(M22<O22,R22<T22),P22,\"\"))","v":"Murat Tünger (roy)"},{"$f":"IF(AND(M22<>\"\",M22=O22,R22=T22),L22,\"\")","v":""},{"$f":"IF(AND(M22<>\"\",M22=O22,R22=T22),P22,\"\")","v":""},{"$f":"IF(OR(M22<O22,R22<T22),L22,IF(OR(M22>O22,R22>T22),P22,\"\"))","v":"Marios Strommer (wie)"},{"$f":"IF(OR($AB22=\"\",$AB22=\"V\"),\"\",IF(MOD($AB22,10)=1,\"XXX\",\"\"))","v":""},{"$f":"IF(OR($AB22=\"\",$AB22=\"V\"),\"\",IF(MOD($AB22,100)>=10,\"XXX\",\"\"))","v":""},{"$f":"IF(OR($AB22=\"\",$AB22=\"V\"),\"\",IF(MOD($AB22,1000)>=100,\"XXX\",\"\"))","v":""},{"$f":"IF(OR($AB22=\"\",$AB22=\"V\"),\"\",IF(MOD($AB22,10000)>=1000,\"XXX\",\"\"))","v":""},{"$f":"IF(OR($AB22=\"\",$AB22=\"V\"),\"\",IF(MOD($AB22,100000)>=10000,\"XXX\",\"\"))","v":""}]
[{"$f":"A22","v":"08:30:00"},null,{"$f":"C22","v":"Team - Group 1 - Rd 2"},null,null,null,{"$f":"G19&4","v":"TG4"},null,null,null,null,"Erich Hinkelmann (wie)",0,"-",4,"Wolfgang Leitner (roy)",null,null,null,null,null,"Erich Hinkelmann (wie)08:30","Wolfgang Leitner (roy)08:30",1,1,{"$f":"IF(AA23=\"\",FALSE,NOT(AND(ISNA(MATCH(AA23&TEXT($A23,\"hh:mm\"),PlayersAndHoursCol1,0)),ISNA(MATCH(AA23&TEXT($A23,\"hh:mm\"),PlayersAndHoursCol2,0)),COUNTIF(AD:AD,AA23&$A23)<=1)))","v":false},null,null,null,null,null,null,null,{"$f":"IF(OR(M23>O23,R23>T23),L23,IF(OR(M23<O23,R23<T23),P23,\"\"))","v":"Wolfgang Leitner (roy)"},{"$f":"IF(AND(M23<>\"\",M23=O23,R23=T23),L23,\"\")","v":""},{"$f":"IF(AND(M23<>\"\",M23=O23,R23=T23),P23,\"\")","v":""},{"$f":"IF(OR(M23<O23,R23<T23),L23,IF(OR(M23>O23,R23>T23),P23,\"\"))","v":"Erich Hinkelmann (wie)"},{"$f":"IF(OR($AB23=\"\",$AB23=\"V\"),\"\",IF(MOD($AB23,10)=1,\"XXX\",\"\"))","v":""},{"$f":"IF(OR($AB23=\"\",$AB23=\"V\"),\"\",IF(MOD($AB23,100)>=10,\"XXX\",\"\"))","v":""},{"$f":"IF(OR($AB23=\"\",$AB23=\"V\"),\"\",IF(MOD($AB23,1000)>=100,\"XXX\",\"\"))","v":""},{"$f":"IF(OR($AB23=\"\",$AB23=\"V\"),\"\",IF(MOD($AB23,10000)>=1000,\"XXX\",\"\"))","v":""},{"$f":"IF(OR($AB23=\"\",$AB23=\"V\"),\"\",IF(MOD($AB23,100000)>=10000,\"XXX\",\"\"))","v":""}]
[{"$f":"A23","v":"08:30:00"},null,null,null,{"$f":"N_Substitute","v":"Substitute"},null,{"$f":"G19&\"SB1\"","v":"TGSB1"},null,null,null,null,null,null,null,null,"Stefan Sandner (roy)",null,null,null,null,null,"08:30","Stefan Sandner (roy)08:30",0,1]
[{"$f":"A19","v":"08:30:00"},null,null,null,{"$f":"N_Substitute","v":"Substitute"},null,{"$f":"G19&\"SB2\"","v":"TGSB2"},null,null,null,null,null,null,null,null,null,null,null,null,null,null,"08:30","08:30",0,0]
[{"$f":"A4+P4","v":"09:20:00"},null,{"$f":"N_Session","v":"Session Nbr "},null,{"$f":"E4+ 1","v":2},null,{"$f":"\"S\" & RIGHT(G4, LEN(G4)-1) + 1","v":"S2"},null,null,null,null,{"$f":"N_Duration","v":"Duration"},null,":",null,"00:50:00"]
[{"$f":"OFFSET(A27,-1,0)","v":"09:20:00"},null,{"$f":"\"Team - \" & N_Group & \" 1\" & \" - \" & N_Round & \" 1\"","v":"Team - Group 1 - Rd 1"},null,null,null,"TG",{"$f":"IF(K27=\"\",\"\",SUBSTITUTE(MID(K27,1,SEARCH(\"!\",K27,1)-1),\"'\",\"\"))","v":"Team"},{"$f":"IF(K27=\"\",\"\",CELL(\"row\",INDIRECT(K27)))","v":13},{"$f":"IF(K27=\"\",\"\",CELL(\"col\",INDIRECT(K27)))","v":25},{"$f":"MID(Lire_Formule(L27),2,10000)","v":"Team!Y13"},{"$f":"Team!Y13","v":"GCT DLF Gorizia (gor)"},0,"-",4,{"$f":"IF(K27=\"\",\"\",IF(RIGHT(G27,1)=\"T\",INDIRECT(ADDRESS(I27+2,J27,4,TRUE,H27)),INDIRECT(ADDRESS(I27,J27+4,4,TRUE,H27))))","v":"TSC Phoenix (wie)"},null,{"$f":"IF(M27=\"\",\"\",SUM(M28:M31))","v":3},null,{"$f":"IF(O27=\"\",\"\",SUM(O28:O31))","v":14},null,{"$f":"L27&TEXT(A27,\"hh:mm\")","v":"GCT DLF Gorizia (gor)09:20"},{"$f":"P27&TEXT(A27,\"hh:mm\")","v":"TSC Phoenix (wie)09:20"},{"$f":"IF(L27=\"\",0,COUNTIF(PlayersAndHoursCol1,L27&TEXT($A27,\"hh:mm\"))+COUNTIF(PlayersAndHoursCol2,L27&TEXT($A27,\"hh:mm\")))","v":1},{"$f":"IF(P27=\"\",0,COUNTIF(PlayersAndHoursCol1,P27&TEXT($A27,\"hh:mm\"))+COUNTIF(PlayersAndHoursCol2,P27&TEXT($A27,\"hh:mm\")))","v":1},{"$f":"IF(AA27=\"\",FALSE,NOT(AND(ISNA(MATCH(AA27&TEXT($A27,\"hh:mm\"),PlayersAndHoursCol1,0)),ISNA(MATCH(AA27&TEXT($A27,\"hh:mm\"),PlayersAndHoursCol2,0)),COUNTIF(AD:AD,AA27&$A27)<=1)))","v":false},"Roligans Ilioupolis TSC (rol)","V",null,{"$f":"AA27&A27","v":"Roligans Ilioupolis TSC (rol)0,388888888888889"},"Team","Groups",1,{"$f":"IF(OR(M27>O27,R27>T27),L27,IF(OR(M27<O27,R27<T27),P27,\"\"))","v":"TSC Phoenix (wie)"},{"$f":"IF(AND(M27<>\"\",M27=O27,R27=T27),L27,\"\")","v":""},{"$f":"IF(AND(M27<>\"\",M27=O27,R27=T27),P27,\"\")","v":""},{"$f":"IF(OR(M27<O27,R27<T27),L27,IF(OR(M27>O27,R27>T27),P27,\"\"))","v":"GCT DLF Gorizia (gor)"},{"$f":"IF(OR($AB27=\"\",$AB27=\"V\"),\"\",IF(MOD($AB27,10)=1,\"XXX\",\"\"))","v":""},{"$f":"IF(OR($AB27=\"\",$AB27=\"V\"),\"\",IF(MOD($AB27,100)>=10,\"XXX\",\"\"))","v":""},{"$f":"IF(OR($AB27=\"\",$AB27=\"V\"),\"\",IF(MOD($AB27,1000)>=100,\"XXX\",\"\"))","v":""},{"$f":"IF(OR($AB27=\"\",$AB27=\"V\"),\"\",IF(MOD($AB27,10000)>=1000,\"XXX\",\"\"))","v":""},{"$f":"IF(OR($AB27=\"\",$AB27=\"V\"),\"\",IF(MOD($AB27,100000)>=10000,\"XXX\",\"\"))","v":""}]
[{"$f":"A27","v":"09:20:00"},null,{"$f":"C27","v":"Team - Group 1 - Rd 1"},null,null,null,{"$f":"G27&1","v":"TG1"},null,null,null,null,"Michele Cerullo (gor)",0,"-",3,"Marios Strommer (wie)",null,null,null,null,null,"Michele Cerullo (gor)09:20","Marios Strommer (wie)09:20",{"$f":"IF(L28=\"\",0,COUNTIF(PlayersAndHoursCol1,L28&TEXT($A28,\"hh:mm\"))+COUNTIF(PlayersAndHoursCol2,L28&TEXT($A28,\"hh:mm\")))","v":1},{"$f":"IF(P28=\"\",0,COUNTIF(PlayersAndHoursCol1,P28&TEXT($A28,\"hh:mm\"))+COUNTIF(PlayersAndHoursCol2,P28&TEXT($A28,\"hh:mm\")))","v":1},{"$f":"IF(AA28=\"\",FALSE,NOT(AND(ISNA(MATCH(AA28&TEXT($A28,\"hh:mm\"),PlayersAndHoursCol1,0)),ISNA(MATCH(AA28&TEXT($A28,\"hh:mm\"),PlayersAndHoursCol2,0)),COUNTIF(AD:AD,AA28&$A28)<=1)))","v":false},null,null,null,null,null,null,null,{"$f":"IF(OR(M28>O28,R28>T28),L28,IF(OR(M28<O28,R28<T28),P28,\"\"))","v":"Marios Strommer (wie)"},{"$f":"IF(AND(M28<>\"\",M28=O28,R28=T28),L28,\"\")","v":""},{"$f":"IF(AND(M28<>\"\",M28=O28,R28=T28),P28,\"\")","v":""},{"$f":"IF(OR(M28<O28,R28<T28),L28,IF(OR(M28>O28,R28>T28),P28,\"\"))","v":"Michele Cerullo (gor)"},{"$f":"IF(OR($AB28=\"\",$AB28=\"V\"),\"\",IF(MOD($AB28,10)=1,\"XXX\",\"\"))","v":""},{"$f":"IF(OR($AB28=\"\",$AB28=\"V\"),\"\",IF(MOD($AB28,100)>=10,\"XXX\",\"\"))","v":""},{"$f":"IF(OR($AB28=\"\",$AB28=\"V\"),\"\",IF(MOD($AB28,1000)>=100,\"XXX\",\"\"))","v":""},{"$f":"IF(OR($AB28=\"\",$AB28=\"V\"),\"\",IF(MOD($AB28,10000)>=1000,\"XXX\",\"\"))","v":""},{"$f":"IF(OR($AB28=\"\",$AB28=\"V\"),\"\",IF(MOD($AB28,100000)>=10000,\"XXX\",\"\"))","v":""}]
[{"$f":"A28","v":"09:20:00"},null,{"$f":"C28","v":"Team - Group 1 - Rd 1"},null,null,null,{"$f":"G27&2","v":"TG2"},null,null,null,null,"Michael Stolzenberg ()",1,"-",2,"Erich Hinkelmann (wie)",null,null,null,null,null,"Michael Stolzenberg ()09:20","Erich Hinkelmann (wie)09:20",{"$f":"IF(L29=\"\",0,COUNTIF(PlayersAndHoursCol1,L29&TEXT($A29,\"hh:mm\"))+COUNTIF(PlayersAndHoursCol2,L29&TEXT($A29,\"hh:mm\")))","v":1},{"$f":"IF(P29=\"\",0,COUNTIF(PlayersAndHoursCol1,P29&TEXT($A29,\"hh:mm\"))+COUNTIF(PlayersAndHoursCol2,P29&TEXT($A29,\"hh:mm\")))","v":1},{"$f":"IF(AA29=\"\",FALSE,NOT(AND(ISNA(MATCH(AA29&TEXT($A29,\"hh:mm\"),PlayersAndHoursCol1,0)),ISNA(MATCH(AA29&TEXT($A29,\"hh:mm\"),PlayersAndHoursCol2,0)),COUNTIF(AD:AD,AA29&$A29)<=1)))","v":false},null,null,null,null,null,null,null,{"$f":"IF(OR(M29>O29,R29>T29),L29,IF(OR(M29<O29,R29<T29),P29,\"\"))","v":"Erich Hinkelmann (wie)"},{"$f":"IF(AND(M29<>\"\",M29=O29,R29=T29),L29,\"\")","v":""},{"$f":"IF(AND(M29<>\"\",M29=O29,R29=T29),P29,\"\")","v":""},{"$f":"IF(OR(M29<O29,R29<T29),L29,IF(OR(M29>O29,R29>T29),P29,\"\"))","v":"Michael Stolzenberg ()"},{"$f":"IF(OR($AB29=\"\",$AB29=\"V\"),\"\",IF(MOD($AB29,10)=1,\"XXX\",\"\"))","v":""},{"$f":"IF(OR($AB29=\"\",$AB29=\"V\"),\"\",IF(MOD($AB29,100)>=10,\"XXX\",\"\"))","v":""},{"$f":"IF(OR($AB29=\"\",$AB29=\"V\"),\"\",IF(MOD($AB29,1000)>=100,\"XXX\",\"\"))","v":""},{"$f":"IF(OR($AB29=\"\",$AB29=\"V\"),\"\",IF(MOD($AB29,10000)>=1000,\"XXX\",\"\"))","v":""},{"$f":"IF(OR($AB29=\"\",$AB29=\"V\"),\"\",IF(MOD($AB29,100000)>=10000,\"XXX\",\"\"))","v":""}]
[{"$f":"A29","v":"09:20:00"},null,{"$f":"C29","v":"Team - Group 1 - Rd 1"},null,null,null,{"$f":"G27&3","v":"TG3"},null,null,null,null,"Marco Pinausi (gor)",2,"-",4,"Christian Blümel (wie)",null,null,null,null,null,"Marco Pinausi (gor)09:20","Christian Blümel (wie)09:20",{"$f":"IF(L30=\"\",0,COUNTIF(PlayersAndHoursCol1,L30&TEXT($A30,\"hh:mm\"))+COUNTIF(PlayersAndHoursCol2,L30&TEXT($A30,\"hh:mm\")))","v":1},{"$f":"IF(P30=\"\",0,COUNTIF(PlayersAndHoursCol1,P30&TEXT($A30,\"hh:mm\"))+COUNTIF(PlayersAndHoursCol2,P30&TEXT($A30,\"hh:mm\")))","v":1},{"$f":"IF(AA30=\"\",FALSE,NOT(AND(ISNA(MATCH(AA30&TEXT($A30,\"hh:mm\"),PlayersAndHoursCol1,0)),ISNA(MATCH(AA30&TEXT($A30,\"hh:mm\"),PlayersAndHoursCol2,0)),COUNTIF(AD:AD,AA30&$A30)<=1)))","v":false},null,null,null,null,null,null,null,{"$f":"IF(OR(M30>O30,R30>T30),L30,IF(OR(M30<O30,R30<T30),P30,\"\"))","v":"Christian Blümel (wie)"},{"$f":"IF(AND(M30<>\"\",M30=O30,R30=T30),L30,\"\")","v":""},{"$f":"IF(AND(M30<>\"\",M30=O30,R30=T30),P30,\"\")","v":""},{"$f":"IF(OR(M30<O30,R30<T30),L30,IF(OR(M30>O30,R30>T30),P30,\"\"))","v":"Marco Pinausi (gor)"},{"$f":"IF(OR($AB30=\"\",$AB30=\"V\"),\"\",IF(MOD($AB30,10)=1,\"XXX\",\"\"))","v":""},{"$f":"IF(OR($AB30=\"\",$AB30=\"V\"),\"\",IF(MOD($AB30,100)>=10,\"XXX\",\"\"))","v":""},{"$f":"IF(OR($AB30=\"\",$AB30=\"V\"),\"\",IF(MOD($AB30,1000)>=100,\"XXX\",\"\"))","v":""},{"$f":"IF(OR($AB30=\"\",$AB30=\"V\"),\"\",IF(MOD($AB30,10000)>=1000,\"XXX\",\"\"))","v":""},{"$f":"IF(OR($AB30=\"\",$AB30=\"V\"),\"\",IF(MOD($AB30,100000)>=10000,\"XXX\",\"\"))","v":""}]
[{"$f":"A30","v":"09:20:00"},null,{"$f":"C30","v":"Team - Group 1 - Rd 1"},null,null,null,{"$f":"G27&4","v":"TG4"},null,null,null,null,"To be defined",0,"-",5,"Manfred Pawlica (wie)",null,null,null,null,null,"To be defined09:20","Manfred Pawlica (wie)09:20",{"$f":"IF(L31=\"\",0,COUNTIF(PlayersAndHoursCol1,L31&TEXT($A31,\"hh:mm\"))+COUNTIF(PlayersAndHoursCol2,L31&TEXT($A31,\"hh:mm\")))","v":1},{"$f":"IF(P31=\"\",0,COUNTIF(PlayersAndHoursCol1,P31&TEXT($A31,\"hh:mm\"))+COUNTIF(PlayersAndHoursCol2,P31&TEXT($A31,\"hh:mm\")))","v":1},{"$f":"IF(AA31=\"\",FALSE,NOT(AND(ISNA(MATCH(AA31&TEXT($A31,\"hh:mm\"),PlayersAndHoursCol1,0)),ISNA(MATCH(AA31&TEXT($A31,\"hh:mm\"),PlayersAndHoursCol2,0)),COUNTIF(AD:AD,AA31&$A31)<=1)))","v":false},null,null,null,null,null,null,null,{"$f":"IF(OR(M31>O31,R31>T31),L31,IF(OR(M31<O31,R31<T31),P31,\"\"))","v":"Manfred Pawlica (wie)"},{"$f":"IF(AND(M31<>\"\",M31=O31,R31=T31),L31,\"\")","v":""},{"$f":"IF(AND(M31<>\"\",M31=O31,R31=T31),P31,\"\")","v":""},{"$f":"IF(OR(M31<O31,R31<T31),L31,IF(OR(M31>O31,R31>T31),P31,\"\"))","v":"To be defined"},{"$f":"IF(OR($AB31=\"\",$AB31=\"V\"),\"\",IF(MOD($AB31,10)=1,\"XXX\",\"\"))","v":""},{"$f":"IF(OR($AB31=\"\",$AB31=\"V\"),\"\",IF(MOD($AB31,100)>=10,\"XXX\",\"\"))","v":""},{"$f":"IF(OR($AB31=\"\",$AB31=\"V\"),\"\",IF(MOD($AB31,1000)>=100,\"XXX\",\"\"))","v":""},{"$f":"IF(OR($AB31=\"\",$AB31=\"V\"),\"\",IF(MOD($AB31,10000)>=1000,\"XXX\",\"\"))","v":""},{"$f":"IF(OR($AB31=\"\",$AB31=\"V\"),\"\",IF(MOD($AB31,100000)>=10000,\"XXX\",\"\"))","v":""}]
[{"$f":"A31","v":"09:20:00"},null,null,null,{"$f":"N_Substitute","v":"Substitute"},null,{"$f":"G27&\"SB1\"","v":"TGSB1"},null,null,null,null,null,null,null,null,null,null,null,null,null,null,"09:20","09:20",{"$f":"IF(L32=\"\",0,COUNTIF(PlayersAndHoursCol1,L32&TEXT($A32,\"hh:mm\"))+COUNTIF(PlayersAndHoursCol2,L32&TEXT($A32,\"hh:mm\")))","v":0},{"$f":"IF(P32=\"\",0,COUNTIF(PlayersAndHoursCol1,P32&TEXT($A32,\"hh:mm\"))+COUNTIF(PlayersAndHoursCol2,P32&TEXT($A32,\"hh:mm\")))","v":0}]
[{"$f":"A27","v":"09:20:00"},null,null,null,{"$f":"N_Substitute","v":"Substitute"},null,{"$f":"G27&\"SB2\"","v":"TGSB2"},null,null,null,null,null,null,null,null,null,null,null,null,null,null,"09:20","09:20",{"$f":"IF(L33=\"\",0,COUNTIF(PlayersAndHoursCol1,L33&TEXT($A33,\"hh:mm\"))+COUNTIF(PlayersAndHoursCol2,L33&TEXT($A33,\"hh:mm\")))","v":0},{"$f":"IF(P33=\"\",0,COUNTIF(PlayersAndHoursCol1,P33&TEXT($A33,\"hh:mm\"))+COUNTIF(PlayersAndHoursCol2,P33&TEXT($A33,\"hh:mm\")))","v":0}]
[{"$f":"OFFSET(A34,-1,0)","v":"09:20:00"},null,{"$f":"\"Team - \" & N_Group & \" 1\" & \" - \" & N_Round & \" 3\"","v":"Team - Group 1 - Rd 3"},null,null,null,"TG",{"$f":"IF(K34=\"\",\"\",SUBSTITUTE(MID(K34,1,SEARCH(\"!\",K34,1)-1),\"'\",\"\"))","v":"Team"},{"$f":"IF(K34=\"\",\"\",CELL(\"row\",INDIRECT(K34)))","v":41},{"$f":"IF(K34=\"\",\"\",CELL(\"col\",INDIRECT(K34)))","v":25},{"$f":"MID(Lire_Formule(L34),2,10000)","v":"Team!Y41"},{"$f":"Team!Y41","v":"Atlas FTC (atl)"},0,"-",2,{"$f":"IF(K34=\"\",\"\",IF(RIGHT(G34,1)=\"T\",INDIRECT(ADDRESS(I34+2,J34,4,TRUE,H34)),INDIRECT(ADDRESS(I34,J34+4,4,TRUE,H34))))","v":"Bormla SC (bor)"},null,{"$f":"IF(M34=\"\",\"\",SUM(M35:M38))","v":4},null,{"$f":"IF(O34=\"\",\"\",SUM(O35:O38))","v":9},null,{"$f":"L34&TEXT(A34,\"hh:mm\")","v":"Atlas FTC (atl)09:20"},{"$f":"P34&TEXT(A34,\"hh:mm\")","v":"Bormla SC (bor)09:20"},{"$f":"IF(L34=\"\",0,COUNTIF(PlayersAndHoursCol1,L34&TEXT($A34,\"hh:mm\"))+COUNTIF(PlayersAndHoursCol2,L34&TEXT($A34,\"hh:mm\")))","v":1},{"$f":"IF(P34=\"\",0,COUNTIF(PlayersAndHoursCol1,P34&TEXT($A34,\"hh:mm\"))+COUNTIF(PlayersAndHoursCol2,P34&TEXT($A34,\"hh:mm\")))","v":1},{"$f":"IF(AA34=\"\",FALSE,NOT(AND(ISNA(MATCH(AA34&TEXT($A34,\"hh:mm\"),PlayersAndHoursCol1,0)),ISNA(MATCH(AA34&TEXT($A34,\"hh:mm\"),PlayersAndHoursCol2,0)),COUNTIF(AD:AD,AA34&$A34)<=1)))","v":false},"TSC Phoenix 2 (wie)","V",null,{"$f":"AA34&A34","v":"TSC Phoenix 2 (wie)0,388888888888889"},"Team","Groups",3,{"$f":"IF(OR(M34>O34,R34>T34),L34,IF(OR(M34<O34,R34<T34),P34,\"\"))","v":"Bormla SC (bor)"},{"$f":"IF(AND(M34<>\"\",M34=O34,R34=T34),L34,\"\")","v":""},{"$f":"IF(AND(M34<>\"\",M34=O34,R34=T34),P34,\"\")","v":""},{"$f":"IF(OR(M34<O34,R34<T34),L34,IF(OR(M34>O34,R34>T34),P34,\"\"))","v":"Atlas FTC (atl)"},{"$f":"IF(OR($AB34=\"\",$AB34=\"V\"),\"\",IF(MOD($AB34,10)=1,\"XXX\",\"\"))","v":""},{"$f":"IF(OR($AB34=\"\",$AB34=\"V\"),\"\",IF(MOD($AB34,100)>=10,\"XXX\",\"\"))","v":""},{"$f":"IF(OR($AB34=\"\",$AB34=\"V\"),\"\",IF(MOD($AB34,1000)>=100,\"XXX\",\"\"))","v":""},{"$f":"IF(OR($AB34=\"\",$AB34=\"V\"),\"\",IF(MOD($AB34,10000)>=1000,\"XXX\",\"\"))","v":""},{"$f":"IF(OR($AB34=\"\",$AB34=\"V\"),\"\",IF(MOD($AB34,100000)>=10000,\"XXX\",\"\"))","v":""}]
[{"$f":"A34","v":"09:20:00"},null,{"$f":"C34","v":"Team - Group 1 - Rd 3"},null,null,null,{"$f":"G34&1","v":"TG1"},null,null,null,null,"Joffray Laurent (atl)",2,"-",2,"George Ebejer (bor)",null,null,null,null,null,"Joffray Laurent (atl)09:20","George Ebejer (bor)09:20",{"$f":"IF(L35=\"\",0,COUNTIF(PlayersAndHoursCol1,L35&TEXT($A35,\"hh:mm\"))+COUNTIF(PlayersAndHoursCol2,L35&TEXT($A35,\"hh:mm\")))","v":1},{"$f":"IF(P35=\"\",0,COUNTIF(PlayersAndHoursCol1,P35&TEXT($A35,\"hh:mm\"))+COUNTIF(PlayersAndHoursCol2,P35&TEXT($A35,\"hh:mm\")))","v":1},{"$f":"IF(AA35=\"\",FALSE,NOT(AND(ISNA(MATCH(AA35&TEXT($A35,\"hh:mm\"),PlayersAndHoursCol1,0)),ISNA(MATCH(AA35&TEXT($A35,\"hh:mm\"),PlayersAndHoursCol2,0)),COUNTIF(AD:AD,AA35&$A35)<=1)))","v":false},null,null,null,null,null,null,null,{"$f":"IF(OR(M35>O35,R35>T35),L35,IF(OR(M35<O35,R35<T35),P35,\"\"))","v":""},{"$f":"IF(AND(M35<>\"\",M35=O35,R35=T35),L35,\"\")","v":"Joffray Laurent (atl)"},{"$f":"IF(AND(M35<>\"\",M35=O35,R35=T35),P35,\"\")","v":"George Ebejer (bor)"},{"$f":"IF(OR(M35<O35,R35<T35),L35,IF(OR(M35>O35,R35>T35),P35,\"\"))","v":""},{"$f":"IF(OR($AB35=\"\",$AB35=\"V\"),\"\",IF(MOD($AB35,10)=1,\"XXX\",\"\"))","v":""},{"$f":"IF(OR($AB35=\"\",$AB35=\"V\"),\"\",IF(MOD($AB35,100)>=10,\"XXX\",\"\"))","v":""},{"$f":"IF(OR($AB35=\"\",$AB35=\"V\"),\"\",IF(MOD($AB35,1000)>=100,\"XXX\",\"\"))","v":""},{"$f":"IF(OR($AB35=\"\",$AB35=\"V\"),\"\",IF(MOD($AB35,10000)>=1000,\"XXX\",\"\"))","v":""},{"$f":"IF(OR($AB35=\"\",$AB35=\"V\"),\"\",IF(MOD($AB35,100000)>=10000,\"XXX\",\"\"))","v":""}]
[{"$f":"A35","v":"09:20:00"},null,{"$f":"C35","v":"Team - Group 1 - Rd 3"},null,null,null,{"$f":"G34&2","v":"TG2"},null,null,null,null,"Giannis Nikolaidis (atl)",0,"-",4,"Jean Carl Tabone (bor)",null,null,null,null,null,"Giannis Nikolaidis (atl)09:20","Jean Carl Tabone (bor)09:20",{"$f":"IF(L36=\"\",0,COUNTIF(PlayersAndHoursCol1,L36&TEXT($A36,\"hh:mm\"))+COUNTIF(PlayersAndHoursCol2,L36&TEXT($A36,\"hh:mm\")))","v":1},{"$f":"IF(P36=\"\",0,COUNTIF(PlayersAndHoursCol1,P36&TEXT($A36,\"hh:mm\"))+COUNTIF(PlayersAndHoursCol2,P36&TEXT($A36,\"hh:mm\")))","v":1},{"$f":"IF(AA36=\"\",FALSE,NOT(AND(ISNA(MATCH(AA36&TEXT($A36,\"hh:mm\"),PlayersAndHoursCol1,0)),ISNA(MATCH(AA36&TEXT($A36,\"hh:mm\"),PlayersAndHoursCol2,0)),COUNTIF(AD:AD,AA36&$A36)<=1)))","v":false},null,null,null,null,null,null,null,{"$f":"IF(OR(M36>O36,R36>T36),L36,IF(OR(M36<O36,R36<T36),P36,\"\"))","v":"Jean Carl Tabone (bor)"},{"$f":"IF(AND(M36<>\"\",M36=O36,R36=T36),L36,\"\")","v":""},{"$f":"IF(AND(M36<>\"\",M36=O36,R36=T36),P36,\"\")","v":""},{"$f":"IF(OR(M36<O36,R36<T36),L36,IF(OR(M36>O36,R36>T36),P36,\"\"))","v":"Giannis Nikolaidis (atl)"},{"$f":"IF(OR($AB36=\"\",$AB36=\"V\"),\"\",IF(MOD($AB36,10)=1,\"XXX\",\"\"))","v":""},{"$f":"IF(OR($AB36=\"\",$AB36=\"V\"),\"\",IF(MOD($AB36,100)>=10,\"XXX\",\"\"))","v":""},{"$f":"IF(OR($AB36=\"\",$AB36=\"V\"),\"\",IF(MOD($AB36,1000)>=100,\"XXX\",\"\"))","v":""},{"$f":"IF(OR($AB36=\"\",$AB36=\"V\"),\"\",IF(MOD($AB36,10000)>=1000,\"XXX\",\"\"))","v":""},{"$f":"IF(OR($AB36=\"\",$AB36=\"V\"),\"\",IF(MOD($AB36,100000)>=10000,\"XXX\",\"\"))","v":""}]
[{"$f":"A36","v":"09:20:00"},null,{"$f":"C36","v":"Team - Group 1 - Rd 3"},null,null,null,{"$f":"G34&3","v":"TG3"},null,null,null,null,"Stylianos Tsangouris (atl)",2,"-",2,"Charles Aquilina (bor)",null,null,null,null,null,"Stylianos Tsangouris (atl)09:20","Charles Aquilina (bor)09:20",{"$f":"IF(L37=\"\",0,COUNTIF(PlayersAndHoursCol1,L37&TEXT($A37,\"hh:mm\"))+COUNTIF(PlayersAndHoursCol2,L37&TEXT($A37,\"hh:mm\")))","v":1},{"$f":"IF(P37=\"\",0,COUNTIF(PlayersAndHoursCol1,P37&TEXT($A37,\"hh:mm\"))+COUNTIF(PlayersAndHoursCol2,P37&TEXT($A37,\"hh:mm\")))","v":1},{"$f":"IF(AA37=\"\",FALSE,NOT(AND(ISNA(MATCH(AA37&TEXT($A37,\"hh:mm\"),PlayersAndHoursCol1,0)),ISNA(MATCH(AA37&TEXT($A37,\"hh:mm\"),PlayersAndHoursCol2,0)),COUNTIF(AD:AD,AA37&$A37)<=1)))","v":false},null,null,null,null,null,null,null,{"$f":"IF(OR(M37>O37,R37>T37),L37,IF(OR(M37<O37,R37<T37),P37,\"\"))","v":""},{"$f":"IF(AND(M37<>\"\",M37=O37,R37=T37),L37,\"\")","v":"Stylianos Tsangouris (atl)"},{"$f":"IF(AND(M37<>\"\",M37=O37,R37=T37),P37,\"\")","v":"Charles Aquilina (bor)"},{"$f":"IF(OR(M37<O37,R37<T37),L37,IF(OR(M37>O37,R37>T37),P37,\"\"))","v":""},{"$f":"IF(OR($AB37=\"\",$AB37=\"V\"),\"\",IF(MOD($AB37,10)=1,\"XXX\",\"\"))","v":""},{"$f":"IF(OR($AB37=\"\",$AB37=\"V\"),\"\",IF(MOD($AB37,100)>=10,\"XXX\",\"\"))","v":""},{"$f":"IF(OR($AB37=\"\",$AB37=\"V\"),\"\",IF(MOD($AB37,1000)>=100,\"XXX\",\"\"))","v":""},{"$f":"IF(OR($AB37=\"\",$AB37=\"V\"),\"\",IF(MOD($AB37,10000)>=1000,\"XXX\",\"\"))","v":""},{"$f":"IF(OR($AB37=\"\",$AB37=\"V\"),\"\",IF(MOD($AB37,100000)>=10000,\"XXX\",\"\"))","v":""}]
[{"$f":"A37","v":"09:20:00"},null,{"$f":"C37","v":"Team - Group 1 - Rd 3"},null,null,null,{"$f":"G34&4","v":"TG4"},null,null,null,null,"Lazaros Papakonstantinou (atl)",0,"-",1,"Jason Pisani (bor)",null,null,null,null,null,"Lazaros Papakonstantinou (atl)09:20","Jason Pisani (bor)09:20",{"$f":"IF(L38=\"\",0,COUNTIF(PlayersAndHoursCol1,L38&TEXT($A38,\"hh:mm\"))+COUNTIF(PlayersAndHoursCol2,L38&TEXT($A38,\"hh:mm\")))","v":1},{"$f":"IF(P38=\"\",0,COUNTIF(PlayersAndHoursCol1,P38&TEXT($A38,\"hh:mm\"))+COUNTIF(PlayersAndHoursCol2,P38&TEXT($A38,\"hh:mm\")))","v":1},{"$f":"IF(AA38=\"\",FALSE,NOT(AND(ISNA(MATCH(AA38&TEXT($A38,\"hh:mm\"),PlayersAndHoursCol1,0)),ISNA(MATCH(AA38&TEXT($A38,\"hh:mm\"),PlayersAndHoursCol2,0)),COUNTIF(AD:AD,AA38&$A38)<=1)))","v":false},null,null,null,null,null,null,null,{"$f":"IF(OR(M38>O38,R38>T38),L38,IF(OR(M38<O38,R38<T38),P38,\"\"))","v":"Jason Pisani (bor)"},{"$f":"IF(AND(M38<>\"\",M38=O38,R38=T38),L38,\"\")","v":""},{"$f":"IF(AND(M38<>\"\",M38=O38,R38=T38),P38,\"\")","v":""},{"$f":"IF(OR(M38<O38,R38<T38),L38,IF(OR(M38>O38,R38>T38),P38,\"\"))","v":"Lazaros Papakonstantinou (atl)"},{"$f":"IF(OR($AB38=\"\",$AB38=\"V\"),\"\",IF(MOD($AB38,10)=1,\"XXX\",\"\"))","v":""},{"$f":"IF(OR($AB38=\"\",$AB38=\"V\"),\"\",IF(MOD($AB38,100)>=10,\"XXX\",\"\"))","v":""},{"$f":"IF(OR($AB38=\"\",$AB38=\"V\"),\"\",IF(MOD($AB38,1000)>=100,\"XXX\",\"\"))","v":""},{"$f":"IF(OR($AB38=\"\",$AB38=\"V\"),\"\",IF(MOD($AB38,10000)>=1000,\"XXX\",\"\"))","v":""},{"$f":"IF(OR($AB38=\"\",$AB38=\"V\"),\"\",IF(MOD($AB38,100000)>=10000,\"XXX\",\"\"))","v":""}]
[{"$f":"A38","v":"09:20:00"},null,null,null,{"$f":"N_Substitute","v":"Substitute"},null,{"$f":"G34&\"SB1\"","v":"TGSB1"},null,null,null,null,"Athanasios Chaliotis (atl)",null,null,null,"Christian Haas (bor)",null,null,null,null,null,"Athanasios Chaliotis (atl)09:20","Christian Haas (bor)09:20",{"$f":"IF(L39=\"\",0,COUNTIF(PlayersAndHoursCol1,L39&TEXT($A39,\"hh:mm\"))+COUNTIF(PlayersAndHoursCol2,L39&TEXT($A39,\"hh:mm\")))","v":1},{"$f":"IF(P39=\"\",0,COUNTIF(PlayersAndHoursCol1,P39&TEXT($A39,\"hh:mm\"))+COUNTIF(PlayersAndHoursCol2,P39&TEXT($A39,\"hh:mm\")))","v":1}]
[{"$f":"A34","v":"09:20:00"},null,null,null,{"$f":"N_Substitute","v":"Substitute"},null,{"$f":"G34&\"SB2\"","v":"TGSB2"},null,null,null,null,null,null,null,null,null,null,null,null,null,null,"09:20","09:20",{"$f":"IF(L40=\"\",0,COUNTIF(PlayersAndHoursCol1,L40&TEXT($A40,\"hh:mm\"))+COUNTIF(PlayersAndHoursCol2,L40&TEXT($A40,\"hh:mm\")))","v":0},{"$f":"IF(P40=\"\",0,COUNTIF(PlayersAndHoursCol1,P40&TEXT($A40,\"hh:mm\"))+COUNTIF(PlayersAndHoursCol2,P40&TEXT($A40,\"hh:mm\")))","v":0}]
[{"$f":"OFFSET(A41,-1,0)","v":"09:20:00"},null,{"$f":"\"Team - \" & N_Group & \" 2\" & \" - \" & N_Round & \" 3\"","v":"Team - Group 2 - Rd 3"},null,null,null,"TG",{"$f":"IF(K41=\"\",\"\",SUBSTITUTE(MID(K41,1,SEARCH(\"!\",K41,1)-1),\"'\",\"\"))","v":"Team"},{"$f":"IF(K41=\"\",\"\",CELL(\"row\",INDIRECT(K41)))","v":128},{"$f":"IF(K41=\"\",\"\",CELL(\"col\",INDIRECT(K41)))","v":25},{"$f":"MID(Lire_Formule(L41),2,10000)","v":"Team!Y128"},{"$f":"Team!Y128","v":"TSC Royal 78 Kaisermühlen 2 (roy)"},2,"-",1,{"$f":"IF(K41=\"\",\"\",IF(RIGHT(G41,1)=\"T\",INDIRECT(ADDRESS(I41+2,J41,4,TRUE,H41)),INDIRECT(ADDRESS(I41,J41+4,4,TRUE,H41))))","v":"Barbarian Mixed Team"},null,{"$f":"IF(M41=\"\",\"\",SUM(M42:M45))","v":7},null,{"$f":"IF(O41=\"\",\"\",SUM(O42:O45))","v":6},null,{"$f":"L41&TEXT(A41,\"hh:mm\")","v":"TSC Royal 78 Kaisermühlen 2 (roy)09:20"},{"$f":"P41&TEXT(A41,\"hh:mm\")","v":"Barbarian Mixed Team09:20"},{"$f":"IF(L41=\"\",0,COUNTIF(PlayersAndHoursCol1,L41&TEXT($A41,\"hh:mm\"))+COUNTIF(PlayersAndHoursCol2,L41&TEXT($A41,\"hh:mm\")))","v":1},{"$f":"IF(P41=\"\",0,COUNTIF(PlayersAndHoursCol1,P41&TEXT($A41,\"hh:mm\"))+COUNTIF(PlayersAndHoursCol2,P41&TEXT($A41,\"hh:mm\")))","v":1},{"$f":"IF(AA41=\"\",FALSE,NOT(AND(ISNA(MATCH(AA41&TEXT($A41,\"hh:mm\"),PlayersAndHoursCol1,0)),ISNA(MATCH(AA41&TEXT($A41,\"hh:mm\"),PlayersAndHoursCol2,0)),COUNTIF(AD:AD,AA41&$A41)<=1)))","v":false},null,"V",null,{"$f":"AA41&A41","v":"0,388888888888889"},"Team","Groups",3,{"$f":"IF(OR(M41>O41,R41>T41),L41,IF(OR(M41<O41,R41<T41),P41,\"\"))","v":"TSC Royal 78 Kaisermühlen 2 (roy)"},{"$f":"IF(AND(M41<>\"\",M41=O41,R41=T41),L41,\"\")","v":""},{"$f":"IF(AND(M41<>\"\",M41=O41,R41=T41),P41,\"\")","v":""},{"$f":"IF(OR(M41<O41,R41<T41),L41,IF(OR(M41>O41,R41>T41),P41,\"\"))","v":"Barbarian Mixed Team"},{"$f":"IF(OR($AB41=\"\",$AB41=\"V\"),\"\",IF(MOD($AB41,10)=1,\"XXX\",\"\"))","v":""},{"$f":"IF(OR($AB41=\"\",$AB41=\"V\"),\"\",IF(MOD($AB41,100)>=10,\"XXX\",\"\"))","v":""},{"$f":"IF(OR($AB41=\"\",$AB41=\"V\"),\"\",IF(MOD($AB41,1000)>=100,\"XXX\",\"\"))","v":""},{"$f":"IF(OR($AB41=\"\",$AB41=\"V\"),\"\",IF(MOD($AB41,10000)>=1000,\"XXX\",\"\"))","v":""},{"$f":"IF(OR($AB41=\"\",$AB41=\"V\"),\"\",IF(MOD($AB41,100000)>=10000,\"XXX\",\"\"))","v":""}]
[{"$f":"A41","v":"09:20:00"},null,{"$f":"C41","v":"Team - Group 2 - Rd 3"},null,null,null,{"$f":"G41&1","v":"TG1"},null,null,null,null,"Karl Vranovitz (roy)",0,"-",4,"Robert Green (nfc)",null,null,null,null,null,"Karl Vranovitz (roy)09:20","Robert Green (nfc)09:20",{"$f":"IF(L42=\"\",0,COUNTIF(PlayersAndHoursCol1,L42&TEXT($A42,\"hh:mm\"))+COUNTIF(PlayersAndHoursCol2,L42&TEXT($A42,\"hh:mm\")))","v":1},{"$f":"IF(P42=\"\",0,COUNTIF(PlayersAndHoursCol1,P42&TEXT($A42,\"hh:mm\"))+COUNTIF(PlayersAndHoursCol2,P42&TEXT($A42,\"hh:mm\")))","v":1},{"$f":"IF(AA42=\"\",FALSE,NOT(AND(ISNA(MATCH(AA42&TEXT($A42,\"hh:mm\"),PlayersAndHoursCol1,0)),ISNA(MATCH(AA42&TEXT($A42,\"hh:mm\"),PlayersAndHoursCol2,0)),COUNTIF(AD:AD,AA42&$A42)<=1)))","v":false},null,null,null,null,null,null,null,{"$f":"IF(OR(M42>O42,R42>T42),L42,IF(OR(M42<O42,R42<T42),P42,\"\"))","v":"Robert Green (nfc)"},{"$f":"IF(AND(M42<>\"\",M42=O42,R42=T42),L42,\"\")","v":""},{"$f":"IF(AND(M42<>\"\",M42=O42,R42=T42),P42,\"\")","v":""},{"$f":"IF(OR(M42<O42,R42<T42),L42,IF(OR(M42>O42,R42>T42),P42,\"\"))","v":"Karl Vranovitz (roy)"},{"$f":"IF(OR($AB42=\"\",$AB42=\"V\"),\"\",IF(MOD($AB42,10)=1,\"XXX\",\"\"))","v":""},{"$f":"IF(OR($AB42=\"\",$AB42=\"V\"),\"\",IF(MOD($AB42,100)>=10,\"XXX\",\"\"))","v":""},{"$f":"IF(OR($AB42=\"\",$AB42=\"V\"),\"\",IF(MOD($AB42,1000)>=100,\"XXX\",\"\"))","v":""},{"$f":"IF(OR($AB42=\"\",$AB42=\"V\"),\"\",IF(MOD($AB42,10000)>=1000,\"XXX\",\"\"))","v":""},{"$f":"IF(OR($AB42=\"\",$AB42=\"V\"),\"\",IF(MOD($AB42,100000)>=10000,\"XXX\",\"\"))","v":""}]
[{"$f":"A42","v":"09:20:00"},null,{"$f":"C42","v":"Team - Group 2 - Rd 3"},null,null,null,{"$f":"G41&2","v":"TG2"},null,null,null,null,"Christian Hausmann (roy)",1,"-",1,"Daniela Grünberg (sch)",null,null,null,null,null,"Christian Hausmann (roy)09:20","Daniela Grünberg (sch)09:20",{"$f":"IF(L43=\"\",0,COUNTIF(PlayersAndHoursCol1,L43&TEXT($A43,\"hh:mm\"))+COUNTIF(PlayersAndHoursCol2,L43&TEXT($A43,\"hh:mm\")))","v":1},{"$f":"IF(P43=\"\",0,COUNTIF(PlayersAndHoursCol1,P43&TEXT($A43,\"hh:mm\"))+COUNTIF(PlayersAndHoursCol2,P43&TEXT($A43,\"hh:mm\")))","v":1},{"$f":"IF(AA43=\"\",FALSE,NOT(AND(ISNA(MATCH(AA43&TEXT($A43,\"hh:mm\"),PlayersAndHoursCol1,0)),ISNA(MATCH(AA43&TEXT($A43,\"hh:mm\"),PlayersAndHoursCol2,0)),COUNTIF(AD:AD,AA43&$A43)<=1)))","v":false},null,null,null,null,null,null,null,{"$f":"IF(OR(M43>O43,R43>T43),L43,IF(OR(M43<O43,R43<T43),P43,\"\"))","v":""},{"$f":"IF(AND(M43<>\"\",M43=O43,R43=T43),L43,\"\")","v":"Christian Hausmann (roy)"},{"$f":"IF(AND(M43<>\"\",M43=O43,R43=T43),P43,\"\")","v":"Daniela Grünberg (sch)"},{"$f":"IF(OR(M43<O43,R43<T43),L43,IF(OR(M43>O43,R43>T43),P43,\"\"))","v":""},{"$f":"IF(OR($AB43=\"\",$AB43=\"V\"),\"\",IF(MOD($AB43,10)=1,\"XXX\",\"\"))","v":""},{"$f":"IF(OR($AB43=\"\",$AB43=\"V\"),\"\",IF(MOD($AB43,100)>=10,\"XXX\",\"\"))","v":""},{"$f":"IF(OR($AB43=\"\",$AB43=\"V\"),\"\",IF(MOD($AB43,1000)>=100,\"XXX\",\"\"))","v":""},{"$f":"IF(OR($AB43=\"\",$AB43=\"V\"),\"\",IF(MOD($AB43,10000)>=1000,\"XXX\",\"\"))","v":""},{"$f":"IF(OR($AB43=\"\",$AB43=\"V\"),\"\",IF(MOD($AB43,100000)>=10000,\"XXX\",\"\"))","v":""}]
[{"$f":"A43","v":"09:20:00"},null,{"$f":"C43","v":"Team - Group 2 - Rd 3"},null,null,null,{"$f":"G41&3","v":"TG3"},null,null,null,null,"Heinz Eder (roy)",3,"-",0,"Peter Erb (sub)",null,null,null,null,null,"Heinz Eder (roy)09:20","Peter Erb (sub)09:20",{"$f":"IF(L44=\"\",0,COUNTIF(PlayersAndHoursCol1,L44&TEXT($A44,\"hh:mm\"))+COUNTIF(PlayersAndHoursCol2,L44&TEXT($A44,\"hh:mm\")))","v":1},{"$f":"IF(P44=\"\",0,COUNTIF(PlayersAndHoursCol1,P44&TEXT($A44,\"hh:mm\"))+COUNTIF(PlayersAndHoursCol2,P44&TEXT($A44,\"hh:mm\")))","v":1},{"$f":"IF(AA44=\"\",FALSE,NOT(AND(ISNA(MATCH(AA44&TEXT($A44,\"hh:mm\"),PlayersAndHoursCol1,0)),ISNA(MATCH(AA44&TEXT($A44,\"hh:mm\"),PlayersAndHoursCol2,0)),COUNTIF(AD:AD,AA44&$A44)<=1)))","v":false},null,null,null,null,null,null,null,{"$f":"IF(OR(M44>O44,R44>T44),L44,IF(OR(M44<O44,R44<T44),P44,\"\"))","v":"Heinz Eder (roy)"},{"$f":"IF(AND(M44<>\"\",M44=O44,R44=T44),L44,\"\")","v":""},{"$f":"IF(AND(M44<>\"\",M44=O44,R44=T44),P44,\"\")","v":""},{"$f":"IF(OR(M44<O44,R44<T44),L44,IF(OR(M44>O44,R44>T44),P44,\"\"))","v":"Peter Erb (sub)"},{"$f":"IF(OR($AB44=\"\",$AB44=\"V\"),\"\",IF(MOD($AB44,10)=1,\"XXX\",\"\"))","v":""},{"$f":"IF(OR($AB44=\"\",$AB44=\"V\"),\"\",IF(MOD($AB44,100)>=10,\"XXX\",\"\"))","v":""},{"$f":"IF(OR($AB44=\"\",$AB44=\"V\"),\"\",IF(MOD($AB44,1000)>=100,\"XXX\",\"\"))","v":""},{"$f":"IF(OR($AB44=\"\",$AB44=\"V\"),\"\",IF(MOD($AB44,10000)>=1000,\"XXX\",\"\"))","v":""},{"$f":"IF(OR($AB44=\"\",$AB44=\"V\"),\"\",IF(MOD($AB44,100000)>=10000,\"XXX\",\"\"))","v":""}]
[{"$f":"A44","v":"09:20:00"},null,{"$f":"C44","v":"Team - Group 2 - Rd 3"},null,null,null,{"$f":"G41&4","v":"TG4"},null,null,null,null,"Robert Lenz (roy)",3,"-",1,"Marcel Schulz (sch)",null,null,null,null,null,"Robert Lenz (roy)09:20","Marcel Schulz (sch)09:20",{"$f":"IF(L45=\"\",0,COUNTIF(PlayersAndHoursCol1,L45&TEXT($A45,\"hh:mm\"))+COUNTIF(PlayersAndHoursCol2,L45&TEXT($A45,\"hh:mm\")))","v":1},{"$f":"IF(P45=\"\",0,COUNTIF(PlayersAndHoursCol1,P45&TEXT($A45,\"hh:mm\"))+COUNTIF(PlayersAndHoursCol2,P45&TEXT($A45,\"hh:mm\")))","v":1},{"$f":"IF(AA45=\"\",FALSE,NOT(AND(ISNA(MATCH(AA45&TEXT($A45,\"hh:mm\"),PlayersAndHoursCol1,0)),ISNA(MATCH(AA45&TEXT($A45,\"hh:mm\"),PlayersAndHoursCol2,0)),COUNTIF(AD:AD,AA45&$A45)<=1)))","v":false},null,null,null,null,null,null,null,{"$f":"IF(OR(M45>O45,R45>T45),L45,IF(OR(M45<O45,R45<T45),P45,\"\"))","v":"Robert Lenz (roy)"},{"$f":"IF(AND(M45<>\"\",M45=O45,R45=T45),L45,\"\")","v":""},{"$f":"IF(AND(M45<>\"\",M45=O45,R45=T45),P45,\"\")","v":""},{"$f":"IF(OR(M45<O45,R45<T45),L45,IF(OR(M45>O45,R45>T45),P45,\"\"))","v":"Marcel Schulz (sch)"},{"$f":"IF(OR($AB45=\"\",$AB45=\"V\"),\"\",IF(MOD($AB45,10)=1,\"XXX\",\"\"))","v":""},{"$f":"IF(OR($AB45=\"\",$AB45=\"V\"),\"\",IF(MOD($AB45,100)>=10,\"XXX\",\"\"))","v":""},{"$f":"IF(OR($AB45=\"\",$AB45=\"V\"),\"\",IF(MOD($AB45,1000)>=100,\"XXX\",\"\"))","v":""},{"$f":"IF(OR($AB45=\"\",$AB45=\"V\"),\"\",IF(MOD($AB45,10000)>=1000,\"XXX\",\"\"))","v":""},{"$f":"IF(OR($AB45=\"\",$AB45=\"V\"),\"\",IF(MOD($AB45,100000)>=10000,\"XXX\",\"\"))","v":""}]
[{"$f":"A45","v":"09:20:00"},null,null,null,{"$f":"N_Substitute","v":"Substitute"},null,{"$f":"G41&\"SB1\"","v":"TGSB1"},null,null,null,null,null,null,null,null,null,null,null,null,null,null,"09:20","09:20",{"$f":"IF(L46=\"\",0,COUNTIF(PlayersAndHoursCol1,L46&TEXT($A46,\"hh:mm\"))+COUNTIF(PlayersAndHoursCol2,L46&TEXT($A46,\"hh:mm\")))","v":0},{"$f":"IF(P46=\"\",0,COUNTIF(PlayersAndHoursCol1,P46&TEXT($A46,\"hh:mm\"))+COUNTIF(PlayersAndHoursCol2,P46&TEXT($A46,\"hh:mm\")))","v":0}]
[{"$f":"A41","v":"09:20:00"},null,null,null,{"$f":"N_Substitute","v":"Substitute"},null,{"$f":"G41&\"SB2\"","v":"TGSB2"},null,null,null,null,null,null,null,null,null,null,null,null,null,null,"09:20","09:20",{"$f":"IF(L47=\"\",0,COUNTIF(PlayersAndHoursCol1,L47&TEXT($A47,\"hh:mm\"))+COUNTIF(PlayersAndHoursCol2,L47&TEXT($A47,\"hh:mm\")))","v":0},{"$f":"IF(P47=\"\",0,COUNTIF(PlayersAndHoursCol1,P47&TEXT($A47,\"hh:mm\"))+COUNTIF(PlayersAndHoursCol2,P47&TEXT($A47,\"hh:mm\")))","v":0}]
[{"$f":"A26+P26","v":"10:10:00"},null,{"$f":"N_Session","v":"Session Nbr "},null,{"$f":"E26+ 1","v":3},null,{"$f":"\"S\" & RIGHT(G26, LEN(G26)-1) + 1","v":"S3"},null,null,null,null,{"$f":"N_Duration","v":"Duration"},null,":",null,"00:50:00"]
[{"$f":"OFFSET(A49,-1,0)","v":"10:10:00"},null,{"$f":"\"Team - \" & N_Group & \" 2\" & \" - \" & N_Round & \" 4\"","v":"Team - Group 2 - Rd 4"},null,null,null,"TG",{"$f":"IF(K49=\"\",\"\",SUBSTITUTE(MID(K49,1,SEARCH(\"!\",K49,1)-1),\"'\",\"\"))","v":"Team"},{"$f":"IF(K49=\"\",\"\",CELL(\"row\",INDIRECT(K49)))","v":135},{"$f":"IF(K49=\"\",\"\",CELL(\"col\",INDIRECT(K49)))","v":25},{"$f":"MID(Lire_Formule(L49),2,10000)","v":"Team!Y135"},{"$f":"Team!Y135","v":"ST Stembert (ste)"},3,"-",0,{"$f":"IF(K49=\"\",\"\",IF(RIGHT(G49,1)=\"T\",INDIRECT(ADDRESS(I49+2,J49,4,TRUE,H49)),INDIRECT(ADDRESS(I49,J49+4,4,TRUE,H49))))","v":"TSC Phoenix 2 (wie)"},null,{"$f":"IF(M49=\"\",\"\",SUM(M50:M53))","v":16},null,{"$f":"IF(O49=\"\",\"\",SUM(O50:O53))","v":3},null,{"$f":"L49&TEXT(A49,\"hh:mm\")","v":"ST Stembert (ste)10:10"},{"$f":"P49&TEXT(A49,\"hh:mm\")","v":"TSC Phoenix 2 (wie)10:10"},{"$f":"IF(L49=\"\",0,COUNTIF(PlayersAndHoursCol1,L49&TEXT($A49,\"hh:mm\"))+COUNTIF(PlayersAndHoursCol2,L49&TEXT($A49,\"hh:mm\")))","v":1},{"$f":"IF(P49=\"\",0,COUNTIF(PlayersAndHoursCol1,P49&TEXT($A49,\"hh:mm\"))+COUNTIF(PlayersAndHoursCol2,P49&TEXT($A49,\"hh:mm\")))","v":1},{"$f":"IF(AA49=\"\",FALSE,NOT(AND(ISNA(MATCH(AA49&TEXT($A49,\"hh:mm\"),PlayersAndHoursCol1,0)),ISNA(MATCH(AA49&TEXT($A49,\"hh:mm\"),PlayersAndHoursCol2,0)),COUNTIF(AD:AD,AA49&$A49)<=1)))","v":false},"Atlas FTC (atl)","V",null,{"$f":"AA49&A49","v":"Atlas FTC (atl)0,423611111111111"},"Team","Groups",4,{"$f":"IF(OR(M49>O49,R49>T49),L49,IF(OR(M49<O49,R49<T49),P49,\"\"))","v":"ST Stembert (ste)"},{"$f":"IF(AND(M49<>\"\",M49=O49,R49=T49),L49,\"\")","v":""},{"$f":"IF(AND(M49<>\"\",M49=O49,R49=T49),P49,\"\")","v":""},{"$f":"IF(OR(M49<O49,R49<T49),L49,IF(OR(M49>O49,R49>T49),P49,\"\"))","v":"TSC Phoenix 2 (wie)"},{"$f":"IF(OR($AB49=\"\",$AB49=\"V\"),\"\",IF(MOD($AB49,10)=1,\"XXX\",\"\"))","v":""},{"$f":"IF(OR($AB49=\"\",$AB49=\"V\"),\"\",IF(MOD($AB49,100)>=10,\"XXX\",\"\"))","v":""},{"$f":"IF(OR($AB49=\"\",$AB49=\"V\"),\"\",IF(MOD($AB49,1000)>=100,\"XXX\",\"\"))","v":""},{"$f":"IF(OR($AB49=\"\",$AB49=\"V\"),\"\",IF(MOD($AB49,10000)>=1000,\"XXX\",\"\"))","v":""},{"$f":"IF(OR($AB49=\"\",$AB49=\"V\"),\"\",IF(MOD($AB49,100000)>=10000,\"XXX\",\"\"))","v":""}]
[{"$f":"A49","v":"10:10:00"},null,{"$f":"C49","v":"Team - Group 2 - Rd 4"},null,null,null,{"$f":"G49&1","v":"TG1"},null,null,null,null,"Noah Janssens (ste)",5,"-",0,"Alfred Strommer (wie)",null,null,null,null,null,"Noah Janssens (ste)10:10","Alfred Strommer (wie)10:10",{"$f":"IF(L50=\"\",0,COUNTIF(PlayersAndHoursCol1,L50&TEXT($A50,\"hh:mm\"))+COUNTIF(PlayersAndHoursCol2,L50&TEXT($A50,\"hh:mm\")))","v":1},{"$f":"IF(P50=\"\",0,COUNTIF(PlayersAndHoursCol1,P50&TEXT($A50,\"hh:mm\"))+COUNTIF(PlayersAndHoursCol2,P50&TEXT($A50,\"hh:mm\")))","v":1},{"$f":"IF(AA50=\"\",FALSE,NOT(AND(ISNA(MATCH(AA50&TEXT($A50,\"hh:mm\"),PlayersAndHoursCol1,0)),ISNA(MATCH(AA50&TEXT($A50,\"hh:mm\"),PlayersAndHoursCol2,0)),COUNTIF(AD:AD,AA50&$A50)<=1)))","v":false},null,null,null,null,null,null,null,{"$f":"IF(OR(M50>O50,R50>T50),L50,IF(OR(M50<O50,R50<T50),P50,\"\"))","v":"Noah Janssens (ste)"},{"$f":"IF(AND(M50<>\"\",M50=O50,R50=T50),L50,\"\")","v":""},{"$f":"IF(AND(M50<>\"\",M50=O50,R50=T50),P50,\"\")","v":""},{"$f":"IF(OR(M50<O50,R50<T50),L50,IF(OR(M50>O50,R50>T50),P50,\"\"))","v":"Alfred Strommer (wie)"},{"$f":"IF(OR($AB50=\"\",$AB50=\"V\"),\"\",IF(MOD($AB50,10)=1,\"XXX\",\"\"))","v":""},{"$f":"IF(OR($AB50=\"\",$AB50=\"V\"),\"\",IF(MOD($AB50,100)>=10,\"XXX\",\"\"))","v":""},{"$f":"IF(OR($AB50=\"\",$AB50=\"V\"),\"\",IF(MOD($AB50,1000)>=100,\"XXX\",\"\"))","v":""},{"$f":"IF(OR($AB50=\"\",$AB50=\"V\"),\"\",IF(MOD($AB50,10000)>=1000,\"XXX\",\"\"))","v":""},{"$f":"IF(OR($AB50=\"\",$AB50=\"V\"),\"\",IF(MOD($AB50,100000)>=10000,\"XXX\",\"\"))","v":""}]
[{"$f":"A50","v":"10:10:00"},null,{"$f":"C50","v":"Team - Group 2 - Rd 4"},null,null,null,{"$f":"G49&2","v":"TG2"},null,null,null,null,"Sébastien Rochez (ste)",1,"-",1,"Igor Ljubisavljevic (wie)",null,null,null,null,null,"Sébastien Rochez (ste)10:10","Igor Ljubisavljevic (wie)10:10",{"$f":"IF(L51=\"\",0,COUNTIF(PlayersAndHoursCol1,L51&TEXT($A51,\"hh:mm\"))+COUNTIF(PlayersAndHoursCol2,L51&TEXT($A51,\"hh:mm\")))","v":1},{"$f":"IF(P51=\"\",0,COUNTIF(PlayersAndHoursCol1,P51&TEXT($A51,\"hh:mm\"))+COUNTIF(PlayersAndHoursCol2,P51&TEXT($A51,\"hh:mm\")))","v":1},{"$f":"IF(AA51=\"\",FALSE,NOT(AND(ISNA(MATCH(AA51&TEXT($A51,\"hh:mm\"),PlayersAndHoursCol1,0)),ISNA(MATCH(AA51&TEXT($A51,\"hh:mm\"),PlayersAndHoursCol2,0)),COUNTIF(AD:AD,AA51&$A51)<=1)))","v":false},null,null,null,null,null,null,null,{"$f":"IF(OR(M51>O51,R51>T51),L51,IF(OR(M51<O51,R51<T51),P51,\"\"))","v":""},{"$f":"IF(AND(M51<>\"\",M51=O51,R51=T51),L51,\"\")","v":"Sébastien Rochez (ste)"},{"$f":"IF(AND(M51<>\"\",M51=O51,R51=T51),P51,\"\")","v":"Igor Ljubisavljevic (wie)"},{"$f":"IF(OR(M51<O51,R51<T51),L51,IF(OR(M51>O51,R51>T51),P51,\"\"))","v":""},{"$f":"IF(OR($AB51=\"\",$AB51=\"V\"),\"\",IF(MOD($AB51,10)=1,\"XXX\",\"\"))","v":""},{"$f":"IF(OR($AB51=\"\",$AB51=\"V\"),\"\",IF(MOD($AB51,100)>=10,\"XXX\",\"\"))","v":""},{"$f":"IF(OR($AB51=\"\",$AB51=\"V\"),\"\",IF(MOD($AB51,1000)>=100,\"XXX\",\"\"))","v":""},{"$f":"IF(OR($AB51=\"\",$AB51=\"V\"),\"\",IF(MOD($AB51,10000)>=1000,\"XXX\",\"\"))","v":""},{"$f":"IF(OR($AB51=\"\",$AB51=\"V\"),\"\",IF(MOD($AB51,100000)>=10000,\"XXX\",\"\"))","v":""}]
[{"$f":"A51","v":"10:10:00"},null,{"$f":"C51","v":"Team - Group 2 - Rd 4"},null,null,null,{"$f":"G49&3","v":"TG3"},null,null,null,null,"John Zammit (ste)",6,"-",0,"Florian Daxböck (wie)",null,null,null,null,null,"John Zammit (ste)10:10","Florian Daxböck (wie)10:10",{"$f":"IF(L52=\"\",0,COUNTIF(PlayersAndHoursCol1,L52&TEXT($A52,\"hh:mm\"))+COUNTIF(PlayersAndHoursCol2,L52&TEXT($A52,\"hh:mm\")))","v":1},{"$f":"IF(P52=\"\",0,COUNTIF(PlayersAndHoursCol1,P52&TEXT($A52,\"hh:mm\"))+COUNTIF(PlayersAndHoursCol2,P52&TEXT($A52,\"hh:mm\")))","v":1},{"$f":"IF(AA52=\"\",FALSE,NOT(AND(ISNA(MATCH(AA52&TEXT($A52,\"hh:mm\"),PlayersAndHoursCol1,0)),ISNA(MATCH(AA52&TEXT($A52,\"hh:mm\"),PlayersAndHoursCol2,0)),COUNTIF(AD:AD,AA52&$A52)<=1)))","v":false},null,null,null,null,null,null,null,{"$f":"IF(OR(M52>O52,R52>T52),L52,IF(OR(M52<O52,R52<T52),P52,\"\"))","v":"John Zammit (ste)"},{"$f":"IF(AND(M52<>\"\",M52=O52,R52=T52),L52,\"\")","v":""},{"$f":"IF(AND(M52<>\"\",M52=O52,R52=T52),P52,\"\")","v":""},{"$f":"IF(OR(M52<O52,R52<T52),L52,IF(OR(M52>O52,R52>T52),P52,\"\"))","v":"Florian Daxböck (wie)"},{"$f":"IF(OR($AB52=\"\",$AB52=\"V\"),\"\",IF(MOD($AB52,10)=1,\"XXX\",\"\"))","v":""},{"$f":"IF(OR($AB52=\"\",$AB52=\"V\"),\"\",IF(MOD($AB52,100)>=10,\"XXX\",\"\"))","v":""},{"$f":"IF(OR($AB52=\"\",$AB52=\"V\"),\"\",IF(MOD($AB52,1000)>=100,\"XXX\",\"\"))","v":""},{"$f":"IF(OR($AB52=\"\",$AB52=\"V\"),\"\",IF(MOD($AB52,10000)>=1000,\"XXX\",\"\"))","v":""},{"$f":"IF(OR($AB52=\"\",$AB52=\"V\"),\"\",IF(MOD($AB52,100000)>=10000,\"XXX\",\"\"))","v":""}]
[{"$f":"A52","v":"10:10:00"},null,{"$f":"C52","v":"Team - Group 2 - Rd 4"},null,null,null,{"$f":"G49&4","v":"TG4"},null,null,null,null,"Pascal Scheen (ste)",4,"-",2,"Gábor Baross (wie)",null,null,null,null,null,"Pascal Scheen (ste)10:10","Gábor Baross (wie)10:10",{"$f":"IF(L53=\"\",0,COUNTIF(PlayersAndHoursCol1,L53&TEXT($A53,\"hh:mm\"))+COUNTIF(PlayersAndHoursCol2,L53&TEXT($A53,\"hh:mm\")))","v":1},{"$f":"IF(P53=\"\",0,COUNTIF(PlayersAndHoursCol1,P53&TEXT($A53,\"hh:mm\"))+COUNTIF(PlayersAndHoursCol2,P53&TEXT($A53,\"hh:mm\")))","v":1},{"$f":"IF(AA53=\"\",FALSE,NOT(AND(ISNA(MATCH(AA53&TEXT($A53,\"hh:mm\"),PlayersAndHoursCol1,0)),ISNA(MATCH(AA53&TEXT($A53,\"hh:mm\"),PlayersAndHoursCol2,0)),COUNTIF(AD:AD,AA53&$A53)<=1)))","v":false},null,null,null,null,null,null,null,{"$f":"IF(OR(M53>O53,R53>T53),L53,IF(OR(M53<O53,R53<T53),P53,\"\"))","v":"Pascal Scheen (ste)"},{"$f":"IF(AND(M53<>\"\",M53=O53,R53=T53),L53,\"\")","v":""},{"$f":"IF(AND(M53<>\"\",M53=O53,R53=T53),P53,\"\")","v":""},{"$f":"IF(OR(M53<O53,R53<T53),L53,IF(OR(M53>O53,R53>T53),P53,\"\"))","v":"Gábor Baross (wie)"},{"$f":"IF(OR($AB53=\"\",$AB53=\"V\"),\"\",IF(MOD($AB53,10)=1,\"XXX\",\"\"))","v":""},{"$f":"IF(OR($AB53=\"\",$AB53=\"V\"),\"\",IF(MOD($AB53,100)>=10,\"XXX\",\"\"))","v":""},{"$f":"IF(OR($AB53=\"\",$AB53=\"V\"),\"\",IF(MOD($AB53,1000)>=100,\"XXX\",\"\"))","v":""},{"$f":"IF(OR($AB53=\"\",$AB53=\"V\"),\"\",IF(MOD($AB53,10000)>=1000,\"XXX\",\"\"))","v":""},{"$f":"IF(OR($AB53=\"\",$AB53=\"V\"),\"\",IF(MOD($AB53,100000)>=10000,\"XXX\",\"\"))","v":""}]
[{"$f":"A53","v":"10:10:00"},null,null,null,{"$f":"N_Substitute","v":"Substitute"},null,{"$f":"G49&\"SB1\"","v":"TGSB1"},null,null,null,null,null,null,null,null,null,null,null,null,null,null,"10:10","10:10",{"$f":"IF(L54=\"\",0,COUNTIF(PlayersAndHoursCol1,L54&TEXT($A54,\"hh:mm\"))+COUNTIF(PlayersAndHoursCol2,L54&TEXT($A54,\"hh:mm\")))","v":0},{"$f":"IF(P54=\"\",0,COUNTIF(PlayersAndHoursCol1,P54&TEXT($A54,\"hh:mm\"))+COUNTIF(PlayersAndHoursCol2,P54&TEXT($A54,\"hh:mm\")))","v":0}]
[{"$f":"A49","v":"10:10:00"},null,null,null,{"$f":"N_Substitute","v":"Substitute"},null,{"$f":"G49&\"SB2\"","v":"TGSB2"},null,null,null,null,null,null,null,null,null,null,null,null,null,null,"10:10","10:10",{"$f":"IF(L55=\"\",0,COUNTIF(PlayersAndHoursCol1,L55&TEXT($A55,\"hh:mm\"))+COUNTIF(PlayersAndHoursCol2,L55&TEXT($A55,\"hh:mm\")))","v":0},{"$f":"IF(P55=\"\",0,COUNTIF(PlayersAndHoursCol1,P55&TEXT($A55,\"hh:mm\"))+COUNTIF(PlayersAndHoursCol2,P55&TEXT($A55,\"hh:mm\")))","v":0}]
[{"$f":"OFFSET(A56,-1,0)","v":"10:10:00"},null,{"$f":"\"Team - \" & N_Group & \" 2\" & \" - \" & N_Round & \" 4\"","v":"Team - Group 2 - Rd 4"},null,null,null,"TG",{"$f":"IF(K56=\"\",\"\",SUBSTITUTE(MID(K56,1,SEARCH(\"!\",K56,1)-1),\"'\",\"\"))","v":"Team"},{"$f":"IF(K56=\"\",\"\",CELL(\"row\",INDIRECT(K56)))","v":142},{"$f":"IF(K56=\"\",\"\",CELL(\"col\",INDIRECT(K56)))","v":25},{"$f":"MID(Lire_Formule(L56),2,10000)","v":"Team!Y142"},{"$f":"Team!Y142","v":"Roligans Ilioupolis TSC (rol)"},0,"-",3,{"$f":"IF(K56=\"\",\"\",IF(RIGHT(G56,1)=\"T\",INDIRECT(ADDRESS(I56+2,J56,4,TRUE,H56)),INDIRECT(ADDRESS(I56,J56+4,4,TRUE,H56))))","v":"TSC Royal 78 Kaisermühlen 2 (roy)"},null,{"$f":"IF(M56=\"\",\"\",SUM(M57:M60))","v":5},null,{"$f":"IF(O56=\"\",\"\",SUM(O57:O60))","v":12},null,{"$f":"L56&TEXT(A56,\"hh:mm\")","v":"Roligans Ilioupolis TSC (rol)10:10"},{"$f":"P56&TEXT(A56,\"hh:mm\")","v":"TSC Royal 78 Kaisermühlen 2 (roy)10:10"},{"$f":"IF(L56=\"\",0,COUNTIF(PlayersAndHoursCol1,L56&TEXT($A56,\"hh:mm\"))+COUNTIF(PlayersAndHoursCol2,L56&TEXT($A56,\"hh:mm\")))","v":1},{"$f":"IF(P56=\"\",0,COUNTIF(PlayersAndHoursCol1,P56&TEXT($A56,\"hh:mm\"))+COUNTIF(PlayersAndHoursCol2,P56&TEXT($A56,\"hh:mm\")))","v":1},{"$f":"IF(AA56=\"\",FALSE,NOT(AND(ISNA(MATCH(AA56&TEXT($A56,\"hh:mm\"),PlayersAndHoursCol1,0)),ISNA(MATCH(AA56&TEXT($A56,\"hh:mm\"),PlayersAndHoursCol2,0)),COUNTIF(AD:AD,AA56&$A56)<=1)))","v":false},"TSC Phoenix (wie)","V",null,{"$f":"AA56&A56","v":"TSC Phoenix (wie)0,423611111111111"},"Team","Groups",4,{"$f":"IF(OR(M56>O56,R56>T56),L56,IF(OR(M56<O56,R56<T56),P56,\"\"))","v":"TSC Royal 78 Kaisermühlen 2 (roy)"},{"$f":"IF(AND(M56<>\"\",M56=O56,R56=T56),L56,\"\")","v":""},{"$f":"IF(AND(M56<>\"\",M56=O56,R56=T56),P56,\"\")","v":""},{"$f":"IF(OR(M56<O56,R56<T56),L56,IF(OR(M56>O56,R56>T56),P56,\"\"))","v":"Roligans Ilioupolis TSC (rol)"},{"$f":"IF(OR($AB56=\"\",$AB56=\"V\"),\"\",IF(MOD($AB56,10)=1,\"XXX\",\"\"))","v":""},{"$f":"IF(OR($AB56=\"\",$AB56=\"V\"),\"\",IF(MOD($AB56,100)>=10,\"XXX\",\"\"))","v":""},{"$f":"IF(OR($AB56=\"\",$AB56=\"V\"),\"\",IF(MOD($AB56,1000)>=100,\"XXX\",\"\"))","v":""},{"$f":"IF(OR($AB56=\"\",$AB56=\"V\"),\"\",IF(MOD($AB56,10000)>=1000,\"XXX\",\"\"))","v":""},{"$f":"IF(OR($AB56=\"\",$AB56=\"V\"),\"\",IF(MOD($AB56,100000)>=10000,\"XXX\",\"\"))","v":""}]
[{"$f":"A56","v":"10:10:00"},null,{"$f":"C56","v":"Team - Group 2 - Rd 4"},null,null,null,{"$f":"G56&1","v":"TG1"},null,null,null,null,"Phillipos Kordantonopoulos (rol)",0,"-",0,"Christian Hausmann (roy)",null,null,null,null,null,"Phillipos Kordantonopoulos (rol)10:10","Christian Hausmann (roy)10:10",{"$f":"IF(L57=\"\",0,COUNTIF(PlayersAndHoursCol1,L57&TEXT($A57,\"hh:mm\"))+COUNTIF(PlayersAndHoursCol2,L57&TEXT($A57,\"hh:mm\")))","v":1},{"$f":"IF(P57=\"\",0,COUNTIF(PlayersAndHoursCol1,P57&TEXT($A57,\"hh:mm\"))+COUNTIF(PlayersAndHoursCol2,P57&TEXT($A57,\"hh:mm\")))","v":1},{"$f":"IF(AA57=\"\",FALSE,NOT(AND(ISNA(MATCH(AA57&TEXT($A57,\"hh:mm\"),PlayersAndHoursCol1,0)),ISNA(MATCH(AA57&TEXT($A57,\"hh:mm\"),PlayersAndHoursCol2,0)),COUNTIF(AD:AD,AA57&$A57)<=1)))","v":false},null,null,null,null,null,null,null,{"$f":"IF(OR(M57>O57,R57>T57),L57,IF(OR(M57<O57,R57<T57),P57,\"\"))","v":""},{"$f":"IF(AND(M57<>\"\",M57=O57,R57=T57),L57,\"\")","v":"Phillipos Kordantonopoulos (rol)"},{"$f":"IF(AND(M57<>\"\",M57=O57,R57=T57),P57,\"\")","v":"Christian Hausmann (roy)"},{"$f":"IF(OR(M57<O57,R57<T57),L57,IF(OR(M57>O57,R57>T57),P57,\"\"))","v":""},{"$f":"IF(OR($AB57=\"\",$AB57=\"V\"),\"\",IF(MOD($AB57,10)=1,\"XXX\",\"\"))","v":""},{"$f":"IF(OR($AB57=\"\",$AB57=\"V\"),\"\",IF(MOD($AB57,100)>=10,\"XXX\",\"\"))","v":""},{"$f":"IF(OR($AB57=\"\",$AB57=\"V\"),\"\",IF(MOD($AB57,1000)>=100,\"XXX\",\"\"))","v":""},{"$f":"IF(OR($AB57=\"\",$AB57=\"V\"),\"\",IF(MOD($AB57,10000)>=1000,\"XXX\",\"\"))","v":""},{"$f":"IF(OR($AB57=\"\",$AB57=\"V\"),\"\",IF(MOD($AB57,100000)>=10000,\"XXX\",\"\"))","v":""}]
[{"$f":"A57","v":"10:10:00"},null,{"$f":"C57","v":"Team - Group 2 - Rd 4"},null,null,null,{"$f":"G56&2","v":"TG2"},null,null,null,null,"Athanasios Kordantonopoulos (rol)",2,"-",6,"Robert Lenz (roy)",null,null,null,null,null,"Athanasios Kordantonopoulos (rol)10:10","Robert Lenz (roy)10:10",{"$f":"IF(L58=\"\",0,COUNTIF(PlayersAndHoursCol1,L58&TEXT($A58,\"hh:mm\"))+COUNTIF(PlayersAndHoursCol2,L58&TEXT($A58,\"hh:mm\")))","v":1},{"$f":"IF(P58=\"\",0,COUNTIF(PlayersAndHoursCol1,P58&TEXT($A58,\"hh:mm\"))+COUNTIF(PlayersAndHoursCol2,P58&TEXT($A58,\"hh:mm\")))","v":1},{"$f":"IF(AA58=\"\",FALSE,NOT(AND(ISNA(MATCH(AA58&TEXT($A58,\"hh:mm\"),PlayersAndHoursCol1,0)),ISNA(MATCH(AA58&TEXT($A58,\"hh:mm\"),PlayersAndHoursCol2,0)),COUNTIF(AD:AD,AA58&$A58)<=1)))","v":false},null,null,null,null,null,null,null,{"$f":"IF(OR(M58>O58,R58>T58),L58,IF(OR(M58<O58,R58<T58),P58,\"\"))","v":"Robert Lenz (roy)"},{"$f":"IF(AND(M58<>\"\",M58=O58,R58=T58),L58,\"\")","v":""},{"$f":"IF(AND(M58<>\"\",M58=O58,R58=T58),P58,\"\")","v":""},{"$f":"IF(OR(M58<O58,R58<T58),L58,IF(OR(M58>O58,R58>T58),P58,\"\"))","v":"Athanasios Kordantonopoulos (rol)"},{"$f":"IF(OR($AB58=\"\",$AB58=\"V\"),\"\",IF(MOD($AB58,10)=1,\"XXX\",\"\"))","v":""},{"$f":"IF(OR($AB58=\"\",$AB58=\"V\"),\"\",IF(MOD($AB58,100)>=10,\"XXX\",\"\"))","v":""},{"$f":"IF(OR($AB58=\"\",$AB58=\"V\"),\"\",IF(MOD($AB58,1000)>=100,\"XXX\",\"\"))","v":""},{"$f":"IF(OR($AB58=\"\",$AB58=\"V\"),\"\",IF(MOD($AB58,10000)>=1000,\"XXX\",\"\"))","v":""},{"$f":"IF(OR($AB58=\"\",$AB58=\"V\"),\"\",IF(MOD($AB58,100000)>=10000,\"XXX\",\"\"))","v":""}]
[{"$f":"A58","v":"10:10:00"},null,{"$f":"C58","v":"Team - Group 2 - Rd 4"},null,null,null,{"$f":"G56&3","v":"TG3"},null,null,null,null,"Apollon Dimakeas (rol)",0,"-",1,"Karl Vranovitz (roy)",null,null,null,null,null,"Apollon Dimakeas (rol)10:10","Karl Vranovitz (roy)10:10",{"$f":"IF(L59=\"\",0,COUNTIF(PlayersAndHoursCol1,L59&TEXT($A59,\"hh:mm\"))+COUNTIF(PlayersAndHoursCol2,L59&TEXT($A59,\"hh:mm\")))","v":1},{"$f":"IF(P59=\"\",0,COUNTIF(PlayersAndHoursCol1,P59&TEXT($A59,\"hh:mm\"))+COUNTIF(PlayersAndHoursCol2,P59&TEXT($A59,\"hh:mm\")))","v":1},{"$f":"IF(AA59=\"\",FALSE,NOT(AND(ISNA(MATCH(AA59&TEXT($A59,\"hh:mm\"),PlayersAndHoursCol1,0)),ISNA(MATCH(AA59&TEXT($A59,\"hh:mm\"),PlayersAndHoursCol2,0)),COUNTIF(AD:AD,AA59&$A59)<=1)))","v":false},null,null,null,null,null,null,null,{"$f":"IF(OR(M59>O59,R59>T59),L59,IF(OR(M59<O59,R59<T59),P59,\"\"))","v":"Karl Vranovitz (roy)"},{"$f":"IF(AND(M59<>\"\",M59=O59,R59=T59),L59,\"\")","v":""},{"$f":"IF(AND(M59<>\"\",M59=O59,R59=T59),P59,\"\")","v":""},{"$f":"IF(OR(M59<O59,R59<T59),L59,IF(OR(M59>O59,R59>T59),P59,\"\"))","v":"Apollon Dimakeas (rol)"},{"$f":"IF(OR($AB59=\"\",$AB59=\"V\"),\"\",IF(MOD($AB59,10)=1,\"XXX\",\"\"))","v":""},{"$f":"IF(OR($AB59=\"\",$AB59=\"V\"),\"\",IF(MOD($AB59,100)>=10,\"XXX\",\"\"))","v":""},{"$f":"IF(OR($AB59=\"\",$AB59=\"V\"),\"\",IF(MOD($AB59,1000)>=100,\"XXX\",\"\"))","v":""},{"$f":"IF(OR($AB59=\"\",$AB59=\"V\"),\"\",IF(MOD($AB59,10000)>=1000,\"XXX\",\"\"))","v":""},{"$f":"IF(OR($AB59=\"\",$AB59=\"V\"),\"\",IF(MOD($AB59,100000)>=10000,\"XXX\",\"\"))","v":""}]
[{"$f":"A59","v":"10:10:00"},null,{"$f":"C59","v":"Team - Group 2 - Rd 4"},null,null,null,{"$f":"G56&4","v":"TG4"},null,null,null,null,"Georgios Dimakeas (rol)",3,"-",5,"Heinz Eder (roy)",null,null,null,null,null,"Georgios Dimakeas (rol)10:10","Heinz Eder (roy)10:10",{"$f":"IF(L60=\"\",0,COUNTIF(PlayersAndHoursCol1,L60&TEXT($A60,\"hh:mm\"))+COUNTIF(PlayersAndHoursCol2,L60&TEXT($A60,\"hh:mm\")))","v":1},{"$f":"IF(P60=\"\",0,COUNTIF(PlayersAndHoursCol1,P60&TEXT($A60,\"hh:mm\"))+COUNTIF(PlayersAndHoursCol2,P60&TEXT($A60,\"hh:mm\")))","v":1},{"$f":"IF(AA60=\"\",FALSE,NOT(AND(ISNA(MATCH(AA60&TEXT($A60,\"hh:mm\"),PlayersAndHoursCol1,0)),ISNA(MATCH(AA60&TEXT($A60,\"hh:mm\"),PlayersAndHoursCol2,0)),COUNTIF(AD:AD,AA60&$A60)<=1)))","v":false},null,null,null,null,null,null,null,{"$f":"IF(OR(M60>O60,R60>T60),L60,IF(OR(M60<O60,R60<T60),P60,\"\"))","v":"Heinz Eder (roy)"},{"$f":"IF(AND(M60<>\"\",M60=O60,R60=T60),L60,\"\")","v":""},{"$f":"IF(AND(M60<>\"\",M60=O60,R60=T60),P60,\"\")","v":""},{"$f":"IF(OR(M60<O60,R60<T60),L60,IF(OR(M60>O60,R60>T60),P60,\"\"))","v":"Georgios Dimakeas (rol)"},{"$f":"IF(OR($AB60=\"\",$AB60=\"V\"),\"\",IF(MOD($AB60,10)=1,\"XXX\",\"\"))","v":""},{"$f":"IF(OR($AB60=\"\",$AB60=\"V\"),\"\",IF(MOD($AB60,100)>=10,\"XXX\",\"\"))","v":""},{"$f":"IF(OR($AB60=\"\",$AB60=\"V\"),\"\",IF(MOD($AB60,1000)>=100,\"XXX\",\"\"))","v":""},{"$f":"IF(OR($AB60=\"\",$AB60=\"V\"),\"\",IF(MOD($AB60,10000)>=1000,\"XXX\",\"\"))","v":""},{"$f":"IF(OR($AB60=\"\",$AB60=\"V\"),\"\",IF(MOD($AB60,100000)>=10000,\"XXX\",\"\"))","v":""}]
[{"$f":"A60","v":"10:10:00"},null,null,null,{"$f":"N_Substitute","v":"Substitute"},null,{"$f":"G56&\"SB1\"","v":"TGSB1"},null,null,null,null,null,null,null,null,"David Scherbantin (roy)",null,null,null,null,null,"10:10","David Scherbantin (roy)10:10",{"$f":"IF(L61=\"\",0,COUNTIF(PlayersAndHoursCol1,L61&TEXT($A61,\"hh:mm\"))+COUNTIF(PlayersAndHoursCol2,L61&TEXT($A61,\"hh:mm\")))","v":0},{"$f":"IF(P61=\"\",0,COUNTIF(PlayersAndHoursCol1,P61&TEXT($A61,\"hh:mm\"))+COUNTIF(PlayersAndHoursCol2,P61&TEXT($A61,\"hh:mm\")))","v":1}]
[{"$f":"A56","v":"10:10:00"},null,null,null,{"$f":"N_Substitute","v":"Substitute"},null,{"$f":"G56&\"SB2\"","v":"TGSB2"},null,null,null,null,null,null,null,null,null,null,null,null,null,null,"10:10","10:10",{"$f":"IF(L62=\"\",0,COUNTIF(PlayersAndHoursCol1,L62&TEXT($A62,\"hh:mm\"))+COUNTIF(PlayersAndHoursCol2,L62&TEXT($A62,\"hh:mm\")))","v":0},{"$f":"IF(P62=\"\",0,COUNTIF(PlayersAndHoursCol1,P62&TEXT($A62,\"hh:mm\"))+COUNTIF(PlayersAndHoursCol2,P62&TEXT($A62,\"hh:mm\")))","v":0}]
[{"$f":"OFFSET(A63,-1,0)","v":"10:10:00"},null,{"$f":"\"Team - \" & N_Group & \" 1\" & \" - \" & N_Round & \" 3\"","v":"Team - Group 1 - Rd 3"},null,null,null,"TG",{"$f":"IF(K63=\"\",\"\",SUBSTITUTE(MID(K63,1,SEARCH(\"!\",K63,1)-1),\"'\",\"\"))","v":"Team"},{"$f":"IF(K63=\"\",\"\",CELL(\"row\",INDIRECT(K63)))","v":48},{"$f":"IF(K63=\"\",\"\",CELL(\"col\",INDIRECT(K63)))","v":25},{"$f":"MID(Lire_Formule(L63),2,10000)","v":"Team!Y48"},{"$f":"Team!Y48","v":"TSC Royal 78 Kaisermühlen (roy)"},3,"-",0,{"$f":"IF(K63=\"\",\"\",IF(RIGHT(G63,1)=\"T\",INDIRECT(ADDRESS(I63+2,J63,4,TRUE,H63)),INDIRECT(ADDRESS(I63,J63+4,4,TRUE,H63))))","v":"GCT DLF Gorizia (gor)"},null,{"$f":"IF(M63=\"\",\"\",SUM(M64:M67))","v":19},null,{"$f":"IF(O63=\"\",\"\",SUM(O64:O67))","v":4},null,{"$f":"L63&TEXT(A63,\"hh:mm\")","v":"TSC Royal 78 Kaisermühlen (roy)10:10"},{"$f":"P63&TEXT(A63,\"hh:mm\")","v":"GCT DLF Gorizia (gor)10:10"},{"$f":"IF(L63=\"\",0,COUNTIF(PlayersAndHoursCol1,L63&TEXT($A63,\"hh:mm\"))+COUNTIF(PlayersAndHoursCol2,L63&TEXT($A63,\"hh:mm\")))","v":1},{"$f":"IF(P63=\"\",0,COUNTIF(PlayersAndHoursCol1,P63&TEXT($A63,\"hh:mm\"))+COUNTIF(PlayersAndHoursCol2,P63&TEXT($A63,\"hh:mm\")))","v":1},{"$f":"IF(AA63=\"\",FALSE,NOT(AND(ISNA(MATCH(AA63&TEXT($A63,\"hh:mm\"),PlayersAndHoursCol1,0)),ISNA(MATCH(AA63&TEXT($A63,\"hh:mm\"),PlayersAndHoursCol2,0)),COUNTIF(AD:AD,AA63&$A63)<=1)))","v":false},"Barbarian Mixed Team","V",null,{"$f":"AA63&A63","v":"Barbarian Mixed Team0,423611111111111"},"Team","Groups",3,{"$f":"IF(OR(M63>O63,R63>T63),L63,IF(OR(M63<O63,R63<T63),P63,\"\"))","v":"TSC Royal 78 Kaisermühlen (roy)"},{"$f":"IF(AND(M63<>\"\",M63=O63,R63=T63),L63,\"\")","v":""},{"$f":"IF(AND(M63<>\"\",M63=O63,R63=T63),P63,\"\")","v":""},{"$f":"IF(OR(M63<O63,R63<T63),L63,IF(OR(M63>O63,R63>T63),P63,\"\"))","v":"GCT DLF Gorizia (gor)"},{"$f":"IF(OR($AB63=\"\",$AB63=\"V\"),\"\",IF(MOD($AB63,10)=1,\"XXX\",\"\"))","v":""},{"$f":"IF(OR($AB63=\"\",$AB63=\"V\"),\"\",IF(MOD($AB63,100)>=10,\"XXX\",\"\"))","v":""},{"$f":"IF(OR($AB63=\"\",$AB63=\"V\"),\"\",IF(MOD($AB63,1000)>=100,\"XXX\",\"\"))","v":""},{"$f":"IF(OR($AB63=\"\",$AB63=\"V\"),\"\",IF(MOD($AB63,10000)>=1000,\"XXX\",\"\"))","v":""},{"$f":"IF(OR($AB63=\"\",$AB63=\"V\"),\"\",IF(MOD($AB63,100000)>=10000,\"XXX\",\"\"))","v":""}]
[{"$f":"A63","v":"10:10:00"},null,{"$f":"C63","v":"Team - Group 1 - Rd 3"},null,null,null,{"$f":"G63&1","v":"TG1"},null,null,null,null,"Stefan Sandner (roy)",5,"-",1,"Michele Cerullo (gor)",null,null,null,null,null,"Stefan Sandner (roy)10:10","Michele Cerullo (gor)10:10",{"$f":"IF(L64=\"\",0,COUNTIF(PlayersAndHoursCol1,L64&TEXT($A64,\"hh:mm\"))+COUNTIF(PlayersAndHoursCol2,L64&TEXT($A64,\"hh:mm\")))","v":1},{"$f":"IF(P64=\"\",0,COUNTIF(PlayersAndHoursCol1,P64&TEXT($A64,\"hh:mm\"))+COUNTIF(PlayersAndHoursCol2,P64&TEXT($A64,\"hh:mm\")))","v":1},{"$f":"IF(AA64=\"\",FALSE,NOT(AND(ISNA(MATCH(AA64&TEXT($A64,\"hh:mm\"),PlayersAndHoursCol1,0)),ISNA(MATCH(AA64&TEXT($A64,\"hh:mm\"),PlayersAndHoursCol2,0)),COUNTIF(AD:AD,AA64&$A64)<=1)))","v":false},null,null,null,null,null,null,null,{"$f":"IF(OR(M64>O64,R64>T64),L64,IF(OR(M64<O64,R64<T64),P64,\"\"))","v":"Stefan Sandner (roy)"},{"$f":"IF(AND(M64<>\"\",M64=O64,R64=T64),L64,\"\")","v":""},{"$f":"IF(AND(M64<>\"\",M64=O64,R64=T64),P64,\"\")","v":""},{"$f":"IF(OR(M64<O64,R64<T64),L64,IF(OR(M64>O64,R64>T64),P64,\"\"))","v":"Michele Cerullo (gor)"},{"$f":"IF(OR($AB64=\"\",$AB64=\"V\"),\"\",IF(MOD($AB64,10)=1,\"XXX\",\"\"))","v":""},{"$f":"IF(OR($AB64=\"\",$AB64=\"V\"),\"\",IF(MOD($AB64,100)>=10,\"XXX\",\"\"))","v":""},{"$f":"IF(OR($AB64=\"\",$AB64=\"V\"),\"\",IF(MOD($AB64,1000)>=100,\"XXX\",\"\"))","v":""},{"$f":"IF(OR($AB64=\"\",$AB64=\"V\"),\"\",IF(MOD($AB64,10000)>=1000,\"XXX\",\"\"))","v":""},{"$f":"IF(OR($AB64=\"\",$AB64=\"V\"),\"\",IF(MOD($AB64,100000)>=10000,\"XXX\",\"\"))","v":""}]
[{"$f":"A64","v":"10:10:00"},null,{"$f":"C64","v":"Team - Group 1 - Rd 3"},null,null,null,{"$f":"G63&2","v":"TG2"},null,null,null,null,"Alexander Haas (roy)",7,"-",1,"Marco Pinausi (gor)",null,null,null,null,null,"Alexander Haas (roy)10:10","Marco Pinausi (gor)10:10",{"$f":"IF(L65=\"\",0,COUNTIF(PlayersAndHoursCol1,L65&TEXT($A65,\"hh:mm\"))+COUNTIF(PlayersAndHoursCol2,L65&TEXT($A65,\"hh:mm\")))","v":1},{"$f":"IF(P65=\"\",0,COUNTIF(PlayersAndHoursCol1,P65&TEXT($A65,\"hh:mm\"))+COUNTIF(PlayersAndHoursCol2,P65&TEXT($A65,\"hh:mm\")))","v":1},{"$f":"IF(AA65=\"\",FALSE,NOT(AND(ISNA(MATCH(AA65&TEXT($A65,\"hh:mm\"),PlayersAndHoursCol1,0)),ISNA(MATCH(AA65&TEXT($A65,\"hh:mm\"),PlayersAndHoursCol2,0)),COUNTIF(AD:AD,AA65&$A65)<=1)))","v":false},null,null,null,null,null,null,null,{"$f":"IF(OR(M65>O65,R65>T65),L65,IF(OR(M65<O65,R65<T65),P65,\"\"))","v":"Alexander Haas (roy)"},{"$f":"IF(AND(M65<>\"\",M65=O65,R65=T65),L65,\"\")","v":""},{"$f":"IF(AND(M65<>\"\",M65=O65,R65=T65),P65,\"\")","v":""},{"$f":"IF(OR(M65<O65,R65<T65),L65,IF(OR(M65>O65,R65>T65),P65,\"\"))","v":"Marco Pinausi (gor)"},{"$f":"IF(OR($AB65=\"\",$AB65=\"V\"),\"\",IF(MOD($AB65,10)=1,\"XXX\",\"\"))","v":""},{"$f":"IF(OR($AB65=\"\",$AB65=\"V\"),\"\",IF(MOD($AB65,100)>=10,\"XXX\",\"\"))","v":""},{"$f":"IF(OR($AB65=\"\",$AB65=\"V\"),\"\",IF(MOD($AB65,1000)>=100,\"XXX\",\"\"))","v":""},{"$f":"IF(OR($AB65=\"\",$AB65=\"V\"),\"\",IF(MOD($AB65,10000)>=1000,\"XXX\",\"\"))","v":""},{"$f":"IF(OR($AB65=\"\",$AB65=\"V\"),\"\",IF(MOD($AB65,100000)>=10000,\"XXX\",\"\"))","v":""}]
[{"$f":"A65","v":"10:10:00"},null,{"$f":"C65","v":"Team - Group 1 - Rd 3"},null,null,null,{"$f":"G63&3","v":"TG3"},null,null,null,null,"Daniel Vranovitz (roy)",2,"-",2,"Michael Stolzenberg ()",null,null,null,null,null,"Daniel Vranovitz (roy)10:10","Michael Stolzenberg ()10:10",{"$f":"IF(L66=\"\",0,COUNTIF(PlayersAndHoursCol1,L66&TEXT($A66,\"hh:mm\"))+COUNTIF(PlayersAndHoursCol2,L66&TEXT($A66,\"hh:mm\")))","v":1},{"$f":"IF(P66=\"\",0,COUNTIF(PlayersAndHoursCol1,P66&TEXT($A66,\"hh:mm\"))+COUNTIF(PlayersAndHoursCol2,P66&TEXT($A66,\"hh:mm\")))","v":1},{"$f":"IF(AA66=\"\",FALSE,NOT(AND(ISNA(MATCH(AA66&TEXT($A66,\"hh:mm\"),PlayersAndHoursCol1,0)),ISNA(MATCH(AA66&TEXT($A66,\"hh:mm\"),PlayersAndHoursCol2,0)),COUNTIF(AD:AD,AA66&$A66)<=1)))","v":false},null,null,null,null,null,null,null,{"$f":"IF(OR(M66>O66,R66>T66),L66,IF(OR(M66<O66,R66<T66),P66,\"\"))","v":""},{"$f":"IF(AND(M66<>\"\",M66=O66,R66=T66),L66,\"\")","v":"Daniel Vranovitz (roy)"},{"$f":"IF(AND(M66<>\"\",M66=O66,R66=T66),P66,\"\")","v":"Michael Stolzenberg ()"},{"$f":"IF(OR(M66<O66,R66<T66),L66,IF(OR(M66>O66,R66>T66),P66,\"\"))","v":""},{"$f":"IF(OR($AB66=\"\",$AB66=\"V\"),\"\",IF(MOD($AB66,10)=1,\"XXX\",\"\"))","v":""},{"$f":"IF(OR($AB66=\"\",$AB66=\"V\"),\"\",IF(MOD($AB66,100)>=10,\"XXX\",\"\"))","v":""},{"$f":"IF(OR($AB66=\"\",$AB66=\"V\"),\"\",IF(MOD($AB66,1000)>=100,\"XXX\",\"\"))","v":""},{"$f":"IF(OR($AB66=\"\",$AB66=\"V\"),\"\",IF(MOD($AB66,10000)>=1000,\"XXX\",\"\"))","v":""},{"$f":"IF(OR($AB66=\"\",$AB66=\"V\"),\"\",IF(MOD($AB66,100000)>=10000,\"XXX\",\"\"))","v":""}]
[{"$f":"A66","v":"10:10:00"},null,{"$f":"C66","v":"Team - Group 1 - Rd 3"},null,null,null,{"$f":"G63&4","v":"TG4"},null,null,null,null,"Wolfgang Leitner (roy)",5,"-",0,"To be defined",null,null,null,null,null,"Wolfgang Leitner (roy)10:10","To be defined10:10",{"$f":"IF(L67=\"\",0,COUNTIF(PlayersAndHoursCol1,L67&TEXT($A67,\"hh:mm\"))+COUNTIF(PlayersAndHoursCol2,L67&TEXT($A67,\"hh:mm\")))","v":1},{"$f":"IF(P67=\"\",0,COUNTIF(PlayersAndHoursCol1,P67&TEXT($A67,\"hh:mm\"))+COUNTIF(PlayersAndHoursCol2,P67&TEXT($A67,\"hh:mm\")))","v":1},{"$f":"IF(AA67=\"\",FALSE,NOT(AND(ISNA(MATCH(AA67&TEXT($A67,\"hh:mm\"),PlayersAndHoursCol1,0)),ISNA(MATCH(AA67&TEXT($A67,\"hh:mm\"),PlayersAndHoursCol2,0)),COUNTIF(AD:AD,AA67&$A67)<=1)))","v":false},null,null,null,null,null,null,null,{"$f":"IF(OR(M67>O67,R67>T67),L67,IF(OR(M67<O67,R67<T67),P67,\"\"))","v":"Wolfgang Leitner (roy)"},{"$f":"IF(AND(M67<>\"\",M67=O67,R67=T67),L67,\"\")","v":""},{"$f":"IF(AND(M67<>\"\",M67=O67,R67=T67),P67,\"\")","v":""},{"$f":"IF(OR(M67<O67,R67<T67),L67,IF(OR(M67>O67,R67>T67),P67,\"\"))","v":"To be defined"},{"$f":"IF(OR($AB67=\"\",$AB67=\"V\"),\"\",IF(MOD($AB67,10)=1,\"XXX\",\"\"))","v":""},{"$f":"IF(OR($AB67=\"\",$AB67=\"V\"),\"\",IF(MOD($AB67,100)>=10,\"XXX\",\"\"))","v":""},{"$f":"IF(OR($AB67=\"\",$AB67=\"V\"),\"\",IF(MOD($AB67,1000)>=100,\"XXX\",\"\"))","v":""},{"$f":"IF(OR($AB67=\"\",$AB67=\"V\"),\"\",IF(MOD($AB67,10000)>=1000,\"XXX\",\"\"))","v":""},{"$f":"IF(OR($AB67=\"\",$AB67=\"V\"),\"\",IF(MOD($AB67,100000)>=10000,\"XXX\",\"\"))","v":""}]
[{"$f":"A67","v":"10:10:00"},null,null,null,{"$f":"N_Substitute","v":"Substitute"},null,{"$f":"G63&\"SB1\"","v":"TGSB1"},null,null,null,null,null,null,null,null,null,null,null,null,null,null,"10:10","10:10",{"$f":"IF(L68=\"\",0,COUNTIF(PlayersAndHoursCol1,L68&TEXT($A68,\"hh:mm\"))+COUNTIF(PlayersAndHoursCol2,L68&TEXT($A68,\"hh:mm\")))","v":0},{"$f":"IF(P68=\"\",0,COUNTIF(PlayersAndHoursCol1,P68&TEXT($A68,\"hh:mm\"))+COUNTIF(PlayersAndHoursCol2,P68&TEXT($A68,\"hh:mm\")))","v":0}]
[{"$f":"A63","v":"10:10:00"},null,null,null,{"$f":"N_Substitute","v":"Substitute"},null,{"$f":"G63&\"SB2\"","v":"TGSB2"},null,null,null,null,null,null,null,null,null,null,null,null,null,null,"10:10","10:10",{"$f":"IF(L69=\"\",0,COUNTIF(PlayersAndHoursCol1,L69&TEXT($A69,\"hh:mm\"))+COUNTIF(PlayersAndHoursCol2,L69&TEXT($A69,\"hh:mm\")))","v":0},{"$f":"IF(P69=\"\",0,COUNTIF(PlayersAndHoursCol1,P69&TEXT($A69,\"hh:mm\"))+COUNTIF(PlayersAndHoursCol2,P69&TEXT($A69,\"hh:mm\")))","v":0}]
[{"$f":"A48+P48","v":"11:00:00"},null,{"$f":"N_Session","v":"Session Nbr "},null,{"$f":"E48+ 1","v":4},null,{"$f":"\"S\" & RIGHT(G48, LEN(G48)-1) + 1","v":"S4"},null,null,null,null,{"$f":"N_Duration","v":"Duration"},null,":",null,"00:40:00"]
[{"$f":"OFFSET(A71,-1,0)","v":"11:00:00"},null,{"$f":"\"Team - \" & N_Group & \" 2\" & \" - \" & N_Round & \" 2\"","v":"Team - Group 2 - Rd 2"},null,null,null,"TG",{"$f":"IF(K71=\"\",\"\",SUBSTITUTE(MID(K71,1,SEARCH(\"!\",K71,1)-1),\"'\",\"\"))","v":"Team"},{"$f":"IF(K71=\"\",\"\",CELL(\"row\",INDIRECT(K71)))","v":107},{"$f":"IF(K71=\"\",\"\",CELL(\"col\",INDIRECT(K71)))","v":25},{"$f":"MID(Lire_Formule(L71),2,10000)","v":"Team!Y107"},{"$f":"Team!Y107","v":"Barbarian Mixed Team"},2,"-",1,{"$f":"IF(K71=\"\",\"\",IF(RIGHT(G71,1)=\"T\",INDIRECT(ADDRESS(I71+2,J71,4,TRUE,H71)),INDIRECT(ADDRESS(I71,J71+4,4,TRUE,H71))))","v":"Roligans Ilioupolis TSC (rol)"},null,{"$f":"IF(M71=\"\",\"\",SUM(M72:M75))","v":10},null,{"$f":"IF(O71=\"\",\"\",SUM(O72:O75))","v":4},null,{"$f":"L71&TEXT(A71,\"hh:mm\")","v":"Barbarian Mixed Team11:00"},{"$f":"P71&TEXT(A71,\"hh:mm\")","v":"Roligans Ilioupolis TSC (rol)11:00"},{"$f":"IF(L71=\"\",0,COUNTIF(PlayersAndHoursCol1,L71&TEXT($A71,\"hh:mm\"))+COUNTIF(PlayersAndHoursCol2,L71&TEXT($A71,\"hh:mm\")))","v":1},{"$f":"IF(P71=\"\",0,COUNTIF(PlayersAndHoursCol1,P71&TEXT($A71,\"hh:mm\"))+COUNTIF(PlayersAndHoursCol2,P71&TEXT($A71,\"hh:mm\")))","v":1},{"$f":"IF(AA71=\"\",FALSE,NOT(AND(ISNA(MATCH(AA71&TEXT($A71,\"hh:mm\"),PlayersAndHoursCol1,0)),ISNA(MATCH(AA71&TEXT($A71,\"hh:mm\"),PlayersAndHoursCol2,0)),COUNTIF(AD:AD,AA71&$A71)<=1)))","v":false},"GCT DLF Gorizia (gor)","V",null,{"$f":"AA71&A71","v":"GCT DLF Gorizia (gor)0,458333333333333"},"Team","Groups",2,{"$f":"IF(OR(M71>O71,R71>T71),L71,IF(OR(M71<O71,R71<T71),P71,\"\"))","v":"Barbarian Mixed Team"},{"$f":"IF(AND(M71<>\"\",M71=O71,R71=T71),L71,\"\")","v":""},{"$f":"IF(AND(M71<>\"\",M71=O71,R71=T71),P71,\"\")","v":""},{"$f":"IF(OR(M71<O71,R71<T71),L71,IF(OR(M71>O71,R71>T71),P71,\"\"))","v":"Roligans Ilioupolis TSC (rol)"},{"$f":"IF(OR($AB71=\"\",$AB71=\"V\"),\"\",IF(MOD($AB71,10)=1,\"XXX\",\"\"))","v":""},{"$f":"IF(OR($AB71=\"\",$AB71=\"V\"),\"\",IF(MOD($AB71,100)>=10,\"XXX\",\"\"))","v":""},{"$f":"IF(OR($AB71=\"\",$AB71=\"V\"),\"\",IF(MOD($AB71,1000)>=100,\"XXX\",\"\"))","v":""},{"$f":"IF(OR($AB71=\"\",$AB71=\"V\"),\"\",IF(MOD($AB71,10000)>=1000,\"XXX\",\"\"))","v":""},{"$f":"IF(OR($AB71=\"\",$AB71=\"V\"),\"\",IF(MOD($AB71,100000)>=10000,\"XXX\",\"\"))","v":""}]
[{"$f":"A71","v":"11:00:00"},null,{"$f":"C71","v":"Team - Group 2 - Rd 2"},null,null,null,{"$f":"G71&1","v":"TG1"},null,null,null,null,"Robert Green (nfc)",0,"-",0,"Georgios Dimakeas (rol)",null,null,null,null,null,"Robert Green (nfc)11:00","Georgios Dimakeas (rol)11:00",{"$f":"IF(L72=\"\",0,COUNTIF(PlayersAndHoursCol1,L72&TEXT($A72,\"hh:mm\"))+COUNTIF(PlayersAndHoursCol2,L72&TEXT($A72,\"hh:mm\")))","v":1},{"$f":"IF(P72=\"\",0,COUNTIF(PlayersAndHoursCol1,P72&TEXT($A72,\"hh:mm\"))+COUNTIF(PlayersAndHoursCol2,P72&TEXT($A72,\"hh:mm\")))","v":1},{"$f":"IF(AA72=\"\",FALSE,NOT(AND(ISNA(MATCH(AA72&TEXT($A72,\"hh:mm\"),PlayersAndHoursCol1,0)),ISNA(MATCH(AA72&TEXT($A72,\"hh:mm\"),PlayersAndHoursCol2,0)),COUNTIF(AD:AD,AA72&$A72)<=1)))","v":false},null,null,null,null,null,null,null,{"$f":"IF(OR(M72>O72,R72>T72),L72,IF(OR(M72<O72,R72<T72),P72,\"\"))","v":""},{"$f":"IF(AND(M72<>\"\",M72=O72,R72=T72),L72,\"\")","v":"Robert Green (nfc)"},{"$f":"IF(AND(M72<>\"\",M72=O72,R72=T72),P72,\"\")","v":"Georgios Dimakeas (rol)"},{"$f":"IF(OR(M72<O72,R72<T72),L72,IF(OR(M72>O72,R72>T72),P72,\"\"))","v":""},{"$f":"IF(OR($AB72=\"\",$AB72=\"V\"),\"\",IF(MOD($AB72,10)=1,\"XXX\",\"\"))","v":""},{"$f":"IF(OR($AB72=\"\",$AB72=\"V\"),\"\",IF(MOD($AB72,100)>=10,\"XXX\",\"\"))","v":""},{"$f":"IF(OR($AB72=\"\",$AB72=\"V\"),\"\",IF(MOD($AB72,1000)>=100,\"XXX\",\"\"))","v":""},{"$f":"IF(OR($AB72=\"\",$AB72=\"V\"),\"\",IF(MOD($AB72,10000)>=1000,\"XXX\",\"\"))","v":""},{"$f":"IF(OR($AB72=\"\",$AB72=\"V\"),\"\",IF(MOD($AB72,100000)>=10000,\"XXX\",\"\"))","v":""}]
[{"$f":"A72","v":"11:00:00"},null,{"$f":"C72","v":"Team - Group 2 - Rd 2"},null,null,null,{"$f":"G71&2","v":"TG2"},null,null,null,null,"Daniela Grünberg (sch)",3,"-",0,"Apollon Dimakeas (rol)",null,null,null,null,null,"Daniela Grünberg (sch)11:00","Apollon Dimakeas (rol)11:00",{"$f":"IF(L73=\"\",0,COUNTIF(PlayersAndHoursCol1,L73&TEXT($A73,\"hh:mm\"))+COUNTIF(PlayersAndHoursCol2,L73&TEXT($A73,\"hh:mm\")))","v":1},{"$f":"IF(P73=\"\",0,COUNTIF(PlayersAndHoursCol1,P73&TEXT($A73,\"hh:mm\"))+COUNTIF(PlayersAndHoursCol2,P73&TEXT($A73,\"hh:mm\")))","v":1},{"$f":"IF(AA73=\"\",FALSE,NOT(AND(ISNA(MATCH(AA73&TEXT($A73,\"hh:mm\"),PlayersAndHoursCol1,0)),ISNA(MATCH(AA73&TEXT($A73,\"hh:mm\"),PlayersAndHoursCol2,0)),COUNTIF(AD:AD,AA73&$A73)<=1)))","v":false},null,null,null,null,null,null,null,{"$f":"IF(OR(M73>O73,R73>T73),L73,IF(OR(M73<O73,R73<T73),P73,\"\"))","v":"Daniela Grünberg (sch)"},{"$f":"IF(AND(M73<>\"\",M73=O73,R73=T73),L73,\"\")","v":""},{"$f":"IF(AND(M73<>\"\",M73=O73,R73=T73),P73,\"\")","v":""},{"$f":"IF(OR(M73<O73,R73<T73),L73,IF(OR(M73>O73,R73>T73),P73,\"\"))","v":"Apollon Dimakeas (rol)"},{"$f":"IF(OR($AB73=\"\",$AB73=\"V\"),\"\",IF(MOD($AB73,10)=1,\"XXX\",\"\"))","v":""},{"$f":"IF(OR($AB73=\"\",$AB73=\"V\"),\"\",IF(MOD($AB73,100)>=10,\"XXX\",\"\"))","v":""},{"$f":"IF(OR($AB73=\"\",$AB73=\"V\"),\"\",IF(MOD($AB73,1000)>=100,\"XXX\",\"\"))","v":""},{"$f":"IF(OR($AB73=\"\",$AB73=\"V\"),\"\",IF(MOD($AB73,10000)>=1000,\"XXX\",\"\"))","v":""},{"$f":"IF(OR($AB73=\"\",$AB73=\"V\"),\"\",IF(MOD($AB73,100000)>=10000,\"XXX\",\"\"))","v":""}]
[{"$f":"A73","v":"11:00:00"},null,{"$f":"C73","v":"Team - Group 2 - Rd 2"},null,null,null,{"$f":"G71&3","v":"TG3"},null,null,null,null,"Marcel Schulz (sch)",2,"-",4,"Athanasios Kordantonopoulos (rol)",null,null,null,null,null,"Marcel Schulz (sch)11:00","Athanasios Kordantonopoulos (rol)11:00",{"$f":"IF(L74=\"\",0,COUNTIF(PlayersAndHoursCol1,L74&TEXT($A74,\"hh:mm\"))+COUNTIF(PlayersAndHoursCol2,L74&TEXT($A74,\"hh:mm\")))","v":1},{"$f":"IF(P74=\"\",0,COUNTIF(PlayersAndHoursCol1,P74&TEXT($A74,\"hh:mm\"))+COUNTIF(PlayersAndHoursCol2,P74&TEXT($A74,\"hh:mm\")))","v":1},{"$f":"IF(AA74=\"\",FALSE,NOT(AND(ISNA(MATCH(AA74&TEXT($A74,\"hh:mm\"),PlayersAndHoursCol1,0)),ISNA(MATCH(AA74&TEXT($A74,\"hh:mm\"),PlayersAndHoursCol2,0)),COUNTIF(AD:AD,AA74&$A74)<=1)))","v":false},null,null,null,null,null,null,null,{"$f":"IF(OR(M74>O74,R74>T74),L74,IF(OR(M74<O74,R74<T74),P74,\"\"))","v":"Athanasios Kordantonopoulos (rol)"},{"$f":"IF(AND(M74<>\"\",M74=O74,R74=T74),L74,\"\")","v":""},{"$f":"IF(AND(M74<>\"\",M74=O74,R74=T74),P74,\"\")","v":""},{"$f":"IF(OR(M74<O74,R74<T74),L74,IF(OR(M74>O74,R74>T74),P74,\"\"))","v":"Marcel Schulz (sch)"},{"$f":"IF(OR($AB74=\"\",$AB74=\"V\"),\"\",IF(MOD($AB74,10)=1,\"XXX\",\"\"))","v":""},{"$f":"IF(OR($AB74=\"\",$AB74=\"V\"),\"\",IF(MOD($AB74,100)>=10,\"XXX\",\"\"))","v":""},{"$f":"IF(OR($AB74=\"\",$AB74=\"V\"),\"\",IF(MOD($AB74,1000)>=100,\"XXX\",\"\"))","v":""},{"$f":"IF(OR($AB74=\"\",$AB74=\"V\"),\"\",IF(MOD($AB74,10000)>=1000,\"XXX\",\"\"))","v":""},{"$f":"IF(OR($AB74=\"\",$AB74=\"V\"),\"\",IF(MOD($AB74,100000)>=10000,\"XXX\",\"\"))","v":""}]
[{"$f":"A74","v":"11:00:00"},null,{"$f":"C74","v":"Team - Group 2 - Rd 2"},null,null,null,{"$f":"G71&4","v":"TG4"},null,null,null,null,"Fabio Domenico ()",5,"-",0,"Phillipos Kordantonopoulos (rol)",null,null,null,null,null,"Fabio Domenico ()11:00","Phillipos Kordantonopoulos (rol)11:00",{"$f":"IF(L75=\"\",0,COUNTIF(PlayersAndHoursCol1,L75&TEXT($A75,\"hh:mm\"))+COUNTIF(PlayersAndHoursCol2,L75&TEXT($A75,\"hh:mm\")))","v":1},{"$f":"IF(P75=\"\",0,COUNTIF(PlayersAndHoursCol1,P75&TEXT($A75,\"hh:mm\"))+COUNTIF(PlayersAndHoursCol2,P75&TEXT($A75,\"hh:mm\")))","v":1},{"$f":"IF(AA75=\"\",FALSE,NOT(AND(ISNA(MATCH(AA75&TEXT($A75,\"hh:mm\"),PlayersAndHoursCol1,0)),ISNA(MATCH(AA75&TEXT($A75,\"hh:mm\"),PlayersAndHoursCol2,0)),COUNTIF(AD:AD,AA75&$A75)<=1)))","v":false},null,null,null,null,null,null,null,{"$f":"IF(OR(M75>O75,R75>T75),L75,IF(OR(M75<O75,R75<T75),P75,\"\"))","v":"Fabio Domenico ()"},{"$f":"IF(AND(M75<>\"\",M75=O75,R75=T75),L75,\"\")","v":""},{"$f":"IF(AND(M75<>\"\",M75=O75,R75=T75),P75,\"\")","v":""},{"$f":"IF(OR(M75<O75,R75<T75),L75,IF(OR(M75>O75,R75>T75),P75,\"\"))","v":"Phillipos Kordantonopoulos (rol)"},{"$f":"IF(OR($AB75=\"\",$AB75=\"V\"),\"\",IF(MOD($AB75,10)=1,\"XXX\",\"\"))","v":""},{"$f":"IF(OR($AB75=\"\",$AB75=\"V\"),\"\",IF(MOD($AB75,100)>=10,\"XXX\",\"\"))","v":""},{"$f":"IF(OR($AB75=\"\",$AB75=\"V\"),\"\",IF(MOD($AB75,1000)>=100,\"XXX\",\"\"))","v":""},{"$f":"IF(OR($AB75=\"\",$AB75=\"V\"),\"\",IF(MOD($AB75,10000)>=1000,\"XXX\",\"\"))","v":""},{"$f":"IF(OR($AB75=\"\",$AB75=\"V\"),\"\",IF(MOD($AB75,100000)>=10000,\"XXX\",\"\"))","v":""}]
[{"$f":"A75","v":"11:00:00"},null,null,null,{"$f":"N_Substitute","v":"Substitute"},null,{"$f":"G71&\"SB1\"","v":"TGSB1"},null,null,null,null,null,null,null,null,null,null,null,null,null,null,"11:00","11:00",{"$f":"IF(L76=\"\",0,COUNTIF(PlayersAndHoursCol1,L76&TEXT($A76,\"hh:mm\"))+COUNTIF(PlayersAndHoursCol2,L76&TEXT($A76,\"hh:mm\")))","v":0},{"$f":"IF(P76=\"\",0,COUNTIF(PlayersAndHoursCol1,P76&TEXT($A76,\"hh:mm\"))+COUNTIF(PlayersAndHoursCol2,P76&TEXT($A76,\"hh:mm\")))","v":0}]
[{"$f":"A71","v":"11:00:00"},null,null,null,{"$f":"N_Substitute","v":"Substitute"},null,{"$f":"G71&\"SB2\"","v":"TGSB2"},null,null,null,null,null,null,null,null,null,null,null,null,null,null,"11:00","11:00",{"$f":"IF(L77=\"\",0,COUNTIF(PlayersAndHoursCol1,L77&TEXT($A77,\"hh:mm\"))+COUNTIF(PlayersAndHoursCol2,L77&TEXT($A77,\"hh:mm\")))","v":0},{"$f":"IF(P77=\"\",0,COUNTIF(PlayersAndHoursCol1,P77&TEXT($A77,\"hh:mm\"))+COUNTIF(PlayersAndHoursCol2,P77&TEXT($A77,\"hh:mm\")))","v":0}]
[{"$f":"OFFSET(A78,-1,0)","v":"11:00:00"},null,{"$f":"\"Team - \" & N_Group & \" 1\" & \" - \" & N_Round & \" 4\"","v":"Team - Group 1 - Rd 4"},null,null,null,"TG",{"$f":"IF(K78=\"\",\"\",SUBSTITUTE(MID(K78,1,SEARCH(\"!\",K78,1)-1),\"'\",\"\"))","v":"Team"},{"$f":"IF(K78=\"\",\"\",CELL(\"row\",INDIRECT(K78)))","v":55},{"$f":"IF(K78=\"\",\"\",CELL(\"col\",INDIRECT(K78)))","v":25},{"$f":"MID(Lire_Formule(L78),2,10000)","v":"Team!Y55"},{"$f":"Team!Y55","v":"Bormla SC (bor)"},1,"-",1,{"$f":"IF(K78=\"\",\"\",IF(RIGHT(G78,1)=\"T\",INDIRECT(ADDRESS(I78+2,J78,4,TRUE,H78)),INDIRECT(ADDRESS(I78,J78+4,4,TRUE,H78))))","v":"TSC Phoenix (wie)"},null,{"$f":"IF(M78=\"\",\"\",SUM(M79:M82))","v":8},null,{"$f":"IF(O78=\"\",\"\",SUM(O79:O82))","v":7},null,{"$f":"L78&TEXT(A78,\"hh:mm\")","v":"Bormla SC (bor)11:00"},{"$f":"P78&TEXT(A78,\"hh:mm\")","v":"TSC Phoenix (wie)11:00"},{"$f":"IF(L78=\"\",0,COUNTIF(PlayersAndHoursCol1,L78&TEXT($A78,\"hh:mm\"))+COUNTIF(PlayersAndHoursCol2,L78&TEXT($A78,\"hh:mm\")))","v":1},{"$f":"IF(P78=\"\",0,COUNTIF(PlayersAndHoursCol1,P78&TEXT($A78,\"hh:mm\"))+COUNTIF(PlayersAndHoursCol2,P78&TEXT($A78,\"hh:mm\")))","v":1},{"$f":"IF(AA78=\"\",FALSE,NOT(AND(ISNA(MATCH(AA78&TEXT($A78,\"hh:mm\"),PlayersAndHoursCol1,0)),ISNA(MATCH(AA78&TEXT($A78,\"hh:mm\"),PlayersAndHoursCol2,0)),COUNTIF(AD:AD,AA78&$A78)<=1)))","v":false},"TSC Royal 78 Kaisermühlen 2 (roy)","V",null,{"$f":"AA78&A78","v":"TSC Royal 78 Kaisermühlen 2 (roy)0,458333333333333"},"Team","Groups",4,{"$f":"IF(OR(M78>O78,R78>T78),L78,IF(OR(M78<O78,R78<T78),P78,\"\"))","v":"Bormla SC (bor)"},{"$f":"IF(AND(M78<>\"\",M78=O78,R78=T78),L78,\"\")","v":""},{"$f":"IF(AND(M78<>\"\",M78=O78,R78=T78),P78,\"\")","v":""},{"$f":"IF(OR(M78<O78,R78<T78),L78,IF(OR(M78>O78,R78>T78),P78,\"\"))","v":"TSC Phoenix (wie)"},{"$f":"IF(OR($AB78=\"\",$AB78=\"V\"),\"\",IF(MOD($AB78,10)=1,\"XXX\",\"\"))","v":""},{"$f":"IF(OR($AB78=\"\",$AB78=\"V\"),\"\",IF(MOD($AB78,100)>=10,\"XXX\",\"\"))","v":""},{"$f":"IF(OR($AB78=\"\",$AB78=\"V\"),\"\",IF(MOD($AB78,1000)>=100,\"XXX\",\"\"))","v":""},{"$f":"IF(OR($AB78=\"\",$AB78=\"V\"),\"\",IF(MOD($AB78,10000)>=1000,\"XXX\",\"\"))","v":""},{"$f":"IF(OR($AB78=\"\",$AB78=\"V\"),\"\",IF(MOD($AB78,100000)>=10000,\"XXX\",\"\"))","v":""}]
[{"$f":"A78","v":"11:00:00"},null,{"$f":"C78","v":"Team - Group 1 - Rd 4"},null,null,null,{"$f":"G78&1","v":"TG1"},null,null,null,null,"George Ebejer (bor)",1,"-",2,"Christian Blümel (wie)",null,null,null,null,null,"George Ebejer (bor)11:00","Christian Blümel (wie)11:00",{"$f":"IF(L79=\"\",0,COUNTIF(PlayersAndHoursCol1,L79&TEXT($A79,\"hh:mm\"))+COUNTIF(PlayersAndHoursCol2,L79&TEXT($A79,\"hh:mm\")))","v":1},{"$f":"IF(P79=\"\",0,COUNTIF(PlayersAndHoursCol1,P79&TEXT($A79,\"hh:mm\"))+COUNTIF(PlayersAndHoursCol2,P79&TEXT($A79,\"hh:mm\")))","v":1},{"$f":"IF(AA79=\"\",FALSE,NOT(AND(ISNA(MATCH(AA79&TEXT($A79,\"hh:mm\"),PlayersAndHoursCol1,0)),ISNA(MATCH(AA79&TEXT($A79,\"hh:mm\"),PlayersAndHoursCol2,0)),COUNTIF(AD:AD,AA79&$A79)<=1)))","v":false},null,null,null,null,null,null,null,{"$f":"IF(OR(M79>O79,R79>T79),L79,IF(OR(M79<O79,R79<T79),P79,\"\"))","v":"Christian Blümel (wie)"},{"$f":"IF(AND(M79<>\"\",M79=O79,R79=T79),L79,\"\")","v":""},{"$f":"IF(AND(M79<>\"\",M79=O79,R79=T79),P79,\"\")","v":""},{"$f":"IF(OR(M79<O79,R79<T79),L79,IF(OR(M79>O79,R79>T79),P79,\"\"))","v":"George Ebejer (bor)"},{"$f":"IF(OR($AB79=\"\",$AB79=\"V\"),\"\",IF(MOD($AB79,10)=1,\"XXX\",\"\"))","v":""},{"$f":"IF(OR($AB79=\"\",$AB79=\"V\"),\"\",IF(MOD($AB79,100)>=10,\"XXX\",\"\"))","v":""},{"$f":"IF(OR($AB79=\"\",$AB79=\"V\"),\"\",IF(MOD($AB79,1000)>=100,\"XXX\",\"\"))","v":""},{"$f":"IF(OR($AB79=\"\",$AB79=\"V\"),\"\",IF(MOD($AB79,10000)>=1000,\"XXX\",\"\"))","v":""},{"$f":"IF(OR($AB79=\"\",$AB79=\"V\"),\"\",IF(MOD($AB79,100000)>=10000,\"XXX\",\"\"))","v":""}]
[{"$f":"A79","v":"11:00:00"},null,{"$f":"C79","v":"Team - Group 1 - Rd 4"},null,null,null,{"$f":"G78&2","v":"TG2"},null,null,null,null,"Christian Haas (bor)",3,"-",3,"Marios Strommer (wie)",null,null,null,null,null,"Christian Haas (bor)11:00","Marios Strommer (wie)11:00",{"$f":"IF(L80=\"\",0,COUNTIF(PlayersAndHoursCol1,L80&TEXT($A80,\"hh:mm\"))+COUNTIF(PlayersAndHoursCol2,L80&TEXT($A80,\"hh:mm\")))","v":1},{"$f":"IF(P80=\"\",0,COUNTIF(PlayersAndHoursCol1,P80&TEXT($A80,\"hh:mm\"))+COUNTIF(PlayersAndHoursCol2,P80&TEXT($A80,\"hh:mm\")))","v":1},{"$f":"IF(AA80=\"\",FALSE,NOT(AND(ISNA(MATCH(AA80&TEXT($A80,\"hh:mm\"),PlayersAndHoursCol1,0)),ISNA(MATCH(AA80&TEXT($A80,\"hh:mm\"),PlayersAndHoursCol2,0)),COUNTIF(AD:AD,AA80&$A80)<=1)))","v":false},null,null,null,null,null,null,null,{"$f":"IF(OR(M80>O80,R80>T80),L80,IF(OR(M80<O80,R80<T80),P80,\"\"))","v":""},{"$f":"IF(AND(M80<>\"\",M80=O80,R80=T80),L80,\"\")","v":"Christian Haas (bor)"},{"$f":"IF(AND(M80<>\"\",M80=O80,R80=T80),P80,\"\")","v":"Marios Strommer (wie)"},{"$f":"IF(OR(M80<O80,R80<T80),L80,IF(OR(M80>O80,R80>T80),P80,\"\"))","v":""},{"$f":"IF(OR($AB80=\"\",$AB80=\"V\"),\"\",IF(MOD($AB80,10)=1,\"XXX\",\"\"))","v":""},{"$f":"IF(OR($AB80=\"\",$AB80=\"V\"),\"\",IF(MOD($AB80,100)>=10,\"XXX\",\"\"))","v":""},{"$f":"IF(OR($AB80=\"\",$AB80=\"V\"),\"\",IF(MOD($AB80,1000)>=100,\"XXX\",\"\"))","v":""},{"$f":"IF(OR($AB80=\"\",$AB80=\"V\"),\"\",IF(MOD($AB80,10000)>=1000,\"XXX\",\"\"))","v":""},{"$f":"IF(OR($AB80=\"\",$AB80=\"V\"),\"\",IF(MOD($AB80,100000)>=10000,\"XXX\",\"\"))","v":""}]
[{"$f":"A80","v":"11:00:00"},null,{"$f":"C80","v":"Team - Group 1 - Rd 4"},null,null,null,{"$f":"G78&3","v":"TG3"},null,null,null,null,"Jason Pisani (bor)",3,"-",1,"Manfred Pawlica (wie)",null,null,null,null,null,"Jason Pisani (bor)11:00","Manfred Pawlica (wie)11:00",{"$f":"IF(L81=\"\",0,COUNTIF(PlayersAndHoursCol1,L81&TEXT($A81,\"hh:mm\"))+COUNTIF(PlayersAndHoursCol2,L81&TEXT($A81,\"hh:mm\")))","v":1},{"$f":"IF(P81=\"\",0,COUNTIF(PlayersAndHoursCol1,P81&TEXT($A81,\"hh:mm\"))+COUNTIF(PlayersAndHoursCol2,P81&TEXT($A81,\"hh:mm\")))","v":1},{"$f":"IF(AA81=\"\",FALSE,NOT(AND(ISNA(MATCH(AA81&TEXT($A81,\"hh:mm\"),PlayersAndHoursCol1,0)),ISNA(MATCH(AA81&TEXT($A81,\"hh:mm\"),PlayersAndHoursCol2,0)),COUNTIF(AD:AD,AA81&$A81)<=1)))","v":false},null,null,null,null,null,null,null,{"$f":"IF(OR(M81>O81,R81>T81),L81,IF(OR(M81<O81,R81<T81),P81,\"\"))","v":"Jason Pisani (bor)"},{"$f":"IF(AND(M81<>\"\",M81=O81,R81=T81),L81,\"\")","v":""},{"$f":"IF(AND(M81<>\"\",M81=O81,R81=T81),P81,\"\")","v":""},{"$f":"IF(OR(M81<O81,R81<T81),L81,IF(OR(M81>O81,R81>T81),P81,\"\"))","v":"Manfred Pawlica (wie)"},{"$f":"IF(OR($AB81=\"\",$AB81=\"V\"),\"\",IF(MOD($AB81,10)=1,\"XXX\",\"\"))","v":""},{"$f":"IF(OR($AB81=\"\",$AB81=\"V\"),\"\",IF(MOD($AB81,100)>=10,\"XXX\",\"\"))","v":""},{"$f":"IF(OR($AB81=\"\",$AB81=\"V\"),\"\",IF(MOD($AB81,1000)>=100,\"XXX\",\"\"))","v":""},{"$f":"IF(OR($AB81=\"\",$AB81=\"V\"),\"\",IF(MOD($AB81,10000)>=1000,\"XXX\",\"\"))","v":""},{"$f":"IF(OR($AB81=\"\",$AB81=\"V\"),\"\",IF(MOD($AB81,100000)>=10000,\"XXX\",\"\"))","v":""}]
[{"$f":"A81","v":"11:00:00"},null,{"$f":"C81","v":"Team - Group 1 - Rd 4"},null,null,null,{"$f":"G78&4","v":"TG4"},null,null,null,null,"Charles Aquilina (bor)",1,"-",1,"Erich Hinkelmann (wie)",null,null,null,null,null,"Charles Aquilina (bor)11:00","Erich Hinkelmann (wie)11:00",{"$f":"IF(L82=\"\",0,COUNTIF(PlayersAndHoursCol1,L82&TEXT($A82,\"hh:mm\"))+COUNTIF(PlayersAndHoursCol2,L82&TEXT($A82,\"hh:mm\")))","v":1},{"$f":"IF(P82=\"\",0,COUNTIF(PlayersAndHoursCol1,P82&TEXT($A82,\"hh:mm\"))+COUNTIF(PlayersAndHoursCol2,P82&TEXT($A82,\"hh:mm\")))","v":1},{"$f":"IF(AA82=\"\",FALSE,NOT(AND(ISNA(MATCH(AA82&TEXT($A82,\"hh:mm\"),PlayersAndHoursCol1,0)),ISNA(MATCH(AA82&TEXT($A82,\"hh:mm\"),PlayersAndHoursCol2,0)),COUNTIF(AD:AD,AA82&$A82)<=1)))","v":false},null,null,null,null,null,null,null,{"$f":"IF(OR(M82>O82,R82>T82),L82,IF(OR(M82<O82,R82<T82),P82,\"\"))","v":""},{"$f":"IF(AND(M82<>\"\",M82=O82,R82=T82),L82,\"\")","v":"Charles Aquilina (bor)"},{"$f":"IF(AND(M82<>\"\",M82=O82,R82=T82),P82,\"\")","v":"Erich Hinkelmann (wie)"},{"$f":"IF(OR(M82<O82,R82<T82),L82,IF(OR(M82>O82,R82>T82),P82,\"\"))","v":""},{"$f":"IF(OR($AB82=\"\",$AB82=\"V\"),\"\",IF(MOD($AB82,10)=1,\"XXX\",\"\"))","v":""},{"$f":"IF(OR($AB82=\"\",$AB82=\"V\"),\"\",IF(MOD($AB82,100)>=10,\"XXX\",\"\"))","v":""},{"$f":"IF(OR($AB82=\"\",$AB82=\"V\"),\"\",IF(MOD($AB82,1000)>=100,\"XXX\",\"\"))","v":""},{"$f":"IF(OR($AB82=\"\",$AB82=\"V\"),\"\",IF(MOD($AB82,10000)>=1000,\"XXX\",\"\"))","v":""},{"$f":"IF(OR($AB82=\"\",$AB82=\"V\"),\"\",IF(MOD($AB82,100000)>=10000,\"XXX\",\"\"))","v":""}]
[{"$f":"A82","v":"11:00:00"},null,null,null,{"$f":"N_Substitute","v":"Substitute"},null,{"$f":"G78&\"SB1\"","v":"TGSB1"},null,null,null,null,"Jean Carl Tabone (bor)",null,null,null,null,null,null,null,null,null,"Jean Carl Tabone (bor)11:00","11:00",{"$f":"IF(L83=\"\",0,COUNTIF(PlayersAndHoursCol1,L83&TEXT($A83,\"hh:mm\"))+COUNTIF(PlayersAndHoursCol2,L83&TEXT($A83,\"hh:mm\")))","v":1},{"$f":"IF(P83=\"\",0,COUNTIF(PlayersAndHoursCol1,P83&TEXT($A83,\"hh:mm\"))+COUNTIF(PlayersAndHoursCol2,P83&TEXT($A83,\"hh:mm\")))","v":0}]
[{"$f":"A78","v":"11:00:00"},null,null,null,{"$f":"N_Substitute","v":"Substitute"},null,{"$f":"G78&\"SB2\"","v":"TGSB2"},null,null,null,null,null,null,null,null,null,null,null,null,null,null,"11:00","11:00",{"$f":"IF(L84=\"\",0,COUNTIF(PlayersAndHoursCol1,L84&TEXT($A84,\"hh:mm\"))+COUNTIF(PlayersAndHoursCol2,L84&TEXT($A84,\"hh:mm\")))","v":0},{"$f":"IF(P84=\"\",0,COUNTIF(PlayersAndHoursCol1,P84&TEXT($A84,\"hh:mm\"))+COUNTIF(PlayersAndHoursCol2,P84&TEXT($A84,\"hh:mm\")))","v":0}]
[{"$f":"OFFSET(A85,-1,0)","v":"11:00:00"},null,{"$f":"\"Team - \" & N_Group & \" 1\" & \" - \" & N_Round & \" 4\"","v":"Team - Group 1 - Rd 4"},null,null,null,"TG",{"$f":"IF(K85=\"\",\"\",SUBSTITUTE(MID(K85,1,SEARCH(\"!\",K85,1)-1),\"'\",\"\"))","v":"Team"},{"$f":"IF(K85=\"\",\"\",CELL(\"row\",INDIRECT(K85)))","v":62},{"$f":"IF(K85=\"\",\"\",CELL(\"col\",INDIRECT(K85)))","v":25},{"$f":"MID(Lire_Formule(L85),2,10000)","v":"Team!Y62"},{"$f":"Team!Y62","v":"Atlas FTC (atl)"},1,"-",1,{"$f":"IF(K85=\"\",\"\",IF(RIGHT(G85,1)=\"T\",INDIRECT(ADDRESS(I85+2,J85,4,TRUE,H85)),INDIRECT(ADDRESS(I85,J85+4,4,TRUE,H85))))","v":"TSC Royal 78 Kaisermühlen (roy)"},null,{"$f":"IF(M85=\"\",\"\",SUM(M86:M89))","v":7},null,{"$f":"IF(O85=\"\",\"\",SUM(O86:O89))","v":6},null,{"$f":"L85&TEXT(A85,\"hh:mm\")","v":"Atlas FTC (atl)11:00"},{"$f":"P85&TEXT(A85,\"hh:mm\")","v":"TSC Royal 78 Kaisermühlen (roy)11:00"},{"$f":"IF(L85=\"\",0,COUNTIF(PlayersAndHoursCol1,L85&TEXT($A85,\"hh:mm\"))+COUNTIF(PlayersAndHoursCol2,L85&TEXT($A85,\"hh:mm\")))","v":1},{"$f":"IF(P85=\"\",0,COUNTIF(PlayersAndHoursCol1,P85&TEXT($A85,\"hh:mm\"))+COUNTIF(PlayersAndHoursCol2,P85&TEXT($A85,\"hh:mm\")))","v":1},{"$f":"IF(AA85=\"\",FALSE,NOT(AND(ISNA(MATCH(AA85&TEXT($A85,\"hh:mm\"),PlayersAndHoursCol1,0)),ISNA(MATCH(AA85&TEXT($A85,\"hh:mm\"),PlayersAndHoursCol2,0)),COUNTIF(AD:AD,AA85&$A85)<=1)))","v":false},"ST Stembert (ste)","V",null,{"$f":"AA85&A85","v":"ST Stembert (ste)0,458333333333333"},"Team","Groups",4,{"$f":"IF(OR(M85>O85,R85>T85),L85,IF(OR(M85<O85,R85<T85),P85,\"\"))","v":"Atlas FTC (atl)"},{"$f":"IF(AND(M85<>\"\",M85=O85,R85=T85),L85,\"\")","v":""},{"$f":"IF(AND(M85<>\"\",M85=O85,R85=T85),P85,\"\")","v":""},{"$f":"IF(OR(M85<O85,R85<T85),L85,IF(OR(M85>O85,R85>T85),P85,\"\"))","v":"TSC Royal 78 Kaisermühlen (roy)"},{"$f":"IF(OR($AB85=\"\",$AB85=\"V\"),\"\",IF(MOD($AB85,10)=1,\"XXX\",\"\"))","v":""},{"$f":"IF(OR($AB85=\"\",$AB85=\"V\"),\"\",IF(MOD($AB85,100)>=10,\"XXX\",\"\"))","v":""},{"$f":"IF(OR($AB85=\"\",$AB85=\"V\"),\"\",IF(MOD($AB85,1000)>=100,\"XXX\",\"\"))","v":""},{"$f":"IF(OR($AB85=\"\",$AB85=\"V\"),\"\",IF(MOD($AB85,10000)>=1000,\"XXX\",\"\"))","v":""},{"$f":"IF(OR($AB85=\"\",$AB85=\"V\"),\"\",IF(MOD($AB85,100000)>=10000,\"XXX\",\"\"))","v":""}]
[{"$f":"A85","v":"11:00:00"},null,{"$f":"C85","v":"Team - Group 1 - Rd 4"},null,null,null,{"$f":"G85&1","v":"TG1"},null,null,null,null,"Giannis Nikolaidis (atl)",1,"-",2,"Murat Tünger (roy)",null,null,null,null,null,"Giannis Nikolaidis (atl)11:00","Murat Tünger (roy)11:00",{"$f":"IF(L86=\"\",0,COUNTIF(PlayersAndHoursCol1,L86&TEXT($A86,\"hh:mm\"))+COUNTIF(PlayersAndHoursCol2,L86&TEXT($A86,\"hh:mm\")))","v":1},{"$f":"IF(P86=\"\",0,COUNTIF(PlayersAndHoursCol1,P86&TEXT($A86,\"hh:mm\"))+COUNTIF(PlayersAndHoursCol2,P86&TEXT($A86,\"hh:mm\")))","v":1},{"$f":"IF(AA86=\"\",FALSE,NOT(AND(ISNA(MATCH(AA86&TEXT($A86,\"hh:mm\"),PlayersAndHoursCol1,0)),ISNA(MATCH(AA86&TEXT($A86,\"hh:mm\"),PlayersAndHoursCol2,0)),COUNTIF(AD:AD,AA86&$A86)<=1)))","v":false},null,null,null,null,null,null,null,{"$f":"IF(OR(M86>O86,R86>T86),L86,IF(OR(M86<O86,R86<T86),P86,\"\"))","v":"Murat Tünger (roy)"},{"$f":"IF(AND(M86<>\"\",M86=O86,R86=T86),L86,\"\")","v":""},{"$f":"IF(AND(M86<>\"\",M86=O86,R86=T86),P86,\"\")","v":""},{"$f":"IF(OR(M86<O86,R86<T86),L86,IF(OR(M86>O86,R86>T86),P86,\"\"))","v":"Giannis Nikolaidis (atl)"},{"$f":"IF(OR($AB86=\"\",$AB86=\"V\"),\"\",IF(MOD($AB86,10)=1,\"XXX\",\"\"))","v":""},{"$f":"IF(OR($AB86=\"\",$AB86=\"V\"),\"\",IF(MOD($AB86,100)>=10,\"XXX\",\"\"))","v":""},{"$f":"IF(OR($AB86=\"\",$AB86=\"V\"),\"\",IF(MOD($AB86,1000)>=100,\"XXX\",\"\"))","v":""},{"$f":"IF(OR($AB86=\"\",$AB86=\"V\"),\"\",IF(MOD($AB86,10000)>=1000,\"XXX\",\"\"))","v":""},{"$f":"IF(OR($AB86=\"\",$AB86=\"V\"),\"\",IF(MOD($AB86,100000)>=10000,\"XXX\",\"\"))","v":""}]
[{"$f":"A86","v":"11:00:00"},null,{"$f":"C86","v":"Team - Group 1 - Rd 4"},null,null,null,{"$f":"G85&2","v":"TG2"},null,null,null,null,"Joffray Laurent (atl)",2,"-",0,"Stefan Sandner (roy)",null,null,null,null,null,"Joffray Laurent (atl)11:00","Stefan Sandner (roy)11:00",{"$f":"IF(L87=\"\",0,COUNTIF(PlayersAndHoursCol1,L87&TEXT($A87,\"hh:mm\"))+COUNTIF(PlayersAndHoursCol2,L87&TEXT($A87,\"hh:mm\")))","v":1},{"$f":"IF(P87=\"\",0,COUNTIF(PlayersAndHoursCol1,P87&TEXT($A87,\"hh:mm\"))+COUNTIF(PlayersAndHoursCol2,P87&TEXT($A87,\"hh:mm\")))","v":1},{"$f":"IF(AA87=\"\",FALSE,NOT(AND(ISNA(MATCH(AA87&TEXT($A87,\"hh:mm\"),PlayersAndHoursCol1,0)),ISNA(MATCH(AA87&TEXT($A87,\"hh:mm\"),PlayersAndHoursCol2,0)),COUNTIF(AD:AD,AA87&$A87)<=1)))","v":false},null,null,null,null,null,null,null,{"$f":"IF(OR(M87>O87,R87>T87),L87,IF(OR(M87<O87,R87<T87),P87,\"\"))","v":"Joffray Laurent (atl)"},{"$f":"IF(AND(M87<>\"\",M87=O87,R87=T87),L87,\"\")","v":""},{"$f":"IF(AND(M87<>\"\",M87=O87,R87=T87),P87,\"\")","v":""},{"$f":"IF(OR(M87<O87,R87<T87),L87,IF(OR(M87>O87,R87>T87),P87,\"\"))","v":"Stefan Sandner (roy)"},{"$f":"IF(OR($AB87=\"\",$AB87=\"V\"),\"\",IF(MOD($AB87,10)=1,\"XXX\",\"\"))","v":""},{"$f":"IF(OR($AB87=\"\",$AB87=\"V\"),\"\",IF(MOD($AB87,100)>=10,\"XXX\",\"\"))","v":""},{"$f":"IF(OR($AB87=\"\",$AB87=\"V\"),\"\",IF(MOD($AB87,1000)>=100,\"XXX\",\"\"))","v":""},{"$f":"IF(OR($AB87=\"\",$AB87=\"V\"),\"\",IF(MOD($AB87,10000)>=1000,\"XXX\",\"\"))","v":""},{"$f":"IF(OR($AB87=\"\",$AB87=\"V\"),\"\",IF(MOD($AB87,100000)>=10000,\"XXX\",\"\"))","v":""}]
[{"$f":"A87","v":"11:00:00"},null,{"$f":"C87","v":"Team - Group 1 - Rd 4"},null,null,null,{"$f":"G85&3","v":"TG3"},null,null,null,null,"Lazaros Papakonstantinou (atl)",2,"-",2,"Alexander Haas (roy)",null,null,null,null,null,"Lazaros Papakonstantinou (atl)11:00","Alexander Haas (roy)11:00",{"$f":"IF(L88=\"\",0,COUNTIF(PlayersAndHoursCol1,L88&TEXT($A88,\"hh:mm\"))+COUNTIF(PlayersAndHoursCol2,L88&TEXT($A88,\"hh:mm\")))","v":1},{"$f":"IF(P88=\"\",0,COUNTIF(PlayersAndHoursCol1,P88&TEXT($A88,\"hh:mm\"))+COUNTIF(PlayersAndHoursCol2,P88&TEXT($A88,\"hh:mm\")))","v":1},{"$f":"IF(AA88=\"\",FALSE,NOT(AND(ISNA(MATCH(AA88&TEXT($A88,\"hh:mm\"),PlayersAndHoursCol1,0)),ISNA(MATCH(AA88&TEXT($A88,\"hh:mm\"),PlayersAndHoursCol2,0)),COUNTIF(AD:AD,AA88&$A88)<=1)))","v":false},null,null,null,null,null,null,null,{"$f":"IF(OR(M88>O88,R88>T88),L88,IF(OR(M88<O88,R88<T88),P88,\"\"))","v":""},{"$f":"IF(AND(M88<>\"\",M88=O88,R88=T88),L88,\"\")","v":"Lazaros Papakonstantinou (atl)"},{"$f":"IF(AND(M88<>\"\",M88=O88,R88=T88),P88,\"\")","v":"Alexander Haas (roy)"},{"$f":"IF(OR(M88<O88,R88<T88),L88,IF(OR(M88>O88,R88>T88),P88,\"\"))","v":""},{"$f":"IF(OR($AB88=\"\",$AB88=\"V\"),\"\",IF(MOD($AB88,10)=1,\"XXX\",\"\"))","v":""},{"$f":"IF(OR($AB88=\"\",$AB88=\"V\"),\"\",IF(MOD($AB88,100)>=10,\"XXX\",\"\"))","v":""},{"$f":"IF(OR($AB88=\"\",$AB88=\"V\"),\"\",IF(MOD($AB88,1000)>=100,\"XXX\",\"\"))","v":""},{"$f":"IF(OR($AB88=\"\",$AB88=\"V\"),\"\",IF(MOD($AB88,10000)>=1000,\"XXX\",\"\"))","v":""},{"$f":"IF(OR($AB88=\"\",$AB88=\"V\"),\"\",IF(MOD($AB88,100000)>=10000,\"XXX\",\"\"))","v":""}]
[{"$f":"A88","v":"11:00:00"},null,{"$f":"C88","v":"Team - Group 1 - Rd 4"},null,null,null,{"$f":"G85&4","v":"TG4"},null,null,null,null,"Stylianos Tsangouris (atl)",2,"-",2,"Wolfgang Leitner (roy)",null,null,null,null,null,"Stylianos Tsangouris (atl)11:00","Wolfgang Leitner (roy)11:00",{"$f":"IF(L89=\"\",0,COUNTIF(PlayersAndHoursCol1,L89&TEXT($A89,\"hh:mm\"))+COUNTIF(PlayersAndHoursCol2,L89&TEXT($A89,\"hh:mm\")))","v":1},{"$f":"IF(P89=\"\",0,COUNTIF(PlayersAndHoursCol1,P89&TEXT($A89,\"hh:mm\"))+COUNTIF(PlayersAndHoursCol2,P89&TEXT($A89,\"hh:mm\")))","v":1},{"$f":"IF(AA89=\"\",FALSE,NOT(AND(ISNA(MATCH(AA89&TEXT($A89,\"hh:mm\"),PlayersAndHoursCol1,0)),ISNA(MATCH(AA89&TEXT($A89,\"hh:mm\"),PlayersAndHoursCol2,0)),COUNTIF(AD:AD,AA89&$A89)<=1)))","v":false},null,null,null,null,null,null,null,{"$f":"IF(OR(M89>O89,R89>T89),L89,IF(OR(M89<O89,R89<T89),P89,\"\"))","v":""},{"$f":"IF(AND(M89<>\"\",M89=O89,R89=T89),L89,\"\")","v":"Stylianos Tsangouris (atl)"},{"$f":"IF(AND(M89<>\"\",M89=O89,R89=T89),P89,\"\")","v":"Wolfgang Leitner (roy)"},{"$f":"IF(OR(M89<O89,R89<T89),L89,IF(OR(M89>O89,R89>T89),P89,\"\"))","v":""},{"$f":"IF(OR($AB89=\"\",$AB89=\"V\"),\"\",IF(MOD($AB89,10)=1,\"XXX\",\"\"))","v":""},{"$f":"IF(OR($AB89=\"\",$AB89=\"V\"),\"\",IF(MOD($AB89,100)>=10,\"XXX\",\"\"))","v":""},{"$f":"IF(OR($AB89=\"\",$AB89=\"V\"),\"\",IF(MOD($AB89,1000)>=100,\"XXX\",\"\"))","v":""},{"$f":"IF(OR($AB89=\"\",$AB89=\"V\"),\"\",IF(MOD($AB89,10000)>=1000,\"XXX\",\"\"))","v":""},{"$f":"IF(OR($AB89=\"\",$AB89=\"V\"),\"\",IF(MOD($AB89,100000)>=10000,\"XXX\",\"\"))","v":""}]
[{"$f":"A89","v":"11:00:00"},null,null,null,{"$f":"N_Substitute","v":"Substitute"},null,{"$f":"G85&\"SB1\"","v":"TGSB1"},null,null,null,null,"Athanasios Chaliotis (atl)",null,null,null,null,null,null,null,null,null,"Athanasios Chaliotis (atl)11:00","11:00",{"$f":"IF(L90=\"\",0,COUNTIF(PlayersAndHoursCol1,L90&TEXT($A90,\"hh:mm\"))+COUNTIF(PlayersAndHoursCol2,L90&TEXT($A90,\"hh:mm\")))","v":1},{"$f":"IF(P90=\"\",0,COUNTIF(PlayersAndHoursCol1,P90&TEXT($A90,\"hh:mm\"))+COUNTIF(PlayersAndHoursCol2,P90&TEXT($A90,\"hh:mm\")))","v":0}]
[{"$f":"A85","v":"11:00:00"},null,null,null,{"$f":"N_Substitute","v":"Substitute"},null,{"$f":"G85&\"SB2\"","v":"TGSB2"},null,null,null,null,null,null,null,null,null,null,null,null,null,null,"11:00","11:00",{"$f":"IF(L91=\"\",0,COUNTIF(PlayersAndHoursCol1,L91&TEXT($A91,\"hh:mm\"))+COUNTIF(PlayersAndHoursCol2,L91&TEXT($A91,\"hh:mm\")))","v":0},{"$f":"IF(P91=\"\",0,COUNTIF(PlayersAndHoursCol1,P91&TEXT($A91,\"hh:mm\"))+COUNTIF(PlayersAndHoursCol2,P91&TEXT($A91,\"hh:mm\")))","v":0}]
[{"$f":"A70+P70","v":"11:40:00"},null,{"$f":"N_Session","v":"Session Nbr "},null,{"$f":"E70+ 1","v":5},null,{"$f":"\"S\" & RIGHT(G70, LEN(G70)-1) + 1","v":"S5"},null,null,null,null,{"$f":"N_Duration","v":"Duration"},null,":",null,"00:50:00"]
[{"$f":"OFFSET(A93,-1,0)","v":"11:40:00"},null,{"$f":"\"Team - \" & N_Group & \" 2\" & \" - \" & N_Round & \" 1\"","v":"Team - Group 2 - Rd 1"},null,null,null,"TG",{"$f":"IF(K93=\"\",\"\",SUBSTITUTE(MID(K93,1,SEARCH(\"!\",K93,1)-1),\"'\",\"\"))","v":"Team"},{"$f":"IF(K93=\"\",\"\",CELL(\"row\",INDIRECT(K93)))","v":100},{"$f":"IF(K93=\"\",\"\",CELL(\"col\",INDIRECT(K93)))","v":25},{"$f":"MID(Lire_Formule(L93),2,10000)","v":"Team!Y100"},{"$f":"Team!Y100","v":"TSC Royal 78 Kaisermühlen 2 (roy)"},1,"-",3,{"$f":"IF(K93=\"\",\"\",IF(RIGHT(G93,1)=\"T\",INDIRECT(ADDRESS(I93+2,J93,4,TRUE,H93)),INDIRECT(ADDRESS(I93,J93+4,4,TRUE,H93))))","v":"ST Stembert (ste)"},null,{"$f":"IF(M93=\"\",\"\",SUM(M94:M97))","v":2},null,{"$f":"IF(O93=\"\",\"\",SUM(O94:O97))","v":18},null,{"$f":"L93&TEXT(A93,\"hh:mm\")","v":"TSC Royal 78 Kaisermühlen 2 (roy)11:40"},{"$f":"P93&TEXT(A93,\"hh:mm\")","v":"ST Stembert (ste)11:40"},{"$f":"IF(L93=\"\",0,COUNTIF(PlayersAndHoursCol1,L93&TEXT($A93,\"hh:mm\"))+COUNTIF(PlayersAndHoursCol2,L93&TEXT($A93,\"hh:mm\")))","v":1},{"$f":"IF(P93=\"\",0,COUNTIF(PlayersAndHoursCol1,P93&TEXT($A93,\"hh:mm\"))+COUNTIF(PlayersAndHoursCol2,P93&TEXT($A93,\"hh:mm\")))","v":1},{"$f":"IF(AA93=\"\",FALSE,NOT(AND(ISNA(MATCH(AA93&TEXT($A93,\"hh:mm\"),PlayersAndHoursCol1,0)),ISNA(MATCH(AA93&TEXT($A93,\"hh:mm\"),PlayersAndHoursCol2,0)),COUNTIF(AD:AD,AA93&$A93)<=1)))","v":false},"TSC Phoenix (wie)","V",null,{"$f":"AA93&A93","v":"TSC Phoenix (wie)0,486111111111111"},"Team","Groups",1,{"$f":"IF(OR(M93>O93,R93>T93),L93,IF(OR(M93<O93,R93<T93),P93,\"\"))","v":"ST Stembert (ste)"},{"$f":"IF(AND(M93<>\"\",M93=O93,R93=T93),L93,\"\")","v":""},{"$f":"IF(AND(M93<>\"\",M93=O93,R93=T93),P93,\"\")","v":""},{"$f":"IF(OR(M93<O93,R93<T93),L93,IF(OR(M93>O93,R93>T93),P93,\"\"))","v":"TSC Royal 78 Kaisermühlen 2 (roy)"},{"$f":"IF(OR($AB93=\"\",$AB93=\"V\"),\"\",IF(MOD($AB93,10)=1,\"XXX\",\"\"))","v":""},{"$f":"IF(OR($AB93=\"\",$AB93=\"V\"),\"\",IF(MOD($AB93,100)>=10,\"XXX\",\"\"))","v":""},{"$f":"IF(OR($AB93=\"\",$AB93=\"V\"),\"\",IF(MOD($AB93,1000)>=100,\"XXX\",\"\"))","v":""},{"$f":"IF(OR($AB93=\"\",$AB93=\"V\"),\"\",IF(MOD($AB93,10000)>=1000,\"XXX\",\"\"))","v":""},{"$f":"IF(OR($AB93=\"\",$AB93=\"V\"),\"\",IF(MOD($AB93,100000)>=10000,\"XXX\",\"\"))","v":""}]
[{"$f":"A93","v":"11:40:00"},null,{"$f":"C93","v":"Team - Group 2 - Rd 1"},null,null,null,{"$f":"G93&1","v":"TG1"},null,null,null,null,"Christian Hausmann (roy)",0,"-",8,"Noah Janssens (ste)",null,null,null,null,null,"Christian Hausmann (roy)11:40","Noah Janssens (ste)11:40",{"$f":"IF(L94=\"\",0,COUNTIF(PlayersAndHoursCol1,L94&TEXT($A94,\"hh:mm\"))+COUNTIF(PlayersAndHoursCol2,L94&TEXT($A94,\"hh:mm\")))","v":1},{"$f":"IF(P94=\"\",0,COUNTIF(PlayersAndHoursCol1,P94&TEXT($A94,\"hh:mm\"))+COUNTIF(PlayersAndHoursCol2,P94&TEXT($A94,\"hh:mm\")))","v":1},{"$f":"IF(AA94=\"\",FALSE,NOT(AND(ISNA(MATCH(AA94&TEXT($A94,\"hh:mm\"),PlayersAndHoursCol1,0)),ISNA(MATCH(AA94&TEXT($A94,\"hh:mm\"),PlayersAndHoursCol2,0)),COUNTIF(AD:AD,AA94&$A94)<=1)))","v":false},null,null,null,null,null,null,null,{"$f":"IF(OR(M94>O94,R94>T94),L94,IF(OR(M94<O94,R94<T94),P94,\"\"))","v":"Noah Janssens (ste)"},{"$f":"IF(AND(M94<>\"\",M94=O94,R94=T94),L94,\"\")","v":""},{"$f":"IF(AND(M94<>\"\",M94=O94,R94=T94),P94,\"\")","v":""},{"$f":"IF(OR(M94<O94,R94<T94),L94,IF(OR(M94>O94,R94>T94),P94,\"\"))","v":"Christian Hausmann (roy)"},{"$f":"IF(OR($AB94=\"\",$AB94=\"V\"),\"\",IF(MOD($AB94,10)=1,\"XXX\",\"\"))","v":""},{"$f":"IF(OR($AB94=\"\",$AB94=\"V\"),\"\",IF(MOD($AB94,100)>=10,\"XXX\",\"\"))","v":""},{"$f":"IF(OR($AB94=\"\",$AB94=\"V\"),\"\",IF(MOD($AB94,1000)>=100,\"XXX\",\"\"))","v":""},{"$f":"IF(OR($AB94=\"\",$AB94=\"V\"),\"\",IF(MOD($AB94,10000)>=1000,\"XXX\",\"\"))","v":""},{"$f":"IF(OR($AB94=\"\",$AB94=\"V\"),\"\",IF(MOD($AB94,100000)>=10000,\"XXX\",\"\"))","v":""}]
[{"$f":"A94","v":"11:40:00"},null,{"$f":"C94","v":"Team - Group 2 - Rd 1"},null,null,null,{"$f":"G93&2","v":"TG2"},null,null,null,null,"Robert Lenz (roy)",0,"-",2,"Sébastien Rochez (ste)",null,null,null,null,null,"Robert Lenz (roy)11:40","Sébastien Rochez (ste)11:40",{"$f":"IF(L95=\"\",0,COUNTIF(PlayersAndHoursCol1,L95&TEXT($A95,\"hh:mm\"))+COUNTIF(PlayersAndHoursCol2,L95&TEXT($A95,\"hh:mm\")))","v":1},{"$f":"IF(P95=\"\",0,COUNTIF(PlayersAndHoursCol1,P95&TEXT($A95,\"hh:mm\"))+COUNTIF(PlayersAndHoursCol2,P95&TEXT($A95,\"hh:mm\")))","v":1},{"$f":"IF(AA95=\"\",FALSE,NOT(AND(ISNA(MATCH(AA95&TEXT($A95,\"hh:mm\"),PlayersAndHoursCol1,0)),ISNA(MATCH(AA95&TEXT($A95,\"hh:mm\"),PlayersAndHoursCol2,0)),COUNTIF(AD:AD,AA95&$A95)<=1)))","v":false},null,null,null,null,null,null,null,{"$f":"IF(OR(M95>O95,R95>T95),L95,IF(OR(M95<O95,R95<T95),P95,\"\"))","v":"Sébastien Rochez (ste)"},{"$f":"IF(AND(M95<>\"\",M95=O95,R95=T95),L95,\"\")","v":""},{"$f":"IF(AND(M95<>\"\",M95=O95,R95=T95),P95,\"\")","v":""},{"$f":"IF(OR(M95<O95,R95<T95),L95,IF(OR(M95>O95,R95>T95),P95,\"\"))","v":"Robert Lenz (roy)"},{"$f":"IF(OR($AB95=\"\",$AB95=\"V\"),\"\",IF(MOD($AB95,10)=1,\"XXX\",\"\"))","v":""},{"$f":"IF(OR($AB95=\"\",$AB95=\"V\"),\"\",IF(MOD($AB95,100)>=10,\"XXX\",\"\"))","v":""},{"$f":"IF(OR($AB95=\"\",$AB95=\"V\"),\"\",IF(MOD($AB95,1000)>=100,\"XXX\",\"\"))","v":""},{"$f":"IF(OR($AB95=\"\",$AB95=\"V\"),\"\",IF(MOD($AB95,10000)>=1000,\"XXX\",\"\"))","v":""},{"$f":"IF(OR($AB95=\"\",$AB95=\"V\"),\"\",IF(MOD($AB95,100000)>=10000,\"XXX\",\"\"))","v":""}]
[{"$f":"A95","v":"11:40:00"},null,{"$f":"C95","v":"Team - Group 2 - Rd 1"},null,null,null,{"$f":"G93&3","v":"TG3"},null,null,null,null,"David Scherbantin (roy)",0,"-",7,"John Zammit (ste)",null,null,null,null,null,"David Scherbantin (roy)11:40","John Zammit (ste)11:40",{"$f":"IF(L96=\"\",0,COUNTIF(PlayersAndHoursCol1,L96&TEXT($A96,\"hh:mm\"))+COUNTIF(PlayersAndHoursCol2,L96&TEXT($A96,\"hh:mm\")))","v":1},{"$f":"IF(P96=\"\",0,COUNTIF(PlayersAndHoursCol1,P96&TEXT($A96,\"hh:mm\"))+COUNTIF(PlayersAndHoursCol2,P96&TEXT($A96,\"hh:mm\")))","v":1},{"$f":"IF(AA96=\"\",FALSE,NOT(AND(ISNA(MATCH(AA96&TEXT($A96,\"hh:mm\"),PlayersAndHoursCol1,0)),ISNA(MATCH(AA96&TEXT($A96,\"hh:mm\"),PlayersAndHoursCol2,0)),COUNTIF(AD:AD,AA96&$A96)<=1)))","v":false},null,null,null,null,null,null,null,{"$f":"IF(OR(M96>O96,R96>T96),L96,IF(OR(M96<O96,R96<T96),P96,\"\"))","v":"John Zammit (ste)"},{"$f":"IF(AND(M96<>\"\",M96=O96,R96=T96),L96,\"\")","v":""},{"$f":"IF(AND(M96<>\"\",M96=O96,R96=T96),P96,\"\")","v":""},{"$f":"IF(OR(M96<O96,R96<T96),L96,IF(OR(M96>O96,R96>T96),P96,\"\"))","v":"David Scherbantin (roy)"},{"$f":"IF(OR($AB96=\"\",$AB96=\"V\"),\"\",IF(MOD($AB96,10)=1,\"XXX\",\"\"))","v":""},{"$f":"IF(OR($AB96=\"\",$AB96=\"V\"),\"\",IF(MOD($AB96,100)>=10,\"XXX\",\"\"))","v":""},{"$f":"IF(OR($AB96=\"\",$AB96=\"V\"),\"\",IF(MOD($AB96,1000)>=100,\"XXX\",\"\"))","v":""},{"$f":"IF(OR($AB96=\"\",$AB96=\"V\"),\"\",IF(MOD($AB96,10000)>=1000,\"XXX\",\"\"))","v":""},{"$f":"IF(OR($AB96=\"\",$AB96=\"V\"),\"\",IF(MOD($AB96,100000)>=10000,\"XXX\",\"\"))","v":""}]
[{"$f":"A96","v":"11:40:00"},null,{"$f":"C96","v":"Team - Group 2 - Rd 1"},null,null,null,{"$f":"G93&4","v":"TG4"},null,null,null,null,"Heinz Eder (roy)",2,"-",1,"Pascal Scheen (ste)",null,null,null,null,null,"Heinz Eder (roy)11:40","Pascal Scheen (ste)11:40",{"$f":"IF(L97=\"\",0,COUNTIF(PlayersAndHoursCol1,L97&TEXT($A97,\"hh:mm\"))+COUNTIF(PlayersAndHoursCol2,L97&TEXT($A97,\"hh:mm\")))","v":1},{"$f":"IF(P97=\"\",0,COUNTIF(PlayersAndHoursCol1,P97&TEXT($A97,\"hh:mm\"))+COUNTIF(PlayersAndHoursCol2,P97&TEXT($A97,\"hh:mm\")))","v":1},{"$f":"IF(AA97=\"\",FALSE,NOT(AND(ISNA(MATCH(AA97&TEXT($A97,\"hh:mm\"),PlayersAndHoursCol1,0)),ISNA(MATCH(AA97&TEXT($A97,\"hh:mm\"),PlayersAndHoursCol2,0)),COUNTIF(AD:AD,AA97&$A97)<=1)))","v":false},null,null,null,null,null,null,null,{"$f":"IF(OR(M97>O97,R97>T97),L97,IF(OR(M97<O97,R97<T97),P97,\"\"))","v":"Heinz Eder (roy)"},{"$f":"IF(AND(M97<>\"\",M97=O97,R97=T97),L97,\"\")","v":""},{"$f":"IF(AND(M97<>\"\",M97=O97,R97=T97),P97,\"\")","v":""},{"$f":"IF(OR(M97<O97,R97<T97),L97,IF(OR(M97>O97,R97>T97),P97,\"\"))","v":"Pascal Scheen (ste)"},{"$f":"IF(OR($AB97=\"\",$AB97=\"V\"),\"\",IF(MOD($AB97,10)=1,\"XXX\",\"\"))","v":""},{"$f":"IF(OR($AB97=\"\",$AB97=\"V\"),\"\",IF(MOD($AB97,100)>=10,\"XXX\",\"\"))","v":""},{"$f":"IF(OR($AB97=\"\",$AB97=\"V\"),\"\",IF(MOD($AB97,1000)>=100,\"XXX\",\"\"))","v":""},{"$f":"IF(OR($AB97=\"\",$AB97=\"V\"),\"\",IF(MOD($AB97,10000)>=1000,\"XXX\",\"\"))","v":""},{"$f":"IF(OR($AB97=\"\",$AB97=\"V\"),\"\",IF(MOD($AB97,100000)>=10000,\"XXX\",\"\"))","v":""}]
[{"$f":"A97","v":"11:40:00"},null,null,null,{"$f":"N_Substitute","v":"Substitute"},null,{"$f":"G93&\"SB1\"","v":"TGSB1"},null,null,null,null,"Karl Vranovitz (roy)",null,null,null,null,null,null,null,null,null,"Karl Vranovitz (roy)11:40","11:40",{"$f":"IF(L98=\"\",0,COUNTIF(PlayersAndHoursCol1,L98&TEXT($A98,\"hh:mm\"))+COUNTIF(PlayersAndHoursCol2,L98&TEXT($A98,\"hh:mm\")))","v":1},{"$f":"IF(P98=\"\",0,COUNTIF(PlayersAndHoursCol1,P98&TEXT($A98,\"hh:mm\"))+COUNTIF(PlayersAndHoursCol2,P98&TEXT($A98,\"hh:mm\")))","v":0}]
[{"$f":"A93","v":"11:40:00"},null,null,null,{"$f":"N_Substitute","v":"Substitute"},null,{"$f":"G93&\"SB2\"","v":"TGSB2"},null,null,null,null,null,null,null,null,null,null,null,null,null,null,"11:40","11:40",{"$f":"IF(L99=\"\",0,COUNTIF(PlayersAndHoursCol1,L99&TEXT($A99,\"hh:mm\"))+COUNTIF(PlayersAndHoursCol2,L99&TEXT($A99,\"hh:mm\")))","v":0},{"$f":"IF(P99=\"\",0,COUNTIF(PlayersAndHoursCol1,P99&TEXT($A99,\"hh:mm\"))+COUNTIF(PlayersAndHoursCol2,P99&TEXT($A99,\"hh:mm\")))","v":0}]
[{"$f":"OFFSET(A100,-1,0)","v":"11:40:00"},null,{"$f":"\"Team - \" & N_Group & \" 2\" & \" - \" & N_Round & \" 1\"","v":"Team - Group 2 - Rd 1"},null,null,null,"TG",{"$f":"IF(K100=\"\",\"\",SUBSTITUTE(MID(K100,1,SEARCH(\"!\",K100,1)-1),\"'\",\"\"))","v":"Team"},{"$f":"IF(K100=\"\",\"\",CELL(\"row\",INDIRECT(K100)))","v":93},{"$f":"IF(K100=\"\",\"\",CELL(\"col\",INDIRECT(K100)))","v":25},{"$f":"MID(Lire_Formule(L100),2,10000)","v":"Team!Y93"},{"$f":"Team!Y93","v":"Barbarian Mixed Team"},2,"-",1,{"$f":"IF(K100=\"\",\"\",IF(RIGHT(G100,1)=\"T\",INDIRECT(ADDRESS(I100+2,J100,4,TRUE,H100)),INDIRECT(ADDRESS(I100,J100+4,4,TRUE,H100))))","v":"TSC Phoenix 2 (wie)"},null,{"$f":"IF(M100=\"\",\"\",SUM(M101:M104))","v":7},null,{"$f":"IF(O100=\"\",\"\",SUM(O101:O104))","v":7},null,{"$f":"L100&TEXT(A100,\"hh:mm\")","v":"Barbarian Mixed Team11:40"},{"$f":"P100&TEXT(A100,\"hh:mm\")","v":"TSC Phoenix 2 (wie)11:40"},{"$f":"IF(L100=\"\",0,COUNTIF(PlayersAndHoursCol1,L100&TEXT($A100,\"hh:mm\"))+COUNTIF(PlayersAndHoursCol2,L100&TEXT($A100,\"hh:mm\")))","v":1},{"$f":"IF(P100=\"\",0,COUNTIF(PlayersAndHoursCol1,P100&TEXT($A100,\"hh:mm\"))+COUNTIF(PlayersAndHoursCol2,P100&TEXT($A100,\"hh:mm\")))","v":1},{"$f":"IF(AA100=\"\",FALSE,NOT(AND(ISNA(MATCH(AA100&TEXT($A100,\"hh:mm\"),PlayersAndHoursCol1,0)),ISNA(MATCH(AA100&TEXT($A100,\"hh:mm\"),PlayersAndHoursCol2,0)),COUNTIF(AD:AD,AA100&$A100)<=1)))","v":false},"GCT DLF Gorizia (gor)","V",null,{"$f":"AA100&A100","v":"GCT DLF Gorizia (gor)0,486111111111111"},"Team","Groups",1,{"$f":"IF(OR(M100>O100,R100>T100),L100,IF(OR(M100<O100,R100<T100),P100,\"\"))","v":"Barbarian Mixed Team"},{"$f":"IF(AND(M100<>\"\",M100=O100,R100=T100),L100,\"\")","v":""},{"$f":"IF(AND(M100<>\"\",M100=O100,R100=T100),P100,\"\")","v":""},{"$f":"IF(OR(M100<O100,R100<T100),L100,IF(OR(M100>O100,R100>T100),P100,\"\"))","v":"TSC Phoenix 2 (wie)"},{"$f":"IF(OR($AB100=\"\",$AB100=\"V\"),\"\",IF(MOD($AB100,10)=1,\"XXX\",\"\"))","v":""},{"$f":"IF(OR($AB100=\"\",$AB100=\"V\"),\"\",IF(MOD($AB100,100)>=10,\"XXX\",\"\"))","v":""},{"$f":"IF(OR($AB100=\"\",$AB100=\"V\"),\"\",IF(MOD($AB100,1000)>=100,\"XXX\",\"\"))","v":""},{"$f":"IF(OR($AB100=\"\",$AB100=\"V\"),\"\",IF(MOD($AB100,10000)>=1000,\"XXX\",\"\"))","v":""},{"$f":"IF(OR($AB100=\"\",$AB100=\"V\"),\"\",IF(MOD($AB100,100000)>=10000,\"XXX\",\"\"))","v":""}]
[{"$f":"A100","v":"11:40:00"},null,{"$f":"C100","v":"Team - Group 2 - Rd 1"},null,null,null,{"$f":"G100&1","v":"TG1"},null,null,null,null,"Daniela Grünberg (sch)",2,"-",2,"Alfred Strommer (wie)",null,null,null,null,null,"Daniela Grünberg (sch)11:40","Alfred Strommer (wie)11:40",{"$f":"IF(L101=\"\",0,COUNTIF(PlayersAndHoursCol1,L101&TEXT($A101,\"hh:mm\"))+COUNTIF(PlayersAndHoursCol2,L101&TEXT($A101,\"hh:mm\")))","v":1},{"$f":"IF(P101=\"\",0,COUNTIF(PlayersAndHoursCol1,P101&TEXT($A101,\"hh:mm\"))+COUNTIF(PlayersAndHoursCol2,P101&TEXT($A101,\"hh:mm\")))","v":1},{"$f":"IF(AA101=\"\",FALSE,NOT(AND(ISNA(MATCH(AA101&TEXT($A101,\"hh:mm\"),PlayersAndHoursCol1,0)),ISNA(MATCH(AA101&TEXT($A101,\"hh:mm\"),PlayersAndHoursCol2,0)),COUNTIF(AD:AD,AA101&$A101)<=1)))","v":false},null,null,null,null,null,null,null,{"$f":"IF(OR(M101>O101,R101>T101),L101,IF(OR(M101<O101,R101<T101),P101,\"\"))","v":""},{"$f":"IF(AND(M101<>\"\",M101=O101,R101=T101),L101,\"\")","v":"Daniela Grünberg (sch)"},{"$f":"IF(AND(M101<>\"\",M101=O101,R101=T101),P101,\"\")","v":"Alfred Strommer (wie)"},{"$f":"IF(OR(M101<O101,R101<T101),L101,IF(OR(M101>O101,R101>T101),P101,\"\"))","v":""},{"$f":"IF(OR($AB101=\"\",$AB101=\"V\"),\"\",IF(MOD($AB101,10)=1,\"XXX\",\"\"))","v":""},{"$f":"IF(OR($AB101=\"\",$AB101=\"V\"),\"\",IF(MOD($AB101,100)>=10,\"XXX\",\"\"))","v":""},{"$f":"IF(OR($AB101=\"\",$AB101=\"V\"),\"\",IF(MOD($AB101,1000)>=100,\"XXX\",\"\"))","v":""},{"$f":"IF(OR($AB101=\"\",$AB101=\"V\"),\"\",IF(MOD($AB101,10000)>=1000,\"XXX\",\"\"))","v":""},{"$f":"IF(OR($AB101=\"\",$AB101=\"V\"),\"\",IF(MOD($AB101,100000)>=10000,\"XXX\",\"\"))","v":""}]
[{"$f":"A101","v":"11:40:00"},null,{"$f":"C101","v":"Team - Group 2 - Rd 1"},null,null,null,{"$f":"G100&2","v":"TG2"},null,null,null,null,"Peter Erb (sub)",0,"-",3,"Gábor Baross (wie)",null,null,null,null,null,"Peter Erb (sub)11:40","Gábor Baross (wie)11:40",{"$f":"IF(L102=\"\",0,COUNTIF(PlayersAndHoursCol1,L102&TEXT($A102,\"hh:mm\"))+COUNTIF(PlayersAndHoursCol2,L102&TEXT($A102,\"hh:mm\")))","v":1},{"$f":"IF(P102=\"\",0,COUNTIF(PlayersAndHoursCol1,P102&TEXT($A102,\"hh:mm\"))+COUNTIF(PlayersAndHoursCol2,P102&TEXT($A102,\"hh:mm\")))","v":1},{"$f":"IF(AA102=\"\",FALSE,NOT(AND(ISNA(MATCH(AA102&TEXT($A102,\"hh:mm\"),PlayersAndHoursCol1,0)),ISNA(MATCH(AA102&TEXT($A102,\"hh:mm\"),PlayersAndHoursCol2,0)),COUNTIF(AD:AD,AA102&$A102)<=1)))","v":false},null,null,null,null,null,null,null,{"$f":"IF(OR(M102>O102,R102>T102),L102,IF(OR(M102<O102,R102<T102),P102,\"\"))","v":"Gábor Baross (wie)"},{"$f":"IF(AND(M102<>\"\",M102=O102,R102=T102),L102,\"\")","v":""},{"$f":"IF(AND(M102<>\"\",M102=O102,R102=T102),P102,\"\")","v":""},{"$f":"IF(OR(M102<O102,R102<T102),L102,IF(OR(M102>O102,R102>T102),P102,\"\"))","v":"Peter Erb (sub)"},{"$f":"IF(OR($AB102=\"\",$AB102=\"V\"),\"\",IF(MOD($AB102,10)=1,\"XXX\",\"\"))","v":""},{"$f":"IF(OR($AB102=\"\",$AB102=\"V\"),\"\",IF(MOD($AB102,100)>=10,\"XXX\",\"\"))","v":""},{"$f":"IF(OR($AB102=\"\",$AB102=\"V\"),\"\",IF(MOD($AB102,1000)>=100,\"XXX\",\"\"))","v":""},{"$f":"IF(OR($AB102=\"\",$AB102=\"V\"),\"\",IF(MOD($AB102,10000)>=1000,\"XXX\",\"\"))","v":""},{"$f":"IF(OR($AB102=\"\",$AB102=\"V\"),\"\",IF(MOD($AB102,100000)>=10000,\"XXX\",\"\"))","v":""}]
[{"$f":"A102","v":"11:40:00"},null,{"$f":"C102","v":"Team - Group 2 - Rd 1"},null,null,null,{"$f":"G100&3","v":"TG3"},null,null,null,null,"Marcel Schulz (sch)",3,"-",2,"Igor Ljubisavljevic (wie)",null,null,null,null,null,"Marcel Schulz (sch)11:40","Igor Ljubisavljevic (wie)11:40",{"$f":"IF(L103=\"\",0,COUNTIF(PlayersAndHoursCol1,L103&TEXT($A103,\"hh:mm\"))+COUNTIF(PlayersAndHoursCol2,L103&TEXT($A103,\"hh:mm\")))","v":1},{"$f":"IF(P103=\"\",0,COUNTIF(PlayersAndHoursCol1,P103&TEXT($A103,\"hh:mm\"))+COUNTIF(PlayersAndHoursCol2,P103&TEXT($A103,\"hh:mm\")))","v":1},{"$f":"IF(AA103=\"\",FALSE,NOT(AND(ISNA(MATCH(AA103&TEXT($A103,\"hh:mm\"),PlayersAndHoursCol1,0)),ISNA(MATCH(AA103&TEXT($A103,\"hh:mm\"),PlayersAndHoursCol2,0)),COUNTIF(AD:AD,AA103&$A103)<=1)))","v":false},null,null,null,null,null,null,null,{"$f":"IF(OR(M103>O103,R103>T103),L103,IF(OR(M103<O103,R103<T103),P103,\"\"))","v":"Marcel Schulz (sch)"},{"$f":"IF(AND(M103<>\"\",M103=O103,R103=T103),L103,\"\")","v":""},{"$f":"IF(AND(M103<>\"\",M103=O103,R103=T103),P103,\"\")","v":""},{"$f":"IF(OR(M103<O103,R103<T103),L103,IF(OR(M103>O103,R103>T103),P103,\"\"))","v":"Igor Ljubisavljevic (wie)"},{"$f":"IF(OR($AB103=\"\",$AB103=\"V\"),\"\",IF(MOD($AB103,10)=1,\"XXX\",\"\"))","v":""},{"$f":"IF(OR($AB103=\"\",$AB103=\"V\"),\"\",IF(MOD($AB103,100)>=10,\"XXX\",\"\"))","v":""},{"$f":"IF(OR($AB103=\"\",$AB103=\"V\"),\"\",IF(MOD($AB103,1000)>=100,\"XXX\",\"\"))","v":""},{"$f":"IF(OR($AB103=\"\",$AB103=\"V\"),\"\",IF(MOD($AB103,10000)>=1000,\"XXX\",\"\"))","v":""},{"$f":"IF(OR($AB103=\"\",$AB103=\"V\"),\"\",IF(MOD($AB103,100000)>=10000,\"XXX\",\"\"))","v":""}]
[{"$f":"A103","v":"11:40:00"},null,{"$f":"C103","v":"Team - Group 2 - Rd 1"},null,null,null,{"$f":"G100&4","v":"TG4"},null,null,null,null,"Fabio Domenico ()",2,"-",0,"Florian Daxböck (wie)",null,null,null,null,null,"Fabio Domenico ()11:40","Florian Daxböck (wie)11:40",{"$f":"IF(L104=\"\",0,COUNTIF(PlayersAndHoursCol1,L104&TEXT($A104,\"hh:mm\"))+COUNTIF(PlayersAndHoursCol2,L104&TEXT($A104,\"hh:mm\")))","v":1},{"$f":"IF(P104=\"\",0,COUNTIF(PlayersAndHoursCol1,P104&TEXT($A104,\"hh:mm\"))+COUNTIF(PlayersAndHoursCol2,P104&TEXT($A104,\"hh:mm\")))","v":1},{"$f":"IF(AA104=\"\",FALSE,NOT(AND(ISNA(MATCH(AA104&TEXT($A104,\"hh:mm\"),PlayersAndHoursCol1,0)),ISNA(MATCH(AA104&TEXT($A104,\"hh:mm\"),PlayersAndHoursCol2,0)),COUNTIF(AD:AD,AA104&$A104)<=1)))","v":false},null,null,null,null,null,null,null,{"$f":"IF(OR(M104>O104,R104>T104),L104,IF(OR(M104<O104,R104<T104),P104,\"\"))","v":"Fabio Domenico ()"},{"$f":"IF(AND(M104<>\"\",M104=O104,R104=T104),L104,\"\")","v":""},{"$f":"IF(AND(M104<>\"\",M104=O104,R104=T104),P104,\"\")","v":""},{"$f":"IF(OR(M104<O104,R104<T104),L104,IF(OR(M104>O104,R104>T104),P104,\"\"))","v":"Florian Daxböck (wie)"},{"$f":"IF(OR($AB104=\"\",$AB104=\"V\"),\"\",IF(MOD($AB104,10)=1,\"XXX\",\"\"))","v":""},{"$f":"IF(OR($AB104=\"\",$AB104=\"V\"),\"\",IF(MOD($AB104,100)>=10,\"XXX\",\"\"))","v":""},{"$f":"IF(OR($AB104=\"\",$AB104=\"V\"),\"\",IF(MOD($AB104,1000)>=100,\"XXX\",\"\"))","v":""},{"$f":"IF(OR($AB104=\"\",$AB104=\"V\"),\"\",IF(MOD($AB104,10000)>=1000,\"XXX\",\"\"))","v":""},{"$f":"IF(OR($AB104=\"\",$AB104=\"V\"),\"\",IF(MOD($AB104,100000)>=10000,\"XXX\",\"\"))","v":""}]
[{"$f":"A104","v":"11:40:00"},null,null,null,{"$f":"N_Substitute","v":"Substitute"},null,{"$f":"G100&\"SB1\"","v":"TGSB1"},null,null,null,null,"Robert Green (nfc)",null,null,null,null,null,null,null,null,null,"Robert Green (nfc)11:40","11:40",{"$f":"IF(L105=\"\",0,COUNTIF(PlayersAndHoursCol1,L105&TEXT($A105,\"hh:mm\"))+COUNTIF(PlayersAndHoursCol2,L105&TEXT($A105,\"hh:mm\")))","v":1},{"$f":"IF(P105=\"\",0,COUNTIF(PlayersAndHoursCol1,P105&TEXT($A105,\"hh:mm\"))+COUNTIF(PlayersAndHoursCol2,P105&TEXT($A105,\"hh:mm\")))","v":0}]
[{"$f":"A100","v":"11:40:00"},null,null,null,{"$f":"N_Substitute","v":"Substitute"},null,{"$f":"G100&\"SB2\"","v":"TGSB2"},null,null,null,null,null,null,null,null,null,null,null,null,null,null,"11:40","11:40",{"$f":"IF(L106=\"\",0,COUNTIF(PlayersAndHoursCol1,L106&TEXT($A106,\"hh:mm\"))+COUNTIF(PlayersAndHoursCol2,L106&TEXT($A106,\"hh:mm\")))","v":0},{"$f":"IF(P106=\"\",0,COUNTIF(PlayersAndHoursCol1,P106&TEXT($A106,\"hh:mm\"))+COUNTIF(PlayersAndHoursCol2,P106&TEXT($A106,\"hh:mm\")))","v":0}]
[{"$f":"OFFSET(A107,-1,0)","v":"11:40:00"},null,{"$f":"\"Team - \" & N_Group & \" 1\" & \" - \" & N_Round & \" 1\"","v":"Team - Group 1 - Rd 1"},null,null,null,"TG",{"$f":"IF(K107=\"\",\"\",SUBSTITUTE(MID(K107,1,SEARCH(\"!\",K107,1)-1),\"'\",\"\"))","v":"Team"},{"$f":"IF(K107=\"\",\"\",CELL(\"row\",INDIRECT(K107)))","v":20},{"$f":"IF(K107=\"\",\"\",CELL(\"col\",INDIRECT(K107)))","v":25},{"$f":"MID(Lire_Formule(L107),2,10000)","v":"Team!Y20"},{"$f":"Team!Y20","v":"TSC Royal 78 Kaisermühlen (roy)"},1,"-",1,{"$f":"IF(K107=\"\",\"\",IF(RIGHT(G107,1)=\"T\",INDIRECT(ADDRESS(I107+2,J107,4,TRUE,H107)),INDIRECT(ADDRESS(I107,J107+4,4,TRUE,H107))))","v":"Bormla SC (bor)"},null,{"$f":"IF(M107=\"\",\"\",SUM(M108:M111))","v":8},null,{"$f":"IF(O107=\"\",\"\",SUM(O108:O111))","v":8},null,{"$f":"L107&TEXT(A107,\"hh:mm\")","v":"TSC Royal 78 Kaisermühlen (roy)11:40"},{"$f":"P107&TEXT(A107,\"hh:mm\")","v":"Bormla SC (bor)11:40"},{"$f":"IF(L107=\"\",0,COUNTIF(PlayersAndHoursCol1,L107&TEXT($A107,\"hh:mm\"))+COUNTIF(PlayersAndHoursCol2,L107&TEXT($A107,\"hh:mm\")))","v":1},{"$f":"IF(P107=\"\",0,COUNTIF(PlayersAndHoursCol1,P107&TEXT($A107,\"hh:mm\"))+COUNTIF(PlayersAndHoursCol2,P107&TEXT($A107,\"hh:mm\")))","v":1},{"$f":"IF(AA107=\"\",FALSE,NOT(AND(ISNA(MATCH(AA107&TEXT($A107,\"hh:mm\"),PlayersAndHoursCol1,0)),ISNA(MATCH(AA107&TEXT($A107,\"hh:mm\"),PlayersAndHoursCol2,0)),COUNTIF(AD:AD,AA107&$A107)<=1)))","v":false},"Roligans Ilioupolis TSC (rol)","V",null,{"$f":"AA107&A107","v":"Roligans Ilioupolis TSC (rol)0,486111111111111"},"Team","Groups",1,{"$f":"IF(OR(M107>O107,R107>T107),L107,IF(OR(M107<O107,R107<T107),P107,\"\"))","v":""},{"$f":"IF(AND(M107<>\"\",M107=O107,R107=T107),L107,\"\")","v":"TSC Royal 78 Kaisermühlen (roy)"},{"$f":"IF(AND(M107<>\"\",M107=O107,R107=T107),P107,\"\")","v":"Bormla SC (bor)"},{"$f":"IF(OR(M107<O107,R107<T107),L107,IF(OR(M107>O107,R107>T107),P107,\"\"))","v":""},{"$f":"IF(OR($AB107=\"\",$AB107=\"V\"),\"\",IF(MOD($AB107,10)=1,\"XXX\",\"\"))","v":""},{"$f":"IF(OR($AB107=\"\",$AB107=\"V\"),\"\",IF(MOD($AB107,100)>=10,\"XXX\",\"\"))","v":""},{"$f":"IF(OR($AB107=\"\",$AB107=\"V\"),\"\",IF(MOD($AB107,1000)>=100,\"XXX\",\"\"))","v":""},{"$f":"IF(OR($AB107=\"\",$AB107=\"V\"),\"\",IF(MOD($AB107,10000)>=1000,\"XXX\",\"\"))","v":""},{"$f":"IF(OR($AB107=\"\",$AB107=\"V\"),\"\",IF(MOD($AB107,100000)>=10000,\"XXX\",\"\"))","v":""}]
[{"$f":"A107","v":"11:40:00"},null,{"$f":"C107","v":"Team - Group 1 - Rd 1"},null,null,null,{"$f":"G107&1","v":"TG1"},null,null,null,null,"Stefan Sandner (roy)",2,"-",1,"Jean Carl Tabone (bor)",null,null,null,null,null,"Stefan Sandner (roy)11:40","Jean Carl Tabone (bor)11:40",{"$f":"IF(L108=\"\",0,COUNTIF(PlayersAndHoursCol1,L108&TEXT($A108,\"hh:mm\"))+COUNTIF(PlayersAndHoursCol2,L108&TEXT($A108,\"hh:mm\")))","v":1},{"$f":"IF(P108=\"\",0,COUNTIF(PlayersAndHoursCol1,P108&TEXT($A108,\"hh:mm\"))+COUNTIF(PlayersAndHoursCol2,P108&TEXT($A108,\"hh:mm\")))","v":1},{"$f":"IF(AA108=\"\",FALSE,NOT(AND(ISNA(MATCH(AA108&TEXT($A108,\"hh:mm\"),PlayersAndHoursCol1,0)),ISNA(MATCH(AA108&TEXT($A108,\"hh:mm\"),PlayersAndHoursCol2,0)),COUNTIF(AD:AD,AA108&$A108)<=1)))","v":false},null,null,null,null,null,null,null,{"$f":"IF(OR(M108>O108,R108>T108),L108,IF(OR(M108<O108,R108<T108),P108,\"\"))","v":"Stefan Sandner (roy)"},{"$f":"IF(AND(M108<>\"\",M108=O108,R108=T108),L108,\"\")","v":""},{"$f":"IF(AND(M108<>\"\",M108=O108,R108=T108),P108,\"\")","v":""},{"$f":"IF(OR(M108<O108,R108<T108),L108,IF(OR(M108>O108,R108>T108),P108,\"\"))","v":"Jean Carl Tabone (bor)"},{"$f":"IF(OR($AB108=\"\",$AB108=\"V\"),\"\",IF(MOD($AB108,10)=1,\"XXX\",\"\"))","v":""},{"$f":"IF(OR($AB108=\"\",$AB108=\"V\"),\"\",IF(MOD($AB108,100)>=10,\"XXX\",\"\"))","v":""},{"$f":"IF(OR($AB108=\"\",$AB108=\"V\"),\"\",IF(MOD($AB108,1000)>=100,\"XXX\",\"\"))","v":""},{"$f":"IF(OR($AB108=\"\",$AB108=\"V\"),\"\",IF(MOD($AB108,10000)>=1000,\"XXX\",\"\"))","v":""},{"$f":"IF(OR($AB108=\"\",$AB108=\"V\"),\"\",IF(MOD($AB108,100000)>=10000,\"XXX\",\"\"))","v":""}]
[{"$f":"A108","v":"11:40:00"},null,{"$f":"C108","v":"Team - Group 1 - Rd 1"},null,null,null,{"$f":"G107&2","v":"TG2"},null,null,null,null,"Murat Tünger (roy)",3,"-",3,"George Ebejer (bor)",null,null,null,null,null,"Murat Tünger (roy)11:40","George Ebejer (bor)11:40",{"$f":"IF(L109=\"\",0,COUNTIF(PlayersAndHoursCol1,L109&TEXT($A109,\"hh:mm\"))+COUNTIF(PlayersAndHoursCol2,L109&TEXT($A109,\"hh:mm\")))","v":1},{"$f":"IF(P109=\"\",0,COUNTIF(PlayersAndHoursCol1,P109&TEXT($A109,\"hh:mm\"))+COUNTIF(PlayersAndHoursCol2,P109&TEXT($A109,\"hh:mm\")))","v":1},{"$f":"IF(AA109=\"\",FALSE,NOT(AND(ISNA(MATCH(AA109&TEXT($A109,\"hh:mm\"),PlayersAndHoursCol1,0)),ISNA(MATCH(AA109&TEXT($A109,\"hh:mm\"),PlayersAndHoursCol2,0)),COUNTIF(AD:AD,AA109&$A109)<=1)))","v":false},null,null,null,null,null,null,null,{"$f":"IF(OR(M109>O109,R109>T109),L109,IF(OR(M109<O109,R109<T109),P109,\"\"))","v":""},{"$f":"IF(AND(M109<>\"\",M109=O109,R109=T109),L109,\"\")","v":"Murat Tünger (roy)"},{"$f":"IF(AND(M109<>\"\",M109=O109,R109=T109),P109,\"\")","v":"George Ebejer (bor)"},{"$f":"IF(OR(M109<O109,R109<T109),L109,IF(OR(M109>O109,R109>T109),P109,\"\"))","v":""},{"$f":"IF(OR($AB109=\"\",$AB109=\"V\"),\"\",IF(MOD($AB109,10)=1,\"XXX\",\"\"))","v":""},{"$f":"IF(OR($AB109=\"\",$AB109=\"V\"),\"\",IF(MOD($AB109,100)>=10,\"XXX\",\"\"))","v":""},{"$f":"IF(OR($AB109=\"\",$AB109=\"V\"),\"\",IF(MOD($AB109,1000)>=100,\"XXX\",\"\"))","v":""},{"$f":"IF(OR($AB109=\"\",$AB109=\"V\"),\"\",IF(MOD($AB109,10000)>=1000,\"XXX\",\"\"))","v":""},{"$f":"IF(OR($AB109=\"\",$AB109=\"V\"),\"\",IF(MOD($AB109,100000)>=10000,\"XXX\",\"\"))","v":""}]
[{"$f":"A109","v":"11:40:00"},null,{"$f":"C109","v":"Team - Group 1 - Rd 1"},null,null,null,{"$f":"G107&3","v":"TG3"},null,null,null,null,"Alexander Haas (roy)",1,"-",1,"Wolfgang Haas (bor)",null,null,null,null,null,"Alexander Haas (roy)11:40","Wolfgang Haas (bor)11:40",{"$f":"IF(L110=\"\",0,COUNTIF(PlayersAndHoursCol1,L110&TEXT($A110,\"hh:mm\"))+COUNTIF(PlayersAndHoursCol2,L110&TEXT($A110,\"hh:mm\")))","v":1},{"$f":"IF(P110=\"\",0,COUNTIF(PlayersAndHoursCol1,P110&TEXT($A110,\"hh:mm\"))+COUNTIF(PlayersAndHoursCol2,P110&TEXT($A110,\"hh:mm\")))","v":1},{"$f":"IF(AA110=\"\",FALSE,NOT(AND(ISNA(MATCH(AA110&TEXT($A110,\"hh:mm\"),PlayersAndHoursCol1,0)),ISNA(MATCH(AA110&TEXT($A110,\"hh:mm\"),PlayersAndHoursCol2,0)),COUNTIF(AD:AD,AA110&$A110)<=1)))","v":false},null,null,null,null,null,null,null,{"$f":"IF(OR(M110>O110,R110>T110),L110,IF(OR(M110<O110,R110<T110),P110,\"\"))","v":""},{"$f":"IF(AND(M110<>\"\",M110=O110,R110=T110),L110,\"\")","v":"Alexander Haas (roy)"},{"$f":"IF(AND(M110<>\"\",M110=O110,R110=T110),P110,\"\")","v":"Wolfgang Haas (bor)"},{"$f":"IF(OR(M110<O110,R110<T110),L110,IF(OR(M110>O110,R110>T110),P110,\"\"))","v":""},{"$f":"IF(OR($AB110=\"\",$AB110=\"V\"),\"\",IF(MOD($AB110,10)=1,\"XXX\",\"\"))","v":""},{"$f":"IF(OR($AB110=\"\",$AB110=\"V\"),\"\",IF(MOD($AB110,100)>=10,\"XXX\",\"\"))","v":""},{"$f":"IF(OR($AB110=\"\",$AB110=\"V\"),\"\",IF(MOD($AB110,1000)>=100,\"XXX\",\"\"))","v":""},{"$f":"IF(OR($AB110=\"\",$AB110=\"V\"),\"\",IF(MOD($AB110,10000)>=1000,\"XXX\",\"\"))","v":""},{"$f":"IF(OR($AB110=\"\",$AB110=\"V\"),\"\",IF(MOD($AB110,100000)>=10000,\"XXX\",\"\"))","v":""}]
[{"$f":"A110","v":"11:40:00"},null,{"$f":"C110","v":"Team - Group 1 - Rd 1"},null,null,null,{"$f":"G107&4","v":"TG4"},null,null,null,null,"Wolfgang Leitner (roy)",2,"-",3,"Charles Aquilina (bor)",null,null,null,null,null,"Wolfgang Leitner (roy)11:40","Charles Aquilina (bor)11:40",{"$f":"IF(L111=\"\",0,COUNTIF(PlayersAndHoursCol1,L111&TEXT($A111,\"hh:mm\"))+COUNTIF(PlayersAndHoursCol2,L111&TEXT($A111,\"hh:mm\")))","v":1},{"$f":"IF(P111=\"\",0,COUNTIF(PlayersAndHoursCol1,P111&TEXT($A111,\"hh:mm\"))+COUNTIF(PlayersAndHoursCol2,P111&TEXT($A111,\"hh:mm\")))","v":1},{"$f":"IF(AA111=\"\",FALSE,NOT(AND(ISNA(MATCH(AA111&TEXT($A111,\"hh:mm\"),PlayersAndHoursCol1,0)),ISNA(MATCH(AA111&TEXT($A111,\"hh:mm\"),PlayersAndHoursCol2,0)),COUNTIF(AD:AD,AA111&$A111)<=1)))","v":false},null,null,null,null,null,null,null,{"$f":"IF(OR(M111>O111,R111>T111),L111,IF(OR(M111<O111,R111<T111),P111,\"\"))","v":"Charles Aquilina (bor)"},{"$f":"IF(AND(M111<>\"\",M111=O111,R111=T111),L111,\"\")","v":""},{"$f":"IF(AND(M111<>\"\",M111=O111,R111=T111),P111,\"\")","v":""},{"$f":"IF(OR(M111<O111,R111<T111),L111,IF(OR(M111>O111,R111>T111),P111,\"\"))","v":"Wolfgang Leitner (roy)"},{"$f":"IF(OR($AB111=\"\",$AB111=\"V\"),\"\",IF(MOD($AB111,10)=1,\"XXX\",\"\"))","v":""},{"$f":"IF(OR($AB111=\"\",$AB111=\"V\"),\"\",IF(MOD($AB111,100)>=10,\"XXX\",\"\"))","v":""},{"$f":"IF(OR($AB111=\"\",$AB111=\"V\"),\"\",IF(MOD($AB111,1000)>=100,\"XXX\",\"\"))","v":""},{"$f":"IF(OR($AB111=\"\",$AB111=\"V\"),\"\",IF(MOD($AB111,10000)>=1000,\"XXX\",\"\"))","v":""},{"$f":"IF(OR($AB111=\"\",$AB111=\"V\"),\"\",IF(MOD($AB111,100000)>=10000,\"XXX\",\"\"))","v":""}]
[{"$f":"A111","v":"11:40:00"},null,null,null,{"$f":"N_Substitute","v":"Substitute"},null,{"$f":"G107&\"SB1\"","v":"TGSB1"},null,null,null,null,"Daniel Vranovitz (roy)",null,null,null,"Christian Haas (bor)",null,null,null,null,null,"Daniel Vranovitz (roy)11:40","Christian Haas (bor)11:40",{"$f":"IF(L112=\"\",0,COUNTIF(PlayersAndHoursCol1,L112&TEXT($A112,\"hh:mm\"))+COUNTIF(PlayersAndHoursCol2,L112&TEXT($A112,\"hh:mm\")))","v":1},{"$f":"IF(P112=\"\",0,COUNTIF(PlayersAndHoursCol1,P112&TEXT($A112,\"hh:mm\"))+COUNTIF(PlayersAndHoursCol2,P112&TEXT($A112,\"hh:mm\")))","v":1}]
[{"$f":"A107","v":"11:40:00"},null,null,null,{"$f":"N_Substitute","v":"Substitute"},null,{"$f":"G107&\"SB2\"","v":"TGSB2"},null,null,null,null,null,null,null,null,"Jason Pisani (bor)",null,null,null,null,null,"11:40","Jason Pisani (bor)11:40",{"$f":"IF(L113=\"\",0,COUNTIF(PlayersAndHoursCol1,L113&TEXT($A113,\"hh:mm\"))+COUNTIF(PlayersAndHoursCol2,L113&TEXT($A113,\"hh:mm\")))","v":0},{"$f":"IF(P113=\"\",0,COUNTIF(PlayersAndHoursCol1,P113&TEXT($A113,\"hh:mm\"))+COUNTIF(PlayersAndHoursCol2,P113&TEXT($A113,\"hh:mm\")))","v":1}]
[{"$f":"A92+P92","v":"12:30:00"},null,{"$f":"N_Session","v":"Session Nbr "},null,{"$f":"E92+ 1","v":6},null,{"$f":"\"S\" & RIGHT(G92, LEN(G92)-1) + 1","v":"S6"},null,null,null,null,{"$f":"N_Duration","v":"Duration"},null,":",null,"00:50:00"]
[{"$f":"OFFSET(A115,-1,0)","v":"12:30:00"},null,{"$f":"\"Team - \" & N_Group & \" 2\" & \" - \" & N_Round & \" 5\"","v":"Team - Group 2 - Rd 5"},null,null,null,"TG",{"$f":"IF(K115=\"\",\"\",SUBSTITUTE(MID(K115,1,SEARCH(\"!\",K115,1)-1),\"'\",\"\"))","v":"Team"},{"$f":"IF(K115=\"\",\"\",CELL(\"row\",INDIRECT(K115)))","v":149},{"$f":"IF(K115=\"\",\"\",CELL(\"col\",INDIRECT(K115)))","v":25},{"$f":"MID(Lire_Formule(L115),2,10000)","v":"Team!Y149"},{"$f":"Team!Y149","v":"ST Stembert (ste)"},3,"-",1,{"$f":"IF(K115=\"\",\"\",IF(RIGHT(G115,1)=\"T\",INDIRECT(ADDRESS(I115+2,J115,4,TRUE,H115)),INDIRECT(ADDRESS(I115,J115+4,4,TRUE,H115))))","v":"Barbarian Mixed Team"},null,{"$f":"IF(M115=\"\",\"\",SUM(M116:M119))","v":11},null,{"$f":"IF(O115=\"\",\"\",SUM(O116:O119))","v":3},null,{"$f":"L115&TEXT(A115,\"hh:mm\")","v":"ST Stembert (ste)12:30"},{"$f":"P115&TEXT(A115,\"hh:mm\")","v":"Barbarian Mixed Team12:30"},{"$f":"IF(L115=\"\",0,COUNTIF(PlayersAndHoursCol1,L115&TEXT($A115,\"hh:mm\"))+COUNTIF(PlayersAndHoursCol2,L115&TEXT($A115,\"hh:mm\")))","v":1},{"$f":"IF(P115=\"\",0,COUNTIF(PlayersAndHoursCol1,P115&TEXT($A115,\"hh:mm\"))+COUNTIF(PlayersAndHoursCol2,P115&TEXT($A115,\"hh:mm\")))","v":1},{"$f":"IF(AA115=\"\",FALSE,NOT(AND(ISNA(MATCH(AA115&TEXT($A115,\"hh:mm\"),PlayersAndHoursCol1,0)),ISNA(MATCH(AA115&TEXT($A115,\"hh:mm\"),PlayersAndHoursCol2,0)),COUNTIF(AD:AD,AA115&$A115)<=1)))","v":false},"Atlas FTC (atl)","V",null,{"$f":"AA115&A115","v":"Atlas FTC (atl)0,520833333333333"},"Team","Groups",5,{"$f":"IF(OR(M115>O115,R115>T115),L115,IF(OR(M115<O115,R115<T115),P115,\"\"))","v":"ST Stembert (ste)"},{"$f":"IF(AND(M115<>\"\",M115=O115,R115=T115),L115,\"\")","v":""},{"$f":"IF(AND(M115<>\"\",M115=O115,R115=T115),P115,\"\")","v":""},{"$f":"IF(OR(M115<O115,R115<T115),L115,IF(OR(M115>O115,R115>T115),P115,\"\"))","v":"Barbarian Mixed Team"},{"$f":"IF(OR($AB115=\"\",$AB115=\"V\"),\"\",IF(MOD($AB115,10)=1,\"XXX\",\"\"))","v":""},{"$f":"IF(OR($AB115=\"\",$AB115=\"V\"),\"\",IF(MOD($AB115,100)>=10,\"XXX\",\"\"))","v":""},{"$f":"IF(OR($AB115=\"\",$AB115=\"V\"),\"\",IF(MOD($AB115,1000)>=100,\"XXX\",\"\"))","v":""},{"$f":"IF(OR($AB115=\"\",$AB115=\"V\"),\"\",IF(MOD($AB115,10000)>=1000,\"XXX\",\"\"))","v":""},{"$f":"IF(OR($AB115=\"\",$AB115=\"V\"),\"\",IF(MOD($AB115,100000)>=10000,\"XXX\",\"\"))","v":""}]
[{"$f":"A115","v":"12:30:00"},null,{"$f":"C115","v":"Team - Group 2 - Rd 5"},null,null,null,{"$f":"G115&1","v":"TG1"},null,null,null,null,"John Zammit (ste)",2,"-",1,"Robert Green (nfc)",null,null,null,null,null,"John Zammit (ste)12:30","Robert Green (nfc)12:30",1,1,{"$f":"IF(AA116=\"\",FALSE,NOT(AND(ISNA(MATCH(AA116&TEXT($A116,\"hh:mm\"),PlayersAndHoursCol1,0)),ISNA(MATCH(AA116&TEXT($A116,\"hh:mm\"),PlayersAndHoursCol2,0)),COUNTIF(AD:AD,AA116&$A116)<=1)))","v":false},null,null,null,null,null,null,null,{"$f":"IF(OR(M116>O116,R116>T116),L116,IF(OR(M116<O116,R116<T116),P116,\"\"))","v":"John Zammit (ste)"},{"$f":"IF(AND(M116<>\"\",M116=O116,R116=T116),L116,\"\")","v":""},{"$f":"IF(AND(M116<>\"\",M116=O116,R116=T116),P116,\"\")","v":""},{"$f":"IF(OR(M116<O116,R116<T116),L116,IF(OR(M116>O116,R116>T116),P116,\"\"))","v":"Robert Green (nfc)"},{"$f":"IF(OR($AB116=\"\",$AB116=\"V\"),\"\",IF(MOD($AB116,10)=1,\"XXX\",\"\"))","v":""},{"$f":"IF(OR($AB116=\"\",$AB116=\"V\"),\"\",IF(MOD($AB116,100)>=10,\"XXX\",\"\"))","v":""},{"$f":"IF(OR($AB116=\"\",$AB116=\"V\"),\"\",IF(MOD($AB116,1000)>=100,\"XXX\",\"\"))","v":""},{"$f":"IF(OR($AB116=\"\",$AB116=\"V\"),\"\",IF(MOD($AB116,10000)>=1000,\"XXX\",\"\"))","v":""},{"$f":"IF(OR($AB116=\"\",$AB116=\"V\"),\"\",IF(MOD($AB116,100000)>=10000,\"XXX\",\"\"))","v":""}]
[{"$f":"A116","v":"12:30:00"},null,{"$f":"C116","v":"Team - Group 2 - Rd 5"},null,null,null,{"$f":"G115&2","v":"TG2"},null,null,null,null,"Sébastien Rochez (ste)",5,"-",0,"Fabio Domenico ()",null,null,null,null,null,"Sébastien Rochez (ste)12:30","Fabio Domenico ()12:30",1,1,{"$f":"IF(AA117=\"\",FALSE,NOT(AND(ISNA(MATCH(AA117&TEXT($A117,\"hh:mm\"),PlayersAndHoursCol1,0)),ISNA(MATCH(AA117&TEXT($A117,\"hh:mm\"),PlayersAndHoursCol2,0)),COUNTIF(AD:AD,AA117&$A117)<=1)))","v":false},null,null,null,null,null,null,null,{"$f":"IF(OR(M117>O117,R117>T117),L117,IF(OR(M117<O117,R117<T117),P117,\"\"))","v":"Sébastien Rochez (ste)"},{"$f":"IF(AND(M117<>\"\",M117=O117,R117=T117),L117,\"\")","v":""},{"$f":"IF(AND(M117<>\"\",M117=O117,R117=T117),P117,\"\")","v":""},{"$f":"IF(OR(M117<O117,R117<T117),L117,IF(OR(M117>O117,R117>T117),P117,\"\"))","v":"Fabio Domenico ()"},{"$f":"IF(OR($AB117=\"\",$AB117=\"V\"),\"\",IF(MOD($AB117,10)=1,\"XXX\",\"\"))","v":""},{"$f":"IF(OR($AB117=\"\",$AB117=\"V\"),\"\",IF(MOD($AB117,100)>=10,\"XXX\",\"\"))","v":""},{"$f":"IF(OR($AB117=\"\",$AB117=\"V\"),\"\",IF(MOD($AB117,1000)>=100,\"XXX\",\"\"))","v":""},{"$f":"IF(OR($AB117=\"\",$AB117=\"V\"),\"\",IF(MOD($AB117,10000)>=1000,\"XXX\",\"\"))","v":""},{"$f":"IF(OR($AB117=\"\",$AB117=\"V\"),\"\",IF(MOD($AB117,100000)>=10000,\"XXX\",\"\"))","v":""}]
[{"$f":"A117","v":"12:30:00"},null,{"$f":"C117","v":"Team - Group 2 - Rd 5"},null,null,null,{"$f":"G115&3","v":"TG3"},null,null,null,null,"Pascal Scheen (ste)",1,"-",2,"Marcel Schulz (sch)",null,null,null,null,null,"Pascal Scheen (ste)12:30","Marcel Schulz (sch)12:30",1,1,{"$f":"IF(AA118=\"\",FALSE,NOT(AND(ISNA(MATCH(AA118&TEXT($A118,\"hh:mm\"),PlayersAndHoursCol1,0)),ISNA(MATCH(AA118&TEXT($A118,\"hh:mm\"),PlayersAndHoursCol2,0)),COUNTIF(AD:AD,AA118&$A118)<=1)))","v":false},null,null,null,null,null,null,null,{"$f":"IF(OR(M118>O118,R118>T118),L118,IF(OR(M118<O118,R118<T118),P118,\"\"))","v":"Marcel Schulz (sch)"},{"$f":"IF(AND(M118<>\"\",M118=O118,R118=T118),L118,\"\")","v":""},{"$f":"IF(AND(M118<>\"\",M118=O118,R118=T118),P118,\"\")","v":""},{"$f":"IF(OR(M118<O118,R118<T118),L118,IF(OR(M118>O118,R118>T118),P118,\"\"))","v":"Pascal Scheen (ste)"},{"$f":"IF(OR($AB118=\"\",$AB118=\"V\"),\"\",IF(MOD($AB118,10)=1,\"XXX\",\"\"))","v":""},{"$f":"IF(OR($AB118=\"\",$AB118=\"V\"),\"\",IF(MOD($AB118,100)>=10,\"XXX\",\"\"))","v":""},{"$f":"IF(OR($AB118=\"\",$AB118=\"V\"),\"\",IF(MOD($AB118,1000)>=100,\"XXX\",\"\"))","v":""},{"$f":"IF(OR($AB118=\"\",$AB118=\"V\"),\"\",IF(MOD($AB118,10000)>=1000,\"XXX\",\"\"))","v":""},{"$f":"IF(OR($AB118=\"\",$AB118=\"V\"),\"\",IF(MOD($AB118,100000)>=10000,\"XXX\",\"\"))","v":""}]
[{"$f":"A118","v":"12:30:00"},null,{"$f":"C118","v":"Team - Group 2 - Rd 5"},null,null,null,{"$f":"G115&4","v":"TG4"},null,null,null,null,"Noah Janssens (ste)",3,"-",0,"Peter Erb (sub)",null,null,null,null,null,"Noah Janssens (ste)12:30","Peter Erb (sub)12:30",1,1,{"$f":"IF(AA119=\"\",FALSE,NOT(AND(ISNA(MATCH(AA119&TEXT($A119,\"hh:mm\"),PlayersAndHoursCol1,0)),ISNA(MATCH(AA119&TEXT($A119,\"hh:mm\"),PlayersAndHoursCol2,0)),COUNTIF(AD:AD,AA119&$A119)<=1)))","v":false},null,null,null,null,null,null,null,{"$f":"IF(OR(M119>O119,R119>T119),L119,IF(OR(M119<O119,R119<T119),P119,\"\"))","v":"Noah Janssens (ste)"},{"$f":"IF(AND(M119<>\"\",M119=O119,R119=T119),L119,\"\")","v":""},{"$f":"IF(AND(M119<>\"\",M119=O119,R119=T119),P119,\"\")","v":""},{"$f":"IF(OR(M119<O119,R119<T119),L119,IF(OR(M119>O119,R119>T119),P119,\"\"))","v":"Peter Erb (sub)"},{"$f":"IF(OR($AB119=\"\",$AB119=\"V\"),\"\",IF(MOD($AB119,10)=1,\"XXX\",\"\"))","v":""},{"$f":"IF(OR($AB119=\"\",$AB119=\"V\"),\"\",IF(MOD($AB119,100)>=10,\"XXX\",\"\"))","v":""},{"$f":"IF(OR($AB119=\"\",$AB119=\"V\"),\"\",IF(MOD($AB119,1000)>=100,\"XXX\",\"\"))","v":""},{"$f":"IF(OR($AB119=\"\",$AB119=\"V\"),\"\",IF(MOD($AB119,10000)>=1000,\"XXX\",\"\"))","v":""},{"$f":"IF(OR($AB119=\"\",$AB119=\"V\"),\"\",IF(MOD($AB119,100000)>=10000,\"XXX\",\"\"))","v":""}]
[{"$f":"A119","v":"12:30:00"},null,null,null,{"$f":"N_Substitute","v":"Substitute"},null,{"$f":"G115&\"SB1\"","v":"TGSB1"},null,null,null,null,null,null,null,null,"Daniela Grünberg (sch)",null,null,null,null,null,"12:30","Daniela Grünberg (sch)12:30",0,1]
[{"$f":"A115","v":"12:30:00"},null,null,null,{"$f":"N_Substitute","v":"Substitute"},null,{"$f":"G115&\"SB2\"","v":"TGSB2"},null,null,null,null,null,null,null,null,null,null,null,null,null,null,"12:30","12:30",0,0]
[{"$f":"OFFSET(A122,-1,0)","v":"12:30:00"},null,{"$f":"\"Team - \" & N_Group & \" 1\" & \" - \" & N_Round & \" 5\"","v":"Team - Group 1 - Rd 5"},null,null,null,"TG",{"$f":"IF(K122=\"\",\"\",SUBSTITUTE(MID(K122,1,SEARCH(\"!\",K122,1)-1),\"'\",\"\"))","v":"Team"},{"$f":"IF(K122=\"\",\"\",CELL(\"row\",INDIRECT(K122)))","v":69},{"$f":"IF(K122=\"\",\"\",CELL(\"col\",INDIRECT(K122)))","v":25},{"$f":"MID(Lire_Formule(L122),2,10000)","v":"Team!Y69"},{"$f":"Team!Y69","v":"Bormla SC (bor)"},4,"-",0,{"$f":"IF(K122=\"\",\"\",IF(RIGHT(G122,1)=\"T\",INDIRECT(ADDRESS(I122+2,J122,4,TRUE,H122)),INDIRECT(ADDRESS(I122,J122+4,4,TRUE,H122))))","v":"GCT DLF Gorizia (gor)"},null,{"$f":"IF(M122=\"\",\"\",SUM(M123:M126))","v":22},null,{"$f":"IF(O122=\"\",\"\",SUM(O123:O126))","v":2},null,{"$f":"L122&TEXT(A122,\"hh:mm\")","v":"Bormla SC (bor)12:30"},{"$f":"P122&TEXT(A122,\"hh:mm\")","v":"GCT DLF Gorizia (gor)12:30"},{"$f":"IF(L122=\"\",0,COUNTIF(PlayersAndHoursCol1,L122&TEXT($A122,\"hh:mm\"))+COUNTIF(PlayersAndHoursCol2,L122&TEXT($A122,\"hh:mm\")))","v":1},{"$f":"IF(P122=\"\",0,COUNTIF(PlayersAndHoursCol1,P122&TEXT($A122,\"hh:mm\"))+COUNTIF(PlayersAndHoursCol2,P122&TEXT($A122,\"hh:mm\")))","v":1},{"$f":"IF(AA122=\"\",FALSE,NOT(AND(ISNA(MATCH(AA122&TEXT($A122,\"hh:mm\"),PlayersAndHoursCol1,0)),ISNA(MATCH(AA122&TEXT($A122,\"hh:mm\"),PlayersAndHoursCol2,0)),COUNTIF(AD:AD,AA122&$A122)<=1)))","v":false},"TSC Royal 78 Kaisermühlen 2 (roy)","V",null,{"$f":"AA122&A122","v":"TSC Royal 78 Kaisermühlen 2 (roy)0,520833333333333"},"Team","Groups",5,{"$f":"IF(OR(M122>O122,R122>T122),L122,IF(OR(M122<O122,R122<T122),P122,\"\"))","v":"Bormla SC (bor)"},{"$f":"IF(AND(M122<>\"\",M122=O122,R122=T122),L122,\"\")","v":""},{"$f":"IF(AND(M122<>\"\",M122=O122,R122=T122),P122,\"\")","v":""},{"$f":"IF(OR(M122<O122,R122<T122),L122,IF(OR(M122>O122,R122>T122),P122,\"\"))","v":"GCT DLF Gorizia (gor)"},{"$f":"IF(OR($AB122=\"\",$AB122=\"V\"),\"\",IF(MOD($AB122,10)=1,\"XXX\",\"\"))","v":""},{"$f":"IF(OR($AB122=\"\",$AB122=\"V\"),\"\",IF(MOD($AB122,100)>=10,\"XXX\",\"\"))","v":""},{"$f":"IF(OR($AB122=\"\",$AB122=\"V\"),\"\",IF(MOD($AB122,1000)>=100,\"XXX\",\"\"))","v":""},{"$f":"IF(OR($AB122=\"\",$AB122=\"V\"),\"\",IF(MOD($AB122,10000)>=1000,\"XXX\",\"\"))","v":""},{"$f":"IF(OR($AB122=\"\",$AB122=\"V\"),\"\",IF(MOD($AB122,100000)>=10000,\"XXX\",\"\"))","v":""}]
[{"$f":"A122","v":"12:30:00"},null,{"$f":"C122","v":"Team - Group 1 - Rd 5"},null,null,null,{"$f":"G122&1","v":"TG1"},null,null,null,null,"Charles Aquilina (bor)",6,"-",0,"Michele Cerullo (gor)",null,null,null,null,null,"Charles Aquilina (bor)12:30","Michele Cerullo (gor)12:30",1,1,{"$f":"IF(AA123=\"\",FALSE,NOT(AND(ISNA(MATCH(AA123&TEXT($A123,\"hh:mm\"),PlayersAndHoursCol1,0)),ISNA(MATCH(AA123&TEXT($A123,\"hh:mm\"),PlayersAndHoursCol2,0)),COUNTIF(AD:AD,AA123&$A123)<=1)))","v":false},null,null,null,null,null,null,null,{"$f":"IF(OR(M123>O123,R123>T123),L123,IF(OR(M123<O123,R123<T123),P123,\"\"))","v":"Charles Aquilina (bor)"},{"$f":"IF(AND(M123<>\"\",M123=O123,R123=T123),L123,\"\")","v":""},{"$f":"IF(AND(M123<>\"\",M123=O123,R123=T123),P123,\"\")","v":""},{"$f":"IF(OR(M123<O123,R123<T123),L123,IF(OR(M123>O123,R123>T123),P123,\"\"))","v":"Michele Cerullo (gor)"},{"$f":"IF(OR($AB123=\"\",$AB123=\"V\"),\"\",IF(MOD($AB123,10)=1,\"XXX\",\"\"))","v":""},{"$f":"IF(OR($AB123=\"\",$AB123=\"V\"),\"\",IF(MOD($AB123,100)>=10,\"XXX\",\"\"))","v":""},{"$f":"IF(OR($AB123=\"\",$AB123=\"V\"),\"\",IF(MOD($AB123,1000)>=100,\"XXX\",\"\"))","v":""},{"$f":"IF(OR($AB123=\"\",$AB123=\"V\"),\"\",IF(MOD($AB123,10000)>=1000,\"XXX\",\"\"))","v":""},{"$f":"IF(OR($AB123=\"\",$AB123=\"V\"),\"\",IF(MOD($AB123,100000)>=10000,\"XXX\",\"\"))","v":""}]
[{"$f":"A123","v":"12:30:00"},null,{"$f":"C123","v":"Team - Group 1 - Rd 5"},null,null,null,{"$f":"G122&2","v":"TG2"},null,null,null,null,"Christian Haas (bor)",7,"-",2,"Marco Pinausi (gor)",null,null,null,null,null,"Christian Haas (bor)12:30","Marco Pinausi (gor)12:30",1,1,{"$f":"IF(AA124=\"\",FALSE,NOT(AND(ISNA(MATCH(AA124&TEXT($A124,\"hh:mm\"),PlayersAndHoursCol1,0)),ISNA(MATCH(AA124&TEXT($A124,\"hh:mm\"),PlayersAndHoursCol2,0)),COUNTIF(AD:AD,AA124&$A124)<=1)))","v":false},null,null,null,null,null,null,null,{"$f":"IF(OR(M124>O124,R124>T124),L124,IF(OR(M124<O124,R124<T124),P124,\"\"))","v":"Christian Haas (bor)"},{"$f":"IF(AND(M124<>\"\",M124=O124,R124=T124),L124,\"\")","v":""},{"$f":"IF(AND(M124<>\"\",M124=O124,R124=T124),P124,\"\")","v":""},{"$f":"IF(OR(M124<O124,R124<T124),L124,IF(OR(M124>O124,R124>T124),P124,\"\"))","v":"Marco Pinausi (gor)"},{"$f":"IF(OR($AB124=\"\",$AB124=\"V\"),\"\",IF(MOD($AB124,10)=1,\"XXX\",\"\"))","v":""},{"$f":"IF(OR($AB124=\"\",$AB124=\"V\"),\"\",IF(MOD($AB124,100)>=10,\"XXX\",\"\"))","v":""},{"$f":"IF(OR($AB124=\"\",$AB124=\"V\"),\"\",IF(MOD($AB124,1000)>=100,\"XXX\",\"\"))","v":""},{"$f":"IF(OR($AB124=\"\",$AB124=\"V\"),\"\",IF(MOD($AB124,10000)>=1000,\"XXX\",\"\"))","v":""},{"$f":"IF(OR($AB124=\"\",$AB124=\"V\"),\"\",IF(MOD($AB124,100000)>=10000,\"XXX\",\"\"))","v":""}]
[{"$f":"A124","v":"12:30:00"},null,{"$f":"C124","v":"Team - Group 1 - Rd 5"},null,null,null,{"$f":"G122&3","v":"TG3"},null,null,null,null,"Wolfgang Haas (bor)",4,"-",0,"Michael Stolzenberg ()",null,null,null,null,null,"Wolfgang Haas (bor)12:30","Michael Stolzenberg ()12:30",1,1,{"$f":"IF(AA125=\"\",FALSE,NOT(AND(ISNA(MATCH(AA125&TEXT($A125,\"hh:mm\"),PlayersAndHoursCol1,0)),ISNA(MATCH(AA125&TEXT($A125,\"hh:mm\"),PlayersAndHoursCol2,0)),COUNTIF(AD:AD,AA125&$A125)<=1)))","v":false},null,null,null,null,null,null,null,{"$f":"IF(OR(M125>O125,R125>T125),L125,IF(OR(M125<O125,R125<T125),P125,\"\"))","v":"Wolfgang Haas (bor)"},{"$f":"IF(AND(M125<>\"\",M125=O125,R125=T125),L125,\"\")","v":""},{"$f":"IF(AND(M125<>\"\",M125=O125,R125=T125),P125,\"\")","v":""},{"$f":"IF(OR(M125<O125,R125<T125),L125,IF(OR(M125>O125,R125>T125),P125,\"\"))","v":"Michael Stolzenberg ()"},{"$f":"IF(OR($AB125=\"\",$AB125=\"V\"),\"\",IF(MOD($AB125,10)=1,\"XXX\",\"\"))","v":""},{"$f":"IF(OR($AB125=\"\",$AB125=\"V\"),\"\",IF(MOD($AB125,100)>=10,\"XXX\",\"\"))","v":""},{"$f":"IF(OR($AB125=\"\",$AB125=\"V\"),\"\",IF(MOD($AB125,1000)>=100,\"XXX\",\"\"))","v":""},{"$f":"IF(OR($AB125=\"\",$AB125=\"V\"),\"\",IF(MOD($AB125,10000)>=1000,\"XXX\",\"\"))","v":""},{"$f":"IF(OR($AB125=\"\",$AB125=\"V\"),\"\",IF(MOD($AB125,100000)>=10000,\"XXX\",\"\"))","v":""}]
[{"$f":"A125","v":"12:30:00"},null,{"$f":"C125","v":"Team - Group 1 - Rd 5"},null,null,null,{"$f":"G122&4","v":"TG4"},null,null,null,null,"George Ebejer (bor)",5,"-",0,"To be defined",null,null,null,null,null,"George Ebejer (bor)12:30","To be defined12:30",1,1,{"$f":"IF(AA126=\"\",FALSE,NOT(AND(ISNA(MATCH(AA126&TEXT($A126,\"hh:mm\"),PlayersAndHoursCol1,0)),ISNA(MATCH(AA126&TEXT($A126,\"hh:mm\"),PlayersAndHoursCol2,0)),COUNTIF(AD:AD,AA126&$A126)<=1)))","v":false},null,null,null,null,null,null,null,{"$f":"IF(OR(M126>O126,R126>T126),L126,IF(OR(M126<O126,R126<T126),P126,\"\"))","v":"George Ebejer (bor)"},{"$f":"IF(AND(M126<>\"\",M126=O126,R126=T126),L126,\"\")","v":""},{"$f":"IF(AND(M126<>\"\",M126=O126,R126=T126),P126,\"\")","v":""},{"$f":"IF(OR(M126<O126,R126<T126),L126,IF(OR(M126>O126,R126>T126),P126,\"\"))","v":"To be defined"},{"$f":"IF(OR($AB126=\"\",$AB126=\"V\"),\"\",IF(MOD($AB126,10)=1,\"XXX\",\"\"))","v":""},{"$f":"IF(OR($AB126=\"\",$AB126=\"V\"),\"\",IF(MOD($AB126,100)>=10,\"XXX\",\"\"))","v":""},{"$f":"IF(OR($AB126=\"\",$AB126=\"V\"),\"\",IF(MOD($AB126,1000)>=100,\"XXX\",\"\"))","v":""},{"$f":"IF(OR($AB126=\"\",$AB126=\"V\"),\"\",IF(MOD($AB126,10000)>=1000,\"XXX\",\"\"))","v":""},{"$f":"IF(OR($AB126=\"\",$AB126=\"V\"),\"\",IF(MOD($AB126,100000)>=10000,\"XXX\",\"\"))","v":""}]
[{"$f":"A126","v":"12:30:00"},null,null,null,{"$f":"N_Substitute","v":"Substitute"},null,{"$f":"G122&\"SB1\"","v":"TGSB1"},null,null,null,null,"Jason Pisani (bor)",null,null,null,null,null,null,null,null,null,"Jason Pisani (bor)12:30","12:30",1,0]
[{"$f":"A122","v":"12:30:00"},null,null,null,{"$f":"N_Substitute","v":"Substitute"},null,{"$f":"G122&\"SB2\"","v":"TGSB2"},null,null,null,null,"Jean Carl Tabone (bor)",null,null,null,null,null,null,null,null,null,"Jean Carl Tabone (bor)12:30","12:30",1,0]
[{"$f":"OFFSET(A129,-1,0)","v":"12:30:00"},null,{"$f":"\"Team - \" & N_Group & \" 2\" & \" - \" & N_Round & \" 5\"","v":"Team - Group 2 - Rd 5"},null,null,null,"TG",{"$f":"IF(K129=\"\",\"\",SUBSTITUTE(MID(K129,1,SEARCH(\"!\",K129,1)-1),\"'\",\"\"))","v":"Team"},{"$f":"IF(K129=\"\",\"\",CELL(\"row\",INDIRECT(K129)))","v":156},{"$f":"IF(K129=\"\",\"\",CELL(\"col\",INDIRECT(K129)))","v":25},{"$f":"MID(Lire_Formule(L129),2,10000)","v":"Team!Y156"},{"$f":"Team!Y156","v":"TSC Phoenix 2 (wie)"},2,"-",1,{"$f":"IF(K129=\"\",\"\",IF(RIGHT(G129,1)=\"T\",INDIRECT(ADDRESS(I129+2,J129,4,TRUE,H129)),INDIRECT(ADDRESS(I129,J129+4,4,TRUE,H129))))","v":"Roligans Ilioupolis TSC (rol)"},null,{"$f":"IF(M129=\"\",\"\",SUM(M130:M133))","v":4},null,{"$f":"IF(O129=\"\",\"\",SUM(O130:O133))","v":5},null,{"$f":"L129&TEXT(A129,\"hh:mm\")","v":"TSC Phoenix 2 (wie)12:30"},{"$f":"P129&TEXT(A129,\"hh:mm\")","v":"Roligans Ilioupolis TSC (rol)12:30"},{"$f":"IF(L129=\"\",0,COUNTIF(PlayersAndHoursCol1,L129&TEXT($A129,\"hh:mm\"))+COUNTIF(PlayersAndHoursCol2,L129&TEXT($A129,\"hh:mm\")))","v":1},{"$f":"IF(P129=\"\",0,COUNTIF(PlayersAndHoursCol1,P129&TEXT($A129,\"hh:mm\"))+COUNTIF(PlayersAndHoursCol2,P129&TEXT($A129,\"hh:mm\")))","v":1},{"$f":"IF(AA129=\"\",FALSE,NOT(AND(ISNA(MATCH(AA129&TEXT($A129,\"hh:mm\"),PlayersAndHoursCol1,0)),ISNA(MATCH(AA129&TEXT($A129,\"hh:mm\"),PlayersAndHoursCol2,0)),COUNTIF(AD:AD,AA129&$A129)<=1)))","v":false},"TSC Royal 78 Kaisermühlen (roy)","V",null,{"$f":"AA129&A129","v":"TSC Royal 78 Kaisermühlen (roy)0,520833333333333"},"Team","Groups",5,{"$f":"IF(OR(M129>O129,R129>T129),L129,IF(OR(M129<O129,R129<T129),P129,\"\"))","v":"TSC Phoenix 2 (wie)"},{"$f":"IF(AND(M129<>\"\",M129=O129,R129=T129),L129,\"\")","v":""},{"$f":"IF(AND(M129<>\"\",M129=O129,R129=T129),P129,\"\")","v":""},{"$f":"IF(OR(M129<O129,R129<T129),L129,IF(OR(M129>O129,R129>T129),P129,\"\"))","v":"TSC Phoenix 2 (wie)"},{"$f":"IF(OR($AB129=\"\",$AB129=\"V\"),\"\",IF(MOD($AB129,10)=1,\"XXX\",\"\"))","v":""},{"$f":"IF(OR($AB129=\"\",$AB129=\"V\"),\"\",IF(MOD($AB129,100)>=10,\"XXX\",\"\"))","v":""},{"$f":"IF(OR($AB129=\"\",$AB129=\"V\"),\"\",IF(MOD($AB129,1000)>=100,\"XXX\",\"\"))","v":""},{"$f":"IF(OR($AB129=\"\",$AB129=\"V\"),\"\",IF(MOD($AB129,10000)>=1000,\"XXX\",\"\"))","v":""},{"$f":"IF(OR($AB129=\"\",$AB129=\"V\"),\"\",IF(MOD($AB129,100000)>=10000,\"XXX\",\"\"))","v":""}]
[{"$f":"A129","v":"12:30:00"},null,{"$f":"C129","v":"Team - Group 2 - Rd 5"},null,null,null,{"$f":"G129&1","v":"TG1"},null,null,null,null,"Florian Daxböck (wie)",1,"-",0,"Phillipos Kordantonopoulos (rol)",null,null,null,null,null,"Florian Daxböck (wie)12:30","Phillipos Kordantonopoulos (rol)12:30",1,1,{"$f":"IF(AA130=\"\",FALSE,NOT(AND(ISNA(MATCH(AA130&TEXT($A130,\"hh:mm\"),PlayersAndHoursCol1,0)),ISNA(MATCH(AA130&TEXT($A130,\"hh:mm\"),PlayersAndHoursCol2,0)),COUNTIF(AD:AD,AA130&$A130)<=1)))","v":false},null,null,null,null,null,null,null,{"$f":"IF(OR(M130>O130,R130>T130),L130,IF(OR(M130<O130,R130<T130),P130,\"\"))","v":"Florian Daxböck (wie)"},{"$f":"IF(AND(M130<>\"\",M130=O130,R130=T130),L130,\"\")","v":""},{"$f":"IF(AND(M130<>\"\",M130=O130,R130=T130),P130,\"\")","v":""},{"$f":"IF(OR(M130<O130,R130<T130),L130,IF(OR(M130>O130,R130>T130),P130,\"\"))","v":"Phillipos Kordantonopoulos (rol)"},{"$f":"IF(OR($AB130=\"\",$AB130=\"V\"),\"\",IF(MOD($AB130,10)=1,\"XXX\",\"\"))","v":""},{"$f":"IF(OR($AB130=\"\",$AB130=\"V\"),\"\",IF(MOD($AB130,100)>=10,\"XXX\",\"\"))","v":""},{"$f":"IF(OR($AB130=\"\",$AB130=\"V\"),\"\",IF(MOD($AB130,1000)>=100,\"XXX\",\"\"))","v":""},{"$f":"IF(OR($AB130=\"\",$AB130=\"V\"),\"\",IF(MOD($AB130,10000)>=1000,\"XXX\",\"\"))","v":""},{"$f":"IF(OR($AB130=\"\",$AB130=\"V\"),\"\",IF(MOD($AB130,100000)>=10000,\"XXX\",\"\"))","v":""}]
[{"$f":"A130","v":"12:30:00"},null,{"$f":"C130","v":"Team - Group 2 - Rd 5"},null,null,null,{"$f":"G129&2","v":"TG2"},null,null,null,null,"Gábor Baross (wie)",0,"-",4,"Athanasios Kordantonopoulos (rol)",null,null,null,null,null,"Gábor Baross (wie)12:30","Athanasios Kordantonopoulos (rol)12:30",1,1,{"$f":"IF(AA131=\"\",FALSE,NOT(AND(ISNA(MATCH(AA131&TEXT($A131,\"hh:mm\"),PlayersAndHoursCol1,0)),ISNA(MATCH(AA131&TEXT($A131,\"hh:mm\"),PlayersAndHoursCol2,0)),COUNTIF(AD:AD,AA131&$A131)<=1)))","v":false},null,null,null,null,null,null,null,{"$f":"IF(OR(M131>O131,R131>T131),L131,IF(OR(M131<O131,R131<T131),P131,\"\"))","v":"Athanasios Kordantonopoulos (rol)"},{"$f":"IF(AND(M131<>\"\",M131=O131,R131=T131),L131,\"\")","v":""},{"$f":"IF(AND(M131<>\"\",M131=O131,R131=T131),P131,\"\")","v":""},{"$f":"IF(OR(M131<O131,R131<T131),L131,IF(OR(M131>O131,R131>T131),P131,\"\"))","v":"Gábor Baross (wie)"},{"$f":"IF(OR($AB131=\"\",$AB131=\"V\"),\"\",IF(MOD($AB131,10)=1,\"XXX\",\"\"))","v":""},{"$f":"IF(OR($AB131=\"\",$AB131=\"V\"),\"\",IF(MOD($AB131,100)>=10,\"XXX\",\"\"))","v":""},{"$f":"IF(OR($AB131=\"\",$AB131=\"V\"),\"\",IF(MOD($AB131,1000)>=100,\"XXX\",\"\"))","v":""},{"$f":"IF(OR($AB131=\"\",$AB131=\"V\"),\"\",IF(MOD($AB131,10000)>=1000,\"XXX\",\"\"))","v":""},{"$f":"IF(OR($AB131=\"\",$AB131=\"V\"),\"\",IF(MOD($AB131,100000)>=10000,\"XXX\",\"\"))","v":""}]
[{"$f":"A131","v":"12:30:00"},null,{"$f":"C131","v":"Team - Group 2 - Rd 5"},null,null,null,{"$f":"G129&3","v":"TG3"},null,null,null,null,"Igor Ljubisavljevic (wie)",1,"-",1,"Georgios Dimakeas (rol)",null,null,null,null,null,"Igor Ljubisavljevic (wie)12:30","Georgios Dimakeas (rol)12:30",1,1,{"$f":"IF(AA132=\"\",FALSE,NOT(AND(ISNA(MATCH(AA132&TEXT($A132,\"hh:mm\"),PlayersAndHoursCol1,0)),ISNA(MATCH(AA132&TEXT($A132,\"hh:mm\"),PlayersAndHoursCol2,0)),COUNTIF(AD:AD,AA132&$A132)<=1)))","v":false},null,null,null,null,null,null,null,{"$f":"IF(OR(M132>O132,R132>T132),L132,IF(OR(M132<O132,R132<T132),P132,\"\"))","v":""},{"$f":"IF(AND(M132<>\"\",M132=O132,R132=T132),L132,\"\")","v":"Igor Ljubisavljevic (wie)"},{"$f":"IF(AND(M132<>\"\",M132=O132,R132=T132),P132,\"\")","v":"Georgios Dimakeas (rol)"},{"$f":"IF(OR(M132<O132,R132<T132),L132,IF(OR(M132>O132,R132>T132),P132,\"\"))","v":""},{"$f":"IF(OR($AB132=\"\",$AB132=\"V\"),\"\",IF(MOD($AB132,10)=1,\"XXX\",\"\"))","v":""},{"$f":"IF(OR($AB132=\"\",$AB132=\"V\"),\"\",IF(MOD($AB132,100)>=10,\"XXX\",\"\"))","v":""},{"$f":"IF(OR($AB132=\"\",$AB132=\"V\"),\"\",IF(MOD($AB132,1000)>=100,\"XXX\",\"\"))","v":""},{"$f":"IF(OR($AB132=\"\",$AB132=\"V\"),\"\",IF(MOD($AB132,10000)>=1000,\"XXX\",\"\"))","v":""},{"$f":"IF(OR($AB132=\"\",$AB132=\"V\"),\"\",IF(MOD($AB132,100000)>=10000,\"XXX\",\"\"))","v":""}]
[{"$f":"A132","v":"12:30:00"},null,{"$f":"C132","v":"Team - Group 2 - Rd 5"},null,null,null,{"$f":"G129&4","v":"TG4"},null,null,null,null,"Alfred Strommer (wie)",2,"-",0,"Apollon Dimakeas (rol)",null,null,null,null,null,"Alfred Strommer (wie)12:30","Apollon Dimakeas (rol)12:30",1,1,{"$f":"IF(AA133=\"\",FALSE,NOT(AND(ISNA(MATCH(AA133&TEXT($A133,\"hh:mm\"),PlayersAndHoursCol1,0)),ISNA(MATCH(AA133&TEXT($A133,\"hh:mm\"),PlayersAndHoursCol2,0)),COUNTIF(AD:AD,AA133&$A133)<=1)))","v":false},null,null,null,null,null,null,null,{"$f":"IF(OR(M133>O133,R133>T133),L133,IF(OR(M133<O133,R133<T133),P133,\"\"))","v":"Alfred Strommer (wie)"},{"$f":"IF(AND(M133<>\"\",M133=O133,R133=T133),L133,\"\")","v":""},{"$f":"IF(AND(M133<>\"\",M133=O133,R133=T133),P133,\"\")","v":""},{"$f":"IF(OR(M133<O133,R133<T133),L133,IF(OR(M133>O133,R133>T133),P133,\"\"))","v":"Apollon Dimakeas (rol)"},{"$f":"IF(OR($AB133=\"\",$AB133=\"V\"),\"\",IF(MOD($AB133,10)=1,\"XXX\",\"\"))","v":""},{"$f":"IF(OR($AB133=\"\",$AB133=\"V\"),\"\",IF(MOD($AB133,100)>=10,\"XXX\",\"\"))","v":""},{"$f":"IF(OR($AB133=\"\",$AB133=\"V\"),\"\",IF(MOD($AB133,1000)>=100,\"XXX\",\"\"))","v":""},{"$f":"IF(OR($AB133=\"\",$AB133=\"V\"),\"\",IF(MOD($AB133,10000)>=1000,\"XXX\",\"\"))","v":""},{"$f":"IF(OR($AB133=\"\",$AB133=\"V\"),\"\",IF(MOD($AB133,100000)>=10000,\"XXX\",\"\"))","v":""}]
[{"$f":"A133","v":"12:30:00"},null,null,null,{"$f":"N_Substitute","v":"Substitute"},null,{"$f":"G129&\"SB1\"","v":"TGSB1"},null,null,null,null,null,null,null,null,null,null,null,null,null,null,"12:30","12:30",0,0]
[{"$f":"A129","v":"12:30:00"},null,null,null,{"$f":"N_Substitute","v":"Substitute"},null,{"$f":"G129&\"SB2\"","v":"TGSB2"},null,null,null,null,null,null,null,null,null,null,null,null,null,null,"12:30","12:30",0,0]
[{"$f":"A114+P114","v":"13:20:00"},null,{"$f":"N_Session","v":"Session Nbr "},null,{"$f":"E114+ 1","v":7},null,{"$f":"\"S\" & RIGHT(G114, LEN(G114)-1) + 1","v":"S7"},null,null,null,null,{"$f":"N_Duration","v":"Duration"},null,":",null,"00:45:00"]
[{"$f":"OFFSET(A137,-1,0)","v":"13:20:00"},null,{"$f":"\"Team - \" & N_Group & \" 1\" & \" - \" & N_Round & \" 5\"","v":"Team - Group 1 - Rd 5"},null,null,null,"TG",{"$f":"IF(K137=\"\",\"\",SUBSTITUTE(MID(K137,1,SEARCH(\"!\",K137,1)-1),\"'\",\"\"))","v":"Team"},{"$f":"IF(K137=\"\",\"\",CELL(\"row\",INDIRECT(K137)))","v":76},{"$f":"IF(K137=\"\",\"\",CELL(\"col\",INDIRECT(K137)))","v":25},{"$f":"MID(Lire_Formule(L137),2,10000)","v":"Team!Y76"},{"$f":"Team!Y76","v":"TSC Phoenix (wie)"},4,"-",0,{"$f":"IF(K137=\"\",\"\",IF(RIGHT(G137,1)=\"T\",INDIRECT(ADDRESS(I137+2,J137,4,TRUE,H137)),INDIRECT(ADDRESS(I137,J137+4,4,TRUE,H137))))","v":"Atlas FTC (atl)"},null,{"$f":"IF(M137=\"\",\"\",SUM(M138:M141))","v":12},null,{"$f":"IF(O137=\"\",\"\",SUM(O138:O141))","v":0},null,{"$f":"L137&TEXT(A137,\"hh:mm\")","v":"TSC Phoenix (wie)13:20"},{"$f":"P137&TEXT(A137,\"hh:mm\")","v":"Atlas FTC (atl)13:20"},{"$f":"IF(L137=\"\",0,COUNTIF(PlayersAndHoursCol1,L137&TEXT($A137,\"hh:mm\"))+COUNTIF(PlayersAndHoursCol2,L137&TEXT($A137,\"hh:mm\")))","v":1},{"$f":"IF(P137=\"\",0,COUNTIF(PlayersAndHoursCol1,P137&TEXT($A137,\"hh:mm\"))+COUNTIF(PlayersAndHoursCol2,P137&TEXT($A137,\"hh:mm\")))","v":1},{"$f":"IF(AA137=\"\",FALSE,NOT(AND(ISNA(MATCH(AA137&TEXT($A137,\"hh:mm\"),PlayersAndHoursCol1,0)),ISNA(MATCH(AA137&TEXT($A137,\"hh:mm\"),PlayersAndHoursCol2,0)),COUNTIF(AD:AD,AA137&$A137)<=1)))","v":false},"TSC Royal 78 Kaisermühlen (roy)","V",null,{"$f":"AA137&A137","v":"TSC Royal 78 Kaisermühlen (roy)0,555555555555556"},"Team","Groups",5,{"$f":"IF(OR(M137>O137,R137>T137),L137,IF(OR(M137<O137,R137<T137),P137,\"\"))","v":"TSC Phoenix (wie)"},{"$f":"IF(AND(M137<>\"\",M137=O137,R137=T137),L137,\"\")","v":""},{"$f":"IF(AND(M137<>\"\",M137=O137,R137=T137),P137,\"\")","v":""},{"$f":"IF(OR(M137<O137,R137<T137),L137,IF(OR(M137>O137,R137>T137),P137,\"\"))","v":"Atlas FTC (atl)"},{"$f":"IF(OR($AB137=\"\",$AB137=\"V\"),\"\",IF(MOD($AB137,10)=1,\"XXX\",\"\"))","v":""},{"$f":"IF(OR($AB137=\"\",$AB137=\"V\"),\"\",IF(MOD($AB137,100)>=10,\"XXX\",\"\"))","v":""},{"$f":"IF(OR($AB137=\"\",$AB137=\"V\"),\"\",IF(MOD($AB137,1000)>=100,\"XXX\",\"\"))","v":""},{"$f":"IF(OR($AB137=\"\",$AB137=\"V\"),\"\",IF(MOD($AB137,10000)>=1000,\"XXX\",\"\"))","v":""},{"$f":"IF(OR($AB137=\"\",$AB137=\"V\"),\"\",IF(MOD($AB137,100000)>=10000,\"XXX\",\"\"))","v":""}]
[{"$f":"A137","v":"13:20:00"},null,{"$f":"C137","v":"Team - Group 1 - Rd 5"},null,null,null,{"$f":"G137&1","v":"TG1"},null,null,null,null,"Manfred Pawlica (wie)",3,"-",0,"Giannis Nikolaidis (atl)",null,null,null,null,null,"Manfred Pawlica (wie)13:20","Giannis Nikolaidis (atl)13:20",1,1,{"$f":"IF(AA138=\"\",FALSE,NOT(AND(ISNA(MATCH(AA138&TEXT($A138,\"hh:mm\"),PlayersAndHoursCol1,0)),ISNA(MATCH(AA138&TEXT($A138,\"hh:mm\"),PlayersAndHoursCol2,0)),COUNTIF(AD:AD,AA138&$A138)<=1)))","v":false},null,null,null,null,null,null,null,{"$f":"IF(OR(M138>O138,R138>T138),L138,IF(OR(M138<O138,R138<T138),P138,\"\"))","v":"Manfred Pawlica (wie)"},{"$f":"IF(AND(M138<>\"\",M138=O138,R138=T138),L138,\"\")","v":""},{"$f":"IF(AND(M138<>\"\",M138=O138,R138=T138),P138,\"\")","v":""},{"$f":"IF(OR(M138<O138,R138<T138),L138,IF(OR(M138>O138,R138>T138),P138,\"\"))","v":"Giannis Nikolaidis (atl)"},{"$f":"IF(OR($AB138=\"\",$AB138=\"V\"),\"\",IF(MOD($AB138,10)=1,\"XXX\",\"\"))","v":""},{"$f":"IF(OR($AB138=\"\",$AB138=\"V\"),\"\",IF(MOD($AB138,100)>=10,\"XXX\",\"\"))","v":""},{"$f":"IF(OR($AB138=\"\",$AB138=\"V\"),\"\",IF(MOD($AB138,1000)>=100,\"XXX\",\"\"))","v":""},{"$f":"IF(OR($AB138=\"\",$AB138=\"V\"),\"\",IF(MOD($AB138,10000)>=1000,\"XXX\",\"\"))","v":""},{"$f":"IF(OR($AB138=\"\",$AB138=\"V\"),\"\",IF(MOD($AB138,100000)>=10000,\"XXX\",\"\"))","v":""}]
[{"$f":"A138","v":"13:20:00"},null,{"$f":"C138","v":"Team - Group 1 - Rd 5"},null,null,null,{"$f":"G137&2","v":"TG2"},null,null,null,null,"Marios Strommer (wie)",3,"-",0,"Joffray Laurent (atl)",null,null,null,null,null,"Marios Strommer (wie)13:20","Joffray Laurent (atl)13:20",1,1,{"$f":"IF(AA139=\"\",FALSE,NOT(AND(ISNA(MATCH(AA139&TEXT($A139,\"hh:mm\"),PlayersAndHoursCol1,0)),ISNA(MATCH(AA139&TEXT($A139,\"hh:mm\"),PlayersAndHoursCol2,0)),COUNTIF(AD:AD,AA139&$A139)<=1)))","v":false},null,null,null,null,null,null,null,{"$f":"IF(OR(M139>O139,R139>T139),L139,IF(OR(M139<O139,R139<T139),P139,\"\"))","v":"Marios Strommer (wie)"},{"$f":"IF(AND(M139<>\"\",M139=O139,R139=T139),L139,\"\")","v":""},{"$f":"IF(AND(M139<>\"\",M139=O139,R139=T139),P139,\"\")","v":""},{"$f":"IF(OR(M139<O139,R139<T139),L139,IF(OR(M139>O139,R139>T139),P139,\"\"))","v":"Joffray Laurent (atl)"},{"$f":"IF(OR($AB139=\"\",$AB139=\"V\"),\"\",IF(MOD($AB139,10)=1,\"XXX\",\"\"))","v":""},{"$f":"IF(OR($AB139=\"\",$AB139=\"V\"),\"\",IF(MOD($AB139,100)>=10,\"XXX\",\"\"))","v":""},{"$f":"IF(OR($AB139=\"\",$AB139=\"V\"),\"\",IF(MOD($AB139,1000)>=100,\"XXX\",\"\"))","v":""},{"$f":"IF(OR($AB139=\"\",$AB139=\"V\"),\"\",IF(MOD($AB139,10000)>=1000,\"XXX\",\"\"))","v":""},{"$f":"IF(OR($AB139=\"\",$AB139=\"V\"),\"\",IF(MOD($AB139,100000)>=10000,\"XXX\",\"\"))","v":""}]
[{"$f":"A139","v":"13:20:00"},null,{"$f":"C139","v":"Team - Group 1 - Rd 5"},null,null,null,{"$f":"G137&3","v":"TG3"},null,null,null,null,"Christian Blümel (wie)",3,"-",0,"Lazaros Papakonstantinou (atl)",null,null,null,null,null,"Christian Blümel (wie)13:20","Lazaros Papakonstantinou (atl)13:20",1,1,{"$f":"IF(AA140=\"\",FALSE,NOT(AND(ISNA(MATCH(AA140&TEXT($A140,\"hh:mm\"),PlayersAndHoursCol1,0)),ISNA(MATCH(AA140&TEXT($A140,\"hh:mm\"),PlayersAndHoursCol2,0)),COUNTIF(AD:AD,AA140&$A140)<=1)))","v":false},null,null,null,null,null,null,null,{"$f":"IF(OR(M140>O140,R140>T140),L140,IF(OR(M140<O140,R140<T140),P140,\"\"))","v":"Christian Blümel (wie)"},{"$f":"IF(AND(M140<>\"\",M140=O140,R140=T140),L140,\"\")","v":""},{"$f":"IF(AND(M140<>\"\",M140=O140,R140=T140),P140,\"\")","v":""},{"$f":"IF(OR(M140<O140,R140<T140),L140,IF(OR(M140>O140,R140>T140),P140,\"\"))","v":"Lazaros Papakonstantinou (atl)"},{"$f":"IF(OR($AB140=\"\",$AB140=\"V\"),\"\",IF(MOD($AB140,10)=1,\"XXX\",\"\"))","v":""},{"$f":"IF(OR($AB140=\"\",$AB140=\"V\"),\"\",IF(MOD($AB140,100)>=10,\"XXX\",\"\"))","v":""},{"$f":"IF(OR($AB140=\"\",$AB140=\"V\"),\"\",IF(MOD($AB140,1000)>=100,\"XXX\",\"\"))","v":""},{"$f":"IF(OR($AB140=\"\",$AB140=\"V\"),\"\",IF(MOD($AB140,10000)>=1000,\"XXX\",\"\"))","v":""},{"$f":"IF(OR($AB140=\"\",$AB140=\"V\"),\"\",IF(MOD($AB140,100000)>=10000,\"XXX\",\"\"))","v":""}]
[{"$f":"A140","v":"13:20:00"},null,{"$f":"C140","v":"Team - Group 1 - Rd 5"},null,null,null,{"$f":"G137&4","v":"TG4"},null,null,null,null,"Erich Hinkelmann (wie)",3,"-",0,"Stylianos Tsangouris (atl)",null,null,null,null,null,"Erich Hinkelmann (wie)13:20","Stylianos Tsangouris (atl)13:20",1,1,{"$f":"IF(AA141=\"\",FALSE,NOT(AND(ISNA(MATCH(AA141&TEXT($A141,\"hh:mm\"),PlayersAndHoursCol1,0)),ISNA(MATCH(AA141&TEXT($A141,\"hh:mm\"),PlayersAndHoursCol2,0)),COUNTIF(AD:AD,AA141&$A141)<=1)))","v":false},null,null,null,null,null,null,null,{"$f":"IF(OR(M141>O141,R141>T141),L141,IF(OR(M141<O141,R141<T141),P141,\"\"))","v":"Erich Hinkelmann (wie)"},{"$f":"IF(AND(M141<>\"\",M141=O141,R141=T141),L141,\"\")","v":""},{"$f":"IF(AND(M141<>\"\",M141=O141,R141=T141),P141,\"\")","v":""},{"$f":"IF(OR(M141<O141,R141<T141),L141,IF(OR(M141>O141,R141>T141),P141,\"\"))","v":"Stylianos Tsangouris (atl)"},{"$f":"IF(OR($AB141=\"\",$AB141=\"V\"),\"\",IF(MOD($AB141,10)=1,\"XXX\",\"\"))","v":""},{"$f":"IF(OR($AB141=\"\",$AB141=\"V\"),\"\",IF(MOD($AB141,100)>=10,\"XXX\",\"\"))","v":""},{"$f":"IF(OR($AB141=\"\",$AB141=\"V\"),\"\",IF(MOD($AB141,1000)>=100,\"XXX\",\"\"))","v":""},{"$f":"IF(OR($AB141=\"\",$AB141=\"V\"),\"\",IF(MOD($AB141,10000)>=1000,\"XXX\",\"\"))","v":""},{"$f":"IF(OR($AB141=\"\",$AB141=\"V\"),\"\",IF(MOD($AB141,100000)>=10000,\"XXX\",\"\"))","v":""}]
[{"$f":"A141","v":"13:20:00"},null,null,null,{"$f":"N_Substitute","v":"Substitute"},null,{"$f":"G137&\"SB1\"","v":"TGSB1"},null,null,null,null,null,null,null,null,"Athanasios Chaliotis (atl)",null,null,null,null,null,"13:20","Athanasios Chaliotis (atl)13:20",0,1]
[{"$f":"A137","v":"13:20:00"},null,null,null,{"$f":"N_Substitute","v":"Substitute"},null,{"$f":"G137&\"SB2\"","v":"TGSB2"},null,null,null,null,null,null,null,null,null,null,null,null,null,null,"13:20","13:20",0,0]
[{"$f":"OFFSET(A144,-1,0)","v":"13:20:00"},null,{"$f":"\"Team - \" & N_Group & \" 2\" & \" - \" & N_Round & \" 3\"","v":"Team - Group 2 - Rd 3"},null,null,null,"TG",{"$f":"IF(K144=\"\",\"\",SUBSTITUTE(MID(K144,1,SEARCH(\"!\",K144,1)-1),\"'\",\"\"))","v":"Team"},{"$f":"IF(K144=\"\",\"\",CELL(\"row\",INDIRECT(K144)))","v":121},{"$f":"IF(K144=\"\",\"\",CELL(\"col\",INDIRECT(K144)))","v":25},{"$f":"MID(Lire_Formule(L144),2,10000)","v":"Team!Y121"},{"$f":"Team!Y121","v":"Roligans Ilioupolis TSC (rol)"},0,"-",3,{"$f":"IF(K144=\"\",\"\",IF(RIGHT(G144,1)=\"T\",INDIRECT(ADDRESS(I144+2,J144,4,TRUE,H144)),INDIRECT(ADDRESS(I144,J144+4,4,TRUE,H144))))","v":"ST Stembert (ste)"},null,{"$f":"IF(M144=\"\",\"\",SUM(M145:M148))","v":8},null,{"$f":"IF(O144=\"\",\"\",SUM(O145:O148))","v":18},null,{"$f":"L144&TEXT(A144,\"hh:mm\")","v":"Roligans Ilioupolis TSC (rol)13:20"},{"$f":"P144&TEXT(A144,\"hh:mm\")","v":"ST Stembert (ste)13:20"},1,1,{"$f":"IF(AA144=\"\",FALSE,NOT(AND(ISNA(MATCH(AA144&TEXT($A144,\"hh:mm\"),PlayersAndHoursCol1,0)),ISNA(MATCH(AA144&TEXT($A144,\"hh:mm\"),PlayersAndHoursCol2,0)),COUNTIF(AD:AD,AA144&$A144)<=1)))","v":false},"TSC Phoenix 2 (wie)","V",null,{"$f":"AA144&A144","v":"TSC Phoenix 2 (wie)0,555555555555556"},"Team","Groups",3,{"$f":"IF(OR(M144>O144,R144>T144),L144,IF(OR(M144<O144,R144<T144),P144,\"\"))","v":"ST Stembert (ste)"},{"$f":"IF(AND(M144<>\"\",M144=O144,R144=T144),L144,\"\")","v":""},{"$f":"IF(AND(M144<>\"\",M144=O144,R144=T144),P144,\"\")","v":""},{"$f":"IF(OR(M144<O144,R144<T144),L144,IF(OR(M144>O144,R144>T144),P144,\"\"))","v":"Roligans Ilioupolis TSC (rol)"},{"$f":"IF(OR($AB144=\"\",$AB144=\"V\"),\"\",IF(MOD($AB144,10)=1,\"XXX\",\"\"))","v":""},{"$f":"IF(OR($AB144=\"\",$AB144=\"V\"),\"\",IF(MOD($AB144,100)>=10,\"XXX\",\"\"))","v":""},{"$f":"IF(OR($AB144=\"\",$AB144=\"V\"),\"\",IF(MOD($AB144,1000)>=100,\"XXX\",\"\"))","v":""},{"$f":"IF(OR($AB144=\"\",$AB144=\"V\"),\"\",IF(MOD($AB144,10000)>=1000,\"XXX\",\"\"))","v":""},{"$f":"IF(OR($AB144=\"\",$AB144=\"V\"),\"\",IF(MOD($AB144,100000)>=10000,\"XXX\",\"\"))","v":""}]
[{"$f":"A144","v":"13:20:00"},null,{"$f":"C144","v":"Team - Group 2 - Rd 3"},null,null,null,{"$f":"G144&1","v":"TG1"},null,null,null,null,"Georgios Dimakeas (rol)",3,"-",8,"Pascal Scheen (ste)",null,null,null,null,null,"Georgios Dimakeas (rol)13:20","Pascal Scheen (ste)13:20",1,1,{"$f":"IF(AA145=\"\",FALSE,NOT(AND(ISNA(MATCH(AA145&TEXT($A145,\"hh:mm\"),PlayersAndHoursCol1,0)),ISNA(MATCH(AA145&TEXT($A145,\"hh:mm\"),PlayersAndHoursCol2,0)),COUNTIF(AD:AD,AA145&$A145)<=1)))","v":false},null,null,null,null,null,null,null,{"$f":"IF(OR(M145>O145,R145>T145),L145,IF(OR(M145<O145,R145<T145),P145,\"\"))","v":"Pascal Scheen (ste)"},{"$f":"IF(AND(M145<>\"\",M145=O145,R145=T145),L145,\"\")","v":""},{"$f":"IF(AND(M145<>\"\",M145=O145,R145=T145),P145,\"\")","v":""},{"$f":"IF(OR(M145<O145,R145<T145),L145,IF(OR(M145>O145,R145>T145),P145,\"\"))","v":"Georgios Dimakeas (rol)"},{"$f":"IF(OR($AB145=\"\",$AB145=\"V\"),\"\",IF(MOD($AB145,10)=1,\"XXX\",\"\"))","v":""},{"$f":"IF(OR($AB145=\"\",$AB145=\"V\"),\"\",IF(MOD($AB145,100)>=10,\"XXX\",\"\"))","v":""},{"$f":"IF(OR($AB145=\"\",$AB145=\"V\"),\"\",IF(MOD($AB145,1000)>=100,\"XXX\",\"\"))","v":""},{"$f":"IF(OR($AB145=\"\",$AB145=\"V\"),\"\",IF(MOD($AB145,10000)>=1000,\"XXX\",\"\"))","v":""},{"$f":"IF(OR($AB145=\"\",$AB145=\"V\"),\"\",IF(MOD($AB145,100000)>=10000,\"XXX\",\"\"))","v":""}]
[{"$f":"A145","v":"13:20:00"},null,{"$f":"C145","v":"Team - Group 2 - Rd 3"},null,null,null,{"$f":"G144&2","v":"TG2"},null,null,null,null,"Apollon Dimakeas (rol)",0,"-",3,"John Zammit (ste)",null,null,null,null,null,"Apollon Dimakeas (rol)13:20","John Zammit (ste)13:20",1,1,{"$f":"IF(AA146=\"\",FALSE,NOT(AND(ISNA(MATCH(AA146&TEXT($A146,\"hh:mm\"),PlayersAndHoursCol1,0)),ISNA(MATCH(AA146&TEXT($A146,\"hh:mm\"),PlayersAndHoursCol2,0)),COUNTIF(AD:AD,AA146&$A146)<=1)))","v":false},null,null,null,null,null,null,null,{"$f":"IF(OR(M146>O146,R146>T146),L146,IF(OR(M146<O146,R146<T146),P146,\"\"))","v":"John Zammit (ste)"},{"$f":"IF(AND(M146<>\"\",M146=O146,R146=T146),L146,\"\")","v":""},{"$f":"IF(AND(M146<>\"\",M146=O146,R146=T146),P146,\"\")","v":""},{"$f":"IF(OR(M146<O146,R146<T146),L146,IF(OR(M146>O146,R146>T146),P146,\"\"))","v":"Apollon Dimakeas (rol)"},{"$f":"IF(OR($AB146=\"\",$AB146=\"V\"),\"\",IF(MOD($AB146,10)=1,\"XXX\",\"\"))","v":""},{"$f":"IF(OR($AB146=\"\",$AB146=\"V\"),\"\",IF(MOD($AB146,100)>=10,\"XXX\",\"\"))","v":""},{"$f":"IF(OR($AB146=\"\",$AB146=\"V\"),\"\",IF(MOD($AB146,1000)>=100,\"XXX\",\"\"))","v":""},{"$f":"IF(OR($AB146=\"\",$AB146=\"V\"),\"\",IF(MOD($AB146,10000)>=1000,\"XXX\",\"\"))","v":""},{"$f":"IF(OR($AB146=\"\",$AB146=\"V\"),\"\",IF(MOD($AB146,100000)>=10000,\"XXX\",\"\"))","v":""}]
[{"$f":"A146","v":"13:20:00"},null,{"$f":"C146","v":"Team - Group 2 - Rd 3"},null,null,null,{"$f":"G144&3","v":"TG3"},null,null,null,null,"Athanasios Kordantonopoulos (rol)",3,"-",3,"Sébastien Rochez (ste)",null,null,null,null,null,"Athanasios Kordantonopoulos (rol)13:20","Sébastien Rochez (ste)13:20",1,1,{"$f":"IF(AA147=\"\",FALSE,NOT(AND(ISNA(MATCH(AA147&TEXT($A147,\"hh:mm\"),PlayersAndHoursCol1,0)),ISNA(MATCH(AA147&TEXT($A147,\"hh:mm\"),PlayersAndHoursCol2,0)),COUNTIF(AD:AD,AA147&$A147)<=1)))","v":false},null,null,null,null,null,null,null,{"$f":"IF(OR(M147>O147,R147>T147),L147,IF(OR(M147<O147,R147<T147),P147,\"\"))","v":""},{"$f":"IF(AND(M147<>\"\",M147=O147,R147=T147),L147,\"\")","v":"Athanasios Kordantonopoulos (rol)"},{"$f":"IF(AND(M147<>\"\",M147=O147,R147=T147),P147,\"\")","v":"Sébastien Rochez (ste)"},{"$f":"IF(OR(M147<O147,R147<T147),L147,IF(OR(M147>O147,R147>T147),P147,\"\"))","v":""},{"$f":"IF(OR($AB147=\"\",$AB147=\"V\"),\"\",IF(MOD($AB147,10)=1,\"XXX\",\"\"))","v":""},{"$f":"IF(OR($AB147=\"\",$AB147=\"V\"),\"\",IF(MOD($AB147,100)>=10,\"XXX\",\"\"))","v":""},{"$f":"IF(OR($AB147=\"\",$AB147=\"V\"),\"\",IF(MOD($AB147,1000)>=100,\"XXX\",\"\"))","v":""},{"$f":"IF(OR($AB147=\"\",$AB147=\"V\"),\"\",IF(MOD($AB147,10000)>=1000,\"XXX\",\"\"))","v":""},{"$f":"IF(OR($AB147=\"\",$AB147=\"V\"),\"\",IF(MOD($AB147,100000)>=10000,\"XXX\",\"\"))","v":""}]
[{"$f":"A147","v":"13:20:00"},null,{"$f":"C147","v":"Team - Group 2 - Rd 3"},null,null,null,{"$f":"G144&4","v":"TG4"},null,null,null,null,"Phillipos Kordantonopoulos (rol)",2,"-",4,"Noah Janssens (ste)",null,null,null,null,null,"Phillipos Kordantonopoulos (rol)13:20","Noah Janssens (ste)13:20",1,1,{"$f":"IF(AA148=\"\",FALSE,NOT(AND(ISNA(MATCH(AA148&TEXT($A148,\"hh:mm\"),PlayersAndHoursCol1,0)),ISNA(MATCH(AA148&TEXT($A148,\"hh:mm\"),PlayersAndHoursCol2,0)),COUNTIF(AD:AD,AA148&$A148)<=1)))","v":false},null,null,null,null,null,null,null,{"$f":"IF(OR(M148>O148,R148>T148),L148,IF(OR(M148<O148,R148<T148),P148,\"\"))","v":"Noah Janssens (ste)"},{"$f":"IF(AND(M148<>\"\",M148=O148,R148=T148),L148,\"\")","v":""},{"$f":"IF(AND(M148<>\"\",M148=O148,R148=T148),P148,\"\")","v":""},{"$f":"IF(OR(M148<O148,R148<T148),L148,IF(OR(M148>O148,R148>T148),P148,\"\"))","v":"Phillipos Kordantonopoulos (rol)"},{"$f":"IF(OR($AB148=\"\",$AB148=\"V\"),\"\",IF(MOD($AB148,10)=1,\"XXX\",\"\"))","v":""},{"$f":"IF(OR($AB148=\"\",$AB148=\"V\"),\"\",IF(MOD($AB148,100)>=10,\"XXX\",\"\"))","v":""},{"$f":"IF(OR($AB148=\"\",$AB148=\"V\"),\"\",IF(MOD($AB148,1000)>=100,\"XXX\",\"\"))","v":""},{"$f":"IF(OR($AB148=\"\",$AB148=\"V\"),\"\",IF(MOD($AB148,10000)>=1000,\"XXX\",\"\"))","v":""},{"$f":"IF(OR($AB148=\"\",$AB148=\"V\"),\"\",IF(MOD($AB148,100000)>=10000,\"XXX\",\"\"))","v":""}]
[{"$f":"A148","v":"13:20:00"},null,null,null,{"$f":"N_Substitute","v":"Substitute"},null,{"$f":"G144&\"SB1\"","v":"TGSB1"},null,null,null,null,null,null,null,null,null,null,null,null,null,null,"13:20","13:20",0,0]
[{"$f":"A144","v":"13:20:00"},null,null,null,{"$f":"N_Substitute","v":"Substitute"},null,{"$f":"G144&\"SB2\"","v":"TGSB2"},null,null,null,null,null,null,null,null,null,null,null,null,null,null,"13:20","13:20",0,0]
[{"$f":"A136+P136","v":"14:05:00"},null,"Session Nbr ",null,{"$f":"E136+ 1","v":8},null,{"$f":"\"S\" & RIGHT(G136, LEN(G136)-1) + 1","v":"S8"},null,null,null,null,"Duration",null,":",null,"01:05:00"]
[{"$f":"OFFSET(A152,-1,0)","v":"14:05:00"},null,{"$f":"\"Team - \" & N_DEMI_FINALE","v":"Team - SEMI FINAL"},null,null,null,"TE",{"$f":"IF(K152=\"\",\"\",SUBSTITUTE(MID(K152,1,SEARCH(\"!\",K152,1)-1),\"'\",\"\"))","v":"Team"},{"$f":"IF(K152=\"\",\"\",CELL(\"row\",INDIRECT(K152)))","v":167},{"$f":"IF(K152=\"\",\"\",CELL(\"col\",INDIRECT(K152)))","v":25},{"$f":"MID(Lire_Formule(L152),2,10000)","v":"Team!Y167"},{"$f":"Team!Y167","v":"Bormla SC (bor)"},4,"-",0,{"$f":"IF(K152=\"\",\"\",IF(RIGHT(G152,1)=\"T\",INDIRECT(ADDRESS(I152+2,J152,4,TRUE,H152)),INDIRECT(ADDRESS(I152,J152+4,4,TRUE,H152))))","v":"TSC Royal 78 Kaisermühlen 2 (roy)"},{"$f":"IF(K152=\"\",\"\",IF(RIGHT(G152,1)=\"T\",INDIRECT(ADDRESS(I152+1,J152+3,4,TRUE,H152)),INDIRECT(ADDRESS(I152,J152+5,4,TRUE,H152))))","v":""},{"$f":"IF(K152=\"\",\"\",IF(RIGHT(G152,1)=\"T\",INDIRECT(ADDRESS(I152,J152+4,4,TRUE,H152)),INDIRECT(ADDRESS(I152+1,J152+1,4,TRUE,H152))))","v":23},"-",{"$f":"IF(K152=\"\",\"\",IF(RIGHT(G152,1)=\"T\",INDIRECT(ADDRESS(I152+2,J152+4,4,TRUE,H152)),INDIRECT(ADDRESS(I152+1,J152+3,4,TRUE,H152))))","v":0},null,{"$f":"L152&TEXT(A152,\"hh:mm\")","v":"Bormla SC (bor)14:05"},{"$f":"P152&TEXT(A152,\"hh:mm\")","v":"TSC Royal 78 Kaisermühlen 2 (roy)14:05"},{"$f":"IF(L152=\"\",0,COUNTIF(PlayersAndHoursCol1,L152&TEXT($A152,\"hh:mm\"))+COUNTIF(PlayersAndHoursCol2,L152&TEXT($A152,\"hh:mm\")))","v":1},{"$f":"IF(P152=\"\",0,COUNTIF(PlayersAndHoursCol1,P152&TEXT($A152,\"hh:mm\"))+COUNTIF(PlayersAndHoursCol2,P152&TEXT($A152,\"hh:mm\")))","v":1},{"$f":"IF(AA152=\"\",FALSE,NOT(AND(ISNA(MATCH(AA152&TEXT($A152,\"hh:mm\"),PlayersAndHoursCol1,0)),ISNA(MATCH(AA152&TEXT($A152,\"hh:mm\"),PlayersAndHoursCol2,0)),COUNTIF(AD:AD,AA152&$A152)<=1)))","v":false},"TSC Phoenix 2 (wie)","V",null,{"$f":"AA152&A152","v":"TSC Phoenix 2 (wie)0,586805555555556"},"Team",{"$f":"N_DEMI_FINALE","v":"SEMI FINAL"},null,{"$f":"IF(OR(M152>O152,R152>T152),L152,IF(OR(M152<O152,R152<T152),P152,\"\"))","v":"Bormla SC (bor)"},{"$f":"IF(AND(M152<>\"\",M152=O152,R152=T152),L152,\"\")","v":""},{"$f":"IF(AND(M152<>\"\",M152=O152,R152=T152),P152,\"\")","v":""},{"$f":"IF(OR(M152<O152,R152<T152),L152,IF(OR(M152>O152,R152>T152),P152,\"\"))","v":"TSC Royal 78 Kaisermühlen 2 (roy)"},{"$f":"IF(OR($AB152=\"\",$AB152=\"V\"),\"\",IF(MOD($AB152,10)=1,\"XXX\",\"\"))","v":""},{"$f":"IF(OR($AB152=\"\",$AB152=\"V\"),\"\",IF(MOD($AB152,100)>=10,\"XXX\",\"\"))","v":""},{"$f":"IF(OR($AB152=\"\",$AB152=\"V\"),\"\",IF(MOD($AB152,1000)>=100,\"XXX\",\"\"))","v":""},{"$f":"IF(OR($AB152=\"\",$AB152=\"V\"),\"\",IF(MOD($AB152,10000)>=1000,\"XXX\",\"\"))","v":""},{"$f":"IF(OR($AB152=\"\",$AB152=\"V\"),\"\",IF(MOD($AB152,100000)>=10000,\"XXX\",\"\"))","v":""}]
[{"$f":"A152","v":"14:05:00"},null,{"$f":"C152","v":"Team - SEMI FINAL"},null,null,null,{"$f":"G152&1","v":"TE1"},null,null,null,null,"Jean Carl Tabone (bor)",2,"-",0,"Heinz Eder (roy)",null,null,null,null,null,"Jean Carl Tabone (bor)14:05","Heinz Eder (roy)14:05",1,1,{"$f":"IF(AA153=\"\",FALSE,NOT(AND(ISNA(MATCH(AA153&TEXT($A153,\"hh:mm\"),PlayersAndHoursCol1,0)),ISNA(MATCH(AA153&TEXT($A153,\"hh:mm\"),PlayersAndHoursCol2,0)),COUNTIF(AD:AD,AA153&$A153)<=1)))","v":false},null,null,null,null,null,null,null,{"$f":"IF(OR(M153>O153,R153>T153),L153,IF(OR(M153<O153,R153<T153),P153,\"\"))","v":"Jean Carl Tabone (bor)"},{"$f":"IF(AND(M153<>\"\",M153=O153,R153=T153),L153,\"\")","v":""},{"$f":"IF(AND(M153<>\"\",M153=O153,R153=T153),P153,\"\")","v":""},{"$f":"IF(OR(M153<O153,R153<T153),L153,IF(OR(M153>O153,R153>T153),P153,\"\"))","v":"Heinz Eder (roy)"},"","","","",""]
[{"$f":"A153","v":"14:05:00"},null,{"$f":"C153","v":"Team - SEMI FINAL"},null,null,null,{"$f":"G152&2","v":"TE2"},null,null,null,null,"George Ebejer (bor)",7,"-",0,"Karl Vranovitz (roy)",null,null,null,null,null,"George Ebejer (bor)14:05","Karl Vranovitz (roy)14:05",1,1,{"$f":"IF(AA154=\"\",FALSE,NOT(AND(ISNA(MATCH(AA154&TEXT($A154,\"hh:mm\"),PlayersAndHoursCol1,0)),ISNA(MATCH(AA154&TEXT($A154,\"hh:mm\"),PlayersAndHoursCol2,0)),COUNTIF(AD:AD,AA154&$A154)<=1)))","v":false},null,null,null,null,null,null,null,{"$f":"IF(OR(M154>O154,R154>T154),L154,IF(OR(M154<O154,R154<T154),P154,\"\"))","v":"George Ebejer (bor)"},{"$f":"IF(AND(M154<>\"\",M154=O154,R154=T154),L154,\"\")","v":""},{"$f":"IF(AND(M154<>\"\",M154=O154,R154=T154),P154,\"\")","v":""},{"$f":"IF(OR(M154<O154,R154<T154),L154,IF(OR(M154>O154,R154>T154),P154,\"\"))","v":"Karl Vranovitz (roy)"},"","","","",""]
[{"$f":"A154","v":"14:05:00"},null,{"$f":"C154","v":"Team - SEMI FINAL"},null,null,null,{"$f":"G152&3","v":"TE3"},null,null,null,null,"Wolfgang Haas (bor)",6,"-",0,"Christian Hausmann (roy)",null,null,null,null,null,"Wolfgang Haas (bor)14:05","Christian Hausmann (roy)14:05",1,1,{"$f":"IF(AA155=\"\",FALSE,NOT(AND(ISNA(MATCH(AA155&TEXT($A155,\"hh:mm\"),PlayersAndHoursCol1,0)),ISNA(MATCH(AA155&TEXT($A155,\"hh:mm\"),PlayersAndHoursCol2,0)),COUNTIF(AD:AD,AA155&$A155)<=1)))","v":false},null,null,null,null,null,null,null,{"$f":"IF(OR(M155>O155,R155>T155),L155,IF(OR(M155<O155,R155<T155),P155,\"\"))","v":"Wolfgang Haas (bor)"},{"$f":"IF(AND(M155<>\"\",M155=O155,R155=T155),L155,\"\")","v":""},{"$f":"IF(AND(M155<>\"\",M155=O155,R155=T155),P155,\"\")","v":""},{"$f":"IF(OR(M155<O155,R155<T155),L155,IF(OR(M155>O155,R155>T155),P155,\"\"))","v":"Christian Hausmann (roy)"},"","","","",""]
[{"$f":"A155","v":"14:05:00"},null,{"$f":"C155","v":"Team - SEMI FINAL"},null,null,null,{"$f":"G152&4","v":"TE4"},null,null,null,null,"Christian Haas (bor)",8,"-",0,"David Scherbantin (roy)",null,null,null,null,null,"Christian Haas (bor)14:05","David Scherbantin (roy)14:05",1,1,{"$f":"IF(AA156=\"\",FALSE,NOT(AND(ISNA(MATCH(AA156&TEXT($A156,\"hh:mm\"),PlayersAndHoursCol1,0)),ISNA(MATCH(AA156&TEXT($A156,\"hh:mm\"),PlayersAndHoursCol2,0)),COUNTIF(AD:AD,AA156&$A156)<=1)))","v":false},null,null,null,null,null,null,null,{"$f":"IF(OR(M156>O156,R156>T156),L156,IF(OR(M156<O156,R156<T156),P156,\"\"))","v":"Christian Haas (bor)"},{"$f":"IF(AND(M156<>\"\",M156=O156,R156=T156),L156,\"\")","v":""},{"$f":"IF(AND(M156<>\"\",M156=O156,R156=T156),P156,\"\")","v":""},{"$f":"IF(OR(M156<O156,R156<T156),L156,IF(OR(M156>O156,R156>T156),P156,\"\"))","v":"David Scherbantin (roy)"},"","","","",""]
[{"$f":"A156","v":"14:05:00"},null,null,null,{"$f":"N_Différentiel","v":"Shoot Out"},null,{"$f":"G152&5","v":"TE5"},null,null,null,null,null,null,"-",null,null,null,null,null,null,null,"14:05","14:05",0,0,{"$f":"IF(AA157=\"\",FALSE,NOT(AND(ISNA(MATCH(AA157&TEXT($A157,\"hh:mm\"),PlayersAndHoursCol1,0)),ISNA(MATCH(AA157&TEXT($A157,\"hh:mm\"),PlayersAndHoursCol2,0)),COUNTIF(AD:AD,AA157&$A157)<=1)))","v":false},null,null,null,null,null,null,null,null,null,null,null,"","","","",""]
[{"$f":"A152","v":"14:05:00"},null,null,null,{"$f":"N_Substitute","v":"Substitute"},null,{"$f":"G152&\"SB1\"","v":"TESB1"},null,null,null,null,null,null,null,null,null,null,null,null,null,null,"14:05","14:05",0,0]
[{"$f":"A152","v":"14:05:00"},null,null,null,{"$f":"N_Substitute","v":"Substitute"},null,{"$f":"G152&\"SB2\"","v":"TESB2"},null,null,null,null,null,null,null,null,null,null,null,null,null,null,"14:05","14:05",0,0]
[{"$f":"OFFSET(A160,-1,0)","v":"14:05:00"},null,{"$f":"\"Team - \" & N_DEMI_FINALE","v":"Team - SEMI FINAL"},null,null,null,"TE",{"$f":"IF(K160=\"\",\"\",SUBSTITUTE(MID(K160,1,SEARCH(\"!\",K160,1)-1),\"'\",\"\"))","v":"Team"},{"$f":"IF(K160=\"\",\"\",CELL(\"row\",INDIRECT(K160)))","v":179},{"$f":"IF(K160=\"\",\"\",CELL(\"col\",INDIRECT(K160)))","v":25},{"$f":"MID(Lire_Formule(L160),2,10000)","v":"Team!Y179"},{"$f":"Team!Y179","v":"TSC Royal 78 Kaisermühlen (roy)"},0,"-",1,{"$f":"IF(K160=\"\",\"\",IF(RIGHT(G160,1)=\"T\",INDIRECT(ADDRESS(I160+2,J160,4,TRUE,H160)),INDIRECT(ADDRESS(I160,J160+4,4,TRUE,H160))))","v":"ST Stembert (ste)"},{"$f":"IF(K160=\"\",\"\",IF(RIGHT(G160,1)=\"T\",INDIRECT(ADDRESS(I160+1,J160+3,4,TRUE,H160)),INDIRECT(ADDRESS(I160,J160+5,4,TRUE,H160))))","v":""},{"$f":"IF(K160=\"\",\"\",IF(RIGHT(G160,1)=\"T\",INDIRECT(ADDRESS(I160,J160+4,4,TRUE,H160)),INDIRECT(ADDRESS(I160+1,J160+1,4,TRUE,H160))))","v":4},"-",{"$f":"IF(K160=\"\",\"\",IF(RIGHT(G160,1)=\"T\",INDIRECT(ADDRESS(I160+2,J160+4,4,TRUE,H160)),INDIRECT(ADDRESS(I160+1,J160+3,4,TRUE,H160))))","v":6},null,{"$f":"L160&TEXT(A160,\"hh:mm\")","v":"TSC Royal 78 Kaisermühlen (roy)14:05"},{"$f":"P160&TEXT(A160,\"hh:mm\")","v":"ST Stembert (ste)14:05"},{"$f":"IF(L160=\"\",0,COUNTIF(PlayersAndHoursCol1,L160&TEXT($A160,\"hh:mm\"))+COUNTIF(PlayersAndHoursCol2,L160&TEXT($A160,\"hh:mm\")))","v":1},{"$f":"IF(P160=\"\",0,COUNTIF(PlayersAndHoursCol1,P160&TEXT($A160,\"hh:mm\"))+COUNTIF(PlayersAndHoursCol2,P160&TEXT($A160,\"hh:mm\")))","v":1},{"$f":"IF(AA160=\"\",FALSE,NOT(AND(ISNA(MATCH(AA160&TEXT($A160,\"hh:mm\"),PlayersAndHoursCol1,0)),ISNA(MATCH(AA160&TEXT($A160,\"hh:mm\"),PlayersAndHoursCol2,0)),COUNTIF(AD:AD,AA160&$A160)<=1)))","v":false},"GCT DLF Gorizia (gor)","V",null,{"$f":"AA160&A160","v":"GCT DLF Gorizia (gor)0,586805555555556"},"Team",{"$f":"N_DEMI_FINALE","v":"SEMI FINAL"},null,{"$f":"IF(OR(M160>O160,R160>T160),L160,IF(OR(M160<O160,R160<T160),P160,\"\"))","v":"ST Stembert (ste)"},{"$f":"IF(AND(M160<>\"\",M160=O160,R160=T160),L160,\"\")","v":""},{"$f":"IF(AND(M160<>\"\",M160=O160,R160=T160),P160,\"\")","v":""},{"$f":"IF(OR(M160<O160,R160<T160),L160,IF(OR(M160>O160,R160>T160),P160,\"\"))","v":"TSC Royal 78 Kaisermühlen (roy)"},{"$f":"IF(OR($AB160=\"\",$AB160=\"V\"),\"\",IF(MOD($AB160,10)=1,\"XXX\",\"\"))","v":""},{"$f":"IF(OR($AB160=\"\",$AB160=\"V\"),\"\",IF(MOD($AB160,100)>=10,\"XXX\",\"\"))","v":""},{"$f":"IF(OR($AB160=\"\",$AB160=\"V\"),\"\",IF(MOD($AB160,1000)>=100,\"XXX\",\"\"))","v":""},{"$f":"IF(OR($AB160=\"\",$AB160=\"V\"),\"\",IF(MOD($AB160,10000)>=1000,\"XXX\",\"\"))","v":""},{"$f":"IF(OR($AB160=\"\",$AB160=\"V\"),\"\",IF(MOD($AB160,100000)>=10000,\"XXX\",\"\"))","v":""}]
[{"$f":"A160","v":"14:05:00"},null,{"$f":"C160","v":"Team - SEMI FINAL"},null,null,null,{"$f":"G160&1","v":"TE1"},null,null,null,null,"Stefan Sandner (roy)",1,"-",1,"Sébastien Rochez (ste)",null,null,null,null,null,"Stefan Sandner (roy)14:05","Sébastien Rochez (ste)14:05",1,1,{"$f":"IF(AA161=\"\",FALSE,NOT(AND(ISNA(MATCH(AA161&TEXT($A161,\"hh:mm\"),PlayersAndHoursCol1,0)),ISNA(MATCH(AA161&TEXT($A161,\"hh:mm\"),PlayersAndHoursCol2,0)),COUNTIF(AD:AD,AA161&$A161)<=1)))","v":false},null,null,null,null,null,null,null,{"$f":"IF(OR(M161>O161,R161>T161),L161,IF(OR(M161<O161,R161<T161),P161,\"\"))","v":""},{"$f":"IF(AND(M161<>\"\",M161=O161,R161=T161),L161,\"\")","v":"Stefan Sandner (roy)"},{"$f":"IF(AND(M161<>\"\",M161=O161,R161=T161),P161,\"\")","v":"Sébastien Rochez (ste)"},{"$f":"IF(OR(M161<O161,R161<T161),L161,IF(OR(M161>O161,R161>T161),P161,\"\"))","v":""},"","","","",""]
[{"$f":"A161","v":"14:05:00"},null,{"$f":"C161","v":"Team - SEMI FINAL"},null,null,null,{"$f":"G160&2","v":"TE2"},null,null,null,null,"Murat Tünger (roy)",1,"-",3,"Noah Janssens (ste)",null,null,null,null,null,"Murat Tünger (roy)14:05","Noah Janssens (ste)14:05",1,1,{"$f":"IF(AA162=\"\",FALSE,NOT(AND(ISNA(MATCH(AA162&TEXT($A162,\"hh:mm\"),PlayersAndHoursCol1,0)),ISNA(MATCH(AA162&TEXT($A162,\"hh:mm\"),PlayersAndHoursCol2,0)),COUNTIF(AD:AD,AA162&$A162)<=1)))","v":false},null,null,null,null,null,null,null,{"$f":"IF(OR(M162>O162,R162>T162),L162,IF(OR(M162<O162,R162<T162),P162,\"\"))","v":"Noah Janssens (ste)"},{"$f":"IF(AND(M162<>\"\",M162=O162,R162=T162),L162,\"\")","v":""},{"$f":"IF(AND(M162<>\"\",M162=O162,R162=T162),P162,\"\")","v":""},{"$f":"IF(OR(M162<O162,R162<T162),L162,IF(OR(M162>O162,R162>T162),P162,\"\"))","v":"Murat Tünger (roy)"},"","","","",""]
[{"$f":"A162","v":"14:05:00"},null,{"$f":"C162","v":"Team - SEMI FINAL"},null,null,null,{"$f":"G160&3","v":"TE3"},null,null,null,null,"Wolfgang Leitner (roy)",0,"-",0,"John Zammit (ste)",null,null,null,null,null,"Wolfgang Leitner (roy)14:05","John Zammit (ste)14:05",1,1,{"$f":"IF(AA163=\"\",FALSE,NOT(AND(ISNA(MATCH(AA163&TEXT($A163,\"hh:mm\"),PlayersAndHoursCol1,0)),ISNA(MATCH(AA163&TEXT($A163,\"hh:mm\"),PlayersAndHoursCol2,0)),COUNTIF(AD:AD,AA163&$A163)<=1)))","v":false},null,null,null,null,null,null,null,{"$f":"IF(OR(M163>O163,R163>T163),L163,IF(OR(M163<O163,R163<T163),P163,\"\"))","v":""},{"$f":"IF(AND(M163<>\"\",M163=O163,R163=T163),L163,\"\")","v":"Wolfgang Leitner (roy)"},{"$f":"IF(AND(M163<>\"\",M163=O163,R163=T163),P163,\"\")","v":"John Zammit (ste)"},{"$f":"IF(OR(M163<O163,R163<T163),L163,IF(OR(M163>O163,R163>T163),P163,\"\"))","v":""},"","","","",""]
[{"$f":"A163","v":"14:05:00"},null,{"$f":"C163","v":"Team - SEMI FINAL"},null,null,null,{"$f":"G160&4","v":"TE4"},null,null,null,null,"Alexander Haas (roy)",2,"-",2,"Pascal Scheen (ste)",null,null,null,null,null,"Alexander Haas (roy)14:05","Pascal Scheen (ste)14:05",1,1,{"$f":"IF(AA164=\"\",FALSE,NOT(AND(ISNA(MATCH(AA164&TEXT($A164,\"hh:mm\"),PlayersAndHoursCol1,0)),ISNA(MATCH(AA164&TEXT($A164,\"hh:mm\"),PlayersAndHoursCol2,0)),COUNTIF(AD:AD,AA164&$A164)<=1)))","v":false},null,null,null,null,null,null,null,{"$f":"IF(OR(M164>O164,R164>T164),L164,IF(OR(M164<O164,R164<T164),P164,\"\"))","v":""},{"$f":"IF(AND(M164<>\"\",M164=O164,R164=T164),L164,\"\")","v":"Alexander Haas (roy)"},{"$f":"IF(AND(M164<>\"\",M164=O164,R164=T164),P164,\"\")","v":"Pascal Scheen (ste)"},{"$f":"IF(OR(M164<O164,R164<T164),L164,IF(OR(M164>O164,R164>T164),P164,\"\"))","v":""},"","","","",""]
[{"$f":"A164","v":"14:05:00"},null,null,null,{"$f":"N_Différentiel","v":"Shoot Out"},null,{"$f":"G160&5","v":"TE5"},null,null,null,null,null,null,"-",null,null,null,null,null,null,null,"14:05","14:05",0,0,{"$f":"IF(AA165=\"\",FALSE,NOT(AND(ISNA(MATCH(AA165&TEXT($A165,\"hh:mm\"),PlayersAndHoursCol1,0)),ISNA(MATCH(AA165&TEXT($A165,\"hh:mm\"),PlayersAndHoursCol2,0)),COUNTIF(AD:AD,AA165&$A165)<=1)))","v":false},null,null,null,null,null,null,null,null,null,null,null,"","","","",""]
[{"$f":"A160","v":"14:05:00"},null,null,null,{"$f":"N_Substitute","v":"Substitute"},null,{"$f":"G160&\"SB1\"","v":"TESB1"},null,null,null,null,null,null,null,null,null,null,null,null,null,null,"14:05","14:05",0,0]
[{"$f":"A160","v":"14:05:00"},null,null,null,{"$f":"N_Substitute","v":"Substitute"},null,{"$f":"G160&\"SB2\"","v":"TESB2"},null,null,null,null,null,null,null,null,null,null,null,null,null,null,"14:05","14:05",0,0]
["17:05:00",null,"Session Nbr ",null,{"$f":"E151+1","v":9},null,{"$f":"\"S\" & RIGHT(G151, LEN(G151)-1) + 1","v":"S9"},null,null,null,null,"Duration",null,":",null,"01:05:00"]
[{"$f":"OFFSET(A169,-1,0)","v":"17:05:00"},null,{"$f":"\"Team - \" & N_FINALE","v":"Team - FINAL"},null,null,null,"TE",{"$f":"IF(K169=\"\",\"\",SUBSTITUTE(MID(K169,1,SEARCH(\"!\",K169,1)-1),\"'\",\"\"))","v":"Team"},{"$f":"IF(K169=\"\",\"\",CELL(\"row\",INDIRECT(K169)))","v":193},{"$f":"IF(K169=\"\",\"\",CELL(\"col\",INDIRECT(K169)))","v":25},{"$f":"MID(Lire_Formule(L169),2,10000)","v":"Team!Y193"},{"$f":"Team!Y193","v":"Bormla SC (bor)"},2,"-",0,{"$f":"IF(K169=\"\",\"\",IF(RIGHT(G169,1)=\"T\",INDIRECT(ADDRESS(I169+2,J169,4,TRUE,H169)),INDIRECT(ADDRESS(I169,J169+4,4,TRUE,H169))))","v":"ST Stembert (ste)"},{"$f":"IF(K169=\"\",\"\",IF(RIGHT(G169,1)=\"T\",INDIRECT(ADDRESS(I169+1,J169+3,4,TRUE,H169)),INDIRECT(ADDRESS(I169,J169+5,4,TRUE,H169))))","v":""},{"$f":"IF(K169=\"\",\"\",IF(RIGHT(G169,1)=\"T\",INDIRECT(ADDRESS(I169,J169+4,4,TRUE,H169)),INDIRECT(ADDRESS(I169+1,J169+1,4,TRUE,H169))))","v":5},"-",{"$f":"IF(K169=\"\",\"\",IF(RIGHT(G169,1)=\"T\",INDIRECT(ADDRESS(I169+2,J169+4,4,TRUE,H169)),INDIRECT(ADDRESS(I169+1,J169+3,4,TRUE,H169))))","v":3},null,{"$f":"L169&TEXT(A169,\"hh:mm\")","v":"Bormla SC (bor)17:05"},{"$f":"P169&TEXT(A169,\"hh:mm\")","v":"ST Stembert (ste)17:05"},{"$f":"IF(L169=\"\",0,COUNTIF(PlayersAndHoursCol1,L169&TEXT($A169,\"hh:mm\"))+COUNTIF(PlayersAndHoursCol2,L169&TEXT($A169,\"hh:mm\")))","v":1},{"$f":"IF(P169=\"\",0,COUNTIF(PlayersAndHoursCol1,P169&TEXT($A169,\"hh:mm\"))+COUNTIF(PlayersAndHoursCol2,P169&TEXT($A169,\"hh:mm\")))","v":1},{"$f":"IF(AA169=\"\",FALSE,NOT(AND(ISNA(MATCH(AA169&TEXT($A169,\"hh:mm\"),PlayersAndHoursCol1,0)),ISNA(MATCH(AA169&TEXT($A169,\"hh:mm\"),PlayersAndHoursCol2,0)),COUNTIF(AD:AD,AA169&$A169)<=1)))","v":false},"TSC Royal 78 Kaisermühlen (roy)","V",null,{"$f":"AA169&A169","v":"TSC Royal 78 Kaisermühlen (roy)0,711805555555556"},"Team",{"$f":"N_FINALE","v":"FINAL"},null,{"$f":"IF(OR(M169>O169,R169>T169),L169,IF(OR(M169<O169,R169<T169),P169,\"\"))","v":"Bormla SC (bor)"},{"$f":"IF(AND(M169<>\"\",M169=O169,R169=T169),L169,\"\")","v":""},{"$f":"IF(AND(M169<>\"\",M169=O169,R169=T169),P169,\"\")","v":""},{"$f":"IF(OR(M169<O169,R169<T169),L169,IF(OR(M169>O169,R169>T169),P169,\"\"))","v":"ST Stembert (ste)"},{"$f":"IF(OR($AB169=\"\",$AB169=\"V\"),\"\",IF(MOD($AB169,10)=1,\"XXX\",\"\"))","v":""},{"$f":"IF(OR($AB169=\"\",$AB169=\"V\"),\"\",IF(MOD($AB169,100)>=10,\"XXX\",\"\"))","v":""},{"$f":"IF(OR($AB169=\"\",$AB169=\"V\"),\"\",IF(MOD($AB169,1000)>=100,\"XXX\",\"\"))","v":""},{"$f":"IF(OR($AB169=\"\",$AB169=\"V\"),\"\",IF(MOD($AB169,10000)>=1000,\"XXX\",\"\"))","v":""},{"$f":"IF(OR($AB169=\"\",$AB169=\"V\"),\"\",IF(MOD($AB169,100000)>=10000,\"XXX\",\"\"))","v":""}]
[{"$f":"A169","v":"17:05:00"},null,{"$f":"C169","v":"Team - FINAL"},null,null,null,{"$f":"G169&1","v":"TE1"},null,null,null,null,"Christian Haas (bor)",1,"-",1,"John Zammit (ste)",null,null,null,null,null,"Christian Haas (bor)17:05","John Zammit (ste)17:05",1,1,{"$f":"IF(AA170=\"\",FALSE,NOT(AND(ISNA(MATCH(AA170&TEXT($A170,\"hh:mm\"),PlayersAndHoursCol1,0)),ISNA(MATCH(AA170&TEXT($A170,\"hh:mm\"),PlayersAndHoursCol2,0)),COUNTIF(AD:AD,AA170&$A170)<=1)))","v":false},null,null,null,null,null,null,null,{"$f":"IF(OR(M170>O170,R170>T170),L170,IF(OR(M170<O170,R170<T170),P170,\"\"))","v":""},{"$f":"IF(AND(M170<>\"\",M170=O170,R170=T170),L170,\"\")","v":"Christian Haas (bor)"},{"$f":"IF(AND(M170<>\"\",M170=O170,R170=T170),P170,\"\")","v":"John Zammit (ste)"},{"$f":"IF(OR(M170<O170,R170<T170),L170,IF(OR(M170>O170,R170>T170),P170,\"\"))","v":""},"","","","",""]
[{"$f":"A170","v":"17:05:00"},null,{"$f":"C170","v":"Team - FINAL"},null,null,null,{"$f":"G169&2","v":"TE2"},null,null,null,null,"Wolfgang Haas (bor)",2,"-",1,"Sébastien Rochez (ste)",null,null,null,null,null,"Wolfgang Haas (bor)17:05","Sébastien Rochez (ste)17:05",1,1,{"$f":"IF(AA171=\"\",FALSE,NOT(AND(ISNA(MATCH(AA171&TEXT($A171,\"hh:mm\"),PlayersAndHoursCol1,0)),ISNA(MATCH(AA171&TEXT($A171,\"hh:mm\"),PlayersAndHoursCol2,0)),COUNTIF(AD:AD,AA171&$A171)<=1)))","v":false},null,null,null,null,null,null,null,{"$f":"IF(OR(M171>O171,R171>T171),L171,IF(OR(M171<O171,R171<T171),P171,\"\"))","v":"Wolfgang Haas (bor)"},{"$f":"IF(AND(M171<>\"\",M171=O171,R171=T171),L171,\"\")","v":""},{"$f":"IF(AND(M171<>\"\",M171=O171,R171=T171),P171,\"\")","v":""},{"$f":"IF(OR(M171<O171,R171<T171),L171,IF(OR(M171>O171,R171>T171),P171,\"\"))","v":"Sébastien Rochez (ste)"},"","","","",""]
[{"$f":"A171","v":"17:05:00"},null,{"$f":"C171","v":"Team - FINAL"},null,null,null,{"$f":"G169&3","v":"TE3"},null,null,null,null,"Jason Pisani (bor)",1,"-",0,"Pascal Scheen (ste)",null,null,null,null,null,"Jason Pisani (bor)17:05","Pascal Scheen (ste)17:05",1,1,{"$f":"IF(AA172=\"\",FALSE,NOT(AND(ISNA(MATCH(AA172&TEXT($A172,\"hh:mm\"),PlayersAndHoursCol1,0)),ISNA(MATCH(AA172&TEXT($A172,\"hh:mm\"),PlayersAndHoursCol2,0)),COUNTIF(AD:AD,AA172&$A172)<=1)))","v":false},null,null,null,null,null,null,null,{"$f":"IF(OR(M172>O172,R172>T172),L172,IF(OR(M172<O172,R172<T172),P172,\"\"))","v":"Jason Pisani (bor)"},{"$f":"IF(AND(M172<>\"\",M172=O172,R172=T172),L172,\"\")","v":""},{"$f":"IF(AND(M172<>\"\",M172=O172,R172=T172),P172,\"\")","v":""},{"$f":"IF(OR(M172<O172,R172<T172),L172,IF(OR(M172>O172,R172>T172),P172,\"\"))","v":"Pascal Scheen (ste)"},"","","","",""]
[{"$f":"A172","v":"17:05:00"},null,{"$f":"C172","v":"Team - FINAL"},null,null,null,{"$f":"G169&4","v":"TE4"},null,null,null,null,"Charles Aquilina (bor)",1,"-",1,"Noah Janssens (ste)",null,null,null,null,null,"Charles Aquilina (bor)17:05","Noah Janssens (ste)17:05",1,1,{"$f":"IF(AA173=\"\",FALSE,NOT(AND(ISNA(MATCH(AA173&TEXT($A173,\"hh:mm\"),PlayersAndHoursCol1,0)),ISNA(MATCH(AA173&TEXT($A173,\"hh:mm\"),PlayersAndHoursCol2,0)),COUNTIF(AD:AD,AA173&$A173)<=1)))","v":false},null,null,null,null,null,null,null,{"$f":"IF(OR(M173>O173,R173>T173),L173,IF(OR(M173<O173,R173<T173),P173,\"\"))","v":""},{"$f":"IF(AND(M173<>\"\",M173=O173,R173=T173),L173,\"\")","v":"Charles Aquilina (bor)"},{"$f":"IF(AND(M173<>\"\",M173=O173,R173=T173),P173,\"\")","v":"Noah Janssens (ste)"},{"$f":"IF(OR(M173<O173,R173<T173),L173,IF(OR(M173>O173,R173>T173),P173,\"\"))","v":""},"","","","",""]
[{"$f":"A173","v":"17:05:00"},null,null,null,{"$f":"N_Différentiel","v":"Shoot Out"},null,{"$f":"G169&5","v":"TE5"},null,null,null,null,null,null,"-",null,null,null,null,null,null,null,"17:05","17:05",0,0,{"$f":"IF(AA174=\"\",FALSE,NOT(AND(ISNA(MATCH(AA174&TEXT($A174,\"hh:mm\"),PlayersAndHoursCol1,0)),ISNA(MATCH(AA174&TEXT($A174,\"hh:mm\"),PlayersAndHoursCol2,0)),COUNTIF(AD:AD,AA174&$A174)<=1)))","v":false},null,null,null,null,null,null,null,null,null,null,null,"","","","",""]
[{"$f":"A169","v":"17:05:00"},null,null,null,{"$f":"N_Substitute","v":"Substitute"},null,{"$f":"G169&\"SB1\"","v":"TESB1"},null,null,null,null,null,null,null,null,null,null,null,null,null,null,"17:05","17:05",0,0]
[{"$f":"A169","v":"17:05:00"},null,null,null,{"$f":"N_Substitute","v":"Substitute"},null,{"$f":"G169&\"SB2\"","v":"TESB2"},null,null,null,null,null,null,null,null,null,null,null,null,null,null,"17:05","17:05",0,0]
["18:10:00",null,{"$f":"N_Session","v":"Session Nbr "},null,{"$f":"E168+1","v":10},null,{"$f":"\"S\" & RIGHT(G168, LEN(G168)-1) + 1","v":"S10"},null,null,null,null,{"$f":"N_Duration","v":"Duration"},null,":",null,"01:05:00"]
[{"$f":"N_End_Planning","v":"END OF PLANNING"}]
[{"$f":"N_Insert_above","v":"Insert lines above this area"}]

{"sheet":"Refereeing","index":30,"n_rows":70,"n_cols":30,"rows_kept":70,"cut":false,"hidden":false,"merged":[[2,1,2,8],[4,1,4,8],[0,1,0,8],[1,1,1,8],[3,1,3,8]]}
[null,{"$f":"N_RefereeSheetTitle","v":"Referee List for usage in the planning"}]
[null,{"$f":"N_RefereeListReason","v":"This list make you the possibility to adapt the \"list of values\" available in the referee fields of the planning sheet for an easier use."}]
[null,{"$f":"N_RefereeList","v":"Use filters below to sort referee list (filtering has no effect)"}]
[null,{"$f":"N_RefereeListAdapt","v":"You can erase lines or add some characteristics within criterias Nb 1 to 4"}]
[null,{"$f":"N_RefereeListValidate","v":"When you validate chekin in the \"checkin\" sheet, this list is completly erased and restored and your personnal criterias are all suppressed"},null,null,null,null,null,null,null,1,2,3,4,5,6,7,8,9,10,11,12,13,14,15,16,17,18,19,20,21]
[{"$f":"COUNTA(RefereeList_NameFirstname)","v":64},{"$f":"N_Referee","v":"Referee"},{"$f":"N_Category","v":"Category"},{"$f":"N_Nb_Refereeing","v":"Nb refereed matches"},{"$f":"N_LastHourRefereeing","v":"Session of the last refereeing"},{"$f":"N_YourCriteria & \" \" & COLUMN(F6)  - 5","v":"Your criteria 1"},{"$f":"N_YourCriteria & \" \" & COLUMN(G6)  - 5","v":"Your criteria 2"},{"$f":"N_YourCriteria & \" \" & COLUMN(H6)  - 5","v":"Your criteria 3"},{"$f":"N_YourCriteria & \" \" & COLUMN(I6)  - 5","v":"Your criteria 4"},{"$f":"INDEX(Planning!$A:$A,MATCH(\"S\"&J5,Planning!$G:$G,0))","v":"08:30:00"},{"$f":"INDEX(Planning!$A:$A,MATCH(\"S\"&K5,Planning!$G:$G,0))","v":"09:20:00"},{"$f":"INDEX(Planning!$A:$A,MATCH(\"S\"&L5,Planning!$G:$G,0))","v":"10:10:00"},{"$f":"INDEX(Planning!$A:$A,MATCH(\"S\"&M5,Planning!$G:$G,0))","v":"11:00:00"},{"$f":"INDEX(Planning!$A:$A,MATCH(\"S\"&N5,Planning!$G:$G,0))","v":"11:40:00"},{"$f":"INDEX(Planning!$A:$A,MATCH(\"S\"&O5,Planning!$G:$G,0))","v":"12:30:00"},{"$f":"INDEX(Planning!$A:$A,MATCH(\"S\"&P5,Planning!$G:$G,0))","v":"13:20:00"},{"$f":"INDEX(Planning!$A:$A,MATCH(\"S\"&Q5,Planning!$G:$G,0))","v":"14:05:00"},{"$f":"INDEX(Planning!$A:$A,MATCH(\"S\"&R5,Planning!$G:$G,0))","v":"17:05:00"},{"$f":"INDEX(Planning!$A:$A,MATCH(\"S\"&S5,Planning!$G:$G,0))","v":"18:10:00"},{"$f":"INDEX(Planning!$A:$A,MATCH(\"S\"&T5,Planning!$G:$G,0))","v":{"$error":"#N/A"}},{"$f":"INDEX(Planning!$A:$A,MATCH(\"S\"&U5,Planning!$G:$G,0))","v":{"$error":"#N/A"}},{"$f":"INDEX(Planning!$A:$A,MATCH(\"S\"&V5,Planning!$G:$G,0))","v":{"$error":"#N/A"}},{"$f":"INDEX(Planning!$A:$A,MATCH(\"S\"&W5,Planning!$G:$G,0))","v":{"$error":"#N/A"}},{"$f":"INDEX(Planning!$A:$A,MATCH(\"S\"&X5,Planning!$G:$G,0))","v":{"$error":"#N/A"}},{"$f":"INDEX(Planning!$A:$A,MATCH(\"S\"&Y5,Planning!$G:$G,0))","v":{"$error":"#N/A"}},{"$f":"INDEX(Planning!$A:$A,MATCH(\"S\"&Z5,Planning!$G:$G,0))","v":{"$error":"#N/A"}},{"$f":"INDEX(Planning!$A:$A,MATCH(\"S\"&AA5,Planning!$G:$G,0))","v":{"$error":"#N/A"}},{"$f":"INDEX(Planning!$A:$A,MATCH(\"S\"&AB5,Planning!$G:$G,0))","v":{"$error":"#N/A"}},{"$f":"INDEX(Planning!$A:$A,MATCH(\"S\"&AC5,Planning!$G:$G,0))","v":{"$error":"#N/A"}},{"$f":"INDEX(Planning!$A:$A,MATCH(\"S\"&AD5,Planning!$G:$G,0))","v":{"$error":"#N/A"}}]
[null,"Wolfgang Haas (bor)","OPEN",0,0,null,null,null,null,"Wolfgang Haas (bor)","Wolfgang Haas (bor)","Wolfgang Haas (bor)","Wolfgang Haas (bor)",null,null,"Wolfgang Haas (bor)","Wolfgang Haas (bor)","Wolfgang Haas (bor)",null,"Wolfgang Haas (bor)","Wolfgang Haas (bor)","Wolfgang Haas (bor)","Wolfgang Haas (bor)","Wolfgang Haas (bor)","Wolfgang Haas (bor)","Wolfgang Haas (bor)","Wolfgang Haas (bor)","Wolfgang Haas (bor)","Wolfgang Haas (bor)","Wolfgang Haas (bor)"]
[null,"Saverio Bari (reg)","VET",0,0,null,null,null,null,"Saverio Bari (reg)","Saverio Bari (reg)","Saverio Bari (reg)","Saverio Bari (reg)","Saverio Bari (reg)","Saverio Bari (reg)","Saverio Bari (reg)","Saverio Bari (reg)","Saverio Bari (reg)","Saverio Bari (reg)","Saverio Bari (reg)","Saverio Bari (reg)","Saverio Bari (reg)","Saverio Bari (reg)","Saverio Bari (reg)","Saverio Bari (reg)","Saverio Bari (reg)","Saverio Bari (reg)","Saverio Bari (reg)","Saverio Bari (reg)","Saverio Bari (reg)"]
[null,"Mark Gauci (vll)","OPEN",0,0,null,null,null,null,"Mark Gauci (vll)","Mark Gauci (vll)","Mark Gauci (vll)","Mark Gauci (vll)","Mark Gauci (vll)","Mark Gauci (vll)","Mark Gauci (vll)","Mark Gauci (vll)","Mark Gauci (vll)","Mark Gauci (vll)","Mark Gauci (vll)","Mark Gauci (vll)","Mark Gauci (vll)","Mark Gauci (vll)","Mark Gauci (vll)","Mark Gauci (vll)","Mark Gauci (vll)","Mark Gauci (vll)","Mark Gauci (vll)","Mark Gauci (vll)","Mark Gauci (vll)"]
[null,"Pascal Scheen (ste)","VET",0,0,null,null,null,null,"Pascal Scheen (ste)","Pascal Scheen (ste)",null,"Pascal Scheen (ste)",null,null,null,"Pascal Scheen (ste)","Pascal Scheen (ste)",null,"Pascal Scheen (ste)","Pascal Scheen (ste)","Pascal Scheen (ste)","Pascal Scheen (ste)","Pascal Scheen (ste)","Pascal Scheen (ste)","Pascal Scheen (ste)","Pascal Scheen (ste)","Pascal Scheen (ste)","Pascal Scheen (ste)","Pascal Scheen (ste)"]
[null,"George Ebejer (bor)","OPEN",0,0,null,null,null,null,"George Ebejer (bor)",null,"George Ebejer (bor)",null,null,null,"George Ebejer (bor)","George Ebejer (bor)","George Ebejer (bor)",null,"George Ebejer (bor)","George Ebejer (bor)","George Ebejer (bor)","George Ebejer (bor)","George Ebejer (bor)","George Ebejer (bor)","George Ebejer (bor)","George Ebejer (bor)","George Ebejer (bor)","George Ebejer (bor)","George Ebejer (bor)"]
[null,"Sérgio Ramos (bol)","OPEN",0,0,null,null,null,null,"Sérgio Ramos (bol)","Sérgio Ramos (bol)","Sérgio Ramos (bol)","Sérgio Ramos (bol)","Sérgio Ramos (bol)","Sérgio Ramos (bol)","Sérgio Ramos (bol)","Sérgio Ramos (bol)","Sérgio Ramos (bol)","Sérgio Ramos (bol)","Sérgio Ramos (bol)","Sérgio Ramos (bol)","Sérgio Ramos (bol)","Sérgio Ramos (bol)","Sérgio Ramos (bol)","Sérgio Ramos (bol)","Sérgio Ramos (bol)","Sérgio Ramos (bol)","Sérgio Ramos (bol)","Sérgio Ramos (bol)","Sérgio Ramos (bol)"]
[null,"Wolfgang Leitner (roy)","OPEN",0,0,null,null,null,null,null,"Wolfgang Leitner (roy)",null,null,null,"Wolfgang Leitner (roy)","Wolfgang Leitner (roy)","Wolfgang Leitner (roy)","Wolfgang Leitner (roy)",null,"Wolfgang Leitner (roy)","Wolfgang Leitner (roy)","Wolfgang Leitner (roy)","Wolfgang Leitner (roy)","Wolfgang Leitner (roy)","Wolfgang Leitner (roy)","Wolfgang Leitner (roy)","Wolfgang Leitner (roy)","Wolfgang Leitner (roy)","Wolfgang Leitner (roy)","Wolfgang Leitner (roy)"]
[null,"Alexander Haas (roy)","OPEN",0,0,null,null,null,null,null,"Alexander Haas (roy)",null,null,null,"Alexander Haas (roy)","Alexander Haas (roy)","Alexander Haas (roy)","Alexander Haas (roy)",null,"Alexander Haas (roy)","Alexander Haas (roy)","Alexander Haas (roy)","Alexander Haas (roy)","Alexander Haas (roy)","Alexander Haas (roy)","Alexander Haas (roy)","Alexander Haas (roy)","Alexander Haas (roy)","Alexander Haas (roy)","Alexander Haas (roy)"]
[null,"Bernard Lim (jur)","VET",0,0,null,null,null,null,"Bernard Lim (jur)","Bernard Lim (jur)","Bernard Lim (jur)","Bernard Lim (jur)","Bernard Lim (jur)","Bernard Lim (jur)","Bernard Lim (jur)","Bernard Lim (jur)","Bernard Lim (jur)","Bernard Lim (jur)","Bernard Lim (jur)","Bernard Lim (jur)","Bernard Lim (jur)","Bernard Lim (jur)","Bernard Lim (jur)","Bernard Lim (jur)","Bernard Lim (jur)","Bernard Lim (jur)","Bernard Lim (jur)","Bernard Lim (jur)","Bernard Lim (jur)"]
[null,"Giannis Nikolaidis (atl)","VET",0,0,null,null,null,null,null,null,"Giannis Nikolaidis (atl)",null,"Giannis Nikolaidis (atl)","Giannis Nikolaidis (atl)",null,"Giannis Nikolaidis (atl)","Giannis Nikolaidis (atl)","Giannis Nikolaidis (atl)","Giannis Nikolaidis (atl)","Giannis Nikolaidis (atl)","Giannis Nikolaidis (atl)","Giannis Nikolaidis (atl)","Giannis Nikolaidis (atl)","Giannis Nikolaidis (atl)","Giannis Nikolaidis (atl)","Giannis Nikolaidis (atl)","Giannis Nikolaidis (atl)","Giannis Nikolaidis (atl)","Giannis Nikolaidis (atl)"]
[null,"Jean Carl Tabone (bor)","OPEN",0,0,null,null,null,null,"Jean Carl Tabone (bor)",null,"Jean Carl Tabone (bor)",null,null,null,"Jean Carl Tabone (bor)","Jean Carl Tabone (bor)","Jean Carl Tabone (bor)",null,"Jean Carl Tabone (bor)","Jean Carl Tabone (bor)","Jean Carl Tabone (bor)","Jean Carl Tabone (bor)","Jean Carl Tabone (bor)","Jean Carl Tabone (bor)","Jean Carl Tabone (bor)","Jean Carl Tabone (bor)","Jean Carl Tabone (bor)","Jean Carl Tabone (bor)","Jean Carl Tabone (bor)"]
[null,"David Vacke (cst)","OPEN",0,0,null,null,null,null,"David Vacke (cst)","David Vacke (cst)","David Vacke (cst)","David Vacke (cst)","David Vacke (cst)","David Vacke (cst)","David Vacke (cst)","David Vacke (cst)","David Vacke (cst)","David Vacke (cst)","David Vacke (cst)","David Vacke (cst)","David Vacke (cst)","David Vacke (cst)","David Vacke (cst)","David Vacke (cst)","David Vacke (cst)","David Vacke (cst)","David Vacke (cst)","David Vacke (cst)","David Vacke (cst)"]
[null,"Stylianos Tsangouris (atl)","OPEN",0,0,null,null,null,null,null,null,"Stylianos Tsangouris (atl)",null,"Stylianos Tsangouris (atl)","Stylianos Tsangouris (atl)",null,"Stylianos Tsangouris (atl)","Stylianos Tsangouris (atl)","Stylianos Tsangouris (atl)","Stylianos Tsangouris (atl)","Stylianos Tsangouris (atl)","Stylianos Tsangouris (atl)","Stylianos Tsangouris (atl)","Stylianos Tsangouris (atl)","Stylianos Tsangouris (atl)","Stylianos Tsangouris (atl)","Stylianos Tsangouris (atl)","Stylianos Tsangouris (atl)","Stylianos Tsangouris (atl)","Stylianos Tsangouris (atl)"]
[null,"Noah Janssens (ste)","U20",0,0,null,null,null,null,"Noah Janssens (ste)","Noah Janssens (ste)",null,"Noah Janssens (ste)",null,null,null,"Noah Janssens (ste)","Noah Janssens (ste)",null,"Noah Janssens (ste)","Noah Janssens (ste)","Noah Janssens (ste)","Noah Janssens (ste)","Noah Janssens (ste)","Noah Janssens (ste)","Noah Janssens (ste)","Noah Janssens (ste)","Noah Janssens (ste)","Noah Janssens (ste)","Noah Janssens (ste)"]
[null,"Joffray Laurent (atl)","OPEN",0,0,null,null,null,null,null,null,"Joffray Laurent (atl)",null,"Joffray Laurent (atl)","Joffray Laurent (atl)",null,"Joffray Laurent (atl)","Joffray Laurent (atl)","Joffray Laurent (atl)","Joffray Laurent (atl)","Joffray Laurent (atl)","Joffray Laurent (atl)","Joffray Laurent (atl)","Joffray Laurent (atl)","Joffray Laurent (atl)","Joffray Laurent (atl)","Joffray Laurent (atl)","Joffray Laurent (atl)","Joffray Laurent (atl)","Joffray Laurent (atl)"]
[null,"Erich Hinkelmann (wie)","VET",0,0,null,null,null,null,null,null,"Erich Hinkelmann (wie)",null,"Erich Hinkelmann (wie)","Erich Hinkelmann (wie)",null,"Erich Hinkelmann (wie)","Erich Hinkelmann (wie)","Erich Hinkelmann (wie)","Erich Hinkelmann (wie)","Erich Hinkelmann (wie)","Erich Hinkelmann (wie)","Erich Hinkelmann (wie)","Erich Hinkelmann (wie)","Erich Hinkelmann (wie)","Erich Hinkelmann (wie)","Erich Hinkelmann (wie)","Erich Hinkelmann (wie)","Erich Hinkelmann (wie)","Erich Hinkelmann (wie)"]
[null,"Thomas Wittmann (roy)","OPEN",0,0,null,null,null,null,"Thomas Wittmann (roy)","Thomas Wittmann (roy)","Thomas Wittmann (roy)","Thomas Wittmann (roy)","Thomas Wittmann (roy)","Thomas Wittmann (roy)","Thomas Wittmann (roy)","Thomas Wittmann (roy)","Thomas Wittmann (roy)","Thomas Wittmann (roy)","Thomas Wittmann (roy)","Thomas Wittmann (roy)","Thomas Wittmann (roy)","Thomas Wittmann (roy)","Thomas Wittmann (roy)","Thomas Wittmann (roy)","Thomas Wittmann (roy)","Thomas Wittmann (roy)","Thomas Wittmann (roy)","Thomas Wittmann (roy)","Thomas Wittmann (roy)"]
[null,"Murat Tünger (roy)","OPEN",0,0,null,null,null,null,null,"Murat Tünger (roy)","Murat Tünger (roy)",null,null,"Murat Tünger (roy)","Murat Tünger (roy)","Murat Tünger (roy)","Murat Tünger (roy)",null,"Murat Tünger (roy)","Murat Tünger (roy)","Murat Tünger (roy)","Murat Tünger (roy)","Murat Tünger (roy)","Murat Tünger (roy)","Murat Tünger (roy)","Murat Tünger (roy)","Murat Tünger (roy)","Murat Tünger (roy)","Murat Tünger (roy)"]
[null,"Michael Stolzenberg ()","OPEN",0,0,null,null,null,null,null,null,null,"Michael Stolzenberg ()","Michael Stolzenberg ()",null,"Michael Stolzenberg ()","Michael Stolzenberg ()","Michael Stolzenberg ()","Michael Stolzenberg ()","Michael Stolzenberg ()","Michael Stolzenberg ()","Michael Stolzenberg ()","Michael Stolzenberg ()","Michael Stolzenberg ()","Michael Stolzenberg ()","Michael Stolzenberg ()","Michael Stolzenberg ()","Michael Stolzenberg ()","Michael Stolzenberg ()","Michael Stolzenberg ()"]
[null,"Christian Haas (bor)","OPEN",0,0,null,null,null,null,"Christian Haas (bor)",null,"Christian Haas (bor)",null,null,null,"Christian Haas (bor)","Christian Haas (bor)","Christian Haas (bor)",null,"Christian Haas (bor)","Christian Haas (bor)","Christian Haas (bor)","Christian Haas (bor)","Christian Haas (bor)","Christian Haas (bor)","Christian Haas (bor)","Christian Haas (bor)","Christian Haas (bor)","Christian Haas (bor)","Christian Haas (bor)"]
[null,"Claudio Colpani (acp)","VET",0,0,null,null,null,null,"Claudio Colpani (acp)","Claudio Colpani (acp)","Claudio Colpani (acp)","Claudio Colpani (acp)","Claudio Colpani (acp)","Claudio Colpani (acp)","Claudio Colpani (acp)","Claudio Colpani (acp)","Claudio Colpani (acp)","Claudio Colpani (acp)","Claudio Colpani (acp)","Claudio Colpani (acp)","Claudio Colpani (acp)","Claudio Colpani (acp)","Claudio Colpani (acp)","Claudio Colpani (acp)","Claudio Colpani (acp)","Claudio Colpani (acp)","Claudio Colpani (acp)","Claudio Colpani (acp)","Claudio Colpani (acp)"]
[null,"Michele Cerullo (gor)","OPEN",0,0,null,null,null,null,null,null,null,"Michele Cerullo (gor)","Michele Cerullo (gor)",null,"Michele Cerullo (gor)","Michele Cerullo (gor)","Michele Cerullo (gor)","Michele Cerullo (gor)","Michele Cerullo (gor)","Michele Cerullo (gor)","Michele Cerullo (gor)","Michele Cerullo (gor)","Michele Cerullo (gor)","Michele Cerullo (gor)","Michele Cerullo (gor)","Michele Cerullo (gor)","Michele Cerullo (gor)","Michele Cerullo (gor)","Michele Cerullo (gor)"]
[null,"Marcel Schulz (sch)","OPEN",0,0,null,null,null,null,"Marcel Schulz (sch)",null,"Marcel Schulz (sch)",null,null,null,"Marcel Schulz (sch)","Marcel Schulz (sch)","Marcel Schulz (sch)","Marcel Schulz (sch)","Marcel Schulz (sch)","Marcel Schulz (sch)","Marcel Schulz (sch)","Marcel Schulz (sch)","Marcel Schulz (sch)","Marcel Schulz (sch)","Marcel Schulz (sch)","Marcel Schulz (sch)","Marcel Schulz (sch)","Marcel Schulz (sch)","Marcel Schulz (sch)"]
[null,"Athanasios Kordantonopoulos (rol)","OPEN",0,0,null,null,null,null,"Athanasios Kordantonopoulos (rol)","Athanasios Kordantonopoulos (rol)",null,null,"Athanasios Kordantonopoulos (rol)",null,null,"Athanasios Kordantonopoulos (rol)","Athanasios Kordantonopoulos (rol)","Athanasios Kordantonopoulos (rol)","Athanasios Kordantonopoulos (rol)","Athanasios Kordantonopoulos (rol)","Athanasios Kordantonopoulos (rol)","Athanasios Kordantonopoulos (rol)","Athanasios Kordantonopoulos (rol)","Athanasios Kordantonopoulos (rol)","Athanasios Kordantonopoulos (rol)","Athanasios Kordantonopoulos (rol)","Athanasios Kordantonopoulos (rol)","Athanasios Kordantonopoulos (rol)","Athanasios Kordantonopoulos (rol)"]
[null,"Daniel Vranovitz (roy)","OPEN",0,0,null,null,null,null,null,"Daniel Vranovitz (roy)",null,"Daniel Vranovitz (roy)",null,"Daniel Vranovitz (roy)","Daniel Vranovitz (roy)","Daniel Vranovitz (roy)","Daniel Vranovitz (roy)","Daniel Vranovitz (roy)","Daniel Vranovitz (roy)","Daniel Vranovitz (roy)","Daniel Vranovitz (roy)","Daniel Vranovitz (roy)","Daniel Vranovitz (roy)","Daniel Vranovitz (roy)","Daniel Vranovitz (roy)","Daniel Vranovitz (roy)","Daniel Vranovitz (roy)","Daniel Vranovitz (roy)","Daniel Vranovitz (roy)"]
[null,"Christian Hausmann (roy)","OPEN",0,0,null,null,null,null,null,null,null,"Christian Hausmann (roy)",null,"Christian Hausmann (roy)","Christian Hausmann (roy)","Christian Hausmann (roy)","Christian Hausmann (roy)",null,"Christian Hausmann (roy)","Christian Hausmann (roy)","Christian Hausmann (roy)","Christian Hausmann (roy)","Christian Hausmann (roy)","Christian Hausmann (roy)","Christian Hausmann (roy)","Christian Hausmann (roy)","Christian Hausmann (roy)","Christian Hausmann (roy)","Christian Hausmann (roy)"]
[null,"Reinhard Schöberl (roy)","OPEN",0,0,null,null,null,null,"Reinhard Schöberl (roy)","Reinhard Schöberl (roy)","Reinhard Schöberl (roy)","Reinhard Schöberl (roy)","Reinhard Schöberl (roy)","Reinhard Schöberl (roy)","Reinhard Schöberl (roy)","Reinhard Schöberl (roy)","Reinhard Schöberl (roy)","Reinhard Schöberl (roy)","Reinhard Schöberl (roy)","Reinhard Schöberl (roy)","Reinhard Schöberl (roy)","Reinhard Schöberl (roy)","Reinhard Schöberl (roy)","Reinhard Schöberl (roy)","Reinhard Schöberl (roy)","Reinhard Schöberl (roy)","Reinhard Schöberl (roy)","Reinhard Schöberl (roy)","Reinhard Schöberl (roy)"]
[null,"David Scherbantin (roy)","OPEN",0,0,null,null,null,null,"David Scherbantin (roy)","David Scherbantin (roy)",null,"David Scherbantin (roy)",null,"David Scherbantin (roy)","David Scherbantin (roy)","David Scherbantin (roy)","David Scherbantin (roy)",null,"David Scherbantin (roy)","David Scherbantin (roy)","David Scherbantin (roy)","David Scherbantin (roy)","David Scherbantin (roy)","David Scherbantin (roy)","David Scherbantin (roy)","David Scherbantin (roy)","David Scherbantin (roy)","David Scherbantin (roy)","David Scherbantin (roy)"]
[null,"Jason Pisani (bor)","VET",0,0,null,null,null,null,"Jason Pisani (bor)",null,"Jason Pisani (bor)",null,null,null,"Jason Pisani (bor)","Jason Pisani (bor)","Jason Pisani (bor)","Jason Pisani (bor)","Jason Pisani (bor)","Jason Pisani (bor)","Jason Pisani (bor)","Jason Pisani (bor)","Jason Pisani (bor)","Jason Pisani (bor)","Jason Pisani (bor)","Jason Pisani (bor)","Jason Pisani (bor)","Jason Pisani (bor)","Jason Pisani (bor)"]
[null,"Daniel Scheen (tib)","VET",0,0,null,null,null,null,"Daniel Scheen (tib)","Daniel Scheen (tib)","Daniel Scheen (tib)","Daniel Scheen (tib)","Daniel Scheen (tib)","Daniel Scheen (tib)","Daniel Scheen (tib)","Daniel Scheen (tib)","Daniel Scheen (tib)","Daniel Scheen (tib)","Daniel Scheen (tib)","Daniel Scheen (tib)","Daniel Scheen (tib)","Daniel Scheen (tib)","Daniel Scheen (tib)","Daniel Scheen (tib)","Daniel Scheen (tib)","Daniel Scheen (tib)","Daniel Scheen (tib)","Daniel Scheen (tib)","Daniel Scheen (tib)"]
[null,"Charles Aquilina (bor)","VET",0,0,null,null,null,null,"Charles Aquilina (bor)",null,"Charles Aquilina (bor)",null,null,null,"Charles Aquilina (bor)","Charles Aquilina (bor)","Charles Aquilina (bor)","Charles Aquilina (bor)","Charles Aquilina (bor)","Charles Aquilina (bor)","Charles Aquilina (bor)","Charles Aquilina (bor)","Charles Aquilina (bor)","Charles Aquilina (bor)","Charles Aquilina (bor)","Charles Aquilina (bor)","Charles Aquilina (bor)","Charles Aquilina (bor)","Charles Aquilina (bor)"]
[null,"Pasquale Torano (fer)","VET",0,0,null,null,null,null,"Pasquale Torano (fer)","Pasquale Torano (fer)","Pasquale Torano (fer)","Pasquale Torano (fer)","Pasquale Torano (fer)","Pasquale Torano (fer)","Pasquale Torano (fer)","Pasquale Torano (fer)","Pasquale Torano (fer)","Pasquale Torano (fer)","Pasquale Torano (fer)","Pasquale Torano (fer)","Pasquale Torano (fer)","Pasquale Torano (fer)","Pasquale Torano (fer)","Pasquale Torano (fer)","Pasquale Torano (fer)","Pasquale Torano (fer)","Pasquale Torano (fer)","Pasquale Torano (fer)","Pasquale Torano (fer)"]
[null,"Lazaros Papakonstantinou (atl)","VET",0,0,null,null,null,null,"Lazaros Papakonstantinou (atl)",null,"Lazaros Papakonstantinou (atl)",null,"Lazaros Papakonstantinou (atl)","Lazaros Papakonstantinou (atl)",null,"Lazaros Papakonstantinou (atl)","Lazaros Papakonstantinou (atl)","Lazaros Papakonstantinou (atl)","Lazaros Papakonstantinou (atl)","Lazaros Papakonstantinou (atl)","Lazaros Papakonstantinou (atl)","Lazaros Papakonstantinou (atl)","Lazaros Papakonstantinou (atl)","Lazaros Papakonstantinou (atl)","Lazaros Papakonstantinou (atl)","Lazaros Papakonstantinou (atl)","Lazaros Papakonstantinou (atl)","Lazaros Papakonstantinou (atl)","Lazaros Papakonstantinou (atl)"]
[null,"David Busch (bor)","VET",0,0,null,null,null,null,"David Busch (bor)","David Busch (bor)","David Busch (bor)","David Busch (bor)","David Busch (bor)","David Busch (bor)","David Busch (bor)","David Busch (bor)","David Busch (bor)","David Busch (bor)","David Busch (bor)","David Busch (bor)","David Busch (bor)","David Busch (bor)","David Busch (bor)","David Busch (bor)","David Busch (bor)","David Busch (bor)","David Busch (bor)","David Busch (bor)","David Busch (bor)"]
[null,"John Zammit (ste)","VET",0,0,null,null,null,null,"John Zammit (ste)","John Zammit (ste)",null,"John Zammit (ste)",null,null,null,"John Zammit (ste)","John Zammit (ste)",null,"John Zammit (ste)","John Zammit (ste)","John Zammit (ste)","John Zammit (ste)","John Zammit (ste)","John Zammit (ste)","John Zammit (ste)","John Zammit (ste)","John Zammit (ste)","John Zammit (ste)","John Zammit (ste)"]
[null,"Massimiliano Croatti (msa)","VET",0,0,null,null,null,null,"Massimiliano Croatti (msa)","Massimiliano Croatti (msa)","Massimiliano Croatti (msa)","Massimiliano Croatti (msa)","Massimiliano Croatti (msa)","Massimiliano Croatti (msa)","Massimiliano Croatti (msa)","Massimiliano Croatti (msa)","Massimiliano Croatti (msa)","Massimiliano Croatti (msa)","Massimiliano Croatti (msa)","Massimiliano Croatti (msa)","Massimiliano Croatti (msa)","Massimiliano Croatti (msa)","Massimiliano Croatti (msa)","Massimiliano Croatti (msa)","Massimiliano Croatti (msa)","Massimiliano Croatti (msa)","Massimiliano Croatti (msa)","Massimiliano Croatti (msa)","Massimiliano Croatti (msa)"]
[null,"Francesco Torano (msa)","VET",0,0,null,null,null,null,"Francesco Torano (msa)","Francesco Torano (msa)","Francesco Torano (msa)","Francesco Torano (msa)","Francesco Torano (msa)","Francesco Torano (msa)","Francesco Torano (msa)","Francesco Torano (msa)","Francesco Torano (msa)","Francesco Torano (msa)","Francesco Torano (msa)","Francesco Torano (msa)","Francesco Torano (msa)","Francesco Torano (msa)","Francesco Torano (msa)","Francesco Torano (msa)","Francesco Torano (msa)","Francesco Torano (msa)","Francesco Torano (msa)","Francesco Torano (msa)","Francesco Torano (msa)"]
[null,"Christian Haas (bor)","OPEN",0,0,null,null,null,null,"Christian Haas (bor)",null,"Christian Haas (bor)",null,null,null,"Christian Haas (bor)","Christian Haas (bor)","Christian Haas (bor)",null,"Christian Haas (bor)","Christian Haas (bor)","Christian Haas (bor)","Christian Haas (bor)","Christian Haas (bor)","Christian Haas (bor)","Christian Haas (bor)","Christian Haas (bor)","Christian Haas (bor)","Christian Haas (bor)","Christian Haas (bor)"]
[null,"Günther Bamberzky (crh)","VET",0,0,null,null,null,null,"Günther Bamberzky (crh)","Günther Bamberzky (crh)","Günther Bamberzky (crh)","Günther Bamberzky (crh)","Günther Bamberzky (crh)","Günther Bamberzky (crh)","Günther Bamberzky (crh)","Günther Bamberzky (crh)","Günther Bamberzky (crh)","Günther Bamberzky (crh)","Günther Bamberzky (crh)","Günther Bamberzky (crh)","Günther Bamberzky (crh)","Günther Bamberzky (crh)","Günther Bamberzky (crh)","Günther Bamberzky (crh)","Günther Bamberzky (crh)","Günther Bamberzky (crh)","Günther Bamberzky (crh)","Günther Bamberzky (crh)","Günther Bamberzky (crh)"]
[null,"Panagiotis Krommydas (hop)","VET",0,0,null,null,null,null,"Panagiotis Krommydas (hop)","Panagiotis Krommydas (hop)","Panagiotis Krommydas (hop)","Panagiotis Krommydas (hop)","Panagiotis Krommydas (hop)","Panagiotis Krommydas (hop)","Panagiotis Krommydas (hop)","Panagiotis Krommydas (hop)","Panagiotis Krommydas (hop)","Panagiotis Krommydas (hop)","Panagiotis Krommydas (hop)","Panagiotis Krommydas (hop)","Panagiotis Krommydas (hop)","Panagiotis Krommydas (hop)","Panagiotis Krommydas (hop)","Panagiotis Krommydas (hop)","Panagiotis Krommydas (hop)","Panagiotis Krommydas (hop)","Panagiotis Krommydas (hop)","Panagiotis Krommydas (hop)","Panagiotis Krommydas (hop)"]
[null,"Sébastien Rochez (ste)","VET",0,0,null,null,null,null,"Sébastien Rochez (ste)","Sébastien Rochez (ste)",null,"Sébastien Rochez (ste)",null,null,null,"Sébastien Rochez (ste)","Sébastien Rochez (ste)",null,"Sébastien Rochez (ste)","Sébastien Rochez (ste)","Sébastien Rochez (ste)","Sébastien Rochez (ste)","Sébastien Rochez (ste)","Sébastien Rochez (ste)","Sébastien Rochez (ste)","Sébastien Rochez (ste)","Sébastien Rochez (ste)","Sébastien Rochez (ste)","Sébastien Rochez (ste)"]
[null,"Joseph Mifsud (fia)","VET",0,0,null,null,null,null,"Joseph Mifsud (fia)","Joseph Mifsud (fia)","Joseph Mifsud (fia)","Joseph Mifsud (fia)","Joseph Mifsud (fia)","Joseph Mifsud (fia)","Joseph Mifsud (fia)","Joseph Mifsud (fia)","Joseph Mifsud (fia)","Joseph Mifsud (fia)","Joseph Mifsud (fia)","Joseph Mifsud (fia)","Joseph Mifsud (fia)","Joseph Mifsud (fia)","Joseph Mifsud (fia)","Joseph Mifsud (fia)","Joseph Mifsud (fia)","Joseph Mifsud (fia)","Joseph Mifsud (fia)","Joseph Mifsud (fia)","Joseph Mifsud (fia)"]
[null,"Georgios Dimakeas (rol)","VET",0,0,null,null,null,null,"Georgios Dimakeas (rol)","Georgios Dimakeas (rol)",null,null,"Georgios Dimakeas (rol)",null,null,"Georgios Dimakeas (rol)","Georgios Dimakeas (rol)","Georgios Dimakeas (rol)","Georgios Dimakeas (rol)","Georgios Dimakeas (rol)","Georgios Dimakeas (rol)","Georgios Dimakeas (rol)","Georgios Dimakeas (rol)","Georgios Dimakeas (rol)","Georgios Dimakeas (rol)","Georgios Dimakeas (rol)","Georgios Dimakeas (rol)","Georgios Dimakeas (rol)","Georgios Dimakeas (rol)"]
[null,"Robert Green (nfc)","VET",0,0,null,null,null,null,"Robert Green (nfc)",null,"Robert Green (nfc)",null,null,null,"Robert Green (nfc)","Robert Green (nfc)","Robert Green (nfc)","Robert Green (nfc)","Robert Green (nfc)","Robert Green (nfc)","Robert Green (nfc)","Robert Green (nfc)","Robert Green (nfc)","Robert Green (nfc)","Robert Green (nfc)","Robert Green (nfc)","Robert Green (nfc)","Robert Green (nfc)","Robert Green (nfc)"]
[null,"Athanasios Chaliotis (atl)","VET",0,0,null,null,null,null,null,null,"Athanasios Chaliotis (atl)",null,"Athanasios Chaliotis (atl)","Athanasios Chaliotis (atl)",null,"Athanasios Chaliotis (atl)","Athanasios Chaliotis (atl)","Athanasios Chaliotis (atl)","Athanasios Chaliotis (atl)","Athanasios Chaliotis (atl)","Athanasios Chaliotis (atl)","Athanasios Chaliotis (atl)","Athanasios Chaliotis (atl)","Athanasios Chaliotis (atl)","Athanasios Chaliotis (atl)","Athanasios Chaliotis (atl)","Athanasios Chaliotis (atl)","Athanasios Chaliotis (atl)","Athanasios Chaliotis (atl)"]
[null,"Peter Erb (sub)","VET",0,0,null,null,null,null,"Peter Erb (sub)",null,"Peter Erb (sub)","Peter Erb (sub)",null,null,"Peter Erb (sub)","Peter Erb (sub)","Peter Erb (sub)","Peter Erb (sub)","Peter Erb (sub)","Peter Erb (sub)","Peter Erb (sub)","Peter Erb (sub)","Peter Erb (sub)","Peter Erb (sub)","Peter Erb (sub)","Peter Erb (sub)","Peter Erb (sub)","Peter Erb (sub)","Peter Erb (sub)"]
[null,"Marco Pinausi (gor)","VET",0,0,null,null,null,null,null,null,null,"Marco Pinausi (gor)","Marco Pinausi (gor)",null,"Marco Pinausi (gor)","Marco Pinausi (gor)","Marco Pinausi (gor)","Marco Pinausi (gor)","Marco Pinausi (gor)","Marco Pinausi (gor)","Marco Pinausi (gor)","Marco Pinausi (gor)","Marco Pinausi (gor)","Marco Pinausi (gor)","Marco Pinausi (gor)","Marco Pinausi (gor)","Marco Pinausi (gor)","Marco Pinausi (gor)","Marco Pinausi (gor)"]
[null,"Karl Vranovitz (roy)","VET",0,0,null,null,null,null,null,null,null,"Karl Vranovitz (roy)",null,"Karl Vranovitz (roy)","Karl Vranovitz (roy)","Karl Vranovitz (roy)","Karl Vranovitz (roy)",null,"Karl Vranovitz (roy)","Karl Vranovitz (roy)","Karl Vranovitz (roy)","Karl Vranovitz (roy)","Karl Vranovitz (roy)","Karl Vranovitz (roy)","Karl Vranovitz (roy)","Karl Vranovitz (roy)","Karl Vranovitz (roy)","Karl Vranovitz (roy)","Karl Vranovitz (roy)"]
[null,"Fabio Domenico ()","VET",0,0,null,null,null,null,"Fabio Domenico ()","Fabio Domenico ()","Fabio Domenico ()",null,null,null,"Fabio Domenico ()","Fabio Domenico ()","Fabio Domenico ()","Fabio Domenico ()","Fabio Domenico ()","Fabio Domenico ()","Fabio Domenico ()","Fabio Domenico ()","Fabio Domenico ()","Fabio Domenico ()","Fabio Domenico ()","Fabio Domenico ()","Fabio Domenico ()","Fabio Domenico ()","Fabio Domenico ()"]
[null,"Roman Bernhardsgrütter (lis)","VET",0,0,null,null,null,null,"Roman Bernhardsgrütter (lis)","Roman Bernhardsgrütter (lis)","Roman Bernhardsgrütter (lis)","Roman Bernhardsgrütter (lis)","Roman Bernhardsgrütter (lis)","Roman Bernhardsgrütter (lis)","Roman Bernhardsgrütter (lis)","Roman Bernhardsgrütter (lis)","Roman Bernhardsgrütter (lis)","Roman Bernhardsgrütter (lis)","Roman Bernhardsgrütter (lis)","Roman Bernhardsgrütter (lis)","Roman Bernhardsgrütter (lis)","Roman Bernhardsgrütter (lis)","Roman Bernhardsgrütter (lis)","Roman Bernhardsgrütter (lis)","Roman Bernhardsgrütter (lis)","Roman Bernhardsgrütter (lis)","Roman Bernhardsgrütter (lis)","Roman Bernhardsgrütter (lis)","Roman Bernhardsgrütter (lis)"]
[null,"Gábor Baross (wie)","OPEN",0,0,null,null,null,null,null,"Gábor Baross (wie)",null,"Gábor Baross (wie)",null,null,"Gábor Baross (wie)","Gábor Baross (wie)","Gábor Baross (wie)","Gábor Baross (wie)","Gábor Baross (wie)","Gábor Baross (wie)","Gábor Baross (wie)","Gábor Baross (wie)","Gábor Baross (wie)","Gábor Baross (wie)","Gábor Baross (wie)","Gábor Baross (wie)","Gábor Baross (wie)","Gábor Baross (wie)","Gábor Baross (wie)"]
[null,"Alfred Strommer (wie)","VET",0,0,null,null,null,null,null,"Alfred Strommer (wie)",null,"Alfred Strommer (wie)",null,null,"Alfred Strommer (wie)","Alfred Strommer (wie)","Alfred Strommer (wie)","Alfred Strommer (wie)","Alfred Strommer (wie)","Alfred Strommer (wie)","Alfred Strommer (wie)","Alfred Strommer (wie)","Alfred Strommer (wie)","Alfred Strommer (wie)","Alfred Strommer (wie)","Alfred Strommer (wie)","Alfred Strommer (wie)","Alfred Strommer (wie)","Alfred Strommer (wie)"]
[null,"Marco Zucchi (pin)","VET",0,0,null,null,null,null,"Marco Zucchi (pin)","Marco Zucchi (pin)","Marco Zucchi (pin)","Marco Zucchi (pin)","Marco Zucchi (pin)","Marco Zucchi (pin)","Marco Zucchi (pin)","Marco Zucchi (pin)","Marco Zucchi (pin)","Marco Zucchi (pin)","Marco Zucchi (pin)","Marco Zucchi (pin)","Marco Zucchi (pin)","Marco Zucchi (pin)","Marco Zucchi (pin)","Marco Zucchi (pin)","Marco Zucchi (pin)","Marco Zucchi (pin)","Marco Zucchi (pin)","Marco Zucchi (pin)","Marco Zucchi (pin)"]
[null,"Florian Daxböck (wie)","VET",0,0,null,null,null,null,null,"Florian Daxböck (wie)",null,"Florian Daxböck (wie)",null,null,"Florian Daxböck (wie)","Florian Daxböck (wie)","Florian Daxböck (wie)","Florian Daxböck (wie)","Florian Daxböck (wie)","Florian Daxböck (wie)","Florian Daxböck (wie)","Florian Daxböck (wie)","Florian Daxböck (wie)","Florian Daxböck (wie)","Florian Daxböck (wie)","Florian Daxböck (wie)","Florian Daxböck (wie)","Florian Daxböck (wie)","Florian Daxböck (wie)"]
[null,"Christian Haas (bor)","OPEN",0,0,null,null,null,null,"Christian Haas (bor)",null,"Christian Haas (bor)",null,null,null,"Christian Haas (bor)","Christian Haas (bor)","Christian Haas (bor)",null,"Christian Haas (bor)","Christian Haas (bor)","Christian Haas (bor)","Christian Haas (bor)","Christian Haas (bor)","Christian Haas (bor)","Christian Haas (bor)","Christian Haas (bor)","Christian Haas (bor)","Christian Haas (bor)","Christian Haas (bor)"]
[null,"Stefan Sandner (roy)","VET",0,0,null,null,null,null,null,"Stefan Sandner (roy)",null,null,null,"Stefan Sandner (roy)","Stefan Sandner (roy)","Stefan Sandner (roy)","Stefan Sandner (roy)",null,"Stefan Sandner (roy)","Stefan Sandner (roy)","Stefan Sandner (roy)","Stefan Sandner (roy)","Stefan Sandner (roy)","Stefan Sandner (roy)","Stefan Sandner (roy)","Stefan Sandner (roy)","Stefan Sandner (roy)","Stefan Sandner (roy)","Stefan Sandner (roy)"]
[null,"Stefan Sandner (roy)","VET",0,0,null,null,null,null,null,"Stefan Sandner (roy)",null,null,null,"Stefan Sandner (roy)","Stefan Sandner (roy)","Stefan Sandner (roy)","Stefan Sandner (roy)",null,"Stefan Sandner (roy)","Stefan Sandner (roy)","Stefan Sandner (roy)","Stefan Sandner (roy)","Stefan Sandner (roy)","Stefan Sandner (roy)","Stefan Sandner (roy)","Stefan Sandner (roy)","Stefan Sandner (roy)","Stefan Sandner (roy)","Stefan Sandner (roy)"]
[null,"Robert Lenz (roy)","VET",0,0,null,null,null,null,null,null,null,"Robert Lenz (roy)",null,"Robert Lenz (roy)","Robert Lenz (roy)","Robert Lenz (roy)","Robert Lenz (roy)","Robert Lenz (roy)","Robert Lenz (roy)","Robert Lenz (roy)","Robert Lenz (roy)","Robert Lenz (roy)","Robert Lenz (roy)","Robert Lenz (roy)","Robert Lenz (roy)","Robert Lenz (roy)","Robert Lenz (roy)","Robert Lenz (roy)","Robert Lenz (roy)"]
[null,"Robert Lenz (roy)","VET",0,0,null,null,null,null,null,null,null,"Robert Lenz (roy)",null,"Robert Lenz (roy)","Robert Lenz (roy)","Robert Lenz (roy)","Robert Lenz (roy)","Robert Lenz (roy)","Robert Lenz (roy)","Robert Lenz (roy)","Robert Lenz (roy)","Robert Lenz (roy)","Robert Lenz (roy)","Robert Lenz (roy)","Robert Lenz (roy)","Robert Lenz (roy)","Robert Lenz (roy)","Robert Lenz (roy)","Robert Lenz (roy)"]
[null,"Heinz Eder (roy)","OPEN",0,0,null,null,null,null,"Heinz Eder (roy)",null,null,"Heinz Eder (roy)",null,"Heinz Eder (roy)","Heinz Eder (roy)","Heinz Eder (roy)","Heinz Eder (roy)",null,"Heinz Eder (roy)","Heinz Eder (roy)","Heinz Eder (roy)","Heinz Eder (roy)","Heinz Eder (roy)","Heinz Eder (roy)","Heinz Eder (roy)","Heinz Eder (roy)","Heinz Eder (roy)","Heinz Eder (roy)","Heinz Eder (roy)"]
[null,"Christian Blümel (wie)","OPEN",0,0,null,null,null,null,null,null,"Christian Blümel (wie)",null,"Christian Blümel (wie)","Christian Blümel (wie)",null,"Christian Blümel (wie)","Christian Blümel (wie)","Christian Blümel (wie)","Christian Blümel (wie)","Christian Blümel (wie)","Christian Blümel (wie)","Christian Blümel (wie)","Christian Blümel (wie)","Christian Blümel (wie)","Christian Blümel (wie)","Christian Blümel (wie)","Christian Blümel (wie)","Christian Blümel (wie)","Christian Blümel (wie)"]
[null,"Manfred Pawlica (wie)","VET",0,0,null,null,null,null,null,null,"Manfred Pawlica (wie)",null,"Manfred Pawlica (wie)","Manfred Pawlica (wie)",null,"Manfred Pawlica (wie)","Manfred Pawlica (wie)","Manfred Pawlica (wie)","Manfred Pawlica (wie)","Manfred Pawlica (wie)","Manfred Pawlica (wie)","Manfred Pawlica (wie)","Manfred Pawlica (wie)","Manfred Pawlica (wie)","Manfred Pawlica (wie)","Manfred Pawlica (wie)","Manfred Pawlica (wie)","Manfred Pawlica (wie)","Manfred Pawlica (wie)"]
[null,"Marios Strommer (wie)","OPEN",0,0,null,null,null,null,null,null,"Marios Strommer (wie)",null,"Marios Strommer (wie)","Marios Strommer (wie)",null,"Marios Strommer (wie)","Marios Strommer (wie)","Marios Strommer (wie)","Marios Strommer (wie)","Marios Strommer (wie)","Marios Strommer (wie)","Marios Strommer (wie)","Marios Strommer (wie)","Marios Strommer (wie)","Marios Strommer (wie)","Marios Strommer (wie)","Marios Strommer (wie)","Marios Strommer (wie)","Marios Strommer (wie)"]
[null,"Igor Ljubisavljevic (wie)","OPEN",0,0,null,null,null,null,null,"Igor Ljubisavljevic (wie)",null,"Igor Ljubisavljevic (wie)",null,null,"Igor Ljubisavljevic (wie)","Igor Ljubisavljevic (wie)","Igor Ljubisavljevic (wie)","Igor Ljubisavljevic (wie)","Igor Ljubisavljevic (wie)","Igor Ljubisavljevic (wie)","Igor Ljubisavljevic (wie)","Igor Ljubisavljevic (wie)","Igor Ljubisavljevic (wie)","Igor Ljubisavljevic (wie)","Igor Ljubisavljevic (wie)","Igor Ljubisavljevic (wie)","Igor Ljubisavljevic (wie)","Igor Ljubisavljevic (wie)","Igor Ljubisavljevic (wie)"]

{"sheet":"Timeline","index":31,"n_rows":75,"n_cols":16,"rows_kept":75,"cut":false,"hidden":true,"merged":[[0,1,0,15]]}
[null,{"$f":"N_PlayerTimeline","v":"Player's timeline"}]
[null,{"$f":"N_TimelineDescription","v":"This worksheet presents the timeline of each participant whether player or referee."}]
[{"$f":"COUNTA(RefereeList_NameFirstname)","v":64},null,{"$f":"N_Round","v":"Rd"}]
[{"$f":"COUNTA(RefereeList_NameFirstname)","v":64},{"$f":"N_Joueurs","v":"Players"},{"$f":"INDEX(Planning!$A:$A,MATCH(\"S\" & COLUMN(C4)-COLUMN($B4),Planning!$G:$G,0))","v":"08:30:00"},{"$f":"INDEX(Planning!$A:$A,MATCH(\"S\" & COLUMN(D4)-COLUMN($B4),Planning!$G:$G,0))","v":"09:20:00"},{"$f":"INDEX(Planning!$A:$A,MATCH(\"S\" & COLUMN(E4)-COLUMN($B4),Planning!$G:$G,0))","v":"10:10:00"},{"$f":"INDEX(Planning!$A:$A,MATCH(\"S\" & COLUMN(F4)-COLUMN($B4),Planning!$G:$G,0))","v":"11:00:00"},{"$f":"INDEX(Planning!$A:$A,MATCH(\"S\" & COLUMN(G4)-COLUMN($B4),Planning!$G:$G,0))","v":"11:40:00"},{"$f":"INDEX(Planning!$A:$A,MATCH(\"S\" & COLUMN(H4)-COLUMN($B4),Planning!$G:$G,0))","v":"12:30:00"},{"$f":"INDEX(Planning!$A:$A,MATCH(\"S\" & COLUMN(I4)-COLUMN($B4),Planning!$G:$G,0))","v":"13:20:00"},{"$f":"INDEX(Planning!$A:$A,MATCH(\"S\" & COLUMN(J4)-COLUMN($B4),Planning!$G:$G,0))","v":"14:05:00"},{"$f":"INDEX(Planning!$A:$A,MATCH(\"S\" & COLUMN(K4)-COLUMN($B4),Planning!$G:$G,0))","v":"17:05:00"},{"$f":"INDEX(Planning!$A:$A,MATCH(\"S\" & COLUMN(L4)-COLUMN($B4),Planning!$G:$G,0))","v":"18:10:00"},{"$f":"INDEX(Planning!$A:$A,MATCH(\"S\" & COLUMN(M4)-COLUMN($B4),Planning!$G:$G,0))","v":{"$error":"#N/A"}},{"$f":"INDEX(Planning!$A:$A,MATCH(\"S\" & COLUMN(N4)-COLUMN($B4),Planning!$G:$G,0))","v":{"$error":"#N/A"}},{"$f":"INDEX(Planning!$A:$A,MATCH(\"S\" & COLUMN(O4)-COLUMN($B4),Planning!$G:$G,0))","v":{"$error":"#N/A"}},{"$f":"INDEX(Planning!$A:$A,MATCH(\"S\" & COLUMN(P4)-COLUMN($B4),Planning!$G:$G,0))","v":{"$error":"#N/A"}}]
[null,"Alexander Haas (roy)"]
[null,"Alfred Strommer (wie)"]
[null,"Apollon Dimakeas (rol)"]
[null,"Athanasios Chaliotis (atl)"]
[null,"Athanasios Kordantonopoulos (rol)"]
[null,"Bernard Lim (jur)"]
[null,"Charles Aquilina (bor)"]
[null,"Christian Blümel (wie)"]
[null,"Christian Haas (bor)"]
[null,"Christian Haas (bor)"]
[null,"Christian Haas (bor)"]
[null,"Christian Hausmann (roy)"]
[null,"Claudio Colpani (acp)"]
[null,"Daniel Eder (roy)"]
[null,"Daniel Scheen (tib)"]
[null,"Daniel Vranovitz (roy)"]
[null,"Daniela Grünberg (sch)"]
[null,"David Busch (bor)"]
[null,"David Scherbantin (roy)"]
[null,"David Vacke (cst)"]
[null,"Dominik Eder (roy)"]
[null,"Erich Hinkelmann (wie)"]
[null,"Fabio Domenico ()"]
[null,"Florian Daxböck (wie)"]
[null,"Francesco Torano (msa)"]
[null,"Gábor Baross (wie)"]
[null,"George Ebejer (bor)"]
[null,"Georgios Dimakeas (rol)"]
[null,"Giannis Nikolaidis (atl)"]
[null,"Günther Bamberzky (crh)"]
[null,"Heinz Eder (roy)"]
[null,"Igor Ljubisavljevic (wie)"]
[null,"Jason Pisani (bor)"]
[null,"Jean Carl Tabone (bor)"]
[null,"Joffray Laurent (atl)"]
[null,"John Zammit (ste)"]
[null,"Joseph Mifsud (fia)"]
[null,"Karl Vranovitz (roy)"]
[null,"Katharina Ocenasek (roy)"]
[null,"Katharina Waldorf-Busch (bor)"]
[null,"Lazaros Papakonstantinou (atl)"]
[null,"Manfred Pawlica (wie)"]
[null,"Marcel Schulz (sch)"]
[null,"Marco Pinausi (gor)"]
[null,"Marco Zucchi (pin)"]
[null,"Marios Strommer (wie)"]
[null,"Mark Gauci (vll)"]
[null,"Massimiliano Croatti (msa)"]
[null,"Michael Stolzenberg ()"]
[null,"Michele Cerullo (gor)"]
[null,"Murat Tünger (roy)"]
[null,"Noah Janssens (ste)"]
[null,"Panagiotis Krommydas (hop)"]
[null,"Pascal Scheen (ste)"]
[null,"Pasquale Torano (fer)"]
[null,"Peter Erb (sub)"]
[null,"Phillipos Kordantonopoulos (rol)"]
[null,"Reinhard Schöberl (roy)"]
[null,"Robert Green (nfc)"]
[null,"Robert Lenz (roy)"]
[null,"Robert Lenz (roy)"]
[null,"Roman Bernhardsgrütter (lis)"]
[null,"Saverio Bari (reg)"]
[null,"Sébastien Rochez (ste)"]
[null,"Sérgio Ramos (bol)"]
[null,"Stefan Sandner (roy)"]
[null,"Stefan Sandner (roy)"]
[null,"Stylianos Tsangouris (atl)"]
[null,"Thomas Wittmann (roy)"]
[null,"Wolfgang Haas (bor)"]
[null,"Wolfgang Leitner (roy)"]

{"sheet":"Stats","index":32,"n_rows":337,"n_cols":11,"rows_kept":337,"cut":false,"hidden":true,"merged":[[0,1,0,10],[2,2,2,4]]}
[null,{"$f":"N_PlayerStatistics","v":"Player's statistics"}]
[null,{"$f":"N_PlayerStatisticsDescription","v":"This worksheet presents statistics on players throughout the competition.\nIt establishes, in particular, the ranking of the greatest number of goals scored in an event."}]
[null,{"$f":"N_Epreuve","v":"Event"},null,null,null,{"$f":"N_Let_Empty_for_all","v":"Let empty for all"}]
[{"$f":"COUNTA(RefereeList_NameFirstname)","v":64},{"$f":"N_Joueurs","v":"Players"},{"$f":"N_Category","v":"Category"},{"$f":"N_Nb_Matches","v":"Played matches"},{"$f":"N_Nb_Goals","v":"Total Goals"},{"$f":"N_Average_Goals","v":"Average Goals"},{"$f":"N_GoalsConceded","v":"Goals conceded"},{"$f":"N_Average_Goals","v":"Average Goals"},{"$f":"N_Wins","v":"Total Wins"},{"$f":"N_Loses","v":"Total Loses"},{"$f":"N_Draws","v":"Total Draws"}]
[null,"Wolfgang Haas (bor)","OPEN",0,0,null,0,null,0,0,0]
[null,"Saverio Bari (reg)","VET",0,0,null,0,null,0,0,0]
[null,"Mark Gauci (vll)","OPEN",0,0,null,0,null,0,0,0]
[null,"Pascal Scheen (ste)","VET",0,0,null,0,null,0,0,0]
[null,"George Ebejer (bor)","OPEN",0,0,null,0,null,0,0,0]
[null,"Sérgio Ramos (bol)","OPEN",0,0,null,0,null,0,0,0]
[null,"Wolfgang Leitner (roy)","OPEN",0,0,null,0,null,0,0,0]
[null,"Alexander Haas (roy)","OPEN",0,0,null,0,null,0,0,0]
[null,"Bernard Lim (jur)","VET",0,0,null,0,null,0,0,0]
[null,"Giannis Nikolaidis (atl)","VET",0,0,null,0,null,0,0,0]
[null,"Jean Carl Tabone (bor)","OPEN",0,0,null,0,null,0,0,0]
[null,"David Vacke (cst)","OPEN",0,0,null,0,null,0,0,0]
[null,"Stylianos Tsangouris (atl)","OPEN",0,0,null,0,null,0,0,0]
[null,"Noah Janssens (ste)","U20",0,0,null,0,null,0,0,0]
[null,"Joffray Laurent (atl)","OPEN",0,0,null,0,null,0,0,0]
[null,"Erich Hinkelmann (wie)","VET",0,0,null,0,null,0,0,0]
[null,"Thomas Wittmann (roy)","OPEN",0,0,null,0,null,0,0,0]
[null,"Murat Tünger (roy)","OPEN",0,0,null,0,null,0,0,0]
[null,"Michael Stolzenberg ()","OPEN",0,0,null,0,null,0,0,0]
[null,"Christian Haas (bor)","OPEN",0,0,null,0,null,0,0,0]
[null,"Claudio Colpani (acp)","VET",0,0,null,0,null,0,0,0]
[null,"Michele Cerullo (gor)","OPEN",0,0,null,0,null,0,0,0]
[null,"Marcel Schulz (sch)","OPEN",0,0,null,0,null,0,0,0]
[null,"Athanasios Kordantonopoulos (rol)","OPEN",0,0,null,0,null,0,0,0]
[null,"Daniel Vranovitz (roy)","OPEN",0,0,null,0,null,0,0,0]
[null,"Christian Hausmann (roy)","OPEN",0,0,null,0,null,0,0,0]
[null,"Reinhard Schöberl (roy)","OPEN",0,0,null,0,null,0,0,0]
[null,"David Scherbantin (roy)","OPEN",0,0,null,0,null,0,0,0]
[null,"Jason Pisani (bor)","VET",0,0,null,0,null,0,0,0]
[null,"Daniel Scheen (tib)","VET",0,0,null,0,null,0,0,0]
[null,"Charles Aquilina (bor)","VET",0,0,null,0,null,0,0,0]
[null,"Pasquale Torano (fer)","VET",0,0,null,0,null,0,0,0]
[null,"Lazaros Papakonstantinou (atl)","VET",0,0,null,0,null,0,0,0]
[null,"David Busch (bor)","VET",0,0,null,0,null,0,0,0]
[null,"John Zammit (ste)","VET",0,0,null,0,null,0,0,0]
[null,"Massimiliano Croatti (msa)","VET",0,0,null,0,null,0,0,0]
[null,"Francesco Torano (msa)","VET",0,0,null,0,null,0,0,0]
[null,"Christian Haas (bor)","OPEN",0,0,null,0,null,0,0,0]
[null,"Günther Bamberzky (crh)","VET",0,0,null,0,null,0,0,0]
[null,"Panagiotis Krommydas (hop)","VET",0,0,null,0,null,0,0,0]
[null,"Sébastien Rochez (ste)","VET",0,0,null,0,null,0,0,0]
[null,"Joseph Mifsud (fia)","VET",0,0,null,0,null,0,0,0]
[null,"Georgios Dimakeas (rol)","VET",0,0,null,0,null,0,0,0]
[null,"Robert Green (nfc)","VET",0,0,null,0,null,0,0,0]
[null,"Athanasios Chaliotis (atl)","VET",0,0,null,0,null,0,0,0]
[null,"Peter Erb (sub)","VET",0,0,null,0,null,0,0,0]
[null,"Marco Pinausi (gor)","VET",0,0,null,0,null,0,0,0]
[null,"Karl Vranovitz (roy)","VET",0,0,null,0,null,0,0,0]
[null,"Dominik Eder (roy)","???",0,0,null,0,null,0,0,0]
[null,"Fabio Domenico ()","VET",0,0,null,0,null,0,0,0]
[null,"Roman Bernhardsgrütter (lis)","VET",0,0,null,0,null,0,0,0]
[null,"Gábor Baross (wie)","OPEN",0,0,null,0,null,0,0,0]
[null,"Apollon Dimakeas (rol)","U12",0,0,null,0,null,0,0,0]
[null,"Phillipos Kordantonopoulos (rol)","U12",0,0,null,0,null,0,0,0]
[null,"Katharina Waldorf-Busch (bor)","VET",0,0,null,0,null,0,0,0]
[null,"Daniela Grünberg (sch)","OPEN",0,0,null,0,null,0,0,0]
[null,"Katharina Ocenasek (roy)","OPEN",0,0,null,0,null,0,0,0]
[null,"Alfred Strommer (wie)","VET",0,0,null,0,null,0,0,0]
[null,"Marco Zucchi (pin)","VET",0,0,null,0,null,0,0,0]
[null,"Florian Daxböck (wie)","VET",0,0,null,0,null,0,0,0]
[null,"Christian Haas (bor)","OPEN",0,0,null,0,null,0,0,0]
[null,"Daniel Eder (roy)","???",0,0,null,0,null,0,0,0]
[null,"Stefan Sandner (roy)","VET",0,0,null,0,null,0,0,0]
[null,"Stefan Sandner (roy)","VET",0,0,null,0,null,0,0,0]
[null,"Robert Lenz (roy)","VET",0,0,null,0,null,0,0,0]
[null,"Robert Lenz (roy)","VET",0,0,null,0,null,0,0,0]
[null,"Heinz Eder (roy)","OPEN",0,0,null,0,null,0,0,0]
[null,"Christian Blümel (wie)","OPEN",0,0,null,0,null,0,0,0]
[null,"Manfred Pawlica (wie)","VET",0,0,null,0,null,0,0,0]
[null,"Marios Strommer (wie)","OPEN",0,0,null,0,null,0,0,0]
[null,"Igor Ljubisavljevic (wie)","OPEN",0,0,null,0,null,0,0,0]
[]
[]
[]
[]
[]
[]
[]
[]
[]
[]
[]
[]
[]
[]
[]
[]
[]
[]
[]
[]
[]
[]
[]
[]
[]
[]
[]
[]
[]
[]
[]
[]
[]
[]
[]
[]
[]
[]
[]
[]
[]
[]
[]
[]
[]
[]
[]
[]
[]
[]
[]
[]
[]
[]
[]
[]
[]
[]
[]
[]
[]
[]
[]
[]
[]
[]
[]
[]
[]
[]
[]
[]
[]
[]
[]
[]
[]
[]
[]
[]
[]
[]
[]
[]
[]
[]
[]
[]
[]
[]
[]
[]
[]
[]
[]
[]
[]
[]
[]
[]
[]
[]
[]
[]
[]
[]
[]
[]
[]
[]
[]
[]
[]
[]
[]
[]
[]
[]
[]
[]
[]
[]
[]
[]
[]
[]
[]
[]
[]
[]
[]
[]
[]
[]
[]
[]
[]
[]
[]
[]
[]
[]
[]
[]
[]
[]
[]
[]
[]
[]
[]
[]
[]
[]
[]
[]
[]
[]
[]
[]
[]
[]
[]
[]
[]
[]
[]
[]
[]
[]
[]
[]
[]
[]
[]
[]
[]
[]
[]
[]
[]
[]
[]
[]
[]
[]
[]
[]
[]
[]
[]
[]
[]
[]
[]
[]
[]
[]
[]
[]
[]
[null,"Daigo Mori (JPN)","U16",0,0,null,0,null,0,0,0]
[null,"Shusuke Takahashi (JPN)","U16",0,0,null,0,null,0,0,0]
[null,"Kotetsu Kanda (JPN)","U12",0,0,null,0,null,0,0,0]
[null,"Raphaël Pommier (FRA)","OPEN",3,0,0,0,0,0,0,0]
[null,"Jean-Marie Amberny (FRA)","OPEN",0,0,null,0,null,0,0,0]
[null,"Théo Modeste (FRA)","OPEN",0,0,null,0,null,0,0,0]
[null,"Axel Donval (FRA)","OPEN",0,0,null,0,null,0,0,0]
[null,"Romain Lafontaine (FRA)","OPEN",0,0,null,0,null,0,0,0]
[null,"Fayçal Rouis (FRA)","OPEN",0,0,null,0,null,0,0,0]
[null,"Eric Naszalyi (FRA)","VET",0,0,null,0,null,0,0,0]
[null,"Axel Modeste (FRA)","VET",0,0,null,0,null,0,0,0]
[null,"Thierry Vivron (FRA)","VET",0,0,null,0,null,0,0,0]
[null,"Stéphane Pommier (FRA)","VET",0,0,null,0,null,0,0,0]
[null,"Xavier Dubois (FRA)","VET",0,0,null,0,null,0,0,0]
[null,"Audrey Herbaut (FRA)","OPEN",2,0,0,0,0,0,0,0]
[null,"Françoise Guyot (FRA)","VET",3,0,0,0,0,0,0,0]
[null,"Irène Linquercq-Rivière (FRA)","OPEN",0,0,null,0,null,0,0,0]
[null,"Lea Poupart (FRA)","U20",0,0,null,0,null,0,0,0]
[null,"Quentin Ausset (FRA)","U20",3,0,0,0,0,0,0,0]
[null,"Fanch Coquillon (FRA)","U20",0,0,null,0,null,0,0,0]
[null,"Louis Soret (FRA)","U16",2,0,0,0,0,0,0,0]
[null,"Maël Teixido-Regnier (FRA)","U16",0,0,null,0,null,0,0,0]
[null,"Rafaël Midoux (FRA)","U16",0,0,null,0,null,0,0,0]
[null,"Simon Carmona (FRA)","U16",0,0,null,0,null,0,0,0]
[null,"Clément Bondi (FRA)","U12",0,0,null,0,null,0,0,0]
[null,"Augustin Ledoit (FRA)","U12",0,0,null,0,null,0,0,0]
[null,"Gabriel Chiappetta (FRA)","U12",0,0,null,0,null,0,0,0]
[null,"Charlotte Troestler (FRA)","U12",0,0,null,0,null,0,0,0]
[null,"Isaac Brignon-Kiegl (FRA)","U12",0,0,null,0,null,0,0,0]
[null,"Marcel Kwiatkowski (GER)","OPEN",0,0,null,0,null,0,0,0]
[null,"Marcel Schulz (GER)","OPEN",0,0,null,0,null,0,0,0]
[null,"Marc Reitz (GER)","OPEN",0,0,null,0,null,0,0,0]
[null,"Marcus Tilgner (GER)","VET",0,0,null,0,null,0,0,0]
[null,"Marian Flemer (GER)","U20",0,0,null,0,null,0,0,0]
[null,"Frank Stiller (GER)","VET",0,0,null,0,null,0,0,0]
[null,"Panagiotis Krommydas (GER)","VET",0,0,null,0,null,0,0,0]
[null,"Thossa Büsing (GER)","VET",0,0,null,0,null,0,0,0]
[null,"Victoria Büsing (GER)","OPEN",0,0,null,0,null,0,0,0]
[null,"Daria Tilgner (GER)","OPEN",0,0,null,0,null,0,0,0]
[null,"Noah Wulff (GER)","U16",0,0,null,0,null,0,0,0]
[null,"Terje Ellefsen (NOR)","OPEN",0,0,null,0,null,0,0,0]
[null,"Chloé Despretz (BEL)","U16",0,0,null,0,null,0,0,0]
[null,"Olivia Huet (BEL)","U12",0,0,null,0,null,0,0,0]
[null,"Konstantinos Konidaris (GRE)","U12",0,0,null,0,null,0,0,0]
[null,"Daniel Vensyk (ENG)","U20",0,0,null,0,null,0,0,0]
[null,"Andrea Ciccarelli (ITA)","OPEN",0,0,null,0,null,0,0,0]
[null,"Daniel Vensyk (ENG)","U20",0,0,null,0,null,0,0,0]
[null,"Andrea Ciccarelli (ITA)","OPEN",0,0,null,0,null,0,0,0]
[null,"Andrea Ciccarelli (ITA)","OPEN",0,0,null,0,null,0,0,0]
[null,"Andrea Ciccarelli (ITA)","OPEN",0,0,null,0,null,0,0,0]
[null,"Chloé Despretz (BEL)","U16",0,0,null,0,null,0,0,0]
[null,"Olivia Huet (BEL)","U12",0,0,null,0,null,0,0,0]
[null,"Konstantinos Konidaris (GRE)","U12",0,0,null,0,null,0,0,0]
[null,"Daniel Vensyk (ENG)","U20",0,0,null,0,null,0,0,0]
[null,"Andrea Ciccarelli (ITA)","OPEN",0,0,null,0,null,0,0,0]
[null,"Andrea Ciccarelli (ITA)","OPEN",0,0,null,0,null,0,0,0]
[null,"Jostein Håland (NOR)","VET",0,0,null,0,null,0,0,0]
[null,"Chloé Despretz (BEL)","U16",0,0,null,0,null,0,0,0]
[null,"Olivia Huet (BEL)","U12",0,0,null,0,null,0,0,0]
[null,"Konstantinos Konidaris (GRE)","U12",0,0,null,0,null,0,0,0]
[null,"Konstantinos Konidaris (GRE)","U12",0,0,null,0,null,0,0,0]

{"sheet":"Venue","index":33,"n_rows":47,"n_cols":106,"rows_kept":47,"cut":false,"hidden":true,"merged":[[33,62,34,66],[33,3,34,7],[33,11,34,15],[33,20,34,24],[33,28,34,32],[33,37,34,41],[9,45,10,49],[9,54,10,58],[9,62,10,66],[14,3,15,7],[14,11,15,15],[14,20,15,24],[14,28,15,32],[14,37,15,41],[14,45,15,49],[14,54,15,58],[14,62,15,66],[9,3,10,7],[9,11,10,15],[9,20,10,24],[9,28,10,32],[9,37,10,41],[21,62,22,66],[26,3,27,7],[26,11,27,15],[26,20,27,24],[26,28,27,32],[26,37,27,41],[26,45,27,49],[26,54,27,58],[26,62,27,66],[21,3,22,7],[21,11,22,15],[21,20,22,24],[21,28,22,32],[21,37,22,41],[38,37,39,41],[21,45,22,49],[21,54,22,58],[33,45,34,49],[33,54,34,58],[38,45,39,49],[38,54,39,58],[38,62,39,66],[43,3,43,7],[43,11,43,15],[43,18,43,22],[43,25,46,44],[44,3,44,7],[44,11,44,15],[44,18,44,22],[45,3,45,7],[45,11,45,15],[45,18,45,22],[46,11,46,15],[38,3,39,7],[38,11,39,15],[38,20,39,24],[38,28,39,32]]}
[null,{"$f":"N_VenueTitle","v":"Room Plan"},null,null,null,null,null,null,null,null,null,null,null,null,null,null,null,null,null,null,null,null,null,null,null,null,null,null,null,null,null,null,null,null,null,null,null,null,null,null,null,null,null,null,null,null,null,null,null,null,null,null,null,null,null,null,null,null,null,null,null,null,null,null,null,null,null,null,null,null,null,null,null,null,null,null,null,null,null,null,null,null,null,null,null,null,null,null,null,null,null,null,null,null,null,null,null,null,null,null,null,null,null,null,"Nothing",1]
[" ",{"$f":"N_VenueTitle","v":"Room Plan"}]
[]
[]
[]
[null,null,null,null,null,null,null,null,null,null,null,null,null,null,null,null,null,null," "]
[null,null,null,null,null,null,null,null,null,null,null,null,null,null,null,null,null,null," ",null,null,null,null,null,null,null,null,null,null,null,null," ",null,null,null,null,null,null,null,null,null,null,null,null,null,null,null,null,null,null,null,null,null,null,null,null,null,null,null,null,null,null,null,null,null,null,null,null,null,null,null,null,null," "]
[null,null,"AREA E 21 to 24",null,null,null,null,null,null,null,null,null,null,null,null,null,null,null," ","AREA CENTRAL 1 to 4",null,null,null,null,null,null,null,null,null,null,null,null,null,null,null,null,"AREA A 5 to 8",null,null,null,null,null,null,null,null,null,null,null,null,null,null,null,null,"AREA G 29 to 32"]
[null,null,null,null,null,null,null,null,null,null,null,null,null,null,null,null,null,null," ",null,null,null,null,null,null,null,null,null,null,null,null,null,null,null," "]
[null,null,null,21,null,null,null,null,null,null,null,24,null,null,null,null,null,null,null,null,1,null,null,null,null,null,null,null,4,null,null,null,null,null," ",null,null,5,null,null,null,null,null,null,null,8,null,null,null,null,null,null,null,null,29,null,null,null,null,null,null,null,30,null,null,null,null,null,null,null,null,null,null," "]
[null,null,null,null,null,null,null,null,null,null,null,null,null,null,null,null,null,null,null,null,null,null,null,null,null,null,null,null,null,null,null,null,null,null," ",null,null,null,null,null,null,null,null,null,null,null,null,null,null,null,null,null,null,null,null,null,null,null,null,null,null,null,null,null,null,null,null,null,null,null,null,null,null," "]
[null,null,null,null,null,null,null,null,null,null,null,null,null,null,null,null,null,null,null,null,null,null,null,null,null,null,null,null,null,null,null,null,null,null," "]
[null,null,null,null,null,null,null,null,null,null,null,null,null,null,null,null,null,null,null,null,null,null,null,null,null,null,null,null,null,null,null,null,null,null," "]
[null,null,null,null,null,null,null,null,null,null,null,null,null,null,null,null,null,null,null,null,null,null,null,null,null,null,null,null,null,null,null,null,null,null," "]
[null,null,null,22,null,null,null,null,null,null,null,23,null,null,null,null,null,null,null,null,2,null,null,null,null,null,null,null,3,null,null,null,null,null," ",null,null,6,null,null,null,null,null,null,null,7,null,null,null,null,null,null,null,null,32,null,null,null,null,null,null,null,31]
[null,null,null,null,null,null,null,null,null,null,null,null,null,null,null,null,null,null,null,null,null,null,null,null,null,null,null,null,null,null,null,null,null,null," "]
[]
[null,null,null,null,null,null,null,null,null,null,null,null,null,null,null,null,null,null,null,null,null,null,null,null,null,null,null,null,null,null,null,null,null,null,null,null,null,null,null,null,null,null,null,null,null,null,null,null,null,null,null,null,null,null,null,null,null,null,null,null,null,null,null,null,null,null,null,null,null,null,null,null,null," "]
[]
[null,null,"AREA D 17 to 20",null,null,null,null,null,null,null,null,null,null,null,null,null,null,null,null,"AREA C 13 to 16",null,null,null,null,null,null,null,null,null,null,null,null,null,null,null,null,"AREA B 9 to 12",null,null,null,null,null,null,null,null,null,null,null,null,null,null,null,null,"AREA F 25 to 28"]
[null,null,null,null,null,null,null,null,null,null,null,null,null,null,null,null,null,null,null,null,null,null,null,null,null,null,null,null,null,null,null,null,null,null,null,null,null,null,null,null,null,null,null,null,null,null,null,null,null,null,null,null,null,null,null,null,null,null,null,null,null,null,null,null,null,null,null,null,null,null,null,null,null," "]
[null,null,null,19,null,null,null,null,null,null,null,18,null,null,null,null,null,null,null,null,15,null,null,null,null,null,null,null,14,null,null,null,null,null,null,null,null,11,null,null,null,null,null,null,null,10,null,null,null,null,null,null,null,null,25,null,null,null,null,null,null,null,26,null,null,null,null,null,null,null,null,null,null," "]
[]
[]
[]
[]
[null,null,null,20,null,null,null,null,null,null,null,17,null,null,null,null,null,null,null,null,16,null,null,null,null,null,null,null,13,null,null,null,null,null,null,null,null,12,null,null,null,null,null,null,null,9,null,null,null,null,null,null,null,null,28,null,null,null,null,null,null,null,27,null,null,null,null,null,null,null,null,null,null,null,null,null,null,null,null,null,null,null,null,null,null,null,null,null,null,null,null,null,null,null," "]
[]
[]
[]
[]
[null,null,"AREA K 45 to 48",null,null,null,null,null,null,null,null,null,null,null,null,null,null,null,null,"AREA J 41 to 44",null,null,null,null,null,null,null,null,null,null,null,null,null,null,null,null,"AREA I 37 to 40",null,null,null,null,null,null,null,null,null,null,null,null,null,null,null,null,"AREA H 33 to 36"]
[]
[null,null,null,47,null,null,null,null,null,null,null,46,null,null,null,null,null,null,null,null,43,null,null,null,null,null,null,null,42,null,null,null,null,null,null,null,null,39,null,null,null,null,null,null,null,38,null,null,null,null,null,null,null,null,33,null,null,null,null,null,null,null,34]
[]
[]
[]
[]
[null,null,null,48,null,null,null,null,null,null,null,45,null,null,null,null,null,null,null,null,44,null,null,null,null,null,null,null,41,null,null,null,null,null,null,null,null,40,null,null,null,null,null,null,null,37,null,null,null,null,null,null,null,null,36,null,null,null,null,null,null,null,35]
[]
[]
[]
[]
[null,null,null,{"$f":"CheckIn!H5","v":"Open"},null,null,null,null,null,null,null,"Veterans",null,null,null,null,null,null,{"$f":"CheckIn!N5","v":"Teams"},null,null,null,null,null,null,"ORGANISATION TABLE"]
[null,null,null,{"$f":"CheckIn!K5","v":"U20"},null,null,null,null,null,null,null,{"$f":"CheckIn!J5","v":"Women"},null,null,null,null,null,null,"Free"]
[null,null,null,{"$f":"CheckIn!L5","v":"U16"},null,null,null,null,null,null,null,{"$f":"CheckIn!M5","v":"U12"},null,null,null,null,null,null,"FreeGroup",null,null,null,null,null,null,null,null,null,null,null,null,null,null,null,null,null,null,null,null,null,null,null,null,null,null,null,null,null,null,null,null,null,null,null,null,null,null,null,null,null,null,null,null,null,null,null,null,null,3]
[null,null,null,null,null,null,null,null,null,null,null,{"$f":"CheckIn!U5","v":"Team_U12"}]

{"sheet":"Scoresheet_Models","index":34,"n_rows":130,"n_cols":13,"rows_kept":130,"cut":false,"hidden":true,"merged":[[64,3,64,11],[73,12,73,13],[3,3,3,11],[4,3,4,11],[10,6,11,8],[17,3,17,11],[18,3,18,11],[26,5,26,9],[63,3,63,11]]}
[]
[]
[]
[{"$f":"N_Session","v":"Session Nbr "},null,{"$f":"N_Heure","v":"Time"},null,null,null,null,null,null,null,null,null,{"$f":"N_Table","v":"Table"}]
[13]
[null,null,null,null,{"$f":"N_Player1","v":"Player 1"},null,null,null,null,null,{"$f":"N_Player2","v":"Player 2"},null,{"$f":"N_MS","v":"SD"}]
[null,null,null,null,null,null,null,"-"]
[]
[null,null,null,null,null,{"$f":"N_Shout_Out&\"   \"","v":"Shoot-out   "},null,"-",null,null,null,null,{"$f":"N_FillWithX","v":"Fill with an \"X\""}]
[]
[]
[]
[null,null,{"$f":"N_Visa","v":"Signature"},null,null,null,null,{"$f":"N_Referee","v":"Referee"},null,null,{"$f":"N_Visa","v":"Signature"}]
[null,{"$f":"N_GMFT & \" v\" & Version_Outil","v":"GMFT - Table Football Match Management v14.3.1"}]
[]
[]
[]
[{"$f":"N_Session","v":"Session Nbr "},null,{"$f":"N_Heure","v":"Time"},null,null,null,null,null,null,null,null,null,{"$f":"N_Tables","v":"Tables"}]
[1]
[null,null,null,null,{"$f":"N_Team1","v":"Team 1"},null,null,null,null,null,{"$f":"N_Team2","v":"Team 2"},null,{"$f":"N_MS","v":"SD"}]
[null,null,null,null,null,null,null,"-"]
[]
[null,null,null,null,null,{"$f":"N_Buts&\"   \"","v":"Goals   "},null,"-",null,null,null,null,{"$f":"N_FillWithX","v":"Fill with an \"X\""}]
[]
[null,null,null,null,null,{"$f":"N_Shout_Out&\"   \"","v":"Shoot-out   "},null,"-"]
[]
[]
[null,null,null,null,null,null,null,{"$f":"N_Referee","v":"Referee"}]
[null,{"$f":"N_Referees","v":"Referees"},null,null,{"$f":"N_Joueurs","v":"Players"},null,null,null,null,null,{"$f":"N_Joueurs","v":"Players"},null,{"$f":"N_MS","v":"SD"}]
[null,null,null,1,null,null,null,"-"]
[]
[null,null,null,2,null,null,null,"-"]
[]
[null,null,null,3,null,null,null,"-"]
[]
[null,null,null,4,null,null,null,"-"]
[null,null,null,null,null,null,null,null,null,null,null,null,{"$f":"N_FillWithX","v":"Fill with an \"X\""}]
[null,null,{"$f":"N_Différentiel","v":"Shoot Out"},null,null,null,null,"-"]
[]
[]
[null,null,{"$f":"N_Substitute","v":"Substitute"},null,null,null,null,"(**)"]
[]
[null,null,{"$f":"N_Substitute","v":"Substitute"},null,null,null,null,"(**)"]
[null,null,null,null,null,null,null,{"$f":"\"(**) \" & N_SubstituteCodeRule","v":"(**) Use codes S1 to S4 depending of match number concerned by substitution"}]
[]
[null,null,null,null,null,null,null,{"$f":"N_TeamsRegisteredPlayers","v":"List of registered players of each team"}]
[]
[null,null,null,null,null,null,null,1]
[null,null,null,null,null,null,null,2]
[null,null,null,null,null,null,null,3]
[null,null,null,null,null,null,null,4]
[null,null,null,null,null,null,null,5]
[null,null,null,null,null,null,null,6]
[null,null,null,null,null,null,null,7]
[null,null,null,null,null,null,null,8]
[null,null,null,null,null,null,null,9]
[null,null,null,null,null,null,null,10]
[]
[]
[null,null,{"$f":"N_Visa","v":"Signature"},null,null,null,null,null,null,{"$f":"N_Visa","v":"Signature"}]
[null,null,null,null,null,null,null,null,null,null,null,null,{"$f":"N_GMFT & \" v\" & Version_Outil","v":"GMFT - Table Football Match Management v14.3.1"}]
[]
[]
[null,{"$f":"N_Session","v":"Session Nbr "}]
[null,1]
[null,{"$f":"N_Heure","v":"Time"},{"$f":"N_Table","v":"Table"},null,{"$f":"N_Team1","v":"Team 1"},null,null,null,null,null,{"$f":"N_Team2","v":"Team 2"},null,{"$f":"N_MS","v":"SD"}]
[null,null,null,null,null,null,null,"-"]
[null,null,null,null,{"$f":"N_Buts","v":"Goals"},null,null,"-"]
[null,{"$f":"N_Referee","v":"Referee"},null,null,{"$f":"N_Diff.","v":"SO"},null,null,"-"]
[null,null,null,null,{"$f":"N_Joueurs","v":"Players"},null,null,null,null,null,{"$f":"N_Joueurs","v":"Players"},null,{"$f":"N_MS","v":"SD"}]
[null,null,null,"M1",null,null,null,"-"]
[null,null,null,"M2",null,null,null,"-"]
[null,null,{"$f":"N_Différentiel","v":"Shoot Out"},null,null,null,null,"-"]
[null,null,{"$f":"N_Substitute","v":"Substitute"}]
[null,null,null,null,null,null,null,null,null,null,null,null,{"$f":"N_GMFT & \" v\" & Version_Outil","v":"GMFT - Table Football Match Management v14.3.1"}]
[]
[]
[]
[null,null,null,null,"You may change colors, lines & columns sizes, scoresheet disposition but you must respect followings. Especially, all following names must exists in this worksheet."]
[null,null,null,null,"Mandatory zones :"]
[null,null,null,null,"Don't modify the Three first lines !"]
[]
[null,null,null,null,"Click to check the current zone"]
[]
[null,null,null,null,null,null,"Individual Scoresheet"]
[null,null,null,null,"Scoresheet_IndScoresheet","Header lines for printing","Scoresheet area - must be a set of lines"]
[]
[null,null,null,null,"Scoresheet_Ind_SessionNb",null,"Session Number"]
[null,null,null,null,"Scoresheet_Ind_TournamentName",null,"Tournament title "]
[null,null,null,null,"Scoresheet_Ind_StageName",null,{"$f":"N_Catégorie","v":"Stage"}]
[null,null,null,null,"Scoresheet_Ind_Time",null,{"$f":"N_Heure","v":"Time"}]
[null,null,null,null,"Scoresheet_Ind_Table",null,{"$f":"N_Table","v":"Table"}]
[null,null,null,null,"Scoresheet_Ind_Player1",null,{"$f":"N_Player1","v":"Player 1"}]
[null,null,null,null,"Scoresheet_Ind_Player2",null,{"$f":"N_Player2","v":"Player 2"}]
[null,null,null,null,"Scoresheet_Ind_Referee",null,{"$f":"N_Referee","v":"Referee"}]
[null,null,null,null,"Scoresheet_Ind_Copyright",null,"GMFT Copyright"]
[]
[null,null,null,null,null,null,"Team Scoresheet"]
[null,null,null,null,"Scoresheet_TeamScoresheet","Header lines for printing","Scoresheet area - must be a set of lines"]
[]
[null,null,null,null,"Scoresheet_Team_SessionNb",null,"Session Number"]
[null,null,null,null,"Scoresheet_Team_TournamentName",null,"Tournament title "]
[null,null,null,null,"Scoresheet_Team_StageName",null,{"$f":"N_Catégorie","v":"Stage"}]
[null,null,null,null,"Scoresheet_Team_Time",null,{"$f":"N_Heure","v":"Time"}]
[null,null,null,null,"Scoresheet_Team_Table",null,{"$f":"N_Table","v":"Table"}]
[null,null,null,null,"Scoresheet_Team_Team1",null,{"$f":"N_Team1","v":"Team 1"}]
[null,null,null,null,"Scoresheet_Team_Team2",null,{"$f":"N_Team2","v":"Team 2"}]
[null,null,null,null,"Scoresheet_Team_Referee",null,{"$f":"N_Referee","v":"Referee"}]
[null,null,null,null,"Scoresheet_Team_Team1_Player1",null,"Team 1 player 1"]
[null,null,null,null,"Scoresheet_Team_Team1_Player2",null,"Team 1 player 2"]
[null,null,null,null,"..",null,"…"]
[null,null,null,null,"Scoresheet_Team_Team1_Player10",null,"Team 1 player 10"]
[null,null,null,null,"Scoresheet_Team_Team2_Player1",null,"Team 2 player 1"]
[null,null,null,null,"Scoresheet_Team_Team2_Player2",null,"Team 2 player 2"]
[null,null,null,null,"..",null,"…"]
[null,null,null,null,"Scoresheet_Team_Team2_Player10",null,"Team 2 player 10"]
[null,null,null,null,"Scoresheet_Team_Copyright",null,"GMFT Copyright"]
[]
[null,null,null,null,null,null,"Double Scoresheet"]
[null,null,null,null,"Scoresheet_DbleScoresheet","Header lines for printing","Scoresheet area - must be a set of lines"]
[]
[null,null,null,null,"Scoresheet_Dble_SessionNb",null,"Session Number"]
[null,null,null,null,"Scoresheet_Dble_TournamentName",null,"Tournament title "]
[null,null,null,null,"Scoresheet_Dble_StageName",null,{"$f":"N_Catégorie","v":"Stage"}]
[null,null,null,null,"Scoresheet_Dble_Time",null,{"$f":"N_Heure","v":"Time"}]
[null,null,null,null,"Scoresheet_Dble_Table",null,{"$f":"N_Table","v":"Table"}]
[null,null,null,null,"Scoresheet_Dble_Team1",null,{"$f":"N_Team1","v":"Team 1"}]
[null,null,null,null,"Scoresheet_Dble_Team2",null,{"$f":"N_Team2","v":"Team 2"}]
[null,null,null,null,"Scoresheet_Dble_Referee",null,{"$f":"N_Referee","v":"Referee"}]
[null,null,null,null,"Scoresheet_Dble_Copyright",null,"GMFT Copyright"]

{"sheet":"Podium","index":35,"n_rows":47,"n_cols":8,"rows_kept":47,"cut":false,"hidden":true,"merged":[[40,1,40,4],[34,1,34,4],[4,1,4,4],[10,1,10,4],[16,1,16,4],[22,1,22,4],[28,1,28,4]]}
[]
[null,{"$f":"Tournament_Title","v":"<FEDERATION> <Event Name><YYYY> - <Location> - <Individuals/Teams> Competition"}]
[null,{"$f":"Tournament_Date","v":"<Event Date(s)>"}]
[]
[null,"Open"]
[null,null,null,"SemiFinalist",null,{"$f":"IF(B5=\"\",\"\",IFERROR(INDIRECT(B5 & \"!DisQual_P_4_1\"),\"\"))","v":""}]
[null,null,null,"SemiFinalist",null,{"$f":"IF(B5=\"\",\"\",IFERROR(INDIRECT(B5 & \"!DisQual_P_4_2\"),\"\"))","v":""}]
[null,null,null,"Finalist",null,null,{"$f":"IF(B5=\"\",\"\",INDIRECT(B5&\"!DisQual_Last2\"))","v":{"$error":"#REF!"}}]
[null,null,null,"Winner",null,null,null,{"$f":"IF(B5=\"\",\"\",INDIRECT(B5&\"!Winner\"))","v":{"$error":"#REF!"}}]
[]
[null,{"$f":"OFFSET(EventSheetTable,(ROW()+1)/6-1,0,1)","v":""}]
[null,null,null,"SemiFinalist",null,{"$f":"IF(B11=\"\",\"\",IFERROR(INDIRECT(B11 & \"!DisQual_P_4_1\"),\"\"))","v":""}]
[null,null,null,"SemiFinalist",null,{"$f":"IF(B11=\"\",\"\",IFERROR(INDIRECT(B11 & \"!DisQual_P_4_2\"),\"\"))","v":""}]
[null,null,null,"Finalist",null,null,{"$f":"IF(B11=\"\",\"\",INDIRECT(B11&\"!DisQual_Last2\"))","v":""}]
[null,null,null,"Winner",null,null,null,{"$f":"IF(B11=\"\",\"\",INDIRECT(B11&\"!Winner\"))","v":""}]
[]
[null,{"$f":"OFFSET(EventSheetTable,(ROW()+1)/6-1,0,1)","v":""}]
[null,null,null,"SemiFinalist",null,{"$f":"IF(B17=\"\",\"\",IFERROR(INDIRECT(B17 & \"!DisQual_P_4_1\"),\"\"))","v":""}]
[null,null,null,"SemiFinalist",null,{"$f":"IF(B17=\"\",\"\",IFERROR(INDIRECT(B17 & \"!DisQual_P_4_2\"),\"\"))","v":""}]
[null,null,null,"Finalist",null,null,{"$f":"IF(B17=\"\",\"\",INDIRECT(B17&\"!DisQual_Last2\"))","v":""}]
[null,null,null,"Winner",null,null,null,{"$f":"IF(B17=\"\",\"\",INDIRECT(B17&\"!Winner\"))","v":""}]
[]
[null,{"$f":"OFFSET(EventSheetTable,(ROW()+1)/6-1,0,1)","v":""}]
[null,null,null,"SemiFinalist",null,{"$f":"IF(B23=\"\",\"\",IFERROR(INDIRECT(B23 & \"!DisQual_P_4_1\"),\"\"))","v":""}]
[null,null,null,"SemiFinalist",null,{"$f":"IF(B23=\"\",\"\",IFERROR(INDIRECT(B23 & \"!DisQual_P_4_2\"),\"\"))","v":""}]
[null,null,null,"Finalist",null,null,{"$f":"IF(B23=\"\",\"\",INDIRECT(B23&\"!DisQual_Last2\"))","v":""}]
[null,null,null,"Winner",null,null,null,{"$f":"IF(B23=\"\",\"\",INDIRECT(B23&\"!Winner\"))","v":""}]
[]
[null,{"$f":"OFFSET(EventSheetTable,(ROW()+1)/6-1,0,1)","v":""}]
[null,null,null,"SemiFinalist",null,{"$f":"IF(B29=\"\",\"\",IFERROR(INDIRECT(B29 & \"!DisQual_P_4_1\"),\"\"))","v":""}]
[null,null,null,"SemiFinalist",null,{"$f":"IF(B29=\"\",\"\",IFERROR(INDIRECT(B29 & \"!DisQual_P_4_2\"),\"\"))","v":""}]
[null,null,null,"Finalist",null,null,{"$f":"IF(B29=\"\",\"\",INDIRECT(B29&\"!DisQual_Last2\"))","v":""}]
[null,null,null,"Winner",null,null,null,{"$f":"IF(B29=\"\",\"\",INDIRECT(B29&\"!Winner\"))","v":""}]
[]
[null,{"$f":"OFFSET(EventSheetTable,(ROW()+1)/6-1,0,1)","v":""}]
[null,null,null,"SemiFinalist",null,{"$f":"IF(B35=\"\",\"\",IFERROR(INDIRECT(B35 & \"!DisQual_P_4_1\"),\"\"))","v":""}]
[null,null,null,"SemiFinalist",null,{"$f":"IF(B35=\"\",\"\",IFERROR(INDIRECT(B35 & \"!DisQual_P_4_2\"),\"\"))","v":""}]
[null,null,null,"Finalist",null,null,{"$f":"IF(B35=\"\",\"\",INDIRECT(B35&\"!DisQual_Last2\"))","v":""}]
[null,null,null,"Winner",null,null,null,{"$f":"IF(B35=\"\",\"\",INDIRECT(B35&\"!Winner\"))","v":""}]
[]
[null,{"$f":"OFFSET(EventSheetTable,(ROW()+1)/6-1,0,1)","v":""}]
[null,null,null,"SemiFinalist",null,{"$f":"IF(B41=\"\",\"\",IFERROR(INDIRECT(B41 & \"!DisQual_P_4_1\"),\"\"))","v":""}]
[null,null,null,"SemiFinalist",null,{"$f":"IF(B41=\"\",\"\",IFERROR(INDIRECT(B41 & \"!DisQual_P_4_2\"),\"\"))","v":""}]
[null,null,null,"Finalist",null,null,{"$f":"IF(B41=\"\",\"\",INDIRECT(B41&\"!DisQual_Last2\"))","v":""}]
[null,null,null,"Winner",null,null,null,{"$f":"IF(B41=\"\",\"\",INDIRECT(B41&\"!Winner\"))","v":""}]
[]
[null,null,null,null,null,null,null,{"$f":"N_GMFT & \" v\" & Version_Outil","v":"GMFT - Table Football Match Management v14.3.1"}]

{"sheet":"Team","index":36,"n_rows":202,"n_cols":88,"rows_kept":202,"cut":false,"hidden":false,"merged":[[189,1,189,38],[191,24,191,28],[194,25,194,28],[163,1,163,38],[165,24,165,28],[168,25,168,28],[177,24,177,28],[180,25,180,28]]}
[null,null,null,"Teams"]
[null,null,"Event","Team",null,null,null,null,null,null,null,null,null,null,null,null,null,null,null,null,null,null,null,null,{"$f":"SHEETNAME(A1)","v":"Team"},null,null,null,null,null,null,null,null,null,null,null,null,null,null,null,null,null,null,null,null,null,null,null,null,null,null,null,null,null,null,null,null,null,null,null,null,null,null,null,null,null,null,null,null,"Don't suppress cells above"]
[null,null,null,null,null,null,"Team",null,null,null,null,null,null,null,null,null,null,null,null,null,null,null,null,null,null,null,null,null,null,null,null,null,null,null,null,null,null,null,null,null,null,null,null,null,null,null,null,null,null,null,null,null,null,null,null,null,null,null,null,null,null,null,null,null,null,null,null,null,null,{"$f":"COUNTA(#REF!)-COUNTIF(#REF!,\"\")","v":{"$error":"#REF!"}},null,null,null,null,null,null,null,null,null,null,null,null,null,null,null,null,null,{"$f":"COUNTA(CJ4:CJ67)-COUNTIF(CJ4:CJ67,\"\")","v":10}]
[null,{"$f":"N_Group & \" 1\"","v":"Group 1"},null,null,null,null,null,null,null,null,null,null,null,null,null,null,null,null,null,null,null,null,null,null,null,null,null,null,null,null,null,null,null,null,null,null,null,null,null,{"$f":"B4","v":"Group 1"},null,null,null,null,null,null,null,null,null,null,null,null,null,null,null,null,null,null,null,null,null,null,null,null,null,null,null,null,null,null,null,null,null,null,null,null,null,null,null,null,null,null,null,null,null,null,null,{"$f":"TEAMLISTEVT(Particular_Category)","v":"Bormla SC (bor)"}]
[null,null,null,null,null,null,null,null,null,null,null,null,null,null,null,null,null,null,null,null,null,null,null,null,null,null,null,null,null,null,null,null,null,null,null,null,null,null,null,null,null,null,null,null,null,null,null,null,null,null,null,null,null,null,null,null,null,null,null,null,null,null,null,null,null,null,null,null,null,null,null,null,null,null,null,null,null,null,null,null,null,null,null,null,null,null,null,"ST Stembert (ste)"]
[null,{"$f":"N_Tirage","v":"Draw"},"Cla.","Cla1","Part","Cla2",{"$f":"N_Equipes","v":"Teams"},{"$f":"N_Pts","v":"Pts"},{"$f":"N_J","v":"Pld"},{"$f":"N_G","v":"W"},{"$f":"N_N","v":"D"},{"$f":"N_P","v":"L"},{"$f":"N_Diff_R","v":"ED"},{"$f":"N_MP","v":"WM"},{"$f":"N_MC","v":"LM"},{"$f":"N_Diff_M","v":"MD"},{"$f":"N_BP","v":"F"},{"$f":"N_BC","v":"A"},{"$f":"N_Diff_B","v":"GD"},null,null,null,null,null,null,null,null,null,null,null,null,null,null,null,null,null,null,null,null,null,{"$f":"N_Cla.","v":"Rk"},{"$f":"N_Equipes","v":"Teams"},{"$f":"N_Pts","v":"Pts"},{"$f":"N_J","v":"Pld"},{"$f":"N_G","v":"W"},{"$f":"N_N","v":"D"},{"$f":"N_P","v":"L"},{"$f":"N_Diff_R","v":"ED"},{"$f":"N_MP","v":"WM"},{"$f":"N_MC","v":"LM"},{"$f":"N_Diff_M","v":"MD"},{"$f":"N_BP","v":"F"},{"$f":"N_BC","v":"A"},{"$f":"N_Diff_B","v":"GD"},{"$f":"N_Matches","v":"Matches"},null,null,null,null,null,null,null,null,null,null,null,null,null,null,null,null,null,null,null,null,null,null,null,null,null,null,null,null,null,null,null,null,"TSC Royal 78 Kaisermühlen (roy)"]
[null,1,{"$f":"IF(AL12=\"\",\"\",RANK(F7,F7:F11)*1000+ROW())","v":1007},{"$f":"IF(J7=\"\",\"\",H7*CritClassEq1_Points+M7*CritClassEq1_DiffRencontres+P7*CritClassEq1_DiffMatches+S7*CritClassEq1_DiffButs+N7*CritClassEq1_Matches+Q7*CritClassEq1_Attaque)","v":157464000000000},{"$f":"IF(J7=\"\",\"\",Nb_Diff_Part(D7,D7:D11,G7,G7:G11,AK13:AK76)*CritClassEq_DiffPart+Nb_Goal_Part(D7,D7:D11,G7,G7:G11,Y13:AC76)*CritClassEq_IndsPart+Nb_Score_Part(D7,D7:D11,G7,G7:G11,Y13:AC76)*CritClassEq_WinsPart+Nb_GoalTeam_Part(D7,D7:D11,G7,G7:G11,Y13:AC76)*CritClassEq_GoalPart+Nb_ScoreTeam_Part(D7,D7:D11,G7,G7:G11,Y13:AC76)*CritClassEq_ScorePart)","v":729007200},{"$f":"IF(J7=\"\",\"\",D7+E7+H7*CritClassEq2_Points+M7*CritClassEq2_DiffRencontres+P7*CritClassEq2_DiffMatches+S7*CritClassEq2_DiffButs+N7*CritClassEq2_Matches+Q7*CritClassEq2_Attaque)","v":157464881288027},"Bormla SC (bor)",{"$f":"IF(AL12=\"\",\"\",(J7*Points_Victoire)+K7*Points_Null)","v":8},{"$f":"IF(J7=\"\",\"\",SUM(J7:L7))","v":4},{"$f":"IF(AL12=\"\",\"\",COUNTIF(AE13:AE80,G7))","v":2},{"$f":"IF(AL12=\"\",\"\",COUNTIF(AF13:AG80,G7))","v":2},{"$f":"IF(AL12=\"\",\"\",COUNTIF(AH13:AH80,G7))","v":0},{"$f":"IF(AL12=\"\",\"\",J7-L7)","v":2},{"$f":"IF(AL12=\"\",\"\",SUMIF(Y13:Y80,G7,Z13:Z80)+SUMIF(AC13:AC80,G7,AB13:AB80))","v":8},{"$f":"IF(AL12=\"\",\"\",SUMIF(Y13:Y80,G7,AB13:AB80)+SUMIF(AC13:AC80,G7,Z13:AL80))","v":2},{"$f":"IF(AL12=\"\",\"\",N7-O7)","v":6},{"$f":"IF(AL12=\"\",\"\",SUMIF(Y13:Y80,G7,AI13:AI80)+SUMIF(AC13:AC80,G7,AJ13:AJ80))","v":47},{"$f":"IF(AL12=\"\",\"\",SUMIF(Y13:Y80,G7,AJ13:AJ80)+SUMIF(AC13:AC80,G7,AI13:AI80))","v":21},{"$f":"IF(AL12=\"\",\"\",Q7-R7)","v":26},null,null,null,null,null,null,null,null,null,null,null,null,null,null,null,null,null,null,{"$f":"IF(AL12=\"\",\"\",SMALL(C7:C11,1))","v":1007},null,null,{"$f":"IF(AL12=\"\",\"\",INT(AL7/1000))","v":1},{"$f":"IF(AL12=\"\",IF(HidePlayerFormulas,\"\",\"(\"&G7&\")\"),VLOOKUP(AL7,C7:S11,5,FALSE))","v":"Bormla SC (bor)"},{"$f":"VLOOKUP(AL7,C7:S11,6,FALSE)","v":8},{"$f":"VLOOKUP(AL7,C7:S11,7,FALSE)","v":4},{"$f":"VLOOKUP(AL7,C7:S11,8,FALSE)","v":2},{"$f":"VLOOKUP(AL7,C7:S11,9,FALSE)","v":2},{"$f":"VLOOKUP(AL7,C7:S11,10,FALSE)","v":0},{"$f":"VLOOKUP(AL7,C7:S11,11,FALSE)","v":2},{"$f":"VLOOKUP(AL7,C7:S11,12,FALSE)","v":8},{"$f":"VLOOKUP(AL7,C7:S11,13,FALSE)","v":2},{"$f":"VLOOKUP(AL7,C7:S11,14,FALSE)","v":6},{"$f":"VLOOKUP(AL7,C7:S11,15,FALSE)","v":47},{"$f":"VLOOKUP(AL7,C7:S11,16,FALSE)","v":21},{"$f":"VLOOKUP(AL7,C7:S11,17,FALSE)","v":26},{"$f":"IF($Z13=\"\",\"\",IF($AP7=$Y13,$Z13&\"(\"&SUM($Z14:$Z17)&\")\",IF($AP7=$AC13,$AB13&\"(\"&SUM($AB14:$AB17)&\")\",\"\")))","v":""},{"$f":"IF($Z20=\"\",\"\",IF($AP7=$Y20,$Z20&\"(\"&SUM($Z21:$Z24)&\")\",IF($AP7=$AC20,$AB20&\"(\"&SUM($AB21:$AB24)&\")\",\"\")))","v":"1(8)"},{"$f":"IF($Z27=\"\",\"\",IF($AP7=$Y27,$Z27&\"(\"&SUM($Z28:$Z31)&\")\",IF($AP7=$AC27,$AB27&\"(\"&SUM($AB28:$AB31)&\")\",\"\")))","v":""},{"$f":"IF($Z34=\"\",\"\",IF($AP7=$Y34,$Z34&\"(\"&SUM($Z35:$Z38)&\")\",IF($AP7=$AC34,$AB34&\"(\"&SUM($AB35:$AB38)&\")\",\"\")))","v":""},{"$f":"IF($Z41=\"\",\"\",IF($AP7=$Y41,$Z41&\"(\"&SUM($Z42:$Z45)&\")\",IF($AP7=$AC41,$AB41&\"(\"&SUM($AB42:$AB45)&\")\",\"\")))","v":"2(9)"},{"$f":"IF($Z48=\"\",\"\",IF($AP7=$Y48,$Z48&\"(\"&SUM($Z49:$Z52)&\")\",IF($AP7=$AC48,$AB48&\"(\"&SUM($AB49:$AB52)&\")\",\"\")))","v":""},{"$f":"IF($Z55=\"\",\"\",IF($AP7=$Y55,$Z55&\"(\"&SUM($Z56:$Z59)&\")\",IF($AP7=$AC55,$AB55&\"(\"&SUM($AB56:$AB59)&\")\",\"\")))","v":"1(8)"},{"$f":"IF($Z62=\"\",\"\",IF($AP7=$Y62,$Z62&\"(\"&SUM($Z63:$Z66)&\")\",IF($AP7=$AC62,$AB62&\"(\"&SUM($AB63:$AB66)&\")\",\"\")))","v":""},{"$f":"IF($Z69=\"\",\"\",IF($AP7=$Y69,$Z69&\"(\"&SUM($Z70:$Z73)&\")\",IF($AP7=$AC69,$AB69&\"(\"&SUM($AB70:$AB73)&\")\",\"\")))","v":"4(22)"},{"$f":"IF($Z76=\"\",\"\",IF($AP7=$Y76,$Z76&\"(\"&SUM($Z77:$Z80)&\")\",IF($AP7=$AC76,$AB76&\"(\"&SUM($AB77:$AB80)&\")\",\"\")))","v":""},{"$f":"IF(G7=\"[---WithDraw---]\",FALSE,IF(COUNTIF(PlayerNamesWithinGroups,G7)>1,TRUE,FALSE))","v":false},{"$f":"AND(LEFT($AP7,1) = \"(\", RIGHT($AP7,1) =\")\")","v":false},{"$f":"IF(OR($AO7=$AO6,$AO7=$AO8),TRUE,FALSE)","v":false},null,null,null,null,null,null,null,null,null,null,null,null,null,null,null,null,null,null,null,null,"TSC Royal 78 Kaisermühlen 2 (roy)"]
[null,2,{"$f":"IF(AL12=\"\",\"\",RANK(F8,F7:F11)*1000+ROW())","v":5008},{"$f":"IF(J8=\"\",\"\",H8*CritClassEq1_Points+M8*CritClassEq1_DiffRencontres+P8*CritClassEq1_DiffMatches+S8*CritClassEq1_DiffButs+N8*CritClassEq1_Matches+Q8*CritClassEq1_Attaque)","v":0},{"$f":"IF(J8=\"\",\"\",Nb_Diff_Part(D8,D7:D11,G8,G7:G11,AK13:AK76)*CritClassEq_DiffPart+Nb_Goal_Part(D8,D7:D11,G8,G7:G11,Y13:AC76)*CritClassEq_IndsPart+Nb_Score_Part(D8,D7:D11,G8,G7:G11,Y13:AC76)*CritClassEq_WinsPart+Nb_GoalTeam_Part(D8,D7:D11,G8,G7:G11,Y13:AC76)*CritClassEq_GoalPart+Nb_ScoreTeam_Part(D8,D7:D11,G8,G7:G11,Y13:AC76)*CritClassEq_ScorePart)","v":0},{"$f":"IF(J8=\"\",\"\",D8+E8+H8*CritClassEq2_Points+M8*CritClassEq2_DiffRencontres+P8*CritClassEq2_DiffMatches+S8*CritClassEq2_DiffButs+N8*CritClassEq2_Matches+Q8*CritClassEq2_Attaque)","v":-340201731},"GCT DLF Gorizia (gor)",{"$f":"IF(AL12=\"\",\"\",(J8*Points_Victoire)+K8*Points_Null)","v":0},{"$f":"IF(J8=\"\",\"\",SUM(J8:L8))","v":4},{"$f":"IF(AL12=\"\",\"\",COUNTIF(AE13:AE80,G8))","v":0},{"$f":"IF(AL12=\"\",\"\",COUNTIF(AF13:AG80,G8))","v":0},{"$f":"IF(AL12=\"\",\"\",COUNTIF(AH13:AH80,G8))","v":4},{"$f":"IF(AL12=\"\",\"\",J8-L8)","v":-4},{"$f":"IF(AL12=\"\",\"\",SUMIF(Y13:Y80,G8,Z13:Z80)+SUMIF(AC13:AC80,G8,AB13:AB80))","v":0},{"$f":"IF(AL12=\"\",\"\",SUMIF(Y13:Y80,G8,AB13:AB80)+SUMIF(AC13:AC80,G8,Z13:AL80))","v":14},{"$f":"IF(AL12=\"\",\"\",N8-O8)","v":-14},{"$f":"IF(AL12=\"\",\"\",SUMIF(Y13:Y80,G8,AI13:AI80)+SUMIF(AC13:AC80,G8,AJ13:AJ80))","v":9},{"$f":"IF(AL12=\"\",\"\",SUMIF(Y13:Y80,G8,AJ13:AJ80)+SUMIF(AC13:AC80,G8,AI13:AI80))","v":67},{"$f":"IF(AL12=\"\",\"\",Q8-R8)","v":-58},null,null,null,null,null,null,null,null,null,null,null,null,null,null,null,null,null,null,{"$f":"IF(AL12=\"\",\"\",SMALL(C7:C11,2))","v":2011},null,null,{"$f":"IF(AL12=\"\",\"\",INT(AL8/1000))","v":2},{"$f":"IF(AL12=\"\",IF(HidePlayerFormulas,\"\",\"(\"&G8&\")\"),VLOOKUP(AL8,C7:S11,5,FALSE))","v":"TSC Royal 78 Kaisermühlen (roy)"},{"$f":"VLOOKUP(AL8,C7:S11,6,FALSE)","v":8},{"$f":"VLOOKUP(AL8,C7:S11,7,FALSE)","v":4},{"$f":"VLOOKUP(AL8,C7:S11,8,FALSE)","v":2},{"$f":"VLOOKUP(AL8,C7:S11,9,FALSE)","v":2},{"$f":"VLOOKUP(AL8,C7:S11,10,FALSE)","v":0},{"$f":"VLOOKUP(AL8,C7:S11,11,FALSE)","v":2},{"$f":"VLOOKUP(AL8,C7:S11,12,FALSE)","v":8},{"$f":"VLOOKUP(AL8,C7:S11,13,FALSE)","v":3},{"$f":"VLOOKUP(AL8,C7:S11,14,FALSE)","v":5},{"$f":"VLOOKUP(AL8,C7:S11,15,FALSE)","v":45},{"$f":"VLOOKUP(AL8,C7:S11,16,FALSE)","v":24},{"$f":"VLOOKUP(AL8,C7:S11,17,FALSE)","v":21},{"$f":"IF($Z13=\"\",\"\",IF($AP8=$Y13,$Z13&\"(\"&SUM($Z14:$Z17)&\")\",IF($AP8=$AC13,$AB13&\"(\"&SUM($AB14:$AB17)&\")\",\"\")))","v":""},{"$f":"IF($Z20=\"\",\"\",IF($AP8=$Y20,$Z20&\"(\"&SUM($Z21:$Z24)&\")\",IF($AP8=$AC20,$AB20&\"(\"&SUM($AB21:$AB24)&\")\",\"\")))","v":"1(8)"},{"$f":"IF($Z27=\"\",\"\",IF($AP8=$Y27,$Z27&\"(\"&SUM($Z28:$Z31)&\")\",IF($AP8=$AC27,$AB27&\"(\"&SUM($AB28:$AB31)&\")\",\"\")))","v":""},{"$f":"IF($Z34=\"\",\"\",IF($AP8=$Y34,$Z34&\"(\"&SUM($Z35:$Z38)&\")\",IF($AP8=$AC34,$AB34&\"(\"&SUM($AB35:$AB38)&\")\",\"\")))","v":"3(12)"},{"$f":"IF($Z41=\"\",\"\",IF($AP8=$Y41,$Z41&\"(\"&SUM($Z42:$Z45)&\")\",IF($AP8=$AC41,$AB41&\"(\"&SUM($AB42:$AB45)&\")\",\"\")))","v":""},{"$f":"IF($Z48=\"\",\"\",IF($AP8=$Y48,$Z48&\"(\"&SUM($Z49:$Z52)&\")\",IF($AP8=$AC48,$AB48&\"(\"&SUM($AB49:$AB52)&\")\",\"\")))","v":"3(19)"},{"$f":"IF($Z55=\"\",\"\",IF($AP8=$Y55,$Z55&\"(\"&SUM($Z56:$Z59)&\")\",IF($AP8=$AC55,$AB55&\"(\"&SUM($AB56:$AB59)&\")\",\"\")))","v":""},{"$f":"IF($Z62=\"\",\"\",IF($AP8=$Y62,$Z62&\"(\"&SUM($Z63:$Z66)&\")\",IF($AP8=$AC62,$AB62&\"(\"&SUM($AB63:$AB66)&\")\",\"\")))","v":"1(6)"},{"$f":"IF($Z69=\"\",\"\",IF($AP8=$Y69,$Z69&\"(\"&SUM($Z70:$Z73)&\")\",IF($AP8=$AC69,$AB69&\"(\"&SUM($AB70:$AB73)&\")\",\"\")))","v":""},{"$f":"IF($Z76=\"\",\"\",IF($AP8=$Y76,$Z76&\"(\"&SUM($Z77:$Z80)&\")\",IF($AP8=$AC76,$AB76&\"(\"&SUM($AB77:$AB80)&\")\",\"\")))","v":""},{"$f":"IF(G8=\"[---WithDraw---]\",FALSE,IF(COUNTIF(PlayerNamesWithinGroups,G8)>1,TRUE,FALSE))","v":false},{"$f":"AND(LEFT($AP8,1) = \"(\", RIGHT($AP8,1) =\")\")","v":false},{"$f":"IF(OR($AO8=$AO7,$AO8=$AO9),TRUE,FALSE)","v":false},null,null,null,null,null,null,null,null,null,null,null,null,null,null,null,null,null,null,null,null,"Atlas FTC (atl)"]
[null,3,{"$f":"IF(AL12=\"\",\"\",RANK(F9,F7:F11)*1000+ROW())","v":3009},{"$f":"IF(J9=\"\",\"\",H9*CritClassEq1_Points+M9*CritClassEq1_DiffRencontres+P9*CritClassEq1_DiffMatches+S9*CritClassEq1_DiffButs+N9*CritClassEq1_Matches+Q9*CritClassEq1_Attaque)","v":137781000000000},{"$f":"IF(J9=\"\",\"\",Nb_Diff_Part(D9,D7:D11,G9,G7:G11,AK13:AK76)*CritClassEq_DiffPart+Nb_Goal_Part(D9,D7:D11,G9,G7:G11,Y13:AC76)*CritClassEq_IndsPart+Nb_Score_Part(D9,D7:D11,G9,G7:G11,Y13:AC76)*CritClassEq_WinsPart+Nb_GoalTeam_Part(D9,D7:D11,G9,G7:G11,Y13:AC76)*CritClassEq_GoalPart+Nb_ScoreTeam_Part(D9,D7:D11,G9,G7:G11,Y13:AC76)*CritClassEq_ScorePart)","v":0},{"$f":"IF(J9=\"\",\"\",D9+E9+H9*CritClassEq2_Points+M9*CritClassEq2_DiffRencontres+P9*CritClassEq2_DiffMatches+S9*CritClassEq2_DiffButs+N9*CritClassEq2_Matches+Q9*CritClassEq2_Attaque)","v":137781153900488},"TSC Phoenix (wie)",{"$f":"IF(AL12=\"\",\"\",(J9*Points_Victoire)+K9*Points_Null)","v":7},{"$f":"IF(J9=\"\",\"\",SUM(J9:L9))","v":4},{"$f":"IF(AL12=\"\",\"\",COUNTIF(AE13:AE80,G9))","v":2},{"$f":"IF(AL12=\"\",\"\",COUNTIF(AF13:AG80,G9))","v":1},{"$f":"IF(AL12=\"\",\"\",COUNTIF(AH13:AH80,G9))","v":1},{"$f":"IF(AL12=\"\",\"\",J9-L9)","v":1},{"$f":"IF(AL12=\"\",\"\",SUMIF(Y13:Y80,G9,Z13:Z80)+SUMIF(AC13:AC80,G9,AB13:AB80))","v":10},{"$f":"IF(AL12=\"\",\"\",SUMIF(Y13:Y80,G9,AB13:AB80)+SUMIF(AC13:AC80,G9,Z13:AL80))","v":4},{"$f":"IF(AL12=\"\",\"\",N9-O9)","v":6},{"$f":"IF(AL12=\"\",\"\",SUMIF(Y13:Y80,G9,AI13:AI80)+SUMIF(AC13:AC80,G9,AJ13:AJ80))","v":38},{"$f":"IF(AL12=\"\",\"\",SUMIF(Y13:Y80,G9,AJ13:AJ80)+SUMIF(AC13:AC80,G9,AI13:AI80))","v":23},{"$f":"IF(AL12=\"\",\"\",Q9-R9)","v":15},null,null,null,null,null,null,null,null,null,null,null,null,null,null,null,null,null,null,{"$f":"IF(AL12=\"\",\"\",SMALL(C7:C11,3))","v":3009},null,null,{"$f":"IF(AL12=\"\",\"\",INT(AL9/1000))","v":3},{"$f":"IF(AL12=\"\",IF(HidePlayerFormulas,\"\",\"(\"&G9&\")\"),VLOOKUP(AL9,C7:S11,5,FALSE))","v":"TSC Phoenix (wie)"},{"$f":"VLOOKUP(AL9,C7:S11,6,FALSE)","v":7},{"$f":"VLOOKUP(AL9,C7:S11,7,FALSE)","v":4},{"$f":"VLOOKUP(AL9,C7:S11,8,FALSE)","v":2},{"$f":"VLOOKUP(AL9,C7:S11,9,FALSE)","v":1},{"$f":"VLOOKUP(AL9,C7:S11,10,FALSE)","v":1},{"$f":"VLOOKUP(AL9,C7:S11,11,FALSE)","v":1},{"$f":"VLOOKUP(AL9,C7:S11,12,FALSE)","v":10},{"$f":"VLOOKUP(AL9,C7:S11,13,FALSE)","v":4},{"$f":"VLOOKUP(AL9,C7:S11,14,FALSE)","v":6},{"$f":"VLOOKUP(AL9,C7:S11,15,FALSE)","v":38},{"$f":"VLOOKUP(AL9,C7:S11,16,FALSE)","v":23},{"$f":"VLOOKUP(AL9,C7:S11,17,FALSE)","v":15},{"$f":"IF($Z13=\"\",\"\",IF($AP9=$Y13,$Z13&\"(\"&SUM($Z14:$Z17)&\")\",IF($AP9=$AC13,$AB13&\"(\"&SUM($AB14:$AB17)&\")\",\"\")))","v":"4(14)"},{"$f":"IF($Z20=\"\",\"\",IF($AP9=$Y20,$Z20&\"(\"&SUM($Z21:$Z24)&\")\",IF($AP9=$AC20,$AB20&\"(\"&SUM($AB21:$AB24)&\")\",\"\")))","v":""},{"$f":"IF($Z27=\"\",\"\",IF($AP9=$Y27,$Z27&\"(\"&SUM($Z28:$Z31)&\")\",IF($AP9=$AC27,$AB27&\"(\"&SUM($AB28:$AB31)&\")\",\"\")))","v":""},{"$f":"IF($Z34=\"\",\"\",IF($AP9=$Y34,$Z34&\"(\"&SUM($Z35:$Z38)&\")\",IF($AP9=$AC34,$AB34&\"(\"&SUM($AB35:$AB38)&\")\",\"\")))","v":"1(5)"},{"$f":"IF($Z41=\"\",\"\",IF($AP9=$Y41,$Z41&\"(\"&SUM($Z42:$Z45)&\")\",IF($AP9=$AC41,$AB41&\"(\"&SUM($AB42:$AB45)&\")\",\"\")))","v":""},{"$f":"IF($Z48=\"\",\"\",IF($AP9=$Y48,$Z48&\"(\"&SUM($Z49:$Z52)&\")\",IF($AP9=$AC48,$AB48&\"(\"&SUM($AB49:$AB52)&\")\",\"\")))","v":""},{"$f":"IF($Z55=\"\",\"\",IF($AP9=$Y55,$Z55&\"(\"&SUM($Z56:$Z59)&\")\",IF($AP9=$AC55,$AB55&\"(\"&SUM($AB56:$AB59)&\")\",\"\")))","v":"1(7)"},{"$f":"IF($Z62=\"\",\"\",IF($AP9=$Y62,$Z62&\"(\"&SUM($Z63:$Z66)&\")\",IF($AP9=$AC62,$AB62&\"(\"&SUM($AB63:$AB66)&\")\",\"\")))","v":""},{"$f":"IF($Z69=\"\",\"\",IF($AP9=$Y69,$Z69&\"(\"&SUM($Z70:$Z73)&\")\",IF($AP9=$AC69,$AB69&\"(\"&SUM($AB70:$AB73)&\")\",\"\")))","v":""},{"$f":"IF($Z76=\"\",\"\",IF($AP9=$Y76,$Z76&\"(\"&SUM($Z77:$Z80)&\")\",IF($AP9=$AC76,$AB76&\"(\"&SUM($AB77:$AB80)&\")\",\"\")))","v":"4(12)"},{"$f":"IF(G9=\"[---WithDraw---]\",FALSE,IF(COUNTIF(PlayerNamesWithinGroups,G9)>1,TRUE,FALSE))","v":false},{"$f":"AND(LEFT($AP9,1) = \"(\", RIGHT($AP9,1) =\")\")","v":false},{"$f":"IF(OR($AO9=$AO8,$AO9=$AO10),TRUE,FALSE)","v":false},null,null,null,null,null,null,null,null,null,null,null,null,null,null,null,null,null,null,null,null,"Roligans Ilioupolis TSC (rol)"]
[null,4,{"$f":"IF(AL12=\"\",\"\",RANK(F10,F7:F11)*1000+ROW())","v":4010},{"$f":"IF(J10=\"\",\"\",H10*CritClassEq1_Points+M10*CritClassEq1_DiffRencontres+P10*CritClassEq1_DiffMatches+S10*CritClassEq1_DiffButs+N10*CritClassEq1_Matches+Q10*CritClassEq1_Attaque)","v":78732000000000},{"$f":"IF(J10=\"\",\"\",Nb_Diff_Part(D10,D7:D11,G10,G7:G11,AK13:AK76)*CritClassEq_DiffPart+Nb_Goal_Part(D10,D7:D11,G10,G7:G11,Y13:AC76)*CritClassEq_IndsPart+Nb_Score_Part(D10,D7:D11,G10,G7:G11,Y13:AC76)*CritClassEq_WinsPart+Nb_GoalTeam_Part(D10,D7:D11,G10,G7:G11,Y13:AC76)*CritClassEq_GoalPart+Nb_ScoreTeam_Part(D10,D7:D11,G10,G7:G11,Y13:AC76)*CritClassEq_ScorePart)","v":0},{"$f":"IF(J10=\"\",\"\",D10+E10+H10*CritClassEq2_Points+M10*CritClassEq2_DiffRencontres+P10*CritClassEq2_DiffMatches+S10*CritClassEq2_DiffButs+N10*CritClassEq2_Matches+Q10*CritClassEq2_Attaque)","v":78731930339903},"Atlas FTC (atl)",{"$f":"IF(AL12=\"\",\"\",(J10*Points_Victoire)+K10*Points_Null)","v":4},{"$f":"IF(J10=\"\",\"\",SUM(J10:L10))","v":4},{"$f":"IF(AL12=\"\",\"\",COUNTIF(AE13:AE80,G10))","v":1},{"$f":"IF(AL12=\"\",\"\",COUNTIF(AF13:AG80,G10))","v":1},{"$f":"IF(AL12=\"\",\"\",COUNTIF(AH13:AH80,G10))","v":2},{"$f":"IF(AL12=\"\",\"\",J10-L10)","v":-1},{"$f":"IF(AL12=\"\",\"\",SUMIF(Y13:Y80,G10,Z13:Z80)+SUMIF(AC13:AC80,G10,AB13:AB80))","v":4},{"$f":"IF(AL12=\"\",\"\",SUMIF(Y13:Y80,G10,AB13:AB80)+SUMIF(AC13:AC80,G10,Z13:AL80))","v":7},{"$f":"IF(AL12=\"\",\"\",N10-O10)","v":-3},{"$f":"IF(AL12=\"\",\"\",SUMIF(Y13:Y80,G10,AI13:AI80)+SUMIF(AC13:AC80,G10,AJ13:AJ80))","v":23},{"$f":"IF(AL12=\"\",\"\",SUMIF(Y13:Y80,G10,AJ13:AJ80)+SUMIF(AC13:AC80,G10,AI13:AI80))","v":27},{"$f":"IF(AL12=\"\",\"\",Q10-R10)","v":-4},null,null,null,null,null,null,null,null,null,null,null,null,null,null,null,null,null,null,{"$f":"IF(AL12=\"\",\"\",SMALL(C7:C11,4))","v":4010},null,null,{"$f":"IF(AL12=\"\",\"\",INT(AL10/1000))","v":4},{"$f":"IF(AL12=\"\",IF(HidePlayerFormulas,\"\",\"(\"&G10&\")\"),VLOOKUP(AL10,C7:S11,5,FALSE))","v":"Atlas FTC (atl)"},{"$f":"VLOOKUP(AL10,C7:S11,6,FALSE)","v":4},{"$f":"VLOOKUP(AL10,C7:S11,7,FALSE)","v":4},{"$f":"VLOOKUP(AL10,C7:S11,8,FALSE)","v":1},{"$f":"VLOOKUP(AL10,C7:S11,9,FALSE)","v":1},{"$f":"VLOOKUP(AL10,C7:S11,10,FALSE)","v":2},{"$f":"VLOOKUP(AL10,C7:S11,11,FALSE)","v":-1},{"$f":"VLOOKUP(AL10,C7:S11,12,FALSE)","v":4},{"$f":"VLOOKUP(AL10,C7:S11,13,FALSE)","v":7},{"$f":"VLOOKUP(AL10,C7:S11,14,FALSE)","v":-3},{"$f":"VLOOKUP(AL10,C7:S11,15,FALSE)","v":23},{"$f":"VLOOKUP(AL10,C7:S11,16,FALSE)","v":27},{"$f":"VLOOKUP(AL10,C7:S11,17,FALSE)","v":-4},{"$f":"IF($Z13=\"\",\"\",IF($AP10=$Y13,$Z13&\"(\"&SUM($Z14:$Z17)&\")\",IF($AP10=$AC13,$AB13&\"(\"&SUM($AB14:$AB17)&\")\",\"\")))","v":""},{"$f":"IF($Z20=\"\",\"\",IF($AP10=$Y20,$Z20&\"(\"&SUM($Z21:$Z24)&\")\",IF($AP10=$AC20,$AB20&\"(\"&SUM($AB21:$AB24)&\")\",\"\")))","v":""},{"$f":"IF($Z27=\"\",\"\",IF($AP10=$Y27,$Z27&\"(\"&SUM($Z28:$Z31)&\")\",IF($AP10=$AC27,$AB27&\"(\"&SUM($AB28:$AB31)&\")\",\"\")))","v":"3(12)"},{"$f":"IF($Z34=\"\",\"\",IF($AP10=$Y34,$Z34&\"(\"&SUM($Z35:$Z38)&\")\",IF($AP10=$AC34,$AB34&\"(\"&SUM($AB35:$AB38)&\")\",\"\")))","v":""},{"$f":"IF($Z41=\"\",\"\",IF($AP10=$Y41,$Z41&\"(\"&SUM($Z42:$Z45)&\")\",IF($AP10=$AC41,$AB41&\"(\"&SUM($AB42:$AB45)&\")\",\"\")))","v":"0(4)"},{"$f":"IF($Z48=\"\",\"\",IF($AP10=$Y48,$Z48&\"(\"&SUM($Z49:$Z52)&\")\",IF($AP10=$AC48,$AB48&\"(\"&SUM($AB49:$AB52)&\")\",\"\")))","v":""},{"$f":"IF($Z55=\"\",\"\",IF($AP10=$Y55,$Z55&\"(\"&SUM($Z56:$Z59)&\")\",IF($AP10=$AC55,$AB55&\"(\"&SUM($AB56:$AB59)&\")\",\"\")))","v":""},{"$f":"IF($Z62=\"\",\"\",IF($AP10=$Y62,$Z62&\"(\"&SUM($Z63:$Z66)&\")\",IF($AP10=$AC62,$AB62&\"(\"&SUM($AB63:$AB66)&\")\",\"\")))","v":"1(7)"},{"$f":"IF($Z69=\"\",\"\",IF($AP10=$Y69,$Z69&\"(\"&SUM($Z70:$Z73)&\")\",IF($AP10=$AC69,$AB69&\"(\"&SUM($AB70:$AB73)&\")\",\"\")))","v":""},{"$f":"IF($Z76=\"\",\"\",IF($AP10=$Y76,$Z76&\"(\"&SUM($Z77:$Z80)&\")\",IF($AP10=$AC76,$AB76&\"(\"&SUM($AB77:$AB80)&\")\",\"\")))","v":"0(0)"},{"$f":"IF(G10=\"[---WithDraw---]\",FALSE,IF(COUNTIF(PlayerNamesWithinGroups,G10)>1,TRUE,FALSE))","v":false},{"$f":"AND(LEFT($AP10,1) = \"(\", RIGHT($AP10,1) =\")\")","v":false},{"$f":"IF(OR($AO10=$AO9,$AO10=$AO11),TRUE,FALSE)","v":false},null,null,null,null,null,null,null,null,null,null,null,null,null,null,null,null,null,null,null,null,"GCT DLF Gorizia (gor)"]
[null,5,{"$f":"IF(AL12=\"\",\"\",RANK(F11,F7:F11)*1000+ROW())","v":2011},{"$f":"IF(J11=\"\",\"\",H11*CritClassEq1_Points+M11*CritClassEq1_DiffRencontres+P11*CritClassEq1_DiffMatches+S11*CritClassEq1_DiffButs+N11*CritClassEq1_Matches+Q11*CritClassEq1_Attaque)","v":157464000000000},{"$f":"IF(J11=\"\",\"\",Nb_Diff_Part(D11,D7:D11,G11,G7:G11,AK13:AK76)*CritClassEq_DiffPart+Nb_Goal_Part(D11,D7:D11,G11,G7:G11,Y13:AC76)*CritClassEq_IndsPart+Nb_Score_Part(D11,D7:D11,G11,G7:G11,Y13:AC76)*CritClassEq_WinsPart+Nb_GoalTeam_Part(D11,D7:D11,G11,G7:G11,Y13:AC76)*CritClassEq_GoalPart+Nb_ScoreTeam_Part(D11,D7:D11,G11,G7:G11,Y13:AC76)*CritClassEq_ScorePart)","v":729007200},{"$f":"IF(J11=\"\",\"\",D11+E11+H11*CritClassEq2_Points+M11*CritClassEq2_DiffRencontres+P11*CritClassEq2_DiffMatches+S11*CritClassEq2_DiffButs+N11*CritClassEq2_Matches+Q11*CritClassEq2_Attaque)","v":157464856987875},"TSC Royal 78 Kaisermühlen (roy)",{"$f":"IF(AL12=\"\",\"\",(J11*Points_Victoire)+K11*Points_Null)","v":8},{"$f":"IF(J11=\"\",\"\",SUM(J11:L11))","v":4},{"$f":"IF(AL12=\"\",\"\",COUNTIF(AE13:AE80,G11))","v":2},{"$f":"IF(AL12=\"\",\"\",COUNTIF(AF13:AG80,G11))","v":2},{"$f":"IF(AL12=\"\",\"\",COUNTIF(AH13:AH80,G11))","v":0},{"$f":"IF(AL12=\"\",\"\",J11-L11)","v":2},{"$f":"IF(AL12=\"\",\"\",SUMIF(Y13:Y80,G11,Z13:Z80)+SUMIF(AC13:AC80,G11,AB13:AB80))","v":8},{"$f":"IF(AL12=\"\",\"\",SUMIF(Y13:Y80,G11,AB13:AB80)+SUMIF(AC13:AC80,G11,Z13:AL80))","v":3},{"$f":"IF(AL12=\"\",\"\",N11-O11)","v":5},{"$f":"IF(AL12=\"\",\"\",SUMIF(Y13:Y80,G11,AI13:AI80)+SUMIF(AC13:AC80,G11,AJ13:AJ80))","v":45},{"$f":"IF(AL12=\"\",\"\",SUMIF(Y13:Y80,G11,AJ13:AJ80)+SUMIF(AC13:AC80,G11,AI13:AI80))","v":24},{"$f":"IF(AL12=\"\",\"\",Q11-R11)","v":21},null,null,null,null,null,null,null,null,null,null,null,null,null,null,null,null,null,null,{"$f":"IF(AL12=\"\",\"\",SMALL(C7:C11,5))","v":5008},null,null,{"$f":"IF(AL12=\"\",\"\",INT(AL11/1000))","v":5},{"$f":"IF(AL12=\"\",IF(HidePlayerFormulas,\"\",\"(\"&G11&\")\"),VLOOKUP(AL11,C7:S11,5,FALSE))","v":"GCT DLF Gorizia (gor)"},{"$f":"VLOOKUP(AL11,C7:S11,6,FALSE)","v":0},{"$f":"VLOOKUP(AL11,C7:S11,7,FALSE)","v":4},{"$f":"VLOOKUP(AL11,C7:S11,8,FALSE)","v":0},{"$f":"VLOOKUP(AL11,C7:S11,9,FALSE)","v":0},{"$f":"VLOOKUP(AL11,C7:S11,10,FALSE)","v":4},{"$f":"VLOOKUP(AL11,C7:S11,11,FALSE)","v":-4},{"$f":"VLOOKUP(AL11,C7:S11,12,FALSE)","v":0},{"$f":"VLOOKUP(AL11,C7:S11,13,FALSE)","v":14},{"$f":"VLOOKUP(AL11,C7:S11,14,FALSE)","v":-14},{"$f":"VLOOKUP(AL11,C7:S11,15,FALSE)","v":9},{"$f":"VLOOKUP(AL11,C7:S11,16,FALSE)","v":67},{"$f":"VLOOKUP(AL11,C7:S11,17,FALSE)","v":-58},{"$f":"IF($Z13=\"\",\"\",IF($AP11=$Y13,$Z13&\"(\"&SUM($Z14:$Z17)&\")\",IF($AP11=$AC13,$AB13&\"(\"&SUM($AB14:$AB17)&\")\",\"\")))","v":"0(3)"},{"$f":"IF($Z20=\"\",\"\",IF($AP11=$Y20,$Z20&\"(\"&SUM($Z21:$Z24)&\")\",IF($AP11=$AC20,$AB20&\"(\"&SUM($AB21:$AB24)&\")\",\"\")))","v":""},{"$f":"IF($Z27=\"\",\"\",IF($AP11=$Y27,$Z27&\"(\"&SUM($Z28:$Z31)&\")\",IF($AP11=$AC27,$AB27&\"(\"&SUM($AB28:$AB31)&\")\",\"\")))","v":"0(0)"},{"$f":"IF($Z34=\"\",\"\",IF($AP11=$Y34,$Z34&\"(\"&SUM($Z35:$Z38)&\")\",IF($AP11=$AC34,$AB34&\"(\"&SUM($AB35:$AB38)&\")\",\"\")))","v":""},{"$f":"IF($Z41=\"\",\"\",IF($AP11=$Y41,$Z41&\"(\"&SUM($Z42:$Z45)&\")\",IF($AP11=$AC41,$AB41&\"(\"&SUM($AB42:$AB45)&\")\",\"\")))","v":""},{"$f":"IF($Z48=\"\",\"\",IF($AP11=$Y48,$Z48&\"(\"&SUM($Z49:$Z52)&\")\",IF($AP11=$AC48,$AB48&\"(\"&SUM($AB49:$AB52)&\")\",\"\")))","v":"0(4)"},{"$f":"IF($Z55=\"\",\"\",IF($AP11=$Y55,$Z55&\"(\"&SUM($Z56:$Z59)&\")\",IF($AP11=$AC55,$AB55&\"(\"&SUM($AB56:$AB59)&\")\",\"\")))","v":""},{"$f":"IF($Z62=\"\",\"\",IF($AP11=$Y62,$Z62&\"(\"&SUM($Z63:$Z66)&\")\",IF($AP11=$AC62,$AB62&\"(\"&SUM($AB63:$AB66)&\")\",\"\")))","v":""},{"$f":"IF($Z69=\"\",\"\",IF($AP11=$Y69,$Z69&\"(\"&SUM($Z70:$Z73)&\")\",IF($AP11=$AC69,$AB69&\"(\"&SUM($AB70:$AB73)&\")\",\"\")))","v":"0(2)"},{"$f":"IF($Z76=\"\",\"\",IF($AP11=$Y76,$Z76&\"(\"&SUM($Z77:$Z80)&\")\",IF($AP11=$AC76,$AB76&\"(\"&SUM($AB77:$AB80)&\")\",\"\")))","v":""},{"$f":"IF(G11=\"[---WithDraw---]\",FALSE,IF(COUNTIF(PlayerNamesWithinGroups,G11)>1,TRUE,FALSE))","v":false},{"$f":"AND(LEFT($AP11,1) = \"(\", RIGHT($AP11,1) =\")\")","v":false},{"$f":"IF(OR($AO11=$AO10,$AO11=$AO12),TRUE,FALSE)","v":false},null,null,null,null,null,null,null,null,null,null,null,null,null,null,null,null,null,null,null,null,"Barbarian Mixed Team"]
[null,null,null,null,null,null,null,null,null,null,null,null,null,null,null,null,null,null,null,null,null,{"$f":"N_Heure","v":"Time"},{"$f":"N_Table","v":"Table"},{"$f":"N_Arbitre","v":"Referee"},{"$f":"N_Matches","v":"Matches"},null,null,null,null,null,null,null,null,null,null,null,null,{"$f":"IF(COUNTA(Z13:Z80)>10,\"OK\",\"\")","v":"OK"},null,null,null,null,null,null,null,null,null,null,null,null,null,null,null,null,null,null,null,null,null,null,null,null,null,null,null,null,null,null,null,null,null,null,null,null,null,null,null,null,null,null,null,null,null,null,null,null,null,"TSC Phoenix 2 (wie)"]
[null,null,null,null,null,null,null,null,null,null,null,null,null,null,null,null,null,null,null,null,"#G1","09:20:00",null,"Roligans Ilioupolis TSC (rol)",{"$f":"IF(G8=\"\",\"\",G8)","v":"GCT DLF Gorizia (gor)"},{"$f":"IF(OR(ISNUMBER(Z14),ISNUMBER(Z15),ISNUMBER(Z16),ISNUMBER(Z17)),4-COUNTBLANK(AI14:AI17),\"\")","v":0},"-",{"$f":"IF(OR(ISNUMBER(Z14),ISNUMBER(Z15),ISNUMBER(Z16),ISNUMBER(Z17)),4-COUNTBLANK(AJ14:AJ17),\"\")","v":4},{"$f":"IF(G9=\"\",\"\",G9)","v":"TSC Phoenix (wie)"},null,{"$f":"IF(Z13=\"\",\"\",IF(Z13>AB13,Y13,IF(Z13=AB13,IF(NoDrawWithWithdraw,IF(AL13=Y13,AC13,IF(AL13=AC13,Y13,\"\")),\"\"),AC13)))","v":"TSC Phoenix (wie)"},{"$f":"IF(Z13=\"\",\"\",IF(Z13=AB13,IF(NoDrawWithWithdraw,IF(AL13=Y13,\"\",IF(AL13=AC13,\"\",Y13)),Y13),\"\"))","v":""},{"$f":"IF(Z13=\"\",\"\",IF(Z13=AB13,IF(NoDrawWithWithdraw,IF(AL13=Y13,\"\",IF(AL13=AC13,\"\",AC13)),AC13),\"\"))","v":""},{"$f":"IF(Z13=\"\",\"\",IF(Z13<AB13,Y13,IF(Z13=AB13,IF(NoDrawWithWithdraw,IF(AL13=Y13,Y13,IF(AL13=AC13,AC13,\"\")),\"\"),AC13)))","v":"GCT DLF Gorizia (gor)"},{"$f":"IF(Z13=\"\",\"\",SUM(Z14:Z17))","v":3},{"$f":"IF(Z13=\"\",\"\",SUM(AB14:AB17))","v":14},{"$f":"CONCATENATE(AE13,AH13)","v":"TSC Phoenix (wie)GCT DLF Gorizia (gor)"},{"$f":"IF(COUNTIF(Y14:Y17,WithdrawLabel)>COUNTIF(AC14:AC17,WithdrawLabel),Y13,IF(COUNTIF(AC14:AC17,WithdrawLabel)>COUNTIF(Y14:Y17,WithdrawLabel),AC13,\"\"))","v":""},null,null,null,null,null,null,null,null,null,null,null,null,null,null,null,null,null,null,null,null,null,null,null,null,null,null,null,null,null,null,null,null,null,null,null,null,null,null,null,null,null,null,null,null,null,null,null,null,null,"TSC Phoenix (wie)"]
[null,null,null,null,null,null,null,null,null,null,null,null,null,null,null,null,null,null,null,null,null,null,null,null,"Michele Cerullo (gor)",0,"-",3,"Marios Strommer (wie)",null,{"$f":"IF(Z14=\"\",\"\",IF(Z14>AB14,Y14,IF(Z14=AB14,\"\",AC14)))","v":"Marios Strommer (wie)"},{"$f":"IF(Z14=\"\",\"\",IF(Z14=AB14,Y14,\"\"))","v":""},{"$f":"IF(Z14=\"\",\"\",IF(Z14=AB14,AC14,\"\"))","v":""},{"$f":"IF(Z14=\"\",\"\",IF(Z14<AB14,Y14,IF(Z14=AB14,\"\",AC14)))","v":"Michele Cerullo (gor)"},{"$f":"IF(Z14=\"\",\"\",IF(Z14>AB14,Y13,\"\"))","v":""},{"$f":"IF(Z14=\"\",\"\",IF(Z14<AB14,AC13,\"\"))","v":"TSC Phoenix (wie)"},{"$f":"CONCATENATE(AE14,AH14)","v":"Marios Strommer (wie)Michele Cerullo (gor)"},null,null,null,null,null,null,null,null,null,null,null,null,null,null,null,null,null,null,null,null,null,null,null,null,null,null,null,null,null,null,null,null,null,null,null,null,null,null,null,null,null,null,null,null,null,null,null,null,null,null,""]
[null,null,null,null,null,null,null,null,null,null,null,null,null,null,null,null,null,null,null,null,null,null,null,null,"Michael Stolzenberg ()",1,"-",2,"Erich Hinkelmann (wie)",null,{"$f":"IF(Z15=\"\",\"\",IF(Z15>AB15,Y15,IF(Z15=AB15,\"\",AC15)))","v":"Erich Hinkelmann (wie)"},{"$f":"IF(Z15=\"\",\"\",IF(Z15=AB15,Y15,\"\"))","v":""},{"$f":"IF(Z15=\"\",\"\",IF(Z15=AB15,AC15,\"\"))","v":""},{"$f":"IF(Z15=\"\",\"\",IF(Z15<AB15,Y15,IF(Z15=AB15,\"\",AC15)))","v":"Michael Stolzenberg ()"},{"$f":"IF(Z15=\"\",\"\",IF(Z15>AB15,Y13,\"\"))","v":""},{"$f":"IF(Z15=\"\",\"\",IF(Z15<AB15,AC13,\"\"))","v":"TSC Phoenix (wie)"},{"$f":"CONCATENATE(AE15,AH15)","v":"Erich Hinkelmann (wie)Michael Stolzenberg ()"},null,null,null,null,null,null,null,null,null,null,null,null,null,null,null,null,null,null,null,null,null,null,null,null,null,null,null,null,null,null,null,null,null,null,null,null,null,null,null,null,null,null,null,null,null,null,null,null,null,null,""]
[null,null,null,null,null,null,null,null,null,null,null,null,null,null,null,null,null,null,null,null,null,null,null,null,"Marco Pinausi (gor)",2,"-",4,"Christian Blümel (wie)",null,{"$f":"IF(Z16=\"\",\"\",IF(Z16>AB16,Y16,IF(Z16=AB16,\"\",AC16)))","v":"Christian Blümel (wie)"},{"$f":"IF(Z16=\"\",\"\",IF(Z16=AB16,Y16,\"\"))","v":""},{"$f":"IF(Z16=\"\",\"\",IF(Z16=AB16,AC16,\"\"))","v":""},{"$f":"IF(Z16=\"\",\"\",IF(Z16<AB16,Y16,IF(Z16=AB16,\"\",AC16)))","v":"Marco Pinausi (gor)"},{"$f":"IF(Z16=\"\",\"\",IF(Z16>AB16,Y13,\"\"))","v":""},{"$f":"IF(Z16=\"\",\"\",IF(Z16<AB16,AC13,\"\"))","v":"TSC Phoenix (wie)"},{"$f":"CONCATENATE(AE16,AH16)","v":"Christian Blümel (wie)Marco Pinausi (gor)"},null,null,null,null,null,null,null,null,null,null,null,null,null,null,null,null,null,null,null,null,null,null,null,null,null,null,null,null,null,null,null,null,null,null,null,null,null,null,null,null,null,null,null,null,null,null,null,null,null,null,""]
[null,null,null,null,null,null,null,null,null,null,null,null,null,null,null,null,null,null,null,null,null,null,null,null,"To be defined",0,"-",5,"Manfred Pawlica (wie)",null,{"$f":"IF(Z17=\"\",\"\",IF(Z17>AB17,Y17,IF(Z17=AB17,\"\",AC17)))","v":"Manfred Pawlica (wie)"},{"$f":"IF(Z17=\"\",\"\",IF(Z17=AB17,Y17,\"\"))","v":""},{"$f":"IF(Z17=\"\",\"\",IF(Z17=AB17,AC17,\"\"))","v":""},{"$f":"IF(Z17=\"\",\"\",IF(Z17<AB17,Y17,IF(Z17=AB17,\"\",AC17)))","v":"To be defined"},{"$f":"IF(Z17=\"\",\"\",IF(Z17>AB17,Y13,\"\"))","v":""},{"$f":"IF(Z17=\"\",\"\",IF(Z17<AB17,AC13,\"\"))","v":"TSC Phoenix (wie)"},{"$f":"CONCATENATE(AE17,AH17)","v":"Manfred Pawlica (wie)To be defined"},null,null,null,null,null,null,null,null,null,null,null,null,null,null,null,null,null,null,null,null,null,null,null,null,null,null,null,null,null,null,null,null,null,null,null,null,null,null,null,null,null,null,null,null,null,null,null,null,null,null,""]
[null,null,null,null,null,null,null,null,null,null,null,null,null,null,null,null,null,null,null,null,null,null,null,{"$f":"N_Substitute","v":"Substitute"},null,null,null,null,null,null,null,null,null,null,null,null,null,null,null,null,null,null,null,null,null,null,null,null,null,null,null,null,null,null,null,null,null,null,null,null,null,null,null,null,null,null,null,null,null,null,null,null,null,null,null,null,null,null,null,null,null,null,null,null,null,null,null,""]
[null,null,null,null,null,null,null,null,null,null,null,null,null,null,null,null,null,null,null,null,null,null,null,{"$f":"N_Substitute","v":"Substitute"},null,null,null,null,null,null,null,null,null,null,null,null,null,null,null,null,null,null,null,null,null,null,null,null,null,null,null,null,null,null,null,null,null,null,null,null,null,null,null,null,null,null,null,null,null,null,null,null,null,null,null,null,null,null,null,null,null,null,null,null,null,null,null,""]
[null,null,null,null,null,null,null,null,null,null,null,null,null,null,null,null,null,null,null,null,"#G1","11:40:00",null,"Roligans Ilioupolis TSC (rol)",{"$f":"IF(G11=\"\",\"\",G11)","v":"TSC Royal 78 Kaisermühlen (roy)"},{"$f":"IF(OR(ISNUMBER(Z21),ISNUMBER(Z22),ISNUMBER(Z23),ISNUMBER(Z24)),4-COUNTBLANK(AI21:AI24),\"\")","v":1},"-",{"$f":"IF(OR(ISNUMBER(Z21),ISNUMBER(Z22),ISNUMBER(Z23),ISNUMBER(Z24)),4-COUNTBLANK(AJ21:AJ24),\"\")","v":1},{"$f":"IF(G7=\"\",\"\",G7)","v":"Bormla SC (bor)"},null,{"$f":"IF(Z20=\"\",\"\",IF(Z20>AB20,Y20,IF(Z20=AB20,IF(NoDrawWithWithdraw,IF(AL20=Y20,AC20,IF(AL20=AC20,Y20,\"\")),\"\"),AC20)))","v":""},{"$f":"IF(Z20=\"\",\"\",IF(Z20=AB20,IF(NoDrawWithWithdraw,IF(AL20=Y20,\"\",IF(AL20=AC20,\"\",Y20)),Y20),\"\"))","v":"TSC Royal 78 Kaisermühlen (roy)"},{"$f":"IF(Z20=\"\",\"\",IF(Z20=AB20,IF(NoDrawWithWithdraw,IF(AL20=Y20,\"\",IF(AL20=AC20,\"\",AC20)),AC20),\"\"))","v":"Bormla SC (bor)"},{"$f":"IF(Z20=\"\",\"\",IF(Z20<AB20,Y20,IF(Z20=AB20,IF(NoDrawWithWithdraw,IF(AL20=Y20,Y20,IF(AL20=AC20,AC20,\"\")),\"\"),AC20)))","v":""},{"$f":"IF(Z20=\"\",\"\",SUM(Z21:Z24))","v":8},{"$f":"IF(Z20=\"\",\"\",SUM(AB21:AB24))","v":8},{"$f":"CONCATENATE(AE20,AH20)","v":""},{"$f":"IF(COUNTIF(Y21:Y24,WithdrawLabel)>COUNTIF(AC21:AC24,WithdrawLabel),Y20,IF(COUNTIF(AC21:AC24,WithdrawLabel)>COUNTIF(Y21:Y24,WithdrawLabel),AC20,\"\"))","v":""},null,null,null,null,null,null,null,null,null,null,null,null,null,null,null,null,null,null,null,null,null,null,null,null,null,null,null,null,null,null,null,null,null,null,null,null,null,null,null,null,null,null,null,null,null,null,null,null,null,""]
[null,null,null,null,null,null,null,null,null,null,null,null,null,null,null,null,null,null,null,null,null,null,null,null,"Stefan Sandner (roy)",2,"-",1,"Jean Carl Tabone (bor)",null,{"$f":"IF(Z21=\"\",\"\",IF(Z21>AB21,Y21,IF(Z21=AB21,\"\",AC21)))","v":"Stefan Sandner (roy)"},{"$f":"IF(Z21=\"\",\"\",IF(Z21=AB21,Y21,\"\"))","v":""},{"$f":"IF(Z21=\"\",\"\",IF(Z21=AB21,AC21,\"\"))","v":""},{"$f":"IF(Z21=\"\",\"\",IF(Z21<AB21,Y21,IF(Z21=AB21,\"\",AC21)))","v":"Jean Carl Tabone (bor)"},{"$f":"IF(Z21=\"\",\"\",IF(Z21>AB21,Y20,\"\"))","v":"TSC Royal 78 Kaisermühlen (roy)"},{"$f":"IF(Z21=\"\",\"\",IF(Z21<AB21,AC20,\"\"))","v":""},{"$f":"CONCATENATE(AE21,AH21)","v":"Stefan Sandner (roy)Jean Carl Tabone (bor)"},null,null,null,null,null,null,null,null,null,null,null,null,null,null,null,null,null,null,null,null,null,null,null,null,null,null,null,null,null,null,null,null,null,null,null,null,null,null,null,null,null,null,null,null,null,null,null,null,null,null,""]
[null,null,null,null,null,null,null,null,null,null,null,null,null,null,null,null,null,null,null,null,null,null,null,null,"Murat Tünger (roy)",3,"-",3,"George Ebejer (bor)",null,{"$f":"IF(Z22=\"\",\"\",IF(Z22>AB22,Y22,IF(Z22=AB22,\"\",AC22)))","v":""},{"$f":"IF(Z22=\"\",\"\",IF(Z22=AB22,Y22,\"\"))","v":"Murat Tünger (roy)"},{"$f":"IF(Z22=\"\",\"\",IF(Z22=AB22,AC22,\"\"))","v":"George Ebejer (bor)"},{"$f":"IF(Z22=\"\",\"\",IF(Z22<AB22,Y22,IF(Z22=AB22,\"\",AC22)))","v":""},{"$f":"IF(Z22=\"\",\"\",IF(Z22>AB22,Y20,\"\"))","v":""},{"$f":"IF(Z22=\"\",\"\",IF(Z22<AB22,AC20,\"\"))","v":""},{"$f":"CONCATENATE(AE22,AH22)","v":""},null,null,null,null,null,null,null,null,null,null,null,null,null,null,null,null,null,null,null,null,null,null,null,null,null,null,null,null,null,null,null,null,null,null,null,null,null,null,null,null,null,null,null,null,null,null,null,null,null,null,""]
[null,null,null,null,null,null,null,null,null,null,null,null,null,null,null,null,null,null,null,null,null,null,null,null,"Alexander Haas (roy)",1,"-",1,"Wolfgang Haas (bor)",null,{"$f":"IF(Z23=\"\",\"\",IF(Z23>AB23,Y23,IF(Z23=AB23,\"\",AC23)))","v":""},{"$f":"IF(Z23=\"\",\"\",IF(Z23=AB23,Y23,\"\"))","v":"Alexander Haas (roy)"},{"$f":"IF(Z23=\"\",\"\",IF(Z23=AB23,AC23,\"\"))","v":"Wolfgang Haas (bor)"},{"$f":"IF(Z23=\"\",\"\",IF(Z23<AB23,Y23,IF(Z23=AB23,\"\",AC23)))","v":""},{"$f":"IF(Z23=\"\",\"\",IF(Z23>AB23,Y20,\"\"))","v":""},{"$f":"IF(Z23=\"\",\"\",IF(Z23<AB23,AC20,\"\"))","v":""},{"$f":"CONCATENATE(AE23,AH23)","v":""},null,null,null,null,null,null,null,null,null,null,null,null,null,null,null,null,null,null,null,null,null,null,null,null,null,null,null,null,null,null,null,null,null,null,null,null,null,null,null,null,null,null,null,null,null,null,null,null,null,null,""]
[null,null,null,null,null,null,null,null,null,null,null,null,null,null,null,null,null,null,null,null,null,null,null,null,"Wolfgang Leitner (roy)",2,"-",3,"Charles Aquilina (bor)",null,{"$f":"IF(Z24=\"\",\"\",IF(Z24>AB24,Y24,IF(Z24=AB24,\"\",AC24)))","v":"Charles Aquilina (bor)"},{"$f":"IF(Z24=\"\",\"\",IF(Z24=AB24,Y24,\"\"))","v":""},{"$f":"IF(Z24=\"\",\"\",IF(Z24=AB24,AC24,\"\"))","v":""},{"$f":"IF(Z24=\"\",\"\",IF(Z24<AB24,Y24,IF(Z24=AB24,\"\",AC24)))","v":"Wolfgang Leitner (roy)"},{"$f":"IF(Z24=\"\",\"\",IF(Z24>AB24,Y20,\"\"))","v":""},{"$f":"IF(Z24=\"\",\"\",IF(Z24<AB24,AC20,\"\"))","v":"Bormla SC (bor)"},{"$f":"CONCATENATE(AE24,AH24)","v":"Charles Aquilina (bor)Wolfgang Leitner (roy)"},null,null,null,null,null,null,null,null,null,null,null,null,null,null,null,null,null,null,null,null,null,null,null,null,null,null,null,null,null,null,null,null,null,null,null,null,null,null,null,null,null,null,null,null,null,null,null,null,null,null,""]
[null,null,null,null,null,null,null,null,null,null,null,null,null,null,null,null,null,null,null,null,null,null,null,{"$f":"N_Substitute","v":"Substitute"},"Daniel Vranovitz (roy)",null,null,null,"Christian Haas (bor)",null,null,null,null,null,null,null,null,null,null,null,null,null,null,null,null,null,null,null,null,null,null,null,null,null,null,null,null,null,null,null,null,null,null,null,null,null,null,null,null,null,null,null,null,null,null,null,null,null,null,null,null,null,null,null,null,null,null,""]
[null,null,null,null,null,null,null,null,null,null,null,null,null,null,null,null,null,null,null,null,null,null,null,{"$f":"N_Substitute","v":"Substitute"},null,null,null,null,"Jason Pisani (bor)",null,null,null,null,null,null,null,null,null,null,null,null,null,null,null,null,null,null,null,null,null,null,null,null,null,null,null,null,null,null,null,null,null,null,null,null,null,null,null,null,null,null,null,null,null,null,null,null,null,null,null,null,null,null,null,null,null,null,""]
[null,null,null,null,null,null,null,null,null,null,null,null,null,null,null,null,null,null,null,null,"#G2","08:30:00",null,"Barbarian Mixed Team",{"$f":"IF(G8=\"\",\"\",G8)","v":"GCT DLF Gorizia (gor)"},{"$f":"IF(OR(ISNUMBER(Z28),ISNUMBER(Z29),ISNUMBER(Z30),ISNUMBER(Z31)),4-COUNTBLANK(AI28:AI31),\"\")","v":0},"-",{"$f":"IF(OR(ISNUMBER(Z28),ISNUMBER(Z29),ISNUMBER(Z30),ISNUMBER(Z31)),4-COUNTBLANK(AJ28:AJ31),\"\")","v":3},{"$f":"IF(G10=\"\",\"\",G10)","v":"Atlas FTC (atl)"},null,{"$f":"IF(Z27=\"\",\"\",IF(Z27>AB27,Y27,IF(Z27=AB27,IF(NoDrawWithWithdraw,IF(AL27=Y27,AC27,IF(AL27=AC27,Y27,\"\")),\"\"),AC27)))","v":"Atlas FTC (atl)"},{"$f":"IF(Z27=\"\",\"\",IF(Z27=AB27,IF(NoDrawWithWithdraw,IF(AL27=Y27,\"\",IF(AL27=AC27,\"\",Y27)),Y27),\"\"))","v":""},{"$f":"IF(Z27=\"\",\"\",IF(Z27=AB27,IF(NoDrawWithWithdraw,IF(AL27=Y27,\"\",IF(AL27=AC27,\"\",AC27)),AC27),\"\"))","v":""},{"$f":"IF(Z27=\"\",\"\",IF(Z27<AB27,Y27,IF(Z27=AB27,IF(NoDrawWithWithdraw,IF(AL27=Y27,Y27,IF(AL27=AC27,AC27,\"\")),\"\"),AC27)))","v":"GCT DLF Gorizia (gor)"},{"$f":"IF(Z27=\"\",\"\",SUM(Z28:Z31))","v":0},{"$f":"IF(Z27=\"\",\"\",SUM(AB28:AB31))","v":12},{"$f":"CONCATENATE(AE27,AH27)","v":"Atlas FTC (atl)GCT DLF Gorizia (gor)"},{"$f":"IF(COUNTIF(Y28:Y31,WithdrawLabel)>COUNTIF(AC28:AC31,WithdrawLabel),Y27,IF(COUNTIF(AC28:AC31,WithdrawLabel)>COUNTIF(Y28:Y31,WithdrawLabel),AC27,\"\"))","v":""},null,null,null,null,null,null,null,null,null,null,null,null,null,null,null,null,null,null,null,null,null,null,null,null,null,null,null,null,null,null,null,null,null,null,null,null,null,null,null,null,null,null,null,null,null,null,null,null,null,""]
[null,null,null,null,null,null,null,null,null,null,null,null,null,null,null,null,null,null,null,null,null,null,null,null,"Michael Stolzenberg ()",0,"-",4,"Stylianos Tsangouris (atl)",null,{"$f":"IF(Z28=\"\",\"\",IF(Z28>AB28,Y28,IF(Z28=AB28,\"\",AC28)))","v":"Stylianos Tsangouris (atl)"},{"$f":"IF(Z28=\"\",\"\",IF(Z28=AB28,Y28,\"\"))","v":""},{"$f":"IF(Z28=\"\",\"\",IF(Z28=AB28,AC28,\"\"))","v":""},{"$f":"IF(Z28=\"\",\"\",IF(Z28<AB28,Y28,IF(Z28=AB28,\"\",AC28)))","v":"Michael Stolzenberg ()"},{"$f":"IF(Z28=\"\",\"\",IF(Z28>AB28,Y27,\"\"))","v":""},{"$f":"IF(Z28=\"\",\"\",IF(Z28<AB28,AC27,\"\"))","v":"Atlas FTC (atl)"},{"$f":"CONCATENATE(AE28,AH28)","v":"Stylianos Tsangouris (atl)Michael Stolzenberg ()"},null,null,null,null,null,null,null,null,null,null,null,null,null,null,null,null,null,null,null,null,null,null,null,null,null,null,null,null,null,null,null,null,null,null,null,null,null,null,null,null,null,null,null,null,null,null,null,null,null,null,""]
[null,null,null,null,null,null,null,null,null,null,null,null,null,null,null,null,null,null,null,null,null,null,null,null,"Michele Cerullo (gor)",0,"-",0,"Giannis Nikolaidis (atl)",null,{"$f":"IF(Z29=\"\",\"\",IF(Z29>AB29,Y29,IF(Z29=AB29,\"\",AC29)))","v":""},{"$f":"IF(Z29=\"\",\"\",IF(Z29=AB29,Y29,\"\"))","v":"Michele Cerullo (gor)"},{"$f":"IF(Z29=\"\",\"\",IF(Z29=AB29,AC29,\"\"))","v":"Giannis Nikolaidis (atl)"},{"$f":"IF(Z29=\"\",\"\",IF(Z29<AB29,Y29,IF(Z29=AB29,\"\",AC29)))","v":""},{"$f":"IF(Z29=\"\",\"\",IF(Z29>AB29,Y27,\"\"))","v":""},{"$f":"IF(Z29=\"\",\"\",IF(Z29<AB29,AC27,\"\"))","v":""},{"$f":"CONCATENATE(AE29,AH29)","v":""},null,null,null,null,null,null,null,null,null,null,null,null,null,null,null,null,null,null,null,null,null,null,null,null,null,null,null,null,null,null,null,null,null,null,null,null,null,null,null,null,null,null,null,null,null,null,null,null,null,null,""]
[null,null,null,null,null,null,null,null,null,null,null,null,null,null,null,null,null,null,null,null,null,null,null,null,"Marco Pinausi (gor)",0,"-",3,"Joffray Laurent (atl)",null,{"$f":"IF(Z30=\"\",\"\",IF(Z30>AB30,Y30,IF(Z30=AB30,\"\",AC30)))","v":"Joffray Laurent (atl)"},{"$f":"IF(Z30=\"\",\"\",IF(Z30=AB30,Y30,\"\"))","v":""},{"$f":"IF(Z30=\"\",\"\",IF(Z30=AB30,AC30,\"\"))","v":""},{"$f":"IF(Z30=\"\",\"\",IF(Z30<AB30,Y30,IF(Z30=AB30,\"\",AC30)))","v":"Marco Pinausi (gor)"},{"$f":"IF(Z30=\"\",\"\",IF(Z30>AB30,Y27,\"\"))","v":""},{"$f":"IF(Z30=\"\",\"\",IF(Z30<AB30,AC27,\"\"))","v":"Atlas FTC (atl)"},{"$f":"CONCATENATE(AE30,AH30)","v":"Joffray Laurent (atl)Marco Pinausi (gor)"},null,null,null,null,null,null,null,null,null,null,null,null,null,null,null,null,null,null,null,null,null,null,null,null,null,null,null,null,null,null,null,null,null,null,null,null,null,null,null,null,null,null,null,null,null,null,null,null,null,null,""]
[null,null,null,null,null,null,null,null,null,null,null,null,null,null,null,null,null,null,null,null,null,null,null,null,"To be defined",0,"-",5,"Athanasios Chaliotis (atl)",null,{"$f":"IF(Z31=\"\",\"\",IF(Z31>AB31,Y31,IF(Z31=AB31,\"\",AC31)))","v":"Athanasios Chaliotis (atl)"},{"$f":"IF(Z31=\"\",\"\",IF(Z31=AB31,Y31,\"\"))","v":""},{"$f":"IF(Z31=\"\",\"\",IF(Z31=AB31,AC31,\"\"))","v":""},{"$f":"IF(Z31=\"\",\"\",IF(Z31<AB31,Y31,IF(Z31=AB31,\"\",AC31)))","v":"To be defined"},{"$f":"IF(Z31=\"\",\"\",IF(Z31>AB31,Y27,\"\"))","v":""},{"$f":"IF(Z31=\"\",\"\",IF(Z31<AB31,AC27,\"\"))","v":"Atlas FTC (atl)"},{"$f":"CONCATENATE(AE31,AH31)","v":"Athanasios Chaliotis (atl)To be defined"},null,null,null,null,null,null,null,null,null,null,null,null,null,null,null,null,null,null,null,null,null,null,null,null,null,null,null,null,null,null,null,null,null,null,null,null,null,null,null,null,null,null,null,null,null,null,null,null,null,null,""]
[null,null,null,null,null,null,null,null,null,null,null,null,null,null,null,null,null,null,null,null,null,null,null,{"$f":"N_Substitute","v":"Substitute"},null,null,null,null,null,null,null,null,null,null,null,null,null,null,null,null,null,null,null,null,null,null,null,null,null,null,null,null,null,null,null,null,null,null,null,null,null,null,null,null,null,null,null,null,null,null,null,null,null,null,null,null,null,null,null,null,null,null,null,null,null,null,null,""]
[null,null,null,null,null,null,null,null,null,null,null,null,null,null,null,null,null,null,null,null,null,null,null,{"$f":"N_Substitute","v":"Substitute"},null,null,null,null,null,null,null,null,null,null,null,null,null,null,null,null,null,null,null,null,null,null,null,null,null,null,null,null,null,null,null,null,null,null,null,null,null,null,null,null,null,null,null,null,null,null,null,null,null,null,null,null,null,null,null,null,null,null,null,null,null,null,null,""]
[null,null,null,null,null,null,null,null,null,null,null,null,null,null,null,null,null,null,null,null,"#G2","08:30:00",null,"ST Stembert (ste)",{"$f":"IF(G9=\"\",\"\",G9)","v":"TSC Phoenix (wie)"},{"$f":"IF(OR(ISNUMBER(Z35),ISNUMBER(Z36),ISNUMBER(Z37),ISNUMBER(Z38)),4-COUNTBLANK(AI35:AI38),\"\")","v":1},"-",{"$f":"IF(OR(ISNUMBER(Z35),ISNUMBER(Z36),ISNUMBER(Z37),ISNUMBER(Z38)),4-COUNTBLANK(AJ35:AJ38),\"\")","v":3},{"$f":"IF(G11=\"\",\"\",G11)","v":"TSC Royal 78 Kaisermühlen (roy)"},null,{"$f":"IF(Z34=\"\",\"\",IF(Z34>AB34,Y34,IF(Z34=AB34,IF(NoDrawWithWithdraw,IF(AL34=Y34,AC34,IF(AL34=AC34,Y34,\"\")),\"\"),AC34)))","v":"TSC Royal 78 Kaisermühlen (roy)"},{"$f":"IF(Z34=\"\",\"\",IF(Z34=AB34,IF(NoDrawWithWithdraw,IF(AL34=Y34,\"\",IF(AL34=AC34,\"\",Y34)),Y34),\"\"))","v":""},{"$f":"IF(Z34=\"\",\"\",IF(Z34=AB34,IF(NoDrawWithWithdraw,IF(AL34=Y34,\"\",IF(AL34=AC34,\"\",AC34)),AC34),\"\"))","v":""},{"$f":"IF(Z34=\"\",\"\",IF(Z34<AB34,Y34,IF(Z34=AB34,IF(NoDrawWithWithdraw,IF(AL34=Y34,Y34,IF(AL34=AC34,AC34,\"\")),\"\"),AC34)))","v":"TSC Phoenix (wie)"},{"$f":"IF(Z34=\"\",\"\",SUM(Z35:Z38))","v":5},{"$f":"IF(Z34=\"\",\"\",SUM(AB35:AB38))","v":12},{"$f":"CONCATENATE(AE34,AH34)","v":"TSC Royal 78 Kaisermühlen (roy)TSC Phoenix (wie)"},{"$f":"IF(COUNTIF(Y35:Y38,WithdrawLabel)>COUNTIF(AC35:AC38,WithdrawLabel),Y34,IF(COUNTIF(AC35:AC38,WithdrawLabel)>COUNTIF(Y35:Y38,WithdrawLabel),AC34,\"\"))","v":""},null,null,null,null,null,null,null,null,null,null,null,null,null,null,null,null,null,null,null,null,null,null,null,null,null,null,null,null,null,null,null,null,null,null,null,null,null,null,null,null,null,null,null,null,null,null,null,null,null,""]
[null,null,null,null,null,null,null,null,null,null,null,null,null,null,null,null,null,null,null,null,null,null,null,null,"Christian Blümel (wie)",4,"-",2,"Alexander Haas (roy)",null,{"$f":"IF(Z35=\"\",\"\",IF(Z35>AB35,Y35,IF(Z35=AB35,\"\",AC35)))","v":"Christian Blümel (wie)"},{"$f":"IF(Z35=\"\",\"\",IF(Z35=AB35,Y35,\"\"))","v":""},{"$f":"IF(Z35=\"\",\"\",IF(Z35=AB35,AC35,\"\"))","v":""},{"$f":"IF(Z35=\"\",\"\",IF(Z35<AB35,Y35,IF(Z35=AB35,\"\",AC35)))","v":"Alexander Haas (roy)"},{"$f":"IF(Z35=\"\",\"\",IF(Z35>AB35,Y34,\"\"))","v":"TSC Phoenix (wie)"},{"$f":"IF(Z35=\"\",\"\",IF(Z35<AB35,AC34,\"\"))","v":""},{"$f":"CONCATENATE(AE35,AH35)","v":"Christian Blümel (wie)Alexander Haas (roy)"},null,null,null,null,null,null,null,null,null,null,null,null,null,null,null,null,null,null,null,null,null,null,null,null,null,null,null,null,null,null,null,null,null,null,null,null,null,null,null,null,null,null,null,null,null,null,null,null,null,null,""]
[null,null,null,null,null,null,null,null,null,null,null,null,null,null,null,null,null,null,null,null,null,null,null,null,"Manfred Pawlica (wie)",0,"-",4,"Daniel Vranovitz (roy)",null,{"$f":"IF(Z36=\"\",\"\",IF(Z36>AB36,Y36,IF(Z36=AB36,\"\",AC36)))","v":"Daniel Vranovitz (roy)"},{"$f":"IF(Z36=\"\",\"\",IF(Z36=AB36,Y36,\"\"))","v":""},{"$f":"IF(Z36=\"\",\"\",IF(Z36=AB36,AC36,\"\"))","v":""},{"$f":"IF(Z36=\"\",\"\",IF(Z36<AB36,Y36,IF(Z36=AB36,\"\",AC36)))","v":"Manfred Pawlica (wie)"},{"$f":"IF(Z36=\"\",\"\",IF(Z36>AB36,Y34,\"\"))","v":""},{"$f":"IF(Z36=\"\",\"\",IF(Z36<AB36,AC34,\"\"))","v":"TSC Royal 78 Kaisermühlen (roy)"},{"$f":"CONCATENATE(AE36,AH36)","v":"Daniel Vranovitz (roy)Manfred Pawlica (wie)"},null,null,null,null,null,null,null,null,null,null,null,null,null,null,null,null,null,null,null,null,null,null,null,null,null,null,null,null,null,null,null,null,null,null,null,null,null,null,null,null,null,null,null,null,null,null,null,null,null,null,""]
[null,null,null,null,null,null,null,null,null,null,null,null,null,null,null,null,null,null,null,null,null,null,null,null,"Marios Strommer (wie)",1,"-",2,"Murat Tünger (roy)",null,{"$f":"IF(Z37=\"\",\"\",IF(Z37>AB37,Y37,IF(Z37=AB37,\"\",AC37)))","v":"Murat Tünger (roy)"},{"$f":"IF(Z37=\"\",\"\",IF(Z37=AB37,Y37,\"\"))","v":""},{"$f":"IF(Z37=\"\",\"\",IF(Z37=AB37,AC37,\"\"))","v":""},{"$f":"IF(Z37=\"\",\"\",IF(Z37<AB37,Y37,IF(Z37=AB37,\"\",AC37)))","v":"Marios Strommer (wie)"},{"$f":"IF(Z37=\"\",\"\",IF(Z37>AB37,Y34,\"\"))","v":""},{"$f":"IF(Z37=\"\",\"\",IF(Z37<AB37,AC34,\"\"))","v":"TSC Royal 78 Kaisermühlen (roy)"},{"$f":"CONCATENATE(AE37,AH37)","v":"Murat Tünger (roy)Marios Strommer (wie)"},null,null,null,null,null,null,null,null,null,null,null,null,null,null,null,null,null,null,null,null,null,null,null,null,null,null,null,null,null,null,null,null,null,null,null,null,null,null,null,null,null,null,null,null,null,null,null,null,null,null,""]
[null,null,null,null,null,null,null,null,null,null,null,null,null,null,null,null,null,null,null,null,null,null,null,null,"Erich Hinkelmann (wie)",0,"-",4,"Wolfgang Leitner (roy)",null,{"$f":"IF(Z38=\"\",\"\",IF(Z38>AB38,Y38,IF(Z38=AB38,\"\",AC38)))","v":"Wolfgang Leitner (roy)"},{"$f":"IF(Z38=\"\",\"\",IF(Z38=AB38,Y38,\"\"))","v":""},{"$f":"IF(Z38=\"\",\"\",IF(Z38=AB38,AC38,\"\"))","v":""},{"$f":"IF(Z38=\"\",\"\",IF(Z38<AB38,Y38,IF(Z38=AB38,\"\",AC38)))","v":"Erich Hinkelmann (wie)"},{"$f":"IF(Z38=\"\",\"\",IF(Z38>AB38,Y34,\"\"))","v":""},{"$f":"IF(Z38=\"\",\"\",IF(Z38<AB38,AC34,\"\"))","v":"TSC Royal 78 Kaisermühlen (roy)"},{"$f":"CONCATENATE(AE38,AH38)","v":"Wolfgang Leitner (roy)Erich Hinkelmann (wie)"},null,null,null,null,null,null,null,null,null,null,null,null,null,null,null,null,null,null,null,null,null,null,null,null,null,null,null,null,null,null,null,null,null,null,null,null,null,null,null,null,null,null,null,null,null,null,null,null,null,null,""]
[null,null,null,null,null,null,null,null,null,null,null,null,null,null,null,null,null,null,null,null,null,null,null,{"$f":"N_Substitute","v":"Substitute"},null,null,null,null,"Stefan Sandner (roy)",null,null,null,null,null,null,null,null,null,null,null,null,null,null,null,null,null,null,null,null,null,null,null,null,null,null,null,null,null,null,null,null,null,null,null,null,null,null,null,null,null,null,null,null,null,null,null,null,null,null,null,null,null,null,null,null,null,null,""]
[null,null,null,null,null,null,null,null,null,null,null,null,null,null,null,null,null,null,null,null,null,null,null,{"$f":"N_Substitute","v":"Substitute"},null,null,null,null,null,null,null,null,null,null,null,null,null,null,null,null,null,null,null,null,null,null,null,null,null,null,null,null,null,null,null,null,null,null,null,null,null,null,null,null,null,null,null,null,null,null,null,null,null,null,null,null,null,null,null,null,null,null,null,null,null,null,null,""]
[null,null,null,null,null,null,null,null,null,null,null,null,null,null,null,null,null,null,null,null,"#G3","09:20:00",null,"TSC Phoenix 2 (wie)",{"$f":"IF(G10=\"\",\"\",G10)","v":"Atlas FTC (atl)"},{"$f":"IF(OR(ISNUMBER(Z42),ISNUMBER(Z43),ISNUMBER(Z44),ISNUMBER(Z45)),4-COUNTBLANK(AI42:AI45),\"\")","v":0},"-",{"$f":"IF(OR(ISNUMBER(Z42),ISNUMBER(Z43),ISNUMBER(Z44),ISNUMBER(Z45)),4-COUNTBLANK(AJ42:AJ45),\"\")","v":2},{"$f":"IF(G7=\"\",\"\",G7)","v":"Bormla SC (bor)"},null,{"$f":"IF(Z41=\"\",\"\",IF(Z41>AB41,Y41,IF(Z41=AB41,IF(NoDrawWithWithdraw,IF(AL41=Y41,AC41,IF(AL41=AC41,Y41,\"\")),\"\"),AC41)))","v":"Bormla SC (bor)"},{"$f":"IF(Z41=\"\",\"\",IF(Z41=AB41,IF(NoDrawWithWithdraw,IF(AL41=Y41,\"\",IF(AL41=AC41,\"\",Y41)),Y41),\"\"))","v":""},{"$f":"IF(Z41=\"\",\"\",IF(Z41=AB41,IF(NoDrawWithWithdraw,IF(AL41=Y41,\"\",IF(AL41=AC41,\"\",AC41)),AC41),\"\"))","v":""},{"$f":"IF(Z41=\"\",\"\",IF(Z41<AB41,Y41,IF(Z41=AB41,IF(NoDrawWithWithdraw,IF(AL41=Y41,Y41,IF(AL41=AC41,AC41,\"\")),\"\"),AC41)))","v":"Atlas FTC (atl)"},{"$f":"IF(Z41=\"\",\"\",SUM(Z42:Z45))","v":4},{"$f":"IF(Z41=\"\",\"\",SUM(AB42:AB45))","v":9},{"$f":"CONCATENATE(AE41,AH41)","v":"Bormla SC (bor)Atlas FTC (atl)"},{"$f":"IF(COUNTIF(Y42:Y45,WithdrawLabel)>COUNTIF(AC42:AC45,WithdrawLabel),Y41,IF(COUNTIF(AC42:AC45,WithdrawLabel)>COUNTIF(Y42:Y45,WithdrawLabel),AC41,\"\"))","v":""},null,null,null,null,null,null,null,null,null,null,null,null,null,null,null,null,null,null,null,null,null,null,null,null,null,null,null,null,null,null,null,null,null,null,null,null,null,null,null,null,null,null,null,null,null,null,null,null,null,""]
[null,null,null,null,null,null,null,null,null,null,null,null,null,null,null,null,null,null,null,null,null,null,null,null,"Joffray Laurent (atl)",2,"-",2,"George Ebejer (bor)",null,{"$f":"IF(Z42=\"\",\"\",IF(Z42>AB42,Y42,IF(Z42=AB42,\"\",AC42)))","v":""},{"$f":"IF(Z42=\"\",\"\",IF(Z42=AB42,Y42,\"\"))","v":"Joffray Laurent (atl)"},{"$f":"IF(Z42=\"\",\"\",IF(Z42=AB42,AC42,\"\"))","v":"George Ebejer (bor)"},{"$f":"IF(Z42=\"\",\"\",IF(Z42<AB42,Y42,IF(Z42=AB42,\"\",AC42)))","v":""},{"$f":"IF(Z42=\"\",\"\",IF(Z42>AB42,Y41,\"\"))","v":""},{"$f":"IF(Z42=\"\",\"\",IF(Z42<AB42,AC41,\"\"))","v":""},{"$f":"CONCATENATE(AE42,AH42)","v":""},null,null,null,null,null,null,null,null,null,null,null,null,null,null,null,null,null,null,null,null,null,null,null,null,null,null,null,null,null,null,null,null,null,null,null,null,null,null,null,null,null,null,null,null,null,null,null,null,null,null,""]
[null,null,null,null,null,null,null,null,null,null,null,null,null,null,null,null,null,null,null,null,null,null,null,null,"Giannis Nikolaidis (atl)",0,"-",4,"Jean Carl Tabone (bor)",null,{"$f":"IF(Z43=\"\",\"\",IF(Z43>AB43,Y43,IF(Z43=AB43,\"\",AC43)))","v":"Jean Carl Tabone (bor)"},{"$f":"IF(Z43=\"\",\"\",IF(Z43=AB43,Y43,\"\"))","v":""},{"$f":"IF(Z43=\"\",\"\",IF(Z43=AB43,AC43,\"\"))","v":""},{"$f":"IF(Z43=\"\",\"\",IF(Z43<AB43,Y43,IF(Z43=AB43,\"\",AC43)))","v":"Giannis Nikolaidis (atl)"},{"$f":"IF(Z43=\"\",\"\",IF(Z43>AB43,Y41,\"\"))","v":""},{"$f":"IF(Z43=\"\",\"\",IF(Z43<AB43,AC41,\"\"))","v":"Bormla SC (bor)"},{"$f":"CONCATENATE(AE43,AH43)","v":"Jean Carl Tabone (bor)Giannis Nikolaidis (atl)"},null,null,null,null,null,null,null,null,null,null,null,null,null,null,null,null,null,null,null,null,null,null,null,null,null,null,null,null,null,null,null,null,null,null,null,null,null,null,null,null,null,null,null,null,null,null,null,null,null,null,""]
[null,null,null,null,null,null,null,null,null,null,null,null,null,null,null,null,null,null,null,null,null,null,null,null,"Stylianos Tsangouris (atl)",2,"-",2,"Charles Aquilina (bor)",null,{"$f":"IF(Z44=\"\",\"\",IF(Z44>AB44,Y44,IF(Z44=AB44,\"\",AC44)))","v":""},{"$f":"IF(Z44=\"\",\"\",IF(Z44=AB44,Y44,\"\"))","v":"Stylianos Tsangouris (atl)"},{"$f":"IF(Z44=\"\",\"\",IF(Z44=AB44,AC44,\"\"))","v":"Charles Aquilina (bor)"},{"$f":"IF(Z44=\"\",\"\",IF(Z44<AB44,Y44,IF(Z44=AB44,\"\",AC44)))","v":""},{"$f":"IF(Z44=\"\",\"\",IF(Z44>AB44,Y41,\"\"))","v":""},{"$f":"IF(Z44=\"\",\"\",IF(Z44<AB44,AC41,\"\"))","v":""},{"$f":"CONCATENATE(AE44,AH44)","v":""},null,null,null,null,null,null,null,null,null,null,null,null,null,null,null,null,null,null,null,null,null,null,null,null,null,null,null,null,null,null,null,null,null,null,null,null,null,null,null,null,null,null,null,null,null,null,null,null,null,null,""]
[null,null,null,null,null,null,null,null,null,null,null,null,null,null,null,null,null,null,null,null,null,null,null,null,"Lazaros Papakonstantinou (atl)",0,"-",1,"Jason Pisani (bor)",null,{"$f":"IF(Z45=\"\",\"\",IF(Z45>AB45,Y45,IF(Z45=AB45,\"\",AC45)))","v":"Jason Pisani (bor)"},{"$f":"IF(Z45=\"\",\"\",IF(Z45=AB45,Y45,\"\"))","v":""},{"$f":"IF(Z45=\"\",\"\",IF(Z45=AB45,AC45,\"\"))","v":""},{"$f":"IF(Z45=\"\",\"\",IF(Z45<AB45,Y45,IF(Z45=AB45,\"\",AC45)))","v":"Lazaros Papakonstantinou (atl)"},{"$f":"IF(Z45=\"\",\"\",IF(Z45>AB45,Y41,\"\"))","v":""},{"$f":"IF(Z45=\"\",\"\",IF(Z45<AB45,AC41,\"\"))","v":"Bormla SC (bor)"},{"$f":"CONCATENATE(AE45,AH45)","v":"Jason Pisani (bor)Lazaros Papakonstantinou (atl)"},null,null,null,null,null,null,null,null,null,null,null,null,null,null,null,null,null,null,null,null,null,null,null,null,null,null,null,null,null,null,null,null,null,null,null,null,null,null,null,null,null,null,null,null,null,null,null,null,null,null,""]
[null,null,null,null,null,null,null,null,null,null,null,null,null,null,null,null,null,null,null,null,null,null,null,{"$f":"N_Substitute","v":"Substitute"},"Athanasios Chaliotis (atl)",null,null,null,"Christian Haas (bor)",null,null,null,null,null,null,null,null,null,null,null,null,null,null,null,null,null,null,null,null,null,null,null,null,null,null,null,null,null,null,null,null,null,null,null,null,null,null,null,null,null,null,null,null,null,null,null,null,null,null,null,null,null,null,null,null,null,null,""]
[null,null,null,null,null,null,null,null,null,null,null,null,null,null,null,null,null,null,null,null,null,null,null,{"$f":"N_Substitute","v":"Substitute"},null,null,null,null,null,null,null,null,null,null,null,null,null,null,null,null,null,null,null,null,null,null,null,null,null,null,null,null,null,null,null,null,null,null,null,null,null,null,null,null,null,null,null,null,null,null,null,null,null,null,null,null,null,null,null,null,null,null,null,null,null,null,null,""]
[null,null,null,null,null,null,null,null,null,null,null,null,null,null,null,null,null,null,null,null,"#G3","10:10:00",null,"Barbarian Mixed Team",{"$f":"IF(G11=\"\",\"\",G11)","v":"TSC Royal 78 Kaisermühlen (roy)"},{"$f":"IF(OR(ISNUMBER(Z49),ISNUMBER(Z50),ISNUMBER(Z51),ISNUMBER(Z52)),4-COUNTBLANK(AI49:AI52),\"\")","v":3},"-",{"$f":"IF(OR(ISNUMBER(Z49),ISNUMBER(Z50),ISNUMBER(Z51),ISNUMBER(Z52)),4-COUNTBLANK(AJ49:AJ52),\"\")","v":0},{"$f":"IF(G8=\"\",\"\",G8)","v":"GCT DLF Gorizia (gor)"},null,{"$f":"IF(Z48=\"\",\"\",IF(Z48>AB48,Y48,IF(Z48=AB48,IF(NoDrawWithWithdraw,IF(AL48=Y48,AC48,IF(AL48=AC48,Y48,\"\")),\"\"),AC48)))","v":"TSC Royal 78 Kaisermühlen (roy)"},{"$f":"IF(Z48=\"\",\"\",IF(Z48=AB48,IF(NoDrawWithWithdraw,IF(AL48=Y48,\"\",IF(AL48=AC48,\"\",Y48)),Y48),\"\"))","v":""},{"$f":"IF(Z48=\"\",\"\",IF(Z48=AB48,IF(NoDrawWithWithdraw,IF(AL48=Y48,\"\",IF(AL48=AC48,\"\",AC48)),AC48),\"\"))","v":""},{"$f":"IF(Z48=\"\",\"\",IF(Z48<AB48,Y48,IF(Z48=AB48,IF(NoDrawWithWithdraw,IF(AL48=Y48,Y48,IF(AL48=AC48,AC48,\"\")),\"\"),AC48)))","v":"GCT DLF Gorizia (gor)"},{"$f":"IF(Z48=\"\",\"\",SUM(Z49:Z52))","v":19},{"$f":"IF(Z48=\"\",\"\",SUM(AB49:AB52))","v":4},{"$f":"CONCATENATE(AE48,AH48)","v":"TSC Royal 78 Kaisermühlen (roy)GCT DLF Gorizia (gor)"},{"$f":"IF(COUNTIF(Y49:Y52,WithdrawLabel)>COUNTIF(AC49:AC52,WithdrawLabel),Y48,IF(COUNTIF(AC49:AC52,WithdrawLabel)>COUNTIF(Y49:Y52,WithdrawLabel),AC48,\"\"))","v":""},null,null,null,null,null,null,null,null,null,null,null,null,null,null,null,null,null,null,null,null,null,null,null,null,null,null,null,null,null,null,null,null,null,null,null,null,null,null,null,null,null,null,null,null,null,null,null,null,null,""]
[null,null,null,null,null,null,null,null,null,null,null,null,null,null,null,null,null,null,null,null,null,null,null,null,"Stefan Sandner (roy)",5,"-",1,"Michele Cerullo (gor)",null,{"$f":"IF(Z49=\"\",\"\",IF(Z49>AB49,Y49,IF(Z49=AB49,\"\",AC49)))","v":"Stefan Sandner (roy)"},{"$f":"IF(Z49=\"\",\"\",IF(Z49=AB49,Y49,\"\"))","v":""},{"$f":"IF(Z49=\"\",\"\",IF(Z49=AB49,AC49,\"\"))","v":""},{"$f":"IF(Z49=\"\",\"\",IF(Z49<AB49,Y49,IF(Z49=AB49,\"\",AC49)))","v":"Michele Cerullo (gor)"},{"$f":"IF(Z49=\"\",\"\",IF(Z49>AB49,Y48,\"\"))","v":"TSC Royal 78 Kaisermühlen (roy)"},{"$f":"IF(Z49=\"\",\"\",IF(Z49<AB49,AC48,\"\"))","v":""},{"$f":"CONCATENATE(AE49,AH49)","v":"Stefan Sandner (roy)Michele Cerullo (gor)"},null,null,null,null,null,null,null,null,null,null,null,null,null,null,null,null,null,null,null,null,null,null,null,null,null,null,null,null,null,null,null,null,null,null,null,null,null,null,null,null,null,null,null,null,null,null,null,null,null,null,""]
[null,null,null,null,null,null,null,null,null,null,null,null,null,null,null,null,null,null,null,null,null,null,null,null,"Alexander Haas (roy)",7,"-",1,"Marco Pinausi (gor)",null,{"$f":"IF(Z50=\"\",\"\",IF(Z50>AB50,Y50,IF(Z50=AB50,\"\",AC50)))","v":"Alexander Haas (roy)"},{"$f":"IF(Z50=\"\",\"\",IF(Z50=AB50,Y50,\"\"))","v":""},{"$f":"IF(Z50=\"\",\"\",IF(Z50=AB50,AC50,\"\"))","v":""},{"$f":"IF(Z50=\"\",\"\",IF(Z50<AB50,Y50,IF(Z50=AB50,\"\",AC50)))","v":"Marco Pinausi (gor)"},{"$f":"IF(Z50=\"\",\"\",IF(Z50>AB50,Y48,\"\"))","v":"TSC Royal 78 Kaisermühlen (roy)"},{"$f":"IF(Z50=\"\",\"\",IF(Z50<AB50,AC48,\"\"))","v":""},{"$f":"CONCATENATE(AE50,AH50)","v":"Alexander Haas (roy)Marco Pinausi (gor)"},null,null,null,null,null,null,null,null,null,null,null,null,null,null,null,null,null,null,null,null,null,null,null,null,null,null,null,null,null,null,null,null,null,null,null,null,null,null,null,null,null,null,null,null,null,null,null,null,null,null,""]
[null,null,null,null,null,null,null,null,null,null,null,null,null,null,null,null,null,null,null,null,null,null,null,null,"Daniel Vranovitz (roy)",2,"-",2,"Michael Stolzenberg ()",null,{"$f":"IF(Z51=\"\",\"\",IF(Z51>AB51,Y51,IF(Z51=AB51,\"\",AC51)))","v":""},{"$f":"IF(Z51=\"\",\"\",IF(Z51=AB51,Y51,\"\"))","v":"Daniel Vranovitz (roy)"},{"$f":"IF(Z51=\"\",\"\",IF(Z51=AB51,AC51,\"\"))","v":"Michael Stolzenberg ()"},{"$f":"IF(Z51=\"\",\"\",IF(Z51<AB51,Y51,IF(Z51=AB51,\"\",AC51)))","v":""},{"$f":"IF(Z51=\"\",\"\",IF(Z51>AB51,Y48,\"\"))","v":""},{"$f":"IF(Z51=\"\",\"\",IF(Z51<AB51,AC48,\"\"))","v":""},{"$f":"CONCATENATE(AE51,AH51)","v":""},null,null,null,null,null,null,null,null,null,null,null,null,null,null,null,null,null,null,null,null,null,null,null,null,null,null,null,null,null,null,null,null,null,null,null,null,null,null,null,null,null,null,null,null,null,null,null,null,null,null,""]
[null,null,null,null,null,null,null,null,null,null,null,null,null,null,null,null,null,null,null,null,null,null,null,null,"Wolfgang Leitner (roy)",5,"-",0,"To be defined",null,{"$f":"IF(Z52=\"\",\"\",IF(Z52>AB52,Y52,IF(Z52=AB52,\"\",AC52)))","v":"Wolfgang Leitner (roy)"},{"$f":"IF(Z52=\"\",\"\",IF(Z52=AB52,Y52,\"\"))","v":""},{"$f":"IF(Z52=\"\",\"\",IF(Z52=AB52,AC52,\"\"))","v":""},{"$f":"IF(Z52=\"\",\"\",IF(Z52<AB52,Y52,IF(Z52=AB52,\"\",AC52)))","v":"To be defined"},{"$f":"IF(Z52=\"\",\"\",IF(Z52>AB52,Y48,\"\"))","v":"TSC Royal 78 Kaisermühlen (roy)"},{"$f":"IF(Z52=\"\",\"\",IF(Z52<AB52,AC48,\"\"))","v":""},{"$f":"CONCATENATE(AE52,AH52)","v":"Wolfgang Leitner (roy)To be defined"},null,null,null,null,null,null,null,null,null,null,null,null,null,null,null,null,null,null,null,null,null,null,null,null,null,null,null,null,null,null,null,null,null,null,null,null,null,null,null,null,null,null,null,null,null,null,null,null,null,null,""]
[null,null,null,null,null,null,null,null,null,null,null,null,null,null,null,null,null,null,null,null,null,null,null,{"$f":"N_Substitute","v":"Substitute"},null,null,null,null,null,null,null,null,null,null,null,null,null,null,null,null,null,null,null,null,null,null,null,null,null,null,null,null,null,null,null,null,null,null,null,null,null,null,null,null,null,null,null,null,null,null,null,null,null,null,null,null,null,null,null,null,null,null,null,null,null,null,null,""]
[null,null,null,null,null,null,null,null,null,null,null,null,null,null,null,null,null,null,null,null,null,null,null,{"$f":"N_Substitute","v":"Substitute"},null,null,null,null,null,null,null,null,null,null,null,null,null,null,null,null,null,null,null,null,null,null,null,null,null,null,null,null,null,null,null,null,null,null,null,null,null,null,null,null,null,null,null,null,null,null,null,null,null,null,null,null,null,null,null,null,null,null,null,null,null,null,null,""]
[null,null,null,null,null,null,null,null,null,null,null,null,null,null,null,null,null,null,null,null,"#G4","11:00:00",null,"TSC Royal 78 Kaisermühlen 2 (roy)",{"$f":"IF(G7=\"\",\"\",G7)","v":"Bormla SC (bor)"},{"$f":"IF(OR(ISNUMBER(Z56),ISNUMBER(Z57),ISNUMBER(Z58),ISNUMBER(Z59)),4-COUNTBLANK(AI56:AI59),\"\")","v":1},"-",{"$f":"IF(OR(ISNUMBER(Z56),ISNUMBER(Z57),ISNUMBER(Z58),ISNUMBER(Z59)),4-COUNTBLANK(AJ56:AJ59),\"\")","v":1},{"$f":"IF(G9=\"\",\"\",G9)","v":"TSC Phoenix (wie)"},null,{"$f":"IF(Z55=\"\",\"\",IF(Z55>AB55,Y55,IF(Z55=AB55,IF(NoDrawWithWithdraw,IF(AL55=Y55,AC55,IF(AL55=AC55,Y55,\"\")),\"\"),AC55)))","v":""},{"$f":"IF(Z55=\"\",\"\",IF(Z55=AB55,IF(NoDrawWithWithdraw,IF(AL55=Y55,\"\",IF(AL55=AC55,\"\",Y55)),Y55),\"\"))","v":"Bormla SC (bor)"},{"$f":"IF(Z55=\"\",\"\",IF(Z55=AB55,IF(NoDrawWithWithdraw,IF(AL55=Y55,\"\",IF(AL55=AC55,\"\",AC55)),AC55),\"\"))","v":"TSC Phoenix (wie)"},{"$f":"IF(Z55=\"\",\"\",IF(Z55<AB55,Y55,IF(Z55=AB55,IF(NoDrawWithWithdraw,IF(AL55=Y55,Y55,IF(AL55=AC55,AC55,\"\")),\"\"),AC55)))","v":""},{"$f":"IF(Z55=\"\",\"\",SUM(Z56:Z59))","v":8},{"$f":"IF(Z55=\"\",\"\",SUM(AB56:AB59))","v":7},{"$f":"CONCATENATE(AE55,AH55)","v":""},{"$f":"IF(COUNTIF(Y56:Y59,WithdrawLabel)>COUNTIF(AC56:AC59,WithdrawLabel),Y55,IF(COUNTIF(AC56:AC59,WithdrawLabel)>COUNTIF(Y56:Y59,WithdrawLabel),AC55,\"\"))","v":""},null,null,null,null,null,null,null,null,null,null,null,null,null,null,null,null,null,null,null,null,null,null,null,null,null,null,null,null,null,null,null,null,null,null,null,null,null,null,null,null,null,null,null,null,null,null,null,null,null,""]
[null,null,null,null,null,null,null,null,null,null,null,null,null,null,null,null,null,null,null,null,null,null,null,null,"George Ebejer (bor)",1,"-",2,"Christian Blümel (wie)",null,{"$f":"IF(Z56=\"\",\"\",IF(Z56>AB56,Y56,IF(Z56=AB56,\"\",AC56)))","v":"Christian Blümel (wie)"},{"$f":"IF(Z56=\"\",\"\",IF(Z56=AB56,Y56,\"\"))","v":""},{"$f":"IF(Z56=\"\",\"\",IF(Z56=AB56,AC56,\"\"))","v":""},{"$f":"IF(Z56=\"\",\"\",IF(Z56<AB56,Y56,IF(Z56=AB56,\"\",AC56)))","v":"George Ebejer (bor)"},{"$f":"IF(Z56=\"\",\"\",IF(Z56>AB56,Y55,\"\"))","v":""},{"$f":"IF(Z56=\"\",\"\",IF(Z56<AB56,AC55,\"\"))","v":"TSC Phoenix (wie)"},{"$f":"CONCATENATE(AE56,AH56)","v":"Christian Blümel (wie)George Ebejer (bor)"},null,null,null,null,null,null,null,null,null,null,null,null,null,null,null,null,null,null,null,null,null,null,null,null,null,null,null,null,null,null,null,null,null,null,null,null,null,null,null,null,null,null,null,null,null,null,null,null,null,null,""]
[null,null,null,null,null,null,null,null,null,null,null,null,null,null,null,null,null,null,null,null,null,null,null,null,"Christian Haas (bor)",3,"-",3,"Marios Strommer (wie)",null,{"$f":"IF(Z57=\"\",\"\",IF(Z57>AB57,Y57,IF(Z57=AB57,\"\",AC57)))","v":""},{"$f":"IF(Z57=\"\",\"\",IF(Z57=AB57,Y57,\"\"))","v":"Christian Haas (bor)"},{"$f":"IF(Z57=\"\",\"\",IF(Z57=AB57,AC57,\"\"))","v":"Marios Strommer (wie)"},{"$f":"IF(Z57=\"\",\"\",IF(Z57<AB57,Y57,IF(Z57=AB57,\"\",AC57)))","v":""},{"$f":"IF(Z57=\"\",\"\",IF(Z57>AB57,Y55,\"\"))","v":""},{"$f":"IF(Z57=\"\",\"\",IF(Z57<AB57,AC55,\"\"))","v":""},{"$f":"CONCATENATE(AE57,AH57)","v":""},null,null,null,null,null,null,null,null,null,null,null,null,null,null,null,null,null,null,null,null,null,null,null,null,null,null,null,null,null,null,null,null,null,null,null,null,null,null,null,null,null,null,null,null,null,null,null,null,null,null,""]
[null,null,null,null,null,null,null,null,null,null,null,null,null,null,null,null,null,null,null,null,null,null,null,null,"Jason Pisani (bor)",3,"-",1,"Manfred Pawlica (wie)",null,{"$f":"IF(Z58=\"\",\"\",IF(Z58>AB58,Y58,IF(Z58=AB58,\"\",AC58)))","v":"Jason Pisani (bor)"},{"$f":"IF(Z58=\"\",\"\",IF(Z58=AB58,Y58,\"\"))","v":""},{"$f":"IF(Z58=\"\",\"\",IF(Z58=AB58,AC58,\"\"))","v":""},{"$f":"IF(Z58=\"\",\"\",IF(Z58<AB58,Y58,IF(Z58=AB58,\"\",AC58)))","v":"Manfred Pawlica (wie)"},{"$f":"IF(Z58=\"\",\"\",IF(Z58>AB58,Y55,\"\"))","v":"Bormla SC (bor)"},{"$f":"IF(Z58=\"\",\"\",IF(Z58<AB58,AC55,\"\"))","v":""},{"$f":"CONCATENATE(AE58,AH58)","v":"Jason Pisani (bor)Manfred Pawlica (wie)"},null,null,null,null,null,null,null,null,null,null,null,null,null,null,null,null,null,null,null,null,null,null,null,null,null,null,null,null,null,null,null,null,null,null,null,null,null,null,null,null,null,null,null,null,null,null,null,null,null,null,""]
[null,null,null,null,null,null,null,null,null,null,null,null,null,null,null,null,null,null,null,null,null,null,null,null,"Charles Aquilina (bor)",1,"-",1,"Erich Hinkelmann (wie)",null,{"$f":"IF(Z59=\"\",\"\",IF(Z59>AB59,Y59,IF(Z59=AB59,\"\",AC59)))","v":""},{"$f":"IF(Z59=\"\",\"\",IF(Z59=AB59,Y59,\"\"))","v":"Charles Aquilina (bor)"},{"$f":"IF(Z59=\"\",\"\",IF(Z59=AB59,AC59,\"\"))","v":"Erich Hinkelmann (wie)"},{"$f":"IF(Z59=\"\",\"\",IF(Z59<AB59,Y59,IF(Z59=AB59,\"\",AC59)))","v":""},{"$f":"IF(Z59=\"\",\"\",IF(Z59>AB59,Y55,\"\"))","v":""},{"$f":"IF(Z59=\"\",\"\",IF(Z59<AB59,AC55,\"\"))","v":""},{"$f":"CONCATENATE(AE59,AH59)","v":""},null,null,null,null,null,null,null,null,null,null,null,null,null,null,null,null,null,null,null,null,null,null,null,null,null,null,null,null,null,null,null,null,null,null,null,null,null,null,null,null,null,null,null,null,null,null,null,null,null,null,""]
[null,null,null,null,null,null,null,null,null,null,null,null,null,null,null,null,null,null,null,null,null,null,null,{"$f":"N_Substitute","v":"Substitute"},"Jean Carl Tabone (bor)",null,null,null,null,null,null,null,null,null,null,null,null,null,null,null,null,null,null,null,null,null,null,null,null,null,null,null,null,null,null,null,null,null,null,null,null,null,null,null,null,null,null,null,null,null,null,null,null,null,null,null,null,null,null,null,null,null,null,null,null,null,null,""]
[null,null,null,null,null,null,null,null,null,null,null,null,null,null,null,null,null,null,null,null,null,null,null,{"$f":"N_Substitute","v":"Substitute"},null,null,null,null,null,null,null,null,null,null,null,null,null,null,null,null,null,null,null,null,null,null,null,null,null,null,null,null,null,null,null,null,null,null,null,null,null,null,null,null,null,null,null,null,null,null,null,null,null,null,null,null,null,null,null,null,null,null,null,null,null,null,null,""]
[null,null,null,null,null,null,null,null,null,null,null,null,null,null,null,null,null,null,null,null,"#G4","11:00:00",null,"ST Stembert (ste)",{"$f":"IF(G10=\"\",\"\",G10)","v":"Atlas FTC (atl)"},{"$f":"IF(OR(ISNUMBER(Z63),ISNUMBER(Z64),ISNUMBER(Z65),ISNUMBER(Z66)),4-COUNTBLANK(AI63:AI66),\"\")","v":1},"-",{"$f":"IF(OR(ISNUMBER(Z63),ISNUMBER(Z64),ISNUMBER(Z65),ISNUMBER(Z66)),4-COUNTBLANK(AJ63:AJ66),\"\")","v":1},{"$f":"IF(G11=\"\",\"\",G11)","v":"TSC Royal 78 Kaisermühlen (roy)"},null,{"$f":"IF(Z62=\"\",\"\",IF(Z62>AB62,Y62,IF(Z62=AB62,IF(NoDrawWithWithdraw,IF(AL62=Y62,AC62,IF(AL62=AC62,Y62,\"\")),\"\"),AC62)))","v":""},{"$f":"IF(Z62=\"\",\"\",IF(Z62=AB62,IF(NoDrawWithWithdraw,IF(AL62=Y62,\"\",IF(AL62=AC62,\"\",Y62)),Y62),\"\"))","v":"Atlas FTC (atl)"},{"$f":"IF(Z62=\"\",\"\",IF(Z62=AB62,IF(NoDrawWithWithdraw,IF(AL62=Y62,\"\",IF(AL62=AC62,\"\",AC62)),AC62),\"\"))","v":"TSC Royal 78 Kaisermühlen (roy)"},{"$f":"IF(Z62=\"\",\"\",IF(Z62<AB62,Y62,IF(Z62=AB62,IF(NoDrawWithWithdraw,IF(AL62=Y62,Y62,IF(AL62=AC62,AC62,\"\")),\"\"),AC62)))","v":""},{"$f":"IF(Z62=\"\",\"\",SUM(Z63:Z66))","v":7},{"$f":"IF(Z62=\"\",\"\",SUM(AB63:AB66))","v":6},{"$f":"CONCATENATE(AE62,AH62)","v":""},{"$f":"IF(COUNTIF(Y63:Y66,WithdrawLabel)>COUNTIF(AC63:AC66,WithdrawLabel),Y62,IF(COUNTIF(AC63:AC66,WithdrawLabel)>COUNTIF(Y63:Y66,WithdrawLabel),AC62,\"\"))","v":""},null,null,null,null,null,null,null,null,null,null,null,null,null,null,null,null,null,null,null,null,null,null,null,null,null,null,null,null,null,null,null,null,null,null,null,null,null,null,null,null,null,null,null,null,null,null,null,null,null,""]
[null,null,null,null,null,null,null,null,null,null,null,null,null,null,null,null,null,null,null,null,null,null,null,null,"Giannis Nikolaidis (atl)",1,"-",2,"Murat Tünger (roy)",null,{"$f":"IF(Z63=\"\",\"\",IF(Z63>AB63,Y63,IF(Z63=AB63,\"\",AC63)))","v":"Murat Tünger (roy)"},{"$f":"IF(Z63=\"\",\"\",IF(Z63=AB63,Y63,\"\"))","v":""},{"$f":"IF(Z63=\"\",\"\",IF(Z63=AB63,AC63,\"\"))","v":""},{"$f":"IF(Z63=\"\",\"\",IF(Z63<AB63,Y63,IF(Z63=AB63,\"\",AC63)))","v":"Giannis Nikolaidis (atl)"},{"$f":"IF(Z63=\"\",\"\",IF(Z63>AB63,Y62,\"\"))","v":""},{"$f":"IF(Z63=\"\",\"\",IF(Z63<AB63,AC62,\"\"))","v":"TSC Royal 78 Kaisermühlen (roy)"},{"$f":"CONCATENATE(AE63,AH63)","v":"Murat Tünger (roy)Giannis Nikolaidis (atl)"},null,null,null,null,null,null,null,null,null,null,null,null,null,null,null,null,null,null,null,null,null,null,null,null,null,null,null,null,null,null,null,null,null,null,null,null,null,null,null,null,null,null,null,null,null,null,null,null,null,null,""]
[null,null,null,null,null,null,null,null,null,null,null,null,null,null,null,null,null,null,null,null,null,null,null,null,"Joffray Laurent (atl)",2,"-",0,"Stefan Sandner (roy)",null,{"$f":"IF(Z64=\"\",\"\",IF(Z64>AB64,Y64,IF(Z64=AB64,\"\",AC64)))","v":"Joffray Laurent (atl)"},{"$f":"IF(Z64=\"\",\"\",IF(Z64=AB64,Y64,\"\"))","v":""},{"$f":"IF(Z64=\"\",\"\",IF(Z64=AB64,AC64,\"\"))","v":""},{"$f":"IF(Z64=\"\",\"\",IF(Z64<AB64,Y64,IF(Z64=AB64,\"\",AC64)))","v":"Stefan Sandner (roy)"},{"$f":"IF(Z64=\"\",\"\",IF(Z64>AB64,Y62,\"\"))","v":"Atlas FTC (atl)"},{"$f":"IF(Z64=\"\",\"\",IF(Z64<AB64,AC62,\"\"))","v":""},{"$f":"CONCATENATE(AE64,AH64)","v":"Joffray Laurent (atl)Stefan Sandner (roy)"},null,null,null,null,null,null,null,null,null,null,null,null,null,null,null,null,null,null,null,null,null,null,null,null,null,null,null,null,null,null,null,null,null,null,null,null,null,null,null,null,null,null,null,null,null,null,null,null,null,null,""]
[null,null,null,null,null,null,null,null,null,null,null,null,null,null,null,null,null,null,null,null,null,null,null,null,"Lazaros Papakonstantinou (atl)",2,"-",2,"Alexander Haas (roy)",null,{"$f":"IF(Z65=\"\",\"\",IF(Z65>AB65,Y65,IF(Z65=AB65,\"\",AC65)))","v":""},{"$f":"IF(Z65=\"\",\"\",IF(Z65=AB65,Y65,\"\"))","v":"Lazaros Papakonstantinou (atl)"},{"$f":"IF(Z65=\"\",\"\",IF(Z65=AB65,AC65,\"\"))","v":"Alexander Haas (roy)"},{"$f":"IF(Z65=\"\",\"\",IF(Z65<AB65,Y65,IF(Z65=AB65,\"\",AC65)))","v":""},{"$f":"IF(Z65=\"\",\"\",IF(Z65>AB65,Y62,\"\"))","v":""},{"$f":"IF(Z65=\"\",\"\",IF(Z65<AB65,AC62,\"\"))","v":""},{"$f":"CONCATENATE(AE65,AH65)","v":""},null,null,null,null,null,null,null,null,null,null,null,null,null,null,null,null,null,null,null,null,null,null,null,null,null,null,null,null,null,null,null,null,null,null,null,null,null,null,null,null,null,null,null,null,null,null,null,null,null,null,""]
[null,null,null,null,null,null,null,null,null,null,null,null,null,null,null,null,null,null,null,null,null,null,null,null,"Stylianos Tsangouris (atl)",2,"-",2,"Wolfgang Leitner (roy)",null,{"$f":"IF(Z66=\"\",\"\",IF(Z66>AB66,Y66,IF(Z66=AB66,\"\",AC66)))","v":""},{"$f":"IF(Z66=\"\",\"\",IF(Z66=AB66,Y66,\"\"))","v":"Stylianos Tsangouris (atl)"},{"$f":"IF(Z66=\"\",\"\",IF(Z66=AB66,AC66,\"\"))","v":"Wolfgang Leitner (roy)"},{"$f":"IF(Z66=\"\",\"\",IF(Z66<AB66,Y66,IF(Z66=AB66,\"\",AC66)))","v":""},{"$f":"IF(Z66=\"\",\"\",IF(Z66>AB66,Y62,\"\"))","v":""},{"$f":"IF(Z66=\"\",\"\",IF(Z66<AB66,AC62,\"\"))","v":""},{"$f":"CONCATENATE(AE66,AH66)","v":""},null,null,null,null,null,null,null,null,null,null,null,null,null,null,null,null,null,null,null,null,null,null,null,null,null,null,null,null,null,null,null,null,null,null,null,null,null,null,null,null,null,null,null,null,null,null,null,null,null,null,""]
[null,null,null,null,null,null,null,null,null,null,null,null,null,null,null,null,null,null,null,null,null,null,null,{"$f":"N_Substitute","v":"Substitute"},"Athanasios Chaliotis (atl)",null,null,null,null,null,null,null,null,null,null,null,null,null,null,null,null,null,null,null,null,null,null,null,null,null,null,null,null,null,null,null,null,null,null,null,null,null,null,null,null,null,null,null,null,null,null,null,null,null,null,null,null,null,null,null,null,null,null,null,null,null,null,""]
[null,null,null,null,null,null,null,null,null,null,null,null,null,null,null,null,null,null,null,null,null,null,null,{"$f":"N_Substitute","v":"Substitute"}]
[null,null,null,null,null,null,null,null,null,null,null,null,null,null,null,null,null,null,null,null,"#G5","12:30:00",null,"TSC Royal 78 Kaisermühlen 2 (roy)",{"$f":"IF(G7=\"\",\"\",G7)","v":"Bormla SC (bor)"},{"$f":"IF(OR(ISNUMBER(Z70),ISNUMBER(Z71),ISNUMBER(Z72),ISNUMBER(Z73)),4-COUNTBLANK(AI70:AI73),\"\")","v":4},"-",{"$f":"IF(OR(ISNUMBER(Z70),ISNUMBER(Z71),ISNUMBER(Z72),ISNUMBER(Z73)),4-COUNTBLANK(AJ70:AJ73),\"\")","v":0},{"$f":"IF(G8=\"\",\"\",G8)","v":"GCT DLF Gorizia (gor)"},null,{"$f":"IF(Z69=\"\",\"\",IF(Z69>AB69,Y69,IF(Z69=AB69,IF(NoDrawWithWithdraw,IF(AL69=Y69,AC69,IF(AL69=AC69,Y69,\"\")),\"\"),AC69)))","v":"Bormla SC (bor)"},{"$f":"IF(Z69=\"\",\"\",IF(Z69=AB69,IF(NoDrawWithWithdraw,IF(AL69=Y69,\"\",IF(AL69=AC69,\"\",Y69)),Y69),\"\"))","v":""},{"$f":"IF(Z69=\"\",\"\",IF(Z69=AB69,IF(NoDrawWithWithdraw,IF(AL69=Y69,\"\",IF(AL69=AC69,\"\",AC69)),AC69),\"\"))","v":""},{"$f":"IF(Z69=\"\",\"\",IF(Z69<AB69,Y69,IF(Z69=AB69,IF(NoDrawWithWithdraw,IF(AL69=Y69,Y69,IF(AL69=AC69,AC69,\"\")),\"\"),AC69)))","v":"GCT DLF Gorizia (gor)"},{"$f":"IF(Z69=\"\",\"\",SUM(Z70:Z73))","v":22},{"$f":"IF(Z69=\"\",\"\",SUM(AB70:AB73))","v":2},{"$f":"CONCATENATE(AE69,AH69)","v":"Bormla SC (bor)GCT DLF Gorizia (gor)"},{"$f":"IF(COUNTIF(Y70:Y73,WithdrawLabel)>COUNTIF(AC70:AC73,WithdrawLabel),Y69,IF(COUNTIF(AC70:AC73,WithdrawLabel)>COUNTIF(Y70:Y73,WithdrawLabel),AC69,\"\"))","v":""}]
[null,null,null,null,null,null,null,null,null,null,null,null,null,null,null,null,null,null,null,null,null,null,null,null,"Charles Aquilina (bor)",6,"-",0,"Michele Cerullo (gor)",null,{"$f":"IF(Z70=\"\",\"\",IF(Z70>AB70,Y70,IF(Z70=AB70,\"\",AC70)))","v":"Charles Aquilina (bor)"},{"$f":"IF(Z70=\"\",\"\",IF(Z70=AB70,Y70,\"\"))","v":""},{"$f":"IF(Z70=\"\",\"\",IF(Z70=AB70,AC70,\"\"))","v":""},{"$f":"IF(Z70=\"\",\"\",IF(Z70<AB70,Y70,IF(Z70=AB70,\"\",AC70)))","v":"Michele Cerullo (gor)"},{"$f":"IF(Z70=\"\",\"\",IF(Z70>AB70,Y69,\"\"))","v":"Bormla SC (bor)"},{"$f":"IF(Z70=\"\",\"\",IF(Z70<AB70,AC69,\"\"))","v":""},{"$f":"CONCATENATE(AE70,AH70)","v":"Charles Aquilina (bor)Michele Cerullo (gor)"}]
[null,null,null,null,null,null,null,null,null,null,null,null,null,null,null,null,null,null,null,null,null,null,null,null,"Christian Haas (bor)",7,"-",2,"Marco Pinausi (gor)",null,{"$f":"IF(Z71=\"\",\"\",IF(Z71>AB71,Y71,IF(Z71=AB71,\"\",AC71)))","v":"Christian Haas (bor)"},{"$f":"IF(Z71=\"\",\"\",IF(Z71=AB71,Y71,\"\"))","v":""},{"$f":"IF(Z71=\"\",\"\",IF(Z71=AB71,AC71,\"\"))","v":""},{"$f":"IF(Z71=\"\",\"\",IF(Z71<AB71,Y71,IF(Z71=AB71,\"\",AC71)))","v":"Marco Pinausi (gor)"},{"$f":"IF(Z71=\"\",\"\",IF(Z71>AB71,Y69,\"\"))","v":"Bormla SC (bor)"},{"$f":"IF(Z71=\"\",\"\",IF(Z71<AB71,AC69,\"\"))","v":""},{"$f":"CONCATENATE(AE71,AH71)","v":"Christian Haas (bor)Marco Pinausi (gor)"}]
[null,null,null,null,null,null,null,null,null,null,null,null,null,null,null,null,null,null,null,null,null,null,null,null,"Wolfgang Haas (bor)",4,"-",0,"Michael Stolzenberg ()",null,{"$f":"IF(Z72=\"\",\"\",IF(Z72>AB72,Y72,IF(Z72=AB72,\"\",AC72)))","v":"Wolfgang Haas (bor)"},{"$f":"IF(Z72=\"\",\"\",IF(Z72=AB72,Y72,\"\"))","v":""},{"$f":"IF(Z72=\"\",\"\",IF(Z72=AB72,AC72,\"\"))","v":""},{"$f":"IF(Z72=\"\",\"\",IF(Z72<AB72,Y72,IF(Z72=AB72,\"\",AC72)))","v":"Michael Stolzenberg ()"},{"$f":"IF(Z72=\"\",\"\",IF(Z72>AB72,Y69,\"\"))","v":"Bormla SC (bor)"},{"$f":"IF(Z72=\"\",\"\",IF(Z72<AB72,AC69,\"\"))","v":""},{"$f":"CONCATENATE(AE72,AH72)","v":"Wolfgang Haas (bor)Michael Stolzenberg ()"}]
[null,null,null,null,null,null,null,null,null,null,null,null,null,null,null,null,null,null,null,null,null,null,null,null,"George Ebejer (bor)",5,"-",0,"To be defined",null,{"$f":"IF(Z73=\"\",\"\",IF(Z73>AB73,Y73,IF(Z73=AB73,\"\",AC73)))","v":"George Ebejer (bor)"},{"$f":"IF(Z73=\"\",\"\",IF(Z73=AB73,Y73,\"\"))","v":""},{"$f":"IF(Z73=\"\",\"\",IF(Z73=AB73,AC73,\"\"))","v":""},{"$f":"IF(Z73=\"\",\"\",IF(Z73<AB73,Y73,IF(Z73=AB73,\"\",AC73)))","v":"To be defined"},{"$f":"IF(Z73=\"\",\"\",IF(Z73>AB73,Y69,\"\"))","v":"Bormla SC (bor)"},{"$f":"IF(Z73=\"\",\"\",IF(Z73<AB73,AC69,\"\"))","v":""},{"$f":"CONCATENATE(AE73,AH73)","v":"George Ebejer (bor)To be defined"}]
[null,null,null,null,null,null,null,null,null,null,null,null,null,null,null,null,null,null,null,null,null,null,null,{"$f":"N_Substitute","v":"Substitute"},"Jason Pisani (bor)"]
[null,null,null,null,null,null,null,null,null,null,null,null,null,null,null,null,null,null,null,null,null,null,null,{"$f":"N_Substitute","v":"Substitute"},"Jean Carl Tabone (bor)"]
[null,null,null,null,null,null,null,null,null,null,null,null,null,null,null,null,null,null,null,null,"#G5","13:20:00",null,"TSC Royal 78 Kaisermühlen (roy)",{"$f":"IF(G9=\"\",\"\",G9)","v":"TSC Phoenix (wie)"},{"$f":"IF(OR(ISNUMBER(Z77),ISNUMBER(Z78),ISNUMBER(Z79),ISNUMBER(Z80)),4-COUNTBLANK(AI77:AI80),\"\")","v":4},"-",{"$f":"IF(OR(ISNUMBER(Z77),ISNUMBER(Z78),ISNUMBER(Z79),ISNUMBER(Z80)),4-COUNTBLANK(AJ77:AJ80),\"\")","v":0},{"$f":"IF(G10=\"\",\"\",G10)","v":"Atlas FTC (atl)"},null,{"$f":"IF(Z76=\"\",\"\",IF(Z76>AB76,Y76,IF(Z76=AB76,IF(NoDrawWithWithdraw,IF(AL76=Y76,AC76,IF(AL76=AC76,Y76,\"\")),\"\"),AC76)))","v":"TSC Phoenix (wie)"},{"$f":"IF(Z76=\"\",\"\",IF(Z76=AB76,IF(NoDrawWithWithdraw,IF(AL76=Y76,\"\",IF(AL76=AC76,\"\",Y76)),Y76),\"\"))","v":""},{"$f":"IF(Z76=\"\",\"\",IF(Z76=AB76,IF(NoDrawWithWithdraw,IF(AL76=Y76,\"\",IF(AL76=AC76,\"\",AC76)),AC76),\"\"))","v":""},{"$f":"IF(Z76=\"\",\"\",IF(Z76<AB76,Y76,IF(Z76=AB76,IF(NoDrawWithWithdraw,IF(AL76=Y76,Y76,IF(AL76=AC76,AC76,\"\")),\"\"),AC76)))","v":"Atlas FTC (atl)"},{"$f":"IF(Z76=\"\",\"\",SUM(Z77:Z80))","v":12},{"$f":"IF(Z76=\"\",\"\",SUM(AB77:AB80))","v":0},{"$f":"CONCATENATE(AE76,AH76)","v":"TSC Phoenix (wie)Atlas FTC (atl)"},{"$f":"IF(COUNTIF(Y77:Y80,WithdrawLabel)>COUNTIF(AC77:AC80,WithdrawLabel),Y76,IF(COUNTIF(AC77:AC80,WithdrawLabel)>COUNTIF(Y77:Y80,WithdrawLabel),AC76,\"\"))","v":""}]
[null,null,null,null,null,null,null,null,null,null,null,null,null,null,null,null,null,null,null,null,null,null,null,null,"Manfred Pawlica (wie)",3,"-",0,"Giannis Nikolaidis (atl)",null,{"$f":"IF(Z77=\"\",\"\",IF(Z77>AB77,Y77,IF(Z77=AB77,\"\",AC77)))","v":"Manfred Pawlica (wie)"},{"$f":"IF(Z77=\"\",\"\",IF(Z77=AB77,Y77,\"\"))","v":""},{"$f":"IF(Z77=\"\",\"\",IF(Z77=AB77,AC77,\"\"))","v":""},{"$f":"IF(Z77=\"\",\"\",IF(Z77<AB77,Y77,IF(Z77=AB77,\"\",AC77)))","v":"Giannis Nikolaidis (atl)"},{"$f":"IF(Z77=\"\",\"\",IF(Z77>AB77,Y76,\"\"))","v":"TSC Phoenix (wie)"},{"$f":"IF(Z77=\"\",\"\",IF(Z77<AB77,AC76,\"\"))","v":""},{"$f":"CONCATENATE(AE77,AH77)","v":"Manfred Pawlica (wie)Giannis Nikolaidis (atl)"}]
[null,null,null,null,null,null,null,null,null,null,null,null,null,null,null,null,null,null,null,null,null,null,null,null,"Marios Strommer (wie)",3,"-",0,"Joffray Laurent (atl)",null,{"$f":"IF(Z78=\"\",\"\",IF(Z78>AB78,Y78,IF(Z78=AB78,\"\",AC78)))","v":"Marios Strommer (wie)"},{"$f":"IF(Z78=\"\",\"\",IF(Z78=AB78,Y78,\"\"))","v":""},{"$f":"IF(Z78=\"\",\"\",IF(Z78=AB78,AC78,\"\"))","v":""},{"$f":"IF(Z78=\"\",\"\",IF(Z78<AB78,Y78,IF(Z78=AB78,\"\",AC78)))","v":"Joffray Laurent (atl)"},{"$f":"IF(Z78=\"\",\"\",IF(Z78>AB78,Y76,\"\"))","v":"TSC Phoenix (wie)"},{"$f":"IF(Z78=\"\",\"\",IF(Z78<AB78,AC76,\"\"))","v":""},{"$f":"CONCATENATE(AE78,AH78)","v":"Marios Strommer (wie)Joffray Laurent (atl)"}]
[null,null,null,null,null,null,null,null,null,null,null,null,null,null,null,null,null,null,null,null,null,null,null,null,"Christian Blümel (wie)",3,"-",0,"Lazaros Papakonstantinou (atl)",null,{"$f":"IF(Z79=\"\",\"\",IF(Z79>AB79,Y79,IF(Z79=AB79,\"\",AC79)))","v":"Christian Blümel (wie)"},{"$f":"IF(Z79=\"\",\"\",IF(Z79=AB79,Y79,\"\"))","v":""},{"$f":"IF(Z79=\"\",\"\",IF(Z79=AB79,AC79,\"\"))","v":""},{"$f":"IF(Z79=\"\",\"\",IF(Z79<AB79,Y79,IF(Z79=AB79,\"\",AC79)))","v":"Lazaros Papakonstantinou (atl)"},{"$f":"IF(Z79=\"\",\"\",IF(Z79>AB79,Y76,\"\"))","v":"TSC Phoenix (wie)"},{"$f":"IF(Z79=\"\",\"\",IF(Z79<AB79,AC76,\"\"))","v":""},{"$f":"CONCATENATE(AE79,AH79)","v":"Christian Blümel (wie)Lazaros Papakonstantinou (atl)"}]
[null,null,null,null,null,null,null,null,null,null,null,null,null,null,null,null,null,null,null,null,null,null,null,null,"Erich Hinkelmann (wie)",3,"-",0,"Stylianos Tsangouris (atl)",null,{"$f":"IF(Z80=\"\",\"\",IF(Z80>AB80,Y80,IF(Z80=AB80,\"\",AC80)))","v":"Erich Hinkelmann (wie)"},{"$f":"IF(Z80=\"\",\"\",IF(Z80=AB80,Y80,\"\"))","v":""},{"$f":"IF(Z80=\"\",\"\",IF(Z80=AB80,AC80,\"\"))","v":""},{"$f":"IF(Z80=\"\",\"\",IF(Z80<AB80,Y80,IF(Z80=AB80,\"\",AC80)))","v":"Stylianos Tsangouris (atl)"},{"$f":"IF(Z80=\"\",\"\",IF(Z80>AB80,Y76,\"\"))","v":"TSC Phoenix (wie)"},{"$f":"IF(Z80=\"\",\"\",IF(Z80<AB80,AC76,\"\"))","v":""},{"$f":"CONCATENATE(AE80,AH80)","v":"Erich Hinkelmann (wie)Stylianos Tsangouris (atl)"}]
[null,null,null,null,null,null,null,null,null,null,null,null,null,null,null,null,null,null,null,null,null,null,null,{"$f":"N_Substitute","v":"Substitute"},null,null,null,null,"Athanasios Chaliotis (atl)"]
[null,null,null,null,null,null,null,null,null,null,null,null,null,null,null,null,null,null,null,null,null,null,null,{"$f":"N_Substitute","v":"Substitute"}]
[]
[null,{"$f":"N_Group & \" 2\"","v":"Group 2"},null,null,null,null,null,null,null,null,null,null,null,null,null,null,null,null,null,null,null,null,null,null,null,null,null,null,null,null,null,null,null,null,null,null,null,null,null,{"$f":"B84","v":"Group 2"}]
[]
[null,{"$f":"N_Tirage","v":"Draw"},"Cla.","Cla1","Part","Cla2",{"$f":"N_Equipes","v":"Teams"},{"$f":"N_Pts","v":"Pts"},{"$f":"N_J","v":"Pld"},{"$f":"N_G","v":"W"},{"$f":"N_N","v":"D"},{"$f":"N_P","v":"L"},{"$f":"N_Diff_R","v":"ED"},{"$f":"N_MP","v":"WM"},{"$f":"N_MC","v":"LM"},{"$f":"N_Diff_M","v":"MD"},{"$f":"N_BP","v":"F"},{"$f":"N_BC","v":"A"},{"$f":"N_Diff_B","v":"GD"},null,null,null,null,null,null,null,null,null,null,null,null,null,null,null,null,null,null,null,null,null,{"$f":"N_Cla.","v":"Rk"},{"$f":"N_Equipes","v":"Teams"},{"$f":"N_Pts","v":"Pts"},{"$f":"N_J","v":"Pld"},{"$f":"N_G","v":"W"},{"$f":"N_N","v":"D"},{"$f":"N_P","v":"L"},{"$f":"N_Diff_R","v":"ED"},{"$f":"N_MP","v":"WM"},{"$f":"N_MC","v":"LM"},{"$f":"N_Diff_M","v":"MD"},{"$f":"N_BP","v":"F"},{"$f":"N_BC","v":"A"},{"$f":"N_Diff_B","v":"GD"},{"$f":"N_Matches","v":"Matches"}]
[null,1,{"$f":"IF(AL92=\"\",\"\",RANK(F87,F87:F91)*1000+ROW())","v":1087},{"$f":"IF(J87=\"\",\"\",H87*CritClassEq1_Points+M87*CritClassEq1_DiffRencontres+P87*CritClassEq1_DiffMatches+S87*CritClassEq1_DiffButs+N87*CritClassEq1_Matches+Q87*CritClassEq1_Attaque)","v":236196000000000},{"$f":"IF(J87=\"\",\"\",Nb_Diff_Part(D87,D87:D91,G87,G87:G91,AK93:AK156)*CritClassEq_DiffPart+Nb_Goal_Part(D87,D87:D91,G87,G87:G91,Y93:AC156)*CritClassEq_IndsPart+Nb_Score_Part(D87,D87:D91,G87,G87:G91,Y93:AC156)*CritClassEq_WinsPart+Nb_GoalTeam_Part(D87,D87:D91,G87,G87:G91,Y93:AC156)*CritClassEq_GoalPart+Nb_ScoreTeam_Part(D87,D87:D91,G87,G87:G91,Y93:AC156)*CritClassEq_ScorePart)","v":0},{"$f":"IF(J87=\"\",\"\",D87+E87+H87*CritClassEq2_Points+M87*CritClassEq2_DiffRencontres+P87*CritClassEq2_DiffMatches+S87*CritClassEq2_DiffButs+N87*CritClassEq2_Matches+Q87*CritClassEq2_Attaque)","v":236196252721473},"ST Stembert (ste)",{"$f":"IF(AL92=\"\",\"\",(J87*Points_Victoire)+K87*Points_Null)","v":12},{"$f":"IF(J87=\"\",\"\",SUM(J87:L87))","v":4},{"$f":"IF(AL92=\"\",\"\",COUNTIF(AE93:AE160,G87))","v":4},{"$f":"IF(AL92=\"\",\"\",COUNTIF(AF93:AG160,G87))","v":0},{"$f":"IF(AL92=\"\",\"\",COUNTIF(AH93:AH160,G87))","v":0},{"$f":"IF(AL92=\"\",\"\",J87-L87)","v":4},{"$f":"IF(AL92=\"\",\"\",SUMIF(Y93:Y160,G87,Z93:Z160)+SUMIF(AC93:AC160,G87,AB93:AB160))","v":12},{"$f":"IF(AL92=\"\",\"\",SUMIF(Y93:Y160,G87,AB93:AB160)+SUMIF(AC93:AC160,G87,Z93:AL160))","v":2},{"$f":"IF(AL92=\"\",\"\",N87-O87)","v":10},{"$f":"IF(AL92=\"\",\"\",SUMIF(Y93:Y160,G87,AI93:AI160)+SUMIF(AC93:AC160,G87,AJ93:AJ160))","v":63},{"$f":"IF(AL92=\"\",\"\",SUMIF(Y93:Y160,G87,AJ93:AJ160)+SUMIF(AC93:AC160,G87,AI93:AI160))","v":16},{"$f":"IF(AL92=\"\",\"\",Q87-R87)","v":47},null,null,null,null,null,null,null,null,null,null,null,null,null,null,null,null,null,null,{"$f":"IF(AL92=\"\",\"\",SMALL(C87:C91,1))","v":1087},null,null,{"$f":"IF(AL92=\"\",\"\",INT(AL87/1000))","v":1},{"$f":"IF(AL92=\"\",IF(HidePlayerFormulas,\"\",\"(\"&G87&\")\"),VLOOKUP(AL87,C87:S91,5,FALSE))","v":"ST Stembert (ste)"},{"$f":"VLOOKUP(AL87,C87:S91,6,FALSE)","v":12},{"$f":"VLOOKUP(AL87,C87:S91,7,FALSE)","v":4},{"$f":"VLOOKUP(AL87,C87:S91,8,FALSE)","v":4},{"$f":"VLOOKUP(AL87,C87:S91,9,FALSE)","v":0},{"$f":"VLOOKUP(AL87,C87:S91,10,FALSE)","v":0},{"$f":"VLOOKUP(AL87,C87:S91,11,FALSE)","v":4},{"$f":"VLOOKUP(AL87,C87:S91,12,FALSE)","v":12},{"$f":"VLOOKUP(AL87,C87:S91,13,FALSE)","v":2},{"$f":"VLOOKUP(AL87,C87:S91,14,FALSE)","v":10},{"$f":"VLOOKUP(AL87,C87:S91,15,FALSE)","v":63},{"$f":"VLOOKUP(AL87,C87:S91,16,FALSE)","v":16},{"$f":"VLOOKUP(AL87,C87:S91,17,FALSE)","v":47},{"$f":"IF($Z93=\"\",\"\",IF($AP87=$Y93,$Z93&\"(\"&SUM($Z94:$Z97)&\")\",IF($AP87=$AC93,$AB93&\"(\"&SUM($AB94:$AB97)&\")\",\"\")))","v":""},{"$f":"IF($Z100=\"\",\"\",IF($AP87=$Y100,$Z100&\"(\"&SUM($Z101:$Z104)&\")\",IF($AP87=$AC100,$AB100&\"(\"&SUM($AB101:$AB104)&\")\",\"\")))","v":"3(18)"},{"$f":"IF($Z107=\"\",\"\",IF($AP87=$Y107,$Z107&\"(\"&SUM($Z108:$Z111)&\")\",IF($AP87=$AC107,$AB107&\"(\"&SUM($AB108:$AB111)&\")\",\"\")))","v":""},{"$f":"IF($Z114=\"\",\"\",IF($AP87=$Y114,$Z114&\"(\"&SUM($Z115:$Z118)&\")\",IF($AP87=$AC114,$AB114&\"(\"&SUM($AB115:$AB118)&\")\",\"\")))","v":""},{"$f":"IF($Z121=\"\",\"\",IF($AP87=$Y121,$Z121&\"(\"&SUM($Z122:$Z125)&\")\",IF($AP87=$AC121,$AB121&\"(\"&SUM($AB122:$AB125)&\")\",\"\")))","v":"3(18)"},{"$f":"IF($Z128=\"\",\"\",IF($AP87=$Y128,$Z128&\"(\"&SUM($Z129:$Z132)&\")\",IF($AP87=$AC128,$AB128&\"(\"&SUM($AB129:$AB132)&\")\",\"\")))","v":""},{"$f":"IF($Z135=\"\",\"\",IF($AP87=$Y135,$Z135&\"(\"&SUM($Z136:$Z139)&\")\",IF($AP87=$AC135,$AB135&\"(\"&SUM($AB136:$AB139)&\")\",\"\")))","v":"3(16)"},{"$f":"IF($Z142=\"\",\"\",IF($AP87=$Y142,$Z142&\"(\"&SUM($Z143:$Z146)&\")\",IF($AP87=$AC142,$AB142&\"(\"&SUM($AB143:$AB146)&\")\",\"\")))","v":""},{"$f":"IF($Z149=\"\",\"\",IF($AP87=$Y149,$Z149&\"(\"&SUM($Z150:$Z153)&\")\",IF($AP87=$AC149,$AB149&\"(\"&SUM($AB150:$AB153)&\")\",\"\")))","v":"3(11)"},{"$f":"IF($Z156=\"\",\"\",IF($AP87=$Y156,$Z156&\"(\"&SUM($Z157:$Z160)&\")\",IF($AP87=$AC156,$AB156&\"(\"&SUM($AB157:$AB160)&\")\",\"\")))","v":""},{"$f":"IF(G87=\"[---WithDraw---]\",FALSE,IF(COUNTIF(PlayerNamesWithinGroups,G87)>1,TRUE,FALSE))","v":false},{"$f":"AND(LEFT($AP87,1) = \"(\", RIGHT($AP87,1) =\")\")","v":false},{"$f":"IF(OR($AO87=$AO86,$AO87=$AO88),TRUE,FALSE)","v":false}]
[null,2,{"$f":"IF(AL92=\"\",\"\",RANK(F88,F87:F91)*1000+ROW())","v":3088},{"$f":"IF(J88=\"\",\"\",H88*CritClassEq1_Points+M88*CritClassEq1_DiffRencontres+P88*CritClassEq1_DiffMatches+S88*CritClassEq1_DiffButs+N88*CritClassEq1_Matches+Q88*CritClassEq1_Attaque)","v":118098000000000},{"$f":"IF(J88=\"\",\"\",Nb_Diff_Part(D88,D87:D91,G88,G87:G91,AK93:AK156)*CritClassEq_DiffPart+Nb_Goal_Part(D88,D87:D91,G88,G87:G91,Y93:AC156)*CritClassEq_IndsPart+Nb_Score_Part(D88,D87:D91,G88,G87:G91,Y93:AC156)*CritClassEq_WinsPart+Nb_GoalTeam_Part(D88,D87:D91,G88,G87:G91,Y93:AC156)*CritClassEq_GoalPart+Nb_ScoreTeam_Part(D88,D87:D91,G88,G87:G91,Y93:AC156)*CritClassEq_ScorePart)","v":0},{"$f":"IF(J88=\"\",\"\",D88+E88+H88*CritClassEq2_Points+M88*CritClassEq2_DiffRencontres+P88*CritClassEq2_DiffMatches+S88*CritClassEq2_DiffButs+N88*CritClassEq2_Matches+Q88*CritClassEq2_Attaque)","v":118097980559936},"Barbarian Mixed Team",{"$f":"IF(AL92=\"\",\"\",(J88*Points_Victoire)+K88*Points_Null)","v":6},{"$f":"IF(J88=\"\",\"\",SUM(J88:L88))","v":4},{"$f":"IF(AL92=\"\",\"\",COUNTIF(AE93:AE160,G88))","v":2},{"$f":"IF(AL92=\"\",\"\",COUNTIF(AF93:AG160,G88))","v":0},{"$f":"IF(AL92=\"\",\"\",COUNTIF(AH93:AH160,G88))","v":2},{"$f":"IF(AL92=\"\",\"\",J88-L88)","v":0},{"$f":"IF(AL92=\"\",\"\",SUMIF(Y93:Y160,G88,Z93:Z160)+SUMIF(AC93:AC160,G88,AB93:AB160))","v":6},{"$f":"IF(AL92=\"\",\"\",SUMIF(Y93:Y160,G88,AB93:AB160)+SUMIF(AC93:AC160,G88,Z93:AL160))","v":7},{"$f":"IF(AL92=\"\",\"\",N88-O88)","v":-1},{"$f":"IF(AL92=\"\",\"\",SUMIF(Y93:Y160,G88,AI93:AI160)+SUMIF(AC93:AC160,G88,AJ93:AJ160))","v":26},{"$f":"IF(AL92=\"\",\"\",SUMIF(Y93:Y160,G88,AJ93:AJ160)+SUMIF(AC93:AC160,G88,AI93:AI160))","v":29},{"$f":"IF(AL92=\"\",\"\",Q88-R88)","v":-3},null,null,null,null,null,null,null,null,null,null,null,null,null,null,null,null,null,null,{"$f":"IF(AL92=\"\",\"\",SMALL(C87:C91,2))","v":2091},null,null,{"$f":"IF(AL92=\"\",\"\",INT(AL88/1000))","v":2},{"$f":"IF(AL92=\"\",IF(HidePlayerFormulas,\"\",\"(\"&G88&\")\"),VLOOKUP(AL88,C87:S91,5,FALSE))","v":"TSC Royal 78 Kaisermühlen 2 (roy)"},{"$f":"VLOOKUP(AL88,C87:S91,6,FALSE)","v":9},{"$f":"VLOOKUP(AL88,C87:S91,7,FALSE)","v":4},{"$f":"VLOOKUP(AL88,C87:S91,8,FALSE)","v":3},{"$f":"VLOOKUP(AL88,C87:S91,9,FALSE)","v":0},{"$f":"VLOOKUP(AL88,C87:S91,10,FALSE)","v":1},{"$f":"VLOOKUP(AL88,C87:S91,11,FALSE)","v":2},{"$f":"VLOOKUP(AL88,C87:S91,12,FALSE)","v":8},{"$f":"VLOOKUP(AL88,C87:S91,13,FALSE)","v":5},{"$f":"VLOOKUP(AL88,C87:S91,14,FALSE)","v":3},{"$f":"VLOOKUP(AL88,C87:S91,15,FALSE)","v":26},{"$f":"VLOOKUP(AL88,C87:S91,16,FALSE)","v":34},{"$f":"VLOOKUP(AL88,C87:S91,17,FALSE)","v":-8},{"$f":"IF($Z93=\"\",\"\",IF($AP88=$Y93,$Z93&\"(\"&SUM($Z94:$Z97)&\")\",IF($AP88=$AC93,$AB93&\"(\"&SUM($AB94:$AB97)&\")\",\"\")))","v":""},{"$f":"IF($Z100=\"\",\"\",IF($AP88=$Y100,$Z100&\"(\"&SUM($Z101:$Z104)&\")\",IF($AP88=$AC100,$AB100&\"(\"&SUM($AB101:$AB104)&\")\",\"\")))","v":"1(2)"},{"$f":"IF($Z107=\"\",\"\",IF($AP88=$Y107,$Z107&\"(\"&SUM($Z108:$Z111)&\")\",IF($AP88=$AC107,$AB107&\"(\"&SUM($AB108:$AB111)&\")\",\"\")))","v":""},{"$f":"IF($Z114=\"\",\"\",IF($AP88=$Y114,$Z114&\"(\"&SUM($Z115:$Z118)&\")\",IF($AP88=$AC114,$AB114&\"(\"&SUM($AB115:$AB118)&\")\",\"\")))","v":"2(5)"},{"$f":"IF($Z121=\"\",\"\",IF($AP88=$Y121,$Z121&\"(\"&SUM($Z122:$Z125)&\")\",IF($AP88=$AC121,$AB121&\"(\"&SUM($AB122:$AB125)&\")\",\"\")))","v":""},{"$f":"IF($Z128=\"\",\"\",IF($AP88=$Y128,$Z128&\"(\"&SUM($Z129:$Z132)&\")\",IF($AP88=$AC128,$AB128&\"(\"&SUM($AB129:$AB132)&\")\",\"\")))","v":"2(7)"},{"$f":"IF($Z135=\"\",\"\",IF($AP88=$Y135,$Z135&\"(\"&SUM($Z136:$Z139)&\")\",IF($AP88=$AC135,$AB135&\"(\"&SUM($AB136:$AB139)&\")\",\"\")))","v":""},{"$f":"IF($Z142=\"\",\"\",IF($AP88=$Y142,$Z142&\"(\"&SUM($Z143:$Z146)&\")\",IF($AP88=$AC142,$AB142&\"(\"&SUM($AB143:$AB146)&\")\",\"\")))","v":"3(12)"},{"$f":"IF($Z149=\"\",\"\",IF($AP88=$Y149,$Z149&\"(\"&SUM($Z150:$Z153)&\")\",IF($AP88=$AC149,$AB149&\"(\"&SUM($AB150:$AB153)&\")\",\"\")))","v":""},{"$f":"IF($Z156=\"\",\"\",IF($AP88=$Y156,$Z156&\"(\"&SUM($Z157:$Z160)&\")\",IF($AP88=$AC156,$AB156&\"(\"&SUM($AB157:$AB160)&\")\",\"\")))","v":""},{"$f":"IF(G88=\"[---WithDraw---]\",FALSE,IF(COUNTIF(PlayerNamesWithinGroups,G88)>1,TRUE,FALSE))","v":false},{"$f":"AND(LEFT($AP88,1) = \"(\", RIGHT($AP88,1) =\")\")","v":false},{"$f":"IF(OR($AO88=$AO87,$AO88=$AO89),TRUE,FALSE)","v":false}]
[null,3,{"$f":"IF(AL92=\"\",\"\",RANK(F89,F87:F91)*1000+ROW())","v":4089},{"$f":"IF(J89=\"\",\"\",H89*CritClassEq1_Points+M89*CritClassEq1_DiffRencontres+P89*CritClassEq1_DiffMatches+S89*CritClassEq1_DiffButs+N89*CritClassEq1_Matches+Q89*CritClassEq1_Attaque)","v":59049000000000},{"$f":"IF(J89=\"\",\"\",Nb_Diff_Part(D89,D87:D91,G89,G87:G91,AK93:AK156)*CritClassEq_DiffPart+Nb_Goal_Part(D89,D87:D91,G89,G87:G91,Y93:AC156)*CritClassEq_IndsPart+Nb_Score_Part(D89,D87:D91,G89,G87:G91,Y93:AC156)*CritClassEq_WinsPart+Nb_GoalTeam_Part(D89,D87:D91,G89,G87:G91,Y93:AC156)*CritClassEq_GoalPart+Nb_ScoreTeam_Part(D89,D87:D91,G89,G87:G91,Y93:AC156)*CritClassEq_ScorePart)","v":0},{"$f":"IF(J89=\"\",\"\",D89+E89+H89*CritClassEq2_Points+M89*CritClassEq2_DiffRencontres+P89*CritClassEq2_DiffMatches+S89*CritClassEq2_DiffButs+N89*CritClassEq2_Matches+Q89*CritClassEq2_Attaque)","v":59048906039599},"TSC Phoenix 2 (wie)",{"$f":"IF(AL92=\"\",\"\",(J89*Points_Victoire)+K89*Points_Null)","v":3},{"$f":"IF(J89=\"\",\"\",SUM(J89:L89))","v":4},{"$f":"IF(AL92=\"\",\"\",COUNTIF(AE93:AE160,G89))","v":1},{"$f":"IF(AL92=\"\",\"\",COUNTIF(AF93:AG160,G89))","v":0},{"$f":"IF(AL92=\"\",\"\",COUNTIF(AH93:AH160,G89))","v":3},{"$f":"IF(AL92=\"\",\"\",J89-L89)","v":-2},{"$f":"IF(AL92=\"\",\"\",SUMIF(Y93:Y160,G89,Z93:Z160)+SUMIF(AC93:AC160,G89,AB93:AB160))","v":4},{"$f":"IF(AL92=\"\",\"\",SUMIF(Y93:Y160,G89,AB93:AB160)+SUMIF(AC93:AC160,G89,Z93:AL160))","v":8},{"$f":"IF(AL92=\"\",\"\",N89-O89)","v":-4},{"$f":"IF(AL92=\"\",\"\",SUMIF(Y93:Y160,G89,AI93:AI160)+SUMIF(AC93:AC160,G89,AJ93:AJ160))","v":19},{"$f":"IF(AL92=\"\",\"\",SUMIF(Y93:Y160,G89,AJ93:AJ160)+SUMIF(AC93:AC160,G89,AI93:AI160))","v":33},{"$f":"IF(AL92=\"\",\"\",Q89-R89)","v":-14},null,null,null,null,null,null,null,null,null,null,null,null,null,null,null,null,null,null,{"$f":"IF(AL92=\"\",\"\",SMALL(C87:C91,3))","v":3088},null,null,{"$f":"IF(AL92=\"\",\"\",INT(AL89/1000))","v":3},{"$f":"IF(AL92=\"\",IF(HidePlayerFormulas,\"\",\"(\"&G89&\")\"),VLOOKUP(AL89,C87:S91,5,FALSE))","v":"Barbarian Mixed Team"},{"$f":"VLOOKUP(AL89,C87:S91,6,FALSE)","v":6},{"$f":"VLOOKUP(AL89,C87:S91,7,FALSE)","v":4},{"$f":"VLOOKUP(AL89,C87:S91,8,FALSE)","v":2},{"$f":"VLOOKUP(AL89,C87:S91,9,FALSE)","v":0},{"$f":"VLOOKUP(AL89,C87:S91,10,FALSE)","v":2},{"$f":"VLOOKUP(AL89,C87:S91,11,FALSE)","v":0},{"$f":"VLOOKUP(AL89,C87:S91,12,FALSE)","v":6},{"$f":"VLOOKUP(AL89,C87:S91,13,FALSE)","v":7},{"$f":"VLOOKUP(AL89,C87:S91,14,FALSE)","v":-1},{"$f":"VLOOKUP(AL89,C87:S91,15,FALSE)","v":26},{"$f":"VLOOKUP(AL89,C87:S91,16,FALSE)","v":29},{"$f":"VLOOKUP(AL89,C87:S91,17,FALSE)","v":-3},{"$f":"IF($Z93=\"\",\"\",IF($AP89=$Y93,$Z93&\"(\"&SUM($Z94:$Z97)&\")\",IF($AP89=$AC93,$AB93&\"(\"&SUM($AB94:$AB97)&\")\",\"\")))","v":"2(7)"},{"$f":"IF($Z100=\"\",\"\",IF($AP89=$Y100,$Z100&\"(\"&SUM($Z101:$Z104)&\")\",IF($AP89=$AC100,$AB100&\"(\"&SUM($AB101:$AB104)&\")\",\"\")))","v":""},{"$f":"IF($Z107=\"\",\"\",IF($AP89=$Y107,$Z107&\"(\"&SUM($Z108:$Z111)&\")\",IF($AP89=$AC107,$AB107&\"(\"&SUM($AB108:$AB111)&\")\",\"\")))","v":"2(10)"},{"$f":"IF($Z114=\"\",\"\",IF($AP89=$Y114,$Z114&\"(\"&SUM($Z115:$Z118)&\")\",IF($AP89=$AC114,$AB114&\"(\"&SUM($AB115:$AB118)&\")\",\"\")))","v":""},{"$f":"IF($Z121=\"\",\"\",IF($AP89=$Y121,$Z121&\"(\"&SUM($Z122:$Z125)&\")\",IF($AP89=$AC121,$AB121&\"(\"&SUM($AB122:$AB125)&\")\",\"\")))","v":""},{"$f":"IF($Z128=\"\",\"\",IF($AP89=$Y128,$Z128&\"(\"&SUM($Z129:$Z132)&\")\",IF($AP89=$AC128,$AB128&\"(\"&SUM($AB129:$AB132)&\")\",\"\")))","v":"1(6)"},{"$f":"IF($Z135=\"\",\"\",IF($AP89=$Y135,$Z135&\"(\"&SUM($Z136:$Z139)&\")\",IF($AP89=$AC135,$AB135&\"(\"&SUM($AB136:$AB139)&\")\",\"\")))","v":""},{"$f":"IF($Z142=\"\",\"\",IF($AP89=$Y142,$Z142&\"(\"&SUM($Z143:$Z146)&\")\",IF($AP89=$AC142,$AB142&\"(\"&SUM($AB143:$AB146)&\")\",\"\")))","v":""},{"$f":"IF($Z149=\"\",\"\",IF($AP89=$Y149,$Z149&\"(\"&SUM($Z150:$Z153)&\")\",IF($AP89=$AC149,$AB149&\"(\"&SUM($AB150:$AB153)&\")\",\"\")))","v":"1(3)"},{"$f":"IF($Z156=\"\",\"\",IF($AP89=$Y156,$Z156&\"(\"&SUM($Z157:$Z160)&\")\",IF($AP89=$AC156,$AB156&\"(\"&SUM($AB157:$AB160)&\")\",\"\")))","v":""},{"$f":"IF(G89=\"[---WithDraw---]\",FALSE,IF(COUNTIF(PlayerNamesWithinGroups,G89)>1,TRUE,FALSE))","v":false},{"$f":"AND(LEFT($AP89,1) = \"(\", RIGHT($AP89,1) =\")\")","v":false},{"$f":"IF(OR($AO89=$AO88,$AO89=$AO90),TRUE,FALSE)","v":false}]
[null,4,{"$f":"IF(AL92=\"\",\"\",RANK(F90,F87:F91)*1000+ROW())","v":5090},{"$f":"IF(J90=\"\",\"\",H90*CritClassEq1_Points+M90*CritClassEq1_DiffRencontres+P90*CritClassEq1_DiffMatches+S90*CritClassEq1_DiffButs+N90*CritClassEq1_Matches+Q90*CritClassEq1_Attaque)","v":0},{"$f":"IF(J90=\"\",\"\",Nb_Diff_Part(D90,D87:D91,G90,G87:G91,AK93:AK156)*CritClassEq_DiffPart+Nb_Goal_Part(D90,D87:D91,G90,G87:G91,Y93:AC156)*CritClassEq_IndsPart+Nb_Score_Part(D90,D87:D91,G90,G87:G91,Y93:AC156)*CritClassEq_WinsPart+Nb_GoalTeam_Part(D90,D87:D91,G90,G87:G91,Y93:AC156)*CritClassEq_GoalPart+Nb_ScoreTeam_Part(D90,D87:D91,G90,G87:G91,Y93:AC156)*CritClassEq_ScorePart)","v":0},{"$f":"IF(J90=\"\",\"\",D90+E90+H90*CritClassEq2_Points+M90*CritClassEq2_DiffRencontres+P90*CritClassEq2_DiffMatches+S90*CritClassEq2_DiffButs+N90*CritClassEq2_Matches+Q90*CritClassEq2_Attaque)","v":-192780638},"Roligans Ilioupolis TSC (rol)",{"$f":"IF(AL92=\"\",\"\",(J90*Points_Victoire)+K90*Points_Null)","v":0},{"$f":"IF(J90=\"\",\"\",SUM(J90:L90))","v":4},{"$f":"IF(AL92=\"\",\"\",COUNTIF(AE93:AE160,G90))","v":0},{"$f":"IF(AL92=\"\",\"\",COUNTIF(AF93:AG160,G90))","v":0},{"$f":"IF(AL92=\"\",\"\",COUNTIF(AH93:AH160,G90))","v":4},{"$f":"IF(AL92=\"\",\"\",J90-L90)","v":-4},{"$f":"IF(AL92=\"\",\"\",SUMIF(Y93:Y160,G90,Z93:Z160)+SUMIF(AC93:AC160,G90,AB93:AB160))","v":2},{"$f":"IF(AL92=\"\",\"\",SUMIF(Y93:Y160,G90,AB93:AB160)+SUMIF(AC93:AC160,G90,Z93:AL160))","v":10},{"$f":"IF(AL92=\"\",\"\",N90-O90)","v":-8},{"$f":"IF(AL92=\"\",\"\",SUMIF(Y93:Y160,G90,AI93:AI160)+SUMIF(AC93:AC160,G90,AJ93:AJ160))","v":22},{"$f":"IF(AL92=\"\",\"\",SUMIF(Y93:Y160,G90,AJ93:AJ160)+SUMIF(AC93:AC160,G90,AI93:AI160))","v":44},{"$f":"IF(AL92=\"\",\"\",Q90-R90)","v":-22},null,null,null,null,null,null,null,null,null,null,null,null,null,null,null,null,null,null,{"$f":"IF(AL92=\"\",\"\",SMALL(C87:C91,4))","v":4089},null,null,{"$f":"IF(AL92=\"\",\"\",INT(AL90/1000))","v":4},{"$f":"IF(AL92=\"\",IF(HidePlayerFormulas,\"\",\"(\"&G90&\")\"),VLOOKUP(AL90,C87:S91,5,FALSE))","v":"TSC Phoenix 2 (wie)"},{"$f":"VLOOKUP(AL90,C87:S91,6,FALSE)","v":3},{"$f":"VLOOKUP(AL90,C87:S91,7,FALSE)","v":4},{"$f":"VLOOKUP(AL90,C87:S91,8,FALSE)","v":1},{"$f":"VLOOKUP(AL90,C87:S91,9,FALSE)","v":0},{"$f":"VLOOKUP(AL90,C87:S91,10,FALSE)","v":3},{"$f":"VLOOKUP(AL90,C87:S91,11,FALSE)","v":-2},{"$f":"VLOOKUP(AL90,C87:S91,12,FALSE)","v":4},{"$f":"VLOOKUP(AL90,C87:S91,13,FALSE)","v":8},{"$f":"VLOOKUP(AL90,C87:S91,14,FALSE)","v":-4},{"$f":"VLOOKUP(AL90,C87:S91,15,FALSE)","v":19},{"$f":"VLOOKUP(AL90,C87:S91,16,FALSE)","v":33},{"$f":"VLOOKUP(AL90,C87:S91,17,FALSE)","v":-14},{"$f":"IF($Z93=\"\",\"\",IF($AP90=$Y93,$Z93&\"(\"&SUM($Z94:$Z97)&\")\",IF($AP90=$AC93,$AB93&\"(\"&SUM($AB94:$AB97)&\")\",\"\")))","v":"1(7)"},{"$f":"IF($Z100=\"\",\"\",IF($AP90=$Y100,$Z100&\"(\"&SUM($Z101:$Z104)&\")\",IF($AP90=$AC100,$AB100&\"(\"&SUM($AB101:$AB104)&\")\",\"\")))","v":""},{"$f":"IF($Z107=\"\",\"\",IF($AP90=$Y107,$Z107&\"(\"&SUM($Z108:$Z111)&\")\",IF($AP90=$AC107,$AB107&\"(\"&SUM($AB108:$AB111)&\")\",\"\")))","v":""},{"$f":"IF($Z114=\"\",\"\",IF($AP90=$Y114,$Z114&\"(\"&SUM($Z115:$Z118)&\")\",IF($AP90=$AC114,$AB114&\"(\"&SUM($AB115:$AB118)&\")\",\"\")))","v":"1(5)"},{"$f":"IF($Z121=\"\",\"\",IF($AP90=$Y121,$Z121&\"(\"&SUM($Z122:$Z125)&\")\",IF($AP90=$AC121,$AB121&\"(\"&SUM($AB122:$AB125)&\")\",\"\")))","v":""},{"$f":"IF($Z128=\"\",\"\",IF($AP90=$Y128,$Z128&\"(\"&SUM($Z129:$Z132)&\")\",IF($AP90=$AC128,$AB128&\"(\"&SUM($AB129:$AB132)&\")\",\"\")))","v":""},{"$f":"IF($Z135=\"\",\"\",IF($AP90=$Y135,$Z135&\"(\"&SUM($Z136:$Z139)&\")\",IF($AP90=$AC135,$AB135&\"(\"&SUM($AB136:$AB139)&\")\",\"\")))","v":"0(3)"},{"$f":"IF($Z142=\"\",\"\",IF($AP90=$Y142,$Z142&\"(\"&SUM($Z143:$Z146)&\")\",IF($AP90=$AC142,$AB142&\"(\"&SUM($AB143:$AB146)&\")\",\"\")))","v":""},{"$f":"IF($Z149=\"\",\"\",IF($AP90=$Y149,$Z149&\"(\"&SUM($Z150:$Z153)&\")\",IF($AP90=$AC149,$AB149&\"(\"&SUM($AB150:$AB153)&\")\",\"\")))","v":""},{"$f":"IF($Z156=\"\",\"\",IF($AP90=$Y156,$Z156&\"(\"&SUM($Z157:$Z160)&\")\",IF($AP90=$AC156,$AB156&\"(\"&SUM($AB157:$AB160)&\")\",\"\")))","v":"2(4)"},{"$f":"IF(G90=\"[---WithDraw---]\",FALSE,IF(COUNTIF(PlayerNamesWithinGroups,G90)>1,TRUE,FALSE))","v":false},{"$f":"AND(LEFT($AP90,1) = \"(\", RIGHT($AP90,1) =\")\")","v":false},{"$f":"IF(OR($AO90=$AO89,$AO90=$AO91),TRUE,FALSE)","v":false}]
[null,5,{"$f":"IF(AL92=\"\",\"\",RANK(F91,F87:F91)*1000+ROW())","v":2091},{"$f":"IF(J91=\"\",\"\",H91*CritClassEq1_Points+M91*CritClassEq1_DiffRencontres+P91*CritClassEq1_DiffMatches+S91*CritClassEq1_DiffButs+N91*CritClassEq1_Matches+Q91*CritClassEq1_Attaque)","v":177147000000000},{"$f":"IF(J91=\"\",\"\",Nb_Diff_Part(D91,D87:D91,G91,G87:G91,AK93:AK156)*CritClassEq_DiffPart+Nb_Goal_Part(D91,D87:D91,G91,G87:G91,Y93:AC156)*CritClassEq_IndsPart+Nb_Score_Part(D91,D87:D91,G91,G87:G91,Y93:AC156)*CritClassEq_WinsPart+Nb_GoalTeam_Part(D91,D87:D91,G91,G87:G91,Y93:AC156)*CritClassEq_GoalPart+Nb_ScoreTeam_Part(D91,D87:D91,G91,G87:G91,Y93:AC156)*CritClassEq_ScorePart)","v":0},{"$f":"IF(J91=\"\",\"\",D91+E91+H91*CritClassEq2_Points+M91*CritClassEq2_DiffRencontres+P91*CritClassEq2_DiffMatches+S91*CritClassEq2_DiffButs+N91*CritClassEq2_Matches+Q91*CritClassEq2_Attaque)","v":177147079379786},"TSC Royal 78 Kaisermühlen 2 (roy)",{"$f":"IF(AL92=\"\",\"\",(J91*Points_Victoire)+K91*Points_Null)","v":9},{"$f":"IF(J91=\"\",\"\",SUM(J91:L91))","v":4},{"$f":"IF(AL92=\"\",\"\",COUNTIF(AE93:AE160,G91))","v":3},{"$f":"IF(AL92=\"\",\"\",COUNTIF(AF93:AG160,G91))","v":0},{"$f":"IF(AL92=\"\",\"\",COUNTIF(AH93:AH160,G91))","v":1},{"$f":"IF(AL92=\"\",\"\",J91-L91)","v":2},{"$f":"IF(AL92=\"\",\"\",SUMIF(Y93:Y160,G91,Z93:Z160)+SUMIF(AC93:AC160,G91,AB93:AB160))","v":8},{"$f":"IF(AL92=\"\",\"\",SUMIF(Y93:Y160,G91,AB93:AB160)+SUMIF(AC93:AC160,G91,Z93:AL160))","v":5},{"$f":"IF(AL92=\"\",\"\",N91-O91)","v":3},{"$f":"IF(AL92=\"\",\"\",SUMIF(Y93:Y160,G91,AI93:AI160)+SUMIF(AC93:AC160,G91,AJ93:AJ160))","v":26},{"$f":"IF(AL92=\"\",\"\",SUMIF(Y93:Y160,G91,AJ93:AJ160)+SUMIF(AC93:AC160,G91,AI93:AI160))","v":34},{"$f":"IF(AL92=\"\",\"\",Q91-R91)","v":-8},null,null,null,null,null,null,null,null,null,null,null,null,null,null,null,null,null,null,{"$f":"IF(AL92=\"\",\"\",SMALL(C87:C91,5))","v":5090},null,null,{"$f":"IF(AL92=\"\",\"\",INT(AL91/1000))","v":5},{"$f":"IF(AL92=\"\",IF(HidePlayerFormulas,\"\",\"(\"&G91&\")\"),VLOOKUP(AL91,C87:S91,5,FALSE))","v":"Roligans Ilioupolis TSC (rol)"},{"$f":"VLOOKUP(AL91,C87:S91,6,FALSE)","v":0},{"$f":"VLOOKUP(AL91,C87:S91,7,FALSE)","v":4},{"$f":"VLOOKUP(AL91,C87:S91,8,FALSE)","v":0},{"$f":"VLOOKUP(AL91,C87:S91,9,FALSE)","v":0},{"$f":"VLOOKUP(AL91,C87:S91,10,FALSE)","v":4},{"$f":"VLOOKUP(AL91,C87:S91,11,FALSE)","v":-4},{"$f":"VLOOKUP(AL91,C87:S91,12,FALSE)","v":2},{"$f":"VLOOKUP(AL91,C87:S91,13,FALSE)","v":10},{"$f":"VLOOKUP(AL91,C87:S91,14,FALSE)","v":-8},{"$f":"VLOOKUP(AL91,C87:S91,15,FALSE)","v":22},{"$f":"VLOOKUP(AL91,C87:S91,16,FALSE)","v":44},{"$f":"VLOOKUP(AL91,C87:S91,17,FALSE)","v":-22},{"$f":"IF($Z93=\"\",\"\",IF($AP91=$Y93,$Z93&\"(\"&SUM($Z94:$Z97)&\")\",IF($AP91=$AC93,$AB93&\"(\"&SUM($AB94:$AB97)&\")\",\"\")))","v":""},{"$f":"IF($Z100=\"\",\"\",IF($AP91=$Y100,$Z100&\"(\"&SUM($Z101:$Z104)&\")\",IF($AP91=$AC100,$AB100&\"(\"&SUM($AB101:$AB104)&\")\",\"\")))","v":""},{"$f":"IF($Z107=\"\",\"\",IF($AP91=$Y107,$Z107&\"(\"&SUM($Z108:$Z111)&\")\",IF($AP91=$AC107,$AB107&\"(\"&SUM($AB108:$AB111)&\")\",\"\")))","v":"1(4)"},{"$f":"IF($Z114=\"\",\"\",IF($AP91=$Y114,$Z114&\"(\"&SUM($Z115:$Z118)&\")\",IF($AP91=$AC114,$AB114&\"(\"&SUM($AB115:$AB118)&\")\",\"\")))","v":""},{"$f":"IF($Z121=\"\",\"\",IF($AP91=$Y121,$Z121&\"(\"&SUM($Z122:$Z125)&\")\",IF($AP91=$AC121,$AB121&\"(\"&SUM($AB122:$AB125)&\")\",\"\")))","v":"0(8)"},{"$f":"IF($Z128=\"\",\"\",IF($AP91=$Y128,$Z128&\"(\"&SUM($Z129:$Z132)&\")\",IF($AP91=$AC128,$AB128&\"(\"&SUM($AB129:$AB132)&\")\",\"\")))","v":""},{"$f":"IF($Z135=\"\",\"\",IF($AP91=$Y135,$Z135&\"(\"&SUM($Z136:$Z139)&\")\",IF($AP91=$AC135,$AB135&\"(\"&SUM($AB136:$AB139)&\")\",\"\")))","v":""},{"$f":"IF($Z142=\"\",\"\",IF($AP91=$Y142,$Z142&\"(\"&SUM($Z143:$Z146)&\")\",IF($AP91=$AC142,$AB142&\"(\"&SUM($AB143:$AB146)&\")\",\"\")))","v":"0(5)"},{"$f":"IF($Z149=\"\",\"\",IF($AP91=$Y149,$Z149&\"(\"&SUM($Z150:$Z153)&\")\",IF($AP91=$AC149,$AB149&\"(\"&SUM($AB150:$AB153)&\")\",\"\")))","v":""},{"$f":"IF($Z156=\"\",\"\",IF($AP91=$Y156,$Z156&\"(\"&SUM($Z157:$Z160)&\")\",IF($AP91=$AC156,$AB156&\"(\"&SUM($AB157:$AB160)&\")\",\"\")))","v":"1(5)"},{"$f":"IF(G91=\"[---WithDraw---]\",FALSE,IF(COUNTIF(PlayerNamesWithinGroups,G91)>1,TRUE,FALSE))","v":false},{"$f":"AND(LEFT($AP91,1) = \"(\", RIGHT($AP91,1) =\")\")","v":false},{"$f":"IF(OR($AO91=$AO90,$AO91=$AO92),TRUE,FALSE)","v":false}]
[null,null,null,null,null,null,null,null,null,null,null,null,null,null,null,null,null,null,null,null,null,{"$f":"N_Heure","v":"Time"},{"$f":"N_Table","v":"Table"},{"$f":"N_Arbitre","v":"Referee"},{"$f":"N_Matches","v":"Matches"},null,null,null,null,null,null,null,null,null,null,null,null,{"$f":"IF(COUNTA(Z93:Z160)>10,\"OK\",\"\")","v":"OK"}]
[null,null,null,null,null,null,null,null,null,null,null,null,null,null,null,null,null,null,null,null,"#G1","11:40:00",null,"GCT DLF Gorizia (gor)",{"$f":"IF(G88=\"\",\"\",G88)","v":"Barbarian Mixed Team"},{"$f":"IF(OR(ISNUMBER(Z94),ISNUMBER(Z95),ISNUMBER(Z96),ISNUMBER(Z97)),4-COUNTBLANK(AI94:AI97),\"\")","v":2},"-",{"$f":"IF(OR(ISNUMBER(Z94),ISNUMBER(Z95),ISNUMBER(Z96),ISNUMBER(Z97)),4-COUNTBLANK(AJ94:AJ97),\"\")","v":1},{"$f":"IF(G89=\"\",\"\",G89)","v":"TSC Phoenix 2 (wie)"},null,{"$f":"IF(Z93=\"\",\"\",IF(Z93>AB93,Y93,IF(Z93=AB93,IF(NoDrawWithWithdraw,IF(AL93=Y93,AC93,IF(AL93=AC93,Y93,\"\")),\"\"),AC93)))","v":"Barbarian Mixed Team"},{"$f":"IF(Z93=\"\",\"\",IF(Z93=AB93,IF(NoDrawWithWithdraw,IF(AL93=Y93,\"\",IF(AL93=AC93,\"\",Y93)),Y93),\"\"))","v":""},{"$f":"IF(Z93=\"\",\"\",IF(Z93=AB93,IF(NoDrawWithWithdraw,IF(AL93=Y93,\"\",IF(AL93=AC93,\"\",AC93)),AC93),\"\"))","v":""},{"$f":"IF(Z93=\"\",\"\",IF(Z93<AB93,Y93,IF(Z93=AB93,IF(NoDrawWithWithdraw,IF(AL93=Y93,Y93,IF(AL93=AC93,AC93,\"\")),\"\"),AC93)))","v":"TSC Phoenix 2 (wie)"},{"$f":"IF(Z93=\"\",\"\",SUM(Z94:Z97))","v":7},{"$f":"IF(Z93=\"\",\"\",SUM(AB94:AB97))","v":7},{"$f":"CONCATENATE(AE93,AH93)","v":"Barbarian Mixed TeamTSC Phoenix 2 (wie)"},{"$f":"IF(COUNTIF(Y94:Y97,WithdrawLabel)>COUNTIF(AC94:AC97,WithdrawLabel),Y93,IF(COUNTIF(AC94:AC97,WithdrawLabel)>COUNTIF(Y94:Y97,WithdrawLabel),AC93,\"\"))","v":""}]
[null,null,null,null,null,null,null,null,null,null,null,null,null,null,null,null,null,null,null,null,null,null,null,null,"Daniela Grünberg (sch)",2,"-",2,"Alfred Strommer (wie)",null,{"$f":"IF(Z94=\"\",\"\",IF(Z94>AB94,Y94,IF(Z94=AB94,\"\",AC94)))","v":""},{"$f":"IF(Z94=\"\",\"\",IF(Z94=AB94,Y94,\"\"))","v":"Daniela Grünberg (sch)"},{"$f":"IF(Z94=\"\",\"\",IF(Z94=AB94,AC94,\"\"))","v":"Alfred Strommer (wie)"},{"$f":"IF(Z94=\"\",\"\",IF(Z94<AB94,Y94,IF(Z94=AB94,\"\",AC94)))","v":""},{"$f":"IF(Z94=\"\",\"\",IF(Z94>AB94,Y93,\"\"))","v":""},{"$f":"IF(Z94=\"\",\"\",IF(Z94<AB94,AC93,\"\"))","v":""},{"$f":"CONCATENATE(AE94,AH94)","v":""}]
[null,null,null,null,null,null,null,null,null,null,null,null,null,null,null,null,null,null,null,null,null,null,null,null,"Peter Erb (sub)",0,"-",3,"Gábor Baross (wie)",null,{"$f":"IF(Z95=\"\",\"\",IF(Z95>AB95,Y95,IF(Z95=AB95,\"\",AC95)))","v":"Gábor Baross (wie)"},{"$f":"IF(Z95=\"\",\"\",IF(Z95=AB95,Y95,\"\"))","v":""},{"$f":"IF(Z95=\"\",\"\",IF(Z95=AB95,AC95,\"\"))","v":""},{"$f":"IF(Z95=\"\",\"\",IF(Z95<AB95,Y95,IF(Z95=AB95,\"\",AC95)))","v":"Peter Erb (sub)"},{"$f":"IF(Z95=\"\",\"\",IF(Z95>AB95,Y93,\"\"))","v":""},{"$f":"IF(Z95=\"\",\"\",IF(Z95<AB95,AC93,\"\"))","v":"TSC Phoenix 2 (wie)"},{"$f":"CONCATENATE(AE95,AH95)","v":"Gábor Baross (wie)Peter Erb (sub)"}]
[null,null,null,null,null,null,null,null,null,null,null,null,null,null,null,null,null,null,null,null,null,null,null,null,"Marcel Schulz (sch)",3,"-",2,"Igor Ljubisavljevic (wie)",null,{"$f":"IF(Z96=\"\",\"\",IF(Z96>AB96,Y96,IF(Z96=AB96,\"\",AC96)))","v":"Marcel Schulz (sch)"},{"$f":"IF(Z96=\"\",\"\",IF(Z96=AB96,Y96,\"\"))","v":""},{"$f":"IF(Z96=\"\",\"\",IF(Z96=AB96,AC96,\"\"))","v":""},{"$f":"IF(Z96=\"\",\"\",IF(Z96<AB96,Y96,IF(Z96=AB96,\"\",AC96)))","v":"Igor Ljubisavljevic (wie)"},{"$f":"IF(Z96=\"\",\"\",IF(Z96>AB96,Y93,\"\"))","v":"Barbarian Mixed Team"},{"$f":"IF(Z96=\"\",\"\",IF(Z96<AB96,AC93,\"\"))","v":""},{"$f":"CONCATENATE(AE96,AH96)","v":"Marcel Schulz (sch)Igor Ljubisavljevic (wie)"}]
[null,null,null,null,null,null,null,null,null,null,null,null,null,null,null,null,null,null,null,null,null,null,null,null,"Fabio Domenico ()",2,"-",0,"Florian Daxböck (wie)",null,{"$f":"IF(Z97=\"\",\"\",IF(Z97>AB97,Y97,IF(Z97=AB97,\"\",AC97)))","v":"Fabio Domenico ()"},{"$f":"IF(Z97=\"\",\"\",IF(Z97=AB97,Y97,\"\"))","v":""},{"$f":"IF(Z97=\"\",\"\",IF(Z97=AB97,AC97,\"\"))","v":""},{"$f":"IF(Z97=\"\",\"\",IF(Z97<AB97,Y97,IF(Z97=AB97,\"\",AC97)))","v":"Florian Daxböck (wie)"},{"$f":"IF(Z97=\"\",\"\",IF(Z97>AB97,Y93,\"\"))","v":"Barbarian Mixed Team"},{"$f":"IF(Z97=\"\",\"\",IF(Z97<AB97,AC93,\"\"))","v":""},{"$f":"CONCATENATE(AE97,AH97)","v":"Fabio Domenico ()Florian Daxböck (wie)"}]
[null,null,null,null,null,null,null,null,null,null,null,null,null,null,null,null,null,null,null,null,null,null,null,{"$f":"N_Substitute","v":"Substitute"},"Robert Green (nfc)"]
[null,null,null,null,null,null,null,null,null,null,null,null,null,null,null,null,null,null,null,null,null,null,null,{"$f":"N_Substitute","v":"Substitute"}]
[null,null,null,null,null,null,null,null,null,null,null,null,null,null,null,null,null,null,null,null,"#G1","11:40:00",null,"TSC Phoenix (wie)",{"$f":"IF(G91=\"\",\"\",G91)","v":"TSC Royal 78 Kaisermühlen 2 (roy)"},{"$f":"IF(OR(ISNUMBER(Z101),ISNUMBER(Z102),ISNUMBER(Z103),ISNUMBER(Z104)),4-COUNTBLANK(AI101:AI104),\"\")","v":1},"-",{"$f":"IF(OR(ISNUMBER(Z101),ISNUMBER(Z102),ISNUMBER(Z103),ISNUMBER(Z104)),4-COUNTBLANK(AJ101:AJ104),\"\")","v":3},{"$f":"IF(G87=\"\",\"\",G87)","v":"ST Stembert (ste)"},null,{"$f":"IF(Z100=\"\",\"\",IF(Z100>AB100,Y100,IF(Z100=AB100,IF(NoDrawWithWithdraw,IF(AL100=Y100,AC100,IF(AL100=AC100,Y100,\"\")),\"\"),AC100)))","v":"ST Stembert (ste)"},{"$f":"IF(Z100=\"\",\"\",IF(Z100=AB100,IF(NoDrawWithWithdraw,IF(AL100=Y100,\"\",IF(AL100=AC100,\"\",Y100)),Y100),\"\"))","v":""},{"$f":"IF(Z100=\"\",\"\",IF(Z100=AB100,IF(NoDrawWithWithdraw,IF(AL100=Y100,\"\",IF(AL100=AC100,\"\",AC100)),AC100),\"\"))","v":""},{"$f":"IF(Z100=\"\",\"\",IF(Z100<AB100,Y100,IF(Z100=AB100,IF(NoDrawWithWithdraw,IF(AL100=Y100,Y100,IF(AL100=AC100,AC100,\"\")),\"\"),AC100)))","v":"TSC Royal 78 Kaisermühlen 2 (roy)"},{"$f":"IF(Z100=\"\",\"\",SUM(Z101:Z104))","v":2},{"$f":"IF(Z100=\"\",\"\",SUM(AB101:AB104))","v":18},{"$f":"CONCATENATE(AE100,AH100)","v":"ST Stembert (ste)TSC Royal 78 Kaisermühlen 2 (roy)"},{"$f":"IF(COUNTIF(Y101:Y104,WithdrawLabel)>COUNTIF(AC101:AC104,WithdrawLabel),Y100,IF(COUNTIF(AC101:AC104,WithdrawLabel)>COUNTIF(Y101:Y104,WithdrawLabel),AC100,\"\"))","v":""}]
[null,null,null,null,null,null,null,null,null,null,null,null,null,null,null,null,null,null,null,null,null,null,null,null,"Christian Hausmann (roy)",0,"-",8,"Noah Janssens (ste)",null,{"$f":"IF(Z101=\"\",\"\",IF(Z101>AB101,Y101,IF(Z101=AB101,\"\",AC101)))","v":"Noah Janssens (ste)"},{"$f":"IF(Z101=\"\",\"\",IF(Z101=AB101,Y101,\"\"))","v":""},{"$f":"IF(Z101=\"\",\"\",IF(Z101=AB101,AC101,\"\"))","v":""},{"$f":"IF(Z101=\"\",\"\",IF(Z101<AB101,Y101,IF(Z101=AB101,\"\",AC101)))","v":"Christian Hausmann (roy)"},{"$f":"IF(Z101=\"\",\"\",IF(Z101>AB101,Y100,\"\"))","v":""},{"$f":"IF(Z101=\"\",\"\",IF(Z101<AB101,AC100,\"\"))","v":"ST Stembert (ste)"},{"$f":"CONCATENATE(AE101,AH101)","v":"Noah Janssens (ste)Christian Hausmann (roy)"}]
[null,null,null,null,null,null,null,null,null,null,null,null,null,null,null,null,null,null,null,null,null,null,null,null,"Robert Lenz (roy)",0,"-",2,"Sébastien Rochez (ste)",null,{"$f":"IF(Z102=\"\",\"\",IF(Z102>AB102,Y102,IF(Z102=AB102,\"\",AC102)))","v":"Sébastien Rochez (ste)"},{"$f":"IF(Z102=\"\",\"\",IF(Z102=AB102,Y102,\"\"))","v":""},{"$f":"IF(Z102=\"\",\"\",IF(Z102=AB102,AC102,\"\"))","v":""},{"$f":"IF(Z102=\"\",\"\",IF(Z102<AB102,Y102,IF(Z102=AB102,\"\",AC102)))","v":"Robert Lenz (roy)"},{"$f":"IF(Z102=\"\",\"\",IF(Z102>AB102,Y100,\"\"))","v":""},{"$f":"IF(Z102=\"\",\"\",IF(Z102<AB102,AC100,\"\"))","v":"ST Stembert (ste)"},{"$f":"CONCATENATE(AE102,AH102)","v":"Sébastien Rochez (ste)Robert Lenz (roy)"}]
[null,null,null,null,null,null,null,null,null,null,null,null,null,null,null,null,null,null,null,null,null,null,null,null,"David Scherbantin (roy)",0,"-",7,"John Zammit (ste)",null,{"$f":"IF(Z103=\"\",\"\",IF(Z103>AB103,Y103,IF(Z103=AB103,\"\",AC103)))","v":"John Zammit (ste)"},{"$f":"IF(Z103=\"\",\"\",IF(Z103=AB103,Y103,\"\"))","v":""},{"$f":"IF(Z103=\"\",\"\",IF(Z103=AB103,AC103,\"\"))","v":""},{"$f":"IF(Z103=\"\",\"\",IF(Z103<AB103,Y103,IF(Z103=AB103,\"\",AC103)))","v":"David Scherbantin (roy)"},{"$f":"IF(Z103=\"\",\"\",IF(Z103>AB103,Y100,\"\"))","v":""},{"$f":"IF(Z103=\"\",\"\",IF(Z103<AB103,AC100,\"\"))","v":"ST Stembert (ste)"},{"$f":"CONCATENATE(AE103,AH103)","v":"John Zammit (ste)David Scherbantin (roy)"}]
[null,null,null,null,null,null,null,null,null,null,null,null,null,null,null,null,null,null,null,null,null,null,null,null,"Heinz Eder (roy)",2,"-",1,"Pascal Scheen (ste)",null,{"$f":"IF(Z104=\"\",\"\",IF(Z104>AB104,Y104,IF(Z104=AB104,\"\",AC104)))","v":"Heinz Eder (roy)"},{"$f":"IF(Z104=\"\",\"\",IF(Z104=AB104,Y104,\"\"))","v":""},{"$f":"IF(Z104=\"\",\"\",IF(Z104=AB104,AC104,\"\"))","v":""},{"$f":"IF(Z104=\"\",\"\",IF(Z104<AB104,Y104,IF(Z104=AB104,\"\",AC104)))","v":"Pascal Scheen (ste)"},{"$f":"IF(Z104=\"\",\"\",IF(Z104>AB104,Y100,\"\"))","v":"TSC Royal 78 Kaisermühlen 2 (roy)"},{"$f":"IF(Z104=\"\",\"\",IF(Z104<AB104,AC100,\"\"))","v":""},{"$f":"CONCATENATE(AE104,AH104)","v":"Heinz Eder (roy)Pascal Scheen (ste)"}]
[null,null,null,null,null,null,null,null,null,null,null,null,null,null,null,null,null,null,null,null,null,null,null,{"$f":"N_Substitute","v":"Substitute"},"Karl Vranovitz (roy)"]
[null,null,null,null,null,null,null,null,null,null,null,null,null,null,null,null,null,null,null,null,null,null,null,{"$f":"N_Substitute","v":"Substitute"}]
[null,null,null,null,null,null,null,null,null,null,null,null,null,null,null,null,null,null,null,null,"#G2","11:00:00",null,"GCT DLF Gorizia (gor)",{"$f":"IF(G88=\"\",\"\",G88)","v":"Barbarian Mixed Team"},{"$f":"IF(OR(ISNUMBER(Z108),ISNUMBER(Z109),ISNUMBER(Z110),ISNUMBER(Z111)),4-COUNTBLANK(AI108:AI111),\"\")","v":2},"-",{"$f":"IF(OR(ISNUMBER(Z108),ISNUMBER(Z109),ISNUMBER(Z110),ISNUMBER(Z111)),4-COUNTBLANK(AJ108:AJ111),\"\")","v":1},{"$f":"IF(G90=\"\",\"\",G90)","v":"Roligans Ilioupolis TSC (rol)"},null,{"$f":"IF(Z107=\"\",\"\",IF(Z107>AB107,Y107,IF(Z107=AB107,IF(NoDrawWithWithdraw,IF(AL107=Y107,AC107,IF(AL107=AC107,Y107,\"\")),\"\"),AC107)))","v":"Barbarian Mixed Team"},{"$f":"IF(Z107=\"\",\"\",IF(Z107=AB107,IF(NoDrawWithWithdraw,IF(AL107=Y107,\"\",IF(AL107=AC107,\"\",Y107)),Y107),\"\"))","v":""},{"$f":"IF(Z107=\"\",\"\",IF(Z107=AB107,IF(NoDrawWithWithdraw,IF(AL107=Y107,\"\",IF(AL107=AC107,\"\",AC107)),AC107),\"\"))","v":""},{"$f":"IF(Z107=\"\",\"\",IF(Z107<AB107,Y107,IF(Z107=AB107,IF(NoDrawWithWithdraw,IF(AL107=Y107,Y107,IF(AL107=AC107,AC107,\"\")),\"\"),AC107)))","v":"Roligans Ilioupolis TSC (rol)"},{"$f":"IF(Z107=\"\",\"\",SUM(Z108:Z111))","v":10},{"$f":"IF(Z107=\"\",\"\",SUM(AB108:AB111))","v":4},{"$f":"CONCATENATE(AE107,AH107)","v":"Barbarian Mixed TeamRoligans Ilioupolis TSC (rol)"},{"$f":"IF(COUNTIF(Y108:Y111,WithdrawLabel)>COUNTIF(AC108:AC111,WithdrawLabel),Y107,IF(COUNTIF(AC108:AC111,WithdrawLabel)>COUNTIF(Y108:Y111,WithdrawLabel),AC107,\"\"))","v":""}]
[null,null,null,null,null,null,null,null,null,null,null,null,null,null,null,null,null,null,null,null,null,null,null,null,"Robert Green (nfc)",0,"-",0,"Georgios Dimakeas (rol)",null,{"$f":"IF(Z108=\"\",\"\",IF(Z108>AB108,Y108,IF(Z108=AB108,\"\",AC108)))","v":""},{"$f":"IF(Z108=\"\",\"\",IF(Z108=AB108,Y108,\"\"))","v":"Robert Green (nfc)"},{"$f":"IF(Z108=\"\",\"\",IF(Z108=AB108,AC108,\"\"))","v":"Georgios Dimakeas (rol)"},{"$f":"IF(Z108=\"\",\"\",IF(Z108<AB108,Y108,IF(Z108=AB108,\"\",AC108)))","v":""},{"$f":"IF(Z108=\"\",\"\",IF(Z108>AB108,Y107,\"\"))","v":""},{"$f":"IF(Z108=\"\",\"\",IF(Z108<AB108,AC107,\"\"))","v":""},{"$f":"CONCATENATE(AE108,AH108)","v":""}]
[null,null,null,null,null,null,null,null,null,null,null,null,null,null,null,null,null,null,null,null,null,null,null,null,"Daniela Grünberg (sch)",3,"-",0,"Apollon Dimakeas (rol)",null,{"$f":"IF(Z109=\"\",\"\",IF(Z109>AB109,Y109,IF(Z109=AB109,\"\",AC109)))","v":"Daniela Grünberg (sch)"},{"$f":"IF(Z109=\"\",\"\",IF(Z109=AB109,Y109,\"\"))","v":""},{"$f":"IF(Z109=\"\",\"\",IF(Z109=AB109,AC109,\"\"))","v":""},{"$f":"IF(Z109=\"\",\"\",IF(Z109<AB109,Y109,IF(Z109=AB109,\"\",AC109)))","v":"Apollon Dimakeas (rol)"},{"$f":"IF(Z109=\"\",\"\",IF(Z109>AB109,Y107,\"\"))","v":"Barbarian Mixed Team"},{"$f":"IF(Z109=\"\",\"\",IF(Z109<AB109,AC107,\"\"))","v":""},{"$f":"CONCATENATE(AE109,AH109)","v":"Daniela Grünberg (sch)Apollon Dimakeas (rol)"}]
[null,null,null,null,null,null,null,null,null,null,null,null,null,null,null,null,null,null,null,null,null,null,null,null,"Marcel Schulz (sch)",2,"-",4,"Athanasios Kordantonopoulos (rol)",null,{"$f":"IF(Z110=\"\",\"\",IF(Z110>AB110,Y110,IF(Z110=AB110,\"\",AC110)))","v":"Athanasios Kordantonopoulos (rol)"},{"$f":"IF(Z110=\"\",\"\",IF(Z110=AB110,Y110,\"\"))","v":""},{"$f":"IF(Z110=\"\",\"\",IF(Z110=AB110,AC110,\"\"))","v":""},{"$f":"IF(Z110=\"\",\"\",IF(Z110<AB110,Y110,IF(Z110=AB110,\"\",AC110)))","v":"Marcel Schulz (sch)"},{"$f":"IF(Z110=\"\",\"\",IF(Z110>AB110,Y107,\"\"))","v":""},{"$f":"IF(Z110=\"\",\"\",IF(Z110<AB110,AC107,\"\"))","v":"Roligans Ilioupolis TSC (rol)"},{"$f":"CONCATENATE(AE110,AH110)","v":"Athanasios Kordantonopoulos (rol)Marcel Schulz (sch)"}]
[null,null,null,null,null,null,null,null,null,null,null,null,null,null,null,null,null,null,null,null,null,null,null,null,"Fabio Domenico ()",5,"-",0,"Phillipos Kordantonopoulos (rol)",null,{"$f":"IF(Z111=\"\",\"\",IF(Z111>AB111,Y111,IF(Z111=AB111,\"\",AC111)))","v":"Fabio Domenico ()"},{"$f":"IF(Z111=\"\",\"\",IF(Z111=AB111,Y111,\"\"))","v":""},{"$f":"IF(Z111=\"\",\"\",IF(Z111=AB111,AC111,\"\"))","v":""},{"$f":"IF(Z111=\"\",\"\",IF(Z111<AB111,Y111,IF(Z111=AB111,\"\",AC111)))","v":"Phillipos Kordantonopoulos (rol)"},{"$f":"IF(Z111=\"\",\"\",IF(Z111>AB111,Y107,\"\"))","v":"Barbarian Mixed Team"},{"$f":"IF(Z111=\"\",\"\",IF(Z111<AB111,AC107,\"\"))","v":""},{"$f":"CONCATENATE(AE111,AH111)","v":"Fabio Domenico ()Phillipos Kordantonopoulos (rol)"}]
[null,null,null,null,null,null,null,null,null,null,null,null,null,null,null,null,null,null,null,null,null,null,null,{"$f":"N_Substitute","v":"Substitute"}]
[null,null,null,null,null,null,null,null,null,null,null,null,null,null,null,null,null,null,null,null,null,null,null,{"$f":"N_Substitute","v":"Substitute"}]
[null,null,null,null,null,null,null,null,null,null,null,null,null,null,null,null,null,null,null,null,"#G2","08:30:00",null,"Bormla SC (bor)",{"$f":"IF(G89=\"\",\"\",G89)","v":"TSC Phoenix 2 (wie)"},{"$f":"IF(OR(ISNUMBER(Z115),ISNUMBER(Z116),ISNUMBER(Z117),ISNUMBER(Z118)),4-COUNTBLANK(AI115:AI118),\"\")","v":1},"-",{"$f":"IF(OR(ISNUMBER(Z115),ISNUMBER(Z116),ISNUMBER(Z117),ISNUMBER(Z118)),4-COUNTBLANK(AJ115:AJ118),\"\")","v":2},{"$f":"IF(G91=\"\",\"\",G91)","v":"TSC Royal 78 Kaisermühlen 2 (roy)"},null,{"$f":"IF(Z114=\"\",\"\",IF(Z114>AB114,Y114,IF(Z114=AB114,IF(NoDrawWithWithdraw,IF(AL114=Y114,AC114,IF(AL114=AC114,Y114,\"\")),\"\"),AC114)))","v":"TSC Royal 78 Kaisermühlen 2 (roy)"},{"$f":"IF(Z114=\"\",\"\",IF(Z114=AB114,IF(NoDrawWithWithdraw,IF(AL114=Y114,\"\",IF(AL114=AC114,\"\",Y114)),Y114),\"\"))","v":""},{"$f":"IF(Z114=\"\",\"\",IF(Z114=AB114,IF(NoDrawWithWithdraw,IF(AL114=Y114,\"\",IF(AL114=AC114,\"\",AC114)),AC114),\"\"))","v":""},{"$f":"IF(Z114=\"\",\"\",IF(Z114<AB114,Y114,IF(Z114=AB114,IF(NoDrawWithWithdraw,IF(AL114=Y114,Y114,IF(AL114=AC114,AC114,\"\")),\"\"),AC114)))","v":"TSC Phoenix 2 (wie)"},{"$f":"IF(Z114=\"\",\"\",SUM(Z115:Z118))","v":5},{"$f":"IF(Z114=\"\",\"\",SUM(AB115:AB118))","v":5},{"$f":"CONCATENATE(AE114,AH114)","v":"TSC Royal 78 Kaisermühlen 2 (roy)TSC Phoenix 2 (wie)"},{"$f":"IF(COUNTIF(Y115:Y118,WithdrawLabel)>COUNTIF(AC115:AC118,WithdrawLabel),Y114,IF(COUNTIF(AC115:AC118,WithdrawLabel)>COUNTIF(Y115:Y118,WithdrawLabel),AC114,\"\"))","v":""}]
[null,null,null,null,null,null,null,null,null,null,null,null,null,null,null,null,null,null,null,null,null,null,null,null,"Gábor Baross (wie)",1,"-",2,"Eder Heinz (roy)",null,{"$f":"IF(Z115=\"\",\"\",IF(Z115>AB115,Y115,IF(Z115=AB115,\"\",AC115)))","v":"Eder Heinz (roy)"},{"$f":"IF(Z115=\"\",\"\",IF(Z115=AB115,Y115,\"\"))","v":""},{"$f":"IF(Z115=\"\",\"\",IF(Z115=AB115,AC115,\"\"))","v":""},{"$f":"IF(Z115=\"\",\"\",IF(Z115<AB115,Y115,IF(Z115=AB115,\"\",AC115)))","v":"Gábor Baross (wie)"},{"$f":"IF(Z115=\"\",\"\",IF(Z115>AB115,Y114,\"\"))","v":""},{"$f":"IF(Z115=\"\",\"\",IF(Z115<AB115,AC114,\"\"))","v":"TSC Royal 78 Kaisermühlen 2 (roy)"},{"$f":"CONCATENATE(AE115,AH115)","v":"Eder Heinz (roy)Gábor Baross (wie)"}]
[null,null,null,null,null,null,null,null,null,null,null,null,null,null,null,null,null,null,null,null,null,null,null,null,"Igor Ljubisavljevic (wie)",4,"-",0,"Christian Hausmann (roy)",null,{"$f":"IF(Z116=\"\",\"\",IF(Z116>AB116,Y116,IF(Z116=AB116,\"\",AC116)))","v":"Igor Ljubisavljevic (wie)"},{"$f":"IF(Z116=\"\",\"\",IF(Z116=AB116,Y116,\"\"))","v":""},{"$f":"IF(Z116=\"\",\"\",IF(Z116=AB116,AC116,\"\"))","v":""},{"$f":"IF(Z116=\"\",\"\",IF(Z116<AB116,Y116,IF(Z116=AB116,\"\",AC116)))","v":"Christian Hausmann (roy)"},{"$f":"IF(Z116=\"\",\"\",IF(Z116>AB116,Y114,\"\"))","v":"TSC Phoenix 2 (wie)"},{"$f":"IF(Z116=\"\",\"\",IF(Z116<AB116,AC114,\"\"))","v":""},{"$f":"CONCATENATE(AE116,AH116)","v":"Igor Ljubisavljevic (wie)Christian Hausmann (roy)"}]
[null,null,null,null,null,null,null,null,null,null,null,null,null,null,null,null,null,null,null,null,null,null,null,null,"Alfred Strommer (wie)",0,"-",3,"Robert Lenz (roy)",null,{"$f":"IF(Z117=\"\",\"\",IF(Z117>AB117,Y117,IF(Z117=AB117,\"\",AC117)))","v":"Robert Lenz (roy)"},{"$f":"IF(Z117=\"\",\"\",IF(Z117=AB117,Y117,\"\"))","v":""},{"$f":"IF(Z117=\"\",\"\",IF(Z117=AB117,AC117,\"\"))","v":""},{"$f":"IF(Z117=\"\",\"\",IF(Z117<AB117,Y117,IF(Z117=AB117,\"\",AC117)))","v":"Alfred Strommer (wie)"},{"$f":"IF(Z117=\"\",\"\",IF(Z117>AB117,Y114,\"\"))","v":""},{"$f":"IF(Z117=\"\",\"\",IF(Z117<AB117,AC114,\"\"))","v":"TSC Royal 78 Kaisermühlen 2 (roy)"},{"$f":"CONCATENATE(AE117,AH117)","v":"Robert Lenz (roy)Alfred Strommer (wie)"}]
[null,null,null,null,null,null,null,null,null,null,null,null,null,null,null,null,null,null,null,null,null,null,null,null,"Florian Daxböck (wie)",0,"-",0,"Karl Vranovitz (roy)",null,{"$f":"IF(Z118=\"\",\"\",IF(Z118>AB118,Y118,IF(Z118=AB118,\"\",AC118)))","v":""},{"$f":"IF(Z118=\"\",\"\",IF(Z118=AB118,Y118,\"\"))","v":"Florian Daxböck (wie)"},{"$f":"IF(Z118=\"\",\"\",IF(Z118=AB118,AC118,\"\"))","v":"Karl Vranovitz (roy)"},{"$f":"IF(Z118=\"\",\"\",IF(Z118<AB118,Y118,IF(Z118=AB118,\"\",AC118)))","v":""},{"$f":"IF(Z118=\"\",\"\",IF(Z118>AB118,Y114,\"\"))","v":""},{"$f":"IF(Z118=\"\",\"\",IF(Z118<AB118,AC114,\"\"))","v":""},{"$f":"CONCATENATE(AE118,AH118)","v":""}]
[null,null,null,null,null,null,null,null,null,null,null,null,null,null,null,null,null,null,null,null,null,null,null,{"$f":"N_Substitute","v":"Substitute"}]
[null,null,null,null,null,null,null,null,null,null,null,null,null,null,null,null,null,null,null,null,null,null,null,{"$f":"N_Substitute","v":"Substitute"}]
[null,null,null,null,null,null,null,null,null,null,null,null,null,null,null,null,null,null,null,null,"#G3","13:20:00",null,"TSC Phoenix 2 (wie)",{"$f":"IF(G90=\"\",\"\",G90)","v":"Roligans Ilioupolis TSC (rol)"},{"$f":"IF(OR(ISNUMBER(Z122),ISNUMBER(Z123),ISNUMBER(Z124),ISNUMBER(Z125)),4-COUNTBLANK(AI122:AI125),\"\")","v":0},"-",{"$f":"IF(OR(ISNUMBER(Z122),ISNUMBER(Z123),ISNUMBER(Z124),ISNUMBER(Z125)),4-COUNTBLANK(AJ122:AJ125),\"\")","v":3},{"$f":"IF(G87=\"\",\"\",G87)","v":"ST Stembert (ste)"},null,{"$f":"IF(Z121=\"\",\"\",IF(Z121>AB121,Y121,IF(Z121=AB121,IF(NoDrawWithWithdraw,IF(AL121=Y121,AC121,IF(AL121=AC121,Y121,\"\")),\"\"),AC121)))","v":"ST Stembert (ste)"},{"$f":"IF(Z121=\"\",\"\",IF(Z121=AB121,IF(NoDrawWithWithdraw,IF(AL121=Y121,\"\",IF(AL121=AC121,\"\",Y121)),Y121),\"\"))","v":""},{"$f":"IF(Z121=\"\",\"\",IF(Z121=AB121,IF(NoDrawWithWithdraw,IF(AL121=Y121,\"\",IF(AL121=AC121,\"\",AC121)),AC121),\"\"))","v":""},{"$f":"IF(Z121=\"\",\"\",IF(Z121<AB121,Y121,IF(Z121=AB121,IF(NoDrawWithWithdraw,IF(AL121=Y121,Y121,IF(AL121=AC121,AC121,\"\")),\"\"),AC121)))","v":"Roligans Ilioupolis TSC (rol)"},{"$f":"IF(Z121=\"\",\"\",SUM(Z122:Z125))","v":8},{"$f":"IF(Z121=\"\",\"\",SUM(AB122:AB125))","v":18},{"$f":"CONCATENATE(AE121,AH121)","v":"ST Stembert (ste)Roligans Ilioupolis TSC (rol)"},{"$f":"IF(COUNTIF(Y122:Y125,WithdrawLabel)>COUNTIF(AC122:AC125,WithdrawLabel),Y121,IF(COUNTIF(AC122:AC125,WithdrawLabel)>COUNTIF(Y122:Y125,WithdrawLabel),AC121,\"\"))","v":""}]
[null,null,null,null,null,null,null,null,null,null,null,null,null,null,null,null,null,null,null,null,null,null,null,null,"Georgios Dimakeas (rol)",3,"-",8,"Pascal Scheen (ste)",null,{"$f":"IF(Z122=\"\",\"\",IF(Z122>AB122,Y122,IF(Z122=AB122,\"\",AC122)))","v":"Pascal Scheen (ste)"},{"$f":"IF(Z122=\"\",\"\",IF(Z122=AB122,Y122,\"\"))","v":""},{"$f":"IF(Z122=\"\",\"\",IF(Z122=AB122,AC122,\"\"))","v":""},{"$f":"IF(Z122=\"\",\"\",IF(Z122<AB122,Y122,IF(Z122=AB122,\"\",AC122)))","v":"Georgios Dimakeas (rol)"},{"$f":"IF(Z122=\"\",\"\",IF(Z122>AB122,Y121,\"\"))","v":""},{"$f":"IF(Z122=\"\",\"\",IF(Z122<AB122,AC121,\"\"))","v":"ST Stembert (ste)"},{"$f":"CONCATENATE(AE122,AH122)","v":"Pascal Scheen (ste)Georgios Dimakeas (rol)"}]
[null,null,null,null,null,null,null,null,null,null,null,null,null,null,null,null,null,null,null,null,null,null,null,null,"Apollon Dimakeas (rol)",0,"-",3,"John Zammit (ste)",null,{"$f":"IF(Z123=\"\",\"\",IF(Z123>AB123,Y123,IF(Z123=AB123,\"\",AC123)))","v":"John Zammit (ste)"},{"$f":"IF(Z123=\"\",\"\",IF(Z123=AB123,Y123,\"\"))","v":""},{"$f":"IF(Z123=\"\",\"\",IF(Z123=AB123,AC123,\"\"))","v":""},{"$f":"IF(Z123=\"\",\"\",IF(Z123<AB123,Y123,IF(Z123=AB123,\"\",AC123)))","v":"Apollon Dimakeas (rol)"},{"$f":"IF(Z123=\"\",\"\",IF(Z123>AB123,Y121,\"\"))","v":""},{"$f":"IF(Z123=\"\",\"\",IF(Z123<AB123,AC121,\"\"))","v":"ST Stembert (ste)"},{"$f":"CONCATENATE(AE123,AH123)","v":"John Zammit (ste)Apollon Dimakeas (rol)"}]
[null,null,null,null,null,null,null,null,null,null,null,null,null,null,null,null,null,null,null,null,null,null,null,null,"Athanasios Kordantonopoulos (rol)",3,"-",3,"Sébastien Rochez (ste)",null,{"$f":"IF(Z124=\"\",\"\",IF(Z124>AB124,Y124,IF(Z124=AB124,\"\",AC124)))","v":""},{"$f":"IF(Z124=\"\",\"\",IF(Z124=AB124,Y124,\"\"))","v":"Athanasios Kordantonopoulos (rol)"},{"$f":"IF(Z124=\"\",\"\",IF(Z124=AB124,AC124,\"\"))","v":"Sébastien Rochez (ste)"},{"$f":"IF(Z124=\"\",\"\",IF(Z124<AB124,Y124,IF(Z124=AB124,\"\",AC124)))","v":""},{"$f":"IF(Z124=\"\",\"\",IF(Z124>AB124,Y121,\"\"))","v":""},{"$f":"IF(Z124=\"\",\"\",IF(Z124<AB124,AC121,\"\"))","v":""},{"$f":"CONCATENATE(AE124,AH124)","v":""}]
[null,null,null,null,null,null,null,null,null,null,null,null,null,null,null,null,null,null,null,null,null,null,null,null,"Phillipos Kordantonopoulos (rol)",2,"-",4,"Noah Janssens (ste)",null,{"$f":"IF(Z125=\"\",\"\",IF(Z125>AB125,Y125,IF(Z125=AB125,\"\",AC125)))","v":"Noah Janssens (ste)"},{"$f":"IF(Z125=\"\",\"\",IF(Z125=AB125,Y125,\"\"))","v":""},{"$f":"IF(Z125=\"\",\"\",IF(Z125=AB125,AC125,\"\"))","v":""},{"$f":"IF(Z125=\"\",\"\",IF(Z125<AB125,Y125,IF(Z125=AB125,\"\",AC125)))","v":"Phillipos Kordantonopoulos (rol)"},{"$f":"IF(Z125=\"\",\"\",IF(Z125>AB125,Y121,\"\"))","v":""},{"$f":"IF(Z125=\"\",\"\",IF(Z125<AB125,AC121,\"\"))","v":"ST Stembert (ste)"},{"$f":"CONCATENATE(AE125,AH125)","v":"Noah Janssens (ste)Phillipos Kordantonopoulos (rol)"}]
[null,null,null,null,null,null,null,null,null,null,null,null,null,null,null,null,null,null,null,null,null,null,null,{"$f":"N_Substitute","v":"Substitute"}]
[null,null,null,null,null,null,null,null,null,null,null,null,null,null,null,null,null,null,null,null,null,null,null,{"$f":"N_Substitute","v":"Substitute"}]
[null,null,null,null,null,null,null,null,null,null,null,null,null,null,null,null,null,null,null,null,"#G3","09:20:00",null,null,{"$f":"IF(G91=\"\",\"\",G91)","v":"TSC Royal 78 Kaisermühlen 2 (roy)"},{"$f":"IF(OR(ISNUMBER(Z129),ISNUMBER(Z130),ISNUMBER(Z131),ISNUMBER(Z132)),4-COUNTBLANK(AI129:AI132),\"\")","v":2},"-",{"$f":"IF(OR(ISNUMBER(Z129),ISNUMBER(Z130),ISNUMBER(Z131),ISNUMBER(Z132)),4-COUNTBLANK(AJ129:AJ132),\"\")","v":1},{"$f":"IF(G88=\"\",\"\",G88)","v":"Barbarian Mixed Team"},null,{"$f":"IF(Z128=\"\",\"\",IF(Z128>AB128,Y128,IF(Z128=AB128,IF(NoDrawWithWithdraw,IF(AL128=Y128,AC128,IF(AL128=AC128,Y128,\"\")),\"\"),AC128)))","v":"TSC Royal 78 Kaisermühlen 2 (roy)"},{"$f":"IF(Z128=\"\",\"\",IF(Z128=AB128,IF(NoDrawWithWithdraw,IF(AL128=Y128,\"\",IF(AL128=AC128,\"\",Y128)),Y128),\"\"))","v":""},{"$f":"IF(Z128=\"\",\"\",IF(Z128=AB128,IF(NoDrawWithWithdraw,IF(AL128=Y128,\"\",IF(AL128=AC128,\"\",AC128)),AC128),\"\"))","v":""},{"$f":"IF(Z128=\"\",\"\",IF(Z128<AB128,Y128,IF(Z128=AB128,IF(NoDrawWithWithdraw,IF(AL128=Y128,Y128,IF(AL128=AC128,AC128,\"\")),\"\"),AC128)))","v":"Barbarian Mixed Team"},{"$f":"IF(Z128=\"\",\"\",SUM(Z129:Z132))","v":7},{"$f":"IF(Z128=\"\",\"\",SUM(AB129:AB132))","v":6},{"$f":"CONCATENATE(AE128,AH128)","v":"TSC Royal 78 Kaisermühlen 2 (roy)Barbarian Mixed Team"},{"$f":"IF(COUNTIF(Y129:Y132,WithdrawLabel)>COUNTIF(AC129:AC132,WithdrawLabel),Y128,IF(COUNTIF(AC129:AC132,WithdrawLabel)>COUNTIF(Y129:Y132,WithdrawLabel),AC128,\"\"))","v":""}]
[null,null,null,null,null,null,null,null,null,null,null,null,null,null,null,null,null,null,null,null,null,null,null,null,"Karl Vranovitz (roy)",0,"-",4,"Robert Green (nfc)",null,{"$f":"IF(Z129=\"\",\"\",IF(Z129>AB129,Y129,IF(Z129=AB129,\"\",AC129)))","v":"Robert Green (nfc)"},{"$f":"IF(Z129=\"\",\"\",IF(Z129=AB129,Y129,\"\"))","v":""},{"$f":"IF(Z129=\"\",\"\",IF(Z129=AB129,AC129,\"\"))","v":""},{"$f":"IF(Z129=\"\",\"\",IF(Z129<AB129,Y129,IF(Z129=AB129,\"\",AC129)))","v":"Karl Vranovitz (roy)"},{"$f":"IF(Z129=\"\",\"\",IF(Z129>AB129,Y128,\"\"))","v":""},{"$f":"IF(Z129=\"\",\"\",IF(Z129<AB129,AC128,\"\"))","v":"Barbarian Mixed Team"},{"$f":"CONCATENATE(AE129,AH129)","v":"Robert Green (nfc)Karl Vranovitz (roy)"}]
[null,null,null,null,null,null,null,null,null,null,null,null,null,null,null,null,null,null,null,null,null,null,null,null,"Christian Hausmann (roy)",1,"-",1,"Daniela Grünberg (sch)",null,{"$f":"IF(Z130=\"\",\"\",IF(Z130>AB130,Y130,IF(Z130=AB130,\"\",AC130)))","v":""},{"$f":"IF(Z130=\"\",\"\",IF(Z130=AB130,Y130,\"\"))","v":"Christian Hausmann (roy)"},{"$f":"IF(Z130=\"\",\"\",IF(Z130=AB130,AC130,\"\"))","v":"Daniela Grünberg (sch)"},{"$f":"IF(Z130=\"\",\"\",IF(Z130<AB130,Y130,IF(Z130=AB130,\"\",AC130)))","v":""},{"$f":"IF(Z130=\"\",\"\",IF(Z130>AB130,Y128,\"\"))","v":""},{"$f":"IF(Z130=\"\",\"\",IF(Z130<AB130,AC128,\"\"))","v":""},{"$f":"CONCATENATE(AE130,AH130)","v":""}]
[null,null,null,null,null,null,null,null,null,null,null,null,null,null,null,null,null,null,null,null,null,null,null,null,"Heinz Eder (roy)",3,"-",0,"Peter Erb (sub)",null,{"$f":"IF(Z131=\"\",\"\",IF(Z131>AB131,Y131,IF(Z131=AB131,\"\",AC131)))","v":"Heinz Eder (roy)"},{"$f":"IF(Z131=\"\",\"\",IF(Z131=AB131,Y131,\"\"))","v":""},{"$f":"IF(Z131=\"\",\"\",IF(Z131=AB131,AC131,\"\"))","v":""},{"$f":"IF(Z131=\"\",\"\",IF(Z131<AB131,Y131,IF(Z131=AB131,\"\",AC131)))","v":"Peter Erb (sub)"},{"$f":"IF(Z131=\"\",\"\",IF(Z131>AB131,Y128,\"\"))","v":"TSC Royal 78 Kaisermühlen 2 (roy)"},{"$f":"IF(Z131=\"\",\"\",IF(Z131<AB131,AC128,\"\"))","v":""},{"$f":"CONCATENATE(AE131,AH131)","v":"Heinz Eder (roy)Peter Erb (sub)"}]
[null,null,null,null,null,null,null,null,null,null,null,null,null,null,null,null,null,null,null,null,null,null,null,null,"Robert Lenz (roy)",3,"-",1,"Marcel Schulz (sch)",null,{"$f":"IF(Z132=\"\",\"\",IF(Z132>AB132,Y132,IF(Z132=AB132,\"\",AC132)))","v":"Robert Lenz (roy)"},{"$f":"IF(Z132=\"\",\"\",IF(Z132=AB132,Y132,\"\"))","v":""},{"$f":"IF(Z132=\"\",\"\",IF(Z132=AB132,AC132,\"\"))","v":""},{"$f":"IF(Z132=\"\",\"\",IF(Z132<AB132,Y132,IF(Z132=AB132,\"\",AC132)))","v":"Marcel Schulz (sch)"},{"$f":"IF(Z132=\"\",\"\",IF(Z132>AB132,Y128,\"\"))","v":"TSC Royal 78 Kaisermühlen 2 (roy)"},{"$f":"IF(Z132=\"\",\"\",IF(Z132<AB132,AC128,\"\"))","v":""},{"$f":"CONCATENATE(AE132,AH132)","v":"Robert Lenz (roy)Marcel Schulz (sch)"}]
[null,null,null,null,null,null,null,null,null,null,null,null,null,null,null,null,null,null,null,null,null,null,null,{"$f":"N_Substitute","v":"Substitute"}]
[null,null,null,null,null,null,null,null,null,null,null,null,null,null,null,null,null,null,null,null,null,null,null,{"$f":"N_Substitute","v":"Substitute"}]
[null,null,null,null,null,null,null,null,null,null,null,null,null,null,null,null,null,null,null,null,"#G4","10:10:00",null,"Atlas FTC (atl)",{"$f":"IF(G87=\"\",\"\",G87)","v":"ST Stembert (ste)"},{"$f":"IF(OR(ISNUMBER(Z136),ISNUMBER(Z137),ISNUMBER(Z138),ISNUMBER(Z139)),4-COUNTBLANK(AI136:AI139),\"\")","v":3},"-",{"$f":"IF(OR(ISNUMBER(Z136),ISNUMBER(Z137),ISNUMBER(Z138),ISNUMBER(Z139)),4-COUNTBLANK(AJ136:AJ139),\"\")","v":0},{"$f":"IF(G89=\"\",\"\",G89)","v":"TSC Phoenix 2 (wie)"},null,{"$f":"IF(Z135=\"\",\"\",IF(Z135>AB135,Y135,IF(Z135=AB135,IF(NoDrawWithWithdraw,IF(AL135=Y135,AC135,IF(AL135=AC135,Y135,\"\")),\"\"),AC135)))","v":"ST Stembert (ste)"},{"$f":"IF(Z135=\"\",\"\",IF(Z135=AB135,IF(NoDrawWithWithdraw,IF(AL135=Y135,\"\",IF(AL135=AC135,\"\",Y135)),Y135),\"\"))","v":""},{"$f":"IF(Z135=\"\",\"\",IF(Z135=AB135,IF(NoDrawWithWithdraw,IF(AL135=Y135,\"\",IF(AL135=AC135,\"\",AC135)),AC135),\"\"))","v":""},{"$f":"IF(Z135=\"\",\"\",IF(Z135<AB135,Y135,IF(Z135=AB135,IF(NoDrawWithWithdraw,IF(AL135=Y135,Y135,IF(AL135=AC135,AC135,\"\")),\"\"),AC135)))","v":"TSC Phoenix 2 (wie)"},{"$f":"IF(Z135=\"\",\"\",SUM(Z136:Z139))","v":16},{"$f":"IF(Z135=\"\",\"\",SUM(AB136:AB139))","v":3},{"$f":"CONCATENATE(AE135,AH135)","v":"ST Stembert (ste)TSC Phoenix 2 (wie)"},{"$f":"IF(COUNTIF(Y136:Y139,WithdrawLabel)>COUNTIF(AC136:AC139,WithdrawLabel),Y135,IF(COUNTIF(AC136:AC139,WithdrawLabel)>COUNTIF(Y136:Y139,WithdrawLabel),AC135,\"\"))","v":""}]
[null,null,null,null,null,null,null,null,null,null,null,null,null,null,null,null,null,null,null,null,null,null,null,null,"Noah Janssens (ste)",5,"-",0,"Alfred Strommer (wie)",null,{"$f":"IF(Z136=\"\",\"\",IF(Z136>AB136,Y136,IF(Z136=AB136,\"\",AC136)))","v":"Noah Janssens (ste)"},{"$f":"IF(Z136=\"\",\"\",IF(Z136=AB136,Y136,\"\"))","v":""},{"$f":"IF(Z136=\"\",\"\",IF(Z136=AB136,AC136,\"\"))","v":""},{"$f":"IF(Z136=\"\",\"\",IF(Z136<AB136,Y136,IF(Z136=AB136,\"\",AC136)))","v":"Alfred Strommer (wie)"},{"$f":"IF(Z136=\"\",\"\",IF(Z136>AB136,Y135,\"\"))","v":"ST Stembert (ste)"},{"$f":"IF(Z136=\"\",\"\",IF(Z136<AB136,AC135,\"\"))","v":""},{"$f":"CONCATENATE(AE136,AH136)","v":"Noah Janssens (ste)Alfred Strommer (wie)"}]
[null,null,null,null,null,null,null,null,null,null,null,null,null,null,null,null,null,null,null,null,null,null,null,null,"Sébastien Rochez (ste)",1,"-",1,"Igor Ljubisavljevic (wie)",null,{"$f":"IF(Z137=\"\",\"\",IF(Z137>AB137,Y137,IF(Z137=AB137,\"\",AC137)))","v":""},{"$f":"IF(Z137=\"\",\"\",IF(Z137=AB137,Y137,\"\"))","v":"Sébastien Rochez (ste)"},{"$f":"IF(Z137=\"\",\"\",IF(Z137=AB137,AC137,\"\"))","v":"Igor Ljubisavljevic (wie)"},{"$f":"IF(Z137=\"\",\"\",IF(Z137<AB137,Y137,IF(Z137=AB137,\"\",AC137)))","v":""},{"$f":"IF(Z137=\"\",\"\",IF(Z137>AB137,Y135,\"\"))","v":""},{"$f":"IF(Z137=\"\",\"\",IF(Z137<AB137,AC135,\"\"))","v":""},{"$f":"CONCATENATE(AE137,AH137)","v":""}]
[null,null,null,null,null,null,null,null,null,null,null,null,null,null,null,null,null,null,null,null,null,null,null,null,"John Zammit (ste)",6,"-",0,"Florian Daxböck (wie)",null,{"$f":"IF(Z138=\"\",\"\",IF(Z138>AB138,Y138,IF(Z138=AB138,\"\",AC138)))","v":"John Zammit (ste)"},{"$f":"IF(Z138=\"\",\"\",IF(Z138=AB138,Y138,\"\"))","v":""},{"$f":"IF(Z138=\"\",\"\",IF(Z138=AB138,AC138,\"\"))","v":""},{"$f":"IF(Z138=\"\",\"\",IF(Z138<AB138,Y138,IF(Z138=AB138,\"\",AC138)))","v":"Florian Daxböck (wie)"},{"$f":"IF(Z138=\"\",\"\",IF(Z138>AB138,Y135,\"\"))","v":"ST Stembert (ste)"},{"$f":"IF(Z138=\"\",\"\",IF(Z138<AB138,AC135,\"\"))","v":""},{"$f":"CONCATENATE(AE138,AH138)","v":"John Zammit (ste)Florian Daxböck (wie)"}]
[null,null,null,null,null,null,null,null,null,null,null,null,null,null,null,null,null,null,null,null,null,null,null,null,"Pascal Scheen (ste)",4,"-",2,"Gábor Baross (wie)",null,{"$f":"IF(Z139=\"\",\"\",IF(Z139>AB139,Y139,IF(Z139=AB139,\"\",AC139)))","v":"Pascal Scheen (ste)"},{"$f":"IF(Z139=\"\",\"\",IF(Z139=AB139,Y139,\"\"))","v":""},{"$f":"IF(Z139=\"\",\"\",IF(Z139=AB139,AC139,\"\"))","v":""},{"$f":"IF(Z139=\"\",\"\",IF(Z139<AB139,Y139,IF(Z139=AB139,\"\",AC139)))","v":"Gábor Baross (wie)"},{"$f":"IF(Z139=\"\",\"\",IF(Z139>AB139,Y135,\"\"))","v":"ST Stembert (ste)"},{"$f":"IF(Z139=\"\",\"\",IF(Z139<AB139,AC135,\"\"))","v":""},{"$f":"CONCATENATE(AE139,AH139)","v":"Pascal Scheen (ste)Gábor Baross (wie)"}]
[null,null,null,null,null,null,null,null,null,null,null,null,null,null,null,null,null,null,null,null,null,null,null,{"$f":"N_Substitute","v":"Substitute"}]
[null,null,null,null,null,null,null,null,null,null,null,null,null,null,null,null,null,null,null,null,null,null,null,{"$f":"N_Substitute","v":"Substitute"}]
[null,null,null,null,null,null,null,null,null,null,null,null,null,null,null,null,null,null,null,null,"#G4","10:10:00",null,"TSC Phoenix (wie)",{"$f":"IF(G90=\"\",\"\",G90)","v":"Roligans Ilioupolis TSC (rol)"},{"$f":"IF(OR(ISNUMBER(Z143),ISNUMBER(Z144),ISNUMBER(Z145),ISNUMBER(Z146)),4-COUNTBLANK(AI143:AI146),\"\")","v":0},"-",{"$f":"IF(OR(ISNUMBER(Z143),ISNUMBER(Z144),ISNUMBER(Z145),ISNUMBER(Z146)),4-COUNTBLANK(AJ143:AJ146),\"\")","v":3},{"$f":"IF(G91=\"\",\"\",G91)","v":"TSC Royal 78 Kaisermühlen 2 (roy)"},null,{"$f":"IF(Z142=\"\",\"\",IF(Z142>AB142,Y142,IF(Z142=AB142,IF(NoDrawWithWithdraw,IF(AL142=Y142,AC142,IF(AL142=AC142,Y142,\"\")),\"\"),AC142)))","v":"TSC Royal 78 Kaisermühlen 2 (roy)"},{"$f":"IF(Z142=\"\",\"\",IF(Z142=AB142,IF(NoDrawWithWithdraw,IF(AL142=Y142,\"\",IF(AL142=AC142,\"\",Y142)),Y142),\"\"))","v":""},{"$f":"IF(Z142=\"\",\"\",IF(Z142=AB142,IF(NoDrawWithWithdraw,IF(AL142=Y142,\"\",IF(AL142=AC142,\"\",AC142)),AC142),\"\"))","v":""},{"$f":"IF(Z142=\"\",\"\",IF(Z142<AB142,Y142,IF(Z142=AB142,IF(NoDrawWithWithdraw,IF(AL142=Y142,Y142,IF(AL142=AC142,AC142,\"\")),\"\"),AC142)))","v":"Roligans Ilioupolis TSC (rol)"},{"$f":"IF(Z142=\"\",\"\",SUM(Z143:Z146))","v":5},{"$f":"IF(Z142=\"\",\"\",SUM(AB143:AB146))","v":12},{"$f":"CONCATENATE(AE142,AH142)","v":"TSC Royal 78 Kaisermühlen 2 (roy)Roligans Ilioupolis TSC (rol)"},{"$f":"IF(COUNTIF(Y143:Y146,WithdrawLabel)>COUNTIF(AC143:AC146,WithdrawLabel),Y142,IF(COUNTIF(AC143:AC146,WithdrawLabel)>COUNTIF(Y143:Y146,WithdrawLabel),AC142,\"\"))","v":""}]
[null,null,null,null,null,null,null,null,null,null,null,null,null,null,null,null,null,null,null,null,null,null,null,null,"Phillipos Kordantonopoulos (rol)",0,"-",0,"Christian Hausmann (roy)",null,{"$f":"IF(Z143=\"\",\"\",IF(Z143>AB143,Y143,IF(Z143=AB143,\"\",AC143)))","v":""},{"$f":"IF(Z143=\"\",\"\",IF(Z143=AB143,Y143,\"\"))","v":"Phillipos Kordantonopoulos (rol)"},{"$f":"IF(Z143=\"\",\"\",IF(Z143=AB143,AC143,\"\"))","v":"Christian Hausmann (roy)"},{"$f":"IF(Z143=\"\",\"\",IF(Z143<AB143,Y143,IF(Z143=AB143,\"\",AC143)))","v":""},{"$f":"IF(Z143=\"\",\"\",IF(Z143>AB143,Y142,\"\"))","v":""},{"$f":"IF(Z143=\"\",\"\",IF(Z143<AB143,AC142,\"\"))","v":""},{"$f":"CONCATENATE(AE143,AH143)","v":""}]
[null,null,null,null,null,null,null,null,null,null,null,null,null,null,null,null,null,null,null,null,null,null,null,null,"Athanasios Kordantonopoulos (rol)",2,"-",6,"Robert Lenz (roy)",null,{"$f":"IF(Z144=\"\",\"\",IF(Z144>AB144,Y144,IF(Z144=AB144,\"\",AC144)))","v":"Robert Lenz (roy)"},{"$f":"IF(Z144=\"\",\"\",IF(Z144=AB144,Y144,\"\"))","v":""},{"$f":"IF(Z144=\"\",\"\",IF(Z144=AB144,AC144,\"\"))","v":""},{"$f":"IF(Z144=\"\",\"\",IF(Z144<AB144,Y144,IF(Z144=AB144,\"\",AC144)))","v":"Athanasios Kordantonopoulos (rol)"},{"$f":"IF(Z144=\"\",\"\",IF(Z144>AB144,Y142,\"\"))","v":""},{"$f":"IF(Z144=\"\",\"\",IF(Z144<AB144,AC142,\"\"))","v":"TSC Royal 78 Kaisermühlen 2 (roy)"},{"$f":"CONCATENATE(AE144,AH144)","v":"Robert Lenz (roy)Athanasios Kordantonopoulos (rol)"}]
[null,null,null,null,null,null,null,null,null,null,null,null,null,null,null,null,null,null,null,null,null,null,null,null,"Apollon Dimakeas (rol)",0,"-",1,"Karl Vranovitz (roy)",null,{"$f":"IF(Z145=\"\",\"\",IF(Z145>AB145,Y145,IF(Z145=AB145,\"\",AC145)))","v":"Karl Vranovitz (roy)"},{"$f":"IF(Z145=\"\",\"\",IF(Z145=AB145,Y145,\"\"))","v":""},{"$f":"IF(Z145=\"\",\"\",IF(Z145=AB145,AC145,\"\"))","v":""},{"$f":"IF(Z145=\"\",\"\",IF(Z145<AB145,Y145,IF(Z145=AB145,\"\",AC145)))","v":"Apollon Dimakeas (rol)"},{"$f":"IF(Z145=\"\",\"\",IF(Z145>AB145,Y142,\"\"))","v":""},{"$f":"IF(Z145=\"\",\"\",IF(Z145<AB145,AC142,\"\"))","v":"TSC Royal 78 Kaisermühlen 2 (roy)"},{"$f":"CONCATENATE(AE145,AH145)","v":"Karl Vranovitz (roy)Apollon Dimakeas (rol)"}]
[null,null,null,null,null,null,null,null,null,null,null,null,null,null,null,null,null,null,null,null,null,null,null,null,"Georgios Dimakeas (rol)",3,"-",5,"Heinz Eder (roy)",null,{"$f":"IF(Z146=\"\",\"\",IF(Z146>AB146,Y146,IF(Z146=AB146,\"\",AC146)))","v":"Heinz Eder (roy)"},{"$f":"IF(Z146=\"\",\"\",IF(Z146=AB146,Y146,\"\"))","v":""},{"$f":"IF(Z146=\"\",\"\",IF(Z146=AB146,AC146,\"\"))","v":""},{"$f":"IF(Z146=\"\",\"\",IF(Z146<AB146,Y146,IF(Z146=AB146,\"\",AC146)))","v":"Georgios Dimakeas (rol)"},{"$f":"IF(Z146=\"\",\"\",IF(Z146>AB146,Y142,\"\"))","v":""},{"$f":"IF(Z146=\"\",\"\",IF(Z146<AB146,AC142,\"\"))","v":"TSC Royal 78 Kaisermühlen 2 (roy)"},{"$f":"CONCATENATE(AE146,AH146)","v":"Heinz Eder (roy)Georgios Dimakeas (rol)"}]
[null,null,null,null,null,null,null,null,null,null,null,null,null,null,null,null,null,null,null,null,null,null,null,{"$f":"N_Substitute","v":"Substitute"},null,null,null,null,"David Scherbantin (roy)"]
[null,null,null,null,null,null,null,null,null,null,null,null,null,null,null,null,null,null,null,null,null,null,null,{"$f":"N_Substitute","v":"Substitute"}]
[null,null,null,null,null,null,null,null,null,null,null,null,null,null,null,null,null,null,null,null,"#G5","12:30:00",null,"Atlas FTC (atl)",{"$f":"IF(G87=\"\",\"\",G87)","v":"ST Stembert (ste)"},{"$f":"IF(OR(ISNUMBER(Z150),ISNUMBER(Z151),ISNUMBER(Z152),ISNUMBER(Z153)),4-COUNTBLANK(AI150:AI153),\"\")","v":3},"-",{"$f":"IF(OR(ISNUMBER(Z150),ISNUMBER(Z151),ISNUMBER(Z152),ISNUMBER(Z153)),4-COUNTBLANK(AJ150:AJ153),\"\")","v":1},{"$f":"IF(G88=\"\",\"\",G88)","v":"Barbarian Mixed Team"},null,{"$f":"IF(Z149=\"\",\"\",IF(Z149>AB149,Y149,IF(Z149=AB149,IF(NoDrawWithWithdraw,IF(AL149=Y149,AC149,IF(AL149=AC149,Y149,\"\")),\"\"),AC149)))","v":"ST Stembert (ste)"},{"$f":"IF(Z149=\"\",\"\",IF(Z149=AB149,IF(NoDrawWithWithdraw,IF(AL149=Y149,\"\",IF(AL149=AC149,\"\",Y149)),Y149),\"\"))","v":""},{"$f":"IF(Z149=\"\",\"\",IF(Z149=AB149,IF(NoDrawWithWithdraw,IF(AL149=Y149,\"\",IF(AL149=AC149,\"\",AC149)),AC149),\"\"))","v":""},{"$f":"IF(Z149=\"\",\"\",IF(Z149<AB149,Y149,IF(Z149=AB149,IF(NoDrawWithWithdraw,IF(AL149=Y149,Y149,IF(AL149=AC149,AC149,\"\")),\"\"),AC149)))","v":"Barbarian Mixed Team"},{"$f":"IF(Z149=\"\",\"\",SUM(Z150:Z153))","v":11},{"$f":"IF(Z149=\"\",\"\",SUM(AB150:AB153))","v":3},{"$f":"CONCATENATE(AE149,AH149)","v":"ST Stembert (ste)Barbarian Mixed Team"},{"$f":"IF(COUNTIF(Y150:Y153,WithdrawLabel)>COUNTIF(AC150:AC153,WithdrawLabel),Y149,IF(COUNTIF(AC150:AC153,WithdrawLabel)>COUNTIF(Y150:Y153,WithdrawLabel),AC149,\"\"))","v":""}]
[null,null,null,null,null,null,null,null,null,null,null,null,null,null,null,null,null,null,null,null,null,null,null,null,"John Zammit (ste)",2,"-",1,"Robert Green (nfc)",null,{"$f":"IF(Z150=\"\",\"\",IF(Z150>AB150,Y150,IF(Z150=AB150,\"\",AC150)))","v":"John Zammit (ste)"},{"$f":"IF(Z150=\"\",\"\",IF(Z150=AB150,Y150,\"\"))","v":""},{"$f":"IF(Z150=\"\",\"\",IF(Z150=AB150,AC150,\"\"))","v":""},{"$f":"IF(Z150=\"\",\"\",IF(Z150<AB150,Y150,IF(Z150=AB150,\"\",AC150)))","v":"Robert Green (nfc)"},{"$f":"IF(Z150=\"\",\"\",IF(Z150>AB150,Y149,\"\"))","v":"ST Stembert (ste)"},{"$f":"IF(Z150=\"\",\"\",IF(Z150<AB150,AC149,\"\"))","v":""},{"$f":"CONCATENATE(AE150,AH150)","v":"John Zammit (ste)Robert Green (nfc)"}]
[null,null,null,null,null,null,null,null,null,null,null,null,null,null,null,null,null,null,null,null,null,null,null,null,"Sébastien Rochez (ste)",5,"-",0,"Fabio Domenico ()",null,{"$f":"IF(Z151=\"\",\"\",IF(Z151>AB151,Y151,IF(Z151=AB151,\"\",AC151)))","v":"Sébastien Rochez (ste)"},{"$f":"IF(Z151=\"\",\"\",IF(Z151=AB151,Y151,\"\"))","v":""},{"$f":"IF(Z151=\"\",\"\",IF(Z151=AB151,AC151,\"\"))","v":""},{"$f":"IF(Z151=\"\",\"\",IF(Z151<AB151,Y151,IF(Z151=AB151,\"\",AC151)))","v":"Fabio Domenico ()"},{"$f":"IF(Z151=\"\",\"\",IF(Z151>AB151,Y149,\"\"))","v":"ST Stembert (ste)"},{"$f":"IF(Z151=\"\",\"\",IF(Z151<AB151,AC149,\"\"))","v":""},{"$f":"CONCATENATE(AE151,AH151)","v":"Sébastien Rochez (ste)Fabio Domenico ()"}]
[null,null,null,null,null,null,null,null,null,null,null,null,null,null,null,null,null,null,null,null,null,null,null,null,"Pascal Scheen (ste)",1,"-",2,"Marcel Schulz (sch)",null,{"$f":"IF(Z152=\"\",\"\",IF(Z152>AB152,Y152,IF(Z152=AB152,\"\",AC152)))","v":"Marcel Schulz (sch)"},{"$f":"IF(Z152=\"\",\"\",IF(Z152=AB152,Y152,\"\"))","v":""},{"$f":"IF(Z152=\"\",\"\",IF(Z152=AB152,AC152,\"\"))","v":""},{"$f":"IF(Z152=\"\",\"\",IF(Z152<AB152,Y152,IF(Z152=AB152,\"\",AC152)))","v":"Pascal Scheen (ste)"},{"$f":"IF(Z152=\"\",\"\",IF(Z152>AB152,Y149,\"\"))","v":""},{"$f":"IF(Z152=\"\",\"\",IF(Z152<AB152,AC149,\"\"))","v":"Barbarian Mixed Team"},{"$f":"CONCATENATE(AE152,AH152)","v":"Marcel Schulz (sch)Pascal Scheen (ste)"}]
[null,null,null,null,null,null,null,null,null,null,null,null,null,null,null,null,null,null,null,null,null,null,null,null,"Noah Janssens (ste)",3,"-",0,"Peter Erb (sub)",null,{"$f":"IF(Z153=\"\",\"\",IF(Z153>AB153,Y153,IF(Z153=AB153,\"\",AC153)))","v":"Noah Janssens (ste)"},{"$f":"IF(Z153=\"\",\"\",IF(Z153=AB153,Y153,\"\"))","v":""},{"$f":"IF(Z153=\"\",\"\",IF(Z153=AB153,AC153,\"\"))","v":""},{"$f":"IF(Z153=\"\",\"\",IF(Z153<AB153,Y153,IF(Z153=AB153,\"\",AC153)))","v":"Peter Erb (sub)"},{"$f":"IF(Z153=\"\",\"\",IF(Z153>AB153,Y149,\"\"))","v":"ST Stembert (ste)"},{"$f":"IF(Z153=\"\",\"\",IF(Z153<AB153,AC149,\"\"))","v":""},{"$f":"CONCATENATE(AE153,AH153)","v":"Noah Janssens (ste)Peter Erb (sub)"}]
[null,null,null,null,null,null,null,null,null,null,null,null,null,null,null,null,null,null,null,null,null,null,null,{"$f":"N_Substitute","v":"Substitute"},null,null,null,null,"Daniela Grünberg (sch)"]
[null,null,null,null,null,null,null,null,null,null,null,null,null,null,null,null,null,null,null,null,null,null,null,{"$f":"N_Substitute","v":"Substitute"}]
[null,null,null,null,null,null,null,null,null,null,null,null,null,null,null,null,null,null,null,null,"#G5","12:30:00",null,"TSC Royal 78 Kaisermühlen (roy)",{"$f":"IF(G89=\"\",\"\",G89)","v":"TSC Phoenix 2 (wie)"},{"$f":"IF(OR(ISNUMBER(Z157),ISNUMBER(Z158),ISNUMBER(Z159),ISNUMBER(Z160)),4-COUNTBLANK(AI157:AI160),\"\")","v":2},"-",{"$f":"IF(OR(ISNUMBER(Z157),ISNUMBER(Z158),ISNUMBER(Z159),ISNUMBER(Z160)),4-COUNTBLANK(AJ157:AJ160),\"\")","v":1},{"$f":"IF(G90=\"\",\"\",G90)","v":"Roligans Ilioupolis TSC (rol)"},null,{"$f":"IF(Z156=\"\",\"\",IF(Z156>AB156,Y156,IF(Z156=AB156,IF(NoDrawWithWithdraw,IF(AL156=Y156,AC156,IF(AL156=AC156,Y156,\"\")),\"\"),AC156)))","v":"TSC Phoenix 2 (wie)"},{"$f":"IF(Z156=\"\",\"\",IF(Z156=AB156,IF(NoDrawWithWithdraw,IF(AL156=Y156,\"\",IF(AL156=AC156,\"\",Y156)),Y156),\"\"))","v":""},{"$f":"IF(Z156=\"\",\"\",IF(Z156=AB156,IF(NoDrawWithWithdraw,IF(AL156=Y156,\"\",IF(AL156=AC156,\"\",AC156)),AC156),\"\"))","v":""},{"$f":"IF(Z156=\"\",\"\",IF(Z156<AB156,Y156,IF(Z156=AB156,IF(NoDrawWithWithdraw,IF(AL156=Y156,Y156,IF(AL156=AC156,AC156,\"\")),\"\"),AC156)))","v":"Roligans Ilioupolis TSC (rol)"},{"$f":"IF(Z156=\"\",\"\",SUM(Z157:Z160))","v":4},{"$f":"IF(Z156=\"\",\"\",SUM(AB157:AB160))","v":5},{"$f":"CONCATENATE(AE156,AH156)","v":"TSC Phoenix 2 (wie)Roligans Ilioupolis TSC (rol)"},{"$f":"IF(COUNTIF(Y157:Y160,WithdrawLabel)>COUNTIF(AC157:AC160,WithdrawLabel),Y156,IF(COUNTIF(AC157:AC160,WithdrawLabel)>COUNTIF(Y157:Y160,WithdrawLabel),AC156,\"\"))","v":""}]
[null,null,null,null,null,null,null,null,null,null,null,null,null,null,null,null,null,null,null,null,null,null,null,null,"Florian Daxböck (wie)",1,"-",0,"Phillipos Kordantonopoulos (rol)",null,{"$f":"IF(Z157=\"\",\"\",IF(Z157>AB157,Y157,IF(Z157=AB157,\"\",AC157)))","v":"Florian Daxböck (wie)"},{"$f":"IF(Z157=\"\",\"\",IF(Z157=AB157,Y157,\"\"))","v":""},{"$f":"IF(Z157=\"\",\"\",IF(Z157=AB157,AC157,\"\"))","v":""},{"$f":"IF(Z157=\"\",\"\",IF(Z157<AB157,Y157,IF(Z157=AB157,\"\",AC157)))","v":"Phillipos Kordantonopoulos (rol)"},{"$f":"IF(Z157=\"\",\"\",IF(Z157>AB157,Y156,\"\"))","v":"TSC Phoenix 2 (wie)"},{"$f":"IF(Z157=\"\",\"\",IF(Z157<AB157,AC156,\"\"))","v":""},{"$f":"CONCATENATE(AE157,AH157)","v":"Florian Daxböck (wie)Phillipos Kordantonopoulos (rol)"}]
[null,null,null,null,null,null,null,null,null,null,null,null,null,null,null,null,null,null,null,null,null,null,null,null,"Gábor Baross (wie)",0,"-",4,"Athanasios Kordantonopoulos (rol)",null,{"$f":"IF(Z158=\"\",\"\",IF(Z158>AB158,Y158,IF(Z158=AB158,\"\",AC158)))","v":"Athanasios Kordantonopoulos (rol)"},{"$f":"IF(Z158=\"\",\"\",IF(Z158=AB158,Y158,\"\"))","v":""},{"$f":"IF(Z158=\"\",\"\",IF(Z158=AB158,AC158,\"\"))","v":""},{"$f":"IF(Z158=\"\",\"\",IF(Z158<AB158,Y158,IF(Z158=AB158,\"\",AC158)))","v":"Gábor Baross (wie)"},{"$f":"IF(Z158=\"\",\"\",IF(Z158>AB158,Y156,\"\"))","v":""},{"$f":"IF(Z158=\"\",\"\",IF(Z158<AB158,AC156,\"\"))","v":"Roligans Ilioupolis TSC (rol)"},{"$f":"CONCATENATE(AE158,AH158)","v":"Athanasios Kordantonopoulos (rol)Gábor Baross (wie)"}]
[null,null,null,null,null,null,null,null,null,null,null,null,null,null,null,null,null,null,null,null,null,null,null,null,"Igor Ljubisavljevic (wie)",1,"-",1,"Georgios Dimakeas (rol)",null,{"$f":"IF(Z159=\"\",\"\",IF(Z159>AB159,Y159,IF(Z159=AB159,\"\",AC159)))","v":""},{"$f":"IF(Z159=\"\",\"\",IF(Z159=AB159,Y159,\"\"))","v":"Igor Ljubisavljevic (wie)"},{"$f":"IF(Z159=\"\",\"\",IF(Z159=AB159,AC159,\"\"))","v":"Georgios Dimakeas (rol)"},{"$f":"IF(Z159=\"\",\"\",IF(Z159<AB159,Y159,IF(Z159=AB159,\"\",AC159)))","v":""},{"$f":"IF(Z159=\"\",\"\",IF(Z159>AB159,Y156,\"\"))","v":""},{"$f":"IF(Z159=\"\",\"\",IF(Z159<AB159,AC156,\"\"))","v":""},{"$f":"CONCATENATE(AE159,AH159)","v":""}]
[null,null,null,null,null,null,null,null,null,null,null,null,null,null,null,null,null,null,null,null,null,null,null,null,"Alfred Strommer (wie)",2,"-",0,"Apollon Dimakeas (rol)",null,{"$f":"IF(Z160=\"\",\"\",IF(Z160>AB160,Y160,IF(Z160=AB160,\"\",AC160)))","v":"Alfred Strommer (wie)"},{"$f":"IF(Z160=\"\",\"\",IF(Z160=AB160,Y160,\"\"))","v":""},{"$f":"IF(Z160=\"\",\"\",IF(Z160=AB160,AC160,\"\"))","v":""},{"$f":"IF(Z160=\"\",\"\",IF(Z160<AB160,Y160,IF(Z160=AB160,\"\",AC160)))","v":"Apollon Dimakeas (rol)"},{"$f":"IF(Z160=\"\",\"\",IF(Z160>AB160,Y156,\"\"))","v":"TSC Phoenix 2 (wie)"},{"$f":"IF(Z160=\"\",\"\",IF(Z160<AB160,AC156,\"\"))","v":""},{"$f":"CONCATENATE(AE160,AH160)","v":"Alfred Strommer (wie)Apollon Dimakeas (rol)"}]
[null,null,null,null,null,null,null,null,null,null,null,null,null,null,null,null,null,null,null,null,null,null,null,{"$f":"N_Substitute","v":"Substitute"}]
[null,null,null,null,null,null,null,null,null,null,null,null,null,null,null,null,null,null,null,null,null,null,null,{"$f":"N_Substitute","v":"Substitute"}]
[]
[null,{"$f":"N_DEMI_FINALE","v":"SEMI FINAL"}]
[]
[null,null,null,null,null,null,null,null,null,null,null,null,null,null,null,null,null,null,null,null,null,{"$f":"N_Heure","v":"Time"},{"$f":"N_Table","v":"Table"},{"$f":"N_Arbitre","v":"Referee"},{"$f":"N_Scores","v":"Scores"},null,null,null,null,{"$f":"N_MS","v":"SD"},null,null,null,null,null,null,null,{"$f":"IF(COUNTA(Z170:Z173)>3,\"OK\",\"\")","v":"OK"}]
[null,null,null,null,null,null,null,null,null,null,null,null,null,null,null,null,null,null,null,null,"#F2","15:55:00",null,"TSC Phoenix 2 (wie)",{"$f":"CheckExaequo(P_1A)","v":"Bormla SC (bor)"},{"$f":"IF(OR(ISNUMBER(Z170),ISNUMBER(Z171),ISNUMBER(Z172),ISNUMBER(Z173)),Lire_Gain_Matches(Z170:Z173, AB170:AB173),\"\")","v":"4"},"-",{"$f":"IF(OR(ISNUMBER(Z170),ISNUMBER(Z171),ISNUMBER(Z172),ISNUMBER(Z173)),Lire_Gain_Matches(AB170:AB173, Z170:Z173),\"\")","v":"0"},{"$f":"CheckExaequo(P_2B)","v":"TSC Royal 78 Kaisermühlen 2 (roy)"},{"$f":"IF(ISNA(VLOOKUP(\"X\",AD170:AD173,1,FALSE)),\"\",\"X\")","v":""},{"$f":"IF(Z167=\"\",\"\",IF(Z167>AB167,Y167,IF(Z167=AB167,IF(AL167=Y167,AC167,IF(AL167=AC167,Y167,\"\")),AC167)))","v":"Bormla SC (bor)"},{"$f":"IF(Z167=\"\",\"\",IF(Z167=AB167,IF(AL167=Y167,\"\",IF(AL167=AC167,\"\",Y167)),\"\"))","v":""},{"$f":"IF(Z167=\"\",\"\",IF(Z167=AB167,IF(AL167=Y167,\"\",IF(AL167=AC167,\"\",AC167)),\"\"))","v":""},{"$f":"IF(Z167=\"\",\"\",IF(Z167<AB167,Y167,IF(Z167=AB167,IF(AL167=Y167,Y167,IF(AL167=AC167,AC167,\"\")),AC167)))","v":"TSC Royal 78 Kaisermühlen 2 (roy)"},null,null,null,{"$f":"IF(COUNTIF(Y170:Y173,WithdrawLabel)>COUNTIF(AC170:AC173,WithdrawLabel),Y167,IF(COUNTIF(AC170:AC173,WithdrawLabel)>COUNTIF(Y170:Y173,WithdrawLabel),AC167,\"\"))","v":""}]
[null,null,null,null,null,null,null,null,null,null,null,null,null,null,null,null,null,null,null,null,null,null,null,null,{"$f":"N_Total_buts","v":"Total goals"},{"$f":"IF(OR(ISNUMBER(Z170),ISNUMBER(Z171),ISNUMBER(Z172),ISNUMBER(Z173)),SUM(Z170:Z173),\"\")","v":23},"-",{"$f":"IF(OR(ISNUMBER(Z170),ISNUMBER(Z171),ISNUMBER(Z172),ISNUMBER(Z173)),SUM(AB170:AB173),\"\")","v":0},{"$f":"IF(Z174=\"\",\"\",CONCATENATE(\"(Diff : \",Z174,\" - \",AB174,\")\"))","v":""}]
[null,null,null,null,null,null,null,null,null,{"$f":"IF(Z169=\"\",\"\",IF(Z169=Y167,AC167,Y167))","v":"TSC Royal 78 Kaisermühlen 2 (roy)"},null,null,null,null,null,null,null,null,null,null,null,null,null,null,{"$f":"N_VAINQUEUR","v":"WINNER"},{"$f":"IF(AL166<>\"OK\",IF(HidePlayerFormulas,\"\",\"(\"&Y167&\"-\"&AC167&\")\"),IF(AE167=\"\",IF(Z168>AB168,Y167,IF(Z168<AB168,AC167,mess_erreur_marque)),AE167))","v":"Bormla SC (bor)"}]
[null,null,null,null,null,null,null,null,null,null,null,null,null,null,null,null,null,null,null,null,null,"15:55:00",null,null,"Jean Carl Tabone (bor)",2,"-",0,"Heinz Eder (roy)"]
[null,null,null,null,null,null,null,null,null,null,null,null,null,null,null,null,null,null,null,null,null,"15:55:00",null,null,"George Ebejer (bor)",7,"-",0,"Karl Vranovitz (roy)"]
[null,null,null,null,null,null,null,null,null,null,null,null,null,null,null,null,null,null,null,null,null,"15:55:00",null,null,"Wolfgang Haas (bor)",6,"-",0,"Christian Hausmann (roy)"]
[null,null,null,null,null,null,null,null,null,null,null,null,null,null,null,null,null,null,null,null,null,"15:55:00",null,null,"Christian Haas (bor)",8,"-",0,"David Scherbantin (roy)"]
[null,null,null,null,null,null,null,null,null,null,null,null,null,null,null,null,null,null,null,null,null,null,{"$f":"N_Différentiel","v":"Shoot Out"},null,null,null,"-"]
[null,null,null,null,null,null,null,null,null,null,null,null,null,null,null,null,null,null,null,null,null,null,null,{"$f":"N_Substitute","v":"Substitute"}]
[null,null,null,null,null,null,null,null,null,null,null,null,null,null,null,null,null,null,null,null,null,null,null,{"$f":"N_Substitute","v":"Substitute"}]
[]
[null,null,null,null,null,null,null,null,null,null,null,null,null,null,null,null,null,null,null,null,null,{"$f":"N_Heure","v":"Time"},{"$f":"N_Table","v":"Table"},{"$f":"N_Arbitre","v":"Referee"},{"$f":"N_Scores","v":"Scores"},null,null,null,null,{"$f":"N_MS","v":"SD"},null,null,null,null,null,null,null,{"$f":"IF(COUNTA(Z182:Z185)>3,\"OK\",\"\")","v":"OK"}]
[null,null,null,null,null,null,null,null,null,null,null,null,null,null,null,null,null,null,null,null,"#F2","15:55:00",null,"GCT DLF Gorizia (gor)",{"$f":"CheckExaequo(P_1B)","v":"TSC Royal 78 Kaisermühlen (roy)"},{"$f":"IF(OR(ISNUMBER(Z182),ISNUMBER(Z183),ISNUMBER(Z184),ISNUMBER(Z185)),Lire_Gain_Matches(Z182:Z185, AB182:AB185),\"\")","v":"0"},"-",{"$f":"IF(OR(ISNUMBER(Z182),ISNUMBER(Z183),ISNUMBER(Z184),ISNUMBER(Z185)),Lire_Gain_Matches(AB182:AB185, Z182:Z185),\"\")","v":"1"},{"$f":"CheckExaequo(P_2A)","v":"ST Stembert (ste)"},{"$f":"IF(ISNA(VLOOKUP(\"X\",AD182:AD185,1,FALSE)),\"\",\"X\")","v":""},{"$f":"IF(Z179=\"\",\"\",IF(Z179>AB179,Y179,IF(Z179=AB179,IF(AL179=Y179,AC179,IF(AL179=AC179,Y179,\"\")),AC179)))","v":"ST Stembert (ste)"},{"$f":"IF(Z179=\"\",\"\",IF(Z179=AB179,IF(AL179=Y179,\"\",IF(AL179=AC179,\"\",Y179)),\"\"))","v":""},{"$f":"IF(Z179=\"\",\"\",IF(Z179=AB179,IF(AL179=Y179,\"\",IF(AL179=AC179,\"\",AC179)),\"\"))","v":""},{"$f":"IF(Z179=\"\",\"\",IF(Z179<AB179,Y179,IF(Z179=AB179,IF(AL179=Y179,Y179,IF(AL179=AC179,AC179,\"\")),AC179)))","v":"TSC Royal 78 Kaisermühlen (roy)"},null,null,null,{"$f":"IF(COUNTIF(Y182:Y185,WithdrawLabel)>COUNTIF(AC182:AC185,WithdrawLabel),Y179,IF(COUNTIF(AC182:AC185,WithdrawLabel)>COUNTIF(Y182:Y185,WithdrawLabel),AC179,\"\"))","v":""}]
[null,null,null,null,null,null,null,null,null,null,null,null,null,null,null,null,null,null,null,null,null,null,null,null,{"$f":"N_Total_buts","v":"Total goals"},{"$f":"IF(OR(ISNUMBER(Z182),ISNUMBER(Z183),ISNUMBER(Z184),ISNUMBER(Z185)),SUM(Z182:Z185),\"\")","v":4},"-",{"$f":"IF(OR(ISNUMBER(Z182),ISNUMBER(Z183),ISNUMBER(Z184),ISNUMBER(Z185)),SUM(AB182:AB185),\"\")","v":6},{"$f":"IF(Z186=\"\",\"\",CONCATENATE(\"(Diff : \",Z186,\" - \",AB186,\")\"))","v":""}]
[null,null,null,null,null,null,null,null,null,{"$f":"IF(Z181=\"\",\"\",IF(Z181=Y179,AC179,Y179))","v":"TSC Royal 78 Kaisermühlen (roy)"},null,null,null,null,null,null,null,null,null,null,null,null,null,null,{"$f":"N_VAINQUEUR","v":"WINNER"},{"$f":"IF(AL178<>\"OK\",IF(HidePlayerFormulas,\"\",\"(\"&Y179&\"-\"&AC179&\")\"),IF(AE179=\"\",IF(Z180>AB180,Y179,IF(Z180<AB180,AC179,mess_erreur_marque)),AE179))","v":"ST Stembert (ste)"}]
[null,null,null,null,null,null,null,null,null,null,null,null,null,null,null,null,null,null,null,null,null,"15:55:00",null,null,"Stefan Sandner (roy)",1,"-",1,"Sébastien Rochez (ste)"]
[null,null,null,null,null,null,null,null,null,null,null,null,null,null,null,null,null,null,null,null,null,"15:55:00",null,null,"Murat Tünger (roy)",1,"-",3,"Noah Janssens (ste)"]
[null,null,null,null,null,null,null,null,null,null,null,null,null,null,null,null,null,null,null,null,null,"15:55:00",null,null,"Wolfgang Leitner (roy)",0,"-",0,"John Zammit (ste)"]
[null,null,null,null,null,null,null,null,null,null,null,null,null,null,null,null,null,null,null,null,null,"15:55:00",null,null,"Alexander Haas (roy)",2,"-",2,"Pascal Scheen (ste)"]
[null,null,null,null,null,null,null,null,null,null,null,null,null,null,null,null,null,null,null,null,null,null,{"$f":"N_Différentiel","v":"Shoot Out"},null,null,null,"-"]
[null,null,null,null,null,null,null,null,null,null,null,null,null,null,null,null,null,null,null,null,null,null,null,{"$f":"N_Substitute","v":"Substitute"}]
[null,null,null,null,null,null,null,null,null,null,null,null,null,null,null,null,null,null,null,null,null,null,null,{"$f":"N_Substitute","v":"Substitute"}]
[]
[null,{"$f":"N_FINALE","v":"FINAL"}]
[]
[null,null,null,null,null,null,null,null,null,null,null,null,null,null,null,null,null,null,null,null,null,{"$f":"N_Heure","v":"Time"},{"$f":"N_Table","v":"Table"},{"$f":"N_Arbitre","v":"Referee"},{"$f":"N_Scores","v":"Scores"},null,null,null,null,{"$f":"N_MS","v":"SD"},null,null,null,null,null,null,null,{"$f":"IF(COUNTA(Z196:Z199)>3,\"OK\",\"\")","v":"OK"}]
[null,null,null,null,null,null,null,null,null,null,null,null,null,null,null,null,null,null,null,null,"#F1","17:05:00",null,"TSC Royal 78 Kaisermühlen (roy)",{"$f":"P_4_1","v":"Bormla SC (bor)"},{"$f":"IF(OR(ISNUMBER(Z196),ISNUMBER(Z197),ISNUMBER(Z198),ISNUMBER(Z199)),Lire_Gain_Matches(Z196:Z199, AB196:AB199),\"\")","v":"2"},"-",{"$f":"IF(OR(ISNUMBER(Z196),ISNUMBER(Z197),ISNUMBER(Z198),ISNUMBER(Z199)),Lire_Gain_Matches(AB196:AB199, Z196:Z199),\"\")","v":"0"},{"$f":"P_4_2","v":"ST Stembert (ste)"},{"$f":"IF(ISNA(VLOOKUP(\"X\",AD196:AD199,1,FALSE)),\"\",\"X\")","v":""},{"$f":"IF(Z193=\"\",\"\",IF(Z193>AB193,Y193,IF(Z193=AB193,IF(AL193=Y193,AC193,IF(AL193=AC193,Y193,\"\")),AC193)))","v":"Bormla SC (bor)"},{"$f":"IF(Z193=\"\",\"\",IF(Z193=AB193,IF(AL193=Y193,\"\",IF(AL193=AC193,\"\",Y193)),\"\"))","v":""},{"$f":"IF(Z193=\"\",\"\",IF(Z193=AB193,IF(AL193=Y193,\"\",IF(AL193=AC193,\"\",AC193)),\"\"))","v":""},{"$f":"IF(Z193=\"\",\"\",IF(Z193<AB193,Y193,IF(Z193=AB193,IF(AL193=Y193,Y193,IF(AL193=AC193,AC193,\"\")),AC193)))","v":"ST Stembert (ste)"},null,null,null,{"$f":"IF(COUNTIF(Y196:Y199,WithdrawLabel)>COUNTIF(AC196:AC199,WithdrawLabel),Y193,IF(COUNTIF(AC196:AC199,WithdrawLabel)>COUNTIF(Y196:Y199,WithdrawLabel),AC193,\"\"))","v":""}]
[null,null,null,null,null,null,null,null,null,null,null,null,null,null,null,null,null,null,null,null,null,null,null,null,{"$f":"N_Total_buts","v":"Total goals"},{"$f":"IF(OR(ISNUMBER(Z196),ISNUMBER(Z197),ISNUMBER(Z198),ISNUMBER(Z199)),SUM(Z196:Z199),\"\")","v":5},"-",{"$f":"IF(OR(ISNUMBER(Z196),ISNUMBER(Z197),ISNUMBER(Z198),ISNUMBER(Z199)),SUM(AB196:AB199),\"\")","v":3},{"$f":"IF(Z200=\"\",\"\",CONCATENATE(\"(Diff : \",Z200,\" - \",AB200,\")\"))","v":""}]
[null,null,null,null,null,null,null,null,null,{"$f":"IF(Z195=\"\",\"\",IF(Z195=Y193,AC193,Y193))","v":"ST Stembert (ste)"},null,null,null,null,null,null,null,null,null,null,null,null,null,null,{"$f":"N_VAINQUEUR","v":"WINNER"},{"$f":"IF(AL192<>\"OK\",IF(HidePlayerFormulas,\"\",\"(\"&Y193&\"-\"&AC193&\")\"),IF(AE193=\"\",IF(Z194>AB194,Y193,IF(Z194<AB194,AC193,mess_erreur_marque)),AE193))","v":"Bormla SC (bor)"}]
[null,null,null,null,null,null,null,null,null,null,null,null,null,null,null,null,null,null,null,null,null,"17:05:00",null,null,"Christian Haas (bor)",1,"-",1,"John Zammit (ste)"]
[null,null,null,null,null,null,null,null,null,null,null,null,null,null,null,null,null,null,null,null,null,"17:05:00",null,null,"Wolfgang Haas (bor)",2,"-",1,"Sébastien Rochez (ste)"]
[null,null,null,null,null,null,null,null,null,null,null,null,null,null,null,null,null,null,null,null,null,"17:05:00",null,null,"Jason Pisani (bor)",1,"-",0,"Pascal Scheen (ste)"]
[null,null,null,null,null,null,null,null,null,null,null,null,null,null,null,null,null,null,null,null,null,"17:05:00",null,null,"Charles Aquilina (bor)",1,"-",1,"Noah Janssens (ste)"]
[null,null,null,null,null,null,null,null,null,null,null,null,null,null,null,null,null,null,null,null,null,null,{"$f":"N_Différentiel","v":"Shoot Out"},null,null,null,"-"]
[null,null,null,null,null,null,null,null,null,null,null,null,null,null,null,null,null,null,null,null,null,null,null,{"$f":"N_Substitute","v":"Substitute"}]
[null,null,null,null,null,null,null,null,null,null,null,null,null,null,null,null,null,null,null,null,null,null,null,{"$f":"N_Substitute","v":"Substitute"}]